{"text_format":"3","workbook":"xlsx","n_sheets":30,"sheets":["DGP","Menu","Setup","Planning","M&E","Financial","Performance","Comments","ActionPlan","Translations","Lists","Summary","Month 1","Month 2","Month 3","Month 4","Month 5","Month 6","Month 7","Month 8","Month 9","Month 10","Month 11","Month 12","Annex 1","Annex 2","Annex 3","Annex 4","Annex 5","Annex 6"],"not_rendered":{"charts":14,"images":12,"macros":1,"external_links":4,"defined_names":654},"read":"whole","date_system":"1900"}

{"sheet":"DGP","index":0,"n_rows":235,"n_cols":17,"rows_kept":235}
["SR8 DGP","ObjectID","Active?","DGP (SR8) - Indicator","Comment","Period 1\nQ2-15","Period 2\nQ3-15","Period 3\nQ4-15","Period 4\nQ1-16","Period 5\nQ2-16","Period 6\nQ3-16","Period 7\nQ4-16","Period 8\nQ1-17","Period 9\nQ2-17","Period 10\nQ3-17","Period 11\nQ4-17","Period 12\nQ1-18"]
["DGP","Fi1","√","Budget PR => SR",null,{"$f":"'M&E'!$L$235","v":{"v":504075,"d":"504,075"}},{"$f":"'M&E'!$P$235","v":{"v":615300,"d":"615,300"}},{"$f":"'M&E'!$T$235","v":0},{"$f":"'M&E'!$X$235","v":0}]
[null,"Fi2","√","Disbursement PR => SR",null,{"$f":"'M&E'!$L$438","v":{"v":600000,"d":"600,000"}},{"$f":"'M&E'!$P$438","v":{"v":650000,"d":"650,000"}},{"$f":"'M&E'!$T$438","v":0},{"$f":"'M&E'!$X$438","v":0}]
[null,"Fi3","√","Expenditure",{"$f":"Comments!K24","v":0},{"$f":"'M&E'!$M$235","v":{"v":494925,"d":"494,925"}},{"$f":"'M&E'!$Q$235","v":{"v":617200,"d":"617,200"}},{"$f":"'M&E'!$U$235","v":0},{"$f":"'M&E'!$Y$235","v":0}]
[null,"Fi4","√","Financial reports planned",null,{"$f":"'M&E'!I460","v":4},{"$f":"'M&E'!J460","v":4},{"$f":"'M&E'!L460","v":0},{"$f":"'M&E'!M460","v":0}]
[null,"Fi5","√","Financial reports overdue",{"$f":"Comments!K25","v":0},{"$f":"'M&E'!I461","v":1},{"$f":"'M&E'!J461","v":1},{"$f":"'M&E'!L461","v":0},{"$f":"'M&E'!M461","v":0}]
[null,"Fi6","X","Audit actions fulfilled"]
[null,"Fi7","X","Outstanding audit actions within performance period"]
[null,"Fi8","X","Outstanding audit actions past performance period"]
[null,"Ma9","X","Supervision visits planned"]
[null,"Ma10","X","Supervision visits not performed"]
[null,"Ma11","√","Supervision actions recommended",null,{"$f":"'M&E'!I467","v":7},{"$f":"'M&E'!J467","v":3},{"$f":"'M&E'!L467","v":0},{"$f":"'M&E'!M467","v":0}]
[null,"Ma12","√","Supervision recommendations past due",{"$f":"Comments!K27","v":0},{"$f":"'M&E'!I468","v":2},{"$f":"'M&E'!J468","v":2},{"$f":"'M&E'!L468","v":0},{"$f":"'M&E'!M468","v":0}]
[null,"Ma13","√","Programmatic reports planned",null,{"$f":"'M&E'!I469","v":4},{"$f":"'M&E'!J469","v":5},{"$f":"'M&E'!L469","v":0},{"$f":"'M&E'!M469","v":0}]
[null,"Ma14","√","Programmatic reports past due",{"$f":"Comments!K26","v":0},{"$f":"'M&E'!I470","v":2},{"$f":"'M&E'!J470","v":4},{"$f":"'M&E'!L470","v":0},{"$f":"'M&E'!M470","v":0}]
[null,"Ma15","X","Key positions planned"]
[null,"Ma16","X","Key positions open"]
[null,"Ma17","X","CPs fulfilled"]
[null,"Ma18","X","CPs not fulfilled but still within deadline"]
[null,"Ma19","X","CPs not fulfilled and past the deadline"]
[null,"Ma20","X","TBA + SC fulfilled"]
[null,"Ma21","X","TBA + SC not fulfilled but still wiithin deadline"]
[null,"Ma22","X","TBA + SC not fulfilled and past the deadline"]
[null,"Ma23","X","Number of OIG directives fulfilled"]
[null,"Ma24","X","OIG directives not fulfilled and still within deadline"]
[null,"Ma25","X","OIG directives not fulfilled and past deadline"]
[null,"PS26","X","# of health products ordered with a purchase order "]
[null,"PS27","X","# of health products ordered and delivered according to procurement plan"]
[null,"PS28","X","# of product quality control tests performed"]
[null,"PS29","X","# of product quality control tests failed"]
[null,"PS30","X","Value of emergency orders"]
[null,"PS31","X","# of treatment sites which placed orders"]
[null,"PS32","X","# of treatment sites which did not receive orders in full and on time"]
[null,"PS33","X","# of sites providing treatment services"]
[null,"PS34","X","# of sites providing treatment services that have stock-outs"]
[null,"PS35","√","Actual stock level - PS39 - Product 1: Efavirenz, 600 mg, 30 tablets",null,{"$f":"'M&E'!I491","v":11},{"$f":"'M&E'!J491","v":9},{"$f":"'M&E'!L491","v":0},{"$f":"'M&E'!M491","v":0}]
[null,"PS36","√","Actual stock level - PS40 - Product 2: Efavirenz, 200 mg, 90 capsules",null,{"$f":"'M&E'!I492","v":12},{"$f":"'M&E'!J492","v":8},{"$f":"'M&E'!L492","v":0},{"$f":"'M&E'!M492","v":0}]
[null,"PS37","√","Actual stock level - PS41 - Product 3: TDF/3TC, 300/300 mg, 30 tablets",null,{"$f":"'M&E'!I493","v":13},{"$f":"'M&E'!J493","v":7},{"$f":"'M&E'!L493","v":0},{"$f":"'M&E'!M493","v":0}]
[null,"PS38","√","Actual stock level - PS42 - Product 4: 3TC, 10 mg/ml, oral solution 240 ml",null,{"$f":"'M&E'!I494","v":14},{"$f":"'M&E'!J494","v":6},{"$f":"'M&E'!L494","v":0},{"$f":"'M&E'!M494","v":0}]
[null,"PS39","X","Actual stock level - PS43 - Product 5: 3TC/AZT/NVP, 150/300/200 mg, 60 tabletas"]
[null,"PS40","X","Actual stock level - PS44 - Product 6: ABC, 20 mg/ml, solución oral 240 ml"]
[null,"PS41","X","Actual stock level - PS45 - Product 7: 3TC/AZT, 150/300 mg, 60 tabletas"]
[null,"PS42","X","Actual stock level - PS46 - Product 8: 3TC/AZT/NVP, 30/60/50 mg, Disp. 60 tabletas"]
[null,"PS43","X","Actual stock level - PS47 - Product 9: AZT, 10 mg/ml, solución oral 240 ml"]
[null,"PS44","X","Actual stock level - PS48 - Product 10: LOP/RIT, 200/50 mg, 120 tabletas"]
[null,"PS45","X","Actual stock level - PS49 - Product 11: LOP/RIT, 80/20 mg/ml, solución oral 160 ml"]
[null,"PS46","X","Actual stock level - PS50 - Product 12: ATV/RTV, 300/100 mg, 30 cápsulas"]
[null,"PS47","X","Actual stock level - PS51 - Product 13: Raltegravir, 400 mg, 60 tabletas"]
[null,"PS48","X","Actual stock level - PS52 - Product 14: ABC, 300 mg, 60 tabletas"]
[null,"PS49","X","Actual stock level - PS53 - Product 15: Darunavir, 300 mg, 120 tabletas"]
[null,"PS50","X","Actual stock level - PS54 - Product 16: Nevirapine, 200 mg, 60 tabletas"]
[null,"PS51","X","Actual stock level - PS55 - Product 17: ABC/3TC, 600/300 mg, 30 tabletas"]
[null,"PS52","X","Actual stock level - PS56 - Product 18: DDI, 400 mg, 30 cápsulas"]
[null,"PS53","X","Actual stock level - PS57 - Product 19: HIV Rapid Test: Screening "]
[null,"PS54","X","Actual stock level - PS58 - Product 20: HIV Rapid Test: Confirmatory 1"]
[null,"PS55","X","# of sites expected to report on stocks"]
[null,"PS56","X","# of sites with stock reports past due"]
[null,"PS57","X","Pharma Budget"]
[null,"PS58","X","Pharma expenditures"]
[null,"PS59","X","Pharma commitment"]
[null,"PS60","X","Health Products + Equipment Budget"]
[null,"PS61","X","Health Products+ equipment expenditures"]
[null,"PS62","X","Health Products + equipment commitment"]
[null,"PS63","X","PSM Cost Budget"]
[null,"PS64","X","PSM Costs Expenditures"]
[null,"PS65","X","PSM Costs commitment"]
[null,"Pr66","X","1.1: # empresas e instit. locales con iniciativas políticas discriminatorias relacionados con el VIH Target"]
[null,"Pr67","X","1.1: # empresas e instit. locales con iniciativas políticas discriminatorias relacionados con el VIH Actual"]
[null,"Pr68","√","# PLHIV that initiated ARV with CD4 count <200 Target",null,{"$f":"'M&E'!M26","v":602},{"$f":"'M&E'!Q26","v":630},{"$f":"'M&E'!U26","v":0},{"$f":"'M&E'!Y26","v":0}]
[null,"Pr69","√","# PLHIV that initiated ARV with CD4 count <200 Actual",{"$f":"Comments!K29","v":0},{"$f":"'M&E'!L26","v":600},{"$f":"'M&E'!P26","v":600},{"$f":"'M&E'!T26","v":0},{"$f":"'M&E'!X26","v":0}]
[null,"Pr70","X","KP-3b: % personas trans sometido a pruebas de VIH y conocen los resultados  Target"]
[null,"Pr71","X","KP-3b: % personas trans sometido a pruebas de VIH y conocen los resultados  Actual"]
[null,"Pr72","√","# new HIV+ enrolled in care services Target",null,{"$f":"'M&E'!L30","v":124},{"$f":"'M&E'!P30","v":124},{"$f":"'M&E'!T30","v":0},{"$f":"'M&E'!X30","v":0}]
[null,"Pr73","√","# new HIV+ enrolled in care services Actual",{"$f":"Comments!K30","v":0},{"$f":"'M&E'!M30","v":110},{"$f":"'M&E'!Q30","v":124},{"$f":"'M&E'!U30","v":0},{"$f":"'M&E'!Y30","v":0}]
[null,"Pr74","√","# aged 10-24 yrs reached by HIV life skills ed. in school  Target",null,{"$f":"'M&E'!L32","v":950},{"$f":"'M&E'!P32","v":800},{"$f":"'M&E'!T32","v":0},{"$f":"'M&E'!X32","v":0}]
[null,"Pr75","√","# aged 10-24 yrs reached by HIV life skills ed. in school  Actual",{"$f":"Comments!K31","v":0},{"$f":"'M&E'!M32","v":920},{"$f":"'M&E'!Q32","v":800},{"$f":"'M&E'!U32","v":0},{"$f":"'M&E'!Y32","v":0}]
[null,"Pr76","X","KP-3e: % MVS residentes en bateyes que se han sometido a una prueba del VIH y conocen los resultados  Target"]
[null,"Pr77","X","KP-3e: % MVS residentes en bateyes que se han sometido a una prueba del VIH y conocen los resultados  Actual"]
[null,"Pr78","X","TCS-1: % adultos y niños que reciben TARV que viven con el VIH * Target"]
[null,"Pr79","X","TCS-1: % adultos y niños que reciben TARV que viven con el VIH * Actual"]
[null,"Pr80","X","TCS-2: % personas que viven con VIH  que han iniciaron ARV con un recuento de CD4 de <200 células/mm3 Target"]
[null,"Pr81","X","TCS-2: % personas que viven con VIH  que han iniciaron ARV con un recuento de CD4 de <200 células/mm3 Actual"]
[null,"Pr82","X","TCS-3: % adultos y niños que han iniciado TARV con una carga viral indetectable a 12 meses (<1000 copias/ml)  Target"]
[null,"Pr83","X","TCS-3: % adultos y niños que han iniciado TARV con una carga viral indetectable a 12 meses (<1000 copias/ml)  Actual"]
[null,"Pr84","X","TB/HIV-2: % pacientes seropositivos con TB registrados que han recibido TARV durante el tratamiento de la TB Target"]
[null,"Pr85","X","TB/HIV-2: % pacientes seropositivos con TB registrados que han recibido TARV durante el tratamiento de la TB Actual"]
[null,"Pr86","X","2.5: #  unidades notificantes (unidades notificadoras) informar oportunamente a través del SUME Target"]
[null,"Pr87","X","2.5: #  unidades notificantes (unidades notificadoras) informar oportunamente a través del SUME Actual"]
[null,"Pr88","X","2.5: %  unidades notificantes (unidades notificadoras) informar oportunamente a través del SUME Target"]
[null,"Pr89","X","2.5: %  unidades notificantes (unidades notificadoras) informar oportunamente a través del SUME Actual"]
[null,"Pr90","X"," Target"]
[null,"Pr91","X","0 Actual"]
[null,"Pr92","X"," Target"]
[null,"Pr93","X","0 Actual"]
[null,"Pr94","X","# HIV KPs reached with individual and/or smaller group package Target"]
[null,"Pr95","X","# HIV KPs reached with individual and/or smaller group package Actual"]
[null,"Pr96","X","# KPs tested who know their results Target"]
[null,"Pr97","X","# KPs tested who know their results Actual"]
[null,"Pr98","X","# of needles and syringes distributed per PWID per year Target"]
[null,"Pr99","X","# of needles and syringes distributed per PWID per year Actual"]
[null,"Pr100","X","# recv'g OST for at least 6 mths  Target"]
[null,"Pr101","X","# recv'g OST for at least 6 mths  Actual"]
[null,"Pr102","X","# aged 15+ yrs tested and with known HIV result  Target"]
[null,"Pr103","X","# aged 15+ yrs tested and with known HIV result  Actual"]
[null,"Pr104","X","# of targeted pop. reached through community outreach with std HIV prevention  Target"]
[null,"Pr105","X","# of targeted pop. reached through community outreach with std HIV prevention  Actual"]
[null,"Pr106","X","# new HIV+ enrolled in care services Target"]
[null,"Pr107","X","# new HIV+ enrolled in care services Actual"]
[null,"Pr108","X","  # male circumcisions performed per national stds  Target"]
[null,"Pr109","X","  # male circumcisions performed per national stds  Actual"]
[null,"Pr110","X","# aged 10-24 yrs reached by HIV life skills ed. in school  Target"]
[null,"Pr111","X","# aged 10-24 yrs reached by HIV life skills ed. in school  Actual"]
[null,"Pr112","X","# HMIS or other reporting units submitting timely reports as per national guidelines Target"]
[null,"Pr113","X","# HMIS or other reporting units submitting timely reports as per national guidelines Actual"]
[null,"Pr114","X","# OVCs 0-17 yrs whose HHs received free basic support  Target"]
[null,"Pr115","X","# OVCs 0-17 yrs whose HHs received free basic support  Actual"]
[null,"Pr116","X","# notified cases of bacteriologically confirmed TB Target"]
[null,"Pr117","X","# notified cases of bacteriologically confirmed TB Actual"]
[null,"Pr118","X","# notified cases of all forms of TB  Target"]
[null,"Pr119","X","# notified cases of all forms of TB  Actual"]
[null,"Pr120","X","Tx success rate for TB patients with all forms of TB Target"]
[null,"Pr121","X","Tx success rate for TB patients with all forms of TB Actual"]
[null,"Pr122","X","Tx success rate for TB patients with bacteriologically confirmed TB Target"]
[null,"Pr123","X","Tx success rate for TB patients with bacteriologically confirmed TB Actual"]
[null,"Pr124","X","# labs w/ smear micro showing adequate EQA Target"]
[null,"Pr125","X","# labs w/ smear micro showing adequate EQA Actual"]
[null,"Pr126","X","# units reporting no stock-outs of TB drugs on last day of quarter Target"]
[null,"Pr127","X","# units reporting no stock-outs of TB drugs on last day of quarter Actual"]
[null,"Pr128","X","# children < 5 yrs exposed to TB who started IPT Target"]
[null,"Pr129","X","# children < 5 yrs exposed to TB who started IPT Actual"]
[null,"Pr130","X","# TB cases (all forms) notified w/in KPs and high-risk groups Target"]
[null,"Pr131","X","# TB cases (all forms) notified w/in KPs and high-risk groups Actual"]
[null,"Pr132","X","# notified TB cases (all forms) contributed by non-NTP providers  Target"]
[null,"Pr133","X","# notified TB cases (all forms) contributed by non-NTP providers  Actual"]
[null,"Pr134","X","# previously treated TB patients receiving DST (bacteriologically+ only) Target"]
[null,"Pr135","X","# previously treated TB patients receiving DST (bacteriologically+ only) Actual"]
[null,"Pr136","X","# cases bacteriologically confirmed RR-TB and/or MDR-TB notified Target"]
[null,"Pr137","X","# cases bacteriologically confirmed RR-TB and/or MDR-TB notified Actual"]
[null,"Pr138","X","# cases bac confirmed RR-TB and/or MDR-TB that began 2d-line Tx Target"]
[null,"Pr139","X","# cases bac confirmed RR-TB and/or MDR-TB that began 2d-line Tx Actual"]
[null,"Pr140","X","# presumptive cases \nRR-TB and/or MDR-TB that began 2d-line Tx Target"]
[null,"Pr141","X","# presumptive cases \nRR-TB and/or MDR-TB that began 2d-line Tx Actual"]
[null,"Pr142","X","# cases w/ RR-TB and/or MDR-TB starting on MDR-TB Tx lost  to follow-up at 6 mths Target"]
[null,"Pr143","X","# cases w/ RR-TB and/or MDR-TB starting on MDR-TB Tx lost  to follow-up at 6 mths Actual"]
[null,"Pr144","X","# DST labs showing adequate performance on EQA Target"]
[null,"Pr145","X","# DST labs showing adequate performance on EQA Actual"]
[null,"Pr146","X","# TB patients w/ known HIV status Target"]
[null,"Pr147","X","# TB patients w/ known HIV status Actual"]
[null,"Pr148","X","# HIV+  TB patients given ART during TB Tx Target"]
[null,"Pr149","X","# HIV+  TB patients given ART during TB Tx Actual"]
[null,"Pr150","X","# HIV+ patients screened for TB in HIV care/Tx settings Target"]
[null,"Pr151","X","# HIV+ patients screened for TB in HIV care/Tx settings Actual"]
[null,"Pr152","X","# HIV+ patients newly enrolled in HIV care starting IPT Target"]
[null,"Pr153","X","# HIV+ patients newly enrolled in HIV care starting IPT Actual"]
[null,"Pr154","X","# HMIS units/other reporting units submitting timely reports per national guidelines Target"]
[null,"Pr155","X","# HMIS units/other reporting units submitting timely reports per national guidelines Actual"]
[null,"Pr156","X","Proportion targeted risk groups receiving ITNs (pregnant women) Target"]
[null,"Pr157","X","Proportion targeted risk groups receiving ITNs (pregnant women) Actual"]
[null,"Pr158","X","Proportion targeted risk groups receiving ITNs (children < 5 yrs) Target"]
[null,"Pr159","X","Proportion targeted risk groups receiving ITNs (children < 5 yrs) Actual"]
[null,"Pr160","X","Proportion targeted risk groups receiving ITNs (other risk group) Target"]
[null,"Pr161","X","Proportion targeted risk groups receiving ITNs (other risk group) Actual"]
[null,"Pr162","X","# population at risk potentially covered by LLINs distributed  Target"]
[null,"Pr163","X","# population at risk potentially covered by LLINs distributed  Actual"]
[null,"Pr164","X","# LLINs distributed through mass campaign and continuous distribution Target"]
[null,"Pr165","X","# LLINs distributed through mass campaign and continuous distribution Actual"]
[null,"Pr166","X","# HHs in targeted areas that received IRS in reporting period Target"]
[null,"Pr167","X","# HHs in targeted areas that received IRS in reporting period Actual"]
[null,"Pr168","X","Proportion of population protected by IRS in last 12 mths Target"]
[null,"Pr169","X","Proportion of population protected by IRS in last 12 mths Actual"]
[null,"Pr170","X","# suspected malaria cases recv'g parasitological test (by pub-sec health facilities) Target"]
[null,"Pr171","X","# suspected malaria cases recv'g parasitological test (by pub-sec health facilities) Actual"]
[null,"Pr172","X","# suspected malaria cases recv'g parasitological test (by private-sector sites)  Target"]
[null,"Pr173","X","# suspected malaria cases recv'g parasitological test (by private-sector sites)  Actual"]
[null,"Pr174","X","# suspected malaria cases recv'g parasitological test (in the community)  Target"]
[null,"Pr175","X","# suspected malaria cases recv'g parasitological test (in the community)  Actual"]
[null,"Pr176","X","# confirmed malaria cases recv'g 1st-line Tx per national policy (by pub-sec health facilities) Target"]
[null,"Pr177","X","# confirmed malaria cases recv'g 1st-line Tx per national policy (by pub-sec health facilities) Actual"]
[null,"Pr178","X","# confirmed malaria cases recv'g 1st-line Tx per national policy (by private-sector sites) Target"]
[null,"Pr179","X","# confirmed malaria cases recv'g 1st-line Tx per national policy (by private-sector sites) Actual"]
[null,"Pr180","X","# confirmed malaria cases recv'g 1st-line Tx per national policy (in the community) Target"]
[null,"Pr181","X","# confirmed malaria cases recv'g 1st-line Tx per national policy (in the community) Actual"]
[null,"Pr182","X","# estimated (presumed and confirmed) malaria cases that rec'd 1st-line Tx at pub-sec facility Target"]
[null,"Pr183","X","# estimated (presumed and confirmed) malaria cases that rec'd 1st-line Tx at pub-sec facility Actual"]
[null,"Pr184","X","# estimated (presumed and confirmed) malaria cases that rec'd 1st-line Tx at private-sector sites Target"]
[null,"Pr185","X","# estimated (presumed and confirmed) malaria cases that rec'd 1st-line Tx at private-sector sites Actual"]
[null,"Pr186","X","# estimated (presumed and confirmed) malaria cases that rec'd 1st-line Tx in the community  Target"]
[null,"Pr187","X","# estimated (presumed and confirmed) malaria cases that rec'd 1st-line Tx in the community  Actual"]
[null,"Pr188","X","# HF w/o stock-outs of key commodities Target"]
[null,"Pr189","X","# HF w/o stock-outs of key commodities Actual"]
[null,"Pr190","X","# CHW w/o stock-outs of key commodities Target"]
[null,"Pr191","X","# CHW w/o stock-outs of key commodities Actual"]
[null,"Pr192","X","# women attending ANC recv'g  ≥ 3 doses malaria IPT Target"]
[null,"Pr193","X","# women attending ANC recv'g  ≥ 3 doses malaria IPT Actual"]
[null,"Pr194","X","# confirmed cases fully investigated Target"]
[null,"Pr195","X","# confirmed cases fully investigated Actual"]
[null,"Pr196","X","# malaria foci fully investigated & registered Target"]
[null,"Pr197","X","# malaria foci fully investigated & registered Actual"]
[null,"Pr198","X","# HMIS units/other reporting units submitting timely reports per national guidelines Target"]
[null,"Pr199","X","# HMIS units/other reporting units submitting timely reports per national guidelines Actual"]
[null,"Pr200","X","# facility reports received over reports expected  Target"]
[null,"Pr201","X","# facility reports received over reports expected  Actual"]
[null,"Pr202","X","# HFs per 10,000 population  Target"]
[null,"Pr203","X","# HFs per 10,000 population  Actual"]
[null,"Pr204","X","# outpatient visits per 10,000 population Target"]
[null,"Pr205","X","# outpatient visits per 10,000 population Actual"]
[null,"Pr206","X","# health workers per 10,000 population  Target"]
[null,"Pr207","X","# health workers per 10,000 population  Actual"]
[null,"Pr208","X","# CHWs per 10,000 Target"]
[null,"Pr209","X","# CHWs per 10,000 Actual"]
[null,"Pr210","X","Distribution of health workers (by occupation/specialization)  Target"]
[null,"Pr211","X","Distribution of health workers (by occupation/specialization)  Actual"]
[null,"Pr212","X","Distribution of health workers (by region) Target"]
[null,"Pr213","X","Distribution of health workers (by region) Actual"]
[null,"Pr214","X","Distribution of health workers (by place of work) Target"]
[null,"Pr215","X","Distribution of health workers (by place of work) Actual"]
[null,"Pr216","X","Distribution of health workers (by sex) Target"]
[null,"Pr217","X","Distribution of health workers (by sex) Actual"]
[null,"Pr218","X","# health workers newly recruited at PHCs within 12 mths Target"]
[null,"Pr219","X","# health workers newly recruited at PHCs within 12 mths Actual"]
[null,"Pr220","X","Annual retention rate of PHC service providers  Target"]
[null,"Pr221","X","Annual retention rate of PHC service providers  Actual"]
[null,"Pr222","X","% HF reporting no stock-outs of essential medicines Target"]
[null,"Pr223","X","% HF reporting no stock-outs of essential medicines Actual"]
[null,"Pr224","X","% HMIS units/other reporting units submitting timely reports Target"]
[null,"Pr225","X","% HMIS units/other reporting units submitting timely reports Actual"]
[null,"Pr226","X","% deaths registered among total deaths for same period and geographic region Target"]
[null,"Pr227","X","% deaths registered among total deaths for same period and geographic region Actual"]
[null,"Pr228","X","Govt. expenditure on health as % of general govt. expenditure  Target"]
[null,"Pr229","X","Govt. expenditure on health as % of general govt. expenditure  Actual"]
[null,"Pr230","X","# new CHW recruited in past 12 mths Target"]
[null,"Pr231","X","# new CHW recruited in past 12 mths Actual"]
[null,"Pr232","X","Annual retention rate of CBO service providers Target"]
[null,"Pr233","X","Annual retention rate of CBO service providers Actual"]
[{"$nulls":3},"Checksum",null,0,0,0,0,0,0,0,0,0,0,0,0]

{"sheet":"Menu","index":1,"n_rows":5,"n_cols":11,"rows_kept":5,"merged":[[2,0,3,4],[2,5,3,5]]}
[]
["Menu",{"$f":"Translations!A3","v":"Hello"}]
[{"$f":"Translations!A5","v":"SR Management Tool"},{"$nulls":4},"v1.0  24Apr17",{"$nulls":4},{"$f":"IF(Setup!H8=\"\",\"\",Setup!H8)","v":"Global Associates NGO"}]
[{"$nulls":10},{"$f":"IF(Setup!H9=\"\",\"\",Setup!H9)","v":"For AIDS mitigation and support of affected populations"}]
[{"$f":"IF(Setup!H11=\"\",\"\",Setup!H11)","v":"Direct Gender Partnership (DGP)"},{"$nulls":9},{"$f":"IF(Setup!H10=\"\",\"\",Setup!H10)","v":""}]

{"sheet":"Setup","index":2,"n_rows":102,"n_cols":78,"rows_kept":102,"hidden":true,"merged":[[2,20,2,21],[2,39,2,49],[2,51,2,62],[2,64,3,64],[3,32,3,35],[3,51,3,58],[5,6,5,7],[5,9,5,10],[5,12,5,13],[5,15,6,15],[5,16,6,16],[5,17,5,18],[5,20,6,20],[5,21,6,21],[5,22,5,24],[5,26,5,30],[5,39,5,43],[5,45,5,49],[5,61,5,62],[5,67,5,70],[6,67,7,67],[6,68,7,68],[6,69,6,70],[6,74,6,77],[7,6,9,6],[7,64,9,64],[10,6,11,6],[10,7,11,7],[12,32,12,35],[15,32,15,35],[16,6,17,6],[16,7,17,7],[18,6,25,6],[18,7,25,7],[26,32,27,35]]}
[]
["Setup"]
[{"$nulls":3},{"$f":"Translations!A9","v":"Initial setup"},{"$nulls":16},{"$f":"Translations!A353","v":"Changes on Indicator Type require execute \"Link to the PR Dashboard\" again"},{"$nulls":16},{"$f":"Translations!A363","v":"Changes on initial period require execute \"Link to the PR Dashboard\" again"},null,"PARA USO INTERNO DE LA APLICACIÓN",{"$nulls":11},"Control de los Cambios Realizados desde la Ultima Vinculación",{"$nulls":12},"El % Logro Total se Calculará para las Lineas que no sean del Tipo Indicado más abajo"]
[{"$nulls":32},{"$f":"Translations!A27 & \" \" & Translations!A214","v":"10. Assign months to quarters (current sheets per quarter)"},{"$nulls":6},"Vinculado?",1,{"$nulls":10},"Distribución de los Meses por Trimestres",{"$nulls":7},{"$f":"BB13+BD13+BF13+BH13","v":0},null,"En el Período de Inicio",{"$f":"IF(BJ6<>AL7,1,0)","v":0}]
[null,null,{"$f":"IF(ISBLANK(B8),0,1)","v":1},"Total",{"$f":"SUM(E7:E15)","v":8},{"$nulls":4},{"$f":"COUNTA($K$8:$K$23)","v":2},"Total",null,{"$f":"COUNTA(N8:N37)","v":1},"Total ",null,{"$f":"COUNTA(P8:P37)","v":1},{"$f":"COUNTA(Q8:Q37)","v":1},{"$f":"COUNTA(R8:R22)","v":3},"Total ",null,{"$f":"COUNTA(U8:U22)","v":3},{"$f":"COUNTA(V8:V22)","v":3},"Total",{"$f":"COUNTA(X8:X9)","v":2},{"$f":"COUNTA(Y8:Y9)","v":2},null,"Total",{"$f":"COUNTA(AB8:AB19)","v":12},null,"Total",{"$f":"COUNTA(AE8:AE13)","v":3},null,{"$f":" 6 - COUNTBLANK(AG7:AG12)","v":3},{"$f":" 6 - COUNTBLANK(AH7:AH12)","v":3},3,3,null,{"$f":"COUNTA(AL7:AL7)","v":1}]
[null,{"$f":"Translations!A15","v":"Next steps"},null,{"$f":"Translations!A16","v":"Status"},null,null,{"$f":"Translations!A17","v":"1. Input general data"},null,null,{"$f":"B8","v":"2. Objectives according to the performance framework"},null,null,{"$f":"Translations!A20","v":"4. Define additional (non PRDB) programatic indicators"},null,null,{"$f":"IF(Lists!V9=1,Translations!A39,Translations!A367)","v":"Associated to objective"},{"$f":"Translations!$A$349","v":"Indicator type"},{"$f":"Translations!A40","v":"PR dashboard programatic indicators"},null,null,{"$f":"IF(Lists!V9=1,Translations!A39,Translations!A367)","v":"Associated to objective"},{"$f":"Translations!$A$349","v":"Indicator type"},{"$f":"Translations!A23","v":"7. Define thresholds"},{"$nulls":3},{"$f":"Translations!A26","v":"9. Change name of buttons"},{"$nulls":5},{"$f":"Translations!$A$48","v":"1st Quarter"},{"$f":"Translations!$A$49","v":"2nd Quarter"},{"$f":"Translations!$A$50","v":"3rd Quarter"},{"$f":"Translations!$A$51","v":"4th Quarter"},null,{"$f":"Translations!A28","v":"11. Define the initial period in the PR Dashboard"},null,{"$f":"Translations!A81","v":"PR Dashboard indicators"},{"$nulls":5},"Tabla de Conversión",{"$nulls":6},"AG","Check","AH","Check","AI","Check","AJ","Check",null,"01 - Period 1",null,null,{"$f":"\"2\"","v":"2"},null,null,{"$f":"Translations!A251","v":"13. Customize colors for indicators, activities and months"}]
[null,{"$f":"Translations!A17","v":"1. Input general data"},null,null,{"$f":"IF(AND($H$7<>\"\",$H$8<>\"\",$H$11<>\"\",$H$13<>\"\",$H$14<>\"\",$H$15<>\"\",$H$16<>\"\",$H$17<>\"\",$H$19<>\"\"),1,0)","v":1},null,{"$f":"Translations!A30","v":"Language"},"English",null,"ID",{"$f":"IF(Lists!V9=1,Translations!A37,Translations!A366)","v":"Description of objectives"},null,"ID",{"$f":"Translations!A38","v":"Indicator name"},{"$nulls":3},"ID",{"$f":"Translations!A38","v":"Indicator name"},{"$nulls":3},{"$f":"Translations!A41","v":"Aspect"},{"$f":"Translations!A42","v":"Red (<)"},{"$f":"Translations!A43","v":"Green (>=)"},null,{"$f":"Translations!A47","v":"Button"},{"$f":"Translations!A46","v":"Title"},null,{"$f":"Translations!A47","v":"Button"},{"$f":"Translations!A46","v":"Title"},null,"Month 1","Month 4","Month 7","Month 10",null,"01 - Period 1",null,"ObjectID","Linea DB","Nombre del Indicador Activo",{"$f":"Translations!A38","v":"Indicator name"},"Activo",null,"Comentario","Q1","Q2","Q3","Q4",null,7,"Month 1",{"$f":"IF(BA7<>INDIRECT(BA$6&$AZ7),1,0)","v":0},"Month 4",{"$f":"IF(BC7<>INDIRECT(BC$6&$AZ7),1,0)","v":0},"Month 7",{"$f":"IF(BE7<>INDIRECT(BE$6&$AZ7),1,0)","v":0},"Month 10",{"$f":"IF(BG7<>INDIRECT(BG$6&$AZ7),1,0)","v":0},{"$nulls":4},"1. Indicador  2. Actividad",null,null,{"$f":"Translations!A252","v":"Indicators"},{"$f":"Translations!A234","v":"Activity: Contributing"},{"$f":"Translations!A253","v":"Activity: Non-Contributing"},{"$nulls":4},"Meses de Cierre por Q"]
[null,"2. Objectives according to the performance framework",null,null,{"$f":"IF(AND(C5=1,J5>0),1,0)","v":1},null,{"$f":"Translations!A31","v":"Principal recepient name"},"Global Associates NGO",null,1,"Increase the social acceptance and integration of PLHIV",null,"OI01","# of new orphans and vulnerable children (0 - 17 yrs) benefiting from  services provided at OVC centers",{"$f":"\"[\"&M8&\"] \" &N8","v":"[OI01] # of new orphans and vulnerable children (0 - 17 yrs) benefiting from  services provided at OVC centers"},1,"1. Standard","Pr68","# PLHIV that initiated ARV with CD4 count <200 Target",{"$f":"\"[\"&R8&\"] \" &S8","v":"[Pr68] # PLHIV that initiated ARV with CD4 count <200 Target"},1,"2. Inverse",{"$f":"Translations!A44","v":"Programmatic"},60,90,null,{"$f":"Translations!A196","v":"Month 1"},"January",null,{"$f":"Translations!A208","v":"Annex 1"},{"$f":"Translations!A373","v":"SSR advances liquidation"},null,"Month 2","Month 5","Month 8","Month 11",{"$nulls":3},{"$f":"INDIRECT(\"'\"&NHoja(1)&\"'!B\"&$AO8)","v":"Fi4"},5,{"$f":"IF(AR8=\"X\",0,AQ8)","v":"Financial reports planned"},{"$f":"INDIRECT(\"'\"&NHoja(1)&\"'!D\"&$AO8)","v":"Financial reports planned"},{"$f":"INDIRECT(\"'\"&NHoja(1)&\"'!C\"&$AO8)","v":"√"},null,null,{"$f":"'M&E'!I460","v":4},{"$f":"'M&E'!J460","v":4},{"$f":"'M&E'!L460","v":0},{"$f":"'M&E'!M460","v":0},null,8,"Month 2",{"$f":"IF(BA8<>INDIRECT(BA$6&$AZ8),1,0)","v":0},"Month 5",{"$f":"IF(BC8<>INDIRECT(BC$6&$AZ8),1,0)","v":0},"Month 8",{"$f":"IF(BE8<>INDIRECT(BE$6&$AZ8),1,0)","v":0},"Month 11",{"$f":"IF(BG8<>INDIRECT(BG$6&$AZ8),1,0)","v":0},{"$nulls":4},"NOTA: es importante tener en cuenta el formato. Deber ser colocado como =\"2\" o =\"1\" para que lo reconozca",{"$nulls":4},{"$f":"Translations!A84","v":"Annual planning data"},{"$f":"Translations!A114","v":"Months"},{"$nulls":3},"Q1","Q2","Q3","Q4"]
[null,{"$f":"Translations!A19","v":"3. Insert the SR data entry sheet"},null,null,{"$f":"IF(UPPER(INDIRECT(\"'\" & NHoja(1) & \"'\" &\"!B1\"))=\"OBJECTID\",1,0)","v":1},null,null,"For AIDS mitigation and support of affected populations",null,2,"Strengthening of civil society organizations conducting HIV activities",null,"OI02",null,{"$f":"\"[\"&M9&\"] \" &N9","v":"[OI02] "},null,null,"Pr72","# new HIV+ enrolled in care services Target",{"$f":"\"[\"&R9&\"] \" &S9","v":"[Pr72] # new HIV+ enrolled in care services Target"},1,"3. Non-Cumulative",{"$f":"Translations!A309","v":"Expenditures"},60,90,null,{"$f":"Translations!A197","v":"Month 2"},"February",null,{"$f":"Translations!A209","v":"Annex 2"},{"$f":"Translations!A423","v":"SR data consolidation template"},null,"Month 3","Month 6","Month 9","Month 12",{"$nulls":3},"Fi5",6,{"$f":"IF(AR9=\"X\",0,AQ9)","v":"Financial reports overdue"},"Financial reports overdue","√",null,{"$f":"Comments!K25","v":0},{"$f":"'M&E'!I461","v":1},{"$f":"'M&E'!J461","v":1},{"$f":"'M&E'!L461","v":0},{"$f":"'M&E'!M461","v":0},null,9,"Month 3",{"$f":"IF(BA9<>INDIRECT(BA$6&$AZ9),1,0)","v":0},"Month 6",0,"Month 9",0,"Month 12",0,{"$nulls":14},{"$f":"IFERROR(INDEX(AG7:AG12,MATCH(REPT(\"z\",255),AG7:AG12)),\"\")","v":"Month 3"},{"$f":"IFERROR(INDEX(AH7:AH12,MATCH(REPT(\"z\",255),AH7:AH12)),\"\")","v":"Month 6"},"Month 9","Month 12"]
[null,{"$f":"Translations!A20","v":"4. Define additional (non PRDB) programatic indicators"},null,null,1,{"$nulls":4},3,null,null,"OI03",null,"[OI03] ",null,null,"Pr74","# aged 10-24 yrs reached by HIV life skills ed. in school  Target","[Pr74] # aged 10-24 yrs reached by HIV life skills ed. in school  Target",2,"1. Standard",{"$f":"Translations!A45","v":"K"},1E-4,null,null,{"$f":"Translations!A198","v":"Month 3"},"March",null,{"$f":"Translations!A210","v":"Annex 3"},{"$f":"Translations!A424","v":"SR annual plan"},{"$nulls":8},"Fi6",7,0,"Audit actions fulfilled","X",null,null,{"$f":"'M&E'!I462","v":0},{"$f":"'M&E'!J462","v":0},{"$f":"'M&E'!L462","v":0},{"$f":"'M&E'!M462","v":0},null,10,null,0,null,0,null,0,null,0]
[null,{"$f":"IF(Lists!V9=1,Translations!A21,Translations!A365)","v":"5. Associate indicators with objectives and indicator type"},null,null,{"$f":"IF(E9=1,IF(AND(R5=U5,R5=V5,M5=P5,M5=Q5),1,0),IF(AND(M5=P5,M5=Q5),1,0))","v":1},null,{"$f":"Translations!A32","v":"Subrecepient name"},"Direct Gender Partnership (DGP)",null,4,null,null,"OI04",null,"[OI04] ",{"$nulls":4},"[] ",{"$nulls":6},{"$f":"Translations!A199","v":"Month 4"},"April",null,{"$f":"Translations!A211","v":"Annex 4"},{"$nulls":9},"Fi7",8,{"$f":"IF(AR11=\"X\",0,AQ11)","v":0},"Outstanding audit actions within performance period","X",null,null,{"$f":"'M&E'!I463","v":0},{"$f":"'M&E'!J463","v":0},{"$f":"'M&E'!L463","v":0},{"$f":"'M&E'!M463","v":0},null,11,null,0,null,0,null,0,null,0]
[null,{"$f":"Translations!A22","v":"6. Enter annual planning data"},null,null,{"$f":"IF(Planning!A3>0,1,0)","v":1},{"$nulls":4},5,null,null,"OI05",null,"[OI05] ",{"$nulls":4},"[] ",{"$nulls":6},{"$f":"Translations!A200","v":"Month 5"},"May",null,{"$f":"Translations!A212","v":"Annex 5"},{"$nulls":9},"Fi8",9,0,"Outstanding audit actions past performance period","X",null,null,{"$f":"'M&E'!I464","v":0},{"$f":"'M&E'!J464","v":0},{"$f":"'M&E'!L464","v":0},{"$f":"'M&E'!M464","v":0},null,12,null,0,null,0,null,0,null,0]
[null,{"$f":"Translations!A23","v":"7. Define thresholds"},null,null,{"$f":"IF(X5+Y5<4,0,1)","v":1},null,{"$f":"Translations!A33","v":"Contract period"},"January  2016 - December 2016",null,6,null,null,"OI06",null,"[OI06] ",{"$nulls":4},"[] ",{"$nulls":6},{"$f":"Translations!A201","v":"Month 6"},"June",null,{"$f":"Translations!A213","v":"Annex 6"},null,null,{"$f":"Translations!A52","v":"Months must be selected without leaving empty spaces, in ascending order. The application will take the last month of every quarter as the closure one."},{"$nulls":6},{"$f":"INDIRECT(\"'\"&NHoja(1)&\"'!B\"&$AO13)","v":"Ma9"},10,0,"Supervision visits planned","X",null,null,{"$f":"'M&E'!I465","v":0},{"$f":"'M&E'!J465","v":0},{"$f":"'M&E'!L465","v":0},{"$f":"'M&E'!M465","v":0},null,"ZCheck",null,{"$f":"SUM(BB7:BB12)","v":0},null,{"$f":"SUM(BD7:BD12)","v":0},null,{"$f":"SUM(BF7:BF12)","v":0},null,{"$f":"SUM(BH7:BH12)","v":0}]
[null,{"$f":"Translations!A24","v":"8. Link to the PR Dashboard"},null,null,{"$f":"IF(AND(AO4=1,E9=1,(BH4+BK4)=0),1,0)","v":1},null,{"$f":"Translations!A34","v":"Grant number"},"DMR-202-G01-H-00",null,7,null,null,"OI07",null,"[OI07] ",{"$nulls":4},"[] ",{"$nulls":6},{"$f":"Translations!A202","v":"Month 7"},"July",{"$nulls":11},{"$f":"INDIRECT(\"'\"&NHoja(1)&\"'!B\"&$AO14)","v":"Ma10"},11,0,"Supervision visits not performed","X",null,null,{"$f":"'M&E'!I466","v":0},{"$f":"'M&E'!J466","v":0},{"$f":"'M&E'!L466","v":0},{"$f":"'M&E'!M466","v":0}]
[{"$nulls":6},{"$f":"Translations!A216","v":"Component"},"HIV / AIDS",null,8,null,null,"OI08",null,"[OI08] ",{"$nulls":4},"[] ",{"$nulls":6},{"$f":"Translations!A203","v":"Month 8"},"August",{"$nulls":11},"Ma11",12,"Supervision actions recommended","Supervision actions recommended","√",null,null,{"$f":"'M&E'!I467","v":7},{"$f":"'M&E'!J467","v":3},{"$f":"'M&E'!L467","v":0},{"$f":"'M&E'!M467","v":0}]
[null,{"$f":"Translations!A25","v":"Advanced setup"},{"$nulls":4},{"$f":"Translations!A222","v":"Currency"},"$ - USD",null,9,null,null,"OI09",null,"[OI09] ",{"$nulls":4},"[] ",{"$nulls":6},{"$f":"Translations!A204","v":"Month 9"},"September",{"$nulls":4},{"$f":"Translations!A156","v":"Set colors for \"Month\" buttons and tabs"},{"$nulls":6},"Ma12",13,"Supervision recommendations past due","Supervision recommendations past due","√",null,{"$f":"Comments!K27","v":0},{"$f":"'M&E'!I468","v":2},{"$f":"'M&E'!J468","v":2},{"$f":"'M&E'!L468","v":0},{"$f":"'M&E'!M468","v":0}]
[null,{"$f":"Translations!A26","v":"9. Change name of buttons"},null,null,{"$f":"IF(AB5=12,1,0)","v":1},null,{"$f":"Translations!A35","v":"Key population"},"Sex Workers - Migrants - Women",null,10,null,null,"OI10",null,"[OI10] ",{"$nulls":4},"[] ",{"$nulls":6},{"$f":"Translations!A205","v":"Month 10"},"October",{"$nulls":4},{"$f":"Translations!$A$48","v":"1st Quarter"},{"$f":"Translations!$A$49","v":"2nd Quarter"},{"$f":"Translations!$A$50","v":"3rd Quarter"},{"$f":"Translations!$A$51","v":"4th Quarter"},{"$nulls":3},"Ma13",14,"Programmatic reports planned","Programmatic reports planned","√",null,null,{"$f":"'M&E'!I469","v":4},{"$f":"'M&E'!J469","v":5},{"$f":"'M&E'!L469","v":0},{"$f":"'M&E'!M469","v":0}]
[null,{"$f":"Translations!A27","v":"10. Assign months to quarters"},null,null,{"$f":"IF(SUM(AG5:AJ5)>0,1,0)","v":1},{"$nulls":4},11,null,null,"OI11",null,"[OI11] ",{"$nulls":4},"[] ",{"$nulls":6},{"$f":"Translations!A206","v":"Month 11"},"November",{"$nulls":11},"Ma14",15,"Programmatic reports past due","Programmatic reports past due","√",null,{"$f":"Comments!K26","v":0},{"$f":"'M&E'!I470","v":2},{"$f":"'M&E'!J470","v":4},{"$f":"'M&E'!L470","v":0},{"$f":"'M&E'!M470","v":0}]
[null,{"$f":"Translations!A28","v":"11. Define the initial period in the PR Dashboard"},null,null,{"$f":"AL5","v":1},null,{"$f":"Translations!A36","v":"Details of programatic indicators"},"# PLHIV that initiated ARV with CD4 count <200\n# new HIV+ enrolled in care services \n# aged 10-24 yrs reached by HIV life skills ed. in school ",null,12,null,null,"OI12",null,"[OI12] ",{"$nulls":4},"[] ",{"$nulls":6},{"$f":"Translations!A207","v":"Month 12"},"December",{"$nulls":11},"Ma15",16,0,"Key positions planned","X",null,null,{"$f":"'M&E'!I471","v":0},{"$f":"'M&E'!J471","v":0},{"$f":"'M&E'!L471","v":0},{"$f":"'M&E'!M471","v":0}]
[null,{"$f":"Translations!A242","v":"12. Change the setup password"},null,null,1,{"$nulls":4},13,null,null,"OI13",null,"[OI13] ",{"$nulls":4},"[] ",{"$nulls":19},"Ma16",17,0,"Key positions open","X",null,null,{"$f":"'M&E'!I472","v":0},{"$f":"'M&E'!J472","v":0},{"$f":"'M&E'!L472","v":0},{"$f":"'M&E'!M472","v":0}]
[null,{"$f":"Translations!A251","v":"13. Customize colors for indicators, activities and months"},null,null,1,{"$nulls":4},14,null,null,"OI14",null,"[OI14] ",{"$nulls":4},"[] ",{"$nulls":19},"Ma17",18,0,"CPs fulfilled","X",null,null,{"$f":"'M&E'!I473","v":0},{"$f":"'M&E'!J473","v":0},{"$f":"'M&E'!L473","v":0},{"$f":"'M&E'!M473","v":0}]
[{"$nulls":9},15,null,null,"OI15",null,"[OI15] ",{"$nulls":4},"[] ",{"$nulls":19},"Ma18",19,0,"CPs not fulfilled but still within deadline","X",null,null,{"$f":"'M&E'!I474","v":0},{"$f":"'M&E'!J474","v":0},{"$f":"'M&E'!L474","v":0},{"$f":"'M&E'!M474","v":0}]
[null,"MENU",{"$nulls":7},16,null,null,"OI16",null,"[OI16] ",{"$nulls":24},"Ma19",20,0,"CPs not fulfilled and past the deadline","X",null,null,{"$f":"'M&E'!I475","v":0},{"$f":"'M&E'!J475","v":0},{"$f":"'M&E'!L475","v":0},{"$f":"'M&E'!M475","v":0}]
[{"$nulls":12},"OI17",null,"[OI17] ",{"$nulls":24},"Ma20",21,0,"TBA + SC fulfilled","X",null,null,{"$f":"'M&E'!I476","v":0},{"$f":"'M&E'!J476","v":0},{"$f":"'M&E'!L476","v":0},{"$f":"'M&E'!M476","v":0}]
[{"$nulls":12},"OI18",null,"[OI18] ",{"$nulls":24},"Ma21",22,0,"TBA + SC not fulfilled but still wiithin deadline","X",null,null,{"$f":"'M&E'!I477","v":0},{"$f":"'M&E'!J477","v":0},{"$f":"'M&E'!L477","v":0},{"$f":"'M&E'!M477","v":0}]
[{"$nulls":12},"OI19",null,"[OI19] ",{"$nulls":24},"Ma22",23,0,"TBA + SC not fulfilled and past the deadline","X",null,null,{"$f":"'M&E'!I478","v":0},{"$f":"'M&E'!J478","v":0},{"$f":"'M&E'!L478","v":0},{"$f":"'M&E'!M478","v":0}]
[{"$nulls":7},{"$f":"Translations!A255","v":"Note: use \"Alt\" + \"Enter\" keys to divide parragraphs"},{"$nulls":4},"OI20",null,"[OI20] ",{"$nulls":24},"Ma23",24,0,"Number of OIG directives fulfilled","X",null,null,{"$f":"'M&E'!I479","v":0},{"$f":"'M&E'!J479","v":0},{"$f":"'M&E'!L479","v":0},{"$f":"'M&E'!M479","v":0}]
[{"$nulls":12},"OI21",null,"[OI21] ",{"$nulls":24},"Ma24",25,0,"OIG directives not fulfilled and still within deadline","X",null,null,{"$f":"'M&E'!I480","v":0},{"$f":"'M&E'!J480","v":0},{"$f":"'M&E'!L480","v":0},{"$f":"'M&E'!M480","v":0}]
[{"$nulls":12},"OI22",null,"[OI22] ",{"$nulls":24},"Ma25",26,0,"OIG directives not fulfilled and past deadline","X",null,null,{"$f":"'M&E'!I481","v":0},{"$f":"'M&E'!J481","v":0},{"$f":"'M&E'!L481","v":0},{"$f":"'M&E'!M481","v":0}]
[{"$nulls":12},"OI23",null,"[OI23] ",{"$nulls":24},"PS26",27,0,"# of health products ordered with a purchase order ","X",null,null,{"$f":"'M&E'!I482","v":0},{"$f":"'M&E'!J482","v":0},{"$f":"'M&E'!L482","v":0},{"$f":"'M&E'!M482","v":0}]
[{"$nulls":12},"OI24",null,"[OI24] ",{"$nulls":24},"PS27",28,0,"# of health products ordered and delivered according to procurement plan","X",null,null,{"$f":"'M&E'!I483","v":0},{"$f":"'M&E'!J483","v":0},{"$f":"'M&E'!L483","v":0},{"$f":"'M&E'!M483","v":0}]
[{"$nulls":12},"OI25",null,"[OI25] ",{"$nulls":24},"PS28",29,0,"# of product quality control tests performed","X",null,null,{"$f":"'M&E'!I484","v":0},{"$f":"'M&E'!J484","v":0},{"$f":"'M&E'!L484","v":0},{"$f":"'M&E'!M484","v":0}]
[{"$nulls":12},"OI26",null,"[OI26] ",{"$nulls":24},"PS29",30,0,"# of product quality control tests failed","X",null,null,{"$f":"'M&E'!I485","v":0},{"$f":"'M&E'!J485","v":0},{"$f":"'M&E'!L485","v":0},{"$f":"'M&E'!M485","v":0}]
[{"$nulls":12},"OI27",null,"[OI27] ",{"$nulls":24},"PS30",31,0,"Value of emergency orders","X",null,null,{"$f":"'M&E'!I486","v":0},{"$f":"'M&E'!J486","v":0},{"$f":"'M&E'!L486","v":0},{"$f":"'M&E'!M486","v":0}]
[{"$nulls":12},"OI28",null,"[OI28] ",{"$nulls":24},"PS31",32,0,"# of treatment sites which placed orders","X",null,null,{"$f":"'M&E'!I487","v":0},{"$f":"'M&E'!J487","v":0},{"$f":"'M&E'!L487","v":0},{"$f":"'M&E'!M487","v":0}]
[{"$nulls":12},"OI29",null,"[OI29] ",{"$nulls":24},"PS32",33,0,"# of treatment sites which did not receive orders in full and on time","X",null,null,{"$f":"'M&E'!I488","v":0},{"$f":"'M&E'!J488","v":0},{"$f":"'M&E'!L488","v":0},{"$f":"'M&E'!M488","v":0}]
[{"$nulls":12},"OI30",null,"[OI30] ",{"$nulls":24},"PS33",34,0,"# of sites providing treatment services","X",null,null,{"$f":"'M&E'!I489","v":0},{"$f":"'M&E'!J489","v":0},{"$f":"'M&E'!L489","v":0},{"$f":"'M&E'!M489","v":0}]
[{"$nulls":39},"PS34",35,0,"# of sites providing treatment services that have stock-outs","X",null,null,{"$f":"'M&E'!I490","v":0},{"$f":"'M&E'!J490","v":0},{"$f":"'M&E'!L490","v":0},{"$f":"'M&E'!M490","v":0}]
[{"$nulls":39},"PS35",36,"Actual stock level - PS39 - Product 1: Efavirenz, 600 mg, 30 tablets","Actual stock level - PS39 - Product 1: Efavirenz, 600 mg, 30 tablets","√",null,null,{"$f":"'M&E'!I491","v":11},{"$f":"'M&E'!J491","v":9},{"$f":"'M&E'!L491","v":0},{"$f":"'M&E'!M491","v":0}]
[{"$nulls":39},"PS36",37,"Actual stock level - PS40 - Product 2: Efavirenz, 200 mg, 90 capsules","Actual stock level - PS40 - Product 2: Efavirenz, 200 mg, 90 capsules","√",null,null,{"$f":"'M&E'!I492","v":12},{"$f":"'M&E'!J492","v":8},{"$f":"'M&E'!L492","v":0},{"$f":"'M&E'!M492","v":0}]
[{"$nulls":39},"PS37",38,"Actual stock level - PS41 - Product 3: TDF/3TC, 300/300 mg, 30 tablets","Actual stock level - PS41 - Product 3: TDF/3TC, 300/300 mg, 30 tablets","√",null,null,{"$f":"'M&E'!I493","v":13},{"$f":"'M&E'!J493","v":7},{"$f":"'M&E'!L493","v":0},{"$f":"'M&E'!M493","v":0}]
[{"$nulls":39},"PS38",39,"Actual stock level - PS42 - Product 4: 3TC, 10 mg/ml, oral solution 240 ml","Actual stock level - PS42 - Product 4: 3TC, 10 mg/ml, oral solution 240 ml","√",null,null,{"$f":"'M&E'!I494","v":14},{"$f":"'M&E'!J494","v":6},{"$f":"'M&E'!L494","v":0},{"$f":"'M&E'!M494","v":0}]
[{"$nulls":39},"PS39",40,0,"Actual stock level - PS43 - Product 5: 3TC/AZT/NVP, 150/300/200 mg, 60 tabletas","X",null,null,{"$f":"'M&E'!I495","v":0},{"$f":"'M&E'!J495","v":0},{"$f":"'M&E'!L495","v":0},{"$f":"'M&E'!M495","v":0}]
[{"$nulls":39},"PS40",41,0,"Actual stock level - PS44 - Product 6: ABC, 20 mg/ml, solución oral 240 ml","X",null,null,{"$f":"'M&E'!I496","v":0},{"$f":"'M&E'!J496","v":0},{"$f":"'M&E'!L496","v":0},{"$f":"'M&E'!M496","v":0}]
[{"$nulls":39},"PS41",42,0,"Actual stock level - PS45 - Product 7: 3TC/AZT, 150/300 mg, 60 tabletas","X",null,null,{"$f":"'M&E'!I497","v":0},{"$f":"'M&E'!J497","v":0},{"$f":"'M&E'!L497","v":0},{"$f":"'M&E'!M497","v":0}]
[{"$nulls":39},"PS42",43,0,"Actual stock level - PS46 - Product 8: 3TC/AZT/NVP, 30/60/50 mg, Disp. 60 tabletas","X",null,null,{"$f":"'M&E'!I498","v":0},{"$f":"'M&E'!J498","v":0},{"$f":"'M&E'!L498","v":0},{"$f":"'M&E'!M498","v":0}]
[{"$nulls":39},"PS43",44,0,"Actual stock level - PS47 - Product 9: AZT, 10 mg/ml, solución oral 240 ml","X",null,null,{"$f":"'M&E'!I499","v":0},{"$f":"'M&E'!J499","v":0},{"$f":"'M&E'!L499","v":0},{"$f":"'M&E'!M499","v":0}]
[{"$nulls":39},"PS44",45,0,"Actual stock level - PS48 - Product 10: LOP/RIT, 200/50 mg, 120 tabletas","X",null,null,{"$f":"'M&E'!I500","v":0},{"$f":"'M&E'!J500","v":0},{"$f":"'M&E'!L500","v":0},{"$f":"'M&E'!M500","v":0}]
[{"$nulls":39},"PS45",46,0,"Actual stock level - PS49 - Product 11: LOP/RIT, 80/20 mg/ml, solución oral 160 ml","X",null,null,{"$f":"'M&E'!I501","v":0},{"$f":"'M&E'!J501","v":0},{"$f":"'M&E'!L501","v":0},{"$f":"'M&E'!M501","v":0}]
[{"$nulls":39},"PS46",47,0,"Actual stock level - PS50 - Product 12: ATV/RTV, 300/100 mg, 30 cápsulas","X",null,null,{"$f":"'M&E'!I502","v":0},{"$f":"'M&E'!J502","v":0},{"$f":"'M&E'!L502","v":0},{"$f":"'M&E'!M502","v":0}]
[{"$nulls":39},"PS47",48,0,"Actual stock level - PS51 - Product 13: Raltegravir, 400 mg, 60 tabletas","X",null,null,{"$f":"'M&E'!I503","v":0},{"$f":"'M&E'!J503","v":0},{"$f":"'M&E'!L503","v":0},{"$f":"'M&E'!M503","v":0}]
[{"$nulls":39},"PS48",49,0,"Actual stock level - PS52 - Product 14: ABC, 300 mg, 60 tabletas",{"$f":"INDIRECT(\"'\"&NHoja(1)&\"'!C\"&$AO52)","v":"X"},null,null,{"$f":"'M&E'!I504","v":0},{"$f":"'M&E'!J504","v":0},{"$f":"'M&E'!L504","v":0},{"$f":"'M&E'!M504","v":0}]
[{"$nulls":39},"PS49",50,0,"Actual stock level - PS53 - Product 15: Darunavir, 300 mg, 120 tabletas","X",null,null,{"$f":"'M&E'!I505","v":0},{"$f":"'M&E'!J505","v":0},{"$f":"'M&E'!L505","v":0},{"$f":"'M&E'!M505","v":0}]
[{"$nulls":39},"PS50",51,0,"Actual stock level - PS54 - Product 16: Nevirapine, 200 mg, 60 tabletas","X",null,null,{"$f":"'M&E'!I506","v":0},{"$f":"'M&E'!J506","v":0},{"$f":"'M&E'!L506","v":0},{"$f":"'M&E'!M506","v":0}]
[{"$nulls":39},"PS51",52,0,"Actual stock level - PS55 - Product 17: ABC/3TC, 600/300 mg, 30 tabletas","X",null,null,{"$f":"'M&E'!I507","v":0},{"$f":"'M&E'!J507","v":0},{"$f":"'M&E'!L507","v":0},{"$f":"'M&E'!M507","v":0}]
[{"$nulls":39},"PS52",53,0,"Actual stock level - PS56 - Product 18: DDI, 400 mg, 30 cápsulas","X",null,null,{"$f":"'M&E'!I508","v":0},{"$f":"'M&E'!J508","v":0},{"$f":"'M&E'!L508","v":0},{"$f":"'M&E'!M508","v":0}]
[{"$nulls":39},"PS53",54,0,"Actual stock level - PS57 - Product 19: HIV Rapid Test: Screening ","X",null,null,{"$f":"'M&E'!I509","v":0},{"$f":"'M&E'!J509","v":0},{"$f":"'M&E'!L509","v":0},{"$f":"'M&E'!M509","v":0}]
[{"$nulls":39},"PS54",55,0,"Actual stock level - PS58 - Product 20: HIV Rapid Test: Confirmatory 1","X",null,null,{"$f":"'M&E'!I510","v":0},{"$f":"'M&E'!J510","v":0},{"$f":"'M&E'!L510","v":0},{"$f":"'M&E'!M510","v":0}]
[{"$nulls":39},"PS55",56,0,"# of sites expected to report on stocks","X",null,null,{"$f":"'M&E'!I511","v":0},{"$f":"'M&E'!J511","v":0},{"$f":"'M&E'!L511","v":0},{"$f":"'M&E'!M511","v":0}]
[{"$nulls":39},"PS56",57,0,"# of sites with stock reports past due","X",null,{"$f":"Comments!K28","v":0},{"$f":"'M&E'!I512","v":0},{"$f":"'M&E'!J512","v":0},{"$f":"'M&E'!L512","v":0},{"$f":"'M&E'!M512","v":0}]
[{"$nulls":39},"PS57",58,0,"Pharma Budget","X",null,null,{"$f":"'M&E'!I513","v":0},{"$f":"'M&E'!J513","v":0},{"$f":"'M&E'!L513","v":0},{"$f":"'M&E'!M513","v":0}]
[{"$nulls":39},"PS58",59,0,"Pharma expenditures","X",null,null,{"$f":"'M&E'!I514","v":0},{"$f":"'M&E'!J514","v":0},{"$f":"'M&E'!L514","v":0},{"$f":"'M&E'!M514","v":0}]
[{"$nulls":39},"PS59",60,0,"Pharma commitment","X",null,null,{"$f":"'M&E'!I515","v":0},{"$f":"'M&E'!J515","v":0},{"$f":"'M&E'!L515","v":0},{"$f":"'M&E'!M515","v":0}]
[{"$nulls":39},"PS60",61,0,"Health Products + Equipment Budget","X",null,null,{"$f":"'M&E'!I516","v":0},{"$f":"'M&E'!J516","v":0},{"$f":"'M&E'!L516","v":0},{"$f":"'M&E'!M516","v":0}]
[{"$nulls":39},"PS61",62,0,"Health Products+ equipment expenditures","X",null,null,{"$f":"'M&E'!I517","v":0},{"$f":"'M&E'!J517","v":0},{"$f":"'M&E'!L517","v":0},{"$f":"'M&E'!M517","v":0}]
[{"$nulls":39},"PS62",63,0,"Health Products + equipment commitment","X",null,null,{"$f":"'M&E'!I518","v":0},{"$f":"'M&E'!J518","v":0},{"$f":"'M&E'!L518","v":0},{"$f":"'M&E'!M518","v":0}]
[{"$nulls":39},"PS63",64,0,"PSM Cost Budget","X",null,null,{"$f":"'M&E'!I519","v":0},{"$f":"'M&E'!J519","v":0},{"$f":"'M&E'!L519","v":0},{"$f":"'M&E'!M519","v":0}]
[{"$nulls":39},"PS64",65,0,"PSM Costs Expenditures","X",null,null,{"$f":"'M&E'!I520","v":0},{"$f":"'M&E'!J520","v":0},{"$f":"'M&E'!L520","v":0},{"$f":"'M&E'!M520","v":0}]
[{"$nulls":39},"PS65",66,0,"PSM Costs commitment","X",null,null,{"$f":"'M&E'!I521","v":0},{"$f":"'M&E'!J521","v":0},{"$f":"'M&E'!L521","v":0},{"$f":"'M&E'!M521","v":0}]
[{"$nulls":39},"Fi1",2,{"$f":"IF(AR70=\"X\",0,AQ70)","v":"Budget PR => SR"},"Budget PR => SR","√",null,null,{"$f":"'M&E'!$L$235","v":{"v":504075,"d":"504,075.00"}},{"$f":"'M&E'!$P$235","v":{"v":615300,"d":"615,300.00"}},{"$f":"'M&E'!$T$235","v":{"v":0,"d":"0.00"}},{"$f":"'M&E'!$X$235","v":{"v":0,"d":"0.00"}}]
[{"$nulls":39},"Fi2",3,{"$f":"IF(AR71=\"X\",0,AQ71)","v":"Disbursement PR => SR"},"Disbursement PR => SR","√",null,null,{"$f":"'M&E'!$L$438","v":{"v":600000,"d":"600,000.00"}},{"$f":"'M&E'!$P$438","v":{"v":650000,"d":"650,000.00"}},{"$f":"'M&E'!$T$438","v":{"v":0,"d":"0.00"}},{"$f":"'M&E'!$X$438","v":{"v":0,"d":"0.00"}}]
[{"$nulls":39},"Fi3",4,"Expenditure","Expenditure","√",null,{"$f":"Comments!K24","v":0},{"$f":"'M&E'!$M$235","v":{"v":494925,"d":"494,925.00"}},{"$f":"'M&E'!$Q$235","v":{"v":617200,"d":"617,200.00"}},{"$f":"'M&E'!$U$235","v":{"v":0,"d":"0.00"}},{"$f":"'M&E'!$Y$235","v":{"v":0,"d":"0.00"}}]
[{"$nulls":39},{"$f":"R8","v":"Pr68"},{"$f":"VALUE(REPLACE(AN73,1,2,\"\"))+1","v":69},{"$f":"IF(AR73=\"X\",0,AQ73)","v":"# PLHIV that initiated ARV with CD4 count <200 Target"},{"$f":"S8","v":"# PLHIV that initiated ARV with CD4 count <200 Target"},{"$f":"IF(AQ73=0,\"X\",\"√\")","v":"√"},null,null,{"$f":"'M&E'!M26","v":{"v":602,"d":"602.00"}},{"$f":"'M&E'!Q26","v":{"v":630,"d":"630.00"}},{"$f":"'M&E'!U26","v":{"v":0,"d":"0.00"}},{"$f":"'M&E'!Y26","v":{"v":0,"d":"0.00"}}]
[{"$nulls":39},{"$f":"LEFT(AN73,2)&VALUE(REPLACE(AN73,1,2,\"\"))+1","v":"Pr69"},{"$f":"VALUE(REPLACE(AN74,1,2,\"\"))+1","v":70},"# PLHIV that initiated ARV wit: Actual",{"$f":"IF(AQ73=0,0,LEFT(AQ73,30) & \": \" & Translations!$A$215)","v":"# PLHIV that initiated ARV wit: Actual"},{"$f":"IF(AQ74=0,\"X\",\"√\")","v":"√"},null,{"$f":"Comments!K29","v":0},{"$f":"'M&E'!L26","v":{"v":600,"d":"600.00"}},{"$f":"'M&E'!P26","v":{"v":600,"d":"600.00"}},{"$f":"'M&E'!T26","v":{"v":0,"d":"0.00"}},{"$f":"'M&E'!X26","v":{"v":0,"d":"0.00"}}]
[{"$nulls":39},{"$f":"R9","v":"Pr72"},73,"# new HIV+ enrolled in care services Target",{"$f":"S9","v":"# new HIV+ enrolled in care services Target"},"√",null,null,{"$f":"'M&E'!L30","v":{"v":124,"d":"124.00"}},{"$f":"'M&E'!P30","v":{"v":124,"d":"124.00"}},{"$f":"'M&E'!T30","v":{"v":0,"d":"0.00"}},{"$f":"'M&E'!X30","v":{"v":0,"d":"0.00"}}]
[{"$nulls":39},{"$f":"LEFT(AN75,2)&VALUE(REPLACE(AN75,1,2,\"\"))+1","v":"Pr73"},74,"# new HIV+ enrolled in care se: Actual",{"$f":"IF(AQ75=0,0,LEFT(AQ75,30) & \": \" & Translations!$A$215)","v":"# new HIV+ enrolled in care se: Actual"},"√",null,{"$f":"Comments!K30","v":0},{"$f":"'M&E'!M30","v":{"v":110,"d":"110.00"}},{"$f":"'M&E'!Q30","v":{"v":124,"d":"124.00"}},{"$f":"'M&E'!U30","v":{"v":0,"d":"0.00"}},{"$f":"'M&E'!Y30","v":{"v":0,"d":"0.00"}}]
[{"$nulls":39},{"$f":"R10","v":"Pr74"},75,"# aged 10-24 yrs reached by HIV life skills ed. in school  Target",{"$f":"S10","v":"# aged 10-24 yrs reached by HIV life skills ed. in school  Target"},"√",null,null,{"$f":"'M&E'!L32","v":{"v":950,"d":"950.00"}},{"$f":"'M&E'!P32","v":{"v":800,"d":"800.00"}},{"$f":"'M&E'!T32","v":{"v":0,"d":"0.00"}},{"$f":"'M&E'!X32","v":{"v":0,"d":"0.00"}}]
[{"$nulls":39},{"$f":"LEFT(AN77,2)&VALUE(REPLACE(AN77,1,2,\"\"))+1","v":"Pr75"},76,"# aged 10-24 yrs reached by HI: Actual",{"$f":"IF(AQ77=0,0,LEFT(AQ77,30) & \": \" & Translations!$A$215)","v":"# aged 10-24 yrs reached by HI: Actual"},"√",null,{"$f":"Comments!K31","v":0},{"$f":"'M&E'!M32","v":{"v":920,"d":"920.00"}},{"$f":"'M&E'!Q32","v":{"v":800,"d":"800.00"}},{"$f":"'M&E'!U32","v":{"v":0,"d":"0.00"}},{"$f":"'M&E'!Y32","v":{"v":0,"d":"0.00"}}]
[{"$nulls":39},{"$f":"R11","v":0},{"$error":"#VALUE!"},0,{"$f":"S11","v":0},"X"]
[{"$nulls":39},{"$f":"LEFT(AN79,2)&VALUE(REPLACE(AN79,1,2,\"\"))+1","v":{"$error":"#VALUE!"}},{"$error":"#VALUE!"},0,{"$f":"IF(AQ79=0,0,LEFT(AQ79,30) & \": \" & Translations!$A$215)","v":0},"X",null,{"$f":"Comments!K32","v":0}]
[{"$nulls":39},{"$f":"R12","v":0},{"$error":"#VALUE!"},0,{"$f":"S12","v":0},"X"]
[{"$nulls":39},{"$f":"LEFT(AN81,2)&VALUE(REPLACE(AN81,1,2,\"\"))+1","v":{"$error":"#VALUE!"}},{"$error":"#VALUE!"},0,{"$f":"IF(AQ81=0,0,LEFT(AQ81,30) & \": \" & Translations!$A$215)","v":0},"X",null,{"$f":"Comments!K33","v":0}]
[{"$nulls":39},{"$f":"R13","v":0},{"$error":"#VALUE!"},0,{"$f":"S13","v":0},"X"]
[{"$nulls":39},{"$f":"LEFT(AN83,2)&VALUE(REPLACE(AN83,1,2,\"\"))+1","v":{"$error":"#VALUE!"}},{"$error":"#VALUE!"},0,{"$f":"IF(AQ83=0,0,LEFT(AQ83,30) & \": \" & Translations!$A$215)","v":0},"X",null,{"$f":"Comments!K34","v":0}]
[{"$nulls":39},{"$f":"R14","v":0},{"$error":"#VALUE!"},0,{"$f":"S14","v":0},"X"]
[{"$nulls":39},{"$f":"LEFT(AN85,2)&VALUE(REPLACE(AN85,1,2,\"\"))+1","v":{"$error":"#VALUE!"}},{"$error":"#VALUE!"},0,{"$f":"IF(AQ85=0,0,LEFT(AQ85,30) & \": \" & Translations!$A$215)","v":0},"X",null,{"$f":"Comments!K35","v":0}]
[{"$nulls":39},{"$f":"R15","v":0},{"$error":"#VALUE!"},0,{"$f":"S15","v":0},"X"]
[{"$nulls":39},{"$f":"LEFT(AN87,2)&VALUE(REPLACE(AN87,1,2,\"\"))+1","v":{"$error":"#VALUE!"}},{"$error":"#VALUE!"},0,{"$f":"IF(AQ87=0,0,LEFT(AQ87,30) & \": \" & Translations!$A$215)","v":0},"X",null,{"$f":"Comments!K36","v":0}]
[{"$nulls":39},{"$f":"R16","v":0},{"$error":"#VALUE!"},0,{"$f":"S16","v":0},"X"]
[{"$nulls":39},{"$f":"LEFT(AN89,2)&VALUE(REPLACE(AN89,1,2,\"\"))+1","v":{"$error":"#VALUE!"}},{"$error":"#VALUE!"},0,{"$f":"IF(AQ89=0,0,LEFT(AQ89,30) & \": \" & Translations!$A$215)","v":0},"X",null,{"$f":"Comments!K37","v":0}]
[{"$nulls":39},{"$f":"R17","v":0},{"$error":"#VALUE!"},0,{"$f":"S17","v":0},"X"]
[{"$nulls":39},{"$f":"LEFT(AN91,2)&VALUE(REPLACE(AN91,1,2,\"\"))+1","v":{"$error":"#VALUE!"}},{"$error":"#VALUE!"},0,{"$f":"IF(AQ91=0,0,LEFT(AQ91,30) & \": \" & Translations!$A$215)","v":0},"X",null,{"$f":"Comments!K38","v":0}]
[{"$nulls":39},{"$f":"R18","v":0},{"$error":"#VALUE!"},0,{"$f":"S18","v":0},"X"]
[{"$nulls":39},{"$f":"LEFT(AN93,2)&VALUE(REPLACE(AN93,1,2,\"\"))+1","v":{"$error":"#VALUE!"}},{"$error":"#VALUE!"},0,{"$f":"IF(AQ93=0,0,LEFT(AQ93,30) & \": \" & Translations!$A$215)","v":0},"X",null,{"$f":"Comments!K39","v":0}]
[{"$nulls":39},{"$f":"R19","v":0},{"$error":"#VALUE!"},0,{"$f":"S19","v":0},"X"]
[{"$nulls":39},{"$f":"LEFT(AN95,2)&VALUE(REPLACE(AN95,1,2,\"\"))+1","v":{"$error":"#VALUE!"}},{"$error":"#VALUE!"},0,{"$f":"IF(AQ95=0,0,LEFT(AQ95,30) & \": \" & Translations!$A$215)","v":0},"X",null,{"$f":"Comments!K40","v":0}]
[{"$nulls":39},{"$f":"R20","v":0},{"$error":"#VALUE!"},0,{"$f":"S20","v":0},"X"]
[{"$nulls":39},{"$f":"LEFT(AN97,2)&VALUE(REPLACE(AN97,1,2,\"\"))+1","v":{"$error":"#VALUE!"}},{"$error":"#VALUE!"},0,{"$f":"IF(AQ97=0,0,LEFT(AQ97,30) & \": \" & Translations!$A$215)","v":0},"X",null,{"$f":"Comments!K41","v":0}]
[{"$nulls":39},{"$f":"R21","v":0},{"$error":"#VALUE!"},0,{"$f":"S21","v":0},"X"]
[{"$nulls":39},{"$f":"LEFT(AN99,2)&VALUE(REPLACE(AN99,1,2,\"\"))+1","v":{"$error":"#VALUE!"}},{"$error":"#VALUE!"},0,{"$f":"IF(AQ99=0,0,LEFT(AQ99,30) & \": \" & Translations!$A$215)","v":0},"X",null,{"$f":"Comments!K42","v":0}]
[{"$nulls":39},{"$f":"R22","v":0},{"$error":"#VALUE!"},0,{"$f":"S22","v":0},"X"]
[{"$nulls":39},{"$f":"LEFT(AN101,2)&VALUE(REPLACE(AN101,1,2,\"\"))+1","v":{"$error":"#VALUE!"}},{"$error":"#VALUE!"},0,{"$f":"IF(AQ101=0,0,LEFT(AQ101,30) & \": \" & Translations!$A$215)","v":0},"X",null,{"$f":"Comments!K43","v":0}]

{"sheet":"Planning","index":3,"n_rows":209,"n_cols":92,"rows_kept":209,"hidden":true,"merged":[[3,0,4,0],[3,1,4,1],[3,2,4,2],[3,3,4,3],[3,4,4,4],[3,5,4,5],[3,6,4,6],[3,7,4,7],[3,8,3,9],[3,11,3,12],[3,14,3,15],[3,17,3,18],[3,20,3,21],[3,23,3,24],[3,26,3,27],[3,29,3,30],[3,32,3,33],[3,35,3,36],[3,38,3,39],[3,41,3,42],[3,44,3,45],[3,48,3,49],[3,51,3,52],[3,54,3,55],[3,57,3,58],[3,60,3,61],[3,63,3,64],[3,66,3,67],[3,69,3,70],[3,72,3,73],[3,75,3,76],[3,78,3,79],[3,81,3,82],[3,88,3,90],[3,91,6,91],[4,88,6,88],[4,89,6,89],[4,90,6,90],[6,48,6,82]]}
[1,2,0,null,12,12,8,"2. NO",{"v":0,"d":"RD$0.00"},{"v":0,"d":"RD$0.00"},null,{"v":0,"d":"RD$0.00"},{"v":0,"d":"RD$0.00"},null,{"v":0,"d":"RD$0.00"},{"v":0,"d":"RD$0.00"},null,{"v":0,"d":"RD$0.00"},{"v":0,"d":"RD$0.00"},null,{"v":0,"d":"RD$0.00"},{"v":0,"d":"RD$0.00"},null,{"v":0,"d":"RD$0.00"},{"v":0,"d":"RD$0.00"},null,{"v":0,"d":"RD$0.00"},{"v":0,"d":"RD$0.00"},null,{"v":0,"d":"RD$0.00"},{"v":0,"d":"RD$0.00"},null,{"v":0,"d":"RD$0.00"},{"v":0,"d":"RD$0.00"},null,{"v":0,"d":"RD$0.00"},{"v":0,"d":"RD$0.00"},null,{"v":0,"d":"RD$0.00"},{"v":0,"d":"RD$0.00"},null,{"v":0,"d":"RD$0.00"},{"v":0,"d":"RD$0.00"}]
["Planning",{"$nulls":3},{"$f":"Translations!A84","v":"Annual planning data"}]
[{"$f":"LineasUtilizadas()","v":12},"Total"]
[{"$f":"Translations!A88","v":"Item"},{"$f":"Translations!A89","v":"Item type"},{"$f":"Translations!$A$90","v":"Indicator code group"},{"$f":"Translations!A91","v":"Activity code"},{"$f":"Translations!A92","v":"Indicator / Activity"},{"$f":"Translations!A399","v":"Unit of measurement (target)"},{"$f":"Translations!A79","v":"TGF costs groups"},{"$f":"Translations!A234","v":"Activity: Contributing"},{"$f":"Setup!AB8","v":"January"},null,null,{"$f":"Setup!AB9","v":"February"},null,null,{"$f":"Setup!AB10","v":"March"},null,null,{"$f":"Setup!AB11","v":"April"},null,null,{"$f":"Setup!AB12","v":"May"},null,null,{"$f":"Setup!AB13","v":"June"},null,null,{"$f":"Setup!AB14","v":"July"},null,null,{"$f":"Setup!AB15","v":"August"},null,null,{"$f":"Setup!AB16","v":"September"},null,null,{"$f":"Setup!AB17","v":"October"},null,null,{"$f":"Setup!AB18","v":"November"},null,null,{"$f":"Setup!AB19","v":"December"},null,null,{"$f":"Translations!A109","v":"Totals"},{"$nulls":3},{"$f":"Setup!$AB8","v":"January"},null,null,{"$f":"Setup!$AB9","v":"February"},null,null,{"$f":"Setup!$AB10","v":"March"},null,null,{"$f":"Setup!$AB11","v":"April"},null,null,{"$f":"Setup!$AB12","v":"May"},null,null,{"$f":"Setup!$AB13","v":"June"},null,null,{"$f":"Setup!$AB14","v":"July"},null,null,{"$f":"Setup!$AB15","v":"August"},null,null,{"$f":"Setup!$AB16","v":"September"},null,null,{"$f":"Setup!$AB17","v":"October"},null,null,{"$f":"Setup!$AB18","v":"November"},null,null,{"$f":"Setup!$AB19","v":"December"},null,null,"Nombre del Indicador",null,"Tipo Indicador",null,"Conteos de datos para Validación",null,null,"ValidaciónOK\n1 - Correcto\n0 - AlgoMal"]
[{"$nulls":8},{"$f":"Translations!$A$94","v":"Target"},{"$f":"Translations!$A$95","v":"Budget"},null,{"$f":"Translations!$A$94","v":"Target"},{"$f":"Translations!$A$95","v":"Budget"},null,{"$f":"Translations!$A$94","v":"Target"},{"$f":"Translations!$A$95","v":"Budget"},null,{"$f":"Translations!$A$94","v":"Target"},{"$f":"Translations!$A$95","v":"Budget"},null,{"$f":"Translations!$A$94","v":"Target"},{"$f":"Translations!$A$95","v":"Budget"},null,{"$f":"Translations!$A$94","v":"Target"},{"$f":"Translations!$A$95","v":"Budget"},null,{"$f":"Translations!$A$94","v":"Target"},{"$f":"Translations!$A$95","v":"Budget"},null,{"$f":"Translations!$A$94","v":"Target"},{"$f":"Translations!$A$95","v":"Budget"},null,{"$f":"Translations!$A$94","v":"Target"},{"$f":"Translations!$A$95","v":"Budget"},null,{"$f":"Translations!$A$94","v":"Target"},{"$f":"Translations!$A$95","v":"Budget"},null,{"$f":"Translations!$A$94","v":"Target"},{"$f":"Translations!$A$95","v":"Budget"},null,{"$f":"Translations!$A$94","v":"Target"},{"$f":"Translations!$A$95","v":"Budget"},null,{"$f":"Translations!$A$94","v":"Target"},{"$f":"Translations!$A$95","v":"Budget"},null,null,{"$f":"Translations!$A$94","v":"Target"},{"$f":"Translations!$A$95","v":"Budget"},null,{"$f":"Translations!$A$94","v":"Target"},{"$f":"Translations!$A$95","v":"Budget"},null,{"$f":"Translations!$A$94","v":"Target"},{"$f":"Translations!$A$95","v":"Budget"},null,{"$f":"Translations!$A$94","v":"Target"},{"$f":"Translations!$A$95","v":"Budget"},null,{"$f":"Translations!$A$94","v":"Target"},{"$f":"Translations!$A$95","v":"Budget"},null,{"$f":"Translations!$A$94","v":"Target"},{"$f":"Translations!$A$95","v":"Budget"},null,{"$f":"Translations!$A$94","v":"Target"},{"$f":"Translations!$A$95","v":"Budget"},null,{"$f":"Translations!$A$94","v":"Target"},{"$f":"Translations!$A$95","v":"Budget"},null,{"$f":"Translations!$A$94","v":"Target"},{"$f":"Translations!$A$95","v":"Budget"},null,{"$f":"Translations!$A$94","v":"Target"},{"$f":"Translations!$A$95","v":"Budget"},null,{"$f":"Translations!$A$94","v":"Target"},{"$f":"Translations!$A$95","v":"Budget"},null,{"$f":"Translations!$A$94","v":"Target"},{"$f":"Translations!$A$95","v":"Budget"},{"$nulls":5},"Item Type","Indicator To Group","Indicator / Activity"]
[]
[{"$f":"Translations!A96","v":"Financial total"},{"$nulls":7},"-",{"$f":"SUMIFS(J9:J208,$H$9:$H$208,\"<>\")","v":{"v":149875,"d":"149,875.00"}},null,"-",{"$f":"SUMIFS(M9:M208,$H$9:$H$208,\"<>\")","v":{"v":148600,"d":"148,600.00"}},null,"-",{"$f":"SUMIFS(P9:P208,$H$9:$H$208,\"<>\")","v":{"v":205600,"d":"205,600.00"}},null,"-",{"$f":"SUMIFS(S9:S208,$H$9:$H$208,\"<>\")","v":{"v":187850,"d":"187,850.00"}},null,"-",{"$f":"SUMIFS(V9:V208,$H$9:$H$208,\"<>\")","v":{"v":206600,"d":"206,600.00"}},null,"-",{"$f":"SUMIFS(Y9:Y208,$H$9:$H$208,\"<>\")","v":{"v":220850,"d":"220,850.00"}},null,"-",{"$f":"SUMIFS(AB9:AB208,$H$9:$H$208,\"<>\")","v":{"v":0,"d":"0.00"}},null,"-",{"$f":"SUMIFS(AE9:AE208,$H$9:$H$208,\"<>\")","v":{"v":0,"d":"0.00"}},null,"-",{"$f":"SUMIFS(AH9:AH208,$H$9:$H$208,\"<>\")","v":{"v":0,"d":"0.00"}},null,"-",{"$f":"SUMIFS(AK9:AK208,$H$9:$H$208,\"<>\")","v":{"v":0,"d":"0.00"}},null,"-",{"$f":"SUMIFS(AN9:AN208,$H$9:$H$208,\"<>\")","v":{"v":0,"d":"0.00"}},null,"-",{"$f":"SUMIFS(AQ9:AQ208,$H$9:$H$208,\"<>\")","v":{"v":0,"d":"0.00"}},null,"-",{"$f":"J7+M7+P7+S7+V7+Y7+AB7+AE7+AH7+AK7+AN7+AQ7","v":{"v":1119375,"d":"1,119,375.00"}},null,null,"Nota: Aqui tenemos los Acumulados de Indicadores. Condiciones para META: ENLACE ID sea igual al del Indicador Y TRIBUTA sea SI.   Condiciones para PRESUPUESTO: ENLACE ID igual al del Indicador Y TRIBUTA sea diferente de \"\" ya que queremos solo las Actividades. Cuando es indicador se blanquea el balor de la celda TRIBUTA"]
[]
["I001","1. Indicator","Pr68",1,"[Pr68] # PLHIV that initiated ARV with CD4 count <200 Target [2. Inverse]",{"$nulls":3},{"$f":"AW9","v":200},{"$f":"AX9","v":{"v":65725,"d":"65,725.00"}},null,{"$f":"AZ9","v":200},{"$f":"BA9","v":{"v":49200,"d":"49,200.00"}},null,{"$f":"BC9","v":200},{"$f":"BD9","v":{"v":54700,"d":"54,700.00"}},null,{"$f":"BF9","v":200},{"$f":"BG9","v":{"v":45700,"d":"45,700.00"}},null,{"$f":"BI9","v":200},{"$f":"BJ9","v":{"v":49200,"d":"49,200.00"}},null,{"$f":"BL9","v":200},{"$f":"BM9","v":{"v":45700,"d":"45,700.00"}},null,{"$f":"BO9","v":0},{"$f":"BP9","v":{"v":0,"d":"0.00"}},null,{"$f":"BR9","v":0},{"$f":"BS9","v":{"v":0,"d":"0.00"}},null,{"$f":"BU9","v":0},{"$f":"BV9","v":{"v":0,"d":"0.00"}},null,{"$f":"BX9","v":0},{"$f":"BY9","v":{"v":0,"d":"0.00"}},null,{"$f":"CA9","v":0},{"$f":"CB9","v":{"v":0,"d":"0.00"}},null,{"$f":"CD9","v":0},{"$f":"CE9","v":{"v":0,"d":"0.00"}},null,{"$f":"I9+L9+O9+R9+U9+X9+AA9+AD9+AG9+AJ9+AM9+AP9","v":{"v":1200,"d":"1,200"}},{"v":310225,"d":"310,225.00"},null,null,{"$f":"SUMIFS(I$9:I$208,PlanningIDEnlaces,$C9,$H$9:$H$208,Lists!$A$16)","v":200},{"$f":"SUMIFS(J$9:J$208,PlanningIDEnlaces,$C9,$H$9:$H$208,\"<>\")","v":65725},null,{"$f":"SUMIFS(L$9:L$208,PlanningIDEnlaces,$C9,$H$9:$H$208,Lists!$A$16)","v":200},{"$f":"SUMIFS(M$9:M$208,PlanningIDEnlaces,$C9,$H$9:$H$208,\"<>\")","v":49200},null,{"$f":"SUMIFS(O$9:O$208,PlanningIDEnlaces,$C9,$H$9:$H$208,Lists!$A$16)","v":200},{"$f":"SUMIFS(P$9:P$208,PlanningIDEnlaces,$C9,$H$9:$H$208,\"<>\")","v":54700},null,{"$f":"SUMIFS(R$9:R$208,PlanningIDEnlaces,$C9,$H$9:$H$208,Lists!$A$16)","v":200},{"$f":"SUMIFS(S$9:S$208,PlanningIDEnlaces,$C9,$H$9:$H$208,\"<>\")","v":45700},null,{"$f":"SUMIFS(U$9:U$208,PlanningIDEnlaces,$C9,$H$9:$H$208,Lists!$A$16)","v":200},{"$f":"SUMIFS(V$9:V$208,PlanningIDEnlaces,$C9,$H$9:$H$208,\"<>\")","v":49200},null,{"$f":"SUMIFS(X$9:X$208,PlanningIDEnlaces,$C9,$H$9:$H$208,Lists!$A$16)","v":200},{"$f":"SUMIFS(Y$9:Y$208,PlanningIDEnlaces,$C9,$H$9:$H$208,\"<>\")","v":45700},null,{"$f":"SUMIFS(AA$9:AA$208,PlanningIDEnlaces,$C9,$H$9:$H$208,Lists!$A$16)","v":0},{"$f":"SUMIFS(AB$9:AB$208,PlanningIDEnlaces,$C9,$H$9:$H$208,\"<>\")","v":0},null,{"$f":"SUMIFS(AD$9:AD$208,PlanningIDEnlaces,$C9,$H$9:$H$208,Lists!$A$16)","v":0},{"$f":"SUMIFS(AE$9:AE$208,PlanningIDEnlaces,$C9,$H$9:$H$208,\"<>\")","v":0},null,{"$f":"SUMIFS(AG$9:AG$208,PlanningIDEnlaces,$C9,$H$9:$H$208,Lists!$A$16)","v":0},{"$f":"SUMIFS(AH$9:AH$208,PlanningIDEnlaces,$C9,$H$9:$H$208,\"<>\")","v":0},null,{"$f":"SUMIFS(AJ$9:AJ$208,PlanningIDEnlaces,$C9,$H$9:$H$208,Lists!$A$16)","v":0},{"$f":"SUMIFS(AK$9:AK$208,PlanningIDEnlaces,$C9,$H$9:$H$208,\"<>\")","v":0},null,{"$f":"SUMIFS(AM$9:AM$208,PlanningIDEnlaces,$C9,$H$9:$H$208,Lists!$A$16)","v":0},{"$f":"SUMIFS(AN$9:AN$208,PlanningIDEnlaces,$C9,$H$9:$H$208,\"<>\")","v":0},null,{"$f":"SUMIFS(AP$9:AP$208,PlanningIDEnlaces,$C9,$H$9:$H$208,Lists!$A$16)","v":0},{"$f":"SUMIFS(AQ$9:AQ$208,PlanningIDEnlaces,$C9,$H$9:$H$208,\"<>\")","v":0},null,{"$f":"IFERROR(INDEX(Lists!$F$5:$F$49,MATCH(Planning!C9,Lists!$G$5:$G$49,0),1),\"\")","v":"[Pr68] # PLHIV that initiated ARV with CD4 count <200 Target"},null,{"$f":"IF(C9=0,\"\",\" [\"&INDEX(Lists!$H$5:$H$49,MATCH(C9,Lists!$G$5:$G$49,0),1)&\"]\")","v":" [2. Inverse]"},null,{"$f":"COUNTA(B9:B208)","v":12},{"$f":"COUNTA(C9:C208)","v":12},{"$f":"COUNTA(E9:E208)","v":12},{"$f":"IF(AND(CK9=CL9,CL9=CM9),1,0)","v":1}]
["I002","2. Activity: Contributing","Pr68",1.2,"PLHIV reimbursed for transportation costs to HIV testing and treatment centres\n","PLHIV ($225/person)","12. Living support to client/ target population ","1. YES",200,{"v":45000,"d":"45,000.00"},null,200,{"v":35000,"d":"35,000.00"},null,200,{"v":45000,"d":"45,000.00"},null,200,{"v":45000,"d":"45,000.00"},null,200,{"v":35000,"d":"35,000.00"},null,200,{"v":45000,"d":"45,000.00"},null,0,{"v":0,"d":"0.00"},null,0,{"v":0,"d":"0.00"},null,0,{"v":0,"d":"0.00"},null,0,{"v":0,"d":"0.00"},null,0,{"v":0,"d":"0.00"},null,0,{"v":0,"d":"0.00"},null,{"v":1200,"d":"1,200"},{"v":250000,"d":"250,000.00"},null,null,{"$f":"SUMIFS(I$9:I$208,PlanningIDEnlaces,$C10,$H$9:$H$208,Lists!$A$16)","v":200},65725,null,{"$f":"SUMIFS(L$9:L$208,PlanningIDEnlaces,$C10,$H$9:$H$208,Lists!$A$16)","v":200},49200,null,{"$f":"SUMIFS(O$9:O$208,PlanningIDEnlaces,$C10,$H$9:$H$208,Lists!$A$16)","v":200},54700,null,{"$f":"SUMIFS(R$9:R$208,PlanningIDEnlaces,$C10,$H$9:$H$208,Lists!$A$16)","v":200},45700,null,{"$f":"SUMIFS(U$9:U$208,PlanningIDEnlaces,$C10,$H$9:$H$208,Lists!$A$16)","v":200},49200,null,{"$f":"SUMIFS(X$9:X$208,PlanningIDEnlaces,$C10,$H$9:$H$208,Lists!$A$16)","v":200},45700,null,{"$f":"SUMIFS(AA$9:AA$208,PlanningIDEnlaces,$C10,$H$9:$H$208,Lists!$A$16)","v":0},0,null,{"$f":"SUMIFS(AD$9:AD$208,PlanningIDEnlaces,$C10,$H$9:$H$208,Lists!$A$16)","v":0},0,null,{"$f":"SUMIFS(AG$9:AG$208,PlanningIDEnlaces,$C10,$H$9:$H$208,Lists!$A$16)","v":0},0,null,{"$f":"SUMIFS(AJ$9:AJ$208,PlanningIDEnlaces,$C10,$H$9:$H$208,Lists!$A$16)","v":0},0,null,{"$f":"SUMIFS(AM$9:AM$208,PlanningIDEnlaces,$C10,$H$9:$H$208,Lists!$A$16)","v":0},0,null,{"$f":"SUMIFS(AP$9:AP$208,PlanningIDEnlaces,$C10,$H$9:$H$208,Lists!$A$16)","v":0},0,null,{"$f":"IFERROR(INDEX(Lists!$F$5:$F$49,MATCH(Planning!C10,Lists!$G$5:$G$49,0),1),\"\")","v":"[Pr68] # PLHIV that initiated ARV with CD4 count <200 Target"},null,{"$f":"IF(C10=0,\"\",\" [\"&INDEX(Lists!$H$5:$H$49,MATCH(C10,Lists!$G$5:$G$49,0),1)&\"]\")","v":" [2. Inverse]"}]
["I003","3. Activity: Non-Contributing","Pr68",1.3,"Communication materials produced to educate HIV+ patients about HIV treatment (Migrants and Sexual Workers). \n\n","# of packets of materials ($20 per packet)","10. Communication material and publications","2. NO",25,{"v":700,"d":"700.00"},null,25,{"v":700,"d":"700.00"},null,25,{"v":700,"d":"700.00"},null,25,{"v":700,"d":"700.00"},null,25,{"v":700,"d":"700.00"},null,25,{"v":700,"d":"700.00"},null,0,{"v":0,"d":"0.00"},null,0,{"v":0,"d":"0.00"},null,0,{"v":0,"d":"0.00"},null,0,{"v":0,"d":"0.00"},null,0,{"v":0,"d":"0.00"},null,0,{"v":0,"d":"0.00"},null,150,{"v":4200,"d":"4,200.00"},null,null,{"$f":"SUMIFS(I$9:I$208,PlanningIDEnlaces,$C11,$H$9:$H$208,Lists!$A$16)","v":200},65725,null,{"$f":"SUMIFS(L$9:L$208,PlanningIDEnlaces,$C11,$H$9:$H$208,Lists!$A$16)","v":200},49200,null,{"$f":"SUMIFS(O$9:O$208,PlanningIDEnlaces,$C11,$H$9:$H$208,Lists!$A$16)","v":200},54700,null,{"$f":"SUMIFS(R$9:R$208,PlanningIDEnlaces,$C11,$H$9:$H$208,Lists!$A$16)","v":200},45700,null,{"$f":"SUMIFS(U$9:U$208,PlanningIDEnlaces,$C11,$H$9:$H$208,Lists!$A$16)","v":200},49200,null,{"$f":"SUMIFS(X$9:X$208,PlanningIDEnlaces,$C11,$H$9:$H$208,Lists!$A$16)","v":200},45700,null,{"$f":"SUMIFS(AA$9:AA$208,PlanningIDEnlaces,$C11,$H$9:$H$208,Lists!$A$16)","v":0},0,null,{"$f":"SUMIFS(AD$9:AD$208,PlanningIDEnlaces,$C11,$H$9:$H$208,Lists!$A$16)","v":0},0,null,{"$f":"SUMIFS(AG$9:AG$208,PlanningIDEnlaces,$C11,$H$9:$H$208,Lists!$A$16)","v":0},0,null,{"$f":"SUMIFS(AJ$9:AJ$208,PlanningIDEnlaces,$C11,$H$9:$H$208,Lists!$A$16)","v":0},0,null,{"$f":"SUMIFS(AM$9:AM$208,PlanningIDEnlaces,$C11,$H$9:$H$208,Lists!$A$16)","v":0},0,null,{"$f":"SUMIFS(AP$9:AP$208,PlanningIDEnlaces,$C11,$H$9:$H$208,Lists!$A$16)","v":0},0,null,{"$f":"IFERROR(INDEX(Lists!$F$5:$F$49,MATCH(Planning!C11,Lists!$G$5:$G$49,0),1),\"\")","v":"[Pr68] # PLHIV that initiated ARV with CD4 count <200 Target"},null,{"$f":"IF(C11=0,\"\",\" [\"&INDEX(Lists!$H$5:$H$49,MATCH(C11,Lists!$G$5:$G$49,0),1)&\"]\")","v":" [2. Inverse]"}]
["I004","3. Activity: Non-Contributing","Pr68",1.4,"Supervisory visits to verify the appropriate application of testing and treatment protocols at centers. ","Supervision visits ($225/visit)","11. Programme administration costs","2. NO",89,{"v":20025,"d":"20,025.00"},null,60,{"v":13500,"d":"13,500.00"},null,40,{"v":9000,"d":"9,000.00"},null,0,{"v":0,"d":"0.00"},null,60,{"v":13500,"d":"13,500.00"},null,0,{"v":0,"d":"0.00"},null,0,{"v":0,"d":"0.00"},null,0,{"v":0,"d":"0.00"},null,0,{"v":0,"d":"0.00"},null,0,{"v":0,"d":"0.00"},null,0,{"v":0,"d":"0.00"},null,0,{"v":0,"d":"0.00"},null,249,{"v":56025,"d":"56,025.00"},null,null,{"$f":"SUMIFS(I$9:I$208,PlanningIDEnlaces,$C12,$H$9:$H$208,Lists!$A$16)","v":200},65725,null,{"$f":"SUMIFS(L$9:L$208,PlanningIDEnlaces,$C12,$H$9:$H$208,Lists!$A$16)","v":200},49200,null,{"$f":"SUMIFS(O$9:O$208,PlanningIDEnlaces,$C12,$H$9:$H$208,Lists!$A$16)","v":200},54700,null,{"$f":"SUMIFS(R$9:R$208,PlanningIDEnlaces,$C12,$H$9:$H$208,Lists!$A$16)","v":200},45700,null,{"$f":"SUMIFS(U$9:U$208,PlanningIDEnlaces,$C12,$H$9:$H$208,Lists!$A$16)","v":200},49200,null,{"$f":"SUMIFS(X$9:X$208,PlanningIDEnlaces,$C12,$H$9:$H$208,Lists!$A$16)","v":200},45700,null,{"$f":"SUMIFS(AA$9:AA$208,PlanningIDEnlaces,$C12,$H$9:$H$208,Lists!$A$16)","v":0},0,null,{"$f":"SUMIFS(AD$9:AD$208,PlanningIDEnlaces,$C12,$H$9:$H$208,Lists!$A$16)","v":0},0,null,{"$f":"SUMIFS(AG$9:AG$208,PlanningIDEnlaces,$C12,$H$9:$H$208,Lists!$A$16)","v":0},0,null,{"$f":"SUMIFS(AJ$9:AJ$208,PlanningIDEnlaces,$C12,$H$9:$H$208,Lists!$A$16)","v":0},0,null,{"$f":"SUMIFS(AM$9:AM$208,PlanningIDEnlaces,$C12,$H$9:$H$208,Lists!$A$16)","v":0},0,null,{"$f":"SUMIFS(AP$9:AP$208,PlanningIDEnlaces,$C12,$H$9:$H$208,Lists!$A$16)","v":0},0,null,{"$f":"IFERROR(INDEX(Lists!$F$5:$F$49,MATCH(Planning!C12,Lists!$G$5:$G$49,0),1),\"\")","v":"[Pr68] # PLHIV that initiated ARV with CD4 count <200 Target"},null,{"$f":"IF(C12=0,\"\",\" [\"&INDEX(Lists!$H$5:$H$49,MATCH(C12,Lists!$G$5:$G$49,0),1)&\"]\")","v":" [2. Inverse]"}]
["I005","1. Indicator","Pr72",2,"[Pr72] # new HIV+ enrolled in care services Target [3. Non-Cumulative]",{"$nulls":3},{"$f":"AW13","v":124},{"$f":"AX13","v":{"v":27900,"d":"27,900.00"}},null,{"$f":"AZ13","v":124},{"$f":"BA13","v":{"v":27900,"d":"27,900.00"}},null,{"$f":"BC13","v":124},{"$f":"BD13","v":{"v":27900,"d":"27,900.00"}},null,{"$f":"BF13","v":124},{"$f":"BG13","v":{"v":27900,"d":"27,900.00"}},null,{"$f":"BI13","v":124},{"$f":"BJ13","v":{"v":27900,"d":"27,900.00"}},null,{"$f":"BL13","v":124},{"$f":"BM13","v":{"v":27900,"d":"27,900.00"}},null,{"$f":"BO13","v":0},{"$f":"BP13","v":{"v":0,"d":"0.00"}},null,{"$f":"BR13","v":0},{"$f":"BS13","v":{"v":0,"d":"0.00"}},null,{"$f":"BU13","v":0},{"$f":"BV13","v":{"v":0,"d":"0.00"}},null,{"$f":"BX13","v":0},{"$f":"BY13","v":{"v":0,"d":"0.00"}},null,{"$f":"CA13","v":0},{"$f":"CB13","v":{"v":0,"d":"0.00"}},null,{"$f":"CD13","v":0},{"$f":"CE13","v":{"v":0,"d":"0.00"}},null,744,{"v":167400,"d":"167,400.00"},null,null,{"$f":"SUMIFS(I$9:I$208,PlanningIDEnlaces,$C13,$H$9:$H$208,Lists!$A$16)","v":124},27900,null,{"$f":"SUMIFS(L$9:L$208,PlanningIDEnlaces,$C13,$H$9:$H$208,Lists!$A$16)","v":124},27900,null,{"$f":"SUMIFS(O$9:O$208,PlanningIDEnlaces,$C13,$H$9:$H$208,Lists!$A$16)","v":124},27900,null,{"$f":"SUMIFS(R$9:R$208,PlanningIDEnlaces,$C13,$H$9:$H$208,Lists!$A$16)","v":124},27900,null,{"$f":"SUMIFS(U$9:U$208,PlanningIDEnlaces,$C13,$H$9:$H$208,Lists!$A$16)","v":124},27900,null,{"$f":"SUMIFS(X$9:X$208,PlanningIDEnlaces,$C13,$H$9:$H$208,Lists!$A$16)","v":124},27900,null,{"$f":"SUMIFS(AA$9:AA$208,PlanningIDEnlaces,$C13,$H$9:$H$208,Lists!$A$16)","v":0},0,null,{"$f":"SUMIFS(AD$9:AD$208,PlanningIDEnlaces,$C13,$H$9:$H$208,Lists!$A$16)","v":0},0,null,{"$f":"SUMIFS(AG$9:AG$208,PlanningIDEnlaces,$C13,$H$9:$H$208,Lists!$A$16)","v":0},0,null,{"$f":"SUMIFS(AJ$9:AJ$208,PlanningIDEnlaces,$C13,$H$9:$H$208,Lists!$A$16)","v":0},0,null,{"$f":"SUMIFS(AM$9:AM$208,PlanningIDEnlaces,$C13,$H$9:$H$208,Lists!$A$16)","v":0},0,null,{"$f":"SUMIFS(AP$9:AP$208,PlanningIDEnlaces,$C13,$H$9:$H$208,Lists!$A$16)","v":0},0,null,{"$f":"IFERROR(INDEX(Lists!$F$5:$F$49,MATCH(Planning!C13,Lists!$G$5:$G$49,0),1),\"\")","v":"[Pr72] # new HIV+ enrolled in care services Target"},null,{"$f":"IF(C13=0,\"\",\" [\"&INDEX(Lists!$H$5:$H$49,MATCH(C13,Lists!$G$5:$G$49,0),1)&\"]\")","v":" [3. Non-Cumulative]"}]
["I006","2. Activity: Contributing","Pr72",2.1,"Enrollment of  newly diagnosed HIV+ patients for home visits to monitor use of ARV.","New HIV+ benficiaries  ($225/person)","12. Living support to client/ target population ","1. YES",124,{"v":27900,"d":"27,900.00"},null,124,{"v":27900,"d":"27,900.00"},null,124,{"v":27900,"d":"27,900.00"},null,124,{"v":27900,"d":"27,900.00"},null,124,{"v":27900,"d":"27,900.00"},null,124,{"v":27900,"d":"27,900.00"},null,0,{"v":0,"d":"0.00"},null,0,{"v":0,"d":"0.00"},null,0,{"v":0,"d":"0.00"},null,0,{"v":0,"d":"0.00"},null,0,{"v":0,"d":"0.00"},null,0,{"v":0,"d":"0.00"},null,744,{"v":167400,"d":"167,400.00"},null,null,{"$f":"SUMIFS(I$9:I$208,PlanningIDEnlaces,$C14,$H$9:$H$208,Lists!$A$16)","v":124},27900,null,{"$f":"SUMIFS(L$9:L$208,PlanningIDEnlaces,$C14,$H$9:$H$208,Lists!$A$16)","v":124},27900,null,{"$f":"SUMIFS(O$9:O$208,PlanningIDEnlaces,$C14,$H$9:$H$208,Lists!$A$16)","v":124},27900,null,{"$f":"SUMIFS(R$9:R$208,PlanningIDEnlaces,$C14,$H$9:$H$208,Lists!$A$16)","v":124},27900,null,{"$f":"SUMIFS(U$9:U$208,PlanningIDEnlaces,$C14,$H$9:$H$208,Lists!$A$16)","v":124},27900,null,{"$f":"SUMIFS(X$9:X$208,PlanningIDEnlaces,$C14,$H$9:$H$208,Lists!$A$16)","v":124},27900,null,{"$f":"SUMIFS(AA$9:AA$208,PlanningIDEnlaces,$C14,$H$9:$H$208,Lists!$A$16)","v":0},0,null,{"$f":"SUMIFS(AD$9:AD$208,PlanningIDEnlaces,$C14,$H$9:$H$208,Lists!$A$16)","v":0},0,null,{"$f":"SUMIFS(AG$9:AG$208,PlanningIDEnlaces,$C14,$H$9:$H$208,Lists!$A$16)","v":0},0,null,{"$f":"SUMIFS(AJ$9:AJ$208,PlanningIDEnlaces,$C14,$H$9:$H$208,Lists!$A$16)","v":0},0,null,{"$f":"SUMIFS(AM$9:AM$208,PlanningIDEnlaces,$C14,$H$9:$H$208,Lists!$A$16)","v":0},0,null,{"$f":"SUMIFS(AP$9:AP$208,PlanningIDEnlaces,$C14,$H$9:$H$208,Lists!$A$16)","v":0},0,null,{"$f":"IFERROR(INDEX(Lists!$F$5:$F$49,MATCH(Planning!C14,Lists!$G$5:$G$49,0),1),\"\")","v":"[Pr72] # new HIV+ enrolled in care services Target"},null,{"$f":"IF(C14=0,\"\",\" [\"&INDEX(Lists!$H$5:$H$49,MATCH(C14,Lists!$G$5:$G$49,0),1)&\"]\")","v":" [3. Non-Cumulative]"}]
["I007","1. Indicator","Pr74",3,"[Pr74] # aged 10-24 yrs reached by HIV life skills ed. in school  Target [1. Standard]",{"$nulls":3},{"$f":"AW15","v":250},{"$f":"AX15","v":{"v":56250,"d":"56,250.00"}},null,{"$f":"AZ15","v":300},{"$f":"BA15","v":{"v":67500,"d":"67,500.00"}},null,{"$f":"BC15","v":400},{"$f":"BD15","v":{"v":90000,"d":"90,000.00"}},null,{"$f":"BF15","v":250},{"$f":"BG15","v":{"v":56250,"d":"56,250.00"}},null,{"$f":"BI15","v":300},{"$f":"BJ15","v":{"v":67500,"d":"67,500.00"}},null,{"$f":"BL15","v":250},{"$f":"BM15","v":{"v":56250,"d":"56,250.00"}},null,{"$f":"BO15","v":0},{"$f":"BP15","v":{"v":0,"d":"0.00"}},null,{"$f":"BR15","v":0},{"$f":"BS15","v":{"v":0,"d":"0.00"}},null,{"$f":"BU15","v":0},{"$f":"BV15","v":{"v":0,"d":"0.00"}},null,{"$f":"BX15","v":0},{"$f":"BY15","v":{"v":0,"d":"0.00"}},null,{"$f":"CA15","v":0},{"$f":"CB15","v":{"v":0,"d":"0.00"}},null,{"$f":"CD15","v":0},{"$f":"CE15","v":{"v":0,"d":"0.00"}},null,{"v":1750,"d":"1,750"},{"v":393750,"d":"393,750.00"},null,null,{"$f":"SUMIFS(I$9:I$208,PlanningIDEnlaces,$C15,$H$9:$H$208,Lists!$A$16)","v":250},56250,null,{"$f":"SUMIFS(L$9:L$208,PlanningIDEnlaces,$C15,$H$9:$H$208,Lists!$A$16)","v":300},67500,null,{"$f":"SUMIFS(O$9:O$208,PlanningIDEnlaces,$C15,$H$9:$H$208,Lists!$A$16)","v":400},90000,null,{"$f":"SUMIFS(R$9:R$208,PlanningIDEnlaces,$C15,$H$9:$H$208,Lists!$A$16)","v":250},56250,null,{"$f":"SUMIFS(U$9:U$208,PlanningIDEnlaces,$C15,$H$9:$H$208,Lists!$A$16)","v":300},67500,null,{"$f":"SUMIFS(X$9:X$208,PlanningIDEnlaces,$C15,$H$9:$H$208,Lists!$A$16)","v":250},56250,null,{"$f":"SUMIFS(AA$9:AA$208,PlanningIDEnlaces,$C15,$H$9:$H$208,Lists!$A$16)","v":0},0,null,{"$f":"SUMIFS(AD$9:AD$208,PlanningIDEnlaces,$C15,$H$9:$H$208,Lists!$A$16)","v":0},0,null,{"$f":"SUMIFS(AG$9:AG$208,PlanningIDEnlaces,$C15,$H$9:$H$208,Lists!$A$16)","v":0},0,null,{"$f":"SUMIFS(AJ$9:AJ$208,PlanningIDEnlaces,$C15,$H$9:$H$208,Lists!$A$16)","v":0},0,null,{"$f":"SUMIFS(AM$9:AM$208,PlanningIDEnlaces,$C15,$H$9:$H$208,Lists!$A$16)","v":0},0,null,{"$f":"SUMIFS(AP$9:AP$208,PlanningIDEnlaces,$C15,$H$9:$H$208,Lists!$A$16)","v":0},0,null,{"$f":"IFERROR(INDEX(Lists!$F$5:$F$49,MATCH(Planning!C15,Lists!$G$5:$G$49,0),1),\"\")","v":"[Pr74] # aged 10-24 yrs reached by HIV life skills ed. in school  Target"},null,{"$f":"IF(C15=0,\"\",\" [\"&INDEX(Lists!$H$5:$H$49,MATCH(C15,Lists!$G$5:$G$49,0),1)&\"]\")","v":" [1. Standard]"}]
["I008","2. Activity: Contributing","Pr74",3.1,"Transportation of students to meetings and conferences for peer education activities","Students ($225/person)","2. Travel related costs","1. YES",250,{"v":56250,"d":"56,250.00"},null,300,{"v":67500,"d":"67,500.00"},null,400,{"v":90000,"d":"90,000.00"},null,250,{"v":56250,"d":"56,250.00"},null,300,{"v":67500,"d":"67,500.00"},null,250,{"v":56250,"d":"56,250.00"},null,0,{"v":0,"d":"0.00"},null,0,{"v":0,"d":"0.00"},null,0,{"v":0,"d":"0.00"},null,0,{"v":0,"d":"0.00"},null,0,{"v":0,"d":"0.00"},null,0,{"v":0,"d":"0.00"},null,{"v":1750,"d":"1,750"},{"v":393750,"d":"393,750.00"},null,null,{"$f":"SUMIFS(I$9:I$208,PlanningIDEnlaces,$C16,$H$9:$H$208,Lists!$A$16)","v":250},56250,null,{"$f":"SUMIFS(L$9:L$208,PlanningIDEnlaces,$C16,$H$9:$H$208,Lists!$A$16)","v":300},67500,null,{"$f":"SUMIFS(O$9:O$208,PlanningIDEnlaces,$C16,$H$9:$H$208,Lists!$A$16)","v":400},90000,null,{"$f":"SUMIFS(R$9:R$208,PlanningIDEnlaces,$C16,$H$9:$H$208,Lists!$A$16)","v":250},56250,null,{"$f":"SUMIFS(U$9:U$208,PlanningIDEnlaces,$C16,$H$9:$H$208,Lists!$A$16)","v":300},67500,null,{"$f":"SUMIFS(X$9:X$208,PlanningIDEnlaces,$C16,$H$9:$H$208,Lists!$A$16)","v":250},56250,null,{"$f":"SUMIFS(AA$9:AA$208,PlanningIDEnlaces,$C16,$H$9:$H$208,Lists!$A$16)","v":0},0,null,{"$f":"SUMIFS(AD$9:AD$208,PlanningIDEnlaces,$C16,$H$9:$H$208,Lists!$A$16)","v":0},0,null,{"$f":"SUMIFS(AG$9:AG$208,PlanningIDEnlaces,$C16,$H$9:$H$208,Lists!$A$16)","v":0},0,null,{"$f":"SUMIFS(AJ$9:AJ$208,PlanningIDEnlaces,$C16,$H$9:$H$208,Lists!$A$16)","v":0},0,null,{"$f":"SUMIFS(AM$9:AM$208,PlanningIDEnlaces,$C16,$H$9:$H$208,Lists!$A$16)","v":0},0,null,{"$f":"SUMIFS(AP$9:AP$208,PlanningIDEnlaces,$C16,$H$9:$H$208,Lists!$A$16)","v":0},0,null,{"$f":"IFERROR(INDEX(Lists!$F$5:$F$49,MATCH(Planning!C16,Lists!$G$5:$G$49,0),1),\"\")","v":"[Pr74] # aged 10-24 yrs reached by HIV life skills ed. in school  Target"},null,{"$f":"IF(C16=0,\"\",\" [\"&INDEX(Lists!$H$5:$H$49,MATCH(C16,Lists!$G$5:$G$49,0),1)&\"]\")","v":" [1. Standard]"}]
["I009","1. Indicator","OI01",4,"[OI01] # of new orphans and vulnerable children (0 - 17 yrs) benefiting from  services provided at OVC centers [1. Standard]",{"$nulls":3},{"$f":"AW17","v":0},{"$f":"AX17","v":{"v":0,"d":"0.00"}},null,{"$f":"AZ17","v":0},{"$f":"BA17","v":{"v":4000,"d":"4,000.00"}},null,{"$f":"BC17","v":250},{"$f":"BD17","v":{"v":33000,"d":"33,000.00"}},null,{"$f":"BF17","v":500},{"$f":"BG17","v":{"v":58000,"d":"58,000.00"}},null,{"$f":"BI17","v":500},{"$f":"BJ17","v":{"v":62000,"d":"62,000.00"}},null,{"$f":"BL17","v":750},{"$f":"BM17","v":{"v":91000,"d":"91,000.00"}},null,{"$f":"BO17","v":0},{"$f":"BP17","v":{"v":0,"d":"0.00"}},null,{"$f":"BR17","v":0},{"$f":"BS17","v":{"v":0,"d":"0.00"}},null,{"$f":"BU17","v":0},{"$f":"BV17","v":{"v":0,"d":"0.00"}},null,{"$f":"BX17","v":0},{"$f":"BY17","v":{"v":0,"d":"0.00"}},null,{"$f":"CA17","v":0},{"$f":"CB17","v":{"v":0,"d":"0.00"}},null,{"$f":"CD17","v":0},{"$f":"CE17","v":{"v":0,"d":"0.00"}},null,{"v":2000,"d":"2,000"},{"v":248000,"d":"248,000.00"},null,null,{"$f":"SUMIFS(I$9:I$208,PlanningIDEnlaces,$C17,$H$9:$H$208,Lists!$A$16)","v":0},0,null,{"$f":"SUMIFS(L$9:L$208,PlanningIDEnlaces,$C17,$H$9:$H$208,Lists!$A$16)","v":0},4000,null,{"$f":"SUMIFS(O$9:O$208,PlanningIDEnlaces,$C17,$H$9:$H$208,Lists!$A$16)","v":250},33000,null,{"$f":"SUMIFS(R$9:R$208,PlanningIDEnlaces,$C17,$H$9:$H$208,Lists!$A$16)","v":500},58000,null,{"$f":"SUMIFS(U$9:U$208,PlanningIDEnlaces,$C17,$H$9:$H$208,Lists!$A$16)","v":500},62000,null,{"$f":"SUMIFS(X$9:X$208,PlanningIDEnlaces,$C17,$H$9:$H$208,Lists!$A$16)","v":750},91000,null,{"$f":"SUMIFS(AA$9:AA$208,PlanningIDEnlaces,$C17,$H$9:$H$208,Lists!$A$16)","v":0},0,null,{"$f":"SUMIFS(AD$9:AD$208,PlanningIDEnlaces,$C17,$H$9:$H$208,Lists!$A$16)","v":0},0,null,{"$f":"SUMIFS(AG$9:AG$208,PlanningIDEnlaces,$C17,$H$9:$H$208,Lists!$A$16)","v":0},0,null,{"$f":"SUMIFS(AJ$9:AJ$208,PlanningIDEnlaces,$C17,$H$9:$H$208,Lists!$A$16)","v":0},0,null,{"$f":"SUMIFS(AM$9:AM$208,PlanningIDEnlaces,$C17,$H$9:$H$208,Lists!$A$16)","v":0},0,null,{"$f":"SUMIFS(AP$9:AP$208,PlanningIDEnlaces,$C17,$H$9:$H$208,Lists!$A$16)","v":0},0,null,{"$f":"IFERROR(INDEX(Lists!$F$5:$F$49,MATCH(Planning!C17,Lists!$G$5:$G$49,0),1),\"\")","v":"[OI01] # of new orphans and vulnerable children (0 - 17 yrs) benefiting from  services provided at OVC centers"},null,{"$f":"IF(C17=0,\"\",\" [\"&INDEX(Lists!$H$5:$H$49,MATCH(C17,Lists!$G$5:$G$49,0),1)&\"]\")","v":" [1. Standard]"}]
["I010","3. Activity: Non-Contributing","OI01",4.1,"# of OVC centers established and fully equipped  ","# of centers ($4000/center)","8. Infrastructure ","2. NO",0,{"v":0,"d":"0.00"},null,1,{"v":4000,"d":"4,000.00"},null,1,{"v":4000,"d":"4,000.00"},null,null,{"v":0,"d":"0.00"},null,1,{"v":4000,"d":"4,000.00"},null,1,{"v":4000,"d":"4,000.00"},null,0,{"v":0,"d":"0.00"},null,0,{"v":0,"d":"0.00"},null,0,{"v":0,"d":"0.00"},null,0,{"v":0,"d":"0.00"},null,0,{"v":0,"d":"0.00"},null,0,{"v":0,"d":"0.00"},null,4,{"v":16000,"d":"16,000.00"},null,null,{"$f":"SUMIFS(I$9:I$208,PlanningIDEnlaces,$C18,$H$9:$H$208,Lists!$A$16)","v":0},0,null,{"$f":"SUMIFS(L$9:L$208,PlanningIDEnlaces,$C18,$H$9:$H$208,Lists!$A$16)","v":0},4000,null,{"$f":"SUMIFS(O$9:O$208,PlanningIDEnlaces,$C18,$H$9:$H$208,Lists!$A$16)","v":250},33000,null,{"$f":"SUMIFS(R$9:R$208,PlanningIDEnlaces,$C18,$H$9:$H$208,Lists!$A$16)","v":500},58000,null,{"$f":"SUMIFS(U$9:U$208,PlanningIDEnlaces,$C18,$H$9:$H$208,Lists!$A$16)","v":500},62000,null,{"$f":"SUMIFS(X$9:X$208,PlanningIDEnlaces,$C18,$H$9:$H$208,Lists!$A$16)","v":750},91000,null,{"$f":"SUMIFS(AA$9:AA$208,PlanningIDEnlaces,$C18,$H$9:$H$208,Lists!$A$16)","v":0},0,null,{"$f":"SUMIFS(AD$9:AD$208,PlanningIDEnlaces,$C18,$H$9:$H$208,Lists!$A$16)","v":0},0,null,{"$f":"SUMIFS(AG$9:AG$208,PlanningIDEnlaces,$C18,$H$9:$H$208,Lists!$A$16)","v":0},0,null,{"$f":"SUMIFS(AJ$9:AJ$208,PlanningIDEnlaces,$C18,$H$9:$H$208,Lists!$A$16)","v":0},0,null,{"$f":"SUMIFS(AM$9:AM$208,PlanningIDEnlaces,$C18,$H$9:$H$208,Lists!$A$16)","v":0},0,null,{"$f":"SUMIFS(AP$9:AP$208,PlanningIDEnlaces,$C18,$H$9:$H$208,Lists!$A$16)","v":0},0,null,{"$f":"IFERROR(INDEX(Lists!$F$5:$F$49,MATCH(Planning!C18,Lists!$G$5:$G$49,0),1),\"\")","v":"[OI01] # of new orphans and vulnerable children (0 - 17 yrs) benefiting from  services provided at OVC centers"},null,{"$f":"IF(C18=0,\"\",\" [\"&INDEX(Lists!$H$5:$H$49,MATCH(C18,Lists!$G$5:$G$49,0),1)&\"]\")","v":" [1. Standard]"}]
["I011","2. Activity: Contributing","OI01",4.2,"# of OVC registered at centres","# of children ($100/child/month)","12. Living support to client/ target population ","1. YES",0,{"v":0,"d":"0.00"},null,0,{"v":0,"d":"0.00"},null,250,{"v":25000,"d":"25,000.00"},null,500,{"v":50000,"d":"50,000.00"},null,500,{"v":50000,"d":"50,000.00"},null,750,{"v":75000,"d":"75,000.00"},null,0,{"v":0,"d":"0.00"},null,0,{"v":0,"d":"0.00"},null,0,{"v":0,"d":"0.00"},null,0,{"v":0,"d":"0.00"},null,0,{"v":0,"d":"0.00"},null,0,{"v":0,"d":"0.00"},null,{"v":2000,"d":"2,000"},{"v":200000,"d":"200,000.00"},null,null,{"$f":"SUMIFS(I$9:I$208,PlanningIDEnlaces,$C19,$H$9:$H$208,Lists!$A$16)","v":0},0,null,{"$f":"SUMIFS(L$9:L$208,PlanningIDEnlaces,$C19,$H$9:$H$208,Lists!$A$16)","v":0},4000,null,{"$f":"SUMIFS(O$9:O$208,PlanningIDEnlaces,$C19,$H$9:$H$208,Lists!$A$16)","v":250},33000,null,{"$f":"SUMIFS(R$9:R$208,PlanningIDEnlaces,$C19,$H$9:$H$208,Lists!$A$16)","v":500},58000,null,{"$f":"SUMIFS(U$9:U$208,PlanningIDEnlaces,$C19,$H$9:$H$208,Lists!$A$16)","v":500},62000,null,{"$f":"SUMIFS(X$9:X$208,PlanningIDEnlaces,$C19,$H$9:$H$208,Lists!$A$16)","v":750},91000,null,{"$f":"SUMIFS(AA$9:AA$208,PlanningIDEnlaces,$C19,$H$9:$H$208,Lists!$A$16)","v":0},0,null,{"$f":"SUMIFS(AD$9:AD$208,PlanningIDEnlaces,$C19,$H$9:$H$208,Lists!$A$16)","v":0},0,null,{"$f":"SUMIFS(AG$9:AG$208,PlanningIDEnlaces,$C19,$H$9:$H$208,Lists!$A$16)","v":0},0,null,{"$f":"SUMIFS(AJ$9:AJ$208,PlanningIDEnlaces,$C19,$H$9:$H$208,Lists!$A$16)","v":0},0,null,{"$f":"SUMIFS(AM$9:AM$208,PlanningIDEnlaces,$C19,$H$9:$H$208,Lists!$A$16)","v":0},0,null,{"$f":"SUMIFS(AP$9:AP$208,PlanningIDEnlaces,$C19,$H$9:$H$208,Lists!$A$16)","v":0},0,null,{"$f":"IFERROR(INDEX(Lists!$F$5:$F$49,MATCH(Planning!C19,Lists!$G$5:$G$49,0),1),\"\")","v":"[OI01] # of new orphans and vulnerable children (0 - 17 yrs) benefiting from  services provided at OVC centers"},null,{"$f":"IF(C19=0,\"\",\" [\"&INDEX(Lists!$H$5:$H$49,MATCH(C19,Lists!$G$5:$G$49,0),1)&\"]\")","v":" [1. Standard]"}]
["I012","3. Activity: Non-Contributing","OI01",4.3,"# of meals provided at the OVC centers ","# of meals ($4/meal)","12. Living support to client/ target population ","2. NO",0,{"v":0,"d":"0.00"},null,0,{"v":0,"d":"0.00"},null,{"v":1000,"d":"1,000"},{"v":4000,"d":"4,000.00"},null,{"v":2000,"d":"2,000"},{"v":8000,"d":"8,000.00"},null,{"v":2000,"d":"2,000"},{"v":8000,"d":"8,000.00"},null,{"v":3000,"d":"3,000"},{"v":12000,"d":"12,000.00"},null,0,{"v":0,"d":"0.00"},null,0,{"v":0,"d":"0.00"},null,0,{"v":0,"d":"0.00"},null,0,{"v":0,"d":"0.00"},null,0,{"v":0,"d":"0.00"},null,0,{"v":0,"d":"0.00"},null,{"v":8000,"d":"8,000"},{"v":32000,"d":"32,000.00"},null,null,{"$f":"SUMIFS(I$9:I$208,PlanningIDEnlaces,$C20,$H$9:$H$208,Lists!$A$16)","v":0},0,null,{"$f":"SUMIFS(L$9:L$208,PlanningIDEnlaces,$C20,$H$9:$H$208,Lists!$A$16)","v":0},4000,null,{"$f":"SUMIFS(O$9:O$208,PlanningIDEnlaces,$C20,$H$9:$H$208,Lists!$A$16)","v":250},33000,null,{"$f":"SUMIFS(R$9:R$208,PlanningIDEnlaces,$C20,$H$9:$H$208,Lists!$A$16)","v":500},58000,null,{"$f":"SUMIFS(U$9:U$208,PlanningIDEnlaces,$C20,$H$9:$H$208,Lists!$A$16)","v":500},62000,null,{"$f":"SUMIFS(X$9:X$208,PlanningIDEnlaces,$C20,$H$9:$H$208,Lists!$A$16)","v":750},91000,null,{"$f":"SUMIFS(AA$9:AA$208,PlanningIDEnlaces,$C20,$H$9:$H$208,Lists!$A$16)","v":0},0,null,{"$f":"SUMIFS(AD$9:AD$208,PlanningIDEnlaces,$C20,$H$9:$H$208,Lists!$A$16)","v":0},0,null,{"$f":"SUMIFS(AG$9:AG$208,PlanningIDEnlaces,$C20,$H$9:$H$208,Lists!$A$16)","v":0},0,null,{"$f":"SUMIFS(AJ$9:AJ$208,PlanningIDEnlaces,$C20,$H$9:$H$208,Lists!$A$16)","v":0},0,null,{"$f":"SUMIFS(AM$9:AM$208,PlanningIDEnlaces,$C20,$H$9:$H$208,Lists!$A$16)","v":0},0,null,{"$f":"SUMIFS(AP$9:AP$208,PlanningIDEnlaces,$C20,$H$9:$H$208,Lists!$A$16)","v":0},0,null,{"$f":"IFERROR(INDEX(Lists!$F$5:$F$49,MATCH(Planning!C20,Lists!$G$5:$G$49,0),1),\"\")","v":"[OI01] # of new orphans and vulnerable children (0 - 17 yrs) benefiting from  services provided at OVC centers"},null,{"$f":"IF(C20=0,\"\",\" [\"&INDEX(Lists!$H$5:$H$49,MATCH(C20,Lists!$G$5:$G$49,0),1)&\"]\")","v":" [1. Standard]"}]
["I013",{"$nulls":43},0,{"v":0,"d":"0.00"},null,null,{"$f":"SUMIFS(I$9:I$208,PlanningIDEnlaces,$C21,$H$9:$H$208,Lists!$A$16)","v":0},0,null,{"$f":"SUMIFS(L$9:L$208,PlanningIDEnlaces,$C21,$H$9:$H$208,Lists!$A$16)","v":0},0,null,{"$f":"SUMIFS(O$9:O$208,PlanningIDEnlaces,$C21,$H$9:$H$208,Lists!$A$16)","v":0},0,null,{"$f":"SUMIFS(R$9:R$208,PlanningIDEnlaces,$C21,$H$9:$H$208,Lists!$A$16)","v":0},0,null,{"$f":"SUMIFS(U$9:U$208,PlanningIDEnlaces,$C21,$H$9:$H$208,Lists!$A$16)","v":0},0,null,{"$f":"SUMIFS(X$9:X$208,PlanningIDEnlaces,$C21,$H$9:$H$208,Lists!$A$16)","v":0},0,null,{"$f":"SUMIFS(AA$9:AA$208,PlanningIDEnlaces,$C21,$H$9:$H$208,Lists!$A$16)","v":0},0,null,{"$f":"SUMIFS(AD$9:AD$208,PlanningIDEnlaces,$C21,$H$9:$H$208,Lists!$A$16)","v":0},0,null,{"$f":"SUMIFS(AG$9:AG$208,PlanningIDEnlaces,$C21,$H$9:$H$208,Lists!$A$16)","v":0},0,null,{"$f":"SUMIFS(AJ$9:AJ$208,PlanningIDEnlaces,$C21,$H$9:$H$208,Lists!$A$16)","v":0},0,null,{"$f":"SUMIFS(AM$9:AM$208,PlanningIDEnlaces,$C21,$H$9:$H$208,Lists!$A$16)","v":0},0,null,{"$f":"SUMIFS(AP$9:AP$208,PlanningIDEnlaces,$C21,$H$9:$H$208,Lists!$A$16)","v":0},0,null,{"$f":"IFERROR(INDEX(Lists!$F$5:$F$49,MATCH(Planning!C21,Lists!$G$5:$G$49,0),1),\"\")","v":""},null,{"$f":"IF(C21=0,\"\",\" [\"&INDEX(Lists!$H$5:$H$49,MATCH(C21,Lists!$G$5:$G$49,0),1)&\"]\")","v":""}]
["I014",{"$nulls":43},0,{"v":0,"d":"0.00"},null,null,{"$f":"SUMIFS(I$9:I$208,PlanningIDEnlaces,$C22,$H$9:$H$208,Lists!$A$16)","v":0},0,null,{"$f":"SUMIFS(L$9:L$208,PlanningIDEnlaces,$C22,$H$9:$H$208,Lists!$A$16)","v":0},0,null,{"$f":"SUMIFS(O$9:O$208,PlanningIDEnlaces,$C22,$H$9:$H$208,Lists!$A$16)","v":0},0,null,{"$f":"SUMIFS(R$9:R$208,PlanningIDEnlaces,$C22,$H$9:$H$208,Lists!$A$16)","v":0},0,null,{"$f":"SUMIFS(U$9:U$208,PlanningIDEnlaces,$C22,$H$9:$H$208,Lists!$A$16)","v":0},0,null,{"$f":"SUMIFS(X$9:X$208,PlanningIDEnlaces,$C22,$H$9:$H$208,Lists!$A$16)","v":0},0,null,{"$f":"SUMIFS(AA$9:AA$208,PlanningIDEnlaces,$C22,$H$9:$H$208,Lists!$A$16)","v":0},0,null,{"$f":"SUMIFS(AD$9:AD$208,PlanningIDEnlaces,$C22,$H$9:$H$208,Lists!$A$16)","v":0},0,null,{"$f":"SUMIFS(AG$9:AG$208,PlanningIDEnlaces,$C22,$H$9:$H$208,Lists!$A$16)","v":0},0,null,{"$f":"SUMIFS(AJ$9:AJ$208,PlanningIDEnlaces,$C22,$H$9:$H$208,Lists!$A$16)","v":0},0,null,{"$f":"SUMIFS(AM$9:AM$208,PlanningIDEnlaces,$C22,$H$9:$H$208,Lists!$A$16)","v":0},0,null,{"$f":"SUMIFS(AP$9:AP$208,PlanningIDEnlaces,$C22,$H$9:$H$208,Lists!$A$16)","v":0},0,null,{"$f":"IFERROR(INDEX(Lists!$F$5:$F$49,MATCH(Planning!C22,Lists!$G$5:$G$49,0),1),\"\")","v":""},null,{"$f":"IF(C22=0,\"\",\" [\"&INDEX(Lists!$H$5:$H$49,MATCH(C22,Lists!$G$5:$G$49,0),1)&\"]\")","v":""}]
["I015",{"$nulls":43},0,{"v":0,"d":"0.00"},null,null,{"$f":"SUMIFS(I$9:I$208,PlanningIDEnlaces,$C23,$H$9:$H$208,Lists!$A$16)","v":0},0,null,{"$f":"SUMIFS(L$9:L$208,PlanningIDEnlaces,$C23,$H$9:$H$208,Lists!$A$16)","v":0},0,null,{"$f":"SUMIFS(O$9:O$208,PlanningIDEnlaces,$C23,$H$9:$H$208,Lists!$A$16)","v":0},0,null,{"$f":"SUMIFS(R$9:R$208,PlanningIDEnlaces,$C23,$H$9:$H$208,Lists!$A$16)","v":0},0,null,{"$f":"SUMIFS(U$9:U$208,PlanningIDEnlaces,$C23,$H$9:$H$208,Lists!$A$16)","v":0},0,null,{"$f":"SUMIFS(X$9:X$208,PlanningIDEnlaces,$C23,$H$9:$H$208,Lists!$A$16)","v":0},0,null,{"$f":"SUMIFS(AA$9:AA$208,PlanningIDEnlaces,$C23,$H$9:$H$208,Lists!$A$16)","v":0},0,null,{"$f":"SUMIFS(AD$9:AD$208,PlanningIDEnlaces,$C23,$H$9:$H$208,Lists!$A$16)","v":0},0,null,{"$f":"SUMIFS(AG$9:AG$208,PlanningIDEnlaces,$C23,$H$9:$H$208,Lists!$A$16)","v":0},0,null,{"$f":"SUMIFS(AJ$9:AJ$208,PlanningIDEnlaces,$C23,$H$9:$H$208,Lists!$A$16)","v":0},0,null,{"$f":"SUMIFS(AM$9:AM$208,PlanningIDEnlaces,$C23,$H$9:$H$208,Lists!$A$16)","v":0},0,null,{"$f":"SUMIFS(AP$9:AP$208,PlanningIDEnlaces,$C23,$H$9:$H$208,Lists!$A$16)","v":0},0,null,{"$f":"IFERROR(INDEX(Lists!$F$5:$F$49,MATCH(Planning!C23,Lists!$G$5:$G$49,0),1),\"\")","v":""},null,{"$f":"IF(C23=0,\"\",\" [\"&INDEX(Lists!$H$5:$H$49,MATCH(C23,Lists!$G$5:$G$49,0),1)&\"]\")","v":""}]
["I016",{"$nulls":43},0,{"v":0,"d":"0.00"},null,null,{"$f":"SUMIFS(I$9:I$208,PlanningIDEnlaces,$C24,$H$9:$H$208,Lists!$A$16)","v":0},0,null,{"$f":"SUMIFS(L$9:L$208,PlanningIDEnlaces,$C24,$H$9:$H$208,Lists!$A$16)","v":0},0,null,{"$f":"SUMIFS(O$9:O$208,PlanningIDEnlaces,$C24,$H$9:$H$208,Lists!$A$16)","v":0},0,null,{"$f":"SUMIFS(R$9:R$208,PlanningIDEnlaces,$C24,$H$9:$H$208,Lists!$A$16)","v":0},0,null,{"$f":"SUMIFS(U$9:U$208,PlanningIDEnlaces,$C24,$H$9:$H$208,Lists!$A$16)","v":0},0,null,{"$f":"SUMIFS(X$9:X$208,PlanningIDEnlaces,$C24,$H$9:$H$208,Lists!$A$16)","v":0},0,null,{"$f":"SUMIFS(AA$9:AA$208,PlanningIDEnlaces,$C24,$H$9:$H$208,Lists!$A$16)","v":0},0,null,{"$f":"SUMIFS(AD$9:AD$208,PlanningIDEnlaces,$C24,$H$9:$H$208,Lists!$A$16)","v":0},0,null,{"$f":"SUMIFS(AG$9:AG$208,PlanningIDEnlaces,$C24,$H$9:$H$208,Lists!$A$16)","v":0},0,null,{"$f":"SUMIFS(AJ$9:AJ$208,PlanningIDEnlaces,$C24,$H$9:$H$208,Lists!$A$16)","v":0},0,null,{"$f":"SUMIFS(AM$9:AM$208,PlanningIDEnlaces,$C24,$H$9:$H$208,Lists!$A$16)","v":0},0,null,{"$f":"SUMIFS(AP$9:AP$208,PlanningIDEnlaces,$C24,$H$9:$H$208,Lists!$A$16)","v":0},0,null,{"$f":"IFERROR(INDEX(Lists!$F$5:$F$49,MATCH(Planning!C24,Lists!$G$5:$G$49,0),1),\"\")","v":""},null,{"$f":"IF(C24=0,\"\",\" [\"&INDEX(Lists!$H$5:$H$49,MATCH(C24,Lists!$G$5:$G$49,0),1)&\"]\")","v":""}]
["I017",{"$nulls":43},0,{"v":0,"d":"0.00"},null,null,{"$f":"SUMIFS(I$9:I$208,PlanningIDEnlaces,$C25,$H$9:$H$208,Lists!$A$16)","v":0},0,null,{"$f":"SUMIFS(L$9:L$208,PlanningIDEnlaces,$C25,$H$9:$H$208,Lists!$A$16)","v":0},0,null,{"$f":"SUMIFS(O$9:O$208,PlanningIDEnlaces,$C25,$H$9:$H$208,Lists!$A$16)","v":0},0,null,{"$f":"SUMIFS(R$9:R$208,PlanningIDEnlaces,$C25,$H$9:$H$208,Lists!$A$16)","v":0},0,null,{"$f":"SUMIFS(U$9:U$208,PlanningIDEnlaces,$C25,$H$9:$H$208,Lists!$A$16)","v":0},0,null,{"$f":"SUMIFS(X$9:X$208,PlanningIDEnlaces,$C25,$H$9:$H$208,Lists!$A$16)","v":0},0,null,{"$f":"SUMIFS(AA$9:AA$208,PlanningIDEnlaces,$C25,$H$9:$H$208,Lists!$A$16)","v":0},0,null,{"$f":"SUMIFS(AD$9:AD$208,PlanningIDEnlaces,$C25,$H$9:$H$208,Lists!$A$16)","v":0},0,null,{"$f":"SUMIFS(AG$9:AG$208,PlanningIDEnlaces,$C25,$H$9:$H$208,Lists!$A$16)","v":0},0,null,{"$f":"SUMIFS(AJ$9:AJ$208,PlanningIDEnlaces,$C25,$H$9:$H$208,Lists!$A$16)","v":0},0,null,{"$f":"SUMIFS(AM$9:AM$208,PlanningIDEnlaces,$C25,$H$9:$H$208,Lists!$A$16)","v":0},0,null,{"$f":"SUMIFS(AP$9:AP$208,PlanningIDEnlaces,$C25,$H$9:$H$208,Lists!$A$16)","v":0},0,null,{"$f":"IFERROR(INDEX(Lists!$F$5:$F$49,MATCH(Planning!C25,Lists!$G$5:$G$49,0),1),\"\")","v":""},null,{"$f":"IF(C25=0,\"\",\" [\"&INDEX(Lists!$H$5:$H$49,MATCH(C25,Lists!$G$5:$G$49,0),1)&\"]\")","v":""}]
["I018",{"$nulls":43},0,{"v":0,"d":"0.00"},null,null,{"$f":"SUMIFS(I$9:I$208,PlanningIDEnlaces,$C26,$H$9:$H$208,Lists!$A$16)","v":0},0,null,{"$f":"SUMIFS(L$9:L$208,PlanningIDEnlaces,$C26,$H$9:$H$208,Lists!$A$16)","v":0},0,null,{"$f":"SUMIFS(O$9:O$208,PlanningIDEnlaces,$C26,$H$9:$H$208,Lists!$A$16)","v":0},0,null,{"$f":"SUMIFS(R$9:R$208,PlanningIDEnlaces,$C26,$H$9:$H$208,Lists!$A$16)","v":0},0,null,{"$f":"SUMIFS(U$9:U$208,PlanningIDEnlaces,$C26,$H$9:$H$208,Lists!$A$16)","v":0},0,null,{"$f":"SUMIFS(X$9:X$208,PlanningIDEnlaces,$C26,$H$9:$H$208,Lists!$A$16)","v":0},0,null,{"$f":"SUMIFS(AA$9:AA$208,PlanningIDEnlaces,$C26,$H$9:$H$208,Lists!$A$16)","v":0},0,null,{"$f":"SUMIFS(AD$9:AD$208,PlanningIDEnlaces,$C26,$H$9:$H$208,Lists!$A$16)","v":0},0,null,{"$f":"SUMIFS(AG$9:AG$208,PlanningIDEnlaces,$C26,$H$9:$H$208,Lists!$A$16)","v":0},0,null,{"$f":"SUMIFS(AJ$9:AJ$208,PlanningIDEnlaces,$C26,$H$9:$H$208,Lists!$A$16)","v":0},0,null,{"$f":"SUMIFS(AM$9:AM$208,PlanningIDEnlaces,$C26,$H$9:$H$208,Lists!$A$16)","v":0},0,null,{"$f":"SUMIFS(AP$9:AP$208,PlanningIDEnlaces,$C26,$H$9:$H$208,Lists!$A$16)","v":0},0,null,{"$f":"IFERROR(INDEX(Lists!$F$5:$F$49,MATCH(Planning!C26,Lists!$G$5:$G$49,0),1),\"\")","v":""},null,{"$f":"IF(C26=0,\"\",\" [\"&INDEX(Lists!$H$5:$H$49,MATCH(C26,Lists!$G$5:$G$49,0),1)&\"]\")","v":""}]
["I019",{"$nulls":43},0,{"v":0,"d":"0.00"},null,null,{"$f":"SUMIFS(I$9:I$208,PlanningIDEnlaces,$C27,$H$9:$H$208,Lists!$A$16)","v":0},0,null,{"$f":"SUMIFS(L$9:L$208,PlanningIDEnlaces,$C27,$H$9:$H$208,Lists!$A$16)","v":0},0,null,{"$f":"SUMIFS(O$9:O$208,PlanningIDEnlaces,$C27,$H$9:$H$208,Lists!$A$16)","v":0},0,null,{"$f":"SUMIFS(R$9:R$208,PlanningIDEnlaces,$C27,$H$9:$H$208,Lists!$A$16)","v":0},0,null,{"$f":"SUMIFS(U$9:U$208,PlanningIDEnlaces,$C27,$H$9:$H$208,Lists!$A$16)","v":0},0,null,{"$f":"SUMIFS(X$9:X$208,PlanningIDEnlaces,$C27,$H$9:$H$208,Lists!$A$16)","v":0},0,null,{"$f":"SUMIFS(AA$9:AA$208,PlanningIDEnlaces,$C27,$H$9:$H$208,Lists!$A$16)","v":0},0,null,{"$f":"SUMIFS(AD$9:AD$208,PlanningIDEnlaces,$C27,$H$9:$H$208,Lists!$A$16)","v":0},0,null,{"$f":"SUMIFS(AG$9:AG$208,PlanningIDEnlaces,$C27,$H$9:$H$208,Lists!$A$16)","v":0},0,null,{"$f":"SUMIFS(AJ$9:AJ$208,PlanningIDEnlaces,$C27,$H$9:$H$208,Lists!$A$16)","v":0},0,null,{"$f":"SUMIFS(AM$9:AM$208,PlanningIDEnlaces,$C27,$H$9:$H$208,Lists!$A$16)","v":0},0,null,{"$f":"SUMIFS(AP$9:AP$208,PlanningIDEnlaces,$C27,$H$9:$H$208,Lists!$A$16)","v":0},0,null,{"$f":"IFERROR(INDEX(Lists!$F$5:$F$49,MATCH(Planning!C27,Lists!$G$5:$G$49,0),1),\"\")","v":""},null,{"$f":"IF(C27=0,\"\",\" [\"&INDEX(Lists!$H$5:$H$49,MATCH(C27,Lists!$G$5:$G$49,0),1)&\"]\")","v":""}]
["I020",{"$nulls":43},0,{"v":0,"d":"0.00"},null,null,{"$f":"SUMIFS(I$9:I$208,PlanningIDEnlaces,$C28,$H$9:$H$208,Lists!$A$16)","v":0},0,null,{"$f":"SUMIFS(L$9:L$208,PlanningIDEnlaces,$C28,$H$9:$H$208,Lists!$A$16)","v":0},0,null,{"$f":"SUMIFS(O$9:O$208,PlanningIDEnlaces,$C28,$H$9:$H$208,Lists!$A$16)","v":0},0,null,{"$f":"SUMIFS(R$9:R$208,PlanningIDEnlaces,$C28,$H$9:$H$208,Lists!$A$16)","v":0},0,null,{"$f":"SUMIFS(U$9:U$208,PlanningIDEnlaces,$C28,$H$9:$H$208,Lists!$A$16)","v":0},0,null,{"$f":"SUMIFS(X$9:X$208,PlanningIDEnlaces,$C28,$H$9:$H$208,Lists!$A$16)","v":0},0,null,{"$f":"SUMIFS(AA$9:AA$208,PlanningIDEnlaces,$C28,$H$9:$H$208,Lists!$A$16)","v":0},0,null,{"$f":"SUMIFS(AD$9:AD$208,PlanningIDEnlaces,$C28,$H$9:$H$208,Lists!$A$16)","v":0},0,null,{"$f":"SUMIFS(AG$9:AG$208,PlanningIDEnlaces,$C28,$H$9:$H$208,Lists!$A$16)","v":0},0,null,{"$f":"SUMIFS(AJ$9:AJ$208,PlanningIDEnlaces,$C28,$H$9:$H$208,Lists!$A$16)","v":0},0,null,{"$f":"SUMIFS(AM$9:AM$208,PlanningIDEnlaces,$C28,$H$9:$H$208,Lists!$A$16)","v":0},0,null,{"$f":"SUMIFS(AP$9:AP$208,PlanningIDEnlaces,$C28,$H$9:$H$208,Lists!$A$16)","v":0},0,null,{"$f":"IFERROR(INDEX(Lists!$F$5:$F$49,MATCH(Planning!C28,Lists!$G$5:$G$49,0),1),\"\")","v":""},null,{"$f":"IF(C28=0,\"\",\" [\"&INDEX(Lists!$H$5:$H$49,MATCH(C28,Lists!$G$5:$G$49,0),1)&\"]\")","v":""}]
["I021",{"$nulls":43},0,{"v":0,"d":"0.00"},null,null,{"$f":"SUMIFS(I$9:I$208,PlanningIDEnlaces,$C29,$H$9:$H$208,Lists!$A$16)","v":0},0,null,{"$f":"SUMIFS(L$9:L$208,PlanningIDEnlaces,$C29,$H$9:$H$208,Lists!$A$16)","v":0},0,null,{"$f":"SUMIFS(O$9:O$208,PlanningIDEnlaces,$C29,$H$9:$H$208,Lists!$A$16)","v":0},0,null,{"$f":"SUMIFS(R$9:R$208,PlanningIDEnlaces,$C29,$H$9:$H$208,Lists!$A$16)","v":0},0,null,{"$f":"SUMIFS(U$9:U$208,PlanningIDEnlaces,$C29,$H$9:$H$208,Lists!$A$16)","v":0},0,null,{"$f":"SUMIFS(X$9:X$208,PlanningIDEnlaces,$C29,$H$9:$H$208,Lists!$A$16)","v":0},0,null,{"$f":"SUMIFS(AA$9:AA$208,PlanningIDEnlaces,$C29,$H$9:$H$208,Lists!$A$16)","v":0},0,null,{"$f":"SUMIFS(AD$9:AD$208,PlanningIDEnlaces,$C29,$H$9:$H$208,Lists!$A$16)","v":0},0,null,{"$f":"SUMIFS(AG$9:AG$208,PlanningIDEnlaces,$C29,$H$9:$H$208,Lists!$A$16)","v":0},0,null,{"$f":"SUMIFS(AJ$9:AJ$208,PlanningIDEnlaces,$C29,$H$9:$H$208,Lists!$A$16)","v":0},0,null,{"$f":"SUMIFS(AM$9:AM$208,PlanningIDEnlaces,$C29,$H$9:$H$208,Lists!$A$16)","v":0},0,null,{"$f":"SUMIFS(AP$9:AP$208,PlanningIDEnlaces,$C29,$H$9:$H$208,Lists!$A$16)","v":0},0,null,{"$f":"IFERROR(INDEX(Lists!$F$5:$F$49,MATCH(Planning!C29,Lists!$G$5:$G$49,0),1),\"\")","v":""},null,{"$f":"IF(C29=0,\"\",\" [\"&INDEX(Lists!$H$5:$H$49,MATCH(C29,Lists!$G$5:$G$49,0),1)&\"]\")","v":""}]
["I022",{"$nulls":43},0,{"v":0,"d":"0.00"},null,null,{"$f":"SUMIFS(I$9:I$208,PlanningIDEnlaces,$C30,$H$9:$H$208,Lists!$A$16)","v":0},0,null,{"$f":"SUMIFS(L$9:L$208,PlanningIDEnlaces,$C30,$H$9:$H$208,Lists!$A$16)","v":0},0,null,{"$f":"SUMIFS(O$9:O$208,PlanningIDEnlaces,$C30,$H$9:$H$208,Lists!$A$16)","v":0},0,null,{"$f":"SUMIFS(R$9:R$208,PlanningIDEnlaces,$C30,$H$9:$H$208,Lists!$A$16)","v":0},0,null,{"$f":"SUMIFS(U$9:U$208,PlanningIDEnlaces,$C30,$H$9:$H$208,Lists!$A$16)","v":0},0,null,{"$f":"SUMIFS(X$9:X$208,PlanningIDEnlaces,$C30,$H$9:$H$208,Lists!$A$16)","v":0},0,null,{"$f":"SUMIFS(AA$9:AA$208,PlanningIDEnlaces,$C30,$H$9:$H$208,Lists!$A$16)","v":0},0,null,{"$f":"SUMIFS(AD$9:AD$208,PlanningIDEnlaces,$C30,$H$9:$H$208,Lists!$A$16)","v":0},0,null,{"$f":"SUMIFS(AG$9:AG$208,PlanningIDEnlaces,$C30,$H$9:$H$208,Lists!$A$16)","v":0},0,null,{"$f":"SUMIFS(AJ$9:AJ$208,PlanningIDEnlaces,$C30,$H$9:$H$208,Lists!$A$16)","v":0},0,null,{"$f":"SUMIFS(AM$9:AM$208,PlanningIDEnlaces,$C30,$H$9:$H$208,Lists!$A$16)","v":0},0,null,{"$f":"SUMIFS(AP$9:AP$208,PlanningIDEnlaces,$C30,$H$9:$H$208,Lists!$A$16)","v":0},0,null,{"$f":"IFERROR(INDEX(Lists!$F$5:$F$49,MATCH(Planning!C30,Lists!$G$5:$G$49,0),1),\"\")","v":""},null,{"$f":"IF(C30=0,\"\",\" [\"&INDEX(Lists!$H$5:$H$49,MATCH(C30,Lists!$G$5:$G$49,0),1)&\"]\")","v":""}]
["I023",{"$nulls":43},0,{"v":0,"d":"0.00"},null,null,{"$f":"SUMIFS(I$9:I$208,PlanningIDEnlaces,$C31,$H$9:$H$208,Lists!$A$16)","v":0},0,null,{"$f":"SUMIFS(L$9:L$208,PlanningIDEnlaces,$C31,$H$9:$H$208,Lists!$A$16)","v":0},0,null,{"$f":"SUMIFS(O$9:O$208,PlanningIDEnlaces,$C31,$H$9:$H$208,Lists!$A$16)","v":0},0,null,{"$f":"SUMIFS(R$9:R$208,PlanningIDEnlaces,$C31,$H$9:$H$208,Lists!$A$16)","v":0},0,null,{"$f":"SUMIFS(U$9:U$208,PlanningIDEnlaces,$C31,$H$9:$H$208,Lists!$A$16)","v":0},0,null,{"$f":"SUMIFS(X$9:X$208,PlanningIDEnlaces,$C31,$H$9:$H$208,Lists!$A$16)","v":0},0,null,{"$f":"SUMIFS(AA$9:AA$208,PlanningIDEnlaces,$C31,$H$9:$H$208,Lists!$A$16)","v":0},0,null,{"$f":"SUMIFS(AD$9:AD$208,PlanningIDEnlaces,$C31,$H$9:$H$208,Lists!$A$16)","v":0},0,null,{"$f":"SUMIFS(AG$9:AG$208,PlanningIDEnlaces,$C31,$H$9:$H$208,Lists!$A$16)","v":0},0,null,{"$f":"SUMIFS(AJ$9:AJ$208,PlanningIDEnlaces,$C31,$H$9:$H$208,Lists!$A$16)","v":0},0,null,{"$f":"SUMIFS(AM$9:AM$208,PlanningIDEnlaces,$C31,$H$9:$H$208,Lists!$A$16)","v":0},0,null,{"$f":"SUMIFS(AP$9:AP$208,PlanningIDEnlaces,$C31,$H$9:$H$208,Lists!$A$16)","v":0},0,null,{"$f":"IFERROR(INDEX(Lists!$F$5:$F$49,MATCH(Planning!C31,Lists!$G$5:$G$49,0),1),\"\")","v":""},null,{"$f":"IF(C31=0,\"\",\" [\"&INDEX(Lists!$H$5:$H$49,MATCH(C31,Lists!$G$5:$G$49,0),1)&\"]\")","v":""}]
["I024",{"$nulls":43},0,{"v":0,"d":"0.00"},null,null,{"$f":"SUMIFS(I$9:I$208,PlanningIDEnlaces,$C32,$H$9:$H$208,Lists!$A$16)","v":0},0,null,{"$f":"SUMIFS(L$9:L$208,PlanningIDEnlaces,$C32,$H$9:$H$208,Lists!$A$16)","v":0},0,null,{"$f":"SUMIFS(O$9:O$208,PlanningIDEnlaces,$C32,$H$9:$H$208,Lists!$A$16)","v":0},0,null,{"$f":"SUMIFS(R$9:R$208,PlanningIDEnlaces,$C32,$H$9:$H$208,Lists!$A$16)","v":0},0,null,{"$f":"SUMIFS(U$9:U$208,PlanningIDEnlaces,$C32,$H$9:$H$208,Lists!$A$16)","v":0},0,null,{"$f":"SUMIFS(X$9:X$208,PlanningIDEnlaces,$C32,$H$9:$H$208,Lists!$A$16)","v":0},0,null,{"$f":"SUMIFS(AA$9:AA$208,PlanningIDEnlaces,$C32,$H$9:$H$208,Lists!$A$16)","v":0},0,null,{"$f":"SUMIFS(AD$9:AD$208,PlanningIDEnlaces,$C32,$H$9:$H$208,Lists!$A$16)","v":0},0,null,{"$f":"SUMIFS(AG$9:AG$208,PlanningIDEnlaces,$C32,$H$9:$H$208,Lists!$A$16)","v":0},0,null,{"$f":"SUMIFS(AJ$9:AJ$208,PlanningIDEnlaces,$C32,$H$9:$H$208,Lists!$A$16)","v":0},0,null,{"$f":"SUMIFS(AM$9:AM$208,PlanningIDEnlaces,$C32,$H$9:$H$208,Lists!$A$16)","v":0},0,null,{"$f":"SUMIFS(AP$9:AP$208,PlanningIDEnlaces,$C32,$H$9:$H$208,Lists!$A$16)","v":0},0,null,{"$f":"IFERROR(INDEX(Lists!$F$5:$F$49,MATCH(Planning!C32,Lists!$G$5:$G$49,0),1),\"\")","v":""},null,{"$f":"IF(C32=0,\"\",\" [\"&INDEX(Lists!$H$5:$H$49,MATCH(C32,Lists!$G$5:$G$49,0),1)&\"]\")","v":""}]
["I025",{"$nulls":43},0,{"v":0,"d":"0.00"},null,null,{"$f":"SUMIFS(I$9:I$208,PlanningIDEnlaces,$C33,$H$9:$H$208,Lists!$A$16)","v":0},0,null,{"$f":"SUMIFS(L$9:L$208,PlanningIDEnlaces,$C33,$H$9:$H$208,Lists!$A$16)","v":0},0,null,{"$f":"SUMIFS(O$9:O$208,PlanningIDEnlaces,$C33,$H$9:$H$208,Lists!$A$16)","v":0},0,null,{"$f":"SUMIFS(R$9:R$208,PlanningIDEnlaces,$C33,$H$9:$H$208,Lists!$A$16)","v":0},0,null,{"$f":"SUMIFS(U$9:U$208,PlanningIDEnlaces,$C33,$H$9:$H$208,Lists!$A$16)","v":0},0,null,{"$f":"SUMIFS(X$9:X$208,PlanningIDEnlaces,$C33,$H$9:$H$208,Lists!$A$16)","v":0},0,null,{"$f":"SUMIFS(AA$9:AA$208,PlanningIDEnlaces,$C33,$H$9:$H$208,Lists!$A$16)","v":0},0,null,{"$f":"SUMIFS(AD$9:AD$208,PlanningIDEnlaces,$C33,$H$9:$H$208,Lists!$A$16)","v":0},0,null,{"$f":"SUMIFS(AG$9:AG$208,PlanningIDEnlaces,$C33,$H$9:$H$208,Lists!$A$16)","v":0},0,null,{"$f":"SUMIFS(AJ$9:AJ$208,PlanningIDEnlaces,$C33,$H$9:$H$208,Lists!$A$16)","v":0},0,null,{"$f":"SUMIFS(AM$9:AM$208,PlanningIDEnlaces,$C33,$H$9:$H$208,Lists!$A$16)","v":0},0,null,{"$f":"SUMIFS(AP$9:AP$208,PlanningIDEnlaces,$C33,$H$9:$H$208,Lists!$A$16)","v":0},0,null,{"$f":"IFERROR(INDEX(Lists!$F$5:$F$49,MATCH(Planning!C33,Lists!$G$5:$G$49,0),1),\"\")","v":""},null,{"$f":"IF(C33=0,\"\",\" [\"&INDEX(Lists!$H$5:$H$49,MATCH(C33,Lists!$G$5:$G$49,0),1)&\"]\")","v":""}]
["I026",{"$nulls":43},0,{"v":0,"d":"0.00"},null,null,{"$f":"SUMIFS(I$9:I$208,PlanningIDEnlaces,$C34,$H$9:$H$208,Lists!$A$16)","v":0},0,null,{"$f":"SUMIFS(L$9:L$208,PlanningIDEnlaces,$C34,$H$9:$H$208,Lists!$A$16)","v":0},0,null,{"$f":"SUMIFS(O$9:O$208,PlanningIDEnlaces,$C34,$H$9:$H$208,Lists!$A$16)","v":0},0,null,{"$f":"SUMIFS(R$9:R$208,PlanningIDEnlaces,$C34,$H$9:$H$208,Lists!$A$16)","v":0},0,null,{"$f":"SUMIFS(U$9:U$208,PlanningIDEnlaces,$C34,$H$9:$H$208,Lists!$A$16)","v":0},0,null,{"$f":"SUMIFS(X$9:X$208,PlanningIDEnlaces,$C34,$H$9:$H$208,Lists!$A$16)","v":0},0,null,{"$f":"SUMIFS(AA$9:AA$208,PlanningIDEnlaces,$C34,$H$9:$H$208,Lists!$A$16)","v":0},0,null,{"$f":"SUMIFS(AD$9:AD$208,PlanningIDEnlaces,$C34,$H$9:$H$208,Lists!$A$16)","v":0},0,null,{"$f":"SUMIFS(AG$9:AG$208,PlanningIDEnlaces,$C34,$H$9:$H$208,Lists!$A$16)","v":0},0,null,{"$f":"SUMIFS(AJ$9:AJ$208,PlanningIDEnlaces,$C34,$H$9:$H$208,Lists!$A$16)","v":0},0,null,{"$f":"SUMIFS(AM$9:AM$208,PlanningIDEnlaces,$C34,$H$9:$H$208,Lists!$A$16)","v":0},0,null,{"$f":"SUMIFS(AP$9:AP$208,PlanningIDEnlaces,$C34,$H$9:$H$208,Lists!$A$16)","v":0},0,null,{"$f":"IFERROR(INDEX(Lists!$F$5:$F$49,MATCH(Planning!C34,Lists!$G$5:$G$49,0),1),\"\")","v":""},null,{"$f":"IF(C34=0,\"\",\" [\"&INDEX(Lists!$H$5:$H$49,MATCH(C34,Lists!$G$5:$G$49,0),1)&\"]\")","v":""}]
["I027",{"$nulls":43},0,{"v":0,"d":"0.00"},null,null,{"$f":"SUMIFS(I$9:I$208,PlanningIDEnlaces,$C35,$H$9:$H$208,Lists!$A$16)","v":0},0,null,{"$f":"SUMIFS(L$9:L$208,PlanningIDEnlaces,$C35,$H$9:$H$208,Lists!$A$16)","v":0},0,null,{"$f":"SUMIFS(O$9:O$208,PlanningIDEnlaces,$C35,$H$9:$H$208,Lists!$A$16)","v":0},0,null,{"$f":"SUMIFS(R$9:R$208,PlanningIDEnlaces,$C35,$H$9:$H$208,Lists!$A$16)","v":0},0,null,{"$f":"SUMIFS(U$9:U$208,PlanningIDEnlaces,$C35,$H$9:$H$208,Lists!$A$16)","v":0},0,null,{"$f":"SUMIFS(X$9:X$208,PlanningIDEnlaces,$C35,$H$9:$H$208,Lists!$A$16)","v":0},0,null,{"$f":"SUMIFS(AA$9:AA$208,PlanningIDEnlaces,$C35,$H$9:$H$208,Lists!$A$16)","v":0},0,null,{"$f":"SUMIFS(AD$9:AD$208,PlanningIDEnlaces,$C35,$H$9:$H$208,Lists!$A$16)","v":0},0,null,{"$f":"SUMIFS(AG$9:AG$208,PlanningIDEnlaces,$C35,$H$9:$H$208,Lists!$A$16)","v":0},0,null,{"$f":"SUMIFS(AJ$9:AJ$208,PlanningIDEnlaces,$C35,$H$9:$H$208,Lists!$A$16)","v":0},0,null,{"$f":"SUMIFS(AM$9:AM$208,PlanningIDEnlaces,$C35,$H$9:$H$208,Lists!$A$16)","v":0},0,null,{"$f":"SUMIFS(AP$9:AP$208,PlanningIDEnlaces,$C35,$H$9:$H$208,Lists!$A$16)","v":0},0,null,{"$f":"IFERROR(INDEX(Lists!$F$5:$F$49,MATCH(Planning!C35,Lists!$G$5:$G$49,0),1),\"\")","v":""},null,{"$f":"IF(C35=0,\"\",\" [\"&INDEX(Lists!$H$5:$H$49,MATCH(C35,Lists!$G$5:$G$49,0),1)&\"]\")","v":""}]
["I028",{"$nulls":43},0,{"v":0,"d":"0.00"},null,null,{"$f":"SUMIFS(I$9:I$208,PlanningIDEnlaces,$C36,$H$9:$H$208,Lists!$A$16)","v":0},0,null,{"$f":"SUMIFS(L$9:L$208,PlanningIDEnlaces,$C36,$H$9:$H$208,Lists!$A$16)","v":0},0,null,{"$f":"SUMIFS(O$9:O$208,PlanningIDEnlaces,$C36,$H$9:$H$208,Lists!$A$16)","v":0},0,null,{"$f":"SUMIFS(R$9:R$208,PlanningIDEnlaces,$C36,$H$9:$H$208,Lists!$A$16)","v":0},0,null,{"$f":"SUMIFS(U$9:U$208,PlanningIDEnlaces,$C36,$H$9:$H$208,Lists!$A$16)","v":0},0,null,{"$f":"SUMIFS(X$9:X$208,PlanningIDEnlaces,$C36,$H$9:$H$208,Lists!$A$16)","v":0},0,null,{"$f":"SUMIFS(AA$9:AA$208,PlanningIDEnlaces,$C36,$H$9:$H$208,Lists!$A$16)","v":0},0,null,{"$f":"SUMIFS(AD$9:AD$208,PlanningIDEnlaces,$C36,$H$9:$H$208,Lists!$A$16)","v":0},0,null,{"$f":"SUMIFS(AG$9:AG$208,PlanningIDEnlaces,$C36,$H$9:$H$208,Lists!$A$16)","v":0},0,null,{"$f":"SUMIFS(AJ$9:AJ$208,PlanningIDEnlaces,$C36,$H$9:$H$208,Lists!$A$16)","v":0},0,null,{"$f":"SUMIFS(AM$9:AM$208,PlanningIDEnlaces,$C36,$H$9:$H$208,Lists!$A$16)","v":0},0,null,{"$f":"SUMIFS(AP$9:AP$208,PlanningIDEnlaces,$C36,$H$9:$H$208,Lists!$A$16)","v":0},0,null,{"$f":"IFERROR(INDEX(Lists!$F$5:$F$49,MATCH(Planning!C36,Lists!$G$5:$G$49,0),1),\"\")","v":""},null,{"$f":"IF(C36=0,\"\",\" [\"&INDEX(Lists!$H$5:$H$49,MATCH(C36,Lists!$G$5:$G$49,0),1)&\"]\")","v":""}]
["I029",{"$nulls":43},0,{"v":0,"d":"0.00"},null,null,{"$f":"SUMIFS(I$9:I$208,PlanningIDEnlaces,$C37,$H$9:$H$208,Lists!$A$16)","v":0},0,null,{"$f":"SUMIFS(L$9:L$208,PlanningIDEnlaces,$C37,$H$9:$H$208,Lists!$A$16)","v":0},0,null,{"$f":"SUMIFS(O$9:O$208,PlanningIDEnlaces,$C37,$H$9:$H$208,Lists!$A$16)","v":0},0,null,{"$f":"SUMIFS(R$9:R$208,PlanningIDEnlaces,$C37,$H$9:$H$208,Lists!$A$16)","v":0},0,null,{"$f":"SUMIFS(U$9:U$208,PlanningIDEnlaces,$C37,$H$9:$H$208,Lists!$A$16)","v":0},0,null,{"$f":"SUMIFS(X$9:X$208,PlanningIDEnlaces,$C37,$H$9:$H$208,Lists!$A$16)","v":0},0,null,{"$f":"SUMIFS(AA$9:AA$208,PlanningIDEnlaces,$C37,$H$9:$H$208,Lists!$A$16)","v":0},0,null,{"$f":"SUMIFS(AD$9:AD$208,PlanningIDEnlaces,$C37,$H$9:$H$208,Lists!$A$16)","v":0},0,null,{"$f":"SUMIFS(AG$9:AG$208,PlanningIDEnlaces,$C37,$H$9:$H$208,Lists!$A$16)","v":0},0,null,{"$f":"SUMIFS(AJ$9:AJ$208,PlanningIDEnlaces,$C37,$H$9:$H$208,Lists!$A$16)","v":0},0,null,{"$f":"SUMIFS(AM$9:AM$208,PlanningIDEnlaces,$C37,$H$9:$H$208,Lists!$A$16)","v":0},0,null,{"$f":"SUMIFS(AP$9:AP$208,PlanningIDEnlaces,$C37,$H$9:$H$208,Lists!$A$16)","v":0},0,null,{"$f":"IFERROR(INDEX(Lists!$F$5:$F$49,MATCH(Planning!C37,Lists!$G$5:$G$49,0),1),\"\")","v":""},null,{"$f":"IF(C37=0,\"\",\" [\"&INDEX(Lists!$H$5:$H$49,MATCH(C37,Lists!$G$5:$G$49,0),1)&\"]\")","v":""}]
["I030",{"$nulls":43},0,{"v":0,"d":"0.00"},null,null,{"$f":"SUMIFS(I$9:I$208,PlanningIDEnlaces,$C38,$H$9:$H$208,Lists!$A$16)","v":0},0,null,{"$f":"SUMIFS(L$9:L$208,PlanningIDEnlaces,$C38,$H$9:$H$208,Lists!$A$16)","v":0},0,null,{"$f":"SUMIFS(O$9:O$208,PlanningIDEnlaces,$C38,$H$9:$H$208,Lists!$A$16)","v":0},0,null,{"$f":"SUMIFS(R$9:R$208,PlanningIDEnlaces,$C38,$H$9:$H$208,Lists!$A$16)","v":0},0,null,{"$f":"SUMIFS(U$9:U$208,PlanningIDEnlaces,$C38,$H$9:$H$208,Lists!$A$16)","v":0},0,null,{"$f":"SUMIFS(X$9:X$208,PlanningIDEnlaces,$C38,$H$9:$H$208,Lists!$A$16)","v":0},0,null,{"$f":"SUMIFS(AA$9:AA$208,PlanningIDEnlaces,$C38,$H$9:$H$208,Lists!$A$16)","v":0},0,null,{"$f":"SUMIFS(AD$9:AD$208,PlanningIDEnlaces,$C38,$H$9:$H$208,Lists!$A$16)","v":0},0,null,{"$f":"SUMIFS(AG$9:AG$208,PlanningIDEnlaces,$C38,$H$9:$H$208,Lists!$A$16)","v":0},0,null,{"$f":"SUMIFS(AJ$9:AJ$208,PlanningIDEnlaces,$C38,$H$9:$H$208,Lists!$A$16)","v":0},0,null,{"$f":"SUMIFS(AM$9:AM$208,PlanningIDEnlaces,$C38,$H$9:$H$208,Lists!$A$16)","v":0},0,null,{"$f":"SUMIFS(AP$9:AP$208,PlanningIDEnlaces,$C38,$H$9:$H$208,Lists!$A$16)","v":0},0,null,{"$f":"IFERROR(INDEX(Lists!$F$5:$F$49,MATCH(Planning!C38,Lists!$G$5:$G$49,0),1),\"\")","v":""},null,{"$f":"IF(C38=0,\"\",\" [\"&INDEX(Lists!$H$5:$H$49,MATCH(C38,Lists!$G$5:$G$49,0),1)&\"]\")","v":""}]
["I031",{"$nulls":43},0,{"v":0,"d":"0.00"},null,null,{"$f":"SUMIFS(I$9:I$208,PlanningIDEnlaces,$C39,$H$9:$H$208,Lists!$A$16)","v":0},0,null,{"$f":"SUMIFS(L$9:L$208,PlanningIDEnlaces,$C39,$H$9:$H$208,Lists!$A$16)","v":0},0,null,{"$f":"SUMIFS(O$9:O$208,PlanningIDEnlaces,$C39,$H$9:$H$208,Lists!$A$16)","v":0},0,null,{"$f":"SUMIFS(R$9:R$208,PlanningIDEnlaces,$C39,$H$9:$H$208,Lists!$A$16)","v":0},0,null,{"$f":"SUMIFS(U$9:U$208,PlanningIDEnlaces,$C39,$H$9:$H$208,Lists!$A$16)","v":0},0,null,{"$f":"SUMIFS(X$9:X$208,PlanningIDEnlaces,$C39,$H$9:$H$208,Lists!$A$16)","v":0},0,null,{"$f":"SUMIFS(AA$9:AA$208,PlanningIDEnlaces,$C39,$H$9:$H$208,Lists!$A$16)","v":0},0,null,{"$f":"SUMIFS(AD$9:AD$208,PlanningIDEnlaces,$C39,$H$9:$H$208,Lists!$A$16)","v":0},0,null,{"$f":"SUMIFS(AG$9:AG$208,PlanningIDEnlaces,$C39,$H$9:$H$208,Lists!$A$16)","v":0},0,null,{"$f":"SUMIFS(AJ$9:AJ$208,PlanningIDEnlaces,$C39,$H$9:$H$208,Lists!$A$16)","v":0},0,null,{"$f":"SUMIFS(AM$9:AM$208,PlanningIDEnlaces,$C39,$H$9:$H$208,Lists!$A$16)","v":0},0,null,{"$f":"SUMIFS(AP$9:AP$208,PlanningIDEnlaces,$C39,$H$9:$H$208,Lists!$A$16)","v":0},0,null,{"$f":"IFERROR(INDEX(Lists!$F$5:$F$49,MATCH(Planning!C39,Lists!$G$5:$G$49,0),1),\"\")","v":""},null,{"$f":"IF(C39=0,\"\",\" [\"&INDEX(Lists!$H$5:$H$49,MATCH(C39,Lists!$G$5:$G$49,0),1)&\"]\")","v":""}]
["I032",{"$nulls":43},0,{"v":0,"d":"0.00"},null,null,{"$f":"SUMIFS(I$9:I$208,PlanningIDEnlaces,$C40,$H$9:$H$208,Lists!$A$16)","v":0},0,null,{"$f":"SUMIFS(L$9:L$208,PlanningIDEnlaces,$C40,$H$9:$H$208,Lists!$A$16)","v":0},0,null,{"$f":"SUMIFS(O$9:O$208,PlanningIDEnlaces,$C40,$H$9:$H$208,Lists!$A$16)","v":0},0,null,{"$f":"SUMIFS(R$9:R$208,PlanningIDEnlaces,$C40,$H$9:$H$208,Lists!$A$16)","v":0},0,null,{"$f":"SUMIFS(U$9:U$208,PlanningIDEnlaces,$C40,$H$9:$H$208,Lists!$A$16)","v":0},0,null,{"$f":"SUMIFS(X$9:X$208,PlanningIDEnlaces,$C40,$H$9:$H$208,Lists!$A$16)","v":0},0,null,{"$f":"SUMIFS(AA$9:AA$208,PlanningIDEnlaces,$C40,$H$9:$H$208,Lists!$A$16)","v":0},0,null,{"$f":"SUMIFS(AD$9:AD$208,PlanningIDEnlaces,$C40,$H$9:$H$208,Lists!$A$16)","v":0},0,null,{"$f":"SUMIFS(AG$9:AG$208,PlanningIDEnlaces,$C40,$H$9:$H$208,Lists!$A$16)","v":0},0,null,{"$f":"SUMIFS(AJ$9:AJ$208,PlanningIDEnlaces,$C40,$H$9:$H$208,Lists!$A$16)","v":0},0,null,{"$f":"SUMIFS(AM$9:AM$208,PlanningIDEnlaces,$C40,$H$9:$H$208,Lists!$A$16)","v":0},0,null,{"$f":"SUMIFS(AP$9:AP$208,PlanningIDEnlaces,$C40,$H$9:$H$208,Lists!$A$16)","v":0},0,null,{"$f":"IFERROR(INDEX(Lists!$F$5:$F$49,MATCH(Planning!C40,Lists!$G$5:$G$49,0),1),\"\")","v":""},null,{"$f":"IF(C40=0,\"\",\" [\"&INDEX(Lists!$H$5:$H$49,MATCH(C40,Lists!$G$5:$G$49,0),1)&\"]\")","v":""}]
["I033",{"$nulls":43},{"$f":"I41+L41+O41+R41+U41+X41+AA41+AD41+AG41+AJ41+AM41+AP41","v":0},{"$f":"J41+M41+P41+S41+V41+Y41+AB41+AE41+AH41+AK41+AN41+AQ41","v":{"v":0,"d":"0.00"}},null,null,{"$f":"SUMIFS(I$9:I$208,PlanningIDEnlaces,$C41,$H$9:$H$208,Lists!$A$16)","v":0},{"$f":"SUMIFS(J$9:J$208,PlanningIDEnlaces,$C41,$H$9:$H$208,\"<>\")","v":0},null,{"$f":"SUMIFS(L$9:L$208,PlanningIDEnlaces,$C41,$H$9:$H$208,Lists!$A$16)","v":0},{"$f":"SUMIFS(M$9:M$208,PlanningIDEnlaces,$C41,$H$9:$H$208,\"<>\")","v":0},null,{"$f":"SUMIFS(O$9:O$208,PlanningIDEnlaces,$C41,$H$9:$H$208,Lists!$A$16)","v":0},{"$f":"SUMIFS(P$9:P$208,PlanningIDEnlaces,$C41,$H$9:$H$208,\"<>\")","v":0},null,{"$f":"SUMIFS(R$9:R$208,PlanningIDEnlaces,$C41,$H$9:$H$208,Lists!$A$16)","v":0},{"$f":"SUMIFS(S$9:S$208,PlanningIDEnlaces,$C41,$H$9:$H$208,\"<>\")","v":0},null,{"$f":"SUMIFS(U$9:U$208,PlanningIDEnlaces,$C41,$H$9:$H$208,Lists!$A$16)","v":0},{"$f":"SUMIFS(V$9:V$208,PlanningIDEnlaces,$C41,$H$9:$H$208,\"<>\")","v":0},null,{"$f":"SUMIFS(X$9:X$208,PlanningIDEnlaces,$C41,$H$9:$H$208,Lists!$A$16)","v":0},{"$f":"SUMIFS(Y$9:Y$208,PlanningIDEnlaces,$C41,$H$9:$H$208,\"<>\")","v":0},null,{"$f":"SUMIFS(AA$9:AA$208,PlanningIDEnlaces,$C41,$H$9:$H$208,Lists!$A$16)","v":0},{"$f":"SUMIFS(AB$9:AB$208,PlanningIDEnlaces,$C41,$H$9:$H$208,\"<>\")","v":0},null,{"$f":"SUMIFS(AD$9:AD$208,PlanningIDEnlaces,$C41,$H$9:$H$208,Lists!$A$16)","v":0},{"$f":"SUMIFS(AE$9:AE$208,PlanningIDEnlaces,$C41,$H$9:$H$208,\"<>\")","v":0},null,{"$f":"SUMIFS(AG$9:AG$208,PlanningIDEnlaces,$C41,$H$9:$H$208,Lists!$A$16)","v":0},{"$f":"SUMIFS(AH$9:AH$208,PlanningIDEnlaces,$C41,$H$9:$H$208,\"<>\")","v":0},null,{"$f":"SUMIFS(AJ$9:AJ$208,PlanningIDEnlaces,$C41,$H$9:$H$208,Lists!$A$16)","v":0},{"$f":"SUMIFS(AK$9:AK$208,PlanningIDEnlaces,$C41,$H$9:$H$208,\"<>\")","v":0},null,{"$f":"SUMIFS(AM$9:AM$208,PlanningIDEnlaces,$C41,$H$9:$H$208,Lists!$A$16)","v":0},{"$f":"SUMIFS(AN$9:AN$208,PlanningIDEnlaces,$C41,$H$9:$H$208,\"<>\")","v":0},null,{"$f":"SUMIFS(AP$9:AP$208,PlanningIDEnlaces,$C41,$H$9:$H$208,Lists!$A$16)","v":0},{"$f":"SUMIFS(AQ$9:AQ$208,PlanningIDEnlaces,$C41,$H$9:$H$208,\"<>\")","v":0},null,{"$f":"IFERROR(INDEX(Lists!$F$5:$F$49,MATCH(Planning!C41,Lists!$G$5:$G$49,0),1),\"\")","v":""},null,{"$f":"IF(C41=0,\"\",\" [\"&INDEX(Lists!$H$5:$H$49,MATCH(C41,Lists!$G$5:$G$49,0),1)&\"]\")","v":""}]
["I034",{"$nulls":43},0,{"v":0,"d":"0.00"},null,null,{"$f":"SUMIFS(I$9:I$208,PlanningIDEnlaces,$C42,$H$9:$H$208,Lists!$A$16)","v":0},0,null,{"$f":"SUMIFS(L$9:L$208,PlanningIDEnlaces,$C42,$H$9:$H$208,Lists!$A$16)","v":0},0,null,{"$f":"SUMIFS(O$9:O$208,PlanningIDEnlaces,$C42,$H$9:$H$208,Lists!$A$16)","v":0},0,null,{"$f":"SUMIFS(R$9:R$208,PlanningIDEnlaces,$C42,$H$9:$H$208,Lists!$A$16)","v":0},0,null,{"$f":"SUMIFS(U$9:U$208,PlanningIDEnlaces,$C42,$H$9:$H$208,Lists!$A$16)","v":0},0,null,{"$f":"SUMIFS(X$9:X$208,PlanningIDEnlaces,$C42,$H$9:$H$208,Lists!$A$16)","v":0},0,null,{"$f":"SUMIFS(AA$9:AA$208,PlanningIDEnlaces,$C42,$H$9:$H$208,Lists!$A$16)","v":0},0,null,{"$f":"SUMIFS(AD$9:AD$208,PlanningIDEnlaces,$C42,$H$9:$H$208,Lists!$A$16)","v":0},0,null,{"$f":"SUMIFS(AG$9:AG$208,PlanningIDEnlaces,$C42,$H$9:$H$208,Lists!$A$16)","v":0},0,null,{"$f":"SUMIFS(AJ$9:AJ$208,PlanningIDEnlaces,$C42,$H$9:$H$208,Lists!$A$16)","v":0},0,null,{"$f":"SUMIFS(AM$9:AM$208,PlanningIDEnlaces,$C42,$H$9:$H$208,Lists!$A$16)","v":0},0,null,{"$f":"SUMIFS(AP$9:AP$208,PlanningIDEnlaces,$C42,$H$9:$H$208,Lists!$A$16)","v":0},0,null,{"$f":"IFERROR(INDEX(Lists!$F$5:$F$49,MATCH(Planning!C42,Lists!$G$5:$G$49,0),1),\"\")","v":""},null,{"$f":"IF(C42=0,\"\",\" [\"&INDEX(Lists!$H$5:$H$49,MATCH(C42,Lists!$G$5:$G$49,0),1)&\"]\")","v":""}]
["I035",{"$nulls":43},0,{"v":0,"d":"0.00"},null,null,{"$f":"SUMIFS(I$9:I$208,PlanningIDEnlaces,$C43,$H$9:$H$208,Lists!$A$16)","v":0},0,null,{"$f":"SUMIFS(L$9:L$208,PlanningIDEnlaces,$C43,$H$9:$H$208,Lists!$A$16)","v":0},0,null,{"$f":"SUMIFS(O$9:O$208,PlanningIDEnlaces,$C43,$H$9:$H$208,Lists!$A$16)","v":0},0,null,{"$f":"SUMIFS(R$9:R$208,PlanningIDEnlaces,$C43,$H$9:$H$208,Lists!$A$16)","v":0},0,null,{"$f":"SUMIFS(U$9:U$208,PlanningIDEnlaces,$C43,$H$9:$H$208,Lists!$A$16)","v":0},0,null,{"$f":"SUMIFS(X$9:X$208,PlanningIDEnlaces,$C43,$H$9:$H$208,Lists!$A$16)","v":0},0,null,{"$f":"SUMIFS(AA$9:AA$208,PlanningIDEnlaces,$C43,$H$9:$H$208,Lists!$A$16)","v":0},0,null,{"$f":"SUMIFS(AD$9:AD$208,PlanningIDEnlaces,$C43,$H$9:$H$208,Lists!$A$16)","v":0},0,null,{"$f":"SUMIFS(AG$9:AG$208,PlanningIDEnlaces,$C43,$H$9:$H$208,Lists!$A$16)","v":0},0,null,{"$f":"SUMIFS(AJ$9:AJ$208,PlanningIDEnlaces,$C43,$H$9:$H$208,Lists!$A$16)","v":0},0,null,{"$f":"SUMIFS(AM$9:AM$208,PlanningIDEnlaces,$C43,$H$9:$H$208,Lists!$A$16)","v":0},0,null,{"$f":"SUMIFS(AP$9:AP$208,PlanningIDEnlaces,$C43,$H$9:$H$208,Lists!$A$16)","v":0},0,null,{"$f":"IFERROR(INDEX(Lists!$F$5:$F$49,MATCH(Planning!C43,Lists!$G$5:$G$49,0),1),\"\")","v":""},null,{"$f":"IF(C43=0,\"\",\" [\"&INDEX(Lists!$H$5:$H$49,MATCH(C43,Lists!$G$5:$G$49,0),1)&\"]\")","v":""}]
["I036",{"$nulls":43},0,{"v":0,"d":"0.00"},null,null,{"$f":"SUMIFS(I$9:I$208,PlanningIDEnlaces,$C44,$H$9:$H$208,Lists!$A$16)","v":0},0,null,{"$f":"SUMIFS(L$9:L$208,PlanningIDEnlaces,$C44,$H$9:$H$208,Lists!$A$16)","v":0},0,null,{"$f":"SUMIFS(O$9:O$208,PlanningIDEnlaces,$C44,$H$9:$H$208,Lists!$A$16)","v":0},0,null,{"$f":"SUMIFS(R$9:R$208,PlanningIDEnlaces,$C44,$H$9:$H$208,Lists!$A$16)","v":0},0,null,{"$f":"SUMIFS(U$9:U$208,PlanningIDEnlaces,$C44,$H$9:$H$208,Lists!$A$16)","v":0},0,null,{"$f":"SUMIFS(X$9:X$208,PlanningIDEnlaces,$C44,$H$9:$H$208,Lists!$A$16)","v":0},0,null,{"$f":"SUMIFS(AA$9:AA$208,PlanningIDEnlaces,$C44,$H$9:$H$208,Lists!$A$16)","v":0},0,null,{"$f":"SUMIFS(AD$9:AD$208,PlanningIDEnlaces,$C44,$H$9:$H$208,Lists!$A$16)","v":0},0,null,{"$f":"SUMIFS(AG$9:AG$208,PlanningIDEnlaces,$C44,$H$9:$H$208,Lists!$A$16)","v":0},0,null,{"$f":"SUMIFS(AJ$9:AJ$208,PlanningIDEnlaces,$C44,$H$9:$H$208,Lists!$A$16)","v":0},0,null,{"$f":"SUMIFS(AM$9:AM$208,PlanningIDEnlaces,$C44,$H$9:$H$208,Lists!$A$16)","v":0},0,null,{"$f":"SUMIFS(AP$9:AP$208,PlanningIDEnlaces,$C44,$H$9:$H$208,Lists!$A$16)","v":0},0,null,{"$f":"IFERROR(INDEX(Lists!$F$5:$F$49,MATCH(Planning!C44,Lists!$G$5:$G$49,0),1),\"\")","v":""},null,{"$f":"IF(C44=0,\"\",\" [\"&INDEX(Lists!$H$5:$H$49,MATCH(C44,Lists!$G$5:$G$49,0),1)&\"]\")","v":""}]
["I037",{"$nulls":43},0,{"v":0,"d":"0.00"},null,null,{"$f":"SUMIFS(I$9:I$208,PlanningIDEnlaces,$C45,$H$9:$H$208,Lists!$A$16)","v":0},0,null,{"$f":"SUMIFS(L$9:L$208,PlanningIDEnlaces,$C45,$H$9:$H$208,Lists!$A$16)","v":0},0,null,{"$f":"SUMIFS(O$9:O$208,PlanningIDEnlaces,$C45,$H$9:$H$208,Lists!$A$16)","v":0},0,null,{"$f":"SUMIFS(R$9:R$208,PlanningIDEnlaces,$C45,$H$9:$H$208,Lists!$A$16)","v":0},0,null,{"$f":"SUMIFS(U$9:U$208,PlanningIDEnlaces,$C45,$H$9:$H$208,Lists!$A$16)","v":0},0,null,{"$f":"SUMIFS(X$9:X$208,PlanningIDEnlaces,$C45,$H$9:$H$208,Lists!$A$16)","v":0},0,null,{"$f":"SUMIFS(AA$9:AA$208,PlanningIDEnlaces,$C45,$H$9:$H$208,Lists!$A$16)","v":0},0,null,{"$f":"SUMIFS(AD$9:AD$208,PlanningIDEnlaces,$C45,$H$9:$H$208,Lists!$A$16)","v":0},0,null,{"$f":"SUMIFS(AG$9:AG$208,PlanningIDEnlaces,$C45,$H$9:$H$208,Lists!$A$16)","v":0},0,null,{"$f":"SUMIFS(AJ$9:AJ$208,PlanningIDEnlaces,$C45,$H$9:$H$208,Lists!$A$16)","v":0},0,null,{"$f":"SUMIFS(AM$9:AM$208,PlanningIDEnlaces,$C45,$H$9:$H$208,Lists!$A$16)","v":0},0,null,{"$f":"SUMIFS(AP$9:AP$208,PlanningIDEnlaces,$C45,$H$9:$H$208,Lists!$A$16)","v":0},0,null,{"$f":"IFERROR(INDEX(Lists!$F$5:$F$49,MATCH(Planning!C45,Lists!$G$5:$G$49,0),1),\"\")","v":""},null,{"$f":"IF(C45=0,\"\",\" [\"&INDEX(Lists!$H$5:$H$49,MATCH(C45,Lists!$G$5:$G$49,0),1)&\"]\")","v":""}]
["I038",{"$nulls":43},0,{"v":0,"d":"0.00"},null,null,{"$f":"SUMIFS(I$9:I$208,PlanningIDEnlaces,$C46,$H$9:$H$208,Lists!$A$16)","v":0},0,null,{"$f":"SUMIFS(L$9:L$208,PlanningIDEnlaces,$C46,$H$9:$H$208,Lists!$A$16)","v":0},0,null,{"$f":"SUMIFS(O$9:O$208,PlanningIDEnlaces,$C46,$H$9:$H$208,Lists!$A$16)","v":0},0,null,{"$f":"SUMIFS(R$9:R$208,PlanningIDEnlaces,$C46,$H$9:$H$208,Lists!$A$16)","v":0},0,null,{"$f":"SUMIFS(U$9:U$208,PlanningIDEnlaces,$C46,$H$9:$H$208,Lists!$A$16)","v":0},0,null,{"$f":"SUMIFS(X$9:X$208,PlanningIDEnlaces,$C46,$H$9:$H$208,Lists!$A$16)","v":0},0,null,{"$f":"SUMIFS(AA$9:AA$208,PlanningIDEnlaces,$C46,$H$9:$H$208,Lists!$A$16)","v":0},0,null,{"$f":"SUMIFS(AD$9:AD$208,PlanningIDEnlaces,$C46,$H$9:$H$208,Lists!$A$16)","v":0},0,null,{"$f":"SUMIFS(AG$9:AG$208,PlanningIDEnlaces,$C46,$H$9:$H$208,Lists!$A$16)","v":0},0,null,{"$f":"SUMIFS(AJ$9:AJ$208,PlanningIDEnlaces,$C46,$H$9:$H$208,Lists!$A$16)","v":0},0,null,{"$f":"SUMIFS(AM$9:AM$208,PlanningIDEnlaces,$C46,$H$9:$H$208,Lists!$A$16)","v":0},0,null,{"$f":"SUMIFS(AP$9:AP$208,PlanningIDEnlaces,$C46,$H$9:$H$208,Lists!$A$16)","v":0},0,null,{"$f":"IFERROR(INDEX(Lists!$F$5:$F$49,MATCH(Planning!C46,Lists!$G$5:$G$49,0),1),\"\")","v":""},null,{"$f":"IF(C46=0,\"\",\" [\"&INDEX(Lists!$H$5:$H$49,MATCH(C46,Lists!$G$5:$G$49,0),1)&\"]\")","v":""}]
["I039",{"$nulls":43},0,{"v":0,"d":"0.00"},null,null,{"$f":"SUMIFS(I$9:I$208,PlanningIDEnlaces,$C47,$H$9:$H$208,Lists!$A$16)","v":0},0,null,{"$f":"SUMIFS(L$9:L$208,PlanningIDEnlaces,$C47,$H$9:$H$208,Lists!$A$16)","v":0},0,null,{"$f":"SUMIFS(O$9:O$208,PlanningIDEnlaces,$C47,$H$9:$H$208,Lists!$A$16)","v":0},0,null,{"$f":"SUMIFS(R$9:R$208,PlanningIDEnlaces,$C47,$H$9:$H$208,Lists!$A$16)","v":0},0,null,{"$f":"SUMIFS(U$9:U$208,PlanningIDEnlaces,$C47,$H$9:$H$208,Lists!$A$16)","v":0},0,null,{"$f":"SUMIFS(X$9:X$208,PlanningIDEnlaces,$C47,$H$9:$H$208,Lists!$A$16)","v":0},0,null,{"$f":"SUMIFS(AA$9:AA$208,PlanningIDEnlaces,$C47,$H$9:$H$208,Lists!$A$16)","v":0},0,null,{"$f":"SUMIFS(AD$9:AD$208,PlanningIDEnlaces,$C47,$H$9:$H$208,Lists!$A$16)","v":0},0,null,{"$f":"SUMIFS(AG$9:AG$208,PlanningIDEnlaces,$C47,$H$9:$H$208,Lists!$A$16)","v":0},0,null,{"$f":"SUMIFS(AJ$9:AJ$208,PlanningIDEnlaces,$C47,$H$9:$H$208,Lists!$A$16)","v":0},0,null,{"$f":"SUMIFS(AM$9:AM$208,PlanningIDEnlaces,$C47,$H$9:$H$208,Lists!$A$16)","v":0},0,null,{"$f":"SUMIFS(AP$9:AP$208,PlanningIDEnlaces,$C47,$H$9:$H$208,Lists!$A$16)","v":0},0,null,{"$f":"IFERROR(INDEX(Lists!$F$5:$F$49,MATCH(Planning!C47,Lists!$G$5:$G$49,0),1),\"\")","v":""},null,{"$f":"IF(C47=0,\"\",\" [\"&INDEX(Lists!$H$5:$H$49,MATCH(C47,Lists!$G$5:$G$49,0),1)&\"]\")","v":""}]
["I040",{"$nulls":43},0,{"v":0,"d":"0.00"},null,null,{"$f":"SUMIFS(I$9:I$208,PlanningIDEnlaces,$C48,$H$9:$H$208,Lists!$A$16)","v":0},0,null,{"$f":"SUMIFS(L$9:L$208,PlanningIDEnlaces,$C48,$H$9:$H$208,Lists!$A$16)","v":0},0,null,{"$f":"SUMIFS(O$9:O$208,PlanningIDEnlaces,$C48,$H$9:$H$208,Lists!$A$16)","v":0},0,null,{"$f":"SUMIFS(R$9:R$208,PlanningIDEnlaces,$C48,$H$9:$H$208,Lists!$A$16)","v":0},0,null,{"$f":"SUMIFS(U$9:U$208,PlanningIDEnlaces,$C48,$H$9:$H$208,Lists!$A$16)","v":0},0,null,{"$f":"SUMIFS(X$9:X$208,PlanningIDEnlaces,$C48,$H$9:$H$208,Lists!$A$16)","v":0},0,null,{"$f":"SUMIFS(AA$9:AA$208,PlanningIDEnlaces,$C48,$H$9:$H$208,Lists!$A$16)","v":0},0,null,{"$f":"SUMIFS(AD$9:AD$208,PlanningIDEnlaces,$C48,$H$9:$H$208,Lists!$A$16)","v":0},0,null,{"$f":"SUMIFS(AG$9:AG$208,PlanningIDEnlaces,$C48,$H$9:$H$208,Lists!$A$16)","v":0},0,null,{"$f":"SUMIFS(AJ$9:AJ$208,PlanningIDEnlaces,$C48,$H$9:$H$208,Lists!$A$16)","v":0},0,null,{"$f":"SUMIFS(AM$9:AM$208,PlanningIDEnlaces,$C48,$H$9:$H$208,Lists!$A$16)","v":0},0,null,{"$f":"SUMIFS(AP$9:AP$208,PlanningIDEnlaces,$C48,$H$9:$H$208,Lists!$A$16)","v":0},0,null,{"$f":"IFERROR(INDEX(Lists!$F$5:$F$49,MATCH(Planning!C48,Lists!$G$5:$G$49,0),1),\"\")","v":""},null,{"$f":"IF(C48=0,\"\",\" [\"&INDEX(Lists!$H$5:$H$49,MATCH(C48,Lists!$G$5:$G$49,0),1)&\"]\")","v":""}]
["I041",{"$nulls":43},0,{"v":0,"d":"0.00"},null,null,{"$f":"SUMIFS(I$9:I$208,PlanningIDEnlaces,$C49,$H$9:$H$208,Lists!$A$16)","v":0},0,null,{"$f":"SUMIFS(L$9:L$208,PlanningIDEnlaces,$C49,$H$9:$H$208,Lists!$A$16)","v":0},0,null,{"$f":"SUMIFS(O$9:O$208,PlanningIDEnlaces,$C49,$H$9:$H$208,Lists!$A$16)","v":0},0,null,{"$f":"SUMIFS(R$9:R$208,PlanningIDEnlaces,$C49,$H$9:$H$208,Lists!$A$16)","v":0},0,null,{"$f":"SUMIFS(U$9:U$208,PlanningIDEnlaces,$C49,$H$9:$H$208,Lists!$A$16)","v":0},0,null,{"$f":"SUMIFS(X$9:X$208,PlanningIDEnlaces,$C49,$H$9:$H$208,Lists!$A$16)","v":0},0,null,{"$f":"SUMIFS(AA$9:AA$208,PlanningIDEnlaces,$C49,$H$9:$H$208,Lists!$A$16)","v":0},0,null,{"$f":"SUMIFS(AD$9:AD$208,PlanningIDEnlaces,$C49,$H$9:$H$208,Lists!$A$16)","v":0},0,null,{"$f":"SUMIFS(AG$9:AG$208,PlanningIDEnlaces,$C49,$H$9:$H$208,Lists!$A$16)","v":0},0,null,{"$f":"SUMIFS(AJ$9:AJ$208,PlanningIDEnlaces,$C49,$H$9:$H$208,Lists!$A$16)","v":0},0,null,{"$f":"SUMIFS(AM$9:AM$208,PlanningIDEnlaces,$C49,$H$9:$H$208,Lists!$A$16)","v":0},0,null,{"$f":"SUMIFS(AP$9:AP$208,PlanningIDEnlaces,$C49,$H$9:$H$208,Lists!$A$16)","v":0},0,null,{"$f":"IFERROR(INDEX(Lists!$F$5:$F$49,MATCH(Planning!C49,Lists!$G$5:$G$49,0),1),\"\")","v":""},null,{"$f":"IF(C49=0,\"\",\" [\"&INDEX(Lists!$H$5:$H$49,MATCH(C49,Lists!$G$5:$G$49,0),1)&\"]\")","v":""}]
["I042",{"$nulls":43},0,{"v":0,"d":"0.00"},null,null,{"$f":"SUMIFS(I$9:I$208,PlanningIDEnlaces,$C50,$H$9:$H$208,Lists!$A$16)","v":0},0,null,{"$f":"SUMIFS(L$9:L$208,PlanningIDEnlaces,$C50,$H$9:$H$208,Lists!$A$16)","v":0},0,null,{"$f":"SUMIFS(O$9:O$208,PlanningIDEnlaces,$C50,$H$9:$H$208,Lists!$A$16)","v":0},0,null,{"$f":"SUMIFS(R$9:R$208,PlanningIDEnlaces,$C50,$H$9:$H$208,Lists!$A$16)","v":0},0,null,{"$f":"SUMIFS(U$9:U$208,PlanningIDEnlaces,$C50,$H$9:$H$208,Lists!$A$16)","v":0},0,null,{"$f":"SUMIFS(X$9:X$208,PlanningIDEnlaces,$C50,$H$9:$H$208,Lists!$A$16)","v":0},0,null,{"$f":"SUMIFS(AA$9:AA$208,PlanningIDEnlaces,$C50,$H$9:$H$208,Lists!$A$16)","v":0},0,null,{"$f":"SUMIFS(AD$9:AD$208,PlanningIDEnlaces,$C50,$H$9:$H$208,Lists!$A$16)","v":0},0,null,{"$f":"SUMIFS(AG$9:AG$208,PlanningIDEnlaces,$C50,$H$9:$H$208,Lists!$A$16)","v":0},0,null,{"$f":"SUMIFS(AJ$9:AJ$208,PlanningIDEnlaces,$C50,$H$9:$H$208,Lists!$A$16)","v":0},0,null,{"$f":"SUMIFS(AM$9:AM$208,PlanningIDEnlaces,$C50,$H$9:$H$208,Lists!$A$16)","v":0},0,null,{"$f":"SUMIFS(AP$9:AP$208,PlanningIDEnlaces,$C50,$H$9:$H$208,Lists!$A$16)","v":0},0,null,{"$f":"IFERROR(INDEX(Lists!$F$5:$F$49,MATCH(Planning!C50,Lists!$G$5:$G$49,0),1),\"\")","v":""},null,{"$f":"IF(C50=0,\"\",\" [\"&INDEX(Lists!$H$5:$H$49,MATCH(C50,Lists!$G$5:$G$49,0),1)&\"]\")","v":""}]
["I043",{"$nulls":43},0,{"v":0,"d":"0.00"},null,null,{"$f":"SUMIFS(I$9:I$208,PlanningIDEnlaces,$C51,$H$9:$H$208,Lists!$A$16)","v":0},0,null,{"$f":"SUMIFS(L$9:L$208,PlanningIDEnlaces,$C51,$H$9:$H$208,Lists!$A$16)","v":0},0,null,{"$f":"SUMIFS(O$9:O$208,PlanningIDEnlaces,$C51,$H$9:$H$208,Lists!$A$16)","v":0},0,null,{"$f":"SUMIFS(R$9:R$208,PlanningIDEnlaces,$C51,$H$9:$H$208,Lists!$A$16)","v":0},0,null,{"$f":"SUMIFS(U$9:U$208,PlanningIDEnlaces,$C51,$H$9:$H$208,Lists!$A$16)","v":0},0,null,{"$f":"SUMIFS(X$9:X$208,PlanningIDEnlaces,$C51,$H$9:$H$208,Lists!$A$16)","v":0},0,null,{"$f":"SUMIFS(AA$9:AA$208,PlanningIDEnlaces,$C51,$H$9:$H$208,Lists!$A$16)","v":0},0,null,{"$f":"SUMIFS(AD$9:AD$208,PlanningIDEnlaces,$C51,$H$9:$H$208,Lists!$A$16)","v":0},0,null,{"$f":"SUMIFS(AG$9:AG$208,PlanningIDEnlaces,$C51,$H$9:$H$208,Lists!$A$16)","v":0},0,null,{"$f":"SUMIFS(AJ$9:AJ$208,PlanningIDEnlaces,$C51,$H$9:$H$208,Lists!$A$16)","v":0},0,null,{"$f":"SUMIFS(AM$9:AM$208,PlanningIDEnlaces,$C51,$H$9:$H$208,Lists!$A$16)","v":0},0,null,{"$f":"SUMIFS(AP$9:AP$208,PlanningIDEnlaces,$C51,$H$9:$H$208,Lists!$A$16)","v":0},0,null,{"$f":"IFERROR(INDEX(Lists!$F$5:$F$49,MATCH(Planning!C51,Lists!$G$5:$G$49,0),1),\"\")","v":""},null,{"$f":"IF(C51=0,\"\",\" [\"&INDEX(Lists!$H$5:$H$49,MATCH(C51,Lists!$G$5:$G$49,0),1)&\"]\")","v":""}]
["I044",{"$nulls":43},0,{"v":0,"d":"0.00"},null,null,{"$f":"SUMIFS(I$9:I$208,PlanningIDEnlaces,$C52,$H$9:$H$208,Lists!$A$16)","v":0},0,null,{"$f":"SUMIFS(L$9:L$208,PlanningIDEnlaces,$C52,$H$9:$H$208,Lists!$A$16)","v":0},0,null,{"$f":"SUMIFS(O$9:O$208,PlanningIDEnlaces,$C52,$H$9:$H$208,Lists!$A$16)","v":0},0,null,{"$f":"SUMIFS(R$9:R$208,PlanningIDEnlaces,$C52,$H$9:$H$208,Lists!$A$16)","v":0},0,null,{"$f":"SUMIFS(U$9:U$208,PlanningIDEnlaces,$C52,$H$9:$H$208,Lists!$A$16)","v":0},0,null,{"$f":"SUMIFS(X$9:X$208,PlanningIDEnlaces,$C52,$H$9:$H$208,Lists!$A$16)","v":0},0,null,{"$f":"SUMIFS(AA$9:AA$208,PlanningIDEnlaces,$C52,$H$9:$H$208,Lists!$A$16)","v":0},0,null,{"$f":"SUMIFS(AD$9:AD$208,PlanningIDEnlaces,$C52,$H$9:$H$208,Lists!$A$16)","v":0},0,null,{"$f":"SUMIFS(AG$9:AG$208,PlanningIDEnlaces,$C52,$H$9:$H$208,Lists!$A$16)","v":0},0,null,{"$f":"SUMIFS(AJ$9:AJ$208,PlanningIDEnlaces,$C52,$H$9:$H$208,Lists!$A$16)","v":0},0,null,{"$f":"SUMIFS(AM$9:AM$208,PlanningIDEnlaces,$C52,$H$9:$H$208,Lists!$A$16)","v":0},0,null,{"$f":"SUMIFS(AP$9:AP$208,PlanningIDEnlaces,$C52,$H$9:$H$208,Lists!$A$16)","v":0},0,null,{"$f":"IFERROR(INDEX(Lists!$F$5:$F$49,MATCH(Planning!C52,Lists!$G$5:$G$49,0),1),\"\")","v":""},null,{"$f":"IF(C52=0,\"\",\" [\"&INDEX(Lists!$H$5:$H$49,MATCH(C52,Lists!$G$5:$G$49,0),1)&\"]\")","v":""}]
["I045",{"$nulls":43},0,{"v":0,"d":"0.00"},null,null,{"$f":"SUMIFS(I$9:I$208,PlanningIDEnlaces,$C53,$H$9:$H$208,Lists!$A$16)","v":0},0,null,{"$f":"SUMIFS(L$9:L$208,PlanningIDEnlaces,$C53,$H$9:$H$208,Lists!$A$16)","v":0},0,null,{"$f":"SUMIFS(O$9:O$208,PlanningIDEnlaces,$C53,$H$9:$H$208,Lists!$A$16)","v":0},0,null,{"$f":"SUMIFS(R$9:R$208,PlanningIDEnlaces,$C53,$H$9:$H$208,Lists!$A$16)","v":0},0,null,{"$f":"SUMIFS(U$9:U$208,PlanningIDEnlaces,$C53,$H$9:$H$208,Lists!$A$16)","v":0},0,null,{"$f":"SUMIFS(X$9:X$208,PlanningIDEnlaces,$C53,$H$9:$H$208,Lists!$A$16)","v":0},0,null,{"$f":"SUMIFS(AA$9:AA$208,PlanningIDEnlaces,$C53,$H$9:$H$208,Lists!$A$16)","v":0},0,null,{"$f":"SUMIFS(AD$9:AD$208,PlanningIDEnlaces,$C53,$H$9:$H$208,Lists!$A$16)","v":0},0,null,{"$f":"SUMIFS(AG$9:AG$208,PlanningIDEnlaces,$C53,$H$9:$H$208,Lists!$A$16)","v":0},0,null,{"$f":"SUMIFS(AJ$9:AJ$208,PlanningIDEnlaces,$C53,$H$9:$H$208,Lists!$A$16)","v":0},0,null,{"$f":"SUMIFS(AM$9:AM$208,PlanningIDEnlaces,$C53,$H$9:$H$208,Lists!$A$16)","v":0},0,null,{"$f":"SUMIFS(AP$9:AP$208,PlanningIDEnlaces,$C53,$H$9:$H$208,Lists!$A$16)","v":0},0,null,{"$f":"IFERROR(INDEX(Lists!$F$5:$F$49,MATCH(Planning!C53,Lists!$G$5:$G$49,0),1),\"\")","v":""},null,{"$f":"IF(C53=0,\"\",\" [\"&INDEX(Lists!$H$5:$H$49,MATCH(C53,Lists!$G$5:$G$49,0),1)&\"]\")","v":""}]
["I046",{"$nulls":43},0,{"v":0,"d":"0.00"},null,null,{"$f":"SUMIFS(I$9:I$208,PlanningIDEnlaces,$C54,$H$9:$H$208,Lists!$A$16)","v":0},0,null,{"$f":"SUMIFS(L$9:L$208,PlanningIDEnlaces,$C54,$H$9:$H$208,Lists!$A$16)","v":0},0,null,{"$f":"SUMIFS(O$9:O$208,PlanningIDEnlaces,$C54,$H$9:$H$208,Lists!$A$16)","v":0},0,null,{"$f":"SUMIFS(R$9:R$208,PlanningIDEnlaces,$C54,$H$9:$H$208,Lists!$A$16)","v":0},0,null,{"$f":"SUMIFS(U$9:U$208,PlanningIDEnlaces,$C54,$H$9:$H$208,Lists!$A$16)","v":0},0,null,{"$f":"SUMIFS(X$9:X$208,PlanningIDEnlaces,$C54,$H$9:$H$208,Lists!$A$16)","v":0},0,null,{"$f":"SUMIFS(AA$9:AA$208,PlanningIDEnlaces,$C54,$H$9:$H$208,Lists!$A$16)","v":0},0,null,{"$f":"SUMIFS(AD$9:AD$208,PlanningIDEnlaces,$C54,$H$9:$H$208,Lists!$A$16)","v":0},0,null,{"$f":"SUMIFS(AG$9:AG$208,PlanningIDEnlaces,$C54,$H$9:$H$208,Lists!$A$16)","v":0},0,null,{"$f":"SUMIFS(AJ$9:AJ$208,PlanningIDEnlaces,$C54,$H$9:$H$208,Lists!$A$16)","v":0},0,null,{"$f":"SUMIFS(AM$9:AM$208,PlanningIDEnlaces,$C54,$H$9:$H$208,Lists!$A$16)","v":0},0,null,{"$f":"SUMIFS(AP$9:AP$208,PlanningIDEnlaces,$C54,$H$9:$H$208,Lists!$A$16)","v":0},0,null,{"$f":"IFERROR(INDEX(Lists!$F$5:$F$49,MATCH(Planning!C54,Lists!$G$5:$G$49,0),1),\"\")","v":""},null,{"$f":"IF(C54=0,\"\",\" [\"&INDEX(Lists!$H$5:$H$49,MATCH(C54,Lists!$G$5:$G$49,0),1)&\"]\")","v":""}]
["I047",{"$nulls":43},0,{"v":0,"d":"0.00"},null,null,{"$f":"SUMIFS(I$9:I$208,PlanningIDEnlaces,$C55,$H$9:$H$208,Lists!$A$16)","v":0},0,null,{"$f":"SUMIFS(L$9:L$208,PlanningIDEnlaces,$C55,$H$9:$H$208,Lists!$A$16)","v":0},0,null,{"$f":"SUMIFS(O$9:O$208,PlanningIDEnlaces,$C55,$H$9:$H$208,Lists!$A$16)","v":0},0,null,{"$f":"SUMIFS(R$9:R$208,PlanningIDEnlaces,$C55,$H$9:$H$208,Lists!$A$16)","v":0},0,null,{"$f":"SUMIFS(U$9:U$208,PlanningIDEnlaces,$C55,$H$9:$H$208,Lists!$A$16)","v":0},0,null,{"$f":"SUMIFS(X$9:X$208,PlanningIDEnlaces,$C55,$H$9:$H$208,Lists!$A$16)","v":0},0,null,{"$f":"SUMIFS(AA$9:AA$208,PlanningIDEnlaces,$C55,$H$9:$H$208,Lists!$A$16)","v":0},0,null,{"$f":"SUMIFS(AD$9:AD$208,PlanningIDEnlaces,$C55,$H$9:$H$208,Lists!$A$16)","v":0},0,null,{"$f":"SUMIFS(AG$9:AG$208,PlanningIDEnlaces,$C55,$H$9:$H$208,Lists!$A$16)","v":0},0,null,{"$f":"SUMIFS(AJ$9:AJ$208,PlanningIDEnlaces,$C55,$H$9:$H$208,Lists!$A$16)","v":0},0,null,{"$f":"SUMIFS(AM$9:AM$208,PlanningIDEnlaces,$C55,$H$9:$H$208,Lists!$A$16)","v":0},0,null,{"$f":"SUMIFS(AP$9:AP$208,PlanningIDEnlaces,$C55,$H$9:$H$208,Lists!$A$16)","v":0},0,null,{"$f":"IFERROR(INDEX(Lists!$F$5:$F$49,MATCH(Planning!C55,Lists!$G$5:$G$49,0),1),\"\")","v":""},null,{"$f":"IF(C55=0,\"\",\" [\"&INDEX(Lists!$H$5:$H$49,MATCH(C55,Lists!$G$5:$G$49,0),1)&\"]\")","v":""}]
["I048",{"$nulls":43},0,{"v":0,"d":"0.00"},null,null,{"$f":"SUMIFS(I$9:I$208,PlanningIDEnlaces,$C56,$H$9:$H$208,Lists!$A$16)","v":0},0,null,{"$f":"SUMIFS(L$9:L$208,PlanningIDEnlaces,$C56,$H$9:$H$208,Lists!$A$16)","v":0},0,null,{"$f":"SUMIFS(O$9:O$208,PlanningIDEnlaces,$C56,$H$9:$H$208,Lists!$A$16)","v":0},0,null,{"$f":"SUMIFS(R$9:R$208,PlanningIDEnlaces,$C56,$H$9:$H$208,Lists!$A$16)","v":0},0,null,{"$f":"SUMIFS(U$9:U$208,PlanningIDEnlaces,$C56,$H$9:$H$208,Lists!$A$16)","v":0},0,null,{"$f":"SUMIFS(X$9:X$208,PlanningIDEnlaces,$C56,$H$9:$H$208,Lists!$A$16)","v":0},0,null,{"$f":"SUMIFS(AA$9:AA$208,PlanningIDEnlaces,$C56,$H$9:$H$208,Lists!$A$16)","v":0},0,null,{"$f":"SUMIFS(AD$9:AD$208,PlanningIDEnlaces,$C56,$H$9:$H$208,Lists!$A$16)","v":0},0,null,{"$f":"SUMIFS(AG$9:AG$208,PlanningIDEnlaces,$C56,$H$9:$H$208,Lists!$A$16)","v":0},0,null,{"$f":"SUMIFS(AJ$9:AJ$208,PlanningIDEnlaces,$C56,$H$9:$H$208,Lists!$A$16)","v":0},0,null,{"$f":"SUMIFS(AM$9:AM$208,PlanningIDEnlaces,$C56,$H$9:$H$208,Lists!$A$16)","v":0},0,null,{"$f":"SUMIFS(AP$9:AP$208,PlanningIDEnlaces,$C56,$H$9:$H$208,Lists!$A$16)","v":0},0,null,{"$f":"IFERROR(INDEX(Lists!$F$5:$F$49,MATCH(Planning!C56,Lists!$G$5:$G$49,0),1),\"\")","v":""},null,{"$f":"IF(C56=0,\"\",\" [\"&INDEX(Lists!$H$5:$H$49,MATCH(C56,Lists!$G$5:$G$49,0),1)&\"]\")","v":""}]
["I049",{"$nulls":43},0,{"v":0,"d":"0.00"},null,null,{"$f":"SUMIFS(I$9:I$208,PlanningIDEnlaces,$C57,$H$9:$H$208,Lists!$A$16)","v":0},0,null,{"$f":"SUMIFS(L$9:L$208,PlanningIDEnlaces,$C57,$H$9:$H$208,Lists!$A$16)","v":0},0,null,{"$f":"SUMIFS(O$9:O$208,PlanningIDEnlaces,$C57,$H$9:$H$208,Lists!$A$16)","v":0},0,null,{"$f":"SUMIFS(R$9:R$208,PlanningIDEnlaces,$C57,$H$9:$H$208,Lists!$A$16)","v":0},0,null,{"$f":"SUMIFS(U$9:U$208,PlanningIDEnlaces,$C57,$H$9:$H$208,Lists!$A$16)","v":0},0,null,{"$f":"SUMIFS(X$9:X$208,PlanningIDEnlaces,$C57,$H$9:$H$208,Lists!$A$16)","v":0},0,null,{"$f":"SUMIFS(AA$9:AA$208,PlanningIDEnlaces,$C57,$H$9:$H$208,Lists!$A$16)","v":0},0,null,{"$f":"SUMIFS(AD$9:AD$208,PlanningIDEnlaces,$C57,$H$9:$H$208,Lists!$A$16)","v":0},0,null,{"$f":"SUMIFS(AG$9:AG$208,PlanningIDEnlaces,$C57,$H$9:$H$208,Lists!$A$16)","v":0},0,null,{"$f":"SUMIFS(AJ$9:AJ$208,PlanningIDEnlaces,$C57,$H$9:$H$208,Lists!$A$16)","v":0},0,null,{"$f":"SUMIFS(AM$9:AM$208,PlanningIDEnlaces,$C57,$H$9:$H$208,Lists!$A$16)","v":0},0,null,{"$f":"SUMIFS(AP$9:AP$208,PlanningIDEnlaces,$C57,$H$9:$H$208,Lists!$A$16)","v":0},0,null,{"$f":"IFERROR(INDEX(Lists!$F$5:$F$49,MATCH(Planning!C57,Lists!$G$5:$G$49,0),1),\"\")","v":""},null,{"$f":"IF(C57=0,\"\",\" [\"&INDEX(Lists!$H$5:$H$49,MATCH(C57,Lists!$G$5:$G$49,0),1)&\"]\")","v":""}]
["I050",{"$nulls":43},0,{"v":0,"d":"0.00"},null,null,{"$f":"SUMIFS(I$9:I$208,PlanningIDEnlaces,$C58,$H$9:$H$208,Lists!$A$16)","v":0},0,null,{"$f":"SUMIFS(L$9:L$208,PlanningIDEnlaces,$C58,$H$9:$H$208,Lists!$A$16)","v":0},0,null,{"$f":"SUMIFS(O$9:O$208,PlanningIDEnlaces,$C58,$H$9:$H$208,Lists!$A$16)","v":0},0,null,{"$f":"SUMIFS(R$9:R$208,PlanningIDEnlaces,$C58,$H$9:$H$208,Lists!$A$16)","v":0},0,null,{"$f":"SUMIFS(U$9:U$208,PlanningIDEnlaces,$C58,$H$9:$H$208,Lists!$A$16)","v":0},0,null,{"$f":"SUMIFS(X$9:X$208,PlanningIDEnlaces,$C58,$H$9:$H$208,Lists!$A$16)","v":0},0,null,{"$f":"SUMIFS(AA$9:AA$208,PlanningIDEnlaces,$C58,$H$9:$H$208,Lists!$A$16)","v":0},0,null,{"$f":"SUMIFS(AD$9:AD$208,PlanningIDEnlaces,$C58,$H$9:$H$208,Lists!$A$16)","v":0},0,null,{"$f":"SUMIFS(AG$9:AG$208,PlanningIDEnlaces,$C58,$H$9:$H$208,Lists!$A$16)","v":0},0,null,{"$f":"SUMIFS(AJ$9:AJ$208,PlanningIDEnlaces,$C58,$H$9:$H$208,Lists!$A$16)","v":0},0,null,{"$f":"SUMIFS(AM$9:AM$208,PlanningIDEnlaces,$C58,$H$9:$H$208,Lists!$A$16)","v":0},0,null,{"$f":"SUMIFS(AP$9:AP$208,PlanningIDEnlaces,$C58,$H$9:$H$208,Lists!$A$16)","v":0},0,null,{"$f":"IFERROR(INDEX(Lists!$F$5:$F$49,MATCH(Planning!C58,Lists!$G$5:$G$49,0),1),\"\")","v":""},null,{"$f":"IF(C58=0,\"\",\" [\"&INDEX(Lists!$H$5:$H$49,MATCH(C58,Lists!$G$5:$G$49,0),1)&\"]\")","v":""}]
["I051",{"$nulls":43},0,{"v":0,"d":"0.00"},null,null,{"$f":"SUMIFS(I$9:I$208,PlanningIDEnlaces,$C59,$H$9:$H$208,Lists!$A$16)","v":0},0,null,{"$f":"SUMIFS(L$9:L$208,PlanningIDEnlaces,$C59,$H$9:$H$208,Lists!$A$16)","v":0},0,null,{"$f":"SUMIFS(O$9:O$208,PlanningIDEnlaces,$C59,$H$9:$H$208,Lists!$A$16)","v":0},0,null,{"$f":"SUMIFS(R$9:R$208,PlanningIDEnlaces,$C59,$H$9:$H$208,Lists!$A$16)","v":0},0,null,{"$f":"SUMIFS(U$9:U$208,PlanningIDEnlaces,$C59,$H$9:$H$208,Lists!$A$16)","v":0},0,null,{"$f":"SUMIFS(X$9:X$208,PlanningIDEnlaces,$C59,$H$9:$H$208,Lists!$A$16)","v":0},0,null,{"$f":"SUMIFS(AA$9:AA$208,PlanningIDEnlaces,$C59,$H$9:$H$208,Lists!$A$16)","v":0},0,null,{"$f":"SUMIFS(AD$9:AD$208,PlanningIDEnlaces,$C59,$H$9:$H$208,Lists!$A$16)","v":0},0,null,{"$f":"SUMIFS(AG$9:AG$208,PlanningIDEnlaces,$C59,$H$9:$H$208,Lists!$A$16)","v":0},0,null,{"$f":"SUMIFS(AJ$9:AJ$208,PlanningIDEnlaces,$C59,$H$9:$H$208,Lists!$A$16)","v":0},0,null,{"$f":"SUMIFS(AM$9:AM$208,PlanningIDEnlaces,$C59,$H$9:$H$208,Lists!$A$16)","v":0},0,null,{"$f":"SUMIFS(AP$9:AP$208,PlanningIDEnlaces,$C59,$H$9:$H$208,Lists!$A$16)","v":0},0,null,{"$f":"IFERROR(INDEX(Lists!$F$5:$F$49,MATCH(Planning!C59,Lists!$G$5:$G$49,0),1),\"\")","v":""},null,{"$f":"IF(C59=0,\"\",\" [\"&INDEX(Lists!$H$5:$H$49,MATCH(C59,Lists!$G$5:$G$49,0),1)&\"]\")","v":""}]
["I052",{"$nulls":43},0,{"v":0,"d":"0.00"},null,null,{"$f":"SUMIFS(I$9:I$208,PlanningIDEnlaces,$C60,$H$9:$H$208,Lists!$A$16)","v":0},0,null,{"$f":"SUMIFS(L$9:L$208,PlanningIDEnlaces,$C60,$H$9:$H$208,Lists!$A$16)","v":0},0,null,{"$f":"SUMIFS(O$9:O$208,PlanningIDEnlaces,$C60,$H$9:$H$208,Lists!$A$16)","v":0},0,null,{"$f":"SUMIFS(R$9:R$208,PlanningIDEnlaces,$C60,$H$9:$H$208,Lists!$A$16)","v":0},0,null,{"$f":"SUMIFS(U$9:U$208,PlanningIDEnlaces,$C60,$H$9:$H$208,Lists!$A$16)","v":0},0,null,{"$f":"SUMIFS(X$9:X$208,PlanningIDEnlaces,$C60,$H$9:$H$208,Lists!$A$16)","v":0},0,null,{"$f":"SUMIFS(AA$9:AA$208,PlanningIDEnlaces,$C60,$H$9:$H$208,Lists!$A$16)","v":0},0,null,{"$f":"SUMIFS(AD$9:AD$208,PlanningIDEnlaces,$C60,$H$9:$H$208,Lists!$A$16)","v":0},0,null,{"$f":"SUMIFS(AG$9:AG$208,PlanningIDEnlaces,$C60,$H$9:$H$208,Lists!$A$16)","v":0},0,null,{"$f":"SUMIFS(AJ$9:AJ$208,PlanningIDEnlaces,$C60,$H$9:$H$208,Lists!$A$16)","v":0},0,null,{"$f":"SUMIFS(AM$9:AM$208,PlanningIDEnlaces,$C60,$H$9:$H$208,Lists!$A$16)","v":0},0,null,{"$f":"SUMIFS(AP$9:AP$208,PlanningIDEnlaces,$C60,$H$9:$H$208,Lists!$A$16)","v":0},0,null,{"$f":"IFERROR(INDEX(Lists!$F$5:$F$49,MATCH(Planning!C60,Lists!$G$5:$G$49,0),1),\"\")","v":""},null,{"$f":"IF(C60=0,\"\",\" [\"&INDEX(Lists!$H$5:$H$49,MATCH(C60,Lists!$G$5:$G$49,0),1)&\"]\")","v":""}]
["I053",{"$nulls":43},0,{"v":0,"d":"0.00"},null,null,{"$f":"SUMIFS(I$9:I$208,PlanningIDEnlaces,$C61,$H$9:$H$208,Lists!$A$16)","v":0},0,null,{"$f":"SUMIFS(L$9:L$208,PlanningIDEnlaces,$C61,$H$9:$H$208,Lists!$A$16)","v":0},0,null,{"$f":"SUMIFS(O$9:O$208,PlanningIDEnlaces,$C61,$H$9:$H$208,Lists!$A$16)","v":0},0,null,{"$f":"SUMIFS(R$9:R$208,PlanningIDEnlaces,$C61,$H$9:$H$208,Lists!$A$16)","v":0},0,null,{"$f":"SUMIFS(U$9:U$208,PlanningIDEnlaces,$C61,$H$9:$H$208,Lists!$A$16)","v":0},0,null,{"$f":"SUMIFS(X$9:X$208,PlanningIDEnlaces,$C61,$H$9:$H$208,Lists!$A$16)","v":0},0,null,{"$f":"SUMIFS(AA$9:AA$208,PlanningIDEnlaces,$C61,$H$9:$H$208,Lists!$A$16)","v":0},0,null,{"$f":"SUMIFS(AD$9:AD$208,PlanningIDEnlaces,$C61,$H$9:$H$208,Lists!$A$16)","v":0},0,null,{"$f":"SUMIFS(AG$9:AG$208,PlanningIDEnlaces,$C61,$H$9:$H$208,Lists!$A$16)","v":0},0,null,{"$f":"SUMIFS(AJ$9:AJ$208,PlanningIDEnlaces,$C61,$H$9:$H$208,Lists!$A$16)","v":0},0,null,{"$f":"SUMIFS(AM$9:AM$208,PlanningIDEnlaces,$C61,$H$9:$H$208,Lists!$A$16)","v":0},0,null,{"$f":"SUMIFS(AP$9:AP$208,PlanningIDEnlaces,$C61,$H$9:$H$208,Lists!$A$16)","v":0},0,null,{"$f":"IFERROR(INDEX(Lists!$F$5:$F$49,MATCH(Planning!C61,Lists!$G$5:$G$49,0),1),\"\")","v":""},null,{"$f":"IF(C61=0,\"\",\" [\"&INDEX(Lists!$H$5:$H$49,MATCH(C61,Lists!$G$5:$G$49,0),1)&\"]\")","v":""}]
["I054",{"$nulls":43},0,{"v":0,"d":"0.00"},null,null,{"$f":"SUMIFS(I$9:I$208,PlanningIDEnlaces,$C62,$H$9:$H$208,Lists!$A$16)","v":0},0,null,{"$f":"SUMIFS(L$9:L$208,PlanningIDEnlaces,$C62,$H$9:$H$208,Lists!$A$16)","v":0},0,null,{"$f":"SUMIFS(O$9:O$208,PlanningIDEnlaces,$C62,$H$9:$H$208,Lists!$A$16)","v":0},0,null,{"$f":"SUMIFS(R$9:R$208,PlanningIDEnlaces,$C62,$H$9:$H$208,Lists!$A$16)","v":0},0,null,{"$f":"SUMIFS(U$9:U$208,PlanningIDEnlaces,$C62,$H$9:$H$208,Lists!$A$16)","v":0},0,null,{"$f":"SUMIFS(X$9:X$208,PlanningIDEnlaces,$C62,$H$9:$H$208,Lists!$A$16)","v":0},0,null,{"$f":"SUMIFS(AA$9:AA$208,PlanningIDEnlaces,$C62,$H$9:$H$208,Lists!$A$16)","v":0},0,null,{"$f":"SUMIFS(AD$9:AD$208,PlanningIDEnlaces,$C62,$H$9:$H$208,Lists!$A$16)","v":0},0,null,{"$f":"SUMIFS(AG$9:AG$208,PlanningIDEnlaces,$C62,$H$9:$H$208,Lists!$A$16)","v":0},0,null,{"$f":"SUMIFS(AJ$9:AJ$208,PlanningIDEnlaces,$C62,$H$9:$H$208,Lists!$A$16)","v":0},0,null,{"$f":"SUMIFS(AM$9:AM$208,PlanningIDEnlaces,$C62,$H$9:$H$208,Lists!$A$16)","v":0},0,null,{"$f":"SUMIFS(AP$9:AP$208,PlanningIDEnlaces,$C62,$H$9:$H$208,Lists!$A$16)","v":0},0,null,{"$f":"IFERROR(INDEX(Lists!$F$5:$F$49,MATCH(Planning!C62,Lists!$G$5:$G$49,0),1),\"\")","v":""},null,{"$f":"IF(C62=0,\"\",\" [\"&INDEX(Lists!$H$5:$H$49,MATCH(C62,Lists!$G$5:$G$49,0),1)&\"]\")","v":""}]
["I055",{"$nulls":43},0,{"v":0,"d":"0.00"},null,null,{"$f":"SUMIFS(I$9:I$208,PlanningIDEnlaces,$C63,$H$9:$H$208,Lists!$A$16)","v":0},0,null,{"$f":"SUMIFS(L$9:L$208,PlanningIDEnlaces,$C63,$H$9:$H$208,Lists!$A$16)","v":0},0,null,{"$f":"SUMIFS(O$9:O$208,PlanningIDEnlaces,$C63,$H$9:$H$208,Lists!$A$16)","v":0},0,null,{"$f":"SUMIFS(R$9:R$208,PlanningIDEnlaces,$C63,$H$9:$H$208,Lists!$A$16)","v":0},0,null,{"$f":"SUMIFS(U$9:U$208,PlanningIDEnlaces,$C63,$H$9:$H$208,Lists!$A$16)","v":0},0,null,{"$f":"SUMIFS(X$9:X$208,PlanningIDEnlaces,$C63,$H$9:$H$208,Lists!$A$16)","v":0},0,null,{"$f":"SUMIFS(AA$9:AA$208,PlanningIDEnlaces,$C63,$H$9:$H$208,Lists!$A$16)","v":0},0,null,{"$f":"SUMIFS(AD$9:AD$208,PlanningIDEnlaces,$C63,$H$9:$H$208,Lists!$A$16)","v":0},0,null,{"$f":"SUMIFS(AG$9:AG$208,PlanningIDEnlaces,$C63,$H$9:$H$208,Lists!$A$16)","v":0},0,null,{"$f":"SUMIFS(AJ$9:AJ$208,PlanningIDEnlaces,$C63,$H$9:$H$208,Lists!$A$16)","v":0},0,null,{"$f":"SUMIFS(AM$9:AM$208,PlanningIDEnlaces,$C63,$H$9:$H$208,Lists!$A$16)","v":0},0,null,{"$f":"SUMIFS(AP$9:AP$208,PlanningIDEnlaces,$C63,$H$9:$H$208,Lists!$A$16)","v":0},0,null,{"$f":"IFERROR(INDEX(Lists!$F$5:$F$49,MATCH(Planning!C63,Lists!$G$5:$G$49,0),1),\"\")","v":""},null,{"$f":"IF(C63=0,\"\",\" [\"&INDEX(Lists!$H$5:$H$49,MATCH(C63,Lists!$G$5:$G$49,0),1)&\"]\")","v":""}]
["I056",{"$nulls":43},0,{"v":0,"d":"0.00"},null,null,{"$f":"SUMIFS(I$9:I$208,PlanningIDEnlaces,$C64,$H$9:$H$208,Lists!$A$16)","v":0},0,null,{"$f":"SUMIFS(L$9:L$208,PlanningIDEnlaces,$C64,$H$9:$H$208,Lists!$A$16)","v":0},0,null,{"$f":"SUMIFS(O$9:O$208,PlanningIDEnlaces,$C64,$H$9:$H$208,Lists!$A$16)","v":0},0,null,{"$f":"SUMIFS(R$9:R$208,PlanningIDEnlaces,$C64,$H$9:$H$208,Lists!$A$16)","v":0},0,null,{"$f":"SUMIFS(U$9:U$208,PlanningIDEnlaces,$C64,$H$9:$H$208,Lists!$A$16)","v":0},0,null,{"$f":"SUMIFS(X$9:X$208,PlanningIDEnlaces,$C64,$H$9:$H$208,Lists!$A$16)","v":0},0,null,{"$f":"SUMIFS(AA$9:AA$208,PlanningIDEnlaces,$C64,$H$9:$H$208,Lists!$A$16)","v":0},0,null,{"$f":"SUMIFS(AD$9:AD$208,PlanningIDEnlaces,$C64,$H$9:$H$208,Lists!$A$16)","v":0},0,null,{"$f":"SUMIFS(AG$9:AG$208,PlanningIDEnlaces,$C64,$H$9:$H$208,Lists!$A$16)","v":0},0,null,{"$f":"SUMIFS(AJ$9:AJ$208,PlanningIDEnlaces,$C64,$H$9:$H$208,Lists!$A$16)","v":0},0,null,{"$f":"SUMIFS(AM$9:AM$208,PlanningIDEnlaces,$C64,$H$9:$H$208,Lists!$A$16)","v":0},0,null,{"$f":"SUMIFS(AP$9:AP$208,PlanningIDEnlaces,$C64,$H$9:$H$208,Lists!$A$16)","v":0},0,null,{"$f":"IFERROR(INDEX(Lists!$F$5:$F$49,MATCH(Planning!C64,Lists!$G$5:$G$49,0),1),\"\")","v":""},null,{"$f":"IF(C64=0,\"\",\" [\"&INDEX(Lists!$H$5:$H$49,MATCH(C64,Lists!$G$5:$G$49,0),1)&\"]\")","v":""}]
["I057",{"$nulls":43},0,{"v":0,"d":"0.00"},null,null,{"$f":"SUMIFS(I$9:I$208,PlanningIDEnlaces,$C65,$H$9:$H$208,Lists!$A$16)","v":0},0,null,{"$f":"SUMIFS(L$9:L$208,PlanningIDEnlaces,$C65,$H$9:$H$208,Lists!$A$16)","v":0},0,null,{"$f":"SUMIFS(O$9:O$208,PlanningIDEnlaces,$C65,$H$9:$H$208,Lists!$A$16)","v":0},0,null,{"$f":"SUMIFS(R$9:R$208,PlanningIDEnlaces,$C65,$H$9:$H$208,Lists!$A$16)","v":0},0,null,{"$f":"SUMIFS(U$9:U$208,PlanningIDEnlaces,$C65,$H$9:$H$208,Lists!$A$16)","v":0},0,null,{"$f":"SUMIFS(X$9:X$208,PlanningIDEnlaces,$C65,$H$9:$H$208,Lists!$A$16)","v":0},0,null,{"$f":"SUMIFS(AA$9:AA$208,PlanningIDEnlaces,$C65,$H$9:$H$208,Lists!$A$16)","v":0},0,null,{"$f":"SUMIFS(AD$9:AD$208,PlanningIDEnlaces,$C65,$H$9:$H$208,Lists!$A$16)","v":0},0,null,{"$f":"SUMIFS(AG$9:AG$208,PlanningIDEnlaces,$C65,$H$9:$H$208,Lists!$A$16)","v":0},0,null,{"$f":"SUMIFS(AJ$9:AJ$208,PlanningIDEnlaces,$C65,$H$9:$H$208,Lists!$A$16)","v":0},0,null,{"$f":"SUMIFS(AM$9:AM$208,PlanningIDEnlaces,$C65,$H$9:$H$208,Lists!$A$16)","v":0},0,null,{"$f":"SUMIFS(AP$9:AP$208,PlanningIDEnlaces,$C65,$H$9:$H$208,Lists!$A$16)","v":0},0,null,{"$f":"IFERROR(INDEX(Lists!$F$5:$F$49,MATCH(Planning!C65,Lists!$G$5:$G$49,0),1),\"\")","v":""},null,{"$f":"IF(C65=0,\"\",\" [\"&INDEX(Lists!$H$5:$H$49,MATCH(C65,Lists!$G$5:$G$49,0),1)&\"]\")","v":""}]
["I058",{"$nulls":43},0,{"v":0,"d":"0.00"},null,null,{"$f":"SUMIFS(I$9:I$208,PlanningIDEnlaces,$C66,$H$9:$H$208,Lists!$A$16)","v":0},0,null,{"$f":"SUMIFS(L$9:L$208,PlanningIDEnlaces,$C66,$H$9:$H$208,Lists!$A$16)","v":0},0,null,{"$f":"SUMIFS(O$9:O$208,PlanningIDEnlaces,$C66,$H$9:$H$208,Lists!$A$16)","v":0},0,null,{"$f":"SUMIFS(R$9:R$208,PlanningIDEnlaces,$C66,$H$9:$H$208,Lists!$A$16)","v":0},0,null,{"$f":"SUMIFS(U$9:U$208,PlanningIDEnlaces,$C66,$H$9:$H$208,Lists!$A$16)","v":0},0,null,{"$f":"SUMIFS(X$9:X$208,PlanningIDEnlaces,$C66,$H$9:$H$208,Lists!$A$16)","v":0},0,null,{"$f":"SUMIFS(AA$9:AA$208,PlanningIDEnlaces,$C66,$H$9:$H$208,Lists!$A$16)","v":0},0,null,{"$f":"SUMIFS(AD$9:AD$208,PlanningIDEnlaces,$C66,$H$9:$H$208,Lists!$A$16)","v":0},0,null,{"$f":"SUMIFS(AG$9:AG$208,PlanningIDEnlaces,$C66,$H$9:$H$208,Lists!$A$16)","v":0},0,null,{"$f":"SUMIFS(AJ$9:AJ$208,PlanningIDEnlaces,$C66,$H$9:$H$208,Lists!$A$16)","v":0},0,null,{"$f":"SUMIFS(AM$9:AM$208,PlanningIDEnlaces,$C66,$H$9:$H$208,Lists!$A$16)","v":0},0,null,{"$f":"SUMIFS(AP$9:AP$208,PlanningIDEnlaces,$C66,$H$9:$H$208,Lists!$A$16)","v":0},0,null,{"$f":"IFERROR(INDEX(Lists!$F$5:$F$49,MATCH(Planning!C66,Lists!$G$5:$G$49,0),1),\"\")","v":""},null,{"$f":"IF(C66=0,\"\",\" [\"&INDEX(Lists!$H$5:$H$49,MATCH(C66,Lists!$G$5:$G$49,0),1)&\"]\")","v":""}]
["I059",{"$nulls":43},0,{"v":0,"d":"0.00"},null,null,{"$f":"SUMIFS(I$9:I$208,PlanningIDEnlaces,$C67,$H$9:$H$208,Lists!$A$16)","v":0},0,null,{"$f":"SUMIFS(L$9:L$208,PlanningIDEnlaces,$C67,$H$9:$H$208,Lists!$A$16)","v":0},0,null,{"$f":"SUMIFS(O$9:O$208,PlanningIDEnlaces,$C67,$H$9:$H$208,Lists!$A$16)","v":0},0,null,{"$f":"SUMIFS(R$9:R$208,PlanningIDEnlaces,$C67,$H$9:$H$208,Lists!$A$16)","v":0},0,null,{"$f":"SUMIFS(U$9:U$208,PlanningIDEnlaces,$C67,$H$9:$H$208,Lists!$A$16)","v":0},0,null,{"$f":"SUMIFS(X$9:X$208,PlanningIDEnlaces,$C67,$H$9:$H$208,Lists!$A$16)","v":0},0,null,{"$f":"SUMIFS(AA$9:AA$208,PlanningIDEnlaces,$C67,$H$9:$H$208,Lists!$A$16)","v":0},0,null,{"$f":"SUMIFS(AD$9:AD$208,PlanningIDEnlaces,$C67,$H$9:$H$208,Lists!$A$16)","v":0},0,null,{"$f":"SUMIFS(AG$9:AG$208,PlanningIDEnlaces,$C67,$H$9:$H$208,Lists!$A$16)","v":0},0,null,{"$f":"SUMIFS(AJ$9:AJ$208,PlanningIDEnlaces,$C67,$H$9:$H$208,Lists!$A$16)","v":0},0,null,{"$f":"SUMIFS(AM$9:AM$208,PlanningIDEnlaces,$C67,$H$9:$H$208,Lists!$A$16)","v":0},0,null,{"$f":"SUMIFS(AP$9:AP$208,PlanningIDEnlaces,$C67,$H$9:$H$208,Lists!$A$16)","v":0},0,null,{"$f":"IFERROR(INDEX(Lists!$F$5:$F$49,MATCH(Planning!C67,Lists!$G$5:$G$49,0),1),\"\")","v":""},null,{"$f":"IF(C67=0,\"\",\" [\"&INDEX(Lists!$H$5:$H$49,MATCH(C67,Lists!$G$5:$G$49,0),1)&\"]\")","v":""}]
["I060",{"$nulls":43},0,{"v":0,"d":"0.00"},null,null,{"$f":"SUMIFS(I$9:I$208,PlanningIDEnlaces,$C68,$H$9:$H$208,Lists!$A$16)","v":0},0,null,{"$f":"SUMIFS(L$9:L$208,PlanningIDEnlaces,$C68,$H$9:$H$208,Lists!$A$16)","v":0},0,null,{"$f":"SUMIFS(O$9:O$208,PlanningIDEnlaces,$C68,$H$9:$H$208,Lists!$A$16)","v":0},0,null,{"$f":"SUMIFS(R$9:R$208,PlanningIDEnlaces,$C68,$H$9:$H$208,Lists!$A$16)","v":0},0,null,{"$f":"SUMIFS(U$9:U$208,PlanningIDEnlaces,$C68,$H$9:$H$208,Lists!$A$16)","v":0},0,null,{"$f":"SUMIFS(X$9:X$208,PlanningIDEnlaces,$C68,$H$9:$H$208,Lists!$A$16)","v":0},0,null,{"$f":"SUMIFS(AA$9:AA$208,PlanningIDEnlaces,$C68,$H$9:$H$208,Lists!$A$16)","v":0},0,null,{"$f":"SUMIFS(AD$9:AD$208,PlanningIDEnlaces,$C68,$H$9:$H$208,Lists!$A$16)","v":0},0,null,{"$f":"SUMIFS(AG$9:AG$208,PlanningIDEnlaces,$C68,$H$9:$H$208,Lists!$A$16)","v":0},0,null,{"$f":"SUMIFS(AJ$9:AJ$208,PlanningIDEnlaces,$C68,$H$9:$H$208,Lists!$A$16)","v":0},0,null,{"$f":"SUMIFS(AM$9:AM$208,PlanningIDEnlaces,$C68,$H$9:$H$208,Lists!$A$16)","v":0},0,null,{"$f":"SUMIFS(AP$9:AP$208,PlanningIDEnlaces,$C68,$H$9:$H$208,Lists!$A$16)","v":0},0,null,{"$f":"IFERROR(INDEX(Lists!$F$5:$F$49,MATCH(Planning!C68,Lists!$G$5:$G$49,0),1),\"\")","v":""},null,{"$f":"IF(C68=0,\"\",\" [\"&INDEX(Lists!$H$5:$H$49,MATCH(C68,Lists!$G$5:$G$49,0),1)&\"]\")","v":""}]
["I061",{"$nulls":43},0,{"v":0,"d":"0.00"},null,null,{"$f":"SUMIFS(I$9:I$208,PlanningIDEnlaces,$C69,$H$9:$H$208,Lists!$A$16)","v":0},0,null,{"$f":"SUMIFS(L$9:L$208,PlanningIDEnlaces,$C69,$H$9:$H$208,Lists!$A$16)","v":0},0,null,{"$f":"SUMIFS(O$9:O$208,PlanningIDEnlaces,$C69,$H$9:$H$208,Lists!$A$16)","v":0},0,null,{"$f":"SUMIFS(R$9:R$208,PlanningIDEnlaces,$C69,$H$9:$H$208,Lists!$A$16)","v":0},0,null,{"$f":"SUMIFS(U$9:U$208,PlanningIDEnlaces,$C69,$H$9:$H$208,Lists!$A$16)","v":0},0,null,{"$f":"SUMIFS(X$9:X$208,PlanningIDEnlaces,$C69,$H$9:$H$208,Lists!$A$16)","v":0},0,null,{"$f":"SUMIFS(AA$9:AA$208,PlanningIDEnlaces,$C69,$H$9:$H$208,Lists!$A$16)","v":0},0,null,{"$f":"SUMIFS(AD$9:AD$208,PlanningIDEnlaces,$C69,$H$9:$H$208,Lists!$A$16)","v":0},0,null,{"$f":"SUMIFS(AG$9:AG$208,PlanningIDEnlaces,$C69,$H$9:$H$208,Lists!$A$16)","v":0},0,null,{"$f":"SUMIFS(AJ$9:AJ$208,PlanningIDEnlaces,$C69,$H$9:$H$208,Lists!$A$16)","v":0},0,null,{"$f":"SUMIFS(AM$9:AM$208,PlanningIDEnlaces,$C69,$H$9:$H$208,Lists!$A$16)","v":0},0,null,{"$f":"SUMIFS(AP$9:AP$208,PlanningIDEnlaces,$C69,$H$9:$H$208,Lists!$A$16)","v":0},0,null,{"$f":"IFERROR(INDEX(Lists!$F$5:$F$49,MATCH(Planning!C69,Lists!$G$5:$G$49,0),1),\"\")","v":""},null,{"$f":"IF(C69=0,\"\",\" [\"&INDEX(Lists!$H$5:$H$49,MATCH(C69,Lists!$G$5:$G$49,0),1)&\"]\")","v":""}]
["I062",{"$nulls":43},0,{"v":0,"d":"0.00"},null,null,{"$f":"SUMIFS(I$9:I$208,PlanningIDEnlaces,$C70,$H$9:$H$208,Lists!$A$16)","v":0},0,null,{"$f":"SUMIFS(L$9:L$208,PlanningIDEnlaces,$C70,$H$9:$H$208,Lists!$A$16)","v":0},0,null,{"$f":"SUMIFS(O$9:O$208,PlanningIDEnlaces,$C70,$H$9:$H$208,Lists!$A$16)","v":0},0,null,{"$f":"SUMIFS(R$9:R$208,PlanningIDEnlaces,$C70,$H$9:$H$208,Lists!$A$16)","v":0},0,null,{"$f":"SUMIFS(U$9:U$208,PlanningIDEnlaces,$C70,$H$9:$H$208,Lists!$A$16)","v":0},0,null,{"$f":"SUMIFS(X$9:X$208,PlanningIDEnlaces,$C70,$H$9:$H$208,Lists!$A$16)","v":0},0,null,{"$f":"SUMIFS(AA$9:AA$208,PlanningIDEnlaces,$C70,$H$9:$H$208,Lists!$A$16)","v":0},0,null,{"$f":"SUMIFS(AD$9:AD$208,PlanningIDEnlaces,$C70,$H$9:$H$208,Lists!$A$16)","v":0},0,null,{"$f":"SUMIFS(AG$9:AG$208,PlanningIDEnlaces,$C70,$H$9:$H$208,Lists!$A$16)","v":0},0,null,{"$f":"SUMIFS(AJ$9:AJ$208,PlanningIDEnlaces,$C70,$H$9:$H$208,Lists!$A$16)","v":0},0,null,{"$f":"SUMIFS(AM$9:AM$208,PlanningIDEnlaces,$C70,$H$9:$H$208,Lists!$A$16)","v":0},0,null,{"$f":"SUMIFS(AP$9:AP$208,PlanningIDEnlaces,$C70,$H$9:$H$208,Lists!$A$16)","v":0},0,null,{"$f":"IFERROR(INDEX(Lists!$F$5:$F$49,MATCH(Planning!C70,Lists!$G$5:$G$49,0),1),\"\")","v":""},null,{"$f":"IF(C70=0,\"\",\" [\"&INDEX(Lists!$H$5:$H$49,MATCH(C70,Lists!$G$5:$G$49,0),1)&\"]\")","v":""}]
["I063",{"$nulls":43},0,{"v":0,"d":"0.00"},null,null,{"$f":"SUMIFS(I$9:I$208,PlanningIDEnlaces,$C71,$H$9:$H$208,Lists!$A$16)","v":0},0,null,{"$f":"SUMIFS(L$9:L$208,PlanningIDEnlaces,$C71,$H$9:$H$208,Lists!$A$16)","v":0},0,null,{"$f":"SUMIFS(O$9:O$208,PlanningIDEnlaces,$C71,$H$9:$H$208,Lists!$A$16)","v":0},0,null,{"$f":"SUMIFS(R$9:R$208,PlanningIDEnlaces,$C71,$H$9:$H$208,Lists!$A$16)","v":0},0,null,{"$f":"SUMIFS(U$9:U$208,PlanningIDEnlaces,$C71,$H$9:$H$208,Lists!$A$16)","v":0},0,null,{"$f":"SUMIFS(X$9:X$208,PlanningIDEnlaces,$C71,$H$9:$H$208,Lists!$A$16)","v":0},0,null,{"$f":"SUMIFS(AA$9:AA$208,PlanningIDEnlaces,$C71,$H$9:$H$208,Lists!$A$16)","v":0},0,null,{"$f":"SUMIFS(AD$9:AD$208,PlanningIDEnlaces,$C71,$H$9:$H$208,Lists!$A$16)","v":0},0,null,{"$f":"SUMIFS(AG$9:AG$208,PlanningIDEnlaces,$C71,$H$9:$H$208,Lists!$A$16)","v":0},0,null,{"$f":"SUMIFS(AJ$9:AJ$208,PlanningIDEnlaces,$C71,$H$9:$H$208,Lists!$A$16)","v":0},0,null,{"$f":"SUMIFS(AM$9:AM$208,PlanningIDEnlaces,$C71,$H$9:$H$208,Lists!$A$16)","v":0},0,null,{"$f":"SUMIFS(AP$9:AP$208,PlanningIDEnlaces,$C71,$H$9:$H$208,Lists!$A$16)","v":0},0,null,{"$f":"IFERROR(INDEX(Lists!$F$5:$F$49,MATCH(Planning!C71,Lists!$G$5:$G$49,0),1),\"\")","v":""},null,{"$f":"IF(C71=0,\"\",\" [\"&INDEX(Lists!$H$5:$H$49,MATCH(C71,Lists!$G$5:$G$49,0),1)&\"]\")","v":""}]
["I064",{"$nulls":43},0,{"v":0,"d":"0.00"},null,null,{"$f":"SUMIFS(I$9:I$208,PlanningIDEnlaces,$C72,$H$9:$H$208,Lists!$A$16)","v":0},0,null,{"$f":"SUMIFS(L$9:L$208,PlanningIDEnlaces,$C72,$H$9:$H$208,Lists!$A$16)","v":0},0,null,{"$f":"SUMIFS(O$9:O$208,PlanningIDEnlaces,$C72,$H$9:$H$208,Lists!$A$16)","v":0},0,null,{"$f":"SUMIFS(R$9:R$208,PlanningIDEnlaces,$C72,$H$9:$H$208,Lists!$A$16)","v":0},0,null,{"$f":"SUMIFS(U$9:U$208,PlanningIDEnlaces,$C72,$H$9:$H$208,Lists!$A$16)","v":0},0,null,{"$f":"SUMIFS(X$9:X$208,PlanningIDEnlaces,$C72,$H$9:$H$208,Lists!$A$16)","v":0},0,null,{"$f":"SUMIFS(AA$9:AA$208,PlanningIDEnlaces,$C72,$H$9:$H$208,Lists!$A$16)","v":0},0,null,{"$f":"SUMIFS(AD$9:AD$208,PlanningIDEnlaces,$C72,$H$9:$H$208,Lists!$A$16)","v":0},0,null,{"$f":"SUMIFS(AG$9:AG$208,PlanningIDEnlaces,$C72,$H$9:$H$208,Lists!$A$16)","v":0},0,null,{"$f":"SUMIFS(AJ$9:AJ$208,PlanningIDEnlaces,$C72,$H$9:$H$208,Lists!$A$16)","v":0},0,null,{"$f":"SUMIFS(AM$9:AM$208,PlanningIDEnlaces,$C72,$H$9:$H$208,Lists!$A$16)","v":0},0,null,{"$f":"SUMIFS(AP$9:AP$208,PlanningIDEnlaces,$C72,$H$9:$H$208,Lists!$A$16)","v":0},0,null,{"$f":"IFERROR(INDEX(Lists!$F$5:$F$49,MATCH(Planning!C72,Lists!$G$5:$G$49,0),1),\"\")","v":""},null,{"$f":"IF(C72=0,\"\",\" [\"&INDEX(Lists!$H$5:$H$49,MATCH(C72,Lists!$G$5:$G$49,0),1)&\"]\")","v":""}]
["I065",{"$nulls":43},{"$f":"I73+L73+O73+R73+U73+X73+AA73+AD73+AG73+AJ73+AM73+AP73","v":0},{"$f":"J73+M73+P73+S73+V73+Y73+AB73+AE73+AH73+AK73+AN73+AQ73","v":{"v":0,"d":"0.00"}},null,null,{"$f":"SUMIFS(I$9:I$208,PlanningIDEnlaces,$C73,$H$9:$H$208,Lists!$A$16)","v":0},{"$f":"SUMIFS(J$9:J$208,PlanningIDEnlaces,$C73,$H$9:$H$208,\"<>\")","v":0},null,{"$f":"SUMIFS(L$9:L$208,PlanningIDEnlaces,$C73,$H$9:$H$208,Lists!$A$16)","v":0},{"$f":"SUMIFS(M$9:M$208,PlanningIDEnlaces,$C73,$H$9:$H$208,\"<>\")","v":0},null,{"$f":"SUMIFS(O$9:O$208,PlanningIDEnlaces,$C73,$H$9:$H$208,Lists!$A$16)","v":0},{"$f":"SUMIFS(P$9:P$208,PlanningIDEnlaces,$C73,$H$9:$H$208,\"<>\")","v":0},null,{"$f":"SUMIFS(R$9:R$208,PlanningIDEnlaces,$C73,$H$9:$H$208,Lists!$A$16)","v":0},{"$f":"SUMIFS(S$9:S$208,PlanningIDEnlaces,$C73,$H$9:$H$208,\"<>\")","v":0},null,{"$f":"SUMIFS(U$9:U$208,PlanningIDEnlaces,$C73,$H$9:$H$208,Lists!$A$16)","v":0},{"$f":"SUMIFS(V$9:V$208,PlanningIDEnlaces,$C73,$H$9:$H$208,\"<>\")","v":0},null,{"$f":"SUMIFS(X$9:X$208,PlanningIDEnlaces,$C73,$H$9:$H$208,Lists!$A$16)","v":0},{"$f":"SUMIFS(Y$9:Y$208,PlanningIDEnlaces,$C73,$H$9:$H$208,\"<>\")","v":0},null,{"$f":"SUMIFS(AA$9:AA$208,PlanningIDEnlaces,$C73,$H$9:$H$208,Lists!$A$16)","v":0},{"$f":"SUMIFS(AB$9:AB$208,PlanningIDEnlaces,$C73,$H$9:$H$208,\"<>\")","v":0},null,{"$f":"SUMIFS(AD$9:AD$208,PlanningIDEnlaces,$C73,$H$9:$H$208,Lists!$A$16)","v":0},{"$f":"SUMIFS(AE$9:AE$208,PlanningIDEnlaces,$C73,$H$9:$H$208,\"<>\")","v":0},null,{"$f":"SUMIFS(AG$9:AG$208,PlanningIDEnlaces,$C73,$H$9:$H$208,Lists!$A$16)","v":0},{"$f":"SUMIFS(AH$9:AH$208,PlanningIDEnlaces,$C73,$H$9:$H$208,\"<>\")","v":0},null,{"$f":"SUMIFS(AJ$9:AJ$208,PlanningIDEnlaces,$C73,$H$9:$H$208,Lists!$A$16)","v":0},{"$f":"SUMIFS(AK$9:AK$208,PlanningIDEnlaces,$C73,$H$9:$H$208,\"<>\")","v":0},null,{"$f":"SUMIFS(AM$9:AM$208,PlanningIDEnlaces,$C73,$H$9:$H$208,Lists!$A$16)","v":0},{"$f":"SUMIFS(AN$9:AN$208,PlanningIDEnlaces,$C73,$H$9:$H$208,\"<>\")","v":0},null,{"$f":"SUMIFS(AP$9:AP$208,PlanningIDEnlaces,$C73,$H$9:$H$208,Lists!$A$16)","v":0},{"$f":"SUMIFS(AQ$9:AQ$208,PlanningIDEnlaces,$C73,$H$9:$H$208,\"<>\")","v":0},null,{"$f":"IFERROR(INDEX(Lists!$F$5:$F$49,MATCH(Planning!C73,Lists!$G$5:$G$49,0),1),\"\")","v":""},null,{"$f":"IF(C73=0,\"\",\" [\"&INDEX(Lists!$H$5:$H$49,MATCH(C73,Lists!$G$5:$G$49,0),1)&\"]\")","v":""}]
["I066",{"$nulls":43},0,{"v":0,"d":"0.00"},null,null,{"$f":"SUMIFS(I$9:I$208,PlanningIDEnlaces,$C74,$H$9:$H$208,Lists!$A$16)","v":0},0,null,{"$f":"SUMIFS(L$9:L$208,PlanningIDEnlaces,$C74,$H$9:$H$208,Lists!$A$16)","v":0},0,null,{"$f":"SUMIFS(O$9:O$208,PlanningIDEnlaces,$C74,$H$9:$H$208,Lists!$A$16)","v":0},0,null,{"$f":"SUMIFS(R$9:R$208,PlanningIDEnlaces,$C74,$H$9:$H$208,Lists!$A$16)","v":0},0,null,{"$f":"SUMIFS(U$9:U$208,PlanningIDEnlaces,$C74,$H$9:$H$208,Lists!$A$16)","v":0},0,null,{"$f":"SUMIFS(X$9:X$208,PlanningIDEnlaces,$C74,$H$9:$H$208,Lists!$A$16)","v":0},0,null,{"$f":"SUMIFS(AA$9:AA$208,PlanningIDEnlaces,$C74,$H$9:$H$208,Lists!$A$16)","v":0},0,null,{"$f":"SUMIFS(AD$9:AD$208,PlanningIDEnlaces,$C74,$H$9:$H$208,Lists!$A$16)","v":0},0,null,{"$f":"SUMIFS(AG$9:AG$208,PlanningIDEnlaces,$C74,$H$9:$H$208,Lists!$A$16)","v":0},0,null,{"$f":"SUMIFS(AJ$9:AJ$208,PlanningIDEnlaces,$C74,$H$9:$H$208,Lists!$A$16)","v":0},0,null,{"$f":"SUMIFS(AM$9:AM$208,PlanningIDEnlaces,$C74,$H$9:$H$208,Lists!$A$16)","v":0},0,null,{"$f":"SUMIFS(AP$9:AP$208,PlanningIDEnlaces,$C74,$H$9:$H$208,Lists!$A$16)","v":0},0,null,{"$f":"IFERROR(INDEX(Lists!$F$5:$F$49,MATCH(Planning!C74,Lists!$G$5:$G$49,0),1),\"\")","v":""},null,{"$f":"IF(C74=0,\"\",\" [\"&INDEX(Lists!$H$5:$H$49,MATCH(C74,Lists!$G$5:$G$49,0),1)&\"]\")","v":""}]
["I067",{"$nulls":43},0,{"v":0,"d":"0.00"},null,null,{"$f":"SUMIFS(I$9:I$208,PlanningIDEnlaces,$C75,$H$9:$H$208,Lists!$A$16)","v":0},0,null,{"$f":"SUMIFS(L$9:L$208,PlanningIDEnlaces,$C75,$H$9:$H$208,Lists!$A$16)","v":0},0,null,{"$f":"SUMIFS(O$9:O$208,PlanningIDEnlaces,$C75,$H$9:$H$208,Lists!$A$16)","v":0},0,null,{"$f":"SUMIFS(R$9:R$208,PlanningIDEnlaces,$C75,$H$9:$H$208,Lists!$A$16)","v":0},0,null,{"$f":"SUMIFS(U$9:U$208,PlanningIDEnlaces,$C75,$H$9:$H$208,Lists!$A$16)","v":0},0,null,{"$f":"SUMIFS(X$9:X$208,PlanningIDEnlaces,$C75,$H$9:$H$208,Lists!$A$16)","v":0},0,null,{"$f":"SUMIFS(AA$9:AA$208,PlanningIDEnlaces,$C75,$H$9:$H$208,Lists!$A$16)","v":0},0,null,{"$f":"SUMIFS(AD$9:AD$208,PlanningIDEnlaces,$C75,$H$9:$H$208,Lists!$A$16)","v":0},0,null,{"$f":"SUMIFS(AG$9:AG$208,PlanningIDEnlaces,$C75,$H$9:$H$208,Lists!$A$16)","v":0},0,null,{"$f":"SUMIFS(AJ$9:AJ$208,PlanningIDEnlaces,$C75,$H$9:$H$208,Lists!$A$16)","v":0},0,null,{"$f":"SUMIFS(AM$9:AM$208,PlanningIDEnlaces,$C75,$H$9:$H$208,Lists!$A$16)","v":0},0,null,{"$f":"SUMIFS(AP$9:AP$208,PlanningIDEnlaces,$C75,$H$9:$H$208,Lists!$A$16)","v":0},0,null,{"$f":"IFERROR(INDEX(Lists!$F$5:$F$49,MATCH(Planning!C75,Lists!$G$5:$G$49,0),1),\"\")","v":""},null,{"$f":"IF(C75=0,\"\",\" [\"&INDEX(Lists!$H$5:$H$49,MATCH(C75,Lists!$G$5:$G$49,0),1)&\"]\")","v":""}]
["I068",{"$nulls":43},0,{"v":0,"d":"0.00"},null,null,{"$f":"SUMIFS(I$9:I$208,PlanningIDEnlaces,$C76,$H$9:$H$208,Lists!$A$16)","v":0},0,null,{"$f":"SUMIFS(L$9:L$208,PlanningIDEnlaces,$C76,$H$9:$H$208,Lists!$A$16)","v":0},0,null,{"$f":"SUMIFS(O$9:O$208,PlanningIDEnlaces,$C76,$H$9:$H$208,Lists!$A$16)","v":0},0,null,{"$f":"SUMIFS(R$9:R$208,PlanningIDEnlaces,$C76,$H$9:$H$208,Lists!$A$16)","v":0},0,null,{"$f":"SUMIFS(U$9:U$208,PlanningIDEnlaces,$C76,$H$9:$H$208,Lists!$A$16)","v":0},0,null,{"$f":"SUMIFS(X$9:X$208,PlanningIDEnlaces,$C76,$H$9:$H$208,Lists!$A$16)","v":0},0,null,{"$f":"SUMIFS(AA$9:AA$208,PlanningIDEnlaces,$C76,$H$9:$H$208,Lists!$A$16)","v":0},0,null,{"$f":"SUMIFS(AD$9:AD$208,PlanningIDEnlaces,$C76,$H$9:$H$208,Lists!$A$16)","v":0},0,null,{"$f":"SUMIFS(AG$9:AG$208,PlanningIDEnlaces,$C76,$H$9:$H$208,Lists!$A$16)","v":0},0,null,{"$f":"SUMIFS(AJ$9:AJ$208,PlanningIDEnlaces,$C76,$H$9:$H$208,Lists!$A$16)","v":0},0,null,{"$f":"SUMIFS(AM$9:AM$208,PlanningIDEnlaces,$C76,$H$9:$H$208,Lists!$A$16)","v":0},0,null,{"$f":"SUMIFS(AP$9:AP$208,PlanningIDEnlaces,$C76,$H$9:$H$208,Lists!$A$16)","v":0},0,null,{"$f":"IFERROR(INDEX(Lists!$F$5:$F$49,MATCH(Planning!C76,Lists!$G$5:$G$49,0),1),\"\")","v":""},null,{"$f":"IF(C76=0,\"\",\" [\"&INDEX(Lists!$H$5:$H$49,MATCH(C76,Lists!$G$5:$G$49,0),1)&\"]\")","v":""}]
["I069",{"$nulls":43},0,{"v":0,"d":"0.00"},null,null,{"$f":"SUMIFS(I$9:I$208,PlanningIDEnlaces,$C77,$H$9:$H$208,Lists!$A$16)","v":0},0,null,{"$f":"SUMIFS(L$9:L$208,PlanningIDEnlaces,$C77,$H$9:$H$208,Lists!$A$16)","v":0},0,null,{"$f":"SUMIFS(O$9:O$208,PlanningIDEnlaces,$C77,$H$9:$H$208,Lists!$A$16)","v":0},0,null,{"$f":"SUMIFS(R$9:R$208,PlanningIDEnlaces,$C77,$H$9:$H$208,Lists!$A$16)","v":0},0,null,{"$f":"SUMIFS(U$9:U$208,PlanningIDEnlaces,$C77,$H$9:$H$208,Lists!$A$16)","v":0},0,null,{"$f":"SUMIFS(X$9:X$208,PlanningIDEnlaces,$C77,$H$9:$H$208,Lists!$A$16)","v":0},0,null,{"$f":"SUMIFS(AA$9:AA$208,PlanningIDEnlaces,$C77,$H$9:$H$208,Lists!$A$16)","v":0},0,null,{"$f":"SUMIFS(AD$9:AD$208,PlanningIDEnlaces,$C77,$H$9:$H$208,Lists!$A$16)","v":0},0,null,{"$f":"SUMIFS(AG$9:AG$208,PlanningIDEnlaces,$C77,$H$9:$H$208,Lists!$A$16)","v":0},0,null,{"$f":"SUMIFS(AJ$9:AJ$208,PlanningIDEnlaces,$C77,$H$9:$H$208,Lists!$A$16)","v":0},0,null,{"$f":"SUMIFS(AM$9:AM$208,PlanningIDEnlaces,$C77,$H$9:$H$208,Lists!$A$16)","v":0},0,null,{"$f":"SUMIFS(AP$9:AP$208,PlanningIDEnlaces,$C77,$H$9:$H$208,Lists!$A$16)","v":0},0,null,{"$f":"IFERROR(INDEX(Lists!$F$5:$F$49,MATCH(Planning!C77,Lists!$G$5:$G$49,0),1),\"\")","v":""},null,{"$f":"IF(C77=0,\"\",\" [\"&INDEX(Lists!$H$5:$H$49,MATCH(C77,Lists!$G$5:$G$49,0),1)&\"]\")","v":""}]
["I070",{"$nulls":43},0,{"v":0,"d":"0.00"},null,null,{"$f":"SUMIFS(I$9:I$208,PlanningIDEnlaces,$C78,$H$9:$H$208,Lists!$A$16)","v":0},0,null,{"$f":"SUMIFS(L$9:L$208,PlanningIDEnlaces,$C78,$H$9:$H$208,Lists!$A$16)","v":0},0,null,{"$f":"SUMIFS(O$9:O$208,PlanningIDEnlaces,$C78,$H$9:$H$208,Lists!$A$16)","v":0},0,null,{"$f":"SUMIFS(R$9:R$208,PlanningIDEnlaces,$C78,$H$9:$H$208,Lists!$A$16)","v":0},0,null,{"$f":"SUMIFS(U$9:U$208,PlanningIDEnlaces,$C78,$H$9:$H$208,Lists!$A$16)","v":0},0,null,{"$f":"SUMIFS(X$9:X$208,PlanningIDEnlaces,$C78,$H$9:$H$208,Lists!$A$16)","v":0},0,null,{"$f":"SUMIFS(AA$9:AA$208,PlanningIDEnlaces,$C78,$H$9:$H$208,Lists!$A$16)","v":0},0,null,{"$f":"SUMIFS(AD$9:AD$208,PlanningIDEnlaces,$C78,$H$9:$H$208,Lists!$A$16)","v":0},0,null,{"$f":"SUMIFS(AG$9:AG$208,PlanningIDEnlaces,$C78,$H$9:$H$208,Lists!$A$16)","v":0},0,null,{"$f":"SUMIFS(AJ$9:AJ$208,PlanningIDEnlaces,$C78,$H$9:$H$208,Lists!$A$16)","v":0},0,null,{"$f":"SUMIFS(AM$9:AM$208,PlanningIDEnlaces,$C78,$H$9:$H$208,Lists!$A$16)","v":0},0,null,{"$f":"SUMIFS(AP$9:AP$208,PlanningIDEnlaces,$C78,$H$9:$H$208,Lists!$A$16)","v":0},0,null,{"$f":"IFERROR(INDEX(Lists!$F$5:$F$49,MATCH(Planning!C78,Lists!$G$5:$G$49,0),1),\"\")","v":""},null,{"$f":"IF(C78=0,\"\",\" [\"&INDEX(Lists!$H$5:$H$49,MATCH(C78,Lists!$G$5:$G$49,0),1)&\"]\")","v":""}]
["I071",{"$nulls":43},0,{"v":0,"d":"0.00"},null,null,{"$f":"SUMIFS(I$9:I$208,PlanningIDEnlaces,$C79,$H$9:$H$208,Lists!$A$16)","v":0},0,null,{"$f":"SUMIFS(L$9:L$208,PlanningIDEnlaces,$C79,$H$9:$H$208,Lists!$A$16)","v":0},0,null,{"$f":"SUMIFS(O$9:O$208,PlanningIDEnlaces,$C79,$H$9:$H$208,Lists!$A$16)","v":0},0,null,{"$f":"SUMIFS(R$9:R$208,PlanningIDEnlaces,$C79,$H$9:$H$208,Lists!$A$16)","v":0},0,null,{"$f":"SUMIFS(U$9:U$208,PlanningIDEnlaces,$C79,$H$9:$H$208,Lists!$A$16)","v":0},0,null,{"$f":"SUMIFS(X$9:X$208,PlanningIDEnlaces,$C79,$H$9:$H$208,Lists!$A$16)","v":0},0,null,{"$f":"SUMIFS(AA$9:AA$208,PlanningIDEnlaces,$C79,$H$9:$H$208,Lists!$A$16)","v":0},0,null,{"$f":"SUMIFS(AD$9:AD$208,PlanningIDEnlaces,$C79,$H$9:$H$208,Lists!$A$16)","v":0},0,null,{"$f":"SUMIFS(AG$9:AG$208,PlanningIDEnlaces,$C79,$H$9:$H$208,Lists!$A$16)","v":0},0,null,{"$f":"SUMIFS(AJ$9:AJ$208,PlanningIDEnlaces,$C79,$H$9:$H$208,Lists!$A$16)","v":0},0,null,{"$f":"SUMIFS(AM$9:AM$208,PlanningIDEnlaces,$C79,$H$9:$H$208,Lists!$A$16)","v":0},0,null,{"$f":"SUMIFS(AP$9:AP$208,PlanningIDEnlaces,$C79,$H$9:$H$208,Lists!$A$16)","v":0},0,null,{"$f":"IFERROR(INDEX(Lists!$F$5:$F$49,MATCH(Planning!C79,Lists!$G$5:$G$49,0),1),\"\")","v":""},null,{"$f":"IF(C79=0,\"\",\" [\"&INDEX(Lists!$H$5:$H$49,MATCH(C79,Lists!$G$5:$G$49,0),1)&\"]\")","v":""}]
["I072",{"$nulls":43},0,{"v":0,"d":"0.00"},null,null,{"$f":"SUMIFS(I$9:I$208,PlanningIDEnlaces,$C80,$H$9:$H$208,Lists!$A$16)","v":0},0,null,{"$f":"SUMIFS(L$9:L$208,PlanningIDEnlaces,$C80,$H$9:$H$208,Lists!$A$16)","v":0},0,null,{"$f":"SUMIFS(O$9:O$208,PlanningIDEnlaces,$C80,$H$9:$H$208,Lists!$A$16)","v":0},0,null,{"$f":"SUMIFS(R$9:R$208,PlanningIDEnlaces,$C80,$H$9:$H$208,Lists!$A$16)","v":0},0,null,{"$f":"SUMIFS(U$9:U$208,PlanningIDEnlaces,$C80,$H$9:$H$208,Lists!$A$16)","v":0},0,null,{"$f":"SUMIFS(X$9:X$208,PlanningIDEnlaces,$C80,$H$9:$H$208,Lists!$A$16)","v":0},0,null,{"$f":"SUMIFS(AA$9:AA$208,PlanningIDEnlaces,$C80,$H$9:$H$208,Lists!$A$16)","v":0},0,null,{"$f":"SUMIFS(AD$9:AD$208,PlanningIDEnlaces,$C80,$H$9:$H$208,Lists!$A$16)","v":0},0,null,{"$f":"SUMIFS(AG$9:AG$208,PlanningIDEnlaces,$C80,$H$9:$H$208,Lists!$A$16)","v":0},0,null,{"$f":"SUMIFS(AJ$9:AJ$208,PlanningIDEnlaces,$C80,$H$9:$H$208,Lists!$A$16)","v":0},0,null,{"$f":"SUMIFS(AM$9:AM$208,PlanningIDEnlaces,$C80,$H$9:$H$208,Lists!$A$16)","v":0},0,null,{"$f":"SUMIFS(AP$9:AP$208,PlanningIDEnlaces,$C80,$H$9:$H$208,Lists!$A$16)","v":0},0,null,{"$f":"IFERROR(INDEX(Lists!$F$5:$F$49,MATCH(Planning!C80,Lists!$G$5:$G$49,0),1),\"\")","v":""},null,{"$f":"IF(C80=0,\"\",\" [\"&INDEX(Lists!$H$5:$H$49,MATCH(C80,Lists!$G$5:$G$49,0),1)&\"]\")","v":""}]
["I073",{"$nulls":43},0,{"v":0,"d":"0.00"},null,null,{"$f":"SUMIFS(I$9:I$208,PlanningIDEnlaces,$C81,$H$9:$H$208,Lists!$A$16)","v":0},0,null,{"$f":"SUMIFS(L$9:L$208,PlanningIDEnlaces,$C81,$H$9:$H$208,Lists!$A$16)","v":0},0,null,{"$f":"SUMIFS(O$9:O$208,PlanningIDEnlaces,$C81,$H$9:$H$208,Lists!$A$16)","v":0},0,null,{"$f":"SUMIFS(R$9:R$208,PlanningIDEnlaces,$C81,$H$9:$H$208,Lists!$A$16)","v":0},0,null,{"$f":"SUMIFS(U$9:U$208,PlanningIDEnlaces,$C81,$H$9:$H$208,Lists!$A$16)","v":0},0,null,{"$f":"SUMIFS(X$9:X$208,PlanningIDEnlaces,$C81,$H$9:$H$208,Lists!$A$16)","v":0},0,null,{"$f":"SUMIFS(AA$9:AA$208,PlanningIDEnlaces,$C81,$H$9:$H$208,Lists!$A$16)","v":0},0,null,{"$f":"SUMIFS(AD$9:AD$208,PlanningIDEnlaces,$C81,$H$9:$H$208,Lists!$A$16)","v":0},0,null,{"$f":"SUMIFS(AG$9:AG$208,PlanningIDEnlaces,$C81,$H$9:$H$208,Lists!$A$16)","v":0},0,null,{"$f":"SUMIFS(AJ$9:AJ$208,PlanningIDEnlaces,$C81,$H$9:$H$208,Lists!$A$16)","v":0},0,null,{"$f":"SUMIFS(AM$9:AM$208,PlanningIDEnlaces,$C81,$H$9:$H$208,Lists!$A$16)","v":0},0,null,{"$f":"SUMIFS(AP$9:AP$208,PlanningIDEnlaces,$C81,$H$9:$H$208,Lists!$A$16)","v":0},0,null,{"$f":"IFERROR(INDEX(Lists!$F$5:$F$49,MATCH(Planning!C81,Lists!$G$5:$G$49,0),1),\"\")","v":""},null,{"$f":"IF(C81=0,\"\",\" [\"&INDEX(Lists!$H$5:$H$49,MATCH(C81,Lists!$G$5:$G$49,0),1)&\"]\")","v":""}]
["I074",{"$nulls":43},0,{"v":0,"d":"0.00"},null,null,{"$f":"SUMIFS(I$9:I$208,PlanningIDEnlaces,$C82,$H$9:$H$208,Lists!$A$16)","v":0},0,null,{"$f":"SUMIFS(L$9:L$208,PlanningIDEnlaces,$C82,$H$9:$H$208,Lists!$A$16)","v":0},0,null,{"$f":"SUMIFS(O$9:O$208,PlanningIDEnlaces,$C82,$H$9:$H$208,Lists!$A$16)","v":0},0,null,{"$f":"SUMIFS(R$9:R$208,PlanningIDEnlaces,$C82,$H$9:$H$208,Lists!$A$16)","v":0},0,null,{"$f":"SUMIFS(U$9:U$208,PlanningIDEnlaces,$C82,$H$9:$H$208,Lists!$A$16)","v":0},0,null,{"$f":"SUMIFS(X$9:X$208,PlanningIDEnlaces,$C82,$H$9:$H$208,Lists!$A$16)","v":0},0,null,{"$f":"SUMIFS(AA$9:AA$208,PlanningIDEnlaces,$C82,$H$9:$H$208,Lists!$A$16)","v":0},0,null,{"$f":"SUMIFS(AD$9:AD$208,PlanningIDEnlaces,$C82,$H$9:$H$208,Lists!$A$16)","v":0},0,null,{"$f":"SUMIFS(AG$9:AG$208,PlanningIDEnlaces,$C82,$H$9:$H$208,Lists!$A$16)","v":0},0,null,{"$f":"SUMIFS(AJ$9:AJ$208,PlanningIDEnlaces,$C82,$H$9:$H$208,Lists!$A$16)","v":0},0,null,{"$f":"SUMIFS(AM$9:AM$208,PlanningIDEnlaces,$C82,$H$9:$H$208,Lists!$A$16)","v":0},0,null,{"$f":"SUMIFS(AP$9:AP$208,PlanningIDEnlaces,$C82,$H$9:$H$208,Lists!$A$16)","v":0},0,null,{"$f":"IFERROR(INDEX(Lists!$F$5:$F$49,MATCH(Planning!C82,Lists!$G$5:$G$49,0),1),\"\")","v":""},null,{"$f":"IF(C82=0,\"\",\" [\"&INDEX(Lists!$H$5:$H$49,MATCH(C82,Lists!$G$5:$G$49,0),1)&\"]\")","v":""}]
["I075",{"$nulls":43},0,{"v":0,"d":"0.00"},null,null,{"$f":"SUMIFS(I$9:I$208,PlanningIDEnlaces,$C83,$H$9:$H$208,Lists!$A$16)","v":0},0,null,{"$f":"SUMIFS(L$9:L$208,PlanningIDEnlaces,$C83,$H$9:$H$208,Lists!$A$16)","v":0},0,null,{"$f":"SUMIFS(O$9:O$208,PlanningIDEnlaces,$C83,$H$9:$H$208,Lists!$A$16)","v":0},0,null,{"$f":"SUMIFS(R$9:R$208,PlanningIDEnlaces,$C83,$H$9:$H$208,Lists!$A$16)","v":0},0,null,{"$f":"SUMIFS(U$9:U$208,PlanningIDEnlaces,$C83,$H$9:$H$208,Lists!$A$16)","v":0},0,null,{"$f":"SUMIFS(X$9:X$208,PlanningIDEnlaces,$C83,$H$9:$H$208,Lists!$A$16)","v":0},0,null,{"$f":"SUMIFS(AA$9:AA$208,PlanningIDEnlaces,$C83,$H$9:$H$208,Lists!$A$16)","v":0},0,null,{"$f":"SUMIFS(AD$9:AD$208,PlanningIDEnlaces,$C83,$H$9:$H$208,Lists!$A$16)","v":0},0,null,{"$f":"SUMIFS(AG$9:AG$208,PlanningIDEnlaces,$C83,$H$9:$H$208,Lists!$A$16)","v":0},0,null,{"$f":"SUMIFS(AJ$9:AJ$208,PlanningIDEnlaces,$C83,$H$9:$H$208,Lists!$A$16)","v":0},0,null,{"$f":"SUMIFS(AM$9:AM$208,PlanningIDEnlaces,$C83,$H$9:$H$208,Lists!$A$16)","v":0},0,null,{"$f":"SUMIFS(AP$9:AP$208,PlanningIDEnlaces,$C83,$H$9:$H$208,Lists!$A$16)","v":0},0,null,{"$f":"IFERROR(INDEX(Lists!$F$5:$F$49,MATCH(Planning!C83,Lists!$G$5:$G$49,0),1),\"\")","v":""},null,{"$f":"IF(C83=0,\"\",\" [\"&INDEX(Lists!$H$5:$H$49,MATCH(C83,Lists!$G$5:$G$49,0),1)&\"]\")","v":""}]
["I076",{"$nulls":43},0,{"v":0,"d":"0.00"},null,null,{"$f":"SUMIFS(I$9:I$208,PlanningIDEnlaces,$C84,$H$9:$H$208,Lists!$A$16)","v":0},0,null,{"$f":"SUMIFS(L$9:L$208,PlanningIDEnlaces,$C84,$H$9:$H$208,Lists!$A$16)","v":0},0,null,{"$f":"SUMIFS(O$9:O$208,PlanningIDEnlaces,$C84,$H$9:$H$208,Lists!$A$16)","v":0},0,null,{"$f":"SUMIFS(R$9:R$208,PlanningIDEnlaces,$C84,$H$9:$H$208,Lists!$A$16)","v":0},0,null,{"$f":"SUMIFS(U$9:U$208,PlanningIDEnlaces,$C84,$H$9:$H$208,Lists!$A$16)","v":0},0,null,{"$f":"SUMIFS(X$9:X$208,PlanningIDEnlaces,$C84,$H$9:$H$208,Lists!$A$16)","v":0},0,null,{"$f":"SUMIFS(AA$9:AA$208,PlanningIDEnlaces,$C84,$H$9:$H$208,Lists!$A$16)","v":0},0,null,{"$f":"SUMIFS(AD$9:AD$208,PlanningIDEnlaces,$C84,$H$9:$H$208,Lists!$A$16)","v":0},0,null,{"$f":"SUMIFS(AG$9:AG$208,PlanningIDEnlaces,$C84,$H$9:$H$208,Lists!$A$16)","v":0},0,null,{"$f":"SUMIFS(AJ$9:AJ$208,PlanningIDEnlaces,$C84,$H$9:$H$208,Lists!$A$16)","v":0},0,null,{"$f":"SUMIFS(AM$9:AM$208,PlanningIDEnlaces,$C84,$H$9:$H$208,Lists!$A$16)","v":0},0,null,{"$f":"SUMIFS(AP$9:AP$208,PlanningIDEnlaces,$C84,$H$9:$H$208,Lists!$A$16)","v":0},0,null,{"$f":"IFERROR(INDEX(Lists!$F$5:$F$49,MATCH(Planning!C84,Lists!$G$5:$G$49,0),1),\"\")","v":""},null,{"$f":"IF(C84=0,\"\",\" [\"&INDEX(Lists!$H$5:$H$49,MATCH(C84,Lists!$G$5:$G$49,0),1)&\"]\")","v":""}]
["I077",{"$nulls":43},0,{"v":0,"d":"0.00"},null,null,{"$f":"SUMIFS(I$9:I$208,PlanningIDEnlaces,$C85,$H$9:$H$208,Lists!$A$16)","v":0},0,null,{"$f":"SUMIFS(L$9:L$208,PlanningIDEnlaces,$C85,$H$9:$H$208,Lists!$A$16)","v":0},0,null,{"$f":"SUMIFS(O$9:O$208,PlanningIDEnlaces,$C85,$H$9:$H$208,Lists!$A$16)","v":0},0,null,{"$f":"SUMIFS(R$9:R$208,PlanningIDEnlaces,$C85,$H$9:$H$208,Lists!$A$16)","v":0},0,null,{"$f":"SUMIFS(U$9:U$208,PlanningIDEnlaces,$C85,$H$9:$H$208,Lists!$A$16)","v":0},0,null,{"$f":"SUMIFS(X$9:X$208,PlanningIDEnlaces,$C85,$H$9:$H$208,Lists!$A$16)","v":0},0,null,{"$f":"SUMIFS(AA$9:AA$208,PlanningIDEnlaces,$C85,$H$9:$H$208,Lists!$A$16)","v":0},0,null,{"$f":"SUMIFS(AD$9:AD$208,PlanningIDEnlaces,$C85,$H$9:$H$208,Lists!$A$16)","v":0},0,null,{"$f":"SUMIFS(AG$9:AG$208,PlanningIDEnlaces,$C85,$H$9:$H$208,Lists!$A$16)","v":0},0,null,{"$f":"SUMIFS(AJ$9:AJ$208,PlanningIDEnlaces,$C85,$H$9:$H$208,Lists!$A$16)","v":0},0,null,{"$f":"SUMIFS(AM$9:AM$208,PlanningIDEnlaces,$C85,$H$9:$H$208,Lists!$A$16)","v":0},0,null,{"$f":"SUMIFS(AP$9:AP$208,PlanningIDEnlaces,$C85,$H$9:$H$208,Lists!$A$16)","v":0},0,null,{"$f":"IFERROR(INDEX(Lists!$F$5:$F$49,MATCH(Planning!C85,Lists!$G$5:$G$49,0),1),\"\")","v":""},null,{"$f":"IF(C85=0,\"\",\" [\"&INDEX(Lists!$H$5:$H$49,MATCH(C85,Lists!$G$5:$G$49,0),1)&\"]\")","v":""}]
["I078",{"$nulls":43},0,{"v":0,"d":"0.00"},null,null,{"$f":"SUMIFS(I$9:I$208,PlanningIDEnlaces,$C86,$H$9:$H$208,Lists!$A$16)","v":0},0,null,{"$f":"SUMIFS(L$9:L$208,PlanningIDEnlaces,$C86,$H$9:$H$208,Lists!$A$16)","v":0},0,null,{"$f":"SUMIFS(O$9:O$208,PlanningIDEnlaces,$C86,$H$9:$H$208,Lists!$A$16)","v":0},0,null,{"$f":"SUMIFS(R$9:R$208,PlanningIDEnlaces,$C86,$H$9:$H$208,Lists!$A$16)","v":0},0,null,{"$f":"SUMIFS(U$9:U$208,PlanningIDEnlaces,$C86,$H$9:$H$208,Lists!$A$16)","v":0},0,null,{"$f":"SUMIFS(X$9:X$208,PlanningIDEnlaces,$C86,$H$9:$H$208,Lists!$A$16)","v":0},0,null,{"$f":"SUMIFS(AA$9:AA$208,PlanningIDEnlaces,$C86,$H$9:$H$208,Lists!$A$16)","v":0},0,null,{"$f":"SUMIFS(AD$9:AD$208,PlanningIDEnlaces,$C86,$H$9:$H$208,Lists!$A$16)","v":0},0,null,{"$f":"SUMIFS(AG$9:AG$208,PlanningIDEnlaces,$C86,$H$9:$H$208,Lists!$A$16)","v":0},0,null,{"$f":"SUMIFS(AJ$9:AJ$208,PlanningIDEnlaces,$C86,$H$9:$H$208,Lists!$A$16)","v":0},0,null,{"$f":"SUMIFS(AM$9:AM$208,PlanningIDEnlaces,$C86,$H$9:$H$208,Lists!$A$16)","v":0},0,null,{"$f":"SUMIFS(AP$9:AP$208,PlanningIDEnlaces,$C86,$H$9:$H$208,Lists!$A$16)","v":0},0,null,{"$f":"IFERROR(INDEX(Lists!$F$5:$F$49,MATCH(Planning!C86,Lists!$G$5:$G$49,0),1),\"\")","v":""},null,{"$f":"IF(C86=0,\"\",\" [\"&INDEX(Lists!$H$5:$H$49,MATCH(C86,Lists!$G$5:$G$49,0),1)&\"]\")","v":""}]
["I079",{"$nulls":43},0,{"v":0,"d":"0.00"},null,null,{"$f":"SUMIFS(I$9:I$208,PlanningIDEnlaces,$C87,$H$9:$H$208,Lists!$A$16)","v":0},0,null,{"$f":"SUMIFS(L$9:L$208,PlanningIDEnlaces,$C87,$H$9:$H$208,Lists!$A$16)","v":0},0,null,{"$f":"SUMIFS(O$9:O$208,PlanningIDEnlaces,$C87,$H$9:$H$208,Lists!$A$16)","v":0},0,null,{"$f":"SUMIFS(R$9:R$208,PlanningIDEnlaces,$C87,$H$9:$H$208,Lists!$A$16)","v":0},0,null,{"$f":"SUMIFS(U$9:U$208,PlanningIDEnlaces,$C87,$H$9:$H$208,Lists!$A$16)","v":0},0,null,{"$f":"SUMIFS(X$9:X$208,PlanningIDEnlaces,$C87,$H$9:$H$208,Lists!$A$16)","v":0},0,null,{"$f":"SUMIFS(AA$9:AA$208,PlanningIDEnlaces,$C87,$H$9:$H$208,Lists!$A$16)","v":0},0,null,{"$f":"SUMIFS(AD$9:AD$208,PlanningIDEnlaces,$C87,$H$9:$H$208,Lists!$A$16)","v":0},0,null,{"$f":"SUMIFS(AG$9:AG$208,PlanningIDEnlaces,$C87,$H$9:$H$208,Lists!$A$16)","v":0},0,null,{"$f":"SUMIFS(AJ$9:AJ$208,PlanningIDEnlaces,$C87,$H$9:$H$208,Lists!$A$16)","v":0},0,null,{"$f":"SUMIFS(AM$9:AM$208,PlanningIDEnlaces,$C87,$H$9:$H$208,Lists!$A$16)","v":0},0,null,{"$f":"SUMIFS(AP$9:AP$208,PlanningIDEnlaces,$C87,$H$9:$H$208,Lists!$A$16)","v":0},0,null,{"$f":"IFERROR(INDEX(Lists!$F$5:$F$49,MATCH(Planning!C87,Lists!$G$5:$G$49,0),1),\"\")","v":""},null,{"$f":"IF(C87=0,\"\",\" [\"&INDEX(Lists!$H$5:$H$49,MATCH(C87,Lists!$G$5:$G$49,0),1)&\"]\")","v":""}]
["I080",{"$nulls":43},0,{"v":0,"d":"0.00"},null,null,{"$f":"SUMIFS(I$9:I$208,PlanningIDEnlaces,$C88,$H$9:$H$208,Lists!$A$16)","v":0},0,null,{"$f":"SUMIFS(L$9:L$208,PlanningIDEnlaces,$C88,$H$9:$H$208,Lists!$A$16)","v":0},0,null,{"$f":"SUMIFS(O$9:O$208,PlanningIDEnlaces,$C88,$H$9:$H$208,Lists!$A$16)","v":0},0,null,{"$f":"SUMIFS(R$9:R$208,PlanningIDEnlaces,$C88,$H$9:$H$208,Lists!$A$16)","v":0},0,null,{"$f":"SUMIFS(U$9:U$208,PlanningIDEnlaces,$C88,$H$9:$H$208,Lists!$A$16)","v":0},0,null,{"$f":"SUMIFS(X$9:X$208,PlanningIDEnlaces,$C88,$H$9:$H$208,Lists!$A$16)","v":0},0,null,{"$f":"SUMIFS(AA$9:AA$208,PlanningIDEnlaces,$C88,$H$9:$H$208,Lists!$A$16)","v":0},0,null,{"$f":"SUMIFS(AD$9:AD$208,PlanningIDEnlaces,$C88,$H$9:$H$208,Lists!$A$16)","v":0},0,null,{"$f":"SUMIFS(AG$9:AG$208,PlanningIDEnlaces,$C88,$H$9:$H$208,Lists!$A$16)","v":0},0,null,{"$f":"SUMIFS(AJ$9:AJ$208,PlanningIDEnlaces,$C88,$H$9:$H$208,Lists!$A$16)","v":0},0,null,{"$f":"SUMIFS(AM$9:AM$208,PlanningIDEnlaces,$C88,$H$9:$H$208,Lists!$A$16)","v":0},0,null,{"$f":"SUMIFS(AP$9:AP$208,PlanningIDEnlaces,$C88,$H$9:$H$208,Lists!$A$16)","v":0},0,null,{"$f":"IFERROR(INDEX(Lists!$F$5:$F$49,MATCH(Planning!C88,Lists!$G$5:$G$49,0),1),\"\")","v":""},null,{"$f":"IF(C88=0,\"\",\" [\"&INDEX(Lists!$H$5:$H$49,MATCH(C88,Lists!$G$5:$G$49,0),1)&\"]\")","v":""}]
["I081",{"$nulls":43},0,{"v":0,"d":"0.00"},null,null,{"$f":"SUMIFS(I$9:I$208,PlanningIDEnlaces,$C89,$H$9:$H$208,Lists!$A$16)","v":0},0,null,{"$f":"SUMIFS(L$9:L$208,PlanningIDEnlaces,$C89,$H$9:$H$208,Lists!$A$16)","v":0},0,null,{"$f":"SUMIFS(O$9:O$208,PlanningIDEnlaces,$C89,$H$9:$H$208,Lists!$A$16)","v":0},0,null,{"$f":"SUMIFS(R$9:R$208,PlanningIDEnlaces,$C89,$H$9:$H$208,Lists!$A$16)","v":0},0,null,{"$f":"SUMIFS(U$9:U$208,PlanningIDEnlaces,$C89,$H$9:$H$208,Lists!$A$16)","v":0},0,null,{"$f":"SUMIFS(X$9:X$208,PlanningIDEnlaces,$C89,$H$9:$H$208,Lists!$A$16)","v":0},0,null,{"$f":"SUMIFS(AA$9:AA$208,PlanningIDEnlaces,$C89,$H$9:$H$208,Lists!$A$16)","v":0},0,null,{"$f":"SUMIFS(AD$9:AD$208,PlanningIDEnlaces,$C89,$H$9:$H$208,Lists!$A$16)","v":0},0,null,{"$f":"SUMIFS(AG$9:AG$208,PlanningIDEnlaces,$C89,$H$9:$H$208,Lists!$A$16)","v":0},0,null,{"$f":"SUMIFS(AJ$9:AJ$208,PlanningIDEnlaces,$C89,$H$9:$H$208,Lists!$A$16)","v":0},0,null,{"$f":"SUMIFS(AM$9:AM$208,PlanningIDEnlaces,$C89,$H$9:$H$208,Lists!$A$16)","v":0},0,null,{"$f":"SUMIFS(AP$9:AP$208,PlanningIDEnlaces,$C89,$H$9:$H$208,Lists!$A$16)","v":0},0,null,{"$f":"IFERROR(INDEX(Lists!$F$5:$F$49,MATCH(Planning!C89,Lists!$G$5:$G$49,0),1),\"\")","v":""},null,{"$f":"IF(C89=0,\"\",\" [\"&INDEX(Lists!$H$5:$H$49,MATCH(C89,Lists!$G$5:$G$49,0),1)&\"]\")","v":""}]
["I082",{"$nulls":43},0,{"v":0,"d":"0.00"},null,null,{"$f":"SUMIFS(I$9:I$208,PlanningIDEnlaces,$C90,$H$9:$H$208,Lists!$A$16)","v":0},0,null,{"$f":"SUMIFS(L$9:L$208,PlanningIDEnlaces,$C90,$H$9:$H$208,Lists!$A$16)","v":0},0,null,{"$f":"SUMIFS(O$9:O$208,PlanningIDEnlaces,$C90,$H$9:$H$208,Lists!$A$16)","v":0},0,null,{"$f":"SUMIFS(R$9:R$208,PlanningIDEnlaces,$C90,$H$9:$H$208,Lists!$A$16)","v":0},0,null,{"$f":"SUMIFS(U$9:U$208,PlanningIDEnlaces,$C90,$H$9:$H$208,Lists!$A$16)","v":0},0,null,{"$f":"SUMIFS(X$9:X$208,PlanningIDEnlaces,$C90,$H$9:$H$208,Lists!$A$16)","v":0},0,null,{"$f":"SUMIFS(AA$9:AA$208,PlanningIDEnlaces,$C90,$H$9:$H$208,Lists!$A$16)","v":0},0,null,{"$f":"SUMIFS(AD$9:AD$208,PlanningIDEnlaces,$C90,$H$9:$H$208,Lists!$A$16)","v":0},0,null,{"$f":"SUMIFS(AG$9:AG$208,PlanningIDEnlaces,$C90,$H$9:$H$208,Lists!$A$16)","v":0},0,null,{"$f":"SUMIFS(AJ$9:AJ$208,PlanningIDEnlaces,$C90,$H$9:$H$208,Lists!$A$16)","v":0},0,null,{"$f":"SUMIFS(AM$9:AM$208,PlanningIDEnlaces,$C90,$H$9:$H$208,Lists!$A$16)","v":0},0,null,{"$f":"SUMIFS(AP$9:AP$208,PlanningIDEnlaces,$C90,$H$9:$H$208,Lists!$A$16)","v":0},0,null,{"$f":"IFERROR(INDEX(Lists!$F$5:$F$49,MATCH(Planning!C90,Lists!$G$5:$G$49,0),1),\"\")","v":""},null,{"$f":"IF(C90=0,\"\",\" [\"&INDEX(Lists!$H$5:$H$49,MATCH(C90,Lists!$G$5:$G$49,0),1)&\"]\")","v":""}]
["I083",{"$nulls":43},0,{"v":0,"d":"0.00"},null,null,{"$f":"SUMIFS(I$9:I$208,PlanningIDEnlaces,$C91,$H$9:$H$208,Lists!$A$16)","v":0},0,null,{"$f":"SUMIFS(L$9:L$208,PlanningIDEnlaces,$C91,$H$9:$H$208,Lists!$A$16)","v":0},0,null,{"$f":"SUMIFS(O$9:O$208,PlanningIDEnlaces,$C91,$H$9:$H$208,Lists!$A$16)","v":0},0,null,{"$f":"SUMIFS(R$9:R$208,PlanningIDEnlaces,$C91,$H$9:$H$208,Lists!$A$16)","v":0},0,null,{"$f":"SUMIFS(U$9:U$208,PlanningIDEnlaces,$C91,$H$9:$H$208,Lists!$A$16)","v":0},0,null,{"$f":"SUMIFS(X$9:X$208,PlanningIDEnlaces,$C91,$H$9:$H$208,Lists!$A$16)","v":0},0,null,{"$f":"SUMIFS(AA$9:AA$208,PlanningIDEnlaces,$C91,$H$9:$H$208,Lists!$A$16)","v":0},0,null,{"$f":"SUMIFS(AD$9:AD$208,PlanningIDEnlaces,$C91,$H$9:$H$208,Lists!$A$16)","v":0},0,null,{"$f":"SUMIFS(AG$9:AG$208,PlanningIDEnlaces,$C91,$H$9:$H$208,Lists!$A$16)","v":0},0,null,{"$f":"SUMIFS(AJ$9:AJ$208,PlanningIDEnlaces,$C91,$H$9:$H$208,Lists!$A$16)","v":0},0,null,{"$f":"SUMIFS(AM$9:AM$208,PlanningIDEnlaces,$C91,$H$9:$H$208,Lists!$A$16)","v":0},0,null,{"$f":"SUMIFS(AP$9:AP$208,PlanningIDEnlaces,$C91,$H$9:$H$208,Lists!$A$16)","v":0},0,null,{"$f":"IFERROR(INDEX(Lists!$F$5:$F$49,MATCH(Planning!C91,Lists!$G$5:$G$49,0),1),\"\")","v":""},null,{"$f":"IF(C91=0,\"\",\" [\"&INDEX(Lists!$H$5:$H$49,MATCH(C91,Lists!$G$5:$G$49,0),1)&\"]\")","v":""}]
["I084",{"$nulls":43},0,{"v":0,"d":"0.00"},null,null,{"$f":"SUMIFS(I$9:I$208,PlanningIDEnlaces,$C92,$H$9:$H$208,Lists!$A$16)","v":0},0,null,{"$f":"SUMIFS(L$9:L$208,PlanningIDEnlaces,$C92,$H$9:$H$208,Lists!$A$16)","v":0},0,null,{"$f":"SUMIFS(O$9:O$208,PlanningIDEnlaces,$C92,$H$9:$H$208,Lists!$A$16)","v":0},0,null,{"$f":"SUMIFS(R$9:R$208,PlanningIDEnlaces,$C92,$H$9:$H$208,Lists!$A$16)","v":0},0,null,{"$f":"SUMIFS(U$9:U$208,PlanningIDEnlaces,$C92,$H$9:$H$208,Lists!$A$16)","v":0},0,null,{"$f":"SUMIFS(X$9:X$208,PlanningIDEnlaces,$C92,$H$9:$H$208,Lists!$A$16)","v":0},0,null,{"$f":"SUMIFS(AA$9:AA$208,PlanningIDEnlaces,$C92,$H$9:$H$208,Lists!$A$16)","v":0},0,null,{"$f":"SUMIFS(AD$9:AD$208,PlanningIDEnlaces,$C92,$H$9:$H$208,Lists!$A$16)","v":0},0,null,{"$f":"SUMIFS(AG$9:AG$208,PlanningIDEnlaces,$C92,$H$9:$H$208,Lists!$A$16)","v":0},0,null,{"$f":"SUMIFS(AJ$9:AJ$208,PlanningIDEnlaces,$C92,$H$9:$H$208,Lists!$A$16)","v":0},0,null,{"$f":"SUMIFS(AM$9:AM$208,PlanningIDEnlaces,$C92,$H$9:$H$208,Lists!$A$16)","v":0},0,null,{"$f":"SUMIFS(AP$9:AP$208,PlanningIDEnlaces,$C92,$H$9:$H$208,Lists!$A$16)","v":0},0,null,{"$f":"IFERROR(INDEX(Lists!$F$5:$F$49,MATCH(Planning!C92,Lists!$G$5:$G$49,0),1),\"\")","v":""},null,{"$f":"IF(C92=0,\"\",\" [\"&INDEX(Lists!$H$5:$H$49,MATCH(C92,Lists!$G$5:$G$49,0),1)&\"]\")","v":""}]
["I085",{"$nulls":43},0,{"v":0,"d":"0.00"},null,null,{"$f":"SUMIFS(I$9:I$208,PlanningIDEnlaces,$C93,$H$9:$H$208,Lists!$A$16)","v":0},0,null,{"$f":"SUMIFS(L$9:L$208,PlanningIDEnlaces,$C93,$H$9:$H$208,Lists!$A$16)","v":0},0,null,{"$f":"SUMIFS(O$9:O$208,PlanningIDEnlaces,$C93,$H$9:$H$208,Lists!$A$16)","v":0},0,null,{"$f":"SUMIFS(R$9:R$208,PlanningIDEnlaces,$C93,$H$9:$H$208,Lists!$A$16)","v":0},0,null,{"$f":"SUMIFS(U$9:U$208,PlanningIDEnlaces,$C93,$H$9:$H$208,Lists!$A$16)","v":0},0,null,{"$f":"SUMIFS(X$9:X$208,PlanningIDEnlaces,$C93,$H$9:$H$208,Lists!$A$16)","v":0},0,null,{"$f":"SUMIFS(AA$9:AA$208,PlanningIDEnlaces,$C93,$H$9:$H$208,Lists!$A$16)","v":0},0,null,{"$f":"SUMIFS(AD$9:AD$208,PlanningIDEnlaces,$C93,$H$9:$H$208,Lists!$A$16)","v":0},0,null,{"$f":"SUMIFS(AG$9:AG$208,PlanningIDEnlaces,$C93,$H$9:$H$208,Lists!$A$16)","v":0},0,null,{"$f":"SUMIFS(AJ$9:AJ$208,PlanningIDEnlaces,$C93,$H$9:$H$208,Lists!$A$16)","v":0},0,null,{"$f":"SUMIFS(AM$9:AM$208,PlanningIDEnlaces,$C93,$H$9:$H$208,Lists!$A$16)","v":0},0,null,{"$f":"SUMIFS(AP$9:AP$208,PlanningIDEnlaces,$C93,$H$9:$H$208,Lists!$A$16)","v":0},0,null,{"$f":"IFERROR(INDEX(Lists!$F$5:$F$49,MATCH(Planning!C93,Lists!$G$5:$G$49,0),1),\"\")","v":""},null,{"$f":"IF(C93=0,\"\",\" [\"&INDEX(Lists!$H$5:$H$49,MATCH(C93,Lists!$G$5:$G$49,0),1)&\"]\")","v":""}]
["I086",{"$nulls":43},0,{"v":0,"d":"0.00"},null,null,{"$f":"SUMIFS(I$9:I$208,PlanningIDEnlaces,$C94,$H$9:$H$208,Lists!$A$16)","v":0},0,null,{"$f":"SUMIFS(L$9:L$208,PlanningIDEnlaces,$C94,$H$9:$H$208,Lists!$A$16)","v":0},0,null,{"$f":"SUMIFS(O$9:O$208,PlanningIDEnlaces,$C94,$H$9:$H$208,Lists!$A$16)","v":0},0,null,{"$f":"SUMIFS(R$9:R$208,PlanningIDEnlaces,$C94,$H$9:$H$208,Lists!$A$16)","v":0},0,null,{"$f":"SUMIFS(U$9:U$208,PlanningIDEnlaces,$C94,$H$9:$H$208,Lists!$A$16)","v":0},0,null,{"$f":"SUMIFS(X$9:X$208,PlanningIDEnlaces,$C94,$H$9:$H$208,Lists!$A$16)","v":0},0,null,{"$f":"SUMIFS(AA$9:AA$208,PlanningIDEnlaces,$C94,$H$9:$H$208,Lists!$A$16)","v":0},0,null,{"$f":"SUMIFS(AD$9:AD$208,PlanningIDEnlaces,$C94,$H$9:$H$208,Lists!$A$16)","v":0},0,null,{"$f":"SUMIFS(AG$9:AG$208,PlanningIDEnlaces,$C94,$H$9:$H$208,Lists!$A$16)","v":0},0,null,{"$f":"SUMIFS(AJ$9:AJ$208,PlanningIDEnlaces,$C94,$H$9:$H$208,Lists!$A$16)","v":0},0,null,{"$f":"SUMIFS(AM$9:AM$208,PlanningIDEnlaces,$C94,$H$9:$H$208,Lists!$A$16)","v":0},0,null,{"$f":"SUMIFS(AP$9:AP$208,PlanningIDEnlaces,$C94,$H$9:$H$208,Lists!$A$16)","v":0},0,null,{"$f":"IFERROR(INDEX(Lists!$F$5:$F$49,MATCH(Planning!C94,Lists!$G$5:$G$49,0),1),\"\")","v":""},null,{"$f":"IF(C94=0,\"\",\" [\"&INDEX(Lists!$H$5:$H$49,MATCH(C94,Lists!$G$5:$G$49,0),1)&\"]\")","v":""}]
["I087",{"$nulls":43},0,{"v":0,"d":"0.00"},null,null,{"$f":"SUMIFS(I$9:I$208,PlanningIDEnlaces,$C95,$H$9:$H$208,Lists!$A$16)","v":0},0,null,{"$f":"SUMIFS(L$9:L$208,PlanningIDEnlaces,$C95,$H$9:$H$208,Lists!$A$16)","v":0},0,null,{"$f":"SUMIFS(O$9:O$208,PlanningIDEnlaces,$C95,$H$9:$H$208,Lists!$A$16)","v":0},0,null,{"$f":"SUMIFS(R$9:R$208,PlanningIDEnlaces,$C95,$H$9:$H$208,Lists!$A$16)","v":0},0,null,{"$f":"SUMIFS(U$9:U$208,PlanningIDEnlaces,$C95,$H$9:$H$208,Lists!$A$16)","v":0},0,null,{"$f":"SUMIFS(X$9:X$208,PlanningIDEnlaces,$C95,$H$9:$H$208,Lists!$A$16)","v":0},0,null,{"$f":"SUMIFS(AA$9:AA$208,PlanningIDEnlaces,$C95,$H$9:$H$208,Lists!$A$16)","v":0},0,null,{"$f":"SUMIFS(AD$9:AD$208,PlanningIDEnlaces,$C95,$H$9:$H$208,Lists!$A$16)","v":0},0,null,{"$f":"SUMIFS(AG$9:AG$208,PlanningIDEnlaces,$C95,$H$9:$H$208,Lists!$A$16)","v":0},0,null,{"$f":"SUMIFS(AJ$9:AJ$208,PlanningIDEnlaces,$C95,$H$9:$H$208,Lists!$A$16)","v":0},0,null,{"$f":"SUMIFS(AM$9:AM$208,PlanningIDEnlaces,$C95,$H$9:$H$208,Lists!$A$16)","v":0},0,null,{"$f":"SUMIFS(AP$9:AP$208,PlanningIDEnlaces,$C95,$H$9:$H$208,Lists!$A$16)","v":0},0,null,{"$f":"IFERROR(INDEX(Lists!$F$5:$F$49,MATCH(Planning!C95,Lists!$G$5:$G$49,0),1),\"\")","v":""},null,{"$f":"IF(C95=0,\"\",\" [\"&INDEX(Lists!$H$5:$H$49,MATCH(C95,Lists!$G$5:$G$49,0),1)&\"]\")","v":""}]
["I088",{"$nulls":43},0,{"v":0,"d":"0.00"},null,null,{"$f":"SUMIFS(I$9:I$208,PlanningIDEnlaces,$C96,$H$9:$H$208,Lists!$A$16)","v":0},0,null,{"$f":"SUMIFS(L$9:L$208,PlanningIDEnlaces,$C96,$H$9:$H$208,Lists!$A$16)","v":0},0,null,{"$f":"SUMIFS(O$9:O$208,PlanningIDEnlaces,$C96,$H$9:$H$208,Lists!$A$16)","v":0},0,null,{"$f":"SUMIFS(R$9:R$208,PlanningIDEnlaces,$C96,$H$9:$H$208,Lists!$A$16)","v":0},0,null,{"$f":"SUMIFS(U$9:U$208,PlanningIDEnlaces,$C96,$H$9:$H$208,Lists!$A$16)","v":0},0,null,{"$f":"SUMIFS(X$9:X$208,PlanningIDEnlaces,$C96,$H$9:$H$208,Lists!$A$16)","v":0},0,null,{"$f":"SUMIFS(AA$9:AA$208,PlanningIDEnlaces,$C96,$H$9:$H$208,Lists!$A$16)","v":0},0,null,{"$f":"SUMIFS(AD$9:AD$208,PlanningIDEnlaces,$C96,$H$9:$H$208,Lists!$A$16)","v":0},0,null,{"$f":"SUMIFS(AG$9:AG$208,PlanningIDEnlaces,$C96,$H$9:$H$208,Lists!$A$16)","v":0},0,null,{"$f":"SUMIFS(AJ$9:AJ$208,PlanningIDEnlaces,$C96,$H$9:$H$208,Lists!$A$16)","v":0},0,null,{"$f":"SUMIFS(AM$9:AM$208,PlanningIDEnlaces,$C96,$H$9:$H$208,Lists!$A$16)","v":0},0,null,{"$f":"SUMIFS(AP$9:AP$208,PlanningIDEnlaces,$C96,$H$9:$H$208,Lists!$A$16)","v":0},0,null,{"$f":"IFERROR(INDEX(Lists!$F$5:$F$49,MATCH(Planning!C96,Lists!$G$5:$G$49,0),1),\"\")","v":""},null,{"$f":"IF(C96=0,\"\",\" [\"&INDEX(Lists!$H$5:$H$49,MATCH(C96,Lists!$G$5:$G$49,0),1)&\"]\")","v":""}]
["I089",{"$nulls":43},0,{"v":0,"d":"0.00"},null,null,{"$f":"SUMIFS(I$9:I$208,PlanningIDEnlaces,$C97,$H$9:$H$208,Lists!$A$16)","v":0},0,null,{"$f":"SUMIFS(L$9:L$208,PlanningIDEnlaces,$C97,$H$9:$H$208,Lists!$A$16)","v":0},0,null,{"$f":"SUMIFS(O$9:O$208,PlanningIDEnlaces,$C97,$H$9:$H$208,Lists!$A$16)","v":0},0,null,{"$f":"SUMIFS(R$9:R$208,PlanningIDEnlaces,$C97,$H$9:$H$208,Lists!$A$16)","v":0},0,null,{"$f":"SUMIFS(U$9:U$208,PlanningIDEnlaces,$C97,$H$9:$H$208,Lists!$A$16)","v":0},0,null,{"$f":"SUMIFS(X$9:X$208,PlanningIDEnlaces,$C97,$H$9:$H$208,Lists!$A$16)","v":0},0,null,{"$f":"SUMIFS(AA$9:AA$208,PlanningIDEnlaces,$C97,$H$9:$H$208,Lists!$A$16)","v":0},0,null,{"$f":"SUMIFS(AD$9:AD$208,PlanningIDEnlaces,$C97,$H$9:$H$208,Lists!$A$16)","v":0},0,null,{"$f":"SUMIFS(AG$9:AG$208,PlanningIDEnlaces,$C97,$H$9:$H$208,Lists!$A$16)","v":0},0,null,{"$f":"SUMIFS(AJ$9:AJ$208,PlanningIDEnlaces,$C97,$H$9:$H$208,Lists!$A$16)","v":0},0,null,{"$f":"SUMIFS(AM$9:AM$208,PlanningIDEnlaces,$C97,$H$9:$H$208,Lists!$A$16)","v":0},0,null,{"$f":"SUMIFS(AP$9:AP$208,PlanningIDEnlaces,$C97,$H$9:$H$208,Lists!$A$16)","v":0},0,null,{"$f":"IFERROR(INDEX(Lists!$F$5:$F$49,MATCH(Planning!C97,Lists!$G$5:$G$49,0),1),\"\")","v":""},null,{"$f":"IF(C97=0,\"\",\" [\"&INDEX(Lists!$H$5:$H$49,MATCH(C97,Lists!$G$5:$G$49,0),1)&\"]\")","v":""}]
["I090",{"$nulls":43},0,{"v":0,"d":"0.00"},null,null,{"$f":"SUMIFS(I$9:I$208,PlanningIDEnlaces,$C98,$H$9:$H$208,Lists!$A$16)","v":0},0,null,{"$f":"SUMIFS(L$9:L$208,PlanningIDEnlaces,$C98,$H$9:$H$208,Lists!$A$16)","v":0},0,null,{"$f":"SUMIFS(O$9:O$208,PlanningIDEnlaces,$C98,$H$9:$H$208,Lists!$A$16)","v":0},0,null,{"$f":"SUMIFS(R$9:R$208,PlanningIDEnlaces,$C98,$H$9:$H$208,Lists!$A$16)","v":0},0,null,{"$f":"SUMIFS(U$9:U$208,PlanningIDEnlaces,$C98,$H$9:$H$208,Lists!$A$16)","v":0},0,null,{"$f":"SUMIFS(X$9:X$208,PlanningIDEnlaces,$C98,$H$9:$H$208,Lists!$A$16)","v":0},0,null,{"$f":"SUMIFS(AA$9:AA$208,PlanningIDEnlaces,$C98,$H$9:$H$208,Lists!$A$16)","v":0},0,null,{"$f":"SUMIFS(AD$9:AD$208,PlanningIDEnlaces,$C98,$H$9:$H$208,Lists!$A$16)","v":0},0,null,{"$f":"SUMIFS(AG$9:AG$208,PlanningIDEnlaces,$C98,$H$9:$H$208,Lists!$A$16)","v":0},0,null,{"$f":"SUMIFS(AJ$9:AJ$208,PlanningIDEnlaces,$C98,$H$9:$H$208,Lists!$A$16)","v":0},0,null,{"$f":"SUMIFS(AM$9:AM$208,PlanningIDEnlaces,$C98,$H$9:$H$208,Lists!$A$16)","v":0},0,null,{"$f":"SUMIFS(AP$9:AP$208,PlanningIDEnlaces,$C98,$H$9:$H$208,Lists!$A$16)","v":0},0,null,{"$f":"IFERROR(INDEX(Lists!$F$5:$F$49,MATCH(Planning!C98,Lists!$G$5:$G$49,0),1),\"\")","v":""},null,{"$f":"IF(C98=0,\"\",\" [\"&INDEX(Lists!$H$5:$H$49,MATCH(C98,Lists!$G$5:$G$49,0),1)&\"]\")","v":""}]
["I091",{"$nulls":43},0,{"v":0,"d":"0.00"},null,null,{"$f":"SUMIFS(I$9:I$208,PlanningIDEnlaces,$C99,$H$9:$H$208,Lists!$A$16)","v":0},0,null,{"$f":"SUMIFS(L$9:L$208,PlanningIDEnlaces,$C99,$H$9:$H$208,Lists!$A$16)","v":0},0,null,{"$f":"SUMIFS(O$9:O$208,PlanningIDEnlaces,$C99,$H$9:$H$208,Lists!$A$16)","v":0},0,null,{"$f":"SUMIFS(R$9:R$208,PlanningIDEnlaces,$C99,$H$9:$H$208,Lists!$A$16)","v":0},0,null,{"$f":"SUMIFS(U$9:U$208,PlanningIDEnlaces,$C99,$H$9:$H$208,Lists!$A$16)","v":0},0,null,{"$f":"SUMIFS(X$9:X$208,PlanningIDEnlaces,$C99,$H$9:$H$208,Lists!$A$16)","v":0},0,null,{"$f":"SUMIFS(AA$9:AA$208,PlanningIDEnlaces,$C99,$H$9:$H$208,Lists!$A$16)","v":0},0,null,{"$f":"SUMIFS(AD$9:AD$208,PlanningIDEnlaces,$C99,$H$9:$H$208,Lists!$A$16)","v":0},0,null,{"$f":"SUMIFS(AG$9:AG$208,PlanningIDEnlaces,$C99,$H$9:$H$208,Lists!$A$16)","v":0},0,null,{"$f":"SUMIFS(AJ$9:AJ$208,PlanningIDEnlaces,$C99,$H$9:$H$208,Lists!$A$16)","v":0},0,null,{"$f":"SUMIFS(AM$9:AM$208,PlanningIDEnlaces,$C99,$H$9:$H$208,Lists!$A$16)","v":0},0,null,{"$f":"SUMIFS(AP$9:AP$208,PlanningIDEnlaces,$C99,$H$9:$H$208,Lists!$A$16)","v":0},0,null,{"$f":"IFERROR(INDEX(Lists!$F$5:$F$49,MATCH(Planning!C99,Lists!$G$5:$G$49,0),1),\"\")","v":""},null,{"$f":"IF(C99=0,\"\",\" [\"&INDEX(Lists!$H$5:$H$49,MATCH(C99,Lists!$G$5:$G$49,0),1)&\"]\")","v":""}]
["I092",{"$nulls":43},0,{"v":0,"d":"0.00"},null,null,{"$f":"SUMIFS(I$9:I$208,PlanningIDEnlaces,$C100,$H$9:$H$208,Lists!$A$16)","v":0},0,null,{"$f":"SUMIFS(L$9:L$208,PlanningIDEnlaces,$C100,$H$9:$H$208,Lists!$A$16)","v":0},0,null,{"$f":"SUMIFS(O$9:O$208,PlanningIDEnlaces,$C100,$H$9:$H$208,Lists!$A$16)","v":0},0,null,{"$f":"SUMIFS(R$9:R$208,PlanningIDEnlaces,$C100,$H$9:$H$208,Lists!$A$16)","v":0},0,null,{"$f":"SUMIFS(U$9:U$208,PlanningIDEnlaces,$C100,$H$9:$H$208,Lists!$A$16)","v":0},0,null,{"$f":"SUMIFS(X$9:X$208,PlanningIDEnlaces,$C100,$H$9:$H$208,Lists!$A$16)","v":0},0,null,{"$f":"SUMIFS(AA$9:AA$208,PlanningIDEnlaces,$C100,$H$9:$H$208,Lists!$A$16)","v":0},0,null,{"$f":"SUMIFS(AD$9:AD$208,PlanningIDEnlaces,$C100,$H$9:$H$208,Lists!$A$16)","v":0},0,null,{"$f":"SUMIFS(AG$9:AG$208,PlanningIDEnlaces,$C100,$H$9:$H$208,Lists!$A$16)","v":0},0,null,{"$f":"SUMIFS(AJ$9:AJ$208,PlanningIDEnlaces,$C100,$H$9:$H$208,Lists!$A$16)","v":0},0,null,{"$f":"SUMIFS(AM$9:AM$208,PlanningIDEnlaces,$C100,$H$9:$H$208,Lists!$A$16)","v":0},0,null,{"$f":"SUMIFS(AP$9:AP$208,PlanningIDEnlaces,$C100,$H$9:$H$208,Lists!$A$16)","v":0},0,null,{"$f":"IFERROR(INDEX(Lists!$F$5:$F$49,MATCH(Planning!C100,Lists!$G$5:$G$49,0),1),\"\")","v":""},null,{"$f":"IF(C100=0,\"\",\" [\"&INDEX(Lists!$H$5:$H$49,MATCH(C100,Lists!$G$5:$G$49,0),1)&\"]\")","v":""}]
["I093",{"$nulls":43},0,{"v":0,"d":"0.00"},null,null,{"$f":"SUMIFS(I$9:I$208,PlanningIDEnlaces,$C101,$H$9:$H$208,Lists!$A$16)","v":0},0,null,{"$f":"SUMIFS(L$9:L$208,PlanningIDEnlaces,$C101,$H$9:$H$208,Lists!$A$16)","v":0},0,null,{"$f":"SUMIFS(O$9:O$208,PlanningIDEnlaces,$C101,$H$9:$H$208,Lists!$A$16)","v":0},0,null,{"$f":"SUMIFS(R$9:R$208,PlanningIDEnlaces,$C101,$H$9:$H$208,Lists!$A$16)","v":0},0,null,{"$f":"SUMIFS(U$9:U$208,PlanningIDEnlaces,$C101,$H$9:$H$208,Lists!$A$16)","v":0},0,null,{"$f":"SUMIFS(X$9:X$208,PlanningIDEnlaces,$C101,$H$9:$H$208,Lists!$A$16)","v":0},0,null,{"$f":"SUMIFS(AA$9:AA$208,PlanningIDEnlaces,$C101,$H$9:$H$208,Lists!$A$16)","v":0},0,null,{"$f":"SUMIFS(AD$9:AD$208,PlanningIDEnlaces,$C101,$H$9:$H$208,Lists!$A$16)","v":0},0,null,{"$f":"SUMIFS(AG$9:AG$208,PlanningIDEnlaces,$C101,$H$9:$H$208,Lists!$A$16)","v":0},0,null,{"$f":"SUMIFS(AJ$9:AJ$208,PlanningIDEnlaces,$C101,$H$9:$H$208,Lists!$A$16)","v":0},0,null,{"$f":"SUMIFS(AM$9:AM$208,PlanningIDEnlaces,$C101,$H$9:$H$208,Lists!$A$16)","v":0},0,null,{"$f":"SUMIFS(AP$9:AP$208,PlanningIDEnlaces,$C101,$H$9:$H$208,Lists!$A$16)","v":0},0,null,{"$f":"IFERROR(INDEX(Lists!$F$5:$F$49,MATCH(Planning!C101,Lists!$G$5:$G$49,0),1),\"\")","v":""},null,{"$f":"IF(C101=0,\"\",\" [\"&INDEX(Lists!$H$5:$H$49,MATCH(C101,Lists!$G$5:$G$49,0),1)&\"]\")","v":""}]
["I094",{"$nulls":43},0,{"v":0,"d":"0.00"},null,null,{"$f":"SUMIFS(I$9:I$208,PlanningIDEnlaces,$C102,$H$9:$H$208,Lists!$A$16)","v":0},0,null,{"$f":"SUMIFS(L$9:L$208,PlanningIDEnlaces,$C102,$H$9:$H$208,Lists!$A$16)","v":0},0,null,{"$f":"SUMIFS(O$9:O$208,PlanningIDEnlaces,$C102,$H$9:$H$208,Lists!$A$16)","v":0},0,null,{"$f":"SUMIFS(R$9:R$208,PlanningIDEnlaces,$C102,$H$9:$H$208,Lists!$A$16)","v":0},0,null,{"$f":"SUMIFS(U$9:U$208,PlanningIDEnlaces,$C102,$H$9:$H$208,Lists!$A$16)","v":0},0,null,{"$f":"SUMIFS(X$9:X$208,PlanningIDEnlaces,$C102,$H$9:$H$208,Lists!$A$16)","v":0},0,null,{"$f":"SUMIFS(AA$9:AA$208,PlanningIDEnlaces,$C102,$H$9:$H$208,Lists!$A$16)","v":0},0,null,{"$f":"SUMIFS(AD$9:AD$208,PlanningIDEnlaces,$C102,$H$9:$H$208,Lists!$A$16)","v":0},0,null,{"$f":"SUMIFS(AG$9:AG$208,PlanningIDEnlaces,$C102,$H$9:$H$208,Lists!$A$16)","v":0},0,null,{"$f":"SUMIFS(AJ$9:AJ$208,PlanningIDEnlaces,$C102,$H$9:$H$208,Lists!$A$16)","v":0},0,null,{"$f":"SUMIFS(AM$9:AM$208,PlanningIDEnlaces,$C102,$H$9:$H$208,Lists!$A$16)","v":0},0,null,{"$f":"SUMIFS(AP$9:AP$208,PlanningIDEnlaces,$C102,$H$9:$H$208,Lists!$A$16)","v":0},0,null,{"$f":"IFERROR(INDEX(Lists!$F$5:$F$49,MATCH(Planning!C102,Lists!$G$5:$G$49,0),1),\"\")","v":""},null,{"$f":"IF(C102=0,\"\",\" [\"&INDEX(Lists!$H$5:$H$49,MATCH(C102,Lists!$G$5:$G$49,0),1)&\"]\")","v":""}]
["I095",{"$nulls":43},0,{"v":0,"d":"0.00"},null,null,{"$f":"SUMIFS(I$9:I$208,PlanningIDEnlaces,$C103,$H$9:$H$208,Lists!$A$16)","v":0},0,null,{"$f":"SUMIFS(L$9:L$208,PlanningIDEnlaces,$C103,$H$9:$H$208,Lists!$A$16)","v":0},0,null,{"$f":"SUMIFS(O$9:O$208,PlanningIDEnlaces,$C103,$H$9:$H$208,Lists!$A$16)","v":0},0,null,{"$f":"SUMIFS(R$9:R$208,PlanningIDEnlaces,$C103,$H$9:$H$208,Lists!$A$16)","v":0},0,null,{"$f":"SUMIFS(U$9:U$208,PlanningIDEnlaces,$C103,$H$9:$H$208,Lists!$A$16)","v":0},0,null,{"$f":"SUMIFS(X$9:X$208,PlanningIDEnlaces,$C103,$H$9:$H$208,Lists!$A$16)","v":0},0,null,{"$f":"SUMIFS(AA$9:AA$208,PlanningIDEnlaces,$C103,$H$9:$H$208,Lists!$A$16)","v":0},0,null,{"$f":"SUMIFS(AD$9:AD$208,PlanningIDEnlaces,$C103,$H$9:$H$208,Lists!$A$16)","v":0},0,null,{"$f":"SUMIFS(AG$9:AG$208,PlanningIDEnlaces,$C103,$H$9:$H$208,Lists!$A$16)","v":0},0,null,{"$f":"SUMIFS(AJ$9:AJ$208,PlanningIDEnlaces,$C103,$H$9:$H$208,Lists!$A$16)","v":0},0,null,{"$f":"SUMIFS(AM$9:AM$208,PlanningIDEnlaces,$C103,$H$9:$H$208,Lists!$A$16)","v":0},0,null,{"$f":"SUMIFS(AP$9:AP$208,PlanningIDEnlaces,$C103,$H$9:$H$208,Lists!$A$16)","v":0},0,null,{"$f":"IFERROR(INDEX(Lists!$F$5:$F$49,MATCH(Planning!C103,Lists!$G$5:$G$49,0),1),\"\")","v":""},null,{"$f":"IF(C103=0,\"\",\" [\"&INDEX(Lists!$H$5:$H$49,MATCH(C103,Lists!$G$5:$G$49,0),1)&\"]\")","v":""}]
["I096",{"$nulls":43},0,{"v":0,"d":"0.00"},null,null,{"$f":"SUMIFS(I$9:I$208,PlanningIDEnlaces,$C104,$H$9:$H$208,Lists!$A$16)","v":0},0,null,{"$f":"SUMIFS(L$9:L$208,PlanningIDEnlaces,$C104,$H$9:$H$208,Lists!$A$16)","v":0},0,null,{"$f":"SUMIFS(O$9:O$208,PlanningIDEnlaces,$C104,$H$9:$H$208,Lists!$A$16)","v":0},0,null,{"$f":"SUMIFS(R$9:R$208,PlanningIDEnlaces,$C104,$H$9:$H$208,Lists!$A$16)","v":0},0,null,{"$f":"SUMIFS(U$9:U$208,PlanningIDEnlaces,$C104,$H$9:$H$208,Lists!$A$16)","v":0},0,null,{"$f":"SUMIFS(X$9:X$208,PlanningIDEnlaces,$C104,$H$9:$H$208,Lists!$A$16)","v":0},0,null,{"$f":"SUMIFS(AA$9:AA$208,PlanningIDEnlaces,$C104,$H$9:$H$208,Lists!$A$16)","v":0},0,null,{"$f":"SUMIFS(AD$9:AD$208,PlanningIDEnlaces,$C104,$H$9:$H$208,Lists!$A$16)","v":0},0,null,{"$f":"SUMIFS(AG$9:AG$208,PlanningIDEnlaces,$C104,$H$9:$H$208,Lists!$A$16)","v":0},0,null,{"$f":"SUMIFS(AJ$9:AJ$208,PlanningIDEnlaces,$C104,$H$9:$H$208,Lists!$A$16)","v":0},0,null,{"$f":"SUMIFS(AM$9:AM$208,PlanningIDEnlaces,$C104,$H$9:$H$208,Lists!$A$16)","v":0},0,null,{"$f":"SUMIFS(AP$9:AP$208,PlanningIDEnlaces,$C104,$H$9:$H$208,Lists!$A$16)","v":0},0,null,{"$f":"IFERROR(INDEX(Lists!$F$5:$F$49,MATCH(Planning!C104,Lists!$G$5:$G$49,0),1),\"\")","v":""},null,{"$f":"IF(C104=0,\"\",\" [\"&INDEX(Lists!$H$5:$H$49,MATCH(C104,Lists!$G$5:$G$49,0),1)&\"]\")","v":""}]
["I097",{"$nulls":43},{"$f":"I105+L105+O105+R105+U105+X105+AA105+AD105+AG105+AJ105+AM105+AP105","v":0},{"$f":"J105+M105+P105+S105+V105+Y105+AB105+AE105+AH105+AK105+AN105+AQ105","v":{"v":0,"d":"0.00"}},null,null,{"$f":"SUMIFS(I$9:I$208,PlanningIDEnlaces,$C105,$H$9:$H$208,Lists!$A$16)","v":0},{"$f":"SUMIFS(J$9:J$208,PlanningIDEnlaces,$C105,$H$9:$H$208,\"<>\")","v":0},null,{"$f":"SUMIFS(L$9:L$208,PlanningIDEnlaces,$C105,$H$9:$H$208,Lists!$A$16)","v":0},{"$f":"SUMIFS(M$9:M$208,PlanningIDEnlaces,$C105,$H$9:$H$208,\"<>\")","v":0},null,{"$f":"SUMIFS(O$9:O$208,PlanningIDEnlaces,$C105,$H$9:$H$208,Lists!$A$16)","v":0},{"$f":"SUMIFS(P$9:P$208,PlanningIDEnlaces,$C105,$H$9:$H$208,\"<>\")","v":0},null,{"$f":"SUMIFS(R$9:R$208,PlanningIDEnlaces,$C105,$H$9:$H$208,Lists!$A$16)","v":0},{"$f":"SUMIFS(S$9:S$208,PlanningIDEnlaces,$C105,$H$9:$H$208,\"<>\")","v":0},null,{"$f":"SUMIFS(U$9:U$208,PlanningIDEnlaces,$C105,$H$9:$H$208,Lists!$A$16)","v":0},{"$f":"SUMIFS(V$9:V$208,PlanningIDEnlaces,$C105,$H$9:$H$208,\"<>\")","v":0},null,{"$f":"SUMIFS(X$9:X$208,PlanningIDEnlaces,$C105,$H$9:$H$208,Lists!$A$16)","v":0},{"$f":"SUMIFS(Y$9:Y$208,PlanningIDEnlaces,$C105,$H$9:$H$208,\"<>\")","v":0},null,{"$f":"SUMIFS(AA$9:AA$208,PlanningIDEnlaces,$C105,$H$9:$H$208,Lists!$A$16)","v":0},{"$f":"SUMIFS(AB$9:AB$208,PlanningIDEnlaces,$C105,$H$9:$H$208,\"<>\")","v":0},null,{"$f":"SUMIFS(AD$9:AD$208,PlanningIDEnlaces,$C105,$H$9:$H$208,Lists!$A$16)","v":0},{"$f":"SUMIFS(AE$9:AE$208,PlanningIDEnlaces,$C105,$H$9:$H$208,\"<>\")","v":0},null,{"$f":"SUMIFS(AG$9:AG$208,PlanningIDEnlaces,$C105,$H$9:$H$208,Lists!$A$16)","v":0},{"$f":"SUMIFS(AH$9:AH$208,PlanningIDEnlaces,$C105,$H$9:$H$208,\"<>\")","v":0},null,{"$f":"SUMIFS(AJ$9:AJ$208,PlanningIDEnlaces,$C105,$H$9:$H$208,Lists!$A$16)","v":0},{"$f":"SUMIFS(AK$9:AK$208,PlanningIDEnlaces,$C105,$H$9:$H$208,\"<>\")","v":0},null,{"$f":"SUMIFS(AM$9:AM$208,PlanningIDEnlaces,$C105,$H$9:$H$208,Lists!$A$16)","v":0},{"$f":"SUMIFS(AN$9:AN$208,PlanningIDEnlaces,$C105,$H$9:$H$208,\"<>\")","v":0},null,{"$f":"SUMIFS(AP$9:AP$208,PlanningIDEnlaces,$C105,$H$9:$H$208,Lists!$A$16)","v":0},{"$f":"SUMIFS(AQ$9:AQ$208,PlanningIDEnlaces,$C105,$H$9:$H$208,\"<>\")","v":0},null,{"$f":"IFERROR(INDEX(Lists!$F$5:$F$49,MATCH(Planning!C105,Lists!$G$5:$G$49,0),1),\"\")","v":""},null,{"$f":"IF(C105=0,\"\",\" [\"&INDEX(Lists!$H$5:$H$49,MATCH(C105,Lists!$G$5:$G$49,0),1)&\"]\")","v":""}]
["I098",{"$nulls":43},0,{"v":0,"d":"0.00"},null,null,{"$f":"SUMIFS(I$9:I$208,PlanningIDEnlaces,$C106,$H$9:$H$208,Lists!$A$16)","v":0},0,null,{"$f":"SUMIFS(L$9:L$208,PlanningIDEnlaces,$C106,$H$9:$H$208,Lists!$A$16)","v":0},0,null,{"$f":"SUMIFS(O$9:O$208,PlanningIDEnlaces,$C106,$H$9:$H$208,Lists!$A$16)","v":0},0,null,{"$f":"SUMIFS(R$9:R$208,PlanningIDEnlaces,$C106,$H$9:$H$208,Lists!$A$16)","v":0},0,null,{"$f":"SUMIFS(U$9:U$208,PlanningIDEnlaces,$C106,$H$9:$H$208,Lists!$A$16)","v":0},0,null,{"$f":"SUMIFS(X$9:X$208,PlanningIDEnlaces,$C106,$H$9:$H$208,Lists!$A$16)","v":0},0,null,{"$f":"SUMIFS(AA$9:AA$208,PlanningIDEnlaces,$C106,$H$9:$H$208,Lists!$A$16)","v":0},0,null,{"$f":"SUMIFS(AD$9:AD$208,PlanningIDEnlaces,$C106,$H$9:$H$208,Lists!$A$16)","v":0},0,null,{"$f":"SUMIFS(AG$9:AG$208,PlanningIDEnlaces,$C106,$H$9:$H$208,Lists!$A$16)","v":0},0,null,{"$f":"SUMIFS(AJ$9:AJ$208,PlanningIDEnlaces,$C106,$H$9:$H$208,Lists!$A$16)","v":0},0,null,{"$f":"SUMIFS(AM$9:AM$208,PlanningIDEnlaces,$C106,$H$9:$H$208,Lists!$A$16)","v":0},0,null,{"$f":"SUMIFS(AP$9:AP$208,PlanningIDEnlaces,$C106,$H$9:$H$208,Lists!$A$16)","v":0},0,null,{"$f":"IFERROR(INDEX(Lists!$F$5:$F$49,MATCH(Planning!C106,Lists!$G$5:$G$49,0),1),\"\")","v":""},null,{"$f":"IF(C106=0,\"\",\" [\"&INDEX(Lists!$H$5:$H$49,MATCH(C106,Lists!$G$5:$G$49,0),1)&\"]\")","v":""}]
["I099",{"$nulls":43},0,{"v":0,"d":"0.00"},null,null,{"$f":"SUMIFS(I$9:I$208,PlanningIDEnlaces,$C107,$H$9:$H$208,Lists!$A$16)","v":0},0,null,{"$f":"SUMIFS(L$9:L$208,PlanningIDEnlaces,$C107,$H$9:$H$208,Lists!$A$16)","v":0},0,null,{"$f":"SUMIFS(O$9:O$208,PlanningIDEnlaces,$C107,$H$9:$H$208,Lists!$A$16)","v":0},0,null,{"$f":"SUMIFS(R$9:R$208,PlanningIDEnlaces,$C107,$H$9:$H$208,Lists!$A$16)","v":0},0,null,{"$f":"SUMIFS(U$9:U$208,PlanningIDEnlaces,$C107,$H$9:$H$208,Lists!$A$16)","v":0},0,null,{"$f":"SUMIFS(X$9:X$208,PlanningIDEnlaces,$C107,$H$9:$H$208,Lists!$A$16)","v":0},0,null,{"$f":"SUMIFS(AA$9:AA$208,PlanningIDEnlaces,$C107,$H$9:$H$208,Lists!$A$16)","v":0},0,null,{"$f":"SUMIFS(AD$9:AD$208,PlanningIDEnlaces,$C107,$H$9:$H$208,Lists!$A$16)","v":0},0,null,{"$f":"SUMIFS(AG$9:AG$208,PlanningIDEnlaces,$C107,$H$9:$H$208,Lists!$A$16)","v":0},0,null,{"$f":"SUMIFS(AJ$9:AJ$208,PlanningIDEnlaces,$C107,$H$9:$H$208,Lists!$A$16)","v":0},0,null,{"$f":"SUMIFS(AM$9:AM$208,PlanningIDEnlaces,$C107,$H$9:$H$208,Lists!$A$16)","v":0},0,null,{"$f":"SUMIFS(AP$9:AP$208,PlanningIDEnlaces,$C107,$H$9:$H$208,Lists!$A$16)","v":0},0,null,{"$f":"IFERROR(INDEX(Lists!$F$5:$F$49,MATCH(Planning!C107,Lists!$G$5:$G$49,0),1),\"\")","v":""},null,{"$f":"IF(C107=0,\"\",\" [\"&INDEX(Lists!$H$5:$H$49,MATCH(C107,Lists!$G$5:$G$49,0),1)&\"]\")","v":""}]
["I100",{"$nulls":43},0,{"v":0,"d":"0.00"},null,null,{"$f":"SUMIFS(I$9:I$208,PlanningIDEnlaces,$C108,$H$9:$H$208,Lists!$A$16)","v":0},0,null,{"$f":"SUMIFS(L$9:L$208,PlanningIDEnlaces,$C108,$H$9:$H$208,Lists!$A$16)","v":0},0,null,{"$f":"SUMIFS(O$9:O$208,PlanningIDEnlaces,$C108,$H$9:$H$208,Lists!$A$16)","v":0},0,null,{"$f":"SUMIFS(R$9:R$208,PlanningIDEnlaces,$C108,$H$9:$H$208,Lists!$A$16)","v":0},0,null,{"$f":"SUMIFS(U$9:U$208,PlanningIDEnlaces,$C108,$H$9:$H$208,Lists!$A$16)","v":0},0,null,{"$f":"SUMIFS(X$9:X$208,PlanningIDEnlaces,$C108,$H$9:$H$208,Lists!$A$16)","v":0},0,null,{"$f":"SUMIFS(AA$9:AA$208,PlanningIDEnlaces,$C108,$H$9:$H$208,Lists!$A$16)","v":0},0,null,{"$f":"SUMIFS(AD$9:AD$208,PlanningIDEnlaces,$C108,$H$9:$H$208,Lists!$A$16)","v":0},0,null,{"$f":"SUMIFS(AG$9:AG$208,PlanningIDEnlaces,$C108,$H$9:$H$208,Lists!$A$16)","v":0},0,null,{"$f":"SUMIFS(AJ$9:AJ$208,PlanningIDEnlaces,$C108,$H$9:$H$208,Lists!$A$16)","v":0},0,null,{"$f":"SUMIFS(AM$9:AM$208,PlanningIDEnlaces,$C108,$H$9:$H$208,Lists!$A$16)","v":0},0,null,{"$f":"SUMIFS(AP$9:AP$208,PlanningIDEnlaces,$C108,$H$9:$H$208,Lists!$A$16)","v":0},0,null,{"$f":"IFERROR(INDEX(Lists!$F$5:$F$49,MATCH(Planning!C108,Lists!$G$5:$G$49,0),1),\"\")","v":""},null,{"$f":"IF(C108=0,\"\",\" [\"&INDEX(Lists!$H$5:$H$49,MATCH(C108,Lists!$G$5:$G$49,0),1)&\"]\")","v":""}]
["I101",{"$nulls":43},0,{"v":0,"d":"0.00"},null,null,{"$f":"SUMIFS(I$9:I$208,PlanningIDEnlaces,$C109,$H$9:$H$208,Lists!$A$16)","v":0},0,null,{"$f":"SUMIFS(L$9:L$208,PlanningIDEnlaces,$C109,$H$9:$H$208,Lists!$A$16)","v":0},0,null,{"$f":"SUMIFS(O$9:O$208,PlanningIDEnlaces,$C109,$H$9:$H$208,Lists!$A$16)","v":0},0,null,{"$f":"SUMIFS(R$9:R$208,PlanningIDEnlaces,$C109,$H$9:$H$208,Lists!$A$16)","v":0},0,null,{"$f":"SUMIFS(U$9:U$208,PlanningIDEnlaces,$C109,$H$9:$H$208,Lists!$A$16)","v":0},0,null,{"$f":"SUMIFS(X$9:X$208,PlanningIDEnlaces,$C109,$H$9:$H$208,Lists!$A$16)","v":0},0,null,{"$f":"SUMIFS(AA$9:AA$208,PlanningIDEnlaces,$C109,$H$9:$H$208,Lists!$A$16)","v":0},0,null,{"$f":"SUMIFS(AD$9:AD$208,PlanningIDEnlaces,$C109,$H$9:$H$208,Lists!$A$16)","v":0},0,null,{"$f":"SUMIFS(AG$9:AG$208,PlanningIDEnlaces,$C109,$H$9:$H$208,Lists!$A$16)","v":0},0,null,{"$f":"SUMIFS(AJ$9:AJ$208,PlanningIDEnlaces,$C109,$H$9:$H$208,Lists!$A$16)","v":0},0,null,{"$f":"SUMIFS(AM$9:AM$208,PlanningIDEnlaces,$C109,$H$9:$H$208,Lists!$A$16)","v":0},0,null,{"$f":"SUMIFS(AP$9:AP$208,PlanningIDEnlaces,$C109,$H$9:$H$208,Lists!$A$16)","v":0},0,null,{"$f":"IFERROR(INDEX(Lists!$F$5:$F$49,MATCH(Planning!C109,Lists!$G$5:$G$49,0),1),\"\")","v":""},null,{"$f":"IF(C109=0,\"\",\" [\"&INDEX(Lists!$H$5:$H$49,MATCH(C109,Lists!$G$5:$G$49,0),1)&\"]\")","v":""}]
["I102",{"$nulls":43},0,{"v":0,"d":"0.00"},null,null,{"$f":"SUMIFS(I$9:I$208,PlanningIDEnlaces,$C110,$H$9:$H$208,Lists!$A$16)","v":0},0,null,{"$f":"SUMIFS(L$9:L$208,PlanningIDEnlaces,$C110,$H$9:$H$208,Lists!$A$16)","v":0},0,null,{"$f":"SUMIFS(O$9:O$208,PlanningIDEnlaces,$C110,$H$9:$H$208,Lists!$A$16)","v":0},0,null,{"$f":"SUMIFS(R$9:R$208,PlanningIDEnlaces,$C110,$H$9:$H$208,Lists!$A$16)","v":0},0,null,{"$f":"SUMIFS(U$9:U$208,PlanningIDEnlaces,$C110,$H$9:$H$208,Lists!$A$16)","v":0},0,null,{"$f":"SUMIFS(X$9:X$208,PlanningIDEnlaces,$C110,$H$9:$H$208,Lists!$A$16)","v":0},0,null,{"$f":"SUMIFS(AA$9:AA$208,PlanningIDEnlaces,$C110,$H$9:$H$208,Lists!$A$16)","v":0},0,null,{"$f":"SUMIFS(AD$9:AD$208,PlanningIDEnlaces,$C110,$H$9:$H$208,Lists!$A$16)","v":0},0,null,{"$f":"SUMIFS(AG$9:AG$208,PlanningIDEnlaces,$C110,$H$9:$H$208,Lists!$A$16)","v":0},0,null,{"$f":"SUMIFS(AJ$9:AJ$208,PlanningIDEnlaces,$C110,$H$9:$H$208,Lists!$A$16)","v":0},0,null,{"$f":"SUMIFS(AM$9:AM$208,PlanningIDEnlaces,$C110,$H$9:$H$208,Lists!$A$16)","v":0},0,null,{"$f":"SUMIFS(AP$9:AP$208,PlanningIDEnlaces,$C110,$H$9:$H$208,Lists!$A$16)","v":0},0,null,{"$f":"IFERROR(INDEX(Lists!$F$5:$F$49,MATCH(Planning!C110,Lists!$G$5:$G$49,0),1),\"\")","v":""},null,{"$f":"IF(C110=0,\"\",\" [\"&INDEX(Lists!$H$5:$H$49,MATCH(C110,Lists!$G$5:$G$49,0),1)&\"]\")","v":""}]
["I103",{"$nulls":43},0,{"v":0,"d":"0.00"},null,null,{"$f":"SUMIFS(I$9:I$208,PlanningIDEnlaces,$C111,$H$9:$H$208,Lists!$A$16)","v":0},0,null,{"$f":"SUMIFS(L$9:L$208,PlanningIDEnlaces,$C111,$H$9:$H$208,Lists!$A$16)","v":0},0,null,{"$f":"SUMIFS(O$9:O$208,PlanningIDEnlaces,$C111,$H$9:$H$208,Lists!$A$16)","v":0},0,null,{"$f":"SUMIFS(R$9:R$208,PlanningIDEnlaces,$C111,$H$9:$H$208,Lists!$A$16)","v":0},0,null,{"$f":"SUMIFS(U$9:U$208,PlanningIDEnlaces,$C111,$H$9:$H$208,Lists!$A$16)","v":0},0,null,{"$f":"SUMIFS(X$9:X$208,PlanningIDEnlaces,$C111,$H$9:$H$208,Lists!$A$16)","v":0},0,null,{"$f":"SUMIFS(AA$9:AA$208,PlanningIDEnlaces,$C111,$H$9:$H$208,Lists!$A$16)","v":0},0,null,{"$f":"SUMIFS(AD$9:AD$208,PlanningIDEnlaces,$C111,$H$9:$H$208,Lists!$A$16)","v":0},0,null,{"$f":"SUMIFS(AG$9:AG$208,PlanningIDEnlaces,$C111,$H$9:$H$208,Lists!$A$16)","v":0},0,null,{"$f":"SUMIFS(AJ$9:AJ$208,PlanningIDEnlaces,$C111,$H$9:$H$208,Lists!$A$16)","v":0},0,null,{"$f":"SUMIFS(AM$9:AM$208,PlanningIDEnlaces,$C111,$H$9:$H$208,Lists!$A$16)","v":0},0,null,{"$f":"SUMIFS(AP$9:AP$208,PlanningIDEnlaces,$C111,$H$9:$H$208,Lists!$A$16)","v":0},0,null,{"$f":"IFERROR(INDEX(Lists!$F$5:$F$49,MATCH(Planning!C111,Lists!$G$5:$G$49,0),1),\"\")","v":""},null,{"$f":"IF(C111=0,\"\",\" [\"&INDEX(Lists!$H$5:$H$49,MATCH(C111,Lists!$G$5:$G$49,0),1)&\"]\")","v":""}]
["I104",{"$nulls":43},0,{"v":0,"d":"0.00"},null,null,{"$f":"SUMIFS(I$9:I$208,PlanningIDEnlaces,$C112,$H$9:$H$208,Lists!$A$16)","v":0},0,null,{"$f":"SUMIFS(L$9:L$208,PlanningIDEnlaces,$C112,$H$9:$H$208,Lists!$A$16)","v":0},0,null,{"$f":"SUMIFS(O$9:O$208,PlanningIDEnlaces,$C112,$H$9:$H$208,Lists!$A$16)","v":0},0,null,{"$f":"SUMIFS(R$9:R$208,PlanningIDEnlaces,$C112,$H$9:$H$208,Lists!$A$16)","v":0},0,null,{"$f":"SUMIFS(U$9:U$208,PlanningIDEnlaces,$C112,$H$9:$H$208,Lists!$A$16)","v":0},0,null,{"$f":"SUMIFS(X$9:X$208,PlanningIDEnlaces,$C112,$H$9:$H$208,Lists!$A$16)","v":0},0,null,{"$f":"SUMIFS(AA$9:AA$208,PlanningIDEnlaces,$C112,$H$9:$H$208,Lists!$A$16)","v":0},0,null,{"$f":"SUMIFS(AD$9:AD$208,PlanningIDEnlaces,$C112,$H$9:$H$208,Lists!$A$16)","v":0},0,null,{"$f":"SUMIFS(AG$9:AG$208,PlanningIDEnlaces,$C112,$H$9:$H$208,Lists!$A$16)","v":0},0,null,{"$f":"SUMIFS(AJ$9:AJ$208,PlanningIDEnlaces,$C112,$H$9:$H$208,Lists!$A$16)","v":0},0,null,{"$f":"SUMIFS(AM$9:AM$208,PlanningIDEnlaces,$C112,$H$9:$H$208,Lists!$A$16)","v":0},0,null,{"$f":"SUMIFS(AP$9:AP$208,PlanningIDEnlaces,$C112,$H$9:$H$208,Lists!$A$16)","v":0},0,null,{"$f":"IFERROR(INDEX(Lists!$F$5:$F$49,MATCH(Planning!C112,Lists!$G$5:$G$49,0),1),\"\")","v":""},null,{"$f":"IF(C112=0,\"\",\" [\"&INDEX(Lists!$H$5:$H$49,MATCH(C112,Lists!$G$5:$G$49,0),1)&\"]\")","v":""}]
["I105",{"$nulls":43},0,{"v":0,"d":"0.00"},null,null,{"$f":"SUMIFS(I$9:I$208,PlanningIDEnlaces,$C113,$H$9:$H$208,Lists!$A$16)","v":0},0,null,{"$f":"SUMIFS(L$9:L$208,PlanningIDEnlaces,$C113,$H$9:$H$208,Lists!$A$16)","v":0},0,null,{"$f":"SUMIFS(O$9:O$208,PlanningIDEnlaces,$C113,$H$9:$H$208,Lists!$A$16)","v":0},0,null,{"$f":"SUMIFS(R$9:R$208,PlanningIDEnlaces,$C113,$H$9:$H$208,Lists!$A$16)","v":0},0,null,{"$f":"SUMIFS(U$9:U$208,PlanningIDEnlaces,$C113,$H$9:$H$208,Lists!$A$16)","v":0},0,null,{"$f":"SUMIFS(X$9:X$208,PlanningIDEnlaces,$C113,$H$9:$H$208,Lists!$A$16)","v":0},0,null,{"$f":"SUMIFS(AA$9:AA$208,PlanningIDEnlaces,$C113,$H$9:$H$208,Lists!$A$16)","v":0},0,null,{"$f":"SUMIFS(AD$9:AD$208,PlanningIDEnlaces,$C113,$H$9:$H$208,Lists!$A$16)","v":0},0,null,{"$f":"SUMIFS(AG$9:AG$208,PlanningIDEnlaces,$C113,$H$9:$H$208,Lists!$A$16)","v":0},0,null,{"$f":"SUMIFS(AJ$9:AJ$208,PlanningIDEnlaces,$C113,$H$9:$H$208,Lists!$A$16)","v":0},0,null,{"$f":"SUMIFS(AM$9:AM$208,PlanningIDEnlaces,$C113,$H$9:$H$208,Lists!$A$16)","v":0},0,null,{"$f":"SUMIFS(AP$9:AP$208,PlanningIDEnlaces,$C113,$H$9:$H$208,Lists!$A$16)","v":0},0,null,{"$f":"IFERROR(INDEX(Lists!$F$5:$F$49,MATCH(Planning!C113,Lists!$G$5:$G$49,0),1),\"\")","v":""},null,{"$f":"IF(C113=0,\"\",\" [\"&INDEX(Lists!$H$5:$H$49,MATCH(C113,Lists!$G$5:$G$49,0),1)&\"]\")","v":""}]
["I106",{"$nulls":43},0,{"v":0,"d":"0.00"},null,null,{"$f":"SUMIFS(I$9:I$208,PlanningIDEnlaces,$C114,$H$9:$H$208,Lists!$A$16)","v":0},0,null,{"$f":"SUMIFS(L$9:L$208,PlanningIDEnlaces,$C114,$H$9:$H$208,Lists!$A$16)","v":0},0,null,{"$f":"SUMIFS(O$9:O$208,PlanningIDEnlaces,$C114,$H$9:$H$208,Lists!$A$16)","v":0},0,null,{"$f":"SUMIFS(R$9:R$208,PlanningIDEnlaces,$C114,$H$9:$H$208,Lists!$A$16)","v":0},0,null,{"$f":"SUMIFS(U$9:U$208,PlanningIDEnlaces,$C114,$H$9:$H$208,Lists!$A$16)","v":0},0,null,{"$f":"SUMIFS(X$9:X$208,PlanningIDEnlaces,$C114,$H$9:$H$208,Lists!$A$16)","v":0},0,null,{"$f":"SUMIFS(AA$9:AA$208,PlanningIDEnlaces,$C114,$H$9:$H$208,Lists!$A$16)","v":0},0,null,{"$f":"SUMIFS(AD$9:AD$208,PlanningIDEnlaces,$C114,$H$9:$H$208,Lists!$A$16)","v":0},0,null,{"$f":"SUMIFS(AG$9:AG$208,PlanningIDEnlaces,$C114,$H$9:$H$208,Lists!$A$16)","v":0},0,null,{"$f":"SUMIFS(AJ$9:AJ$208,PlanningIDEnlaces,$C114,$H$9:$H$208,Lists!$A$16)","v":0},0,null,{"$f":"SUMIFS(AM$9:AM$208,PlanningIDEnlaces,$C114,$H$9:$H$208,Lists!$A$16)","v":0},0,null,{"$f":"SUMIFS(AP$9:AP$208,PlanningIDEnlaces,$C114,$H$9:$H$208,Lists!$A$16)","v":0},0,null,{"$f":"IFERROR(INDEX(Lists!$F$5:$F$49,MATCH(Planning!C114,Lists!$G$5:$G$49,0),1),\"\")","v":""},null,{"$f":"IF(C114=0,\"\",\" [\"&INDEX(Lists!$H$5:$H$49,MATCH(C114,Lists!$G$5:$G$49,0),1)&\"]\")","v":""}]
["I107",{"$nulls":43},0,{"v":0,"d":"0.00"},null,null,{"$f":"SUMIFS(I$9:I$208,PlanningIDEnlaces,$C115,$H$9:$H$208,Lists!$A$16)","v":0},0,null,{"$f":"SUMIFS(L$9:L$208,PlanningIDEnlaces,$C115,$H$9:$H$208,Lists!$A$16)","v":0},0,null,{"$f":"SUMIFS(O$9:O$208,PlanningIDEnlaces,$C115,$H$9:$H$208,Lists!$A$16)","v":0},0,null,{"$f":"SUMIFS(R$9:R$208,PlanningIDEnlaces,$C115,$H$9:$H$208,Lists!$A$16)","v":0},0,null,{"$f":"SUMIFS(U$9:U$208,PlanningIDEnlaces,$C115,$H$9:$H$208,Lists!$A$16)","v":0},0,null,{"$f":"SUMIFS(X$9:X$208,PlanningIDEnlaces,$C115,$H$9:$H$208,Lists!$A$16)","v":0},0,null,{"$f":"SUMIFS(AA$9:AA$208,PlanningIDEnlaces,$C115,$H$9:$H$208,Lists!$A$16)","v":0},0,null,{"$f":"SUMIFS(AD$9:AD$208,PlanningIDEnlaces,$C115,$H$9:$H$208,Lists!$A$16)","v":0},0,null,{"$f":"SUMIFS(AG$9:AG$208,PlanningIDEnlaces,$C115,$H$9:$H$208,Lists!$A$16)","v":0},0,null,{"$f":"SUMIFS(AJ$9:AJ$208,PlanningIDEnlaces,$C115,$H$9:$H$208,Lists!$A$16)","v":0},0,null,{"$f":"SUMIFS(AM$9:AM$208,PlanningIDEnlaces,$C115,$H$9:$H$208,Lists!$A$16)","v":0},0,null,{"$f":"SUMIFS(AP$9:AP$208,PlanningIDEnlaces,$C115,$H$9:$H$208,Lists!$A$16)","v":0},0,null,{"$f":"IFERROR(INDEX(Lists!$F$5:$F$49,MATCH(Planning!C115,Lists!$G$5:$G$49,0),1),\"\")","v":""},null,{"$f":"IF(C115=0,\"\",\" [\"&INDEX(Lists!$H$5:$H$49,MATCH(C115,Lists!$G$5:$G$49,0),1)&\"]\")","v":""}]
["I108",{"$nulls":43},0,{"v":0,"d":"0.00"},null,null,{"$f":"SUMIFS(I$9:I$208,PlanningIDEnlaces,$C116,$H$9:$H$208,Lists!$A$16)","v":0},0,null,{"$f":"SUMIFS(L$9:L$208,PlanningIDEnlaces,$C116,$H$9:$H$208,Lists!$A$16)","v":0},0,null,{"$f":"SUMIFS(O$9:O$208,PlanningIDEnlaces,$C116,$H$9:$H$208,Lists!$A$16)","v":0},0,null,{"$f":"SUMIFS(R$9:R$208,PlanningIDEnlaces,$C116,$H$9:$H$208,Lists!$A$16)","v":0},0,null,{"$f":"SUMIFS(U$9:U$208,PlanningIDEnlaces,$C116,$H$9:$H$208,Lists!$A$16)","v":0},0,null,{"$f":"SUMIFS(X$9:X$208,PlanningIDEnlaces,$C116,$H$9:$H$208,Lists!$A$16)","v":0},0,null,{"$f":"SUMIFS(AA$9:AA$208,PlanningIDEnlaces,$C116,$H$9:$H$208,Lists!$A$16)","v":0},0,null,{"$f":"SUMIFS(AD$9:AD$208,PlanningIDEnlaces,$C116,$H$9:$H$208,Lists!$A$16)","v":0},0,null,{"$f":"SUMIFS(AG$9:AG$208,PlanningIDEnlaces,$C116,$H$9:$H$208,Lists!$A$16)","v":0},0,null,{"$f":"SUMIFS(AJ$9:AJ$208,PlanningIDEnlaces,$C116,$H$9:$H$208,Lists!$A$16)","v":0},0,null,{"$f":"SUMIFS(AM$9:AM$208,PlanningIDEnlaces,$C116,$H$9:$H$208,Lists!$A$16)","v":0},0,null,{"$f":"SUMIFS(AP$9:AP$208,PlanningIDEnlaces,$C116,$H$9:$H$208,Lists!$A$16)","v":0},0,null,{"$f":"IFERROR(INDEX(Lists!$F$5:$F$49,MATCH(Planning!C116,Lists!$G$5:$G$49,0),1),\"\")","v":""},null,{"$f":"IF(C116=0,\"\",\" [\"&INDEX(Lists!$H$5:$H$49,MATCH(C116,Lists!$G$5:$G$49,0),1)&\"]\")","v":""}]
["I109",{"$nulls":43},0,{"v":0,"d":"0.00"},null,null,{"$f":"SUMIFS(I$9:I$208,PlanningIDEnlaces,$C117,$H$9:$H$208,Lists!$A$16)","v":0},0,null,{"$f":"SUMIFS(L$9:L$208,PlanningIDEnlaces,$C117,$H$9:$H$208,Lists!$A$16)","v":0},0,null,{"$f":"SUMIFS(O$9:O$208,PlanningIDEnlaces,$C117,$H$9:$H$208,Lists!$A$16)","v":0},0,null,{"$f":"SUMIFS(R$9:R$208,PlanningIDEnlaces,$C117,$H$9:$H$208,Lists!$A$16)","v":0},0,null,{"$f":"SUMIFS(U$9:U$208,PlanningIDEnlaces,$C117,$H$9:$H$208,Lists!$A$16)","v":0},0,null,{"$f":"SUMIFS(X$9:X$208,PlanningIDEnlaces,$C117,$H$9:$H$208,Lists!$A$16)","v":0},0,null,{"$f":"SUMIFS(AA$9:AA$208,PlanningIDEnlaces,$C117,$H$9:$H$208,Lists!$A$16)","v":0},0,null,{"$f":"SUMIFS(AD$9:AD$208,PlanningIDEnlaces,$C117,$H$9:$H$208,Lists!$A$16)","v":0},0,null,{"$f":"SUMIFS(AG$9:AG$208,PlanningIDEnlaces,$C117,$H$9:$H$208,Lists!$A$16)","v":0},0,null,{"$f":"SUMIFS(AJ$9:AJ$208,PlanningIDEnlaces,$C117,$H$9:$H$208,Lists!$A$16)","v":0},0,null,{"$f":"SUMIFS(AM$9:AM$208,PlanningIDEnlaces,$C117,$H$9:$H$208,Lists!$A$16)","v":0},0,null,{"$f":"SUMIFS(AP$9:AP$208,PlanningIDEnlaces,$C117,$H$9:$H$208,Lists!$A$16)","v":0},0,null,{"$f":"IFERROR(INDEX(Lists!$F$5:$F$49,MATCH(Planning!C117,Lists!$G$5:$G$49,0),1),\"\")","v":""},null,{"$f":"IF(C117=0,\"\",\" [\"&INDEX(Lists!$H$5:$H$49,MATCH(C117,Lists!$G$5:$G$49,0),1)&\"]\")","v":""}]
["I110",{"$nulls":43},0,{"v":0,"d":"0.00"},null,null,{"$f":"SUMIFS(I$9:I$208,PlanningIDEnlaces,$C118,$H$9:$H$208,Lists!$A$16)","v":0},0,null,{"$f":"SUMIFS(L$9:L$208,PlanningIDEnlaces,$C118,$H$9:$H$208,Lists!$A$16)","v":0},0,null,{"$f":"SUMIFS(O$9:O$208,PlanningIDEnlaces,$C118,$H$9:$H$208,Lists!$A$16)","v":0},0,null,{"$f":"SUMIFS(R$9:R$208,PlanningIDEnlaces,$C118,$H$9:$H$208,Lists!$A$16)","v":0},0,null,{"$f":"SUMIFS(U$9:U$208,PlanningIDEnlaces,$C118,$H$9:$H$208,Lists!$A$16)","v":0},0,null,{"$f":"SUMIFS(X$9:X$208,PlanningIDEnlaces,$C118,$H$9:$H$208,Lists!$A$16)","v":0},0,null,{"$f":"SUMIFS(AA$9:AA$208,PlanningIDEnlaces,$C118,$H$9:$H$208,Lists!$A$16)","v":0},0,null,{"$f":"SUMIFS(AD$9:AD$208,PlanningIDEnlaces,$C118,$H$9:$H$208,Lists!$A$16)","v":0},0,null,{"$f":"SUMIFS(AG$9:AG$208,PlanningIDEnlaces,$C118,$H$9:$H$208,Lists!$A$16)","v":0},0,null,{"$f":"SUMIFS(AJ$9:AJ$208,PlanningIDEnlaces,$C118,$H$9:$H$208,Lists!$A$16)","v":0},0,null,{"$f":"SUMIFS(AM$9:AM$208,PlanningIDEnlaces,$C118,$H$9:$H$208,Lists!$A$16)","v":0},0,null,{"$f":"SUMIFS(AP$9:AP$208,PlanningIDEnlaces,$C118,$H$9:$H$208,Lists!$A$16)","v":0},0,null,{"$f":"IFERROR(INDEX(Lists!$F$5:$F$49,MATCH(Planning!C118,Lists!$G$5:$G$49,0),1),\"\")","v":""},null,{"$f":"IF(C118=0,\"\",\" [\"&INDEX(Lists!$H$5:$H$49,MATCH(C118,Lists!$G$5:$G$49,0),1)&\"]\")","v":""}]
["I111",{"$nulls":43},0,{"v":0,"d":"0.00"},null,null,{"$f":"SUMIFS(I$9:I$208,PlanningIDEnlaces,$C119,$H$9:$H$208,Lists!$A$16)","v":0},0,null,{"$f":"SUMIFS(L$9:L$208,PlanningIDEnlaces,$C119,$H$9:$H$208,Lists!$A$16)","v":0},0,null,{"$f":"SUMIFS(O$9:O$208,PlanningIDEnlaces,$C119,$H$9:$H$208,Lists!$A$16)","v":0},0,null,{"$f":"SUMIFS(R$9:R$208,PlanningIDEnlaces,$C119,$H$9:$H$208,Lists!$A$16)","v":0},0,null,{"$f":"SUMIFS(U$9:U$208,PlanningIDEnlaces,$C119,$H$9:$H$208,Lists!$A$16)","v":0},0,null,{"$f":"SUMIFS(X$9:X$208,PlanningIDEnlaces,$C119,$H$9:$H$208,Lists!$A$16)","v":0},0,null,{"$f":"SUMIFS(AA$9:AA$208,PlanningIDEnlaces,$C119,$H$9:$H$208,Lists!$A$16)","v":0},0,null,{"$f":"SUMIFS(AD$9:AD$208,PlanningIDEnlaces,$C119,$H$9:$H$208,Lists!$A$16)","v":0},0,null,{"$f":"SUMIFS(AG$9:AG$208,PlanningIDEnlaces,$C119,$H$9:$H$208,Lists!$A$16)","v":0},0,null,{"$f":"SUMIFS(AJ$9:AJ$208,PlanningIDEnlaces,$C119,$H$9:$H$208,Lists!$A$16)","v":0},0,null,{"$f":"SUMIFS(AM$9:AM$208,PlanningIDEnlaces,$C119,$H$9:$H$208,Lists!$A$16)","v":0},0,null,{"$f":"SUMIFS(AP$9:AP$208,PlanningIDEnlaces,$C119,$H$9:$H$208,Lists!$A$16)","v":0},0,null,{"$f":"IFERROR(INDEX(Lists!$F$5:$F$49,MATCH(Planning!C119,Lists!$G$5:$G$49,0),1),\"\")","v":""},null,{"$f":"IF(C119=0,\"\",\" [\"&INDEX(Lists!$H$5:$H$49,MATCH(C119,Lists!$G$5:$G$49,0),1)&\"]\")","v":""}]
["I112",{"$nulls":43},0,{"v":0,"d":"0.00"},null,null,{"$f":"SUMIFS(I$9:I$208,PlanningIDEnlaces,$C120,$H$9:$H$208,Lists!$A$16)","v":0},0,null,{"$f":"SUMIFS(L$9:L$208,PlanningIDEnlaces,$C120,$H$9:$H$208,Lists!$A$16)","v":0},0,null,{"$f":"SUMIFS(O$9:O$208,PlanningIDEnlaces,$C120,$H$9:$H$208,Lists!$A$16)","v":0},0,null,{"$f":"SUMIFS(R$9:R$208,PlanningIDEnlaces,$C120,$H$9:$H$208,Lists!$A$16)","v":0},0,null,{"$f":"SUMIFS(U$9:U$208,PlanningIDEnlaces,$C120,$H$9:$H$208,Lists!$A$16)","v":0},0,null,{"$f":"SUMIFS(X$9:X$208,PlanningIDEnlaces,$C120,$H$9:$H$208,Lists!$A$16)","v":0},0,null,{"$f":"SUMIFS(AA$9:AA$208,PlanningIDEnlaces,$C120,$H$9:$H$208,Lists!$A$16)","v":0},0,null,{"$f":"SUMIFS(AD$9:AD$208,PlanningIDEnlaces,$C120,$H$9:$H$208,Lists!$A$16)","v":0},0,null,{"$f":"SUMIFS(AG$9:AG$208,PlanningIDEnlaces,$C120,$H$9:$H$208,Lists!$A$16)","v":0},0,null,{"$f":"SUMIFS(AJ$9:AJ$208,PlanningIDEnlaces,$C120,$H$9:$H$208,Lists!$A$16)","v":0},0,null,{"$f":"SUMIFS(AM$9:AM$208,PlanningIDEnlaces,$C120,$H$9:$H$208,Lists!$A$16)","v":0},0,null,{"$f":"SUMIFS(AP$9:AP$208,PlanningIDEnlaces,$C120,$H$9:$H$208,Lists!$A$16)","v":0},0,null,{"$f":"IFERROR(INDEX(Lists!$F$5:$F$49,MATCH(Planning!C120,Lists!$G$5:$G$49,0),1),\"\")","v":""},null,{"$f":"IF(C120=0,\"\",\" [\"&INDEX(Lists!$H$5:$H$49,MATCH(C120,Lists!$G$5:$G$49,0),1)&\"]\")","v":""}]
["I113",{"$nulls":43},0,{"v":0,"d":"0.00"},null,null,{"$f":"SUMIFS(I$9:I$208,PlanningIDEnlaces,$C121,$H$9:$H$208,Lists!$A$16)","v":0},0,null,{"$f":"SUMIFS(L$9:L$208,PlanningIDEnlaces,$C121,$H$9:$H$208,Lists!$A$16)","v":0},0,null,{"$f":"SUMIFS(O$9:O$208,PlanningIDEnlaces,$C121,$H$9:$H$208,Lists!$A$16)","v":0},0,null,{"$f":"SUMIFS(R$9:R$208,PlanningIDEnlaces,$C121,$H$9:$H$208,Lists!$A$16)","v":0},0,null,{"$f":"SUMIFS(U$9:U$208,PlanningIDEnlaces,$C121,$H$9:$H$208,Lists!$A$16)","v":0},0,null,{"$f":"SUMIFS(X$9:X$208,PlanningIDEnlaces,$C121,$H$9:$H$208,Lists!$A$16)","v":0},0,null,{"$f":"SUMIFS(AA$9:AA$208,PlanningIDEnlaces,$C121,$H$9:$H$208,Lists!$A$16)","v":0},0,null,{"$f":"SUMIFS(AD$9:AD$208,PlanningIDEnlaces,$C121,$H$9:$H$208,Lists!$A$16)","v":0},0,null,{"$f":"SUMIFS(AG$9:AG$208,PlanningIDEnlaces,$C121,$H$9:$H$208,Lists!$A$16)","v":0},0,null,{"$f":"SUMIFS(AJ$9:AJ$208,PlanningIDEnlaces,$C121,$H$9:$H$208,Lists!$A$16)","v":0},0,null,{"$f":"SUMIFS(AM$9:AM$208,PlanningIDEnlaces,$C121,$H$9:$H$208,Lists!$A$16)","v":0},0,null,{"$f":"SUMIFS(AP$9:AP$208,PlanningIDEnlaces,$C121,$H$9:$H$208,Lists!$A$16)","v":0},0,null,{"$f":"IFERROR(INDEX(Lists!$F$5:$F$49,MATCH(Planning!C121,Lists!$G$5:$G$49,0),1),\"\")","v":""},null,{"$f":"IF(C121=0,\"\",\" [\"&INDEX(Lists!$H$5:$H$49,MATCH(C121,Lists!$G$5:$G$49,0),1)&\"]\")","v":""}]
["I114",{"$nulls":43},0,{"v":0,"d":"0.00"},null,null,{"$f":"SUMIFS(I$9:I$208,PlanningIDEnlaces,$C122,$H$9:$H$208,Lists!$A$16)","v":0},0,null,{"$f":"SUMIFS(L$9:L$208,PlanningIDEnlaces,$C122,$H$9:$H$208,Lists!$A$16)","v":0},0,null,{"$f":"SUMIFS(O$9:O$208,PlanningIDEnlaces,$C122,$H$9:$H$208,Lists!$A$16)","v":0},0,null,{"$f":"SUMIFS(R$9:R$208,PlanningIDEnlaces,$C122,$H$9:$H$208,Lists!$A$16)","v":0},0,null,{"$f":"SUMIFS(U$9:U$208,PlanningIDEnlaces,$C122,$H$9:$H$208,Lists!$A$16)","v":0},0,null,{"$f":"SUMIFS(X$9:X$208,PlanningIDEnlaces,$C122,$H$9:$H$208,Lists!$A$16)","v":0},0,null,{"$f":"SUMIFS(AA$9:AA$208,PlanningIDEnlaces,$C122,$H$9:$H$208,Lists!$A$16)","v":0},0,null,{"$f":"SUMIFS(AD$9:AD$208,PlanningIDEnlaces,$C122,$H$9:$H$208,Lists!$A$16)","v":0},0,null,{"$f":"SUMIFS(AG$9:AG$208,PlanningIDEnlaces,$C122,$H$9:$H$208,Lists!$A$16)","v":0},0,null,{"$f":"SUMIFS(AJ$9:AJ$208,PlanningIDEnlaces,$C122,$H$9:$H$208,Lists!$A$16)","v":0},0,null,{"$f":"SUMIFS(AM$9:AM$208,PlanningIDEnlaces,$C122,$H$9:$H$208,Lists!$A$16)","v":0},0,null,{"$f":"SUMIFS(AP$9:AP$208,PlanningIDEnlaces,$C122,$H$9:$H$208,Lists!$A$16)","v":0},0,null,{"$f":"IFERROR(INDEX(Lists!$F$5:$F$49,MATCH(Planning!C122,Lists!$G$5:$G$49,0),1),\"\")","v":""},null,{"$f":"IF(C122=0,\"\",\" [\"&INDEX(Lists!$H$5:$H$49,MATCH(C122,Lists!$G$5:$G$49,0),1)&\"]\")","v":""}]
["I115",{"$nulls":43},0,{"v":0,"d":"0.00"},null,null,{"$f":"SUMIFS(I$9:I$208,PlanningIDEnlaces,$C123,$H$9:$H$208,Lists!$A$16)","v":0},0,null,{"$f":"SUMIFS(L$9:L$208,PlanningIDEnlaces,$C123,$H$9:$H$208,Lists!$A$16)","v":0},0,null,{"$f":"SUMIFS(O$9:O$208,PlanningIDEnlaces,$C123,$H$9:$H$208,Lists!$A$16)","v":0},0,null,{"$f":"SUMIFS(R$9:R$208,PlanningIDEnlaces,$C123,$H$9:$H$208,Lists!$A$16)","v":0},0,null,{"$f":"SUMIFS(U$9:U$208,PlanningIDEnlaces,$C123,$H$9:$H$208,Lists!$A$16)","v":0},0,null,{"$f":"SUMIFS(X$9:X$208,PlanningIDEnlaces,$C123,$H$9:$H$208,Lists!$A$16)","v":0},0,null,{"$f":"SUMIFS(AA$9:AA$208,PlanningIDEnlaces,$C123,$H$9:$H$208,Lists!$A$16)","v":0},0,null,{"$f":"SUMIFS(AD$9:AD$208,PlanningIDEnlaces,$C123,$H$9:$H$208,Lists!$A$16)","v":0},0,null,{"$f":"SUMIFS(AG$9:AG$208,PlanningIDEnlaces,$C123,$H$9:$H$208,Lists!$A$16)","v":0},0,null,{"$f":"SUMIFS(AJ$9:AJ$208,PlanningIDEnlaces,$C123,$H$9:$H$208,Lists!$A$16)","v":0},0,null,{"$f":"SUMIFS(AM$9:AM$208,PlanningIDEnlaces,$C123,$H$9:$H$208,Lists!$A$16)","v":0},0,null,{"$f":"SUMIFS(AP$9:AP$208,PlanningIDEnlaces,$C123,$H$9:$H$208,Lists!$A$16)","v":0},0,null,{"$f":"IFERROR(INDEX(Lists!$F$5:$F$49,MATCH(Planning!C123,Lists!$G$5:$G$49,0),1),\"\")","v":""},null,{"$f":"IF(C123=0,\"\",\" [\"&INDEX(Lists!$H$5:$H$49,MATCH(C123,Lists!$G$5:$G$49,0),1)&\"]\")","v":""}]
["I116",{"$nulls":43},0,{"v":0,"d":"0.00"},null,null,{"$f":"SUMIFS(I$9:I$208,PlanningIDEnlaces,$C124,$H$9:$H$208,Lists!$A$16)","v":0},0,null,{"$f":"SUMIFS(L$9:L$208,PlanningIDEnlaces,$C124,$H$9:$H$208,Lists!$A$16)","v":0},0,null,{"$f":"SUMIFS(O$9:O$208,PlanningIDEnlaces,$C124,$H$9:$H$208,Lists!$A$16)","v":0},0,null,{"$f":"SUMIFS(R$9:R$208,PlanningIDEnlaces,$C124,$H$9:$H$208,Lists!$A$16)","v":0},0,null,{"$f":"SUMIFS(U$9:U$208,PlanningIDEnlaces,$C124,$H$9:$H$208,Lists!$A$16)","v":0},0,null,{"$f":"SUMIFS(X$9:X$208,PlanningIDEnlaces,$C124,$H$9:$H$208,Lists!$A$16)","v":0},0,null,{"$f":"SUMIFS(AA$9:AA$208,PlanningIDEnlaces,$C124,$H$9:$H$208,Lists!$A$16)","v":0},0,null,{"$f":"SUMIFS(AD$9:AD$208,PlanningIDEnlaces,$C124,$H$9:$H$208,Lists!$A$16)","v":0},0,null,{"$f":"SUMIFS(AG$9:AG$208,PlanningIDEnlaces,$C124,$H$9:$H$208,Lists!$A$16)","v":0},0,null,{"$f":"SUMIFS(AJ$9:AJ$208,PlanningIDEnlaces,$C124,$H$9:$H$208,Lists!$A$16)","v":0},0,null,{"$f":"SUMIFS(AM$9:AM$208,PlanningIDEnlaces,$C124,$H$9:$H$208,Lists!$A$16)","v":0},0,null,{"$f":"SUMIFS(AP$9:AP$208,PlanningIDEnlaces,$C124,$H$9:$H$208,Lists!$A$16)","v":0},0,null,{"$f":"IFERROR(INDEX(Lists!$F$5:$F$49,MATCH(Planning!C124,Lists!$G$5:$G$49,0),1),\"\")","v":""},null,{"$f":"IF(C124=0,\"\",\" [\"&INDEX(Lists!$H$5:$H$49,MATCH(C124,Lists!$G$5:$G$49,0),1)&\"]\")","v":""}]
["I117",{"$nulls":43},0,{"v":0,"d":"0.00"},null,null,{"$f":"SUMIFS(I$9:I$208,PlanningIDEnlaces,$C125,$H$9:$H$208,Lists!$A$16)","v":0},0,null,{"$f":"SUMIFS(L$9:L$208,PlanningIDEnlaces,$C125,$H$9:$H$208,Lists!$A$16)","v":0},0,null,{"$f":"SUMIFS(O$9:O$208,PlanningIDEnlaces,$C125,$H$9:$H$208,Lists!$A$16)","v":0},0,null,{"$f":"SUMIFS(R$9:R$208,PlanningIDEnlaces,$C125,$H$9:$H$208,Lists!$A$16)","v":0},0,null,{"$f":"SUMIFS(U$9:U$208,PlanningIDEnlaces,$C125,$H$9:$H$208,Lists!$A$16)","v":0},0,null,{"$f":"SUMIFS(X$9:X$208,PlanningIDEnlaces,$C125,$H$9:$H$208,Lists!$A$16)","v":0},0,null,{"$f":"SUMIFS(AA$9:AA$208,PlanningIDEnlaces,$C125,$H$9:$H$208,Lists!$A$16)","v":0},0,null,{"$f":"SUMIFS(AD$9:AD$208,PlanningIDEnlaces,$C125,$H$9:$H$208,Lists!$A$16)","v":0},0,null,{"$f":"SUMIFS(AG$9:AG$208,PlanningIDEnlaces,$C125,$H$9:$H$208,Lists!$A$16)","v":0},0,null,{"$f":"SUMIFS(AJ$9:AJ$208,PlanningIDEnlaces,$C125,$H$9:$H$208,Lists!$A$16)","v":0},0,null,{"$f":"SUMIFS(AM$9:AM$208,PlanningIDEnlaces,$C125,$H$9:$H$208,Lists!$A$16)","v":0},0,null,{"$f":"SUMIFS(AP$9:AP$208,PlanningIDEnlaces,$C125,$H$9:$H$208,Lists!$A$16)","v":0},0,null,{"$f":"IFERROR(INDEX(Lists!$F$5:$F$49,MATCH(Planning!C125,Lists!$G$5:$G$49,0),1),\"\")","v":""},null,{"$f":"IF(C125=0,\"\",\" [\"&INDEX(Lists!$H$5:$H$49,MATCH(C125,Lists!$G$5:$G$49,0),1)&\"]\")","v":""}]
["I118",{"$nulls":43},0,{"v":0,"d":"0.00"},null,null,{"$f":"SUMIFS(I$9:I$208,PlanningIDEnlaces,$C126,$H$9:$H$208,Lists!$A$16)","v":0},0,null,{"$f":"SUMIFS(L$9:L$208,PlanningIDEnlaces,$C126,$H$9:$H$208,Lists!$A$16)","v":0},0,null,{"$f":"SUMIFS(O$9:O$208,PlanningIDEnlaces,$C126,$H$9:$H$208,Lists!$A$16)","v":0},0,null,{"$f":"SUMIFS(R$9:R$208,PlanningIDEnlaces,$C126,$H$9:$H$208,Lists!$A$16)","v":0},0,null,{"$f":"SUMIFS(U$9:U$208,PlanningIDEnlaces,$C126,$H$9:$H$208,Lists!$A$16)","v":0},0,null,{"$f":"SUMIFS(X$9:X$208,PlanningIDEnlaces,$C126,$H$9:$H$208,Lists!$A$16)","v":0},0,null,{"$f":"SUMIFS(AA$9:AA$208,PlanningIDEnlaces,$C126,$H$9:$H$208,Lists!$A$16)","v":0},0,null,{"$f":"SUMIFS(AD$9:AD$208,PlanningIDEnlaces,$C126,$H$9:$H$208,Lists!$A$16)","v":0},0,null,{"$f":"SUMIFS(AG$9:AG$208,PlanningIDEnlaces,$C126,$H$9:$H$208,Lists!$A$16)","v":0},0,null,{"$f":"SUMIFS(AJ$9:AJ$208,PlanningIDEnlaces,$C126,$H$9:$H$208,Lists!$A$16)","v":0},0,null,{"$f":"SUMIFS(AM$9:AM$208,PlanningIDEnlaces,$C126,$H$9:$H$208,Lists!$A$16)","v":0},0,null,{"$f":"SUMIFS(AP$9:AP$208,PlanningIDEnlaces,$C126,$H$9:$H$208,Lists!$A$16)","v":0},0,null,{"$f":"IFERROR(INDEX(Lists!$F$5:$F$49,MATCH(Planning!C126,Lists!$G$5:$G$49,0),1),\"\")","v":""},null,{"$f":"IF(C126=0,\"\",\" [\"&INDEX(Lists!$H$5:$H$49,MATCH(C126,Lists!$G$5:$G$49,0),1)&\"]\")","v":""}]
["I119",{"$nulls":43},0,{"v":0,"d":"0.00"},null,null,{"$f":"SUMIFS(I$9:I$208,PlanningIDEnlaces,$C127,$H$9:$H$208,Lists!$A$16)","v":0},0,null,{"$f":"SUMIFS(L$9:L$208,PlanningIDEnlaces,$C127,$H$9:$H$208,Lists!$A$16)","v":0},0,null,{"$f":"SUMIFS(O$9:O$208,PlanningIDEnlaces,$C127,$H$9:$H$208,Lists!$A$16)","v":0},0,null,{"$f":"SUMIFS(R$9:R$208,PlanningIDEnlaces,$C127,$H$9:$H$208,Lists!$A$16)","v":0},0,null,{"$f":"SUMIFS(U$9:U$208,PlanningIDEnlaces,$C127,$H$9:$H$208,Lists!$A$16)","v":0},0,null,{"$f":"SUMIFS(X$9:X$208,PlanningIDEnlaces,$C127,$H$9:$H$208,Lists!$A$16)","v":0},0,null,{"$f":"SUMIFS(AA$9:AA$208,PlanningIDEnlaces,$C127,$H$9:$H$208,Lists!$A$16)","v":0},0,null,{"$f":"SUMIFS(AD$9:AD$208,PlanningIDEnlaces,$C127,$H$9:$H$208,Lists!$A$16)","v":0},0,null,{"$f":"SUMIFS(AG$9:AG$208,PlanningIDEnlaces,$C127,$H$9:$H$208,Lists!$A$16)","v":0},0,null,{"$f":"SUMIFS(AJ$9:AJ$208,PlanningIDEnlaces,$C127,$H$9:$H$208,Lists!$A$16)","v":0},0,null,{"$f":"SUMIFS(AM$9:AM$208,PlanningIDEnlaces,$C127,$H$9:$H$208,Lists!$A$16)","v":0},0,null,{"$f":"SUMIFS(AP$9:AP$208,PlanningIDEnlaces,$C127,$H$9:$H$208,Lists!$A$16)","v":0},0,null,{"$f":"IFERROR(INDEX(Lists!$F$5:$F$49,MATCH(Planning!C127,Lists!$G$5:$G$49,0),1),\"\")","v":""},null,{"$f":"IF(C127=0,\"\",\" [\"&INDEX(Lists!$H$5:$H$49,MATCH(C127,Lists!$G$5:$G$49,0),1)&\"]\")","v":""}]
["I120",{"$nulls":43},0,{"v":0,"d":"0.00"},null,null,{"$f":"SUMIFS(I$9:I$208,PlanningIDEnlaces,$C128,$H$9:$H$208,Lists!$A$16)","v":0},0,null,{"$f":"SUMIFS(L$9:L$208,PlanningIDEnlaces,$C128,$H$9:$H$208,Lists!$A$16)","v":0},0,null,{"$f":"SUMIFS(O$9:O$208,PlanningIDEnlaces,$C128,$H$9:$H$208,Lists!$A$16)","v":0},0,null,{"$f":"SUMIFS(R$9:R$208,PlanningIDEnlaces,$C128,$H$9:$H$208,Lists!$A$16)","v":0},0,null,{"$f":"SUMIFS(U$9:U$208,PlanningIDEnlaces,$C128,$H$9:$H$208,Lists!$A$16)","v":0},0,null,{"$f":"SUMIFS(X$9:X$208,PlanningIDEnlaces,$C128,$H$9:$H$208,Lists!$A$16)","v":0},0,null,{"$f":"SUMIFS(AA$9:AA$208,PlanningIDEnlaces,$C128,$H$9:$H$208,Lists!$A$16)","v":0},0,null,{"$f":"SUMIFS(AD$9:AD$208,PlanningIDEnlaces,$C128,$H$9:$H$208,Lists!$A$16)","v":0},0,null,{"$f":"SUMIFS(AG$9:AG$208,PlanningIDEnlaces,$C128,$H$9:$H$208,Lists!$A$16)","v":0},0,null,{"$f":"SUMIFS(AJ$9:AJ$208,PlanningIDEnlaces,$C128,$H$9:$H$208,Lists!$A$16)","v":0},0,null,{"$f":"SUMIFS(AM$9:AM$208,PlanningIDEnlaces,$C128,$H$9:$H$208,Lists!$A$16)","v":0},0,null,{"$f":"SUMIFS(AP$9:AP$208,PlanningIDEnlaces,$C128,$H$9:$H$208,Lists!$A$16)","v":0},0,null,{"$f":"IFERROR(INDEX(Lists!$F$5:$F$49,MATCH(Planning!C128,Lists!$G$5:$G$49,0),1),\"\")","v":""},null,{"$f":"IF(C128=0,\"\",\" [\"&INDEX(Lists!$H$5:$H$49,MATCH(C128,Lists!$G$5:$G$49,0),1)&\"]\")","v":""}]
["I121",{"$nulls":43},0,{"v":0,"d":"0.00"},null,null,{"$f":"SUMIFS(I$9:I$208,PlanningIDEnlaces,$C129,$H$9:$H$208,Lists!$A$16)","v":0},0,null,{"$f":"SUMIFS(L$9:L$208,PlanningIDEnlaces,$C129,$H$9:$H$208,Lists!$A$16)","v":0},0,null,{"$f":"SUMIFS(O$9:O$208,PlanningIDEnlaces,$C129,$H$9:$H$208,Lists!$A$16)","v":0},0,null,{"$f":"SUMIFS(R$9:R$208,PlanningIDEnlaces,$C129,$H$9:$H$208,Lists!$A$16)","v":0},0,null,{"$f":"SUMIFS(U$9:U$208,PlanningIDEnlaces,$C129,$H$9:$H$208,Lists!$A$16)","v":0},0,null,{"$f":"SUMIFS(X$9:X$208,PlanningIDEnlaces,$C129,$H$9:$H$208,Lists!$A$16)","v":0},0,null,{"$f":"SUMIFS(AA$9:AA$208,PlanningIDEnlaces,$C129,$H$9:$H$208,Lists!$A$16)","v":0},0,null,{"$f":"SUMIFS(AD$9:AD$208,PlanningIDEnlaces,$C129,$H$9:$H$208,Lists!$A$16)","v":0},0,null,{"$f":"SUMIFS(AG$9:AG$208,PlanningIDEnlaces,$C129,$H$9:$H$208,Lists!$A$16)","v":0},0,null,{"$f":"SUMIFS(AJ$9:AJ$208,PlanningIDEnlaces,$C129,$H$9:$H$208,Lists!$A$16)","v":0},0,null,{"$f":"SUMIFS(AM$9:AM$208,PlanningIDEnlaces,$C129,$H$9:$H$208,Lists!$A$16)","v":0},0,null,{"$f":"SUMIFS(AP$9:AP$208,PlanningIDEnlaces,$C129,$H$9:$H$208,Lists!$A$16)","v":0},0,null,{"$f":"IFERROR(INDEX(Lists!$F$5:$F$49,MATCH(Planning!C129,Lists!$G$5:$G$49,0),1),\"\")","v":""},null,{"$f":"IF(C129=0,\"\",\" [\"&INDEX(Lists!$H$5:$H$49,MATCH(C129,Lists!$G$5:$G$49,0),1)&\"]\")","v":""}]
["I122",{"$nulls":43},0,{"v":0,"d":"0.00"},null,null,{"$f":"SUMIFS(I$9:I$208,PlanningIDEnlaces,$C130,$H$9:$H$208,Lists!$A$16)","v":0},0,null,{"$f":"SUMIFS(L$9:L$208,PlanningIDEnlaces,$C130,$H$9:$H$208,Lists!$A$16)","v":0},0,null,{"$f":"SUMIFS(O$9:O$208,PlanningIDEnlaces,$C130,$H$9:$H$208,Lists!$A$16)","v":0},0,null,{"$f":"SUMIFS(R$9:R$208,PlanningIDEnlaces,$C130,$H$9:$H$208,Lists!$A$16)","v":0},0,null,{"$f":"SUMIFS(U$9:U$208,PlanningIDEnlaces,$C130,$H$9:$H$208,Lists!$A$16)","v":0},0,null,{"$f":"SUMIFS(X$9:X$208,PlanningIDEnlaces,$C130,$H$9:$H$208,Lists!$A$16)","v":0},0,null,{"$f":"SUMIFS(AA$9:AA$208,PlanningIDEnlaces,$C130,$H$9:$H$208,Lists!$A$16)","v":0},0,null,{"$f":"SUMIFS(AD$9:AD$208,PlanningIDEnlaces,$C130,$H$9:$H$208,Lists!$A$16)","v":0},0,null,{"$f":"SUMIFS(AG$9:AG$208,PlanningIDEnlaces,$C130,$H$9:$H$208,Lists!$A$16)","v":0},0,null,{"$f":"SUMIFS(AJ$9:AJ$208,PlanningIDEnlaces,$C130,$H$9:$H$208,Lists!$A$16)","v":0},0,null,{"$f":"SUMIFS(AM$9:AM$208,PlanningIDEnlaces,$C130,$H$9:$H$208,Lists!$A$16)","v":0},0,null,{"$f":"SUMIFS(AP$9:AP$208,PlanningIDEnlaces,$C130,$H$9:$H$208,Lists!$A$16)","v":0},0,null,{"$f":"IFERROR(INDEX(Lists!$F$5:$F$49,MATCH(Planning!C130,Lists!$G$5:$G$49,0),1),\"\")","v":""},null,{"$f":"IF(C130=0,\"\",\" [\"&INDEX(Lists!$H$5:$H$49,MATCH(C130,Lists!$G$5:$G$49,0),1)&\"]\")","v":""}]
["I123",{"$nulls":43},0,{"v":0,"d":"0.00"},null,null,{"$f":"SUMIFS(I$9:I$208,PlanningIDEnlaces,$C131,$H$9:$H$208,Lists!$A$16)","v":0},0,null,{"$f":"SUMIFS(L$9:L$208,PlanningIDEnlaces,$C131,$H$9:$H$208,Lists!$A$16)","v":0},0,null,{"$f":"SUMIFS(O$9:O$208,PlanningIDEnlaces,$C131,$H$9:$H$208,Lists!$A$16)","v":0},0,null,{"$f":"SUMIFS(R$9:R$208,PlanningIDEnlaces,$C131,$H$9:$H$208,Lists!$A$16)","v":0},0,null,{"$f":"SUMIFS(U$9:U$208,PlanningIDEnlaces,$C131,$H$9:$H$208,Lists!$A$16)","v":0},0,null,{"$f":"SUMIFS(X$9:X$208,PlanningIDEnlaces,$C131,$H$9:$H$208,Lists!$A$16)","v":0},0,null,{"$f":"SUMIFS(AA$9:AA$208,PlanningIDEnlaces,$C131,$H$9:$H$208,Lists!$A$16)","v":0},0,null,{"$f":"SUMIFS(AD$9:AD$208,PlanningIDEnlaces,$C131,$H$9:$H$208,Lists!$A$16)","v":0},0,null,{"$f":"SUMIFS(AG$9:AG$208,PlanningIDEnlaces,$C131,$H$9:$H$208,Lists!$A$16)","v":0},0,null,{"$f":"SUMIFS(AJ$9:AJ$208,PlanningIDEnlaces,$C131,$H$9:$H$208,Lists!$A$16)","v":0},0,null,{"$f":"SUMIFS(AM$9:AM$208,PlanningIDEnlaces,$C131,$H$9:$H$208,Lists!$A$16)","v":0},0,null,{"$f":"SUMIFS(AP$9:AP$208,PlanningIDEnlaces,$C131,$H$9:$H$208,Lists!$A$16)","v":0},0,null,{"$f":"IFERROR(INDEX(Lists!$F$5:$F$49,MATCH(Planning!C131,Lists!$G$5:$G$49,0),1),\"\")","v":""},null,{"$f":"IF(C131=0,\"\",\" [\"&INDEX(Lists!$H$5:$H$49,MATCH(C131,Lists!$G$5:$G$49,0),1)&\"]\")","v":""}]
["I124",{"$nulls":43},0,{"v":0,"d":"0.00"},null,null,{"$f":"SUMIFS(I$9:I$208,PlanningIDEnlaces,$C132,$H$9:$H$208,Lists!$A$16)","v":0},0,null,{"$f":"SUMIFS(L$9:L$208,PlanningIDEnlaces,$C132,$H$9:$H$208,Lists!$A$16)","v":0},0,null,{"$f":"SUMIFS(O$9:O$208,PlanningIDEnlaces,$C132,$H$9:$H$208,Lists!$A$16)","v":0},0,null,{"$f":"SUMIFS(R$9:R$208,PlanningIDEnlaces,$C132,$H$9:$H$208,Lists!$A$16)","v":0},0,null,{"$f":"SUMIFS(U$9:U$208,PlanningIDEnlaces,$C132,$H$9:$H$208,Lists!$A$16)","v":0},0,null,{"$f":"SUMIFS(X$9:X$208,PlanningIDEnlaces,$C132,$H$9:$H$208,Lists!$A$16)","v":0},0,null,{"$f":"SUMIFS(AA$9:AA$208,PlanningIDEnlaces,$C132,$H$9:$H$208,Lists!$A$16)","v":0},0,null,{"$f":"SUMIFS(AD$9:AD$208,PlanningIDEnlaces,$C132,$H$9:$H$208,Lists!$A$16)","v":0},0,null,{"$f":"SUMIFS(AG$9:AG$208,PlanningIDEnlaces,$C132,$H$9:$H$208,Lists!$A$16)","v":0},0,null,{"$f":"SUMIFS(AJ$9:AJ$208,PlanningIDEnlaces,$C132,$H$9:$H$208,Lists!$A$16)","v":0},0,null,{"$f":"SUMIFS(AM$9:AM$208,PlanningIDEnlaces,$C132,$H$9:$H$208,Lists!$A$16)","v":0},0,null,{"$f":"SUMIFS(AP$9:AP$208,PlanningIDEnlaces,$C132,$H$9:$H$208,Lists!$A$16)","v":0},0,null,{"$f":"IFERROR(INDEX(Lists!$F$5:$F$49,MATCH(Planning!C132,Lists!$G$5:$G$49,0),1),\"\")","v":""},null,{"$f":"IF(C132=0,\"\",\" [\"&INDEX(Lists!$H$5:$H$49,MATCH(C132,Lists!$G$5:$G$49,0),1)&\"]\")","v":""}]
["I125",{"$nulls":43},0,{"v":0,"d":"0.00"},null,null,{"$f":"SUMIFS(I$9:I$208,PlanningIDEnlaces,$C133,$H$9:$H$208,Lists!$A$16)","v":0},0,null,{"$f":"SUMIFS(L$9:L$208,PlanningIDEnlaces,$C133,$H$9:$H$208,Lists!$A$16)","v":0},0,null,{"$f":"SUMIFS(O$9:O$208,PlanningIDEnlaces,$C133,$H$9:$H$208,Lists!$A$16)","v":0},0,null,{"$f":"SUMIFS(R$9:R$208,PlanningIDEnlaces,$C133,$H$9:$H$208,Lists!$A$16)","v":0},0,null,{"$f":"SUMIFS(U$9:U$208,PlanningIDEnlaces,$C133,$H$9:$H$208,Lists!$A$16)","v":0},0,null,{"$f":"SUMIFS(X$9:X$208,PlanningIDEnlaces,$C133,$H$9:$H$208,Lists!$A$16)","v":0},0,null,{"$f":"SUMIFS(AA$9:AA$208,PlanningIDEnlaces,$C133,$H$9:$H$208,Lists!$A$16)","v":0},0,null,{"$f":"SUMIFS(AD$9:AD$208,PlanningIDEnlaces,$C133,$H$9:$H$208,Lists!$A$16)","v":0},0,null,{"$f":"SUMIFS(AG$9:AG$208,PlanningIDEnlaces,$C133,$H$9:$H$208,Lists!$A$16)","v":0},0,null,{"$f":"SUMIFS(AJ$9:AJ$208,PlanningIDEnlaces,$C133,$H$9:$H$208,Lists!$A$16)","v":0},0,null,{"$f":"SUMIFS(AM$9:AM$208,PlanningIDEnlaces,$C133,$H$9:$H$208,Lists!$A$16)","v":0},0,null,{"$f":"SUMIFS(AP$9:AP$208,PlanningIDEnlaces,$C133,$H$9:$H$208,Lists!$A$16)","v":0},0,null,{"$f":"IFERROR(INDEX(Lists!$F$5:$F$49,MATCH(Planning!C133,Lists!$G$5:$G$49,0),1),\"\")","v":""},null,{"$f":"IF(C133=0,\"\",\" [\"&INDEX(Lists!$H$5:$H$49,MATCH(C133,Lists!$G$5:$G$49,0),1)&\"]\")","v":""}]
["I126",{"$nulls":43},0,{"v":0,"d":"0.00"},null,null,{"$f":"SUMIFS(I$9:I$208,PlanningIDEnlaces,$C134,$H$9:$H$208,Lists!$A$16)","v":0},0,null,{"$f":"SUMIFS(L$9:L$208,PlanningIDEnlaces,$C134,$H$9:$H$208,Lists!$A$16)","v":0},0,null,{"$f":"SUMIFS(O$9:O$208,PlanningIDEnlaces,$C134,$H$9:$H$208,Lists!$A$16)","v":0},0,null,{"$f":"SUMIFS(R$9:R$208,PlanningIDEnlaces,$C134,$H$9:$H$208,Lists!$A$16)","v":0},0,null,{"$f":"SUMIFS(U$9:U$208,PlanningIDEnlaces,$C134,$H$9:$H$208,Lists!$A$16)","v":0},0,null,{"$f":"SUMIFS(X$9:X$208,PlanningIDEnlaces,$C134,$H$9:$H$208,Lists!$A$16)","v":0},0,null,{"$f":"SUMIFS(AA$9:AA$208,PlanningIDEnlaces,$C134,$H$9:$H$208,Lists!$A$16)","v":0},0,null,{"$f":"SUMIFS(AD$9:AD$208,PlanningIDEnlaces,$C134,$H$9:$H$208,Lists!$A$16)","v":0},0,null,{"$f":"SUMIFS(AG$9:AG$208,PlanningIDEnlaces,$C134,$H$9:$H$208,Lists!$A$16)","v":0},0,null,{"$f":"SUMIFS(AJ$9:AJ$208,PlanningIDEnlaces,$C134,$H$9:$H$208,Lists!$A$16)","v":0},0,null,{"$f":"SUMIFS(AM$9:AM$208,PlanningIDEnlaces,$C134,$H$9:$H$208,Lists!$A$16)","v":0},0,null,{"$f":"SUMIFS(AP$9:AP$208,PlanningIDEnlaces,$C134,$H$9:$H$208,Lists!$A$16)","v":0},0,null,{"$f":"IFERROR(INDEX(Lists!$F$5:$F$49,MATCH(Planning!C134,Lists!$G$5:$G$49,0),1),\"\")","v":""},null,{"$f":"IF(C134=0,\"\",\" [\"&INDEX(Lists!$H$5:$H$49,MATCH(C134,Lists!$G$5:$G$49,0),1)&\"]\")","v":""}]
["I127",{"$nulls":43},0,{"v":0,"d":"0.00"},null,null,{"$f":"SUMIFS(I$9:I$208,PlanningIDEnlaces,$C135,$H$9:$H$208,Lists!$A$16)","v":0},0,null,{"$f":"SUMIFS(L$9:L$208,PlanningIDEnlaces,$C135,$H$9:$H$208,Lists!$A$16)","v":0},0,null,{"$f":"SUMIFS(O$9:O$208,PlanningIDEnlaces,$C135,$H$9:$H$208,Lists!$A$16)","v":0},0,null,{"$f":"SUMIFS(R$9:R$208,PlanningIDEnlaces,$C135,$H$9:$H$208,Lists!$A$16)","v":0},0,null,{"$f":"SUMIFS(U$9:U$208,PlanningIDEnlaces,$C135,$H$9:$H$208,Lists!$A$16)","v":0},0,null,{"$f":"SUMIFS(X$9:X$208,PlanningIDEnlaces,$C135,$H$9:$H$208,Lists!$A$16)","v":0},0,null,{"$f":"SUMIFS(AA$9:AA$208,PlanningIDEnlaces,$C135,$H$9:$H$208,Lists!$A$16)","v":0},0,null,{"$f":"SUMIFS(AD$9:AD$208,PlanningIDEnlaces,$C135,$H$9:$H$208,Lists!$A$16)","v":0},0,null,{"$f":"SUMIFS(AG$9:AG$208,PlanningIDEnlaces,$C135,$H$9:$H$208,Lists!$A$16)","v":0},0,null,{"$f":"SUMIFS(AJ$9:AJ$208,PlanningIDEnlaces,$C135,$H$9:$H$208,Lists!$A$16)","v":0},0,null,{"$f":"SUMIFS(AM$9:AM$208,PlanningIDEnlaces,$C135,$H$9:$H$208,Lists!$A$16)","v":0},0,null,{"$f":"SUMIFS(AP$9:AP$208,PlanningIDEnlaces,$C135,$H$9:$H$208,Lists!$A$16)","v":0},0,null,{"$f":"IFERROR(INDEX(Lists!$F$5:$F$49,MATCH(Planning!C135,Lists!$G$5:$G$49,0),1),\"\")","v":""},null,{"$f":"IF(C135=0,\"\",\" [\"&INDEX(Lists!$H$5:$H$49,MATCH(C135,Lists!$G$5:$G$49,0),1)&\"]\")","v":""}]
["I128",{"$nulls":43},0,{"v":0,"d":"0.00"},null,null,{"$f":"SUMIFS(I$9:I$208,PlanningIDEnlaces,$C136,$H$9:$H$208,Lists!$A$16)","v":0},0,null,{"$f":"SUMIFS(L$9:L$208,PlanningIDEnlaces,$C136,$H$9:$H$208,Lists!$A$16)","v":0},0,null,{"$f":"SUMIFS(O$9:O$208,PlanningIDEnlaces,$C136,$H$9:$H$208,Lists!$A$16)","v":0},0,null,{"$f":"SUMIFS(R$9:R$208,PlanningIDEnlaces,$C136,$H$9:$H$208,Lists!$A$16)","v":0},0,null,{"$f":"SUMIFS(U$9:U$208,PlanningIDEnlaces,$C136,$H$9:$H$208,Lists!$A$16)","v":0},0,null,{"$f":"SUMIFS(X$9:X$208,PlanningIDEnlaces,$C136,$H$9:$H$208,Lists!$A$16)","v":0},0,null,{"$f":"SUMIFS(AA$9:AA$208,PlanningIDEnlaces,$C136,$H$9:$H$208,Lists!$A$16)","v":0},0,null,{"$f":"SUMIFS(AD$9:AD$208,PlanningIDEnlaces,$C136,$H$9:$H$208,Lists!$A$16)","v":0},0,null,{"$f":"SUMIFS(AG$9:AG$208,PlanningIDEnlaces,$C136,$H$9:$H$208,Lists!$A$16)","v":0},0,null,{"$f":"SUMIFS(AJ$9:AJ$208,PlanningIDEnlaces,$C136,$H$9:$H$208,Lists!$A$16)","v":0},0,null,{"$f":"SUMIFS(AM$9:AM$208,PlanningIDEnlaces,$C136,$H$9:$H$208,Lists!$A$16)","v":0},0,null,{"$f":"SUMIFS(AP$9:AP$208,PlanningIDEnlaces,$C136,$H$9:$H$208,Lists!$A$16)","v":0},0,null,{"$f":"IFERROR(INDEX(Lists!$F$5:$F$49,MATCH(Planning!C136,Lists!$G$5:$G$49,0),1),\"\")","v":""},null,{"$f":"IF(C136=0,\"\",\" [\"&INDEX(Lists!$H$5:$H$49,MATCH(C136,Lists!$G$5:$G$49,0),1)&\"]\")","v":""}]
["I129",{"$nulls":43},{"$f":"I137+L137+O137+R137+U137+X137+AA137+AD137+AG137+AJ137+AM137+AP137","v":0},{"$f":"J137+M137+P137+S137+V137+Y137+AB137+AE137+AH137+AK137+AN137+AQ137","v":{"v":0,"d":"0.00"}},null,null,{"$f":"SUMIFS(I$9:I$208,PlanningIDEnlaces,$C137,$H$9:$H$208,Lists!$A$16)","v":0},{"$f":"SUMIFS(J$9:J$208,PlanningIDEnlaces,$C137,$H$9:$H$208,\"<>\")","v":0},null,{"$f":"SUMIFS(L$9:L$208,PlanningIDEnlaces,$C137,$H$9:$H$208,Lists!$A$16)","v":0},{"$f":"SUMIFS(M$9:M$208,PlanningIDEnlaces,$C137,$H$9:$H$208,\"<>\")","v":0},null,{"$f":"SUMIFS(O$9:O$208,PlanningIDEnlaces,$C137,$H$9:$H$208,Lists!$A$16)","v":0},{"$f":"SUMIFS(P$9:P$208,PlanningIDEnlaces,$C137,$H$9:$H$208,\"<>\")","v":0},null,{"$f":"SUMIFS(R$9:R$208,PlanningIDEnlaces,$C137,$H$9:$H$208,Lists!$A$16)","v":0},{"$f":"SUMIFS(S$9:S$208,PlanningIDEnlaces,$C137,$H$9:$H$208,\"<>\")","v":0},null,{"$f":"SUMIFS(U$9:U$208,PlanningIDEnlaces,$C137,$H$9:$H$208,Lists!$A$16)","v":0},{"$f":"SUMIFS(V$9:V$208,PlanningIDEnlaces,$C137,$H$9:$H$208,\"<>\")","v":0},null,{"$f":"SUMIFS(X$9:X$208,PlanningIDEnlaces,$C137,$H$9:$H$208,Lists!$A$16)","v":0},{"$f":"SUMIFS(Y$9:Y$208,PlanningIDEnlaces,$C137,$H$9:$H$208,\"<>\")","v":0},null,{"$f":"SUMIFS(AA$9:AA$208,PlanningIDEnlaces,$C137,$H$9:$H$208,Lists!$A$16)","v":0},{"$f":"SUMIFS(AB$9:AB$208,PlanningIDEnlaces,$C137,$H$9:$H$208,\"<>\")","v":0},null,{"$f":"SUMIFS(AD$9:AD$208,PlanningIDEnlaces,$C137,$H$9:$H$208,Lists!$A$16)","v":0},{"$f":"SUMIFS(AE$9:AE$208,PlanningIDEnlaces,$C137,$H$9:$H$208,\"<>\")","v":0},null,{"$f":"SUMIFS(AG$9:AG$208,PlanningIDEnlaces,$C137,$H$9:$H$208,Lists!$A$16)","v":0},{"$f":"SUMIFS(AH$9:AH$208,PlanningIDEnlaces,$C137,$H$9:$H$208,\"<>\")","v":0},null,{"$f":"SUMIFS(AJ$9:AJ$208,PlanningIDEnlaces,$C137,$H$9:$H$208,Lists!$A$16)","v":0},{"$f":"SUMIFS(AK$9:AK$208,PlanningIDEnlaces,$C137,$H$9:$H$208,\"<>\")","v":0},null,{"$f":"SUMIFS(AM$9:AM$208,PlanningIDEnlaces,$C137,$H$9:$H$208,Lists!$A$16)","v":0},{"$f":"SUMIFS(AN$9:AN$208,PlanningIDEnlaces,$C137,$H$9:$H$208,\"<>\")","v":0},null,{"$f":"SUMIFS(AP$9:AP$208,PlanningIDEnlaces,$C137,$H$9:$H$208,Lists!$A$16)","v":0},{"$f":"SUMIFS(AQ$9:AQ$208,PlanningIDEnlaces,$C137,$H$9:$H$208,\"<>\")","v":0},null,{"$f":"IFERROR(INDEX(Lists!$F$5:$F$49,MATCH(Planning!C137,Lists!$G$5:$G$49,0),1),\"\")","v":""},null,{"$f":"IF(C137=0,\"\",\" [\"&INDEX(Lists!$H$5:$H$49,MATCH(C137,Lists!$G$5:$G$49,0),1)&\"]\")","v":""}]
["I130",{"$nulls":43},0,{"v":0,"d":"0.00"},null,null,{"$f":"SUMIFS(I$9:I$208,PlanningIDEnlaces,$C138,$H$9:$H$208,Lists!$A$16)","v":0},0,null,{"$f":"SUMIFS(L$9:L$208,PlanningIDEnlaces,$C138,$H$9:$H$208,Lists!$A$16)","v":0},0,null,{"$f":"SUMIFS(O$9:O$208,PlanningIDEnlaces,$C138,$H$9:$H$208,Lists!$A$16)","v":0},0,null,{"$f":"SUMIFS(R$9:R$208,PlanningIDEnlaces,$C138,$H$9:$H$208,Lists!$A$16)","v":0},0,null,{"$f":"SUMIFS(U$9:U$208,PlanningIDEnlaces,$C138,$H$9:$H$208,Lists!$A$16)","v":0},0,null,{"$f":"SUMIFS(X$9:X$208,PlanningIDEnlaces,$C138,$H$9:$H$208,Lists!$A$16)","v":0},0,null,{"$f":"SUMIFS(AA$9:AA$208,PlanningIDEnlaces,$C138,$H$9:$H$208,Lists!$A$16)","v":0},0,null,{"$f":"SUMIFS(AD$9:AD$208,PlanningIDEnlaces,$C138,$H$9:$H$208,Lists!$A$16)","v":0},0,null,{"$f":"SUMIFS(AG$9:AG$208,PlanningIDEnlaces,$C138,$H$9:$H$208,Lists!$A$16)","v":0},0,null,{"$f":"SUMIFS(AJ$9:AJ$208,PlanningIDEnlaces,$C138,$H$9:$H$208,Lists!$A$16)","v":0},0,null,{"$f":"SUMIFS(AM$9:AM$208,PlanningIDEnlaces,$C138,$H$9:$H$208,Lists!$A$16)","v":0},0,null,{"$f":"SUMIFS(AP$9:AP$208,PlanningIDEnlaces,$C138,$H$9:$H$208,Lists!$A$16)","v":0},0,null,{"$f":"IFERROR(INDEX(Lists!$F$5:$F$49,MATCH(Planning!C138,Lists!$G$5:$G$49,0),1),\"\")","v":""},null,{"$f":"IF(C138=0,\"\",\" [\"&INDEX(Lists!$H$5:$H$49,MATCH(C138,Lists!$G$5:$G$49,0),1)&\"]\")","v":""}]
["I131",{"$nulls":43},0,{"v":0,"d":"0.00"},null,null,{"$f":"SUMIFS(I$9:I$208,PlanningIDEnlaces,$C139,$H$9:$H$208,Lists!$A$16)","v":0},0,null,{"$f":"SUMIFS(L$9:L$208,PlanningIDEnlaces,$C139,$H$9:$H$208,Lists!$A$16)","v":0},0,null,{"$f":"SUMIFS(O$9:O$208,PlanningIDEnlaces,$C139,$H$9:$H$208,Lists!$A$16)","v":0},0,null,{"$f":"SUMIFS(R$9:R$208,PlanningIDEnlaces,$C139,$H$9:$H$208,Lists!$A$16)","v":0},0,null,{"$f":"SUMIFS(U$9:U$208,PlanningIDEnlaces,$C139,$H$9:$H$208,Lists!$A$16)","v":0},0,null,{"$f":"SUMIFS(X$9:X$208,PlanningIDEnlaces,$C139,$H$9:$H$208,Lists!$A$16)","v":0},0,null,{"$f":"SUMIFS(AA$9:AA$208,PlanningIDEnlaces,$C139,$H$9:$H$208,Lists!$A$16)","v":0},0,null,{"$f":"SUMIFS(AD$9:AD$208,PlanningIDEnlaces,$C139,$H$9:$H$208,Lists!$A$16)","v":0},0,null,{"$f":"SUMIFS(AG$9:AG$208,PlanningIDEnlaces,$C139,$H$9:$H$208,Lists!$A$16)","v":0},0,null,{"$f":"SUMIFS(AJ$9:AJ$208,PlanningIDEnlaces,$C139,$H$9:$H$208,Lists!$A$16)","v":0},0,null,{"$f":"SUMIFS(AM$9:AM$208,PlanningIDEnlaces,$C139,$H$9:$H$208,Lists!$A$16)","v":0},0,null,{"$f":"SUMIFS(AP$9:AP$208,PlanningIDEnlaces,$C139,$H$9:$H$208,Lists!$A$16)","v":0},0,null,{"$f":"IFERROR(INDEX(Lists!$F$5:$F$49,MATCH(Planning!C139,Lists!$G$5:$G$49,0),1),\"\")","v":""},null,{"$f":"IF(C139=0,\"\",\" [\"&INDEX(Lists!$H$5:$H$49,MATCH(C139,Lists!$G$5:$G$49,0),1)&\"]\")","v":""}]
["I132",{"$nulls":43},0,{"v":0,"d":"0.00"},null,null,{"$f":"SUMIFS(I$9:I$208,PlanningIDEnlaces,$C140,$H$9:$H$208,Lists!$A$16)","v":0},0,null,{"$f":"SUMIFS(L$9:L$208,PlanningIDEnlaces,$C140,$H$9:$H$208,Lists!$A$16)","v":0},0,null,{"$f":"SUMIFS(O$9:O$208,PlanningIDEnlaces,$C140,$H$9:$H$208,Lists!$A$16)","v":0},0,null,{"$f":"SUMIFS(R$9:R$208,PlanningIDEnlaces,$C140,$H$9:$H$208,Lists!$A$16)","v":0},0,null,{"$f":"SUMIFS(U$9:U$208,PlanningIDEnlaces,$C140,$H$9:$H$208,Lists!$A$16)","v":0},0,null,{"$f":"SUMIFS(X$9:X$208,PlanningIDEnlaces,$C140,$H$9:$H$208,Lists!$A$16)","v":0},0,null,{"$f":"SUMIFS(AA$9:AA$208,PlanningIDEnlaces,$C140,$H$9:$H$208,Lists!$A$16)","v":0},0,null,{"$f":"SUMIFS(AD$9:AD$208,PlanningIDEnlaces,$C140,$H$9:$H$208,Lists!$A$16)","v":0},0,null,{"$f":"SUMIFS(AG$9:AG$208,PlanningIDEnlaces,$C140,$H$9:$H$208,Lists!$A$16)","v":0},0,null,{"$f":"SUMIFS(AJ$9:AJ$208,PlanningIDEnlaces,$C140,$H$9:$H$208,Lists!$A$16)","v":0},0,null,{"$f":"SUMIFS(AM$9:AM$208,PlanningIDEnlaces,$C140,$H$9:$H$208,Lists!$A$16)","v":0},0,null,{"$f":"SUMIFS(AP$9:AP$208,PlanningIDEnlaces,$C140,$H$9:$H$208,Lists!$A$16)","v":0},0,null,{"$f":"IFERROR(INDEX(Lists!$F$5:$F$49,MATCH(Planning!C140,Lists!$G$5:$G$49,0),1),\"\")","v":""},null,{"$f":"IF(C140=0,\"\",\" [\"&INDEX(Lists!$H$5:$H$49,MATCH(C140,Lists!$G$5:$G$49,0),1)&\"]\")","v":""}]
["I133",{"$nulls":43},0,{"v":0,"d":"0.00"},null,null,{"$f":"SUMIFS(I$9:I$208,PlanningIDEnlaces,$C141,$H$9:$H$208,Lists!$A$16)","v":0},0,null,{"$f":"SUMIFS(L$9:L$208,PlanningIDEnlaces,$C141,$H$9:$H$208,Lists!$A$16)","v":0},0,null,{"$f":"SUMIFS(O$9:O$208,PlanningIDEnlaces,$C141,$H$9:$H$208,Lists!$A$16)","v":0},0,null,{"$f":"SUMIFS(R$9:R$208,PlanningIDEnlaces,$C141,$H$9:$H$208,Lists!$A$16)","v":0},0,null,{"$f":"SUMIFS(U$9:U$208,PlanningIDEnlaces,$C141,$H$9:$H$208,Lists!$A$16)","v":0},0,null,{"$f":"SUMIFS(X$9:X$208,PlanningIDEnlaces,$C141,$H$9:$H$208,Lists!$A$16)","v":0},0,null,{"$f":"SUMIFS(AA$9:AA$208,PlanningIDEnlaces,$C141,$H$9:$H$208,Lists!$A$16)","v":0},0,null,{"$f":"SUMIFS(AD$9:AD$208,PlanningIDEnlaces,$C141,$H$9:$H$208,Lists!$A$16)","v":0},0,null,{"$f":"SUMIFS(AG$9:AG$208,PlanningIDEnlaces,$C141,$H$9:$H$208,Lists!$A$16)","v":0},0,null,{"$f":"SUMIFS(AJ$9:AJ$208,PlanningIDEnlaces,$C141,$H$9:$H$208,Lists!$A$16)","v":0},0,null,{"$f":"SUMIFS(AM$9:AM$208,PlanningIDEnlaces,$C141,$H$9:$H$208,Lists!$A$16)","v":0},0,null,{"$f":"SUMIFS(AP$9:AP$208,PlanningIDEnlaces,$C141,$H$9:$H$208,Lists!$A$16)","v":0},0,null,{"$f":"IFERROR(INDEX(Lists!$F$5:$F$49,MATCH(Planning!C141,Lists!$G$5:$G$49,0),1),\"\")","v":""},null,{"$f":"IF(C141=0,\"\",\" [\"&INDEX(Lists!$H$5:$H$49,MATCH(C141,Lists!$G$5:$G$49,0),1)&\"]\")","v":""}]
["I134",{"$nulls":43},0,{"v":0,"d":"0.00"},null,null,{"$f":"SUMIFS(I$9:I$208,PlanningIDEnlaces,$C142,$H$9:$H$208,Lists!$A$16)","v":0},0,null,{"$f":"SUMIFS(L$9:L$208,PlanningIDEnlaces,$C142,$H$9:$H$208,Lists!$A$16)","v":0},0,null,{"$f":"SUMIFS(O$9:O$208,PlanningIDEnlaces,$C142,$H$9:$H$208,Lists!$A$16)","v":0},0,null,{"$f":"SUMIFS(R$9:R$208,PlanningIDEnlaces,$C142,$H$9:$H$208,Lists!$A$16)","v":0},0,null,{"$f":"SUMIFS(U$9:U$208,PlanningIDEnlaces,$C142,$H$9:$H$208,Lists!$A$16)","v":0},0,null,{"$f":"SUMIFS(X$9:X$208,PlanningIDEnlaces,$C142,$H$9:$H$208,Lists!$A$16)","v":0},0,null,{"$f":"SUMIFS(AA$9:AA$208,PlanningIDEnlaces,$C142,$H$9:$H$208,Lists!$A$16)","v":0},0,null,{"$f":"SUMIFS(AD$9:AD$208,PlanningIDEnlaces,$C142,$H$9:$H$208,Lists!$A$16)","v":0},0,null,{"$f":"SUMIFS(AG$9:AG$208,PlanningIDEnlaces,$C142,$H$9:$H$208,Lists!$A$16)","v":0},0,null,{"$f":"SUMIFS(AJ$9:AJ$208,PlanningIDEnlaces,$C142,$H$9:$H$208,Lists!$A$16)","v":0},0,null,{"$f":"SUMIFS(AM$9:AM$208,PlanningIDEnlaces,$C142,$H$9:$H$208,Lists!$A$16)","v":0},0,null,{"$f":"SUMIFS(AP$9:AP$208,PlanningIDEnlaces,$C142,$H$9:$H$208,Lists!$A$16)","v":0},0,null,{"$f":"IFERROR(INDEX(Lists!$F$5:$F$49,MATCH(Planning!C142,Lists!$G$5:$G$49,0),1),\"\")","v":""},null,{"$f":"IF(C142=0,\"\",\" [\"&INDEX(Lists!$H$5:$H$49,MATCH(C142,Lists!$G$5:$G$49,0),1)&\"]\")","v":""}]
["I135",{"$nulls":43},0,{"v":0,"d":"0.00"},null,null,{"$f":"SUMIFS(I$9:I$208,PlanningIDEnlaces,$C143,$H$9:$H$208,Lists!$A$16)","v":0},0,null,{"$f":"SUMIFS(L$9:L$208,PlanningIDEnlaces,$C143,$H$9:$H$208,Lists!$A$16)","v":0},0,null,{"$f":"SUMIFS(O$9:O$208,PlanningIDEnlaces,$C143,$H$9:$H$208,Lists!$A$16)","v":0},0,null,{"$f":"SUMIFS(R$9:R$208,PlanningIDEnlaces,$C143,$H$9:$H$208,Lists!$A$16)","v":0},0,null,{"$f":"SUMIFS(U$9:U$208,PlanningIDEnlaces,$C143,$H$9:$H$208,Lists!$A$16)","v":0},0,null,{"$f":"SUMIFS(X$9:X$208,PlanningIDEnlaces,$C143,$H$9:$H$208,Lists!$A$16)","v":0},0,null,{"$f":"SUMIFS(AA$9:AA$208,PlanningIDEnlaces,$C143,$H$9:$H$208,Lists!$A$16)","v":0},0,null,{"$f":"SUMIFS(AD$9:AD$208,PlanningIDEnlaces,$C143,$H$9:$H$208,Lists!$A$16)","v":0},0,null,{"$f":"SUMIFS(AG$9:AG$208,PlanningIDEnlaces,$C143,$H$9:$H$208,Lists!$A$16)","v":0},0,null,{"$f":"SUMIFS(AJ$9:AJ$208,PlanningIDEnlaces,$C143,$H$9:$H$208,Lists!$A$16)","v":0},0,null,{"$f":"SUMIFS(AM$9:AM$208,PlanningIDEnlaces,$C143,$H$9:$H$208,Lists!$A$16)","v":0},0,null,{"$f":"SUMIFS(AP$9:AP$208,PlanningIDEnlaces,$C143,$H$9:$H$208,Lists!$A$16)","v":0},0,null,{"$f":"IFERROR(INDEX(Lists!$F$5:$F$49,MATCH(Planning!C143,Lists!$G$5:$G$49,0),1),\"\")","v":""},null,{"$f":"IF(C143=0,\"\",\" [\"&INDEX(Lists!$H$5:$H$49,MATCH(C143,Lists!$G$5:$G$49,0),1)&\"]\")","v":""}]
["I136",{"$nulls":43},0,{"v":0,"d":"0.00"},null,null,{"$f":"SUMIFS(I$9:I$208,PlanningIDEnlaces,$C144,$H$9:$H$208,Lists!$A$16)","v":0},0,null,{"$f":"SUMIFS(L$9:L$208,PlanningIDEnlaces,$C144,$H$9:$H$208,Lists!$A$16)","v":0},0,null,{"$f":"SUMIFS(O$9:O$208,PlanningIDEnlaces,$C144,$H$9:$H$208,Lists!$A$16)","v":0},0,null,{"$f":"SUMIFS(R$9:R$208,PlanningIDEnlaces,$C144,$H$9:$H$208,Lists!$A$16)","v":0},0,null,{"$f":"SUMIFS(U$9:U$208,PlanningIDEnlaces,$C144,$H$9:$H$208,Lists!$A$16)","v":0},0,null,{"$f":"SUMIFS(X$9:X$208,PlanningIDEnlaces,$C144,$H$9:$H$208,Lists!$A$16)","v":0},0,null,{"$f":"SUMIFS(AA$9:AA$208,PlanningIDEnlaces,$C144,$H$9:$H$208,Lists!$A$16)","v":0},0,null,{"$f":"SUMIFS(AD$9:AD$208,PlanningIDEnlaces,$C144,$H$9:$H$208,Lists!$A$16)","v":0},0,null,{"$f":"SUMIFS(AG$9:AG$208,PlanningIDEnlaces,$C144,$H$9:$H$208,Lists!$A$16)","v":0},0,null,{"$f":"SUMIFS(AJ$9:AJ$208,PlanningIDEnlaces,$C144,$H$9:$H$208,Lists!$A$16)","v":0},0,null,{"$f":"SUMIFS(AM$9:AM$208,PlanningIDEnlaces,$C144,$H$9:$H$208,Lists!$A$16)","v":0},0,null,{"$f":"SUMIFS(AP$9:AP$208,PlanningIDEnlaces,$C144,$H$9:$H$208,Lists!$A$16)","v":0},0,null,{"$f":"IFERROR(INDEX(Lists!$F$5:$F$49,MATCH(Planning!C144,Lists!$G$5:$G$49,0),1),\"\")","v":""},null,{"$f":"IF(C144=0,\"\",\" [\"&INDEX(Lists!$H$5:$H$49,MATCH(C144,Lists!$G$5:$G$49,0),1)&\"]\")","v":""}]
["I137",{"$nulls":43},0,{"v":0,"d":"0.00"},null,null,{"$f":"SUMIFS(I$9:I$208,PlanningIDEnlaces,$C145,$H$9:$H$208,Lists!$A$16)","v":0},0,null,{"$f":"SUMIFS(L$9:L$208,PlanningIDEnlaces,$C145,$H$9:$H$208,Lists!$A$16)","v":0},0,null,{"$f":"SUMIFS(O$9:O$208,PlanningIDEnlaces,$C145,$H$9:$H$208,Lists!$A$16)","v":0},0,null,{"$f":"SUMIFS(R$9:R$208,PlanningIDEnlaces,$C145,$H$9:$H$208,Lists!$A$16)","v":0},0,null,{"$f":"SUMIFS(U$9:U$208,PlanningIDEnlaces,$C145,$H$9:$H$208,Lists!$A$16)","v":0},0,null,{"$f":"SUMIFS(X$9:X$208,PlanningIDEnlaces,$C145,$H$9:$H$208,Lists!$A$16)","v":0},0,null,{"$f":"SUMIFS(AA$9:AA$208,PlanningIDEnlaces,$C145,$H$9:$H$208,Lists!$A$16)","v":0},0,null,{"$f":"SUMIFS(AD$9:AD$208,PlanningIDEnlaces,$C145,$H$9:$H$208,Lists!$A$16)","v":0},0,null,{"$f":"SUMIFS(AG$9:AG$208,PlanningIDEnlaces,$C145,$H$9:$H$208,Lists!$A$16)","v":0},0,null,{"$f":"SUMIFS(AJ$9:AJ$208,PlanningIDEnlaces,$C145,$H$9:$H$208,Lists!$A$16)","v":0},0,null,{"$f":"SUMIFS(AM$9:AM$208,PlanningIDEnlaces,$C145,$H$9:$H$208,Lists!$A$16)","v":0},0,null,{"$f":"SUMIFS(AP$9:AP$208,PlanningIDEnlaces,$C145,$H$9:$H$208,Lists!$A$16)","v":0},0,null,{"$f":"IFERROR(INDEX(Lists!$F$5:$F$49,MATCH(Planning!C145,Lists!$G$5:$G$49,0),1),\"\")","v":""},null,{"$f":"IF(C145=0,\"\",\" [\"&INDEX(Lists!$H$5:$H$49,MATCH(C145,Lists!$G$5:$G$49,0),1)&\"]\")","v":""}]
["I138",{"$nulls":43},0,{"v":0,"d":"0.00"},null,null,{"$f":"SUMIFS(I$9:I$208,PlanningIDEnlaces,$C146,$H$9:$H$208,Lists!$A$16)","v":0},0,null,{"$f":"SUMIFS(L$9:L$208,PlanningIDEnlaces,$C146,$H$9:$H$208,Lists!$A$16)","v":0},0,null,{"$f":"SUMIFS(O$9:O$208,PlanningIDEnlaces,$C146,$H$9:$H$208,Lists!$A$16)","v":0},0,null,{"$f":"SUMIFS(R$9:R$208,PlanningIDEnlaces,$C146,$H$9:$H$208,Lists!$A$16)","v":0},0,null,{"$f":"SUMIFS(U$9:U$208,PlanningIDEnlaces,$C146,$H$9:$H$208,Lists!$A$16)","v":0},0,null,{"$f":"SUMIFS(X$9:X$208,PlanningIDEnlaces,$C146,$H$9:$H$208,Lists!$A$16)","v":0},0,null,{"$f":"SUMIFS(AA$9:AA$208,PlanningIDEnlaces,$C146,$H$9:$H$208,Lists!$A$16)","v":0},0,null,{"$f":"SUMIFS(AD$9:AD$208,PlanningIDEnlaces,$C146,$H$9:$H$208,Lists!$A$16)","v":0},0,null,{"$f":"SUMIFS(AG$9:AG$208,PlanningIDEnlaces,$C146,$H$9:$H$208,Lists!$A$16)","v":0},0,null,{"$f":"SUMIFS(AJ$9:AJ$208,PlanningIDEnlaces,$C146,$H$9:$H$208,Lists!$A$16)","v":0},0,null,{"$f":"SUMIFS(AM$9:AM$208,PlanningIDEnlaces,$C146,$H$9:$H$208,Lists!$A$16)","v":0},0,null,{"$f":"SUMIFS(AP$9:AP$208,PlanningIDEnlaces,$C146,$H$9:$H$208,Lists!$A$16)","v":0},0,null,{"$f":"IFERROR(INDEX(Lists!$F$5:$F$49,MATCH(Planning!C146,Lists!$G$5:$G$49,0),1),\"\")","v":""},null,{"$f":"IF(C146=0,\"\",\" [\"&INDEX(Lists!$H$5:$H$49,MATCH(C146,Lists!$G$5:$G$49,0),1)&\"]\")","v":""}]
["I139",{"$nulls":43},0,{"v":0,"d":"0.00"},null,null,{"$f":"SUMIFS(I$9:I$208,PlanningIDEnlaces,$C147,$H$9:$H$208,Lists!$A$16)","v":0},0,null,{"$f":"SUMIFS(L$9:L$208,PlanningIDEnlaces,$C147,$H$9:$H$208,Lists!$A$16)","v":0},0,null,{"$f":"SUMIFS(O$9:O$208,PlanningIDEnlaces,$C147,$H$9:$H$208,Lists!$A$16)","v":0},0,null,{"$f":"SUMIFS(R$9:R$208,PlanningIDEnlaces,$C147,$H$9:$H$208,Lists!$A$16)","v":0},0,null,{"$f":"SUMIFS(U$9:U$208,PlanningIDEnlaces,$C147,$H$9:$H$208,Lists!$A$16)","v":0},0,null,{"$f":"SUMIFS(X$9:X$208,PlanningIDEnlaces,$C147,$H$9:$H$208,Lists!$A$16)","v":0},0,null,{"$f":"SUMIFS(AA$9:AA$208,PlanningIDEnlaces,$C147,$H$9:$H$208,Lists!$A$16)","v":0},0,null,{"$f":"SUMIFS(AD$9:AD$208,PlanningIDEnlaces,$C147,$H$9:$H$208,Lists!$A$16)","v":0},0,null,{"$f":"SUMIFS(AG$9:AG$208,PlanningIDEnlaces,$C147,$H$9:$H$208,Lists!$A$16)","v":0},0,null,{"$f":"SUMIFS(AJ$9:AJ$208,PlanningIDEnlaces,$C147,$H$9:$H$208,Lists!$A$16)","v":0},0,null,{"$f":"SUMIFS(AM$9:AM$208,PlanningIDEnlaces,$C147,$H$9:$H$208,Lists!$A$16)","v":0},0,null,{"$f":"SUMIFS(AP$9:AP$208,PlanningIDEnlaces,$C147,$H$9:$H$208,Lists!$A$16)","v":0},0,null,{"$f":"IFERROR(INDEX(Lists!$F$5:$F$49,MATCH(Planning!C147,Lists!$G$5:$G$49,0),1),\"\")","v":""},null,{"$f":"IF(C147=0,\"\",\" [\"&INDEX(Lists!$H$5:$H$49,MATCH(C147,Lists!$G$5:$G$49,0),1)&\"]\")","v":""}]
["I140",{"$nulls":43},0,{"v":0,"d":"0.00"},null,null,{"$f":"SUMIFS(I$9:I$208,PlanningIDEnlaces,$C148,$H$9:$H$208,Lists!$A$16)","v":0},0,null,{"$f":"SUMIFS(L$9:L$208,PlanningIDEnlaces,$C148,$H$9:$H$208,Lists!$A$16)","v":0},0,null,{"$f":"SUMIFS(O$9:O$208,PlanningIDEnlaces,$C148,$H$9:$H$208,Lists!$A$16)","v":0},0,null,{"$f":"SUMIFS(R$9:R$208,PlanningIDEnlaces,$C148,$H$9:$H$208,Lists!$A$16)","v":0},0,null,{"$f":"SUMIFS(U$9:U$208,PlanningIDEnlaces,$C148,$H$9:$H$208,Lists!$A$16)","v":0},0,null,{"$f":"SUMIFS(X$9:X$208,PlanningIDEnlaces,$C148,$H$9:$H$208,Lists!$A$16)","v":0},0,null,{"$f":"SUMIFS(AA$9:AA$208,PlanningIDEnlaces,$C148,$H$9:$H$208,Lists!$A$16)","v":0},0,null,{"$f":"SUMIFS(AD$9:AD$208,PlanningIDEnlaces,$C148,$H$9:$H$208,Lists!$A$16)","v":0},0,null,{"$f":"SUMIFS(AG$9:AG$208,PlanningIDEnlaces,$C148,$H$9:$H$208,Lists!$A$16)","v":0},0,null,{"$f":"SUMIFS(AJ$9:AJ$208,PlanningIDEnlaces,$C148,$H$9:$H$208,Lists!$A$16)","v":0},0,null,{"$f":"SUMIFS(AM$9:AM$208,PlanningIDEnlaces,$C148,$H$9:$H$208,Lists!$A$16)","v":0},0,null,{"$f":"SUMIFS(AP$9:AP$208,PlanningIDEnlaces,$C148,$H$9:$H$208,Lists!$A$16)","v":0},0,null,{"$f":"IFERROR(INDEX(Lists!$F$5:$F$49,MATCH(Planning!C148,Lists!$G$5:$G$49,0),1),\"\")","v":""},null,{"$f":"IF(C148=0,\"\",\" [\"&INDEX(Lists!$H$5:$H$49,MATCH(C148,Lists!$G$5:$G$49,0),1)&\"]\")","v":""}]
["I141",{"$nulls":43},0,{"v":0,"d":"0.00"},null,null,{"$f":"SUMIFS(I$9:I$208,PlanningIDEnlaces,$C149,$H$9:$H$208,Lists!$A$16)","v":0},0,null,{"$f":"SUMIFS(L$9:L$208,PlanningIDEnlaces,$C149,$H$9:$H$208,Lists!$A$16)","v":0},0,null,{"$f":"SUMIFS(O$9:O$208,PlanningIDEnlaces,$C149,$H$9:$H$208,Lists!$A$16)","v":0},0,null,{"$f":"SUMIFS(R$9:R$208,PlanningIDEnlaces,$C149,$H$9:$H$208,Lists!$A$16)","v":0},0,null,{"$f":"SUMIFS(U$9:U$208,PlanningIDEnlaces,$C149,$H$9:$H$208,Lists!$A$16)","v":0},0,null,{"$f":"SUMIFS(X$9:X$208,PlanningIDEnlaces,$C149,$H$9:$H$208,Lists!$A$16)","v":0},0,null,{"$f":"SUMIFS(AA$9:AA$208,PlanningIDEnlaces,$C149,$H$9:$H$208,Lists!$A$16)","v":0},0,null,{"$f":"SUMIFS(AD$9:AD$208,PlanningIDEnlaces,$C149,$H$9:$H$208,Lists!$A$16)","v":0},0,null,{"$f":"SUMIFS(AG$9:AG$208,PlanningIDEnlaces,$C149,$H$9:$H$208,Lists!$A$16)","v":0},0,null,{"$f":"SUMIFS(AJ$9:AJ$208,PlanningIDEnlaces,$C149,$H$9:$H$208,Lists!$A$16)","v":0},0,null,{"$f":"SUMIFS(AM$9:AM$208,PlanningIDEnlaces,$C149,$H$9:$H$208,Lists!$A$16)","v":0},0,null,{"$f":"SUMIFS(AP$9:AP$208,PlanningIDEnlaces,$C149,$H$9:$H$208,Lists!$A$16)","v":0},0,null,{"$f":"IFERROR(INDEX(Lists!$F$5:$F$49,MATCH(Planning!C149,Lists!$G$5:$G$49,0),1),\"\")","v":""},null,{"$f":"IF(C149=0,\"\",\" [\"&INDEX(Lists!$H$5:$H$49,MATCH(C149,Lists!$G$5:$G$49,0),1)&\"]\")","v":""}]
["I142",{"$nulls":43},0,{"v":0,"d":"0.00"},null,null,{"$f":"SUMIFS(I$9:I$208,PlanningIDEnlaces,$C150,$H$9:$H$208,Lists!$A$16)","v":0},0,null,{"$f":"SUMIFS(L$9:L$208,PlanningIDEnlaces,$C150,$H$9:$H$208,Lists!$A$16)","v":0},0,null,{"$f":"SUMIFS(O$9:O$208,PlanningIDEnlaces,$C150,$H$9:$H$208,Lists!$A$16)","v":0},0,null,{"$f":"SUMIFS(R$9:R$208,PlanningIDEnlaces,$C150,$H$9:$H$208,Lists!$A$16)","v":0},0,null,{"$f":"SUMIFS(U$9:U$208,PlanningIDEnlaces,$C150,$H$9:$H$208,Lists!$A$16)","v":0},0,null,{"$f":"SUMIFS(X$9:X$208,PlanningIDEnlaces,$C150,$H$9:$H$208,Lists!$A$16)","v":0},0,null,{"$f":"SUMIFS(AA$9:AA$208,PlanningIDEnlaces,$C150,$H$9:$H$208,Lists!$A$16)","v":0},0,null,{"$f":"SUMIFS(AD$9:AD$208,PlanningIDEnlaces,$C150,$H$9:$H$208,Lists!$A$16)","v":0},0,null,{"$f":"SUMIFS(AG$9:AG$208,PlanningIDEnlaces,$C150,$H$9:$H$208,Lists!$A$16)","v":0},0,null,{"$f":"SUMIFS(AJ$9:AJ$208,PlanningIDEnlaces,$C150,$H$9:$H$208,Lists!$A$16)","v":0},0,null,{"$f":"SUMIFS(AM$9:AM$208,PlanningIDEnlaces,$C150,$H$9:$H$208,Lists!$A$16)","v":0},0,null,{"$f":"SUMIFS(AP$9:AP$208,PlanningIDEnlaces,$C150,$H$9:$H$208,Lists!$A$16)","v":0},0,null,{"$f":"IFERROR(INDEX(Lists!$F$5:$F$49,MATCH(Planning!C150,Lists!$G$5:$G$49,0),1),\"\")","v":""},null,{"$f":"IF(C150=0,\"\",\" [\"&INDEX(Lists!$H$5:$H$49,MATCH(C150,Lists!$G$5:$G$49,0),1)&\"]\")","v":""}]
["I143",{"$nulls":43},0,{"v":0,"d":"0.00"},null,null,{"$f":"SUMIFS(I$9:I$208,PlanningIDEnlaces,$C151,$H$9:$H$208,Lists!$A$16)","v":0},0,null,{"$f":"SUMIFS(L$9:L$208,PlanningIDEnlaces,$C151,$H$9:$H$208,Lists!$A$16)","v":0},0,null,{"$f":"SUMIFS(O$9:O$208,PlanningIDEnlaces,$C151,$H$9:$H$208,Lists!$A$16)","v":0},0,null,{"$f":"SUMIFS(R$9:R$208,PlanningIDEnlaces,$C151,$H$9:$H$208,Lists!$A$16)","v":0},0,null,{"$f":"SUMIFS(U$9:U$208,PlanningIDEnlaces,$C151,$H$9:$H$208,Lists!$A$16)","v":0},0,null,{"$f":"SUMIFS(X$9:X$208,PlanningIDEnlaces,$C151,$H$9:$H$208,Lists!$A$16)","v":0},0,null,{"$f":"SUMIFS(AA$9:AA$208,PlanningIDEnlaces,$C151,$H$9:$H$208,Lists!$A$16)","v":0},0,null,{"$f":"SUMIFS(AD$9:AD$208,PlanningIDEnlaces,$C151,$H$9:$H$208,Lists!$A$16)","v":0},0,null,{"$f":"SUMIFS(AG$9:AG$208,PlanningIDEnlaces,$C151,$H$9:$H$208,Lists!$A$16)","v":0},0,null,{"$f":"SUMIFS(AJ$9:AJ$208,PlanningIDEnlaces,$C151,$H$9:$H$208,Lists!$A$16)","v":0},0,null,{"$f":"SUMIFS(AM$9:AM$208,PlanningIDEnlaces,$C151,$H$9:$H$208,Lists!$A$16)","v":0},0,null,{"$f":"SUMIFS(AP$9:AP$208,PlanningIDEnlaces,$C151,$H$9:$H$208,Lists!$A$16)","v":0},0,null,{"$f":"IFERROR(INDEX(Lists!$F$5:$F$49,MATCH(Planning!C151,Lists!$G$5:$G$49,0),1),\"\")","v":""},null,{"$f":"IF(C151=0,\"\",\" [\"&INDEX(Lists!$H$5:$H$49,MATCH(C151,Lists!$G$5:$G$49,0),1)&\"]\")","v":""}]
["I144",{"$nulls":43},0,{"v":0,"d":"0.00"},null,null,{"$f":"SUMIFS(I$9:I$208,PlanningIDEnlaces,$C152,$H$9:$H$208,Lists!$A$16)","v":0},0,null,{"$f":"SUMIFS(L$9:L$208,PlanningIDEnlaces,$C152,$H$9:$H$208,Lists!$A$16)","v":0},0,null,{"$f":"SUMIFS(O$9:O$208,PlanningIDEnlaces,$C152,$H$9:$H$208,Lists!$A$16)","v":0},0,null,{"$f":"SUMIFS(R$9:R$208,PlanningIDEnlaces,$C152,$H$9:$H$208,Lists!$A$16)","v":0},0,null,{"$f":"SUMIFS(U$9:U$208,PlanningIDEnlaces,$C152,$H$9:$H$208,Lists!$A$16)","v":0},0,null,{"$f":"SUMIFS(X$9:X$208,PlanningIDEnlaces,$C152,$H$9:$H$208,Lists!$A$16)","v":0},0,null,{"$f":"SUMIFS(AA$9:AA$208,PlanningIDEnlaces,$C152,$H$9:$H$208,Lists!$A$16)","v":0},0,null,{"$f":"SUMIFS(AD$9:AD$208,PlanningIDEnlaces,$C152,$H$9:$H$208,Lists!$A$16)","v":0},0,null,{"$f":"SUMIFS(AG$9:AG$208,PlanningIDEnlaces,$C152,$H$9:$H$208,Lists!$A$16)","v":0},0,null,{"$f":"SUMIFS(AJ$9:AJ$208,PlanningIDEnlaces,$C152,$H$9:$H$208,Lists!$A$16)","v":0},0,null,{"$f":"SUMIFS(AM$9:AM$208,PlanningIDEnlaces,$C152,$H$9:$H$208,Lists!$A$16)","v":0},0,null,{"$f":"SUMIFS(AP$9:AP$208,PlanningIDEnlaces,$C152,$H$9:$H$208,Lists!$A$16)","v":0},0,null,{"$f":"IFERROR(INDEX(Lists!$F$5:$F$49,MATCH(Planning!C152,Lists!$G$5:$G$49,0),1),\"\")","v":""},null,{"$f":"IF(C152=0,\"\",\" [\"&INDEX(Lists!$H$5:$H$49,MATCH(C152,Lists!$G$5:$G$49,0),1)&\"]\")","v":""}]
["I145",{"$nulls":43},0,{"v":0,"d":"0.00"},null,null,{"$f":"SUMIFS(I$9:I$208,PlanningIDEnlaces,$C153,$H$9:$H$208,Lists!$A$16)","v":0},0,null,{"$f":"SUMIFS(L$9:L$208,PlanningIDEnlaces,$C153,$H$9:$H$208,Lists!$A$16)","v":0},0,null,{"$f":"SUMIFS(O$9:O$208,PlanningIDEnlaces,$C153,$H$9:$H$208,Lists!$A$16)","v":0},0,null,{"$f":"SUMIFS(R$9:R$208,PlanningIDEnlaces,$C153,$H$9:$H$208,Lists!$A$16)","v":0},0,null,{"$f":"SUMIFS(U$9:U$208,PlanningIDEnlaces,$C153,$H$9:$H$208,Lists!$A$16)","v":0},0,null,{"$f":"SUMIFS(X$9:X$208,PlanningIDEnlaces,$C153,$H$9:$H$208,Lists!$A$16)","v":0},0,null,{"$f":"SUMIFS(AA$9:AA$208,PlanningIDEnlaces,$C153,$H$9:$H$208,Lists!$A$16)","v":0},0,null,{"$f":"SUMIFS(AD$9:AD$208,PlanningIDEnlaces,$C153,$H$9:$H$208,Lists!$A$16)","v":0},0,null,{"$f":"SUMIFS(AG$9:AG$208,PlanningIDEnlaces,$C153,$H$9:$H$208,Lists!$A$16)","v":0},0,null,{"$f":"SUMIFS(AJ$9:AJ$208,PlanningIDEnlaces,$C153,$H$9:$H$208,Lists!$A$16)","v":0},0,null,{"$f":"SUMIFS(AM$9:AM$208,PlanningIDEnlaces,$C153,$H$9:$H$208,Lists!$A$16)","v":0},0,null,{"$f":"SUMIFS(AP$9:AP$208,PlanningIDEnlaces,$C153,$H$9:$H$208,Lists!$A$16)","v":0},0,null,{"$f":"IFERROR(INDEX(Lists!$F$5:$F$49,MATCH(Planning!C153,Lists!$G$5:$G$49,0),1),\"\")","v":""},null,{"$f":"IF(C153=0,\"\",\" [\"&INDEX(Lists!$H$5:$H$49,MATCH(C153,Lists!$G$5:$G$49,0),1)&\"]\")","v":""}]
["I146",{"$nulls":43},0,{"v":0,"d":"0.00"},null,null,{"$f":"SUMIFS(I$9:I$208,PlanningIDEnlaces,$C154,$H$9:$H$208,Lists!$A$16)","v":0},0,null,{"$f":"SUMIFS(L$9:L$208,PlanningIDEnlaces,$C154,$H$9:$H$208,Lists!$A$16)","v":0},0,null,{"$f":"SUMIFS(O$9:O$208,PlanningIDEnlaces,$C154,$H$9:$H$208,Lists!$A$16)","v":0},0,null,{"$f":"SUMIFS(R$9:R$208,PlanningIDEnlaces,$C154,$H$9:$H$208,Lists!$A$16)","v":0},0,null,{"$f":"SUMIFS(U$9:U$208,PlanningIDEnlaces,$C154,$H$9:$H$208,Lists!$A$16)","v":0},0,null,{"$f":"SUMIFS(X$9:X$208,PlanningIDEnlaces,$C154,$H$9:$H$208,Lists!$A$16)","v":0},0,null,{"$f":"SUMIFS(AA$9:AA$208,PlanningIDEnlaces,$C154,$H$9:$H$208,Lists!$A$16)","v":0},0,null,{"$f":"SUMIFS(AD$9:AD$208,PlanningIDEnlaces,$C154,$H$9:$H$208,Lists!$A$16)","v":0},0,null,{"$f":"SUMIFS(AG$9:AG$208,PlanningIDEnlaces,$C154,$H$9:$H$208,Lists!$A$16)","v":0},0,null,{"$f":"SUMIFS(AJ$9:AJ$208,PlanningIDEnlaces,$C154,$H$9:$H$208,Lists!$A$16)","v":0},0,null,{"$f":"SUMIFS(AM$9:AM$208,PlanningIDEnlaces,$C154,$H$9:$H$208,Lists!$A$16)","v":0},0,null,{"$f":"SUMIFS(AP$9:AP$208,PlanningIDEnlaces,$C154,$H$9:$H$208,Lists!$A$16)","v":0},0,null,{"$f":"IFERROR(INDEX(Lists!$F$5:$F$49,MATCH(Planning!C154,Lists!$G$5:$G$49,0),1),\"\")","v":""},null,{"$f":"IF(C154=0,\"\",\" [\"&INDEX(Lists!$H$5:$H$49,MATCH(C154,Lists!$G$5:$G$49,0),1)&\"]\")","v":""}]
["I147",{"$nulls":43},0,{"v":0,"d":"0.00"},null,null,{"$f":"SUMIFS(I$9:I$208,PlanningIDEnlaces,$C155,$H$9:$H$208,Lists!$A$16)","v":0},0,null,{"$f":"SUMIFS(L$9:L$208,PlanningIDEnlaces,$C155,$H$9:$H$208,Lists!$A$16)","v":0},0,null,{"$f":"SUMIFS(O$9:O$208,PlanningIDEnlaces,$C155,$H$9:$H$208,Lists!$A$16)","v":0},0,null,{"$f":"SUMIFS(R$9:R$208,PlanningIDEnlaces,$C155,$H$9:$H$208,Lists!$A$16)","v":0},0,null,{"$f":"SUMIFS(U$9:U$208,PlanningIDEnlaces,$C155,$H$9:$H$208,Lists!$A$16)","v":0},0,null,{"$f":"SUMIFS(X$9:X$208,PlanningIDEnlaces,$C155,$H$9:$H$208,Lists!$A$16)","v":0},0,null,{"$f":"SUMIFS(AA$9:AA$208,PlanningIDEnlaces,$C155,$H$9:$H$208,Lists!$A$16)","v":0},0,null,{"$f":"SUMIFS(AD$9:AD$208,PlanningIDEnlaces,$C155,$H$9:$H$208,Lists!$A$16)","v":0},0,null,{"$f":"SUMIFS(AG$9:AG$208,PlanningIDEnlaces,$C155,$H$9:$H$208,Lists!$A$16)","v":0},0,null,{"$f":"SUMIFS(AJ$9:AJ$208,PlanningIDEnlaces,$C155,$H$9:$H$208,Lists!$A$16)","v":0},0,null,{"$f":"SUMIFS(AM$9:AM$208,PlanningIDEnlaces,$C155,$H$9:$H$208,Lists!$A$16)","v":0},0,null,{"$f":"SUMIFS(AP$9:AP$208,PlanningIDEnlaces,$C155,$H$9:$H$208,Lists!$A$16)","v":0},0,null,{"$f":"IFERROR(INDEX(Lists!$F$5:$F$49,MATCH(Planning!C155,Lists!$G$5:$G$49,0),1),\"\")","v":""},null,{"$f":"IF(C155=0,\"\",\" [\"&INDEX(Lists!$H$5:$H$49,MATCH(C155,Lists!$G$5:$G$49,0),1)&\"]\")","v":""}]
["I148",{"$nulls":43},0,{"v":0,"d":"0.00"},null,null,{"$f":"SUMIFS(I$9:I$208,PlanningIDEnlaces,$C156,$H$9:$H$208,Lists!$A$16)","v":0},0,null,{"$f":"SUMIFS(L$9:L$208,PlanningIDEnlaces,$C156,$H$9:$H$208,Lists!$A$16)","v":0},0,null,{"$f":"SUMIFS(O$9:O$208,PlanningIDEnlaces,$C156,$H$9:$H$208,Lists!$A$16)","v":0},0,null,{"$f":"SUMIFS(R$9:R$208,PlanningIDEnlaces,$C156,$H$9:$H$208,Lists!$A$16)","v":0},0,null,{"$f":"SUMIFS(U$9:U$208,PlanningIDEnlaces,$C156,$H$9:$H$208,Lists!$A$16)","v":0},0,null,{"$f":"SUMIFS(X$9:X$208,PlanningIDEnlaces,$C156,$H$9:$H$208,Lists!$A$16)","v":0},0,null,{"$f":"SUMIFS(AA$9:AA$208,PlanningIDEnlaces,$C156,$H$9:$H$208,Lists!$A$16)","v":0},0,null,{"$f":"SUMIFS(AD$9:AD$208,PlanningIDEnlaces,$C156,$H$9:$H$208,Lists!$A$16)","v":0},0,null,{"$f":"SUMIFS(AG$9:AG$208,PlanningIDEnlaces,$C156,$H$9:$H$208,Lists!$A$16)","v":0},0,null,{"$f":"SUMIFS(AJ$9:AJ$208,PlanningIDEnlaces,$C156,$H$9:$H$208,Lists!$A$16)","v":0},0,null,{"$f":"SUMIFS(AM$9:AM$208,PlanningIDEnlaces,$C156,$H$9:$H$208,Lists!$A$16)","v":0},0,null,{"$f":"SUMIFS(AP$9:AP$208,PlanningIDEnlaces,$C156,$H$9:$H$208,Lists!$A$16)","v":0},0,null,{"$f":"IFERROR(INDEX(Lists!$F$5:$F$49,MATCH(Planning!C156,Lists!$G$5:$G$49,0),1),\"\")","v":""},null,{"$f":"IF(C156=0,\"\",\" [\"&INDEX(Lists!$H$5:$H$49,MATCH(C156,Lists!$G$5:$G$49,0),1)&\"]\")","v":""}]
["I149",{"$nulls":43},0,{"v":0,"d":"0.00"},null,null,{"$f":"SUMIFS(I$9:I$208,PlanningIDEnlaces,$C157,$H$9:$H$208,Lists!$A$16)","v":0},0,null,{"$f":"SUMIFS(L$9:L$208,PlanningIDEnlaces,$C157,$H$9:$H$208,Lists!$A$16)","v":0},0,null,{"$f":"SUMIFS(O$9:O$208,PlanningIDEnlaces,$C157,$H$9:$H$208,Lists!$A$16)","v":0},0,null,{"$f":"SUMIFS(R$9:R$208,PlanningIDEnlaces,$C157,$H$9:$H$208,Lists!$A$16)","v":0},0,null,{"$f":"SUMIFS(U$9:U$208,PlanningIDEnlaces,$C157,$H$9:$H$208,Lists!$A$16)","v":0},0,null,{"$f":"SUMIFS(X$9:X$208,PlanningIDEnlaces,$C157,$H$9:$H$208,Lists!$A$16)","v":0},0,null,{"$f":"SUMIFS(AA$9:AA$208,PlanningIDEnlaces,$C157,$H$9:$H$208,Lists!$A$16)","v":0},0,null,{"$f":"SUMIFS(AD$9:AD$208,PlanningIDEnlaces,$C157,$H$9:$H$208,Lists!$A$16)","v":0},0,null,{"$f":"SUMIFS(AG$9:AG$208,PlanningIDEnlaces,$C157,$H$9:$H$208,Lists!$A$16)","v":0},0,null,{"$f":"SUMIFS(AJ$9:AJ$208,PlanningIDEnlaces,$C157,$H$9:$H$208,Lists!$A$16)","v":0},0,null,{"$f":"SUMIFS(AM$9:AM$208,PlanningIDEnlaces,$C157,$H$9:$H$208,Lists!$A$16)","v":0},0,null,{"$f":"SUMIFS(AP$9:AP$208,PlanningIDEnlaces,$C157,$H$9:$H$208,Lists!$A$16)","v":0},0,null,{"$f":"IFERROR(INDEX(Lists!$F$5:$F$49,MATCH(Planning!C157,Lists!$G$5:$G$49,0),1),\"\")","v":""},null,{"$f":"IF(C157=0,\"\",\" [\"&INDEX(Lists!$H$5:$H$49,MATCH(C157,Lists!$G$5:$G$49,0),1)&\"]\")","v":""}]
["I150",{"$nulls":43},0,{"v":0,"d":"0.00"},null,null,{"$f":"SUMIFS(I$9:I$208,PlanningIDEnlaces,$C158,$H$9:$H$208,Lists!$A$16)","v":0},0,null,{"$f":"SUMIFS(L$9:L$208,PlanningIDEnlaces,$C158,$H$9:$H$208,Lists!$A$16)","v":0},0,null,{"$f":"SUMIFS(O$9:O$208,PlanningIDEnlaces,$C158,$H$9:$H$208,Lists!$A$16)","v":0},0,null,{"$f":"SUMIFS(R$9:R$208,PlanningIDEnlaces,$C158,$H$9:$H$208,Lists!$A$16)","v":0},0,null,{"$f":"SUMIFS(U$9:U$208,PlanningIDEnlaces,$C158,$H$9:$H$208,Lists!$A$16)","v":0},0,null,{"$f":"SUMIFS(X$9:X$208,PlanningIDEnlaces,$C158,$H$9:$H$208,Lists!$A$16)","v":0},0,null,{"$f":"SUMIFS(AA$9:AA$208,PlanningIDEnlaces,$C158,$H$9:$H$208,Lists!$A$16)","v":0},0,null,{"$f":"SUMIFS(AD$9:AD$208,PlanningIDEnlaces,$C158,$H$9:$H$208,Lists!$A$16)","v":0},0,null,{"$f":"SUMIFS(AG$9:AG$208,PlanningIDEnlaces,$C158,$H$9:$H$208,Lists!$A$16)","v":0},0,null,{"$f":"SUMIFS(AJ$9:AJ$208,PlanningIDEnlaces,$C158,$H$9:$H$208,Lists!$A$16)","v":0},0,null,{"$f":"SUMIFS(AM$9:AM$208,PlanningIDEnlaces,$C158,$H$9:$H$208,Lists!$A$16)","v":0},0,null,{"$f":"SUMIFS(AP$9:AP$208,PlanningIDEnlaces,$C158,$H$9:$H$208,Lists!$A$16)","v":0},0,null,{"$f":"IFERROR(INDEX(Lists!$F$5:$F$49,MATCH(Planning!C158,Lists!$G$5:$G$49,0),1),\"\")","v":""},null,{"$f":"IF(C158=0,\"\",\" [\"&INDEX(Lists!$H$5:$H$49,MATCH(C158,Lists!$G$5:$G$49,0),1)&\"]\")","v":""}]
["I151",{"$nulls":43},0,{"v":0,"d":"0.00"},null,null,{"$f":"SUMIFS(I$9:I$208,PlanningIDEnlaces,$C159,$H$9:$H$208,Lists!$A$16)","v":0},0,null,{"$f":"SUMIFS(L$9:L$208,PlanningIDEnlaces,$C159,$H$9:$H$208,Lists!$A$16)","v":0},0,null,{"$f":"SUMIFS(O$9:O$208,PlanningIDEnlaces,$C159,$H$9:$H$208,Lists!$A$16)","v":0},0,null,{"$f":"SUMIFS(R$9:R$208,PlanningIDEnlaces,$C159,$H$9:$H$208,Lists!$A$16)","v":0},0,null,{"$f":"SUMIFS(U$9:U$208,PlanningIDEnlaces,$C159,$H$9:$H$208,Lists!$A$16)","v":0},0,null,{"$f":"SUMIFS(X$9:X$208,PlanningIDEnlaces,$C159,$H$9:$H$208,Lists!$A$16)","v":0},0,null,{"$f":"SUMIFS(AA$9:AA$208,PlanningIDEnlaces,$C159,$H$9:$H$208,Lists!$A$16)","v":0},0,null,{"$f":"SUMIFS(AD$9:AD$208,PlanningIDEnlaces,$C159,$H$9:$H$208,Lists!$A$16)","v":0},0,null,{"$f":"SUMIFS(AG$9:AG$208,PlanningIDEnlaces,$C159,$H$9:$H$208,Lists!$A$16)","v":0},0,null,{"$f":"SUMIFS(AJ$9:AJ$208,PlanningIDEnlaces,$C159,$H$9:$H$208,Lists!$A$16)","v":0},0,null,{"$f":"SUMIFS(AM$9:AM$208,PlanningIDEnlaces,$C159,$H$9:$H$208,Lists!$A$16)","v":0},0,null,{"$f":"SUMIFS(AP$9:AP$208,PlanningIDEnlaces,$C159,$H$9:$H$208,Lists!$A$16)","v":0},0,null,{"$f":"IFERROR(INDEX(Lists!$F$5:$F$49,MATCH(Planning!C159,Lists!$G$5:$G$49,0),1),\"\")","v":""},null,{"$f":"IF(C159=0,\"\",\" [\"&INDEX(Lists!$H$5:$H$49,MATCH(C159,Lists!$G$5:$G$49,0),1)&\"]\")","v":""}]
["I152",{"$nulls":43},0,{"v":0,"d":"0.00"},null,null,{"$f":"SUMIFS(I$9:I$208,PlanningIDEnlaces,$C160,$H$9:$H$208,Lists!$A$16)","v":0},0,null,{"$f":"SUMIFS(L$9:L$208,PlanningIDEnlaces,$C160,$H$9:$H$208,Lists!$A$16)","v":0},0,null,{"$f":"SUMIFS(O$9:O$208,PlanningIDEnlaces,$C160,$H$9:$H$208,Lists!$A$16)","v":0},0,null,{"$f":"SUMIFS(R$9:R$208,PlanningIDEnlaces,$C160,$H$9:$H$208,Lists!$A$16)","v":0},0,null,{"$f":"SUMIFS(U$9:U$208,PlanningIDEnlaces,$C160,$H$9:$H$208,Lists!$A$16)","v":0},0,null,{"$f":"SUMIFS(X$9:X$208,PlanningIDEnlaces,$C160,$H$9:$H$208,Lists!$A$16)","v":0},0,null,{"$f":"SUMIFS(AA$9:AA$208,PlanningIDEnlaces,$C160,$H$9:$H$208,Lists!$A$16)","v":0},0,null,{"$f":"SUMIFS(AD$9:AD$208,PlanningIDEnlaces,$C160,$H$9:$H$208,Lists!$A$16)","v":0},0,null,{"$f":"SUMIFS(AG$9:AG$208,PlanningIDEnlaces,$C160,$H$9:$H$208,Lists!$A$16)","v":0},0,null,{"$f":"SUMIFS(AJ$9:AJ$208,PlanningIDEnlaces,$C160,$H$9:$H$208,Lists!$A$16)","v":0},0,null,{"$f":"SUMIFS(AM$9:AM$208,PlanningIDEnlaces,$C160,$H$9:$H$208,Lists!$A$16)","v":0},0,null,{"$f":"SUMIFS(AP$9:AP$208,PlanningIDEnlaces,$C160,$H$9:$H$208,Lists!$A$16)","v":0},0,null,{"$f":"IFERROR(INDEX(Lists!$F$5:$F$49,MATCH(Planning!C160,Lists!$G$5:$G$49,0),1),\"\")","v":""},null,{"$f":"IF(C160=0,\"\",\" [\"&INDEX(Lists!$H$5:$H$49,MATCH(C160,Lists!$G$5:$G$49,0),1)&\"]\")","v":""}]
["I153",{"$nulls":43},0,{"v":0,"d":"0.00"},null,null,{"$f":"SUMIFS(I$9:I$208,PlanningIDEnlaces,$C161,$H$9:$H$208,Lists!$A$16)","v":0},0,null,{"$f":"SUMIFS(L$9:L$208,PlanningIDEnlaces,$C161,$H$9:$H$208,Lists!$A$16)","v":0},0,null,{"$f":"SUMIFS(O$9:O$208,PlanningIDEnlaces,$C161,$H$9:$H$208,Lists!$A$16)","v":0},0,null,{"$f":"SUMIFS(R$9:R$208,PlanningIDEnlaces,$C161,$H$9:$H$208,Lists!$A$16)","v":0},0,null,{"$f":"SUMIFS(U$9:U$208,PlanningIDEnlaces,$C161,$H$9:$H$208,Lists!$A$16)","v":0},0,null,{"$f":"SUMIFS(X$9:X$208,PlanningIDEnlaces,$C161,$H$9:$H$208,Lists!$A$16)","v":0},0,null,{"$f":"SUMIFS(AA$9:AA$208,PlanningIDEnlaces,$C161,$H$9:$H$208,Lists!$A$16)","v":0},0,null,{"$f":"SUMIFS(AD$9:AD$208,PlanningIDEnlaces,$C161,$H$9:$H$208,Lists!$A$16)","v":0},0,null,{"$f":"SUMIFS(AG$9:AG$208,PlanningIDEnlaces,$C161,$H$9:$H$208,Lists!$A$16)","v":0},0,null,{"$f":"SUMIFS(AJ$9:AJ$208,PlanningIDEnlaces,$C161,$H$9:$H$208,Lists!$A$16)","v":0},0,null,{"$f":"SUMIFS(AM$9:AM$208,PlanningIDEnlaces,$C161,$H$9:$H$208,Lists!$A$16)","v":0},0,null,{"$f":"SUMIFS(AP$9:AP$208,PlanningIDEnlaces,$C161,$H$9:$H$208,Lists!$A$16)","v":0},0,null,{"$f":"IFERROR(INDEX(Lists!$F$5:$F$49,MATCH(Planning!C161,Lists!$G$5:$G$49,0),1),\"\")","v":""},null,{"$f":"IF(C161=0,\"\",\" [\"&INDEX(Lists!$H$5:$H$49,MATCH(C161,Lists!$G$5:$G$49,0),1)&\"]\")","v":""}]
["I154",{"$nulls":43},0,{"v":0,"d":"0.00"},null,null,{"$f":"SUMIFS(I$9:I$208,PlanningIDEnlaces,$C162,$H$9:$H$208,Lists!$A$16)","v":0},0,null,{"$f":"SUMIFS(L$9:L$208,PlanningIDEnlaces,$C162,$H$9:$H$208,Lists!$A$16)","v":0},0,null,{"$f":"SUMIFS(O$9:O$208,PlanningIDEnlaces,$C162,$H$9:$H$208,Lists!$A$16)","v":0},0,null,{"$f":"SUMIFS(R$9:R$208,PlanningIDEnlaces,$C162,$H$9:$H$208,Lists!$A$16)","v":0},0,null,{"$f":"SUMIFS(U$9:U$208,PlanningIDEnlaces,$C162,$H$9:$H$208,Lists!$A$16)","v":0},0,null,{"$f":"SUMIFS(X$9:X$208,PlanningIDEnlaces,$C162,$H$9:$H$208,Lists!$A$16)","v":0},0,null,{"$f":"SUMIFS(AA$9:AA$208,PlanningIDEnlaces,$C162,$H$9:$H$208,Lists!$A$16)","v":0},0,null,{"$f":"SUMIFS(AD$9:AD$208,PlanningIDEnlaces,$C162,$H$9:$H$208,Lists!$A$16)","v":0},0,null,{"$f":"SUMIFS(AG$9:AG$208,PlanningIDEnlaces,$C162,$H$9:$H$208,Lists!$A$16)","v":0},0,null,{"$f":"SUMIFS(AJ$9:AJ$208,PlanningIDEnlaces,$C162,$H$9:$H$208,Lists!$A$16)","v":0},0,null,{"$f":"SUMIFS(AM$9:AM$208,PlanningIDEnlaces,$C162,$H$9:$H$208,Lists!$A$16)","v":0},0,null,{"$f":"SUMIFS(AP$9:AP$208,PlanningIDEnlaces,$C162,$H$9:$H$208,Lists!$A$16)","v":0},0,null,{"$f":"IFERROR(INDEX(Lists!$F$5:$F$49,MATCH(Planning!C162,Lists!$G$5:$G$49,0),1),\"\")","v":""},null,{"$f":"IF(C162=0,\"\",\" [\"&INDEX(Lists!$H$5:$H$49,MATCH(C162,Lists!$G$5:$G$49,0),1)&\"]\")","v":""}]
["I155",{"$nulls":43},0,{"v":0,"d":"0.00"},null,null,{"$f":"SUMIFS(I$9:I$208,PlanningIDEnlaces,$C163,$H$9:$H$208,Lists!$A$16)","v":0},0,null,{"$f":"SUMIFS(L$9:L$208,PlanningIDEnlaces,$C163,$H$9:$H$208,Lists!$A$16)","v":0},0,null,{"$f":"SUMIFS(O$9:O$208,PlanningIDEnlaces,$C163,$H$9:$H$208,Lists!$A$16)","v":0},0,null,{"$f":"SUMIFS(R$9:R$208,PlanningIDEnlaces,$C163,$H$9:$H$208,Lists!$A$16)","v":0},0,null,{"$f":"SUMIFS(U$9:U$208,PlanningIDEnlaces,$C163,$H$9:$H$208,Lists!$A$16)","v":0},0,null,{"$f":"SUMIFS(X$9:X$208,PlanningIDEnlaces,$C163,$H$9:$H$208,Lists!$A$16)","v":0},0,null,{"$f":"SUMIFS(AA$9:AA$208,PlanningIDEnlaces,$C163,$H$9:$H$208,Lists!$A$16)","v":0},0,null,{"$f":"SUMIFS(AD$9:AD$208,PlanningIDEnlaces,$C163,$H$9:$H$208,Lists!$A$16)","v":0},0,null,{"$f":"SUMIFS(AG$9:AG$208,PlanningIDEnlaces,$C163,$H$9:$H$208,Lists!$A$16)","v":0},0,null,{"$f":"SUMIFS(AJ$9:AJ$208,PlanningIDEnlaces,$C163,$H$9:$H$208,Lists!$A$16)","v":0},0,null,{"$f":"SUMIFS(AM$9:AM$208,PlanningIDEnlaces,$C163,$H$9:$H$208,Lists!$A$16)","v":0},0,null,{"$f":"SUMIFS(AP$9:AP$208,PlanningIDEnlaces,$C163,$H$9:$H$208,Lists!$A$16)","v":0},0,null,{"$f":"IFERROR(INDEX(Lists!$F$5:$F$49,MATCH(Planning!C163,Lists!$G$5:$G$49,0),1),\"\")","v":""},null,{"$f":"IF(C163=0,\"\",\" [\"&INDEX(Lists!$H$5:$H$49,MATCH(C163,Lists!$G$5:$G$49,0),1)&\"]\")","v":""}]
["I156",{"$nulls":43},0,{"v":0,"d":"0.00"},null,null,{"$f":"SUMIFS(I$9:I$208,PlanningIDEnlaces,$C164,$H$9:$H$208,Lists!$A$16)","v":0},0,null,{"$f":"SUMIFS(L$9:L$208,PlanningIDEnlaces,$C164,$H$9:$H$208,Lists!$A$16)","v":0},0,null,{"$f":"SUMIFS(O$9:O$208,PlanningIDEnlaces,$C164,$H$9:$H$208,Lists!$A$16)","v":0},0,null,{"$f":"SUMIFS(R$9:R$208,PlanningIDEnlaces,$C164,$H$9:$H$208,Lists!$A$16)","v":0},0,null,{"$f":"SUMIFS(U$9:U$208,PlanningIDEnlaces,$C164,$H$9:$H$208,Lists!$A$16)","v":0},0,null,{"$f":"SUMIFS(X$9:X$208,PlanningIDEnlaces,$C164,$H$9:$H$208,Lists!$A$16)","v":0},0,null,{"$f":"SUMIFS(AA$9:AA$208,PlanningIDEnlaces,$C164,$H$9:$H$208,Lists!$A$16)","v":0},0,null,{"$f":"SUMIFS(AD$9:AD$208,PlanningIDEnlaces,$C164,$H$9:$H$208,Lists!$A$16)","v":0},0,null,{"$f":"SUMIFS(AG$9:AG$208,PlanningIDEnlaces,$C164,$H$9:$H$208,Lists!$A$16)","v":0},0,null,{"$f":"SUMIFS(AJ$9:AJ$208,PlanningIDEnlaces,$C164,$H$9:$H$208,Lists!$A$16)","v":0},0,null,{"$f":"SUMIFS(AM$9:AM$208,PlanningIDEnlaces,$C164,$H$9:$H$208,Lists!$A$16)","v":0},0,null,{"$f":"SUMIFS(AP$9:AP$208,PlanningIDEnlaces,$C164,$H$9:$H$208,Lists!$A$16)","v":0},0,null,{"$f":"IFERROR(INDEX(Lists!$F$5:$F$49,MATCH(Planning!C164,Lists!$G$5:$G$49,0),1),\"\")","v":""},null,{"$f":"IF(C164=0,\"\",\" [\"&INDEX(Lists!$H$5:$H$49,MATCH(C164,Lists!$G$5:$G$49,0),1)&\"]\")","v":""}]
["I157",{"$nulls":43},0,{"v":0,"d":"0.00"},null,null,{"$f":"SUMIFS(I$9:I$208,PlanningIDEnlaces,$C165,$H$9:$H$208,Lists!$A$16)","v":0},0,null,{"$f":"SUMIFS(L$9:L$208,PlanningIDEnlaces,$C165,$H$9:$H$208,Lists!$A$16)","v":0},0,null,{"$f":"SUMIFS(O$9:O$208,PlanningIDEnlaces,$C165,$H$9:$H$208,Lists!$A$16)","v":0},0,null,{"$f":"SUMIFS(R$9:R$208,PlanningIDEnlaces,$C165,$H$9:$H$208,Lists!$A$16)","v":0},0,null,{"$f":"SUMIFS(U$9:U$208,PlanningIDEnlaces,$C165,$H$9:$H$208,Lists!$A$16)","v":0},0,null,{"$f":"SUMIFS(X$9:X$208,PlanningIDEnlaces,$C165,$H$9:$H$208,Lists!$A$16)","v":0},0,null,{"$f":"SUMIFS(AA$9:AA$208,PlanningIDEnlaces,$C165,$H$9:$H$208,Lists!$A$16)","v":0},0,null,{"$f":"SUMIFS(AD$9:AD$208,PlanningIDEnlaces,$C165,$H$9:$H$208,Lists!$A$16)","v":0},0,null,{"$f":"SUMIFS(AG$9:AG$208,PlanningIDEnlaces,$C165,$H$9:$H$208,Lists!$A$16)","v":0},0,null,{"$f":"SUMIFS(AJ$9:AJ$208,PlanningIDEnlaces,$C165,$H$9:$H$208,Lists!$A$16)","v":0},0,null,{"$f":"SUMIFS(AM$9:AM$208,PlanningIDEnlaces,$C165,$H$9:$H$208,Lists!$A$16)","v":0},0,null,{"$f":"SUMIFS(AP$9:AP$208,PlanningIDEnlaces,$C165,$H$9:$H$208,Lists!$A$16)","v":0},0,null,{"$f":"IFERROR(INDEX(Lists!$F$5:$F$49,MATCH(Planning!C165,Lists!$G$5:$G$49,0),1),\"\")","v":""},null,{"$f":"IF(C165=0,\"\",\" [\"&INDEX(Lists!$H$5:$H$49,MATCH(C165,Lists!$G$5:$G$49,0),1)&\"]\")","v":""}]
["I158",{"$nulls":43},0,{"v":0,"d":"0.00"},null,null,{"$f":"SUMIFS(I$9:I$208,PlanningIDEnlaces,$C166,$H$9:$H$208,Lists!$A$16)","v":0},0,null,{"$f":"SUMIFS(L$9:L$208,PlanningIDEnlaces,$C166,$H$9:$H$208,Lists!$A$16)","v":0},0,null,{"$f":"SUMIFS(O$9:O$208,PlanningIDEnlaces,$C166,$H$9:$H$208,Lists!$A$16)","v":0},0,null,{"$f":"SUMIFS(R$9:R$208,PlanningIDEnlaces,$C166,$H$9:$H$208,Lists!$A$16)","v":0},0,null,{"$f":"SUMIFS(U$9:U$208,PlanningIDEnlaces,$C166,$H$9:$H$208,Lists!$A$16)","v":0},0,null,{"$f":"SUMIFS(X$9:X$208,PlanningIDEnlaces,$C166,$H$9:$H$208,Lists!$A$16)","v":0},0,null,{"$f":"SUMIFS(AA$9:AA$208,PlanningIDEnlaces,$C166,$H$9:$H$208,Lists!$A$16)","v":0},0,null,{"$f":"SUMIFS(AD$9:AD$208,PlanningIDEnlaces,$C166,$H$9:$H$208,Lists!$A$16)","v":0},0,null,{"$f":"SUMIFS(AG$9:AG$208,PlanningIDEnlaces,$C166,$H$9:$H$208,Lists!$A$16)","v":0},0,null,{"$f":"SUMIFS(AJ$9:AJ$208,PlanningIDEnlaces,$C166,$H$9:$H$208,Lists!$A$16)","v":0},0,null,{"$f":"SUMIFS(AM$9:AM$208,PlanningIDEnlaces,$C166,$H$9:$H$208,Lists!$A$16)","v":0},0,null,{"$f":"SUMIFS(AP$9:AP$208,PlanningIDEnlaces,$C166,$H$9:$H$208,Lists!$A$16)","v":0},0,null,{"$f":"IFERROR(INDEX(Lists!$F$5:$F$49,MATCH(Planning!C166,Lists!$G$5:$G$49,0),1),\"\")","v":""},null,{"$f":"IF(C166=0,\"\",\" [\"&INDEX(Lists!$H$5:$H$49,MATCH(C166,Lists!$G$5:$G$49,0),1)&\"]\")","v":""}]
["I159",{"$nulls":43},0,{"v":0,"d":"0.00"},null,null,{"$f":"SUMIFS(I$9:I$208,PlanningIDEnlaces,$C167,$H$9:$H$208,Lists!$A$16)","v":0},0,null,{"$f":"SUMIFS(L$9:L$208,PlanningIDEnlaces,$C167,$H$9:$H$208,Lists!$A$16)","v":0},0,null,{"$f":"SUMIFS(O$9:O$208,PlanningIDEnlaces,$C167,$H$9:$H$208,Lists!$A$16)","v":0},0,null,{"$f":"SUMIFS(R$9:R$208,PlanningIDEnlaces,$C167,$H$9:$H$208,Lists!$A$16)","v":0},0,null,{"$f":"SUMIFS(U$9:U$208,PlanningIDEnlaces,$C167,$H$9:$H$208,Lists!$A$16)","v":0},0,null,{"$f":"SUMIFS(X$9:X$208,PlanningIDEnlaces,$C167,$H$9:$H$208,Lists!$A$16)","v":0},0,null,{"$f":"SUMIFS(AA$9:AA$208,PlanningIDEnlaces,$C167,$H$9:$H$208,Lists!$A$16)","v":0},0,null,{"$f":"SUMIFS(AD$9:AD$208,PlanningIDEnlaces,$C167,$H$9:$H$208,Lists!$A$16)","v":0},0,null,{"$f":"SUMIFS(AG$9:AG$208,PlanningIDEnlaces,$C167,$H$9:$H$208,Lists!$A$16)","v":0},0,null,{"$f":"SUMIFS(AJ$9:AJ$208,PlanningIDEnlaces,$C167,$H$9:$H$208,Lists!$A$16)","v":0},0,null,{"$f":"SUMIFS(AM$9:AM$208,PlanningIDEnlaces,$C167,$H$9:$H$208,Lists!$A$16)","v":0},0,null,{"$f":"SUMIFS(AP$9:AP$208,PlanningIDEnlaces,$C167,$H$9:$H$208,Lists!$A$16)","v":0},0,null,{"$f":"IFERROR(INDEX(Lists!$F$5:$F$49,MATCH(Planning!C167,Lists!$G$5:$G$49,0),1),\"\")","v":""},null,{"$f":"IF(C167=0,\"\",\" [\"&INDEX(Lists!$H$5:$H$49,MATCH(C167,Lists!$G$5:$G$49,0),1)&\"]\")","v":""}]
["I160",{"$nulls":43},0,{"v":0,"d":"0.00"},null,null,{"$f":"SUMIFS(I$9:I$208,PlanningIDEnlaces,$C168,$H$9:$H$208,Lists!$A$16)","v":0},0,null,{"$f":"SUMIFS(L$9:L$208,PlanningIDEnlaces,$C168,$H$9:$H$208,Lists!$A$16)","v":0},0,null,{"$f":"SUMIFS(O$9:O$208,PlanningIDEnlaces,$C168,$H$9:$H$208,Lists!$A$16)","v":0},0,null,{"$f":"SUMIFS(R$9:R$208,PlanningIDEnlaces,$C168,$H$9:$H$208,Lists!$A$16)","v":0},0,null,{"$f":"SUMIFS(U$9:U$208,PlanningIDEnlaces,$C168,$H$9:$H$208,Lists!$A$16)","v":0},0,null,{"$f":"SUMIFS(X$9:X$208,PlanningIDEnlaces,$C168,$H$9:$H$208,Lists!$A$16)","v":0},0,null,{"$f":"SUMIFS(AA$9:AA$208,PlanningIDEnlaces,$C168,$H$9:$H$208,Lists!$A$16)","v":0},0,null,{"$f":"SUMIFS(AD$9:AD$208,PlanningIDEnlaces,$C168,$H$9:$H$208,Lists!$A$16)","v":0},0,null,{"$f":"SUMIFS(AG$9:AG$208,PlanningIDEnlaces,$C168,$H$9:$H$208,Lists!$A$16)","v":0},0,null,{"$f":"SUMIFS(AJ$9:AJ$208,PlanningIDEnlaces,$C168,$H$9:$H$208,Lists!$A$16)","v":0},0,null,{"$f":"SUMIFS(AM$9:AM$208,PlanningIDEnlaces,$C168,$H$9:$H$208,Lists!$A$16)","v":0},0,null,{"$f":"SUMIFS(AP$9:AP$208,PlanningIDEnlaces,$C168,$H$9:$H$208,Lists!$A$16)","v":0},0,null,{"$f":"IFERROR(INDEX(Lists!$F$5:$F$49,MATCH(Planning!C168,Lists!$G$5:$G$49,0),1),\"\")","v":""},null,{"$f":"IF(C168=0,\"\",\" [\"&INDEX(Lists!$H$5:$H$49,MATCH(C168,Lists!$G$5:$G$49,0),1)&\"]\")","v":""}]
["I161",{"$nulls":43},{"$f":"I169+L169+O169+R169+U169+X169+AA169+AD169+AG169+AJ169+AM169+AP169","v":0},{"$f":"J169+M169+P169+S169+V169+Y169+AB169+AE169+AH169+AK169+AN169+AQ169","v":{"v":0,"d":"0.00"}},null,null,{"$f":"SUMIFS(I$9:I$208,PlanningIDEnlaces,$C169,$H$9:$H$208,Lists!$A$16)","v":0},{"$f":"SUMIFS(J$9:J$208,PlanningIDEnlaces,$C169,$H$9:$H$208,\"<>\")","v":0},null,{"$f":"SUMIFS(L$9:L$208,PlanningIDEnlaces,$C169,$H$9:$H$208,Lists!$A$16)","v":0},{"$f":"SUMIFS(M$9:M$208,PlanningIDEnlaces,$C169,$H$9:$H$208,\"<>\")","v":0},null,{"$f":"SUMIFS(O$9:O$208,PlanningIDEnlaces,$C169,$H$9:$H$208,Lists!$A$16)","v":0},{"$f":"SUMIFS(P$9:P$208,PlanningIDEnlaces,$C169,$H$9:$H$208,\"<>\")","v":0},null,{"$f":"SUMIFS(R$9:R$208,PlanningIDEnlaces,$C169,$H$9:$H$208,Lists!$A$16)","v":0},{"$f":"SUMIFS(S$9:S$208,PlanningIDEnlaces,$C169,$H$9:$H$208,\"<>\")","v":0},null,{"$f":"SUMIFS(U$9:U$208,PlanningIDEnlaces,$C169,$H$9:$H$208,Lists!$A$16)","v":0},{"$f":"SUMIFS(V$9:V$208,PlanningIDEnlaces,$C169,$H$9:$H$208,\"<>\")","v":0},null,{"$f":"SUMIFS(X$9:X$208,PlanningIDEnlaces,$C169,$H$9:$H$208,Lists!$A$16)","v":0},{"$f":"SUMIFS(Y$9:Y$208,PlanningIDEnlaces,$C169,$H$9:$H$208,\"<>\")","v":0},null,{"$f":"SUMIFS(AA$9:AA$208,PlanningIDEnlaces,$C169,$H$9:$H$208,Lists!$A$16)","v":0},{"$f":"SUMIFS(AB$9:AB$208,PlanningIDEnlaces,$C169,$H$9:$H$208,\"<>\")","v":0},null,{"$f":"SUMIFS(AD$9:AD$208,PlanningIDEnlaces,$C169,$H$9:$H$208,Lists!$A$16)","v":0},{"$f":"SUMIFS(AE$9:AE$208,PlanningIDEnlaces,$C169,$H$9:$H$208,\"<>\")","v":0},null,{"$f":"SUMIFS(AG$9:AG$208,PlanningIDEnlaces,$C169,$H$9:$H$208,Lists!$A$16)","v":0},{"$f":"SUMIFS(AH$9:AH$208,PlanningIDEnlaces,$C169,$H$9:$H$208,\"<>\")","v":0},null,{"$f":"SUMIFS(AJ$9:AJ$208,PlanningIDEnlaces,$C169,$H$9:$H$208,Lists!$A$16)","v":0},{"$f":"SUMIFS(AK$9:AK$208,PlanningIDEnlaces,$C169,$H$9:$H$208,\"<>\")","v":0},null,{"$f":"SUMIFS(AM$9:AM$208,PlanningIDEnlaces,$C169,$H$9:$H$208,Lists!$A$16)","v":0},{"$f":"SUMIFS(AN$9:AN$208,PlanningIDEnlaces,$C169,$H$9:$H$208,\"<>\")","v":0},null,{"$f":"SUMIFS(AP$9:AP$208,PlanningIDEnlaces,$C169,$H$9:$H$208,Lists!$A$16)","v":0},{"$f":"SUMIFS(AQ$9:AQ$208,PlanningIDEnlaces,$C169,$H$9:$H$208,\"<>\")","v":0},null,{"$f":"IFERROR(INDEX(Lists!$F$5:$F$49,MATCH(Planning!C169,Lists!$G$5:$G$49,0),1),\"\")","v":""},null,{"$f":"IF(C169=0,\"\",\" [\"&INDEX(Lists!$H$5:$H$49,MATCH(C169,Lists!$G$5:$G$49,0),1)&\"]\")","v":""}]
["I162",{"$nulls":43},0,{"v":0,"d":"0.00"},null,null,{"$f":"SUMIFS(I$9:I$208,PlanningIDEnlaces,$C170,$H$9:$H$208,Lists!$A$16)","v":0},0,null,{"$f":"SUMIFS(L$9:L$208,PlanningIDEnlaces,$C170,$H$9:$H$208,Lists!$A$16)","v":0},0,null,{"$f":"SUMIFS(O$9:O$208,PlanningIDEnlaces,$C170,$H$9:$H$208,Lists!$A$16)","v":0},0,null,{"$f":"SUMIFS(R$9:R$208,PlanningIDEnlaces,$C170,$H$9:$H$208,Lists!$A$16)","v":0},0,null,{"$f":"SUMIFS(U$9:U$208,PlanningIDEnlaces,$C170,$H$9:$H$208,Lists!$A$16)","v":0},0,null,{"$f":"SUMIFS(X$9:X$208,PlanningIDEnlaces,$C170,$H$9:$H$208,Lists!$A$16)","v":0},0,null,{"$f":"SUMIFS(AA$9:AA$208,PlanningIDEnlaces,$C170,$H$9:$H$208,Lists!$A$16)","v":0},0,null,{"$f":"SUMIFS(AD$9:AD$208,PlanningIDEnlaces,$C170,$H$9:$H$208,Lists!$A$16)","v":0},0,null,{"$f":"SUMIFS(AG$9:AG$208,PlanningIDEnlaces,$C170,$H$9:$H$208,Lists!$A$16)","v":0},0,null,{"$f":"SUMIFS(AJ$9:AJ$208,PlanningIDEnlaces,$C170,$H$9:$H$208,Lists!$A$16)","v":0},0,null,{"$f":"SUMIFS(AM$9:AM$208,PlanningIDEnlaces,$C170,$H$9:$H$208,Lists!$A$16)","v":0},0,null,{"$f":"SUMIFS(AP$9:AP$208,PlanningIDEnlaces,$C170,$H$9:$H$208,Lists!$A$16)","v":0},0,null,{"$f":"IFERROR(INDEX(Lists!$F$5:$F$49,MATCH(Planning!C170,Lists!$G$5:$G$49,0),1),\"\")","v":""},null,{"$f":"IF(C170=0,\"\",\" [\"&INDEX(Lists!$H$5:$H$49,MATCH(C170,Lists!$G$5:$G$49,0),1)&\"]\")","v":""}]
["I163",{"$nulls":43},0,{"v":0,"d":"0.00"},null,null,{"$f":"SUMIFS(I$9:I$208,PlanningIDEnlaces,$C171,$H$9:$H$208,Lists!$A$16)","v":0},0,null,{"$f":"SUMIFS(L$9:L$208,PlanningIDEnlaces,$C171,$H$9:$H$208,Lists!$A$16)","v":0},0,null,{"$f":"SUMIFS(O$9:O$208,PlanningIDEnlaces,$C171,$H$9:$H$208,Lists!$A$16)","v":0},0,null,{"$f":"SUMIFS(R$9:R$208,PlanningIDEnlaces,$C171,$H$9:$H$208,Lists!$A$16)","v":0},0,null,{"$f":"SUMIFS(U$9:U$208,PlanningIDEnlaces,$C171,$H$9:$H$208,Lists!$A$16)","v":0},0,null,{"$f":"SUMIFS(X$9:X$208,PlanningIDEnlaces,$C171,$H$9:$H$208,Lists!$A$16)","v":0},0,null,{"$f":"SUMIFS(AA$9:AA$208,PlanningIDEnlaces,$C171,$H$9:$H$208,Lists!$A$16)","v":0},0,null,{"$f":"SUMIFS(AD$9:AD$208,PlanningIDEnlaces,$C171,$H$9:$H$208,Lists!$A$16)","v":0},0,null,{"$f":"SUMIFS(AG$9:AG$208,PlanningIDEnlaces,$C171,$H$9:$H$208,Lists!$A$16)","v":0},0,null,{"$f":"SUMIFS(AJ$9:AJ$208,PlanningIDEnlaces,$C171,$H$9:$H$208,Lists!$A$16)","v":0},0,null,{"$f":"SUMIFS(AM$9:AM$208,PlanningIDEnlaces,$C171,$H$9:$H$208,Lists!$A$16)","v":0},0,null,{"$f":"SUMIFS(AP$9:AP$208,PlanningIDEnlaces,$C171,$H$9:$H$208,Lists!$A$16)","v":0},0,null,{"$f":"IFERROR(INDEX(Lists!$F$5:$F$49,MATCH(Planning!C171,Lists!$G$5:$G$49,0),1),\"\")","v":""},null,{"$f":"IF(C171=0,\"\",\" [\"&INDEX(Lists!$H$5:$H$49,MATCH(C171,Lists!$G$5:$G$49,0),1)&\"]\")","v":""}]
["I164",{"$nulls":43},0,{"v":0,"d":"0.00"},null,null,{"$f":"SUMIFS(I$9:I$208,PlanningIDEnlaces,$C172,$H$9:$H$208,Lists!$A$16)","v":0},0,null,{"$f":"SUMIFS(L$9:L$208,PlanningIDEnlaces,$C172,$H$9:$H$208,Lists!$A$16)","v":0},0,null,{"$f":"SUMIFS(O$9:O$208,PlanningIDEnlaces,$C172,$H$9:$H$208,Lists!$A$16)","v":0},0,null,{"$f":"SUMIFS(R$9:R$208,PlanningIDEnlaces,$C172,$H$9:$H$208,Lists!$A$16)","v":0},0,null,{"$f":"SUMIFS(U$9:U$208,PlanningIDEnlaces,$C172,$H$9:$H$208,Lists!$A$16)","v":0},0,null,{"$f":"SUMIFS(X$9:X$208,PlanningIDEnlaces,$C172,$H$9:$H$208,Lists!$A$16)","v":0},0,null,{"$f":"SUMIFS(AA$9:AA$208,PlanningIDEnlaces,$C172,$H$9:$H$208,Lists!$A$16)","v":0},0,null,{"$f":"SUMIFS(AD$9:AD$208,PlanningIDEnlaces,$C172,$H$9:$H$208,Lists!$A$16)","v":0},0,null,{"$f":"SUMIFS(AG$9:AG$208,PlanningIDEnlaces,$C172,$H$9:$H$208,Lists!$A$16)","v":0},0,null,{"$f":"SUMIFS(AJ$9:AJ$208,PlanningIDEnlaces,$C172,$H$9:$H$208,Lists!$A$16)","v":0},0,null,{"$f":"SUMIFS(AM$9:AM$208,PlanningIDEnlaces,$C172,$H$9:$H$208,Lists!$A$16)","v":0},0,null,{"$f":"SUMIFS(AP$9:AP$208,PlanningIDEnlaces,$C172,$H$9:$H$208,Lists!$A$16)","v":0},0,null,{"$f":"IFERROR(INDEX(Lists!$F$5:$F$49,MATCH(Planning!C172,Lists!$G$5:$G$49,0),1),\"\")","v":""},null,{"$f":"IF(C172=0,\"\",\" [\"&INDEX(Lists!$H$5:$H$49,MATCH(C172,Lists!$G$5:$G$49,0),1)&\"]\")","v":""}]
["I165",{"$nulls":43},0,{"v":0,"d":"0.00"},null,null,{"$f":"SUMIFS(I$9:I$208,PlanningIDEnlaces,$C173,$H$9:$H$208,Lists!$A$16)","v":0},0,null,{"$f":"SUMIFS(L$9:L$208,PlanningIDEnlaces,$C173,$H$9:$H$208,Lists!$A$16)","v":0},0,null,{"$f":"SUMIFS(O$9:O$208,PlanningIDEnlaces,$C173,$H$9:$H$208,Lists!$A$16)","v":0},0,null,{"$f":"SUMIFS(R$9:R$208,PlanningIDEnlaces,$C173,$H$9:$H$208,Lists!$A$16)","v":0},0,null,{"$f":"SUMIFS(U$9:U$208,PlanningIDEnlaces,$C173,$H$9:$H$208,Lists!$A$16)","v":0},0,null,{"$f":"SUMIFS(X$9:X$208,PlanningIDEnlaces,$C173,$H$9:$H$208,Lists!$A$16)","v":0},0,null,{"$f":"SUMIFS(AA$9:AA$208,PlanningIDEnlaces,$C173,$H$9:$H$208,Lists!$A$16)","v":0},0,null,{"$f":"SUMIFS(AD$9:AD$208,PlanningIDEnlaces,$C173,$H$9:$H$208,Lists!$A$16)","v":0},0,null,{"$f":"SUMIFS(AG$9:AG$208,PlanningIDEnlaces,$C173,$H$9:$H$208,Lists!$A$16)","v":0},0,null,{"$f":"SUMIFS(AJ$9:AJ$208,PlanningIDEnlaces,$C173,$H$9:$H$208,Lists!$A$16)","v":0},0,null,{"$f":"SUMIFS(AM$9:AM$208,PlanningIDEnlaces,$C173,$H$9:$H$208,Lists!$A$16)","v":0},0,null,{"$f":"SUMIFS(AP$9:AP$208,PlanningIDEnlaces,$C173,$H$9:$H$208,Lists!$A$16)","v":0},0,null,{"$f":"IFERROR(INDEX(Lists!$F$5:$F$49,MATCH(Planning!C173,Lists!$G$5:$G$49,0),1),\"\")","v":""},null,{"$f":"IF(C173=0,\"\",\" [\"&INDEX(Lists!$H$5:$H$49,MATCH(C173,Lists!$G$5:$G$49,0),1)&\"]\")","v":""}]
["I166",{"$nulls":43},0,{"v":0,"d":"0.00"},null,null,{"$f":"SUMIFS(I$9:I$208,PlanningIDEnlaces,$C174,$H$9:$H$208,Lists!$A$16)","v":0},0,null,{"$f":"SUMIFS(L$9:L$208,PlanningIDEnlaces,$C174,$H$9:$H$208,Lists!$A$16)","v":0},0,null,{"$f":"SUMIFS(O$9:O$208,PlanningIDEnlaces,$C174,$H$9:$H$208,Lists!$A$16)","v":0},0,null,{"$f":"SUMIFS(R$9:R$208,PlanningIDEnlaces,$C174,$H$9:$H$208,Lists!$A$16)","v":0},0,null,{"$f":"SUMIFS(U$9:U$208,PlanningIDEnlaces,$C174,$H$9:$H$208,Lists!$A$16)","v":0},0,null,{"$f":"SUMIFS(X$9:X$208,PlanningIDEnlaces,$C174,$H$9:$H$208,Lists!$A$16)","v":0},0,null,{"$f":"SUMIFS(AA$9:AA$208,PlanningIDEnlaces,$C174,$H$9:$H$208,Lists!$A$16)","v":0},0,null,{"$f":"SUMIFS(AD$9:AD$208,PlanningIDEnlaces,$C174,$H$9:$H$208,Lists!$A$16)","v":0},0,null,{"$f":"SUMIFS(AG$9:AG$208,PlanningIDEnlaces,$C174,$H$9:$H$208,Lists!$A$16)","v":0},0,null,{"$f":"SUMIFS(AJ$9:AJ$208,PlanningIDEnlaces,$C174,$H$9:$H$208,Lists!$A$16)","v":0},0,null,{"$f":"SUMIFS(AM$9:AM$208,PlanningIDEnlaces,$C174,$H$9:$H$208,Lists!$A$16)","v":0},0,null,{"$f":"SUMIFS(AP$9:AP$208,PlanningIDEnlaces,$C174,$H$9:$H$208,Lists!$A$16)","v":0},0,null,{"$f":"IFERROR(INDEX(Lists!$F$5:$F$49,MATCH(Planning!C174,Lists!$G$5:$G$49,0),1),\"\")","v":""},null,{"$f":"IF(C174=0,\"\",\" [\"&INDEX(Lists!$H$5:$H$49,MATCH(C174,Lists!$G$5:$G$49,0),1)&\"]\")","v":""}]
["I167",{"$nulls":43},0,{"v":0,"d":"0.00"},null,null,{"$f":"SUMIFS(I$9:I$208,PlanningIDEnlaces,$C175,$H$9:$H$208,Lists!$A$16)","v":0},0,null,{"$f":"SUMIFS(L$9:L$208,PlanningIDEnlaces,$C175,$H$9:$H$208,Lists!$A$16)","v":0},0,null,{"$f":"SUMIFS(O$9:O$208,PlanningIDEnlaces,$C175,$H$9:$H$208,Lists!$A$16)","v":0},0,null,{"$f":"SUMIFS(R$9:R$208,PlanningIDEnlaces,$C175,$H$9:$H$208,Lists!$A$16)","v":0},0,null,{"$f":"SUMIFS(U$9:U$208,PlanningIDEnlaces,$C175,$H$9:$H$208,Lists!$A$16)","v":0},0,null,{"$f":"SUMIFS(X$9:X$208,PlanningIDEnlaces,$C175,$H$9:$H$208,Lists!$A$16)","v":0},0,null,{"$f":"SUMIFS(AA$9:AA$208,PlanningIDEnlaces,$C175,$H$9:$H$208,Lists!$A$16)","v":0},0,null,{"$f":"SUMIFS(AD$9:AD$208,PlanningIDEnlaces,$C175,$H$9:$H$208,Lists!$A$16)","v":0},0,null,{"$f":"SUMIFS(AG$9:AG$208,PlanningIDEnlaces,$C175,$H$9:$H$208,Lists!$A$16)","v":0},0,null,{"$f":"SUMIFS(AJ$9:AJ$208,PlanningIDEnlaces,$C175,$H$9:$H$208,Lists!$A$16)","v":0},0,null,{"$f":"SUMIFS(AM$9:AM$208,PlanningIDEnlaces,$C175,$H$9:$H$208,Lists!$A$16)","v":0},0,null,{"$f":"SUMIFS(AP$9:AP$208,PlanningIDEnlaces,$C175,$H$9:$H$208,Lists!$A$16)","v":0},0,null,{"$f":"IFERROR(INDEX(Lists!$F$5:$F$49,MATCH(Planning!C175,Lists!$G$5:$G$49,0),1),\"\")","v":""},null,{"$f":"IF(C175=0,\"\",\" [\"&INDEX(Lists!$H$5:$H$49,MATCH(C175,Lists!$G$5:$G$49,0),1)&\"]\")","v":""}]
["I168",{"$nulls":43},0,{"v":0,"d":"0.00"},null,null,{"$f":"SUMIFS(I$9:I$208,PlanningIDEnlaces,$C176,$H$9:$H$208,Lists!$A$16)","v":0},0,null,{"$f":"SUMIFS(L$9:L$208,PlanningIDEnlaces,$C176,$H$9:$H$208,Lists!$A$16)","v":0},0,null,{"$f":"SUMIFS(O$9:O$208,PlanningIDEnlaces,$C176,$H$9:$H$208,Lists!$A$16)","v":0},0,null,{"$f":"SUMIFS(R$9:R$208,PlanningIDEnlaces,$C176,$H$9:$H$208,Lists!$A$16)","v":0},0,null,{"$f":"SUMIFS(U$9:U$208,PlanningIDEnlaces,$C176,$H$9:$H$208,Lists!$A$16)","v":0},0,null,{"$f":"SUMIFS(X$9:X$208,PlanningIDEnlaces,$C176,$H$9:$H$208,Lists!$A$16)","v":0},0,null,{"$f":"SUMIFS(AA$9:AA$208,PlanningIDEnlaces,$C176,$H$9:$H$208,Lists!$A$16)","v":0},0,null,{"$f":"SUMIFS(AD$9:AD$208,PlanningIDEnlaces,$C176,$H$9:$H$208,Lists!$A$16)","v":0},0,null,{"$f":"SUMIFS(AG$9:AG$208,PlanningIDEnlaces,$C176,$H$9:$H$208,Lists!$A$16)","v":0},0,null,{"$f":"SUMIFS(AJ$9:AJ$208,PlanningIDEnlaces,$C176,$H$9:$H$208,Lists!$A$16)","v":0},0,null,{"$f":"SUMIFS(AM$9:AM$208,PlanningIDEnlaces,$C176,$H$9:$H$208,Lists!$A$16)","v":0},0,null,{"$f":"SUMIFS(AP$9:AP$208,PlanningIDEnlaces,$C176,$H$9:$H$208,Lists!$A$16)","v":0},0,null,{"$f":"IFERROR(INDEX(Lists!$F$5:$F$49,MATCH(Planning!C176,Lists!$G$5:$G$49,0),1),\"\")","v":""},null,{"$f":"IF(C176=0,\"\",\" [\"&INDEX(Lists!$H$5:$H$49,MATCH(C176,Lists!$G$5:$G$49,0),1)&\"]\")","v":""}]
["I169",{"$nulls":43},0,{"v":0,"d":"0.00"},null,null,{"$f":"SUMIFS(I$9:I$208,PlanningIDEnlaces,$C177,$H$9:$H$208,Lists!$A$16)","v":0},0,null,{"$f":"SUMIFS(L$9:L$208,PlanningIDEnlaces,$C177,$H$9:$H$208,Lists!$A$16)","v":0},0,null,{"$f":"SUMIFS(O$9:O$208,PlanningIDEnlaces,$C177,$H$9:$H$208,Lists!$A$16)","v":0},0,null,{"$f":"SUMIFS(R$9:R$208,PlanningIDEnlaces,$C177,$H$9:$H$208,Lists!$A$16)","v":0},0,null,{"$f":"SUMIFS(U$9:U$208,PlanningIDEnlaces,$C177,$H$9:$H$208,Lists!$A$16)","v":0},0,null,{"$f":"SUMIFS(X$9:X$208,PlanningIDEnlaces,$C177,$H$9:$H$208,Lists!$A$16)","v":0},0,null,{"$f":"SUMIFS(AA$9:AA$208,PlanningIDEnlaces,$C177,$H$9:$H$208,Lists!$A$16)","v":0},0,null,{"$f":"SUMIFS(AD$9:AD$208,PlanningIDEnlaces,$C177,$H$9:$H$208,Lists!$A$16)","v":0},0,null,{"$f":"SUMIFS(AG$9:AG$208,PlanningIDEnlaces,$C177,$H$9:$H$208,Lists!$A$16)","v":0},0,null,{"$f":"SUMIFS(AJ$9:AJ$208,PlanningIDEnlaces,$C177,$H$9:$H$208,Lists!$A$16)","v":0},0,null,{"$f":"SUMIFS(AM$9:AM$208,PlanningIDEnlaces,$C177,$H$9:$H$208,Lists!$A$16)","v":0},0,null,{"$f":"SUMIFS(AP$9:AP$208,PlanningIDEnlaces,$C177,$H$9:$H$208,Lists!$A$16)","v":0},0,null,{"$f":"IFERROR(INDEX(Lists!$F$5:$F$49,MATCH(Planning!C177,Lists!$G$5:$G$49,0),1),\"\")","v":""},null,{"$f":"IF(C177=0,\"\",\" [\"&INDEX(Lists!$H$5:$H$49,MATCH(C177,Lists!$G$5:$G$49,0),1)&\"]\")","v":""}]
["I170",{"$nulls":43},0,{"v":0,"d":"0.00"},null,null,{"$f":"SUMIFS(I$9:I$208,PlanningIDEnlaces,$C178,$H$9:$H$208,Lists!$A$16)","v":0},0,null,{"$f":"SUMIFS(L$9:L$208,PlanningIDEnlaces,$C178,$H$9:$H$208,Lists!$A$16)","v":0},0,null,{"$f":"SUMIFS(O$9:O$208,PlanningIDEnlaces,$C178,$H$9:$H$208,Lists!$A$16)","v":0},0,null,{"$f":"SUMIFS(R$9:R$208,PlanningIDEnlaces,$C178,$H$9:$H$208,Lists!$A$16)","v":0},0,null,{"$f":"SUMIFS(U$9:U$208,PlanningIDEnlaces,$C178,$H$9:$H$208,Lists!$A$16)","v":0},0,null,{"$f":"SUMIFS(X$9:X$208,PlanningIDEnlaces,$C178,$H$9:$H$208,Lists!$A$16)","v":0},0,null,{"$f":"SUMIFS(AA$9:AA$208,PlanningIDEnlaces,$C178,$H$9:$H$208,Lists!$A$16)","v":0},0,null,{"$f":"SUMIFS(AD$9:AD$208,PlanningIDEnlaces,$C178,$H$9:$H$208,Lists!$A$16)","v":0},0,null,{"$f":"SUMIFS(AG$9:AG$208,PlanningIDEnlaces,$C178,$H$9:$H$208,Lists!$A$16)","v":0},0,null,{"$f":"SUMIFS(AJ$9:AJ$208,PlanningIDEnlaces,$C178,$H$9:$H$208,Lists!$A$16)","v":0},0,null,{"$f":"SUMIFS(AM$9:AM$208,PlanningIDEnlaces,$C178,$H$9:$H$208,Lists!$A$16)","v":0},0,null,{"$f":"SUMIFS(AP$9:AP$208,PlanningIDEnlaces,$C178,$H$9:$H$208,Lists!$A$16)","v":0},0,null,{"$f":"IFERROR(INDEX(Lists!$F$5:$F$49,MATCH(Planning!C178,Lists!$G$5:$G$49,0),1),\"\")","v":""},null,{"$f":"IF(C178=0,\"\",\" [\"&INDEX(Lists!$H$5:$H$49,MATCH(C178,Lists!$G$5:$G$49,0),1)&\"]\")","v":""}]
["I171",{"$nulls":43},0,{"v":0,"d":"0.00"},null,null,{"$f":"SUMIFS(I$9:I$208,PlanningIDEnlaces,$C179,$H$9:$H$208,Lists!$A$16)","v":0},0,null,{"$f":"SUMIFS(L$9:L$208,PlanningIDEnlaces,$C179,$H$9:$H$208,Lists!$A$16)","v":0},0,null,{"$f":"SUMIFS(O$9:O$208,PlanningIDEnlaces,$C179,$H$9:$H$208,Lists!$A$16)","v":0},0,null,{"$f":"SUMIFS(R$9:R$208,PlanningIDEnlaces,$C179,$H$9:$H$208,Lists!$A$16)","v":0},0,null,{"$f":"SUMIFS(U$9:U$208,PlanningIDEnlaces,$C179,$H$9:$H$208,Lists!$A$16)","v":0},0,null,{"$f":"SUMIFS(X$9:X$208,PlanningIDEnlaces,$C179,$H$9:$H$208,Lists!$A$16)","v":0},0,null,{"$f":"SUMIFS(AA$9:AA$208,PlanningIDEnlaces,$C179,$H$9:$H$208,Lists!$A$16)","v":0},0,null,{"$f":"SUMIFS(AD$9:AD$208,PlanningIDEnlaces,$C179,$H$9:$H$208,Lists!$A$16)","v":0},0,null,{"$f":"SUMIFS(AG$9:AG$208,PlanningIDEnlaces,$C179,$H$9:$H$208,Lists!$A$16)","v":0},0,null,{"$f":"SUMIFS(AJ$9:AJ$208,PlanningIDEnlaces,$C179,$H$9:$H$208,Lists!$A$16)","v":0},0,null,{"$f":"SUMIFS(AM$9:AM$208,PlanningIDEnlaces,$C179,$H$9:$H$208,Lists!$A$16)","v":0},0,null,{"$f":"SUMIFS(AP$9:AP$208,PlanningIDEnlaces,$C179,$H$9:$H$208,Lists!$A$16)","v":0},0,null,{"$f":"IFERROR(INDEX(Lists!$F$5:$F$49,MATCH(Planning!C179,Lists!$G$5:$G$49,0),1),\"\")","v":""},null,{"$f":"IF(C179=0,\"\",\" [\"&INDEX(Lists!$H$5:$H$49,MATCH(C179,Lists!$G$5:$G$49,0),1)&\"]\")","v":""}]
["I172",{"$nulls":43},0,{"v":0,"d":"0.00"},null,null,{"$f":"SUMIFS(I$9:I$208,PlanningIDEnlaces,$C180,$H$9:$H$208,Lists!$A$16)","v":0},0,null,{"$f":"SUMIFS(L$9:L$208,PlanningIDEnlaces,$C180,$H$9:$H$208,Lists!$A$16)","v":0},0,null,{"$f":"SUMIFS(O$9:O$208,PlanningIDEnlaces,$C180,$H$9:$H$208,Lists!$A$16)","v":0},0,null,{"$f":"SUMIFS(R$9:R$208,PlanningIDEnlaces,$C180,$H$9:$H$208,Lists!$A$16)","v":0},0,null,{"$f":"SUMIFS(U$9:U$208,PlanningIDEnlaces,$C180,$H$9:$H$208,Lists!$A$16)","v":0},0,null,{"$f":"SUMIFS(X$9:X$208,PlanningIDEnlaces,$C180,$H$9:$H$208,Lists!$A$16)","v":0},0,null,{"$f":"SUMIFS(AA$9:AA$208,PlanningIDEnlaces,$C180,$H$9:$H$208,Lists!$A$16)","v":0},0,null,{"$f":"SUMIFS(AD$9:AD$208,PlanningIDEnlaces,$C180,$H$9:$H$208,Lists!$A$16)","v":0},0,null,{"$f":"SUMIFS(AG$9:AG$208,PlanningIDEnlaces,$C180,$H$9:$H$208,Lists!$A$16)","v":0},0,null,{"$f":"SUMIFS(AJ$9:AJ$208,PlanningIDEnlaces,$C180,$H$9:$H$208,Lists!$A$16)","v":0},0,null,{"$f":"SUMIFS(AM$9:AM$208,PlanningIDEnlaces,$C180,$H$9:$H$208,Lists!$A$16)","v":0},0,null,{"$f":"SUMIFS(AP$9:AP$208,PlanningIDEnlaces,$C180,$H$9:$H$208,Lists!$A$16)","v":0},0,null,{"$f":"IFERROR(INDEX(Lists!$F$5:$F$49,MATCH(Planning!C180,Lists!$G$5:$G$49,0),1),\"\")","v":""},null,{"$f":"IF(C180=0,\"\",\" [\"&INDEX(Lists!$H$5:$H$49,MATCH(C180,Lists!$G$5:$G$49,0),1)&\"]\")","v":""}]
["I173",{"$nulls":43},0,{"v":0,"d":"0.00"},null,null,{"$f":"SUMIFS(I$9:I$208,PlanningIDEnlaces,$C181,$H$9:$H$208,Lists!$A$16)","v":0},0,null,{"$f":"SUMIFS(L$9:L$208,PlanningIDEnlaces,$C181,$H$9:$H$208,Lists!$A$16)","v":0},0,null,{"$f":"SUMIFS(O$9:O$208,PlanningIDEnlaces,$C181,$H$9:$H$208,Lists!$A$16)","v":0},0,null,{"$f":"SUMIFS(R$9:R$208,PlanningIDEnlaces,$C181,$H$9:$H$208,Lists!$A$16)","v":0},0,null,{"$f":"SUMIFS(U$9:U$208,PlanningIDEnlaces,$C181,$H$9:$H$208,Lists!$A$16)","v":0},0,null,{"$f":"SUMIFS(X$9:X$208,PlanningIDEnlaces,$C181,$H$9:$H$208,Lists!$A$16)","v":0},0,null,{"$f":"SUMIFS(AA$9:AA$208,PlanningIDEnlaces,$C181,$H$9:$H$208,Lists!$A$16)","v":0},0,null,{"$f":"SUMIFS(AD$9:AD$208,PlanningIDEnlaces,$C181,$H$9:$H$208,Lists!$A$16)","v":0},0,null,{"$f":"SUMIFS(AG$9:AG$208,PlanningIDEnlaces,$C181,$H$9:$H$208,Lists!$A$16)","v":0},0,null,{"$f":"SUMIFS(AJ$9:AJ$208,PlanningIDEnlaces,$C181,$H$9:$H$208,Lists!$A$16)","v":0},0,null,{"$f":"SUMIFS(AM$9:AM$208,PlanningIDEnlaces,$C181,$H$9:$H$208,Lists!$A$16)","v":0},0,null,{"$f":"SUMIFS(AP$9:AP$208,PlanningIDEnlaces,$C181,$H$9:$H$208,Lists!$A$16)","v":0},0,null,{"$f":"IFERROR(INDEX(Lists!$F$5:$F$49,MATCH(Planning!C181,Lists!$G$5:$G$49,0),1),\"\")","v":""},null,{"$f":"IF(C181=0,\"\",\" [\"&INDEX(Lists!$H$5:$H$49,MATCH(C181,Lists!$G$5:$G$49,0),1)&\"]\")","v":""}]
["I174",{"$nulls":43},0,{"v":0,"d":"0.00"},null,null,{"$f":"SUMIFS(I$9:I$208,PlanningIDEnlaces,$C182,$H$9:$H$208,Lists!$A$16)","v":0},0,null,{"$f":"SUMIFS(L$9:L$208,PlanningIDEnlaces,$C182,$H$9:$H$208,Lists!$A$16)","v":0},0,null,{"$f":"SUMIFS(O$9:O$208,PlanningIDEnlaces,$C182,$H$9:$H$208,Lists!$A$16)","v":0},0,null,{"$f":"SUMIFS(R$9:R$208,PlanningIDEnlaces,$C182,$H$9:$H$208,Lists!$A$16)","v":0},0,null,{"$f":"SUMIFS(U$9:U$208,PlanningIDEnlaces,$C182,$H$9:$H$208,Lists!$A$16)","v":0},0,null,{"$f":"SUMIFS(X$9:X$208,PlanningIDEnlaces,$C182,$H$9:$H$208,Lists!$A$16)","v":0},0,null,{"$f":"SUMIFS(AA$9:AA$208,PlanningIDEnlaces,$C182,$H$9:$H$208,Lists!$A$16)","v":0},0,null,{"$f":"SUMIFS(AD$9:AD$208,PlanningIDEnlaces,$C182,$H$9:$H$208,Lists!$A$16)","v":0},0,null,{"$f":"SUMIFS(AG$9:AG$208,PlanningIDEnlaces,$C182,$H$9:$H$208,Lists!$A$16)","v":0},0,null,{"$f":"SUMIFS(AJ$9:AJ$208,PlanningIDEnlaces,$C182,$H$9:$H$208,Lists!$A$16)","v":0},0,null,{"$f":"SUMIFS(AM$9:AM$208,PlanningIDEnlaces,$C182,$H$9:$H$208,Lists!$A$16)","v":0},0,null,{"$f":"SUMIFS(AP$9:AP$208,PlanningIDEnlaces,$C182,$H$9:$H$208,Lists!$A$16)","v":0},0,null,{"$f":"IFERROR(INDEX(Lists!$F$5:$F$49,MATCH(Planning!C182,Lists!$G$5:$G$49,0),1),\"\")","v":""},null,{"$f":"IF(C182=0,\"\",\" [\"&INDEX(Lists!$H$5:$H$49,MATCH(C182,Lists!$G$5:$G$49,0),1)&\"]\")","v":""}]
["I175",{"$nulls":43},0,{"v":0,"d":"0.00"},null,null,{"$f":"SUMIFS(I$9:I$208,PlanningIDEnlaces,$C183,$H$9:$H$208,Lists!$A$16)","v":0},0,null,{"$f":"SUMIFS(L$9:L$208,PlanningIDEnlaces,$C183,$H$9:$H$208,Lists!$A$16)","v":0},0,null,{"$f":"SUMIFS(O$9:O$208,PlanningIDEnlaces,$C183,$H$9:$H$208,Lists!$A$16)","v":0},0,null,{"$f":"SUMIFS(R$9:R$208,PlanningIDEnlaces,$C183,$H$9:$H$208,Lists!$A$16)","v":0},0,null,{"$f":"SUMIFS(U$9:U$208,PlanningIDEnlaces,$C183,$H$9:$H$208,Lists!$A$16)","v":0},0,null,{"$f":"SUMIFS(X$9:X$208,PlanningIDEnlaces,$C183,$H$9:$H$208,Lists!$A$16)","v":0},0,null,{"$f":"SUMIFS(AA$9:AA$208,PlanningIDEnlaces,$C183,$H$9:$H$208,Lists!$A$16)","v":0},0,null,{"$f":"SUMIFS(AD$9:AD$208,PlanningIDEnlaces,$C183,$H$9:$H$208,Lists!$A$16)","v":0},0,null,{"$f":"SUMIFS(AG$9:AG$208,PlanningIDEnlaces,$C183,$H$9:$H$208,Lists!$A$16)","v":0},0,null,{"$f":"SUMIFS(AJ$9:AJ$208,PlanningIDEnlaces,$C183,$H$9:$H$208,Lists!$A$16)","v":0},0,null,{"$f":"SUMIFS(AM$9:AM$208,PlanningIDEnlaces,$C183,$H$9:$H$208,Lists!$A$16)","v":0},0,null,{"$f":"SUMIFS(AP$9:AP$208,PlanningIDEnlaces,$C183,$H$9:$H$208,Lists!$A$16)","v":0},0,null,{"$f":"IFERROR(INDEX(Lists!$F$5:$F$49,MATCH(Planning!C183,Lists!$G$5:$G$49,0),1),\"\")","v":""},null,{"$f":"IF(C183=0,\"\",\" [\"&INDEX(Lists!$H$5:$H$49,MATCH(C183,Lists!$G$5:$G$49,0),1)&\"]\")","v":""}]
["I176",{"$nulls":43},0,{"v":0,"d":"0.00"},null,null,{"$f":"SUMIFS(I$9:I$208,PlanningIDEnlaces,$C184,$H$9:$H$208,Lists!$A$16)","v":0},0,null,{"$f":"SUMIFS(L$9:L$208,PlanningIDEnlaces,$C184,$H$9:$H$208,Lists!$A$16)","v":0},0,null,{"$f":"SUMIFS(O$9:O$208,PlanningIDEnlaces,$C184,$H$9:$H$208,Lists!$A$16)","v":0},0,null,{"$f":"SUMIFS(R$9:R$208,PlanningIDEnlaces,$C184,$H$9:$H$208,Lists!$A$16)","v":0},0,null,{"$f":"SUMIFS(U$9:U$208,PlanningIDEnlaces,$C184,$H$9:$H$208,Lists!$A$16)","v":0},0,null,{"$f":"SUMIFS(X$9:X$208,PlanningIDEnlaces,$C184,$H$9:$H$208,Lists!$A$16)","v":0},0,null,{"$f":"SUMIFS(AA$9:AA$208,PlanningIDEnlaces,$C184,$H$9:$H$208,Lists!$A$16)","v":0},0,null,{"$f":"SUMIFS(AD$9:AD$208,PlanningIDEnlaces,$C184,$H$9:$H$208,Lists!$A$16)","v":0},0,null,{"$f":"SUMIFS(AG$9:AG$208,PlanningIDEnlaces,$C184,$H$9:$H$208,Lists!$A$16)","v":0},0,null,{"$f":"SUMIFS(AJ$9:AJ$208,PlanningIDEnlaces,$C184,$H$9:$H$208,Lists!$A$16)","v":0},0,null,{"$f":"SUMIFS(AM$9:AM$208,PlanningIDEnlaces,$C184,$H$9:$H$208,Lists!$A$16)","v":0},0,null,{"$f":"SUMIFS(AP$9:AP$208,PlanningIDEnlaces,$C184,$H$9:$H$208,Lists!$A$16)","v":0},0,null,{"$f":"IFERROR(INDEX(Lists!$F$5:$F$49,MATCH(Planning!C184,Lists!$G$5:$G$49,0),1),\"\")","v":""},null,{"$f":"IF(C184=0,\"\",\" [\"&INDEX(Lists!$H$5:$H$49,MATCH(C184,Lists!$G$5:$G$49,0),1)&\"]\")","v":""}]
["I177",{"$nulls":43},0,{"v":0,"d":"0.00"},null,null,{"$f":"SUMIFS(I$9:I$208,PlanningIDEnlaces,$C185,$H$9:$H$208,Lists!$A$16)","v":0},0,null,{"$f":"SUMIFS(L$9:L$208,PlanningIDEnlaces,$C185,$H$9:$H$208,Lists!$A$16)","v":0},0,null,{"$f":"SUMIFS(O$9:O$208,PlanningIDEnlaces,$C185,$H$9:$H$208,Lists!$A$16)","v":0},0,null,{"$f":"SUMIFS(R$9:R$208,PlanningIDEnlaces,$C185,$H$9:$H$208,Lists!$A$16)","v":0},0,null,{"$f":"SUMIFS(U$9:U$208,PlanningIDEnlaces,$C185,$H$9:$H$208,Lists!$A$16)","v":0},0,null,{"$f":"SUMIFS(X$9:X$208,PlanningIDEnlaces,$C185,$H$9:$H$208,Lists!$A$16)","v":0},0,null,{"$f":"SUMIFS(AA$9:AA$208,PlanningIDEnlaces,$C185,$H$9:$H$208,Lists!$A$16)","v":0},0,null,{"$f":"SUMIFS(AD$9:AD$208,PlanningIDEnlaces,$C185,$H$9:$H$208,Lists!$A$16)","v":0},0,null,{"$f":"SUMIFS(AG$9:AG$208,PlanningIDEnlaces,$C185,$H$9:$H$208,Lists!$A$16)","v":0},0,null,{"$f":"SUMIFS(AJ$9:AJ$208,PlanningIDEnlaces,$C185,$H$9:$H$208,Lists!$A$16)","v":0},0,null,{"$f":"SUMIFS(AM$9:AM$208,PlanningIDEnlaces,$C185,$H$9:$H$208,Lists!$A$16)","v":0},0,null,{"$f":"SUMIFS(AP$9:AP$208,PlanningIDEnlaces,$C185,$H$9:$H$208,Lists!$A$16)","v":0},0,null,{"$f":"IFERROR(INDEX(Lists!$F$5:$F$49,MATCH(Planning!C185,Lists!$G$5:$G$49,0),1),\"\")","v":""},null,{"$f":"IF(C185=0,\"\",\" [\"&INDEX(Lists!$H$5:$H$49,MATCH(C185,Lists!$G$5:$G$49,0),1)&\"]\")","v":""}]
["I178",{"$nulls":43},0,{"v":0,"d":"0.00"},null,null,{"$f":"SUMIFS(I$9:I$208,PlanningIDEnlaces,$C186,$H$9:$H$208,Lists!$A$16)","v":0},0,null,{"$f":"SUMIFS(L$9:L$208,PlanningIDEnlaces,$C186,$H$9:$H$208,Lists!$A$16)","v":0},0,null,{"$f":"SUMIFS(O$9:O$208,PlanningIDEnlaces,$C186,$H$9:$H$208,Lists!$A$16)","v":0},0,null,{"$f":"SUMIFS(R$9:R$208,PlanningIDEnlaces,$C186,$H$9:$H$208,Lists!$A$16)","v":0},0,null,{"$f":"SUMIFS(U$9:U$208,PlanningIDEnlaces,$C186,$H$9:$H$208,Lists!$A$16)","v":0},0,null,{"$f":"SUMIFS(X$9:X$208,PlanningIDEnlaces,$C186,$H$9:$H$208,Lists!$A$16)","v":0},0,null,{"$f":"SUMIFS(AA$9:AA$208,PlanningIDEnlaces,$C186,$H$9:$H$208,Lists!$A$16)","v":0},0,null,{"$f":"SUMIFS(AD$9:AD$208,PlanningIDEnlaces,$C186,$H$9:$H$208,Lists!$A$16)","v":0},0,null,{"$f":"SUMIFS(AG$9:AG$208,PlanningIDEnlaces,$C186,$H$9:$H$208,Lists!$A$16)","v":0},0,null,{"$f":"SUMIFS(AJ$9:AJ$208,PlanningIDEnlaces,$C186,$H$9:$H$208,Lists!$A$16)","v":0},0,null,{"$f":"SUMIFS(AM$9:AM$208,PlanningIDEnlaces,$C186,$H$9:$H$208,Lists!$A$16)","v":0},0,null,{"$f":"SUMIFS(AP$9:AP$208,PlanningIDEnlaces,$C186,$H$9:$H$208,Lists!$A$16)","v":0},0,null,{"$f":"IFERROR(INDEX(Lists!$F$5:$F$49,MATCH(Planning!C186,Lists!$G$5:$G$49,0),1),\"\")","v":""},null,{"$f":"IF(C186=0,\"\",\" [\"&INDEX(Lists!$H$5:$H$49,MATCH(C186,Lists!$G$5:$G$49,0),1)&\"]\")","v":""}]
["I179",{"$nulls":43},0,{"v":0,"d":"0.00"},null,null,{"$f":"SUMIFS(I$9:I$208,PlanningIDEnlaces,$C187,$H$9:$H$208,Lists!$A$16)","v":0},0,null,{"$f":"SUMIFS(L$9:L$208,PlanningIDEnlaces,$C187,$H$9:$H$208,Lists!$A$16)","v":0},0,null,{"$f":"SUMIFS(O$9:O$208,PlanningIDEnlaces,$C187,$H$9:$H$208,Lists!$A$16)","v":0},0,null,{"$f":"SUMIFS(R$9:R$208,PlanningIDEnlaces,$C187,$H$9:$H$208,Lists!$A$16)","v":0},0,null,{"$f":"SUMIFS(U$9:U$208,PlanningIDEnlaces,$C187,$H$9:$H$208,Lists!$A$16)","v":0},0,null,{"$f":"SUMIFS(X$9:X$208,PlanningIDEnlaces,$C187,$H$9:$H$208,Lists!$A$16)","v":0},0,null,{"$f":"SUMIFS(AA$9:AA$208,PlanningIDEnlaces,$C187,$H$9:$H$208,Lists!$A$16)","v":0},0,null,{"$f":"SUMIFS(AD$9:AD$208,PlanningIDEnlaces,$C187,$H$9:$H$208,Lists!$A$16)","v":0},0,null,{"$f":"SUMIFS(AG$9:AG$208,PlanningIDEnlaces,$C187,$H$9:$H$208,Lists!$A$16)","v":0},0,null,{"$f":"SUMIFS(AJ$9:AJ$208,PlanningIDEnlaces,$C187,$H$9:$H$208,Lists!$A$16)","v":0},0,null,{"$f":"SUMIFS(AM$9:AM$208,PlanningIDEnlaces,$C187,$H$9:$H$208,Lists!$A$16)","v":0},0,null,{"$f":"SUMIFS(AP$9:AP$208,PlanningIDEnlaces,$C187,$H$9:$H$208,Lists!$A$16)","v":0},0,null,{"$f":"IFERROR(INDEX(Lists!$F$5:$F$49,MATCH(Planning!C187,Lists!$G$5:$G$49,0),1),\"\")","v":""},null,{"$f":"IF(C187=0,\"\",\" [\"&INDEX(Lists!$H$5:$H$49,MATCH(C187,Lists!$G$5:$G$49,0),1)&\"]\")","v":""}]
["I180",{"$nulls":43},0,{"v":0,"d":"0.00"},null,null,{"$f":"SUMIFS(I$9:I$208,PlanningIDEnlaces,$C188,$H$9:$H$208,Lists!$A$16)","v":0},0,null,{"$f":"SUMIFS(L$9:L$208,PlanningIDEnlaces,$C188,$H$9:$H$208,Lists!$A$16)","v":0},0,null,{"$f":"SUMIFS(O$9:O$208,PlanningIDEnlaces,$C188,$H$9:$H$208,Lists!$A$16)","v":0},0,null,{"$f":"SUMIFS(R$9:R$208,PlanningIDEnlaces,$C188,$H$9:$H$208,Lists!$A$16)","v":0},0,null,{"$f":"SUMIFS(U$9:U$208,PlanningIDEnlaces,$C188,$H$9:$H$208,Lists!$A$16)","v":0},0,null,{"$f":"SUMIFS(X$9:X$208,PlanningIDEnlaces,$C188,$H$9:$H$208,Lists!$A$16)","v":0},0,null,{"$f":"SUMIFS(AA$9:AA$208,PlanningIDEnlaces,$C188,$H$9:$H$208,Lists!$A$16)","v":0},0,null,{"$f":"SUMIFS(AD$9:AD$208,PlanningIDEnlaces,$C188,$H$9:$H$208,Lists!$A$16)","v":0},0,null,{"$f":"SUMIFS(AG$9:AG$208,PlanningIDEnlaces,$C188,$H$9:$H$208,Lists!$A$16)","v":0},0,null,{"$f":"SUMIFS(AJ$9:AJ$208,PlanningIDEnlaces,$C188,$H$9:$H$208,Lists!$A$16)","v":0},0,null,{"$f":"SUMIFS(AM$9:AM$208,PlanningIDEnlaces,$C188,$H$9:$H$208,Lists!$A$16)","v":0},0,null,{"$f":"SUMIFS(AP$9:AP$208,PlanningIDEnlaces,$C188,$H$9:$H$208,Lists!$A$16)","v":0},0,null,{"$f":"IFERROR(INDEX(Lists!$F$5:$F$49,MATCH(Planning!C188,Lists!$G$5:$G$49,0),1),\"\")","v":""},null,{"$f":"IF(C188=0,\"\",\" [\"&INDEX(Lists!$H$5:$H$49,MATCH(C188,Lists!$G$5:$G$49,0),1)&\"]\")","v":""}]
["I181",{"$nulls":43},0,{"v":0,"d":"0.00"},null,null,{"$f":"SUMIFS(I$9:I$208,PlanningIDEnlaces,$C189,$H$9:$H$208,Lists!$A$16)","v":0},0,null,{"$f":"SUMIFS(L$9:L$208,PlanningIDEnlaces,$C189,$H$9:$H$208,Lists!$A$16)","v":0},0,null,{"$f":"SUMIFS(O$9:O$208,PlanningIDEnlaces,$C189,$H$9:$H$208,Lists!$A$16)","v":0},0,null,{"$f":"SUMIFS(R$9:R$208,PlanningIDEnlaces,$C189,$H$9:$H$208,Lists!$A$16)","v":0},0,null,{"$f":"SUMIFS(U$9:U$208,PlanningIDEnlaces,$C189,$H$9:$H$208,Lists!$A$16)","v":0},0,null,{"$f":"SUMIFS(X$9:X$208,PlanningIDEnlaces,$C189,$H$9:$H$208,Lists!$A$16)","v":0},0,null,{"$f":"SUMIFS(AA$9:AA$208,PlanningIDEnlaces,$C189,$H$9:$H$208,Lists!$A$16)","v":0},0,null,{"$f":"SUMIFS(AD$9:AD$208,PlanningIDEnlaces,$C189,$H$9:$H$208,Lists!$A$16)","v":0},0,null,{"$f":"SUMIFS(AG$9:AG$208,PlanningIDEnlaces,$C189,$H$9:$H$208,Lists!$A$16)","v":0},0,null,{"$f":"SUMIFS(AJ$9:AJ$208,PlanningIDEnlaces,$C189,$H$9:$H$208,Lists!$A$16)","v":0},0,null,{"$f":"SUMIFS(AM$9:AM$208,PlanningIDEnlaces,$C189,$H$9:$H$208,Lists!$A$16)","v":0},0,null,{"$f":"SUMIFS(AP$9:AP$208,PlanningIDEnlaces,$C189,$H$9:$H$208,Lists!$A$16)","v":0},0,null,{"$f":"IFERROR(INDEX(Lists!$F$5:$F$49,MATCH(Planning!C189,Lists!$G$5:$G$49,0),1),\"\")","v":""},null,{"$f":"IF(C189=0,\"\",\" [\"&INDEX(Lists!$H$5:$H$49,MATCH(C189,Lists!$G$5:$G$49,0),1)&\"]\")","v":""}]
["I182",{"$nulls":43},0,{"v":0,"d":"0.00"},null,null,{"$f":"SUMIFS(I$9:I$208,PlanningIDEnlaces,$C190,$H$9:$H$208,Lists!$A$16)","v":0},0,null,{"$f":"SUMIFS(L$9:L$208,PlanningIDEnlaces,$C190,$H$9:$H$208,Lists!$A$16)","v":0},0,null,{"$f":"SUMIFS(O$9:O$208,PlanningIDEnlaces,$C190,$H$9:$H$208,Lists!$A$16)","v":0},0,null,{"$f":"SUMIFS(R$9:R$208,PlanningIDEnlaces,$C190,$H$9:$H$208,Lists!$A$16)","v":0},0,null,{"$f":"SUMIFS(U$9:U$208,PlanningIDEnlaces,$C190,$H$9:$H$208,Lists!$A$16)","v":0},0,null,{"$f":"SUMIFS(X$9:X$208,PlanningIDEnlaces,$C190,$H$9:$H$208,Lists!$A$16)","v":0},0,null,{"$f":"SUMIFS(AA$9:AA$208,PlanningIDEnlaces,$C190,$H$9:$H$208,Lists!$A$16)","v":0},0,null,{"$f":"SUMIFS(AD$9:AD$208,PlanningIDEnlaces,$C190,$H$9:$H$208,Lists!$A$16)","v":0},0,null,{"$f":"SUMIFS(AG$9:AG$208,PlanningIDEnlaces,$C190,$H$9:$H$208,Lists!$A$16)","v":0},0,null,{"$f":"SUMIFS(AJ$9:AJ$208,PlanningIDEnlaces,$C190,$H$9:$H$208,Lists!$A$16)","v":0},0,null,{"$f":"SUMIFS(AM$9:AM$208,PlanningIDEnlaces,$C190,$H$9:$H$208,Lists!$A$16)","v":0},0,null,{"$f":"SUMIFS(AP$9:AP$208,PlanningIDEnlaces,$C190,$H$9:$H$208,Lists!$A$16)","v":0},0,null,{"$f":"IFERROR(INDEX(Lists!$F$5:$F$49,MATCH(Planning!C190,Lists!$G$5:$G$49,0),1),\"\")","v":""},null,{"$f":"IF(C190=0,\"\",\" [\"&INDEX(Lists!$H$5:$H$49,MATCH(C190,Lists!$G$5:$G$49,0),1)&\"]\")","v":""}]
["I183",{"$nulls":43},0,{"v":0,"d":"0.00"},null,null,{"$f":"SUMIFS(I$9:I$208,PlanningIDEnlaces,$C191,$H$9:$H$208,Lists!$A$16)","v":0},0,null,{"$f":"SUMIFS(L$9:L$208,PlanningIDEnlaces,$C191,$H$9:$H$208,Lists!$A$16)","v":0},0,null,{"$f":"SUMIFS(O$9:O$208,PlanningIDEnlaces,$C191,$H$9:$H$208,Lists!$A$16)","v":0},0,null,{"$f":"SUMIFS(R$9:R$208,PlanningIDEnlaces,$C191,$H$9:$H$208,Lists!$A$16)","v":0},0,null,{"$f":"SUMIFS(U$9:U$208,PlanningIDEnlaces,$C191,$H$9:$H$208,Lists!$A$16)","v":0},0,null,{"$f":"SUMIFS(X$9:X$208,PlanningIDEnlaces,$C191,$H$9:$H$208,Lists!$A$16)","v":0},0,null,{"$f":"SUMIFS(AA$9:AA$208,PlanningIDEnlaces,$C191,$H$9:$H$208,Lists!$A$16)","v":0},0,null,{"$f":"SUMIFS(AD$9:AD$208,PlanningIDEnlaces,$C191,$H$9:$H$208,Lists!$A$16)","v":0},0,null,{"$f":"SUMIFS(AG$9:AG$208,PlanningIDEnlaces,$C191,$H$9:$H$208,Lists!$A$16)","v":0},0,null,{"$f":"SUMIFS(AJ$9:AJ$208,PlanningIDEnlaces,$C191,$H$9:$H$208,Lists!$A$16)","v":0},0,null,{"$f":"SUMIFS(AM$9:AM$208,PlanningIDEnlaces,$C191,$H$9:$H$208,Lists!$A$16)","v":0},0,null,{"$f":"SUMIFS(AP$9:AP$208,PlanningIDEnlaces,$C191,$H$9:$H$208,Lists!$A$16)","v":0},0,null,{"$f":"IFERROR(INDEX(Lists!$F$5:$F$49,MATCH(Planning!C191,Lists!$G$5:$G$49,0),1),\"\")","v":""},null,{"$f":"IF(C191=0,\"\",\" [\"&INDEX(Lists!$H$5:$H$49,MATCH(C191,Lists!$G$5:$G$49,0),1)&\"]\")","v":""}]
["I184",{"$nulls":43},0,{"v":0,"d":"0.00"},null,null,{"$f":"SUMIFS(I$9:I$208,PlanningIDEnlaces,$C192,$H$9:$H$208,Lists!$A$16)","v":0},0,null,{"$f":"SUMIFS(L$9:L$208,PlanningIDEnlaces,$C192,$H$9:$H$208,Lists!$A$16)","v":0},0,null,{"$f":"SUMIFS(O$9:O$208,PlanningIDEnlaces,$C192,$H$9:$H$208,Lists!$A$16)","v":0},0,null,{"$f":"SUMIFS(R$9:R$208,PlanningIDEnlaces,$C192,$H$9:$H$208,Lists!$A$16)","v":0},0,null,{"$f":"SUMIFS(U$9:U$208,PlanningIDEnlaces,$C192,$H$9:$H$208,Lists!$A$16)","v":0},0,null,{"$f":"SUMIFS(X$9:X$208,PlanningIDEnlaces,$C192,$H$9:$H$208,Lists!$A$16)","v":0},0,null,{"$f":"SUMIFS(AA$9:AA$208,PlanningIDEnlaces,$C192,$H$9:$H$208,Lists!$A$16)","v":0},0,null,{"$f":"SUMIFS(AD$9:AD$208,PlanningIDEnlaces,$C192,$H$9:$H$208,Lists!$A$16)","v":0},0,null,{"$f":"SUMIFS(AG$9:AG$208,PlanningIDEnlaces,$C192,$H$9:$H$208,Lists!$A$16)","v":0},0,null,{"$f":"SUMIFS(AJ$9:AJ$208,PlanningIDEnlaces,$C192,$H$9:$H$208,Lists!$A$16)","v":0},0,null,{"$f":"SUMIFS(AM$9:AM$208,PlanningIDEnlaces,$C192,$H$9:$H$208,Lists!$A$16)","v":0},0,null,{"$f":"SUMIFS(AP$9:AP$208,PlanningIDEnlaces,$C192,$H$9:$H$208,Lists!$A$16)","v":0},0,null,{"$f":"IFERROR(INDEX(Lists!$F$5:$F$49,MATCH(Planning!C192,Lists!$G$5:$G$49,0),1),\"\")","v":""},null,{"$f":"IF(C192=0,\"\",\" [\"&INDEX(Lists!$H$5:$H$49,MATCH(C192,Lists!$G$5:$G$49,0),1)&\"]\")","v":""}]
["I185",{"$nulls":43},0,{"v":0,"d":"0.00"},null,null,{"$f":"SUMIFS(I$9:I$208,PlanningIDEnlaces,$C193,$H$9:$H$208,Lists!$A$16)","v":0},0,null,{"$f":"SUMIFS(L$9:L$208,PlanningIDEnlaces,$C193,$H$9:$H$208,Lists!$A$16)","v":0},0,null,{"$f":"SUMIFS(O$9:O$208,PlanningIDEnlaces,$C193,$H$9:$H$208,Lists!$A$16)","v":0},0,null,{"$f":"SUMIFS(R$9:R$208,PlanningIDEnlaces,$C193,$H$9:$H$208,Lists!$A$16)","v":0},0,null,{"$f":"SUMIFS(U$9:U$208,PlanningIDEnlaces,$C193,$H$9:$H$208,Lists!$A$16)","v":0},0,null,{"$f":"SUMIFS(X$9:X$208,PlanningIDEnlaces,$C193,$H$9:$H$208,Lists!$A$16)","v":0},0,null,{"$f":"SUMIFS(AA$9:AA$208,PlanningIDEnlaces,$C193,$H$9:$H$208,Lists!$A$16)","v":0},0,null,{"$f":"SUMIFS(AD$9:AD$208,PlanningIDEnlaces,$C193,$H$9:$H$208,Lists!$A$16)","v":0},0,null,{"$f":"SUMIFS(AG$9:AG$208,PlanningIDEnlaces,$C193,$H$9:$H$208,Lists!$A$16)","v":0},0,null,{"$f":"SUMIFS(AJ$9:AJ$208,PlanningIDEnlaces,$C193,$H$9:$H$208,Lists!$A$16)","v":0},0,null,{"$f":"SUMIFS(AM$9:AM$208,PlanningIDEnlaces,$C193,$H$9:$H$208,Lists!$A$16)","v":0},0,null,{"$f":"SUMIFS(AP$9:AP$208,PlanningIDEnlaces,$C193,$H$9:$H$208,Lists!$A$16)","v":0},0,null,{"$f":"IFERROR(INDEX(Lists!$F$5:$F$49,MATCH(Planning!C193,Lists!$G$5:$G$49,0),1),\"\")","v":""},null,{"$f":"IF(C193=0,\"\",\" [\"&INDEX(Lists!$H$5:$H$49,MATCH(C193,Lists!$G$5:$G$49,0),1)&\"]\")","v":""}]
["I186",{"$nulls":43},0,{"v":0,"d":"0.00"},null,null,{"$f":"SUMIFS(I$9:I$208,PlanningIDEnlaces,$C194,$H$9:$H$208,Lists!$A$16)","v":0},0,null,{"$f":"SUMIFS(L$9:L$208,PlanningIDEnlaces,$C194,$H$9:$H$208,Lists!$A$16)","v":0},0,null,{"$f":"SUMIFS(O$9:O$208,PlanningIDEnlaces,$C194,$H$9:$H$208,Lists!$A$16)","v":0},0,null,{"$f":"SUMIFS(R$9:R$208,PlanningIDEnlaces,$C194,$H$9:$H$208,Lists!$A$16)","v":0},0,null,{"$f":"SUMIFS(U$9:U$208,PlanningIDEnlaces,$C194,$H$9:$H$208,Lists!$A$16)","v":0},0,null,{"$f":"SUMIFS(X$9:X$208,PlanningIDEnlaces,$C194,$H$9:$H$208,Lists!$A$16)","v":0},0,null,{"$f":"SUMIFS(AA$9:AA$208,PlanningIDEnlaces,$C194,$H$9:$H$208,Lists!$A$16)","v":0},0,null,{"$f":"SUMIFS(AD$9:AD$208,PlanningIDEnlaces,$C194,$H$9:$H$208,Lists!$A$16)","v":0},0,null,{"$f":"SUMIFS(AG$9:AG$208,PlanningIDEnlaces,$C194,$H$9:$H$208,Lists!$A$16)","v":0},0,null,{"$f":"SUMIFS(AJ$9:AJ$208,PlanningIDEnlaces,$C194,$H$9:$H$208,Lists!$A$16)","v":0},0,null,{"$f":"SUMIFS(AM$9:AM$208,PlanningIDEnlaces,$C194,$H$9:$H$208,Lists!$A$16)","v":0},0,null,{"$f":"SUMIFS(AP$9:AP$208,PlanningIDEnlaces,$C194,$H$9:$H$208,Lists!$A$16)","v":0},0,null,{"$f":"IFERROR(INDEX(Lists!$F$5:$F$49,MATCH(Planning!C194,Lists!$G$5:$G$49,0),1),\"\")","v":""},null,{"$f":"IF(C194=0,\"\",\" [\"&INDEX(Lists!$H$5:$H$49,MATCH(C194,Lists!$G$5:$G$49,0),1)&\"]\")","v":""}]
["I187",{"$nulls":43},0,{"v":0,"d":"0.00"},null,null,{"$f":"SUMIFS(I$9:I$208,PlanningIDEnlaces,$C195,$H$9:$H$208,Lists!$A$16)","v":0},0,null,{"$f":"SUMIFS(L$9:L$208,PlanningIDEnlaces,$C195,$H$9:$H$208,Lists!$A$16)","v":0},0,null,{"$f":"SUMIFS(O$9:O$208,PlanningIDEnlaces,$C195,$H$9:$H$208,Lists!$A$16)","v":0},0,null,{"$f":"SUMIFS(R$9:R$208,PlanningIDEnlaces,$C195,$H$9:$H$208,Lists!$A$16)","v":0},0,null,{"$f":"SUMIFS(U$9:U$208,PlanningIDEnlaces,$C195,$H$9:$H$208,Lists!$A$16)","v":0},0,null,{"$f":"SUMIFS(X$9:X$208,PlanningIDEnlaces,$C195,$H$9:$H$208,Lists!$A$16)","v":0},0,null,{"$f":"SUMIFS(AA$9:AA$208,PlanningIDEnlaces,$C195,$H$9:$H$208,Lists!$A$16)","v":0},0,null,{"$f":"SUMIFS(AD$9:AD$208,PlanningIDEnlaces,$C195,$H$9:$H$208,Lists!$A$16)","v":0},0,null,{"$f":"SUMIFS(AG$9:AG$208,PlanningIDEnlaces,$C195,$H$9:$H$208,Lists!$A$16)","v":0},0,null,{"$f":"SUMIFS(AJ$9:AJ$208,PlanningIDEnlaces,$C195,$H$9:$H$208,Lists!$A$16)","v":0},0,null,{"$f":"SUMIFS(AM$9:AM$208,PlanningIDEnlaces,$C195,$H$9:$H$208,Lists!$A$16)","v":0},0,null,{"$f":"SUMIFS(AP$9:AP$208,PlanningIDEnlaces,$C195,$H$9:$H$208,Lists!$A$16)","v":0},0,null,{"$f":"IFERROR(INDEX(Lists!$F$5:$F$49,MATCH(Planning!C195,Lists!$G$5:$G$49,0),1),\"\")","v":""},null,{"$f":"IF(C195=0,\"\",\" [\"&INDEX(Lists!$H$5:$H$49,MATCH(C195,Lists!$G$5:$G$49,0),1)&\"]\")","v":""}]
["I188",{"$nulls":43},0,{"v":0,"d":"0.00"},null,null,{"$f":"SUMIFS(I$9:I$208,PlanningIDEnlaces,$C196,$H$9:$H$208,Lists!$A$16)","v":0},0,null,{"$f":"SUMIFS(L$9:L$208,PlanningIDEnlaces,$C196,$H$9:$H$208,Lists!$A$16)","v":0},0,null,{"$f":"SUMIFS(O$9:O$208,PlanningIDEnlaces,$C196,$H$9:$H$208,Lists!$A$16)","v":0},0,null,{"$f":"SUMIFS(R$9:R$208,PlanningIDEnlaces,$C196,$H$9:$H$208,Lists!$A$16)","v":0},0,null,{"$f":"SUMIFS(U$9:U$208,PlanningIDEnlaces,$C196,$H$9:$H$208,Lists!$A$16)","v":0},0,null,{"$f":"SUMIFS(X$9:X$208,PlanningIDEnlaces,$C196,$H$9:$H$208,Lists!$A$16)","v":0},0,null,{"$f":"SUMIFS(AA$9:AA$208,PlanningIDEnlaces,$C196,$H$9:$H$208,Lists!$A$16)","v":0},0,null,{"$f":"SUMIFS(AD$9:AD$208,PlanningIDEnlaces,$C196,$H$9:$H$208,Lists!$A$16)","v":0},0,null,{"$f":"SUMIFS(AG$9:AG$208,PlanningIDEnlaces,$C196,$H$9:$H$208,Lists!$A$16)","v":0},0,null,{"$f":"SUMIFS(AJ$9:AJ$208,PlanningIDEnlaces,$C196,$H$9:$H$208,Lists!$A$16)","v":0},0,null,{"$f":"SUMIFS(AM$9:AM$208,PlanningIDEnlaces,$C196,$H$9:$H$208,Lists!$A$16)","v":0},0,null,{"$f":"SUMIFS(AP$9:AP$208,PlanningIDEnlaces,$C196,$H$9:$H$208,Lists!$A$16)","v":0},0,null,{"$f":"IFERROR(INDEX(Lists!$F$5:$F$49,MATCH(Planning!C196,Lists!$G$5:$G$49,0),1),\"\")","v":""},null,{"$f":"IF(C196=0,\"\",\" [\"&INDEX(Lists!$H$5:$H$49,MATCH(C196,Lists!$G$5:$G$49,0),1)&\"]\")","v":""}]
["I189",{"$nulls":43},0,{"v":0,"d":"0.00"},null,null,{"$f":"SUMIFS(I$9:I$208,PlanningIDEnlaces,$C197,$H$9:$H$208,Lists!$A$16)","v":0},0,null,{"$f":"SUMIFS(L$9:L$208,PlanningIDEnlaces,$C197,$H$9:$H$208,Lists!$A$16)","v":0},0,null,{"$f":"SUMIFS(O$9:O$208,PlanningIDEnlaces,$C197,$H$9:$H$208,Lists!$A$16)","v":0},0,null,{"$f":"SUMIFS(R$9:R$208,PlanningIDEnlaces,$C197,$H$9:$H$208,Lists!$A$16)","v":0},0,null,{"$f":"SUMIFS(U$9:U$208,PlanningIDEnlaces,$C197,$H$9:$H$208,Lists!$A$16)","v":0},0,null,{"$f":"SUMIFS(X$9:X$208,PlanningIDEnlaces,$C197,$H$9:$H$208,Lists!$A$16)","v":0},0,null,{"$f":"SUMIFS(AA$9:AA$208,PlanningIDEnlaces,$C197,$H$9:$H$208,Lists!$A$16)","v":0},0,null,{"$f":"SUMIFS(AD$9:AD$208,PlanningIDEnlaces,$C197,$H$9:$H$208,Lists!$A$16)","v":0},0,null,{"$f":"SUMIFS(AG$9:AG$208,PlanningIDEnlaces,$C197,$H$9:$H$208,Lists!$A$16)","v":0},0,null,{"$f":"SUMIFS(AJ$9:AJ$208,PlanningIDEnlaces,$C197,$H$9:$H$208,Lists!$A$16)","v":0},0,null,{"$f":"SUMIFS(AM$9:AM$208,PlanningIDEnlaces,$C197,$H$9:$H$208,Lists!$A$16)","v":0},0,null,{"$f":"SUMIFS(AP$9:AP$208,PlanningIDEnlaces,$C197,$H$9:$H$208,Lists!$A$16)","v":0},0,null,{"$f":"IFERROR(INDEX(Lists!$F$5:$F$49,MATCH(Planning!C197,Lists!$G$5:$G$49,0),1),\"\")","v":""},null,{"$f":"IF(C197=0,\"\",\" [\"&INDEX(Lists!$H$5:$H$49,MATCH(C197,Lists!$G$5:$G$49,0),1)&\"]\")","v":""}]
["I190",{"$nulls":43},0,{"v":0,"d":"0.00"},null,null,{"$f":"SUMIFS(I$9:I$208,PlanningIDEnlaces,$C198,$H$9:$H$208,Lists!$A$16)","v":0},0,null,{"$f":"SUMIFS(L$9:L$208,PlanningIDEnlaces,$C198,$H$9:$H$208,Lists!$A$16)","v":0},0,null,{"$f":"SUMIFS(O$9:O$208,PlanningIDEnlaces,$C198,$H$9:$H$208,Lists!$A$16)","v":0},0,null,{"$f":"SUMIFS(R$9:R$208,PlanningIDEnlaces,$C198,$H$9:$H$208,Lists!$A$16)","v":0},0,null,{"$f":"SUMIFS(U$9:U$208,PlanningIDEnlaces,$C198,$H$9:$H$208,Lists!$A$16)","v":0},0,null,{"$f":"SUMIFS(X$9:X$208,PlanningIDEnlaces,$C198,$H$9:$H$208,Lists!$A$16)","v":0},0,null,{"$f":"SUMIFS(AA$9:AA$208,PlanningIDEnlaces,$C198,$H$9:$H$208,Lists!$A$16)","v":0},0,null,{"$f":"SUMIFS(AD$9:AD$208,PlanningIDEnlaces,$C198,$H$9:$H$208,Lists!$A$16)","v":0},0,null,{"$f":"SUMIFS(AG$9:AG$208,PlanningIDEnlaces,$C198,$H$9:$H$208,Lists!$A$16)","v":0},0,null,{"$f":"SUMIFS(AJ$9:AJ$208,PlanningIDEnlaces,$C198,$H$9:$H$208,Lists!$A$16)","v":0},0,null,{"$f":"SUMIFS(AM$9:AM$208,PlanningIDEnlaces,$C198,$H$9:$H$208,Lists!$A$16)","v":0},0,null,{"$f":"SUMIFS(AP$9:AP$208,PlanningIDEnlaces,$C198,$H$9:$H$208,Lists!$A$16)","v":0},0,null,{"$f":"IFERROR(INDEX(Lists!$F$5:$F$49,MATCH(Planning!C198,Lists!$G$5:$G$49,0),1),\"\")","v":""},null,{"$f":"IF(C198=0,\"\",\" [\"&INDEX(Lists!$H$5:$H$49,MATCH(C198,Lists!$G$5:$G$49,0),1)&\"]\")","v":""}]
["I191",{"$nulls":43},0,{"v":0,"d":"0.00"},null,null,{"$f":"SUMIFS(I$9:I$208,PlanningIDEnlaces,$C199,$H$9:$H$208,Lists!$A$16)","v":0},0,null,{"$f":"SUMIFS(L$9:L$208,PlanningIDEnlaces,$C199,$H$9:$H$208,Lists!$A$16)","v":0},0,null,{"$f":"SUMIFS(O$9:O$208,PlanningIDEnlaces,$C199,$H$9:$H$208,Lists!$A$16)","v":0},0,null,{"$f":"SUMIFS(R$9:R$208,PlanningIDEnlaces,$C199,$H$9:$H$208,Lists!$A$16)","v":0},0,null,{"$f":"SUMIFS(U$9:U$208,PlanningIDEnlaces,$C199,$H$9:$H$208,Lists!$A$16)","v":0},0,null,{"$f":"SUMIFS(X$9:X$208,PlanningIDEnlaces,$C199,$H$9:$H$208,Lists!$A$16)","v":0},0,null,{"$f":"SUMIFS(AA$9:AA$208,PlanningIDEnlaces,$C199,$H$9:$H$208,Lists!$A$16)","v":0},0,null,{"$f":"SUMIFS(AD$9:AD$208,PlanningIDEnlaces,$C199,$H$9:$H$208,Lists!$A$16)","v":0},0,null,{"$f":"SUMIFS(AG$9:AG$208,PlanningIDEnlaces,$C199,$H$9:$H$208,Lists!$A$16)","v":0},0,null,{"$f":"SUMIFS(AJ$9:AJ$208,PlanningIDEnlaces,$C199,$H$9:$H$208,Lists!$A$16)","v":0},0,null,{"$f":"SUMIFS(AM$9:AM$208,PlanningIDEnlaces,$C199,$H$9:$H$208,Lists!$A$16)","v":0},0,null,{"$f":"SUMIFS(AP$9:AP$208,PlanningIDEnlaces,$C199,$H$9:$H$208,Lists!$A$16)","v":0},0,null,{"$f":"IFERROR(INDEX(Lists!$F$5:$F$49,MATCH(Planning!C199,Lists!$G$5:$G$49,0),1),\"\")","v":""},null,{"$f":"IF(C199=0,\"\",\" [\"&INDEX(Lists!$H$5:$H$49,MATCH(C199,Lists!$G$5:$G$49,0),1)&\"]\")","v":""}]
["I192",{"$nulls":43},0,{"v":0,"d":"0.00"},null,null,{"$f":"SUMIFS(I$9:I$208,PlanningIDEnlaces,$C200,$H$9:$H$208,Lists!$A$16)","v":0},0,null,{"$f":"SUMIFS(L$9:L$208,PlanningIDEnlaces,$C200,$H$9:$H$208,Lists!$A$16)","v":0},0,null,{"$f":"SUMIFS(O$9:O$208,PlanningIDEnlaces,$C200,$H$9:$H$208,Lists!$A$16)","v":0},0,null,{"$f":"SUMIFS(R$9:R$208,PlanningIDEnlaces,$C200,$H$9:$H$208,Lists!$A$16)","v":0},0,null,{"$f":"SUMIFS(U$9:U$208,PlanningIDEnlaces,$C200,$H$9:$H$208,Lists!$A$16)","v":0},0,null,{"$f":"SUMIFS(X$9:X$208,PlanningIDEnlaces,$C200,$H$9:$H$208,Lists!$A$16)","v":0},0,null,{"$f":"SUMIFS(AA$9:AA$208,PlanningIDEnlaces,$C200,$H$9:$H$208,Lists!$A$16)","v":0},0,null,{"$f":"SUMIFS(AD$9:AD$208,PlanningIDEnlaces,$C200,$H$9:$H$208,Lists!$A$16)","v":0},0,null,{"$f":"SUMIFS(AG$9:AG$208,PlanningIDEnlaces,$C200,$H$9:$H$208,Lists!$A$16)","v":0},0,null,{"$f":"SUMIFS(AJ$9:AJ$208,PlanningIDEnlaces,$C200,$H$9:$H$208,Lists!$A$16)","v":0},0,null,{"$f":"SUMIFS(AM$9:AM$208,PlanningIDEnlaces,$C200,$H$9:$H$208,Lists!$A$16)","v":0},0,null,{"$f":"SUMIFS(AP$9:AP$208,PlanningIDEnlaces,$C200,$H$9:$H$208,Lists!$A$16)","v":0},0,null,{"$f":"IFERROR(INDEX(Lists!$F$5:$F$49,MATCH(Planning!C200,Lists!$G$5:$G$49,0),1),\"\")","v":""},null,{"$f":"IF(C200=0,\"\",\" [\"&INDEX(Lists!$H$5:$H$49,MATCH(C200,Lists!$G$5:$G$49,0),1)&\"]\")","v":""}]
["I193",{"$nulls":43},{"$f":"I201+L201+O201+R201+U201+X201+AA201+AD201+AG201+AJ201+AM201+AP201","v":0},{"$f":"J201+M201+P201+S201+V201+Y201+AB201+AE201+AH201+AK201+AN201+AQ201","v":{"v":0,"d":"0.00"}},null,null,{"$f":"SUMIFS(I$9:I$208,PlanningIDEnlaces,$C201,$H$9:$H$208,Lists!$A$16)","v":0},{"$f":"SUMIFS(J$9:J$208,PlanningIDEnlaces,$C201,$H$9:$H$208,\"<>\")","v":0},null,{"$f":"SUMIFS(L$9:L$208,PlanningIDEnlaces,$C201,$H$9:$H$208,Lists!$A$16)","v":0},{"$f":"SUMIFS(M$9:M$208,PlanningIDEnlaces,$C201,$H$9:$H$208,\"<>\")","v":0},null,{"$f":"SUMIFS(O$9:O$208,PlanningIDEnlaces,$C201,$H$9:$H$208,Lists!$A$16)","v":0},{"$f":"SUMIFS(P$9:P$208,PlanningIDEnlaces,$C201,$H$9:$H$208,\"<>\")","v":0},null,{"$f":"SUMIFS(R$9:R$208,PlanningIDEnlaces,$C201,$H$9:$H$208,Lists!$A$16)","v":0},{"$f":"SUMIFS(S$9:S$208,PlanningIDEnlaces,$C201,$H$9:$H$208,\"<>\")","v":0},null,{"$f":"SUMIFS(U$9:U$208,PlanningIDEnlaces,$C201,$H$9:$H$208,Lists!$A$16)","v":0},{"$f":"SUMIFS(V$9:V$208,PlanningIDEnlaces,$C201,$H$9:$H$208,\"<>\")","v":0},null,{"$f":"SUMIFS(X$9:X$208,PlanningIDEnlaces,$C201,$H$9:$H$208,Lists!$A$16)","v":0},{"$f":"SUMIFS(Y$9:Y$208,PlanningIDEnlaces,$C201,$H$9:$H$208,\"<>\")","v":0},null,{"$f":"SUMIFS(AA$9:AA$208,PlanningIDEnlaces,$C201,$H$9:$H$208,Lists!$A$16)","v":0},{"$f":"SUMIFS(AB$9:AB$208,PlanningIDEnlaces,$C201,$H$9:$H$208,\"<>\")","v":0},null,{"$f":"SUMIFS(AD$9:AD$208,PlanningIDEnlaces,$C201,$H$9:$H$208,Lists!$A$16)","v":0},{"$f":"SUMIFS(AE$9:AE$208,PlanningIDEnlaces,$C201,$H$9:$H$208,\"<>\")","v":0},null,{"$f":"SUMIFS(AG$9:AG$208,PlanningIDEnlaces,$C201,$H$9:$H$208,Lists!$A$16)","v":0},{"$f":"SUMIFS(AH$9:AH$208,PlanningIDEnlaces,$C201,$H$9:$H$208,\"<>\")","v":0},null,{"$f":"SUMIFS(AJ$9:AJ$208,PlanningIDEnlaces,$C201,$H$9:$H$208,Lists!$A$16)","v":0},{"$f":"SUMIFS(AK$9:AK$208,PlanningIDEnlaces,$C201,$H$9:$H$208,\"<>\")","v":0},null,{"$f":"SUMIFS(AM$9:AM$208,PlanningIDEnlaces,$C201,$H$9:$H$208,Lists!$A$16)","v":0},{"$f":"SUMIFS(AN$9:AN$208,PlanningIDEnlaces,$C201,$H$9:$H$208,\"<>\")","v":0},null,{"$f":"SUMIFS(AP$9:AP$208,PlanningIDEnlaces,$C201,$H$9:$H$208,Lists!$A$16)","v":0},{"$f":"SUMIFS(AQ$9:AQ$208,PlanningIDEnlaces,$C201,$H$9:$H$208,\"<>\")","v":0},null,{"$f":"IFERROR(INDEX(Lists!$F$5:$F$49,MATCH(Planning!C201,Lists!$G$5:$G$49,0),1),\"\")","v":""},null,{"$f":"IF(C201=0,\"\",\" [\"&INDEX(Lists!$H$5:$H$49,MATCH(C201,Lists!$G$5:$G$49,0),1)&\"]\")","v":""}]
["I194",{"$nulls":43},0,{"v":0,"d":"0.00"},null,null,{"$f":"SUMIFS(I$9:I$208,PlanningIDEnlaces,$C202,$H$9:$H$208,Lists!$A$16)","v":0},0,null,{"$f":"SUMIFS(L$9:L$208,PlanningIDEnlaces,$C202,$H$9:$H$208,Lists!$A$16)","v":0},0,null,{"$f":"SUMIFS(O$9:O$208,PlanningIDEnlaces,$C202,$H$9:$H$208,Lists!$A$16)","v":0},0,null,{"$f":"SUMIFS(R$9:R$208,PlanningIDEnlaces,$C202,$H$9:$H$208,Lists!$A$16)","v":0},0,null,{"$f":"SUMIFS(U$9:U$208,PlanningIDEnlaces,$C202,$H$9:$H$208,Lists!$A$16)","v":0},0,null,{"$f":"SUMIFS(X$9:X$208,PlanningIDEnlaces,$C202,$H$9:$H$208,Lists!$A$16)","v":0},0,null,{"$f":"SUMIFS(AA$9:AA$208,PlanningIDEnlaces,$C202,$H$9:$H$208,Lists!$A$16)","v":0},0,null,{"$f":"SUMIFS(AD$9:AD$208,PlanningIDEnlaces,$C202,$H$9:$H$208,Lists!$A$16)","v":0},0,null,{"$f":"SUMIFS(AG$9:AG$208,PlanningIDEnlaces,$C202,$H$9:$H$208,Lists!$A$16)","v":0},0,null,{"$f":"SUMIFS(AJ$9:AJ$208,PlanningIDEnlaces,$C202,$H$9:$H$208,Lists!$A$16)","v":0},0,null,{"$f":"SUMIFS(AM$9:AM$208,PlanningIDEnlaces,$C202,$H$9:$H$208,Lists!$A$16)","v":0},0,null,{"$f":"SUMIFS(AP$9:AP$208,PlanningIDEnlaces,$C202,$H$9:$H$208,Lists!$A$16)","v":0},0,null,{"$f":"IFERROR(INDEX(Lists!$F$5:$F$49,MATCH(Planning!C202,Lists!$G$5:$G$49,0),1),\"\")","v":""},null,{"$f":"IF(C202=0,\"\",\" [\"&INDEX(Lists!$H$5:$H$49,MATCH(C202,Lists!$G$5:$G$49,0),1)&\"]\")","v":""}]
["I195",{"$nulls":43},0,{"v":0,"d":"0.00"},null,null,{"$f":"SUMIFS(I$9:I$208,PlanningIDEnlaces,$C203,$H$9:$H$208,Lists!$A$16)","v":0},0,null,{"$f":"SUMIFS(L$9:L$208,PlanningIDEnlaces,$C203,$H$9:$H$208,Lists!$A$16)","v":0},0,null,{"$f":"SUMIFS(O$9:O$208,PlanningIDEnlaces,$C203,$H$9:$H$208,Lists!$A$16)","v":0},0,null,{"$f":"SUMIFS(R$9:R$208,PlanningIDEnlaces,$C203,$H$9:$H$208,Lists!$A$16)","v":0},0,null,{"$f":"SUMIFS(U$9:U$208,PlanningIDEnlaces,$C203,$H$9:$H$208,Lists!$A$16)","v":0},0,null,{"$f":"SUMIFS(X$9:X$208,PlanningIDEnlaces,$C203,$H$9:$H$208,Lists!$A$16)","v":0},0,null,{"$f":"SUMIFS(AA$9:AA$208,PlanningIDEnlaces,$C203,$H$9:$H$208,Lists!$A$16)","v":0},0,null,{"$f":"SUMIFS(AD$9:AD$208,PlanningIDEnlaces,$C203,$H$9:$H$208,Lists!$A$16)","v":0},0,null,{"$f":"SUMIFS(AG$9:AG$208,PlanningIDEnlaces,$C203,$H$9:$H$208,Lists!$A$16)","v":0},0,null,{"$f":"SUMIFS(AJ$9:AJ$208,PlanningIDEnlaces,$C203,$H$9:$H$208,Lists!$A$16)","v":0},0,null,{"$f":"SUMIFS(AM$9:AM$208,PlanningIDEnlaces,$C203,$H$9:$H$208,Lists!$A$16)","v":0},0,null,{"$f":"SUMIFS(AP$9:AP$208,PlanningIDEnlaces,$C203,$H$9:$H$208,Lists!$A$16)","v":0},0,null,{"$f":"IFERROR(INDEX(Lists!$F$5:$F$49,MATCH(Planning!C203,Lists!$G$5:$G$49,0),1),\"\")","v":""},null,{"$f":"IF(C203=0,\"\",\" [\"&INDEX(Lists!$H$5:$H$49,MATCH(C203,Lists!$G$5:$G$49,0),1)&\"]\")","v":""}]
["I196",{"$nulls":43},0,{"v":0,"d":"0.00"},null,null,{"$f":"SUMIFS(I$9:I$208,PlanningIDEnlaces,$C204,$H$9:$H$208,Lists!$A$16)","v":0},0,null,{"$f":"SUMIFS(L$9:L$208,PlanningIDEnlaces,$C204,$H$9:$H$208,Lists!$A$16)","v":0},0,null,{"$f":"SUMIFS(O$9:O$208,PlanningIDEnlaces,$C204,$H$9:$H$208,Lists!$A$16)","v":0},0,null,{"$f":"SUMIFS(R$9:R$208,PlanningIDEnlaces,$C204,$H$9:$H$208,Lists!$A$16)","v":0},0,null,{"$f":"SUMIFS(U$9:U$208,PlanningIDEnlaces,$C204,$H$9:$H$208,Lists!$A$16)","v":0},0,null,{"$f":"SUMIFS(X$9:X$208,PlanningIDEnlaces,$C204,$H$9:$H$208,Lists!$A$16)","v":0},0,null,{"$f":"SUMIFS(AA$9:AA$208,PlanningIDEnlaces,$C204,$H$9:$H$208,Lists!$A$16)","v":0},0,null,{"$f":"SUMIFS(AD$9:AD$208,PlanningIDEnlaces,$C204,$H$9:$H$208,Lists!$A$16)","v":0},0,null,{"$f":"SUMIFS(AG$9:AG$208,PlanningIDEnlaces,$C204,$H$9:$H$208,Lists!$A$16)","v":0},0,null,{"$f":"SUMIFS(AJ$9:AJ$208,PlanningIDEnlaces,$C204,$H$9:$H$208,Lists!$A$16)","v":0},0,null,{"$f":"SUMIFS(AM$9:AM$208,PlanningIDEnlaces,$C204,$H$9:$H$208,Lists!$A$16)","v":0},0,null,{"$f":"SUMIFS(AP$9:AP$208,PlanningIDEnlaces,$C204,$H$9:$H$208,Lists!$A$16)","v":0},0,null,{"$f":"IFERROR(INDEX(Lists!$F$5:$F$49,MATCH(Planning!C204,Lists!$G$5:$G$49,0),1),\"\")","v":""},null,{"$f":"IF(C204=0,\"\",\" [\"&INDEX(Lists!$H$5:$H$49,MATCH(C204,Lists!$G$5:$G$49,0),1)&\"]\")","v":""}]
["I197",{"$nulls":43},0,{"v":0,"d":"0.00"},null,null,{"$f":"SUMIFS(I$9:I$208,PlanningIDEnlaces,$C205,$H$9:$H$208,Lists!$A$16)","v":0},0,null,{"$f":"SUMIFS(L$9:L$208,PlanningIDEnlaces,$C205,$H$9:$H$208,Lists!$A$16)","v":0},0,null,{"$f":"SUMIFS(O$9:O$208,PlanningIDEnlaces,$C205,$H$9:$H$208,Lists!$A$16)","v":0},0,null,{"$f":"SUMIFS(R$9:R$208,PlanningIDEnlaces,$C205,$H$9:$H$208,Lists!$A$16)","v":0},0,null,{"$f":"SUMIFS(U$9:U$208,PlanningIDEnlaces,$C205,$H$9:$H$208,Lists!$A$16)","v":0},0,null,{"$f":"SUMIFS(X$9:X$208,PlanningIDEnlaces,$C205,$H$9:$H$208,Lists!$A$16)","v":0},0,null,{"$f":"SUMIFS(AA$9:AA$208,PlanningIDEnlaces,$C205,$H$9:$H$208,Lists!$A$16)","v":0},0,null,{"$f":"SUMIFS(AD$9:AD$208,PlanningIDEnlaces,$C205,$H$9:$H$208,Lists!$A$16)","v":0},0,null,{"$f":"SUMIFS(AG$9:AG$208,PlanningIDEnlaces,$C205,$H$9:$H$208,Lists!$A$16)","v":0},0,null,{"$f":"SUMIFS(AJ$9:AJ$208,PlanningIDEnlaces,$C205,$H$9:$H$208,Lists!$A$16)","v":0},0,null,{"$f":"SUMIFS(AM$9:AM$208,PlanningIDEnlaces,$C205,$H$9:$H$208,Lists!$A$16)","v":0},0,null,{"$f":"SUMIFS(AP$9:AP$208,PlanningIDEnlaces,$C205,$H$9:$H$208,Lists!$A$16)","v":0},0,null,{"$f":"IFERROR(INDEX(Lists!$F$5:$F$49,MATCH(Planning!C205,Lists!$G$5:$G$49,0),1),\"\")","v":""},null,{"$f":"IF(C205=0,\"\",\" [\"&INDEX(Lists!$H$5:$H$49,MATCH(C205,Lists!$G$5:$G$49,0),1)&\"]\")","v":""}]
["I198",{"$nulls":43},0,{"v":0,"d":"0.00"},null,null,{"$f":"SUMIFS(I$9:I$208,PlanningIDEnlaces,$C206,$H$9:$H$208,Lists!$A$16)","v":0},0,null,{"$f":"SUMIFS(L$9:L$208,PlanningIDEnlaces,$C206,$H$9:$H$208,Lists!$A$16)","v":0},0,null,{"$f":"SUMIFS(O$9:O$208,PlanningIDEnlaces,$C206,$H$9:$H$208,Lists!$A$16)","v":0},0,null,{"$f":"SUMIFS(R$9:R$208,PlanningIDEnlaces,$C206,$H$9:$H$208,Lists!$A$16)","v":0},0,null,{"$f":"SUMIFS(U$9:U$208,PlanningIDEnlaces,$C206,$H$9:$H$208,Lists!$A$16)","v":0},0,null,{"$f":"SUMIFS(X$9:X$208,PlanningIDEnlaces,$C206,$H$9:$H$208,Lists!$A$16)","v":0},0,null,{"$f":"SUMIFS(AA$9:AA$208,PlanningIDEnlaces,$C206,$H$9:$H$208,Lists!$A$16)","v":0},0,null,{"$f":"SUMIFS(AD$9:AD$208,PlanningIDEnlaces,$C206,$H$9:$H$208,Lists!$A$16)","v":0},0,null,{"$f":"SUMIFS(AG$9:AG$208,PlanningIDEnlaces,$C206,$H$9:$H$208,Lists!$A$16)","v":0},0,null,{"$f":"SUMIFS(AJ$9:AJ$208,PlanningIDEnlaces,$C206,$H$9:$H$208,Lists!$A$16)","v":0},0,null,{"$f":"SUMIFS(AM$9:AM$208,PlanningIDEnlaces,$C206,$H$9:$H$208,Lists!$A$16)","v":0},0,null,{"$f":"SUMIFS(AP$9:AP$208,PlanningIDEnlaces,$C206,$H$9:$H$208,Lists!$A$16)","v":0},0,null,{"$f":"IFERROR(INDEX(Lists!$F$5:$F$49,MATCH(Planning!C206,Lists!$G$5:$G$49,0),1),\"\")","v":""},null,{"$f":"IF(C206=0,\"\",\" [\"&INDEX(Lists!$H$5:$H$49,MATCH(C206,Lists!$G$5:$G$49,0),1)&\"]\")","v":""}]
["I199",{"$nulls":43},0,{"v":0,"d":"0.00"},null,null,{"$f":"SUMIFS(I$9:I$208,PlanningIDEnlaces,$C207,$H$9:$H$208,Lists!$A$16)","v":0},0,null,{"$f":"SUMIFS(L$9:L$208,PlanningIDEnlaces,$C207,$H$9:$H$208,Lists!$A$16)","v":0},0,null,{"$f":"SUMIFS(O$9:O$208,PlanningIDEnlaces,$C207,$H$9:$H$208,Lists!$A$16)","v":0},0,null,{"$f":"SUMIFS(R$9:R$208,PlanningIDEnlaces,$C207,$H$9:$H$208,Lists!$A$16)","v":0},0,null,{"$f":"SUMIFS(U$9:U$208,PlanningIDEnlaces,$C207,$H$9:$H$208,Lists!$A$16)","v":0},0,null,{"$f":"SUMIFS(X$9:X$208,PlanningIDEnlaces,$C207,$H$9:$H$208,Lists!$A$16)","v":0},0,null,{"$f":"SUMIFS(AA$9:AA$208,PlanningIDEnlaces,$C207,$H$9:$H$208,Lists!$A$16)","v":0},0,null,{"$f":"SUMIFS(AD$9:AD$208,PlanningIDEnlaces,$C207,$H$9:$H$208,Lists!$A$16)","v":0},0,null,{"$f":"SUMIFS(AG$9:AG$208,PlanningIDEnlaces,$C207,$H$9:$H$208,Lists!$A$16)","v":0},0,null,{"$f":"SUMIFS(AJ$9:AJ$208,PlanningIDEnlaces,$C207,$H$9:$H$208,Lists!$A$16)","v":0},0,null,{"$f":"SUMIFS(AM$9:AM$208,PlanningIDEnlaces,$C207,$H$9:$H$208,Lists!$A$16)","v":0},0,null,{"$f":"SUMIFS(AP$9:AP$208,PlanningIDEnlaces,$C207,$H$9:$H$208,Lists!$A$16)","v":0},0,null,{"$f":"IFERROR(INDEX(Lists!$F$5:$F$49,MATCH(Planning!C207,Lists!$G$5:$G$49,0),1),\"\")","v":""},null,{"$f":"IF(C207=0,\"\",\" [\"&INDEX(Lists!$H$5:$H$49,MATCH(C207,Lists!$G$5:$G$49,0),1)&\"]\")","v":""}]
["I200",{"$nulls":43},0,{"v":0,"d":"0.00"},null,null,{"$f":"SUMIFS(I$9:I$208,PlanningIDEnlaces,$C208,$H$9:$H$208,Lists!$A$16)","v":0},0,null,{"$f":"SUMIFS(L$9:L$208,PlanningIDEnlaces,$C208,$H$9:$H$208,Lists!$A$16)","v":0},0,null,{"$f":"SUMIFS(O$9:O$208,PlanningIDEnlaces,$C208,$H$9:$H$208,Lists!$A$16)","v":0},0,null,{"$f":"SUMIFS(R$9:R$208,PlanningIDEnlaces,$C208,$H$9:$H$208,Lists!$A$16)","v":0},0,null,{"$f":"SUMIFS(U$9:U$208,PlanningIDEnlaces,$C208,$H$9:$H$208,Lists!$A$16)","v":0},0,null,{"$f":"SUMIFS(X$9:X$208,PlanningIDEnlaces,$C208,$H$9:$H$208,Lists!$A$16)","v":0},0,null,{"$f":"SUMIFS(AA$9:AA$208,PlanningIDEnlaces,$C208,$H$9:$H$208,Lists!$A$16)","v":0},0,null,{"$f":"SUMIFS(AD$9:AD$208,PlanningIDEnlaces,$C208,$H$9:$H$208,Lists!$A$16)","v":0},0,null,{"$f":"SUMIFS(AG$9:AG$208,PlanningIDEnlaces,$C208,$H$9:$H$208,Lists!$A$16)","v":0},0,null,{"$f":"SUMIFS(AJ$9:AJ$208,PlanningIDEnlaces,$C208,$H$9:$H$208,Lists!$A$16)","v":0},0,null,{"$f":"SUMIFS(AM$9:AM$208,PlanningIDEnlaces,$C208,$H$9:$H$208,Lists!$A$16)","v":0},0,null,{"$f":"SUMIFS(AP$9:AP$208,PlanningIDEnlaces,$C208,$H$9:$H$208,Lists!$A$16)","v":0},0,null,{"$f":"IFERROR(INDEX(Lists!$F$5:$F$49,MATCH(Planning!C208,Lists!$G$5:$G$49,0),1),\"\")","v":""},null,{"$f":"IF(C208=0,\"\",\" [\"&INDEX(Lists!$H$5:$H$49,MATCH(C208,Lists!$G$5:$G$49,0),1)&\"]\")","v":""}]
[".",".",".",".",".",null,".",".",".",".",".",".",".",".",".",".",".",".",".",".",".",".",".",".",".",".",".",".",".",".",".",".",".",".",".",".",".",".",".",".",".",".",".",".",".",".",".",".",".",".",null,".",".",null,".",".",null,".",".",null,".",".",null,".",".",null,".",".",null,".",".",null,".",".",null,".",".",null,".",".",null,".","."]

{"sheet":"M&E","index":4,"n_rows":559,"n_cols":74,"rows_kept":559,"hidden":true,"merged":[[1,4,1,13],[1,14,1,15],[2,4,2,13],[3,4,3,13],[5,9,5,15],[6,0,15,7],[6,9,7,15],[9,9,9,10],[9,12,9,15],[10,9,11,10],[10,12,11,15],[12,45,16,54],[12,61,16,68],[12,70,16,73],[13,9,15,13],[13,14,13,15],[14,14,15,15],[17,0,17,25],[17,45,18,54],[17,61,18,68],[19,7,19,9],[19,11,19,13],[19,15,19,17],[19,19,19,21],[19,23,19,25],[19,45,19,46],[19,47,19,48],[19,49,19,50],[19,51,19,52],[19,53,19,54],[19,61,19,62],[19,63,19,64],[19,65,19,66],[19,67,19,68],[20,0,21,0],[20,1,21,1],[20,2,21,2],[20,3,21,3],[20,4,21,4],[20,5,21,5],[20,7,21,7],[20,8,21,8],[20,9,21,9],[20,11,21,11],[20,12,21,12],[20,13,21,13],[20,14,21,14],[20,15,21,15],[20,16,21,16],[20,17,21,17],[20,18,21,18],[20,19,21,19],[20,20,21,20],[20,21,21,21],[20,22,21,22],[20,23,21,23],[20,24,21,24],[20,25,21,25],[20,26,21,26],[20,28,21,28],[20,29,21,29],[20,30,21,30],[20,31,21,31],[20,34,20,37],[20,39,22,39],[20,43,22,43],[20,45,21,45],[20,46,21,46],[20,47,21,47],[20,48,21,48],[20,49,21,49],[20,50,21,50],[20,51,21,51],[20,52,21,52],[20,53,21,53],[20,54,21,54],[20,61,21,61],[20,62,21,62],[20,63,21,63],[20,64,21,64],[20,65,21,65],[20,66,21,66],[20,67,21,67],[20,68,21,68],[20,70,20,73],[228,0,228,25],[230,7,230,9],[230,11,230,13],[230,15,230,17],[230,19,230,21],[230,23,230,25],[231,0,232,0],[231,1,232,1],[231,2,232,2],[231,3,232,3],[231,4,232,4],[231,5,232,5],[231,7,232,7],[231,8,232,8],[231,9,232,9],[231,11,232,11],[231,12,232,12],[231,13,232,13],[231,14,232,14],[231,15,232,15],[231,16,232,16],[231,17,232,17],[231,18,232,18],[231,19,232,19],[231,20,232,20],[231,21,232,21],[231,22,232,22],[231,23,232,23],[231,24,232,24],[231,25,232,25],[231,26,232,26],[232,34,232,37],[232,39,234,39],[232,70,232,73],[233,34,233,37],[233,70,233,73],[437,0,437,4],[437,7,437,9],[437,11,437,13],[437,15,437,17],[437,19,437,21],[437,23,437,25],[440,0,440,4],[440,7,440,9],[440,15,440,17],[441,3,441,4],[441,16,441,17],[442,3,442,4],[442,16,442,17],[443,3,443,4],[443,16,443,17],[444,3,444,4],[444,16,444,17],[445,3,445,4],[445,16,445,17],[446,3,446,4],[446,16,446,17],[447,3,447,4],[447,16,447,17],[448,3,448,4],[448,16,448,17],[449,3,449,4],[449,16,449,17],[450,3,450,4],[450,16,450,17],[451,3,451,4],[451,16,451,17],[452,3,452,4],[452,16,452,17],[453,3,453,4],[453,16,453,17],[456,0,456,12],[458,0,458,6],[458,9,458,10],[459,9,459,10],[460,9,460,10],[461,9,461,10],[462,9,462,10],[463,9,463,10],[464,9,464,10],[465,9,465,10],[466,9,466,10],[467,9,467,10],[468,9,468,10],[469,9,469,10],[470,9,470,10],[471,9,471,10],[472,9,472,10],[473,9,473,10],[474,9,474,10],[475,9,475,10],[476,9,476,10],[477,9,477,10],[478,9,478,10],[479,9,479,10],[480,9,480,10],[481,9,481,10],[482,9,482,10],[483,9,483,10],[484,9,484,10],[485,9,485,10],[486,9,486,10],[487,9,487,10],[488,9,488,10],[489,9,489,10],[490,9,490,10],[491,9,491,10],[492,9,492,10],[493,9,493,10],[494,9,494,10],[495,9,495,10],[496,9,496,10],[497,9,497,10],[498,9,498,10],[499,9,499,10],[500,9,500,10],[501,9,501,10],[502,9,502,10],[503,9,503,10],[504,9,504,10],[505,9,505,10],[506,9,506,10],[507,9,507,10],[508,9,508,10],[509,9,509,10],[510,9,510,10],[511,9,511,10],[512,9,512,10],[513,9,513,10],[514,9,514,10],[515,9,515,10],[516,9,516,10],[517,9,517,10],[518,9,518,10],[519,9,519,10],[520,9,520,10],[524,0,524,23],[526,0,526,4],[526,9,526,10],[526,13,526,14],[526,17,526,18],[526,21,526,22],[527,0,527,4],[527,9,527,10],[527,13,527,14],[527,17,527,18],[527,21,527,22],[528,0,528,4],[528,9,528,10],[528,13,528,14],[528,17,528,18],[528,21,528,22],[529,0,529,4],[529,9,529,10],[529,13,529,14],[529,17,529,18],[529,21,529,22],[530,0,530,4],[530,9,530,10],[530,13,530,14],[530,17,530,18],[530,21,530,22],[531,0,531,4],[531,9,531,10],[531,13,531,14],[531,17,531,18],[531,21,531,22],[534,0,534,4],[535,0,535,4],[536,0,536,4],[537,0,537,4],[538,0,538,4],[539,0,539,4],[543,0,543,23],[545,0,545,4],[545,9,545,10],[545,13,545,14],[545,17,545,18],[545,21,545,22],[546,0,546,4],[546,9,546,10],[546,13,546,14],[546,17,546,18],[546,21,546,22],[547,0,547,4],[547,9,547,10],[547,13,547,14],[547,17,547,18],[547,21,547,22],[548,0,548,4],[548,9,548,10],[548,13,548,14],[548,17,548,18],[548,21,548,22],[549,0,549,4],[549,9,549,10],[549,13,549,14],[549,17,549,18],[549,21,549,22],[550,0,550,4],[550,9,550,10],[550,13,550,14],[550,17,550,18],[550,21,550,22],[553,0,553,4],[554,0,554,4],[555,0,555,4],[556,0,556,4],[557,0,557,4],[558,0,558,4]]}
[]
["M&E",{"$nulls":3},{"$f":"Translations!A80","v":"SR Management Tool"}]
[{"$nulls":4},{"$f":"Setup!H11","v":"Direct Gender Partnership (DGP)"}]
[{"$nulls":4},{"$f":" Setup!H14 & \"  (\" & Setup!H13 & \")\" & \"  (\" & Setup!H16 & \")\"","v":"DMR-202-G01-H-00  (January  2016 - December 2016)  ($ - USD)"}]
[{"$nulls":15},{"$f":"Translations!A12","v":"Programmatic & financial"}]
[{"$f":"Setup!G19","v":"Details of programatic indicators"},{"$nulls":8},{"$f":"Setup!G17","v":"Key population"}]
[{"$f":"Setup!H19","v":"# PLHIV that initiated ARV with CD4 count <200\n# new HIV+ enrolled in care services \n# aged 10-24 yrs reached by HIV life skills ed. in school "},{"$nulls":8},{"$f":"Setup!H17","v":"Sex Workers - Migrants - Women"}]
[]
[]
[]
[]
[]
[{"$nulls":45},"A. En la columna % Logro de los Q y Anual se colocará siempre el \"Logro 1. Estandar\". Solamente se colocará el \"Logro 2. Inverso\"  cuando (AR) sea 2 y (AB) sea diferente de \"2. NO\". Es decir, el valor inverso va para las actvividades que contribuyan al indicador (AB) = \"1. SI\" y para el Indicador en si (AB) = 0... por eso se pregunta por (AB) diferente de \"2. NO\".. para incluir los \"1. SI\" y a los 0. No importa el idioma porque se toma Lists!A17",{"$nulls":15},"Esto son los cálculos acumulados trimestrales sin condición alguna. En realidad los valores a presentar en la matriz va a depender del comportamiento del indicador. Los indicadores \"1. Estandar\"  y \"2.Inverso\" son los únicos que acumulan, por lo que se verifica si AR es diferente de \"3. No Acumula\" y coloca el respectivo valor de Meta o Logro. Si AR es \"3. No Acumula\" entonces en la misma celda se toma el valor del Mes de Cierre de ese Q. \n\nEn e caso del Acumulado Anual, igual se verifica AR para ver si es \"1. Estandar\" o \"2.Inverso\" y si lo es coloca la suma de los 4 Qs, en cambio si no lo es toma solamente los valores del Q4.",{"$nulls":8},"Estos montos son unicamente calculados y utilizados en la prate financiera. Se utilizan FINANCIAL como el dato a colocar en las columnas PENDIENTES DEL ANTERIOR que para este caso sería pendiente del Q anterior. Ese dato aparece en el 1er mes del Q en cuestión. El Q1 es 0 porque no se arrastra pendiente del año anterior"]
[]
[]
[]
[]
[{"$f":"Translations!A110","v":"PERIOD PROGRAMMATIC SUMMARY"},{"$nulls":44},"%LOGRO ---- SOLO PARA LOS ASPECTOS PROGRAMATICOS",{"$nulls":15},"CALCULOS DE LOS ACUMULADOS TRIMETRALES"]
[]
[{"$nulls":7},{"$f":"Translations!$A$103","v":"Annual"},{"$nulls":3},{"$f":"Translations!$A$104","v":"1st Quarter advance"},{"$nulls":3},{"$f":"Translations!$A$105","v":"2nd Quarter advance"},{"$nulls":3},{"$f":"Translations!$A$106","v":"3rd Quarter advance"},{"$nulls":3},{"$f":"Translations!$A$107","v":"4th Quarter advance"},{"$nulls":5},"En las hojas MONTH",{"$nulls":13},"COMPORTAMIENTO",null,"Anual",null,"Q1",null,"Q2",null,"Q3",null,"Q4",{"$nulls":7},"Q1",null,"Q2",null,"Q3",null,"Q4"]
[{"$f":"Translations!$A$88","v":"Item"},"Tipo de Ítem","ID Enlace",{"$f":"Translations!$A$91","v":"Activity code"},{"$f":"Translations!$A$92","v":"Indicator / Activity"},"Categoría de Costos",null,{"$f":"Translations!$A$94","v":"Target"},{"$f":"Translations!$A$102","v":"Results "},{"$f":"Translations!$A$108","v":"Result %"},null,{"$f":"Translations!$A$94","v":"Target"},{"$f":"Translations!$A$102","v":"Results "},{"$f":"Translations!$A$108","v":"Result %"},null,{"$f":"Translations!$A$94","v":"Target"},{"$f":"Translations!$A$102","v":"Results "},{"$f":"Translations!$A$108","v":"Result %"},null,{"$f":"Translations!$A$94","v":"Target"},{"$f":"Translations!$A$102","v":"Results "},{"$f":"Translations!$A$108","v":"Result %"},null,{"$f":"Translations!$A$94","v":"Target"},{"$f":"Translations!$A$102","v":"Results "},{"$f":"Translations!$A$108","v":"Result %"},null,null,"REF","Meta","Resultado","Anterior",null,null,"SUMATORIA MES ANTERIOR",{"$nulls":4},"Indicador =1 Actividad = 2",{"$nulls":3},"1. Estandar\n2. Inverso\n3. No Acumula",null,"Logro\n1. Estandar","Logro\n2. Inverso","Logro\n1. Estandar","Logro\n2. Inverso","Logro\n1. Estandar","Logro\n2. Inverso","Logro\n1. Estandar","Logro\n2. Inverso","Logro\n1. Estandar","Logro\n2. Inverso",{"$nulls":6},"Meta","Logro","Meta","Logro","Meta","Logro","Meta","Logro",null,"PENDIENTE DEL Q ANTERIOR"]
[{"$nulls":32},"Nombre de Actividades para Listado",null,"Q1","Q2","Q3","Q4",{"$nulls":32},"Q1","Q2","Q3","Q4"]
[]
[{"$f":"Translations!A109","v":"Totals"},{"$nulls":6},"-","-",{"$f":"IFERROR(AVERAGEIF(K26:K225,\"<> \"),\"\")","v":{"v":0.9856277056277056,"d":"98.56%"}},null,"-","-",{"$f":"IFERROR(AVERAGEIF(O26:O225,\"<> \"),\"\")","v":{"v":0.9630488919222286,"d":"96.30%"}},null,"-","-",{"$f":"IFERROR(AVERAGEIF(S26:S225,\"<> \"),\"\")","v":{"v":0.9880952380952381,"d":"98.81%"}},null,"-","-",{"$f":"IFERROR(AVERAGEIF(W26:W225,\"<> \"),\"\")","v":""},null,"-","-",{"$f":"IFERROR(AVERAGEIF(AA26:AA225,\"<> \"),\"\")","v":""}]
[]
[{"$f":"Planning!A9","v":"I001"},{"$f":"Planning!B9","v":"1. Indicator"},{"$f":"Planning!C9","v":"Pr68"},{"$f":"Planning!D9","v":1},{"$f":"Planning!E9","v":"[Pr68] # PLHIV that initiated ARV with CD4 count <200 Target [2. Inverse]"},{"$f":"Planning!G9","v":0},null,{"$f":"IF(AR26<>\"3\",SUM(L26,P26,T26,X26),X26)","v":{"v":1200,"d":"1,200"}},{"$f":"IF(AR26<>\"3\",SUM(M26,Q26,U26,Y26),Y26)","v":{"v":1232,"d":"1,232"}},{"$f":"IF(AND($AR26=\"2\",$AB26<>Lists!$A$17),AU26,AT26)","v":{"v":0.974025974025974,"d":"97.40%"}},{"$f":"IF($AN26 = ExcluirDelPLogro,\"\",IF(AND(H26=0,I26=0),\"\",J26))","v":0.974025974025974},{"$f":"IF(AR26<>\"3\",BJ26,INDIRECT(\"'\" & MesCierreQ1 & \"'!\" & AD26))","v":600},{"$f":"IF(AR26<>\"3\",BK26,INDIRECT(\"'\" & MesCierreQ1 & \"'!\" & AE26))","v":602},{"$f":"IF(AND($AR26=\"2\",$AB26<>Lists!$A$17),AW26,AV26)","v":{"v":0.9966777408637874,"d":"99.67%"}},{"$f":"IF($AN26=ExcluirDelPLogro,\"\",IF(AND(L26=0,M26=0),\"\",N26))","v":0.9966777408637874},{"$f":"IF(AR26<>\"3\",BL26,INDIRECT(\"'\" & MesCierreQ2 & \"'!\" & AD26))","v":600},{"$f":"IF(AR26<>\"3\",BM26,INDIRECT(\"'\" & MesCierreQ2 & \"'!\" & AE26))","v":630},{"$f":"IF(AND($AR26=\"2\",$AB26<>Lists!$A$17),AY26,AX26)","v":{"v":0.9523809523809523,"d":"95.24%"}},{"$f":"IF($AN26=ExcluirDelPLogro,\"\",IF(AND(P26=0,Q26=0),\"\",R26))","v":0.9523809523809523},{"$f":"IF(AR26<>\"3\",BN26,INDIRECT(\"'\" & MesCierreQ3 & \"'!\" & AD26))","v":0},{"$f":"IF(AR26<>\"3\",BO26,INDIRECT(\"'\" & MesCierreQ3 & \"'!\" & AE26))","v":0},{"$f":"IF(AND($AR26=\"2\",$AB26<>Lists!$A$17),BA26,AZ26)","v":""},{"$f":"IF($AN26=ExcluirDelPLogro,\"\",IF(AND(T26=0,U26=0),\"\",V26))","v":""},{"$f":"IF(AR26<>\"3\",BP26,INDIRECT(\"'\" & MesCierreQ4 & \"'!\" & AD26))","v":0},{"$f":"IF(AR26<>\"3\",BQ26,INDIRECT(\"'\" & MesCierreQ4 & \"'!\" & AE26))","v":0},{"$f":"IF(AND($AR26=\"2\",$AB26<>Lists!$A$17),BC26,BB26)","v":""},{"$f":"IF($AN26=ExcluirDelPLogro,\"\",IF(AND(X26=0,Y26=0),\"\",Z26))","v":""},{"$f":"Planning!H9","v":0},{"$f":"LEFT(B26,1)&C26","v":"1Pr68"},"H25","J25","I25",{"$f":"IF(E26=0,\"\",\"[\"&A26&\"] [\"&C26&\"] \"     &E26)","v":"[I001] [Pr68] [Pr68] # PLHIV that initiated ARV with CD4 count <200 Target [2. Inverse]"},null,{"$f":"IF(Setup!$AG$7<>\"\",INDIRECT(\"'\" & Setup!$AG$7 & \"'!\" & AF26),0) + IF(Setup!$AG$8<>\"\",INDIRECT(\"'\" & Setup!$AG$8 & \"'!\" & AF26),0) + IF(Setup!$AG$9<>\"\",INDIRECT(\"'\" & Setup!$AG$9 & \"'!\" & AF26),0) + IF(Setup!$AG$10<>\"\",INDIRECT(\"'\" & Setup!$AG$10 & \"'!\" & AF26),0) + IF(Setup!$AG$11<>\"\",INDIRECT(\"'\" & Setup!$AG$11 & \"'!\" & AF26),0) + IF(Setup!$AG$12<>\"\",INDIRECT(\"'\" & Setup!$AG$12 & \"'!\" & AF26),0)","v":0},{"$f":"IF(Setup!$AH$7<>\"\",INDIRECT(\"'\" & Setup!$AH$7 & \"'!\" & AF26),0) + IF(Setup!$AH$8<>\"\",INDIRECT(\"'\" & Setup!$AH$8 & \"'!\" & AF26),0) + IF(Setup!$AH$9<>\"\",INDIRECT(\"'\" & Setup!$AH$9 & \"'!\" & AF26),0) + IF(Setup!$AH$10<>\"\",INDIRECT(\"'\" & Setup!$AH$10 & \"'!\" & AF26),0) + IF(Setup!$AH$11<>\"\",INDIRECT(\"'\" & Setup!$AH$11 & \"'!\" & AF26),0) + IF(Setup!$AH$12<>\"\",INDIRECT(\"'\" & Setup!$AH$12 & \"'!\" & AF26),0)","v":0},{"$f":"IF(Setup!$AI$7<>\"\",INDIRECT(\"'\" & Setup!$AI$7 & \"'!\" & AF26),0) + IF(Setup!$AI$8<>\"\",INDIRECT(\"'\" & Setup!$AI$8 & \"'!\" & AF26),0) + IF(Setup!$AI$9<>\"\",INDIRECT(\"'\" & Setup!$AI$9 & \"'!\" & AF26),0) + IF(Setup!$AI$10<>\"\",INDIRECT(\"'\" & Setup!$AI$10 & \"'!\" & AF26),0) + IF(Setup!$AI$11<>\"\",INDIRECT(\"'\" & Setup!$AI$11 & \"'!\" & AF26),0) + IF(Setup!$AI$12<>\"\",INDIRECT(\"'\" & Setup!$AI$12 & \"'!\" & AF26),0)","v":0},{"$f":"IF(Setup!$AJ$7<>\"\",INDIRECT(\"'\" & Setup!$AJ$7 & \"'!\" & AF26),0) + IF(Setup!$AJ$8<>\"\",INDIRECT(\"'\" & Setup!$AJ$8 & \"'!\" & AF26),0) + IF(Setup!$AJ$9<>\"\",INDIRECT(\"'\" & Setup!$AJ$9 & \"'!\" & AF26),0) + IF(Setup!$AJ$10<>\"\",INDIRECT(\"'\" & Setup!$AJ$10 & \"'!\" & AF26),0) + IF(Setup!$AJ$11<>\"\",INDIRECT(\"'\" & Setup!$AJ$11 & \"'!\" & AF26),0) + IF(Setup!$AJ$12<>\"\",INDIRECT(\"'\" & Setup!$AJ$12 & \"'!\" & AF26),0)","v":0},null,{"$f":"IF(B26=0,\"\",IF(LEFT(B26,1)=\"1\",\"1\",\"2\"))","v":"1"},{"$nulls":3},{"$f":"IF(C26=0,\"\",LEFT(INDEX(Lists!$H$5:$H$49,MATCH(C26,Lists!$G$5:$G$49,0),1),1))","v":"2"},null,{"$f":"IF(AND(H26=0,I26=0),\"\",IF(H26>0,I26/H26,I26))","v":1.0266666666666666},{"$f":"IF(AND(H26=0,I26=0),\"\",IF(I26>0,H26/I26,0))","v":0.974025974025974},{"$f":"IF(AND(L26=0,M26=0),\"\",IF(L26>0,M26/L26,M26))","v":1.0033333333333334},{"$f":"IF(AND(L26=0,M26=0),\"\",IF(M26>0,L26/M26,0))","v":0.9966777408637874},{"$f":"IF(AND(P26=0,Q26=0),\"\",IF(P26>0,Q26/P26,Q26))","v":1.05},{"$f":"IF(AND(P26=0,Q26=0),\"\",IF(Q26>0,P26/Q26,0))","v":0.9523809523809523},{"$f":"IF(AND(T26=0,U26=0),\"\",IF(T26>0,U26/T26,U26))","v":""},{"$f":"IF(AND(T26=0,U26=0),\"\",IF(U26>0,T26/U26,0))","v":""},{"$f":"IF(AND(X26=0,Y26=0),\"\",IF(X26>0,Y26/X26,Y26))","v":""},{"$f":"IF(AND(X26=0,Y26=0),\"\",IF(Y26>0,X26/Y26,0))","v":""},{"$nulls":6},{"$f":"IF(Setup!$AG$7<>\"\",INDIRECT(\"'\" & Setup!$AG$7 & \"'!\" & AD26),0) + IF(Setup!$AG$8<>\"\",INDIRECT(\"'\" & Setup!$AG$8 & \"'!\" & AD26),0) + IF(Setup!$AG$9<>\"\",INDIRECT(\"'\" & Setup!$AG$9 & \"'!\" & AD26),0) + IF(Setup!$AG$10<>\"\",INDIRECT(\"'\" & Setup!$AG$10 & \"'!\" & AD26),0) + IF(Setup!$AG$11<>\"\",INDIRECT(\"'\" & Setup!$AG$11 & \"'!\" & AD26),0) + IF(Setup!$AG$12<>\"\",INDIRECT(\"'\" & Setup!$AG$12 & \"'!\" & AD26),0)","v":600},{"$f":"IF(Setup!$AG$7<>\"\",INDIRECT(\"'\" & Setup!$AG$7 & \"'!\" & AE26),0) + IF(Setup!$AG$8<>\"\",INDIRECT(\"'\" & Setup!$AG$8 & \"'!\" & AE26),0) + IF(Setup!$AG$9<>\"\",INDIRECT(\"'\" & Setup!$AG$9 & \"'!\" & AE26),0) + IF(Setup!$AG$10<>\"\",INDIRECT(\"'\" & Setup!$AG$10 & \"'!\" & AE26),0) + IF(Setup!$AG$11<>\"\",INDIRECT(\"'\" & Setup!$AG$11 & \"'!\" & AE26),0) + IF(Setup!$AG$12<>\"\",INDIRECT(\"'\" & Setup!$AG$12 & \"'!\" & AE26),0)","v":602},{"$f":"IF(Setup!$AH$7<>\"\",INDIRECT(\"'\" & Setup!$AH$7 & \"'!\" & AD26),0) + IF(Setup!$AH$8<>\"\",INDIRECT(\"'\" & Setup!$AH$8 & \"'!\" & AD26),0) + IF(Setup!$AH$9<>\"\",INDIRECT(\"'\" & Setup!$AH$9 & \"'!\" & AD26),0) + IF(Setup!$AH$10<>\"\",INDIRECT(\"'\" & Setup!$AH$10 & \"'!\" & AD26),0) + IF(Setup!$AH$11<>\"\",INDIRECT(\"'\" & Setup!$AH$11 & \"'!\" & AD26),0) + IF(Setup!$AH$12<>\"\",INDIRECT(\"'\" & Setup!$AH$12 & \"'!\" & AD26),0)","v":600},{"$f":"IF(Setup!$AH$7<>\"\",INDIRECT(\"'\" & Setup!$AH$7 & \"'!\" & AE26),0) + IF(Setup!$AH$8<>\"\",INDIRECT(\"'\" & Setup!$AH$8 & \"'!\" & AE26),0) + IF(Setup!$AH$9<>\"\",INDIRECT(\"'\" & Setup!$AH$9 & \"'!\" & AE26),0) + IF(Setup!$AH$10<>\"\",INDIRECT(\"'\" & Setup!$AH$10 & \"'!\" & AE26),0) + IF(Setup!$AH$11<>\"\",INDIRECT(\"'\" & Setup!$AH$11 & \"'!\" & AE26),0) + IF(Setup!$AH$12<>\"\",INDIRECT(\"'\" & Setup!$AH$12 & \"'!\" & AE26),0)","v":630},{"$f":"IF(Setup!$AI$7<>\"\",INDIRECT(\"'\" & Setup!$AI$7 & \"'!\" & AD26),0) + IF(Setup!$AI$8<>\"\",INDIRECT(\"'\" & Setup!$AI$8 & \"'!\" & AD26),0) + IF(Setup!$AI$9<>\"\",INDIRECT(\"'\" & Setup!$AI$9 & \"'!\" & AD26),0) + IF(Setup!$AI$10<>\"\",INDIRECT(\"'\" & Setup!$AI$10 & \"'!\" & AD26),0) + IF(Setup!$AI$11<>\"\",INDIRECT(\"'\" & Setup!$AI$11 & \"'!\" & AD26),0) + IF(Setup!$AI$12<>\"\",INDIRECT(\"'\" & Setup!$AI$12 & \"'!\" & AD26),0)","v":0},{"$f":"IF(Setup!$AI$7<>\"\",INDIRECT(\"'\" & Setup!$AI$7 & \"'!\" & AE26),0) + IF(Setup!$AI$8<>\"\",INDIRECT(\"'\" & Setup!$AI$8 & \"'!\" & AE26),0) + IF(Setup!$AI$9<>\"\",INDIRECT(\"'\" & Setup!$AI$9 & \"'!\" & AE26),0) + IF(Setup!$AI$10<>\"\",INDIRECT(\"'\" & Setup!$AI$10 & \"'!\" & AE26),0) + IF(Setup!$AI$11<>\"\",INDIRECT(\"'\" & Setup!$AI$11 & \"'!\" & AE26),0) + IF(Setup!$AI$12<>\"\",INDIRECT(\"'\" & Setup!$AI$12 & \"'!\" & AE26),0)","v":0},{"$f":"IF(Setup!$AJ$7<>\"\",INDIRECT(\"'\" & Setup!$AJ$7 & \"'!\" & AD26),0) + IF(Setup!$AJ$8<>\"\",INDIRECT(\"'\" & Setup!$AJ$8 & \"'!\" & AD26),0) + IF(Setup!$AJ$9<>\"\",INDIRECT(\"'\" & Setup!$AJ$9 & \"'!\" & AD26),0) + IF(Setup!$AJ$10<>\"\",INDIRECT(\"'\" & Setup!$AJ$10 & \"'!\" & AD26),0) + IF(Setup!$AJ$11<>\"\",INDIRECT(\"'\" & Setup!$AJ$11 & \"'!\" & AD26),0) + IF(Setup!$AJ$12<>\"\",INDIRECT(\"'\" & Setup!$AJ$12 & \"'!\" & AD26),0)","v":0},{"$f":"IF(Setup!$AJ$7<>\"\",INDIRECT(\"'\" & Setup!$AJ$7 & \"'!\" & AE26),0) + IF(Setup!$AJ$8<>\"\",INDIRECT(\"'\" & Setup!$AJ$8 & \"'!\" & AE26),0) + IF(Setup!$AJ$9<>\"\",INDIRECT(\"'\" & Setup!$AJ$9 & \"'!\" & AE26),0) + IF(Setup!$AJ$10<>\"\",INDIRECT(\"'\" & Setup!$AJ$10 & \"'!\" & AE26),0) + IF(Setup!$AJ$11<>\"\",INDIRECT(\"'\" & Setup!$AJ$11 & \"'!\" & AE26),0) + IF(Setup!$AJ$12<>\"\",INDIRECT(\"'\" & Setup!$AJ$12 & \"'!\" & AE26),0)","v":0}]
[{"$f":"Planning!A10","v":"I002"},{"$f":"Planning!B10","v":"2. Activity: Contributing"},{"$f":"Planning!C10","v":"Pr68"},{"$f":"Planning!D10","v":1.2},{"$f":"Planning!E10","v":"PLHIV reimbursed for transportation costs to HIV testing and treatment centres\n"},{"$f":"Planning!G10","v":"12. Living support to client/ target population "},null,{"$f":"IF(AR27<>\"3\",SUM(L27,P27,T27,X27),X27)","v":{"v":1200,"d":"1,200"}},{"$f":"IF(AR27<>\"3\",SUM(M27,Q27,U27,Y27),Y27)","v":{"v":1232,"d":"1,232"}},{"$f":"IF(AND($AR27=\"2\",$AB26<>Lists!$A$17),AU27,AT27)","v":{"v":0.974025974025974,"d":"97.40%"}},"",600,602,{"$f":"IF(AND($AR27=\"2\",$AB27<>Lists!$A$17),AW27,AV27)","v":{"v":0.9966777408637874,"d":"99.67%"}},"",600,630,{"$f":"IF(AND($AR27=\"2\",$AB27<>Lists!$A$17),AY27,AX27)","v":{"v":0.9523809523809523,"d":"95.24%"}},"",0,0,{"$f":"IF(AND($AR27=\"2\",$AB27<>Lists!$A$17),BA27,AZ27)","v":""},"",0,0,{"$f":"IF(AND($AR27=\"2\",$AB27<>Lists!$A$17),BC27,BB27)","v":""},"",{"$f":"Planning!H10","v":"1. YES"},{"$f":"LEFT(B27,1)&C27","v":"2Pr68"},"H26","J26","I26",{"$f":"IF(E27=0,\"\",\"[\"&A27&\"] [\"&C27&\"] \"     &E27)","v":"[I002] [Pr68] PLHIV reimbursed for transportation costs to HIV testing and treatment centres\n"},null,{"$f":"IF(Setup!$AG$7<>\"\",INDIRECT(\"'\" & Setup!$AG$7 & \"'!\" & AF27),0) + IF(Setup!$AG$8<>\"\",INDIRECT(\"'\" & Setup!$AG$8 & \"'!\" & AF27),0) + IF(Setup!$AG$9<>\"\",INDIRECT(\"'\" & Setup!$AG$9 & \"'!\" & AF27),0) + IF(Setup!$AG$10<>\"\",INDIRECT(\"'\" & Setup!$AG$10 & \"'!\" & AF27),0) + IF(Setup!$AG$11<>\"\",INDIRECT(\"'\" & Setup!$AG$11 & \"'!\" & AF27),0) + IF(Setup!$AG$12<>\"\",INDIRECT(\"'\" & Setup!$AG$12 & \"'!\" & AF27),0)","v":0},{"$f":"IF(Setup!$AH$7<>\"\",INDIRECT(\"'\" & Setup!$AH$7 & \"'!\" & AF27),0) + IF(Setup!$AH$8<>\"\",INDIRECT(\"'\" & Setup!$AH$8 & \"'!\" & AF27),0) + IF(Setup!$AH$9<>\"\",INDIRECT(\"'\" & Setup!$AH$9 & \"'!\" & AF27),0) + IF(Setup!$AH$10<>\"\",INDIRECT(\"'\" & Setup!$AH$10 & \"'!\" & AF27),0) + IF(Setup!$AH$11<>\"\",INDIRECT(\"'\" & Setup!$AH$11 & \"'!\" & AF27),0) + IF(Setup!$AH$12<>\"\",INDIRECT(\"'\" & Setup!$AH$12 & \"'!\" & AF27),0)","v":0},{"$f":"IF(Setup!$AI$7<>\"\",INDIRECT(\"'\" & Setup!$AI$7 & \"'!\" & AF27),0) + IF(Setup!$AI$8<>\"\",INDIRECT(\"'\" & Setup!$AI$8 & \"'!\" & AF27),0) + IF(Setup!$AI$9<>\"\",INDIRECT(\"'\" & Setup!$AI$9 & \"'!\" & AF27),0) + IF(Setup!$AI$10<>\"\",INDIRECT(\"'\" & Setup!$AI$10 & \"'!\" & AF27),0) + IF(Setup!$AI$11<>\"\",INDIRECT(\"'\" & Setup!$AI$11 & \"'!\" & AF27),0) + IF(Setup!$AI$12<>\"\",INDIRECT(\"'\" & Setup!$AI$12 & \"'!\" & AF27),0)","v":0},{"$f":"IF(Setup!$AJ$7<>\"\",INDIRECT(\"'\" & Setup!$AJ$7 & \"'!\" & AF27),0) + IF(Setup!$AJ$8<>\"\",INDIRECT(\"'\" & Setup!$AJ$8 & \"'!\" & AF27),0) + IF(Setup!$AJ$9<>\"\",INDIRECT(\"'\" & Setup!$AJ$9 & \"'!\" & AF27),0) + IF(Setup!$AJ$10<>\"\",INDIRECT(\"'\" & Setup!$AJ$10 & \"'!\" & AF27),0) + IF(Setup!$AJ$11<>\"\",INDIRECT(\"'\" & Setup!$AJ$11 & \"'!\" & AF27),0) + IF(Setup!$AJ$12<>\"\",INDIRECT(\"'\" & Setup!$AJ$12 & \"'!\" & AF27),0)","v":0},null,{"$f":"IF(B27=0,\"\",IF(LEFT(B27,1)=\"1\",\"1\",\"2\"))","v":"2"},{"$nulls":3},{"$f":"IF(C27=0,\"\",LEFT(INDEX(Lists!$H$5:$H$49,MATCH(C27,Lists!$G$5:$G$49,0),1),1))","v":"2"},null,{"$f":"IF(AND(H27=0,I27=0),\"\",IF(H27>0,I27/H27,I27))","v":1.0266666666666666},{"$f":"IF(AND(H27=0,I27=0),\"\",IF(I27>0,H27/I27,0))","v":0.974025974025974},{"$f":"IF(AND(L27=0,M27=0),\"\",IF(L27>0,M27/L27,M27))","v":1.0033333333333334},{"$f":"IF(AND(L27=0,M27=0),\"\",IF(M27>0,L27/M27,0))","v":0.9966777408637874},{"$f":"IF(AND(P27=0,Q27=0),\"\",IF(P27>0,Q27/P27,Q27))","v":1.05},{"$f":"IF(AND(P27=0,Q27=0),\"\",IF(Q27>0,P27/Q27,0))","v":0.9523809523809523},{"$f":"IF(AND(T27=0,U27=0),\"\",IF(T27>0,U27/T27,U27))","v":""},{"$f":"IF(AND(T27=0,U27=0),\"\",IF(U27>0,T27/U27,0))","v":""},{"$f":"IF(AND(X27=0,Y27=0),\"\",IF(X27>0,Y27/X27,Y27))","v":""},{"$f":"IF(AND(X27=0,Y27=0),\"\",IF(Y27>0,X27/Y27,0))","v":""},{"$nulls":6},{"$f":"IF(Setup!$AG$7<>\"\",INDIRECT(\"'\" & Setup!$AG$7 & \"'!\" & AD27),0) + IF(Setup!$AG$8<>\"\",INDIRECT(\"'\" & Setup!$AG$8 & \"'!\" & AD27),0) + IF(Setup!$AG$9<>\"\",INDIRECT(\"'\" & Setup!$AG$9 & \"'!\" & AD27),0) + IF(Setup!$AG$10<>\"\",INDIRECT(\"'\" & Setup!$AG$10 & \"'!\" & AD27),0) + IF(Setup!$AG$11<>\"\",INDIRECT(\"'\" & Setup!$AG$11 & \"'!\" & AD27),0) + IF(Setup!$AG$12<>\"\",INDIRECT(\"'\" & Setup!$AG$12 & \"'!\" & AD27),0)","v":600},{"$f":"IF(Setup!$AG$7<>\"\",INDIRECT(\"'\" & Setup!$AG$7 & \"'!\" & AE27),0) + IF(Setup!$AG$8<>\"\",INDIRECT(\"'\" & Setup!$AG$8 & \"'!\" & AE27),0) + IF(Setup!$AG$9<>\"\",INDIRECT(\"'\" & Setup!$AG$9 & \"'!\" & AE27),0) + IF(Setup!$AG$10<>\"\",INDIRECT(\"'\" & Setup!$AG$10 & \"'!\" & AE27),0) + IF(Setup!$AG$11<>\"\",INDIRECT(\"'\" & Setup!$AG$11 & \"'!\" & AE27),0) + IF(Setup!$AG$12<>\"\",INDIRECT(\"'\" & Setup!$AG$12 & \"'!\" & AE27),0)","v":602},{"$f":"IF(Setup!$AH$7<>\"\",INDIRECT(\"'\" & Setup!$AH$7 & \"'!\" & AD27),0) + IF(Setup!$AH$8<>\"\",INDIRECT(\"'\" & Setup!$AH$8 & \"'!\" & AD27),0) + IF(Setup!$AH$9<>\"\",INDIRECT(\"'\" & Setup!$AH$9 & \"'!\" & AD27),0) + IF(Setup!$AH$10<>\"\",INDIRECT(\"'\" & Setup!$AH$10 & \"'!\" & AD27),0) + IF(Setup!$AH$11<>\"\",INDIRECT(\"'\" & Setup!$AH$11 & \"'!\" & AD27),0) + IF(Setup!$AH$12<>\"\",INDIRECT(\"'\" & Setup!$AH$12 & \"'!\" & AD27),0)","v":600},{"$f":"IF(Setup!$AH$7<>\"\",INDIRECT(\"'\" & Setup!$AH$7 & \"'!\" & AE27),0) + IF(Setup!$AH$8<>\"\",INDIRECT(\"'\" & Setup!$AH$8 & \"'!\" & AE27),0) + IF(Setup!$AH$9<>\"\",INDIRECT(\"'\" & Setup!$AH$9 & \"'!\" & AE27),0) + IF(Setup!$AH$10<>\"\",INDIRECT(\"'\" & Setup!$AH$10 & \"'!\" & AE27),0) + IF(Setup!$AH$11<>\"\",INDIRECT(\"'\" & Setup!$AH$11 & \"'!\" & AE27),0) + IF(Setup!$AH$12<>\"\",INDIRECT(\"'\" & Setup!$AH$12 & \"'!\" & AE27),0)","v":630},{"$f":"IF(Setup!$AI$7<>\"\",INDIRECT(\"'\" & Setup!$AI$7 & \"'!\" & AD27),0) + IF(Setup!$AI$8<>\"\",INDIRECT(\"'\" & Setup!$AI$8 & \"'!\" & AD27),0) + IF(Setup!$AI$9<>\"\",INDIRECT(\"'\" & Setup!$AI$9 & \"'!\" & AD27),0) + IF(Setup!$AI$10<>\"\",INDIRECT(\"'\" & Setup!$AI$10 & \"'!\" & AD27),0) + IF(Setup!$AI$11<>\"\",INDIRECT(\"'\" & Setup!$AI$11 & \"'!\" & AD27),0) + IF(Setup!$AI$12<>\"\",INDIRECT(\"'\" & Setup!$AI$12 & \"'!\" & AD27),0)","v":0},{"$f":"IF(Setup!$AI$7<>\"\",INDIRECT(\"'\" & Setup!$AI$7 & \"'!\" & AE27),0) + IF(Setup!$AI$8<>\"\",INDIRECT(\"'\" & Setup!$AI$8 & \"'!\" & AE27),0) + IF(Setup!$AI$9<>\"\",INDIRECT(\"'\" & Setup!$AI$9 & \"'!\" & AE27),0) + IF(Setup!$AI$10<>\"\",INDIRECT(\"'\" & Setup!$AI$10 & \"'!\" & AE27),0) + IF(Setup!$AI$11<>\"\",INDIRECT(\"'\" & Setup!$AI$11 & \"'!\" & AE27),0) + IF(Setup!$AI$12<>\"\",INDIRECT(\"'\" & Setup!$AI$12 & \"'!\" & AE27),0)","v":0},{"$f":"IF(Setup!$AJ$7<>\"\",INDIRECT(\"'\" & Setup!$AJ$7 & \"'!\" & AD27),0) + IF(Setup!$AJ$8<>\"\",INDIRECT(\"'\" & Setup!$AJ$8 & \"'!\" & AD27),0) + IF(Setup!$AJ$9<>\"\",INDIRECT(\"'\" & Setup!$AJ$9 & \"'!\" & AD27),0) + IF(Setup!$AJ$10<>\"\",INDIRECT(\"'\" & Setup!$AJ$10 & \"'!\" & AD27),0) + IF(Setup!$AJ$11<>\"\",INDIRECT(\"'\" & Setup!$AJ$11 & \"'!\" & AD27),0) + IF(Setup!$AJ$12<>\"\",INDIRECT(\"'\" & Setup!$AJ$12 & \"'!\" & AD27),0)","v":0},{"$f":"IF(Setup!$AJ$7<>\"\",INDIRECT(\"'\" & Setup!$AJ$7 & \"'!\" & AE27),0) + IF(Setup!$AJ$8<>\"\",INDIRECT(\"'\" & Setup!$AJ$8 & \"'!\" & AE27),0) + IF(Setup!$AJ$9<>\"\",INDIRECT(\"'\" & Setup!$AJ$9 & \"'!\" & AE27),0) + IF(Setup!$AJ$10<>\"\",INDIRECT(\"'\" & Setup!$AJ$10 & \"'!\" & AE27),0) + IF(Setup!$AJ$11<>\"\",INDIRECT(\"'\" & Setup!$AJ$11 & \"'!\" & AE27),0) + IF(Setup!$AJ$12<>\"\",INDIRECT(\"'\" & Setup!$AJ$12 & \"'!\" & AE27),0)","v":0}]
[{"$f":"Planning!A11","v":"I003"},{"$f":"Planning!B11","v":"3. Activity: Non-Contributing"},{"$f":"Planning!C11","v":"Pr68"},{"$f":"Planning!D11","v":1.3},{"$f":"Planning!E11","v":"Communication materials produced to educate HIV+ patients about HIV treatment (Migrants and Sexual Workers). \n\n"},{"$f":"Planning!G11","v":"10. Communication material and publications"},null,150,149,{"$f":"IF(AND($AR28=\"2\",$AB27<>Lists!$A$17),AU28,AT28)","v":{"v":1.0067114093959733,"d":"100.67%"}},"",75,65,{"$f":"IF(AND($AR28=\"2\",$AB28<>Lists!$A$17),AW28,AV28)","v":{"v":0.8666666666666667,"d":"86.67%"}},"",75,84,{"$f":"IF(AND($AR28=\"2\",$AB28<>Lists!$A$17),AY28,AX28)","v":{"v":1.12,"d":"112.00%"}},"",0,0,{"$f":"IF(AND($AR28=\"2\",$AB28<>Lists!$A$17),BA28,AZ28)","v":""},"",0,0,{"$f":"IF(AND($AR28=\"2\",$AB28<>Lists!$A$17),BC28,BB28)","v":""},"",{"$f":"Planning!H11","v":"2. NO"},"3Pr68","H27","J27","I27","[I003] [Pr68] Communication materials produced to educate HIV+ patients about HIV treatment (Migrants and Sexual Workers). \n\n",null,{"$f":"IF(Setup!$AG$7<>\"\",INDIRECT(\"'\" & Setup!$AG$7 & \"'!\" & AF28),0) + IF(Setup!$AG$8<>\"\",INDIRECT(\"'\" & Setup!$AG$8 & \"'!\" & AF28),0) + IF(Setup!$AG$9<>\"\",INDIRECT(\"'\" & Setup!$AG$9 & \"'!\" & AF28),0) + IF(Setup!$AG$10<>\"\",INDIRECT(\"'\" & Setup!$AG$10 & \"'!\" & AF28),0) + IF(Setup!$AG$11<>\"\",INDIRECT(\"'\" & Setup!$AG$11 & \"'!\" & AF28),0) + IF(Setup!$AG$12<>\"\",INDIRECT(\"'\" & Setup!$AG$12 & \"'!\" & AF28),0)","v":10},{"$f":"IF(Setup!$AH$7<>\"\",INDIRECT(\"'\" & Setup!$AH$7 & \"'!\" & AF28),0) + IF(Setup!$AH$8<>\"\",INDIRECT(\"'\" & Setup!$AH$8 & \"'!\" & AF28),0) + IF(Setup!$AH$9<>\"\",INDIRECT(\"'\" & Setup!$AH$9 & \"'!\" & AF28),0) + IF(Setup!$AH$10<>\"\",INDIRECT(\"'\" & Setup!$AH$10 & \"'!\" & AF28),0) + IF(Setup!$AH$11<>\"\",INDIRECT(\"'\" & Setup!$AH$11 & \"'!\" & AF28),0) + IF(Setup!$AH$12<>\"\",INDIRECT(\"'\" & Setup!$AH$12 & \"'!\" & AF28),0)","v":11},{"$f":"IF(Setup!$AI$7<>\"\",INDIRECT(\"'\" & Setup!$AI$7 & \"'!\" & AF28),0) + IF(Setup!$AI$8<>\"\",INDIRECT(\"'\" & Setup!$AI$8 & \"'!\" & AF28),0) + IF(Setup!$AI$9<>\"\",INDIRECT(\"'\" & Setup!$AI$9 & \"'!\" & AF28),0) + IF(Setup!$AI$10<>\"\",INDIRECT(\"'\" & Setup!$AI$10 & \"'!\" & AF28),0) + IF(Setup!$AI$11<>\"\",INDIRECT(\"'\" & Setup!$AI$11 & \"'!\" & AF28),0) + IF(Setup!$AI$12<>\"\",INDIRECT(\"'\" & Setup!$AI$12 & \"'!\" & AF28),0)","v":3},{"$f":"IF(Setup!$AJ$7<>\"\",INDIRECT(\"'\" & Setup!$AJ$7 & \"'!\" & AF28),0) + IF(Setup!$AJ$8<>\"\",INDIRECT(\"'\" & Setup!$AJ$8 & \"'!\" & AF28),0) + IF(Setup!$AJ$9<>\"\",INDIRECT(\"'\" & Setup!$AJ$9 & \"'!\" & AF28),0) + IF(Setup!$AJ$10<>\"\",INDIRECT(\"'\" & Setup!$AJ$10 & \"'!\" & AF28),0) + IF(Setup!$AJ$11<>\"\",INDIRECT(\"'\" & Setup!$AJ$11 & \"'!\" & AF28),0) + IF(Setup!$AJ$12<>\"\",INDIRECT(\"'\" & Setup!$AJ$12 & \"'!\" & AF28),0)","v":3},null,"2",{"$nulls":3},{"$f":"IF(C28=0,\"\",LEFT(INDEX(Lists!$H$5:$H$49,MATCH(C28,Lists!$G$5:$G$49,0),1),1))","v":"2"},null,0.9933333333333333,1.0067114093959733,0.8666666666666667,1.1538461538461537,1.12,0.8928571428571429,"","","","",{"$nulls":6},{"$f":"IF(Setup!$AG$7<>\"\",INDIRECT(\"'\" & Setup!$AG$7 & \"'!\" & AD28),0) + IF(Setup!$AG$8<>\"\",INDIRECT(\"'\" & Setup!$AG$8 & \"'!\" & AD28),0) + IF(Setup!$AG$9<>\"\",INDIRECT(\"'\" & Setup!$AG$9 & \"'!\" & AD28),0) + IF(Setup!$AG$10<>\"\",INDIRECT(\"'\" & Setup!$AG$10 & \"'!\" & AD28),0) + IF(Setup!$AG$11<>\"\",INDIRECT(\"'\" & Setup!$AG$11 & \"'!\" & AD28),0) + IF(Setup!$AG$12<>\"\",INDIRECT(\"'\" & Setup!$AG$12 & \"'!\" & AD28),0)","v":75},{"$f":"IF(Setup!$AG$7<>\"\",INDIRECT(\"'\" & Setup!$AG$7 & \"'!\" & AE28),0) + IF(Setup!$AG$8<>\"\",INDIRECT(\"'\" & Setup!$AG$8 & \"'!\" & AE28),0) + IF(Setup!$AG$9<>\"\",INDIRECT(\"'\" & Setup!$AG$9 & \"'!\" & AE28),0) + IF(Setup!$AG$10<>\"\",INDIRECT(\"'\" & Setup!$AG$10 & \"'!\" & AE28),0) + IF(Setup!$AG$11<>\"\",INDIRECT(\"'\" & Setup!$AG$11 & \"'!\" & AE28),0) + IF(Setup!$AG$12<>\"\",INDIRECT(\"'\" & Setup!$AG$12 & \"'!\" & AE28),0)","v":65},{"$f":"IF(Setup!$AH$7<>\"\",INDIRECT(\"'\" & Setup!$AH$7 & \"'!\" & AD28),0) + IF(Setup!$AH$8<>\"\",INDIRECT(\"'\" & Setup!$AH$8 & \"'!\" & AD28),0) + IF(Setup!$AH$9<>\"\",INDIRECT(\"'\" & Setup!$AH$9 & \"'!\" & AD28),0) + IF(Setup!$AH$10<>\"\",INDIRECT(\"'\" & Setup!$AH$10 & \"'!\" & AD28),0) + IF(Setup!$AH$11<>\"\",INDIRECT(\"'\" & Setup!$AH$11 & \"'!\" & AD28),0) + IF(Setup!$AH$12<>\"\",INDIRECT(\"'\" & Setup!$AH$12 & \"'!\" & AD28),0)","v":75},{"$f":"IF(Setup!$AH$7<>\"\",INDIRECT(\"'\" & Setup!$AH$7 & \"'!\" & AE28),0) + IF(Setup!$AH$8<>\"\",INDIRECT(\"'\" & Setup!$AH$8 & \"'!\" & AE28),0) + IF(Setup!$AH$9<>\"\",INDIRECT(\"'\" & Setup!$AH$9 & \"'!\" & AE28),0) + IF(Setup!$AH$10<>\"\",INDIRECT(\"'\" & Setup!$AH$10 & \"'!\" & AE28),0) + IF(Setup!$AH$11<>\"\",INDIRECT(\"'\" & Setup!$AH$11 & \"'!\" & AE28),0) + IF(Setup!$AH$12<>\"\",INDIRECT(\"'\" & Setup!$AH$12 & \"'!\" & AE28),0)","v":84},{"$f":"IF(Setup!$AI$7<>\"\",INDIRECT(\"'\" & Setup!$AI$7 & \"'!\" & AD28),0) + IF(Setup!$AI$8<>\"\",INDIRECT(\"'\" & Setup!$AI$8 & \"'!\" & AD28),0) + IF(Setup!$AI$9<>\"\",INDIRECT(\"'\" & Setup!$AI$9 & \"'!\" & AD28),0) + IF(Setup!$AI$10<>\"\",INDIRECT(\"'\" & Setup!$AI$10 & \"'!\" & AD28),0) + IF(Setup!$AI$11<>\"\",INDIRECT(\"'\" & Setup!$AI$11 & \"'!\" & AD28),0) + IF(Setup!$AI$12<>\"\",INDIRECT(\"'\" & Setup!$AI$12 & \"'!\" & AD28),0)","v":0},{"$f":"IF(Setup!$AI$7<>\"\",INDIRECT(\"'\" & Setup!$AI$7 & \"'!\" & AE28),0) + IF(Setup!$AI$8<>\"\",INDIRECT(\"'\" & Setup!$AI$8 & \"'!\" & AE28),0) + IF(Setup!$AI$9<>\"\",INDIRECT(\"'\" & Setup!$AI$9 & \"'!\" & AE28),0) + IF(Setup!$AI$10<>\"\",INDIRECT(\"'\" & Setup!$AI$10 & \"'!\" & AE28),0) + IF(Setup!$AI$11<>\"\",INDIRECT(\"'\" & Setup!$AI$11 & \"'!\" & AE28),0) + IF(Setup!$AI$12<>\"\",INDIRECT(\"'\" & Setup!$AI$12 & \"'!\" & AE28),0)","v":0},{"$f":"IF(Setup!$AJ$7<>\"\",INDIRECT(\"'\" & Setup!$AJ$7 & \"'!\" & AD28),0) + IF(Setup!$AJ$8<>\"\",INDIRECT(\"'\" & Setup!$AJ$8 & \"'!\" & AD28),0) + IF(Setup!$AJ$9<>\"\",INDIRECT(\"'\" & Setup!$AJ$9 & \"'!\" & AD28),0) + IF(Setup!$AJ$10<>\"\",INDIRECT(\"'\" & Setup!$AJ$10 & \"'!\" & AD28),0) + IF(Setup!$AJ$11<>\"\",INDIRECT(\"'\" & Setup!$AJ$11 & \"'!\" & AD28),0) + IF(Setup!$AJ$12<>\"\",INDIRECT(\"'\" & Setup!$AJ$12 & \"'!\" & AD28),0)","v":0},{"$f":"IF(Setup!$AJ$7<>\"\",INDIRECT(\"'\" & Setup!$AJ$7 & \"'!\" & AE28),0) + IF(Setup!$AJ$8<>\"\",INDIRECT(\"'\" & Setup!$AJ$8 & \"'!\" & AE28),0) + IF(Setup!$AJ$9<>\"\",INDIRECT(\"'\" & Setup!$AJ$9 & \"'!\" & AE28),0) + IF(Setup!$AJ$10<>\"\",INDIRECT(\"'\" & Setup!$AJ$10 & \"'!\" & AE28),0) + IF(Setup!$AJ$11<>\"\",INDIRECT(\"'\" & Setup!$AJ$11 & \"'!\" & AE28),0) + IF(Setup!$AJ$12<>\"\",INDIRECT(\"'\" & Setup!$AJ$12 & \"'!\" & AE28),0)","v":0}]
[{"$f":"Planning!A12","v":"I004"},{"$f":"Planning!B12","v":"3. Activity: Non-Contributing"},{"$f":"Planning!C12","v":"Pr68"},{"$f":"Planning!D12","v":1.4},{"$f":"Planning!E12","v":"Supervisory visits to verify the appropriate application of testing and treatment protocols at centers. "},{"$f":"Planning!G12","v":"11. Programme administration costs"},null,249,249,{"$f":"IF(AND($AR29=\"2\",$AB28<>Lists!$A$17),AU29,AT29)","v":{"v":1,"d":"100.00%"}},"",189,189,{"$f":"IF(AND($AR29=\"2\",$AB29<>Lists!$A$17),AW29,AV29)","v":{"v":1,"d":"100.00%"}},"",60,60,{"$f":"IF(AND($AR29=\"2\",$AB29<>Lists!$A$17),AY29,AX29)","v":{"v":1,"d":"100.00%"}},"",0,0,{"$f":"IF(AND($AR29=\"2\",$AB29<>Lists!$A$17),BA29,AZ29)","v":""},"",0,0,{"$f":"IF(AND($AR29=\"2\",$AB29<>Lists!$A$17),BC29,BB29)","v":""},"",{"$f":"Planning!H12","v":"2. NO"},"3Pr68","H28","J28","I28","[I004] [Pr68] Supervisory visits to verify the appropriate application of testing and treatment protocols at centers. ",null,{"$f":"IF(Setup!$AG$7<>\"\",INDIRECT(\"'\" & Setup!$AG$7 & \"'!\" & AF29),0) + IF(Setup!$AG$8<>\"\",INDIRECT(\"'\" & Setup!$AG$8 & \"'!\" & AF29),0) + IF(Setup!$AG$9<>\"\",INDIRECT(\"'\" & Setup!$AG$9 & \"'!\" & AF29),0) + IF(Setup!$AG$10<>\"\",INDIRECT(\"'\" & Setup!$AG$10 & \"'!\" & AF29),0) + IF(Setup!$AG$11<>\"\",INDIRECT(\"'\" & Setup!$AG$11 & \"'!\" & AF29),0) + IF(Setup!$AG$12<>\"\",INDIRECT(\"'\" & Setup!$AG$12 & \"'!\" & AF29),0)","v":13},{"$f":"IF(Setup!$AH$7<>\"\",INDIRECT(\"'\" & Setup!$AH$7 & \"'!\" & AF29),0) + IF(Setup!$AH$8<>\"\",INDIRECT(\"'\" & Setup!$AH$8 & \"'!\" & AF29),0) + IF(Setup!$AH$9<>\"\",INDIRECT(\"'\" & Setup!$AH$9 & \"'!\" & AF29),0) + IF(Setup!$AH$10<>\"\",INDIRECT(\"'\" & Setup!$AH$10 & \"'!\" & AF29),0) + IF(Setup!$AH$11<>\"\",INDIRECT(\"'\" & Setup!$AH$11 & \"'!\" & AF29),0) + IF(Setup!$AH$12<>\"\",INDIRECT(\"'\" & Setup!$AH$12 & \"'!\" & AF29),0)","v":0},{"$f":"IF(Setup!$AI$7<>\"\",INDIRECT(\"'\" & Setup!$AI$7 & \"'!\" & AF29),0) + IF(Setup!$AI$8<>\"\",INDIRECT(\"'\" & Setup!$AI$8 & \"'!\" & AF29),0) + IF(Setup!$AI$9<>\"\",INDIRECT(\"'\" & Setup!$AI$9 & \"'!\" & AF29),0) + IF(Setup!$AI$10<>\"\",INDIRECT(\"'\" & Setup!$AI$10 & \"'!\" & AF29),0) + IF(Setup!$AI$11<>\"\",INDIRECT(\"'\" & Setup!$AI$11 & \"'!\" & AF29),0) + IF(Setup!$AI$12<>\"\",INDIRECT(\"'\" & Setup!$AI$12 & \"'!\" & AF29),0)","v":0},{"$f":"IF(Setup!$AJ$7<>\"\",INDIRECT(\"'\" & Setup!$AJ$7 & \"'!\" & AF29),0) + IF(Setup!$AJ$8<>\"\",INDIRECT(\"'\" & Setup!$AJ$8 & \"'!\" & AF29),0) + IF(Setup!$AJ$9<>\"\",INDIRECT(\"'\" & Setup!$AJ$9 & \"'!\" & AF29),0) + IF(Setup!$AJ$10<>\"\",INDIRECT(\"'\" & Setup!$AJ$10 & \"'!\" & AF29),0) + IF(Setup!$AJ$11<>\"\",INDIRECT(\"'\" & Setup!$AJ$11 & \"'!\" & AF29),0) + IF(Setup!$AJ$12<>\"\",INDIRECT(\"'\" & Setup!$AJ$12 & \"'!\" & AF29),0)","v":0},null,"2",{"$nulls":3},{"$f":"IF(C29=0,\"\",LEFT(INDEX(Lists!$H$5:$H$49,MATCH(C29,Lists!$G$5:$G$49,0),1),1))","v":"2"},null,1,1,1,1,1,1,"","","","",{"$nulls":6},{"$f":"IF(Setup!$AG$7<>\"\",INDIRECT(\"'\" & Setup!$AG$7 & \"'!\" & AD29),0) + IF(Setup!$AG$8<>\"\",INDIRECT(\"'\" & Setup!$AG$8 & \"'!\" & AD29),0) + IF(Setup!$AG$9<>\"\",INDIRECT(\"'\" & Setup!$AG$9 & \"'!\" & AD29),0) + IF(Setup!$AG$10<>\"\",INDIRECT(\"'\" & Setup!$AG$10 & \"'!\" & AD29),0) + IF(Setup!$AG$11<>\"\",INDIRECT(\"'\" & Setup!$AG$11 & \"'!\" & AD29),0) + IF(Setup!$AG$12<>\"\",INDIRECT(\"'\" & Setup!$AG$12 & \"'!\" & AD29),0)","v":189},{"$f":"IF(Setup!$AG$7<>\"\",INDIRECT(\"'\" & Setup!$AG$7 & \"'!\" & AE29),0) + IF(Setup!$AG$8<>\"\",INDIRECT(\"'\" & Setup!$AG$8 & \"'!\" & AE29),0) + IF(Setup!$AG$9<>\"\",INDIRECT(\"'\" & Setup!$AG$9 & \"'!\" & AE29),0) + IF(Setup!$AG$10<>\"\",INDIRECT(\"'\" & Setup!$AG$10 & \"'!\" & AE29),0) + IF(Setup!$AG$11<>\"\",INDIRECT(\"'\" & Setup!$AG$11 & \"'!\" & AE29),0) + IF(Setup!$AG$12<>\"\",INDIRECT(\"'\" & Setup!$AG$12 & \"'!\" & AE29),0)","v":189},{"$f":"IF(Setup!$AH$7<>\"\",INDIRECT(\"'\" & Setup!$AH$7 & \"'!\" & AD29),0) + IF(Setup!$AH$8<>\"\",INDIRECT(\"'\" & Setup!$AH$8 & \"'!\" & AD29),0) + IF(Setup!$AH$9<>\"\",INDIRECT(\"'\" & Setup!$AH$9 & \"'!\" & AD29),0) + IF(Setup!$AH$10<>\"\",INDIRECT(\"'\" & Setup!$AH$10 & \"'!\" & AD29),0) + IF(Setup!$AH$11<>\"\",INDIRECT(\"'\" & Setup!$AH$11 & \"'!\" & AD29),0) + IF(Setup!$AH$12<>\"\",INDIRECT(\"'\" & Setup!$AH$12 & \"'!\" & AD29),0)","v":60},{"$f":"IF(Setup!$AH$7<>\"\",INDIRECT(\"'\" & Setup!$AH$7 & \"'!\" & AE29),0) + IF(Setup!$AH$8<>\"\",INDIRECT(\"'\" & Setup!$AH$8 & \"'!\" & AE29),0) + IF(Setup!$AH$9<>\"\",INDIRECT(\"'\" & Setup!$AH$9 & \"'!\" & AE29),0) + IF(Setup!$AH$10<>\"\",INDIRECT(\"'\" & Setup!$AH$10 & \"'!\" & AE29),0) + IF(Setup!$AH$11<>\"\",INDIRECT(\"'\" & Setup!$AH$11 & \"'!\" & AE29),0) + IF(Setup!$AH$12<>\"\",INDIRECT(\"'\" & Setup!$AH$12 & \"'!\" & AE29),0)","v":60},{"$f":"IF(Setup!$AI$7<>\"\",INDIRECT(\"'\" & Setup!$AI$7 & \"'!\" & AD29),0) + IF(Setup!$AI$8<>\"\",INDIRECT(\"'\" & Setup!$AI$8 & \"'!\" & AD29),0) + IF(Setup!$AI$9<>\"\",INDIRECT(\"'\" & Setup!$AI$9 & \"'!\" & AD29),0) + IF(Setup!$AI$10<>\"\",INDIRECT(\"'\" & Setup!$AI$10 & \"'!\" & AD29),0) + IF(Setup!$AI$11<>\"\",INDIRECT(\"'\" & Setup!$AI$11 & \"'!\" & AD29),0) + IF(Setup!$AI$12<>\"\",INDIRECT(\"'\" & Setup!$AI$12 & \"'!\" & AD29),0)","v":0},{"$f":"IF(Setup!$AI$7<>\"\",INDIRECT(\"'\" & Setup!$AI$7 & \"'!\" & AE29),0) + IF(Setup!$AI$8<>\"\",INDIRECT(\"'\" & Setup!$AI$8 & \"'!\" & AE29),0) + IF(Setup!$AI$9<>\"\",INDIRECT(\"'\" & Setup!$AI$9 & \"'!\" & AE29),0) + IF(Setup!$AI$10<>\"\",INDIRECT(\"'\" & Setup!$AI$10 & \"'!\" & AE29),0) + IF(Setup!$AI$11<>\"\",INDIRECT(\"'\" & Setup!$AI$11 & \"'!\" & AE29),0) + IF(Setup!$AI$12<>\"\",INDIRECT(\"'\" & Setup!$AI$12 & \"'!\" & AE29),0)","v":0},{"$f":"IF(Setup!$AJ$7<>\"\",INDIRECT(\"'\" & Setup!$AJ$7 & \"'!\" & AD29),0) + IF(Setup!$AJ$8<>\"\",INDIRECT(\"'\" & Setup!$AJ$8 & \"'!\" & AD29),0) + IF(Setup!$AJ$9<>\"\",INDIRECT(\"'\" & Setup!$AJ$9 & \"'!\" & AD29),0) + IF(Setup!$AJ$10<>\"\",INDIRECT(\"'\" & Setup!$AJ$10 & \"'!\" & AD29),0) + IF(Setup!$AJ$11<>\"\",INDIRECT(\"'\" & Setup!$AJ$11 & \"'!\" & AD29),0) + IF(Setup!$AJ$12<>\"\",INDIRECT(\"'\" & Setup!$AJ$12 & \"'!\" & AD29),0)","v":0},{"$f":"IF(Setup!$AJ$7<>\"\",INDIRECT(\"'\" & Setup!$AJ$7 & \"'!\" & AE29),0) + IF(Setup!$AJ$8<>\"\",INDIRECT(\"'\" & Setup!$AJ$8 & \"'!\" & AE29),0) + IF(Setup!$AJ$9<>\"\",INDIRECT(\"'\" & Setup!$AJ$9 & \"'!\" & AE29),0) + IF(Setup!$AJ$10<>\"\",INDIRECT(\"'\" & Setup!$AJ$10 & \"'!\" & AE29),0) + IF(Setup!$AJ$11<>\"\",INDIRECT(\"'\" & Setup!$AJ$11 & \"'!\" & AE29),0) + IF(Setup!$AJ$12<>\"\",INDIRECT(\"'\" & Setup!$AJ$12 & \"'!\" & AE29),0)","v":0}]
[{"$f":"Planning!A13","v":"I005"},{"$f":"Planning!B13","v":"1. Indicator"},{"$f":"Planning!C13","v":"Pr72"},{"$f":"Planning!D13","v":2},{"$f":"Planning!E13","v":"[Pr72] # new HIV+ enrolled in care services Target [3. Non-Cumulative]"},{"$f":"Planning!G13","v":0},null,0,0,{"$f":"IF(AND($AR30=\"2\",$AB29<>Lists!$A$17),AU30,AT30)","v":""},"",124,110,{"$f":"IF(AND($AR30=\"2\",$AB30<>Lists!$A$17),AW30,AV30)","v":{"v":0.8870967741935484,"d":"88.71%"}},0.8870967741935484,124,124,{"$f":"IF(AND($AR30=\"2\",$AB30<>Lists!$A$17),AY30,AX30)","v":{"v":1,"d":"100.00%"}},1,0,0,{"$f":"IF(AND($AR30=\"2\",$AB30<>Lists!$A$17),BA30,AZ30)","v":""},"",0,0,{"$f":"IF(AND($AR30=\"2\",$AB30<>Lists!$A$17),BC30,BB30)","v":""},"",{"$f":"Planning!H13","v":0},"1Pr72","H29","J29","I29","[I005] [Pr72] [Pr72] # new HIV+ enrolled in care services Target [3. Non-Cumulative]",null,{"$f":"IF(Setup!$AG$7<>\"\",INDIRECT(\"'\" & Setup!$AG$7 & \"'!\" & AF30),0) + IF(Setup!$AG$8<>\"\",INDIRECT(\"'\" & Setup!$AG$8 & \"'!\" & AF30),0) + IF(Setup!$AG$9<>\"\",INDIRECT(\"'\" & Setup!$AG$9 & \"'!\" & AF30),0) + IF(Setup!$AG$10<>\"\",INDIRECT(\"'\" & Setup!$AG$10 & \"'!\" & AF30),0) + IF(Setup!$AG$11<>\"\",INDIRECT(\"'\" & Setup!$AG$11 & \"'!\" & AF30),0) + IF(Setup!$AG$12<>\"\",INDIRECT(\"'\" & Setup!$AG$12 & \"'!\" & AF30),0)","v":0},{"$f":"IF(Setup!$AH$7<>\"\",INDIRECT(\"'\" & Setup!$AH$7 & \"'!\" & AF30),0) + IF(Setup!$AH$8<>\"\",INDIRECT(\"'\" & Setup!$AH$8 & \"'!\" & AF30),0) + IF(Setup!$AH$9<>\"\",INDIRECT(\"'\" & Setup!$AH$9 & \"'!\" & AF30),0) + IF(Setup!$AH$10<>\"\",INDIRECT(\"'\" & Setup!$AH$10 & \"'!\" & AF30),0) + IF(Setup!$AH$11<>\"\",INDIRECT(\"'\" & Setup!$AH$11 & \"'!\" & AF30),0) + IF(Setup!$AH$12<>\"\",INDIRECT(\"'\" & Setup!$AH$12 & \"'!\" & AF30),0)","v":0},{"$f":"IF(Setup!$AI$7<>\"\",INDIRECT(\"'\" & Setup!$AI$7 & \"'!\" & AF30),0) + IF(Setup!$AI$8<>\"\",INDIRECT(\"'\" & Setup!$AI$8 & \"'!\" & AF30),0) + IF(Setup!$AI$9<>\"\",INDIRECT(\"'\" & Setup!$AI$9 & \"'!\" & AF30),0) + IF(Setup!$AI$10<>\"\",INDIRECT(\"'\" & Setup!$AI$10 & \"'!\" & AF30),0) + IF(Setup!$AI$11<>\"\",INDIRECT(\"'\" & Setup!$AI$11 & \"'!\" & AF30),0) + IF(Setup!$AI$12<>\"\",INDIRECT(\"'\" & Setup!$AI$12 & \"'!\" & AF30),0)","v":0},{"$f":"IF(Setup!$AJ$7<>\"\",INDIRECT(\"'\" & Setup!$AJ$7 & \"'!\" & AF30),0) + IF(Setup!$AJ$8<>\"\",INDIRECT(\"'\" & Setup!$AJ$8 & \"'!\" & AF30),0) + IF(Setup!$AJ$9<>\"\",INDIRECT(\"'\" & Setup!$AJ$9 & \"'!\" & AF30),0) + IF(Setup!$AJ$10<>\"\",INDIRECT(\"'\" & Setup!$AJ$10 & \"'!\" & AF30),0) + IF(Setup!$AJ$11<>\"\",INDIRECT(\"'\" & Setup!$AJ$11 & \"'!\" & AF30),0) + IF(Setup!$AJ$12<>\"\",INDIRECT(\"'\" & Setup!$AJ$12 & \"'!\" & AF30),0)","v":0},null,"1",{"$nulls":3},{"$f":"IF(C30=0,\"\",LEFT(INDEX(Lists!$H$5:$H$49,MATCH(C30,Lists!$G$5:$G$49,0),1),1))","v":"3"},null,"","",0.8870967741935484,1.1272727272727272,1,1,"","","","",{"$nulls":6},{"$f":"IF(Setup!$AG$7<>\"\",INDIRECT(\"'\" & Setup!$AG$7 & \"'!\" & AD30),0) + IF(Setup!$AG$8<>\"\",INDIRECT(\"'\" & Setup!$AG$8 & \"'!\" & AD30),0) + IF(Setup!$AG$9<>\"\",INDIRECT(\"'\" & Setup!$AG$9 & \"'!\" & AD30),0) + IF(Setup!$AG$10<>\"\",INDIRECT(\"'\" & Setup!$AG$10 & \"'!\" & AD30),0) + IF(Setup!$AG$11<>\"\",INDIRECT(\"'\" & Setup!$AG$11 & \"'!\" & AD30),0) + IF(Setup!$AG$12<>\"\",INDIRECT(\"'\" & Setup!$AG$12 & \"'!\" & AD30),0)","v":372},{"$f":"IF(Setup!$AG$7<>\"\",INDIRECT(\"'\" & Setup!$AG$7 & \"'!\" & AE30),0) + IF(Setup!$AG$8<>\"\",INDIRECT(\"'\" & Setup!$AG$8 & \"'!\" & AE30),0) + IF(Setup!$AG$9<>\"\",INDIRECT(\"'\" & Setup!$AG$9 & \"'!\" & AE30),0) + IF(Setup!$AG$10<>\"\",INDIRECT(\"'\" & Setup!$AG$10 & \"'!\" & AE30),0) + IF(Setup!$AG$11<>\"\",INDIRECT(\"'\" & Setup!$AG$11 & \"'!\" & AE30),0) + IF(Setup!$AG$12<>\"\",INDIRECT(\"'\" & Setup!$AG$12 & \"'!\" & AE30),0)","v":345},{"$f":"IF(Setup!$AH$7<>\"\",INDIRECT(\"'\" & Setup!$AH$7 & \"'!\" & AD30),0) + IF(Setup!$AH$8<>\"\",INDIRECT(\"'\" & Setup!$AH$8 & \"'!\" & AD30),0) + IF(Setup!$AH$9<>\"\",INDIRECT(\"'\" & Setup!$AH$9 & \"'!\" & AD30),0) + IF(Setup!$AH$10<>\"\",INDIRECT(\"'\" & Setup!$AH$10 & \"'!\" & AD30),0) + IF(Setup!$AH$11<>\"\",INDIRECT(\"'\" & Setup!$AH$11 & \"'!\" & AD30),0) + IF(Setup!$AH$12<>\"\",INDIRECT(\"'\" & Setup!$AH$12 & \"'!\" & AD30),0)","v":372},{"$f":"IF(Setup!$AH$7<>\"\",INDIRECT(\"'\" & Setup!$AH$7 & \"'!\" & AE30),0) + IF(Setup!$AH$8<>\"\",INDIRECT(\"'\" & Setup!$AH$8 & \"'!\" & AE30),0) + IF(Setup!$AH$9<>\"\",INDIRECT(\"'\" & Setup!$AH$9 & \"'!\" & AE30),0) + IF(Setup!$AH$10<>\"\",INDIRECT(\"'\" & Setup!$AH$10 & \"'!\" & AE30),0) + IF(Setup!$AH$11<>\"\",INDIRECT(\"'\" & Setup!$AH$11 & \"'!\" & AE30),0) + IF(Setup!$AH$12<>\"\",INDIRECT(\"'\" & Setup!$AH$12 & \"'!\" & AE30),0)","v":304},{"$f":"IF(Setup!$AI$7<>\"\",INDIRECT(\"'\" & Setup!$AI$7 & \"'!\" & AD30),0) + IF(Setup!$AI$8<>\"\",INDIRECT(\"'\" & Setup!$AI$8 & \"'!\" & AD30),0) + IF(Setup!$AI$9<>\"\",INDIRECT(\"'\" & Setup!$AI$9 & \"'!\" & AD30),0) + IF(Setup!$AI$10<>\"\",INDIRECT(\"'\" & Setup!$AI$10 & \"'!\" & AD30),0) + IF(Setup!$AI$11<>\"\",INDIRECT(\"'\" & Setup!$AI$11 & \"'!\" & AD30),0) + IF(Setup!$AI$12<>\"\",INDIRECT(\"'\" & Setup!$AI$12 & \"'!\" & AD30),0)","v":0},{"$f":"IF(Setup!$AI$7<>\"\",INDIRECT(\"'\" & Setup!$AI$7 & \"'!\" & AE30),0) + IF(Setup!$AI$8<>\"\",INDIRECT(\"'\" & Setup!$AI$8 & \"'!\" & AE30),0) + IF(Setup!$AI$9<>\"\",INDIRECT(\"'\" & Setup!$AI$9 & \"'!\" & AE30),0) + IF(Setup!$AI$10<>\"\",INDIRECT(\"'\" & Setup!$AI$10 & \"'!\" & AE30),0) + IF(Setup!$AI$11<>\"\",INDIRECT(\"'\" & Setup!$AI$11 & \"'!\" & AE30),0) + IF(Setup!$AI$12<>\"\",INDIRECT(\"'\" & Setup!$AI$12 & \"'!\" & AE30),0)","v":0},{"$f":"IF(Setup!$AJ$7<>\"\",INDIRECT(\"'\" & Setup!$AJ$7 & \"'!\" & AD30),0) + IF(Setup!$AJ$8<>\"\",INDIRECT(\"'\" & Setup!$AJ$8 & \"'!\" & AD30),0) + IF(Setup!$AJ$9<>\"\",INDIRECT(\"'\" & Setup!$AJ$9 & \"'!\" & AD30),0) + IF(Setup!$AJ$10<>\"\",INDIRECT(\"'\" & Setup!$AJ$10 & \"'!\" & AD30),0) + IF(Setup!$AJ$11<>\"\",INDIRECT(\"'\" & Setup!$AJ$11 & \"'!\" & AD30),0) + IF(Setup!$AJ$12<>\"\",INDIRECT(\"'\" & Setup!$AJ$12 & \"'!\" & AD30),0)","v":0},{"$f":"IF(Setup!$AJ$7<>\"\",INDIRECT(\"'\" & Setup!$AJ$7 & \"'!\" & AE30),0) + IF(Setup!$AJ$8<>\"\",INDIRECT(\"'\" & Setup!$AJ$8 & \"'!\" & AE30),0) + IF(Setup!$AJ$9<>\"\",INDIRECT(\"'\" & Setup!$AJ$9 & \"'!\" & AE30),0) + IF(Setup!$AJ$10<>\"\",INDIRECT(\"'\" & Setup!$AJ$10 & \"'!\" & AE30),0) + IF(Setup!$AJ$11<>\"\",INDIRECT(\"'\" & Setup!$AJ$11 & \"'!\" & AE30),0) + IF(Setup!$AJ$12<>\"\",INDIRECT(\"'\" & Setup!$AJ$12 & \"'!\" & AE30),0)","v":0}]
[{"$f":"Planning!A14","v":"I006"},{"$f":"Planning!B14","v":"2. Activity: Contributing"},{"$f":"Planning!C14","v":"Pr72"},{"$f":"Planning!D14","v":2.1},{"$f":"Planning!E14","v":"Enrollment of  newly diagnosed HIV+ patients for home visits to monitor use of ARV."},{"$f":"Planning!G14","v":"12. Living support to client/ target population "},null,0,0,{"$f":"IF(AND($AR31=\"2\",$AB30<>Lists!$A$17),AU31,AT31)","v":""},"",124,110,{"$f":"IF(AND($AR31=\"2\",$AB31<>Lists!$A$17),AW31,AV31)","v":{"v":0.8870967741935484,"d":"88.71%"}},"",124,124,{"$f":"IF(AND($AR31=\"2\",$AB31<>Lists!$A$17),AY31,AX31)","v":{"v":1,"d":"100.00%"}},"",0,0,{"$f":"IF(AND($AR31=\"2\",$AB31<>Lists!$A$17),BA31,AZ31)","v":""},"",0,0,{"$f":"IF(AND($AR31=\"2\",$AB31<>Lists!$A$17),BC31,BB31)","v":""},"",{"$f":"Planning!H14","v":"1. YES"},"2Pr72","H30","J30","I30","[I006] [Pr72] Enrollment of  newly diagnosed HIV+ patients for home visits to monitor use of ARV.",null,{"$f":"IF(Setup!$AG$7<>\"\",INDIRECT(\"'\" & Setup!$AG$7 & \"'!\" & AF31),0) + IF(Setup!$AG$8<>\"\",INDIRECT(\"'\" & Setup!$AG$8 & \"'!\" & AF31),0) + IF(Setup!$AG$9<>\"\",INDIRECT(\"'\" & Setup!$AG$9 & \"'!\" & AF31),0) + IF(Setup!$AG$10<>\"\",INDIRECT(\"'\" & Setup!$AG$10 & \"'!\" & AF31),0) + IF(Setup!$AG$11<>\"\",INDIRECT(\"'\" & Setup!$AG$11 & \"'!\" & AF31),0) + IF(Setup!$AG$12<>\"\",INDIRECT(\"'\" & Setup!$AG$12 & \"'!\" & AF31),0)","v":0},{"$f":"IF(Setup!$AH$7<>\"\",INDIRECT(\"'\" & Setup!$AH$7 & \"'!\" & AF31),0) + IF(Setup!$AH$8<>\"\",INDIRECT(\"'\" & Setup!$AH$8 & \"'!\" & AF31),0) + IF(Setup!$AH$9<>\"\",INDIRECT(\"'\" & Setup!$AH$9 & \"'!\" & AF31),0) + IF(Setup!$AH$10<>\"\",INDIRECT(\"'\" & Setup!$AH$10 & \"'!\" & AF31),0) + IF(Setup!$AH$11<>\"\",INDIRECT(\"'\" & Setup!$AH$11 & \"'!\" & AF31),0) + IF(Setup!$AH$12<>\"\",INDIRECT(\"'\" & Setup!$AH$12 & \"'!\" & AF31),0)","v":0},{"$f":"IF(Setup!$AI$7<>\"\",INDIRECT(\"'\" & Setup!$AI$7 & \"'!\" & AF31),0) + IF(Setup!$AI$8<>\"\",INDIRECT(\"'\" & Setup!$AI$8 & \"'!\" & AF31),0) + IF(Setup!$AI$9<>\"\",INDIRECT(\"'\" & Setup!$AI$9 & \"'!\" & AF31),0) + IF(Setup!$AI$10<>\"\",INDIRECT(\"'\" & Setup!$AI$10 & \"'!\" & AF31),0) + IF(Setup!$AI$11<>\"\",INDIRECT(\"'\" & Setup!$AI$11 & \"'!\" & AF31),0) + IF(Setup!$AI$12<>\"\",INDIRECT(\"'\" & Setup!$AI$12 & \"'!\" & AF31),0)","v":0},{"$f":"IF(Setup!$AJ$7<>\"\",INDIRECT(\"'\" & Setup!$AJ$7 & \"'!\" & AF31),0) + IF(Setup!$AJ$8<>\"\",INDIRECT(\"'\" & Setup!$AJ$8 & \"'!\" & AF31),0) + IF(Setup!$AJ$9<>\"\",INDIRECT(\"'\" & Setup!$AJ$9 & \"'!\" & AF31),0) + IF(Setup!$AJ$10<>\"\",INDIRECT(\"'\" & Setup!$AJ$10 & \"'!\" & AF31),0) + IF(Setup!$AJ$11<>\"\",INDIRECT(\"'\" & Setup!$AJ$11 & \"'!\" & AF31),0) + IF(Setup!$AJ$12<>\"\",INDIRECT(\"'\" & Setup!$AJ$12 & \"'!\" & AF31),0)","v":0},null,"2",{"$nulls":3},{"$f":"IF(C31=0,\"\",LEFT(INDEX(Lists!$H$5:$H$49,MATCH(C31,Lists!$G$5:$G$49,0),1),1))","v":"3"},null,"","",0.8870967741935484,1.1272727272727272,1,1,"","","","",{"$nulls":6},{"$f":"IF(Setup!$AG$7<>\"\",INDIRECT(\"'\" & Setup!$AG$7 & \"'!\" & AD31),0) + IF(Setup!$AG$8<>\"\",INDIRECT(\"'\" & Setup!$AG$8 & \"'!\" & AD31),0) + IF(Setup!$AG$9<>\"\",INDIRECT(\"'\" & Setup!$AG$9 & \"'!\" & AD31),0) + IF(Setup!$AG$10<>\"\",INDIRECT(\"'\" & Setup!$AG$10 & \"'!\" & AD31),0) + IF(Setup!$AG$11<>\"\",INDIRECT(\"'\" & Setup!$AG$11 & \"'!\" & AD31),0) + IF(Setup!$AG$12<>\"\",INDIRECT(\"'\" & Setup!$AG$12 & \"'!\" & AD31),0)","v":372},{"$f":"IF(Setup!$AG$7<>\"\",INDIRECT(\"'\" & Setup!$AG$7 & \"'!\" & AE31),0) + IF(Setup!$AG$8<>\"\",INDIRECT(\"'\" & Setup!$AG$8 & \"'!\" & AE31),0) + IF(Setup!$AG$9<>\"\",INDIRECT(\"'\" & Setup!$AG$9 & \"'!\" & AE31),0) + IF(Setup!$AG$10<>\"\",INDIRECT(\"'\" & Setup!$AG$10 & \"'!\" & AE31),0) + IF(Setup!$AG$11<>\"\",INDIRECT(\"'\" & Setup!$AG$11 & \"'!\" & AE31),0) + IF(Setup!$AG$12<>\"\",INDIRECT(\"'\" & Setup!$AG$12 & \"'!\" & AE31),0)","v":345},{"$f":"IF(Setup!$AH$7<>\"\",INDIRECT(\"'\" & Setup!$AH$7 & \"'!\" & AD31),0) + IF(Setup!$AH$8<>\"\",INDIRECT(\"'\" & Setup!$AH$8 & \"'!\" & AD31),0) + IF(Setup!$AH$9<>\"\",INDIRECT(\"'\" & Setup!$AH$9 & \"'!\" & AD31),0) + IF(Setup!$AH$10<>\"\",INDIRECT(\"'\" & Setup!$AH$10 & \"'!\" & AD31),0) + IF(Setup!$AH$11<>\"\",INDIRECT(\"'\" & Setup!$AH$11 & \"'!\" & AD31),0) + IF(Setup!$AH$12<>\"\",INDIRECT(\"'\" & Setup!$AH$12 & \"'!\" & AD31),0)","v":372},{"$f":"IF(Setup!$AH$7<>\"\",INDIRECT(\"'\" & Setup!$AH$7 & \"'!\" & AE31),0) + IF(Setup!$AH$8<>\"\",INDIRECT(\"'\" & Setup!$AH$8 & \"'!\" & AE31),0) + IF(Setup!$AH$9<>\"\",INDIRECT(\"'\" & Setup!$AH$9 & \"'!\" & AE31),0) + IF(Setup!$AH$10<>\"\",INDIRECT(\"'\" & Setup!$AH$10 & \"'!\" & AE31),0) + IF(Setup!$AH$11<>\"\",INDIRECT(\"'\" & Setup!$AH$11 & \"'!\" & AE31),0) + IF(Setup!$AH$12<>\"\",INDIRECT(\"'\" & Setup!$AH$12 & \"'!\" & AE31),0)","v":304},{"$f":"IF(Setup!$AI$7<>\"\",INDIRECT(\"'\" & Setup!$AI$7 & \"'!\" & AD31),0) + IF(Setup!$AI$8<>\"\",INDIRECT(\"'\" & Setup!$AI$8 & \"'!\" & AD31),0) + IF(Setup!$AI$9<>\"\",INDIRECT(\"'\" & Setup!$AI$9 & \"'!\" & AD31),0) + IF(Setup!$AI$10<>\"\",INDIRECT(\"'\" & Setup!$AI$10 & \"'!\" & AD31),0) + IF(Setup!$AI$11<>\"\",INDIRECT(\"'\" & Setup!$AI$11 & \"'!\" & AD31),0) + IF(Setup!$AI$12<>\"\",INDIRECT(\"'\" & Setup!$AI$12 & \"'!\" & AD31),0)","v":0},{"$f":"IF(Setup!$AI$7<>\"\",INDIRECT(\"'\" & Setup!$AI$7 & \"'!\" & AE31),0) + IF(Setup!$AI$8<>\"\",INDIRECT(\"'\" & Setup!$AI$8 & \"'!\" & AE31),0) + IF(Setup!$AI$9<>\"\",INDIRECT(\"'\" & Setup!$AI$9 & \"'!\" & AE31),0) + IF(Setup!$AI$10<>\"\",INDIRECT(\"'\" & Setup!$AI$10 & \"'!\" & AE31),0) + IF(Setup!$AI$11<>\"\",INDIRECT(\"'\" & Setup!$AI$11 & \"'!\" & AE31),0) + IF(Setup!$AI$12<>\"\",INDIRECT(\"'\" & Setup!$AI$12 & \"'!\" & AE31),0)","v":0},{"$f":"IF(Setup!$AJ$7<>\"\",INDIRECT(\"'\" & Setup!$AJ$7 & \"'!\" & AD31),0) + IF(Setup!$AJ$8<>\"\",INDIRECT(\"'\" & Setup!$AJ$8 & \"'!\" & AD31),0) + IF(Setup!$AJ$9<>\"\",INDIRECT(\"'\" & Setup!$AJ$9 & \"'!\" & AD31),0) + IF(Setup!$AJ$10<>\"\",INDIRECT(\"'\" & Setup!$AJ$10 & \"'!\" & AD31),0) + IF(Setup!$AJ$11<>\"\",INDIRECT(\"'\" & Setup!$AJ$11 & \"'!\" & AD31),0) + IF(Setup!$AJ$12<>\"\",INDIRECT(\"'\" & Setup!$AJ$12 & \"'!\" & AD31),0)","v":0},{"$f":"IF(Setup!$AJ$7<>\"\",INDIRECT(\"'\" & Setup!$AJ$7 & \"'!\" & AE31),0) + IF(Setup!$AJ$8<>\"\",INDIRECT(\"'\" & Setup!$AJ$8 & \"'!\" & AE31),0) + IF(Setup!$AJ$9<>\"\",INDIRECT(\"'\" & Setup!$AJ$9 & \"'!\" & AE31),0) + IF(Setup!$AJ$10<>\"\",INDIRECT(\"'\" & Setup!$AJ$10 & \"'!\" & AE31),0) + IF(Setup!$AJ$11<>\"\",INDIRECT(\"'\" & Setup!$AJ$11 & \"'!\" & AE31),0) + IF(Setup!$AJ$12<>\"\",INDIRECT(\"'\" & Setup!$AJ$12 & \"'!\" & AE31),0)","v":0}]
[{"$f":"Planning!A15","v":"I007"},{"$f":"Planning!B15","v":"1. Indicator"},{"$f":"Planning!C15","v":"Pr74"},{"$f":"Planning!D15","v":3},{"$f":"Planning!E15","v":"[Pr74] # aged 10-24 yrs reached by HIV life skills ed. in school  Target [1. Standard]"},{"$f":"Planning!G15","v":0},null,{"v":1750,"d":"1,750"},{"v":1720,"d":"1,720"},{"$f":"IF(AND($AR32=\"2\",$AB31<>Lists!$A$17),AU32,AT32)","v":{"v":0.9828571428571429,"d":"98.29%"}},0.9828571428571429,950,920,{"$f":"IF(AND($AR32=\"2\",$AB32<>Lists!$A$17),AW32,AV32)","v":{"v":0.968421052631579,"d":"96.84%"}},0.968421052631579,800,800,{"$f":"IF(AND($AR32=\"2\",$AB32<>Lists!$A$17),AY32,AX32)","v":{"v":1,"d":"100.00%"}},1,0,0,{"$f":"IF(AND($AR32=\"2\",$AB32<>Lists!$A$17),BA32,AZ32)","v":""},"",0,0,{"$f":"IF(AND($AR32=\"2\",$AB32<>Lists!$A$17),BC32,BB32)","v":""},"",{"$f":"Planning!H15","v":0},"1Pr74","H31","J31","I31","[I007] [Pr74] [Pr74] # aged 10-24 yrs reached by HIV life skills ed. in school  Target [1. Standard]",null,{"$f":"IF(Setup!$AG$7<>\"\",INDIRECT(\"'\" & Setup!$AG$7 & \"'!\" & AF32),0) + IF(Setup!$AG$8<>\"\",INDIRECT(\"'\" & Setup!$AG$8 & \"'!\" & AF32),0) + IF(Setup!$AG$9<>\"\",INDIRECT(\"'\" & Setup!$AG$9 & \"'!\" & AF32),0) + IF(Setup!$AG$10<>\"\",INDIRECT(\"'\" & Setup!$AG$10 & \"'!\" & AF32),0) + IF(Setup!$AG$11<>\"\",INDIRECT(\"'\" & Setup!$AG$11 & \"'!\" & AF32),0) + IF(Setup!$AG$12<>\"\",INDIRECT(\"'\" & Setup!$AG$12 & \"'!\" & AF32),0)","v":160},{"$f":"IF(Setup!$AH$7<>\"\",INDIRECT(\"'\" & Setup!$AH$7 & \"'!\" & AF32),0) + IF(Setup!$AH$8<>\"\",INDIRECT(\"'\" & Setup!$AH$8 & \"'!\" & AF32),0) + IF(Setup!$AH$9<>\"\",INDIRECT(\"'\" & Setup!$AH$9 & \"'!\" & AF32),0) + IF(Setup!$AH$10<>\"\",INDIRECT(\"'\" & Setup!$AH$10 & \"'!\" & AF32),0) + IF(Setup!$AH$11<>\"\",INDIRECT(\"'\" & Setup!$AH$11 & \"'!\" & AF32),0) + IF(Setup!$AH$12<>\"\",INDIRECT(\"'\" & Setup!$AH$12 & \"'!\" & AF32),0)","v":140},{"$f":"IF(Setup!$AI$7<>\"\",INDIRECT(\"'\" & Setup!$AI$7 & \"'!\" & AF32),0) + IF(Setup!$AI$8<>\"\",INDIRECT(\"'\" & Setup!$AI$8 & \"'!\" & AF32),0) + IF(Setup!$AI$9<>\"\",INDIRECT(\"'\" & Setup!$AI$9 & \"'!\" & AF32),0) + IF(Setup!$AI$10<>\"\",INDIRECT(\"'\" & Setup!$AI$10 & \"'!\" & AF32),0) + IF(Setup!$AI$11<>\"\",INDIRECT(\"'\" & Setup!$AI$11 & \"'!\" & AF32),0) + IF(Setup!$AI$12<>\"\",INDIRECT(\"'\" & Setup!$AI$12 & \"'!\" & AF32),0)","v":90},{"$f":"IF(Setup!$AJ$7<>\"\",INDIRECT(\"'\" & Setup!$AJ$7 & \"'!\" & AF32),0) + IF(Setup!$AJ$8<>\"\",INDIRECT(\"'\" & Setup!$AJ$8 & \"'!\" & AF32),0) + IF(Setup!$AJ$9<>\"\",INDIRECT(\"'\" & Setup!$AJ$9 & \"'!\" & AF32),0) + IF(Setup!$AJ$10<>\"\",INDIRECT(\"'\" & Setup!$AJ$10 & \"'!\" & AF32),0) + IF(Setup!$AJ$11<>\"\",INDIRECT(\"'\" & Setup!$AJ$11 & \"'!\" & AF32),0) + IF(Setup!$AJ$12<>\"\",INDIRECT(\"'\" & Setup!$AJ$12 & \"'!\" & AF32),0)","v":90},null,"1",{"$nulls":3},{"$f":"IF(C32=0,\"\",LEFT(INDEX(Lists!$H$5:$H$49,MATCH(C32,Lists!$G$5:$G$49,0),1),1))","v":"1"},null,0.9828571428571429,1.0174418604651163,0.968421052631579,1.0326086956521738,1,1,"","","","",{"$nulls":6},{"$f":"IF(Setup!$AG$7<>\"\",INDIRECT(\"'\" & Setup!$AG$7 & \"'!\" & AD32),0) + IF(Setup!$AG$8<>\"\",INDIRECT(\"'\" & Setup!$AG$8 & \"'!\" & AD32),0) + IF(Setup!$AG$9<>\"\",INDIRECT(\"'\" & Setup!$AG$9 & \"'!\" & AD32),0) + IF(Setup!$AG$10<>\"\",INDIRECT(\"'\" & Setup!$AG$10 & \"'!\" & AD32),0) + IF(Setup!$AG$11<>\"\",INDIRECT(\"'\" & Setup!$AG$11 & \"'!\" & AD32),0) + IF(Setup!$AG$12<>\"\",INDIRECT(\"'\" & Setup!$AG$12 & \"'!\" & AD32),0)","v":950},{"$f":"IF(Setup!$AG$7<>\"\",INDIRECT(\"'\" & Setup!$AG$7 & \"'!\" & AE32),0) + IF(Setup!$AG$8<>\"\",INDIRECT(\"'\" & Setup!$AG$8 & \"'!\" & AE32),0) + IF(Setup!$AG$9<>\"\",INDIRECT(\"'\" & Setup!$AG$9 & \"'!\" & AE32),0) + IF(Setup!$AG$10<>\"\",INDIRECT(\"'\" & Setup!$AG$10 & \"'!\" & AE32),0) + IF(Setup!$AG$11<>\"\",INDIRECT(\"'\" & Setup!$AG$11 & \"'!\" & AE32),0) + IF(Setup!$AG$12<>\"\",INDIRECT(\"'\" & Setup!$AG$12 & \"'!\" & AE32),0)","v":920},{"$f":"IF(Setup!$AH$7<>\"\",INDIRECT(\"'\" & Setup!$AH$7 & \"'!\" & AD32),0) + IF(Setup!$AH$8<>\"\",INDIRECT(\"'\" & Setup!$AH$8 & \"'!\" & AD32),0) + IF(Setup!$AH$9<>\"\",INDIRECT(\"'\" & Setup!$AH$9 & \"'!\" & AD32),0) + IF(Setup!$AH$10<>\"\",INDIRECT(\"'\" & Setup!$AH$10 & \"'!\" & AD32),0) + IF(Setup!$AH$11<>\"\",INDIRECT(\"'\" & Setup!$AH$11 & \"'!\" & AD32),0) + IF(Setup!$AH$12<>\"\",INDIRECT(\"'\" & Setup!$AH$12 & \"'!\" & AD32),0)","v":800},{"$f":"IF(Setup!$AH$7<>\"\",INDIRECT(\"'\" & Setup!$AH$7 & \"'!\" & AE32),0) + IF(Setup!$AH$8<>\"\",INDIRECT(\"'\" & Setup!$AH$8 & \"'!\" & AE32),0) + IF(Setup!$AH$9<>\"\",INDIRECT(\"'\" & Setup!$AH$9 & \"'!\" & AE32),0) + IF(Setup!$AH$10<>\"\",INDIRECT(\"'\" & Setup!$AH$10 & \"'!\" & AE32),0) + IF(Setup!$AH$11<>\"\",INDIRECT(\"'\" & Setup!$AH$11 & \"'!\" & AE32),0) + IF(Setup!$AH$12<>\"\",INDIRECT(\"'\" & Setup!$AH$12 & \"'!\" & AE32),0)","v":800},{"$f":"IF(Setup!$AI$7<>\"\",INDIRECT(\"'\" & Setup!$AI$7 & \"'!\" & AD32),0) + IF(Setup!$AI$8<>\"\",INDIRECT(\"'\" & Setup!$AI$8 & \"'!\" & AD32),0) + IF(Setup!$AI$9<>\"\",INDIRECT(\"'\" & Setup!$AI$9 & \"'!\" & AD32),0) + IF(Setup!$AI$10<>\"\",INDIRECT(\"'\" & Setup!$AI$10 & \"'!\" & AD32),0) + IF(Setup!$AI$11<>\"\",INDIRECT(\"'\" & Setup!$AI$11 & \"'!\" & AD32),0) + IF(Setup!$AI$12<>\"\",INDIRECT(\"'\" & Setup!$AI$12 & \"'!\" & AD32),0)","v":0},{"$f":"IF(Setup!$AI$7<>\"\",INDIRECT(\"'\" & Setup!$AI$7 & \"'!\" & AE32),0) + IF(Setup!$AI$8<>\"\",INDIRECT(\"'\" & Setup!$AI$8 & \"'!\" & AE32),0) + IF(Setup!$AI$9<>\"\",INDIRECT(\"'\" & Setup!$AI$9 & \"'!\" & AE32),0) + IF(Setup!$AI$10<>\"\",INDIRECT(\"'\" & Setup!$AI$10 & \"'!\" & AE32),0) + IF(Setup!$AI$11<>\"\",INDIRECT(\"'\" & Setup!$AI$11 & \"'!\" & AE32),0) + IF(Setup!$AI$12<>\"\",INDIRECT(\"'\" & Setup!$AI$12 & \"'!\" & AE32),0)","v":0},{"$f":"IF(Setup!$AJ$7<>\"\",INDIRECT(\"'\" & Setup!$AJ$7 & \"'!\" & AD32),0) + IF(Setup!$AJ$8<>\"\",INDIRECT(\"'\" & Setup!$AJ$8 & \"'!\" & AD32),0) + IF(Setup!$AJ$9<>\"\",INDIRECT(\"'\" & Setup!$AJ$9 & \"'!\" & AD32),0) + IF(Setup!$AJ$10<>\"\",INDIRECT(\"'\" & Setup!$AJ$10 & \"'!\" & AD32),0) + IF(Setup!$AJ$11<>\"\",INDIRECT(\"'\" & Setup!$AJ$11 & \"'!\" & AD32),0) + IF(Setup!$AJ$12<>\"\",INDIRECT(\"'\" & Setup!$AJ$12 & \"'!\" & AD32),0)","v":0},{"$f":"IF(Setup!$AJ$7<>\"\",INDIRECT(\"'\" & Setup!$AJ$7 & \"'!\" & AE32),0) + IF(Setup!$AJ$8<>\"\",INDIRECT(\"'\" & Setup!$AJ$8 & \"'!\" & AE32),0) + IF(Setup!$AJ$9<>\"\",INDIRECT(\"'\" & Setup!$AJ$9 & \"'!\" & AE32),0) + IF(Setup!$AJ$10<>\"\",INDIRECT(\"'\" & Setup!$AJ$10 & \"'!\" & AE32),0) + IF(Setup!$AJ$11<>\"\",INDIRECT(\"'\" & Setup!$AJ$11 & \"'!\" & AE32),0) + IF(Setup!$AJ$12<>\"\",INDIRECT(\"'\" & Setup!$AJ$12 & \"'!\" & AE32),0)","v":0}]
[{"$f":"Planning!A16","v":"I008"},{"$f":"Planning!B16","v":"2. Activity: Contributing"},{"$f":"Planning!C16","v":"Pr74"},{"$f":"Planning!D16","v":3.1},{"$f":"Planning!E16","v":"Transportation of students to meetings and conferences for peer education activities"},{"$f":"Planning!G16","v":"2. Travel related costs"},null,{"v":1750,"d":"1,750"},{"v":1720,"d":"1,720"},{"$f":"IF(AND($AR33=\"2\",$AB32<>Lists!$A$17),AU33,AT33)","v":{"v":0.9828571428571429,"d":"98.29%"}},"",950,920,{"$f":"IF(AND($AR33=\"2\",$AB33<>Lists!$A$17),AW33,AV33)","v":{"v":0.968421052631579,"d":"96.84%"}},"",800,800,{"$f":"IF(AND($AR33=\"2\",$AB33<>Lists!$A$17),AY33,AX33)","v":{"v":1,"d":"100.00%"}},"",0,0,{"$f":"IF(AND($AR33=\"2\",$AB33<>Lists!$A$17),BA33,AZ33)","v":""},"",0,0,{"$f":"IF(AND($AR33=\"2\",$AB33<>Lists!$A$17),BC33,BB33)","v":""},"",{"$f":"Planning!H16","v":"1. YES"},"2Pr74","H32","J32","I32","[I008] [Pr74] Transportation of students to meetings and conferences for peer education activities",null,{"$f":"IF(Setup!$AG$7<>\"\",INDIRECT(\"'\" & Setup!$AG$7 & \"'!\" & AF33),0) + IF(Setup!$AG$8<>\"\",INDIRECT(\"'\" & Setup!$AG$8 & \"'!\" & AF33),0) + IF(Setup!$AG$9<>\"\",INDIRECT(\"'\" & Setup!$AG$9 & \"'!\" & AF33),0) + IF(Setup!$AG$10<>\"\",INDIRECT(\"'\" & Setup!$AG$10 & \"'!\" & AF33),0) + IF(Setup!$AG$11<>\"\",INDIRECT(\"'\" & Setup!$AG$11 & \"'!\" & AF33),0) + IF(Setup!$AG$12<>\"\",INDIRECT(\"'\" & Setup!$AG$12 & \"'!\" & AF33),0)","v":160},{"$f":"IF(Setup!$AH$7<>\"\",INDIRECT(\"'\" & Setup!$AH$7 & \"'!\" & AF33),0) + IF(Setup!$AH$8<>\"\",INDIRECT(\"'\" & Setup!$AH$8 & \"'!\" & AF33),0) + IF(Setup!$AH$9<>\"\",INDIRECT(\"'\" & Setup!$AH$9 & \"'!\" & AF33),0) + IF(Setup!$AH$10<>\"\",INDIRECT(\"'\" & Setup!$AH$10 & \"'!\" & AF33),0) + IF(Setup!$AH$11<>\"\",INDIRECT(\"'\" & Setup!$AH$11 & \"'!\" & AF33),0) + IF(Setup!$AH$12<>\"\",INDIRECT(\"'\" & Setup!$AH$12 & \"'!\" & AF33),0)","v":140},{"$f":"IF(Setup!$AI$7<>\"\",INDIRECT(\"'\" & Setup!$AI$7 & \"'!\" & AF33),0) + IF(Setup!$AI$8<>\"\",INDIRECT(\"'\" & Setup!$AI$8 & \"'!\" & AF33),0) + IF(Setup!$AI$9<>\"\",INDIRECT(\"'\" & Setup!$AI$9 & \"'!\" & AF33),0) + IF(Setup!$AI$10<>\"\",INDIRECT(\"'\" & Setup!$AI$10 & \"'!\" & AF33),0) + IF(Setup!$AI$11<>\"\",INDIRECT(\"'\" & Setup!$AI$11 & \"'!\" & AF33),0) + IF(Setup!$AI$12<>\"\",INDIRECT(\"'\" & Setup!$AI$12 & \"'!\" & AF33),0)","v":90},{"$f":"IF(Setup!$AJ$7<>\"\",INDIRECT(\"'\" & Setup!$AJ$7 & \"'!\" & AF33),0) + IF(Setup!$AJ$8<>\"\",INDIRECT(\"'\" & Setup!$AJ$8 & \"'!\" & AF33),0) + IF(Setup!$AJ$9<>\"\",INDIRECT(\"'\" & Setup!$AJ$9 & \"'!\" & AF33),0) + IF(Setup!$AJ$10<>\"\",INDIRECT(\"'\" & Setup!$AJ$10 & \"'!\" & AF33),0) + IF(Setup!$AJ$11<>\"\",INDIRECT(\"'\" & Setup!$AJ$11 & \"'!\" & AF33),0) + IF(Setup!$AJ$12<>\"\",INDIRECT(\"'\" & Setup!$AJ$12 & \"'!\" & AF33),0)","v":90},null,"2",{"$nulls":3},{"$f":"IF(C33=0,\"\",LEFT(INDEX(Lists!$H$5:$H$49,MATCH(C33,Lists!$G$5:$G$49,0),1),1))","v":"1"},null,0.9828571428571429,1.0174418604651163,0.968421052631579,1.0326086956521738,1,1,"","","","",{"$nulls":6},{"$f":"IF(Setup!$AG$7<>\"\",INDIRECT(\"'\" & Setup!$AG$7 & \"'!\" & AD33),0) + IF(Setup!$AG$8<>\"\",INDIRECT(\"'\" & Setup!$AG$8 & \"'!\" & AD33),0) + IF(Setup!$AG$9<>\"\",INDIRECT(\"'\" & Setup!$AG$9 & \"'!\" & AD33),0) + IF(Setup!$AG$10<>\"\",INDIRECT(\"'\" & Setup!$AG$10 & \"'!\" & AD33),0) + IF(Setup!$AG$11<>\"\",INDIRECT(\"'\" & Setup!$AG$11 & \"'!\" & AD33),0) + IF(Setup!$AG$12<>\"\",INDIRECT(\"'\" & Setup!$AG$12 & \"'!\" & AD33),0)","v":950},{"$f":"IF(Setup!$AG$7<>\"\",INDIRECT(\"'\" & Setup!$AG$7 & \"'!\" & AE33),0) + IF(Setup!$AG$8<>\"\",INDIRECT(\"'\" & Setup!$AG$8 & \"'!\" & AE33),0) + IF(Setup!$AG$9<>\"\",INDIRECT(\"'\" & Setup!$AG$9 & \"'!\" & AE33),0) + IF(Setup!$AG$10<>\"\",INDIRECT(\"'\" & Setup!$AG$10 & \"'!\" & AE33),0) + IF(Setup!$AG$11<>\"\",INDIRECT(\"'\" & Setup!$AG$11 & \"'!\" & AE33),0) + IF(Setup!$AG$12<>\"\",INDIRECT(\"'\" & Setup!$AG$12 & \"'!\" & AE33),0)","v":920},{"$f":"IF(Setup!$AH$7<>\"\",INDIRECT(\"'\" & Setup!$AH$7 & \"'!\" & AD33),0) + IF(Setup!$AH$8<>\"\",INDIRECT(\"'\" & Setup!$AH$8 & \"'!\" & AD33),0) + IF(Setup!$AH$9<>\"\",INDIRECT(\"'\" & Setup!$AH$9 & \"'!\" & AD33),0) + IF(Setup!$AH$10<>\"\",INDIRECT(\"'\" & Setup!$AH$10 & \"'!\" & AD33),0) + IF(Setup!$AH$11<>\"\",INDIRECT(\"'\" & Setup!$AH$11 & \"'!\" & AD33),0) + IF(Setup!$AH$12<>\"\",INDIRECT(\"'\" & Setup!$AH$12 & \"'!\" & AD33),0)","v":800},{"$f":"IF(Setup!$AH$7<>\"\",INDIRECT(\"'\" & Setup!$AH$7 & \"'!\" & AE33),0) + IF(Setup!$AH$8<>\"\",INDIRECT(\"'\" & Setup!$AH$8 & \"'!\" & AE33),0) + IF(Setup!$AH$9<>\"\",INDIRECT(\"'\" & Setup!$AH$9 & \"'!\" & AE33),0) + IF(Setup!$AH$10<>\"\",INDIRECT(\"'\" & Setup!$AH$10 & \"'!\" & AE33),0) + IF(Setup!$AH$11<>\"\",INDIRECT(\"'\" & Setup!$AH$11 & \"'!\" & AE33),0) + IF(Setup!$AH$12<>\"\",INDIRECT(\"'\" & Setup!$AH$12 & \"'!\" & AE33),0)","v":800},{"$f":"IF(Setup!$AI$7<>\"\",INDIRECT(\"'\" & Setup!$AI$7 & \"'!\" & AD33),0) + IF(Setup!$AI$8<>\"\",INDIRECT(\"'\" & Setup!$AI$8 & \"'!\" & AD33),0) + IF(Setup!$AI$9<>\"\",INDIRECT(\"'\" & Setup!$AI$9 & \"'!\" & AD33),0) + IF(Setup!$AI$10<>\"\",INDIRECT(\"'\" & Setup!$AI$10 & \"'!\" & AD33),0) + IF(Setup!$AI$11<>\"\",INDIRECT(\"'\" & Setup!$AI$11 & \"'!\" & AD33),0) + IF(Setup!$AI$12<>\"\",INDIRECT(\"'\" & Setup!$AI$12 & \"'!\" & AD33),0)","v":0},{"$f":"IF(Setup!$AI$7<>\"\",INDIRECT(\"'\" & Setup!$AI$7 & \"'!\" & AE33),0) + IF(Setup!$AI$8<>\"\",INDIRECT(\"'\" & Setup!$AI$8 & \"'!\" & AE33),0) + IF(Setup!$AI$9<>\"\",INDIRECT(\"'\" & Setup!$AI$9 & \"'!\" & AE33),0) + IF(Setup!$AI$10<>\"\",INDIRECT(\"'\" & Setup!$AI$10 & \"'!\" & AE33),0) + IF(Setup!$AI$11<>\"\",INDIRECT(\"'\" & Setup!$AI$11 & \"'!\" & AE33),0) + IF(Setup!$AI$12<>\"\",INDIRECT(\"'\" & Setup!$AI$12 & \"'!\" & AE33),0)","v":0},{"$f":"IF(Setup!$AJ$7<>\"\",INDIRECT(\"'\" & Setup!$AJ$7 & \"'!\" & AD33),0) + IF(Setup!$AJ$8<>\"\",INDIRECT(\"'\" & Setup!$AJ$8 & \"'!\" & AD33),0) + IF(Setup!$AJ$9<>\"\",INDIRECT(\"'\" & Setup!$AJ$9 & \"'!\" & AD33),0) + IF(Setup!$AJ$10<>\"\",INDIRECT(\"'\" & Setup!$AJ$10 & \"'!\" & AD33),0) + IF(Setup!$AJ$11<>\"\",INDIRECT(\"'\" & Setup!$AJ$11 & \"'!\" & AD33),0) + IF(Setup!$AJ$12<>\"\",INDIRECT(\"'\" & Setup!$AJ$12 & \"'!\" & AD33),0)","v":0},{"$f":"IF(Setup!$AJ$7<>\"\",INDIRECT(\"'\" & Setup!$AJ$7 & \"'!\" & AE33),0) + IF(Setup!$AJ$8<>\"\",INDIRECT(\"'\" & Setup!$AJ$8 & \"'!\" & AE33),0) + IF(Setup!$AJ$9<>\"\",INDIRECT(\"'\" & Setup!$AJ$9 & \"'!\" & AE33),0) + IF(Setup!$AJ$10<>\"\",INDIRECT(\"'\" & Setup!$AJ$10 & \"'!\" & AE33),0) + IF(Setup!$AJ$11<>\"\",INDIRECT(\"'\" & Setup!$AJ$11 & \"'!\" & AE33),0) + IF(Setup!$AJ$12<>\"\",INDIRECT(\"'\" & Setup!$AJ$12 & \"'!\" & AE33),0)","v":0}]
[{"$f":"Planning!A17","v":"I009"},{"$f":"Planning!B17","v":"1. Indicator"},{"$f":"Planning!C17","v":"OI01"},{"$f":"Planning!D17","v":4},{"$f":"Planning!E17","v":"[OI01] # of new orphans and vulnerable children (0 - 17 yrs) benefiting from  services provided at OVC centers [1. Standard]"},{"$f":"Planning!G17","v":0},null,{"v":2000,"d":"2,000"},{"v":2000,"d":"2,000"},{"$f":"IF(AND($AR34=\"2\",$AB33<>Lists!$A$17),AU34,AT34)","v":{"v":1,"d":"100.00%"}},1,250,250,{"$f":"IF(AND($AR34=\"2\",$AB34<>Lists!$A$17),AW34,AV34)","v":{"v":1,"d":"100.00%"}},1,{"v":1750,"d":"1,750"},{"v":1750,"d":"1,750"},{"$f":"IF(AND($AR34=\"2\",$AB34<>Lists!$A$17),AY34,AX34)","v":{"v":1,"d":"100.00%"}},1,0,0,{"$f":"IF(AND($AR34=\"2\",$AB34<>Lists!$A$17),BA34,AZ34)","v":""},"",0,0,{"$f":"IF(AND($AR34=\"2\",$AB34<>Lists!$A$17),BC34,BB34)","v":""},"",{"$f":"Planning!H17","v":0},"1OI01","H33","J33","I33","[I009] [OI01] [OI01] # of new orphans and vulnerable children (0 - 17 yrs) benefiting from  services provided at OVC centers [1. Standard]",null,{"$f":"IF(Setup!$AG$7<>\"\",INDIRECT(\"'\" & Setup!$AG$7 & \"'!\" & AF34),0) + IF(Setup!$AG$8<>\"\",INDIRECT(\"'\" & Setup!$AG$8 & \"'!\" & AF34),0) + IF(Setup!$AG$9<>\"\",INDIRECT(\"'\" & Setup!$AG$9 & \"'!\" & AF34),0) + IF(Setup!$AG$10<>\"\",INDIRECT(\"'\" & Setup!$AG$10 & \"'!\" & AF34),0) + IF(Setup!$AG$11<>\"\",INDIRECT(\"'\" & Setup!$AG$11 & \"'!\" & AF34),0) + IF(Setup!$AG$12<>\"\",INDIRECT(\"'\" & Setup!$AG$12 & \"'!\" & AF34),0)","v":0},{"$f":"IF(Setup!$AH$7<>\"\",INDIRECT(\"'\" & Setup!$AH$7 & \"'!\" & AF34),0) + IF(Setup!$AH$8<>\"\",INDIRECT(\"'\" & Setup!$AH$8 & \"'!\" & AF34),0) + IF(Setup!$AH$9<>\"\",INDIRECT(\"'\" & Setup!$AH$9 & \"'!\" & AF34),0) + IF(Setup!$AH$10<>\"\",INDIRECT(\"'\" & Setup!$AH$10 & \"'!\" & AF34),0) + IF(Setup!$AH$11<>\"\",INDIRECT(\"'\" & Setup!$AH$11 & \"'!\" & AF34),0) + IF(Setup!$AH$12<>\"\",INDIRECT(\"'\" & Setup!$AH$12 & \"'!\" & AF34),0)","v":10},{"$f":"IF(Setup!$AI$7<>\"\",INDIRECT(\"'\" & Setup!$AI$7 & \"'!\" & AF34),0) + IF(Setup!$AI$8<>\"\",INDIRECT(\"'\" & Setup!$AI$8 & \"'!\" & AF34),0) + IF(Setup!$AI$9<>\"\",INDIRECT(\"'\" & Setup!$AI$9 & \"'!\" & AF34),0) + IF(Setup!$AI$10<>\"\",INDIRECT(\"'\" & Setup!$AI$10 & \"'!\" & AF34),0) + IF(Setup!$AI$11<>\"\",INDIRECT(\"'\" & Setup!$AI$11 & \"'!\" & AF34),0) + IF(Setup!$AI$12<>\"\",INDIRECT(\"'\" & Setup!$AI$12 & \"'!\" & AF34),0)","v":0},{"$f":"IF(Setup!$AJ$7<>\"\",INDIRECT(\"'\" & Setup!$AJ$7 & \"'!\" & AF34),0) + IF(Setup!$AJ$8<>\"\",INDIRECT(\"'\" & Setup!$AJ$8 & \"'!\" & AF34),0) + IF(Setup!$AJ$9<>\"\",INDIRECT(\"'\" & Setup!$AJ$9 & \"'!\" & AF34),0) + IF(Setup!$AJ$10<>\"\",INDIRECT(\"'\" & Setup!$AJ$10 & \"'!\" & AF34),0) + IF(Setup!$AJ$11<>\"\",INDIRECT(\"'\" & Setup!$AJ$11 & \"'!\" & AF34),0) + IF(Setup!$AJ$12<>\"\",INDIRECT(\"'\" & Setup!$AJ$12 & \"'!\" & AF34),0)","v":0},null,"1",{"$nulls":3},{"$f":"IF(C34=0,\"\",LEFT(INDEX(Lists!$H$5:$H$49,MATCH(C34,Lists!$G$5:$G$49,0),1),1))","v":"1"},null,1,1,1,1,1,1,"","","","",{"$nulls":6},{"$f":"IF(Setup!$AG$7<>\"\",INDIRECT(\"'\" & Setup!$AG$7 & \"'!\" & AD34),0) + IF(Setup!$AG$8<>\"\",INDIRECT(\"'\" & Setup!$AG$8 & \"'!\" & AD34),0) + IF(Setup!$AG$9<>\"\",INDIRECT(\"'\" & Setup!$AG$9 & \"'!\" & AD34),0) + IF(Setup!$AG$10<>\"\",INDIRECT(\"'\" & Setup!$AG$10 & \"'!\" & AD34),0) + IF(Setup!$AG$11<>\"\",INDIRECT(\"'\" & Setup!$AG$11 & \"'!\" & AD34),0) + IF(Setup!$AG$12<>\"\",INDIRECT(\"'\" & Setup!$AG$12 & \"'!\" & AD34),0)","v":250},{"$f":"IF(Setup!$AG$7<>\"\",INDIRECT(\"'\" & Setup!$AG$7 & \"'!\" & AE34),0) + IF(Setup!$AG$8<>\"\",INDIRECT(\"'\" & Setup!$AG$8 & \"'!\" & AE34),0) + IF(Setup!$AG$9<>\"\",INDIRECT(\"'\" & Setup!$AG$9 & \"'!\" & AE34),0) + IF(Setup!$AG$10<>\"\",INDIRECT(\"'\" & Setup!$AG$10 & \"'!\" & AE34),0) + IF(Setup!$AG$11<>\"\",INDIRECT(\"'\" & Setup!$AG$11 & \"'!\" & AE34),0) + IF(Setup!$AG$12<>\"\",INDIRECT(\"'\" & Setup!$AG$12 & \"'!\" & AE34),0)","v":250},{"$f":"IF(Setup!$AH$7<>\"\",INDIRECT(\"'\" & Setup!$AH$7 & \"'!\" & AD34),0) + IF(Setup!$AH$8<>\"\",INDIRECT(\"'\" & Setup!$AH$8 & \"'!\" & AD34),0) + IF(Setup!$AH$9<>\"\",INDIRECT(\"'\" & Setup!$AH$9 & \"'!\" & AD34),0) + IF(Setup!$AH$10<>\"\",INDIRECT(\"'\" & Setup!$AH$10 & \"'!\" & AD34),0) + IF(Setup!$AH$11<>\"\",INDIRECT(\"'\" & Setup!$AH$11 & \"'!\" & AD34),0) + IF(Setup!$AH$12<>\"\",INDIRECT(\"'\" & Setup!$AH$12 & \"'!\" & AD34),0)","v":1750},{"$f":"IF(Setup!$AH$7<>\"\",INDIRECT(\"'\" & Setup!$AH$7 & \"'!\" & AE34),0) + IF(Setup!$AH$8<>\"\",INDIRECT(\"'\" & Setup!$AH$8 & \"'!\" & AE34),0) + IF(Setup!$AH$9<>\"\",INDIRECT(\"'\" & Setup!$AH$9 & \"'!\" & AE34),0) + IF(Setup!$AH$10<>\"\",INDIRECT(\"'\" & Setup!$AH$10 & \"'!\" & AE34),0) + IF(Setup!$AH$11<>\"\",INDIRECT(\"'\" & Setup!$AH$11 & \"'!\" & AE34),0) + IF(Setup!$AH$12<>\"\",INDIRECT(\"'\" & Setup!$AH$12 & \"'!\" & AE34),0)","v":1750},{"$f":"IF(Setup!$AI$7<>\"\",INDIRECT(\"'\" & Setup!$AI$7 & \"'!\" & AD34),0) + IF(Setup!$AI$8<>\"\",INDIRECT(\"'\" & Setup!$AI$8 & \"'!\" & AD34),0) + IF(Setup!$AI$9<>\"\",INDIRECT(\"'\" & Setup!$AI$9 & \"'!\" & AD34),0) + IF(Setup!$AI$10<>\"\",INDIRECT(\"'\" & Setup!$AI$10 & \"'!\" & AD34),0) + IF(Setup!$AI$11<>\"\",INDIRECT(\"'\" & Setup!$AI$11 & \"'!\" & AD34),0) + IF(Setup!$AI$12<>\"\",INDIRECT(\"'\" & Setup!$AI$12 & \"'!\" & AD34),0)","v":0},{"$f":"IF(Setup!$AI$7<>\"\",INDIRECT(\"'\" & Setup!$AI$7 & \"'!\" & AE34),0) + IF(Setup!$AI$8<>\"\",INDIRECT(\"'\" & Setup!$AI$8 & \"'!\" & AE34),0) + IF(Setup!$AI$9<>\"\",INDIRECT(\"'\" & Setup!$AI$9 & \"'!\" & AE34),0) + IF(Setup!$AI$10<>\"\",INDIRECT(\"'\" & Setup!$AI$10 & \"'!\" & AE34),0) + IF(Setup!$AI$11<>\"\",INDIRECT(\"'\" & Setup!$AI$11 & \"'!\" & AE34),0) + IF(Setup!$AI$12<>\"\",INDIRECT(\"'\" & Setup!$AI$12 & \"'!\" & AE34),0)","v":0},{"$f":"IF(Setup!$AJ$7<>\"\",INDIRECT(\"'\" & Setup!$AJ$7 & \"'!\" & AD34),0) + IF(Setup!$AJ$8<>\"\",INDIRECT(\"'\" & Setup!$AJ$8 & \"'!\" & AD34),0) + IF(Setup!$AJ$9<>\"\",INDIRECT(\"'\" & Setup!$AJ$9 & \"'!\" & AD34),0) + IF(Setup!$AJ$10<>\"\",INDIRECT(\"'\" & Setup!$AJ$10 & \"'!\" & AD34),0) + IF(Setup!$AJ$11<>\"\",INDIRECT(\"'\" & Setup!$AJ$11 & \"'!\" & AD34),0) + IF(Setup!$AJ$12<>\"\",INDIRECT(\"'\" & Setup!$AJ$12 & \"'!\" & AD34),0)","v":0},{"$f":"IF(Setup!$AJ$7<>\"\",INDIRECT(\"'\" & Setup!$AJ$7 & \"'!\" & AE34),0) + IF(Setup!$AJ$8<>\"\",INDIRECT(\"'\" & Setup!$AJ$8 & \"'!\" & AE34),0) + IF(Setup!$AJ$9<>\"\",INDIRECT(\"'\" & Setup!$AJ$9 & \"'!\" & AE34),0) + IF(Setup!$AJ$10<>\"\",INDIRECT(\"'\" & Setup!$AJ$10 & \"'!\" & AE34),0) + IF(Setup!$AJ$11<>\"\",INDIRECT(\"'\" & Setup!$AJ$11 & \"'!\" & AE34),0) + IF(Setup!$AJ$12<>\"\",INDIRECT(\"'\" & Setup!$AJ$12 & \"'!\" & AE34),0)","v":0}]
[{"$f":"Planning!A18","v":"I010"},{"$f":"Planning!B18","v":"3. Activity: Non-Contributing"},{"$f":"Planning!C18","v":"OI01"},{"$f":"Planning!D18","v":4.1},{"$f":"Planning!E18","v":"# of OVC centers established and fully equipped  "},{"$f":"Planning!G18","v":"8. Infrastructure "},null,4,4,{"$f":"IF(AND($AR35=\"2\",$AB34<>Lists!$A$17),AU35,AT35)","v":{"v":1,"d":"100.00%"}},"",2,2,{"$f":"IF(AND($AR35=\"2\",$AB35<>Lists!$A$17),AW35,AV35)","v":{"v":1,"d":"100.00%"}},"",2,2,{"$f":"IF(AND($AR35=\"2\",$AB35<>Lists!$A$17),AY35,AX35)","v":{"v":1,"d":"100.00%"}},"",0,0,{"$f":"IF(AND($AR35=\"2\",$AB35<>Lists!$A$17),BA35,AZ35)","v":""},"",0,0,{"$f":"IF(AND($AR35=\"2\",$AB35<>Lists!$A$17),BC35,BB35)","v":""},"",{"$f":"Planning!H18","v":"2. NO"},"3OI01","H34","J34","I34","[I010] [OI01] # of OVC centers established and fully equipped  ",null,{"$f":"IF(Setup!$AG$7<>\"\",INDIRECT(\"'\" & Setup!$AG$7 & \"'!\" & AF35),0) + IF(Setup!$AG$8<>\"\",INDIRECT(\"'\" & Setup!$AG$8 & \"'!\" & AF35),0) + IF(Setup!$AG$9<>\"\",INDIRECT(\"'\" & Setup!$AG$9 & \"'!\" & AF35),0) + IF(Setup!$AG$10<>\"\",INDIRECT(\"'\" & Setup!$AG$10 & \"'!\" & AF35),0) + IF(Setup!$AG$11<>\"\",INDIRECT(\"'\" & Setup!$AG$11 & \"'!\" & AF35),0) + IF(Setup!$AG$12<>\"\",INDIRECT(\"'\" & Setup!$AG$12 & \"'!\" & AF35),0)","v":0},{"$f":"IF(Setup!$AH$7<>\"\",INDIRECT(\"'\" & Setup!$AH$7 & \"'!\" & AF35),0) + IF(Setup!$AH$8<>\"\",INDIRECT(\"'\" & Setup!$AH$8 & \"'!\" & AF35),0) + IF(Setup!$AH$9<>\"\",INDIRECT(\"'\" & Setup!$AH$9 & \"'!\" & AF35),0) + IF(Setup!$AH$10<>\"\",INDIRECT(\"'\" & Setup!$AH$10 & \"'!\" & AF35),0) + IF(Setup!$AH$11<>\"\",INDIRECT(\"'\" & Setup!$AH$11 & \"'!\" & AF35),0) + IF(Setup!$AH$12<>\"\",INDIRECT(\"'\" & Setup!$AH$12 & \"'!\" & AF35),0)","v":0},{"$f":"IF(Setup!$AI$7<>\"\",INDIRECT(\"'\" & Setup!$AI$7 & \"'!\" & AF35),0) + IF(Setup!$AI$8<>\"\",INDIRECT(\"'\" & Setup!$AI$8 & \"'!\" & AF35),0) + IF(Setup!$AI$9<>\"\",INDIRECT(\"'\" & Setup!$AI$9 & \"'!\" & AF35),0) + IF(Setup!$AI$10<>\"\",INDIRECT(\"'\" & Setup!$AI$10 & \"'!\" & AF35),0) + IF(Setup!$AI$11<>\"\",INDIRECT(\"'\" & Setup!$AI$11 & \"'!\" & AF35),0) + IF(Setup!$AI$12<>\"\",INDIRECT(\"'\" & Setup!$AI$12 & \"'!\" & AF35),0)","v":0},{"$f":"IF(Setup!$AJ$7<>\"\",INDIRECT(\"'\" & Setup!$AJ$7 & \"'!\" & AF35),0) + IF(Setup!$AJ$8<>\"\",INDIRECT(\"'\" & Setup!$AJ$8 & \"'!\" & AF35),0) + IF(Setup!$AJ$9<>\"\",INDIRECT(\"'\" & Setup!$AJ$9 & \"'!\" & AF35),0) + IF(Setup!$AJ$10<>\"\",INDIRECT(\"'\" & Setup!$AJ$10 & \"'!\" & AF35),0) + IF(Setup!$AJ$11<>\"\",INDIRECT(\"'\" & Setup!$AJ$11 & \"'!\" & AF35),0) + IF(Setup!$AJ$12<>\"\",INDIRECT(\"'\" & Setup!$AJ$12 & \"'!\" & AF35),0)","v":0},null,"2",{"$nulls":3},{"$f":"IF(C35=0,\"\",LEFT(INDEX(Lists!$H$5:$H$49,MATCH(C35,Lists!$G$5:$G$49,0),1),1))","v":"1"},null,1,1,1,1,1,1,"","","","",{"$nulls":6},{"$f":"IF(Setup!$AG$7<>\"\",INDIRECT(\"'\" & Setup!$AG$7 & \"'!\" & AD35),0) + IF(Setup!$AG$8<>\"\",INDIRECT(\"'\" & Setup!$AG$8 & \"'!\" & AD35),0) + IF(Setup!$AG$9<>\"\",INDIRECT(\"'\" & Setup!$AG$9 & \"'!\" & AD35),0) + IF(Setup!$AG$10<>\"\",INDIRECT(\"'\" & Setup!$AG$10 & \"'!\" & AD35),0) + IF(Setup!$AG$11<>\"\",INDIRECT(\"'\" & Setup!$AG$11 & \"'!\" & AD35),0) + IF(Setup!$AG$12<>\"\",INDIRECT(\"'\" & Setup!$AG$12 & \"'!\" & AD35),0)","v":2},{"$f":"IF(Setup!$AG$7<>\"\",INDIRECT(\"'\" & Setup!$AG$7 & \"'!\" & AE35),0) + IF(Setup!$AG$8<>\"\",INDIRECT(\"'\" & Setup!$AG$8 & \"'!\" & AE35),0) + IF(Setup!$AG$9<>\"\",INDIRECT(\"'\" & Setup!$AG$9 & \"'!\" & AE35),0) + IF(Setup!$AG$10<>\"\",INDIRECT(\"'\" & Setup!$AG$10 & \"'!\" & AE35),0) + IF(Setup!$AG$11<>\"\",INDIRECT(\"'\" & Setup!$AG$11 & \"'!\" & AE35),0) + IF(Setup!$AG$12<>\"\",INDIRECT(\"'\" & Setup!$AG$12 & \"'!\" & AE35),0)","v":2},{"$f":"IF(Setup!$AH$7<>\"\",INDIRECT(\"'\" & Setup!$AH$7 & \"'!\" & AD35),0) + IF(Setup!$AH$8<>\"\",INDIRECT(\"'\" & Setup!$AH$8 & \"'!\" & AD35),0) + IF(Setup!$AH$9<>\"\",INDIRECT(\"'\" & Setup!$AH$9 & \"'!\" & AD35),0) + IF(Setup!$AH$10<>\"\",INDIRECT(\"'\" & Setup!$AH$10 & \"'!\" & AD35),0) + IF(Setup!$AH$11<>\"\",INDIRECT(\"'\" & Setup!$AH$11 & \"'!\" & AD35),0) + IF(Setup!$AH$12<>\"\",INDIRECT(\"'\" & Setup!$AH$12 & \"'!\" & AD35),0)","v":2},{"$f":"IF(Setup!$AH$7<>\"\",INDIRECT(\"'\" & Setup!$AH$7 & \"'!\" & AE35),0) + IF(Setup!$AH$8<>\"\",INDIRECT(\"'\" & Setup!$AH$8 & \"'!\" & AE35),0) + IF(Setup!$AH$9<>\"\",INDIRECT(\"'\" & Setup!$AH$9 & \"'!\" & AE35),0) + IF(Setup!$AH$10<>\"\",INDIRECT(\"'\" & Setup!$AH$10 & \"'!\" & AE35),0) + IF(Setup!$AH$11<>\"\",INDIRECT(\"'\" & Setup!$AH$11 & \"'!\" & AE35),0) + IF(Setup!$AH$12<>\"\",INDIRECT(\"'\" & Setup!$AH$12 & \"'!\" & AE35),0)","v":2},{"$f":"IF(Setup!$AI$7<>\"\",INDIRECT(\"'\" & Setup!$AI$7 & \"'!\" & AD35),0) + IF(Setup!$AI$8<>\"\",INDIRECT(\"'\" & Setup!$AI$8 & \"'!\" & AD35),0) + IF(Setup!$AI$9<>\"\",INDIRECT(\"'\" & Setup!$AI$9 & \"'!\" & AD35),0) + IF(Setup!$AI$10<>\"\",INDIRECT(\"'\" & Setup!$AI$10 & \"'!\" & AD35),0) + IF(Setup!$AI$11<>\"\",INDIRECT(\"'\" & Setup!$AI$11 & \"'!\" & AD35),0) + IF(Setup!$AI$12<>\"\",INDIRECT(\"'\" & Setup!$AI$12 & \"'!\" & AD35),0)","v":0},{"$f":"IF(Setup!$AI$7<>\"\",INDIRECT(\"'\" & Setup!$AI$7 & \"'!\" & AE35),0) + IF(Setup!$AI$8<>\"\",INDIRECT(\"'\" & Setup!$AI$8 & \"'!\" & AE35),0) + IF(Setup!$AI$9<>\"\",INDIRECT(\"'\" & Setup!$AI$9 & \"'!\" & AE35),0) + IF(Setup!$AI$10<>\"\",INDIRECT(\"'\" & Setup!$AI$10 & \"'!\" & AE35),0) + IF(Setup!$AI$11<>\"\",INDIRECT(\"'\" & Setup!$AI$11 & \"'!\" & AE35),0) + IF(Setup!$AI$12<>\"\",INDIRECT(\"'\" & Setup!$AI$12 & \"'!\" & AE35),0)","v":0},{"$f":"IF(Setup!$AJ$7<>\"\",INDIRECT(\"'\" & Setup!$AJ$7 & \"'!\" & AD35),0) + IF(Setup!$AJ$8<>\"\",INDIRECT(\"'\" & Setup!$AJ$8 & \"'!\" & AD35),0) + IF(Setup!$AJ$9<>\"\",INDIRECT(\"'\" & Setup!$AJ$9 & \"'!\" & AD35),0) + IF(Setup!$AJ$10<>\"\",INDIRECT(\"'\" & Setup!$AJ$10 & \"'!\" & AD35),0) + IF(Setup!$AJ$11<>\"\",INDIRECT(\"'\" & Setup!$AJ$11 & \"'!\" & AD35),0) + IF(Setup!$AJ$12<>\"\",INDIRECT(\"'\" & Setup!$AJ$12 & \"'!\" & AD35),0)","v":0},{"$f":"IF(Setup!$AJ$7<>\"\",INDIRECT(\"'\" & Setup!$AJ$7 & \"'!\" & AE35),0) + IF(Setup!$AJ$8<>\"\",INDIRECT(\"'\" & Setup!$AJ$8 & \"'!\" & AE35),0) + IF(Setup!$AJ$9<>\"\",INDIRECT(\"'\" & Setup!$AJ$9 & \"'!\" & AE35),0) + IF(Setup!$AJ$10<>\"\",INDIRECT(\"'\" & Setup!$AJ$10 & \"'!\" & AE35),0) + IF(Setup!$AJ$11<>\"\",INDIRECT(\"'\" & Setup!$AJ$11 & \"'!\" & AE35),0) + IF(Setup!$AJ$12<>\"\",INDIRECT(\"'\" & Setup!$AJ$12 & \"'!\" & AE35),0)","v":0}]
[{"$f":"Planning!A19","v":"I011"},{"$f":"Planning!B19","v":"2. Activity: Contributing"},{"$f":"Planning!C19","v":"OI01"},{"$f":"Planning!D19","v":4.2},{"$f":"Planning!E19","v":"# of OVC registered at centres"},{"$f":"Planning!G19","v":"12. Living support to client/ target population "},null,{"v":2000,"d":"2,000"},{"v":2000,"d":"2,000"},{"$f":"IF(AND($AR36=\"2\",$AB35<>Lists!$A$17),AU36,AT36)","v":{"v":1,"d":"100.00%"}},"",250,250,{"$f":"IF(AND($AR36=\"2\",$AB36<>Lists!$A$17),AW36,AV36)","v":{"v":1,"d":"100.00%"}},"",{"v":1750,"d":"1,750"},{"v":1750,"d":"1,750"},{"$f":"IF(AND($AR36=\"2\",$AB36<>Lists!$A$17),AY36,AX36)","v":{"v":1,"d":"100.00%"}},"",0,0,{"$f":"IF(AND($AR36=\"2\",$AB36<>Lists!$A$17),BA36,AZ36)","v":""},"",0,0,{"$f":"IF(AND($AR36=\"2\",$AB36<>Lists!$A$17),BC36,BB36)","v":""},"",{"$f":"Planning!H19","v":"1. YES"},"2OI01","H35","J35","I35","[I011] [OI01] # of OVC registered at centres",null,{"$f":"IF(Setup!$AG$7<>\"\",INDIRECT(\"'\" & Setup!$AG$7 & \"'!\" & AF36),0) + IF(Setup!$AG$8<>\"\",INDIRECT(\"'\" & Setup!$AG$8 & \"'!\" & AF36),0) + IF(Setup!$AG$9<>\"\",INDIRECT(\"'\" & Setup!$AG$9 & \"'!\" & AF36),0) + IF(Setup!$AG$10<>\"\",INDIRECT(\"'\" & Setup!$AG$10 & \"'!\" & AF36),0) + IF(Setup!$AG$11<>\"\",INDIRECT(\"'\" & Setup!$AG$11 & \"'!\" & AF36),0) + IF(Setup!$AG$12<>\"\",INDIRECT(\"'\" & Setup!$AG$12 & \"'!\" & AF36),0)","v":0},{"$f":"IF(Setup!$AH$7<>\"\",INDIRECT(\"'\" & Setup!$AH$7 & \"'!\" & AF36),0) + IF(Setup!$AH$8<>\"\",INDIRECT(\"'\" & Setup!$AH$8 & \"'!\" & AF36),0) + IF(Setup!$AH$9<>\"\",INDIRECT(\"'\" & Setup!$AH$9 & \"'!\" & AF36),0) + IF(Setup!$AH$10<>\"\",INDIRECT(\"'\" & Setup!$AH$10 & \"'!\" & AF36),0) + IF(Setup!$AH$11<>\"\",INDIRECT(\"'\" & Setup!$AH$11 & \"'!\" & AF36),0) + IF(Setup!$AH$12<>\"\",INDIRECT(\"'\" & Setup!$AH$12 & \"'!\" & AF36),0)","v":10},{"$f":"IF(Setup!$AI$7<>\"\",INDIRECT(\"'\" & Setup!$AI$7 & \"'!\" & AF36),0) + IF(Setup!$AI$8<>\"\",INDIRECT(\"'\" & Setup!$AI$8 & \"'!\" & AF36),0) + IF(Setup!$AI$9<>\"\",INDIRECT(\"'\" & Setup!$AI$9 & \"'!\" & AF36),0) + IF(Setup!$AI$10<>\"\",INDIRECT(\"'\" & Setup!$AI$10 & \"'!\" & AF36),0) + IF(Setup!$AI$11<>\"\",INDIRECT(\"'\" & Setup!$AI$11 & \"'!\" & AF36),0) + IF(Setup!$AI$12<>\"\",INDIRECT(\"'\" & Setup!$AI$12 & \"'!\" & AF36),0)","v":0},{"$f":"IF(Setup!$AJ$7<>\"\",INDIRECT(\"'\" & Setup!$AJ$7 & \"'!\" & AF36),0) + IF(Setup!$AJ$8<>\"\",INDIRECT(\"'\" & Setup!$AJ$8 & \"'!\" & AF36),0) + IF(Setup!$AJ$9<>\"\",INDIRECT(\"'\" & Setup!$AJ$9 & \"'!\" & AF36),0) + IF(Setup!$AJ$10<>\"\",INDIRECT(\"'\" & Setup!$AJ$10 & \"'!\" & AF36),0) + IF(Setup!$AJ$11<>\"\",INDIRECT(\"'\" & Setup!$AJ$11 & \"'!\" & AF36),0) + IF(Setup!$AJ$12<>\"\",INDIRECT(\"'\" & Setup!$AJ$12 & \"'!\" & AF36),0)","v":0},null,"2",{"$nulls":3},{"$f":"IF(C36=0,\"\",LEFT(INDEX(Lists!$H$5:$H$49,MATCH(C36,Lists!$G$5:$G$49,0),1),1))","v":"1"},null,1,1,1,1,1,1,"","","","",{"$nulls":6},{"$f":"IF(Setup!$AG$7<>\"\",INDIRECT(\"'\" & Setup!$AG$7 & \"'!\" & AD36),0) + IF(Setup!$AG$8<>\"\",INDIRECT(\"'\" & Setup!$AG$8 & \"'!\" & AD36),0) + IF(Setup!$AG$9<>\"\",INDIRECT(\"'\" & Setup!$AG$9 & \"'!\" & AD36),0) + IF(Setup!$AG$10<>\"\",INDIRECT(\"'\" & Setup!$AG$10 & \"'!\" & AD36),0) + IF(Setup!$AG$11<>\"\",INDIRECT(\"'\" & Setup!$AG$11 & \"'!\" & AD36),0) + IF(Setup!$AG$12<>\"\",INDIRECT(\"'\" & Setup!$AG$12 & \"'!\" & AD36),0)","v":250},{"$f":"IF(Setup!$AG$7<>\"\",INDIRECT(\"'\" & Setup!$AG$7 & \"'!\" & AE36),0) + IF(Setup!$AG$8<>\"\",INDIRECT(\"'\" & Setup!$AG$8 & \"'!\" & AE36),0) + IF(Setup!$AG$9<>\"\",INDIRECT(\"'\" & Setup!$AG$9 & \"'!\" & AE36),0) + IF(Setup!$AG$10<>\"\",INDIRECT(\"'\" & Setup!$AG$10 & \"'!\" & AE36),0) + IF(Setup!$AG$11<>\"\",INDIRECT(\"'\" & Setup!$AG$11 & \"'!\" & AE36),0) + IF(Setup!$AG$12<>\"\",INDIRECT(\"'\" & Setup!$AG$12 & \"'!\" & AE36),0)","v":250},{"$f":"IF(Setup!$AH$7<>\"\",INDIRECT(\"'\" & Setup!$AH$7 & \"'!\" & AD36),0) + IF(Setup!$AH$8<>\"\",INDIRECT(\"'\" & Setup!$AH$8 & \"'!\" & AD36),0) + IF(Setup!$AH$9<>\"\",INDIRECT(\"'\" & Setup!$AH$9 & \"'!\" & AD36),0) + IF(Setup!$AH$10<>\"\",INDIRECT(\"'\" & Setup!$AH$10 & \"'!\" & AD36),0) + IF(Setup!$AH$11<>\"\",INDIRECT(\"'\" & Setup!$AH$11 & \"'!\" & AD36),0) + IF(Setup!$AH$12<>\"\",INDIRECT(\"'\" & Setup!$AH$12 & \"'!\" & AD36),0)","v":1750},{"$f":"IF(Setup!$AH$7<>\"\",INDIRECT(\"'\" & Setup!$AH$7 & \"'!\" & AE36),0) + IF(Setup!$AH$8<>\"\",INDIRECT(\"'\" & Setup!$AH$8 & \"'!\" & AE36),0) + IF(Setup!$AH$9<>\"\",INDIRECT(\"'\" & Setup!$AH$9 & \"'!\" & AE36),0) + IF(Setup!$AH$10<>\"\",INDIRECT(\"'\" & Setup!$AH$10 & \"'!\" & AE36),0) + IF(Setup!$AH$11<>\"\",INDIRECT(\"'\" & Setup!$AH$11 & \"'!\" & AE36),0) + IF(Setup!$AH$12<>\"\",INDIRECT(\"'\" & Setup!$AH$12 & \"'!\" & AE36),0)","v":1750},{"$f":"IF(Setup!$AI$7<>\"\",INDIRECT(\"'\" & Setup!$AI$7 & \"'!\" & AD36),0) + IF(Setup!$AI$8<>\"\",INDIRECT(\"'\" & Setup!$AI$8 & \"'!\" & AD36),0) + IF(Setup!$AI$9<>\"\",INDIRECT(\"'\" & Setup!$AI$9 & \"'!\" & AD36),0) + IF(Setup!$AI$10<>\"\",INDIRECT(\"'\" & Setup!$AI$10 & \"'!\" & AD36),0) + IF(Setup!$AI$11<>\"\",INDIRECT(\"'\" & Setup!$AI$11 & \"'!\" & AD36),0) + IF(Setup!$AI$12<>\"\",INDIRECT(\"'\" & Setup!$AI$12 & \"'!\" & AD36),0)","v":0},{"$f":"IF(Setup!$AI$7<>\"\",INDIRECT(\"'\" & Setup!$AI$7 & \"'!\" & AE36),0) + IF(Setup!$AI$8<>\"\",INDIRECT(\"'\" & Setup!$AI$8 & \"'!\" & AE36),0) + IF(Setup!$AI$9<>\"\",INDIRECT(\"'\" & Setup!$AI$9 & \"'!\" & AE36),0) + IF(Setup!$AI$10<>\"\",INDIRECT(\"'\" & Setup!$AI$10 & \"'!\" & AE36),0) + IF(Setup!$AI$11<>\"\",INDIRECT(\"'\" & Setup!$AI$11 & \"'!\" & AE36),0) + IF(Setup!$AI$12<>\"\",INDIRECT(\"'\" & Setup!$AI$12 & \"'!\" & AE36),0)","v":0},{"$f":"IF(Setup!$AJ$7<>\"\",INDIRECT(\"'\" & Setup!$AJ$7 & \"'!\" & AD36),0) + IF(Setup!$AJ$8<>\"\",INDIRECT(\"'\" & Setup!$AJ$8 & \"'!\" & AD36),0) + IF(Setup!$AJ$9<>\"\",INDIRECT(\"'\" & Setup!$AJ$9 & \"'!\" & AD36),0) + IF(Setup!$AJ$10<>\"\",INDIRECT(\"'\" & Setup!$AJ$10 & \"'!\" & AD36),0) + IF(Setup!$AJ$11<>\"\",INDIRECT(\"'\" & Setup!$AJ$11 & \"'!\" & AD36),0) + IF(Setup!$AJ$12<>\"\",INDIRECT(\"'\" & Setup!$AJ$12 & \"'!\" & AD36),0)","v":0},{"$f":"IF(Setup!$AJ$7<>\"\",INDIRECT(\"'\" & Setup!$AJ$7 & \"'!\" & AE36),0) + IF(Setup!$AJ$8<>\"\",INDIRECT(\"'\" & Setup!$AJ$8 & \"'!\" & AE36),0) + IF(Setup!$AJ$9<>\"\",INDIRECT(\"'\" & Setup!$AJ$9 & \"'!\" & AE36),0) + IF(Setup!$AJ$10<>\"\",INDIRECT(\"'\" & Setup!$AJ$10 & \"'!\" & AE36),0) + IF(Setup!$AJ$11<>\"\",INDIRECT(\"'\" & Setup!$AJ$11 & \"'!\" & AE36),0) + IF(Setup!$AJ$12<>\"\",INDIRECT(\"'\" & Setup!$AJ$12 & \"'!\" & AE36),0)","v":0}]
[{"$f":"Planning!A20","v":"I012"},{"$f":"Planning!B20","v":"3. Activity: Non-Contributing"},{"$f":"Planning!C20","v":"OI01"},{"$f":"Planning!D20","v":4.3},{"$f":"Planning!E20","v":"# of meals provided at the OVC centers "},{"$f":"Planning!G20","v":"12. Living support to client/ target population "},null,{"v":8000,"d":"8,000"},{"v":7900,"d":"7,900"},{"$f":"IF(AND($AR37=\"2\",$AB36<>Lists!$A$17),AU37,AT37)","v":{"v":0.9875,"d":"98.75%"}},"",{"v":1000,"d":"1,000"},980,{"$f":"IF(AND($AR37=\"2\",$AB37<>Lists!$A$17),AW37,AV37)","v":{"v":0.98,"d":"98.00%"}},"",{"v":7000,"d":"7,000"},{"v":6920,"d":"6,920"},{"$f":"IF(AND($AR37=\"2\",$AB37<>Lists!$A$17),AY37,AX37)","v":{"v":0.9885714285714285,"d":"98.86%"}},"",0,0,{"$f":"IF(AND($AR37=\"2\",$AB37<>Lists!$A$17),BA37,AZ37)","v":""},"",0,0,{"$f":"IF(AND($AR37=\"2\",$AB37<>Lists!$A$17),BC37,BB37)","v":""},"",{"$f":"Planning!H20","v":"2. NO"},"3OI01","H36","J36","I36","[I012] [OI01] # of meals provided at the OVC centers ",null,{"$f":"IF(Setup!$AG$7<>\"\",INDIRECT(\"'\" & Setup!$AG$7 & \"'!\" & AF37),0) + IF(Setup!$AG$8<>\"\",INDIRECT(\"'\" & Setup!$AG$8 & \"'!\" & AF37),0) + IF(Setup!$AG$9<>\"\",INDIRECT(\"'\" & Setup!$AG$9 & \"'!\" & AF37),0) + IF(Setup!$AG$10<>\"\",INDIRECT(\"'\" & Setup!$AG$10 & \"'!\" & AF37),0) + IF(Setup!$AG$11<>\"\",INDIRECT(\"'\" & Setup!$AG$11 & \"'!\" & AF37),0) + IF(Setup!$AG$12<>\"\",INDIRECT(\"'\" & Setup!$AG$12 & \"'!\" & AF37),0)","v":0},{"$f":"IF(Setup!$AH$7<>\"\",INDIRECT(\"'\" & Setup!$AH$7 & \"'!\" & AF37),0) + IF(Setup!$AH$8<>\"\",INDIRECT(\"'\" & Setup!$AH$8 & \"'!\" & AF37),0) + IF(Setup!$AH$9<>\"\",INDIRECT(\"'\" & Setup!$AH$9 & \"'!\" & AF37),0) + IF(Setup!$AH$10<>\"\",INDIRECT(\"'\" & Setup!$AH$10 & \"'!\" & AF37),0) + IF(Setup!$AH$11<>\"\",INDIRECT(\"'\" & Setup!$AH$11 & \"'!\" & AF37),0) + IF(Setup!$AH$12<>\"\",INDIRECT(\"'\" & Setup!$AH$12 & \"'!\" & AF37),0)","v":60},{"$f":"IF(Setup!$AI$7<>\"\",INDIRECT(\"'\" & Setup!$AI$7 & \"'!\" & AF37),0) + IF(Setup!$AI$8<>\"\",INDIRECT(\"'\" & Setup!$AI$8 & \"'!\" & AF37),0) + IF(Setup!$AI$9<>\"\",INDIRECT(\"'\" & Setup!$AI$9 & \"'!\" & AF37),0) + IF(Setup!$AI$10<>\"\",INDIRECT(\"'\" & Setup!$AI$10 & \"'!\" & AF37),0) + IF(Setup!$AI$11<>\"\",INDIRECT(\"'\" & Setup!$AI$11 & \"'!\" & AF37),0) + IF(Setup!$AI$12<>\"\",INDIRECT(\"'\" & Setup!$AI$12 & \"'!\" & AF37),0)","v":300},{"$f":"IF(Setup!$AJ$7<>\"\",INDIRECT(\"'\" & Setup!$AJ$7 & \"'!\" & AF37),0) + IF(Setup!$AJ$8<>\"\",INDIRECT(\"'\" & Setup!$AJ$8 & \"'!\" & AF37),0) + IF(Setup!$AJ$9<>\"\",INDIRECT(\"'\" & Setup!$AJ$9 & \"'!\" & AF37),0) + IF(Setup!$AJ$10<>\"\",INDIRECT(\"'\" & Setup!$AJ$10 & \"'!\" & AF37),0) + IF(Setup!$AJ$11<>\"\",INDIRECT(\"'\" & Setup!$AJ$11 & \"'!\" & AF37),0) + IF(Setup!$AJ$12<>\"\",INDIRECT(\"'\" & Setup!$AJ$12 & \"'!\" & AF37),0)","v":300},null,"2",{"$nulls":3},{"$f":"IF(C37=0,\"\",LEFT(INDEX(Lists!$H$5:$H$49,MATCH(C37,Lists!$G$5:$G$49,0),1),1))","v":"1"},null,0.9875,1.0126582278481013,0.98,1.0204081632653061,0.9885714285714285,1.0115606936416186,"","","","",{"$nulls":6},{"$f":"IF(Setup!$AG$7<>\"\",INDIRECT(\"'\" & Setup!$AG$7 & \"'!\" & AD37),0) + IF(Setup!$AG$8<>\"\",INDIRECT(\"'\" & Setup!$AG$8 & \"'!\" & AD37),0) + IF(Setup!$AG$9<>\"\",INDIRECT(\"'\" & Setup!$AG$9 & \"'!\" & AD37),0) + IF(Setup!$AG$10<>\"\",INDIRECT(\"'\" & Setup!$AG$10 & \"'!\" & AD37),0) + IF(Setup!$AG$11<>\"\",INDIRECT(\"'\" & Setup!$AG$11 & \"'!\" & AD37),0) + IF(Setup!$AG$12<>\"\",INDIRECT(\"'\" & Setup!$AG$12 & \"'!\" & AD37),0)","v":1000},{"$f":"IF(Setup!$AG$7<>\"\",INDIRECT(\"'\" & Setup!$AG$7 & \"'!\" & AE37),0) + IF(Setup!$AG$8<>\"\",INDIRECT(\"'\" & Setup!$AG$8 & \"'!\" & AE37),0) + IF(Setup!$AG$9<>\"\",INDIRECT(\"'\" & Setup!$AG$9 & \"'!\" & AE37),0) + IF(Setup!$AG$10<>\"\",INDIRECT(\"'\" & Setup!$AG$10 & \"'!\" & AE37),0) + IF(Setup!$AG$11<>\"\",INDIRECT(\"'\" & Setup!$AG$11 & \"'!\" & AE37),0) + IF(Setup!$AG$12<>\"\",INDIRECT(\"'\" & Setup!$AG$12 & \"'!\" & AE37),0)","v":980},{"$f":"IF(Setup!$AH$7<>\"\",INDIRECT(\"'\" & Setup!$AH$7 & \"'!\" & AD37),0) + IF(Setup!$AH$8<>\"\",INDIRECT(\"'\" & Setup!$AH$8 & \"'!\" & AD37),0) + IF(Setup!$AH$9<>\"\",INDIRECT(\"'\" & Setup!$AH$9 & \"'!\" & AD37),0) + IF(Setup!$AH$10<>\"\",INDIRECT(\"'\" & Setup!$AH$10 & \"'!\" & AD37),0) + IF(Setup!$AH$11<>\"\",INDIRECT(\"'\" & Setup!$AH$11 & \"'!\" & AD37),0) + IF(Setup!$AH$12<>\"\",INDIRECT(\"'\" & Setup!$AH$12 & \"'!\" & AD37),0)","v":7000},{"$f":"IF(Setup!$AH$7<>\"\",INDIRECT(\"'\" & Setup!$AH$7 & \"'!\" & AE37),0) + IF(Setup!$AH$8<>\"\",INDIRECT(\"'\" & Setup!$AH$8 & \"'!\" & AE37),0) + IF(Setup!$AH$9<>\"\",INDIRECT(\"'\" & Setup!$AH$9 & \"'!\" & AE37),0) + IF(Setup!$AH$10<>\"\",INDIRECT(\"'\" & Setup!$AH$10 & \"'!\" & AE37),0) + IF(Setup!$AH$11<>\"\",INDIRECT(\"'\" & Setup!$AH$11 & \"'!\" & AE37),0) + IF(Setup!$AH$12<>\"\",INDIRECT(\"'\" & Setup!$AH$12 & \"'!\" & AE37),0)","v":6920},{"$f":"IF(Setup!$AI$7<>\"\",INDIRECT(\"'\" & Setup!$AI$7 & \"'!\" & AD37),0) + IF(Setup!$AI$8<>\"\",INDIRECT(\"'\" & Setup!$AI$8 & \"'!\" & AD37),0) + IF(Setup!$AI$9<>\"\",INDIRECT(\"'\" & Setup!$AI$9 & \"'!\" & AD37),0) + IF(Setup!$AI$10<>\"\",INDIRECT(\"'\" & Setup!$AI$10 & \"'!\" & AD37),0) + IF(Setup!$AI$11<>\"\",INDIRECT(\"'\" & Setup!$AI$11 & \"'!\" & AD37),0) + IF(Setup!$AI$12<>\"\",INDIRECT(\"'\" & Setup!$AI$12 & \"'!\" & AD37),0)","v":0},{"$f":"IF(Setup!$AI$7<>\"\",INDIRECT(\"'\" & Setup!$AI$7 & \"'!\" & AE37),0) + IF(Setup!$AI$8<>\"\",INDIRECT(\"'\" & Setup!$AI$8 & \"'!\" & AE37),0) + IF(Setup!$AI$9<>\"\",INDIRECT(\"'\" & Setup!$AI$9 & \"'!\" & AE37),0) + IF(Setup!$AI$10<>\"\",INDIRECT(\"'\" & Setup!$AI$10 & \"'!\" & AE37),0) + IF(Setup!$AI$11<>\"\",INDIRECT(\"'\" & Setup!$AI$11 & \"'!\" & AE37),0) + IF(Setup!$AI$12<>\"\",INDIRECT(\"'\" & Setup!$AI$12 & \"'!\" & AE37),0)","v":0},{"$f":"IF(Setup!$AJ$7<>\"\",INDIRECT(\"'\" & Setup!$AJ$7 & \"'!\" & AD37),0) + IF(Setup!$AJ$8<>\"\",INDIRECT(\"'\" & Setup!$AJ$8 & \"'!\" & AD37),0) + IF(Setup!$AJ$9<>\"\",INDIRECT(\"'\" & Setup!$AJ$9 & \"'!\" & AD37),0) + IF(Setup!$AJ$10<>\"\",INDIRECT(\"'\" & Setup!$AJ$10 & \"'!\" & AD37),0) + IF(Setup!$AJ$11<>\"\",INDIRECT(\"'\" & Setup!$AJ$11 & \"'!\" & AD37),0) + IF(Setup!$AJ$12<>\"\",INDIRECT(\"'\" & Setup!$AJ$12 & \"'!\" & AD37),0)","v":0},{"$f":"IF(Setup!$AJ$7<>\"\",INDIRECT(\"'\" & Setup!$AJ$7 & \"'!\" & AE37),0) + IF(Setup!$AJ$8<>\"\",INDIRECT(\"'\" & Setup!$AJ$8 & \"'!\" & AE37),0) + IF(Setup!$AJ$9<>\"\",INDIRECT(\"'\" & Setup!$AJ$9 & \"'!\" & AE37),0) + IF(Setup!$AJ$10<>\"\",INDIRECT(\"'\" & Setup!$AJ$10 & \"'!\" & AE37),0) + IF(Setup!$AJ$11<>\"\",INDIRECT(\"'\" & Setup!$AJ$11 & \"'!\" & AE37),0) + IF(Setup!$AJ$12<>\"\",INDIRECT(\"'\" & Setup!$AJ$12 & \"'!\" & AE37),0)","v":0}]
[{"$f":"Planning!A21","v":"I013"},{"$f":"Planning!B21","v":0},{"$f":"Planning!C21","v":0},{"$f":"Planning!D21","v":0},{"$f":"Planning!E21","v":0},{"$f":"Planning!G21","v":0},null,0,0,{"$f":"IF(AND($AR38=\"2\",$AB37<>Lists!$A$17),AU38,AT38)","v":""},"",0,0,{"$f":"IF(AND($AR38=\"2\",$AB38<>Lists!$A$17),AW38,AV38)","v":""},"",0,0,{"$f":"IF(AND($AR38=\"2\",$AB38<>Lists!$A$17),AY38,AX38)","v":""},"",0,0,{"$f":"IF(AND($AR38=\"2\",$AB38<>Lists!$A$17),BA38,AZ38)","v":""},"",0,0,{"$f":"IF(AND($AR38=\"2\",$AB38<>Lists!$A$17),BC38,BB38)","v":""},"",{"$f":"Planning!H21","v":0},"00","H37","J37","I37","",null,{"$f":"IF(Setup!$AG$7<>\"\",INDIRECT(\"'\" & Setup!$AG$7 & \"'!\" & AF38),0) + IF(Setup!$AG$8<>\"\",INDIRECT(\"'\" & Setup!$AG$8 & \"'!\" & AF38),0) + IF(Setup!$AG$9<>\"\",INDIRECT(\"'\" & Setup!$AG$9 & \"'!\" & AF38),0) + IF(Setup!$AG$10<>\"\",INDIRECT(\"'\" & Setup!$AG$10 & \"'!\" & AF38),0) + IF(Setup!$AG$11<>\"\",INDIRECT(\"'\" & Setup!$AG$11 & \"'!\" & AF38),0) + IF(Setup!$AG$12<>\"\",INDIRECT(\"'\" & Setup!$AG$12 & \"'!\" & AF38),0)","v":0},{"$f":"IF(Setup!$AH$7<>\"\",INDIRECT(\"'\" & Setup!$AH$7 & \"'!\" & AF38),0) + IF(Setup!$AH$8<>\"\",INDIRECT(\"'\" & Setup!$AH$8 & \"'!\" & AF38),0) + IF(Setup!$AH$9<>\"\",INDIRECT(\"'\" & Setup!$AH$9 & \"'!\" & AF38),0) + IF(Setup!$AH$10<>\"\",INDIRECT(\"'\" & Setup!$AH$10 & \"'!\" & AF38),0) + IF(Setup!$AH$11<>\"\",INDIRECT(\"'\" & Setup!$AH$11 & \"'!\" & AF38),0) + IF(Setup!$AH$12<>\"\",INDIRECT(\"'\" & Setup!$AH$12 & \"'!\" & AF38),0)","v":0},{"$f":"IF(Setup!$AI$7<>\"\",INDIRECT(\"'\" & Setup!$AI$7 & \"'!\" & AF38),0) + IF(Setup!$AI$8<>\"\",INDIRECT(\"'\" & Setup!$AI$8 & \"'!\" & AF38),0) + IF(Setup!$AI$9<>\"\",INDIRECT(\"'\" & Setup!$AI$9 & \"'!\" & AF38),0) + IF(Setup!$AI$10<>\"\",INDIRECT(\"'\" & Setup!$AI$10 & \"'!\" & AF38),0) + IF(Setup!$AI$11<>\"\",INDIRECT(\"'\" & Setup!$AI$11 & \"'!\" & AF38),0) + IF(Setup!$AI$12<>\"\",INDIRECT(\"'\" & Setup!$AI$12 & \"'!\" & AF38),0)","v":0},{"$f":"IF(Setup!$AJ$7<>\"\",INDIRECT(\"'\" & Setup!$AJ$7 & \"'!\" & AF38),0) + IF(Setup!$AJ$8<>\"\",INDIRECT(\"'\" & Setup!$AJ$8 & \"'!\" & AF38),0) + IF(Setup!$AJ$9<>\"\",INDIRECT(\"'\" & Setup!$AJ$9 & \"'!\" & AF38),0) + IF(Setup!$AJ$10<>\"\",INDIRECT(\"'\" & Setup!$AJ$10 & \"'!\" & AF38),0) + IF(Setup!$AJ$11<>\"\",INDIRECT(\"'\" & Setup!$AJ$11 & \"'!\" & AF38),0) + IF(Setup!$AJ$12<>\"\",INDIRECT(\"'\" & Setup!$AJ$12 & \"'!\" & AF38),0)","v":0},null,"",{"$nulls":3},{"$f":"IF(C38=0,\"\",LEFT(INDEX(Lists!$H$5:$H$49,MATCH(C38,Lists!$G$5:$G$49,0),1),1))","v":""},null,"","","","","","","","","","",{"$nulls":6},{"$f":"IF(Setup!$AG$7<>\"\",INDIRECT(\"'\" & Setup!$AG$7 & \"'!\" & AD38),0) + IF(Setup!$AG$8<>\"\",INDIRECT(\"'\" & Setup!$AG$8 & \"'!\" & AD38),0) + IF(Setup!$AG$9<>\"\",INDIRECT(\"'\" & Setup!$AG$9 & \"'!\" & AD38),0) + IF(Setup!$AG$10<>\"\",INDIRECT(\"'\" & Setup!$AG$10 & \"'!\" & AD38),0) + IF(Setup!$AG$11<>\"\",INDIRECT(\"'\" & Setup!$AG$11 & \"'!\" & AD38),0) + IF(Setup!$AG$12<>\"\",INDIRECT(\"'\" & Setup!$AG$12 & \"'!\" & AD38),0)","v":0},{"$f":"IF(Setup!$AG$7<>\"\",INDIRECT(\"'\" & Setup!$AG$7 & \"'!\" & AE38),0) + IF(Setup!$AG$8<>\"\",INDIRECT(\"'\" & Setup!$AG$8 & \"'!\" & AE38),0) + IF(Setup!$AG$9<>\"\",INDIRECT(\"'\" & Setup!$AG$9 & \"'!\" & AE38),0) + IF(Setup!$AG$10<>\"\",INDIRECT(\"'\" & Setup!$AG$10 & \"'!\" & AE38),0) + IF(Setup!$AG$11<>\"\",INDIRECT(\"'\" & Setup!$AG$11 & \"'!\" & AE38),0) + IF(Setup!$AG$12<>\"\",INDIRECT(\"'\" & Setup!$AG$12 & \"'!\" & AE38),0)","v":0},{"$f":"IF(Setup!$AH$7<>\"\",INDIRECT(\"'\" & Setup!$AH$7 & \"'!\" & AD38),0) + IF(Setup!$AH$8<>\"\",INDIRECT(\"'\" & Setup!$AH$8 & \"'!\" & AD38),0) + IF(Setup!$AH$9<>\"\",INDIRECT(\"'\" & Setup!$AH$9 & \"'!\" & AD38),0) + IF(Setup!$AH$10<>\"\",INDIRECT(\"'\" & Setup!$AH$10 & \"'!\" & AD38),0) + IF(Setup!$AH$11<>\"\",INDIRECT(\"'\" & Setup!$AH$11 & \"'!\" & AD38),0) + IF(Setup!$AH$12<>\"\",INDIRECT(\"'\" & Setup!$AH$12 & \"'!\" & AD38),0)","v":0},{"$f":"IF(Setup!$AH$7<>\"\",INDIRECT(\"'\" & Setup!$AH$7 & \"'!\" & AE38),0) + IF(Setup!$AH$8<>\"\",INDIRECT(\"'\" & Setup!$AH$8 & \"'!\" & AE38),0) + IF(Setup!$AH$9<>\"\",INDIRECT(\"'\" & Setup!$AH$9 & \"'!\" & AE38),0) + IF(Setup!$AH$10<>\"\",INDIRECT(\"'\" & Setup!$AH$10 & \"'!\" & AE38),0) + IF(Setup!$AH$11<>\"\",INDIRECT(\"'\" & Setup!$AH$11 & \"'!\" & AE38),0) + IF(Setup!$AH$12<>\"\",INDIRECT(\"'\" & Setup!$AH$12 & \"'!\" & AE38),0)","v":0},{"$f":"IF(Setup!$AI$7<>\"\",INDIRECT(\"'\" & Setup!$AI$7 & \"'!\" & AD38),0) + IF(Setup!$AI$8<>\"\",INDIRECT(\"'\" & Setup!$AI$8 & \"'!\" & AD38),0) + IF(Setup!$AI$9<>\"\",INDIRECT(\"'\" & Setup!$AI$9 & \"'!\" & AD38),0) + IF(Setup!$AI$10<>\"\",INDIRECT(\"'\" & Setup!$AI$10 & \"'!\" & AD38),0) + IF(Setup!$AI$11<>\"\",INDIRECT(\"'\" & Setup!$AI$11 & \"'!\" & AD38),0) + IF(Setup!$AI$12<>\"\",INDIRECT(\"'\" & Setup!$AI$12 & \"'!\" & AD38),0)","v":0},{"$f":"IF(Setup!$AI$7<>\"\",INDIRECT(\"'\" & Setup!$AI$7 & \"'!\" & AE38),0) + IF(Setup!$AI$8<>\"\",INDIRECT(\"'\" & Setup!$AI$8 & \"'!\" & AE38),0) + IF(Setup!$AI$9<>\"\",INDIRECT(\"'\" & Setup!$AI$9 & \"'!\" & AE38),0) + IF(Setup!$AI$10<>\"\",INDIRECT(\"'\" & Setup!$AI$10 & \"'!\" & AE38),0) + IF(Setup!$AI$11<>\"\",INDIRECT(\"'\" & Setup!$AI$11 & \"'!\" & AE38),0) + IF(Setup!$AI$12<>\"\",INDIRECT(\"'\" & Setup!$AI$12 & \"'!\" & AE38),0)","v":0},{"$f":"IF(Setup!$AJ$7<>\"\",INDIRECT(\"'\" & Setup!$AJ$7 & \"'!\" & AD38),0) + IF(Setup!$AJ$8<>\"\",INDIRECT(\"'\" & Setup!$AJ$8 & \"'!\" & AD38),0) + IF(Setup!$AJ$9<>\"\",INDIRECT(\"'\" & Setup!$AJ$9 & \"'!\" & AD38),0) + IF(Setup!$AJ$10<>\"\",INDIRECT(\"'\" & Setup!$AJ$10 & \"'!\" & AD38),0) + IF(Setup!$AJ$11<>\"\",INDIRECT(\"'\" & Setup!$AJ$11 & \"'!\" & AD38),0) + IF(Setup!$AJ$12<>\"\",INDIRECT(\"'\" & Setup!$AJ$12 & \"'!\" & AD38),0)","v":0},{"$f":"IF(Setup!$AJ$7<>\"\",INDIRECT(\"'\" & Setup!$AJ$7 & \"'!\" & AE38),0) + IF(Setup!$AJ$8<>\"\",INDIRECT(\"'\" & Setup!$AJ$8 & \"'!\" & AE38),0) + IF(Setup!$AJ$9<>\"\",INDIRECT(\"'\" & Setup!$AJ$9 & \"'!\" & AE38),0) + IF(Setup!$AJ$10<>\"\",INDIRECT(\"'\" & Setup!$AJ$10 & \"'!\" & AE38),0) + IF(Setup!$AJ$11<>\"\",INDIRECT(\"'\" & Setup!$AJ$11 & \"'!\" & AE38),0) + IF(Setup!$AJ$12<>\"\",INDIRECT(\"'\" & Setup!$AJ$12 & \"'!\" & AE38),0)","v":0}]
[{"$f":"Planning!A22","v":"I014"},{"$f":"Planning!B22","v":0},{"$f":"Planning!C22","v":0},{"$f":"Planning!D22","v":0},{"$f":"Planning!E22","v":0},{"$f":"Planning!G22","v":0},null,0,0,{"$f":"IF(AND($AR39=\"2\",$AB38<>Lists!$A$17),AU39,AT39)","v":""},"",0,0,{"$f":"IF(AND($AR39=\"2\",$AB39<>Lists!$A$17),AW39,AV39)","v":""},"",0,0,{"$f":"IF(AND($AR39=\"2\",$AB39<>Lists!$A$17),AY39,AX39)","v":""},"",0,0,{"$f":"IF(AND($AR39=\"2\",$AB39<>Lists!$A$17),BA39,AZ39)","v":""},"",0,0,{"$f":"IF(AND($AR39=\"2\",$AB39<>Lists!$A$17),BC39,BB39)","v":""},"",{"$f":"Planning!H22","v":0},"00","H38","J38","I38","",null,{"$f":"IF(Setup!$AG$7<>\"\",INDIRECT(\"'\" & Setup!$AG$7 & \"'!\" & AF39),0) + IF(Setup!$AG$8<>\"\",INDIRECT(\"'\" & Setup!$AG$8 & \"'!\" & AF39),0) + IF(Setup!$AG$9<>\"\",INDIRECT(\"'\" & Setup!$AG$9 & \"'!\" & AF39),0) + IF(Setup!$AG$10<>\"\",INDIRECT(\"'\" & Setup!$AG$10 & \"'!\" & AF39),0) + IF(Setup!$AG$11<>\"\",INDIRECT(\"'\" & Setup!$AG$11 & \"'!\" & AF39),0) + IF(Setup!$AG$12<>\"\",INDIRECT(\"'\" & Setup!$AG$12 & \"'!\" & AF39),0)","v":0},{"$f":"IF(Setup!$AH$7<>\"\",INDIRECT(\"'\" & Setup!$AH$7 & \"'!\" & AF39),0) + IF(Setup!$AH$8<>\"\",INDIRECT(\"'\" & Setup!$AH$8 & \"'!\" & AF39),0) + IF(Setup!$AH$9<>\"\",INDIRECT(\"'\" & Setup!$AH$9 & \"'!\" & AF39),0) + IF(Setup!$AH$10<>\"\",INDIRECT(\"'\" & Setup!$AH$10 & \"'!\" & AF39),0) + IF(Setup!$AH$11<>\"\",INDIRECT(\"'\" & Setup!$AH$11 & \"'!\" & AF39),0) + IF(Setup!$AH$12<>\"\",INDIRECT(\"'\" & Setup!$AH$12 & \"'!\" & AF39),0)","v":0},{"$f":"IF(Setup!$AI$7<>\"\",INDIRECT(\"'\" & Setup!$AI$7 & \"'!\" & AF39),0) + IF(Setup!$AI$8<>\"\",INDIRECT(\"'\" & Setup!$AI$8 & \"'!\" & AF39),0) + IF(Setup!$AI$9<>\"\",INDIRECT(\"'\" & Setup!$AI$9 & \"'!\" & AF39),0) + IF(Setup!$AI$10<>\"\",INDIRECT(\"'\" & Setup!$AI$10 & \"'!\" & AF39),0) + IF(Setup!$AI$11<>\"\",INDIRECT(\"'\" & Setup!$AI$11 & \"'!\" & AF39),0) + IF(Setup!$AI$12<>\"\",INDIRECT(\"'\" & Setup!$AI$12 & \"'!\" & AF39),0)","v":0},{"$f":"IF(Setup!$AJ$7<>\"\",INDIRECT(\"'\" & Setup!$AJ$7 & \"'!\" & AF39),0) + IF(Setup!$AJ$8<>\"\",INDIRECT(\"'\" & Setup!$AJ$8 & \"'!\" & AF39),0) + IF(Setup!$AJ$9<>\"\",INDIRECT(\"'\" & Setup!$AJ$9 & \"'!\" & AF39),0) + IF(Setup!$AJ$10<>\"\",INDIRECT(\"'\" & Setup!$AJ$10 & \"'!\" & AF39),0) + IF(Setup!$AJ$11<>\"\",INDIRECT(\"'\" & Setup!$AJ$11 & \"'!\" & AF39),0) + IF(Setup!$AJ$12<>\"\",INDIRECT(\"'\" & Setup!$AJ$12 & \"'!\" & AF39),0)","v":0},null,"",{"$nulls":3},{"$f":"IF(C39=0,\"\",LEFT(INDEX(Lists!$H$5:$H$49,MATCH(C39,Lists!$G$5:$G$49,0),1),1))","v":""},null,"","","","","","","","","","",{"$nulls":6},{"$f":"IF(Setup!$AG$7<>\"\",INDIRECT(\"'\" & Setup!$AG$7 & \"'!\" & AD39),0) + IF(Setup!$AG$8<>\"\",INDIRECT(\"'\" & Setup!$AG$8 & \"'!\" & AD39),0) + IF(Setup!$AG$9<>\"\",INDIRECT(\"'\" & Setup!$AG$9 & \"'!\" & AD39),0) + IF(Setup!$AG$10<>\"\",INDIRECT(\"'\" & Setup!$AG$10 & \"'!\" & AD39),0) + IF(Setup!$AG$11<>\"\",INDIRECT(\"'\" & Setup!$AG$11 & \"'!\" & AD39),0) + IF(Setup!$AG$12<>\"\",INDIRECT(\"'\" & Setup!$AG$12 & \"'!\" & AD39),0)","v":0},{"$f":"IF(Setup!$AG$7<>\"\",INDIRECT(\"'\" & Setup!$AG$7 & \"'!\" & AE39),0) + IF(Setup!$AG$8<>\"\",INDIRECT(\"'\" & Setup!$AG$8 & \"'!\" & AE39),0) + IF(Setup!$AG$9<>\"\",INDIRECT(\"'\" & Setup!$AG$9 & \"'!\" & AE39),0) + IF(Setup!$AG$10<>\"\",INDIRECT(\"'\" & Setup!$AG$10 & \"'!\" & AE39),0) + IF(Setup!$AG$11<>\"\",INDIRECT(\"'\" & Setup!$AG$11 & \"'!\" & AE39),0) + IF(Setup!$AG$12<>\"\",INDIRECT(\"'\" & Setup!$AG$12 & \"'!\" & AE39),0)","v":0},{"$f":"IF(Setup!$AH$7<>\"\",INDIRECT(\"'\" & Setup!$AH$7 & \"'!\" & AD39),0) + IF(Setup!$AH$8<>\"\",INDIRECT(\"'\" & Setup!$AH$8 & \"'!\" & AD39),0) + IF(Setup!$AH$9<>\"\",INDIRECT(\"'\" & Setup!$AH$9 & \"'!\" & AD39),0) + IF(Setup!$AH$10<>\"\",INDIRECT(\"'\" & Setup!$AH$10 & \"'!\" & AD39),0) + IF(Setup!$AH$11<>\"\",INDIRECT(\"'\" & Setup!$AH$11 & \"'!\" & AD39),0) + IF(Setup!$AH$12<>\"\",INDIRECT(\"'\" & Setup!$AH$12 & \"'!\" & AD39),0)","v":0},{"$f":"IF(Setup!$AH$7<>\"\",INDIRECT(\"'\" & Setup!$AH$7 & \"'!\" & AE39),0) + IF(Setup!$AH$8<>\"\",INDIRECT(\"'\" & Setup!$AH$8 & \"'!\" & AE39),0) + IF(Setup!$AH$9<>\"\",INDIRECT(\"'\" & Setup!$AH$9 & \"'!\" & AE39),0) + IF(Setup!$AH$10<>\"\",INDIRECT(\"'\" & Setup!$AH$10 & \"'!\" & AE39),0) + IF(Setup!$AH$11<>\"\",INDIRECT(\"'\" & Setup!$AH$11 & \"'!\" & AE39),0) + IF(Setup!$AH$12<>\"\",INDIRECT(\"'\" & Setup!$AH$12 & \"'!\" & AE39),0)","v":0},{"$f":"IF(Setup!$AI$7<>\"\",INDIRECT(\"'\" & Setup!$AI$7 & \"'!\" & AD39),0) + IF(Setup!$AI$8<>\"\",INDIRECT(\"'\" & Setup!$AI$8 & \"'!\" & AD39),0) + IF(Setup!$AI$9<>\"\",INDIRECT(\"'\" & Setup!$AI$9 & \"'!\" & AD39),0) + IF(Setup!$AI$10<>\"\",INDIRECT(\"'\" & Setup!$AI$10 & \"'!\" & AD39),0) + IF(Setup!$AI$11<>\"\",INDIRECT(\"'\" & Setup!$AI$11 & \"'!\" & AD39),0) + IF(Setup!$AI$12<>\"\",INDIRECT(\"'\" & Setup!$AI$12 & \"'!\" & AD39),0)","v":0},{"$f":"IF(Setup!$AI$7<>\"\",INDIRECT(\"'\" & Setup!$AI$7 & \"'!\" & AE39),0) + IF(Setup!$AI$8<>\"\",INDIRECT(\"'\" & Setup!$AI$8 & \"'!\" & AE39),0) + IF(Setup!$AI$9<>\"\",INDIRECT(\"'\" & Setup!$AI$9 & \"'!\" & AE39),0) + IF(Setup!$AI$10<>\"\",INDIRECT(\"'\" & Setup!$AI$10 & \"'!\" & AE39),0) + IF(Setup!$AI$11<>\"\",INDIRECT(\"'\" & Setup!$AI$11 & \"'!\" & AE39),0) + IF(Setup!$AI$12<>\"\",INDIRECT(\"'\" & Setup!$AI$12 & \"'!\" & AE39),0)","v":0},{"$f":"IF(Setup!$AJ$7<>\"\",INDIRECT(\"'\" & Setup!$AJ$7 & \"'!\" & AD39),0) + IF(Setup!$AJ$8<>\"\",INDIRECT(\"'\" & Setup!$AJ$8 & \"'!\" & AD39),0) + IF(Setup!$AJ$9<>\"\",INDIRECT(\"'\" & Setup!$AJ$9 & \"'!\" & AD39),0) + IF(Setup!$AJ$10<>\"\",INDIRECT(\"'\" & Setup!$AJ$10 & \"'!\" & AD39),0) + IF(Setup!$AJ$11<>\"\",INDIRECT(\"'\" & Setup!$AJ$11 & \"'!\" & AD39),0) + IF(Setup!$AJ$12<>\"\",INDIRECT(\"'\" & Setup!$AJ$12 & \"'!\" & AD39),0)","v":0},{"$f":"IF(Setup!$AJ$7<>\"\",INDIRECT(\"'\" & Setup!$AJ$7 & \"'!\" & AE39),0) + IF(Setup!$AJ$8<>\"\",INDIRECT(\"'\" & Setup!$AJ$8 & \"'!\" & AE39),0) + IF(Setup!$AJ$9<>\"\",INDIRECT(\"'\" & Setup!$AJ$9 & \"'!\" & AE39),0) + IF(Setup!$AJ$10<>\"\",INDIRECT(\"'\" & Setup!$AJ$10 & \"'!\" & AE39),0) + IF(Setup!$AJ$11<>\"\",INDIRECT(\"'\" & Setup!$AJ$11 & \"'!\" & AE39),0) + IF(Setup!$AJ$12<>\"\",INDIRECT(\"'\" & Setup!$AJ$12 & \"'!\" & AE39),0)","v":0}]
[{"$f":"Planning!A23","v":"I015"},{"$f":"Planning!B23","v":0},{"$f":"Planning!C23","v":0},{"$f":"Planning!D23","v":0},{"$f":"Planning!E23","v":0},{"$f":"Planning!G23","v":0},null,0,0,{"$f":"IF(AND($AR40=\"2\",$AB39<>Lists!$A$17),AU40,AT40)","v":""},"",0,0,{"$f":"IF(AND($AR40=\"2\",$AB40<>Lists!$A$17),AW40,AV40)","v":""},"",0,0,{"$f":"IF(AND($AR40=\"2\",$AB40<>Lists!$A$17),AY40,AX40)","v":""},"",0,0,{"$f":"IF(AND($AR40=\"2\",$AB40<>Lists!$A$17),BA40,AZ40)","v":""},"",0,0,{"$f":"IF(AND($AR40=\"2\",$AB40<>Lists!$A$17),BC40,BB40)","v":""},"",{"$f":"Planning!H23","v":0},"00","H39","J39","I39","",null,{"$f":"IF(Setup!$AG$7<>\"\",INDIRECT(\"'\" & Setup!$AG$7 & \"'!\" & AF40),0) + IF(Setup!$AG$8<>\"\",INDIRECT(\"'\" & Setup!$AG$8 & \"'!\" & AF40),0) + IF(Setup!$AG$9<>\"\",INDIRECT(\"'\" & Setup!$AG$9 & \"'!\" & AF40),0) + IF(Setup!$AG$10<>\"\",INDIRECT(\"'\" & Setup!$AG$10 & \"'!\" & AF40),0) + IF(Setup!$AG$11<>\"\",INDIRECT(\"'\" & Setup!$AG$11 & \"'!\" & AF40),0) + IF(Setup!$AG$12<>\"\",INDIRECT(\"'\" & Setup!$AG$12 & \"'!\" & AF40),0)","v":0},{"$f":"IF(Setup!$AH$7<>\"\",INDIRECT(\"'\" & Setup!$AH$7 & \"'!\" & AF40),0) + IF(Setup!$AH$8<>\"\",INDIRECT(\"'\" & Setup!$AH$8 & \"'!\" & AF40),0) + IF(Setup!$AH$9<>\"\",INDIRECT(\"'\" & Setup!$AH$9 & \"'!\" & AF40),0) + IF(Setup!$AH$10<>\"\",INDIRECT(\"'\" & Setup!$AH$10 & \"'!\" & AF40),0) + IF(Setup!$AH$11<>\"\",INDIRECT(\"'\" & Setup!$AH$11 & \"'!\" & AF40),0) + IF(Setup!$AH$12<>\"\",INDIRECT(\"'\" & Setup!$AH$12 & \"'!\" & AF40),0)","v":0},{"$f":"IF(Setup!$AI$7<>\"\",INDIRECT(\"'\" & Setup!$AI$7 & \"'!\" & AF40),0) + IF(Setup!$AI$8<>\"\",INDIRECT(\"'\" & Setup!$AI$8 & \"'!\" & AF40),0) + IF(Setup!$AI$9<>\"\",INDIRECT(\"'\" & Setup!$AI$9 & \"'!\" & AF40),0) + IF(Setup!$AI$10<>\"\",INDIRECT(\"'\" & Setup!$AI$10 & \"'!\" & AF40),0) + IF(Setup!$AI$11<>\"\",INDIRECT(\"'\" & Setup!$AI$11 & \"'!\" & AF40),0) + IF(Setup!$AI$12<>\"\",INDIRECT(\"'\" & Setup!$AI$12 & \"'!\" & AF40),0)","v":0},{"$f":"IF(Setup!$AJ$7<>\"\",INDIRECT(\"'\" & Setup!$AJ$7 & \"'!\" & AF40),0) + IF(Setup!$AJ$8<>\"\",INDIRECT(\"'\" & Setup!$AJ$8 & \"'!\" & AF40),0) + IF(Setup!$AJ$9<>\"\",INDIRECT(\"'\" & Setup!$AJ$9 & \"'!\" & AF40),0) + IF(Setup!$AJ$10<>\"\",INDIRECT(\"'\" & Setup!$AJ$10 & \"'!\" & AF40),0) + IF(Setup!$AJ$11<>\"\",INDIRECT(\"'\" & Setup!$AJ$11 & \"'!\" & AF40),0) + IF(Setup!$AJ$12<>\"\",INDIRECT(\"'\" & Setup!$AJ$12 & \"'!\" & AF40),0)","v":0},null,"",{"$nulls":3},{"$f":"IF(C40=0,\"\",LEFT(INDEX(Lists!$H$5:$H$49,MATCH(C40,Lists!$G$5:$G$49,0),1),1))","v":""},null,"","","","","","","","","","",{"$nulls":6},{"$f":"IF(Setup!$AG$7<>\"\",INDIRECT(\"'\" & Setup!$AG$7 & \"'!\" & AD40),0) + IF(Setup!$AG$8<>\"\",INDIRECT(\"'\" & Setup!$AG$8 & \"'!\" & AD40),0) + IF(Setup!$AG$9<>\"\",INDIRECT(\"'\" & Setup!$AG$9 & \"'!\" & AD40),0) + IF(Setup!$AG$10<>\"\",INDIRECT(\"'\" & Setup!$AG$10 & \"'!\" & AD40),0) + IF(Setup!$AG$11<>\"\",INDIRECT(\"'\" & Setup!$AG$11 & \"'!\" & AD40),0) + IF(Setup!$AG$12<>\"\",INDIRECT(\"'\" & Setup!$AG$12 & \"'!\" & AD40),0)","v":0},{"$f":"IF(Setup!$AG$7<>\"\",INDIRECT(\"'\" & Setup!$AG$7 & \"'!\" & AE40),0) + IF(Setup!$AG$8<>\"\",INDIRECT(\"'\" & Setup!$AG$8 & \"'!\" & AE40),0) + IF(Setup!$AG$9<>\"\",INDIRECT(\"'\" & Setup!$AG$9 & \"'!\" & AE40),0) + IF(Setup!$AG$10<>\"\",INDIRECT(\"'\" & Setup!$AG$10 & \"'!\" & AE40),0) + IF(Setup!$AG$11<>\"\",INDIRECT(\"'\" & Setup!$AG$11 & \"'!\" & AE40),0) + IF(Setup!$AG$12<>\"\",INDIRECT(\"'\" & Setup!$AG$12 & \"'!\" & AE40),0)","v":0},{"$f":"IF(Setup!$AH$7<>\"\",INDIRECT(\"'\" & Setup!$AH$7 & \"'!\" & AD40),0) + IF(Setup!$AH$8<>\"\",INDIRECT(\"'\" & Setup!$AH$8 & \"'!\" & AD40),0) + IF(Setup!$AH$9<>\"\",INDIRECT(\"'\" & Setup!$AH$9 & \"'!\" & AD40),0) + IF(Setup!$AH$10<>\"\",INDIRECT(\"'\" & Setup!$AH$10 & \"'!\" & AD40),0) + IF(Setup!$AH$11<>\"\",INDIRECT(\"'\" & Setup!$AH$11 & \"'!\" & AD40),0) + IF(Setup!$AH$12<>\"\",INDIRECT(\"'\" & Setup!$AH$12 & \"'!\" & AD40),0)","v":0},{"$f":"IF(Setup!$AH$7<>\"\",INDIRECT(\"'\" & Setup!$AH$7 & \"'!\" & AE40),0) + IF(Setup!$AH$8<>\"\",INDIRECT(\"'\" & Setup!$AH$8 & \"'!\" & AE40),0) + IF(Setup!$AH$9<>\"\",INDIRECT(\"'\" & Setup!$AH$9 & \"'!\" & AE40),0) + IF(Setup!$AH$10<>\"\",INDIRECT(\"'\" & Setup!$AH$10 & \"'!\" & AE40),0) + IF(Setup!$AH$11<>\"\",INDIRECT(\"'\" & Setup!$AH$11 & \"'!\" & AE40),0) + IF(Setup!$AH$12<>\"\",INDIRECT(\"'\" & Setup!$AH$12 & \"'!\" & AE40),0)","v":0},{"$f":"IF(Setup!$AI$7<>\"\",INDIRECT(\"'\" & Setup!$AI$7 & \"'!\" & AD40),0) + IF(Setup!$AI$8<>\"\",INDIRECT(\"'\" & Setup!$AI$8 & \"'!\" & AD40),0) + IF(Setup!$AI$9<>\"\",INDIRECT(\"'\" & Setup!$AI$9 & \"'!\" & AD40),0) + IF(Setup!$AI$10<>\"\",INDIRECT(\"'\" & Setup!$AI$10 & \"'!\" & AD40),0) + IF(Setup!$AI$11<>\"\",INDIRECT(\"'\" & Setup!$AI$11 & \"'!\" & AD40),0) + IF(Setup!$AI$12<>\"\",INDIRECT(\"'\" & Setup!$AI$12 & \"'!\" & AD40),0)","v":0},{"$f":"IF(Setup!$AI$7<>\"\",INDIRECT(\"'\" & Setup!$AI$7 & \"'!\" & AE40),0) + IF(Setup!$AI$8<>\"\",INDIRECT(\"'\" & Setup!$AI$8 & \"'!\" & AE40),0) + IF(Setup!$AI$9<>\"\",INDIRECT(\"'\" & Setup!$AI$9 & \"'!\" & AE40),0) + IF(Setup!$AI$10<>\"\",INDIRECT(\"'\" & Setup!$AI$10 & \"'!\" & AE40),0) + IF(Setup!$AI$11<>\"\",INDIRECT(\"'\" & Setup!$AI$11 & \"'!\" & AE40),0) + IF(Setup!$AI$12<>\"\",INDIRECT(\"'\" & Setup!$AI$12 & \"'!\" & AE40),0)","v":0},{"$f":"IF(Setup!$AJ$7<>\"\",INDIRECT(\"'\" & Setup!$AJ$7 & \"'!\" & AD40),0) + IF(Setup!$AJ$8<>\"\",INDIRECT(\"'\" & Setup!$AJ$8 & \"'!\" & AD40),0) + IF(Setup!$AJ$9<>\"\",INDIRECT(\"'\" & Setup!$AJ$9 & \"'!\" & AD40),0) + IF(Setup!$AJ$10<>\"\",INDIRECT(\"'\" & Setup!$AJ$10 & \"'!\" & AD40),0) + IF(Setup!$AJ$11<>\"\",INDIRECT(\"'\" & Setup!$AJ$11 & \"'!\" & AD40),0) + IF(Setup!$AJ$12<>\"\",INDIRECT(\"'\" & Setup!$AJ$12 & \"'!\" & AD40),0)","v":0},{"$f":"IF(Setup!$AJ$7<>\"\",INDIRECT(\"'\" & Setup!$AJ$7 & \"'!\" & AE40),0) + IF(Setup!$AJ$8<>\"\",INDIRECT(\"'\" & Setup!$AJ$8 & \"'!\" & AE40),0) + IF(Setup!$AJ$9<>\"\",INDIRECT(\"'\" & Setup!$AJ$9 & \"'!\" & AE40),0) + IF(Setup!$AJ$10<>\"\",INDIRECT(\"'\" & Setup!$AJ$10 & \"'!\" & AE40),0) + IF(Setup!$AJ$11<>\"\",INDIRECT(\"'\" & Setup!$AJ$11 & \"'!\" & AE40),0) + IF(Setup!$AJ$12<>\"\",INDIRECT(\"'\" & Setup!$AJ$12 & \"'!\" & AE40),0)","v":0}]
[{"$f":"Planning!A24","v":"I016"},{"$f":"Planning!B24","v":0},{"$f":"Planning!C24","v":0},{"$f":"Planning!D24","v":0},{"$f":"Planning!E24","v":0},{"$f":"Planning!G24","v":0},null,0,0,{"$f":"IF(AND($AR41=\"2\",$AB40<>Lists!$A$17),AU41,AT41)","v":""},"",0,0,{"$f":"IF(AND($AR41=\"2\",$AB41<>Lists!$A$17),AW41,AV41)","v":""},"",0,0,{"$f":"IF(AND($AR41=\"2\",$AB41<>Lists!$A$17),AY41,AX41)","v":""},"",0,0,{"$f":"IF(AND($AR41=\"2\",$AB41<>Lists!$A$17),BA41,AZ41)","v":""},"",0,0,{"$f":"IF(AND($AR41=\"2\",$AB41<>Lists!$A$17),BC41,BB41)","v":""},"",{"$f":"Planning!H24","v":0},"00","H40","J40","I40","",null,{"$f":"IF(Setup!$AG$7<>\"\",INDIRECT(\"'\" & Setup!$AG$7 & \"'!\" & AF41),0) + IF(Setup!$AG$8<>\"\",INDIRECT(\"'\" & Setup!$AG$8 & \"'!\" & AF41),0) + IF(Setup!$AG$9<>\"\",INDIRECT(\"'\" & Setup!$AG$9 & \"'!\" & AF41),0) + IF(Setup!$AG$10<>\"\",INDIRECT(\"'\" & Setup!$AG$10 & \"'!\" & AF41),0) + IF(Setup!$AG$11<>\"\",INDIRECT(\"'\" & Setup!$AG$11 & \"'!\" & AF41),0) + IF(Setup!$AG$12<>\"\",INDIRECT(\"'\" & Setup!$AG$12 & \"'!\" & AF41),0)","v":0},{"$f":"IF(Setup!$AH$7<>\"\",INDIRECT(\"'\" & Setup!$AH$7 & \"'!\" & AF41),0) + IF(Setup!$AH$8<>\"\",INDIRECT(\"'\" & Setup!$AH$8 & \"'!\" & AF41),0) + IF(Setup!$AH$9<>\"\",INDIRECT(\"'\" & Setup!$AH$9 & \"'!\" & AF41),0) + IF(Setup!$AH$10<>\"\",INDIRECT(\"'\" & Setup!$AH$10 & \"'!\" & AF41),0) + IF(Setup!$AH$11<>\"\",INDIRECT(\"'\" & Setup!$AH$11 & \"'!\" & AF41),0) + IF(Setup!$AH$12<>\"\",INDIRECT(\"'\" & Setup!$AH$12 & \"'!\" & AF41),0)","v":0},{"$f":"IF(Setup!$AI$7<>\"\",INDIRECT(\"'\" & Setup!$AI$7 & \"'!\" & AF41),0) + IF(Setup!$AI$8<>\"\",INDIRECT(\"'\" & Setup!$AI$8 & \"'!\" & AF41),0) + IF(Setup!$AI$9<>\"\",INDIRECT(\"'\" & Setup!$AI$9 & \"'!\" & AF41),0) + IF(Setup!$AI$10<>\"\",INDIRECT(\"'\" & Setup!$AI$10 & \"'!\" & AF41),0) + IF(Setup!$AI$11<>\"\",INDIRECT(\"'\" & Setup!$AI$11 & \"'!\" & AF41),0) + IF(Setup!$AI$12<>\"\",INDIRECT(\"'\" & Setup!$AI$12 & \"'!\" & AF41),0)","v":0},{"$f":"IF(Setup!$AJ$7<>\"\",INDIRECT(\"'\" & Setup!$AJ$7 & \"'!\" & AF41),0) + IF(Setup!$AJ$8<>\"\",INDIRECT(\"'\" & Setup!$AJ$8 & \"'!\" & AF41),0) + IF(Setup!$AJ$9<>\"\",INDIRECT(\"'\" & Setup!$AJ$9 & \"'!\" & AF41),0) + IF(Setup!$AJ$10<>\"\",INDIRECT(\"'\" & Setup!$AJ$10 & \"'!\" & AF41),0) + IF(Setup!$AJ$11<>\"\",INDIRECT(\"'\" & Setup!$AJ$11 & \"'!\" & AF41),0) + IF(Setup!$AJ$12<>\"\",INDIRECT(\"'\" & Setup!$AJ$12 & \"'!\" & AF41),0)","v":0},null,"",{"$nulls":3},{"$f":"IF(C41=0,\"\",LEFT(INDEX(Lists!$H$5:$H$49,MATCH(C41,Lists!$G$5:$G$49,0),1),1))","v":""},null,"","","","","","","","","","",{"$nulls":6},{"$f":"IF(Setup!$AG$7<>\"\",INDIRECT(\"'\" & Setup!$AG$7 & \"'!\" & AD41),0) + IF(Setup!$AG$8<>\"\",INDIRECT(\"'\" & Setup!$AG$8 & \"'!\" & AD41),0) + IF(Setup!$AG$9<>\"\",INDIRECT(\"'\" & Setup!$AG$9 & \"'!\" & AD41),0) + IF(Setup!$AG$10<>\"\",INDIRECT(\"'\" & Setup!$AG$10 & \"'!\" & AD41),0) + IF(Setup!$AG$11<>\"\",INDIRECT(\"'\" & Setup!$AG$11 & \"'!\" & AD41),0) + IF(Setup!$AG$12<>\"\",INDIRECT(\"'\" & Setup!$AG$12 & \"'!\" & AD41),0)","v":0},{"$f":"IF(Setup!$AG$7<>\"\",INDIRECT(\"'\" & Setup!$AG$7 & \"'!\" & AE41),0) + IF(Setup!$AG$8<>\"\",INDIRECT(\"'\" & Setup!$AG$8 & \"'!\" & AE41),0) + IF(Setup!$AG$9<>\"\",INDIRECT(\"'\" & Setup!$AG$9 & \"'!\" & AE41),0) + IF(Setup!$AG$10<>\"\",INDIRECT(\"'\" & Setup!$AG$10 & \"'!\" & AE41),0) + IF(Setup!$AG$11<>\"\",INDIRECT(\"'\" & Setup!$AG$11 & \"'!\" & AE41),0) + IF(Setup!$AG$12<>\"\",INDIRECT(\"'\" & Setup!$AG$12 & \"'!\" & AE41),0)","v":0},{"$f":"IF(Setup!$AH$7<>\"\",INDIRECT(\"'\" & Setup!$AH$7 & \"'!\" & AD41),0) + IF(Setup!$AH$8<>\"\",INDIRECT(\"'\" & Setup!$AH$8 & \"'!\" & AD41),0) + IF(Setup!$AH$9<>\"\",INDIRECT(\"'\" & Setup!$AH$9 & \"'!\" & AD41),0) + IF(Setup!$AH$10<>\"\",INDIRECT(\"'\" & Setup!$AH$10 & \"'!\" & AD41),0) + IF(Setup!$AH$11<>\"\",INDIRECT(\"'\" & Setup!$AH$11 & \"'!\" & AD41),0) + IF(Setup!$AH$12<>\"\",INDIRECT(\"'\" & Setup!$AH$12 & \"'!\" & AD41),0)","v":0},{"$f":"IF(Setup!$AH$7<>\"\",INDIRECT(\"'\" & Setup!$AH$7 & \"'!\" & AE41),0) + IF(Setup!$AH$8<>\"\",INDIRECT(\"'\" & Setup!$AH$8 & \"'!\" & AE41),0) + IF(Setup!$AH$9<>\"\",INDIRECT(\"'\" & Setup!$AH$9 & \"'!\" & AE41),0) + IF(Setup!$AH$10<>\"\",INDIRECT(\"'\" & Setup!$AH$10 & \"'!\" & AE41),0) + IF(Setup!$AH$11<>\"\",INDIRECT(\"'\" & Setup!$AH$11 & \"'!\" & AE41),0) + IF(Setup!$AH$12<>\"\",INDIRECT(\"'\" & Setup!$AH$12 & \"'!\" & AE41),0)","v":0},{"$f":"IF(Setup!$AI$7<>\"\",INDIRECT(\"'\" & Setup!$AI$7 & \"'!\" & AD41),0) + IF(Setup!$AI$8<>\"\",INDIRECT(\"'\" & Setup!$AI$8 & \"'!\" & AD41),0) + IF(Setup!$AI$9<>\"\",INDIRECT(\"'\" & Setup!$AI$9 & \"'!\" & AD41),0) + IF(Setup!$AI$10<>\"\",INDIRECT(\"'\" & Setup!$AI$10 & \"'!\" & AD41),0) + IF(Setup!$AI$11<>\"\",INDIRECT(\"'\" & Setup!$AI$11 & \"'!\" & AD41),0) + IF(Setup!$AI$12<>\"\",INDIRECT(\"'\" & Setup!$AI$12 & \"'!\" & AD41),0)","v":0},{"$f":"IF(Setup!$AI$7<>\"\",INDIRECT(\"'\" & Setup!$AI$7 & \"'!\" & AE41),0) + IF(Setup!$AI$8<>\"\",INDIRECT(\"'\" & Setup!$AI$8 & \"'!\" & AE41),0) + IF(Setup!$AI$9<>\"\",INDIRECT(\"'\" & Setup!$AI$9 & \"'!\" & AE41),0) + IF(Setup!$AI$10<>\"\",INDIRECT(\"'\" & Setup!$AI$10 & \"'!\" & AE41),0) + IF(Setup!$AI$11<>\"\",INDIRECT(\"'\" & Setup!$AI$11 & \"'!\" & AE41),0) + IF(Setup!$AI$12<>\"\",INDIRECT(\"'\" & Setup!$AI$12 & \"'!\" & AE41),0)","v":0},{"$f":"IF(Setup!$AJ$7<>\"\",INDIRECT(\"'\" & Setup!$AJ$7 & \"'!\" & AD41),0) + IF(Setup!$AJ$8<>\"\",INDIRECT(\"'\" & Setup!$AJ$8 & \"'!\" & AD41),0) + IF(Setup!$AJ$9<>\"\",INDIRECT(\"'\" & Setup!$AJ$9 & \"'!\" & AD41),0) + IF(Setup!$AJ$10<>\"\",INDIRECT(\"'\" & Setup!$AJ$10 & \"'!\" & AD41),0) + IF(Setup!$AJ$11<>\"\",INDIRECT(\"'\" & Setup!$AJ$11 & \"'!\" & AD41),0) + IF(Setup!$AJ$12<>\"\",INDIRECT(\"'\" & Setup!$AJ$12 & \"'!\" & AD41),0)","v":0},{"$f":"IF(Setup!$AJ$7<>\"\",INDIRECT(\"'\" & Setup!$AJ$7 & \"'!\" & AE41),0) + IF(Setup!$AJ$8<>\"\",INDIRECT(\"'\" & Setup!$AJ$8 & \"'!\" & AE41),0) + IF(Setup!$AJ$9<>\"\",INDIRECT(\"'\" & Setup!$AJ$9 & \"'!\" & AE41),0) + IF(Setup!$AJ$10<>\"\",INDIRECT(\"'\" & Setup!$AJ$10 & \"'!\" & AE41),0) + IF(Setup!$AJ$11<>\"\",INDIRECT(\"'\" & Setup!$AJ$11 & \"'!\" & AE41),0) + IF(Setup!$AJ$12<>\"\",INDIRECT(\"'\" & Setup!$AJ$12 & \"'!\" & AE41),0)","v":0}]
[{"$f":"Planning!A25","v":"I017"},{"$f":"Planning!B25","v":0},{"$f":"Planning!C25","v":0},{"$f":"Planning!D25","v":0},{"$f":"Planning!E25","v":0},{"$f":"Planning!G25","v":0},null,0,0,{"$f":"IF(AND($AR42=\"2\",$AB41<>Lists!$A$17),AU42,AT42)","v":""},"",0,0,{"$f":"IF(AND($AR42=\"2\",$AB42<>Lists!$A$17),AW42,AV42)","v":""},"",0,0,{"$f":"IF(AND($AR42=\"2\",$AB42<>Lists!$A$17),AY42,AX42)","v":""},"",0,0,{"$f":"IF(AND($AR42=\"2\",$AB42<>Lists!$A$17),BA42,AZ42)","v":""},"",0,0,{"$f":"IF(AND($AR42=\"2\",$AB42<>Lists!$A$17),BC42,BB42)","v":""},"",{"$f":"Planning!H25","v":0},"00","H41","J41","I41","",null,{"$f":"IF(Setup!$AG$7<>\"\",INDIRECT(\"'\" & Setup!$AG$7 & \"'!\" & AF42),0) + IF(Setup!$AG$8<>\"\",INDIRECT(\"'\" & Setup!$AG$8 & \"'!\" & AF42),0) + IF(Setup!$AG$9<>\"\",INDIRECT(\"'\" & Setup!$AG$9 & \"'!\" & AF42),0) + IF(Setup!$AG$10<>\"\",INDIRECT(\"'\" & Setup!$AG$10 & \"'!\" & AF42),0) + IF(Setup!$AG$11<>\"\",INDIRECT(\"'\" & Setup!$AG$11 & \"'!\" & AF42),0) + IF(Setup!$AG$12<>\"\",INDIRECT(\"'\" & Setup!$AG$12 & \"'!\" & AF42),0)","v":0},{"$f":"IF(Setup!$AH$7<>\"\",INDIRECT(\"'\" & Setup!$AH$7 & \"'!\" & AF42),0) + IF(Setup!$AH$8<>\"\",INDIRECT(\"'\" & Setup!$AH$8 & \"'!\" & AF42),0) + IF(Setup!$AH$9<>\"\",INDIRECT(\"'\" & Setup!$AH$9 & \"'!\" & AF42),0) + IF(Setup!$AH$10<>\"\",INDIRECT(\"'\" & Setup!$AH$10 & \"'!\" & AF42),0) + IF(Setup!$AH$11<>\"\",INDIRECT(\"'\" & Setup!$AH$11 & \"'!\" & AF42),0) + IF(Setup!$AH$12<>\"\",INDIRECT(\"'\" & Setup!$AH$12 & \"'!\" & AF42),0)","v":0},{"$f":"IF(Setup!$AI$7<>\"\",INDIRECT(\"'\" & Setup!$AI$7 & \"'!\" & AF42),0) + IF(Setup!$AI$8<>\"\",INDIRECT(\"'\" & Setup!$AI$8 & \"'!\" & AF42),0) + IF(Setup!$AI$9<>\"\",INDIRECT(\"'\" & Setup!$AI$9 & \"'!\" & AF42),0) + IF(Setup!$AI$10<>\"\",INDIRECT(\"'\" & Setup!$AI$10 & \"'!\" & AF42),0) + IF(Setup!$AI$11<>\"\",INDIRECT(\"'\" & Setup!$AI$11 & \"'!\" & AF42),0) + IF(Setup!$AI$12<>\"\",INDIRECT(\"'\" & Setup!$AI$12 & \"'!\" & AF42),0)","v":0},{"$f":"IF(Setup!$AJ$7<>\"\",INDIRECT(\"'\" & Setup!$AJ$7 & \"'!\" & AF42),0) + IF(Setup!$AJ$8<>\"\",INDIRECT(\"'\" & Setup!$AJ$8 & \"'!\" & AF42),0) + IF(Setup!$AJ$9<>\"\",INDIRECT(\"'\" & Setup!$AJ$9 & \"'!\" & AF42),0) + IF(Setup!$AJ$10<>\"\",INDIRECT(\"'\" & Setup!$AJ$10 & \"'!\" & AF42),0) + IF(Setup!$AJ$11<>\"\",INDIRECT(\"'\" & Setup!$AJ$11 & \"'!\" & AF42),0) + IF(Setup!$AJ$12<>\"\",INDIRECT(\"'\" & Setup!$AJ$12 & \"'!\" & AF42),0)","v":0},null,"",{"$nulls":3},{"$f":"IF(C42=0,\"\",LEFT(INDEX(Lists!$H$5:$H$49,MATCH(C42,Lists!$G$5:$G$49,0),1),1))","v":""},null,"","","","","","","","","","",{"$nulls":6},{"$f":"IF(Setup!$AG$7<>\"\",INDIRECT(\"'\" & Setup!$AG$7 & \"'!\" & AD42),0) + IF(Setup!$AG$8<>\"\",INDIRECT(\"'\" & Setup!$AG$8 & \"'!\" & AD42),0) + IF(Setup!$AG$9<>\"\",INDIRECT(\"'\" & Setup!$AG$9 & \"'!\" & AD42),0) + IF(Setup!$AG$10<>\"\",INDIRECT(\"'\" & Setup!$AG$10 & \"'!\" & AD42),0) + IF(Setup!$AG$11<>\"\",INDIRECT(\"'\" & Setup!$AG$11 & \"'!\" & AD42),0) + IF(Setup!$AG$12<>\"\",INDIRECT(\"'\" & Setup!$AG$12 & \"'!\" & AD42),0)","v":0},{"$f":"IF(Setup!$AG$7<>\"\",INDIRECT(\"'\" & Setup!$AG$7 & \"'!\" & AE42),0) + IF(Setup!$AG$8<>\"\",INDIRECT(\"'\" & Setup!$AG$8 & \"'!\" & AE42),0) + IF(Setup!$AG$9<>\"\",INDIRECT(\"'\" & Setup!$AG$9 & \"'!\" & AE42),0) + IF(Setup!$AG$10<>\"\",INDIRECT(\"'\" & Setup!$AG$10 & \"'!\" & AE42),0) + IF(Setup!$AG$11<>\"\",INDIRECT(\"'\" & Setup!$AG$11 & \"'!\" & AE42),0) + IF(Setup!$AG$12<>\"\",INDIRECT(\"'\" & Setup!$AG$12 & \"'!\" & AE42),0)","v":0},{"$f":"IF(Setup!$AH$7<>\"\",INDIRECT(\"'\" & Setup!$AH$7 & \"'!\" & AD42),0) + IF(Setup!$AH$8<>\"\",INDIRECT(\"'\" & Setup!$AH$8 & \"'!\" & AD42),0) + IF(Setup!$AH$9<>\"\",INDIRECT(\"'\" & Setup!$AH$9 & \"'!\" & AD42),0) + IF(Setup!$AH$10<>\"\",INDIRECT(\"'\" & Setup!$AH$10 & \"'!\" & AD42),0) + IF(Setup!$AH$11<>\"\",INDIRECT(\"'\" & Setup!$AH$11 & \"'!\" & AD42),0) + IF(Setup!$AH$12<>\"\",INDIRECT(\"'\" & Setup!$AH$12 & \"'!\" & AD42),0)","v":0},{"$f":"IF(Setup!$AH$7<>\"\",INDIRECT(\"'\" & Setup!$AH$7 & \"'!\" & AE42),0) + IF(Setup!$AH$8<>\"\",INDIRECT(\"'\" & Setup!$AH$8 & \"'!\" & AE42),0) + IF(Setup!$AH$9<>\"\",INDIRECT(\"'\" & Setup!$AH$9 & \"'!\" & AE42),0) + IF(Setup!$AH$10<>\"\",INDIRECT(\"'\" & Setup!$AH$10 & \"'!\" & AE42),0) + IF(Setup!$AH$11<>\"\",INDIRECT(\"'\" & Setup!$AH$11 & \"'!\" & AE42),0) + IF(Setup!$AH$12<>\"\",INDIRECT(\"'\" & Setup!$AH$12 & \"'!\" & AE42),0)","v":0},{"$f":"IF(Setup!$AI$7<>\"\",INDIRECT(\"'\" & Setup!$AI$7 & \"'!\" & AD42),0) + IF(Setup!$AI$8<>\"\",INDIRECT(\"'\" & Setup!$AI$8 & \"'!\" & AD42),0) + IF(Setup!$AI$9<>\"\",INDIRECT(\"'\" & Setup!$AI$9 & \"'!\" & AD42),0) + IF(Setup!$AI$10<>\"\",INDIRECT(\"'\" & Setup!$AI$10 & \"'!\" & AD42),0) + IF(Setup!$AI$11<>\"\",INDIRECT(\"'\" & Setup!$AI$11 & \"'!\" & AD42),0) + IF(Setup!$AI$12<>\"\",INDIRECT(\"'\" & Setup!$AI$12 & \"'!\" & AD42),0)","v":0},{"$f":"IF(Setup!$AI$7<>\"\",INDIRECT(\"'\" & Setup!$AI$7 & \"'!\" & AE42),0) + IF(Setup!$AI$8<>\"\",INDIRECT(\"'\" & Setup!$AI$8 & \"'!\" & AE42),0) + IF(Setup!$AI$9<>\"\",INDIRECT(\"'\" & Setup!$AI$9 & \"'!\" & AE42),0) + IF(Setup!$AI$10<>\"\",INDIRECT(\"'\" & Setup!$AI$10 & \"'!\" & AE42),0) + IF(Setup!$AI$11<>\"\",INDIRECT(\"'\" & Setup!$AI$11 & \"'!\" & AE42),0) + IF(Setup!$AI$12<>\"\",INDIRECT(\"'\" & Setup!$AI$12 & \"'!\" & AE42),0)","v":0},{"$f":"IF(Setup!$AJ$7<>\"\",INDIRECT(\"'\" & Setup!$AJ$7 & \"'!\" & AD42),0) + IF(Setup!$AJ$8<>\"\",INDIRECT(\"'\" & Setup!$AJ$8 & \"'!\" & AD42),0) + IF(Setup!$AJ$9<>\"\",INDIRECT(\"'\" & Setup!$AJ$9 & \"'!\" & AD42),0) + IF(Setup!$AJ$10<>\"\",INDIRECT(\"'\" & Setup!$AJ$10 & \"'!\" & AD42),0) + IF(Setup!$AJ$11<>\"\",INDIRECT(\"'\" & Setup!$AJ$11 & \"'!\" & AD42),0) + IF(Setup!$AJ$12<>\"\",INDIRECT(\"'\" & Setup!$AJ$12 & \"'!\" & AD42),0)","v":0},{"$f":"IF(Setup!$AJ$7<>\"\",INDIRECT(\"'\" & Setup!$AJ$7 & \"'!\" & AE42),0) + IF(Setup!$AJ$8<>\"\",INDIRECT(\"'\" & Setup!$AJ$8 & \"'!\" & AE42),0) + IF(Setup!$AJ$9<>\"\",INDIRECT(\"'\" & Setup!$AJ$9 & \"'!\" & AE42),0) + IF(Setup!$AJ$10<>\"\",INDIRECT(\"'\" & Setup!$AJ$10 & \"'!\" & AE42),0) + IF(Setup!$AJ$11<>\"\",INDIRECT(\"'\" & Setup!$AJ$11 & \"'!\" & AE42),0) + IF(Setup!$AJ$12<>\"\",INDIRECT(\"'\" & Setup!$AJ$12 & \"'!\" & AE42),0)","v":0}]
[{"$f":"Planning!A26","v":"I018"},{"$f":"Planning!B26","v":0},{"$f":"Planning!C26","v":0},{"$f":"Planning!D26","v":0},{"$f":"Planning!E26","v":0},{"$f":"Planning!G26","v":0},null,0,0,{"$f":"IF(AND($AR43=\"2\",$AB42<>Lists!$A$17),AU43,AT43)","v":""},"",0,0,{"$f":"IF(AND($AR43=\"2\",$AB43<>Lists!$A$17),AW43,AV43)","v":""},"",0,0,{"$f":"IF(AND($AR43=\"2\",$AB43<>Lists!$A$17),AY43,AX43)","v":""},"",0,0,{"$f":"IF(AND($AR43=\"2\",$AB43<>Lists!$A$17),BA43,AZ43)","v":""},"",0,0,{"$f":"IF(AND($AR43=\"2\",$AB43<>Lists!$A$17),BC43,BB43)","v":""},"",{"$f":"Planning!H26","v":0},"00","H42","J42","I42","",null,{"$f":"IF(Setup!$AG$7<>\"\",INDIRECT(\"'\" & Setup!$AG$7 & \"'!\" & AF43),0) + IF(Setup!$AG$8<>\"\",INDIRECT(\"'\" & Setup!$AG$8 & \"'!\" & AF43),0) + IF(Setup!$AG$9<>\"\",INDIRECT(\"'\" & Setup!$AG$9 & \"'!\" & AF43),0) + IF(Setup!$AG$10<>\"\",INDIRECT(\"'\" & Setup!$AG$10 & \"'!\" & AF43),0) + IF(Setup!$AG$11<>\"\",INDIRECT(\"'\" & Setup!$AG$11 & \"'!\" & AF43),0) + IF(Setup!$AG$12<>\"\",INDIRECT(\"'\" & Setup!$AG$12 & \"'!\" & AF43),0)","v":0},{"$f":"IF(Setup!$AH$7<>\"\",INDIRECT(\"'\" & Setup!$AH$7 & \"'!\" & AF43),0) + IF(Setup!$AH$8<>\"\",INDIRECT(\"'\" & Setup!$AH$8 & \"'!\" & AF43),0) + IF(Setup!$AH$9<>\"\",INDIRECT(\"'\" & Setup!$AH$9 & \"'!\" & AF43),0) + IF(Setup!$AH$10<>\"\",INDIRECT(\"'\" & Setup!$AH$10 & \"'!\" & AF43),0) + IF(Setup!$AH$11<>\"\",INDIRECT(\"'\" & Setup!$AH$11 & \"'!\" & AF43),0) + IF(Setup!$AH$12<>\"\",INDIRECT(\"'\" & Setup!$AH$12 & \"'!\" & AF43),0)","v":0},{"$f":"IF(Setup!$AI$7<>\"\",INDIRECT(\"'\" & Setup!$AI$7 & \"'!\" & AF43),0) + IF(Setup!$AI$8<>\"\",INDIRECT(\"'\" & Setup!$AI$8 & \"'!\" & AF43),0) + IF(Setup!$AI$9<>\"\",INDIRECT(\"'\" & Setup!$AI$9 & \"'!\" & AF43),0) + IF(Setup!$AI$10<>\"\",INDIRECT(\"'\" & Setup!$AI$10 & \"'!\" & AF43),0) + IF(Setup!$AI$11<>\"\",INDIRECT(\"'\" & Setup!$AI$11 & \"'!\" & AF43),0) + IF(Setup!$AI$12<>\"\",INDIRECT(\"'\" & Setup!$AI$12 & \"'!\" & AF43),0)","v":0},{"$f":"IF(Setup!$AJ$7<>\"\",INDIRECT(\"'\" & Setup!$AJ$7 & \"'!\" & AF43),0) + IF(Setup!$AJ$8<>\"\",INDIRECT(\"'\" & Setup!$AJ$8 & \"'!\" & AF43),0) + IF(Setup!$AJ$9<>\"\",INDIRECT(\"'\" & Setup!$AJ$9 & \"'!\" & AF43),0) + IF(Setup!$AJ$10<>\"\",INDIRECT(\"'\" & Setup!$AJ$10 & \"'!\" & AF43),0) + IF(Setup!$AJ$11<>\"\",INDIRECT(\"'\" & Setup!$AJ$11 & \"'!\" & AF43),0) + IF(Setup!$AJ$12<>\"\",INDIRECT(\"'\" & Setup!$AJ$12 & \"'!\" & AF43),0)","v":0},null,"",{"$nulls":3},{"$f":"IF(C43=0,\"\",LEFT(INDEX(Lists!$H$5:$H$49,MATCH(C43,Lists!$G$5:$G$49,0),1),1))","v":""},null,"","","","","","","","","","",{"$nulls":6},{"$f":"IF(Setup!$AG$7<>\"\",INDIRECT(\"'\" & Setup!$AG$7 & \"'!\" & AD43),0) + IF(Setup!$AG$8<>\"\",INDIRECT(\"'\" & Setup!$AG$8 & \"'!\" & AD43),0) + IF(Setup!$AG$9<>\"\",INDIRECT(\"'\" & Setup!$AG$9 & \"'!\" & AD43),0) + IF(Setup!$AG$10<>\"\",INDIRECT(\"'\" & Setup!$AG$10 & \"'!\" & AD43),0) + IF(Setup!$AG$11<>\"\",INDIRECT(\"'\" & Setup!$AG$11 & \"'!\" & AD43),0) + IF(Setup!$AG$12<>\"\",INDIRECT(\"'\" & Setup!$AG$12 & \"'!\" & AD43),0)","v":0},{"$f":"IF(Setup!$AG$7<>\"\",INDIRECT(\"'\" & Setup!$AG$7 & \"'!\" & AE43),0) + IF(Setup!$AG$8<>\"\",INDIRECT(\"'\" & Setup!$AG$8 & \"'!\" & AE43),0) + IF(Setup!$AG$9<>\"\",INDIRECT(\"'\" & Setup!$AG$9 & \"'!\" & AE43),0) + IF(Setup!$AG$10<>\"\",INDIRECT(\"'\" & Setup!$AG$10 & \"'!\" & AE43),0) + IF(Setup!$AG$11<>\"\",INDIRECT(\"'\" & Setup!$AG$11 & \"'!\" & AE43),0) + IF(Setup!$AG$12<>\"\",INDIRECT(\"'\" & Setup!$AG$12 & \"'!\" & AE43),0)","v":0},{"$f":"IF(Setup!$AH$7<>\"\",INDIRECT(\"'\" & Setup!$AH$7 & \"'!\" & AD43),0) + IF(Setup!$AH$8<>\"\",INDIRECT(\"'\" & Setup!$AH$8 & \"'!\" & AD43),0) + IF(Setup!$AH$9<>\"\",INDIRECT(\"'\" & Setup!$AH$9 & \"'!\" & AD43),0) + IF(Setup!$AH$10<>\"\",INDIRECT(\"'\" & Setup!$AH$10 & \"'!\" & AD43),0) + IF(Setup!$AH$11<>\"\",INDIRECT(\"'\" & Setup!$AH$11 & \"'!\" & AD43),0) + IF(Setup!$AH$12<>\"\",INDIRECT(\"'\" & Setup!$AH$12 & \"'!\" & AD43),0)","v":0},{"$f":"IF(Setup!$AH$7<>\"\",INDIRECT(\"'\" & Setup!$AH$7 & \"'!\" & AE43),0) + IF(Setup!$AH$8<>\"\",INDIRECT(\"'\" & Setup!$AH$8 & \"'!\" & AE43),0) + IF(Setup!$AH$9<>\"\",INDIRECT(\"'\" & Setup!$AH$9 & \"'!\" & AE43),0) + IF(Setup!$AH$10<>\"\",INDIRECT(\"'\" & Setup!$AH$10 & \"'!\" & AE43),0) + IF(Setup!$AH$11<>\"\",INDIRECT(\"'\" & Setup!$AH$11 & \"'!\" & AE43),0) + IF(Setup!$AH$12<>\"\",INDIRECT(\"'\" & Setup!$AH$12 & \"'!\" & AE43),0)","v":0},{"$f":"IF(Setup!$AI$7<>\"\",INDIRECT(\"'\" & Setup!$AI$7 & \"'!\" & AD43),0) + IF(Setup!$AI$8<>\"\",INDIRECT(\"'\" & Setup!$AI$8 & \"'!\" & AD43),0) + IF(Setup!$AI$9<>\"\",INDIRECT(\"'\" & Setup!$AI$9 & \"'!\" & AD43),0) + IF(Setup!$AI$10<>\"\",INDIRECT(\"'\" & Setup!$AI$10 & \"'!\" & AD43),0) + IF(Setup!$AI$11<>\"\",INDIRECT(\"'\" & Setup!$AI$11 & \"'!\" & AD43),0) + IF(Setup!$AI$12<>\"\",INDIRECT(\"'\" & Setup!$AI$12 & \"'!\" & AD43),0)","v":0},{"$f":"IF(Setup!$AI$7<>\"\",INDIRECT(\"'\" & Setup!$AI$7 & \"'!\" & AE43),0) + IF(Setup!$AI$8<>\"\",INDIRECT(\"'\" & Setup!$AI$8 & \"'!\" & AE43),0) + IF(Setup!$AI$9<>\"\",INDIRECT(\"'\" & Setup!$AI$9 & \"'!\" & AE43),0) + IF(Setup!$AI$10<>\"\",INDIRECT(\"'\" & Setup!$AI$10 & \"'!\" & AE43),0) + IF(Setup!$AI$11<>\"\",INDIRECT(\"'\" & Setup!$AI$11 & \"'!\" & AE43),0) + IF(Setup!$AI$12<>\"\",INDIRECT(\"'\" & Setup!$AI$12 & \"'!\" & AE43),0)","v":0},{"$f":"IF(Setup!$AJ$7<>\"\",INDIRECT(\"'\" & Setup!$AJ$7 & \"'!\" & AD43),0) + IF(Setup!$AJ$8<>\"\",INDIRECT(\"'\" & Setup!$AJ$8 & \"'!\" & AD43),0) + IF(Setup!$AJ$9<>\"\",INDIRECT(\"'\" & Setup!$AJ$9 & \"'!\" & AD43),0) + IF(Setup!$AJ$10<>\"\",INDIRECT(\"'\" & Setup!$AJ$10 & \"'!\" & AD43),0) + IF(Setup!$AJ$11<>\"\",INDIRECT(\"'\" & Setup!$AJ$11 & \"'!\" & AD43),0) + IF(Setup!$AJ$12<>\"\",INDIRECT(\"'\" & Setup!$AJ$12 & \"'!\" & AD43),0)","v":0},{"$f":"IF(Setup!$AJ$7<>\"\",INDIRECT(\"'\" & Setup!$AJ$7 & \"'!\" & AE43),0) + IF(Setup!$AJ$8<>\"\",INDIRECT(\"'\" & Setup!$AJ$8 & \"'!\" & AE43),0) + IF(Setup!$AJ$9<>\"\",INDIRECT(\"'\" & Setup!$AJ$9 & \"'!\" & AE43),0) + IF(Setup!$AJ$10<>\"\",INDIRECT(\"'\" & Setup!$AJ$10 & \"'!\" & AE43),0) + IF(Setup!$AJ$11<>\"\",INDIRECT(\"'\" & Setup!$AJ$11 & \"'!\" & AE43),0) + IF(Setup!$AJ$12<>\"\",INDIRECT(\"'\" & Setup!$AJ$12 & \"'!\" & AE43),0)","v":0}]
[{"$f":"Planning!A27","v":"I019"},{"$f":"Planning!B27","v":0},{"$f":"Planning!C27","v":0},{"$f":"Planning!D27","v":0},{"$f":"Planning!E27","v":0},{"$f":"Planning!G27","v":0},null,0,0,{"$f":"IF(AND($AR44=\"2\",$AB43<>Lists!$A$17),AU44,AT44)","v":""},"",0,0,{"$f":"IF(AND($AR44=\"2\",$AB44<>Lists!$A$17),AW44,AV44)","v":""},"",0,0,{"$f":"IF(AND($AR44=\"2\",$AB44<>Lists!$A$17),AY44,AX44)","v":""},"",0,0,{"$f":"IF(AND($AR44=\"2\",$AB44<>Lists!$A$17),BA44,AZ44)","v":""},"",0,0,{"$f":"IF(AND($AR44=\"2\",$AB44<>Lists!$A$17),BC44,BB44)","v":""},"",{"$f":"Planning!H27","v":0},"00","H43","J43","I43","",null,{"$f":"IF(Setup!$AG$7<>\"\",INDIRECT(\"'\" & Setup!$AG$7 & \"'!\" & AF44),0) + IF(Setup!$AG$8<>\"\",INDIRECT(\"'\" & Setup!$AG$8 & \"'!\" & AF44),0) + IF(Setup!$AG$9<>\"\",INDIRECT(\"'\" & Setup!$AG$9 & \"'!\" & AF44),0) + IF(Setup!$AG$10<>\"\",INDIRECT(\"'\" & Setup!$AG$10 & \"'!\" & AF44),0) + IF(Setup!$AG$11<>\"\",INDIRECT(\"'\" & Setup!$AG$11 & \"'!\" & AF44),0) + IF(Setup!$AG$12<>\"\",INDIRECT(\"'\" & Setup!$AG$12 & \"'!\" & AF44),0)","v":0},{"$f":"IF(Setup!$AH$7<>\"\",INDIRECT(\"'\" & Setup!$AH$7 & \"'!\" & AF44),0) + IF(Setup!$AH$8<>\"\",INDIRECT(\"'\" & Setup!$AH$8 & \"'!\" & AF44),0) + IF(Setup!$AH$9<>\"\",INDIRECT(\"'\" & Setup!$AH$9 & \"'!\" & AF44),0) + IF(Setup!$AH$10<>\"\",INDIRECT(\"'\" & Setup!$AH$10 & \"'!\" & AF44),0) + IF(Setup!$AH$11<>\"\",INDIRECT(\"'\" & Setup!$AH$11 & \"'!\" & AF44),0) + IF(Setup!$AH$12<>\"\",INDIRECT(\"'\" & Setup!$AH$12 & \"'!\" & AF44),0)","v":0},{"$f":"IF(Setup!$AI$7<>\"\",INDIRECT(\"'\" & Setup!$AI$7 & \"'!\" & AF44),0) + IF(Setup!$AI$8<>\"\",INDIRECT(\"'\" & Setup!$AI$8 & \"'!\" & AF44),0) + IF(Setup!$AI$9<>\"\",INDIRECT(\"'\" & Setup!$AI$9 & \"'!\" & AF44),0) + IF(Setup!$AI$10<>\"\",INDIRECT(\"'\" & Setup!$AI$10 & \"'!\" & AF44),0) + IF(Setup!$AI$11<>\"\",INDIRECT(\"'\" & Setup!$AI$11 & \"'!\" & AF44),0) + IF(Setup!$AI$12<>\"\",INDIRECT(\"'\" & Setup!$AI$12 & \"'!\" & AF44),0)","v":0},{"$f":"IF(Setup!$AJ$7<>\"\",INDIRECT(\"'\" & Setup!$AJ$7 & \"'!\" & AF44),0) + IF(Setup!$AJ$8<>\"\",INDIRECT(\"'\" & Setup!$AJ$8 & \"'!\" & AF44),0) + IF(Setup!$AJ$9<>\"\",INDIRECT(\"'\" & Setup!$AJ$9 & \"'!\" & AF44),0) + IF(Setup!$AJ$10<>\"\",INDIRECT(\"'\" & Setup!$AJ$10 & \"'!\" & AF44),0) + IF(Setup!$AJ$11<>\"\",INDIRECT(\"'\" & Setup!$AJ$11 & \"'!\" & AF44),0) + IF(Setup!$AJ$12<>\"\",INDIRECT(\"'\" & Setup!$AJ$12 & \"'!\" & AF44),0)","v":0},null,"",{"$nulls":3},{"$f":"IF(C44=0,\"\",LEFT(INDEX(Lists!$H$5:$H$49,MATCH(C44,Lists!$G$5:$G$49,0),1),1))","v":""},null,"","","","","","","","","","",{"$nulls":6},{"$f":"IF(Setup!$AG$7<>\"\",INDIRECT(\"'\" & Setup!$AG$7 & \"'!\" & AD44),0) + IF(Setup!$AG$8<>\"\",INDIRECT(\"'\" & Setup!$AG$8 & \"'!\" & AD44),0) + IF(Setup!$AG$9<>\"\",INDIRECT(\"'\" & Setup!$AG$9 & \"'!\" & AD44),0) + IF(Setup!$AG$10<>\"\",INDIRECT(\"'\" & Setup!$AG$10 & \"'!\" & AD44),0) + IF(Setup!$AG$11<>\"\",INDIRECT(\"'\" & Setup!$AG$11 & \"'!\" & AD44),0) + IF(Setup!$AG$12<>\"\",INDIRECT(\"'\" & Setup!$AG$12 & \"'!\" & AD44),0)","v":0},{"$f":"IF(Setup!$AG$7<>\"\",INDIRECT(\"'\" & Setup!$AG$7 & \"'!\" & AE44),0) + IF(Setup!$AG$8<>\"\",INDIRECT(\"'\" & Setup!$AG$8 & \"'!\" & AE44),0) + IF(Setup!$AG$9<>\"\",INDIRECT(\"'\" & Setup!$AG$9 & \"'!\" & AE44),0) + IF(Setup!$AG$10<>\"\",INDIRECT(\"'\" & Setup!$AG$10 & \"'!\" & AE44),0) + IF(Setup!$AG$11<>\"\",INDIRECT(\"'\" & Setup!$AG$11 & \"'!\" & AE44),0) + IF(Setup!$AG$12<>\"\",INDIRECT(\"'\" & Setup!$AG$12 & \"'!\" & AE44),0)","v":0},{"$f":"IF(Setup!$AH$7<>\"\",INDIRECT(\"'\" & Setup!$AH$7 & \"'!\" & AD44),0) + IF(Setup!$AH$8<>\"\",INDIRECT(\"'\" & Setup!$AH$8 & \"'!\" & AD44),0) + IF(Setup!$AH$9<>\"\",INDIRECT(\"'\" & Setup!$AH$9 & \"'!\" & AD44),0) + IF(Setup!$AH$10<>\"\",INDIRECT(\"'\" & Setup!$AH$10 & \"'!\" & AD44),0) + IF(Setup!$AH$11<>\"\",INDIRECT(\"'\" & Setup!$AH$11 & \"'!\" & AD44),0) + IF(Setup!$AH$12<>\"\",INDIRECT(\"'\" & Setup!$AH$12 & \"'!\" & AD44),0)","v":0},{"$f":"IF(Setup!$AH$7<>\"\",INDIRECT(\"'\" & Setup!$AH$7 & \"'!\" & AE44),0) + IF(Setup!$AH$8<>\"\",INDIRECT(\"'\" & Setup!$AH$8 & \"'!\" & AE44),0) + IF(Setup!$AH$9<>\"\",INDIRECT(\"'\" & Setup!$AH$9 & \"'!\" & AE44),0) + IF(Setup!$AH$10<>\"\",INDIRECT(\"'\" & Setup!$AH$10 & \"'!\" & AE44),0) + IF(Setup!$AH$11<>\"\",INDIRECT(\"'\" & Setup!$AH$11 & \"'!\" & AE44),0) + IF(Setup!$AH$12<>\"\",INDIRECT(\"'\" & Setup!$AH$12 & \"'!\" & AE44),0)","v":0},{"$f":"IF(Setup!$AI$7<>\"\",INDIRECT(\"'\" & Setup!$AI$7 & \"'!\" & AD44),0) + IF(Setup!$AI$8<>\"\",INDIRECT(\"'\" & Setup!$AI$8 & \"'!\" & AD44),0) + IF(Setup!$AI$9<>\"\",INDIRECT(\"'\" & Setup!$AI$9 & \"'!\" & AD44),0) + IF(Setup!$AI$10<>\"\",INDIRECT(\"'\" & Setup!$AI$10 & \"'!\" & AD44),0) + IF(Setup!$AI$11<>\"\",INDIRECT(\"'\" & Setup!$AI$11 & \"'!\" & AD44),0) + IF(Setup!$AI$12<>\"\",INDIRECT(\"'\" & Setup!$AI$12 & \"'!\" & AD44),0)","v":0},{"$f":"IF(Setup!$AI$7<>\"\",INDIRECT(\"'\" & Setup!$AI$7 & \"'!\" & AE44),0) + IF(Setup!$AI$8<>\"\",INDIRECT(\"'\" & Setup!$AI$8 & \"'!\" & AE44),0) + IF(Setup!$AI$9<>\"\",INDIRECT(\"'\" & Setup!$AI$9 & \"'!\" & AE44),0) + IF(Setup!$AI$10<>\"\",INDIRECT(\"'\" & Setup!$AI$10 & \"'!\" & AE44),0) + IF(Setup!$AI$11<>\"\",INDIRECT(\"'\" & Setup!$AI$11 & \"'!\" & AE44),0) + IF(Setup!$AI$12<>\"\",INDIRECT(\"'\" & Setup!$AI$12 & \"'!\" & AE44),0)","v":0},{"$f":"IF(Setup!$AJ$7<>\"\",INDIRECT(\"'\" & Setup!$AJ$7 & \"'!\" & AD44),0) + IF(Setup!$AJ$8<>\"\",INDIRECT(\"'\" & Setup!$AJ$8 & \"'!\" & AD44),0) + IF(Setup!$AJ$9<>\"\",INDIRECT(\"'\" & Setup!$AJ$9 & \"'!\" & AD44),0) + IF(Setup!$AJ$10<>\"\",INDIRECT(\"'\" & Setup!$AJ$10 & \"'!\" & AD44),0) + IF(Setup!$AJ$11<>\"\",INDIRECT(\"'\" & Setup!$AJ$11 & \"'!\" & AD44),0) + IF(Setup!$AJ$12<>\"\",INDIRECT(\"'\" & Setup!$AJ$12 & \"'!\" & AD44),0)","v":0},{"$f":"IF(Setup!$AJ$7<>\"\",INDIRECT(\"'\" & Setup!$AJ$7 & \"'!\" & AE44),0) + IF(Setup!$AJ$8<>\"\",INDIRECT(\"'\" & Setup!$AJ$8 & \"'!\" & AE44),0) + IF(Setup!$AJ$9<>\"\",INDIRECT(\"'\" & Setup!$AJ$9 & \"'!\" & AE44),0) + IF(Setup!$AJ$10<>\"\",INDIRECT(\"'\" & Setup!$AJ$10 & \"'!\" & AE44),0) + IF(Setup!$AJ$11<>\"\",INDIRECT(\"'\" & Setup!$AJ$11 & \"'!\" & AE44),0) + IF(Setup!$AJ$12<>\"\",INDIRECT(\"'\" & Setup!$AJ$12 & \"'!\" & AE44),0)","v":0}]
[{"$f":"Planning!A28","v":"I020"},{"$f":"Planning!B28","v":0},{"$f":"Planning!C28","v":0},{"$f":"Planning!D28","v":0},{"$f":"Planning!E28","v":0},{"$f":"Planning!G28","v":0},null,0,0,{"$f":"IF(AND($AR45=\"2\",$AB44<>Lists!$A$17),AU45,AT45)","v":""},"",0,0,{"$f":"IF(AND($AR45=\"2\",$AB45<>Lists!$A$17),AW45,AV45)","v":""},"",0,0,{"$f":"IF(AND($AR45=\"2\",$AB45<>Lists!$A$17),AY45,AX45)","v":""},"",0,0,{"$f":"IF(AND($AR45=\"2\",$AB45<>Lists!$A$17),BA45,AZ45)","v":""},"",0,0,{"$f":"IF(AND($AR45=\"2\",$AB45<>Lists!$A$17),BC45,BB45)","v":""},"",{"$f":"Planning!H28","v":0},"00","H44","J44","I44","",null,{"$f":"IF(Setup!$AG$7<>\"\",INDIRECT(\"'\" & Setup!$AG$7 & \"'!\" & AF45),0) + IF(Setup!$AG$8<>\"\",INDIRECT(\"'\" & Setup!$AG$8 & \"'!\" & AF45),0) + IF(Setup!$AG$9<>\"\",INDIRECT(\"'\" & Setup!$AG$9 & \"'!\" & AF45),0) + IF(Setup!$AG$10<>\"\",INDIRECT(\"'\" & Setup!$AG$10 & \"'!\" & AF45),0) + IF(Setup!$AG$11<>\"\",INDIRECT(\"'\" & Setup!$AG$11 & \"'!\" & AF45),0) + IF(Setup!$AG$12<>\"\",INDIRECT(\"'\" & Setup!$AG$12 & \"'!\" & AF45),0)","v":0},{"$f":"IF(Setup!$AH$7<>\"\",INDIRECT(\"'\" & Setup!$AH$7 & \"'!\" & AF45),0) + IF(Setup!$AH$8<>\"\",INDIRECT(\"'\" & Setup!$AH$8 & \"'!\" & AF45),0) + IF(Setup!$AH$9<>\"\",INDIRECT(\"'\" & Setup!$AH$9 & \"'!\" & AF45),0) + IF(Setup!$AH$10<>\"\",INDIRECT(\"'\" & Setup!$AH$10 & \"'!\" & AF45),0) + IF(Setup!$AH$11<>\"\",INDIRECT(\"'\" & Setup!$AH$11 & \"'!\" & AF45),0) + IF(Setup!$AH$12<>\"\",INDIRECT(\"'\" & Setup!$AH$12 & \"'!\" & AF45),0)","v":0},{"$f":"IF(Setup!$AI$7<>\"\",INDIRECT(\"'\" & Setup!$AI$7 & \"'!\" & AF45),0) + IF(Setup!$AI$8<>\"\",INDIRECT(\"'\" & Setup!$AI$8 & \"'!\" & AF45),0) + IF(Setup!$AI$9<>\"\",INDIRECT(\"'\" & Setup!$AI$9 & \"'!\" & AF45),0) + IF(Setup!$AI$10<>\"\",INDIRECT(\"'\" & Setup!$AI$10 & \"'!\" & AF45),0) + IF(Setup!$AI$11<>\"\",INDIRECT(\"'\" & Setup!$AI$11 & \"'!\" & AF45),0) + IF(Setup!$AI$12<>\"\",INDIRECT(\"'\" & Setup!$AI$12 & \"'!\" & AF45),0)","v":0},{"$f":"IF(Setup!$AJ$7<>\"\",INDIRECT(\"'\" & Setup!$AJ$7 & \"'!\" & AF45),0) + IF(Setup!$AJ$8<>\"\",INDIRECT(\"'\" & Setup!$AJ$8 & \"'!\" & AF45),0) + IF(Setup!$AJ$9<>\"\",INDIRECT(\"'\" & Setup!$AJ$9 & \"'!\" & AF45),0) + IF(Setup!$AJ$10<>\"\",INDIRECT(\"'\" & Setup!$AJ$10 & \"'!\" & AF45),0) + IF(Setup!$AJ$11<>\"\",INDIRECT(\"'\" & Setup!$AJ$11 & \"'!\" & AF45),0) + IF(Setup!$AJ$12<>\"\",INDIRECT(\"'\" & Setup!$AJ$12 & \"'!\" & AF45),0)","v":0},null,"",{"$nulls":3},{"$f":"IF(C45=0,\"\",LEFT(INDEX(Lists!$H$5:$H$49,MATCH(C45,Lists!$G$5:$G$49,0),1),1))","v":""},null,"","","","","","","","","","",{"$nulls":6},{"$f":"IF(Setup!$AG$7<>\"\",INDIRECT(\"'\" & Setup!$AG$7 & \"'!\" & AD45),0) + IF(Setup!$AG$8<>\"\",INDIRECT(\"'\" & Setup!$AG$8 & \"'!\" & AD45),0) + IF(Setup!$AG$9<>\"\",INDIRECT(\"'\" & Setup!$AG$9 & \"'!\" & AD45),0) + IF(Setup!$AG$10<>\"\",INDIRECT(\"'\" & Setup!$AG$10 & \"'!\" & AD45),0) + IF(Setup!$AG$11<>\"\",INDIRECT(\"'\" & Setup!$AG$11 & \"'!\" & AD45),0) + IF(Setup!$AG$12<>\"\",INDIRECT(\"'\" & Setup!$AG$12 & \"'!\" & AD45),0)","v":0},{"$f":"IF(Setup!$AG$7<>\"\",INDIRECT(\"'\" & Setup!$AG$7 & \"'!\" & AE45),0) + IF(Setup!$AG$8<>\"\",INDIRECT(\"'\" & Setup!$AG$8 & \"'!\" & AE45),0) + IF(Setup!$AG$9<>\"\",INDIRECT(\"'\" & Setup!$AG$9 & \"'!\" & AE45),0) + IF(Setup!$AG$10<>\"\",INDIRECT(\"'\" & Setup!$AG$10 & \"'!\" & AE45),0) + IF(Setup!$AG$11<>\"\",INDIRECT(\"'\" & Setup!$AG$11 & \"'!\" & AE45),0) + IF(Setup!$AG$12<>\"\",INDIRECT(\"'\" & Setup!$AG$12 & \"'!\" & AE45),0)","v":0},{"$f":"IF(Setup!$AH$7<>\"\",INDIRECT(\"'\" & Setup!$AH$7 & \"'!\" & AD45),0) + IF(Setup!$AH$8<>\"\",INDIRECT(\"'\" & Setup!$AH$8 & \"'!\" & AD45),0) + IF(Setup!$AH$9<>\"\",INDIRECT(\"'\" & Setup!$AH$9 & \"'!\" & AD45),0) + IF(Setup!$AH$10<>\"\",INDIRECT(\"'\" & Setup!$AH$10 & \"'!\" & AD45),0) + IF(Setup!$AH$11<>\"\",INDIRECT(\"'\" & Setup!$AH$11 & \"'!\" & AD45),0) + IF(Setup!$AH$12<>\"\",INDIRECT(\"'\" & Setup!$AH$12 & \"'!\" & AD45),0)","v":0},{"$f":"IF(Setup!$AH$7<>\"\",INDIRECT(\"'\" & Setup!$AH$7 & \"'!\" & AE45),0) + IF(Setup!$AH$8<>\"\",INDIRECT(\"'\" & Setup!$AH$8 & \"'!\" & AE45),0) + IF(Setup!$AH$9<>\"\",INDIRECT(\"'\" & Setup!$AH$9 & \"'!\" & AE45),0) + IF(Setup!$AH$10<>\"\",INDIRECT(\"'\" & Setup!$AH$10 & \"'!\" & AE45),0) + IF(Setup!$AH$11<>\"\",INDIRECT(\"'\" & Setup!$AH$11 & \"'!\" & AE45),0) + IF(Setup!$AH$12<>\"\",INDIRECT(\"'\" & Setup!$AH$12 & \"'!\" & AE45),0)","v":0},{"$f":"IF(Setup!$AI$7<>\"\",INDIRECT(\"'\" & Setup!$AI$7 & \"'!\" & AD45),0) + IF(Setup!$AI$8<>\"\",INDIRECT(\"'\" & Setup!$AI$8 & \"'!\" & AD45),0) + IF(Setup!$AI$9<>\"\",INDIRECT(\"'\" & Setup!$AI$9 & \"'!\" & AD45),0) + IF(Setup!$AI$10<>\"\",INDIRECT(\"'\" & Setup!$AI$10 & \"'!\" & AD45),0) + IF(Setup!$AI$11<>\"\",INDIRECT(\"'\" & Setup!$AI$11 & \"'!\" & AD45),0) + IF(Setup!$AI$12<>\"\",INDIRECT(\"'\" & Setup!$AI$12 & \"'!\" & AD45),0)","v":0},{"$f":"IF(Setup!$AI$7<>\"\",INDIRECT(\"'\" & Setup!$AI$7 & \"'!\" & AE45),0) + IF(Setup!$AI$8<>\"\",INDIRECT(\"'\" & Setup!$AI$8 & \"'!\" & AE45),0) + IF(Setup!$AI$9<>\"\",INDIRECT(\"'\" & Setup!$AI$9 & \"'!\" & AE45),0) + IF(Setup!$AI$10<>\"\",INDIRECT(\"'\" & Setup!$AI$10 & \"'!\" & AE45),0) + IF(Setup!$AI$11<>\"\",INDIRECT(\"'\" & Setup!$AI$11 & \"'!\" & AE45),0) + IF(Setup!$AI$12<>\"\",INDIRECT(\"'\" & Setup!$AI$12 & \"'!\" & AE45),0)","v":0},{"$f":"IF(Setup!$AJ$7<>\"\",INDIRECT(\"'\" & Setup!$AJ$7 & \"'!\" & AD45),0) + IF(Setup!$AJ$8<>\"\",INDIRECT(\"'\" & Setup!$AJ$8 & \"'!\" & AD45),0) + IF(Setup!$AJ$9<>\"\",INDIRECT(\"'\" & Setup!$AJ$9 & \"'!\" & AD45),0) + IF(Setup!$AJ$10<>\"\",INDIRECT(\"'\" & Setup!$AJ$10 & \"'!\" & AD45),0) + IF(Setup!$AJ$11<>\"\",INDIRECT(\"'\" & Setup!$AJ$11 & \"'!\" & AD45),0) + IF(Setup!$AJ$12<>\"\",INDIRECT(\"'\" & Setup!$AJ$12 & \"'!\" & AD45),0)","v":0},{"$f":"IF(Setup!$AJ$7<>\"\",INDIRECT(\"'\" & Setup!$AJ$7 & \"'!\" & AE45),0) + IF(Setup!$AJ$8<>\"\",INDIRECT(\"'\" & Setup!$AJ$8 & \"'!\" & AE45),0) + IF(Setup!$AJ$9<>\"\",INDIRECT(\"'\" & Setup!$AJ$9 & \"'!\" & AE45),0) + IF(Setup!$AJ$10<>\"\",INDIRECT(\"'\" & Setup!$AJ$10 & \"'!\" & AE45),0) + IF(Setup!$AJ$11<>\"\",INDIRECT(\"'\" & Setup!$AJ$11 & \"'!\" & AE45),0) + IF(Setup!$AJ$12<>\"\",INDIRECT(\"'\" & Setup!$AJ$12 & \"'!\" & AE45),0)","v":0}]
[{"$f":"Planning!A29","v":"I021"},{"$f":"Planning!B29","v":0},{"$f":"Planning!C29","v":0},{"$f":"Planning!D29","v":0},{"$f":"Planning!E29","v":0},{"$f":"Planning!G29","v":0},null,0,0,{"$f":"IF(AND($AR46=\"2\",$AB45<>Lists!$A$17),AU46,AT46)","v":""},"",0,0,{"$f":"IF(AND($AR46=\"2\",$AB46<>Lists!$A$17),AW46,AV46)","v":""},"",0,0,{"$f":"IF(AND($AR46=\"2\",$AB46<>Lists!$A$17),AY46,AX46)","v":""},"",0,0,{"$f":"IF(AND($AR46=\"2\",$AB46<>Lists!$A$17),BA46,AZ46)","v":""},"",0,0,{"$f":"IF(AND($AR46=\"2\",$AB46<>Lists!$A$17),BC46,BB46)","v":""},"",{"$f":"Planning!H29","v":0},"00","H45","J45","I45","",null,{"$f":"IF(Setup!$AG$7<>\"\",INDIRECT(\"'\" & Setup!$AG$7 & \"'!\" & AF46),0) + IF(Setup!$AG$8<>\"\",INDIRECT(\"'\" & Setup!$AG$8 & \"'!\" & AF46),0) + IF(Setup!$AG$9<>\"\",INDIRECT(\"'\" & Setup!$AG$9 & \"'!\" & AF46),0) + IF(Setup!$AG$10<>\"\",INDIRECT(\"'\" & Setup!$AG$10 & \"'!\" & AF46),0) + IF(Setup!$AG$11<>\"\",INDIRECT(\"'\" & Setup!$AG$11 & \"'!\" & AF46),0) + IF(Setup!$AG$12<>\"\",INDIRECT(\"'\" & Setup!$AG$12 & \"'!\" & AF46),0)","v":0},{"$f":"IF(Setup!$AH$7<>\"\",INDIRECT(\"'\" & Setup!$AH$7 & \"'!\" & AF46),0) + IF(Setup!$AH$8<>\"\",INDIRECT(\"'\" & Setup!$AH$8 & \"'!\" & AF46),0) + IF(Setup!$AH$9<>\"\",INDIRECT(\"'\" & Setup!$AH$9 & \"'!\" & AF46),0) + IF(Setup!$AH$10<>\"\",INDIRECT(\"'\" & Setup!$AH$10 & \"'!\" & AF46),0) + IF(Setup!$AH$11<>\"\",INDIRECT(\"'\" & Setup!$AH$11 & \"'!\" & AF46),0) + IF(Setup!$AH$12<>\"\",INDIRECT(\"'\" & Setup!$AH$12 & \"'!\" & AF46),0)","v":0},{"$f":"IF(Setup!$AI$7<>\"\",INDIRECT(\"'\" & Setup!$AI$7 & \"'!\" & AF46),0) + IF(Setup!$AI$8<>\"\",INDIRECT(\"'\" & Setup!$AI$8 & \"'!\" & AF46),0) + IF(Setup!$AI$9<>\"\",INDIRECT(\"'\" & Setup!$AI$9 & \"'!\" & AF46),0) + IF(Setup!$AI$10<>\"\",INDIRECT(\"'\" & Setup!$AI$10 & \"'!\" & AF46),0) + IF(Setup!$AI$11<>\"\",INDIRECT(\"'\" & Setup!$AI$11 & \"'!\" & AF46),0) + IF(Setup!$AI$12<>\"\",INDIRECT(\"'\" & Setup!$AI$12 & \"'!\" & AF46),0)","v":0},{"$f":"IF(Setup!$AJ$7<>\"\",INDIRECT(\"'\" & Setup!$AJ$7 & \"'!\" & AF46),0) + IF(Setup!$AJ$8<>\"\",INDIRECT(\"'\" & Setup!$AJ$8 & \"'!\" & AF46),0) + IF(Setup!$AJ$9<>\"\",INDIRECT(\"'\" & Setup!$AJ$9 & \"'!\" & AF46),0) + IF(Setup!$AJ$10<>\"\",INDIRECT(\"'\" & Setup!$AJ$10 & \"'!\" & AF46),0) + IF(Setup!$AJ$11<>\"\",INDIRECT(\"'\" & Setup!$AJ$11 & \"'!\" & AF46),0) + IF(Setup!$AJ$12<>\"\",INDIRECT(\"'\" & Setup!$AJ$12 & \"'!\" & AF46),0)","v":0},null,"",{"$nulls":3},{"$f":"IF(C46=0,\"\",LEFT(INDEX(Lists!$H$5:$H$49,MATCH(C46,Lists!$G$5:$G$49,0),1),1))","v":""},null,"","","","","","","","","","",{"$nulls":6},{"$f":"IF(Setup!$AG$7<>\"\",INDIRECT(\"'\" & Setup!$AG$7 & \"'!\" & AD46),0) + IF(Setup!$AG$8<>\"\",INDIRECT(\"'\" & Setup!$AG$8 & \"'!\" & AD46),0) + IF(Setup!$AG$9<>\"\",INDIRECT(\"'\" & Setup!$AG$9 & \"'!\" & AD46),0) + IF(Setup!$AG$10<>\"\",INDIRECT(\"'\" & Setup!$AG$10 & \"'!\" & AD46),0) + IF(Setup!$AG$11<>\"\",INDIRECT(\"'\" & Setup!$AG$11 & \"'!\" & AD46),0) + IF(Setup!$AG$12<>\"\",INDIRECT(\"'\" & Setup!$AG$12 & \"'!\" & AD46),0)","v":0},{"$f":"IF(Setup!$AG$7<>\"\",INDIRECT(\"'\" & Setup!$AG$7 & \"'!\" & AE46),0) + IF(Setup!$AG$8<>\"\",INDIRECT(\"'\" & Setup!$AG$8 & \"'!\" & AE46),0) + IF(Setup!$AG$9<>\"\",INDIRECT(\"'\" & Setup!$AG$9 & \"'!\" & AE46),0) + IF(Setup!$AG$10<>\"\",INDIRECT(\"'\" & Setup!$AG$10 & \"'!\" & AE46),0) + IF(Setup!$AG$11<>\"\",INDIRECT(\"'\" & Setup!$AG$11 & \"'!\" & AE46),0) + IF(Setup!$AG$12<>\"\",INDIRECT(\"'\" & Setup!$AG$12 & \"'!\" & AE46),0)","v":0},{"$f":"IF(Setup!$AH$7<>\"\",INDIRECT(\"'\" & Setup!$AH$7 & \"'!\" & AD46),0) + IF(Setup!$AH$8<>\"\",INDIRECT(\"'\" & Setup!$AH$8 & \"'!\" & AD46),0) + IF(Setup!$AH$9<>\"\",INDIRECT(\"'\" & Setup!$AH$9 & \"'!\" & AD46),0) + IF(Setup!$AH$10<>\"\",INDIRECT(\"'\" & Setup!$AH$10 & \"'!\" & AD46),0) + IF(Setup!$AH$11<>\"\",INDIRECT(\"'\" & Setup!$AH$11 & \"'!\" & AD46),0) + IF(Setup!$AH$12<>\"\",INDIRECT(\"'\" & Setup!$AH$12 & \"'!\" & AD46),0)","v":0},{"$f":"IF(Setup!$AH$7<>\"\",INDIRECT(\"'\" & Setup!$AH$7 & \"'!\" & AE46),0) + IF(Setup!$AH$8<>\"\",INDIRECT(\"'\" & Setup!$AH$8 & \"'!\" & AE46),0) + IF(Setup!$AH$9<>\"\",INDIRECT(\"'\" & Setup!$AH$9 & \"'!\" & AE46),0) + IF(Setup!$AH$10<>\"\",INDIRECT(\"'\" & Setup!$AH$10 & \"'!\" & AE46),0) + IF(Setup!$AH$11<>\"\",INDIRECT(\"'\" & Setup!$AH$11 & \"'!\" & AE46),0) + IF(Setup!$AH$12<>\"\",INDIRECT(\"'\" & Setup!$AH$12 & \"'!\" & AE46),0)","v":0},{"$f":"IF(Setup!$AI$7<>\"\",INDIRECT(\"'\" & Setup!$AI$7 & \"'!\" & AD46),0) + IF(Setup!$AI$8<>\"\",INDIRECT(\"'\" & Setup!$AI$8 & \"'!\" & AD46),0) + IF(Setup!$AI$9<>\"\",INDIRECT(\"'\" & Setup!$AI$9 & \"'!\" & AD46),0) + IF(Setup!$AI$10<>\"\",INDIRECT(\"'\" & Setup!$AI$10 & \"'!\" & AD46),0) + IF(Setup!$AI$11<>\"\",INDIRECT(\"'\" & Setup!$AI$11 & \"'!\" & AD46),0) + IF(Setup!$AI$12<>\"\",INDIRECT(\"'\" & Setup!$AI$12 & \"'!\" & AD46),0)","v":0},{"$f":"IF(Setup!$AI$7<>\"\",INDIRECT(\"'\" & Setup!$AI$7 & \"'!\" & AE46),0) + IF(Setup!$AI$8<>\"\",INDIRECT(\"'\" & Setup!$AI$8 & \"'!\" & AE46),0) + IF(Setup!$AI$9<>\"\",INDIRECT(\"'\" & Setup!$AI$9 & \"'!\" & AE46),0) + IF(Setup!$AI$10<>\"\",INDIRECT(\"'\" & Setup!$AI$10 & \"'!\" & AE46),0) + IF(Setup!$AI$11<>\"\",INDIRECT(\"'\" & Setup!$AI$11 & \"'!\" & AE46),0) + IF(Setup!$AI$12<>\"\",INDIRECT(\"'\" & Setup!$AI$12 & \"'!\" & AE46),0)","v":0},{"$f":"IF(Setup!$AJ$7<>\"\",INDIRECT(\"'\" & Setup!$AJ$7 & \"'!\" & AD46),0) + IF(Setup!$AJ$8<>\"\",INDIRECT(\"'\" & Setup!$AJ$8 & \"'!\" & AD46),0) + IF(Setup!$AJ$9<>\"\",INDIRECT(\"'\" & Setup!$AJ$9 & \"'!\" & AD46),0) + IF(Setup!$AJ$10<>\"\",INDIRECT(\"'\" & Setup!$AJ$10 & \"'!\" & AD46),0) + IF(Setup!$AJ$11<>\"\",INDIRECT(\"'\" & Setup!$AJ$11 & \"'!\" & AD46),0) + IF(Setup!$AJ$12<>\"\",INDIRECT(\"'\" & Setup!$AJ$12 & \"'!\" & AD46),0)","v":0},{"$f":"IF(Setup!$AJ$7<>\"\",INDIRECT(\"'\" & Setup!$AJ$7 & \"'!\" & AE46),0) + IF(Setup!$AJ$8<>\"\",INDIRECT(\"'\" & Setup!$AJ$8 & \"'!\" & AE46),0) + IF(Setup!$AJ$9<>\"\",INDIRECT(\"'\" & Setup!$AJ$9 & \"'!\" & AE46),0) + IF(Setup!$AJ$10<>\"\",INDIRECT(\"'\" & Setup!$AJ$10 & \"'!\" & AE46),0) + IF(Setup!$AJ$11<>\"\",INDIRECT(\"'\" & Setup!$AJ$11 & \"'!\" & AE46),0) + IF(Setup!$AJ$12<>\"\",INDIRECT(\"'\" & Setup!$AJ$12 & \"'!\" & AE46),0)","v":0}]
[{"$f":"Planning!A30","v":"I022"},{"$f":"Planning!B30","v":0},{"$f":"Planning!C30","v":0},{"$f":"Planning!D30","v":0},{"$f":"Planning!E30","v":0},{"$f":"Planning!G30","v":0},null,0,0,{"$f":"IF(AND($AR47=\"2\",$AB46<>Lists!$A$17),AU47,AT47)","v":""},"",0,0,{"$f":"IF(AND($AR47=\"2\",$AB47<>Lists!$A$17),AW47,AV47)","v":""},"",0,0,{"$f":"IF(AND($AR47=\"2\",$AB47<>Lists!$A$17),AY47,AX47)","v":""},"",0,0,{"$f":"IF(AND($AR47=\"2\",$AB47<>Lists!$A$17),BA47,AZ47)","v":""},"",0,0,{"$f":"IF(AND($AR47=\"2\",$AB47<>Lists!$A$17),BC47,BB47)","v":""},"",{"$f":"Planning!H30","v":0},"00","H46","J46","I46","",null,{"$f":"IF(Setup!$AG$7<>\"\",INDIRECT(\"'\" & Setup!$AG$7 & \"'!\" & AF47),0) + IF(Setup!$AG$8<>\"\",INDIRECT(\"'\" & Setup!$AG$8 & \"'!\" & AF47),0) + IF(Setup!$AG$9<>\"\",INDIRECT(\"'\" & Setup!$AG$9 & \"'!\" & AF47),0) + IF(Setup!$AG$10<>\"\",INDIRECT(\"'\" & Setup!$AG$10 & \"'!\" & AF47),0) + IF(Setup!$AG$11<>\"\",INDIRECT(\"'\" & Setup!$AG$11 & \"'!\" & AF47),0) + IF(Setup!$AG$12<>\"\",INDIRECT(\"'\" & Setup!$AG$12 & \"'!\" & AF47),0)","v":0},{"$f":"IF(Setup!$AH$7<>\"\",INDIRECT(\"'\" & Setup!$AH$7 & \"'!\" & AF47),0) + IF(Setup!$AH$8<>\"\",INDIRECT(\"'\" & Setup!$AH$8 & \"'!\" & AF47),0) + IF(Setup!$AH$9<>\"\",INDIRECT(\"'\" & Setup!$AH$9 & \"'!\" & AF47),0) + IF(Setup!$AH$10<>\"\",INDIRECT(\"'\" & Setup!$AH$10 & \"'!\" & AF47),0) + IF(Setup!$AH$11<>\"\",INDIRECT(\"'\" & Setup!$AH$11 & \"'!\" & AF47),0) + IF(Setup!$AH$12<>\"\",INDIRECT(\"'\" & Setup!$AH$12 & \"'!\" & AF47),0)","v":0},{"$f":"IF(Setup!$AI$7<>\"\",INDIRECT(\"'\" & Setup!$AI$7 & \"'!\" & AF47),0) + IF(Setup!$AI$8<>\"\",INDIRECT(\"'\" & Setup!$AI$8 & \"'!\" & AF47),0) + IF(Setup!$AI$9<>\"\",INDIRECT(\"'\" & Setup!$AI$9 & \"'!\" & AF47),0) + IF(Setup!$AI$10<>\"\",INDIRECT(\"'\" & Setup!$AI$10 & \"'!\" & AF47),0) + IF(Setup!$AI$11<>\"\",INDIRECT(\"'\" & Setup!$AI$11 & \"'!\" & AF47),0) + IF(Setup!$AI$12<>\"\",INDIRECT(\"'\" & Setup!$AI$12 & \"'!\" & AF47),0)","v":0},{"$f":"IF(Setup!$AJ$7<>\"\",INDIRECT(\"'\" & Setup!$AJ$7 & \"'!\" & AF47),0) + IF(Setup!$AJ$8<>\"\",INDIRECT(\"'\" & Setup!$AJ$8 & \"'!\" & AF47),0) + IF(Setup!$AJ$9<>\"\",INDIRECT(\"'\" & Setup!$AJ$9 & \"'!\" & AF47),0) + IF(Setup!$AJ$10<>\"\",INDIRECT(\"'\" & Setup!$AJ$10 & \"'!\" & AF47),0) + IF(Setup!$AJ$11<>\"\",INDIRECT(\"'\" & Setup!$AJ$11 & \"'!\" & AF47),0) + IF(Setup!$AJ$12<>\"\",INDIRECT(\"'\" & Setup!$AJ$12 & \"'!\" & AF47),0)","v":0},null,"",{"$nulls":3},{"$f":"IF(C47=0,\"\",LEFT(INDEX(Lists!$H$5:$H$49,MATCH(C47,Lists!$G$5:$G$49,0),1),1))","v":""},null,"","","","","","","","","","",{"$nulls":6},{"$f":"IF(Setup!$AG$7<>\"\",INDIRECT(\"'\" & Setup!$AG$7 & \"'!\" & AD47),0) + IF(Setup!$AG$8<>\"\",INDIRECT(\"'\" & Setup!$AG$8 & \"'!\" & AD47),0) + IF(Setup!$AG$9<>\"\",INDIRECT(\"'\" & Setup!$AG$9 & \"'!\" & AD47),0) + IF(Setup!$AG$10<>\"\",INDIRECT(\"'\" & Setup!$AG$10 & \"'!\" & AD47),0) + IF(Setup!$AG$11<>\"\",INDIRECT(\"'\" & Setup!$AG$11 & \"'!\" & AD47),0) + IF(Setup!$AG$12<>\"\",INDIRECT(\"'\" & Setup!$AG$12 & \"'!\" & AD47),0)","v":0},{"$f":"IF(Setup!$AG$7<>\"\",INDIRECT(\"'\" & Setup!$AG$7 & \"'!\" & AE47),0) + IF(Setup!$AG$8<>\"\",INDIRECT(\"'\" & Setup!$AG$8 & \"'!\" & AE47),0) + IF(Setup!$AG$9<>\"\",INDIRECT(\"'\" & Setup!$AG$9 & \"'!\" & AE47),0) + IF(Setup!$AG$10<>\"\",INDIRECT(\"'\" & Setup!$AG$10 & \"'!\" & AE47),0) + IF(Setup!$AG$11<>\"\",INDIRECT(\"'\" & Setup!$AG$11 & \"'!\" & AE47),0) + IF(Setup!$AG$12<>\"\",INDIRECT(\"'\" & Setup!$AG$12 & \"'!\" & AE47),0)","v":0},{"$f":"IF(Setup!$AH$7<>\"\",INDIRECT(\"'\" & Setup!$AH$7 & \"'!\" & AD47),0) + IF(Setup!$AH$8<>\"\",INDIRECT(\"'\" & Setup!$AH$8 & \"'!\" & AD47),0) + IF(Setup!$AH$9<>\"\",INDIRECT(\"'\" & Setup!$AH$9 & \"'!\" & AD47),0) + IF(Setup!$AH$10<>\"\",INDIRECT(\"'\" & Setup!$AH$10 & \"'!\" & AD47),0) + IF(Setup!$AH$11<>\"\",INDIRECT(\"'\" & Setup!$AH$11 & \"'!\" & AD47),0) + IF(Setup!$AH$12<>\"\",INDIRECT(\"'\" & Setup!$AH$12 & \"'!\" & AD47),0)","v":0},{"$f":"IF(Setup!$AH$7<>\"\",INDIRECT(\"'\" & Setup!$AH$7 & \"'!\" & AE47),0) + IF(Setup!$AH$8<>\"\",INDIRECT(\"'\" & Setup!$AH$8 & \"'!\" & AE47),0) + IF(Setup!$AH$9<>\"\",INDIRECT(\"'\" & Setup!$AH$9 & \"'!\" & AE47),0) + IF(Setup!$AH$10<>\"\",INDIRECT(\"'\" & Setup!$AH$10 & \"'!\" & AE47),0) + IF(Setup!$AH$11<>\"\",INDIRECT(\"'\" & Setup!$AH$11 & \"'!\" & AE47),0) + IF(Setup!$AH$12<>\"\",INDIRECT(\"'\" & Setup!$AH$12 & \"'!\" & AE47),0)","v":0},{"$f":"IF(Setup!$AI$7<>\"\",INDIRECT(\"'\" & Setup!$AI$7 & \"'!\" & AD47),0) + IF(Setup!$AI$8<>\"\",INDIRECT(\"'\" & Setup!$AI$8 & \"'!\" & AD47),0) + IF(Setup!$AI$9<>\"\",INDIRECT(\"'\" & Setup!$AI$9 & \"'!\" & AD47),0) + IF(Setup!$AI$10<>\"\",INDIRECT(\"'\" & Setup!$AI$10 & \"'!\" & AD47),0) + IF(Setup!$AI$11<>\"\",INDIRECT(\"'\" & Setup!$AI$11 & \"'!\" & AD47),0) + IF(Setup!$AI$12<>\"\",INDIRECT(\"'\" & Setup!$AI$12 & \"'!\" & AD47),0)","v":0},{"$f":"IF(Setup!$AI$7<>\"\",INDIRECT(\"'\" & Setup!$AI$7 & \"'!\" & AE47),0) + IF(Setup!$AI$8<>\"\",INDIRECT(\"'\" & Setup!$AI$8 & \"'!\" & AE47),0) + IF(Setup!$AI$9<>\"\",INDIRECT(\"'\" & Setup!$AI$9 & \"'!\" & AE47),0) + IF(Setup!$AI$10<>\"\",INDIRECT(\"'\" & Setup!$AI$10 & \"'!\" & AE47),0) + IF(Setup!$AI$11<>\"\",INDIRECT(\"'\" & Setup!$AI$11 & \"'!\" & AE47),0) + IF(Setup!$AI$12<>\"\",INDIRECT(\"'\" & Setup!$AI$12 & \"'!\" & AE47),0)","v":0},{"$f":"IF(Setup!$AJ$7<>\"\",INDIRECT(\"'\" & Setup!$AJ$7 & \"'!\" & AD47),0) + IF(Setup!$AJ$8<>\"\",INDIRECT(\"'\" & Setup!$AJ$8 & \"'!\" & AD47),0) + IF(Setup!$AJ$9<>\"\",INDIRECT(\"'\" & Setup!$AJ$9 & \"'!\" & AD47),0) + IF(Setup!$AJ$10<>\"\",INDIRECT(\"'\" & Setup!$AJ$10 & \"'!\" & AD47),0) + IF(Setup!$AJ$11<>\"\",INDIRECT(\"'\" & Setup!$AJ$11 & \"'!\" & AD47),0) + IF(Setup!$AJ$12<>\"\",INDIRECT(\"'\" & Setup!$AJ$12 & \"'!\" & AD47),0)","v":0},{"$f":"IF(Setup!$AJ$7<>\"\",INDIRECT(\"'\" & Setup!$AJ$7 & \"'!\" & AE47),0) + IF(Setup!$AJ$8<>\"\",INDIRECT(\"'\" & Setup!$AJ$8 & \"'!\" & AE47),0) + IF(Setup!$AJ$9<>\"\",INDIRECT(\"'\" & Setup!$AJ$9 & \"'!\" & AE47),0) + IF(Setup!$AJ$10<>\"\",INDIRECT(\"'\" & Setup!$AJ$10 & \"'!\" & AE47),0) + IF(Setup!$AJ$11<>\"\",INDIRECT(\"'\" & Setup!$AJ$11 & \"'!\" & AE47),0) + IF(Setup!$AJ$12<>\"\",INDIRECT(\"'\" & Setup!$AJ$12 & \"'!\" & AE47),0)","v":0}]
[{"$f":"Planning!A31","v":"I023"},{"$f":"Planning!B31","v":0},{"$f":"Planning!C31","v":0},{"$f":"Planning!D31","v":0},{"$f":"Planning!E31","v":0},{"$f":"Planning!G31","v":0},null,0,0,{"$f":"IF(AND($AR48=\"2\",$AB47<>Lists!$A$17),AU48,AT48)","v":""},"",0,0,{"$f":"IF(AND($AR48=\"2\",$AB48<>Lists!$A$17),AW48,AV48)","v":""},"",0,0,{"$f":"IF(AND($AR48=\"2\",$AB48<>Lists!$A$17),AY48,AX48)","v":""},"",0,0,{"$f":"IF(AND($AR48=\"2\",$AB48<>Lists!$A$17),BA48,AZ48)","v":""},"",0,0,{"$f":"IF(AND($AR48=\"2\",$AB48<>Lists!$A$17),BC48,BB48)","v":""},"",{"$f":"Planning!H31","v":0},"00","H47","J47","I47","",null,{"$f":"IF(Setup!$AG$7<>\"\",INDIRECT(\"'\" & Setup!$AG$7 & \"'!\" & AF48),0) + IF(Setup!$AG$8<>\"\",INDIRECT(\"'\" & Setup!$AG$8 & \"'!\" & AF48),0) + IF(Setup!$AG$9<>\"\",INDIRECT(\"'\" & Setup!$AG$9 & \"'!\" & AF48),0) + IF(Setup!$AG$10<>\"\",INDIRECT(\"'\" & Setup!$AG$10 & \"'!\" & AF48),0) + IF(Setup!$AG$11<>\"\",INDIRECT(\"'\" & Setup!$AG$11 & \"'!\" & AF48),0) + IF(Setup!$AG$12<>\"\",INDIRECT(\"'\" & Setup!$AG$12 & \"'!\" & AF48),0)","v":0},{"$f":"IF(Setup!$AH$7<>\"\",INDIRECT(\"'\" & Setup!$AH$7 & \"'!\" & AF48),0) + IF(Setup!$AH$8<>\"\",INDIRECT(\"'\" & Setup!$AH$8 & \"'!\" & AF48),0) + IF(Setup!$AH$9<>\"\",INDIRECT(\"'\" & Setup!$AH$9 & \"'!\" & AF48),0) + IF(Setup!$AH$10<>\"\",INDIRECT(\"'\" & Setup!$AH$10 & \"'!\" & AF48),0) + IF(Setup!$AH$11<>\"\",INDIRECT(\"'\" & Setup!$AH$11 & \"'!\" & AF48),0) + IF(Setup!$AH$12<>\"\",INDIRECT(\"'\" & Setup!$AH$12 & \"'!\" & AF48),0)","v":0},{"$f":"IF(Setup!$AI$7<>\"\",INDIRECT(\"'\" & Setup!$AI$7 & \"'!\" & AF48),0) + IF(Setup!$AI$8<>\"\",INDIRECT(\"'\" & Setup!$AI$8 & \"'!\" & AF48),0) + IF(Setup!$AI$9<>\"\",INDIRECT(\"'\" & Setup!$AI$9 & \"'!\" & AF48),0) + IF(Setup!$AI$10<>\"\",INDIRECT(\"'\" & Setup!$AI$10 & \"'!\" & AF48),0) + IF(Setup!$AI$11<>\"\",INDIRECT(\"'\" & Setup!$AI$11 & \"'!\" & AF48),0) + IF(Setup!$AI$12<>\"\",INDIRECT(\"'\" & Setup!$AI$12 & \"'!\" & AF48),0)","v":0},{"$f":"IF(Setup!$AJ$7<>\"\",INDIRECT(\"'\" & Setup!$AJ$7 & \"'!\" & AF48),0) + IF(Setup!$AJ$8<>\"\",INDIRECT(\"'\" & Setup!$AJ$8 & \"'!\" & AF48),0) + IF(Setup!$AJ$9<>\"\",INDIRECT(\"'\" & Setup!$AJ$9 & \"'!\" & AF48),0) + IF(Setup!$AJ$10<>\"\",INDIRECT(\"'\" & Setup!$AJ$10 & \"'!\" & AF48),0) + IF(Setup!$AJ$11<>\"\",INDIRECT(\"'\" & Setup!$AJ$11 & \"'!\" & AF48),0) + IF(Setup!$AJ$12<>\"\",INDIRECT(\"'\" & Setup!$AJ$12 & \"'!\" & AF48),0)","v":0},null,"",{"$nulls":3},{"$f":"IF(C48=0,\"\",LEFT(INDEX(Lists!$H$5:$H$49,MATCH(C48,Lists!$G$5:$G$49,0),1),1))","v":""},null,"","","","","","","","","","",{"$nulls":6},{"$f":"IF(Setup!$AG$7<>\"\",INDIRECT(\"'\" & Setup!$AG$7 & \"'!\" & AD48),0) + IF(Setup!$AG$8<>\"\",INDIRECT(\"'\" & Setup!$AG$8 & \"'!\" & AD48),0) + IF(Setup!$AG$9<>\"\",INDIRECT(\"'\" & Setup!$AG$9 & \"'!\" & AD48),0) + IF(Setup!$AG$10<>\"\",INDIRECT(\"'\" & Setup!$AG$10 & \"'!\" & AD48),0) + IF(Setup!$AG$11<>\"\",INDIRECT(\"'\" & Setup!$AG$11 & \"'!\" & AD48),0) + IF(Setup!$AG$12<>\"\",INDIRECT(\"'\" & Setup!$AG$12 & \"'!\" & AD48),0)","v":0},{"$f":"IF(Setup!$AG$7<>\"\",INDIRECT(\"'\" & Setup!$AG$7 & \"'!\" & AE48),0) + IF(Setup!$AG$8<>\"\",INDIRECT(\"'\" & Setup!$AG$8 & \"'!\" & AE48),0) + IF(Setup!$AG$9<>\"\",INDIRECT(\"'\" & Setup!$AG$9 & \"'!\" & AE48),0) + IF(Setup!$AG$10<>\"\",INDIRECT(\"'\" & Setup!$AG$10 & \"'!\" & AE48),0) + IF(Setup!$AG$11<>\"\",INDIRECT(\"'\" & Setup!$AG$11 & \"'!\" & AE48),0) + IF(Setup!$AG$12<>\"\",INDIRECT(\"'\" & Setup!$AG$12 & \"'!\" & AE48),0)","v":0},{"$f":"IF(Setup!$AH$7<>\"\",INDIRECT(\"'\" & Setup!$AH$7 & \"'!\" & AD48),0) + IF(Setup!$AH$8<>\"\",INDIRECT(\"'\" & Setup!$AH$8 & \"'!\" & AD48),0) + IF(Setup!$AH$9<>\"\",INDIRECT(\"'\" & Setup!$AH$9 & \"'!\" & AD48),0) + IF(Setup!$AH$10<>\"\",INDIRECT(\"'\" & Setup!$AH$10 & \"'!\" & AD48),0) + IF(Setup!$AH$11<>\"\",INDIRECT(\"'\" & Setup!$AH$11 & \"'!\" & AD48),0) + IF(Setup!$AH$12<>\"\",INDIRECT(\"'\" & Setup!$AH$12 & \"'!\" & AD48),0)","v":0},{"$f":"IF(Setup!$AH$7<>\"\",INDIRECT(\"'\" & Setup!$AH$7 & \"'!\" & AE48),0) + IF(Setup!$AH$8<>\"\",INDIRECT(\"'\" & Setup!$AH$8 & \"'!\" & AE48),0) + IF(Setup!$AH$9<>\"\",INDIRECT(\"'\" & Setup!$AH$9 & \"'!\" & AE48),0) + IF(Setup!$AH$10<>\"\",INDIRECT(\"'\" & Setup!$AH$10 & \"'!\" & AE48),0) + IF(Setup!$AH$11<>\"\",INDIRECT(\"'\" & Setup!$AH$11 & \"'!\" & AE48),0) + IF(Setup!$AH$12<>\"\",INDIRECT(\"'\" & Setup!$AH$12 & \"'!\" & AE48),0)","v":0},{"$f":"IF(Setup!$AI$7<>\"\",INDIRECT(\"'\" & Setup!$AI$7 & \"'!\" & AD48),0) + IF(Setup!$AI$8<>\"\",INDIRECT(\"'\" & Setup!$AI$8 & \"'!\" & AD48),0) + IF(Setup!$AI$9<>\"\",INDIRECT(\"'\" & Setup!$AI$9 & \"'!\" & AD48),0) + IF(Setup!$AI$10<>\"\",INDIRECT(\"'\" & Setup!$AI$10 & \"'!\" & AD48),0) + IF(Setup!$AI$11<>\"\",INDIRECT(\"'\" & Setup!$AI$11 & \"'!\" & AD48),0) + IF(Setup!$AI$12<>\"\",INDIRECT(\"'\" & Setup!$AI$12 & \"'!\" & AD48),0)","v":0},{"$f":"IF(Setup!$AI$7<>\"\",INDIRECT(\"'\" & Setup!$AI$7 & \"'!\" & AE48),0) + IF(Setup!$AI$8<>\"\",INDIRECT(\"'\" & Setup!$AI$8 & \"'!\" & AE48),0) + IF(Setup!$AI$9<>\"\",INDIRECT(\"'\" & Setup!$AI$9 & \"'!\" & AE48),0) + IF(Setup!$AI$10<>\"\",INDIRECT(\"'\" & Setup!$AI$10 & \"'!\" & AE48),0) + IF(Setup!$AI$11<>\"\",INDIRECT(\"'\" & Setup!$AI$11 & \"'!\" & AE48),0) + IF(Setup!$AI$12<>\"\",INDIRECT(\"'\" & Setup!$AI$12 & \"'!\" & AE48),0)","v":0},{"$f":"IF(Setup!$AJ$7<>\"\",INDIRECT(\"'\" & Setup!$AJ$7 & \"'!\" & AD48),0) + IF(Setup!$AJ$8<>\"\",INDIRECT(\"'\" & Setup!$AJ$8 & \"'!\" & AD48),0) + IF(Setup!$AJ$9<>\"\",INDIRECT(\"'\" & Setup!$AJ$9 & \"'!\" & AD48),0) + IF(Setup!$AJ$10<>\"\",INDIRECT(\"'\" & Setup!$AJ$10 & \"'!\" & AD48),0) + IF(Setup!$AJ$11<>\"\",INDIRECT(\"'\" & Setup!$AJ$11 & \"'!\" & AD48),0) + IF(Setup!$AJ$12<>\"\",INDIRECT(\"'\" & Setup!$AJ$12 & \"'!\" & AD48),0)","v":0},{"$f":"IF(Setup!$AJ$7<>\"\",INDIRECT(\"'\" & Setup!$AJ$7 & \"'!\" & AE48),0) + IF(Setup!$AJ$8<>\"\",INDIRECT(\"'\" & Setup!$AJ$8 & \"'!\" & AE48),0) + IF(Setup!$AJ$9<>\"\",INDIRECT(\"'\" & Setup!$AJ$9 & \"'!\" & AE48),0) + IF(Setup!$AJ$10<>\"\",INDIRECT(\"'\" & Setup!$AJ$10 & \"'!\" & AE48),0) + IF(Setup!$AJ$11<>\"\",INDIRECT(\"'\" & Setup!$AJ$11 & \"'!\" & AE48),0) + IF(Setup!$AJ$12<>\"\",INDIRECT(\"'\" & Setup!$AJ$12 & \"'!\" & AE48),0)","v":0}]
[{"$f":"Planning!A32","v":"I024"},{"$f":"Planning!B32","v":0},{"$f":"Planning!C32","v":0},{"$f":"Planning!D32","v":0},{"$f":"Planning!E32","v":0},{"$f":"Planning!G32","v":0},null,0,0,{"$f":"IF(AND($AR49=\"2\",$AB48<>Lists!$A$17),AU49,AT49)","v":""},"",0,0,{"$f":"IF(AND($AR49=\"2\",$AB49<>Lists!$A$17),AW49,AV49)","v":""},"",0,0,{"$f":"IF(AND($AR49=\"2\",$AB49<>Lists!$A$17),AY49,AX49)","v":""},"",0,0,{"$f":"IF(AND($AR49=\"2\",$AB49<>Lists!$A$17),BA49,AZ49)","v":""},"",0,0,{"$f":"IF(AND($AR49=\"2\",$AB49<>Lists!$A$17),BC49,BB49)","v":""},"",{"$f":"Planning!H32","v":0},"00","H48","J48","I48","",null,{"$f":"IF(Setup!$AG$7<>\"\",INDIRECT(\"'\" & Setup!$AG$7 & \"'!\" & AF49),0) + IF(Setup!$AG$8<>\"\",INDIRECT(\"'\" & Setup!$AG$8 & \"'!\" & AF49),0) + IF(Setup!$AG$9<>\"\",INDIRECT(\"'\" & Setup!$AG$9 & \"'!\" & AF49),0) + IF(Setup!$AG$10<>\"\",INDIRECT(\"'\" & Setup!$AG$10 & \"'!\" & AF49),0) + IF(Setup!$AG$11<>\"\",INDIRECT(\"'\" & Setup!$AG$11 & \"'!\" & AF49),0) + IF(Setup!$AG$12<>\"\",INDIRECT(\"'\" & Setup!$AG$12 & \"'!\" & AF49),0)","v":0},{"$f":"IF(Setup!$AH$7<>\"\",INDIRECT(\"'\" & Setup!$AH$7 & \"'!\" & AF49),0) + IF(Setup!$AH$8<>\"\",INDIRECT(\"'\" & Setup!$AH$8 & \"'!\" & AF49),0) + IF(Setup!$AH$9<>\"\",INDIRECT(\"'\" & Setup!$AH$9 & \"'!\" & AF49),0) + IF(Setup!$AH$10<>\"\",INDIRECT(\"'\" & Setup!$AH$10 & \"'!\" & AF49),0) + IF(Setup!$AH$11<>\"\",INDIRECT(\"'\" & Setup!$AH$11 & \"'!\" & AF49),0) + IF(Setup!$AH$12<>\"\",INDIRECT(\"'\" & Setup!$AH$12 & \"'!\" & AF49),0)","v":0},{"$f":"IF(Setup!$AI$7<>\"\",INDIRECT(\"'\" & Setup!$AI$7 & \"'!\" & AF49),0) + IF(Setup!$AI$8<>\"\",INDIRECT(\"'\" & Setup!$AI$8 & \"'!\" & AF49),0) + IF(Setup!$AI$9<>\"\",INDIRECT(\"'\" & Setup!$AI$9 & \"'!\" & AF49),0) + IF(Setup!$AI$10<>\"\",INDIRECT(\"'\" & Setup!$AI$10 & \"'!\" & AF49),0) + IF(Setup!$AI$11<>\"\",INDIRECT(\"'\" & Setup!$AI$11 & \"'!\" & AF49),0) + IF(Setup!$AI$12<>\"\",INDIRECT(\"'\" & Setup!$AI$12 & \"'!\" & AF49),0)","v":0},{"$f":"IF(Setup!$AJ$7<>\"\",INDIRECT(\"'\" & Setup!$AJ$7 & \"'!\" & AF49),0) + IF(Setup!$AJ$8<>\"\",INDIRECT(\"'\" & Setup!$AJ$8 & \"'!\" & AF49),0) + IF(Setup!$AJ$9<>\"\",INDIRECT(\"'\" & Setup!$AJ$9 & \"'!\" & AF49),0) + IF(Setup!$AJ$10<>\"\",INDIRECT(\"'\" & Setup!$AJ$10 & \"'!\" & AF49),0) + IF(Setup!$AJ$11<>\"\",INDIRECT(\"'\" & Setup!$AJ$11 & \"'!\" & AF49),0) + IF(Setup!$AJ$12<>\"\",INDIRECT(\"'\" & Setup!$AJ$12 & \"'!\" & AF49),0)","v":0},null,"",{"$nulls":3},{"$f":"IF(C49=0,\"\",LEFT(INDEX(Lists!$H$5:$H$49,MATCH(C49,Lists!$G$5:$G$49,0),1),1))","v":""},null,"","","","","","","","","","",{"$nulls":6},{"$f":"IF(Setup!$AG$7<>\"\",INDIRECT(\"'\" & Setup!$AG$7 & \"'!\" & AD49),0) + IF(Setup!$AG$8<>\"\",INDIRECT(\"'\" & Setup!$AG$8 & \"'!\" & AD49),0) + IF(Setup!$AG$9<>\"\",INDIRECT(\"'\" & Setup!$AG$9 & \"'!\" & AD49),0) + IF(Setup!$AG$10<>\"\",INDIRECT(\"'\" & Setup!$AG$10 & \"'!\" & AD49),0) + IF(Setup!$AG$11<>\"\",INDIRECT(\"'\" & Setup!$AG$11 & \"'!\" & AD49),0) + IF(Setup!$AG$12<>\"\",INDIRECT(\"'\" & Setup!$AG$12 & \"'!\" & AD49),0)","v":0},{"$f":"IF(Setup!$AG$7<>\"\",INDIRECT(\"'\" & Setup!$AG$7 & \"'!\" & AE49),0) + IF(Setup!$AG$8<>\"\",INDIRECT(\"'\" & Setup!$AG$8 & \"'!\" & AE49),0) + IF(Setup!$AG$9<>\"\",INDIRECT(\"'\" & Setup!$AG$9 & \"'!\" & AE49),0) + IF(Setup!$AG$10<>\"\",INDIRECT(\"'\" & Setup!$AG$10 & \"'!\" & AE49),0) + IF(Setup!$AG$11<>\"\",INDIRECT(\"'\" & Setup!$AG$11 & \"'!\" & AE49),0) + IF(Setup!$AG$12<>\"\",INDIRECT(\"'\" & Setup!$AG$12 & \"'!\" & AE49),0)","v":0},{"$f":"IF(Setup!$AH$7<>\"\",INDIRECT(\"'\" & Setup!$AH$7 & \"'!\" & AD49),0) + IF(Setup!$AH$8<>\"\",INDIRECT(\"'\" & Setup!$AH$8 & \"'!\" & AD49),0) + IF(Setup!$AH$9<>\"\",INDIRECT(\"'\" & Setup!$AH$9 & \"'!\" & AD49),0) + IF(Setup!$AH$10<>\"\",INDIRECT(\"'\" & Setup!$AH$10 & \"'!\" & AD49),0) + IF(Setup!$AH$11<>\"\",INDIRECT(\"'\" & Setup!$AH$11 & \"'!\" & AD49),0) + IF(Setup!$AH$12<>\"\",INDIRECT(\"'\" & Setup!$AH$12 & \"'!\" & AD49),0)","v":0},{"$f":"IF(Setup!$AH$7<>\"\",INDIRECT(\"'\" & Setup!$AH$7 & \"'!\" & AE49),0) + IF(Setup!$AH$8<>\"\",INDIRECT(\"'\" & Setup!$AH$8 & \"'!\" & AE49),0) + IF(Setup!$AH$9<>\"\",INDIRECT(\"'\" & Setup!$AH$9 & \"'!\" & AE49),0) + IF(Setup!$AH$10<>\"\",INDIRECT(\"'\" & Setup!$AH$10 & \"'!\" & AE49),0) + IF(Setup!$AH$11<>\"\",INDIRECT(\"'\" & Setup!$AH$11 & \"'!\" & AE49),0) + IF(Setup!$AH$12<>\"\",INDIRECT(\"'\" & Setup!$AH$12 & \"'!\" & AE49),0)","v":0},{"$f":"IF(Setup!$AI$7<>\"\",INDIRECT(\"'\" & Setup!$AI$7 & \"'!\" & AD49),0) + IF(Setup!$AI$8<>\"\",INDIRECT(\"'\" & Setup!$AI$8 & \"'!\" & AD49),0) + IF(Setup!$AI$9<>\"\",INDIRECT(\"'\" & Setup!$AI$9 & \"'!\" & AD49),0) + IF(Setup!$AI$10<>\"\",INDIRECT(\"'\" & Setup!$AI$10 & \"'!\" & AD49),0) + IF(Setup!$AI$11<>\"\",INDIRECT(\"'\" & Setup!$AI$11 & \"'!\" & AD49),0) + IF(Setup!$AI$12<>\"\",INDIRECT(\"'\" & Setup!$AI$12 & \"'!\" & AD49),0)","v":0},{"$f":"IF(Setup!$AI$7<>\"\",INDIRECT(\"'\" & Setup!$AI$7 & \"'!\" & AE49),0) + IF(Setup!$AI$8<>\"\",INDIRECT(\"'\" & Setup!$AI$8 & \"'!\" & AE49),0) + IF(Setup!$AI$9<>\"\",INDIRECT(\"'\" & Setup!$AI$9 & \"'!\" & AE49),0) + IF(Setup!$AI$10<>\"\",INDIRECT(\"'\" & Setup!$AI$10 & \"'!\" & AE49),0) + IF(Setup!$AI$11<>\"\",INDIRECT(\"'\" & Setup!$AI$11 & \"'!\" & AE49),0) + IF(Setup!$AI$12<>\"\",INDIRECT(\"'\" & Setup!$AI$12 & \"'!\" & AE49),0)","v":0},{"$f":"IF(Setup!$AJ$7<>\"\",INDIRECT(\"'\" & Setup!$AJ$7 & \"'!\" & AD49),0) + IF(Setup!$AJ$8<>\"\",INDIRECT(\"'\" & Setup!$AJ$8 & \"'!\" & AD49),0) + IF(Setup!$AJ$9<>\"\",INDIRECT(\"'\" & Setup!$AJ$9 & \"'!\" & AD49),0) + IF(Setup!$AJ$10<>\"\",INDIRECT(\"'\" & Setup!$AJ$10 & \"'!\" & AD49),0) + IF(Setup!$AJ$11<>\"\",INDIRECT(\"'\" & Setup!$AJ$11 & \"'!\" & AD49),0) + IF(Setup!$AJ$12<>\"\",INDIRECT(\"'\" & Setup!$AJ$12 & \"'!\" & AD49),0)","v":0},{"$f":"IF(Setup!$AJ$7<>\"\",INDIRECT(\"'\" & Setup!$AJ$7 & \"'!\" & AE49),0) + IF(Setup!$AJ$8<>\"\",INDIRECT(\"'\" & Setup!$AJ$8 & \"'!\" & AE49),0) + IF(Setup!$AJ$9<>\"\",INDIRECT(\"'\" & Setup!$AJ$9 & \"'!\" & AE49),0) + IF(Setup!$AJ$10<>\"\",INDIRECT(\"'\" & Setup!$AJ$10 & \"'!\" & AE49),0) + IF(Setup!$AJ$11<>\"\",INDIRECT(\"'\" & Setup!$AJ$11 & \"'!\" & AE49),0) + IF(Setup!$AJ$12<>\"\",INDIRECT(\"'\" & Setup!$AJ$12 & \"'!\" & AE49),0)","v":0}]
[{"$f":"Planning!A33","v":"I025"},{"$f":"Planning!B33","v":0},{"$f":"Planning!C33","v":0},{"$f":"Planning!D33","v":0},{"$f":"Planning!E33","v":0},{"$f":"Planning!G33","v":0},null,0,0,{"$f":"IF(AND($AR50=\"2\",$AB49<>Lists!$A$17),AU50,AT50)","v":""},"",0,0,{"$f":"IF(AND($AR50=\"2\",$AB50<>Lists!$A$17),AW50,AV50)","v":""},"",0,0,{"$f":"IF(AND($AR50=\"2\",$AB50<>Lists!$A$17),AY50,AX50)","v":""},"",0,0,{"$f":"IF(AND($AR50=\"2\",$AB50<>Lists!$A$17),BA50,AZ50)","v":""},"",0,0,{"$f":"IF(AND($AR50=\"2\",$AB50<>Lists!$A$17),BC50,BB50)","v":""},"",{"$f":"Planning!H33","v":0},"00","H49","J49","I49","",null,{"$f":"IF(Setup!$AG$7<>\"\",INDIRECT(\"'\" & Setup!$AG$7 & \"'!\" & AF50),0) + IF(Setup!$AG$8<>\"\",INDIRECT(\"'\" & Setup!$AG$8 & \"'!\" & AF50),0) + IF(Setup!$AG$9<>\"\",INDIRECT(\"'\" & Setup!$AG$9 & \"'!\" & AF50),0) + IF(Setup!$AG$10<>\"\",INDIRECT(\"'\" & Setup!$AG$10 & \"'!\" & AF50),0) + IF(Setup!$AG$11<>\"\",INDIRECT(\"'\" & Setup!$AG$11 & \"'!\" & AF50),0) + IF(Setup!$AG$12<>\"\",INDIRECT(\"'\" & Setup!$AG$12 & \"'!\" & AF50),0)","v":0},{"$f":"IF(Setup!$AH$7<>\"\",INDIRECT(\"'\" & Setup!$AH$7 & \"'!\" & AF50),0) + IF(Setup!$AH$8<>\"\",INDIRECT(\"'\" & Setup!$AH$8 & \"'!\" & AF50),0) + IF(Setup!$AH$9<>\"\",INDIRECT(\"'\" & Setup!$AH$9 & \"'!\" & AF50),0) + IF(Setup!$AH$10<>\"\",INDIRECT(\"'\" & Setup!$AH$10 & \"'!\" & AF50),0) + IF(Setup!$AH$11<>\"\",INDIRECT(\"'\" & Setup!$AH$11 & \"'!\" & AF50),0) + IF(Setup!$AH$12<>\"\",INDIRECT(\"'\" & Setup!$AH$12 & \"'!\" & AF50),0)","v":0},{"$f":"IF(Setup!$AI$7<>\"\",INDIRECT(\"'\" & Setup!$AI$7 & \"'!\" & AF50),0) + IF(Setup!$AI$8<>\"\",INDIRECT(\"'\" & Setup!$AI$8 & \"'!\" & AF50),0) + IF(Setup!$AI$9<>\"\",INDIRECT(\"'\" & Setup!$AI$9 & \"'!\" & AF50),0) + IF(Setup!$AI$10<>\"\",INDIRECT(\"'\" & Setup!$AI$10 & \"'!\" & AF50),0) + IF(Setup!$AI$11<>\"\",INDIRECT(\"'\" & Setup!$AI$11 & \"'!\" & AF50),0) + IF(Setup!$AI$12<>\"\",INDIRECT(\"'\" & Setup!$AI$12 & \"'!\" & AF50),0)","v":0},{"$f":"IF(Setup!$AJ$7<>\"\",INDIRECT(\"'\" & Setup!$AJ$7 & \"'!\" & AF50),0) + IF(Setup!$AJ$8<>\"\",INDIRECT(\"'\" & Setup!$AJ$8 & \"'!\" & AF50),0) + IF(Setup!$AJ$9<>\"\",INDIRECT(\"'\" & Setup!$AJ$9 & \"'!\" & AF50),0) + IF(Setup!$AJ$10<>\"\",INDIRECT(\"'\" & Setup!$AJ$10 & \"'!\" & AF50),0) + IF(Setup!$AJ$11<>\"\",INDIRECT(\"'\" & Setup!$AJ$11 & \"'!\" & AF50),0) + IF(Setup!$AJ$12<>\"\",INDIRECT(\"'\" & Setup!$AJ$12 & \"'!\" & AF50),0)","v":0},null,"",{"$nulls":3},{"$f":"IF(C50=0,\"\",LEFT(INDEX(Lists!$H$5:$H$49,MATCH(C50,Lists!$G$5:$G$49,0),1),1))","v":""},null,"","","","","","","","","","",{"$nulls":6},{"$f":"IF(Setup!$AG$7<>\"\",INDIRECT(\"'\" & Setup!$AG$7 & \"'!\" & AD50),0) + IF(Setup!$AG$8<>\"\",INDIRECT(\"'\" & Setup!$AG$8 & \"'!\" & AD50),0) + IF(Setup!$AG$9<>\"\",INDIRECT(\"'\" & Setup!$AG$9 & \"'!\" & AD50),0) + IF(Setup!$AG$10<>\"\",INDIRECT(\"'\" & Setup!$AG$10 & \"'!\" & AD50),0) + IF(Setup!$AG$11<>\"\",INDIRECT(\"'\" & Setup!$AG$11 & \"'!\" & AD50),0) + IF(Setup!$AG$12<>\"\",INDIRECT(\"'\" & Setup!$AG$12 & \"'!\" & AD50),0)","v":0},{"$f":"IF(Setup!$AG$7<>\"\",INDIRECT(\"'\" & Setup!$AG$7 & \"'!\" & AE50),0) + IF(Setup!$AG$8<>\"\",INDIRECT(\"'\" & Setup!$AG$8 & \"'!\" & AE50),0) + IF(Setup!$AG$9<>\"\",INDIRECT(\"'\" & Setup!$AG$9 & \"'!\" & AE50),0) + IF(Setup!$AG$10<>\"\",INDIRECT(\"'\" & Setup!$AG$10 & \"'!\" & AE50),0) + IF(Setup!$AG$11<>\"\",INDIRECT(\"'\" & Setup!$AG$11 & \"'!\" & AE50),0) + IF(Setup!$AG$12<>\"\",INDIRECT(\"'\" & Setup!$AG$12 & \"'!\" & AE50),0)","v":0},{"$f":"IF(Setup!$AH$7<>\"\",INDIRECT(\"'\" & Setup!$AH$7 & \"'!\" & AD50),0) + IF(Setup!$AH$8<>\"\",INDIRECT(\"'\" & Setup!$AH$8 & \"'!\" & AD50),0) + IF(Setup!$AH$9<>\"\",INDIRECT(\"'\" & Setup!$AH$9 & \"'!\" & AD50),0) + IF(Setup!$AH$10<>\"\",INDIRECT(\"'\" & Setup!$AH$10 & \"'!\" & AD50),0) + IF(Setup!$AH$11<>\"\",INDIRECT(\"'\" & Setup!$AH$11 & \"'!\" & AD50),0) + IF(Setup!$AH$12<>\"\",INDIRECT(\"'\" & Setup!$AH$12 & \"'!\" & AD50),0)","v":0},{"$f":"IF(Setup!$AH$7<>\"\",INDIRECT(\"'\" & Setup!$AH$7 & \"'!\" & AE50),0) + IF(Setup!$AH$8<>\"\",INDIRECT(\"'\" & Setup!$AH$8 & \"'!\" & AE50),0) + IF(Setup!$AH$9<>\"\",INDIRECT(\"'\" & Setup!$AH$9 & \"'!\" & AE50),0) + IF(Setup!$AH$10<>\"\",INDIRECT(\"'\" & Setup!$AH$10 & \"'!\" & AE50),0) + IF(Setup!$AH$11<>\"\",INDIRECT(\"'\" & Setup!$AH$11 & \"'!\" & AE50),0) + IF(Setup!$AH$12<>\"\",INDIRECT(\"'\" & Setup!$AH$12 & \"'!\" & AE50),0)","v":0},{"$f":"IF(Setup!$AI$7<>\"\",INDIRECT(\"'\" & Setup!$AI$7 & \"'!\" & AD50),0) + IF(Setup!$AI$8<>\"\",INDIRECT(\"'\" & Setup!$AI$8 & \"'!\" & AD50),0) + IF(Setup!$AI$9<>\"\",INDIRECT(\"'\" & Setup!$AI$9 & \"'!\" & AD50),0) + IF(Setup!$AI$10<>\"\",INDIRECT(\"'\" & Setup!$AI$10 & \"'!\" & AD50),0) + IF(Setup!$AI$11<>\"\",INDIRECT(\"'\" & Setup!$AI$11 & \"'!\" & AD50),0) + IF(Setup!$AI$12<>\"\",INDIRECT(\"'\" & Setup!$AI$12 & \"'!\" & AD50),0)","v":0},{"$f":"IF(Setup!$AI$7<>\"\",INDIRECT(\"'\" & Setup!$AI$7 & \"'!\" & AE50),0) + IF(Setup!$AI$8<>\"\",INDIRECT(\"'\" & Setup!$AI$8 & \"'!\" & AE50),0) + IF(Setup!$AI$9<>\"\",INDIRECT(\"'\" & Setup!$AI$9 & \"'!\" & AE50),0) + IF(Setup!$AI$10<>\"\",INDIRECT(\"'\" & Setup!$AI$10 & \"'!\" & AE50),0) + IF(Setup!$AI$11<>\"\",INDIRECT(\"'\" & Setup!$AI$11 & \"'!\" & AE50),0) + IF(Setup!$AI$12<>\"\",INDIRECT(\"'\" & Setup!$AI$12 & \"'!\" & AE50),0)","v":0},{"$f":"IF(Setup!$AJ$7<>\"\",INDIRECT(\"'\" & Setup!$AJ$7 & \"'!\" & AD50),0) + IF(Setup!$AJ$8<>\"\",INDIRECT(\"'\" & Setup!$AJ$8 & \"'!\" & AD50),0) + IF(Setup!$AJ$9<>\"\",INDIRECT(\"'\" & Setup!$AJ$9 & \"'!\" & AD50),0) + IF(Setup!$AJ$10<>\"\",INDIRECT(\"'\" & Setup!$AJ$10 & \"'!\" & AD50),0) + IF(Setup!$AJ$11<>\"\",INDIRECT(\"'\" & Setup!$AJ$11 & \"'!\" & AD50),0) + IF(Setup!$AJ$12<>\"\",INDIRECT(\"'\" & Setup!$AJ$12 & \"'!\" & AD50),0)","v":0},{"$f":"IF(Setup!$AJ$7<>\"\",INDIRECT(\"'\" & Setup!$AJ$7 & \"'!\" & AE50),0) + IF(Setup!$AJ$8<>\"\",INDIRECT(\"'\" & Setup!$AJ$8 & \"'!\" & AE50),0) + IF(Setup!$AJ$9<>\"\",INDIRECT(\"'\" & Setup!$AJ$9 & \"'!\" & AE50),0) + IF(Setup!$AJ$10<>\"\",INDIRECT(\"'\" & Setup!$AJ$10 & \"'!\" & AE50),0) + IF(Setup!$AJ$11<>\"\",INDIRECT(\"'\" & Setup!$AJ$11 & \"'!\" & AE50),0) + IF(Setup!$AJ$12<>\"\",INDIRECT(\"'\" & Setup!$AJ$12 & \"'!\" & AE50),0)","v":0}]
[{"$f":"Planning!A34","v":"I026"},{"$f":"Planning!B34","v":0},{"$f":"Planning!C34","v":0},{"$f":"Planning!D34","v":0},{"$f":"Planning!E34","v":0},{"$f":"Planning!G34","v":0},null,0,0,{"$f":"IF(AND($AR51=\"2\",$AB50<>Lists!$A$17),AU51,AT51)","v":""},"",0,0,{"$f":"IF(AND($AR51=\"2\",$AB51<>Lists!$A$17),AW51,AV51)","v":""},"",0,0,{"$f":"IF(AND($AR51=\"2\",$AB51<>Lists!$A$17),AY51,AX51)","v":""},"",0,0,{"$f":"IF(AND($AR51=\"2\",$AB51<>Lists!$A$17),BA51,AZ51)","v":""},"",0,0,{"$f":"IF(AND($AR51=\"2\",$AB51<>Lists!$A$17),BC51,BB51)","v":""},"",{"$f":"Planning!H34","v":0},"00","H50","J50","I50","",null,{"$f":"IF(Setup!$AG$7<>\"\",INDIRECT(\"'\" & Setup!$AG$7 & \"'!\" & AF51),0) + IF(Setup!$AG$8<>\"\",INDIRECT(\"'\" & Setup!$AG$8 & \"'!\" & AF51),0) + IF(Setup!$AG$9<>\"\",INDIRECT(\"'\" & Setup!$AG$9 & \"'!\" & AF51),0) + IF(Setup!$AG$10<>\"\",INDIRECT(\"'\" & Setup!$AG$10 & \"'!\" & AF51),0) + IF(Setup!$AG$11<>\"\",INDIRECT(\"'\" & Setup!$AG$11 & \"'!\" & AF51),0) + IF(Setup!$AG$12<>\"\",INDIRECT(\"'\" & Setup!$AG$12 & \"'!\" & AF51),0)","v":0},{"$f":"IF(Setup!$AH$7<>\"\",INDIRECT(\"'\" & Setup!$AH$7 & \"'!\" & AF51),0) + IF(Setup!$AH$8<>\"\",INDIRECT(\"'\" & Setup!$AH$8 & \"'!\" & AF51),0) + IF(Setup!$AH$9<>\"\",INDIRECT(\"'\" & Setup!$AH$9 & \"'!\" & AF51),0) + IF(Setup!$AH$10<>\"\",INDIRECT(\"'\" & Setup!$AH$10 & \"'!\" & AF51),0) + IF(Setup!$AH$11<>\"\",INDIRECT(\"'\" & Setup!$AH$11 & \"'!\" & AF51),0) + IF(Setup!$AH$12<>\"\",INDIRECT(\"'\" & Setup!$AH$12 & \"'!\" & AF51),0)","v":0},{"$f":"IF(Setup!$AI$7<>\"\",INDIRECT(\"'\" & Setup!$AI$7 & \"'!\" & AF51),0) + IF(Setup!$AI$8<>\"\",INDIRECT(\"'\" & Setup!$AI$8 & \"'!\" & AF51),0) + IF(Setup!$AI$9<>\"\",INDIRECT(\"'\" & Setup!$AI$9 & \"'!\" & AF51),0) + IF(Setup!$AI$10<>\"\",INDIRECT(\"'\" & Setup!$AI$10 & \"'!\" & AF51),0) + IF(Setup!$AI$11<>\"\",INDIRECT(\"'\" & Setup!$AI$11 & \"'!\" & AF51),0) + IF(Setup!$AI$12<>\"\",INDIRECT(\"'\" & Setup!$AI$12 & \"'!\" & AF51),0)","v":0},{"$f":"IF(Setup!$AJ$7<>\"\",INDIRECT(\"'\" & Setup!$AJ$7 & \"'!\" & AF51),0) + IF(Setup!$AJ$8<>\"\",INDIRECT(\"'\" & Setup!$AJ$8 & \"'!\" & AF51),0) + IF(Setup!$AJ$9<>\"\",INDIRECT(\"'\" & Setup!$AJ$9 & \"'!\" & AF51),0) + IF(Setup!$AJ$10<>\"\",INDIRECT(\"'\" & Setup!$AJ$10 & \"'!\" & AF51),0) + IF(Setup!$AJ$11<>\"\",INDIRECT(\"'\" & Setup!$AJ$11 & \"'!\" & AF51),0) + IF(Setup!$AJ$12<>\"\",INDIRECT(\"'\" & Setup!$AJ$12 & \"'!\" & AF51),0)","v":0},null,"",{"$nulls":3},{"$f":"IF(C51=0,\"\",LEFT(INDEX(Lists!$H$5:$H$49,MATCH(C51,Lists!$G$5:$G$49,0),1),1))","v":""},null,"","","","","","","","","","",{"$nulls":6},{"$f":"IF(Setup!$AG$7<>\"\",INDIRECT(\"'\" & Setup!$AG$7 & \"'!\" & AD51),0) + IF(Setup!$AG$8<>\"\",INDIRECT(\"'\" & Setup!$AG$8 & \"'!\" & AD51),0) + IF(Setup!$AG$9<>\"\",INDIRECT(\"'\" & Setup!$AG$9 & \"'!\" & AD51),0) + IF(Setup!$AG$10<>\"\",INDIRECT(\"'\" & Setup!$AG$10 & \"'!\" & AD51),0) + IF(Setup!$AG$11<>\"\",INDIRECT(\"'\" & Setup!$AG$11 & \"'!\" & AD51),0) + IF(Setup!$AG$12<>\"\",INDIRECT(\"'\" & Setup!$AG$12 & \"'!\" & AD51),0)","v":0},{"$f":"IF(Setup!$AG$7<>\"\",INDIRECT(\"'\" & Setup!$AG$7 & \"'!\" & AE51),0) + IF(Setup!$AG$8<>\"\",INDIRECT(\"'\" & Setup!$AG$8 & \"'!\" & AE51),0) + IF(Setup!$AG$9<>\"\",INDIRECT(\"'\" & Setup!$AG$9 & \"'!\" & AE51),0) + IF(Setup!$AG$10<>\"\",INDIRECT(\"'\" & Setup!$AG$10 & \"'!\" & AE51),0) + IF(Setup!$AG$11<>\"\",INDIRECT(\"'\" & Setup!$AG$11 & \"'!\" & AE51),0) + IF(Setup!$AG$12<>\"\",INDIRECT(\"'\" & Setup!$AG$12 & \"'!\" & AE51),0)","v":0},{"$f":"IF(Setup!$AH$7<>\"\",INDIRECT(\"'\" & Setup!$AH$7 & \"'!\" & AD51),0) + IF(Setup!$AH$8<>\"\",INDIRECT(\"'\" & Setup!$AH$8 & \"'!\" & AD51),0) + IF(Setup!$AH$9<>\"\",INDIRECT(\"'\" & Setup!$AH$9 & \"'!\" & AD51),0) + IF(Setup!$AH$10<>\"\",INDIRECT(\"'\" & Setup!$AH$10 & \"'!\" & AD51),0) + IF(Setup!$AH$11<>\"\",INDIRECT(\"'\" & Setup!$AH$11 & \"'!\" & AD51),0) + IF(Setup!$AH$12<>\"\",INDIRECT(\"'\" & Setup!$AH$12 & \"'!\" & AD51),0)","v":0},{"$f":"IF(Setup!$AH$7<>\"\",INDIRECT(\"'\" & Setup!$AH$7 & \"'!\" & AE51),0) + IF(Setup!$AH$8<>\"\",INDIRECT(\"'\" & Setup!$AH$8 & \"'!\" & AE51),0) + IF(Setup!$AH$9<>\"\",INDIRECT(\"'\" & Setup!$AH$9 & \"'!\" & AE51),0) + IF(Setup!$AH$10<>\"\",INDIRECT(\"'\" & Setup!$AH$10 & \"'!\" & AE51),0) + IF(Setup!$AH$11<>\"\",INDIRECT(\"'\" & Setup!$AH$11 & \"'!\" & AE51),0) + IF(Setup!$AH$12<>\"\",INDIRECT(\"'\" & Setup!$AH$12 & \"'!\" & AE51),0)","v":0},{"$f":"IF(Setup!$AI$7<>\"\",INDIRECT(\"'\" & Setup!$AI$7 & \"'!\" & AD51),0) + IF(Setup!$AI$8<>\"\",INDIRECT(\"'\" & Setup!$AI$8 & \"'!\" & AD51),0) + IF(Setup!$AI$9<>\"\",INDIRECT(\"'\" & Setup!$AI$9 & \"'!\" & AD51),0) + IF(Setup!$AI$10<>\"\",INDIRECT(\"'\" & Setup!$AI$10 & \"'!\" & AD51),0) + IF(Setup!$AI$11<>\"\",INDIRECT(\"'\" & Setup!$AI$11 & \"'!\" & AD51),0) + IF(Setup!$AI$12<>\"\",INDIRECT(\"'\" & Setup!$AI$12 & \"'!\" & AD51),0)","v":0},{"$f":"IF(Setup!$AI$7<>\"\",INDIRECT(\"'\" & Setup!$AI$7 & \"'!\" & AE51),0) + IF(Setup!$AI$8<>\"\",INDIRECT(\"'\" & Setup!$AI$8 & \"'!\" & AE51),0) + IF(Setup!$AI$9<>\"\",INDIRECT(\"'\" & Setup!$AI$9 & \"'!\" & AE51),0) + IF(Setup!$AI$10<>\"\",INDIRECT(\"'\" & Setup!$AI$10 & \"'!\" & AE51),0) + IF(Setup!$AI$11<>\"\",INDIRECT(\"'\" & Setup!$AI$11 & \"'!\" & AE51),0) + IF(Setup!$AI$12<>\"\",INDIRECT(\"'\" & Setup!$AI$12 & \"'!\" & AE51),0)","v":0},{"$f":"IF(Setup!$AJ$7<>\"\",INDIRECT(\"'\" & Setup!$AJ$7 & \"'!\" & AD51),0) + IF(Setup!$AJ$8<>\"\",INDIRECT(\"'\" & Setup!$AJ$8 & \"'!\" & AD51),0) + IF(Setup!$AJ$9<>\"\",INDIRECT(\"'\" & Setup!$AJ$9 & \"'!\" & AD51),0) + IF(Setup!$AJ$10<>\"\",INDIRECT(\"'\" & Setup!$AJ$10 & \"'!\" & AD51),0) + IF(Setup!$AJ$11<>\"\",INDIRECT(\"'\" & Setup!$AJ$11 & \"'!\" & AD51),0) + IF(Setup!$AJ$12<>\"\",INDIRECT(\"'\" & Setup!$AJ$12 & \"'!\" & AD51),0)","v":0},{"$f":"IF(Setup!$AJ$7<>\"\",INDIRECT(\"'\" & Setup!$AJ$7 & \"'!\" & AE51),0) + IF(Setup!$AJ$8<>\"\",INDIRECT(\"'\" & Setup!$AJ$8 & \"'!\" & AE51),0) + IF(Setup!$AJ$9<>\"\",INDIRECT(\"'\" & Setup!$AJ$9 & \"'!\" & AE51),0) + IF(Setup!$AJ$10<>\"\",INDIRECT(\"'\" & Setup!$AJ$10 & \"'!\" & AE51),0) + IF(Setup!$AJ$11<>\"\",INDIRECT(\"'\" & Setup!$AJ$11 & \"'!\" & AE51),0) + IF(Setup!$AJ$12<>\"\",INDIRECT(\"'\" & Setup!$AJ$12 & \"'!\" & AE51),0)","v":0}]
[{"$f":"Planning!A35","v":"I027"},{"$f":"Planning!B35","v":0},{"$f":"Planning!C35","v":0},{"$f":"Planning!D35","v":0},{"$f":"Planning!E35","v":0},{"$f":"Planning!G35","v":0},null,0,0,{"$f":"IF(AND($AR52=\"2\",$AB51<>Lists!$A$17),AU52,AT52)","v":""},"",0,0,{"$f":"IF(AND($AR52=\"2\",$AB52<>Lists!$A$17),AW52,AV52)","v":""},"",0,0,{"$f":"IF(AND($AR52=\"2\",$AB52<>Lists!$A$17),AY52,AX52)","v":""},"",0,0,{"$f":"IF(AND($AR52=\"2\",$AB52<>Lists!$A$17),BA52,AZ52)","v":""},"",0,0,{"$f":"IF(AND($AR52=\"2\",$AB52<>Lists!$A$17),BC52,BB52)","v":""},"",{"$f":"Planning!H35","v":0},"00","H51","J51","I51","",null,{"$f":"IF(Setup!$AG$7<>\"\",INDIRECT(\"'\" & Setup!$AG$7 & \"'!\" & AF52),0) + IF(Setup!$AG$8<>\"\",INDIRECT(\"'\" & Setup!$AG$8 & \"'!\" & AF52),0) + IF(Setup!$AG$9<>\"\",INDIRECT(\"'\" & Setup!$AG$9 & \"'!\" & AF52),0) + IF(Setup!$AG$10<>\"\",INDIRECT(\"'\" & Setup!$AG$10 & \"'!\" & AF52),0) + IF(Setup!$AG$11<>\"\",INDIRECT(\"'\" & Setup!$AG$11 & \"'!\" & AF52),0) + IF(Setup!$AG$12<>\"\",INDIRECT(\"'\" & Setup!$AG$12 & \"'!\" & AF52),0)","v":0},{"$f":"IF(Setup!$AH$7<>\"\",INDIRECT(\"'\" & Setup!$AH$7 & \"'!\" & AF52),0) + IF(Setup!$AH$8<>\"\",INDIRECT(\"'\" & Setup!$AH$8 & \"'!\" & AF52),0) + IF(Setup!$AH$9<>\"\",INDIRECT(\"'\" & Setup!$AH$9 & \"'!\" & AF52),0) + IF(Setup!$AH$10<>\"\",INDIRECT(\"'\" & Setup!$AH$10 & \"'!\" & AF52),0) + IF(Setup!$AH$11<>\"\",INDIRECT(\"'\" & Setup!$AH$11 & \"'!\" & AF52),0) + IF(Setup!$AH$12<>\"\",INDIRECT(\"'\" & Setup!$AH$12 & \"'!\" & AF52),0)","v":0},{"$f":"IF(Setup!$AI$7<>\"\",INDIRECT(\"'\" & Setup!$AI$7 & \"'!\" & AF52),0) + IF(Setup!$AI$8<>\"\",INDIRECT(\"'\" & Setup!$AI$8 & \"'!\" & AF52),0) + IF(Setup!$AI$9<>\"\",INDIRECT(\"'\" & Setup!$AI$9 & \"'!\" & AF52),0) + IF(Setup!$AI$10<>\"\",INDIRECT(\"'\" & Setup!$AI$10 & \"'!\" & AF52),0) + IF(Setup!$AI$11<>\"\",INDIRECT(\"'\" & Setup!$AI$11 & \"'!\" & AF52),0) + IF(Setup!$AI$12<>\"\",INDIRECT(\"'\" & Setup!$AI$12 & \"'!\" & AF52),0)","v":0},{"$f":"IF(Setup!$AJ$7<>\"\",INDIRECT(\"'\" & Setup!$AJ$7 & \"'!\" & AF52),0) + IF(Setup!$AJ$8<>\"\",INDIRECT(\"'\" & Setup!$AJ$8 & \"'!\" & AF52),0) + IF(Setup!$AJ$9<>\"\",INDIRECT(\"'\" & Setup!$AJ$9 & \"'!\" & AF52),0) + IF(Setup!$AJ$10<>\"\",INDIRECT(\"'\" & Setup!$AJ$10 & \"'!\" & AF52),0) + IF(Setup!$AJ$11<>\"\",INDIRECT(\"'\" & Setup!$AJ$11 & \"'!\" & AF52),0) + IF(Setup!$AJ$12<>\"\",INDIRECT(\"'\" & Setup!$AJ$12 & \"'!\" & AF52),0)","v":0},null,"",{"$nulls":3},{"$f":"IF(C52=0,\"\",LEFT(INDEX(Lists!$H$5:$H$49,MATCH(C52,Lists!$G$5:$G$49,0),1),1))","v":""},null,"","","","","","","","","","",{"$nulls":6},{"$f":"IF(Setup!$AG$7<>\"\",INDIRECT(\"'\" & Setup!$AG$7 & \"'!\" & AD52),0) + IF(Setup!$AG$8<>\"\",INDIRECT(\"'\" & Setup!$AG$8 & \"'!\" & AD52),0) + IF(Setup!$AG$9<>\"\",INDIRECT(\"'\" & Setup!$AG$9 & \"'!\" & AD52),0) + IF(Setup!$AG$10<>\"\",INDIRECT(\"'\" & Setup!$AG$10 & \"'!\" & AD52),0) + IF(Setup!$AG$11<>\"\",INDIRECT(\"'\" & Setup!$AG$11 & \"'!\" & AD52),0) + IF(Setup!$AG$12<>\"\",INDIRECT(\"'\" & Setup!$AG$12 & \"'!\" & AD52),0)","v":0},{"$f":"IF(Setup!$AG$7<>\"\",INDIRECT(\"'\" & Setup!$AG$7 & \"'!\" & AE52),0) + IF(Setup!$AG$8<>\"\",INDIRECT(\"'\" & Setup!$AG$8 & \"'!\" & AE52),0) + IF(Setup!$AG$9<>\"\",INDIRECT(\"'\" & Setup!$AG$9 & \"'!\" & AE52),0) + IF(Setup!$AG$10<>\"\",INDIRECT(\"'\" & Setup!$AG$10 & \"'!\" & AE52),0) + IF(Setup!$AG$11<>\"\",INDIRECT(\"'\" & Setup!$AG$11 & \"'!\" & AE52),0) + IF(Setup!$AG$12<>\"\",INDIRECT(\"'\" & Setup!$AG$12 & \"'!\" & AE52),0)","v":0},{"$f":"IF(Setup!$AH$7<>\"\",INDIRECT(\"'\" & Setup!$AH$7 & \"'!\" & AD52),0) + IF(Setup!$AH$8<>\"\",INDIRECT(\"'\" & Setup!$AH$8 & \"'!\" & AD52),0) + IF(Setup!$AH$9<>\"\",INDIRECT(\"'\" & Setup!$AH$9 & \"'!\" & AD52),0) + IF(Setup!$AH$10<>\"\",INDIRECT(\"'\" & Setup!$AH$10 & \"'!\" & AD52),0) + IF(Setup!$AH$11<>\"\",INDIRECT(\"'\" & Setup!$AH$11 & \"'!\" & AD52),0) + IF(Setup!$AH$12<>\"\",INDIRECT(\"'\" & Setup!$AH$12 & \"'!\" & AD52),0)","v":0},{"$f":"IF(Setup!$AH$7<>\"\",INDIRECT(\"'\" & Setup!$AH$7 & \"'!\" & AE52),0) + IF(Setup!$AH$8<>\"\",INDIRECT(\"'\" & Setup!$AH$8 & \"'!\" & AE52),0) + IF(Setup!$AH$9<>\"\",INDIRECT(\"'\" & Setup!$AH$9 & \"'!\" & AE52),0) + IF(Setup!$AH$10<>\"\",INDIRECT(\"'\" & Setup!$AH$10 & \"'!\" & AE52),0) + IF(Setup!$AH$11<>\"\",INDIRECT(\"'\" & Setup!$AH$11 & \"'!\" & AE52),0) + IF(Setup!$AH$12<>\"\",INDIRECT(\"'\" & Setup!$AH$12 & \"'!\" & AE52),0)","v":0},{"$f":"IF(Setup!$AI$7<>\"\",INDIRECT(\"'\" & Setup!$AI$7 & \"'!\" & AD52),0) + IF(Setup!$AI$8<>\"\",INDIRECT(\"'\" & Setup!$AI$8 & \"'!\" & AD52),0) + IF(Setup!$AI$9<>\"\",INDIRECT(\"'\" & Setup!$AI$9 & \"'!\" & AD52),0) + IF(Setup!$AI$10<>\"\",INDIRECT(\"'\" & Setup!$AI$10 & \"'!\" & AD52),0) + IF(Setup!$AI$11<>\"\",INDIRECT(\"'\" & Setup!$AI$11 & \"'!\" & AD52),0) + IF(Setup!$AI$12<>\"\",INDIRECT(\"'\" & Setup!$AI$12 & \"'!\" & AD52),0)","v":0},{"$f":"IF(Setup!$AI$7<>\"\",INDIRECT(\"'\" & Setup!$AI$7 & \"'!\" & AE52),0) + IF(Setup!$AI$8<>\"\",INDIRECT(\"'\" & Setup!$AI$8 & \"'!\" & AE52),0) + IF(Setup!$AI$9<>\"\",INDIRECT(\"'\" & Setup!$AI$9 & \"'!\" & AE52),0) + IF(Setup!$AI$10<>\"\",INDIRECT(\"'\" & Setup!$AI$10 & \"'!\" & AE52),0) + IF(Setup!$AI$11<>\"\",INDIRECT(\"'\" & Setup!$AI$11 & \"'!\" & AE52),0) + IF(Setup!$AI$12<>\"\",INDIRECT(\"'\" & Setup!$AI$12 & \"'!\" & AE52),0)","v":0},{"$f":"IF(Setup!$AJ$7<>\"\",INDIRECT(\"'\" & Setup!$AJ$7 & \"'!\" & AD52),0) + IF(Setup!$AJ$8<>\"\",INDIRECT(\"'\" & Setup!$AJ$8 & \"'!\" & AD52),0) + IF(Setup!$AJ$9<>\"\",INDIRECT(\"'\" & Setup!$AJ$9 & \"'!\" & AD52),0) + IF(Setup!$AJ$10<>\"\",INDIRECT(\"'\" & Setup!$AJ$10 & \"'!\" & AD52),0) + IF(Setup!$AJ$11<>\"\",INDIRECT(\"'\" & Setup!$AJ$11 & \"'!\" & AD52),0) + IF(Setup!$AJ$12<>\"\",INDIRECT(\"'\" & Setup!$AJ$12 & \"'!\" & AD52),0)","v":0},{"$f":"IF(Setup!$AJ$7<>\"\",INDIRECT(\"'\" & Setup!$AJ$7 & \"'!\" & AE52),0) + IF(Setup!$AJ$8<>\"\",INDIRECT(\"'\" & Setup!$AJ$8 & \"'!\" & AE52),0) + IF(Setup!$AJ$9<>\"\",INDIRECT(\"'\" & Setup!$AJ$9 & \"'!\" & AE52),0) + IF(Setup!$AJ$10<>\"\",INDIRECT(\"'\" & Setup!$AJ$10 & \"'!\" & AE52),0) + IF(Setup!$AJ$11<>\"\",INDIRECT(\"'\" & Setup!$AJ$11 & \"'!\" & AE52),0) + IF(Setup!$AJ$12<>\"\",INDIRECT(\"'\" & Setup!$AJ$12 & \"'!\" & AE52),0)","v":0}]
[{"$f":"Planning!A36","v":"I028"},{"$f":"Planning!B36","v":0},{"$f":"Planning!C36","v":0},{"$f":"Planning!D36","v":0},{"$f":"Planning!E36","v":0},{"$f":"Planning!G36","v":0},null,0,0,{"$f":"IF(AND($AR53=\"2\",$AB52<>Lists!$A$17),AU53,AT53)","v":""},"",0,0,{"$f":"IF(AND($AR53=\"2\",$AB53<>Lists!$A$17),AW53,AV53)","v":""},"",0,0,{"$f":"IF(AND($AR53=\"2\",$AB53<>Lists!$A$17),AY53,AX53)","v":""},"",0,0,{"$f":"IF(AND($AR53=\"2\",$AB53<>Lists!$A$17),BA53,AZ53)","v":""},"",0,0,{"$f":"IF(AND($AR53=\"2\",$AB53<>Lists!$A$17),BC53,BB53)","v":""},"",{"$f":"Planning!H36","v":0},"00","H52","J52","I52","",null,{"$f":"IF(Setup!$AG$7<>\"\",INDIRECT(\"'\" & Setup!$AG$7 & \"'!\" & AF53),0) + IF(Setup!$AG$8<>\"\",INDIRECT(\"'\" & Setup!$AG$8 & \"'!\" & AF53),0) + IF(Setup!$AG$9<>\"\",INDIRECT(\"'\" & Setup!$AG$9 & \"'!\" & AF53),0) + IF(Setup!$AG$10<>\"\",INDIRECT(\"'\" & Setup!$AG$10 & \"'!\" & AF53),0) + IF(Setup!$AG$11<>\"\",INDIRECT(\"'\" & Setup!$AG$11 & \"'!\" & AF53),0) + IF(Setup!$AG$12<>\"\",INDIRECT(\"'\" & Setup!$AG$12 & \"'!\" & AF53),0)","v":0},{"$f":"IF(Setup!$AH$7<>\"\",INDIRECT(\"'\" & Setup!$AH$7 & \"'!\" & AF53),0) + IF(Setup!$AH$8<>\"\",INDIRECT(\"'\" & Setup!$AH$8 & \"'!\" & AF53),0) + IF(Setup!$AH$9<>\"\",INDIRECT(\"'\" & Setup!$AH$9 & \"'!\" & AF53),0) + IF(Setup!$AH$10<>\"\",INDIRECT(\"'\" & Setup!$AH$10 & \"'!\" & AF53),0) + IF(Setup!$AH$11<>\"\",INDIRECT(\"'\" & Setup!$AH$11 & \"'!\" & AF53),0) + IF(Setup!$AH$12<>\"\",INDIRECT(\"'\" & Setup!$AH$12 & \"'!\" & AF53),0)","v":0},{"$f":"IF(Setup!$AI$7<>\"\",INDIRECT(\"'\" & Setup!$AI$7 & \"'!\" & AF53),0) + IF(Setup!$AI$8<>\"\",INDIRECT(\"'\" & Setup!$AI$8 & \"'!\" & AF53),0) + IF(Setup!$AI$9<>\"\",INDIRECT(\"'\" & Setup!$AI$9 & \"'!\" & AF53),0) + IF(Setup!$AI$10<>\"\",INDIRECT(\"'\" & Setup!$AI$10 & \"'!\" & AF53),0) + IF(Setup!$AI$11<>\"\",INDIRECT(\"'\" & Setup!$AI$11 & \"'!\" & AF53),0) + IF(Setup!$AI$12<>\"\",INDIRECT(\"'\" & Setup!$AI$12 & \"'!\" & AF53),0)","v":0},{"$f":"IF(Setup!$AJ$7<>\"\",INDIRECT(\"'\" & Setup!$AJ$7 & \"'!\" & AF53),0) + IF(Setup!$AJ$8<>\"\",INDIRECT(\"'\" & Setup!$AJ$8 & \"'!\" & AF53),0) + IF(Setup!$AJ$9<>\"\",INDIRECT(\"'\" & Setup!$AJ$9 & \"'!\" & AF53),0) + IF(Setup!$AJ$10<>\"\",INDIRECT(\"'\" & Setup!$AJ$10 & \"'!\" & AF53),0) + IF(Setup!$AJ$11<>\"\",INDIRECT(\"'\" & Setup!$AJ$11 & \"'!\" & AF53),0) + IF(Setup!$AJ$12<>\"\",INDIRECT(\"'\" & Setup!$AJ$12 & \"'!\" & AF53),0)","v":0},null,"",{"$nulls":3},{"$f":"IF(C53=0,\"\",LEFT(INDEX(Lists!$H$5:$H$49,MATCH(C53,Lists!$G$5:$G$49,0),1),1))","v":""},null,"","","","","","","","","","",{"$nulls":6},{"$f":"IF(Setup!$AG$7<>\"\",INDIRECT(\"'\" & Setup!$AG$7 & \"'!\" & AD53),0) + IF(Setup!$AG$8<>\"\",INDIRECT(\"'\" & Setup!$AG$8 & \"'!\" & AD53),0) + IF(Setup!$AG$9<>\"\",INDIRECT(\"'\" & Setup!$AG$9 & \"'!\" & AD53),0) + IF(Setup!$AG$10<>\"\",INDIRECT(\"'\" & Setup!$AG$10 & \"'!\" & AD53),0) + IF(Setup!$AG$11<>\"\",INDIRECT(\"'\" & Setup!$AG$11 & \"'!\" & AD53),0) + IF(Setup!$AG$12<>\"\",INDIRECT(\"'\" & Setup!$AG$12 & \"'!\" & AD53),0)","v":0},{"$f":"IF(Setup!$AG$7<>\"\",INDIRECT(\"'\" & Setup!$AG$7 & \"'!\" & AE53),0) + IF(Setup!$AG$8<>\"\",INDIRECT(\"'\" & Setup!$AG$8 & \"'!\" & AE53),0) + IF(Setup!$AG$9<>\"\",INDIRECT(\"'\" & Setup!$AG$9 & \"'!\" & AE53),0) + IF(Setup!$AG$10<>\"\",INDIRECT(\"'\" & Setup!$AG$10 & \"'!\" & AE53),0) + IF(Setup!$AG$11<>\"\",INDIRECT(\"'\" & Setup!$AG$11 & \"'!\" & AE53),0) + IF(Setup!$AG$12<>\"\",INDIRECT(\"'\" & Setup!$AG$12 & \"'!\" & AE53),0)","v":0},{"$f":"IF(Setup!$AH$7<>\"\",INDIRECT(\"'\" & Setup!$AH$7 & \"'!\" & AD53),0) + IF(Setup!$AH$8<>\"\",INDIRECT(\"'\" & Setup!$AH$8 & \"'!\" & AD53),0) + IF(Setup!$AH$9<>\"\",INDIRECT(\"'\" & Setup!$AH$9 & \"'!\" & AD53),0) + IF(Setup!$AH$10<>\"\",INDIRECT(\"'\" & Setup!$AH$10 & \"'!\" & AD53),0) + IF(Setup!$AH$11<>\"\",INDIRECT(\"'\" & Setup!$AH$11 & \"'!\" & AD53),0) + IF(Setup!$AH$12<>\"\",INDIRECT(\"'\" & Setup!$AH$12 & \"'!\" & AD53),0)","v":0},{"$f":"IF(Setup!$AH$7<>\"\",INDIRECT(\"'\" & Setup!$AH$7 & \"'!\" & AE53),0) + IF(Setup!$AH$8<>\"\",INDIRECT(\"'\" & Setup!$AH$8 & \"'!\" & AE53),0) + IF(Setup!$AH$9<>\"\",INDIRECT(\"'\" & Setup!$AH$9 & \"'!\" & AE53),0) + IF(Setup!$AH$10<>\"\",INDIRECT(\"'\" & Setup!$AH$10 & \"'!\" & AE53),0) + IF(Setup!$AH$11<>\"\",INDIRECT(\"'\" & Setup!$AH$11 & \"'!\" & AE53),0) + IF(Setup!$AH$12<>\"\",INDIRECT(\"'\" & Setup!$AH$12 & \"'!\" & AE53),0)","v":0},{"$f":"IF(Setup!$AI$7<>\"\",INDIRECT(\"'\" & Setup!$AI$7 & \"'!\" & AD53),0) + IF(Setup!$AI$8<>\"\",INDIRECT(\"'\" & Setup!$AI$8 & \"'!\" & AD53),0) + IF(Setup!$AI$9<>\"\",INDIRECT(\"'\" & Setup!$AI$9 & \"'!\" & AD53),0) + IF(Setup!$AI$10<>\"\",INDIRECT(\"'\" & Setup!$AI$10 & \"'!\" & AD53),0) + IF(Setup!$AI$11<>\"\",INDIRECT(\"'\" & Setup!$AI$11 & \"'!\" & AD53),0) + IF(Setup!$AI$12<>\"\",INDIRECT(\"'\" & Setup!$AI$12 & \"'!\" & AD53),0)","v":0},{"$f":"IF(Setup!$AI$7<>\"\",INDIRECT(\"'\" & Setup!$AI$7 & \"'!\" & AE53),0) + IF(Setup!$AI$8<>\"\",INDIRECT(\"'\" & Setup!$AI$8 & \"'!\" & AE53),0) + IF(Setup!$AI$9<>\"\",INDIRECT(\"'\" & Setup!$AI$9 & \"'!\" & AE53),0) + IF(Setup!$AI$10<>\"\",INDIRECT(\"'\" & Setup!$AI$10 & \"'!\" & AE53),0) + IF(Setup!$AI$11<>\"\",INDIRECT(\"'\" & Setup!$AI$11 & \"'!\" & AE53),0) + IF(Setup!$AI$12<>\"\",INDIRECT(\"'\" & Setup!$AI$12 & \"'!\" & AE53),0)","v":0},{"$f":"IF(Setup!$AJ$7<>\"\",INDIRECT(\"'\" & Setup!$AJ$7 & \"'!\" & AD53),0) + IF(Setup!$AJ$8<>\"\",INDIRECT(\"'\" & Setup!$AJ$8 & \"'!\" & AD53),0) + IF(Setup!$AJ$9<>\"\",INDIRECT(\"'\" & Setup!$AJ$9 & \"'!\" & AD53),0) + IF(Setup!$AJ$10<>\"\",INDIRECT(\"'\" & Setup!$AJ$10 & \"'!\" & AD53),0) + IF(Setup!$AJ$11<>\"\",INDIRECT(\"'\" & Setup!$AJ$11 & \"'!\" & AD53),0) + IF(Setup!$AJ$12<>\"\",INDIRECT(\"'\" & Setup!$AJ$12 & \"'!\" & AD53),0)","v":0},{"$f":"IF(Setup!$AJ$7<>\"\",INDIRECT(\"'\" & Setup!$AJ$7 & \"'!\" & AE53),0) + IF(Setup!$AJ$8<>\"\",INDIRECT(\"'\" & Setup!$AJ$8 & \"'!\" & AE53),0) + IF(Setup!$AJ$9<>\"\",INDIRECT(\"'\" & Setup!$AJ$9 & \"'!\" & AE53),0) + IF(Setup!$AJ$10<>\"\",INDIRECT(\"'\" & Setup!$AJ$10 & \"'!\" & AE53),0) + IF(Setup!$AJ$11<>\"\",INDIRECT(\"'\" & Setup!$AJ$11 & \"'!\" & AE53),0) + IF(Setup!$AJ$12<>\"\",INDIRECT(\"'\" & Setup!$AJ$12 & \"'!\" & AE53),0)","v":0}]
[{"$f":"Planning!A37","v":"I029"},{"$f":"Planning!B37","v":0},{"$f":"Planning!C37","v":0},{"$f":"Planning!D37","v":0},{"$f":"Planning!E37","v":0},{"$f":"Planning!G37","v":0},null,0,0,{"$f":"IF(AND($AR54=\"2\",$AB53<>Lists!$A$17),AU54,AT54)","v":""},"",0,0,{"$f":"IF(AND($AR54=\"2\",$AB54<>Lists!$A$17),AW54,AV54)","v":""},"",0,0,{"$f":"IF(AND($AR54=\"2\",$AB54<>Lists!$A$17),AY54,AX54)","v":""},"",0,0,{"$f":"IF(AND($AR54=\"2\",$AB54<>Lists!$A$17),BA54,AZ54)","v":""},"",0,0,{"$f":"IF(AND($AR54=\"2\",$AB54<>Lists!$A$17),BC54,BB54)","v":""},"",{"$f":"Planning!H37","v":0},"00","H53","J53","I53","",null,{"$f":"IF(Setup!$AG$7<>\"\",INDIRECT(\"'\" & Setup!$AG$7 & \"'!\" & AF54),0) + IF(Setup!$AG$8<>\"\",INDIRECT(\"'\" & Setup!$AG$8 & \"'!\" & AF54),0) + IF(Setup!$AG$9<>\"\",INDIRECT(\"'\" & Setup!$AG$9 & \"'!\" & AF54),0) + IF(Setup!$AG$10<>\"\",INDIRECT(\"'\" & Setup!$AG$10 & \"'!\" & AF54),0) + IF(Setup!$AG$11<>\"\",INDIRECT(\"'\" & Setup!$AG$11 & \"'!\" & AF54),0) + IF(Setup!$AG$12<>\"\",INDIRECT(\"'\" & Setup!$AG$12 & \"'!\" & AF54),0)","v":0},{"$f":"IF(Setup!$AH$7<>\"\",INDIRECT(\"'\" & Setup!$AH$7 & \"'!\" & AF54),0) + IF(Setup!$AH$8<>\"\",INDIRECT(\"'\" & Setup!$AH$8 & \"'!\" & AF54),0) + IF(Setup!$AH$9<>\"\",INDIRECT(\"'\" & Setup!$AH$9 & \"'!\" & AF54),0) + IF(Setup!$AH$10<>\"\",INDIRECT(\"'\" & Setup!$AH$10 & \"'!\" & AF54),0) + IF(Setup!$AH$11<>\"\",INDIRECT(\"'\" & Setup!$AH$11 & \"'!\" & AF54),0) + IF(Setup!$AH$12<>\"\",INDIRECT(\"'\" & Setup!$AH$12 & \"'!\" & AF54),0)","v":0},{"$f":"IF(Setup!$AI$7<>\"\",INDIRECT(\"'\" & Setup!$AI$7 & \"'!\" & AF54),0) + IF(Setup!$AI$8<>\"\",INDIRECT(\"'\" & Setup!$AI$8 & \"'!\" & AF54),0) + IF(Setup!$AI$9<>\"\",INDIRECT(\"'\" & Setup!$AI$9 & \"'!\" & AF54),0) + IF(Setup!$AI$10<>\"\",INDIRECT(\"'\" & Setup!$AI$10 & \"'!\" & AF54),0) + IF(Setup!$AI$11<>\"\",INDIRECT(\"'\" & Setup!$AI$11 & \"'!\" & AF54),0) + IF(Setup!$AI$12<>\"\",INDIRECT(\"'\" & Setup!$AI$12 & \"'!\" & AF54),0)","v":0},{"$f":"IF(Setup!$AJ$7<>\"\",INDIRECT(\"'\" & Setup!$AJ$7 & \"'!\" & AF54),0) + IF(Setup!$AJ$8<>\"\",INDIRECT(\"'\" & Setup!$AJ$8 & \"'!\" & AF54),0) + IF(Setup!$AJ$9<>\"\",INDIRECT(\"'\" & Setup!$AJ$9 & \"'!\" & AF54),0) + IF(Setup!$AJ$10<>\"\",INDIRECT(\"'\" & Setup!$AJ$10 & \"'!\" & AF54),0) + IF(Setup!$AJ$11<>\"\",INDIRECT(\"'\" & Setup!$AJ$11 & \"'!\" & AF54),0) + IF(Setup!$AJ$12<>\"\",INDIRECT(\"'\" & Setup!$AJ$12 & \"'!\" & AF54),0)","v":0},null,"",{"$nulls":3},{"$f":"IF(C54=0,\"\",LEFT(INDEX(Lists!$H$5:$H$49,MATCH(C54,Lists!$G$5:$G$49,0),1),1))","v":""},null,"","","","","","","","","","",{"$nulls":6},{"$f":"IF(Setup!$AG$7<>\"\",INDIRECT(\"'\" & Setup!$AG$7 & \"'!\" & AD54),0) + IF(Setup!$AG$8<>\"\",INDIRECT(\"'\" & Setup!$AG$8 & \"'!\" & AD54),0) + IF(Setup!$AG$9<>\"\",INDIRECT(\"'\" & Setup!$AG$9 & \"'!\" & AD54),0) + IF(Setup!$AG$10<>\"\",INDIRECT(\"'\" & Setup!$AG$10 & \"'!\" & AD54),0) + IF(Setup!$AG$11<>\"\",INDIRECT(\"'\" & Setup!$AG$11 & \"'!\" & AD54),0) + IF(Setup!$AG$12<>\"\",INDIRECT(\"'\" & Setup!$AG$12 & \"'!\" & AD54),0)","v":0},{"$f":"IF(Setup!$AG$7<>\"\",INDIRECT(\"'\" & Setup!$AG$7 & \"'!\" & AE54),0) + IF(Setup!$AG$8<>\"\",INDIRECT(\"'\" & Setup!$AG$8 & \"'!\" & AE54),0) + IF(Setup!$AG$9<>\"\",INDIRECT(\"'\" & Setup!$AG$9 & \"'!\" & AE54),0) + IF(Setup!$AG$10<>\"\",INDIRECT(\"'\" & Setup!$AG$10 & \"'!\" & AE54),0) + IF(Setup!$AG$11<>\"\",INDIRECT(\"'\" & Setup!$AG$11 & \"'!\" & AE54),0) + IF(Setup!$AG$12<>\"\",INDIRECT(\"'\" & Setup!$AG$12 & \"'!\" & AE54),0)","v":0},{"$f":"IF(Setup!$AH$7<>\"\",INDIRECT(\"'\" & Setup!$AH$7 & \"'!\" & AD54),0) + IF(Setup!$AH$8<>\"\",INDIRECT(\"'\" & Setup!$AH$8 & \"'!\" & AD54),0) + IF(Setup!$AH$9<>\"\",INDIRECT(\"'\" & Setup!$AH$9 & \"'!\" & AD54),0) + IF(Setup!$AH$10<>\"\",INDIRECT(\"'\" & Setup!$AH$10 & \"'!\" & AD54),0) + IF(Setup!$AH$11<>\"\",INDIRECT(\"'\" & Setup!$AH$11 & \"'!\" & AD54),0) + IF(Setup!$AH$12<>\"\",INDIRECT(\"'\" & Setup!$AH$12 & \"'!\" & AD54),0)","v":0},{"$f":"IF(Setup!$AH$7<>\"\",INDIRECT(\"'\" & Setup!$AH$7 & \"'!\" & AE54),0) + IF(Setup!$AH$8<>\"\",INDIRECT(\"'\" & Setup!$AH$8 & \"'!\" & AE54),0) + IF(Setup!$AH$9<>\"\",INDIRECT(\"'\" & Setup!$AH$9 & \"'!\" & AE54),0) + IF(Setup!$AH$10<>\"\",INDIRECT(\"'\" & Setup!$AH$10 & \"'!\" & AE54),0) + IF(Setup!$AH$11<>\"\",INDIRECT(\"'\" & Setup!$AH$11 & \"'!\" & AE54),0) + IF(Setup!$AH$12<>\"\",INDIRECT(\"'\" & Setup!$AH$12 & \"'!\" & AE54),0)","v":0},{"$f":"IF(Setup!$AI$7<>\"\",INDIRECT(\"'\" & Setup!$AI$7 & \"'!\" & AD54),0) + IF(Setup!$AI$8<>\"\",INDIRECT(\"'\" & Setup!$AI$8 & \"'!\" & AD54),0) + IF(Setup!$AI$9<>\"\",INDIRECT(\"'\" & Setup!$AI$9 & \"'!\" & AD54),0) + IF(Setup!$AI$10<>\"\",INDIRECT(\"'\" & Setup!$AI$10 & \"'!\" & AD54),0) + IF(Setup!$AI$11<>\"\",INDIRECT(\"'\" & Setup!$AI$11 & \"'!\" & AD54),0) + IF(Setup!$AI$12<>\"\",INDIRECT(\"'\" & Setup!$AI$12 & \"'!\" & AD54),0)","v":0},{"$f":"IF(Setup!$AI$7<>\"\",INDIRECT(\"'\" & Setup!$AI$7 & \"'!\" & AE54),0) + IF(Setup!$AI$8<>\"\",INDIRECT(\"'\" & Setup!$AI$8 & \"'!\" & AE54),0) + IF(Setup!$AI$9<>\"\",INDIRECT(\"'\" & Setup!$AI$9 & \"'!\" & AE54),0) + IF(Setup!$AI$10<>\"\",INDIRECT(\"'\" & Setup!$AI$10 & \"'!\" & AE54),0) + IF(Setup!$AI$11<>\"\",INDIRECT(\"'\" & Setup!$AI$11 & \"'!\" & AE54),0) + IF(Setup!$AI$12<>\"\",INDIRECT(\"'\" & Setup!$AI$12 & \"'!\" & AE54),0)","v":0},{"$f":"IF(Setup!$AJ$7<>\"\",INDIRECT(\"'\" & Setup!$AJ$7 & \"'!\" & AD54),0) + IF(Setup!$AJ$8<>\"\",INDIRECT(\"'\" & Setup!$AJ$8 & \"'!\" & AD54),0) + IF(Setup!$AJ$9<>\"\",INDIRECT(\"'\" & Setup!$AJ$9 & \"'!\" & AD54),0) + IF(Setup!$AJ$10<>\"\",INDIRECT(\"'\" & Setup!$AJ$10 & \"'!\" & AD54),0) + IF(Setup!$AJ$11<>\"\",INDIRECT(\"'\" & Setup!$AJ$11 & \"'!\" & AD54),0) + IF(Setup!$AJ$12<>\"\",INDIRECT(\"'\" & Setup!$AJ$12 & \"'!\" & AD54),0)","v":0},{"$f":"IF(Setup!$AJ$7<>\"\",INDIRECT(\"'\" & Setup!$AJ$7 & \"'!\" & AE54),0) + IF(Setup!$AJ$8<>\"\",INDIRECT(\"'\" & Setup!$AJ$8 & \"'!\" & AE54),0) + IF(Setup!$AJ$9<>\"\",INDIRECT(\"'\" & Setup!$AJ$9 & \"'!\" & AE54),0) + IF(Setup!$AJ$10<>\"\",INDIRECT(\"'\" & Setup!$AJ$10 & \"'!\" & AE54),0) + IF(Setup!$AJ$11<>\"\",INDIRECT(\"'\" & Setup!$AJ$11 & \"'!\" & AE54),0) + IF(Setup!$AJ$12<>\"\",INDIRECT(\"'\" & Setup!$AJ$12 & \"'!\" & AE54),0)","v":0}]
[{"$f":"Planning!A38","v":"I030"},{"$f":"Planning!B38","v":0},{"$f":"Planning!C38","v":0},{"$f":"Planning!D38","v":0},{"$f":"Planning!E38","v":0},{"$f":"Planning!G38","v":0},null,0,0,{"$f":"IF(AND($AR55=\"2\",$AB54<>Lists!$A$17),AU55,AT55)","v":""},"",0,0,{"$f":"IF(AND($AR55=\"2\",$AB55<>Lists!$A$17),AW55,AV55)","v":""},"",0,0,{"$f":"IF(AND($AR55=\"2\",$AB55<>Lists!$A$17),AY55,AX55)","v":""},"",0,0,{"$f":"IF(AND($AR55=\"2\",$AB55<>Lists!$A$17),BA55,AZ55)","v":""},"",0,0,{"$f":"IF(AND($AR55=\"2\",$AB55<>Lists!$A$17),BC55,BB55)","v":""},"",{"$f":"Planning!H38","v":0},"00","H54","J54","I54","",null,{"$f":"IF(Setup!$AG$7<>\"\",INDIRECT(\"'\" & Setup!$AG$7 & \"'!\" & AF55),0) + IF(Setup!$AG$8<>\"\",INDIRECT(\"'\" & Setup!$AG$8 & \"'!\" & AF55),0) + IF(Setup!$AG$9<>\"\",INDIRECT(\"'\" & Setup!$AG$9 & \"'!\" & AF55),0) + IF(Setup!$AG$10<>\"\",INDIRECT(\"'\" & Setup!$AG$10 & \"'!\" & AF55),0) + IF(Setup!$AG$11<>\"\",INDIRECT(\"'\" & Setup!$AG$11 & \"'!\" & AF55),0) + IF(Setup!$AG$12<>\"\",INDIRECT(\"'\" & Setup!$AG$12 & \"'!\" & AF55),0)","v":0},{"$f":"IF(Setup!$AH$7<>\"\",INDIRECT(\"'\" & Setup!$AH$7 & \"'!\" & AF55),0) + IF(Setup!$AH$8<>\"\",INDIRECT(\"'\" & Setup!$AH$8 & \"'!\" & AF55),0) + IF(Setup!$AH$9<>\"\",INDIRECT(\"'\" & Setup!$AH$9 & \"'!\" & AF55),0) + IF(Setup!$AH$10<>\"\",INDIRECT(\"'\" & Setup!$AH$10 & \"'!\" & AF55),0) + IF(Setup!$AH$11<>\"\",INDIRECT(\"'\" & Setup!$AH$11 & \"'!\" & AF55),0) + IF(Setup!$AH$12<>\"\",INDIRECT(\"'\" & Setup!$AH$12 & \"'!\" & AF55),0)","v":0},{"$f":"IF(Setup!$AI$7<>\"\",INDIRECT(\"'\" & Setup!$AI$7 & \"'!\" & AF55),0) + IF(Setup!$AI$8<>\"\",INDIRECT(\"'\" & Setup!$AI$8 & \"'!\" & AF55),0) + IF(Setup!$AI$9<>\"\",INDIRECT(\"'\" & Setup!$AI$9 & \"'!\" & AF55),0) + IF(Setup!$AI$10<>\"\",INDIRECT(\"'\" & Setup!$AI$10 & \"'!\" & AF55),0) + IF(Setup!$AI$11<>\"\",INDIRECT(\"'\" & Setup!$AI$11 & \"'!\" & AF55),0) + IF(Setup!$AI$12<>\"\",INDIRECT(\"'\" & Setup!$AI$12 & \"'!\" & AF55),0)","v":0},{"$f":"IF(Setup!$AJ$7<>\"\",INDIRECT(\"'\" & Setup!$AJ$7 & \"'!\" & AF55),0) + IF(Setup!$AJ$8<>\"\",INDIRECT(\"'\" & Setup!$AJ$8 & \"'!\" & AF55),0) + IF(Setup!$AJ$9<>\"\",INDIRECT(\"'\" & Setup!$AJ$9 & \"'!\" & AF55),0) + IF(Setup!$AJ$10<>\"\",INDIRECT(\"'\" & Setup!$AJ$10 & \"'!\" & AF55),0) + IF(Setup!$AJ$11<>\"\",INDIRECT(\"'\" & Setup!$AJ$11 & \"'!\" & AF55),0) + IF(Setup!$AJ$12<>\"\",INDIRECT(\"'\" & Setup!$AJ$12 & \"'!\" & AF55),0)","v":0},null,"",{"$nulls":3},{"$f":"IF(C55=0,\"\",LEFT(INDEX(Lists!$H$5:$H$49,MATCH(C55,Lists!$G$5:$G$49,0),1),1))","v":""},null,"","","","","","","","","","",{"$nulls":6},{"$f":"IF(Setup!$AG$7<>\"\",INDIRECT(\"'\" & Setup!$AG$7 & \"'!\" & AD55),0) + IF(Setup!$AG$8<>\"\",INDIRECT(\"'\" & Setup!$AG$8 & \"'!\" & AD55),0) + IF(Setup!$AG$9<>\"\",INDIRECT(\"'\" & Setup!$AG$9 & \"'!\" & AD55),0) + IF(Setup!$AG$10<>\"\",INDIRECT(\"'\" & Setup!$AG$10 & \"'!\" & AD55),0) + IF(Setup!$AG$11<>\"\",INDIRECT(\"'\" & Setup!$AG$11 & \"'!\" & AD55),0) + IF(Setup!$AG$12<>\"\",INDIRECT(\"'\" & Setup!$AG$12 & \"'!\" & AD55),0)","v":0},{"$f":"IF(Setup!$AG$7<>\"\",INDIRECT(\"'\" & Setup!$AG$7 & \"'!\" & AE55),0) + IF(Setup!$AG$8<>\"\",INDIRECT(\"'\" & Setup!$AG$8 & \"'!\" & AE55),0) + IF(Setup!$AG$9<>\"\",INDIRECT(\"'\" & Setup!$AG$9 & \"'!\" & AE55),0) + IF(Setup!$AG$10<>\"\",INDIRECT(\"'\" & Setup!$AG$10 & \"'!\" & AE55),0) + IF(Setup!$AG$11<>\"\",INDIRECT(\"'\" & Setup!$AG$11 & \"'!\" & AE55),0) + IF(Setup!$AG$12<>\"\",INDIRECT(\"'\" & Setup!$AG$12 & \"'!\" & AE55),0)","v":0},{"$f":"IF(Setup!$AH$7<>\"\",INDIRECT(\"'\" & Setup!$AH$7 & \"'!\" & AD55),0) + IF(Setup!$AH$8<>\"\",INDIRECT(\"'\" & Setup!$AH$8 & \"'!\" & AD55),0) + IF(Setup!$AH$9<>\"\",INDIRECT(\"'\" & Setup!$AH$9 & \"'!\" & AD55),0) + IF(Setup!$AH$10<>\"\",INDIRECT(\"'\" & Setup!$AH$10 & \"'!\" & AD55),0) + IF(Setup!$AH$11<>\"\",INDIRECT(\"'\" & Setup!$AH$11 & \"'!\" & AD55),0) + IF(Setup!$AH$12<>\"\",INDIRECT(\"'\" & Setup!$AH$12 & \"'!\" & AD55),0)","v":0},{"$f":"IF(Setup!$AH$7<>\"\",INDIRECT(\"'\" & Setup!$AH$7 & \"'!\" & AE55),0) + IF(Setup!$AH$8<>\"\",INDIRECT(\"'\" & Setup!$AH$8 & \"'!\" & AE55),0) + IF(Setup!$AH$9<>\"\",INDIRECT(\"'\" & Setup!$AH$9 & \"'!\" & AE55),0) + IF(Setup!$AH$10<>\"\",INDIRECT(\"'\" & Setup!$AH$10 & \"'!\" & AE55),0) + IF(Setup!$AH$11<>\"\",INDIRECT(\"'\" & Setup!$AH$11 & \"'!\" & AE55),0) + IF(Setup!$AH$12<>\"\",INDIRECT(\"'\" & Setup!$AH$12 & \"'!\" & AE55),0)","v":0},{"$f":"IF(Setup!$AI$7<>\"\",INDIRECT(\"'\" & Setup!$AI$7 & \"'!\" & AD55),0) + IF(Setup!$AI$8<>\"\",INDIRECT(\"'\" & Setup!$AI$8 & \"'!\" & AD55),0) + IF(Setup!$AI$9<>\"\",INDIRECT(\"'\" & Setup!$AI$9 & \"'!\" & AD55),0) + IF(Setup!$AI$10<>\"\",INDIRECT(\"'\" & Setup!$AI$10 & \"'!\" & AD55),0) + IF(Setup!$AI$11<>\"\",INDIRECT(\"'\" & Setup!$AI$11 & \"'!\" & AD55),0) + IF(Setup!$AI$12<>\"\",INDIRECT(\"'\" & Setup!$AI$12 & \"'!\" & AD55),0)","v":0},{"$f":"IF(Setup!$AI$7<>\"\",INDIRECT(\"'\" & Setup!$AI$7 & \"'!\" & AE55),0) + IF(Setup!$AI$8<>\"\",INDIRECT(\"'\" & Setup!$AI$8 & \"'!\" & AE55),0) + IF(Setup!$AI$9<>\"\",INDIRECT(\"'\" & Setup!$AI$9 & \"'!\" & AE55),0) + IF(Setup!$AI$10<>\"\",INDIRECT(\"'\" & Setup!$AI$10 & \"'!\" & AE55),0) + IF(Setup!$AI$11<>\"\",INDIRECT(\"'\" & Setup!$AI$11 & \"'!\" & AE55),0) + IF(Setup!$AI$12<>\"\",INDIRECT(\"'\" & Setup!$AI$12 & \"'!\" & AE55),0)","v":0},{"$f":"IF(Setup!$AJ$7<>\"\",INDIRECT(\"'\" & Setup!$AJ$7 & \"'!\" & AD55),0) + IF(Setup!$AJ$8<>\"\",INDIRECT(\"'\" & Setup!$AJ$8 & \"'!\" & AD55),0) + IF(Setup!$AJ$9<>\"\",INDIRECT(\"'\" & Setup!$AJ$9 & \"'!\" & AD55),0) + IF(Setup!$AJ$10<>\"\",INDIRECT(\"'\" & Setup!$AJ$10 & \"'!\" & AD55),0) + IF(Setup!$AJ$11<>\"\",INDIRECT(\"'\" & Setup!$AJ$11 & \"'!\" & AD55),0) + IF(Setup!$AJ$12<>\"\",INDIRECT(\"'\" & Setup!$AJ$12 & \"'!\" & AD55),0)","v":0},{"$f":"IF(Setup!$AJ$7<>\"\",INDIRECT(\"'\" & Setup!$AJ$7 & \"'!\" & AE55),0) + IF(Setup!$AJ$8<>\"\",INDIRECT(\"'\" & Setup!$AJ$8 & \"'!\" & AE55),0) + IF(Setup!$AJ$9<>\"\",INDIRECT(\"'\" & Setup!$AJ$9 & \"'!\" & AE55),0) + IF(Setup!$AJ$10<>\"\",INDIRECT(\"'\" & Setup!$AJ$10 & \"'!\" & AE55),0) + IF(Setup!$AJ$11<>\"\",INDIRECT(\"'\" & Setup!$AJ$11 & \"'!\" & AE55),0) + IF(Setup!$AJ$12<>\"\",INDIRECT(\"'\" & Setup!$AJ$12 & \"'!\" & AE55),0)","v":0}]
[{"$f":"Planning!A39","v":"I031"},{"$f":"Planning!B39","v":0},{"$f":"Planning!C39","v":0},{"$f":"Planning!D39","v":0},{"$f":"Planning!E39","v":0},{"$f":"Planning!G39","v":0},null,0,0,{"$f":"IF(AND($AR56=\"2\",$AB55<>Lists!$A$17),AU56,AT56)","v":""},"",0,0,{"$f":"IF(AND($AR56=\"2\",$AB56<>Lists!$A$17),AW56,AV56)","v":""},"",0,0,{"$f":"IF(AND($AR56=\"2\",$AB56<>Lists!$A$17),AY56,AX56)","v":""},"",0,0,{"$f":"IF(AND($AR56=\"2\",$AB56<>Lists!$A$17),BA56,AZ56)","v":""},"",0,0,{"$f":"IF(AND($AR56=\"2\",$AB56<>Lists!$A$17),BC56,BB56)","v":""},"",{"$f":"Planning!H39","v":0},"00","H55","J55","I55","",null,{"$f":"IF(Setup!$AG$7<>\"\",INDIRECT(\"'\" & Setup!$AG$7 & \"'!\" & AF56),0) + IF(Setup!$AG$8<>\"\",INDIRECT(\"'\" & Setup!$AG$8 & \"'!\" & AF56),0) + IF(Setup!$AG$9<>\"\",INDIRECT(\"'\" & Setup!$AG$9 & \"'!\" & AF56),0) + IF(Setup!$AG$10<>\"\",INDIRECT(\"'\" & Setup!$AG$10 & \"'!\" & AF56),0) + IF(Setup!$AG$11<>\"\",INDIRECT(\"'\" & Setup!$AG$11 & \"'!\" & AF56),0) + IF(Setup!$AG$12<>\"\",INDIRECT(\"'\" & Setup!$AG$12 & \"'!\" & AF56),0)","v":0},{"$f":"IF(Setup!$AH$7<>\"\",INDIRECT(\"'\" & Setup!$AH$7 & \"'!\" & AF56),0) + IF(Setup!$AH$8<>\"\",INDIRECT(\"'\" & Setup!$AH$8 & \"'!\" & AF56),0) + IF(Setup!$AH$9<>\"\",INDIRECT(\"'\" & Setup!$AH$9 & \"'!\" & AF56),0) + IF(Setup!$AH$10<>\"\",INDIRECT(\"'\" & Setup!$AH$10 & \"'!\" & AF56),0) + IF(Setup!$AH$11<>\"\",INDIRECT(\"'\" & Setup!$AH$11 & \"'!\" & AF56),0) + IF(Setup!$AH$12<>\"\",INDIRECT(\"'\" & Setup!$AH$12 & \"'!\" & AF56),0)","v":0},{"$f":"IF(Setup!$AI$7<>\"\",INDIRECT(\"'\" & Setup!$AI$7 & \"'!\" & AF56),0) + IF(Setup!$AI$8<>\"\",INDIRECT(\"'\" & Setup!$AI$8 & \"'!\" & AF56),0) + IF(Setup!$AI$9<>\"\",INDIRECT(\"'\" & Setup!$AI$9 & \"'!\" & AF56),0) + IF(Setup!$AI$10<>\"\",INDIRECT(\"'\" & Setup!$AI$10 & \"'!\" & AF56),0) + IF(Setup!$AI$11<>\"\",INDIRECT(\"'\" & Setup!$AI$11 & \"'!\" & AF56),0) + IF(Setup!$AI$12<>\"\",INDIRECT(\"'\" & Setup!$AI$12 & \"'!\" & AF56),0)","v":0},{"$f":"IF(Setup!$AJ$7<>\"\",INDIRECT(\"'\" & Setup!$AJ$7 & \"'!\" & AF56),0) + IF(Setup!$AJ$8<>\"\",INDIRECT(\"'\" & Setup!$AJ$8 & \"'!\" & AF56),0) + IF(Setup!$AJ$9<>\"\",INDIRECT(\"'\" & Setup!$AJ$9 & \"'!\" & AF56),0) + IF(Setup!$AJ$10<>\"\",INDIRECT(\"'\" & Setup!$AJ$10 & \"'!\" & AF56),0) + IF(Setup!$AJ$11<>\"\",INDIRECT(\"'\" & Setup!$AJ$11 & \"'!\" & AF56),0) + IF(Setup!$AJ$12<>\"\",INDIRECT(\"'\" & Setup!$AJ$12 & \"'!\" & AF56),0)","v":0},null,"",{"$nulls":3},{"$f":"IF(C56=0,\"\",LEFT(INDEX(Lists!$H$5:$H$49,MATCH(C56,Lists!$G$5:$G$49,0),1),1))","v":""},null,"","","","","","","","","","",{"$nulls":6},{"$f":"IF(Setup!$AG$7<>\"\",INDIRECT(\"'\" & Setup!$AG$7 & \"'!\" & AD56),0) + IF(Setup!$AG$8<>\"\",INDIRECT(\"'\" & Setup!$AG$8 & \"'!\" & AD56),0) + IF(Setup!$AG$9<>\"\",INDIRECT(\"'\" & Setup!$AG$9 & \"'!\" & AD56),0) + IF(Setup!$AG$10<>\"\",INDIRECT(\"'\" & Setup!$AG$10 & \"'!\" & AD56),0) + IF(Setup!$AG$11<>\"\",INDIRECT(\"'\" & Setup!$AG$11 & \"'!\" & AD56),0) + IF(Setup!$AG$12<>\"\",INDIRECT(\"'\" & Setup!$AG$12 & \"'!\" & AD56),0)","v":0},{"$f":"IF(Setup!$AG$7<>\"\",INDIRECT(\"'\" & Setup!$AG$7 & \"'!\" & AE56),0) + IF(Setup!$AG$8<>\"\",INDIRECT(\"'\" & Setup!$AG$8 & \"'!\" & AE56),0) + IF(Setup!$AG$9<>\"\",INDIRECT(\"'\" & Setup!$AG$9 & \"'!\" & AE56),0) + IF(Setup!$AG$10<>\"\",INDIRECT(\"'\" & Setup!$AG$10 & \"'!\" & AE56),0) + IF(Setup!$AG$11<>\"\",INDIRECT(\"'\" & Setup!$AG$11 & \"'!\" & AE56),0) + IF(Setup!$AG$12<>\"\",INDIRECT(\"'\" & Setup!$AG$12 & \"'!\" & AE56),0)","v":0},{"$f":"IF(Setup!$AH$7<>\"\",INDIRECT(\"'\" & Setup!$AH$7 & \"'!\" & AD56),0) + IF(Setup!$AH$8<>\"\",INDIRECT(\"'\" & Setup!$AH$8 & \"'!\" & AD56),0) + IF(Setup!$AH$9<>\"\",INDIRECT(\"'\" & Setup!$AH$9 & \"'!\" & AD56),0) + IF(Setup!$AH$10<>\"\",INDIRECT(\"'\" & Setup!$AH$10 & \"'!\" & AD56),0) + IF(Setup!$AH$11<>\"\",INDIRECT(\"'\" & Setup!$AH$11 & \"'!\" & AD56),0) + IF(Setup!$AH$12<>\"\",INDIRECT(\"'\" & Setup!$AH$12 & \"'!\" & AD56),0)","v":0},{"$f":"IF(Setup!$AH$7<>\"\",INDIRECT(\"'\" & Setup!$AH$7 & \"'!\" & AE56),0) + IF(Setup!$AH$8<>\"\",INDIRECT(\"'\" & Setup!$AH$8 & \"'!\" & AE56),0) + IF(Setup!$AH$9<>\"\",INDIRECT(\"'\" & Setup!$AH$9 & \"'!\" & AE56),0) + IF(Setup!$AH$10<>\"\",INDIRECT(\"'\" & Setup!$AH$10 & \"'!\" & AE56),0) + IF(Setup!$AH$11<>\"\",INDIRECT(\"'\" & Setup!$AH$11 & \"'!\" & AE56),0) + IF(Setup!$AH$12<>\"\",INDIRECT(\"'\" & Setup!$AH$12 & \"'!\" & AE56),0)","v":0},{"$f":"IF(Setup!$AI$7<>\"\",INDIRECT(\"'\" & Setup!$AI$7 & \"'!\" & AD56),0) + IF(Setup!$AI$8<>\"\",INDIRECT(\"'\" & Setup!$AI$8 & \"'!\" & AD56),0) + IF(Setup!$AI$9<>\"\",INDIRECT(\"'\" & Setup!$AI$9 & \"'!\" & AD56),0) + IF(Setup!$AI$10<>\"\",INDIRECT(\"'\" & Setup!$AI$10 & \"'!\" & AD56),0) + IF(Setup!$AI$11<>\"\",INDIRECT(\"'\" & Setup!$AI$11 & \"'!\" & AD56),0) + IF(Setup!$AI$12<>\"\",INDIRECT(\"'\" & Setup!$AI$12 & \"'!\" & AD56),0)","v":0},{"$f":"IF(Setup!$AI$7<>\"\",INDIRECT(\"'\" & Setup!$AI$7 & \"'!\" & AE56),0) + IF(Setup!$AI$8<>\"\",INDIRECT(\"'\" & Setup!$AI$8 & \"'!\" & AE56),0) + IF(Setup!$AI$9<>\"\",INDIRECT(\"'\" & Setup!$AI$9 & \"'!\" & AE56),0) + IF(Setup!$AI$10<>\"\",INDIRECT(\"'\" & Setup!$AI$10 & \"'!\" & AE56),0) + IF(Setup!$AI$11<>\"\",INDIRECT(\"'\" & Setup!$AI$11 & \"'!\" & AE56),0) + IF(Setup!$AI$12<>\"\",INDIRECT(\"'\" & Setup!$AI$12 & \"'!\" & AE56),0)","v":0},{"$f":"IF(Setup!$AJ$7<>\"\",INDIRECT(\"'\" & Setup!$AJ$7 & \"'!\" & AD56),0) + IF(Setup!$AJ$8<>\"\",INDIRECT(\"'\" & Setup!$AJ$8 & \"'!\" & AD56),0) + IF(Setup!$AJ$9<>\"\",INDIRECT(\"'\" & Setup!$AJ$9 & \"'!\" & AD56),0) + IF(Setup!$AJ$10<>\"\",INDIRECT(\"'\" & Setup!$AJ$10 & \"'!\" & AD56),0) + IF(Setup!$AJ$11<>\"\",INDIRECT(\"'\" & Setup!$AJ$11 & \"'!\" & AD56),0) + IF(Setup!$AJ$12<>\"\",INDIRECT(\"'\" & Setup!$AJ$12 & \"'!\" & AD56),0)","v":0},{"$f":"IF(Setup!$AJ$7<>\"\",INDIRECT(\"'\" & Setup!$AJ$7 & \"'!\" & AE56),0) + IF(Setup!$AJ$8<>\"\",INDIRECT(\"'\" & Setup!$AJ$8 & \"'!\" & AE56),0) + IF(Setup!$AJ$9<>\"\",INDIRECT(\"'\" & Setup!$AJ$9 & \"'!\" & AE56),0) + IF(Setup!$AJ$10<>\"\",INDIRECT(\"'\" & Setup!$AJ$10 & \"'!\" & AE56),0) + IF(Setup!$AJ$11<>\"\",INDIRECT(\"'\" & Setup!$AJ$11 & \"'!\" & AE56),0) + IF(Setup!$AJ$12<>\"\",INDIRECT(\"'\" & Setup!$AJ$12 & \"'!\" & AE56),0)","v":0}]
[{"$f":"Planning!A40","v":"I032"},{"$f":"Planning!B40","v":0},{"$f":"Planning!C40","v":0},{"$f":"Planning!D40","v":0},{"$f":"Planning!E40","v":0},{"$f":"Planning!G40","v":0},null,0,0,{"$f":"IF(AND($AR57=\"2\",$AB56<>Lists!$A$17),AU57,AT57)","v":""},"",0,0,{"$f":"IF(AND($AR57=\"2\",$AB57<>Lists!$A$17),AW57,AV57)","v":""},"",0,0,{"$f":"IF(AND($AR57=\"2\",$AB57<>Lists!$A$17),AY57,AX57)","v":""},"",0,0,{"$f":"IF(AND($AR57=\"2\",$AB57<>Lists!$A$17),BA57,AZ57)","v":""},"",0,0,{"$f":"IF(AND($AR57=\"2\",$AB57<>Lists!$A$17),BC57,BB57)","v":""},"",{"$f":"Planning!H40","v":0},"00","H56","J56","I56","",null,{"$f":"IF(Setup!$AG$7<>\"\",INDIRECT(\"'\" & Setup!$AG$7 & \"'!\" & AF57),0) + IF(Setup!$AG$8<>\"\",INDIRECT(\"'\" & Setup!$AG$8 & \"'!\" & AF57),0) + IF(Setup!$AG$9<>\"\",INDIRECT(\"'\" & Setup!$AG$9 & \"'!\" & AF57),0) + IF(Setup!$AG$10<>\"\",INDIRECT(\"'\" & Setup!$AG$10 & \"'!\" & AF57),0) + IF(Setup!$AG$11<>\"\",INDIRECT(\"'\" & Setup!$AG$11 & \"'!\" & AF57),0) + IF(Setup!$AG$12<>\"\",INDIRECT(\"'\" & Setup!$AG$12 & \"'!\" & AF57),0)","v":0},{"$f":"IF(Setup!$AH$7<>\"\",INDIRECT(\"'\" & Setup!$AH$7 & \"'!\" & AF57),0) + IF(Setup!$AH$8<>\"\",INDIRECT(\"'\" & Setup!$AH$8 & \"'!\" & AF57),0) + IF(Setup!$AH$9<>\"\",INDIRECT(\"'\" & Setup!$AH$9 & \"'!\" & AF57),0) + IF(Setup!$AH$10<>\"\",INDIRECT(\"'\" & Setup!$AH$10 & \"'!\" & AF57),0) + IF(Setup!$AH$11<>\"\",INDIRECT(\"'\" & Setup!$AH$11 & \"'!\" & AF57),0) + IF(Setup!$AH$12<>\"\",INDIRECT(\"'\" & Setup!$AH$12 & \"'!\" & AF57),0)","v":0},{"$f":"IF(Setup!$AI$7<>\"\",INDIRECT(\"'\" & Setup!$AI$7 & \"'!\" & AF57),0) + IF(Setup!$AI$8<>\"\",INDIRECT(\"'\" & Setup!$AI$8 & \"'!\" & AF57),0) + IF(Setup!$AI$9<>\"\",INDIRECT(\"'\" & Setup!$AI$9 & \"'!\" & AF57),0) + IF(Setup!$AI$10<>\"\",INDIRECT(\"'\" & Setup!$AI$10 & \"'!\" & AF57),0) + IF(Setup!$AI$11<>\"\",INDIRECT(\"'\" & Setup!$AI$11 & \"'!\" & AF57),0) + IF(Setup!$AI$12<>\"\",INDIRECT(\"'\" & Setup!$AI$12 & \"'!\" & AF57),0)","v":0},{"$f":"IF(Setup!$AJ$7<>\"\",INDIRECT(\"'\" & Setup!$AJ$7 & \"'!\" & AF57),0) + IF(Setup!$AJ$8<>\"\",INDIRECT(\"'\" & Setup!$AJ$8 & \"'!\" & AF57),0) + IF(Setup!$AJ$9<>\"\",INDIRECT(\"'\" & Setup!$AJ$9 & \"'!\" & AF57),0) + IF(Setup!$AJ$10<>\"\",INDIRECT(\"'\" & Setup!$AJ$10 & \"'!\" & AF57),0) + IF(Setup!$AJ$11<>\"\",INDIRECT(\"'\" & Setup!$AJ$11 & \"'!\" & AF57),0) + IF(Setup!$AJ$12<>\"\",INDIRECT(\"'\" & Setup!$AJ$12 & \"'!\" & AF57),0)","v":0},null,"",{"$nulls":3},{"$f":"IF(C57=0,\"\",LEFT(INDEX(Lists!$H$5:$H$49,MATCH(C57,Lists!$G$5:$G$49,0),1),1))","v":""},null,"","","","","","","","","","",{"$nulls":6},{"$f":"IF(Setup!$AG$7<>\"\",INDIRECT(\"'\" & Setup!$AG$7 & \"'!\" & AD57),0) + IF(Setup!$AG$8<>\"\",INDIRECT(\"'\" & Setup!$AG$8 & \"'!\" & AD57),0) + IF(Setup!$AG$9<>\"\",INDIRECT(\"'\" & Setup!$AG$9 & \"'!\" & AD57),0) + IF(Setup!$AG$10<>\"\",INDIRECT(\"'\" & Setup!$AG$10 & \"'!\" & AD57),0) + IF(Setup!$AG$11<>\"\",INDIRECT(\"'\" & Setup!$AG$11 & \"'!\" & AD57),0) + IF(Setup!$AG$12<>\"\",INDIRECT(\"'\" & Setup!$AG$12 & \"'!\" & AD57),0)","v":0},{"$f":"IF(Setup!$AG$7<>\"\",INDIRECT(\"'\" & Setup!$AG$7 & \"'!\" & AE57),0) + IF(Setup!$AG$8<>\"\",INDIRECT(\"'\" & Setup!$AG$8 & \"'!\" & AE57),0) + IF(Setup!$AG$9<>\"\",INDIRECT(\"'\" & Setup!$AG$9 & \"'!\" & AE57),0) + IF(Setup!$AG$10<>\"\",INDIRECT(\"'\" & Setup!$AG$10 & \"'!\" & AE57),0) + IF(Setup!$AG$11<>\"\",INDIRECT(\"'\" & Setup!$AG$11 & \"'!\" & AE57),0) + IF(Setup!$AG$12<>\"\",INDIRECT(\"'\" & Setup!$AG$12 & \"'!\" & AE57),0)","v":0},{"$f":"IF(Setup!$AH$7<>\"\",INDIRECT(\"'\" & Setup!$AH$7 & \"'!\" & AD57),0) + IF(Setup!$AH$8<>\"\",INDIRECT(\"'\" & Setup!$AH$8 & \"'!\" & AD57),0) + IF(Setup!$AH$9<>\"\",INDIRECT(\"'\" & Setup!$AH$9 & \"'!\" & AD57),0) + IF(Setup!$AH$10<>\"\",INDIRECT(\"'\" & Setup!$AH$10 & \"'!\" & AD57),0) + IF(Setup!$AH$11<>\"\",INDIRECT(\"'\" & Setup!$AH$11 & \"'!\" & AD57),0) + IF(Setup!$AH$12<>\"\",INDIRECT(\"'\" & Setup!$AH$12 & \"'!\" & AD57),0)","v":0},{"$f":"IF(Setup!$AH$7<>\"\",INDIRECT(\"'\" & Setup!$AH$7 & \"'!\" & AE57),0) + IF(Setup!$AH$8<>\"\",INDIRECT(\"'\" & Setup!$AH$8 & \"'!\" & AE57),0) + IF(Setup!$AH$9<>\"\",INDIRECT(\"'\" & Setup!$AH$9 & \"'!\" & AE57),0) + IF(Setup!$AH$10<>\"\",INDIRECT(\"'\" & Setup!$AH$10 & \"'!\" & AE57),0) + IF(Setup!$AH$11<>\"\",INDIRECT(\"'\" & Setup!$AH$11 & \"'!\" & AE57),0) + IF(Setup!$AH$12<>\"\",INDIRECT(\"'\" & Setup!$AH$12 & \"'!\" & AE57),0)","v":0},{"$f":"IF(Setup!$AI$7<>\"\",INDIRECT(\"'\" & Setup!$AI$7 & \"'!\" & AD57),0) + IF(Setup!$AI$8<>\"\",INDIRECT(\"'\" & Setup!$AI$8 & \"'!\" & AD57),0) + IF(Setup!$AI$9<>\"\",INDIRECT(\"'\" & Setup!$AI$9 & \"'!\" & AD57),0) + IF(Setup!$AI$10<>\"\",INDIRECT(\"'\" & Setup!$AI$10 & \"'!\" & AD57),0) + IF(Setup!$AI$11<>\"\",INDIRECT(\"'\" & Setup!$AI$11 & \"'!\" & AD57),0) + IF(Setup!$AI$12<>\"\",INDIRECT(\"'\" & Setup!$AI$12 & \"'!\" & AD57),0)","v":0},{"$f":"IF(Setup!$AI$7<>\"\",INDIRECT(\"'\" & Setup!$AI$7 & \"'!\" & AE57),0) + IF(Setup!$AI$8<>\"\",INDIRECT(\"'\" & Setup!$AI$8 & \"'!\" & AE57),0) + IF(Setup!$AI$9<>\"\",INDIRECT(\"'\" & Setup!$AI$9 & \"'!\" & AE57),0) + IF(Setup!$AI$10<>\"\",INDIRECT(\"'\" & Setup!$AI$10 & \"'!\" & AE57),0) + IF(Setup!$AI$11<>\"\",INDIRECT(\"'\" & Setup!$AI$11 & \"'!\" & AE57),0) + IF(Setup!$AI$12<>\"\",INDIRECT(\"'\" & Setup!$AI$12 & \"'!\" & AE57),0)","v":0},{"$f":"IF(Setup!$AJ$7<>\"\",INDIRECT(\"'\" & Setup!$AJ$7 & \"'!\" & AD57),0) + IF(Setup!$AJ$8<>\"\",INDIRECT(\"'\" & Setup!$AJ$8 & \"'!\" & AD57),0) + IF(Setup!$AJ$9<>\"\",INDIRECT(\"'\" & Setup!$AJ$9 & \"'!\" & AD57),0) + IF(Setup!$AJ$10<>\"\",INDIRECT(\"'\" & Setup!$AJ$10 & \"'!\" & AD57),0) + IF(Setup!$AJ$11<>\"\",INDIRECT(\"'\" & Setup!$AJ$11 & \"'!\" & AD57),0) + IF(Setup!$AJ$12<>\"\",INDIRECT(\"'\" & Setup!$AJ$12 & \"'!\" & AD57),0)","v":0},{"$f":"IF(Setup!$AJ$7<>\"\",INDIRECT(\"'\" & Setup!$AJ$7 & \"'!\" & AE57),0) + IF(Setup!$AJ$8<>\"\",INDIRECT(\"'\" & Setup!$AJ$8 & \"'!\" & AE57),0) + IF(Setup!$AJ$9<>\"\",INDIRECT(\"'\" & Setup!$AJ$9 & \"'!\" & AE57),0) + IF(Setup!$AJ$10<>\"\",INDIRECT(\"'\" & Setup!$AJ$10 & \"'!\" & AE57),0) + IF(Setup!$AJ$11<>\"\",INDIRECT(\"'\" & Setup!$AJ$11 & \"'!\" & AE57),0) + IF(Setup!$AJ$12<>\"\",INDIRECT(\"'\" & Setup!$AJ$12 & \"'!\" & AE57),0)","v":0}]
[{"$f":"Planning!A41","v":"I033"},{"$f":"Planning!B41","v":0},{"$f":"Planning!C41","v":0},{"$f":"Planning!D41","v":0},{"$f":"Planning!E41","v":0},{"$f":"Planning!G41","v":0},null,0,0,{"$f":"IF(AND($AR58=\"2\",$AB57<>Lists!$A$17),AU58,AT58)","v":""},{"$f":"IF($AN58 = ExcluirDelPLogro,\"\",IF(AND(H58=0,I58=0),\"\",J58))","v":""},{"$f":"IF(AR58<>\"3\",BJ58,INDIRECT(\"'\" & MesCierreQ1 & \"'!\" & AD58))","v":0},{"$f":"IF(AR58<>\"3\",BK58,INDIRECT(\"'\" & MesCierreQ1 & \"'!\" & AE58))","v":0},{"$f":"IF(AND($AR58=\"2\",$AB58<>Lists!$A$17),AW58,AV58)","v":""},{"$f":"IF($AN58=ExcluirDelPLogro,\"\",IF(AND(L58=0,M58=0),\"\",N58))","v":""},{"$f":"IF(AR58<>\"3\",BL58,INDIRECT(\"'\" & MesCierreQ2 & \"'!\" & AD58))","v":0},{"$f":"IF(AR58<>\"3\",BM58,INDIRECT(\"'\" & MesCierreQ2 & \"'!\" & AE58))","v":0},{"$f":"IF(AND($AR58=\"2\",$AB58<>Lists!$A$17),AY58,AX58)","v":""},{"$f":"IF($AN58=ExcluirDelPLogro,\"\",IF(AND(P58=0,Q58=0),\"\",R58))","v":""},{"$f":"IF(AR58<>\"3\",BN58,INDIRECT(\"'\" & MesCierreQ3 & \"'!\" & AD58))","v":0},{"$f":"IF(AR58<>\"3\",BO58,INDIRECT(\"'\" & MesCierreQ3 & \"'!\" & AE58))","v":0},{"$f":"IF(AND($AR58=\"2\",$AB58<>Lists!$A$17),BA58,AZ58)","v":""},{"$f":"IF($AN58=ExcluirDelPLogro,\"\",IF(AND(T58=0,U58=0),\"\",V58))","v":""},{"$f":"IF(AR58<>\"3\",BP58,INDIRECT(\"'\" & MesCierreQ4 & \"'!\" & AD58))","v":0},{"$f":"IF(AR58<>\"3\",BQ58,INDIRECT(\"'\" & MesCierreQ4 & \"'!\" & AE58))","v":0},{"$f":"IF(AND($AR58=\"2\",$AB58<>Lists!$A$17),BC58,BB58)","v":""},{"$f":"IF($AN58=ExcluirDelPLogro,\"\",IF(AND(X58=0,Y58=0),\"\",Z58))","v":""},{"$f":"Planning!H41","v":0},"00","H57","J57","I57","",null,{"$f":"IF(Setup!$AG$7<>\"\",INDIRECT(\"'\" & Setup!$AG$7 & \"'!\" & AF58),0) + IF(Setup!$AG$8<>\"\",INDIRECT(\"'\" & Setup!$AG$8 & \"'!\" & AF58),0) + IF(Setup!$AG$9<>\"\",INDIRECT(\"'\" & Setup!$AG$9 & \"'!\" & AF58),0) + IF(Setup!$AG$10<>\"\",INDIRECT(\"'\" & Setup!$AG$10 & \"'!\" & AF58),0) + IF(Setup!$AG$11<>\"\",INDIRECT(\"'\" & Setup!$AG$11 & \"'!\" & AF58),0) + IF(Setup!$AG$12<>\"\",INDIRECT(\"'\" & Setup!$AG$12 & \"'!\" & AF58),0)","v":0},{"$f":"IF(Setup!$AH$7<>\"\",INDIRECT(\"'\" & Setup!$AH$7 & \"'!\" & AF58),0) + IF(Setup!$AH$8<>\"\",INDIRECT(\"'\" & Setup!$AH$8 & \"'!\" & AF58),0) + IF(Setup!$AH$9<>\"\",INDIRECT(\"'\" & Setup!$AH$9 & \"'!\" & AF58),0) + IF(Setup!$AH$10<>\"\",INDIRECT(\"'\" & Setup!$AH$10 & \"'!\" & AF58),0) + IF(Setup!$AH$11<>\"\",INDIRECT(\"'\" & Setup!$AH$11 & \"'!\" & AF58),0) + IF(Setup!$AH$12<>\"\",INDIRECT(\"'\" & Setup!$AH$12 & \"'!\" & AF58),0)","v":0},{"$f":"IF(Setup!$AI$7<>\"\",INDIRECT(\"'\" & Setup!$AI$7 & \"'!\" & AF58),0) + IF(Setup!$AI$8<>\"\",INDIRECT(\"'\" & Setup!$AI$8 & \"'!\" & AF58),0) + IF(Setup!$AI$9<>\"\",INDIRECT(\"'\" & Setup!$AI$9 & \"'!\" & AF58),0) + IF(Setup!$AI$10<>\"\",INDIRECT(\"'\" & Setup!$AI$10 & \"'!\" & AF58),0) + IF(Setup!$AI$11<>\"\",INDIRECT(\"'\" & Setup!$AI$11 & \"'!\" & AF58),0) + IF(Setup!$AI$12<>\"\",INDIRECT(\"'\" & Setup!$AI$12 & \"'!\" & AF58),0)","v":0},{"$f":"IF(Setup!$AJ$7<>\"\",INDIRECT(\"'\" & Setup!$AJ$7 & \"'!\" & AF58),0) + IF(Setup!$AJ$8<>\"\",INDIRECT(\"'\" & Setup!$AJ$8 & \"'!\" & AF58),0) + IF(Setup!$AJ$9<>\"\",INDIRECT(\"'\" & Setup!$AJ$9 & \"'!\" & AF58),0) + IF(Setup!$AJ$10<>\"\",INDIRECT(\"'\" & Setup!$AJ$10 & \"'!\" & AF58),0) + IF(Setup!$AJ$11<>\"\",INDIRECT(\"'\" & Setup!$AJ$11 & \"'!\" & AF58),0) + IF(Setup!$AJ$12<>\"\",INDIRECT(\"'\" & Setup!$AJ$12 & \"'!\" & AF58),0)","v":0},null,"",{"$nulls":3},{"$f":"IF(C58=0,\"\",LEFT(INDEX(Lists!$H$5:$H$49,MATCH(C58,Lists!$G$5:$G$49,0),1),1))","v":""},null,"","","","","","","","","","",{"$nulls":6},{"$f":"IF(Setup!$AG$7<>\"\",INDIRECT(\"'\" & Setup!$AG$7 & \"'!\" & AD58),0) + IF(Setup!$AG$8<>\"\",INDIRECT(\"'\" & Setup!$AG$8 & \"'!\" & AD58),0) + IF(Setup!$AG$9<>\"\",INDIRECT(\"'\" & Setup!$AG$9 & \"'!\" & AD58),0) + IF(Setup!$AG$10<>\"\",INDIRECT(\"'\" & Setup!$AG$10 & \"'!\" & AD58),0) + IF(Setup!$AG$11<>\"\",INDIRECT(\"'\" & Setup!$AG$11 & \"'!\" & AD58),0) + IF(Setup!$AG$12<>\"\",INDIRECT(\"'\" & Setup!$AG$12 & \"'!\" & AD58),0)","v":0},{"$f":"IF(Setup!$AG$7<>\"\",INDIRECT(\"'\" & Setup!$AG$7 & \"'!\" & AE58),0) + IF(Setup!$AG$8<>\"\",INDIRECT(\"'\" & Setup!$AG$8 & \"'!\" & AE58),0) + IF(Setup!$AG$9<>\"\",INDIRECT(\"'\" & Setup!$AG$9 & \"'!\" & AE58),0) + IF(Setup!$AG$10<>\"\",INDIRECT(\"'\" & Setup!$AG$10 & \"'!\" & AE58),0) + IF(Setup!$AG$11<>\"\",INDIRECT(\"'\" & Setup!$AG$11 & \"'!\" & AE58),0) + IF(Setup!$AG$12<>\"\",INDIRECT(\"'\" & Setup!$AG$12 & \"'!\" & AE58),0)","v":0},{"$f":"IF(Setup!$AH$7<>\"\",INDIRECT(\"'\" & Setup!$AH$7 & \"'!\" & AD58),0) + IF(Setup!$AH$8<>\"\",INDIRECT(\"'\" & Setup!$AH$8 & \"'!\" & AD58),0) + IF(Setup!$AH$9<>\"\",INDIRECT(\"'\" & Setup!$AH$9 & \"'!\" & AD58),0) + IF(Setup!$AH$10<>\"\",INDIRECT(\"'\" & Setup!$AH$10 & \"'!\" & AD58),0) + IF(Setup!$AH$11<>\"\",INDIRECT(\"'\" & Setup!$AH$11 & \"'!\" & AD58),0) + IF(Setup!$AH$12<>\"\",INDIRECT(\"'\" & Setup!$AH$12 & \"'!\" & AD58),0)","v":0},{"$f":"IF(Setup!$AH$7<>\"\",INDIRECT(\"'\" & Setup!$AH$7 & \"'!\" & AE58),0) + IF(Setup!$AH$8<>\"\",INDIRECT(\"'\" & Setup!$AH$8 & \"'!\" & AE58),0) + IF(Setup!$AH$9<>\"\",INDIRECT(\"'\" & Setup!$AH$9 & \"'!\" & AE58),0) + IF(Setup!$AH$10<>\"\",INDIRECT(\"'\" & Setup!$AH$10 & \"'!\" & AE58),0) + IF(Setup!$AH$11<>\"\",INDIRECT(\"'\" & Setup!$AH$11 & \"'!\" & AE58),0) + IF(Setup!$AH$12<>\"\",INDIRECT(\"'\" & Setup!$AH$12 & \"'!\" & AE58),0)","v":0},{"$f":"IF(Setup!$AI$7<>\"\",INDIRECT(\"'\" & Setup!$AI$7 & \"'!\" & AD58),0) + IF(Setup!$AI$8<>\"\",INDIRECT(\"'\" & Setup!$AI$8 & \"'!\" & AD58),0) + IF(Setup!$AI$9<>\"\",INDIRECT(\"'\" & Setup!$AI$9 & \"'!\" & AD58),0) + IF(Setup!$AI$10<>\"\",INDIRECT(\"'\" & Setup!$AI$10 & \"'!\" & AD58),0) + IF(Setup!$AI$11<>\"\",INDIRECT(\"'\" & Setup!$AI$11 & \"'!\" & AD58),0) + IF(Setup!$AI$12<>\"\",INDIRECT(\"'\" & Setup!$AI$12 & \"'!\" & AD58),0)","v":0},{"$f":"IF(Setup!$AI$7<>\"\",INDIRECT(\"'\" & Setup!$AI$7 & \"'!\" & AE58),0) + IF(Setup!$AI$8<>\"\",INDIRECT(\"'\" & Setup!$AI$8 & \"'!\" & AE58),0) + IF(Setup!$AI$9<>\"\",INDIRECT(\"'\" & Setup!$AI$9 & \"'!\" & AE58),0) + IF(Setup!$AI$10<>\"\",INDIRECT(\"'\" & Setup!$AI$10 & \"'!\" & AE58),0) + IF(Setup!$AI$11<>\"\",INDIRECT(\"'\" & Setup!$AI$11 & \"'!\" & AE58),0) + IF(Setup!$AI$12<>\"\",INDIRECT(\"'\" & Setup!$AI$12 & \"'!\" & AE58),0)","v":0},{"$f":"IF(Setup!$AJ$7<>\"\",INDIRECT(\"'\" & Setup!$AJ$7 & \"'!\" & AD58),0) + IF(Setup!$AJ$8<>\"\",INDIRECT(\"'\" & Setup!$AJ$8 & \"'!\" & AD58),0) + IF(Setup!$AJ$9<>\"\",INDIRECT(\"'\" & Setup!$AJ$9 & \"'!\" & AD58),0) + IF(Setup!$AJ$10<>\"\",INDIRECT(\"'\" & Setup!$AJ$10 & \"'!\" & AD58),0) + IF(Setup!$AJ$11<>\"\",INDIRECT(\"'\" & Setup!$AJ$11 & \"'!\" & AD58),0) + IF(Setup!$AJ$12<>\"\",INDIRECT(\"'\" & Setup!$AJ$12 & \"'!\" & AD58),0)","v":0},{"$f":"IF(Setup!$AJ$7<>\"\",INDIRECT(\"'\" & Setup!$AJ$7 & \"'!\" & AE58),0) + IF(Setup!$AJ$8<>\"\",INDIRECT(\"'\" & Setup!$AJ$8 & \"'!\" & AE58),0) + IF(Setup!$AJ$9<>\"\",INDIRECT(\"'\" & Setup!$AJ$9 & \"'!\" & AE58),0) + IF(Setup!$AJ$10<>\"\",INDIRECT(\"'\" & Setup!$AJ$10 & \"'!\" & AE58),0) + IF(Setup!$AJ$11<>\"\",INDIRECT(\"'\" & Setup!$AJ$11 & \"'!\" & AE58),0) + IF(Setup!$AJ$12<>\"\",INDIRECT(\"'\" & Setup!$AJ$12 & \"'!\" & AE58),0)","v":0}]
[{"$f":"Planning!A42","v":"I034"},{"$f":"Planning!B42","v":0},{"$f":"Planning!C42","v":0},{"$f":"Planning!D42","v":0},{"$f":"Planning!E42","v":0},{"$f":"Planning!G42","v":0},null,0,0,{"$f":"IF(AND($AR59=\"2\",$AB58<>Lists!$A$17),AU59,AT59)","v":""},"",0,0,{"$f":"IF(AND($AR59=\"2\",$AB59<>Lists!$A$17),AW59,AV59)","v":""},"",0,0,{"$f":"IF(AND($AR59=\"2\",$AB59<>Lists!$A$17),AY59,AX59)","v":""},"",0,0,{"$f":"IF(AND($AR59=\"2\",$AB59<>Lists!$A$17),BA59,AZ59)","v":""},"",0,0,{"$f":"IF(AND($AR59=\"2\",$AB59<>Lists!$A$17),BC59,BB59)","v":""},"",{"$f":"Planning!H42","v":0},"00","H58","J58","I58","",null,{"$f":"IF(Setup!$AG$7<>\"\",INDIRECT(\"'\" & Setup!$AG$7 & \"'!\" & AF59),0) + IF(Setup!$AG$8<>\"\",INDIRECT(\"'\" & Setup!$AG$8 & \"'!\" & AF59),0) + IF(Setup!$AG$9<>\"\",INDIRECT(\"'\" & Setup!$AG$9 & \"'!\" & AF59),0) + IF(Setup!$AG$10<>\"\",INDIRECT(\"'\" & Setup!$AG$10 & \"'!\" & AF59),0) + IF(Setup!$AG$11<>\"\",INDIRECT(\"'\" & Setup!$AG$11 & \"'!\" & AF59),0) + IF(Setup!$AG$12<>\"\",INDIRECT(\"'\" & Setup!$AG$12 & \"'!\" & AF59),0)","v":0},{"$f":"IF(Setup!$AH$7<>\"\",INDIRECT(\"'\" & Setup!$AH$7 & \"'!\" & AF59),0) + IF(Setup!$AH$8<>\"\",INDIRECT(\"'\" & Setup!$AH$8 & \"'!\" & AF59),0) + IF(Setup!$AH$9<>\"\",INDIRECT(\"'\" & Setup!$AH$9 & \"'!\" & AF59),0) + IF(Setup!$AH$10<>\"\",INDIRECT(\"'\" & Setup!$AH$10 & \"'!\" & AF59),0) + IF(Setup!$AH$11<>\"\",INDIRECT(\"'\" & Setup!$AH$11 & \"'!\" & AF59),0) + IF(Setup!$AH$12<>\"\",INDIRECT(\"'\" & Setup!$AH$12 & \"'!\" & AF59),0)","v":0},{"$f":"IF(Setup!$AI$7<>\"\",INDIRECT(\"'\" & Setup!$AI$7 & \"'!\" & AF59),0) + IF(Setup!$AI$8<>\"\",INDIRECT(\"'\" & Setup!$AI$8 & \"'!\" & AF59),0) + IF(Setup!$AI$9<>\"\",INDIRECT(\"'\" & Setup!$AI$9 & \"'!\" & AF59),0) + IF(Setup!$AI$10<>\"\",INDIRECT(\"'\" & Setup!$AI$10 & \"'!\" & AF59),0) + IF(Setup!$AI$11<>\"\",INDIRECT(\"'\" & Setup!$AI$11 & \"'!\" & AF59),0) + IF(Setup!$AI$12<>\"\",INDIRECT(\"'\" & Setup!$AI$12 & \"'!\" & AF59),0)","v":0},{"$f":"IF(Setup!$AJ$7<>\"\",INDIRECT(\"'\" & Setup!$AJ$7 & \"'!\" & AF59),0) + IF(Setup!$AJ$8<>\"\",INDIRECT(\"'\" & Setup!$AJ$8 & \"'!\" & AF59),0) + IF(Setup!$AJ$9<>\"\",INDIRECT(\"'\" & Setup!$AJ$9 & \"'!\" & AF59),0) + IF(Setup!$AJ$10<>\"\",INDIRECT(\"'\" & Setup!$AJ$10 & \"'!\" & AF59),0) + IF(Setup!$AJ$11<>\"\",INDIRECT(\"'\" & Setup!$AJ$11 & \"'!\" & AF59),0) + IF(Setup!$AJ$12<>\"\",INDIRECT(\"'\" & Setup!$AJ$12 & \"'!\" & AF59),0)","v":0},null,"",{"$nulls":3},{"$f":"IF(C59=0,\"\",LEFT(INDEX(Lists!$H$5:$H$49,MATCH(C59,Lists!$G$5:$G$49,0),1),1))","v":""},null,"","","","","","","","","","",{"$nulls":6},{"$f":"IF(Setup!$AG$7<>\"\",INDIRECT(\"'\" & Setup!$AG$7 & \"'!\" & AD59),0) + IF(Setup!$AG$8<>\"\",INDIRECT(\"'\" & Setup!$AG$8 & \"'!\" & AD59),0) + IF(Setup!$AG$9<>\"\",INDIRECT(\"'\" & Setup!$AG$9 & \"'!\" & AD59),0) + IF(Setup!$AG$10<>\"\",INDIRECT(\"'\" & Setup!$AG$10 & \"'!\" & AD59),0) + IF(Setup!$AG$11<>\"\",INDIRECT(\"'\" & Setup!$AG$11 & \"'!\" & AD59),0) + IF(Setup!$AG$12<>\"\",INDIRECT(\"'\" & Setup!$AG$12 & \"'!\" & AD59),0)","v":0},{"$f":"IF(Setup!$AG$7<>\"\",INDIRECT(\"'\" & Setup!$AG$7 & \"'!\" & AE59),0) + IF(Setup!$AG$8<>\"\",INDIRECT(\"'\" & Setup!$AG$8 & \"'!\" & AE59),0) + IF(Setup!$AG$9<>\"\",INDIRECT(\"'\" & Setup!$AG$9 & \"'!\" & AE59),0) + IF(Setup!$AG$10<>\"\",INDIRECT(\"'\" & Setup!$AG$10 & \"'!\" & AE59),0) + IF(Setup!$AG$11<>\"\",INDIRECT(\"'\" & Setup!$AG$11 & \"'!\" & AE59),0) + IF(Setup!$AG$12<>\"\",INDIRECT(\"'\" & Setup!$AG$12 & \"'!\" & AE59),0)","v":0},{"$f":"IF(Setup!$AH$7<>\"\",INDIRECT(\"'\" & Setup!$AH$7 & \"'!\" & AD59),0) + IF(Setup!$AH$8<>\"\",INDIRECT(\"'\" & Setup!$AH$8 & \"'!\" & AD59),0) + IF(Setup!$AH$9<>\"\",INDIRECT(\"'\" & Setup!$AH$9 & \"'!\" & AD59),0) + IF(Setup!$AH$10<>\"\",INDIRECT(\"'\" & Setup!$AH$10 & \"'!\" & AD59),0) + IF(Setup!$AH$11<>\"\",INDIRECT(\"'\" & Setup!$AH$11 & \"'!\" & AD59),0) + IF(Setup!$AH$12<>\"\",INDIRECT(\"'\" & Setup!$AH$12 & \"'!\" & AD59),0)","v":0},{"$f":"IF(Setup!$AH$7<>\"\",INDIRECT(\"'\" & Setup!$AH$7 & \"'!\" & AE59),0) + IF(Setup!$AH$8<>\"\",INDIRECT(\"'\" & Setup!$AH$8 & \"'!\" & AE59),0) + IF(Setup!$AH$9<>\"\",INDIRECT(\"'\" & Setup!$AH$9 & \"'!\" & AE59),0) + IF(Setup!$AH$10<>\"\",INDIRECT(\"'\" & Setup!$AH$10 & \"'!\" & AE59),0) + IF(Setup!$AH$11<>\"\",INDIRECT(\"'\" & Setup!$AH$11 & \"'!\" & AE59),0) + IF(Setup!$AH$12<>\"\",INDIRECT(\"'\" & Setup!$AH$12 & \"'!\" & AE59),0)","v":0},{"$f":"IF(Setup!$AI$7<>\"\",INDIRECT(\"'\" & Setup!$AI$7 & \"'!\" & AD59),0) + IF(Setup!$AI$8<>\"\",INDIRECT(\"'\" & Setup!$AI$8 & \"'!\" & AD59),0) + IF(Setup!$AI$9<>\"\",INDIRECT(\"'\" & Setup!$AI$9 & \"'!\" & AD59),0) + IF(Setup!$AI$10<>\"\",INDIRECT(\"'\" & Setup!$AI$10 & \"'!\" & AD59),0) + IF(Setup!$AI$11<>\"\",INDIRECT(\"'\" & Setup!$AI$11 & \"'!\" & AD59),0) + IF(Setup!$AI$12<>\"\",INDIRECT(\"'\" & Setup!$AI$12 & \"'!\" & AD59),0)","v":0},{"$f":"IF(Setup!$AI$7<>\"\",INDIRECT(\"'\" & Setup!$AI$7 & \"'!\" & AE59),0) + IF(Setup!$AI$8<>\"\",INDIRECT(\"'\" & Setup!$AI$8 & \"'!\" & AE59),0) + IF(Setup!$AI$9<>\"\",INDIRECT(\"'\" & Setup!$AI$9 & \"'!\" & AE59),0) + IF(Setup!$AI$10<>\"\",INDIRECT(\"'\" & Setup!$AI$10 & \"'!\" & AE59),0) + IF(Setup!$AI$11<>\"\",INDIRECT(\"'\" & Setup!$AI$11 & \"'!\" & AE59),0) + IF(Setup!$AI$12<>\"\",INDIRECT(\"'\" & Setup!$AI$12 & \"'!\" & AE59),0)","v":0},{"$f":"IF(Setup!$AJ$7<>\"\",INDIRECT(\"'\" & Setup!$AJ$7 & \"'!\" & AD59),0) + IF(Setup!$AJ$8<>\"\",INDIRECT(\"'\" & Setup!$AJ$8 & \"'!\" & AD59),0) + IF(Setup!$AJ$9<>\"\",INDIRECT(\"'\" & Setup!$AJ$9 & \"'!\" & AD59),0) + IF(Setup!$AJ$10<>\"\",INDIRECT(\"'\" & Setup!$AJ$10 & \"'!\" & AD59),0) + IF(Setup!$AJ$11<>\"\",INDIRECT(\"'\" & Setup!$AJ$11 & \"'!\" & AD59),0) + IF(Setup!$AJ$12<>\"\",INDIRECT(\"'\" & Setup!$AJ$12 & \"'!\" & AD59),0)","v":0},{"$f":"IF(Setup!$AJ$7<>\"\",INDIRECT(\"'\" & Setup!$AJ$7 & \"'!\" & AE59),0) + IF(Setup!$AJ$8<>\"\",INDIRECT(\"'\" & Setup!$AJ$8 & \"'!\" & AE59),0) + IF(Setup!$AJ$9<>\"\",INDIRECT(\"'\" & Setup!$AJ$9 & \"'!\" & AE59),0) + IF(Setup!$AJ$10<>\"\",INDIRECT(\"'\" & Setup!$AJ$10 & \"'!\" & AE59),0) + IF(Setup!$AJ$11<>\"\",INDIRECT(\"'\" & Setup!$AJ$11 & \"'!\" & AE59),0) + IF(Setup!$AJ$12<>\"\",INDIRECT(\"'\" & Setup!$AJ$12 & \"'!\" & AE59),0)","v":0}]
[{"$f":"Planning!A43","v":"I035"},{"$f":"Planning!B43","v":0},{"$f":"Planning!C43","v":0},{"$f":"Planning!D43","v":0},{"$f":"Planning!E43","v":0},{"$f":"Planning!G43","v":0},null,0,0,{"$f":"IF(AND($AR60=\"2\",$AB59<>Lists!$A$17),AU60,AT60)","v":""},"",0,0,{"$f":"IF(AND($AR60=\"2\",$AB60<>Lists!$A$17),AW60,AV60)","v":""},"",0,0,{"$f":"IF(AND($AR60=\"2\",$AB60<>Lists!$A$17),AY60,AX60)","v":""},"",0,0,{"$f":"IF(AND($AR60=\"2\",$AB60<>Lists!$A$17),BA60,AZ60)","v":""},"",0,0,{"$f":"IF(AND($AR60=\"2\",$AB60<>Lists!$A$17),BC60,BB60)","v":""},"",{"$f":"Planning!H43","v":0},"00","H59","J59","I59","",null,{"$f":"IF(Setup!$AG$7<>\"\",INDIRECT(\"'\" & Setup!$AG$7 & \"'!\" & AF60),0) + IF(Setup!$AG$8<>\"\",INDIRECT(\"'\" & Setup!$AG$8 & \"'!\" & AF60),0) + IF(Setup!$AG$9<>\"\",INDIRECT(\"'\" & Setup!$AG$9 & \"'!\" & AF60),0) + IF(Setup!$AG$10<>\"\",INDIRECT(\"'\" & Setup!$AG$10 & \"'!\" & AF60),0) + IF(Setup!$AG$11<>\"\",INDIRECT(\"'\" & Setup!$AG$11 & \"'!\" & AF60),0) + IF(Setup!$AG$12<>\"\",INDIRECT(\"'\" & Setup!$AG$12 & \"'!\" & AF60),0)","v":0},{"$f":"IF(Setup!$AH$7<>\"\",INDIRECT(\"'\" & Setup!$AH$7 & \"'!\" & AF60),0) + IF(Setup!$AH$8<>\"\",INDIRECT(\"'\" & Setup!$AH$8 & \"'!\" & AF60),0) + IF(Setup!$AH$9<>\"\",INDIRECT(\"'\" & Setup!$AH$9 & \"'!\" & AF60),0) + IF(Setup!$AH$10<>\"\",INDIRECT(\"'\" & Setup!$AH$10 & \"'!\" & AF60),0) + IF(Setup!$AH$11<>\"\",INDIRECT(\"'\" & Setup!$AH$11 & \"'!\" & AF60),0) + IF(Setup!$AH$12<>\"\",INDIRECT(\"'\" & Setup!$AH$12 & \"'!\" & AF60),0)","v":0},{"$f":"IF(Setup!$AI$7<>\"\",INDIRECT(\"'\" & Setup!$AI$7 & \"'!\" & AF60),0) + IF(Setup!$AI$8<>\"\",INDIRECT(\"'\" & Setup!$AI$8 & \"'!\" & AF60),0) + IF(Setup!$AI$9<>\"\",INDIRECT(\"'\" & Setup!$AI$9 & \"'!\" & AF60),0) + IF(Setup!$AI$10<>\"\",INDIRECT(\"'\" & Setup!$AI$10 & \"'!\" & AF60),0) + IF(Setup!$AI$11<>\"\",INDIRECT(\"'\" & Setup!$AI$11 & \"'!\" & AF60),0) + IF(Setup!$AI$12<>\"\",INDIRECT(\"'\" & Setup!$AI$12 & \"'!\" & AF60),0)","v":0},{"$f":"IF(Setup!$AJ$7<>\"\",INDIRECT(\"'\" & Setup!$AJ$7 & \"'!\" & AF60),0) + IF(Setup!$AJ$8<>\"\",INDIRECT(\"'\" & Setup!$AJ$8 & \"'!\" & AF60),0) + IF(Setup!$AJ$9<>\"\",INDIRECT(\"'\" & Setup!$AJ$9 & \"'!\" & AF60),0) + IF(Setup!$AJ$10<>\"\",INDIRECT(\"'\" & Setup!$AJ$10 & \"'!\" & AF60),0) + IF(Setup!$AJ$11<>\"\",INDIRECT(\"'\" & Setup!$AJ$11 & \"'!\" & AF60),0) + IF(Setup!$AJ$12<>\"\",INDIRECT(\"'\" & Setup!$AJ$12 & \"'!\" & AF60),0)","v":0},null,"",{"$nulls":3},{"$f":"IF(C60=0,\"\",LEFT(INDEX(Lists!$H$5:$H$49,MATCH(C60,Lists!$G$5:$G$49,0),1),1))","v":""},null,"","","","","","","","","","",{"$nulls":6},{"$f":"IF(Setup!$AG$7<>\"\",INDIRECT(\"'\" & Setup!$AG$7 & \"'!\" & AD60),0) + IF(Setup!$AG$8<>\"\",INDIRECT(\"'\" & Setup!$AG$8 & \"'!\" & AD60),0) + IF(Setup!$AG$9<>\"\",INDIRECT(\"'\" & Setup!$AG$9 & \"'!\" & AD60),0) + IF(Setup!$AG$10<>\"\",INDIRECT(\"'\" & Setup!$AG$10 & \"'!\" & AD60),0) + IF(Setup!$AG$11<>\"\",INDIRECT(\"'\" & Setup!$AG$11 & \"'!\" & AD60),0) + IF(Setup!$AG$12<>\"\",INDIRECT(\"'\" & Setup!$AG$12 & \"'!\" & AD60),0)","v":0},{"$f":"IF(Setup!$AG$7<>\"\",INDIRECT(\"'\" & Setup!$AG$7 & \"'!\" & AE60),0) + IF(Setup!$AG$8<>\"\",INDIRECT(\"'\" & Setup!$AG$8 & \"'!\" & AE60),0) + IF(Setup!$AG$9<>\"\",INDIRECT(\"'\" & Setup!$AG$9 & \"'!\" & AE60),0) + IF(Setup!$AG$10<>\"\",INDIRECT(\"'\" & Setup!$AG$10 & \"'!\" & AE60),0) + IF(Setup!$AG$11<>\"\",INDIRECT(\"'\" & Setup!$AG$11 & \"'!\" & AE60),0) + IF(Setup!$AG$12<>\"\",INDIRECT(\"'\" & Setup!$AG$12 & \"'!\" & AE60),0)","v":0},{"$f":"IF(Setup!$AH$7<>\"\",INDIRECT(\"'\" & Setup!$AH$7 & \"'!\" & AD60),0) + IF(Setup!$AH$8<>\"\",INDIRECT(\"'\" & Setup!$AH$8 & \"'!\" & AD60),0) + IF(Setup!$AH$9<>\"\",INDIRECT(\"'\" & Setup!$AH$9 & \"'!\" & AD60),0) + IF(Setup!$AH$10<>\"\",INDIRECT(\"'\" & Setup!$AH$10 & \"'!\" & AD60),0) + IF(Setup!$AH$11<>\"\",INDIRECT(\"'\" & Setup!$AH$11 & \"'!\" & AD60),0) + IF(Setup!$AH$12<>\"\",INDIRECT(\"'\" & Setup!$AH$12 & \"'!\" & AD60),0)","v":0},{"$f":"IF(Setup!$AH$7<>\"\",INDIRECT(\"'\" & Setup!$AH$7 & \"'!\" & AE60),0) + IF(Setup!$AH$8<>\"\",INDIRECT(\"'\" & Setup!$AH$8 & \"'!\" & AE60),0) + IF(Setup!$AH$9<>\"\",INDIRECT(\"'\" & Setup!$AH$9 & \"'!\" & AE60),0) + IF(Setup!$AH$10<>\"\",INDIRECT(\"'\" & Setup!$AH$10 & \"'!\" & AE60),0) + IF(Setup!$AH$11<>\"\",INDIRECT(\"'\" & Setup!$AH$11 & \"'!\" & AE60),0) + IF(Setup!$AH$12<>\"\",INDIRECT(\"'\" & Setup!$AH$12 & \"'!\" & AE60),0)","v":0},{"$f":"IF(Setup!$AI$7<>\"\",INDIRECT(\"'\" & Setup!$AI$7 & \"'!\" & AD60),0) + IF(Setup!$AI$8<>\"\",INDIRECT(\"'\" & Setup!$AI$8 & \"'!\" & AD60),0) + IF(Setup!$AI$9<>\"\",INDIRECT(\"'\" & Setup!$AI$9 & \"'!\" & AD60),0) + IF(Setup!$AI$10<>\"\",INDIRECT(\"'\" & Setup!$AI$10 & \"'!\" & AD60),0) + IF(Setup!$AI$11<>\"\",INDIRECT(\"'\" & Setup!$AI$11 & \"'!\" & AD60),0) + IF(Setup!$AI$12<>\"\",INDIRECT(\"'\" & Setup!$AI$12 & \"'!\" & AD60),0)","v":0},{"$f":"IF(Setup!$AI$7<>\"\",INDIRECT(\"'\" & Setup!$AI$7 & \"'!\" & AE60),0) + IF(Setup!$AI$8<>\"\",INDIRECT(\"'\" & Setup!$AI$8 & \"'!\" & AE60),0) + IF(Setup!$AI$9<>\"\",INDIRECT(\"'\" & Setup!$AI$9 & \"'!\" & AE60),0) + IF(Setup!$AI$10<>\"\",INDIRECT(\"'\" & Setup!$AI$10 & \"'!\" & AE60),0) + IF(Setup!$AI$11<>\"\",INDIRECT(\"'\" & Setup!$AI$11 & \"'!\" & AE60),0) + IF(Setup!$AI$12<>\"\",INDIRECT(\"'\" & Setup!$AI$12 & \"'!\" & AE60),0)","v":0},{"$f":"IF(Setup!$AJ$7<>\"\",INDIRECT(\"'\" & Setup!$AJ$7 & \"'!\" & AD60),0) + IF(Setup!$AJ$8<>\"\",INDIRECT(\"'\" & Setup!$AJ$8 & \"'!\" & AD60),0) + IF(Setup!$AJ$9<>\"\",INDIRECT(\"'\" & Setup!$AJ$9 & \"'!\" & AD60),0) + IF(Setup!$AJ$10<>\"\",INDIRECT(\"'\" & Setup!$AJ$10 & \"'!\" & AD60),0) + IF(Setup!$AJ$11<>\"\",INDIRECT(\"'\" & Setup!$AJ$11 & \"'!\" & AD60),0) + IF(Setup!$AJ$12<>\"\",INDIRECT(\"'\" & Setup!$AJ$12 & \"'!\" & AD60),0)","v":0},{"$f":"IF(Setup!$AJ$7<>\"\",INDIRECT(\"'\" & Setup!$AJ$7 & \"'!\" & AE60),0) + IF(Setup!$AJ$8<>\"\",INDIRECT(\"'\" & Setup!$AJ$8 & \"'!\" & AE60),0) + IF(Setup!$AJ$9<>\"\",INDIRECT(\"'\" & Setup!$AJ$9 & \"'!\" & AE60),0) + IF(Setup!$AJ$10<>\"\",INDIRECT(\"'\" & Setup!$AJ$10 & \"'!\" & AE60),0) + IF(Setup!$AJ$11<>\"\",INDIRECT(\"'\" & Setup!$AJ$11 & \"'!\" & AE60),0) + IF(Setup!$AJ$12<>\"\",INDIRECT(\"'\" & Setup!$AJ$12 & \"'!\" & AE60),0)","v":0}]
[{"$f":"Planning!A44","v":"I036"},{"$f":"Planning!B44","v":0},{"$f":"Planning!C44","v":0},{"$f":"Planning!D44","v":0},{"$f":"Planning!E44","v":0},{"$f":"Planning!G44","v":0},null,0,0,{"$f":"IF(AND($AR61=\"2\",$AB60<>Lists!$A$17),AU61,AT61)","v":""},"",0,0,{"$f":"IF(AND($AR61=\"2\",$AB61<>Lists!$A$17),AW61,AV61)","v":""},"",0,0,{"$f":"IF(AND($AR61=\"2\",$AB61<>Lists!$A$17),AY61,AX61)","v":""},"",0,0,{"$f":"IF(AND($AR61=\"2\",$AB61<>Lists!$A$17),BA61,AZ61)","v":""},"",0,0,{"$f":"IF(AND($AR61=\"2\",$AB61<>Lists!$A$17),BC61,BB61)","v":""},"",{"$f":"Planning!H44","v":0},"00","H60","J60","I60","",null,{"$f":"IF(Setup!$AG$7<>\"\",INDIRECT(\"'\" & Setup!$AG$7 & \"'!\" & AF61),0) + IF(Setup!$AG$8<>\"\",INDIRECT(\"'\" & Setup!$AG$8 & \"'!\" & AF61),0) + IF(Setup!$AG$9<>\"\",INDIRECT(\"'\" & Setup!$AG$9 & \"'!\" & AF61),0) + IF(Setup!$AG$10<>\"\",INDIRECT(\"'\" & Setup!$AG$10 & \"'!\" & AF61),0) + IF(Setup!$AG$11<>\"\",INDIRECT(\"'\" & Setup!$AG$11 & \"'!\" & AF61),0) + IF(Setup!$AG$12<>\"\",INDIRECT(\"'\" & Setup!$AG$12 & \"'!\" & AF61),0)","v":0},{"$f":"IF(Setup!$AH$7<>\"\",INDIRECT(\"'\" & Setup!$AH$7 & \"'!\" & AF61),0) + IF(Setup!$AH$8<>\"\",INDIRECT(\"'\" & Setup!$AH$8 & \"'!\" & AF61),0) + IF(Setup!$AH$9<>\"\",INDIRECT(\"'\" & Setup!$AH$9 & \"'!\" & AF61),0) + IF(Setup!$AH$10<>\"\",INDIRECT(\"'\" & Setup!$AH$10 & \"'!\" & AF61),0) + IF(Setup!$AH$11<>\"\",INDIRECT(\"'\" & Setup!$AH$11 & \"'!\" & AF61),0) + IF(Setup!$AH$12<>\"\",INDIRECT(\"'\" & Setup!$AH$12 & \"'!\" & AF61),0)","v":0},{"$f":"IF(Setup!$AI$7<>\"\",INDIRECT(\"'\" & Setup!$AI$7 & \"'!\" & AF61),0) + IF(Setup!$AI$8<>\"\",INDIRECT(\"'\" & Setup!$AI$8 & \"'!\" & AF61),0) + IF(Setup!$AI$9<>\"\",INDIRECT(\"'\" & Setup!$AI$9 & \"'!\" & AF61),0) + IF(Setup!$AI$10<>\"\",INDIRECT(\"'\" & Setup!$AI$10 & \"'!\" & AF61),0) + IF(Setup!$AI$11<>\"\",INDIRECT(\"'\" & Setup!$AI$11 & \"'!\" & AF61),0) + IF(Setup!$AI$12<>\"\",INDIRECT(\"'\" & Setup!$AI$12 & \"'!\" & AF61),0)","v":0},{"$f":"IF(Setup!$AJ$7<>\"\",INDIRECT(\"'\" & Setup!$AJ$7 & \"'!\" & AF61),0) + IF(Setup!$AJ$8<>\"\",INDIRECT(\"'\" & Setup!$AJ$8 & \"'!\" & AF61),0) + IF(Setup!$AJ$9<>\"\",INDIRECT(\"'\" & Setup!$AJ$9 & \"'!\" & AF61),0) + IF(Setup!$AJ$10<>\"\",INDIRECT(\"'\" & Setup!$AJ$10 & \"'!\" & AF61),0) + IF(Setup!$AJ$11<>\"\",INDIRECT(\"'\" & Setup!$AJ$11 & \"'!\" & AF61),0) + IF(Setup!$AJ$12<>\"\",INDIRECT(\"'\" & Setup!$AJ$12 & \"'!\" & AF61),0)","v":0},null,"",{"$nulls":3},{"$f":"IF(C61=0,\"\",LEFT(INDEX(Lists!$H$5:$H$49,MATCH(C61,Lists!$G$5:$G$49,0),1),1))","v":""},null,"","","","","","","","","","",{"$nulls":6},{"$f":"IF(Setup!$AG$7<>\"\",INDIRECT(\"'\" & Setup!$AG$7 & \"'!\" & AD61),0) + IF(Setup!$AG$8<>\"\",INDIRECT(\"'\" & Setup!$AG$8 & \"'!\" & AD61),0) + IF(Setup!$AG$9<>\"\",INDIRECT(\"'\" & Setup!$AG$9 & \"'!\" & AD61),0) + IF(Setup!$AG$10<>\"\",INDIRECT(\"'\" & Setup!$AG$10 & \"'!\" & AD61),0) + IF(Setup!$AG$11<>\"\",INDIRECT(\"'\" & Setup!$AG$11 & \"'!\" & AD61),0) + IF(Setup!$AG$12<>\"\",INDIRECT(\"'\" & Setup!$AG$12 & \"'!\" & AD61),0)","v":0},{"$f":"IF(Setup!$AG$7<>\"\",INDIRECT(\"'\" & Setup!$AG$7 & \"'!\" & AE61),0) + IF(Setup!$AG$8<>\"\",INDIRECT(\"'\" & Setup!$AG$8 & \"'!\" & AE61),0) + IF(Setup!$AG$9<>\"\",INDIRECT(\"'\" & Setup!$AG$9 & \"'!\" & AE61),0) + IF(Setup!$AG$10<>\"\",INDIRECT(\"'\" & Setup!$AG$10 & \"'!\" & AE61),0) + IF(Setup!$AG$11<>\"\",INDIRECT(\"'\" & Setup!$AG$11 & \"'!\" & AE61),0) + IF(Setup!$AG$12<>\"\",INDIRECT(\"'\" & Setup!$AG$12 & \"'!\" & AE61),0)","v":0},{"$f":"IF(Setup!$AH$7<>\"\",INDIRECT(\"'\" & Setup!$AH$7 & \"'!\" & AD61),0) + IF(Setup!$AH$8<>\"\",INDIRECT(\"'\" & Setup!$AH$8 & \"'!\" & AD61),0) + IF(Setup!$AH$9<>\"\",INDIRECT(\"'\" & Setup!$AH$9 & \"'!\" & AD61),0) + IF(Setup!$AH$10<>\"\",INDIRECT(\"'\" & Setup!$AH$10 & \"'!\" & AD61),0) + IF(Setup!$AH$11<>\"\",INDIRECT(\"'\" & Setup!$AH$11 & \"'!\" & AD61),0) + IF(Setup!$AH$12<>\"\",INDIRECT(\"'\" & Setup!$AH$12 & \"'!\" & AD61),0)","v":0},{"$f":"IF(Setup!$AH$7<>\"\",INDIRECT(\"'\" & Setup!$AH$7 & \"'!\" & AE61),0) + IF(Setup!$AH$8<>\"\",INDIRECT(\"'\" & Setup!$AH$8 & \"'!\" & AE61),0) + IF(Setup!$AH$9<>\"\",INDIRECT(\"'\" & Setup!$AH$9 & \"'!\" & AE61),0) + IF(Setup!$AH$10<>\"\",INDIRECT(\"'\" & Setup!$AH$10 & \"'!\" & AE61),0) + IF(Setup!$AH$11<>\"\",INDIRECT(\"'\" & Setup!$AH$11 & \"'!\" & AE61),0) + IF(Setup!$AH$12<>\"\",INDIRECT(\"'\" & Setup!$AH$12 & \"'!\" & AE61),0)","v":0},{"$f":"IF(Setup!$AI$7<>\"\",INDIRECT(\"'\" & Setup!$AI$7 & \"'!\" & AD61),0) + IF(Setup!$AI$8<>\"\",INDIRECT(\"'\" & Setup!$AI$8 & \"'!\" & AD61),0) + IF(Setup!$AI$9<>\"\",INDIRECT(\"'\" & Setup!$AI$9 & \"'!\" & AD61),0) + IF(Setup!$AI$10<>\"\",INDIRECT(\"'\" & Setup!$AI$10 & \"'!\" & AD61),0) + IF(Setup!$AI$11<>\"\",INDIRECT(\"'\" & Setup!$AI$11 & \"'!\" & AD61),0) + IF(Setup!$AI$12<>\"\",INDIRECT(\"'\" & Setup!$AI$12 & \"'!\" & AD61),0)","v":0},{"$f":"IF(Setup!$AI$7<>\"\",INDIRECT(\"'\" & Setup!$AI$7 & \"'!\" & AE61),0) + IF(Setup!$AI$8<>\"\",INDIRECT(\"'\" & Setup!$AI$8 & \"'!\" & AE61),0) + IF(Setup!$AI$9<>\"\",INDIRECT(\"'\" & Setup!$AI$9 & \"'!\" & AE61),0) + IF(Setup!$AI$10<>\"\",INDIRECT(\"'\" & Setup!$AI$10 & \"'!\" & AE61),0) + IF(Setup!$AI$11<>\"\",INDIRECT(\"'\" & Setup!$AI$11 & \"'!\" & AE61),0) + IF(Setup!$AI$12<>\"\",INDIRECT(\"'\" & Setup!$AI$12 & \"'!\" & AE61),0)","v":0},{"$f":"IF(Setup!$AJ$7<>\"\",INDIRECT(\"'\" & Setup!$AJ$7 & \"'!\" & AD61),0) + IF(Setup!$AJ$8<>\"\",INDIRECT(\"'\" & Setup!$AJ$8 & \"'!\" & AD61),0) + IF(Setup!$AJ$9<>\"\",INDIRECT(\"'\" & Setup!$AJ$9 & \"'!\" & AD61),0) + IF(Setup!$AJ$10<>\"\",INDIRECT(\"'\" & Setup!$AJ$10 & \"'!\" & AD61),0) + IF(Setup!$AJ$11<>\"\",INDIRECT(\"'\" & Setup!$AJ$11 & \"'!\" & AD61),0) + IF(Setup!$AJ$12<>\"\",INDIRECT(\"'\" & Setup!$AJ$12 & \"'!\" & AD61),0)","v":0},{"$f":"IF(Setup!$AJ$7<>\"\",INDIRECT(\"'\" & Setup!$AJ$7 & \"'!\" & AE61),0) + IF(Setup!$AJ$8<>\"\",INDIRECT(\"'\" & Setup!$AJ$8 & \"'!\" & AE61),0) + IF(Setup!$AJ$9<>\"\",INDIRECT(\"'\" & Setup!$AJ$9 & \"'!\" & AE61),0) + IF(Setup!$AJ$10<>\"\",INDIRECT(\"'\" & Setup!$AJ$10 & \"'!\" & AE61),0) + IF(Setup!$AJ$11<>\"\",INDIRECT(\"'\" & Setup!$AJ$11 & \"'!\" & AE61),0) + IF(Setup!$AJ$12<>\"\",INDIRECT(\"'\" & Setup!$AJ$12 & \"'!\" & AE61),0)","v":0}]
[{"$f":"Planning!A45","v":"I037"},{"$f":"Planning!B45","v":0},{"$f":"Planning!C45","v":0},{"$f":"Planning!D45","v":0},{"$f":"Planning!E45","v":0},{"$f":"Planning!G45","v":0},null,0,0,{"$f":"IF(AND($AR62=\"2\",$AB61<>Lists!$A$17),AU62,AT62)","v":""},"",0,0,{"$f":"IF(AND($AR62=\"2\",$AB62<>Lists!$A$17),AW62,AV62)","v":""},"",0,0,{"$f":"IF(AND($AR62=\"2\",$AB62<>Lists!$A$17),AY62,AX62)","v":""},"",0,0,{"$f":"IF(AND($AR62=\"2\",$AB62<>Lists!$A$17),BA62,AZ62)","v":""},"",0,0,{"$f":"IF(AND($AR62=\"2\",$AB62<>Lists!$A$17),BC62,BB62)","v":""},"",{"$f":"Planning!H45","v":0},"00","H61","J61","I61","",null,{"$f":"IF(Setup!$AG$7<>\"\",INDIRECT(\"'\" & Setup!$AG$7 & \"'!\" & AF62),0) + IF(Setup!$AG$8<>\"\",INDIRECT(\"'\" & Setup!$AG$8 & \"'!\" & AF62),0) + IF(Setup!$AG$9<>\"\",INDIRECT(\"'\" & Setup!$AG$9 & \"'!\" & AF62),0) + IF(Setup!$AG$10<>\"\",INDIRECT(\"'\" & Setup!$AG$10 & \"'!\" & AF62),0) + IF(Setup!$AG$11<>\"\",INDIRECT(\"'\" & Setup!$AG$11 & \"'!\" & AF62),0) + IF(Setup!$AG$12<>\"\",INDIRECT(\"'\" & Setup!$AG$12 & \"'!\" & AF62),0)","v":0},{"$f":"IF(Setup!$AH$7<>\"\",INDIRECT(\"'\" & Setup!$AH$7 & \"'!\" & AF62),0) + IF(Setup!$AH$8<>\"\",INDIRECT(\"'\" & Setup!$AH$8 & \"'!\" & AF62),0) + IF(Setup!$AH$9<>\"\",INDIRECT(\"'\" & Setup!$AH$9 & \"'!\" & AF62),0) + IF(Setup!$AH$10<>\"\",INDIRECT(\"'\" & Setup!$AH$10 & \"'!\" & AF62),0) + IF(Setup!$AH$11<>\"\",INDIRECT(\"'\" & Setup!$AH$11 & \"'!\" & AF62),0) + IF(Setup!$AH$12<>\"\",INDIRECT(\"'\" & Setup!$AH$12 & \"'!\" & AF62),0)","v":0},{"$f":"IF(Setup!$AI$7<>\"\",INDIRECT(\"'\" & Setup!$AI$7 & \"'!\" & AF62),0) + IF(Setup!$AI$8<>\"\",INDIRECT(\"'\" & Setup!$AI$8 & \"'!\" & AF62),0) + IF(Setup!$AI$9<>\"\",INDIRECT(\"'\" & Setup!$AI$9 & \"'!\" & AF62),0) + IF(Setup!$AI$10<>\"\",INDIRECT(\"'\" & Setup!$AI$10 & \"'!\" & AF62),0) + IF(Setup!$AI$11<>\"\",INDIRECT(\"'\" & Setup!$AI$11 & \"'!\" & AF62),0) + IF(Setup!$AI$12<>\"\",INDIRECT(\"'\" & Setup!$AI$12 & \"'!\" & AF62),0)","v":0},{"$f":"IF(Setup!$AJ$7<>\"\",INDIRECT(\"'\" & Setup!$AJ$7 & \"'!\" & AF62),0) + IF(Setup!$AJ$8<>\"\",INDIRECT(\"'\" & Setup!$AJ$8 & \"'!\" & AF62),0) + IF(Setup!$AJ$9<>\"\",INDIRECT(\"'\" & Setup!$AJ$9 & \"'!\" & AF62),0) + IF(Setup!$AJ$10<>\"\",INDIRECT(\"'\" & Setup!$AJ$10 & \"'!\" & AF62),0) + IF(Setup!$AJ$11<>\"\",INDIRECT(\"'\" & Setup!$AJ$11 & \"'!\" & AF62),0) + IF(Setup!$AJ$12<>\"\",INDIRECT(\"'\" & Setup!$AJ$12 & \"'!\" & AF62),0)","v":0},null,"",{"$nulls":3},{"$f":"IF(C62=0,\"\",LEFT(INDEX(Lists!$H$5:$H$49,MATCH(C62,Lists!$G$5:$G$49,0),1),1))","v":""},null,"","","","","","","","","","",{"$nulls":6},{"$f":"IF(Setup!$AG$7<>\"\",INDIRECT(\"'\" & Setup!$AG$7 & \"'!\" & AD62),0) + IF(Setup!$AG$8<>\"\",INDIRECT(\"'\" & Setup!$AG$8 & \"'!\" & AD62),0) + IF(Setup!$AG$9<>\"\",INDIRECT(\"'\" & Setup!$AG$9 & \"'!\" & AD62),0) + IF(Setup!$AG$10<>\"\",INDIRECT(\"'\" & Setup!$AG$10 & \"'!\" & AD62),0) + IF(Setup!$AG$11<>\"\",INDIRECT(\"'\" & Setup!$AG$11 & \"'!\" & AD62),0) + IF(Setup!$AG$12<>\"\",INDIRECT(\"'\" & Setup!$AG$12 & \"'!\" & AD62),0)","v":0},{"$f":"IF(Setup!$AG$7<>\"\",INDIRECT(\"'\" & Setup!$AG$7 & \"'!\" & AE62),0) + IF(Setup!$AG$8<>\"\",INDIRECT(\"'\" & Setup!$AG$8 & \"'!\" & AE62),0) + IF(Setup!$AG$9<>\"\",INDIRECT(\"'\" & Setup!$AG$9 & \"'!\" & AE62),0) + IF(Setup!$AG$10<>\"\",INDIRECT(\"'\" & Setup!$AG$10 & \"'!\" & AE62),0) + IF(Setup!$AG$11<>\"\",INDIRECT(\"'\" & Setup!$AG$11 & \"'!\" & AE62),0) + IF(Setup!$AG$12<>\"\",INDIRECT(\"'\" & Setup!$AG$12 & \"'!\" & AE62),0)","v":0},{"$f":"IF(Setup!$AH$7<>\"\",INDIRECT(\"'\" & Setup!$AH$7 & \"'!\" & AD62),0) + IF(Setup!$AH$8<>\"\",INDIRECT(\"'\" & Setup!$AH$8 & \"'!\" & AD62),0) + IF(Setup!$AH$9<>\"\",INDIRECT(\"'\" & Setup!$AH$9 & \"'!\" & AD62),0) + IF(Setup!$AH$10<>\"\",INDIRECT(\"'\" & Setup!$AH$10 & \"'!\" & AD62),0) + IF(Setup!$AH$11<>\"\",INDIRECT(\"'\" & Setup!$AH$11 & \"'!\" & AD62),0) + IF(Setup!$AH$12<>\"\",INDIRECT(\"'\" & Setup!$AH$12 & \"'!\" & AD62),0)","v":0},{"$f":"IF(Setup!$AH$7<>\"\",INDIRECT(\"'\" & Setup!$AH$7 & \"'!\" & AE62),0) + IF(Setup!$AH$8<>\"\",INDIRECT(\"'\" & Setup!$AH$8 & \"'!\" & AE62),0) + IF(Setup!$AH$9<>\"\",INDIRECT(\"'\" & Setup!$AH$9 & \"'!\" & AE62),0) + IF(Setup!$AH$10<>\"\",INDIRECT(\"'\" & Setup!$AH$10 & \"'!\" & AE62),0) + IF(Setup!$AH$11<>\"\",INDIRECT(\"'\" & Setup!$AH$11 & \"'!\" & AE62),0) + IF(Setup!$AH$12<>\"\",INDIRECT(\"'\" & Setup!$AH$12 & \"'!\" & AE62),0)","v":0},{"$f":"IF(Setup!$AI$7<>\"\",INDIRECT(\"'\" & Setup!$AI$7 & \"'!\" & AD62),0) + IF(Setup!$AI$8<>\"\",INDIRECT(\"'\" & Setup!$AI$8 & \"'!\" & AD62),0) + IF(Setup!$AI$9<>\"\",INDIRECT(\"'\" & Setup!$AI$9 & \"'!\" & AD62),0) + IF(Setup!$AI$10<>\"\",INDIRECT(\"'\" & Setup!$AI$10 & \"'!\" & AD62),0) + IF(Setup!$AI$11<>\"\",INDIRECT(\"'\" & Setup!$AI$11 & \"'!\" & AD62),0) + IF(Setup!$AI$12<>\"\",INDIRECT(\"'\" & Setup!$AI$12 & \"'!\" & AD62),0)","v":0},{"$f":"IF(Setup!$AI$7<>\"\",INDIRECT(\"'\" & Setup!$AI$7 & \"'!\" & AE62),0) + IF(Setup!$AI$8<>\"\",INDIRECT(\"'\" & Setup!$AI$8 & \"'!\" & AE62),0) + IF(Setup!$AI$9<>\"\",INDIRECT(\"'\" & Setup!$AI$9 & \"'!\" & AE62),0) + IF(Setup!$AI$10<>\"\",INDIRECT(\"'\" & Setup!$AI$10 & \"'!\" & AE62),0) + IF(Setup!$AI$11<>\"\",INDIRECT(\"'\" & Setup!$AI$11 & \"'!\" & AE62),0) + IF(Setup!$AI$12<>\"\",INDIRECT(\"'\" & Setup!$AI$12 & \"'!\" & AE62),0)","v":0},{"$f":"IF(Setup!$AJ$7<>\"\",INDIRECT(\"'\" & Setup!$AJ$7 & \"'!\" & AD62),0) + IF(Setup!$AJ$8<>\"\",INDIRECT(\"'\" & Setup!$AJ$8 & \"'!\" & AD62),0) + IF(Setup!$AJ$9<>\"\",INDIRECT(\"'\" & Setup!$AJ$9 & \"'!\" & AD62),0) + IF(Setup!$AJ$10<>\"\",INDIRECT(\"'\" & Setup!$AJ$10 & \"'!\" & AD62),0) + IF(Setup!$AJ$11<>\"\",INDIRECT(\"'\" & Setup!$AJ$11 & \"'!\" & AD62),0) + IF(Setup!$AJ$12<>\"\",INDIRECT(\"'\" & Setup!$AJ$12 & \"'!\" & AD62),0)","v":0},{"$f":"IF(Setup!$AJ$7<>\"\",INDIRECT(\"'\" & Setup!$AJ$7 & \"'!\" & AE62),0) + IF(Setup!$AJ$8<>\"\",INDIRECT(\"'\" & Setup!$AJ$8 & \"'!\" & AE62),0) + IF(Setup!$AJ$9<>\"\",INDIRECT(\"'\" & Setup!$AJ$9 & \"'!\" & AE62),0) + IF(Setup!$AJ$10<>\"\",INDIRECT(\"'\" & Setup!$AJ$10 & \"'!\" & AE62),0) + IF(Setup!$AJ$11<>\"\",INDIRECT(\"'\" & Setup!$AJ$11 & \"'!\" & AE62),0) + IF(Setup!$AJ$12<>\"\",INDIRECT(\"'\" & Setup!$AJ$12 & \"'!\" & AE62),0)","v":0}]
[{"$f":"Planning!A46","v":"I038"},{"$f":"Planning!B46","v":0},{"$f":"Planning!C46","v":0},{"$f":"Planning!D46","v":0},{"$f":"Planning!E46","v":0},{"$f":"Planning!G46","v":0},null,0,0,{"$f":"IF(AND($AR63=\"2\",$AB62<>Lists!$A$17),AU63,AT63)","v":""},"",0,0,{"$f":"IF(AND($AR63=\"2\",$AB63<>Lists!$A$17),AW63,AV63)","v":""},"",0,0,{"$f":"IF(AND($AR63=\"2\",$AB63<>Lists!$A$17),AY63,AX63)","v":""},"",0,0,{"$f":"IF(AND($AR63=\"2\",$AB63<>Lists!$A$17),BA63,AZ63)","v":""},"",0,0,{"$f":"IF(AND($AR63=\"2\",$AB63<>Lists!$A$17),BC63,BB63)","v":""},"",{"$f":"Planning!H46","v":0},"00","H62","J62","I62","",null,{"$f":"IF(Setup!$AG$7<>\"\",INDIRECT(\"'\" & Setup!$AG$7 & \"'!\" & AF63),0) + IF(Setup!$AG$8<>\"\",INDIRECT(\"'\" & Setup!$AG$8 & \"'!\" & AF63),0) + IF(Setup!$AG$9<>\"\",INDIRECT(\"'\" & Setup!$AG$9 & \"'!\" & AF63),0) + IF(Setup!$AG$10<>\"\",INDIRECT(\"'\" & Setup!$AG$10 & \"'!\" & AF63),0) + IF(Setup!$AG$11<>\"\",INDIRECT(\"'\" & Setup!$AG$11 & \"'!\" & AF63),0) + IF(Setup!$AG$12<>\"\",INDIRECT(\"'\" & Setup!$AG$12 & \"'!\" & AF63),0)","v":0},{"$f":"IF(Setup!$AH$7<>\"\",INDIRECT(\"'\" & Setup!$AH$7 & \"'!\" & AF63),0) + IF(Setup!$AH$8<>\"\",INDIRECT(\"'\" & Setup!$AH$8 & \"'!\" & AF63),0) + IF(Setup!$AH$9<>\"\",INDIRECT(\"'\" & Setup!$AH$9 & \"'!\" & AF63),0) + IF(Setup!$AH$10<>\"\",INDIRECT(\"'\" & Setup!$AH$10 & \"'!\" & AF63),0) + IF(Setup!$AH$11<>\"\",INDIRECT(\"'\" & Setup!$AH$11 & \"'!\" & AF63),0) + IF(Setup!$AH$12<>\"\",INDIRECT(\"'\" & Setup!$AH$12 & \"'!\" & AF63),0)","v":0},{"$f":"IF(Setup!$AI$7<>\"\",INDIRECT(\"'\" & Setup!$AI$7 & \"'!\" & AF63),0) + IF(Setup!$AI$8<>\"\",INDIRECT(\"'\" & Setup!$AI$8 & \"'!\" & AF63),0) + IF(Setup!$AI$9<>\"\",INDIRECT(\"'\" & Setup!$AI$9 & \"'!\" & AF63),0) + IF(Setup!$AI$10<>\"\",INDIRECT(\"'\" & Setup!$AI$10 & \"'!\" & AF63),0) + IF(Setup!$AI$11<>\"\",INDIRECT(\"'\" & Setup!$AI$11 & \"'!\" & AF63),0) + IF(Setup!$AI$12<>\"\",INDIRECT(\"'\" & Setup!$AI$12 & \"'!\" & AF63),0)","v":0},{"$f":"IF(Setup!$AJ$7<>\"\",INDIRECT(\"'\" & Setup!$AJ$7 & \"'!\" & AF63),0) + IF(Setup!$AJ$8<>\"\",INDIRECT(\"'\" & Setup!$AJ$8 & \"'!\" & AF63),0) + IF(Setup!$AJ$9<>\"\",INDIRECT(\"'\" & Setup!$AJ$9 & \"'!\" & AF63),0) + IF(Setup!$AJ$10<>\"\",INDIRECT(\"'\" & Setup!$AJ$10 & \"'!\" & AF63),0) + IF(Setup!$AJ$11<>\"\",INDIRECT(\"'\" & Setup!$AJ$11 & \"'!\" & AF63),0) + IF(Setup!$AJ$12<>\"\",INDIRECT(\"'\" & Setup!$AJ$12 & \"'!\" & AF63),0)","v":0},null,"",{"$nulls":3},{"$f":"IF(C63=0,\"\",LEFT(INDEX(Lists!$H$5:$H$49,MATCH(C63,Lists!$G$5:$G$49,0),1),1))","v":""},null,"","","","","","","","","","",{"$nulls":6},{"$f":"IF(Setup!$AG$7<>\"\",INDIRECT(\"'\" & Setup!$AG$7 & \"'!\" & AD63),0) + IF(Setup!$AG$8<>\"\",INDIRECT(\"'\" & Setup!$AG$8 & \"'!\" & AD63),0) + IF(Setup!$AG$9<>\"\",INDIRECT(\"'\" & Setup!$AG$9 & \"'!\" & AD63),0) + IF(Setup!$AG$10<>\"\",INDIRECT(\"'\" & Setup!$AG$10 & \"'!\" & AD63),0) + IF(Setup!$AG$11<>\"\",INDIRECT(\"'\" & Setup!$AG$11 & \"'!\" & AD63),0) + IF(Setup!$AG$12<>\"\",INDIRECT(\"'\" & Setup!$AG$12 & \"'!\" & AD63),0)","v":0},{"$f":"IF(Setup!$AG$7<>\"\",INDIRECT(\"'\" & Setup!$AG$7 & \"'!\" & AE63),0) + IF(Setup!$AG$8<>\"\",INDIRECT(\"'\" & Setup!$AG$8 & \"'!\" & AE63),0) + IF(Setup!$AG$9<>\"\",INDIRECT(\"'\" & Setup!$AG$9 & \"'!\" & AE63),0) + IF(Setup!$AG$10<>\"\",INDIRECT(\"'\" & Setup!$AG$10 & \"'!\" & AE63),0) + IF(Setup!$AG$11<>\"\",INDIRECT(\"'\" & Setup!$AG$11 & \"'!\" & AE63),0) + IF(Setup!$AG$12<>\"\",INDIRECT(\"'\" & Setup!$AG$12 & \"'!\" & AE63),0)","v":0},{"$f":"IF(Setup!$AH$7<>\"\",INDIRECT(\"'\" & Setup!$AH$7 & \"'!\" & AD63),0) + IF(Setup!$AH$8<>\"\",INDIRECT(\"'\" & Setup!$AH$8 & \"'!\" & AD63),0) + IF(Setup!$AH$9<>\"\",INDIRECT(\"'\" & Setup!$AH$9 & \"'!\" & AD63),0) + IF(Setup!$AH$10<>\"\",INDIRECT(\"'\" & Setup!$AH$10 & \"'!\" & AD63),0) + IF(Setup!$AH$11<>\"\",INDIRECT(\"'\" & Setup!$AH$11 & \"'!\" & AD63),0) + IF(Setup!$AH$12<>\"\",INDIRECT(\"'\" & Setup!$AH$12 & \"'!\" & AD63),0)","v":0},{"$f":"IF(Setup!$AH$7<>\"\",INDIRECT(\"'\" & Setup!$AH$7 & \"'!\" & AE63),0) + IF(Setup!$AH$8<>\"\",INDIRECT(\"'\" & Setup!$AH$8 & \"'!\" & AE63),0) + IF(Setup!$AH$9<>\"\",INDIRECT(\"'\" & Setup!$AH$9 & \"'!\" & AE63),0) + IF(Setup!$AH$10<>\"\",INDIRECT(\"'\" & Setup!$AH$10 & \"'!\" & AE63),0) + IF(Setup!$AH$11<>\"\",INDIRECT(\"'\" & Setup!$AH$11 & \"'!\" & AE63),0) + IF(Setup!$AH$12<>\"\",INDIRECT(\"'\" & Setup!$AH$12 & \"'!\" & AE63),0)","v":0},{"$f":"IF(Setup!$AI$7<>\"\",INDIRECT(\"'\" & Setup!$AI$7 & \"'!\" & AD63),0) + IF(Setup!$AI$8<>\"\",INDIRECT(\"'\" & Setup!$AI$8 & \"'!\" & AD63),0) + IF(Setup!$AI$9<>\"\",INDIRECT(\"'\" & Setup!$AI$9 & \"'!\" & AD63),0) + IF(Setup!$AI$10<>\"\",INDIRECT(\"'\" & Setup!$AI$10 & \"'!\" & AD63),0) + IF(Setup!$AI$11<>\"\",INDIRECT(\"'\" & Setup!$AI$11 & \"'!\" & AD63),0) + IF(Setup!$AI$12<>\"\",INDIRECT(\"'\" & Setup!$AI$12 & \"'!\" & AD63),0)","v":0},{"$f":"IF(Setup!$AI$7<>\"\",INDIRECT(\"'\" & Setup!$AI$7 & \"'!\" & AE63),0) + IF(Setup!$AI$8<>\"\",INDIRECT(\"'\" & Setup!$AI$8 & \"'!\" & AE63),0) + IF(Setup!$AI$9<>\"\",INDIRECT(\"'\" & Setup!$AI$9 & \"'!\" & AE63),0) + IF(Setup!$AI$10<>\"\",INDIRECT(\"'\" & Setup!$AI$10 & \"'!\" & AE63),0) + IF(Setup!$AI$11<>\"\",INDIRECT(\"'\" & Setup!$AI$11 & \"'!\" & AE63),0) + IF(Setup!$AI$12<>\"\",INDIRECT(\"'\" & Setup!$AI$12 & \"'!\" & AE63),0)","v":0},{"$f":"IF(Setup!$AJ$7<>\"\",INDIRECT(\"'\" & Setup!$AJ$7 & \"'!\" & AD63),0) + IF(Setup!$AJ$8<>\"\",INDIRECT(\"'\" & Setup!$AJ$8 & \"'!\" & AD63),0) + IF(Setup!$AJ$9<>\"\",INDIRECT(\"'\" & Setup!$AJ$9 & \"'!\" & AD63),0) + IF(Setup!$AJ$10<>\"\",INDIRECT(\"'\" & Setup!$AJ$10 & \"'!\" & AD63),0) + IF(Setup!$AJ$11<>\"\",INDIRECT(\"'\" & Setup!$AJ$11 & \"'!\" & AD63),0) + IF(Setup!$AJ$12<>\"\",INDIRECT(\"'\" & Setup!$AJ$12 & \"'!\" & AD63),0)","v":0},{"$f":"IF(Setup!$AJ$7<>\"\",INDIRECT(\"'\" & Setup!$AJ$7 & \"'!\" & AE63),0) + IF(Setup!$AJ$8<>\"\",INDIRECT(\"'\" & Setup!$AJ$8 & \"'!\" & AE63),0) + IF(Setup!$AJ$9<>\"\",INDIRECT(\"'\" & Setup!$AJ$9 & \"'!\" & AE63),0) + IF(Setup!$AJ$10<>\"\",INDIRECT(\"'\" & Setup!$AJ$10 & \"'!\" & AE63),0) + IF(Setup!$AJ$11<>\"\",INDIRECT(\"'\" & Setup!$AJ$11 & \"'!\" & AE63),0) + IF(Setup!$AJ$12<>\"\",INDIRECT(\"'\" & Setup!$AJ$12 & \"'!\" & AE63),0)","v":0}]
[{"$f":"Planning!A47","v":"I039"},{"$f":"Planning!B47","v":0},{"$f":"Planning!C47","v":0},{"$f":"Planning!D47","v":0},{"$f":"Planning!E47","v":0},{"$f":"Planning!G47","v":0},null,0,0,{"$f":"IF(AND($AR64=\"2\",$AB63<>Lists!$A$17),AU64,AT64)","v":""},"",0,0,{"$f":"IF(AND($AR64=\"2\",$AB64<>Lists!$A$17),AW64,AV64)","v":""},"",0,0,{"$f":"IF(AND($AR64=\"2\",$AB64<>Lists!$A$17),AY64,AX64)","v":""},"",0,0,{"$f":"IF(AND($AR64=\"2\",$AB64<>Lists!$A$17),BA64,AZ64)","v":""},"",0,0,{"$f":"IF(AND($AR64=\"2\",$AB64<>Lists!$A$17),BC64,BB64)","v":""},"",{"$f":"Planning!H47","v":0},"00","H63","J63","I63","",null,{"$f":"IF(Setup!$AG$7<>\"\",INDIRECT(\"'\" & Setup!$AG$7 & \"'!\" & AF64),0) + IF(Setup!$AG$8<>\"\",INDIRECT(\"'\" & Setup!$AG$8 & \"'!\" & AF64),0) + IF(Setup!$AG$9<>\"\",INDIRECT(\"'\" & Setup!$AG$9 & \"'!\" & AF64),0) + IF(Setup!$AG$10<>\"\",INDIRECT(\"'\" & Setup!$AG$10 & \"'!\" & AF64),0) + IF(Setup!$AG$11<>\"\",INDIRECT(\"'\" & Setup!$AG$11 & \"'!\" & AF64),0) + IF(Setup!$AG$12<>\"\",INDIRECT(\"'\" & Setup!$AG$12 & \"'!\" & AF64),0)","v":0},{"$f":"IF(Setup!$AH$7<>\"\",INDIRECT(\"'\" & Setup!$AH$7 & \"'!\" & AF64),0) + IF(Setup!$AH$8<>\"\",INDIRECT(\"'\" & Setup!$AH$8 & \"'!\" & AF64),0) + IF(Setup!$AH$9<>\"\",INDIRECT(\"'\" & Setup!$AH$9 & \"'!\" & AF64),0) + IF(Setup!$AH$10<>\"\",INDIRECT(\"'\" & Setup!$AH$10 & \"'!\" & AF64),0) + IF(Setup!$AH$11<>\"\",INDIRECT(\"'\" & Setup!$AH$11 & \"'!\" & AF64),0) + IF(Setup!$AH$12<>\"\",INDIRECT(\"'\" & Setup!$AH$12 & \"'!\" & AF64),0)","v":0},{"$f":"IF(Setup!$AI$7<>\"\",INDIRECT(\"'\" & Setup!$AI$7 & \"'!\" & AF64),0) + IF(Setup!$AI$8<>\"\",INDIRECT(\"'\" & Setup!$AI$8 & \"'!\" & AF64),0) + IF(Setup!$AI$9<>\"\",INDIRECT(\"'\" & Setup!$AI$9 & \"'!\" & AF64),0) + IF(Setup!$AI$10<>\"\",INDIRECT(\"'\" & Setup!$AI$10 & \"'!\" & AF64),0) + IF(Setup!$AI$11<>\"\",INDIRECT(\"'\" & Setup!$AI$11 & \"'!\" & AF64),0) + IF(Setup!$AI$12<>\"\",INDIRECT(\"'\" & Setup!$AI$12 & \"'!\" & AF64),0)","v":0},{"$f":"IF(Setup!$AJ$7<>\"\",INDIRECT(\"'\" & Setup!$AJ$7 & \"'!\" & AF64),0) + IF(Setup!$AJ$8<>\"\",INDIRECT(\"'\" & Setup!$AJ$8 & \"'!\" & AF64),0) + IF(Setup!$AJ$9<>\"\",INDIRECT(\"'\" & Setup!$AJ$9 & \"'!\" & AF64),0) + IF(Setup!$AJ$10<>\"\",INDIRECT(\"'\" & Setup!$AJ$10 & \"'!\" & AF64),0) + IF(Setup!$AJ$11<>\"\",INDIRECT(\"'\" & Setup!$AJ$11 & \"'!\" & AF64),0) + IF(Setup!$AJ$12<>\"\",INDIRECT(\"'\" & Setup!$AJ$12 & \"'!\" & AF64),0)","v":0},null,"",{"$nulls":3},{"$f":"IF(C64=0,\"\",LEFT(INDEX(Lists!$H$5:$H$49,MATCH(C64,Lists!$G$5:$G$49,0),1),1))","v":""},null,"","","","","","","","","","",{"$nulls":6},{"$f":"IF(Setup!$AG$7<>\"\",INDIRECT(\"'\" & Setup!$AG$7 & \"'!\" & AD64),0) + IF(Setup!$AG$8<>\"\",INDIRECT(\"'\" & Setup!$AG$8 & \"'!\" & AD64),0) + IF(Setup!$AG$9<>\"\",INDIRECT(\"'\" & Setup!$AG$9 & \"'!\" & AD64),0) + IF(Setup!$AG$10<>\"\",INDIRECT(\"'\" & Setup!$AG$10 & \"'!\" & AD64),0) + IF(Setup!$AG$11<>\"\",INDIRECT(\"'\" & Setup!$AG$11 & \"'!\" & AD64),0) + IF(Setup!$AG$12<>\"\",INDIRECT(\"'\" & Setup!$AG$12 & \"'!\" & AD64),0)","v":0},{"$f":"IF(Setup!$AG$7<>\"\",INDIRECT(\"'\" & Setup!$AG$7 & \"'!\" & AE64),0) + IF(Setup!$AG$8<>\"\",INDIRECT(\"'\" & Setup!$AG$8 & \"'!\" & AE64),0) + IF(Setup!$AG$9<>\"\",INDIRECT(\"'\" & Setup!$AG$9 & \"'!\" & AE64),0) + IF(Setup!$AG$10<>\"\",INDIRECT(\"'\" & Setup!$AG$10 & \"'!\" & AE64),0) + IF(Setup!$AG$11<>\"\",INDIRECT(\"'\" & Setup!$AG$11 & \"'!\" & AE64),0) + IF(Setup!$AG$12<>\"\",INDIRECT(\"'\" & Setup!$AG$12 & \"'!\" & AE64),0)","v":0},{"$f":"IF(Setup!$AH$7<>\"\",INDIRECT(\"'\" & Setup!$AH$7 & \"'!\" & AD64),0) + IF(Setup!$AH$8<>\"\",INDIRECT(\"'\" & Setup!$AH$8 & \"'!\" & AD64),0) + IF(Setup!$AH$9<>\"\",INDIRECT(\"'\" & Setup!$AH$9 & \"'!\" & AD64),0) + IF(Setup!$AH$10<>\"\",INDIRECT(\"'\" & Setup!$AH$10 & \"'!\" & AD64),0) + IF(Setup!$AH$11<>\"\",INDIRECT(\"'\" & Setup!$AH$11 & \"'!\" & AD64),0) + IF(Setup!$AH$12<>\"\",INDIRECT(\"'\" & Setup!$AH$12 & \"'!\" & AD64),0)","v":0},{"$f":"IF(Setup!$AH$7<>\"\",INDIRECT(\"'\" & Setup!$AH$7 & \"'!\" & AE64),0) + IF(Setup!$AH$8<>\"\",INDIRECT(\"'\" & Setup!$AH$8 & \"'!\" & AE64),0) + IF(Setup!$AH$9<>\"\",INDIRECT(\"'\" & Setup!$AH$9 & \"'!\" & AE64),0) + IF(Setup!$AH$10<>\"\",INDIRECT(\"'\" & Setup!$AH$10 & \"'!\" & AE64),0) + IF(Setup!$AH$11<>\"\",INDIRECT(\"'\" & Setup!$AH$11 & \"'!\" & AE64),0) + IF(Setup!$AH$12<>\"\",INDIRECT(\"'\" & Setup!$AH$12 & \"'!\" & AE64),0)","v":0},{"$f":"IF(Setup!$AI$7<>\"\",INDIRECT(\"'\" & Setup!$AI$7 & \"'!\" & AD64),0) + IF(Setup!$AI$8<>\"\",INDIRECT(\"'\" & Setup!$AI$8 & \"'!\" & AD64),0) + IF(Setup!$AI$9<>\"\",INDIRECT(\"'\" & Setup!$AI$9 & \"'!\" & AD64),0) + IF(Setup!$AI$10<>\"\",INDIRECT(\"'\" & Setup!$AI$10 & \"'!\" & AD64),0) + IF(Setup!$AI$11<>\"\",INDIRECT(\"'\" & Setup!$AI$11 & \"'!\" & AD64),0) + IF(Setup!$AI$12<>\"\",INDIRECT(\"'\" & Setup!$AI$12 & \"'!\" & AD64),0)","v":0},{"$f":"IF(Setup!$AI$7<>\"\",INDIRECT(\"'\" & Setup!$AI$7 & \"'!\" & AE64),0) + IF(Setup!$AI$8<>\"\",INDIRECT(\"'\" & Setup!$AI$8 & \"'!\" & AE64),0) + IF(Setup!$AI$9<>\"\",INDIRECT(\"'\" & Setup!$AI$9 & \"'!\" & AE64),0) + IF(Setup!$AI$10<>\"\",INDIRECT(\"'\" & Setup!$AI$10 & \"'!\" & AE64),0) + IF(Setup!$AI$11<>\"\",INDIRECT(\"'\" & Setup!$AI$11 & \"'!\" & AE64),0) + IF(Setup!$AI$12<>\"\",INDIRECT(\"'\" & Setup!$AI$12 & \"'!\" & AE64),0)","v":0},{"$f":"IF(Setup!$AJ$7<>\"\",INDIRECT(\"'\" & Setup!$AJ$7 & \"'!\" & AD64),0) + IF(Setup!$AJ$8<>\"\",INDIRECT(\"'\" & Setup!$AJ$8 & \"'!\" & AD64),0) + IF(Setup!$AJ$9<>\"\",INDIRECT(\"'\" & Setup!$AJ$9 & \"'!\" & AD64),0) + IF(Setup!$AJ$10<>\"\",INDIRECT(\"'\" & Setup!$AJ$10 & \"'!\" & AD64),0) + IF(Setup!$AJ$11<>\"\",INDIRECT(\"'\" & Setup!$AJ$11 & \"'!\" & AD64),0) + IF(Setup!$AJ$12<>\"\",INDIRECT(\"'\" & Setup!$AJ$12 & \"'!\" & AD64),0)","v":0},{"$f":"IF(Setup!$AJ$7<>\"\",INDIRECT(\"'\" & Setup!$AJ$7 & \"'!\" & AE64),0) + IF(Setup!$AJ$8<>\"\",INDIRECT(\"'\" & Setup!$AJ$8 & \"'!\" & AE64),0) + IF(Setup!$AJ$9<>\"\",INDIRECT(\"'\" & Setup!$AJ$9 & \"'!\" & AE64),0) + IF(Setup!$AJ$10<>\"\",INDIRECT(\"'\" & Setup!$AJ$10 & \"'!\" & AE64),0) + IF(Setup!$AJ$11<>\"\",INDIRECT(\"'\" & Setup!$AJ$11 & \"'!\" & AE64),0) + IF(Setup!$AJ$12<>\"\",INDIRECT(\"'\" & Setup!$AJ$12 & \"'!\" & AE64),0)","v":0}]
[{"$f":"Planning!A48","v":"I040"},{"$f":"Planning!B48","v":0},{"$f":"Planning!C48","v":0},{"$f":"Planning!D48","v":0},{"$f":"Planning!E48","v":0},{"$f":"Planning!G48","v":0},null,0,0,{"$f":"IF(AND($AR65=\"2\",$AB64<>Lists!$A$17),AU65,AT65)","v":""},"",0,0,{"$f":"IF(AND($AR65=\"2\",$AB65<>Lists!$A$17),AW65,AV65)","v":""},"",0,0,{"$f":"IF(AND($AR65=\"2\",$AB65<>Lists!$A$17),AY65,AX65)","v":""},"",0,0,{"$f":"IF(AND($AR65=\"2\",$AB65<>Lists!$A$17),BA65,AZ65)","v":""},"",0,0,{"$f":"IF(AND($AR65=\"2\",$AB65<>Lists!$A$17),BC65,BB65)","v":""},"",{"$f":"Planning!H48","v":0},"00","H64","J64","I64","",null,{"$f":"IF(Setup!$AG$7<>\"\",INDIRECT(\"'\" & Setup!$AG$7 & \"'!\" & AF65),0) + IF(Setup!$AG$8<>\"\",INDIRECT(\"'\" & Setup!$AG$8 & \"'!\" & AF65),0) + IF(Setup!$AG$9<>\"\",INDIRECT(\"'\" & Setup!$AG$9 & \"'!\" & AF65),0) + IF(Setup!$AG$10<>\"\",INDIRECT(\"'\" & Setup!$AG$10 & \"'!\" & AF65),0) + IF(Setup!$AG$11<>\"\",INDIRECT(\"'\" & Setup!$AG$11 & \"'!\" & AF65),0) + IF(Setup!$AG$12<>\"\",INDIRECT(\"'\" & Setup!$AG$12 & \"'!\" & AF65),0)","v":0},{"$f":"IF(Setup!$AH$7<>\"\",INDIRECT(\"'\" & Setup!$AH$7 & \"'!\" & AF65),0) + IF(Setup!$AH$8<>\"\",INDIRECT(\"'\" & Setup!$AH$8 & \"'!\" & AF65),0) + IF(Setup!$AH$9<>\"\",INDIRECT(\"'\" & Setup!$AH$9 & \"'!\" & AF65),0) + IF(Setup!$AH$10<>\"\",INDIRECT(\"'\" & Setup!$AH$10 & \"'!\" & AF65),0) + IF(Setup!$AH$11<>\"\",INDIRECT(\"'\" & Setup!$AH$11 & \"'!\" & AF65),0) + IF(Setup!$AH$12<>\"\",INDIRECT(\"'\" & Setup!$AH$12 & \"'!\" & AF65),0)","v":0},{"$f":"IF(Setup!$AI$7<>\"\",INDIRECT(\"'\" & Setup!$AI$7 & \"'!\" & AF65),0) + IF(Setup!$AI$8<>\"\",INDIRECT(\"'\" & Setup!$AI$8 & \"'!\" & AF65),0) + IF(Setup!$AI$9<>\"\",INDIRECT(\"'\" & Setup!$AI$9 & \"'!\" & AF65),0) + IF(Setup!$AI$10<>\"\",INDIRECT(\"'\" & Setup!$AI$10 & \"'!\" & AF65),0) + IF(Setup!$AI$11<>\"\",INDIRECT(\"'\" & Setup!$AI$11 & \"'!\" & AF65),0) + IF(Setup!$AI$12<>\"\",INDIRECT(\"'\" & Setup!$AI$12 & \"'!\" & AF65),0)","v":0},{"$f":"IF(Setup!$AJ$7<>\"\",INDIRECT(\"'\" & Setup!$AJ$7 & \"'!\" & AF65),0) + IF(Setup!$AJ$8<>\"\",INDIRECT(\"'\" & Setup!$AJ$8 & \"'!\" & AF65),0) + IF(Setup!$AJ$9<>\"\",INDIRECT(\"'\" & Setup!$AJ$9 & \"'!\" & AF65),0) + IF(Setup!$AJ$10<>\"\",INDIRECT(\"'\" & Setup!$AJ$10 & \"'!\" & AF65),0) + IF(Setup!$AJ$11<>\"\",INDIRECT(\"'\" & Setup!$AJ$11 & \"'!\" & AF65),0) + IF(Setup!$AJ$12<>\"\",INDIRECT(\"'\" & Setup!$AJ$12 & \"'!\" & AF65),0)","v":0},null,"",{"$nulls":3},{"$f":"IF(C65=0,\"\",LEFT(INDEX(Lists!$H$5:$H$49,MATCH(C65,Lists!$G$5:$G$49,0),1),1))","v":""},null,"","","","","","","","","","",{"$nulls":6},{"$f":"IF(Setup!$AG$7<>\"\",INDIRECT(\"'\" & Setup!$AG$7 & \"'!\" & AD65),0) + IF(Setup!$AG$8<>\"\",INDIRECT(\"'\" & Setup!$AG$8 & \"'!\" & AD65),0) + IF(Setup!$AG$9<>\"\",INDIRECT(\"'\" & Setup!$AG$9 & \"'!\" & AD65),0) + IF(Setup!$AG$10<>\"\",INDIRECT(\"'\" & Setup!$AG$10 & \"'!\" & AD65),0) + IF(Setup!$AG$11<>\"\",INDIRECT(\"'\" & Setup!$AG$11 & \"'!\" & AD65),0) + IF(Setup!$AG$12<>\"\",INDIRECT(\"'\" & Setup!$AG$12 & \"'!\" & AD65),0)","v":0},{"$f":"IF(Setup!$AG$7<>\"\",INDIRECT(\"'\" & Setup!$AG$7 & \"'!\" & AE65),0) + IF(Setup!$AG$8<>\"\",INDIRECT(\"'\" & Setup!$AG$8 & \"'!\" & AE65),0) + IF(Setup!$AG$9<>\"\",INDIRECT(\"'\" & Setup!$AG$9 & \"'!\" & AE65),0) + IF(Setup!$AG$10<>\"\",INDIRECT(\"'\" & Setup!$AG$10 & \"'!\" & AE65),0) + IF(Setup!$AG$11<>\"\",INDIRECT(\"'\" & Setup!$AG$11 & \"'!\" & AE65),0) + IF(Setup!$AG$12<>\"\",INDIRECT(\"'\" & Setup!$AG$12 & \"'!\" & AE65),0)","v":0},{"$f":"IF(Setup!$AH$7<>\"\",INDIRECT(\"'\" & Setup!$AH$7 & \"'!\" & AD65),0) + IF(Setup!$AH$8<>\"\",INDIRECT(\"'\" & Setup!$AH$8 & \"'!\" & AD65),0) + IF(Setup!$AH$9<>\"\",INDIRECT(\"'\" & Setup!$AH$9 & \"'!\" & AD65),0) + IF(Setup!$AH$10<>\"\",INDIRECT(\"'\" & Setup!$AH$10 & \"'!\" & AD65),0) + IF(Setup!$AH$11<>\"\",INDIRECT(\"'\" & Setup!$AH$11 & \"'!\" & AD65),0) + IF(Setup!$AH$12<>\"\",INDIRECT(\"'\" & Setup!$AH$12 & \"'!\" & AD65),0)","v":0},{"$f":"IF(Setup!$AH$7<>\"\",INDIRECT(\"'\" & Setup!$AH$7 & \"'!\" & AE65),0) + IF(Setup!$AH$8<>\"\",INDIRECT(\"'\" & Setup!$AH$8 & \"'!\" & AE65),0) + IF(Setup!$AH$9<>\"\",INDIRECT(\"'\" & Setup!$AH$9 & \"'!\" & AE65),0) + IF(Setup!$AH$10<>\"\",INDIRECT(\"'\" & Setup!$AH$10 & \"'!\" & AE65),0) + IF(Setup!$AH$11<>\"\",INDIRECT(\"'\" & Setup!$AH$11 & \"'!\" & AE65),0) + IF(Setup!$AH$12<>\"\",INDIRECT(\"'\" & Setup!$AH$12 & \"'!\" & AE65),0)","v":0},{"$f":"IF(Setup!$AI$7<>\"\",INDIRECT(\"'\" & Setup!$AI$7 & \"'!\" & AD65),0) + IF(Setup!$AI$8<>\"\",INDIRECT(\"'\" & Setup!$AI$8 & \"'!\" & AD65),0) + IF(Setup!$AI$9<>\"\",INDIRECT(\"'\" & Setup!$AI$9 & \"'!\" & AD65),0) + IF(Setup!$AI$10<>\"\",INDIRECT(\"'\" & Setup!$AI$10 & \"'!\" & AD65),0) + IF(Setup!$AI$11<>\"\",INDIRECT(\"'\" & Setup!$AI$11 & \"'!\" & AD65),0) + IF(Setup!$AI$12<>\"\",INDIRECT(\"'\" & Setup!$AI$12 & \"'!\" & AD65),0)","v":0},{"$f":"IF(Setup!$AI$7<>\"\",INDIRECT(\"'\" & Setup!$AI$7 & \"'!\" & AE65),0) + IF(Setup!$AI$8<>\"\",INDIRECT(\"'\" & Setup!$AI$8 & \"'!\" & AE65),0) + IF(Setup!$AI$9<>\"\",INDIRECT(\"'\" & Setup!$AI$9 & \"'!\" & AE65),0) + IF(Setup!$AI$10<>\"\",INDIRECT(\"'\" & Setup!$AI$10 & \"'!\" & AE65),0) + IF(Setup!$AI$11<>\"\",INDIRECT(\"'\" & Setup!$AI$11 & \"'!\" & AE65),0) + IF(Setup!$AI$12<>\"\",INDIRECT(\"'\" & Setup!$AI$12 & \"'!\" & AE65),0)","v":0},{"$f":"IF(Setup!$AJ$7<>\"\",INDIRECT(\"'\" & Setup!$AJ$7 & \"'!\" & AD65),0) + IF(Setup!$AJ$8<>\"\",INDIRECT(\"'\" & Setup!$AJ$8 & \"'!\" & AD65),0) + IF(Setup!$AJ$9<>\"\",INDIRECT(\"'\" & Setup!$AJ$9 & \"'!\" & AD65),0) + IF(Setup!$AJ$10<>\"\",INDIRECT(\"'\" & Setup!$AJ$10 & \"'!\" & AD65),0) + IF(Setup!$AJ$11<>\"\",INDIRECT(\"'\" & Setup!$AJ$11 & \"'!\" & AD65),0) + IF(Setup!$AJ$12<>\"\",INDIRECT(\"'\" & Setup!$AJ$12 & \"'!\" & AD65),0)","v":0},{"$f":"IF(Setup!$AJ$7<>\"\",INDIRECT(\"'\" & Setup!$AJ$7 & \"'!\" & AE65),0) + IF(Setup!$AJ$8<>\"\",INDIRECT(\"'\" & Setup!$AJ$8 & \"'!\" & AE65),0) + IF(Setup!$AJ$9<>\"\",INDIRECT(\"'\" & Setup!$AJ$9 & \"'!\" & AE65),0) + IF(Setup!$AJ$10<>\"\",INDIRECT(\"'\" & Setup!$AJ$10 & \"'!\" & AE65),0) + IF(Setup!$AJ$11<>\"\",INDIRECT(\"'\" & Setup!$AJ$11 & \"'!\" & AE65),0) + IF(Setup!$AJ$12<>\"\",INDIRECT(\"'\" & Setup!$AJ$12 & \"'!\" & AE65),0)","v":0}]
[{"$f":"Planning!A49","v":"I041"},{"$f":"Planning!B49","v":0},{"$f":"Planning!C49","v":0},{"$f":"Planning!D49","v":0},{"$f":"Planning!E49","v":0},{"$f":"Planning!G49","v":0},null,0,0,{"$f":"IF(AND($AR66=\"2\",$AB65<>Lists!$A$17),AU66,AT66)","v":""},"",0,0,{"$f":"IF(AND($AR66=\"2\",$AB66<>Lists!$A$17),AW66,AV66)","v":""},"",0,0,{"$f":"IF(AND($AR66=\"2\",$AB66<>Lists!$A$17),AY66,AX66)","v":""},"",0,0,{"$f":"IF(AND($AR66=\"2\",$AB66<>Lists!$A$17),BA66,AZ66)","v":""},"",0,0,{"$f":"IF(AND($AR66=\"2\",$AB66<>Lists!$A$17),BC66,BB66)","v":""},"",{"$f":"Planning!H49","v":0},"00","H65","J65","I65","",null,{"$f":"IF(Setup!$AG$7<>\"\",INDIRECT(\"'\" & Setup!$AG$7 & \"'!\" & AF66),0) + IF(Setup!$AG$8<>\"\",INDIRECT(\"'\" & Setup!$AG$8 & \"'!\" & AF66),0) + IF(Setup!$AG$9<>\"\",INDIRECT(\"'\" & Setup!$AG$9 & \"'!\" & AF66),0) + IF(Setup!$AG$10<>\"\",INDIRECT(\"'\" & Setup!$AG$10 & \"'!\" & AF66),0) + IF(Setup!$AG$11<>\"\",INDIRECT(\"'\" & Setup!$AG$11 & \"'!\" & AF66),0) + IF(Setup!$AG$12<>\"\",INDIRECT(\"'\" & Setup!$AG$12 & \"'!\" & AF66),0)","v":0},{"$f":"IF(Setup!$AH$7<>\"\",INDIRECT(\"'\" & Setup!$AH$7 & \"'!\" & AF66),0) + IF(Setup!$AH$8<>\"\",INDIRECT(\"'\" & Setup!$AH$8 & \"'!\" & AF66),0) + IF(Setup!$AH$9<>\"\",INDIRECT(\"'\" & Setup!$AH$9 & \"'!\" & AF66),0) + IF(Setup!$AH$10<>\"\",INDIRECT(\"'\" & Setup!$AH$10 & \"'!\" & AF66),0) + IF(Setup!$AH$11<>\"\",INDIRECT(\"'\" & Setup!$AH$11 & \"'!\" & AF66),0) + IF(Setup!$AH$12<>\"\",INDIRECT(\"'\" & Setup!$AH$12 & \"'!\" & AF66),0)","v":0},{"$f":"IF(Setup!$AI$7<>\"\",INDIRECT(\"'\" & Setup!$AI$7 & \"'!\" & AF66),0) + IF(Setup!$AI$8<>\"\",INDIRECT(\"'\" & Setup!$AI$8 & \"'!\" & AF66),0) + IF(Setup!$AI$9<>\"\",INDIRECT(\"'\" & Setup!$AI$9 & \"'!\" & AF66),0) + IF(Setup!$AI$10<>\"\",INDIRECT(\"'\" & Setup!$AI$10 & \"'!\" & AF66),0) + IF(Setup!$AI$11<>\"\",INDIRECT(\"'\" & Setup!$AI$11 & \"'!\" & AF66),0) + IF(Setup!$AI$12<>\"\",INDIRECT(\"'\" & Setup!$AI$12 & \"'!\" & AF66),0)","v":0},{"$f":"IF(Setup!$AJ$7<>\"\",INDIRECT(\"'\" & Setup!$AJ$7 & \"'!\" & AF66),0) + IF(Setup!$AJ$8<>\"\",INDIRECT(\"'\" & Setup!$AJ$8 & \"'!\" & AF66),0) + IF(Setup!$AJ$9<>\"\",INDIRECT(\"'\" & Setup!$AJ$9 & \"'!\" & AF66),0) + IF(Setup!$AJ$10<>\"\",INDIRECT(\"'\" & Setup!$AJ$10 & \"'!\" & AF66),0) + IF(Setup!$AJ$11<>\"\",INDIRECT(\"'\" & Setup!$AJ$11 & \"'!\" & AF66),0) + IF(Setup!$AJ$12<>\"\",INDIRECT(\"'\" & Setup!$AJ$12 & \"'!\" & AF66),0)","v":0},null,"",{"$nulls":3},{"$f":"IF(C66=0,\"\",LEFT(INDEX(Lists!$H$5:$H$49,MATCH(C66,Lists!$G$5:$G$49,0),1),1))","v":""},null,"","","","","","","","","","",{"$nulls":6},{"$f":"IF(Setup!$AG$7<>\"\",INDIRECT(\"'\" & Setup!$AG$7 & \"'!\" & AD66),0) + IF(Setup!$AG$8<>\"\",INDIRECT(\"'\" & Setup!$AG$8 & \"'!\" & AD66),0) + IF(Setup!$AG$9<>\"\",INDIRECT(\"'\" & Setup!$AG$9 & \"'!\" & AD66),0) + IF(Setup!$AG$10<>\"\",INDIRECT(\"'\" & Setup!$AG$10 & \"'!\" & AD66),0) + IF(Setup!$AG$11<>\"\",INDIRECT(\"'\" & Setup!$AG$11 & \"'!\" & AD66),0) + IF(Setup!$AG$12<>\"\",INDIRECT(\"'\" & Setup!$AG$12 & \"'!\" & AD66),0)","v":0},{"$f":"IF(Setup!$AG$7<>\"\",INDIRECT(\"'\" & Setup!$AG$7 & \"'!\" & AE66),0) + IF(Setup!$AG$8<>\"\",INDIRECT(\"'\" & Setup!$AG$8 & \"'!\" & AE66),0) + IF(Setup!$AG$9<>\"\",INDIRECT(\"'\" & Setup!$AG$9 & \"'!\" & AE66),0) + IF(Setup!$AG$10<>\"\",INDIRECT(\"'\" & Setup!$AG$10 & \"'!\" & AE66),0) + IF(Setup!$AG$11<>\"\",INDIRECT(\"'\" & Setup!$AG$11 & \"'!\" & AE66),0) + IF(Setup!$AG$12<>\"\",INDIRECT(\"'\" & Setup!$AG$12 & \"'!\" & AE66),0)","v":0},{"$f":"IF(Setup!$AH$7<>\"\",INDIRECT(\"'\" & Setup!$AH$7 & \"'!\" & AD66),0) + IF(Setup!$AH$8<>\"\",INDIRECT(\"'\" & Setup!$AH$8 & \"'!\" & AD66),0) + IF(Setup!$AH$9<>\"\",INDIRECT(\"'\" & Setup!$AH$9 & \"'!\" & AD66),0) + IF(Setup!$AH$10<>\"\",INDIRECT(\"'\" & Setup!$AH$10 & \"'!\" & AD66),0) + IF(Setup!$AH$11<>\"\",INDIRECT(\"'\" & Setup!$AH$11 & \"'!\" & AD66),0) + IF(Setup!$AH$12<>\"\",INDIRECT(\"'\" & Setup!$AH$12 & \"'!\" & AD66),0)","v":0},{"$f":"IF(Setup!$AH$7<>\"\",INDIRECT(\"'\" & Setup!$AH$7 & \"'!\" & AE66),0) + IF(Setup!$AH$8<>\"\",INDIRECT(\"'\" & Setup!$AH$8 & \"'!\" & AE66),0) + IF(Setup!$AH$9<>\"\",INDIRECT(\"'\" & Setup!$AH$9 & \"'!\" & AE66),0) + IF(Setup!$AH$10<>\"\",INDIRECT(\"'\" & Setup!$AH$10 & \"'!\" & AE66),0) + IF(Setup!$AH$11<>\"\",INDIRECT(\"'\" & Setup!$AH$11 & \"'!\" & AE66),0) + IF(Setup!$AH$12<>\"\",INDIRECT(\"'\" & Setup!$AH$12 & \"'!\" & AE66),0)","v":0},{"$f":"IF(Setup!$AI$7<>\"\",INDIRECT(\"'\" & Setup!$AI$7 & \"'!\" & AD66),0) + IF(Setup!$AI$8<>\"\",INDIRECT(\"'\" & Setup!$AI$8 & \"'!\" & AD66),0) + IF(Setup!$AI$9<>\"\",INDIRECT(\"'\" & Setup!$AI$9 & \"'!\" & AD66),0) + IF(Setup!$AI$10<>\"\",INDIRECT(\"'\" & Setup!$AI$10 & \"'!\" & AD66),0) + IF(Setup!$AI$11<>\"\",INDIRECT(\"'\" & Setup!$AI$11 & \"'!\" & AD66),0) + IF(Setup!$AI$12<>\"\",INDIRECT(\"'\" & Setup!$AI$12 & \"'!\" & AD66),0)","v":0},{"$f":"IF(Setup!$AI$7<>\"\",INDIRECT(\"'\" & Setup!$AI$7 & \"'!\" & AE66),0) + IF(Setup!$AI$8<>\"\",INDIRECT(\"'\" & Setup!$AI$8 & \"'!\" & AE66),0) + IF(Setup!$AI$9<>\"\",INDIRECT(\"'\" & Setup!$AI$9 & \"'!\" & AE66),0) + IF(Setup!$AI$10<>\"\",INDIRECT(\"'\" & Setup!$AI$10 & \"'!\" & AE66),0) + IF(Setup!$AI$11<>\"\",INDIRECT(\"'\" & Setup!$AI$11 & \"'!\" & AE66),0) + IF(Setup!$AI$12<>\"\",INDIRECT(\"'\" & Setup!$AI$12 & \"'!\" & AE66),0)","v":0},{"$f":"IF(Setup!$AJ$7<>\"\",INDIRECT(\"'\" & Setup!$AJ$7 & \"'!\" & AD66),0) + IF(Setup!$AJ$8<>\"\",INDIRECT(\"'\" & Setup!$AJ$8 & \"'!\" & AD66),0) + IF(Setup!$AJ$9<>\"\",INDIRECT(\"'\" & Setup!$AJ$9 & \"'!\" & AD66),0) + IF(Setup!$AJ$10<>\"\",INDIRECT(\"'\" & Setup!$AJ$10 & \"'!\" & AD66),0) + IF(Setup!$AJ$11<>\"\",INDIRECT(\"'\" & Setup!$AJ$11 & \"'!\" & AD66),0) + IF(Setup!$AJ$12<>\"\",INDIRECT(\"'\" & Setup!$AJ$12 & \"'!\" & AD66),0)","v":0},{"$f":"IF(Setup!$AJ$7<>\"\",INDIRECT(\"'\" & Setup!$AJ$7 & \"'!\" & AE66),0) + IF(Setup!$AJ$8<>\"\",INDIRECT(\"'\" & Setup!$AJ$8 & \"'!\" & AE66),0) + IF(Setup!$AJ$9<>\"\",INDIRECT(\"'\" & Setup!$AJ$9 & \"'!\" & AE66),0) + IF(Setup!$AJ$10<>\"\",INDIRECT(\"'\" & Setup!$AJ$10 & \"'!\" & AE66),0) + IF(Setup!$AJ$11<>\"\",INDIRECT(\"'\" & Setup!$AJ$11 & \"'!\" & AE66),0) + IF(Setup!$AJ$12<>\"\",INDIRECT(\"'\" & Setup!$AJ$12 & \"'!\" & AE66),0)","v":0}]
[{"$f":"Planning!A50","v":"I042"},{"$f":"Planning!B50","v":0},{"$f":"Planning!C50","v":0},{"$f":"Planning!D50","v":0},{"$f":"Planning!E50","v":0},{"$f":"Planning!G50","v":0},null,0,0,{"$f":"IF(AND($AR67=\"2\",$AB66<>Lists!$A$17),AU67,AT67)","v":""},"",0,0,{"$f":"IF(AND($AR67=\"2\",$AB67<>Lists!$A$17),AW67,AV67)","v":""},"",0,0,{"$f":"IF(AND($AR67=\"2\",$AB67<>Lists!$A$17),AY67,AX67)","v":""},"",0,0,{"$f":"IF(AND($AR67=\"2\",$AB67<>Lists!$A$17),BA67,AZ67)","v":""},"",0,0,{"$f":"IF(AND($AR67=\"2\",$AB67<>Lists!$A$17),BC67,BB67)","v":""},"",{"$f":"Planning!H50","v":0},"00","H66","J66","I66","",null,{"$f":"IF(Setup!$AG$7<>\"\",INDIRECT(\"'\" & Setup!$AG$7 & \"'!\" & AF67),0) + IF(Setup!$AG$8<>\"\",INDIRECT(\"'\" & Setup!$AG$8 & \"'!\" & AF67),0) + IF(Setup!$AG$9<>\"\",INDIRECT(\"'\" & Setup!$AG$9 & \"'!\" & AF67),0) + IF(Setup!$AG$10<>\"\",INDIRECT(\"'\" & Setup!$AG$10 & \"'!\" & AF67),0) + IF(Setup!$AG$11<>\"\",INDIRECT(\"'\" & Setup!$AG$11 & \"'!\" & AF67),0) + IF(Setup!$AG$12<>\"\",INDIRECT(\"'\" & Setup!$AG$12 & \"'!\" & AF67),0)","v":0},{"$f":"IF(Setup!$AH$7<>\"\",INDIRECT(\"'\" & Setup!$AH$7 & \"'!\" & AF67),0) + IF(Setup!$AH$8<>\"\",INDIRECT(\"'\" & Setup!$AH$8 & \"'!\" & AF67),0) + IF(Setup!$AH$9<>\"\",INDIRECT(\"'\" & Setup!$AH$9 & \"'!\" & AF67),0) + IF(Setup!$AH$10<>\"\",INDIRECT(\"'\" & Setup!$AH$10 & \"'!\" & AF67),0) + IF(Setup!$AH$11<>\"\",INDIRECT(\"'\" & Setup!$AH$11 & \"'!\" & AF67),0) + IF(Setup!$AH$12<>\"\",INDIRECT(\"'\" & Setup!$AH$12 & \"'!\" & AF67),0)","v":0},{"$f":"IF(Setup!$AI$7<>\"\",INDIRECT(\"'\" & Setup!$AI$7 & \"'!\" & AF67),0) + IF(Setup!$AI$8<>\"\",INDIRECT(\"'\" & Setup!$AI$8 & \"'!\" & AF67),0) + IF(Setup!$AI$9<>\"\",INDIRECT(\"'\" & Setup!$AI$9 & \"'!\" & AF67),0) + IF(Setup!$AI$10<>\"\",INDIRECT(\"'\" & Setup!$AI$10 & \"'!\" & AF67),0) + IF(Setup!$AI$11<>\"\",INDIRECT(\"'\" & Setup!$AI$11 & \"'!\" & AF67),0) + IF(Setup!$AI$12<>\"\",INDIRECT(\"'\" & Setup!$AI$12 & \"'!\" & AF67),0)","v":0},{"$f":"IF(Setup!$AJ$7<>\"\",INDIRECT(\"'\" & Setup!$AJ$7 & \"'!\" & AF67),0) + IF(Setup!$AJ$8<>\"\",INDIRECT(\"'\" & Setup!$AJ$8 & \"'!\" & AF67),0) + IF(Setup!$AJ$9<>\"\",INDIRECT(\"'\" & Setup!$AJ$9 & \"'!\" & AF67),0) + IF(Setup!$AJ$10<>\"\",INDIRECT(\"'\" & Setup!$AJ$10 & \"'!\" & AF67),0) + IF(Setup!$AJ$11<>\"\",INDIRECT(\"'\" & Setup!$AJ$11 & \"'!\" & AF67),0) + IF(Setup!$AJ$12<>\"\",INDIRECT(\"'\" & Setup!$AJ$12 & \"'!\" & AF67),0)","v":0},null,"",{"$nulls":3},{"$f":"IF(C67=0,\"\",LEFT(INDEX(Lists!$H$5:$H$49,MATCH(C67,Lists!$G$5:$G$49,0),1),1))","v":""},null,"","","","","","","","","","",{"$nulls":6},{"$f":"IF(Setup!$AG$7<>\"\",INDIRECT(\"'\" & Setup!$AG$7 & \"'!\" & AD67),0) + IF(Setup!$AG$8<>\"\",INDIRECT(\"'\" & Setup!$AG$8 & \"'!\" & AD67),0) + IF(Setup!$AG$9<>\"\",INDIRECT(\"'\" & Setup!$AG$9 & \"'!\" & AD67),0) + IF(Setup!$AG$10<>\"\",INDIRECT(\"'\" & Setup!$AG$10 & \"'!\" & AD67),0) + IF(Setup!$AG$11<>\"\",INDIRECT(\"'\" & Setup!$AG$11 & \"'!\" & AD67),0) + IF(Setup!$AG$12<>\"\",INDIRECT(\"'\" & Setup!$AG$12 & \"'!\" & AD67),0)","v":0},{"$f":"IF(Setup!$AG$7<>\"\",INDIRECT(\"'\" & Setup!$AG$7 & \"'!\" & AE67),0) + IF(Setup!$AG$8<>\"\",INDIRECT(\"'\" & Setup!$AG$8 & \"'!\" & AE67),0) + IF(Setup!$AG$9<>\"\",INDIRECT(\"'\" & Setup!$AG$9 & \"'!\" & AE67),0) + IF(Setup!$AG$10<>\"\",INDIRECT(\"'\" & Setup!$AG$10 & \"'!\" & AE67),0) + IF(Setup!$AG$11<>\"\",INDIRECT(\"'\" & Setup!$AG$11 & \"'!\" & AE67),0) + IF(Setup!$AG$12<>\"\",INDIRECT(\"'\" & Setup!$AG$12 & \"'!\" & AE67),0)","v":0},{"$f":"IF(Setup!$AH$7<>\"\",INDIRECT(\"'\" & Setup!$AH$7 & \"'!\" & AD67),0) + IF(Setup!$AH$8<>\"\",INDIRECT(\"'\" & Setup!$AH$8 & \"'!\" & AD67),0) + IF(Setup!$AH$9<>\"\",INDIRECT(\"'\" & Setup!$AH$9 & \"'!\" & AD67),0) + IF(Setup!$AH$10<>\"\",INDIRECT(\"'\" & Setup!$AH$10 & \"'!\" & AD67),0) + IF(Setup!$AH$11<>\"\",INDIRECT(\"'\" & Setup!$AH$11 & \"'!\" & AD67),0) + IF(Setup!$AH$12<>\"\",INDIRECT(\"'\" & Setup!$AH$12 & \"'!\" & AD67),0)","v":0},{"$f":"IF(Setup!$AH$7<>\"\",INDIRECT(\"'\" & Setup!$AH$7 & \"'!\" & AE67),0) + IF(Setup!$AH$8<>\"\",INDIRECT(\"'\" & Setup!$AH$8 & \"'!\" & AE67),0) + IF(Setup!$AH$9<>\"\",INDIRECT(\"'\" & Setup!$AH$9 & \"'!\" & AE67),0) + IF(Setup!$AH$10<>\"\",INDIRECT(\"'\" & Setup!$AH$10 & \"'!\" & AE67),0) + IF(Setup!$AH$11<>\"\",INDIRECT(\"'\" & Setup!$AH$11 & \"'!\" & AE67),0) + IF(Setup!$AH$12<>\"\",INDIRECT(\"'\" & Setup!$AH$12 & \"'!\" & AE67),0)","v":0},{"$f":"IF(Setup!$AI$7<>\"\",INDIRECT(\"'\" & Setup!$AI$7 & \"'!\" & AD67),0) + IF(Setup!$AI$8<>\"\",INDIRECT(\"'\" & Setup!$AI$8 & \"'!\" & AD67),0) + IF(Setup!$AI$9<>\"\",INDIRECT(\"'\" & Setup!$AI$9 & \"'!\" & AD67),0) + IF(Setup!$AI$10<>\"\",INDIRECT(\"'\" & Setup!$AI$10 & \"'!\" & AD67),0) + IF(Setup!$AI$11<>\"\",INDIRECT(\"'\" & Setup!$AI$11 & \"'!\" & AD67),0) + IF(Setup!$AI$12<>\"\",INDIRECT(\"'\" & Setup!$AI$12 & \"'!\" & AD67),0)","v":0},{"$f":"IF(Setup!$AI$7<>\"\",INDIRECT(\"'\" & Setup!$AI$7 & \"'!\" & AE67),0) + IF(Setup!$AI$8<>\"\",INDIRECT(\"'\" & Setup!$AI$8 & \"'!\" & AE67),0) + IF(Setup!$AI$9<>\"\",INDIRECT(\"'\" & Setup!$AI$9 & \"'!\" & AE67),0) + IF(Setup!$AI$10<>\"\",INDIRECT(\"'\" & Setup!$AI$10 & \"'!\" & AE67),0) + IF(Setup!$AI$11<>\"\",INDIRECT(\"'\" & Setup!$AI$11 & \"'!\" & AE67),0) + IF(Setup!$AI$12<>\"\",INDIRECT(\"'\" & Setup!$AI$12 & \"'!\" & AE67),0)","v":0},{"$f":"IF(Setup!$AJ$7<>\"\",INDIRECT(\"'\" & Setup!$AJ$7 & \"'!\" & AD67),0) + IF(Setup!$AJ$8<>\"\",INDIRECT(\"'\" & Setup!$AJ$8 & \"'!\" & AD67),0) + IF(Setup!$AJ$9<>\"\",INDIRECT(\"'\" & Setup!$AJ$9 & \"'!\" & AD67),0) + IF(Setup!$AJ$10<>\"\",INDIRECT(\"'\" & Setup!$AJ$10 & \"'!\" & AD67),0) + IF(Setup!$AJ$11<>\"\",INDIRECT(\"'\" & Setup!$AJ$11 & \"'!\" & AD67),0) + IF(Setup!$AJ$12<>\"\",INDIRECT(\"'\" & Setup!$AJ$12 & \"'!\" & AD67),0)","v":0},{"$f":"IF(Setup!$AJ$7<>\"\",INDIRECT(\"'\" & Setup!$AJ$7 & \"'!\" & AE67),0) + IF(Setup!$AJ$8<>\"\",INDIRECT(\"'\" & Setup!$AJ$8 & \"'!\" & AE67),0) + IF(Setup!$AJ$9<>\"\",INDIRECT(\"'\" & Setup!$AJ$9 & \"'!\" & AE67),0) + IF(Setup!$AJ$10<>\"\",INDIRECT(\"'\" & Setup!$AJ$10 & \"'!\" & AE67),0) + IF(Setup!$AJ$11<>\"\",INDIRECT(\"'\" & Setup!$AJ$11 & \"'!\" & AE67),0) + IF(Setup!$AJ$12<>\"\",INDIRECT(\"'\" & Setup!$AJ$12 & \"'!\" & AE67),0)","v":0}]
[{"$f":"Planning!A51","v":"I043"},{"$f":"Planning!B51","v":0},{"$f":"Planning!C51","v":0},{"$f":"Planning!D51","v":0},{"$f":"Planning!E51","v":0},{"$f":"Planning!G51","v":0},null,0,0,{"$f":"IF(AND($AR68=\"2\",$AB67<>Lists!$A$17),AU68,AT68)","v":""},"",0,0,{"$f":"IF(AND($AR68=\"2\",$AB68<>Lists!$A$17),AW68,AV68)","v":""},"",0,0,{"$f":"IF(AND($AR68=\"2\",$AB68<>Lists!$A$17),AY68,AX68)","v":""},"",0,0,{"$f":"IF(AND($AR68=\"2\",$AB68<>Lists!$A$17),BA68,AZ68)","v":""},"",0,0,{"$f":"IF(AND($AR68=\"2\",$AB68<>Lists!$A$17),BC68,BB68)","v":""},"",{"$f":"Planning!H51","v":0},"00","H67","J67","I67","",null,{"$f":"IF(Setup!$AG$7<>\"\",INDIRECT(\"'\" & Setup!$AG$7 & \"'!\" & AF68),0) + IF(Setup!$AG$8<>\"\",INDIRECT(\"'\" & Setup!$AG$8 & \"'!\" & AF68),0) + IF(Setup!$AG$9<>\"\",INDIRECT(\"'\" & Setup!$AG$9 & \"'!\" & AF68),0) + IF(Setup!$AG$10<>\"\",INDIRECT(\"'\" & Setup!$AG$10 & \"'!\" & AF68),0) + IF(Setup!$AG$11<>\"\",INDIRECT(\"'\" & Setup!$AG$11 & \"'!\" & AF68),0) + IF(Setup!$AG$12<>\"\",INDIRECT(\"'\" & Setup!$AG$12 & \"'!\" & AF68),0)","v":0},{"$f":"IF(Setup!$AH$7<>\"\",INDIRECT(\"'\" & Setup!$AH$7 & \"'!\" & AF68),0) + IF(Setup!$AH$8<>\"\",INDIRECT(\"'\" & Setup!$AH$8 & \"'!\" & AF68),0) + IF(Setup!$AH$9<>\"\",INDIRECT(\"'\" & Setup!$AH$9 & \"'!\" & AF68),0) + IF(Setup!$AH$10<>\"\",INDIRECT(\"'\" & Setup!$AH$10 & \"'!\" & AF68),0) + IF(Setup!$AH$11<>\"\",INDIRECT(\"'\" & Setup!$AH$11 & \"'!\" & AF68),0) + IF(Setup!$AH$12<>\"\",INDIRECT(\"'\" & Setup!$AH$12 & \"'!\" & AF68),0)","v":0},{"$f":"IF(Setup!$AI$7<>\"\",INDIRECT(\"'\" & Setup!$AI$7 & \"'!\" & AF68),0) + IF(Setup!$AI$8<>\"\",INDIRECT(\"'\" & Setup!$AI$8 & \"'!\" & AF68),0) + IF(Setup!$AI$9<>\"\",INDIRECT(\"'\" & Setup!$AI$9 & \"'!\" & AF68),0) + IF(Setup!$AI$10<>\"\",INDIRECT(\"'\" & Setup!$AI$10 & \"'!\" & AF68),0) + IF(Setup!$AI$11<>\"\",INDIRECT(\"'\" & Setup!$AI$11 & \"'!\" & AF68),0) + IF(Setup!$AI$12<>\"\",INDIRECT(\"'\" & Setup!$AI$12 & \"'!\" & AF68),0)","v":0},{"$f":"IF(Setup!$AJ$7<>\"\",INDIRECT(\"'\" & Setup!$AJ$7 & \"'!\" & AF68),0) + IF(Setup!$AJ$8<>\"\",INDIRECT(\"'\" & Setup!$AJ$8 & \"'!\" & AF68),0) + IF(Setup!$AJ$9<>\"\",INDIRECT(\"'\" & Setup!$AJ$9 & \"'!\" & AF68),0) + IF(Setup!$AJ$10<>\"\",INDIRECT(\"'\" & Setup!$AJ$10 & \"'!\" & AF68),0) + IF(Setup!$AJ$11<>\"\",INDIRECT(\"'\" & Setup!$AJ$11 & \"'!\" & AF68),0) + IF(Setup!$AJ$12<>\"\",INDIRECT(\"'\" & Setup!$AJ$12 & \"'!\" & AF68),0)","v":0},null,"",{"$nulls":3},{"$f":"IF(C68=0,\"\",LEFT(INDEX(Lists!$H$5:$H$49,MATCH(C68,Lists!$G$5:$G$49,0),1),1))","v":""},null,"","","","","","","","","","",{"$nulls":6},{"$f":"IF(Setup!$AG$7<>\"\",INDIRECT(\"'\" & Setup!$AG$7 & \"'!\" & AD68),0) + IF(Setup!$AG$8<>\"\",INDIRECT(\"'\" & Setup!$AG$8 & \"'!\" & AD68),0) + IF(Setup!$AG$9<>\"\",INDIRECT(\"'\" & Setup!$AG$9 & \"'!\" & AD68),0) + IF(Setup!$AG$10<>\"\",INDIRECT(\"'\" & Setup!$AG$10 & \"'!\" & AD68),0) + IF(Setup!$AG$11<>\"\",INDIRECT(\"'\" & Setup!$AG$11 & \"'!\" & AD68),0) + IF(Setup!$AG$12<>\"\",INDIRECT(\"'\" & Setup!$AG$12 & \"'!\" & AD68),0)","v":0},{"$f":"IF(Setup!$AG$7<>\"\",INDIRECT(\"'\" & Setup!$AG$7 & \"'!\" & AE68),0) + IF(Setup!$AG$8<>\"\",INDIRECT(\"'\" & Setup!$AG$8 & \"'!\" & AE68),0) + IF(Setup!$AG$9<>\"\",INDIRECT(\"'\" & Setup!$AG$9 & \"'!\" & AE68),0) + IF(Setup!$AG$10<>\"\",INDIRECT(\"'\" & Setup!$AG$10 & \"'!\" & AE68),0) + IF(Setup!$AG$11<>\"\",INDIRECT(\"'\" & Setup!$AG$11 & \"'!\" & AE68),0) + IF(Setup!$AG$12<>\"\",INDIRECT(\"'\" & Setup!$AG$12 & \"'!\" & AE68),0)","v":0},{"$f":"IF(Setup!$AH$7<>\"\",INDIRECT(\"'\" & Setup!$AH$7 & \"'!\" & AD68),0) + IF(Setup!$AH$8<>\"\",INDIRECT(\"'\" & Setup!$AH$8 & \"'!\" & AD68),0) + IF(Setup!$AH$9<>\"\",INDIRECT(\"'\" & Setup!$AH$9 & \"'!\" & AD68),0) + IF(Setup!$AH$10<>\"\",INDIRECT(\"'\" & Setup!$AH$10 & \"'!\" & AD68),0) + IF(Setup!$AH$11<>\"\",INDIRECT(\"'\" & Setup!$AH$11 & \"'!\" & AD68),0) + IF(Setup!$AH$12<>\"\",INDIRECT(\"'\" & Setup!$AH$12 & \"'!\" & AD68),0)","v":0},{"$f":"IF(Setup!$AH$7<>\"\",INDIRECT(\"'\" & Setup!$AH$7 & \"'!\" & AE68),0) + IF(Setup!$AH$8<>\"\",INDIRECT(\"'\" & Setup!$AH$8 & \"'!\" & AE68),0) + IF(Setup!$AH$9<>\"\",INDIRECT(\"'\" & Setup!$AH$9 & \"'!\" & AE68),0) + IF(Setup!$AH$10<>\"\",INDIRECT(\"'\" & Setup!$AH$10 & \"'!\" & AE68),0) + IF(Setup!$AH$11<>\"\",INDIRECT(\"'\" & Setup!$AH$11 & \"'!\" & AE68),0) + IF(Setup!$AH$12<>\"\",INDIRECT(\"'\" & Setup!$AH$12 & \"'!\" & AE68),0)","v":0},{"$f":"IF(Setup!$AI$7<>\"\",INDIRECT(\"'\" & Setup!$AI$7 & \"'!\" & AD68),0) + IF(Setup!$AI$8<>\"\",INDIRECT(\"'\" & Setup!$AI$8 & \"'!\" & AD68),0) + IF(Setup!$AI$9<>\"\",INDIRECT(\"'\" & Setup!$AI$9 & \"'!\" & AD68),0) + IF(Setup!$AI$10<>\"\",INDIRECT(\"'\" & Setup!$AI$10 & \"'!\" & AD68),0) + IF(Setup!$AI$11<>\"\",INDIRECT(\"'\" & Setup!$AI$11 & \"'!\" & AD68),0) + IF(Setup!$AI$12<>\"\",INDIRECT(\"'\" & Setup!$AI$12 & \"'!\" & AD68),0)","v":0},{"$f":"IF(Setup!$AI$7<>\"\",INDIRECT(\"'\" & Setup!$AI$7 & \"'!\" & AE68),0) + IF(Setup!$AI$8<>\"\",INDIRECT(\"'\" & Setup!$AI$8 & \"'!\" & AE68),0) + IF(Setup!$AI$9<>\"\",INDIRECT(\"'\" & Setup!$AI$9 & \"'!\" & AE68),0) + IF(Setup!$AI$10<>\"\",INDIRECT(\"'\" & Setup!$AI$10 & \"'!\" & AE68),0) + IF(Setup!$AI$11<>\"\",INDIRECT(\"'\" & Setup!$AI$11 & \"'!\" & AE68),0) + IF(Setup!$AI$12<>\"\",INDIRECT(\"'\" & Setup!$AI$12 & \"'!\" & AE68),0)","v":0},{"$f":"IF(Setup!$AJ$7<>\"\",INDIRECT(\"'\" & Setup!$AJ$7 & \"'!\" & AD68),0) + IF(Setup!$AJ$8<>\"\",INDIRECT(\"'\" & Setup!$AJ$8 & \"'!\" & AD68),0) + IF(Setup!$AJ$9<>\"\",INDIRECT(\"'\" & Setup!$AJ$9 & \"'!\" & AD68),0) + IF(Setup!$AJ$10<>\"\",INDIRECT(\"'\" & Setup!$AJ$10 & \"'!\" & AD68),0) + IF(Setup!$AJ$11<>\"\",INDIRECT(\"'\" & Setup!$AJ$11 & \"'!\" & AD68),0) + IF(Setup!$AJ$12<>\"\",INDIRECT(\"'\" & Setup!$AJ$12 & \"'!\" & AD68),0)","v":0},{"$f":"IF(Setup!$AJ$7<>\"\",INDIRECT(\"'\" & Setup!$AJ$7 & \"'!\" & AE68),0) + IF(Setup!$AJ$8<>\"\",INDIRECT(\"'\" & Setup!$AJ$8 & \"'!\" & AE68),0) + IF(Setup!$AJ$9<>\"\",INDIRECT(\"'\" & Setup!$AJ$9 & \"'!\" & AE68),0) + IF(Setup!$AJ$10<>\"\",INDIRECT(\"'\" & Setup!$AJ$10 & \"'!\" & AE68),0) + IF(Setup!$AJ$11<>\"\",INDIRECT(\"'\" & Setup!$AJ$11 & \"'!\" & AE68),0) + IF(Setup!$AJ$12<>\"\",INDIRECT(\"'\" & Setup!$AJ$12 & \"'!\" & AE68),0)","v":0}]
[{"$f":"Planning!A52","v":"I044"},{"$f":"Planning!B52","v":0},{"$f":"Planning!C52","v":0},{"$f":"Planning!D52","v":0},{"$f":"Planning!E52","v":0},{"$f":"Planning!G52","v":0},null,0,0,{"$f":"IF(AND($AR69=\"2\",$AB68<>Lists!$A$17),AU69,AT69)","v":""},"",0,0,{"$f":"IF(AND($AR69=\"2\",$AB69<>Lists!$A$17),AW69,AV69)","v":""},"",0,0,{"$f":"IF(AND($AR69=\"2\",$AB69<>Lists!$A$17),AY69,AX69)","v":""},"",0,0,{"$f":"IF(AND($AR69=\"2\",$AB69<>Lists!$A$17),BA69,AZ69)","v":""},"",0,0,{"$f":"IF(AND($AR69=\"2\",$AB69<>Lists!$A$17),BC69,BB69)","v":""},"",{"$f":"Planning!H52","v":0},"00","H68","J68","I68","",null,{"$f":"IF(Setup!$AG$7<>\"\",INDIRECT(\"'\" & Setup!$AG$7 & \"'!\" & AF69),0) + IF(Setup!$AG$8<>\"\",INDIRECT(\"'\" & Setup!$AG$8 & \"'!\" & AF69),0) + IF(Setup!$AG$9<>\"\",INDIRECT(\"'\" & Setup!$AG$9 & \"'!\" & AF69),0) + IF(Setup!$AG$10<>\"\",INDIRECT(\"'\" & Setup!$AG$10 & \"'!\" & AF69),0) + IF(Setup!$AG$11<>\"\",INDIRECT(\"'\" & Setup!$AG$11 & \"'!\" & AF69),0) + IF(Setup!$AG$12<>\"\",INDIRECT(\"'\" & Setup!$AG$12 & \"'!\" & AF69),0)","v":0},{"$f":"IF(Setup!$AH$7<>\"\",INDIRECT(\"'\" & Setup!$AH$7 & \"'!\" & AF69),0) + IF(Setup!$AH$8<>\"\",INDIRECT(\"'\" & Setup!$AH$8 & \"'!\" & AF69),0) + IF(Setup!$AH$9<>\"\",INDIRECT(\"'\" & Setup!$AH$9 & \"'!\" & AF69),0) + IF(Setup!$AH$10<>\"\",INDIRECT(\"'\" & Setup!$AH$10 & \"'!\" & AF69),0) + IF(Setup!$AH$11<>\"\",INDIRECT(\"'\" & Setup!$AH$11 & \"'!\" & AF69),0) + IF(Setup!$AH$12<>\"\",INDIRECT(\"'\" & Setup!$AH$12 & \"'!\" & AF69),0)","v":0},{"$f":"IF(Setup!$AI$7<>\"\",INDIRECT(\"'\" & Setup!$AI$7 & \"'!\" & AF69),0) + IF(Setup!$AI$8<>\"\",INDIRECT(\"'\" & Setup!$AI$8 & \"'!\" & AF69),0) + IF(Setup!$AI$9<>\"\",INDIRECT(\"'\" & Setup!$AI$9 & \"'!\" & AF69),0) + IF(Setup!$AI$10<>\"\",INDIRECT(\"'\" & Setup!$AI$10 & \"'!\" & AF69),0) + IF(Setup!$AI$11<>\"\",INDIRECT(\"'\" & Setup!$AI$11 & \"'!\" & AF69),0) + IF(Setup!$AI$12<>\"\",INDIRECT(\"'\" & Setup!$AI$12 & \"'!\" & AF69),0)","v":0},{"$f":"IF(Setup!$AJ$7<>\"\",INDIRECT(\"'\" & Setup!$AJ$7 & \"'!\" & AF69),0) + IF(Setup!$AJ$8<>\"\",INDIRECT(\"'\" & Setup!$AJ$8 & \"'!\" & AF69),0) + IF(Setup!$AJ$9<>\"\",INDIRECT(\"'\" & Setup!$AJ$9 & \"'!\" & AF69),0) + IF(Setup!$AJ$10<>\"\",INDIRECT(\"'\" & Setup!$AJ$10 & \"'!\" & AF69),0) + IF(Setup!$AJ$11<>\"\",INDIRECT(\"'\" & Setup!$AJ$11 & \"'!\" & AF69),0) + IF(Setup!$AJ$12<>\"\",INDIRECT(\"'\" & Setup!$AJ$12 & \"'!\" & AF69),0)","v":0},null,"",{"$nulls":3},{"$f":"IF(C69=0,\"\",LEFT(INDEX(Lists!$H$5:$H$49,MATCH(C69,Lists!$G$5:$G$49,0),1),1))","v":""},null,"","","","","","","","","","",{"$nulls":6},{"$f":"IF(Setup!$AG$7<>\"\",INDIRECT(\"'\" & Setup!$AG$7 & \"'!\" & AD69),0) + IF(Setup!$AG$8<>\"\",INDIRECT(\"'\" & Setup!$AG$8 & \"'!\" & AD69),0) + IF(Setup!$AG$9<>\"\",INDIRECT(\"'\" & Setup!$AG$9 & \"'!\" & AD69),0) + IF(Setup!$AG$10<>\"\",INDIRECT(\"'\" & Setup!$AG$10 & \"'!\" & AD69),0) + IF(Setup!$AG$11<>\"\",INDIRECT(\"'\" & Setup!$AG$11 & \"'!\" & AD69),0) + IF(Setup!$AG$12<>\"\",INDIRECT(\"'\" & Setup!$AG$12 & \"'!\" & AD69),0)","v":0},{"$f":"IF(Setup!$AG$7<>\"\",INDIRECT(\"'\" & Setup!$AG$7 & \"'!\" & AE69),0) + IF(Setup!$AG$8<>\"\",INDIRECT(\"'\" & Setup!$AG$8 & \"'!\" & AE69),0) + IF(Setup!$AG$9<>\"\",INDIRECT(\"'\" & Setup!$AG$9 & \"'!\" & AE69),0) + IF(Setup!$AG$10<>\"\",INDIRECT(\"'\" & Setup!$AG$10 & \"'!\" & AE69),0) + IF(Setup!$AG$11<>\"\",INDIRECT(\"'\" & Setup!$AG$11 & \"'!\" & AE69),0) + IF(Setup!$AG$12<>\"\",INDIRECT(\"'\" & Setup!$AG$12 & \"'!\" & AE69),0)","v":0},{"$f":"IF(Setup!$AH$7<>\"\",INDIRECT(\"'\" & Setup!$AH$7 & \"'!\" & AD69),0) + IF(Setup!$AH$8<>\"\",INDIRECT(\"'\" & Setup!$AH$8 & \"'!\" & AD69),0) + IF(Setup!$AH$9<>\"\",INDIRECT(\"'\" & Setup!$AH$9 & \"'!\" & AD69),0) + IF(Setup!$AH$10<>\"\",INDIRECT(\"'\" & Setup!$AH$10 & \"'!\" & AD69),0) + IF(Setup!$AH$11<>\"\",INDIRECT(\"'\" & Setup!$AH$11 & \"'!\" & AD69),0) + IF(Setup!$AH$12<>\"\",INDIRECT(\"'\" & Setup!$AH$12 & \"'!\" & AD69),0)","v":0},{"$f":"IF(Setup!$AH$7<>\"\",INDIRECT(\"'\" & Setup!$AH$7 & \"'!\" & AE69),0) + IF(Setup!$AH$8<>\"\",INDIRECT(\"'\" & Setup!$AH$8 & \"'!\" & AE69),0) + IF(Setup!$AH$9<>\"\",INDIRECT(\"'\" & Setup!$AH$9 & \"'!\" & AE69),0) + IF(Setup!$AH$10<>\"\",INDIRECT(\"'\" & Setup!$AH$10 & \"'!\" & AE69),0) + IF(Setup!$AH$11<>\"\",INDIRECT(\"'\" & Setup!$AH$11 & \"'!\" & AE69),0) + IF(Setup!$AH$12<>\"\",INDIRECT(\"'\" & Setup!$AH$12 & \"'!\" & AE69),0)","v":0},{"$f":"IF(Setup!$AI$7<>\"\",INDIRECT(\"'\" & Setup!$AI$7 & \"'!\" & AD69),0) + IF(Setup!$AI$8<>\"\",INDIRECT(\"'\" & Setup!$AI$8 & \"'!\" & AD69),0) + IF(Setup!$AI$9<>\"\",INDIRECT(\"'\" & Setup!$AI$9 & \"'!\" & AD69),0) + IF(Setup!$AI$10<>\"\",INDIRECT(\"'\" & Setup!$AI$10 & \"'!\" & AD69),0) + IF(Setup!$AI$11<>\"\",INDIRECT(\"'\" & Setup!$AI$11 & \"'!\" & AD69),0) + IF(Setup!$AI$12<>\"\",INDIRECT(\"'\" & Setup!$AI$12 & \"'!\" & AD69),0)","v":0},{"$f":"IF(Setup!$AI$7<>\"\",INDIRECT(\"'\" & Setup!$AI$7 & \"'!\" & AE69),0) + IF(Setup!$AI$8<>\"\",INDIRECT(\"'\" & Setup!$AI$8 & \"'!\" & AE69),0) + IF(Setup!$AI$9<>\"\",INDIRECT(\"'\" & Setup!$AI$9 & \"'!\" & AE69),0) + IF(Setup!$AI$10<>\"\",INDIRECT(\"'\" & Setup!$AI$10 & \"'!\" & AE69),0) + IF(Setup!$AI$11<>\"\",INDIRECT(\"'\" & Setup!$AI$11 & \"'!\" & AE69),0) + IF(Setup!$AI$12<>\"\",INDIRECT(\"'\" & Setup!$AI$12 & \"'!\" & AE69),0)","v":0},{"$f":"IF(Setup!$AJ$7<>\"\",INDIRECT(\"'\" & Setup!$AJ$7 & \"'!\" & AD69),0) + IF(Setup!$AJ$8<>\"\",INDIRECT(\"'\" & Setup!$AJ$8 & \"'!\" & AD69),0) + IF(Setup!$AJ$9<>\"\",INDIRECT(\"'\" & Setup!$AJ$9 & \"'!\" & AD69),0) + IF(Setup!$AJ$10<>\"\",INDIRECT(\"'\" & Setup!$AJ$10 & \"'!\" & AD69),0) + IF(Setup!$AJ$11<>\"\",INDIRECT(\"'\" & Setup!$AJ$11 & \"'!\" & AD69),0) + IF(Setup!$AJ$12<>\"\",INDIRECT(\"'\" & Setup!$AJ$12 & \"'!\" & AD69),0)","v":0},{"$f":"IF(Setup!$AJ$7<>\"\",INDIRECT(\"'\" & Setup!$AJ$7 & \"'!\" & AE69),0) + IF(Setup!$AJ$8<>\"\",INDIRECT(\"'\" & Setup!$AJ$8 & \"'!\" & AE69),0) + IF(Setup!$AJ$9<>\"\",INDIRECT(\"'\" & Setup!$AJ$9 & \"'!\" & AE69),0) + IF(Setup!$AJ$10<>\"\",INDIRECT(\"'\" & Setup!$AJ$10 & \"'!\" & AE69),0) + IF(Setup!$AJ$11<>\"\",INDIRECT(\"'\" & Setup!$AJ$11 & \"'!\" & AE69),0) + IF(Setup!$AJ$12<>\"\",INDIRECT(\"'\" & Setup!$AJ$12 & \"'!\" & AE69),0)","v":0}]
[{"$f":"Planning!A53","v":"I045"},{"$f":"Planning!B53","v":0},{"$f":"Planning!C53","v":0},{"$f":"Planning!D53","v":0},{"$f":"Planning!E53","v":0},{"$f":"Planning!G53","v":0},null,0,0,{"$f":"IF(AND($AR70=\"2\",$AB69<>Lists!$A$17),AU70,AT70)","v":""},"",0,0,{"$f":"IF(AND($AR70=\"2\",$AB70<>Lists!$A$17),AW70,AV70)","v":""},"",0,0,{"$f":"IF(AND($AR70=\"2\",$AB70<>Lists!$A$17),AY70,AX70)","v":""},"",0,0,{"$f":"IF(AND($AR70=\"2\",$AB70<>Lists!$A$17),BA70,AZ70)","v":""},"",0,0,{"$f":"IF(AND($AR70=\"2\",$AB70<>Lists!$A$17),BC70,BB70)","v":""},"",{"$f":"Planning!H53","v":0},"00","H69","J69","I69","",null,{"$f":"IF(Setup!$AG$7<>\"\",INDIRECT(\"'\" & Setup!$AG$7 & \"'!\" & AF70),0) + IF(Setup!$AG$8<>\"\",INDIRECT(\"'\" & Setup!$AG$8 & \"'!\" & AF70),0) + IF(Setup!$AG$9<>\"\",INDIRECT(\"'\" & Setup!$AG$9 & \"'!\" & AF70),0) + IF(Setup!$AG$10<>\"\",INDIRECT(\"'\" & Setup!$AG$10 & \"'!\" & AF70),0) + IF(Setup!$AG$11<>\"\",INDIRECT(\"'\" & Setup!$AG$11 & \"'!\" & AF70),0) + IF(Setup!$AG$12<>\"\",INDIRECT(\"'\" & Setup!$AG$12 & \"'!\" & AF70),0)","v":0},{"$f":"IF(Setup!$AH$7<>\"\",INDIRECT(\"'\" & Setup!$AH$7 & \"'!\" & AF70),0) + IF(Setup!$AH$8<>\"\",INDIRECT(\"'\" & Setup!$AH$8 & \"'!\" & AF70),0) + IF(Setup!$AH$9<>\"\",INDIRECT(\"'\" & Setup!$AH$9 & \"'!\" & AF70),0) + IF(Setup!$AH$10<>\"\",INDIRECT(\"'\" & Setup!$AH$10 & \"'!\" & AF70),0) + IF(Setup!$AH$11<>\"\",INDIRECT(\"'\" & Setup!$AH$11 & \"'!\" & AF70),0) + IF(Setup!$AH$12<>\"\",INDIRECT(\"'\" & Setup!$AH$12 & \"'!\" & AF70),0)","v":0},{"$f":"IF(Setup!$AI$7<>\"\",INDIRECT(\"'\" & Setup!$AI$7 & \"'!\" & AF70),0) + IF(Setup!$AI$8<>\"\",INDIRECT(\"'\" & Setup!$AI$8 & \"'!\" & AF70),0) + IF(Setup!$AI$9<>\"\",INDIRECT(\"'\" & Setup!$AI$9 & \"'!\" & AF70),0) + IF(Setup!$AI$10<>\"\",INDIRECT(\"'\" & Setup!$AI$10 & \"'!\" & AF70),0) + IF(Setup!$AI$11<>\"\",INDIRECT(\"'\" & Setup!$AI$11 & \"'!\" & AF70),0) + IF(Setup!$AI$12<>\"\",INDIRECT(\"'\" & Setup!$AI$12 & \"'!\" & AF70),0)","v":0},{"$f":"IF(Setup!$AJ$7<>\"\",INDIRECT(\"'\" & Setup!$AJ$7 & \"'!\" & AF70),0) + IF(Setup!$AJ$8<>\"\",INDIRECT(\"'\" & Setup!$AJ$8 & \"'!\" & AF70),0) + IF(Setup!$AJ$9<>\"\",INDIRECT(\"'\" & Setup!$AJ$9 & \"'!\" & AF70),0) + IF(Setup!$AJ$10<>\"\",INDIRECT(\"'\" & Setup!$AJ$10 & \"'!\" & AF70),0) + IF(Setup!$AJ$11<>\"\",INDIRECT(\"'\" & Setup!$AJ$11 & \"'!\" & AF70),0) + IF(Setup!$AJ$12<>\"\",INDIRECT(\"'\" & Setup!$AJ$12 & \"'!\" & AF70),0)","v":0},null,"",{"$nulls":3},{"$f":"IF(C70=0,\"\",LEFT(INDEX(Lists!$H$5:$H$49,MATCH(C70,Lists!$G$5:$G$49,0),1),1))","v":""},null,"","","","","","","","","","",{"$nulls":6},{"$f":"IF(Setup!$AG$7<>\"\",INDIRECT(\"'\" & Setup!$AG$7 & \"'!\" & AD70),0) + IF(Setup!$AG$8<>\"\",INDIRECT(\"'\" & Setup!$AG$8 & \"'!\" & AD70),0) + IF(Setup!$AG$9<>\"\",INDIRECT(\"'\" & Setup!$AG$9 & \"'!\" & AD70),0) + IF(Setup!$AG$10<>\"\",INDIRECT(\"'\" & Setup!$AG$10 & \"'!\" & AD70),0) + IF(Setup!$AG$11<>\"\",INDIRECT(\"'\" & Setup!$AG$11 & \"'!\" & AD70),0) + IF(Setup!$AG$12<>\"\",INDIRECT(\"'\" & Setup!$AG$12 & \"'!\" & AD70),0)","v":0},{"$f":"IF(Setup!$AG$7<>\"\",INDIRECT(\"'\" & Setup!$AG$7 & \"'!\" & AE70),0) + IF(Setup!$AG$8<>\"\",INDIRECT(\"'\" & Setup!$AG$8 & \"'!\" & AE70),0) + IF(Setup!$AG$9<>\"\",INDIRECT(\"'\" & Setup!$AG$9 & \"'!\" & AE70),0) + IF(Setup!$AG$10<>\"\",INDIRECT(\"'\" & Setup!$AG$10 & \"'!\" & AE70),0) + IF(Setup!$AG$11<>\"\",INDIRECT(\"'\" & Setup!$AG$11 & \"'!\" & AE70),0) + IF(Setup!$AG$12<>\"\",INDIRECT(\"'\" & Setup!$AG$12 & \"'!\" & AE70),0)","v":0},{"$f":"IF(Setup!$AH$7<>\"\",INDIRECT(\"'\" & Setup!$AH$7 & \"'!\" & AD70),0) + IF(Setup!$AH$8<>\"\",INDIRECT(\"'\" & Setup!$AH$8 & \"'!\" & AD70),0) + IF(Setup!$AH$9<>\"\",INDIRECT(\"'\" & Setup!$AH$9 & \"'!\" & AD70),0) + IF(Setup!$AH$10<>\"\",INDIRECT(\"'\" & Setup!$AH$10 & \"'!\" & AD70),0) + IF(Setup!$AH$11<>\"\",INDIRECT(\"'\" & Setup!$AH$11 & \"'!\" & AD70),0) + IF(Setup!$AH$12<>\"\",INDIRECT(\"'\" & Setup!$AH$12 & \"'!\" & AD70),0)","v":0},{"$f":"IF(Setup!$AH$7<>\"\",INDIRECT(\"'\" & Setup!$AH$7 & \"'!\" & AE70),0) + IF(Setup!$AH$8<>\"\",INDIRECT(\"'\" & Setup!$AH$8 & \"'!\" & AE70),0) + IF(Setup!$AH$9<>\"\",INDIRECT(\"'\" & Setup!$AH$9 & \"'!\" & AE70),0) + IF(Setup!$AH$10<>\"\",INDIRECT(\"'\" & Setup!$AH$10 & \"'!\" & AE70),0) + IF(Setup!$AH$11<>\"\",INDIRECT(\"'\" & Setup!$AH$11 & \"'!\" & AE70),0) + IF(Setup!$AH$12<>\"\",INDIRECT(\"'\" & Setup!$AH$12 & \"'!\" & AE70),0)","v":0},{"$f":"IF(Setup!$AI$7<>\"\",INDIRECT(\"'\" & Setup!$AI$7 & \"'!\" & AD70),0) + IF(Setup!$AI$8<>\"\",INDIRECT(\"'\" & Setup!$AI$8 & \"'!\" & AD70),0) + IF(Setup!$AI$9<>\"\",INDIRECT(\"'\" & Setup!$AI$9 & \"'!\" & AD70),0) + IF(Setup!$AI$10<>\"\",INDIRECT(\"'\" & Setup!$AI$10 & \"'!\" & AD70),0) + IF(Setup!$AI$11<>\"\",INDIRECT(\"'\" & Setup!$AI$11 & \"'!\" & AD70),0) + IF(Setup!$AI$12<>\"\",INDIRECT(\"'\" & Setup!$AI$12 & \"'!\" & AD70),0)","v":0},{"$f":"IF(Setup!$AI$7<>\"\",INDIRECT(\"'\" & Setup!$AI$7 & \"'!\" & AE70),0) + IF(Setup!$AI$8<>\"\",INDIRECT(\"'\" & Setup!$AI$8 & \"'!\" & AE70),0) + IF(Setup!$AI$9<>\"\",INDIRECT(\"'\" & Setup!$AI$9 & \"'!\" & AE70),0) + IF(Setup!$AI$10<>\"\",INDIRECT(\"'\" & Setup!$AI$10 & \"'!\" & AE70),0) + IF(Setup!$AI$11<>\"\",INDIRECT(\"'\" & Setup!$AI$11 & \"'!\" & AE70),0) + IF(Setup!$AI$12<>\"\",INDIRECT(\"'\" & Setup!$AI$12 & \"'!\" & AE70),0)","v":0},{"$f":"IF(Setup!$AJ$7<>\"\",INDIRECT(\"'\" & Setup!$AJ$7 & \"'!\" & AD70),0) + IF(Setup!$AJ$8<>\"\",INDIRECT(\"'\" & Setup!$AJ$8 & \"'!\" & AD70),0) + IF(Setup!$AJ$9<>\"\",INDIRECT(\"'\" & Setup!$AJ$9 & \"'!\" & AD70),0) + IF(Setup!$AJ$10<>\"\",INDIRECT(\"'\" & Setup!$AJ$10 & \"'!\" & AD70),0) + IF(Setup!$AJ$11<>\"\",INDIRECT(\"'\" & Setup!$AJ$11 & \"'!\" & AD70),0) + IF(Setup!$AJ$12<>\"\",INDIRECT(\"'\" & Setup!$AJ$12 & \"'!\" & AD70),0)","v":0},{"$f":"IF(Setup!$AJ$7<>\"\",INDIRECT(\"'\" & Setup!$AJ$7 & \"'!\" & AE70),0) + IF(Setup!$AJ$8<>\"\",INDIRECT(\"'\" & Setup!$AJ$8 & \"'!\" & AE70),0) + IF(Setup!$AJ$9<>\"\",INDIRECT(\"'\" & Setup!$AJ$9 & \"'!\" & AE70),0) + IF(Setup!$AJ$10<>\"\",INDIRECT(\"'\" & Setup!$AJ$10 & \"'!\" & AE70),0) + IF(Setup!$AJ$11<>\"\",INDIRECT(\"'\" & Setup!$AJ$11 & \"'!\" & AE70),0) + IF(Setup!$AJ$12<>\"\",INDIRECT(\"'\" & Setup!$AJ$12 & \"'!\" & AE70),0)","v":0}]
[{"$f":"Planning!A54","v":"I046"},{"$f":"Planning!B54","v":0},{"$f":"Planning!C54","v":0},{"$f":"Planning!D54","v":0},{"$f":"Planning!E54","v":0},{"$f":"Planning!G54","v":0},null,0,0,{"$f":"IF(AND($AR71=\"2\",$AB70<>Lists!$A$17),AU71,AT71)","v":""},"",0,0,{"$f":"IF(AND($AR71=\"2\",$AB71<>Lists!$A$17),AW71,AV71)","v":""},"",0,0,{"$f":"IF(AND($AR71=\"2\",$AB71<>Lists!$A$17),AY71,AX71)","v":""},"",0,0,{"$f":"IF(AND($AR71=\"2\",$AB71<>Lists!$A$17),BA71,AZ71)","v":""},"",0,0,{"$f":"IF(AND($AR71=\"2\",$AB71<>Lists!$A$17),BC71,BB71)","v":""},"",{"$f":"Planning!H54","v":0},"00","H70","J70","I70","",null,{"$f":"IF(Setup!$AG$7<>\"\",INDIRECT(\"'\" & Setup!$AG$7 & \"'!\" & AF71),0) + IF(Setup!$AG$8<>\"\",INDIRECT(\"'\" & Setup!$AG$8 & \"'!\" & AF71),0) + IF(Setup!$AG$9<>\"\",INDIRECT(\"'\" & Setup!$AG$9 & \"'!\" & AF71),0) + IF(Setup!$AG$10<>\"\",INDIRECT(\"'\" & Setup!$AG$10 & \"'!\" & AF71),0) + IF(Setup!$AG$11<>\"\",INDIRECT(\"'\" & Setup!$AG$11 & \"'!\" & AF71),0) + IF(Setup!$AG$12<>\"\",INDIRECT(\"'\" & Setup!$AG$12 & \"'!\" & AF71),0)","v":0},{"$f":"IF(Setup!$AH$7<>\"\",INDIRECT(\"'\" & Setup!$AH$7 & \"'!\" & AF71),0) + IF(Setup!$AH$8<>\"\",INDIRECT(\"'\" & Setup!$AH$8 & \"'!\" & AF71),0) + IF(Setup!$AH$9<>\"\",INDIRECT(\"'\" & Setup!$AH$9 & \"'!\" & AF71),0) + IF(Setup!$AH$10<>\"\",INDIRECT(\"'\" & Setup!$AH$10 & \"'!\" & AF71),0) + IF(Setup!$AH$11<>\"\",INDIRECT(\"'\" & Setup!$AH$11 & \"'!\" & AF71),0) + IF(Setup!$AH$12<>\"\",INDIRECT(\"'\" & Setup!$AH$12 & \"'!\" & AF71),0)","v":0},{"$f":"IF(Setup!$AI$7<>\"\",INDIRECT(\"'\" & Setup!$AI$7 & \"'!\" & AF71),0) + IF(Setup!$AI$8<>\"\",INDIRECT(\"'\" & Setup!$AI$8 & \"'!\" & AF71),0) + IF(Setup!$AI$9<>\"\",INDIRECT(\"'\" & Setup!$AI$9 & \"'!\" & AF71),0) + IF(Setup!$AI$10<>\"\",INDIRECT(\"'\" & Setup!$AI$10 & \"'!\" & AF71),0) + IF(Setup!$AI$11<>\"\",INDIRECT(\"'\" & Setup!$AI$11 & \"'!\" & AF71),0) + IF(Setup!$AI$12<>\"\",INDIRECT(\"'\" & Setup!$AI$12 & \"'!\" & AF71),0)","v":0},{"$f":"IF(Setup!$AJ$7<>\"\",INDIRECT(\"'\" & Setup!$AJ$7 & \"'!\" & AF71),0) + IF(Setup!$AJ$8<>\"\",INDIRECT(\"'\" & Setup!$AJ$8 & \"'!\" & AF71),0) + IF(Setup!$AJ$9<>\"\",INDIRECT(\"'\" & Setup!$AJ$9 & \"'!\" & AF71),0) + IF(Setup!$AJ$10<>\"\",INDIRECT(\"'\" & Setup!$AJ$10 & \"'!\" & AF71),0) + IF(Setup!$AJ$11<>\"\",INDIRECT(\"'\" & Setup!$AJ$11 & \"'!\" & AF71),0) + IF(Setup!$AJ$12<>\"\",INDIRECT(\"'\" & Setup!$AJ$12 & \"'!\" & AF71),0)","v":0},null,"",{"$nulls":3},{"$f":"IF(C71=0,\"\",LEFT(INDEX(Lists!$H$5:$H$49,MATCH(C71,Lists!$G$5:$G$49,0),1),1))","v":""},null,"","","","","","","","","","",{"$nulls":6},{"$f":"IF(Setup!$AG$7<>\"\",INDIRECT(\"'\" & Setup!$AG$7 & \"'!\" & AD71),0) + IF(Setup!$AG$8<>\"\",INDIRECT(\"'\" & Setup!$AG$8 & \"'!\" & AD71),0) + IF(Setup!$AG$9<>\"\",INDIRECT(\"'\" & Setup!$AG$9 & \"'!\" & AD71),0) + IF(Setup!$AG$10<>\"\",INDIRECT(\"'\" & Setup!$AG$10 & \"'!\" & AD71),0) + IF(Setup!$AG$11<>\"\",INDIRECT(\"'\" & Setup!$AG$11 & \"'!\" & AD71),0) + IF(Setup!$AG$12<>\"\",INDIRECT(\"'\" & Setup!$AG$12 & \"'!\" & AD71),0)","v":0},{"$f":"IF(Setup!$AG$7<>\"\",INDIRECT(\"'\" & Setup!$AG$7 & \"'!\" & AE71),0) + IF(Setup!$AG$8<>\"\",INDIRECT(\"'\" & Setup!$AG$8 & \"'!\" & AE71),0) + IF(Setup!$AG$9<>\"\",INDIRECT(\"'\" & Setup!$AG$9 & \"'!\" & AE71),0) + IF(Setup!$AG$10<>\"\",INDIRECT(\"'\" & Setup!$AG$10 & \"'!\" & AE71),0) + IF(Setup!$AG$11<>\"\",INDIRECT(\"'\" & Setup!$AG$11 & \"'!\" & AE71),0) + IF(Setup!$AG$12<>\"\",INDIRECT(\"'\" & Setup!$AG$12 & \"'!\" & AE71),0)","v":0},{"$f":"IF(Setup!$AH$7<>\"\",INDIRECT(\"'\" & Setup!$AH$7 & \"'!\" & AD71),0) + IF(Setup!$AH$8<>\"\",INDIRECT(\"'\" & Setup!$AH$8 & \"'!\" & AD71),0) + IF(Setup!$AH$9<>\"\",INDIRECT(\"'\" & Setup!$AH$9 & \"'!\" & AD71),0) + IF(Setup!$AH$10<>\"\",INDIRECT(\"'\" & Setup!$AH$10 & \"'!\" & AD71),0) + IF(Setup!$AH$11<>\"\",INDIRECT(\"'\" & Setup!$AH$11 & \"'!\" & AD71),0) + IF(Setup!$AH$12<>\"\",INDIRECT(\"'\" & Setup!$AH$12 & \"'!\" & AD71),0)","v":0},{"$f":"IF(Setup!$AH$7<>\"\",INDIRECT(\"'\" & Setup!$AH$7 & \"'!\" & AE71),0) + IF(Setup!$AH$8<>\"\",INDIRECT(\"'\" & Setup!$AH$8 & \"'!\" & AE71),0) + IF(Setup!$AH$9<>\"\",INDIRECT(\"'\" & Setup!$AH$9 & \"'!\" & AE71),0) + IF(Setup!$AH$10<>\"\",INDIRECT(\"'\" & Setup!$AH$10 & \"'!\" & AE71),0) + IF(Setup!$AH$11<>\"\",INDIRECT(\"'\" & Setup!$AH$11 & \"'!\" & AE71),0) + IF(Setup!$AH$12<>\"\",INDIRECT(\"'\" & Setup!$AH$12 & \"'!\" & AE71),0)","v":0},{"$f":"IF(Setup!$AI$7<>\"\",INDIRECT(\"'\" & Setup!$AI$7 & \"'!\" & AD71),0) + IF(Setup!$AI$8<>\"\",INDIRECT(\"'\" & Setup!$AI$8 & \"'!\" & AD71),0) + IF(Setup!$AI$9<>\"\",INDIRECT(\"'\" & Setup!$AI$9 & \"'!\" & AD71),0) + IF(Setup!$AI$10<>\"\",INDIRECT(\"'\" & Setup!$AI$10 & \"'!\" & AD71),0) + IF(Setup!$AI$11<>\"\",INDIRECT(\"'\" & Setup!$AI$11 & \"'!\" & AD71),0) + IF(Setup!$AI$12<>\"\",INDIRECT(\"'\" & Setup!$AI$12 & \"'!\" & AD71),0)","v":0},{"$f":"IF(Setup!$AI$7<>\"\",INDIRECT(\"'\" & Setup!$AI$7 & \"'!\" & AE71),0) + IF(Setup!$AI$8<>\"\",INDIRECT(\"'\" & Setup!$AI$8 & \"'!\" & AE71),0) + IF(Setup!$AI$9<>\"\",INDIRECT(\"'\" & Setup!$AI$9 & \"'!\" & AE71),0) + IF(Setup!$AI$10<>\"\",INDIRECT(\"'\" & Setup!$AI$10 & \"'!\" & AE71),0) + IF(Setup!$AI$11<>\"\",INDIRECT(\"'\" & Setup!$AI$11 & \"'!\" & AE71),0) + IF(Setup!$AI$12<>\"\",INDIRECT(\"'\" & Setup!$AI$12 & \"'!\" & AE71),0)","v":0},{"$f":"IF(Setup!$AJ$7<>\"\",INDIRECT(\"'\" & Setup!$AJ$7 & \"'!\" & AD71),0) + IF(Setup!$AJ$8<>\"\",INDIRECT(\"'\" & Setup!$AJ$8 & \"'!\" & AD71),0) + IF(Setup!$AJ$9<>\"\",INDIRECT(\"'\" & Setup!$AJ$9 & \"'!\" & AD71),0) + IF(Setup!$AJ$10<>\"\",INDIRECT(\"'\" & Setup!$AJ$10 & \"'!\" & AD71),0) + IF(Setup!$AJ$11<>\"\",INDIRECT(\"'\" & Setup!$AJ$11 & \"'!\" & AD71),0) + IF(Setup!$AJ$12<>\"\",INDIRECT(\"'\" & Setup!$AJ$12 & \"'!\" & AD71),0)","v":0},{"$f":"IF(Setup!$AJ$7<>\"\",INDIRECT(\"'\" & Setup!$AJ$7 & \"'!\" & AE71),0) + IF(Setup!$AJ$8<>\"\",INDIRECT(\"'\" & Setup!$AJ$8 & \"'!\" & AE71),0) + IF(Setup!$AJ$9<>\"\",INDIRECT(\"'\" & Setup!$AJ$9 & \"'!\" & AE71),0) + IF(Setup!$AJ$10<>\"\",INDIRECT(\"'\" & Setup!$AJ$10 & \"'!\" & AE71),0) + IF(Setup!$AJ$11<>\"\",INDIRECT(\"'\" & Setup!$AJ$11 & \"'!\" & AE71),0) + IF(Setup!$AJ$12<>\"\",INDIRECT(\"'\" & Setup!$AJ$12 & \"'!\" & AE71),0)","v":0}]
[{"$f":"Planning!A55","v":"I047"},{"$f":"Planning!B55","v":0},{"$f":"Planning!C55","v":0},{"$f":"Planning!D55","v":0},{"$f":"Planning!E55","v":0},{"$f":"Planning!G55","v":0},null,0,0,{"$f":"IF(AND($AR72=\"2\",$AB71<>Lists!$A$17),AU72,AT72)","v":""},"",0,0,{"$f":"IF(AND($AR72=\"2\",$AB72<>Lists!$A$17),AW72,AV72)","v":""},"",0,0,{"$f":"IF(AND($AR72=\"2\",$AB72<>Lists!$A$17),AY72,AX72)","v":""},"",0,0,{"$f":"IF(AND($AR72=\"2\",$AB72<>Lists!$A$17),BA72,AZ72)","v":""},"",0,0,{"$f":"IF(AND($AR72=\"2\",$AB72<>Lists!$A$17),BC72,BB72)","v":""},"",{"$f":"Planning!H55","v":0},"00","H71","J71","I71","",null,{"$f":"IF(Setup!$AG$7<>\"\",INDIRECT(\"'\" & Setup!$AG$7 & \"'!\" & AF72),0) + IF(Setup!$AG$8<>\"\",INDIRECT(\"'\" & Setup!$AG$8 & \"'!\" & AF72),0) + IF(Setup!$AG$9<>\"\",INDIRECT(\"'\" & Setup!$AG$9 & \"'!\" & AF72),0) + IF(Setup!$AG$10<>\"\",INDIRECT(\"'\" & Setup!$AG$10 & \"'!\" & AF72),0) + IF(Setup!$AG$11<>\"\",INDIRECT(\"'\" & Setup!$AG$11 & \"'!\" & AF72),0) + IF(Setup!$AG$12<>\"\",INDIRECT(\"'\" & Setup!$AG$12 & \"'!\" & AF72),0)","v":0},{"$f":"IF(Setup!$AH$7<>\"\",INDIRECT(\"'\" & Setup!$AH$7 & \"'!\" & AF72),0) + IF(Setup!$AH$8<>\"\",INDIRECT(\"'\" & Setup!$AH$8 & \"'!\" & AF72),0) + IF(Setup!$AH$9<>\"\",INDIRECT(\"'\" & Setup!$AH$9 & \"'!\" & AF72),0) + IF(Setup!$AH$10<>\"\",INDIRECT(\"'\" & Setup!$AH$10 & \"'!\" & AF72),0) + IF(Setup!$AH$11<>\"\",INDIRECT(\"'\" & Setup!$AH$11 & \"'!\" & AF72),0) + IF(Setup!$AH$12<>\"\",INDIRECT(\"'\" & Setup!$AH$12 & \"'!\" & AF72),0)","v":0},{"$f":"IF(Setup!$AI$7<>\"\",INDIRECT(\"'\" & Setup!$AI$7 & \"'!\" & AF72),0) + IF(Setup!$AI$8<>\"\",INDIRECT(\"'\" & Setup!$AI$8 & \"'!\" & AF72),0) + IF(Setup!$AI$9<>\"\",INDIRECT(\"'\" & Setup!$AI$9 & \"'!\" & AF72),0) + IF(Setup!$AI$10<>\"\",INDIRECT(\"'\" & Setup!$AI$10 & \"'!\" & AF72),0) + IF(Setup!$AI$11<>\"\",INDIRECT(\"'\" & Setup!$AI$11 & \"'!\" & AF72),0) + IF(Setup!$AI$12<>\"\",INDIRECT(\"'\" & Setup!$AI$12 & \"'!\" & AF72),0)","v":0},{"$f":"IF(Setup!$AJ$7<>\"\",INDIRECT(\"'\" & Setup!$AJ$7 & \"'!\" & AF72),0) + IF(Setup!$AJ$8<>\"\",INDIRECT(\"'\" & Setup!$AJ$8 & \"'!\" & AF72),0) + IF(Setup!$AJ$9<>\"\",INDIRECT(\"'\" & Setup!$AJ$9 & \"'!\" & AF72),0) + IF(Setup!$AJ$10<>\"\",INDIRECT(\"'\" & Setup!$AJ$10 & \"'!\" & AF72),0) + IF(Setup!$AJ$11<>\"\",INDIRECT(\"'\" & Setup!$AJ$11 & \"'!\" & AF72),0) + IF(Setup!$AJ$12<>\"\",INDIRECT(\"'\" & Setup!$AJ$12 & \"'!\" & AF72),0)","v":0},null,"",{"$nulls":3},{"$f":"IF(C72=0,\"\",LEFT(INDEX(Lists!$H$5:$H$49,MATCH(C72,Lists!$G$5:$G$49,0),1),1))","v":""},null,"","","","","","","","","","",{"$nulls":6},{"$f":"IF(Setup!$AG$7<>\"\",INDIRECT(\"'\" & Setup!$AG$7 & \"'!\" & AD72),0) + IF(Setup!$AG$8<>\"\",INDIRECT(\"'\" & Setup!$AG$8 & \"'!\" & AD72),0) + IF(Setup!$AG$9<>\"\",INDIRECT(\"'\" & Setup!$AG$9 & \"'!\" & AD72),0) + IF(Setup!$AG$10<>\"\",INDIRECT(\"'\" & Setup!$AG$10 & \"'!\" & AD72),0) + IF(Setup!$AG$11<>\"\",INDIRECT(\"'\" & Setup!$AG$11 & \"'!\" & AD72),0) + IF(Setup!$AG$12<>\"\",INDIRECT(\"'\" & Setup!$AG$12 & \"'!\" & AD72),0)","v":0},{"$f":"IF(Setup!$AG$7<>\"\",INDIRECT(\"'\" & Setup!$AG$7 & \"'!\" & AE72),0) + IF(Setup!$AG$8<>\"\",INDIRECT(\"'\" & Setup!$AG$8 & \"'!\" & AE72),0) + IF(Setup!$AG$9<>\"\",INDIRECT(\"'\" & Setup!$AG$9 & \"'!\" & AE72),0) + IF(Setup!$AG$10<>\"\",INDIRECT(\"'\" & Setup!$AG$10 & \"'!\" & AE72),0) + IF(Setup!$AG$11<>\"\",INDIRECT(\"'\" & Setup!$AG$11 & \"'!\" & AE72),0) + IF(Setup!$AG$12<>\"\",INDIRECT(\"'\" & Setup!$AG$12 & \"'!\" & AE72),0)","v":0},{"$f":"IF(Setup!$AH$7<>\"\",INDIRECT(\"'\" & Setup!$AH$7 & \"'!\" & AD72),0) + IF(Setup!$AH$8<>\"\",INDIRECT(\"'\" & Setup!$AH$8 & \"'!\" & AD72),0) + IF(Setup!$AH$9<>\"\",INDIRECT(\"'\" & Setup!$AH$9 & \"'!\" & AD72),0) + IF(Setup!$AH$10<>\"\",INDIRECT(\"'\" & Setup!$AH$10 & \"'!\" & AD72),0) + IF(Setup!$AH$11<>\"\",INDIRECT(\"'\" & Setup!$AH$11 & \"'!\" & AD72),0) + IF(Setup!$AH$12<>\"\",INDIRECT(\"'\" & Setup!$AH$12 & \"'!\" & AD72),0)","v":0},{"$f":"IF(Setup!$AH$7<>\"\",INDIRECT(\"'\" & Setup!$AH$7 & \"'!\" & AE72),0) + IF(Setup!$AH$8<>\"\",INDIRECT(\"'\" & Setup!$AH$8 & \"'!\" & AE72),0) + IF(Setup!$AH$9<>\"\",INDIRECT(\"'\" & Setup!$AH$9 & \"'!\" & AE72),0) + IF(Setup!$AH$10<>\"\",INDIRECT(\"'\" & Setup!$AH$10 & \"'!\" & AE72),0) + IF(Setup!$AH$11<>\"\",INDIRECT(\"'\" & Setup!$AH$11 & \"'!\" & AE72),0) + IF(Setup!$AH$12<>\"\",INDIRECT(\"'\" & Setup!$AH$12 & \"'!\" & AE72),0)","v":0},{"$f":"IF(Setup!$AI$7<>\"\",INDIRECT(\"'\" & Setup!$AI$7 & \"'!\" & AD72),0) + IF(Setup!$AI$8<>\"\",INDIRECT(\"'\" & Setup!$AI$8 & \"'!\" & AD72),0) + IF(Setup!$AI$9<>\"\",INDIRECT(\"'\" & Setup!$AI$9 & \"'!\" & AD72),0) + IF(Setup!$AI$10<>\"\",INDIRECT(\"'\" & Setup!$AI$10 & \"'!\" & AD72),0) + IF(Setup!$AI$11<>\"\",INDIRECT(\"'\" & Setup!$AI$11 & \"'!\" & AD72),0) + IF(Setup!$AI$12<>\"\",INDIRECT(\"'\" & Setup!$AI$12 & \"'!\" & AD72),0)","v":0},{"$f":"IF(Setup!$AI$7<>\"\",INDIRECT(\"'\" & Setup!$AI$7 & \"'!\" & AE72),0) + IF(Setup!$AI$8<>\"\",INDIRECT(\"'\" & Setup!$AI$8 & \"'!\" & AE72),0) + IF(Setup!$AI$9<>\"\",INDIRECT(\"'\" & Setup!$AI$9 & \"'!\" & AE72),0) + IF(Setup!$AI$10<>\"\",INDIRECT(\"'\" & Setup!$AI$10 & \"'!\" & AE72),0) + IF(Setup!$AI$11<>\"\",INDIRECT(\"'\" & Setup!$AI$11 & \"'!\" & AE72),0) + IF(Setup!$AI$12<>\"\",INDIRECT(\"'\" & Setup!$AI$12 & \"'!\" & AE72),0)","v":0},{"$f":"IF(Setup!$AJ$7<>\"\",INDIRECT(\"'\" & Setup!$AJ$7 & \"'!\" & AD72),0) + IF(Setup!$AJ$8<>\"\",INDIRECT(\"'\" & Setup!$AJ$8 & \"'!\" & AD72),0) + IF(Setup!$AJ$9<>\"\",INDIRECT(\"'\" & Setup!$AJ$9 & \"'!\" & AD72),0) + IF(Setup!$AJ$10<>\"\",INDIRECT(\"'\" & Setup!$AJ$10 & \"'!\" & AD72),0) + IF(Setup!$AJ$11<>\"\",INDIRECT(\"'\" & Setup!$AJ$11 & \"'!\" & AD72),0) + IF(Setup!$AJ$12<>\"\",INDIRECT(\"'\" & Setup!$AJ$12 & \"'!\" & AD72),0)","v":0},{"$f":"IF(Setup!$AJ$7<>\"\",INDIRECT(\"'\" & Setup!$AJ$7 & \"'!\" & AE72),0) + IF(Setup!$AJ$8<>\"\",INDIRECT(\"'\" & Setup!$AJ$8 & \"'!\" & AE72),0) + IF(Setup!$AJ$9<>\"\",INDIRECT(\"'\" & Setup!$AJ$9 & \"'!\" & AE72),0) + IF(Setup!$AJ$10<>\"\",INDIRECT(\"'\" & Setup!$AJ$10 & \"'!\" & AE72),0) + IF(Setup!$AJ$11<>\"\",INDIRECT(\"'\" & Setup!$AJ$11 & \"'!\" & AE72),0) + IF(Setup!$AJ$12<>\"\",INDIRECT(\"'\" & Setup!$AJ$12 & \"'!\" & AE72),0)","v":0}]
[{"$f":"Planning!A56","v":"I048"},{"$f":"Planning!B56","v":0},{"$f":"Planning!C56","v":0},{"$f":"Planning!D56","v":0},{"$f":"Planning!E56","v":0},{"$f":"Planning!G56","v":0},null,0,0,{"$f":"IF(AND($AR73=\"2\",$AB72<>Lists!$A$17),AU73,AT73)","v":""},"",0,0,{"$f":"IF(AND($AR73=\"2\",$AB73<>Lists!$A$17),AW73,AV73)","v":""},"",0,0,{"$f":"IF(AND($AR73=\"2\",$AB73<>Lists!$A$17),AY73,AX73)","v":""},"",0,0,{"$f":"IF(AND($AR73=\"2\",$AB73<>Lists!$A$17),BA73,AZ73)","v":""},"",0,0,{"$f":"IF(AND($AR73=\"2\",$AB73<>Lists!$A$17),BC73,BB73)","v":""},"",{"$f":"Planning!H56","v":0},"00","H72","J72","I72","",null,{"$f":"IF(Setup!$AG$7<>\"\",INDIRECT(\"'\" & Setup!$AG$7 & \"'!\" & AF73),0) + IF(Setup!$AG$8<>\"\",INDIRECT(\"'\" & Setup!$AG$8 & \"'!\" & AF73),0) + IF(Setup!$AG$9<>\"\",INDIRECT(\"'\" & Setup!$AG$9 & \"'!\" & AF73),0) + IF(Setup!$AG$10<>\"\",INDIRECT(\"'\" & Setup!$AG$10 & \"'!\" & AF73),0) + IF(Setup!$AG$11<>\"\",INDIRECT(\"'\" & Setup!$AG$11 & \"'!\" & AF73),0) + IF(Setup!$AG$12<>\"\",INDIRECT(\"'\" & Setup!$AG$12 & \"'!\" & AF73),0)","v":0},{"$f":"IF(Setup!$AH$7<>\"\",INDIRECT(\"'\" & Setup!$AH$7 & \"'!\" & AF73),0) + IF(Setup!$AH$8<>\"\",INDIRECT(\"'\" & Setup!$AH$8 & \"'!\" & AF73),0) + IF(Setup!$AH$9<>\"\",INDIRECT(\"'\" & Setup!$AH$9 & \"'!\" & AF73),0) + IF(Setup!$AH$10<>\"\",INDIRECT(\"'\" & Setup!$AH$10 & \"'!\" & AF73),0) + IF(Setup!$AH$11<>\"\",INDIRECT(\"'\" & Setup!$AH$11 & \"'!\" & AF73),0) + IF(Setup!$AH$12<>\"\",INDIRECT(\"'\" & Setup!$AH$12 & \"'!\" & AF73),0)","v":0},{"$f":"IF(Setup!$AI$7<>\"\",INDIRECT(\"'\" & Setup!$AI$7 & \"'!\" & AF73),0) + IF(Setup!$AI$8<>\"\",INDIRECT(\"'\" & Setup!$AI$8 & \"'!\" & AF73),0) + IF(Setup!$AI$9<>\"\",INDIRECT(\"'\" & Setup!$AI$9 & \"'!\" & AF73),0) + IF(Setup!$AI$10<>\"\",INDIRECT(\"'\" & Setup!$AI$10 & \"'!\" & AF73),0) + IF(Setup!$AI$11<>\"\",INDIRECT(\"'\" & Setup!$AI$11 & \"'!\" & AF73),0) + IF(Setup!$AI$12<>\"\",INDIRECT(\"'\" & Setup!$AI$12 & \"'!\" & AF73),0)","v":0},{"$f":"IF(Setup!$AJ$7<>\"\",INDIRECT(\"'\" & Setup!$AJ$7 & \"'!\" & AF73),0) + IF(Setup!$AJ$8<>\"\",INDIRECT(\"'\" & Setup!$AJ$8 & \"'!\" & AF73),0) + IF(Setup!$AJ$9<>\"\",INDIRECT(\"'\" & Setup!$AJ$9 & \"'!\" & AF73),0) + IF(Setup!$AJ$10<>\"\",INDIRECT(\"'\" & Setup!$AJ$10 & \"'!\" & AF73),0) + IF(Setup!$AJ$11<>\"\",INDIRECT(\"'\" & Setup!$AJ$11 & \"'!\" & AF73),0) + IF(Setup!$AJ$12<>\"\",INDIRECT(\"'\" & Setup!$AJ$12 & \"'!\" & AF73),0)","v":0},null,"",{"$nulls":3},{"$f":"IF(C73=0,\"\",LEFT(INDEX(Lists!$H$5:$H$49,MATCH(C73,Lists!$G$5:$G$49,0),1),1))","v":""},null,"","","","","","","","","","",{"$nulls":6},{"$f":"IF(Setup!$AG$7<>\"\",INDIRECT(\"'\" & Setup!$AG$7 & \"'!\" & AD73),0) + IF(Setup!$AG$8<>\"\",INDIRECT(\"'\" & Setup!$AG$8 & \"'!\" & AD73),0) + IF(Setup!$AG$9<>\"\",INDIRECT(\"'\" & Setup!$AG$9 & \"'!\" & AD73),0) + IF(Setup!$AG$10<>\"\",INDIRECT(\"'\" & Setup!$AG$10 & \"'!\" & AD73),0) + IF(Setup!$AG$11<>\"\",INDIRECT(\"'\" & Setup!$AG$11 & \"'!\" & AD73),0) + IF(Setup!$AG$12<>\"\",INDIRECT(\"'\" & Setup!$AG$12 & \"'!\" & AD73),0)","v":0},{"$f":"IF(Setup!$AG$7<>\"\",INDIRECT(\"'\" & Setup!$AG$7 & \"'!\" & AE73),0) + IF(Setup!$AG$8<>\"\",INDIRECT(\"'\" & Setup!$AG$8 & \"'!\" & AE73),0) + IF(Setup!$AG$9<>\"\",INDIRECT(\"'\" & Setup!$AG$9 & \"'!\" & AE73),0) + IF(Setup!$AG$10<>\"\",INDIRECT(\"'\" & Setup!$AG$10 & \"'!\" & AE73),0) + IF(Setup!$AG$11<>\"\",INDIRECT(\"'\" & Setup!$AG$11 & \"'!\" & AE73),0) + IF(Setup!$AG$12<>\"\",INDIRECT(\"'\" & Setup!$AG$12 & \"'!\" & AE73),0)","v":0},{"$f":"IF(Setup!$AH$7<>\"\",INDIRECT(\"'\" & Setup!$AH$7 & \"'!\" & AD73),0) + IF(Setup!$AH$8<>\"\",INDIRECT(\"'\" & Setup!$AH$8 & \"'!\" & AD73),0) + IF(Setup!$AH$9<>\"\",INDIRECT(\"'\" & Setup!$AH$9 & \"'!\" & AD73),0) + IF(Setup!$AH$10<>\"\",INDIRECT(\"'\" & Setup!$AH$10 & \"'!\" & AD73),0) + IF(Setup!$AH$11<>\"\",INDIRECT(\"'\" & Setup!$AH$11 & \"'!\" & AD73),0) + IF(Setup!$AH$12<>\"\",INDIRECT(\"'\" & Setup!$AH$12 & \"'!\" & AD73),0)","v":0},{"$f":"IF(Setup!$AH$7<>\"\",INDIRECT(\"'\" & Setup!$AH$7 & \"'!\" & AE73),0) + IF(Setup!$AH$8<>\"\",INDIRECT(\"'\" & Setup!$AH$8 & \"'!\" & AE73),0) + IF(Setup!$AH$9<>\"\",INDIRECT(\"'\" & Setup!$AH$9 & \"'!\" & AE73),0) + IF(Setup!$AH$10<>\"\",INDIRECT(\"'\" & Setup!$AH$10 & \"'!\" & AE73),0) + IF(Setup!$AH$11<>\"\",INDIRECT(\"'\" & Setup!$AH$11 & \"'!\" & AE73),0) + IF(Setup!$AH$12<>\"\",INDIRECT(\"'\" & Setup!$AH$12 & \"'!\" & AE73),0)","v":0},{"$f":"IF(Setup!$AI$7<>\"\",INDIRECT(\"'\" & Setup!$AI$7 & \"'!\" & AD73),0) + IF(Setup!$AI$8<>\"\",INDIRECT(\"'\" & Setup!$AI$8 & \"'!\" & AD73),0) + IF(Setup!$AI$9<>\"\",INDIRECT(\"'\" & Setup!$AI$9 & \"'!\" & AD73),0) + IF(Setup!$AI$10<>\"\",INDIRECT(\"'\" & Setup!$AI$10 & \"'!\" & AD73),0) + IF(Setup!$AI$11<>\"\",INDIRECT(\"'\" & Setup!$AI$11 & \"'!\" & AD73),0) + IF(Setup!$AI$12<>\"\",INDIRECT(\"'\" & Setup!$AI$12 & \"'!\" & AD73),0)","v":0},{"$f":"IF(Setup!$AI$7<>\"\",INDIRECT(\"'\" & Setup!$AI$7 & \"'!\" & AE73),0) + IF(Setup!$AI$8<>\"\",INDIRECT(\"'\" & Setup!$AI$8 & \"'!\" & AE73),0) + IF(Setup!$AI$9<>\"\",INDIRECT(\"'\" & Setup!$AI$9 & \"'!\" & AE73),0) + IF(Setup!$AI$10<>\"\",INDIRECT(\"'\" & Setup!$AI$10 & \"'!\" & AE73),0) + IF(Setup!$AI$11<>\"\",INDIRECT(\"'\" & Setup!$AI$11 & \"'!\" & AE73),0) + IF(Setup!$AI$12<>\"\",INDIRECT(\"'\" & Setup!$AI$12 & \"'!\" & AE73),0)","v":0},{"$f":"IF(Setup!$AJ$7<>\"\",INDIRECT(\"'\" & Setup!$AJ$7 & \"'!\" & AD73),0) + IF(Setup!$AJ$8<>\"\",INDIRECT(\"'\" & Setup!$AJ$8 & \"'!\" & AD73),0) + IF(Setup!$AJ$9<>\"\",INDIRECT(\"'\" & Setup!$AJ$9 & \"'!\" & AD73),0) + IF(Setup!$AJ$10<>\"\",INDIRECT(\"'\" & Setup!$AJ$10 & \"'!\" & AD73),0) + IF(Setup!$AJ$11<>\"\",INDIRECT(\"'\" & Setup!$AJ$11 & \"'!\" & AD73),0) + IF(Setup!$AJ$12<>\"\",INDIRECT(\"'\" & Setup!$AJ$12 & \"'!\" & AD73),0)","v":0},{"$f":"IF(Setup!$AJ$7<>\"\",INDIRECT(\"'\" & Setup!$AJ$7 & \"'!\" & AE73),0) + IF(Setup!$AJ$8<>\"\",INDIRECT(\"'\" & Setup!$AJ$8 & \"'!\" & AE73),0) + IF(Setup!$AJ$9<>\"\",INDIRECT(\"'\" & Setup!$AJ$9 & \"'!\" & AE73),0) + IF(Setup!$AJ$10<>\"\",INDIRECT(\"'\" & Setup!$AJ$10 & \"'!\" & AE73),0) + IF(Setup!$AJ$11<>\"\",INDIRECT(\"'\" & Setup!$AJ$11 & \"'!\" & AE73),0) + IF(Setup!$AJ$12<>\"\",INDIRECT(\"'\" & Setup!$AJ$12 & \"'!\" & AE73),0)","v":0}]
[{"$f":"Planning!A57","v":"I049"},{"$f":"Planning!B57","v":0},{"$f":"Planning!C57","v":0},{"$f":"Planning!D57","v":0},{"$f":"Planning!E57","v":0},{"$f":"Planning!G57","v":0},null,0,0,{"$f":"IF(AND($AR74=\"2\",$AB73<>Lists!$A$17),AU74,AT74)","v":""},"",0,0,{"$f":"IF(AND($AR74=\"2\",$AB74<>Lists!$A$17),AW74,AV74)","v":""},"",0,0,{"$f":"IF(AND($AR74=\"2\",$AB74<>Lists!$A$17),AY74,AX74)","v":""},"",0,0,{"$f":"IF(AND($AR74=\"2\",$AB74<>Lists!$A$17),BA74,AZ74)","v":""},"",0,0,{"$f":"IF(AND($AR74=\"2\",$AB74<>Lists!$A$17),BC74,BB74)","v":""},"",{"$f":"Planning!H57","v":0},"00","H73","J73","I73",{"$f":"IF(E74=0,\"\",\"[\"&A74&\"] \"&E74)","v":""},null,{"$f":"IF(Setup!$AG$7<>\"\",INDIRECT(\"'\" & Setup!$AG$7 & \"'!\" & AF74),0) + IF(Setup!$AG$8<>\"\",INDIRECT(\"'\" & Setup!$AG$8 & \"'!\" & AF74),0) + IF(Setup!$AG$9<>\"\",INDIRECT(\"'\" & Setup!$AG$9 & \"'!\" & AF74),0) + IF(Setup!$AG$10<>\"\",INDIRECT(\"'\" & Setup!$AG$10 & \"'!\" & AF74),0) + IF(Setup!$AG$11<>\"\",INDIRECT(\"'\" & Setup!$AG$11 & \"'!\" & AF74),0) + IF(Setup!$AG$12<>\"\",INDIRECT(\"'\" & Setup!$AG$12 & \"'!\" & AF74),0)","v":0},{"$f":"IF(Setup!$AH$7<>\"\",INDIRECT(\"'\" & Setup!$AH$7 & \"'!\" & AF74),0) + IF(Setup!$AH$8<>\"\",INDIRECT(\"'\" & Setup!$AH$8 & \"'!\" & AF74),0) + IF(Setup!$AH$9<>\"\",INDIRECT(\"'\" & Setup!$AH$9 & \"'!\" & AF74),0) + IF(Setup!$AH$10<>\"\",INDIRECT(\"'\" & Setup!$AH$10 & \"'!\" & AF74),0) + IF(Setup!$AH$11<>\"\",INDIRECT(\"'\" & Setup!$AH$11 & \"'!\" & AF74),0) + IF(Setup!$AH$12<>\"\",INDIRECT(\"'\" & Setup!$AH$12 & \"'!\" & AF74),0)","v":0},{"$f":"IF(Setup!$AI$7<>\"\",INDIRECT(\"'\" & Setup!$AI$7 & \"'!\" & AF74),0) + IF(Setup!$AI$8<>\"\",INDIRECT(\"'\" & Setup!$AI$8 & \"'!\" & AF74),0) + IF(Setup!$AI$9<>\"\",INDIRECT(\"'\" & Setup!$AI$9 & \"'!\" & AF74),0) + IF(Setup!$AI$10<>\"\",INDIRECT(\"'\" & Setup!$AI$10 & \"'!\" & AF74),0) + IF(Setup!$AI$11<>\"\",INDIRECT(\"'\" & Setup!$AI$11 & \"'!\" & AF74),0) + IF(Setup!$AI$12<>\"\",INDIRECT(\"'\" & Setup!$AI$12 & \"'!\" & AF74),0)","v":0},{"$f":"IF(Setup!$AJ$7<>\"\",INDIRECT(\"'\" & Setup!$AJ$7 & \"'!\" & AF74),0) + IF(Setup!$AJ$8<>\"\",INDIRECT(\"'\" & Setup!$AJ$8 & \"'!\" & AF74),0) + IF(Setup!$AJ$9<>\"\",INDIRECT(\"'\" & Setup!$AJ$9 & \"'!\" & AF74),0) + IF(Setup!$AJ$10<>\"\",INDIRECT(\"'\" & Setup!$AJ$10 & \"'!\" & AF74),0) + IF(Setup!$AJ$11<>\"\",INDIRECT(\"'\" & Setup!$AJ$11 & \"'!\" & AF74),0) + IF(Setup!$AJ$12<>\"\",INDIRECT(\"'\" & Setup!$AJ$12 & \"'!\" & AF74),0)","v":0},null,"",{"$nulls":3},{"$f":"IF(C74=0,\"\",LEFT(INDEX(Lists!$H$5:$H$49,MATCH(C74,Lists!$G$5:$G$49,0),1),1))","v":""},null,"","","","","","","","","","",{"$nulls":6},{"$f":"IF(Setup!$AG$7<>\"\",INDIRECT(\"'\" & Setup!$AG$7 & \"'!\" & AD74),0) + IF(Setup!$AG$8<>\"\",INDIRECT(\"'\" & Setup!$AG$8 & \"'!\" & AD74),0) + IF(Setup!$AG$9<>\"\",INDIRECT(\"'\" & Setup!$AG$9 & \"'!\" & AD74),0) + IF(Setup!$AG$10<>\"\",INDIRECT(\"'\" & Setup!$AG$10 & \"'!\" & AD74),0) + IF(Setup!$AG$11<>\"\",INDIRECT(\"'\" & Setup!$AG$11 & \"'!\" & AD74),0) + IF(Setup!$AG$12<>\"\",INDIRECT(\"'\" & Setup!$AG$12 & \"'!\" & AD74),0)","v":0},{"$f":"IF(Setup!$AG$7<>\"\",INDIRECT(\"'\" & Setup!$AG$7 & \"'!\" & AE74),0) + IF(Setup!$AG$8<>\"\",INDIRECT(\"'\" & Setup!$AG$8 & \"'!\" & AE74),0) + IF(Setup!$AG$9<>\"\",INDIRECT(\"'\" & Setup!$AG$9 & \"'!\" & AE74),0) + IF(Setup!$AG$10<>\"\",INDIRECT(\"'\" & Setup!$AG$10 & \"'!\" & AE74),0) + IF(Setup!$AG$11<>\"\",INDIRECT(\"'\" & Setup!$AG$11 & \"'!\" & AE74),0) + IF(Setup!$AG$12<>\"\",INDIRECT(\"'\" & Setup!$AG$12 & \"'!\" & AE74),0)","v":0},{"$f":"IF(Setup!$AH$7<>\"\",INDIRECT(\"'\" & Setup!$AH$7 & \"'!\" & AD74),0) + IF(Setup!$AH$8<>\"\",INDIRECT(\"'\" & Setup!$AH$8 & \"'!\" & AD74),0) + IF(Setup!$AH$9<>\"\",INDIRECT(\"'\" & Setup!$AH$9 & \"'!\" & AD74),0) + IF(Setup!$AH$10<>\"\",INDIRECT(\"'\" & Setup!$AH$10 & \"'!\" & AD74),0) + IF(Setup!$AH$11<>\"\",INDIRECT(\"'\" & Setup!$AH$11 & \"'!\" & AD74),0) + IF(Setup!$AH$12<>\"\",INDIRECT(\"'\" & Setup!$AH$12 & \"'!\" & AD74),0)","v":0},{"$f":"IF(Setup!$AH$7<>\"\",INDIRECT(\"'\" & Setup!$AH$7 & \"'!\" & AE74),0) + IF(Setup!$AH$8<>\"\",INDIRECT(\"'\" & Setup!$AH$8 & \"'!\" & AE74),0) + IF(Setup!$AH$9<>\"\",INDIRECT(\"'\" & Setup!$AH$9 & \"'!\" & AE74),0) + IF(Setup!$AH$10<>\"\",INDIRECT(\"'\" & Setup!$AH$10 & \"'!\" & AE74),0) + IF(Setup!$AH$11<>\"\",INDIRECT(\"'\" & Setup!$AH$11 & \"'!\" & AE74),0) + IF(Setup!$AH$12<>\"\",INDIRECT(\"'\" & Setup!$AH$12 & \"'!\" & AE74),0)","v":0},{"$f":"IF(Setup!$AI$7<>\"\",INDIRECT(\"'\" & Setup!$AI$7 & \"'!\" & AD74),0) + IF(Setup!$AI$8<>\"\",INDIRECT(\"'\" & Setup!$AI$8 & \"'!\" & AD74),0) + IF(Setup!$AI$9<>\"\",INDIRECT(\"'\" & Setup!$AI$9 & \"'!\" & AD74),0) + IF(Setup!$AI$10<>\"\",INDIRECT(\"'\" & Setup!$AI$10 & \"'!\" & AD74),0) + IF(Setup!$AI$11<>\"\",INDIRECT(\"'\" & Setup!$AI$11 & \"'!\" & AD74),0) + IF(Setup!$AI$12<>\"\",INDIRECT(\"'\" & Setup!$AI$12 & \"'!\" & AD74),0)","v":0},{"$f":"IF(Setup!$AI$7<>\"\",INDIRECT(\"'\" & Setup!$AI$7 & \"'!\" & AE74),0) + IF(Setup!$AI$8<>\"\",INDIRECT(\"'\" & Setup!$AI$8 & \"'!\" & AE74),0) + IF(Setup!$AI$9<>\"\",INDIRECT(\"'\" & Setup!$AI$9 & \"'!\" & AE74),0) + IF(Setup!$AI$10<>\"\",INDIRECT(\"'\" & Setup!$AI$10 & \"'!\" & AE74),0) + IF(Setup!$AI$11<>\"\",INDIRECT(\"'\" & Setup!$AI$11 & \"'!\" & AE74),0) + IF(Setup!$AI$12<>\"\",INDIRECT(\"'\" & Setup!$AI$12 & \"'!\" & AE74),0)","v":0},{"$f":"IF(Setup!$AJ$7<>\"\",INDIRECT(\"'\" & Setup!$AJ$7 & \"'!\" & AD74),0) + IF(Setup!$AJ$8<>\"\",INDIRECT(\"'\" & Setup!$AJ$8 & \"'!\" & AD74),0) + IF(Setup!$AJ$9<>\"\",INDIRECT(\"'\" & Setup!$AJ$9 & \"'!\" & AD74),0) + IF(Setup!$AJ$10<>\"\",INDIRECT(\"'\" & Setup!$AJ$10 & \"'!\" & AD74),0) + IF(Setup!$AJ$11<>\"\",INDIRECT(\"'\" & Setup!$AJ$11 & \"'!\" & AD74),0) + IF(Setup!$AJ$12<>\"\",INDIRECT(\"'\" & Setup!$AJ$12 & \"'!\" & AD74),0)","v":0},{"$f":"IF(Setup!$AJ$7<>\"\",INDIRECT(\"'\" & Setup!$AJ$7 & \"'!\" & AE74),0) + IF(Setup!$AJ$8<>\"\",INDIRECT(\"'\" & Setup!$AJ$8 & \"'!\" & AE74),0) + IF(Setup!$AJ$9<>\"\",INDIRECT(\"'\" & Setup!$AJ$9 & \"'!\" & AE74),0) + IF(Setup!$AJ$10<>\"\",INDIRECT(\"'\" & Setup!$AJ$10 & \"'!\" & AE74),0) + IF(Setup!$AJ$11<>\"\",INDIRECT(\"'\" & Setup!$AJ$11 & \"'!\" & AE74),0) + IF(Setup!$AJ$12<>\"\",INDIRECT(\"'\" & Setup!$AJ$12 & \"'!\" & AE74),0)","v":0}]
[{"$f":"Planning!A58","v":"I050"},{"$f":"Planning!B58","v":0},{"$f":"Planning!C58","v":0},{"$f":"Planning!D58","v":0},{"$f":"Planning!E58","v":0},{"$f":"Planning!G58","v":0},null,0,0,{"$f":"IF(AND($AR75=\"2\",$AB74<>Lists!$A$17),AU75,AT75)","v":""},"",0,0,{"$f":"IF(AND($AR75=\"2\",$AB75<>Lists!$A$17),AW75,AV75)","v":""},"",0,0,{"$f":"IF(AND($AR75=\"2\",$AB75<>Lists!$A$17),AY75,AX75)","v":""},"",0,0,{"$f":"IF(AND($AR75=\"2\",$AB75<>Lists!$A$17),BA75,AZ75)","v":""},"",0,0,{"$f":"IF(AND($AR75=\"2\",$AB75<>Lists!$A$17),BC75,BB75)","v":""},"",{"$f":"Planning!H58","v":0},"00","H74","J74","I74","",null,{"$f":"IF(Setup!$AG$7<>\"\",INDIRECT(\"'\" & Setup!$AG$7 & \"'!\" & AF75),0) + IF(Setup!$AG$8<>\"\",INDIRECT(\"'\" & Setup!$AG$8 & \"'!\" & AF75),0) + IF(Setup!$AG$9<>\"\",INDIRECT(\"'\" & Setup!$AG$9 & \"'!\" & AF75),0) + IF(Setup!$AG$10<>\"\",INDIRECT(\"'\" & Setup!$AG$10 & \"'!\" & AF75),0) + IF(Setup!$AG$11<>\"\",INDIRECT(\"'\" & Setup!$AG$11 & \"'!\" & AF75),0) + IF(Setup!$AG$12<>\"\",INDIRECT(\"'\" & Setup!$AG$12 & \"'!\" & AF75),0)","v":0},{"$f":"IF(Setup!$AH$7<>\"\",INDIRECT(\"'\" & Setup!$AH$7 & \"'!\" & AF75),0) + IF(Setup!$AH$8<>\"\",INDIRECT(\"'\" & Setup!$AH$8 & \"'!\" & AF75),0) + IF(Setup!$AH$9<>\"\",INDIRECT(\"'\" & Setup!$AH$9 & \"'!\" & AF75),0) + IF(Setup!$AH$10<>\"\",INDIRECT(\"'\" & Setup!$AH$10 & \"'!\" & AF75),0) + IF(Setup!$AH$11<>\"\",INDIRECT(\"'\" & Setup!$AH$11 & \"'!\" & AF75),0) + IF(Setup!$AH$12<>\"\",INDIRECT(\"'\" & Setup!$AH$12 & \"'!\" & AF75),0)","v":0},{"$f":"IF(Setup!$AI$7<>\"\",INDIRECT(\"'\" & Setup!$AI$7 & \"'!\" & AF75),0) + IF(Setup!$AI$8<>\"\",INDIRECT(\"'\" & Setup!$AI$8 & \"'!\" & AF75),0) + IF(Setup!$AI$9<>\"\",INDIRECT(\"'\" & Setup!$AI$9 & \"'!\" & AF75),0) + IF(Setup!$AI$10<>\"\",INDIRECT(\"'\" & Setup!$AI$10 & \"'!\" & AF75),0) + IF(Setup!$AI$11<>\"\",INDIRECT(\"'\" & Setup!$AI$11 & \"'!\" & AF75),0) + IF(Setup!$AI$12<>\"\",INDIRECT(\"'\" & Setup!$AI$12 & \"'!\" & AF75),0)","v":0},{"$f":"IF(Setup!$AJ$7<>\"\",INDIRECT(\"'\" & Setup!$AJ$7 & \"'!\" & AF75),0) + IF(Setup!$AJ$8<>\"\",INDIRECT(\"'\" & Setup!$AJ$8 & \"'!\" & AF75),0) + IF(Setup!$AJ$9<>\"\",INDIRECT(\"'\" & Setup!$AJ$9 & \"'!\" & AF75),0) + IF(Setup!$AJ$10<>\"\",INDIRECT(\"'\" & Setup!$AJ$10 & \"'!\" & AF75),0) + IF(Setup!$AJ$11<>\"\",INDIRECT(\"'\" & Setup!$AJ$11 & \"'!\" & AF75),0) + IF(Setup!$AJ$12<>\"\",INDIRECT(\"'\" & Setup!$AJ$12 & \"'!\" & AF75),0)","v":0},null,"",{"$nulls":3},{"$f":"IF(C75=0,\"\",LEFT(INDEX(Lists!$H$5:$H$49,MATCH(C75,Lists!$G$5:$G$49,0),1),1))","v":""},null,"","","","","","","","","","",{"$nulls":6},{"$f":"IF(Setup!$AG$7<>\"\",INDIRECT(\"'\" & Setup!$AG$7 & \"'!\" & AD75),0) + IF(Setup!$AG$8<>\"\",INDIRECT(\"'\" & Setup!$AG$8 & \"'!\" & AD75),0) + IF(Setup!$AG$9<>\"\",INDIRECT(\"'\" & Setup!$AG$9 & \"'!\" & AD75),0) + IF(Setup!$AG$10<>\"\",INDIRECT(\"'\" & Setup!$AG$10 & \"'!\" & AD75),0) + IF(Setup!$AG$11<>\"\",INDIRECT(\"'\" & Setup!$AG$11 & \"'!\" & AD75),0) + IF(Setup!$AG$12<>\"\",INDIRECT(\"'\" & Setup!$AG$12 & \"'!\" & AD75),0)","v":0},{"$f":"IF(Setup!$AG$7<>\"\",INDIRECT(\"'\" & Setup!$AG$7 & \"'!\" & AE75),0) + IF(Setup!$AG$8<>\"\",INDIRECT(\"'\" & Setup!$AG$8 & \"'!\" & AE75),0) + IF(Setup!$AG$9<>\"\",INDIRECT(\"'\" & Setup!$AG$9 & \"'!\" & AE75),0) + IF(Setup!$AG$10<>\"\",INDIRECT(\"'\" & Setup!$AG$10 & \"'!\" & AE75),0) + IF(Setup!$AG$11<>\"\",INDIRECT(\"'\" & Setup!$AG$11 & \"'!\" & AE75),0) + IF(Setup!$AG$12<>\"\",INDIRECT(\"'\" & Setup!$AG$12 & \"'!\" & AE75),0)","v":0},{"$f":"IF(Setup!$AH$7<>\"\",INDIRECT(\"'\" & Setup!$AH$7 & \"'!\" & AD75),0) + IF(Setup!$AH$8<>\"\",INDIRECT(\"'\" & Setup!$AH$8 & \"'!\" & AD75),0) + IF(Setup!$AH$9<>\"\",INDIRECT(\"'\" & Setup!$AH$9 & \"'!\" & AD75),0) + IF(Setup!$AH$10<>\"\",INDIRECT(\"'\" & Setup!$AH$10 & \"'!\" & AD75),0) + IF(Setup!$AH$11<>\"\",INDIRECT(\"'\" & Setup!$AH$11 & \"'!\" & AD75),0) + IF(Setup!$AH$12<>\"\",INDIRECT(\"'\" & Setup!$AH$12 & \"'!\" & AD75),0)","v":0},{"$f":"IF(Setup!$AH$7<>\"\",INDIRECT(\"'\" & Setup!$AH$7 & \"'!\" & AE75),0) + IF(Setup!$AH$8<>\"\",INDIRECT(\"'\" & Setup!$AH$8 & \"'!\" & AE75),0) + IF(Setup!$AH$9<>\"\",INDIRECT(\"'\" & Setup!$AH$9 & \"'!\" & AE75),0) + IF(Setup!$AH$10<>\"\",INDIRECT(\"'\" & Setup!$AH$10 & \"'!\" & AE75),0) + IF(Setup!$AH$11<>\"\",INDIRECT(\"'\" & Setup!$AH$11 & \"'!\" & AE75),0) + IF(Setup!$AH$12<>\"\",INDIRECT(\"'\" & Setup!$AH$12 & \"'!\" & AE75),0)","v":0},{"$f":"IF(Setup!$AI$7<>\"\",INDIRECT(\"'\" & Setup!$AI$7 & \"'!\" & AD75),0) + IF(Setup!$AI$8<>\"\",INDIRECT(\"'\" & Setup!$AI$8 & \"'!\" & AD75),0) + IF(Setup!$AI$9<>\"\",INDIRECT(\"'\" & Setup!$AI$9 & \"'!\" & AD75),0) + IF(Setup!$AI$10<>\"\",INDIRECT(\"'\" & Setup!$AI$10 & \"'!\" & AD75),0) + IF(Setup!$AI$11<>\"\",INDIRECT(\"'\" & Setup!$AI$11 & \"'!\" & AD75),0) + IF(Setup!$AI$12<>\"\",INDIRECT(\"'\" & Setup!$AI$12 & \"'!\" & AD75),0)","v":0},{"$f":"IF(Setup!$AI$7<>\"\",INDIRECT(\"'\" & Setup!$AI$7 & \"'!\" & AE75),0) + IF(Setup!$AI$8<>\"\",INDIRECT(\"'\" & Setup!$AI$8 & \"'!\" & AE75),0) + IF(Setup!$AI$9<>\"\",INDIRECT(\"'\" & Setup!$AI$9 & \"'!\" & AE75),0) + IF(Setup!$AI$10<>\"\",INDIRECT(\"'\" & Setup!$AI$10 & \"'!\" & AE75),0) + IF(Setup!$AI$11<>\"\",INDIRECT(\"'\" & Setup!$AI$11 & \"'!\" & AE75),0) + IF(Setup!$AI$12<>\"\",INDIRECT(\"'\" & Setup!$AI$12 & \"'!\" & AE75),0)","v":0},{"$f":"IF(Setup!$AJ$7<>\"\",INDIRECT(\"'\" & Setup!$AJ$7 & \"'!\" & AD75),0) + IF(Setup!$AJ$8<>\"\",INDIRECT(\"'\" & Setup!$AJ$8 & \"'!\" & AD75),0) + IF(Setup!$AJ$9<>\"\",INDIRECT(\"'\" & Setup!$AJ$9 & \"'!\" & AD75),0) + IF(Setup!$AJ$10<>\"\",INDIRECT(\"'\" & Setup!$AJ$10 & \"'!\" & AD75),0) + IF(Setup!$AJ$11<>\"\",INDIRECT(\"'\" & Setup!$AJ$11 & \"'!\" & AD75),0) + IF(Setup!$AJ$12<>\"\",INDIRECT(\"'\" & Setup!$AJ$12 & \"'!\" & AD75),0)","v":0},{"$f":"IF(Setup!$AJ$7<>\"\",INDIRECT(\"'\" & Setup!$AJ$7 & \"'!\" & AE75),0) + IF(Setup!$AJ$8<>\"\",INDIRECT(\"'\" & Setup!$AJ$8 & \"'!\" & AE75),0) + IF(Setup!$AJ$9<>\"\",INDIRECT(\"'\" & Setup!$AJ$9 & \"'!\" & AE75),0) + IF(Setup!$AJ$10<>\"\",INDIRECT(\"'\" & Setup!$AJ$10 & \"'!\" & AE75),0) + IF(Setup!$AJ$11<>\"\",INDIRECT(\"'\" & Setup!$AJ$11 & \"'!\" & AE75),0) + IF(Setup!$AJ$12<>\"\",INDIRECT(\"'\" & Setup!$AJ$12 & \"'!\" & AE75),0)","v":0}]
[{"$f":"Planning!A59","v":"I051"},{"$f":"Planning!B59","v":0},{"$f":"Planning!C59","v":0},{"$f":"Planning!D59","v":0},{"$f":"Planning!E59","v":0},{"$f":"Planning!G59","v":0},null,0,0,{"$f":"IF(AND($AR76=\"2\",$AB75<>Lists!$A$17),AU76,AT76)","v":""},"",0,0,{"$f":"IF(AND($AR76=\"2\",$AB76<>Lists!$A$17),AW76,AV76)","v":""},"",0,0,{"$f":"IF(AND($AR76=\"2\",$AB76<>Lists!$A$17),AY76,AX76)","v":""},"",0,0,{"$f":"IF(AND($AR76=\"2\",$AB76<>Lists!$A$17),BA76,AZ76)","v":""},"",0,0,{"$f":"IF(AND($AR76=\"2\",$AB76<>Lists!$A$17),BC76,BB76)","v":""},"",{"$f":"Planning!H59","v":0},"00","H75","J75","I75","",null,{"$f":"IF(Setup!$AG$7<>\"\",INDIRECT(\"'\" & Setup!$AG$7 & \"'!\" & AF76),0) + IF(Setup!$AG$8<>\"\",INDIRECT(\"'\" & Setup!$AG$8 & \"'!\" & AF76),0) + IF(Setup!$AG$9<>\"\",INDIRECT(\"'\" & Setup!$AG$9 & \"'!\" & AF76),0) + IF(Setup!$AG$10<>\"\",INDIRECT(\"'\" & Setup!$AG$10 & \"'!\" & AF76),0) + IF(Setup!$AG$11<>\"\",INDIRECT(\"'\" & Setup!$AG$11 & \"'!\" & AF76),0) + IF(Setup!$AG$12<>\"\",INDIRECT(\"'\" & Setup!$AG$12 & \"'!\" & AF76),0)","v":0},{"$f":"IF(Setup!$AH$7<>\"\",INDIRECT(\"'\" & Setup!$AH$7 & \"'!\" & AF76),0) + IF(Setup!$AH$8<>\"\",INDIRECT(\"'\" & Setup!$AH$8 & \"'!\" & AF76),0) + IF(Setup!$AH$9<>\"\",INDIRECT(\"'\" & Setup!$AH$9 & \"'!\" & AF76),0) + IF(Setup!$AH$10<>\"\",INDIRECT(\"'\" & Setup!$AH$10 & \"'!\" & AF76),0) + IF(Setup!$AH$11<>\"\",INDIRECT(\"'\" & Setup!$AH$11 & \"'!\" & AF76),0) + IF(Setup!$AH$12<>\"\",INDIRECT(\"'\" & Setup!$AH$12 & \"'!\" & AF76),0)","v":0},{"$f":"IF(Setup!$AI$7<>\"\",INDIRECT(\"'\" & Setup!$AI$7 & \"'!\" & AF76),0) + IF(Setup!$AI$8<>\"\",INDIRECT(\"'\" & Setup!$AI$8 & \"'!\" & AF76),0) + IF(Setup!$AI$9<>\"\",INDIRECT(\"'\" & Setup!$AI$9 & \"'!\" & AF76),0) + IF(Setup!$AI$10<>\"\",INDIRECT(\"'\" & Setup!$AI$10 & \"'!\" & AF76),0) + IF(Setup!$AI$11<>\"\",INDIRECT(\"'\" & Setup!$AI$11 & \"'!\" & AF76),0) + IF(Setup!$AI$12<>\"\",INDIRECT(\"'\" & Setup!$AI$12 & \"'!\" & AF76),0)","v":0},{"$f":"IF(Setup!$AJ$7<>\"\",INDIRECT(\"'\" & Setup!$AJ$7 & \"'!\" & AF76),0) + IF(Setup!$AJ$8<>\"\",INDIRECT(\"'\" & Setup!$AJ$8 & \"'!\" & AF76),0) + IF(Setup!$AJ$9<>\"\",INDIRECT(\"'\" & Setup!$AJ$9 & \"'!\" & AF76),0) + IF(Setup!$AJ$10<>\"\",INDIRECT(\"'\" & Setup!$AJ$10 & \"'!\" & AF76),0) + IF(Setup!$AJ$11<>\"\",INDIRECT(\"'\" & Setup!$AJ$11 & \"'!\" & AF76),0) + IF(Setup!$AJ$12<>\"\",INDIRECT(\"'\" & Setup!$AJ$12 & \"'!\" & AF76),0)","v":0},null,"",{"$nulls":3},{"$f":"IF(C76=0,\"\",LEFT(INDEX(Lists!$H$5:$H$49,MATCH(C76,Lists!$G$5:$G$49,0),1),1))","v":""},null,"","","","","","","","","","",{"$nulls":6},{"$f":"IF(Setup!$AG$7<>\"\",INDIRECT(\"'\" & Setup!$AG$7 & \"'!\" & AD76),0) + IF(Setup!$AG$8<>\"\",INDIRECT(\"'\" & Setup!$AG$8 & \"'!\" & AD76),0) + IF(Setup!$AG$9<>\"\",INDIRECT(\"'\" & Setup!$AG$9 & \"'!\" & AD76),0) + IF(Setup!$AG$10<>\"\",INDIRECT(\"'\" & Setup!$AG$10 & \"'!\" & AD76),0) + IF(Setup!$AG$11<>\"\",INDIRECT(\"'\" & Setup!$AG$11 & \"'!\" & AD76),0) + IF(Setup!$AG$12<>\"\",INDIRECT(\"'\" & Setup!$AG$12 & \"'!\" & AD76),0)","v":0},{"$f":"IF(Setup!$AG$7<>\"\",INDIRECT(\"'\" & Setup!$AG$7 & \"'!\" & AE76),0) + IF(Setup!$AG$8<>\"\",INDIRECT(\"'\" & Setup!$AG$8 & \"'!\" & AE76),0) + IF(Setup!$AG$9<>\"\",INDIRECT(\"'\" & Setup!$AG$9 & \"'!\" & AE76),0) + IF(Setup!$AG$10<>\"\",INDIRECT(\"'\" & Setup!$AG$10 & \"'!\" & AE76),0) + IF(Setup!$AG$11<>\"\",INDIRECT(\"'\" & Setup!$AG$11 & \"'!\" & AE76),0) + IF(Setup!$AG$12<>\"\",INDIRECT(\"'\" & Setup!$AG$12 & \"'!\" & AE76),0)","v":0},{"$f":"IF(Setup!$AH$7<>\"\",INDIRECT(\"'\" & Setup!$AH$7 & \"'!\" & AD76),0) + IF(Setup!$AH$8<>\"\",INDIRECT(\"'\" & Setup!$AH$8 & \"'!\" & AD76),0) + IF(Setup!$AH$9<>\"\",INDIRECT(\"'\" & Setup!$AH$9 & \"'!\" & AD76),0) + IF(Setup!$AH$10<>\"\",INDIRECT(\"'\" & Setup!$AH$10 & \"'!\" & AD76),0) + IF(Setup!$AH$11<>\"\",INDIRECT(\"'\" & Setup!$AH$11 & \"'!\" & AD76),0) + IF(Setup!$AH$12<>\"\",INDIRECT(\"'\" & Setup!$AH$12 & \"'!\" & AD76),0)","v":0},{"$f":"IF(Setup!$AH$7<>\"\",INDIRECT(\"'\" & Setup!$AH$7 & \"'!\" & AE76),0) + IF(Setup!$AH$8<>\"\",INDIRECT(\"'\" & Setup!$AH$8 & \"'!\" & AE76),0) + IF(Setup!$AH$9<>\"\",INDIRECT(\"'\" & Setup!$AH$9 & \"'!\" & AE76),0) + IF(Setup!$AH$10<>\"\",INDIRECT(\"'\" & Setup!$AH$10 & \"'!\" & AE76),0) + IF(Setup!$AH$11<>\"\",INDIRECT(\"'\" & Setup!$AH$11 & \"'!\" & AE76),0) + IF(Setup!$AH$12<>\"\",INDIRECT(\"'\" & Setup!$AH$12 & \"'!\" & AE76),0)","v":0},{"$f":"IF(Setup!$AI$7<>\"\",INDIRECT(\"'\" & Setup!$AI$7 & \"'!\" & AD76),0) + IF(Setup!$AI$8<>\"\",INDIRECT(\"'\" & Setup!$AI$8 & \"'!\" & AD76),0) + IF(Setup!$AI$9<>\"\",INDIRECT(\"'\" & Setup!$AI$9 & \"'!\" & AD76),0) + IF(Setup!$AI$10<>\"\",INDIRECT(\"'\" & Setup!$AI$10 & \"'!\" & AD76),0) + IF(Setup!$AI$11<>\"\",INDIRECT(\"'\" & Setup!$AI$11 & \"'!\" & AD76),0) + IF(Setup!$AI$12<>\"\",INDIRECT(\"'\" & Setup!$AI$12 & \"'!\" & AD76),0)","v":0},{"$f":"IF(Setup!$AI$7<>\"\",INDIRECT(\"'\" & Setup!$AI$7 & \"'!\" & AE76),0) + IF(Setup!$AI$8<>\"\",INDIRECT(\"'\" & Setup!$AI$8 & \"'!\" & AE76),0) + IF(Setup!$AI$9<>\"\",INDIRECT(\"'\" & Setup!$AI$9 & \"'!\" & AE76),0) + IF(Setup!$AI$10<>\"\",INDIRECT(\"'\" & Setup!$AI$10 & \"'!\" & AE76),0) + IF(Setup!$AI$11<>\"\",INDIRECT(\"'\" & Setup!$AI$11 & \"'!\" & AE76),0) + IF(Setup!$AI$12<>\"\",INDIRECT(\"'\" & Setup!$AI$12 & \"'!\" & AE76),0)","v":0},{"$f":"IF(Setup!$AJ$7<>\"\",INDIRECT(\"'\" & Setup!$AJ$7 & \"'!\" & AD76),0) + IF(Setup!$AJ$8<>\"\",INDIRECT(\"'\" & Setup!$AJ$8 & \"'!\" & AD76),0) + IF(Setup!$AJ$9<>\"\",INDIRECT(\"'\" & Setup!$AJ$9 & \"'!\" & AD76),0) + IF(Setup!$AJ$10<>\"\",INDIRECT(\"'\" & Setup!$AJ$10 & \"'!\" & AD76),0) + IF(Setup!$AJ$11<>\"\",INDIRECT(\"'\" & Setup!$AJ$11 & \"'!\" & AD76),0) + IF(Setup!$AJ$12<>\"\",INDIRECT(\"'\" & Setup!$AJ$12 & \"'!\" & AD76),0)","v":0},{"$f":"IF(Setup!$AJ$7<>\"\",INDIRECT(\"'\" & Setup!$AJ$7 & \"'!\" & AE76),0) + IF(Setup!$AJ$8<>\"\",INDIRECT(\"'\" & Setup!$AJ$8 & \"'!\" & AE76),0) + IF(Setup!$AJ$9<>\"\",INDIRECT(\"'\" & Setup!$AJ$9 & \"'!\" & AE76),0) + IF(Setup!$AJ$10<>\"\",INDIRECT(\"'\" & Setup!$AJ$10 & \"'!\" & AE76),0) + IF(Setup!$AJ$11<>\"\",INDIRECT(\"'\" & Setup!$AJ$11 & \"'!\" & AE76),0) + IF(Setup!$AJ$12<>\"\",INDIRECT(\"'\" & Setup!$AJ$12 & \"'!\" & AE76),0)","v":0}]
[{"$f":"Planning!A60","v":"I052"},{"$f":"Planning!B60","v":0},{"$f":"Planning!C60","v":0},{"$f":"Planning!D60","v":0},{"$f":"Planning!E60","v":0},{"$f":"Planning!G60","v":0},null,0,0,{"$f":"IF(AND($AR77=\"2\",$AB76<>Lists!$A$17),AU77,AT77)","v":""},"",0,0,{"$f":"IF(AND($AR77=\"2\",$AB77<>Lists!$A$17),AW77,AV77)","v":""},"",0,0,{"$f":"IF(AND($AR77=\"2\",$AB77<>Lists!$A$17),AY77,AX77)","v":""},"",0,0,{"$f":"IF(AND($AR77=\"2\",$AB77<>Lists!$A$17),BA77,AZ77)","v":""},"",0,0,{"$f":"IF(AND($AR77=\"2\",$AB77<>Lists!$A$17),BC77,BB77)","v":""},"",{"$f":"Planning!H60","v":0},"00","H76","J76","I76","",null,{"$f":"IF(Setup!$AG$7<>\"\",INDIRECT(\"'\" & Setup!$AG$7 & \"'!\" & AF77),0) + IF(Setup!$AG$8<>\"\",INDIRECT(\"'\" & Setup!$AG$8 & \"'!\" & AF77),0) + IF(Setup!$AG$9<>\"\",INDIRECT(\"'\" & Setup!$AG$9 & \"'!\" & AF77),0) + IF(Setup!$AG$10<>\"\",INDIRECT(\"'\" & Setup!$AG$10 & \"'!\" & AF77),0) + IF(Setup!$AG$11<>\"\",INDIRECT(\"'\" & Setup!$AG$11 & \"'!\" & AF77),0) + IF(Setup!$AG$12<>\"\",INDIRECT(\"'\" & Setup!$AG$12 & \"'!\" & AF77),0)","v":0},{"$f":"IF(Setup!$AH$7<>\"\",INDIRECT(\"'\" & Setup!$AH$7 & \"'!\" & AF77),0) + IF(Setup!$AH$8<>\"\",INDIRECT(\"'\" & Setup!$AH$8 & \"'!\" & AF77),0) + IF(Setup!$AH$9<>\"\",INDIRECT(\"'\" & Setup!$AH$9 & \"'!\" & AF77),0) + IF(Setup!$AH$10<>\"\",INDIRECT(\"'\" & Setup!$AH$10 & \"'!\" & AF77),0) + IF(Setup!$AH$11<>\"\",INDIRECT(\"'\" & Setup!$AH$11 & \"'!\" & AF77),0) + IF(Setup!$AH$12<>\"\",INDIRECT(\"'\" & Setup!$AH$12 & \"'!\" & AF77),0)","v":0},{"$f":"IF(Setup!$AI$7<>\"\",INDIRECT(\"'\" & Setup!$AI$7 & \"'!\" & AF77),0) + IF(Setup!$AI$8<>\"\",INDIRECT(\"'\" & Setup!$AI$8 & \"'!\" & AF77),0) + IF(Setup!$AI$9<>\"\",INDIRECT(\"'\" & Setup!$AI$9 & \"'!\" & AF77),0) + IF(Setup!$AI$10<>\"\",INDIRECT(\"'\" & Setup!$AI$10 & \"'!\" & AF77),0) + IF(Setup!$AI$11<>\"\",INDIRECT(\"'\" & Setup!$AI$11 & \"'!\" & AF77),0) + IF(Setup!$AI$12<>\"\",INDIRECT(\"'\" & Setup!$AI$12 & \"'!\" & AF77),0)","v":0},{"$f":"IF(Setup!$AJ$7<>\"\",INDIRECT(\"'\" & Setup!$AJ$7 & \"'!\" & AF77),0) + IF(Setup!$AJ$8<>\"\",INDIRECT(\"'\" & Setup!$AJ$8 & \"'!\" & AF77),0) + IF(Setup!$AJ$9<>\"\",INDIRECT(\"'\" & Setup!$AJ$9 & \"'!\" & AF77),0) + IF(Setup!$AJ$10<>\"\",INDIRECT(\"'\" & Setup!$AJ$10 & \"'!\" & AF77),0) + IF(Setup!$AJ$11<>\"\",INDIRECT(\"'\" & Setup!$AJ$11 & \"'!\" & AF77),0) + IF(Setup!$AJ$12<>\"\",INDIRECT(\"'\" & Setup!$AJ$12 & \"'!\" & AF77),0)","v":0},null,"",{"$nulls":3},{"$f":"IF(C77=0,\"\",LEFT(INDEX(Lists!$H$5:$H$49,MATCH(C77,Lists!$G$5:$G$49,0),1),1))","v":""},null,"","","","","","","","","","",{"$nulls":6},{"$f":"IF(Setup!$AG$7<>\"\",INDIRECT(\"'\" & Setup!$AG$7 & \"'!\" & AD77),0) + IF(Setup!$AG$8<>\"\",INDIRECT(\"'\" & Setup!$AG$8 & \"'!\" & AD77),0) + IF(Setup!$AG$9<>\"\",INDIRECT(\"'\" & Setup!$AG$9 & \"'!\" & AD77),0) + IF(Setup!$AG$10<>\"\",INDIRECT(\"'\" & Setup!$AG$10 & \"'!\" & AD77),0) + IF(Setup!$AG$11<>\"\",INDIRECT(\"'\" & Setup!$AG$11 & \"'!\" & AD77),0) + IF(Setup!$AG$12<>\"\",INDIRECT(\"'\" & Setup!$AG$12 & \"'!\" & AD77),0)","v":0},{"$f":"IF(Setup!$AG$7<>\"\",INDIRECT(\"'\" & Setup!$AG$7 & \"'!\" & AE77),0) + IF(Setup!$AG$8<>\"\",INDIRECT(\"'\" & Setup!$AG$8 & \"'!\" & AE77),0) + IF(Setup!$AG$9<>\"\",INDIRECT(\"'\" & Setup!$AG$9 & \"'!\" & AE77),0) + IF(Setup!$AG$10<>\"\",INDIRECT(\"'\" & Setup!$AG$10 & \"'!\" & AE77),0) + IF(Setup!$AG$11<>\"\",INDIRECT(\"'\" & Setup!$AG$11 & \"'!\" & AE77),0) + IF(Setup!$AG$12<>\"\",INDIRECT(\"'\" & Setup!$AG$12 & \"'!\" & AE77),0)","v":0},{"$f":"IF(Setup!$AH$7<>\"\",INDIRECT(\"'\" & Setup!$AH$7 & \"'!\" & AD77),0) + IF(Setup!$AH$8<>\"\",INDIRECT(\"'\" & Setup!$AH$8 & \"'!\" & AD77),0) + IF(Setup!$AH$9<>\"\",INDIRECT(\"'\" & Setup!$AH$9 & \"'!\" & AD77),0) + IF(Setup!$AH$10<>\"\",INDIRECT(\"'\" & Setup!$AH$10 & \"'!\" & AD77),0) + IF(Setup!$AH$11<>\"\",INDIRECT(\"'\" & Setup!$AH$11 & \"'!\" & AD77),0) + IF(Setup!$AH$12<>\"\",INDIRECT(\"'\" & Setup!$AH$12 & \"'!\" & AD77),0)","v":0},{"$f":"IF(Setup!$AH$7<>\"\",INDIRECT(\"'\" & Setup!$AH$7 & \"'!\" & AE77),0) + IF(Setup!$AH$8<>\"\",INDIRECT(\"'\" & Setup!$AH$8 & \"'!\" & AE77),0) + IF(Setup!$AH$9<>\"\",INDIRECT(\"'\" & Setup!$AH$9 & \"'!\" & AE77),0) + IF(Setup!$AH$10<>\"\",INDIRECT(\"'\" & Setup!$AH$10 & \"'!\" & AE77),0) + IF(Setup!$AH$11<>\"\",INDIRECT(\"'\" & Setup!$AH$11 & \"'!\" & AE77),0) + IF(Setup!$AH$12<>\"\",INDIRECT(\"'\" & Setup!$AH$12 & \"'!\" & AE77),0)","v":0},{"$f":"IF(Setup!$AI$7<>\"\",INDIRECT(\"'\" & Setup!$AI$7 & \"'!\" & AD77),0) + IF(Setup!$AI$8<>\"\",INDIRECT(\"'\" & Setup!$AI$8 & \"'!\" & AD77),0) + IF(Setup!$AI$9<>\"\",INDIRECT(\"'\" & Setup!$AI$9 & \"'!\" & AD77),0) + IF(Setup!$AI$10<>\"\",INDIRECT(\"'\" & Setup!$AI$10 & \"'!\" & AD77),0) + IF(Setup!$AI$11<>\"\",INDIRECT(\"'\" & Setup!$AI$11 & \"'!\" & AD77),0) + IF(Setup!$AI$12<>\"\",INDIRECT(\"'\" & Setup!$AI$12 & \"'!\" & AD77),0)","v":0},{"$f":"IF(Setup!$AI$7<>\"\",INDIRECT(\"'\" & Setup!$AI$7 & \"'!\" & AE77),0) + IF(Setup!$AI$8<>\"\",INDIRECT(\"'\" & Setup!$AI$8 & \"'!\" & AE77),0) + IF(Setup!$AI$9<>\"\",INDIRECT(\"'\" & Setup!$AI$9 & \"'!\" & AE77),0) + IF(Setup!$AI$10<>\"\",INDIRECT(\"'\" & Setup!$AI$10 & \"'!\" & AE77),0) + IF(Setup!$AI$11<>\"\",INDIRECT(\"'\" & Setup!$AI$11 & \"'!\" & AE77),0) + IF(Setup!$AI$12<>\"\",INDIRECT(\"'\" & Setup!$AI$12 & \"'!\" & AE77),0)","v":0},{"$f":"IF(Setup!$AJ$7<>\"\",INDIRECT(\"'\" & Setup!$AJ$7 & \"'!\" & AD77),0) + IF(Setup!$AJ$8<>\"\",INDIRECT(\"'\" & Setup!$AJ$8 & \"'!\" & AD77),0) + IF(Setup!$AJ$9<>\"\",INDIRECT(\"'\" & Setup!$AJ$9 & \"'!\" & AD77),0) + IF(Setup!$AJ$10<>\"\",INDIRECT(\"'\" & Setup!$AJ$10 & \"'!\" & AD77),0) + IF(Setup!$AJ$11<>\"\",INDIRECT(\"'\" & Setup!$AJ$11 & \"'!\" & AD77),0) + IF(Setup!$AJ$12<>\"\",INDIRECT(\"'\" & Setup!$AJ$12 & \"'!\" & AD77),0)","v":0},{"$f":"IF(Setup!$AJ$7<>\"\",INDIRECT(\"'\" & Setup!$AJ$7 & \"'!\" & AE77),0) + IF(Setup!$AJ$8<>\"\",INDIRECT(\"'\" & Setup!$AJ$8 & \"'!\" & AE77),0) + IF(Setup!$AJ$9<>\"\",INDIRECT(\"'\" & Setup!$AJ$9 & \"'!\" & AE77),0) + IF(Setup!$AJ$10<>\"\",INDIRECT(\"'\" & Setup!$AJ$10 & \"'!\" & AE77),0) + IF(Setup!$AJ$11<>\"\",INDIRECT(\"'\" & Setup!$AJ$11 & \"'!\" & AE77),0) + IF(Setup!$AJ$12<>\"\",INDIRECT(\"'\" & Setup!$AJ$12 & \"'!\" & AE77),0)","v":0}]
[{"$f":"Planning!A61","v":"I053"},{"$f":"Planning!B61","v":0},{"$f":"Planning!C61","v":0},{"$f":"Planning!D61","v":0},{"$f":"Planning!E61","v":0},{"$f":"Planning!G61","v":0},null,0,0,{"$f":"IF(AND($AR78=\"2\",$AB77<>Lists!$A$17),AU78,AT78)","v":""},"",0,0,{"$f":"IF(AND($AR78=\"2\",$AB78<>Lists!$A$17),AW78,AV78)","v":""},"",0,0,{"$f":"IF(AND($AR78=\"2\",$AB78<>Lists!$A$17),AY78,AX78)","v":""},"",0,0,{"$f":"IF(AND($AR78=\"2\",$AB78<>Lists!$A$17),BA78,AZ78)","v":""},"",0,0,{"$f":"IF(AND($AR78=\"2\",$AB78<>Lists!$A$17),BC78,BB78)","v":""},"",{"$f":"Planning!H61","v":0},"00","H77","J77","I77","",null,{"$f":"IF(Setup!$AG$7<>\"\",INDIRECT(\"'\" & Setup!$AG$7 & \"'!\" & AF78),0) + IF(Setup!$AG$8<>\"\",INDIRECT(\"'\" & Setup!$AG$8 & \"'!\" & AF78),0) + IF(Setup!$AG$9<>\"\",INDIRECT(\"'\" & Setup!$AG$9 & \"'!\" & AF78),0) + IF(Setup!$AG$10<>\"\",INDIRECT(\"'\" & Setup!$AG$10 & \"'!\" & AF78),0) + IF(Setup!$AG$11<>\"\",INDIRECT(\"'\" & Setup!$AG$11 & \"'!\" & AF78),0) + IF(Setup!$AG$12<>\"\",INDIRECT(\"'\" & Setup!$AG$12 & \"'!\" & AF78),0)","v":0},{"$f":"IF(Setup!$AH$7<>\"\",INDIRECT(\"'\" & Setup!$AH$7 & \"'!\" & AF78),0) + IF(Setup!$AH$8<>\"\",INDIRECT(\"'\" & Setup!$AH$8 & \"'!\" & AF78),0) + IF(Setup!$AH$9<>\"\",INDIRECT(\"'\" & Setup!$AH$9 & \"'!\" & AF78),0) + IF(Setup!$AH$10<>\"\",INDIRECT(\"'\" & Setup!$AH$10 & \"'!\" & AF78),0) + IF(Setup!$AH$11<>\"\",INDIRECT(\"'\" & Setup!$AH$11 & \"'!\" & AF78),0) + IF(Setup!$AH$12<>\"\",INDIRECT(\"'\" & Setup!$AH$12 & \"'!\" & AF78),0)","v":0},{"$f":"IF(Setup!$AI$7<>\"\",INDIRECT(\"'\" & Setup!$AI$7 & \"'!\" & AF78),0) + IF(Setup!$AI$8<>\"\",INDIRECT(\"'\" & Setup!$AI$8 & \"'!\" & AF78),0) + IF(Setup!$AI$9<>\"\",INDIRECT(\"'\" & Setup!$AI$9 & \"'!\" & AF78),0) + IF(Setup!$AI$10<>\"\",INDIRECT(\"'\" & Setup!$AI$10 & \"'!\" & AF78),0) + IF(Setup!$AI$11<>\"\",INDIRECT(\"'\" & Setup!$AI$11 & \"'!\" & AF78),0) + IF(Setup!$AI$12<>\"\",INDIRECT(\"'\" & Setup!$AI$12 & \"'!\" & AF78),0)","v":0},{"$f":"IF(Setup!$AJ$7<>\"\",INDIRECT(\"'\" & Setup!$AJ$7 & \"'!\" & AF78),0) + IF(Setup!$AJ$8<>\"\",INDIRECT(\"'\" & Setup!$AJ$8 & \"'!\" & AF78),0) + IF(Setup!$AJ$9<>\"\",INDIRECT(\"'\" & Setup!$AJ$9 & \"'!\" & AF78),0) + IF(Setup!$AJ$10<>\"\",INDIRECT(\"'\" & Setup!$AJ$10 & \"'!\" & AF78),0) + IF(Setup!$AJ$11<>\"\",INDIRECT(\"'\" & Setup!$AJ$11 & \"'!\" & AF78),0) + IF(Setup!$AJ$12<>\"\",INDIRECT(\"'\" & Setup!$AJ$12 & \"'!\" & AF78),0)","v":0},null,"",{"$nulls":3},{"$f":"IF(C78=0,\"\",LEFT(INDEX(Lists!$H$5:$H$49,MATCH(C78,Lists!$G$5:$G$49,0),1),1))","v":""},null,"","","","","","","","","","",{"$nulls":6},{"$f":"IF(Setup!$AG$7<>\"\",INDIRECT(\"'\" & Setup!$AG$7 & \"'!\" & AD78),0) + IF(Setup!$AG$8<>\"\",INDIRECT(\"'\" & Setup!$AG$8 & \"'!\" & AD78),0) + IF(Setup!$AG$9<>\"\",INDIRECT(\"'\" & Setup!$AG$9 & \"'!\" & AD78),0) + IF(Setup!$AG$10<>\"\",INDIRECT(\"'\" & Setup!$AG$10 & \"'!\" & AD78),0) + IF(Setup!$AG$11<>\"\",INDIRECT(\"'\" & Setup!$AG$11 & \"'!\" & AD78),0) + IF(Setup!$AG$12<>\"\",INDIRECT(\"'\" & Setup!$AG$12 & \"'!\" & AD78),0)","v":0},{"$f":"IF(Setup!$AG$7<>\"\",INDIRECT(\"'\" & Setup!$AG$7 & \"'!\" & AE78),0) + IF(Setup!$AG$8<>\"\",INDIRECT(\"'\" & Setup!$AG$8 & \"'!\" & AE78),0) + IF(Setup!$AG$9<>\"\",INDIRECT(\"'\" & Setup!$AG$9 & \"'!\" & AE78),0) + IF(Setup!$AG$10<>\"\",INDIRECT(\"'\" & Setup!$AG$10 & \"'!\" & AE78),0) + IF(Setup!$AG$11<>\"\",INDIRECT(\"'\" & Setup!$AG$11 & \"'!\" & AE78),0) + IF(Setup!$AG$12<>\"\",INDIRECT(\"'\" & Setup!$AG$12 & \"'!\" & AE78),0)","v":0},{"$f":"IF(Setup!$AH$7<>\"\",INDIRECT(\"'\" & Setup!$AH$7 & \"'!\" & AD78),0) + IF(Setup!$AH$8<>\"\",INDIRECT(\"'\" & Setup!$AH$8 & \"'!\" & AD78),0) + IF(Setup!$AH$9<>\"\",INDIRECT(\"'\" & Setup!$AH$9 & \"'!\" & AD78),0) + IF(Setup!$AH$10<>\"\",INDIRECT(\"'\" & Setup!$AH$10 & \"'!\" & AD78),0) + IF(Setup!$AH$11<>\"\",INDIRECT(\"'\" & Setup!$AH$11 & \"'!\" & AD78),0) + IF(Setup!$AH$12<>\"\",INDIRECT(\"'\" & Setup!$AH$12 & \"'!\" & AD78),0)","v":0},{"$f":"IF(Setup!$AH$7<>\"\",INDIRECT(\"'\" & Setup!$AH$7 & \"'!\" & AE78),0) + IF(Setup!$AH$8<>\"\",INDIRECT(\"'\" & Setup!$AH$8 & \"'!\" & AE78),0) + IF(Setup!$AH$9<>\"\",INDIRECT(\"'\" & Setup!$AH$9 & \"'!\" & AE78),0) + IF(Setup!$AH$10<>\"\",INDIRECT(\"'\" & Setup!$AH$10 & \"'!\" & AE78),0) + IF(Setup!$AH$11<>\"\",INDIRECT(\"'\" & Setup!$AH$11 & \"'!\" & AE78),0) + IF(Setup!$AH$12<>\"\",INDIRECT(\"'\" & Setup!$AH$12 & \"'!\" & AE78),0)","v":0},{"$f":"IF(Setup!$AI$7<>\"\",INDIRECT(\"'\" & Setup!$AI$7 & \"'!\" & AD78),0) + IF(Setup!$AI$8<>\"\",INDIRECT(\"'\" & Setup!$AI$8 & \"'!\" & AD78),0) + IF(Setup!$AI$9<>\"\",INDIRECT(\"'\" & Setup!$AI$9 & \"'!\" & AD78),0) + IF(Setup!$AI$10<>\"\",INDIRECT(\"'\" & Setup!$AI$10 & \"'!\" & AD78),0) + IF(Setup!$AI$11<>\"\",INDIRECT(\"'\" & Setup!$AI$11 & \"'!\" & AD78),0) + IF(Setup!$AI$12<>\"\",INDIRECT(\"'\" & Setup!$AI$12 & \"'!\" & AD78),0)","v":0},{"$f":"IF(Setup!$AI$7<>\"\",INDIRECT(\"'\" & Setup!$AI$7 & \"'!\" & AE78),0) + IF(Setup!$AI$8<>\"\",INDIRECT(\"'\" & Setup!$AI$8 & \"'!\" & AE78),0) + IF(Setup!$AI$9<>\"\",INDIRECT(\"'\" & Setup!$AI$9 & \"'!\" & AE78),0) + IF(Setup!$AI$10<>\"\",INDIRECT(\"'\" & Setup!$AI$10 & \"'!\" & AE78),0) + IF(Setup!$AI$11<>\"\",INDIRECT(\"'\" & Setup!$AI$11 & \"'!\" & AE78),0) + IF(Setup!$AI$12<>\"\",INDIRECT(\"'\" & Setup!$AI$12 & \"'!\" & AE78),0)","v":0},{"$f":"IF(Setup!$AJ$7<>\"\",INDIRECT(\"'\" & Setup!$AJ$7 & \"'!\" & AD78),0) + IF(Setup!$AJ$8<>\"\",INDIRECT(\"'\" & Setup!$AJ$8 & \"'!\" & AD78),0) + IF(Setup!$AJ$9<>\"\",INDIRECT(\"'\" & Setup!$AJ$9 & \"'!\" & AD78),0) + IF(Setup!$AJ$10<>\"\",INDIRECT(\"'\" & Setup!$AJ$10 & \"'!\" & AD78),0) + IF(Setup!$AJ$11<>\"\",INDIRECT(\"'\" & Setup!$AJ$11 & \"'!\" & AD78),0) + IF(Setup!$AJ$12<>\"\",INDIRECT(\"'\" & Setup!$AJ$12 & \"'!\" & AD78),0)","v":0},{"$f":"IF(Setup!$AJ$7<>\"\",INDIRECT(\"'\" & Setup!$AJ$7 & \"'!\" & AE78),0) + IF(Setup!$AJ$8<>\"\",INDIRECT(\"'\" & Setup!$AJ$8 & \"'!\" & AE78),0) + IF(Setup!$AJ$9<>\"\",INDIRECT(\"'\" & Setup!$AJ$9 & \"'!\" & AE78),0) + IF(Setup!$AJ$10<>\"\",INDIRECT(\"'\" & Setup!$AJ$10 & \"'!\" & AE78),0) + IF(Setup!$AJ$11<>\"\",INDIRECT(\"'\" & Setup!$AJ$11 & \"'!\" & AE78),0) + IF(Setup!$AJ$12<>\"\",INDIRECT(\"'\" & Setup!$AJ$12 & \"'!\" & AE78),0)","v":0}]
[{"$f":"Planning!A62","v":"I054"},{"$f":"Planning!B62","v":0},{"$f":"Planning!C62","v":0},{"$f":"Planning!D62","v":0},{"$f":"Planning!E62","v":0},{"$f":"Planning!G62","v":0},null,0,0,{"$f":"IF(AND($AR79=\"2\",$AB78<>Lists!$A$17),AU79,AT79)","v":""},"",0,0,{"$f":"IF(AND($AR79=\"2\",$AB79<>Lists!$A$17),AW79,AV79)","v":""},"",0,0,{"$f":"IF(AND($AR79=\"2\",$AB79<>Lists!$A$17),AY79,AX79)","v":""},"",0,0,{"$f":"IF(AND($AR79=\"2\",$AB79<>Lists!$A$17),BA79,AZ79)","v":""},"",0,0,{"$f":"IF(AND($AR79=\"2\",$AB79<>Lists!$A$17),BC79,BB79)","v":""},"",{"$f":"Planning!H62","v":0},"00","H78","J78","I78","",null,{"$f":"IF(Setup!$AG$7<>\"\",INDIRECT(\"'\" & Setup!$AG$7 & \"'!\" & AF79),0) + IF(Setup!$AG$8<>\"\",INDIRECT(\"'\" & Setup!$AG$8 & \"'!\" & AF79),0) + IF(Setup!$AG$9<>\"\",INDIRECT(\"'\" & Setup!$AG$9 & \"'!\" & AF79),0) + IF(Setup!$AG$10<>\"\",INDIRECT(\"'\" & Setup!$AG$10 & \"'!\" & AF79),0) + IF(Setup!$AG$11<>\"\",INDIRECT(\"'\" & Setup!$AG$11 & \"'!\" & AF79),0) + IF(Setup!$AG$12<>\"\",INDIRECT(\"'\" & Setup!$AG$12 & \"'!\" & AF79),0)","v":0},{"$f":"IF(Setup!$AH$7<>\"\",INDIRECT(\"'\" & Setup!$AH$7 & \"'!\" & AF79),0) + IF(Setup!$AH$8<>\"\",INDIRECT(\"'\" & Setup!$AH$8 & \"'!\" & AF79),0) + IF(Setup!$AH$9<>\"\",INDIRECT(\"'\" & Setup!$AH$9 & \"'!\" & AF79),0) + IF(Setup!$AH$10<>\"\",INDIRECT(\"'\" & Setup!$AH$10 & \"'!\" & AF79),0) + IF(Setup!$AH$11<>\"\",INDIRECT(\"'\" & Setup!$AH$11 & \"'!\" & AF79),0) + IF(Setup!$AH$12<>\"\",INDIRECT(\"'\" & Setup!$AH$12 & \"'!\" & AF79),0)","v":0},{"$f":"IF(Setup!$AI$7<>\"\",INDIRECT(\"'\" & Setup!$AI$7 & \"'!\" & AF79),0) + IF(Setup!$AI$8<>\"\",INDIRECT(\"'\" & Setup!$AI$8 & \"'!\" & AF79),0) + IF(Setup!$AI$9<>\"\",INDIRECT(\"'\" & Setup!$AI$9 & \"'!\" & AF79),0) + IF(Setup!$AI$10<>\"\",INDIRECT(\"'\" & Setup!$AI$10 & \"'!\" & AF79),0) + IF(Setup!$AI$11<>\"\",INDIRECT(\"'\" & Setup!$AI$11 & \"'!\" & AF79),0) + IF(Setup!$AI$12<>\"\",INDIRECT(\"'\" & Setup!$AI$12 & \"'!\" & AF79),0)","v":0},{"$f":"IF(Setup!$AJ$7<>\"\",INDIRECT(\"'\" & Setup!$AJ$7 & \"'!\" & AF79),0) + IF(Setup!$AJ$8<>\"\",INDIRECT(\"'\" & Setup!$AJ$8 & \"'!\" & AF79),0) + IF(Setup!$AJ$9<>\"\",INDIRECT(\"'\" & Setup!$AJ$9 & \"'!\" & AF79),0) + IF(Setup!$AJ$10<>\"\",INDIRECT(\"'\" & Setup!$AJ$10 & \"'!\" & AF79),0) + IF(Setup!$AJ$11<>\"\",INDIRECT(\"'\" & Setup!$AJ$11 & \"'!\" & AF79),0) + IF(Setup!$AJ$12<>\"\",INDIRECT(\"'\" & Setup!$AJ$12 & \"'!\" & AF79),0)","v":0},null,"",{"$nulls":3},{"$f":"IF(C79=0,\"\",LEFT(INDEX(Lists!$H$5:$H$49,MATCH(C79,Lists!$G$5:$G$49,0),1),1))","v":""},null,"","","","","","","","","","",{"$nulls":6},{"$f":"IF(Setup!$AG$7<>\"\",INDIRECT(\"'\" & Setup!$AG$7 & \"'!\" & AD79),0) + IF(Setup!$AG$8<>\"\",INDIRECT(\"'\" & Setup!$AG$8 & \"'!\" & AD79),0) + IF(Setup!$AG$9<>\"\",INDIRECT(\"'\" & Setup!$AG$9 & \"'!\" & AD79),0) + IF(Setup!$AG$10<>\"\",INDIRECT(\"'\" & Setup!$AG$10 & \"'!\" & AD79),0) + IF(Setup!$AG$11<>\"\",INDIRECT(\"'\" & Setup!$AG$11 & \"'!\" & AD79),0) + IF(Setup!$AG$12<>\"\",INDIRECT(\"'\" & Setup!$AG$12 & \"'!\" & AD79),0)","v":0},{"$f":"IF(Setup!$AG$7<>\"\",INDIRECT(\"'\" & Setup!$AG$7 & \"'!\" & AE79),0) + IF(Setup!$AG$8<>\"\",INDIRECT(\"'\" & Setup!$AG$8 & \"'!\" & AE79),0) + IF(Setup!$AG$9<>\"\",INDIRECT(\"'\" & Setup!$AG$9 & \"'!\" & AE79),0) + IF(Setup!$AG$10<>\"\",INDIRECT(\"'\" & Setup!$AG$10 & \"'!\" & AE79),0) + IF(Setup!$AG$11<>\"\",INDIRECT(\"'\" & Setup!$AG$11 & \"'!\" & AE79),0) + IF(Setup!$AG$12<>\"\",INDIRECT(\"'\" & Setup!$AG$12 & \"'!\" & AE79),0)","v":0},{"$f":"IF(Setup!$AH$7<>\"\",INDIRECT(\"'\" & Setup!$AH$7 & \"'!\" & AD79),0) + IF(Setup!$AH$8<>\"\",INDIRECT(\"'\" & Setup!$AH$8 & \"'!\" & AD79),0) + IF(Setup!$AH$9<>\"\",INDIRECT(\"'\" & Setup!$AH$9 & \"'!\" & AD79),0) + IF(Setup!$AH$10<>\"\",INDIRECT(\"'\" & Setup!$AH$10 & \"'!\" & AD79),0) + IF(Setup!$AH$11<>\"\",INDIRECT(\"'\" & Setup!$AH$11 & \"'!\" & AD79),0) + IF(Setup!$AH$12<>\"\",INDIRECT(\"'\" & Setup!$AH$12 & \"'!\" & AD79),0)","v":0},{"$f":"IF(Setup!$AH$7<>\"\",INDIRECT(\"'\" & Setup!$AH$7 & \"'!\" & AE79),0) + IF(Setup!$AH$8<>\"\",INDIRECT(\"'\" & Setup!$AH$8 & \"'!\" & AE79),0) + IF(Setup!$AH$9<>\"\",INDIRECT(\"'\" & Setup!$AH$9 & \"'!\" & AE79),0) + IF(Setup!$AH$10<>\"\",INDIRECT(\"'\" & Setup!$AH$10 & \"'!\" & AE79),0) + IF(Setup!$AH$11<>\"\",INDIRECT(\"'\" & Setup!$AH$11 & \"'!\" & AE79),0) + IF(Setup!$AH$12<>\"\",INDIRECT(\"'\" & Setup!$AH$12 & \"'!\" & AE79),0)","v":0},{"$f":"IF(Setup!$AI$7<>\"\",INDIRECT(\"'\" & Setup!$AI$7 & \"'!\" & AD79),0) + IF(Setup!$AI$8<>\"\",INDIRECT(\"'\" & Setup!$AI$8 & \"'!\" & AD79),0) + IF(Setup!$AI$9<>\"\",INDIRECT(\"'\" & Setup!$AI$9 & \"'!\" & AD79),0) + IF(Setup!$AI$10<>\"\",INDIRECT(\"'\" & Setup!$AI$10 & \"'!\" & AD79),0) + IF(Setup!$AI$11<>\"\",INDIRECT(\"'\" & Setup!$AI$11 & \"'!\" & AD79),0) + IF(Setup!$AI$12<>\"\",INDIRECT(\"'\" & Setup!$AI$12 & \"'!\" & AD79),0)","v":0},{"$f":"IF(Setup!$AI$7<>\"\",INDIRECT(\"'\" & Setup!$AI$7 & \"'!\" & AE79),0) + IF(Setup!$AI$8<>\"\",INDIRECT(\"'\" & Setup!$AI$8 & \"'!\" & AE79),0) + IF(Setup!$AI$9<>\"\",INDIRECT(\"'\" & Setup!$AI$9 & \"'!\" & AE79),0) + IF(Setup!$AI$10<>\"\",INDIRECT(\"'\" & Setup!$AI$10 & \"'!\" & AE79),0) + IF(Setup!$AI$11<>\"\",INDIRECT(\"'\" & Setup!$AI$11 & \"'!\" & AE79),0) + IF(Setup!$AI$12<>\"\",INDIRECT(\"'\" & Setup!$AI$12 & \"'!\" & AE79),0)","v":0},{"$f":"IF(Setup!$AJ$7<>\"\",INDIRECT(\"'\" & Setup!$AJ$7 & \"'!\" & AD79),0) + IF(Setup!$AJ$8<>\"\",INDIRECT(\"'\" & Setup!$AJ$8 & \"'!\" & AD79),0) + IF(Setup!$AJ$9<>\"\",INDIRECT(\"'\" & Setup!$AJ$9 & \"'!\" & AD79),0) + IF(Setup!$AJ$10<>\"\",INDIRECT(\"'\" & Setup!$AJ$10 & \"'!\" & AD79),0) + IF(Setup!$AJ$11<>\"\",INDIRECT(\"'\" & Setup!$AJ$11 & \"'!\" & AD79),0) + IF(Setup!$AJ$12<>\"\",INDIRECT(\"'\" & Setup!$AJ$12 & \"'!\" & AD79),0)","v":0},{"$f":"IF(Setup!$AJ$7<>\"\",INDIRECT(\"'\" & Setup!$AJ$7 & \"'!\" & AE79),0) + IF(Setup!$AJ$8<>\"\",INDIRECT(\"'\" & Setup!$AJ$8 & \"'!\" & AE79),0) + IF(Setup!$AJ$9<>\"\",INDIRECT(\"'\" & Setup!$AJ$9 & \"'!\" & AE79),0) + IF(Setup!$AJ$10<>\"\",INDIRECT(\"'\" & Setup!$AJ$10 & \"'!\" & AE79),0) + IF(Setup!$AJ$11<>\"\",INDIRECT(\"'\" & Setup!$AJ$11 & \"'!\" & AE79),0) + IF(Setup!$AJ$12<>\"\",INDIRECT(\"'\" & Setup!$AJ$12 & \"'!\" & AE79),0)","v":0}]
[{"$f":"Planning!A63","v":"I055"},{"$f":"Planning!B63","v":0},{"$f":"Planning!C63","v":0},{"$f":"Planning!D63","v":0},{"$f":"Planning!E63","v":0},{"$f":"Planning!G63","v":0},null,0,0,{"$f":"IF(AND($AR80=\"2\",$AB79<>Lists!$A$17),AU80,AT80)","v":""},"",0,0,{"$f":"IF(AND($AR80=\"2\",$AB80<>Lists!$A$17),AW80,AV80)","v":""},"",0,0,{"$f":"IF(AND($AR80=\"2\",$AB80<>Lists!$A$17),AY80,AX80)","v":""},"",0,0,{"$f":"IF(AND($AR80=\"2\",$AB80<>Lists!$A$17),BA80,AZ80)","v":""},"",0,0,{"$f":"IF(AND($AR80=\"2\",$AB80<>Lists!$A$17),BC80,BB80)","v":""},"",{"$f":"Planning!H63","v":0},"00","H79","J79","I79","",null,{"$f":"IF(Setup!$AG$7<>\"\",INDIRECT(\"'\" & Setup!$AG$7 & \"'!\" & AF80),0) + IF(Setup!$AG$8<>\"\",INDIRECT(\"'\" & Setup!$AG$8 & \"'!\" & AF80),0) + IF(Setup!$AG$9<>\"\",INDIRECT(\"'\" & Setup!$AG$9 & \"'!\" & AF80),0) + IF(Setup!$AG$10<>\"\",INDIRECT(\"'\" & Setup!$AG$10 & \"'!\" & AF80),0) + IF(Setup!$AG$11<>\"\",INDIRECT(\"'\" & Setup!$AG$11 & \"'!\" & AF80),0) + IF(Setup!$AG$12<>\"\",INDIRECT(\"'\" & Setup!$AG$12 & \"'!\" & AF80),0)","v":0},{"$f":"IF(Setup!$AH$7<>\"\",INDIRECT(\"'\" & Setup!$AH$7 & \"'!\" & AF80),0) + IF(Setup!$AH$8<>\"\",INDIRECT(\"'\" & Setup!$AH$8 & \"'!\" & AF80),0) + IF(Setup!$AH$9<>\"\",INDIRECT(\"'\" & Setup!$AH$9 & \"'!\" & AF80),0) + IF(Setup!$AH$10<>\"\",INDIRECT(\"'\" & Setup!$AH$10 & \"'!\" & AF80),0) + IF(Setup!$AH$11<>\"\",INDIRECT(\"'\" & Setup!$AH$11 & \"'!\" & AF80),0) + IF(Setup!$AH$12<>\"\",INDIRECT(\"'\" & Setup!$AH$12 & \"'!\" & AF80),0)","v":0},{"$f":"IF(Setup!$AI$7<>\"\",INDIRECT(\"'\" & Setup!$AI$7 & \"'!\" & AF80),0) + IF(Setup!$AI$8<>\"\",INDIRECT(\"'\" & Setup!$AI$8 & \"'!\" & AF80),0) + IF(Setup!$AI$9<>\"\",INDIRECT(\"'\" & Setup!$AI$9 & \"'!\" & AF80),0) + IF(Setup!$AI$10<>\"\",INDIRECT(\"'\" & Setup!$AI$10 & \"'!\" & AF80),0) + IF(Setup!$AI$11<>\"\",INDIRECT(\"'\" & Setup!$AI$11 & \"'!\" & AF80),0) + IF(Setup!$AI$12<>\"\",INDIRECT(\"'\" & Setup!$AI$12 & \"'!\" & AF80),0)","v":0},{"$f":"IF(Setup!$AJ$7<>\"\",INDIRECT(\"'\" & Setup!$AJ$7 & \"'!\" & AF80),0) + IF(Setup!$AJ$8<>\"\",INDIRECT(\"'\" & Setup!$AJ$8 & \"'!\" & AF80),0) + IF(Setup!$AJ$9<>\"\",INDIRECT(\"'\" & Setup!$AJ$9 & \"'!\" & AF80),0) + IF(Setup!$AJ$10<>\"\",INDIRECT(\"'\" & Setup!$AJ$10 & \"'!\" & AF80),0) + IF(Setup!$AJ$11<>\"\",INDIRECT(\"'\" & Setup!$AJ$11 & \"'!\" & AF80),0) + IF(Setup!$AJ$12<>\"\",INDIRECT(\"'\" & Setup!$AJ$12 & \"'!\" & AF80),0)","v":0},null,"",{"$nulls":3},{"$f":"IF(C80=0,\"\",LEFT(INDEX(Lists!$H$5:$H$49,MATCH(C80,Lists!$G$5:$G$49,0),1),1))","v":""},null,"","","","","","","","","","",{"$nulls":6},{"$f":"IF(Setup!$AG$7<>\"\",INDIRECT(\"'\" & Setup!$AG$7 & \"'!\" & AD80),0) + IF(Setup!$AG$8<>\"\",INDIRECT(\"'\" & Setup!$AG$8 & \"'!\" & AD80),0) + IF(Setup!$AG$9<>\"\",INDIRECT(\"'\" & Setup!$AG$9 & \"'!\" & AD80),0) + IF(Setup!$AG$10<>\"\",INDIRECT(\"'\" & Setup!$AG$10 & \"'!\" & AD80),0) + IF(Setup!$AG$11<>\"\",INDIRECT(\"'\" & Setup!$AG$11 & \"'!\" & AD80),0) + IF(Setup!$AG$12<>\"\",INDIRECT(\"'\" & Setup!$AG$12 & \"'!\" & AD80),0)","v":0},{"$f":"IF(Setup!$AG$7<>\"\",INDIRECT(\"'\" & Setup!$AG$7 & \"'!\" & AE80),0) + IF(Setup!$AG$8<>\"\",INDIRECT(\"'\" & Setup!$AG$8 & \"'!\" & AE80),0) + IF(Setup!$AG$9<>\"\",INDIRECT(\"'\" & Setup!$AG$9 & \"'!\" & AE80),0) + IF(Setup!$AG$10<>\"\",INDIRECT(\"'\" & Setup!$AG$10 & \"'!\" & AE80),0) + IF(Setup!$AG$11<>\"\",INDIRECT(\"'\" & Setup!$AG$11 & \"'!\" & AE80),0) + IF(Setup!$AG$12<>\"\",INDIRECT(\"'\" & Setup!$AG$12 & \"'!\" & AE80),0)","v":0},{"$f":"IF(Setup!$AH$7<>\"\",INDIRECT(\"'\" & Setup!$AH$7 & \"'!\" & AD80),0) + IF(Setup!$AH$8<>\"\",INDIRECT(\"'\" & Setup!$AH$8 & \"'!\" & AD80),0) + IF(Setup!$AH$9<>\"\",INDIRECT(\"'\" & Setup!$AH$9 & \"'!\" & AD80),0) + IF(Setup!$AH$10<>\"\",INDIRECT(\"'\" & Setup!$AH$10 & \"'!\" & AD80),0) + IF(Setup!$AH$11<>\"\",INDIRECT(\"'\" & Setup!$AH$11 & \"'!\" & AD80),0) + IF(Setup!$AH$12<>\"\",INDIRECT(\"'\" & Setup!$AH$12 & \"'!\" & AD80),0)","v":0},{"$f":"IF(Setup!$AH$7<>\"\",INDIRECT(\"'\" & Setup!$AH$7 & \"'!\" & AE80),0) + IF(Setup!$AH$8<>\"\",INDIRECT(\"'\" & Setup!$AH$8 & \"'!\" & AE80),0) + IF(Setup!$AH$9<>\"\",INDIRECT(\"'\" & Setup!$AH$9 & \"'!\" & AE80),0) + IF(Setup!$AH$10<>\"\",INDIRECT(\"'\" & Setup!$AH$10 & \"'!\" & AE80),0) + IF(Setup!$AH$11<>\"\",INDIRECT(\"'\" & Setup!$AH$11 & \"'!\" & AE80),0) + IF(Setup!$AH$12<>\"\",INDIRECT(\"'\" & Setup!$AH$12 & \"'!\" & AE80),0)","v":0},{"$f":"IF(Setup!$AI$7<>\"\",INDIRECT(\"'\" & Setup!$AI$7 & \"'!\" & AD80),0) + IF(Setup!$AI$8<>\"\",INDIRECT(\"'\" & Setup!$AI$8 & \"'!\" & AD80),0) + IF(Setup!$AI$9<>\"\",INDIRECT(\"'\" & Setup!$AI$9 & \"'!\" & AD80),0) + IF(Setup!$AI$10<>\"\",INDIRECT(\"'\" & Setup!$AI$10 & \"'!\" & AD80),0) + IF(Setup!$AI$11<>\"\",INDIRECT(\"'\" & Setup!$AI$11 & \"'!\" & AD80),0) + IF(Setup!$AI$12<>\"\",INDIRECT(\"'\" & Setup!$AI$12 & \"'!\" & AD80),0)","v":0},{"$f":"IF(Setup!$AI$7<>\"\",INDIRECT(\"'\" & Setup!$AI$7 & \"'!\" & AE80),0) + IF(Setup!$AI$8<>\"\",INDIRECT(\"'\" & Setup!$AI$8 & \"'!\" & AE80),0) + IF(Setup!$AI$9<>\"\",INDIRECT(\"'\" & Setup!$AI$9 & \"'!\" & AE80),0) + IF(Setup!$AI$10<>\"\",INDIRECT(\"'\" & Setup!$AI$10 & \"'!\" & AE80),0) + IF(Setup!$AI$11<>\"\",INDIRECT(\"'\" & Setup!$AI$11 & \"'!\" & AE80),0) + IF(Setup!$AI$12<>\"\",INDIRECT(\"'\" & Setup!$AI$12 & \"'!\" & AE80),0)","v":0},{"$f":"IF(Setup!$AJ$7<>\"\",INDIRECT(\"'\" & Setup!$AJ$7 & \"'!\" & AD80),0) + IF(Setup!$AJ$8<>\"\",INDIRECT(\"'\" & Setup!$AJ$8 & \"'!\" & AD80),0) + IF(Setup!$AJ$9<>\"\",INDIRECT(\"'\" & Setup!$AJ$9 & \"'!\" & AD80),0) + IF(Setup!$AJ$10<>\"\",INDIRECT(\"'\" & Setup!$AJ$10 & \"'!\" & AD80),0) + IF(Setup!$AJ$11<>\"\",INDIRECT(\"'\" & Setup!$AJ$11 & \"'!\" & AD80),0) + IF(Setup!$AJ$12<>\"\",INDIRECT(\"'\" & Setup!$AJ$12 & \"'!\" & AD80),0)","v":0},{"$f":"IF(Setup!$AJ$7<>\"\",INDIRECT(\"'\" & Setup!$AJ$7 & \"'!\" & AE80),0) + IF(Setup!$AJ$8<>\"\",INDIRECT(\"'\" & Setup!$AJ$8 & \"'!\" & AE80),0) + IF(Setup!$AJ$9<>\"\",INDIRECT(\"'\" & Setup!$AJ$9 & \"'!\" & AE80),0) + IF(Setup!$AJ$10<>\"\",INDIRECT(\"'\" & Setup!$AJ$10 & \"'!\" & AE80),0) + IF(Setup!$AJ$11<>\"\",INDIRECT(\"'\" & Setup!$AJ$11 & \"'!\" & AE80),0) + IF(Setup!$AJ$12<>\"\",INDIRECT(\"'\" & Setup!$AJ$12 & \"'!\" & AE80),0)","v":0}]
[{"$f":"Planning!A64","v":"I056"},{"$f":"Planning!B64","v":0},{"$f":"Planning!C64","v":0},{"$f":"Planning!D64","v":0},{"$f":"Planning!E64","v":0},{"$f":"Planning!G64","v":0},null,0,0,{"$f":"IF(AND($AR81=\"2\",$AB80<>Lists!$A$17),AU81,AT81)","v":""},"",0,0,{"$f":"IF(AND($AR81=\"2\",$AB81<>Lists!$A$17),AW81,AV81)","v":""},"",0,0,{"$f":"IF(AND($AR81=\"2\",$AB81<>Lists!$A$17),AY81,AX81)","v":""},"",0,0,{"$f":"IF(AND($AR81=\"2\",$AB81<>Lists!$A$17),BA81,AZ81)","v":""},"",0,0,{"$f":"IF(AND($AR81=\"2\",$AB81<>Lists!$A$17),BC81,BB81)","v":""},"",{"$f":"Planning!H64","v":0},"00","H80","J80","I80","",null,{"$f":"IF(Setup!$AG$7<>\"\",INDIRECT(\"'\" & Setup!$AG$7 & \"'!\" & AF81),0) + IF(Setup!$AG$8<>\"\",INDIRECT(\"'\" & Setup!$AG$8 & \"'!\" & AF81),0) + IF(Setup!$AG$9<>\"\",INDIRECT(\"'\" & Setup!$AG$9 & \"'!\" & AF81),0) + IF(Setup!$AG$10<>\"\",INDIRECT(\"'\" & Setup!$AG$10 & \"'!\" & AF81),0) + IF(Setup!$AG$11<>\"\",INDIRECT(\"'\" & Setup!$AG$11 & \"'!\" & AF81),0) + IF(Setup!$AG$12<>\"\",INDIRECT(\"'\" & Setup!$AG$12 & \"'!\" & AF81),0)","v":0},{"$f":"IF(Setup!$AH$7<>\"\",INDIRECT(\"'\" & Setup!$AH$7 & \"'!\" & AF81),0) + IF(Setup!$AH$8<>\"\",INDIRECT(\"'\" & Setup!$AH$8 & \"'!\" & AF81),0) + IF(Setup!$AH$9<>\"\",INDIRECT(\"'\" & Setup!$AH$9 & \"'!\" & AF81),0) + IF(Setup!$AH$10<>\"\",INDIRECT(\"'\" & Setup!$AH$10 & \"'!\" & AF81),0) + IF(Setup!$AH$11<>\"\",INDIRECT(\"'\" & Setup!$AH$11 & \"'!\" & AF81),0) + IF(Setup!$AH$12<>\"\",INDIRECT(\"'\" & Setup!$AH$12 & \"'!\" & AF81),0)","v":0},{"$f":"IF(Setup!$AI$7<>\"\",INDIRECT(\"'\" & Setup!$AI$7 & \"'!\" & AF81),0) + IF(Setup!$AI$8<>\"\",INDIRECT(\"'\" & Setup!$AI$8 & \"'!\" & AF81),0) + IF(Setup!$AI$9<>\"\",INDIRECT(\"'\" & Setup!$AI$9 & \"'!\" & AF81),0) + IF(Setup!$AI$10<>\"\",INDIRECT(\"'\" & Setup!$AI$10 & \"'!\" & AF81),0) + IF(Setup!$AI$11<>\"\",INDIRECT(\"'\" & Setup!$AI$11 & \"'!\" & AF81),0) + IF(Setup!$AI$12<>\"\",INDIRECT(\"'\" & Setup!$AI$12 & \"'!\" & AF81),0)","v":0},{"$f":"IF(Setup!$AJ$7<>\"\",INDIRECT(\"'\" & Setup!$AJ$7 & \"'!\" & AF81),0) + IF(Setup!$AJ$8<>\"\",INDIRECT(\"'\" & Setup!$AJ$8 & \"'!\" & AF81),0) + IF(Setup!$AJ$9<>\"\",INDIRECT(\"'\" & Setup!$AJ$9 & \"'!\" & AF81),0) + IF(Setup!$AJ$10<>\"\",INDIRECT(\"'\" & Setup!$AJ$10 & \"'!\" & AF81),0) + IF(Setup!$AJ$11<>\"\",INDIRECT(\"'\" & Setup!$AJ$11 & \"'!\" & AF81),0) + IF(Setup!$AJ$12<>\"\",INDIRECT(\"'\" & Setup!$AJ$12 & \"'!\" & AF81),0)","v":0},null,"",{"$nulls":3},{"$f":"IF(C81=0,\"\",LEFT(INDEX(Lists!$H$5:$H$49,MATCH(C81,Lists!$G$5:$G$49,0),1),1))","v":""},null,"","","","","","","","","","",{"$nulls":6},{"$f":"IF(Setup!$AG$7<>\"\",INDIRECT(\"'\" & Setup!$AG$7 & \"'!\" & AD81),0) + IF(Setup!$AG$8<>\"\",INDIRECT(\"'\" & Setup!$AG$8 & \"'!\" & AD81),0) + IF(Setup!$AG$9<>\"\",INDIRECT(\"'\" & Setup!$AG$9 & \"'!\" & AD81),0) + IF(Setup!$AG$10<>\"\",INDIRECT(\"'\" & Setup!$AG$10 & \"'!\" & AD81),0) + IF(Setup!$AG$11<>\"\",INDIRECT(\"'\" & Setup!$AG$11 & \"'!\" & AD81),0) + IF(Setup!$AG$12<>\"\",INDIRECT(\"'\" & Setup!$AG$12 & \"'!\" & AD81),0)","v":0},{"$f":"IF(Setup!$AG$7<>\"\",INDIRECT(\"'\" & Setup!$AG$7 & \"'!\" & AE81),0) + IF(Setup!$AG$8<>\"\",INDIRECT(\"'\" & Setup!$AG$8 & \"'!\" & AE81),0) + IF(Setup!$AG$9<>\"\",INDIRECT(\"'\" & Setup!$AG$9 & \"'!\" & AE81),0) + IF(Setup!$AG$10<>\"\",INDIRECT(\"'\" & Setup!$AG$10 & \"'!\" & AE81),0) + IF(Setup!$AG$11<>\"\",INDIRECT(\"'\" & Setup!$AG$11 & \"'!\" & AE81),0) + IF(Setup!$AG$12<>\"\",INDIRECT(\"'\" & Setup!$AG$12 & \"'!\" & AE81),0)","v":0},{"$f":"IF(Setup!$AH$7<>\"\",INDIRECT(\"'\" & Setup!$AH$7 & \"'!\" & AD81),0) + IF(Setup!$AH$8<>\"\",INDIRECT(\"'\" & Setup!$AH$8 & \"'!\" & AD81),0) + IF(Setup!$AH$9<>\"\",INDIRECT(\"'\" & Setup!$AH$9 & \"'!\" & AD81),0) + IF(Setup!$AH$10<>\"\",INDIRECT(\"'\" & Setup!$AH$10 & \"'!\" & AD81),0) + IF(Setup!$AH$11<>\"\",INDIRECT(\"'\" & Setup!$AH$11 & \"'!\" & AD81),0) + IF(Setup!$AH$12<>\"\",INDIRECT(\"'\" & Setup!$AH$12 & \"'!\" & AD81),0)","v":0},{"$f":"IF(Setup!$AH$7<>\"\",INDIRECT(\"'\" & Setup!$AH$7 & \"'!\" & AE81),0) + IF(Setup!$AH$8<>\"\",INDIRECT(\"'\" & Setup!$AH$8 & \"'!\" & AE81),0) + IF(Setup!$AH$9<>\"\",INDIRECT(\"'\" & Setup!$AH$9 & \"'!\" & AE81),0) + IF(Setup!$AH$10<>\"\",INDIRECT(\"'\" & Setup!$AH$10 & \"'!\" & AE81),0) + IF(Setup!$AH$11<>\"\",INDIRECT(\"'\" & Setup!$AH$11 & \"'!\" & AE81),0) + IF(Setup!$AH$12<>\"\",INDIRECT(\"'\" & Setup!$AH$12 & \"'!\" & AE81),0)","v":0},{"$f":"IF(Setup!$AI$7<>\"\",INDIRECT(\"'\" & Setup!$AI$7 & \"'!\" & AD81),0) + IF(Setup!$AI$8<>\"\",INDIRECT(\"'\" & Setup!$AI$8 & \"'!\" & AD81),0) + IF(Setup!$AI$9<>\"\",INDIRECT(\"'\" & Setup!$AI$9 & \"'!\" & AD81),0) + IF(Setup!$AI$10<>\"\",INDIRECT(\"'\" & Setup!$AI$10 & \"'!\" & AD81),0) + IF(Setup!$AI$11<>\"\",INDIRECT(\"'\" & Setup!$AI$11 & \"'!\" & AD81),0) + IF(Setup!$AI$12<>\"\",INDIRECT(\"'\" & Setup!$AI$12 & \"'!\" & AD81),0)","v":0},{"$f":"IF(Setup!$AI$7<>\"\",INDIRECT(\"'\" & Setup!$AI$7 & \"'!\" & AE81),0) + IF(Setup!$AI$8<>\"\",INDIRECT(\"'\" & Setup!$AI$8 & \"'!\" & AE81),0) + IF(Setup!$AI$9<>\"\",INDIRECT(\"'\" & Setup!$AI$9 & \"'!\" & AE81),0) + IF(Setup!$AI$10<>\"\",INDIRECT(\"'\" & Setup!$AI$10 & \"'!\" & AE81),0) + IF(Setup!$AI$11<>\"\",INDIRECT(\"'\" & Setup!$AI$11 & \"'!\" & AE81),0) + IF(Setup!$AI$12<>\"\",INDIRECT(\"'\" & Setup!$AI$12 & \"'!\" & AE81),0)","v":0},{"$f":"IF(Setup!$AJ$7<>\"\",INDIRECT(\"'\" & Setup!$AJ$7 & \"'!\" & AD81),0) + IF(Setup!$AJ$8<>\"\",INDIRECT(\"'\" & Setup!$AJ$8 & \"'!\" & AD81),0) + IF(Setup!$AJ$9<>\"\",INDIRECT(\"'\" & Setup!$AJ$9 & \"'!\" & AD81),0) + IF(Setup!$AJ$10<>\"\",INDIRECT(\"'\" & Setup!$AJ$10 & \"'!\" & AD81),0) + IF(Setup!$AJ$11<>\"\",INDIRECT(\"'\" & Setup!$AJ$11 & \"'!\" & AD81),0) + IF(Setup!$AJ$12<>\"\",INDIRECT(\"'\" & Setup!$AJ$12 & \"'!\" & AD81),0)","v":0},{"$f":"IF(Setup!$AJ$7<>\"\",INDIRECT(\"'\" & Setup!$AJ$7 & \"'!\" & AE81),0) + IF(Setup!$AJ$8<>\"\",INDIRECT(\"'\" & Setup!$AJ$8 & \"'!\" & AE81),0) + IF(Setup!$AJ$9<>\"\",INDIRECT(\"'\" & Setup!$AJ$9 & \"'!\" & AE81),0) + IF(Setup!$AJ$10<>\"\",INDIRECT(\"'\" & Setup!$AJ$10 & \"'!\" & AE81),0) + IF(Setup!$AJ$11<>\"\",INDIRECT(\"'\" & Setup!$AJ$11 & \"'!\" & AE81),0) + IF(Setup!$AJ$12<>\"\",INDIRECT(\"'\" & Setup!$AJ$12 & \"'!\" & AE81),0)","v":0}]
[{"$f":"Planning!A65","v":"I057"},{"$f":"Planning!B65","v":0},{"$f":"Planning!C65","v":0},{"$f":"Planning!D65","v":0},{"$f":"Planning!E65","v":0},{"$f":"Planning!G65","v":0},null,0,0,{"$f":"IF(AND($AR82=\"2\",$AB81<>Lists!$A$17),AU82,AT82)","v":""},"",0,0,{"$f":"IF(AND($AR82=\"2\",$AB82<>Lists!$A$17),AW82,AV82)","v":""},"",0,0,{"$f":"IF(AND($AR82=\"2\",$AB82<>Lists!$A$17),AY82,AX82)","v":""},"",0,0,{"$f":"IF(AND($AR82=\"2\",$AB82<>Lists!$A$17),BA82,AZ82)","v":""},"",0,0,{"$f":"IF(AND($AR82=\"2\",$AB82<>Lists!$A$17),BC82,BB82)","v":""},"",{"$f":"Planning!H65","v":0},"00","H81","J81","I81","",null,{"$f":"IF(Setup!$AG$7<>\"\",INDIRECT(\"'\" & Setup!$AG$7 & \"'!\" & AF82),0) + IF(Setup!$AG$8<>\"\",INDIRECT(\"'\" & Setup!$AG$8 & \"'!\" & AF82),0) + IF(Setup!$AG$9<>\"\",INDIRECT(\"'\" & Setup!$AG$9 & \"'!\" & AF82),0) + IF(Setup!$AG$10<>\"\",INDIRECT(\"'\" & Setup!$AG$10 & \"'!\" & AF82),0) + IF(Setup!$AG$11<>\"\",INDIRECT(\"'\" & Setup!$AG$11 & \"'!\" & AF82),0) + IF(Setup!$AG$12<>\"\",INDIRECT(\"'\" & Setup!$AG$12 & \"'!\" & AF82),0)","v":0},{"$f":"IF(Setup!$AH$7<>\"\",INDIRECT(\"'\" & Setup!$AH$7 & \"'!\" & AF82),0) + IF(Setup!$AH$8<>\"\",INDIRECT(\"'\" & Setup!$AH$8 & \"'!\" & AF82),0) + IF(Setup!$AH$9<>\"\",INDIRECT(\"'\" & Setup!$AH$9 & \"'!\" & AF82),0) + IF(Setup!$AH$10<>\"\",INDIRECT(\"'\" & Setup!$AH$10 & \"'!\" & AF82),0) + IF(Setup!$AH$11<>\"\",INDIRECT(\"'\" & Setup!$AH$11 & \"'!\" & AF82),0) + IF(Setup!$AH$12<>\"\",INDIRECT(\"'\" & Setup!$AH$12 & \"'!\" & AF82),0)","v":0},{"$f":"IF(Setup!$AI$7<>\"\",INDIRECT(\"'\" & Setup!$AI$7 & \"'!\" & AF82),0) + IF(Setup!$AI$8<>\"\",INDIRECT(\"'\" & Setup!$AI$8 & \"'!\" & AF82),0) + IF(Setup!$AI$9<>\"\",INDIRECT(\"'\" & Setup!$AI$9 & \"'!\" & AF82),0) + IF(Setup!$AI$10<>\"\",INDIRECT(\"'\" & Setup!$AI$10 & \"'!\" & AF82),0) + IF(Setup!$AI$11<>\"\",INDIRECT(\"'\" & Setup!$AI$11 & \"'!\" & AF82),0) + IF(Setup!$AI$12<>\"\",INDIRECT(\"'\" & Setup!$AI$12 & \"'!\" & AF82),0)","v":0},{"$f":"IF(Setup!$AJ$7<>\"\",INDIRECT(\"'\" & Setup!$AJ$7 & \"'!\" & AF82),0) + IF(Setup!$AJ$8<>\"\",INDIRECT(\"'\" & Setup!$AJ$8 & \"'!\" & AF82),0) + IF(Setup!$AJ$9<>\"\",INDIRECT(\"'\" & Setup!$AJ$9 & \"'!\" & AF82),0) + IF(Setup!$AJ$10<>\"\",INDIRECT(\"'\" & Setup!$AJ$10 & \"'!\" & AF82),0) + IF(Setup!$AJ$11<>\"\",INDIRECT(\"'\" & Setup!$AJ$11 & \"'!\" & AF82),0) + IF(Setup!$AJ$12<>\"\",INDIRECT(\"'\" & Setup!$AJ$12 & \"'!\" & AF82),0)","v":0},null,"",{"$nulls":3},{"$f":"IF(C82=0,\"\",LEFT(INDEX(Lists!$H$5:$H$49,MATCH(C82,Lists!$G$5:$G$49,0),1),1))","v":""},null,"","","","","","","","","","",{"$nulls":6},{"$f":"IF(Setup!$AG$7<>\"\",INDIRECT(\"'\" & Setup!$AG$7 & \"'!\" & AD82),0) + IF(Setup!$AG$8<>\"\",INDIRECT(\"'\" & Setup!$AG$8 & \"'!\" & AD82),0) + IF(Setup!$AG$9<>\"\",INDIRECT(\"'\" & Setup!$AG$9 & \"'!\" & AD82),0) + IF(Setup!$AG$10<>\"\",INDIRECT(\"'\" & Setup!$AG$10 & \"'!\" & AD82),0) + IF(Setup!$AG$11<>\"\",INDIRECT(\"'\" & Setup!$AG$11 & \"'!\" & AD82),0) + IF(Setup!$AG$12<>\"\",INDIRECT(\"'\" & Setup!$AG$12 & \"'!\" & AD82),0)","v":0},{"$f":"IF(Setup!$AG$7<>\"\",INDIRECT(\"'\" & Setup!$AG$7 & \"'!\" & AE82),0) + IF(Setup!$AG$8<>\"\",INDIRECT(\"'\" & Setup!$AG$8 & \"'!\" & AE82),0) + IF(Setup!$AG$9<>\"\",INDIRECT(\"'\" & Setup!$AG$9 & \"'!\" & AE82),0) + IF(Setup!$AG$10<>\"\",INDIRECT(\"'\" & Setup!$AG$10 & \"'!\" & AE82),0) + IF(Setup!$AG$11<>\"\",INDIRECT(\"'\" & Setup!$AG$11 & \"'!\" & AE82),0) + IF(Setup!$AG$12<>\"\",INDIRECT(\"'\" & Setup!$AG$12 & \"'!\" & AE82),0)","v":0},{"$f":"IF(Setup!$AH$7<>\"\",INDIRECT(\"'\" & Setup!$AH$7 & \"'!\" & AD82),0) + IF(Setup!$AH$8<>\"\",INDIRECT(\"'\" & Setup!$AH$8 & \"'!\" & AD82),0) + IF(Setup!$AH$9<>\"\",INDIRECT(\"'\" & Setup!$AH$9 & \"'!\" & AD82),0) + IF(Setup!$AH$10<>\"\",INDIRECT(\"'\" & Setup!$AH$10 & \"'!\" & AD82),0) + IF(Setup!$AH$11<>\"\",INDIRECT(\"'\" & Setup!$AH$11 & \"'!\" & AD82),0) + IF(Setup!$AH$12<>\"\",INDIRECT(\"'\" & Setup!$AH$12 & \"'!\" & AD82),0)","v":0},{"$f":"IF(Setup!$AH$7<>\"\",INDIRECT(\"'\" & Setup!$AH$7 & \"'!\" & AE82),0) + IF(Setup!$AH$8<>\"\",INDIRECT(\"'\" & Setup!$AH$8 & \"'!\" & AE82),0) + IF(Setup!$AH$9<>\"\",INDIRECT(\"'\" & Setup!$AH$9 & \"'!\" & AE82),0) + IF(Setup!$AH$10<>\"\",INDIRECT(\"'\" & Setup!$AH$10 & \"'!\" & AE82),0) + IF(Setup!$AH$11<>\"\",INDIRECT(\"'\" & Setup!$AH$11 & \"'!\" & AE82),0) + IF(Setup!$AH$12<>\"\",INDIRECT(\"'\" & Setup!$AH$12 & \"'!\" & AE82),0)","v":0},{"$f":"IF(Setup!$AI$7<>\"\",INDIRECT(\"'\" & Setup!$AI$7 & \"'!\" & AD82),0) + IF(Setup!$AI$8<>\"\",INDIRECT(\"'\" & Setup!$AI$8 & \"'!\" & AD82),0) + IF(Setup!$AI$9<>\"\",INDIRECT(\"'\" & Setup!$AI$9 & \"'!\" & AD82),0) + IF(Setup!$AI$10<>\"\",INDIRECT(\"'\" & Setup!$AI$10 & \"'!\" & AD82),0) + IF(Setup!$AI$11<>\"\",INDIRECT(\"'\" & Setup!$AI$11 & \"'!\" & AD82),0) + IF(Setup!$AI$12<>\"\",INDIRECT(\"'\" & Setup!$AI$12 & \"'!\" & AD82),0)","v":0},{"$f":"IF(Setup!$AI$7<>\"\",INDIRECT(\"'\" & Setup!$AI$7 & \"'!\" & AE82),0) + IF(Setup!$AI$8<>\"\",INDIRECT(\"'\" & Setup!$AI$8 & \"'!\" & AE82),0) + IF(Setup!$AI$9<>\"\",INDIRECT(\"'\" & Setup!$AI$9 & \"'!\" & AE82),0) + IF(Setup!$AI$10<>\"\",INDIRECT(\"'\" & Setup!$AI$10 & \"'!\" & AE82),0) + IF(Setup!$AI$11<>\"\",INDIRECT(\"'\" & Setup!$AI$11 & \"'!\" & AE82),0) + IF(Setup!$AI$12<>\"\",INDIRECT(\"'\" & Setup!$AI$12 & \"'!\" & AE82),0)","v":0},{"$f":"IF(Setup!$AJ$7<>\"\",INDIRECT(\"'\" & Setup!$AJ$7 & \"'!\" & AD82),0) + IF(Setup!$AJ$8<>\"\",INDIRECT(\"'\" & Setup!$AJ$8 & \"'!\" & AD82),0) + IF(Setup!$AJ$9<>\"\",INDIRECT(\"'\" & Setup!$AJ$9 & \"'!\" & AD82),0) + IF(Setup!$AJ$10<>\"\",INDIRECT(\"'\" & Setup!$AJ$10 & \"'!\" & AD82),0) + IF(Setup!$AJ$11<>\"\",INDIRECT(\"'\" & Setup!$AJ$11 & \"'!\" & AD82),0) + IF(Setup!$AJ$12<>\"\",INDIRECT(\"'\" & Setup!$AJ$12 & \"'!\" & AD82),0)","v":0},{"$f":"IF(Setup!$AJ$7<>\"\",INDIRECT(\"'\" & Setup!$AJ$7 & \"'!\" & AE82),0) + IF(Setup!$AJ$8<>\"\",INDIRECT(\"'\" & Setup!$AJ$8 & \"'!\" & AE82),0) + IF(Setup!$AJ$9<>\"\",INDIRECT(\"'\" & Setup!$AJ$9 & \"'!\" & AE82),0) + IF(Setup!$AJ$10<>\"\",INDIRECT(\"'\" & Setup!$AJ$10 & \"'!\" & AE82),0) + IF(Setup!$AJ$11<>\"\",INDIRECT(\"'\" & Setup!$AJ$11 & \"'!\" & AE82),0) + IF(Setup!$AJ$12<>\"\",INDIRECT(\"'\" & Setup!$AJ$12 & \"'!\" & AE82),0)","v":0}]
[{"$f":"Planning!A66","v":"I058"},{"$f":"Planning!B66","v":0},{"$f":"Planning!C66","v":0},{"$f":"Planning!D66","v":0},{"$f":"Planning!E66","v":0},{"$f":"Planning!G66","v":0},null,0,0,{"$f":"IF(AND($AR83=\"2\",$AB82<>Lists!$A$17),AU83,AT83)","v":""},"",0,0,{"$f":"IF(AND($AR83=\"2\",$AB83<>Lists!$A$17),AW83,AV83)","v":""},"",0,0,{"$f":"IF(AND($AR83=\"2\",$AB83<>Lists!$A$17),AY83,AX83)","v":""},"",0,0,{"$f":"IF(AND($AR83=\"2\",$AB83<>Lists!$A$17),BA83,AZ83)","v":""},"",0,0,{"$f":"IF(AND($AR83=\"2\",$AB83<>Lists!$A$17),BC83,BB83)","v":""},"",{"$f":"Planning!H66","v":0},"00","H82","J82","I82","",null,{"$f":"IF(Setup!$AG$7<>\"\",INDIRECT(\"'\" & Setup!$AG$7 & \"'!\" & AF83),0) + IF(Setup!$AG$8<>\"\",INDIRECT(\"'\" & Setup!$AG$8 & \"'!\" & AF83),0) + IF(Setup!$AG$9<>\"\",INDIRECT(\"'\" & Setup!$AG$9 & \"'!\" & AF83),0) + IF(Setup!$AG$10<>\"\",INDIRECT(\"'\" & Setup!$AG$10 & \"'!\" & AF83),0) + IF(Setup!$AG$11<>\"\",INDIRECT(\"'\" & Setup!$AG$11 & \"'!\" & AF83),0) + IF(Setup!$AG$12<>\"\",INDIRECT(\"'\" & Setup!$AG$12 & \"'!\" & AF83),0)","v":0},{"$f":"IF(Setup!$AH$7<>\"\",INDIRECT(\"'\" & Setup!$AH$7 & \"'!\" & AF83),0) + IF(Setup!$AH$8<>\"\",INDIRECT(\"'\" & Setup!$AH$8 & \"'!\" & AF83),0) + IF(Setup!$AH$9<>\"\",INDIRECT(\"'\" & Setup!$AH$9 & \"'!\" & AF83),0) + IF(Setup!$AH$10<>\"\",INDIRECT(\"'\" & Setup!$AH$10 & \"'!\" & AF83),0) + IF(Setup!$AH$11<>\"\",INDIRECT(\"'\" & Setup!$AH$11 & \"'!\" & AF83),0) + IF(Setup!$AH$12<>\"\",INDIRECT(\"'\" & Setup!$AH$12 & \"'!\" & AF83),0)","v":0},{"$f":"IF(Setup!$AI$7<>\"\",INDIRECT(\"'\" & Setup!$AI$7 & \"'!\" & AF83),0) + IF(Setup!$AI$8<>\"\",INDIRECT(\"'\" & Setup!$AI$8 & \"'!\" & AF83),0) + IF(Setup!$AI$9<>\"\",INDIRECT(\"'\" & Setup!$AI$9 & \"'!\" & AF83),0) + IF(Setup!$AI$10<>\"\",INDIRECT(\"'\" & Setup!$AI$10 & \"'!\" & AF83),0) + IF(Setup!$AI$11<>\"\",INDIRECT(\"'\" & Setup!$AI$11 & \"'!\" & AF83),0) + IF(Setup!$AI$12<>\"\",INDIRECT(\"'\" & Setup!$AI$12 & \"'!\" & AF83),0)","v":0},{"$f":"IF(Setup!$AJ$7<>\"\",INDIRECT(\"'\" & Setup!$AJ$7 & \"'!\" & AF83),0) + IF(Setup!$AJ$8<>\"\",INDIRECT(\"'\" & Setup!$AJ$8 & \"'!\" & AF83),0) + IF(Setup!$AJ$9<>\"\",INDIRECT(\"'\" & Setup!$AJ$9 & \"'!\" & AF83),0) + IF(Setup!$AJ$10<>\"\",INDIRECT(\"'\" & Setup!$AJ$10 & \"'!\" & AF83),0) + IF(Setup!$AJ$11<>\"\",INDIRECT(\"'\" & Setup!$AJ$11 & \"'!\" & AF83),0) + IF(Setup!$AJ$12<>\"\",INDIRECT(\"'\" & Setup!$AJ$12 & \"'!\" & AF83),0)","v":0},null,"",{"$nulls":3},{"$f":"IF(C83=0,\"\",LEFT(INDEX(Lists!$H$5:$H$49,MATCH(C83,Lists!$G$5:$G$49,0),1),1))","v":""},null,"","","","","","","","","","",{"$nulls":6},{"$f":"IF(Setup!$AG$7<>\"\",INDIRECT(\"'\" & Setup!$AG$7 & \"'!\" & AD83),0) + IF(Setup!$AG$8<>\"\",INDIRECT(\"'\" & Setup!$AG$8 & \"'!\" & AD83),0) + IF(Setup!$AG$9<>\"\",INDIRECT(\"'\" & Setup!$AG$9 & \"'!\" & AD83),0) + IF(Setup!$AG$10<>\"\",INDIRECT(\"'\" & Setup!$AG$10 & \"'!\" & AD83),0) + IF(Setup!$AG$11<>\"\",INDIRECT(\"'\" & Setup!$AG$11 & \"'!\" & AD83),0) + IF(Setup!$AG$12<>\"\",INDIRECT(\"'\" & Setup!$AG$12 & \"'!\" & AD83),0)","v":0},{"$f":"IF(Setup!$AG$7<>\"\",INDIRECT(\"'\" & Setup!$AG$7 & \"'!\" & AE83),0) + IF(Setup!$AG$8<>\"\",INDIRECT(\"'\" & Setup!$AG$8 & \"'!\" & AE83),0) + IF(Setup!$AG$9<>\"\",INDIRECT(\"'\" & Setup!$AG$9 & \"'!\" & AE83),0) + IF(Setup!$AG$10<>\"\",INDIRECT(\"'\" & Setup!$AG$10 & \"'!\" & AE83),0) + IF(Setup!$AG$11<>\"\",INDIRECT(\"'\" & Setup!$AG$11 & \"'!\" & AE83),0) + IF(Setup!$AG$12<>\"\",INDIRECT(\"'\" & Setup!$AG$12 & \"'!\" & AE83),0)","v":0},{"$f":"IF(Setup!$AH$7<>\"\",INDIRECT(\"'\" & Setup!$AH$7 & \"'!\" & AD83),0) + IF(Setup!$AH$8<>\"\",INDIRECT(\"'\" & Setup!$AH$8 & \"'!\" & AD83),0) + IF(Setup!$AH$9<>\"\",INDIRECT(\"'\" & Setup!$AH$9 & \"'!\" & AD83),0) + IF(Setup!$AH$10<>\"\",INDIRECT(\"'\" & Setup!$AH$10 & \"'!\" & AD83),0) + IF(Setup!$AH$11<>\"\",INDIRECT(\"'\" & Setup!$AH$11 & \"'!\" & AD83),0) + IF(Setup!$AH$12<>\"\",INDIRECT(\"'\" & Setup!$AH$12 & \"'!\" & AD83),0)","v":0},{"$f":"IF(Setup!$AH$7<>\"\",INDIRECT(\"'\" & Setup!$AH$7 & \"'!\" & AE83),0) + IF(Setup!$AH$8<>\"\",INDIRECT(\"'\" & Setup!$AH$8 & \"'!\" & AE83),0) + IF(Setup!$AH$9<>\"\",INDIRECT(\"'\" & Setup!$AH$9 & \"'!\" & AE83),0) + IF(Setup!$AH$10<>\"\",INDIRECT(\"'\" & Setup!$AH$10 & \"'!\" & AE83),0) + IF(Setup!$AH$11<>\"\",INDIRECT(\"'\" & Setup!$AH$11 & \"'!\" & AE83),0) + IF(Setup!$AH$12<>\"\",INDIRECT(\"'\" & Setup!$AH$12 & \"'!\" & AE83),0)","v":0},{"$f":"IF(Setup!$AI$7<>\"\",INDIRECT(\"'\" & Setup!$AI$7 & \"'!\" & AD83),0) + IF(Setup!$AI$8<>\"\",INDIRECT(\"'\" & Setup!$AI$8 & \"'!\" & AD83),0) + IF(Setup!$AI$9<>\"\",INDIRECT(\"'\" & Setup!$AI$9 & \"'!\" & AD83),0) + IF(Setup!$AI$10<>\"\",INDIRECT(\"'\" & Setup!$AI$10 & \"'!\" & AD83),0) + IF(Setup!$AI$11<>\"\",INDIRECT(\"'\" & Setup!$AI$11 & \"'!\" & AD83),0) + IF(Setup!$AI$12<>\"\",INDIRECT(\"'\" & Setup!$AI$12 & \"'!\" & AD83),0)","v":0},{"$f":"IF(Setup!$AI$7<>\"\",INDIRECT(\"'\" & Setup!$AI$7 & \"'!\" & AE83),0) + IF(Setup!$AI$8<>\"\",INDIRECT(\"'\" & Setup!$AI$8 & \"'!\" & AE83),0) + IF(Setup!$AI$9<>\"\",INDIRECT(\"'\" & Setup!$AI$9 & \"'!\" & AE83),0) + IF(Setup!$AI$10<>\"\",INDIRECT(\"'\" & Setup!$AI$10 & \"'!\" & AE83),0) + IF(Setup!$AI$11<>\"\",INDIRECT(\"'\" & Setup!$AI$11 & \"'!\" & AE83),0) + IF(Setup!$AI$12<>\"\",INDIRECT(\"'\" & Setup!$AI$12 & \"'!\" & AE83),0)","v":0},{"$f":"IF(Setup!$AJ$7<>\"\",INDIRECT(\"'\" & Setup!$AJ$7 & \"'!\" & AD83),0) + IF(Setup!$AJ$8<>\"\",INDIRECT(\"'\" & Setup!$AJ$8 & \"'!\" & AD83),0) + IF(Setup!$AJ$9<>\"\",INDIRECT(\"'\" & Setup!$AJ$9 & \"'!\" & AD83),0) + IF(Setup!$AJ$10<>\"\",INDIRECT(\"'\" & Setup!$AJ$10 & \"'!\" & AD83),0) + IF(Setup!$AJ$11<>\"\",INDIRECT(\"'\" & Setup!$AJ$11 & \"'!\" & AD83),0) + IF(Setup!$AJ$12<>\"\",INDIRECT(\"'\" & Setup!$AJ$12 & \"'!\" & AD83),0)","v":0},{"$f":"IF(Setup!$AJ$7<>\"\",INDIRECT(\"'\" & Setup!$AJ$7 & \"'!\" & AE83),0) + IF(Setup!$AJ$8<>\"\",INDIRECT(\"'\" & Setup!$AJ$8 & \"'!\" & AE83),0) + IF(Setup!$AJ$9<>\"\",INDIRECT(\"'\" & Setup!$AJ$9 & \"'!\" & AE83),0) + IF(Setup!$AJ$10<>\"\",INDIRECT(\"'\" & Setup!$AJ$10 & \"'!\" & AE83),0) + IF(Setup!$AJ$11<>\"\",INDIRECT(\"'\" & Setup!$AJ$11 & \"'!\" & AE83),0) + IF(Setup!$AJ$12<>\"\",INDIRECT(\"'\" & Setup!$AJ$12 & \"'!\" & AE83),0)","v":0}]
[{"$f":"Planning!A67","v":"I059"},{"$f":"Planning!B67","v":0},{"$f":"Planning!C67","v":0},{"$f":"Planning!D67","v":0},{"$f":"Planning!E67","v":0},{"$f":"Planning!G67","v":0},null,0,0,{"$f":"IF(AND($AR84=\"2\",$AB83<>Lists!$A$17),AU84,AT84)","v":""},"",0,0,{"$f":"IF(AND($AR84=\"2\",$AB84<>Lists!$A$17),AW84,AV84)","v":""},"",0,0,{"$f":"IF(AND($AR84=\"2\",$AB84<>Lists!$A$17),AY84,AX84)","v":""},"",0,0,{"$f":"IF(AND($AR84=\"2\",$AB84<>Lists!$A$17),BA84,AZ84)","v":""},"",0,0,{"$f":"IF(AND($AR84=\"2\",$AB84<>Lists!$A$17),BC84,BB84)","v":""},"",{"$f":"Planning!H67","v":0},"00","H83","J83","I83","",null,{"$f":"IF(Setup!$AG$7<>\"\",INDIRECT(\"'\" & Setup!$AG$7 & \"'!\" & AF84),0) + IF(Setup!$AG$8<>\"\",INDIRECT(\"'\" & Setup!$AG$8 & \"'!\" & AF84),0) + IF(Setup!$AG$9<>\"\",INDIRECT(\"'\" & Setup!$AG$9 & \"'!\" & AF84),0) + IF(Setup!$AG$10<>\"\",INDIRECT(\"'\" & Setup!$AG$10 & \"'!\" & AF84),0) + IF(Setup!$AG$11<>\"\",INDIRECT(\"'\" & Setup!$AG$11 & \"'!\" & AF84),0) + IF(Setup!$AG$12<>\"\",INDIRECT(\"'\" & Setup!$AG$12 & \"'!\" & AF84),0)","v":0},{"$f":"IF(Setup!$AH$7<>\"\",INDIRECT(\"'\" & Setup!$AH$7 & \"'!\" & AF84),0) + IF(Setup!$AH$8<>\"\",INDIRECT(\"'\" & Setup!$AH$8 & \"'!\" & AF84),0) + IF(Setup!$AH$9<>\"\",INDIRECT(\"'\" & Setup!$AH$9 & \"'!\" & AF84),0) + IF(Setup!$AH$10<>\"\",INDIRECT(\"'\" & Setup!$AH$10 & \"'!\" & AF84),0) + IF(Setup!$AH$11<>\"\",INDIRECT(\"'\" & Setup!$AH$11 & \"'!\" & AF84),0) + IF(Setup!$AH$12<>\"\",INDIRECT(\"'\" & Setup!$AH$12 & \"'!\" & AF84),0)","v":0},{"$f":"IF(Setup!$AI$7<>\"\",INDIRECT(\"'\" & Setup!$AI$7 & \"'!\" & AF84),0) + IF(Setup!$AI$8<>\"\",INDIRECT(\"'\" & Setup!$AI$8 & \"'!\" & AF84),0) + IF(Setup!$AI$9<>\"\",INDIRECT(\"'\" & Setup!$AI$9 & \"'!\" & AF84),0) + IF(Setup!$AI$10<>\"\",INDIRECT(\"'\" & Setup!$AI$10 & \"'!\" & AF84),0) + IF(Setup!$AI$11<>\"\",INDIRECT(\"'\" & Setup!$AI$11 & \"'!\" & AF84),0) + IF(Setup!$AI$12<>\"\",INDIRECT(\"'\" & Setup!$AI$12 & \"'!\" & AF84),0)","v":0},{"$f":"IF(Setup!$AJ$7<>\"\",INDIRECT(\"'\" & Setup!$AJ$7 & \"'!\" & AF84),0) + IF(Setup!$AJ$8<>\"\",INDIRECT(\"'\" & Setup!$AJ$8 & \"'!\" & AF84),0) + IF(Setup!$AJ$9<>\"\",INDIRECT(\"'\" & Setup!$AJ$9 & \"'!\" & AF84),0) + IF(Setup!$AJ$10<>\"\",INDIRECT(\"'\" & Setup!$AJ$10 & \"'!\" & AF84),0) + IF(Setup!$AJ$11<>\"\",INDIRECT(\"'\" & Setup!$AJ$11 & \"'!\" & AF84),0) + IF(Setup!$AJ$12<>\"\",INDIRECT(\"'\" & Setup!$AJ$12 & \"'!\" & AF84),0)","v":0},null,"",{"$nulls":3},{"$f":"IF(C84=0,\"\",LEFT(INDEX(Lists!$H$5:$H$49,MATCH(C84,Lists!$G$5:$G$49,0),1),1))","v":""},null,"","","","","","","","","","",{"$nulls":6},{"$f":"IF(Setup!$AG$7<>\"\",INDIRECT(\"'\" & Setup!$AG$7 & \"'!\" & AD84),0) + IF(Setup!$AG$8<>\"\",INDIRECT(\"'\" & Setup!$AG$8 & \"'!\" & AD84),0) + IF(Setup!$AG$9<>\"\",INDIRECT(\"'\" & Setup!$AG$9 & \"'!\" & AD84),0) + IF(Setup!$AG$10<>\"\",INDIRECT(\"'\" & Setup!$AG$10 & \"'!\" & AD84),0) + IF(Setup!$AG$11<>\"\",INDIRECT(\"'\" & Setup!$AG$11 & \"'!\" & AD84),0) + IF(Setup!$AG$12<>\"\",INDIRECT(\"'\" & Setup!$AG$12 & \"'!\" & AD84),0)","v":0},{"$f":"IF(Setup!$AG$7<>\"\",INDIRECT(\"'\" & Setup!$AG$7 & \"'!\" & AE84),0) + IF(Setup!$AG$8<>\"\",INDIRECT(\"'\" & Setup!$AG$8 & \"'!\" & AE84),0) + IF(Setup!$AG$9<>\"\",INDIRECT(\"'\" & Setup!$AG$9 & \"'!\" & AE84),0) + IF(Setup!$AG$10<>\"\",INDIRECT(\"'\" & Setup!$AG$10 & \"'!\" & AE84),0) + IF(Setup!$AG$11<>\"\",INDIRECT(\"'\" & Setup!$AG$11 & \"'!\" & AE84),0) + IF(Setup!$AG$12<>\"\",INDIRECT(\"'\" & Setup!$AG$12 & \"'!\" & AE84),0)","v":0},{"$f":"IF(Setup!$AH$7<>\"\",INDIRECT(\"'\" & Setup!$AH$7 & \"'!\" & AD84),0) + IF(Setup!$AH$8<>\"\",INDIRECT(\"'\" & Setup!$AH$8 & \"'!\" & AD84),0) + IF(Setup!$AH$9<>\"\",INDIRECT(\"'\" & Setup!$AH$9 & \"'!\" & AD84),0) + IF(Setup!$AH$10<>\"\",INDIRECT(\"'\" & Setup!$AH$10 & \"'!\" & AD84),0) + IF(Setup!$AH$11<>\"\",INDIRECT(\"'\" & Setup!$AH$11 & \"'!\" & AD84),0) + IF(Setup!$AH$12<>\"\",INDIRECT(\"'\" & Setup!$AH$12 & \"'!\" & AD84),0)","v":0},{"$f":"IF(Setup!$AH$7<>\"\",INDIRECT(\"'\" & Setup!$AH$7 & \"'!\" & AE84),0) + IF(Setup!$AH$8<>\"\",INDIRECT(\"'\" & Setup!$AH$8 & \"'!\" & AE84),0) + IF(Setup!$AH$9<>\"\",INDIRECT(\"'\" & Setup!$AH$9 & \"'!\" & AE84),0) + IF(Setup!$AH$10<>\"\",INDIRECT(\"'\" & Setup!$AH$10 & \"'!\" & AE84),0) + IF(Setup!$AH$11<>\"\",INDIRECT(\"'\" & Setup!$AH$11 & \"'!\" & AE84),0) + IF(Setup!$AH$12<>\"\",INDIRECT(\"'\" & Setup!$AH$12 & \"'!\" & AE84),0)","v":0},{"$f":"IF(Setup!$AI$7<>\"\",INDIRECT(\"'\" & Setup!$AI$7 & \"'!\" & AD84),0) + IF(Setup!$AI$8<>\"\",INDIRECT(\"'\" & Setup!$AI$8 & \"'!\" & AD84),0) + IF(Setup!$AI$9<>\"\",INDIRECT(\"'\" & Setup!$AI$9 & \"'!\" & AD84),0) + IF(Setup!$AI$10<>\"\",INDIRECT(\"'\" & Setup!$AI$10 & \"'!\" & AD84),0) + IF(Setup!$AI$11<>\"\",INDIRECT(\"'\" & Setup!$AI$11 & \"'!\" & AD84),0) + IF(Setup!$AI$12<>\"\",INDIRECT(\"'\" & Setup!$AI$12 & \"'!\" & AD84),0)","v":0},{"$f":"IF(Setup!$AI$7<>\"\",INDIRECT(\"'\" & Setup!$AI$7 & \"'!\" & AE84),0) + IF(Setup!$AI$8<>\"\",INDIRECT(\"'\" & Setup!$AI$8 & \"'!\" & AE84),0) + IF(Setup!$AI$9<>\"\",INDIRECT(\"'\" & Setup!$AI$9 & \"'!\" & AE84),0) + IF(Setup!$AI$10<>\"\",INDIRECT(\"'\" & Setup!$AI$10 & \"'!\" & AE84),0) + IF(Setup!$AI$11<>\"\",INDIRECT(\"'\" & Setup!$AI$11 & \"'!\" & AE84),0) + IF(Setup!$AI$12<>\"\",INDIRECT(\"'\" & Setup!$AI$12 & \"'!\" & AE84),0)","v":0},{"$f":"IF(Setup!$AJ$7<>\"\",INDIRECT(\"'\" & Setup!$AJ$7 & \"'!\" & AD84),0) + IF(Setup!$AJ$8<>\"\",INDIRECT(\"'\" & Setup!$AJ$8 & \"'!\" & AD84),0) + IF(Setup!$AJ$9<>\"\",INDIRECT(\"'\" & Setup!$AJ$9 & \"'!\" & AD84),0) + IF(Setup!$AJ$10<>\"\",INDIRECT(\"'\" & Setup!$AJ$10 & \"'!\" & AD84),0) + IF(Setup!$AJ$11<>\"\",INDIRECT(\"'\" & Setup!$AJ$11 & \"'!\" & AD84),0) + IF(Setup!$AJ$12<>\"\",INDIRECT(\"'\" & Setup!$AJ$12 & \"'!\" & AD84),0)","v":0},{"$f":"IF(Setup!$AJ$7<>\"\",INDIRECT(\"'\" & Setup!$AJ$7 & \"'!\" & AE84),0) + IF(Setup!$AJ$8<>\"\",INDIRECT(\"'\" & Setup!$AJ$8 & \"'!\" & AE84),0) + IF(Setup!$AJ$9<>\"\",INDIRECT(\"'\" & Setup!$AJ$9 & \"'!\" & AE84),0) + IF(Setup!$AJ$10<>\"\",INDIRECT(\"'\" & Setup!$AJ$10 & \"'!\" & AE84),0) + IF(Setup!$AJ$11<>\"\",INDIRECT(\"'\" & Setup!$AJ$11 & \"'!\" & AE84),0) + IF(Setup!$AJ$12<>\"\",INDIRECT(\"'\" & Setup!$AJ$12 & \"'!\" & AE84),0)","v":0}]
[{"$f":"Planning!A68","v":"I060"},{"$f":"Planning!B68","v":0},{"$f":"Planning!C68","v":0},{"$f":"Planning!D68","v":0},{"$f":"Planning!E68","v":0},{"$f":"Planning!G68","v":0},null,0,0,{"$f":"IF(AND($AR85=\"2\",$AB84<>Lists!$A$17),AU85,AT85)","v":""},"",0,0,{"$f":"IF(AND($AR85=\"2\",$AB85<>Lists!$A$17),AW85,AV85)","v":""},"",0,0,{"$f":"IF(AND($AR85=\"2\",$AB85<>Lists!$A$17),AY85,AX85)","v":""},"",0,0,{"$f":"IF(AND($AR85=\"2\",$AB85<>Lists!$A$17),BA85,AZ85)","v":""},"",0,0,{"$f":"IF(AND($AR85=\"2\",$AB85<>Lists!$A$17),BC85,BB85)","v":""},"",{"$f":"Planning!H68","v":0},"00","H84","J84","I84","",null,{"$f":"IF(Setup!$AG$7<>\"\",INDIRECT(\"'\" & Setup!$AG$7 & \"'!\" & AF85),0) + IF(Setup!$AG$8<>\"\",INDIRECT(\"'\" & Setup!$AG$8 & \"'!\" & AF85),0) + IF(Setup!$AG$9<>\"\",INDIRECT(\"'\" & Setup!$AG$9 & \"'!\" & AF85),0) + IF(Setup!$AG$10<>\"\",INDIRECT(\"'\" & Setup!$AG$10 & \"'!\" & AF85),0) + IF(Setup!$AG$11<>\"\",INDIRECT(\"'\" & Setup!$AG$11 & \"'!\" & AF85),0) + IF(Setup!$AG$12<>\"\",INDIRECT(\"'\" & Setup!$AG$12 & \"'!\" & AF85),0)","v":0},{"$f":"IF(Setup!$AH$7<>\"\",INDIRECT(\"'\" & Setup!$AH$7 & \"'!\" & AF85),0) + IF(Setup!$AH$8<>\"\",INDIRECT(\"'\" & Setup!$AH$8 & \"'!\" & AF85),0) + IF(Setup!$AH$9<>\"\",INDIRECT(\"'\" & Setup!$AH$9 & \"'!\" & AF85),0) + IF(Setup!$AH$10<>\"\",INDIRECT(\"'\" & Setup!$AH$10 & \"'!\" & AF85),0) + IF(Setup!$AH$11<>\"\",INDIRECT(\"'\" & Setup!$AH$11 & \"'!\" & AF85),0) + IF(Setup!$AH$12<>\"\",INDIRECT(\"'\" & Setup!$AH$12 & \"'!\" & AF85),0)","v":0},{"$f":"IF(Setup!$AI$7<>\"\",INDIRECT(\"'\" & Setup!$AI$7 & \"'!\" & AF85),0) + IF(Setup!$AI$8<>\"\",INDIRECT(\"'\" & Setup!$AI$8 & \"'!\" & AF85),0) + IF(Setup!$AI$9<>\"\",INDIRECT(\"'\" & Setup!$AI$9 & \"'!\" & AF85),0) + IF(Setup!$AI$10<>\"\",INDIRECT(\"'\" & Setup!$AI$10 & \"'!\" & AF85),0) + IF(Setup!$AI$11<>\"\",INDIRECT(\"'\" & Setup!$AI$11 & \"'!\" & AF85),0) + IF(Setup!$AI$12<>\"\",INDIRECT(\"'\" & Setup!$AI$12 & \"'!\" & AF85),0)","v":0},{"$f":"IF(Setup!$AJ$7<>\"\",INDIRECT(\"'\" & Setup!$AJ$7 & \"'!\" & AF85),0) + IF(Setup!$AJ$8<>\"\",INDIRECT(\"'\" & Setup!$AJ$8 & \"'!\" & AF85),0) + IF(Setup!$AJ$9<>\"\",INDIRECT(\"'\" & Setup!$AJ$9 & \"'!\" & AF85),0) + IF(Setup!$AJ$10<>\"\",INDIRECT(\"'\" & Setup!$AJ$10 & \"'!\" & AF85),0) + IF(Setup!$AJ$11<>\"\",INDIRECT(\"'\" & Setup!$AJ$11 & \"'!\" & AF85),0) + IF(Setup!$AJ$12<>\"\",INDIRECT(\"'\" & Setup!$AJ$12 & \"'!\" & AF85),0)","v":0},null,"",{"$nulls":3},{"$f":"IF(C85=0,\"\",LEFT(INDEX(Lists!$H$5:$H$49,MATCH(C85,Lists!$G$5:$G$49,0),1),1))","v":""},null,"","","","","","","","","","",{"$nulls":6},{"$f":"IF(Setup!$AG$7<>\"\",INDIRECT(\"'\" & Setup!$AG$7 & \"'!\" & AD85),0) + IF(Setup!$AG$8<>\"\",INDIRECT(\"'\" & Setup!$AG$8 & \"'!\" & AD85),0) + IF(Setup!$AG$9<>\"\",INDIRECT(\"'\" & Setup!$AG$9 & \"'!\" & AD85),0) + IF(Setup!$AG$10<>\"\",INDIRECT(\"'\" & Setup!$AG$10 & \"'!\" & AD85),0) + IF(Setup!$AG$11<>\"\",INDIRECT(\"'\" & Setup!$AG$11 & \"'!\" & AD85),0) + IF(Setup!$AG$12<>\"\",INDIRECT(\"'\" & Setup!$AG$12 & \"'!\" & AD85),0)","v":0},{"$f":"IF(Setup!$AG$7<>\"\",INDIRECT(\"'\" & Setup!$AG$7 & \"'!\" & AE85),0) + IF(Setup!$AG$8<>\"\",INDIRECT(\"'\" & Setup!$AG$8 & \"'!\" & AE85),0) + IF(Setup!$AG$9<>\"\",INDIRECT(\"'\" & Setup!$AG$9 & \"'!\" & AE85),0) + IF(Setup!$AG$10<>\"\",INDIRECT(\"'\" & Setup!$AG$10 & \"'!\" & AE85),0) + IF(Setup!$AG$11<>\"\",INDIRECT(\"'\" & Setup!$AG$11 & \"'!\" & AE85),0) + IF(Setup!$AG$12<>\"\",INDIRECT(\"'\" & Setup!$AG$12 & \"'!\" & AE85),0)","v":0},{"$f":"IF(Setup!$AH$7<>\"\",INDIRECT(\"'\" & Setup!$AH$7 & \"'!\" & AD85),0) + IF(Setup!$AH$8<>\"\",INDIRECT(\"'\" & Setup!$AH$8 & \"'!\" & AD85),0) + IF(Setup!$AH$9<>\"\",INDIRECT(\"'\" & Setup!$AH$9 & \"'!\" & AD85),0) + IF(Setup!$AH$10<>\"\",INDIRECT(\"'\" & Setup!$AH$10 & \"'!\" & AD85),0) + IF(Setup!$AH$11<>\"\",INDIRECT(\"'\" & Setup!$AH$11 & \"'!\" & AD85),0) + IF(Setup!$AH$12<>\"\",INDIRECT(\"'\" & Setup!$AH$12 & \"'!\" & AD85),0)","v":0},{"$f":"IF(Setup!$AH$7<>\"\",INDIRECT(\"'\" & Setup!$AH$7 & \"'!\" & AE85),0) + IF(Setup!$AH$8<>\"\",INDIRECT(\"'\" & Setup!$AH$8 & \"'!\" & AE85),0) + IF(Setup!$AH$9<>\"\",INDIRECT(\"'\" & Setup!$AH$9 & \"'!\" & AE85),0) + IF(Setup!$AH$10<>\"\",INDIRECT(\"'\" & Setup!$AH$10 & \"'!\" & AE85),0) + IF(Setup!$AH$11<>\"\",INDIRECT(\"'\" & Setup!$AH$11 & \"'!\" & AE85),0) + IF(Setup!$AH$12<>\"\",INDIRECT(\"'\" & Setup!$AH$12 & \"'!\" & AE85),0)","v":0},{"$f":"IF(Setup!$AI$7<>\"\",INDIRECT(\"'\" & Setup!$AI$7 & \"'!\" & AD85),0) + IF(Setup!$AI$8<>\"\",INDIRECT(\"'\" & Setup!$AI$8 & \"'!\" & AD85),0) + IF(Setup!$AI$9<>\"\",INDIRECT(\"'\" & Setup!$AI$9 & \"'!\" & AD85),0) + IF(Setup!$AI$10<>\"\",INDIRECT(\"'\" & Setup!$AI$10 & \"'!\" & AD85),0) + IF(Setup!$AI$11<>\"\",INDIRECT(\"'\" & Setup!$AI$11 & \"'!\" & AD85),0) + IF(Setup!$AI$12<>\"\",INDIRECT(\"'\" & Setup!$AI$12 & \"'!\" & AD85),0)","v":0},{"$f":"IF(Setup!$AI$7<>\"\",INDIRECT(\"'\" & Setup!$AI$7 & \"'!\" & AE85),0) + IF(Setup!$AI$8<>\"\",INDIRECT(\"'\" & Setup!$AI$8 & \"'!\" & AE85),0) + IF(Setup!$AI$9<>\"\",INDIRECT(\"'\" & Setup!$AI$9 & \"'!\" & AE85),0) + IF(Setup!$AI$10<>\"\",INDIRECT(\"'\" & Setup!$AI$10 & \"'!\" & AE85),0) + IF(Setup!$AI$11<>\"\",INDIRECT(\"'\" & Setup!$AI$11 & \"'!\" & AE85),0) + IF(Setup!$AI$12<>\"\",INDIRECT(\"'\" & Setup!$AI$12 & \"'!\" & AE85),0)","v":0},{"$f":"IF(Setup!$AJ$7<>\"\",INDIRECT(\"'\" & Setup!$AJ$7 & \"'!\" & AD85),0) + IF(Setup!$AJ$8<>\"\",INDIRECT(\"'\" & Setup!$AJ$8 & \"'!\" & AD85),0) + IF(Setup!$AJ$9<>\"\",INDIRECT(\"'\" & Setup!$AJ$9 & \"'!\" & AD85),0) + IF(Setup!$AJ$10<>\"\",INDIRECT(\"'\" & Setup!$AJ$10 & \"'!\" & AD85),0) + IF(Setup!$AJ$11<>\"\",INDIRECT(\"'\" & Setup!$AJ$11 & \"'!\" & AD85),0) + IF(Setup!$AJ$12<>\"\",INDIRECT(\"'\" & Setup!$AJ$12 & \"'!\" & AD85),0)","v":0},{"$f":"IF(Setup!$AJ$7<>\"\",INDIRECT(\"'\" & Setup!$AJ$7 & \"'!\" & AE85),0) + IF(Setup!$AJ$8<>\"\",INDIRECT(\"'\" & Setup!$AJ$8 & \"'!\" & AE85),0) + IF(Setup!$AJ$9<>\"\",INDIRECT(\"'\" & Setup!$AJ$9 & \"'!\" & AE85),0) + IF(Setup!$AJ$10<>\"\",INDIRECT(\"'\" & Setup!$AJ$10 & \"'!\" & AE85),0) + IF(Setup!$AJ$11<>\"\",INDIRECT(\"'\" & Setup!$AJ$11 & \"'!\" & AE85),0) + IF(Setup!$AJ$12<>\"\",INDIRECT(\"'\" & Setup!$AJ$12 & \"'!\" & AE85),0)","v":0}]
[{"$f":"Planning!A69","v":"I061"},{"$f":"Planning!B69","v":0},{"$f":"Planning!C69","v":0},{"$f":"Planning!D69","v":0},{"$f":"Planning!E69","v":0},{"$f":"Planning!G69","v":0},null,0,0,{"$f":"IF(AND($AR86=\"2\",$AB85<>Lists!$A$17),AU86,AT86)","v":""},"",0,0,{"$f":"IF(AND($AR86=\"2\",$AB86<>Lists!$A$17),AW86,AV86)","v":""},"",0,0,{"$f":"IF(AND($AR86=\"2\",$AB86<>Lists!$A$17),AY86,AX86)","v":""},"",0,0,{"$f":"IF(AND($AR86=\"2\",$AB86<>Lists!$A$17),BA86,AZ86)","v":""},"",0,0,{"$f":"IF(AND($AR86=\"2\",$AB86<>Lists!$A$17),BC86,BB86)","v":""},"",{"$f":"Planning!H69","v":0},"00","H85","J85","I85","",null,{"$f":"IF(Setup!$AG$7<>\"\",INDIRECT(\"'\" & Setup!$AG$7 & \"'!\" & AF86),0) + IF(Setup!$AG$8<>\"\",INDIRECT(\"'\" & Setup!$AG$8 & \"'!\" & AF86),0) + IF(Setup!$AG$9<>\"\",INDIRECT(\"'\" & Setup!$AG$9 & \"'!\" & AF86),0) + IF(Setup!$AG$10<>\"\",INDIRECT(\"'\" & Setup!$AG$10 & \"'!\" & AF86),0) + IF(Setup!$AG$11<>\"\",INDIRECT(\"'\" & Setup!$AG$11 & \"'!\" & AF86),0) + IF(Setup!$AG$12<>\"\",INDIRECT(\"'\" & Setup!$AG$12 & \"'!\" & AF86),0)","v":0},{"$f":"IF(Setup!$AH$7<>\"\",INDIRECT(\"'\" & Setup!$AH$7 & \"'!\" & AF86),0) + IF(Setup!$AH$8<>\"\",INDIRECT(\"'\" & Setup!$AH$8 & \"'!\" & AF86),0) + IF(Setup!$AH$9<>\"\",INDIRECT(\"'\" & Setup!$AH$9 & \"'!\" & AF86),0) + IF(Setup!$AH$10<>\"\",INDIRECT(\"'\" & Setup!$AH$10 & \"'!\" & AF86),0) + IF(Setup!$AH$11<>\"\",INDIRECT(\"'\" & Setup!$AH$11 & \"'!\" & AF86),0) + IF(Setup!$AH$12<>\"\",INDIRECT(\"'\" & Setup!$AH$12 & \"'!\" & AF86),0)","v":0},{"$f":"IF(Setup!$AI$7<>\"\",INDIRECT(\"'\" & Setup!$AI$7 & \"'!\" & AF86),0) + IF(Setup!$AI$8<>\"\",INDIRECT(\"'\" & Setup!$AI$8 & \"'!\" & AF86),0) + IF(Setup!$AI$9<>\"\",INDIRECT(\"'\" & Setup!$AI$9 & \"'!\" & AF86),0) + IF(Setup!$AI$10<>\"\",INDIRECT(\"'\" & Setup!$AI$10 & \"'!\" & AF86),0) + IF(Setup!$AI$11<>\"\",INDIRECT(\"'\" & Setup!$AI$11 & \"'!\" & AF86),0) + IF(Setup!$AI$12<>\"\",INDIRECT(\"'\" & Setup!$AI$12 & \"'!\" & AF86),0)","v":0},{"$f":"IF(Setup!$AJ$7<>\"\",INDIRECT(\"'\" & Setup!$AJ$7 & \"'!\" & AF86),0) + IF(Setup!$AJ$8<>\"\",INDIRECT(\"'\" & Setup!$AJ$8 & \"'!\" & AF86),0) + IF(Setup!$AJ$9<>\"\",INDIRECT(\"'\" & Setup!$AJ$9 & \"'!\" & AF86),0) + IF(Setup!$AJ$10<>\"\",INDIRECT(\"'\" & Setup!$AJ$10 & \"'!\" & AF86),0) + IF(Setup!$AJ$11<>\"\",INDIRECT(\"'\" & Setup!$AJ$11 & \"'!\" & AF86),0) + IF(Setup!$AJ$12<>\"\",INDIRECT(\"'\" & Setup!$AJ$12 & \"'!\" & AF86),0)","v":0},null,"",{"$nulls":3},{"$f":"IF(C86=0,\"\",LEFT(INDEX(Lists!$H$5:$H$49,MATCH(C86,Lists!$G$5:$G$49,0),1),1))","v":""},null,"","","","","","","","","","",{"$nulls":6},{"$f":"IF(Setup!$AG$7<>\"\",INDIRECT(\"'\" & Setup!$AG$7 & \"'!\" & AD86),0) + IF(Setup!$AG$8<>\"\",INDIRECT(\"'\" & Setup!$AG$8 & \"'!\" & AD86),0) + IF(Setup!$AG$9<>\"\",INDIRECT(\"'\" & Setup!$AG$9 & \"'!\" & AD86),0) + IF(Setup!$AG$10<>\"\",INDIRECT(\"'\" & Setup!$AG$10 & \"'!\" & AD86),0) + IF(Setup!$AG$11<>\"\",INDIRECT(\"'\" & Setup!$AG$11 & \"'!\" & AD86),0) + IF(Setup!$AG$12<>\"\",INDIRECT(\"'\" & Setup!$AG$12 & \"'!\" & AD86),0)","v":0},{"$f":"IF(Setup!$AG$7<>\"\",INDIRECT(\"'\" & Setup!$AG$7 & \"'!\" & AE86),0) + IF(Setup!$AG$8<>\"\",INDIRECT(\"'\" & Setup!$AG$8 & \"'!\" & AE86),0) + IF(Setup!$AG$9<>\"\",INDIRECT(\"'\" & Setup!$AG$9 & \"'!\" & AE86),0) + IF(Setup!$AG$10<>\"\",INDIRECT(\"'\" & Setup!$AG$10 & \"'!\" & AE86),0) + IF(Setup!$AG$11<>\"\",INDIRECT(\"'\" & Setup!$AG$11 & \"'!\" & AE86),0) + IF(Setup!$AG$12<>\"\",INDIRECT(\"'\" & Setup!$AG$12 & \"'!\" & AE86),0)","v":0},{"$f":"IF(Setup!$AH$7<>\"\",INDIRECT(\"'\" & Setup!$AH$7 & \"'!\" & AD86),0) + IF(Setup!$AH$8<>\"\",INDIRECT(\"'\" & Setup!$AH$8 & \"'!\" & AD86),0) + IF(Setup!$AH$9<>\"\",INDIRECT(\"'\" & Setup!$AH$9 & \"'!\" & AD86),0) + IF(Setup!$AH$10<>\"\",INDIRECT(\"'\" & Setup!$AH$10 & \"'!\" & AD86),0) + IF(Setup!$AH$11<>\"\",INDIRECT(\"'\" & Setup!$AH$11 & \"'!\" & AD86),0) + IF(Setup!$AH$12<>\"\",INDIRECT(\"'\" & Setup!$AH$12 & \"'!\" & AD86),0)","v":0},{"$f":"IF(Setup!$AH$7<>\"\",INDIRECT(\"'\" & Setup!$AH$7 & \"'!\" & AE86),0) + IF(Setup!$AH$8<>\"\",INDIRECT(\"'\" & Setup!$AH$8 & \"'!\" & AE86),0) + IF(Setup!$AH$9<>\"\",INDIRECT(\"'\" & Setup!$AH$9 & \"'!\" & AE86),0) + IF(Setup!$AH$10<>\"\",INDIRECT(\"'\" & Setup!$AH$10 & \"'!\" & AE86),0) + IF(Setup!$AH$11<>\"\",INDIRECT(\"'\" & Setup!$AH$11 & \"'!\" & AE86),0) + IF(Setup!$AH$12<>\"\",INDIRECT(\"'\" & Setup!$AH$12 & \"'!\" & AE86),0)","v":0},{"$f":"IF(Setup!$AI$7<>\"\",INDIRECT(\"'\" & Setup!$AI$7 & \"'!\" & AD86),0) + IF(Setup!$AI$8<>\"\",INDIRECT(\"'\" & Setup!$AI$8 & \"'!\" & AD86),0) + IF(Setup!$AI$9<>\"\",INDIRECT(\"'\" & Setup!$AI$9 & \"'!\" & AD86),0) + IF(Setup!$AI$10<>\"\",INDIRECT(\"'\" & Setup!$AI$10 & \"'!\" & AD86),0) + IF(Setup!$AI$11<>\"\",INDIRECT(\"'\" & Setup!$AI$11 & \"'!\" & AD86),0) + IF(Setup!$AI$12<>\"\",INDIRECT(\"'\" & Setup!$AI$12 & \"'!\" & AD86),0)","v":0},{"$f":"IF(Setup!$AI$7<>\"\",INDIRECT(\"'\" & Setup!$AI$7 & \"'!\" & AE86),0) + IF(Setup!$AI$8<>\"\",INDIRECT(\"'\" & Setup!$AI$8 & \"'!\" & AE86),0) + IF(Setup!$AI$9<>\"\",INDIRECT(\"'\" & Setup!$AI$9 & \"'!\" & AE86),0) + IF(Setup!$AI$10<>\"\",INDIRECT(\"'\" & Setup!$AI$10 & \"'!\" & AE86),0) + IF(Setup!$AI$11<>\"\",INDIRECT(\"'\" & Setup!$AI$11 & \"'!\" & AE86),0) + IF(Setup!$AI$12<>\"\",INDIRECT(\"'\" & Setup!$AI$12 & \"'!\" & AE86),0)","v":0},{"$f":"IF(Setup!$AJ$7<>\"\",INDIRECT(\"'\" & Setup!$AJ$7 & \"'!\" & AD86),0) + IF(Setup!$AJ$8<>\"\",INDIRECT(\"'\" & Setup!$AJ$8 & \"'!\" & AD86),0) + IF(Setup!$AJ$9<>\"\",INDIRECT(\"'\" & Setup!$AJ$9 & \"'!\" & AD86),0) + IF(Setup!$AJ$10<>\"\",INDIRECT(\"'\" & Setup!$AJ$10 & \"'!\" & AD86),0) + IF(Setup!$AJ$11<>\"\",INDIRECT(\"'\" & Setup!$AJ$11 & \"'!\" & AD86),0) + IF(Setup!$AJ$12<>\"\",INDIRECT(\"'\" & Setup!$AJ$12 & \"'!\" & AD86),0)","v":0},{"$f":"IF(Setup!$AJ$7<>\"\",INDIRECT(\"'\" & Setup!$AJ$7 & \"'!\" & AE86),0) + IF(Setup!$AJ$8<>\"\",INDIRECT(\"'\" & Setup!$AJ$8 & \"'!\" & AE86),0) + IF(Setup!$AJ$9<>\"\",INDIRECT(\"'\" & Setup!$AJ$9 & \"'!\" & AE86),0) + IF(Setup!$AJ$10<>\"\",INDIRECT(\"'\" & Setup!$AJ$10 & \"'!\" & AE86),0) + IF(Setup!$AJ$11<>\"\",INDIRECT(\"'\" & Setup!$AJ$11 & \"'!\" & AE86),0) + IF(Setup!$AJ$12<>\"\",INDIRECT(\"'\" & Setup!$AJ$12 & \"'!\" & AE86),0)","v":0}]
[{"$f":"Planning!A70","v":"I062"},{"$f":"Planning!B70","v":0},{"$f":"Planning!C70","v":0},{"$f":"Planning!D70","v":0},{"$f":"Planning!E70","v":0},{"$f":"Planning!G70","v":0},null,0,0,{"$f":"IF(AND($AR87=\"2\",$AB86<>Lists!$A$17),AU87,AT87)","v":""},"",0,0,{"$f":"IF(AND($AR87=\"2\",$AB87<>Lists!$A$17),AW87,AV87)","v":""},"",0,0,{"$f":"IF(AND($AR87=\"2\",$AB87<>Lists!$A$17),AY87,AX87)","v":""},"",0,0,{"$f":"IF(AND($AR87=\"2\",$AB87<>Lists!$A$17),BA87,AZ87)","v":""},"",0,0,{"$f":"IF(AND($AR87=\"2\",$AB87<>Lists!$A$17),BC87,BB87)","v":""},"",{"$f":"Planning!H70","v":0},"00","H86","J86","I86","",null,{"$f":"IF(Setup!$AG$7<>\"\",INDIRECT(\"'\" & Setup!$AG$7 & \"'!\" & AF87),0) + IF(Setup!$AG$8<>\"\",INDIRECT(\"'\" & Setup!$AG$8 & \"'!\" & AF87),0) + IF(Setup!$AG$9<>\"\",INDIRECT(\"'\" & Setup!$AG$9 & \"'!\" & AF87),0) + IF(Setup!$AG$10<>\"\",INDIRECT(\"'\" & Setup!$AG$10 & \"'!\" & AF87),0) + IF(Setup!$AG$11<>\"\",INDIRECT(\"'\" & Setup!$AG$11 & \"'!\" & AF87),0) + IF(Setup!$AG$12<>\"\",INDIRECT(\"'\" & Setup!$AG$12 & \"'!\" & AF87),0)","v":0},{"$f":"IF(Setup!$AH$7<>\"\",INDIRECT(\"'\" & Setup!$AH$7 & \"'!\" & AF87),0) + IF(Setup!$AH$8<>\"\",INDIRECT(\"'\" & Setup!$AH$8 & \"'!\" & AF87),0) + IF(Setup!$AH$9<>\"\",INDIRECT(\"'\" & Setup!$AH$9 & \"'!\" & AF87),0) + IF(Setup!$AH$10<>\"\",INDIRECT(\"'\" & Setup!$AH$10 & \"'!\" & AF87),0) + IF(Setup!$AH$11<>\"\",INDIRECT(\"'\" & Setup!$AH$11 & \"'!\" & AF87),0) + IF(Setup!$AH$12<>\"\",INDIRECT(\"'\" & Setup!$AH$12 & \"'!\" & AF87),0)","v":0},{"$f":"IF(Setup!$AI$7<>\"\",INDIRECT(\"'\" & Setup!$AI$7 & \"'!\" & AF87),0) + IF(Setup!$AI$8<>\"\",INDIRECT(\"'\" & Setup!$AI$8 & \"'!\" & AF87),0) + IF(Setup!$AI$9<>\"\",INDIRECT(\"'\" & Setup!$AI$9 & \"'!\" & AF87),0) + IF(Setup!$AI$10<>\"\",INDIRECT(\"'\" & Setup!$AI$10 & \"'!\" & AF87),0) + IF(Setup!$AI$11<>\"\",INDIRECT(\"'\" & Setup!$AI$11 & \"'!\" & AF87),0) + IF(Setup!$AI$12<>\"\",INDIRECT(\"'\" & Setup!$AI$12 & \"'!\" & AF87),0)","v":0},{"$f":"IF(Setup!$AJ$7<>\"\",INDIRECT(\"'\" & Setup!$AJ$7 & \"'!\" & AF87),0) + IF(Setup!$AJ$8<>\"\",INDIRECT(\"'\" & Setup!$AJ$8 & \"'!\" & AF87),0) + IF(Setup!$AJ$9<>\"\",INDIRECT(\"'\" & Setup!$AJ$9 & \"'!\" & AF87),0) + IF(Setup!$AJ$10<>\"\",INDIRECT(\"'\" & Setup!$AJ$10 & \"'!\" & AF87),0) + IF(Setup!$AJ$11<>\"\",INDIRECT(\"'\" & Setup!$AJ$11 & \"'!\" & AF87),0) + IF(Setup!$AJ$12<>\"\",INDIRECT(\"'\" & Setup!$AJ$12 & \"'!\" & AF87),0)","v":0},null,"",{"$nulls":3},{"$f":"IF(C87=0,\"\",LEFT(INDEX(Lists!$H$5:$H$49,MATCH(C87,Lists!$G$5:$G$49,0),1),1))","v":""},null,"","","","","","","","","","",{"$nulls":6},{"$f":"IF(Setup!$AG$7<>\"\",INDIRECT(\"'\" & Setup!$AG$7 & \"'!\" & AD87),0) + IF(Setup!$AG$8<>\"\",INDIRECT(\"'\" & Setup!$AG$8 & \"'!\" & AD87),0) + IF(Setup!$AG$9<>\"\",INDIRECT(\"'\" & Setup!$AG$9 & \"'!\" & AD87),0) + IF(Setup!$AG$10<>\"\",INDIRECT(\"'\" & Setup!$AG$10 & \"'!\" & AD87),0) + IF(Setup!$AG$11<>\"\",INDIRECT(\"'\" & Setup!$AG$11 & \"'!\" & AD87),0) + IF(Setup!$AG$12<>\"\",INDIRECT(\"'\" & Setup!$AG$12 & \"'!\" & AD87),0)","v":0},{"$f":"IF(Setup!$AG$7<>\"\",INDIRECT(\"'\" & Setup!$AG$7 & \"'!\" & AE87),0) + IF(Setup!$AG$8<>\"\",INDIRECT(\"'\" & Setup!$AG$8 & \"'!\" & AE87),0) + IF(Setup!$AG$9<>\"\",INDIRECT(\"'\" & Setup!$AG$9 & \"'!\" & AE87),0) + IF(Setup!$AG$10<>\"\",INDIRECT(\"'\" & Setup!$AG$10 & \"'!\" & AE87),0) + IF(Setup!$AG$11<>\"\",INDIRECT(\"'\" & Setup!$AG$11 & \"'!\" & AE87),0) + IF(Setup!$AG$12<>\"\",INDIRECT(\"'\" & Setup!$AG$12 & \"'!\" & AE87),0)","v":0},{"$f":"IF(Setup!$AH$7<>\"\",INDIRECT(\"'\" & Setup!$AH$7 & \"'!\" & AD87),0) + IF(Setup!$AH$8<>\"\",INDIRECT(\"'\" & Setup!$AH$8 & \"'!\" & AD87),0) + IF(Setup!$AH$9<>\"\",INDIRECT(\"'\" & Setup!$AH$9 & \"'!\" & AD87),0) + IF(Setup!$AH$10<>\"\",INDIRECT(\"'\" & Setup!$AH$10 & \"'!\" & AD87),0) + IF(Setup!$AH$11<>\"\",INDIRECT(\"'\" & Setup!$AH$11 & \"'!\" & AD87),0) + IF(Setup!$AH$12<>\"\",INDIRECT(\"'\" & Setup!$AH$12 & \"'!\" & AD87),0)","v":0},{"$f":"IF(Setup!$AH$7<>\"\",INDIRECT(\"'\" & Setup!$AH$7 & \"'!\" & AE87),0) + IF(Setup!$AH$8<>\"\",INDIRECT(\"'\" & Setup!$AH$8 & \"'!\" & AE87),0) + IF(Setup!$AH$9<>\"\",INDIRECT(\"'\" & Setup!$AH$9 & \"'!\" & AE87),0) + IF(Setup!$AH$10<>\"\",INDIRECT(\"'\" & Setup!$AH$10 & \"'!\" & AE87),0) + IF(Setup!$AH$11<>\"\",INDIRECT(\"'\" & Setup!$AH$11 & \"'!\" & AE87),0) + IF(Setup!$AH$12<>\"\",INDIRECT(\"'\" & Setup!$AH$12 & \"'!\" & AE87),0)","v":0},{"$f":"IF(Setup!$AI$7<>\"\",INDIRECT(\"'\" & Setup!$AI$7 & \"'!\" & AD87),0) + IF(Setup!$AI$8<>\"\",INDIRECT(\"'\" & Setup!$AI$8 & \"'!\" & AD87),0) + IF(Setup!$AI$9<>\"\",INDIRECT(\"'\" & Setup!$AI$9 & \"'!\" & AD87),0) + IF(Setup!$AI$10<>\"\",INDIRECT(\"'\" & Setup!$AI$10 & \"'!\" & AD87),0) + IF(Setup!$AI$11<>\"\",INDIRECT(\"'\" & Setup!$AI$11 & \"'!\" & AD87),0) + IF(Setup!$AI$12<>\"\",INDIRECT(\"'\" & Setup!$AI$12 & \"'!\" & AD87),0)","v":0},{"$f":"IF(Setup!$AI$7<>\"\",INDIRECT(\"'\" & Setup!$AI$7 & \"'!\" & AE87),0) + IF(Setup!$AI$8<>\"\",INDIRECT(\"'\" & Setup!$AI$8 & \"'!\" & AE87),0) + IF(Setup!$AI$9<>\"\",INDIRECT(\"'\" & Setup!$AI$9 & \"'!\" & AE87),0) + IF(Setup!$AI$10<>\"\",INDIRECT(\"'\" & Setup!$AI$10 & \"'!\" & AE87),0) + IF(Setup!$AI$11<>\"\",INDIRECT(\"'\" & Setup!$AI$11 & \"'!\" & AE87),0) + IF(Setup!$AI$12<>\"\",INDIRECT(\"'\" & Setup!$AI$12 & \"'!\" & AE87),0)","v":0},{"$f":"IF(Setup!$AJ$7<>\"\",INDIRECT(\"'\" & Setup!$AJ$7 & \"'!\" & AD87),0) + IF(Setup!$AJ$8<>\"\",INDIRECT(\"'\" & Setup!$AJ$8 & \"'!\" & AD87),0) + IF(Setup!$AJ$9<>\"\",INDIRECT(\"'\" & Setup!$AJ$9 & \"'!\" & AD87),0) + IF(Setup!$AJ$10<>\"\",INDIRECT(\"'\" & Setup!$AJ$10 & \"'!\" & AD87),0) + IF(Setup!$AJ$11<>\"\",INDIRECT(\"'\" & Setup!$AJ$11 & \"'!\" & AD87),0) + IF(Setup!$AJ$12<>\"\",INDIRECT(\"'\" & Setup!$AJ$12 & \"'!\" & AD87),0)","v":0},{"$f":"IF(Setup!$AJ$7<>\"\",INDIRECT(\"'\" & Setup!$AJ$7 & \"'!\" & AE87),0) + IF(Setup!$AJ$8<>\"\",INDIRECT(\"'\" & Setup!$AJ$8 & \"'!\" & AE87),0) + IF(Setup!$AJ$9<>\"\",INDIRECT(\"'\" & Setup!$AJ$9 & \"'!\" & AE87),0) + IF(Setup!$AJ$10<>\"\",INDIRECT(\"'\" & Setup!$AJ$10 & \"'!\" & AE87),0) + IF(Setup!$AJ$11<>\"\",INDIRECT(\"'\" & Setup!$AJ$11 & \"'!\" & AE87),0) + IF(Setup!$AJ$12<>\"\",INDIRECT(\"'\" & Setup!$AJ$12 & \"'!\" & AE87),0)","v":0}]
[{"$f":"Planning!A71","v":"I063"},{"$f":"Planning!B71","v":0},{"$f":"Planning!C71","v":0},{"$f":"Planning!D71","v":0},{"$f":"Planning!E71","v":0},{"$f":"Planning!G71","v":0},null,0,0,{"$f":"IF(AND($AR88=\"2\",$AB87<>Lists!$A$17),AU88,AT88)","v":""},"",0,0,{"$f":"IF(AND($AR88=\"2\",$AB88<>Lists!$A$17),AW88,AV88)","v":""},"",0,0,{"$f":"IF(AND($AR88=\"2\",$AB88<>Lists!$A$17),AY88,AX88)","v":""},"",0,0,{"$f":"IF(AND($AR88=\"2\",$AB88<>Lists!$A$17),BA88,AZ88)","v":""},"",0,0,{"$f":"IF(AND($AR88=\"2\",$AB88<>Lists!$A$17),BC88,BB88)","v":""},"",{"$f":"Planning!H71","v":0},"00","H87","J87","I87","",null,{"$f":"IF(Setup!$AG$7<>\"\",INDIRECT(\"'\" & Setup!$AG$7 & \"'!\" & AF88),0) + IF(Setup!$AG$8<>\"\",INDIRECT(\"'\" & Setup!$AG$8 & \"'!\" & AF88),0) + IF(Setup!$AG$9<>\"\",INDIRECT(\"'\" & Setup!$AG$9 & \"'!\" & AF88),0) + IF(Setup!$AG$10<>\"\",INDIRECT(\"'\" & Setup!$AG$10 & \"'!\" & AF88),0) + IF(Setup!$AG$11<>\"\",INDIRECT(\"'\" & Setup!$AG$11 & \"'!\" & AF88),0) + IF(Setup!$AG$12<>\"\",INDIRECT(\"'\" & Setup!$AG$12 & \"'!\" & AF88),0)","v":0},{"$f":"IF(Setup!$AH$7<>\"\",INDIRECT(\"'\" & Setup!$AH$7 & \"'!\" & AF88),0) + IF(Setup!$AH$8<>\"\",INDIRECT(\"'\" & Setup!$AH$8 & \"'!\" & AF88),0) + IF(Setup!$AH$9<>\"\",INDIRECT(\"'\" & Setup!$AH$9 & \"'!\" & AF88),0) + IF(Setup!$AH$10<>\"\",INDIRECT(\"'\" & Setup!$AH$10 & \"'!\" & AF88),0) + IF(Setup!$AH$11<>\"\",INDIRECT(\"'\" & Setup!$AH$11 & \"'!\" & AF88),0) + IF(Setup!$AH$12<>\"\",INDIRECT(\"'\" & Setup!$AH$12 & \"'!\" & AF88),0)","v":0},{"$f":"IF(Setup!$AI$7<>\"\",INDIRECT(\"'\" & Setup!$AI$7 & \"'!\" & AF88),0) + IF(Setup!$AI$8<>\"\",INDIRECT(\"'\" & Setup!$AI$8 & \"'!\" & AF88),0) + IF(Setup!$AI$9<>\"\",INDIRECT(\"'\" & Setup!$AI$9 & \"'!\" & AF88),0) + IF(Setup!$AI$10<>\"\",INDIRECT(\"'\" & Setup!$AI$10 & \"'!\" & AF88),0) + IF(Setup!$AI$11<>\"\",INDIRECT(\"'\" & Setup!$AI$11 & \"'!\" & AF88),0) + IF(Setup!$AI$12<>\"\",INDIRECT(\"'\" & Setup!$AI$12 & \"'!\" & AF88),0)","v":0},{"$f":"IF(Setup!$AJ$7<>\"\",INDIRECT(\"'\" & Setup!$AJ$7 & \"'!\" & AF88),0) + IF(Setup!$AJ$8<>\"\",INDIRECT(\"'\" & Setup!$AJ$8 & \"'!\" & AF88),0) + IF(Setup!$AJ$9<>\"\",INDIRECT(\"'\" & Setup!$AJ$9 & \"'!\" & AF88),0) + IF(Setup!$AJ$10<>\"\",INDIRECT(\"'\" & Setup!$AJ$10 & \"'!\" & AF88),0) + IF(Setup!$AJ$11<>\"\",INDIRECT(\"'\" & Setup!$AJ$11 & \"'!\" & AF88),0) + IF(Setup!$AJ$12<>\"\",INDIRECT(\"'\" & Setup!$AJ$12 & \"'!\" & AF88),0)","v":0},null,"",{"$nulls":3},{"$f":"IF(C88=0,\"\",LEFT(INDEX(Lists!$H$5:$H$49,MATCH(C88,Lists!$G$5:$G$49,0),1),1))","v":""},null,"","","","","","","","","","",{"$nulls":6},{"$f":"IF(Setup!$AG$7<>\"\",INDIRECT(\"'\" & Setup!$AG$7 & \"'!\" & AD88),0) + IF(Setup!$AG$8<>\"\",INDIRECT(\"'\" & Setup!$AG$8 & \"'!\" & AD88),0) + IF(Setup!$AG$9<>\"\",INDIRECT(\"'\" & Setup!$AG$9 & \"'!\" & AD88),0) + IF(Setup!$AG$10<>\"\",INDIRECT(\"'\" & Setup!$AG$10 & \"'!\" & AD88),0) + IF(Setup!$AG$11<>\"\",INDIRECT(\"'\" & Setup!$AG$11 & \"'!\" & AD88),0) + IF(Setup!$AG$12<>\"\",INDIRECT(\"'\" & Setup!$AG$12 & \"'!\" & AD88),0)","v":0},{"$f":"IF(Setup!$AG$7<>\"\",INDIRECT(\"'\" & Setup!$AG$7 & \"'!\" & AE88),0) + IF(Setup!$AG$8<>\"\",INDIRECT(\"'\" & Setup!$AG$8 & \"'!\" & AE88),0) + IF(Setup!$AG$9<>\"\",INDIRECT(\"'\" & Setup!$AG$9 & \"'!\" & AE88),0) + IF(Setup!$AG$10<>\"\",INDIRECT(\"'\" & Setup!$AG$10 & \"'!\" & AE88),0) + IF(Setup!$AG$11<>\"\",INDIRECT(\"'\" & Setup!$AG$11 & \"'!\" & AE88),0) + IF(Setup!$AG$12<>\"\",INDIRECT(\"'\" & Setup!$AG$12 & \"'!\" & AE88),0)","v":0},{"$f":"IF(Setup!$AH$7<>\"\",INDIRECT(\"'\" & Setup!$AH$7 & \"'!\" & AD88),0) + IF(Setup!$AH$8<>\"\",INDIRECT(\"'\" & Setup!$AH$8 & \"'!\" & AD88),0) + IF(Setup!$AH$9<>\"\",INDIRECT(\"'\" & Setup!$AH$9 & \"'!\" & AD88),0) + IF(Setup!$AH$10<>\"\",INDIRECT(\"'\" & Setup!$AH$10 & \"'!\" & AD88),0) + IF(Setup!$AH$11<>\"\",INDIRECT(\"'\" & Setup!$AH$11 & \"'!\" & AD88),0) + IF(Setup!$AH$12<>\"\",INDIRECT(\"'\" & Setup!$AH$12 & \"'!\" & AD88),0)","v":0},{"$f":"IF(Setup!$AH$7<>\"\",INDIRECT(\"'\" & Setup!$AH$7 & \"'!\" & AE88),0) + IF(Setup!$AH$8<>\"\",INDIRECT(\"'\" & Setup!$AH$8 & \"'!\" & AE88),0) + IF(Setup!$AH$9<>\"\",INDIRECT(\"'\" & Setup!$AH$9 & \"'!\" & AE88),0) + IF(Setup!$AH$10<>\"\",INDIRECT(\"'\" & Setup!$AH$10 & \"'!\" & AE88),0) + IF(Setup!$AH$11<>\"\",INDIRECT(\"'\" & Setup!$AH$11 & \"'!\" & AE88),0) + IF(Setup!$AH$12<>\"\",INDIRECT(\"'\" & Setup!$AH$12 & \"'!\" & AE88),0)","v":0},{"$f":"IF(Setup!$AI$7<>\"\",INDIRECT(\"'\" & Setup!$AI$7 & \"'!\" & AD88),0) + IF(Setup!$AI$8<>\"\",INDIRECT(\"'\" & Setup!$AI$8 & \"'!\" & AD88),0) + IF(Setup!$AI$9<>\"\",INDIRECT(\"'\" & Setup!$AI$9 & \"'!\" & AD88),0) + IF(Setup!$AI$10<>\"\",INDIRECT(\"'\" & Setup!$AI$10 & \"'!\" & AD88),0) + IF(Setup!$AI$11<>\"\",INDIRECT(\"'\" & Setup!$AI$11 & \"'!\" & AD88),0) + IF(Setup!$AI$12<>\"\",INDIRECT(\"'\" & Setup!$AI$12 & \"'!\" & AD88),0)","v":0},{"$f":"IF(Setup!$AI$7<>\"\",INDIRECT(\"'\" & Setup!$AI$7 & \"'!\" & AE88),0) + IF(Setup!$AI$8<>\"\",INDIRECT(\"'\" & Setup!$AI$8 & \"'!\" & AE88),0) + IF(Setup!$AI$9<>\"\",INDIRECT(\"'\" & Setup!$AI$9 & \"'!\" & AE88),0) + IF(Setup!$AI$10<>\"\",INDIRECT(\"'\" & Setup!$AI$10 & \"'!\" & AE88),0) + IF(Setup!$AI$11<>\"\",INDIRECT(\"'\" & Setup!$AI$11 & \"'!\" & AE88),0) + IF(Setup!$AI$12<>\"\",INDIRECT(\"'\" & Setup!$AI$12 & \"'!\" & AE88),0)","v":0},{"$f":"IF(Setup!$AJ$7<>\"\",INDIRECT(\"'\" & Setup!$AJ$7 & \"'!\" & AD88),0) + IF(Setup!$AJ$8<>\"\",INDIRECT(\"'\" & Setup!$AJ$8 & \"'!\" & AD88),0) + IF(Setup!$AJ$9<>\"\",INDIRECT(\"'\" & Setup!$AJ$9 & \"'!\" & AD88),0) + IF(Setup!$AJ$10<>\"\",INDIRECT(\"'\" & Setup!$AJ$10 & \"'!\" & AD88),0) + IF(Setup!$AJ$11<>\"\",INDIRECT(\"'\" & Setup!$AJ$11 & \"'!\" & AD88),0) + IF(Setup!$AJ$12<>\"\",INDIRECT(\"'\" & Setup!$AJ$12 & \"'!\" & AD88),0)","v":0},{"$f":"IF(Setup!$AJ$7<>\"\",INDIRECT(\"'\" & Setup!$AJ$7 & \"'!\" & AE88),0) + IF(Setup!$AJ$8<>\"\",INDIRECT(\"'\" & Setup!$AJ$8 & \"'!\" & AE88),0) + IF(Setup!$AJ$9<>\"\",INDIRECT(\"'\" & Setup!$AJ$9 & \"'!\" & AE88),0) + IF(Setup!$AJ$10<>\"\",INDIRECT(\"'\" & Setup!$AJ$10 & \"'!\" & AE88),0) + IF(Setup!$AJ$11<>\"\",INDIRECT(\"'\" & Setup!$AJ$11 & \"'!\" & AE88),0) + IF(Setup!$AJ$12<>\"\",INDIRECT(\"'\" & Setup!$AJ$12 & \"'!\" & AE88),0)","v":0}]
[{"$f":"Planning!A72","v":"I064"},{"$f":"Planning!B72","v":0},{"$f":"Planning!C72","v":0},{"$f":"Planning!D72","v":0},{"$f":"Planning!E72","v":0},{"$f":"Planning!G72","v":0},null,0,0,{"$f":"IF(AND($AR89=\"2\",$AB88<>Lists!$A$17),AU89,AT89)","v":""},"",0,0,{"$f":"IF(AND($AR89=\"2\",$AB89<>Lists!$A$17),AW89,AV89)","v":""},"",0,0,{"$f":"IF(AND($AR89=\"2\",$AB89<>Lists!$A$17),AY89,AX89)","v":""},"",0,0,{"$f":"IF(AND($AR89=\"2\",$AB89<>Lists!$A$17),BA89,AZ89)","v":""},"",0,0,{"$f":"IF(AND($AR89=\"2\",$AB89<>Lists!$A$17),BC89,BB89)","v":""},"",{"$f":"Planning!H72","v":0},"00","H88","J88","I88","",null,{"$f":"IF(Setup!$AG$7<>\"\",INDIRECT(\"'\" & Setup!$AG$7 & \"'!\" & AF89),0) + IF(Setup!$AG$8<>\"\",INDIRECT(\"'\" & Setup!$AG$8 & \"'!\" & AF89),0) + IF(Setup!$AG$9<>\"\",INDIRECT(\"'\" & Setup!$AG$9 & \"'!\" & AF89),0) + IF(Setup!$AG$10<>\"\",INDIRECT(\"'\" & Setup!$AG$10 & \"'!\" & AF89),0) + IF(Setup!$AG$11<>\"\",INDIRECT(\"'\" & Setup!$AG$11 & \"'!\" & AF89),0) + IF(Setup!$AG$12<>\"\",INDIRECT(\"'\" & Setup!$AG$12 & \"'!\" & AF89),0)","v":0},{"$f":"IF(Setup!$AH$7<>\"\",INDIRECT(\"'\" & Setup!$AH$7 & \"'!\" & AF89),0) + IF(Setup!$AH$8<>\"\",INDIRECT(\"'\" & Setup!$AH$8 & \"'!\" & AF89),0) + IF(Setup!$AH$9<>\"\",INDIRECT(\"'\" & Setup!$AH$9 & \"'!\" & AF89),0) + IF(Setup!$AH$10<>\"\",INDIRECT(\"'\" & Setup!$AH$10 & \"'!\" & AF89),0) + IF(Setup!$AH$11<>\"\",INDIRECT(\"'\" & Setup!$AH$11 & \"'!\" & AF89),0) + IF(Setup!$AH$12<>\"\",INDIRECT(\"'\" & Setup!$AH$12 & \"'!\" & AF89),0)","v":0},{"$f":"IF(Setup!$AI$7<>\"\",INDIRECT(\"'\" & Setup!$AI$7 & \"'!\" & AF89),0) + IF(Setup!$AI$8<>\"\",INDIRECT(\"'\" & Setup!$AI$8 & \"'!\" & AF89),0) + IF(Setup!$AI$9<>\"\",INDIRECT(\"'\" & Setup!$AI$9 & \"'!\" & AF89),0) + IF(Setup!$AI$10<>\"\",INDIRECT(\"'\" & Setup!$AI$10 & \"'!\" & AF89),0) + IF(Setup!$AI$11<>\"\",INDIRECT(\"'\" & Setup!$AI$11 & \"'!\" & AF89),0) + IF(Setup!$AI$12<>\"\",INDIRECT(\"'\" & Setup!$AI$12 & \"'!\" & AF89),0)","v":0},{"$f":"IF(Setup!$AJ$7<>\"\",INDIRECT(\"'\" & Setup!$AJ$7 & \"'!\" & AF89),0) + IF(Setup!$AJ$8<>\"\",INDIRECT(\"'\" & Setup!$AJ$8 & \"'!\" & AF89),0) + IF(Setup!$AJ$9<>\"\",INDIRECT(\"'\" & Setup!$AJ$9 & \"'!\" & AF89),0) + IF(Setup!$AJ$10<>\"\",INDIRECT(\"'\" & Setup!$AJ$10 & \"'!\" & AF89),0) + IF(Setup!$AJ$11<>\"\",INDIRECT(\"'\" & Setup!$AJ$11 & \"'!\" & AF89),0) + IF(Setup!$AJ$12<>\"\",INDIRECT(\"'\" & Setup!$AJ$12 & \"'!\" & AF89),0)","v":0},null,"",{"$nulls":3},{"$f":"IF(C89=0,\"\",LEFT(INDEX(Lists!$H$5:$H$49,MATCH(C89,Lists!$G$5:$G$49,0),1),1))","v":""},null,"","","","","","","","","","",{"$nulls":6},{"$f":"IF(Setup!$AG$7<>\"\",INDIRECT(\"'\" & Setup!$AG$7 & \"'!\" & AD89),0) + IF(Setup!$AG$8<>\"\",INDIRECT(\"'\" & Setup!$AG$8 & \"'!\" & AD89),0) + IF(Setup!$AG$9<>\"\",INDIRECT(\"'\" & Setup!$AG$9 & \"'!\" & AD89),0) + IF(Setup!$AG$10<>\"\",INDIRECT(\"'\" & Setup!$AG$10 & \"'!\" & AD89),0) + IF(Setup!$AG$11<>\"\",INDIRECT(\"'\" & Setup!$AG$11 & \"'!\" & AD89),0) + IF(Setup!$AG$12<>\"\",INDIRECT(\"'\" & Setup!$AG$12 & \"'!\" & AD89),0)","v":0},{"$f":"IF(Setup!$AG$7<>\"\",INDIRECT(\"'\" & Setup!$AG$7 & \"'!\" & AE89),0) + IF(Setup!$AG$8<>\"\",INDIRECT(\"'\" & Setup!$AG$8 & \"'!\" & AE89),0) + IF(Setup!$AG$9<>\"\",INDIRECT(\"'\" & Setup!$AG$9 & \"'!\" & AE89),0) + IF(Setup!$AG$10<>\"\",INDIRECT(\"'\" & Setup!$AG$10 & \"'!\" & AE89),0) + IF(Setup!$AG$11<>\"\",INDIRECT(\"'\" & Setup!$AG$11 & \"'!\" & AE89),0) + IF(Setup!$AG$12<>\"\",INDIRECT(\"'\" & Setup!$AG$12 & \"'!\" & AE89),0)","v":0},{"$f":"IF(Setup!$AH$7<>\"\",INDIRECT(\"'\" & Setup!$AH$7 & \"'!\" & AD89),0) + IF(Setup!$AH$8<>\"\",INDIRECT(\"'\" & Setup!$AH$8 & \"'!\" & AD89),0) + IF(Setup!$AH$9<>\"\",INDIRECT(\"'\" & Setup!$AH$9 & \"'!\" & AD89),0) + IF(Setup!$AH$10<>\"\",INDIRECT(\"'\" & Setup!$AH$10 & \"'!\" & AD89),0) + IF(Setup!$AH$11<>\"\",INDIRECT(\"'\" & Setup!$AH$11 & \"'!\" & AD89),0) + IF(Setup!$AH$12<>\"\",INDIRECT(\"'\" & Setup!$AH$12 & \"'!\" & AD89),0)","v":0},{"$f":"IF(Setup!$AH$7<>\"\",INDIRECT(\"'\" & Setup!$AH$7 & \"'!\" & AE89),0) + IF(Setup!$AH$8<>\"\",INDIRECT(\"'\" & Setup!$AH$8 & \"'!\" & AE89),0) + IF(Setup!$AH$9<>\"\",INDIRECT(\"'\" & Setup!$AH$9 & \"'!\" & AE89),0) + IF(Setup!$AH$10<>\"\",INDIRECT(\"'\" & Setup!$AH$10 & \"'!\" & AE89),0) + IF(Setup!$AH$11<>\"\",INDIRECT(\"'\" & Setup!$AH$11 & \"'!\" & AE89),0) + IF(Setup!$AH$12<>\"\",INDIRECT(\"'\" & Setup!$AH$12 & \"'!\" & AE89),0)","v":0},{"$f":"IF(Setup!$AI$7<>\"\",INDIRECT(\"'\" & Setup!$AI$7 & \"'!\" & AD89),0) + IF(Setup!$AI$8<>\"\",INDIRECT(\"'\" & Setup!$AI$8 & \"'!\" & AD89),0) + IF(Setup!$AI$9<>\"\",INDIRECT(\"'\" & Setup!$AI$9 & \"'!\" & AD89),0) + IF(Setup!$AI$10<>\"\",INDIRECT(\"'\" & Setup!$AI$10 & \"'!\" & AD89),0) + IF(Setup!$AI$11<>\"\",INDIRECT(\"'\" & Setup!$AI$11 & \"'!\" & AD89),0) + IF(Setup!$AI$12<>\"\",INDIRECT(\"'\" & Setup!$AI$12 & \"'!\" & AD89),0)","v":0},{"$f":"IF(Setup!$AI$7<>\"\",INDIRECT(\"'\" & Setup!$AI$7 & \"'!\" & AE89),0) + IF(Setup!$AI$8<>\"\",INDIRECT(\"'\" & Setup!$AI$8 & \"'!\" & AE89),0) + IF(Setup!$AI$9<>\"\",INDIRECT(\"'\" & Setup!$AI$9 & \"'!\" & AE89),0) + IF(Setup!$AI$10<>\"\",INDIRECT(\"'\" & Setup!$AI$10 & \"'!\" & AE89),0) + IF(Setup!$AI$11<>\"\",INDIRECT(\"'\" & Setup!$AI$11 & \"'!\" & AE89),0) + IF(Setup!$AI$12<>\"\",INDIRECT(\"'\" & Setup!$AI$12 & \"'!\" & AE89),0)","v":0},{"$f":"IF(Setup!$AJ$7<>\"\",INDIRECT(\"'\" & Setup!$AJ$7 & \"'!\" & AD89),0) + IF(Setup!$AJ$8<>\"\",INDIRECT(\"'\" & Setup!$AJ$8 & \"'!\" & AD89),0) + IF(Setup!$AJ$9<>\"\",INDIRECT(\"'\" & Setup!$AJ$9 & \"'!\" & AD89),0) + IF(Setup!$AJ$10<>\"\",INDIRECT(\"'\" & Setup!$AJ$10 & \"'!\" & AD89),0) + IF(Setup!$AJ$11<>\"\",INDIRECT(\"'\" & Setup!$AJ$11 & \"'!\" & AD89),0) + IF(Setup!$AJ$12<>\"\",INDIRECT(\"'\" & Setup!$AJ$12 & \"'!\" & AD89),0)","v":0},{"$f":"IF(Setup!$AJ$7<>\"\",INDIRECT(\"'\" & Setup!$AJ$7 & \"'!\" & AE89),0) + IF(Setup!$AJ$8<>\"\",INDIRECT(\"'\" & Setup!$AJ$8 & \"'!\" & AE89),0) + IF(Setup!$AJ$9<>\"\",INDIRECT(\"'\" & Setup!$AJ$9 & \"'!\" & AE89),0) + IF(Setup!$AJ$10<>\"\",INDIRECT(\"'\" & Setup!$AJ$10 & \"'!\" & AE89),0) + IF(Setup!$AJ$11<>\"\",INDIRECT(\"'\" & Setup!$AJ$11 & \"'!\" & AE89),0) + IF(Setup!$AJ$12<>\"\",INDIRECT(\"'\" & Setup!$AJ$12 & \"'!\" & AE89),0)","v":0}]
[{"$f":"Planning!A73","v":"I065"},{"$f":"Planning!B73","v":0},{"$f":"Planning!C73","v":0},{"$f":"Planning!D73","v":0},{"$f":"Planning!E73","v":0},{"$f":"Planning!G73","v":0},null,0,0,{"$f":"IF(AND($AR90=\"2\",$AB89<>Lists!$A$17),AU90,AT90)","v":""},{"$f":"IF($AN90 = ExcluirDelPLogro,\"\",IF(AND(H90=0,I90=0),\"\",J90))","v":""},{"$f":"IF(AR90<>\"3\",BJ90,INDIRECT(\"'\" & MesCierreQ1 & \"'!\" & AD90))","v":0},{"$f":"IF(AR90<>\"3\",BK90,INDIRECT(\"'\" & MesCierreQ1 & \"'!\" & AE90))","v":0},{"$f":"IF(AND($AR90=\"2\",$AB90<>Lists!$A$17),AW90,AV90)","v":""},{"$f":"IF($AN90=ExcluirDelPLogro,\"\",IF(AND(L90=0,M90=0),\"\",N90))","v":""},{"$f":"IF(AR90<>\"3\",BL90,INDIRECT(\"'\" & MesCierreQ2 & \"'!\" & AD90))","v":0},{"$f":"IF(AR90<>\"3\",BM90,INDIRECT(\"'\" & MesCierreQ2 & \"'!\" & AE90))","v":0},{"$f":"IF(AND($AR90=\"2\",$AB90<>Lists!$A$17),AY90,AX90)","v":""},{"$f":"IF($AN90=ExcluirDelPLogro,\"\",IF(AND(P90=0,Q90=0),\"\",R90))","v":""},{"$f":"IF(AR90<>\"3\",BN90,INDIRECT(\"'\" & MesCierreQ3 & \"'!\" & AD90))","v":0},{"$f":"IF(AR90<>\"3\",BO90,INDIRECT(\"'\" & MesCierreQ3 & \"'!\" & AE90))","v":0},{"$f":"IF(AND($AR90=\"2\",$AB90<>Lists!$A$17),BA90,AZ90)","v":""},{"$f":"IF($AN90=ExcluirDelPLogro,\"\",IF(AND(T90=0,U90=0),\"\",V90))","v":""},{"$f":"IF(AR90<>\"3\",BP90,INDIRECT(\"'\" & MesCierreQ4 & \"'!\" & AD90))","v":0},{"$f":"IF(AR90<>\"3\",BQ90,INDIRECT(\"'\" & MesCierreQ4 & \"'!\" & AE90))","v":0},{"$f":"IF(AND($AR90=\"2\",$AB90<>Lists!$A$17),BC90,BB90)","v":""},{"$f":"IF($AN90=ExcluirDelPLogro,\"\",IF(AND(X90=0,Y90=0),\"\",Z90))","v":""},{"$f":"Planning!H73","v":0},"00","H89","J89","I89","",null,{"$f":"IF(Setup!$AG$7<>\"\",INDIRECT(\"'\" & Setup!$AG$7 & \"'!\" & AF90),0) + IF(Setup!$AG$8<>\"\",INDIRECT(\"'\" & Setup!$AG$8 & \"'!\" & AF90),0) + IF(Setup!$AG$9<>\"\",INDIRECT(\"'\" & Setup!$AG$9 & \"'!\" & AF90),0) + IF(Setup!$AG$10<>\"\",INDIRECT(\"'\" & Setup!$AG$10 & \"'!\" & AF90),0) + IF(Setup!$AG$11<>\"\",INDIRECT(\"'\" & Setup!$AG$11 & \"'!\" & AF90),0) + IF(Setup!$AG$12<>\"\",INDIRECT(\"'\" & Setup!$AG$12 & \"'!\" & AF90),0)","v":0},{"$f":"IF(Setup!$AH$7<>\"\",INDIRECT(\"'\" & Setup!$AH$7 & \"'!\" & AF90),0) + IF(Setup!$AH$8<>\"\",INDIRECT(\"'\" & Setup!$AH$8 & \"'!\" & AF90),0) + IF(Setup!$AH$9<>\"\",INDIRECT(\"'\" & Setup!$AH$9 & \"'!\" & AF90),0) + IF(Setup!$AH$10<>\"\",INDIRECT(\"'\" & Setup!$AH$10 & \"'!\" & AF90),0) + IF(Setup!$AH$11<>\"\",INDIRECT(\"'\" & Setup!$AH$11 & \"'!\" & AF90),0) + IF(Setup!$AH$12<>\"\",INDIRECT(\"'\" & Setup!$AH$12 & \"'!\" & AF90),0)","v":0},{"$f":"IF(Setup!$AI$7<>\"\",INDIRECT(\"'\" & Setup!$AI$7 & \"'!\" & AF90),0) + IF(Setup!$AI$8<>\"\",INDIRECT(\"'\" & Setup!$AI$8 & \"'!\" & AF90),0) + IF(Setup!$AI$9<>\"\",INDIRECT(\"'\" & Setup!$AI$9 & \"'!\" & AF90),0) + IF(Setup!$AI$10<>\"\",INDIRECT(\"'\" & Setup!$AI$10 & \"'!\" & AF90),0) + IF(Setup!$AI$11<>\"\",INDIRECT(\"'\" & Setup!$AI$11 & \"'!\" & AF90),0) + IF(Setup!$AI$12<>\"\",INDIRECT(\"'\" & Setup!$AI$12 & \"'!\" & AF90),0)","v":0},{"$f":"IF(Setup!$AJ$7<>\"\",INDIRECT(\"'\" & Setup!$AJ$7 & \"'!\" & AF90),0) + IF(Setup!$AJ$8<>\"\",INDIRECT(\"'\" & Setup!$AJ$8 & \"'!\" & AF90),0) + IF(Setup!$AJ$9<>\"\",INDIRECT(\"'\" & Setup!$AJ$9 & \"'!\" & AF90),0) + IF(Setup!$AJ$10<>\"\",INDIRECT(\"'\" & Setup!$AJ$10 & \"'!\" & AF90),0) + IF(Setup!$AJ$11<>\"\",INDIRECT(\"'\" & Setup!$AJ$11 & \"'!\" & AF90),0) + IF(Setup!$AJ$12<>\"\",INDIRECT(\"'\" & Setup!$AJ$12 & \"'!\" & AF90),0)","v":0},null,"",{"$nulls":3},{"$f":"IF(C90=0,\"\",LEFT(INDEX(Lists!$H$5:$H$49,MATCH(C90,Lists!$G$5:$G$49,0),1),1))","v":""},null,"","","","","","","","","","",{"$nulls":6},{"$f":"IF(Setup!$AG$7<>\"\",INDIRECT(\"'\" & Setup!$AG$7 & \"'!\" & AD90),0) + IF(Setup!$AG$8<>\"\",INDIRECT(\"'\" & Setup!$AG$8 & \"'!\" & AD90),0) + IF(Setup!$AG$9<>\"\",INDIRECT(\"'\" & Setup!$AG$9 & \"'!\" & AD90),0) + IF(Setup!$AG$10<>\"\",INDIRECT(\"'\" & Setup!$AG$10 & \"'!\" & AD90),0) + IF(Setup!$AG$11<>\"\",INDIRECT(\"'\" & Setup!$AG$11 & \"'!\" & AD90),0) + IF(Setup!$AG$12<>\"\",INDIRECT(\"'\" & Setup!$AG$12 & \"'!\" & AD90),0)","v":0},{"$f":"IF(Setup!$AG$7<>\"\",INDIRECT(\"'\" & Setup!$AG$7 & \"'!\" & AE90),0) + IF(Setup!$AG$8<>\"\",INDIRECT(\"'\" & Setup!$AG$8 & \"'!\" & AE90),0) + IF(Setup!$AG$9<>\"\",INDIRECT(\"'\" & Setup!$AG$9 & \"'!\" & AE90),0) + IF(Setup!$AG$10<>\"\",INDIRECT(\"'\" & Setup!$AG$10 & \"'!\" & AE90),0) + IF(Setup!$AG$11<>\"\",INDIRECT(\"'\" & Setup!$AG$11 & \"'!\" & AE90),0) + IF(Setup!$AG$12<>\"\",INDIRECT(\"'\" & Setup!$AG$12 & \"'!\" & AE90),0)","v":0},{"$f":"IF(Setup!$AH$7<>\"\",INDIRECT(\"'\" & Setup!$AH$7 & \"'!\" & AD90),0) + IF(Setup!$AH$8<>\"\",INDIRECT(\"'\" & Setup!$AH$8 & \"'!\" & AD90),0) + IF(Setup!$AH$9<>\"\",INDIRECT(\"'\" & Setup!$AH$9 & \"'!\" & AD90),0) + IF(Setup!$AH$10<>\"\",INDIRECT(\"'\" & Setup!$AH$10 & \"'!\" & AD90),0) + IF(Setup!$AH$11<>\"\",INDIRECT(\"'\" & Setup!$AH$11 & \"'!\" & AD90),0) + IF(Setup!$AH$12<>\"\",INDIRECT(\"'\" & Setup!$AH$12 & \"'!\" & AD90),0)","v":0},{"$f":"IF(Setup!$AH$7<>\"\",INDIRECT(\"'\" & Setup!$AH$7 & \"'!\" & AE90),0) + IF(Setup!$AH$8<>\"\",INDIRECT(\"'\" & Setup!$AH$8 & \"'!\" & AE90),0) + IF(Setup!$AH$9<>\"\",INDIRECT(\"'\" & Setup!$AH$9 & \"'!\" & AE90),0) + IF(Setup!$AH$10<>\"\",INDIRECT(\"'\" & Setup!$AH$10 & \"'!\" & AE90),0) + IF(Setup!$AH$11<>\"\",INDIRECT(\"'\" & Setup!$AH$11 & \"'!\" & AE90),0) + IF(Setup!$AH$12<>\"\",INDIRECT(\"'\" & Setup!$AH$12 & \"'!\" & AE90),0)","v":0},{"$f":"IF(Setup!$AI$7<>\"\",INDIRECT(\"'\" & Setup!$AI$7 & \"'!\" & AD90),0) + IF(Setup!$AI$8<>\"\",INDIRECT(\"'\" & Setup!$AI$8 & \"'!\" & AD90),0) + IF(Setup!$AI$9<>\"\",INDIRECT(\"'\" & Setup!$AI$9 & \"'!\" & AD90),0) + IF(Setup!$AI$10<>\"\",INDIRECT(\"'\" & Setup!$AI$10 & \"'!\" & AD90),0) + IF(Setup!$AI$11<>\"\",INDIRECT(\"'\" & Setup!$AI$11 & \"'!\" & AD90),0) + IF(Setup!$AI$12<>\"\",INDIRECT(\"'\" & Setup!$AI$12 & \"'!\" & AD90),0)","v":0},{"$f":"IF(Setup!$AI$7<>\"\",INDIRECT(\"'\" & Setup!$AI$7 & \"'!\" & AE90),0) + IF(Setup!$AI$8<>\"\",INDIRECT(\"'\" & Setup!$AI$8 & \"'!\" & AE90),0) + IF(Setup!$AI$9<>\"\",INDIRECT(\"'\" & Setup!$AI$9 & \"'!\" & AE90),0) + IF(Setup!$AI$10<>\"\",INDIRECT(\"'\" & Setup!$AI$10 & \"'!\" & AE90),0) + IF(Setup!$AI$11<>\"\",INDIRECT(\"'\" & Setup!$AI$11 & \"'!\" & AE90),0) + IF(Setup!$AI$12<>\"\",INDIRECT(\"'\" & Setup!$AI$12 & \"'!\" & AE90),0)","v":0},{"$f":"IF(Setup!$AJ$7<>\"\",INDIRECT(\"'\" & Setup!$AJ$7 & \"'!\" & AD90),0) + IF(Setup!$AJ$8<>\"\",INDIRECT(\"'\" & Setup!$AJ$8 & \"'!\" & AD90),0) + IF(Setup!$AJ$9<>\"\",INDIRECT(\"'\" & Setup!$AJ$9 & \"'!\" & AD90),0) + IF(Setup!$AJ$10<>\"\",INDIRECT(\"'\" & Setup!$AJ$10 & \"'!\" & AD90),0) + IF(Setup!$AJ$11<>\"\",INDIRECT(\"'\" & Setup!$AJ$11 & \"'!\" & AD90),0) + IF(Setup!$AJ$12<>\"\",INDIRECT(\"'\" & Setup!$AJ$12 & \"'!\" & AD90),0)","v":0},{"$f":"IF(Setup!$AJ$7<>\"\",INDIRECT(\"'\" & Setup!$AJ$7 & \"'!\" & AE90),0) + IF(Setup!$AJ$8<>\"\",INDIRECT(\"'\" & Setup!$AJ$8 & \"'!\" & AE90),0) + IF(Setup!$AJ$9<>\"\",INDIRECT(\"'\" & Setup!$AJ$9 & \"'!\" & AE90),0) + IF(Setup!$AJ$10<>\"\",INDIRECT(\"'\" & Setup!$AJ$10 & \"'!\" & AE90),0) + IF(Setup!$AJ$11<>\"\",INDIRECT(\"'\" & Setup!$AJ$11 & \"'!\" & AE90),0) + IF(Setup!$AJ$12<>\"\",INDIRECT(\"'\" & Setup!$AJ$12 & \"'!\" & AE90),0)","v":0}]
[{"$f":"Planning!A74","v":"I066"},{"$f":"Planning!B74","v":0},{"$f":"Planning!C74","v":0},{"$f":"Planning!D74","v":0},{"$f":"Planning!E74","v":0},{"$f":"Planning!G74","v":0},null,{"$f":"IF(AR91<>\"3\",SUM(L91,P91,T91,X91),X91)","v":0},{"$f":"IF(AR91<>\"3\",SUM(M91,Q91,U91,Y91),Y91)","v":0},{"$f":"IF(AND($AR91=\"2\",$AB90<>Lists!$A$17),AU91,AT91)","v":""},"",0,0,{"$f":"IF(AND($AR91=\"2\",$AB91<>Lists!$A$17),AW91,AV91)","v":""},"",0,0,{"$f":"IF(AND($AR91=\"2\",$AB91<>Lists!$A$17),AY91,AX91)","v":""},"",0,0,{"$f":"IF(AND($AR91=\"2\",$AB91<>Lists!$A$17),BA91,AZ91)","v":""},"",0,0,{"$f":"IF(AND($AR91=\"2\",$AB91<>Lists!$A$17),BC91,BB91)","v":""},"",{"$f":"Planning!H74","v":0},{"$f":"LEFT(B91,1)&C91","v":"00"},"H90","J90","I90",{"$f":"IF(E91=0,\"\",\"[\"&A91&\"] \"&E91)","v":""},null,{"$f":"IF(Setup!$AG$7<>\"\",INDIRECT(\"'\" & Setup!$AG$7 & \"'!\" & AF91),0) + IF(Setup!$AG$8<>\"\",INDIRECT(\"'\" & Setup!$AG$8 & \"'!\" & AF91),0) + IF(Setup!$AG$9<>\"\",INDIRECT(\"'\" & Setup!$AG$9 & \"'!\" & AF91),0) + IF(Setup!$AG$10<>\"\",INDIRECT(\"'\" & Setup!$AG$10 & \"'!\" & AF91),0) + IF(Setup!$AG$11<>\"\",INDIRECT(\"'\" & Setup!$AG$11 & \"'!\" & AF91),0) + IF(Setup!$AG$12<>\"\",INDIRECT(\"'\" & Setup!$AG$12 & \"'!\" & AF91),0)","v":0},{"$f":"IF(Setup!$AH$7<>\"\",INDIRECT(\"'\" & Setup!$AH$7 & \"'!\" & AF91),0) + IF(Setup!$AH$8<>\"\",INDIRECT(\"'\" & Setup!$AH$8 & \"'!\" & AF91),0) + IF(Setup!$AH$9<>\"\",INDIRECT(\"'\" & Setup!$AH$9 & \"'!\" & AF91),0) + IF(Setup!$AH$10<>\"\",INDIRECT(\"'\" & Setup!$AH$10 & \"'!\" & AF91),0) + IF(Setup!$AH$11<>\"\",INDIRECT(\"'\" & Setup!$AH$11 & \"'!\" & AF91),0) + IF(Setup!$AH$12<>\"\",INDIRECT(\"'\" & Setup!$AH$12 & \"'!\" & AF91),0)","v":0},{"$f":"IF(Setup!$AI$7<>\"\",INDIRECT(\"'\" & Setup!$AI$7 & \"'!\" & AF91),0) + IF(Setup!$AI$8<>\"\",INDIRECT(\"'\" & Setup!$AI$8 & \"'!\" & AF91),0) + IF(Setup!$AI$9<>\"\",INDIRECT(\"'\" & Setup!$AI$9 & \"'!\" & AF91),0) + IF(Setup!$AI$10<>\"\",INDIRECT(\"'\" & Setup!$AI$10 & \"'!\" & AF91),0) + IF(Setup!$AI$11<>\"\",INDIRECT(\"'\" & Setup!$AI$11 & \"'!\" & AF91),0) + IF(Setup!$AI$12<>\"\",INDIRECT(\"'\" & Setup!$AI$12 & \"'!\" & AF91),0)","v":0},{"$f":"IF(Setup!$AJ$7<>\"\",INDIRECT(\"'\" & Setup!$AJ$7 & \"'!\" & AF91),0) + IF(Setup!$AJ$8<>\"\",INDIRECT(\"'\" & Setup!$AJ$8 & \"'!\" & AF91),0) + IF(Setup!$AJ$9<>\"\",INDIRECT(\"'\" & Setup!$AJ$9 & \"'!\" & AF91),0) + IF(Setup!$AJ$10<>\"\",INDIRECT(\"'\" & Setup!$AJ$10 & \"'!\" & AF91),0) + IF(Setup!$AJ$11<>\"\",INDIRECT(\"'\" & Setup!$AJ$11 & \"'!\" & AF91),0) + IF(Setup!$AJ$12<>\"\",INDIRECT(\"'\" & Setup!$AJ$12 & \"'!\" & AF91),0)","v":0},null,{"$f":"IF(B91=0,\"\",IF(LEFT(B91,1)=\"1\",\"1\",\"2\"))","v":""},{"$nulls":3},{"$f":"IF(C91=0,\"\",LEFT(INDEX(Lists!$H$5:$H$49,MATCH(C91,Lists!$G$5:$G$49,0),1),1))","v":""},null,{"$f":"IF(AND(H91=0,I91=0),\"\",IF(H91>0,I91/H91,I91))","v":""},{"$f":"IF(AND(H91=0,I91=0),\"\",IF(I91>0,H91/I91,0))","v":""},{"$f":"IF(AND(L91=0,M91=0),\"\",IF(L91>0,M91/L91,M91))","v":""},{"$f":"IF(AND(L91=0,M91=0),\"\",IF(M91>0,L91/M91,0))","v":""},{"$f":"IF(AND(P91=0,Q91=0),\"\",IF(P91>0,Q91/P91,Q91))","v":""},{"$f":"IF(AND(P91=0,Q91=0),\"\",IF(Q91>0,P91/Q91,0))","v":""},{"$f":"IF(AND(T91=0,U91=0),\"\",IF(T91>0,U91/T91,U91))","v":""},{"$f":"IF(AND(T91=0,U91=0),\"\",IF(U91>0,T91/U91,0))","v":""},{"$f":"IF(AND(X91=0,Y91=0),\"\",IF(X91>0,Y91/X91,Y91))","v":""},{"$f":"IF(AND(X91=0,Y91=0),\"\",IF(Y91>0,X91/Y91,0))","v":""},{"$nulls":6},{"$f":"IF(Setup!$AG$7<>\"\",INDIRECT(\"'\" & Setup!$AG$7 & \"'!\" & AD91),0) + IF(Setup!$AG$8<>\"\",INDIRECT(\"'\" & Setup!$AG$8 & \"'!\" & AD91),0) + IF(Setup!$AG$9<>\"\",INDIRECT(\"'\" & Setup!$AG$9 & \"'!\" & AD91),0) + IF(Setup!$AG$10<>\"\",INDIRECT(\"'\" & Setup!$AG$10 & \"'!\" & AD91),0) + IF(Setup!$AG$11<>\"\",INDIRECT(\"'\" & Setup!$AG$11 & \"'!\" & AD91),0) + IF(Setup!$AG$12<>\"\",INDIRECT(\"'\" & Setup!$AG$12 & \"'!\" & AD91),0)","v":0},{"$f":"IF(Setup!$AG$7<>\"\",INDIRECT(\"'\" & Setup!$AG$7 & \"'!\" & AE91),0) + IF(Setup!$AG$8<>\"\",INDIRECT(\"'\" & Setup!$AG$8 & \"'!\" & AE91),0) + IF(Setup!$AG$9<>\"\",INDIRECT(\"'\" & Setup!$AG$9 & \"'!\" & AE91),0) + IF(Setup!$AG$10<>\"\",INDIRECT(\"'\" & Setup!$AG$10 & \"'!\" & AE91),0) + IF(Setup!$AG$11<>\"\",INDIRECT(\"'\" & Setup!$AG$11 & \"'!\" & AE91),0) + IF(Setup!$AG$12<>\"\",INDIRECT(\"'\" & Setup!$AG$12 & \"'!\" & AE91),0)","v":0},{"$f":"IF(Setup!$AH$7<>\"\",INDIRECT(\"'\" & Setup!$AH$7 & \"'!\" & AD91),0) + IF(Setup!$AH$8<>\"\",INDIRECT(\"'\" & Setup!$AH$8 & \"'!\" & AD91),0) + IF(Setup!$AH$9<>\"\",INDIRECT(\"'\" & Setup!$AH$9 & \"'!\" & AD91),0) + IF(Setup!$AH$10<>\"\",INDIRECT(\"'\" & Setup!$AH$10 & \"'!\" & AD91),0) + IF(Setup!$AH$11<>\"\",INDIRECT(\"'\" & Setup!$AH$11 & \"'!\" & AD91),0) + IF(Setup!$AH$12<>\"\",INDIRECT(\"'\" & Setup!$AH$12 & \"'!\" & AD91),0)","v":0},{"$f":"IF(Setup!$AH$7<>\"\",INDIRECT(\"'\" & Setup!$AH$7 & \"'!\" & AE91),0) + IF(Setup!$AH$8<>\"\",INDIRECT(\"'\" & Setup!$AH$8 & \"'!\" & AE91),0) + IF(Setup!$AH$9<>\"\",INDIRECT(\"'\" & Setup!$AH$9 & \"'!\" & AE91),0) + IF(Setup!$AH$10<>\"\",INDIRECT(\"'\" & Setup!$AH$10 & \"'!\" & AE91),0) + IF(Setup!$AH$11<>\"\",INDIRECT(\"'\" & Setup!$AH$11 & \"'!\" & AE91),0) + IF(Setup!$AH$12<>\"\",INDIRECT(\"'\" & Setup!$AH$12 & \"'!\" & AE91),0)","v":0},{"$f":"IF(Setup!$AI$7<>\"\",INDIRECT(\"'\" & Setup!$AI$7 & \"'!\" & AD91),0) + IF(Setup!$AI$8<>\"\",INDIRECT(\"'\" & Setup!$AI$8 & \"'!\" & AD91),0) + IF(Setup!$AI$9<>\"\",INDIRECT(\"'\" & Setup!$AI$9 & \"'!\" & AD91),0) + IF(Setup!$AI$10<>\"\",INDIRECT(\"'\" & Setup!$AI$10 & \"'!\" & AD91),0) + IF(Setup!$AI$11<>\"\",INDIRECT(\"'\" & Setup!$AI$11 & \"'!\" & AD91),0) + IF(Setup!$AI$12<>\"\",INDIRECT(\"'\" & Setup!$AI$12 & \"'!\" & AD91),0)","v":0},{"$f":"IF(Setup!$AI$7<>\"\",INDIRECT(\"'\" & Setup!$AI$7 & \"'!\" & AE91),0) + IF(Setup!$AI$8<>\"\",INDIRECT(\"'\" & Setup!$AI$8 & \"'!\" & AE91),0) + IF(Setup!$AI$9<>\"\",INDIRECT(\"'\" & Setup!$AI$9 & \"'!\" & AE91),0) + IF(Setup!$AI$10<>\"\",INDIRECT(\"'\" & Setup!$AI$10 & \"'!\" & AE91),0) + IF(Setup!$AI$11<>\"\",INDIRECT(\"'\" & Setup!$AI$11 & \"'!\" & AE91),0) + IF(Setup!$AI$12<>\"\",INDIRECT(\"'\" & Setup!$AI$12 & \"'!\" & AE91),0)","v":0},{"$f":"IF(Setup!$AJ$7<>\"\",INDIRECT(\"'\" & Setup!$AJ$7 & \"'!\" & AD91),0) + IF(Setup!$AJ$8<>\"\",INDIRECT(\"'\" & Setup!$AJ$8 & \"'!\" & AD91),0) + IF(Setup!$AJ$9<>\"\",INDIRECT(\"'\" & Setup!$AJ$9 & \"'!\" & AD91),0) + IF(Setup!$AJ$10<>\"\",INDIRECT(\"'\" & Setup!$AJ$10 & \"'!\" & AD91),0) + IF(Setup!$AJ$11<>\"\",INDIRECT(\"'\" & Setup!$AJ$11 & \"'!\" & AD91),0) + IF(Setup!$AJ$12<>\"\",INDIRECT(\"'\" & Setup!$AJ$12 & \"'!\" & AD91),0)","v":0},{"$f":"IF(Setup!$AJ$7<>\"\",INDIRECT(\"'\" & Setup!$AJ$7 & \"'!\" & AE91),0) + IF(Setup!$AJ$8<>\"\",INDIRECT(\"'\" & Setup!$AJ$8 & \"'!\" & AE91),0) + IF(Setup!$AJ$9<>\"\",INDIRECT(\"'\" & Setup!$AJ$9 & \"'!\" & AE91),0) + IF(Setup!$AJ$10<>\"\",INDIRECT(\"'\" & Setup!$AJ$10 & \"'!\" & AE91),0) + IF(Setup!$AJ$11<>\"\",INDIRECT(\"'\" & Setup!$AJ$11 & \"'!\" & AE91),0) + IF(Setup!$AJ$12<>\"\",INDIRECT(\"'\" & Setup!$AJ$12 & \"'!\" & AE91),0)","v":0}]
[{"$f":"Planning!A75","v":"I067"},{"$f":"Planning!B75","v":0},{"$f":"Planning!C75","v":0},{"$f":"Planning!D75","v":0},{"$f":"Planning!E75","v":0},{"$f":"Planning!G75","v":0},null,0,0,{"$f":"IF(AND($AR92=\"2\",$AB91<>Lists!$A$17),AU92,AT92)","v":""},"",0,0,{"$f":"IF(AND($AR92=\"2\",$AB92<>Lists!$A$17),AW92,AV92)","v":""},"",0,0,{"$f":"IF(AND($AR92=\"2\",$AB92<>Lists!$A$17),AY92,AX92)","v":""},"",0,0,{"$f":"IF(AND($AR92=\"2\",$AB92<>Lists!$A$17),BA92,AZ92)","v":""},"",0,0,{"$f":"IF(AND($AR92=\"2\",$AB92<>Lists!$A$17),BC92,BB92)","v":""},"",{"$f":"Planning!H75","v":0},"00","H91","J91","I91","",null,{"$f":"IF(Setup!$AG$7<>\"\",INDIRECT(\"'\" & Setup!$AG$7 & \"'!\" & AF92),0) + IF(Setup!$AG$8<>\"\",INDIRECT(\"'\" & Setup!$AG$8 & \"'!\" & AF92),0) + IF(Setup!$AG$9<>\"\",INDIRECT(\"'\" & Setup!$AG$9 & \"'!\" & AF92),0) + IF(Setup!$AG$10<>\"\",INDIRECT(\"'\" & Setup!$AG$10 & \"'!\" & AF92),0) + IF(Setup!$AG$11<>\"\",INDIRECT(\"'\" & Setup!$AG$11 & \"'!\" & AF92),0) + IF(Setup!$AG$12<>\"\",INDIRECT(\"'\" & Setup!$AG$12 & \"'!\" & AF92),0)","v":0},{"$f":"IF(Setup!$AH$7<>\"\",INDIRECT(\"'\" & Setup!$AH$7 & \"'!\" & AF92),0) + IF(Setup!$AH$8<>\"\",INDIRECT(\"'\" & Setup!$AH$8 & \"'!\" & AF92),0) + IF(Setup!$AH$9<>\"\",INDIRECT(\"'\" & Setup!$AH$9 & \"'!\" & AF92),0) + IF(Setup!$AH$10<>\"\",INDIRECT(\"'\" & Setup!$AH$10 & \"'!\" & AF92),0) + IF(Setup!$AH$11<>\"\",INDIRECT(\"'\" & Setup!$AH$11 & \"'!\" & AF92),0) + IF(Setup!$AH$12<>\"\",INDIRECT(\"'\" & Setup!$AH$12 & \"'!\" & AF92),0)","v":0},{"$f":"IF(Setup!$AI$7<>\"\",INDIRECT(\"'\" & Setup!$AI$7 & \"'!\" & AF92),0) + IF(Setup!$AI$8<>\"\",INDIRECT(\"'\" & Setup!$AI$8 & \"'!\" & AF92),0) + IF(Setup!$AI$9<>\"\",INDIRECT(\"'\" & Setup!$AI$9 & \"'!\" & AF92),0) + IF(Setup!$AI$10<>\"\",INDIRECT(\"'\" & Setup!$AI$10 & \"'!\" & AF92),0) + IF(Setup!$AI$11<>\"\",INDIRECT(\"'\" & Setup!$AI$11 & \"'!\" & AF92),0) + IF(Setup!$AI$12<>\"\",INDIRECT(\"'\" & Setup!$AI$12 & \"'!\" & AF92),0)","v":0},{"$f":"IF(Setup!$AJ$7<>\"\",INDIRECT(\"'\" & Setup!$AJ$7 & \"'!\" & AF92),0) + IF(Setup!$AJ$8<>\"\",INDIRECT(\"'\" & Setup!$AJ$8 & \"'!\" & AF92),0) + IF(Setup!$AJ$9<>\"\",INDIRECT(\"'\" & Setup!$AJ$9 & \"'!\" & AF92),0) + IF(Setup!$AJ$10<>\"\",INDIRECT(\"'\" & Setup!$AJ$10 & \"'!\" & AF92),0) + IF(Setup!$AJ$11<>\"\",INDIRECT(\"'\" & Setup!$AJ$11 & \"'!\" & AF92),0) + IF(Setup!$AJ$12<>\"\",INDIRECT(\"'\" & Setup!$AJ$12 & \"'!\" & AF92),0)","v":0},null,"",{"$nulls":3},{"$f":"IF(C92=0,\"\",LEFT(INDEX(Lists!$H$5:$H$49,MATCH(C92,Lists!$G$5:$G$49,0),1),1))","v":""},null,"","","","","","","","","","",{"$nulls":6},{"$f":"IF(Setup!$AG$7<>\"\",INDIRECT(\"'\" & Setup!$AG$7 & \"'!\" & AD92),0) + IF(Setup!$AG$8<>\"\",INDIRECT(\"'\" & Setup!$AG$8 & \"'!\" & AD92),0) + IF(Setup!$AG$9<>\"\",INDIRECT(\"'\" & Setup!$AG$9 & \"'!\" & AD92),0) + IF(Setup!$AG$10<>\"\",INDIRECT(\"'\" & Setup!$AG$10 & \"'!\" & AD92),0) + IF(Setup!$AG$11<>\"\",INDIRECT(\"'\" & Setup!$AG$11 & \"'!\" & AD92),0) + IF(Setup!$AG$12<>\"\",INDIRECT(\"'\" & Setup!$AG$12 & \"'!\" & AD92),0)","v":0},{"$f":"IF(Setup!$AG$7<>\"\",INDIRECT(\"'\" & Setup!$AG$7 & \"'!\" & AE92),0) + IF(Setup!$AG$8<>\"\",INDIRECT(\"'\" & Setup!$AG$8 & \"'!\" & AE92),0) + IF(Setup!$AG$9<>\"\",INDIRECT(\"'\" & Setup!$AG$9 & \"'!\" & AE92),0) + IF(Setup!$AG$10<>\"\",INDIRECT(\"'\" & Setup!$AG$10 & \"'!\" & AE92),0) + IF(Setup!$AG$11<>\"\",INDIRECT(\"'\" & Setup!$AG$11 & \"'!\" & AE92),0) + IF(Setup!$AG$12<>\"\",INDIRECT(\"'\" & Setup!$AG$12 & \"'!\" & AE92),0)","v":0},{"$f":"IF(Setup!$AH$7<>\"\",INDIRECT(\"'\" & Setup!$AH$7 & \"'!\" & AD92),0) + IF(Setup!$AH$8<>\"\",INDIRECT(\"'\" & Setup!$AH$8 & \"'!\" & AD92),0) + IF(Setup!$AH$9<>\"\",INDIRECT(\"'\" & Setup!$AH$9 & \"'!\" & AD92),0) + IF(Setup!$AH$10<>\"\",INDIRECT(\"'\" & Setup!$AH$10 & \"'!\" & AD92),0) + IF(Setup!$AH$11<>\"\",INDIRECT(\"'\" & Setup!$AH$11 & \"'!\" & AD92),0) + IF(Setup!$AH$12<>\"\",INDIRECT(\"'\" & Setup!$AH$12 & \"'!\" & AD92),0)","v":0},{"$f":"IF(Setup!$AH$7<>\"\",INDIRECT(\"'\" & Setup!$AH$7 & \"'!\" & AE92),0) + IF(Setup!$AH$8<>\"\",INDIRECT(\"'\" & Setup!$AH$8 & \"'!\" & AE92),0) + IF(Setup!$AH$9<>\"\",INDIRECT(\"'\" & Setup!$AH$9 & \"'!\" & AE92),0) + IF(Setup!$AH$10<>\"\",INDIRECT(\"'\" & Setup!$AH$10 & \"'!\" & AE92),0) + IF(Setup!$AH$11<>\"\",INDIRECT(\"'\" & Setup!$AH$11 & \"'!\" & AE92),0) + IF(Setup!$AH$12<>\"\",INDIRECT(\"'\" & Setup!$AH$12 & \"'!\" & AE92),0)","v":0},{"$f":"IF(Setup!$AI$7<>\"\",INDIRECT(\"'\" & Setup!$AI$7 & \"'!\" & AD92),0) + IF(Setup!$AI$8<>\"\",INDIRECT(\"'\" & Setup!$AI$8 & \"'!\" & AD92),0) + IF(Setup!$AI$9<>\"\",INDIRECT(\"'\" & Setup!$AI$9 & \"'!\" & AD92),0) + IF(Setup!$AI$10<>\"\",INDIRECT(\"'\" & Setup!$AI$10 & \"'!\" & AD92),0) + IF(Setup!$AI$11<>\"\",INDIRECT(\"'\" & Setup!$AI$11 & \"'!\" & AD92),0) + IF(Setup!$AI$12<>\"\",INDIRECT(\"'\" & Setup!$AI$12 & \"'!\" & AD92),0)","v":0},{"$f":"IF(Setup!$AI$7<>\"\",INDIRECT(\"'\" & Setup!$AI$7 & \"'!\" & AE92),0) + IF(Setup!$AI$8<>\"\",INDIRECT(\"'\" & Setup!$AI$8 & \"'!\" & AE92),0) + IF(Setup!$AI$9<>\"\",INDIRECT(\"'\" & Setup!$AI$9 & \"'!\" & AE92),0) + IF(Setup!$AI$10<>\"\",INDIRECT(\"'\" & Setup!$AI$10 & \"'!\" & AE92),0) + IF(Setup!$AI$11<>\"\",INDIRECT(\"'\" & Setup!$AI$11 & \"'!\" & AE92),0) + IF(Setup!$AI$12<>\"\",INDIRECT(\"'\" & Setup!$AI$12 & \"'!\" & AE92),0)","v":0},{"$f":"IF(Setup!$AJ$7<>\"\",INDIRECT(\"'\" & Setup!$AJ$7 & \"'!\" & AD92),0) + IF(Setup!$AJ$8<>\"\",INDIRECT(\"'\" & Setup!$AJ$8 & \"'!\" & AD92),0) + IF(Setup!$AJ$9<>\"\",INDIRECT(\"'\" & Setup!$AJ$9 & \"'!\" & AD92),0) + IF(Setup!$AJ$10<>\"\",INDIRECT(\"'\" & Setup!$AJ$10 & \"'!\" & AD92),0) + IF(Setup!$AJ$11<>\"\",INDIRECT(\"'\" & Setup!$AJ$11 & \"'!\" & AD92),0) + IF(Setup!$AJ$12<>\"\",INDIRECT(\"'\" & Setup!$AJ$12 & \"'!\" & AD92),0)","v":0},{"$f":"IF(Setup!$AJ$7<>\"\",INDIRECT(\"'\" & Setup!$AJ$7 & \"'!\" & AE92),0) + IF(Setup!$AJ$8<>\"\",INDIRECT(\"'\" & Setup!$AJ$8 & \"'!\" & AE92),0) + IF(Setup!$AJ$9<>\"\",INDIRECT(\"'\" & Setup!$AJ$9 & \"'!\" & AE92),0) + IF(Setup!$AJ$10<>\"\",INDIRECT(\"'\" & Setup!$AJ$10 & \"'!\" & AE92),0) + IF(Setup!$AJ$11<>\"\",INDIRECT(\"'\" & Setup!$AJ$11 & \"'!\" & AE92),0) + IF(Setup!$AJ$12<>\"\",INDIRECT(\"'\" & Setup!$AJ$12 & \"'!\" & AE92),0)","v":0}]
[{"$f":"Planning!A76","v":"I068"},{"$f":"Planning!B76","v":0},{"$f":"Planning!C76","v":0},{"$f":"Planning!D76","v":0},{"$f":"Planning!E76","v":0},{"$f":"Planning!G76","v":0},null,0,0,{"$f":"IF(AND($AR93=\"2\",$AB92<>Lists!$A$17),AU93,AT93)","v":""},"",0,0,{"$f":"IF(AND($AR93=\"2\",$AB93<>Lists!$A$17),AW93,AV93)","v":""},"",0,0,{"$f":"IF(AND($AR93=\"2\",$AB93<>Lists!$A$17),AY93,AX93)","v":""},"",0,0,{"$f":"IF(AND($AR93=\"2\",$AB93<>Lists!$A$17),BA93,AZ93)","v":""},"",0,0,{"$f":"IF(AND($AR93=\"2\",$AB93<>Lists!$A$17),BC93,BB93)","v":""},"",{"$f":"Planning!H76","v":0},"00","H92","J92","I92","",null,{"$f":"IF(Setup!$AG$7<>\"\",INDIRECT(\"'\" & Setup!$AG$7 & \"'!\" & AF93),0) + IF(Setup!$AG$8<>\"\",INDIRECT(\"'\" & Setup!$AG$8 & \"'!\" & AF93),0) + IF(Setup!$AG$9<>\"\",INDIRECT(\"'\" & Setup!$AG$9 & \"'!\" & AF93),0) + IF(Setup!$AG$10<>\"\",INDIRECT(\"'\" & Setup!$AG$10 & \"'!\" & AF93),0) + IF(Setup!$AG$11<>\"\",INDIRECT(\"'\" & Setup!$AG$11 & \"'!\" & AF93),0) + IF(Setup!$AG$12<>\"\",INDIRECT(\"'\" & Setup!$AG$12 & \"'!\" & AF93),0)","v":0},{"$f":"IF(Setup!$AH$7<>\"\",INDIRECT(\"'\" & Setup!$AH$7 & \"'!\" & AF93),0) + IF(Setup!$AH$8<>\"\",INDIRECT(\"'\" & Setup!$AH$8 & \"'!\" & AF93),0) + IF(Setup!$AH$9<>\"\",INDIRECT(\"'\" & Setup!$AH$9 & \"'!\" & AF93),0) + IF(Setup!$AH$10<>\"\",INDIRECT(\"'\" & Setup!$AH$10 & \"'!\" & AF93),0) + IF(Setup!$AH$11<>\"\",INDIRECT(\"'\" & Setup!$AH$11 & \"'!\" & AF93),0) + IF(Setup!$AH$12<>\"\",INDIRECT(\"'\" & Setup!$AH$12 & \"'!\" & AF93),0)","v":0},{"$f":"IF(Setup!$AI$7<>\"\",INDIRECT(\"'\" & Setup!$AI$7 & \"'!\" & AF93),0) + IF(Setup!$AI$8<>\"\",INDIRECT(\"'\" & Setup!$AI$8 & \"'!\" & AF93),0) + IF(Setup!$AI$9<>\"\",INDIRECT(\"'\" & Setup!$AI$9 & \"'!\" & AF93),0) + IF(Setup!$AI$10<>\"\",INDIRECT(\"'\" & Setup!$AI$10 & \"'!\" & AF93),0) + IF(Setup!$AI$11<>\"\",INDIRECT(\"'\" & Setup!$AI$11 & \"'!\" & AF93),0) + IF(Setup!$AI$12<>\"\",INDIRECT(\"'\" & Setup!$AI$12 & \"'!\" & AF93),0)","v":0},{"$f":"IF(Setup!$AJ$7<>\"\",INDIRECT(\"'\" & Setup!$AJ$7 & \"'!\" & AF93),0) + IF(Setup!$AJ$8<>\"\",INDIRECT(\"'\" & Setup!$AJ$8 & \"'!\" & AF93),0) + IF(Setup!$AJ$9<>\"\",INDIRECT(\"'\" & Setup!$AJ$9 & \"'!\" & AF93),0) + IF(Setup!$AJ$10<>\"\",INDIRECT(\"'\" & Setup!$AJ$10 & \"'!\" & AF93),0) + IF(Setup!$AJ$11<>\"\",INDIRECT(\"'\" & Setup!$AJ$11 & \"'!\" & AF93),0) + IF(Setup!$AJ$12<>\"\",INDIRECT(\"'\" & Setup!$AJ$12 & \"'!\" & AF93),0)","v":0},null,"",{"$nulls":3},{"$f":"IF(C93=0,\"\",LEFT(INDEX(Lists!$H$5:$H$49,MATCH(C93,Lists!$G$5:$G$49,0),1),1))","v":""},null,"","","","","","","","","","",{"$nulls":6},{"$f":"IF(Setup!$AG$7<>\"\",INDIRECT(\"'\" & Setup!$AG$7 & \"'!\" & AD93),0) + IF(Setup!$AG$8<>\"\",INDIRECT(\"'\" & Setup!$AG$8 & \"'!\" & AD93),0) + IF(Setup!$AG$9<>\"\",INDIRECT(\"'\" & Setup!$AG$9 & \"'!\" & AD93),0) + IF(Setup!$AG$10<>\"\",INDIRECT(\"'\" & Setup!$AG$10 & \"'!\" & AD93),0) + IF(Setup!$AG$11<>\"\",INDIRECT(\"'\" & Setup!$AG$11 & \"'!\" & AD93),0) + IF(Setup!$AG$12<>\"\",INDIRECT(\"'\" & Setup!$AG$12 & \"'!\" & AD93),0)","v":0},{"$f":"IF(Setup!$AG$7<>\"\",INDIRECT(\"'\" & Setup!$AG$7 & \"'!\" & AE93),0) + IF(Setup!$AG$8<>\"\",INDIRECT(\"'\" & Setup!$AG$8 & \"'!\" & AE93),0) + IF(Setup!$AG$9<>\"\",INDIRECT(\"'\" & Setup!$AG$9 & \"'!\" & AE93),0) + IF(Setup!$AG$10<>\"\",INDIRECT(\"'\" & Setup!$AG$10 & \"'!\" & AE93),0) + IF(Setup!$AG$11<>\"\",INDIRECT(\"'\" & Setup!$AG$11 & \"'!\" & AE93),0) + IF(Setup!$AG$12<>\"\",INDIRECT(\"'\" & Setup!$AG$12 & \"'!\" & AE93),0)","v":0},{"$f":"IF(Setup!$AH$7<>\"\",INDIRECT(\"'\" & Setup!$AH$7 & \"'!\" & AD93),0) + IF(Setup!$AH$8<>\"\",INDIRECT(\"'\" & Setup!$AH$8 & \"'!\" & AD93),0) + IF(Setup!$AH$9<>\"\",INDIRECT(\"'\" & Setup!$AH$9 & \"'!\" & AD93),0) + IF(Setup!$AH$10<>\"\",INDIRECT(\"'\" & Setup!$AH$10 & \"'!\" & AD93),0) + IF(Setup!$AH$11<>\"\",INDIRECT(\"'\" & Setup!$AH$11 & \"'!\" & AD93),0) + IF(Setup!$AH$12<>\"\",INDIRECT(\"'\" & Setup!$AH$12 & \"'!\" & AD93),0)","v":0},{"$f":"IF(Setup!$AH$7<>\"\",INDIRECT(\"'\" & Setup!$AH$7 & \"'!\" & AE93),0) + IF(Setup!$AH$8<>\"\",INDIRECT(\"'\" & Setup!$AH$8 & \"'!\" & AE93),0) + IF(Setup!$AH$9<>\"\",INDIRECT(\"'\" & Setup!$AH$9 & \"'!\" & AE93),0) + IF(Setup!$AH$10<>\"\",INDIRECT(\"'\" & Setup!$AH$10 & \"'!\" & AE93),0) + IF(Setup!$AH$11<>\"\",INDIRECT(\"'\" & Setup!$AH$11 & \"'!\" & AE93),0) + IF(Setup!$AH$12<>\"\",INDIRECT(\"'\" & Setup!$AH$12 & \"'!\" & AE93),0)","v":0},{"$f":"IF(Setup!$AI$7<>\"\",INDIRECT(\"'\" & Setup!$AI$7 & \"'!\" & AD93),0) + IF(Setup!$AI$8<>\"\",INDIRECT(\"'\" & Setup!$AI$8 & \"'!\" & AD93),0) + IF(Setup!$AI$9<>\"\",INDIRECT(\"'\" & Setup!$AI$9 & \"'!\" & AD93),0) + IF(Setup!$AI$10<>\"\",INDIRECT(\"'\" & Setup!$AI$10 & \"'!\" & AD93),0) + IF(Setup!$AI$11<>\"\",INDIRECT(\"'\" & Setup!$AI$11 & \"'!\" & AD93),0) + IF(Setup!$AI$12<>\"\",INDIRECT(\"'\" & Setup!$AI$12 & \"'!\" & AD93),0)","v":0},{"$f":"IF(Setup!$AI$7<>\"\",INDIRECT(\"'\" & Setup!$AI$7 & \"'!\" & AE93),0) + IF(Setup!$AI$8<>\"\",INDIRECT(\"'\" & Setup!$AI$8 & \"'!\" & AE93),0) + IF(Setup!$AI$9<>\"\",INDIRECT(\"'\" & Setup!$AI$9 & \"'!\" & AE93),0) + IF(Setup!$AI$10<>\"\",INDIRECT(\"'\" & Setup!$AI$10 & \"'!\" & AE93),0) + IF(Setup!$AI$11<>\"\",INDIRECT(\"'\" & Setup!$AI$11 & \"'!\" & AE93),0) + IF(Setup!$AI$12<>\"\",INDIRECT(\"'\" & Setup!$AI$12 & \"'!\" & AE93),0)","v":0},{"$f":"IF(Setup!$AJ$7<>\"\",INDIRECT(\"'\" & Setup!$AJ$7 & \"'!\" & AD93),0) + IF(Setup!$AJ$8<>\"\",INDIRECT(\"'\" & Setup!$AJ$8 & \"'!\" & AD93),0) + IF(Setup!$AJ$9<>\"\",INDIRECT(\"'\" & Setup!$AJ$9 & \"'!\" & AD93),0) + IF(Setup!$AJ$10<>\"\",INDIRECT(\"'\" & Setup!$AJ$10 & \"'!\" & AD93),0) + IF(Setup!$AJ$11<>\"\",INDIRECT(\"'\" & Setup!$AJ$11 & \"'!\" & AD93),0) + IF(Setup!$AJ$12<>\"\",INDIRECT(\"'\" & Setup!$AJ$12 & \"'!\" & AD93),0)","v":0},{"$f":"IF(Setup!$AJ$7<>\"\",INDIRECT(\"'\" & Setup!$AJ$7 & \"'!\" & AE93),0) + IF(Setup!$AJ$8<>\"\",INDIRECT(\"'\" & Setup!$AJ$8 & \"'!\" & AE93),0) + IF(Setup!$AJ$9<>\"\",INDIRECT(\"'\" & Setup!$AJ$9 & \"'!\" & AE93),0) + IF(Setup!$AJ$10<>\"\",INDIRECT(\"'\" & Setup!$AJ$10 & \"'!\" & AE93),0) + IF(Setup!$AJ$11<>\"\",INDIRECT(\"'\" & Setup!$AJ$11 & \"'!\" & AE93),0) + IF(Setup!$AJ$12<>\"\",INDIRECT(\"'\" & Setup!$AJ$12 & \"'!\" & AE93),0)","v":0}]
[{"$f":"Planning!A77","v":"I069"},{"$f":"Planning!B77","v":0},{"$f":"Planning!C77","v":0},{"$f":"Planning!D77","v":0},{"$f":"Planning!E77","v":0},{"$f":"Planning!G77","v":0},null,0,0,{"$f":"IF(AND($AR94=\"2\",$AB93<>Lists!$A$17),AU94,AT94)","v":""},"",0,0,{"$f":"IF(AND($AR94=\"2\",$AB94<>Lists!$A$17),AW94,AV94)","v":""},"",0,0,{"$f":"IF(AND($AR94=\"2\",$AB94<>Lists!$A$17),AY94,AX94)","v":""},"",0,0,{"$f":"IF(AND($AR94=\"2\",$AB94<>Lists!$A$17),BA94,AZ94)","v":""},"",0,0,{"$f":"IF(AND($AR94=\"2\",$AB94<>Lists!$A$17),BC94,BB94)","v":""},"",{"$f":"Planning!H77","v":0},"00","H93","J93","I93","",null,{"$f":"IF(Setup!$AG$7<>\"\",INDIRECT(\"'\" & Setup!$AG$7 & \"'!\" & AF94),0) + IF(Setup!$AG$8<>\"\",INDIRECT(\"'\" & Setup!$AG$8 & \"'!\" & AF94),0) + IF(Setup!$AG$9<>\"\",INDIRECT(\"'\" & Setup!$AG$9 & \"'!\" & AF94),0) + IF(Setup!$AG$10<>\"\",INDIRECT(\"'\" & Setup!$AG$10 & \"'!\" & AF94),0) + IF(Setup!$AG$11<>\"\",INDIRECT(\"'\" & Setup!$AG$11 & \"'!\" & AF94),0) + IF(Setup!$AG$12<>\"\",INDIRECT(\"'\" & Setup!$AG$12 & \"'!\" & AF94),0)","v":0},{"$f":"IF(Setup!$AH$7<>\"\",INDIRECT(\"'\" & Setup!$AH$7 & \"'!\" & AF94),0) + IF(Setup!$AH$8<>\"\",INDIRECT(\"'\" & Setup!$AH$8 & \"'!\" & AF94),0) + IF(Setup!$AH$9<>\"\",INDIRECT(\"'\" & Setup!$AH$9 & \"'!\" & AF94),0) + IF(Setup!$AH$10<>\"\",INDIRECT(\"'\" & Setup!$AH$10 & \"'!\" & AF94),0) + IF(Setup!$AH$11<>\"\",INDIRECT(\"'\" & Setup!$AH$11 & \"'!\" & AF94),0) + IF(Setup!$AH$12<>\"\",INDIRECT(\"'\" & Setup!$AH$12 & \"'!\" & AF94),0)","v":0},{"$f":"IF(Setup!$AI$7<>\"\",INDIRECT(\"'\" & Setup!$AI$7 & \"'!\" & AF94),0) + IF(Setup!$AI$8<>\"\",INDIRECT(\"'\" & Setup!$AI$8 & \"'!\" & AF94),0) + IF(Setup!$AI$9<>\"\",INDIRECT(\"'\" & Setup!$AI$9 & \"'!\" & AF94),0) + IF(Setup!$AI$10<>\"\",INDIRECT(\"'\" & Setup!$AI$10 & \"'!\" & AF94),0) + IF(Setup!$AI$11<>\"\",INDIRECT(\"'\" & Setup!$AI$11 & \"'!\" & AF94),0) + IF(Setup!$AI$12<>\"\",INDIRECT(\"'\" & Setup!$AI$12 & \"'!\" & AF94),0)","v":0},{"$f":"IF(Setup!$AJ$7<>\"\",INDIRECT(\"'\" & Setup!$AJ$7 & \"'!\" & AF94),0) + IF(Setup!$AJ$8<>\"\",INDIRECT(\"'\" & Setup!$AJ$8 & \"'!\" & AF94),0) + IF(Setup!$AJ$9<>\"\",INDIRECT(\"'\" & Setup!$AJ$9 & \"'!\" & AF94),0) + IF(Setup!$AJ$10<>\"\",INDIRECT(\"'\" & Setup!$AJ$10 & \"'!\" & AF94),0) + IF(Setup!$AJ$11<>\"\",INDIRECT(\"'\" & Setup!$AJ$11 & \"'!\" & AF94),0) + IF(Setup!$AJ$12<>\"\",INDIRECT(\"'\" & Setup!$AJ$12 & \"'!\" & AF94),0)","v":0},null,"",{"$nulls":3},{"$f":"IF(C94=0,\"\",LEFT(INDEX(Lists!$H$5:$H$49,MATCH(C94,Lists!$G$5:$G$49,0),1),1))","v":""},null,"","","","","","","","","","",{"$nulls":6},{"$f":"IF(Setup!$AG$7<>\"\",INDIRECT(\"'\" & Setup!$AG$7 & \"'!\" & AD94),0) + IF(Setup!$AG$8<>\"\",INDIRECT(\"'\" & Setup!$AG$8 & \"'!\" & AD94),0) + IF(Setup!$AG$9<>\"\",INDIRECT(\"'\" & Setup!$AG$9 & \"'!\" & AD94),0) + IF(Setup!$AG$10<>\"\",INDIRECT(\"'\" & Setup!$AG$10 & \"'!\" & AD94),0) + IF(Setup!$AG$11<>\"\",INDIRECT(\"'\" & Setup!$AG$11 & \"'!\" & AD94),0) + IF(Setup!$AG$12<>\"\",INDIRECT(\"'\" & Setup!$AG$12 & \"'!\" & AD94),0)","v":0},{"$f":"IF(Setup!$AG$7<>\"\",INDIRECT(\"'\" & Setup!$AG$7 & \"'!\" & AE94),0) + IF(Setup!$AG$8<>\"\",INDIRECT(\"'\" & Setup!$AG$8 & \"'!\" & AE94),0) + IF(Setup!$AG$9<>\"\",INDIRECT(\"'\" & Setup!$AG$9 & \"'!\" & AE94),0) + IF(Setup!$AG$10<>\"\",INDIRECT(\"'\" & Setup!$AG$10 & \"'!\" & AE94),0) + IF(Setup!$AG$11<>\"\",INDIRECT(\"'\" & Setup!$AG$11 & \"'!\" & AE94),0) + IF(Setup!$AG$12<>\"\",INDIRECT(\"'\" & Setup!$AG$12 & \"'!\" & AE94),0)","v":0},{"$f":"IF(Setup!$AH$7<>\"\",INDIRECT(\"'\" & Setup!$AH$7 & \"'!\" & AD94),0) + IF(Setup!$AH$8<>\"\",INDIRECT(\"'\" & Setup!$AH$8 & \"'!\" & AD94),0) + IF(Setup!$AH$9<>\"\",INDIRECT(\"'\" & Setup!$AH$9 & \"'!\" & AD94),0) + IF(Setup!$AH$10<>\"\",INDIRECT(\"'\" & Setup!$AH$10 & \"'!\" & AD94),0) + IF(Setup!$AH$11<>\"\",INDIRECT(\"'\" & Setup!$AH$11 & \"'!\" & AD94),0) + IF(Setup!$AH$12<>\"\",INDIRECT(\"'\" & Setup!$AH$12 & \"'!\" & AD94),0)","v":0},{"$f":"IF(Setup!$AH$7<>\"\",INDIRECT(\"'\" & Setup!$AH$7 & \"'!\" & AE94),0) + IF(Setup!$AH$8<>\"\",INDIRECT(\"'\" & Setup!$AH$8 & \"'!\" & AE94),0) + IF(Setup!$AH$9<>\"\",INDIRECT(\"'\" & Setup!$AH$9 & \"'!\" & AE94),0) + IF(Setup!$AH$10<>\"\",INDIRECT(\"'\" & Setup!$AH$10 & \"'!\" & AE94),0) + IF(Setup!$AH$11<>\"\",INDIRECT(\"'\" & Setup!$AH$11 & \"'!\" & AE94),0) + IF(Setup!$AH$12<>\"\",INDIRECT(\"'\" & Setup!$AH$12 & \"'!\" & AE94),0)","v":0},{"$f":"IF(Setup!$AI$7<>\"\",INDIRECT(\"'\" & Setup!$AI$7 & \"'!\" & AD94),0) + IF(Setup!$AI$8<>\"\",INDIRECT(\"'\" & Setup!$AI$8 & \"'!\" & AD94),0) + IF(Setup!$AI$9<>\"\",INDIRECT(\"'\" & Setup!$AI$9 & \"'!\" & AD94),0) + IF(Setup!$AI$10<>\"\",INDIRECT(\"'\" & Setup!$AI$10 & \"'!\" & AD94),0) + IF(Setup!$AI$11<>\"\",INDIRECT(\"'\" & Setup!$AI$11 & \"'!\" & AD94),0) + IF(Setup!$AI$12<>\"\",INDIRECT(\"'\" & Setup!$AI$12 & \"'!\" & AD94),0)","v":0},{"$f":"IF(Setup!$AI$7<>\"\",INDIRECT(\"'\" & Setup!$AI$7 & \"'!\" & AE94),0) + IF(Setup!$AI$8<>\"\",INDIRECT(\"'\" & Setup!$AI$8 & \"'!\" & AE94),0) + IF(Setup!$AI$9<>\"\",INDIRECT(\"'\" & Setup!$AI$9 & \"'!\" & AE94),0) + IF(Setup!$AI$10<>\"\",INDIRECT(\"'\" & Setup!$AI$10 & \"'!\" & AE94),0) + IF(Setup!$AI$11<>\"\",INDIRECT(\"'\" & Setup!$AI$11 & \"'!\" & AE94),0) + IF(Setup!$AI$12<>\"\",INDIRECT(\"'\" & Setup!$AI$12 & \"'!\" & AE94),0)","v":0},{"$f":"IF(Setup!$AJ$7<>\"\",INDIRECT(\"'\" & Setup!$AJ$7 & \"'!\" & AD94),0) + IF(Setup!$AJ$8<>\"\",INDIRECT(\"'\" & Setup!$AJ$8 & \"'!\" & AD94),0) + IF(Setup!$AJ$9<>\"\",INDIRECT(\"'\" & Setup!$AJ$9 & \"'!\" & AD94),0) + IF(Setup!$AJ$10<>\"\",INDIRECT(\"'\" & Setup!$AJ$10 & \"'!\" & AD94),0) + IF(Setup!$AJ$11<>\"\",INDIRECT(\"'\" & Setup!$AJ$11 & \"'!\" & AD94),0) + IF(Setup!$AJ$12<>\"\",INDIRECT(\"'\" & Setup!$AJ$12 & \"'!\" & AD94),0)","v":0},{"$f":"IF(Setup!$AJ$7<>\"\",INDIRECT(\"'\" & Setup!$AJ$7 & \"'!\" & AE94),0) + IF(Setup!$AJ$8<>\"\",INDIRECT(\"'\" & Setup!$AJ$8 & \"'!\" & AE94),0) + IF(Setup!$AJ$9<>\"\",INDIRECT(\"'\" & Setup!$AJ$9 & \"'!\" & AE94),0) + IF(Setup!$AJ$10<>\"\",INDIRECT(\"'\" & Setup!$AJ$10 & \"'!\" & AE94),0) + IF(Setup!$AJ$11<>\"\",INDIRECT(\"'\" & Setup!$AJ$11 & \"'!\" & AE94),0) + IF(Setup!$AJ$12<>\"\",INDIRECT(\"'\" & Setup!$AJ$12 & \"'!\" & AE94),0)","v":0}]
[{"$f":"Planning!A78","v":"I070"},{"$f":"Planning!B78","v":0},{"$f":"Planning!C78","v":0},{"$f":"Planning!D78","v":0},{"$f":"Planning!E78","v":0},{"$f":"Planning!G78","v":0},null,0,0,{"$f":"IF(AND($AR95=\"2\",$AB94<>Lists!$A$17),AU95,AT95)","v":""},"",0,0,{"$f":"IF(AND($AR95=\"2\",$AB95<>Lists!$A$17),AW95,AV95)","v":""},"",0,0,{"$f":"IF(AND($AR95=\"2\",$AB95<>Lists!$A$17),AY95,AX95)","v":""},"",0,0,{"$f":"IF(AND($AR95=\"2\",$AB95<>Lists!$A$17),BA95,AZ95)","v":""},"",0,0,{"$f":"IF(AND($AR95=\"2\",$AB95<>Lists!$A$17),BC95,BB95)","v":""},"",{"$f":"Planning!H78","v":0},"00","H94","J94","I94","",null,{"$f":"IF(Setup!$AG$7<>\"\",INDIRECT(\"'\" & Setup!$AG$7 & \"'!\" & AF95),0) + IF(Setup!$AG$8<>\"\",INDIRECT(\"'\" & Setup!$AG$8 & \"'!\" & AF95),0) + IF(Setup!$AG$9<>\"\",INDIRECT(\"'\" & Setup!$AG$9 & \"'!\" & AF95),0) + IF(Setup!$AG$10<>\"\",INDIRECT(\"'\" & Setup!$AG$10 & \"'!\" & AF95),0) + IF(Setup!$AG$11<>\"\",INDIRECT(\"'\" & Setup!$AG$11 & \"'!\" & AF95),0) + IF(Setup!$AG$12<>\"\",INDIRECT(\"'\" & Setup!$AG$12 & \"'!\" & AF95),0)","v":0},{"$f":"IF(Setup!$AH$7<>\"\",INDIRECT(\"'\" & Setup!$AH$7 & \"'!\" & AF95),0) + IF(Setup!$AH$8<>\"\",INDIRECT(\"'\" & Setup!$AH$8 & \"'!\" & AF95),0) + IF(Setup!$AH$9<>\"\",INDIRECT(\"'\" & Setup!$AH$9 & \"'!\" & AF95),0) + IF(Setup!$AH$10<>\"\",INDIRECT(\"'\" & Setup!$AH$10 & \"'!\" & AF95),0) + IF(Setup!$AH$11<>\"\",INDIRECT(\"'\" & Setup!$AH$11 & \"'!\" & AF95),0) + IF(Setup!$AH$12<>\"\",INDIRECT(\"'\" & Setup!$AH$12 & \"'!\" & AF95),0)","v":0},{"$f":"IF(Setup!$AI$7<>\"\",INDIRECT(\"'\" & Setup!$AI$7 & \"'!\" & AF95),0) + IF(Setup!$AI$8<>\"\",INDIRECT(\"'\" & Setup!$AI$8 & \"'!\" & AF95),0) + IF(Setup!$AI$9<>\"\",INDIRECT(\"'\" & Setup!$AI$9 & \"'!\" & AF95),0) + IF(Setup!$AI$10<>\"\",INDIRECT(\"'\" & Setup!$AI$10 & \"'!\" & AF95),0) + IF(Setup!$AI$11<>\"\",INDIRECT(\"'\" & Setup!$AI$11 & \"'!\" & AF95),0) + IF(Setup!$AI$12<>\"\",INDIRECT(\"'\" & Setup!$AI$12 & \"'!\" & AF95),0)","v":0},{"$f":"IF(Setup!$AJ$7<>\"\",INDIRECT(\"'\" & Setup!$AJ$7 & \"'!\" & AF95),0) + IF(Setup!$AJ$8<>\"\",INDIRECT(\"'\" & Setup!$AJ$8 & \"'!\" & AF95),0) + IF(Setup!$AJ$9<>\"\",INDIRECT(\"'\" & Setup!$AJ$9 & \"'!\" & AF95),0) + IF(Setup!$AJ$10<>\"\",INDIRECT(\"'\" & Setup!$AJ$10 & \"'!\" & AF95),0) + IF(Setup!$AJ$11<>\"\",INDIRECT(\"'\" & Setup!$AJ$11 & \"'!\" & AF95),0) + IF(Setup!$AJ$12<>\"\",INDIRECT(\"'\" & Setup!$AJ$12 & \"'!\" & AF95),0)","v":0},null,"",{"$nulls":3},{"$f":"IF(C95=0,\"\",LEFT(INDEX(Lists!$H$5:$H$49,MATCH(C95,Lists!$G$5:$G$49,0),1),1))","v":""},null,"","","","","","","","","","",{"$nulls":6},{"$f":"IF(Setup!$AG$7<>\"\",INDIRECT(\"'\" & Setup!$AG$7 & \"'!\" & AD95),0) + IF(Setup!$AG$8<>\"\",INDIRECT(\"'\" & Setup!$AG$8 & \"'!\" & AD95),0) + IF(Setup!$AG$9<>\"\",INDIRECT(\"'\" & Setup!$AG$9 & \"'!\" & AD95),0) + IF(Setup!$AG$10<>\"\",INDIRECT(\"'\" & Setup!$AG$10 & \"'!\" & AD95),0) + IF(Setup!$AG$11<>\"\",INDIRECT(\"'\" & Setup!$AG$11 & \"'!\" & AD95),0) + IF(Setup!$AG$12<>\"\",INDIRECT(\"'\" & Setup!$AG$12 & \"'!\" & AD95),0)","v":0},{"$f":"IF(Setup!$AG$7<>\"\",INDIRECT(\"'\" & Setup!$AG$7 & \"'!\" & AE95),0) + IF(Setup!$AG$8<>\"\",INDIRECT(\"'\" & Setup!$AG$8 & \"'!\" & AE95),0) + IF(Setup!$AG$9<>\"\",INDIRECT(\"'\" & Setup!$AG$9 & \"'!\" & AE95),0) + IF(Setup!$AG$10<>\"\",INDIRECT(\"'\" & Setup!$AG$10 & \"'!\" & AE95),0) + IF(Setup!$AG$11<>\"\",INDIRECT(\"'\" & Setup!$AG$11 & \"'!\" & AE95),0) + IF(Setup!$AG$12<>\"\",INDIRECT(\"'\" & Setup!$AG$12 & \"'!\" & AE95),0)","v":0},{"$f":"IF(Setup!$AH$7<>\"\",INDIRECT(\"'\" & Setup!$AH$7 & \"'!\" & AD95),0) + IF(Setup!$AH$8<>\"\",INDIRECT(\"'\" & Setup!$AH$8 & \"'!\" & AD95),0) + IF(Setup!$AH$9<>\"\",INDIRECT(\"'\" & Setup!$AH$9 & \"'!\" & AD95),0) + IF(Setup!$AH$10<>\"\",INDIRECT(\"'\" & Setup!$AH$10 & \"'!\" & AD95),0) + IF(Setup!$AH$11<>\"\",INDIRECT(\"'\" & Setup!$AH$11 & \"'!\" & AD95),0) + IF(Setup!$AH$12<>\"\",INDIRECT(\"'\" & Setup!$AH$12 & \"'!\" & AD95),0)","v":0},{"$f":"IF(Setup!$AH$7<>\"\",INDIRECT(\"'\" & Setup!$AH$7 & \"'!\" & AE95),0) + IF(Setup!$AH$8<>\"\",INDIRECT(\"'\" & Setup!$AH$8 & \"'!\" & AE95),0) + IF(Setup!$AH$9<>\"\",INDIRECT(\"'\" & Setup!$AH$9 & \"'!\" & AE95),0) + IF(Setup!$AH$10<>\"\",INDIRECT(\"'\" & Setup!$AH$10 & \"'!\" & AE95),0) + IF(Setup!$AH$11<>\"\",INDIRECT(\"'\" & Setup!$AH$11 & \"'!\" & AE95),0) + IF(Setup!$AH$12<>\"\",INDIRECT(\"'\" & Setup!$AH$12 & \"'!\" & AE95),0)","v":0},{"$f":"IF(Setup!$AI$7<>\"\",INDIRECT(\"'\" & Setup!$AI$7 & \"'!\" & AD95),0) + IF(Setup!$AI$8<>\"\",INDIRECT(\"'\" & Setup!$AI$8 & \"'!\" & AD95),0) + IF(Setup!$AI$9<>\"\",INDIRECT(\"'\" & Setup!$AI$9 & \"'!\" & AD95),0) + IF(Setup!$AI$10<>\"\",INDIRECT(\"'\" & Setup!$AI$10 & \"'!\" & AD95),0) + IF(Setup!$AI$11<>\"\",INDIRECT(\"'\" & Setup!$AI$11 & \"'!\" & AD95),0) + IF(Setup!$AI$12<>\"\",INDIRECT(\"'\" & Setup!$AI$12 & \"'!\" & AD95),0)","v":0},{"$f":"IF(Setup!$AI$7<>\"\",INDIRECT(\"'\" & Setup!$AI$7 & \"'!\" & AE95),0) + IF(Setup!$AI$8<>\"\",INDIRECT(\"'\" & Setup!$AI$8 & \"'!\" & AE95),0) + IF(Setup!$AI$9<>\"\",INDIRECT(\"'\" & Setup!$AI$9 & \"'!\" & AE95),0) + IF(Setup!$AI$10<>\"\",INDIRECT(\"'\" & Setup!$AI$10 & \"'!\" & AE95),0) + IF(Setup!$AI$11<>\"\",INDIRECT(\"'\" & Setup!$AI$11 & \"'!\" & AE95),0) + IF(Setup!$AI$12<>\"\",INDIRECT(\"'\" & Setup!$AI$12 & \"'!\" & AE95),0)","v":0},{"$f":"IF(Setup!$AJ$7<>\"\",INDIRECT(\"'\" & Setup!$AJ$7 & \"'!\" & AD95),0) + IF(Setup!$AJ$8<>\"\",INDIRECT(\"'\" & Setup!$AJ$8 & \"'!\" & AD95),0) + IF(Setup!$AJ$9<>\"\",INDIRECT(\"'\" & Setup!$AJ$9 & \"'!\" & AD95),0) + IF(Setup!$AJ$10<>\"\",INDIRECT(\"'\" & Setup!$AJ$10 & \"'!\" & AD95),0) + IF(Setup!$AJ$11<>\"\",INDIRECT(\"'\" & Setup!$AJ$11 & \"'!\" & AD95),0) + IF(Setup!$AJ$12<>\"\",INDIRECT(\"'\" & Setup!$AJ$12 & \"'!\" & AD95),0)","v":0},{"$f":"IF(Setup!$AJ$7<>\"\",INDIRECT(\"'\" & Setup!$AJ$7 & \"'!\" & AE95),0) + IF(Setup!$AJ$8<>\"\",INDIRECT(\"'\" & Setup!$AJ$8 & \"'!\" & AE95),0) + IF(Setup!$AJ$9<>\"\",INDIRECT(\"'\" & Setup!$AJ$9 & \"'!\" & AE95),0) + IF(Setup!$AJ$10<>\"\",INDIRECT(\"'\" & Setup!$AJ$10 & \"'!\" & AE95),0) + IF(Setup!$AJ$11<>\"\",INDIRECT(\"'\" & Setup!$AJ$11 & \"'!\" & AE95),0) + IF(Setup!$AJ$12<>\"\",INDIRECT(\"'\" & Setup!$AJ$12 & \"'!\" & AE95),0)","v":0}]
[{"$f":"Planning!A79","v":"I071"},{"$f":"Planning!B79","v":0},{"$f":"Planning!C79","v":0},{"$f":"Planning!D79","v":0},{"$f":"Planning!E79","v":0},{"$f":"Planning!G79","v":0},null,0,0,{"$f":"IF(AND($AR96=\"2\",$AB95<>Lists!$A$17),AU96,AT96)","v":""},"",0,0,{"$f":"IF(AND($AR96=\"2\",$AB96<>Lists!$A$17),AW96,AV96)","v":""},"",0,0,{"$f":"IF(AND($AR96=\"2\",$AB96<>Lists!$A$17),AY96,AX96)","v":""},"",0,0,{"$f":"IF(AND($AR96=\"2\",$AB96<>Lists!$A$17),BA96,AZ96)","v":""},"",0,0,{"$f":"IF(AND($AR96=\"2\",$AB96<>Lists!$A$17),BC96,BB96)","v":""},"",{"$f":"Planning!H79","v":0},"00","H95","J95","I95","",null,{"$f":"IF(Setup!$AG$7<>\"\",INDIRECT(\"'\" & Setup!$AG$7 & \"'!\" & AF96),0) + IF(Setup!$AG$8<>\"\",INDIRECT(\"'\" & Setup!$AG$8 & \"'!\" & AF96),0) + IF(Setup!$AG$9<>\"\",INDIRECT(\"'\" & Setup!$AG$9 & \"'!\" & AF96),0) + IF(Setup!$AG$10<>\"\",INDIRECT(\"'\" & Setup!$AG$10 & \"'!\" & AF96),0) + IF(Setup!$AG$11<>\"\",INDIRECT(\"'\" & Setup!$AG$11 & \"'!\" & AF96),0) + IF(Setup!$AG$12<>\"\",INDIRECT(\"'\" & Setup!$AG$12 & \"'!\" & AF96),0)","v":0},{"$f":"IF(Setup!$AH$7<>\"\",INDIRECT(\"'\" & Setup!$AH$7 & \"'!\" & AF96),0) + IF(Setup!$AH$8<>\"\",INDIRECT(\"'\" & Setup!$AH$8 & \"'!\" & AF96),0) + IF(Setup!$AH$9<>\"\",INDIRECT(\"'\" & Setup!$AH$9 & \"'!\" & AF96),0) + IF(Setup!$AH$10<>\"\",INDIRECT(\"'\" & Setup!$AH$10 & \"'!\" & AF96),0) + IF(Setup!$AH$11<>\"\",INDIRECT(\"'\" & Setup!$AH$11 & \"'!\" & AF96),0) + IF(Setup!$AH$12<>\"\",INDIRECT(\"'\" & Setup!$AH$12 & \"'!\" & AF96),0)","v":0},{"$f":"IF(Setup!$AI$7<>\"\",INDIRECT(\"'\" & Setup!$AI$7 & \"'!\" & AF96),0) + IF(Setup!$AI$8<>\"\",INDIRECT(\"'\" & Setup!$AI$8 & \"'!\" & AF96),0) + IF(Setup!$AI$9<>\"\",INDIRECT(\"'\" & Setup!$AI$9 & \"'!\" & AF96),0) + IF(Setup!$AI$10<>\"\",INDIRECT(\"'\" & Setup!$AI$10 & \"'!\" & AF96),0) + IF(Setup!$AI$11<>\"\",INDIRECT(\"'\" & Setup!$AI$11 & \"'!\" & AF96),0) + IF(Setup!$AI$12<>\"\",INDIRECT(\"'\" & Setup!$AI$12 & \"'!\" & AF96),0)","v":0},{"$f":"IF(Setup!$AJ$7<>\"\",INDIRECT(\"'\" & Setup!$AJ$7 & \"'!\" & AF96),0) + IF(Setup!$AJ$8<>\"\",INDIRECT(\"'\" & Setup!$AJ$8 & \"'!\" & AF96),0) + IF(Setup!$AJ$9<>\"\",INDIRECT(\"'\" & Setup!$AJ$9 & \"'!\" & AF96),0) + IF(Setup!$AJ$10<>\"\",INDIRECT(\"'\" & Setup!$AJ$10 & \"'!\" & AF96),0) + IF(Setup!$AJ$11<>\"\",INDIRECT(\"'\" & Setup!$AJ$11 & \"'!\" & AF96),0) + IF(Setup!$AJ$12<>\"\",INDIRECT(\"'\" & Setup!$AJ$12 & \"'!\" & AF96),0)","v":0},null,"",{"$nulls":3},{"$f":"IF(C96=0,\"\",LEFT(INDEX(Lists!$H$5:$H$49,MATCH(C96,Lists!$G$5:$G$49,0),1),1))","v":""},null,"","","","","","","","","","",{"$nulls":6},{"$f":"IF(Setup!$AG$7<>\"\",INDIRECT(\"'\" & Setup!$AG$7 & \"'!\" & AD96),0) + IF(Setup!$AG$8<>\"\",INDIRECT(\"'\" & Setup!$AG$8 & \"'!\" & AD96),0) + IF(Setup!$AG$9<>\"\",INDIRECT(\"'\" & Setup!$AG$9 & \"'!\" & AD96),0) + IF(Setup!$AG$10<>\"\",INDIRECT(\"'\" & Setup!$AG$10 & \"'!\" & AD96),0) + IF(Setup!$AG$11<>\"\",INDIRECT(\"'\" & Setup!$AG$11 & \"'!\" & AD96),0) + IF(Setup!$AG$12<>\"\",INDIRECT(\"'\" & Setup!$AG$12 & \"'!\" & AD96),0)","v":0},{"$f":"IF(Setup!$AG$7<>\"\",INDIRECT(\"'\" & Setup!$AG$7 & \"'!\" & AE96),0) + IF(Setup!$AG$8<>\"\",INDIRECT(\"'\" & Setup!$AG$8 & \"'!\" & AE96),0) + IF(Setup!$AG$9<>\"\",INDIRECT(\"'\" & Setup!$AG$9 & \"'!\" & AE96),0) + IF(Setup!$AG$10<>\"\",INDIRECT(\"'\" & Setup!$AG$10 & \"'!\" & AE96),0) + IF(Setup!$AG$11<>\"\",INDIRECT(\"'\" & Setup!$AG$11 & \"'!\" & AE96),0) + IF(Setup!$AG$12<>\"\",INDIRECT(\"'\" & Setup!$AG$12 & \"'!\" & AE96),0)","v":0},{"$f":"IF(Setup!$AH$7<>\"\",INDIRECT(\"'\" & Setup!$AH$7 & \"'!\" & AD96),0) + IF(Setup!$AH$8<>\"\",INDIRECT(\"'\" & Setup!$AH$8 & \"'!\" & AD96),0) + IF(Setup!$AH$9<>\"\",INDIRECT(\"'\" & Setup!$AH$9 & \"'!\" & AD96),0) + IF(Setup!$AH$10<>\"\",INDIRECT(\"'\" & Setup!$AH$10 & \"'!\" & AD96),0) + IF(Setup!$AH$11<>\"\",INDIRECT(\"'\" & Setup!$AH$11 & \"'!\" & AD96),0) + IF(Setup!$AH$12<>\"\",INDIRECT(\"'\" & Setup!$AH$12 & \"'!\" & AD96),0)","v":0},{"$f":"IF(Setup!$AH$7<>\"\",INDIRECT(\"'\" & Setup!$AH$7 & \"'!\" & AE96),0) + IF(Setup!$AH$8<>\"\",INDIRECT(\"'\" & Setup!$AH$8 & \"'!\" & AE96),0) + IF(Setup!$AH$9<>\"\",INDIRECT(\"'\" & Setup!$AH$9 & \"'!\" & AE96),0) + IF(Setup!$AH$10<>\"\",INDIRECT(\"'\" & Setup!$AH$10 & \"'!\" & AE96),0) + IF(Setup!$AH$11<>\"\",INDIRECT(\"'\" & Setup!$AH$11 & \"'!\" & AE96),0) + IF(Setup!$AH$12<>\"\",INDIRECT(\"'\" & Setup!$AH$12 & \"'!\" & AE96),0)","v":0},{"$f":"IF(Setup!$AI$7<>\"\",INDIRECT(\"'\" & Setup!$AI$7 & \"'!\" & AD96),0) + IF(Setup!$AI$8<>\"\",INDIRECT(\"'\" & Setup!$AI$8 & \"'!\" & AD96),0) + IF(Setup!$AI$9<>\"\",INDIRECT(\"'\" & Setup!$AI$9 & \"'!\" & AD96),0) + IF(Setup!$AI$10<>\"\",INDIRECT(\"'\" & Setup!$AI$10 & \"'!\" & AD96),0) + IF(Setup!$AI$11<>\"\",INDIRECT(\"'\" & Setup!$AI$11 & \"'!\" & AD96),0) + IF(Setup!$AI$12<>\"\",INDIRECT(\"'\" & Setup!$AI$12 & \"'!\" & AD96),0)","v":0},{"$f":"IF(Setup!$AI$7<>\"\",INDIRECT(\"'\" & Setup!$AI$7 & \"'!\" & AE96),0) + IF(Setup!$AI$8<>\"\",INDIRECT(\"'\" & Setup!$AI$8 & \"'!\" & AE96),0) + IF(Setup!$AI$9<>\"\",INDIRECT(\"'\" & Setup!$AI$9 & \"'!\" & AE96),0) + IF(Setup!$AI$10<>\"\",INDIRECT(\"'\" & Setup!$AI$10 & \"'!\" & AE96),0) + IF(Setup!$AI$11<>\"\",INDIRECT(\"'\" & Setup!$AI$11 & \"'!\" & AE96),0) + IF(Setup!$AI$12<>\"\",INDIRECT(\"'\" & Setup!$AI$12 & \"'!\" & AE96),0)","v":0},{"$f":"IF(Setup!$AJ$7<>\"\",INDIRECT(\"'\" & Setup!$AJ$7 & \"'!\" & AD96),0) + IF(Setup!$AJ$8<>\"\",INDIRECT(\"'\" & Setup!$AJ$8 & \"'!\" & AD96),0) + IF(Setup!$AJ$9<>\"\",INDIRECT(\"'\" & Setup!$AJ$9 & \"'!\" & AD96),0) + IF(Setup!$AJ$10<>\"\",INDIRECT(\"'\" & Setup!$AJ$10 & \"'!\" & AD96),0) + IF(Setup!$AJ$11<>\"\",INDIRECT(\"'\" & Setup!$AJ$11 & \"'!\" & AD96),0) + IF(Setup!$AJ$12<>\"\",INDIRECT(\"'\" & Setup!$AJ$12 & \"'!\" & AD96),0)","v":0},{"$f":"IF(Setup!$AJ$7<>\"\",INDIRECT(\"'\" & Setup!$AJ$7 & \"'!\" & AE96),0) + IF(Setup!$AJ$8<>\"\",INDIRECT(\"'\" & Setup!$AJ$8 & \"'!\" & AE96),0) + IF(Setup!$AJ$9<>\"\",INDIRECT(\"'\" & Setup!$AJ$9 & \"'!\" & AE96),0) + IF(Setup!$AJ$10<>\"\",INDIRECT(\"'\" & Setup!$AJ$10 & \"'!\" & AE96),0) + IF(Setup!$AJ$11<>\"\",INDIRECT(\"'\" & Setup!$AJ$11 & \"'!\" & AE96),0) + IF(Setup!$AJ$12<>\"\",INDIRECT(\"'\" & Setup!$AJ$12 & \"'!\" & AE96),0)","v":0}]
[{"$f":"Planning!A80","v":"I072"},{"$f":"Planning!B80","v":0},{"$f":"Planning!C80","v":0},{"$f":"Planning!D80","v":0},{"$f":"Planning!E80","v":0},{"$f":"Planning!G80","v":0},null,0,0,{"$f":"IF(AND($AR97=\"2\",$AB96<>Lists!$A$17),AU97,AT97)","v":""},"",0,0,{"$f":"IF(AND($AR97=\"2\",$AB97<>Lists!$A$17),AW97,AV97)","v":""},"",0,0,{"$f":"IF(AND($AR97=\"2\",$AB97<>Lists!$A$17),AY97,AX97)","v":""},"",0,0,{"$f":"IF(AND($AR97=\"2\",$AB97<>Lists!$A$17),BA97,AZ97)","v":""},"",0,0,{"$f":"IF(AND($AR97=\"2\",$AB97<>Lists!$A$17),BC97,BB97)","v":""},"",{"$f":"Planning!H80","v":0},"00","H96","J96","I96","",null,{"$f":"IF(Setup!$AG$7<>\"\",INDIRECT(\"'\" & Setup!$AG$7 & \"'!\" & AF97),0) + IF(Setup!$AG$8<>\"\",INDIRECT(\"'\" & Setup!$AG$8 & \"'!\" & AF97),0) + IF(Setup!$AG$9<>\"\",INDIRECT(\"'\" & Setup!$AG$9 & \"'!\" & AF97),0) + IF(Setup!$AG$10<>\"\",INDIRECT(\"'\" & Setup!$AG$10 & \"'!\" & AF97),0) + IF(Setup!$AG$11<>\"\",INDIRECT(\"'\" & Setup!$AG$11 & \"'!\" & AF97),0) + IF(Setup!$AG$12<>\"\",INDIRECT(\"'\" & Setup!$AG$12 & \"'!\" & AF97),0)","v":0},{"$f":"IF(Setup!$AH$7<>\"\",INDIRECT(\"'\" & Setup!$AH$7 & \"'!\" & AF97),0) + IF(Setup!$AH$8<>\"\",INDIRECT(\"'\" & Setup!$AH$8 & \"'!\" & AF97),0) + IF(Setup!$AH$9<>\"\",INDIRECT(\"'\" & Setup!$AH$9 & \"'!\" & AF97),0) + IF(Setup!$AH$10<>\"\",INDIRECT(\"'\" & Setup!$AH$10 & \"'!\" & AF97),0) + IF(Setup!$AH$11<>\"\",INDIRECT(\"'\" & Setup!$AH$11 & \"'!\" & AF97),0) + IF(Setup!$AH$12<>\"\",INDIRECT(\"'\" & Setup!$AH$12 & \"'!\" & AF97),0)","v":0},{"$f":"IF(Setup!$AI$7<>\"\",INDIRECT(\"'\" & Setup!$AI$7 & \"'!\" & AF97),0) + IF(Setup!$AI$8<>\"\",INDIRECT(\"'\" & Setup!$AI$8 & \"'!\" & AF97),0) + IF(Setup!$AI$9<>\"\",INDIRECT(\"'\" & Setup!$AI$9 & \"'!\" & AF97),0) + IF(Setup!$AI$10<>\"\",INDIRECT(\"'\" & Setup!$AI$10 & \"'!\" & AF97),0) + IF(Setup!$AI$11<>\"\",INDIRECT(\"'\" & Setup!$AI$11 & \"'!\" & AF97),0) + IF(Setup!$AI$12<>\"\",INDIRECT(\"'\" & Setup!$AI$12 & \"'!\" & AF97),0)","v":0},{"$f":"IF(Setup!$AJ$7<>\"\",INDIRECT(\"'\" & Setup!$AJ$7 & \"'!\" & AF97),0) + IF(Setup!$AJ$8<>\"\",INDIRECT(\"'\" & Setup!$AJ$8 & \"'!\" & AF97),0) + IF(Setup!$AJ$9<>\"\",INDIRECT(\"'\" & Setup!$AJ$9 & \"'!\" & AF97),0) + IF(Setup!$AJ$10<>\"\",INDIRECT(\"'\" & Setup!$AJ$10 & \"'!\" & AF97),0) + IF(Setup!$AJ$11<>\"\",INDIRECT(\"'\" & Setup!$AJ$11 & \"'!\" & AF97),0) + IF(Setup!$AJ$12<>\"\",INDIRECT(\"'\" & Setup!$AJ$12 & \"'!\" & AF97),0)","v":0},null,"",{"$nulls":3},{"$f":"IF(C97=0,\"\",LEFT(INDEX(Lists!$H$5:$H$49,MATCH(C97,Lists!$G$5:$G$49,0),1),1))","v":""},null,"","","","","","","","","","",{"$nulls":6},{"$f":"IF(Setup!$AG$7<>\"\",INDIRECT(\"'\" & Setup!$AG$7 & \"'!\" & AD97),0) + IF(Setup!$AG$8<>\"\",INDIRECT(\"'\" & Setup!$AG$8 & \"'!\" & AD97),0) + IF(Setup!$AG$9<>\"\",INDIRECT(\"'\" & Setup!$AG$9 & \"'!\" & AD97),0) + IF(Setup!$AG$10<>\"\",INDIRECT(\"'\" & Setup!$AG$10 & \"'!\" & AD97),0) + IF(Setup!$AG$11<>\"\",INDIRECT(\"'\" & Setup!$AG$11 & \"'!\" & AD97),0) + IF(Setup!$AG$12<>\"\",INDIRECT(\"'\" & Setup!$AG$12 & \"'!\" & AD97),0)","v":0},{"$f":"IF(Setup!$AG$7<>\"\",INDIRECT(\"'\" & Setup!$AG$7 & \"'!\" & AE97),0) + IF(Setup!$AG$8<>\"\",INDIRECT(\"'\" & Setup!$AG$8 & \"'!\" & AE97),0) + IF(Setup!$AG$9<>\"\",INDIRECT(\"'\" & Setup!$AG$9 & \"'!\" & AE97),0) + IF(Setup!$AG$10<>\"\",INDIRECT(\"'\" & Setup!$AG$10 & \"'!\" & AE97),0) + IF(Setup!$AG$11<>\"\",INDIRECT(\"'\" & Setup!$AG$11 & \"'!\" & AE97),0) + IF(Setup!$AG$12<>\"\",INDIRECT(\"'\" & Setup!$AG$12 & \"'!\" & AE97),0)","v":0},{"$f":"IF(Setup!$AH$7<>\"\",INDIRECT(\"'\" & Setup!$AH$7 & \"'!\" & AD97),0) + IF(Setup!$AH$8<>\"\",INDIRECT(\"'\" & Setup!$AH$8 & \"'!\" & AD97),0) + IF(Setup!$AH$9<>\"\",INDIRECT(\"'\" & Setup!$AH$9 & \"'!\" & AD97),0) + IF(Setup!$AH$10<>\"\",INDIRECT(\"'\" & Setup!$AH$10 & \"'!\" & AD97),0) + IF(Setup!$AH$11<>\"\",INDIRECT(\"'\" & Setup!$AH$11 & \"'!\" & AD97),0) + IF(Setup!$AH$12<>\"\",INDIRECT(\"'\" & Setup!$AH$12 & \"'!\" & AD97),0)","v":0},{"$f":"IF(Setup!$AH$7<>\"\",INDIRECT(\"'\" & Setup!$AH$7 & \"'!\" & AE97),0) + IF(Setup!$AH$8<>\"\",INDIRECT(\"'\" & Setup!$AH$8 & \"'!\" & AE97),0) + IF(Setup!$AH$9<>\"\",INDIRECT(\"'\" & Setup!$AH$9 & \"'!\" & AE97),0) + IF(Setup!$AH$10<>\"\",INDIRECT(\"'\" & Setup!$AH$10 & \"'!\" & AE97),0) + IF(Setup!$AH$11<>\"\",INDIRECT(\"'\" & Setup!$AH$11 & \"'!\" & AE97),0) + IF(Setup!$AH$12<>\"\",INDIRECT(\"'\" & Setup!$AH$12 & \"'!\" & AE97),0)","v":0},{"$f":"IF(Setup!$AI$7<>\"\",INDIRECT(\"'\" & Setup!$AI$7 & \"'!\" & AD97),0) + IF(Setup!$AI$8<>\"\",INDIRECT(\"'\" & Setup!$AI$8 & \"'!\" & AD97),0) + IF(Setup!$AI$9<>\"\",INDIRECT(\"'\" & Setup!$AI$9 & \"'!\" & AD97),0) + IF(Setup!$AI$10<>\"\",INDIRECT(\"'\" & Setup!$AI$10 & \"'!\" & AD97),0) + IF(Setup!$AI$11<>\"\",INDIRECT(\"'\" & Setup!$AI$11 & \"'!\" & AD97),0) + IF(Setup!$AI$12<>\"\",INDIRECT(\"'\" & Setup!$AI$12 & \"'!\" & AD97),0)","v":0},{"$f":"IF(Setup!$AI$7<>\"\",INDIRECT(\"'\" & Setup!$AI$7 & \"'!\" & AE97),0) + IF(Setup!$AI$8<>\"\",INDIRECT(\"'\" & Setup!$AI$8 & \"'!\" & AE97),0) + IF(Setup!$AI$9<>\"\",INDIRECT(\"'\" & Setup!$AI$9 & \"'!\" & AE97),0) + IF(Setup!$AI$10<>\"\",INDIRECT(\"'\" & Setup!$AI$10 & \"'!\" & AE97),0) + IF(Setup!$AI$11<>\"\",INDIRECT(\"'\" & Setup!$AI$11 & \"'!\" & AE97),0) + IF(Setup!$AI$12<>\"\",INDIRECT(\"'\" & Setup!$AI$12 & \"'!\" & AE97),0)","v":0},{"$f":"IF(Setup!$AJ$7<>\"\",INDIRECT(\"'\" & Setup!$AJ$7 & \"'!\" & AD97),0) + IF(Setup!$AJ$8<>\"\",INDIRECT(\"'\" & Setup!$AJ$8 & \"'!\" & AD97),0) + IF(Setup!$AJ$9<>\"\",INDIRECT(\"'\" & Setup!$AJ$9 & \"'!\" & AD97),0) + IF(Setup!$AJ$10<>\"\",INDIRECT(\"'\" & Setup!$AJ$10 & \"'!\" & AD97),0) + IF(Setup!$AJ$11<>\"\",INDIRECT(\"'\" & Setup!$AJ$11 & \"'!\" & AD97),0) + IF(Setup!$AJ$12<>\"\",INDIRECT(\"'\" & Setup!$AJ$12 & \"'!\" & AD97),0)","v":0},{"$f":"IF(Setup!$AJ$7<>\"\",INDIRECT(\"'\" & Setup!$AJ$7 & \"'!\" & AE97),0) + IF(Setup!$AJ$8<>\"\",INDIRECT(\"'\" & Setup!$AJ$8 & \"'!\" & AE97),0) + IF(Setup!$AJ$9<>\"\",INDIRECT(\"'\" & Setup!$AJ$9 & \"'!\" & AE97),0) + IF(Setup!$AJ$10<>\"\",INDIRECT(\"'\" & Setup!$AJ$10 & \"'!\" & AE97),0) + IF(Setup!$AJ$11<>\"\",INDIRECT(\"'\" & Setup!$AJ$11 & \"'!\" & AE97),0) + IF(Setup!$AJ$12<>\"\",INDIRECT(\"'\" & Setup!$AJ$12 & \"'!\" & AE97),0)","v":0}]
[{"$f":"Planning!A81","v":"I073"},{"$f":"Planning!B81","v":0},{"$f":"Planning!C81","v":0},{"$f":"Planning!D81","v":0},{"$f":"Planning!E81","v":0},{"$f":"Planning!G81","v":0},null,0,0,{"$f":"IF(AND($AR98=\"2\",$AB97<>Lists!$A$17),AU98,AT98)","v":""},"",0,0,{"$f":"IF(AND($AR98=\"2\",$AB98<>Lists!$A$17),AW98,AV98)","v":""},"",0,0,{"$f":"IF(AND($AR98=\"2\",$AB98<>Lists!$A$17),AY98,AX98)","v":""},"",0,0,{"$f":"IF(AND($AR98=\"2\",$AB98<>Lists!$A$17),BA98,AZ98)","v":""},"",0,0,{"$f":"IF(AND($AR98=\"2\",$AB98<>Lists!$A$17),BC98,BB98)","v":""},"",{"$f":"Planning!H81","v":0},"00","H97","J97","I97","",null,{"$f":"IF(Setup!$AG$7<>\"\",INDIRECT(\"'\" & Setup!$AG$7 & \"'!\" & AF98),0) + IF(Setup!$AG$8<>\"\",INDIRECT(\"'\" & Setup!$AG$8 & \"'!\" & AF98),0) + IF(Setup!$AG$9<>\"\",INDIRECT(\"'\" & Setup!$AG$9 & \"'!\" & AF98),0) + IF(Setup!$AG$10<>\"\",INDIRECT(\"'\" & Setup!$AG$10 & \"'!\" & AF98),0) + IF(Setup!$AG$11<>\"\",INDIRECT(\"'\" & Setup!$AG$11 & \"'!\" & AF98),0) + IF(Setup!$AG$12<>\"\",INDIRECT(\"'\" & Setup!$AG$12 & \"'!\" & AF98),0)","v":0},{"$f":"IF(Setup!$AH$7<>\"\",INDIRECT(\"'\" & Setup!$AH$7 & \"'!\" & AF98),0) + IF(Setup!$AH$8<>\"\",INDIRECT(\"'\" & Setup!$AH$8 & \"'!\" & AF98),0) + IF(Setup!$AH$9<>\"\",INDIRECT(\"'\" & Setup!$AH$9 & \"'!\" & AF98),0) + IF(Setup!$AH$10<>\"\",INDIRECT(\"'\" & Setup!$AH$10 & \"'!\" & AF98),0) + IF(Setup!$AH$11<>\"\",INDIRECT(\"'\" & Setup!$AH$11 & \"'!\" & AF98),0) + IF(Setup!$AH$12<>\"\",INDIRECT(\"'\" & Setup!$AH$12 & \"'!\" & AF98),0)","v":0},{"$f":"IF(Setup!$AI$7<>\"\",INDIRECT(\"'\" & Setup!$AI$7 & \"'!\" & AF98),0) + IF(Setup!$AI$8<>\"\",INDIRECT(\"'\" & Setup!$AI$8 & \"'!\" & AF98),0) + IF(Setup!$AI$9<>\"\",INDIRECT(\"'\" & Setup!$AI$9 & \"'!\" & AF98),0) + IF(Setup!$AI$10<>\"\",INDIRECT(\"'\" & Setup!$AI$10 & \"'!\" & AF98),0) + IF(Setup!$AI$11<>\"\",INDIRECT(\"'\" & Setup!$AI$11 & \"'!\" & AF98),0) + IF(Setup!$AI$12<>\"\",INDIRECT(\"'\" & Setup!$AI$12 & \"'!\" & AF98),0)","v":0},{"$f":"IF(Setup!$AJ$7<>\"\",INDIRECT(\"'\" & Setup!$AJ$7 & \"'!\" & AF98),0) + IF(Setup!$AJ$8<>\"\",INDIRECT(\"'\" & Setup!$AJ$8 & \"'!\" & AF98),0) + IF(Setup!$AJ$9<>\"\",INDIRECT(\"'\" & Setup!$AJ$9 & \"'!\" & AF98),0) + IF(Setup!$AJ$10<>\"\",INDIRECT(\"'\" & Setup!$AJ$10 & \"'!\" & AF98),0) + IF(Setup!$AJ$11<>\"\",INDIRECT(\"'\" & Setup!$AJ$11 & \"'!\" & AF98),0) + IF(Setup!$AJ$12<>\"\",INDIRECT(\"'\" & Setup!$AJ$12 & \"'!\" & AF98),0)","v":0},null,"",{"$nulls":3},{"$f":"IF(C98=0,\"\",LEFT(INDEX(Lists!$H$5:$H$49,MATCH(C98,Lists!$G$5:$G$49,0),1),1))","v":""},null,"","","","","","","","","","",{"$nulls":6},{"$f":"IF(Setup!$AG$7<>\"\",INDIRECT(\"'\" & Setup!$AG$7 & \"'!\" & AD98),0) + IF(Setup!$AG$8<>\"\",INDIRECT(\"'\" & Setup!$AG$8 & \"'!\" & AD98),0) + IF(Setup!$AG$9<>\"\",INDIRECT(\"'\" & Setup!$AG$9 & \"'!\" & AD98),0) + IF(Setup!$AG$10<>\"\",INDIRECT(\"'\" & Setup!$AG$10 & \"'!\" & AD98),0) + IF(Setup!$AG$11<>\"\",INDIRECT(\"'\" & Setup!$AG$11 & \"'!\" & AD98),0) + IF(Setup!$AG$12<>\"\",INDIRECT(\"'\" & Setup!$AG$12 & \"'!\" & AD98),0)","v":0},{"$f":"IF(Setup!$AG$7<>\"\",INDIRECT(\"'\" & Setup!$AG$7 & \"'!\" & AE98),0) + IF(Setup!$AG$8<>\"\",INDIRECT(\"'\" & Setup!$AG$8 & \"'!\" & AE98),0) + IF(Setup!$AG$9<>\"\",INDIRECT(\"'\" & Setup!$AG$9 & \"'!\" & AE98),0) + IF(Setup!$AG$10<>\"\",INDIRECT(\"'\" & Setup!$AG$10 & \"'!\" & AE98),0) + IF(Setup!$AG$11<>\"\",INDIRECT(\"'\" & Setup!$AG$11 & \"'!\" & AE98),0) + IF(Setup!$AG$12<>\"\",INDIRECT(\"'\" & Setup!$AG$12 & \"'!\" & AE98),0)","v":0},{"$f":"IF(Setup!$AH$7<>\"\",INDIRECT(\"'\" & Setup!$AH$7 & \"'!\" & AD98),0) + IF(Setup!$AH$8<>\"\",INDIRECT(\"'\" & Setup!$AH$8 & \"'!\" & AD98),0) + IF(Setup!$AH$9<>\"\",INDIRECT(\"'\" & Setup!$AH$9 & \"'!\" & AD98),0) + IF(Setup!$AH$10<>\"\",INDIRECT(\"'\" & Setup!$AH$10 & \"'!\" & AD98),0) + IF(Setup!$AH$11<>\"\",INDIRECT(\"'\" & Setup!$AH$11 & \"'!\" & AD98),0) + IF(Setup!$AH$12<>\"\",INDIRECT(\"'\" & Setup!$AH$12 & \"'!\" & AD98),0)","v":0},{"$f":"IF(Setup!$AH$7<>\"\",INDIRECT(\"'\" & Setup!$AH$7 & \"'!\" & AE98),0) + IF(Setup!$AH$8<>\"\",INDIRECT(\"'\" & Setup!$AH$8 & \"'!\" & AE98),0) + IF(Setup!$AH$9<>\"\",INDIRECT(\"'\" & Setup!$AH$9 & \"'!\" & AE98),0) + IF(Setup!$AH$10<>\"\",INDIRECT(\"'\" & Setup!$AH$10 & \"'!\" & AE98),0) + IF(Setup!$AH$11<>\"\",INDIRECT(\"'\" & Setup!$AH$11 & \"'!\" & AE98),0) + IF(Setup!$AH$12<>\"\",INDIRECT(\"'\" & Setup!$AH$12 & \"'!\" & AE98),0)","v":0},{"$f":"IF(Setup!$AI$7<>\"\",INDIRECT(\"'\" & Setup!$AI$7 & \"'!\" & AD98),0) + IF(Setup!$AI$8<>\"\",INDIRECT(\"'\" & Setup!$AI$8 & \"'!\" & AD98),0) + IF(Setup!$AI$9<>\"\",INDIRECT(\"'\" & Setup!$AI$9 & \"'!\" & AD98),0) + IF(Setup!$AI$10<>\"\",INDIRECT(\"'\" & Setup!$AI$10 & \"'!\" & AD98),0) + IF(Setup!$AI$11<>\"\",INDIRECT(\"'\" & Setup!$AI$11 & \"'!\" & AD98),0) + IF(Setup!$AI$12<>\"\",INDIRECT(\"'\" & Setup!$AI$12 & \"'!\" & AD98),0)","v":0},{"$f":"IF(Setup!$AI$7<>\"\",INDIRECT(\"'\" & Setup!$AI$7 & \"'!\" & AE98),0) + IF(Setup!$AI$8<>\"\",INDIRECT(\"'\" & Setup!$AI$8 & \"'!\" & AE98),0) + IF(Setup!$AI$9<>\"\",INDIRECT(\"'\" & Setup!$AI$9 & \"'!\" & AE98),0) + IF(Setup!$AI$10<>\"\",INDIRECT(\"'\" & Setup!$AI$10 & \"'!\" & AE98),0) + IF(Setup!$AI$11<>\"\",INDIRECT(\"'\" & Setup!$AI$11 & \"'!\" & AE98),0) + IF(Setup!$AI$12<>\"\",INDIRECT(\"'\" & Setup!$AI$12 & \"'!\" & AE98),0)","v":0},{"$f":"IF(Setup!$AJ$7<>\"\",INDIRECT(\"'\" & Setup!$AJ$7 & \"'!\" & AD98),0) + IF(Setup!$AJ$8<>\"\",INDIRECT(\"'\" & Setup!$AJ$8 & \"'!\" & AD98),0) + IF(Setup!$AJ$9<>\"\",INDIRECT(\"'\" & Setup!$AJ$9 & \"'!\" & AD98),0) + IF(Setup!$AJ$10<>\"\",INDIRECT(\"'\" & Setup!$AJ$10 & \"'!\" & AD98),0) + IF(Setup!$AJ$11<>\"\",INDIRECT(\"'\" & Setup!$AJ$11 & \"'!\" & AD98),0) + IF(Setup!$AJ$12<>\"\",INDIRECT(\"'\" & Setup!$AJ$12 & \"'!\" & AD98),0)","v":0},{"$f":"IF(Setup!$AJ$7<>\"\",INDIRECT(\"'\" & Setup!$AJ$7 & \"'!\" & AE98),0) + IF(Setup!$AJ$8<>\"\",INDIRECT(\"'\" & Setup!$AJ$8 & \"'!\" & AE98),0) + IF(Setup!$AJ$9<>\"\",INDIRECT(\"'\" & Setup!$AJ$9 & \"'!\" & AE98),0) + IF(Setup!$AJ$10<>\"\",INDIRECT(\"'\" & Setup!$AJ$10 & \"'!\" & AE98),0) + IF(Setup!$AJ$11<>\"\",INDIRECT(\"'\" & Setup!$AJ$11 & \"'!\" & AE98),0) + IF(Setup!$AJ$12<>\"\",INDIRECT(\"'\" & Setup!$AJ$12 & \"'!\" & AE98),0)","v":0}]
[{"$f":"Planning!A82","v":"I074"},{"$f":"Planning!B82","v":0},{"$f":"Planning!C82","v":0},{"$f":"Planning!D82","v":0},{"$f":"Planning!E82","v":0},{"$f":"Planning!G82","v":0},null,0,0,{"$f":"IF(AND($AR99=\"2\",$AB98<>Lists!$A$17),AU99,AT99)","v":""},"",0,0,{"$f":"IF(AND($AR99=\"2\",$AB99<>Lists!$A$17),AW99,AV99)","v":""},"",0,0,{"$f":"IF(AND($AR99=\"2\",$AB99<>Lists!$A$17),AY99,AX99)","v":""},"",0,0,{"$f":"IF(AND($AR99=\"2\",$AB99<>Lists!$A$17),BA99,AZ99)","v":""},"",0,0,{"$f":"IF(AND($AR99=\"2\",$AB99<>Lists!$A$17),BC99,BB99)","v":""},"",{"$f":"Planning!H82","v":0},"00","H98","J98","I98","",null,{"$f":"IF(Setup!$AG$7<>\"\",INDIRECT(\"'\" & Setup!$AG$7 & \"'!\" & AF99),0) + IF(Setup!$AG$8<>\"\",INDIRECT(\"'\" & Setup!$AG$8 & \"'!\" & AF99),0) + IF(Setup!$AG$9<>\"\",INDIRECT(\"'\" & Setup!$AG$9 & \"'!\" & AF99),0) + IF(Setup!$AG$10<>\"\",INDIRECT(\"'\" & Setup!$AG$10 & \"'!\" & AF99),0) + IF(Setup!$AG$11<>\"\",INDIRECT(\"'\" & Setup!$AG$11 & \"'!\" & AF99),0) + IF(Setup!$AG$12<>\"\",INDIRECT(\"'\" & Setup!$AG$12 & \"'!\" & AF99),0)","v":0},{"$f":"IF(Setup!$AH$7<>\"\",INDIRECT(\"'\" & Setup!$AH$7 & \"'!\" & AF99),0) + IF(Setup!$AH$8<>\"\",INDIRECT(\"'\" & Setup!$AH$8 & \"'!\" & AF99),0) + IF(Setup!$AH$9<>\"\",INDIRECT(\"'\" & Setup!$AH$9 & \"'!\" & AF99),0) + IF(Setup!$AH$10<>\"\",INDIRECT(\"'\" & Setup!$AH$10 & \"'!\" & AF99),0) + IF(Setup!$AH$11<>\"\",INDIRECT(\"'\" & Setup!$AH$11 & \"'!\" & AF99),0) + IF(Setup!$AH$12<>\"\",INDIRECT(\"'\" & Setup!$AH$12 & \"'!\" & AF99),0)","v":0},{"$f":"IF(Setup!$AI$7<>\"\",INDIRECT(\"'\" & Setup!$AI$7 & \"'!\" & AF99),0) + IF(Setup!$AI$8<>\"\",INDIRECT(\"'\" & Setup!$AI$8 & \"'!\" & AF99),0) + IF(Setup!$AI$9<>\"\",INDIRECT(\"'\" & Setup!$AI$9 & \"'!\" & AF99),0) + IF(Setup!$AI$10<>\"\",INDIRECT(\"'\" & Setup!$AI$10 & \"'!\" & AF99),0) + IF(Setup!$AI$11<>\"\",INDIRECT(\"'\" & Setup!$AI$11 & \"'!\" & AF99),0) + IF(Setup!$AI$12<>\"\",INDIRECT(\"'\" & Setup!$AI$12 & \"'!\" & AF99),0)","v":0},{"$f":"IF(Setup!$AJ$7<>\"\",INDIRECT(\"'\" & Setup!$AJ$7 & \"'!\" & AF99),0) + IF(Setup!$AJ$8<>\"\",INDIRECT(\"'\" & Setup!$AJ$8 & \"'!\" & AF99),0) + IF(Setup!$AJ$9<>\"\",INDIRECT(\"'\" & Setup!$AJ$9 & \"'!\" & AF99),0) + IF(Setup!$AJ$10<>\"\",INDIRECT(\"'\" & Setup!$AJ$10 & \"'!\" & AF99),0) + IF(Setup!$AJ$11<>\"\",INDIRECT(\"'\" & Setup!$AJ$11 & \"'!\" & AF99),0) + IF(Setup!$AJ$12<>\"\",INDIRECT(\"'\" & Setup!$AJ$12 & \"'!\" & AF99),0)","v":0},null,"",{"$nulls":3},{"$f":"IF(C99=0,\"\",LEFT(INDEX(Lists!$H$5:$H$49,MATCH(C99,Lists!$G$5:$G$49,0),1),1))","v":""},null,"","","","","","","","","","",{"$nulls":6},{"$f":"IF(Setup!$AG$7<>\"\",INDIRECT(\"'\" & Setup!$AG$7 & \"'!\" & AD99),0) + IF(Setup!$AG$8<>\"\",INDIRECT(\"'\" & Setup!$AG$8 & \"'!\" & AD99),0) + IF(Setup!$AG$9<>\"\",INDIRECT(\"'\" & Setup!$AG$9 & \"'!\" & AD99),0) + IF(Setup!$AG$10<>\"\",INDIRECT(\"'\" & Setup!$AG$10 & \"'!\" & AD99),0) + IF(Setup!$AG$11<>\"\",INDIRECT(\"'\" & Setup!$AG$11 & \"'!\" & AD99),0) + IF(Setup!$AG$12<>\"\",INDIRECT(\"'\" & Setup!$AG$12 & \"'!\" & AD99),0)","v":0},{"$f":"IF(Setup!$AG$7<>\"\",INDIRECT(\"'\" & Setup!$AG$7 & \"'!\" & AE99),0) + IF(Setup!$AG$8<>\"\",INDIRECT(\"'\" & Setup!$AG$8 & \"'!\" & AE99),0) + IF(Setup!$AG$9<>\"\",INDIRECT(\"'\" & Setup!$AG$9 & \"'!\" & AE99),0) + IF(Setup!$AG$10<>\"\",INDIRECT(\"'\" & Setup!$AG$10 & \"'!\" & AE99),0) + IF(Setup!$AG$11<>\"\",INDIRECT(\"'\" & Setup!$AG$11 & \"'!\" & AE99),0) + IF(Setup!$AG$12<>\"\",INDIRECT(\"'\" & Setup!$AG$12 & \"'!\" & AE99),0)","v":0},{"$f":"IF(Setup!$AH$7<>\"\",INDIRECT(\"'\" & Setup!$AH$7 & \"'!\" & AD99),0) + IF(Setup!$AH$8<>\"\",INDIRECT(\"'\" & Setup!$AH$8 & \"'!\" & AD99),0) + IF(Setup!$AH$9<>\"\",INDIRECT(\"'\" & Setup!$AH$9 & \"'!\" & AD99),0) + IF(Setup!$AH$10<>\"\",INDIRECT(\"'\" & Setup!$AH$10 & \"'!\" & AD99),0) + IF(Setup!$AH$11<>\"\",INDIRECT(\"'\" & Setup!$AH$11 & \"'!\" & AD99),0) + IF(Setup!$AH$12<>\"\",INDIRECT(\"'\" & Setup!$AH$12 & \"'!\" & AD99),0)","v":0},{"$f":"IF(Setup!$AH$7<>\"\",INDIRECT(\"'\" & Setup!$AH$7 & \"'!\" & AE99),0) + IF(Setup!$AH$8<>\"\",INDIRECT(\"'\" & Setup!$AH$8 & \"'!\" & AE99),0) + IF(Setup!$AH$9<>\"\",INDIRECT(\"'\" & Setup!$AH$9 & \"'!\" & AE99),0) + IF(Setup!$AH$10<>\"\",INDIRECT(\"'\" & Setup!$AH$10 & \"'!\" & AE99),0) + IF(Setup!$AH$11<>\"\",INDIRECT(\"'\" & Setup!$AH$11 & \"'!\" & AE99),0) + IF(Setup!$AH$12<>\"\",INDIRECT(\"'\" & Setup!$AH$12 & \"'!\" & AE99),0)","v":0},{"$f":"IF(Setup!$AI$7<>\"\",INDIRECT(\"'\" & Setup!$AI$7 & \"'!\" & AD99),0) + IF(Setup!$AI$8<>\"\",INDIRECT(\"'\" & Setup!$AI$8 & \"'!\" & AD99),0) + IF(Setup!$AI$9<>\"\",INDIRECT(\"'\" & Setup!$AI$9 & \"'!\" & AD99),0) + IF(Setup!$AI$10<>\"\",INDIRECT(\"'\" & Setup!$AI$10 & \"'!\" & AD99),0) + IF(Setup!$AI$11<>\"\",INDIRECT(\"'\" & Setup!$AI$11 & \"'!\" & AD99),0) + IF(Setup!$AI$12<>\"\",INDIRECT(\"'\" & Setup!$AI$12 & \"'!\" & AD99),0)","v":0},{"$f":"IF(Setup!$AI$7<>\"\",INDIRECT(\"'\" & Setup!$AI$7 & \"'!\" & AE99),0) + IF(Setup!$AI$8<>\"\",INDIRECT(\"'\" & Setup!$AI$8 & \"'!\" & AE99),0) + IF(Setup!$AI$9<>\"\",INDIRECT(\"'\" & Setup!$AI$9 & \"'!\" & AE99),0) + IF(Setup!$AI$10<>\"\",INDIRECT(\"'\" & Setup!$AI$10 & \"'!\" & AE99),0) + IF(Setup!$AI$11<>\"\",INDIRECT(\"'\" & Setup!$AI$11 & \"'!\" & AE99),0) + IF(Setup!$AI$12<>\"\",INDIRECT(\"'\" & Setup!$AI$12 & \"'!\" & AE99),0)","v":0},{"$f":"IF(Setup!$AJ$7<>\"\",INDIRECT(\"'\" & Setup!$AJ$7 & \"'!\" & AD99),0) + IF(Setup!$AJ$8<>\"\",INDIRECT(\"'\" & Setup!$AJ$8 & \"'!\" & AD99),0) + IF(Setup!$AJ$9<>\"\",INDIRECT(\"'\" & Setup!$AJ$9 & \"'!\" & AD99),0) + IF(Setup!$AJ$10<>\"\",INDIRECT(\"'\" & Setup!$AJ$10 & \"'!\" & AD99),0) + IF(Setup!$AJ$11<>\"\",INDIRECT(\"'\" & Setup!$AJ$11 & \"'!\" & AD99),0) + IF(Setup!$AJ$12<>\"\",INDIRECT(\"'\" & Setup!$AJ$12 & \"'!\" & AD99),0)","v":0},{"$f":"IF(Setup!$AJ$7<>\"\",INDIRECT(\"'\" & Setup!$AJ$7 & \"'!\" & AE99),0) + IF(Setup!$AJ$8<>\"\",INDIRECT(\"'\" & Setup!$AJ$8 & \"'!\" & AE99),0) + IF(Setup!$AJ$9<>\"\",INDIRECT(\"'\" & Setup!$AJ$9 & \"'!\" & AE99),0) + IF(Setup!$AJ$10<>\"\",INDIRECT(\"'\" & Setup!$AJ$10 & \"'!\" & AE99),0) + IF(Setup!$AJ$11<>\"\",INDIRECT(\"'\" & Setup!$AJ$11 & \"'!\" & AE99),0) + IF(Setup!$AJ$12<>\"\",INDIRECT(\"'\" & Setup!$AJ$12 & \"'!\" & AE99),0)","v":0}]
[{"$f":"Planning!A83","v":"I075"},{"$f":"Planning!B83","v":0},{"$f":"Planning!C83","v":0},{"$f":"Planning!D83","v":0},{"$f":"Planning!E83","v":0},{"$f":"Planning!G83","v":0},null,0,0,{"$f":"IF(AND($AR100=\"2\",$AB99<>Lists!$A$17),AU100,AT100)","v":""},"",0,0,{"$f":"IF(AND($AR100=\"2\",$AB100<>Lists!$A$17),AW100,AV100)","v":""},"",0,0,{"$f":"IF(AND($AR100=\"2\",$AB100<>Lists!$A$17),AY100,AX100)","v":""},"",0,0,{"$f":"IF(AND($AR100=\"2\",$AB100<>Lists!$A$17),BA100,AZ100)","v":""},"",0,0,{"$f":"IF(AND($AR100=\"2\",$AB100<>Lists!$A$17),BC100,BB100)","v":""},"",{"$f":"Planning!H83","v":0},"00","H99","J99","I99","",null,{"$f":"IF(Setup!$AG$7<>\"\",INDIRECT(\"'\" & Setup!$AG$7 & \"'!\" & AF100),0) + IF(Setup!$AG$8<>\"\",INDIRECT(\"'\" & Setup!$AG$8 & \"'!\" & AF100),0) + IF(Setup!$AG$9<>\"\",INDIRECT(\"'\" & Setup!$AG$9 & \"'!\" & AF100),0) + IF(Setup!$AG$10<>\"\",INDIRECT(\"'\" & Setup!$AG$10 & \"'!\" & AF100),0) + IF(Setup!$AG$11<>\"\",INDIRECT(\"'\" & Setup!$AG$11 & \"'!\" & AF100),0) + IF(Setup!$AG$12<>\"\",INDIRECT(\"'\" & Setup!$AG$12 & \"'!\" & AF100),0)","v":0},{"$f":"IF(Setup!$AH$7<>\"\",INDIRECT(\"'\" & Setup!$AH$7 & \"'!\" & AF100),0) + IF(Setup!$AH$8<>\"\",INDIRECT(\"'\" & Setup!$AH$8 & \"'!\" & AF100),0) + IF(Setup!$AH$9<>\"\",INDIRECT(\"'\" & Setup!$AH$9 & \"'!\" & AF100),0) + IF(Setup!$AH$10<>\"\",INDIRECT(\"'\" & Setup!$AH$10 & \"'!\" & AF100),0) + IF(Setup!$AH$11<>\"\",INDIRECT(\"'\" & Setup!$AH$11 & \"'!\" & AF100),0) + IF(Setup!$AH$12<>\"\",INDIRECT(\"'\" & Setup!$AH$12 & \"'!\" & AF100),0)","v":0},{"$f":"IF(Setup!$AI$7<>\"\",INDIRECT(\"'\" & Setup!$AI$7 & \"'!\" & AF100),0) + IF(Setup!$AI$8<>\"\",INDIRECT(\"'\" & Setup!$AI$8 & \"'!\" & AF100),0) + IF(Setup!$AI$9<>\"\",INDIRECT(\"'\" & Setup!$AI$9 & \"'!\" & AF100),0) + IF(Setup!$AI$10<>\"\",INDIRECT(\"'\" & Setup!$AI$10 & \"'!\" & AF100),0) + IF(Setup!$AI$11<>\"\",INDIRECT(\"'\" & Setup!$AI$11 & \"'!\" & AF100),0) + IF(Setup!$AI$12<>\"\",INDIRECT(\"'\" & Setup!$AI$12 & \"'!\" & AF100),0)","v":0},{"$f":"IF(Setup!$AJ$7<>\"\",INDIRECT(\"'\" & Setup!$AJ$7 & \"'!\" & AF100),0) + IF(Setup!$AJ$8<>\"\",INDIRECT(\"'\" & Setup!$AJ$8 & \"'!\" & AF100),0) + IF(Setup!$AJ$9<>\"\",INDIRECT(\"'\" & Setup!$AJ$9 & \"'!\" & AF100),0) + IF(Setup!$AJ$10<>\"\",INDIRECT(\"'\" & Setup!$AJ$10 & \"'!\" & AF100),0) + IF(Setup!$AJ$11<>\"\",INDIRECT(\"'\" & Setup!$AJ$11 & \"'!\" & AF100),0) + IF(Setup!$AJ$12<>\"\",INDIRECT(\"'\" & Setup!$AJ$12 & \"'!\" & AF100),0)","v":0},null,"",{"$nulls":3},{"$f":"IF(C100=0,\"\",LEFT(INDEX(Lists!$H$5:$H$49,MATCH(C100,Lists!$G$5:$G$49,0),1),1))","v":""},null,"","","","","","","","","","",{"$nulls":6},{"$f":"IF(Setup!$AG$7<>\"\",INDIRECT(\"'\" & Setup!$AG$7 & \"'!\" & AD100),0) + IF(Setup!$AG$8<>\"\",INDIRECT(\"'\" & Setup!$AG$8 & \"'!\" & AD100),0) + IF(Setup!$AG$9<>\"\",INDIRECT(\"'\" & Setup!$AG$9 & \"'!\" & AD100),0) + IF(Setup!$AG$10<>\"\",INDIRECT(\"'\" & Setup!$AG$10 & \"'!\" & AD100),0) + IF(Setup!$AG$11<>\"\",INDIRECT(\"'\" & Setup!$AG$11 & \"'!\" & AD100),0) + IF(Setup!$AG$12<>\"\",INDIRECT(\"'\" & Setup!$AG$12 & \"'!\" & AD100),0)","v":0},{"$f":"IF(Setup!$AG$7<>\"\",INDIRECT(\"'\" & Setup!$AG$7 & \"'!\" & AE100),0) + IF(Setup!$AG$8<>\"\",INDIRECT(\"'\" & Setup!$AG$8 & \"'!\" & AE100),0) + IF(Setup!$AG$9<>\"\",INDIRECT(\"'\" & Setup!$AG$9 & \"'!\" & AE100),0) + IF(Setup!$AG$10<>\"\",INDIRECT(\"'\" & Setup!$AG$10 & \"'!\" & AE100),0) + IF(Setup!$AG$11<>\"\",INDIRECT(\"'\" & Setup!$AG$11 & \"'!\" & AE100),0) + IF(Setup!$AG$12<>\"\",INDIRECT(\"'\" & Setup!$AG$12 & \"'!\" & AE100),0)","v":0},{"$f":"IF(Setup!$AH$7<>\"\",INDIRECT(\"'\" & Setup!$AH$7 & \"'!\" & AD100),0) + IF(Setup!$AH$8<>\"\",INDIRECT(\"'\" & Setup!$AH$8 & \"'!\" & AD100),0) + IF(Setup!$AH$9<>\"\",INDIRECT(\"'\" & Setup!$AH$9 & \"'!\" & AD100),0) + IF(Setup!$AH$10<>\"\",INDIRECT(\"'\" & Setup!$AH$10 & \"'!\" & AD100),0) + IF(Setup!$AH$11<>\"\",INDIRECT(\"'\" & Setup!$AH$11 & \"'!\" & AD100),0) + IF(Setup!$AH$12<>\"\",INDIRECT(\"'\" & Setup!$AH$12 & \"'!\" & AD100),0)","v":0},{"$f":"IF(Setup!$AH$7<>\"\",INDIRECT(\"'\" & Setup!$AH$7 & \"'!\" & AE100),0) + IF(Setup!$AH$8<>\"\",INDIRECT(\"'\" & Setup!$AH$8 & \"'!\" & AE100),0) + IF(Setup!$AH$9<>\"\",INDIRECT(\"'\" & Setup!$AH$9 & \"'!\" & AE100),0) + IF(Setup!$AH$10<>\"\",INDIRECT(\"'\" & Setup!$AH$10 & \"'!\" & AE100),0) + IF(Setup!$AH$11<>\"\",INDIRECT(\"'\" & Setup!$AH$11 & \"'!\" & AE100),0) + IF(Setup!$AH$12<>\"\",INDIRECT(\"'\" & Setup!$AH$12 & \"'!\" & AE100),0)","v":0},{"$f":"IF(Setup!$AI$7<>\"\",INDIRECT(\"'\" & Setup!$AI$7 & \"'!\" & AD100),0) + IF(Setup!$AI$8<>\"\",INDIRECT(\"'\" & Setup!$AI$8 & \"'!\" & AD100),0) + IF(Setup!$AI$9<>\"\",INDIRECT(\"'\" & Setup!$AI$9 & \"'!\" & AD100),0) + IF(Setup!$AI$10<>\"\",INDIRECT(\"'\" & Setup!$AI$10 & \"'!\" & AD100),0) + IF(Setup!$AI$11<>\"\",INDIRECT(\"'\" & Setup!$AI$11 & \"'!\" & AD100),0) + IF(Setup!$AI$12<>\"\",INDIRECT(\"'\" & Setup!$AI$12 & \"'!\" & AD100),0)","v":0},{"$f":"IF(Setup!$AI$7<>\"\",INDIRECT(\"'\" & Setup!$AI$7 & \"'!\" & AE100),0) + IF(Setup!$AI$8<>\"\",INDIRECT(\"'\" & Setup!$AI$8 & \"'!\" & AE100),0) + IF(Setup!$AI$9<>\"\",INDIRECT(\"'\" & Setup!$AI$9 & \"'!\" & AE100),0) + IF(Setup!$AI$10<>\"\",INDIRECT(\"'\" & Setup!$AI$10 & \"'!\" & AE100),0) + IF(Setup!$AI$11<>\"\",INDIRECT(\"'\" & Setup!$AI$11 & \"'!\" & AE100),0) + IF(Setup!$AI$12<>\"\",INDIRECT(\"'\" & Setup!$AI$12 & \"'!\" & AE100),0)","v":0},{"$f":"IF(Setup!$AJ$7<>\"\",INDIRECT(\"'\" & Setup!$AJ$7 & \"'!\" & AD100),0) + IF(Setup!$AJ$8<>\"\",INDIRECT(\"'\" & Setup!$AJ$8 & \"'!\" & AD100),0) + IF(Setup!$AJ$9<>\"\",INDIRECT(\"'\" & Setup!$AJ$9 & \"'!\" & AD100),0) + IF(Setup!$AJ$10<>\"\",INDIRECT(\"'\" & Setup!$AJ$10 & \"'!\" & AD100),0) + IF(Setup!$AJ$11<>\"\",INDIRECT(\"'\" & Setup!$AJ$11 & \"'!\" & AD100),0) + IF(Setup!$AJ$12<>\"\",INDIRECT(\"'\" & Setup!$AJ$12 & \"'!\" & AD100),0)","v":0},{"$f":"IF(Setup!$AJ$7<>\"\",INDIRECT(\"'\" & Setup!$AJ$7 & \"'!\" & AE100),0) + IF(Setup!$AJ$8<>\"\",INDIRECT(\"'\" & Setup!$AJ$8 & \"'!\" & AE100),0) + IF(Setup!$AJ$9<>\"\",INDIRECT(\"'\" & Setup!$AJ$9 & \"'!\" & AE100),0) + IF(Setup!$AJ$10<>\"\",INDIRECT(\"'\" & Setup!$AJ$10 & \"'!\" & AE100),0) + IF(Setup!$AJ$11<>\"\",INDIRECT(\"'\" & Setup!$AJ$11 & \"'!\" & AE100),0) + IF(Setup!$AJ$12<>\"\",INDIRECT(\"'\" & Setup!$AJ$12 & \"'!\" & AE100),0)","v":0}]
[{"$f":"Planning!A84","v":"I076"},{"$f":"Planning!B84","v":0},{"$f":"Planning!C84","v":0},{"$f":"Planning!D84","v":0},{"$f":"Planning!E84","v":0},{"$f":"Planning!G84","v":0},null,0,0,{"$f":"IF(AND($AR101=\"2\",$AB100<>Lists!$A$17),AU101,AT101)","v":""},"",0,0,{"$f":"IF(AND($AR101=\"2\",$AB101<>Lists!$A$17),AW101,AV101)","v":""},"",0,0,{"$f":"IF(AND($AR101=\"2\",$AB101<>Lists!$A$17),AY101,AX101)","v":""},"",0,0,{"$f":"IF(AND($AR101=\"2\",$AB101<>Lists!$A$17),BA101,AZ101)","v":""},"",0,0,{"$f":"IF(AND($AR101=\"2\",$AB101<>Lists!$A$17),BC101,BB101)","v":""},"",{"$f":"Planning!H84","v":0},"00","H100","J100","I100","",null,{"$f":"IF(Setup!$AG$7<>\"\",INDIRECT(\"'\" & Setup!$AG$7 & \"'!\" & AF101),0) + IF(Setup!$AG$8<>\"\",INDIRECT(\"'\" & Setup!$AG$8 & \"'!\" & AF101),0) + IF(Setup!$AG$9<>\"\",INDIRECT(\"'\" & Setup!$AG$9 & \"'!\" & AF101),0) + IF(Setup!$AG$10<>\"\",INDIRECT(\"'\" & Setup!$AG$10 & \"'!\" & AF101),0) + IF(Setup!$AG$11<>\"\",INDIRECT(\"'\" & Setup!$AG$11 & \"'!\" & AF101),0) + IF(Setup!$AG$12<>\"\",INDIRECT(\"'\" & Setup!$AG$12 & \"'!\" & AF101),0)","v":0},{"$f":"IF(Setup!$AH$7<>\"\",INDIRECT(\"'\" & Setup!$AH$7 & \"'!\" & AF101),0) + IF(Setup!$AH$8<>\"\",INDIRECT(\"'\" & Setup!$AH$8 & \"'!\" & AF101),0) + IF(Setup!$AH$9<>\"\",INDIRECT(\"'\" & Setup!$AH$9 & \"'!\" & AF101),0) + IF(Setup!$AH$10<>\"\",INDIRECT(\"'\" & Setup!$AH$10 & \"'!\" & AF101),0) + IF(Setup!$AH$11<>\"\",INDIRECT(\"'\" & Setup!$AH$11 & \"'!\" & AF101),0) + IF(Setup!$AH$12<>\"\",INDIRECT(\"'\" & Setup!$AH$12 & \"'!\" & AF101),0)","v":0},{"$f":"IF(Setup!$AI$7<>\"\",INDIRECT(\"'\" & Setup!$AI$7 & \"'!\" & AF101),0) + IF(Setup!$AI$8<>\"\",INDIRECT(\"'\" & Setup!$AI$8 & \"'!\" & AF101),0) + IF(Setup!$AI$9<>\"\",INDIRECT(\"'\" & Setup!$AI$9 & \"'!\" & AF101),0) + IF(Setup!$AI$10<>\"\",INDIRECT(\"'\" & Setup!$AI$10 & \"'!\" & AF101),0) + IF(Setup!$AI$11<>\"\",INDIRECT(\"'\" & Setup!$AI$11 & \"'!\" & AF101),0) + IF(Setup!$AI$12<>\"\",INDIRECT(\"'\" & Setup!$AI$12 & \"'!\" & AF101),0)","v":0},{"$f":"IF(Setup!$AJ$7<>\"\",INDIRECT(\"'\" & Setup!$AJ$7 & \"'!\" & AF101),0) + IF(Setup!$AJ$8<>\"\",INDIRECT(\"'\" & Setup!$AJ$8 & \"'!\" & AF101),0) + IF(Setup!$AJ$9<>\"\",INDIRECT(\"'\" & Setup!$AJ$9 & \"'!\" & AF101),0) + IF(Setup!$AJ$10<>\"\",INDIRECT(\"'\" & Setup!$AJ$10 & \"'!\" & AF101),0) + IF(Setup!$AJ$11<>\"\",INDIRECT(\"'\" & Setup!$AJ$11 & \"'!\" & AF101),0) + IF(Setup!$AJ$12<>\"\",INDIRECT(\"'\" & Setup!$AJ$12 & \"'!\" & AF101),0)","v":0},null,"",{"$nulls":3},{"$f":"IF(C101=0,\"\",LEFT(INDEX(Lists!$H$5:$H$49,MATCH(C101,Lists!$G$5:$G$49,0),1),1))","v":""},null,"","","","","","","","","","",{"$nulls":6},{"$f":"IF(Setup!$AG$7<>\"\",INDIRECT(\"'\" & Setup!$AG$7 & \"'!\" & AD101),0) + IF(Setup!$AG$8<>\"\",INDIRECT(\"'\" & Setup!$AG$8 & \"'!\" & AD101),0) + IF(Setup!$AG$9<>\"\",INDIRECT(\"'\" & Setup!$AG$9 & \"'!\" & AD101),0) + IF(Setup!$AG$10<>\"\",INDIRECT(\"'\" & Setup!$AG$10 & \"'!\" & AD101),0) + IF(Setup!$AG$11<>\"\",INDIRECT(\"'\" & Setup!$AG$11 & \"'!\" & AD101),0) + IF(Setup!$AG$12<>\"\",INDIRECT(\"'\" & Setup!$AG$12 & \"'!\" & AD101),0)","v":0},{"$f":"IF(Setup!$AG$7<>\"\",INDIRECT(\"'\" & Setup!$AG$7 & \"'!\" & AE101),0) + IF(Setup!$AG$8<>\"\",INDIRECT(\"'\" & Setup!$AG$8 & \"'!\" & AE101),0) + IF(Setup!$AG$9<>\"\",INDIRECT(\"'\" & Setup!$AG$9 & \"'!\" & AE101),0) + IF(Setup!$AG$10<>\"\",INDIRECT(\"'\" & Setup!$AG$10 & \"'!\" & AE101),0) + IF(Setup!$AG$11<>\"\",INDIRECT(\"'\" & Setup!$AG$11 & \"'!\" & AE101),0) + IF(Setup!$AG$12<>\"\",INDIRECT(\"'\" & Setup!$AG$12 & \"'!\" & AE101),0)","v":0},{"$f":"IF(Setup!$AH$7<>\"\",INDIRECT(\"'\" & Setup!$AH$7 & \"'!\" & AD101),0) + IF(Setup!$AH$8<>\"\",INDIRECT(\"'\" & Setup!$AH$8 & \"'!\" & AD101),0) + IF(Setup!$AH$9<>\"\",INDIRECT(\"'\" & Setup!$AH$9 & \"'!\" & AD101),0) + IF(Setup!$AH$10<>\"\",INDIRECT(\"'\" & Setup!$AH$10 & \"'!\" & AD101),0) + IF(Setup!$AH$11<>\"\",INDIRECT(\"'\" & Setup!$AH$11 & \"'!\" & AD101),0) + IF(Setup!$AH$12<>\"\",INDIRECT(\"'\" & Setup!$AH$12 & \"'!\" & AD101),0)","v":0},{"$f":"IF(Setup!$AH$7<>\"\",INDIRECT(\"'\" & Setup!$AH$7 & \"'!\" & AE101),0) + IF(Setup!$AH$8<>\"\",INDIRECT(\"'\" & Setup!$AH$8 & \"'!\" & AE101),0) + IF(Setup!$AH$9<>\"\",INDIRECT(\"'\" & Setup!$AH$9 & \"'!\" & AE101),0) + IF(Setup!$AH$10<>\"\",INDIRECT(\"'\" & Setup!$AH$10 & \"'!\" & AE101),0) + IF(Setup!$AH$11<>\"\",INDIRECT(\"'\" & Setup!$AH$11 & \"'!\" & AE101),0) + IF(Setup!$AH$12<>\"\",INDIRECT(\"'\" & Setup!$AH$12 & \"'!\" & AE101),0)","v":0},{"$f":"IF(Setup!$AI$7<>\"\",INDIRECT(\"'\" & Setup!$AI$7 & \"'!\" & AD101),0) + IF(Setup!$AI$8<>\"\",INDIRECT(\"'\" & Setup!$AI$8 & \"'!\" & AD101),0) + IF(Setup!$AI$9<>\"\",INDIRECT(\"'\" & Setup!$AI$9 & \"'!\" & AD101),0) + IF(Setup!$AI$10<>\"\",INDIRECT(\"'\" & Setup!$AI$10 & \"'!\" & AD101),0) + IF(Setup!$AI$11<>\"\",INDIRECT(\"'\" & Setup!$AI$11 & \"'!\" & AD101),0) + IF(Setup!$AI$12<>\"\",INDIRECT(\"'\" & Setup!$AI$12 & \"'!\" & AD101),0)","v":0},{"$f":"IF(Setup!$AI$7<>\"\",INDIRECT(\"'\" & Setup!$AI$7 & \"'!\" & AE101),0) + IF(Setup!$AI$8<>\"\",INDIRECT(\"'\" & Setup!$AI$8 & \"'!\" & AE101),0) + IF(Setup!$AI$9<>\"\",INDIRECT(\"'\" & Setup!$AI$9 & \"'!\" & AE101),0) + IF(Setup!$AI$10<>\"\",INDIRECT(\"'\" & Setup!$AI$10 & \"'!\" & AE101),0) + IF(Setup!$AI$11<>\"\",INDIRECT(\"'\" & Setup!$AI$11 & \"'!\" & AE101),0) + IF(Setup!$AI$12<>\"\",INDIRECT(\"'\" & Setup!$AI$12 & \"'!\" & AE101),0)","v":0},{"$f":"IF(Setup!$AJ$7<>\"\",INDIRECT(\"'\" & Setup!$AJ$7 & \"'!\" & AD101),0) + IF(Setup!$AJ$8<>\"\",INDIRECT(\"'\" & Setup!$AJ$8 & \"'!\" & AD101),0) + IF(Setup!$AJ$9<>\"\",INDIRECT(\"'\" & Setup!$AJ$9 & \"'!\" & AD101),0) + IF(Setup!$AJ$10<>\"\",INDIRECT(\"'\" & Setup!$AJ$10 & \"'!\" & AD101),0) + IF(Setup!$AJ$11<>\"\",INDIRECT(\"'\" & Setup!$AJ$11 & \"'!\" & AD101),0) + IF(Setup!$AJ$12<>\"\",INDIRECT(\"'\" & Setup!$AJ$12 & \"'!\" & AD101),0)","v":0},{"$f":"IF(Setup!$AJ$7<>\"\",INDIRECT(\"'\" & Setup!$AJ$7 & \"'!\" & AE101),0) + IF(Setup!$AJ$8<>\"\",INDIRECT(\"'\" & Setup!$AJ$8 & \"'!\" & AE101),0) + IF(Setup!$AJ$9<>\"\",INDIRECT(\"'\" & Setup!$AJ$9 & \"'!\" & AE101),0) + IF(Setup!$AJ$10<>\"\",INDIRECT(\"'\" & Setup!$AJ$10 & \"'!\" & AE101),0) + IF(Setup!$AJ$11<>\"\",INDIRECT(\"'\" & Setup!$AJ$11 & \"'!\" & AE101),0) + IF(Setup!$AJ$12<>\"\",INDIRECT(\"'\" & Setup!$AJ$12 & \"'!\" & AE101),0)","v":0}]
[{"$f":"Planning!A85","v":"I077"},{"$f":"Planning!B85","v":0},{"$f":"Planning!C85","v":0},{"$f":"Planning!D85","v":0},{"$f":"Planning!E85","v":0},{"$f":"Planning!G85","v":0},null,0,0,{"$f":"IF(AND($AR102=\"2\",$AB101<>Lists!$A$17),AU102,AT102)","v":""},"",0,0,{"$f":"IF(AND($AR102=\"2\",$AB102<>Lists!$A$17),AW102,AV102)","v":""},"",0,0,{"$f":"IF(AND($AR102=\"2\",$AB102<>Lists!$A$17),AY102,AX102)","v":""},"",0,0,{"$f":"IF(AND($AR102=\"2\",$AB102<>Lists!$A$17),BA102,AZ102)","v":""},"",0,0,{"$f":"IF(AND($AR102=\"2\",$AB102<>Lists!$A$17),BC102,BB102)","v":""},"",{"$f":"Planning!H85","v":0},"00","H101","J101","I101","",null,{"$f":"IF(Setup!$AG$7<>\"\",INDIRECT(\"'\" & Setup!$AG$7 & \"'!\" & AF102),0) + IF(Setup!$AG$8<>\"\",INDIRECT(\"'\" & Setup!$AG$8 & \"'!\" & AF102),0) + IF(Setup!$AG$9<>\"\",INDIRECT(\"'\" & Setup!$AG$9 & \"'!\" & AF102),0) + IF(Setup!$AG$10<>\"\",INDIRECT(\"'\" & Setup!$AG$10 & \"'!\" & AF102),0) + IF(Setup!$AG$11<>\"\",INDIRECT(\"'\" & Setup!$AG$11 & \"'!\" & AF102),0) + IF(Setup!$AG$12<>\"\",INDIRECT(\"'\" & Setup!$AG$12 & \"'!\" & AF102),0)","v":0},{"$f":"IF(Setup!$AH$7<>\"\",INDIRECT(\"'\" & Setup!$AH$7 & \"'!\" & AF102),0) + IF(Setup!$AH$8<>\"\",INDIRECT(\"'\" & Setup!$AH$8 & \"'!\" & AF102),0) + IF(Setup!$AH$9<>\"\",INDIRECT(\"'\" & Setup!$AH$9 & \"'!\" & AF102),0) + IF(Setup!$AH$10<>\"\",INDIRECT(\"'\" & Setup!$AH$10 & \"'!\" & AF102),0) + IF(Setup!$AH$11<>\"\",INDIRECT(\"'\" & Setup!$AH$11 & \"'!\" & AF102),0) + IF(Setup!$AH$12<>\"\",INDIRECT(\"'\" & Setup!$AH$12 & \"'!\" & AF102),0)","v":0},{"$f":"IF(Setup!$AI$7<>\"\",INDIRECT(\"'\" & Setup!$AI$7 & \"'!\" & AF102),0) + IF(Setup!$AI$8<>\"\",INDIRECT(\"'\" & Setup!$AI$8 & \"'!\" & AF102),0) + IF(Setup!$AI$9<>\"\",INDIRECT(\"'\" & Setup!$AI$9 & \"'!\" & AF102),0) + IF(Setup!$AI$10<>\"\",INDIRECT(\"'\" & Setup!$AI$10 & \"'!\" & AF102),0) + IF(Setup!$AI$11<>\"\",INDIRECT(\"'\" & Setup!$AI$11 & \"'!\" & AF102),0) + IF(Setup!$AI$12<>\"\",INDIRECT(\"'\" & Setup!$AI$12 & \"'!\" & AF102),0)","v":0},{"$f":"IF(Setup!$AJ$7<>\"\",INDIRECT(\"'\" & Setup!$AJ$7 & \"'!\" & AF102),0) + IF(Setup!$AJ$8<>\"\",INDIRECT(\"'\" & Setup!$AJ$8 & \"'!\" & AF102),0) + IF(Setup!$AJ$9<>\"\",INDIRECT(\"'\" & Setup!$AJ$9 & \"'!\" & AF102),0) + IF(Setup!$AJ$10<>\"\",INDIRECT(\"'\" & Setup!$AJ$10 & \"'!\" & AF102),0) + IF(Setup!$AJ$11<>\"\",INDIRECT(\"'\" & Setup!$AJ$11 & \"'!\" & AF102),0) + IF(Setup!$AJ$12<>\"\",INDIRECT(\"'\" & Setup!$AJ$12 & \"'!\" & AF102),0)","v":0},null,"",{"$nulls":3},{"$f":"IF(C102=0,\"\",LEFT(INDEX(Lists!$H$5:$H$49,MATCH(C102,Lists!$G$5:$G$49,0),1),1))","v":""},null,"","","","","","","","","","",{"$nulls":6},{"$f":"IF(Setup!$AG$7<>\"\",INDIRECT(\"'\" & Setup!$AG$7 & \"'!\" & AD102),0) + IF(Setup!$AG$8<>\"\",INDIRECT(\"'\" & Setup!$AG$8 & \"'!\" & AD102),0) + IF(Setup!$AG$9<>\"\",INDIRECT(\"'\" & Setup!$AG$9 & \"'!\" & AD102),0) + IF(Setup!$AG$10<>\"\",INDIRECT(\"'\" & Setup!$AG$10 & \"'!\" & AD102),0) + IF(Setup!$AG$11<>\"\",INDIRECT(\"'\" & Setup!$AG$11 & \"'!\" & AD102),0) + IF(Setup!$AG$12<>\"\",INDIRECT(\"'\" & Setup!$AG$12 & \"'!\" & AD102),0)","v":0},{"$f":"IF(Setup!$AG$7<>\"\",INDIRECT(\"'\" & Setup!$AG$7 & \"'!\" & AE102),0) + IF(Setup!$AG$8<>\"\",INDIRECT(\"'\" & Setup!$AG$8 & \"'!\" & AE102),0) + IF(Setup!$AG$9<>\"\",INDIRECT(\"'\" & Setup!$AG$9 & \"'!\" & AE102),0) + IF(Setup!$AG$10<>\"\",INDIRECT(\"'\" & Setup!$AG$10 & \"'!\" & AE102),0) + IF(Setup!$AG$11<>\"\",INDIRECT(\"'\" & Setup!$AG$11 & \"'!\" & AE102),0) + IF(Setup!$AG$12<>\"\",INDIRECT(\"'\" & Setup!$AG$12 & \"'!\" & AE102),0)","v":0},{"$f":"IF(Setup!$AH$7<>\"\",INDIRECT(\"'\" & Setup!$AH$7 & \"'!\" & AD102),0) + IF(Setup!$AH$8<>\"\",INDIRECT(\"'\" & Setup!$AH$8 & \"'!\" & AD102),0) + IF(Setup!$AH$9<>\"\",INDIRECT(\"'\" & Setup!$AH$9 & \"'!\" & AD102),0) + IF(Setup!$AH$10<>\"\",INDIRECT(\"'\" & Setup!$AH$10 & \"'!\" & AD102),0) + IF(Setup!$AH$11<>\"\",INDIRECT(\"'\" & Setup!$AH$11 & \"'!\" & AD102),0) + IF(Setup!$AH$12<>\"\",INDIRECT(\"'\" & Setup!$AH$12 & \"'!\" & AD102),0)","v":0},{"$f":"IF(Setup!$AH$7<>\"\",INDIRECT(\"'\" & Setup!$AH$7 & \"'!\" & AE102),0) + IF(Setup!$AH$8<>\"\",INDIRECT(\"'\" & Setup!$AH$8 & \"'!\" & AE102),0) + IF(Setup!$AH$9<>\"\",INDIRECT(\"'\" & Setup!$AH$9 & \"'!\" & AE102),0) + IF(Setup!$AH$10<>\"\",INDIRECT(\"'\" & Setup!$AH$10 & \"'!\" & AE102),0) + IF(Setup!$AH$11<>\"\",INDIRECT(\"'\" & Setup!$AH$11 & \"'!\" & AE102),0) + IF(Setup!$AH$12<>\"\",INDIRECT(\"'\" & Setup!$AH$12 & \"'!\" & AE102),0)","v":0},{"$f":"IF(Setup!$AI$7<>\"\",INDIRECT(\"'\" & Setup!$AI$7 & \"'!\" & AD102),0) + IF(Setup!$AI$8<>\"\",INDIRECT(\"'\" & Setup!$AI$8 & \"'!\" & AD102),0) + IF(Setup!$AI$9<>\"\",INDIRECT(\"'\" & Setup!$AI$9 & \"'!\" & AD102),0) + IF(Setup!$AI$10<>\"\",INDIRECT(\"'\" & Setup!$AI$10 & \"'!\" & AD102),0) + IF(Setup!$AI$11<>\"\",INDIRECT(\"'\" & Setup!$AI$11 & \"'!\" & AD102),0) + IF(Setup!$AI$12<>\"\",INDIRECT(\"'\" & Setup!$AI$12 & \"'!\" & AD102),0)","v":0},{"$f":"IF(Setup!$AI$7<>\"\",INDIRECT(\"'\" & Setup!$AI$7 & \"'!\" & AE102),0) + IF(Setup!$AI$8<>\"\",INDIRECT(\"'\" & Setup!$AI$8 & \"'!\" & AE102),0) + IF(Setup!$AI$9<>\"\",INDIRECT(\"'\" & Setup!$AI$9 & \"'!\" & AE102),0) + IF(Setup!$AI$10<>\"\",INDIRECT(\"'\" & Setup!$AI$10 & \"'!\" & AE102),0) + IF(Setup!$AI$11<>\"\",INDIRECT(\"'\" & Setup!$AI$11 & \"'!\" & AE102),0) + IF(Setup!$AI$12<>\"\",INDIRECT(\"'\" & Setup!$AI$12 & \"'!\" & AE102),0)","v":0},{"$f":"IF(Setup!$AJ$7<>\"\",INDIRECT(\"'\" & Setup!$AJ$7 & \"'!\" & AD102),0) + IF(Setup!$AJ$8<>\"\",INDIRECT(\"'\" & Setup!$AJ$8 & \"'!\" & AD102),0) + IF(Setup!$AJ$9<>\"\",INDIRECT(\"'\" & Setup!$AJ$9 & \"'!\" & AD102),0) + IF(Setup!$AJ$10<>\"\",INDIRECT(\"'\" & Setup!$AJ$10 & \"'!\" & AD102),0) + IF(Setup!$AJ$11<>\"\",INDIRECT(\"'\" & Setup!$AJ$11 & \"'!\" & AD102),0) + IF(Setup!$AJ$12<>\"\",INDIRECT(\"'\" & Setup!$AJ$12 & \"'!\" & AD102),0)","v":0},{"$f":"IF(Setup!$AJ$7<>\"\",INDIRECT(\"'\" & Setup!$AJ$7 & \"'!\" & AE102),0) + IF(Setup!$AJ$8<>\"\",INDIRECT(\"'\" & Setup!$AJ$8 & \"'!\" & AE102),0) + IF(Setup!$AJ$9<>\"\",INDIRECT(\"'\" & Setup!$AJ$9 & \"'!\" & AE102),0) + IF(Setup!$AJ$10<>\"\",INDIRECT(\"'\" & Setup!$AJ$10 & \"'!\" & AE102),0) + IF(Setup!$AJ$11<>\"\",INDIRECT(\"'\" & Setup!$AJ$11 & \"'!\" & AE102),0) + IF(Setup!$AJ$12<>\"\",INDIRECT(\"'\" & Setup!$AJ$12 & \"'!\" & AE102),0)","v":0}]
[{"$f":"Planning!A86","v":"I078"},{"$f":"Planning!B86","v":0},{"$f":"Planning!C86","v":0},{"$f":"Planning!D86","v":0},{"$f":"Planning!E86","v":0},{"$f":"Planning!G86","v":0},null,0,0,{"$f":"IF(AND($AR103=\"2\",$AB102<>Lists!$A$17),AU103,AT103)","v":""},"",0,0,{"$f":"IF(AND($AR103=\"2\",$AB103<>Lists!$A$17),AW103,AV103)","v":""},"",0,0,{"$f":"IF(AND($AR103=\"2\",$AB103<>Lists!$A$17),AY103,AX103)","v":""},"",0,0,{"$f":"IF(AND($AR103=\"2\",$AB103<>Lists!$A$17),BA103,AZ103)","v":""},"",0,0,{"$f":"IF(AND($AR103=\"2\",$AB103<>Lists!$A$17),BC103,BB103)","v":""},"",{"$f":"Planning!H86","v":0},"00","H102","J102","I102","",null,{"$f":"IF(Setup!$AG$7<>\"\",INDIRECT(\"'\" & Setup!$AG$7 & \"'!\" & AF103),0) + IF(Setup!$AG$8<>\"\",INDIRECT(\"'\" & Setup!$AG$8 & \"'!\" & AF103),0) + IF(Setup!$AG$9<>\"\",INDIRECT(\"'\" & Setup!$AG$9 & \"'!\" & AF103),0) + IF(Setup!$AG$10<>\"\",INDIRECT(\"'\" & Setup!$AG$10 & \"'!\" & AF103),0) + IF(Setup!$AG$11<>\"\",INDIRECT(\"'\" & Setup!$AG$11 & \"'!\" & AF103),0) + IF(Setup!$AG$12<>\"\",INDIRECT(\"'\" & Setup!$AG$12 & \"'!\" & AF103),0)","v":0},{"$f":"IF(Setup!$AH$7<>\"\",INDIRECT(\"'\" & Setup!$AH$7 & \"'!\" & AF103),0) + IF(Setup!$AH$8<>\"\",INDIRECT(\"'\" & Setup!$AH$8 & \"'!\" & AF103),0) + IF(Setup!$AH$9<>\"\",INDIRECT(\"'\" & Setup!$AH$9 & \"'!\" & AF103),0) + IF(Setup!$AH$10<>\"\",INDIRECT(\"'\" & Setup!$AH$10 & \"'!\" & AF103),0) + IF(Setup!$AH$11<>\"\",INDIRECT(\"'\" & Setup!$AH$11 & \"'!\" & AF103),0) + IF(Setup!$AH$12<>\"\",INDIRECT(\"'\" & Setup!$AH$12 & \"'!\" & AF103),0)","v":0},{"$f":"IF(Setup!$AI$7<>\"\",INDIRECT(\"'\" & Setup!$AI$7 & \"'!\" & AF103),0) + IF(Setup!$AI$8<>\"\",INDIRECT(\"'\" & Setup!$AI$8 & \"'!\" & AF103),0) + IF(Setup!$AI$9<>\"\",INDIRECT(\"'\" & Setup!$AI$9 & \"'!\" & AF103),0) + IF(Setup!$AI$10<>\"\",INDIRECT(\"'\" & Setup!$AI$10 & \"'!\" & AF103),0) + IF(Setup!$AI$11<>\"\",INDIRECT(\"'\" & Setup!$AI$11 & \"'!\" & AF103),0) + IF(Setup!$AI$12<>\"\",INDIRECT(\"'\" & Setup!$AI$12 & \"'!\" & AF103),0)","v":0},{"$f":"IF(Setup!$AJ$7<>\"\",INDIRECT(\"'\" & Setup!$AJ$7 & \"'!\" & AF103),0) + IF(Setup!$AJ$8<>\"\",INDIRECT(\"'\" & Setup!$AJ$8 & \"'!\" & AF103),0) + IF(Setup!$AJ$9<>\"\",INDIRECT(\"'\" & Setup!$AJ$9 & \"'!\" & AF103),0) + IF(Setup!$AJ$10<>\"\",INDIRECT(\"'\" & Setup!$AJ$10 & \"'!\" & AF103),0) + IF(Setup!$AJ$11<>\"\",INDIRECT(\"'\" & Setup!$AJ$11 & \"'!\" & AF103),0) + IF(Setup!$AJ$12<>\"\",INDIRECT(\"'\" & Setup!$AJ$12 & \"'!\" & AF103),0)","v":0},null,"",{"$nulls":3},{"$f":"IF(C103=0,\"\",LEFT(INDEX(Lists!$H$5:$H$49,MATCH(C103,Lists!$G$5:$G$49,0),1),1))","v":""},null,"","","","","","","","","","",{"$nulls":6},{"$f":"IF(Setup!$AG$7<>\"\",INDIRECT(\"'\" & Setup!$AG$7 & \"'!\" & AD103),0) + IF(Setup!$AG$8<>\"\",INDIRECT(\"'\" & Setup!$AG$8 & \"'!\" & AD103),0) + IF(Setup!$AG$9<>\"\",INDIRECT(\"'\" & Setup!$AG$9 & \"'!\" & AD103),0) + IF(Setup!$AG$10<>\"\",INDIRECT(\"'\" & Setup!$AG$10 & \"'!\" & AD103),0) + IF(Setup!$AG$11<>\"\",INDIRECT(\"'\" & Setup!$AG$11 & \"'!\" & AD103),0) + IF(Setup!$AG$12<>\"\",INDIRECT(\"'\" & Setup!$AG$12 & \"'!\" & AD103),0)","v":0},{"$f":"IF(Setup!$AG$7<>\"\",INDIRECT(\"'\" & Setup!$AG$7 & \"'!\" & AE103),0) + IF(Setup!$AG$8<>\"\",INDIRECT(\"'\" & Setup!$AG$8 & \"'!\" & AE103),0) + IF(Setup!$AG$9<>\"\",INDIRECT(\"'\" & Setup!$AG$9 & \"'!\" & AE103),0) + IF(Setup!$AG$10<>\"\",INDIRECT(\"'\" & Setup!$AG$10 & \"'!\" & AE103),0) + IF(Setup!$AG$11<>\"\",INDIRECT(\"'\" & Setup!$AG$11 & \"'!\" & AE103),0) + IF(Setup!$AG$12<>\"\",INDIRECT(\"'\" & Setup!$AG$12 & \"'!\" & AE103),0)","v":0},{"$f":"IF(Setup!$AH$7<>\"\",INDIRECT(\"'\" & Setup!$AH$7 & \"'!\" & AD103),0) + IF(Setup!$AH$8<>\"\",INDIRECT(\"'\" & Setup!$AH$8 & \"'!\" & AD103),0) + IF(Setup!$AH$9<>\"\",INDIRECT(\"'\" & Setup!$AH$9 & \"'!\" & AD103),0) + IF(Setup!$AH$10<>\"\",INDIRECT(\"'\" & Setup!$AH$10 & \"'!\" & AD103),0) + IF(Setup!$AH$11<>\"\",INDIRECT(\"'\" & Setup!$AH$11 & \"'!\" & AD103),0) + IF(Setup!$AH$12<>\"\",INDIRECT(\"'\" & Setup!$AH$12 & \"'!\" & AD103),0)","v":0},{"$f":"IF(Setup!$AH$7<>\"\",INDIRECT(\"'\" & Setup!$AH$7 & \"'!\" & AE103),0) + IF(Setup!$AH$8<>\"\",INDIRECT(\"'\" & Setup!$AH$8 & \"'!\" & AE103),0) + IF(Setup!$AH$9<>\"\",INDIRECT(\"'\" & Setup!$AH$9 & \"'!\" & AE103),0) + IF(Setup!$AH$10<>\"\",INDIRECT(\"'\" & Setup!$AH$10 & \"'!\" & AE103),0) + IF(Setup!$AH$11<>\"\",INDIRECT(\"'\" & Setup!$AH$11 & \"'!\" & AE103),0) + IF(Setup!$AH$12<>\"\",INDIRECT(\"'\" & Setup!$AH$12 & \"'!\" & AE103),0)","v":0},{"$f":"IF(Setup!$AI$7<>\"\",INDIRECT(\"'\" & Setup!$AI$7 & \"'!\" & AD103),0) + IF(Setup!$AI$8<>\"\",INDIRECT(\"'\" & Setup!$AI$8 & \"'!\" & AD103),0) + IF(Setup!$AI$9<>\"\",INDIRECT(\"'\" & Setup!$AI$9 & \"'!\" & AD103),0) + IF(Setup!$AI$10<>\"\",INDIRECT(\"'\" & Setup!$AI$10 & \"'!\" & AD103),0) + IF(Setup!$AI$11<>\"\",INDIRECT(\"'\" & Setup!$AI$11 & \"'!\" & AD103),0) + IF(Setup!$AI$12<>\"\",INDIRECT(\"'\" & Setup!$AI$12 & \"'!\" & AD103),0)","v":0},{"$f":"IF(Setup!$AI$7<>\"\",INDIRECT(\"'\" & Setup!$AI$7 & \"'!\" & AE103),0) + IF(Setup!$AI$8<>\"\",INDIRECT(\"'\" & Setup!$AI$8 & \"'!\" & AE103),0) + IF(Setup!$AI$9<>\"\",INDIRECT(\"'\" & Setup!$AI$9 & \"'!\" & AE103),0) + IF(Setup!$AI$10<>\"\",INDIRECT(\"'\" & Setup!$AI$10 & \"'!\" & AE103),0) + IF(Setup!$AI$11<>\"\",INDIRECT(\"'\" & Setup!$AI$11 & \"'!\" & AE103),0) + IF(Setup!$AI$12<>\"\",INDIRECT(\"'\" & Setup!$AI$12 & \"'!\" & AE103),0)","v":0},{"$f":"IF(Setup!$AJ$7<>\"\",INDIRECT(\"'\" & Setup!$AJ$7 & \"'!\" & AD103),0) + IF(Setup!$AJ$8<>\"\",INDIRECT(\"'\" & Setup!$AJ$8 & \"'!\" & AD103),0) + IF(Setup!$AJ$9<>\"\",INDIRECT(\"'\" & Setup!$AJ$9 & \"'!\" & AD103),0) + IF(Setup!$AJ$10<>\"\",INDIRECT(\"'\" & Setup!$AJ$10 & \"'!\" & AD103),0) + IF(Setup!$AJ$11<>\"\",INDIRECT(\"'\" & Setup!$AJ$11 & \"'!\" & AD103),0) + IF(Setup!$AJ$12<>\"\",INDIRECT(\"'\" & Setup!$AJ$12 & \"'!\" & AD103),0)","v":0},{"$f":"IF(Setup!$AJ$7<>\"\",INDIRECT(\"'\" & Setup!$AJ$7 & \"'!\" & AE103),0) + IF(Setup!$AJ$8<>\"\",INDIRECT(\"'\" & Setup!$AJ$8 & \"'!\" & AE103),0) + IF(Setup!$AJ$9<>\"\",INDIRECT(\"'\" & Setup!$AJ$9 & \"'!\" & AE103),0) + IF(Setup!$AJ$10<>\"\",INDIRECT(\"'\" & Setup!$AJ$10 & \"'!\" & AE103),0) + IF(Setup!$AJ$11<>\"\",INDIRECT(\"'\" & Setup!$AJ$11 & \"'!\" & AE103),0) + IF(Setup!$AJ$12<>\"\",INDIRECT(\"'\" & Setup!$AJ$12 & \"'!\" & AE103),0)","v":0}]
[{"$f":"Planning!A87","v":"I079"},{"$f":"Planning!B87","v":0},{"$f":"Planning!C87","v":0},{"$f":"Planning!D87","v":0},{"$f":"Planning!E87","v":0},{"$f":"Planning!G87","v":0},null,0,0,{"$f":"IF(AND($AR104=\"2\",$AB103<>Lists!$A$17),AU104,AT104)","v":""},"",0,0,{"$f":"IF(AND($AR104=\"2\",$AB104<>Lists!$A$17),AW104,AV104)","v":""},"",0,0,{"$f":"IF(AND($AR104=\"2\",$AB104<>Lists!$A$17),AY104,AX104)","v":""},"",0,0,{"$f":"IF(AND($AR104=\"2\",$AB104<>Lists!$A$17),BA104,AZ104)","v":""},"",0,0,{"$f":"IF(AND($AR104=\"2\",$AB104<>Lists!$A$17),BC104,BB104)","v":""},"",{"$f":"Planning!H87","v":0},"00","H103","J103","I103","",null,{"$f":"IF(Setup!$AG$7<>\"\",INDIRECT(\"'\" & Setup!$AG$7 & \"'!\" & AF104),0) + IF(Setup!$AG$8<>\"\",INDIRECT(\"'\" & Setup!$AG$8 & \"'!\" & AF104),0) + IF(Setup!$AG$9<>\"\",INDIRECT(\"'\" & Setup!$AG$9 & \"'!\" & AF104),0) + IF(Setup!$AG$10<>\"\",INDIRECT(\"'\" & Setup!$AG$10 & \"'!\" & AF104),0) + IF(Setup!$AG$11<>\"\",INDIRECT(\"'\" & Setup!$AG$11 & \"'!\" & AF104),0) + IF(Setup!$AG$12<>\"\",INDIRECT(\"'\" & Setup!$AG$12 & \"'!\" & AF104),0)","v":0},{"$f":"IF(Setup!$AH$7<>\"\",INDIRECT(\"'\" & Setup!$AH$7 & \"'!\" & AF104),0) + IF(Setup!$AH$8<>\"\",INDIRECT(\"'\" & Setup!$AH$8 & \"'!\" & AF104),0) + IF(Setup!$AH$9<>\"\",INDIRECT(\"'\" & Setup!$AH$9 & \"'!\" & AF104),0) + IF(Setup!$AH$10<>\"\",INDIRECT(\"'\" & Setup!$AH$10 & \"'!\" & AF104),0) + IF(Setup!$AH$11<>\"\",INDIRECT(\"'\" & Setup!$AH$11 & \"'!\" & AF104),0) + IF(Setup!$AH$12<>\"\",INDIRECT(\"'\" & Setup!$AH$12 & \"'!\" & AF104),0)","v":0},{"$f":"IF(Setup!$AI$7<>\"\",INDIRECT(\"'\" & Setup!$AI$7 & \"'!\" & AF104),0) + IF(Setup!$AI$8<>\"\",INDIRECT(\"'\" & Setup!$AI$8 & \"'!\" & AF104),0) + IF(Setup!$AI$9<>\"\",INDIRECT(\"'\" & Setup!$AI$9 & \"'!\" & AF104),0) + IF(Setup!$AI$10<>\"\",INDIRECT(\"'\" & Setup!$AI$10 & \"'!\" & AF104),0) + IF(Setup!$AI$11<>\"\",INDIRECT(\"'\" & Setup!$AI$11 & \"'!\" & AF104),0) + IF(Setup!$AI$12<>\"\",INDIRECT(\"'\" & Setup!$AI$12 & \"'!\" & AF104),0)","v":0},{"$f":"IF(Setup!$AJ$7<>\"\",INDIRECT(\"'\" & Setup!$AJ$7 & \"'!\" & AF104),0) + IF(Setup!$AJ$8<>\"\",INDIRECT(\"'\" & Setup!$AJ$8 & \"'!\" & AF104),0) + IF(Setup!$AJ$9<>\"\",INDIRECT(\"'\" & Setup!$AJ$9 & \"'!\" & AF104),0) + IF(Setup!$AJ$10<>\"\",INDIRECT(\"'\" & Setup!$AJ$10 & \"'!\" & AF104),0) + IF(Setup!$AJ$11<>\"\",INDIRECT(\"'\" & Setup!$AJ$11 & \"'!\" & AF104),0) + IF(Setup!$AJ$12<>\"\",INDIRECT(\"'\" & Setup!$AJ$12 & \"'!\" & AF104),0)","v":0},null,"",{"$nulls":3},{"$f":"IF(C104=0,\"\",LEFT(INDEX(Lists!$H$5:$H$49,MATCH(C104,Lists!$G$5:$G$49,0),1),1))","v":""},null,"","","","","","","","","","",{"$nulls":6},{"$f":"IF(Setup!$AG$7<>\"\",INDIRECT(\"'\" & Setup!$AG$7 & \"'!\" & AD104),0) + IF(Setup!$AG$8<>\"\",INDIRECT(\"'\" & Setup!$AG$8 & \"'!\" & AD104),0) + IF(Setup!$AG$9<>\"\",INDIRECT(\"'\" & Setup!$AG$9 & \"'!\" & AD104),0) + IF(Setup!$AG$10<>\"\",INDIRECT(\"'\" & Setup!$AG$10 & \"'!\" & AD104),0) + IF(Setup!$AG$11<>\"\",INDIRECT(\"'\" & Setup!$AG$11 & \"'!\" & AD104),0) + IF(Setup!$AG$12<>\"\",INDIRECT(\"'\" & Setup!$AG$12 & \"'!\" & AD104),0)","v":0},{"$f":"IF(Setup!$AG$7<>\"\",INDIRECT(\"'\" & Setup!$AG$7 & \"'!\" & AE104),0) + IF(Setup!$AG$8<>\"\",INDIRECT(\"'\" & Setup!$AG$8 & \"'!\" & AE104),0) + IF(Setup!$AG$9<>\"\",INDIRECT(\"'\" & Setup!$AG$9 & \"'!\" & AE104),0) + IF(Setup!$AG$10<>\"\",INDIRECT(\"'\" & Setup!$AG$10 & \"'!\" & AE104),0) + IF(Setup!$AG$11<>\"\",INDIRECT(\"'\" & Setup!$AG$11 & \"'!\" & AE104),0) + IF(Setup!$AG$12<>\"\",INDIRECT(\"'\" & Setup!$AG$12 & \"'!\" & AE104),0)","v":0},{"$f":"IF(Setup!$AH$7<>\"\",INDIRECT(\"'\" & Setup!$AH$7 & \"'!\" & AD104),0) + IF(Setup!$AH$8<>\"\",INDIRECT(\"'\" & Setup!$AH$8 & \"'!\" & AD104),0) + IF(Setup!$AH$9<>\"\",INDIRECT(\"'\" & Setup!$AH$9 & \"'!\" & AD104),0) + IF(Setup!$AH$10<>\"\",INDIRECT(\"'\" & Setup!$AH$10 & \"'!\" & AD104),0) + IF(Setup!$AH$11<>\"\",INDIRECT(\"'\" & Setup!$AH$11 & \"'!\" & AD104),0) + IF(Setup!$AH$12<>\"\",INDIRECT(\"'\" & Setup!$AH$12 & \"'!\" & AD104),0)","v":0},{"$f":"IF(Setup!$AH$7<>\"\",INDIRECT(\"'\" & Setup!$AH$7 & \"'!\" & AE104),0) + IF(Setup!$AH$8<>\"\",INDIRECT(\"'\" & Setup!$AH$8 & \"'!\" & AE104),0) + IF(Setup!$AH$9<>\"\",INDIRECT(\"'\" & Setup!$AH$9 & \"'!\" & AE104),0) + IF(Setup!$AH$10<>\"\",INDIRECT(\"'\" & Setup!$AH$10 & \"'!\" & AE104),0) + IF(Setup!$AH$11<>\"\",INDIRECT(\"'\" & Setup!$AH$11 & \"'!\" & AE104),0) + IF(Setup!$AH$12<>\"\",INDIRECT(\"'\" & Setup!$AH$12 & \"'!\" & AE104),0)","v":0},{"$f":"IF(Setup!$AI$7<>\"\",INDIRECT(\"'\" & Setup!$AI$7 & \"'!\" & AD104),0) + IF(Setup!$AI$8<>\"\",INDIRECT(\"'\" & Setup!$AI$8 & \"'!\" & AD104),0) + IF(Setup!$AI$9<>\"\",INDIRECT(\"'\" & Setup!$AI$9 & \"'!\" & AD104),0) + IF(Setup!$AI$10<>\"\",INDIRECT(\"'\" & Setup!$AI$10 & \"'!\" & AD104),0) + IF(Setup!$AI$11<>\"\",INDIRECT(\"'\" & Setup!$AI$11 & \"'!\" & AD104),0) + IF(Setup!$AI$12<>\"\",INDIRECT(\"'\" & Setup!$AI$12 & \"'!\" & AD104),0)","v":0},{"$f":"IF(Setup!$AI$7<>\"\",INDIRECT(\"'\" & Setup!$AI$7 & \"'!\" & AE104),0) + IF(Setup!$AI$8<>\"\",INDIRECT(\"'\" & Setup!$AI$8 & \"'!\" & AE104),0) + IF(Setup!$AI$9<>\"\",INDIRECT(\"'\" & Setup!$AI$9 & \"'!\" & AE104),0) + IF(Setup!$AI$10<>\"\",INDIRECT(\"'\" & Setup!$AI$10 & \"'!\" & AE104),0) + IF(Setup!$AI$11<>\"\",INDIRECT(\"'\" & Setup!$AI$11 & \"'!\" & AE104),0) + IF(Setup!$AI$12<>\"\",INDIRECT(\"'\" & Setup!$AI$12 & \"'!\" & AE104),0)","v":0},{"$f":"IF(Setup!$AJ$7<>\"\",INDIRECT(\"'\" & Setup!$AJ$7 & \"'!\" & AD104),0) + IF(Setup!$AJ$8<>\"\",INDIRECT(\"'\" & Setup!$AJ$8 & \"'!\" & AD104),0) + IF(Setup!$AJ$9<>\"\",INDIRECT(\"'\" & Setup!$AJ$9 & \"'!\" & AD104),0) + IF(Setup!$AJ$10<>\"\",INDIRECT(\"'\" & Setup!$AJ$10 & \"'!\" & AD104),0) + IF(Setup!$AJ$11<>\"\",INDIRECT(\"'\" & Setup!$AJ$11 & \"'!\" & AD104),0) + IF(Setup!$AJ$12<>\"\",INDIRECT(\"'\" & Setup!$AJ$12 & \"'!\" & AD104),0)","v":0},{"$f":"IF(Setup!$AJ$7<>\"\",INDIRECT(\"'\" & Setup!$AJ$7 & \"'!\" & AE104),0) + IF(Setup!$AJ$8<>\"\",INDIRECT(\"'\" & Setup!$AJ$8 & \"'!\" & AE104),0) + IF(Setup!$AJ$9<>\"\",INDIRECT(\"'\" & Setup!$AJ$9 & \"'!\" & AE104),0) + IF(Setup!$AJ$10<>\"\",INDIRECT(\"'\" & Setup!$AJ$10 & \"'!\" & AE104),0) + IF(Setup!$AJ$11<>\"\",INDIRECT(\"'\" & Setup!$AJ$11 & \"'!\" & AE104),0) + IF(Setup!$AJ$12<>\"\",INDIRECT(\"'\" & Setup!$AJ$12 & \"'!\" & AE104),0)","v":0}]
[{"$f":"Planning!A88","v":"I080"},{"$f":"Planning!B88","v":0},{"$f":"Planning!C88","v":0},{"$f":"Planning!D88","v":0},{"$f":"Planning!E88","v":0},{"$f":"Planning!G88","v":0},null,0,0,{"$f":"IF(AND($AR105=\"2\",$AB104<>Lists!$A$17),AU105,AT105)","v":""},"",0,0,{"$f":"IF(AND($AR105=\"2\",$AB105<>Lists!$A$17),AW105,AV105)","v":""},"",0,0,{"$f":"IF(AND($AR105=\"2\",$AB105<>Lists!$A$17),AY105,AX105)","v":""},"",0,0,{"$f":"IF(AND($AR105=\"2\",$AB105<>Lists!$A$17),BA105,AZ105)","v":""},"",0,0,{"$f":"IF(AND($AR105=\"2\",$AB105<>Lists!$A$17),BC105,BB105)","v":""},"",{"$f":"Planning!H88","v":0},"00","H104","J104","I104","",null,{"$f":"IF(Setup!$AG$7<>\"\",INDIRECT(\"'\" & Setup!$AG$7 & \"'!\" & AF105),0) + IF(Setup!$AG$8<>\"\",INDIRECT(\"'\" & Setup!$AG$8 & \"'!\" & AF105),0) + IF(Setup!$AG$9<>\"\",INDIRECT(\"'\" & Setup!$AG$9 & \"'!\" & AF105),0) + IF(Setup!$AG$10<>\"\",INDIRECT(\"'\" & Setup!$AG$10 & \"'!\" & AF105),0) + IF(Setup!$AG$11<>\"\",INDIRECT(\"'\" & Setup!$AG$11 & \"'!\" & AF105),0) + IF(Setup!$AG$12<>\"\",INDIRECT(\"'\" & Setup!$AG$12 & \"'!\" & AF105),0)","v":0},{"$f":"IF(Setup!$AH$7<>\"\",INDIRECT(\"'\" & Setup!$AH$7 & \"'!\" & AF105),0) + IF(Setup!$AH$8<>\"\",INDIRECT(\"'\" & Setup!$AH$8 & \"'!\" & AF105),0) + IF(Setup!$AH$9<>\"\",INDIRECT(\"'\" & Setup!$AH$9 & \"'!\" & AF105),0) + IF(Setup!$AH$10<>\"\",INDIRECT(\"'\" & Setup!$AH$10 & \"'!\" & AF105),0) + IF(Setup!$AH$11<>\"\",INDIRECT(\"'\" & Setup!$AH$11 & \"'!\" & AF105),0) + IF(Setup!$AH$12<>\"\",INDIRECT(\"'\" & Setup!$AH$12 & \"'!\" & AF105),0)","v":0},{"$f":"IF(Setup!$AI$7<>\"\",INDIRECT(\"'\" & Setup!$AI$7 & \"'!\" & AF105),0) + IF(Setup!$AI$8<>\"\",INDIRECT(\"'\" & Setup!$AI$8 & \"'!\" & AF105),0) + IF(Setup!$AI$9<>\"\",INDIRECT(\"'\" & Setup!$AI$9 & \"'!\" & AF105),0) + IF(Setup!$AI$10<>\"\",INDIRECT(\"'\" & Setup!$AI$10 & \"'!\" & AF105),0) + IF(Setup!$AI$11<>\"\",INDIRECT(\"'\" & Setup!$AI$11 & \"'!\" & AF105),0) + IF(Setup!$AI$12<>\"\",INDIRECT(\"'\" & Setup!$AI$12 & \"'!\" & AF105),0)","v":0},{"$f":"IF(Setup!$AJ$7<>\"\",INDIRECT(\"'\" & Setup!$AJ$7 & \"'!\" & AF105),0) + IF(Setup!$AJ$8<>\"\",INDIRECT(\"'\" & Setup!$AJ$8 & \"'!\" & AF105),0) + IF(Setup!$AJ$9<>\"\",INDIRECT(\"'\" & Setup!$AJ$9 & \"'!\" & AF105),0) + IF(Setup!$AJ$10<>\"\",INDIRECT(\"'\" & Setup!$AJ$10 & \"'!\" & AF105),0) + IF(Setup!$AJ$11<>\"\",INDIRECT(\"'\" & Setup!$AJ$11 & \"'!\" & AF105),0) + IF(Setup!$AJ$12<>\"\",INDIRECT(\"'\" & Setup!$AJ$12 & \"'!\" & AF105),0)","v":0},null,"",{"$nulls":3},{"$f":"IF(C105=0,\"\",LEFT(INDEX(Lists!$H$5:$H$49,MATCH(C105,Lists!$G$5:$G$49,0),1),1))","v":""},null,"","","","","","","","","","",{"$nulls":6},{"$f":"IF(Setup!$AG$7<>\"\",INDIRECT(\"'\" & Setup!$AG$7 & \"'!\" & AD105),0) + IF(Setup!$AG$8<>\"\",INDIRECT(\"'\" & Setup!$AG$8 & \"'!\" & AD105),0) + IF(Setup!$AG$9<>\"\",INDIRECT(\"'\" & Setup!$AG$9 & \"'!\" & AD105),0) + IF(Setup!$AG$10<>\"\",INDIRECT(\"'\" & Setup!$AG$10 & \"'!\" & AD105),0) + IF(Setup!$AG$11<>\"\",INDIRECT(\"'\" & Setup!$AG$11 & \"'!\" & AD105),0) + IF(Setup!$AG$12<>\"\",INDIRECT(\"'\" & Setup!$AG$12 & \"'!\" & AD105),0)","v":0},{"$f":"IF(Setup!$AG$7<>\"\",INDIRECT(\"'\" & Setup!$AG$7 & \"'!\" & AE105),0) + IF(Setup!$AG$8<>\"\",INDIRECT(\"'\" & Setup!$AG$8 & \"'!\" & AE105),0) + IF(Setup!$AG$9<>\"\",INDIRECT(\"'\" & Setup!$AG$9 & \"'!\" & AE105),0) + IF(Setup!$AG$10<>\"\",INDIRECT(\"'\" & Setup!$AG$10 & \"'!\" & AE105),0) + IF(Setup!$AG$11<>\"\",INDIRECT(\"'\" & Setup!$AG$11 & \"'!\" & AE105),0) + IF(Setup!$AG$12<>\"\",INDIRECT(\"'\" & Setup!$AG$12 & \"'!\" & AE105),0)","v":0},{"$f":"IF(Setup!$AH$7<>\"\",INDIRECT(\"'\" & Setup!$AH$7 & \"'!\" & AD105),0) + IF(Setup!$AH$8<>\"\",INDIRECT(\"'\" & Setup!$AH$8 & \"'!\" & AD105),0) + IF(Setup!$AH$9<>\"\",INDIRECT(\"'\" & Setup!$AH$9 & \"'!\" & AD105),0) + IF(Setup!$AH$10<>\"\",INDIRECT(\"'\" & Setup!$AH$10 & \"'!\" & AD105),0) + IF(Setup!$AH$11<>\"\",INDIRECT(\"'\" & Setup!$AH$11 & \"'!\" & AD105),0) + IF(Setup!$AH$12<>\"\",INDIRECT(\"'\" & Setup!$AH$12 & \"'!\" & AD105),0)","v":0},{"$f":"IF(Setup!$AH$7<>\"\",INDIRECT(\"'\" & Setup!$AH$7 & \"'!\" & AE105),0) + IF(Setup!$AH$8<>\"\",INDIRECT(\"'\" & Setup!$AH$8 & \"'!\" & AE105),0) + IF(Setup!$AH$9<>\"\",INDIRECT(\"'\" & Setup!$AH$9 & \"'!\" & AE105),0) + IF(Setup!$AH$10<>\"\",INDIRECT(\"'\" & Setup!$AH$10 & \"'!\" & AE105),0) + IF(Setup!$AH$11<>\"\",INDIRECT(\"'\" & Setup!$AH$11 & \"'!\" & AE105),0) + IF(Setup!$AH$12<>\"\",INDIRECT(\"'\" & Setup!$AH$12 & \"'!\" & AE105),0)","v":0},{"$f":"IF(Setup!$AI$7<>\"\",INDIRECT(\"'\" & Setup!$AI$7 & \"'!\" & AD105),0) + IF(Setup!$AI$8<>\"\",INDIRECT(\"'\" & Setup!$AI$8 & \"'!\" & AD105),0) + IF(Setup!$AI$9<>\"\",INDIRECT(\"'\" & Setup!$AI$9 & \"'!\" & AD105),0) + IF(Setup!$AI$10<>\"\",INDIRECT(\"'\" & Setup!$AI$10 & \"'!\" & AD105),0) + IF(Setup!$AI$11<>\"\",INDIRECT(\"'\" & Setup!$AI$11 & \"'!\" & AD105),0) + IF(Setup!$AI$12<>\"\",INDIRECT(\"'\" & Setup!$AI$12 & \"'!\" & AD105),0)","v":0},{"$f":"IF(Setup!$AI$7<>\"\",INDIRECT(\"'\" & Setup!$AI$7 & \"'!\" & AE105),0) + IF(Setup!$AI$8<>\"\",INDIRECT(\"'\" & Setup!$AI$8 & \"'!\" & AE105),0) + IF(Setup!$AI$9<>\"\",INDIRECT(\"'\" & Setup!$AI$9 & \"'!\" & AE105),0) + IF(Setup!$AI$10<>\"\",INDIRECT(\"'\" & Setup!$AI$10 & \"'!\" & AE105),0) + IF(Setup!$AI$11<>\"\",INDIRECT(\"'\" & Setup!$AI$11 & \"'!\" & AE105),0) + IF(Setup!$AI$12<>\"\",INDIRECT(\"'\" & Setup!$AI$12 & \"'!\" & AE105),0)","v":0},{"$f":"IF(Setup!$AJ$7<>\"\",INDIRECT(\"'\" & Setup!$AJ$7 & \"'!\" & AD105),0) + IF(Setup!$AJ$8<>\"\",INDIRECT(\"'\" & Setup!$AJ$8 & \"'!\" & AD105),0) + IF(Setup!$AJ$9<>\"\",INDIRECT(\"'\" & Setup!$AJ$9 & \"'!\" & AD105),0) + IF(Setup!$AJ$10<>\"\",INDIRECT(\"'\" & Setup!$AJ$10 & \"'!\" & AD105),0) + IF(Setup!$AJ$11<>\"\",INDIRECT(\"'\" & Setup!$AJ$11 & \"'!\" & AD105),0) + IF(Setup!$AJ$12<>\"\",INDIRECT(\"'\" & Setup!$AJ$12 & \"'!\" & AD105),0)","v":0},{"$f":"IF(Setup!$AJ$7<>\"\",INDIRECT(\"'\" & Setup!$AJ$7 & \"'!\" & AE105),0) + IF(Setup!$AJ$8<>\"\",INDIRECT(\"'\" & Setup!$AJ$8 & \"'!\" & AE105),0) + IF(Setup!$AJ$9<>\"\",INDIRECT(\"'\" & Setup!$AJ$9 & \"'!\" & AE105),0) + IF(Setup!$AJ$10<>\"\",INDIRECT(\"'\" & Setup!$AJ$10 & \"'!\" & AE105),0) + IF(Setup!$AJ$11<>\"\",INDIRECT(\"'\" & Setup!$AJ$11 & \"'!\" & AE105),0) + IF(Setup!$AJ$12<>\"\",INDIRECT(\"'\" & Setup!$AJ$12 & \"'!\" & AE105),0)","v":0}]
[{"$f":"Planning!A89","v":"I081"},{"$f":"Planning!B89","v":0},{"$f":"Planning!C89","v":0},{"$f":"Planning!D89","v":0},{"$f":"Planning!E89","v":0},{"$f":"Planning!G89","v":0},null,0,0,{"$f":"IF(AND($AR106=\"2\",$AB105<>Lists!$A$17),AU106,AT106)","v":""},"",0,0,{"$f":"IF(AND($AR106=\"2\",$AB106<>Lists!$A$17),AW106,AV106)","v":""},"",0,0,{"$f":"IF(AND($AR106=\"2\",$AB106<>Lists!$A$17),AY106,AX106)","v":""},"",0,0,{"$f":"IF(AND($AR106=\"2\",$AB106<>Lists!$A$17),BA106,AZ106)","v":""},"",0,0,{"$f":"IF(AND($AR106=\"2\",$AB106<>Lists!$A$17),BC106,BB106)","v":""},"",{"$f":"Planning!H89","v":0},"00","H105","J105","I105","",null,{"$f":"IF(Setup!$AG$7<>\"\",INDIRECT(\"'\" & Setup!$AG$7 & \"'!\" & AF106),0) + IF(Setup!$AG$8<>\"\",INDIRECT(\"'\" & Setup!$AG$8 & \"'!\" & AF106),0) + IF(Setup!$AG$9<>\"\",INDIRECT(\"'\" & Setup!$AG$9 & \"'!\" & AF106),0) + IF(Setup!$AG$10<>\"\",INDIRECT(\"'\" & Setup!$AG$10 & \"'!\" & AF106),0) + IF(Setup!$AG$11<>\"\",INDIRECT(\"'\" & Setup!$AG$11 & \"'!\" & AF106),0) + IF(Setup!$AG$12<>\"\",INDIRECT(\"'\" & Setup!$AG$12 & \"'!\" & AF106),0)","v":0},{"$f":"IF(Setup!$AH$7<>\"\",INDIRECT(\"'\" & Setup!$AH$7 & \"'!\" & AF106),0) + IF(Setup!$AH$8<>\"\",INDIRECT(\"'\" & Setup!$AH$8 & \"'!\" & AF106),0) + IF(Setup!$AH$9<>\"\",INDIRECT(\"'\" & Setup!$AH$9 & \"'!\" & AF106),0) + IF(Setup!$AH$10<>\"\",INDIRECT(\"'\" & Setup!$AH$10 & \"'!\" & AF106),0) + IF(Setup!$AH$11<>\"\",INDIRECT(\"'\" & Setup!$AH$11 & \"'!\" & AF106),0) + IF(Setup!$AH$12<>\"\",INDIRECT(\"'\" & Setup!$AH$12 & \"'!\" & AF106),0)","v":0},{"$f":"IF(Setup!$AI$7<>\"\",INDIRECT(\"'\" & Setup!$AI$7 & \"'!\" & AF106),0) + IF(Setup!$AI$8<>\"\",INDIRECT(\"'\" & Setup!$AI$8 & \"'!\" & AF106),0) + IF(Setup!$AI$9<>\"\",INDIRECT(\"'\" & Setup!$AI$9 & \"'!\" & AF106),0) + IF(Setup!$AI$10<>\"\",INDIRECT(\"'\" & Setup!$AI$10 & \"'!\" & AF106),0) + IF(Setup!$AI$11<>\"\",INDIRECT(\"'\" & Setup!$AI$11 & \"'!\" & AF106),0) + IF(Setup!$AI$12<>\"\",INDIRECT(\"'\" & Setup!$AI$12 & \"'!\" & AF106),0)","v":0},{"$f":"IF(Setup!$AJ$7<>\"\",INDIRECT(\"'\" & Setup!$AJ$7 & \"'!\" & AF106),0) + IF(Setup!$AJ$8<>\"\",INDIRECT(\"'\" & Setup!$AJ$8 & \"'!\" & AF106),0) + IF(Setup!$AJ$9<>\"\",INDIRECT(\"'\" & Setup!$AJ$9 & \"'!\" & AF106),0) + IF(Setup!$AJ$10<>\"\",INDIRECT(\"'\" & Setup!$AJ$10 & \"'!\" & AF106),0) + IF(Setup!$AJ$11<>\"\",INDIRECT(\"'\" & Setup!$AJ$11 & \"'!\" & AF106),0) + IF(Setup!$AJ$12<>\"\",INDIRECT(\"'\" & Setup!$AJ$12 & \"'!\" & AF106),0)","v":0},null,"",{"$nulls":3},{"$f":"IF(C106=0,\"\",LEFT(INDEX(Lists!$H$5:$H$49,MATCH(C106,Lists!$G$5:$G$49,0),1),1))","v":""},null,"","","","","","","","","","",{"$nulls":6},{"$f":"IF(Setup!$AG$7<>\"\",INDIRECT(\"'\" & Setup!$AG$7 & \"'!\" & AD106),0) + IF(Setup!$AG$8<>\"\",INDIRECT(\"'\" & Setup!$AG$8 & \"'!\" & AD106),0) + IF(Setup!$AG$9<>\"\",INDIRECT(\"'\" & Setup!$AG$9 & \"'!\" & AD106),0) + IF(Setup!$AG$10<>\"\",INDIRECT(\"'\" & Setup!$AG$10 & \"'!\" & AD106),0) + IF(Setup!$AG$11<>\"\",INDIRECT(\"'\" & Setup!$AG$11 & \"'!\" & AD106),0) + IF(Setup!$AG$12<>\"\",INDIRECT(\"'\" & Setup!$AG$12 & \"'!\" & AD106),0)","v":0},{"$f":"IF(Setup!$AG$7<>\"\",INDIRECT(\"'\" & Setup!$AG$7 & \"'!\" & AE106),0) + IF(Setup!$AG$8<>\"\",INDIRECT(\"'\" & Setup!$AG$8 & \"'!\" & AE106),0) + IF(Setup!$AG$9<>\"\",INDIRECT(\"'\" & Setup!$AG$9 & \"'!\" & AE106),0) + IF(Setup!$AG$10<>\"\",INDIRECT(\"'\" & Setup!$AG$10 & \"'!\" & AE106),0) + IF(Setup!$AG$11<>\"\",INDIRECT(\"'\" & Setup!$AG$11 & \"'!\" & AE106),0) + IF(Setup!$AG$12<>\"\",INDIRECT(\"'\" & Setup!$AG$12 & \"'!\" & AE106),0)","v":0},{"$f":"IF(Setup!$AH$7<>\"\",INDIRECT(\"'\" & Setup!$AH$7 & \"'!\" & AD106),0) + IF(Setup!$AH$8<>\"\",INDIRECT(\"'\" & Setup!$AH$8 & \"'!\" & AD106),0) + IF(Setup!$AH$9<>\"\",INDIRECT(\"'\" & Setup!$AH$9 & \"'!\" & AD106),0) + IF(Setup!$AH$10<>\"\",INDIRECT(\"'\" & Setup!$AH$10 & \"'!\" & AD106),0) + IF(Setup!$AH$11<>\"\",INDIRECT(\"'\" & Setup!$AH$11 & \"'!\" & AD106),0) + IF(Setup!$AH$12<>\"\",INDIRECT(\"'\" & Setup!$AH$12 & \"'!\" & AD106),0)","v":0},{"$f":"IF(Setup!$AH$7<>\"\",INDIRECT(\"'\" & Setup!$AH$7 & \"'!\" & AE106),0) + IF(Setup!$AH$8<>\"\",INDIRECT(\"'\" & Setup!$AH$8 & \"'!\" & AE106),0) + IF(Setup!$AH$9<>\"\",INDIRECT(\"'\" & Setup!$AH$9 & \"'!\" & AE106),0) + IF(Setup!$AH$10<>\"\",INDIRECT(\"'\" & Setup!$AH$10 & \"'!\" & AE106),0) + IF(Setup!$AH$11<>\"\",INDIRECT(\"'\" & Setup!$AH$11 & \"'!\" & AE106),0) + IF(Setup!$AH$12<>\"\",INDIRECT(\"'\" & Setup!$AH$12 & \"'!\" & AE106),0)","v":0},{"$f":"IF(Setup!$AI$7<>\"\",INDIRECT(\"'\" & Setup!$AI$7 & \"'!\" & AD106),0) + IF(Setup!$AI$8<>\"\",INDIRECT(\"'\" & Setup!$AI$8 & \"'!\" & AD106),0) + IF(Setup!$AI$9<>\"\",INDIRECT(\"'\" & Setup!$AI$9 & \"'!\" & AD106),0) + IF(Setup!$AI$10<>\"\",INDIRECT(\"'\" & Setup!$AI$10 & \"'!\" & AD106),0) + IF(Setup!$AI$11<>\"\",INDIRECT(\"'\" & Setup!$AI$11 & \"'!\" & AD106),0) + IF(Setup!$AI$12<>\"\",INDIRECT(\"'\" & Setup!$AI$12 & \"'!\" & AD106),0)","v":0},{"$f":"IF(Setup!$AI$7<>\"\",INDIRECT(\"'\" & Setup!$AI$7 & \"'!\" & AE106),0) + IF(Setup!$AI$8<>\"\",INDIRECT(\"'\" & Setup!$AI$8 & \"'!\" & AE106),0) + IF(Setup!$AI$9<>\"\",INDIRECT(\"'\" & Setup!$AI$9 & \"'!\" & AE106),0) + IF(Setup!$AI$10<>\"\",INDIRECT(\"'\" & Setup!$AI$10 & \"'!\" & AE106),0) + IF(Setup!$AI$11<>\"\",INDIRECT(\"'\" & Setup!$AI$11 & \"'!\" & AE106),0) + IF(Setup!$AI$12<>\"\",INDIRECT(\"'\" & Setup!$AI$12 & \"'!\" & AE106),0)","v":0},{"$f":"IF(Setup!$AJ$7<>\"\",INDIRECT(\"'\" & Setup!$AJ$7 & \"'!\" & AD106),0) + IF(Setup!$AJ$8<>\"\",INDIRECT(\"'\" & Setup!$AJ$8 & \"'!\" & AD106),0) + IF(Setup!$AJ$9<>\"\",INDIRECT(\"'\" & Setup!$AJ$9 & \"'!\" & AD106),0) + IF(Setup!$AJ$10<>\"\",INDIRECT(\"'\" & Setup!$AJ$10 & \"'!\" & AD106),0) + IF(Setup!$AJ$11<>\"\",INDIRECT(\"'\" & Setup!$AJ$11 & \"'!\" & AD106),0) + IF(Setup!$AJ$12<>\"\",INDIRECT(\"'\" & Setup!$AJ$12 & \"'!\" & AD106),0)","v":0},{"$f":"IF(Setup!$AJ$7<>\"\",INDIRECT(\"'\" & Setup!$AJ$7 & \"'!\" & AE106),0) + IF(Setup!$AJ$8<>\"\",INDIRECT(\"'\" & Setup!$AJ$8 & \"'!\" & AE106),0) + IF(Setup!$AJ$9<>\"\",INDIRECT(\"'\" & Setup!$AJ$9 & \"'!\" & AE106),0) + IF(Setup!$AJ$10<>\"\",INDIRECT(\"'\" & Setup!$AJ$10 & \"'!\" & AE106),0) + IF(Setup!$AJ$11<>\"\",INDIRECT(\"'\" & Setup!$AJ$11 & \"'!\" & AE106),0) + IF(Setup!$AJ$12<>\"\",INDIRECT(\"'\" & Setup!$AJ$12 & \"'!\" & AE106),0)","v":0}]
[{"$f":"Planning!A90","v":"I082"},{"$f":"Planning!B90","v":0},{"$f":"Planning!C90","v":0},{"$f":"Planning!D90","v":0},{"$f":"Planning!E90","v":0},{"$f":"Planning!G90","v":0},null,0,0,{"$f":"IF(AND($AR107=\"2\",$AB106<>Lists!$A$17),AU107,AT107)","v":""},"",0,0,{"$f":"IF(AND($AR107=\"2\",$AB107<>Lists!$A$17),AW107,AV107)","v":""},"",0,0,{"$f":"IF(AND($AR107=\"2\",$AB107<>Lists!$A$17),AY107,AX107)","v":""},"",0,0,{"$f":"IF(AND($AR107=\"2\",$AB107<>Lists!$A$17),BA107,AZ107)","v":""},"",0,0,{"$f":"IF(AND($AR107=\"2\",$AB107<>Lists!$A$17),BC107,BB107)","v":""},"",{"$f":"Planning!H90","v":0},"00","H106","J106","I106","",null,{"$f":"IF(Setup!$AG$7<>\"\",INDIRECT(\"'\" & Setup!$AG$7 & \"'!\" & AF107),0) + IF(Setup!$AG$8<>\"\",INDIRECT(\"'\" & Setup!$AG$8 & \"'!\" & AF107),0) + IF(Setup!$AG$9<>\"\",INDIRECT(\"'\" & Setup!$AG$9 & \"'!\" & AF107),0) + IF(Setup!$AG$10<>\"\",INDIRECT(\"'\" & Setup!$AG$10 & \"'!\" & AF107),0) + IF(Setup!$AG$11<>\"\",INDIRECT(\"'\" & Setup!$AG$11 & \"'!\" & AF107),0) + IF(Setup!$AG$12<>\"\",INDIRECT(\"'\" & Setup!$AG$12 & \"'!\" & AF107),0)","v":0},{"$f":"IF(Setup!$AH$7<>\"\",INDIRECT(\"'\" & Setup!$AH$7 & \"'!\" & AF107),0) + IF(Setup!$AH$8<>\"\",INDIRECT(\"'\" & Setup!$AH$8 & \"'!\" & AF107),0) + IF(Setup!$AH$9<>\"\",INDIRECT(\"'\" & Setup!$AH$9 & \"'!\" & AF107),0) + IF(Setup!$AH$10<>\"\",INDIRECT(\"'\" & Setup!$AH$10 & \"'!\" & AF107),0) + IF(Setup!$AH$11<>\"\",INDIRECT(\"'\" & Setup!$AH$11 & \"'!\" & AF107),0) + IF(Setup!$AH$12<>\"\",INDIRECT(\"'\" & Setup!$AH$12 & \"'!\" & AF107),0)","v":0},{"$f":"IF(Setup!$AI$7<>\"\",INDIRECT(\"'\" & Setup!$AI$7 & \"'!\" & AF107),0) + IF(Setup!$AI$8<>\"\",INDIRECT(\"'\" & Setup!$AI$8 & \"'!\" & AF107),0) + IF(Setup!$AI$9<>\"\",INDIRECT(\"'\" & Setup!$AI$9 & \"'!\" & AF107),0) + IF(Setup!$AI$10<>\"\",INDIRECT(\"'\" & Setup!$AI$10 & \"'!\" & AF107),0) + IF(Setup!$AI$11<>\"\",INDIRECT(\"'\" & Setup!$AI$11 & \"'!\" & AF107),0) + IF(Setup!$AI$12<>\"\",INDIRECT(\"'\" & Setup!$AI$12 & \"'!\" & AF107),0)","v":0},{"$f":"IF(Setup!$AJ$7<>\"\",INDIRECT(\"'\" & Setup!$AJ$7 & \"'!\" & AF107),0) + IF(Setup!$AJ$8<>\"\",INDIRECT(\"'\" & Setup!$AJ$8 & \"'!\" & AF107),0) + IF(Setup!$AJ$9<>\"\",INDIRECT(\"'\" & Setup!$AJ$9 & \"'!\" & AF107),0) + IF(Setup!$AJ$10<>\"\",INDIRECT(\"'\" & Setup!$AJ$10 & \"'!\" & AF107),0) + IF(Setup!$AJ$11<>\"\",INDIRECT(\"'\" & Setup!$AJ$11 & \"'!\" & AF107),0) + IF(Setup!$AJ$12<>\"\",INDIRECT(\"'\" & Setup!$AJ$12 & \"'!\" & AF107),0)","v":0},null,"",{"$nulls":3},{"$f":"IF(C107=0,\"\",LEFT(INDEX(Lists!$H$5:$H$49,MATCH(C107,Lists!$G$5:$G$49,0),1),1))","v":""},null,"","","","","","","","","","",{"$nulls":6},{"$f":"IF(Setup!$AG$7<>\"\",INDIRECT(\"'\" & Setup!$AG$7 & \"'!\" & AD107),0) + IF(Setup!$AG$8<>\"\",INDIRECT(\"'\" & Setup!$AG$8 & \"'!\" & AD107),0) + IF(Setup!$AG$9<>\"\",INDIRECT(\"'\" & Setup!$AG$9 & \"'!\" & AD107),0) + IF(Setup!$AG$10<>\"\",INDIRECT(\"'\" & Setup!$AG$10 & \"'!\" & AD107),0) + IF(Setup!$AG$11<>\"\",INDIRECT(\"'\" & Setup!$AG$11 & \"'!\" & AD107),0) + IF(Setup!$AG$12<>\"\",INDIRECT(\"'\" & Setup!$AG$12 & \"'!\" & AD107),0)","v":0},{"$f":"IF(Setup!$AG$7<>\"\",INDIRECT(\"'\" & Setup!$AG$7 & \"'!\" & AE107),0) + IF(Setup!$AG$8<>\"\",INDIRECT(\"'\" & Setup!$AG$8 & \"'!\" & AE107),0) + IF(Setup!$AG$9<>\"\",INDIRECT(\"'\" & Setup!$AG$9 & \"'!\" & AE107),0) + IF(Setup!$AG$10<>\"\",INDIRECT(\"'\" & Setup!$AG$10 & \"'!\" & AE107),0) + IF(Setup!$AG$11<>\"\",INDIRECT(\"'\" & Setup!$AG$11 & \"'!\" & AE107),0) + IF(Setup!$AG$12<>\"\",INDIRECT(\"'\" & Setup!$AG$12 & \"'!\" & AE107),0)","v":0},{"$f":"IF(Setup!$AH$7<>\"\",INDIRECT(\"'\" & Setup!$AH$7 & \"'!\" & AD107),0) + IF(Setup!$AH$8<>\"\",INDIRECT(\"'\" & Setup!$AH$8 & \"'!\" & AD107),0) + IF(Setup!$AH$9<>\"\",INDIRECT(\"'\" & Setup!$AH$9 & \"'!\" & AD107),0) + IF(Setup!$AH$10<>\"\",INDIRECT(\"'\" & Setup!$AH$10 & \"'!\" & AD107),0) + IF(Setup!$AH$11<>\"\",INDIRECT(\"'\" & Setup!$AH$11 & \"'!\" & AD107),0) + IF(Setup!$AH$12<>\"\",INDIRECT(\"'\" & Setup!$AH$12 & \"'!\" & AD107),0)","v":0},{"$f":"IF(Setup!$AH$7<>\"\",INDIRECT(\"'\" & Setup!$AH$7 & \"'!\" & AE107),0) + IF(Setup!$AH$8<>\"\",INDIRECT(\"'\" & Setup!$AH$8 & \"'!\" & AE107),0) + IF(Setup!$AH$9<>\"\",INDIRECT(\"'\" & Setup!$AH$9 & \"'!\" & AE107),0) + IF(Setup!$AH$10<>\"\",INDIRECT(\"'\" & Setup!$AH$10 & \"'!\" & AE107),0) + IF(Setup!$AH$11<>\"\",INDIRECT(\"'\" & Setup!$AH$11 & \"'!\" & AE107),0) + IF(Setup!$AH$12<>\"\",INDIRECT(\"'\" & Setup!$AH$12 & \"'!\" & AE107),0)","v":0},{"$f":"IF(Setup!$AI$7<>\"\",INDIRECT(\"'\" & Setup!$AI$7 & \"'!\" & AD107),0) + IF(Setup!$AI$8<>\"\",INDIRECT(\"'\" & Setup!$AI$8 & \"'!\" & AD107),0) + IF(Setup!$AI$9<>\"\",INDIRECT(\"'\" & Setup!$AI$9 & \"'!\" & AD107),0) + IF(Setup!$AI$10<>\"\",INDIRECT(\"'\" & Setup!$AI$10 & \"'!\" & AD107),0) + IF(Setup!$AI$11<>\"\",INDIRECT(\"'\" & Setup!$AI$11 & \"'!\" & AD107),0) + IF(Setup!$AI$12<>\"\",INDIRECT(\"'\" & Setup!$AI$12 & \"'!\" & AD107),0)","v":0},{"$f":"IF(Setup!$AI$7<>\"\",INDIRECT(\"'\" & Setup!$AI$7 & \"'!\" & AE107),0) + IF(Setup!$AI$8<>\"\",INDIRECT(\"'\" & Setup!$AI$8 & \"'!\" & AE107),0) + IF(Setup!$AI$9<>\"\",INDIRECT(\"'\" & Setup!$AI$9 & \"'!\" & AE107),0) + IF(Setup!$AI$10<>\"\",INDIRECT(\"'\" & Setup!$AI$10 & \"'!\" & AE107),0) + IF(Setup!$AI$11<>\"\",INDIRECT(\"'\" & Setup!$AI$11 & \"'!\" & AE107),0) + IF(Setup!$AI$12<>\"\",INDIRECT(\"'\" & Setup!$AI$12 & \"'!\" & AE107),0)","v":0},{"$f":"IF(Setup!$AJ$7<>\"\",INDIRECT(\"'\" & Setup!$AJ$7 & \"'!\" & AD107),0) + IF(Setup!$AJ$8<>\"\",INDIRECT(\"'\" & Setup!$AJ$8 & \"'!\" & AD107),0) + IF(Setup!$AJ$9<>\"\",INDIRECT(\"'\" & Setup!$AJ$9 & \"'!\" & AD107),0) + IF(Setup!$AJ$10<>\"\",INDIRECT(\"'\" & Setup!$AJ$10 & \"'!\" & AD107),0) + IF(Setup!$AJ$11<>\"\",INDIRECT(\"'\" & Setup!$AJ$11 & \"'!\" & AD107),0) + IF(Setup!$AJ$12<>\"\",INDIRECT(\"'\" & Setup!$AJ$12 & \"'!\" & AD107),0)","v":0},{"$f":"IF(Setup!$AJ$7<>\"\",INDIRECT(\"'\" & Setup!$AJ$7 & \"'!\" & AE107),0) + IF(Setup!$AJ$8<>\"\",INDIRECT(\"'\" & Setup!$AJ$8 & \"'!\" & AE107),0) + IF(Setup!$AJ$9<>\"\",INDIRECT(\"'\" & Setup!$AJ$9 & \"'!\" & AE107),0) + IF(Setup!$AJ$10<>\"\",INDIRECT(\"'\" & Setup!$AJ$10 & \"'!\" & AE107),0) + IF(Setup!$AJ$11<>\"\",INDIRECT(\"'\" & Setup!$AJ$11 & \"'!\" & AE107),0) + IF(Setup!$AJ$12<>\"\",INDIRECT(\"'\" & Setup!$AJ$12 & \"'!\" & AE107),0)","v":0}]
[{"$f":"Planning!A91","v":"I083"},{"$f":"Planning!B91","v":0},{"$f":"Planning!C91","v":0},{"$f":"Planning!D91","v":0},{"$f":"Planning!E91","v":0},{"$f":"Planning!G91","v":0},null,0,0,{"$f":"IF(AND($AR108=\"2\",$AB107<>Lists!$A$17),AU108,AT108)","v":""},"",0,0,{"$f":"IF(AND($AR108=\"2\",$AB108<>Lists!$A$17),AW108,AV108)","v":""},"",0,0,{"$f":"IF(AND($AR108=\"2\",$AB108<>Lists!$A$17),AY108,AX108)","v":""},"",0,0,{"$f":"IF(AND($AR108=\"2\",$AB108<>Lists!$A$17),BA108,AZ108)","v":""},"",0,0,{"$f":"IF(AND($AR108=\"2\",$AB108<>Lists!$A$17),BC108,BB108)","v":""},"",{"$f":"Planning!H91","v":0},"00","H107","J107","I107","",null,{"$f":"IF(Setup!$AG$7<>\"\",INDIRECT(\"'\" & Setup!$AG$7 & \"'!\" & AF108),0) + IF(Setup!$AG$8<>\"\",INDIRECT(\"'\" & Setup!$AG$8 & \"'!\" & AF108),0) + IF(Setup!$AG$9<>\"\",INDIRECT(\"'\" & Setup!$AG$9 & \"'!\" & AF108),0) + IF(Setup!$AG$10<>\"\",INDIRECT(\"'\" & Setup!$AG$10 & \"'!\" & AF108),0) + IF(Setup!$AG$11<>\"\",INDIRECT(\"'\" & Setup!$AG$11 & \"'!\" & AF108),0) + IF(Setup!$AG$12<>\"\",INDIRECT(\"'\" & Setup!$AG$12 & \"'!\" & AF108),0)","v":0},{"$f":"IF(Setup!$AH$7<>\"\",INDIRECT(\"'\" & Setup!$AH$7 & \"'!\" & AF108),0) + IF(Setup!$AH$8<>\"\",INDIRECT(\"'\" & Setup!$AH$8 & \"'!\" & AF108),0) + IF(Setup!$AH$9<>\"\",INDIRECT(\"'\" & Setup!$AH$9 & \"'!\" & AF108),0) + IF(Setup!$AH$10<>\"\",INDIRECT(\"'\" & Setup!$AH$10 & \"'!\" & AF108),0) + IF(Setup!$AH$11<>\"\",INDIRECT(\"'\" & Setup!$AH$11 & \"'!\" & AF108),0) + IF(Setup!$AH$12<>\"\",INDIRECT(\"'\" & Setup!$AH$12 & \"'!\" & AF108),0)","v":0},{"$f":"IF(Setup!$AI$7<>\"\",INDIRECT(\"'\" & Setup!$AI$7 & \"'!\" & AF108),0) + IF(Setup!$AI$8<>\"\",INDIRECT(\"'\" & Setup!$AI$8 & \"'!\" & AF108),0) + IF(Setup!$AI$9<>\"\",INDIRECT(\"'\" & Setup!$AI$9 & \"'!\" & AF108),0) + IF(Setup!$AI$10<>\"\",INDIRECT(\"'\" & Setup!$AI$10 & \"'!\" & AF108),0) + IF(Setup!$AI$11<>\"\",INDIRECT(\"'\" & Setup!$AI$11 & \"'!\" & AF108),0) + IF(Setup!$AI$12<>\"\",INDIRECT(\"'\" & Setup!$AI$12 & \"'!\" & AF108),0)","v":0},{"$f":"IF(Setup!$AJ$7<>\"\",INDIRECT(\"'\" & Setup!$AJ$7 & \"'!\" & AF108),0) + IF(Setup!$AJ$8<>\"\",INDIRECT(\"'\" & Setup!$AJ$8 & \"'!\" & AF108),0) + IF(Setup!$AJ$9<>\"\",INDIRECT(\"'\" & Setup!$AJ$9 & \"'!\" & AF108),0) + IF(Setup!$AJ$10<>\"\",INDIRECT(\"'\" & Setup!$AJ$10 & \"'!\" & AF108),0) + IF(Setup!$AJ$11<>\"\",INDIRECT(\"'\" & Setup!$AJ$11 & \"'!\" & AF108),0) + IF(Setup!$AJ$12<>\"\",INDIRECT(\"'\" & Setup!$AJ$12 & \"'!\" & AF108),0)","v":0},null,"",{"$nulls":3},{"$f":"IF(C108=0,\"\",LEFT(INDEX(Lists!$H$5:$H$49,MATCH(C108,Lists!$G$5:$G$49,0),1),1))","v":""},null,"","","","","","","","","","",{"$nulls":6},{"$f":"IF(Setup!$AG$7<>\"\",INDIRECT(\"'\" & Setup!$AG$7 & \"'!\" & AD108),0) + IF(Setup!$AG$8<>\"\",INDIRECT(\"'\" & Setup!$AG$8 & \"'!\" & AD108),0) + IF(Setup!$AG$9<>\"\",INDIRECT(\"'\" & Setup!$AG$9 & \"'!\" & AD108),0) + IF(Setup!$AG$10<>\"\",INDIRECT(\"'\" & Setup!$AG$10 & \"'!\" & AD108),0) + IF(Setup!$AG$11<>\"\",INDIRECT(\"'\" & Setup!$AG$11 & \"'!\" & AD108),0) + IF(Setup!$AG$12<>\"\",INDIRECT(\"'\" & Setup!$AG$12 & \"'!\" & AD108),0)","v":0},{"$f":"IF(Setup!$AG$7<>\"\",INDIRECT(\"'\" & Setup!$AG$7 & \"'!\" & AE108),0) + IF(Setup!$AG$8<>\"\",INDIRECT(\"'\" & Setup!$AG$8 & \"'!\" & AE108),0) + IF(Setup!$AG$9<>\"\",INDIRECT(\"'\" & Setup!$AG$9 & \"'!\" & AE108),0) + IF(Setup!$AG$10<>\"\",INDIRECT(\"'\" & Setup!$AG$10 & \"'!\" & AE108),0) + IF(Setup!$AG$11<>\"\",INDIRECT(\"'\" & Setup!$AG$11 & \"'!\" & AE108),0) + IF(Setup!$AG$12<>\"\",INDIRECT(\"'\" & Setup!$AG$12 & \"'!\" & AE108),0)","v":0},{"$f":"IF(Setup!$AH$7<>\"\",INDIRECT(\"'\" & Setup!$AH$7 & \"'!\" & AD108),0) + IF(Setup!$AH$8<>\"\",INDIRECT(\"'\" & Setup!$AH$8 & \"'!\" & AD108),0) + IF(Setup!$AH$9<>\"\",INDIRECT(\"'\" & Setup!$AH$9 & \"'!\" & AD108),0) + IF(Setup!$AH$10<>\"\",INDIRECT(\"'\" & Setup!$AH$10 & \"'!\" & AD108),0) + IF(Setup!$AH$11<>\"\",INDIRECT(\"'\" & Setup!$AH$11 & \"'!\" & AD108),0) + IF(Setup!$AH$12<>\"\",INDIRECT(\"'\" & Setup!$AH$12 & \"'!\" & AD108),0)","v":0},{"$f":"IF(Setup!$AH$7<>\"\",INDIRECT(\"'\" & Setup!$AH$7 & \"'!\" & AE108),0) + IF(Setup!$AH$8<>\"\",INDIRECT(\"'\" & Setup!$AH$8 & \"'!\" & AE108),0) + IF(Setup!$AH$9<>\"\",INDIRECT(\"'\" & Setup!$AH$9 & \"'!\" & AE108),0) + IF(Setup!$AH$10<>\"\",INDIRECT(\"'\" & Setup!$AH$10 & \"'!\" & AE108),0) + IF(Setup!$AH$11<>\"\",INDIRECT(\"'\" & Setup!$AH$11 & \"'!\" & AE108),0) + IF(Setup!$AH$12<>\"\",INDIRECT(\"'\" & Setup!$AH$12 & \"'!\" & AE108),0)","v":0},{"$f":"IF(Setup!$AI$7<>\"\",INDIRECT(\"'\" & Setup!$AI$7 & \"'!\" & AD108),0) + IF(Setup!$AI$8<>\"\",INDIRECT(\"'\" & Setup!$AI$8 & \"'!\" & AD108),0) + IF(Setup!$AI$9<>\"\",INDIRECT(\"'\" & Setup!$AI$9 & \"'!\" & AD108),0) + IF(Setup!$AI$10<>\"\",INDIRECT(\"'\" & Setup!$AI$10 & \"'!\" & AD108),0) + IF(Setup!$AI$11<>\"\",INDIRECT(\"'\" & Setup!$AI$11 & \"'!\" & AD108),0) + IF(Setup!$AI$12<>\"\",INDIRECT(\"'\" & Setup!$AI$12 & \"'!\" & AD108),0)","v":0},{"$f":"IF(Setup!$AI$7<>\"\",INDIRECT(\"'\" & Setup!$AI$7 & \"'!\" & AE108),0) + IF(Setup!$AI$8<>\"\",INDIRECT(\"'\" & Setup!$AI$8 & \"'!\" & AE108),0) + IF(Setup!$AI$9<>\"\",INDIRECT(\"'\" & Setup!$AI$9 & \"'!\" & AE108),0) + IF(Setup!$AI$10<>\"\",INDIRECT(\"'\" & Setup!$AI$10 & \"'!\" & AE108),0) + IF(Setup!$AI$11<>\"\",INDIRECT(\"'\" & Setup!$AI$11 & \"'!\" & AE108),0) + IF(Setup!$AI$12<>\"\",INDIRECT(\"'\" & Setup!$AI$12 & \"'!\" & AE108),0)","v":0},{"$f":"IF(Setup!$AJ$7<>\"\",INDIRECT(\"'\" & Setup!$AJ$7 & \"'!\" & AD108),0) + IF(Setup!$AJ$8<>\"\",INDIRECT(\"'\" & Setup!$AJ$8 & \"'!\" & AD108),0) + IF(Setup!$AJ$9<>\"\",INDIRECT(\"'\" & Setup!$AJ$9 & \"'!\" & AD108),0) + IF(Setup!$AJ$10<>\"\",INDIRECT(\"'\" & Setup!$AJ$10 & \"'!\" & AD108),0) + IF(Setup!$AJ$11<>\"\",INDIRECT(\"'\" & Setup!$AJ$11 & \"'!\" & AD108),0) + IF(Setup!$AJ$12<>\"\",INDIRECT(\"'\" & Setup!$AJ$12 & \"'!\" & AD108),0)","v":0},{"$f":"IF(Setup!$AJ$7<>\"\",INDIRECT(\"'\" & Setup!$AJ$7 & \"'!\" & AE108),0) + IF(Setup!$AJ$8<>\"\",INDIRECT(\"'\" & Setup!$AJ$8 & \"'!\" & AE108),0) + IF(Setup!$AJ$9<>\"\",INDIRECT(\"'\" & Setup!$AJ$9 & \"'!\" & AE108),0) + IF(Setup!$AJ$10<>\"\",INDIRECT(\"'\" & Setup!$AJ$10 & \"'!\" & AE108),0) + IF(Setup!$AJ$11<>\"\",INDIRECT(\"'\" & Setup!$AJ$11 & \"'!\" & AE108),0) + IF(Setup!$AJ$12<>\"\",INDIRECT(\"'\" & Setup!$AJ$12 & \"'!\" & AE108),0)","v":0}]
[{"$f":"Planning!A92","v":"I084"},{"$f":"Planning!B92","v":0},{"$f":"Planning!C92","v":0},{"$f":"Planning!D92","v":0},{"$f":"Planning!E92","v":0},{"$f":"Planning!G92","v":0},null,0,0,{"$f":"IF(AND($AR109=\"2\",$AB108<>Lists!$A$17),AU109,AT109)","v":""},"",0,0,{"$f":"IF(AND($AR109=\"2\",$AB109<>Lists!$A$17),AW109,AV109)","v":""},"",0,0,{"$f":"IF(AND($AR109=\"2\",$AB109<>Lists!$A$17),AY109,AX109)","v":""},"",0,0,{"$f":"IF(AND($AR109=\"2\",$AB109<>Lists!$A$17),BA109,AZ109)","v":""},"",0,0,{"$f":"IF(AND($AR109=\"2\",$AB109<>Lists!$A$17),BC109,BB109)","v":""},"",{"$f":"Planning!H92","v":0},"00","H108","J108","I108","",null,{"$f":"IF(Setup!$AG$7<>\"\",INDIRECT(\"'\" & Setup!$AG$7 & \"'!\" & AF109),0) + IF(Setup!$AG$8<>\"\",INDIRECT(\"'\" & Setup!$AG$8 & \"'!\" & AF109),0) + IF(Setup!$AG$9<>\"\",INDIRECT(\"'\" & Setup!$AG$9 & \"'!\" & AF109),0) + IF(Setup!$AG$10<>\"\",INDIRECT(\"'\" & Setup!$AG$10 & \"'!\" & AF109),0) + IF(Setup!$AG$11<>\"\",INDIRECT(\"'\" & Setup!$AG$11 & \"'!\" & AF109),0) + IF(Setup!$AG$12<>\"\",INDIRECT(\"'\" & Setup!$AG$12 & \"'!\" & AF109),0)","v":0},{"$f":"IF(Setup!$AH$7<>\"\",INDIRECT(\"'\" & Setup!$AH$7 & \"'!\" & AF109),0) + IF(Setup!$AH$8<>\"\",INDIRECT(\"'\" & Setup!$AH$8 & \"'!\" & AF109),0) + IF(Setup!$AH$9<>\"\",INDIRECT(\"'\" & Setup!$AH$9 & \"'!\" & AF109),0) + IF(Setup!$AH$10<>\"\",INDIRECT(\"'\" & Setup!$AH$10 & \"'!\" & AF109),0) + IF(Setup!$AH$11<>\"\",INDIRECT(\"'\" & Setup!$AH$11 & \"'!\" & AF109),0) + IF(Setup!$AH$12<>\"\",INDIRECT(\"'\" & Setup!$AH$12 & \"'!\" & AF109),0)","v":0},{"$f":"IF(Setup!$AI$7<>\"\",INDIRECT(\"'\" & Setup!$AI$7 & \"'!\" & AF109),0) + IF(Setup!$AI$8<>\"\",INDIRECT(\"'\" & Setup!$AI$8 & \"'!\" & AF109),0) + IF(Setup!$AI$9<>\"\",INDIRECT(\"'\" & Setup!$AI$9 & \"'!\" & AF109),0) + IF(Setup!$AI$10<>\"\",INDIRECT(\"'\" & Setup!$AI$10 & \"'!\" & AF109),0) + IF(Setup!$AI$11<>\"\",INDIRECT(\"'\" & Setup!$AI$11 & \"'!\" & AF109),0) + IF(Setup!$AI$12<>\"\",INDIRECT(\"'\" & Setup!$AI$12 & \"'!\" & AF109),0)","v":0},{"$f":"IF(Setup!$AJ$7<>\"\",INDIRECT(\"'\" & Setup!$AJ$7 & \"'!\" & AF109),0) + IF(Setup!$AJ$8<>\"\",INDIRECT(\"'\" & Setup!$AJ$8 & \"'!\" & AF109),0) + IF(Setup!$AJ$9<>\"\",INDIRECT(\"'\" & Setup!$AJ$9 & \"'!\" & AF109),0) + IF(Setup!$AJ$10<>\"\",INDIRECT(\"'\" & Setup!$AJ$10 & \"'!\" & AF109),0) + IF(Setup!$AJ$11<>\"\",INDIRECT(\"'\" & Setup!$AJ$11 & \"'!\" & AF109),0) + IF(Setup!$AJ$12<>\"\",INDIRECT(\"'\" & Setup!$AJ$12 & \"'!\" & AF109),0)","v":0},null,"",{"$nulls":3},{"$f":"IF(C109=0,\"\",LEFT(INDEX(Lists!$H$5:$H$49,MATCH(C109,Lists!$G$5:$G$49,0),1),1))","v":""},null,"","","","","","","","","","",{"$nulls":6},{"$f":"IF(Setup!$AG$7<>\"\",INDIRECT(\"'\" & Setup!$AG$7 & \"'!\" & AD109),0) + IF(Setup!$AG$8<>\"\",INDIRECT(\"'\" & Setup!$AG$8 & \"'!\" & AD109),0) + IF(Setup!$AG$9<>\"\",INDIRECT(\"'\" & Setup!$AG$9 & \"'!\" & AD109),0) + IF(Setup!$AG$10<>\"\",INDIRECT(\"'\" & Setup!$AG$10 & \"'!\" & AD109),0) + IF(Setup!$AG$11<>\"\",INDIRECT(\"'\" & Setup!$AG$11 & \"'!\" & AD109),0) + IF(Setup!$AG$12<>\"\",INDIRECT(\"'\" & Setup!$AG$12 & \"'!\" & AD109),0)","v":0},{"$f":"IF(Setup!$AG$7<>\"\",INDIRECT(\"'\" & Setup!$AG$7 & \"'!\" & AE109),0) + IF(Setup!$AG$8<>\"\",INDIRECT(\"'\" & Setup!$AG$8 & \"'!\" & AE109),0) + IF(Setup!$AG$9<>\"\",INDIRECT(\"'\" & Setup!$AG$9 & \"'!\" & AE109),0) + IF(Setup!$AG$10<>\"\",INDIRECT(\"'\" & Setup!$AG$10 & \"'!\" & AE109),0) + IF(Setup!$AG$11<>\"\",INDIRECT(\"'\" & Setup!$AG$11 & \"'!\" & AE109),0) + IF(Setup!$AG$12<>\"\",INDIRECT(\"'\" & Setup!$AG$12 & \"'!\" & AE109),0)","v":0},{"$f":"IF(Setup!$AH$7<>\"\",INDIRECT(\"'\" & Setup!$AH$7 & \"'!\" & AD109),0) + IF(Setup!$AH$8<>\"\",INDIRECT(\"'\" & Setup!$AH$8 & \"'!\" & AD109),0) + IF(Setup!$AH$9<>\"\",INDIRECT(\"'\" & Setup!$AH$9 & \"'!\" & AD109),0) + IF(Setup!$AH$10<>\"\",INDIRECT(\"'\" & Setup!$AH$10 & \"'!\" & AD109),0) + IF(Setup!$AH$11<>\"\",INDIRECT(\"'\" & Setup!$AH$11 & \"'!\" & AD109),0) + IF(Setup!$AH$12<>\"\",INDIRECT(\"'\" & Setup!$AH$12 & \"'!\" & AD109),0)","v":0},{"$f":"IF(Setup!$AH$7<>\"\",INDIRECT(\"'\" & Setup!$AH$7 & \"'!\" & AE109),0) + IF(Setup!$AH$8<>\"\",INDIRECT(\"'\" & Setup!$AH$8 & \"'!\" & AE109),0) + IF(Setup!$AH$9<>\"\",INDIRECT(\"'\" & Setup!$AH$9 & \"'!\" & AE109),0) + IF(Setup!$AH$10<>\"\",INDIRECT(\"'\" & Setup!$AH$10 & \"'!\" & AE109),0) + IF(Setup!$AH$11<>\"\",INDIRECT(\"'\" & Setup!$AH$11 & \"'!\" & AE109),0) + IF(Setup!$AH$12<>\"\",INDIRECT(\"'\" & Setup!$AH$12 & \"'!\" & AE109),0)","v":0},{"$f":"IF(Setup!$AI$7<>\"\",INDIRECT(\"'\" & Setup!$AI$7 & \"'!\" & AD109),0) + IF(Setup!$AI$8<>\"\",INDIRECT(\"'\" & Setup!$AI$8 & \"'!\" & AD109),0) + IF(Setup!$AI$9<>\"\",INDIRECT(\"'\" & Setup!$AI$9 & \"'!\" & AD109),0) + IF(Setup!$AI$10<>\"\",INDIRECT(\"'\" & Setup!$AI$10 & \"'!\" & AD109),0) + IF(Setup!$AI$11<>\"\",INDIRECT(\"'\" & Setup!$AI$11 & \"'!\" & AD109),0) + IF(Setup!$AI$12<>\"\",INDIRECT(\"'\" & Setup!$AI$12 & \"'!\" & AD109),0)","v":0},{"$f":"IF(Setup!$AI$7<>\"\",INDIRECT(\"'\" & Setup!$AI$7 & \"'!\" & AE109),0) + IF(Setup!$AI$8<>\"\",INDIRECT(\"'\" & Setup!$AI$8 & \"'!\" & AE109),0) + IF(Setup!$AI$9<>\"\",INDIRECT(\"'\" & Setup!$AI$9 & \"'!\" & AE109),0) + IF(Setup!$AI$10<>\"\",INDIRECT(\"'\" & Setup!$AI$10 & \"'!\" & AE109),0) + IF(Setup!$AI$11<>\"\",INDIRECT(\"'\" & Setup!$AI$11 & \"'!\" & AE109),0) + IF(Setup!$AI$12<>\"\",INDIRECT(\"'\" & Setup!$AI$12 & \"'!\" & AE109),0)","v":0},{"$f":"IF(Setup!$AJ$7<>\"\",INDIRECT(\"'\" & Setup!$AJ$7 & \"'!\" & AD109),0) + IF(Setup!$AJ$8<>\"\",INDIRECT(\"'\" & Setup!$AJ$8 & \"'!\" & AD109),0) + IF(Setup!$AJ$9<>\"\",INDIRECT(\"'\" & Setup!$AJ$9 & \"'!\" & AD109),0) + IF(Setup!$AJ$10<>\"\",INDIRECT(\"'\" & Setup!$AJ$10 & \"'!\" & AD109),0) + IF(Setup!$AJ$11<>\"\",INDIRECT(\"'\" & Setup!$AJ$11 & \"'!\" & AD109),0) + IF(Setup!$AJ$12<>\"\",INDIRECT(\"'\" & Setup!$AJ$12 & \"'!\" & AD109),0)","v":0},{"$f":"IF(Setup!$AJ$7<>\"\",INDIRECT(\"'\" & Setup!$AJ$7 & \"'!\" & AE109),0) + IF(Setup!$AJ$8<>\"\",INDIRECT(\"'\" & Setup!$AJ$8 & \"'!\" & AE109),0) + IF(Setup!$AJ$9<>\"\",INDIRECT(\"'\" & Setup!$AJ$9 & \"'!\" & AE109),0) + IF(Setup!$AJ$10<>\"\",INDIRECT(\"'\" & Setup!$AJ$10 & \"'!\" & AE109),0) + IF(Setup!$AJ$11<>\"\",INDIRECT(\"'\" & Setup!$AJ$11 & \"'!\" & AE109),0) + IF(Setup!$AJ$12<>\"\",INDIRECT(\"'\" & Setup!$AJ$12 & \"'!\" & AE109),0)","v":0}]
[{"$f":"Planning!A93","v":"I085"},{"$f":"Planning!B93","v":0},{"$f":"Planning!C93","v":0},{"$f":"Planning!D93","v":0},{"$f":"Planning!E93","v":0},{"$f":"Planning!G93","v":0},null,0,0,{"$f":"IF(AND($AR110=\"2\",$AB109<>Lists!$A$17),AU110,AT110)","v":""},"",0,0,{"$f":"IF(AND($AR110=\"2\",$AB110<>Lists!$A$17),AW110,AV110)","v":""},"",0,0,{"$f":"IF(AND($AR110=\"2\",$AB110<>Lists!$A$17),AY110,AX110)","v":""},"",0,0,{"$f":"IF(AND($AR110=\"2\",$AB110<>Lists!$A$17),BA110,AZ110)","v":""},"",0,0,{"$f":"IF(AND($AR110=\"2\",$AB110<>Lists!$A$17),BC110,BB110)","v":""},"",{"$f":"Planning!H93","v":0},"00","H109","J109","I109","",null,{"$f":"IF(Setup!$AG$7<>\"\",INDIRECT(\"'\" & Setup!$AG$7 & \"'!\" & AF110),0) + IF(Setup!$AG$8<>\"\",INDIRECT(\"'\" & Setup!$AG$8 & \"'!\" & AF110),0) + IF(Setup!$AG$9<>\"\",INDIRECT(\"'\" & Setup!$AG$9 & \"'!\" & AF110),0) + IF(Setup!$AG$10<>\"\",INDIRECT(\"'\" & Setup!$AG$10 & \"'!\" & AF110),0) + IF(Setup!$AG$11<>\"\",INDIRECT(\"'\" & Setup!$AG$11 & \"'!\" & AF110),0) + IF(Setup!$AG$12<>\"\",INDIRECT(\"'\" & Setup!$AG$12 & \"'!\" & AF110),0)","v":0},{"$f":"IF(Setup!$AH$7<>\"\",INDIRECT(\"'\" & Setup!$AH$7 & \"'!\" & AF110),0) + IF(Setup!$AH$8<>\"\",INDIRECT(\"'\" & Setup!$AH$8 & \"'!\" & AF110),0) + IF(Setup!$AH$9<>\"\",INDIRECT(\"'\" & Setup!$AH$9 & \"'!\" & AF110),0) + IF(Setup!$AH$10<>\"\",INDIRECT(\"'\" & Setup!$AH$10 & \"'!\" & AF110),0) + IF(Setup!$AH$11<>\"\",INDIRECT(\"'\" & Setup!$AH$11 & \"'!\" & AF110),0) + IF(Setup!$AH$12<>\"\",INDIRECT(\"'\" & Setup!$AH$12 & \"'!\" & AF110),0)","v":0},{"$f":"IF(Setup!$AI$7<>\"\",INDIRECT(\"'\" & Setup!$AI$7 & \"'!\" & AF110),0) + IF(Setup!$AI$8<>\"\",INDIRECT(\"'\" & Setup!$AI$8 & \"'!\" & AF110),0) + IF(Setup!$AI$9<>\"\",INDIRECT(\"'\" & Setup!$AI$9 & \"'!\" & AF110),0) + IF(Setup!$AI$10<>\"\",INDIRECT(\"'\" & Setup!$AI$10 & \"'!\" & AF110),0) + IF(Setup!$AI$11<>\"\",INDIRECT(\"'\" & Setup!$AI$11 & \"'!\" & AF110),0) + IF(Setup!$AI$12<>\"\",INDIRECT(\"'\" & Setup!$AI$12 & \"'!\" & AF110),0)","v":0},{"$f":"IF(Setup!$AJ$7<>\"\",INDIRECT(\"'\" & Setup!$AJ$7 & \"'!\" & AF110),0) + IF(Setup!$AJ$8<>\"\",INDIRECT(\"'\" & Setup!$AJ$8 & \"'!\" & AF110),0) + IF(Setup!$AJ$9<>\"\",INDIRECT(\"'\" & Setup!$AJ$9 & \"'!\" & AF110),0) + IF(Setup!$AJ$10<>\"\",INDIRECT(\"'\" & Setup!$AJ$10 & \"'!\" & AF110),0) + IF(Setup!$AJ$11<>\"\",INDIRECT(\"'\" & Setup!$AJ$11 & \"'!\" & AF110),0) + IF(Setup!$AJ$12<>\"\",INDIRECT(\"'\" & Setup!$AJ$12 & \"'!\" & AF110),0)","v":0},null,"",{"$nulls":3},{"$f":"IF(C110=0,\"\",LEFT(INDEX(Lists!$H$5:$H$49,MATCH(C110,Lists!$G$5:$G$49,0),1),1))","v":""},null,"","","","","","","","","","",{"$nulls":6},{"$f":"IF(Setup!$AG$7<>\"\",INDIRECT(\"'\" & Setup!$AG$7 & \"'!\" & AD110),0) + IF(Setup!$AG$8<>\"\",INDIRECT(\"'\" & Setup!$AG$8 & \"'!\" & AD110),0) + IF(Setup!$AG$9<>\"\",INDIRECT(\"'\" & Setup!$AG$9 & \"'!\" & AD110),0) + IF(Setup!$AG$10<>\"\",INDIRECT(\"'\" & Setup!$AG$10 & \"'!\" & AD110),0) + IF(Setup!$AG$11<>\"\",INDIRECT(\"'\" & Setup!$AG$11 & \"'!\" & AD110),0) + IF(Setup!$AG$12<>\"\",INDIRECT(\"'\" & Setup!$AG$12 & \"'!\" & AD110),0)","v":0},{"$f":"IF(Setup!$AG$7<>\"\",INDIRECT(\"'\" & Setup!$AG$7 & \"'!\" & AE110),0) + IF(Setup!$AG$8<>\"\",INDIRECT(\"'\" & Setup!$AG$8 & \"'!\" & AE110),0) + IF(Setup!$AG$9<>\"\",INDIRECT(\"'\" & Setup!$AG$9 & \"'!\" & AE110),0) + IF(Setup!$AG$10<>\"\",INDIRECT(\"'\" & Setup!$AG$10 & \"'!\" & AE110),0) + IF(Setup!$AG$11<>\"\",INDIRECT(\"'\" & Setup!$AG$11 & \"'!\" & AE110),0) + IF(Setup!$AG$12<>\"\",INDIRECT(\"'\" & Setup!$AG$12 & \"'!\" & AE110),0)","v":0},{"$f":"IF(Setup!$AH$7<>\"\",INDIRECT(\"'\" & Setup!$AH$7 & \"'!\" & AD110),0) + IF(Setup!$AH$8<>\"\",INDIRECT(\"'\" & Setup!$AH$8 & \"'!\" & AD110),0) + IF(Setup!$AH$9<>\"\",INDIRECT(\"'\" & Setup!$AH$9 & \"'!\" & AD110),0) + IF(Setup!$AH$10<>\"\",INDIRECT(\"'\" & Setup!$AH$10 & \"'!\" & AD110),0) + IF(Setup!$AH$11<>\"\",INDIRECT(\"'\" & Setup!$AH$11 & \"'!\" & AD110),0) + IF(Setup!$AH$12<>\"\",INDIRECT(\"'\" & Setup!$AH$12 & \"'!\" & AD110),0)","v":0},{"$f":"IF(Setup!$AH$7<>\"\",INDIRECT(\"'\" & Setup!$AH$7 & \"'!\" & AE110),0) + IF(Setup!$AH$8<>\"\",INDIRECT(\"'\" & Setup!$AH$8 & \"'!\" & AE110),0) + IF(Setup!$AH$9<>\"\",INDIRECT(\"'\" & Setup!$AH$9 & \"'!\" & AE110),0) + IF(Setup!$AH$10<>\"\",INDIRECT(\"'\" & Setup!$AH$10 & \"'!\" & AE110),0) + IF(Setup!$AH$11<>\"\",INDIRECT(\"'\" & Setup!$AH$11 & \"'!\" & AE110),0) + IF(Setup!$AH$12<>\"\",INDIRECT(\"'\" & Setup!$AH$12 & \"'!\" & AE110),0)","v":0},{"$f":"IF(Setup!$AI$7<>\"\",INDIRECT(\"'\" & Setup!$AI$7 & \"'!\" & AD110),0) + IF(Setup!$AI$8<>\"\",INDIRECT(\"'\" & Setup!$AI$8 & \"'!\" & AD110),0) + IF(Setup!$AI$9<>\"\",INDIRECT(\"'\" & Setup!$AI$9 & \"'!\" & AD110),0) + IF(Setup!$AI$10<>\"\",INDIRECT(\"'\" & Setup!$AI$10 & \"'!\" & AD110),0) + IF(Setup!$AI$11<>\"\",INDIRECT(\"'\" & Setup!$AI$11 & \"'!\" & AD110),0) + IF(Setup!$AI$12<>\"\",INDIRECT(\"'\" & Setup!$AI$12 & \"'!\" & AD110),0)","v":0},{"$f":"IF(Setup!$AI$7<>\"\",INDIRECT(\"'\" & Setup!$AI$7 & \"'!\" & AE110),0) + IF(Setup!$AI$8<>\"\",INDIRECT(\"'\" & Setup!$AI$8 & \"'!\" & AE110),0) + IF(Setup!$AI$9<>\"\",INDIRECT(\"'\" & Setup!$AI$9 & \"'!\" & AE110),0) + IF(Setup!$AI$10<>\"\",INDIRECT(\"'\" & Setup!$AI$10 & \"'!\" & AE110),0) + IF(Setup!$AI$11<>\"\",INDIRECT(\"'\" & Setup!$AI$11 & \"'!\" & AE110),0) + IF(Setup!$AI$12<>\"\",INDIRECT(\"'\" & Setup!$AI$12 & \"'!\" & AE110),0)","v":0},{"$f":"IF(Setup!$AJ$7<>\"\",INDIRECT(\"'\" & Setup!$AJ$7 & \"'!\" & AD110),0) + IF(Setup!$AJ$8<>\"\",INDIRECT(\"'\" & Setup!$AJ$8 & \"'!\" & AD110),0) + IF(Setup!$AJ$9<>\"\",INDIRECT(\"'\" & Setup!$AJ$9 & \"'!\" & AD110),0) + IF(Setup!$AJ$10<>\"\",INDIRECT(\"'\" & Setup!$AJ$10 & \"'!\" & AD110),0) + IF(Setup!$AJ$11<>\"\",INDIRECT(\"'\" & Setup!$AJ$11 & \"'!\" & AD110),0) + IF(Setup!$AJ$12<>\"\",INDIRECT(\"'\" & Setup!$AJ$12 & \"'!\" & AD110),0)","v":0},{"$f":"IF(Setup!$AJ$7<>\"\",INDIRECT(\"'\" & Setup!$AJ$7 & \"'!\" & AE110),0) + IF(Setup!$AJ$8<>\"\",INDIRECT(\"'\" & Setup!$AJ$8 & \"'!\" & AE110),0) + IF(Setup!$AJ$9<>\"\",INDIRECT(\"'\" & Setup!$AJ$9 & \"'!\" & AE110),0) + IF(Setup!$AJ$10<>\"\",INDIRECT(\"'\" & Setup!$AJ$10 & \"'!\" & AE110),0) + IF(Setup!$AJ$11<>\"\",INDIRECT(\"'\" & Setup!$AJ$11 & \"'!\" & AE110),0) + IF(Setup!$AJ$12<>\"\",INDIRECT(\"'\" & Setup!$AJ$12 & \"'!\" & AE110),0)","v":0}]
[{"$f":"Planning!A94","v":"I086"},{"$f":"Planning!B94","v":0},{"$f":"Planning!C94","v":0},{"$f":"Planning!D94","v":0},{"$f":"Planning!E94","v":0},{"$f":"Planning!G94","v":0},null,0,0,{"$f":"IF(AND($AR111=\"2\",$AB110<>Lists!$A$17),AU111,AT111)","v":""},"",0,0,{"$f":"IF(AND($AR111=\"2\",$AB111<>Lists!$A$17),AW111,AV111)","v":""},"",0,0,{"$f":"IF(AND($AR111=\"2\",$AB111<>Lists!$A$17),AY111,AX111)","v":""},"",0,0,{"$f":"IF(AND($AR111=\"2\",$AB111<>Lists!$A$17),BA111,AZ111)","v":""},"",0,0,{"$f":"IF(AND($AR111=\"2\",$AB111<>Lists!$A$17),BC111,BB111)","v":""},"",{"$f":"Planning!H94","v":0},"00","H110","J110","I110","",null,{"$f":"IF(Setup!$AG$7<>\"\",INDIRECT(\"'\" & Setup!$AG$7 & \"'!\" & AF111),0) + IF(Setup!$AG$8<>\"\",INDIRECT(\"'\" & Setup!$AG$8 & \"'!\" & AF111),0) + IF(Setup!$AG$9<>\"\",INDIRECT(\"'\" & Setup!$AG$9 & \"'!\" & AF111),0) + IF(Setup!$AG$10<>\"\",INDIRECT(\"'\" & Setup!$AG$10 & \"'!\" & AF111),0) + IF(Setup!$AG$11<>\"\",INDIRECT(\"'\" & Setup!$AG$11 & \"'!\" & AF111),0) + IF(Setup!$AG$12<>\"\",INDIRECT(\"'\" & Setup!$AG$12 & \"'!\" & AF111),0)","v":0},{"$f":"IF(Setup!$AH$7<>\"\",INDIRECT(\"'\" & Setup!$AH$7 & \"'!\" & AF111),0) + IF(Setup!$AH$8<>\"\",INDIRECT(\"'\" & Setup!$AH$8 & \"'!\" & AF111),0) + IF(Setup!$AH$9<>\"\",INDIRECT(\"'\" & Setup!$AH$9 & \"'!\" & AF111),0) + IF(Setup!$AH$10<>\"\",INDIRECT(\"'\" & Setup!$AH$10 & \"'!\" & AF111),0) + IF(Setup!$AH$11<>\"\",INDIRECT(\"'\" & Setup!$AH$11 & \"'!\" & AF111),0) + IF(Setup!$AH$12<>\"\",INDIRECT(\"'\" & Setup!$AH$12 & \"'!\" & AF111),0)","v":0},{"$f":"IF(Setup!$AI$7<>\"\",INDIRECT(\"'\" & Setup!$AI$7 & \"'!\" & AF111),0) + IF(Setup!$AI$8<>\"\",INDIRECT(\"'\" & Setup!$AI$8 & \"'!\" & AF111),0) + IF(Setup!$AI$9<>\"\",INDIRECT(\"'\" & Setup!$AI$9 & \"'!\" & AF111),0) + IF(Setup!$AI$10<>\"\",INDIRECT(\"'\" & Setup!$AI$10 & \"'!\" & AF111),0) + IF(Setup!$AI$11<>\"\",INDIRECT(\"'\" & Setup!$AI$11 & \"'!\" & AF111),0) + IF(Setup!$AI$12<>\"\",INDIRECT(\"'\" & Setup!$AI$12 & \"'!\" & AF111),0)","v":0},{"$f":"IF(Setup!$AJ$7<>\"\",INDIRECT(\"'\" & Setup!$AJ$7 & \"'!\" & AF111),0) + IF(Setup!$AJ$8<>\"\",INDIRECT(\"'\" & Setup!$AJ$8 & \"'!\" & AF111),0) + IF(Setup!$AJ$9<>\"\",INDIRECT(\"'\" & Setup!$AJ$9 & \"'!\" & AF111),0) + IF(Setup!$AJ$10<>\"\",INDIRECT(\"'\" & Setup!$AJ$10 & \"'!\" & AF111),0) + IF(Setup!$AJ$11<>\"\",INDIRECT(\"'\" & Setup!$AJ$11 & \"'!\" & AF111),0) + IF(Setup!$AJ$12<>\"\",INDIRECT(\"'\" & Setup!$AJ$12 & \"'!\" & AF111),0)","v":0},null,"",{"$nulls":3},{"$f":"IF(C111=0,\"\",LEFT(INDEX(Lists!$H$5:$H$49,MATCH(C111,Lists!$G$5:$G$49,0),1),1))","v":""},null,"","","","","","","","","","",{"$nulls":6},{"$f":"IF(Setup!$AG$7<>\"\",INDIRECT(\"'\" & Setup!$AG$7 & \"'!\" & AD111),0) + IF(Setup!$AG$8<>\"\",INDIRECT(\"'\" & Setup!$AG$8 & \"'!\" & AD111),0) + IF(Setup!$AG$9<>\"\",INDIRECT(\"'\" & Setup!$AG$9 & \"'!\" & AD111),0) + IF(Setup!$AG$10<>\"\",INDIRECT(\"'\" & Setup!$AG$10 & \"'!\" & AD111),0) + IF(Setup!$AG$11<>\"\",INDIRECT(\"'\" & Setup!$AG$11 & \"'!\" & AD111),0) + IF(Setup!$AG$12<>\"\",INDIRECT(\"'\" & Setup!$AG$12 & \"'!\" & AD111),0)","v":0},{"$f":"IF(Setup!$AG$7<>\"\",INDIRECT(\"'\" & Setup!$AG$7 & \"'!\" & AE111),0) + IF(Setup!$AG$8<>\"\",INDIRECT(\"'\" & Setup!$AG$8 & \"'!\" & AE111),0) + IF(Setup!$AG$9<>\"\",INDIRECT(\"'\" & Setup!$AG$9 & \"'!\" & AE111),0) + IF(Setup!$AG$10<>\"\",INDIRECT(\"'\" & Setup!$AG$10 & \"'!\" & AE111),0) + IF(Setup!$AG$11<>\"\",INDIRECT(\"'\" & Setup!$AG$11 & \"'!\" & AE111),0) + IF(Setup!$AG$12<>\"\",INDIRECT(\"'\" & Setup!$AG$12 & \"'!\" & AE111),0)","v":0},{"$f":"IF(Setup!$AH$7<>\"\",INDIRECT(\"'\" & Setup!$AH$7 & \"'!\" & AD111),0) + IF(Setup!$AH$8<>\"\",INDIRECT(\"'\" & Setup!$AH$8 & \"'!\" & AD111),0) + IF(Setup!$AH$9<>\"\",INDIRECT(\"'\" & Setup!$AH$9 & \"'!\" & AD111),0) + IF(Setup!$AH$10<>\"\",INDIRECT(\"'\" & Setup!$AH$10 & \"'!\" & AD111),0) + IF(Setup!$AH$11<>\"\",INDIRECT(\"'\" & Setup!$AH$11 & \"'!\" & AD111),0) + IF(Setup!$AH$12<>\"\",INDIRECT(\"'\" & Setup!$AH$12 & \"'!\" & AD111),0)","v":0},{"$f":"IF(Setup!$AH$7<>\"\",INDIRECT(\"'\" & Setup!$AH$7 & \"'!\" & AE111),0) + IF(Setup!$AH$8<>\"\",INDIRECT(\"'\" & Setup!$AH$8 & \"'!\" & AE111),0) + IF(Setup!$AH$9<>\"\",INDIRECT(\"'\" & Setup!$AH$9 & \"'!\" & AE111),0) + IF(Setup!$AH$10<>\"\",INDIRECT(\"'\" & Setup!$AH$10 & \"'!\" & AE111),0) + IF(Setup!$AH$11<>\"\",INDIRECT(\"'\" & Setup!$AH$11 & \"'!\" & AE111),0) + IF(Setup!$AH$12<>\"\",INDIRECT(\"'\" & Setup!$AH$12 & \"'!\" & AE111),0)","v":0},{"$f":"IF(Setup!$AI$7<>\"\",INDIRECT(\"'\" & Setup!$AI$7 & \"'!\" & AD111),0) + IF(Setup!$AI$8<>\"\",INDIRECT(\"'\" & Setup!$AI$8 & \"'!\" & AD111),0) + IF(Setup!$AI$9<>\"\",INDIRECT(\"'\" & Setup!$AI$9 & \"'!\" & AD111),0) + IF(Setup!$AI$10<>\"\",INDIRECT(\"'\" & Setup!$AI$10 & \"'!\" & AD111),0) + IF(Setup!$AI$11<>\"\",INDIRECT(\"'\" & Setup!$AI$11 & \"'!\" & AD111),0) + IF(Setup!$AI$12<>\"\",INDIRECT(\"'\" & Setup!$AI$12 & \"'!\" & AD111),0)","v":0},{"$f":"IF(Setup!$AI$7<>\"\",INDIRECT(\"'\" & Setup!$AI$7 & \"'!\" & AE111),0) + IF(Setup!$AI$8<>\"\",INDIRECT(\"'\" & Setup!$AI$8 & \"'!\" & AE111),0) + IF(Setup!$AI$9<>\"\",INDIRECT(\"'\" & Setup!$AI$9 & \"'!\" & AE111),0) + IF(Setup!$AI$10<>\"\",INDIRECT(\"'\" & Setup!$AI$10 & \"'!\" & AE111),0) + IF(Setup!$AI$11<>\"\",INDIRECT(\"'\" & Setup!$AI$11 & \"'!\" & AE111),0) + IF(Setup!$AI$12<>\"\",INDIRECT(\"'\" & Setup!$AI$12 & \"'!\" & AE111),0)","v":0},{"$f":"IF(Setup!$AJ$7<>\"\",INDIRECT(\"'\" & Setup!$AJ$7 & \"'!\" & AD111),0) + IF(Setup!$AJ$8<>\"\",INDIRECT(\"'\" & Setup!$AJ$8 & \"'!\" & AD111),0) + IF(Setup!$AJ$9<>\"\",INDIRECT(\"'\" & Setup!$AJ$9 & \"'!\" & AD111),0) + IF(Setup!$AJ$10<>\"\",INDIRECT(\"'\" & Setup!$AJ$10 & \"'!\" & AD111),0) + IF(Setup!$AJ$11<>\"\",INDIRECT(\"'\" & Setup!$AJ$11 & \"'!\" & AD111),0) + IF(Setup!$AJ$12<>\"\",INDIRECT(\"'\" & Setup!$AJ$12 & \"'!\" & AD111),0)","v":0},{"$f":"IF(Setup!$AJ$7<>\"\",INDIRECT(\"'\" & Setup!$AJ$7 & \"'!\" & AE111),0) + IF(Setup!$AJ$8<>\"\",INDIRECT(\"'\" & Setup!$AJ$8 & \"'!\" & AE111),0) + IF(Setup!$AJ$9<>\"\",INDIRECT(\"'\" & Setup!$AJ$9 & \"'!\" & AE111),0) + IF(Setup!$AJ$10<>\"\",INDIRECT(\"'\" & Setup!$AJ$10 & \"'!\" & AE111),0) + IF(Setup!$AJ$11<>\"\",INDIRECT(\"'\" & Setup!$AJ$11 & \"'!\" & AE111),0) + IF(Setup!$AJ$12<>\"\",INDIRECT(\"'\" & Setup!$AJ$12 & \"'!\" & AE111),0)","v":0}]
[{"$f":"Planning!A95","v":"I087"},{"$f":"Planning!B95","v":0},{"$f":"Planning!C95","v":0},{"$f":"Planning!D95","v":0},{"$f":"Planning!E95","v":0},{"$f":"Planning!G95","v":0},null,0,0,{"$f":"IF(AND($AR112=\"2\",$AB111<>Lists!$A$17),AU112,AT112)","v":""},"",0,0,{"$f":"IF(AND($AR112=\"2\",$AB112<>Lists!$A$17),AW112,AV112)","v":""},"",0,0,{"$f":"IF(AND($AR112=\"2\",$AB112<>Lists!$A$17),AY112,AX112)","v":""},"",0,0,{"$f":"IF(AND($AR112=\"2\",$AB112<>Lists!$A$17),BA112,AZ112)","v":""},"",0,0,{"$f":"IF(AND($AR112=\"2\",$AB112<>Lists!$A$17),BC112,BB112)","v":""},"",{"$f":"Planning!H95","v":0},"00","H111","J111","I111","",null,{"$f":"IF(Setup!$AG$7<>\"\",INDIRECT(\"'\" & Setup!$AG$7 & \"'!\" & AF112),0) + IF(Setup!$AG$8<>\"\",INDIRECT(\"'\" & Setup!$AG$8 & \"'!\" & AF112),0) + IF(Setup!$AG$9<>\"\",INDIRECT(\"'\" & Setup!$AG$9 & \"'!\" & AF112),0) + IF(Setup!$AG$10<>\"\",INDIRECT(\"'\" & Setup!$AG$10 & \"'!\" & AF112),0) + IF(Setup!$AG$11<>\"\",INDIRECT(\"'\" & Setup!$AG$11 & \"'!\" & AF112),0) + IF(Setup!$AG$12<>\"\",INDIRECT(\"'\" & Setup!$AG$12 & \"'!\" & AF112),0)","v":0},{"$f":"IF(Setup!$AH$7<>\"\",INDIRECT(\"'\" & Setup!$AH$7 & \"'!\" & AF112),0) + IF(Setup!$AH$8<>\"\",INDIRECT(\"'\" & Setup!$AH$8 & \"'!\" & AF112),0) + IF(Setup!$AH$9<>\"\",INDIRECT(\"'\" & Setup!$AH$9 & \"'!\" & AF112),0) + IF(Setup!$AH$10<>\"\",INDIRECT(\"'\" & Setup!$AH$10 & \"'!\" & AF112),0) + IF(Setup!$AH$11<>\"\",INDIRECT(\"'\" & Setup!$AH$11 & \"'!\" & AF112),0) + IF(Setup!$AH$12<>\"\",INDIRECT(\"'\" & Setup!$AH$12 & \"'!\" & AF112),0)","v":0},{"$f":"IF(Setup!$AI$7<>\"\",INDIRECT(\"'\" & Setup!$AI$7 & \"'!\" & AF112),0) + IF(Setup!$AI$8<>\"\",INDIRECT(\"'\" & Setup!$AI$8 & \"'!\" & AF112),0) + IF(Setup!$AI$9<>\"\",INDIRECT(\"'\" & Setup!$AI$9 & \"'!\" & AF112),0) + IF(Setup!$AI$10<>\"\",INDIRECT(\"'\" & Setup!$AI$10 & \"'!\" & AF112),0) + IF(Setup!$AI$11<>\"\",INDIRECT(\"'\" & Setup!$AI$11 & \"'!\" & AF112),0) + IF(Setup!$AI$12<>\"\",INDIRECT(\"'\" & Setup!$AI$12 & \"'!\" & AF112),0)","v":0},{"$f":"IF(Setup!$AJ$7<>\"\",INDIRECT(\"'\" & Setup!$AJ$7 & \"'!\" & AF112),0) + IF(Setup!$AJ$8<>\"\",INDIRECT(\"'\" & Setup!$AJ$8 & \"'!\" & AF112),0) + IF(Setup!$AJ$9<>\"\",INDIRECT(\"'\" & Setup!$AJ$9 & \"'!\" & AF112),0) + IF(Setup!$AJ$10<>\"\",INDIRECT(\"'\" & Setup!$AJ$10 & \"'!\" & AF112),0) + IF(Setup!$AJ$11<>\"\",INDIRECT(\"'\" & Setup!$AJ$11 & \"'!\" & AF112),0) + IF(Setup!$AJ$12<>\"\",INDIRECT(\"'\" & Setup!$AJ$12 & \"'!\" & AF112),0)","v":0},null,"",{"$nulls":3},{"$f":"IF(C112=0,\"\",LEFT(INDEX(Lists!$H$5:$H$49,MATCH(C112,Lists!$G$5:$G$49,0),1),1))","v":""},null,"","","","","","","","","","",{"$nulls":6},{"$f":"IF(Setup!$AG$7<>\"\",INDIRECT(\"'\" & Setup!$AG$7 & \"'!\" & AD112),0) + IF(Setup!$AG$8<>\"\",INDIRECT(\"'\" & Setup!$AG$8 & \"'!\" & AD112),0) + IF(Setup!$AG$9<>\"\",INDIRECT(\"'\" & Setup!$AG$9 & \"'!\" & AD112),0) + IF(Setup!$AG$10<>\"\",INDIRECT(\"'\" & Setup!$AG$10 & \"'!\" & AD112),0) + IF(Setup!$AG$11<>\"\",INDIRECT(\"'\" & Setup!$AG$11 & \"'!\" & AD112),0) + IF(Setup!$AG$12<>\"\",INDIRECT(\"'\" & Setup!$AG$12 & \"'!\" & AD112),0)","v":0},{"$f":"IF(Setup!$AG$7<>\"\",INDIRECT(\"'\" & Setup!$AG$7 & \"'!\" & AE112),0) + IF(Setup!$AG$8<>\"\",INDIRECT(\"'\" & Setup!$AG$8 & \"'!\" & AE112),0) + IF(Setup!$AG$9<>\"\",INDIRECT(\"'\" & Setup!$AG$9 & \"'!\" & AE112),0) + IF(Setup!$AG$10<>\"\",INDIRECT(\"'\" & Setup!$AG$10 & \"'!\" & AE112),0) + IF(Setup!$AG$11<>\"\",INDIRECT(\"'\" & Setup!$AG$11 & \"'!\" & AE112),0) + IF(Setup!$AG$12<>\"\",INDIRECT(\"'\" & Setup!$AG$12 & \"'!\" & AE112),0)","v":0},{"$f":"IF(Setup!$AH$7<>\"\",INDIRECT(\"'\" & Setup!$AH$7 & \"'!\" & AD112),0) + IF(Setup!$AH$8<>\"\",INDIRECT(\"'\" & Setup!$AH$8 & \"'!\" & AD112),0) + IF(Setup!$AH$9<>\"\",INDIRECT(\"'\" & Setup!$AH$9 & \"'!\" & AD112),0) + IF(Setup!$AH$10<>\"\",INDIRECT(\"'\" & Setup!$AH$10 & \"'!\" & AD112),0) + IF(Setup!$AH$11<>\"\",INDIRECT(\"'\" & Setup!$AH$11 & \"'!\" & AD112),0) + IF(Setup!$AH$12<>\"\",INDIRECT(\"'\" & Setup!$AH$12 & \"'!\" & AD112),0)","v":0},{"$f":"IF(Setup!$AH$7<>\"\",INDIRECT(\"'\" & Setup!$AH$7 & \"'!\" & AE112),0) + IF(Setup!$AH$8<>\"\",INDIRECT(\"'\" & Setup!$AH$8 & \"'!\" & AE112),0) + IF(Setup!$AH$9<>\"\",INDIRECT(\"'\" & Setup!$AH$9 & \"'!\" & AE112),0) + IF(Setup!$AH$10<>\"\",INDIRECT(\"'\" & Setup!$AH$10 & \"'!\" & AE112),0) + IF(Setup!$AH$11<>\"\",INDIRECT(\"'\" & Setup!$AH$11 & \"'!\" & AE112),0) + IF(Setup!$AH$12<>\"\",INDIRECT(\"'\" & Setup!$AH$12 & \"'!\" & AE112),0)","v":0},{"$f":"IF(Setup!$AI$7<>\"\",INDIRECT(\"'\" & Setup!$AI$7 & \"'!\" & AD112),0) + IF(Setup!$AI$8<>\"\",INDIRECT(\"'\" & Setup!$AI$8 & \"'!\" & AD112),0) + IF(Setup!$AI$9<>\"\",INDIRECT(\"'\" & Setup!$AI$9 & \"'!\" & AD112),0) + IF(Setup!$AI$10<>\"\",INDIRECT(\"'\" & Setup!$AI$10 & \"'!\" & AD112),0) + IF(Setup!$AI$11<>\"\",INDIRECT(\"'\" & Setup!$AI$11 & \"'!\" & AD112),0) + IF(Setup!$AI$12<>\"\",INDIRECT(\"'\" & Setup!$AI$12 & \"'!\" & AD112),0)","v":0},{"$f":"IF(Setup!$AI$7<>\"\",INDIRECT(\"'\" & Setup!$AI$7 & \"'!\" & AE112),0) + IF(Setup!$AI$8<>\"\",INDIRECT(\"'\" & Setup!$AI$8 & \"'!\" & AE112),0) + IF(Setup!$AI$9<>\"\",INDIRECT(\"'\" & Setup!$AI$9 & \"'!\" & AE112),0) + IF(Setup!$AI$10<>\"\",INDIRECT(\"'\" & Setup!$AI$10 & \"'!\" & AE112),0) + IF(Setup!$AI$11<>\"\",INDIRECT(\"'\" & Setup!$AI$11 & \"'!\" & AE112),0) + IF(Setup!$AI$12<>\"\",INDIRECT(\"'\" & Setup!$AI$12 & \"'!\" & AE112),0)","v":0},{"$f":"IF(Setup!$AJ$7<>\"\",INDIRECT(\"'\" & Setup!$AJ$7 & \"'!\" & AD112),0) + IF(Setup!$AJ$8<>\"\",INDIRECT(\"'\" & Setup!$AJ$8 & \"'!\" & AD112),0) + IF(Setup!$AJ$9<>\"\",INDIRECT(\"'\" & Setup!$AJ$9 & \"'!\" & AD112),0) + IF(Setup!$AJ$10<>\"\",INDIRECT(\"'\" & Setup!$AJ$10 & \"'!\" & AD112),0) + IF(Setup!$AJ$11<>\"\",INDIRECT(\"'\" & Setup!$AJ$11 & \"'!\" & AD112),0) + IF(Setup!$AJ$12<>\"\",INDIRECT(\"'\" & Setup!$AJ$12 & \"'!\" & AD112),0)","v":0},{"$f":"IF(Setup!$AJ$7<>\"\",INDIRECT(\"'\" & Setup!$AJ$7 & \"'!\" & AE112),0) + IF(Setup!$AJ$8<>\"\",INDIRECT(\"'\" & Setup!$AJ$8 & \"'!\" & AE112),0) + IF(Setup!$AJ$9<>\"\",INDIRECT(\"'\" & Setup!$AJ$9 & \"'!\" & AE112),0) + IF(Setup!$AJ$10<>\"\",INDIRECT(\"'\" & Setup!$AJ$10 & \"'!\" & AE112),0) + IF(Setup!$AJ$11<>\"\",INDIRECT(\"'\" & Setup!$AJ$11 & \"'!\" & AE112),0) + IF(Setup!$AJ$12<>\"\",INDIRECT(\"'\" & Setup!$AJ$12 & \"'!\" & AE112),0)","v":0}]
[{"$f":"Planning!A96","v":"I088"},{"$f":"Planning!B96","v":0},{"$f":"Planning!C96","v":0},{"$f":"Planning!D96","v":0},{"$f":"Planning!E96","v":0},{"$f":"Planning!G96","v":0},null,0,0,{"$f":"IF(AND($AR113=\"2\",$AB112<>Lists!$A$17),AU113,AT113)","v":""},"",0,0,{"$f":"IF(AND($AR113=\"2\",$AB113<>Lists!$A$17),AW113,AV113)","v":""},"",0,0,{"$f":"IF(AND($AR113=\"2\",$AB113<>Lists!$A$17),AY113,AX113)","v":""},"",0,0,{"$f":"IF(AND($AR113=\"2\",$AB113<>Lists!$A$17),BA113,AZ113)","v":""},"",0,0,{"$f":"IF(AND($AR113=\"2\",$AB113<>Lists!$A$17),BC113,BB113)","v":""},"",{"$f":"Planning!H96","v":0},"00","H112","J112","I112","",null,{"$f":"IF(Setup!$AG$7<>\"\",INDIRECT(\"'\" & Setup!$AG$7 & \"'!\" & AF113),0) + IF(Setup!$AG$8<>\"\",INDIRECT(\"'\" & Setup!$AG$8 & \"'!\" & AF113),0) + IF(Setup!$AG$9<>\"\",INDIRECT(\"'\" & Setup!$AG$9 & \"'!\" & AF113),0) + IF(Setup!$AG$10<>\"\",INDIRECT(\"'\" & Setup!$AG$10 & \"'!\" & AF113),0) + IF(Setup!$AG$11<>\"\",INDIRECT(\"'\" & Setup!$AG$11 & \"'!\" & AF113),0) + IF(Setup!$AG$12<>\"\",INDIRECT(\"'\" & Setup!$AG$12 & \"'!\" & AF113),0)","v":0},{"$f":"IF(Setup!$AH$7<>\"\",INDIRECT(\"'\" & Setup!$AH$7 & \"'!\" & AF113),0) + IF(Setup!$AH$8<>\"\",INDIRECT(\"'\" & Setup!$AH$8 & \"'!\" & AF113),0) + IF(Setup!$AH$9<>\"\",INDIRECT(\"'\" & Setup!$AH$9 & \"'!\" & AF113),0) + IF(Setup!$AH$10<>\"\",INDIRECT(\"'\" & Setup!$AH$10 & \"'!\" & AF113),0) + IF(Setup!$AH$11<>\"\",INDIRECT(\"'\" & Setup!$AH$11 & \"'!\" & AF113),0) + IF(Setup!$AH$12<>\"\",INDIRECT(\"'\" & Setup!$AH$12 & \"'!\" & AF113),0)","v":0},{"$f":"IF(Setup!$AI$7<>\"\",INDIRECT(\"'\" & Setup!$AI$7 & \"'!\" & AF113),0) + IF(Setup!$AI$8<>\"\",INDIRECT(\"'\" & Setup!$AI$8 & \"'!\" & AF113),0) + IF(Setup!$AI$9<>\"\",INDIRECT(\"'\" & Setup!$AI$9 & \"'!\" & AF113),0) + IF(Setup!$AI$10<>\"\",INDIRECT(\"'\" & Setup!$AI$10 & \"'!\" & AF113),0) + IF(Setup!$AI$11<>\"\",INDIRECT(\"'\" & Setup!$AI$11 & \"'!\" & AF113),0) + IF(Setup!$AI$12<>\"\",INDIRECT(\"'\" & Setup!$AI$12 & \"'!\" & AF113),0)","v":0},{"$f":"IF(Setup!$AJ$7<>\"\",INDIRECT(\"'\" & Setup!$AJ$7 & \"'!\" & AF113),0) + IF(Setup!$AJ$8<>\"\",INDIRECT(\"'\" & Setup!$AJ$8 & \"'!\" & AF113),0) + IF(Setup!$AJ$9<>\"\",INDIRECT(\"'\" & Setup!$AJ$9 & \"'!\" & AF113),0) + IF(Setup!$AJ$10<>\"\",INDIRECT(\"'\" & Setup!$AJ$10 & \"'!\" & AF113),0) + IF(Setup!$AJ$11<>\"\",INDIRECT(\"'\" & Setup!$AJ$11 & \"'!\" & AF113),0) + IF(Setup!$AJ$12<>\"\",INDIRECT(\"'\" & Setup!$AJ$12 & \"'!\" & AF113),0)","v":0},null,"",{"$nulls":3},{"$f":"IF(C113=0,\"\",LEFT(INDEX(Lists!$H$5:$H$49,MATCH(C113,Lists!$G$5:$G$49,0),1),1))","v":""},null,"","","","","","","","","","",{"$nulls":6},{"$f":"IF(Setup!$AG$7<>\"\",INDIRECT(\"'\" & Setup!$AG$7 & \"'!\" & AD113),0) + IF(Setup!$AG$8<>\"\",INDIRECT(\"'\" & Setup!$AG$8 & \"'!\" & AD113),0) + IF(Setup!$AG$9<>\"\",INDIRECT(\"'\" & Setup!$AG$9 & \"'!\" & AD113),0) + IF(Setup!$AG$10<>\"\",INDIRECT(\"'\" & Setup!$AG$10 & \"'!\" & AD113),0) + IF(Setup!$AG$11<>\"\",INDIRECT(\"'\" & Setup!$AG$11 & \"'!\" & AD113),0) + IF(Setup!$AG$12<>\"\",INDIRECT(\"'\" & Setup!$AG$12 & \"'!\" & AD113),0)","v":0},{"$f":"IF(Setup!$AG$7<>\"\",INDIRECT(\"'\" & Setup!$AG$7 & \"'!\" & AE113),0) + IF(Setup!$AG$8<>\"\",INDIRECT(\"'\" & Setup!$AG$8 & \"'!\" & AE113),0) + IF(Setup!$AG$9<>\"\",INDIRECT(\"'\" & Setup!$AG$9 & \"'!\" & AE113),0) + IF(Setup!$AG$10<>\"\",INDIRECT(\"'\" & Setup!$AG$10 & \"'!\" & AE113),0) + IF(Setup!$AG$11<>\"\",INDIRECT(\"'\" & Setup!$AG$11 & \"'!\" & AE113),0) + IF(Setup!$AG$12<>\"\",INDIRECT(\"'\" & Setup!$AG$12 & \"'!\" & AE113),0)","v":0},{"$f":"IF(Setup!$AH$7<>\"\",INDIRECT(\"'\" & Setup!$AH$7 & \"'!\" & AD113),0) + IF(Setup!$AH$8<>\"\",INDIRECT(\"'\" & Setup!$AH$8 & \"'!\" & AD113),0) + IF(Setup!$AH$9<>\"\",INDIRECT(\"'\" & Setup!$AH$9 & \"'!\" & AD113),0) + IF(Setup!$AH$10<>\"\",INDIRECT(\"'\" & Setup!$AH$10 & \"'!\" & AD113),0) + IF(Setup!$AH$11<>\"\",INDIRECT(\"'\" & Setup!$AH$11 & \"'!\" & AD113),0) + IF(Setup!$AH$12<>\"\",INDIRECT(\"'\" & Setup!$AH$12 & \"'!\" & AD113),0)","v":0},{"$f":"IF(Setup!$AH$7<>\"\",INDIRECT(\"'\" & Setup!$AH$7 & \"'!\" & AE113),0) + IF(Setup!$AH$8<>\"\",INDIRECT(\"'\" & Setup!$AH$8 & \"'!\" & AE113),0) + IF(Setup!$AH$9<>\"\",INDIRECT(\"'\" & Setup!$AH$9 & \"'!\" & AE113),0) + IF(Setup!$AH$10<>\"\",INDIRECT(\"'\" & Setup!$AH$10 & \"'!\" & AE113),0) + IF(Setup!$AH$11<>\"\",INDIRECT(\"'\" & Setup!$AH$11 & \"'!\" & AE113),0) + IF(Setup!$AH$12<>\"\",INDIRECT(\"'\" & Setup!$AH$12 & \"'!\" & AE113),0)","v":0},{"$f":"IF(Setup!$AI$7<>\"\",INDIRECT(\"'\" & Setup!$AI$7 & \"'!\" & AD113),0) + IF(Setup!$AI$8<>\"\",INDIRECT(\"'\" & Setup!$AI$8 & \"'!\" & AD113),0) + IF(Setup!$AI$9<>\"\",INDIRECT(\"'\" & Setup!$AI$9 & \"'!\" & AD113),0) + IF(Setup!$AI$10<>\"\",INDIRECT(\"'\" & Setup!$AI$10 & \"'!\" & AD113),0) + IF(Setup!$AI$11<>\"\",INDIRECT(\"'\" & Setup!$AI$11 & \"'!\" & AD113),0) + IF(Setup!$AI$12<>\"\",INDIRECT(\"'\" & Setup!$AI$12 & \"'!\" & AD113),0)","v":0},{"$f":"IF(Setup!$AI$7<>\"\",INDIRECT(\"'\" & Setup!$AI$7 & \"'!\" & AE113),0) + IF(Setup!$AI$8<>\"\",INDIRECT(\"'\" & Setup!$AI$8 & \"'!\" & AE113),0) + IF(Setup!$AI$9<>\"\",INDIRECT(\"'\" & Setup!$AI$9 & \"'!\" & AE113),0) + IF(Setup!$AI$10<>\"\",INDIRECT(\"'\" & Setup!$AI$10 & \"'!\" & AE113),0) + IF(Setup!$AI$11<>\"\",INDIRECT(\"'\" & Setup!$AI$11 & \"'!\" & AE113),0) + IF(Setup!$AI$12<>\"\",INDIRECT(\"'\" & Setup!$AI$12 & \"'!\" & AE113),0)","v":0},{"$f":"IF(Setup!$AJ$7<>\"\",INDIRECT(\"'\" & Setup!$AJ$7 & \"'!\" & AD113),0) + IF(Setup!$AJ$8<>\"\",INDIRECT(\"'\" & Setup!$AJ$8 & \"'!\" & AD113),0) + IF(Setup!$AJ$9<>\"\",INDIRECT(\"'\" & Setup!$AJ$9 & \"'!\" & AD113),0) + IF(Setup!$AJ$10<>\"\",INDIRECT(\"'\" & Setup!$AJ$10 & \"'!\" & AD113),0) + IF(Setup!$AJ$11<>\"\",INDIRECT(\"'\" & Setup!$AJ$11 & \"'!\" & AD113),0) + IF(Setup!$AJ$12<>\"\",INDIRECT(\"'\" & Setup!$AJ$12 & \"'!\" & AD113),0)","v":0},{"$f":"IF(Setup!$AJ$7<>\"\",INDIRECT(\"'\" & Setup!$AJ$7 & \"'!\" & AE113),0) + IF(Setup!$AJ$8<>\"\",INDIRECT(\"'\" & Setup!$AJ$8 & \"'!\" & AE113),0) + IF(Setup!$AJ$9<>\"\",INDIRECT(\"'\" & Setup!$AJ$9 & \"'!\" & AE113),0) + IF(Setup!$AJ$10<>\"\",INDIRECT(\"'\" & Setup!$AJ$10 & \"'!\" & AE113),0) + IF(Setup!$AJ$11<>\"\",INDIRECT(\"'\" & Setup!$AJ$11 & \"'!\" & AE113),0) + IF(Setup!$AJ$12<>\"\",INDIRECT(\"'\" & Setup!$AJ$12 & \"'!\" & AE113),0)","v":0}]
[{"$f":"Planning!A97","v":"I089"},{"$f":"Planning!B97","v":0},{"$f":"Planning!C97","v":0},{"$f":"Planning!D97","v":0},{"$f":"Planning!E97","v":0},{"$f":"Planning!G97","v":0},null,0,0,{"$f":"IF(AND($AR114=\"2\",$AB113<>Lists!$A$17),AU114,AT114)","v":""},"",0,0,{"$f":"IF(AND($AR114=\"2\",$AB114<>Lists!$A$17),AW114,AV114)","v":""},"",0,0,{"$f":"IF(AND($AR114=\"2\",$AB114<>Lists!$A$17),AY114,AX114)","v":""},"",0,0,{"$f":"IF(AND($AR114=\"2\",$AB114<>Lists!$A$17),BA114,AZ114)","v":""},"",0,0,{"$f":"IF(AND($AR114=\"2\",$AB114<>Lists!$A$17),BC114,BB114)","v":""},"",{"$f":"Planning!H97","v":0},"00","H113","J113","I113","",null,{"$f":"IF(Setup!$AG$7<>\"\",INDIRECT(\"'\" & Setup!$AG$7 & \"'!\" & AF114),0) + IF(Setup!$AG$8<>\"\",INDIRECT(\"'\" & Setup!$AG$8 & \"'!\" & AF114),0) + IF(Setup!$AG$9<>\"\",INDIRECT(\"'\" & Setup!$AG$9 & \"'!\" & AF114),0) + IF(Setup!$AG$10<>\"\",INDIRECT(\"'\" & Setup!$AG$10 & \"'!\" & AF114),0) + IF(Setup!$AG$11<>\"\",INDIRECT(\"'\" & Setup!$AG$11 & \"'!\" & AF114),0) + IF(Setup!$AG$12<>\"\",INDIRECT(\"'\" & Setup!$AG$12 & \"'!\" & AF114),0)","v":0},{"$f":"IF(Setup!$AH$7<>\"\",INDIRECT(\"'\" & Setup!$AH$7 & \"'!\" & AF114),0) + IF(Setup!$AH$8<>\"\",INDIRECT(\"'\" & Setup!$AH$8 & \"'!\" & AF114),0) + IF(Setup!$AH$9<>\"\",INDIRECT(\"'\" & Setup!$AH$9 & \"'!\" & AF114),0) + IF(Setup!$AH$10<>\"\",INDIRECT(\"'\" & Setup!$AH$10 & \"'!\" & AF114),0) + IF(Setup!$AH$11<>\"\",INDIRECT(\"'\" & Setup!$AH$11 & \"'!\" & AF114),0) + IF(Setup!$AH$12<>\"\",INDIRECT(\"'\" & Setup!$AH$12 & \"'!\" & AF114),0)","v":0},{"$f":"IF(Setup!$AI$7<>\"\",INDIRECT(\"'\" & Setup!$AI$7 & \"'!\" & AF114),0) + IF(Setup!$AI$8<>\"\",INDIRECT(\"'\" & Setup!$AI$8 & \"'!\" & AF114),0) + IF(Setup!$AI$9<>\"\",INDIRECT(\"'\" & Setup!$AI$9 & \"'!\" & AF114),0) + IF(Setup!$AI$10<>\"\",INDIRECT(\"'\" & Setup!$AI$10 & \"'!\" & AF114),0) + IF(Setup!$AI$11<>\"\",INDIRECT(\"'\" & Setup!$AI$11 & \"'!\" & AF114),0) + IF(Setup!$AI$12<>\"\",INDIRECT(\"'\" & Setup!$AI$12 & \"'!\" & AF114),0)","v":0},{"$f":"IF(Setup!$AJ$7<>\"\",INDIRECT(\"'\" & Setup!$AJ$7 & \"'!\" & AF114),0) + IF(Setup!$AJ$8<>\"\",INDIRECT(\"'\" & Setup!$AJ$8 & \"'!\" & AF114),0) + IF(Setup!$AJ$9<>\"\",INDIRECT(\"'\" & Setup!$AJ$9 & \"'!\" & AF114),0) + IF(Setup!$AJ$10<>\"\",INDIRECT(\"'\" & Setup!$AJ$10 & \"'!\" & AF114),0) + IF(Setup!$AJ$11<>\"\",INDIRECT(\"'\" & Setup!$AJ$11 & \"'!\" & AF114),0) + IF(Setup!$AJ$12<>\"\",INDIRECT(\"'\" & Setup!$AJ$12 & \"'!\" & AF114),0)","v":0},null,"",{"$nulls":3},{"$f":"IF(C114=0,\"\",LEFT(INDEX(Lists!$H$5:$H$49,MATCH(C114,Lists!$G$5:$G$49,0),1),1))","v":""},null,"","","","","","","","","","",{"$nulls":6},{"$f":"IF(Setup!$AG$7<>\"\",INDIRECT(\"'\" & Setup!$AG$7 & \"'!\" & AD114),0) + IF(Setup!$AG$8<>\"\",INDIRECT(\"'\" & Setup!$AG$8 & \"'!\" & AD114),0) + IF(Setup!$AG$9<>\"\",INDIRECT(\"'\" & Setup!$AG$9 & \"'!\" & AD114),0) + IF(Setup!$AG$10<>\"\",INDIRECT(\"'\" & Setup!$AG$10 & \"'!\" & AD114),0) + IF(Setup!$AG$11<>\"\",INDIRECT(\"'\" & Setup!$AG$11 & \"'!\" & AD114),0) + IF(Setup!$AG$12<>\"\",INDIRECT(\"'\" & Setup!$AG$12 & \"'!\" & AD114),0)","v":0},{"$f":"IF(Setup!$AG$7<>\"\",INDIRECT(\"'\" & Setup!$AG$7 & \"'!\" & AE114),0) + IF(Setup!$AG$8<>\"\",INDIRECT(\"'\" & Setup!$AG$8 & \"'!\" & AE114),0) + IF(Setup!$AG$9<>\"\",INDIRECT(\"'\" & Setup!$AG$9 & \"'!\" & AE114),0) + IF(Setup!$AG$10<>\"\",INDIRECT(\"'\" & Setup!$AG$10 & \"'!\" & AE114),0) + IF(Setup!$AG$11<>\"\",INDIRECT(\"'\" & Setup!$AG$11 & \"'!\" & AE114),0) + IF(Setup!$AG$12<>\"\",INDIRECT(\"'\" & Setup!$AG$12 & \"'!\" & AE114),0)","v":0},{"$f":"IF(Setup!$AH$7<>\"\",INDIRECT(\"'\" & Setup!$AH$7 & \"'!\" & AD114),0) + IF(Setup!$AH$8<>\"\",INDIRECT(\"'\" & Setup!$AH$8 & \"'!\" & AD114),0) + IF(Setup!$AH$9<>\"\",INDIRECT(\"'\" & Setup!$AH$9 & \"'!\" & AD114),0) + IF(Setup!$AH$10<>\"\",INDIRECT(\"'\" & Setup!$AH$10 & \"'!\" & AD114),0) + IF(Setup!$AH$11<>\"\",INDIRECT(\"'\" & Setup!$AH$11 & \"'!\" & AD114),0) + IF(Setup!$AH$12<>\"\",INDIRECT(\"'\" & Setup!$AH$12 & \"'!\" & AD114),0)","v":0},{"$f":"IF(Setup!$AH$7<>\"\",INDIRECT(\"'\" & Setup!$AH$7 & \"'!\" & AE114),0) + IF(Setup!$AH$8<>\"\",INDIRECT(\"'\" & Setup!$AH$8 & \"'!\" & AE114),0) + IF(Setup!$AH$9<>\"\",INDIRECT(\"'\" & Setup!$AH$9 & \"'!\" & AE114),0) + IF(Setup!$AH$10<>\"\",INDIRECT(\"'\" & Setup!$AH$10 & \"'!\" & AE114),0) + IF(Setup!$AH$11<>\"\",INDIRECT(\"'\" & Setup!$AH$11 & \"'!\" & AE114),0) + IF(Setup!$AH$12<>\"\",INDIRECT(\"'\" & Setup!$AH$12 & \"'!\" & AE114),0)","v":0},{"$f":"IF(Setup!$AI$7<>\"\",INDIRECT(\"'\" & Setup!$AI$7 & \"'!\" & AD114),0) + IF(Setup!$AI$8<>\"\",INDIRECT(\"'\" & Setup!$AI$8 & \"'!\" & AD114),0) + IF(Setup!$AI$9<>\"\",INDIRECT(\"'\" & Setup!$AI$9 & \"'!\" & AD114),0) + IF(Setup!$AI$10<>\"\",INDIRECT(\"'\" & Setup!$AI$10 & \"'!\" & AD114),0) + IF(Setup!$AI$11<>\"\",INDIRECT(\"'\" & Setup!$AI$11 & \"'!\" & AD114),0) + IF(Setup!$AI$12<>\"\",INDIRECT(\"'\" & Setup!$AI$12 & \"'!\" & AD114),0)","v":0},{"$f":"IF(Setup!$AI$7<>\"\",INDIRECT(\"'\" & Setup!$AI$7 & \"'!\" & AE114),0) + IF(Setup!$AI$8<>\"\",INDIRECT(\"'\" & Setup!$AI$8 & \"'!\" & AE114),0) + IF(Setup!$AI$9<>\"\",INDIRECT(\"'\" & Setup!$AI$9 & \"'!\" & AE114),0) + IF(Setup!$AI$10<>\"\",INDIRECT(\"'\" & Setup!$AI$10 & \"'!\" & AE114),0) + IF(Setup!$AI$11<>\"\",INDIRECT(\"'\" & Setup!$AI$11 & \"'!\" & AE114),0) + IF(Setup!$AI$12<>\"\",INDIRECT(\"'\" & Setup!$AI$12 & \"'!\" & AE114),0)","v":0},{"$f":"IF(Setup!$AJ$7<>\"\",INDIRECT(\"'\" & Setup!$AJ$7 & \"'!\" & AD114),0) + IF(Setup!$AJ$8<>\"\",INDIRECT(\"'\" & Setup!$AJ$8 & \"'!\" & AD114),0) + IF(Setup!$AJ$9<>\"\",INDIRECT(\"'\" & Setup!$AJ$9 & \"'!\" & AD114),0) + IF(Setup!$AJ$10<>\"\",INDIRECT(\"'\" & Setup!$AJ$10 & \"'!\" & AD114),0) + IF(Setup!$AJ$11<>\"\",INDIRECT(\"'\" & Setup!$AJ$11 & \"'!\" & AD114),0) + IF(Setup!$AJ$12<>\"\",INDIRECT(\"'\" & Setup!$AJ$12 & \"'!\" & AD114),0)","v":0},{"$f":"IF(Setup!$AJ$7<>\"\",INDIRECT(\"'\" & Setup!$AJ$7 & \"'!\" & AE114),0) + IF(Setup!$AJ$8<>\"\",INDIRECT(\"'\" & Setup!$AJ$8 & \"'!\" & AE114),0) + IF(Setup!$AJ$9<>\"\",INDIRECT(\"'\" & Setup!$AJ$9 & \"'!\" & AE114),0) + IF(Setup!$AJ$10<>\"\",INDIRECT(\"'\" & Setup!$AJ$10 & \"'!\" & AE114),0) + IF(Setup!$AJ$11<>\"\",INDIRECT(\"'\" & Setup!$AJ$11 & \"'!\" & AE114),0) + IF(Setup!$AJ$12<>\"\",INDIRECT(\"'\" & Setup!$AJ$12 & \"'!\" & AE114),0)","v":0}]
[{"$f":"Planning!A98","v":"I090"},{"$f":"Planning!B98","v":0},{"$f":"Planning!C98","v":0},{"$f":"Planning!D98","v":0},{"$f":"Planning!E98","v":0},{"$f":"Planning!G98","v":0},null,0,0,{"$f":"IF(AND($AR115=\"2\",$AB114<>Lists!$A$17),AU115,AT115)","v":""},"",0,0,{"$f":"IF(AND($AR115=\"2\",$AB115<>Lists!$A$17),AW115,AV115)","v":""},"",0,0,{"$f":"IF(AND($AR115=\"2\",$AB115<>Lists!$A$17),AY115,AX115)","v":""},"",0,0,{"$f":"IF(AND($AR115=\"2\",$AB115<>Lists!$A$17),BA115,AZ115)","v":""},"",0,0,{"$f":"IF(AND($AR115=\"2\",$AB115<>Lists!$A$17),BC115,BB115)","v":""},"",{"$f":"Planning!H98","v":0},"00","H114","J114","I114","",null,{"$f":"IF(Setup!$AG$7<>\"\",INDIRECT(\"'\" & Setup!$AG$7 & \"'!\" & AF115),0) + IF(Setup!$AG$8<>\"\",INDIRECT(\"'\" & Setup!$AG$8 & \"'!\" & AF115),0) + IF(Setup!$AG$9<>\"\",INDIRECT(\"'\" & Setup!$AG$9 & \"'!\" & AF115),0) + IF(Setup!$AG$10<>\"\",INDIRECT(\"'\" & Setup!$AG$10 & \"'!\" & AF115),0) + IF(Setup!$AG$11<>\"\",INDIRECT(\"'\" & Setup!$AG$11 & \"'!\" & AF115),0) + IF(Setup!$AG$12<>\"\",INDIRECT(\"'\" & Setup!$AG$12 & \"'!\" & AF115),0)","v":0},{"$f":"IF(Setup!$AH$7<>\"\",INDIRECT(\"'\" & Setup!$AH$7 & \"'!\" & AF115),0) + IF(Setup!$AH$8<>\"\",INDIRECT(\"'\" & Setup!$AH$8 & \"'!\" & AF115),0) + IF(Setup!$AH$9<>\"\",INDIRECT(\"'\" & Setup!$AH$9 & \"'!\" & AF115),0) + IF(Setup!$AH$10<>\"\",INDIRECT(\"'\" & Setup!$AH$10 & \"'!\" & AF115),0) + IF(Setup!$AH$11<>\"\",INDIRECT(\"'\" & Setup!$AH$11 & \"'!\" & AF115),0) + IF(Setup!$AH$12<>\"\",INDIRECT(\"'\" & Setup!$AH$12 & \"'!\" & AF115),0)","v":0},{"$f":"IF(Setup!$AI$7<>\"\",INDIRECT(\"'\" & Setup!$AI$7 & \"'!\" & AF115),0) + IF(Setup!$AI$8<>\"\",INDIRECT(\"'\" & Setup!$AI$8 & \"'!\" & AF115),0) + IF(Setup!$AI$9<>\"\",INDIRECT(\"'\" & Setup!$AI$9 & \"'!\" & AF115),0) + IF(Setup!$AI$10<>\"\",INDIRECT(\"'\" & Setup!$AI$10 & \"'!\" & AF115),0) + IF(Setup!$AI$11<>\"\",INDIRECT(\"'\" & Setup!$AI$11 & \"'!\" & AF115),0) + IF(Setup!$AI$12<>\"\",INDIRECT(\"'\" & Setup!$AI$12 & \"'!\" & AF115),0)","v":0},{"$f":"IF(Setup!$AJ$7<>\"\",INDIRECT(\"'\" & Setup!$AJ$7 & \"'!\" & AF115),0) + IF(Setup!$AJ$8<>\"\",INDIRECT(\"'\" & Setup!$AJ$8 & \"'!\" & AF115),0) + IF(Setup!$AJ$9<>\"\",INDIRECT(\"'\" & Setup!$AJ$9 & \"'!\" & AF115),0) + IF(Setup!$AJ$10<>\"\",INDIRECT(\"'\" & Setup!$AJ$10 & \"'!\" & AF115),0) + IF(Setup!$AJ$11<>\"\",INDIRECT(\"'\" & Setup!$AJ$11 & \"'!\" & AF115),0) + IF(Setup!$AJ$12<>\"\",INDIRECT(\"'\" & Setup!$AJ$12 & \"'!\" & AF115),0)","v":0},null,"",{"$nulls":3},{"$f":"IF(C115=0,\"\",LEFT(INDEX(Lists!$H$5:$H$49,MATCH(C115,Lists!$G$5:$G$49,0),1),1))","v":""},null,"","","","","","","","","","",{"$nulls":6},{"$f":"IF(Setup!$AG$7<>\"\",INDIRECT(\"'\" & Setup!$AG$7 & \"'!\" & AD115),0) + IF(Setup!$AG$8<>\"\",INDIRECT(\"'\" & Setup!$AG$8 & \"'!\" & AD115),0) + IF(Setup!$AG$9<>\"\",INDIRECT(\"'\" & Setup!$AG$9 & \"'!\" & AD115),0) + IF(Setup!$AG$10<>\"\",INDIRECT(\"'\" & Setup!$AG$10 & \"'!\" & AD115),0) + IF(Setup!$AG$11<>\"\",INDIRECT(\"'\" & Setup!$AG$11 & \"'!\" & AD115),0) + IF(Setup!$AG$12<>\"\",INDIRECT(\"'\" & Setup!$AG$12 & \"'!\" & AD115),0)","v":0},{"$f":"IF(Setup!$AG$7<>\"\",INDIRECT(\"'\" & Setup!$AG$7 & \"'!\" & AE115),0) + IF(Setup!$AG$8<>\"\",INDIRECT(\"'\" & Setup!$AG$8 & \"'!\" & AE115),0) + IF(Setup!$AG$9<>\"\",INDIRECT(\"'\" & Setup!$AG$9 & \"'!\" & AE115),0) + IF(Setup!$AG$10<>\"\",INDIRECT(\"'\" & Setup!$AG$10 & \"'!\" & AE115),0) + IF(Setup!$AG$11<>\"\",INDIRECT(\"'\" & Setup!$AG$11 & \"'!\" & AE115),0) + IF(Setup!$AG$12<>\"\",INDIRECT(\"'\" & Setup!$AG$12 & \"'!\" & AE115),0)","v":0},{"$f":"IF(Setup!$AH$7<>\"\",INDIRECT(\"'\" & Setup!$AH$7 & \"'!\" & AD115),0) + IF(Setup!$AH$8<>\"\",INDIRECT(\"'\" & Setup!$AH$8 & \"'!\" & AD115),0) + IF(Setup!$AH$9<>\"\",INDIRECT(\"'\" & Setup!$AH$9 & \"'!\" & AD115),0) + IF(Setup!$AH$10<>\"\",INDIRECT(\"'\" & Setup!$AH$10 & \"'!\" & AD115),0) + IF(Setup!$AH$11<>\"\",INDIRECT(\"'\" & Setup!$AH$11 & \"'!\" & AD115),0) + IF(Setup!$AH$12<>\"\",INDIRECT(\"'\" & Setup!$AH$12 & \"'!\" & AD115),0)","v":0},{"$f":"IF(Setup!$AH$7<>\"\",INDIRECT(\"'\" & Setup!$AH$7 & \"'!\" & AE115),0) + IF(Setup!$AH$8<>\"\",INDIRECT(\"'\" & Setup!$AH$8 & \"'!\" & AE115),0) + IF(Setup!$AH$9<>\"\",INDIRECT(\"'\" & Setup!$AH$9 & \"'!\" & AE115),0) + IF(Setup!$AH$10<>\"\",INDIRECT(\"'\" & Setup!$AH$10 & \"'!\" & AE115),0) + IF(Setup!$AH$11<>\"\",INDIRECT(\"'\" & Setup!$AH$11 & \"'!\" & AE115),0) + IF(Setup!$AH$12<>\"\",INDIRECT(\"'\" & Setup!$AH$12 & \"'!\" & AE115),0)","v":0},{"$f":"IF(Setup!$AI$7<>\"\",INDIRECT(\"'\" & Setup!$AI$7 & \"'!\" & AD115),0) + IF(Setup!$AI$8<>\"\",INDIRECT(\"'\" & Setup!$AI$8 & \"'!\" & AD115),0) + IF(Setup!$AI$9<>\"\",INDIRECT(\"'\" & Setup!$AI$9 & \"'!\" & AD115),0) + IF(Setup!$AI$10<>\"\",INDIRECT(\"'\" & Setup!$AI$10 & \"'!\" & AD115),0) + IF(Setup!$AI$11<>\"\",INDIRECT(\"'\" & Setup!$AI$11 & \"'!\" & AD115),0) + IF(Setup!$AI$12<>\"\",INDIRECT(\"'\" & Setup!$AI$12 & \"'!\" & AD115),0)","v":0},{"$f":"IF(Setup!$AI$7<>\"\",INDIRECT(\"'\" & Setup!$AI$7 & \"'!\" & AE115),0) + IF(Setup!$AI$8<>\"\",INDIRECT(\"'\" & Setup!$AI$8 & \"'!\" & AE115),0) + IF(Setup!$AI$9<>\"\",INDIRECT(\"'\" & Setup!$AI$9 & \"'!\" & AE115),0) + IF(Setup!$AI$10<>\"\",INDIRECT(\"'\" & Setup!$AI$10 & \"'!\" & AE115),0) + IF(Setup!$AI$11<>\"\",INDIRECT(\"'\" & Setup!$AI$11 & \"'!\" & AE115),0) + IF(Setup!$AI$12<>\"\",INDIRECT(\"'\" & Setup!$AI$12 & \"'!\" & AE115),0)","v":0},{"$f":"IF(Setup!$AJ$7<>\"\",INDIRECT(\"'\" & Setup!$AJ$7 & \"'!\" & AD115),0) + IF(Setup!$AJ$8<>\"\",INDIRECT(\"'\" & Setup!$AJ$8 & \"'!\" & AD115),0) + IF(Setup!$AJ$9<>\"\",INDIRECT(\"'\" & Setup!$AJ$9 & \"'!\" & AD115),0) + IF(Setup!$AJ$10<>\"\",INDIRECT(\"'\" & Setup!$AJ$10 & \"'!\" & AD115),0) + IF(Setup!$AJ$11<>\"\",INDIRECT(\"'\" & Setup!$AJ$11 & \"'!\" & AD115),0) + IF(Setup!$AJ$12<>\"\",INDIRECT(\"'\" & Setup!$AJ$12 & \"'!\" & AD115),0)","v":0},{"$f":"IF(Setup!$AJ$7<>\"\",INDIRECT(\"'\" & Setup!$AJ$7 & \"'!\" & AE115),0) + IF(Setup!$AJ$8<>\"\",INDIRECT(\"'\" & Setup!$AJ$8 & \"'!\" & AE115),0) + IF(Setup!$AJ$9<>\"\",INDIRECT(\"'\" & Setup!$AJ$9 & \"'!\" & AE115),0) + IF(Setup!$AJ$10<>\"\",INDIRECT(\"'\" & Setup!$AJ$10 & \"'!\" & AE115),0) + IF(Setup!$AJ$11<>\"\",INDIRECT(\"'\" & Setup!$AJ$11 & \"'!\" & AE115),0) + IF(Setup!$AJ$12<>\"\",INDIRECT(\"'\" & Setup!$AJ$12 & \"'!\" & AE115),0)","v":0}]
[{"$f":"Planning!A99","v":"I091"},{"$f":"Planning!B99","v":0},{"$f":"Planning!C99","v":0},{"$f":"Planning!D99","v":0},{"$f":"Planning!E99","v":0},{"$f":"Planning!G99","v":0},null,0,0,{"$f":"IF(AND($AR116=\"2\",$AB115<>Lists!$A$17),AU116,AT116)","v":""},"",0,0,{"$f":"IF(AND($AR116=\"2\",$AB116<>Lists!$A$17),AW116,AV116)","v":""},"",0,0,{"$f":"IF(AND($AR116=\"2\",$AB116<>Lists!$A$17),AY116,AX116)","v":""},"",0,0,{"$f":"IF(AND($AR116=\"2\",$AB116<>Lists!$A$17),BA116,AZ116)","v":""},"",0,0,{"$f":"IF(AND($AR116=\"2\",$AB116<>Lists!$A$17),BC116,BB116)","v":""},"",{"$f":"Planning!H99","v":0},"00","H115","J115","I115","",null,{"$f":"IF(Setup!$AG$7<>\"\",INDIRECT(\"'\" & Setup!$AG$7 & \"'!\" & AF116),0) + IF(Setup!$AG$8<>\"\",INDIRECT(\"'\" & Setup!$AG$8 & \"'!\" & AF116),0) + IF(Setup!$AG$9<>\"\",INDIRECT(\"'\" & Setup!$AG$9 & \"'!\" & AF116),0) + IF(Setup!$AG$10<>\"\",INDIRECT(\"'\" & Setup!$AG$10 & \"'!\" & AF116),0) + IF(Setup!$AG$11<>\"\",INDIRECT(\"'\" & Setup!$AG$11 & \"'!\" & AF116),0) + IF(Setup!$AG$12<>\"\",INDIRECT(\"'\" & Setup!$AG$12 & \"'!\" & AF116),0)","v":0},{"$f":"IF(Setup!$AH$7<>\"\",INDIRECT(\"'\" & Setup!$AH$7 & \"'!\" & AF116),0) + IF(Setup!$AH$8<>\"\",INDIRECT(\"'\" & Setup!$AH$8 & \"'!\" & AF116),0) + IF(Setup!$AH$9<>\"\",INDIRECT(\"'\" & Setup!$AH$9 & \"'!\" & AF116),0) + IF(Setup!$AH$10<>\"\",INDIRECT(\"'\" & Setup!$AH$10 & \"'!\" & AF116),0) + IF(Setup!$AH$11<>\"\",INDIRECT(\"'\" & Setup!$AH$11 & \"'!\" & AF116),0) + IF(Setup!$AH$12<>\"\",INDIRECT(\"'\" & Setup!$AH$12 & \"'!\" & AF116),0)","v":0},{"$f":"IF(Setup!$AI$7<>\"\",INDIRECT(\"'\" & Setup!$AI$7 & \"'!\" & AF116),0) + IF(Setup!$AI$8<>\"\",INDIRECT(\"'\" & Setup!$AI$8 & \"'!\" & AF116),0) + IF(Setup!$AI$9<>\"\",INDIRECT(\"'\" & Setup!$AI$9 & \"'!\" & AF116),0) + IF(Setup!$AI$10<>\"\",INDIRECT(\"'\" & Setup!$AI$10 & \"'!\" & AF116),0) + IF(Setup!$AI$11<>\"\",INDIRECT(\"'\" & Setup!$AI$11 & \"'!\" & AF116),0) + IF(Setup!$AI$12<>\"\",INDIRECT(\"'\" & Setup!$AI$12 & \"'!\" & AF116),0)","v":0},{"$f":"IF(Setup!$AJ$7<>\"\",INDIRECT(\"'\" & Setup!$AJ$7 & \"'!\" & AF116),0) + IF(Setup!$AJ$8<>\"\",INDIRECT(\"'\" & Setup!$AJ$8 & \"'!\" & AF116),0) + IF(Setup!$AJ$9<>\"\",INDIRECT(\"'\" & Setup!$AJ$9 & \"'!\" & AF116),0) + IF(Setup!$AJ$10<>\"\",INDIRECT(\"'\" & Setup!$AJ$10 & \"'!\" & AF116),0) + IF(Setup!$AJ$11<>\"\",INDIRECT(\"'\" & Setup!$AJ$11 & \"'!\" & AF116),0) + IF(Setup!$AJ$12<>\"\",INDIRECT(\"'\" & Setup!$AJ$12 & \"'!\" & AF116),0)","v":0},null,"",{"$nulls":3},{"$f":"IF(C116=0,\"\",LEFT(INDEX(Lists!$H$5:$H$49,MATCH(C116,Lists!$G$5:$G$49,0),1),1))","v":""},null,"","","","","","","","","","",{"$nulls":6},{"$f":"IF(Setup!$AG$7<>\"\",INDIRECT(\"'\" & Setup!$AG$7 & \"'!\" & AD116),0) + IF(Setup!$AG$8<>\"\",INDIRECT(\"'\" & Setup!$AG$8 & \"'!\" & AD116),0) + IF(Setup!$AG$9<>\"\",INDIRECT(\"'\" & Setup!$AG$9 & \"'!\" & AD116),0) + IF(Setup!$AG$10<>\"\",INDIRECT(\"'\" & Setup!$AG$10 & \"'!\" & AD116),0) + IF(Setup!$AG$11<>\"\",INDIRECT(\"'\" & Setup!$AG$11 & \"'!\" & AD116),0) + IF(Setup!$AG$12<>\"\",INDIRECT(\"'\" & Setup!$AG$12 & \"'!\" & AD116),0)","v":0},{"$f":"IF(Setup!$AG$7<>\"\",INDIRECT(\"'\" & Setup!$AG$7 & \"'!\" & AE116),0) + IF(Setup!$AG$8<>\"\",INDIRECT(\"'\" & Setup!$AG$8 & \"'!\" & AE116),0) + IF(Setup!$AG$9<>\"\",INDIRECT(\"'\" & Setup!$AG$9 & \"'!\" & AE116),0) + IF(Setup!$AG$10<>\"\",INDIRECT(\"'\" & Setup!$AG$10 & \"'!\" & AE116),0) + IF(Setup!$AG$11<>\"\",INDIRECT(\"'\" & Setup!$AG$11 & \"'!\" & AE116),0) + IF(Setup!$AG$12<>\"\",INDIRECT(\"'\" & Setup!$AG$12 & \"'!\" & AE116),0)","v":0},{"$f":"IF(Setup!$AH$7<>\"\",INDIRECT(\"'\" & Setup!$AH$7 & \"'!\" & AD116),0) + IF(Setup!$AH$8<>\"\",INDIRECT(\"'\" & Setup!$AH$8 & \"'!\" & AD116),0) + IF(Setup!$AH$9<>\"\",INDIRECT(\"'\" & Setup!$AH$9 & \"'!\" & AD116),0) + IF(Setup!$AH$10<>\"\",INDIRECT(\"'\" & Setup!$AH$10 & \"'!\" & AD116),0) + IF(Setup!$AH$11<>\"\",INDIRECT(\"'\" & Setup!$AH$11 & \"'!\" & AD116),0) + IF(Setup!$AH$12<>\"\",INDIRECT(\"'\" & Setup!$AH$12 & \"'!\" & AD116),0)","v":0},{"$f":"IF(Setup!$AH$7<>\"\",INDIRECT(\"'\" & Setup!$AH$7 & \"'!\" & AE116),0) + IF(Setup!$AH$8<>\"\",INDIRECT(\"'\" & Setup!$AH$8 & \"'!\" & AE116),0) + IF(Setup!$AH$9<>\"\",INDIRECT(\"'\" & Setup!$AH$9 & \"'!\" & AE116),0) + IF(Setup!$AH$10<>\"\",INDIRECT(\"'\" & Setup!$AH$10 & \"'!\" & AE116),0) + IF(Setup!$AH$11<>\"\",INDIRECT(\"'\" & Setup!$AH$11 & \"'!\" & AE116),0) + IF(Setup!$AH$12<>\"\",INDIRECT(\"'\" & Setup!$AH$12 & \"'!\" & AE116),0)","v":0},{"$f":"IF(Setup!$AI$7<>\"\",INDIRECT(\"'\" & Setup!$AI$7 & \"'!\" & AD116),0) + IF(Setup!$AI$8<>\"\",INDIRECT(\"'\" & Setup!$AI$8 & \"'!\" & AD116),0) + IF(Setup!$AI$9<>\"\",INDIRECT(\"'\" & Setup!$AI$9 & \"'!\" & AD116),0) + IF(Setup!$AI$10<>\"\",INDIRECT(\"'\" & Setup!$AI$10 & \"'!\" & AD116),0) + IF(Setup!$AI$11<>\"\",INDIRECT(\"'\" & Setup!$AI$11 & \"'!\" & AD116),0) + IF(Setup!$AI$12<>\"\",INDIRECT(\"'\" & Setup!$AI$12 & \"'!\" & AD116),0)","v":0},{"$f":"IF(Setup!$AI$7<>\"\",INDIRECT(\"'\" & Setup!$AI$7 & \"'!\" & AE116),0) + IF(Setup!$AI$8<>\"\",INDIRECT(\"'\" & Setup!$AI$8 & \"'!\" & AE116),0) + IF(Setup!$AI$9<>\"\",INDIRECT(\"'\" & Setup!$AI$9 & \"'!\" & AE116),0) + IF(Setup!$AI$10<>\"\",INDIRECT(\"'\" & Setup!$AI$10 & \"'!\" & AE116),0) + IF(Setup!$AI$11<>\"\",INDIRECT(\"'\" & Setup!$AI$11 & \"'!\" & AE116),0) + IF(Setup!$AI$12<>\"\",INDIRECT(\"'\" & Setup!$AI$12 & \"'!\" & AE116),0)","v":0},{"$f":"IF(Setup!$AJ$7<>\"\",INDIRECT(\"'\" & Setup!$AJ$7 & \"'!\" & AD116),0) + IF(Setup!$AJ$8<>\"\",INDIRECT(\"'\" & Setup!$AJ$8 & \"'!\" & AD116),0) + IF(Setup!$AJ$9<>\"\",INDIRECT(\"'\" & Setup!$AJ$9 & \"'!\" & AD116),0) + IF(Setup!$AJ$10<>\"\",INDIRECT(\"'\" & Setup!$AJ$10 & \"'!\" & AD116),0) + IF(Setup!$AJ$11<>\"\",INDIRECT(\"'\" & Setup!$AJ$11 & \"'!\" & AD116),0) + IF(Setup!$AJ$12<>\"\",INDIRECT(\"'\" & Setup!$AJ$12 & \"'!\" & AD116),0)","v":0},{"$f":"IF(Setup!$AJ$7<>\"\",INDIRECT(\"'\" & Setup!$AJ$7 & \"'!\" & AE116),0) + IF(Setup!$AJ$8<>\"\",INDIRECT(\"'\" & Setup!$AJ$8 & \"'!\" & AE116),0) + IF(Setup!$AJ$9<>\"\",INDIRECT(\"'\" & Setup!$AJ$9 & \"'!\" & AE116),0) + IF(Setup!$AJ$10<>\"\",INDIRECT(\"'\" & Setup!$AJ$10 & \"'!\" & AE116),0) + IF(Setup!$AJ$11<>\"\",INDIRECT(\"'\" & Setup!$AJ$11 & \"'!\" & AE116),0) + IF(Setup!$AJ$12<>\"\",INDIRECT(\"'\" & Setup!$AJ$12 & \"'!\" & AE116),0)","v":0}]
[{"$f":"Planning!A100","v":"I092"},{"$f":"Planning!B100","v":0},{"$f":"Planning!C100","v":0},{"$f":"Planning!D100","v":0},{"$f":"Planning!E100","v":0},{"$f":"Planning!G100","v":0},null,0,0,{"$f":"IF(AND($AR117=\"2\",$AB116<>Lists!$A$17),AU117,AT117)","v":""},"",0,0,{"$f":"IF(AND($AR117=\"2\",$AB117<>Lists!$A$17),AW117,AV117)","v":""},"",0,0,{"$f":"IF(AND($AR117=\"2\",$AB117<>Lists!$A$17),AY117,AX117)","v":""},"",0,0,{"$f":"IF(AND($AR117=\"2\",$AB117<>Lists!$A$17),BA117,AZ117)","v":""},"",0,0,{"$f":"IF(AND($AR117=\"2\",$AB117<>Lists!$A$17),BC117,BB117)","v":""},"",{"$f":"Planning!H100","v":0},"00","H116","J116","I116","",null,{"$f":"IF(Setup!$AG$7<>\"\",INDIRECT(\"'\" & Setup!$AG$7 & \"'!\" & AF117),0) + IF(Setup!$AG$8<>\"\",INDIRECT(\"'\" & Setup!$AG$8 & \"'!\" & AF117),0) + IF(Setup!$AG$9<>\"\",INDIRECT(\"'\" & Setup!$AG$9 & \"'!\" & AF117),0) + IF(Setup!$AG$10<>\"\",INDIRECT(\"'\" & Setup!$AG$10 & \"'!\" & AF117),0) + IF(Setup!$AG$11<>\"\",INDIRECT(\"'\" & Setup!$AG$11 & \"'!\" & AF117),0) + IF(Setup!$AG$12<>\"\",INDIRECT(\"'\" & Setup!$AG$12 & \"'!\" & AF117),0)","v":0},{"$f":"IF(Setup!$AH$7<>\"\",INDIRECT(\"'\" & Setup!$AH$7 & \"'!\" & AF117),0) + IF(Setup!$AH$8<>\"\",INDIRECT(\"'\" & Setup!$AH$8 & \"'!\" & AF117),0) + IF(Setup!$AH$9<>\"\",INDIRECT(\"'\" & Setup!$AH$9 & \"'!\" & AF117),0) + IF(Setup!$AH$10<>\"\",INDIRECT(\"'\" & Setup!$AH$10 & \"'!\" & AF117),0) + IF(Setup!$AH$11<>\"\",INDIRECT(\"'\" & Setup!$AH$11 & \"'!\" & AF117),0) + IF(Setup!$AH$12<>\"\",INDIRECT(\"'\" & Setup!$AH$12 & \"'!\" & AF117),0)","v":0},{"$f":"IF(Setup!$AI$7<>\"\",INDIRECT(\"'\" & Setup!$AI$7 & \"'!\" & AF117),0) + IF(Setup!$AI$8<>\"\",INDIRECT(\"'\" & Setup!$AI$8 & \"'!\" & AF117),0) + IF(Setup!$AI$9<>\"\",INDIRECT(\"'\" & Setup!$AI$9 & \"'!\" & AF117),0) + IF(Setup!$AI$10<>\"\",INDIRECT(\"'\" & Setup!$AI$10 & \"'!\" & AF117),0) + IF(Setup!$AI$11<>\"\",INDIRECT(\"'\" & Setup!$AI$11 & \"'!\" & AF117),0) + IF(Setup!$AI$12<>\"\",INDIRECT(\"'\" & Setup!$AI$12 & \"'!\" & AF117),0)","v":0},{"$f":"IF(Setup!$AJ$7<>\"\",INDIRECT(\"'\" & Setup!$AJ$7 & \"'!\" & AF117),0) + IF(Setup!$AJ$8<>\"\",INDIRECT(\"'\" & Setup!$AJ$8 & \"'!\" & AF117),0) + IF(Setup!$AJ$9<>\"\",INDIRECT(\"'\" & Setup!$AJ$9 & \"'!\" & AF117),0) + IF(Setup!$AJ$10<>\"\",INDIRECT(\"'\" & Setup!$AJ$10 & \"'!\" & AF117),0) + IF(Setup!$AJ$11<>\"\",INDIRECT(\"'\" & Setup!$AJ$11 & \"'!\" & AF117),0) + IF(Setup!$AJ$12<>\"\",INDIRECT(\"'\" & Setup!$AJ$12 & \"'!\" & AF117),0)","v":0},null,"",{"$nulls":3},{"$f":"IF(C117=0,\"\",LEFT(INDEX(Lists!$H$5:$H$49,MATCH(C117,Lists!$G$5:$G$49,0),1),1))","v":""},null,"","","","","","","","","","",{"$nulls":6},{"$f":"IF(Setup!$AG$7<>\"\",INDIRECT(\"'\" & Setup!$AG$7 & \"'!\" & AD117),0) + IF(Setup!$AG$8<>\"\",INDIRECT(\"'\" & Setup!$AG$8 & \"'!\" & AD117),0) + IF(Setup!$AG$9<>\"\",INDIRECT(\"'\" & Setup!$AG$9 & \"'!\" & AD117),0) + IF(Setup!$AG$10<>\"\",INDIRECT(\"'\" & Setup!$AG$10 & \"'!\" & AD117),0) + IF(Setup!$AG$11<>\"\",INDIRECT(\"'\" & Setup!$AG$11 & \"'!\" & AD117),0) + IF(Setup!$AG$12<>\"\",INDIRECT(\"'\" & Setup!$AG$12 & \"'!\" & AD117),0)","v":0},{"$f":"IF(Setup!$AG$7<>\"\",INDIRECT(\"'\" & Setup!$AG$7 & \"'!\" & AE117),0) + IF(Setup!$AG$8<>\"\",INDIRECT(\"'\" & Setup!$AG$8 & \"'!\" & AE117),0) + IF(Setup!$AG$9<>\"\",INDIRECT(\"'\" & Setup!$AG$9 & \"'!\" & AE117),0) + IF(Setup!$AG$10<>\"\",INDIRECT(\"'\" & Setup!$AG$10 & \"'!\" & AE117),0) + IF(Setup!$AG$11<>\"\",INDIRECT(\"'\" & Setup!$AG$11 & \"'!\" & AE117),0) + IF(Setup!$AG$12<>\"\",INDIRECT(\"'\" & Setup!$AG$12 & \"'!\" & AE117),0)","v":0},{"$f":"IF(Setup!$AH$7<>\"\",INDIRECT(\"'\" & Setup!$AH$7 & \"'!\" & AD117),0) + IF(Setup!$AH$8<>\"\",INDIRECT(\"'\" & Setup!$AH$8 & \"'!\" & AD117),0) + IF(Setup!$AH$9<>\"\",INDIRECT(\"'\" & Setup!$AH$9 & \"'!\" & AD117),0) + IF(Setup!$AH$10<>\"\",INDIRECT(\"'\" & Setup!$AH$10 & \"'!\" & AD117),0) + IF(Setup!$AH$11<>\"\",INDIRECT(\"'\" & Setup!$AH$11 & \"'!\" & AD117),0) + IF(Setup!$AH$12<>\"\",INDIRECT(\"'\" & Setup!$AH$12 & \"'!\" & AD117),0)","v":0},{"$f":"IF(Setup!$AH$7<>\"\",INDIRECT(\"'\" & Setup!$AH$7 & \"'!\" & AE117),0) + IF(Setup!$AH$8<>\"\",INDIRECT(\"'\" & Setup!$AH$8 & \"'!\" & AE117),0) + IF(Setup!$AH$9<>\"\",INDIRECT(\"'\" & Setup!$AH$9 & \"'!\" & AE117),0) + IF(Setup!$AH$10<>\"\",INDIRECT(\"'\" & Setup!$AH$10 & \"'!\" & AE117),0) + IF(Setup!$AH$11<>\"\",INDIRECT(\"'\" & Setup!$AH$11 & \"'!\" & AE117),0) + IF(Setup!$AH$12<>\"\",INDIRECT(\"'\" & Setup!$AH$12 & \"'!\" & AE117),0)","v":0},{"$f":"IF(Setup!$AI$7<>\"\",INDIRECT(\"'\" & Setup!$AI$7 & \"'!\" & AD117),0) + IF(Setup!$AI$8<>\"\",INDIRECT(\"'\" & Setup!$AI$8 & \"'!\" & AD117),0) + IF(Setup!$AI$9<>\"\",INDIRECT(\"'\" & Setup!$AI$9 & \"'!\" & AD117),0) + IF(Setup!$AI$10<>\"\",INDIRECT(\"'\" & Setup!$AI$10 & \"'!\" & AD117),0) + IF(Setup!$AI$11<>\"\",INDIRECT(\"'\" & Setup!$AI$11 & \"'!\" & AD117),0) + IF(Setup!$AI$12<>\"\",INDIRECT(\"'\" & Setup!$AI$12 & \"'!\" & AD117),0)","v":0},{"$f":"IF(Setup!$AI$7<>\"\",INDIRECT(\"'\" & Setup!$AI$7 & \"'!\" & AE117),0) + IF(Setup!$AI$8<>\"\",INDIRECT(\"'\" & Setup!$AI$8 & \"'!\" & AE117),0) + IF(Setup!$AI$9<>\"\",INDIRECT(\"'\" & Setup!$AI$9 & \"'!\" & AE117),0) + IF(Setup!$AI$10<>\"\",INDIRECT(\"'\" & Setup!$AI$10 & \"'!\" & AE117),0) + IF(Setup!$AI$11<>\"\",INDIRECT(\"'\" & Setup!$AI$11 & \"'!\" & AE117),0) + IF(Setup!$AI$12<>\"\",INDIRECT(\"'\" & Setup!$AI$12 & \"'!\" & AE117),0)","v":0},{"$f":"IF(Setup!$AJ$7<>\"\",INDIRECT(\"'\" & Setup!$AJ$7 & \"'!\" & AD117),0) + IF(Setup!$AJ$8<>\"\",INDIRECT(\"'\" & Setup!$AJ$8 & \"'!\" & AD117),0) + IF(Setup!$AJ$9<>\"\",INDIRECT(\"'\" & Setup!$AJ$9 & \"'!\" & AD117),0) + IF(Setup!$AJ$10<>\"\",INDIRECT(\"'\" & Setup!$AJ$10 & \"'!\" & AD117),0) + IF(Setup!$AJ$11<>\"\",INDIRECT(\"'\" & Setup!$AJ$11 & \"'!\" & AD117),0) + IF(Setup!$AJ$12<>\"\",INDIRECT(\"'\" & Setup!$AJ$12 & \"'!\" & AD117),0)","v":0},{"$f":"IF(Setup!$AJ$7<>\"\",INDIRECT(\"'\" & Setup!$AJ$7 & \"'!\" & AE117),0) + IF(Setup!$AJ$8<>\"\",INDIRECT(\"'\" & Setup!$AJ$8 & \"'!\" & AE117),0) + IF(Setup!$AJ$9<>\"\",INDIRECT(\"'\" & Setup!$AJ$9 & \"'!\" & AE117),0) + IF(Setup!$AJ$10<>\"\",INDIRECT(\"'\" & Setup!$AJ$10 & \"'!\" & AE117),0) + IF(Setup!$AJ$11<>\"\",INDIRECT(\"'\" & Setup!$AJ$11 & \"'!\" & AE117),0) + IF(Setup!$AJ$12<>\"\",INDIRECT(\"'\" & Setup!$AJ$12 & \"'!\" & AE117),0)","v":0}]
[{"$f":"Planning!A101","v":"I093"},{"$f":"Planning!B101","v":0},{"$f":"Planning!C101","v":0},{"$f":"Planning!D101","v":0},{"$f":"Planning!E101","v":0},{"$f":"Planning!G101","v":0},null,0,0,{"$f":"IF(AND($AR118=\"2\",$AB117<>Lists!$A$17),AU118,AT118)","v":""},"",0,0,{"$f":"IF(AND($AR118=\"2\",$AB118<>Lists!$A$17),AW118,AV118)","v":""},"",0,0,{"$f":"IF(AND($AR118=\"2\",$AB118<>Lists!$A$17),AY118,AX118)","v":""},"",0,0,{"$f":"IF(AND($AR118=\"2\",$AB118<>Lists!$A$17),BA118,AZ118)","v":""},"",0,0,{"$f":"IF(AND($AR118=\"2\",$AB118<>Lists!$A$17),BC118,BB118)","v":""},"",{"$f":"Planning!H101","v":0},"00","H117","J117","I117","",null,{"$f":"IF(Setup!$AG$7<>\"\",INDIRECT(\"'\" & Setup!$AG$7 & \"'!\" & AF118),0) + IF(Setup!$AG$8<>\"\",INDIRECT(\"'\" & Setup!$AG$8 & \"'!\" & AF118),0) + IF(Setup!$AG$9<>\"\",INDIRECT(\"'\" & Setup!$AG$9 & \"'!\" & AF118),0) + IF(Setup!$AG$10<>\"\",INDIRECT(\"'\" & Setup!$AG$10 & \"'!\" & AF118),0) + IF(Setup!$AG$11<>\"\",INDIRECT(\"'\" & Setup!$AG$11 & \"'!\" & AF118),0) + IF(Setup!$AG$12<>\"\",INDIRECT(\"'\" & Setup!$AG$12 & \"'!\" & AF118),0)","v":0},{"$f":"IF(Setup!$AH$7<>\"\",INDIRECT(\"'\" & Setup!$AH$7 & \"'!\" & AF118),0) + IF(Setup!$AH$8<>\"\",INDIRECT(\"'\" & Setup!$AH$8 & \"'!\" & AF118),0) + IF(Setup!$AH$9<>\"\",INDIRECT(\"'\" & Setup!$AH$9 & \"'!\" & AF118),0) + IF(Setup!$AH$10<>\"\",INDIRECT(\"'\" & Setup!$AH$10 & \"'!\" & AF118),0) + IF(Setup!$AH$11<>\"\",INDIRECT(\"'\" & Setup!$AH$11 & \"'!\" & AF118),0) + IF(Setup!$AH$12<>\"\",INDIRECT(\"'\" & Setup!$AH$12 & \"'!\" & AF118),0)","v":0},{"$f":"IF(Setup!$AI$7<>\"\",INDIRECT(\"'\" & Setup!$AI$7 & \"'!\" & AF118),0) + IF(Setup!$AI$8<>\"\",INDIRECT(\"'\" & Setup!$AI$8 & \"'!\" & AF118),0) + IF(Setup!$AI$9<>\"\",INDIRECT(\"'\" & Setup!$AI$9 & \"'!\" & AF118),0) + IF(Setup!$AI$10<>\"\",INDIRECT(\"'\" & Setup!$AI$10 & \"'!\" & AF118),0) + IF(Setup!$AI$11<>\"\",INDIRECT(\"'\" & Setup!$AI$11 & \"'!\" & AF118),0) + IF(Setup!$AI$12<>\"\",INDIRECT(\"'\" & Setup!$AI$12 & \"'!\" & AF118),0)","v":0},{"$f":"IF(Setup!$AJ$7<>\"\",INDIRECT(\"'\" & Setup!$AJ$7 & \"'!\" & AF118),0) + IF(Setup!$AJ$8<>\"\",INDIRECT(\"'\" & Setup!$AJ$8 & \"'!\" & AF118),0) + IF(Setup!$AJ$9<>\"\",INDIRECT(\"'\" & Setup!$AJ$9 & \"'!\" & AF118),0) + IF(Setup!$AJ$10<>\"\",INDIRECT(\"'\" & Setup!$AJ$10 & \"'!\" & AF118),0) + IF(Setup!$AJ$11<>\"\",INDIRECT(\"'\" & Setup!$AJ$11 & \"'!\" & AF118),0) + IF(Setup!$AJ$12<>\"\",INDIRECT(\"'\" & Setup!$AJ$12 & \"'!\" & AF118),0)","v":0},null,"",{"$nulls":3},{"$f":"IF(C118=0,\"\",LEFT(INDEX(Lists!$H$5:$H$49,MATCH(C118,Lists!$G$5:$G$49,0),1),1))","v":""},null,"","","","","","","","","","",{"$nulls":6},{"$f":"IF(Setup!$AG$7<>\"\",INDIRECT(\"'\" & Setup!$AG$7 & \"'!\" & AD118),0) + IF(Setup!$AG$8<>\"\",INDIRECT(\"'\" & Setup!$AG$8 & \"'!\" & AD118),0) + IF(Setup!$AG$9<>\"\",INDIRECT(\"'\" & Setup!$AG$9 & \"'!\" & AD118),0) + IF(Setup!$AG$10<>\"\",INDIRECT(\"'\" & Setup!$AG$10 & \"'!\" & AD118),0) + IF(Setup!$AG$11<>\"\",INDIRECT(\"'\" & Setup!$AG$11 & \"'!\" & AD118),0) + IF(Setup!$AG$12<>\"\",INDIRECT(\"'\" & Setup!$AG$12 & \"'!\" & AD118),0)","v":0},{"$f":"IF(Setup!$AG$7<>\"\",INDIRECT(\"'\" & Setup!$AG$7 & \"'!\" & AE118),0) + IF(Setup!$AG$8<>\"\",INDIRECT(\"'\" & Setup!$AG$8 & \"'!\" & AE118),0) + IF(Setup!$AG$9<>\"\",INDIRECT(\"'\" & Setup!$AG$9 & \"'!\" & AE118),0) + IF(Setup!$AG$10<>\"\",INDIRECT(\"'\" & Setup!$AG$10 & \"'!\" & AE118),0) + IF(Setup!$AG$11<>\"\",INDIRECT(\"'\" & Setup!$AG$11 & \"'!\" & AE118),0) + IF(Setup!$AG$12<>\"\",INDIRECT(\"'\" & Setup!$AG$12 & \"'!\" & AE118),0)","v":0},{"$f":"IF(Setup!$AH$7<>\"\",INDIRECT(\"'\" & Setup!$AH$7 & \"'!\" & AD118),0) + IF(Setup!$AH$8<>\"\",INDIRECT(\"'\" & Setup!$AH$8 & \"'!\" & AD118),0) + IF(Setup!$AH$9<>\"\",INDIRECT(\"'\" & Setup!$AH$9 & \"'!\" & AD118),0) + IF(Setup!$AH$10<>\"\",INDIRECT(\"'\" & Setup!$AH$10 & \"'!\" & AD118),0) + IF(Setup!$AH$11<>\"\",INDIRECT(\"'\" & Setup!$AH$11 & \"'!\" & AD118),0) + IF(Setup!$AH$12<>\"\",INDIRECT(\"'\" & Setup!$AH$12 & \"'!\" & AD118),0)","v":0},{"$f":"IF(Setup!$AH$7<>\"\",INDIRECT(\"'\" & Setup!$AH$7 & \"'!\" & AE118),0) + IF(Setup!$AH$8<>\"\",INDIRECT(\"'\" & Setup!$AH$8 & \"'!\" & AE118),0) + IF(Setup!$AH$9<>\"\",INDIRECT(\"'\" & Setup!$AH$9 & \"'!\" & AE118),0) + IF(Setup!$AH$10<>\"\",INDIRECT(\"'\" & Setup!$AH$10 & \"'!\" & AE118),0) + IF(Setup!$AH$11<>\"\",INDIRECT(\"'\" & Setup!$AH$11 & \"'!\" & AE118),0) + IF(Setup!$AH$12<>\"\",INDIRECT(\"'\" & Setup!$AH$12 & \"'!\" & AE118),0)","v":0},{"$f":"IF(Setup!$AI$7<>\"\",INDIRECT(\"'\" & Setup!$AI$7 & \"'!\" & AD118),0) + IF(Setup!$AI$8<>\"\",INDIRECT(\"'\" & Setup!$AI$8 & \"'!\" & AD118),0) + IF(Setup!$AI$9<>\"\",INDIRECT(\"'\" & Setup!$AI$9 & \"'!\" & AD118),0) + IF(Setup!$AI$10<>\"\",INDIRECT(\"'\" & Setup!$AI$10 & \"'!\" & AD118),0) + IF(Setup!$AI$11<>\"\",INDIRECT(\"'\" & Setup!$AI$11 & \"'!\" & AD118),0) + IF(Setup!$AI$12<>\"\",INDIRECT(\"'\" & Setup!$AI$12 & \"'!\" & AD118),0)","v":0},{"$f":"IF(Setup!$AI$7<>\"\",INDIRECT(\"'\" & Setup!$AI$7 & \"'!\" & AE118),0) + IF(Setup!$AI$8<>\"\",INDIRECT(\"'\" & Setup!$AI$8 & \"'!\" & AE118),0) + IF(Setup!$AI$9<>\"\",INDIRECT(\"'\" & Setup!$AI$9 & \"'!\" & AE118),0) + IF(Setup!$AI$10<>\"\",INDIRECT(\"'\" & Setup!$AI$10 & \"'!\" & AE118),0) + IF(Setup!$AI$11<>\"\",INDIRECT(\"'\" & Setup!$AI$11 & \"'!\" & AE118),0) + IF(Setup!$AI$12<>\"\",INDIRECT(\"'\" & Setup!$AI$12 & \"'!\" & AE118),0)","v":0},{"$f":"IF(Setup!$AJ$7<>\"\",INDIRECT(\"'\" & Setup!$AJ$7 & \"'!\" & AD118),0) + IF(Setup!$AJ$8<>\"\",INDIRECT(\"'\" & Setup!$AJ$8 & \"'!\" & AD118),0) + IF(Setup!$AJ$9<>\"\",INDIRECT(\"'\" & Setup!$AJ$9 & \"'!\" & AD118),0) + IF(Setup!$AJ$10<>\"\",INDIRECT(\"'\" & Setup!$AJ$10 & \"'!\" & AD118),0) + IF(Setup!$AJ$11<>\"\",INDIRECT(\"'\" & Setup!$AJ$11 & \"'!\" & AD118),0) + IF(Setup!$AJ$12<>\"\",INDIRECT(\"'\" & Setup!$AJ$12 & \"'!\" & AD118),0)","v":0},{"$f":"IF(Setup!$AJ$7<>\"\",INDIRECT(\"'\" & Setup!$AJ$7 & \"'!\" & AE118),0) + IF(Setup!$AJ$8<>\"\",INDIRECT(\"'\" & Setup!$AJ$8 & \"'!\" & AE118),0) + IF(Setup!$AJ$9<>\"\",INDIRECT(\"'\" & Setup!$AJ$9 & \"'!\" & AE118),0) + IF(Setup!$AJ$10<>\"\",INDIRECT(\"'\" & Setup!$AJ$10 & \"'!\" & AE118),0) + IF(Setup!$AJ$11<>\"\",INDIRECT(\"'\" & Setup!$AJ$11 & \"'!\" & AE118),0) + IF(Setup!$AJ$12<>\"\",INDIRECT(\"'\" & Setup!$AJ$12 & \"'!\" & AE118),0)","v":0}]
[{"$f":"Planning!A102","v":"I094"},{"$f":"Planning!B102","v":0},{"$f":"Planning!C102","v":0},{"$f":"Planning!D102","v":0},{"$f":"Planning!E102","v":0},{"$f":"Planning!G102","v":0},null,0,0,{"$f":"IF(AND($AR119=\"2\",$AB118<>Lists!$A$17),AU119,AT119)","v":""},"",0,0,{"$f":"IF(AND($AR119=\"2\",$AB119<>Lists!$A$17),AW119,AV119)","v":""},"",0,0,{"$f":"IF(AND($AR119=\"2\",$AB119<>Lists!$A$17),AY119,AX119)","v":""},"",0,0,{"$f":"IF(AND($AR119=\"2\",$AB119<>Lists!$A$17),BA119,AZ119)","v":""},"",0,0,{"$f":"IF(AND($AR119=\"2\",$AB119<>Lists!$A$17),BC119,BB119)","v":""},"",{"$f":"Planning!H102","v":0},"00","H118","J118","I118","",null,{"$f":"IF(Setup!$AG$7<>\"\",INDIRECT(\"'\" & Setup!$AG$7 & \"'!\" & AF119),0) + IF(Setup!$AG$8<>\"\",INDIRECT(\"'\" & Setup!$AG$8 & \"'!\" & AF119),0) + IF(Setup!$AG$9<>\"\",INDIRECT(\"'\" & Setup!$AG$9 & \"'!\" & AF119),0) + IF(Setup!$AG$10<>\"\",INDIRECT(\"'\" & Setup!$AG$10 & \"'!\" & AF119),0) + IF(Setup!$AG$11<>\"\",INDIRECT(\"'\" & Setup!$AG$11 & \"'!\" & AF119),0) + IF(Setup!$AG$12<>\"\",INDIRECT(\"'\" & Setup!$AG$12 & \"'!\" & AF119),0)","v":0},{"$f":"IF(Setup!$AH$7<>\"\",INDIRECT(\"'\" & Setup!$AH$7 & \"'!\" & AF119),0) + IF(Setup!$AH$8<>\"\",INDIRECT(\"'\" & Setup!$AH$8 & \"'!\" & AF119),0) + IF(Setup!$AH$9<>\"\",INDIRECT(\"'\" & Setup!$AH$9 & \"'!\" & AF119),0) + IF(Setup!$AH$10<>\"\",INDIRECT(\"'\" & Setup!$AH$10 & \"'!\" & AF119),0) + IF(Setup!$AH$11<>\"\",INDIRECT(\"'\" & Setup!$AH$11 & \"'!\" & AF119),0) + IF(Setup!$AH$12<>\"\",INDIRECT(\"'\" & Setup!$AH$12 & \"'!\" & AF119),0)","v":0},{"$f":"IF(Setup!$AI$7<>\"\",INDIRECT(\"'\" & Setup!$AI$7 & \"'!\" & AF119),0) + IF(Setup!$AI$8<>\"\",INDIRECT(\"'\" & Setup!$AI$8 & \"'!\" & AF119),0) + IF(Setup!$AI$9<>\"\",INDIRECT(\"'\" & Setup!$AI$9 & \"'!\" & AF119),0) + IF(Setup!$AI$10<>\"\",INDIRECT(\"'\" & Setup!$AI$10 & \"'!\" & AF119),0) + IF(Setup!$AI$11<>\"\",INDIRECT(\"'\" & Setup!$AI$11 & \"'!\" & AF119),0) + IF(Setup!$AI$12<>\"\",INDIRECT(\"'\" & Setup!$AI$12 & \"'!\" & AF119),0)","v":0},{"$f":"IF(Setup!$AJ$7<>\"\",INDIRECT(\"'\" & Setup!$AJ$7 & \"'!\" & AF119),0) + IF(Setup!$AJ$8<>\"\",INDIRECT(\"'\" & Setup!$AJ$8 & \"'!\" & AF119),0) + IF(Setup!$AJ$9<>\"\",INDIRECT(\"'\" & Setup!$AJ$9 & \"'!\" & AF119),0) + IF(Setup!$AJ$10<>\"\",INDIRECT(\"'\" & Setup!$AJ$10 & \"'!\" & AF119),0) + IF(Setup!$AJ$11<>\"\",INDIRECT(\"'\" & Setup!$AJ$11 & \"'!\" & AF119),0) + IF(Setup!$AJ$12<>\"\",INDIRECT(\"'\" & Setup!$AJ$12 & \"'!\" & AF119),0)","v":0},null,"",{"$nulls":3},{"$f":"IF(C119=0,\"\",LEFT(INDEX(Lists!$H$5:$H$49,MATCH(C119,Lists!$G$5:$G$49,0),1),1))","v":""},null,"","","","","","","","","","",{"$nulls":6},{"$f":"IF(Setup!$AG$7<>\"\",INDIRECT(\"'\" & Setup!$AG$7 & \"'!\" & AD119),0) + IF(Setup!$AG$8<>\"\",INDIRECT(\"'\" & Setup!$AG$8 & \"'!\" & AD119),0) + IF(Setup!$AG$9<>\"\",INDIRECT(\"'\" & Setup!$AG$9 & \"'!\" & AD119),0) + IF(Setup!$AG$10<>\"\",INDIRECT(\"'\" & Setup!$AG$10 & \"'!\" & AD119),0) + IF(Setup!$AG$11<>\"\",INDIRECT(\"'\" & Setup!$AG$11 & \"'!\" & AD119),0) + IF(Setup!$AG$12<>\"\",INDIRECT(\"'\" & Setup!$AG$12 & \"'!\" & AD119),0)","v":0},{"$f":"IF(Setup!$AG$7<>\"\",INDIRECT(\"'\" & Setup!$AG$7 & \"'!\" & AE119),0) + IF(Setup!$AG$8<>\"\",INDIRECT(\"'\" & Setup!$AG$8 & \"'!\" & AE119),0) + IF(Setup!$AG$9<>\"\",INDIRECT(\"'\" & Setup!$AG$9 & \"'!\" & AE119),0) + IF(Setup!$AG$10<>\"\",INDIRECT(\"'\" & Setup!$AG$10 & \"'!\" & AE119),0) + IF(Setup!$AG$11<>\"\",INDIRECT(\"'\" & Setup!$AG$11 & \"'!\" & AE119),0) + IF(Setup!$AG$12<>\"\",INDIRECT(\"'\" & Setup!$AG$12 & \"'!\" & AE119),0)","v":0},{"$f":"IF(Setup!$AH$7<>\"\",INDIRECT(\"'\" & Setup!$AH$7 & \"'!\" & AD119),0) + IF(Setup!$AH$8<>\"\",INDIRECT(\"'\" & Setup!$AH$8 & \"'!\" & AD119),0) + IF(Setup!$AH$9<>\"\",INDIRECT(\"'\" & Setup!$AH$9 & \"'!\" & AD119),0) + IF(Setup!$AH$10<>\"\",INDIRECT(\"'\" & Setup!$AH$10 & \"'!\" & AD119),0) + IF(Setup!$AH$11<>\"\",INDIRECT(\"'\" & Setup!$AH$11 & \"'!\" & AD119),0) + IF(Setup!$AH$12<>\"\",INDIRECT(\"'\" & Setup!$AH$12 & \"'!\" & AD119),0)","v":0},{"$f":"IF(Setup!$AH$7<>\"\",INDIRECT(\"'\" & Setup!$AH$7 & \"'!\" & AE119),0) + IF(Setup!$AH$8<>\"\",INDIRECT(\"'\" & Setup!$AH$8 & \"'!\" & AE119),0) + IF(Setup!$AH$9<>\"\",INDIRECT(\"'\" & Setup!$AH$9 & \"'!\" & AE119),0) + IF(Setup!$AH$10<>\"\",INDIRECT(\"'\" & Setup!$AH$10 & \"'!\" & AE119),0) + IF(Setup!$AH$11<>\"\",INDIRECT(\"'\" & Setup!$AH$11 & \"'!\" & AE119),0) + IF(Setup!$AH$12<>\"\",INDIRECT(\"'\" & Setup!$AH$12 & \"'!\" & AE119),0)","v":0},{"$f":"IF(Setup!$AI$7<>\"\",INDIRECT(\"'\" & Setup!$AI$7 & \"'!\" & AD119),0) + IF(Setup!$AI$8<>\"\",INDIRECT(\"'\" & Setup!$AI$8 & \"'!\" & AD119),0) + IF(Setup!$AI$9<>\"\",INDIRECT(\"'\" & Setup!$AI$9 & \"'!\" & AD119),0) + IF(Setup!$AI$10<>\"\",INDIRECT(\"'\" & Setup!$AI$10 & \"'!\" & AD119),0) + IF(Setup!$AI$11<>\"\",INDIRECT(\"'\" & Setup!$AI$11 & \"'!\" & AD119),0) + IF(Setup!$AI$12<>\"\",INDIRECT(\"'\" & Setup!$AI$12 & \"'!\" & AD119),0)","v":0},{"$f":"IF(Setup!$AI$7<>\"\",INDIRECT(\"'\" & Setup!$AI$7 & \"'!\" & AE119),0) + IF(Setup!$AI$8<>\"\",INDIRECT(\"'\" & Setup!$AI$8 & \"'!\" & AE119),0) + IF(Setup!$AI$9<>\"\",INDIRECT(\"'\" & Setup!$AI$9 & \"'!\" & AE119),0) + IF(Setup!$AI$10<>\"\",INDIRECT(\"'\" & Setup!$AI$10 & \"'!\" & AE119),0) + IF(Setup!$AI$11<>\"\",INDIRECT(\"'\" & Setup!$AI$11 & \"'!\" & AE119),0) + IF(Setup!$AI$12<>\"\",INDIRECT(\"'\" & Setup!$AI$12 & \"'!\" & AE119),0)","v":0},{"$f":"IF(Setup!$AJ$7<>\"\",INDIRECT(\"'\" & Setup!$AJ$7 & \"'!\" & AD119),0) + IF(Setup!$AJ$8<>\"\",INDIRECT(\"'\" & Setup!$AJ$8 & \"'!\" & AD119),0) + IF(Setup!$AJ$9<>\"\",INDIRECT(\"'\" & Setup!$AJ$9 & \"'!\" & AD119),0) + IF(Setup!$AJ$10<>\"\",INDIRECT(\"'\" & Setup!$AJ$10 & \"'!\" & AD119),0) + IF(Setup!$AJ$11<>\"\",INDIRECT(\"'\" & Setup!$AJ$11 & \"'!\" & AD119),0) + IF(Setup!$AJ$12<>\"\",INDIRECT(\"'\" & Setup!$AJ$12 & \"'!\" & AD119),0)","v":0},{"$f":"IF(Setup!$AJ$7<>\"\",INDIRECT(\"'\" & Setup!$AJ$7 & \"'!\" & AE119),0) + IF(Setup!$AJ$8<>\"\",INDIRECT(\"'\" & Setup!$AJ$8 & \"'!\" & AE119),0) + IF(Setup!$AJ$9<>\"\",INDIRECT(\"'\" & Setup!$AJ$9 & \"'!\" & AE119),0) + IF(Setup!$AJ$10<>\"\",INDIRECT(\"'\" & Setup!$AJ$10 & \"'!\" & AE119),0) + IF(Setup!$AJ$11<>\"\",INDIRECT(\"'\" & Setup!$AJ$11 & \"'!\" & AE119),0) + IF(Setup!$AJ$12<>\"\",INDIRECT(\"'\" & Setup!$AJ$12 & \"'!\" & AE119),0)","v":0}]
[{"$f":"Planning!A103","v":"I095"},{"$f":"Planning!B103","v":0},{"$f":"Planning!C103","v":0},{"$f":"Planning!D103","v":0},{"$f":"Planning!E103","v":0},{"$f":"Planning!G103","v":0},null,0,0,{"$f":"IF(AND($AR120=\"2\",$AB119<>Lists!$A$17),AU120,AT120)","v":""},"",0,0,{"$f":"IF(AND($AR120=\"2\",$AB120<>Lists!$A$17),AW120,AV120)","v":""},"",0,0,{"$f":"IF(AND($AR120=\"2\",$AB120<>Lists!$A$17),AY120,AX120)","v":""},"",0,0,{"$f":"IF(AND($AR120=\"2\",$AB120<>Lists!$A$17),BA120,AZ120)","v":""},"",0,0,{"$f":"IF(AND($AR120=\"2\",$AB120<>Lists!$A$17),BC120,BB120)","v":""},"",{"$f":"Planning!H103","v":0},"00","H119","J119","I119","",null,{"$f":"IF(Setup!$AG$7<>\"\",INDIRECT(\"'\" & Setup!$AG$7 & \"'!\" & AF120),0) + IF(Setup!$AG$8<>\"\",INDIRECT(\"'\" & Setup!$AG$8 & \"'!\" & AF120),0) + IF(Setup!$AG$9<>\"\",INDIRECT(\"'\" & Setup!$AG$9 & \"'!\" & AF120),0) + IF(Setup!$AG$10<>\"\",INDIRECT(\"'\" & Setup!$AG$10 & \"'!\" & AF120),0) + IF(Setup!$AG$11<>\"\",INDIRECT(\"'\" & Setup!$AG$11 & \"'!\" & AF120),0) + IF(Setup!$AG$12<>\"\",INDIRECT(\"'\" & Setup!$AG$12 & \"'!\" & AF120),0)","v":0},{"$f":"IF(Setup!$AH$7<>\"\",INDIRECT(\"'\" & Setup!$AH$7 & \"'!\" & AF120),0) + IF(Setup!$AH$8<>\"\",INDIRECT(\"'\" & Setup!$AH$8 & \"'!\" & AF120),0) + IF(Setup!$AH$9<>\"\",INDIRECT(\"'\" & Setup!$AH$9 & \"'!\" & AF120),0) + IF(Setup!$AH$10<>\"\",INDIRECT(\"'\" & Setup!$AH$10 & \"'!\" & AF120),0) + IF(Setup!$AH$11<>\"\",INDIRECT(\"'\" & Setup!$AH$11 & \"'!\" & AF120),0) + IF(Setup!$AH$12<>\"\",INDIRECT(\"'\" & Setup!$AH$12 & \"'!\" & AF120),0)","v":0},{"$f":"IF(Setup!$AI$7<>\"\",INDIRECT(\"'\" & Setup!$AI$7 & \"'!\" & AF120),0) + IF(Setup!$AI$8<>\"\",INDIRECT(\"'\" & Setup!$AI$8 & \"'!\" & AF120),0) + IF(Setup!$AI$9<>\"\",INDIRECT(\"'\" & Setup!$AI$9 & \"'!\" & AF120),0) + IF(Setup!$AI$10<>\"\",INDIRECT(\"'\" & Setup!$AI$10 & \"'!\" & AF120),0) + IF(Setup!$AI$11<>\"\",INDIRECT(\"'\" & Setup!$AI$11 & \"'!\" & AF120),0) + IF(Setup!$AI$12<>\"\",INDIRECT(\"'\" & Setup!$AI$12 & \"'!\" & AF120),0)","v":0},{"$f":"IF(Setup!$AJ$7<>\"\",INDIRECT(\"'\" & Setup!$AJ$7 & \"'!\" & AF120),0) + IF(Setup!$AJ$8<>\"\",INDIRECT(\"'\" & Setup!$AJ$8 & \"'!\" & AF120),0) + IF(Setup!$AJ$9<>\"\",INDIRECT(\"'\" & Setup!$AJ$9 & \"'!\" & AF120),0) + IF(Setup!$AJ$10<>\"\",INDIRECT(\"'\" & Setup!$AJ$10 & \"'!\" & AF120),0) + IF(Setup!$AJ$11<>\"\",INDIRECT(\"'\" & Setup!$AJ$11 & \"'!\" & AF120),0) + IF(Setup!$AJ$12<>\"\",INDIRECT(\"'\" & Setup!$AJ$12 & \"'!\" & AF120),0)","v":0},null,"",{"$nulls":3},{"$f":"IF(C120=0,\"\",LEFT(INDEX(Lists!$H$5:$H$49,MATCH(C120,Lists!$G$5:$G$49,0),1),1))","v":""},null,"","","","","","","","","","",{"$nulls":6},{"$f":"IF(Setup!$AG$7<>\"\",INDIRECT(\"'\" & Setup!$AG$7 & \"'!\" & AD120),0) + IF(Setup!$AG$8<>\"\",INDIRECT(\"'\" & Setup!$AG$8 & \"'!\" & AD120),0) + IF(Setup!$AG$9<>\"\",INDIRECT(\"'\" & Setup!$AG$9 & \"'!\" & AD120),0) + IF(Setup!$AG$10<>\"\",INDIRECT(\"'\" & Setup!$AG$10 & \"'!\" & AD120),0) + IF(Setup!$AG$11<>\"\",INDIRECT(\"'\" & Setup!$AG$11 & \"'!\" & AD120),0) + IF(Setup!$AG$12<>\"\",INDIRECT(\"'\" & Setup!$AG$12 & \"'!\" & AD120),0)","v":0},{"$f":"IF(Setup!$AG$7<>\"\",INDIRECT(\"'\" & Setup!$AG$7 & \"'!\" & AE120),0) + IF(Setup!$AG$8<>\"\",INDIRECT(\"'\" & Setup!$AG$8 & \"'!\" & AE120),0) + IF(Setup!$AG$9<>\"\",INDIRECT(\"'\" & Setup!$AG$9 & \"'!\" & AE120),0) + IF(Setup!$AG$10<>\"\",INDIRECT(\"'\" & Setup!$AG$10 & \"'!\" & AE120),0) + IF(Setup!$AG$11<>\"\",INDIRECT(\"'\" & Setup!$AG$11 & \"'!\" & AE120),0) + IF(Setup!$AG$12<>\"\",INDIRECT(\"'\" & Setup!$AG$12 & \"'!\" & AE120),0)","v":0},{"$f":"IF(Setup!$AH$7<>\"\",INDIRECT(\"'\" & Setup!$AH$7 & \"'!\" & AD120),0) + IF(Setup!$AH$8<>\"\",INDIRECT(\"'\" & Setup!$AH$8 & \"'!\" & AD120),0) + IF(Setup!$AH$9<>\"\",INDIRECT(\"'\" & Setup!$AH$9 & \"'!\" & AD120),0) + IF(Setup!$AH$10<>\"\",INDIRECT(\"'\" & Setup!$AH$10 & \"'!\" & AD120),0) + IF(Setup!$AH$11<>\"\",INDIRECT(\"'\" & Setup!$AH$11 & \"'!\" & AD120),0) + IF(Setup!$AH$12<>\"\",INDIRECT(\"'\" & Setup!$AH$12 & \"'!\" & AD120),0)","v":0},{"$f":"IF(Setup!$AH$7<>\"\",INDIRECT(\"'\" & Setup!$AH$7 & \"'!\" & AE120),0) + IF(Setup!$AH$8<>\"\",INDIRECT(\"'\" & Setup!$AH$8 & \"'!\" & AE120),0) + IF(Setup!$AH$9<>\"\",INDIRECT(\"'\" & Setup!$AH$9 & \"'!\" & AE120),0) + IF(Setup!$AH$10<>\"\",INDIRECT(\"'\" & Setup!$AH$10 & \"'!\" & AE120),0) + IF(Setup!$AH$11<>\"\",INDIRECT(\"'\" & Setup!$AH$11 & \"'!\" & AE120),0) + IF(Setup!$AH$12<>\"\",INDIRECT(\"'\" & Setup!$AH$12 & \"'!\" & AE120),0)","v":0},{"$f":"IF(Setup!$AI$7<>\"\",INDIRECT(\"'\" & Setup!$AI$7 & \"'!\" & AD120),0) + IF(Setup!$AI$8<>\"\",INDIRECT(\"'\" & Setup!$AI$8 & \"'!\" & AD120),0) + IF(Setup!$AI$9<>\"\",INDIRECT(\"'\" & Setup!$AI$9 & \"'!\" & AD120),0) + IF(Setup!$AI$10<>\"\",INDIRECT(\"'\" & Setup!$AI$10 & \"'!\" & AD120),0) + IF(Setup!$AI$11<>\"\",INDIRECT(\"'\" & Setup!$AI$11 & \"'!\" & AD120),0) + IF(Setup!$AI$12<>\"\",INDIRECT(\"'\" & Setup!$AI$12 & \"'!\" & AD120),0)","v":0},{"$f":"IF(Setup!$AI$7<>\"\",INDIRECT(\"'\" & Setup!$AI$7 & \"'!\" & AE120),0) + IF(Setup!$AI$8<>\"\",INDIRECT(\"'\" & Setup!$AI$8 & \"'!\" & AE120),0) + IF(Setup!$AI$9<>\"\",INDIRECT(\"'\" & Setup!$AI$9 & \"'!\" & AE120),0) + IF(Setup!$AI$10<>\"\",INDIRECT(\"'\" & Setup!$AI$10 & \"'!\" & AE120),0) + IF(Setup!$AI$11<>\"\",INDIRECT(\"'\" & Setup!$AI$11 & \"'!\" & AE120),0) + IF(Setup!$AI$12<>\"\",INDIRECT(\"'\" & Setup!$AI$12 & \"'!\" & AE120),0)","v":0},{"$f":"IF(Setup!$AJ$7<>\"\",INDIRECT(\"'\" & Setup!$AJ$7 & \"'!\" & AD120),0) + IF(Setup!$AJ$8<>\"\",INDIRECT(\"'\" & Setup!$AJ$8 & \"'!\" & AD120),0) + IF(Setup!$AJ$9<>\"\",INDIRECT(\"'\" & Setup!$AJ$9 & \"'!\" & AD120),0) + IF(Setup!$AJ$10<>\"\",INDIRECT(\"'\" & Setup!$AJ$10 & \"'!\" & AD120),0) + IF(Setup!$AJ$11<>\"\",INDIRECT(\"'\" & Setup!$AJ$11 & \"'!\" & AD120),0) + IF(Setup!$AJ$12<>\"\",INDIRECT(\"'\" & Setup!$AJ$12 & \"'!\" & AD120),0)","v":0},{"$f":"IF(Setup!$AJ$7<>\"\",INDIRECT(\"'\" & Setup!$AJ$7 & \"'!\" & AE120),0) + IF(Setup!$AJ$8<>\"\",INDIRECT(\"'\" & Setup!$AJ$8 & \"'!\" & AE120),0) + IF(Setup!$AJ$9<>\"\",INDIRECT(\"'\" & Setup!$AJ$9 & \"'!\" & AE120),0) + IF(Setup!$AJ$10<>\"\",INDIRECT(\"'\" & Setup!$AJ$10 & \"'!\" & AE120),0) + IF(Setup!$AJ$11<>\"\",INDIRECT(\"'\" & Setup!$AJ$11 & \"'!\" & AE120),0) + IF(Setup!$AJ$12<>\"\",INDIRECT(\"'\" & Setup!$AJ$12 & \"'!\" & AE120),0)","v":0}]
[{"$f":"Planning!A104","v":"I096"},{"$f":"Planning!B104","v":0},{"$f":"Planning!C104","v":0},{"$f":"Planning!D104","v":0},{"$f":"Planning!E104","v":0},{"$f":"Planning!G104","v":0},null,0,0,{"$f":"IF(AND($AR121=\"2\",$AB120<>Lists!$A$17),AU121,AT121)","v":""},"",0,0,{"$f":"IF(AND($AR121=\"2\",$AB121<>Lists!$A$17),AW121,AV121)","v":""},"",0,0,{"$f":"IF(AND($AR121=\"2\",$AB121<>Lists!$A$17),AY121,AX121)","v":""},"",0,0,{"$f":"IF(AND($AR121=\"2\",$AB121<>Lists!$A$17),BA121,AZ121)","v":""},"",0,0,{"$f":"IF(AND($AR121=\"2\",$AB121<>Lists!$A$17),BC121,BB121)","v":""},"",{"$f":"Planning!H104","v":0},"00","H120","J120","I120","",null,{"$f":"IF(Setup!$AG$7<>\"\",INDIRECT(\"'\" & Setup!$AG$7 & \"'!\" & AF121),0) + IF(Setup!$AG$8<>\"\",INDIRECT(\"'\" & Setup!$AG$8 & \"'!\" & AF121),0) + IF(Setup!$AG$9<>\"\",INDIRECT(\"'\" & Setup!$AG$9 & \"'!\" & AF121),0) + IF(Setup!$AG$10<>\"\",INDIRECT(\"'\" & Setup!$AG$10 & \"'!\" & AF121),0) + IF(Setup!$AG$11<>\"\",INDIRECT(\"'\" & Setup!$AG$11 & \"'!\" & AF121),0) + IF(Setup!$AG$12<>\"\",INDIRECT(\"'\" & Setup!$AG$12 & \"'!\" & AF121),0)","v":0},{"$f":"IF(Setup!$AH$7<>\"\",INDIRECT(\"'\" & Setup!$AH$7 & \"'!\" & AF121),0) + IF(Setup!$AH$8<>\"\",INDIRECT(\"'\" & Setup!$AH$8 & \"'!\" & AF121),0) + IF(Setup!$AH$9<>\"\",INDIRECT(\"'\" & Setup!$AH$9 & \"'!\" & AF121),0) + IF(Setup!$AH$10<>\"\",INDIRECT(\"'\" & Setup!$AH$10 & \"'!\" & AF121),0) + IF(Setup!$AH$11<>\"\",INDIRECT(\"'\" & Setup!$AH$11 & \"'!\" & AF121),0) + IF(Setup!$AH$12<>\"\",INDIRECT(\"'\" & Setup!$AH$12 & \"'!\" & AF121),0)","v":0},{"$f":"IF(Setup!$AI$7<>\"\",INDIRECT(\"'\" & Setup!$AI$7 & \"'!\" & AF121),0) + IF(Setup!$AI$8<>\"\",INDIRECT(\"'\" & Setup!$AI$8 & \"'!\" & AF121),0) + IF(Setup!$AI$9<>\"\",INDIRECT(\"'\" & Setup!$AI$9 & \"'!\" & AF121),0) + IF(Setup!$AI$10<>\"\",INDIRECT(\"'\" & Setup!$AI$10 & \"'!\" & AF121),0) + IF(Setup!$AI$11<>\"\",INDIRECT(\"'\" & Setup!$AI$11 & \"'!\" & AF121),0) + IF(Setup!$AI$12<>\"\",INDIRECT(\"'\" & Setup!$AI$12 & \"'!\" & AF121),0)","v":0},{"$f":"IF(Setup!$AJ$7<>\"\",INDIRECT(\"'\" & Setup!$AJ$7 & \"'!\" & AF121),0) + IF(Setup!$AJ$8<>\"\",INDIRECT(\"'\" & Setup!$AJ$8 & \"'!\" & AF121),0) + IF(Setup!$AJ$9<>\"\",INDIRECT(\"'\" & Setup!$AJ$9 & \"'!\" & AF121),0) + IF(Setup!$AJ$10<>\"\",INDIRECT(\"'\" & Setup!$AJ$10 & \"'!\" & AF121),0) + IF(Setup!$AJ$11<>\"\",INDIRECT(\"'\" & Setup!$AJ$11 & \"'!\" & AF121),0) + IF(Setup!$AJ$12<>\"\",INDIRECT(\"'\" & Setup!$AJ$12 & \"'!\" & AF121),0)","v":0},null,"",{"$nulls":3},{"$f":"IF(C121=0,\"\",LEFT(INDEX(Lists!$H$5:$H$49,MATCH(C121,Lists!$G$5:$G$49,0),1),1))","v":""},null,"","","","","","","","","","",{"$nulls":6},{"$f":"IF(Setup!$AG$7<>\"\",INDIRECT(\"'\" & Setup!$AG$7 & \"'!\" & AD121),0) + IF(Setup!$AG$8<>\"\",INDIRECT(\"'\" & Setup!$AG$8 & \"'!\" & AD121),0) + IF(Setup!$AG$9<>\"\",INDIRECT(\"'\" & Setup!$AG$9 & \"'!\" & AD121),0) + IF(Setup!$AG$10<>\"\",INDIRECT(\"'\" & Setup!$AG$10 & \"'!\" & AD121),0) + IF(Setup!$AG$11<>\"\",INDIRECT(\"'\" & Setup!$AG$11 & \"'!\" & AD121),0) + IF(Setup!$AG$12<>\"\",INDIRECT(\"'\" & Setup!$AG$12 & \"'!\" & AD121),0)","v":0},{"$f":"IF(Setup!$AG$7<>\"\",INDIRECT(\"'\" & Setup!$AG$7 & \"'!\" & AE121),0) + IF(Setup!$AG$8<>\"\",INDIRECT(\"'\" & Setup!$AG$8 & \"'!\" & AE121),0) + IF(Setup!$AG$9<>\"\",INDIRECT(\"'\" & Setup!$AG$9 & \"'!\" & AE121),0) + IF(Setup!$AG$10<>\"\",INDIRECT(\"'\" & Setup!$AG$10 & \"'!\" & AE121),0) + IF(Setup!$AG$11<>\"\",INDIRECT(\"'\" & Setup!$AG$11 & \"'!\" & AE121),0) + IF(Setup!$AG$12<>\"\",INDIRECT(\"'\" & Setup!$AG$12 & \"'!\" & AE121),0)","v":0},{"$f":"IF(Setup!$AH$7<>\"\",INDIRECT(\"'\" & Setup!$AH$7 & \"'!\" & AD121),0) + IF(Setup!$AH$8<>\"\",INDIRECT(\"'\" & Setup!$AH$8 & \"'!\" & AD121),0) + IF(Setup!$AH$9<>\"\",INDIRECT(\"'\" & Setup!$AH$9 & \"'!\" & AD121),0) + IF(Setup!$AH$10<>\"\",INDIRECT(\"'\" & Setup!$AH$10 & \"'!\" & AD121),0) + IF(Setup!$AH$11<>\"\",INDIRECT(\"'\" & Setup!$AH$11 & \"'!\" & AD121),0) + IF(Setup!$AH$12<>\"\",INDIRECT(\"'\" & Setup!$AH$12 & \"'!\" & AD121),0)","v":0},{"$f":"IF(Setup!$AH$7<>\"\",INDIRECT(\"'\" & Setup!$AH$7 & \"'!\" & AE121),0) + IF(Setup!$AH$8<>\"\",INDIRECT(\"'\" & Setup!$AH$8 & \"'!\" & AE121),0) + IF(Setup!$AH$9<>\"\",INDIRECT(\"'\" & Setup!$AH$9 & \"'!\" & AE121),0) + IF(Setup!$AH$10<>\"\",INDIRECT(\"'\" & Setup!$AH$10 & \"'!\" & AE121),0) + IF(Setup!$AH$11<>\"\",INDIRECT(\"'\" & Setup!$AH$11 & \"'!\" & AE121),0) + IF(Setup!$AH$12<>\"\",INDIRECT(\"'\" & Setup!$AH$12 & \"'!\" & AE121),0)","v":0},{"$f":"IF(Setup!$AI$7<>\"\",INDIRECT(\"'\" & Setup!$AI$7 & \"'!\" & AD121),0) + IF(Setup!$AI$8<>\"\",INDIRECT(\"'\" & Setup!$AI$8 & \"'!\" & AD121),0) + IF(Setup!$AI$9<>\"\",INDIRECT(\"'\" & Setup!$AI$9 & \"'!\" & AD121),0) + IF(Setup!$AI$10<>\"\",INDIRECT(\"'\" & Setup!$AI$10 & \"'!\" & AD121),0) + IF(Setup!$AI$11<>\"\",INDIRECT(\"'\" & Setup!$AI$11 & \"'!\" & AD121),0) + IF(Setup!$AI$12<>\"\",INDIRECT(\"'\" & Setup!$AI$12 & \"'!\" & AD121),0)","v":0},{"$f":"IF(Setup!$AI$7<>\"\",INDIRECT(\"'\" & Setup!$AI$7 & \"'!\" & AE121),0) + IF(Setup!$AI$8<>\"\",INDIRECT(\"'\" & Setup!$AI$8 & \"'!\" & AE121),0) + IF(Setup!$AI$9<>\"\",INDIRECT(\"'\" & Setup!$AI$9 & \"'!\" & AE121),0) + IF(Setup!$AI$10<>\"\",INDIRECT(\"'\" & Setup!$AI$10 & \"'!\" & AE121),0) + IF(Setup!$AI$11<>\"\",INDIRECT(\"'\" & Setup!$AI$11 & \"'!\" & AE121),0) + IF(Setup!$AI$12<>\"\",INDIRECT(\"'\" & Setup!$AI$12 & \"'!\" & AE121),0)","v":0},{"$f":"IF(Setup!$AJ$7<>\"\",INDIRECT(\"'\" & Setup!$AJ$7 & \"'!\" & AD121),0) + IF(Setup!$AJ$8<>\"\",INDIRECT(\"'\" & Setup!$AJ$8 & \"'!\" & AD121),0) + IF(Setup!$AJ$9<>\"\",INDIRECT(\"'\" & Setup!$AJ$9 & \"'!\" & AD121),0) + IF(Setup!$AJ$10<>\"\",INDIRECT(\"'\" & Setup!$AJ$10 & \"'!\" & AD121),0) + IF(Setup!$AJ$11<>\"\",INDIRECT(\"'\" & Setup!$AJ$11 & \"'!\" & AD121),0) + IF(Setup!$AJ$12<>\"\",INDIRECT(\"'\" & Setup!$AJ$12 & \"'!\" & AD121),0)","v":0},{"$f":"IF(Setup!$AJ$7<>\"\",INDIRECT(\"'\" & Setup!$AJ$7 & \"'!\" & AE121),0) + IF(Setup!$AJ$8<>\"\",INDIRECT(\"'\" & Setup!$AJ$8 & \"'!\" & AE121),0) + IF(Setup!$AJ$9<>\"\",INDIRECT(\"'\" & Setup!$AJ$9 & \"'!\" & AE121),0) + IF(Setup!$AJ$10<>\"\",INDIRECT(\"'\" & Setup!$AJ$10 & \"'!\" & AE121),0) + IF(Setup!$AJ$11<>\"\",INDIRECT(\"'\" & Setup!$AJ$11 & \"'!\" & AE121),0) + IF(Setup!$AJ$12<>\"\",INDIRECT(\"'\" & Setup!$AJ$12 & \"'!\" & AE121),0)","v":0}]
[{"$f":"Planning!A105","v":"I097"},{"$f":"Planning!B105","v":0},{"$f":"Planning!C105","v":0},{"$f":"Planning!D105","v":0},{"$f":"Planning!E105","v":0},{"$f":"Planning!G105","v":0},null,0,0,{"$f":"IF(AND($AR122=\"2\",$AB121<>Lists!$A$17),AU122,AT122)","v":""},{"$f":"IF($AN122 = ExcluirDelPLogro,\"\",IF(AND(H122=0,I122=0),\"\",J122))","v":""},{"$f":"IF(AR122<>\"3\",BJ122,INDIRECT(\"'\" & MesCierreQ1 & \"'!\" & AD122))","v":0},{"$f":"IF(AR122<>\"3\",BK122,INDIRECT(\"'\" & MesCierreQ1 & \"'!\" & AE122))","v":0},{"$f":"IF(AND($AR122=\"2\",$AB122<>Lists!$A$17),AW122,AV122)","v":""},{"$f":"IF($AN122=ExcluirDelPLogro,\"\",IF(AND(L122=0,M122=0),\"\",N122))","v":""},{"$f":"IF(AR122<>\"3\",BL122,INDIRECT(\"'\" & MesCierreQ2 & \"'!\" & AD122))","v":0},{"$f":"IF(AR122<>\"3\",BM122,INDIRECT(\"'\" & MesCierreQ2 & \"'!\" & AE122))","v":0},{"$f":"IF(AND($AR122=\"2\",$AB122<>Lists!$A$17),AY122,AX122)","v":""},{"$f":"IF($AN122=ExcluirDelPLogro,\"\",IF(AND(P122=0,Q122=0),\"\",R122))","v":""},{"$f":"IF(AR122<>\"3\",BN122,INDIRECT(\"'\" & MesCierreQ3 & \"'!\" & AD122))","v":0},{"$f":"IF(AR122<>\"3\",BO122,INDIRECT(\"'\" & MesCierreQ3 & \"'!\" & AE122))","v":0},{"$f":"IF(AND($AR122=\"2\",$AB122<>Lists!$A$17),BA122,AZ122)","v":""},{"$f":"IF($AN122=ExcluirDelPLogro,\"\",IF(AND(T122=0,U122=0),\"\",V122))","v":""},{"$f":"IF(AR122<>\"3\",BP122,INDIRECT(\"'\" & MesCierreQ4 & \"'!\" & AD122))","v":0},{"$f":"IF(AR122<>\"3\",BQ122,INDIRECT(\"'\" & MesCierreQ4 & \"'!\" & AE122))","v":0},{"$f":"IF(AND($AR122=\"2\",$AB122<>Lists!$A$17),BC122,BB122)","v":""},{"$f":"IF($AN122=ExcluirDelPLogro,\"\",IF(AND(X122=0,Y122=0),\"\",Z122))","v":""},{"$f":"Planning!H105","v":0},"00","H121","J121","I121","",null,{"$f":"IF(Setup!$AG$7<>\"\",INDIRECT(\"'\" & Setup!$AG$7 & \"'!\" & AF122),0) + IF(Setup!$AG$8<>\"\",INDIRECT(\"'\" & Setup!$AG$8 & \"'!\" & AF122),0) + IF(Setup!$AG$9<>\"\",INDIRECT(\"'\" & Setup!$AG$9 & \"'!\" & AF122),0) + IF(Setup!$AG$10<>\"\",INDIRECT(\"'\" & Setup!$AG$10 & \"'!\" & AF122),0) + IF(Setup!$AG$11<>\"\",INDIRECT(\"'\" & Setup!$AG$11 & \"'!\" & AF122),0) + IF(Setup!$AG$12<>\"\",INDIRECT(\"'\" & Setup!$AG$12 & \"'!\" & AF122),0)","v":0},{"$f":"IF(Setup!$AH$7<>\"\",INDIRECT(\"'\" & Setup!$AH$7 & \"'!\" & AF122),0) + IF(Setup!$AH$8<>\"\",INDIRECT(\"'\" & Setup!$AH$8 & \"'!\" & AF122),0) + IF(Setup!$AH$9<>\"\",INDIRECT(\"'\" & Setup!$AH$9 & \"'!\" & AF122),0) + IF(Setup!$AH$10<>\"\",INDIRECT(\"'\" & Setup!$AH$10 & \"'!\" & AF122),0) + IF(Setup!$AH$11<>\"\",INDIRECT(\"'\" & Setup!$AH$11 & \"'!\" & AF122),0) + IF(Setup!$AH$12<>\"\",INDIRECT(\"'\" & Setup!$AH$12 & \"'!\" & AF122),0)","v":0},{"$f":"IF(Setup!$AI$7<>\"\",INDIRECT(\"'\" & Setup!$AI$7 & \"'!\" & AF122),0) + IF(Setup!$AI$8<>\"\",INDIRECT(\"'\" & Setup!$AI$8 & \"'!\" & AF122),0) + IF(Setup!$AI$9<>\"\",INDIRECT(\"'\" & Setup!$AI$9 & \"'!\" & AF122),0) + IF(Setup!$AI$10<>\"\",INDIRECT(\"'\" & Setup!$AI$10 & \"'!\" & AF122),0) + IF(Setup!$AI$11<>\"\",INDIRECT(\"'\" & Setup!$AI$11 & \"'!\" & AF122),0) + IF(Setup!$AI$12<>\"\",INDIRECT(\"'\" & Setup!$AI$12 & \"'!\" & AF122),0)","v":0},{"$f":"IF(Setup!$AJ$7<>\"\",INDIRECT(\"'\" & Setup!$AJ$7 & \"'!\" & AF122),0) + IF(Setup!$AJ$8<>\"\",INDIRECT(\"'\" & Setup!$AJ$8 & \"'!\" & AF122),0) + IF(Setup!$AJ$9<>\"\",INDIRECT(\"'\" & Setup!$AJ$9 & \"'!\" & AF122),0) + IF(Setup!$AJ$10<>\"\",INDIRECT(\"'\" & Setup!$AJ$10 & \"'!\" & AF122),0) + IF(Setup!$AJ$11<>\"\",INDIRECT(\"'\" & Setup!$AJ$11 & \"'!\" & AF122),0) + IF(Setup!$AJ$12<>\"\",INDIRECT(\"'\" & Setup!$AJ$12 & \"'!\" & AF122),0)","v":0},null,"",{"$nulls":3},{"$f":"IF(C122=0,\"\",LEFT(INDEX(Lists!$H$5:$H$49,MATCH(C122,Lists!$G$5:$G$49,0),1),1))","v":""},null,"","","","","","","","","","",{"$nulls":6},{"$f":"IF(Setup!$AG$7<>\"\",INDIRECT(\"'\" & Setup!$AG$7 & \"'!\" & AD122),0) + IF(Setup!$AG$8<>\"\",INDIRECT(\"'\" & Setup!$AG$8 & \"'!\" & AD122),0) + IF(Setup!$AG$9<>\"\",INDIRECT(\"'\" & Setup!$AG$9 & \"'!\" & AD122),0) + IF(Setup!$AG$10<>\"\",INDIRECT(\"'\" & Setup!$AG$10 & \"'!\" & AD122),0) + IF(Setup!$AG$11<>\"\",INDIRECT(\"'\" & Setup!$AG$11 & \"'!\" & AD122),0) + IF(Setup!$AG$12<>\"\",INDIRECT(\"'\" & Setup!$AG$12 & \"'!\" & AD122),0)","v":0},{"$f":"IF(Setup!$AG$7<>\"\",INDIRECT(\"'\" & Setup!$AG$7 & \"'!\" & AE122),0) + IF(Setup!$AG$8<>\"\",INDIRECT(\"'\" & Setup!$AG$8 & \"'!\" & AE122),0) + IF(Setup!$AG$9<>\"\",INDIRECT(\"'\" & Setup!$AG$9 & \"'!\" & AE122),0) + IF(Setup!$AG$10<>\"\",INDIRECT(\"'\" & Setup!$AG$10 & \"'!\" & AE122),0) + IF(Setup!$AG$11<>\"\",INDIRECT(\"'\" & Setup!$AG$11 & \"'!\" & AE122),0) + IF(Setup!$AG$12<>\"\",INDIRECT(\"'\" & Setup!$AG$12 & \"'!\" & AE122),0)","v":0},{"$f":"IF(Setup!$AH$7<>\"\",INDIRECT(\"'\" & Setup!$AH$7 & \"'!\" & AD122),0) + IF(Setup!$AH$8<>\"\",INDIRECT(\"'\" & Setup!$AH$8 & \"'!\" & AD122),0) + IF(Setup!$AH$9<>\"\",INDIRECT(\"'\" & Setup!$AH$9 & \"'!\" & AD122),0) + IF(Setup!$AH$10<>\"\",INDIRECT(\"'\" & Setup!$AH$10 & \"'!\" & AD122),0) + IF(Setup!$AH$11<>\"\",INDIRECT(\"'\" & Setup!$AH$11 & \"'!\" & AD122),0) + IF(Setup!$AH$12<>\"\",INDIRECT(\"'\" & Setup!$AH$12 & \"'!\" & AD122),0)","v":0},{"$f":"IF(Setup!$AH$7<>\"\",INDIRECT(\"'\" & Setup!$AH$7 & \"'!\" & AE122),0) + IF(Setup!$AH$8<>\"\",INDIRECT(\"'\" & Setup!$AH$8 & \"'!\" & AE122),0) + IF(Setup!$AH$9<>\"\",INDIRECT(\"'\" & Setup!$AH$9 & \"'!\" & AE122),0) + IF(Setup!$AH$10<>\"\",INDIRECT(\"'\" & Setup!$AH$10 & \"'!\" & AE122),0) + IF(Setup!$AH$11<>\"\",INDIRECT(\"'\" & Setup!$AH$11 & \"'!\" & AE122),0) + IF(Setup!$AH$12<>\"\",INDIRECT(\"'\" & Setup!$AH$12 & \"'!\" & AE122),0)","v":0},{"$f":"IF(Setup!$AI$7<>\"\",INDIRECT(\"'\" & Setup!$AI$7 & \"'!\" & AD122),0) + IF(Setup!$AI$8<>\"\",INDIRECT(\"'\" & Setup!$AI$8 & \"'!\" & AD122),0) + IF(Setup!$AI$9<>\"\",INDIRECT(\"'\" & Setup!$AI$9 & \"'!\" & AD122),0) + IF(Setup!$AI$10<>\"\",INDIRECT(\"'\" & Setup!$AI$10 & \"'!\" & AD122),0) + IF(Setup!$AI$11<>\"\",INDIRECT(\"'\" & Setup!$AI$11 & \"'!\" & AD122),0) + IF(Setup!$AI$12<>\"\",INDIRECT(\"'\" & Setup!$AI$12 & \"'!\" & AD122),0)","v":0},{"$f":"IF(Setup!$AI$7<>\"\",INDIRECT(\"'\" & Setup!$AI$7 & \"'!\" & AE122),0) + IF(Setup!$AI$8<>\"\",INDIRECT(\"'\" & Setup!$AI$8 & \"'!\" & AE122),0) + IF(Setup!$AI$9<>\"\",INDIRECT(\"'\" & Setup!$AI$9 & \"'!\" & AE122),0) + IF(Setup!$AI$10<>\"\",INDIRECT(\"'\" & Setup!$AI$10 & \"'!\" & AE122),0) + IF(Setup!$AI$11<>\"\",INDIRECT(\"'\" & Setup!$AI$11 & \"'!\" & AE122),0) + IF(Setup!$AI$12<>\"\",INDIRECT(\"'\" & Setup!$AI$12 & \"'!\" & AE122),0)","v":0},{"$f":"IF(Setup!$AJ$7<>\"\",INDIRECT(\"'\" & Setup!$AJ$7 & \"'!\" & AD122),0) + IF(Setup!$AJ$8<>\"\",INDIRECT(\"'\" & Setup!$AJ$8 & \"'!\" & AD122),0) + IF(Setup!$AJ$9<>\"\",INDIRECT(\"'\" & Setup!$AJ$9 & \"'!\" & AD122),0) + IF(Setup!$AJ$10<>\"\",INDIRECT(\"'\" & Setup!$AJ$10 & \"'!\" & AD122),0) + IF(Setup!$AJ$11<>\"\",INDIRECT(\"'\" & Setup!$AJ$11 & \"'!\" & AD122),0) + IF(Setup!$AJ$12<>\"\",INDIRECT(\"'\" & Setup!$AJ$12 & \"'!\" & AD122),0)","v":0},{"$f":"IF(Setup!$AJ$7<>\"\",INDIRECT(\"'\" & Setup!$AJ$7 & \"'!\" & AE122),0) + IF(Setup!$AJ$8<>\"\",INDIRECT(\"'\" & Setup!$AJ$8 & \"'!\" & AE122),0) + IF(Setup!$AJ$9<>\"\",INDIRECT(\"'\" & Setup!$AJ$9 & \"'!\" & AE122),0) + IF(Setup!$AJ$10<>\"\",INDIRECT(\"'\" & Setup!$AJ$10 & \"'!\" & AE122),0) + IF(Setup!$AJ$11<>\"\",INDIRECT(\"'\" & Setup!$AJ$11 & \"'!\" & AE122),0) + IF(Setup!$AJ$12<>\"\",INDIRECT(\"'\" & Setup!$AJ$12 & \"'!\" & AE122),0)","v":0}]
[{"$f":"Planning!A106","v":"I098"},{"$f":"Planning!B106","v":0},{"$f":"Planning!C106","v":0},{"$f":"Planning!D106","v":0},{"$f":"Planning!E106","v":0},{"$f":"Planning!G106","v":0},null,0,0,{"$f":"IF(AND($AR123=\"2\",$AB122<>Lists!$A$17),AU123,AT123)","v":""},"",0,0,{"$f":"IF(AND($AR123=\"2\",$AB123<>Lists!$A$17),AW123,AV123)","v":""},"",0,0,{"$f":"IF(AND($AR123=\"2\",$AB123<>Lists!$A$17),AY123,AX123)","v":""},"",0,0,{"$f":"IF(AND($AR123=\"2\",$AB123<>Lists!$A$17),BA123,AZ123)","v":""},"",0,0,{"$f":"IF(AND($AR123=\"2\",$AB123<>Lists!$A$17),BC123,BB123)","v":""},"",{"$f":"Planning!H106","v":0},"00","H122","J122","I122","",null,{"$f":"IF(Setup!$AG$7<>\"\",INDIRECT(\"'\" & Setup!$AG$7 & \"'!\" & AF123),0) + IF(Setup!$AG$8<>\"\",INDIRECT(\"'\" & Setup!$AG$8 & \"'!\" & AF123),0) + IF(Setup!$AG$9<>\"\",INDIRECT(\"'\" & Setup!$AG$9 & \"'!\" & AF123),0) + IF(Setup!$AG$10<>\"\",INDIRECT(\"'\" & Setup!$AG$10 & \"'!\" & AF123),0) + IF(Setup!$AG$11<>\"\",INDIRECT(\"'\" & Setup!$AG$11 & \"'!\" & AF123),0) + IF(Setup!$AG$12<>\"\",INDIRECT(\"'\" & Setup!$AG$12 & \"'!\" & AF123),0)","v":0},{"$f":"IF(Setup!$AH$7<>\"\",INDIRECT(\"'\" & Setup!$AH$7 & \"'!\" & AF123),0) + IF(Setup!$AH$8<>\"\",INDIRECT(\"'\" & Setup!$AH$8 & \"'!\" & AF123),0) + IF(Setup!$AH$9<>\"\",INDIRECT(\"'\" & Setup!$AH$9 & \"'!\" & AF123),0) + IF(Setup!$AH$10<>\"\",INDIRECT(\"'\" & Setup!$AH$10 & \"'!\" & AF123),0) + IF(Setup!$AH$11<>\"\",INDIRECT(\"'\" & Setup!$AH$11 & \"'!\" & AF123),0) + IF(Setup!$AH$12<>\"\",INDIRECT(\"'\" & Setup!$AH$12 & \"'!\" & AF123),0)","v":0},{"$f":"IF(Setup!$AI$7<>\"\",INDIRECT(\"'\" & Setup!$AI$7 & \"'!\" & AF123),0) + IF(Setup!$AI$8<>\"\",INDIRECT(\"'\" & Setup!$AI$8 & \"'!\" & AF123),0) + IF(Setup!$AI$9<>\"\",INDIRECT(\"'\" & Setup!$AI$9 & \"'!\" & AF123),0) + IF(Setup!$AI$10<>\"\",INDIRECT(\"'\" & Setup!$AI$10 & \"'!\" & AF123),0) + IF(Setup!$AI$11<>\"\",INDIRECT(\"'\" & Setup!$AI$11 & \"'!\" & AF123),0) + IF(Setup!$AI$12<>\"\",INDIRECT(\"'\" & Setup!$AI$12 & \"'!\" & AF123),0)","v":0},{"$f":"IF(Setup!$AJ$7<>\"\",INDIRECT(\"'\" & Setup!$AJ$7 & \"'!\" & AF123),0) + IF(Setup!$AJ$8<>\"\",INDIRECT(\"'\" & Setup!$AJ$8 & \"'!\" & AF123),0) + IF(Setup!$AJ$9<>\"\",INDIRECT(\"'\" & Setup!$AJ$9 & \"'!\" & AF123),0) + IF(Setup!$AJ$10<>\"\",INDIRECT(\"'\" & Setup!$AJ$10 & \"'!\" & AF123),0) + IF(Setup!$AJ$11<>\"\",INDIRECT(\"'\" & Setup!$AJ$11 & \"'!\" & AF123),0) + IF(Setup!$AJ$12<>\"\",INDIRECT(\"'\" & Setup!$AJ$12 & \"'!\" & AF123),0)","v":0},null,"",{"$nulls":3},{"$f":"IF(C123=0,\"\",LEFT(INDEX(Lists!$H$5:$H$49,MATCH(C123,Lists!$G$5:$G$49,0),1),1))","v":""},null,"","","","","","","","","","",{"$nulls":6},{"$f":"IF(Setup!$AG$7<>\"\",INDIRECT(\"'\" & Setup!$AG$7 & \"'!\" & AD123),0) + IF(Setup!$AG$8<>\"\",INDIRECT(\"'\" & Setup!$AG$8 & \"'!\" & AD123),0) + IF(Setup!$AG$9<>\"\",INDIRECT(\"'\" & Setup!$AG$9 & \"'!\" & AD123),0) + IF(Setup!$AG$10<>\"\",INDIRECT(\"'\" & Setup!$AG$10 & \"'!\" & AD123),0) + IF(Setup!$AG$11<>\"\",INDIRECT(\"'\" & Setup!$AG$11 & \"'!\" & AD123),0) + IF(Setup!$AG$12<>\"\",INDIRECT(\"'\" & Setup!$AG$12 & \"'!\" & AD123),0)","v":0},{"$f":"IF(Setup!$AG$7<>\"\",INDIRECT(\"'\" & Setup!$AG$7 & \"'!\" & AE123),0) + IF(Setup!$AG$8<>\"\",INDIRECT(\"'\" & Setup!$AG$8 & \"'!\" & AE123),0) + IF(Setup!$AG$9<>\"\",INDIRECT(\"'\" & Setup!$AG$9 & \"'!\" & AE123),0) + IF(Setup!$AG$10<>\"\",INDIRECT(\"'\" & Setup!$AG$10 & \"'!\" & AE123),0) + IF(Setup!$AG$11<>\"\",INDIRECT(\"'\" & Setup!$AG$11 & \"'!\" & AE123),0) + IF(Setup!$AG$12<>\"\",INDIRECT(\"'\" & Setup!$AG$12 & \"'!\" & AE123),0)","v":0},{"$f":"IF(Setup!$AH$7<>\"\",INDIRECT(\"'\" & Setup!$AH$7 & \"'!\" & AD123),0) + IF(Setup!$AH$8<>\"\",INDIRECT(\"'\" & Setup!$AH$8 & \"'!\" & AD123),0) + IF(Setup!$AH$9<>\"\",INDIRECT(\"'\" & Setup!$AH$9 & \"'!\" & AD123),0) + IF(Setup!$AH$10<>\"\",INDIRECT(\"'\" & Setup!$AH$10 & \"'!\" & AD123),0) + IF(Setup!$AH$11<>\"\",INDIRECT(\"'\" & Setup!$AH$11 & \"'!\" & AD123),0) + IF(Setup!$AH$12<>\"\",INDIRECT(\"'\" & Setup!$AH$12 & \"'!\" & AD123),0)","v":0},{"$f":"IF(Setup!$AH$7<>\"\",INDIRECT(\"'\" & Setup!$AH$7 & \"'!\" & AE123),0) + IF(Setup!$AH$8<>\"\",INDIRECT(\"'\" & Setup!$AH$8 & \"'!\" & AE123),0) + IF(Setup!$AH$9<>\"\",INDIRECT(\"'\" & Setup!$AH$9 & \"'!\" & AE123),0) + IF(Setup!$AH$10<>\"\",INDIRECT(\"'\" & Setup!$AH$10 & \"'!\" & AE123),0) + IF(Setup!$AH$11<>\"\",INDIRECT(\"'\" & Setup!$AH$11 & \"'!\" & AE123),0) + IF(Setup!$AH$12<>\"\",INDIRECT(\"'\" & Setup!$AH$12 & \"'!\" & AE123),0)","v":0},{"$f":"IF(Setup!$AI$7<>\"\",INDIRECT(\"'\" & Setup!$AI$7 & \"'!\" & AD123),0) + IF(Setup!$AI$8<>\"\",INDIRECT(\"'\" & Setup!$AI$8 & \"'!\" & AD123),0) + IF(Setup!$AI$9<>\"\",INDIRECT(\"'\" & Setup!$AI$9 & \"'!\" & AD123),0) + IF(Setup!$AI$10<>\"\",INDIRECT(\"'\" & Setup!$AI$10 & \"'!\" & AD123),0) + IF(Setup!$AI$11<>\"\",INDIRECT(\"'\" & Setup!$AI$11 & \"'!\" & AD123),0) + IF(Setup!$AI$12<>\"\",INDIRECT(\"'\" & Setup!$AI$12 & \"'!\" & AD123),0)","v":0},{"$f":"IF(Setup!$AI$7<>\"\",INDIRECT(\"'\" & Setup!$AI$7 & \"'!\" & AE123),0) + IF(Setup!$AI$8<>\"\",INDIRECT(\"'\" & Setup!$AI$8 & \"'!\" & AE123),0) + IF(Setup!$AI$9<>\"\",INDIRECT(\"'\" & Setup!$AI$9 & \"'!\" & AE123),0) + IF(Setup!$AI$10<>\"\",INDIRECT(\"'\" & Setup!$AI$10 & \"'!\" & AE123),0) + IF(Setup!$AI$11<>\"\",INDIRECT(\"'\" & Setup!$AI$11 & \"'!\" & AE123),0) + IF(Setup!$AI$12<>\"\",INDIRECT(\"'\" & Setup!$AI$12 & \"'!\" & AE123),0)","v":0},{"$f":"IF(Setup!$AJ$7<>\"\",INDIRECT(\"'\" & Setup!$AJ$7 & \"'!\" & AD123),0) + IF(Setup!$AJ$8<>\"\",INDIRECT(\"'\" & Setup!$AJ$8 & \"'!\" & AD123),0) + IF(Setup!$AJ$9<>\"\",INDIRECT(\"'\" & Setup!$AJ$9 & \"'!\" & AD123),0) + IF(Setup!$AJ$10<>\"\",INDIRECT(\"'\" & Setup!$AJ$10 & \"'!\" & AD123),0) + IF(Setup!$AJ$11<>\"\",INDIRECT(\"'\" & Setup!$AJ$11 & \"'!\" & AD123),0) + IF(Setup!$AJ$12<>\"\",INDIRECT(\"'\" & Setup!$AJ$12 & \"'!\" & AD123),0)","v":0},{"$f":"IF(Setup!$AJ$7<>\"\",INDIRECT(\"'\" & Setup!$AJ$7 & \"'!\" & AE123),0) + IF(Setup!$AJ$8<>\"\",INDIRECT(\"'\" & Setup!$AJ$8 & \"'!\" & AE123),0) + IF(Setup!$AJ$9<>\"\",INDIRECT(\"'\" & Setup!$AJ$9 & \"'!\" & AE123),0) + IF(Setup!$AJ$10<>\"\",INDIRECT(\"'\" & Setup!$AJ$10 & \"'!\" & AE123),0) + IF(Setup!$AJ$11<>\"\",INDIRECT(\"'\" & Setup!$AJ$11 & \"'!\" & AE123),0) + IF(Setup!$AJ$12<>\"\",INDIRECT(\"'\" & Setup!$AJ$12 & \"'!\" & AE123),0)","v":0}]
[{"$f":"Planning!A107","v":"I099"},{"$f":"Planning!B107","v":0},{"$f":"Planning!C107","v":0},{"$f":"Planning!D107","v":0},{"$f":"Planning!E107","v":0},{"$f":"Planning!G107","v":0},null,0,0,{"$f":"IF(AND($AR124=\"2\",$AB123<>Lists!$A$17),AU124,AT124)","v":""},"",0,0,{"$f":"IF(AND($AR124=\"2\",$AB124<>Lists!$A$17),AW124,AV124)","v":""},"",0,0,{"$f":"IF(AND($AR124=\"2\",$AB124<>Lists!$A$17),AY124,AX124)","v":""},"",0,0,{"$f":"IF(AND($AR124=\"2\",$AB124<>Lists!$A$17),BA124,AZ124)","v":""},"",0,0,{"$f":"IF(AND($AR124=\"2\",$AB124<>Lists!$A$17),BC124,BB124)","v":""},"",{"$f":"Planning!H107","v":0},"00","H123","J123","I123","",null,{"$f":"IF(Setup!$AG$7<>\"\",INDIRECT(\"'\" & Setup!$AG$7 & \"'!\" & AF124),0) + IF(Setup!$AG$8<>\"\",INDIRECT(\"'\" & Setup!$AG$8 & \"'!\" & AF124),0) + IF(Setup!$AG$9<>\"\",INDIRECT(\"'\" & Setup!$AG$9 & \"'!\" & AF124),0) + IF(Setup!$AG$10<>\"\",INDIRECT(\"'\" & Setup!$AG$10 & \"'!\" & AF124),0) + IF(Setup!$AG$11<>\"\",INDIRECT(\"'\" & Setup!$AG$11 & \"'!\" & AF124),0) + IF(Setup!$AG$12<>\"\",INDIRECT(\"'\" & Setup!$AG$12 & \"'!\" & AF124),0)","v":0},{"$f":"IF(Setup!$AH$7<>\"\",INDIRECT(\"'\" & Setup!$AH$7 & \"'!\" & AF124),0) + IF(Setup!$AH$8<>\"\",INDIRECT(\"'\" & Setup!$AH$8 & \"'!\" & AF124),0) + IF(Setup!$AH$9<>\"\",INDIRECT(\"'\" & Setup!$AH$9 & \"'!\" & AF124),0) + IF(Setup!$AH$10<>\"\",INDIRECT(\"'\" & Setup!$AH$10 & \"'!\" & AF124),0) + IF(Setup!$AH$11<>\"\",INDIRECT(\"'\" & Setup!$AH$11 & \"'!\" & AF124),0) + IF(Setup!$AH$12<>\"\",INDIRECT(\"'\" & Setup!$AH$12 & \"'!\" & AF124),0)","v":0},{"$f":"IF(Setup!$AI$7<>\"\",INDIRECT(\"'\" & Setup!$AI$7 & \"'!\" & AF124),0) + IF(Setup!$AI$8<>\"\",INDIRECT(\"'\" & Setup!$AI$8 & \"'!\" & AF124),0) + IF(Setup!$AI$9<>\"\",INDIRECT(\"'\" & Setup!$AI$9 & \"'!\" & AF124),0) + IF(Setup!$AI$10<>\"\",INDIRECT(\"'\" & Setup!$AI$10 & \"'!\" & AF124),0) + IF(Setup!$AI$11<>\"\",INDIRECT(\"'\" & Setup!$AI$11 & \"'!\" & AF124),0) + IF(Setup!$AI$12<>\"\",INDIRECT(\"'\" & Setup!$AI$12 & \"'!\" & AF124),0)","v":0},{"$f":"IF(Setup!$AJ$7<>\"\",INDIRECT(\"'\" & Setup!$AJ$7 & \"'!\" & AF124),0) + IF(Setup!$AJ$8<>\"\",INDIRECT(\"'\" & Setup!$AJ$8 & \"'!\" & AF124),0) + IF(Setup!$AJ$9<>\"\",INDIRECT(\"'\" & Setup!$AJ$9 & \"'!\" & AF124),0) + IF(Setup!$AJ$10<>\"\",INDIRECT(\"'\" & Setup!$AJ$10 & \"'!\" & AF124),0) + IF(Setup!$AJ$11<>\"\",INDIRECT(\"'\" & Setup!$AJ$11 & \"'!\" & AF124),0) + IF(Setup!$AJ$12<>\"\",INDIRECT(\"'\" & Setup!$AJ$12 & \"'!\" & AF124),0)","v":0},null,"",{"$nulls":3},{"$f":"IF(C124=0,\"\",LEFT(INDEX(Lists!$H$5:$H$49,MATCH(C124,Lists!$G$5:$G$49,0),1),1))","v":""},null,"","","","","","","","","","",{"$nulls":6},{"$f":"IF(Setup!$AG$7<>\"\",INDIRECT(\"'\" & Setup!$AG$7 & \"'!\" & AD124),0) + IF(Setup!$AG$8<>\"\",INDIRECT(\"'\" & Setup!$AG$8 & \"'!\" & AD124),0) + IF(Setup!$AG$9<>\"\",INDIRECT(\"'\" & Setup!$AG$9 & \"'!\" & AD124),0) + IF(Setup!$AG$10<>\"\",INDIRECT(\"'\" & Setup!$AG$10 & \"'!\" & AD124),0) + IF(Setup!$AG$11<>\"\",INDIRECT(\"'\" & Setup!$AG$11 & \"'!\" & AD124),0) + IF(Setup!$AG$12<>\"\",INDIRECT(\"'\" & Setup!$AG$12 & \"'!\" & AD124),0)","v":0},{"$f":"IF(Setup!$AG$7<>\"\",INDIRECT(\"'\" & Setup!$AG$7 & \"'!\" & AE124),0) + IF(Setup!$AG$8<>\"\",INDIRECT(\"'\" & Setup!$AG$8 & \"'!\" & AE124),0) + IF(Setup!$AG$9<>\"\",INDIRECT(\"'\" & Setup!$AG$9 & \"'!\" & AE124),0) + IF(Setup!$AG$10<>\"\",INDIRECT(\"'\" & Setup!$AG$10 & \"'!\" & AE124),0) + IF(Setup!$AG$11<>\"\",INDIRECT(\"'\" & Setup!$AG$11 & \"'!\" & AE124),0) + IF(Setup!$AG$12<>\"\",INDIRECT(\"'\" & Setup!$AG$12 & \"'!\" & AE124),0)","v":0},{"$f":"IF(Setup!$AH$7<>\"\",INDIRECT(\"'\" & Setup!$AH$7 & \"'!\" & AD124),0) + IF(Setup!$AH$8<>\"\",INDIRECT(\"'\" & Setup!$AH$8 & \"'!\" & AD124),0) + IF(Setup!$AH$9<>\"\",INDIRECT(\"'\" & Setup!$AH$9 & \"'!\" & AD124),0) + IF(Setup!$AH$10<>\"\",INDIRECT(\"'\" & Setup!$AH$10 & \"'!\" & AD124),0) + IF(Setup!$AH$11<>\"\",INDIRECT(\"'\" & Setup!$AH$11 & \"'!\" & AD124),0) + IF(Setup!$AH$12<>\"\",INDIRECT(\"'\" & Setup!$AH$12 & \"'!\" & AD124),0)","v":0},{"$f":"IF(Setup!$AH$7<>\"\",INDIRECT(\"'\" & Setup!$AH$7 & \"'!\" & AE124),0) + IF(Setup!$AH$8<>\"\",INDIRECT(\"'\" & Setup!$AH$8 & \"'!\" & AE124),0) + IF(Setup!$AH$9<>\"\",INDIRECT(\"'\" & Setup!$AH$9 & \"'!\" & AE124),0) + IF(Setup!$AH$10<>\"\",INDIRECT(\"'\" & Setup!$AH$10 & \"'!\" & AE124),0) + IF(Setup!$AH$11<>\"\",INDIRECT(\"'\" & Setup!$AH$11 & \"'!\" & AE124),0) + IF(Setup!$AH$12<>\"\",INDIRECT(\"'\" & Setup!$AH$12 & \"'!\" & AE124),0)","v":0},{"$f":"IF(Setup!$AI$7<>\"\",INDIRECT(\"'\" & Setup!$AI$7 & \"'!\" & AD124),0) + IF(Setup!$AI$8<>\"\",INDIRECT(\"'\" & Setup!$AI$8 & \"'!\" & AD124),0) + IF(Setup!$AI$9<>\"\",INDIRECT(\"'\" & Setup!$AI$9 & \"'!\" & AD124),0) + IF(Setup!$AI$10<>\"\",INDIRECT(\"'\" & Setup!$AI$10 & \"'!\" & AD124),0) + IF(Setup!$AI$11<>\"\",INDIRECT(\"'\" & Setup!$AI$11 & \"'!\" & AD124),0) + IF(Setup!$AI$12<>\"\",INDIRECT(\"'\" & Setup!$AI$12 & \"'!\" & AD124),0)","v":0},{"$f":"IF(Setup!$AI$7<>\"\",INDIRECT(\"'\" & Setup!$AI$7 & \"'!\" & AE124),0) + IF(Setup!$AI$8<>\"\",INDIRECT(\"'\" & Setup!$AI$8 & \"'!\" & AE124),0) + IF(Setup!$AI$9<>\"\",INDIRECT(\"'\" & Setup!$AI$9 & \"'!\" & AE124),0) + IF(Setup!$AI$10<>\"\",INDIRECT(\"'\" & Setup!$AI$10 & \"'!\" & AE124),0) + IF(Setup!$AI$11<>\"\",INDIRECT(\"'\" & Setup!$AI$11 & \"'!\" & AE124),0) + IF(Setup!$AI$12<>\"\",INDIRECT(\"'\" & Setup!$AI$12 & \"'!\" & AE124),0)","v":0},{"$f":"IF(Setup!$AJ$7<>\"\",INDIRECT(\"'\" & Setup!$AJ$7 & \"'!\" & AD124),0) + IF(Setup!$AJ$8<>\"\",INDIRECT(\"'\" & Setup!$AJ$8 & \"'!\" & AD124),0) + IF(Setup!$AJ$9<>\"\",INDIRECT(\"'\" & Setup!$AJ$9 & \"'!\" & AD124),0) + IF(Setup!$AJ$10<>\"\",INDIRECT(\"'\" & Setup!$AJ$10 & \"'!\" & AD124),0) + IF(Setup!$AJ$11<>\"\",INDIRECT(\"'\" & Setup!$AJ$11 & \"'!\" & AD124),0) + IF(Setup!$AJ$12<>\"\",INDIRECT(\"'\" & Setup!$AJ$12 & \"'!\" & AD124),0)","v":0},{"$f":"IF(Setup!$AJ$7<>\"\",INDIRECT(\"'\" & Setup!$AJ$7 & \"'!\" & AE124),0) + IF(Setup!$AJ$8<>\"\",INDIRECT(\"'\" & Setup!$AJ$8 & \"'!\" & AE124),0) + IF(Setup!$AJ$9<>\"\",INDIRECT(\"'\" & Setup!$AJ$9 & \"'!\" & AE124),0) + IF(Setup!$AJ$10<>\"\",INDIRECT(\"'\" & Setup!$AJ$10 & \"'!\" & AE124),0) + IF(Setup!$AJ$11<>\"\",INDIRECT(\"'\" & Setup!$AJ$11 & \"'!\" & AE124),0) + IF(Setup!$AJ$12<>\"\",INDIRECT(\"'\" & Setup!$AJ$12 & \"'!\" & AE124),0)","v":0}]
[{"$f":"Planning!A108","v":"I100"},{"$f":"Planning!B108","v":0},{"$f":"Planning!C108","v":0},{"$f":"Planning!D108","v":0},{"$f":"Planning!E108","v":0},{"$f":"Planning!G108","v":0},null,0,0,{"$f":"IF(AND($AR125=\"2\",$AB124<>Lists!$A$17),AU125,AT125)","v":""},"",0,0,{"$f":"IF(AND($AR125=\"2\",$AB125<>Lists!$A$17),AW125,AV125)","v":""},"",0,0,{"$f":"IF(AND($AR125=\"2\",$AB125<>Lists!$A$17),AY125,AX125)","v":""},"",0,0,{"$f":"IF(AND($AR125=\"2\",$AB125<>Lists!$A$17),BA125,AZ125)","v":""},"",0,0,{"$f":"IF(AND($AR125=\"2\",$AB125<>Lists!$A$17),BC125,BB125)","v":""},"",{"$f":"Planning!H108","v":0},"00","H124","J124","I124","",null,{"$f":"IF(Setup!$AG$7<>\"\",INDIRECT(\"'\" & Setup!$AG$7 & \"'!\" & AF125),0) + IF(Setup!$AG$8<>\"\",INDIRECT(\"'\" & Setup!$AG$8 & \"'!\" & AF125),0) + IF(Setup!$AG$9<>\"\",INDIRECT(\"'\" & Setup!$AG$9 & \"'!\" & AF125),0) + IF(Setup!$AG$10<>\"\",INDIRECT(\"'\" & Setup!$AG$10 & \"'!\" & AF125),0) + IF(Setup!$AG$11<>\"\",INDIRECT(\"'\" & Setup!$AG$11 & \"'!\" & AF125),0) + IF(Setup!$AG$12<>\"\",INDIRECT(\"'\" & Setup!$AG$12 & \"'!\" & AF125),0)","v":0},{"$f":"IF(Setup!$AH$7<>\"\",INDIRECT(\"'\" & Setup!$AH$7 & \"'!\" & AF125),0) + IF(Setup!$AH$8<>\"\",INDIRECT(\"'\" & Setup!$AH$8 & \"'!\" & AF125),0) + IF(Setup!$AH$9<>\"\",INDIRECT(\"'\" & Setup!$AH$9 & \"'!\" & AF125),0) + IF(Setup!$AH$10<>\"\",INDIRECT(\"'\" & Setup!$AH$10 & \"'!\" & AF125),0) + IF(Setup!$AH$11<>\"\",INDIRECT(\"'\" & Setup!$AH$11 & \"'!\" & AF125),0) + IF(Setup!$AH$12<>\"\",INDIRECT(\"'\" & Setup!$AH$12 & \"'!\" & AF125),0)","v":0},{"$f":"IF(Setup!$AI$7<>\"\",INDIRECT(\"'\" & Setup!$AI$7 & \"'!\" & AF125),0) + IF(Setup!$AI$8<>\"\",INDIRECT(\"'\" & Setup!$AI$8 & \"'!\" & AF125),0) + IF(Setup!$AI$9<>\"\",INDIRECT(\"'\" & Setup!$AI$9 & \"'!\" & AF125),0) + IF(Setup!$AI$10<>\"\",INDIRECT(\"'\" & Setup!$AI$10 & \"'!\" & AF125),0) + IF(Setup!$AI$11<>\"\",INDIRECT(\"'\" & Setup!$AI$11 & \"'!\" & AF125),0) + IF(Setup!$AI$12<>\"\",INDIRECT(\"'\" & Setup!$AI$12 & \"'!\" & AF125),0)","v":0},{"$f":"IF(Setup!$AJ$7<>\"\",INDIRECT(\"'\" & Setup!$AJ$7 & \"'!\" & AF125),0) + IF(Setup!$AJ$8<>\"\",INDIRECT(\"'\" & Setup!$AJ$8 & \"'!\" & AF125),0) + IF(Setup!$AJ$9<>\"\",INDIRECT(\"'\" & Setup!$AJ$9 & \"'!\" & AF125),0) + IF(Setup!$AJ$10<>\"\",INDIRECT(\"'\" & Setup!$AJ$10 & \"'!\" & AF125),0) + IF(Setup!$AJ$11<>\"\",INDIRECT(\"'\" & Setup!$AJ$11 & \"'!\" & AF125),0) + IF(Setup!$AJ$12<>\"\",INDIRECT(\"'\" & Setup!$AJ$12 & \"'!\" & AF125),0)","v":0},null,"",{"$nulls":3},{"$f":"IF(C125=0,\"\",LEFT(INDEX(Lists!$H$5:$H$49,MATCH(C125,Lists!$G$5:$G$49,0),1),1))","v":""},null,"","","","","","","","","","",{"$nulls":6},{"$f":"IF(Setup!$AG$7<>\"\",INDIRECT(\"'\" & Setup!$AG$7 & \"'!\" & AD125),0) + IF(Setup!$AG$8<>\"\",INDIRECT(\"'\" & Setup!$AG$8 & \"'!\" & AD125),0) + IF(Setup!$AG$9<>\"\",INDIRECT(\"'\" & Setup!$AG$9 & \"'!\" & AD125),0) + IF(Setup!$AG$10<>\"\",INDIRECT(\"'\" & Setup!$AG$10 & \"'!\" & AD125),0) + IF(Setup!$AG$11<>\"\",INDIRECT(\"'\" & Setup!$AG$11 & \"'!\" & AD125),0) + IF(Setup!$AG$12<>\"\",INDIRECT(\"'\" & Setup!$AG$12 & \"'!\" & AD125),0)","v":0},{"$f":"IF(Setup!$AG$7<>\"\",INDIRECT(\"'\" & Setup!$AG$7 & \"'!\" & AE125),0) + IF(Setup!$AG$8<>\"\",INDIRECT(\"'\" & Setup!$AG$8 & \"'!\" & AE125),0) + IF(Setup!$AG$9<>\"\",INDIRECT(\"'\" & Setup!$AG$9 & \"'!\" & AE125),0) + IF(Setup!$AG$10<>\"\",INDIRECT(\"'\" & Setup!$AG$10 & \"'!\" & AE125),0) + IF(Setup!$AG$11<>\"\",INDIRECT(\"'\" & Setup!$AG$11 & \"'!\" & AE125),0) + IF(Setup!$AG$12<>\"\",INDIRECT(\"'\" & Setup!$AG$12 & \"'!\" & AE125),0)","v":0},{"$f":"IF(Setup!$AH$7<>\"\",INDIRECT(\"'\" & Setup!$AH$7 & \"'!\" & AD125),0) + IF(Setup!$AH$8<>\"\",INDIRECT(\"'\" & Setup!$AH$8 & \"'!\" & AD125),0) + IF(Setup!$AH$9<>\"\",INDIRECT(\"'\" & Setup!$AH$9 & \"'!\" & AD125),0) + IF(Setup!$AH$10<>\"\",INDIRECT(\"'\" & Setup!$AH$10 & \"'!\" & AD125),0) + IF(Setup!$AH$11<>\"\",INDIRECT(\"'\" & Setup!$AH$11 & \"'!\" & AD125),0) + IF(Setup!$AH$12<>\"\",INDIRECT(\"'\" & Setup!$AH$12 & \"'!\" & AD125),0)","v":0},{"$f":"IF(Setup!$AH$7<>\"\",INDIRECT(\"'\" & Setup!$AH$7 & \"'!\" & AE125),0) + IF(Setup!$AH$8<>\"\",INDIRECT(\"'\" & Setup!$AH$8 & \"'!\" & AE125),0) + IF(Setup!$AH$9<>\"\",INDIRECT(\"'\" & Setup!$AH$9 & \"'!\" & AE125),0) + IF(Setup!$AH$10<>\"\",INDIRECT(\"'\" & Setup!$AH$10 & \"'!\" & AE125),0) + IF(Setup!$AH$11<>\"\",INDIRECT(\"'\" & Setup!$AH$11 & \"'!\" & AE125),0) + IF(Setup!$AH$12<>\"\",INDIRECT(\"'\" & Setup!$AH$12 & \"'!\" & AE125),0)","v":0},{"$f":"IF(Setup!$AI$7<>\"\",INDIRECT(\"'\" & Setup!$AI$7 & \"'!\" & AD125),0) + IF(Setup!$AI$8<>\"\",INDIRECT(\"'\" & Setup!$AI$8 & \"'!\" & AD125),0) + IF(Setup!$AI$9<>\"\",INDIRECT(\"'\" & Setup!$AI$9 & \"'!\" & AD125),0) + IF(Setup!$AI$10<>\"\",INDIRECT(\"'\" & Setup!$AI$10 & \"'!\" & AD125),0) + IF(Setup!$AI$11<>\"\",INDIRECT(\"'\" & Setup!$AI$11 & \"'!\" & AD125),0) + IF(Setup!$AI$12<>\"\",INDIRECT(\"'\" & Setup!$AI$12 & \"'!\" & AD125),0)","v":0},{"$f":"IF(Setup!$AI$7<>\"\",INDIRECT(\"'\" & Setup!$AI$7 & \"'!\" & AE125),0) + IF(Setup!$AI$8<>\"\",INDIRECT(\"'\" & Setup!$AI$8 & \"'!\" & AE125),0) + IF(Setup!$AI$9<>\"\",INDIRECT(\"'\" & Setup!$AI$9 & \"'!\" & AE125),0) + IF(Setup!$AI$10<>\"\",INDIRECT(\"'\" & Setup!$AI$10 & \"'!\" & AE125),0) + IF(Setup!$AI$11<>\"\",INDIRECT(\"'\" & Setup!$AI$11 & \"'!\" & AE125),0) + IF(Setup!$AI$12<>\"\",INDIRECT(\"'\" & Setup!$AI$12 & \"'!\" & AE125),0)","v":0},{"$f":"IF(Setup!$AJ$7<>\"\",INDIRECT(\"'\" & Setup!$AJ$7 & \"'!\" & AD125),0) + IF(Setup!$AJ$8<>\"\",INDIRECT(\"'\" & Setup!$AJ$8 & \"'!\" & AD125),0) + IF(Setup!$AJ$9<>\"\",INDIRECT(\"'\" & Setup!$AJ$9 & \"'!\" & AD125),0) + IF(Setup!$AJ$10<>\"\",INDIRECT(\"'\" & Setup!$AJ$10 & \"'!\" & AD125),0) + IF(Setup!$AJ$11<>\"\",INDIRECT(\"'\" & Setup!$AJ$11 & \"'!\" & AD125),0) + IF(Setup!$AJ$12<>\"\",INDIRECT(\"'\" & Setup!$AJ$12 & \"'!\" & AD125),0)","v":0},{"$f":"IF(Setup!$AJ$7<>\"\",INDIRECT(\"'\" & Setup!$AJ$7 & \"'!\" & AE125),0) + IF(Setup!$AJ$8<>\"\",INDIRECT(\"'\" & Setup!$AJ$8 & \"'!\" & AE125),0) + IF(Setup!$AJ$9<>\"\",INDIRECT(\"'\" & Setup!$AJ$9 & \"'!\" & AE125),0) + IF(Setup!$AJ$10<>\"\",INDIRECT(\"'\" & Setup!$AJ$10 & \"'!\" & AE125),0) + IF(Setup!$AJ$11<>\"\",INDIRECT(\"'\" & Setup!$AJ$11 & \"'!\" & AE125),0) + IF(Setup!$AJ$12<>\"\",INDIRECT(\"'\" & Setup!$AJ$12 & \"'!\" & AE125),0)","v":0}]
[{"$f":"Planning!A109","v":"I101"},{"$f":"Planning!B109","v":0},{"$f":"Planning!C109","v":0},{"$f":"Planning!D109","v":0},{"$f":"Planning!E109","v":0},{"$f":"Planning!G109","v":0},null,0,0,{"$f":"IF(AND($AR126=\"2\",$AB125<>Lists!$A$17),AU126,AT126)","v":""},"",0,0,{"$f":"IF(AND($AR126=\"2\",$AB126<>Lists!$A$17),AW126,AV126)","v":""},"",0,0,{"$f":"IF(AND($AR126=\"2\",$AB126<>Lists!$A$17),AY126,AX126)","v":""},"",0,0,{"$f":"IF(AND($AR126=\"2\",$AB126<>Lists!$A$17),BA126,AZ126)","v":""},"",0,0,{"$f":"IF(AND($AR126=\"2\",$AB126<>Lists!$A$17),BC126,BB126)","v":""},"",{"$f":"Planning!H109","v":0},"00","H125","J125","I125","",null,{"$f":"IF(Setup!$AG$7<>\"\",INDIRECT(\"'\" & Setup!$AG$7 & \"'!\" & AF126),0) + IF(Setup!$AG$8<>\"\",INDIRECT(\"'\" & Setup!$AG$8 & \"'!\" & AF126),0) + IF(Setup!$AG$9<>\"\",INDIRECT(\"'\" & Setup!$AG$9 & \"'!\" & AF126),0) + IF(Setup!$AG$10<>\"\",INDIRECT(\"'\" & Setup!$AG$10 & \"'!\" & AF126),0) + IF(Setup!$AG$11<>\"\",INDIRECT(\"'\" & Setup!$AG$11 & \"'!\" & AF126),0) + IF(Setup!$AG$12<>\"\",INDIRECT(\"'\" & Setup!$AG$12 & \"'!\" & AF126),0)","v":0},{"$f":"IF(Setup!$AH$7<>\"\",INDIRECT(\"'\" & Setup!$AH$7 & \"'!\" & AF126),0) + IF(Setup!$AH$8<>\"\",INDIRECT(\"'\" & Setup!$AH$8 & \"'!\" & AF126),0) + IF(Setup!$AH$9<>\"\",INDIRECT(\"'\" & Setup!$AH$9 & \"'!\" & AF126),0) + IF(Setup!$AH$10<>\"\",INDIRECT(\"'\" & Setup!$AH$10 & \"'!\" & AF126),0) + IF(Setup!$AH$11<>\"\",INDIRECT(\"'\" & Setup!$AH$11 & \"'!\" & AF126),0) + IF(Setup!$AH$12<>\"\",INDIRECT(\"'\" & Setup!$AH$12 & \"'!\" & AF126),0)","v":0},{"$f":"IF(Setup!$AI$7<>\"\",INDIRECT(\"'\" & Setup!$AI$7 & \"'!\" & AF126),0) + IF(Setup!$AI$8<>\"\",INDIRECT(\"'\" & Setup!$AI$8 & \"'!\" & AF126),0) + IF(Setup!$AI$9<>\"\",INDIRECT(\"'\" & Setup!$AI$9 & \"'!\" & AF126),0) + IF(Setup!$AI$10<>\"\",INDIRECT(\"'\" & Setup!$AI$10 & \"'!\" & AF126),0) + IF(Setup!$AI$11<>\"\",INDIRECT(\"'\" & Setup!$AI$11 & \"'!\" & AF126),0) + IF(Setup!$AI$12<>\"\",INDIRECT(\"'\" & Setup!$AI$12 & \"'!\" & AF126),0)","v":0},{"$f":"IF(Setup!$AJ$7<>\"\",INDIRECT(\"'\" & Setup!$AJ$7 & \"'!\" & AF126),0) + IF(Setup!$AJ$8<>\"\",INDIRECT(\"'\" & Setup!$AJ$8 & \"'!\" & AF126),0) + IF(Setup!$AJ$9<>\"\",INDIRECT(\"'\" & Setup!$AJ$9 & \"'!\" & AF126),0) + IF(Setup!$AJ$10<>\"\",INDIRECT(\"'\" & Setup!$AJ$10 & \"'!\" & AF126),0) + IF(Setup!$AJ$11<>\"\",INDIRECT(\"'\" & Setup!$AJ$11 & \"'!\" & AF126),0) + IF(Setup!$AJ$12<>\"\",INDIRECT(\"'\" & Setup!$AJ$12 & \"'!\" & AF126),0)","v":0},null,"",{"$nulls":3},{"$f":"IF(C126=0,\"\",LEFT(INDEX(Lists!$H$5:$H$49,MATCH(C126,Lists!$G$5:$G$49,0),1),1))","v":""},null,"","","","","","","","","","",{"$nulls":6},{"$f":"IF(Setup!$AG$7<>\"\",INDIRECT(\"'\" & Setup!$AG$7 & \"'!\" & AD126),0) + IF(Setup!$AG$8<>\"\",INDIRECT(\"'\" & Setup!$AG$8 & \"'!\" & AD126),0) + IF(Setup!$AG$9<>\"\",INDIRECT(\"'\" & Setup!$AG$9 & \"'!\" & AD126),0) + IF(Setup!$AG$10<>\"\",INDIRECT(\"'\" & Setup!$AG$10 & \"'!\" & AD126),0) + IF(Setup!$AG$11<>\"\",INDIRECT(\"'\" & Setup!$AG$11 & \"'!\" & AD126),0) + IF(Setup!$AG$12<>\"\",INDIRECT(\"'\" & Setup!$AG$12 & \"'!\" & AD126),0)","v":0},{"$f":"IF(Setup!$AG$7<>\"\",INDIRECT(\"'\" & Setup!$AG$7 & \"'!\" & AE126),0) + IF(Setup!$AG$8<>\"\",INDIRECT(\"'\" & Setup!$AG$8 & \"'!\" & AE126),0) + IF(Setup!$AG$9<>\"\",INDIRECT(\"'\" & Setup!$AG$9 & \"'!\" & AE126),0) + IF(Setup!$AG$10<>\"\",INDIRECT(\"'\" & Setup!$AG$10 & \"'!\" & AE126),0) + IF(Setup!$AG$11<>\"\",INDIRECT(\"'\" & Setup!$AG$11 & \"'!\" & AE126),0) + IF(Setup!$AG$12<>\"\",INDIRECT(\"'\" & Setup!$AG$12 & \"'!\" & AE126),0)","v":0},{"$f":"IF(Setup!$AH$7<>\"\",INDIRECT(\"'\" & Setup!$AH$7 & \"'!\" & AD126),0) + IF(Setup!$AH$8<>\"\",INDIRECT(\"'\" & Setup!$AH$8 & \"'!\" & AD126),0) + IF(Setup!$AH$9<>\"\",INDIRECT(\"'\" & Setup!$AH$9 & \"'!\" & AD126),0) + IF(Setup!$AH$10<>\"\",INDIRECT(\"'\" & Setup!$AH$10 & \"'!\" & AD126),0) + IF(Setup!$AH$11<>\"\",INDIRECT(\"'\" & Setup!$AH$11 & \"'!\" & AD126),0) + IF(Setup!$AH$12<>\"\",INDIRECT(\"'\" & Setup!$AH$12 & \"'!\" & AD126),0)","v":0},{"$f":"IF(Setup!$AH$7<>\"\",INDIRECT(\"'\" & Setup!$AH$7 & \"'!\" & AE126),0) + IF(Setup!$AH$8<>\"\",INDIRECT(\"'\" & Setup!$AH$8 & \"'!\" & AE126),0) + IF(Setup!$AH$9<>\"\",INDIRECT(\"'\" & Setup!$AH$9 & \"'!\" & AE126),0) + IF(Setup!$AH$10<>\"\",INDIRECT(\"'\" & Setup!$AH$10 & \"'!\" & AE126),0) + IF(Setup!$AH$11<>\"\",INDIRECT(\"'\" & Setup!$AH$11 & \"'!\" & AE126),0) + IF(Setup!$AH$12<>\"\",INDIRECT(\"'\" & Setup!$AH$12 & \"'!\" & AE126),0)","v":0},{"$f":"IF(Setup!$AI$7<>\"\",INDIRECT(\"'\" & Setup!$AI$7 & \"'!\" & AD126),0) + IF(Setup!$AI$8<>\"\",INDIRECT(\"'\" & Setup!$AI$8 & \"'!\" & AD126),0) + IF(Setup!$AI$9<>\"\",INDIRECT(\"'\" & Setup!$AI$9 & \"'!\" & AD126),0) + IF(Setup!$AI$10<>\"\",INDIRECT(\"'\" & Setup!$AI$10 & \"'!\" & AD126),0) + IF(Setup!$AI$11<>\"\",INDIRECT(\"'\" & Setup!$AI$11 & \"'!\" & AD126),0) + IF(Setup!$AI$12<>\"\",INDIRECT(\"'\" & Setup!$AI$12 & \"'!\" & AD126),0)","v":0},{"$f":"IF(Setup!$AI$7<>\"\",INDIRECT(\"'\" & Setup!$AI$7 & \"'!\" & AE126),0) + IF(Setup!$AI$8<>\"\",INDIRECT(\"'\" & Setup!$AI$8 & \"'!\" & AE126),0) + IF(Setup!$AI$9<>\"\",INDIRECT(\"'\" & Setup!$AI$9 & \"'!\" & AE126),0) + IF(Setup!$AI$10<>\"\",INDIRECT(\"'\" & Setup!$AI$10 & \"'!\" & AE126),0) + IF(Setup!$AI$11<>\"\",INDIRECT(\"'\" & Setup!$AI$11 & \"'!\" & AE126),0) + IF(Setup!$AI$12<>\"\",INDIRECT(\"'\" & Setup!$AI$12 & \"'!\" & AE126),0)","v":0},{"$f":"IF(Setup!$AJ$7<>\"\",INDIRECT(\"'\" & Setup!$AJ$7 & \"'!\" & AD126),0) + IF(Setup!$AJ$8<>\"\",INDIRECT(\"'\" & Setup!$AJ$8 & \"'!\" & AD126),0) + IF(Setup!$AJ$9<>\"\",INDIRECT(\"'\" & Setup!$AJ$9 & \"'!\" & AD126),0) + IF(Setup!$AJ$10<>\"\",INDIRECT(\"'\" & Setup!$AJ$10 & \"'!\" & AD126),0) + IF(Setup!$AJ$11<>\"\",INDIRECT(\"'\" & Setup!$AJ$11 & \"'!\" & AD126),0) + IF(Setup!$AJ$12<>\"\",INDIRECT(\"'\" & Setup!$AJ$12 & \"'!\" & AD126),0)","v":0},{"$f":"IF(Setup!$AJ$7<>\"\",INDIRECT(\"'\" & Setup!$AJ$7 & \"'!\" & AE126),0) + IF(Setup!$AJ$8<>\"\",INDIRECT(\"'\" & Setup!$AJ$8 & \"'!\" & AE126),0) + IF(Setup!$AJ$9<>\"\",INDIRECT(\"'\" & Setup!$AJ$9 & \"'!\" & AE126),0) + IF(Setup!$AJ$10<>\"\",INDIRECT(\"'\" & Setup!$AJ$10 & \"'!\" & AE126),0) + IF(Setup!$AJ$11<>\"\",INDIRECT(\"'\" & Setup!$AJ$11 & \"'!\" & AE126),0) + IF(Setup!$AJ$12<>\"\",INDIRECT(\"'\" & Setup!$AJ$12 & \"'!\" & AE126),0)","v":0}]
[{"$f":"Planning!A110","v":"I102"},{"$f":"Planning!B110","v":0},{"$f":"Planning!C110","v":0},{"$f":"Planning!D110","v":0},{"$f":"Planning!E110","v":0},{"$f":"Planning!G110","v":0},null,0,0,{"$f":"IF(AND($AR127=\"2\",$AB126<>Lists!$A$17),AU127,AT127)","v":""},"",0,0,{"$f":"IF(AND($AR127=\"2\",$AB127<>Lists!$A$17),AW127,AV127)","v":""},"",0,0,{"$f":"IF(AND($AR127=\"2\",$AB127<>Lists!$A$17),AY127,AX127)","v":""},"",0,0,{"$f":"IF(AND($AR127=\"2\",$AB127<>Lists!$A$17),BA127,AZ127)","v":""},"",0,0,{"$f":"IF(AND($AR127=\"2\",$AB127<>Lists!$A$17),BC127,BB127)","v":""},"",{"$f":"Planning!H110","v":0},"00","H126","J126","I126","",null,{"$f":"IF(Setup!$AG$7<>\"\",INDIRECT(\"'\" & Setup!$AG$7 & \"'!\" & AF127),0) + IF(Setup!$AG$8<>\"\",INDIRECT(\"'\" & Setup!$AG$8 & \"'!\" & AF127),0) + IF(Setup!$AG$9<>\"\",INDIRECT(\"'\" & Setup!$AG$9 & \"'!\" & AF127),0) + IF(Setup!$AG$10<>\"\",INDIRECT(\"'\" & Setup!$AG$10 & \"'!\" & AF127),0) + IF(Setup!$AG$11<>\"\",INDIRECT(\"'\" & Setup!$AG$11 & \"'!\" & AF127),0) + IF(Setup!$AG$12<>\"\",INDIRECT(\"'\" & Setup!$AG$12 & \"'!\" & AF127),0)","v":0},{"$f":"IF(Setup!$AH$7<>\"\",INDIRECT(\"'\" & Setup!$AH$7 & \"'!\" & AF127),0) + IF(Setup!$AH$8<>\"\",INDIRECT(\"'\" & Setup!$AH$8 & \"'!\" & AF127),0) + IF(Setup!$AH$9<>\"\",INDIRECT(\"'\" & Setup!$AH$9 & \"'!\" & AF127),0) + IF(Setup!$AH$10<>\"\",INDIRECT(\"'\" & Setup!$AH$10 & \"'!\" & AF127),0) + IF(Setup!$AH$11<>\"\",INDIRECT(\"'\" & Setup!$AH$11 & \"'!\" & AF127),0) + IF(Setup!$AH$12<>\"\",INDIRECT(\"'\" & Setup!$AH$12 & \"'!\" & AF127),0)","v":0},{"$f":"IF(Setup!$AI$7<>\"\",INDIRECT(\"'\" & Setup!$AI$7 & \"'!\" & AF127),0) + IF(Setup!$AI$8<>\"\",INDIRECT(\"'\" & Setup!$AI$8 & \"'!\" & AF127),0) + IF(Setup!$AI$9<>\"\",INDIRECT(\"'\" & Setup!$AI$9 & \"'!\" & AF127),0) + IF(Setup!$AI$10<>\"\",INDIRECT(\"'\" & Setup!$AI$10 & \"'!\" & AF127),0) + IF(Setup!$AI$11<>\"\",INDIRECT(\"'\" & Setup!$AI$11 & \"'!\" & AF127),0) + IF(Setup!$AI$12<>\"\",INDIRECT(\"'\" & Setup!$AI$12 & \"'!\" & AF127),0)","v":0},{"$f":"IF(Setup!$AJ$7<>\"\",INDIRECT(\"'\" & Setup!$AJ$7 & \"'!\" & AF127),0) + IF(Setup!$AJ$8<>\"\",INDIRECT(\"'\" & Setup!$AJ$8 & \"'!\" & AF127),0) + IF(Setup!$AJ$9<>\"\",INDIRECT(\"'\" & Setup!$AJ$9 & \"'!\" & AF127),0) + IF(Setup!$AJ$10<>\"\",INDIRECT(\"'\" & Setup!$AJ$10 & \"'!\" & AF127),0) + IF(Setup!$AJ$11<>\"\",INDIRECT(\"'\" & Setup!$AJ$11 & \"'!\" & AF127),0) + IF(Setup!$AJ$12<>\"\",INDIRECT(\"'\" & Setup!$AJ$12 & \"'!\" & AF127),0)","v":0},null,"",{"$nulls":3},{"$f":"IF(C127=0,\"\",LEFT(INDEX(Lists!$H$5:$H$49,MATCH(C127,Lists!$G$5:$G$49,0),1),1))","v":""},null,"","","","","","","","","","",{"$nulls":6},{"$f":"IF(Setup!$AG$7<>\"\",INDIRECT(\"'\" & Setup!$AG$7 & \"'!\" & AD127),0) + IF(Setup!$AG$8<>\"\",INDIRECT(\"'\" & Setup!$AG$8 & \"'!\" & AD127),0) + IF(Setup!$AG$9<>\"\",INDIRECT(\"'\" & Setup!$AG$9 & \"'!\" & AD127),0) + IF(Setup!$AG$10<>\"\",INDIRECT(\"'\" & Setup!$AG$10 & \"'!\" & AD127),0) + IF(Setup!$AG$11<>\"\",INDIRECT(\"'\" & Setup!$AG$11 & \"'!\" & AD127),0) + IF(Setup!$AG$12<>\"\",INDIRECT(\"'\" & Setup!$AG$12 & \"'!\" & AD127),0)","v":0},{"$f":"IF(Setup!$AG$7<>\"\",INDIRECT(\"'\" & Setup!$AG$7 & \"'!\" & AE127),0) + IF(Setup!$AG$8<>\"\",INDIRECT(\"'\" & Setup!$AG$8 & \"'!\" & AE127),0) + IF(Setup!$AG$9<>\"\",INDIRECT(\"'\" & Setup!$AG$9 & \"'!\" & AE127),0) + IF(Setup!$AG$10<>\"\",INDIRECT(\"'\" & Setup!$AG$10 & \"'!\" & AE127),0) + IF(Setup!$AG$11<>\"\",INDIRECT(\"'\" & Setup!$AG$11 & \"'!\" & AE127),0) + IF(Setup!$AG$12<>\"\",INDIRECT(\"'\" & Setup!$AG$12 & \"'!\" & AE127),0)","v":0},{"$f":"IF(Setup!$AH$7<>\"\",INDIRECT(\"'\" & Setup!$AH$7 & \"'!\" & AD127),0) + IF(Setup!$AH$8<>\"\",INDIRECT(\"'\" & Setup!$AH$8 & \"'!\" & AD127),0) + IF(Setup!$AH$9<>\"\",INDIRECT(\"'\" & Setup!$AH$9 & \"'!\" & AD127),0) + IF(Setup!$AH$10<>\"\",INDIRECT(\"'\" & Setup!$AH$10 & \"'!\" & AD127),0) + IF(Setup!$AH$11<>\"\",INDIRECT(\"'\" & Setup!$AH$11 & \"'!\" & AD127),0) + IF(Setup!$AH$12<>\"\",INDIRECT(\"'\" & Setup!$AH$12 & \"'!\" & AD127),0)","v":0},{"$f":"IF(Setup!$AH$7<>\"\",INDIRECT(\"'\" & Setup!$AH$7 & \"'!\" & AE127),0) + IF(Setup!$AH$8<>\"\",INDIRECT(\"'\" & Setup!$AH$8 & \"'!\" & AE127),0) + IF(Setup!$AH$9<>\"\",INDIRECT(\"'\" & Setup!$AH$9 & \"'!\" & AE127),0) + IF(Setup!$AH$10<>\"\",INDIRECT(\"'\" & Setup!$AH$10 & \"'!\" & AE127),0) + IF(Setup!$AH$11<>\"\",INDIRECT(\"'\" & Setup!$AH$11 & \"'!\" & AE127),0) + IF(Setup!$AH$12<>\"\",INDIRECT(\"'\" & Setup!$AH$12 & \"'!\" & AE127),0)","v":0},{"$f":"IF(Setup!$AI$7<>\"\",INDIRECT(\"'\" & Setup!$AI$7 & \"'!\" & AD127),0) + IF(Setup!$AI$8<>\"\",INDIRECT(\"'\" & Setup!$AI$8 & \"'!\" & AD127),0) + IF(Setup!$AI$9<>\"\",INDIRECT(\"'\" & Setup!$AI$9 & \"'!\" & AD127),0) + IF(Setup!$AI$10<>\"\",INDIRECT(\"'\" & Setup!$AI$10 & \"'!\" & AD127),0) + IF(Setup!$AI$11<>\"\",INDIRECT(\"'\" & Setup!$AI$11 & \"'!\" & AD127),0) + IF(Setup!$AI$12<>\"\",INDIRECT(\"'\" & Setup!$AI$12 & \"'!\" & AD127),0)","v":0},{"$f":"IF(Setup!$AI$7<>\"\",INDIRECT(\"'\" & Setup!$AI$7 & \"'!\" & AE127),0) + IF(Setup!$AI$8<>\"\",INDIRECT(\"'\" & Setup!$AI$8 & \"'!\" & AE127),0) + IF(Setup!$AI$9<>\"\",INDIRECT(\"'\" & Setup!$AI$9 & \"'!\" & AE127),0) + IF(Setup!$AI$10<>\"\",INDIRECT(\"'\" & Setup!$AI$10 & \"'!\" & AE127),0) + IF(Setup!$AI$11<>\"\",INDIRECT(\"'\" & Setup!$AI$11 & \"'!\" & AE127),0) + IF(Setup!$AI$12<>\"\",INDIRECT(\"'\" & Setup!$AI$12 & \"'!\" & AE127),0)","v":0},{"$f":"IF(Setup!$AJ$7<>\"\",INDIRECT(\"'\" & Setup!$AJ$7 & \"'!\" & AD127),0) + IF(Setup!$AJ$8<>\"\",INDIRECT(\"'\" & Setup!$AJ$8 & \"'!\" & AD127),0) + IF(Setup!$AJ$9<>\"\",INDIRECT(\"'\" & Setup!$AJ$9 & \"'!\" & AD127),0) + IF(Setup!$AJ$10<>\"\",INDIRECT(\"'\" & Setup!$AJ$10 & \"'!\" & AD127),0) + IF(Setup!$AJ$11<>\"\",INDIRECT(\"'\" & Setup!$AJ$11 & \"'!\" & AD127),0) + IF(Setup!$AJ$12<>\"\",INDIRECT(\"'\" & Setup!$AJ$12 & \"'!\" & AD127),0)","v":0},{"$f":"IF(Setup!$AJ$7<>\"\",INDIRECT(\"'\" & Setup!$AJ$7 & \"'!\" & AE127),0) + IF(Setup!$AJ$8<>\"\",INDIRECT(\"'\" & Setup!$AJ$8 & \"'!\" & AE127),0) + IF(Setup!$AJ$9<>\"\",INDIRECT(\"'\" & Setup!$AJ$9 & \"'!\" & AE127),0) + IF(Setup!$AJ$10<>\"\",INDIRECT(\"'\" & Setup!$AJ$10 & \"'!\" & AE127),0) + IF(Setup!$AJ$11<>\"\",INDIRECT(\"'\" & Setup!$AJ$11 & \"'!\" & AE127),0) + IF(Setup!$AJ$12<>\"\",INDIRECT(\"'\" & Setup!$AJ$12 & \"'!\" & AE127),0)","v":0}]
[{"$f":"Planning!A111","v":"I103"},{"$f":"Planning!B111","v":0},{"$f":"Planning!C111","v":0},{"$f":"Planning!D111","v":0},{"$f":"Planning!E111","v":0},{"$f":"Planning!G111","v":0},null,0,0,{"$f":"IF(AND($AR128=\"2\",$AB127<>Lists!$A$17),AU128,AT128)","v":""},"",0,0,{"$f":"IF(AND($AR128=\"2\",$AB128<>Lists!$A$17),AW128,AV128)","v":""},"",0,0,{"$f":"IF(AND($AR128=\"2\",$AB128<>Lists!$A$17),AY128,AX128)","v":""},"",0,0,{"$f":"IF(AND($AR128=\"2\",$AB128<>Lists!$A$17),BA128,AZ128)","v":""},"",0,0,{"$f":"IF(AND($AR128=\"2\",$AB128<>Lists!$A$17),BC128,BB128)","v":""},"",{"$f":"Planning!H111","v":0},"00","H127","J127","I127","",null,{"$f":"IF(Setup!$AG$7<>\"\",INDIRECT(\"'\" & Setup!$AG$7 & \"'!\" & AF128),0) + IF(Setup!$AG$8<>\"\",INDIRECT(\"'\" & Setup!$AG$8 & \"'!\" & AF128),0) + IF(Setup!$AG$9<>\"\",INDIRECT(\"'\" & Setup!$AG$9 & \"'!\" & AF128),0) + IF(Setup!$AG$10<>\"\",INDIRECT(\"'\" & Setup!$AG$10 & \"'!\" & AF128),0) + IF(Setup!$AG$11<>\"\",INDIRECT(\"'\" & Setup!$AG$11 & \"'!\" & AF128),0) + IF(Setup!$AG$12<>\"\",INDIRECT(\"'\" & Setup!$AG$12 & \"'!\" & AF128),0)","v":0},{"$f":"IF(Setup!$AH$7<>\"\",INDIRECT(\"'\" & Setup!$AH$7 & \"'!\" & AF128),0) + IF(Setup!$AH$8<>\"\",INDIRECT(\"'\" & Setup!$AH$8 & \"'!\" & AF128),0) + IF(Setup!$AH$9<>\"\",INDIRECT(\"'\" & Setup!$AH$9 & \"'!\" & AF128),0) + IF(Setup!$AH$10<>\"\",INDIRECT(\"'\" & Setup!$AH$10 & \"'!\" & AF128),0) + IF(Setup!$AH$11<>\"\",INDIRECT(\"'\" & Setup!$AH$11 & \"'!\" & AF128),0) + IF(Setup!$AH$12<>\"\",INDIRECT(\"'\" & Setup!$AH$12 & \"'!\" & AF128),0)","v":0},{"$f":"IF(Setup!$AI$7<>\"\",INDIRECT(\"'\" & Setup!$AI$7 & \"'!\" & AF128),0) + IF(Setup!$AI$8<>\"\",INDIRECT(\"'\" & Setup!$AI$8 & \"'!\" & AF128),0) + IF(Setup!$AI$9<>\"\",INDIRECT(\"'\" & Setup!$AI$9 & \"'!\" & AF128),0) + IF(Setup!$AI$10<>\"\",INDIRECT(\"'\" & Setup!$AI$10 & \"'!\" & AF128),0) + IF(Setup!$AI$11<>\"\",INDIRECT(\"'\" & Setup!$AI$11 & \"'!\" & AF128),0) + IF(Setup!$AI$12<>\"\",INDIRECT(\"'\" & Setup!$AI$12 & \"'!\" & AF128),0)","v":0},{"$f":"IF(Setup!$AJ$7<>\"\",INDIRECT(\"'\" & Setup!$AJ$7 & \"'!\" & AF128),0) + IF(Setup!$AJ$8<>\"\",INDIRECT(\"'\" & Setup!$AJ$8 & \"'!\" & AF128),0) + IF(Setup!$AJ$9<>\"\",INDIRECT(\"'\" & Setup!$AJ$9 & \"'!\" & AF128),0) + IF(Setup!$AJ$10<>\"\",INDIRECT(\"'\" & Setup!$AJ$10 & \"'!\" & AF128),0) + IF(Setup!$AJ$11<>\"\",INDIRECT(\"'\" & Setup!$AJ$11 & \"'!\" & AF128),0) + IF(Setup!$AJ$12<>\"\",INDIRECT(\"'\" & Setup!$AJ$12 & \"'!\" & AF128),0)","v":0},null,"",{"$nulls":3},{"$f":"IF(C128=0,\"\",LEFT(INDEX(Lists!$H$5:$H$49,MATCH(C128,Lists!$G$5:$G$49,0),1),1))","v":""},null,"","","","","","","","","","",{"$nulls":6},{"$f":"IF(Setup!$AG$7<>\"\",INDIRECT(\"'\" & Setup!$AG$7 & \"'!\" & AD128),0) + IF(Setup!$AG$8<>\"\",INDIRECT(\"'\" & Setup!$AG$8 & \"'!\" & AD128),0) + IF(Setup!$AG$9<>\"\",INDIRECT(\"'\" & Setup!$AG$9 & \"'!\" & AD128),0) + IF(Setup!$AG$10<>\"\",INDIRECT(\"'\" & Setup!$AG$10 & \"'!\" & AD128),0) + IF(Setup!$AG$11<>\"\",INDIRECT(\"'\" & Setup!$AG$11 & \"'!\" & AD128),0) + IF(Setup!$AG$12<>\"\",INDIRECT(\"'\" & Setup!$AG$12 & \"'!\" & AD128),0)","v":0},{"$f":"IF(Setup!$AG$7<>\"\",INDIRECT(\"'\" & Setup!$AG$7 & \"'!\" & AE128),0) + IF(Setup!$AG$8<>\"\",INDIRECT(\"'\" & Setup!$AG$8 & \"'!\" & AE128),0) + IF(Setup!$AG$9<>\"\",INDIRECT(\"'\" & Setup!$AG$9 & \"'!\" & AE128),0) + IF(Setup!$AG$10<>\"\",INDIRECT(\"'\" & Setup!$AG$10 & \"'!\" & AE128),0) + IF(Setup!$AG$11<>\"\",INDIRECT(\"'\" & Setup!$AG$11 & \"'!\" & AE128),0) + IF(Setup!$AG$12<>\"\",INDIRECT(\"'\" & Setup!$AG$12 & \"'!\" & AE128),0)","v":0},{"$f":"IF(Setup!$AH$7<>\"\",INDIRECT(\"'\" & Setup!$AH$7 & \"'!\" & AD128),0) + IF(Setup!$AH$8<>\"\",INDIRECT(\"'\" & Setup!$AH$8 & \"'!\" & AD128),0) + IF(Setup!$AH$9<>\"\",INDIRECT(\"'\" & Setup!$AH$9 & \"'!\" & AD128),0) + IF(Setup!$AH$10<>\"\",INDIRECT(\"'\" & Setup!$AH$10 & \"'!\" & AD128),0) + IF(Setup!$AH$11<>\"\",INDIRECT(\"'\" & Setup!$AH$11 & \"'!\" & AD128),0) + IF(Setup!$AH$12<>\"\",INDIRECT(\"'\" & Setup!$AH$12 & \"'!\" & AD128),0)","v":0},{"$f":"IF(Setup!$AH$7<>\"\",INDIRECT(\"'\" & Setup!$AH$7 & \"'!\" & AE128),0) + IF(Setup!$AH$8<>\"\",INDIRECT(\"'\" & Setup!$AH$8 & \"'!\" & AE128),0) + IF(Setup!$AH$9<>\"\",INDIRECT(\"'\" & Setup!$AH$9 & \"'!\" & AE128),0) + IF(Setup!$AH$10<>\"\",INDIRECT(\"'\" & Setup!$AH$10 & \"'!\" & AE128),0) + IF(Setup!$AH$11<>\"\",INDIRECT(\"'\" & Setup!$AH$11 & \"'!\" & AE128),0) + IF(Setup!$AH$12<>\"\",INDIRECT(\"'\" & Setup!$AH$12 & \"'!\" & AE128),0)","v":0},{"$f":"IF(Setup!$AI$7<>\"\",INDIRECT(\"'\" & Setup!$AI$7 & \"'!\" & AD128),0) + IF(Setup!$AI$8<>\"\",INDIRECT(\"'\" & Setup!$AI$8 & \"'!\" & AD128),0) + IF(Setup!$AI$9<>\"\",INDIRECT(\"'\" & Setup!$AI$9 & \"'!\" & AD128),0) + IF(Setup!$AI$10<>\"\",INDIRECT(\"'\" & Setup!$AI$10 & \"'!\" & AD128),0) + IF(Setup!$AI$11<>\"\",INDIRECT(\"'\" & Setup!$AI$11 & \"'!\" & AD128),0) + IF(Setup!$AI$12<>\"\",INDIRECT(\"'\" & Setup!$AI$12 & \"'!\" & AD128),0)","v":0},{"$f":"IF(Setup!$AI$7<>\"\",INDIRECT(\"'\" & Setup!$AI$7 & \"'!\" & AE128),0) + IF(Setup!$AI$8<>\"\",INDIRECT(\"'\" & Setup!$AI$8 & \"'!\" & AE128),0) + IF(Setup!$AI$9<>\"\",INDIRECT(\"'\" & Setup!$AI$9 & \"'!\" & AE128),0) + IF(Setup!$AI$10<>\"\",INDIRECT(\"'\" & Setup!$AI$10 & \"'!\" & AE128),0) + IF(Setup!$AI$11<>\"\",INDIRECT(\"'\" & Setup!$AI$11 & \"'!\" & AE128),0) + IF(Setup!$AI$12<>\"\",INDIRECT(\"'\" & Setup!$AI$12 & \"'!\" & AE128),0)","v":0},{"$f":"IF(Setup!$AJ$7<>\"\",INDIRECT(\"'\" & Setup!$AJ$7 & \"'!\" & AD128),0) + IF(Setup!$AJ$8<>\"\",INDIRECT(\"'\" & Setup!$AJ$8 & \"'!\" & AD128),0) + IF(Setup!$AJ$9<>\"\",INDIRECT(\"'\" & Setup!$AJ$9 & \"'!\" & AD128),0) + IF(Setup!$AJ$10<>\"\",INDIRECT(\"'\" & Setup!$AJ$10 & \"'!\" & AD128),0) + IF(Setup!$AJ$11<>\"\",INDIRECT(\"'\" & Setup!$AJ$11 & \"'!\" & AD128),0) + IF(Setup!$AJ$12<>\"\",INDIRECT(\"'\" & Setup!$AJ$12 & \"'!\" & AD128),0)","v":0},{"$f":"IF(Setup!$AJ$7<>\"\",INDIRECT(\"'\" & Setup!$AJ$7 & \"'!\" & AE128),0) + IF(Setup!$AJ$8<>\"\",INDIRECT(\"'\" & Setup!$AJ$8 & \"'!\" & AE128),0) + IF(Setup!$AJ$9<>\"\",INDIRECT(\"'\" & Setup!$AJ$9 & \"'!\" & AE128),0) + IF(Setup!$AJ$10<>\"\",INDIRECT(\"'\" & Setup!$AJ$10 & \"'!\" & AE128),0) + IF(Setup!$AJ$11<>\"\",INDIRECT(\"'\" & Setup!$AJ$11 & \"'!\" & AE128),0) + IF(Setup!$AJ$12<>\"\",INDIRECT(\"'\" & Setup!$AJ$12 & \"'!\" & AE128),0)","v":0}]
[{"$f":"Planning!A112","v":"I104"},{"$f":"Planning!B112","v":0},{"$f":"Planning!C112","v":0},{"$f":"Planning!D112","v":0},{"$f":"Planning!E112","v":0},{"$f":"Planning!G112","v":0},null,0,0,{"$f":"IF(AND($AR129=\"2\",$AB128<>Lists!$A$17),AU129,AT129)","v":""},"",0,0,{"$f":"IF(AND($AR129=\"2\",$AB129<>Lists!$A$17),AW129,AV129)","v":""},"",0,0,{"$f":"IF(AND($AR129=\"2\",$AB129<>Lists!$A$17),AY129,AX129)","v":""},"",0,0,{"$f":"IF(AND($AR129=\"2\",$AB129<>Lists!$A$17),BA129,AZ129)","v":""},"",0,0,{"$f":"IF(AND($AR129=\"2\",$AB129<>Lists!$A$17),BC129,BB129)","v":""},"",{"$f":"Planning!H112","v":0},"00","H128","J128","I128","",null,{"$f":"IF(Setup!$AG$7<>\"\",INDIRECT(\"'\" & Setup!$AG$7 & \"'!\" & AF129),0) + IF(Setup!$AG$8<>\"\",INDIRECT(\"'\" & Setup!$AG$8 & \"'!\" & AF129),0) + IF(Setup!$AG$9<>\"\",INDIRECT(\"'\" & Setup!$AG$9 & \"'!\" & AF129),0) + IF(Setup!$AG$10<>\"\",INDIRECT(\"'\" & Setup!$AG$10 & \"'!\" & AF129),0) + IF(Setup!$AG$11<>\"\",INDIRECT(\"'\" & Setup!$AG$11 & \"'!\" & AF129),0) + IF(Setup!$AG$12<>\"\",INDIRECT(\"'\" & Setup!$AG$12 & \"'!\" & AF129),0)","v":0},{"$f":"IF(Setup!$AH$7<>\"\",INDIRECT(\"'\" & Setup!$AH$7 & \"'!\" & AF129),0) + IF(Setup!$AH$8<>\"\",INDIRECT(\"'\" & Setup!$AH$8 & \"'!\" & AF129),0) + IF(Setup!$AH$9<>\"\",INDIRECT(\"'\" & Setup!$AH$9 & \"'!\" & AF129),0) + IF(Setup!$AH$10<>\"\",INDIRECT(\"'\" & Setup!$AH$10 & \"'!\" & AF129),0) + IF(Setup!$AH$11<>\"\",INDIRECT(\"'\" & Setup!$AH$11 & \"'!\" & AF129),0) + IF(Setup!$AH$12<>\"\",INDIRECT(\"'\" & Setup!$AH$12 & \"'!\" & AF129),0)","v":0},{"$f":"IF(Setup!$AI$7<>\"\",INDIRECT(\"'\" & Setup!$AI$7 & \"'!\" & AF129),0) + IF(Setup!$AI$8<>\"\",INDIRECT(\"'\" & Setup!$AI$8 & \"'!\" & AF129),0) + IF(Setup!$AI$9<>\"\",INDIRECT(\"'\" & Setup!$AI$9 & \"'!\" & AF129),0) + IF(Setup!$AI$10<>\"\",INDIRECT(\"'\" & Setup!$AI$10 & \"'!\" & AF129),0) + IF(Setup!$AI$11<>\"\",INDIRECT(\"'\" & Setup!$AI$11 & \"'!\" & AF129),0) + IF(Setup!$AI$12<>\"\",INDIRECT(\"'\" & Setup!$AI$12 & \"'!\" & AF129),0)","v":0},{"$f":"IF(Setup!$AJ$7<>\"\",INDIRECT(\"'\" & Setup!$AJ$7 & \"'!\" & AF129),0) + IF(Setup!$AJ$8<>\"\",INDIRECT(\"'\" & Setup!$AJ$8 & \"'!\" & AF129),0) + IF(Setup!$AJ$9<>\"\",INDIRECT(\"'\" & Setup!$AJ$9 & \"'!\" & AF129),0) + IF(Setup!$AJ$10<>\"\",INDIRECT(\"'\" & Setup!$AJ$10 & \"'!\" & AF129),0) + IF(Setup!$AJ$11<>\"\",INDIRECT(\"'\" & Setup!$AJ$11 & \"'!\" & AF129),0) + IF(Setup!$AJ$12<>\"\",INDIRECT(\"'\" & Setup!$AJ$12 & \"'!\" & AF129),0)","v":0},null,"",{"$nulls":3},{"$f":"IF(C129=0,\"\",LEFT(INDEX(Lists!$H$5:$H$49,MATCH(C129,Lists!$G$5:$G$49,0),1),1))","v":""},null,"","","","","","","","","","",{"$nulls":6},{"$f":"IF(Setup!$AG$7<>\"\",INDIRECT(\"'\" & Setup!$AG$7 & \"'!\" & AD129),0) + IF(Setup!$AG$8<>\"\",INDIRECT(\"'\" & Setup!$AG$8 & \"'!\" & AD129),0) + IF(Setup!$AG$9<>\"\",INDIRECT(\"'\" & Setup!$AG$9 & \"'!\" & AD129),0) + IF(Setup!$AG$10<>\"\",INDIRECT(\"'\" & Setup!$AG$10 & \"'!\" & AD129),0) + IF(Setup!$AG$11<>\"\",INDIRECT(\"'\" & Setup!$AG$11 & \"'!\" & AD129),0) + IF(Setup!$AG$12<>\"\",INDIRECT(\"'\" & Setup!$AG$12 & \"'!\" & AD129),0)","v":0},{"$f":"IF(Setup!$AG$7<>\"\",INDIRECT(\"'\" & Setup!$AG$7 & \"'!\" & AE129),0) + IF(Setup!$AG$8<>\"\",INDIRECT(\"'\" & Setup!$AG$8 & \"'!\" & AE129),0) + IF(Setup!$AG$9<>\"\",INDIRECT(\"'\" & Setup!$AG$9 & \"'!\" & AE129),0) + IF(Setup!$AG$10<>\"\",INDIRECT(\"'\" & Setup!$AG$10 & \"'!\" & AE129),0) + IF(Setup!$AG$11<>\"\",INDIRECT(\"'\" & Setup!$AG$11 & \"'!\" & AE129),0) + IF(Setup!$AG$12<>\"\",INDIRECT(\"'\" & Setup!$AG$12 & \"'!\" & AE129),0)","v":0},{"$f":"IF(Setup!$AH$7<>\"\",INDIRECT(\"'\" & Setup!$AH$7 & \"'!\" & AD129),0) + IF(Setup!$AH$8<>\"\",INDIRECT(\"'\" & Setup!$AH$8 & \"'!\" & AD129),0) + IF(Setup!$AH$9<>\"\",INDIRECT(\"'\" & Setup!$AH$9 & \"'!\" & AD129),0) + IF(Setup!$AH$10<>\"\",INDIRECT(\"'\" & Setup!$AH$10 & \"'!\" & AD129),0) + IF(Setup!$AH$11<>\"\",INDIRECT(\"'\" & Setup!$AH$11 & \"'!\" & AD129),0) + IF(Setup!$AH$12<>\"\",INDIRECT(\"'\" & Setup!$AH$12 & \"'!\" & AD129),0)","v":0},{"$f":"IF(Setup!$AH$7<>\"\",INDIRECT(\"'\" & Setup!$AH$7 & \"'!\" & AE129),0) + IF(Setup!$AH$8<>\"\",INDIRECT(\"'\" & Setup!$AH$8 & \"'!\" & AE129),0) + IF(Setup!$AH$9<>\"\",INDIRECT(\"'\" & Setup!$AH$9 & \"'!\" & AE129),0) + IF(Setup!$AH$10<>\"\",INDIRECT(\"'\" & Setup!$AH$10 & \"'!\" & AE129),0) + IF(Setup!$AH$11<>\"\",INDIRECT(\"'\" & Setup!$AH$11 & \"'!\" & AE129),0) + IF(Setup!$AH$12<>\"\",INDIRECT(\"'\" & Setup!$AH$12 & \"'!\" & AE129),0)","v":0},{"$f":"IF(Setup!$AI$7<>\"\",INDIRECT(\"'\" & Setup!$AI$7 & \"'!\" & AD129),0) + IF(Setup!$AI$8<>\"\",INDIRECT(\"'\" & Setup!$AI$8 & \"'!\" & AD129),0) + IF(Setup!$AI$9<>\"\",INDIRECT(\"'\" & Setup!$AI$9 & \"'!\" & AD129),0) + IF(Setup!$AI$10<>\"\",INDIRECT(\"'\" & Setup!$AI$10 & \"'!\" & AD129),0) + IF(Setup!$AI$11<>\"\",INDIRECT(\"'\" & Setup!$AI$11 & \"'!\" & AD129),0) + IF(Setup!$AI$12<>\"\",INDIRECT(\"'\" & Setup!$AI$12 & \"'!\" & AD129),0)","v":0},{"$f":"IF(Setup!$AI$7<>\"\",INDIRECT(\"'\" & Setup!$AI$7 & \"'!\" & AE129),0) + IF(Setup!$AI$8<>\"\",INDIRECT(\"'\" & Setup!$AI$8 & \"'!\" & AE129),0) + IF(Setup!$AI$9<>\"\",INDIRECT(\"'\" & Setup!$AI$9 & \"'!\" & AE129),0) + IF(Setup!$AI$10<>\"\",INDIRECT(\"'\" & Setup!$AI$10 & \"'!\" & AE129),0) + IF(Setup!$AI$11<>\"\",INDIRECT(\"'\" & Setup!$AI$11 & \"'!\" & AE129),0) + IF(Setup!$AI$12<>\"\",INDIRECT(\"'\" & Setup!$AI$12 & \"'!\" & AE129),0)","v":0},{"$f":"IF(Setup!$AJ$7<>\"\",INDIRECT(\"'\" & Setup!$AJ$7 & \"'!\" & AD129),0) + IF(Setup!$AJ$8<>\"\",INDIRECT(\"'\" & Setup!$AJ$8 & \"'!\" & AD129),0) + IF(Setup!$AJ$9<>\"\",INDIRECT(\"'\" & Setup!$AJ$9 & \"'!\" & AD129),0) + IF(Setup!$AJ$10<>\"\",INDIRECT(\"'\" & Setup!$AJ$10 & \"'!\" & AD129),0) + IF(Setup!$AJ$11<>\"\",INDIRECT(\"'\" & Setup!$AJ$11 & \"'!\" & AD129),0) + IF(Setup!$AJ$12<>\"\",INDIRECT(\"'\" & Setup!$AJ$12 & \"'!\" & AD129),0)","v":0},{"$f":"IF(Setup!$AJ$7<>\"\",INDIRECT(\"'\" & Setup!$AJ$7 & \"'!\" & AE129),0) + IF(Setup!$AJ$8<>\"\",INDIRECT(\"'\" & Setup!$AJ$8 & \"'!\" & AE129),0) + IF(Setup!$AJ$9<>\"\",INDIRECT(\"'\" & Setup!$AJ$9 & \"'!\" & AE129),0) + IF(Setup!$AJ$10<>\"\",INDIRECT(\"'\" & Setup!$AJ$10 & \"'!\" & AE129),0) + IF(Setup!$AJ$11<>\"\",INDIRECT(\"'\" & Setup!$AJ$11 & \"'!\" & AE129),0) + IF(Setup!$AJ$12<>\"\",INDIRECT(\"'\" & Setup!$AJ$12 & \"'!\" & AE129),0)","v":0}]
[{"$f":"Planning!A113","v":"I105"},{"$f":"Planning!B113","v":0},{"$f":"Planning!C113","v":0},{"$f":"Planning!D113","v":0},{"$f":"Planning!E113","v":0},{"$f":"Planning!G113","v":0},null,0,0,{"$f":"IF(AND($AR130=\"2\",$AB129<>Lists!$A$17),AU130,AT130)","v":""},"",0,0,{"$f":"IF(AND($AR130=\"2\",$AB130<>Lists!$A$17),AW130,AV130)","v":""},"",0,0,{"$f":"IF(AND($AR130=\"2\",$AB130<>Lists!$A$17),AY130,AX130)","v":""},"",0,0,{"$f":"IF(AND($AR130=\"2\",$AB130<>Lists!$A$17),BA130,AZ130)","v":""},"",0,0,{"$f":"IF(AND($AR130=\"2\",$AB130<>Lists!$A$17),BC130,BB130)","v":""},"",{"$f":"Planning!H113","v":0},"00","H129","J129","I129","",null,{"$f":"IF(Setup!$AG$7<>\"\",INDIRECT(\"'\" & Setup!$AG$7 & \"'!\" & AF130),0) + IF(Setup!$AG$8<>\"\",INDIRECT(\"'\" & Setup!$AG$8 & \"'!\" & AF130),0) + IF(Setup!$AG$9<>\"\",INDIRECT(\"'\" & Setup!$AG$9 & \"'!\" & AF130),0) + IF(Setup!$AG$10<>\"\",INDIRECT(\"'\" & Setup!$AG$10 & \"'!\" & AF130),0) + IF(Setup!$AG$11<>\"\",INDIRECT(\"'\" & Setup!$AG$11 & \"'!\" & AF130),0) + IF(Setup!$AG$12<>\"\",INDIRECT(\"'\" & Setup!$AG$12 & \"'!\" & AF130),0)","v":0},{"$f":"IF(Setup!$AH$7<>\"\",INDIRECT(\"'\" & Setup!$AH$7 & \"'!\" & AF130),0) + IF(Setup!$AH$8<>\"\",INDIRECT(\"'\" & Setup!$AH$8 & \"'!\" & AF130),0) + IF(Setup!$AH$9<>\"\",INDIRECT(\"'\" & Setup!$AH$9 & \"'!\" & AF130),0) + IF(Setup!$AH$10<>\"\",INDIRECT(\"'\" & Setup!$AH$10 & \"'!\" & AF130),0) + IF(Setup!$AH$11<>\"\",INDIRECT(\"'\" & Setup!$AH$11 & \"'!\" & AF130),0) + IF(Setup!$AH$12<>\"\",INDIRECT(\"'\" & Setup!$AH$12 & \"'!\" & AF130),0)","v":0},{"$f":"IF(Setup!$AI$7<>\"\",INDIRECT(\"'\" & Setup!$AI$7 & \"'!\" & AF130),0) + IF(Setup!$AI$8<>\"\",INDIRECT(\"'\" & Setup!$AI$8 & \"'!\" & AF130),0) + IF(Setup!$AI$9<>\"\",INDIRECT(\"'\" & Setup!$AI$9 & \"'!\" & AF130),0) + IF(Setup!$AI$10<>\"\",INDIRECT(\"'\" & Setup!$AI$10 & \"'!\" & AF130),0) + IF(Setup!$AI$11<>\"\",INDIRECT(\"'\" & Setup!$AI$11 & \"'!\" & AF130),0) + IF(Setup!$AI$12<>\"\",INDIRECT(\"'\" & Setup!$AI$12 & \"'!\" & AF130),0)","v":0},{"$f":"IF(Setup!$AJ$7<>\"\",INDIRECT(\"'\" & Setup!$AJ$7 & \"'!\" & AF130),0) + IF(Setup!$AJ$8<>\"\",INDIRECT(\"'\" & Setup!$AJ$8 & \"'!\" & AF130),0) + IF(Setup!$AJ$9<>\"\",INDIRECT(\"'\" & Setup!$AJ$9 & \"'!\" & AF130),0) + IF(Setup!$AJ$10<>\"\",INDIRECT(\"'\" & Setup!$AJ$10 & \"'!\" & AF130),0) + IF(Setup!$AJ$11<>\"\",INDIRECT(\"'\" & Setup!$AJ$11 & \"'!\" & AF130),0) + IF(Setup!$AJ$12<>\"\",INDIRECT(\"'\" & Setup!$AJ$12 & \"'!\" & AF130),0)","v":0},null,"",{"$nulls":3},{"$f":"IF(C130=0,\"\",LEFT(INDEX(Lists!$H$5:$H$49,MATCH(C130,Lists!$G$5:$G$49,0),1),1))","v":""},null,"","","","","","","","","","",{"$nulls":6},{"$f":"IF(Setup!$AG$7<>\"\",INDIRECT(\"'\" & Setup!$AG$7 & \"'!\" & AD130),0) + IF(Setup!$AG$8<>\"\",INDIRECT(\"'\" & Setup!$AG$8 & \"'!\" & AD130),0) + IF(Setup!$AG$9<>\"\",INDIRECT(\"'\" & Setup!$AG$9 & \"'!\" & AD130),0) + IF(Setup!$AG$10<>\"\",INDIRECT(\"'\" & Setup!$AG$10 & \"'!\" & AD130),0) + IF(Setup!$AG$11<>\"\",INDIRECT(\"'\" & Setup!$AG$11 & \"'!\" & AD130),0) + IF(Setup!$AG$12<>\"\",INDIRECT(\"'\" & Setup!$AG$12 & \"'!\" & AD130),0)","v":0},{"$f":"IF(Setup!$AG$7<>\"\",INDIRECT(\"'\" & Setup!$AG$7 & \"'!\" & AE130),0) + IF(Setup!$AG$8<>\"\",INDIRECT(\"'\" & Setup!$AG$8 & \"'!\" & AE130),0) + IF(Setup!$AG$9<>\"\",INDIRECT(\"'\" & Setup!$AG$9 & \"'!\" & AE130),0) + IF(Setup!$AG$10<>\"\",INDIRECT(\"'\" & Setup!$AG$10 & \"'!\" & AE130),0) + IF(Setup!$AG$11<>\"\",INDIRECT(\"'\" & Setup!$AG$11 & \"'!\" & AE130),0) + IF(Setup!$AG$12<>\"\",INDIRECT(\"'\" & Setup!$AG$12 & \"'!\" & AE130),0)","v":0},{"$f":"IF(Setup!$AH$7<>\"\",INDIRECT(\"'\" & Setup!$AH$7 & \"'!\" & AD130),0) + IF(Setup!$AH$8<>\"\",INDIRECT(\"'\" & Setup!$AH$8 & \"'!\" & AD130),0) + IF(Setup!$AH$9<>\"\",INDIRECT(\"'\" & Setup!$AH$9 & \"'!\" & AD130),0) + IF(Setup!$AH$10<>\"\",INDIRECT(\"'\" & Setup!$AH$10 & \"'!\" & AD130),0) + IF(Setup!$AH$11<>\"\",INDIRECT(\"'\" & Setup!$AH$11 & \"'!\" & AD130),0) + IF(Setup!$AH$12<>\"\",INDIRECT(\"'\" & Setup!$AH$12 & \"'!\" & AD130),0)","v":0},{"$f":"IF(Setup!$AH$7<>\"\",INDIRECT(\"'\" & Setup!$AH$7 & \"'!\" & AE130),0) + IF(Setup!$AH$8<>\"\",INDIRECT(\"'\" & Setup!$AH$8 & \"'!\" & AE130),0) + IF(Setup!$AH$9<>\"\",INDIRECT(\"'\" & Setup!$AH$9 & \"'!\" & AE130),0) + IF(Setup!$AH$10<>\"\",INDIRECT(\"'\" & Setup!$AH$10 & \"'!\" & AE130),0) + IF(Setup!$AH$11<>\"\",INDIRECT(\"'\" & Setup!$AH$11 & \"'!\" & AE130),0) + IF(Setup!$AH$12<>\"\",INDIRECT(\"'\" & Setup!$AH$12 & \"'!\" & AE130),0)","v":0},{"$f":"IF(Setup!$AI$7<>\"\",INDIRECT(\"'\" & Setup!$AI$7 & \"'!\" & AD130),0) + IF(Setup!$AI$8<>\"\",INDIRECT(\"'\" & Setup!$AI$8 & \"'!\" & AD130),0) + IF(Setup!$AI$9<>\"\",INDIRECT(\"'\" & Setup!$AI$9 & \"'!\" & AD130),0) + IF(Setup!$AI$10<>\"\",INDIRECT(\"'\" & Setup!$AI$10 & \"'!\" & AD130),0) + IF(Setup!$AI$11<>\"\",INDIRECT(\"'\" & Setup!$AI$11 & \"'!\" & AD130),0) + IF(Setup!$AI$12<>\"\",INDIRECT(\"'\" & Setup!$AI$12 & \"'!\" & AD130),0)","v":0},{"$f":"IF(Setup!$AI$7<>\"\",INDIRECT(\"'\" & Setup!$AI$7 & \"'!\" & AE130),0) + IF(Setup!$AI$8<>\"\",INDIRECT(\"'\" & Setup!$AI$8 & \"'!\" & AE130),0) + IF(Setup!$AI$9<>\"\",INDIRECT(\"'\" & Setup!$AI$9 & \"'!\" & AE130),0) + IF(Setup!$AI$10<>\"\",INDIRECT(\"'\" & Setup!$AI$10 & \"'!\" & AE130),0) + IF(Setup!$AI$11<>\"\",INDIRECT(\"'\" & Setup!$AI$11 & \"'!\" & AE130),0) + IF(Setup!$AI$12<>\"\",INDIRECT(\"'\" & Setup!$AI$12 & \"'!\" & AE130),0)","v":0},{"$f":"IF(Setup!$AJ$7<>\"\",INDIRECT(\"'\" & Setup!$AJ$7 & \"'!\" & AD130),0) + IF(Setup!$AJ$8<>\"\",INDIRECT(\"'\" & Setup!$AJ$8 & \"'!\" & AD130),0) + IF(Setup!$AJ$9<>\"\",INDIRECT(\"'\" & Setup!$AJ$9 & \"'!\" & AD130),0) + IF(Setup!$AJ$10<>\"\",INDIRECT(\"'\" & Setup!$AJ$10 & \"'!\" & AD130),0) + IF(Setup!$AJ$11<>\"\",INDIRECT(\"'\" & Setup!$AJ$11 & \"'!\" & AD130),0) + IF(Setup!$AJ$12<>\"\",INDIRECT(\"'\" & Setup!$AJ$12 & \"'!\" & AD130),0)","v":0},{"$f":"IF(Setup!$AJ$7<>\"\",INDIRECT(\"'\" & Setup!$AJ$7 & \"'!\" & AE130),0) + IF(Setup!$AJ$8<>\"\",INDIRECT(\"'\" & Setup!$AJ$8 & \"'!\" & AE130),0) + IF(Setup!$AJ$9<>\"\",INDIRECT(\"'\" & Setup!$AJ$9 & \"'!\" & AE130),0) + IF(Setup!$AJ$10<>\"\",INDIRECT(\"'\" & Setup!$AJ$10 & \"'!\" & AE130),0) + IF(Setup!$AJ$11<>\"\",INDIRECT(\"'\" & Setup!$AJ$11 & \"'!\" & AE130),0) + IF(Setup!$AJ$12<>\"\",INDIRECT(\"'\" & Setup!$AJ$12 & \"'!\" & AE130),0)","v":0}]
[{"$f":"Planning!A114","v":"I106"},{"$f":"Planning!B114","v":0},{"$f":"Planning!C114","v":0},{"$f":"Planning!D114","v":0},{"$f":"Planning!E114","v":0},{"$f":"Planning!G114","v":0},null,0,0,{"$f":"IF(AND($AR131=\"2\",$AB130<>Lists!$A$17),AU131,AT131)","v":""},"",0,0,{"$f":"IF(AND($AR131=\"2\",$AB131<>Lists!$A$17),AW131,AV131)","v":""},"",0,0,{"$f":"IF(AND($AR131=\"2\",$AB131<>Lists!$A$17),AY131,AX131)","v":""},"",0,0,{"$f":"IF(AND($AR131=\"2\",$AB131<>Lists!$A$17),BA131,AZ131)","v":""},"",0,0,{"$f":"IF(AND($AR131=\"2\",$AB131<>Lists!$A$17),BC131,BB131)","v":""},"",{"$f":"Planning!H114","v":0},"00","H130","J130","I130","",null,{"$f":"IF(Setup!$AG$7<>\"\",INDIRECT(\"'\" & Setup!$AG$7 & \"'!\" & AF131),0) + IF(Setup!$AG$8<>\"\",INDIRECT(\"'\" & Setup!$AG$8 & \"'!\" & AF131),0) + IF(Setup!$AG$9<>\"\",INDIRECT(\"'\" & Setup!$AG$9 & \"'!\" & AF131),0) + IF(Setup!$AG$10<>\"\",INDIRECT(\"'\" & Setup!$AG$10 & \"'!\" & AF131),0) + IF(Setup!$AG$11<>\"\",INDIRECT(\"'\" & Setup!$AG$11 & \"'!\" & AF131),0) + IF(Setup!$AG$12<>\"\",INDIRECT(\"'\" & Setup!$AG$12 & \"'!\" & AF131),0)","v":0},{"$f":"IF(Setup!$AH$7<>\"\",INDIRECT(\"'\" & Setup!$AH$7 & \"'!\" & AF131),0) + IF(Setup!$AH$8<>\"\",INDIRECT(\"'\" & Setup!$AH$8 & \"'!\" & AF131),0) + IF(Setup!$AH$9<>\"\",INDIRECT(\"'\" & Setup!$AH$9 & \"'!\" & AF131),0) + IF(Setup!$AH$10<>\"\",INDIRECT(\"'\" & Setup!$AH$10 & \"'!\" & AF131),0) + IF(Setup!$AH$11<>\"\",INDIRECT(\"'\" & Setup!$AH$11 & \"'!\" & AF131),0) + IF(Setup!$AH$12<>\"\",INDIRECT(\"'\" & Setup!$AH$12 & \"'!\" & AF131),0)","v":0},{"$f":"IF(Setup!$AI$7<>\"\",INDIRECT(\"'\" & Setup!$AI$7 & \"'!\" & AF131),0) + IF(Setup!$AI$8<>\"\",INDIRECT(\"'\" & Setup!$AI$8 & \"'!\" & AF131),0) + IF(Setup!$AI$9<>\"\",INDIRECT(\"'\" & Setup!$AI$9 & \"'!\" & AF131),0) + IF(Setup!$AI$10<>\"\",INDIRECT(\"'\" & Setup!$AI$10 & \"'!\" & AF131),0) + IF(Setup!$AI$11<>\"\",INDIRECT(\"'\" & Setup!$AI$11 & \"'!\" & AF131),0) + IF(Setup!$AI$12<>\"\",INDIRECT(\"'\" & Setup!$AI$12 & \"'!\" & AF131),0)","v":0},{"$f":"IF(Setup!$AJ$7<>\"\",INDIRECT(\"'\" & Setup!$AJ$7 & \"'!\" & AF131),0) + IF(Setup!$AJ$8<>\"\",INDIRECT(\"'\" & Setup!$AJ$8 & \"'!\" & AF131),0) + IF(Setup!$AJ$9<>\"\",INDIRECT(\"'\" & Setup!$AJ$9 & \"'!\" & AF131),0) + IF(Setup!$AJ$10<>\"\",INDIRECT(\"'\" & Setup!$AJ$10 & \"'!\" & AF131),0) + IF(Setup!$AJ$11<>\"\",INDIRECT(\"'\" & Setup!$AJ$11 & \"'!\" & AF131),0) + IF(Setup!$AJ$12<>\"\",INDIRECT(\"'\" & Setup!$AJ$12 & \"'!\" & AF131),0)","v":0},null,"",{"$nulls":3},{"$f":"IF(C131=0,\"\",LEFT(INDEX(Lists!$H$5:$H$49,MATCH(C131,Lists!$G$5:$G$49,0),1),1))","v":""},null,"","","","","","","","","","",{"$nulls":6},{"$f":"IF(Setup!$AG$7<>\"\",INDIRECT(\"'\" & Setup!$AG$7 & \"'!\" & AD131),0) + IF(Setup!$AG$8<>\"\",INDIRECT(\"'\" & Setup!$AG$8 & \"'!\" & AD131),0) + IF(Setup!$AG$9<>\"\",INDIRECT(\"'\" & Setup!$AG$9 & \"'!\" & AD131),0) + IF(Setup!$AG$10<>\"\",INDIRECT(\"'\" & Setup!$AG$10 & \"'!\" & AD131),0) + IF(Setup!$AG$11<>\"\",INDIRECT(\"'\" & Setup!$AG$11 & \"'!\" & AD131),0) + IF(Setup!$AG$12<>\"\",INDIRECT(\"'\" & Setup!$AG$12 & \"'!\" & AD131),0)","v":0},{"$f":"IF(Setup!$AG$7<>\"\",INDIRECT(\"'\" & Setup!$AG$7 & \"'!\" & AE131),0) + IF(Setup!$AG$8<>\"\",INDIRECT(\"'\" & Setup!$AG$8 & \"'!\" & AE131),0) + IF(Setup!$AG$9<>\"\",INDIRECT(\"'\" & Setup!$AG$9 & \"'!\" & AE131),0) + IF(Setup!$AG$10<>\"\",INDIRECT(\"'\" & Setup!$AG$10 & \"'!\" & AE131),0) + IF(Setup!$AG$11<>\"\",INDIRECT(\"'\" & Setup!$AG$11 & \"'!\" & AE131),0) + IF(Setup!$AG$12<>\"\",INDIRECT(\"'\" & Setup!$AG$12 & \"'!\" & AE131),0)","v":0},{"$f":"IF(Setup!$AH$7<>\"\",INDIRECT(\"'\" & Setup!$AH$7 & \"'!\" & AD131),0) + IF(Setup!$AH$8<>\"\",INDIRECT(\"'\" & Setup!$AH$8 & \"'!\" & AD131),0) + IF(Setup!$AH$9<>\"\",INDIRECT(\"'\" & Setup!$AH$9 & \"'!\" & AD131),0) + IF(Setup!$AH$10<>\"\",INDIRECT(\"'\" & Setup!$AH$10 & \"'!\" & AD131),0) + IF(Setup!$AH$11<>\"\",INDIRECT(\"'\" & Setup!$AH$11 & \"'!\" & AD131),0) + IF(Setup!$AH$12<>\"\",INDIRECT(\"'\" & Setup!$AH$12 & \"'!\" & AD131),0)","v":0},{"$f":"IF(Setup!$AH$7<>\"\",INDIRECT(\"'\" & Setup!$AH$7 & \"'!\" & AE131),0) + IF(Setup!$AH$8<>\"\",INDIRECT(\"'\" & Setup!$AH$8 & \"'!\" & AE131),0) + IF(Setup!$AH$9<>\"\",INDIRECT(\"'\" & Setup!$AH$9 & \"'!\" & AE131),0) + IF(Setup!$AH$10<>\"\",INDIRECT(\"'\" & Setup!$AH$10 & \"'!\" & AE131),0) + IF(Setup!$AH$11<>\"\",INDIRECT(\"'\" & Setup!$AH$11 & \"'!\" & AE131),0) + IF(Setup!$AH$12<>\"\",INDIRECT(\"'\" & Setup!$AH$12 & \"'!\" & AE131),0)","v":0},{"$f":"IF(Setup!$AI$7<>\"\",INDIRECT(\"'\" & Setup!$AI$7 & \"'!\" & AD131),0) + IF(Setup!$AI$8<>\"\",INDIRECT(\"'\" & Setup!$AI$8 & \"'!\" & AD131),0) + IF(Setup!$AI$9<>\"\",INDIRECT(\"'\" & Setup!$AI$9 & \"'!\" & AD131),0) + IF(Setup!$AI$10<>\"\",INDIRECT(\"'\" & Setup!$AI$10 & \"'!\" & AD131),0) + IF(Setup!$AI$11<>\"\",INDIRECT(\"'\" & Setup!$AI$11 & \"'!\" & AD131),0) + IF(Setup!$AI$12<>\"\",INDIRECT(\"'\" & Setup!$AI$12 & \"'!\" & AD131),0)","v":0},{"$f":"IF(Setup!$AI$7<>\"\",INDIRECT(\"'\" & Setup!$AI$7 & \"'!\" & AE131),0) + IF(Setup!$AI$8<>\"\",INDIRECT(\"'\" & Setup!$AI$8 & \"'!\" & AE131),0) + IF(Setup!$AI$9<>\"\",INDIRECT(\"'\" & Setup!$AI$9 & \"'!\" & AE131),0) + IF(Setup!$AI$10<>\"\",INDIRECT(\"'\" & Setup!$AI$10 & \"'!\" & AE131),0) + IF(Setup!$AI$11<>\"\",INDIRECT(\"'\" & Setup!$AI$11 & \"'!\" & AE131),0) + IF(Setup!$AI$12<>\"\",INDIRECT(\"'\" & Setup!$AI$12 & \"'!\" & AE131),0)","v":0},{"$f":"IF(Setup!$AJ$7<>\"\",INDIRECT(\"'\" & Setup!$AJ$7 & \"'!\" & AD131),0) + IF(Setup!$AJ$8<>\"\",INDIRECT(\"'\" & Setup!$AJ$8 & \"'!\" & AD131),0) + IF(Setup!$AJ$9<>\"\",INDIRECT(\"'\" & Setup!$AJ$9 & \"'!\" & AD131),0) + IF(Setup!$AJ$10<>\"\",INDIRECT(\"'\" & Setup!$AJ$10 & \"'!\" & AD131),0) + IF(Setup!$AJ$11<>\"\",INDIRECT(\"'\" & Setup!$AJ$11 & \"'!\" & AD131),0) + IF(Setup!$AJ$12<>\"\",INDIRECT(\"'\" & Setup!$AJ$12 & \"'!\" & AD131),0)","v":0},{"$f":"IF(Setup!$AJ$7<>\"\",INDIRECT(\"'\" & Setup!$AJ$7 & \"'!\" & AE131),0) + IF(Setup!$AJ$8<>\"\",INDIRECT(\"'\" & Setup!$AJ$8 & \"'!\" & AE131),0) + IF(Setup!$AJ$9<>\"\",INDIRECT(\"'\" & Setup!$AJ$9 & \"'!\" & AE131),0) + IF(Setup!$AJ$10<>\"\",INDIRECT(\"'\" & Setup!$AJ$10 & \"'!\" & AE131),0) + IF(Setup!$AJ$11<>\"\",INDIRECT(\"'\" & Setup!$AJ$11 & \"'!\" & AE131),0) + IF(Setup!$AJ$12<>\"\",INDIRECT(\"'\" & Setup!$AJ$12 & \"'!\" & AE131),0)","v":0}]
[{"$f":"Planning!A115","v":"I107"},{"$f":"Planning!B115","v":0},{"$f":"Planning!C115","v":0},{"$f":"Planning!D115","v":0},{"$f":"Planning!E115","v":0},{"$f":"Planning!G115","v":0},null,0,0,{"$f":"IF(AND($AR132=\"2\",$AB131<>Lists!$A$17),AU132,AT132)","v":""},"",0,0,{"$f":"IF(AND($AR132=\"2\",$AB132<>Lists!$A$17),AW132,AV132)","v":""},"",0,0,{"$f":"IF(AND($AR132=\"2\",$AB132<>Lists!$A$17),AY132,AX132)","v":""},"",0,0,{"$f":"IF(AND($AR132=\"2\",$AB132<>Lists!$A$17),BA132,AZ132)","v":""},"",0,0,{"$f":"IF(AND($AR132=\"2\",$AB132<>Lists!$A$17),BC132,BB132)","v":""},"",{"$f":"Planning!H115","v":0},"00","H131","J131","I131","",null,{"$f":"IF(Setup!$AG$7<>\"\",INDIRECT(\"'\" & Setup!$AG$7 & \"'!\" & AF132),0) + IF(Setup!$AG$8<>\"\",INDIRECT(\"'\" & Setup!$AG$8 & \"'!\" & AF132),0) + IF(Setup!$AG$9<>\"\",INDIRECT(\"'\" & Setup!$AG$9 & \"'!\" & AF132),0) + IF(Setup!$AG$10<>\"\",INDIRECT(\"'\" & Setup!$AG$10 & \"'!\" & AF132),0) + IF(Setup!$AG$11<>\"\",INDIRECT(\"'\" & Setup!$AG$11 & \"'!\" & AF132),0) + IF(Setup!$AG$12<>\"\",INDIRECT(\"'\" & Setup!$AG$12 & \"'!\" & AF132),0)","v":0},{"$f":"IF(Setup!$AH$7<>\"\",INDIRECT(\"'\" & Setup!$AH$7 & \"'!\" & AF132),0) + IF(Setup!$AH$8<>\"\",INDIRECT(\"'\" & Setup!$AH$8 & \"'!\" & AF132),0) + IF(Setup!$AH$9<>\"\",INDIRECT(\"'\" & Setup!$AH$9 & \"'!\" & AF132),0) + IF(Setup!$AH$10<>\"\",INDIRECT(\"'\" & Setup!$AH$10 & \"'!\" & AF132),0) + IF(Setup!$AH$11<>\"\",INDIRECT(\"'\" & Setup!$AH$11 & \"'!\" & AF132),0) + IF(Setup!$AH$12<>\"\",INDIRECT(\"'\" & Setup!$AH$12 & \"'!\" & AF132),0)","v":0},{"$f":"IF(Setup!$AI$7<>\"\",INDIRECT(\"'\" & Setup!$AI$7 & \"'!\" & AF132),0) + IF(Setup!$AI$8<>\"\",INDIRECT(\"'\" & Setup!$AI$8 & \"'!\" & AF132),0) + IF(Setup!$AI$9<>\"\",INDIRECT(\"'\" & Setup!$AI$9 & \"'!\" & AF132),0) + IF(Setup!$AI$10<>\"\",INDIRECT(\"'\" & Setup!$AI$10 & \"'!\" & AF132),0) + IF(Setup!$AI$11<>\"\",INDIRECT(\"'\" & Setup!$AI$11 & \"'!\" & AF132),0) + IF(Setup!$AI$12<>\"\",INDIRECT(\"'\" & Setup!$AI$12 & \"'!\" & AF132),0)","v":0},{"$f":"IF(Setup!$AJ$7<>\"\",INDIRECT(\"'\" & Setup!$AJ$7 & \"'!\" & AF132),0) + IF(Setup!$AJ$8<>\"\",INDIRECT(\"'\" & Setup!$AJ$8 & \"'!\" & AF132),0) + IF(Setup!$AJ$9<>\"\",INDIRECT(\"'\" & Setup!$AJ$9 & \"'!\" & AF132),0) + IF(Setup!$AJ$10<>\"\",INDIRECT(\"'\" & Setup!$AJ$10 & \"'!\" & AF132),0) + IF(Setup!$AJ$11<>\"\",INDIRECT(\"'\" & Setup!$AJ$11 & \"'!\" & AF132),0) + IF(Setup!$AJ$12<>\"\",INDIRECT(\"'\" & Setup!$AJ$12 & \"'!\" & AF132),0)","v":0},null,"",{"$nulls":3},{"$f":"IF(C132=0,\"\",LEFT(INDEX(Lists!$H$5:$H$49,MATCH(C132,Lists!$G$5:$G$49,0),1),1))","v":""},null,"","","","","","","","","","",{"$nulls":6},{"$f":"IF(Setup!$AG$7<>\"\",INDIRECT(\"'\" & Setup!$AG$7 & \"'!\" & AD132),0) + IF(Setup!$AG$8<>\"\",INDIRECT(\"'\" & Setup!$AG$8 & \"'!\" & AD132),0) + IF(Setup!$AG$9<>\"\",INDIRECT(\"'\" & Setup!$AG$9 & \"'!\" & AD132),0) + IF(Setup!$AG$10<>\"\",INDIRECT(\"'\" & Setup!$AG$10 & \"'!\" & AD132),0) + IF(Setup!$AG$11<>\"\",INDIRECT(\"'\" & Setup!$AG$11 & \"'!\" & AD132),0) + IF(Setup!$AG$12<>\"\",INDIRECT(\"'\" & Setup!$AG$12 & \"'!\" & AD132),0)","v":0},{"$f":"IF(Setup!$AG$7<>\"\",INDIRECT(\"'\" & Setup!$AG$7 & \"'!\" & AE132),0) + IF(Setup!$AG$8<>\"\",INDIRECT(\"'\" & Setup!$AG$8 & \"'!\" & AE132),0) + IF(Setup!$AG$9<>\"\",INDIRECT(\"'\" & Setup!$AG$9 & \"'!\" & AE132),0) + IF(Setup!$AG$10<>\"\",INDIRECT(\"'\" & Setup!$AG$10 & \"'!\" & AE132),0) + IF(Setup!$AG$11<>\"\",INDIRECT(\"'\" & Setup!$AG$11 & \"'!\" & AE132),0) + IF(Setup!$AG$12<>\"\",INDIRECT(\"'\" & Setup!$AG$12 & \"'!\" & AE132),0)","v":0},{"$f":"IF(Setup!$AH$7<>\"\",INDIRECT(\"'\" & Setup!$AH$7 & \"'!\" & AD132),0) + IF(Setup!$AH$8<>\"\",INDIRECT(\"'\" & Setup!$AH$8 & \"'!\" & AD132),0) + IF(Setup!$AH$9<>\"\",INDIRECT(\"'\" & Setup!$AH$9 & \"'!\" & AD132),0) + IF(Setup!$AH$10<>\"\",INDIRECT(\"'\" & Setup!$AH$10 & \"'!\" & AD132),0) + IF(Setup!$AH$11<>\"\",INDIRECT(\"'\" & Setup!$AH$11 & \"'!\" & AD132),0) + IF(Setup!$AH$12<>\"\",INDIRECT(\"'\" & Setup!$AH$12 & \"'!\" & AD132),0)","v":0},{"$f":"IF(Setup!$AH$7<>\"\",INDIRECT(\"'\" & Setup!$AH$7 & \"'!\" & AE132),0) + IF(Setup!$AH$8<>\"\",INDIRECT(\"'\" & Setup!$AH$8 & \"'!\" & AE132),0) + IF(Setup!$AH$9<>\"\",INDIRECT(\"'\" & Setup!$AH$9 & \"'!\" & AE132),0) + IF(Setup!$AH$10<>\"\",INDIRECT(\"'\" & Setup!$AH$10 & \"'!\" & AE132),0) + IF(Setup!$AH$11<>\"\",INDIRECT(\"'\" & Setup!$AH$11 & \"'!\" & AE132),0) + IF(Setup!$AH$12<>\"\",INDIRECT(\"'\" & Setup!$AH$12 & \"'!\" & AE132),0)","v":0},{"$f":"IF(Setup!$AI$7<>\"\",INDIRECT(\"'\" & Setup!$AI$7 & \"'!\" & AD132),0) + IF(Setup!$AI$8<>\"\",INDIRECT(\"'\" & Setup!$AI$8 & \"'!\" & AD132),0) + IF(Setup!$AI$9<>\"\",INDIRECT(\"'\" & Setup!$AI$9 & \"'!\" & AD132),0) + IF(Setup!$AI$10<>\"\",INDIRECT(\"'\" & Setup!$AI$10 & \"'!\" & AD132),0) + IF(Setup!$AI$11<>\"\",INDIRECT(\"'\" & Setup!$AI$11 & \"'!\" & AD132),0) + IF(Setup!$AI$12<>\"\",INDIRECT(\"'\" & Setup!$AI$12 & \"'!\" & AD132),0)","v":0},{"$f":"IF(Setup!$AI$7<>\"\",INDIRECT(\"'\" & Setup!$AI$7 & \"'!\" & AE132),0) + IF(Setup!$AI$8<>\"\",INDIRECT(\"'\" & Setup!$AI$8 & \"'!\" & AE132),0) + IF(Setup!$AI$9<>\"\",INDIRECT(\"'\" & Setup!$AI$9 & \"'!\" & AE132),0) + IF(Setup!$AI$10<>\"\",INDIRECT(\"'\" & Setup!$AI$10 & \"'!\" & AE132),0) + IF(Setup!$AI$11<>\"\",INDIRECT(\"'\" & Setup!$AI$11 & \"'!\" & AE132),0) + IF(Setup!$AI$12<>\"\",INDIRECT(\"'\" & Setup!$AI$12 & \"'!\" & AE132),0)","v":0},{"$f":"IF(Setup!$AJ$7<>\"\",INDIRECT(\"'\" & Setup!$AJ$7 & \"'!\" & AD132),0) + IF(Setup!$AJ$8<>\"\",INDIRECT(\"'\" & Setup!$AJ$8 & \"'!\" & AD132),0) + IF(Setup!$AJ$9<>\"\",INDIRECT(\"'\" & Setup!$AJ$9 & \"'!\" & AD132),0) + IF(Setup!$AJ$10<>\"\",INDIRECT(\"'\" & Setup!$AJ$10 & \"'!\" & AD132),0) + IF(Setup!$AJ$11<>\"\",INDIRECT(\"'\" & Setup!$AJ$11 & \"'!\" & AD132),0) + IF(Setup!$AJ$12<>\"\",INDIRECT(\"'\" & Setup!$AJ$12 & \"'!\" & AD132),0)","v":0},{"$f":"IF(Setup!$AJ$7<>\"\",INDIRECT(\"'\" & Setup!$AJ$7 & \"'!\" & AE132),0) + IF(Setup!$AJ$8<>\"\",INDIRECT(\"'\" & Setup!$AJ$8 & \"'!\" & AE132),0) + IF(Setup!$AJ$9<>\"\",INDIRECT(\"'\" & Setup!$AJ$9 & \"'!\" & AE132),0) + IF(Setup!$AJ$10<>\"\",INDIRECT(\"'\" & Setup!$AJ$10 & \"'!\" & AE132),0) + IF(Setup!$AJ$11<>\"\",INDIRECT(\"'\" & Setup!$AJ$11 & \"'!\" & AE132),0) + IF(Setup!$AJ$12<>\"\",INDIRECT(\"'\" & Setup!$AJ$12 & \"'!\" & AE132),0)","v":0}]
[{"$f":"Planning!A116","v":"I108"},{"$f":"Planning!B116","v":0},{"$f":"Planning!C116","v":0},{"$f":"Planning!D116","v":0},{"$f":"Planning!E116","v":0},{"$f":"Planning!G116","v":0},null,0,0,{"$f":"IF(AND($AR133=\"2\",$AB132<>Lists!$A$17),AU133,AT133)","v":""},"",0,0,{"$f":"IF(AND($AR133=\"2\",$AB133<>Lists!$A$17),AW133,AV133)","v":""},"",0,0,{"$f":"IF(AND($AR133=\"2\",$AB133<>Lists!$A$17),AY133,AX133)","v":""},"",0,0,{"$f":"IF(AND($AR133=\"2\",$AB133<>Lists!$A$17),BA133,AZ133)","v":""},"",0,0,{"$f":"IF(AND($AR133=\"2\",$AB133<>Lists!$A$17),BC133,BB133)","v":""},"",{"$f":"Planning!H116","v":0},"00","H132","J132","I132","",null,{"$f":"IF(Setup!$AG$7<>\"\",INDIRECT(\"'\" & Setup!$AG$7 & \"'!\" & AF133),0) + IF(Setup!$AG$8<>\"\",INDIRECT(\"'\" & Setup!$AG$8 & \"'!\" & AF133),0) + IF(Setup!$AG$9<>\"\",INDIRECT(\"'\" & Setup!$AG$9 & \"'!\" & AF133),0) + IF(Setup!$AG$10<>\"\",INDIRECT(\"'\" & Setup!$AG$10 & \"'!\" & AF133),0) + IF(Setup!$AG$11<>\"\",INDIRECT(\"'\" & Setup!$AG$11 & \"'!\" & AF133),0) + IF(Setup!$AG$12<>\"\",INDIRECT(\"'\" & Setup!$AG$12 & \"'!\" & AF133),0)","v":0},{"$f":"IF(Setup!$AH$7<>\"\",INDIRECT(\"'\" & Setup!$AH$7 & \"'!\" & AF133),0) + IF(Setup!$AH$8<>\"\",INDIRECT(\"'\" & Setup!$AH$8 & \"'!\" & AF133),0) + IF(Setup!$AH$9<>\"\",INDIRECT(\"'\" & Setup!$AH$9 & \"'!\" & AF133),0) + IF(Setup!$AH$10<>\"\",INDIRECT(\"'\" & Setup!$AH$10 & \"'!\" & AF133),0) + IF(Setup!$AH$11<>\"\",INDIRECT(\"'\" & Setup!$AH$11 & \"'!\" & AF133),0) + IF(Setup!$AH$12<>\"\",INDIRECT(\"'\" & Setup!$AH$12 & \"'!\" & AF133),0)","v":0},{"$f":"IF(Setup!$AI$7<>\"\",INDIRECT(\"'\" & Setup!$AI$7 & \"'!\" & AF133),0) + IF(Setup!$AI$8<>\"\",INDIRECT(\"'\" & Setup!$AI$8 & \"'!\" & AF133),0) + IF(Setup!$AI$9<>\"\",INDIRECT(\"'\" & Setup!$AI$9 & \"'!\" & AF133),0) + IF(Setup!$AI$10<>\"\",INDIRECT(\"'\" & Setup!$AI$10 & \"'!\" & AF133),0) + IF(Setup!$AI$11<>\"\",INDIRECT(\"'\" & Setup!$AI$11 & \"'!\" & AF133),0) + IF(Setup!$AI$12<>\"\",INDIRECT(\"'\" & Setup!$AI$12 & \"'!\" & AF133),0)","v":0},{"$f":"IF(Setup!$AJ$7<>\"\",INDIRECT(\"'\" & Setup!$AJ$7 & \"'!\" & AF133),0) + IF(Setup!$AJ$8<>\"\",INDIRECT(\"'\" & Setup!$AJ$8 & \"'!\" & AF133),0) + IF(Setup!$AJ$9<>\"\",INDIRECT(\"'\" & Setup!$AJ$9 & \"'!\" & AF133),0) + IF(Setup!$AJ$10<>\"\",INDIRECT(\"'\" & Setup!$AJ$10 & \"'!\" & AF133),0) + IF(Setup!$AJ$11<>\"\",INDIRECT(\"'\" & Setup!$AJ$11 & \"'!\" & AF133),0) + IF(Setup!$AJ$12<>\"\",INDIRECT(\"'\" & Setup!$AJ$12 & \"'!\" & AF133),0)","v":0},null,"",{"$nulls":3},{"$f":"IF(C133=0,\"\",LEFT(INDEX(Lists!$H$5:$H$49,MATCH(C133,Lists!$G$5:$G$49,0),1),1))","v":""},null,"","","","","","","","","","",{"$nulls":6},{"$f":"IF(Setup!$AG$7<>\"\",INDIRECT(\"'\" & Setup!$AG$7 & \"'!\" & AD133),0) + IF(Setup!$AG$8<>\"\",INDIRECT(\"'\" & Setup!$AG$8 & \"'!\" & AD133),0) + IF(Setup!$AG$9<>\"\",INDIRECT(\"'\" & Setup!$AG$9 & \"'!\" & AD133),0) + IF(Setup!$AG$10<>\"\",INDIRECT(\"'\" & Setup!$AG$10 & \"'!\" & AD133),0) + IF(Setup!$AG$11<>\"\",INDIRECT(\"'\" & Setup!$AG$11 & \"'!\" & AD133),0) + IF(Setup!$AG$12<>\"\",INDIRECT(\"'\" & Setup!$AG$12 & \"'!\" & AD133),0)","v":0},{"$f":"IF(Setup!$AG$7<>\"\",INDIRECT(\"'\" & Setup!$AG$7 & \"'!\" & AE133),0) + IF(Setup!$AG$8<>\"\",INDIRECT(\"'\" & Setup!$AG$8 & \"'!\" & AE133),0) + IF(Setup!$AG$9<>\"\",INDIRECT(\"'\" & Setup!$AG$9 & \"'!\" & AE133),0) + IF(Setup!$AG$10<>\"\",INDIRECT(\"'\" & Setup!$AG$10 & \"'!\" & AE133),0) + IF(Setup!$AG$11<>\"\",INDIRECT(\"'\" & Setup!$AG$11 & \"'!\" & AE133),0) + IF(Setup!$AG$12<>\"\",INDIRECT(\"'\" & Setup!$AG$12 & \"'!\" & AE133),0)","v":0},{"$f":"IF(Setup!$AH$7<>\"\",INDIRECT(\"'\" & Setup!$AH$7 & \"'!\" & AD133),0) + IF(Setup!$AH$8<>\"\",INDIRECT(\"'\" & Setup!$AH$8 & \"'!\" & AD133),0) + IF(Setup!$AH$9<>\"\",INDIRECT(\"'\" & Setup!$AH$9 & \"'!\" & AD133),0) + IF(Setup!$AH$10<>\"\",INDIRECT(\"'\" & Setup!$AH$10 & \"'!\" & AD133),0) + IF(Setup!$AH$11<>\"\",INDIRECT(\"'\" & Setup!$AH$11 & \"'!\" & AD133),0) + IF(Setup!$AH$12<>\"\",INDIRECT(\"'\" & Setup!$AH$12 & \"'!\" & AD133),0)","v":0},{"$f":"IF(Setup!$AH$7<>\"\",INDIRECT(\"'\" & Setup!$AH$7 & \"'!\" & AE133),0) + IF(Setup!$AH$8<>\"\",INDIRECT(\"'\" & Setup!$AH$8 & \"'!\" & AE133),0) + IF(Setup!$AH$9<>\"\",INDIRECT(\"'\" & Setup!$AH$9 & \"'!\" & AE133),0) + IF(Setup!$AH$10<>\"\",INDIRECT(\"'\" & Setup!$AH$10 & \"'!\" & AE133),0) + IF(Setup!$AH$11<>\"\",INDIRECT(\"'\" & Setup!$AH$11 & \"'!\" & AE133),0) + IF(Setup!$AH$12<>\"\",INDIRECT(\"'\" & Setup!$AH$12 & \"'!\" & AE133),0)","v":0},{"$f":"IF(Setup!$AI$7<>\"\",INDIRECT(\"'\" & Setup!$AI$7 & \"'!\" & AD133),0) + IF(Setup!$AI$8<>\"\",INDIRECT(\"'\" & Setup!$AI$8 & \"'!\" & AD133),0) + IF(Setup!$AI$9<>\"\",INDIRECT(\"'\" & Setup!$AI$9 & \"'!\" & AD133),0) + IF(Setup!$AI$10<>\"\",INDIRECT(\"'\" & Setup!$AI$10 & \"'!\" & AD133),0) + IF(Setup!$AI$11<>\"\",INDIRECT(\"'\" & Setup!$AI$11 & \"'!\" & AD133),0) + IF(Setup!$AI$12<>\"\",INDIRECT(\"'\" & Setup!$AI$12 & \"'!\" & AD133),0)","v":0},{"$f":"IF(Setup!$AI$7<>\"\",INDIRECT(\"'\" & Setup!$AI$7 & \"'!\" & AE133),0) + IF(Setup!$AI$8<>\"\",INDIRECT(\"'\" & Setup!$AI$8 & \"'!\" & AE133),0) + IF(Setup!$AI$9<>\"\",INDIRECT(\"'\" & Setup!$AI$9 & \"'!\" & AE133),0) + IF(Setup!$AI$10<>\"\",INDIRECT(\"'\" & Setup!$AI$10 & \"'!\" & AE133),0) + IF(Setup!$AI$11<>\"\",INDIRECT(\"'\" & Setup!$AI$11 & \"'!\" & AE133),0) + IF(Setup!$AI$12<>\"\",INDIRECT(\"'\" & Setup!$AI$12 & \"'!\" & AE133),0)","v":0},{"$f":"IF(Setup!$AJ$7<>\"\",INDIRECT(\"'\" & Setup!$AJ$7 & \"'!\" & AD133),0) + IF(Setup!$AJ$8<>\"\",INDIRECT(\"'\" & Setup!$AJ$8 & \"'!\" & AD133),0) + IF(Setup!$AJ$9<>\"\",INDIRECT(\"'\" & Setup!$AJ$9 & \"'!\" & AD133),0) + IF(Setup!$AJ$10<>\"\",INDIRECT(\"'\" & Setup!$AJ$10 & \"'!\" & AD133),0) + IF(Setup!$AJ$11<>\"\",INDIRECT(\"'\" & Setup!$AJ$11 & \"'!\" & AD133),0) + IF(Setup!$AJ$12<>\"\",INDIRECT(\"'\" & Setup!$AJ$12 & \"'!\" & AD133),0)","v":0},{"$f":"IF(Setup!$AJ$7<>\"\",INDIRECT(\"'\" & Setup!$AJ$7 & \"'!\" & AE133),0) + IF(Setup!$AJ$8<>\"\",INDIRECT(\"'\" & Setup!$AJ$8 & \"'!\" & AE133),0) + IF(Setup!$AJ$9<>\"\",INDIRECT(\"'\" & Setup!$AJ$9 & \"'!\" & AE133),0) + IF(Setup!$AJ$10<>\"\",INDIRECT(\"'\" & Setup!$AJ$10 & \"'!\" & AE133),0) + IF(Setup!$AJ$11<>\"\",INDIRECT(\"'\" & Setup!$AJ$11 & \"'!\" & AE133),0) + IF(Setup!$AJ$12<>\"\",INDIRECT(\"'\" & Setup!$AJ$12 & \"'!\" & AE133),0)","v":0}]
[{"$f":"Planning!A117","v":"I109"},{"$f":"Planning!B117","v":0},{"$f":"Planning!C117","v":0},{"$f":"Planning!D117","v":0},{"$f":"Planning!E117","v":0},{"$f":"Planning!G117","v":0},null,0,0,{"$f":"IF(AND($AR134=\"2\",$AB133<>Lists!$A$17),AU134,AT134)","v":""},"",0,0,{"$f":"IF(AND($AR134=\"2\",$AB134<>Lists!$A$17),AW134,AV134)","v":""},"",0,0,{"$f":"IF(AND($AR134=\"2\",$AB134<>Lists!$A$17),AY134,AX134)","v":""},"",0,0,{"$f":"IF(AND($AR134=\"2\",$AB134<>Lists!$A$17),BA134,AZ134)","v":""},"",0,0,{"$f":"IF(AND($AR134=\"2\",$AB134<>Lists!$A$17),BC134,BB134)","v":""},"",{"$f":"Planning!H117","v":0},"00","H133","J133","I133","",null,{"$f":"IF(Setup!$AG$7<>\"\",INDIRECT(\"'\" & Setup!$AG$7 & \"'!\" & AF134),0) + IF(Setup!$AG$8<>\"\",INDIRECT(\"'\" & Setup!$AG$8 & \"'!\" & AF134),0) + IF(Setup!$AG$9<>\"\",INDIRECT(\"'\" & Setup!$AG$9 & \"'!\" & AF134),0) + IF(Setup!$AG$10<>\"\",INDIRECT(\"'\" & Setup!$AG$10 & \"'!\" & AF134),0) + IF(Setup!$AG$11<>\"\",INDIRECT(\"'\" & Setup!$AG$11 & \"'!\" & AF134),0) + IF(Setup!$AG$12<>\"\",INDIRECT(\"'\" & Setup!$AG$12 & \"'!\" & AF134),0)","v":0},{"$f":"IF(Setup!$AH$7<>\"\",INDIRECT(\"'\" & Setup!$AH$7 & \"'!\" & AF134),0) + IF(Setup!$AH$8<>\"\",INDIRECT(\"'\" & Setup!$AH$8 & \"'!\" & AF134),0) + IF(Setup!$AH$9<>\"\",INDIRECT(\"'\" & Setup!$AH$9 & \"'!\" & AF134),0) + IF(Setup!$AH$10<>\"\",INDIRECT(\"'\" & Setup!$AH$10 & \"'!\" & AF134),0) + IF(Setup!$AH$11<>\"\",INDIRECT(\"'\" & Setup!$AH$11 & \"'!\" & AF134),0) + IF(Setup!$AH$12<>\"\",INDIRECT(\"'\" & Setup!$AH$12 & \"'!\" & AF134),0)","v":0},{"$f":"IF(Setup!$AI$7<>\"\",INDIRECT(\"'\" & Setup!$AI$7 & \"'!\" & AF134),0) + IF(Setup!$AI$8<>\"\",INDIRECT(\"'\" & Setup!$AI$8 & \"'!\" & AF134),0) + IF(Setup!$AI$9<>\"\",INDIRECT(\"'\" & Setup!$AI$9 & \"'!\" & AF134),0) + IF(Setup!$AI$10<>\"\",INDIRECT(\"'\" & Setup!$AI$10 & \"'!\" & AF134),0) + IF(Setup!$AI$11<>\"\",INDIRECT(\"'\" & Setup!$AI$11 & \"'!\" & AF134),0) + IF(Setup!$AI$12<>\"\",INDIRECT(\"'\" & Setup!$AI$12 & \"'!\" & AF134),0)","v":0},{"$f":"IF(Setup!$AJ$7<>\"\",INDIRECT(\"'\" & Setup!$AJ$7 & \"'!\" & AF134),0) + IF(Setup!$AJ$8<>\"\",INDIRECT(\"'\" & Setup!$AJ$8 & \"'!\" & AF134),0) + IF(Setup!$AJ$9<>\"\",INDIRECT(\"'\" & Setup!$AJ$9 & \"'!\" & AF134),0) + IF(Setup!$AJ$10<>\"\",INDIRECT(\"'\" & Setup!$AJ$10 & \"'!\" & AF134),0) + IF(Setup!$AJ$11<>\"\",INDIRECT(\"'\" & Setup!$AJ$11 & \"'!\" & AF134),0) + IF(Setup!$AJ$12<>\"\",INDIRECT(\"'\" & Setup!$AJ$12 & \"'!\" & AF134),0)","v":0},null,"",{"$nulls":3},{"$f":"IF(C134=0,\"\",LEFT(INDEX(Lists!$H$5:$H$49,MATCH(C134,Lists!$G$5:$G$49,0),1),1))","v":""},null,"","","","","","","","","","",{"$nulls":6},{"$f":"IF(Setup!$AG$7<>\"\",INDIRECT(\"'\" & Setup!$AG$7 & \"'!\" & AD134),0) + IF(Setup!$AG$8<>\"\",INDIRECT(\"'\" & Setup!$AG$8 & \"'!\" & AD134),0) + IF(Setup!$AG$9<>\"\",INDIRECT(\"'\" & Setup!$AG$9 & \"'!\" & AD134),0) + IF(Setup!$AG$10<>\"\",INDIRECT(\"'\" & Setup!$AG$10 & \"'!\" & AD134),0) + IF(Setup!$AG$11<>\"\",INDIRECT(\"'\" & Setup!$AG$11 & \"'!\" & AD134),0) + IF(Setup!$AG$12<>\"\",INDIRECT(\"'\" & Setup!$AG$12 & \"'!\" & AD134),0)","v":0},{"$f":"IF(Setup!$AG$7<>\"\",INDIRECT(\"'\" & Setup!$AG$7 & \"'!\" & AE134),0) + IF(Setup!$AG$8<>\"\",INDIRECT(\"'\" & Setup!$AG$8 & \"'!\" & AE134),0) + IF(Setup!$AG$9<>\"\",INDIRECT(\"'\" & Setup!$AG$9 & \"'!\" & AE134),0) + IF(Setup!$AG$10<>\"\",INDIRECT(\"'\" & Setup!$AG$10 & \"'!\" & AE134),0) + IF(Setup!$AG$11<>\"\",INDIRECT(\"'\" & Setup!$AG$11 & \"'!\" & AE134),0) + IF(Setup!$AG$12<>\"\",INDIRECT(\"'\" & Setup!$AG$12 & \"'!\" & AE134),0)","v":0},{"$f":"IF(Setup!$AH$7<>\"\",INDIRECT(\"'\" & Setup!$AH$7 & \"'!\" & AD134),0) + IF(Setup!$AH$8<>\"\",INDIRECT(\"'\" & Setup!$AH$8 & \"'!\" & AD134),0) + IF(Setup!$AH$9<>\"\",INDIRECT(\"'\" & Setup!$AH$9 & \"'!\" & AD134),0) + IF(Setup!$AH$10<>\"\",INDIRECT(\"'\" & Setup!$AH$10 & \"'!\" & AD134),0) + IF(Setup!$AH$11<>\"\",INDIRECT(\"'\" & Setup!$AH$11 & \"'!\" & AD134),0) + IF(Setup!$AH$12<>\"\",INDIRECT(\"'\" & Setup!$AH$12 & \"'!\" & AD134),0)","v":0},{"$f":"IF(Setup!$AH$7<>\"\",INDIRECT(\"'\" & Setup!$AH$7 & \"'!\" & AE134),0) + IF(Setup!$AH$8<>\"\",INDIRECT(\"'\" & Setup!$AH$8 & \"'!\" & AE134),0) + IF(Setup!$AH$9<>\"\",INDIRECT(\"'\" & Setup!$AH$9 & \"'!\" & AE134),0) + IF(Setup!$AH$10<>\"\",INDIRECT(\"'\" & Setup!$AH$10 & \"'!\" & AE134),0) + IF(Setup!$AH$11<>\"\",INDIRECT(\"'\" & Setup!$AH$11 & \"'!\" & AE134),0) + IF(Setup!$AH$12<>\"\",INDIRECT(\"'\" & Setup!$AH$12 & \"'!\" & AE134),0)","v":0},{"$f":"IF(Setup!$AI$7<>\"\",INDIRECT(\"'\" & Setup!$AI$7 & \"'!\" & AD134),0) + IF(Setup!$AI$8<>\"\",INDIRECT(\"'\" & Setup!$AI$8 & \"'!\" & AD134),0) + IF(Setup!$AI$9<>\"\",INDIRECT(\"'\" & Setup!$AI$9 & \"'!\" & AD134),0) + IF(Setup!$AI$10<>\"\",INDIRECT(\"'\" & Setup!$AI$10 & \"'!\" & AD134),0) + IF(Setup!$AI$11<>\"\",INDIRECT(\"'\" & Setup!$AI$11 & \"'!\" & AD134),0) + IF(Setup!$AI$12<>\"\",INDIRECT(\"'\" & Setup!$AI$12 & \"'!\" & AD134),0)","v":0},{"$f":"IF(Setup!$AI$7<>\"\",INDIRECT(\"'\" & Setup!$AI$7 & \"'!\" & AE134),0) + IF(Setup!$AI$8<>\"\",INDIRECT(\"'\" & Setup!$AI$8 & \"'!\" & AE134),0) + IF(Setup!$AI$9<>\"\",INDIRECT(\"'\" & Setup!$AI$9 & \"'!\" & AE134),0) + IF(Setup!$AI$10<>\"\",INDIRECT(\"'\" & Setup!$AI$10 & \"'!\" & AE134),0) + IF(Setup!$AI$11<>\"\",INDIRECT(\"'\" & Setup!$AI$11 & \"'!\" & AE134),0) + IF(Setup!$AI$12<>\"\",INDIRECT(\"'\" & Setup!$AI$12 & \"'!\" & AE134),0)","v":0},{"$f":"IF(Setup!$AJ$7<>\"\",INDIRECT(\"'\" & Setup!$AJ$7 & \"'!\" & AD134),0) + IF(Setup!$AJ$8<>\"\",INDIRECT(\"'\" & Setup!$AJ$8 & \"'!\" & AD134),0) + IF(Setup!$AJ$9<>\"\",INDIRECT(\"'\" & Setup!$AJ$9 & \"'!\" & AD134),0) + IF(Setup!$AJ$10<>\"\",INDIRECT(\"'\" & Setup!$AJ$10 & \"'!\" & AD134),0) + IF(Setup!$AJ$11<>\"\",INDIRECT(\"'\" & Setup!$AJ$11 & \"'!\" & AD134),0) + IF(Setup!$AJ$12<>\"\",INDIRECT(\"'\" & Setup!$AJ$12 & \"'!\" & AD134),0)","v":0},{"$f":"IF(Setup!$AJ$7<>\"\",INDIRECT(\"'\" & Setup!$AJ$7 & \"'!\" & AE134),0) + IF(Setup!$AJ$8<>\"\",INDIRECT(\"'\" & Setup!$AJ$8 & \"'!\" & AE134),0) + IF(Setup!$AJ$9<>\"\",INDIRECT(\"'\" & Setup!$AJ$9 & \"'!\" & AE134),0) + IF(Setup!$AJ$10<>\"\",INDIRECT(\"'\" & Setup!$AJ$10 & \"'!\" & AE134),0) + IF(Setup!$AJ$11<>\"\",INDIRECT(\"'\" & Setup!$AJ$11 & \"'!\" & AE134),0) + IF(Setup!$AJ$12<>\"\",INDIRECT(\"'\" & Setup!$AJ$12 & \"'!\" & AE134),0)","v":0}]
[{"$f":"Planning!A118","v":"I110"},{"$f":"Planning!B118","v":0},{"$f":"Planning!C118","v":0},{"$f":"Planning!D118","v":0},{"$f":"Planning!E118","v":0},{"$f":"Planning!G118","v":0},null,0,0,{"$f":"IF(AND($AR135=\"2\",$AB134<>Lists!$A$17),AU135,AT135)","v":""},"",0,0,{"$f":"IF(AND($AR135=\"2\",$AB135<>Lists!$A$17),AW135,AV135)","v":""},"",0,0,{"$f":"IF(AND($AR135=\"2\",$AB135<>Lists!$A$17),AY135,AX135)","v":""},"",0,0,{"$f":"IF(AND($AR135=\"2\",$AB135<>Lists!$A$17),BA135,AZ135)","v":""},"",0,0,{"$f":"IF(AND($AR135=\"2\",$AB135<>Lists!$A$17),BC135,BB135)","v":""},"",{"$f":"Planning!H118","v":0},"00","H134","J134","I134","",null,{"$f":"IF(Setup!$AG$7<>\"\",INDIRECT(\"'\" & Setup!$AG$7 & \"'!\" & AF135),0) + IF(Setup!$AG$8<>\"\",INDIRECT(\"'\" & Setup!$AG$8 & \"'!\" & AF135),0) + IF(Setup!$AG$9<>\"\",INDIRECT(\"'\" & Setup!$AG$9 & \"'!\" & AF135),0) + IF(Setup!$AG$10<>\"\",INDIRECT(\"'\" & Setup!$AG$10 & \"'!\" & AF135),0) + IF(Setup!$AG$11<>\"\",INDIRECT(\"'\" & Setup!$AG$11 & \"'!\" & AF135),0) + IF(Setup!$AG$12<>\"\",INDIRECT(\"'\" & Setup!$AG$12 & \"'!\" & AF135),0)","v":0},{"$f":"IF(Setup!$AH$7<>\"\",INDIRECT(\"'\" & Setup!$AH$7 & \"'!\" & AF135),0) + IF(Setup!$AH$8<>\"\",INDIRECT(\"'\" & Setup!$AH$8 & \"'!\" & AF135),0) + IF(Setup!$AH$9<>\"\",INDIRECT(\"'\" & Setup!$AH$9 & \"'!\" & AF135),0) + IF(Setup!$AH$10<>\"\",INDIRECT(\"'\" & Setup!$AH$10 & \"'!\" & AF135),0) + IF(Setup!$AH$11<>\"\",INDIRECT(\"'\" & Setup!$AH$11 & \"'!\" & AF135),0) + IF(Setup!$AH$12<>\"\",INDIRECT(\"'\" & Setup!$AH$12 & \"'!\" & AF135),0)","v":0},{"$f":"IF(Setup!$AI$7<>\"\",INDIRECT(\"'\" & Setup!$AI$7 & \"'!\" & AF135),0) + IF(Setup!$AI$8<>\"\",INDIRECT(\"'\" & Setup!$AI$8 & \"'!\" & AF135),0) + IF(Setup!$AI$9<>\"\",INDIRECT(\"'\" & Setup!$AI$9 & \"'!\" & AF135),0) + IF(Setup!$AI$10<>\"\",INDIRECT(\"'\" & Setup!$AI$10 & \"'!\" & AF135),0) + IF(Setup!$AI$11<>\"\",INDIRECT(\"'\" & Setup!$AI$11 & \"'!\" & AF135),0) + IF(Setup!$AI$12<>\"\",INDIRECT(\"'\" & Setup!$AI$12 & \"'!\" & AF135),0)","v":0},{"$f":"IF(Setup!$AJ$7<>\"\",INDIRECT(\"'\" & Setup!$AJ$7 & \"'!\" & AF135),0) + IF(Setup!$AJ$8<>\"\",INDIRECT(\"'\" & Setup!$AJ$8 & \"'!\" & AF135),0) + IF(Setup!$AJ$9<>\"\",INDIRECT(\"'\" & Setup!$AJ$9 & \"'!\" & AF135),0) + IF(Setup!$AJ$10<>\"\",INDIRECT(\"'\" & Setup!$AJ$10 & \"'!\" & AF135),0) + IF(Setup!$AJ$11<>\"\",INDIRECT(\"'\" & Setup!$AJ$11 & \"'!\" & AF135),0) + IF(Setup!$AJ$12<>\"\",INDIRECT(\"'\" & Setup!$AJ$12 & \"'!\" & AF135),0)","v":0},null,"",{"$nulls":3},{"$f":"IF(C135=0,\"\",LEFT(INDEX(Lists!$H$5:$H$49,MATCH(C135,Lists!$G$5:$G$49,0),1),1))","v":""},null,"","","","","","","","","","",{"$nulls":6},{"$f":"IF(Setup!$AG$7<>\"\",INDIRECT(\"'\" & Setup!$AG$7 & \"'!\" & AD135),0) + IF(Setup!$AG$8<>\"\",INDIRECT(\"'\" & Setup!$AG$8 & \"'!\" & AD135),0) + IF(Setup!$AG$9<>\"\",INDIRECT(\"'\" & Setup!$AG$9 & \"'!\" & AD135),0) + IF(Setup!$AG$10<>\"\",INDIRECT(\"'\" & Setup!$AG$10 & \"'!\" & AD135),0) + IF(Setup!$AG$11<>\"\",INDIRECT(\"'\" & Setup!$AG$11 & \"'!\" & AD135),0) + IF(Setup!$AG$12<>\"\",INDIRECT(\"'\" & Setup!$AG$12 & \"'!\" & AD135),0)","v":0},{"$f":"IF(Setup!$AG$7<>\"\",INDIRECT(\"'\" & Setup!$AG$7 & \"'!\" & AE135),0) + IF(Setup!$AG$8<>\"\",INDIRECT(\"'\" & Setup!$AG$8 & \"'!\" & AE135),0) + IF(Setup!$AG$9<>\"\",INDIRECT(\"'\" & Setup!$AG$9 & \"'!\" & AE135),0) + IF(Setup!$AG$10<>\"\",INDIRECT(\"'\" & Setup!$AG$10 & \"'!\" & AE135),0) + IF(Setup!$AG$11<>\"\",INDIRECT(\"'\" & Setup!$AG$11 & \"'!\" & AE135),0) + IF(Setup!$AG$12<>\"\",INDIRECT(\"'\" & Setup!$AG$12 & \"'!\" & AE135),0)","v":0},{"$f":"IF(Setup!$AH$7<>\"\",INDIRECT(\"'\" & Setup!$AH$7 & \"'!\" & AD135),0) + IF(Setup!$AH$8<>\"\",INDIRECT(\"'\" & Setup!$AH$8 & \"'!\" & AD135),0) + IF(Setup!$AH$9<>\"\",INDIRECT(\"'\" & Setup!$AH$9 & \"'!\" & AD135),0) + IF(Setup!$AH$10<>\"\",INDIRECT(\"'\" & Setup!$AH$10 & \"'!\" & AD135),0) + IF(Setup!$AH$11<>\"\",INDIRECT(\"'\" & Setup!$AH$11 & \"'!\" & AD135),0) + IF(Setup!$AH$12<>\"\",INDIRECT(\"'\" & Setup!$AH$12 & \"'!\" & AD135),0)","v":0},{"$f":"IF(Setup!$AH$7<>\"\",INDIRECT(\"'\" & Setup!$AH$7 & \"'!\" & AE135),0) + IF(Setup!$AH$8<>\"\",INDIRECT(\"'\" & Setup!$AH$8 & \"'!\" & AE135),0) + IF(Setup!$AH$9<>\"\",INDIRECT(\"'\" & Setup!$AH$9 & \"'!\" & AE135),0) + IF(Setup!$AH$10<>\"\",INDIRECT(\"'\" & Setup!$AH$10 & \"'!\" & AE135),0) + IF(Setup!$AH$11<>\"\",INDIRECT(\"'\" & Setup!$AH$11 & \"'!\" & AE135),0) + IF(Setup!$AH$12<>\"\",INDIRECT(\"'\" & Setup!$AH$12 & \"'!\" & AE135),0)","v":0},{"$f":"IF(Setup!$AI$7<>\"\",INDIRECT(\"'\" & Setup!$AI$7 & \"'!\" & AD135),0) + IF(Setup!$AI$8<>\"\",INDIRECT(\"'\" & Setup!$AI$8 & \"'!\" & AD135),0) + IF(Setup!$AI$9<>\"\",INDIRECT(\"'\" & Setup!$AI$9 & \"'!\" & AD135),0) + IF(Setup!$AI$10<>\"\",INDIRECT(\"'\" & Setup!$AI$10 & \"'!\" & AD135),0) + IF(Setup!$AI$11<>\"\",INDIRECT(\"'\" & Setup!$AI$11 & \"'!\" & AD135),0) + IF(Setup!$AI$12<>\"\",INDIRECT(\"'\" & Setup!$AI$12 & \"'!\" & AD135),0)","v":0},{"$f":"IF(Setup!$AI$7<>\"\",INDIRECT(\"'\" & Setup!$AI$7 & \"'!\" & AE135),0) + IF(Setup!$AI$8<>\"\",INDIRECT(\"'\" & Setup!$AI$8 & \"'!\" & AE135),0) + IF(Setup!$AI$9<>\"\",INDIRECT(\"'\" & Setup!$AI$9 & \"'!\" & AE135),0) + IF(Setup!$AI$10<>\"\",INDIRECT(\"'\" & Setup!$AI$10 & \"'!\" & AE135),0) + IF(Setup!$AI$11<>\"\",INDIRECT(\"'\" & Setup!$AI$11 & \"'!\" & AE135),0) + IF(Setup!$AI$12<>\"\",INDIRECT(\"'\" & Setup!$AI$12 & \"'!\" & AE135),0)","v":0},{"$f":"IF(Setup!$AJ$7<>\"\",INDIRECT(\"'\" & Setup!$AJ$7 & \"'!\" & AD135),0) + IF(Setup!$AJ$8<>\"\",INDIRECT(\"'\" & Setup!$AJ$8 & \"'!\" & AD135),0) + IF(Setup!$AJ$9<>\"\",INDIRECT(\"'\" & Setup!$AJ$9 & \"'!\" & AD135),0) + IF(Setup!$AJ$10<>\"\",INDIRECT(\"'\" & Setup!$AJ$10 & \"'!\" & AD135),0) + IF(Setup!$AJ$11<>\"\",INDIRECT(\"'\" & Setup!$AJ$11 & \"'!\" & AD135),0) + IF(Setup!$AJ$12<>\"\",INDIRECT(\"'\" & Setup!$AJ$12 & \"'!\" & AD135),0)","v":0},{"$f":"IF(Setup!$AJ$7<>\"\",INDIRECT(\"'\" & Setup!$AJ$7 & \"'!\" & AE135),0) + IF(Setup!$AJ$8<>\"\",INDIRECT(\"'\" & Setup!$AJ$8 & \"'!\" & AE135),0) + IF(Setup!$AJ$9<>\"\",INDIRECT(\"'\" & Setup!$AJ$9 & \"'!\" & AE135),0) + IF(Setup!$AJ$10<>\"\",INDIRECT(\"'\" & Setup!$AJ$10 & \"'!\" & AE135),0) + IF(Setup!$AJ$11<>\"\",INDIRECT(\"'\" & Setup!$AJ$11 & \"'!\" & AE135),0) + IF(Setup!$AJ$12<>\"\",INDIRECT(\"'\" & Setup!$AJ$12 & \"'!\" & AE135),0)","v":0}]
[{"$f":"Planning!A119","v":"I111"},{"$f":"Planning!B119","v":0},{"$f":"Planning!C119","v":0},{"$f":"Planning!D119","v":0},{"$f":"Planning!E119","v":0},{"$f":"Planning!G119","v":0},null,0,0,{"$f":"IF(AND($AR136=\"2\",$AB135<>Lists!$A$17),AU136,AT136)","v":""},"",0,0,{"$f":"IF(AND($AR136=\"2\",$AB136<>Lists!$A$17),AW136,AV136)","v":""},"",0,0,{"$f":"IF(AND($AR136=\"2\",$AB136<>Lists!$A$17),AY136,AX136)","v":""},"",0,0,{"$f":"IF(AND($AR136=\"2\",$AB136<>Lists!$A$17),BA136,AZ136)","v":""},"",0,0,{"$f":"IF(AND($AR136=\"2\",$AB136<>Lists!$A$17),BC136,BB136)","v":""},"",{"$f":"Planning!H119","v":0},"00","H135","J135","I135","",null,{"$f":"IF(Setup!$AG$7<>\"\",INDIRECT(\"'\" & Setup!$AG$7 & \"'!\" & AF136),0) + IF(Setup!$AG$8<>\"\",INDIRECT(\"'\" & Setup!$AG$8 & \"'!\" & AF136),0) + IF(Setup!$AG$9<>\"\",INDIRECT(\"'\" & Setup!$AG$9 & \"'!\" & AF136),0) + IF(Setup!$AG$10<>\"\",INDIRECT(\"'\" & Setup!$AG$10 & \"'!\" & AF136),0) + IF(Setup!$AG$11<>\"\",INDIRECT(\"'\" & Setup!$AG$11 & \"'!\" & AF136),0) + IF(Setup!$AG$12<>\"\",INDIRECT(\"'\" & Setup!$AG$12 & \"'!\" & AF136),0)","v":0},{"$f":"IF(Setup!$AH$7<>\"\",INDIRECT(\"'\" & Setup!$AH$7 & \"'!\" & AF136),0) + IF(Setup!$AH$8<>\"\",INDIRECT(\"'\" & Setup!$AH$8 & \"'!\" & AF136),0) + IF(Setup!$AH$9<>\"\",INDIRECT(\"'\" & Setup!$AH$9 & \"'!\" & AF136),0) + IF(Setup!$AH$10<>\"\",INDIRECT(\"'\" & Setup!$AH$10 & \"'!\" & AF136),0) + IF(Setup!$AH$11<>\"\",INDIRECT(\"'\" & Setup!$AH$11 & \"'!\" & AF136),0) + IF(Setup!$AH$12<>\"\",INDIRECT(\"'\" & Setup!$AH$12 & \"'!\" & AF136),0)","v":0},{"$f":"IF(Setup!$AI$7<>\"\",INDIRECT(\"'\" & Setup!$AI$7 & \"'!\" & AF136),0) + IF(Setup!$AI$8<>\"\",INDIRECT(\"'\" & Setup!$AI$8 & \"'!\" & AF136),0) + IF(Setup!$AI$9<>\"\",INDIRECT(\"'\" & Setup!$AI$9 & \"'!\" & AF136),0) + IF(Setup!$AI$10<>\"\",INDIRECT(\"'\" & Setup!$AI$10 & \"'!\" & AF136),0) + IF(Setup!$AI$11<>\"\",INDIRECT(\"'\" & Setup!$AI$11 & \"'!\" & AF136),0) + IF(Setup!$AI$12<>\"\",INDIRECT(\"'\" & Setup!$AI$12 & \"'!\" & AF136),0)","v":0},{"$f":"IF(Setup!$AJ$7<>\"\",INDIRECT(\"'\" & Setup!$AJ$7 & \"'!\" & AF136),0) + IF(Setup!$AJ$8<>\"\",INDIRECT(\"'\" & Setup!$AJ$8 & \"'!\" & AF136),0) + IF(Setup!$AJ$9<>\"\",INDIRECT(\"'\" & Setup!$AJ$9 & \"'!\" & AF136),0) + IF(Setup!$AJ$10<>\"\",INDIRECT(\"'\" & Setup!$AJ$10 & \"'!\" & AF136),0) + IF(Setup!$AJ$11<>\"\",INDIRECT(\"'\" & Setup!$AJ$11 & \"'!\" & AF136),0) + IF(Setup!$AJ$12<>\"\",INDIRECT(\"'\" & Setup!$AJ$12 & \"'!\" & AF136),0)","v":0},null,"",{"$nulls":3},{"$f":"IF(C136=0,\"\",LEFT(INDEX(Lists!$H$5:$H$49,MATCH(C136,Lists!$G$5:$G$49,0),1),1))","v":""},null,"","","","","","","","","","",{"$nulls":6},{"$f":"IF(Setup!$AG$7<>\"\",INDIRECT(\"'\" & Setup!$AG$7 & \"'!\" & AD136),0) + IF(Setup!$AG$8<>\"\",INDIRECT(\"'\" & Setup!$AG$8 & \"'!\" & AD136),0) + IF(Setup!$AG$9<>\"\",INDIRECT(\"'\" & Setup!$AG$9 & \"'!\" & AD136),0) + IF(Setup!$AG$10<>\"\",INDIRECT(\"'\" & Setup!$AG$10 & \"'!\" & AD136),0) + IF(Setup!$AG$11<>\"\",INDIRECT(\"'\" & Setup!$AG$11 & \"'!\" & AD136),0) + IF(Setup!$AG$12<>\"\",INDIRECT(\"'\" & Setup!$AG$12 & \"'!\" & AD136),0)","v":0},{"$f":"IF(Setup!$AG$7<>\"\",INDIRECT(\"'\" & Setup!$AG$7 & \"'!\" & AE136),0) + IF(Setup!$AG$8<>\"\",INDIRECT(\"'\" & Setup!$AG$8 & \"'!\" & AE136),0) + IF(Setup!$AG$9<>\"\",INDIRECT(\"'\" & Setup!$AG$9 & \"'!\" & AE136),0) + IF(Setup!$AG$10<>\"\",INDIRECT(\"'\" & Setup!$AG$10 & \"'!\" & AE136),0) + IF(Setup!$AG$11<>\"\",INDIRECT(\"'\" & Setup!$AG$11 & \"'!\" & AE136),0) + IF(Setup!$AG$12<>\"\",INDIRECT(\"'\" & Setup!$AG$12 & \"'!\" & AE136),0)","v":0},{"$f":"IF(Setup!$AH$7<>\"\",INDIRECT(\"'\" & Setup!$AH$7 & \"'!\" & AD136),0) + IF(Setup!$AH$8<>\"\",INDIRECT(\"'\" & Setup!$AH$8 & \"'!\" & AD136),0) + IF(Setup!$AH$9<>\"\",INDIRECT(\"'\" & Setup!$AH$9 & \"'!\" & AD136),0) + IF(Setup!$AH$10<>\"\",INDIRECT(\"'\" & Setup!$AH$10 & \"'!\" & AD136),0) + IF(Setup!$AH$11<>\"\",INDIRECT(\"'\" & Setup!$AH$11 & \"'!\" & AD136),0) + IF(Setup!$AH$12<>\"\",INDIRECT(\"'\" & Setup!$AH$12 & \"'!\" & AD136),0)","v":0},{"$f":"IF(Setup!$AH$7<>\"\",INDIRECT(\"'\" & Setup!$AH$7 & \"'!\" & AE136),0) + IF(Setup!$AH$8<>\"\",INDIRECT(\"'\" & Setup!$AH$8 & \"'!\" & AE136),0) + IF(Setup!$AH$9<>\"\",INDIRECT(\"'\" & Setup!$AH$9 & \"'!\" & AE136),0) + IF(Setup!$AH$10<>\"\",INDIRECT(\"'\" & Setup!$AH$10 & \"'!\" & AE136),0) + IF(Setup!$AH$11<>\"\",INDIRECT(\"'\" & Setup!$AH$11 & \"'!\" & AE136),0) + IF(Setup!$AH$12<>\"\",INDIRECT(\"'\" & Setup!$AH$12 & \"'!\" & AE136),0)","v":0},{"$f":"IF(Setup!$AI$7<>\"\",INDIRECT(\"'\" & Setup!$AI$7 & \"'!\" & AD136),0) + IF(Setup!$AI$8<>\"\",INDIRECT(\"'\" & Setup!$AI$8 & \"'!\" & AD136),0) + IF(Setup!$AI$9<>\"\",INDIRECT(\"'\" & Setup!$AI$9 & \"'!\" & AD136),0) + IF(Setup!$AI$10<>\"\",INDIRECT(\"'\" & Setup!$AI$10 & \"'!\" & AD136),0) + IF(Setup!$AI$11<>\"\",INDIRECT(\"'\" & Setup!$AI$11 & \"'!\" & AD136),0) + IF(Setup!$AI$12<>\"\",INDIRECT(\"'\" & Setup!$AI$12 & \"'!\" & AD136),0)","v":0},{"$f":"IF(Setup!$AI$7<>\"\",INDIRECT(\"'\" & Setup!$AI$7 & \"'!\" & AE136),0) + IF(Setup!$AI$8<>\"\",INDIRECT(\"'\" & Setup!$AI$8 & \"'!\" & AE136),0) + IF(Setup!$AI$9<>\"\",INDIRECT(\"'\" & Setup!$AI$9 & \"'!\" & AE136),0) + IF(Setup!$AI$10<>\"\",INDIRECT(\"'\" & Setup!$AI$10 & \"'!\" & AE136),0) + IF(Setup!$AI$11<>\"\",INDIRECT(\"'\" & Setup!$AI$11 & \"'!\" & AE136),0) + IF(Setup!$AI$12<>\"\",INDIRECT(\"'\" & Setup!$AI$12 & \"'!\" & AE136),0)","v":0},{"$f":"IF(Setup!$AJ$7<>\"\",INDIRECT(\"'\" & Setup!$AJ$7 & \"'!\" & AD136),0) + IF(Setup!$AJ$8<>\"\",INDIRECT(\"'\" & Setup!$AJ$8 & \"'!\" & AD136),0) + IF(Setup!$AJ$9<>\"\",INDIRECT(\"'\" & Setup!$AJ$9 & \"'!\" & AD136),0) + IF(Setup!$AJ$10<>\"\",INDIRECT(\"'\" & Setup!$AJ$10 & \"'!\" & AD136),0) + IF(Setup!$AJ$11<>\"\",INDIRECT(\"'\" & Setup!$AJ$11 & \"'!\" & AD136),0) + IF(Setup!$AJ$12<>\"\",INDIRECT(\"'\" & Setup!$AJ$12 & \"'!\" & AD136),0)","v":0},{"$f":"IF(Setup!$AJ$7<>\"\",INDIRECT(\"'\" & Setup!$AJ$7 & \"'!\" & AE136),0) + IF(Setup!$AJ$8<>\"\",INDIRECT(\"'\" & Setup!$AJ$8 & \"'!\" & AE136),0) + IF(Setup!$AJ$9<>\"\",INDIRECT(\"'\" & Setup!$AJ$9 & \"'!\" & AE136),0) + IF(Setup!$AJ$10<>\"\",INDIRECT(\"'\" & Setup!$AJ$10 & \"'!\" & AE136),0) + IF(Setup!$AJ$11<>\"\",INDIRECT(\"'\" & Setup!$AJ$11 & \"'!\" & AE136),0) + IF(Setup!$AJ$12<>\"\",INDIRECT(\"'\" & Setup!$AJ$12 & \"'!\" & AE136),0)","v":0}]
[{"$f":"Planning!A120","v":"I112"},{"$f":"Planning!B120","v":0},{"$f":"Planning!C120","v":0},{"$f":"Planning!D120","v":0},{"$f":"Planning!E120","v":0},{"$f":"Planning!G120","v":0},null,0,0,{"$f":"IF(AND($AR137=\"2\",$AB136<>Lists!$A$17),AU137,AT137)","v":""},"",0,0,{"$f":"IF(AND($AR137=\"2\",$AB137<>Lists!$A$17),AW137,AV137)","v":""},"",0,0,{"$f":"IF(AND($AR137=\"2\",$AB137<>Lists!$A$17),AY137,AX137)","v":""},"",0,0,{"$f":"IF(AND($AR137=\"2\",$AB137<>Lists!$A$17),BA137,AZ137)","v":""},"",0,0,{"$f":"IF(AND($AR137=\"2\",$AB137<>Lists!$A$17),BC137,BB137)","v":""},"",{"$f":"Planning!H120","v":0},"00","H136","J136","I136","",null,{"$f":"IF(Setup!$AG$7<>\"\",INDIRECT(\"'\" & Setup!$AG$7 & \"'!\" & AF137),0) + IF(Setup!$AG$8<>\"\",INDIRECT(\"'\" & Setup!$AG$8 & \"'!\" & AF137),0) + IF(Setup!$AG$9<>\"\",INDIRECT(\"'\" & Setup!$AG$9 & \"'!\" & AF137),0) + IF(Setup!$AG$10<>\"\",INDIRECT(\"'\" & Setup!$AG$10 & \"'!\" & AF137),0) + IF(Setup!$AG$11<>\"\",INDIRECT(\"'\" & Setup!$AG$11 & \"'!\" & AF137),0) + IF(Setup!$AG$12<>\"\",INDIRECT(\"'\" & Setup!$AG$12 & \"'!\" & AF137),0)","v":0},{"$f":"IF(Setup!$AH$7<>\"\",INDIRECT(\"'\" & Setup!$AH$7 & \"'!\" & AF137),0) + IF(Setup!$AH$8<>\"\",INDIRECT(\"'\" & Setup!$AH$8 & \"'!\" & AF137),0) + IF(Setup!$AH$9<>\"\",INDIRECT(\"'\" & Setup!$AH$9 & \"'!\" & AF137),0) + IF(Setup!$AH$10<>\"\",INDIRECT(\"'\" & Setup!$AH$10 & \"'!\" & AF137),0) + IF(Setup!$AH$11<>\"\",INDIRECT(\"'\" & Setup!$AH$11 & \"'!\" & AF137),0) + IF(Setup!$AH$12<>\"\",INDIRECT(\"'\" & Setup!$AH$12 & \"'!\" & AF137),0)","v":0},{"$f":"IF(Setup!$AI$7<>\"\",INDIRECT(\"'\" & Setup!$AI$7 & \"'!\" & AF137),0) + IF(Setup!$AI$8<>\"\",INDIRECT(\"'\" & Setup!$AI$8 & \"'!\" & AF137),0) + IF(Setup!$AI$9<>\"\",INDIRECT(\"'\" & Setup!$AI$9 & \"'!\" & AF137),0) + IF(Setup!$AI$10<>\"\",INDIRECT(\"'\" & Setup!$AI$10 & \"'!\" & AF137),0) + IF(Setup!$AI$11<>\"\",INDIRECT(\"'\" & Setup!$AI$11 & \"'!\" & AF137),0) + IF(Setup!$AI$12<>\"\",INDIRECT(\"'\" & Setup!$AI$12 & \"'!\" & AF137),0)","v":0},{"$f":"IF(Setup!$AJ$7<>\"\",INDIRECT(\"'\" & Setup!$AJ$7 & \"'!\" & AF137),0) + IF(Setup!$AJ$8<>\"\",INDIRECT(\"'\" & Setup!$AJ$8 & \"'!\" & AF137),0) + IF(Setup!$AJ$9<>\"\",INDIRECT(\"'\" & Setup!$AJ$9 & \"'!\" & AF137),0) + IF(Setup!$AJ$10<>\"\",INDIRECT(\"'\" & Setup!$AJ$10 & \"'!\" & AF137),0) + IF(Setup!$AJ$11<>\"\",INDIRECT(\"'\" & Setup!$AJ$11 & \"'!\" & AF137),0) + IF(Setup!$AJ$12<>\"\",INDIRECT(\"'\" & Setup!$AJ$12 & \"'!\" & AF137),0)","v":0},null,"",{"$nulls":3},{"$f":"IF(C137=0,\"\",LEFT(INDEX(Lists!$H$5:$H$49,MATCH(C137,Lists!$G$5:$G$49,0),1),1))","v":""},null,"","","","","","","","","","",{"$nulls":6},{"$f":"IF(Setup!$AG$7<>\"\",INDIRECT(\"'\" & Setup!$AG$7 & \"'!\" & AD137),0) + IF(Setup!$AG$8<>\"\",INDIRECT(\"'\" & Setup!$AG$8 & \"'!\" & AD137),0) + IF(Setup!$AG$9<>\"\",INDIRECT(\"'\" & Setup!$AG$9 & \"'!\" & AD137),0) + IF(Setup!$AG$10<>\"\",INDIRECT(\"'\" & Setup!$AG$10 & \"'!\" & AD137),0) + IF(Setup!$AG$11<>\"\",INDIRECT(\"'\" & Setup!$AG$11 & \"'!\" & AD137),0) + IF(Setup!$AG$12<>\"\",INDIRECT(\"'\" & Setup!$AG$12 & \"'!\" & AD137),0)","v":0},{"$f":"IF(Setup!$AG$7<>\"\",INDIRECT(\"'\" & Setup!$AG$7 & \"'!\" & AE137),0) + IF(Setup!$AG$8<>\"\",INDIRECT(\"'\" & Setup!$AG$8 & \"'!\" & AE137),0) + IF(Setup!$AG$9<>\"\",INDIRECT(\"'\" & Setup!$AG$9 & \"'!\" & AE137),0) + IF(Setup!$AG$10<>\"\",INDIRECT(\"'\" & Setup!$AG$10 & \"'!\" & AE137),0) + IF(Setup!$AG$11<>\"\",INDIRECT(\"'\" & Setup!$AG$11 & \"'!\" & AE137),0) + IF(Setup!$AG$12<>\"\",INDIRECT(\"'\" & Setup!$AG$12 & \"'!\" & AE137),0)","v":0},{"$f":"IF(Setup!$AH$7<>\"\",INDIRECT(\"'\" & Setup!$AH$7 & \"'!\" & AD137),0) + IF(Setup!$AH$8<>\"\",INDIRECT(\"'\" & Setup!$AH$8 & \"'!\" & AD137),0) + IF(Setup!$AH$9<>\"\",INDIRECT(\"'\" & Setup!$AH$9 & \"'!\" & AD137),0) + IF(Setup!$AH$10<>\"\",INDIRECT(\"'\" & Setup!$AH$10 & \"'!\" & AD137),0) + IF(Setup!$AH$11<>\"\",INDIRECT(\"'\" & Setup!$AH$11 & \"'!\" & AD137),0) + IF(Setup!$AH$12<>\"\",INDIRECT(\"'\" & Setup!$AH$12 & \"'!\" & AD137),0)","v":0},{"$f":"IF(Setup!$AH$7<>\"\",INDIRECT(\"'\" & Setup!$AH$7 & \"'!\" & AE137),0) + IF(Setup!$AH$8<>\"\",INDIRECT(\"'\" & Setup!$AH$8 & \"'!\" & AE137),0) + IF(Setup!$AH$9<>\"\",INDIRECT(\"'\" & Setup!$AH$9 & \"'!\" & AE137),0) + IF(Setup!$AH$10<>\"\",INDIRECT(\"'\" & Setup!$AH$10 & \"'!\" & AE137),0) + IF(Setup!$AH$11<>\"\",INDIRECT(\"'\" & Setup!$AH$11 & \"'!\" & AE137),0) + IF(Setup!$AH$12<>\"\",INDIRECT(\"'\" & Setup!$AH$12 & \"'!\" & AE137),0)","v":0},{"$f":"IF(Setup!$AI$7<>\"\",INDIRECT(\"'\" & Setup!$AI$7 & \"'!\" & AD137),0) + IF(Setup!$AI$8<>\"\",INDIRECT(\"'\" & Setup!$AI$8 & \"'!\" & AD137),0) + IF(Setup!$AI$9<>\"\",INDIRECT(\"'\" & Setup!$AI$9 & \"'!\" & AD137),0) + IF(Setup!$AI$10<>\"\",INDIRECT(\"'\" & Setup!$AI$10 & \"'!\" & AD137),0) + IF(Setup!$AI$11<>\"\",INDIRECT(\"'\" & Setup!$AI$11 & \"'!\" & AD137),0) + IF(Setup!$AI$12<>\"\",INDIRECT(\"'\" & Setup!$AI$12 & \"'!\" & AD137),0)","v":0},{"$f":"IF(Setup!$AI$7<>\"\",INDIRECT(\"'\" & Setup!$AI$7 & \"'!\" & AE137),0) + IF(Setup!$AI$8<>\"\",INDIRECT(\"'\" & Setup!$AI$8 & \"'!\" & AE137),0) + IF(Setup!$AI$9<>\"\",INDIRECT(\"'\" & Setup!$AI$9 & \"'!\" & AE137),0) + IF(Setup!$AI$10<>\"\",INDIRECT(\"'\" & Setup!$AI$10 & \"'!\" & AE137),0) + IF(Setup!$AI$11<>\"\",INDIRECT(\"'\" & Setup!$AI$11 & \"'!\" & AE137),0) + IF(Setup!$AI$12<>\"\",INDIRECT(\"'\" & Setup!$AI$12 & \"'!\" & AE137),0)","v":0},{"$f":"IF(Setup!$AJ$7<>\"\",INDIRECT(\"'\" & Setup!$AJ$7 & \"'!\" & AD137),0) + IF(Setup!$AJ$8<>\"\",INDIRECT(\"'\" & Setup!$AJ$8 & \"'!\" & AD137),0) + IF(Setup!$AJ$9<>\"\",INDIRECT(\"'\" & Setup!$AJ$9 & \"'!\" & AD137),0) + IF(Setup!$AJ$10<>\"\",INDIRECT(\"'\" & Setup!$AJ$10 & \"'!\" & AD137),0) + IF(Setup!$AJ$11<>\"\",INDIRECT(\"'\" & Setup!$AJ$11 & \"'!\" & AD137),0) + IF(Setup!$AJ$12<>\"\",INDIRECT(\"'\" & Setup!$AJ$12 & \"'!\" & AD137),0)","v":0},{"$f":"IF(Setup!$AJ$7<>\"\",INDIRECT(\"'\" & Setup!$AJ$7 & \"'!\" & AE137),0) + IF(Setup!$AJ$8<>\"\",INDIRECT(\"'\" & Setup!$AJ$8 & \"'!\" & AE137),0) + IF(Setup!$AJ$9<>\"\",INDIRECT(\"'\" & Setup!$AJ$9 & \"'!\" & AE137),0) + IF(Setup!$AJ$10<>\"\",INDIRECT(\"'\" & Setup!$AJ$10 & \"'!\" & AE137),0) + IF(Setup!$AJ$11<>\"\",INDIRECT(\"'\" & Setup!$AJ$11 & \"'!\" & AE137),0) + IF(Setup!$AJ$12<>\"\",INDIRECT(\"'\" & Setup!$AJ$12 & \"'!\" & AE137),0)","v":0}]
[{"$f":"Planning!A121","v":"I113"},{"$f":"Planning!B121","v":0},{"$f":"Planning!C121","v":0},{"$f":"Planning!D121","v":0},{"$f":"Planning!E121","v":0},{"$f":"Planning!G121","v":0},null,0,0,{"$f":"IF(AND($AR138=\"2\",$AB137<>Lists!$A$17),AU138,AT138)","v":""},"",0,0,{"$f":"IF(AND($AR138=\"2\",$AB138<>Lists!$A$17),AW138,AV138)","v":""},"",0,0,{"$f":"IF(AND($AR138=\"2\",$AB138<>Lists!$A$17),AY138,AX138)","v":""},"",0,0,{"$f":"IF(AND($AR138=\"2\",$AB138<>Lists!$A$17),BA138,AZ138)","v":""},"",0,0,{"$f":"IF(AND($AR138=\"2\",$AB138<>Lists!$A$17),BC138,BB138)","v":""},"",{"$f":"Planning!H121","v":0},"00","H137","J137","I137","",null,{"$f":"IF(Setup!$AG$7<>\"\",INDIRECT(\"'\" & Setup!$AG$7 & \"'!\" & AF138),0) + IF(Setup!$AG$8<>\"\",INDIRECT(\"'\" & Setup!$AG$8 & \"'!\" & AF138),0) + IF(Setup!$AG$9<>\"\",INDIRECT(\"'\" & Setup!$AG$9 & \"'!\" & AF138),0) + IF(Setup!$AG$10<>\"\",INDIRECT(\"'\" & Setup!$AG$10 & \"'!\" & AF138),0) + IF(Setup!$AG$11<>\"\",INDIRECT(\"'\" & Setup!$AG$11 & \"'!\" & AF138),0) + IF(Setup!$AG$12<>\"\",INDIRECT(\"'\" & Setup!$AG$12 & \"'!\" & AF138),0)","v":0},{"$f":"IF(Setup!$AH$7<>\"\",INDIRECT(\"'\" & Setup!$AH$7 & \"'!\" & AF138),0) + IF(Setup!$AH$8<>\"\",INDIRECT(\"'\" & Setup!$AH$8 & \"'!\" & AF138),0) + IF(Setup!$AH$9<>\"\",INDIRECT(\"'\" & Setup!$AH$9 & \"'!\" & AF138),0) + IF(Setup!$AH$10<>\"\",INDIRECT(\"'\" & Setup!$AH$10 & \"'!\" & AF138),0) + IF(Setup!$AH$11<>\"\",INDIRECT(\"'\" & Setup!$AH$11 & \"'!\" & AF138),0) + IF(Setup!$AH$12<>\"\",INDIRECT(\"'\" & Setup!$AH$12 & \"'!\" & AF138),0)","v":0},{"$f":"IF(Setup!$AI$7<>\"\",INDIRECT(\"'\" & Setup!$AI$7 & \"'!\" & AF138),0) + IF(Setup!$AI$8<>\"\",INDIRECT(\"'\" & Setup!$AI$8 & \"'!\" & AF138),0) + IF(Setup!$AI$9<>\"\",INDIRECT(\"'\" & Setup!$AI$9 & \"'!\" & AF138),0) + IF(Setup!$AI$10<>\"\",INDIRECT(\"'\" & Setup!$AI$10 & \"'!\" & AF138),0) + IF(Setup!$AI$11<>\"\",INDIRECT(\"'\" & Setup!$AI$11 & \"'!\" & AF138),0) + IF(Setup!$AI$12<>\"\",INDIRECT(\"'\" & Setup!$AI$12 & \"'!\" & AF138),0)","v":0},{"$f":"IF(Setup!$AJ$7<>\"\",INDIRECT(\"'\" & Setup!$AJ$7 & \"'!\" & AF138),0) + IF(Setup!$AJ$8<>\"\",INDIRECT(\"'\" & Setup!$AJ$8 & \"'!\" & AF138),0) + IF(Setup!$AJ$9<>\"\",INDIRECT(\"'\" & Setup!$AJ$9 & \"'!\" & AF138),0) + IF(Setup!$AJ$10<>\"\",INDIRECT(\"'\" & Setup!$AJ$10 & \"'!\" & AF138),0) + IF(Setup!$AJ$11<>\"\",INDIRECT(\"'\" & Setup!$AJ$11 & \"'!\" & AF138),0) + IF(Setup!$AJ$12<>\"\",INDIRECT(\"'\" & Setup!$AJ$12 & \"'!\" & AF138),0)","v":0},null,"",{"$nulls":3},{"$f":"IF(C138=0,\"\",LEFT(INDEX(Lists!$H$5:$H$49,MATCH(C138,Lists!$G$5:$G$49,0),1),1))","v":""},null,"","","","","","","","","","",{"$nulls":6},{"$f":"IF(Setup!$AG$7<>\"\",INDIRECT(\"'\" & Setup!$AG$7 & \"'!\" & AD138),0) + IF(Setup!$AG$8<>\"\",INDIRECT(\"'\" & Setup!$AG$8 & \"'!\" & AD138),0) + IF(Setup!$AG$9<>\"\",INDIRECT(\"'\" & Setup!$AG$9 & \"'!\" & AD138),0) + IF(Setup!$AG$10<>\"\",INDIRECT(\"'\" & Setup!$AG$10 & \"'!\" & AD138),0) + IF(Setup!$AG$11<>\"\",INDIRECT(\"'\" & Setup!$AG$11 & \"'!\" & AD138),0) + IF(Setup!$AG$12<>\"\",INDIRECT(\"'\" & Setup!$AG$12 & \"'!\" & AD138),0)","v":0},{"$f":"IF(Setup!$AG$7<>\"\",INDIRECT(\"'\" & Setup!$AG$7 & \"'!\" & AE138),0) + IF(Setup!$AG$8<>\"\",INDIRECT(\"'\" & Setup!$AG$8 & \"'!\" & AE138),0) + IF(Setup!$AG$9<>\"\",INDIRECT(\"'\" & Setup!$AG$9 & \"'!\" & AE138),0) + IF(Setup!$AG$10<>\"\",INDIRECT(\"'\" & Setup!$AG$10 & \"'!\" & AE138),0) + IF(Setup!$AG$11<>\"\",INDIRECT(\"'\" & Setup!$AG$11 & \"'!\" & AE138),0) + IF(Setup!$AG$12<>\"\",INDIRECT(\"'\" & Setup!$AG$12 & \"'!\" & AE138),0)","v":0},{"$f":"IF(Setup!$AH$7<>\"\",INDIRECT(\"'\" & Setup!$AH$7 & \"'!\" & AD138),0) + IF(Setup!$AH$8<>\"\",INDIRECT(\"'\" & Setup!$AH$8 & \"'!\" & AD138),0) + IF(Setup!$AH$9<>\"\",INDIRECT(\"'\" & Setup!$AH$9 & \"'!\" & AD138),0) + IF(Setup!$AH$10<>\"\",INDIRECT(\"'\" & Setup!$AH$10 & \"'!\" & AD138),0) + IF(Setup!$AH$11<>\"\",INDIRECT(\"'\" & Setup!$AH$11 & \"'!\" & AD138),0) + IF(Setup!$AH$12<>\"\",INDIRECT(\"'\" & Setup!$AH$12 & \"'!\" & AD138),0)","v":0},{"$f":"IF(Setup!$AH$7<>\"\",INDIRECT(\"'\" & Setup!$AH$7 & \"'!\" & AE138),0) + IF(Setup!$AH$8<>\"\",INDIRECT(\"'\" & Setup!$AH$8 & \"'!\" & AE138),0) + IF(Setup!$AH$9<>\"\",INDIRECT(\"'\" & Setup!$AH$9 & \"'!\" & AE138),0) + IF(Setup!$AH$10<>\"\",INDIRECT(\"'\" & Setup!$AH$10 & \"'!\" & AE138),0) + IF(Setup!$AH$11<>\"\",INDIRECT(\"'\" & Setup!$AH$11 & \"'!\" & AE138),0) + IF(Setup!$AH$12<>\"\",INDIRECT(\"'\" & Setup!$AH$12 & \"'!\" & AE138),0)","v":0},{"$f":"IF(Setup!$AI$7<>\"\",INDIRECT(\"'\" & Setup!$AI$7 & \"'!\" & AD138),0) + IF(Setup!$AI$8<>\"\",INDIRECT(\"'\" & Setup!$AI$8 & \"'!\" & AD138),0) + IF(Setup!$AI$9<>\"\",INDIRECT(\"'\" & Setup!$AI$9 & \"'!\" & AD138),0) + IF(Setup!$AI$10<>\"\",INDIRECT(\"'\" & Setup!$AI$10 & \"'!\" & AD138),0) + IF(Setup!$AI$11<>\"\",INDIRECT(\"'\" & Setup!$AI$11 & \"'!\" & AD138),0) + IF(Setup!$AI$12<>\"\",INDIRECT(\"'\" & Setup!$AI$12 & \"'!\" & AD138),0)","v":0},{"$f":"IF(Setup!$AI$7<>\"\",INDIRECT(\"'\" & Setup!$AI$7 & \"'!\" & AE138),0) + IF(Setup!$AI$8<>\"\",INDIRECT(\"'\" & Setup!$AI$8 & \"'!\" & AE138),0) + IF(Setup!$AI$9<>\"\",INDIRECT(\"'\" & Setup!$AI$9 & \"'!\" & AE138),0) + IF(Setup!$AI$10<>\"\",INDIRECT(\"'\" & Setup!$AI$10 & \"'!\" & AE138),0) + IF(Setup!$AI$11<>\"\",INDIRECT(\"'\" & Setup!$AI$11 & \"'!\" & AE138),0) + IF(Setup!$AI$12<>\"\",INDIRECT(\"'\" & Setup!$AI$12 & \"'!\" & AE138),0)","v":0},{"$f":"IF(Setup!$AJ$7<>\"\",INDIRECT(\"'\" & Setup!$AJ$7 & \"'!\" & AD138),0) + IF(Setup!$AJ$8<>\"\",INDIRECT(\"'\" & Setup!$AJ$8 & \"'!\" & AD138),0) + IF(Setup!$AJ$9<>\"\",INDIRECT(\"'\" & Setup!$AJ$9 & \"'!\" & AD138),0) + IF(Setup!$AJ$10<>\"\",INDIRECT(\"'\" & Setup!$AJ$10 & \"'!\" & AD138),0) + IF(Setup!$AJ$11<>\"\",INDIRECT(\"'\" & Setup!$AJ$11 & \"'!\" & AD138),0) + IF(Setup!$AJ$12<>\"\",INDIRECT(\"'\" & Setup!$AJ$12 & \"'!\" & AD138),0)","v":0},{"$f":"IF(Setup!$AJ$7<>\"\",INDIRECT(\"'\" & Setup!$AJ$7 & \"'!\" & AE138),0) + IF(Setup!$AJ$8<>\"\",INDIRECT(\"'\" & Setup!$AJ$8 & \"'!\" & AE138),0) + IF(Setup!$AJ$9<>\"\",INDIRECT(\"'\" & Setup!$AJ$9 & \"'!\" & AE138),0) + IF(Setup!$AJ$10<>\"\",INDIRECT(\"'\" & Setup!$AJ$10 & \"'!\" & AE138),0) + IF(Setup!$AJ$11<>\"\",INDIRECT(\"'\" & Setup!$AJ$11 & \"'!\" & AE138),0) + IF(Setup!$AJ$12<>\"\",INDIRECT(\"'\" & Setup!$AJ$12 & \"'!\" & AE138),0)","v":0}]
[{"$f":"Planning!A122","v":"I114"},{"$f":"Planning!B122","v":0},{"$f":"Planning!C122","v":0},{"$f":"Planning!D122","v":0},{"$f":"Planning!E122","v":0},{"$f":"Planning!G122","v":0},null,0,0,{"$f":"IF(AND($AR139=\"2\",$AB138<>Lists!$A$17),AU139,AT139)","v":""},"",0,0,{"$f":"IF(AND($AR139=\"2\",$AB139<>Lists!$A$17),AW139,AV139)","v":""},"",0,0,{"$f":"IF(AND($AR139=\"2\",$AB139<>Lists!$A$17),AY139,AX139)","v":""},"",0,0,{"$f":"IF(AND($AR139=\"2\",$AB139<>Lists!$A$17),BA139,AZ139)","v":""},"",0,0,{"$f":"IF(AND($AR139=\"2\",$AB139<>Lists!$A$17),BC139,BB139)","v":""},"",{"$f":"Planning!H122","v":0},"00","H138","J138","I138","",null,{"$f":"IF(Setup!$AG$7<>\"\",INDIRECT(\"'\" & Setup!$AG$7 & \"'!\" & AF139),0) + IF(Setup!$AG$8<>\"\",INDIRECT(\"'\" & Setup!$AG$8 & \"'!\" & AF139),0) + IF(Setup!$AG$9<>\"\",INDIRECT(\"'\" & Setup!$AG$9 & \"'!\" & AF139),0) + IF(Setup!$AG$10<>\"\",INDIRECT(\"'\" & Setup!$AG$10 & \"'!\" & AF139),0) + IF(Setup!$AG$11<>\"\",INDIRECT(\"'\" & Setup!$AG$11 & \"'!\" & AF139),0) + IF(Setup!$AG$12<>\"\",INDIRECT(\"'\" & Setup!$AG$12 & \"'!\" & AF139),0)","v":0},{"$f":"IF(Setup!$AH$7<>\"\",INDIRECT(\"'\" & Setup!$AH$7 & \"'!\" & AF139),0) + IF(Setup!$AH$8<>\"\",INDIRECT(\"'\" & Setup!$AH$8 & \"'!\" & AF139),0) + IF(Setup!$AH$9<>\"\",INDIRECT(\"'\" & Setup!$AH$9 & \"'!\" & AF139),0) + IF(Setup!$AH$10<>\"\",INDIRECT(\"'\" & Setup!$AH$10 & \"'!\" & AF139),0) + IF(Setup!$AH$11<>\"\",INDIRECT(\"'\" & Setup!$AH$11 & \"'!\" & AF139),0) + IF(Setup!$AH$12<>\"\",INDIRECT(\"'\" & Setup!$AH$12 & \"'!\" & AF139),0)","v":0},{"$f":"IF(Setup!$AI$7<>\"\",INDIRECT(\"'\" & Setup!$AI$7 & \"'!\" & AF139),0) + IF(Setup!$AI$8<>\"\",INDIRECT(\"'\" & Setup!$AI$8 & \"'!\" & AF139),0) + IF(Setup!$AI$9<>\"\",INDIRECT(\"'\" & Setup!$AI$9 & \"'!\" & AF139),0) + IF(Setup!$AI$10<>\"\",INDIRECT(\"'\" & Setup!$AI$10 & \"'!\" & AF139),0) + IF(Setup!$AI$11<>\"\",INDIRECT(\"'\" & Setup!$AI$11 & \"'!\" & AF139),0) + IF(Setup!$AI$12<>\"\",INDIRECT(\"'\" & Setup!$AI$12 & \"'!\" & AF139),0)","v":0},{"$f":"IF(Setup!$AJ$7<>\"\",INDIRECT(\"'\" & Setup!$AJ$7 & \"'!\" & AF139),0) + IF(Setup!$AJ$8<>\"\",INDIRECT(\"'\" & Setup!$AJ$8 & \"'!\" & AF139),0) + IF(Setup!$AJ$9<>\"\",INDIRECT(\"'\" & Setup!$AJ$9 & \"'!\" & AF139),0) + IF(Setup!$AJ$10<>\"\",INDIRECT(\"'\" & Setup!$AJ$10 & \"'!\" & AF139),0) + IF(Setup!$AJ$11<>\"\",INDIRECT(\"'\" & Setup!$AJ$11 & \"'!\" & AF139),0) + IF(Setup!$AJ$12<>\"\",INDIRECT(\"'\" & Setup!$AJ$12 & \"'!\" & AF139),0)","v":0},null,"",{"$nulls":3},{"$f":"IF(C139=0,\"\",LEFT(INDEX(Lists!$H$5:$H$49,MATCH(C139,Lists!$G$5:$G$49,0),1),1))","v":""},null,"","","","","","","","","","",{"$nulls":6},{"$f":"IF(Setup!$AG$7<>\"\",INDIRECT(\"'\" & Setup!$AG$7 & \"'!\" & AD139),0) + IF(Setup!$AG$8<>\"\",INDIRECT(\"'\" & Setup!$AG$8 & \"'!\" & AD139),0) + IF(Setup!$AG$9<>\"\",INDIRECT(\"'\" & Setup!$AG$9 & \"'!\" & AD139),0) + IF(Setup!$AG$10<>\"\",INDIRECT(\"'\" & Setup!$AG$10 & \"'!\" & AD139),0) + IF(Setup!$AG$11<>\"\",INDIRECT(\"'\" & Setup!$AG$11 & \"'!\" & AD139),0) + IF(Setup!$AG$12<>\"\",INDIRECT(\"'\" & Setup!$AG$12 & \"'!\" & AD139),0)","v":0},{"$f":"IF(Setup!$AG$7<>\"\",INDIRECT(\"'\" & Setup!$AG$7 & \"'!\" & AE139),0) + IF(Setup!$AG$8<>\"\",INDIRECT(\"'\" & Setup!$AG$8 & \"'!\" & AE139),0) + IF(Setup!$AG$9<>\"\",INDIRECT(\"'\" & Setup!$AG$9 & \"'!\" & AE139),0) + IF(Setup!$AG$10<>\"\",INDIRECT(\"'\" & Setup!$AG$10 & \"'!\" & AE139),0) + IF(Setup!$AG$11<>\"\",INDIRECT(\"'\" & Setup!$AG$11 & \"'!\" & AE139),0) + IF(Setup!$AG$12<>\"\",INDIRECT(\"'\" & Setup!$AG$12 & \"'!\" & AE139),0)","v":0},{"$f":"IF(Setup!$AH$7<>\"\",INDIRECT(\"'\" & Setup!$AH$7 & \"'!\" & AD139),0) + IF(Setup!$AH$8<>\"\",INDIRECT(\"'\" & Setup!$AH$8 & \"'!\" & AD139),0) + IF(Setup!$AH$9<>\"\",INDIRECT(\"'\" & Setup!$AH$9 & \"'!\" & AD139),0) + IF(Setup!$AH$10<>\"\",INDIRECT(\"'\" & Setup!$AH$10 & \"'!\" & AD139),0) + IF(Setup!$AH$11<>\"\",INDIRECT(\"'\" & Setup!$AH$11 & \"'!\" & AD139),0) + IF(Setup!$AH$12<>\"\",INDIRECT(\"'\" & Setup!$AH$12 & \"'!\" & AD139),0)","v":0},{"$f":"IF(Setup!$AH$7<>\"\",INDIRECT(\"'\" & Setup!$AH$7 & \"'!\" & AE139),0) + IF(Setup!$AH$8<>\"\",INDIRECT(\"'\" & Setup!$AH$8 & \"'!\" & AE139),0) + IF(Setup!$AH$9<>\"\",INDIRECT(\"'\" & Setup!$AH$9 & \"'!\" & AE139),0) + IF(Setup!$AH$10<>\"\",INDIRECT(\"'\" & Setup!$AH$10 & \"'!\" & AE139),0) + IF(Setup!$AH$11<>\"\",INDIRECT(\"'\" & Setup!$AH$11 & \"'!\" & AE139),0) + IF(Setup!$AH$12<>\"\",INDIRECT(\"'\" & Setup!$AH$12 & \"'!\" & AE139),0)","v":0},{"$f":"IF(Setup!$AI$7<>\"\",INDIRECT(\"'\" & Setup!$AI$7 & \"'!\" & AD139),0) + IF(Setup!$AI$8<>\"\",INDIRECT(\"'\" & Setup!$AI$8 & \"'!\" & AD139),0) + IF(Setup!$AI$9<>\"\",INDIRECT(\"'\" & Setup!$AI$9 & \"'!\" & AD139),0) + IF(Setup!$AI$10<>\"\",INDIRECT(\"'\" & Setup!$AI$10 & \"'!\" & AD139),0) + IF(Setup!$AI$11<>\"\",INDIRECT(\"'\" & Setup!$AI$11 & \"'!\" & AD139),0) + IF(Setup!$AI$12<>\"\",INDIRECT(\"'\" & Setup!$AI$12 & \"'!\" & AD139),0)","v":0},{"$f":"IF(Setup!$AI$7<>\"\",INDIRECT(\"'\" & Setup!$AI$7 & \"'!\" & AE139),0) + IF(Setup!$AI$8<>\"\",INDIRECT(\"'\" & Setup!$AI$8 & \"'!\" & AE139),0) + IF(Setup!$AI$9<>\"\",INDIRECT(\"'\" & Setup!$AI$9 & \"'!\" & AE139),0) + IF(Setup!$AI$10<>\"\",INDIRECT(\"'\" & Setup!$AI$10 & \"'!\" & AE139),0) + IF(Setup!$AI$11<>\"\",INDIRECT(\"'\" & Setup!$AI$11 & \"'!\" & AE139),0) + IF(Setup!$AI$12<>\"\",INDIRECT(\"'\" & Setup!$AI$12 & \"'!\" & AE139),0)","v":0},{"$f":"IF(Setup!$AJ$7<>\"\",INDIRECT(\"'\" & Setup!$AJ$7 & \"'!\" & AD139),0) + IF(Setup!$AJ$8<>\"\",INDIRECT(\"'\" & Setup!$AJ$8 & \"'!\" & AD139),0) + IF(Setup!$AJ$9<>\"\",INDIRECT(\"'\" & Setup!$AJ$9 & \"'!\" & AD139),0) + IF(Setup!$AJ$10<>\"\",INDIRECT(\"'\" & Setup!$AJ$10 & \"'!\" & AD139),0) + IF(Setup!$AJ$11<>\"\",INDIRECT(\"'\" & Setup!$AJ$11 & \"'!\" & AD139),0) + IF(Setup!$AJ$12<>\"\",INDIRECT(\"'\" & Setup!$AJ$12 & \"'!\" & AD139),0)","v":0},{"$f":"IF(Setup!$AJ$7<>\"\",INDIRECT(\"'\" & Setup!$AJ$7 & \"'!\" & AE139),0) + IF(Setup!$AJ$8<>\"\",INDIRECT(\"'\" & Setup!$AJ$8 & \"'!\" & AE139),0) + IF(Setup!$AJ$9<>\"\",INDIRECT(\"'\" & Setup!$AJ$9 & \"'!\" & AE139),0) + IF(Setup!$AJ$10<>\"\",INDIRECT(\"'\" & Setup!$AJ$10 & \"'!\" & AE139),0) + IF(Setup!$AJ$11<>\"\",INDIRECT(\"'\" & Setup!$AJ$11 & \"'!\" & AE139),0) + IF(Setup!$AJ$12<>\"\",INDIRECT(\"'\" & Setup!$AJ$12 & \"'!\" & AE139),0)","v":0}]
[{"$f":"Planning!A123","v":"I115"},{"$f":"Planning!B123","v":0},{"$f":"Planning!C123","v":0},{"$f":"Planning!D123","v":0},{"$f":"Planning!E123","v":0},{"$f":"Planning!G123","v":0},null,0,0,{"$f":"IF(AND($AR140=\"2\",$AB139<>Lists!$A$17),AU140,AT140)","v":""},"",0,0,{"$f":"IF(AND($AR140=\"2\",$AB140<>Lists!$A$17),AW140,AV140)","v":""},"",0,0,{"$f":"IF(AND($AR140=\"2\",$AB140<>Lists!$A$17),AY140,AX140)","v":""},"",0,0,{"$f":"IF(AND($AR140=\"2\",$AB140<>Lists!$A$17),BA140,AZ140)","v":""},"",0,0,{"$f":"IF(AND($AR140=\"2\",$AB140<>Lists!$A$17),BC140,BB140)","v":""},"",{"$f":"Planning!H123","v":0},"00","H139","J139","I139","",null,{"$f":"IF(Setup!$AG$7<>\"\",INDIRECT(\"'\" & Setup!$AG$7 & \"'!\" & AF140),0) + IF(Setup!$AG$8<>\"\",INDIRECT(\"'\" & Setup!$AG$8 & \"'!\" & AF140),0) + IF(Setup!$AG$9<>\"\",INDIRECT(\"'\" & Setup!$AG$9 & \"'!\" & AF140),0) + IF(Setup!$AG$10<>\"\",INDIRECT(\"'\" & Setup!$AG$10 & \"'!\" & AF140),0) + IF(Setup!$AG$11<>\"\",INDIRECT(\"'\" & Setup!$AG$11 & \"'!\" & AF140),0) + IF(Setup!$AG$12<>\"\",INDIRECT(\"'\" & Setup!$AG$12 & \"'!\" & AF140),0)","v":0},{"$f":"IF(Setup!$AH$7<>\"\",INDIRECT(\"'\" & Setup!$AH$7 & \"'!\" & AF140),0) + IF(Setup!$AH$8<>\"\",INDIRECT(\"'\" & Setup!$AH$8 & \"'!\" & AF140),0) + IF(Setup!$AH$9<>\"\",INDIRECT(\"'\" & Setup!$AH$9 & \"'!\" & AF140),0) + IF(Setup!$AH$10<>\"\",INDIRECT(\"'\" & Setup!$AH$10 & \"'!\" & AF140),0) + IF(Setup!$AH$11<>\"\",INDIRECT(\"'\" & Setup!$AH$11 & \"'!\" & AF140),0) + IF(Setup!$AH$12<>\"\",INDIRECT(\"'\" & Setup!$AH$12 & \"'!\" & AF140),0)","v":0},{"$f":"IF(Setup!$AI$7<>\"\",INDIRECT(\"'\" & Setup!$AI$7 & \"'!\" & AF140),0) + IF(Setup!$AI$8<>\"\",INDIRECT(\"'\" & Setup!$AI$8 & \"'!\" & AF140),0) + IF(Setup!$AI$9<>\"\",INDIRECT(\"'\" & Setup!$AI$9 & \"'!\" & AF140),0) + IF(Setup!$AI$10<>\"\",INDIRECT(\"'\" & Setup!$AI$10 & \"'!\" & AF140),0) + IF(Setup!$AI$11<>\"\",INDIRECT(\"'\" & Setup!$AI$11 & \"'!\" & AF140),0) + IF(Setup!$AI$12<>\"\",INDIRECT(\"'\" & Setup!$AI$12 & \"'!\" & AF140),0)","v":0},{"$f":"IF(Setup!$AJ$7<>\"\",INDIRECT(\"'\" & Setup!$AJ$7 & \"'!\" & AF140),0) + IF(Setup!$AJ$8<>\"\",INDIRECT(\"'\" & Setup!$AJ$8 & \"'!\" & AF140),0) + IF(Setup!$AJ$9<>\"\",INDIRECT(\"'\" & Setup!$AJ$9 & \"'!\" & AF140),0) + IF(Setup!$AJ$10<>\"\",INDIRECT(\"'\" & Setup!$AJ$10 & \"'!\" & AF140),0) + IF(Setup!$AJ$11<>\"\",INDIRECT(\"'\" & Setup!$AJ$11 & \"'!\" & AF140),0) + IF(Setup!$AJ$12<>\"\",INDIRECT(\"'\" & Setup!$AJ$12 & \"'!\" & AF140),0)","v":0},null,"",{"$nulls":3},{"$f":"IF(C140=0,\"\",LEFT(INDEX(Lists!$H$5:$H$49,MATCH(C140,Lists!$G$5:$G$49,0),1),1))","v":""},null,"","","","","","","","","","",{"$nulls":6},{"$f":"IF(Setup!$AG$7<>\"\",INDIRECT(\"'\" & Setup!$AG$7 & \"'!\" & AD140),0) + IF(Setup!$AG$8<>\"\",INDIRECT(\"'\" & Setup!$AG$8 & \"'!\" & AD140),0) + IF(Setup!$AG$9<>\"\",INDIRECT(\"'\" & Setup!$AG$9 & \"'!\" & AD140),0) + IF(Setup!$AG$10<>\"\",INDIRECT(\"'\" & Setup!$AG$10 & \"'!\" & AD140),0) + IF(Setup!$AG$11<>\"\",INDIRECT(\"'\" & Setup!$AG$11 & \"'!\" & AD140),0) + IF(Setup!$AG$12<>\"\",INDIRECT(\"'\" & Setup!$AG$12 & \"'!\" & AD140),0)","v":0},{"$f":"IF(Setup!$AG$7<>\"\",INDIRECT(\"'\" & Setup!$AG$7 & \"'!\" & AE140),0) + IF(Setup!$AG$8<>\"\",INDIRECT(\"'\" & Setup!$AG$8 & \"'!\" & AE140),0) + IF(Setup!$AG$9<>\"\",INDIRECT(\"'\" & Setup!$AG$9 & \"'!\" & AE140),0) + IF(Setup!$AG$10<>\"\",INDIRECT(\"'\" & Setup!$AG$10 & \"'!\" & AE140),0) + IF(Setup!$AG$11<>\"\",INDIRECT(\"'\" & Setup!$AG$11 & \"'!\" & AE140),0) + IF(Setup!$AG$12<>\"\",INDIRECT(\"'\" & Setup!$AG$12 & \"'!\" & AE140),0)","v":0},{"$f":"IF(Setup!$AH$7<>\"\",INDIRECT(\"'\" & Setup!$AH$7 & \"'!\" & AD140),0) + IF(Setup!$AH$8<>\"\",INDIRECT(\"'\" & Setup!$AH$8 & \"'!\" & AD140),0) + IF(Setup!$AH$9<>\"\",INDIRECT(\"'\" & Setup!$AH$9 & \"'!\" & AD140),0) + IF(Setup!$AH$10<>\"\",INDIRECT(\"'\" & Setup!$AH$10 & \"'!\" & AD140),0) + IF(Setup!$AH$11<>\"\",INDIRECT(\"'\" & Setup!$AH$11 & \"'!\" & AD140),0) + IF(Setup!$AH$12<>\"\",INDIRECT(\"'\" & Setup!$AH$12 & \"'!\" & AD140),0)","v":0},{"$f":"IF(Setup!$AH$7<>\"\",INDIRECT(\"'\" & Setup!$AH$7 & \"'!\" & AE140),0) + IF(Setup!$AH$8<>\"\",INDIRECT(\"'\" & Setup!$AH$8 & \"'!\" & AE140),0) + IF(Setup!$AH$9<>\"\",INDIRECT(\"'\" & Setup!$AH$9 & \"'!\" & AE140),0) + IF(Setup!$AH$10<>\"\",INDIRECT(\"'\" & Setup!$AH$10 & \"'!\" & AE140),0) + IF(Setup!$AH$11<>\"\",INDIRECT(\"'\" & Setup!$AH$11 & \"'!\" & AE140),0) + IF(Setup!$AH$12<>\"\",INDIRECT(\"'\" & Setup!$AH$12 & \"'!\" & AE140),0)","v":0},{"$f":"IF(Setup!$AI$7<>\"\",INDIRECT(\"'\" & Setup!$AI$7 & \"'!\" & AD140),0) + IF(Setup!$AI$8<>\"\",INDIRECT(\"'\" & Setup!$AI$8 & \"'!\" & AD140),0) + IF(Setup!$AI$9<>\"\",INDIRECT(\"'\" & Setup!$AI$9 & \"'!\" & AD140),0) + IF(Setup!$AI$10<>\"\",INDIRECT(\"'\" & Setup!$AI$10 & \"'!\" & AD140),0) + IF(Setup!$AI$11<>\"\",INDIRECT(\"'\" & Setup!$AI$11 & \"'!\" & AD140),0) + IF(Setup!$AI$12<>\"\",INDIRECT(\"'\" & Setup!$AI$12 & \"'!\" & AD140),0)","v":0},{"$f":"IF(Setup!$AI$7<>\"\",INDIRECT(\"'\" & Setup!$AI$7 & \"'!\" & AE140),0) + IF(Setup!$AI$8<>\"\",INDIRECT(\"'\" & Setup!$AI$8 & \"'!\" & AE140),0) + IF(Setup!$AI$9<>\"\",INDIRECT(\"'\" & Setup!$AI$9 & \"'!\" & AE140),0) + IF(Setup!$AI$10<>\"\",INDIRECT(\"'\" & Setup!$AI$10 & \"'!\" & AE140),0) + IF(Setup!$AI$11<>\"\",INDIRECT(\"'\" & Setup!$AI$11 & \"'!\" & AE140),0) + IF(Setup!$AI$12<>\"\",INDIRECT(\"'\" & Setup!$AI$12 & \"'!\" & AE140),0)","v":0},{"$f":"IF(Setup!$AJ$7<>\"\",INDIRECT(\"'\" & Setup!$AJ$7 & \"'!\" & AD140),0) + IF(Setup!$AJ$8<>\"\",INDIRECT(\"'\" & Setup!$AJ$8 & \"'!\" & AD140),0) + IF(Setup!$AJ$9<>\"\",INDIRECT(\"'\" & Setup!$AJ$9 & \"'!\" & AD140),0) + IF(Setup!$AJ$10<>\"\",INDIRECT(\"'\" & Setup!$AJ$10 & \"'!\" & AD140),0) + IF(Setup!$AJ$11<>\"\",INDIRECT(\"'\" & Setup!$AJ$11 & \"'!\" & AD140),0) + IF(Setup!$AJ$12<>\"\",INDIRECT(\"'\" & Setup!$AJ$12 & \"'!\" & AD140),0)","v":0},{"$f":"IF(Setup!$AJ$7<>\"\",INDIRECT(\"'\" & Setup!$AJ$7 & \"'!\" & AE140),0) + IF(Setup!$AJ$8<>\"\",INDIRECT(\"'\" & Setup!$AJ$8 & \"'!\" & AE140),0) + IF(Setup!$AJ$9<>\"\",INDIRECT(\"'\" & Setup!$AJ$9 & \"'!\" & AE140),0) + IF(Setup!$AJ$10<>\"\",INDIRECT(\"'\" & Setup!$AJ$10 & \"'!\" & AE140),0) + IF(Setup!$AJ$11<>\"\",INDIRECT(\"'\" & Setup!$AJ$11 & \"'!\" & AE140),0) + IF(Setup!$AJ$12<>\"\",INDIRECT(\"'\" & Setup!$AJ$12 & \"'!\" & AE140),0)","v":0}]
[{"$f":"Planning!A124","v":"I116"},{"$f":"Planning!B124","v":0},{"$f":"Planning!C124","v":0},{"$f":"Planning!D124","v":0},{"$f":"Planning!E124","v":0},{"$f":"Planning!G124","v":0},null,0,0,{"$f":"IF(AND($AR141=\"2\",$AB140<>Lists!$A$17),AU141,AT141)","v":""},"",0,0,{"$f":"IF(AND($AR141=\"2\",$AB141<>Lists!$A$17),AW141,AV141)","v":""},"",0,0,{"$f":"IF(AND($AR141=\"2\",$AB141<>Lists!$A$17),AY141,AX141)","v":""},"",0,0,{"$f":"IF(AND($AR141=\"2\",$AB141<>Lists!$A$17),BA141,AZ141)","v":""},"",0,0,{"$f":"IF(AND($AR141=\"2\",$AB141<>Lists!$A$17),BC141,BB141)","v":""},"",{"$f":"Planning!H124","v":0},"00","H140","J140","I140","",null,{"$f":"IF(Setup!$AG$7<>\"\",INDIRECT(\"'\" & Setup!$AG$7 & \"'!\" & AF141),0) + IF(Setup!$AG$8<>\"\",INDIRECT(\"'\" & Setup!$AG$8 & \"'!\" & AF141),0) + IF(Setup!$AG$9<>\"\",INDIRECT(\"'\" & Setup!$AG$9 & \"'!\" & AF141),0) + IF(Setup!$AG$10<>\"\",INDIRECT(\"'\" & Setup!$AG$10 & \"'!\" & AF141),0) + IF(Setup!$AG$11<>\"\",INDIRECT(\"'\" & Setup!$AG$11 & \"'!\" & AF141),0) + IF(Setup!$AG$12<>\"\",INDIRECT(\"'\" & Setup!$AG$12 & \"'!\" & AF141),0)","v":0},{"$f":"IF(Setup!$AH$7<>\"\",INDIRECT(\"'\" & Setup!$AH$7 & \"'!\" & AF141),0) + IF(Setup!$AH$8<>\"\",INDIRECT(\"'\" & Setup!$AH$8 & \"'!\" & AF141),0) + IF(Setup!$AH$9<>\"\",INDIRECT(\"'\" & Setup!$AH$9 & \"'!\" & AF141),0) + IF(Setup!$AH$10<>\"\",INDIRECT(\"'\" & Setup!$AH$10 & \"'!\" & AF141),0) + IF(Setup!$AH$11<>\"\",INDIRECT(\"'\" & Setup!$AH$11 & \"'!\" & AF141),0) + IF(Setup!$AH$12<>\"\",INDIRECT(\"'\" & Setup!$AH$12 & \"'!\" & AF141),0)","v":0},{"$f":"IF(Setup!$AI$7<>\"\",INDIRECT(\"'\" & Setup!$AI$7 & \"'!\" & AF141),0) + IF(Setup!$AI$8<>\"\",INDIRECT(\"'\" & Setup!$AI$8 & \"'!\" & AF141),0) + IF(Setup!$AI$9<>\"\",INDIRECT(\"'\" & Setup!$AI$9 & \"'!\" & AF141),0) + IF(Setup!$AI$10<>\"\",INDIRECT(\"'\" & Setup!$AI$10 & \"'!\" & AF141),0) + IF(Setup!$AI$11<>\"\",INDIRECT(\"'\" & Setup!$AI$11 & \"'!\" & AF141),0) + IF(Setup!$AI$12<>\"\",INDIRECT(\"'\" & Setup!$AI$12 & \"'!\" & AF141),0)","v":0},{"$f":"IF(Setup!$AJ$7<>\"\",INDIRECT(\"'\" & Setup!$AJ$7 & \"'!\" & AF141),0) + IF(Setup!$AJ$8<>\"\",INDIRECT(\"'\" & Setup!$AJ$8 & \"'!\" & AF141),0) + IF(Setup!$AJ$9<>\"\",INDIRECT(\"'\" & Setup!$AJ$9 & \"'!\" & AF141),0) + IF(Setup!$AJ$10<>\"\",INDIRECT(\"'\" & Setup!$AJ$10 & \"'!\" & AF141),0) + IF(Setup!$AJ$11<>\"\",INDIRECT(\"'\" & Setup!$AJ$11 & \"'!\" & AF141),0) + IF(Setup!$AJ$12<>\"\",INDIRECT(\"'\" & Setup!$AJ$12 & \"'!\" & AF141),0)","v":0},null,"",{"$nulls":3},{"$f":"IF(C141=0,\"\",LEFT(INDEX(Lists!$H$5:$H$49,MATCH(C141,Lists!$G$5:$G$49,0),1),1))","v":""},null,"","","","","","","","","","",{"$nulls":6},{"$f":"IF(Setup!$AG$7<>\"\",INDIRECT(\"'\" & Setup!$AG$7 & \"'!\" & AD141),0) + IF(Setup!$AG$8<>\"\",INDIRECT(\"'\" & Setup!$AG$8 & \"'!\" & AD141),0) + IF(Setup!$AG$9<>\"\",INDIRECT(\"'\" & Setup!$AG$9 & \"'!\" & AD141),0) + IF(Setup!$AG$10<>\"\",INDIRECT(\"'\" & Setup!$AG$10 & \"'!\" & AD141),0) + IF(Setup!$AG$11<>\"\",INDIRECT(\"'\" & Setup!$AG$11 & \"'!\" & AD141),0) + IF(Setup!$AG$12<>\"\",INDIRECT(\"'\" & Setup!$AG$12 & \"'!\" & AD141),0)","v":0},{"$f":"IF(Setup!$AG$7<>\"\",INDIRECT(\"'\" & Setup!$AG$7 & \"'!\" & AE141),0) + IF(Setup!$AG$8<>\"\",INDIRECT(\"'\" & Setup!$AG$8 & \"'!\" & AE141),0) + IF(Setup!$AG$9<>\"\",INDIRECT(\"'\" & Setup!$AG$9 & \"'!\" & AE141),0) + IF(Setup!$AG$10<>\"\",INDIRECT(\"'\" & Setup!$AG$10 & \"'!\" & AE141),0) + IF(Setup!$AG$11<>\"\",INDIRECT(\"'\" & Setup!$AG$11 & \"'!\" & AE141),0) + IF(Setup!$AG$12<>\"\",INDIRECT(\"'\" & Setup!$AG$12 & \"'!\" & AE141),0)","v":0},{"$f":"IF(Setup!$AH$7<>\"\",INDIRECT(\"'\" & Setup!$AH$7 & \"'!\" & AD141),0) + IF(Setup!$AH$8<>\"\",INDIRECT(\"'\" & Setup!$AH$8 & \"'!\" & AD141),0) + IF(Setup!$AH$9<>\"\",INDIRECT(\"'\" & Setup!$AH$9 & \"'!\" & AD141),0) + IF(Setup!$AH$10<>\"\",INDIRECT(\"'\" & Setup!$AH$10 & \"'!\" & AD141),0) + IF(Setup!$AH$11<>\"\",INDIRECT(\"'\" & Setup!$AH$11 & \"'!\" & AD141),0) + IF(Setup!$AH$12<>\"\",INDIRECT(\"'\" & Setup!$AH$12 & \"'!\" & AD141),0)","v":0},{"$f":"IF(Setup!$AH$7<>\"\",INDIRECT(\"'\" & Setup!$AH$7 & \"'!\" & AE141),0) + IF(Setup!$AH$8<>\"\",INDIRECT(\"'\" & Setup!$AH$8 & \"'!\" & AE141),0) + IF(Setup!$AH$9<>\"\",INDIRECT(\"'\" & Setup!$AH$9 & \"'!\" & AE141),0) + IF(Setup!$AH$10<>\"\",INDIRECT(\"'\" & Setup!$AH$10 & \"'!\" & AE141),0) + IF(Setup!$AH$11<>\"\",INDIRECT(\"'\" & Setup!$AH$11 & \"'!\" & AE141),0) + IF(Setup!$AH$12<>\"\",INDIRECT(\"'\" & Setup!$AH$12 & \"'!\" & AE141),0)","v":0},{"$f":"IF(Setup!$AI$7<>\"\",INDIRECT(\"'\" & Setup!$AI$7 & \"'!\" & AD141),0) + IF(Setup!$AI$8<>\"\",INDIRECT(\"'\" & Setup!$AI$8 & \"'!\" & AD141),0) + IF(Setup!$AI$9<>\"\",INDIRECT(\"'\" & Setup!$AI$9 & \"'!\" & AD141),0) + IF(Setup!$AI$10<>\"\",INDIRECT(\"'\" & Setup!$AI$10 & \"'!\" & AD141),0) + IF(Setup!$AI$11<>\"\",INDIRECT(\"'\" & Setup!$AI$11 & \"'!\" & AD141),0) + IF(Setup!$AI$12<>\"\",INDIRECT(\"'\" & Setup!$AI$12 & \"'!\" & AD141),0)","v":0},{"$f":"IF(Setup!$AI$7<>\"\",INDIRECT(\"'\" & Setup!$AI$7 & \"'!\" & AE141),0) + IF(Setup!$AI$8<>\"\",INDIRECT(\"'\" & Setup!$AI$8 & \"'!\" & AE141),0) + IF(Setup!$AI$9<>\"\",INDIRECT(\"'\" & Setup!$AI$9 & \"'!\" & AE141),0) + IF(Setup!$AI$10<>\"\",INDIRECT(\"'\" & Setup!$AI$10 & \"'!\" & AE141),0) + IF(Setup!$AI$11<>\"\",INDIRECT(\"'\" & Setup!$AI$11 & \"'!\" & AE141),0) + IF(Setup!$AI$12<>\"\",INDIRECT(\"'\" & Setup!$AI$12 & \"'!\" & AE141),0)","v":0},{"$f":"IF(Setup!$AJ$7<>\"\",INDIRECT(\"'\" & Setup!$AJ$7 & \"'!\" & AD141),0) + IF(Setup!$AJ$8<>\"\",INDIRECT(\"'\" & Setup!$AJ$8 & \"'!\" & AD141),0) + IF(Setup!$AJ$9<>\"\",INDIRECT(\"'\" & Setup!$AJ$9 & \"'!\" & AD141),0) + IF(Setup!$AJ$10<>\"\",INDIRECT(\"'\" & Setup!$AJ$10 & \"'!\" & AD141),0) + IF(Setup!$AJ$11<>\"\",INDIRECT(\"'\" & Setup!$AJ$11 & \"'!\" & AD141),0) + IF(Setup!$AJ$12<>\"\",INDIRECT(\"'\" & Setup!$AJ$12 & \"'!\" & AD141),0)","v":0},{"$f":"IF(Setup!$AJ$7<>\"\",INDIRECT(\"'\" & Setup!$AJ$7 & \"'!\" & AE141),0) + IF(Setup!$AJ$8<>\"\",INDIRECT(\"'\" & Setup!$AJ$8 & \"'!\" & AE141),0) + IF(Setup!$AJ$9<>\"\",INDIRECT(\"'\" & Setup!$AJ$9 & \"'!\" & AE141),0) + IF(Setup!$AJ$10<>\"\",INDIRECT(\"'\" & Setup!$AJ$10 & \"'!\" & AE141),0) + IF(Setup!$AJ$11<>\"\",INDIRECT(\"'\" & Setup!$AJ$11 & \"'!\" & AE141),0) + IF(Setup!$AJ$12<>\"\",INDIRECT(\"'\" & Setup!$AJ$12 & \"'!\" & AE141),0)","v":0}]
[{"$f":"Planning!A125","v":"I117"},{"$f":"Planning!B125","v":0},{"$f":"Planning!C125","v":0},{"$f":"Planning!D125","v":0},{"$f":"Planning!E125","v":0},{"$f":"Planning!G125","v":0},null,0,0,{"$f":"IF(AND($AR142=\"2\",$AB141<>Lists!$A$17),AU142,AT142)","v":""},"",0,0,{"$f":"IF(AND($AR142=\"2\",$AB142<>Lists!$A$17),AW142,AV142)","v":""},"",0,0,{"$f":"IF(AND($AR142=\"2\",$AB142<>Lists!$A$17),AY142,AX142)","v":""},"",0,0,{"$f":"IF(AND($AR142=\"2\",$AB142<>Lists!$A$17),BA142,AZ142)","v":""},"",0,0,{"$f":"IF(AND($AR142=\"2\",$AB142<>Lists!$A$17),BC142,BB142)","v":""},"",{"$f":"Planning!H125","v":0},"00","H141","J141","I141","",null,{"$f":"IF(Setup!$AG$7<>\"\",INDIRECT(\"'\" & Setup!$AG$7 & \"'!\" & AF142),0) + IF(Setup!$AG$8<>\"\",INDIRECT(\"'\" & Setup!$AG$8 & \"'!\" & AF142),0) + IF(Setup!$AG$9<>\"\",INDIRECT(\"'\" & Setup!$AG$9 & \"'!\" & AF142),0) + IF(Setup!$AG$10<>\"\",INDIRECT(\"'\" & Setup!$AG$10 & \"'!\" & AF142),0) + IF(Setup!$AG$11<>\"\",INDIRECT(\"'\" & Setup!$AG$11 & \"'!\" & AF142),0) + IF(Setup!$AG$12<>\"\",INDIRECT(\"'\" & Setup!$AG$12 & \"'!\" & AF142),0)","v":0},{"$f":"IF(Setup!$AH$7<>\"\",INDIRECT(\"'\" & Setup!$AH$7 & \"'!\" & AF142),0) + IF(Setup!$AH$8<>\"\",INDIRECT(\"'\" & Setup!$AH$8 & \"'!\" & AF142),0) + IF(Setup!$AH$9<>\"\",INDIRECT(\"'\" & Setup!$AH$9 & \"'!\" & AF142),0) + IF(Setup!$AH$10<>\"\",INDIRECT(\"'\" & Setup!$AH$10 & \"'!\" & AF142),0) + IF(Setup!$AH$11<>\"\",INDIRECT(\"'\" & Setup!$AH$11 & \"'!\" & AF142),0) + IF(Setup!$AH$12<>\"\",INDIRECT(\"'\" & Setup!$AH$12 & \"'!\" & AF142),0)","v":0},{"$f":"IF(Setup!$AI$7<>\"\",INDIRECT(\"'\" & Setup!$AI$7 & \"'!\" & AF142),0) + IF(Setup!$AI$8<>\"\",INDIRECT(\"'\" & Setup!$AI$8 & \"'!\" & AF142),0) + IF(Setup!$AI$9<>\"\",INDIRECT(\"'\" & Setup!$AI$9 & \"'!\" & AF142),0) + IF(Setup!$AI$10<>\"\",INDIRECT(\"'\" & Setup!$AI$10 & \"'!\" & AF142),0) + IF(Setup!$AI$11<>\"\",INDIRECT(\"'\" & Setup!$AI$11 & \"'!\" & AF142),0) + IF(Setup!$AI$12<>\"\",INDIRECT(\"'\" & Setup!$AI$12 & \"'!\" & AF142),0)","v":0},{"$f":"IF(Setup!$AJ$7<>\"\",INDIRECT(\"'\" & Setup!$AJ$7 & \"'!\" & AF142),0) + IF(Setup!$AJ$8<>\"\",INDIRECT(\"'\" & Setup!$AJ$8 & \"'!\" & AF142),0) + IF(Setup!$AJ$9<>\"\",INDIRECT(\"'\" & Setup!$AJ$9 & \"'!\" & AF142),0) + IF(Setup!$AJ$10<>\"\",INDIRECT(\"'\" & Setup!$AJ$10 & \"'!\" & AF142),0) + IF(Setup!$AJ$11<>\"\",INDIRECT(\"'\" & Setup!$AJ$11 & \"'!\" & AF142),0) + IF(Setup!$AJ$12<>\"\",INDIRECT(\"'\" & Setup!$AJ$12 & \"'!\" & AF142),0)","v":0},null,"",{"$nulls":3},{"$f":"IF(C142=0,\"\",LEFT(INDEX(Lists!$H$5:$H$49,MATCH(C142,Lists!$G$5:$G$49,0),1),1))","v":""},null,"","","","","","","","","","",{"$nulls":6},{"$f":"IF(Setup!$AG$7<>\"\",INDIRECT(\"'\" & Setup!$AG$7 & \"'!\" & AD142),0) + IF(Setup!$AG$8<>\"\",INDIRECT(\"'\" & Setup!$AG$8 & \"'!\" & AD142),0) + IF(Setup!$AG$9<>\"\",INDIRECT(\"'\" & Setup!$AG$9 & \"'!\" & AD142),0) + IF(Setup!$AG$10<>\"\",INDIRECT(\"'\" & Setup!$AG$10 & \"'!\" & AD142),0) + IF(Setup!$AG$11<>\"\",INDIRECT(\"'\" & Setup!$AG$11 & \"'!\" & AD142),0) + IF(Setup!$AG$12<>\"\",INDIRECT(\"'\" & Setup!$AG$12 & \"'!\" & AD142),0)","v":0},{"$f":"IF(Setup!$AG$7<>\"\",INDIRECT(\"'\" & Setup!$AG$7 & \"'!\" & AE142),0) + IF(Setup!$AG$8<>\"\",INDIRECT(\"'\" & Setup!$AG$8 & \"'!\" & AE142),0) + IF(Setup!$AG$9<>\"\",INDIRECT(\"'\" & Setup!$AG$9 & \"'!\" & AE142),0) + IF(Setup!$AG$10<>\"\",INDIRECT(\"'\" & Setup!$AG$10 & \"'!\" & AE142),0) + IF(Setup!$AG$11<>\"\",INDIRECT(\"'\" & Setup!$AG$11 & \"'!\" & AE142),0) + IF(Setup!$AG$12<>\"\",INDIRECT(\"'\" & Setup!$AG$12 & \"'!\" & AE142),0)","v":0},{"$f":"IF(Setup!$AH$7<>\"\",INDIRECT(\"'\" & Setup!$AH$7 & \"'!\" & AD142),0) + IF(Setup!$AH$8<>\"\",INDIRECT(\"'\" & Setup!$AH$8 & \"'!\" & AD142),0) + IF(Setup!$AH$9<>\"\",INDIRECT(\"'\" & Setup!$AH$9 & \"'!\" & AD142),0) + IF(Setup!$AH$10<>\"\",INDIRECT(\"'\" & Setup!$AH$10 & \"'!\" & AD142),0) + IF(Setup!$AH$11<>\"\",INDIRECT(\"'\" & Setup!$AH$11 & \"'!\" & AD142),0) + IF(Setup!$AH$12<>\"\",INDIRECT(\"'\" & Setup!$AH$12 & \"'!\" & AD142),0)","v":0},{"$f":"IF(Setup!$AH$7<>\"\",INDIRECT(\"'\" & Setup!$AH$7 & \"'!\" & AE142),0) + IF(Setup!$AH$8<>\"\",INDIRECT(\"'\" & Setup!$AH$8 & \"'!\" & AE142),0) + IF(Setup!$AH$9<>\"\",INDIRECT(\"'\" & Setup!$AH$9 & \"'!\" & AE142),0) + IF(Setup!$AH$10<>\"\",INDIRECT(\"'\" & Setup!$AH$10 & \"'!\" & AE142),0) + IF(Setup!$AH$11<>\"\",INDIRECT(\"'\" & Setup!$AH$11 & \"'!\" & AE142),0) + IF(Setup!$AH$12<>\"\",INDIRECT(\"'\" & Setup!$AH$12 & \"'!\" & AE142),0)","v":0},{"$f":"IF(Setup!$AI$7<>\"\",INDIRECT(\"'\" & Setup!$AI$7 & \"'!\" & AD142),0) + IF(Setup!$AI$8<>\"\",INDIRECT(\"'\" & Setup!$AI$8 & \"'!\" & AD142),0) + IF(Setup!$AI$9<>\"\",INDIRECT(\"'\" & Setup!$AI$9 & \"'!\" & AD142),0) + IF(Setup!$AI$10<>\"\",INDIRECT(\"'\" & Setup!$AI$10 & \"'!\" & AD142),0) + IF(Setup!$AI$11<>\"\",INDIRECT(\"'\" & Setup!$AI$11 & \"'!\" & AD142),0) + IF(Setup!$AI$12<>\"\",INDIRECT(\"'\" & Setup!$AI$12 & \"'!\" & AD142),0)","v":0},{"$f":"IF(Setup!$AI$7<>\"\",INDIRECT(\"'\" & Setup!$AI$7 & \"'!\" & AE142),0) + IF(Setup!$AI$8<>\"\",INDIRECT(\"'\" & Setup!$AI$8 & \"'!\" & AE142),0) + IF(Setup!$AI$9<>\"\",INDIRECT(\"'\" & Setup!$AI$9 & \"'!\" & AE142),0) + IF(Setup!$AI$10<>\"\",INDIRECT(\"'\" & Setup!$AI$10 & \"'!\" & AE142),0) + IF(Setup!$AI$11<>\"\",INDIRECT(\"'\" & Setup!$AI$11 & \"'!\" & AE142),0) + IF(Setup!$AI$12<>\"\",INDIRECT(\"'\" & Setup!$AI$12 & \"'!\" & AE142),0)","v":0},{"$f":"IF(Setup!$AJ$7<>\"\",INDIRECT(\"'\" & Setup!$AJ$7 & \"'!\" & AD142),0) + IF(Setup!$AJ$8<>\"\",INDIRECT(\"'\" & Setup!$AJ$8 & \"'!\" & AD142),0) + IF(Setup!$AJ$9<>\"\",INDIRECT(\"'\" & Setup!$AJ$9 & \"'!\" & AD142),0) + IF(Setup!$AJ$10<>\"\",INDIRECT(\"'\" & Setup!$AJ$10 & \"'!\" & AD142),0) + IF(Setup!$AJ$11<>\"\",INDIRECT(\"'\" & Setup!$AJ$11 & \"'!\" & AD142),0) + IF(Setup!$AJ$12<>\"\",INDIRECT(\"'\" & Setup!$AJ$12 & \"'!\" & AD142),0)","v":0},{"$f":"IF(Setup!$AJ$7<>\"\",INDIRECT(\"'\" & Setup!$AJ$7 & \"'!\" & AE142),0) + IF(Setup!$AJ$8<>\"\",INDIRECT(\"'\" & Setup!$AJ$8 & \"'!\" & AE142),0) + IF(Setup!$AJ$9<>\"\",INDIRECT(\"'\" & Setup!$AJ$9 & \"'!\" & AE142),0) + IF(Setup!$AJ$10<>\"\",INDIRECT(\"'\" & Setup!$AJ$10 & \"'!\" & AE142),0) + IF(Setup!$AJ$11<>\"\",INDIRECT(\"'\" & Setup!$AJ$11 & \"'!\" & AE142),0) + IF(Setup!$AJ$12<>\"\",INDIRECT(\"'\" & Setup!$AJ$12 & \"'!\" & AE142),0)","v":0}]
[{"$f":"Planning!A126","v":"I118"},{"$f":"Planning!B126","v":0},{"$f":"Planning!C126","v":0},{"$f":"Planning!D126","v":0},{"$f":"Planning!E126","v":0},{"$f":"Planning!G126","v":0},null,0,0,{"$f":"IF(AND($AR143=\"2\",$AB142<>Lists!$A$17),AU143,AT143)","v":""},"",0,0,{"$f":"IF(AND($AR143=\"2\",$AB143<>Lists!$A$17),AW143,AV143)","v":""},"",0,0,{"$f":"IF(AND($AR143=\"2\",$AB143<>Lists!$A$17),AY143,AX143)","v":""},"",0,0,{"$f":"IF(AND($AR143=\"2\",$AB143<>Lists!$A$17),BA143,AZ143)","v":""},"",0,0,{"$f":"IF(AND($AR143=\"2\",$AB143<>Lists!$A$17),BC143,BB143)","v":""},"",{"$f":"Planning!H126","v":0},"00","H142","J142","I142","",null,{"$f":"IF(Setup!$AG$7<>\"\",INDIRECT(\"'\" & Setup!$AG$7 & \"'!\" & AF143),0) + IF(Setup!$AG$8<>\"\",INDIRECT(\"'\" & Setup!$AG$8 & \"'!\" & AF143),0) + IF(Setup!$AG$9<>\"\",INDIRECT(\"'\" & Setup!$AG$9 & \"'!\" & AF143),0) + IF(Setup!$AG$10<>\"\",INDIRECT(\"'\" & Setup!$AG$10 & \"'!\" & AF143),0) + IF(Setup!$AG$11<>\"\",INDIRECT(\"'\" & Setup!$AG$11 & \"'!\" & AF143),0) + IF(Setup!$AG$12<>\"\",INDIRECT(\"'\" & Setup!$AG$12 & \"'!\" & AF143),0)","v":0},{"$f":"IF(Setup!$AH$7<>\"\",INDIRECT(\"'\" & Setup!$AH$7 & \"'!\" & AF143),0) + IF(Setup!$AH$8<>\"\",INDIRECT(\"'\" & Setup!$AH$8 & \"'!\" & AF143),0) + IF(Setup!$AH$9<>\"\",INDIRECT(\"'\" & Setup!$AH$9 & \"'!\" & AF143),0) + IF(Setup!$AH$10<>\"\",INDIRECT(\"'\" & Setup!$AH$10 & \"'!\" & AF143),0) + IF(Setup!$AH$11<>\"\",INDIRECT(\"'\" & Setup!$AH$11 & \"'!\" & AF143),0) + IF(Setup!$AH$12<>\"\",INDIRECT(\"'\" & Setup!$AH$12 & \"'!\" & AF143),0)","v":0},{"$f":"IF(Setup!$AI$7<>\"\",INDIRECT(\"'\" & Setup!$AI$7 & \"'!\" & AF143),0) + IF(Setup!$AI$8<>\"\",INDIRECT(\"'\" & Setup!$AI$8 & \"'!\" & AF143),0) + IF(Setup!$AI$9<>\"\",INDIRECT(\"'\" & Setup!$AI$9 & \"'!\" & AF143),0) + IF(Setup!$AI$10<>\"\",INDIRECT(\"'\" & Setup!$AI$10 & \"'!\" & AF143),0) + IF(Setup!$AI$11<>\"\",INDIRECT(\"'\" & Setup!$AI$11 & \"'!\" & AF143),0) + IF(Setup!$AI$12<>\"\",INDIRECT(\"'\" & Setup!$AI$12 & \"'!\" & AF143),0)","v":0},{"$f":"IF(Setup!$AJ$7<>\"\",INDIRECT(\"'\" & Setup!$AJ$7 & \"'!\" & AF143),0) + IF(Setup!$AJ$8<>\"\",INDIRECT(\"'\" & Setup!$AJ$8 & \"'!\" & AF143),0) + IF(Setup!$AJ$9<>\"\",INDIRECT(\"'\" & Setup!$AJ$9 & \"'!\" & AF143),0) + IF(Setup!$AJ$10<>\"\",INDIRECT(\"'\" & Setup!$AJ$10 & \"'!\" & AF143),0) + IF(Setup!$AJ$11<>\"\",INDIRECT(\"'\" & Setup!$AJ$11 & \"'!\" & AF143),0) + IF(Setup!$AJ$12<>\"\",INDIRECT(\"'\" & Setup!$AJ$12 & \"'!\" & AF143),0)","v":0},null,"",{"$nulls":3},{"$f":"IF(C143=0,\"\",LEFT(INDEX(Lists!$H$5:$H$49,MATCH(C143,Lists!$G$5:$G$49,0),1),1))","v":""},null,"","","","","","","","","","",{"$nulls":6},{"$f":"IF(Setup!$AG$7<>\"\",INDIRECT(\"'\" & Setup!$AG$7 & \"'!\" & AD143),0) + IF(Setup!$AG$8<>\"\",INDIRECT(\"'\" & Setup!$AG$8 & \"'!\" & AD143),0) + IF(Setup!$AG$9<>\"\",INDIRECT(\"'\" & Setup!$AG$9 & \"'!\" & AD143),0) + IF(Setup!$AG$10<>\"\",INDIRECT(\"'\" & Setup!$AG$10 & \"'!\" & AD143),0) + IF(Setup!$AG$11<>\"\",INDIRECT(\"'\" & Setup!$AG$11 & \"'!\" & AD143),0) + IF(Setup!$AG$12<>\"\",INDIRECT(\"'\" & Setup!$AG$12 & \"'!\" & AD143),0)","v":0},{"$f":"IF(Setup!$AG$7<>\"\",INDIRECT(\"'\" & Setup!$AG$7 & \"'!\" & AE143),0) + IF(Setup!$AG$8<>\"\",INDIRECT(\"'\" & Setup!$AG$8 & \"'!\" & AE143),0) + IF(Setup!$AG$9<>\"\",INDIRECT(\"'\" & Setup!$AG$9 & \"'!\" & AE143),0) + IF(Setup!$AG$10<>\"\",INDIRECT(\"'\" & Setup!$AG$10 & \"'!\" & AE143),0) + IF(Setup!$AG$11<>\"\",INDIRECT(\"'\" & Setup!$AG$11 & \"'!\" & AE143),0) + IF(Setup!$AG$12<>\"\",INDIRECT(\"'\" & Setup!$AG$12 & \"'!\" & AE143),0)","v":0},{"$f":"IF(Setup!$AH$7<>\"\",INDIRECT(\"'\" & Setup!$AH$7 & \"'!\" & AD143),0) + IF(Setup!$AH$8<>\"\",INDIRECT(\"'\" & Setup!$AH$8 & \"'!\" & AD143),0) + IF(Setup!$AH$9<>\"\",INDIRECT(\"'\" & Setup!$AH$9 & \"'!\" & AD143),0) + IF(Setup!$AH$10<>\"\",INDIRECT(\"'\" & Setup!$AH$10 & \"'!\" & AD143),0) + IF(Setup!$AH$11<>\"\",INDIRECT(\"'\" & Setup!$AH$11 & \"'!\" & AD143),0) + IF(Setup!$AH$12<>\"\",INDIRECT(\"'\" & Setup!$AH$12 & \"'!\" & AD143),0)","v":0},{"$f":"IF(Setup!$AH$7<>\"\",INDIRECT(\"'\" & Setup!$AH$7 & \"'!\" & AE143),0) + IF(Setup!$AH$8<>\"\",INDIRECT(\"'\" & Setup!$AH$8 & \"'!\" & AE143),0) + IF(Setup!$AH$9<>\"\",INDIRECT(\"'\" & Setup!$AH$9 & \"'!\" & AE143),0) + IF(Setup!$AH$10<>\"\",INDIRECT(\"'\" & Setup!$AH$10 & \"'!\" & AE143),0) + IF(Setup!$AH$11<>\"\",INDIRECT(\"'\" & Setup!$AH$11 & \"'!\" & AE143),0) + IF(Setup!$AH$12<>\"\",INDIRECT(\"'\" & Setup!$AH$12 & \"'!\" & AE143),0)","v":0},{"$f":"IF(Setup!$AI$7<>\"\",INDIRECT(\"'\" & Setup!$AI$7 & \"'!\" & AD143),0) + IF(Setup!$AI$8<>\"\",INDIRECT(\"'\" & Setup!$AI$8 & \"'!\" & AD143),0) + IF(Setup!$AI$9<>\"\",INDIRECT(\"'\" & Setup!$AI$9 & \"'!\" & AD143),0) + IF(Setup!$AI$10<>\"\",INDIRECT(\"'\" & Setup!$AI$10 & \"'!\" & AD143),0) + IF(Setup!$AI$11<>\"\",INDIRECT(\"'\" & Setup!$AI$11 & \"'!\" & AD143),0) + IF(Setup!$AI$12<>\"\",INDIRECT(\"'\" & Setup!$AI$12 & \"'!\" & AD143),0)","v":0},{"$f":"IF(Setup!$AI$7<>\"\",INDIRECT(\"'\" & Setup!$AI$7 & \"'!\" & AE143),0) + IF(Setup!$AI$8<>\"\",INDIRECT(\"'\" & Setup!$AI$8 & \"'!\" & AE143),0) + IF(Setup!$AI$9<>\"\",INDIRECT(\"'\" & Setup!$AI$9 & \"'!\" & AE143),0) + IF(Setup!$AI$10<>\"\",INDIRECT(\"'\" & Setup!$AI$10 & \"'!\" & AE143),0) + IF(Setup!$AI$11<>\"\",INDIRECT(\"'\" & Setup!$AI$11 & \"'!\" & AE143),0) + IF(Setup!$AI$12<>\"\",INDIRECT(\"'\" & Setup!$AI$12 & \"'!\" & AE143),0)","v":0},{"$f":"IF(Setup!$AJ$7<>\"\",INDIRECT(\"'\" & Setup!$AJ$7 & \"'!\" & AD143),0) + IF(Setup!$AJ$8<>\"\",INDIRECT(\"'\" & Setup!$AJ$8 & \"'!\" & AD143),0) + IF(Setup!$AJ$9<>\"\",INDIRECT(\"'\" & Setup!$AJ$9 & \"'!\" & AD143),0) + IF(Setup!$AJ$10<>\"\",INDIRECT(\"'\" & Setup!$AJ$10 & \"'!\" & AD143),0) + IF(Setup!$AJ$11<>\"\",INDIRECT(\"'\" & Setup!$AJ$11 & \"'!\" & AD143),0) + IF(Setup!$AJ$12<>\"\",INDIRECT(\"'\" & Setup!$AJ$12 & \"'!\" & AD143),0)","v":0},{"$f":"IF(Setup!$AJ$7<>\"\",INDIRECT(\"'\" & Setup!$AJ$7 & \"'!\" & AE143),0) + IF(Setup!$AJ$8<>\"\",INDIRECT(\"'\" & Setup!$AJ$8 & \"'!\" & AE143),0) + IF(Setup!$AJ$9<>\"\",INDIRECT(\"'\" & Setup!$AJ$9 & \"'!\" & AE143),0) + IF(Setup!$AJ$10<>\"\",INDIRECT(\"'\" & Setup!$AJ$10 & \"'!\" & AE143),0) + IF(Setup!$AJ$11<>\"\",INDIRECT(\"'\" & Setup!$AJ$11 & \"'!\" & AE143),0) + IF(Setup!$AJ$12<>\"\",INDIRECT(\"'\" & Setup!$AJ$12 & \"'!\" & AE143),0)","v":0}]
[{"$f":"Planning!A127","v":"I119"},{"$f":"Planning!B127","v":0},{"$f":"Planning!C127","v":0},{"$f":"Planning!D127","v":0},{"$f":"Planning!E127","v":0},{"$f":"Planning!G127","v":0},null,0,0,{"$f":"IF(AND($AR144=\"2\",$AB143<>Lists!$A$17),AU144,AT144)","v":""},"",0,0,{"$f":"IF(AND($AR144=\"2\",$AB144<>Lists!$A$17),AW144,AV144)","v":""},"",0,0,{"$f":"IF(AND($AR144=\"2\",$AB144<>Lists!$A$17),AY144,AX144)","v":""},"",0,0,{"$f":"IF(AND($AR144=\"2\",$AB144<>Lists!$A$17),BA144,AZ144)","v":""},"",0,0,{"$f":"IF(AND($AR144=\"2\",$AB144<>Lists!$A$17),BC144,BB144)","v":""},"",{"$f":"Planning!H127","v":0},"00","H143","J143","I143","",null,{"$f":"IF(Setup!$AG$7<>\"\",INDIRECT(\"'\" & Setup!$AG$7 & \"'!\" & AF144),0) + IF(Setup!$AG$8<>\"\",INDIRECT(\"'\" & Setup!$AG$8 & \"'!\" & AF144),0) + IF(Setup!$AG$9<>\"\",INDIRECT(\"'\" & Setup!$AG$9 & \"'!\" & AF144),0) + IF(Setup!$AG$10<>\"\",INDIRECT(\"'\" & Setup!$AG$10 & \"'!\" & AF144),0) + IF(Setup!$AG$11<>\"\",INDIRECT(\"'\" & Setup!$AG$11 & \"'!\" & AF144),0) + IF(Setup!$AG$12<>\"\",INDIRECT(\"'\" & Setup!$AG$12 & \"'!\" & AF144),0)","v":0},{"$f":"IF(Setup!$AH$7<>\"\",INDIRECT(\"'\" & Setup!$AH$7 & \"'!\" & AF144),0) + IF(Setup!$AH$8<>\"\",INDIRECT(\"'\" & Setup!$AH$8 & \"'!\" & AF144),0) + IF(Setup!$AH$9<>\"\",INDIRECT(\"'\" & Setup!$AH$9 & \"'!\" & AF144),0) + IF(Setup!$AH$10<>\"\",INDIRECT(\"'\" & Setup!$AH$10 & \"'!\" & AF144),0) + IF(Setup!$AH$11<>\"\",INDIRECT(\"'\" & Setup!$AH$11 & \"'!\" & AF144),0) + IF(Setup!$AH$12<>\"\",INDIRECT(\"'\" & Setup!$AH$12 & \"'!\" & AF144),0)","v":0},{"$f":"IF(Setup!$AI$7<>\"\",INDIRECT(\"'\" & Setup!$AI$7 & \"'!\" & AF144),0) + IF(Setup!$AI$8<>\"\",INDIRECT(\"'\" & Setup!$AI$8 & \"'!\" & AF144),0) + IF(Setup!$AI$9<>\"\",INDIRECT(\"'\" & Setup!$AI$9 & \"'!\" & AF144),0) + IF(Setup!$AI$10<>\"\",INDIRECT(\"'\" & Setup!$AI$10 & \"'!\" & AF144),0) + IF(Setup!$AI$11<>\"\",INDIRECT(\"'\" & Setup!$AI$11 & \"'!\" & AF144),0) + IF(Setup!$AI$12<>\"\",INDIRECT(\"'\" & Setup!$AI$12 & \"'!\" & AF144),0)","v":0},{"$f":"IF(Setup!$AJ$7<>\"\",INDIRECT(\"'\" & Setup!$AJ$7 & \"'!\" & AF144),0) + IF(Setup!$AJ$8<>\"\",INDIRECT(\"'\" & Setup!$AJ$8 & \"'!\" & AF144),0) + IF(Setup!$AJ$9<>\"\",INDIRECT(\"'\" & Setup!$AJ$9 & \"'!\" & AF144),0) + IF(Setup!$AJ$10<>\"\",INDIRECT(\"'\" & Setup!$AJ$10 & \"'!\" & AF144),0) + IF(Setup!$AJ$11<>\"\",INDIRECT(\"'\" & Setup!$AJ$11 & \"'!\" & AF144),0) + IF(Setup!$AJ$12<>\"\",INDIRECT(\"'\" & Setup!$AJ$12 & \"'!\" & AF144),0)","v":0},null,"",{"$nulls":3},{"$f":"IF(C144=0,\"\",LEFT(INDEX(Lists!$H$5:$H$49,MATCH(C144,Lists!$G$5:$G$49,0),1),1))","v":""},null,"","","","","","","","","","",{"$nulls":6},{"$f":"IF(Setup!$AG$7<>\"\",INDIRECT(\"'\" & Setup!$AG$7 & \"'!\" & AD144),0) + IF(Setup!$AG$8<>\"\",INDIRECT(\"'\" & Setup!$AG$8 & \"'!\" & AD144),0) + IF(Setup!$AG$9<>\"\",INDIRECT(\"'\" & Setup!$AG$9 & \"'!\" & AD144),0) + IF(Setup!$AG$10<>\"\",INDIRECT(\"'\" & Setup!$AG$10 & \"'!\" & AD144),0) + IF(Setup!$AG$11<>\"\",INDIRECT(\"'\" & Setup!$AG$11 & \"'!\" & AD144),0) + IF(Setup!$AG$12<>\"\",INDIRECT(\"'\" & Setup!$AG$12 & \"'!\" & AD144),0)","v":0},{"$f":"IF(Setup!$AG$7<>\"\",INDIRECT(\"'\" & Setup!$AG$7 & \"'!\" & AE144),0) + IF(Setup!$AG$8<>\"\",INDIRECT(\"'\" & Setup!$AG$8 & \"'!\" & AE144),0) + IF(Setup!$AG$9<>\"\",INDIRECT(\"'\" & Setup!$AG$9 & \"'!\" & AE144),0) + IF(Setup!$AG$10<>\"\",INDIRECT(\"'\" & Setup!$AG$10 & \"'!\" & AE144),0) + IF(Setup!$AG$11<>\"\",INDIRECT(\"'\" & Setup!$AG$11 & \"'!\" & AE144),0) + IF(Setup!$AG$12<>\"\",INDIRECT(\"'\" & Setup!$AG$12 & \"'!\" & AE144),0)","v":0},{"$f":"IF(Setup!$AH$7<>\"\",INDIRECT(\"'\" & Setup!$AH$7 & \"'!\" & AD144),0) + IF(Setup!$AH$8<>\"\",INDIRECT(\"'\" & Setup!$AH$8 & \"'!\" & AD144),0) + IF(Setup!$AH$9<>\"\",INDIRECT(\"'\" & Setup!$AH$9 & \"'!\" & AD144),0) + IF(Setup!$AH$10<>\"\",INDIRECT(\"'\" & Setup!$AH$10 & \"'!\" & AD144),0) + IF(Setup!$AH$11<>\"\",INDIRECT(\"'\" & Setup!$AH$11 & \"'!\" & AD144),0) + IF(Setup!$AH$12<>\"\",INDIRECT(\"'\" & Setup!$AH$12 & \"'!\" & AD144),0)","v":0},{"$f":"IF(Setup!$AH$7<>\"\",INDIRECT(\"'\" & Setup!$AH$7 & \"'!\" & AE144),0) + IF(Setup!$AH$8<>\"\",INDIRECT(\"'\" & Setup!$AH$8 & \"'!\" & AE144),0) + IF(Setup!$AH$9<>\"\",INDIRECT(\"'\" & Setup!$AH$9 & \"'!\" & AE144),0) + IF(Setup!$AH$10<>\"\",INDIRECT(\"'\" & Setup!$AH$10 & \"'!\" & AE144),0) + IF(Setup!$AH$11<>\"\",INDIRECT(\"'\" & Setup!$AH$11 & \"'!\" & AE144),0) + IF(Setup!$AH$12<>\"\",INDIRECT(\"'\" & Setup!$AH$12 & \"'!\" & AE144),0)","v":0},{"$f":"IF(Setup!$AI$7<>\"\",INDIRECT(\"'\" & Setup!$AI$7 & \"'!\" & AD144),0) + IF(Setup!$AI$8<>\"\",INDIRECT(\"'\" & Setup!$AI$8 & \"'!\" & AD144),0) + IF(Setup!$AI$9<>\"\",INDIRECT(\"'\" & Setup!$AI$9 & \"'!\" & AD144),0) + IF(Setup!$AI$10<>\"\",INDIRECT(\"'\" & Setup!$AI$10 & \"'!\" & AD144),0) + IF(Setup!$AI$11<>\"\",INDIRECT(\"'\" & Setup!$AI$11 & \"'!\" & AD144),0) + IF(Setup!$AI$12<>\"\",INDIRECT(\"'\" & Setup!$AI$12 & \"'!\" & AD144),0)","v":0},{"$f":"IF(Setup!$AI$7<>\"\",INDIRECT(\"'\" & Setup!$AI$7 & \"'!\" & AE144),0) + IF(Setup!$AI$8<>\"\",INDIRECT(\"'\" & Setup!$AI$8 & \"'!\" & AE144),0) + IF(Setup!$AI$9<>\"\",INDIRECT(\"'\" & Setup!$AI$9 & \"'!\" & AE144),0) + IF(Setup!$AI$10<>\"\",INDIRECT(\"'\" & Setup!$AI$10 & \"'!\" & AE144),0) + IF(Setup!$AI$11<>\"\",INDIRECT(\"'\" & Setup!$AI$11 & \"'!\" & AE144),0) + IF(Setup!$AI$12<>\"\",INDIRECT(\"'\" & Setup!$AI$12 & \"'!\" & AE144),0)","v":0},{"$f":"IF(Setup!$AJ$7<>\"\",INDIRECT(\"'\" & Setup!$AJ$7 & \"'!\" & AD144),0) + IF(Setup!$AJ$8<>\"\",INDIRECT(\"'\" & Setup!$AJ$8 & \"'!\" & AD144),0) + IF(Setup!$AJ$9<>\"\",INDIRECT(\"'\" & Setup!$AJ$9 & \"'!\" & AD144),0) + IF(Setup!$AJ$10<>\"\",INDIRECT(\"'\" & Setup!$AJ$10 & \"'!\" & AD144),0) + IF(Setup!$AJ$11<>\"\",INDIRECT(\"'\" & Setup!$AJ$11 & \"'!\" & AD144),0) + IF(Setup!$AJ$12<>\"\",INDIRECT(\"'\" & Setup!$AJ$12 & \"'!\" & AD144),0)","v":0},{"$f":"IF(Setup!$AJ$7<>\"\",INDIRECT(\"'\" & Setup!$AJ$7 & \"'!\" & AE144),0) + IF(Setup!$AJ$8<>\"\",INDIRECT(\"'\" & Setup!$AJ$8 & \"'!\" & AE144),0) + IF(Setup!$AJ$9<>\"\",INDIRECT(\"'\" & Setup!$AJ$9 & \"'!\" & AE144),0) + IF(Setup!$AJ$10<>\"\",INDIRECT(\"'\" & Setup!$AJ$10 & \"'!\" & AE144),0) + IF(Setup!$AJ$11<>\"\",INDIRECT(\"'\" & Setup!$AJ$11 & \"'!\" & AE144),0) + IF(Setup!$AJ$12<>\"\",INDIRECT(\"'\" & Setup!$AJ$12 & \"'!\" & AE144),0)","v":0}]
[{"$f":"Planning!A128","v":"I120"},{"$f":"Planning!B128","v":0},{"$f":"Planning!C128","v":0},{"$f":"Planning!D128","v":0},{"$f":"Planning!E128","v":0},{"$f":"Planning!G128","v":0},null,0,0,{"$f":"IF(AND($AR145=\"2\",$AB144<>Lists!$A$17),AU145,AT145)","v":""},"",0,0,{"$f":"IF(AND($AR145=\"2\",$AB145<>Lists!$A$17),AW145,AV145)","v":""},"",0,0,{"$f":"IF(AND($AR145=\"2\",$AB145<>Lists!$A$17),AY145,AX145)","v":""},"",0,0,{"$f":"IF(AND($AR145=\"2\",$AB145<>Lists!$A$17),BA145,AZ145)","v":""},"",0,0,{"$f":"IF(AND($AR145=\"2\",$AB145<>Lists!$A$17),BC145,BB145)","v":""},"",{"$f":"Planning!H128","v":0},"00","H144","J144","I144","",null,{"$f":"IF(Setup!$AG$7<>\"\",INDIRECT(\"'\" & Setup!$AG$7 & \"'!\" & AF145),0) + IF(Setup!$AG$8<>\"\",INDIRECT(\"'\" & Setup!$AG$8 & \"'!\" & AF145),0) + IF(Setup!$AG$9<>\"\",INDIRECT(\"'\" & Setup!$AG$9 & \"'!\" & AF145),0) + IF(Setup!$AG$10<>\"\",INDIRECT(\"'\" & Setup!$AG$10 & \"'!\" & AF145),0) + IF(Setup!$AG$11<>\"\",INDIRECT(\"'\" & Setup!$AG$11 & \"'!\" & AF145),0) + IF(Setup!$AG$12<>\"\",INDIRECT(\"'\" & Setup!$AG$12 & \"'!\" & AF145),0)","v":0},{"$f":"IF(Setup!$AH$7<>\"\",INDIRECT(\"'\" & Setup!$AH$7 & \"'!\" & AF145),0) + IF(Setup!$AH$8<>\"\",INDIRECT(\"'\" & Setup!$AH$8 & \"'!\" & AF145),0) + IF(Setup!$AH$9<>\"\",INDIRECT(\"'\" & Setup!$AH$9 & \"'!\" & AF145),0) + IF(Setup!$AH$10<>\"\",INDIRECT(\"'\" & Setup!$AH$10 & \"'!\" & AF145),0) + IF(Setup!$AH$11<>\"\",INDIRECT(\"'\" & Setup!$AH$11 & \"'!\" & AF145),0) + IF(Setup!$AH$12<>\"\",INDIRECT(\"'\" & Setup!$AH$12 & \"'!\" & AF145),0)","v":0},{"$f":"IF(Setup!$AI$7<>\"\",INDIRECT(\"'\" & Setup!$AI$7 & \"'!\" & AF145),0) + IF(Setup!$AI$8<>\"\",INDIRECT(\"'\" & Setup!$AI$8 & \"'!\" & AF145),0) + IF(Setup!$AI$9<>\"\",INDIRECT(\"'\" & Setup!$AI$9 & \"'!\" & AF145),0) + IF(Setup!$AI$10<>\"\",INDIRECT(\"'\" & Setup!$AI$10 & \"'!\" & AF145),0) + IF(Setup!$AI$11<>\"\",INDIRECT(\"'\" & Setup!$AI$11 & \"'!\" & AF145),0) + IF(Setup!$AI$12<>\"\",INDIRECT(\"'\" & Setup!$AI$12 & \"'!\" & AF145),0)","v":0},{"$f":"IF(Setup!$AJ$7<>\"\",INDIRECT(\"'\" & Setup!$AJ$7 & \"'!\" & AF145),0) + IF(Setup!$AJ$8<>\"\",INDIRECT(\"'\" & Setup!$AJ$8 & \"'!\" & AF145),0) + IF(Setup!$AJ$9<>\"\",INDIRECT(\"'\" & Setup!$AJ$9 & \"'!\" & AF145),0) + IF(Setup!$AJ$10<>\"\",INDIRECT(\"'\" & Setup!$AJ$10 & \"'!\" & AF145),0) + IF(Setup!$AJ$11<>\"\",INDIRECT(\"'\" & Setup!$AJ$11 & \"'!\" & AF145),0) + IF(Setup!$AJ$12<>\"\",INDIRECT(\"'\" & Setup!$AJ$12 & \"'!\" & AF145),0)","v":0},null,"",{"$nulls":3},{"$f":"IF(C145=0,\"\",LEFT(INDEX(Lists!$H$5:$H$49,MATCH(C145,Lists!$G$5:$G$49,0),1),1))","v":""},null,"","","","","","","","","","",{"$nulls":6},{"$f":"IF(Setup!$AG$7<>\"\",INDIRECT(\"'\" & Setup!$AG$7 & \"'!\" & AD145),0) + IF(Setup!$AG$8<>\"\",INDIRECT(\"'\" & Setup!$AG$8 & \"'!\" & AD145),0) + IF(Setup!$AG$9<>\"\",INDIRECT(\"'\" & Setup!$AG$9 & \"'!\" & AD145),0) + IF(Setup!$AG$10<>\"\",INDIRECT(\"'\" & Setup!$AG$10 & \"'!\" & AD145),0) + IF(Setup!$AG$11<>\"\",INDIRECT(\"'\" & Setup!$AG$11 & \"'!\" & AD145),0) + IF(Setup!$AG$12<>\"\",INDIRECT(\"'\" & Setup!$AG$12 & \"'!\" & AD145),0)","v":0},{"$f":"IF(Setup!$AG$7<>\"\",INDIRECT(\"'\" & Setup!$AG$7 & \"'!\" & AE145),0) + IF(Setup!$AG$8<>\"\",INDIRECT(\"'\" & Setup!$AG$8 & \"'!\" & AE145),0) + IF(Setup!$AG$9<>\"\",INDIRECT(\"'\" & Setup!$AG$9 & \"'!\" & AE145),0) + IF(Setup!$AG$10<>\"\",INDIRECT(\"'\" & Setup!$AG$10 & \"'!\" & AE145),0) + IF(Setup!$AG$11<>\"\",INDIRECT(\"'\" & Setup!$AG$11 & \"'!\" & AE145),0) + IF(Setup!$AG$12<>\"\",INDIRECT(\"'\" & Setup!$AG$12 & \"'!\" & AE145),0)","v":0},{"$f":"IF(Setup!$AH$7<>\"\",INDIRECT(\"'\" & Setup!$AH$7 & \"'!\" & AD145),0) + IF(Setup!$AH$8<>\"\",INDIRECT(\"'\" & Setup!$AH$8 & \"'!\" & AD145),0) + IF(Setup!$AH$9<>\"\",INDIRECT(\"'\" & Setup!$AH$9 & \"'!\" & AD145),0) + IF(Setup!$AH$10<>\"\",INDIRECT(\"'\" & Setup!$AH$10 & \"'!\" & AD145),0) + IF(Setup!$AH$11<>\"\",INDIRECT(\"'\" & Setup!$AH$11 & \"'!\" & AD145),0) + IF(Setup!$AH$12<>\"\",INDIRECT(\"'\" & Setup!$AH$12 & \"'!\" & AD145),0)","v":0},{"$f":"IF(Setup!$AH$7<>\"\",INDIRECT(\"'\" & Setup!$AH$7 & \"'!\" & AE145),0) + IF(Setup!$AH$8<>\"\",INDIRECT(\"'\" & Setup!$AH$8 & \"'!\" & AE145),0) + IF(Setup!$AH$9<>\"\",INDIRECT(\"'\" & Setup!$AH$9 & \"'!\" & AE145),0) + IF(Setup!$AH$10<>\"\",INDIRECT(\"'\" & Setup!$AH$10 & \"'!\" & AE145),0) + IF(Setup!$AH$11<>\"\",INDIRECT(\"'\" & Setup!$AH$11 & \"'!\" & AE145),0) + IF(Setup!$AH$12<>\"\",INDIRECT(\"'\" & Setup!$AH$12 & \"'!\" & AE145),0)","v":0},{"$f":"IF(Setup!$AI$7<>\"\",INDIRECT(\"'\" & Setup!$AI$7 & \"'!\" & AD145),0) + IF(Setup!$AI$8<>\"\",INDIRECT(\"'\" & Setup!$AI$8 & \"'!\" & AD145),0) + IF(Setup!$AI$9<>\"\",INDIRECT(\"'\" & Setup!$AI$9 & \"'!\" & AD145),0) + IF(Setup!$AI$10<>\"\",INDIRECT(\"'\" & Setup!$AI$10 & \"'!\" & AD145),0) + IF(Setup!$AI$11<>\"\",INDIRECT(\"'\" & Setup!$AI$11 & \"'!\" & AD145),0) + IF(Setup!$AI$12<>\"\",INDIRECT(\"'\" & Setup!$AI$12 & \"'!\" & AD145),0)","v":0},{"$f":"IF(Setup!$AI$7<>\"\",INDIRECT(\"'\" & Setup!$AI$7 & \"'!\" & AE145),0) + IF(Setup!$AI$8<>\"\",INDIRECT(\"'\" & Setup!$AI$8 & \"'!\" & AE145),0) + IF(Setup!$AI$9<>\"\",INDIRECT(\"'\" & Setup!$AI$9 & \"'!\" & AE145),0) + IF(Setup!$AI$10<>\"\",INDIRECT(\"'\" & Setup!$AI$10 & \"'!\" & AE145),0) + IF(Setup!$AI$11<>\"\",INDIRECT(\"'\" & Setup!$AI$11 & \"'!\" & AE145),0) + IF(Setup!$AI$12<>\"\",INDIRECT(\"'\" & Setup!$AI$12 & \"'!\" & AE145),0)","v":0},{"$f":"IF(Setup!$AJ$7<>\"\",INDIRECT(\"'\" & Setup!$AJ$7 & \"'!\" & AD145),0) + IF(Setup!$AJ$8<>\"\",INDIRECT(\"'\" & Setup!$AJ$8 & \"'!\" & AD145),0) + IF(Setup!$AJ$9<>\"\",INDIRECT(\"'\" & Setup!$AJ$9 & \"'!\" & AD145),0) + IF(Setup!$AJ$10<>\"\",INDIRECT(\"'\" & Setup!$AJ$10 & \"'!\" & AD145),0) + IF(Setup!$AJ$11<>\"\",INDIRECT(\"'\" & Setup!$AJ$11 & \"'!\" & AD145),0) + IF(Setup!$AJ$12<>\"\",INDIRECT(\"'\" & Setup!$AJ$12 & \"'!\" & AD145),0)","v":0},{"$f":"IF(Setup!$AJ$7<>\"\",INDIRECT(\"'\" & Setup!$AJ$7 & \"'!\" & AE145),0) + IF(Setup!$AJ$8<>\"\",INDIRECT(\"'\" & Setup!$AJ$8 & \"'!\" & AE145),0) + IF(Setup!$AJ$9<>\"\",INDIRECT(\"'\" & Setup!$AJ$9 & \"'!\" & AE145),0) + IF(Setup!$AJ$10<>\"\",INDIRECT(\"'\" & Setup!$AJ$10 & \"'!\" & AE145),0) + IF(Setup!$AJ$11<>\"\",INDIRECT(\"'\" & Setup!$AJ$11 & \"'!\" & AE145),0) + IF(Setup!$AJ$12<>\"\",INDIRECT(\"'\" & Setup!$AJ$12 & \"'!\" & AE145),0)","v":0}]
[{"$f":"Planning!A129","v":"I121"},{"$f":"Planning!B129","v":0},{"$f":"Planning!C129","v":0},{"$f":"Planning!D129","v":0},{"$f":"Planning!E129","v":0},{"$f":"Planning!G129","v":0},null,0,0,{"$f":"IF(AND($AR146=\"2\",$AB145<>Lists!$A$17),AU146,AT146)","v":""},"",0,0,{"$f":"IF(AND($AR146=\"2\",$AB146<>Lists!$A$17),AW146,AV146)","v":""},"",0,0,{"$f":"IF(AND($AR146=\"2\",$AB146<>Lists!$A$17),AY146,AX146)","v":""},"",0,0,{"$f":"IF(AND($AR146=\"2\",$AB146<>Lists!$A$17),BA146,AZ146)","v":""},"",0,0,{"$f":"IF(AND($AR146=\"2\",$AB146<>Lists!$A$17),BC146,BB146)","v":""},"",{"$f":"Planning!H129","v":0},"00","H145","J145","I145","",null,{"$f":"IF(Setup!$AG$7<>\"\",INDIRECT(\"'\" & Setup!$AG$7 & \"'!\" & AF146),0) + IF(Setup!$AG$8<>\"\",INDIRECT(\"'\" & Setup!$AG$8 & \"'!\" & AF146),0) + IF(Setup!$AG$9<>\"\",INDIRECT(\"'\" & Setup!$AG$9 & \"'!\" & AF146),0) + IF(Setup!$AG$10<>\"\",INDIRECT(\"'\" & Setup!$AG$10 & \"'!\" & AF146),0) + IF(Setup!$AG$11<>\"\",INDIRECT(\"'\" & Setup!$AG$11 & \"'!\" & AF146),0) + IF(Setup!$AG$12<>\"\",INDIRECT(\"'\" & Setup!$AG$12 & \"'!\" & AF146),0)","v":0},{"$f":"IF(Setup!$AH$7<>\"\",INDIRECT(\"'\" & Setup!$AH$7 & \"'!\" & AF146),0) + IF(Setup!$AH$8<>\"\",INDIRECT(\"'\" & Setup!$AH$8 & \"'!\" & AF146),0) + IF(Setup!$AH$9<>\"\",INDIRECT(\"'\" & Setup!$AH$9 & \"'!\" & AF146),0) + IF(Setup!$AH$10<>\"\",INDIRECT(\"'\" & Setup!$AH$10 & \"'!\" & AF146),0) + IF(Setup!$AH$11<>\"\",INDIRECT(\"'\" & Setup!$AH$11 & \"'!\" & AF146),0) + IF(Setup!$AH$12<>\"\",INDIRECT(\"'\" & Setup!$AH$12 & \"'!\" & AF146),0)","v":0},{"$f":"IF(Setup!$AI$7<>\"\",INDIRECT(\"'\" & Setup!$AI$7 & \"'!\" & AF146),0) + IF(Setup!$AI$8<>\"\",INDIRECT(\"'\" & Setup!$AI$8 & \"'!\" & AF146),0) + IF(Setup!$AI$9<>\"\",INDIRECT(\"'\" & Setup!$AI$9 & \"'!\" & AF146),0) + IF(Setup!$AI$10<>\"\",INDIRECT(\"'\" & Setup!$AI$10 & \"'!\" & AF146),0) + IF(Setup!$AI$11<>\"\",INDIRECT(\"'\" & Setup!$AI$11 & \"'!\" & AF146),0) + IF(Setup!$AI$12<>\"\",INDIRECT(\"'\" & Setup!$AI$12 & \"'!\" & AF146),0)","v":0},{"$f":"IF(Setup!$AJ$7<>\"\",INDIRECT(\"'\" & Setup!$AJ$7 & \"'!\" & AF146),0) + IF(Setup!$AJ$8<>\"\",INDIRECT(\"'\" & Setup!$AJ$8 & \"'!\" & AF146),0) + IF(Setup!$AJ$9<>\"\",INDIRECT(\"'\" & Setup!$AJ$9 & \"'!\" & AF146),0) + IF(Setup!$AJ$10<>\"\",INDIRECT(\"'\" & Setup!$AJ$10 & \"'!\" & AF146),0) + IF(Setup!$AJ$11<>\"\",INDIRECT(\"'\" & Setup!$AJ$11 & \"'!\" & AF146),0) + IF(Setup!$AJ$12<>\"\",INDIRECT(\"'\" & Setup!$AJ$12 & \"'!\" & AF146),0)","v":0},null,"",{"$nulls":3},{"$f":"IF(C146=0,\"\",LEFT(INDEX(Lists!$H$5:$H$49,MATCH(C146,Lists!$G$5:$G$49,0),1),1))","v":""},null,"","","","","","","","","","",{"$nulls":6},{"$f":"IF(Setup!$AG$7<>\"\",INDIRECT(\"'\" & Setup!$AG$7 & \"'!\" & AD146),0) + IF(Setup!$AG$8<>\"\",INDIRECT(\"'\" & Setup!$AG$8 & \"'!\" & AD146),0) + IF(Setup!$AG$9<>\"\",INDIRECT(\"'\" & Setup!$AG$9 & \"'!\" & AD146),0) + IF(Setup!$AG$10<>\"\",INDIRECT(\"'\" & Setup!$AG$10 & \"'!\" & AD146),0) + IF(Setup!$AG$11<>\"\",INDIRECT(\"'\" & Setup!$AG$11 & \"'!\" & AD146),0) + IF(Setup!$AG$12<>\"\",INDIRECT(\"'\" & Setup!$AG$12 & \"'!\" & AD146),0)","v":0},{"$f":"IF(Setup!$AG$7<>\"\",INDIRECT(\"'\" & Setup!$AG$7 & \"'!\" & AE146),0) + IF(Setup!$AG$8<>\"\",INDIRECT(\"'\" & Setup!$AG$8 & \"'!\" & AE146),0) + IF(Setup!$AG$9<>\"\",INDIRECT(\"'\" & Setup!$AG$9 & \"'!\" & AE146),0) + IF(Setup!$AG$10<>\"\",INDIRECT(\"'\" & Setup!$AG$10 & \"'!\" & AE146),0) + IF(Setup!$AG$11<>\"\",INDIRECT(\"'\" & Setup!$AG$11 & \"'!\" & AE146),0) + IF(Setup!$AG$12<>\"\",INDIRECT(\"'\" & Setup!$AG$12 & \"'!\" & AE146),0)","v":0},{"$f":"IF(Setup!$AH$7<>\"\",INDIRECT(\"'\" & Setup!$AH$7 & \"'!\" & AD146),0) + IF(Setup!$AH$8<>\"\",INDIRECT(\"'\" & Setup!$AH$8 & \"'!\" & AD146),0) + IF(Setup!$AH$9<>\"\",INDIRECT(\"'\" & Setup!$AH$9 & \"'!\" & AD146),0) + IF(Setup!$AH$10<>\"\",INDIRECT(\"'\" & Setup!$AH$10 & \"'!\" & AD146),0) + IF(Setup!$AH$11<>\"\",INDIRECT(\"'\" & Setup!$AH$11 & \"'!\" & AD146),0) + IF(Setup!$AH$12<>\"\",INDIRECT(\"'\" & Setup!$AH$12 & \"'!\" & AD146),0)","v":0},{"$f":"IF(Setup!$AH$7<>\"\",INDIRECT(\"'\" & Setup!$AH$7 & \"'!\" & AE146),0) + IF(Setup!$AH$8<>\"\",INDIRECT(\"'\" & Setup!$AH$8 & \"'!\" & AE146),0) + IF(Setup!$AH$9<>\"\",INDIRECT(\"'\" & Setup!$AH$9 & \"'!\" & AE146),0) + IF(Setup!$AH$10<>\"\",INDIRECT(\"'\" & Setup!$AH$10 & \"'!\" & AE146),0) + IF(Setup!$AH$11<>\"\",INDIRECT(\"'\" & Setup!$AH$11 & \"'!\" & AE146),0) + IF(Setup!$AH$12<>\"\",INDIRECT(\"'\" & Setup!$AH$12 & \"'!\" & AE146),0)","v":0},{"$f":"IF(Setup!$AI$7<>\"\",INDIRECT(\"'\" & Setup!$AI$7 & \"'!\" & AD146),0) + IF(Setup!$AI$8<>\"\",INDIRECT(\"'\" & Setup!$AI$8 & \"'!\" & AD146),0) + IF(Setup!$AI$9<>\"\",INDIRECT(\"'\" & Setup!$AI$9 & \"'!\" & AD146),0) + IF(Setup!$AI$10<>\"\",INDIRECT(\"'\" & Setup!$AI$10 & \"'!\" & AD146),0) + IF(Setup!$AI$11<>\"\",INDIRECT(\"'\" & Setup!$AI$11 & \"'!\" & AD146),0) + IF(Setup!$AI$12<>\"\",INDIRECT(\"'\" & Setup!$AI$12 & \"'!\" & AD146),0)","v":0},{"$f":"IF(Setup!$AI$7<>\"\",INDIRECT(\"'\" & Setup!$AI$7 & \"'!\" & AE146),0) + IF(Setup!$AI$8<>\"\",INDIRECT(\"'\" & Setup!$AI$8 & \"'!\" & AE146),0) + IF(Setup!$AI$9<>\"\",INDIRECT(\"'\" & Setup!$AI$9 & \"'!\" & AE146),0) + IF(Setup!$AI$10<>\"\",INDIRECT(\"'\" & Setup!$AI$10 & \"'!\" & AE146),0) + IF(Setup!$AI$11<>\"\",INDIRECT(\"'\" & Setup!$AI$11 & \"'!\" & AE146),0) + IF(Setup!$AI$12<>\"\",INDIRECT(\"'\" & Setup!$AI$12 & \"'!\" & AE146),0)","v":0},{"$f":"IF(Setup!$AJ$7<>\"\",INDIRECT(\"'\" & Setup!$AJ$7 & \"'!\" & AD146),0) + IF(Setup!$AJ$8<>\"\",INDIRECT(\"'\" & Setup!$AJ$8 & \"'!\" & AD146),0) + IF(Setup!$AJ$9<>\"\",INDIRECT(\"'\" & Setup!$AJ$9 & \"'!\" & AD146),0) + IF(Setup!$AJ$10<>\"\",INDIRECT(\"'\" & Setup!$AJ$10 & \"'!\" & AD146),0) + IF(Setup!$AJ$11<>\"\",INDIRECT(\"'\" & Setup!$AJ$11 & \"'!\" & AD146),0) + IF(Setup!$AJ$12<>\"\",INDIRECT(\"'\" & Setup!$AJ$12 & \"'!\" & AD146),0)","v":0},{"$f":"IF(Setup!$AJ$7<>\"\",INDIRECT(\"'\" & Setup!$AJ$7 & \"'!\" & AE146),0) + IF(Setup!$AJ$8<>\"\",INDIRECT(\"'\" & Setup!$AJ$8 & \"'!\" & AE146),0) + IF(Setup!$AJ$9<>\"\",INDIRECT(\"'\" & Setup!$AJ$9 & \"'!\" & AE146),0) + IF(Setup!$AJ$10<>\"\",INDIRECT(\"'\" & Setup!$AJ$10 & \"'!\" & AE146),0) + IF(Setup!$AJ$11<>\"\",INDIRECT(\"'\" & Setup!$AJ$11 & \"'!\" & AE146),0) + IF(Setup!$AJ$12<>\"\",INDIRECT(\"'\" & Setup!$AJ$12 & \"'!\" & AE146),0)","v":0}]
[{"$f":"Planning!A130","v":"I122"},{"$f":"Planning!B130","v":0},{"$f":"Planning!C130","v":0},{"$f":"Planning!D130","v":0},{"$f":"Planning!E130","v":0},{"$f":"Planning!G130","v":0},null,0,0,{"$f":"IF(AND($AR147=\"2\",$AB146<>Lists!$A$17),AU147,AT147)","v":""},"",0,0,{"$f":"IF(AND($AR147=\"2\",$AB147<>Lists!$A$17),AW147,AV147)","v":""},"",0,0,{"$f":"IF(AND($AR147=\"2\",$AB147<>Lists!$A$17),AY147,AX147)","v":""},"",0,0,{"$f":"IF(AND($AR147=\"2\",$AB147<>Lists!$A$17),BA147,AZ147)","v":""},"",0,0,{"$f":"IF(AND($AR147=\"2\",$AB147<>Lists!$A$17),BC147,BB147)","v":""},"",{"$f":"Planning!H130","v":0},"00","H146","J146","I146","",null,{"$f":"IF(Setup!$AG$7<>\"\",INDIRECT(\"'\" & Setup!$AG$7 & \"'!\" & AF147),0) + IF(Setup!$AG$8<>\"\",INDIRECT(\"'\" & Setup!$AG$8 & \"'!\" & AF147),0) + IF(Setup!$AG$9<>\"\",INDIRECT(\"'\" & Setup!$AG$9 & \"'!\" & AF147),0) + IF(Setup!$AG$10<>\"\",INDIRECT(\"'\" & Setup!$AG$10 & \"'!\" & AF147),0) + IF(Setup!$AG$11<>\"\",INDIRECT(\"'\" & Setup!$AG$11 & \"'!\" & AF147),0) + IF(Setup!$AG$12<>\"\",INDIRECT(\"'\" & Setup!$AG$12 & \"'!\" & AF147),0)","v":0},{"$f":"IF(Setup!$AH$7<>\"\",INDIRECT(\"'\" & Setup!$AH$7 & \"'!\" & AF147),0) + IF(Setup!$AH$8<>\"\",INDIRECT(\"'\" & Setup!$AH$8 & \"'!\" & AF147),0) + IF(Setup!$AH$9<>\"\",INDIRECT(\"'\" & Setup!$AH$9 & \"'!\" & AF147),0) + IF(Setup!$AH$10<>\"\",INDIRECT(\"'\" & Setup!$AH$10 & \"'!\" & AF147),0) + IF(Setup!$AH$11<>\"\",INDIRECT(\"'\" & Setup!$AH$11 & \"'!\" & AF147),0) + IF(Setup!$AH$12<>\"\",INDIRECT(\"'\" & Setup!$AH$12 & \"'!\" & AF147),0)","v":0},{"$f":"IF(Setup!$AI$7<>\"\",INDIRECT(\"'\" & Setup!$AI$7 & \"'!\" & AF147),0) + IF(Setup!$AI$8<>\"\",INDIRECT(\"'\" & Setup!$AI$8 & \"'!\" & AF147),0) + IF(Setup!$AI$9<>\"\",INDIRECT(\"'\" & Setup!$AI$9 & \"'!\" & AF147),0) + IF(Setup!$AI$10<>\"\",INDIRECT(\"'\" & Setup!$AI$10 & \"'!\" & AF147),0) + IF(Setup!$AI$11<>\"\",INDIRECT(\"'\" & Setup!$AI$11 & \"'!\" & AF147),0) + IF(Setup!$AI$12<>\"\",INDIRECT(\"'\" & Setup!$AI$12 & \"'!\" & AF147),0)","v":0},{"$f":"IF(Setup!$AJ$7<>\"\",INDIRECT(\"'\" & Setup!$AJ$7 & \"'!\" & AF147),0) + IF(Setup!$AJ$8<>\"\",INDIRECT(\"'\" & Setup!$AJ$8 & \"'!\" & AF147),0) + IF(Setup!$AJ$9<>\"\",INDIRECT(\"'\" & Setup!$AJ$9 & \"'!\" & AF147),0) + IF(Setup!$AJ$10<>\"\",INDIRECT(\"'\" & Setup!$AJ$10 & \"'!\" & AF147),0) + IF(Setup!$AJ$11<>\"\",INDIRECT(\"'\" & Setup!$AJ$11 & \"'!\" & AF147),0) + IF(Setup!$AJ$12<>\"\",INDIRECT(\"'\" & Setup!$AJ$12 & \"'!\" & AF147),0)","v":0},null,"",{"$nulls":3},{"$f":"IF(C147=0,\"\",LEFT(INDEX(Lists!$H$5:$H$49,MATCH(C147,Lists!$G$5:$G$49,0),1),1))","v":""},null,"","","","","","","","","","",{"$nulls":6},{"$f":"IF(Setup!$AG$7<>\"\",INDIRECT(\"'\" & Setup!$AG$7 & \"'!\" & AD147),0) + IF(Setup!$AG$8<>\"\",INDIRECT(\"'\" & Setup!$AG$8 & \"'!\" & AD147),0) + IF(Setup!$AG$9<>\"\",INDIRECT(\"'\" & Setup!$AG$9 & \"'!\" & AD147),0) + IF(Setup!$AG$10<>\"\",INDIRECT(\"'\" & Setup!$AG$10 & \"'!\" & AD147),0) + IF(Setup!$AG$11<>\"\",INDIRECT(\"'\" & Setup!$AG$11 & \"'!\" & AD147),0) + IF(Setup!$AG$12<>\"\",INDIRECT(\"'\" & Setup!$AG$12 & \"'!\" & AD147),0)","v":0},{"$f":"IF(Setup!$AG$7<>\"\",INDIRECT(\"'\" & Setup!$AG$7 & \"'!\" & AE147),0) + IF(Setup!$AG$8<>\"\",INDIRECT(\"'\" & Setup!$AG$8 & \"'!\" & AE147),0) + IF(Setup!$AG$9<>\"\",INDIRECT(\"'\" & Setup!$AG$9 & \"'!\" & AE147),0) + IF(Setup!$AG$10<>\"\",INDIRECT(\"'\" & Setup!$AG$10 & \"'!\" & AE147),0) + IF(Setup!$AG$11<>\"\",INDIRECT(\"'\" & Setup!$AG$11 & \"'!\" & AE147),0) + IF(Setup!$AG$12<>\"\",INDIRECT(\"'\" & Setup!$AG$12 & \"'!\" & AE147),0)","v":0},{"$f":"IF(Setup!$AH$7<>\"\",INDIRECT(\"'\" & Setup!$AH$7 & \"'!\" & AD147),0) + IF(Setup!$AH$8<>\"\",INDIRECT(\"'\" & Setup!$AH$8 & \"'!\" & AD147),0) + IF(Setup!$AH$9<>\"\",INDIRECT(\"'\" & Setup!$AH$9 & \"'!\" & AD147),0) + IF(Setup!$AH$10<>\"\",INDIRECT(\"'\" & Setup!$AH$10 & \"'!\" & AD147),0) + IF(Setup!$AH$11<>\"\",INDIRECT(\"'\" & Setup!$AH$11 & \"'!\" & AD147),0) + IF(Setup!$AH$12<>\"\",INDIRECT(\"'\" & Setup!$AH$12 & \"'!\" & AD147),0)","v":0},{"$f":"IF(Setup!$AH$7<>\"\",INDIRECT(\"'\" & Setup!$AH$7 & \"'!\" & AE147),0) + IF(Setup!$AH$8<>\"\",INDIRECT(\"'\" & Setup!$AH$8 & \"'!\" & AE147),0) + IF(Setup!$AH$9<>\"\",INDIRECT(\"'\" & Setup!$AH$9 & \"'!\" & AE147),0) + IF(Setup!$AH$10<>\"\",INDIRECT(\"'\" & Setup!$AH$10 & \"'!\" & AE147),0) + IF(Setup!$AH$11<>\"\",INDIRECT(\"'\" & Setup!$AH$11 & \"'!\" & AE147),0) + IF(Setup!$AH$12<>\"\",INDIRECT(\"'\" & Setup!$AH$12 & \"'!\" & AE147),0)","v":0},{"$f":"IF(Setup!$AI$7<>\"\",INDIRECT(\"'\" & Setup!$AI$7 & \"'!\" & AD147),0) + IF(Setup!$AI$8<>\"\",INDIRECT(\"'\" & Setup!$AI$8 & \"'!\" & AD147),0) + IF(Setup!$AI$9<>\"\",INDIRECT(\"'\" & Setup!$AI$9 & \"'!\" & AD147),0) + IF(Setup!$AI$10<>\"\",INDIRECT(\"'\" & Setup!$AI$10 & \"'!\" & AD147),0) + IF(Setup!$AI$11<>\"\",INDIRECT(\"'\" & Setup!$AI$11 & \"'!\" & AD147),0) + IF(Setup!$AI$12<>\"\",INDIRECT(\"'\" & Setup!$AI$12 & \"'!\" & AD147),0)","v":0},{"$f":"IF(Setup!$AI$7<>\"\",INDIRECT(\"'\" & Setup!$AI$7 & \"'!\" & AE147),0) + IF(Setup!$AI$8<>\"\",INDIRECT(\"'\" & Setup!$AI$8 & \"'!\" & AE147),0) + IF(Setup!$AI$9<>\"\",INDIRECT(\"'\" & Setup!$AI$9 & \"'!\" & AE147),0) + IF(Setup!$AI$10<>\"\",INDIRECT(\"'\" & Setup!$AI$10 & \"'!\" & AE147),0) + IF(Setup!$AI$11<>\"\",INDIRECT(\"'\" & Setup!$AI$11 & \"'!\" & AE147),0) + IF(Setup!$AI$12<>\"\",INDIRECT(\"'\" & Setup!$AI$12 & \"'!\" & AE147),0)","v":0},{"$f":"IF(Setup!$AJ$7<>\"\",INDIRECT(\"'\" & Setup!$AJ$7 & \"'!\" & AD147),0) + IF(Setup!$AJ$8<>\"\",INDIRECT(\"'\" & Setup!$AJ$8 & \"'!\" & AD147),0) + IF(Setup!$AJ$9<>\"\",INDIRECT(\"'\" & Setup!$AJ$9 & \"'!\" & AD147),0) + IF(Setup!$AJ$10<>\"\",INDIRECT(\"'\" & Setup!$AJ$10 & \"'!\" & AD147),0) + IF(Setup!$AJ$11<>\"\",INDIRECT(\"'\" & Setup!$AJ$11 & \"'!\" & AD147),0) + IF(Setup!$AJ$12<>\"\",INDIRECT(\"'\" & Setup!$AJ$12 & \"'!\" & AD147),0)","v":0},{"$f":"IF(Setup!$AJ$7<>\"\",INDIRECT(\"'\" & Setup!$AJ$7 & \"'!\" & AE147),0) + IF(Setup!$AJ$8<>\"\",INDIRECT(\"'\" & Setup!$AJ$8 & \"'!\" & AE147),0) + IF(Setup!$AJ$9<>\"\",INDIRECT(\"'\" & Setup!$AJ$9 & \"'!\" & AE147),0) + IF(Setup!$AJ$10<>\"\",INDIRECT(\"'\" & Setup!$AJ$10 & \"'!\" & AE147),0) + IF(Setup!$AJ$11<>\"\",INDIRECT(\"'\" & Setup!$AJ$11 & \"'!\" & AE147),0) + IF(Setup!$AJ$12<>\"\",INDIRECT(\"'\" & Setup!$AJ$12 & \"'!\" & AE147),0)","v":0}]
[{"$f":"Planning!A131","v":"I123"},{"$f":"Planning!B131","v":0},{"$f":"Planning!C131","v":0},{"$f":"Planning!D131","v":0},{"$f":"Planning!E131","v":0},{"$f":"Planning!G131","v":0},null,0,0,{"$f":"IF(AND($AR148=\"2\",$AB147<>Lists!$A$17),AU148,AT148)","v":""},"",0,0,{"$f":"IF(AND($AR148=\"2\",$AB148<>Lists!$A$17),AW148,AV148)","v":""},"",0,0,{"$f":"IF(AND($AR148=\"2\",$AB148<>Lists!$A$17),AY148,AX148)","v":""},"",0,0,{"$f":"IF(AND($AR148=\"2\",$AB148<>Lists!$A$17),BA148,AZ148)","v":""},"",0,0,{"$f":"IF(AND($AR148=\"2\",$AB148<>Lists!$A$17),BC148,BB148)","v":""},"",{"$f":"Planning!H131","v":0},"00","H147","J147","I147","",null,{"$f":"IF(Setup!$AG$7<>\"\",INDIRECT(\"'\" & Setup!$AG$7 & \"'!\" & AF148),0) + IF(Setup!$AG$8<>\"\",INDIRECT(\"'\" & Setup!$AG$8 & \"'!\" & AF148),0) + IF(Setup!$AG$9<>\"\",INDIRECT(\"'\" & Setup!$AG$9 & \"'!\" & AF148),0) + IF(Setup!$AG$10<>\"\",INDIRECT(\"'\" & Setup!$AG$10 & \"'!\" & AF148),0) + IF(Setup!$AG$11<>\"\",INDIRECT(\"'\" & Setup!$AG$11 & \"'!\" & AF148),0) + IF(Setup!$AG$12<>\"\",INDIRECT(\"'\" & Setup!$AG$12 & \"'!\" & AF148),0)","v":0},{"$f":"IF(Setup!$AH$7<>\"\",INDIRECT(\"'\" & Setup!$AH$7 & \"'!\" & AF148),0) + IF(Setup!$AH$8<>\"\",INDIRECT(\"'\" & Setup!$AH$8 & \"'!\" & AF148),0) + IF(Setup!$AH$9<>\"\",INDIRECT(\"'\" & Setup!$AH$9 & \"'!\" & AF148),0) + IF(Setup!$AH$10<>\"\",INDIRECT(\"'\" & Setup!$AH$10 & \"'!\" & AF148),0) + IF(Setup!$AH$11<>\"\",INDIRECT(\"'\" & Setup!$AH$11 & \"'!\" & AF148),0) + IF(Setup!$AH$12<>\"\",INDIRECT(\"'\" & Setup!$AH$12 & \"'!\" & AF148),0)","v":0},{"$f":"IF(Setup!$AI$7<>\"\",INDIRECT(\"'\" & Setup!$AI$7 & \"'!\" & AF148),0) + IF(Setup!$AI$8<>\"\",INDIRECT(\"'\" & Setup!$AI$8 & \"'!\" & AF148),0) + IF(Setup!$AI$9<>\"\",INDIRECT(\"'\" & Setup!$AI$9 & \"'!\" & AF148),0) + IF(Setup!$AI$10<>\"\",INDIRECT(\"'\" & Setup!$AI$10 & \"'!\" & AF148),0) + IF(Setup!$AI$11<>\"\",INDIRECT(\"'\" & Setup!$AI$11 & \"'!\" & AF148),0) + IF(Setup!$AI$12<>\"\",INDIRECT(\"'\" & Setup!$AI$12 & \"'!\" & AF148),0)","v":0},{"$f":"IF(Setup!$AJ$7<>\"\",INDIRECT(\"'\" & Setup!$AJ$7 & \"'!\" & AF148),0) + IF(Setup!$AJ$8<>\"\",INDIRECT(\"'\" & Setup!$AJ$8 & \"'!\" & AF148),0) + IF(Setup!$AJ$9<>\"\",INDIRECT(\"'\" & Setup!$AJ$9 & \"'!\" & AF148),0) + IF(Setup!$AJ$10<>\"\",INDIRECT(\"'\" & Setup!$AJ$10 & \"'!\" & AF148),0) + IF(Setup!$AJ$11<>\"\",INDIRECT(\"'\" & Setup!$AJ$11 & \"'!\" & AF148),0) + IF(Setup!$AJ$12<>\"\",INDIRECT(\"'\" & Setup!$AJ$12 & \"'!\" & AF148),0)","v":0},null,"",{"$nulls":3},{"$f":"IF(C148=0,\"\",LEFT(INDEX(Lists!$H$5:$H$49,MATCH(C148,Lists!$G$5:$G$49,0),1),1))","v":""},null,"","","","","","","","","","",{"$nulls":6},{"$f":"IF(Setup!$AG$7<>\"\",INDIRECT(\"'\" & Setup!$AG$7 & \"'!\" & AD148),0) + IF(Setup!$AG$8<>\"\",INDIRECT(\"'\" & Setup!$AG$8 & \"'!\" & AD148),0) + IF(Setup!$AG$9<>\"\",INDIRECT(\"'\" & Setup!$AG$9 & \"'!\" & AD148),0) + IF(Setup!$AG$10<>\"\",INDIRECT(\"'\" & Setup!$AG$10 & \"'!\" & AD148),0) + IF(Setup!$AG$11<>\"\",INDIRECT(\"'\" & Setup!$AG$11 & \"'!\" & AD148),0) + IF(Setup!$AG$12<>\"\",INDIRECT(\"'\" & Setup!$AG$12 & \"'!\" & AD148),0)","v":0},{"$f":"IF(Setup!$AG$7<>\"\",INDIRECT(\"'\" & Setup!$AG$7 & \"'!\" & AE148),0) + IF(Setup!$AG$8<>\"\",INDIRECT(\"'\" & Setup!$AG$8 & \"'!\" & AE148),0) + IF(Setup!$AG$9<>\"\",INDIRECT(\"'\" & Setup!$AG$9 & \"'!\" & AE148),0) + IF(Setup!$AG$10<>\"\",INDIRECT(\"'\" & Setup!$AG$10 & \"'!\" & AE148),0) + IF(Setup!$AG$11<>\"\",INDIRECT(\"'\" & Setup!$AG$11 & \"'!\" & AE148),0) + IF(Setup!$AG$12<>\"\",INDIRECT(\"'\" & Setup!$AG$12 & \"'!\" & AE148),0)","v":0},{"$f":"IF(Setup!$AH$7<>\"\",INDIRECT(\"'\" & Setup!$AH$7 & \"'!\" & AD148),0) + IF(Setup!$AH$8<>\"\",INDIRECT(\"'\" & Setup!$AH$8 & \"'!\" & AD148),0) + IF(Setup!$AH$9<>\"\",INDIRECT(\"'\" & Setup!$AH$9 & \"'!\" & AD148),0) + IF(Setup!$AH$10<>\"\",INDIRECT(\"'\" & Setup!$AH$10 & \"'!\" & AD148),0) + IF(Setup!$AH$11<>\"\",INDIRECT(\"'\" & Setup!$AH$11 & \"'!\" & AD148),0) + IF(Setup!$AH$12<>\"\",INDIRECT(\"'\" & Setup!$AH$12 & \"'!\" & AD148),0)","v":0},{"$f":"IF(Setup!$AH$7<>\"\",INDIRECT(\"'\" & Setup!$AH$7 & \"'!\" & AE148),0) + IF(Setup!$AH$8<>\"\",INDIRECT(\"'\" & Setup!$AH$8 & \"'!\" & AE148),0) + IF(Setup!$AH$9<>\"\",INDIRECT(\"'\" & Setup!$AH$9 & \"'!\" & AE148),0) + IF(Setup!$AH$10<>\"\",INDIRECT(\"'\" & Setup!$AH$10 & \"'!\" & AE148),0) + IF(Setup!$AH$11<>\"\",INDIRECT(\"'\" & Setup!$AH$11 & \"'!\" & AE148),0) + IF(Setup!$AH$12<>\"\",INDIRECT(\"'\" & Setup!$AH$12 & \"'!\" & AE148),0)","v":0},{"$f":"IF(Setup!$AI$7<>\"\",INDIRECT(\"'\" & Setup!$AI$7 & \"'!\" & AD148),0) + IF(Setup!$AI$8<>\"\",INDIRECT(\"'\" & Setup!$AI$8 & \"'!\" & AD148),0) + IF(Setup!$AI$9<>\"\",INDIRECT(\"'\" & Setup!$AI$9 & \"'!\" & AD148),0) + IF(Setup!$AI$10<>\"\",INDIRECT(\"'\" & Setup!$AI$10 & \"'!\" & AD148),0) + IF(Setup!$AI$11<>\"\",INDIRECT(\"'\" & Setup!$AI$11 & \"'!\" & AD148),0) + IF(Setup!$AI$12<>\"\",INDIRECT(\"'\" & Setup!$AI$12 & \"'!\" & AD148),0)","v":0},{"$f":"IF(Setup!$AI$7<>\"\",INDIRECT(\"'\" & Setup!$AI$7 & \"'!\" & AE148),0) + IF(Setup!$AI$8<>\"\",INDIRECT(\"'\" & Setup!$AI$8 & \"'!\" & AE148),0) + IF(Setup!$AI$9<>\"\",INDIRECT(\"'\" & Setup!$AI$9 & \"'!\" & AE148),0) + IF(Setup!$AI$10<>\"\",INDIRECT(\"'\" & Setup!$AI$10 & \"'!\" & AE148),0) + IF(Setup!$AI$11<>\"\",INDIRECT(\"'\" & Setup!$AI$11 & \"'!\" & AE148),0) + IF(Setup!$AI$12<>\"\",INDIRECT(\"'\" & Setup!$AI$12 & \"'!\" & AE148),0)","v":0},{"$f":"IF(Setup!$AJ$7<>\"\",INDIRECT(\"'\" & Setup!$AJ$7 & \"'!\" & AD148),0) + IF(Setup!$AJ$8<>\"\",INDIRECT(\"'\" & Setup!$AJ$8 & \"'!\" & AD148),0) + IF(Setup!$AJ$9<>\"\",INDIRECT(\"'\" & Setup!$AJ$9 & \"'!\" & AD148),0) + IF(Setup!$AJ$10<>\"\",INDIRECT(\"'\" & Setup!$AJ$10 & \"'!\" & AD148),0) + IF(Setup!$AJ$11<>\"\",INDIRECT(\"'\" & Setup!$AJ$11 & \"'!\" & AD148),0) + IF(Setup!$AJ$12<>\"\",INDIRECT(\"'\" & Setup!$AJ$12 & \"'!\" & AD148),0)","v":0},{"$f":"IF(Setup!$AJ$7<>\"\",INDIRECT(\"'\" & Setup!$AJ$7 & \"'!\" & AE148),0) + IF(Setup!$AJ$8<>\"\",INDIRECT(\"'\" & Setup!$AJ$8 & \"'!\" & AE148),0) + IF(Setup!$AJ$9<>\"\",INDIRECT(\"'\" & Setup!$AJ$9 & \"'!\" & AE148),0) + IF(Setup!$AJ$10<>\"\",INDIRECT(\"'\" & Setup!$AJ$10 & \"'!\" & AE148),0) + IF(Setup!$AJ$11<>\"\",INDIRECT(\"'\" & Setup!$AJ$11 & \"'!\" & AE148),0) + IF(Setup!$AJ$12<>\"\",INDIRECT(\"'\" & Setup!$AJ$12 & \"'!\" & AE148),0)","v":0}]
[{"$f":"Planning!A132","v":"I124"},{"$f":"Planning!B132","v":0},{"$f":"Planning!C132","v":0},{"$f":"Planning!D132","v":0},{"$f":"Planning!E132","v":0},{"$f":"Planning!G132","v":0},null,0,0,{"$f":"IF(AND($AR149=\"2\",$AB148<>Lists!$A$17),AU149,AT149)","v":""},"",0,0,{"$f":"IF(AND($AR149=\"2\",$AB149<>Lists!$A$17),AW149,AV149)","v":""},"",0,0,{"$f":"IF(AND($AR149=\"2\",$AB149<>Lists!$A$17),AY149,AX149)","v":""},"",0,0,{"$f":"IF(AND($AR149=\"2\",$AB149<>Lists!$A$17),BA149,AZ149)","v":""},"",0,0,{"$f":"IF(AND($AR149=\"2\",$AB149<>Lists!$A$17),BC149,BB149)","v":""},"",{"$f":"Planning!H132","v":0},"00","H148","J148","I148","",null,{"$f":"IF(Setup!$AG$7<>\"\",INDIRECT(\"'\" & Setup!$AG$7 & \"'!\" & AF149),0) + IF(Setup!$AG$8<>\"\",INDIRECT(\"'\" & Setup!$AG$8 & \"'!\" & AF149),0) + IF(Setup!$AG$9<>\"\",INDIRECT(\"'\" & Setup!$AG$9 & \"'!\" & AF149),0) + IF(Setup!$AG$10<>\"\",INDIRECT(\"'\" & Setup!$AG$10 & \"'!\" & AF149),0) + IF(Setup!$AG$11<>\"\",INDIRECT(\"'\" & Setup!$AG$11 & \"'!\" & AF149),0) + IF(Setup!$AG$12<>\"\",INDIRECT(\"'\" & Setup!$AG$12 & \"'!\" & AF149),0)","v":0},{"$f":"IF(Setup!$AH$7<>\"\",INDIRECT(\"'\" & Setup!$AH$7 & \"'!\" & AF149),0) + IF(Setup!$AH$8<>\"\",INDIRECT(\"'\" & Setup!$AH$8 & \"'!\" & AF149),0) + IF(Setup!$AH$9<>\"\",INDIRECT(\"'\" & Setup!$AH$9 & \"'!\" & AF149),0) + IF(Setup!$AH$10<>\"\",INDIRECT(\"'\" & Setup!$AH$10 & \"'!\" & AF149),0) + IF(Setup!$AH$11<>\"\",INDIRECT(\"'\" & Setup!$AH$11 & \"'!\" & AF149),0) + IF(Setup!$AH$12<>\"\",INDIRECT(\"'\" & Setup!$AH$12 & \"'!\" & AF149),0)","v":0},{"$f":"IF(Setup!$AI$7<>\"\",INDIRECT(\"'\" & Setup!$AI$7 & \"'!\" & AF149),0) + IF(Setup!$AI$8<>\"\",INDIRECT(\"'\" & Setup!$AI$8 & \"'!\" & AF149),0) + IF(Setup!$AI$9<>\"\",INDIRECT(\"'\" & Setup!$AI$9 & \"'!\" & AF149),0) + IF(Setup!$AI$10<>\"\",INDIRECT(\"'\" & Setup!$AI$10 & \"'!\" & AF149),0) + IF(Setup!$AI$11<>\"\",INDIRECT(\"'\" & Setup!$AI$11 & \"'!\" & AF149),0) + IF(Setup!$AI$12<>\"\",INDIRECT(\"'\" & Setup!$AI$12 & \"'!\" & AF149),0)","v":0},{"$f":"IF(Setup!$AJ$7<>\"\",INDIRECT(\"'\" & Setup!$AJ$7 & \"'!\" & AF149),0) + IF(Setup!$AJ$8<>\"\",INDIRECT(\"'\" & Setup!$AJ$8 & \"'!\" & AF149),0) + IF(Setup!$AJ$9<>\"\",INDIRECT(\"'\" & Setup!$AJ$9 & \"'!\" & AF149),0) + IF(Setup!$AJ$10<>\"\",INDIRECT(\"'\" & Setup!$AJ$10 & \"'!\" & AF149),0) + IF(Setup!$AJ$11<>\"\",INDIRECT(\"'\" & Setup!$AJ$11 & \"'!\" & AF149),0) + IF(Setup!$AJ$12<>\"\",INDIRECT(\"'\" & Setup!$AJ$12 & \"'!\" & AF149),0)","v":0},null,"",{"$nulls":3},{"$f":"IF(C149=0,\"\",LEFT(INDEX(Lists!$H$5:$H$49,MATCH(C149,Lists!$G$5:$G$49,0),1),1))","v":""},null,"","","","","","","","","","",{"$nulls":6},{"$f":"IF(Setup!$AG$7<>\"\",INDIRECT(\"'\" & Setup!$AG$7 & \"'!\" & AD149),0) + IF(Setup!$AG$8<>\"\",INDIRECT(\"'\" & Setup!$AG$8 & \"'!\" & AD149),0) + IF(Setup!$AG$9<>\"\",INDIRECT(\"'\" & Setup!$AG$9 & \"'!\" & AD149),0) + IF(Setup!$AG$10<>\"\",INDIRECT(\"'\" & Setup!$AG$10 & \"'!\" & AD149),0) + IF(Setup!$AG$11<>\"\",INDIRECT(\"'\" & Setup!$AG$11 & \"'!\" & AD149),0) + IF(Setup!$AG$12<>\"\",INDIRECT(\"'\" & Setup!$AG$12 & \"'!\" & AD149),0)","v":0},{"$f":"IF(Setup!$AG$7<>\"\",INDIRECT(\"'\" & Setup!$AG$7 & \"'!\" & AE149),0) + IF(Setup!$AG$8<>\"\",INDIRECT(\"'\" & Setup!$AG$8 & \"'!\" & AE149),0) + IF(Setup!$AG$9<>\"\",INDIRECT(\"'\" & Setup!$AG$9 & \"'!\" & AE149),0) + IF(Setup!$AG$10<>\"\",INDIRECT(\"'\" & Setup!$AG$10 & \"'!\" & AE149),0) + IF(Setup!$AG$11<>\"\",INDIRECT(\"'\" & Setup!$AG$11 & \"'!\" & AE149),0) + IF(Setup!$AG$12<>\"\",INDIRECT(\"'\" & Setup!$AG$12 & \"'!\" & AE149),0)","v":0},{"$f":"IF(Setup!$AH$7<>\"\",INDIRECT(\"'\" & Setup!$AH$7 & \"'!\" & AD149),0) + IF(Setup!$AH$8<>\"\",INDIRECT(\"'\" & Setup!$AH$8 & \"'!\" & AD149),0) + IF(Setup!$AH$9<>\"\",INDIRECT(\"'\" & Setup!$AH$9 & \"'!\" & AD149),0) + IF(Setup!$AH$10<>\"\",INDIRECT(\"'\" & Setup!$AH$10 & \"'!\" & AD149),0) + IF(Setup!$AH$11<>\"\",INDIRECT(\"'\" & Setup!$AH$11 & \"'!\" & AD149),0) + IF(Setup!$AH$12<>\"\",INDIRECT(\"'\" & Setup!$AH$12 & \"'!\" & AD149),0)","v":0},{"$f":"IF(Setup!$AH$7<>\"\",INDIRECT(\"'\" & Setup!$AH$7 & \"'!\" & AE149),0) + IF(Setup!$AH$8<>\"\",INDIRECT(\"'\" & Setup!$AH$8 & \"'!\" & AE149),0) + IF(Setup!$AH$9<>\"\",INDIRECT(\"'\" & Setup!$AH$9 & \"'!\" & AE149),0) + IF(Setup!$AH$10<>\"\",INDIRECT(\"'\" & Setup!$AH$10 & \"'!\" & AE149),0) + IF(Setup!$AH$11<>\"\",INDIRECT(\"'\" & Setup!$AH$11 & \"'!\" & AE149),0) + IF(Setup!$AH$12<>\"\",INDIRECT(\"'\" & Setup!$AH$12 & \"'!\" & AE149),0)","v":0},{"$f":"IF(Setup!$AI$7<>\"\",INDIRECT(\"'\" & Setup!$AI$7 & \"'!\" & AD149),0) + IF(Setup!$AI$8<>\"\",INDIRECT(\"'\" & Setup!$AI$8 & \"'!\" & AD149),0) + IF(Setup!$AI$9<>\"\",INDIRECT(\"'\" & Setup!$AI$9 & \"'!\" & AD149),0) + IF(Setup!$AI$10<>\"\",INDIRECT(\"'\" & Setup!$AI$10 & \"'!\" & AD149),0) + IF(Setup!$AI$11<>\"\",INDIRECT(\"'\" & Setup!$AI$11 & \"'!\" & AD149),0) + IF(Setup!$AI$12<>\"\",INDIRECT(\"'\" & Setup!$AI$12 & \"'!\" & AD149),0)","v":0},{"$f":"IF(Setup!$AI$7<>\"\",INDIRECT(\"'\" & Setup!$AI$7 & \"'!\" & AE149),0) + IF(Setup!$AI$8<>\"\",INDIRECT(\"'\" & Setup!$AI$8 & \"'!\" & AE149),0) + IF(Setup!$AI$9<>\"\",INDIRECT(\"'\" & Setup!$AI$9 & \"'!\" & AE149),0) + IF(Setup!$AI$10<>\"\",INDIRECT(\"'\" & Setup!$AI$10 & \"'!\" & AE149),0) + IF(Setup!$AI$11<>\"\",INDIRECT(\"'\" & Setup!$AI$11 & \"'!\" & AE149),0) + IF(Setup!$AI$12<>\"\",INDIRECT(\"'\" & Setup!$AI$12 & \"'!\" & AE149),0)","v":0},{"$f":"IF(Setup!$AJ$7<>\"\",INDIRECT(\"'\" & Setup!$AJ$7 & \"'!\" & AD149),0) + IF(Setup!$AJ$8<>\"\",INDIRECT(\"'\" & Setup!$AJ$8 & \"'!\" & AD149),0) + IF(Setup!$AJ$9<>\"\",INDIRECT(\"'\" & Setup!$AJ$9 & \"'!\" & AD149),0) + IF(Setup!$AJ$10<>\"\",INDIRECT(\"'\" & Setup!$AJ$10 & \"'!\" & AD149),0) + IF(Setup!$AJ$11<>\"\",INDIRECT(\"'\" & Setup!$AJ$11 & \"'!\" & AD149),0) + IF(Setup!$AJ$12<>\"\",INDIRECT(\"'\" & Setup!$AJ$12 & \"'!\" & AD149),0)","v":0},{"$f":"IF(Setup!$AJ$7<>\"\",INDIRECT(\"'\" & Setup!$AJ$7 & \"'!\" & AE149),0) + IF(Setup!$AJ$8<>\"\",INDIRECT(\"'\" & Setup!$AJ$8 & \"'!\" & AE149),0) + IF(Setup!$AJ$9<>\"\",INDIRECT(\"'\" & Setup!$AJ$9 & \"'!\" & AE149),0) + IF(Setup!$AJ$10<>\"\",INDIRECT(\"'\" & Setup!$AJ$10 & \"'!\" & AE149),0) + IF(Setup!$AJ$11<>\"\",INDIRECT(\"'\" & Setup!$AJ$11 & \"'!\" & AE149),0) + IF(Setup!$AJ$12<>\"\",INDIRECT(\"'\" & Setup!$AJ$12 & \"'!\" & AE149),0)","v":0}]
[{"$f":"Planning!A133","v":"I125"},{"$f":"Planning!B133","v":0},{"$f":"Planning!C133","v":0},{"$f":"Planning!D133","v":0},{"$f":"Planning!E133","v":0},{"$f":"Planning!G133","v":0},null,0,0,{"$f":"IF(AND($AR150=\"2\",$AB149<>Lists!$A$17),AU150,AT150)","v":""},"",0,0,{"$f":"IF(AND($AR150=\"2\",$AB150<>Lists!$A$17),AW150,AV150)","v":""},"",0,0,{"$f":"IF(AND($AR150=\"2\",$AB150<>Lists!$A$17),AY150,AX150)","v":""},"",0,0,{"$f":"IF(AND($AR150=\"2\",$AB150<>Lists!$A$17),BA150,AZ150)","v":""},"",0,0,{"$f":"IF(AND($AR150=\"2\",$AB150<>Lists!$A$17),BC150,BB150)","v":""},"",{"$f":"Planning!H133","v":0},"00","H149","J149","I149","",null,{"$f":"IF(Setup!$AG$7<>\"\",INDIRECT(\"'\" & Setup!$AG$7 & \"'!\" & AF150),0) + IF(Setup!$AG$8<>\"\",INDIRECT(\"'\" & Setup!$AG$8 & \"'!\" & AF150),0) + IF(Setup!$AG$9<>\"\",INDIRECT(\"'\" & Setup!$AG$9 & \"'!\" & AF150),0) + IF(Setup!$AG$10<>\"\",INDIRECT(\"'\" & Setup!$AG$10 & \"'!\" & AF150),0) + IF(Setup!$AG$11<>\"\",INDIRECT(\"'\" & Setup!$AG$11 & \"'!\" & AF150),0) + IF(Setup!$AG$12<>\"\",INDIRECT(\"'\" & Setup!$AG$12 & \"'!\" & AF150),0)","v":0},{"$f":"IF(Setup!$AH$7<>\"\",INDIRECT(\"'\" & Setup!$AH$7 & \"'!\" & AF150),0) + IF(Setup!$AH$8<>\"\",INDIRECT(\"'\" & Setup!$AH$8 & \"'!\" & AF150),0) + IF(Setup!$AH$9<>\"\",INDIRECT(\"'\" & Setup!$AH$9 & \"'!\" & AF150),0) + IF(Setup!$AH$10<>\"\",INDIRECT(\"'\" & Setup!$AH$10 & \"'!\" & AF150),0) + IF(Setup!$AH$11<>\"\",INDIRECT(\"'\" & Setup!$AH$11 & \"'!\" & AF150),0) + IF(Setup!$AH$12<>\"\",INDIRECT(\"'\" & Setup!$AH$12 & \"'!\" & AF150),0)","v":0},{"$f":"IF(Setup!$AI$7<>\"\",INDIRECT(\"'\" & Setup!$AI$7 & \"'!\" & AF150),0) + IF(Setup!$AI$8<>\"\",INDIRECT(\"'\" & Setup!$AI$8 & \"'!\" & AF150),0) + IF(Setup!$AI$9<>\"\",INDIRECT(\"'\" & Setup!$AI$9 & \"'!\" & AF150),0) + IF(Setup!$AI$10<>\"\",INDIRECT(\"'\" & Setup!$AI$10 & \"'!\" & AF150),0) + IF(Setup!$AI$11<>\"\",INDIRECT(\"'\" & Setup!$AI$11 & \"'!\" & AF150),0) + IF(Setup!$AI$12<>\"\",INDIRECT(\"'\" & Setup!$AI$12 & \"'!\" & AF150),0)","v":0},{"$f":"IF(Setup!$AJ$7<>\"\",INDIRECT(\"'\" & Setup!$AJ$7 & \"'!\" & AF150),0) + IF(Setup!$AJ$8<>\"\",INDIRECT(\"'\" & Setup!$AJ$8 & \"'!\" & AF150),0) + IF(Setup!$AJ$9<>\"\",INDIRECT(\"'\" & Setup!$AJ$9 & \"'!\" & AF150),0) + IF(Setup!$AJ$10<>\"\",INDIRECT(\"'\" & Setup!$AJ$10 & \"'!\" & AF150),0) + IF(Setup!$AJ$11<>\"\",INDIRECT(\"'\" & Setup!$AJ$11 & \"'!\" & AF150),0) + IF(Setup!$AJ$12<>\"\",INDIRECT(\"'\" & Setup!$AJ$12 & \"'!\" & AF150),0)","v":0},null,"",{"$nulls":3},{"$f":"IF(C150=0,\"\",LEFT(INDEX(Lists!$H$5:$H$49,MATCH(C150,Lists!$G$5:$G$49,0),1),1))","v":""},null,"","","","","","","","","","",{"$nulls":6},{"$f":"IF(Setup!$AG$7<>\"\",INDIRECT(\"'\" & Setup!$AG$7 & \"'!\" & AD150),0) + IF(Setup!$AG$8<>\"\",INDIRECT(\"'\" & Setup!$AG$8 & \"'!\" & AD150),0) + IF(Setup!$AG$9<>\"\",INDIRECT(\"'\" & Setup!$AG$9 & \"'!\" & AD150),0) + IF(Setup!$AG$10<>\"\",INDIRECT(\"'\" & Setup!$AG$10 & \"'!\" & AD150),0) + IF(Setup!$AG$11<>\"\",INDIRECT(\"'\" & Setup!$AG$11 & \"'!\" & AD150),0) + IF(Setup!$AG$12<>\"\",INDIRECT(\"'\" & Setup!$AG$12 & \"'!\" & AD150),0)","v":0},{"$f":"IF(Setup!$AG$7<>\"\",INDIRECT(\"'\" & Setup!$AG$7 & \"'!\" & AE150),0) + IF(Setup!$AG$8<>\"\",INDIRECT(\"'\" & Setup!$AG$8 & \"'!\" & AE150),0) + IF(Setup!$AG$9<>\"\",INDIRECT(\"'\" & Setup!$AG$9 & \"'!\" & AE150),0) + IF(Setup!$AG$10<>\"\",INDIRECT(\"'\" & Setup!$AG$10 & \"'!\" & AE150),0) + IF(Setup!$AG$11<>\"\",INDIRECT(\"'\" & Setup!$AG$11 & \"'!\" & AE150),0) + IF(Setup!$AG$12<>\"\",INDIRECT(\"'\" & Setup!$AG$12 & \"'!\" & AE150),0)","v":0},{"$f":"IF(Setup!$AH$7<>\"\",INDIRECT(\"'\" & Setup!$AH$7 & \"'!\" & AD150),0) + IF(Setup!$AH$8<>\"\",INDIRECT(\"'\" & Setup!$AH$8 & \"'!\" & AD150),0) + IF(Setup!$AH$9<>\"\",INDIRECT(\"'\" & Setup!$AH$9 & \"'!\" & AD150),0) + IF(Setup!$AH$10<>\"\",INDIRECT(\"'\" & Setup!$AH$10 & \"'!\" & AD150),0) + IF(Setup!$AH$11<>\"\",INDIRECT(\"'\" & Setup!$AH$11 & \"'!\" & AD150),0) + IF(Setup!$AH$12<>\"\",INDIRECT(\"'\" & Setup!$AH$12 & \"'!\" & AD150),0)","v":0},{"$f":"IF(Setup!$AH$7<>\"\",INDIRECT(\"'\" & Setup!$AH$7 & \"'!\" & AE150),0) + IF(Setup!$AH$8<>\"\",INDIRECT(\"'\" & Setup!$AH$8 & \"'!\" & AE150),0) + IF(Setup!$AH$9<>\"\",INDIRECT(\"'\" & Setup!$AH$9 & \"'!\" & AE150),0) + IF(Setup!$AH$10<>\"\",INDIRECT(\"'\" & Setup!$AH$10 & \"'!\" & AE150),0) + IF(Setup!$AH$11<>\"\",INDIRECT(\"'\" & Setup!$AH$11 & \"'!\" & AE150),0) + IF(Setup!$AH$12<>\"\",INDIRECT(\"'\" & Setup!$AH$12 & \"'!\" & AE150),0)","v":0},{"$f":"IF(Setup!$AI$7<>\"\",INDIRECT(\"'\" & Setup!$AI$7 & \"'!\" & AD150),0) + IF(Setup!$AI$8<>\"\",INDIRECT(\"'\" & Setup!$AI$8 & \"'!\" & AD150),0) + IF(Setup!$AI$9<>\"\",INDIRECT(\"'\" & Setup!$AI$9 & \"'!\" & AD150),0) + IF(Setup!$AI$10<>\"\",INDIRECT(\"'\" & Setup!$AI$10 & \"'!\" & AD150),0) + IF(Setup!$AI$11<>\"\",INDIRECT(\"'\" & Setup!$AI$11 & \"'!\" & AD150),0) + IF(Setup!$AI$12<>\"\",INDIRECT(\"'\" & Setup!$AI$12 & \"'!\" & AD150),0)","v":0},{"$f":"IF(Setup!$AI$7<>\"\",INDIRECT(\"'\" & Setup!$AI$7 & \"'!\" & AE150),0) + IF(Setup!$AI$8<>\"\",INDIRECT(\"'\" & Setup!$AI$8 & \"'!\" & AE150),0) + IF(Setup!$AI$9<>\"\",INDIRECT(\"'\" & Setup!$AI$9 & \"'!\" & AE150),0) + IF(Setup!$AI$10<>\"\",INDIRECT(\"'\" & Setup!$AI$10 & \"'!\" & AE150),0) + IF(Setup!$AI$11<>\"\",INDIRECT(\"'\" & Setup!$AI$11 & \"'!\" & AE150),0) + IF(Setup!$AI$12<>\"\",INDIRECT(\"'\" & Setup!$AI$12 & \"'!\" & AE150),0)","v":0},{"$f":"IF(Setup!$AJ$7<>\"\",INDIRECT(\"'\" & Setup!$AJ$7 & \"'!\" & AD150),0) + IF(Setup!$AJ$8<>\"\",INDIRECT(\"'\" & Setup!$AJ$8 & \"'!\" & AD150),0) + IF(Setup!$AJ$9<>\"\",INDIRECT(\"'\" & Setup!$AJ$9 & \"'!\" & AD150),0) + IF(Setup!$AJ$10<>\"\",INDIRECT(\"'\" & Setup!$AJ$10 & \"'!\" & AD150),0) + IF(Setup!$AJ$11<>\"\",INDIRECT(\"'\" & Setup!$AJ$11 & \"'!\" & AD150),0) + IF(Setup!$AJ$12<>\"\",INDIRECT(\"'\" & Setup!$AJ$12 & \"'!\" & AD150),0)","v":0},{"$f":"IF(Setup!$AJ$7<>\"\",INDIRECT(\"'\" & Setup!$AJ$7 & \"'!\" & AE150),0) + IF(Setup!$AJ$8<>\"\",INDIRECT(\"'\" & Setup!$AJ$8 & \"'!\" & AE150),0) + IF(Setup!$AJ$9<>\"\",INDIRECT(\"'\" & Setup!$AJ$9 & \"'!\" & AE150),0) + IF(Setup!$AJ$10<>\"\",INDIRECT(\"'\" & Setup!$AJ$10 & \"'!\" & AE150),0) + IF(Setup!$AJ$11<>\"\",INDIRECT(\"'\" & Setup!$AJ$11 & \"'!\" & AE150),0) + IF(Setup!$AJ$12<>\"\",INDIRECT(\"'\" & Setup!$AJ$12 & \"'!\" & AE150),0)","v":0}]
[{"$f":"Planning!A134","v":"I126"},{"$f":"Planning!B134","v":0},{"$f":"Planning!C134","v":0},{"$f":"Planning!D134","v":0},{"$f":"Planning!E134","v":0},{"$f":"Planning!G134","v":0},null,0,0,{"$f":"IF(AND($AR151=\"2\",$AB150<>Lists!$A$17),AU151,AT151)","v":""},"",0,0,{"$f":"IF(AND($AR151=\"2\",$AB151<>Lists!$A$17),AW151,AV151)","v":""},"",0,0,{"$f":"IF(AND($AR151=\"2\",$AB151<>Lists!$A$17),AY151,AX151)","v":""},"",0,0,{"$f":"IF(AND($AR151=\"2\",$AB151<>Lists!$A$17),BA151,AZ151)","v":""},"",0,0,{"$f":"IF(AND($AR151=\"2\",$AB151<>Lists!$A$17),BC151,BB151)","v":""},"",{"$f":"Planning!H134","v":0},"00","H150","J150","I150","",null,{"$f":"IF(Setup!$AG$7<>\"\",INDIRECT(\"'\" & Setup!$AG$7 & \"'!\" & AF151),0) + IF(Setup!$AG$8<>\"\",INDIRECT(\"'\" & Setup!$AG$8 & \"'!\" & AF151),0) + IF(Setup!$AG$9<>\"\",INDIRECT(\"'\" & Setup!$AG$9 & \"'!\" & AF151),0) + IF(Setup!$AG$10<>\"\",INDIRECT(\"'\" & Setup!$AG$10 & \"'!\" & AF151),0) + IF(Setup!$AG$11<>\"\",INDIRECT(\"'\" & Setup!$AG$11 & \"'!\" & AF151),0) + IF(Setup!$AG$12<>\"\",INDIRECT(\"'\" & Setup!$AG$12 & \"'!\" & AF151),0)","v":0},{"$f":"IF(Setup!$AH$7<>\"\",INDIRECT(\"'\" & Setup!$AH$7 & \"'!\" & AF151),0) + IF(Setup!$AH$8<>\"\",INDIRECT(\"'\" & Setup!$AH$8 & \"'!\" & AF151),0) + IF(Setup!$AH$9<>\"\",INDIRECT(\"'\" & Setup!$AH$9 & \"'!\" & AF151),0) + IF(Setup!$AH$10<>\"\",INDIRECT(\"'\" & Setup!$AH$10 & \"'!\" & AF151),0) + IF(Setup!$AH$11<>\"\",INDIRECT(\"'\" & Setup!$AH$11 & \"'!\" & AF151),0) + IF(Setup!$AH$12<>\"\",INDIRECT(\"'\" & Setup!$AH$12 & \"'!\" & AF151),0)","v":0},{"$f":"IF(Setup!$AI$7<>\"\",INDIRECT(\"'\" & Setup!$AI$7 & \"'!\" & AF151),0) + IF(Setup!$AI$8<>\"\",INDIRECT(\"'\" & Setup!$AI$8 & \"'!\" & AF151),0) + IF(Setup!$AI$9<>\"\",INDIRECT(\"'\" & Setup!$AI$9 & \"'!\" & AF151),0) + IF(Setup!$AI$10<>\"\",INDIRECT(\"'\" & Setup!$AI$10 & \"'!\" & AF151),0) + IF(Setup!$AI$11<>\"\",INDIRECT(\"'\" & Setup!$AI$11 & \"'!\" & AF151),0) + IF(Setup!$AI$12<>\"\",INDIRECT(\"'\" & Setup!$AI$12 & \"'!\" & AF151),0)","v":0},{"$f":"IF(Setup!$AJ$7<>\"\",INDIRECT(\"'\" & Setup!$AJ$7 & \"'!\" & AF151),0) + IF(Setup!$AJ$8<>\"\",INDIRECT(\"'\" & Setup!$AJ$8 & \"'!\" & AF151),0) + IF(Setup!$AJ$9<>\"\",INDIRECT(\"'\" & Setup!$AJ$9 & \"'!\" & AF151),0) + IF(Setup!$AJ$10<>\"\",INDIRECT(\"'\" & Setup!$AJ$10 & \"'!\" & AF151),0) + IF(Setup!$AJ$11<>\"\",INDIRECT(\"'\" & Setup!$AJ$11 & \"'!\" & AF151),0) + IF(Setup!$AJ$12<>\"\",INDIRECT(\"'\" & Setup!$AJ$12 & \"'!\" & AF151),0)","v":0},null,"",{"$nulls":3},{"$f":"IF(C151=0,\"\",LEFT(INDEX(Lists!$H$5:$H$49,MATCH(C151,Lists!$G$5:$G$49,0),1),1))","v":""},null,"","","","","","","","","","",{"$nulls":6},{"$f":"IF(Setup!$AG$7<>\"\",INDIRECT(\"'\" & Setup!$AG$7 & \"'!\" & AD151),0) + IF(Setup!$AG$8<>\"\",INDIRECT(\"'\" & Setup!$AG$8 & \"'!\" & AD151),0) + IF(Setup!$AG$9<>\"\",INDIRECT(\"'\" & Setup!$AG$9 & \"'!\" & AD151),0) + IF(Setup!$AG$10<>\"\",INDIRECT(\"'\" & Setup!$AG$10 & \"'!\" & AD151),0) + IF(Setup!$AG$11<>\"\",INDIRECT(\"'\" & Setup!$AG$11 & \"'!\" & AD151),0) + IF(Setup!$AG$12<>\"\",INDIRECT(\"'\" & Setup!$AG$12 & \"'!\" & AD151),0)","v":0},{"$f":"IF(Setup!$AG$7<>\"\",INDIRECT(\"'\" & Setup!$AG$7 & \"'!\" & AE151),0) + IF(Setup!$AG$8<>\"\",INDIRECT(\"'\" & Setup!$AG$8 & \"'!\" & AE151),0) + IF(Setup!$AG$9<>\"\",INDIRECT(\"'\" & Setup!$AG$9 & \"'!\" & AE151),0) + IF(Setup!$AG$10<>\"\",INDIRECT(\"'\" & Setup!$AG$10 & \"'!\" & AE151),0) + IF(Setup!$AG$11<>\"\",INDIRECT(\"'\" & Setup!$AG$11 & \"'!\" & AE151),0) + IF(Setup!$AG$12<>\"\",INDIRECT(\"'\" & Setup!$AG$12 & \"'!\" & AE151),0)","v":0},{"$f":"IF(Setup!$AH$7<>\"\",INDIRECT(\"'\" & Setup!$AH$7 & \"'!\" & AD151),0) + IF(Setup!$AH$8<>\"\",INDIRECT(\"'\" & Setup!$AH$8 & \"'!\" & AD151),0) + IF(Setup!$AH$9<>\"\",INDIRECT(\"'\" & Setup!$AH$9 & \"'!\" & AD151),0) + IF(Setup!$AH$10<>\"\",INDIRECT(\"'\" & Setup!$AH$10 & \"'!\" & AD151),0) + IF(Setup!$AH$11<>\"\",INDIRECT(\"'\" & Setup!$AH$11 & \"'!\" & AD151),0) + IF(Setup!$AH$12<>\"\",INDIRECT(\"'\" & Setup!$AH$12 & \"'!\" & AD151),0)","v":0},{"$f":"IF(Setup!$AH$7<>\"\",INDIRECT(\"'\" & Setup!$AH$7 & \"'!\" & AE151),0) + IF(Setup!$AH$8<>\"\",INDIRECT(\"'\" & Setup!$AH$8 & \"'!\" & AE151),0) + IF(Setup!$AH$9<>\"\",INDIRECT(\"'\" & Setup!$AH$9 & \"'!\" & AE151),0) + IF(Setup!$AH$10<>\"\",INDIRECT(\"'\" & Setup!$AH$10 & \"'!\" & AE151),0) + IF(Setup!$AH$11<>\"\",INDIRECT(\"'\" & Setup!$AH$11 & \"'!\" & AE151),0) + IF(Setup!$AH$12<>\"\",INDIRECT(\"'\" & Setup!$AH$12 & \"'!\" & AE151),0)","v":0},{"$f":"IF(Setup!$AI$7<>\"\",INDIRECT(\"'\" & Setup!$AI$7 & \"'!\" & AD151),0) + IF(Setup!$AI$8<>\"\",INDIRECT(\"'\" & Setup!$AI$8 & \"'!\" & AD151),0) + IF(Setup!$AI$9<>\"\",INDIRECT(\"'\" & Setup!$AI$9 & \"'!\" & AD151),0) + IF(Setup!$AI$10<>\"\",INDIRECT(\"'\" & Setup!$AI$10 & \"'!\" & AD151),0) + IF(Setup!$AI$11<>\"\",INDIRECT(\"'\" & Setup!$AI$11 & \"'!\" & AD151),0) + IF(Setup!$AI$12<>\"\",INDIRECT(\"'\" & Setup!$AI$12 & \"'!\" & AD151),0)","v":0},{"$f":"IF(Setup!$AI$7<>\"\",INDIRECT(\"'\" & Setup!$AI$7 & \"'!\" & AE151),0) + IF(Setup!$AI$8<>\"\",INDIRECT(\"'\" & Setup!$AI$8 & \"'!\" & AE151),0) + IF(Setup!$AI$9<>\"\",INDIRECT(\"'\" & Setup!$AI$9 & \"'!\" & AE151),0) + IF(Setup!$AI$10<>\"\",INDIRECT(\"'\" & Setup!$AI$10 & \"'!\" & AE151),0) + IF(Setup!$AI$11<>\"\",INDIRECT(\"'\" & Setup!$AI$11 & \"'!\" & AE151),0) + IF(Setup!$AI$12<>\"\",INDIRECT(\"'\" & Setup!$AI$12 & \"'!\" & AE151),0)","v":0},{"$f":"IF(Setup!$AJ$7<>\"\",INDIRECT(\"'\" & Setup!$AJ$7 & \"'!\" & AD151),0) + IF(Setup!$AJ$8<>\"\",INDIRECT(\"'\" & Setup!$AJ$8 & \"'!\" & AD151),0) + IF(Setup!$AJ$9<>\"\",INDIRECT(\"'\" & Setup!$AJ$9 & \"'!\" & AD151),0) + IF(Setup!$AJ$10<>\"\",INDIRECT(\"'\" & Setup!$AJ$10 & \"'!\" & AD151),0) + IF(Setup!$AJ$11<>\"\",INDIRECT(\"'\" & Setup!$AJ$11 & \"'!\" & AD151),0) + IF(Setup!$AJ$12<>\"\",INDIRECT(\"'\" & Setup!$AJ$12 & \"'!\" & AD151),0)","v":0},{"$f":"IF(Setup!$AJ$7<>\"\",INDIRECT(\"'\" & Setup!$AJ$7 & \"'!\" & AE151),0) + IF(Setup!$AJ$8<>\"\",INDIRECT(\"'\" & Setup!$AJ$8 & \"'!\" & AE151),0) + IF(Setup!$AJ$9<>\"\",INDIRECT(\"'\" & Setup!$AJ$9 & \"'!\" & AE151),0) + IF(Setup!$AJ$10<>\"\",INDIRECT(\"'\" & Setup!$AJ$10 & \"'!\" & AE151),0) + IF(Setup!$AJ$11<>\"\",INDIRECT(\"'\" & Setup!$AJ$11 & \"'!\" & AE151),0) + IF(Setup!$AJ$12<>\"\",INDIRECT(\"'\" & Setup!$AJ$12 & \"'!\" & AE151),0)","v":0}]
[{"$f":"Planning!A135","v":"I127"},{"$f":"Planning!B135","v":0},{"$f":"Planning!C135","v":0},{"$f":"Planning!D135","v":0},{"$f":"Planning!E135","v":0},{"$f":"Planning!G135","v":0},null,0,0,{"$f":"IF(AND($AR152=\"2\",$AB151<>Lists!$A$17),AU152,AT152)","v":""},"",0,0,{"$f":"IF(AND($AR152=\"2\",$AB152<>Lists!$A$17),AW152,AV152)","v":""},"",0,0,{"$f":"IF(AND($AR152=\"2\",$AB152<>Lists!$A$17),AY152,AX152)","v":""},"",0,0,{"$f":"IF(AND($AR152=\"2\",$AB152<>Lists!$A$17),BA152,AZ152)","v":""},"",0,0,{"$f":"IF(AND($AR152=\"2\",$AB152<>Lists!$A$17),BC152,BB152)","v":""},"",{"$f":"Planning!H135","v":0},"00","H151","J151","I151","",null,{"$f":"IF(Setup!$AG$7<>\"\",INDIRECT(\"'\" & Setup!$AG$7 & \"'!\" & AF152),0) + IF(Setup!$AG$8<>\"\",INDIRECT(\"'\" & Setup!$AG$8 & \"'!\" & AF152),0) + IF(Setup!$AG$9<>\"\",INDIRECT(\"'\" & Setup!$AG$9 & \"'!\" & AF152),0) + IF(Setup!$AG$10<>\"\",INDIRECT(\"'\" & Setup!$AG$10 & \"'!\" & AF152),0) + IF(Setup!$AG$11<>\"\",INDIRECT(\"'\" & Setup!$AG$11 & \"'!\" & AF152),0) + IF(Setup!$AG$12<>\"\",INDIRECT(\"'\" & Setup!$AG$12 & \"'!\" & AF152),0)","v":0},{"$f":"IF(Setup!$AH$7<>\"\",INDIRECT(\"'\" & Setup!$AH$7 & \"'!\" & AF152),0) + IF(Setup!$AH$8<>\"\",INDIRECT(\"'\" & Setup!$AH$8 & \"'!\" & AF152),0) + IF(Setup!$AH$9<>\"\",INDIRECT(\"'\" & Setup!$AH$9 & \"'!\" & AF152),0) + IF(Setup!$AH$10<>\"\",INDIRECT(\"'\" & Setup!$AH$10 & \"'!\" & AF152),0) + IF(Setup!$AH$11<>\"\",INDIRECT(\"'\" & Setup!$AH$11 & \"'!\" & AF152),0) + IF(Setup!$AH$12<>\"\",INDIRECT(\"'\" & Setup!$AH$12 & \"'!\" & AF152),0)","v":0},{"$f":"IF(Setup!$AI$7<>\"\",INDIRECT(\"'\" & Setup!$AI$7 & \"'!\" & AF152),0) + IF(Setup!$AI$8<>\"\",INDIRECT(\"'\" & Setup!$AI$8 & \"'!\" & AF152),0) + IF(Setup!$AI$9<>\"\",INDIRECT(\"'\" & Setup!$AI$9 & \"'!\" & AF152),0) + IF(Setup!$AI$10<>\"\",INDIRECT(\"'\" & Setup!$AI$10 & \"'!\" & AF152),0) + IF(Setup!$AI$11<>\"\",INDIRECT(\"'\" & Setup!$AI$11 & \"'!\" & AF152),0) + IF(Setup!$AI$12<>\"\",INDIRECT(\"'\" & Setup!$AI$12 & \"'!\" & AF152),0)","v":0},{"$f":"IF(Setup!$AJ$7<>\"\",INDIRECT(\"'\" & Setup!$AJ$7 & \"'!\" & AF152),0) + IF(Setup!$AJ$8<>\"\",INDIRECT(\"'\" & Setup!$AJ$8 & \"'!\" & AF152),0) + IF(Setup!$AJ$9<>\"\",INDIRECT(\"'\" & Setup!$AJ$9 & \"'!\" & AF152),0) + IF(Setup!$AJ$10<>\"\",INDIRECT(\"'\" & Setup!$AJ$10 & \"'!\" & AF152),0) + IF(Setup!$AJ$11<>\"\",INDIRECT(\"'\" & Setup!$AJ$11 & \"'!\" & AF152),0) + IF(Setup!$AJ$12<>\"\",INDIRECT(\"'\" & Setup!$AJ$12 & \"'!\" & AF152),0)","v":0},null,"",{"$nulls":3},{"$f":"IF(C152=0,\"\",LEFT(INDEX(Lists!$H$5:$H$49,MATCH(C152,Lists!$G$5:$G$49,0),1),1))","v":""},null,"","","","","","","","","","",{"$nulls":6},{"$f":"IF(Setup!$AG$7<>\"\",INDIRECT(\"'\" & Setup!$AG$7 & \"'!\" & AD152),0) + IF(Setup!$AG$8<>\"\",INDIRECT(\"'\" & Setup!$AG$8 & \"'!\" & AD152),0) + IF(Setup!$AG$9<>\"\",INDIRECT(\"'\" & Setup!$AG$9 & \"'!\" & AD152),0) + IF(Setup!$AG$10<>\"\",INDIRECT(\"'\" & Setup!$AG$10 & \"'!\" & AD152),0) + IF(Setup!$AG$11<>\"\",INDIRECT(\"'\" & Setup!$AG$11 & \"'!\" & AD152),0) + IF(Setup!$AG$12<>\"\",INDIRECT(\"'\" & Setup!$AG$12 & \"'!\" & AD152),0)","v":0},{"$f":"IF(Setup!$AG$7<>\"\",INDIRECT(\"'\" & Setup!$AG$7 & \"'!\" & AE152),0) + IF(Setup!$AG$8<>\"\",INDIRECT(\"'\" & Setup!$AG$8 & \"'!\" & AE152),0) + IF(Setup!$AG$9<>\"\",INDIRECT(\"'\" & Setup!$AG$9 & \"'!\" & AE152),0) + IF(Setup!$AG$10<>\"\",INDIRECT(\"'\" & Setup!$AG$10 & \"'!\" & AE152),0) + IF(Setup!$AG$11<>\"\",INDIRECT(\"'\" & Setup!$AG$11 & \"'!\" & AE152),0) + IF(Setup!$AG$12<>\"\",INDIRECT(\"'\" & Setup!$AG$12 & \"'!\" & AE152),0)","v":0},{"$f":"IF(Setup!$AH$7<>\"\",INDIRECT(\"'\" & Setup!$AH$7 & \"'!\" & AD152),0) + IF(Setup!$AH$8<>\"\",INDIRECT(\"'\" & Setup!$AH$8 & \"'!\" & AD152),0) + IF(Setup!$AH$9<>\"\",INDIRECT(\"'\" & Setup!$AH$9 & \"'!\" & AD152),0) + IF(Setup!$AH$10<>\"\",INDIRECT(\"'\" & Setup!$AH$10 & \"'!\" & AD152),0) + IF(Setup!$AH$11<>\"\",INDIRECT(\"'\" & Setup!$AH$11 & \"'!\" & AD152),0) + IF(Setup!$AH$12<>\"\",INDIRECT(\"'\" & Setup!$AH$12 & \"'!\" & AD152),0)","v":0},{"$f":"IF(Setup!$AH$7<>\"\",INDIRECT(\"'\" & Setup!$AH$7 & \"'!\" & AE152),0) + IF(Setup!$AH$8<>\"\",INDIRECT(\"'\" & Setup!$AH$8 & \"'!\" & AE152),0) + IF(Setup!$AH$9<>\"\",INDIRECT(\"'\" & Setup!$AH$9 & \"'!\" & AE152),0) + IF(Setup!$AH$10<>\"\",INDIRECT(\"'\" & Setup!$AH$10 & \"'!\" & AE152),0) + IF(Setup!$AH$11<>\"\",INDIRECT(\"'\" & Setup!$AH$11 & \"'!\" & AE152),0) + IF(Setup!$AH$12<>\"\",INDIRECT(\"'\" & Setup!$AH$12 & \"'!\" & AE152),0)","v":0},{"$f":"IF(Setup!$AI$7<>\"\",INDIRECT(\"'\" & Setup!$AI$7 & \"'!\" & AD152),0) + IF(Setup!$AI$8<>\"\",INDIRECT(\"'\" & Setup!$AI$8 & \"'!\" & AD152),0) + IF(Setup!$AI$9<>\"\",INDIRECT(\"'\" & Setup!$AI$9 & \"'!\" & AD152),0) + IF(Setup!$AI$10<>\"\",INDIRECT(\"'\" & Setup!$AI$10 & \"'!\" & AD152),0) + IF(Setup!$AI$11<>\"\",INDIRECT(\"'\" & Setup!$AI$11 & \"'!\" & AD152),0) + IF(Setup!$AI$12<>\"\",INDIRECT(\"'\" & Setup!$AI$12 & \"'!\" & AD152),0)","v":0},{"$f":"IF(Setup!$AI$7<>\"\",INDIRECT(\"'\" & Setup!$AI$7 & \"'!\" & AE152),0) + IF(Setup!$AI$8<>\"\",INDIRECT(\"'\" & Setup!$AI$8 & \"'!\" & AE152),0) + IF(Setup!$AI$9<>\"\",INDIRECT(\"'\" & Setup!$AI$9 & \"'!\" & AE152),0) + IF(Setup!$AI$10<>\"\",INDIRECT(\"'\" & Setup!$AI$10 & \"'!\" & AE152),0) + IF(Setup!$AI$11<>\"\",INDIRECT(\"'\" & Setup!$AI$11 & \"'!\" & AE152),0) + IF(Setup!$AI$12<>\"\",INDIRECT(\"'\" & Setup!$AI$12 & \"'!\" & AE152),0)","v":0},{"$f":"IF(Setup!$AJ$7<>\"\",INDIRECT(\"'\" & Setup!$AJ$7 & \"'!\" & AD152),0) + IF(Setup!$AJ$8<>\"\",INDIRECT(\"'\" & Setup!$AJ$8 & \"'!\" & AD152),0) + IF(Setup!$AJ$9<>\"\",INDIRECT(\"'\" & Setup!$AJ$9 & \"'!\" & AD152),0) + IF(Setup!$AJ$10<>\"\",INDIRECT(\"'\" & Setup!$AJ$10 & \"'!\" & AD152),0) + IF(Setup!$AJ$11<>\"\",INDIRECT(\"'\" & Setup!$AJ$11 & \"'!\" & AD152),0) + IF(Setup!$AJ$12<>\"\",INDIRECT(\"'\" & Setup!$AJ$12 & \"'!\" & AD152),0)","v":0},{"$f":"IF(Setup!$AJ$7<>\"\",INDIRECT(\"'\" & Setup!$AJ$7 & \"'!\" & AE152),0) + IF(Setup!$AJ$8<>\"\",INDIRECT(\"'\" & Setup!$AJ$8 & \"'!\" & AE152),0) + IF(Setup!$AJ$9<>\"\",INDIRECT(\"'\" & Setup!$AJ$9 & \"'!\" & AE152),0) + IF(Setup!$AJ$10<>\"\",INDIRECT(\"'\" & Setup!$AJ$10 & \"'!\" & AE152),0) + IF(Setup!$AJ$11<>\"\",INDIRECT(\"'\" & Setup!$AJ$11 & \"'!\" & AE152),0) + IF(Setup!$AJ$12<>\"\",INDIRECT(\"'\" & Setup!$AJ$12 & \"'!\" & AE152),0)","v":0}]
[{"$f":"Planning!A136","v":"I128"},{"$f":"Planning!B136","v":0},{"$f":"Planning!C136","v":0},{"$f":"Planning!D136","v":0},{"$f":"Planning!E136","v":0},{"$f":"Planning!G136","v":0},null,0,0,{"$f":"IF(AND($AR153=\"2\",$AB152<>Lists!$A$17),AU153,AT153)","v":""},"",0,0,{"$f":"IF(AND($AR153=\"2\",$AB153<>Lists!$A$17),AW153,AV153)","v":""},"",0,0,{"$f":"IF(AND($AR153=\"2\",$AB153<>Lists!$A$17),AY153,AX153)","v":""},"",0,0,{"$f":"IF(AND($AR153=\"2\",$AB153<>Lists!$A$17),BA153,AZ153)","v":""},"",0,0,{"$f":"IF(AND($AR153=\"2\",$AB153<>Lists!$A$17),BC153,BB153)","v":""},"",{"$f":"Planning!H136","v":0},"00","H152","J152","I152","",null,{"$f":"IF(Setup!$AG$7<>\"\",INDIRECT(\"'\" & Setup!$AG$7 & \"'!\" & AF153),0) + IF(Setup!$AG$8<>\"\",INDIRECT(\"'\" & Setup!$AG$8 & \"'!\" & AF153),0) + IF(Setup!$AG$9<>\"\",INDIRECT(\"'\" & Setup!$AG$9 & \"'!\" & AF153),0) + IF(Setup!$AG$10<>\"\",INDIRECT(\"'\" & Setup!$AG$10 & \"'!\" & AF153),0) + IF(Setup!$AG$11<>\"\",INDIRECT(\"'\" & Setup!$AG$11 & \"'!\" & AF153),0) + IF(Setup!$AG$12<>\"\",INDIRECT(\"'\" & Setup!$AG$12 & \"'!\" & AF153),0)","v":0},{"$f":"IF(Setup!$AH$7<>\"\",INDIRECT(\"'\" & Setup!$AH$7 & \"'!\" & AF153),0) + IF(Setup!$AH$8<>\"\",INDIRECT(\"'\" & Setup!$AH$8 & \"'!\" & AF153),0) + IF(Setup!$AH$9<>\"\",INDIRECT(\"'\" & Setup!$AH$9 & \"'!\" & AF153),0) + IF(Setup!$AH$10<>\"\",INDIRECT(\"'\" & Setup!$AH$10 & \"'!\" & AF153),0) + IF(Setup!$AH$11<>\"\",INDIRECT(\"'\" & Setup!$AH$11 & \"'!\" & AF153),0) + IF(Setup!$AH$12<>\"\",INDIRECT(\"'\" & Setup!$AH$12 & \"'!\" & AF153),0)","v":0},{"$f":"IF(Setup!$AI$7<>\"\",INDIRECT(\"'\" & Setup!$AI$7 & \"'!\" & AF153),0) + IF(Setup!$AI$8<>\"\",INDIRECT(\"'\" & Setup!$AI$8 & \"'!\" & AF153),0) + IF(Setup!$AI$9<>\"\",INDIRECT(\"'\" & Setup!$AI$9 & \"'!\" & AF153),0) + IF(Setup!$AI$10<>\"\",INDIRECT(\"'\" & Setup!$AI$10 & \"'!\" & AF153),0) + IF(Setup!$AI$11<>\"\",INDIRECT(\"'\" & Setup!$AI$11 & \"'!\" & AF153),0) + IF(Setup!$AI$12<>\"\",INDIRECT(\"'\" & Setup!$AI$12 & \"'!\" & AF153),0)","v":0},{"$f":"IF(Setup!$AJ$7<>\"\",INDIRECT(\"'\" & Setup!$AJ$7 & \"'!\" & AF153),0) + IF(Setup!$AJ$8<>\"\",INDIRECT(\"'\" & Setup!$AJ$8 & \"'!\" & AF153),0) + IF(Setup!$AJ$9<>\"\",INDIRECT(\"'\" & Setup!$AJ$9 & \"'!\" & AF153),0) + IF(Setup!$AJ$10<>\"\",INDIRECT(\"'\" & Setup!$AJ$10 & \"'!\" & AF153),0) + IF(Setup!$AJ$11<>\"\",INDIRECT(\"'\" & Setup!$AJ$11 & \"'!\" & AF153),0) + IF(Setup!$AJ$12<>\"\",INDIRECT(\"'\" & Setup!$AJ$12 & \"'!\" & AF153),0)","v":0},null,"",{"$nulls":3},{"$f":"IF(C153=0,\"\",LEFT(INDEX(Lists!$H$5:$H$49,MATCH(C153,Lists!$G$5:$G$49,0),1),1))","v":""},null,"","","","","","","","","","",{"$nulls":6},{"$f":"IF(Setup!$AG$7<>\"\",INDIRECT(\"'\" & Setup!$AG$7 & \"'!\" & AD153),0) + IF(Setup!$AG$8<>\"\",INDIRECT(\"'\" & Setup!$AG$8 & \"'!\" & AD153),0) + IF(Setup!$AG$9<>\"\",INDIRECT(\"'\" & Setup!$AG$9 & \"'!\" & AD153),0) + IF(Setup!$AG$10<>\"\",INDIRECT(\"'\" & Setup!$AG$10 & \"'!\" & AD153),0) + IF(Setup!$AG$11<>\"\",INDIRECT(\"'\" & Setup!$AG$11 & \"'!\" & AD153),0) + IF(Setup!$AG$12<>\"\",INDIRECT(\"'\" & Setup!$AG$12 & \"'!\" & AD153),0)","v":0},{"$f":"IF(Setup!$AG$7<>\"\",INDIRECT(\"'\" & Setup!$AG$7 & \"'!\" & AE153),0) + IF(Setup!$AG$8<>\"\",INDIRECT(\"'\" & Setup!$AG$8 & \"'!\" & AE153),0) + IF(Setup!$AG$9<>\"\",INDIRECT(\"'\" & Setup!$AG$9 & \"'!\" & AE153),0) + IF(Setup!$AG$10<>\"\",INDIRECT(\"'\" & Setup!$AG$10 & \"'!\" & AE153),0) + IF(Setup!$AG$11<>\"\",INDIRECT(\"'\" & Setup!$AG$11 & \"'!\" & AE153),0) + IF(Setup!$AG$12<>\"\",INDIRECT(\"'\" & Setup!$AG$12 & \"'!\" & AE153),0)","v":0},{"$f":"IF(Setup!$AH$7<>\"\",INDIRECT(\"'\" & Setup!$AH$7 & \"'!\" & AD153),0) + IF(Setup!$AH$8<>\"\",INDIRECT(\"'\" & Setup!$AH$8 & \"'!\" & AD153),0) + IF(Setup!$AH$9<>\"\",INDIRECT(\"'\" & Setup!$AH$9 & \"'!\" & AD153),0) + IF(Setup!$AH$10<>\"\",INDIRECT(\"'\" & Setup!$AH$10 & \"'!\" & AD153),0) + IF(Setup!$AH$11<>\"\",INDIRECT(\"'\" & Setup!$AH$11 & \"'!\" & AD153),0) + IF(Setup!$AH$12<>\"\",INDIRECT(\"'\" & Setup!$AH$12 & \"'!\" & AD153),0)","v":0},{"$f":"IF(Setup!$AH$7<>\"\",INDIRECT(\"'\" & Setup!$AH$7 & \"'!\" & AE153),0) + IF(Setup!$AH$8<>\"\",INDIRECT(\"'\" & Setup!$AH$8 & \"'!\" & AE153),0) + IF(Setup!$AH$9<>\"\",INDIRECT(\"'\" & Setup!$AH$9 & \"'!\" & AE153),0) + IF(Setup!$AH$10<>\"\",INDIRECT(\"'\" & Setup!$AH$10 & \"'!\" & AE153),0) + IF(Setup!$AH$11<>\"\",INDIRECT(\"'\" & Setup!$AH$11 & \"'!\" & AE153),0) + IF(Setup!$AH$12<>\"\",INDIRECT(\"'\" & Setup!$AH$12 & \"'!\" & AE153),0)","v":0},{"$f":"IF(Setup!$AI$7<>\"\",INDIRECT(\"'\" & Setup!$AI$7 & \"'!\" & AD153),0) + IF(Setup!$AI$8<>\"\",INDIRECT(\"'\" & Setup!$AI$8 & \"'!\" & AD153),0) + IF(Setup!$AI$9<>\"\",INDIRECT(\"'\" & Setup!$AI$9 & \"'!\" & AD153),0) + IF(Setup!$AI$10<>\"\",INDIRECT(\"'\" & Setup!$AI$10 & \"'!\" & AD153),0) + IF(Setup!$AI$11<>\"\",INDIRECT(\"'\" & Setup!$AI$11 & \"'!\" & AD153),0) + IF(Setup!$AI$12<>\"\",INDIRECT(\"'\" & Setup!$AI$12 & \"'!\" & AD153),0)","v":0},{"$f":"IF(Setup!$AI$7<>\"\",INDIRECT(\"'\" & Setup!$AI$7 & \"'!\" & AE153),0) + IF(Setup!$AI$8<>\"\",INDIRECT(\"'\" & Setup!$AI$8 & \"'!\" & AE153),0) + IF(Setup!$AI$9<>\"\",INDIRECT(\"'\" & Setup!$AI$9 & \"'!\" & AE153),0) + IF(Setup!$AI$10<>\"\",INDIRECT(\"'\" & Setup!$AI$10 & \"'!\" & AE153),0) + IF(Setup!$AI$11<>\"\",INDIRECT(\"'\" & Setup!$AI$11 & \"'!\" & AE153),0) + IF(Setup!$AI$12<>\"\",INDIRECT(\"'\" & Setup!$AI$12 & \"'!\" & AE153),0)","v":0},{"$f":"IF(Setup!$AJ$7<>\"\",INDIRECT(\"'\" & Setup!$AJ$7 & \"'!\" & AD153),0) + IF(Setup!$AJ$8<>\"\",INDIRECT(\"'\" & Setup!$AJ$8 & \"'!\" & AD153),0) + IF(Setup!$AJ$9<>\"\",INDIRECT(\"'\" & Setup!$AJ$9 & \"'!\" & AD153),0) + IF(Setup!$AJ$10<>\"\",INDIRECT(\"'\" & Setup!$AJ$10 & \"'!\" & AD153),0) + IF(Setup!$AJ$11<>\"\",INDIRECT(\"'\" & Setup!$AJ$11 & \"'!\" & AD153),0) + IF(Setup!$AJ$12<>\"\",INDIRECT(\"'\" & Setup!$AJ$12 & \"'!\" & AD153),0)","v":0},{"$f":"IF(Setup!$AJ$7<>\"\",INDIRECT(\"'\" & Setup!$AJ$7 & \"'!\" & AE153),0) + IF(Setup!$AJ$8<>\"\",INDIRECT(\"'\" & Setup!$AJ$8 & \"'!\" & AE153),0) + IF(Setup!$AJ$9<>\"\",INDIRECT(\"'\" & Setup!$AJ$9 & \"'!\" & AE153),0) + IF(Setup!$AJ$10<>\"\",INDIRECT(\"'\" & Setup!$AJ$10 & \"'!\" & AE153),0) + IF(Setup!$AJ$11<>\"\",INDIRECT(\"'\" & Setup!$AJ$11 & \"'!\" & AE153),0) + IF(Setup!$AJ$12<>\"\",INDIRECT(\"'\" & Setup!$AJ$12 & \"'!\" & AE153),0)","v":0}]
[{"$f":"Planning!A137","v":"I129"},{"$f":"Planning!B137","v":0},{"$f":"Planning!C137","v":0},{"$f":"Planning!D137","v":0},{"$f":"Planning!E137","v":0},{"$f":"Planning!G137","v":0},null,0,0,{"$f":"IF(AND($AR154=\"2\",$AB153<>Lists!$A$17),AU154,AT154)","v":""},{"$f":"IF($AN154 = ExcluirDelPLogro,\"\",IF(AND(H154=0,I154=0),\"\",J154))","v":""},{"$f":"IF(AR154<>\"3\",BJ154,INDIRECT(\"'\" & MesCierreQ1 & \"'!\" & AD154))","v":0},{"$f":"IF(AR154<>\"3\",BK154,INDIRECT(\"'\" & MesCierreQ1 & \"'!\" & AE154))","v":0},{"$f":"IF(AND($AR154=\"2\",$AB154<>Lists!$A$17),AW154,AV154)","v":""},{"$f":"IF($AN154=ExcluirDelPLogro,\"\",IF(AND(L154=0,M154=0),\"\",N154))","v":""},{"$f":"IF(AR154<>\"3\",BL154,INDIRECT(\"'\" & MesCierreQ2 & \"'!\" & AD154))","v":0},{"$f":"IF(AR154<>\"3\",BM154,INDIRECT(\"'\" & MesCierreQ2 & \"'!\" & AE154))","v":0},{"$f":"IF(AND($AR154=\"2\",$AB154<>Lists!$A$17),AY154,AX154)","v":""},{"$f":"IF($AN154=ExcluirDelPLogro,\"\",IF(AND(P154=0,Q154=0),\"\",R154))","v":""},{"$f":"IF(AR154<>\"3\",BN154,INDIRECT(\"'\" & MesCierreQ3 & \"'!\" & AD154))","v":0},{"$f":"IF(AR154<>\"3\",BO154,INDIRECT(\"'\" & MesCierreQ3 & \"'!\" & AE154))","v":0},{"$f":"IF(AND($AR154=\"2\",$AB154<>Lists!$A$17),BA154,AZ154)","v":""},{"$f":"IF($AN154=ExcluirDelPLogro,\"\",IF(AND(T154=0,U154=0),\"\",V154))","v":""},{"$f":"IF(AR154<>\"3\",BP154,INDIRECT(\"'\" & MesCierreQ4 & \"'!\" & AD154))","v":0},{"$f":"IF(AR154<>\"3\",BQ154,INDIRECT(\"'\" & MesCierreQ4 & \"'!\" & AE154))","v":0},{"$f":"IF(AND($AR154=\"2\",$AB154<>Lists!$A$17),BC154,BB154)","v":""},{"$f":"IF($AN154=ExcluirDelPLogro,\"\",IF(AND(X154=0,Y154=0),\"\",Z154))","v":""},{"$f":"Planning!H137","v":0},"00","H153","J153","I153","",null,{"$f":"IF(Setup!$AG$7<>\"\",INDIRECT(\"'\" & Setup!$AG$7 & \"'!\" & AF154),0) + IF(Setup!$AG$8<>\"\",INDIRECT(\"'\" & Setup!$AG$8 & \"'!\" & AF154),0) + IF(Setup!$AG$9<>\"\",INDIRECT(\"'\" & Setup!$AG$9 & \"'!\" & AF154),0) + IF(Setup!$AG$10<>\"\",INDIRECT(\"'\" & Setup!$AG$10 & \"'!\" & AF154),0) + IF(Setup!$AG$11<>\"\",INDIRECT(\"'\" & Setup!$AG$11 & \"'!\" & AF154),0) + IF(Setup!$AG$12<>\"\",INDIRECT(\"'\" & Setup!$AG$12 & \"'!\" & AF154),0)","v":0},{"$f":"IF(Setup!$AH$7<>\"\",INDIRECT(\"'\" & Setup!$AH$7 & \"'!\" & AF154),0) + IF(Setup!$AH$8<>\"\",INDIRECT(\"'\" & Setup!$AH$8 & \"'!\" & AF154),0) + IF(Setup!$AH$9<>\"\",INDIRECT(\"'\" & Setup!$AH$9 & \"'!\" & AF154),0) + IF(Setup!$AH$10<>\"\",INDIRECT(\"'\" & Setup!$AH$10 & \"'!\" & AF154),0) + IF(Setup!$AH$11<>\"\",INDIRECT(\"'\" & Setup!$AH$11 & \"'!\" & AF154),0) + IF(Setup!$AH$12<>\"\",INDIRECT(\"'\" & Setup!$AH$12 & \"'!\" & AF154),0)","v":0},{"$f":"IF(Setup!$AI$7<>\"\",INDIRECT(\"'\" & Setup!$AI$7 & \"'!\" & AF154),0) + IF(Setup!$AI$8<>\"\",INDIRECT(\"'\" & Setup!$AI$8 & \"'!\" & AF154),0) + IF(Setup!$AI$9<>\"\",INDIRECT(\"'\" & Setup!$AI$9 & \"'!\" & AF154),0) + IF(Setup!$AI$10<>\"\",INDIRECT(\"'\" & Setup!$AI$10 & \"'!\" & AF154),0) + IF(Setup!$AI$11<>\"\",INDIRECT(\"'\" & Setup!$AI$11 & \"'!\" & AF154),0) + IF(Setup!$AI$12<>\"\",INDIRECT(\"'\" & Setup!$AI$12 & \"'!\" & AF154),0)","v":0},{"$f":"IF(Setup!$AJ$7<>\"\",INDIRECT(\"'\" & Setup!$AJ$7 & \"'!\" & AF154),0) + IF(Setup!$AJ$8<>\"\",INDIRECT(\"'\" & Setup!$AJ$8 & \"'!\" & AF154),0) + IF(Setup!$AJ$9<>\"\",INDIRECT(\"'\" & Setup!$AJ$9 & \"'!\" & AF154),0) + IF(Setup!$AJ$10<>\"\",INDIRECT(\"'\" & Setup!$AJ$10 & \"'!\" & AF154),0) + IF(Setup!$AJ$11<>\"\",INDIRECT(\"'\" & Setup!$AJ$11 & \"'!\" & AF154),0) + IF(Setup!$AJ$12<>\"\",INDIRECT(\"'\" & Setup!$AJ$12 & \"'!\" & AF154),0)","v":0},null,"",{"$nulls":3},{"$f":"IF(C154=0,\"\",LEFT(INDEX(Lists!$H$5:$H$49,MATCH(C154,Lists!$G$5:$G$49,0),1),1))","v":""},null,"","","","","","","","","","",{"$nulls":6},{"$f":"IF(Setup!$AG$7<>\"\",INDIRECT(\"'\" & Setup!$AG$7 & \"'!\" & AD154),0) + IF(Setup!$AG$8<>\"\",INDIRECT(\"'\" & Setup!$AG$8 & \"'!\" & AD154),0) + IF(Setup!$AG$9<>\"\",INDIRECT(\"'\" & Setup!$AG$9 & \"'!\" & AD154),0) + IF(Setup!$AG$10<>\"\",INDIRECT(\"'\" & Setup!$AG$10 & \"'!\" & AD154),0) + IF(Setup!$AG$11<>\"\",INDIRECT(\"'\" & Setup!$AG$11 & \"'!\" & AD154),0) + IF(Setup!$AG$12<>\"\",INDIRECT(\"'\" & Setup!$AG$12 & \"'!\" & AD154),0)","v":0},{"$f":"IF(Setup!$AG$7<>\"\",INDIRECT(\"'\" & Setup!$AG$7 & \"'!\" & AE154),0) + IF(Setup!$AG$8<>\"\",INDIRECT(\"'\" & Setup!$AG$8 & \"'!\" & AE154),0) + IF(Setup!$AG$9<>\"\",INDIRECT(\"'\" & Setup!$AG$9 & \"'!\" & AE154),0) + IF(Setup!$AG$10<>\"\",INDIRECT(\"'\" & Setup!$AG$10 & \"'!\" & AE154),0) + IF(Setup!$AG$11<>\"\",INDIRECT(\"'\" & Setup!$AG$11 & \"'!\" & AE154),0) + IF(Setup!$AG$12<>\"\",INDIRECT(\"'\" & Setup!$AG$12 & \"'!\" & AE154),0)","v":0},{"$f":"IF(Setup!$AH$7<>\"\",INDIRECT(\"'\" & Setup!$AH$7 & \"'!\" & AD154),0) + IF(Setup!$AH$8<>\"\",INDIRECT(\"'\" & Setup!$AH$8 & \"'!\" & AD154),0) + IF(Setup!$AH$9<>\"\",INDIRECT(\"'\" & Setup!$AH$9 & \"'!\" & AD154),0) + IF(Setup!$AH$10<>\"\",INDIRECT(\"'\" & Setup!$AH$10 & \"'!\" & AD154),0) + IF(Setup!$AH$11<>\"\",INDIRECT(\"'\" & Setup!$AH$11 & \"'!\" & AD154),0) + IF(Setup!$AH$12<>\"\",INDIRECT(\"'\" & Setup!$AH$12 & \"'!\" & AD154),0)","v":0},{"$f":"IF(Setup!$AH$7<>\"\",INDIRECT(\"'\" & Setup!$AH$7 & \"'!\" & AE154),0) + IF(Setup!$AH$8<>\"\",INDIRECT(\"'\" & Setup!$AH$8 & \"'!\" & AE154),0) + IF(Setup!$AH$9<>\"\",INDIRECT(\"'\" & Setup!$AH$9 & \"'!\" & AE154),0) + IF(Setup!$AH$10<>\"\",INDIRECT(\"'\" & Setup!$AH$10 & \"'!\" & AE154),0) + IF(Setup!$AH$11<>\"\",INDIRECT(\"'\" & Setup!$AH$11 & \"'!\" & AE154),0) + IF(Setup!$AH$12<>\"\",INDIRECT(\"'\" & Setup!$AH$12 & \"'!\" & AE154),0)","v":0},{"$f":"IF(Setup!$AI$7<>\"\",INDIRECT(\"'\" & Setup!$AI$7 & \"'!\" & AD154),0) + IF(Setup!$AI$8<>\"\",INDIRECT(\"'\" & Setup!$AI$8 & \"'!\" & AD154),0) + IF(Setup!$AI$9<>\"\",INDIRECT(\"'\" & Setup!$AI$9 & \"'!\" & AD154),0) + IF(Setup!$AI$10<>\"\",INDIRECT(\"'\" & Setup!$AI$10 & \"'!\" & AD154),0) + IF(Setup!$AI$11<>\"\",INDIRECT(\"'\" & Setup!$AI$11 & \"'!\" & AD154),0) + IF(Setup!$AI$12<>\"\",INDIRECT(\"'\" & Setup!$AI$12 & \"'!\" & AD154),0)","v":0},{"$f":"IF(Setup!$AI$7<>\"\",INDIRECT(\"'\" & Setup!$AI$7 & \"'!\" & AE154),0) + IF(Setup!$AI$8<>\"\",INDIRECT(\"'\" & Setup!$AI$8 & \"'!\" & AE154),0) + IF(Setup!$AI$9<>\"\",INDIRECT(\"'\" & Setup!$AI$9 & \"'!\" & AE154),0) + IF(Setup!$AI$10<>\"\",INDIRECT(\"'\" & Setup!$AI$10 & \"'!\" & AE154),0) + IF(Setup!$AI$11<>\"\",INDIRECT(\"'\" & Setup!$AI$11 & \"'!\" & AE154),0) + IF(Setup!$AI$12<>\"\",INDIRECT(\"'\" & Setup!$AI$12 & \"'!\" & AE154),0)","v":0},{"$f":"IF(Setup!$AJ$7<>\"\",INDIRECT(\"'\" & Setup!$AJ$7 & \"'!\" & AD154),0) + IF(Setup!$AJ$8<>\"\",INDIRECT(\"'\" & Setup!$AJ$8 & \"'!\" & AD154),0) + IF(Setup!$AJ$9<>\"\",INDIRECT(\"'\" & Setup!$AJ$9 & \"'!\" & AD154),0) + IF(Setup!$AJ$10<>\"\",INDIRECT(\"'\" & Setup!$AJ$10 & \"'!\" & AD154),0) + IF(Setup!$AJ$11<>\"\",INDIRECT(\"'\" & Setup!$AJ$11 & \"'!\" & AD154),0) + IF(Setup!$AJ$12<>\"\",INDIRECT(\"'\" & Setup!$AJ$12 & \"'!\" & AD154),0)","v":0},{"$f":"IF(Setup!$AJ$7<>\"\",INDIRECT(\"'\" & Setup!$AJ$7 & \"'!\" & AE154),0) + IF(Setup!$AJ$8<>\"\",INDIRECT(\"'\" & Setup!$AJ$8 & \"'!\" & AE154),0) + IF(Setup!$AJ$9<>\"\",INDIRECT(\"'\" & Setup!$AJ$9 & \"'!\" & AE154),0) + IF(Setup!$AJ$10<>\"\",INDIRECT(\"'\" & Setup!$AJ$10 & \"'!\" & AE154),0) + IF(Setup!$AJ$11<>\"\",INDIRECT(\"'\" & Setup!$AJ$11 & \"'!\" & AE154),0) + IF(Setup!$AJ$12<>\"\",INDIRECT(\"'\" & Setup!$AJ$12 & \"'!\" & AE154),0)","v":0}]
[{"$f":"Planning!A138","v":"I130"},{"$f":"Planning!B138","v":0},{"$f":"Planning!C138","v":0},{"$f":"Planning!D138","v":0},{"$f":"Planning!E138","v":0},{"$f":"Planning!G138","v":0},null,{"$f":"IF(AR155<>\"3\",SUM(L155,P155,T155,X155),X155)","v":0},{"$f":"IF(AR155<>\"3\",SUM(M155,Q155,U155,Y155),Y155)","v":0},{"$f":"IF(AND($AR155=\"2\",$AB154<>Lists!$A$17),AU155,AT155)","v":""},"",0,0,{"$f":"IF(AND($AR155=\"2\",$AB155<>Lists!$A$17),AW155,AV155)","v":""},"",0,0,{"$f":"IF(AND($AR155=\"2\",$AB155<>Lists!$A$17),AY155,AX155)","v":""},"",0,0,{"$f":"IF(AND($AR155=\"2\",$AB155<>Lists!$A$17),BA155,AZ155)","v":""},"",0,0,{"$f":"IF(AND($AR155=\"2\",$AB155<>Lists!$A$17),BC155,BB155)","v":""},"",{"$f":"Planning!H138","v":0},{"$f":"LEFT(B155,1)&C155","v":"00"},"H154","J154","I154",{"$f":"IF(E155=0,\"\",\"[\"&A155&\"] \"&E155)","v":""},null,{"$f":"IF(Setup!$AG$7<>\"\",INDIRECT(\"'\" & Setup!$AG$7 & \"'!\" & AF155),0) + IF(Setup!$AG$8<>\"\",INDIRECT(\"'\" & Setup!$AG$8 & \"'!\" & AF155),0) + IF(Setup!$AG$9<>\"\",INDIRECT(\"'\" & Setup!$AG$9 & \"'!\" & AF155),0) + IF(Setup!$AG$10<>\"\",INDIRECT(\"'\" & Setup!$AG$10 & \"'!\" & AF155),0) + IF(Setup!$AG$11<>\"\",INDIRECT(\"'\" & Setup!$AG$11 & \"'!\" & AF155),0) + IF(Setup!$AG$12<>\"\",INDIRECT(\"'\" & Setup!$AG$12 & \"'!\" & AF155),0)","v":0},{"$f":"IF(Setup!$AH$7<>\"\",INDIRECT(\"'\" & Setup!$AH$7 & \"'!\" & AF155),0) + IF(Setup!$AH$8<>\"\",INDIRECT(\"'\" & Setup!$AH$8 & \"'!\" & AF155),0) + IF(Setup!$AH$9<>\"\",INDIRECT(\"'\" & Setup!$AH$9 & \"'!\" & AF155),0) + IF(Setup!$AH$10<>\"\",INDIRECT(\"'\" & Setup!$AH$10 & \"'!\" & AF155),0) + IF(Setup!$AH$11<>\"\",INDIRECT(\"'\" & Setup!$AH$11 & \"'!\" & AF155),0) + IF(Setup!$AH$12<>\"\",INDIRECT(\"'\" & Setup!$AH$12 & \"'!\" & AF155),0)","v":0},{"$f":"IF(Setup!$AI$7<>\"\",INDIRECT(\"'\" & Setup!$AI$7 & \"'!\" & AF155),0) + IF(Setup!$AI$8<>\"\",INDIRECT(\"'\" & Setup!$AI$8 & \"'!\" & AF155),0) + IF(Setup!$AI$9<>\"\",INDIRECT(\"'\" & Setup!$AI$9 & \"'!\" & AF155),0) + IF(Setup!$AI$10<>\"\",INDIRECT(\"'\" & Setup!$AI$10 & \"'!\" & AF155),0) + IF(Setup!$AI$11<>\"\",INDIRECT(\"'\" & Setup!$AI$11 & \"'!\" & AF155),0) + IF(Setup!$AI$12<>\"\",INDIRECT(\"'\" & Setup!$AI$12 & \"'!\" & AF155),0)","v":0},{"$f":"IF(Setup!$AJ$7<>\"\",INDIRECT(\"'\" & Setup!$AJ$7 & \"'!\" & AF155),0) + IF(Setup!$AJ$8<>\"\",INDIRECT(\"'\" & Setup!$AJ$8 & \"'!\" & AF155),0) + IF(Setup!$AJ$9<>\"\",INDIRECT(\"'\" & Setup!$AJ$9 & \"'!\" & AF155),0) + IF(Setup!$AJ$10<>\"\",INDIRECT(\"'\" & Setup!$AJ$10 & \"'!\" & AF155),0) + IF(Setup!$AJ$11<>\"\",INDIRECT(\"'\" & Setup!$AJ$11 & \"'!\" & AF155),0) + IF(Setup!$AJ$12<>\"\",INDIRECT(\"'\" & Setup!$AJ$12 & \"'!\" & AF155),0)","v":0},null,{"$f":"IF(B155=0,\"\",IF(LEFT(B155,1)=\"1\",\"1\",\"2\"))","v":""},{"$nulls":3},{"$f":"IF(C155=0,\"\",LEFT(INDEX(Lists!$H$5:$H$49,MATCH(C155,Lists!$G$5:$G$49,0),1),1))","v":""},null,{"$f":"IF(AND(H155=0,I155=0),\"\",IF(H155>0,I155/H155,I155))","v":""},{"$f":"IF(AND(H155=0,I155=0),\"\",IF(I155>0,H155/I155,0))","v":""},{"$f":"IF(AND(L155=0,M155=0),\"\",IF(L155>0,M155/L155,M155))","v":""},{"$f":"IF(AND(L155=0,M155=0),\"\",IF(M155>0,L155/M155,0))","v":""},{"$f":"IF(AND(P155=0,Q155=0),\"\",IF(P155>0,Q155/P155,Q155))","v":""},{"$f":"IF(AND(P155=0,Q155=0),\"\",IF(Q155>0,P155/Q155,0))","v":""},{"$f":"IF(AND(T155=0,U155=0),\"\",IF(T155>0,U155/T155,U155))","v":""},{"$f":"IF(AND(T155=0,U155=0),\"\",IF(U155>0,T155/U155,0))","v":""},{"$f":"IF(AND(X155=0,Y155=0),\"\",IF(X155>0,Y155/X155,Y155))","v":""},{"$f":"IF(AND(X155=0,Y155=0),\"\",IF(Y155>0,X155/Y155,0))","v":""},{"$nulls":6},{"$f":"IF(Setup!$AG$7<>\"\",INDIRECT(\"'\" & Setup!$AG$7 & \"'!\" & AD155),0) + IF(Setup!$AG$8<>\"\",INDIRECT(\"'\" & Setup!$AG$8 & \"'!\" & AD155),0) + IF(Setup!$AG$9<>\"\",INDIRECT(\"'\" & Setup!$AG$9 & \"'!\" & AD155),0) + IF(Setup!$AG$10<>\"\",INDIRECT(\"'\" & Setup!$AG$10 & \"'!\" & AD155),0) + IF(Setup!$AG$11<>\"\",INDIRECT(\"'\" & Setup!$AG$11 & \"'!\" & AD155),0) + IF(Setup!$AG$12<>\"\",INDIRECT(\"'\" & Setup!$AG$12 & \"'!\" & AD155),0)","v":0},{"$f":"IF(Setup!$AG$7<>\"\",INDIRECT(\"'\" & Setup!$AG$7 & \"'!\" & AE155),0) + IF(Setup!$AG$8<>\"\",INDIRECT(\"'\" & Setup!$AG$8 & \"'!\" & AE155),0) + IF(Setup!$AG$9<>\"\",INDIRECT(\"'\" & Setup!$AG$9 & \"'!\" & AE155),0) + IF(Setup!$AG$10<>\"\",INDIRECT(\"'\" & Setup!$AG$10 & \"'!\" & AE155),0) + IF(Setup!$AG$11<>\"\",INDIRECT(\"'\" & Setup!$AG$11 & \"'!\" & AE155),0) + IF(Setup!$AG$12<>\"\",INDIRECT(\"'\" & Setup!$AG$12 & \"'!\" & AE155),0)","v":0},{"$f":"IF(Setup!$AH$7<>\"\",INDIRECT(\"'\" & Setup!$AH$7 & \"'!\" & AD155),0) + IF(Setup!$AH$8<>\"\",INDIRECT(\"'\" & Setup!$AH$8 & \"'!\" & AD155),0) + IF(Setup!$AH$9<>\"\",INDIRECT(\"'\" & Setup!$AH$9 & \"'!\" & AD155),0) + IF(Setup!$AH$10<>\"\",INDIRECT(\"'\" & Setup!$AH$10 & \"'!\" & AD155),0) + IF(Setup!$AH$11<>\"\",INDIRECT(\"'\" & Setup!$AH$11 & \"'!\" & AD155),0) + IF(Setup!$AH$12<>\"\",INDIRECT(\"'\" & Setup!$AH$12 & \"'!\" & AD155),0)","v":0},{"$f":"IF(Setup!$AH$7<>\"\",INDIRECT(\"'\" & Setup!$AH$7 & \"'!\" & AE155),0) + IF(Setup!$AH$8<>\"\",INDIRECT(\"'\" & Setup!$AH$8 & \"'!\" & AE155),0) + IF(Setup!$AH$9<>\"\",INDIRECT(\"'\" & Setup!$AH$9 & \"'!\" & AE155),0) + IF(Setup!$AH$10<>\"\",INDIRECT(\"'\" & Setup!$AH$10 & \"'!\" & AE155),0) + IF(Setup!$AH$11<>\"\",INDIRECT(\"'\" & Setup!$AH$11 & \"'!\" & AE155),0) + IF(Setup!$AH$12<>\"\",INDIRECT(\"'\" & Setup!$AH$12 & \"'!\" & AE155),0)","v":0},{"$f":"IF(Setup!$AI$7<>\"\",INDIRECT(\"'\" & Setup!$AI$7 & \"'!\" & AD155),0) + IF(Setup!$AI$8<>\"\",INDIRECT(\"'\" & Setup!$AI$8 & \"'!\" & AD155),0) + IF(Setup!$AI$9<>\"\",INDIRECT(\"'\" & Setup!$AI$9 & \"'!\" & AD155),0) + IF(Setup!$AI$10<>\"\",INDIRECT(\"'\" & Setup!$AI$10 & \"'!\" & AD155),0) + IF(Setup!$AI$11<>\"\",INDIRECT(\"'\" & Setup!$AI$11 & \"'!\" & AD155),0) + IF(Setup!$AI$12<>\"\",INDIRECT(\"'\" & Setup!$AI$12 & \"'!\" & AD155),0)","v":0},{"$f":"IF(Setup!$AI$7<>\"\",INDIRECT(\"'\" & Setup!$AI$7 & \"'!\" & AE155),0) + IF(Setup!$AI$8<>\"\",INDIRECT(\"'\" & Setup!$AI$8 & \"'!\" & AE155),0) + IF(Setup!$AI$9<>\"\",INDIRECT(\"'\" & Setup!$AI$9 & \"'!\" & AE155),0) + IF(Setup!$AI$10<>\"\",INDIRECT(\"'\" & Setup!$AI$10 & \"'!\" & AE155),0) + IF(Setup!$AI$11<>\"\",INDIRECT(\"'\" & Setup!$AI$11 & \"'!\" & AE155),0) + IF(Setup!$AI$12<>\"\",INDIRECT(\"'\" & Setup!$AI$12 & \"'!\" & AE155),0)","v":0},{"$f":"IF(Setup!$AJ$7<>\"\",INDIRECT(\"'\" & Setup!$AJ$7 & \"'!\" & AD155),0) + IF(Setup!$AJ$8<>\"\",INDIRECT(\"'\" & Setup!$AJ$8 & \"'!\" & AD155),0) + IF(Setup!$AJ$9<>\"\",INDIRECT(\"'\" & Setup!$AJ$9 & \"'!\" & AD155),0) + IF(Setup!$AJ$10<>\"\",INDIRECT(\"'\" & Setup!$AJ$10 & \"'!\" & AD155),0) + IF(Setup!$AJ$11<>\"\",INDIRECT(\"'\" & Setup!$AJ$11 & \"'!\" & AD155),0) + IF(Setup!$AJ$12<>\"\",INDIRECT(\"'\" & Setup!$AJ$12 & \"'!\" & AD155),0)","v":0},{"$f":"IF(Setup!$AJ$7<>\"\",INDIRECT(\"'\" & Setup!$AJ$7 & \"'!\" & AE155),0) + IF(Setup!$AJ$8<>\"\",INDIRECT(\"'\" & Setup!$AJ$8 & \"'!\" & AE155),0) + IF(Setup!$AJ$9<>\"\",INDIRECT(\"'\" & Setup!$AJ$9 & \"'!\" & AE155),0) + IF(Setup!$AJ$10<>\"\",INDIRECT(\"'\" & Setup!$AJ$10 & \"'!\" & AE155),0) + IF(Setup!$AJ$11<>\"\",INDIRECT(\"'\" & Setup!$AJ$11 & \"'!\" & AE155),0) + IF(Setup!$AJ$12<>\"\",INDIRECT(\"'\" & Setup!$AJ$12 & \"'!\" & AE155),0)","v":0}]
[{"$f":"Planning!A139","v":"I131"},{"$f":"Planning!B139","v":0},{"$f":"Planning!C139","v":0},{"$f":"Planning!D139","v":0},{"$f":"Planning!E139","v":0},{"$f":"Planning!G139","v":0},null,0,0,{"$f":"IF(AND($AR156=\"2\",$AB155<>Lists!$A$17),AU156,AT156)","v":""},"",0,0,{"$f":"IF(AND($AR156=\"2\",$AB156<>Lists!$A$17),AW156,AV156)","v":""},"",0,0,{"$f":"IF(AND($AR156=\"2\",$AB156<>Lists!$A$17),AY156,AX156)","v":""},"",0,0,{"$f":"IF(AND($AR156=\"2\",$AB156<>Lists!$A$17),BA156,AZ156)","v":""},"",0,0,{"$f":"IF(AND($AR156=\"2\",$AB156<>Lists!$A$17),BC156,BB156)","v":""},"",{"$f":"Planning!H139","v":0},"00","H155","J155","I155","",null,{"$f":"IF(Setup!$AG$7<>\"\",INDIRECT(\"'\" & Setup!$AG$7 & \"'!\" & AF156),0) + IF(Setup!$AG$8<>\"\",INDIRECT(\"'\" & Setup!$AG$8 & \"'!\" & AF156),0) + IF(Setup!$AG$9<>\"\",INDIRECT(\"'\" & Setup!$AG$9 & \"'!\" & AF156),0) + IF(Setup!$AG$10<>\"\",INDIRECT(\"'\" & Setup!$AG$10 & \"'!\" & AF156),0) + IF(Setup!$AG$11<>\"\",INDIRECT(\"'\" & Setup!$AG$11 & \"'!\" & AF156),0) + IF(Setup!$AG$12<>\"\",INDIRECT(\"'\" & Setup!$AG$12 & \"'!\" & AF156),0)","v":0},{"$f":"IF(Setup!$AH$7<>\"\",INDIRECT(\"'\" & Setup!$AH$7 & \"'!\" & AF156),0) + IF(Setup!$AH$8<>\"\",INDIRECT(\"'\" & Setup!$AH$8 & \"'!\" & AF156),0) + IF(Setup!$AH$9<>\"\",INDIRECT(\"'\" & Setup!$AH$9 & \"'!\" & AF156),0) + IF(Setup!$AH$10<>\"\",INDIRECT(\"'\" & Setup!$AH$10 & \"'!\" & AF156),0) + IF(Setup!$AH$11<>\"\",INDIRECT(\"'\" & Setup!$AH$11 & \"'!\" & AF156),0) + IF(Setup!$AH$12<>\"\",INDIRECT(\"'\" & Setup!$AH$12 & \"'!\" & AF156),0)","v":0},{"$f":"IF(Setup!$AI$7<>\"\",INDIRECT(\"'\" & Setup!$AI$7 & \"'!\" & AF156),0) + IF(Setup!$AI$8<>\"\",INDIRECT(\"'\" & Setup!$AI$8 & \"'!\" & AF156),0) + IF(Setup!$AI$9<>\"\",INDIRECT(\"'\" & Setup!$AI$9 & \"'!\" & AF156),0) + IF(Setup!$AI$10<>\"\",INDIRECT(\"'\" & Setup!$AI$10 & \"'!\" & AF156),0) + IF(Setup!$AI$11<>\"\",INDIRECT(\"'\" & Setup!$AI$11 & \"'!\" & AF156),0) + IF(Setup!$AI$12<>\"\",INDIRECT(\"'\" & Setup!$AI$12 & \"'!\" & AF156),0)","v":0},{"$f":"IF(Setup!$AJ$7<>\"\",INDIRECT(\"'\" & Setup!$AJ$7 & \"'!\" & AF156),0) + IF(Setup!$AJ$8<>\"\",INDIRECT(\"'\" & Setup!$AJ$8 & \"'!\" & AF156),0) + IF(Setup!$AJ$9<>\"\",INDIRECT(\"'\" & Setup!$AJ$9 & \"'!\" & AF156),0) + IF(Setup!$AJ$10<>\"\",INDIRECT(\"'\" & Setup!$AJ$10 & \"'!\" & AF156),0) + IF(Setup!$AJ$11<>\"\",INDIRECT(\"'\" & Setup!$AJ$11 & \"'!\" & AF156),0) + IF(Setup!$AJ$12<>\"\",INDIRECT(\"'\" & Setup!$AJ$12 & \"'!\" & AF156),0)","v":0},null,"",{"$nulls":3},{"$f":"IF(C156=0,\"\",LEFT(INDEX(Lists!$H$5:$H$49,MATCH(C156,Lists!$G$5:$G$49,0),1),1))","v":""},null,"","","","","","","","","","",{"$nulls":6},{"$f":"IF(Setup!$AG$7<>\"\",INDIRECT(\"'\" & Setup!$AG$7 & \"'!\" & AD156),0) + IF(Setup!$AG$8<>\"\",INDIRECT(\"'\" & Setup!$AG$8 & \"'!\" & AD156),0) + IF(Setup!$AG$9<>\"\",INDIRECT(\"'\" & Setup!$AG$9 & \"'!\" & AD156),0) + IF(Setup!$AG$10<>\"\",INDIRECT(\"'\" & Setup!$AG$10 & \"'!\" & AD156),0) + IF(Setup!$AG$11<>\"\",INDIRECT(\"'\" & Setup!$AG$11 & \"'!\" & AD156),0) + IF(Setup!$AG$12<>\"\",INDIRECT(\"'\" & Setup!$AG$12 & \"'!\" & AD156),0)","v":0},{"$f":"IF(Setup!$AG$7<>\"\",INDIRECT(\"'\" & Setup!$AG$7 & \"'!\" & AE156),0) + IF(Setup!$AG$8<>\"\",INDIRECT(\"'\" & Setup!$AG$8 & \"'!\" & AE156),0) + IF(Setup!$AG$9<>\"\",INDIRECT(\"'\" & Setup!$AG$9 & \"'!\" & AE156),0) + IF(Setup!$AG$10<>\"\",INDIRECT(\"'\" & Setup!$AG$10 & \"'!\" & AE156),0) + IF(Setup!$AG$11<>\"\",INDIRECT(\"'\" & Setup!$AG$11 & \"'!\" & AE156),0) + IF(Setup!$AG$12<>\"\",INDIRECT(\"'\" & Setup!$AG$12 & \"'!\" & AE156),0)","v":0},{"$f":"IF(Setup!$AH$7<>\"\",INDIRECT(\"'\" & Setup!$AH$7 & \"'!\" & AD156),0) + IF(Setup!$AH$8<>\"\",INDIRECT(\"'\" & Setup!$AH$8 & \"'!\" & AD156),0) + IF(Setup!$AH$9<>\"\",INDIRECT(\"'\" & Setup!$AH$9 & \"'!\" & AD156),0) + IF(Setup!$AH$10<>\"\",INDIRECT(\"'\" & Setup!$AH$10 & \"'!\" & AD156),0) + IF(Setup!$AH$11<>\"\",INDIRECT(\"'\" & Setup!$AH$11 & \"'!\" & AD156),0) + IF(Setup!$AH$12<>\"\",INDIRECT(\"'\" & Setup!$AH$12 & \"'!\" & AD156),0)","v":0},{"$f":"IF(Setup!$AH$7<>\"\",INDIRECT(\"'\" & Setup!$AH$7 & \"'!\" & AE156),0) + IF(Setup!$AH$8<>\"\",INDIRECT(\"'\" & Setup!$AH$8 & \"'!\" & AE156),0) + IF(Setup!$AH$9<>\"\",INDIRECT(\"'\" & Setup!$AH$9 & \"'!\" & AE156),0) + IF(Setup!$AH$10<>\"\",INDIRECT(\"'\" & Setup!$AH$10 & \"'!\" & AE156),0) + IF(Setup!$AH$11<>\"\",INDIRECT(\"'\" & Setup!$AH$11 & \"'!\" & AE156),0) + IF(Setup!$AH$12<>\"\",INDIRECT(\"'\" & Setup!$AH$12 & \"'!\" & AE156),0)","v":0},{"$f":"IF(Setup!$AI$7<>\"\",INDIRECT(\"'\" & Setup!$AI$7 & \"'!\" & AD156),0) + IF(Setup!$AI$8<>\"\",INDIRECT(\"'\" & Setup!$AI$8 & \"'!\" & AD156),0) + IF(Setup!$AI$9<>\"\",INDIRECT(\"'\" & Setup!$AI$9 & \"'!\" & AD156),0) + IF(Setup!$AI$10<>\"\",INDIRECT(\"'\" & Setup!$AI$10 & \"'!\" & AD156),0) + IF(Setup!$AI$11<>\"\",INDIRECT(\"'\" & Setup!$AI$11 & \"'!\" & AD156),0) + IF(Setup!$AI$12<>\"\",INDIRECT(\"'\" & Setup!$AI$12 & \"'!\" & AD156),0)","v":0},{"$f":"IF(Setup!$AI$7<>\"\",INDIRECT(\"'\" & Setup!$AI$7 & \"'!\" & AE156),0) + IF(Setup!$AI$8<>\"\",INDIRECT(\"'\" & Setup!$AI$8 & \"'!\" & AE156),0) + IF(Setup!$AI$9<>\"\",INDIRECT(\"'\" & Setup!$AI$9 & \"'!\" & AE156),0) + IF(Setup!$AI$10<>\"\",INDIRECT(\"'\" & Setup!$AI$10 & \"'!\" & AE156),0) + IF(Setup!$AI$11<>\"\",INDIRECT(\"'\" & Setup!$AI$11 & \"'!\" & AE156),0) + IF(Setup!$AI$12<>\"\",INDIRECT(\"'\" & Setup!$AI$12 & \"'!\" & AE156),0)","v":0},{"$f":"IF(Setup!$AJ$7<>\"\",INDIRECT(\"'\" & Setup!$AJ$7 & \"'!\" & AD156),0) + IF(Setup!$AJ$8<>\"\",INDIRECT(\"'\" & Setup!$AJ$8 & \"'!\" & AD156),0) + IF(Setup!$AJ$9<>\"\",INDIRECT(\"'\" & Setup!$AJ$9 & \"'!\" & AD156),0) + IF(Setup!$AJ$10<>\"\",INDIRECT(\"'\" & Setup!$AJ$10 & \"'!\" & AD156),0) + IF(Setup!$AJ$11<>\"\",INDIRECT(\"'\" & Setup!$AJ$11 & \"'!\" & AD156),0) + IF(Setup!$AJ$12<>\"\",INDIRECT(\"'\" & Setup!$AJ$12 & \"'!\" & AD156),0)","v":0},{"$f":"IF(Setup!$AJ$7<>\"\",INDIRECT(\"'\" & Setup!$AJ$7 & \"'!\" & AE156),0) + IF(Setup!$AJ$8<>\"\",INDIRECT(\"'\" & Setup!$AJ$8 & \"'!\" & AE156),0) + IF(Setup!$AJ$9<>\"\",INDIRECT(\"'\" & Setup!$AJ$9 & \"'!\" & AE156),0) + IF(Setup!$AJ$10<>\"\",INDIRECT(\"'\" & Setup!$AJ$10 & \"'!\" & AE156),0) + IF(Setup!$AJ$11<>\"\",INDIRECT(\"'\" & Setup!$AJ$11 & \"'!\" & AE156),0) + IF(Setup!$AJ$12<>\"\",INDIRECT(\"'\" & Setup!$AJ$12 & \"'!\" & AE156),0)","v":0}]
[{"$f":"Planning!A140","v":"I132"},{"$f":"Planning!B140","v":0},{"$f":"Planning!C140","v":0},{"$f":"Planning!D140","v":0},{"$f":"Planning!E140","v":0},{"$f":"Planning!G140","v":0},null,0,0,{"$f":"IF(AND($AR157=\"2\",$AB156<>Lists!$A$17),AU157,AT157)","v":""},"",0,0,{"$f":"IF(AND($AR157=\"2\",$AB157<>Lists!$A$17),AW157,AV157)","v":""},"",0,0,{"$f":"IF(AND($AR157=\"2\",$AB157<>Lists!$A$17),AY157,AX157)","v":""},"",0,0,{"$f":"IF(AND($AR157=\"2\",$AB157<>Lists!$A$17),BA157,AZ157)","v":""},"",0,0,{"$f":"IF(AND($AR157=\"2\",$AB157<>Lists!$A$17),BC157,BB157)","v":""},"",{"$f":"Planning!H140","v":0},"00","H156","J156","I156","",null,{"$f":"IF(Setup!$AG$7<>\"\",INDIRECT(\"'\" & Setup!$AG$7 & \"'!\" & AF157),0) + IF(Setup!$AG$8<>\"\",INDIRECT(\"'\" & Setup!$AG$8 & \"'!\" & AF157),0) + IF(Setup!$AG$9<>\"\",INDIRECT(\"'\" & Setup!$AG$9 & \"'!\" & AF157),0) + IF(Setup!$AG$10<>\"\",INDIRECT(\"'\" & Setup!$AG$10 & \"'!\" & AF157),0) + IF(Setup!$AG$11<>\"\",INDIRECT(\"'\" & Setup!$AG$11 & \"'!\" & AF157),0) + IF(Setup!$AG$12<>\"\",INDIRECT(\"'\" & Setup!$AG$12 & \"'!\" & AF157),0)","v":0},{"$f":"IF(Setup!$AH$7<>\"\",INDIRECT(\"'\" & Setup!$AH$7 & \"'!\" & AF157),0) + IF(Setup!$AH$8<>\"\",INDIRECT(\"'\" & Setup!$AH$8 & \"'!\" & AF157),0) + IF(Setup!$AH$9<>\"\",INDIRECT(\"'\" & Setup!$AH$9 & \"'!\" & AF157),0) + IF(Setup!$AH$10<>\"\",INDIRECT(\"'\" & Setup!$AH$10 & \"'!\" & AF157),0) + IF(Setup!$AH$11<>\"\",INDIRECT(\"'\" & Setup!$AH$11 & \"'!\" & AF157),0) + IF(Setup!$AH$12<>\"\",INDIRECT(\"'\" & Setup!$AH$12 & \"'!\" & AF157),0)","v":0},{"$f":"IF(Setup!$AI$7<>\"\",INDIRECT(\"'\" & Setup!$AI$7 & \"'!\" & AF157),0) + IF(Setup!$AI$8<>\"\",INDIRECT(\"'\" & Setup!$AI$8 & \"'!\" & AF157),0) + IF(Setup!$AI$9<>\"\",INDIRECT(\"'\" & Setup!$AI$9 & \"'!\" & AF157),0) + IF(Setup!$AI$10<>\"\",INDIRECT(\"'\" & Setup!$AI$10 & \"'!\" & AF157),0) + IF(Setup!$AI$11<>\"\",INDIRECT(\"'\" & Setup!$AI$11 & \"'!\" & AF157),0) + IF(Setup!$AI$12<>\"\",INDIRECT(\"'\" & Setup!$AI$12 & \"'!\" & AF157),0)","v":0},{"$f":"IF(Setup!$AJ$7<>\"\",INDIRECT(\"'\" & Setup!$AJ$7 & \"'!\" & AF157),0) + IF(Setup!$AJ$8<>\"\",INDIRECT(\"'\" & Setup!$AJ$8 & \"'!\" & AF157),0) + IF(Setup!$AJ$9<>\"\",INDIRECT(\"'\" & Setup!$AJ$9 & \"'!\" & AF157),0) + IF(Setup!$AJ$10<>\"\",INDIRECT(\"'\" & Setup!$AJ$10 & \"'!\" & AF157),0) + IF(Setup!$AJ$11<>\"\",INDIRECT(\"'\" & Setup!$AJ$11 & \"'!\" & AF157),0) + IF(Setup!$AJ$12<>\"\",INDIRECT(\"'\" & Setup!$AJ$12 & \"'!\" & AF157),0)","v":0},null,"",{"$nulls":3},{"$f":"IF(C157=0,\"\",LEFT(INDEX(Lists!$H$5:$H$49,MATCH(C157,Lists!$G$5:$G$49,0),1),1))","v":""},null,"","","","","","","","","","",{"$nulls":6},{"$f":"IF(Setup!$AG$7<>\"\",INDIRECT(\"'\" & Setup!$AG$7 & \"'!\" & AD157),0) + IF(Setup!$AG$8<>\"\",INDIRECT(\"'\" & Setup!$AG$8 & \"'!\" & AD157),0) + IF(Setup!$AG$9<>\"\",INDIRECT(\"'\" & Setup!$AG$9 & \"'!\" & AD157),0) + IF(Setup!$AG$10<>\"\",INDIRECT(\"'\" & Setup!$AG$10 & \"'!\" & AD157),0) + IF(Setup!$AG$11<>\"\",INDIRECT(\"'\" & Setup!$AG$11 & \"'!\" & AD157),0) + IF(Setup!$AG$12<>\"\",INDIRECT(\"'\" & Setup!$AG$12 & \"'!\" & AD157),0)","v":0},{"$f":"IF(Setup!$AG$7<>\"\",INDIRECT(\"'\" & Setup!$AG$7 & \"'!\" & AE157),0) + IF(Setup!$AG$8<>\"\",INDIRECT(\"'\" & Setup!$AG$8 & \"'!\" & AE157),0) + IF(Setup!$AG$9<>\"\",INDIRECT(\"'\" & Setup!$AG$9 & \"'!\" & AE157),0) + IF(Setup!$AG$10<>\"\",INDIRECT(\"'\" & Setup!$AG$10 & \"'!\" & AE157),0) + IF(Setup!$AG$11<>\"\",INDIRECT(\"'\" & Setup!$AG$11 & \"'!\" & AE157),0) + IF(Setup!$AG$12<>\"\",INDIRECT(\"'\" & Setup!$AG$12 & \"'!\" & AE157),0)","v":0},{"$f":"IF(Setup!$AH$7<>\"\",INDIRECT(\"'\" & Setup!$AH$7 & \"'!\" & AD157),0) + IF(Setup!$AH$8<>\"\",INDIRECT(\"'\" & Setup!$AH$8 & \"'!\" & AD157),0) + IF(Setup!$AH$9<>\"\",INDIRECT(\"'\" & Setup!$AH$9 & \"'!\" & AD157),0) + IF(Setup!$AH$10<>\"\",INDIRECT(\"'\" & Setup!$AH$10 & \"'!\" & AD157),0) + IF(Setup!$AH$11<>\"\",INDIRECT(\"'\" & Setup!$AH$11 & \"'!\" & AD157),0) + IF(Setup!$AH$12<>\"\",INDIRECT(\"'\" & Setup!$AH$12 & \"'!\" & AD157),0)","v":0},{"$f":"IF(Setup!$AH$7<>\"\",INDIRECT(\"'\" & Setup!$AH$7 & \"'!\" & AE157),0) + IF(Setup!$AH$8<>\"\",INDIRECT(\"'\" & Setup!$AH$8 & \"'!\" & AE157),0) + IF(Setup!$AH$9<>\"\",INDIRECT(\"'\" & Setup!$AH$9 & \"'!\" & AE157),0) + IF(Setup!$AH$10<>\"\",INDIRECT(\"'\" & Setup!$AH$10 & \"'!\" & AE157),0) + IF(Setup!$AH$11<>\"\",INDIRECT(\"'\" & Setup!$AH$11 & \"'!\" & AE157),0) + IF(Setup!$AH$12<>\"\",INDIRECT(\"'\" & Setup!$AH$12 & \"'!\" & AE157),0)","v":0},{"$f":"IF(Setup!$AI$7<>\"\",INDIRECT(\"'\" & Setup!$AI$7 & \"'!\" & AD157),0) + IF(Setup!$AI$8<>\"\",INDIRECT(\"'\" & Setup!$AI$8 & \"'!\" & AD157),0) + IF(Setup!$AI$9<>\"\",INDIRECT(\"'\" & Setup!$AI$9 & \"'!\" & AD157),0) + IF(Setup!$AI$10<>\"\",INDIRECT(\"'\" & Setup!$AI$10 & \"'!\" & AD157),0) + IF(Setup!$AI$11<>\"\",INDIRECT(\"'\" & Setup!$AI$11 & \"'!\" & AD157),0) + IF(Setup!$AI$12<>\"\",INDIRECT(\"'\" & Setup!$AI$12 & \"'!\" & AD157),0)","v":0},{"$f":"IF(Setup!$AI$7<>\"\",INDIRECT(\"'\" & Setup!$AI$7 & \"'!\" & AE157),0) + IF(Setup!$AI$8<>\"\",INDIRECT(\"'\" & Setup!$AI$8 & \"'!\" & AE157),0) + IF(Setup!$AI$9<>\"\",INDIRECT(\"'\" & Setup!$AI$9 & \"'!\" & AE157),0) + IF(Setup!$AI$10<>\"\",INDIRECT(\"'\" & Setup!$AI$10 & \"'!\" & AE157),0) + IF(Setup!$AI$11<>\"\",INDIRECT(\"'\" & Setup!$AI$11 & \"'!\" & AE157),0) + IF(Setup!$AI$12<>\"\",INDIRECT(\"'\" & Setup!$AI$12 & \"'!\" & AE157),0)","v":0},{"$f":"IF(Setup!$AJ$7<>\"\",INDIRECT(\"'\" & Setup!$AJ$7 & \"'!\" & AD157),0) + IF(Setup!$AJ$8<>\"\",INDIRECT(\"'\" & Setup!$AJ$8 & \"'!\" & AD157),0) + IF(Setup!$AJ$9<>\"\",INDIRECT(\"'\" & Setup!$AJ$9 & \"'!\" & AD157),0) + IF(Setup!$AJ$10<>\"\",INDIRECT(\"'\" & Setup!$AJ$10 & \"'!\" & AD157),0) + IF(Setup!$AJ$11<>\"\",INDIRECT(\"'\" & Setup!$AJ$11 & \"'!\" & AD157),0) + IF(Setup!$AJ$12<>\"\",INDIRECT(\"'\" & Setup!$AJ$12 & \"'!\" & AD157),0)","v":0},{"$f":"IF(Setup!$AJ$7<>\"\",INDIRECT(\"'\" & Setup!$AJ$7 & \"'!\" & AE157),0) + IF(Setup!$AJ$8<>\"\",INDIRECT(\"'\" & Setup!$AJ$8 & \"'!\" & AE157),0) + IF(Setup!$AJ$9<>\"\",INDIRECT(\"'\" & Setup!$AJ$9 & \"'!\" & AE157),0) + IF(Setup!$AJ$10<>\"\",INDIRECT(\"'\" & Setup!$AJ$10 & \"'!\" & AE157),0) + IF(Setup!$AJ$11<>\"\",INDIRECT(\"'\" & Setup!$AJ$11 & \"'!\" & AE157),0) + IF(Setup!$AJ$12<>\"\",INDIRECT(\"'\" & Setup!$AJ$12 & \"'!\" & AE157),0)","v":0}]
[{"$f":"Planning!A141","v":"I133"},{"$f":"Planning!B141","v":0},{"$f":"Planning!C141","v":0},{"$f":"Planning!D141","v":0},{"$f":"Planning!E141","v":0},{"$f":"Planning!G141","v":0},null,0,0,{"$f":"IF(AND($AR158=\"2\",$AB157<>Lists!$A$17),AU158,AT158)","v":""},"",0,0,{"$f":"IF(AND($AR158=\"2\",$AB158<>Lists!$A$17),AW158,AV158)","v":""},"",0,0,{"$f":"IF(AND($AR158=\"2\",$AB158<>Lists!$A$17),AY158,AX158)","v":""},"",0,0,{"$f":"IF(AND($AR158=\"2\",$AB158<>Lists!$A$17),BA158,AZ158)","v":""},"",0,0,{"$f":"IF(AND($AR158=\"2\",$AB158<>Lists!$A$17),BC158,BB158)","v":""},"",{"$f":"Planning!H141","v":0},"00","H157","J157","I157","",null,{"$f":"IF(Setup!$AG$7<>\"\",INDIRECT(\"'\" & Setup!$AG$7 & \"'!\" & AF158),0) + IF(Setup!$AG$8<>\"\",INDIRECT(\"'\" & Setup!$AG$8 & \"'!\" & AF158),0) + IF(Setup!$AG$9<>\"\",INDIRECT(\"'\" & Setup!$AG$9 & \"'!\" & AF158),0) + IF(Setup!$AG$10<>\"\",INDIRECT(\"'\" & Setup!$AG$10 & \"'!\" & AF158),0) + IF(Setup!$AG$11<>\"\",INDIRECT(\"'\" & Setup!$AG$11 & \"'!\" & AF158),0) + IF(Setup!$AG$12<>\"\",INDIRECT(\"'\" & Setup!$AG$12 & \"'!\" & AF158),0)","v":0},{"$f":"IF(Setup!$AH$7<>\"\",INDIRECT(\"'\" & Setup!$AH$7 & \"'!\" & AF158),0) + IF(Setup!$AH$8<>\"\",INDIRECT(\"'\" & Setup!$AH$8 & \"'!\" & AF158),0) + IF(Setup!$AH$9<>\"\",INDIRECT(\"'\" & Setup!$AH$9 & \"'!\" & AF158),0) + IF(Setup!$AH$10<>\"\",INDIRECT(\"'\" & Setup!$AH$10 & \"'!\" & AF158),0) + IF(Setup!$AH$11<>\"\",INDIRECT(\"'\" & Setup!$AH$11 & \"'!\" & AF158),0) + IF(Setup!$AH$12<>\"\",INDIRECT(\"'\" & Setup!$AH$12 & \"'!\" & AF158),0)","v":0},{"$f":"IF(Setup!$AI$7<>\"\",INDIRECT(\"'\" & Setup!$AI$7 & \"'!\" & AF158),0) + IF(Setup!$AI$8<>\"\",INDIRECT(\"'\" & Setup!$AI$8 & \"'!\" & AF158),0) + IF(Setup!$AI$9<>\"\",INDIRECT(\"'\" & Setup!$AI$9 & \"'!\" & AF158),0) + IF(Setup!$AI$10<>\"\",INDIRECT(\"'\" & Setup!$AI$10 & \"'!\" & AF158),0) + IF(Setup!$AI$11<>\"\",INDIRECT(\"'\" & Setup!$AI$11 & \"'!\" & AF158),0) + IF(Setup!$AI$12<>\"\",INDIRECT(\"'\" & Setup!$AI$12 & \"'!\" & AF158),0)","v":0},{"$f":"IF(Setup!$AJ$7<>\"\",INDIRECT(\"'\" & Setup!$AJ$7 & \"'!\" & AF158),0) + IF(Setup!$AJ$8<>\"\",INDIRECT(\"'\" & Setup!$AJ$8 & \"'!\" & AF158),0) + IF(Setup!$AJ$9<>\"\",INDIRECT(\"'\" & Setup!$AJ$9 & \"'!\" & AF158),0) + IF(Setup!$AJ$10<>\"\",INDIRECT(\"'\" & Setup!$AJ$10 & \"'!\" & AF158),0) + IF(Setup!$AJ$11<>\"\",INDIRECT(\"'\" & Setup!$AJ$11 & \"'!\" & AF158),0) + IF(Setup!$AJ$12<>\"\",INDIRECT(\"'\" & Setup!$AJ$12 & \"'!\" & AF158),0)","v":0},null,"",{"$nulls":3},{"$f":"IF(C158=0,\"\",LEFT(INDEX(Lists!$H$5:$H$49,MATCH(C158,Lists!$G$5:$G$49,0),1),1))","v":""},null,"","","","","","","","","","",{"$nulls":6},{"$f":"IF(Setup!$AG$7<>\"\",INDIRECT(\"'\" & Setup!$AG$7 & \"'!\" & AD158),0) + IF(Setup!$AG$8<>\"\",INDIRECT(\"'\" & Setup!$AG$8 & \"'!\" & AD158),0) + IF(Setup!$AG$9<>\"\",INDIRECT(\"'\" & Setup!$AG$9 & \"'!\" & AD158),0) + IF(Setup!$AG$10<>\"\",INDIRECT(\"'\" & Setup!$AG$10 & \"'!\" & AD158),0) + IF(Setup!$AG$11<>\"\",INDIRECT(\"'\" & Setup!$AG$11 & \"'!\" & AD158),0) + IF(Setup!$AG$12<>\"\",INDIRECT(\"'\" & Setup!$AG$12 & \"'!\" & AD158),0)","v":0},{"$f":"IF(Setup!$AG$7<>\"\",INDIRECT(\"'\" & Setup!$AG$7 & \"'!\" & AE158),0) + IF(Setup!$AG$8<>\"\",INDIRECT(\"'\" & Setup!$AG$8 & \"'!\" & AE158),0) + IF(Setup!$AG$9<>\"\",INDIRECT(\"'\" & Setup!$AG$9 & \"'!\" & AE158),0) + IF(Setup!$AG$10<>\"\",INDIRECT(\"'\" & Setup!$AG$10 & \"'!\" & AE158),0) + IF(Setup!$AG$11<>\"\",INDIRECT(\"'\" & Setup!$AG$11 & \"'!\" & AE158),0) + IF(Setup!$AG$12<>\"\",INDIRECT(\"'\" & Setup!$AG$12 & \"'!\" & AE158),0)","v":0},{"$f":"IF(Setup!$AH$7<>\"\",INDIRECT(\"'\" & Setup!$AH$7 & \"'!\" & AD158),0) + IF(Setup!$AH$8<>\"\",INDIRECT(\"'\" & Setup!$AH$8 & \"'!\" & AD158),0) + IF(Setup!$AH$9<>\"\",INDIRECT(\"'\" & Setup!$AH$9 & \"'!\" & AD158),0) + IF(Setup!$AH$10<>\"\",INDIRECT(\"'\" & Setup!$AH$10 & \"'!\" & AD158),0) + IF(Setup!$AH$11<>\"\",INDIRECT(\"'\" & Setup!$AH$11 & \"'!\" & AD158),0) + IF(Setup!$AH$12<>\"\",INDIRECT(\"'\" & Setup!$AH$12 & \"'!\" & AD158),0)","v":0},{"$f":"IF(Setup!$AH$7<>\"\",INDIRECT(\"'\" & Setup!$AH$7 & \"'!\" & AE158),0) + IF(Setup!$AH$8<>\"\",INDIRECT(\"'\" & Setup!$AH$8 & \"'!\" & AE158),0) + IF(Setup!$AH$9<>\"\",INDIRECT(\"'\" & Setup!$AH$9 & \"'!\" & AE158),0) + IF(Setup!$AH$10<>\"\",INDIRECT(\"'\" & Setup!$AH$10 & \"'!\" & AE158),0) + IF(Setup!$AH$11<>\"\",INDIRECT(\"'\" & Setup!$AH$11 & \"'!\" & AE158),0) + IF(Setup!$AH$12<>\"\",INDIRECT(\"'\" & Setup!$AH$12 & \"'!\" & AE158),0)","v":0},{"$f":"IF(Setup!$AI$7<>\"\",INDIRECT(\"'\" & Setup!$AI$7 & \"'!\" & AD158),0) + IF(Setup!$AI$8<>\"\",INDIRECT(\"'\" & Setup!$AI$8 & \"'!\" & AD158),0) + IF(Setup!$AI$9<>\"\",INDIRECT(\"'\" & Setup!$AI$9 & \"'!\" & AD158),0) + IF(Setup!$AI$10<>\"\",INDIRECT(\"'\" & Setup!$AI$10 & \"'!\" & AD158),0) + IF(Setup!$AI$11<>\"\",INDIRECT(\"'\" & Setup!$AI$11 & \"'!\" & AD158),0) + IF(Setup!$AI$12<>\"\",INDIRECT(\"'\" & Setup!$AI$12 & \"'!\" & AD158),0)","v":0},{"$f":"IF(Setup!$AI$7<>\"\",INDIRECT(\"'\" & Setup!$AI$7 & \"'!\" & AE158),0) + IF(Setup!$AI$8<>\"\",INDIRECT(\"'\" & Setup!$AI$8 & \"'!\" & AE158),0) + IF(Setup!$AI$9<>\"\",INDIRECT(\"'\" & Setup!$AI$9 & \"'!\" & AE158),0) + IF(Setup!$AI$10<>\"\",INDIRECT(\"'\" & Setup!$AI$10 & \"'!\" & AE158),0) + IF(Setup!$AI$11<>\"\",INDIRECT(\"'\" & Setup!$AI$11 & \"'!\" & AE158),0) + IF(Setup!$AI$12<>\"\",INDIRECT(\"'\" & Setup!$AI$12 & \"'!\" & AE158),0)","v":0},{"$f":"IF(Setup!$AJ$7<>\"\",INDIRECT(\"'\" & Setup!$AJ$7 & \"'!\" & AD158),0) + IF(Setup!$AJ$8<>\"\",INDIRECT(\"'\" & Setup!$AJ$8 & \"'!\" & AD158),0) + IF(Setup!$AJ$9<>\"\",INDIRECT(\"'\" & Setup!$AJ$9 & \"'!\" & AD158),0) + IF(Setup!$AJ$10<>\"\",INDIRECT(\"'\" & Setup!$AJ$10 & \"'!\" & AD158),0) + IF(Setup!$AJ$11<>\"\",INDIRECT(\"'\" & Setup!$AJ$11 & \"'!\" & AD158),0) + IF(Setup!$AJ$12<>\"\",INDIRECT(\"'\" & Setup!$AJ$12 & \"'!\" & AD158),0)","v":0},{"$f":"IF(Setup!$AJ$7<>\"\",INDIRECT(\"'\" & Setup!$AJ$7 & \"'!\" & AE158),0) + IF(Setup!$AJ$8<>\"\",INDIRECT(\"'\" & Setup!$AJ$8 & \"'!\" & AE158),0) + IF(Setup!$AJ$9<>\"\",INDIRECT(\"'\" & Setup!$AJ$9 & \"'!\" & AE158),0) + IF(Setup!$AJ$10<>\"\",INDIRECT(\"'\" & Setup!$AJ$10 & \"'!\" & AE158),0) + IF(Setup!$AJ$11<>\"\",INDIRECT(\"'\" & Setup!$AJ$11 & \"'!\" & AE158),0) + IF(Setup!$AJ$12<>\"\",INDIRECT(\"'\" & Setup!$AJ$12 & \"'!\" & AE158),0)","v":0}]
[{"$f":"Planning!A142","v":"I134"},{"$f":"Planning!B142","v":0},{"$f":"Planning!C142","v":0},{"$f":"Planning!D142","v":0},{"$f":"Planning!E142","v":0},{"$f":"Planning!G142","v":0},null,0,0,{"$f":"IF(AND($AR159=\"2\",$AB158<>Lists!$A$17),AU159,AT159)","v":""},"",0,0,{"$f":"IF(AND($AR159=\"2\",$AB159<>Lists!$A$17),AW159,AV159)","v":""},"",0,0,{"$f":"IF(AND($AR159=\"2\",$AB159<>Lists!$A$17),AY159,AX159)","v":""},"",0,0,{"$f":"IF(AND($AR159=\"2\",$AB159<>Lists!$A$17),BA159,AZ159)","v":""},"",0,0,{"$f":"IF(AND($AR159=\"2\",$AB159<>Lists!$A$17),BC159,BB159)","v":""},"",{"$f":"Planning!H142","v":0},"00","H158","J158","I158","",null,{"$f":"IF(Setup!$AG$7<>\"\",INDIRECT(\"'\" & Setup!$AG$7 & \"'!\" & AF159),0) + IF(Setup!$AG$8<>\"\",INDIRECT(\"'\" & Setup!$AG$8 & \"'!\" & AF159),0) + IF(Setup!$AG$9<>\"\",INDIRECT(\"'\" & Setup!$AG$9 & \"'!\" & AF159),0) + IF(Setup!$AG$10<>\"\",INDIRECT(\"'\" & Setup!$AG$10 & \"'!\" & AF159),0) + IF(Setup!$AG$11<>\"\",INDIRECT(\"'\" & Setup!$AG$11 & \"'!\" & AF159),0) + IF(Setup!$AG$12<>\"\",INDIRECT(\"'\" & Setup!$AG$12 & \"'!\" & AF159),0)","v":0},{"$f":"IF(Setup!$AH$7<>\"\",INDIRECT(\"'\" & Setup!$AH$7 & \"'!\" & AF159),0) + IF(Setup!$AH$8<>\"\",INDIRECT(\"'\" & Setup!$AH$8 & \"'!\" & AF159),0) + IF(Setup!$AH$9<>\"\",INDIRECT(\"'\" & Setup!$AH$9 & \"'!\" & AF159),0) + IF(Setup!$AH$10<>\"\",INDIRECT(\"'\" & Setup!$AH$10 & \"'!\" & AF159),0) + IF(Setup!$AH$11<>\"\",INDIRECT(\"'\" & Setup!$AH$11 & \"'!\" & AF159),0) + IF(Setup!$AH$12<>\"\",INDIRECT(\"'\" & Setup!$AH$12 & \"'!\" & AF159),0)","v":0},{"$f":"IF(Setup!$AI$7<>\"\",INDIRECT(\"'\" & Setup!$AI$7 & \"'!\" & AF159),0) + IF(Setup!$AI$8<>\"\",INDIRECT(\"'\" & Setup!$AI$8 & \"'!\" & AF159),0) + IF(Setup!$AI$9<>\"\",INDIRECT(\"'\" & Setup!$AI$9 & \"'!\" & AF159),0) + IF(Setup!$AI$10<>\"\",INDIRECT(\"'\" & Setup!$AI$10 & \"'!\" & AF159),0) + IF(Setup!$AI$11<>\"\",INDIRECT(\"'\" & Setup!$AI$11 & \"'!\" & AF159),0) + IF(Setup!$AI$12<>\"\",INDIRECT(\"'\" & Setup!$AI$12 & \"'!\" & AF159),0)","v":0},{"$f":"IF(Setup!$AJ$7<>\"\",INDIRECT(\"'\" & Setup!$AJ$7 & \"'!\" & AF159),0) + IF(Setup!$AJ$8<>\"\",INDIRECT(\"'\" & Setup!$AJ$8 & \"'!\" & AF159),0) + IF(Setup!$AJ$9<>\"\",INDIRECT(\"'\" & Setup!$AJ$9 & \"'!\" & AF159),0) + IF(Setup!$AJ$10<>\"\",INDIRECT(\"'\" & Setup!$AJ$10 & \"'!\" & AF159),0) + IF(Setup!$AJ$11<>\"\",INDIRECT(\"'\" & Setup!$AJ$11 & \"'!\" & AF159),0) + IF(Setup!$AJ$12<>\"\",INDIRECT(\"'\" & Setup!$AJ$12 & \"'!\" & AF159),0)","v":0},null,"",{"$nulls":3},{"$f":"IF(C159=0,\"\",LEFT(INDEX(Lists!$H$5:$H$49,MATCH(C159,Lists!$G$5:$G$49,0),1),1))","v":""},null,"","","","","","","","","","",{"$nulls":6},{"$f":"IF(Setup!$AG$7<>\"\",INDIRECT(\"'\" & Setup!$AG$7 & \"'!\" & AD159),0) + IF(Setup!$AG$8<>\"\",INDIRECT(\"'\" & Setup!$AG$8 & \"'!\" & AD159),0) + IF(Setup!$AG$9<>\"\",INDIRECT(\"'\" & Setup!$AG$9 & \"'!\" & AD159),0) + IF(Setup!$AG$10<>\"\",INDIRECT(\"'\" & Setup!$AG$10 & \"'!\" & AD159),0) + IF(Setup!$AG$11<>\"\",INDIRECT(\"'\" & Setup!$AG$11 & \"'!\" & AD159),0) + IF(Setup!$AG$12<>\"\",INDIRECT(\"'\" & Setup!$AG$12 & \"'!\" & AD159),0)","v":0},{"$f":"IF(Setup!$AG$7<>\"\",INDIRECT(\"'\" & Setup!$AG$7 & \"'!\" & AE159),0) + IF(Setup!$AG$8<>\"\",INDIRECT(\"'\" & Setup!$AG$8 & \"'!\" & AE159),0) + IF(Setup!$AG$9<>\"\",INDIRECT(\"'\" & Setup!$AG$9 & \"'!\" & AE159),0) + IF(Setup!$AG$10<>\"\",INDIRECT(\"'\" & Setup!$AG$10 & \"'!\" & AE159),0) + IF(Setup!$AG$11<>\"\",INDIRECT(\"'\" & Setup!$AG$11 & \"'!\" & AE159),0) + IF(Setup!$AG$12<>\"\",INDIRECT(\"'\" & Setup!$AG$12 & \"'!\" & AE159),0)","v":0},{"$f":"IF(Setup!$AH$7<>\"\",INDIRECT(\"'\" & Setup!$AH$7 & \"'!\" & AD159),0) + IF(Setup!$AH$8<>\"\",INDIRECT(\"'\" & Setup!$AH$8 & \"'!\" & AD159),0) + IF(Setup!$AH$9<>\"\",INDIRECT(\"'\" & Setup!$AH$9 & \"'!\" & AD159),0) + IF(Setup!$AH$10<>\"\",INDIRECT(\"'\" & Setup!$AH$10 & \"'!\" & AD159),0) + IF(Setup!$AH$11<>\"\",INDIRECT(\"'\" & Setup!$AH$11 & \"'!\" & AD159),0) + IF(Setup!$AH$12<>\"\",INDIRECT(\"'\" & Setup!$AH$12 & \"'!\" & AD159),0)","v":0},{"$f":"IF(Setup!$AH$7<>\"\",INDIRECT(\"'\" & Setup!$AH$7 & \"'!\" & AE159),0) + IF(Setup!$AH$8<>\"\",INDIRECT(\"'\" & Setup!$AH$8 & \"'!\" & AE159),0) + IF(Setup!$AH$9<>\"\",INDIRECT(\"'\" & Setup!$AH$9 & \"'!\" & AE159),0) + IF(Setup!$AH$10<>\"\",INDIRECT(\"'\" & Setup!$AH$10 & \"'!\" & AE159),0) + IF(Setup!$AH$11<>\"\",INDIRECT(\"'\" & Setup!$AH$11 & \"'!\" & AE159),0) + IF(Setup!$AH$12<>\"\",INDIRECT(\"'\" & Setup!$AH$12 & \"'!\" & AE159),0)","v":0},{"$f":"IF(Setup!$AI$7<>\"\",INDIRECT(\"'\" & Setup!$AI$7 & \"'!\" & AD159),0) + IF(Setup!$AI$8<>\"\",INDIRECT(\"'\" & Setup!$AI$8 & \"'!\" & AD159),0) + IF(Setup!$AI$9<>\"\",INDIRECT(\"'\" & Setup!$AI$9 & \"'!\" & AD159),0) + IF(Setup!$AI$10<>\"\",INDIRECT(\"'\" & Setup!$AI$10 & \"'!\" & AD159),0) + IF(Setup!$AI$11<>\"\",INDIRECT(\"'\" & Setup!$AI$11 & \"'!\" & AD159),0) + IF(Setup!$AI$12<>\"\",INDIRECT(\"'\" & Setup!$AI$12 & \"'!\" & AD159),0)","v":0},{"$f":"IF(Setup!$AI$7<>\"\",INDIRECT(\"'\" & Setup!$AI$7 & \"'!\" & AE159),0) + IF(Setup!$AI$8<>\"\",INDIRECT(\"'\" & Setup!$AI$8 & \"'!\" & AE159),0) + IF(Setup!$AI$9<>\"\",INDIRECT(\"'\" & Setup!$AI$9 & \"'!\" & AE159),0) + IF(Setup!$AI$10<>\"\",INDIRECT(\"'\" & Setup!$AI$10 & \"'!\" & AE159),0) + IF(Setup!$AI$11<>\"\",INDIRECT(\"'\" & Setup!$AI$11 & \"'!\" & AE159),0) + IF(Setup!$AI$12<>\"\",INDIRECT(\"'\" & Setup!$AI$12 & \"'!\" & AE159),0)","v":0},{"$f":"IF(Setup!$AJ$7<>\"\",INDIRECT(\"'\" & Setup!$AJ$7 & \"'!\" & AD159),0) + IF(Setup!$AJ$8<>\"\",INDIRECT(\"'\" & Setup!$AJ$8 & \"'!\" & AD159),0) + IF(Setup!$AJ$9<>\"\",INDIRECT(\"'\" & Setup!$AJ$9 & \"'!\" & AD159),0) + IF(Setup!$AJ$10<>\"\",INDIRECT(\"'\" & Setup!$AJ$10 & \"'!\" & AD159),0) + IF(Setup!$AJ$11<>\"\",INDIRECT(\"'\" & Setup!$AJ$11 & \"'!\" & AD159),0) + IF(Setup!$AJ$12<>\"\",INDIRECT(\"'\" & Setup!$AJ$12 & \"'!\" & AD159),0)","v":0},{"$f":"IF(Setup!$AJ$7<>\"\",INDIRECT(\"'\" & Setup!$AJ$7 & \"'!\" & AE159),0) + IF(Setup!$AJ$8<>\"\",INDIRECT(\"'\" & Setup!$AJ$8 & \"'!\" & AE159),0) + IF(Setup!$AJ$9<>\"\",INDIRECT(\"'\" & Setup!$AJ$9 & \"'!\" & AE159),0) + IF(Setup!$AJ$10<>\"\",INDIRECT(\"'\" & Setup!$AJ$10 & \"'!\" & AE159),0) + IF(Setup!$AJ$11<>\"\",INDIRECT(\"'\" & Setup!$AJ$11 & \"'!\" & AE159),0) + IF(Setup!$AJ$12<>\"\",INDIRECT(\"'\" & Setup!$AJ$12 & \"'!\" & AE159),0)","v":0}]
[{"$f":"Planning!A143","v":"I135"},{"$f":"Planning!B143","v":0},{"$f":"Planning!C143","v":0},{"$f":"Planning!D143","v":0},{"$f":"Planning!E143","v":0},{"$f":"Planning!G143","v":0},null,0,0,{"$f":"IF(AND($AR160=\"2\",$AB159<>Lists!$A$17),AU160,AT160)","v":""},"",0,0,{"$f":"IF(AND($AR160=\"2\",$AB160<>Lists!$A$17),AW160,AV160)","v":""},"",0,0,{"$f":"IF(AND($AR160=\"2\",$AB160<>Lists!$A$17),AY160,AX160)","v":""},"",0,0,{"$f":"IF(AND($AR160=\"2\",$AB160<>Lists!$A$17),BA160,AZ160)","v":""},"",0,0,{"$f":"IF(AND($AR160=\"2\",$AB160<>Lists!$A$17),BC160,BB160)","v":""},"",{"$f":"Planning!H143","v":0},"00","H159","J159","I159","",null,{"$f":"IF(Setup!$AG$7<>\"\",INDIRECT(\"'\" & Setup!$AG$7 & \"'!\" & AF160),0) + IF(Setup!$AG$8<>\"\",INDIRECT(\"'\" & Setup!$AG$8 & \"'!\" & AF160),0) + IF(Setup!$AG$9<>\"\",INDIRECT(\"'\" & Setup!$AG$9 & \"'!\" & AF160),0) + IF(Setup!$AG$10<>\"\",INDIRECT(\"'\" & Setup!$AG$10 & \"'!\" & AF160),0) + IF(Setup!$AG$11<>\"\",INDIRECT(\"'\" & Setup!$AG$11 & \"'!\" & AF160),0) + IF(Setup!$AG$12<>\"\",INDIRECT(\"'\" & Setup!$AG$12 & \"'!\" & AF160),0)","v":0},{"$f":"IF(Setup!$AH$7<>\"\",INDIRECT(\"'\" & Setup!$AH$7 & \"'!\" & AF160),0) + IF(Setup!$AH$8<>\"\",INDIRECT(\"'\" & Setup!$AH$8 & \"'!\" & AF160),0) + IF(Setup!$AH$9<>\"\",INDIRECT(\"'\" & Setup!$AH$9 & \"'!\" & AF160),0) + IF(Setup!$AH$10<>\"\",INDIRECT(\"'\" & Setup!$AH$10 & \"'!\" & AF160),0) + IF(Setup!$AH$11<>\"\",INDIRECT(\"'\" & Setup!$AH$11 & \"'!\" & AF160),0) + IF(Setup!$AH$12<>\"\",INDIRECT(\"'\" & Setup!$AH$12 & \"'!\" & AF160),0)","v":0},{"$f":"IF(Setup!$AI$7<>\"\",INDIRECT(\"'\" & Setup!$AI$7 & \"'!\" & AF160),0) + IF(Setup!$AI$8<>\"\",INDIRECT(\"'\" & Setup!$AI$8 & \"'!\" & AF160),0) + IF(Setup!$AI$9<>\"\",INDIRECT(\"'\" & Setup!$AI$9 & \"'!\" & AF160),0) + IF(Setup!$AI$10<>\"\",INDIRECT(\"'\" & Setup!$AI$10 & \"'!\" & AF160),0) + IF(Setup!$AI$11<>\"\",INDIRECT(\"'\" & Setup!$AI$11 & \"'!\" & AF160),0) + IF(Setup!$AI$12<>\"\",INDIRECT(\"'\" & Setup!$AI$12 & \"'!\" & AF160),0)","v":0},{"$f":"IF(Setup!$AJ$7<>\"\",INDIRECT(\"'\" & Setup!$AJ$7 & \"'!\" & AF160),0) + IF(Setup!$AJ$8<>\"\",INDIRECT(\"'\" & Setup!$AJ$8 & \"'!\" & AF160),0) + IF(Setup!$AJ$9<>\"\",INDIRECT(\"'\" & Setup!$AJ$9 & \"'!\" & AF160),0) + IF(Setup!$AJ$10<>\"\",INDIRECT(\"'\" & Setup!$AJ$10 & \"'!\" & AF160),0) + IF(Setup!$AJ$11<>\"\",INDIRECT(\"'\" & Setup!$AJ$11 & \"'!\" & AF160),0) + IF(Setup!$AJ$12<>\"\",INDIRECT(\"'\" & Setup!$AJ$12 & \"'!\" & AF160),0)","v":0},null,"",{"$nulls":3},{"$f":"IF(C160=0,\"\",LEFT(INDEX(Lists!$H$5:$H$49,MATCH(C160,Lists!$G$5:$G$49,0),1),1))","v":""},null,"","","","","","","","","","",{"$nulls":6},{"$f":"IF(Setup!$AG$7<>\"\",INDIRECT(\"'\" & Setup!$AG$7 & \"'!\" & AD160),0) + IF(Setup!$AG$8<>\"\",INDIRECT(\"'\" & Setup!$AG$8 & \"'!\" & AD160),0) + IF(Setup!$AG$9<>\"\",INDIRECT(\"'\" & Setup!$AG$9 & \"'!\" & AD160),0) + IF(Setup!$AG$10<>\"\",INDIRECT(\"'\" & Setup!$AG$10 & \"'!\" & AD160),0) + IF(Setup!$AG$11<>\"\",INDIRECT(\"'\" & Setup!$AG$11 & \"'!\" & AD160),0) + IF(Setup!$AG$12<>\"\",INDIRECT(\"'\" & Setup!$AG$12 & \"'!\" & AD160),0)","v":0},{"$f":"IF(Setup!$AG$7<>\"\",INDIRECT(\"'\" & Setup!$AG$7 & \"'!\" & AE160),0) + IF(Setup!$AG$8<>\"\",INDIRECT(\"'\" & Setup!$AG$8 & \"'!\" & AE160),0) + IF(Setup!$AG$9<>\"\",INDIRECT(\"'\" & Setup!$AG$9 & \"'!\" & AE160),0) + IF(Setup!$AG$10<>\"\",INDIRECT(\"'\" & Setup!$AG$10 & \"'!\" & AE160),0) + IF(Setup!$AG$11<>\"\",INDIRECT(\"'\" & Setup!$AG$11 & \"'!\" & AE160),0) + IF(Setup!$AG$12<>\"\",INDIRECT(\"'\" & Setup!$AG$12 & \"'!\" & AE160),0)","v":0},{"$f":"IF(Setup!$AH$7<>\"\",INDIRECT(\"'\" & Setup!$AH$7 & \"'!\" & AD160),0) + IF(Setup!$AH$8<>\"\",INDIRECT(\"'\" & Setup!$AH$8 & \"'!\" & AD160),0) + IF(Setup!$AH$9<>\"\",INDIRECT(\"'\" & Setup!$AH$9 & \"'!\" & AD160),0) + IF(Setup!$AH$10<>\"\",INDIRECT(\"'\" & Setup!$AH$10 & \"'!\" & AD160),0) + IF(Setup!$AH$11<>\"\",INDIRECT(\"'\" & Setup!$AH$11 & \"'!\" & AD160),0) + IF(Setup!$AH$12<>\"\",INDIRECT(\"'\" & Setup!$AH$12 & \"'!\" & AD160),0)","v":0},{"$f":"IF(Setup!$AH$7<>\"\",INDIRECT(\"'\" & Setup!$AH$7 & \"'!\" & AE160),0) + IF(Setup!$AH$8<>\"\",INDIRECT(\"'\" & Setup!$AH$8 & \"'!\" & AE160),0) + IF(Setup!$AH$9<>\"\",INDIRECT(\"'\" & Setup!$AH$9 & \"'!\" & AE160),0) + IF(Setup!$AH$10<>\"\",INDIRECT(\"'\" & Setup!$AH$10 & \"'!\" & AE160),0) + IF(Setup!$AH$11<>\"\",INDIRECT(\"'\" & Setup!$AH$11 & \"'!\" & AE160),0) + IF(Setup!$AH$12<>\"\",INDIRECT(\"'\" & Setup!$AH$12 & \"'!\" & AE160),0)","v":0},{"$f":"IF(Setup!$AI$7<>\"\",INDIRECT(\"'\" & Setup!$AI$7 & \"'!\" & AD160),0) + IF(Setup!$AI$8<>\"\",INDIRECT(\"'\" & Setup!$AI$8 & \"'!\" & AD160),0) + IF(Setup!$AI$9<>\"\",INDIRECT(\"'\" & Setup!$AI$9 & \"'!\" & AD160),0) + IF(Setup!$AI$10<>\"\",INDIRECT(\"'\" & Setup!$AI$10 & \"'!\" & AD160),0) + IF(Setup!$AI$11<>\"\",INDIRECT(\"'\" & Setup!$AI$11 & \"'!\" & AD160),0) + IF(Setup!$AI$12<>\"\",INDIRECT(\"'\" & Setup!$AI$12 & \"'!\" & AD160),0)","v":0},{"$f":"IF(Setup!$AI$7<>\"\",INDIRECT(\"'\" & Setup!$AI$7 & \"'!\" & AE160),0) + IF(Setup!$AI$8<>\"\",INDIRECT(\"'\" & Setup!$AI$8 & \"'!\" & AE160),0) + IF(Setup!$AI$9<>\"\",INDIRECT(\"'\" & Setup!$AI$9 & \"'!\" & AE160),0) + IF(Setup!$AI$10<>\"\",INDIRECT(\"'\" & Setup!$AI$10 & \"'!\" & AE160),0) + IF(Setup!$AI$11<>\"\",INDIRECT(\"'\" & Setup!$AI$11 & \"'!\" & AE160),0) + IF(Setup!$AI$12<>\"\",INDIRECT(\"'\" & Setup!$AI$12 & \"'!\" & AE160),0)","v":0},{"$f":"IF(Setup!$AJ$7<>\"\",INDIRECT(\"'\" & Setup!$AJ$7 & \"'!\" & AD160),0) + IF(Setup!$AJ$8<>\"\",INDIRECT(\"'\" & Setup!$AJ$8 & \"'!\" & AD160),0) + IF(Setup!$AJ$9<>\"\",INDIRECT(\"'\" & Setup!$AJ$9 & \"'!\" & AD160),0) + IF(Setup!$AJ$10<>\"\",INDIRECT(\"'\" & Setup!$AJ$10 & \"'!\" & AD160),0) + IF(Setup!$AJ$11<>\"\",INDIRECT(\"'\" & Setup!$AJ$11 & \"'!\" & AD160),0) + IF(Setup!$AJ$12<>\"\",INDIRECT(\"'\" & Setup!$AJ$12 & \"'!\" & AD160),0)","v":0},{"$f":"IF(Setup!$AJ$7<>\"\",INDIRECT(\"'\" & Setup!$AJ$7 & \"'!\" & AE160),0) + IF(Setup!$AJ$8<>\"\",INDIRECT(\"'\" & Setup!$AJ$8 & \"'!\" & AE160),0) + IF(Setup!$AJ$9<>\"\",INDIRECT(\"'\" & Setup!$AJ$9 & \"'!\" & AE160),0) + IF(Setup!$AJ$10<>\"\",INDIRECT(\"'\" & Setup!$AJ$10 & \"'!\" & AE160),0) + IF(Setup!$AJ$11<>\"\",INDIRECT(\"'\" & Setup!$AJ$11 & \"'!\" & AE160),0) + IF(Setup!$AJ$12<>\"\",INDIRECT(\"'\" & Setup!$AJ$12 & \"'!\" & AE160),0)","v":0}]
[{"$f":"Planning!A144","v":"I136"},{"$f":"Planning!B144","v":0},{"$f":"Planning!C144","v":0},{"$f":"Planning!D144","v":0},{"$f":"Planning!E144","v":0},{"$f":"Planning!G144","v":0},null,0,0,{"$f":"IF(AND($AR161=\"2\",$AB160<>Lists!$A$17),AU161,AT161)","v":""},"",0,0,{"$f":"IF(AND($AR161=\"2\",$AB161<>Lists!$A$17),AW161,AV161)","v":""},"",0,0,{"$f":"IF(AND($AR161=\"2\",$AB161<>Lists!$A$17),AY161,AX161)","v":""},"",0,0,{"$f":"IF(AND($AR161=\"2\",$AB161<>Lists!$A$17),BA161,AZ161)","v":""},"",0,0,{"$f":"IF(AND($AR161=\"2\",$AB161<>Lists!$A$17),BC161,BB161)","v":""},"",{"$f":"Planning!H144","v":0},"00","H160","J160","I160","",null,{"$f":"IF(Setup!$AG$7<>\"\",INDIRECT(\"'\" & Setup!$AG$7 & \"'!\" & AF161),0) + IF(Setup!$AG$8<>\"\",INDIRECT(\"'\" & Setup!$AG$8 & \"'!\" & AF161),0) + IF(Setup!$AG$9<>\"\",INDIRECT(\"'\" & Setup!$AG$9 & \"'!\" & AF161),0) + IF(Setup!$AG$10<>\"\",INDIRECT(\"'\" & Setup!$AG$10 & \"'!\" & AF161),0) + IF(Setup!$AG$11<>\"\",INDIRECT(\"'\" & Setup!$AG$11 & \"'!\" & AF161),0) + IF(Setup!$AG$12<>\"\",INDIRECT(\"'\" & Setup!$AG$12 & \"'!\" & AF161),0)","v":0},{"$f":"IF(Setup!$AH$7<>\"\",INDIRECT(\"'\" & Setup!$AH$7 & \"'!\" & AF161),0) + IF(Setup!$AH$8<>\"\",INDIRECT(\"'\" & Setup!$AH$8 & \"'!\" & AF161),0) + IF(Setup!$AH$9<>\"\",INDIRECT(\"'\" & Setup!$AH$9 & \"'!\" & AF161),0) + IF(Setup!$AH$10<>\"\",INDIRECT(\"'\" & Setup!$AH$10 & \"'!\" & AF161),0) + IF(Setup!$AH$11<>\"\",INDIRECT(\"'\" & Setup!$AH$11 & \"'!\" & AF161),0) + IF(Setup!$AH$12<>\"\",INDIRECT(\"'\" & Setup!$AH$12 & \"'!\" & AF161),0)","v":0},{"$f":"IF(Setup!$AI$7<>\"\",INDIRECT(\"'\" & Setup!$AI$7 & \"'!\" & AF161),0) + IF(Setup!$AI$8<>\"\",INDIRECT(\"'\" & Setup!$AI$8 & \"'!\" & AF161),0) + IF(Setup!$AI$9<>\"\",INDIRECT(\"'\" & Setup!$AI$9 & \"'!\" & AF161),0) + IF(Setup!$AI$10<>\"\",INDIRECT(\"'\" & Setup!$AI$10 & \"'!\" & AF161),0) + IF(Setup!$AI$11<>\"\",INDIRECT(\"'\" & Setup!$AI$11 & \"'!\" & AF161),0) + IF(Setup!$AI$12<>\"\",INDIRECT(\"'\" & Setup!$AI$12 & \"'!\" & AF161),0)","v":0},{"$f":"IF(Setup!$AJ$7<>\"\",INDIRECT(\"'\" & Setup!$AJ$7 & \"'!\" & AF161),0) + IF(Setup!$AJ$8<>\"\",INDIRECT(\"'\" & Setup!$AJ$8 & \"'!\" & AF161),0) + IF(Setup!$AJ$9<>\"\",INDIRECT(\"'\" & Setup!$AJ$9 & \"'!\" & AF161),0) + IF(Setup!$AJ$10<>\"\",INDIRECT(\"'\" & Setup!$AJ$10 & \"'!\" & AF161),0) + IF(Setup!$AJ$11<>\"\",INDIRECT(\"'\" & Setup!$AJ$11 & \"'!\" & AF161),0) + IF(Setup!$AJ$12<>\"\",INDIRECT(\"'\" & Setup!$AJ$12 & \"'!\" & AF161),0)","v":0},null,"",{"$nulls":3},{"$f":"IF(C161=0,\"\",LEFT(INDEX(Lists!$H$5:$H$49,MATCH(C161,Lists!$G$5:$G$49,0),1),1))","v":""},null,"","","","","","","","","","",{"$nulls":6},{"$f":"IF(Setup!$AG$7<>\"\",INDIRECT(\"'\" & Setup!$AG$7 & \"'!\" & AD161),0) + IF(Setup!$AG$8<>\"\",INDIRECT(\"'\" & Setup!$AG$8 & \"'!\" & AD161),0) + IF(Setup!$AG$9<>\"\",INDIRECT(\"'\" & Setup!$AG$9 & \"'!\" & AD161),0) + IF(Setup!$AG$10<>\"\",INDIRECT(\"'\" & Setup!$AG$10 & \"'!\" & AD161),0) + IF(Setup!$AG$11<>\"\",INDIRECT(\"'\" & Setup!$AG$11 & \"'!\" & AD161),0) + IF(Setup!$AG$12<>\"\",INDIRECT(\"'\" & Setup!$AG$12 & \"'!\" & AD161),0)","v":0},{"$f":"IF(Setup!$AG$7<>\"\",INDIRECT(\"'\" & Setup!$AG$7 & \"'!\" & AE161),0) + IF(Setup!$AG$8<>\"\",INDIRECT(\"'\" & Setup!$AG$8 & \"'!\" & AE161),0) + IF(Setup!$AG$9<>\"\",INDIRECT(\"'\" & Setup!$AG$9 & \"'!\" & AE161),0) + IF(Setup!$AG$10<>\"\",INDIRECT(\"'\" & Setup!$AG$10 & \"'!\" & AE161),0) + IF(Setup!$AG$11<>\"\",INDIRECT(\"'\" & Setup!$AG$11 & \"'!\" & AE161),0) + IF(Setup!$AG$12<>\"\",INDIRECT(\"'\" & Setup!$AG$12 & \"'!\" & AE161),0)","v":0},{"$f":"IF(Setup!$AH$7<>\"\",INDIRECT(\"'\" & Setup!$AH$7 & \"'!\" & AD161),0) + IF(Setup!$AH$8<>\"\",INDIRECT(\"'\" & Setup!$AH$8 & \"'!\" & AD161),0) + IF(Setup!$AH$9<>\"\",INDIRECT(\"'\" & Setup!$AH$9 & \"'!\" & AD161),0) + IF(Setup!$AH$10<>\"\",INDIRECT(\"'\" & Setup!$AH$10 & \"'!\" & AD161),0) + IF(Setup!$AH$11<>\"\",INDIRECT(\"'\" & Setup!$AH$11 & \"'!\" & AD161),0) + IF(Setup!$AH$12<>\"\",INDIRECT(\"'\" & Setup!$AH$12 & \"'!\" & AD161),0)","v":0},{"$f":"IF(Setup!$AH$7<>\"\",INDIRECT(\"'\" & Setup!$AH$7 & \"'!\" & AE161),0) + IF(Setup!$AH$8<>\"\",INDIRECT(\"'\" & Setup!$AH$8 & \"'!\" & AE161),0) + IF(Setup!$AH$9<>\"\",INDIRECT(\"'\" & Setup!$AH$9 & \"'!\" & AE161),0) + IF(Setup!$AH$10<>\"\",INDIRECT(\"'\" & Setup!$AH$10 & \"'!\" & AE161),0) + IF(Setup!$AH$11<>\"\",INDIRECT(\"'\" & Setup!$AH$11 & \"'!\" & AE161),0) + IF(Setup!$AH$12<>\"\",INDIRECT(\"'\" & Setup!$AH$12 & \"'!\" & AE161),0)","v":0},{"$f":"IF(Setup!$AI$7<>\"\",INDIRECT(\"'\" & Setup!$AI$7 & \"'!\" & AD161),0) + IF(Setup!$AI$8<>\"\",INDIRECT(\"'\" & Setup!$AI$8 & \"'!\" & AD161),0) + IF(Setup!$AI$9<>\"\",INDIRECT(\"'\" & Setup!$AI$9 & \"'!\" & AD161),0) + IF(Setup!$AI$10<>\"\",INDIRECT(\"'\" & Setup!$AI$10 & \"'!\" & AD161),0) + IF(Setup!$AI$11<>\"\",INDIRECT(\"'\" & Setup!$AI$11 & \"'!\" & AD161),0) + IF(Setup!$AI$12<>\"\",INDIRECT(\"'\" & Setup!$AI$12 & \"'!\" & AD161),0)","v":0},{"$f":"IF(Setup!$AI$7<>\"\",INDIRECT(\"'\" & Setup!$AI$7 & \"'!\" & AE161),0) + IF(Setup!$AI$8<>\"\",INDIRECT(\"'\" & Setup!$AI$8 & \"'!\" & AE161),0) + IF(Setup!$AI$9<>\"\",INDIRECT(\"'\" & Setup!$AI$9 & \"'!\" & AE161),0) + IF(Setup!$AI$10<>\"\",INDIRECT(\"'\" & Setup!$AI$10 & \"'!\" & AE161),0) + IF(Setup!$AI$11<>\"\",INDIRECT(\"'\" & Setup!$AI$11 & \"'!\" & AE161),0) + IF(Setup!$AI$12<>\"\",INDIRECT(\"'\" & Setup!$AI$12 & \"'!\" & AE161),0)","v":0},{"$f":"IF(Setup!$AJ$7<>\"\",INDIRECT(\"'\" & Setup!$AJ$7 & \"'!\" & AD161),0) + IF(Setup!$AJ$8<>\"\",INDIRECT(\"'\" & Setup!$AJ$8 & \"'!\" & AD161),0) + IF(Setup!$AJ$9<>\"\",INDIRECT(\"'\" & Setup!$AJ$9 & \"'!\" & AD161),0) + IF(Setup!$AJ$10<>\"\",INDIRECT(\"'\" & Setup!$AJ$10 & \"'!\" & AD161),0) + IF(Setup!$AJ$11<>\"\",INDIRECT(\"'\" & Setup!$AJ$11 & \"'!\" & AD161),0) + IF(Setup!$AJ$12<>\"\",INDIRECT(\"'\" & Setup!$AJ$12 & \"'!\" & AD161),0)","v":0},{"$f":"IF(Setup!$AJ$7<>\"\",INDIRECT(\"'\" & Setup!$AJ$7 & \"'!\" & AE161),0) + IF(Setup!$AJ$8<>\"\",INDIRECT(\"'\" & Setup!$AJ$8 & \"'!\" & AE161),0) + IF(Setup!$AJ$9<>\"\",INDIRECT(\"'\" & Setup!$AJ$9 & \"'!\" & AE161),0) + IF(Setup!$AJ$10<>\"\",INDIRECT(\"'\" & Setup!$AJ$10 & \"'!\" & AE161),0) + IF(Setup!$AJ$11<>\"\",INDIRECT(\"'\" & Setup!$AJ$11 & \"'!\" & AE161),0) + IF(Setup!$AJ$12<>\"\",INDIRECT(\"'\" & Setup!$AJ$12 & \"'!\" & AE161),0)","v":0}]
[{"$f":"Planning!A145","v":"I137"},{"$f":"Planning!B145","v":0},{"$f":"Planning!C145","v":0},{"$f":"Planning!D145","v":0},{"$f":"Planning!E145","v":0},{"$f":"Planning!G145","v":0},null,0,0,{"$f":"IF(AND($AR162=\"2\",$AB161<>Lists!$A$17),AU162,AT162)","v":""},"",0,0,{"$f":"IF(AND($AR162=\"2\",$AB162<>Lists!$A$17),AW162,AV162)","v":""},"",0,0,{"$f":"IF(AND($AR162=\"2\",$AB162<>Lists!$A$17),AY162,AX162)","v":""},"",0,0,{"$f":"IF(AND($AR162=\"2\",$AB162<>Lists!$A$17),BA162,AZ162)","v":""},"",0,0,{"$f":"IF(AND($AR162=\"2\",$AB162<>Lists!$A$17),BC162,BB162)","v":""},"",{"$f":"Planning!H145","v":0},"00","H161","J161","I161","",null,{"$f":"IF(Setup!$AG$7<>\"\",INDIRECT(\"'\" & Setup!$AG$7 & \"'!\" & AF162),0) + IF(Setup!$AG$8<>\"\",INDIRECT(\"'\" & Setup!$AG$8 & \"'!\" & AF162),0) + IF(Setup!$AG$9<>\"\",INDIRECT(\"'\" & Setup!$AG$9 & \"'!\" & AF162),0) + IF(Setup!$AG$10<>\"\",INDIRECT(\"'\" & Setup!$AG$10 & \"'!\" & AF162),0) + IF(Setup!$AG$11<>\"\",INDIRECT(\"'\" & Setup!$AG$11 & \"'!\" & AF162),0) + IF(Setup!$AG$12<>\"\",INDIRECT(\"'\" & Setup!$AG$12 & \"'!\" & AF162),0)","v":0},{"$f":"IF(Setup!$AH$7<>\"\",INDIRECT(\"'\" & Setup!$AH$7 & \"'!\" & AF162),0) + IF(Setup!$AH$8<>\"\",INDIRECT(\"'\" & Setup!$AH$8 & \"'!\" & AF162),0) + IF(Setup!$AH$9<>\"\",INDIRECT(\"'\" & Setup!$AH$9 & \"'!\" & AF162),0) + IF(Setup!$AH$10<>\"\",INDIRECT(\"'\" & Setup!$AH$10 & \"'!\" & AF162),0) + IF(Setup!$AH$11<>\"\",INDIRECT(\"'\" & Setup!$AH$11 & \"'!\" & AF162),0) + IF(Setup!$AH$12<>\"\",INDIRECT(\"'\" & Setup!$AH$12 & \"'!\" & AF162),0)","v":0},{"$f":"IF(Setup!$AI$7<>\"\",INDIRECT(\"'\" & Setup!$AI$7 & \"'!\" & AF162),0) + IF(Setup!$AI$8<>\"\",INDIRECT(\"'\" & Setup!$AI$8 & \"'!\" & AF162),0) + IF(Setup!$AI$9<>\"\",INDIRECT(\"'\" & Setup!$AI$9 & \"'!\" & AF162),0) + IF(Setup!$AI$10<>\"\",INDIRECT(\"'\" & Setup!$AI$10 & \"'!\" & AF162),0) + IF(Setup!$AI$11<>\"\",INDIRECT(\"'\" & Setup!$AI$11 & \"'!\" & AF162),0) + IF(Setup!$AI$12<>\"\",INDIRECT(\"'\" & Setup!$AI$12 & \"'!\" & AF162),0)","v":0},{"$f":"IF(Setup!$AJ$7<>\"\",INDIRECT(\"'\" & Setup!$AJ$7 & \"'!\" & AF162),0) + IF(Setup!$AJ$8<>\"\",INDIRECT(\"'\" & Setup!$AJ$8 & \"'!\" & AF162),0) + IF(Setup!$AJ$9<>\"\",INDIRECT(\"'\" & Setup!$AJ$9 & \"'!\" & AF162),0) + IF(Setup!$AJ$10<>\"\",INDIRECT(\"'\" & Setup!$AJ$10 & \"'!\" & AF162),0) + IF(Setup!$AJ$11<>\"\",INDIRECT(\"'\" & Setup!$AJ$11 & \"'!\" & AF162),0) + IF(Setup!$AJ$12<>\"\",INDIRECT(\"'\" & Setup!$AJ$12 & \"'!\" & AF162),0)","v":0},null,"",{"$nulls":3},{"$f":"IF(C162=0,\"\",LEFT(INDEX(Lists!$H$5:$H$49,MATCH(C162,Lists!$G$5:$G$49,0),1),1))","v":""},null,"","","","","","","","","","",{"$nulls":6},{"$f":"IF(Setup!$AG$7<>\"\",INDIRECT(\"'\" & Setup!$AG$7 & \"'!\" & AD162),0) + IF(Setup!$AG$8<>\"\",INDIRECT(\"'\" & Setup!$AG$8 & \"'!\" & AD162),0) + IF(Setup!$AG$9<>\"\",INDIRECT(\"'\" & Setup!$AG$9 & \"'!\" & AD162),0) + IF(Setup!$AG$10<>\"\",INDIRECT(\"'\" & Setup!$AG$10 & \"'!\" & AD162),0) + IF(Setup!$AG$11<>\"\",INDIRECT(\"'\" & Setup!$AG$11 & \"'!\" & AD162),0) + IF(Setup!$AG$12<>\"\",INDIRECT(\"'\" & Setup!$AG$12 & \"'!\" & AD162),0)","v":0},{"$f":"IF(Setup!$AG$7<>\"\",INDIRECT(\"'\" & Setup!$AG$7 & \"'!\" & AE162),0) + IF(Setup!$AG$8<>\"\",INDIRECT(\"'\" & Setup!$AG$8 & \"'!\" & AE162),0) + IF(Setup!$AG$9<>\"\",INDIRECT(\"'\" & Setup!$AG$9 & \"'!\" & AE162),0) + IF(Setup!$AG$10<>\"\",INDIRECT(\"'\" & Setup!$AG$10 & \"'!\" & AE162),0) + IF(Setup!$AG$11<>\"\",INDIRECT(\"'\" & Setup!$AG$11 & \"'!\" & AE162),0) + IF(Setup!$AG$12<>\"\",INDIRECT(\"'\" & Setup!$AG$12 & \"'!\" & AE162),0)","v":0},{"$f":"IF(Setup!$AH$7<>\"\",INDIRECT(\"'\" & Setup!$AH$7 & \"'!\" & AD162),0) + IF(Setup!$AH$8<>\"\",INDIRECT(\"'\" & Setup!$AH$8 & \"'!\" & AD162),0) + IF(Setup!$AH$9<>\"\",INDIRECT(\"'\" & Setup!$AH$9 & \"'!\" & AD162),0) + IF(Setup!$AH$10<>\"\",INDIRECT(\"'\" & Setup!$AH$10 & \"'!\" & AD162),0) + IF(Setup!$AH$11<>\"\",INDIRECT(\"'\" & Setup!$AH$11 & \"'!\" & AD162),0) + IF(Setup!$AH$12<>\"\",INDIRECT(\"'\" & Setup!$AH$12 & \"'!\" & AD162),0)","v":0},{"$f":"IF(Setup!$AH$7<>\"\",INDIRECT(\"'\" & Setup!$AH$7 & \"'!\" & AE162),0) + IF(Setup!$AH$8<>\"\",INDIRECT(\"'\" & Setup!$AH$8 & \"'!\" & AE162),0) + IF(Setup!$AH$9<>\"\",INDIRECT(\"'\" & Setup!$AH$9 & \"'!\" & AE162),0) + IF(Setup!$AH$10<>\"\",INDIRECT(\"'\" & Setup!$AH$10 & \"'!\" & AE162),0) + IF(Setup!$AH$11<>\"\",INDIRECT(\"'\" & Setup!$AH$11 & \"'!\" & AE162),0) + IF(Setup!$AH$12<>\"\",INDIRECT(\"'\" & Setup!$AH$12 & \"'!\" & AE162),0)","v":0},{"$f":"IF(Setup!$AI$7<>\"\",INDIRECT(\"'\" & Setup!$AI$7 & \"'!\" & AD162),0) + IF(Setup!$AI$8<>\"\",INDIRECT(\"'\" & Setup!$AI$8 & \"'!\" & AD162),0) + IF(Setup!$AI$9<>\"\",INDIRECT(\"'\" & Setup!$AI$9 & \"'!\" & AD162),0) + IF(Setup!$AI$10<>\"\",INDIRECT(\"'\" & Setup!$AI$10 & \"'!\" & AD162),0) + IF(Setup!$AI$11<>\"\",INDIRECT(\"'\" & Setup!$AI$11 & \"'!\" & AD162),0) + IF(Setup!$AI$12<>\"\",INDIRECT(\"'\" & Setup!$AI$12 & \"'!\" & AD162),0)","v":0},{"$f":"IF(Setup!$AI$7<>\"\",INDIRECT(\"'\" & Setup!$AI$7 & \"'!\" & AE162),0) + IF(Setup!$AI$8<>\"\",INDIRECT(\"'\" & Setup!$AI$8 & \"'!\" & AE162),0) + IF(Setup!$AI$9<>\"\",INDIRECT(\"'\" & Setup!$AI$9 & \"'!\" & AE162),0) + IF(Setup!$AI$10<>\"\",INDIRECT(\"'\" & Setup!$AI$10 & \"'!\" & AE162),0) + IF(Setup!$AI$11<>\"\",INDIRECT(\"'\" & Setup!$AI$11 & \"'!\" & AE162),0) + IF(Setup!$AI$12<>\"\",INDIRECT(\"'\" & Setup!$AI$12 & \"'!\" & AE162),0)","v":0},{"$f":"IF(Setup!$AJ$7<>\"\",INDIRECT(\"'\" & Setup!$AJ$7 & \"'!\" & AD162),0) + IF(Setup!$AJ$8<>\"\",INDIRECT(\"'\" & Setup!$AJ$8 & \"'!\" & AD162),0) + IF(Setup!$AJ$9<>\"\",INDIRECT(\"'\" & Setup!$AJ$9 & \"'!\" & AD162),0) + IF(Setup!$AJ$10<>\"\",INDIRECT(\"'\" & Setup!$AJ$10 & \"'!\" & AD162),0) + IF(Setup!$AJ$11<>\"\",INDIRECT(\"'\" & Setup!$AJ$11 & \"'!\" & AD162),0) + IF(Setup!$AJ$12<>\"\",INDIRECT(\"'\" & Setup!$AJ$12 & \"'!\" & AD162),0)","v":0},{"$f":"IF(Setup!$AJ$7<>\"\",INDIRECT(\"'\" & Setup!$AJ$7 & \"'!\" & AE162),0) + IF(Setup!$AJ$8<>\"\",INDIRECT(\"'\" & Setup!$AJ$8 & \"'!\" & AE162),0) + IF(Setup!$AJ$9<>\"\",INDIRECT(\"'\" & Setup!$AJ$9 & \"'!\" & AE162),0) + IF(Setup!$AJ$10<>\"\",INDIRECT(\"'\" & Setup!$AJ$10 & \"'!\" & AE162),0) + IF(Setup!$AJ$11<>\"\",INDIRECT(\"'\" & Setup!$AJ$11 & \"'!\" & AE162),0) + IF(Setup!$AJ$12<>\"\",INDIRECT(\"'\" & Setup!$AJ$12 & \"'!\" & AE162),0)","v":0}]
[{"$f":"Planning!A146","v":"I138"},{"$f":"Planning!B146","v":0},{"$f":"Planning!C146","v":0},{"$f":"Planning!D146","v":0},{"$f":"Planning!E146","v":0},{"$f":"Planning!G146","v":0},null,0,0,{"$f":"IF(AND($AR163=\"2\",$AB162<>Lists!$A$17),AU163,AT163)","v":""},"",0,0,{"$f":"IF(AND($AR163=\"2\",$AB163<>Lists!$A$17),AW163,AV163)","v":""},"",0,0,{"$f":"IF(AND($AR163=\"2\",$AB163<>Lists!$A$17),AY163,AX163)","v":""},"",0,0,{"$f":"IF(AND($AR163=\"2\",$AB163<>Lists!$A$17),BA163,AZ163)","v":""},"",0,0,{"$f":"IF(AND($AR163=\"2\",$AB163<>Lists!$A$17),BC163,BB163)","v":""},"",{"$f":"Planning!H146","v":0},"00","H162","J162","I162","",null,{"$f":"IF(Setup!$AG$7<>\"\",INDIRECT(\"'\" & Setup!$AG$7 & \"'!\" & AF163),0) + IF(Setup!$AG$8<>\"\",INDIRECT(\"'\" & Setup!$AG$8 & \"'!\" & AF163),0) + IF(Setup!$AG$9<>\"\",INDIRECT(\"'\" & Setup!$AG$9 & \"'!\" & AF163),0) + IF(Setup!$AG$10<>\"\",INDIRECT(\"'\" & Setup!$AG$10 & \"'!\" & AF163),0) + IF(Setup!$AG$11<>\"\",INDIRECT(\"'\" & Setup!$AG$11 & \"'!\" & AF163),0) + IF(Setup!$AG$12<>\"\",INDIRECT(\"'\" & Setup!$AG$12 & \"'!\" & AF163),0)","v":0},{"$f":"IF(Setup!$AH$7<>\"\",INDIRECT(\"'\" & Setup!$AH$7 & \"'!\" & AF163),0) + IF(Setup!$AH$8<>\"\",INDIRECT(\"'\" & Setup!$AH$8 & \"'!\" & AF163),0) + IF(Setup!$AH$9<>\"\",INDIRECT(\"'\" & Setup!$AH$9 & \"'!\" & AF163),0) + IF(Setup!$AH$10<>\"\",INDIRECT(\"'\" & Setup!$AH$10 & \"'!\" & AF163),0) + IF(Setup!$AH$11<>\"\",INDIRECT(\"'\" & Setup!$AH$11 & \"'!\" & AF163),0) + IF(Setup!$AH$12<>\"\",INDIRECT(\"'\" & Setup!$AH$12 & \"'!\" & AF163),0)","v":0},{"$f":"IF(Setup!$AI$7<>\"\",INDIRECT(\"'\" & Setup!$AI$7 & \"'!\" & AF163),0) + IF(Setup!$AI$8<>\"\",INDIRECT(\"'\" & Setup!$AI$8 & \"'!\" & AF163),0) + IF(Setup!$AI$9<>\"\",INDIRECT(\"'\" & Setup!$AI$9 & \"'!\" & AF163),0) + IF(Setup!$AI$10<>\"\",INDIRECT(\"'\" & Setup!$AI$10 & \"'!\" & AF163),0) + IF(Setup!$AI$11<>\"\",INDIRECT(\"'\" & Setup!$AI$11 & \"'!\" & AF163),0) + IF(Setup!$AI$12<>\"\",INDIRECT(\"'\" & Setup!$AI$12 & \"'!\" & AF163),0)","v":0},{"$f":"IF(Setup!$AJ$7<>\"\",INDIRECT(\"'\" & Setup!$AJ$7 & \"'!\" & AF163),0) + IF(Setup!$AJ$8<>\"\",INDIRECT(\"'\" & Setup!$AJ$8 & \"'!\" & AF163),0) + IF(Setup!$AJ$9<>\"\",INDIRECT(\"'\" & Setup!$AJ$9 & \"'!\" & AF163),0) + IF(Setup!$AJ$10<>\"\",INDIRECT(\"'\" & Setup!$AJ$10 & \"'!\" & AF163),0) + IF(Setup!$AJ$11<>\"\",INDIRECT(\"'\" & Setup!$AJ$11 & \"'!\" & AF163),0) + IF(Setup!$AJ$12<>\"\",INDIRECT(\"'\" & Setup!$AJ$12 & \"'!\" & AF163),0)","v":0},null,"",{"$nulls":3},{"$f":"IF(C163=0,\"\",LEFT(INDEX(Lists!$H$5:$H$49,MATCH(C163,Lists!$G$5:$G$49,0),1),1))","v":""},null,"","","","","","","","","","",{"$nulls":6},{"$f":"IF(Setup!$AG$7<>\"\",INDIRECT(\"'\" & Setup!$AG$7 & \"'!\" & AD163),0) + IF(Setup!$AG$8<>\"\",INDIRECT(\"'\" & Setup!$AG$8 & \"'!\" & AD163),0) + IF(Setup!$AG$9<>\"\",INDIRECT(\"'\" & Setup!$AG$9 & \"'!\" & AD163),0) + IF(Setup!$AG$10<>\"\",INDIRECT(\"'\" & Setup!$AG$10 & \"'!\" & AD163),0) + IF(Setup!$AG$11<>\"\",INDIRECT(\"'\" & Setup!$AG$11 & \"'!\" & AD163),0) + IF(Setup!$AG$12<>\"\",INDIRECT(\"'\" & Setup!$AG$12 & \"'!\" & AD163),0)","v":0},{"$f":"IF(Setup!$AG$7<>\"\",INDIRECT(\"'\" & Setup!$AG$7 & \"'!\" & AE163),0) + IF(Setup!$AG$8<>\"\",INDIRECT(\"'\" & Setup!$AG$8 & \"'!\" & AE163),0) + IF(Setup!$AG$9<>\"\",INDIRECT(\"'\" & Setup!$AG$9 & \"'!\" & AE163),0) + IF(Setup!$AG$10<>\"\",INDIRECT(\"'\" & Setup!$AG$10 & \"'!\" & AE163),0) + IF(Setup!$AG$11<>\"\",INDIRECT(\"'\" & Setup!$AG$11 & \"'!\" & AE163),0) + IF(Setup!$AG$12<>\"\",INDIRECT(\"'\" & Setup!$AG$12 & \"'!\" & AE163),0)","v":0},{"$f":"IF(Setup!$AH$7<>\"\",INDIRECT(\"'\" & Setup!$AH$7 & \"'!\" & AD163),0) + IF(Setup!$AH$8<>\"\",INDIRECT(\"'\" & Setup!$AH$8 & \"'!\" & AD163),0) + IF(Setup!$AH$9<>\"\",INDIRECT(\"'\" & Setup!$AH$9 & \"'!\" & AD163),0) + IF(Setup!$AH$10<>\"\",INDIRECT(\"'\" & Setup!$AH$10 & \"'!\" & AD163),0) + IF(Setup!$AH$11<>\"\",INDIRECT(\"'\" & Setup!$AH$11 & \"'!\" & AD163),0) + IF(Setup!$AH$12<>\"\",INDIRECT(\"'\" & Setup!$AH$12 & \"'!\" & AD163),0)","v":0},{"$f":"IF(Setup!$AH$7<>\"\",INDIRECT(\"'\" & Setup!$AH$7 & \"'!\" & AE163),0) + IF(Setup!$AH$8<>\"\",INDIRECT(\"'\" & Setup!$AH$8 & \"'!\" & AE163),0) + IF(Setup!$AH$9<>\"\",INDIRECT(\"'\" & Setup!$AH$9 & \"'!\" & AE163),0) + IF(Setup!$AH$10<>\"\",INDIRECT(\"'\" & Setup!$AH$10 & \"'!\" & AE163),0) + IF(Setup!$AH$11<>\"\",INDIRECT(\"'\" & Setup!$AH$11 & \"'!\" & AE163),0) + IF(Setup!$AH$12<>\"\",INDIRECT(\"'\" & Setup!$AH$12 & \"'!\" & AE163),0)","v":0},{"$f":"IF(Setup!$AI$7<>\"\",INDIRECT(\"'\" & Setup!$AI$7 & \"'!\" & AD163),0) + IF(Setup!$AI$8<>\"\",INDIRECT(\"'\" & Setup!$AI$8 & \"'!\" & AD163),0) + IF(Setup!$AI$9<>\"\",INDIRECT(\"'\" & Setup!$AI$9 & \"'!\" & AD163),0) + IF(Setup!$AI$10<>\"\",INDIRECT(\"'\" & Setup!$AI$10 & \"'!\" & AD163),0) + IF(Setup!$AI$11<>\"\",INDIRECT(\"'\" & Setup!$AI$11 & \"'!\" & AD163),0) + IF(Setup!$AI$12<>\"\",INDIRECT(\"'\" & Setup!$AI$12 & \"'!\" & AD163),0)","v":0},{"$f":"IF(Setup!$AI$7<>\"\",INDIRECT(\"'\" & Setup!$AI$7 & \"'!\" & AE163),0) + IF(Setup!$AI$8<>\"\",INDIRECT(\"'\" & Setup!$AI$8 & \"'!\" & AE163),0) + IF(Setup!$AI$9<>\"\",INDIRECT(\"'\" & Setup!$AI$9 & \"'!\" & AE163),0) + IF(Setup!$AI$10<>\"\",INDIRECT(\"'\" & Setup!$AI$10 & \"'!\" & AE163),0) + IF(Setup!$AI$11<>\"\",INDIRECT(\"'\" & Setup!$AI$11 & \"'!\" & AE163),0) + IF(Setup!$AI$12<>\"\",INDIRECT(\"'\" & Setup!$AI$12 & \"'!\" & AE163),0)","v":0},{"$f":"IF(Setup!$AJ$7<>\"\",INDIRECT(\"'\" & Setup!$AJ$7 & \"'!\" & AD163),0) + IF(Setup!$AJ$8<>\"\",INDIRECT(\"'\" & Setup!$AJ$8 & \"'!\" & AD163),0) + IF(Setup!$AJ$9<>\"\",INDIRECT(\"'\" & Setup!$AJ$9 & \"'!\" & AD163),0) + IF(Setup!$AJ$10<>\"\",INDIRECT(\"'\" & Setup!$AJ$10 & \"'!\" & AD163),0) + IF(Setup!$AJ$11<>\"\",INDIRECT(\"'\" & Setup!$AJ$11 & \"'!\" & AD163),0) + IF(Setup!$AJ$12<>\"\",INDIRECT(\"'\" & Setup!$AJ$12 & \"'!\" & AD163),0)","v":0},{"$f":"IF(Setup!$AJ$7<>\"\",INDIRECT(\"'\" & Setup!$AJ$7 & \"'!\" & AE163),0) + IF(Setup!$AJ$8<>\"\",INDIRECT(\"'\" & Setup!$AJ$8 & \"'!\" & AE163),0) + IF(Setup!$AJ$9<>\"\",INDIRECT(\"'\" & Setup!$AJ$9 & \"'!\" & AE163),0) + IF(Setup!$AJ$10<>\"\",INDIRECT(\"'\" & Setup!$AJ$10 & \"'!\" & AE163),0) + IF(Setup!$AJ$11<>\"\",INDIRECT(\"'\" & Setup!$AJ$11 & \"'!\" & AE163),0) + IF(Setup!$AJ$12<>\"\",INDIRECT(\"'\" & Setup!$AJ$12 & \"'!\" & AE163),0)","v":0}]
[{"$f":"Planning!A147","v":"I139"},{"$f":"Planning!B147","v":0},{"$f":"Planning!C147","v":0},{"$f":"Planning!D147","v":0},{"$f":"Planning!E147","v":0},{"$f":"Planning!G147","v":0},null,0,0,{"$f":"IF(AND($AR164=\"2\",$AB163<>Lists!$A$17),AU164,AT164)","v":""},"",0,0,{"$f":"IF(AND($AR164=\"2\",$AB164<>Lists!$A$17),AW164,AV164)","v":""},"",0,0,{"$f":"IF(AND($AR164=\"2\",$AB164<>Lists!$A$17),AY164,AX164)","v":""},"",0,0,{"$f":"IF(AND($AR164=\"2\",$AB164<>Lists!$A$17),BA164,AZ164)","v":""},"",0,0,{"$f":"IF(AND($AR164=\"2\",$AB164<>Lists!$A$17),BC164,BB164)","v":""},"",{"$f":"Planning!H147","v":0},"00","H163","J163","I163","",null,{"$f":"IF(Setup!$AG$7<>\"\",INDIRECT(\"'\" & Setup!$AG$7 & \"'!\" & AF164),0) + IF(Setup!$AG$8<>\"\",INDIRECT(\"'\" & Setup!$AG$8 & \"'!\" & AF164),0) + IF(Setup!$AG$9<>\"\",INDIRECT(\"'\" & Setup!$AG$9 & \"'!\" & AF164),0) + IF(Setup!$AG$10<>\"\",INDIRECT(\"'\" & Setup!$AG$10 & \"'!\" & AF164),0) + IF(Setup!$AG$11<>\"\",INDIRECT(\"'\" & Setup!$AG$11 & \"'!\" & AF164),0) + IF(Setup!$AG$12<>\"\",INDIRECT(\"'\" & Setup!$AG$12 & \"'!\" & AF164),0)","v":0},{"$f":"IF(Setup!$AH$7<>\"\",INDIRECT(\"'\" & Setup!$AH$7 & \"'!\" & AF164),0) + IF(Setup!$AH$8<>\"\",INDIRECT(\"'\" & Setup!$AH$8 & \"'!\" & AF164),0) + IF(Setup!$AH$9<>\"\",INDIRECT(\"'\" & Setup!$AH$9 & \"'!\" & AF164),0) + IF(Setup!$AH$10<>\"\",INDIRECT(\"'\" & Setup!$AH$10 & \"'!\" & AF164),0) + IF(Setup!$AH$11<>\"\",INDIRECT(\"'\" & Setup!$AH$11 & \"'!\" & AF164),0) + IF(Setup!$AH$12<>\"\",INDIRECT(\"'\" & Setup!$AH$12 & \"'!\" & AF164),0)","v":0},{"$f":"IF(Setup!$AI$7<>\"\",INDIRECT(\"'\" & Setup!$AI$7 & \"'!\" & AF164),0) + IF(Setup!$AI$8<>\"\",INDIRECT(\"'\" & Setup!$AI$8 & \"'!\" & AF164),0) + IF(Setup!$AI$9<>\"\",INDIRECT(\"'\" & Setup!$AI$9 & \"'!\" & AF164),0) + IF(Setup!$AI$10<>\"\",INDIRECT(\"'\" & Setup!$AI$10 & \"'!\" & AF164),0) + IF(Setup!$AI$11<>\"\",INDIRECT(\"'\" & Setup!$AI$11 & \"'!\" & AF164),0) + IF(Setup!$AI$12<>\"\",INDIRECT(\"'\" & Setup!$AI$12 & \"'!\" & AF164),0)","v":0},{"$f":"IF(Setup!$AJ$7<>\"\",INDIRECT(\"'\" & Setup!$AJ$7 & \"'!\" & AF164),0) + IF(Setup!$AJ$8<>\"\",INDIRECT(\"'\" & Setup!$AJ$8 & \"'!\" & AF164),0) + IF(Setup!$AJ$9<>\"\",INDIRECT(\"'\" & Setup!$AJ$9 & \"'!\" & AF164),0) + IF(Setup!$AJ$10<>\"\",INDIRECT(\"'\" & Setup!$AJ$10 & \"'!\" & AF164),0) + IF(Setup!$AJ$11<>\"\",INDIRECT(\"'\" & Setup!$AJ$11 & \"'!\" & AF164),0) + IF(Setup!$AJ$12<>\"\",INDIRECT(\"'\" & Setup!$AJ$12 & \"'!\" & AF164),0)","v":0},null,"",{"$nulls":3},{"$f":"IF(C164=0,\"\",LEFT(INDEX(Lists!$H$5:$H$49,MATCH(C164,Lists!$G$5:$G$49,0),1),1))","v":""},null,"","","","","","","","","","",{"$nulls":6},{"$f":"IF(Setup!$AG$7<>\"\",INDIRECT(\"'\" & Setup!$AG$7 & \"'!\" & AD164),0) + IF(Setup!$AG$8<>\"\",INDIRECT(\"'\" & Setup!$AG$8 & \"'!\" & AD164),0) + IF(Setup!$AG$9<>\"\",INDIRECT(\"'\" & Setup!$AG$9 & \"'!\" & AD164),0) + IF(Setup!$AG$10<>\"\",INDIRECT(\"'\" & Setup!$AG$10 & \"'!\" & AD164),0) + IF(Setup!$AG$11<>\"\",INDIRECT(\"'\" & Setup!$AG$11 & \"'!\" & AD164),0) + IF(Setup!$AG$12<>\"\",INDIRECT(\"'\" & Setup!$AG$12 & \"'!\" & AD164),0)","v":0},{"$f":"IF(Setup!$AG$7<>\"\",INDIRECT(\"'\" & Setup!$AG$7 & \"'!\" & AE164),0) + IF(Setup!$AG$8<>\"\",INDIRECT(\"'\" & Setup!$AG$8 & \"'!\" & AE164),0) + IF(Setup!$AG$9<>\"\",INDIRECT(\"'\" & Setup!$AG$9 & \"'!\" & AE164),0) + IF(Setup!$AG$10<>\"\",INDIRECT(\"'\" & Setup!$AG$10 & \"'!\" & AE164),0) + IF(Setup!$AG$11<>\"\",INDIRECT(\"'\" & Setup!$AG$11 & \"'!\" & AE164),0) + IF(Setup!$AG$12<>\"\",INDIRECT(\"'\" & Setup!$AG$12 & \"'!\" & AE164),0)","v":0},{"$f":"IF(Setup!$AH$7<>\"\",INDIRECT(\"'\" & Setup!$AH$7 & \"'!\" & AD164),0) + IF(Setup!$AH$8<>\"\",INDIRECT(\"'\" & Setup!$AH$8 & \"'!\" & AD164),0) + IF(Setup!$AH$9<>\"\",INDIRECT(\"'\" & Setup!$AH$9 & \"'!\" & AD164),0) + IF(Setup!$AH$10<>\"\",INDIRECT(\"'\" & Setup!$AH$10 & \"'!\" & AD164),0) + IF(Setup!$AH$11<>\"\",INDIRECT(\"'\" & Setup!$AH$11 & \"'!\" & AD164),0) + IF(Setup!$AH$12<>\"\",INDIRECT(\"'\" & Setup!$AH$12 & \"'!\" & AD164),0)","v":0},{"$f":"IF(Setup!$AH$7<>\"\",INDIRECT(\"'\" & Setup!$AH$7 & \"'!\" & AE164),0) + IF(Setup!$AH$8<>\"\",INDIRECT(\"'\" & Setup!$AH$8 & \"'!\" & AE164),0) + IF(Setup!$AH$9<>\"\",INDIRECT(\"'\" & Setup!$AH$9 & \"'!\" & AE164),0) + IF(Setup!$AH$10<>\"\",INDIRECT(\"'\" & Setup!$AH$10 & \"'!\" & AE164),0) + IF(Setup!$AH$11<>\"\",INDIRECT(\"'\" & Setup!$AH$11 & \"'!\" & AE164),0) + IF(Setup!$AH$12<>\"\",INDIRECT(\"'\" & Setup!$AH$12 & \"'!\" & AE164),0)","v":0},{"$f":"IF(Setup!$AI$7<>\"\",INDIRECT(\"'\" & Setup!$AI$7 & \"'!\" & AD164),0) + IF(Setup!$AI$8<>\"\",INDIRECT(\"'\" & Setup!$AI$8 & \"'!\" & AD164),0) + IF(Setup!$AI$9<>\"\",INDIRECT(\"'\" & Setup!$AI$9 & \"'!\" & AD164),0) + IF(Setup!$AI$10<>\"\",INDIRECT(\"'\" & Setup!$AI$10 & \"'!\" & AD164),0) + IF(Setup!$AI$11<>\"\",INDIRECT(\"'\" & Setup!$AI$11 & \"'!\" & AD164),0) + IF(Setup!$AI$12<>\"\",INDIRECT(\"'\" & Setup!$AI$12 & \"'!\" & AD164),0)","v":0},{"$f":"IF(Setup!$AI$7<>\"\",INDIRECT(\"'\" & Setup!$AI$7 & \"'!\" & AE164),0) + IF(Setup!$AI$8<>\"\",INDIRECT(\"'\" & Setup!$AI$8 & \"'!\" & AE164),0) + IF(Setup!$AI$9<>\"\",INDIRECT(\"'\" & Setup!$AI$9 & \"'!\" & AE164),0) + IF(Setup!$AI$10<>\"\",INDIRECT(\"'\" & Setup!$AI$10 & \"'!\" & AE164),0) + IF(Setup!$AI$11<>\"\",INDIRECT(\"'\" & Setup!$AI$11 & \"'!\" & AE164),0) + IF(Setup!$AI$12<>\"\",INDIRECT(\"'\" & Setup!$AI$12 & \"'!\" & AE164),0)","v":0},{"$f":"IF(Setup!$AJ$7<>\"\",INDIRECT(\"'\" & Setup!$AJ$7 & \"'!\" & AD164),0) + IF(Setup!$AJ$8<>\"\",INDIRECT(\"'\" & Setup!$AJ$8 & \"'!\" & AD164),0) + IF(Setup!$AJ$9<>\"\",INDIRECT(\"'\" & Setup!$AJ$9 & \"'!\" & AD164),0) + IF(Setup!$AJ$10<>\"\",INDIRECT(\"'\" & Setup!$AJ$10 & \"'!\" & AD164),0) + IF(Setup!$AJ$11<>\"\",INDIRECT(\"'\" & Setup!$AJ$11 & \"'!\" & AD164),0) + IF(Setup!$AJ$12<>\"\",INDIRECT(\"'\" & Setup!$AJ$12 & \"'!\" & AD164),0)","v":0},{"$f":"IF(Setup!$AJ$7<>\"\",INDIRECT(\"'\" & Setup!$AJ$7 & \"'!\" & AE164),0) + IF(Setup!$AJ$8<>\"\",INDIRECT(\"'\" & Setup!$AJ$8 & \"'!\" & AE164),0) + IF(Setup!$AJ$9<>\"\",INDIRECT(\"'\" & Setup!$AJ$9 & \"'!\" & AE164),0) + IF(Setup!$AJ$10<>\"\",INDIRECT(\"'\" & Setup!$AJ$10 & \"'!\" & AE164),0) + IF(Setup!$AJ$11<>\"\",INDIRECT(\"'\" & Setup!$AJ$11 & \"'!\" & AE164),0) + IF(Setup!$AJ$12<>\"\",INDIRECT(\"'\" & Setup!$AJ$12 & \"'!\" & AE164),0)","v":0}]
[{"$f":"Planning!A148","v":"I140"},{"$f":"Planning!B148","v":0},{"$f":"Planning!C148","v":0},{"$f":"Planning!D148","v":0},{"$f":"Planning!E148","v":0},{"$f":"Planning!G148","v":0},null,0,0,{"$f":"IF(AND($AR165=\"2\",$AB164<>Lists!$A$17),AU165,AT165)","v":""},"",0,0,{"$f":"IF(AND($AR165=\"2\",$AB165<>Lists!$A$17),AW165,AV165)","v":""},"",0,0,{"$f":"IF(AND($AR165=\"2\",$AB165<>Lists!$A$17),AY165,AX165)","v":""},"",0,0,{"$f":"IF(AND($AR165=\"2\",$AB165<>Lists!$A$17),BA165,AZ165)","v":""},"",0,0,{"$f":"IF(AND($AR165=\"2\",$AB165<>Lists!$A$17),BC165,BB165)","v":""},"",{"$f":"Planning!H148","v":0},"00","H164","J164","I164","",null,{"$f":"IF(Setup!$AG$7<>\"\",INDIRECT(\"'\" & Setup!$AG$7 & \"'!\" & AF165),0) + IF(Setup!$AG$8<>\"\",INDIRECT(\"'\" & Setup!$AG$8 & \"'!\" & AF165),0) + IF(Setup!$AG$9<>\"\",INDIRECT(\"'\" & Setup!$AG$9 & \"'!\" & AF165),0) + IF(Setup!$AG$10<>\"\",INDIRECT(\"'\" & Setup!$AG$10 & \"'!\" & AF165),0) + IF(Setup!$AG$11<>\"\",INDIRECT(\"'\" & Setup!$AG$11 & \"'!\" & AF165),0) + IF(Setup!$AG$12<>\"\",INDIRECT(\"'\" & Setup!$AG$12 & \"'!\" & AF165),0)","v":0},{"$f":"IF(Setup!$AH$7<>\"\",INDIRECT(\"'\" & Setup!$AH$7 & \"'!\" & AF165),0) + IF(Setup!$AH$8<>\"\",INDIRECT(\"'\" & Setup!$AH$8 & \"'!\" & AF165),0) + IF(Setup!$AH$9<>\"\",INDIRECT(\"'\" & Setup!$AH$9 & \"'!\" & AF165),0) + IF(Setup!$AH$10<>\"\",INDIRECT(\"'\" & Setup!$AH$10 & \"'!\" & AF165),0) + IF(Setup!$AH$11<>\"\",INDIRECT(\"'\" & Setup!$AH$11 & \"'!\" & AF165),0) + IF(Setup!$AH$12<>\"\",INDIRECT(\"'\" & Setup!$AH$12 & \"'!\" & AF165),0)","v":0},{"$f":"IF(Setup!$AI$7<>\"\",INDIRECT(\"'\" & Setup!$AI$7 & \"'!\" & AF165),0) + IF(Setup!$AI$8<>\"\",INDIRECT(\"'\" & Setup!$AI$8 & \"'!\" & AF165),0) + IF(Setup!$AI$9<>\"\",INDIRECT(\"'\" & Setup!$AI$9 & \"'!\" & AF165),0) + IF(Setup!$AI$10<>\"\",INDIRECT(\"'\" & Setup!$AI$10 & \"'!\" & AF165),0) + IF(Setup!$AI$11<>\"\",INDIRECT(\"'\" & Setup!$AI$11 & \"'!\" & AF165),0) + IF(Setup!$AI$12<>\"\",INDIRECT(\"'\" & Setup!$AI$12 & \"'!\" & AF165),0)","v":0},{"$f":"IF(Setup!$AJ$7<>\"\",INDIRECT(\"'\" & Setup!$AJ$7 & \"'!\" & AF165),0) + IF(Setup!$AJ$8<>\"\",INDIRECT(\"'\" & Setup!$AJ$8 & \"'!\" & AF165),0) + IF(Setup!$AJ$9<>\"\",INDIRECT(\"'\" & Setup!$AJ$9 & \"'!\" & AF165),0) + IF(Setup!$AJ$10<>\"\",INDIRECT(\"'\" & Setup!$AJ$10 & \"'!\" & AF165),0) + IF(Setup!$AJ$11<>\"\",INDIRECT(\"'\" & Setup!$AJ$11 & \"'!\" & AF165),0) + IF(Setup!$AJ$12<>\"\",INDIRECT(\"'\" & Setup!$AJ$12 & \"'!\" & AF165),0)","v":0},null,"",{"$nulls":3},{"$f":"IF(C165=0,\"\",LEFT(INDEX(Lists!$H$5:$H$49,MATCH(C165,Lists!$G$5:$G$49,0),1),1))","v":""},null,"","","","","","","","","","",{"$nulls":6},{"$f":"IF(Setup!$AG$7<>\"\",INDIRECT(\"'\" & Setup!$AG$7 & \"'!\" & AD165),0) + IF(Setup!$AG$8<>\"\",INDIRECT(\"'\" & Setup!$AG$8 & \"'!\" & AD165),0) + IF(Setup!$AG$9<>\"\",INDIRECT(\"'\" & Setup!$AG$9 & \"'!\" & AD165),0) + IF(Setup!$AG$10<>\"\",INDIRECT(\"'\" & Setup!$AG$10 & \"'!\" & AD165),0) + IF(Setup!$AG$11<>\"\",INDIRECT(\"'\" & Setup!$AG$11 & \"'!\" & AD165),0) + IF(Setup!$AG$12<>\"\",INDIRECT(\"'\" & Setup!$AG$12 & \"'!\" & AD165),0)","v":0},{"$f":"IF(Setup!$AG$7<>\"\",INDIRECT(\"'\" & Setup!$AG$7 & \"'!\" & AE165),0) + IF(Setup!$AG$8<>\"\",INDIRECT(\"'\" & Setup!$AG$8 & \"'!\" & AE165),0) + IF(Setup!$AG$9<>\"\",INDIRECT(\"'\" & Setup!$AG$9 & \"'!\" & AE165),0) + IF(Setup!$AG$10<>\"\",INDIRECT(\"'\" & Setup!$AG$10 & \"'!\" & AE165),0) + IF(Setup!$AG$11<>\"\",INDIRECT(\"'\" & Setup!$AG$11 & \"'!\" & AE165),0) + IF(Setup!$AG$12<>\"\",INDIRECT(\"'\" & Setup!$AG$12 & \"'!\" & AE165),0)","v":0},{"$f":"IF(Setup!$AH$7<>\"\",INDIRECT(\"'\" & Setup!$AH$7 & \"'!\" & AD165),0) + IF(Setup!$AH$8<>\"\",INDIRECT(\"'\" & Setup!$AH$8 & \"'!\" & AD165),0) + IF(Setup!$AH$9<>\"\",INDIRECT(\"'\" & Setup!$AH$9 & \"'!\" & AD165),0) + IF(Setup!$AH$10<>\"\",INDIRECT(\"'\" & Setup!$AH$10 & \"'!\" & AD165),0) + IF(Setup!$AH$11<>\"\",INDIRECT(\"'\" & Setup!$AH$11 & \"'!\" & AD165),0) + IF(Setup!$AH$12<>\"\",INDIRECT(\"'\" & Setup!$AH$12 & \"'!\" & AD165),0)","v":0},{"$f":"IF(Setup!$AH$7<>\"\",INDIRECT(\"'\" & Setup!$AH$7 & \"'!\" & AE165),0) + IF(Setup!$AH$8<>\"\",INDIRECT(\"'\" & Setup!$AH$8 & \"'!\" & AE165),0) + IF(Setup!$AH$9<>\"\",INDIRECT(\"'\" & Setup!$AH$9 & \"'!\" & AE165),0) + IF(Setup!$AH$10<>\"\",INDIRECT(\"'\" & Setup!$AH$10 & \"'!\" & AE165),0) + IF(Setup!$AH$11<>\"\",INDIRECT(\"'\" & Setup!$AH$11 & \"'!\" & AE165),0) + IF(Setup!$AH$12<>\"\",INDIRECT(\"'\" & Setup!$AH$12 & \"'!\" & AE165),0)","v":0},{"$f":"IF(Setup!$AI$7<>\"\",INDIRECT(\"'\" & Setup!$AI$7 & \"'!\" & AD165),0) + IF(Setup!$AI$8<>\"\",INDIRECT(\"'\" & Setup!$AI$8 & \"'!\" & AD165),0) + IF(Setup!$AI$9<>\"\",INDIRECT(\"'\" & Setup!$AI$9 & \"'!\" & AD165),0) + IF(Setup!$AI$10<>\"\",INDIRECT(\"'\" & Setup!$AI$10 & \"'!\" & AD165),0) + IF(Setup!$AI$11<>\"\",INDIRECT(\"'\" & Setup!$AI$11 & \"'!\" & AD165),0) + IF(Setup!$AI$12<>\"\",INDIRECT(\"'\" & Setup!$AI$12 & \"'!\" & AD165),0)","v":0},{"$f":"IF(Setup!$AI$7<>\"\",INDIRECT(\"'\" & Setup!$AI$7 & \"'!\" & AE165),0) + IF(Setup!$AI$8<>\"\",INDIRECT(\"'\" & Setup!$AI$8 & \"'!\" & AE165),0) + IF(Setup!$AI$9<>\"\",INDIRECT(\"'\" & Setup!$AI$9 & \"'!\" & AE165),0) + IF(Setup!$AI$10<>\"\",INDIRECT(\"'\" & Setup!$AI$10 & \"'!\" & AE165),0) + IF(Setup!$AI$11<>\"\",INDIRECT(\"'\" & Setup!$AI$11 & \"'!\" & AE165),0) + IF(Setup!$AI$12<>\"\",INDIRECT(\"'\" & Setup!$AI$12 & \"'!\" & AE165),0)","v":0},{"$f":"IF(Setup!$AJ$7<>\"\",INDIRECT(\"'\" & Setup!$AJ$7 & \"'!\" & AD165),0) + IF(Setup!$AJ$8<>\"\",INDIRECT(\"'\" & Setup!$AJ$8 & \"'!\" & AD165),0) + IF(Setup!$AJ$9<>\"\",INDIRECT(\"'\" & Setup!$AJ$9 & \"'!\" & AD165),0) + IF(Setup!$AJ$10<>\"\",INDIRECT(\"'\" & Setup!$AJ$10 & \"'!\" & AD165),0) + IF(Setup!$AJ$11<>\"\",INDIRECT(\"'\" & Setup!$AJ$11 & \"'!\" & AD165),0) + IF(Setup!$AJ$12<>\"\",INDIRECT(\"'\" & Setup!$AJ$12 & \"'!\" & AD165),0)","v":0},{"$f":"IF(Setup!$AJ$7<>\"\",INDIRECT(\"'\" & Setup!$AJ$7 & \"'!\" & AE165),0) + IF(Setup!$AJ$8<>\"\",INDIRECT(\"'\" & Setup!$AJ$8 & \"'!\" & AE165),0) + IF(Setup!$AJ$9<>\"\",INDIRECT(\"'\" & Setup!$AJ$9 & \"'!\" & AE165),0) + IF(Setup!$AJ$10<>\"\",INDIRECT(\"'\" & Setup!$AJ$10 & \"'!\" & AE165),0) + IF(Setup!$AJ$11<>\"\",INDIRECT(\"'\" & Setup!$AJ$11 & \"'!\" & AE165),0) + IF(Setup!$AJ$12<>\"\",INDIRECT(\"'\" & Setup!$AJ$12 & \"'!\" & AE165),0)","v":0}]
[{"$f":"Planning!A149","v":"I141"},{"$f":"Planning!B149","v":0},{"$f":"Planning!C149","v":0},{"$f":"Planning!D149","v":0},{"$f":"Planning!E149","v":0},{"$f":"Planning!G149","v":0},null,0,0,{"$f":"IF(AND($AR166=\"2\",$AB165<>Lists!$A$17),AU166,AT166)","v":""},"",0,0,{"$f":"IF(AND($AR166=\"2\",$AB166<>Lists!$A$17),AW166,AV166)","v":""},"",0,0,{"$f":"IF(AND($AR166=\"2\",$AB166<>Lists!$A$17),AY166,AX166)","v":""},"",0,0,{"$f":"IF(AND($AR166=\"2\",$AB166<>Lists!$A$17),BA166,AZ166)","v":""},"",0,0,{"$f":"IF(AND($AR166=\"2\",$AB166<>Lists!$A$17),BC166,BB166)","v":""},"",{"$f":"Planning!H149","v":0},"00","H165","J165","I165","",null,{"$f":"IF(Setup!$AG$7<>\"\",INDIRECT(\"'\" & Setup!$AG$7 & \"'!\" & AF166),0) + IF(Setup!$AG$8<>\"\",INDIRECT(\"'\" & Setup!$AG$8 & \"'!\" & AF166),0) + IF(Setup!$AG$9<>\"\",INDIRECT(\"'\" & Setup!$AG$9 & \"'!\" & AF166),0) + IF(Setup!$AG$10<>\"\",INDIRECT(\"'\" & Setup!$AG$10 & \"'!\" & AF166),0) + IF(Setup!$AG$11<>\"\",INDIRECT(\"'\" & Setup!$AG$11 & \"'!\" & AF166),0) + IF(Setup!$AG$12<>\"\",INDIRECT(\"'\" & Setup!$AG$12 & \"'!\" & AF166),0)","v":0},{"$f":"IF(Setup!$AH$7<>\"\",INDIRECT(\"'\" & Setup!$AH$7 & \"'!\" & AF166),0) + IF(Setup!$AH$8<>\"\",INDIRECT(\"'\" & Setup!$AH$8 & \"'!\" & AF166),0) + IF(Setup!$AH$9<>\"\",INDIRECT(\"'\" & Setup!$AH$9 & \"'!\" & AF166),0) + IF(Setup!$AH$10<>\"\",INDIRECT(\"'\" & Setup!$AH$10 & \"'!\" & AF166),0) + IF(Setup!$AH$11<>\"\",INDIRECT(\"'\" & Setup!$AH$11 & \"'!\" & AF166),0) + IF(Setup!$AH$12<>\"\",INDIRECT(\"'\" & Setup!$AH$12 & \"'!\" & AF166),0)","v":0},{"$f":"IF(Setup!$AI$7<>\"\",INDIRECT(\"'\" & Setup!$AI$7 & \"'!\" & AF166),0) + IF(Setup!$AI$8<>\"\",INDIRECT(\"'\" & Setup!$AI$8 & \"'!\" & AF166),0) + IF(Setup!$AI$9<>\"\",INDIRECT(\"'\" & Setup!$AI$9 & \"'!\" & AF166),0) + IF(Setup!$AI$10<>\"\",INDIRECT(\"'\" & Setup!$AI$10 & \"'!\" & AF166),0) + IF(Setup!$AI$11<>\"\",INDIRECT(\"'\" & Setup!$AI$11 & \"'!\" & AF166),0) + IF(Setup!$AI$12<>\"\",INDIRECT(\"'\" & Setup!$AI$12 & \"'!\" & AF166),0)","v":0},{"$f":"IF(Setup!$AJ$7<>\"\",INDIRECT(\"'\" & Setup!$AJ$7 & \"'!\" & AF166),0) + IF(Setup!$AJ$8<>\"\",INDIRECT(\"'\" & Setup!$AJ$8 & \"'!\" & AF166),0) + IF(Setup!$AJ$9<>\"\",INDIRECT(\"'\" & Setup!$AJ$9 & \"'!\" & AF166),0) + IF(Setup!$AJ$10<>\"\",INDIRECT(\"'\" & Setup!$AJ$10 & \"'!\" & AF166),0) + IF(Setup!$AJ$11<>\"\",INDIRECT(\"'\" & Setup!$AJ$11 & \"'!\" & AF166),0) + IF(Setup!$AJ$12<>\"\",INDIRECT(\"'\" & Setup!$AJ$12 & \"'!\" & AF166),0)","v":0},null,"",{"$nulls":3},{"$f":"IF(C166=0,\"\",LEFT(INDEX(Lists!$H$5:$H$49,MATCH(C166,Lists!$G$5:$G$49,0),1),1))","v":""},null,"","","","","","","","","","",{"$nulls":6},{"$f":"IF(Setup!$AG$7<>\"\",INDIRECT(\"'\" & Setup!$AG$7 & \"'!\" & AD166),0) + IF(Setup!$AG$8<>\"\",INDIRECT(\"'\" & Setup!$AG$8 & \"'!\" & AD166),0) + IF(Setup!$AG$9<>\"\",INDIRECT(\"'\" & Setup!$AG$9 & \"'!\" & AD166),0) + IF(Setup!$AG$10<>\"\",INDIRECT(\"'\" & Setup!$AG$10 & \"'!\" & AD166),0) + IF(Setup!$AG$11<>\"\",INDIRECT(\"'\" & Setup!$AG$11 & \"'!\" & AD166),0) + IF(Setup!$AG$12<>\"\",INDIRECT(\"'\" & Setup!$AG$12 & \"'!\" & AD166),0)","v":0},{"$f":"IF(Setup!$AG$7<>\"\",INDIRECT(\"'\" & Setup!$AG$7 & \"'!\" & AE166),0) + IF(Setup!$AG$8<>\"\",INDIRECT(\"'\" & Setup!$AG$8 & \"'!\" & AE166),0) + IF(Setup!$AG$9<>\"\",INDIRECT(\"'\" & Setup!$AG$9 & \"'!\" & AE166),0) + IF(Setup!$AG$10<>\"\",INDIRECT(\"'\" & Setup!$AG$10 & \"'!\" & AE166),0) + IF(Setup!$AG$11<>\"\",INDIRECT(\"'\" & Setup!$AG$11 & \"'!\" & AE166),0) + IF(Setup!$AG$12<>\"\",INDIRECT(\"'\" & Setup!$AG$12 & \"'!\" & AE166),0)","v":0},{"$f":"IF(Setup!$AH$7<>\"\",INDIRECT(\"'\" & Setup!$AH$7 & \"'!\" & AD166),0) + IF(Setup!$AH$8<>\"\",INDIRECT(\"'\" & Setup!$AH$8 & \"'!\" & AD166),0) + IF(Setup!$AH$9<>\"\",INDIRECT(\"'\" & Setup!$AH$9 & \"'!\" & AD166),0) + IF(Setup!$AH$10<>\"\",INDIRECT(\"'\" & Setup!$AH$10 & \"'!\" & AD166),0) + IF(Setup!$AH$11<>\"\",INDIRECT(\"'\" & Setup!$AH$11 & \"'!\" & AD166),0) + IF(Setup!$AH$12<>\"\",INDIRECT(\"'\" & Setup!$AH$12 & \"'!\" & AD166),0)","v":0},{"$f":"IF(Setup!$AH$7<>\"\",INDIRECT(\"'\" & Setup!$AH$7 & \"'!\" & AE166),0) + IF(Setup!$AH$8<>\"\",INDIRECT(\"'\" & Setup!$AH$8 & \"'!\" & AE166),0) + IF(Setup!$AH$9<>\"\",INDIRECT(\"'\" & Setup!$AH$9 & \"'!\" & AE166),0) + IF(Setup!$AH$10<>\"\",INDIRECT(\"'\" & Setup!$AH$10 & \"'!\" & AE166),0) + IF(Setup!$AH$11<>\"\",INDIRECT(\"'\" & Setup!$AH$11 & \"'!\" & AE166),0) + IF(Setup!$AH$12<>\"\",INDIRECT(\"'\" & Setup!$AH$12 & \"'!\" & AE166),0)","v":0},{"$f":"IF(Setup!$AI$7<>\"\",INDIRECT(\"'\" & Setup!$AI$7 & \"'!\" & AD166),0) + IF(Setup!$AI$8<>\"\",INDIRECT(\"'\" & Setup!$AI$8 & \"'!\" & AD166),0) + IF(Setup!$AI$9<>\"\",INDIRECT(\"'\" & Setup!$AI$9 & \"'!\" & AD166),0) + IF(Setup!$AI$10<>\"\",INDIRECT(\"'\" & Setup!$AI$10 & \"'!\" & AD166),0) + IF(Setup!$AI$11<>\"\",INDIRECT(\"'\" & Setup!$AI$11 & \"'!\" & AD166),0) + IF(Setup!$AI$12<>\"\",INDIRECT(\"'\" & Setup!$AI$12 & \"'!\" & AD166),0)","v":0},{"$f":"IF(Setup!$AI$7<>\"\",INDIRECT(\"'\" & Setup!$AI$7 & \"'!\" & AE166),0) + IF(Setup!$AI$8<>\"\",INDIRECT(\"'\" & Setup!$AI$8 & \"'!\" & AE166),0) + IF(Setup!$AI$9<>\"\",INDIRECT(\"'\" & Setup!$AI$9 & \"'!\" & AE166),0) + IF(Setup!$AI$10<>\"\",INDIRECT(\"'\" & Setup!$AI$10 & \"'!\" & AE166),0) + IF(Setup!$AI$11<>\"\",INDIRECT(\"'\" & Setup!$AI$11 & \"'!\" & AE166),0) + IF(Setup!$AI$12<>\"\",INDIRECT(\"'\" & Setup!$AI$12 & \"'!\" & AE166),0)","v":0},{"$f":"IF(Setup!$AJ$7<>\"\",INDIRECT(\"'\" & Setup!$AJ$7 & \"'!\" & AD166),0) + IF(Setup!$AJ$8<>\"\",INDIRECT(\"'\" & Setup!$AJ$8 & \"'!\" & AD166),0) + IF(Setup!$AJ$9<>\"\",INDIRECT(\"'\" & Setup!$AJ$9 & \"'!\" & AD166),0) + IF(Setup!$AJ$10<>\"\",INDIRECT(\"'\" & Setup!$AJ$10 & \"'!\" & AD166),0) + IF(Setup!$AJ$11<>\"\",INDIRECT(\"'\" & Setup!$AJ$11 & \"'!\" & AD166),0) + IF(Setup!$AJ$12<>\"\",INDIRECT(\"'\" & Setup!$AJ$12 & \"'!\" & AD166),0)","v":0},{"$f":"IF(Setup!$AJ$7<>\"\",INDIRECT(\"'\" & Setup!$AJ$7 & \"'!\" & AE166),0) + IF(Setup!$AJ$8<>\"\",INDIRECT(\"'\" & Setup!$AJ$8 & \"'!\" & AE166),0) + IF(Setup!$AJ$9<>\"\",INDIRECT(\"'\" & Setup!$AJ$9 & \"'!\" & AE166),0) + IF(Setup!$AJ$10<>\"\",INDIRECT(\"'\" & Setup!$AJ$10 & \"'!\" & AE166),0) + IF(Setup!$AJ$11<>\"\",INDIRECT(\"'\" & Setup!$AJ$11 & \"'!\" & AE166),0) + IF(Setup!$AJ$12<>\"\",INDIRECT(\"'\" & Setup!$AJ$12 & \"'!\" & AE166),0)","v":0}]
[{"$f":"Planning!A150","v":"I142"},{"$f":"Planning!B150","v":0},{"$f":"Planning!C150","v":0},{"$f":"Planning!D150","v":0},{"$f":"Planning!E150","v":0},{"$f":"Planning!G150","v":0},null,0,0,{"$f":"IF(AND($AR167=\"2\",$AB166<>Lists!$A$17),AU167,AT167)","v":""},"",0,0,{"$f":"IF(AND($AR167=\"2\",$AB167<>Lists!$A$17),AW167,AV167)","v":""},"",0,0,{"$f":"IF(AND($AR167=\"2\",$AB167<>Lists!$A$17),AY167,AX167)","v":""},"",0,0,{"$f":"IF(AND($AR167=\"2\",$AB167<>Lists!$A$17),BA167,AZ167)","v":""},"",0,0,{"$f":"IF(AND($AR167=\"2\",$AB167<>Lists!$A$17),BC167,BB167)","v":""},"",{"$f":"Planning!H150","v":0},"00","H166","J166","I166","",null,{"$f":"IF(Setup!$AG$7<>\"\",INDIRECT(\"'\" & Setup!$AG$7 & \"'!\" & AF167),0) + IF(Setup!$AG$8<>\"\",INDIRECT(\"'\" & Setup!$AG$8 & \"'!\" & AF167),0) + IF(Setup!$AG$9<>\"\",INDIRECT(\"'\" & Setup!$AG$9 & \"'!\" & AF167),0) + IF(Setup!$AG$10<>\"\",INDIRECT(\"'\" & Setup!$AG$10 & \"'!\" & AF167),0) + IF(Setup!$AG$11<>\"\",INDIRECT(\"'\" & Setup!$AG$11 & \"'!\" & AF167),0) + IF(Setup!$AG$12<>\"\",INDIRECT(\"'\" & Setup!$AG$12 & \"'!\" & AF167),0)","v":0},{"$f":"IF(Setup!$AH$7<>\"\",INDIRECT(\"'\" & Setup!$AH$7 & \"'!\" & AF167),0) + IF(Setup!$AH$8<>\"\",INDIRECT(\"'\" & Setup!$AH$8 & \"'!\" & AF167),0) + IF(Setup!$AH$9<>\"\",INDIRECT(\"'\" & Setup!$AH$9 & \"'!\" & AF167),0) + IF(Setup!$AH$10<>\"\",INDIRECT(\"'\" & Setup!$AH$10 & \"'!\" & AF167),0) + IF(Setup!$AH$11<>\"\",INDIRECT(\"'\" & Setup!$AH$11 & \"'!\" & AF167),0) + IF(Setup!$AH$12<>\"\",INDIRECT(\"'\" & Setup!$AH$12 & \"'!\" & AF167),0)","v":0},{"$f":"IF(Setup!$AI$7<>\"\",INDIRECT(\"'\" & Setup!$AI$7 & \"'!\" & AF167),0) + IF(Setup!$AI$8<>\"\",INDIRECT(\"'\" & Setup!$AI$8 & \"'!\" & AF167),0) + IF(Setup!$AI$9<>\"\",INDIRECT(\"'\" & Setup!$AI$9 & \"'!\" & AF167),0) + IF(Setup!$AI$10<>\"\",INDIRECT(\"'\" & Setup!$AI$10 & \"'!\" & AF167),0) + IF(Setup!$AI$11<>\"\",INDIRECT(\"'\" & Setup!$AI$11 & \"'!\" & AF167),0) + IF(Setup!$AI$12<>\"\",INDIRECT(\"'\" & Setup!$AI$12 & \"'!\" & AF167),0)","v":0},{"$f":"IF(Setup!$AJ$7<>\"\",INDIRECT(\"'\" & Setup!$AJ$7 & \"'!\" & AF167),0) + IF(Setup!$AJ$8<>\"\",INDIRECT(\"'\" & Setup!$AJ$8 & \"'!\" & AF167),0) + IF(Setup!$AJ$9<>\"\",INDIRECT(\"'\" & Setup!$AJ$9 & \"'!\" & AF167),0) + IF(Setup!$AJ$10<>\"\",INDIRECT(\"'\" & Setup!$AJ$10 & \"'!\" & AF167),0) + IF(Setup!$AJ$11<>\"\",INDIRECT(\"'\" & Setup!$AJ$11 & \"'!\" & AF167),0) + IF(Setup!$AJ$12<>\"\",INDIRECT(\"'\" & Setup!$AJ$12 & \"'!\" & AF167),0)","v":0},null,"",{"$nulls":3},{"$f":"IF(C167=0,\"\",LEFT(INDEX(Lists!$H$5:$H$49,MATCH(C167,Lists!$G$5:$G$49,0),1),1))","v":""},null,"","","","","","","","","","",{"$nulls":6},{"$f":"IF(Setup!$AG$7<>\"\",INDIRECT(\"'\" & Setup!$AG$7 & \"'!\" & AD167),0) + IF(Setup!$AG$8<>\"\",INDIRECT(\"'\" & Setup!$AG$8 & \"'!\" & AD167),0) + IF(Setup!$AG$9<>\"\",INDIRECT(\"'\" & Setup!$AG$9 & \"'!\" & AD167),0) + IF(Setup!$AG$10<>\"\",INDIRECT(\"'\" & Setup!$AG$10 & \"'!\" & AD167),0) + IF(Setup!$AG$11<>\"\",INDIRECT(\"'\" & Setup!$AG$11 & \"'!\" & AD167),0) + IF(Setup!$AG$12<>\"\",INDIRECT(\"'\" & Setup!$AG$12 & \"'!\" & AD167),0)","v":0},{"$f":"IF(Setup!$AG$7<>\"\",INDIRECT(\"'\" & Setup!$AG$7 & \"'!\" & AE167),0) + IF(Setup!$AG$8<>\"\",INDIRECT(\"'\" & Setup!$AG$8 & \"'!\" & AE167),0) + IF(Setup!$AG$9<>\"\",INDIRECT(\"'\" & Setup!$AG$9 & \"'!\" & AE167),0) + IF(Setup!$AG$10<>\"\",INDIRECT(\"'\" & Setup!$AG$10 & \"'!\" & AE167),0) + IF(Setup!$AG$11<>\"\",INDIRECT(\"'\" & Setup!$AG$11 & \"'!\" & AE167),0) + IF(Setup!$AG$12<>\"\",INDIRECT(\"'\" & Setup!$AG$12 & \"'!\" & AE167),0)","v":0},{"$f":"IF(Setup!$AH$7<>\"\",INDIRECT(\"'\" & Setup!$AH$7 & \"'!\" & AD167),0) + IF(Setup!$AH$8<>\"\",INDIRECT(\"'\" & Setup!$AH$8 & \"'!\" & AD167),0) + IF(Setup!$AH$9<>\"\",INDIRECT(\"'\" & Setup!$AH$9 & \"'!\" & AD167),0) + IF(Setup!$AH$10<>\"\",INDIRECT(\"'\" & Setup!$AH$10 & \"'!\" & AD167),0) + IF(Setup!$AH$11<>\"\",INDIRECT(\"'\" & Setup!$AH$11 & \"'!\" & AD167),0) + IF(Setup!$AH$12<>\"\",INDIRECT(\"'\" & Setup!$AH$12 & \"'!\" & AD167),0)","v":0},{"$f":"IF(Setup!$AH$7<>\"\",INDIRECT(\"'\" & Setup!$AH$7 & \"'!\" & AE167),0) + IF(Setup!$AH$8<>\"\",INDIRECT(\"'\" & Setup!$AH$8 & \"'!\" & AE167),0) + IF(Setup!$AH$9<>\"\",INDIRECT(\"'\" & Setup!$AH$9 & \"'!\" & AE167),0) + IF(Setup!$AH$10<>\"\",INDIRECT(\"'\" & Setup!$AH$10 & \"'!\" & AE167),0) + IF(Setup!$AH$11<>\"\",INDIRECT(\"'\" & Setup!$AH$11 & \"'!\" & AE167),0) + IF(Setup!$AH$12<>\"\",INDIRECT(\"'\" & Setup!$AH$12 & \"'!\" & AE167),0)","v":0},{"$f":"IF(Setup!$AI$7<>\"\",INDIRECT(\"'\" & Setup!$AI$7 & \"'!\" & AD167),0) + IF(Setup!$AI$8<>\"\",INDIRECT(\"'\" & Setup!$AI$8 & \"'!\" & AD167),0) + IF(Setup!$AI$9<>\"\",INDIRECT(\"'\" & Setup!$AI$9 & \"'!\" & AD167),0) + IF(Setup!$AI$10<>\"\",INDIRECT(\"'\" & Setup!$AI$10 & \"'!\" & AD167),0) + IF(Setup!$AI$11<>\"\",INDIRECT(\"'\" & Setup!$AI$11 & \"'!\" & AD167),0) + IF(Setup!$AI$12<>\"\",INDIRECT(\"'\" & Setup!$AI$12 & \"'!\" & AD167),0)","v":0},{"$f":"IF(Setup!$AI$7<>\"\",INDIRECT(\"'\" & Setup!$AI$7 & \"'!\" & AE167),0) + IF(Setup!$AI$8<>\"\",INDIRECT(\"'\" & Setup!$AI$8 & \"'!\" & AE167),0) + IF(Setup!$AI$9<>\"\",INDIRECT(\"'\" & Setup!$AI$9 & \"'!\" & AE167),0) + IF(Setup!$AI$10<>\"\",INDIRECT(\"'\" & Setup!$AI$10 & \"'!\" & AE167),0) + IF(Setup!$AI$11<>\"\",INDIRECT(\"'\" & Setup!$AI$11 & \"'!\" & AE167),0) + IF(Setup!$AI$12<>\"\",INDIRECT(\"'\" & Setup!$AI$12 & \"'!\" & AE167),0)","v":0},{"$f":"IF(Setup!$AJ$7<>\"\",INDIRECT(\"'\" & Setup!$AJ$7 & \"'!\" & AD167),0) + IF(Setup!$AJ$8<>\"\",INDIRECT(\"'\" & Setup!$AJ$8 & \"'!\" & AD167),0) + IF(Setup!$AJ$9<>\"\",INDIRECT(\"'\" & Setup!$AJ$9 & \"'!\" & AD167),0) + IF(Setup!$AJ$10<>\"\",INDIRECT(\"'\" & Setup!$AJ$10 & \"'!\" & AD167),0) + IF(Setup!$AJ$11<>\"\",INDIRECT(\"'\" & Setup!$AJ$11 & \"'!\" & AD167),0) + IF(Setup!$AJ$12<>\"\",INDIRECT(\"'\" & Setup!$AJ$12 & \"'!\" & AD167),0)","v":0},{"$f":"IF(Setup!$AJ$7<>\"\",INDIRECT(\"'\" & Setup!$AJ$7 & \"'!\" & AE167),0) + IF(Setup!$AJ$8<>\"\",INDIRECT(\"'\" & Setup!$AJ$8 & \"'!\" & AE167),0) + IF(Setup!$AJ$9<>\"\",INDIRECT(\"'\" & Setup!$AJ$9 & \"'!\" & AE167),0) + IF(Setup!$AJ$10<>\"\",INDIRECT(\"'\" & Setup!$AJ$10 & \"'!\" & AE167),0) + IF(Setup!$AJ$11<>\"\",INDIRECT(\"'\" & Setup!$AJ$11 & \"'!\" & AE167),0) + IF(Setup!$AJ$12<>\"\",INDIRECT(\"'\" & Setup!$AJ$12 & \"'!\" & AE167),0)","v":0}]
[{"$f":"Planning!A151","v":"I143"},{"$f":"Planning!B151","v":0},{"$f":"Planning!C151","v":0},{"$f":"Planning!D151","v":0},{"$f":"Planning!E151","v":0},{"$f":"Planning!G151","v":0},null,0,0,{"$f":"IF(AND($AR168=\"2\",$AB167<>Lists!$A$17),AU168,AT168)","v":""},"",0,0,{"$f":"IF(AND($AR168=\"2\",$AB168<>Lists!$A$17),AW168,AV168)","v":""},"",0,0,{"$f":"IF(AND($AR168=\"2\",$AB168<>Lists!$A$17),AY168,AX168)","v":""},"",0,0,{"$f":"IF(AND($AR168=\"2\",$AB168<>Lists!$A$17),BA168,AZ168)","v":""},"",0,0,{"$f":"IF(AND($AR168=\"2\",$AB168<>Lists!$A$17),BC168,BB168)","v":""},"",{"$f":"Planning!H151","v":0},"00","H167","J167","I167","",null,{"$f":"IF(Setup!$AG$7<>\"\",INDIRECT(\"'\" & Setup!$AG$7 & \"'!\" & AF168),0) + IF(Setup!$AG$8<>\"\",INDIRECT(\"'\" & Setup!$AG$8 & \"'!\" & AF168),0) + IF(Setup!$AG$9<>\"\",INDIRECT(\"'\" & Setup!$AG$9 & \"'!\" & AF168),0) + IF(Setup!$AG$10<>\"\",INDIRECT(\"'\" & Setup!$AG$10 & \"'!\" & AF168),0) + IF(Setup!$AG$11<>\"\",INDIRECT(\"'\" & Setup!$AG$11 & \"'!\" & AF168),0) + IF(Setup!$AG$12<>\"\",INDIRECT(\"'\" & Setup!$AG$12 & \"'!\" & AF168),0)","v":0},{"$f":"IF(Setup!$AH$7<>\"\",INDIRECT(\"'\" & Setup!$AH$7 & \"'!\" & AF168),0) + IF(Setup!$AH$8<>\"\",INDIRECT(\"'\" & Setup!$AH$8 & \"'!\" & AF168),0) + IF(Setup!$AH$9<>\"\",INDIRECT(\"'\" & Setup!$AH$9 & \"'!\" & AF168),0) + IF(Setup!$AH$10<>\"\",INDIRECT(\"'\" & Setup!$AH$10 & \"'!\" & AF168),0) + IF(Setup!$AH$11<>\"\",INDIRECT(\"'\" & Setup!$AH$11 & \"'!\" & AF168),0) + IF(Setup!$AH$12<>\"\",INDIRECT(\"'\" & Setup!$AH$12 & \"'!\" & AF168),0)","v":0},{"$f":"IF(Setup!$AI$7<>\"\",INDIRECT(\"'\" & Setup!$AI$7 & \"'!\" & AF168),0) + IF(Setup!$AI$8<>\"\",INDIRECT(\"'\" & Setup!$AI$8 & \"'!\" & AF168),0) + IF(Setup!$AI$9<>\"\",INDIRECT(\"'\" & Setup!$AI$9 & \"'!\" & AF168),0) + IF(Setup!$AI$10<>\"\",INDIRECT(\"'\" & Setup!$AI$10 & \"'!\" & AF168),0) + IF(Setup!$AI$11<>\"\",INDIRECT(\"'\" & Setup!$AI$11 & \"'!\" & AF168),0) + IF(Setup!$AI$12<>\"\",INDIRECT(\"'\" & Setup!$AI$12 & \"'!\" & AF168),0)","v":0},{"$f":"IF(Setup!$AJ$7<>\"\",INDIRECT(\"'\" & Setup!$AJ$7 & \"'!\" & AF168),0) + IF(Setup!$AJ$8<>\"\",INDIRECT(\"'\" & Setup!$AJ$8 & \"'!\" & AF168),0) + IF(Setup!$AJ$9<>\"\",INDIRECT(\"'\" & Setup!$AJ$9 & \"'!\" & AF168),0) + IF(Setup!$AJ$10<>\"\",INDIRECT(\"'\" & Setup!$AJ$10 & \"'!\" & AF168),0) + IF(Setup!$AJ$11<>\"\",INDIRECT(\"'\" & Setup!$AJ$11 & \"'!\" & AF168),0) + IF(Setup!$AJ$12<>\"\",INDIRECT(\"'\" & Setup!$AJ$12 & \"'!\" & AF168),0)","v":0},null,"",{"$nulls":3},{"$f":"IF(C168=0,\"\",LEFT(INDEX(Lists!$H$5:$H$49,MATCH(C168,Lists!$G$5:$G$49,0),1),1))","v":""},null,"","","","","","","","","","",{"$nulls":6},{"$f":"IF(Setup!$AG$7<>\"\",INDIRECT(\"'\" & Setup!$AG$7 & \"'!\" & AD168),0) + IF(Setup!$AG$8<>\"\",INDIRECT(\"'\" & Setup!$AG$8 & \"'!\" & AD168),0) + IF(Setup!$AG$9<>\"\",INDIRECT(\"'\" & Setup!$AG$9 & \"'!\" & AD168),0) + IF(Setup!$AG$10<>\"\",INDIRECT(\"'\" & Setup!$AG$10 & \"'!\" & AD168),0) + IF(Setup!$AG$11<>\"\",INDIRECT(\"'\" & Setup!$AG$11 & \"'!\" & AD168),0) + IF(Setup!$AG$12<>\"\",INDIRECT(\"'\" & Setup!$AG$12 & \"'!\" & AD168),0)","v":0},{"$f":"IF(Setup!$AG$7<>\"\",INDIRECT(\"'\" & Setup!$AG$7 & \"'!\" & AE168),0) + IF(Setup!$AG$8<>\"\",INDIRECT(\"'\" & Setup!$AG$8 & \"'!\" & AE168),0) + IF(Setup!$AG$9<>\"\",INDIRECT(\"'\" & Setup!$AG$9 & \"'!\" & AE168),0) + IF(Setup!$AG$10<>\"\",INDIRECT(\"'\" & Setup!$AG$10 & \"'!\" & AE168),0) + IF(Setup!$AG$11<>\"\",INDIRECT(\"'\" & Setup!$AG$11 & \"'!\" & AE168),0) + IF(Setup!$AG$12<>\"\",INDIRECT(\"'\" & Setup!$AG$12 & \"'!\" & AE168),0)","v":0},{"$f":"IF(Setup!$AH$7<>\"\",INDIRECT(\"'\" & Setup!$AH$7 & \"'!\" & AD168),0) + IF(Setup!$AH$8<>\"\",INDIRECT(\"'\" & Setup!$AH$8 & \"'!\" & AD168),0) + IF(Setup!$AH$9<>\"\",INDIRECT(\"'\" & Setup!$AH$9 & \"'!\" & AD168),0) + IF(Setup!$AH$10<>\"\",INDIRECT(\"'\" & Setup!$AH$10 & \"'!\" & AD168),0) + IF(Setup!$AH$11<>\"\",INDIRECT(\"'\" & Setup!$AH$11 & \"'!\" & AD168),0) + IF(Setup!$AH$12<>\"\",INDIRECT(\"'\" & Setup!$AH$12 & \"'!\" & AD168),0)","v":0},{"$f":"IF(Setup!$AH$7<>\"\",INDIRECT(\"'\" & Setup!$AH$7 & \"'!\" & AE168),0) + IF(Setup!$AH$8<>\"\",INDIRECT(\"'\" & Setup!$AH$8 & \"'!\" & AE168),0) + IF(Setup!$AH$9<>\"\",INDIRECT(\"'\" & Setup!$AH$9 & \"'!\" & AE168),0) + IF(Setup!$AH$10<>\"\",INDIRECT(\"'\" & Setup!$AH$10 & \"'!\" & AE168),0) + IF(Setup!$AH$11<>\"\",INDIRECT(\"'\" & Setup!$AH$11 & \"'!\" & AE168),0) + IF(Setup!$AH$12<>\"\",INDIRECT(\"'\" & Setup!$AH$12 & \"'!\" & AE168),0)","v":0},{"$f":"IF(Setup!$AI$7<>\"\",INDIRECT(\"'\" & Setup!$AI$7 & \"'!\" & AD168),0) + IF(Setup!$AI$8<>\"\",INDIRECT(\"'\" & Setup!$AI$8 & \"'!\" & AD168),0) + IF(Setup!$AI$9<>\"\",INDIRECT(\"'\" & Setup!$AI$9 & \"'!\" & AD168),0) + IF(Setup!$AI$10<>\"\",INDIRECT(\"'\" & Setup!$AI$10 & \"'!\" & AD168),0) + IF(Setup!$AI$11<>\"\",INDIRECT(\"'\" & Setup!$AI$11 & \"'!\" & AD168),0) + IF(Setup!$AI$12<>\"\",INDIRECT(\"'\" & Setup!$AI$12 & \"'!\" & AD168),0)","v":0},{"$f":"IF(Setup!$AI$7<>\"\",INDIRECT(\"'\" & Setup!$AI$7 & \"'!\" & AE168),0) + IF(Setup!$AI$8<>\"\",INDIRECT(\"'\" & Setup!$AI$8 & \"'!\" & AE168),0) + IF(Setup!$AI$9<>\"\",INDIRECT(\"'\" & Setup!$AI$9 & \"'!\" & AE168),0) + IF(Setup!$AI$10<>\"\",INDIRECT(\"'\" & Setup!$AI$10 & \"'!\" & AE168),0) + IF(Setup!$AI$11<>\"\",INDIRECT(\"'\" & Setup!$AI$11 & \"'!\" & AE168),0) + IF(Setup!$AI$12<>\"\",INDIRECT(\"'\" & Setup!$AI$12 & \"'!\" & AE168),0)","v":0},{"$f":"IF(Setup!$AJ$7<>\"\",INDIRECT(\"'\" & Setup!$AJ$7 & \"'!\" & AD168),0) + IF(Setup!$AJ$8<>\"\",INDIRECT(\"'\" & Setup!$AJ$8 & \"'!\" & AD168),0) + IF(Setup!$AJ$9<>\"\",INDIRECT(\"'\" & Setup!$AJ$9 & \"'!\" & AD168),0) + IF(Setup!$AJ$10<>\"\",INDIRECT(\"'\" & Setup!$AJ$10 & \"'!\" & AD168),0) + IF(Setup!$AJ$11<>\"\",INDIRECT(\"'\" & Setup!$AJ$11 & \"'!\" & AD168),0) + IF(Setup!$AJ$12<>\"\",INDIRECT(\"'\" & Setup!$AJ$12 & \"'!\" & AD168),0)","v":0},{"$f":"IF(Setup!$AJ$7<>\"\",INDIRECT(\"'\" & Setup!$AJ$7 & \"'!\" & AE168),0) + IF(Setup!$AJ$8<>\"\",INDIRECT(\"'\" & Setup!$AJ$8 & \"'!\" & AE168),0) + IF(Setup!$AJ$9<>\"\",INDIRECT(\"'\" & Setup!$AJ$9 & \"'!\" & AE168),0) + IF(Setup!$AJ$10<>\"\",INDIRECT(\"'\" & Setup!$AJ$10 & \"'!\" & AE168),0) + IF(Setup!$AJ$11<>\"\",INDIRECT(\"'\" & Setup!$AJ$11 & \"'!\" & AE168),0) + IF(Setup!$AJ$12<>\"\",INDIRECT(\"'\" & Setup!$AJ$12 & \"'!\" & AE168),0)","v":0}]
[{"$f":"Planning!A152","v":"I144"},{"$f":"Planning!B152","v":0},{"$f":"Planning!C152","v":0},{"$f":"Planning!D152","v":0},{"$f":"Planning!E152","v":0},{"$f":"Planning!G152","v":0},null,0,0,{"$f":"IF(AND($AR169=\"2\",$AB168<>Lists!$A$17),AU169,AT169)","v":""},"",0,0,{"$f":"IF(AND($AR169=\"2\",$AB169<>Lists!$A$17),AW169,AV169)","v":""},"",0,0,{"$f":"IF(AND($AR169=\"2\",$AB169<>Lists!$A$17),AY169,AX169)","v":""},"",0,0,{"$f":"IF(AND($AR169=\"2\",$AB169<>Lists!$A$17),BA169,AZ169)","v":""},"",0,0,{"$f":"IF(AND($AR169=\"2\",$AB169<>Lists!$A$17),BC169,BB169)","v":""},"",{"$f":"Planning!H152","v":0},"00","H168","J168","I168","",null,{"$f":"IF(Setup!$AG$7<>\"\",INDIRECT(\"'\" & Setup!$AG$7 & \"'!\" & AF169),0) + IF(Setup!$AG$8<>\"\",INDIRECT(\"'\" & Setup!$AG$8 & \"'!\" & AF169),0) + IF(Setup!$AG$9<>\"\",INDIRECT(\"'\" & Setup!$AG$9 & \"'!\" & AF169),0) + IF(Setup!$AG$10<>\"\",INDIRECT(\"'\" & Setup!$AG$10 & \"'!\" & AF169),0) + IF(Setup!$AG$11<>\"\",INDIRECT(\"'\" & Setup!$AG$11 & \"'!\" & AF169),0) + IF(Setup!$AG$12<>\"\",INDIRECT(\"'\" & Setup!$AG$12 & \"'!\" & AF169),0)","v":0},{"$f":"IF(Setup!$AH$7<>\"\",INDIRECT(\"'\" & Setup!$AH$7 & \"'!\" & AF169),0) + IF(Setup!$AH$8<>\"\",INDIRECT(\"'\" & Setup!$AH$8 & \"'!\" & AF169),0) + IF(Setup!$AH$9<>\"\",INDIRECT(\"'\" & Setup!$AH$9 & \"'!\" & AF169),0) + IF(Setup!$AH$10<>\"\",INDIRECT(\"'\" & Setup!$AH$10 & \"'!\" & AF169),0) + IF(Setup!$AH$11<>\"\",INDIRECT(\"'\" & Setup!$AH$11 & \"'!\" & AF169),0) + IF(Setup!$AH$12<>\"\",INDIRECT(\"'\" & Setup!$AH$12 & \"'!\" & AF169),0)","v":0},{"$f":"IF(Setup!$AI$7<>\"\",INDIRECT(\"'\" & Setup!$AI$7 & \"'!\" & AF169),0) + IF(Setup!$AI$8<>\"\",INDIRECT(\"'\" & Setup!$AI$8 & \"'!\" & AF169),0) + IF(Setup!$AI$9<>\"\",INDIRECT(\"'\" & Setup!$AI$9 & \"'!\" & AF169),0) + IF(Setup!$AI$10<>\"\",INDIRECT(\"'\" & Setup!$AI$10 & \"'!\" & AF169),0) + IF(Setup!$AI$11<>\"\",INDIRECT(\"'\" & Setup!$AI$11 & \"'!\" & AF169),0) + IF(Setup!$AI$12<>\"\",INDIRECT(\"'\" & Setup!$AI$12 & \"'!\" & AF169),0)","v":0},{"$f":"IF(Setup!$AJ$7<>\"\",INDIRECT(\"'\" & Setup!$AJ$7 & \"'!\" & AF169),0) + IF(Setup!$AJ$8<>\"\",INDIRECT(\"'\" & Setup!$AJ$8 & \"'!\" & AF169),0) + IF(Setup!$AJ$9<>\"\",INDIRECT(\"'\" & Setup!$AJ$9 & \"'!\" & AF169),0) + IF(Setup!$AJ$10<>\"\",INDIRECT(\"'\" & Setup!$AJ$10 & \"'!\" & AF169),0) + IF(Setup!$AJ$11<>\"\",INDIRECT(\"'\" & Setup!$AJ$11 & \"'!\" & AF169),0) + IF(Setup!$AJ$12<>\"\",INDIRECT(\"'\" & Setup!$AJ$12 & \"'!\" & AF169),0)","v":0},null,"",{"$nulls":3},{"$f":"IF(C169=0,\"\",LEFT(INDEX(Lists!$H$5:$H$49,MATCH(C169,Lists!$G$5:$G$49,0),1),1))","v":""},null,"","","","","","","","","","",{"$nulls":6},{"$f":"IF(Setup!$AG$7<>\"\",INDIRECT(\"'\" & Setup!$AG$7 & \"'!\" & AD169),0) + IF(Setup!$AG$8<>\"\",INDIRECT(\"'\" & Setup!$AG$8 & \"'!\" & AD169),0) + IF(Setup!$AG$9<>\"\",INDIRECT(\"'\" & Setup!$AG$9 & \"'!\" & AD169),0) + IF(Setup!$AG$10<>\"\",INDIRECT(\"'\" & Setup!$AG$10 & \"'!\" & AD169),0) + IF(Setup!$AG$11<>\"\",INDIRECT(\"'\" & Setup!$AG$11 & \"'!\" & AD169),0) + IF(Setup!$AG$12<>\"\",INDIRECT(\"'\" & Setup!$AG$12 & \"'!\" & AD169),0)","v":0},{"$f":"IF(Setup!$AG$7<>\"\",INDIRECT(\"'\" & Setup!$AG$7 & \"'!\" & AE169),0) + IF(Setup!$AG$8<>\"\",INDIRECT(\"'\" & Setup!$AG$8 & \"'!\" & AE169),0) + IF(Setup!$AG$9<>\"\",INDIRECT(\"'\" & Setup!$AG$9 & \"'!\" & AE169),0) + IF(Setup!$AG$10<>\"\",INDIRECT(\"'\" & Setup!$AG$10 & \"'!\" & AE169),0) + IF(Setup!$AG$11<>\"\",INDIRECT(\"'\" & Setup!$AG$11 & \"'!\" & AE169),0) + IF(Setup!$AG$12<>\"\",INDIRECT(\"'\" & Setup!$AG$12 & \"'!\" & AE169),0)","v":0},{"$f":"IF(Setup!$AH$7<>\"\",INDIRECT(\"'\" & Setup!$AH$7 & \"'!\" & AD169),0) + IF(Setup!$AH$8<>\"\",INDIRECT(\"'\" & Setup!$AH$8 & \"'!\" & AD169),0) + IF(Setup!$AH$9<>\"\",INDIRECT(\"'\" & Setup!$AH$9 & \"'!\" & AD169),0) + IF(Setup!$AH$10<>\"\",INDIRECT(\"'\" & Setup!$AH$10 & \"'!\" & AD169),0) + IF(Setup!$AH$11<>\"\",INDIRECT(\"'\" & Setup!$AH$11 & \"'!\" & AD169),0) + IF(Setup!$AH$12<>\"\",INDIRECT(\"'\" & Setup!$AH$12 & \"'!\" & AD169),0)","v":0},{"$f":"IF(Setup!$AH$7<>\"\",INDIRECT(\"'\" & Setup!$AH$7 & \"'!\" & AE169),0) + IF(Setup!$AH$8<>\"\",INDIRECT(\"'\" & Setup!$AH$8 & \"'!\" & AE169),0) + IF(Setup!$AH$9<>\"\",INDIRECT(\"'\" & Setup!$AH$9 & \"'!\" & AE169),0) + IF(Setup!$AH$10<>\"\",INDIRECT(\"'\" & Setup!$AH$10 & \"'!\" & AE169),0) + IF(Setup!$AH$11<>\"\",INDIRECT(\"'\" & Setup!$AH$11 & \"'!\" & AE169),0) + IF(Setup!$AH$12<>\"\",INDIRECT(\"'\" & Setup!$AH$12 & \"'!\" & AE169),0)","v":0},{"$f":"IF(Setup!$AI$7<>\"\",INDIRECT(\"'\" & Setup!$AI$7 & \"'!\" & AD169),0) + IF(Setup!$AI$8<>\"\",INDIRECT(\"'\" & Setup!$AI$8 & \"'!\" & AD169),0) + IF(Setup!$AI$9<>\"\",INDIRECT(\"'\" & Setup!$AI$9 & \"'!\" & AD169),0) + IF(Setup!$AI$10<>\"\",INDIRECT(\"'\" & Setup!$AI$10 & \"'!\" & AD169),0) + IF(Setup!$AI$11<>\"\",INDIRECT(\"'\" & Setup!$AI$11 & \"'!\" & AD169),0) + IF(Setup!$AI$12<>\"\",INDIRECT(\"'\" & Setup!$AI$12 & \"'!\" & AD169),0)","v":0},{"$f":"IF(Setup!$AI$7<>\"\",INDIRECT(\"'\" & Setup!$AI$7 & \"'!\" & AE169),0) + IF(Setup!$AI$8<>\"\",INDIRECT(\"'\" & Setup!$AI$8 & \"'!\" & AE169),0) + IF(Setup!$AI$9<>\"\",INDIRECT(\"'\" & Setup!$AI$9 & \"'!\" & AE169),0) + IF(Setup!$AI$10<>\"\",INDIRECT(\"'\" & Setup!$AI$10 & \"'!\" & AE169),0) + IF(Setup!$AI$11<>\"\",INDIRECT(\"'\" & Setup!$AI$11 & \"'!\" & AE169),0) + IF(Setup!$AI$12<>\"\",INDIRECT(\"'\" & Setup!$AI$12 & \"'!\" & AE169),0)","v":0},{"$f":"IF(Setup!$AJ$7<>\"\",INDIRECT(\"'\" & Setup!$AJ$7 & \"'!\" & AD169),0) + IF(Setup!$AJ$8<>\"\",INDIRECT(\"'\" & Setup!$AJ$8 & \"'!\" & AD169),0) + IF(Setup!$AJ$9<>\"\",INDIRECT(\"'\" & Setup!$AJ$9 & \"'!\" & AD169),0) + IF(Setup!$AJ$10<>\"\",INDIRECT(\"'\" & Setup!$AJ$10 & \"'!\" & AD169),0) + IF(Setup!$AJ$11<>\"\",INDIRECT(\"'\" & Setup!$AJ$11 & \"'!\" & AD169),0) + IF(Setup!$AJ$12<>\"\",INDIRECT(\"'\" & Setup!$AJ$12 & \"'!\" & AD169),0)","v":0},{"$f":"IF(Setup!$AJ$7<>\"\",INDIRECT(\"'\" & Setup!$AJ$7 & \"'!\" & AE169),0) + IF(Setup!$AJ$8<>\"\",INDIRECT(\"'\" & Setup!$AJ$8 & \"'!\" & AE169),0) + IF(Setup!$AJ$9<>\"\",INDIRECT(\"'\" & Setup!$AJ$9 & \"'!\" & AE169),0) + IF(Setup!$AJ$10<>\"\",INDIRECT(\"'\" & Setup!$AJ$10 & \"'!\" & AE169),0) + IF(Setup!$AJ$11<>\"\",INDIRECT(\"'\" & Setup!$AJ$11 & \"'!\" & AE169),0) + IF(Setup!$AJ$12<>\"\",INDIRECT(\"'\" & Setup!$AJ$12 & \"'!\" & AE169),0)","v":0}]
[{"$f":"Planning!A153","v":"I145"},{"$f":"Planning!B153","v":0},{"$f":"Planning!C153","v":0},{"$f":"Planning!D153","v":0},{"$f":"Planning!E153","v":0},{"$f":"Planning!G153","v":0},null,0,0,{"$f":"IF(AND($AR170=\"2\",$AB169<>Lists!$A$17),AU170,AT170)","v":""},"",0,0,{"$f":"IF(AND($AR170=\"2\",$AB170<>Lists!$A$17),AW170,AV170)","v":""},"",0,0,{"$f":"IF(AND($AR170=\"2\",$AB170<>Lists!$A$17),AY170,AX170)","v":""},"",0,0,{"$f":"IF(AND($AR170=\"2\",$AB170<>Lists!$A$17),BA170,AZ170)","v":""},"",0,0,{"$f":"IF(AND($AR170=\"2\",$AB170<>Lists!$A$17),BC170,BB170)","v":""},"",{"$f":"Planning!H153","v":0},"00","H169","J169","I169","",null,{"$f":"IF(Setup!$AG$7<>\"\",INDIRECT(\"'\" & Setup!$AG$7 & \"'!\" & AF170),0) + IF(Setup!$AG$8<>\"\",INDIRECT(\"'\" & Setup!$AG$8 & \"'!\" & AF170),0) + IF(Setup!$AG$9<>\"\",INDIRECT(\"'\" & Setup!$AG$9 & \"'!\" & AF170),0) + IF(Setup!$AG$10<>\"\",INDIRECT(\"'\" & Setup!$AG$10 & \"'!\" & AF170),0) + IF(Setup!$AG$11<>\"\",INDIRECT(\"'\" & Setup!$AG$11 & \"'!\" & AF170),0) + IF(Setup!$AG$12<>\"\",INDIRECT(\"'\" & Setup!$AG$12 & \"'!\" & AF170),0)","v":0},{"$f":"IF(Setup!$AH$7<>\"\",INDIRECT(\"'\" & Setup!$AH$7 & \"'!\" & AF170),0) + IF(Setup!$AH$8<>\"\",INDIRECT(\"'\" & Setup!$AH$8 & \"'!\" & AF170),0) + IF(Setup!$AH$9<>\"\",INDIRECT(\"'\" & Setup!$AH$9 & \"'!\" & AF170),0) + IF(Setup!$AH$10<>\"\",INDIRECT(\"'\" & Setup!$AH$10 & \"'!\" & AF170),0) + IF(Setup!$AH$11<>\"\",INDIRECT(\"'\" & Setup!$AH$11 & \"'!\" & AF170),0) + IF(Setup!$AH$12<>\"\",INDIRECT(\"'\" & Setup!$AH$12 & \"'!\" & AF170),0)","v":0},{"$f":"IF(Setup!$AI$7<>\"\",INDIRECT(\"'\" & Setup!$AI$7 & \"'!\" & AF170),0) + IF(Setup!$AI$8<>\"\",INDIRECT(\"'\" & Setup!$AI$8 & \"'!\" & AF170),0) + IF(Setup!$AI$9<>\"\",INDIRECT(\"'\" & Setup!$AI$9 & \"'!\" & AF170),0) + IF(Setup!$AI$10<>\"\",INDIRECT(\"'\" & Setup!$AI$10 & \"'!\" & AF170),0) + IF(Setup!$AI$11<>\"\",INDIRECT(\"'\" & Setup!$AI$11 & \"'!\" & AF170),0) + IF(Setup!$AI$12<>\"\",INDIRECT(\"'\" & Setup!$AI$12 & \"'!\" & AF170),0)","v":0},{"$f":"IF(Setup!$AJ$7<>\"\",INDIRECT(\"'\" & Setup!$AJ$7 & \"'!\" & AF170),0) + IF(Setup!$AJ$8<>\"\",INDIRECT(\"'\" & Setup!$AJ$8 & \"'!\" & AF170),0) + IF(Setup!$AJ$9<>\"\",INDIRECT(\"'\" & Setup!$AJ$9 & \"'!\" & AF170),0) + IF(Setup!$AJ$10<>\"\",INDIRECT(\"'\" & Setup!$AJ$10 & \"'!\" & AF170),0) + IF(Setup!$AJ$11<>\"\",INDIRECT(\"'\" & Setup!$AJ$11 & \"'!\" & AF170),0) + IF(Setup!$AJ$12<>\"\",INDIRECT(\"'\" & Setup!$AJ$12 & \"'!\" & AF170),0)","v":0},null,"",{"$nulls":3},{"$f":"IF(C170=0,\"\",LEFT(INDEX(Lists!$H$5:$H$49,MATCH(C170,Lists!$G$5:$G$49,0),1),1))","v":""},null,"","","","","","","","","","",{"$nulls":6},{"$f":"IF(Setup!$AG$7<>\"\",INDIRECT(\"'\" & Setup!$AG$7 & \"'!\" & AD170),0) + IF(Setup!$AG$8<>\"\",INDIRECT(\"'\" & Setup!$AG$8 & \"'!\" & AD170),0) + IF(Setup!$AG$9<>\"\",INDIRECT(\"'\" & Setup!$AG$9 & \"'!\" & AD170),0) + IF(Setup!$AG$10<>\"\",INDIRECT(\"'\" & Setup!$AG$10 & \"'!\" & AD170),0) + IF(Setup!$AG$11<>\"\",INDIRECT(\"'\" & Setup!$AG$11 & \"'!\" & AD170),0) + IF(Setup!$AG$12<>\"\",INDIRECT(\"'\" & Setup!$AG$12 & \"'!\" & AD170),0)","v":0},{"$f":"IF(Setup!$AG$7<>\"\",INDIRECT(\"'\" & Setup!$AG$7 & \"'!\" & AE170),0) + IF(Setup!$AG$8<>\"\",INDIRECT(\"'\" & Setup!$AG$8 & \"'!\" & AE170),0) + IF(Setup!$AG$9<>\"\",INDIRECT(\"'\" & Setup!$AG$9 & \"'!\" & AE170),0) + IF(Setup!$AG$10<>\"\",INDIRECT(\"'\" & Setup!$AG$10 & \"'!\" & AE170),0) + IF(Setup!$AG$11<>\"\",INDIRECT(\"'\" & Setup!$AG$11 & \"'!\" & AE170),0) + IF(Setup!$AG$12<>\"\",INDIRECT(\"'\" & Setup!$AG$12 & \"'!\" & AE170),0)","v":0},{"$f":"IF(Setup!$AH$7<>\"\",INDIRECT(\"'\" & Setup!$AH$7 & \"'!\" & AD170),0) + IF(Setup!$AH$8<>\"\",INDIRECT(\"'\" & Setup!$AH$8 & \"'!\" & AD170),0) + IF(Setup!$AH$9<>\"\",INDIRECT(\"'\" & Setup!$AH$9 & \"'!\" & AD170),0) + IF(Setup!$AH$10<>\"\",INDIRECT(\"'\" & Setup!$AH$10 & \"'!\" & AD170),0) + IF(Setup!$AH$11<>\"\",INDIRECT(\"'\" & Setup!$AH$11 & \"'!\" & AD170),0) + IF(Setup!$AH$12<>\"\",INDIRECT(\"'\" & Setup!$AH$12 & \"'!\" & AD170),0)","v":0},{"$f":"IF(Setup!$AH$7<>\"\",INDIRECT(\"'\" & Setup!$AH$7 & \"'!\" & AE170),0) + IF(Setup!$AH$8<>\"\",INDIRECT(\"'\" & Setup!$AH$8 & \"'!\" & AE170),0) + IF(Setup!$AH$9<>\"\",INDIRECT(\"'\" & Setup!$AH$9 & \"'!\" & AE170),0) + IF(Setup!$AH$10<>\"\",INDIRECT(\"'\" & Setup!$AH$10 & \"'!\" & AE170),0) + IF(Setup!$AH$11<>\"\",INDIRECT(\"'\" & Setup!$AH$11 & \"'!\" & AE170),0) + IF(Setup!$AH$12<>\"\",INDIRECT(\"'\" & Setup!$AH$12 & \"'!\" & AE170),0)","v":0},{"$f":"IF(Setup!$AI$7<>\"\",INDIRECT(\"'\" & Setup!$AI$7 & \"'!\" & AD170),0) + IF(Setup!$AI$8<>\"\",INDIRECT(\"'\" & Setup!$AI$8 & \"'!\" & AD170),0) + IF(Setup!$AI$9<>\"\",INDIRECT(\"'\" & Setup!$AI$9 & \"'!\" & AD170),0) + IF(Setup!$AI$10<>\"\",INDIRECT(\"'\" & Setup!$AI$10 & \"'!\" & AD170),0) + IF(Setup!$AI$11<>\"\",INDIRECT(\"'\" & Setup!$AI$11 & \"'!\" & AD170),0) + IF(Setup!$AI$12<>\"\",INDIRECT(\"'\" & Setup!$AI$12 & \"'!\" & AD170),0)","v":0},{"$f":"IF(Setup!$AI$7<>\"\",INDIRECT(\"'\" & Setup!$AI$7 & \"'!\" & AE170),0) + IF(Setup!$AI$8<>\"\",INDIRECT(\"'\" & Setup!$AI$8 & \"'!\" & AE170),0) + IF(Setup!$AI$9<>\"\",INDIRECT(\"'\" & Setup!$AI$9 & \"'!\" & AE170),0) + IF(Setup!$AI$10<>\"\",INDIRECT(\"'\" & Setup!$AI$10 & \"'!\" & AE170),0) + IF(Setup!$AI$11<>\"\",INDIRECT(\"'\" & Setup!$AI$11 & \"'!\" & AE170),0) + IF(Setup!$AI$12<>\"\",INDIRECT(\"'\" & Setup!$AI$12 & \"'!\" & AE170),0)","v":0},{"$f":"IF(Setup!$AJ$7<>\"\",INDIRECT(\"'\" & Setup!$AJ$7 & \"'!\" & AD170),0) + IF(Setup!$AJ$8<>\"\",INDIRECT(\"'\" & Setup!$AJ$8 & \"'!\" & AD170),0) + IF(Setup!$AJ$9<>\"\",INDIRECT(\"'\" & Setup!$AJ$9 & \"'!\" & AD170),0) + IF(Setup!$AJ$10<>\"\",INDIRECT(\"'\" & Setup!$AJ$10 & \"'!\" & AD170),0) + IF(Setup!$AJ$11<>\"\",INDIRECT(\"'\" & Setup!$AJ$11 & \"'!\" & AD170),0) + IF(Setup!$AJ$12<>\"\",INDIRECT(\"'\" & Setup!$AJ$12 & \"'!\" & AD170),0)","v":0},{"$f":"IF(Setup!$AJ$7<>\"\",INDIRECT(\"'\" & Setup!$AJ$7 & \"'!\" & AE170),0) + IF(Setup!$AJ$8<>\"\",INDIRECT(\"'\" & Setup!$AJ$8 & \"'!\" & AE170),0) + IF(Setup!$AJ$9<>\"\",INDIRECT(\"'\" & Setup!$AJ$9 & \"'!\" & AE170),0) + IF(Setup!$AJ$10<>\"\",INDIRECT(\"'\" & Setup!$AJ$10 & \"'!\" & AE170),0) + IF(Setup!$AJ$11<>\"\",INDIRECT(\"'\" & Setup!$AJ$11 & \"'!\" & AE170),0) + IF(Setup!$AJ$12<>\"\",INDIRECT(\"'\" & Setup!$AJ$12 & \"'!\" & AE170),0)","v":0}]
[{"$f":"Planning!A154","v":"I146"},{"$f":"Planning!B154","v":0},{"$f":"Planning!C154","v":0},{"$f":"Planning!D154","v":0},{"$f":"Planning!E154","v":0},{"$f":"Planning!G154","v":0},null,0,0,{"$f":"IF(AND($AR171=\"2\",$AB170<>Lists!$A$17),AU171,AT171)","v":""},"",0,0,{"$f":"IF(AND($AR171=\"2\",$AB171<>Lists!$A$17),AW171,AV171)","v":""},"",0,0,{"$f":"IF(AND($AR171=\"2\",$AB171<>Lists!$A$17),AY171,AX171)","v":""},"",0,0,{"$f":"IF(AND($AR171=\"2\",$AB171<>Lists!$A$17),BA171,AZ171)","v":""},"",0,0,{"$f":"IF(AND($AR171=\"2\",$AB171<>Lists!$A$17),BC171,BB171)","v":""},"",{"$f":"Planning!H154","v":0},"00","H170","J170","I170","",null,{"$f":"IF(Setup!$AG$7<>\"\",INDIRECT(\"'\" & Setup!$AG$7 & \"'!\" & AF171),0) + IF(Setup!$AG$8<>\"\",INDIRECT(\"'\" & Setup!$AG$8 & \"'!\" & AF171),0) + IF(Setup!$AG$9<>\"\",INDIRECT(\"'\" & Setup!$AG$9 & \"'!\" & AF171),0) + IF(Setup!$AG$10<>\"\",INDIRECT(\"'\" & Setup!$AG$10 & \"'!\" & AF171),0) + IF(Setup!$AG$11<>\"\",INDIRECT(\"'\" & Setup!$AG$11 & \"'!\" & AF171),0) + IF(Setup!$AG$12<>\"\",INDIRECT(\"'\" & Setup!$AG$12 & \"'!\" & AF171),0)","v":0},{"$f":"IF(Setup!$AH$7<>\"\",INDIRECT(\"'\" & Setup!$AH$7 & \"'!\" & AF171),0) + IF(Setup!$AH$8<>\"\",INDIRECT(\"'\" & Setup!$AH$8 & \"'!\" & AF171),0) + IF(Setup!$AH$9<>\"\",INDIRECT(\"'\" & Setup!$AH$9 & \"'!\" & AF171),0) + IF(Setup!$AH$10<>\"\",INDIRECT(\"'\" & Setup!$AH$10 & \"'!\" & AF171),0) + IF(Setup!$AH$11<>\"\",INDIRECT(\"'\" & Setup!$AH$11 & \"'!\" & AF171),0) + IF(Setup!$AH$12<>\"\",INDIRECT(\"'\" & Setup!$AH$12 & \"'!\" & AF171),0)","v":0},{"$f":"IF(Setup!$AI$7<>\"\",INDIRECT(\"'\" & Setup!$AI$7 & \"'!\" & AF171),0) + IF(Setup!$AI$8<>\"\",INDIRECT(\"'\" & Setup!$AI$8 & \"'!\" & AF171),0) + IF(Setup!$AI$9<>\"\",INDIRECT(\"'\" & Setup!$AI$9 & \"'!\" & AF171),0) + IF(Setup!$AI$10<>\"\",INDIRECT(\"'\" & Setup!$AI$10 & \"'!\" & AF171),0) + IF(Setup!$AI$11<>\"\",INDIRECT(\"'\" & Setup!$AI$11 & \"'!\" & AF171),0) + IF(Setup!$AI$12<>\"\",INDIRECT(\"'\" & Setup!$AI$12 & \"'!\" & AF171),0)","v":0},{"$f":"IF(Setup!$AJ$7<>\"\",INDIRECT(\"'\" & Setup!$AJ$7 & \"'!\" & AF171),0) + IF(Setup!$AJ$8<>\"\",INDIRECT(\"'\" & Setup!$AJ$8 & \"'!\" & AF171),0) + IF(Setup!$AJ$9<>\"\",INDIRECT(\"'\" & Setup!$AJ$9 & \"'!\" & AF171),0) + IF(Setup!$AJ$10<>\"\",INDIRECT(\"'\" & Setup!$AJ$10 & \"'!\" & AF171),0) + IF(Setup!$AJ$11<>\"\",INDIRECT(\"'\" & Setup!$AJ$11 & \"'!\" & AF171),0) + IF(Setup!$AJ$12<>\"\",INDIRECT(\"'\" & Setup!$AJ$12 & \"'!\" & AF171),0)","v":0},null,"",{"$nulls":3},{"$f":"IF(C171=0,\"\",LEFT(INDEX(Lists!$H$5:$H$49,MATCH(C171,Lists!$G$5:$G$49,0),1),1))","v":""},null,"","","","","","","","","","",{"$nulls":6},{"$f":"IF(Setup!$AG$7<>\"\",INDIRECT(\"'\" & Setup!$AG$7 & \"'!\" & AD171),0) + IF(Setup!$AG$8<>\"\",INDIRECT(\"'\" & Setup!$AG$8 & \"'!\" & AD171),0) + IF(Setup!$AG$9<>\"\",INDIRECT(\"'\" & Setup!$AG$9 & \"'!\" & AD171),0) + IF(Setup!$AG$10<>\"\",INDIRECT(\"'\" & Setup!$AG$10 & \"'!\" & AD171),0) + IF(Setup!$AG$11<>\"\",INDIRECT(\"'\" & Setup!$AG$11 & \"'!\" & AD171),0) + IF(Setup!$AG$12<>\"\",INDIRECT(\"'\" & Setup!$AG$12 & \"'!\" & AD171),0)","v":0},{"$f":"IF(Setup!$AG$7<>\"\",INDIRECT(\"'\" & Setup!$AG$7 & \"'!\" & AE171),0) + IF(Setup!$AG$8<>\"\",INDIRECT(\"'\" & Setup!$AG$8 & \"'!\" & AE171),0) + IF(Setup!$AG$9<>\"\",INDIRECT(\"'\" & Setup!$AG$9 & \"'!\" & AE171),0) + IF(Setup!$AG$10<>\"\",INDIRECT(\"'\" & Setup!$AG$10 & \"'!\" & AE171),0) + IF(Setup!$AG$11<>\"\",INDIRECT(\"'\" & Setup!$AG$11 & \"'!\" & AE171),0) + IF(Setup!$AG$12<>\"\",INDIRECT(\"'\" & Setup!$AG$12 & \"'!\" & AE171),0)","v":0},{"$f":"IF(Setup!$AH$7<>\"\",INDIRECT(\"'\" & Setup!$AH$7 & \"'!\" & AD171),0) + IF(Setup!$AH$8<>\"\",INDIRECT(\"'\" & Setup!$AH$8 & \"'!\" & AD171),0) + IF(Setup!$AH$9<>\"\",INDIRECT(\"'\" & Setup!$AH$9 & \"'!\" & AD171),0) + IF(Setup!$AH$10<>\"\",INDIRECT(\"'\" & Setup!$AH$10 & \"'!\" & AD171),0) + IF(Setup!$AH$11<>\"\",INDIRECT(\"'\" & Setup!$AH$11 & \"'!\" & AD171),0) + IF(Setup!$AH$12<>\"\",INDIRECT(\"'\" & Setup!$AH$12 & \"'!\" & AD171),0)","v":0},{"$f":"IF(Setup!$AH$7<>\"\",INDIRECT(\"'\" & Setup!$AH$7 & \"'!\" & AE171),0) + IF(Setup!$AH$8<>\"\",INDIRECT(\"'\" & Setup!$AH$8 & \"'!\" & AE171),0) + IF(Setup!$AH$9<>\"\",INDIRECT(\"'\" & Setup!$AH$9 & \"'!\" & AE171),0) + IF(Setup!$AH$10<>\"\",INDIRECT(\"'\" & Setup!$AH$10 & \"'!\" & AE171),0) + IF(Setup!$AH$11<>\"\",INDIRECT(\"'\" & Setup!$AH$11 & \"'!\" & AE171),0) + IF(Setup!$AH$12<>\"\",INDIRECT(\"'\" & Setup!$AH$12 & \"'!\" & AE171),0)","v":0},{"$f":"IF(Setup!$AI$7<>\"\",INDIRECT(\"'\" & Setup!$AI$7 & \"'!\" & AD171),0) + IF(Setup!$AI$8<>\"\",INDIRECT(\"'\" & Setup!$AI$8 & \"'!\" & AD171),0) + IF(Setup!$AI$9<>\"\",INDIRECT(\"'\" & Setup!$AI$9 & \"'!\" & AD171),0) + IF(Setup!$AI$10<>\"\",INDIRECT(\"'\" & Setup!$AI$10 & \"'!\" & AD171),0) + IF(Setup!$AI$11<>\"\",INDIRECT(\"'\" & Setup!$AI$11 & \"'!\" & AD171),0) + IF(Setup!$AI$12<>\"\",INDIRECT(\"'\" & Setup!$AI$12 & \"'!\" & AD171),0)","v":0},{"$f":"IF(Setup!$AI$7<>\"\",INDIRECT(\"'\" & Setup!$AI$7 & \"'!\" & AE171),0) + IF(Setup!$AI$8<>\"\",INDIRECT(\"'\" & Setup!$AI$8 & \"'!\" & AE171),0) + IF(Setup!$AI$9<>\"\",INDIRECT(\"'\" & Setup!$AI$9 & \"'!\" & AE171),0) + IF(Setup!$AI$10<>\"\",INDIRECT(\"'\" & Setup!$AI$10 & \"'!\" & AE171),0) + IF(Setup!$AI$11<>\"\",INDIRECT(\"'\" & Setup!$AI$11 & \"'!\" & AE171),0) + IF(Setup!$AI$12<>\"\",INDIRECT(\"'\" & Setup!$AI$12 & \"'!\" & AE171),0)","v":0},{"$f":"IF(Setup!$AJ$7<>\"\",INDIRECT(\"'\" & Setup!$AJ$7 & \"'!\" & AD171),0) + IF(Setup!$AJ$8<>\"\",INDIRECT(\"'\" & Setup!$AJ$8 & \"'!\" & AD171),0) + IF(Setup!$AJ$9<>\"\",INDIRECT(\"'\" & Setup!$AJ$9 & \"'!\" & AD171),0) + IF(Setup!$AJ$10<>\"\",INDIRECT(\"'\" & Setup!$AJ$10 & \"'!\" & AD171),0) + IF(Setup!$AJ$11<>\"\",INDIRECT(\"'\" & Setup!$AJ$11 & \"'!\" & AD171),0) + IF(Setup!$AJ$12<>\"\",INDIRECT(\"'\" & Setup!$AJ$12 & \"'!\" & AD171),0)","v":0},{"$f":"IF(Setup!$AJ$7<>\"\",INDIRECT(\"'\" & Setup!$AJ$7 & \"'!\" & AE171),0) + IF(Setup!$AJ$8<>\"\",INDIRECT(\"'\" & Setup!$AJ$8 & \"'!\" & AE171),0) + IF(Setup!$AJ$9<>\"\",INDIRECT(\"'\" & Setup!$AJ$9 & \"'!\" & AE171),0) + IF(Setup!$AJ$10<>\"\",INDIRECT(\"'\" & Setup!$AJ$10 & \"'!\" & AE171),0) + IF(Setup!$AJ$11<>\"\",INDIRECT(\"'\" & Setup!$AJ$11 & \"'!\" & AE171),0) + IF(Setup!$AJ$12<>\"\",INDIRECT(\"'\" & Setup!$AJ$12 & \"'!\" & AE171),0)","v":0}]
[{"$f":"Planning!A155","v":"I147"},{"$f":"Planning!B155","v":0},{"$f":"Planning!C155","v":0},{"$f":"Planning!D155","v":0},{"$f":"Planning!E155","v":0},{"$f":"Planning!G155","v":0},null,0,0,{"$f":"IF(AND($AR172=\"2\",$AB171<>Lists!$A$17),AU172,AT172)","v":""},"",0,0,{"$f":"IF(AND($AR172=\"2\",$AB172<>Lists!$A$17),AW172,AV172)","v":""},"",0,0,{"$f":"IF(AND($AR172=\"2\",$AB172<>Lists!$A$17),AY172,AX172)","v":""},"",0,0,{"$f":"IF(AND($AR172=\"2\",$AB172<>Lists!$A$17),BA172,AZ172)","v":""},"",0,0,{"$f":"IF(AND($AR172=\"2\",$AB172<>Lists!$A$17),BC172,BB172)","v":""},"",{"$f":"Planning!H155","v":0},"00","H171","J171","I171","",null,{"$f":"IF(Setup!$AG$7<>\"\",INDIRECT(\"'\" & Setup!$AG$7 & \"'!\" & AF172),0) + IF(Setup!$AG$8<>\"\",INDIRECT(\"'\" & Setup!$AG$8 & \"'!\" & AF172),0) + IF(Setup!$AG$9<>\"\",INDIRECT(\"'\" & Setup!$AG$9 & \"'!\" & AF172),0) + IF(Setup!$AG$10<>\"\",INDIRECT(\"'\" & Setup!$AG$10 & \"'!\" & AF172),0) + IF(Setup!$AG$11<>\"\",INDIRECT(\"'\" & Setup!$AG$11 & \"'!\" & AF172),0) + IF(Setup!$AG$12<>\"\",INDIRECT(\"'\" & Setup!$AG$12 & \"'!\" & AF172),0)","v":0},{"$f":"IF(Setup!$AH$7<>\"\",INDIRECT(\"'\" & Setup!$AH$7 & \"'!\" & AF172),0) + IF(Setup!$AH$8<>\"\",INDIRECT(\"'\" & Setup!$AH$8 & \"'!\" & AF172),0) + IF(Setup!$AH$9<>\"\",INDIRECT(\"'\" & Setup!$AH$9 & \"'!\" & AF172),0) + IF(Setup!$AH$10<>\"\",INDIRECT(\"'\" & Setup!$AH$10 & \"'!\" & AF172),0) + IF(Setup!$AH$11<>\"\",INDIRECT(\"'\" & Setup!$AH$11 & \"'!\" & AF172),0) + IF(Setup!$AH$12<>\"\",INDIRECT(\"'\" & Setup!$AH$12 & \"'!\" & AF172),0)","v":0},{"$f":"IF(Setup!$AI$7<>\"\",INDIRECT(\"'\" & Setup!$AI$7 & \"'!\" & AF172),0) + IF(Setup!$AI$8<>\"\",INDIRECT(\"'\" & Setup!$AI$8 & \"'!\" & AF172),0) + IF(Setup!$AI$9<>\"\",INDIRECT(\"'\" & Setup!$AI$9 & \"'!\" & AF172),0) + IF(Setup!$AI$10<>\"\",INDIRECT(\"'\" & Setup!$AI$10 & \"'!\" & AF172),0) + IF(Setup!$AI$11<>\"\",INDIRECT(\"'\" & Setup!$AI$11 & \"'!\" & AF172),0) + IF(Setup!$AI$12<>\"\",INDIRECT(\"'\" & Setup!$AI$12 & \"'!\" & AF172),0)","v":0},{"$f":"IF(Setup!$AJ$7<>\"\",INDIRECT(\"'\" & Setup!$AJ$7 & \"'!\" & AF172),0) + IF(Setup!$AJ$8<>\"\",INDIRECT(\"'\" & Setup!$AJ$8 & \"'!\" & AF172),0) + IF(Setup!$AJ$9<>\"\",INDIRECT(\"'\" & Setup!$AJ$9 & \"'!\" & AF172),0) + IF(Setup!$AJ$10<>\"\",INDIRECT(\"'\" & Setup!$AJ$10 & \"'!\" & AF172),0) + IF(Setup!$AJ$11<>\"\",INDIRECT(\"'\" & Setup!$AJ$11 & \"'!\" & AF172),0) + IF(Setup!$AJ$12<>\"\",INDIRECT(\"'\" & Setup!$AJ$12 & \"'!\" & AF172),0)","v":0},null,"",{"$nulls":3},{"$f":"IF(C172=0,\"\",LEFT(INDEX(Lists!$H$5:$H$49,MATCH(C172,Lists!$G$5:$G$49,0),1),1))","v":""},null,"","","","","","","","","","",{"$nulls":6},{"$f":"IF(Setup!$AG$7<>\"\",INDIRECT(\"'\" & Setup!$AG$7 & \"'!\" & AD172),0) + IF(Setup!$AG$8<>\"\",INDIRECT(\"'\" & Setup!$AG$8 & \"'!\" & AD172),0) + IF(Setup!$AG$9<>\"\",INDIRECT(\"'\" & Setup!$AG$9 & \"'!\" & AD172),0) + IF(Setup!$AG$10<>\"\",INDIRECT(\"'\" & Setup!$AG$10 & \"'!\" & AD172),0) + IF(Setup!$AG$11<>\"\",INDIRECT(\"'\" & Setup!$AG$11 & \"'!\" & AD172),0) + IF(Setup!$AG$12<>\"\",INDIRECT(\"'\" & Setup!$AG$12 & \"'!\" & AD172),0)","v":0},{"$f":"IF(Setup!$AG$7<>\"\",INDIRECT(\"'\" & Setup!$AG$7 & \"'!\" & AE172),0) + IF(Setup!$AG$8<>\"\",INDIRECT(\"'\" & Setup!$AG$8 & \"'!\" & AE172),0) + IF(Setup!$AG$9<>\"\",INDIRECT(\"'\" & Setup!$AG$9 & \"'!\" & AE172),0) + IF(Setup!$AG$10<>\"\",INDIRECT(\"'\" & Setup!$AG$10 & \"'!\" & AE172),0) + IF(Setup!$AG$11<>\"\",INDIRECT(\"'\" & Setup!$AG$11 & \"'!\" & AE172),0) + IF(Setup!$AG$12<>\"\",INDIRECT(\"'\" & Setup!$AG$12 & \"'!\" & AE172),0)","v":0},{"$f":"IF(Setup!$AH$7<>\"\",INDIRECT(\"'\" & Setup!$AH$7 & \"'!\" & AD172),0) + IF(Setup!$AH$8<>\"\",INDIRECT(\"'\" & Setup!$AH$8 & \"'!\" & AD172),0) + IF(Setup!$AH$9<>\"\",INDIRECT(\"'\" & Setup!$AH$9 & \"'!\" & AD172),0) + IF(Setup!$AH$10<>\"\",INDIRECT(\"'\" & Setup!$AH$10 & \"'!\" & AD172),0) + IF(Setup!$AH$11<>\"\",INDIRECT(\"'\" & Setup!$AH$11 & \"'!\" & AD172),0) + IF(Setup!$AH$12<>\"\",INDIRECT(\"'\" & Setup!$AH$12 & \"'!\" & AD172),0)","v":0},{"$f":"IF(Setup!$AH$7<>\"\",INDIRECT(\"'\" & Setup!$AH$7 & \"'!\" & AE172),0) + IF(Setup!$AH$8<>\"\",INDIRECT(\"'\" & Setup!$AH$8 & \"'!\" & AE172),0) + IF(Setup!$AH$9<>\"\",INDIRECT(\"'\" & Setup!$AH$9 & \"'!\" & AE172),0) + IF(Setup!$AH$10<>\"\",INDIRECT(\"'\" & Setup!$AH$10 & \"'!\" & AE172),0) + IF(Setup!$AH$11<>\"\",INDIRECT(\"'\" & Setup!$AH$11 & \"'!\" & AE172),0) + IF(Setup!$AH$12<>\"\",INDIRECT(\"'\" & Setup!$AH$12 & \"'!\" & AE172),0)","v":0},{"$f":"IF(Setup!$AI$7<>\"\",INDIRECT(\"'\" & Setup!$AI$7 & \"'!\" & AD172),0) + IF(Setup!$AI$8<>\"\",INDIRECT(\"'\" & Setup!$AI$8 & \"'!\" & AD172),0) + IF(Setup!$AI$9<>\"\",INDIRECT(\"'\" & Setup!$AI$9 & \"'!\" & AD172),0) + IF(Setup!$AI$10<>\"\",INDIRECT(\"'\" & Setup!$AI$10 & \"'!\" & AD172),0) + IF(Setup!$AI$11<>\"\",INDIRECT(\"'\" & Setup!$AI$11 & \"'!\" & AD172),0) + IF(Setup!$AI$12<>\"\",INDIRECT(\"'\" & Setup!$AI$12 & \"'!\" & AD172),0)","v":0},{"$f":"IF(Setup!$AI$7<>\"\",INDIRECT(\"'\" & Setup!$AI$7 & \"'!\" & AE172),0) + IF(Setup!$AI$8<>\"\",INDIRECT(\"'\" & Setup!$AI$8 & \"'!\" & AE172),0) + IF(Setup!$AI$9<>\"\",INDIRECT(\"'\" & Setup!$AI$9 & \"'!\" & AE172),0) + IF(Setup!$AI$10<>\"\",INDIRECT(\"'\" & Setup!$AI$10 & \"'!\" & AE172),0) + IF(Setup!$AI$11<>\"\",INDIRECT(\"'\" & Setup!$AI$11 & \"'!\" & AE172),0) + IF(Setup!$AI$12<>\"\",INDIRECT(\"'\" & Setup!$AI$12 & \"'!\" & AE172),0)","v":0},{"$f":"IF(Setup!$AJ$7<>\"\",INDIRECT(\"'\" & Setup!$AJ$7 & \"'!\" & AD172),0) + IF(Setup!$AJ$8<>\"\",INDIRECT(\"'\" & Setup!$AJ$8 & \"'!\" & AD172),0) + IF(Setup!$AJ$9<>\"\",INDIRECT(\"'\" & Setup!$AJ$9 & \"'!\" & AD172),0) + IF(Setup!$AJ$10<>\"\",INDIRECT(\"'\" & Setup!$AJ$10 & \"'!\" & AD172),0) + IF(Setup!$AJ$11<>\"\",INDIRECT(\"'\" & Setup!$AJ$11 & \"'!\" & AD172),0) + IF(Setup!$AJ$12<>\"\",INDIRECT(\"'\" & Setup!$AJ$12 & \"'!\" & AD172),0)","v":0},{"$f":"IF(Setup!$AJ$7<>\"\",INDIRECT(\"'\" & Setup!$AJ$7 & \"'!\" & AE172),0) + IF(Setup!$AJ$8<>\"\",INDIRECT(\"'\" & Setup!$AJ$8 & \"'!\" & AE172),0) + IF(Setup!$AJ$9<>\"\",INDIRECT(\"'\" & Setup!$AJ$9 & \"'!\" & AE172),0) + IF(Setup!$AJ$10<>\"\",INDIRECT(\"'\" & Setup!$AJ$10 & \"'!\" & AE172),0) + IF(Setup!$AJ$11<>\"\",INDIRECT(\"'\" & Setup!$AJ$11 & \"'!\" & AE172),0) + IF(Setup!$AJ$12<>\"\",INDIRECT(\"'\" & Setup!$AJ$12 & \"'!\" & AE172),0)","v":0}]
[{"$f":"Planning!A156","v":"I148"},{"$f":"Planning!B156","v":0},{"$f":"Planning!C156","v":0},{"$f":"Planning!D156","v":0},{"$f":"Planning!E156","v":0},{"$f":"Planning!G156","v":0},null,0,0,{"$f":"IF(AND($AR173=\"2\",$AB172<>Lists!$A$17),AU173,AT173)","v":""},"",0,0,{"$f":"IF(AND($AR173=\"2\",$AB173<>Lists!$A$17),AW173,AV173)","v":""},"",0,0,{"$f":"IF(AND($AR173=\"2\",$AB173<>Lists!$A$17),AY173,AX173)","v":""},"",0,0,{"$f":"IF(AND($AR173=\"2\",$AB173<>Lists!$A$17),BA173,AZ173)","v":""},"",0,0,{"$f":"IF(AND($AR173=\"2\",$AB173<>Lists!$A$17),BC173,BB173)","v":""},"",{"$f":"Planning!H156","v":0},"00","H172","J172","I172","",null,{"$f":"IF(Setup!$AG$7<>\"\",INDIRECT(\"'\" & Setup!$AG$7 & \"'!\" & AF173),0) + IF(Setup!$AG$8<>\"\",INDIRECT(\"'\" & Setup!$AG$8 & \"'!\" & AF173),0) + IF(Setup!$AG$9<>\"\",INDIRECT(\"'\" & Setup!$AG$9 & \"'!\" & AF173),0) + IF(Setup!$AG$10<>\"\",INDIRECT(\"'\" & Setup!$AG$10 & \"'!\" & AF173),0) + IF(Setup!$AG$11<>\"\",INDIRECT(\"'\" & Setup!$AG$11 & \"'!\" & AF173),0) + IF(Setup!$AG$12<>\"\",INDIRECT(\"'\" & Setup!$AG$12 & \"'!\" & AF173),0)","v":0},{"$f":"IF(Setup!$AH$7<>\"\",INDIRECT(\"'\" & Setup!$AH$7 & \"'!\" & AF173),0) + IF(Setup!$AH$8<>\"\",INDIRECT(\"'\" & Setup!$AH$8 & \"'!\" & AF173),0) + IF(Setup!$AH$9<>\"\",INDIRECT(\"'\" & Setup!$AH$9 & \"'!\" & AF173),0) + IF(Setup!$AH$10<>\"\",INDIRECT(\"'\" & Setup!$AH$10 & \"'!\" & AF173),0) + IF(Setup!$AH$11<>\"\",INDIRECT(\"'\" & Setup!$AH$11 & \"'!\" & AF173),0) + IF(Setup!$AH$12<>\"\",INDIRECT(\"'\" & Setup!$AH$12 & \"'!\" & AF173),0)","v":0},{"$f":"IF(Setup!$AI$7<>\"\",INDIRECT(\"'\" & Setup!$AI$7 & \"'!\" & AF173),0) + IF(Setup!$AI$8<>\"\",INDIRECT(\"'\" & Setup!$AI$8 & \"'!\" & AF173),0) + IF(Setup!$AI$9<>\"\",INDIRECT(\"'\" & Setup!$AI$9 & \"'!\" & AF173),0) + IF(Setup!$AI$10<>\"\",INDIRECT(\"'\" & Setup!$AI$10 & \"'!\" & AF173),0) + IF(Setup!$AI$11<>\"\",INDIRECT(\"'\" & Setup!$AI$11 & \"'!\" & AF173),0) + IF(Setup!$AI$12<>\"\",INDIRECT(\"'\" & Setup!$AI$12 & \"'!\" & AF173),0)","v":0},{"$f":"IF(Setup!$AJ$7<>\"\",INDIRECT(\"'\" & Setup!$AJ$7 & \"'!\" & AF173),0) + IF(Setup!$AJ$8<>\"\",INDIRECT(\"'\" & Setup!$AJ$8 & \"'!\" & AF173),0) + IF(Setup!$AJ$9<>\"\",INDIRECT(\"'\" & Setup!$AJ$9 & \"'!\" & AF173),0) + IF(Setup!$AJ$10<>\"\",INDIRECT(\"'\" & Setup!$AJ$10 & \"'!\" & AF173),0) + IF(Setup!$AJ$11<>\"\",INDIRECT(\"'\" & Setup!$AJ$11 & \"'!\" & AF173),0) + IF(Setup!$AJ$12<>\"\",INDIRECT(\"'\" & Setup!$AJ$12 & \"'!\" & AF173),0)","v":0},null,"",{"$nulls":3},{"$f":"IF(C173=0,\"\",LEFT(INDEX(Lists!$H$5:$H$49,MATCH(C173,Lists!$G$5:$G$49,0),1),1))","v":""},null,"","","","","","","","","","",{"$nulls":6},{"$f":"IF(Setup!$AG$7<>\"\",INDIRECT(\"'\" & Setup!$AG$7 & \"'!\" & AD173),0) + IF(Setup!$AG$8<>\"\",INDIRECT(\"'\" & Setup!$AG$8 & \"'!\" & AD173),0) + IF(Setup!$AG$9<>\"\",INDIRECT(\"'\" & Setup!$AG$9 & \"'!\" & AD173),0) + IF(Setup!$AG$10<>\"\",INDIRECT(\"'\" & Setup!$AG$10 & \"'!\" & AD173),0) + IF(Setup!$AG$11<>\"\",INDIRECT(\"'\" & Setup!$AG$11 & \"'!\" & AD173),0) + IF(Setup!$AG$12<>\"\",INDIRECT(\"'\" & Setup!$AG$12 & \"'!\" & AD173),0)","v":0},{"$f":"IF(Setup!$AG$7<>\"\",INDIRECT(\"'\" & Setup!$AG$7 & \"'!\" & AE173),0) + IF(Setup!$AG$8<>\"\",INDIRECT(\"'\" & Setup!$AG$8 & \"'!\" & AE173),0) + IF(Setup!$AG$9<>\"\",INDIRECT(\"'\" & Setup!$AG$9 & \"'!\" & AE173),0) + IF(Setup!$AG$10<>\"\",INDIRECT(\"'\" & Setup!$AG$10 & \"'!\" & AE173),0) + IF(Setup!$AG$11<>\"\",INDIRECT(\"'\" & Setup!$AG$11 & \"'!\" & AE173),0) + IF(Setup!$AG$12<>\"\",INDIRECT(\"'\" & Setup!$AG$12 & \"'!\" & AE173),0)","v":0},{"$f":"IF(Setup!$AH$7<>\"\",INDIRECT(\"'\" & Setup!$AH$7 & \"'!\" & AD173),0) + IF(Setup!$AH$8<>\"\",INDIRECT(\"'\" & Setup!$AH$8 & \"'!\" & AD173),0) + IF(Setup!$AH$9<>\"\",INDIRECT(\"'\" & Setup!$AH$9 & \"'!\" & AD173),0) + IF(Setup!$AH$10<>\"\",INDIRECT(\"'\" & Setup!$AH$10 & \"'!\" & AD173),0) + IF(Setup!$AH$11<>\"\",INDIRECT(\"'\" & Setup!$AH$11 & \"'!\" & AD173),0) + IF(Setup!$AH$12<>\"\",INDIRECT(\"'\" & Setup!$AH$12 & \"'!\" & AD173),0)","v":0},{"$f":"IF(Setup!$AH$7<>\"\",INDIRECT(\"'\" & Setup!$AH$7 & \"'!\" & AE173),0) + IF(Setup!$AH$8<>\"\",INDIRECT(\"'\" & Setup!$AH$8 & \"'!\" & AE173),0) + IF(Setup!$AH$9<>\"\",INDIRECT(\"'\" & Setup!$AH$9 & \"'!\" & AE173),0) + IF(Setup!$AH$10<>\"\",INDIRECT(\"'\" & Setup!$AH$10 & \"'!\" & AE173),0) + IF(Setup!$AH$11<>\"\",INDIRECT(\"'\" & Setup!$AH$11 & \"'!\" & AE173),0) + IF(Setup!$AH$12<>\"\",INDIRECT(\"'\" & Setup!$AH$12 & \"'!\" & AE173),0)","v":0},{"$f":"IF(Setup!$AI$7<>\"\",INDIRECT(\"'\" & Setup!$AI$7 & \"'!\" & AD173),0) + IF(Setup!$AI$8<>\"\",INDIRECT(\"'\" & Setup!$AI$8 & \"'!\" & AD173),0) + IF(Setup!$AI$9<>\"\",INDIRECT(\"'\" & Setup!$AI$9 & \"'!\" & AD173),0) + IF(Setup!$AI$10<>\"\",INDIRECT(\"'\" & Setup!$AI$10 & \"'!\" & AD173),0) + IF(Setup!$AI$11<>\"\",INDIRECT(\"'\" & Setup!$AI$11 & \"'!\" & AD173),0) + IF(Setup!$AI$12<>\"\",INDIRECT(\"'\" & Setup!$AI$12 & \"'!\" & AD173),0)","v":0},{"$f":"IF(Setup!$AI$7<>\"\",INDIRECT(\"'\" & Setup!$AI$7 & \"'!\" & AE173),0) + IF(Setup!$AI$8<>\"\",INDIRECT(\"'\" & Setup!$AI$8 & \"'!\" & AE173),0) + IF(Setup!$AI$9<>\"\",INDIRECT(\"'\" & Setup!$AI$9 & \"'!\" & AE173),0) + IF(Setup!$AI$10<>\"\",INDIRECT(\"'\" & Setup!$AI$10 & \"'!\" & AE173),0) + IF(Setup!$AI$11<>\"\",INDIRECT(\"'\" & Setup!$AI$11 & \"'!\" & AE173),0) + IF(Setup!$AI$12<>\"\",INDIRECT(\"'\" & Setup!$AI$12 & \"'!\" & AE173),0)","v":0},{"$f":"IF(Setup!$AJ$7<>\"\",INDIRECT(\"'\" & Setup!$AJ$7 & \"'!\" & AD173),0) + IF(Setup!$AJ$8<>\"\",INDIRECT(\"'\" & Setup!$AJ$8 & \"'!\" & AD173),0) + IF(Setup!$AJ$9<>\"\",INDIRECT(\"'\" & Setup!$AJ$9 & \"'!\" & AD173),0) + IF(Setup!$AJ$10<>\"\",INDIRECT(\"'\" & Setup!$AJ$10 & \"'!\" & AD173),0) + IF(Setup!$AJ$11<>\"\",INDIRECT(\"'\" & Setup!$AJ$11 & \"'!\" & AD173),0) + IF(Setup!$AJ$12<>\"\",INDIRECT(\"'\" & Setup!$AJ$12 & \"'!\" & AD173),0)","v":0},{"$f":"IF(Setup!$AJ$7<>\"\",INDIRECT(\"'\" & Setup!$AJ$7 & \"'!\" & AE173),0) + IF(Setup!$AJ$8<>\"\",INDIRECT(\"'\" & Setup!$AJ$8 & \"'!\" & AE173),0) + IF(Setup!$AJ$9<>\"\",INDIRECT(\"'\" & Setup!$AJ$9 & \"'!\" & AE173),0) + IF(Setup!$AJ$10<>\"\",INDIRECT(\"'\" & Setup!$AJ$10 & \"'!\" & AE173),0) + IF(Setup!$AJ$11<>\"\",INDIRECT(\"'\" & Setup!$AJ$11 & \"'!\" & AE173),0) + IF(Setup!$AJ$12<>\"\",INDIRECT(\"'\" & Setup!$AJ$12 & \"'!\" & AE173),0)","v":0}]
[{"$f":"Planning!A157","v":"I149"},{"$f":"Planning!B157","v":0},{"$f":"Planning!C157","v":0},{"$f":"Planning!D157","v":0},{"$f":"Planning!E157","v":0},{"$f":"Planning!G157","v":0},null,0,0,{"$f":"IF(AND($AR174=\"2\",$AB173<>Lists!$A$17),AU174,AT174)","v":""},"",0,0,{"$f":"IF(AND($AR174=\"2\",$AB174<>Lists!$A$17),AW174,AV174)","v":""},"",0,0,{"$f":"IF(AND($AR174=\"2\",$AB174<>Lists!$A$17),AY174,AX174)","v":""},"",0,0,{"$f":"IF(AND($AR174=\"2\",$AB174<>Lists!$A$17),BA174,AZ174)","v":""},"",0,0,{"$f":"IF(AND($AR174=\"2\",$AB174<>Lists!$A$17),BC174,BB174)","v":""},"",{"$f":"Planning!H157","v":0},"00","H173","J173","I173","",null,{"$f":"IF(Setup!$AG$7<>\"\",INDIRECT(\"'\" & Setup!$AG$7 & \"'!\" & AF174),0) + IF(Setup!$AG$8<>\"\",INDIRECT(\"'\" & Setup!$AG$8 & \"'!\" & AF174),0) + IF(Setup!$AG$9<>\"\",INDIRECT(\"'\" & Setup!$AG$9 & \"'!\" & AF174),0) + IF(Setup!$AG$10<>\"\",INDIRECT(\"'\" & Setup!$AG$10 & \"'!\" & AF174),0) + IF(Setup!$AG$11<>\"\",INDIRECT(\"'\" & Setup!$AG$11 & \"'!\" & AF174),0) + IF(Setup!$AG$12<>\"\",INDIRECT(\"'\" & Setup!$AG$12 & \"'!\" & AF174),0)","v":0},{"$f":"IF(Setup!$AH$7<>\"\",INDIRECT(\"'\" & Setup!$AH$7 & \"'!\" & AF174),0) + IF(Setup!$AH$8<>\"\",INDIRECT(\"'\" & Setup!$AH$8 & \"'!\" & AF174),0) + IF(Setup!$AH$9<>\"\",INDIRECT(\"'\" & Setup!$AH$9 & \"'!\" & AF174),0) + IF(Setup!$AH$10<>\"\",INDIRECT(\"'\" & Setup!$AH$10 & \"'!\" & AF174),0) + IF(Setup!$AH$11<>\"\",INDIRECT(\"'\" & Setup!$AH$11 & \"'!\" & AF174),0) + IF(Setup!$AH$12<>\"\",INDIRECT(\"'\" & Setup!$AH$12 & \"'!\" & AF174),0)","v":0},{"$f":"IF(Setup!$AI$7<>\"\",INDIRECT(\"'\" & Setup!$AI$7 & \"'!\" & AF174),0) + IF(Setup!$AI$8<>\"\",INDIRECT(\"'\" & Setup!$AI$8 & \"'!\" & AF174),0) + IF(Setup!$AI$9<>\"\",INDIRECT(\"'\" & Setup!$AI$9 & \"'!\" & AF174),0) + IF(Setup!$AI$10<>\"\",INDIRECT(\"'\" & Setup!$AI$10 & \"'!\" & AF174),0) + IF(Setup!$AI$11<>\"\",INDIRECT(\"'\" & Setup!$AI$11 & \"'!\" & AF174),0) + IF(Setup!$AI$12<>\"\",INDIRECT(\"'\" & Setup!$AI$12 & \"'!\" & AF174),0)","v":0},{"$f":"IF(Setup!$AJ$7<>\"\",INDIRECT(\"'\" & Setup!$AJ$7 & \"'!\" & AF174),0) + IF(Setup!$AJ$8<>\"\",INDIRECT(\"'\" & Setup!$AJ$8 & \"'!\" & AF174),0) + IF(Setup!$AJ$9<>\"\",INDIRECT(\"'\" & Setup!$AJ$9 & \"'!\" & AF174),0) + IF(Setup!$AJ$10<>\"\",INDIRECT(\"'\" & Setup!$AJ$10 & \"'!\" & AF174),0) + IF(Setup!$AJ$11<>\"\",INDIRECT(\"'\" & Setup!$AJ$11 & \"'!\" & AF174),0) + IF(Setup!$AJ$12<>\"\",INDIRECT(\"'\" & Setup!$AJ$12 & \"'!\" & AF174),0)","v":0},null,"",{"$nulls":3},{"$f":"IF(C174=0,\"\",LEFT(INDEX(Lists!$H$5:$H$49,MATCH(C174,Lists!$G$5:$G$49,0),1),1))","v":""},null,"","","","","","","","","","",{"$nulls":6},{"$f":"IF(Setup!$AG$7<>\"\",INDIRECT(\"'\" & Setup!$AG$7 & \"'!\" & AD174),0) + IF(Setup!$AG$8<>\"\",INDIRECT(\"'\" & Setup!$AG$8 & \"'!\" & AD174),0) + IF(Setup!$AG$9<>\"\",INDIRECT(\"'\" & Setup!$AG$9 & \"'!\" & AD174),0) + IF(Setup!$AG$10<>\"\",INDIRECT(\"'\" & Setup!$AG$10 & \"'!\" & AD174),0) + IF(Setup!$AG$11<>\"\",INDIRECT(\"'\" & Setup!$AG$11 & \"'!\" & AD174),0) + IF(Setup!$AG$12<>\"\",INDIRECT(\"'\" & Setup!$AG$12 & \"'!\" & AD174),0)","v":0},{"$f":"IF(Setup!$AG$7<>\"\",INDIRECT(\"'\" & Setup!$AG$7 & \"'!\" & AE174),0) + IF(Setup!$AG$8<>\"\",INDIRECT(\"'\" & Setup!$AG$8 & \"'!\" & AE174),0) + IF(Setup!$AG$9<>\"\",INDIRECT(\"'\" & Setup!$AG$9 & \"'!\" & AE174),0) + IF(Setup!$AG$10<>\"\",INDIRECT(\"'\" & Setup!$AG$10 & \"'!\" & AE174),0) + IF(Setup!$AG$11<>\"\",INDIRECT(\"'\" & Setup!$AG$11 & \"'!\" & AE174),0) + IF(Setup!$AG$12<>\"\",INDIRECT(\"'\" & Setup!$AG$12 & \"'!\" & AE174),0)","v":0},{"$f":"IF(Setup!$AH$7<>\"\",INDIRECT(\"'\" & Setup!$AH$7 & \"'!\" & AD174),0) + IF(Setup!$AH$8<>\"\",INDIRECT(\"'\" & Setup!$AH$8 & \"'!\" & AD174),0) + IF(Setup!$AH$9<>\"\",INDIRECT(\"'\" & Setup!$AH$9 & \"'!\" & AD174),0) + IF(Setup!$AH$10<>\"\",INDIRECT(\"'\" & Setup!$AH$10 & \"'!\" & AD174),0) + IF(Setup!$AH$11<>\"\",INDIRECT(\"'\" & Setup!$AH$11 & \"'!\" & AD174),0) + IF(Setup!$AH$12<>\"\",INDIRECT(\"'\" & Setup!$AH$12 & \"'!\" & AD174),0)","v":0},{"$f":"IF(Setup!$AH$7<>\"\",INDIRECT(\"'\" & Setup!$AH$7 & \"'!\" & AE174),0) + IF(Setup!$AH$8<>\"\",INDIRECT(\"'\" & Setup!$AH$8 & \"'!\" & AE174),0) + IF(Setup!$AH$9<>\"\",INDIRECT(\"'\" & Setup!$AH$9 & \"'!\" & AE174),0) + IF(Setup!$AH$10<>\"\",INDIRECT(\"'\" & Setup!$AH$10 & \"'!\" & AE174),0) + IF(Setup!$AH$11<>\"\",INDIRECT(\"'\" & Setup!$AH$11 & \"'!\" & AE174),0) + IF(Setup!$AH$12<>\"\",INDIRECT(\"'\" & Setup!$AH$12 & \"'!\" & AE174),0)","v":0},{"$f":"IF(Setup!$AI$7<>\"\",INDIRECT(\"'\" & Setup!$AI$7 & \"'!\" & AD174),0) + IF(Setup!$AI$8<>\"\",INDIRECT(\"'\" & Setup!$AI$8 & \"'!\" & AD174),0) + IF(Setup!$AI$9<>\"\",INDIRECT(\"'\" & Setup!$AI$9 & \"'!\" & AD174),0) + IF(Setup!$AI$10<>\"\",INDIRECT(\"'\" & Setup!$AI$10 & \"'!\" & AD174),0) + IF(Setup!$AI$11<>\"\",INDIRECT(\"'\" & Setup!$AI$11 & \"'!\" & AD174),0) + IF(Setup!$AI$12<>\"\",INDIRECT(\"'\" & Setup!$AI$12 & \"'!\" & AD174),0)","v":0},{"$f":"IF(Setup!$AI$7<>\"\",INDIRECT(\"'\" & Setup!$AI$7 & \"'!\" & AE174),0) + IF(Setup!$AI$8<>\"\",INDIRECT(\"'\" & Setup!$AI$8 & \"'!\" & AE174),0) + IF(Setup!$AI$9<>\"\",INDIRECT(\"'\" & Setup!$AI$9 & \"'!\" & AE174),0) + IF(Setup!$AI$10<>\"\",INDIRECT(\"'\" & Setup!$AI$10 & \"'!\" & AE174),0) + IF(Setup!$AI$11<>\"\",INDIRECT(\"'\" & Setup!$AI$11 & \"'!\" & AE174),0) + IF(Setup!$AI$12<>\"\",INDIRECT(\"'\" & Setup!$AI$12 & \"'!\" & AE174),0)","v":0},{"$f":"IF(Setup!$AJ$7<>\"\",INDIRECT(\"'\" & Setup!$AJ$7 & \"'!\" & AD174),0) + IF(Setup!$AJ$8<>\"\",INDIRECT(\"'\" & Setup!$AJ$8 & \"'!\" & AD174),0) + IF(Setup!$AJ$9<>\"\",INDIRECT(\"'\" & Setup!$AJ$9 & \"'!\" & AD174),0) + IF(Setup!$AJ$10<>\"\",INDIRECT(\"'\" & Setup!$AJ$10 & \"'!\" & AD174),0) + IF(Setup!$AJ$11<>\"\",INDIRECT(\"'\" & Setup!$AJ$11 & \"'!\" & AD174),0) + IF(Setup!$AJ$12<>\"\",INDIRECT(\"'\" & Setup!$AJ$12 & \"'!\" & AD174),0)","v":0},{"$f":"IF(Setup!$AJ$7<>\"\",INDIRECT(\"'\" & Setup!$AJ$7 & \"'!\" & AE174),0) + IF(Setup!$AJ$8<>\"\",INDIRECT(\"'\" & Setup!$AJ$8 & \"'!\" & AE174),0) + IF(Setup!$AJ$9<>\"\",INDIRECT(\"'\" & Setup!$AJ$9 & \"'!\" & AE174),0) + IF(Setup!$AJ$10<>\"\",INDIRECT(\"'\" & Setup!$AJ$10 & \"'!\" & AE174),0) + IF(Setup!$AJ$11<>\"\",INDIRECT(\"'\" & Setup!$AJ$11 & \"'!\" & AE174),0) + IF(Setup!$AJ$12<>\"\",INDIRECT(\"'\" & Setup!$AJ$12 & \"'!\" & AE174),0)","v":0}]
[{"$f":"Planning!A158","v":"I150"},{"$f":"Planning!B158","v":0},{"$f":"Planning!C158","v":0},{"$f":"Planning!D158","v":0},{"$f":"Planning!E158","v":0},{"$f":"Planning!G158","v":0},null,0,0,{"$f":"IF(AND($AR175=\"2\",$AB174<>Lists!$A$17),AU175,AT175)","v":""},"",0,0,{"$f":"IF(AND($AR175=\"2\",$AB175<>Lists!$A$17),AW175,AV175)","v":""},"",0,0,{"$f":"IF(AND($AR175=\"2\",$AB175<>Lists!$A$17),AY175,AX175)","v":""},"",0,0,{"$f":"IF(AND($AR175=\"2\",$AB175<>Lists!$A$17),BA175,AZ175)","v":""},"",0,0,{"$f":"IF(AND($AR175=\"2\",$AB175<>Lists!$A$17),BC175,BB175)","v":""},"",{"$f":"Planning!H158","v":0},"00","H174","J174","I174","",null,{"$f":"IF(Setup!$AG$7<>\"\",INDIRECT(\"'\" & Setup!$AG$7 & \"'!\" & AF175),0) + IF(Setup!$AG$8<>\"\",INDIRECT(\"'\" & Setup!$AG$8 & \"'!\" & AF175),0) + IF(Setup!$AG$9<>\"\",INDIRECT(\"'\" & Setup!$AG$9 & \"'!\" & AF175),0) + IF(Setup!$AG$10<>\"\",INDIRECT(\"'\" & Setup!$AG$10 & \"'!\" & AF175),0) + IF(Setup!$AG$11<>\"\",INDIRECT(\"'\" & Setup!$AG$11 & \"'!\" & AF175),0) + IF(Setup!$AG$12<>\"\",INDIRECT(\"'\" & Setup!$AG$12 & \"'!\" & AF175),0)","v":0},{"$f":"IF(Setup!$AH$7<>\"\",INDIRECT(\"'\" & Setup!$AH$7 & \"'!\" & AF175),0) + IF(Setup!$AH$8<>\"\",INDIRECT(\"'\" & Setup!$AH$8 & \"'!\" & AF175),0) + IF(Setup!$AH$9<>\"\",INDIRECT(\"'\" & Setup!$AH$9 & \"'!\" & AF175),0) + IF(Setup!$AH$10<>\"\",INDIRECT(\"'\" & Setup!$AH$10 & \"'!\" & AF175),0) + IF(Setup!$AH$11<>\"\",INDIRECT(\"'\" & Setup!$AH$11 & \"'!\" & AF175),0) + IF(Setup!$AH$12<>\"\",INDIRECT(\"'\" & Setup!$AH$12 & \"'!\" & AF175),0)","v":0},{"$f":"IF(Setup!$AI$7<>\"\",INDIRECT(\"'\" & Setup!$AI$7 & \"'!\" & AF175),0) + IF(Setup!$AI$8<>\"\",INDIRECT(\"'\" & Setup!$AI$8 & \"'!\" & AF175),0) + IF(Setup!$AI$9<>\"\",INDIRECT(\"'\" & Setup!$AI$9 & \"'!\" & AF175),0) + IF(Setup!$AI$10<>\"\",INDIRECT(\"'\" & Setup!$AI$10 & \"'!\" & AF175),0) + IF(Setup!$AI$11<>\"\",INDIRECT(\"'\" & Setup!$AI$11 & \"'!\" & AF175),0) + IF(Setup!$AI$12<>\"\",INDIRECT(\"'\" & Setup!$AI$12 & \"'!\" & AF175),0)","v":0},{"$f":"IF(Setup!$AJ$7<>\"\",INDIRECT(\"'\" & Setup!$AJ$7 & \"'!\" & AF175),0) + IF(Setup!$AJ$8<>\"\",INDIRECT(\"'\" & Setup!$AJ$8 & \"'!\" & AF175),0) + IF(Setup!$AJ$9<>\"\",INDIRECT(\"'\" & Setup!$AJ$9 & \"'!\" & AF175),0) + IF(Setup!$AJ$10<>\"\",INDIRECT(\"'\" & Setup!$AJ$10 & \"'!\" & AF175),0) + IF(Setup!$AJ$11<>\"\",INDIRECT(\"'\" & Setup!$AJ$11 & \"'!\" & AF175),0) + IF(Setup!$AJ$12<>\"\",INDIRECT(\"'\" & Setup!$AJ$12 & \"'!\" & AF175),0)","v":0},null,"",{"$nulls":3},{"$f":"IF(C175=0,\"\",LEFT(INDEX(Lists!$H$5:$H$49,MATCH(C175,Lists!$G$5:$G$49,0),1),1))","v":""},null,"","","","","","","","","","",{"$nulls":6},{"$f":"IF(Setup!$AG$7<>\"\",INDIRECT(\"'\" & Setup!$AG$7 & \"'!\" & AD175),0) + IF(Setup!$AG$8<>\"\",INDIRECT(\"'\" & Setup!$AG$8 & \"'!\" & AD175),0) + IF(Setup!$AG$9<>\"\",INDIRECT(\"'\" & Setup!$AG$9 & \"'!\" & AD175),0) + IF(Setup!$AG$10<>\"\",INDIRECT(\"'\" & Setup!$AG$10 & \"'!\" & AD175),0) + IF(Setup!$AG$11<>\"\",INDIRECT(\"'\" & Setup!$AG$11 & \"'!\" & AD175),0) + IF(Setup!$AG$12<>\"\",INDIRECT(\"'\" & Setup!$AG$12 & \"'!\" & AD175),0)","v":0},{"$f":"IF(Setup!$AG$7<>\"\",INDIRECT(\"'\" & Setup!$AG$7 & \"'!\" & AE175),0) + IF(Setup!$AG$8<>\"\",INDIRECT(\"'\" & Setup!$AG$8 & \"'!\" & AE175),0) + IF(Setup!$AG$9<>\"\",INDIRECT(\"'\" & Setup!$AG$9 & \"'!\" & AE175),0) + IF(Setup!$AG$10<>\"\",INDIRECT(\"'\" & Setup!$AG$10 & \"'!\" & AE175),0) + IF(Setup!$AG$11<>\"\",INDIRECT(\"'\" & Setup!$AG$11 & \"'!\" & AE175),0) + IF(Setup!$AG$12<>\"\",INDIRECT(\"'\" & Setup!$AG$12 & \"'!\" & AE175),0)","v":0},{"$f":"IF(Setup!$AH$7<>\"\",INDIRECT(\"'\" & Setup!$AH$7 & \"'!\" & AD175),0) + IF(Setup!$AH$8<>\"\",INDIRECT(\"'\" & Setup!$AH$8 & \"'!\" & AD175),0) + IF(Setup!$AH$9<>\"\",INDIRECT(\"'\" & Setup!$AH$9 & \"'!\" & AD175),0) + IF(Setup!$AH$10<>\"\",INDIRECT(\"'\" & Setup!$AH$10 & \"'!\" & AD175),0) + IF(Setup!$AH$11<>\"\",INDIRECT(\"'\" & Setup!$AH$11 & \"'!\" & AD175),0) + IF(Setup!$AH$12<>\"\",INDIRECT(\"'\" & Setup!$AH$12 & \"'!\" & AD175),0)","v":0},{"$f":"IF(Setup!$AH$7<>\"\",INDIRECT(\"'\" & Setup!$AH$7 & \"'!\" & AE175),0) + IF(Setup!$AH$8<>\"\",INDIRECT(\"'\" & Setup!$AH$8 & \"'!\" & AE175),0) + IF(Setup!$AH$9<>\"\",INDIRECT(\"'\" & Setup!$AH$9 & \"'!\" & AE175),0) + IF(Setup!$AH$10<>\"\",INDIRECT(\"'\" & Setup!$AH$10 & \"'!\" & AE175),0) + IF(Setup!$AH$11<>\"\",INDIRECT(\"'\" & Setup!$AH$11 & \"'!\" & AE175),0) + IF(Setup!$AH$12<>\"\",INDIRECT(\"'\" & Setup!$AH$12 & \"'!\" & AE175),0)","v":0},{"$f":"IF(Setup!$AI$7<>\"\",INDIRECT(\"'\" & Setup!$AI$7 & \"'!\" & AD175),0) + IF(Setup!$AI$8<>\"\",INDIRECT(\"'\" & Setup!$AI$8 & \"'!\" & AD175),0) + IF(Setup!$AI$9<>\"\",INDIRECT(\"'\" & Setup!$AI$9 & \"'!\" & AD175),0) + IF(Setup!$AI$10<>\"\",INDIRECT(\"'\" & Setup!$AI$10 & \"'!\" & AD175),0) + IF(Setup!$AI$11<>\"\",INDIRECT(\"'\" & Setup!$AI$11 & \"'!\" & AD175),0) + IF(Setup!$AI$12<>\"\",INDIRECT(\"'\" & Setup!$AI$12 & \"'!\" & AD175),0)","v":0},{"$f":"IF(Setup!$AI$7<>\"\",INDIRECT(\"'\" & Setup!$AI$7 & \"'!\" & AE175),0) + IF(Setup!$AI$8<>\"\",INDIRECT(\"'\" & Setup!$AI$8 & \"'!\" & AE175),0) + IF(Setup!$AI$9<>\"\",INDIRECT(\"'\" & Setup!$AI$9 & \"'!\" & AE175),0) + IF(Setup!$AI$10<>\"\",INDIRECT(\"'\" & Setup!$AI$10 & \"'!\" & AE175),0) + IF(Setup!$AI$11<>\"\",INDIRECT(\"'\" & Setup!$AI$11 & \"'!\" & AE175),0) + IF(Setup!$AI$12<>\"\",INDIRECT(\"'\" & Setup!$AI$12 & \"'!\" & AE175),0)","v":0},{"$f":"IF(Setup!$AJ$7<>\"\",INDIRECT(\"'\" & Setup!$AJ$7 & \"'!\" & AD175),0) + IF(Setup!$AJ$8<>\"\",INDIRECT(\"'\" & Setup!$AJ$8 & \"'!\" & AD175),0) + IF(Setup!$AJ$9<>\"\",INDIRECT(\"'\" & Setup!$AJ$9 & \"'!\" & AD175),0) + IF(Setup!$AJ$10<>\"\",INDIRECT(\"'\" & Setup!$AJ$10 & \"'!\" & AD175),0) + IF(Setup!$AJ$11<>\"\",INDIRECT(\"'\" & Setup!$AJ$11 & \"'!\" & AD175),0) + IF(Setup!$AJ$12<>\"\",INDIRECT(\"'\" & Setup!$AJ$12 & \"'!\" & AD175),0)","v":0},{"$f":"IF(Setup!$AJ$7<>\"\",INDIRECT(\"'\" & Setup!$AJ$7 & \"'!\" & AE175),0) + IF(Setup!$AJ$8<>\"\",INDIRECT(\"'\" & Setup!$AJ$8 & \"'!\" & AE175),0) + IF(Setup!$AJ$9<>\"\",INDIRECT(\"'\" & Setup!$AJ$9 & \"'!\" & AE175),0) + IF(Setup!$AJ$10<>\"\",INDIRECT(\"'\" & Setup!$AJ$10 & \"'!\" & AE175),0) + IF(Setup!$AJ$11<>\"\",INDIRECT(\"'\" & Setup!$AJ$11 & \"'!\" & AE175),0) + IF(Setup!$AJ$12<>\"\",INDIRECT(\"'\" & Setup!$AJ$12 & \"'!\" & AE175),0)","v":0}]
[{"$f":"Planning!A159","v":"I151"},{"$f":"Planning!B159","v":0},{"$f":"Planning!C159","v":0},{"$f":"Planning!D159","v":0},{"$f":"Planning!E159","v":0},{"$f":"Planning!G159","v":0},null,0,0,{"$f":"IF(AND($AR176=\"2\",$AB175<>Lists!$A$17),AU176,AT176)","v":""},"",0,0,{"$f":"IF(AND($AR176=\"2\",$AB176<>Lists!$A$17),AW176,AV176)","v":""},"",0,0,{"$f":"IF(AND($AR176=\"2\",$AB176<>Lists!$A$17),AY176,AX176)","v":""},"",0,0,{"$f":"IF(AND($AR176=\"2\",$AB176<>Lists!$A$17),BA176,AZ176)","v":""},"",0,0,{"$f":"IF(AND($AR176=\"2\",$AB176<>Lists!$A$17),BC176,BB176)","v":""},"",{"$f":"Planning!H159","v":0},"00","H175","J175","I175","",null,{"$f":"IF(Setup!$AG$7<>\"\",INDIRECT(\"'\" & Setup!$AG$7 & \"'!\" & AF176),0) + IF(Setup!$AG$8<>\"\",INDIRECT(\"'\" & Setup!$AG$8 & \"'!\" & AF176),0) + IF(Setup!$AG$9<>\"\",INDIRECT(\"'\" & Setup!$AG$9 & \"'!\" & AF176),0) + IF(Setup!$AG$10<>\"\",INDIRECT(\"'\" & Setup!$AG$10 & \"'!\" & AF176),0) + IF(Setup!$AG$11<>\"\",INDIRECT(\"'\" & Setup!$AG$11 & \"'!\" & AF176),0) + IF(Setup!$AG$12<>\"\",INDIRECT(\"'\" & Setup!$AG$12 & \"'!\" & AF176),0)","v":0},{"$f":"IF(Setup!$AH$7<>\"\",INDIRECT(\"'\" & Setup!$AH$7 & \"'!\" & AF176),0) + IF(Setup!$AH$8<>\"\",INDIRECT(\"'\" & Setup!$AH$8 & \"'!\" & AF176),0) + IF(Setup!$AH$9<>\"\",INDIRECT(\"'\" & Setup!$AH$9 & \"'!\" & AF176),0) + IF(Setup!$AH$10<>\"\",INDIRECT(\"'\" & Setup!$AH$10 & \"'!\" & AF176),0) + IF(Setup!$AH$11<>\"\",INDIRECT(\"'\" & Setup!$AH$11 & \"'!\" & AF176),0) + IF(Setup!$AH$12<>\"\",INDIRECT(\"'\" & Setup!$AH$12 & \"'!\" & AF176),0)","v":0},{"$f":"IF(Setup!$AI$7<>\"\",INDIRECT(\"'\" & Setup!$AI$7 & \"'!\" & AF176),0) + IF(Setup!$AI$8<>\"\",INDIRECT(\"'\" & Setup!$AI$8 & \"'!\" & AF176),0) + IF(Setup!$AI$9<>\"\",INDIRECT(\"'\" & Setup!$AI$9 & \"'!\" & AF176),0) + IF(Setup!$AI$10<>\"\",INDIRECT(\"'\" & Setup!$AI$10 & \"'!\" & AF176),0) + IF(Setup!$AI$11<>\"\",INDIRECT(\"'\" & Setup!$AI$11 & \"'!\" & AF176),0) + IF(Setup!$AI$12<>\"\",INDIRECT(\"'\" & Setup!$AI$12 & \"'!\" & AF176),0)","v":0},{"$f":"IF(Setup!$AJ$7<>\"\",INDIRECT(\"'\" & Setup!$AJ$7 & \"'!\" & AF176),0) + IF(Setup!$AJ$8<>\"\",INDIRECT(\"'\" & Setup!$AJ$8 & \"'!\" & AF176),0) + IF(Setup!$AJ$9<>\"\",INDIRECT(\"'\" & Setup!$AJ$9 & \"'!\" & AF176),0) + IF(Setup!$AJ$10<>\"\",INDIRECT(\"'\" & Setup!$AJ$10 & \"'!\" & AF176),0) + IF(Setup!$AJ$11<>\"\",INDIRECT(\"'\" & Setup!$AJ$11 & \"'!\" & AF176),0) + IF(Setup!$AJ$12<>\"\",INDIRECT(\"'\" & Setup!$AJ$12 & \"'!\" & AF176),0)","v":0},null,"",{"$nulls":3},{"$f":"IF(C176=0,\"\",LEFT(INDEX(Lists!$H$5:$H$49,MATCH(C176,Lists!$G$5:$G$49,0),1),1))","v":""},null,"","","","","","","","","","",{"$nulls":6},{"$f":"IF(Setup!$AG$7<>\"\",INDIRECT(\"'\" & Setup!$AG$7 & \"'!\" & AD176),0) + IF(Setup!$AG$8<>\"\",INDIRECT(\"'\" & Setup!$AG$8 & \"'!\" & AD176),0) + IF(Setup!$AG$9<>\"\",INDIRECT(\"'\" & Setup!$AG$9 & \"'!\" & AD176),0) + IF(Setup!$AG$10<>\"\",INDIRECT(\"'\" & Setup!$AG$10 & \"'!\" & AD176),0) + IF(Setup!$AG$11<>\"\",INDIRECT(\"'\" & Setup!$AG$11 & \"'!\" & AD176),0) + IF(Setup!$AG$12<>\"\",INDIRECT(\"'\" & Setup!$AG$12 & \"'!\" & AD176),0)","v":0},{"$f":"IF(Setup!$AG$7<>\"\",INDIRECT(\"'\" & Setup!$AG$7 & \"'!\" & AE176),0) + IF(Setup!$AG$8<>\"\",INDIRECT(\"'\" & Setup!$AG$8 & \"'!\" & AE176),0) + IF(Setup!$AG$9<>\"\",INDIRECT(\"'\" & Setup!$AG$9 & \"'!\" & AE176),0) + IF(Setup!$AG$10<>\"\",INDIRECT(\"'\" & Setup!$AG$10 & \"'!\" & AE176),0) + IF(Setup!$AG$11<>\"\",INDIRECT(\"'\" & Setup!$AG$11 & \"'!\" & AE176),0) + IF(Setup!$AG$12<>\"\",INDIRECT(\"'\" & Setup!$AG$12 & \"'!\" & AE176),0)","v":0},{"$f":"IF(Setup!$AH$7<>\"\",INDIRECT(\"'\" & Setup!$AH$7 & \"'!\" & AD176),0) + IF(Setup!$AH$8<>\"\",INDIRECT(\"'\" & Setup!$AH$8 & \"'!\" & AD176),0) + IF(Setup!$AH$9<>\"\",INDIRECT(\"'\" & Setup!$AH$9 & \"'!\" & AD176),0) + IF(Setup!$AH$10<>\"\",INDIRECT(\"'\" & Setup!$AH$10 & \"'!\" & AD176),0) + IF(Setup!$AH$11<>\"\",INDIRECT(\"'\" & Setup!$AH$11 & \"'!\" & AD176),0) + IF(Setup!$AH$12<>\"\",INDIRECT(\"'\" & Setup!$AH$12 & \"'!\" & AD176),0)","v":0},{"$f":"IF(Setup!$AH$7<>\"\",INDIRECT(\"'\" & Setup!$AH$7 & \"'!\" & AE176),0) + IF(Setup!$AH$8<>\"\",INDIRECT(\"'\" & Setup!$AH$8 & \"'!\" & AE176),0) + IF(Setup!$AH$9<>\"\",INDIRECT(\"'\" & Setup!$AH$9 & \"'!\" & AE176),0) + IF(Setup!$AH$10<>\"\",INDIRECT(\"'\" & Setup!$AH$10 & \"'!\" & AE176),0) + IF(Setup!$AH$11<>\"\",INDIRECT(\"'\" & Setup!$AH$11 & \"'!\" & AE176),0) + IF(Setup!$AH$12<>\"\",INDIRECT(\"'\" & Setup!$AH$12 & \"'!\" & AE176),0)","v":0},{"$f":"IF(Setup!$AI$7<>\"\",INDIRECT(\"'\" & Setup!$AI$7 & \"'!\" & AD176),0) + IF(Setup!$AI$8<>\"\",INDIRECT(\"'\" & Setup!$AI$8 & \"'!\" & AD176),0) + IF(Setup!$AI$9<>\"\",INDIRECT(\"'\" & Setup!$AI$9 & \"'!\" & AD176),0) + IF(Setup!$AI$10<>\"\",INDIRECT(\"'\" & Setup!$AI$10 & \"'!\" & AD176),0) + IF(Setup!$AI$11<>\"\",INDIRECT(\"'\" & Setup!$AI$11 & \"'!\" & AD176),0) + IF(Setup!$AI$12<>\"\",INDIRECT(\"'\" & Setup!$AI$12 & \"'!\" & AD176),0)","v":0},{"$f":"IF(Setup!$AI$7<>\"\",INDIRECT(\"'\" & Setup!$AI$7 & \"'!\" & AE176),0) + IF(Setup!$AI$8<>\"\",INDIRECT(\"'\" & Setup!$AI$8 & \"'!\" & AE176),0) + IF(Setup!$AI$9<>\"\",INDIRECT(\"'\" & Setup!$AI$9 & \"'!\" & AE176),0) + IF(Setup!$AI$10<>\"\",INDIRECT(\"'\" & Setup!$AI$10 & \"'!\" & AE176),0) + IF(Setup!$AI$11<>\"\",INDIRECT(\"'\" & Setup!$AI$11 & \"'!\" & AE176),0) + IF(Setup!$AI$12<>\"\",INDIRECT(\"'\" & Setup!$AI$12 & \"'!\" & AE176),0)","v":0},{"$f":"IF(Setup!$AJ$7<>\"\",INDIRECT(\"'\" & Setup!$AJ$7 & \"'!\" & AD176),0) + IF(Setup!$AJ$8<>\"\",INDIRECT(\"'\" & Setup!$AJ$8 & \"'!\" & AD176),0) + IF(Setup!$AJ$9<>\"\",INDIRECT(\"'\" & Setup!$AJ$9 & \"'!\" & AD176),0) + IF(Setup!$AJ$10<>\"\",INDIRECT(\"'\" & Setup!$AJ$10 & \"'!\" & AD176),0) + IF(Setup!$AJ$11<>\"\",INDIRECT(\"'\" & Setup!$AJ$11 & \"'!\" & AD176),0) + IF(Setup!$AJ$12<>\"\",INDIRECT(\"'\" & Setup!$AJ$12 & \"'!\" & AD176),0)","v":0},{"$f":"IF(Setup!$AJ$7<>\"\",INDIRECT(\"'\" & Setup!$AJ$7 & \"'!\" & AE176),0) + IF(Setup!$AJ$8<>\"\",INDIRECT(\"'\" & Setup!$AJ$8 & \"'!\" & AE176),0) + IF(Setup!$AJ$9<>\"\",INDIRECT(\"'\" & Setup!$AJ$9 & \"'!\" & AE176),0) + IF(Setup!$AJ$10<>\"\",INDIRECT(\"'\" & Setup!$AJ$10 & \"'!\" & AE176),0) + IF(Setup!$AJ$11<>\"\",INDIRECT(\"'\" & Setup!$AJ$11 & \"'!\" & AE176),0) + IF(Setup!$AJ$12<>\"\",INDIRECT(\"'\" & Setup!$AJ$12 & \"'!\" & AE176),0)","v":0}]
[{"$f":"Planning!A160","v":"I152"},{"$f":"Planning!B160","v":0},{"$f":"Planning!C160","v":0},{"$f":"Planning!D160","v":0},{"$f":"Planning!E160","v":0},{"$f":"Planning!G160","v":0},null,0,0,{"$f":"IF(AND($AR177=\"2\",$AB176<>Lists!$A$17),AU177,AT177)","v":""},"",0,0,{"$f":"IF(AND($AR177=\"2\",$AB177<>Lists!$A$17),AW177,AV177)","v":""},"",0,0,{"$f":"IF(AND($AR177=\"2\",$AB177<>Lists!$A$17),AY177,AX177)","v":""},"",0,0,{"$f":"IF(AND($AR177=\"2\",$AB177<>Lists!$A$17),BA177,AZ177)","v":""},"",0,0,{"$f":"IF(AND($AR177=\"2\",$AB177<>Lists!$A$17),BC177,BB177)","v":""},"",{"$f":"Planning!H160","v":0},"00","H176","J176","I176","",null,{"$f":"IF(Setup!$AG$7<>\"\",INDIRECT(\"'\" & Setup!$AG$7 & \"'!\" & AF177),0) + IF(Setup!$AG$8<>\"\",INDIRECT(\"'\" & Setup!$AG$8 & \"'!\" & AF177),0) + IF(Setup!$AG$9<>\"\",INDIRECT(\"'\" & Setup!$AG$9 & \"'!\" & AF177),0) + IF(Setup!$AG$10<>\"\",INDIRECT(\"'\" & Setup!$AG$10 & \"'!\" & AF177),0) + IF(Setup!$AG$11<>\"\",INDIRECT(\"'\" & Setup!$AG$11 & \"'!\" & AF177),0) + IF(Setup!$AG$12<>\"\",INDIRECT(\"'\" & Setup!$AG$12 & \"'!\" & AF177),0)","v":0},{"$f":"IF(Setup!$AH$7<>\"\",INDIRECT(\"'\" & Setup!$AH$7 & \"'!\" & AF177),0) + IF(Setup!$AH$8<>\"\",INDIRECT(\"'\" & Setup!$AH$8 & \"'!\" & AF177),0) + IF(Setup!$AH$9<>\"\",INDIRECT(\"'\" & Setup!$AH$9 & \"'!\" & AF177),0) + IF(Setup!$AH$10<>\"\",INDIRECT(\"'\" & Setup!$AH$10 & \"'!\" & AF177),0) + IF(Setup!$AH$11<>\"\",INDIRECT(\"'\" & Setup!$AH$11 & \"'!\" & AF177),0) + IF(Setup!$AH$12<>\"\",INDIRECT(\"'\" & Setup!$AH$12 & \"'!\" & AF177),0)","v":0},{"$f":"IF(Setup!$AI$7<>\"\",INDIRECT(\"'\" & Setup!$AI$7 & \"'!\" & AF177),0) + IF(Setup!$AI$8<>\"\",INDIRECT(\"'\" & Setup!$AI$8 & \"'!\" & AF177),0) + IF(Setup!$AI$9<>\"\",INDIRECT(\"'\" & Setup!$AI$9 & \"'!\" & AF177),0) + IF(Setup!$AI$10<>\"\",INDIRECT(\"'\" & Setup!$AI$10 & \"'!\" & AF177),0) + IF(Setup!$AI$11<>\"\",INDIRECT(\"'\" & Setup!$AI$11 & \"'!\" & AF177),0) + IF(Setup!$AI$12<>\"\",INDIRECT(\"'\" & Setup!$AI$12 & \"'!\" & AF177),0)","v":0},{"$f":"IF(Setup!$AJ$7<>\"\",INDIRECT(\"'\" & Setup!$AJ$7 & \"'!\" & AF177),0) + IF(Setup!$AJ$8<>\"\",INDIRECT(\"'\" & Setup!$AJ$8 & \"'!\" & AF177),0) + IF(Setup!$AJ$9<>\"\",INDIRECT(\"'\" & Setup!$AJ$9 & \"'!\" & AF177),0) + IF(Setup!$AJ$10<>\"\",INDIRECT(\"'\" & Setup!$AJ$10 & \"'!\" & AF177),0) + IF(Setup!$AJ$11<>\"\",INDIRECT(\"'\" & Setup!$AJ$11 & \"'!\" & AF177),0) + IF(Setup!$AJ$12<>\"\",INDIRECT(\"'\" & Setup!$AJ$12 & \"'!\" & AF177),0)","v":0},null,"",{"$nulls":3},{"$f":"IF(C177=0,\"\",LEFT(INDEX(Lists!$H$5:$H$49,MATCH(C177,Lists!$G$5:$G$49,0),1),1))","v":""},null,"","","","","","","","","","",{"$nulls":6},{"$f":"IF(Setup!$AG$7<>\"\",INDIRECT(\"'\" & Setup!$AG$7 & \"'!\" & AD177),0) + IF(Setup!$AG$8<>\"\",INDIRECT(\"'\" & Setup!$AG$8 & \"'!\" & AD177),0) + IF(Setup!$AG$9<>\"\",INDIRECT(\"'\" & Setup!$AG$9 & \"'!\" & AD177),0) + IF(Setup!$AG$10<>\"\",INDIRECT(\"'\" & Setup!$AG$10 & \"'!\" & AD177),0) + IF(Setup!$AG$11<>\"\",INDIRECT(\"'\" & Setup!$AG$11 & \"'!\" & AD177),0) + IF(Setup!$AG$12<>\"\",INDIRECT(\"'\" & Setup!$AG$12 & \"'!\" & AD177),0)","v":0},{"$f":"IF(Setup!$AG$7<>\"\",INDIRECT(\"'\" & Setup!$AG$7 & \"'!\" & AE177),0) + IF(Setup!$AG$8<>\"\",INDIRECT(\"'\" & Setup!$AG$8 & \"'!\" & AE177),0) + IF(Setup!$AG$9<>\"\",INDIRECT(\"'\" & Setup!$AG$9 & \"'!\" & AE177),0) + IF(Setup!$AG$10<>\"\",INDIRECT(\"'\" & Setup!$AG$10 & \"'!\" & AE177),0) + IF(Setup!$AG$11<>\"\",INDIRECT(\"'\" & Setup!$AG$11 & \"'!\" & AE177),0) + IF(Setup!$AG$12<>\"\",INDIRECT(\"'\" & Setup!$AG$12 & \"'!\" & AE177),0)","v":0},{"$f":"IF(Setup!$AH$7<>\"\",INDIRECT(\"'\" & Setup!$AH$7 & \"'!\" & AD177),0) + IF(Setup!$AH$8<>\"\",INDIRECT(\"'\" & Setup!$AH$8 & \"'!\" & AD177),0) + IF(Setup!$AH$9<>\"\",INDIRECT(\"'\" & Setup!$AH$9 & \"'!\" & AD177),0) + IF(Setup!$AH$10<>\"\",INDIRECT(\"'\" & Setup!$AH$10 & \"'!\" & AD177),0) + IF(Setup!$AH$11<>\"\",INDIRECT(\"'\" & Setup!$AH$11 & \"'!\" & AD177),0) + IF(Setup!$AH$12<>\"\",INDIRECT(\"'\" & Setup!$AH$12 & \"'!\" & AD177),0)","v":0},{"$f":"IF(Setup!$AH$7<>\"\",INDIRECT(\"'\" & Setup!$AH$7 & \"'!\" & AE177),0) + IF(Setup!$AH$8<>\"\",INDIRECT(\"'\" & Setup!$AH$8 & \"'!\" & AE177),0) + IF(Setup!$AH$9<>\"\",INDIRECT(\"'\" & Setup!$AH$9 & \"'!\" & AE177),0) + IF(Setup!$AH$10<>\"\",INDIRECT(\"'\" & Setup!$AH$10 & \"'!\" & AE177),0) + IF(Setup!$AH$11<>\"\",INDIRECT(\"'\" & Setup!$AH$11 & \"'!\" & AE177),0) + IF(Setup!$AH$12<>\"\",INDIRECT(\"'\" & Setup!$AH$12 & \"'!\" & AE177),0)","v":0},{"$f":"IF(Setup!$AI$7<>\"\",INDIRECT(\"'\" & Setup!$AI$7 & \"'!\" & AD177),0) + IF(Setup!$AI$8<>\"\",INDIRECT(\"'\" & Setup!$AI$8 & \"'!\" & AD177),0) + IF(Setup!$AI$9<>\"\",INDIRECT(\"'\" & Setup!$AI$9 & \"'!\" & AD177),0) + IF(Setup!$AI$10<>\"\",INDIRECT(\"'\" & Setup!$AI$10 & \"'!\" & AD177),0) + IF(Setup!$AI$11<>\"\",INDIRECT(\"'\" & Setup!$AI$11 & \"'!\" & AD177),0) + IF(Setup!$AI$12<>\"\",INDIRECT(\"'\" & Setup!$AI$12 & \"'!\" & AD177),0)","v":0},{"$f":"IF(Setup!$AI$7<>\"\",INDIRECT(\"'\" & Setup!$AI$7 & \"'!\" & AE177),0) + IF(Setup!$AI$8<>\"\",INDIRECT(\"'\" & Setup!$AI$8 & \"'!\" & AE177),0) + IF(Setup!$AI$9<>\"\",INDIRECT(\"'\" & Setup!$AI$9 & \"'!\" & AE177),0) + IF(Setup!$AI$10<>\"\",INDIRECT(\"'\" & Setup!$AI$10 & \"'!\" & AE177),0) + IF(Setup!$AI$11<>\"\",INDIRECT(\"'\" & Setup!$AI$11 & \"'!\" & AE177),0) + IF(Setup!$AI$12<>\"\",INDIRECT(\"'\" & Setup!$AI$12 & \"'!\" & AE177),0)","v":0},{"$f":"IF(Setup!$AJ$7<>\"\",INDIRECT(\"'\" & Setup!$AJ$7 & \"'!\" & AD177),0) + IF(Setup!$AJ$8<>\"\",INDIRECT(\"'\" & Setup!$AJ$8 & \"'!\" & AD177),0) + IF(Setup!$AJ$9<>\"\",INDIRECT(\"'\" & Setup!$AJ$9 & \"'!\" & AD177),0) + IF(Setup!$AJ$10<>\"\",INDIRECT(\"'\" & Setup!$AJ$10 & \"'!\" & AD177),0) + IF(Setup!$AJ$11<>\"\",INDIRECT(\"'\" & Setup!$AJ$11 & \"'!\" & AD177),0) + IF(Setup!$AJ$12<>\"\",INDIRECT(\"'\" & Setup!$AJ$12 & \"'!\" & AD177),0)","v":0},{"$f":"IF(Setup!$AJ$7<>\"\",INDIRECT(\"'\" & Setup!$AJ$7 & \"'!\" & AE177),0) + IF(Setup!$AJ$8<>\"\",INDIRECT(\"'\" & Setup!$AJ$8 & \"'!\" & AE177),0) + IF(Setup!$AJ$9<>\"\",INDIRECT(\"'\" & Setup!$AJ$9 & \"'!\" & AE177),0) + IF(Setup!$AJ$10<>\"\",INDIRECT(\"'\" & Setup!$AJ$10 & \"'!\" & AE177),0) + IF(Setup!$AJ$11<>\"\",INDIRECT(\"'\" & Setup!$AJ$11 & \"'!\" & AE177),0) + IF(Setup!$AJ$12<>\"\",INDIRECT(\"'\" & Setup!$AJ$12 & \"'!\" & AE177),0)","v":0}]
[{"$f":"Planning!A161","v":"I153"},{"$f":"Planning!B161","v":0},{"$f":"Planning!C161","v":0},{"$f":"Planning!D161","v":0},{"$f":"Planning!E161","v":0},{"$f":"Planning!G161","v":0},null,0,0,{"$f":"IF(AND($AR178=\"2\",$AB177<>Lists!$A$17),AU178,AT178)","v":""},"",0,0,{"$f":"IF(AND($AR178=\"2\",$AB178<>Lists!$A$17),AW178,AV178)","v":""},"",0,0,{"$f":"IF(AND($AR178=\"2\",$AB178<>Lists!$A$17),AY178,AX178)","v":""},"",0,0,{"$f":"IF(AND($AR178=\"2\",$AB178<>Lists!$A$17),BA178,AZ178)","v":""},"",0,0,{"$f":"IF(AND($AR178=\"2\",$AB178<>Lists!$A$17),BC178,BB178)","v":""},"",{"$f":"Planning!H161","v":0},"00","H177","J177","I177","",null,{"$f":"IF(Setup!$AG$7<>\"\",INDIRECT(\"'\" & Setup!$AG$7 & \"'!\" & AF178),0) + IF(Setup!$AG$8<>\"\",INDIRECT(\"'\" & Setup!$AG$8 & \"'!\" & AF178),0) + IF(Setup!$AG$9<>\"\",INDIRECT(\"'\" & Setup!$AG$9 & \"'!\" & AF178),0) + IF(Setup!$AG$10<>\"\",INDIRECT(\"'\" & Setup!$AG$10 & \"'!\" & AF178),0) + IF(Setup!$AG$11<>\"\",INDIRECT(\"'\" & Setup!$AG$11 & \"'!\" & AF178),0) + IF(Setup!$AG$12<>\"\",INDIRECT(\"'\" & Setup!$AG$12 & \"'!\" & AF178),0)","v":0},{"$f":"IF(Setup!$AH$7<>\"\",INDIRECT(\"'\" & Setup!$AH$7 & \"'!\" & AF178),0) + IF(Setup!$AH$8<>\"\",INDIRECT(\"'\" & Setup!$AH$8 & \"'!\" & AF178),0) + IF(Setup!$AH$9<>\"\",INDIRECT(\"'\" & Setup!$AH$9 & \"'!\" & AF178),0) + IF(Setup!$AH$10<>\"\",INDIRECT(\"'\" & Setup!$AH$10 & \"'!\" & AF178),0) + IF(Setup!$AH$11<>\"\",INDIRECT(\"'\" & Setup!$AH$11 & \"'!\" & AF178),0) + IF(Setup!$AH$12<>\"\",INDIRECT(\"'\" & Setup!$AH$12 & \"'!\" & AF178),0)","v":0},{"$f":"IF(Setup!$AI$7<>\"\",INDIRECT(\"'\" & Setup!$AI$7 & \"'!\" & AF178),0) + IF(Setup!$AI$8<>\"\",INDIRECT(\"'\" & Setup!$AI$8 & \"'!\" & AF178),0) + IF(Setup!$AI$9<>\"\",INDIRECT(\"'\" & Setup!$AI$9 & \"'!\" & AF178),0) + IF(Setup!$AI$10<>\"\",INDIRECT(\"'\" & Setup!$AI$10 & \"'!\" & AF178),0) + IF(Setup!$AI$11<>\"\",INDIRECT(\"'\" & Setup!$AI$11 & \"'!\" & AF178),0) + IF(Setup!$AI$12<>\"\",INDIRECT(\"'\" & Setup!$AI$12 & \"'!\" & AF178),0)","v":0},{"$f":"IF(Setup!$AJ$7<>\"\",INDIRECT(\"'\" & Setup!$AJ$7 & \"'!\" & AF178),0) + IF(Setup!$AJ$8<>\"\",INDIRECT(\"'\" & Setup!$AJ$8 & \"'!\" & AF178),0) + IF(Setup!$AJ$9<>\"\",INDIRECT(\"'\" & Setup!$AJ$9 & \"'!\" & AF178),0) + IF(Setup!$AJ$10<>\"\",INDIRECT(\"'\" & Setup!$AJ$10 & \"'!\" & AF178),0) + IF(Setup!$AJ$11<>\"\",INDIRECT(\"'\" & Setup!$AJ$11 & \"'!\" & AF178),0) + IF(Setup!$AJ$12<>\"\",INDIRECT(\"'\" & Setup!$AJ$12 & \"'!\" & AF178),0)","v":0},null,"",{"$nulls":3},{"$f":"IF(C178=0,\"\",LEFT(INDEX(Lists!$H$5:$H$49,MATCH(C178,Lists!$G$5:$G$49,0),1),1))","v":""},null,"","","","","","","","","","",{"$nulls":6},{"$f":"IF(Setup!$AG$7<>\"\",INDIRECT(\"'\" & Setup!$AG$7 & \"'!\" & AD178),0) + IF(Setup!$AG$8<>\"\",INDIRECT(\"'\" & Setup!$AG$8 & \"'!\" & AD178),0) + IF(Setup!$AG$9<>\"\",INDIRECT(\"'\" & Setup!$AG$9 & \"'!\" & AD178),0) + IF(Setup!$AG$10<>\"\",INDIRECT(\"'\" & Setup!$AG$10 & \"'!\" & AD178),0) + IF(Setup!$AG$11<>\"\",INDIRECT(\"'\" & Setup!$AG$11 & \"'!\" & AD178),0) + IF(Setup!$AG$12<>\"\",INDIRECT(\"'\" & Setup!$AG$12 & \"'!\" & AD178),0)","v":0},{"$f":"IF(Setup!$AG$7<>\"\",INDIRECT(\"'\" & Setup!$AG$7 & \"'!\" & AE178),0) + IF(Setup!$AG$8<>\"\",INDIRECT(\"'\" & Setup!$AG$8 & \"'!\" & AE178),0) + IF(Setup!$AG$9<>\"\",INDIRECT(\"'\" & Setup!$AG$9 & \"'!\" & AE178),0) + IF(Setup!$AG$10<>\"\",INDIRECT(\"'\" & Setup!$AG$10 & \"'!\" & AE178),0) + IF(Setup!$AG$11<>\"\",INDIRECT(\"'\" & Setup!$AG$11 & \"'!\" & AE178),0) + IF(Setup!$AG$12<>\"\",INDIRECT(\"'\" & Setup!$AG$12 & \"'!\" & AE178),0)","v":0},{"$f":"IF(Setup!$AH$7<>\"\",INDIRECT(\"'\" & Setup!$AH$7 & \"'!\" & AD178),0) + IF(Setup!$AH$8<>\"\",INDIRECT(\"'\" & Setup!$AH$8 & \"'!\" & AD178),0) + IF(Setup!$AH$9<>\"\",INDIRECT(\"'\" & Setup!$AH$9 & \"'!\" & AD178),0) + IF(Setup!$AH$10<>\"\",INDIRECT(\"'\" & Setup!$AH$10 & \"'!\" & AD178),0) + IF(Setup!$AH$11<>\"\",INDIRECT(\"'\" & Setup!$AH$11 & \"'!\" & AD178),0) + IF(Setup!$AH$12<>\"\",INDIRECT(\"'\" & Setup!$AH$12 & \"'!\" & AD178),0)","v":0},{"$f":"IF(Setup!$AH$7<>\"\",INDIRECT(\"'\" & Setup!$AH$7 & \"'!\" & AE178),0) + IF(Setup!$AH$8<>\"\",INDIRECT(\"'\" & Setup!$AH$8 & \"'!\" & AE178),0) + IF(Setup!$AH$9<>\"\",INDIRECT(\"'\" & Setup!$AH$9 & \"'!\" & AE178),0) + IF(Setup!$AH$10<>\"\",INDIRECT(\"'\" & Setup!$AH$10 & \"'!\" & AE178),0) + IF(Setup!$AH$11<>\"\",INDIRECT(\"'\" & Setup!$AH$11 & \"'!\" & AE178),0) + IF(Setup!$AH$12<>\"\",INDIRECT(\"'\" & Setup!$AH$12 & \"'!\" & AE178),0)","v":0},{"$f":"IF(Setup!$AI$7<>\"\",INDIRECT(\"'\" & Setup!$AI$7 & \"'!\" & AD178),0) + IF(Setup!$AI$8<>\"\",INDIRECT(\"'\" & Setup!$AI$8 & \"'!\" & AD178),0) + IF(Setup!$AI$9<>\"\",INDIRECT(\"'\" & Setup!$AI$9 & \"'!\" & AD178),0) + IF(Setup!$AI$10<>\"\",INDIRECT(\"'\" & Setup!$AI$10 & \"'!\" & AD178),0) + IF(Setup!$AI$11<>\"\",INDIRECT(\"'\" & Setup!$AI$11 & \"'!\" & AD178),0) + IF(Setup!$AI$12<>\"\",INDIRECT(\"'\" & Setup!$AI$12 & \"'!\" & AD178),0)","v":0},{"$f":"IF(Setup!$AI$7<>\"\",INDIRECT(\"'\" & Setup!$AI$7 & \"'!\" & AE178),0) + IF(Setup!$AI$8<>\"\",INDIRECT(\"'\" & Setup!$AI$8 & \"'!\" & AE178),0) + IF(Setup!$AI$9<>\"\",INDIRECT(\"'\" & Setup!$AI$9 & \"'!\" & AE178),0) + IF(Setup!$AI$10<>\"\",INDIRECT(\"'\" & Setup!$AI$10 & \"'!\" & AE178),0) + IF(Setup!$AI$11<>\"\",INDIRECT(\"'\" & Setup!$AI$11 & \"'!\" & AE178),0) + IF(Setup!$AI$12<>\"\",INDIRECT(\"'\" & Setup!$AI$12 & \"'!\" & AE178),0)","v":0},{"$f":"IF(Setup!$AJ$7<>\"\",INDIRECT(\"'\" & Setup!$AJ$7 & \"'!\" & AD178),0) + IF(Setup!$AJ$8<>\"\",INDIRECT(\"'\" & Setup!$AJ$8 & \"'!\" & AD178),0) + IF(Setup!$AJ$9<>\"\",INDIRECT(\"'\" & Setup!$AJ$9 & \"'!\" & AD178),0) + IF(Setup!$AJ$10<>\"\",INDIRECT(\"'\" & Setup!$AJ$10 & \"'!\" & AD178),0) + IF(Setup!$AJ$11<>\"\",INDIRECT(\"'\" & Setup!$AJ$11 & \"'!\" & AD178),0) + IF(Setup!$AJ$12<>\"\",INDIRECT(\"'\" & Setup!$AJ$12 & \"'!\" & AD178),0)","v":0},{"$f":"IF(Setup!$AJ$7<>\"\",INDIRECT(\"'\" & Setup!$AJ$7 & \"'!\" & AE178),0) + IF(Setup!$AJ$8<>\"\",INDIRECT(\"'\" & Setup!$AJ$8 & \"'!\" & AE178),0) + IF(Setup!$AJ$9<>\"\",INDIRECT(\"'\" & Setup!$AJ$9 & \"'!\" & AE178),0) + IF(Setup!$AJ$10<>\"\",INDIRECT(\"'\" & Setup!$AJ$10 & \"'!\" & AE178),0) + IF(Setup!$AJ$11<>\"\",INDIRECT(\"'\" & Setup!$AJ$11 & \"'!\" & AE178),0) + IF(Setup!$AJ$12<>\"\",INDIRECT(\"'\" & Setup!$AJ$12 & \"'!\" & AE178),0)","v":0}]
[{"$f":"Planning!A162","v":"I154"},{"$f":"Planning!B162","v":0},{"$f":"Planning!C162","v":0},{"$f":"Planning!D162","v":0},{"$f":"Planning!E162","v":0},{"$f":"Planning!G162","v":0},null,0,0,{"$f":"IF(AND($AR179=\"2\",$AB178<>Lists!$A$17),AU179,AT179)","v":""},"",0,0,{"$f":"IF(AND($AR179=\"2\",$AB179<>Lists!$A$17),AW179,AV179)","v":""},"",0,0,{"$f":"IF(AND($AR179=\"2\",$AB179<>Lists!$A$17),AY179,AX179)","v":""},"",0,0,{"$f":"IF(AND($AR179=\"2\",$AB179<>Lists!$A$17),BA179,AZ179)","v":""},"",0,0,{"$f":"IF(AND($AR179=\"2\",$AB179<>Lists!$A$17),BC179,BB179)","v":""},"",{"$f":"Planning!H162","v":0},"00","H178","J178","I178","",null,{"$f":"IF(Setup!$AG$7<>\"\",INDIRECT(\"'\" & Setup!$AG$7 & \"'!\" & AF179),0) + IF(Setup!$AG$8<>\"\",INDIRECT(\"'\" & Setup!$AG$8 & \"'!\" & AF179),0) + IF(Setup!$AG$9<>\"\",INDIRECT(\"'\" & Setup!$AG$9 & \"'!\" & AF179),0) + IF(Setup!$AG$10<>\"\",INDIRECT(\"'\" & Setup!$AG$10 & \"'!\" & AF179),0) + IF(Setup!$AG$11<>\"\",INDIRECT(\"'\" & Setup!$AG$11 & \"'!\" & AF179),0) + IF(Setup!$AG$12<>\"\",INDIRECT(\"'\" & Setup!$AG$12 & \"'!\" & AF179),0)","v":0},{"$f":"IF(Setup!$AH$7<>\"\",INDIRECT(\"'\" & Setup!$AH$7 & \"'!\" & AF179),0) + IF(Setup!$AH$8<>\"\",INDIRECT(\"'\" & Setup!$AH$8 & \"'!\" & AF179),0) + IF(Setup!$AH$9<>\"\",INDIRECT(\"'\" & Setup!$AH$9 & \"'!\" & AF179),0) + IF(Setup!$AH$10<>\"\",INDIRECT(\"'\" & Setup!$AH$10 & \"'!\" & AF179),0) + IF(Setup!$AH$11<>\"\",INDIRECT(\"'\" & Setup!$AH$11 & \"'!\" & AF179),0) + IF(Setup!$AH$12<>\"\",INDIRECT(\"'\" & Setup!$AH$12 & \"'!\" & AF179),0)","v":0},{"$f":"IF(Setup!$AI$7<>\"\",INDIRECT(\"'\" & Setup!$AI$7 & \"'!\" & AF179),0) + IF(Setup!$AI$8<>\"\",INDIRECT(\"'\" & Setup!$AI$8 & \"'!\" & AF179),0) + IF(Setup!$AI$9<>\"\",INDIRECT(\"'\" & Setup!$AI$9 & \"'!\" & AF179),0) + IF(Setup!$AI$10<>\"\",INDIRECT(\"'\" & Setup!$AI$10 & \"'!\" & AF179),0) + IF(Setup!$AI$11<>\"\",INDIRECT(\"'\" & Setup!$AI$11 & \"'!\" & AF179),0) + IF(Setup!$AI$12<>\"\",INDIRECT(\"'\" & Setup!$AI$12 & \"'!\" & AF179),0)","v":0},{"$f":"IF(Setup!$AJ$7<>\"\",INDIRECT(\"'\" & Setup!$AJ$7 & \"'!\" & AF179),0) + IF(Setup!$AJ$8<>\"\",INDIRECT(\"'\" & Setup!$AJ$8 & \"'!\" & AF179),0) + IF(Setup!$AJ$9<>\"\",INDIRECT(\"'\" & Setup!$AJ$9 & \"'!\" & AF179),0) + IF(Setup!$AJ$10<>\"\",INDIRECT(\"'\" & Setup!$AJ$10 & \"'!\" & AF179),0) + IF(Setup!$AJ$11<>\"\",INDIRECT(\"'\" & Setup!$AJ$11 & \"'!\" & AF179),0) + IF(Setup!$AJ$12<>\"\",INDIRECT(\"'\" & Setup!$AJ$12 & \"'!\" & AF179),0)","v":0},null,"",{"$nulls":3},{"$f":"IF(C179=0,\"\",LEFT(INDEX(Lists!$H$5:$H$49,MATCH(C179,Lists!$G$5:$G$49,0),1),1))","v":""},null,"","","","","","","","","","",{"$nulls":6},{"$f":"IF(Setup!$AG$7<>\"\",INDIRECT(\"'\" & Setup!$AG$7 & \"'!\" & AD179),0) + IF(Setup!$AG$8<>\"\",INDIRECT(\"'\" & Setup!$AG$8 & \"'!\" & AD179),0) + IF(Setup!$AG$9<>\"\",INDIRECT(\"'\" & Setup!$AG$9 & \"'!\" & AD179),0) + IF(Setup!$AG$10<>\"\",INDIRECT(\"'\" & Setup!$AG$10 & \"'!\" & AD179),0) + IF(Setup!$AG$11<>\"\",INDIRECT(\"'\" & Setup!$AG$11 & \"'!\" & AD179),0) + IF(Setup!$AG$12<>\"\",INDIRECT(\"'\" & Setup!$AG$12 & \"'!\" & AD179),0)","v":0},{"$f":"IF(Setup!$AG$7<>\"\",INDIRECT(\"'\" & Setup!$AG$7 & \"'!\" & AE179),0) + IF(Setup!$AG$8<>\"\",INDIRECT(\"'\" & Setup!$AG$8 & \"'!\" & AE179),0) + IF(Setup!$AG$9<>\"\",INDIRECT(\"'\" & Setup!$AG$9 & \"'!\" & AE179),0) + IF(Setup!$AG$10<>\"\",INDIRECT(\"'\" & Setup!$AG$10 & \"'!\" & AE179),0) + IF(Setup!$AG$11<>\"\",INDIRECT(\"'\" & Setup!$AG$11 & \"'!\" & AE179),0) + IF(Setup!$AG$12<>\"\",INDIRECT(\"'\" & Setup!$AG$12 & \"'!\" & AE179),0)","v":0},{"$f":"IF(Setup!$AH$7<>\"\",INDIRECT(\"'\" & Setup!$AH$7 & \"'!\" & AD179),0) + IF(Setup!$AH$8<>\"\",INDIRECT(\"'\" & Setup!$AH$8 & \"'!\" & AD179),0) + IF(Setup!$AH$9<>\"\",INDIRECT(\"'\" & Setup!$AH$9 & \"'!\" & AD179),0) + IF(Setup!$AH$10<>\"\",INDIRECT(\"'\" & Setup!$AH$10 & \"'!\" & AD179),0) + IF(Setup!$AH$11<>\"\",INDIRECT(\"'\" & Setup!$AH$11 & \"'!\" & AD179),0) + IF(Setup!$AH$12<>\"\",INDIRECT(\"'\" & Setup!$AH$12 & \"'!\" & AD179),0)","v":0},{"$f":"IF(Setup!$AH$7<>\"\",INDIRECT(\"'\" & Setup!$AH$7 & \"'!\" & AE179),0) + IF(Setup!$AH$8<>\"\",INDIRECT(\"'\" & Setup!$AH$8 & \"'!\" & AE179),0) + IF(Setup!$AH$9<>\"\",INDIRECT(\"'\" & Setup!$AH$9 & \"'!\" & AE179),0) + IF(Setup!$AH$10<>\"\",INDIRECT(\"'\" & Setup!$AH$10 & \"'!\" & AE179),0) + IF(Setup!$AH$11<>\"\",INDIRECT(\"'\" & Setup!$AH$11 & \"'!\" & AE179),0) + IF(Setup!$AH$12<>\"\",INDIRECT(\"'\" & Setup!$AH$12 & \"'!\" & AE179),0)","v":0},{"$f":"IF(Setup!$AI$7<>\"\",INDIRECT(\"'\" & Setup!$AI$7 & \"'!\" & AD179),0) + IF(Setup!$AI$8<>\"\",INDIRECT(\"'\" & Setup!$AI$8 & \"'!\" & AD179),0) + IF(Setup!$AI$9<>\"\",INDIRECT(\"'\" & Setup!$AI$9 & \"'!\" & AD179),0) + IF(Setup!$AI$10<>\"\",INDIRECT(\"'\" & Setup!$AI$10 & \"'!\" & AD179),0) + IF(Setup!$AI$11<>\"\",INDIRECT(\"'\" & Setup!$AI$11 & \"'!\" & AD179),0) + IF(Setup!$AI$12<>\"\",INDIRECT(\"'\" & Setup!$AI$12 & \"'!\" & AD179),0)","v":0},{"$f":"IF(Setup!$AI$7<>\"\",INDIRECT(\"'\" & Setup!$AI$7 & \"'!\" & AE179),0) + IF(Setup!$AI$8<>\"\",INDIRECT(\"'\" & Setup!$AI$8 & \"'!\" & AE179),0) + IF(Setup!$AI$9<>\"\",INDIRECT(\"'\" & Setup!$AI$9 & \"'!\" & AE179),0) + IF(Setup!$AI$10<>\"\",INDIRECT(\"'\" & Setup!$AI$10 & \"'!\" & AE179),0) + IF(Setup!$AI$11<>\"\",INDIRECT(\"'\" & Setup!$AI$11 & \"'!\" & AE179),0) + IF(Setup!$AI$12<>\"\",INDIRECT(\"'\" & Setup!$AI$12 & \"'!\" & AE179),0)","v":0},{"$f":"IF(Setup!$AJ$7<>\"\",INDIRECT(\"'\" & Setup!$AJ$7 & \"'!\" & AD179),0) + IF(Setup!$AJ$8<>\"\",INDIRECT(\"'\" & Setup!$AJ$8 & \"'!\" & AD179),0) + IF(Setup!$AJ$9<>\"\",INDIRECT(\"'\" & Setup!$AJ$9 & \"'!\" & AD179),0) + IF(Setup!$AJ$10<>\"\",INDIRECT(\"'\" & Setup!$AJ$10 & \"'!\" & AD179),0) + IF(Setup!$AJ$11<>\"\",INDIRECT(\"'\" & Setup!$AJ$11 & \"'!\" & AD179),0) + IF(Setup!$AJ$12<>\"\",INDIRECT(\"'\" & Setup!$AJ$12 & \"'!\" & AD179),0)","v":0},{"$f":"IF(Setup!$AJ$7<>\"\",INDIRECT(\"'\" & Setup!$AJ$7 & \"'!\" & AE179),0) + IF(Setup!$AJ$8<>\"\",INDIRECT(\"'\" & Setup!$AJ$8 & \"'!\" & AE179),0) + IF(Setup!$AJ$9<>\"\",INDIRECT(\"'\" & Setup!$AJ$9 & \"'!\" & AE179),0) + IF(Setup!$AJ$10<>\"\",INDIRECT(\"'\" & Setup!$AJ$10 & \"'!\" & AE179),0) + IF(Setup!$AJ$11<>\"\",INDIRECT(\"'\" & Setup!$AJ$11 & \"'!\" & AE179),0) + IF(Setup!$AJ$12<>\"\",INDIRECT(\"'\" & Setup!$AJ$12 & \"'!\" & AE179),0)","v":0}]
[{"$f":"Planning!A163","v":"I155"},{"$f":"Planning!B163","v":0},{"$f":"Planning!C163","v":0},{"$f":"Planning!D163","v":0},{"$f":"Planning!E163","v":0},{"$f":"Planning!G163","v":0},null,0,0,{"$f":"IF(AND($AR180=\"2\",$AB179<>Lists!$A$17),AU180,AT180)","v":""},"",0,0,{"$f":"IF(AND($AR180=\"2\",$AB180<>Lists!$A$17),AW180,AV180)","v":""},"",0,0,{"$f":"IF(AND($AR180=\"2\",$AB180<>Lists!$A$17),AY180,AX180)","v":""},"",0,0,{"$f":"IF(AND($AR180=\"2\",$AB180<>Lists!$A$17),BA180,AZ180)","v":""},"",0,0,{"$f":"IF(AND($AR180=\"2\",$AB180<>Lists!$A$17),BC180,BB180)","v":""},"",{"$f":"Planning!H163","v":0},"00","H179","J179","I179","",null,{"$f":"IF(Setup!$AG$7<>\"\",INDIRECT(\"'\" & Setup!$AG$7 & \"'!\" & AF180),0) + IF(Setup!$AG$8<>\"\",INDIRECT(\"'\" & Setup!$AG$8 & \"'!\" & AF180),0) + IF(Setup!$AG$9<>\"\",INDIRECT(\"'\" & Setup!$AG$9 & \"'!\" & AF180),0) + IF(Setup!$AG$10<>\"\",INDIRECT(\"'\" & Setup!$AG$10 & \"'!\" & AF180),0) + IF(Setup!$AG$11<>\"\",INDIRECT(\"'\" & Setup!$AG$11 & \"'!\" & AF180),0) + IF(Setup!$AG$12<>\"\",INDIRECT(\"'\" & Setup!$AG$12 & \"'!\" & AF180),0)","v":0},{"$f":"IF(Setup!$AH$7<>\"\",INDIRECT(\"'\" & Setup!$AH$7 & \"'!\" & AF180),0) + IF(Setup!$AH$8<>\"\",INDIRECT(\"'\" & Setup!$AH$8 & \"'!\" & AF180),0) + IF(Setup!$AH$9<>\"\",INDIRECT(\"'\" & Setup!$AH$9 & \"'!\" & AF180),0) + IF(Setup!$AH$10<>\"\",INDIRECT(\"'\" & Setup!$AH$10 & \"'!\" & AF180),0) + IF(Setup!$AH$11<>\"\",INDIRECT(\"'\" & Setup!$AH$11 & \"'!\" & AF180),0) + IF(Setup!$AH$12<>\"\",INDIRECT(\"'\" & Setup!$AH$12 & \"'!\" & AF180),0)","v":0},{"$f":"IF(Setup!$AI$7<>\"\",INDIRECT(\"'\" & Setup!$AI$7 & \"'!\" & AF180),0) + IF(Setup!$AI$8<>\"\",INDIRECT(\"'\" & Setup!$AI$8 & \"'!\" & AF180),0) + IF(Setup!$AI$9<>\"\",INDIRECT(\"'\" & Setup!$AI$9 & \"'!\" & AF180),0) + IF(Setup!$AI$10<>\"\",INDIRECT(\"'\" & Setup!$AI$10 & \"'!\" & AF180),0) + IF(Setup!$AI$11<>\"\",INDIRECT(\"'\" & Setup!$AI$11 & \"'!\" & AF180),0) + IF(Setup!$AI$12<>\"\",INDIRECT(\"'\" & Setup!$AI$12 & \"'!\" & AF180),0)","v":0},{"$f":"IF(Setup!$AJ$7<>\"\",INDIRECT(\"'\" & Setup!$AJ$7 & \"'!\" & AF180),0) + IF(Setup!$AJ$8<>\"\",INDIRECT(\"'\" & Setup!$AJ$8 & \"'!\" & AF180),0) + IF(Setup!$AJ$9<>\"\",INDIRECT(\"'\" & Setup!$AJ$9 & \"'!\" & AF180),0) + IF(Setup!$AJ$10<>\"\",INDIRECT(\"'\" & Setup!$AJ$10 & \"'!\" & AF180),0) + IF(Setup!$AJ$11<>\"\",INDIRECT(\"'\" & Setup!$AJ$11 & \"'!\" & AF180),0) + IF(Setup!$AJ$12<>\"\",INDIRECT(\"'\" & Setup!$AJ$12 & \"'!\" & AF180),0)","v":0},null,"",{"$nulls":3},{"$f":"IF(C180=0,\"\",LEFT(INDEX(Lists!$H$5:$H$49,MATCH(C180,Lists!$G$5:$G$49,0),1),1))","v":""},null,"","","","","","","","","","",{"$nulls":6},{"$f":"IF(Setup!$AG$7<>\"\",INDIRECT(\"'\" & Setup!$AG$7 & \"'!\" & AD180),0) + IF(Setup!$AG$8<>\"\",INDIRECT(\"'\" & Setup!$AG$8 & \"'!\" & AD180),0) + IF(Setup!$AG$9<>\"\",INDIRECT(\"'\" & Setup!$AG$9 & \"'!\" & AD180),0) + IF(Setup!$AG$10<>\"\",INDIRECT(\"'\" & Setup!$AG$10 & \"'!\" & AD180),0) + IF(Setup!$AG$11<>\"\",INDIRECT(\"'\" & Setup!$AG$11 & \"'!\" & AD180),0) + IF(Setup!$AG$12<>\"\",INDIRECT(\"'\" & Setup!$AG$12 & \"'!\" & AD180),0)","v":0},{"$f":"IF(Setup!$AG$7<>\"\",INDIRECT(\"'\" & Setup!$AG$7 & \"'!\" & AE180),0) + IF(Setup!$AG$8<>\"\",INDIRECT(\"'\" & Setup!$AG$8 & \"'!\" & AE180),0) + IF(Setup!$AG$9<>\"\",INDIRECT(\"'\" & Setup!$AG$9 & \"'!\" & AE180),0) + IF(Setup!$AG$10<>\"\",INDIRECT(\"'\" & Setup!$AG$10 & \"'!\" & AE180),0) + IF(Setup!$AG$11<>\"\",INDIRECT(\"'\" & Setup!$AG$11 & \"'!\" & AE180),0) + IF(Setup!$AG$12<>\"\",INDIRECT(\"'\" & Setup!$AG$12 & \"'!\" & AE180),0)","v":0},{"$f":"IF(Setup!$AH$7<>\"\",INDIRECT(\"'\" & Setup!$AH$7 & \"'!\" & AD180),0) + IF(Setup!$AH$8<>\"\",INDIRECT(\"'\" & Setup!$AH$8 & \"'!\" & AD180),0) + IF(Setup!$AH$9<>\"\",INDIRECT(\"'\" & Setup!$AH$9 & \"'!\" & AD180),0) + IF(Setup!$AH$10<>\"\",INDIRECT(\"'\" & Setup!$AH$10 & \"'!\" & AD180),0) + IF(Setup!$AH$11<>\"\",INDIRECT(\"'\" & Setup!$AH$11 & \"'!\" & AD180),0) + IF(Setup!$AH$12<>\"\",INDIRECT(\"'\" & Setup!$AH$12 & \"'!\" & AD180),0)","v":0},{"$f":"IF(Setup!$AH$7<>\"\",INDIRECT(\"'\" & Setup!$AH$7 & \"'!\" & AE180),0) + IF(Setup!$AH$8<>\"\",INDIRECT(\"'\" & Setup!$AH$8 & \"'!\" & AE180),0) + IF(Setup!$AH$9<>\"\",INDIRECT(\"'\" & Setup!$AH$9 & \"'!\" & AE180),0) + IF(Setup!$AH$10<>\"\",INDIRECT(\"'\" & Setup!$AH$10 & \"'!\" & AE180),0) + IF(Setup!$AH$11<>\"\",INDIRECT(\"'\" & Setup!$AH$11 & \"'!\" & AE180),0) + IF(Setup!$AH$12<>\"\",INDIRECT(\"'\" & Setup!$AH$12 & \"'!\" & AE180),0)","v":0},{"$f":"IF(Setup!$AI$7<>\"\",INDIRECT(\"'\" & Setup!$AI$7 & \"'!\" & AD180),0) + IF(Setup!$AI$8<>\"\",INDIRECT(\"'\" & Setup!$AI$8 & \"'!\" & AD180),0) + IF(Setup!$AI$9<>\"\",INDIRECT(\"'\" & Setup!$AI$9 & \"'!\" & AD180),0) + IF(Setup!$AI$10<>\"\",INDIRECT(\"'\" & Setup!$AI$10 & \"'!\" & AD180),0) + IF(Setup!$AI$11<>\"\",INDIRECT(\"'\" & Setup!$AI$11 & \"'!\" & AD180),0) + IF(Setup!$AI$12<>\"\",INDIRECT(\"'\" & Setup!$AI$12 & \"'!\" & AD180),0)","v":0},{"$f":"IF(Setup!$AI$7<>\"\",INDIRECT(\"'\" & Setup!$AI$7 & \"'!\" & AE180),0) + IF(Setup!$AI$8<>\"\",INDIRECT(\"'\" & Setup!$AI$8 & \"'!\" & AE180),0) + IF(Setup!$AI$9<>\"\",INDIRECT(\"'\" & Setup!$AI$9 & \"'!\" & AE180),0) + IF(Setup!$AI$10<>\"\",INDIRECT(\"'\" & Setup!$AI$10 & \"'!\" & AE180),0) + IF(Setup!$AI$11<>\"\",INDIRECT(\"'\" & Setup!$AI$11 & \"'!\" & AE180),0) + IF(Setup!$AI$12<>\"\",INDIRECT(\"'\" & Setup!$AI$12 & \"'!\" & AE180),0)","v":0},{"$f":"IF(Setup!$AJ$7<>\"\",INDIRECT(\"'\" & Setup!$AJ$7 & \"'!\" & AD180),0) + IF(Setup!$AJ$8<>\"\",INDIRECT(\"'\" & Setup!$AJ$8 & \"'!\" & AD180),0) + IF(Setup!$AJ$9<>\"\",INDIRECT(\"'\" & Setup!$AJ$9 & \"'!\" & AD180),0) + IF(Setup!$AJ$10<>\"\",INDIRECT(\"'\" & Setup!$AJ$10 & \"'!\" & AD180),0) + IF(Setup!$AJ$11<>\"\",INDIRECT(\"'\" & Setup!$AJ$11 & \"'!\" & AD180),0) + IF(Setup!$AJ$12<>\"\",INDIRECT(\"'\" & Setup!$AJ$12 & \"'!\" & AD180),0)","v":0},{"$f":"IF(Setup!$AJ$7<>\"\",INDIRECT(\"'\" & Setup!$AJ$7 & \"'!\" & AE180),0) + IF(Setup!$AJ$8<>\"\",INDIRECT(\"'\" & Setup!$AJ$8 & \"'!\" & AE180),0) + IF(Setup!$AJ$9<>\"\",INDIRECT(\"'\" & Setup!$AJ$9 & \"'!\" & AE180),0) + IF(Setup!$AJ$10<>\"\",INDIRECT(\"'\" & Setup!$AJ$10 & \"'!\" & AE180),0) + IF(Setup!$AJ$11<>\"\",INDIRECT(\"'\" & Setup!$AJ$11 & \"'!\" & AE180),0) + IF(Setup!$AJ$12<>\"\",INDIRECT(\"'\" & Setup!$AJ$12 & \"'!\" & AE180),0)","v":0}]
[{"$f":"Planning!A164","v":"I156"},{"$f":"Planning!B164","v":0},{"$f":"Planning!C164","v":0},{"$f":"Planning!D164","v":0},{"$f":"Planning!E164","v":0},{"$f":"Planning!G164","v":0},null,0,0,{"$f":"IF(AND($AR181=\"2\",$AB180<>Lists!$A$17),AU181,AT181)","v":""},"",0,0,{"$f":"IF(AND($AR181=\"2\",$AB181<>Lists!$A$17),AW181,AV181)","v":""},"",0,0,{"$f":"IF(AND($AR181=\"2\",$AB181<>Lists!$A$17),AY181,AX181)","v":""},"",0,0,{"$f":"IF(AND($AR181=\"2\",$AB181<>Lists!$A$17),BA181,AZ181)","v":""},"",0,0,{"$f":"IF(AND($AR181=\"2\",$AB181<>Lists!$A$17),BC181,BB181)","v":""},"",{"$f":"Planning!H164","v":0},"00","H180","J180","I180","",null,{"$f":"IF(Setup!$AG$7<>\"\",INDIRECT(\"'\" & Setup!$AG$7 & \"'!\" & AF181),0) + IF(Setup!$AG$8<>\"\",INDIRECT(\"'\" & Setup!$AG$8 & \"'!\" & AF181),0) + IF(Setup!$AG$9<>\"\",INDIRECT(\"'\" & Setup!$AG$9 & \"'!\" & AF181),0) + IF(Setup!$AG$10<>\"\",INDIRECT(\"'\" & Setup!$AG$10 & \"'!\" & AF181),0) + IF(Setup!$AG$11<>\"\",INDIRECT(\"'\" & Setup!$AG$11 & \"'!\" & AF181),0) + IF(Setup!$AG$12<>\"\",INDIRECT(\"'\" & Setup!$AG$12 & \"'!\" & AF181),0)","v":0},{"$f":"IF(Setup!$AH$7<>\"\",INDIRECT(\"'\" & Setup!$AH$7 & \"'!\" & AF181),0) + IF(Setup!$AH$8<>\"\",INDIRECT(\"'\" & Setup!$AH$8 & \"'!\" & AF181),0) + IF(Setup!$AH$9<>\"\",INDIRECT(\"'\" & Setup!$AH$9 & \"'!\" & AF181),0) + IF(Setup!$AH$10<>\"\",INDIRECT(\"'\" & Setup!$AH$10 & \"'!\" & AF181),0) + IF(Setup!$AH$11<>\"\",INDIRECT(\"'\" & Setup!$AH$11 & \"'!\" & AF181),0) + IF(Setup!$AH$12<>\"\",INDIRECT(\"'\" & Setup!$AH$12 & \"'!\" & AF181),0)","v":0},{"$f":"IF(Setup!$AI$7<>\"\",INDIRECT(\"'\" & Setup!$AI$7 & \"'!\" & AF181),0) + IF(Setup!$AI$8<>\"\",INDIRECT(\"'\" & Setup!$AI$8 & \"'!\" & AF181),0) + IF(Setup!$AI$9<>\"\",INDIRECT(\"'\" & Setup!$AI$9 & \"'!\" & AF181),0) + IF(Setup!$AI$10<>\"\",INDIRECT(\"'\" & Setup!$AI$10 & \"'!\" & AF181),0) + IF(Setup!$AI$11<>\"\",INDIRECT(\"'\" & Setup!$AI$11 & \"'!\" & AF181),0) + IF(Setup!$AI$12<>\"\",INDIRECT(\"'\" & Setup!$AI$12 & \"'!\" & AF181),0)","v":0},{"$f":"IF(Setup!$AJ$7<>\"\",INDIRECT(\"'\" & Setup!$AJ$7 & \"'!\" & AF181),0) + IF(Setup!$AJ$8<>\"\",INDIRECT(\"'\" & Setup!$AJ$8 & \"'!\" & AF181),0) + IF(Setup!$AJ$9<>\"\",INDIRECT(\"'\" & Setup!$AJ$9 & \"'!\" & AF181),0) + IF(Setup!$AJ$10<>\"\",INDIRECT(\"'\" & Setup!$AJ$10 & \"'!\" & AF181),0) + IF(Setup!$AJ$11<>\"\",INDIRECT(\"'\" & Setup!$AJ$11 & \"'!\" & AF181),0) + IF(Setup!$AJ$12<>\"\",INDIRECT(\"'\" & Setup!$AJ$12 & \"'!\" & AF181),0)","v":0},null,"",{"$nulls":3},{"$f":"IF(C181=0,\"\",LEFT(INDEX(Lists!$H$5:$H$49,MATCH(C181,Lists!$G$5:$G$49,0),1),1))","v":""},null,"","","","","","","","","","",{"$nulls":6},{"$f":"IF(Setup!$AG$7<>\"\",INDIRECT(\"'\" & Setup!$AG$7 & \"'!\" & AD181),0) + IF(Setup!$AG$8<>\"\",INDIRECT(\"'\" & Setup!$AG$8 & \"'!\" & AD181),0) + IF(Setup!$AG$9<>\"\",INDIRECT(\"'\" & Setup!$AG$9 & \"'!\" & AD181),0) + IF(Setup!$AG$10<>\"\",INDIRECT(\"'\" & Setup!$AG$10 & \"'!\" & AD181),0) + IF(Setup!$AG$11<>\"\",INDIRECT(\"'\" & Setup!$AG$11 & \"'!\" & AD181),0) + IF(Setup!$AG$12<>\"\",INDIRECT(\"'\" & Setup!$AG$12 & \"'!\" & AD181),0)","v":0},{"$f":"IF(Setup!$AG$7<>\"\",INDIRECT(\"'\" & Setup!$AG$7 & \"'!\" & AE181),0) + IF(Setup!$AG$8<>\"\",INDIRECT(\"'\" & Setup!$AG$8 & \"'!\" & AE181),0) + IF(Setup!$AG$9<>\"\",INDIRECT(\"'\" & Setup!$AG$9 & \"'!\" & AE181),0) + IF(Setup!$AG$10<>\"\",INDIRECT(\"'\" & Setup!$AG$10 & \"'!\" & AE181),0) + IF(Setup!$AG$11<>\"\",INDIRECT(\"'\" & Setup!$AG$11 & \"'!\" & AE181),0) + IF(Setup!$AG$12<>\"\",INDIRECT(\"'\" & Setup!$AG$12 & \"'!\" & AE181),0)","v":0},{"$f":"IF(Setup!$AH$7<>\"\",INDIRECT(\"'\" & Setup!$AH$7 & \"'!\" & AD181),0) + IF(Setup!$AH$8<>\"\",INDIRECT(\"'\" & Setup!$AH$8 & \"'!\" & AD181),0) + IF(Setup!$AH$9<>\"\",INDIRECT(\"'\" & Setup!$AH$9 & \"'!\" & AD181),0) + IF(Setup!$AH$10<>\"\",INDIRECT(\"'\" & Setup!$AH$10 & \"'!\" & AD181),0) + IF(Setup!$AH$11<>\"\",INDIRECT(\"'\" & Setup!$AH$11 & \"'!\" & AD181),0) + IF(Setup!$AH$12<>\"\",INDIRECT(\"'\" & Setup!$AH$12 & \"'!\" & AD181),0)","v":0},{"$f":"IF(Setup!$AH$7<>\"\",INDIRECT(\"'\" & Setup!$AH$7 & \"'!\" & AE181),0) + IF(Setup!$AH$8<>\"\",INDIRECT(\"'\" & Setup!$AH$8 & \"'!\" & AE181),0) + IF(Setup!$AH$9<>\"\",INDIRECT(\"'\" & Setup!$AH$9 & \"'!\" & AE181),0) + IF(Setup!$AH$10<>\"\",INDIRECT(\"'\" & Setup!$AH$10 & \"'!\" & AE181),0) + IF(Setup!$AH$11<>\"\",INDIRECT(\"'\" & Setup!$AH$11 & \"'!\" & AE181),0) + IF(Setup!$AH$12<>\"\",INDIRECT(\"'\" & Setup!$AH$12 & \"'!\" & AE181),0)","v":0},{"$f":"IF(Setup!$AI$7<>\"\",INDIRECT(\"'\" & Setup!$AI$7 & \"'!\" & AD181),0) + IF(Setup!$AI$8<>\"\",INDIRECT(\"'\" & Setup!$AI$8 & \"'!\" & AD181),0) + IF(Setup!$AI$9<>\"\",INDIRECT(\"'\" & Setup!$AI$9 & \"'!\" & AD181),0) + IF(Setup!$AI$10<>\"\",INDIRECT(\"'\" & Setup!$AI$10 & \"'!\" & AD181),0) + IF(Setup!$AI$11<>\"\",INDIRECT(\"'\" & Setup!$AI$11 & \"'!\" & AD181),0) + IF(Setup!$AI$12<>\"\",INDIRECT(\"'\" & Setup!$AI$12 & \"'!\" & AD181),0)","v":0},{"$f":"IF(Setup!$AI$7<>\"\",INDIRECT(\"'\" & Setup!$AI$7 & \"'!\" & AE181),0) + IF(Setup!$AI$8<>\"\",INDIRECT(\"'\" & Setup!$AI$8 & \"'!\" & AE181),0) + IF(Setup!$AI$9<>\"\",INDIRECT(\"'\" & Setup!$AI$9 & \"'!\" & AE181),0) + IF(Setup!$AI$10<>\"\",INDIRECT(\"'\" & Setup!$AI$10 & \"'!\" & AE181),0) + IF(Setup!$AI$11<>\"\",INDIRECT(\"'\" & Setup!$AI$11 & \"'!\" & AE181),0) + IF(Setup!$AI$12<>\"\",INDIRECT(\"'\" & Setup!$AI$12 & \"'!\" & AE181),0)","v":0},{"$f":"IF(Setup!$AJ$7<>\"\",INDIRECT(\"'\" & Setup!$AJ$7 & \"'!\" & AD181),0) + IF(Setup!$AJ$8<>\"\",INDIRECT(\"'\" & Setup!$AJ$8 & \"'!\" & AD181),0) + IF(Setup!$AJ$9<>\"\",INDIRECT(\"'\" & Setup!$AJ$9 & \"'!\" & AD181),0) + IF(Setup!$AJ$10<>\"\",INDIRECT(\"'\" & Setup!$AJ$10 & \"'!\" & AD181),0) + IF(Setup!$AJ$11<>\"\",INDIRECT(\"'\" & Setup!$AJ$11 & \"'!\" & AD181),0) + IF(Setup!$AJ$12<>\"\",INDIRECT(\"'\" & Setup!$AJ$12 & \"'!\" & AD181),0)","v":0},{"$f":"IF(Setup!$AJ$7<>\"\",INDIRECT(\"'\" & Setup!$AJ$7 & \"'!\" & AE181),0) + IF(Setup!$AJ$8<>\"\",INDIRECT(\"'\" & Setup!$AJ$8 & \"'!\" & AE181),0) + IF(Setup!$AJ$9<>\"\",INDIRECT(\"'\" & Setup!$AJ$9 & \"'!\" & AE181),0) + IF(Setup!$AJ$10<>\"\",INDIRECT(\"'\" & Setup!$AJ$10 & \"'!\" & AE181),0) + IF(Setup!$AJ$11<>\"\",INDIRECT(\"'\" & Setup!$AJ$11 & \"'!\" & AE181),0) + IF(Setup!$AJ$12<>\"\",INDIRECT(\"'\" & Setup!$AJ$12 & \"'!\" & AE181),0)","v":0}]
[{"$f":"Planning!A165","v":"I157"},{"$f":"Planning!B165","v":0},{"$f":"Planning!C165","v":0},{"$f":"Planning!D165","v":0},{"$f":"Planning!E165","v":0},{"$f":"Planning!G165","v":0},null,0,0,{"$f":"IF(AND($AR182=\"2\",$AB181<>Lists!$A$17),AU182,AT182)","v":""},"",0,0,{"$f":"IF(AND($AR182=\"2\",$AB182<>Lists!$A$17),AW182,AV182)","v":""},"",0,0,{"$f":"IF(AND($AR182=\"2\",$AB182<>Lists!$A$17),AY182,AX182)","v":""},"",0,0,{"$f":"IF(AND($AR182=\"2\",$AB182<>Lists!$A$17),BA182,AZ182)","v":""},"",0,0,{"$f":"IF(AND($AR182=\"2\",$AB182<>Lists!$A$17),BC182,BB182)","v":""},"",{"$f":"Planning!H165","v":0},"00","H181","J181","I181","",null,{"$f":"IF(Setup!$AG$7<>\"\",INDIRECT(\"'\" & Setup!$AG$7 & \"'!\" & AF182),0) + IF(Setup!$AG$8<>\"\",INDIRECT(\"'\" & Setup!$AG$8 & \"'!\" & AF182),0) + IF(Setup!$AG$9<>\"\",INDIRECT(\"'\" & Setup!$AG$9 & \"'!\" & AF182),0) + IF(Setup!$AG$10<>\"\",INDIRECT(\"'\" & Setup!$AG$10 & \"'!\" & AF182),0) + IF(Setup!$AG$11<>\"\",INDIRECT(\"'\" & Setup!$AG$11 & \"'!\" & AF182),0) + IF(Setup!$AG$12<>\"\",INDIRECT(\"'\" & Setup!$AG$12 & \"'!\" & AF182),0)","v":0},{"$f":"IF(Setup!$AH$7<>\"\",INDIRECT(\"'\" & Setup!$AH$7 & \"'!\" & AF182),0) + IF(Setup!$AH$8<>\"\",INDIRECT(\"'\" & Setup!$AH$8 & \"'!\" & AF182),0) + IF(Setup!$AH$9<>\"\",INDIRECT(\"'\" & Setup!$AH$9 & \"'!\" & AF182),0) + IF(Setup!$AH$10<>\"\",INDIRECT(\"'\" & Setup!$AH$10 & \"'!\" & AF182),0) + IF(Setup!$AH$11<>\"\",INDIRECT(\"'\" & Setup!$AH$11 & \"'!\" & AF182),0) + IF(Setup!$AH$12<>\"\",INDIRECT(\"'\" & Setup!$AH$12 & \"'!\" & AF182),0)","v":0},{"$f":"IF(Setup!$AI$7<>\"\",INDIRECT(\"'\" & Setup!$AI$7 & \"'!\" & AF182),0) + IF(Setup!$AI$8<>\"\",INDIRECT(\"'\" & Setup!$AI$8 & \"'!\" & AF182),0) + IF(Setup!$AI$9<>\"\",INDIRECT(\"'\" & Setup!$AI$9 & \"'!\" & AF182),0) + IF(Setup!$AI$10<>\"\",INDIRECT(\"'\" & Setup!$AI$10 & \"'!\" & AF182),0) + IF(Setup!$AI$11<>\"\",INDIRECT(\"'\" & Setup!$AI$11 & \"'!\" & AF182),0) + IF(Setup!$AI$12<>\"\",INDIRECT(\"'\" & Setup!$AI$12 & \"'!\" & AF182),0)","v":0},{"$f":"IF(Setup!$AJ$7<>\"\",INDIRECT(\"'\" & Setup!$AJ$7 & \"'!\" & AF182),0) + IF(Setup!$AJ$8<>\"\",INDIRECT(\"'\" & Setup!$AJ$8 & \"'!\" & AF182),0) + IF(Setup!$AJ$9<>\"\",INDIRECT(\"'\" & Setup!$AJ$9 & \"'!\" & AF182),0) + IF(Setup!$AJ$10<>\"\",INDIRECT(\"'\" & Setup!$AJ$10 & \"'!\" & AF182),0) + IF(Setup!$AJ$11<>\"\",INDIRECT(\"'\" & Setup!$AJ$11 & \"'!\" & AF182),0) + IF(Setup!$AJ$12<>\"\",INDIRECT(\"'\" & Setup!$AJ$12 & \"'!\" & AF182),0)","v":0},null,"",{"$nulls":3},{"$f":"IF(C182=0,\"\",LEFT(INDEX(Lists!$H$5:$H$49,MATCH(C182,Lists!$G$5:$G$49,0),1),1))","v":""},null,"","","","","","","","","","",{"$nulls":6},{"$f":"IF(Setup!$AG$7<>\"\",INDIRECT(\"'\" & Setup!$AG$7 & \"'!\" & AD182),0) + IF(Setup!$AG$8<>\"\",INDIRECT(\"'\" & Setup!$AG$8 & \"'!\" & AD182),0) + IF(Setup!$AG$9<>\"\",INDIRECT(\"'\" & Setup!$AG$9 & \"'!\" & AD182),0) + IF(Setup!$AG$10<>\"\",INDIRECT(\"'\" & Setup!$AG$10 & \"'!\" & AD182),0) + IF(Setup!$AG$11<>\"\",INDIRECT(\"'\" & Setup!$AG$11 & \"'!\" & AD182),0) + IF(Setup!$AG$12<>\"\",INDIRECT(\"'\" & Setup!$AG$12 & \"'!\" & AD182),0)","v":0},{"$f":"IF(Setup!$AG$7<>\"\",INDIRECT(\"'\" & Setup!$AG$7 & \"'!\" & AE182),0) + IF(Setup!$AG$8<>\"\",INDIRECT(\"'\" & Setup!$AG$8 & \"'!\" & AE182),0) + IF(Setup!$AG$9<>\"\",INDIRECT(\"'\" & Setup!$AG$9 & \"'!\" & AE182),0) + IF(Setup!$AG$10<>\"\",INDIRECT(\"'\" & Setup!$AG$10 & \"'!\" & AE182),0) + IF(Setup!$AG$11<>\"\",INDIRECT(\"'\" & Setup!$AG$11 & \"'!\" & AE182),0) + IF(Setup!$AG$12<>\"\",INDIRECT(\"'\" & Setup!$AG$12 & \"'!\" & AE182),0)","v":0},{"$f":"IF(Setup!$AH$7<>\"\",INDIRECT(\"'\" & Setup!$AH$7 & \"'!\" & AD182),0) + IF(Setup!$AH$8<>\"\",INDIRECT(\"'\" & Setup!$AH$8 & \"'!\" & AD182),0) + IF(Setup!$AH$9<>\"\",INDIRECT(\"'\" & Setup!$AH$9 & \"'!\" & AD182),0) + IF(Setup!$AH$10<>\"\",INDIRECT(\"'\" & Setup!$AH$10 & \"'!\" & AD182),0) + IF(Setup!$AH$11<>\"\",INDIRECT(\"'\" & Setup!$AH$11 & \"'!\" & AD182),0) + IF(Setup!$AH$12<>\"\",INDIRECT(\"'\" & Setup!$AH$12 & \"'!\" & AD182),0)","v":0},{"$f":"IF(Setup!$AH$7<>\"\",INDIRECT(\"'\" & Setup!$AH$7 & \"'!\" & AE182),0) + IF(Setup!$AH$8<>\"\",INDIRECT(\"'\" & Setup!$AH$8 & \"'!\" & AE182),0) + IF(Setup!$AH$9<>\"\",INDIRECT(\"'\" & Setup!$AH$9 & \"'!\" & AE182),0) + IF(Setup!$AH$10<>\"\",INDIRECT(\"'\" & Setup!$AH$10 & \"'!\" & AE182),0) + IF(Setup!$AH$11<>\"\",INDIRECT(\"'\" & Setup!$AH$11 & \"'!\" & AE182),0) + IF(Setup!$AH$12<>\"\",INDIRECT(\"'\" & Setup!$AH$12 & \"'!\" & AE182),0)","v":0},{"$f":"IF(Setup!$AI$7<>\"\",INDIRECT(\"'\" & Setup!$AI$7 & \"'!\" & AD182),0) + IF(Setup!$AI$8<>\"\",INDIRECT(\"'\" & Setup!$AI$8 & \"'!\" & AD182),0) + IF(Setup!$AI$9<>\"\",INDIRECT(\"'\" & Setup!$AI$9 & \"'!\" & AD182),0) + IF(Setup!$AI$10<>\"\",INDIRECT(\"'\" & Setup!$AI$10 & \"'!\" & AD182),0) + IF(Setup!$AI$11<>\"\",INDIRECT(\"'\" & Setup!$AI$11 & \"'!\" & AD182),0) + IF(Setup!$AI$12<>\"\",INDIRECT(\"'\" & Setup!$AI$12 & \"'!\" & AD182),0)","v":0},{"$f":"IF(Setup!$AI$7<>\"\",INDIRECT(\"'\" & Setup!$AI$7 & \"'!\" & AE182),0) + IF(Setup!$AI$8<>\"\",INDIRECT(\"'\" & Setup!$AI$8 & \"'!\" & AE182),0) + IF(Setup!$AI$9<>\"\",INDIRECT(\"'\" & Setup!$AI$9 & \"'!\" & AE182),0) + IF(Setup!$AI$10<>\"\",INDIRECT(\"'\" & Setup!$AI$10 & \"'!\" & AE182),0) + IF(Setup!$AI$11<>\"\",INDIRECT(\"'\" & Setup!$AI$11 & \"'!\" & AE182),0) + IF(Setup!$AI$12<>\"\",INDIRECT(\"'\" & Setup!$AI$12 & \"'!\" & AE182),0)","v":0},{"$f":"IF(Setup!$AJ$7<>\"\",INDIRECT(\"'\" & Setup!$AJ$7 & \"'!\" & AD182),0) + IF(Setup!$AJ$8<>\"\",INDIRECT(\"'\" & Setup!$AJ$8 & \"'!\" & AD182),0) + IF(Setup!$AJ$9<>\"\",INDIRECT(\"'\" & Setup!$AJ$9 & \"'!\" & AD182),0) + IF(Setup!$AJ$10<>\"\",INDIRECT(\"'\" & Setup!$AJ$10 & \"'!\" & AD182),0) + IF(Setup!$AJ$11<>\"\",INDIRECT(\"'\" & Setup!$AJ$11 & \"'!\" & AD182),0) + IF(Setup!$AJ$12<>\"\",INDIRECT(\"'\" & Setup!$AJ$12 & \"'!\" & AD182),0)","v":0},{"$f":"IF(Setup!$AJ$7<>\"\",INDIRECT(\"'\" & Setup!$AJ$7 & \"'!\" & AE182),0) + IF(Setup!$AJ$8<>\"\",INDIRECT(\"'\" & Setup!$AJ$8 & \"'!\" & AE182),0) + IF(Setup!$AJ$9<>\"\",INDIRECT(\"'\" & Setup!$AJ$9 & \"'!\" & AE182),0) + IF(Setup!$AJ$10<>\"\",INDIRECT(\"'\" & Setup!$AJ$10 & \"'!\" & AE182),0) + IF(Setup!$AJ$11<>\"\",INDIRECT(\"'\" & Setup!$AJ$11 & \"'!\" & AE182),0) + IF(Setup!$AJ$12<>\"\",INDIRECT(\"'\" & Setup!$AJ$12 & \"'!\" & AE182),0)","v":0}]
[{"$f":"Planning!A166","v":"I158"},{"$f":"Planning!B166","v":0},{"$f":"Planning!C166","v":0},{"$f":"Planning!D166","v":0},{"$f":"Planning!E166","v":0},{"$f":"Planning!G166","v":0},null,0,0,{"$f":"IF(AND($AR183=\"2\",$AB182<>Lists!$A$17),AU183,AT183)","v":""},"",0,0,{"$f":"IF(AND($AR183=\"2\",$AB183<>Lists!$A$17),AW183,AV183)","v":""},"",0,0,{"$f":"IF(AND($AR183=\"2\",$AB183<>Lists!$A$17),AY183,AX183)","v":""},"",0,0,{"$f":"IF(AND($AR183=\"2\",$AB183<>Lists!$A$17),BA183,AZ183)","v":""},"",0,0,{"$f":"IF(AND($AR183=\"2\",$AB183<>Lists!$A$17),BC183,BB183)","v":""},"",{"$f":"Planning!H166","v":0},"00","H182","J182","I182","",null,{"$f":"IF(Setup!$AG$7<>\"\",INDIRECT(\"'\" & Setup!$AG$7 & \"'!\" & AF183),0) + IF(Setup!$AG$8<>\"\",INDIRECT(\"'\" & Setup!$AG$8 & \"'!\" & AF183),0) + IF(Setup!$AG$9<>\"\",INDIRECT(\"'\" & Setup!$AG$9 & \"'!\" & AF183),0) + IF(Setup!$AG$10<>\"\",INDIRECT(\"'\" & Setup!$AG$10 & \"'!\" & AF183),0) + IF(Setup!$AG$11<>\"\",INDIRECT(\"'\" & Setup!$AG$11 & \"'!\" & AF183),0) + IF(Setup!$AG$12<>\"\",INDIRECT(\"'\" & Setup!$AG$12 & \"'!\" & AF183),0)","v":0},{"$f":"IF(Setup!$AH$7<>\"\",INDIRECT(\"'\" & Setup!$AH$7 & \"'!\" & AF183),0) + IF(Setup!$AH$8<>\"\",INDIRECT(\"'\" & Setup!$AH$8 & \"'!\" & AF183),0) + IF(Setup!$AH$9<>\"\",INDIRECT(\"'\" & Setup!$AH$9 & \"'!\" & AF183),0) + IF(Setup!$AH$10<>\"\",INDIRECT(\"'\" & Setup!$AH$10 & \"'!\" & AF183),0) + IF(Setup!$AH$11<>\"\",INDIRECT(\"'\" & Setup!$AH$11 & \"'!\" & AF183),0) + IF(Setup!$AH$12<>\"\",INDIRECT(\"'\" & Setup!$AH$12 & \"'!\" & AF183),0)","v":0},{"$f":"IF(Setup!$AI$7<>\"\",INDIRECT(\"'\" & Setup!$AI$7 & \"'!\" & AF183),0) + IF(Setup!$AI$8<>\"\",INDIRECT(\"'\" & Setup!$AI$8 & \"'!\" & AF183),0) + IF(Setup!$AI$9<>\"\",INDIRECT(\"'\" & Setup!$AI$9 & \"'!\" & AF183),0) + IF(Setup!$AI$10<>\"\",INDIRECT(\"'\" & Setup!$AI$10 & \"'!\" & AF183),0) + IF(Setup!$AI$11<>\"\",INDIRECT(\"'\" & Setup!$AI$11 & \"'!\" & AF183),0) + IF(Setup!$AI$12<>\"\",INDIRECT(\"'\" & Setup!$AI$12 & \"'!\" & AF183),0)","v":0},{"$f":"IF(Setup!$AJ$7<>\"\",INDIRECT(\"'\" & Setup!$AJ$7 & \"'!\" & AF183),0) + IF(Setup!$AJ$8<>\"\",INDIRECT(\"'\" & Setup!$AJ$8 & \"'!\" & AF183),0) + IF(Setup!$AJ$9<>\"\",INDIRECT(\"'\" & Setup!$AJ$9 & \"'!\" & AF183),0) + IF(Setup!$AJ$10<>\"\",INDIRECT(\"'\" & Setup!$AJ$10 & \"'!\" & AF183),0) + IF(Setup!$AJ$11<>\"\",INDIRECT(\"'\" & Setup!$AJ$11 & \"'!\" & AF183),0) + IF(Setup!$AJ$12<>\"\",INDIRECT(\"'\" & Setup!$AJ$12 & \"'!\" & AF183),0)","v":0},null,"",{"$nulls":3},{"$f":"IF(C183=0,\"\",LEFT(INDEX(Lists!$H$5:$H$49,MATCH(C183,Lists!$G$5:$G$49,0),1),1))","v":""},null,"","","","","","","","","","",{"$nulls":6},{"$f":"IF(Setup!$AG$7<>\"\",INDIRECT(\"'\" & Setup!$AG$7 & \"'!\" & AD183),0) + IF(Setup!$AG$8<>\"\",INDIRECT(\"'\" & Setup!$AG$8 & \"'!\" & AD183),0) + IF(Setup!$AG$9<>\"\",INDIRECT(\"'\" & Setup!$AG$9 & \"'!\" & AD183),0) + IF(Setup!$AG$10<>\"\",INDIRECT(\"'\" & Setup!$AG$10 & \"'!\" & AD183),0) + IF(Setup!$AG$11<>\"\",INDIRECT(\"'\" & Setup!$AG$11 & \"'!\" & AD183),0) + IF(Setup!$AG$12<>\"\",INDIRECT(\"'\" & Setup!$AG$12 & \"'!\" & AD183),0)","v":0},{"$f":"IF(Setup!$AG$7<>\"\",INDIRECT(\"'\" & Setup!$AG$7 & \"'!\" & AE183),0) + IF(Setup!$AG$8<>\"\",INDIRECT(\"'\" & Setup!$AG$8 & \"'!\" & AE183),0) + IF(Setup!$AG$9<>\"\",INDIRECT(\"'\" & Setup!$AG$9 & \"'!\" & AE183),0) + IF(Setup!$AG$10<>\"\",INDIRECT(\"'\" & Setup!$AG$10 & \"'!\" & AE183),0) + IF(Setup!$AG$11<>\"\",INDIRECT(\"'\" & Setup!$AG$11 & \"'!\" & AE183),0) + IF(Setup!$AG$12<>\"\",INDIRECT(\"'\" & Setup!$AG$12 & \"'!\" & AE183),0)","v":0},{"$f":"IF(Setup!$AH$7<>\"\",INDIRECT(\"'\" & Setup!$AH$7 & \"'!\" & AD183),0) + IF(Setup!$AH$8<>\"\",INDIRECT(\"'\" & Setup!$AH$8 & \"'!\" & AD183),0) + IF(Setup!$AH$9<>\"\",INDIRECT(\"'\" & Setup!$AH$9 & \"'!\" & AD183),0) + IF(Setup!$AH$10<>\"\",INDIRECT(\"'\" & Setup!$AH$10 & \"'!\" & AD183),0) + IF(Setup!$AH$11<>\"\",INDIRECT(\"'\" & Setup!$AH$11 & \"'!\" & AD183),0) + IF(Setup!$AH$12<>\"\",INDIRECT(\"'\" & Setup!$AH$12 & \"'!\" & AD183),0)","v":0},{"$f":"IF(Setup!$AH$7<>\"\",INDIRECT(\"'\" & Setup!$AH$7 & \"'!\" & AE183),0) + IF(Setup!$AH$8<>\"\",INDIRECT(\"'\" & Setup!$AH$8 & \"'!\" & AE183),0) + IF(Setup!$AH$9<>\"\",INDIRECT(\"'\" & Setup!$AH$9 & \"'!\" & AE183),0) + IF(Setup!$AH$10<>\"\",INDIRECT(\"'\" & Setup!$AH$10 & \"'!\" & AE183),0) + IF(Setup!$AH$11<>\"\",INDIRECT(\"'\" & Setup!$AH$11 & \"'!\" & AE183),0) + IF(Setup!$AH$12<>\"\",INDIRECT(\"'\" & Setup!$AH$12 & \"'!\" & AE183),0)","v":0},{"$f":"IF(Setup!$AI$7<>\"\",INDIRECT(\"'\" & Setup!$AI$7 & \"'!\" & AD183),0) + IF(Setup!$AI$8<>\"\",INDIRECT(\"'\" & Setup!$AI$8 & \"'!\" & AD183),0) + IF(Setup!$AI$9<>\"\",INDIRECT(\"'\" & Setup!$AI$9 & \"'!\" & AD183),0) + IF(Setup!$AI$10<>\"\",INDIRECT(\"'\" & Setup!$AI$10 & \"'!\" & AD183),0) + IF(Setup!$AI$11<>\"\",INDIRECT(\"'\" & Setup!$AI$11 & \"'!\" & AD183),0) + IF(Setup!$AI$12<>\"\",INDIRECT(\"'\" & Setup!$AI$12 & \"'!\" & AD183),0)","v":0},{"$f":"IF(Setup!$AI$7<>\"\",INDIRECT(\"'\" & Setup!$AI$7 & \"'!\" & AE183),0) + IF(Setup!$AI$8<>\"\",INDIRECT(\"'\" & Setup!$AI$8 & \"'!\" & AE183),0) + IF(Setup!$AI$9<>\"\",INDIRECT(\"'\" & Setup!$AI$9 & \"'!\" & AE183),0) + IF(Setup!$AI$10<>\"\",INDIRECT(\"'\" & Setup!$AI$10 & \"'!\" & AE183),0) + IF(Setup!$AI$11<>\"\",INDIRECT(\"'\" & Setup!$AI$11 & \"'!\" & AE183),0) + IF(Setup!$AI$12<>\"\",INDIRECT(\"'\" & Setup!$AI$12 & \"'!\" & AE183),0)","v":0},{"$f":"IF(Setup!$AJ$7<>\"\",INDIRECT(\"'\" & Setup!$AJ$7 & \"'!\" & AD183),0) + IF(Setup!$AJ$8<>\"\",INDIRECT(\"'\" & Setup!$AJ$8 & \"'!\" & AD183),0) + IF(Setup!$AJ$9<>\"\",INDIRECT(\"'\" & Setup!$AJ$9 & \"'!\" & AD183),0) + IF(Setup!$AJ$10<>\"\",INDIRECT(\"'\" & Setup!$AJ$10 & \"'!\" & AD183),0) + IF(Setup!$AJ$11<>\"\",INDIRECT(\"'\" & Setup!$AJ$11 & \"'!\" & AD183),0) + IF(Setup!$AJ$12<>\"\",INDIRECT(\"'\" & Setup!$AJ$12 & \"'!\" & AD183),0)","v":0},{"$f":"IF(Setup!$AJ$7<>\"\",INDIRECT(\"'\" & Setup!$AJ$7 & \"'!\" & AE183),0) + IF(Setup!$AJ$8<>\"\",INDIRECT(\"'\" & Setup!$AJ$8 & \"'!\" & AE183),0) + IF(Setup!$AJ$9<>\"\",INDIRECT(\"'\" & Setup!$AJ$9 & \"'!\" & AE183),0) + IF(Setup!$AJ$10<>\"\",INDIRECT(\"'\" & Setup!$AJ$10 & \"'!\" & AE183),0) + IF(Setup!$AJ$11<>\"\",INDIRECT(\"'\" & Setup!$AJ$11 & \"'!\" & AE183),0) + IF(Setup!$AJ$12<>\"\",INDIRECT(\"'\" & Setup!$AJ$12 & \"'!\" & AE183),0)","v":0}]
[{"$f":"Planning!A167","v":"I159"},{"$f":"Planning!B167","v":0},{"$f":"Planning!C167","v":0},{"$f":"Planning!D167","v":0},{"$f":"Planning!E167","v":0},{"$f":"Planning!G167","v":0},null,0,0,{"$f":"IF(AND($AR184=\"2\",$AB183<>Lists!$A$17),AU184,AT184)","v":""},"",0,0,{"$f":"IF(AND($AR184=\"2\",$AB184<>Lists!$A$17),AW184,AV184)","v":""},"",0,0,{"$f":"IF(AND($AR184=\"2\",$AB184<>Lists!$A$17),AY184,AX184)","v":""},"",0,0,{"$f":"IF(AND($AR184=\"2\",$AB184<>Lists!$A$17),BA184,AZ184)","v":""},"",0,0,{"$f":"IF(AND($AR184=\"2\",$AB184<>Lists!$A$17),BC184,BB184)","v":""},"",{"$f":"Planning!H167","v":0},"00","H183","J183","I183","",null,{"$f":"IF(Setup!$AG$7<>\"\",INDIRECT(\"'\" & Setup!$AG$7 & \"'!\" & AF184),0) + IF(Setup!$AG$8<>\"\",INDIRECT(\"'\" & Setup!$AG$8 & \"'!\" & AF184),0) + IF(Setup!$AG$9<>\"\",INDIRECT(\"'\" & Setup!$AG$9 & \"'!\" & AF184),0) + IF(Setup!$AG$10<>\"\",INDIRECT(\"'\" & Setup!$AG$10 & \"'!\" & AF184),0) + IF(Setup!$AG$11<>\"\",INDIRECT(\"'\" & Setup!$AG$11 & \"'!\" & AF184),0) + IF(Setup!$AG$12<>\"\",INDIRECT(\"'\" & Setup!$AG$12 & \"'!\" & AF184),0)","v":0},{"$f":"IF(Setup!$AH$7<>\"\",INDIRECT(\"'\" & Setup!$AH$7 & \"'!\" & AF184),0) + IF(Setup!$AH$8<>\"\",INDIRECT(\"'\" & Setup!$AH$8 & \"'!\" & AF184),0) + IF(Setup!$AH$9<>\"\",INDIRECT(\"'\" & Setup!$AH$9 & \"'!\" & AF184),0) + IF(Setup!$AH$10<>\"\",INDIRECT(\"'\" & Setup!$AH$10 & \"'!\" & AF184),0) + IF(Setup!$AH$11<>\"\",INDIRECT(\"'\" & Setup!$AH$11 & \"'!\" & AF184),0) + IF(Setup!$AH$12<>\"\",INDIRECT(\"'\" & Setup!$AH$12 & \"'!\" & AF184),0)","v":0},{"$f":"IF(Setup!$AI$7<>\"\",INDIRECT(\"'\" & Setup!$AI$7 & \"'!\" & AF184),0) + IF(Setup!$AI$8<>\"\",INDIRECT(\"'\" & Setup!$AI$8 & \"'!\" & AF184),0) + IF(Setup!$AI$9<>\"\",INDIRECT(\"'\" & Setup!$AI$9 & \"'!\" & AF184),0) + IF(Setup!$AI$10<>\"\",INDIRECT(\"'\" & Setup!$AI$10 & \"'!\" & AF184),0) + IF(Setup!$AI$11<>\"\",INDIRECT(\"'\" & Setup!$AI$11 & \"'!\" & AF184),0) + IF(Setup!$AI$12<>\"\",INDIRECT(\"'\" & Setup!$AI$12 & \"'!\" & AF184),0)","v":0},{"$f":"IF(Setup!$AJ$7<>\"\",INDIRECT(\"'\" & Setup!$AJ$7 & \"'!\" & AF184),0) + IF(Setup!$AJ$8<>\"\",INDIRECT(\"'\" & Setup!$AJ$8 & \"'!\" & AF184),0) + IF(Setup!$AJ$9<>\"\",INDIRECT(\"'\" & Setup!$AJ$9 & \"'!\" & AF184),0) + IF(Setup!$AJ$10<>\"\",INDIRECT(\"'\" & Setup!$AJ$10 & \"'!\" & AF184),0) + IF(Setup!$AJ$11<>\"\",INDIRECT(\"'\" & Setup!$AJ$11 & \"'!\" & AF184),0) + IF(Setup!$AJ$12<>\"\",INDIRECT(\"'\" & Setup!$AJ$12 & \"'!\" & AF184),0)","v":0},null,"",{"$nulls":3},{"$f":"IF(C184=0,\"\",LEFT(INDEX(Lists!$H$5:$H$49,MATCH(C184,Lists!$G$5:$G$49,0),1),1))","v":""},null,"","","","","","","","","","",{"$nulls":6},{"$f":"IF(Setup!$AG$7<>\"\",INDIRECT(\"'\" & Setup!$AG$7 & \"'!\" & AD184),0) + IF(Setup!$AG$8<>\"\",INDIRECT(\"'\" & Setup!$AG$8 & \"'!\" & AD184),0) + IF(Setup!$AG$9<>\"\",INDIRECT(\"'\" & Setup!$AG$9 & \"'!\" & AD184),0) + IF(Setup!$AG$10<>\"\",INDIRECT(\"'\" & Setup!$AG$10 & \"'!\" & AD184),0) + IF(Setup!$AG$11<>\"\",INDIRECT(\"'\" & Setup!$AG$11 & \"'!\" & AD184),0) + IF(Setup!$AG$12<>\"\",INDIRECT(\"'\" & Setup!$AG$12 & \"'!\" & AD184),0)","v":0},{"$f":"IF(Setup!$AG$7<>\"\",INDIRECT(\"'\" & Setup!$AG$7 & \"'!\" & AE184),0) + IF(Setup!$AG$8<>\"\",INDIRECT(\"'\" & Setup!$AG$8 & \"'!\" & AE184),0) + IF(Setup!$AG$9<>\"\",INDIRECT(\"'\" & Setup!$AG$9 & \"'!\" & AE184),0) + IF(Setup!$AG$10<>\"\",INDIRECT(\"'\" & Setup!$AG$10 & \"'!\" & AE184),0) + IF(Setup!$AG$11<>\"\",INDIRECT(\"'\" & Setup!$AG$11 & \"'!\" & AE184),0) + IF(Setup!$AG$12<>\"\",INDIRECT(\"'\" & Setup!$AG$12 & \"'!\" & AE184),0)","v":0},{"$f":"IF(Setup!$AH$7<>\"\",INDIRECT(\"'\" & Setup!$AH$7 & \"'!\" & AD184),0) + IF(Setup!$AH$8<>\"\",INDIRECT(\"'\" & Setup!$AH$8 & \"'!\" & AD184),0) + IF(Setup!$AH$9<>\"\",INDIRECT(\"'\" & Setup!$AH$9 & \"'!\" & AD184),0) + IF(Setup!$AH$10<>\"\",INDIRECT(\"'\" & Setup!$AH$10 & \"'!\" & AD184),0) + IF(Setup!$AH$11<>\"\",INDIRECT(\"'\" & Setup!$AH$11 & \"'!\" & AD184),0) + IF(Setup!$AH$12<>\"\",INDIRECT(\"'\" & Setup!$AH$12 & \"'!\" & AD184),0)","v":0},{"$f":"IF(Setup!$AH$7<>\"\",INDIRECT(\"'\" & Setup!$AH$7 & \"'!\" & AE184),0) + IF(Setup!$AH$8<>\"\",INDIRECT(\"'\" & Setup!$AH$8 & \"'!\" & AE184),0) + IF(Setup!$AH$9<>\"\",INDIRECT(\"'\" & Setup!$AH$9 & \"'!\" & AE184),0) + IF(Setup!$AH$10<>\"\",INDIRECT(\"'\" & Setup!$AH$10 & \"'!\" & AE184),0) + IF(Setup!$AH$11<>\"\",INDIRECT(\"'\" & Setup!$AH$11 & \"'!\" & AE184),0) + IF(Setup!$AH$12<>\"\",INDIRECT(\"'\" & Setup!$AH$12 & \"'!\" & AE184),0)","v":0},{"$f":"IF(Setup!$AI$7<>\"\",INDIRECT(\"'\" & Setup!$AI$7 & \"'!\" & AD184),0) + IF(Setup!$AI$8<>\"\",INDIRECT(\"'\" & Setup!$AI$8 & \"'!\" & AD184),0) + IF(Setup!$AI$9<>\"\",INDIRECT(\"'\" & Setup!$AI$9 & \"'!\" & AD184),0) + IF(Setup!$AI$10<>\"\",INDIRECT(\"'\" & Setup!$AI$10 & \"'!\" & AD184),0) + IF(Setup!$AI$11<>\"\",INDIRECT(\"'\" & Setup!$AI$11 & \"'!\" & AD184),0) + IF(Setup!$AI$12<>\"\",INDIRECT(\"'\" & Setup!$AI$12 & \"'!\" & AD184),0)","v":0},{"$f":"IF(Setup!$AI$7<>\"\",INDIRECT(\"'\" & Setup!$AI$7 & \"'!\" & AE184),0) + IF(Setup!$AI$8<>\"\",INDIRECT(\"'\" & Setup!$AI$8 & \"'!\" & AE184),0) + IF(Setup!$AI$9<>\"\",INDIRECT(\"'\" & Setup!$AI$9 & \"'!\" & AE184),0) + IF(Setup!$AI$10<>\"\",INDIRECT(\"'\" & Setup!$AI$10 & \"'!\" & AE184),0) + IF(Setup!$AI$11<>\"\",INDIRECT(\"'\" & Setup!$AI$11 & \"'!\" & AE184),0) + IF(Setup!$AI$12<>\"\",INDIRECT(\"'\" & Setup!$AI$12 & \"'!\" & AE184),0)","v":0},{"$f":"IF(Setup!$AJ$7<>\"\",INDIRECT(\"'\" & Setup!$AJ$7 & \"'!\" & AD184),0) + IF(Setup!$AJ$8<>\"\",INDIRECT(\"'\" & Setup!$AJ$8 & \"'!\" & AD184),0) + IF(Setup!$AJ$9<>\"\",INDIRECT(\"'\" & Setup!$AJ$9 & \"'!\" & AD184),0) + IF(Setup!$AJ$10<>\"\",INDIRECT(\"'\" & Setup!$AJ$10 & \"'!\" & AD184),0) + IF(Setup!$AJ$11<>\"\",INDIRECT(\"'\" & Setup!$AJ$11 & \"'!\" & AD184),0) + IF(Setup!$AJ$12<>\"\",INDIRECT(\"'\" & Setup!$AJ$12 & \"'!\" & AD184),0)","v":0},{"$f":"IF(Setup!$AJ$7<>\"\",INDIRECT(\"'\" & Setup!$AJ$7 & \"'!\" & AE184),0) + IF(Setup!$AJ$8<>\"\",INDIRECT(\"'\" & Setup!$AJ$8 & \"'!\" & AE184),0) + IF(Setup!$AJ$9<>\"\",INDIRECT(\"'\" & Setup!$AJ$9 & \"'!\" & AE184),0) + IF(Setup!$AJ$10<>\"\",INDIRECT(\"'\" & Setup!$AJ$10 & \"'!\" & AE184),0) + IF(Setup!$AJ$11<>\"\",INDIRECT(\"'\" & Setup!$AJ$11 & \"'!\" & AE184),0) + IF(Setup!$AJ$12<>\"\",INDIRECT(\"'\" & Setup!$AJ$12 & \"'!\" & AE184),0)","v":0}]
[{"$f":"Planning!A168","v":"I160"},{"$f":"Planning!B168","v":0},{"$f":"Planning!C168","v":0},{"$f":"Planning!D168","v":0},{"$f":"Planning!E168","v":0},{"$f":"Planning!G168","v":0},null,0,0,{"$f":"IF(AND($AR185=\"2\",$AB184<>Lists!$A$17),AU185,AT185)","v":""},"",0,0,{"$f":"IF(AND($AR185=\"2\",$AB185<>Lists!$A$17),AW185,AV185)","v":""},"",0,0,{"$f":"IF(AND($AR185=\"2\",$AB185<>Lists!$A$17),AY185,AX185)","v":""},"",0,0,{"$f":"IF(AND($AR185=\"2\",$AB185<>Lists!$A$17),BA185,AZ185)","v":""},"",0,0,{"$f":"IF(AND($AR185=\"2\",$AB185<>Lists!$A$17),BC185,BB185)","v":""},"",{"$f":"Planning!H168","v":0},"00","H184","J184","I184","",null,{"$f":"IF(Setup!$AG$7<>\"\",INDIRECT(\"'\" & Setup!$AG$7 & \"'!\" & AF185),0) + IF(Setup!$AG$8<>\"\",INDIRECT(\"'\" & Setup!$AG$8 & \"'!\" & AF185),0) + IF(Setup!$AG$9<>\"\",INDIRECT(\"'\" & Setup!$AG$9 & \"'!\" & AF185),0) + IF(Setup!$AG$10<>\"\",INDIRECT(\"'\" & Setup!$AG$10 & \"'!\" & AF185),0) + IF(Setup!$AG$11<>\"\",INDIRECT(\"'\" & Setup!$AG$11 & \"'!\" & AF185),0) + IF(Setup!$AG$12<>\"\",INDIRECT(\"'\" & Setup!$AG$12 & \"'!\" & AF185),0)","v":0},{"$f":"IF(Setup!$AH$7<>\"\",INDIRECT(\"'\" & Setup!$AH$7 & \"'!\" & AF185),0) + IF(Setup!$AH$8<>\"\",INDIRECT(\"'\" & Setup!$AH$8 & \"'!\" & AF185),0) + IF(Setup!$AH$9<>\"\",INDIRECT(\"'\" & Setup!$AH$9 & \"'!\" & AF185),0) + IF(Setup!$AH$10<>\"\",INDIRECT(\"'\" & Setup!$AH$10 & \"'!\" & AF185),0) + IF(Setup!$AH$11<>\"\",INDIRECT(\"'\" & Setup!$AH$11 & \"'!\" & AF185),0) + IF(Setup!$AH$12<>\"\",INDIRECT(\"'\" & Setup!$AH$12 & \"'!\" & AF185),0)","v":0},{"$f":"IF(Setup!$AI$7<>\"\",INDIRECT(\"'\" & Setup!$AI$7 & \"'!\" & AF185),0) + IF(Setup!$AI$8<>\"\",INDIRECT(\"'\" & Setup!$AI$8 & \"'!\" & AF185),0) + IF(Setup!$AI$9<>\"\",INDIRECT(\"'\" & Setup!$AI$9 & \"'!\" & AF185),0) + IF(Setup!$AI$10<>\"\",INDIRECT(\"'\" & Setup!$AI$10 & \"'!\" & AF185),0) + IF(Setup!$AI$11<>\"\",INDIRECT(\"'\" & Setup!$AI$11 & \"'!\" & AF185),0) + IF(Setup!$AI$12<>\"\",INDIRECT(\"'\" & Setup!$AI$12 & \"'!\" & AF185),0)","v":0},{"$f":"IF(Setup!$AJ$7<>\"\",INDIRECT(\"'\" & Setup!$AJ$7 & \"'!\" & AF185),0) + IF(Setup!$AJ$8<>\"\",INDIRECT(\"'\" & Setup!$AJ$8 & \"'!\" & AF185),0) + IF(Setup!$AJ$9<>\"\",INDIRECT(\"'\" & Setup!$AJ$9 & \"'!\" & AF185),0) + IF(Setup!$AJ$10<>\"\",INDIRECT(\"'\" & Setup!$AJ$10 & \"'!\" & AF185),0) + IF(Setup!$AJ$11<>\"\",INDIRECT(\"'\" & Setup!$AJ$11 & \"'!\" & AF185),0) + IF(Setup!$AJ$12<>\"\",INDIRECT(\"'\" & Setup!$AJ$12 & \"'!\" & AF185),0)","v":0},null,"",{"$nulls":3},{"$f":"IF(C185=0,\"\",LEFT(INDEX(Lists!$H$5:$H$49,MATCH(C185,Lists!$G$5:$G$49,0),1),1))","v":""},null,"","","","","","","","","","",{"$nulls":6},{"$f":"IF(Setup!$AG$7<>\"\",INDIRECT(\"'\" & Setup!$AG$7 & \"'!\" & AD185),0) + IF(Setup!$AG$8<>\"\",INDIRECT(\"'\" & Setup!$AG$8 & \"'!\" & AD185),0) + IF(Setup!$AG$9<>\"\",INDIRECT(\"'\" & Setup!$AG$9 & \"'!\" & AD185),0) + IF(Setup!$AG$10<>\"\",INDIRECT(\"'\" & Setup!$AG$10 & \"'!\" & AD185),0) + IF(Setup!$AG$11<>\"\",INDIRECT(\"'\" & Setup!$AG$11 & \"'!\" & AD185),0) + IF(Setup!$AG$12<>\"\",INDIRECT(\"'\" & Setup!$AG$12 & \"'!\" & AD185),0)","v":0},{"$f":"IF(Setup!$AG$7<>\"\",INDIRECT(\"'\" & Setup!$AG$7 & \"'!\" & AE185),0) + IF(Setup!$AG$8<>\"\",INDIRECT(\"'\" & Setup!$AG$8 & \"'!\" & AE185),0) + IF(Setup!$AG$9<>\"\",INDIRECT(\"'\" & Setup!$AG$9 & \"'!\" & AE185),0) + IF(Setup!$AG$10<>\"\",INDIRECT(\"'\" & Setup!$AG$10 & \"'!\" & AE185),0) + IF(Setup!$AG$11<>\"\",INDIRECT(\"'\" & Setup!$AG$11 & \"'!\" & AE185),0) + IF(Setup!$AG$12<>\"\",INDIRECT(\"'\" & Setup!$AG$12 & \"'!\" & AE185),0)","v":0},{"$f":"IF(Setup!$AH$7<>\"\",INDIRECT(\"'\" & Setup!$AH$7 & \"'!\" & AD185),0) + IF(Setup!$AH$8<>\"\",INDIRECT(\"'\" & Setup!$AH$8 & \"'!\" & AD185),0) + IF(Setup!$AH$9<>\"\",INDIRECT(\"'\" & Setup!$AH$9 & \"'!\" & AD185),0) + IF(Setup!$AH$10<>\"\",INDIRECT(\"'\" & Setup!$AH$10 & \"'!\" & AD185),0) + IF(Setup!$AH$11<>\"\",INDIRECT(\"'\" & Setup!$AH$11 & \"'!\" & AD185),0) + IF(Setup!$AH$12<>\"\",INDIRECT(\"'\" & Setup!$AH$12 & \"'!\" & AD185),0)","v":0},{"$f":"IF(Setup!$AH$7<>\"\",INDIRECT(\"'\" & Setup!$AH$7 & \"'!\" & AE185),0) + IF(Setup!$AH$8<>\"\",INDIRECT(\"'\" & Setup!$AH$8 & \"'!\" & AE185),0) + IF(Setup!$AH$9<>\"\",INDIRECT(\"'\" & Setup!$AH$9 & \"'!\" & AE185),0) + IF(Setup!$AH$10<>\"\",INDIRECT(\"'\" & Setup!$AH$10 & \"'!\" & AE185),0) + IF(Setup!$AH$11<>\"\",INDIRECT(\"'\" & Setup!$AH$11 & \"'!\" & AE185),0) + IF(Setup!$AH$12<>\"\",INDIRECT(\"'\" & Setup!$AH$12 & \"'!\" & AE185),0)","v":0},{"$f":"IF(Setup!$AI$7<>\"\",INDIRECT(\"'\" & Setup!$AI$7 & \"'!\" & AD185),0) + IF(Setup!$AI$8<>\"\",INDIRECT(\"'\" & Setup!$AI$8 & \"'!\" & AD185),0) + IF(Setup!$AI$9<>\"\",INDIRECT(\"'\" & Setup!$AI$9 & \"'!\" & AD185),0) + IF(Setup!$AI$10<>\"\",INDIRECT(\"'\" & Setup!$AI$10 & \"'!\" & AD185),0) + IF(Setup!$AI$11<>\"\",INDIRECT(\"'\" & Setup!$AI$11 & \"'!\" & AD185),0) + IF(Setup!$AI$12<>\"\",INDIRECT(\"'\" & Setup!$AI$12 & \"'!\" & AD185),0)","v":0},{"$f":"IF(Setup!$AI$7<>\"\",INDIRECT(\"'\" & Setup!$AI$7 & \"'!\" & AE185),0) + IF(Setup!$AI$8<>\"\",INDIRECT(\"'\" & Setup!$AI$8 & \"'!\" & AE185),0) + IF(Setup!$AI$9<>\"\",INDIRECT(\"'\" & Setup!$AI$9 & \"'!\" & AE185),0) + IF(Setup!$AI$10<>\"\",INDIRECT(\"'\" & Setup!$AI$10 & \"'!\" & AE185),0) + IF(Setup!$AI$11<>\"\",INDIRECT(\"'\" & Setup!$AI$11 & \"'!\" & AE185),0) + IF(Setup!$AI$12<>\"\",INDIRECT(\"'\" & Setup!$AI$12 & \"'!\" & AE185),0)","v":0},{"$f":"IF(Setup!$AJ$7<>\"\",INDIRECT(\"'\" & Setup!$AJ$7 & \"'!\" & AD185),0) + IF(Setup!$AJ$8<>\"\",INDIRECT(\"'\" & Setup!$AJ$8 & \"'!\" & AD185),0) + IF(Setup!$AJ$9<>\"\",INDIRECT(\"'\" & Setup!$AJ$9 & \"'!\" & AD185),0) + IF(Setup!$AJ$10<>\"\",INDIRECT(\"'\" & Setup!$AJ$10 & \"'!\" & AD185),0) + IF(Setup!$AJ$11<>\"\",INDIRECT(\"'\" & Setup!$AJ$11 & \"'!\" & AD185),0) + IF(Setup!$AJ$12<>\"\",INDIRECT(\"'\" & Setup!$AJ$12 & \"'!\" & AD185),0)","v":0},{"$f":"IF(Setup!$AJ$7<>\"\",INDIRECT(\"'\" & Setup!$AJ$7 & \"'!\" & AE185),0) + IF(Setup!$AJ$8<>\"\",INDIRECT(\"'\" & Setup!$AJ$8 & \"'!\" & AE185),0) + IF(Setup!$AJ$9<>\"\",INDIRECT(\"'\" & Setup!$AJ$9 & \"'!\" & AE185),0) + IF(Setup!$AJ$10<>\"\",INDIRECT(\"'\" & Setup!$AJ$10 & \"'!\" & AE185),0) + IF(Setup!$AJ$11<>\"\",INDIRECT(\"'\" & Setup!$AJ$11 & \"'!\" & AE185),0) + IF(Setup!$AJ$12<>\"\",INDIRECT(\"'\" & Setup!$AJ$12 & \"'!\" & AE185),0)","v":0}]
[{"$f":"Planning!A169","v":"I161"},{"$f":"Planning!B169","v":0},{"$f":"Planning!C169","v":0},{"$f":"Planning!D169","v":0},{"$f":"Planning!E169","v":0},{"$f":"Planning!G169","v":0},null,0,0,{"$f":"IF(AND($AR186=\"2\",$AB185<>Lists!$A$17),AU186,AT186)","v":""},{"$f":"IF($AN186 = ExcluirDelPLogro,\"\",IF(AND(H186=0,I186=0),\"\",J186))","v":""},{"$f":"IF(AR186<>\"3\",BJ186,INDIRECT(\"'\" & MesCierreQ1 & \"'!\" & AD186))","v":0},{"$f":"IF(AR186<>\"3\",BK186,INDIRECT(\"'\" & MesCierreQ1 & \"'!\" & AE186))","v":0},{"$f":"IF(AND($AR186=\"2\",$AB186<>Lists!$A$17),AW186,AV186)","v":""},{"$f":"IF($AN186=ExcluirDelPLogro,\"\",IF(AND(L186=0,M186=0),\"\",N186))","v":""},{"$f":"IF(AR186<>\"3\",BL186,INDIRECT(\"'\" & MesCierreQ2 & \"'!\" & AD186))","v":0},{"$f":"IF(AR186<>\"3\",BM186,INDIRECT(\"'\" & MesCierreQ2 & \"'!\" & AE186))","v":0},{"$f":"IF(AND($AR186=\"2\",$AB186<>Lists!$A$17),AY186,AX186)","v":""},{"$f":"IF($AN186=ExcluirDelPLogro,\"\",IF(AND(P186=0,Q186=0),\"\",R186))","v":""},{"$f":"IF(AR186<>\"3\",BN186,INDIRECT(\"'\" & MesCierreQ3 & \"'!\" & AD186))","v":0},{"$f":"IF(AR186<>\"3\",BO186,INDIRECT(\"'\" & MesCierreQ3 & \"'!\" & AE186))","v":0},{"$f":"IF(AND($AR186=\"2\",$AB186<>Lists!$A$17),BA186,AZ186)","v":""},{"$f":"IF($AN186=ExcluirDelPLogro,\"\",IF(AND(T186=0,U186=0),\"\",V186))","v":""},{"$f":"IF(AR186<>\"3\",BP186,INDIRECT(\"'\" & MesCierreQ4 & \"'!\" & AD186))","v":0},{"$f":"IF(AR186<>\"3\",BQ186,INDIRECT(\"'\" & MesCierreQ4 & \"'!\" & AE186))","v":0},{"$f":"IF(AND($AR186=\"2\",$AB186<>Lists!$A$17),BC186,BB186)","v":""},{"$f":"IF($AN186=ExcluirDelPLogro,\"\",IF(AND(X186=0,Y186=0),\"\",Z186))","v":""},{"$f":"Planning!H169","v":0},"00","H185","J185","I185","",null,{"$f":"IF(Setup!$AG$7<>\"\",INDIRECT(\"'\" & Setup!$AG$7 & \"'!\" & AF186),0) + IF(Setup!$AG$8<>\"\",INDIRECT(\"'\" & Setup!$AG$8 & \"'!\" & AF186),0) + IF(Setup!$AG$9<>\"\",INDIRECT(\"'\" & Setup!$AG$9 & \"'!\" & AF186),0) + IF(Setup!$AG$10<>\"\",INDIRECT(\"'\" & Setup!$AG$10 & \"'!\" & AF186),0) + IF(Setup!$AG$11<>\"\",INDIRECT(\"'\" & Setup!$AG$11 & \"'!\" & AF186),0) + IF(Setup!$AG$12<>\"\",INDIRECT(\"'\" & Setup!$AG$12 & \"'!\" & AF186),0)","v":0},{"$f":"IF(Setup!$AH$7<>\"\",INDIRECT(\"'\" & Setup!$AH$7 & \"'!\" & AF186),0) + IF(Setup!$AH$8<>\"\",INDIRECT(\"'\" & Setup!$AH$8 & \"'!\" & AF186),0) + IF(Setup!$AH$9<>\"\",INDIRECT(\"'\" & Setup!$AH$9 & \"'!\" & AF186),0) + IF(Setup!$AH$10<>\"\",INDIRECT(\"'\" & Setup!$AH$10 & \"'!\" & AF186),0) + IF(Setup!$AH$11<>\"\",INDIRECT(\"'\" & Setup!$AH$11 & \"'!\" & AF186),0) + IF(Setup!$AH$12<>\"\",INDIRECT(\"'\" & Setup!$AH$12 & \"'!\" & AF186),0)","v":0},{"$f":"IF(Setup!$AI$7<>\"\",INDIRECT(\"'\" & Setup!$AI$7 & \"'!\" & AF186),0) + IF(Setup!$AI$8<>\"\",INDIRECT(\"'\" & Setup!$AI$8 & \"'!\" & AF186),0) + IF(Setup!$AI$9<>\"\",INDIRECT(\"'\" & Setup!$AI$9 & \"'!\" & AF186),0) + IF(Setup!$AI$10<>\"\",INDIRECT(\"'\" & Setup!$AI$10 & \"'!\" & AF186),0) + IF(Setup!$AI$11<>\"\",INDIRECT(\"'\" & Setup!$AI$11 & \"'!\" & AF186),0) + IF(Setup!$AI$12<>\"\",INDIRECT(\"'\" & Setup!$AI$12 & \"'!\" & AF186),0)","v":0},{"$f":"IF(Setup!$AJ$7<>\"\",INDIRECT(\"'\" & Setup!$AJ$7 & \"'!\" & AF186),0) + IF(Setup!$AJ$8<>\"\",INDIRECT(\"'\" & Setup!$AJ$8 & \"'!\" & AF186),0) + IF(Setup!$AJ$9<>\"\",INDIRECT(\"'\" & Setup!$AJ$9 & \"'!\" & AF186),0) + IF(Setup!$AJ$10<>\"\",INDIRECT(\"'\" & Setup!$AJ$10 & \"'!\" & AF186),0) + IF(Setup!$AJ$11<>\"\",INDIRECT(\"'\" & Setup!$AJ$11 & \"'!\" & AF186),0) + IF(Setup!$AJ$12<>\"\",INDIRECT(\"'\" & Setup!$AJ$12 & \"'!\" & AF186),0)","v":0},null,"",{"$nulls":3},{"$f":"IF(C186=0,\"\",LEFT(INDEX(Lists!$H$5:$H$49,MATCH(C186,Lists!$G$5:$G$49,0),1),1))","v":""},null,"","","","","","","","","","",{"$nulls":6},{"$f":"IF(Setup!$AG$7<>\"\",INDIRECT(\"'\" & Setup!$AG$7 & \"'!\" & AD186),0) + IF(Setup!$AG$8<>\"\",INDIRECT(\"'\" & Setup!$AG$8 & \"'!\" & AD186),0) + IF(Setup!$AG$9<>\"\",INDIRECT(\"'\" & Setup!$AG$9 & \"'!\" & AD186),0) + IF(Setup!$AG$10<>\"\",INDIRECT(\"'\" & Setup!$AG$10 & \"'!\" & AD186),0) + IF(Setup!$AG$11<>\"\",INDIRECT(\"'\" & Setup!$AG$11 & \"'!\" & AD186),0) + IF(Setup!$AG$12<>\"\",INDIRECT(\"'\" & Setup!$AG$12 & \"'!\" & AD186),0)","v":0},{"$f":"IF(Setup!$AG$7<>\"\",INDIRECT(\"'\" & Setup!$AG$7 & \"'!\" & AE186),0) + IF(Setup!$AG$8<>\"\",INDIRECT(\"'\" & Setup!$AG$8 & \"'!\" & AE186),0) + IF(Setup!$AG$9<>\"\",INDIRECT(\"'\" & Setup!$AG$9 & \"'!\" & AE186),0) + IF(Setup!$AG$10<>\"\",INDIRECT(\"'\" & Setup!$AG$10 & \"'!\" & AE186),0) + IF(Setup!$AG$11<>\"\",INDIRECT(\"'\" & Setup!$AG$11 & \"'!\" & AE186),0) + IF(Setup!$AG$12<>\"\",INDIRECT(\"'\" & Setup!$AG$12 & \"'!\" & AE186),0)","v":0},{"$f":"IF(Setup!$AH$7<>\"\",INDIRECT(\"'\" & Setup!$AH$7 & \"'!\" & AD186),0) + IF(Setup!$AH$8<>\"\",INDIRECT(\"'\" & Setup!$AH$8 & \"'!\" & AD186),0) + IF(Setup!$AH$9<>\"\",INDIRECT(\"'\" & Setup!$AH$9 & \"'!\" & AD186),0) + IF(Setup!$AH$10<>\"\",INDIRECT(\"'\" & Setup!$AH$10 & \"'!\" & AD186),0) + IF(Setup!$AH$11<>\"\",INDIRECT(\"'\" & Setup!$AH$11 & \"'!\" & AD186),0) + IF(Setup!$AH$12<>\"\",INDIRECT(\"'\" & Setup!$AH$12 & \"'!\" & AD186),0)","v":0},{"$f":"IF(Setup!$AH$7<>\"\",INDIRECT(\"'\" & Setup!$AH$7 & \"'!\" & AE186),0) + IF(Setup!$AH$8<>\"\",INDIRECT(\"'\" & Setup!$AH$8 & \"'!\" & AE186),0) + IF(Setup!$AH$9<>\"\",INDIRECT(\"'\" & Setup!$AH$9 & \"'!\" & AE186),0) + IF(Setup!$AH$10<>\"\",INDIRECT(\"'\" & Setup!$AH$10 & \"'!\" & AE186),0) + IF(Setup!$AH$11<>\"\",INDIRECT(\"'\" & Setup!$AH$11 & \"'!\" & AE186),0) + IF(Setup!$AH$12<>\"\",INDIRECT(\"'\" & Setup!$AH$12 & \"'!\" & AE186),0)","v":0},{"$f":"IF(Setup!$AI$7<>\"\",INDIRECT(\"'\" & Setup!$AI$7 & \"'!\" & AD186),0) + IF(Setup!$AI$8<>\"\",INDIRECT(\"'\" & Setup!$AI$8 & \"'!\" & AD186),0) + IF(Setup!$AI$9<>\"\",INDIRECT(\"'\" & Setup!$AI$9 & \"'!\" & AD186),0) + IF(Setup!$AI$10<>\"\",INDIRECT(\"'\" & Setup!$AI$10 & \"'!\" & AD186),0) + IF(Setup!$AI$11<>\"\",INDIRECT(\"'\" & Setup!$AI$11 & \"'!\" & AD186),0) + IF(Setup!$AI$12<>\"\",INDIRECT(\"'\" & Setup!$AI$12 & \"'!\" & AD186),0)","v":0},{"$f":"IF(Setup!$AI$7<>\"\",INDIRECT(\"'\" & Setup!$AI$7 & \"'!\" & AE186),0) + IF(Setup!$AI$8<>\"\",INDIRECT(\"'\" & Setup!$AI$8 & \"'!\" & AE186),0) + IF(Setup!$AI$9<>\"\",INDIRECT(\"'\" & Setup!$AI$9 & \"'!\" & AE186),0) + IF(Setup!$AI$10<>\"\",INDIRECT(\"'\" & Setup!$AI$10 & \"'!\" & AE186),0) + IF(Setup!$AI$11<>\"\",INDIRECT(\"'\" & Setup!$AI$11 & \"'!\" & AE186),0) + IF(Setup!$AI$12<>\"\",INDIRECT(\"'\" & Setup!$AI$12 & \"'!\" & AE186),0)","v":0},{"$f":"IF(Setup!$AJ$7<>\"\",INDIRECT(\"'\" & Setup!$AJ$7 & \"'!\" & AD186),0) + IF(Setup!$AJ$8<>\"\",INDIRECT(\"'\" & Setup!$AJ$8 & \"'!\" & AD186),0) + IF(Setup!$AJ$9<>\"\",INDIRECT(\"'\" & Setup!$AJ$9 & \"'!\" & AD186),0) + IF(Setup!$AJ$10<>\"\",INDIRECT(\"'\" & Setup!$AJ$10 & \"'!\" & AD186),0) + IF(Setup!$AJ$11<>\"\",INDIRECT(\"'\" & Setup!$AJ$11 & \"'!\" & AD186),0) + IF(Setup!$AJ$12<>\"\",INDIRECT(\"'\" & Setup!$AJ$12 & \"'!\" & AD186),0)","v":0},{"$f":"IF(Setup!$AJ$7<>\"\",INDIRECT(\"'\" & Setup!$AJ$7 & \"'!\" & AE186),0) + IF(Setup!$AJ$8<>\"\",INDIRECT(\"'\" & Setup!$AJ$8 & \"'!\" & AE186),0) + IF(Setup!$AJ$9<>\"\",INDIRECT(\"'\" & Setup!$AJ$9 & \"'!\" & AE186),0) + IF(Setup!$AJ$10<>\"\",INDIRECT(\"'\" & Setup!$AJ$10 & \"'!\" & AE186),0) + IF(Setup!$AJ$11<>\"\",INDIRECT(\"'\" & Setup!$AJ$11 & \"'!\" & AE186),0) + IF(Setup!$AJ$12<>\"\",INDIRECT(\"'\" & Setup!$AJ$12 & \"'!\" & AE186),0)","v":0}]
[{"$f":"Planning!A170","v":"I162"},{"$f":"Planning!B170","v":0},{"$f":"Planning!C170","v":0},{"$f":"Planning!D170","v":0},{"$f":"Planning!E170","v":0},{"$f":"Planning!G170","v":0},null,0,0,{"$f":"IF(AND($AR187=\"2\",$AB186<>Lists!$A$17),AU187,AT187)","v":""},"",0,0,{"$f":"IF(AND($AR187=\"2\",$AB187<>Lists!$A$17),AW187,AV187)","v":""},"",0,0,{"$f":"IF(AND($AR187=\"2\",$AB187<>Lists!$A$17),AY187,AX187)","v":""},"",0,0,{"$f":"IF(AND($AR187=\"2\",$AB187<>Lists!$A$17),BA187,AZ187)","v":""},"",0,0,{"$f":"IF(AND($AR187=\"2\",$AB187<>Lists!$A$17),BC187,BB187)","v":""},"",{"$f":"Planning!H170","v":0},"00","H186","J186","I186","",null,{"$f":"IF(Setup!$AG$7<>\"\",INDIRECT(\"'\" & Setup!$AG$7 & \"'!\" & AF187),0) + IF(Setup!$AG$8<>\"\",INDIRECT(\"'\" & Setup!$AG$8 & \"'!\" & AF187),0) + IF(Setup!$AG$9<>\"\",INDIRECT(\"'\" & Setup!$AG$9 & \"'!\" & AF187),0) + IF(Setup!$AG$10<>\"\",INDIRECT(\"'\" & Setup!$AG$10 & \"'!\" & AF187),0) + IF(Setup!$AG$11<>\"\",INDIRECT(\"'\" & Setup!$AG$11 & \"'!\" & AF187),0) + IF(Setup!$AG$12<>\"\",INDIRECT(\"'\" & Setup!$AG$12 & \"'!\" & AF187),0)","v":0},{"$f":"IF(Setup!$AH$7<>\"\",INDIRECT(\"'\" & Setup!$AH$7 & \"'!\" & AF187),0) + IF(Setup!$AH$8<>\"\",INDIRECT(\"'\" & Setup!$AH$8 & \"'!\" & AF187),0) + IF(Setup!$AH$9<>\"\",INDIRECT(\"'\" & Setup!$AH$9 & \"'!\" & AF187),0) + IF(Setup!$AH$10<>\"\",INDIRECT(\"'\" & Setup!$AH$10 & \"'!\" & AF187),0) + IF(Setup!$AH$11<>\"\",INDIRECT(\"'\" & Setup!$AH$11 & \"'!\" & AF187),0) + IF(Setup!$AH$12<>\"\",INDIRECT(\"'\" & Setup!$AH$12 & \"'!\" & AF187),0)","v":0},{"$f":"IF(Setup!$AI$7<>\"\",INDIRECT(\"'\" & Setup!$AI$7 & \"'!\" & AF187),0) + IF(Setup!$AI$8<>\"\",INDIRECT(\"'\" & Setup!$AI$8 & \"'!\" & AF187),0) + IF(Setup!$AI$9<>\"\",INDIRECT(\"'\" & Setup!$AI$9 & \"'!\" & AF187),0) + IF(Setup!$AI$10<>\"\",INDIRECT(\"'\" & Setup!$AI$10 & \"'!\" & AF187),0) + IF(Setup!$AI$11<>\"\",INDIRECT(\"'\" & Setup!$AI$11 & \"'!\" & AF187),0) + IF(Setup!$AI$12<>\"\",INDIRECT(\"'\" & Setup!$AI$12 & \"'!\" & AF187),0)","v":0},{"$f":"IF(Setup!$AJ$7<>\"\",INDIRECT(\"'\" & Setup!$AJ$7 & \"'!\" & AF187),0) + IF(Setup!$AJ$8<>\"\",INDIRECT(\"'\" & Setup!$AJ$8 & \"'!\" & AF187),0) + IF(Setup!$AJ$9<>\"\",INDIRECT(\"'\" & Setup!$AJ$9 & \"'!\" & AF187),0) + IF(Setup!$AJ$10<>\"\",INDIRECT(\"'\" & Setup!$AJ$10 & \"'!\" & AF187),0) + IF(Setup!$AJ$11<>\"\",INDIRECT(\"'\" & Setup!$AJ$11 & \"'!\" & AF187),0) + IF(Setup!$AJ$12<>\"\",INDIRECT(\"'\" & Setup!$AJ$12 & \"'!\" & AF187),0)","v":0},null,"",{"$nulls":3},{"$f":"IF(C187=0,\"\",LEFT(INDEX(Lists!$H$5:$H$49,MATCH(C187,Lists!$G$5:$G$49,0),1),1))","v":""},null,"","","","","","","","","","",{"$nulls":6},{"$f":"IF(Setup!$AG$7<>\"\",INDIRECT(\"'\" & Setup!$AG$7 & \"'!\" & AD187),0) + IF(Setup!$AG$8<>\"\",INDIRECT(\"'\" & Setup!$AG$8 & \"'!\" & AD187),0) + IF(Setup!$AG$9<>\"\",INDIRECT(\"'\" & Setup!$AG$9 & \"'!\" & AD187),0) + IF(Setup!$AG$10<>\"\",INDIRECT(\"'\" & Setup!$AG$10 & \"'!\" & AD187),0) + IF(Setup!$AG$11<>\"\",INDIRECT(\"'\" & Setup!$AG$11 & \"'!\" & AD187),0) + IF(Setup!$AG$12<>\"\",INDIRECT(\"'\" & Setup!$AG$12 & \"'!\" & AD187),0)","v":0},{"$f":"IF(Setup!$AG$7<>\"\",INDIRECT(\"'\" & Setup!$AG$7 & \"'!\" & AE187),0) + IF(Setup!$AG$8<>\"\",INDIRECT(\"'\" & Setup!$AG$8 & \"'!\" & AE187),0) + IF(Setup!$AG$9<>\"\",INDIRECT(\"'\" & Setup!$AG$9 & \"'!\" & AE187),0) + IF(Setup!$AG$10<>\"\",INDIRECT(\"'\" & Setup!$AG$10 & \"'!\" & AE187),0) + IF(Setup!$AG$11<>\"\",INDIRECT(\"'\" & Setup!$AG$11 & \"'!\" & AE187),0) + IF(Setup!$AG$12<>\"\",INDIRECT(\"'\" & Setup!$AG$12 & \"'!\" & AE187),0)","v":0},{"$f":"IF(Setup!$AH$7<>\"\",INDIRECT(\"'\" & Setup!$AH$7 & \"'!\" & AD187),0) + IF(Setup!$AH$8<>\"\",INDIRECT(\"'\" & Setup!$AH$8 & \"'!\" & AD187),0) + IF(Setup!$AH$9<>\"\",INDIRECT(\"'\" & Setup!$AH$9 & \"'!\" & AD187),0) + IF(Setup!$AH$10<>\"\",INDIRECT(\"'\" & Setup!$AH$10 & \"'!\" & AD187),0) + IF(Setup!$AH$11<>\"\",INDIRECT(\"'\" & Setup!$AH$11 & \"'!\" & AD187),0) + IF(Setup!$AH$12<>\"\",INDIRECT(\"'\" & Setup!$AH$12 & \"'!\" & AD187),0)","v":0},{"$f":"IF(Setup!$AH$7<>\"\",INDIRECT(\"'\" & Setup!$AH$7 & \"'!\" & AE187),0) + IF(Setup!$AH$8<>\"\",INDIRECT(\"'\" & Setup!$AH$8 & \"'!\" & AE187),0) + IF(Setup!$AH$9<>\"\",INDIRECT(\"'\" & Setup!$AH$9 & \"'!\" & AE187),0) + IF(Setup!$AH$10<>\"\",INDIRECT(\"'\" & Setup!$AH$10 & \"'!\" & AE187),0) + IF(Setup!$AH$11<>\"\",INDIRECT(\"'\" & Setup!$AH$11 & \"'!\" & AE187),0) + IF(Setup!$AH$12<>\"\",INDIRECT(\"'\" & Setup!$AH$12 & \"'!\" & AE187),0)","v":0},{"$f":"IF(Setup!$AI$7<>\"\",INDIRECT(\"'\" & Setup!$AI$7 & \"'!\" & AD187),0) + IF(Setup!$AI$8<>\"\",INDIRECT(\"'\" & Setup!$AI$8 & \"'!\" & AD187),0) + IF(Setup!$AI$9<>\"\",INDIRECT(\"'\" & Setup!$AI$9 & \"'!\" & AD187),0) + IF(Setup!$AI$10<>\"\",INDIRECT(\"'\" & Setup!$AI$10 & \"'!\" & AD187),0) + IF(Setup!$AI$11<>\"\",INDIRECT(\"'\" & Setup!$AI$11 & \"'!\" & AD187),0) + IF(Setup!$AI$12<>\"\",INDIRECT(\"'\" & Setup!$AI$12 & \"'!\" & AD187),0)","v":0},{"$f":"IF(Setup!$AI$7<>\"\",INDIRECT(\"'\" & Setup!$AI$7 & \"'!\" & AE187),0) + IF(Setup!$AI$8<>\"\",INDIRECT(\"'\" & Setup!$AI$8 & \"'!\" & AE187),0) + IF(Setup!$AI$9<>\"\",INDIRECT(\"'\" & Setup!$AI$9 & \"'!\" & AE187),0) + IF(Setup!$AI$10<>\"\",INDIRECT(\"'\" & Setup!$AI$10 & \"'!\" & AE187),0) + IF(Setup!$AI$11<>\"\",INDIRECT(\"'\" & Setup!$AI$11 & \"'!\" & AE187),0) + IF(Setup!$AI$12<>\"\",INDIRECT(\"'\" & Setup!$AI$12 & \"'!\" & AE187),0)","v":0},{"$f":"IF(Setup!$AJ$7<>\"\",INDIRECT(\"'\" & Setup!$AJ$7 & \"'!\" & AD187),0) + IF(Setup!$AJ$8<>\"\",INDIRECT(\"'\" & Setup!$AJ$8 & \"'!\" & AD187),0) + IF(Setup!$AJ$9<>\"\",INDIRECT(\"'\" & Setup!$AJ$9 & \"'!\" & AD187),0) + IF(Setup!$AJ$10<>\"\",INDIRECT(\"'\" & Setup!$AJ$10 & \"'!\" & AD187),0) + IF(Setup!$AJ$11<>\"\",INDIRECT(\"'\" & Setup!$AJ$11 & \"'!\" & AD187),0) + IF(Setup!$AJ$12<>\"\",INDIRECT(\"'\" & Setup!$AJ$12 & \"'!\" & AD187),0)","v":0},{"$f":"IF(Setup!$AJ$7<>\"\",INDIRECT(\"'\" & Setup!$AJ$7 & \"'!\" & AE187),0) + IF(Setup!$AJ$8<>\"\",INDIRECT(\"'\" & Setup!$AJ$8 & \"'!\" & AE187),0) + IF(Setup!$AJ$9<>\"\",INDIRECT(\"'\" & Setup!$AJ$9 & \"'!\" & AE187),0) + IF(Setup!$AJ$10<>\"\",INDIRECT(\"'\" & Setup!$AJ$10 & \"'!\" & AE187),0) + IF(Setup!$AJ$11<>\"\",INDIRECT(\"'\" & Setup!$AJ$11 & \"'!\" & AE187),0) + IF(Setup!$AJ$12<>\"\",INDIRECT(\"'\" & Setup!$AJ$12 & \"'!\" & AE187),0)","v":0}]
[{"$f":"Planning!A171","v":"I163"},{"$f":"Planning!B171","v":0},{"$f":"Planning!C171","v":0},{"$f":"Planning!D171","v":0},{"$f":"Planning!E171","v":0},{"$f":"Planning!G171","v":0},null,0,0,{"$f":"IF(AND($AR188=\"2\",$AB187<>Lists!$A$17),AU188,AT188)","v":""},"",0,0,{"$f":"IF(AND($AR188=\"2\",$AB188<>Lists!$A$17),AW188,AV188)","v":""},"",0,0,{"$f":"IF(AND($AR188=\"2\",$AB188<>Lists!$A$17),AY188,AX188)","v":""},"",0,0,{"$f":"IF(AND($AR188=\"2\",$AB188<>Lists!$A$17),BA188,AZ188)","v":""},"",0,0,{"$f":"IF(AND($AR188=\"2\",$AB188<>Lists!$A$17),BC188,BB188)","v":""},"",{"$f":"Planning!H171","v":0},"00","H187","J187","I187","",null,{"$f":"IF(Setup!$AG$7<>\"\",INDIRECT(\"'\" & Setup!$AG$7 & \"'!\" & AF188),0) + IF(Setup!$AG$8<>\"\",INDIRECT(\"'\" & Setup!$AG$8 & \"'!\" & AF188),0) + IF(Setup!$AG$9<>\"\",INDIRECT(\"'\" & Setup!$AG$9 & \"'!\" & AF188),0) + IF(Setup!$AG$10<>\"\",INDIRECT(\"'\" & Setup!$AG$10 & \"'!\" & AF188),0) + IF(Setup!$AG$11<>\"\",INDIRECT(\"'\" & Setup!$AG$11 & \"'!\" & AF188),0) + IF(Setup!$AG$12<>\"\",INDIRECT(\"'\" & Setup!$AG$12 & \"'!\" & AF188),0)","v":0},{"$f":"IF(Setup!$AH$7<>\"\",INDIRECT(\"'\" & Setup!$AH$7 & \"'!\" & AF188),0) + IF(Setup!$AH$8<>\"\",INDIRECT(\"'\" & Setup!$AH$8 & \"'!\" & AF188),0) + IF(Setup!$AH$9<>\"\",INDIRECT(\"'\" & Setup!$AH$9 & \"'!\" & AF188),0) + IF(Setup!$AH$10<>\"\",INDIRECT(\"'\" & Setup!$AH$10 & \"'!\" & AF188),0) + IF(Setup!$AH$11<>\"\",INDIRECT(\"'\" & Setup!$AH$11 & \"'!\" & AF188),0) + IF(Setup!$AH$12<>\"\",INDIRECT(\"'\" & Setup!$AH$12 & \"'!\" & AF188),0)","v":0},{"$f":"IF(Setup!$AI$7<>\"\",INDIRECT(\"'\" & Setup!$AI$7 & \"'!\" & AF188),0) + IF(Setup!$AI$8<>\"\",INDIRECT(\"'\" & Setup!$AI$8 & \"'!\" & AF188),0) + IF(Setup!$AI$9<>\"\",INDIRECT(\"'\" & Setup!$AI$9 & \"'!\" & AF188),0) + IF(Setup!$AI$10<>\"\",INDIRECT(\"'\" & Setup!$AI$10 & \"'!\" & AF188),0) + IF(Setup!$AI$11<>\"\",INDIRECT(\"'\" & Setup!$AI$11 & \"'!\" & AF188),0) + IF(Setup!$AI$12<>\"\",INDIRECT(\"'\" & Setup!$AI$12 & \"'!\" & AF188),0)","v":0},{"$f":"IF(Setup!$AJ$7<>\"\",INDIRECT(\"'\" & Setup!$AJ$7 & \"'!\" & AF188),0) + IF(Setup!$AJ$8<>\"\",INDIRECT(\"'\" & Setup!$AJ$8 & \"'!\" & AF188),0) + IF(Setup!$AJ$9<>\"\",INDIRECT(\"'\" & Setup!$AJ$9 & \"'!\" & AF188),0) + IF(Setup!$AJ$10<>\"\",INDIRECT(\"'\" & Setup!$AJ$10 & \"'!\" & AF188),0) + IF(Setup!$AJ$11<>\"\",INDIRECT(\"'\" & Setup!$AJ$11 & \"'!\" & AF188),0) + IF(Setup!$AJ$12<>\"\",INDIRECT(\"'\" & Setup!$AJ$12 & \"'!\" & AF188),0)","v":0},null,"",{"$nulls":3},{"$f":"IF(C188=0,\"\",LEFT(INDEX(Lists!$H$5:$H$49,MATCH(C188,Lists!$G$5:$G$49,0),1),1))","v":""},null,"","","","","","","","","","",{"$nulls":6},{"$f":"IF(Setup!$AG$7<>\"\",INDIRECT(\"'\" & Setup!$AG$7 & \"'!\" & AD188),0) + IF(Setup!$AG$8<>\"\",INDIRECT(\"'\" & Setup!$AG$8 & \"'!\" & AD188),0) + IF(Setup!$AG$9<>\"\",INDIRECT(\"'\" & Setup!$AG$9 & \"'!\" & AD188),0) + IF(Setup!$AG$10<>\"\",INDIRECT(\"'\" & Setup!$AG$10 & \"'!\" & AD188),0) + IF(Setup!$AG$11<>\"\",INDIRECT(\"'\" & Setup!$AG$11 & \"'!\" & AD188),0) + IF(Setup!$AG$12<>\"\",INDIRECT(\"'\" & Setup!$AG$12 & \"'!\" & AD188),0)","v":0},{"$f":"IF(Setup!$AG$7<>\"\",INDIRECT(\"'\" & Setup!$AG$7 & \"'!\" & AE188),0) + IF(Setup!$AG$8<>\"\",INDIRECT(\"'\" & Setup!$AG$8 & \"'!\" & AE188),0) + IF(Setup!$AG$9<>\"\",INDIRECT(\"'\" & Setup!$AG$9 & \"'!\" & AE188),0) + IF(Setup!$AG$10<>\"\",INDIRECT(\"'\" & Setup!$AG$10 & \"'!\" & AE188),0) + IF(Setup!$AG$11<>\"\",INDIRECT(\"'\" & Setup!$AG$11 & \"'!\" & AE188),0) + IF(Setup!$AG$12<>\"\",INDIRECT(\"'\" & Setup!$AG$12 & \"'!\" & AE188),0)","v":0},{"$f":"IF(Setup!$AH$7<>\"\",INDIRECT(\"'\" & Setup!$AH$7 & \"'!\" & AD188),0) + IF(Setup!$AH$8<>\"\",INDIRECT(\"'\" & Setup!$AH$8 & \"'!\" & AD188),0) + IF(Setup!$AH$9<>\"\",INDIRECT(\"'\" & Setup!$AH$9 & \"'!\" & AD188),0) + IF(Setup!$AH$10<>\"\",INDIRECT(\"'\" & Setup!$AH$10 & \"'!\" & AD188),0) + IF(Setup!$AH$11<>\"\",INDIRECT(\"'\" & Setup!$AH$11 & \"'!\" & AD188),0) + IF(Setup!$AH$12<>\"\",INDIRECT(\"'\" & Setup!$AH$12 & \"'!\" & AD188),0)","v":0},{"$f":"IF(Setup!$AH$7<>\"\",INDIRECT(\"'\" & Setup!$AH$7 & \"'!\" & AE188),0) + IF(Setup!$AH$8<>\"\",INDIRECT(\"'\" & Setup!$AH$8 & \"'!\" & AE188),0) + IF(Setup!$AH$9<>\"\",INDIRECT(\"'\" & Setup!$AH$9 & \"'!\" & AE188),0) + IF(Setup!$AH$10<>\"\",INDIRECT(\"'\" & Setup!$AH$10 & \"'!\" & AE188),0) + IF(Setup!$AH$11<>\"\",INDIRECT(\"'\" & Setup!$AH$11 & \"'!\" & AE188),0) + IF(Setup!$AH$12<>\"\",INDIRECT(\"'\" & Setup!$AH$12 & \"'!\" & AE188),0)","v":0},{"$f":"IF(Setup!$AI$7<>\"\",INDIRECT(\"'\" & Setup!$AI$7 & \"'!\" & AD188),0) + IF(Setup!$AI$8<>\"\",INDIRECT(\"'\" & Setup!$AI$8 & \"'!\" & AD188),0) + IF(Setup!$AI$9<>\"\",INDIRECT(\"'\" & Setup!$AI$9 & \"'!\" & AD188),0) + IF(Setup!$AI$10<>\"\",INDIRECT(\"'\" & Setup!$AI$10 & \"'!\" & AD188),0) + IF(Setup!$AI$11<>\"\",INDIRECT(\"'\" & Setup!$AI$11 & \"'!\" & AD188),0) + IF(Setup!$AI$12<>\"\",INDIRECT(\"'\" & Setup!$AI$12 & \"'!\" & AD188),0)","v":0},{"$f":"IF(Setup!$AI$7<>\"\",INDIRECT(\"'\" & Setup!$AI$7 & \"'!\" & AE188),0) + IF(Setup!$AI$8<>\"\",INDIRECT(\"'\" & Setup!$AI$8 & \"'!\" & AE188),0) + IF(Setup!$AI$9<>\"\",INDIRECT(\"'\" & Setup!$AI$9 & \"'!\" & AE188),0) + IF(Setup!$AI$10<>\"\",INDIRECT(\"'\" & Setup!$AI$10 & \"'!\" & AE188),0) + IF(Setup!$AI$11<>\"\",INDIRECT(\"'\" & Setup!$AI$11 & \"'!\" & AE188),0) + IF(Setup!$AI$12<>\"\",INDIRECT(\"'\" & Setup!$AI$12 & \"'!\" & AE188),0)","v":0},{"$f":"IF(Setup!$AJ$7<>\"\",INDIRECT(\"'\" & Setup!$AJ$7 & \"'!\" & AD188),0) + IF(Setup!$AJ$8<>\"\",INDIRECT(\"'\" & Setup!$AJ$8 & \"'!\" & AD188),0) + IF(Setup!$AJ$9<>\"\",INDIRECT(\"'\" & Setup!$AJ$9 & \"'!\" & AD188),0) + IF(Setup!$AJ$10<>\"\",INDIRECT(\"'\" & Setup!$AJ$10 & \"'!\" & AD188),0) + IF(Setup!$AJ$11<>\"\",INDIRECT(\"'\" & Setup!$AJ$11 & \"'!\" & AD188),0) + IF(Setup!$AJ$12<>\"\",INDIRECT(\"'\" & Setup!$AJ$12 & \"'!\" & AD188),0)","v":0},{"$f":"IF(Setup!$AJ$7<>\"\",INDIRECT(\"'\" & Setup!$AJ$7 & \"'!\" & AE188),0) + IF(Setup!$AJ$8<>\"\",INDIRECT(\"'\" & Setup!$AJ$8 & \"'!\" & AE188),0) + IF(Setup!$AJ$9<>\"\",INDIRECT(\"'\" & Setup!$AJ$9 & \"'!\" & AE188),0) + IF(Setup!$AJ$10<>\"\",INDIRECT(\"'\" & Setup!$AJ$10 & \"'!\" & AE188),0) + IF(Setup!$AJ$11<>\"\",INDIRECT(\"'\" & Setup!$AJ$11 & \"'!\" & AE188),0) + IF(Setup!$AJ$12<>\"\",INDIRECT(\"'\" & Setup!$AJ$12 & \"'!\" & AE188),0)","v":0}]
[{"$f":"Planning!A172","v":"I164"},{"$f":"Planning!B172","v":0},{"$f":"Planning!C172","v":0},{"$f":"Planning!D172","v":0},{"$f":"Planning!E172","v":0},{"$f":"Planning!G172","v":0},null,0,0,{"$f":"IF(AND($AR189=\"2\",$AB188<>Lists!$A$17),AU189,AT189)","v":""},"",0,0,{"$f":"IF(AND($AR189=\"2\",$AB189<>Lists!$A$17),AW189,AV189)","v":""},"",0,0,{"$f":"IF(AND($AR189=\"2\",$AB189<>Lists!$A$17),AY189,AX189)","v":""},"",0,0,{"$f":"IF(AND($AR189=\"2\",$AB189<>Lists!$A$17),BA189,AZ189)","v":""},"",0,0,{"$f":"IF(AND($AR189=\"2\",$AB189<>Lists!$A$17),BC189,BB189)","v":""},"",{"$f":"Planning!H172","v":0},"00","H188","J188","I188","",null,{"$f":"IF(Setup!$AG$7<>\"\",INDIRECT(\"'\" & Setup!$AG$7 & \"'!\" & AF189),0) + IF(Setup!$AG$8<>\"\",INDIRECT(\"'\" & Setup!$AG$8 & \"'!\" & AF189),0) + IF(Setup!$AG$9<>\"\",INDIRECT(\"'\" & Setup!$AG$9 & \"'!\" & AF189),0) + IF(Setup!$AG$10<>\"\",INDIRECT(\"'\" & Setup!$AG$10 & \"'!\" & AF189),0) + IF(Setup!$AG$11<>\"\",INDIRECT(\"'\" & Setup!$AG$11 & \"'!\" & AF189),0) + IF(Setup!$AG$12<>\"\",INDIRECT(\"'\" & Setup!$AG$12 & \"'!\" & AF189),0)","v":0},{"$f":"IF(Setup!$AH$7<>\"\",INDIRECT(\"'\" & Setup!$AH$7 & \"'!\" & AF189),0) + IF(Setup!$AH$8<>\"\",INDIRECT(\"'\" & Setup!$AH$8 & \"'!\" & AF189),0) + IF(Setup!$AH$9<>\"\",INDIRECT(\"'\" & Setup!$AH$9 & \"'!\" & AF189),0) + IF(Setup!$AH$10<>\"\",INDIRECT(\"'\" & Setup!$AH$10 & \"'!\" & AF189),0) + IF(Setup!$AH$11<>\"\",INDIRECT(\"'\" & Setup!$AH$11 & \"'!\" & AF189),0) + IF(Setup!$AH$12<>\"\",INDIRECT(\"'\" & Setup!$AH$12 & \"'!\" & AF189),0)","v":0},{"$f":"IF(Setup!$AI$7<>\"\",INDIRECT(\"'\" & Setup!$AI$7 & \"'!\" & AF189),0) + IF(Setup!$AI$8<>\"\",INDIRECT(\"'\" & Setup!$AI$8 & \"'!\" & AF189),0) + IF(Setup!$AI$9<>\"\",INDIRECT(\"'\" & Setup!$AI$9 & \"'!\" & AF189),0) + IF(Setup!$AI$10<>\"\",INDIRECT(\"'\" & Setup!$AI$10 & \"'!\" & AF189),0) + IF(Setup!$AI$11<>\"\",INDIRECT(\"'\" & Setup!$AI$11 & \"'!\" & AF189),0) + IF(Setup!$AI$12<>\"\",INDIRECT(\"'\" & Setup!$AI$12 & \"'!\" & AF189),0)","v":0},{"$f":"IF(Setup!$AJ$7<>\"\",INDIRECT(\"'\" & Setup!$AJ$7 & \"'!\" & AF189),0) + IF(Setup!$AJ$8<>\"\",INDIRECT(\"'\" & Setup!$AJ$8 & \"'!\" & AF189),0) + IF(Setup!$AJ$9<>\"\",INDIRECT(\"'\" & Setup!$AJ$9 & \"'!\" & AF189),0) + IF(Setup!$AJ$10<>\"\",INDIRECT(\"'\" & Setup!$AJ$10 & \"'!\" & AF189),0) + IF(Setup!$AJ$11<>\"\",INDIRECT(\"'\" & Setup!$AJ$11 & \"'!\" & AF189),0) + IF(Setup!$AJ$12<>\"\",INDIRECT(\"'\" & Setup!$AJ$12 & \"'!\" & AF189),0)","v":0},null,"",{"$nulls":3},{"$f":"IF(C189=0,\"\",LEFT(INDEX(Lists!$H$5:$H$49,MATCH(C189,Lists!$G$5:$G$49,0),1),1))","v":""},null,"","","","","","","","","","",{"$nulls":6},{"$f":"IF(Setup!$AG$7<>\"\",INDIRECT(\"'\" & Setup!$AG$7 & \"'!\" & AD189),0) + IF(Setup!$AG$8<>\"\",INDIRECT(\"'\" & Setup!$AG$8 & \"'!\" & AD189),0) + IF(Setup!$AG$9<>\"\",INDIRECT(\"'\" & Setup!$AG$9 & \"'!\" & AD189),0) + IF(Setup!$AG$10<>\"\",INDIRECT(\"'\" & Setup!$AG$10 & \"'!\" & AD189),0) + IF(Setup!$AG$11<>\"\",INDIRECT(\"'\" & Setup!$AG$11 & \"'!\" & AD189),0) + IF(Setup!$AG$12<>\"\",INDIRECT(\"'\" & Setup!$AG$12 & \"'!\" & AD189),0)","v":0},{"$f":"IF(Setup!$AG$7<>\"\",INDIRECT(\"'\" & Setup!$AG$7 & \"'!\" & AE189),0) + IF(Setup!$AG$8<>\"\",INDIRECT(\"'\" & Setup!$AG$8 & \"'!\" & AE189),0) + IF(Setup!$AG$9<>\"\",INDIRECT(\"'\" & Setup!$AG$9 & \"'!\" & AE189),0) + IF(Setup!$AG$10<>\"\",INDIRECT(\"'\" & Setup!$AG$10 & \"'!\" & AE189),0) + IF(Setup!$AG$11<>\"\",INDIRECT(\"'\" & Setup!$AG$11 & \"'!\" & AE189),0) + IF(Setup!$AG$12<>\"\",INDIRECT(\"'\" & Setup!$AG$12 & \"'!\" & AE189),0)","v":0},{"$f":"IF(Setup!$AH$7<>\"\",INDIRECT(\"'\" & Setup!$AH$7 & \"'!\" & AD189),0) + IF(Setup!$AH$8<>\"\",INDIRECT(\"'\" & Setup!$AH$8 & \"'!\" & AD189),0) + IF(Setup!$AH$9<>\"\",INDIRECT(\"'\" & Setup!$AH$9 & \"'!\" & AD189),0) + IF(Setup!$AH$10<>\"\",INDIRECT(\"'\" & Setup!$AH$10 & \"'!\" & AD189),0) + IF(Setup!$AH$11<>\"\",INDIRECT(\"'\" & Setup!$AH$11 & \"'!\" & AD189),0) + IF(Setup!$AH$12<>\"\",INDIRECT(\"'\" & Setup!$AH$12 & \"'!\" & AD189),0)","v":0},{"$f":"IF(Setup!$AH$7<>\"\",INDIRECT(\"'\" & Setup!$AH$7 & \"'!\" & AE189),0) + IF(Setup!$AH$8<>\"\",INDIRECT(\"'\" & Setup!$AH$8 & \"'!\" & AE189),0) + IF(Setup!$AH$9<>\"\",INDIRECT(\"'\" & Setup!$AH$9 & \"'!\" & AE189),0) + IF(Setup!$AH$10<>\"\",INDIRECT(\"'\" & Setup!$AH$10 & \"'!\" & AE189),0) + IF(Setup!$AH$11<>\"\",INDIRECT(\"'\" & Setup!$AH$11 & \"'!\" & AE189),0) + IF(Setup!$AH$12<>\"\",INDIRECT(\"'\" & Setup!$AH$12 & \"'!\" & AE189),0)","v":0},{"$f":"IF(Setup!$AI$7<>\"\",INDIRECT(\"'\" & Setup!$AI$7 & \"'!\" & AD189),0) + IF(Setup!$AI$8<>\"\",INDIRECT(\"'\" & Setup!$AI$8 & \"'!\" & AD189),0) + IF(Setup!$AI$9<>\"\",INDIRECT(\"'\" & Setup!$AI$9 & \"'!\" & AD189),0) + IF(Setup!$AI$10<>\"\",INDIRECT(\"'\" & Setup!$AI$10 & \"'!\" & AD189),0) + IF(Setup!$AI$11<>\"\",INDIRECT(\"'\" & Setup!$AI$11 & \"'!\" & AD189),0) + IF(Setup!$AI$12<>\"\",INDIRECT(\"'\" & Setup!$AI$12 & \"'!\" & AD189),0)","v":0},{"$f":"IF(Setup!$AI$7<>\"\",INDIRECT(\"'\" & Setup!$AI$7 & \"'!\" & AE189),0) + IF(Setup!$AI$8<>\"\",INDIRECT(\"'\" & Setup!$AI$8 & \"'!\" & AE189),0) + IF(Setup!$AI$9<>\"\",INDIRECT(\"'\" & Setup!$AI$9 & \"'!\" & AE189),0) + IF(Setup!$AI$10<>\"\",INDIRECT(\"'\" & Setup!$AI$10 & \"'!\" & AE189),0) + IF(Setup!$AI$11<>\"\",INDIRECT(\"'\" & Setup!$AI$11 & \"'!\" & AE189),0) + IF(Setup!$AI$12<>\"\",INDIRECT(\"'\" & Setup!$AI$12 & \"'!\" & AE189),0)","v":0},{"$f":"IF(Setup!$AJ$7<>\"\",INDIRECT(\"'\" & Setup!$AJ$7 & \"'!\" & AD189),0) + IF(Setup!$AJ$8<>\"\",INDIRECT(\"'\" & Setup!$AJ$8 & \"'!\" & AD189),0) + IF(Setup!$AJ$9<>\"\",INDIRECT(\"'\" & Setup!$AJ$9 & \"'!\" & AD189),0) + IF(Setup!$AJ$10<>\"\",INDIRECT(\"'\" & Setup!$AJ$10 & \"'!\" & AD189),0) + IF(Setup!$AJ$11<>\"\",INDIRECT(\"'\" & Setup!$AJ$11 & \"'!\" & AD189),0) + IF(Setup!$AJ$12<>\"\",INDIRECT(\"'\" & Setup!$AJ$12 & \"'!\" & AD189),0)","v":0},{"$f":"IF(Setup!$AJ$7<>\"\",INDIRECT(\"'\" & Setup!$AJ$7 & \"'!\" & AE189),0) + IF(Setup!$AJ$8<>\"\",INDIRECT(\"'\" & Setup!$AJ$8 & \"'!\" & AE189),0) + IF(Setup!$AJ$9<>\"\",INDIRECT(\"'\" & Setup!$AJ$9 & \"'!\" & AE189),0) + IF(Setup!$AJ$10<>\"\",INDIRECT(\"'\" & Setup!$AJ$10 & \"'!\" & AE189),0) + IF(Setup!$AJ$11<>\"\",INDIRECT(\"'\" & Setup!$AJ$11 & \"'!\" & AE189),0) + IF(Setup!$AJ$12<>\"\",INDIRECT(\"'\" & Setup!$AJ$12 & \"'!\" & AE189),0)","v":0}]
[{"$f":"Planning!A173","v":"I165"},{"$f":"Planning!B173","v":0},{"$f":"Planning!C173","v":0},{"$f":"Planning!D173","v":0},{"$f":"Planning!E173","v":0},{"$f":"Planning!G173","v":0},null,0,0,{"$f":"IF(AND($AR190=\"2\",$AB189<>Lists!$A$17),AU190,AT190)","v":""},"",0,0,{"$f":"IF(AND($AR190=\"2\",$AB190<>Lists!$A$17),AW190,AV190)","v":""},"",0,0,{"$f":"IF(AND($AR190=\"2\",$AB190<>Lists!$A$17),AY190,AX190)","v":""},"",0,0,{"$f":"IF(AND($AR190=\"2\",$AB190<>Lists!$A$17),BA190,AZ190)","v":""},"",0,0,{"$f":"IF(AND($AR190=\"2\",$AB190<>Lists!$A$17),BC190,BB190)","v":""},"",{"$f":"Planning!H173","v":0},"00","H189","J189","I189","",null,{"$f":"IF(Setup!$AG$7<>\"\",INDIRECT(\"'\" & Setup!$AG$7 & \"'!\" & AF190),0) + IF(Setup!$AG$8<>\"\",INDIRECT(\"'\" & Setup!$AG$8 & \"'!\" & AF190),0) + IF(Setup!$AG$9<>\"\",INDIRECT(\"'\" & Setup!$AG$9 & \"'!\" & AF190),0) + IF(Setup!$AG$10<>\"\",INDIRECT(\"'\" & Setup!$AG$10 & \"'!\" & AF190),0) + IF(Setup!$AG$11<>\"\",INDIRECT(\"'\" & Setup!$AG$11 & \"'!\" & AF190),0) + IF(Setup!$AG$12<>\"\",INDIRECT(\"'\" & Setup!$AG$12 & \"'!\" & AF190),0)","v":0},{"$f":"IF(Setup!$AH$7<>\"\",INDIRECT(\"'\" & Setup!$AH$7 & \"'!\" & AF190),0) + IF(Setup!$AH$8<>\"\",INDIRECT(\"'\" & Setup!$AH$8 & \"'!\" & AF190),0) + IF(Setup!$AH$9<>\"\",INDIRECT(\"'\" & Setup!$AH$9 & \"'!\" & AF190),0) + IF(Setup!$AH$10<>\"\",INDIRECT(\"'\" & Setup!$AH$10 & \"'!\" & AF190),0) + IF(Setup!$AH$11<>\"\",INDIRECT(\"'\" & Setup!$AH$11 & \"'!\" & AF190),0) + IF(Setup!$AH$12<>\"\",INDIRECT(\"'\" & Setup!$AH$12 & \"'!\" & AF190),0)","v":0},{"$f":"IF(Setup!$AI$7<>\"\",INDIRECT(\"'\" & Setup!$AI$7 & \"'!\" & AF190),0) + IF(Setup!$AI$8<>\"\",INDIRECT(\"'\" & Setup!$AI$8 & \"'!\" & AF190),0) + IF(Setup!$AI$9<>\"\",INDIRECT(\"'\" & Setup!$AI$9 & \"'!\" & AF190),0) + IF(Setup!$AI$10<>\"\",INDIRECT(\"'\" & Setup!$AI$10 & \"'!\" & AF190),0) + IF(Setup!$AI$11<>\"\",INDIRECT(\"'\" & Setup!$AI$11 & \"'!\" & AF190),0) + IF(Setup!$AI$12<>\"\",INDIRECT(\"'\" & Setup!$AI$12 & \"'!\" & AF190),0)","v":0},{"$f":"IF(Setup!$AJ$7<>\"\",INDIRECT(\"'\" & Setup!$AJ$7 & \"'!\" & AF190),0) + IF(Setup!$AJ$8<>\"\",INDIRECT(\"'\" & Setup!$AJ$8 & \"'!\" & AF190),0) + IF(Setup!$AJ$9<>\"\",INDIRECT(\"'\" & Setup!$AJ$9 & \"'!\" & AF190),0) + IF(Setup!$AJ$10<>\"\",INDIRECT(\"'\" & Setup!$AJ$10 & \"'!\" & AF190),0) + IF(Setup!$AJ$11<>\"\",INDIRECT(\"'\" & Setup!$AJ$11 & \"'!\" & AF190),0) + IF(Setup!$AJ$12<>\"\",INDIRECT(\"'\" & Setup!$AJ$12 & \"'!\" & AF190),0)","v":0},null,"",{"$nulls":3},{"$f":"IF(C190=0,\"\",LEFT(INDEX(Lists!$H$5:$H$49,MATCH(C190,Lists!$G$5:$G$49,0),1),1))","v":""},null,"","","","","","","","","","",{"$nulls":6},{"$f":"IF(Setup!$AG$7<>\"\",INDIRECT(\"'\" & Setup!$AG$7 & \"'!\" & AD190),0) + IF(Setup!$AG$8<>\"\",INDIRECT(\"'\" & Setup!$AG$8 & \"'!\" & AD190),0) + IF(Setup!$AG$9<>\"\",INDIRECT(\"'\" & Setup!$AG$9 & \"'!\" & AD190),0) + IF(Setup!$AG$10<>\"\",INDIRECT(\"'\" & Setup!$AG$10 & \"'!\" & AD190),0) + IF(Setup!$AG$11<>\"\",INDIRECT(\"'\" & Setup!$AG$11 & \"'!\" & AD190),0) + IF(Setup!$AG$12<>\"\",INDIRECT(\"'\" & Setup!$AG$12 & \"'!\" & AD190),0)","v":0},{"$f":"IF(Setup!$AG$7<>\"\",INDIRECT(\"'\" & Setup!$AG$7 & \"'!\" & AE190),0) + IF(Setup!$AG$8<>\"\",INDIRECT(\"'\" & Setup!$AG$8 & \"'!\" & AE190),0) + IF(Setup!$AG$9<>\"\",INDIRECT(\"'\" & Setup!$AG$9 & \"'!\" & AE190),0) + IF(Setup!$AG$10<>\"\",INDIRECT(\"'\" & Setup!$AG$10 & \"'!\" & AE190),0) + IF(Setup!$AG$11<>\"\",INDIRECT(\"'\" & Setup!$AG$11 & \"'!\" & AE190),0) + IF(Setup!$AG$12<>\"\",INDIRECT(\"'\" & Setup!$AG$12 & \"'!\" & AE190),0)","v":0},{"$f":"IF(Setup!$AH$7<>\"\",INDIRECT(\"'\" & Setup!$AH$7 & \"'!\" & AD190),0) + IF(Setup!$AH$8<>\"\",INDIRECT(\"'\" & Setup!$AH$8 & \"'!\" & AD190),0) + IF(Setup!$AH$9<>\"\",INDIRECT(\"'\" & Setup!$AH$9 & \"'!\" & AD190),0) + IF(Setup!$AH$10<>\"\",INDIRECT(\"'\" & Setup!$AH$10 & \"'!\" & AD190),0) + IF(Setup!$AH$11<>\"\",INDIRECT(\"'\" & Setup!$AH$11 & \"'!\" & AD190),0) + IF(Setup!$AH$12<>\"\",INDIRECT(\"'\" & Setup!$AH$12 & \"'!\" & AD190),0)","v":0},{"$f":"IF(Setup!$AH$7<>\"\",INDIRECT(\"'\" & Setup!$AH$7 & \"'!\" & AE190),0) + IF(Setup!$AH$8<>\"\",INDIRECT(\"'\" & Setup!$AH$8 & \"'!\" & AE190),0) + IF(Setup!$AH$9<>\"\",INDIRECT(\"'\" & Setup!$AH$9 & \"'!\" & AE190),0) + IF(Setup!$AH$10<>\"\",INDIRECT(\"'\" & Setup!$AH$10 & \"'!\" & AE190),0) + IF(Setup!$AH$11<>\"\",INDIRECT(\"'\" & Setup!$AH$11 & \"'!\" & AE190),0) + IF(Setup!$AH$12<>\"\",INDIRECT(\"'\" & Setup!$AH$12 & \"'!\" & AE190),0)","v":0},{"$f":"IF(Setup!$AI$7<>\"\",INDIRECT(\"'\" & Setup!$AI$7 & \"'!\" & AD190),0) + IF(Setup!$AI$8<>\"\",INDIRECT(\"'\" & Setup!$AI$8 & \"'!\" & AD190),0) + IF(Setup!$AI$9<>\"\",INDIRECT(\"'\" & Setup!$AI$9 & \"'!\" & AD190),0) + IF(Setup!$AI$10<>\"\",INDIRECT(\"'\" & Setup!$AI$10 & \"'!\" & AD190),0) + IF(Setup!$AI$11<>\"\",INDIRECT(\"'\" & Setup!$AI$11 & \"'!\" & AD190),0) + IF(Setup!$AI$12<>\"\",INDIRECT(\"'\" & Setup!$AI$12 & \"'!\" & AD190),0)","v":0},{"$f":"IF(Setup!$AI$7<>\"\",INDIRECT(\"'\" & Setup!$AI$7 & \"'!\" & AE190),0) + IF(Setup!$AI$8<>\"\",INDIRECT(\"'\" & Setup!$AI$8 & \"'!\" & AE190),0) + IF(Setup!$AI$9<>\"\",INDIRECT(\"'\" & Setup!$AI$9 & \"'!\" & AE190),0) + IF(Setup!$AI$10<>\"\",INDIRECT(\"'\" & Setup!$AI$10 & \"'!\" & AE190),0) + IF(Setup!$AI$11<>\"\",INDIRECT(\"'\" & Setup!$AI$11 & \"'!\" & AE190),0) + IF(Setup!$AI$12<>\"\",INDIRECT(\"'\" & Setup!$AI$12 & \"'!\" & AE190),0)","v":0},{"$f":"IF(Setup!$AJ$7<>\"\",INDIRECT(\"'\" & Setup!$AJ$7 & \"'!\" & AD190),0) + IF(Setup!$AJ$8<>\"\",INDIRECT(\"'\" & Setup!$AJ$8 & \"'!\" & AD190),0) + IF(Setup!$AJ$9<>\"\",INDIRECT(\"'\" & Setup!$AJ$9 & \"'!\" & AD190),0) + IF(Setup!$AJ$10<>\"\",INDIRECT(\"'\" & Setup!$AJ$10 & \"'!\" & AD190),0) + IF(Setup!$AJ$11<>\"\",INDIRECT(\"'\" & Setup!$AJ$11 & \"'!\" & AD190),0) + IF(Setup!$AJ$12<>\"\",INDIRECT(\"'\" & Setup!$AJ$12 & \"'!\" & AD190),0)","v":0},{"$f":"IF(Setup!$AJ$7<>\"\",INDIRECT(\"'\" & Setup!$AJ$7 & \"'!\" & AE190),0) + IF(Setup!$AJ$8<>\"\",INDIRECT(\"'\" & Setup!$AJ$8 & \"'!\" & AE190),0) + IF(Setup!$AJ$9<>\"\",INDIRECT(\"'\" & Setup!$AJ$9 & \"'!\" & AE190),0) + IF(Setup!$AJ$10<>\"\",INDIRECT(\"'\" & Setup!$AJ$10 & \"'!\" & AE190),0) + IF(Setup!$AJ$11<>\"\",INDIRECT(\"'\" & Setup!$AJ$11 & \"'!\" & AE190),0) + IF(Setup!$AJ$12<>\"\",INDIRECT(\"'\" & Setup!$AJ$12 & \"'!\" & AE190),0)","v":0}]
[{"$f":"Planning!A174","v":"I166"},{"$f":"Planning!B174","v":0},{"$f":"Planning!C174","v":0},{"$f":"Planning!D174","v":0},{"$f":"Planning!E174","v":0},{"$f":"Planning!G174","v":0},null,0,0,{"$f":"IF(AND($AR191=\"2\",$AB190<>Lists!$A$17),AU191,AT191)","v":""},"",0,0,{"$f":"IF(AND($AR191=\"2\",$AB191<>Lists!$A$17),AW191,AV191)","v":""},"",0,0,{"$f":"IF(AND($AR191=\"2\",$AB191<>Lists!$A$17),AY191,AX191)","v":""},"",0,0,{"$f":"IF(AND($AR191=\"2\",$AB191<>Lists!$A$17),BA191,AZ191)","v":""},"",0,0,{"$f":"IF(AND($AR191=\"2\",$AB191<>Lists!$A$17),BC191,BB191)","v":""},"",{"$f":"Planning!H174","v":0},"00","H190","J190","I190","",null,{"$f":"IF(Setup!$AG$7<>\"\",INDIRECT(\"'\" & Setup!$AG$7 & \"'!\" & AF191),0) + IF(Setup!$AG$8<>\"\",INDIRECT(\"'\" & Setup!$AG$8 & \"'!\" & AF191),0) + IF(Setup!$AG$9<>\"\",INDIRECT(\"'\" & Setup!$AG$9 & \"'!\" & AF191),0) + IF(Setup!$AG$10<>\"\",INDIRECT(\"'\" & Setup!$AG$10 & \"'!\" & AF191),0) + IF(Setup!$AG$11<>\"\",INDIRECT(\"'\" & Setup!$AG$11 & \"'!\" & AF191),0) + IF(Setup!$AG$12<>\"\",INDIRECT(\"'\" & Setup!$AG$12 & \"'!\" & AF191),0)","v":0},{"$f":"IF(Setup!$AH$7<>\"\",INDIRECT(\"'\" & Setup!$AH$7 & \"'!\" & AF191),0) + IF(Setup!$AH$8<>\"\",INDIRECT(\"'\" & Setup!$AH$8 & \"'!\" & AF191),0) + IF(Setup!$AH$9<>\"\",INDIRECT(\"'\" & Setup!$AH$9 & \"'!\" & AF191),0) + IF(Setup!$AH$10<>\"\",INDIRECT(\"'\" & Setup!$AH$10 & \"'!\" & AF191),0) + IF(Setup!$AH$11<>\"\",INDIRECT(\"'\" & Setup!$AH$11 & \"'!\" & AF191),0) + IF(Setup!$AH$12<>\"\",INDIRECT(\"'\" & Setup!$AH$12 & \"'!\" & AF191),0)","v":0},{"$f":"IF(Setup!$AI$7<>\"\",INDIRECT(\"'\" & Setup!$AI$7 & \"'!\" & AF191),0) + IF(Setup!$AI$8<>\"\",INDIRECT(\"'\" & Setup!$AI$8 & \"'!\" & AF191),0) + IF(Setup!$AI$9<>\"\",INDIRECT(\"'\" & Setup!$AI$9 & \"'!\" & AF191),0) + IF(Setup!$AI$10<>\"\",INDIRECT(\"'\" & Setup!$AI$10 & \"'!\" & AF191),0) + IF(Setup!$AI$11<>\"\",INDIRECT(\"'\" & Setup!$AI$11 & \"'!\" & AF191),0) + IF(Setup!$AI$12<>\"\",INDIRECT(\"'\" & Setup!$AI$12 & \"'!\" & AF191),0)","v":0},{"$f":"IF(Setup!$AJ$7<>\"\",INDIRECT(\"'\" & Setup!$AJ$7 & \"'!\" & AF191),0) + IF(Setup!$AJ$8<>\"\",INDIRECT(\"'\" & Setup!$AJ$8 & \"'!\" & AF191),0) + IF(Setup!$AJ$9<>\"\",INDIRECT(\"'\" & Setup!$AJ$9 & \"'!\" & AF191),0) + IF(Setup!$AJ$10<>\"\",INDIRECT(\"'\" & Setup!$AJ$10 & \"'!\" & AF191),0) + IF(Setup!$AJ$11<>\"\",INDIRECT(\"'\" & Setup!$AJ$11 & \"'!\" & AF191),0) + IF(Setup!$AJ$12<>\"\",INDIRECT(\"'\" & Setup!$AJ$12 & \"'!\" & AF191),0)","v":0},null,"",{"$nulls":3},{"$f":"IF(C191=0,\"\",LEFT(INDEX(Lists!$H$5:$H$49,MATCH(C191,Lists!$G$5:$G$49,0),1),1))","v":""},null,"","","","","","","","","","",{"$nulls":6},{"$f":"IF(Setup!$AG$7<>\"\",INDIRECT(\"'\" & Setup!$AG$7 & \"'!\" & AD191),0) + IF(Setup!$AG$8<>\"\",INDIRECT(\"'\" & Setup!$AG$8 & \"'!\" & AD191),0) + IF(Setup!$AG$9<>\"\",INDIRECT(\"'\" & Setup!$AG$9 & \"'!\" & AD191),0) + IF(Setup!$AG$10<>\"\",INDIRECT(\"'\" & Setup!$AG$10 & \"'!\" & AD191),0) + IF(Setup!$AG$11<>\"\",INDIRECT(\"'\" & Setup!$AG$11 & \"'!\" & AD191),0) + IF(Setup!$AG$12<>\"\",INDIRECT(\"'\" & Setup!$AG$12 & \"'!\" & AD191),0)","v":0},{"$f":"IF(Setup!$AG$7<>\"\",INDIRECT(\"'\" & Setup!$AG$7 & \"'!\" & AE191),0) + IF(Setup!$AG$8<>\"\",INDIRECT(\"'\" & Setup!$AG$8 & \"'!\" & AE191),0) + IF(Setup!$AG$9<>\"\",INDIRECT(\"'\" & Setup!$AG$9 & \"'!\" & AE191),0) + IF(Setup!$AG$10<>\"\",INDIRECT(\"'\" & Setup!$AG$10 & \"'!\" & AE191),0) + IF(Setup!$AG$11<>\"\",INDIRECT(\"'\" & Setup!$AG$11 & \"'!\" & AE191),0) + IF(Setup!$AG$12<>\"\",INDIRECT(\"'\" & Setup!$AG$12 & \"'!\" & AE191),0)","v":0},{"$f":"IF(Setup!$AH$7<>\"\",INDIRECT(\"'\" & Setup!$AH$7 & \"'!\" & AD191),0) + IF(Setup!$AH$8<>\"\",INDIRECT(\"'\" & Setup!$AH$8 & \"'!\" & AD191),0) + IF(Setup!$AH$9<>\"\",INDIRECT(\"'\" & Setup!$AH$9 & \"'!\" & AD191),0) + IF(Setup!$AH$10<>\"\",INDIRECT(\"'\" & Setup!$AH$10 & \"'!\" & AD191),0) + IF(Setup!$AH$11<>\"\",INDIRECT(\"'\" & Setup!$AH$11 & \"'!\" & AD191),0) + IF(Setup!$AH$12<>\"\",INDIRECT(\"'\" & Setup!$AH$12 & \"'!\" & AD191),0)","v":0},{"$f":"IF(Setup!$AH$7<>\"\",INDIRECT(\"'\" & Setup!$AH$7 & \"'!\" & AE191),0) + IF(Setup!$AH$8<>\"\",INDIRECT(\"'\" & Setup!$AH$8 & \"'!\" & AE191),0) + IF(Setup!$AH$9<>\"\",INDIRECT(\"'\" & Setup!$AH$9 & \"'!\" & AE191),0) + IF(Setup!$AH$10<>\"\",INDIRECT(\"'\" & Setup!$AH$10 & \"'!\" & AE191),0) + IF(Setup!$AH$11<>\"\",INDIRECT(\"'\" & Setup!$AH$11 & \"'!\" & AE191),0) + IF(Setup!$AH$12<>\"\",INDIRECT(\"'\" & Setup!$AH$12 & \"'!\" & AE191),0)","v":0},{"$f":"IF(Setup!$AI$7<>\"\",INDIRECT(\"'\" & Setup!$AI$7 & \"'!\" & AD191),0) + IF(Setup!$AI$8<>\"\",INDIRECT(\"'\" & Setup!$AI$8 & \"'!\" & AD191),0) + IF(Setup!$AI$9<>\"\",INDIRECT(\"'\" & Setup!$AI$9 & \"'!\" & AD191),0) + IF(Setup!$AI$10<>\"\",INDIRECT(\"'\" & Setup!$AI$10 & \"'!\" & AD191),0) + IF(Setup!$AI$11<>\"\",INDIRECT(\"'\" & Setup!$AI$11 & \"'!\" & AD191),0) + IF(Setup!$AI$12<>\"\",INDIRECT(\"'\" & Setup!$AI$12 & \"'!\" & AD191),0)","v":0},{"$f":"IF(Setup!$AI$7<>\"\",INDIRECT(\"'\" & Setup!$AI$7 & \"'!\" & AE191),0) + IF(Setup!$AI$8<>\"\",INDIRECT(\"'\" & Setup!$AI$8 & \"'!\" & AE191),0) + IF(Setup!$AI$9<>\"\",INDIRECT(\"'\" & Setup!$AI$9 & \"'!\" & AE191),0) + IF(Setup!$AI$10<>\"\",INDIRECT(\"'\" & Setup!$AI$10 & \"'!\" & AE191),0) + IF(Setup!$AI$11<>\"\",INDIRECT(\"'\" & Setup!$AI$11 & \"'!\" & AE191),0) + IF(Setup!$AI$12<>\"\",INDIRECT(\"'\" & Setup!$AI$12 & \"'!\" & AE191),0)","v":0},{"$f":"IF(Setup!$AJ$7<>\"\",INDIRECT(\"'\" & Setup!$AJ$7 & \"'!\" & AD191),0) + IF(Setup!$AJ$8<>\"\",INDIRECT(\"'\" & Setup!$AJ$8 & \"'!\" & AD191),0) + IF(Setup!$AJ$9<>\"\",INDIRECT(\"'\" & Setup!$AJ$9 & \"'!\" & AD191),0) + IF(Setup!$AJ$10<>\"\",INDIRECT(\"'\" & Setup!$AJ$10 & \"'!\" & AD191),0) + IF(Setup!$AJ$11<>\"\",INDIRECT(\"'\" & Setup!$AJ$11 & \"'!\" & AD191),0) + IF(Setup!$AJ$12<>\"\",INDIRECT(\"'\" & Setup!$AJ$12 & \"'!\" & AD191),0)","v":0},{"$f":"IF(Setup!$AJ$7<>\"\",INDIRECT(\"'\" & Setup!$AJ$7 & \"'!\" & AE191),0) + IF(Setup!$AJ$8<>\"\",INDIRECT(\"'\" & Setup!$AJ$8 & \"'!\" & AE191),0) + IF(Setup!$AJ$9<>\"\",INDIRECT(\"'\" & Setup!$AJ$9 & \"'!\" & AE191),0) + IF(Setup!$AJ$10<>\"\",INDIRECT(\"'\" & Setup!$AJ$10 & \"'!\" & AE191),0) + IF(Setup!$AJ$11<>\"\",INDIRECT(\"'\" & Setup!$AJ$11 & \"'!\" & AE191),0) + IF(Setup!$AJ$12<>\"\",INDIRECT(\"'\" & Setup!$AJ$12 & \"'!\" & AE191),0)","v":0}]
[{"$f":"Planning!A175","v":"I167"},{"$f":"Planning!B175","v":0},{"$f":"Planning!C175","v":0},{"$f":"Planning!D175","v":0},{"$f":"Planning!E175","v":0},{"$f":"Planning!G175","v":0},null,0,0,{"$f":"IF(AND($AR192=\"2\",$AB191<>Lists!$A$17),AU192,AT192)","v":""},"",0,0,{"$f":"IF(AND($AR192=\"2\",$AB192<>Lists!$A$17),AW192,AV192)","v":""},"",0,0,{"$f":"IF(AND($AR192=\"2\",$AB192<>Lists!$A$17),AY192,AX192)","v":""},"",0,0,{"$f":"IF(AND($AR192=\"2\",$AB192<>Lists!$A$17),BA192,AZ192)","v":""},"",0,0,{"$f":"IF(AND($AR192=\"2\",$AB192<>Lists!$A$17),BC192,BB192)","v":""},"",{"$f":"Planning!H175","v":0},"00","H191","J191","I191","",null,{"$f":"IF(Setup!$AG$7<>\"\",INDIRECT(\"'\" & Setup!$AG$7 & \"'!\" & AF192),0) + IF(Setup!$AG$8<>\"\",INDIRECT(\"'\" & Setup!$AG$8 & \"'!\" & AF192),0) + IF(Setup!$AG$9<>\"\",INDIRECT(\"'\" & Setup!$AG$9 & \"'!\" & AF192),0) + IF(Setup!$AG$10<>\"\",INDIRECT(\"'\" & Setup!$AG$10 & \"'!\" & AF192),0) + IF(Setup!$AG$11<>\"\",INDIRECT(\"'\" & Setup!$AG$11 & \"'!\" & AF192),0) + IF(Setup!$AG$12<>\"\",INDIRECT(\"'\" & Setup!$AG$12 & \"'!\" & AF192),0)","v":0},{"$f":"IF(Setup!$AH$7<>\"\",INDIRECT(\"'\" & Setup!$AH$7 & \"'!\" & AF192),0) + IF(Setup!$AH$8<>\"\",INDIRECT(\"'\" & Setup!$AH$8 & \"'!\" & AF192),0) + IF(Setup!$AH$9<>\"\",INDIRECT(\"'\" & Setup!$AH$9 & \"'!\" & AF192),0) + IF(Setup!$AH$10<>\"\",INDIRECT(\"'\" & Setup!$AH$10 & \"'!\" & AF192),0) + IF(Setup!$AH$11<>\"\",INDIRECT(\"'\" & Setup!$AH$11 & \"'!\" & AF192),0) + IF(Setup!$AH$12<>\"\",INDIRECT(\"'\" & Setup!$AH$12 & \"'!\" & AF192),0)","v":0},{"$f":"IF(Setup!$AI$7<>\"\",INDIRECT(\"'\" & Setup!$AI$7 & \"'!\" & AF192),0) + IF(Setup!$AI$8<>\"\",INDIRECT(\"'\" & Setup!$AI$8 & \"'!\" & AF192),0) + IF(Setup!$AI$9<>\"\",INDIRECT(\"'\" & Setup!$AI$9 & \"'!\" & AF192),0) + IF(Setup!$AI$10<>\"\",INDIRECT(\"'\" & Setup!$AI$10 & \"'!\" & AF192),0) + IF(Setup!$AI$11<>\"\",INDIRECT(\"'\" & Setup!$AI$11 & \"'!\" & AF192),0) + IF(Setup!$AI$12<>\"\",INDIRECT(\"'\" & Setup!$AI$12 & \"'!\" & AF192),0)","v":0},{"$f":"IF(Setup!$AJ$7<>\"\",INDIRECT(\"'\" & Setup!$AJ$7 & \"'!\" & AF192),0) + IF(Setup!$AJ$8<>\"\",INDIRECT(\"'\" & Setup!$AJ$8 & \"'!\" & AF192),0) + IF(Setup!$AJ$9<>\"\",INDIRECT(\"'\" & Setup!$AJ$9 & \"'!\" & AF192),0) + IF(Setup!$AJ$10<>\"\",INDIRECT(\"'\" & Setup!$AJ$10 & \"'!\" & AF192),0) + IF(Setup!$AJ$11<>\"\",INDIRECT(\"'\" & Setup!$AJ$11 & \"'!\" & AF192),0) + IF(Setup!$AJ$12<>\"\",INDIRECT(\"'\" & Setup!$AJ$12 & \"'!\" & AF192),0)","v":0},null,"",{"$nulls":3},{"$f":"IF(C192=0,\"\",LEFT(INDEX(Lists!$H$5:$H$49,MATCH(C192,Lists!$G$5:$G$49,0),1),1))","v":""},null,"","","","","","","","","","",{"$nulls":6},{"$f":"IF(Setup!$AG$7<>\"\",INDIRECT(\"'\" & Setup!$AG$7 & \"'!\" & AD192),0) + IF(Setup!$AG$8<>\"\",INDIRECT(\"'\" & Setup!$AG$8 & \"'!\" & AD192),0) + IF(Setup!$AG$9<>\"\",INDIRECT(\"'\" & Setup!$AG$9 & \"'!\" & AD192),0) + IF(Setup!$AG$10<>\"\",INDIRECT(\"'\" & Setup!$AG$10 & \"'!\" & AD192),0) + IF(Setup!$AG$11<>\"\",INDIRECT(\"'\" & Setup!$AG$11 & \"'!\" & AD192),0) + IF(Setup!$AG$12<>\"\",INDIRECT(\"'\" & Setup!$AG$12 & \"'!\" & AD192),0)","v":0},{"$f":"IF(Setup!$AG$7<>\"\",INDIRECT(\"'\" & Setup!$AG$7 & \"'!\" & AE192),0) + IF(Setup!$AG$8<>\"\",INDIRECT(\"'\" & Setup!$AG$8 & \"'!\" & AE192),0) + IF(Setup!$AG$9<>\"\",INDIRECT(\"'\" & Setup!$AG$9 & \"'!\" & AE192),0) + IF(Setup!$AG$10<>\"\",INDIRECT(\"'\" & Setup!$AG$10 & \"'!\" & AE192),0) + IF(Setup!$AG$11<>\"\",INDIRECT(\"'\" & Setup!$AG$11 & \"'!\" & AE192),0) + IF(Setup!$AG$12<>\"\",INDIRECT(\"'\" & Setup!$AG$12 & \"'!\" & AE192),0)","v":0},{"$f":"IF(Setup!$AH$7<>\"\",INDIRECT(\"'\" & Setup!$AH$7 & \"'!\" & AD192),0) + IF(Setup!$AH$8<>\"\",INDIRECT(\"'\" & Setup!$AH$8 & \"'!\" & AD192),0) + IF(Setup!$AH$9<>\"\",INDIRECT(\"'\" & Setup!$AH$9 & \"'!\" & AD192),0) + IF(Setup!$AH$10<>\"\",INDIRECT(\"'\" & Setup!$AH$10 & \"'!\" & AD192),0) + IF(Setup!$AH$11<>\"\",INDIRECT(\"'\" & Setup!$AH$11 & \"'!\" & AD192),0) + IF(Setup!$AH$12<>\"\",INDIRECT(\"'\" & Setup!$AH$12 & \"'!\" & AD192),0)","v":0},{"$f":"IF(Setup!$AH$7<>\"\",INDIRECT(\"'\" & Setup!$AH$7 & \"'!\" & AE192),0) + IF(Setup!$AH$8<>\"\",INDIRECT(\"'\" & Setup!$AH$8 & \"'!\" & AE192),0) + IF(Setup!$AH$9<>\"\",INDIRECT(\"'\" & Setup!$AH$9 & \"'!\" & AE192),0) + IF(Setup!$AH$10<>\"\",INDIRECT(\"'\" & Setup!$AH$10 & \"'!\" & AE192),0) + IF(Setup!$AH$11<>\"\",INDIRECT(\"'\" & Setup!$AH$11 & \"'!\" & AE192),0) + IF(Setup!$AH$12<>\"\",INDIRECT(\"'\" & Setup!$AH$12 & \"'!\" & AE192),0)","v":0},{"$f":"IF(Setup!$AI$7<>\"\",INDIRECT(\"'\" & Setup!$AI$7 & \"'!\" & AD192),0) + IF(Setup!$AI$8<>\"\",INDIRECT(\"'\" & Setup!$AI$8 & \"'!\" & AD192),0) + IF(Setup!$AI$9<>\"\",INDIRECT(\"'\" & Setup!$AI$9 & \"'!\" & AD192),0) + IF(Setup!$AI$10<>\"\",INDIRECT(\"'\" & Setup!$AI$10 & \"'!\" & AD192),0) + IF(Setup!$AI$11<>\"\",INDIRECT(\"'\" & Setup!$AI$11 & \"'!\" & AD192),0) + IF(Setup!$AI$12<>\"\",INDIRECT(\"'\" & Setup!$AI$12 & \"'!\" & AD192),0)","v":0},{"$f":"IF(Setup!$AI$7<>\"\",INDIRECT(\"'\" & Setup!$AI$7 & \"'!\" & AE192),0) + IF(Setup!$AI$8<>\"\",INDIRECT(\"'\" & Setup!$AI$8 & \"'!\" & AE192),0) + IF(Setup!$AI$9<>\"\",INDIRECT(\"'\" & Setup!$AI$9 & \"'!\" & AE192),0) + IF(Setup!$AI$10<>\"\",INDIRECT(\"'\" & Setup!$AI$10 & \"'!\" & AE192),0) + IF(Setup!$AI$11<>\"\",INDIRECT(\"'\" & Setup!$AI$11 & \"'!\" & AE192),0) + IF(Setup!$AI$12<>\"\",INDIRECT(\"'\" & Setup!$AI$12 & \"'!\" & AE192),0)","v":0},{"$f":"IF(Setup!$AJ$7<>\"\",INDIRECT(\"'\" & Setup!$AJ$7 & \"'!\" & AD192),0) + IF(Setup!$AJ$8<>\"\",INDIRECT(\"'\" & Setup!$AJ$8 & \"'!\" & AD192),0) + IF(Setup!$AJ$9<>\"\",INDIRECT(\"'\" & Setup!$AJ$9 & \"'!\" & AD192),0) + IF(Setup!$AJ$10<>\"\",INDIRECT(\"'\" & Setup!$AJ$10 & \"'!\" & AD192),0) + IF(Setup!$AJ$11<>\"\",INDIRECT(\"'\" & Setup!$AJ$11 & \"'!\" & AD192),0) + IF(Setup!$AJ$12<>\"\",INDIRECT(\"'\" & Setup!$AJ$12 & \"'!\" & AD192),0)","v":0},{"$f":"IF(Setup!$AJ$7<>\"\",INDIRECT(\"'\" & Setup!$AJ$7 & \"'!\" & AE192),0) + IF(Setup!$AJ$8<>\"\",INDIRECT(\"'\" & Setup!$AJ$8 & \"'!\" & AE192),0) + IF(Setup!$AJ$9<>\"\",INDIRECT(\"'\" & Setup!$AJ$9 & \"'!\" & AE192),0) + IF(Setup!$AJ$10<>\"\",INDIRECT(\"'\" & Setup!$AJ$10 & \"'!\" & AE192),0) + IF(Setup!$AJ$11<>\"\",INDIRECT(\"'\" & Setup!$AJ$11 & \"'!\" & AE192),0) + IF(Setup!$AJ$12<>\"\",INDIRECT(\"'\" & Setup!$AJ$12 & \"'!\" & AE192),0)","v":0}]
[{"$f":"Planning!A176","v":"I168"},{"$f":"Planning!B176","v":0},{"$f":"Planning!C176","v":0},{"$f":"Planning!D176","v":0},{"$f":"Planning!E176","v":0},{"$f":"Planning!G176","v":0},null,0,0,{"$f":"IF(AND($AR193=\"2\",$AB192<>Lists!$A$17),AU193,AT193)","v":""},"",0,0,{"$f":"IF(AND($AR193=\"2\",$AB193<>Lists!$A$17),AW193,AV193)","v":""},"",0,0,{"$f":"IF(AND($AR193=\"2\",$AB193<>Lists!$A$17),AY193,AX193)","v":""},"",0,0,{"$f":"IF(AND($AR193=\"2\",$AB193<>Lists!$A$17),BA193,AZ193)","v":""},"",0,0,{"$f":"IF(AND($AR193=\"2\",$AB193<>Lists!$A$17),BC193,BB193)","v":""},"",{"$f":"Planning!H176","v":0},"00","H192","J192","I192","",null,{"$f":"IF(Setup!$AG$7<>\"\",INDIRECT(\"'\" & Setup!$AG$7 & \"'!\" & AF193),0) + IF(Setup!$AG$8<>\"\",INDIRECT(\"'\" & Setup!$AG$8 & \"'!\" & AF193),0) + IF(Setup!$AG$9<>\"\",INDIRECT(\"'\" & Setup!$AG$9 & \"'!\" & AF193),0) + IF(Setup!$AG$10<>\"\",INDIRECT(\"'\" & Setup!$AG$10 & \"'!\" & AF193),0) + IF(Setup!$AG$11<>\"\",INDIRECT(\"'\" & Setup!$AG$11 & \"'!\" & AF193),0) + IF(Setup!$AG$12<>\"\",INDIRECT(\"'\" & Setup!$AG$12 & \"'!\" & AF193),0)","v":0},{"$f":"IF(Setup!$AH$7<>\"\",INDIRECT(\"'\" & Setup!$AH$7 & \"'!\" & AF193),0) + IF(Setup!$AH$8<>\"\",INDIRECT(\"'\" & Setup!$AH$8 & \"'!\" & AF193),0) + IF(Setup!$AH$9<>\"\",INDIRECT(\"'\" & Setup!$AH$9 & \"'!\" & AF193),0) + IF(Setup!$AH$10<>\"\",INDIRECT(\"'\" & Setup!$AH$10 & \"'!\" & AF193),0) + IF(Setup!$AH$11<>\"\",INDIRECT(\"'\" & Setup!$AH$11 & \"'!\" & AF193),0) + IF(Setup!$AH$12<>\"\",INDIRECT(\"'\" & Setup!$AH$12 & \"'!\" & AF193),0)","v":0},{"$f":"IF(Setup!$AI$7<>\"\",INDIRECT(\"'\" & Setup!$AI$7 & \"'!\" & AF193),0) + IF(Setup!$AI$8<>\"\",INDIRECT(\"'\" & Setup!$AI$8 & \"'!\" & AF193),0) + IF(Setup!$AI$9<>\"\",INDIRECT(\"'\" & Setup!$AI$9 & \"'!\" & AF193),0) + IF(Setup!$AI$10<>\"\",INDIRECT(\"'\" & Setup!$AI$10 & \"'!\" & AF193),0) + IF(Setup!$AI$11<>\"\",INDIRECT(\"'\" & Setup!$AI$11 & \"'!\" & AF193),0) + IF(Setup!$AI$12<>\"\",INDIRECT(\"'\" & Setup!$AI$12 & \"'!\" & AF193),0)","v":0},{"$f":"IF(Setup!$AJ$7<>\"\",INDIRECT(\"'\" & Setup!$AJ$7 & \"'!\" & AF193),0) + IF(Setup!$AJ$8<>\"\",INDIRECT(\"'\" & Setup!$AJ$8 & \"'!\" & AF193),0) + IF(Setup!$AJ$9<>\"\",INDIRECT(\"'\" & Setup!$AJ$9 & \"'!\" & AF193),0) + IF(Setup!$AJ$10<>\"\",INDIRECT(\"'\" & Setup!$AJ$10 & \"'!\" & AF193),0) + IF(Setup!$AJ$11<>\"\",INDIRECT(\"'\" & Setup!$AJ$11 & \"'!\" & AF193),0) + IF(Setup!$AJ$12<>\"\",INDIRECT(\"'\" & Setup!$AJ$12 & \"'!\" & AF193),0)","v":0},null,"",{"$nulls":3},{"$f":"IF(C193=0,\"\",LEFT(INDEX(Lists!$H$5:$H$49,MATCH(C193,Lists!$G$5:$G$49,0),1),1))","v":""},null,"","","","","","","","","","",{"$nulls":6},{"$f":"IF(Setup!$AG$7<>\"\",INDIRECT(\"'\" & Setup!$AG$7 & \"'!\" & AD193),0) + IF(Setup!$AG$8<>\"\",INDIRECT(\"'\" & Setup!$AG$8 & \"'!\" & AD193),0) + IF(Setup!$AG$9<>\"\",INDIRECT(\"'\" & Setup!$AG$9 & \"'!\" & AD193),0) + IF(Setup!$AG$10<>\"\",INDIRECT(\"'\" & Setup!$AG$10 & \"'!\" & AD193),0) + IF(Setup!$AG$11<>\"\",INDIRECT(\"'\" & Setup!$AG$11 & \"'!\" & AD193),0) + IF(Setup!$AG$12<>\"\",INDIRECT(\"'\" & Setup!$AG$12 & \"'!\" & AD193),0)","v":0},{"$f":"IF(Setup!$AG$7<>\"\",INDIRECT(\"'\" & Setup!$AG$7 & \"'!\" & AE193),0) + IF(Setup!$AG$8<>\"\",INDIRECT(\"'\" & Setup!$AG$8 & \"'!\" & AE193),0) + IF(Setup!$AG$9<>\"\",INDIRECT(\"'\" & Setup!$AG$9 & \"'!\" & AE193),0) + IF(Setup!$AG$10<>\"\",INDIRECT(\"'\" & Setup!$AG$10 & \"'!\" & AE193),0) + IF(Setup!$AG$11<>\"\",INDIRECT(\"'\" & Setup!$AG$11 & \"'!\" & AE193),0) + IF(Setup!$AG$12<>\"\",INDIRECT(\"'\" & Setup!$AG$12 & \"'!\" & AE193),0)","v":0},{"$f":"IF(Setup!$AH$7<>\"\",INDIRECT(\"'\" & Setup!$AH$7 & \"'!\" & AD193),0) + IF(Setup!$AH$8<>\"\",INDIRECT(\"'\" & Setup!$AH$8 & \"'!\" & AD193),0) + IF(Setup!$AH$9<>\"\",INDIRECT(\"'\" & Setup!$AH$9 & \"'!\" & AD193),0) + IF(Setup!$AH$10<>\"\",INDIRECT(\"'\" & Setup!$AH$10 & \"'!\" & AD193),0) + IF(Setup!$AH$11<>\"\",INDIRECT(\"'\" & Setup!$AH$11 & \"'!\" & AD193),0) + IF(Setup!$AH$12<>\"\",INDIRECT(\"'\" & Setup!$AH$12 & \"'!\" & AD193),0)","v":0},{"$f":"IF(Setup!$AH$7<>\"\",INDIRECT(\"'\" & Setup!$AH$7 & \"'!\" & AE193),0) + IF(Setup!$AH$8<>\"\",INDIRECT(\"'\" & Setup!$AH$8 & \"'!\" & AE193),0) + IF(Setup!$AH$9<>\"\",INDIRECT(\"'\" & Setup!$AH$9 & \"'!\" & AE193),0) + IF(Setup!$AH$10<>\"\",INDIRECT(\"'\" & Setup!$AH$10 & \"'!\" & AE193),0) + IF(Setup!$AH$11<>\"\",INDIRECT(\"'\" & Setup!$AH$11 & \"'!\" & AE193),0) + IF(Setup!$AH$12<>\"\",INDIRECT(\"'\" & Setup!$AH$12 & \"'!\" & AE193),0)","v":0},{"$f":"IF(Setup!$AI$7<>\"\",INDIRECT(\"'\" & Setup!$AI$7 & \"'!\" & AD193),0) + IF(Setup!$AI$8<>\"\",INDIRECT(\"'\" & Setup!$AI$8 & \"'!\" & AD193),0) + IF(Setup!$AI$9<>\"\",INDIRECT(\"'\" & Setup!$AI$9 & \"'!\" & AD193),0) + IF(Setup!$AI$10<>\"\",INDIRECT(\"'\" & Setup!$AI$10 & \"'!\" & AD193),0) + IF(Setup!$AI$11<>\"\",INDIRECT(\"'\" & Setup!$AI$11 & \"'!\" & AD193),0) + IF(Setup!$AI$12<>\"\",INDIRECT(\"'\" & Setup!$AI$12 & \"'!\" & AD193),0)","v":0},{"$f":"IF(Setup!$AI$7<>\"\",INDIRECT(\"'\" & Setup!$AI$7 & \"'!\" & AE193),0) + IF(Setup!$AI$8<>\"\",INDIRECT(\"'\" & Setup!$AI$8 & \"'!\" & AE193),0) + IF(Setup!$AI$9<>\"\",INDIRECT(\"'\" & Setup!$AI$9 & \"'!\" & AE193),0) + IF(Setup!$AI$10<>\"\",INDIRECT(\"'\" & Setup!$AI$10 & \"'!\" & AE193),0) + IF(Setup!$AI$11<>\"\",INDIRECT(\"'\" & Setup!$AI$11 & \"'!\" & AE193),0) + IF(Setup!$AI$12<>\"\",INDIRECT(\"'\" & Setup!$AI$12 & \"'!\" & AE193),0)","v":0},{"$f":"IF(Setup!$AJ$7<>\"\",INDIRECT(\"'\" & Setup!$AJ$7 & \"'!\" & AD193),0) + IF(Setup!$AJ$8<>\"\",INDIRECT(\"'\" & Setup!$AJ$8 & \"'!\" & AD193),0) + IF(Setup!$AJ$9<>\"\",INDIRECT(\"'\" & Setup!$AJ$9 & \"'!\" & AD193),0) + IF(Setup!$AJ$10<>\"\",INDIRECT(\"'\" & Setup!$AJ$10 & \"'!\" & AD193),0) + IF(Setup!$AJ$11<>\"\",INDIRECT(\"'\" & Setup!$AJ$11 & \"'!\" & AD193),0) + IF(Setup!$AJ$12<>\"\",INDIRECT(\"'\" & Setup!$AJ$12 & \"'!\" & AD193),0)","v":0},{"$f":"IF(Setup!$AJ$7<>\"\",INDIRECT(\"'\" & Setup!$AJ$7 & \"'!\" & AE193),0) + IF(Setup!$AJ$8<>\"\",INDIRECT(\"'\" & Setup!$AJ$8 & \"'!\" & AE193),0) + IF(Setup!$AJ$9<>\"\",INDIRECT(\"'\" & Setup!$AJ$9 & \"'!\" & AE193),0) + IF(Setup!$AJ$10<>\"\",INDIRECT(\"'\" & Setup!$AJ$10 & \"'!\" & AE193),0) + IF(Setup!$AJ$11<>\"\",INDIRECT(\"'\" & Setup!$AJ$11 & \"'!\" & AE193),0) + IF(Setup!$AJ$12<>\"\",INDIRECT(\"'\" & Setup!$AJ$12 & \"'!\" & AE193),0)","v":0}]
[{"$f":"Planning!A177","v":"I169"},{"$f":"Planning!B177","v":0},{"$f":"Planning!C177","v":0},{"$f":"Planning!D177","v":0},{"$f":"Planning!E177","v":0},{"$f":"Planning!G177","v":0},null,0,0,{"$f":"IF(AND($AR194=\"2\",$AB193<>Lists!$A$17),AU194,AT194)","v":""},"",0,0,{"$f":"IF(AND($AR194=\"2\",$AB194<>Lists!$A$17),AW194,AV194)","v":""},"",0,0,{"$f":"IF(AND($AR194=\"2\",$AB194<>Lists!$A$17),AY194,AX194)","v":""},"",0,0,{"$f":"IF(AND($AR194=\"2\",$AB194<>Lists!$A$17),BA194,AZ194)","v":""},"",0,0,{"$f":"IF(AND($AR194=\"2\",$AB194<>Lists!$A$17),BC194,BB194)","v":""},"",{"$f":"Planning!H177","v":0},"00","H193","J193","I193","",null,{"$f":"IF(Setup!$AG$7<>\"\",INDIRECT(\"'\" & Setup!$AG$7 & \"'!\" & AF194),0) + IF(Setup!$AG$8<>\"\",INDIRECT(\"'\" & Setup!$AG$8 & \"'!\" & AF194),0) + IF(Setup!$AG$9<>\"\",INDIRECT(\"'\" & Setup!$AG$9 & \"'!\" & AF194),0) + IF(Setup!$AG$10<>\"\",INDIRECT(\"'\" & Setup!$AG$10 & \"'!\" & AF194),0) + IF(Setup!$AG$11<>\"\",INDIRECT(\"'\" & Setup!$AG$11 & \"'!\" & AF194),0) + IF(Setup!$AG$12<>\"\",INDIRECT(\"'\" & Setup!$AG$12 & \"'!\" & AF194),0)","v":0},{"$f":"IF(Setup!$AH$7<>\"\",INDIRECT(\"'\" & Setup!$AH$7 & \"'!\" & AF194),0) + IF(Setup!$AH$8<>\"\",INDIRECT(\"'\" & Setup!$AH$8 & \"'!\" & AF194),0) + IF(Setup!$AH$9<>\"\",INDIRECT(\"'\" & Setup!$AH$9 & \"'!\" & AF194),0) + IF(Setup!$AH$10<>\"\",INDIRECT(\"'\" & Setup!$AH$10 & \"'!\" & AF194),0) + IF(Setup!$AH$11<>\"\",INDIRECT(\"'\" & Setup!$AH$11 & \"'!\" & AF194),0) + IF(Setup!$AH$12<>\"\",INDIRECT(\"'\" & Setup!$AH$12 & \"'!\" & AF194),0)","v":0},{"$f":"IF(Setup!$AI$7<>\"\",INDIRECT(\"'\" & Setup!$AI$7 & \"'!\" & AF194),0) + IF(Setup!$AI$8<>\"\",INDIRECT(\"'\" & Setup!$AI$8 & \"'!\" & AF194),0) + IF(Setup!$AI$9<>\"\",INDIRECT(\"'\" & Setup!$AI$9 & \"'!\" & AF194),0) + IF(Setup!$AI$10<>\"\",INDIRECT(\"'\" & Setup!$AI$10 & \"'!\" & AF194),0) + IF(Setup!$AI$11<>\"\",INDIRECT(\"'\" & Setup!$AI$11 & \"'!\" & AF194),0) + IF(Setup!$AI$12<>\"\",INDIRECT(\"'\" & Setup!$AI$12 & \"'!\" & AF194),0)","v":0},{"$f":"IF(Setup!$AJ$7<>\"\",INDIRECT(\"'\" & Setup!$AJ$7 & \"'!\" & AF194),0) + IF(Setup!$AJ$8<>\"\",INDIRECT(\"'\" & Setup!$AJ$8 & \"'!\" & AF194),0) + IF(Setup!$AJ$9<>\"\",INDIRECT(\"'\" & Setup!$AJ$9 & \"'!\" & AF194),0) + IF(Setup!$AJ$10<>\"\",INDIRECT(\"'\" & Setup!$AJ$10 & \"'!\" & AF194),0) + IF(Setup!$AJ$11<>\"\",INDIRECT(\"'\" & Setup!$AJ$11 & \"'!\" & AF194),0) + IF(Setup!$AJ$12<>\"\",INDIRECT(\"'\" & Setup!$AJ$12 & \"'!\" & AF194),0)","v":0},null,"",{"$nulls":3},{"$f":"IF(C194=0,\"\",LEFT(INDEX(Lists!$H$5:$H$49,MATCH(C194,Lists!$G$5:$G$49,0),1),1))","v":""},null,"","","","","","","","","","",{"$nulls":6},{"$f":"IF(Setup!$AG$7<>\"\",INDIRECT(\"'\" & Setup!$AG$7 & \"'!\" & AD194),0) + IF(Setup!$AG$8<>\"\",INDIRECT(\"'\" & Setup!$AG$8 & \"'!\" & AD194),0) + IF(Setup!$AG$9<>\"\",INDIRECT(\"'\" & Setup!$AG$9 & \"'!\" & AD194),0) + IF(Setup!$AG$10<>\"\",INDIRECT(\"'\" & Setup!$AG$10 & \"'!\" & AD194),0) + IF(Setup!$AG$11<>\"\",INDIRECT(\"'\" & Setup!$AG$11 & \"'!\" & AD194),0) + IF(Setup!$AG$12<>\"\",INDIRECT(\"'\" & Setup!$AG$12 & \"'!\" & AD194),0)","v":0},{"$f":"IF(Setup!$AG$7<>\"\",INDIRECT(\"'\" & Setup!$AG$7 & \"'!\" & AE194),0) + IF(Setup!$AG$8<>\"\",INDIRECT(\"'\" & Setup!$AG$8 & \"'!\" & AE194),0) + IF(Setup!$AG$9<>\"\",INDIRECT(\"'\" & Setup!$AG$9 & \"'!\" & AE194),0) + IF(Setup!$AG$10<>\"\",INDIRECT(\"'\" & Setup!$AG$10 & \"'!\" & AE194),0) + IF(Setup!$AG$11<>\"\",INDIRECT(\"'\" & Setup!$AG$11 & \"'!\" & AE194),0) + IF(Setup!$AG$12<>\"\",INDIRECT(\"'\" & Setup!$AG$12 & \"'!\" & AE194),0)","v":0},{"$f":"IF(Setup!$AH$7<>\"\",INDIRECT(\"'\" & Setup!$AH$7 & \"'!\" & AD194),0) + IF(Setup!$AH$8<>\"\",INDIRECT(\"'\" & Setup!$AH$8 & \"'!\" & AD194),0) + IF(Setup!$AH$9<>\"\",INDIRECT(\"'\" & Setup!$AH$9 & \"'!\" & AD194),0) + IF(Setup!$AH$10<>\"\",INDIRECT(\"'\" & Setup!$AH$10 & \"'!\" & AD194),0) + IF(Setup!$AH$11<>\"\",INDIRECT(\"'\" & Setup!$AH$11 & \"'!\" & AD194),0) + IF(Setup!$AH$12<>\"\",INDIRECT(\"'\" & Setup!$AH$12 & \"'!\" & AD194),0)","v":0},{"$f":"IF(Setup!$AH$7<>\"\",INDIRECT(\"'\" & Setup!$AH$7 & \"'!\" & AE194),0) + IF(Setup!$AH$8<>\"\",INDIRECT(\"'\" & Setup!$AH$8 & \"'!\" & AE194),0) + IF(Setup!$AH$9<>\"\",INDIRECT(\"'\" & Setup!$AH$9 & \"'!\" & AE194),0) + IF(Setup!$AH$10<>\"\",INDIRECT(\"'\" & Setup!$AH$10 & \"'!\" & AE194),0) + IF(Setup!$AH$11<>\"\",INDIRECT(\"'\" & Setup!$AH$11 & \"'!\" & AE194),0) + IF(Setup!$AH$12<>\"\",INDIRECT(\"'\" & Setup!$AH$12 & \"'!\" & AE194),0)","v":0},{"$f":"IF(Setup!$AI$7<>\"\",INDIRECT(\"'\" & Setup!$AI$7 & \"'!\" & AD194),0) + IF(Setup!$AI$8<>\"\",INDIRECT(\"'\" & Setup!$AI$8 & \"'!\" & AD194),0) + IF(Setup!$AI$9<>\"\",INDIRECT(\"'\" & Setup!$AI$9 & \"'!\" & AD194),0) + IF(Setup!$AI$10<>\"\",INDIRECT(\"'\" & Setup!$AI$10 & \"'!\" & AD194),0) + IF(Setup!$AI$11<>\"\",INDIRECT(\"'\" & Setup!$AI$11 & \"'!\" & AD194),0) + IF(Setup!$AI$12<>\"\",INDIRECT(\"'\" & Setup!$AI$12 & \"'!\" & AD194),0)","v":0},{"$f":"IF(Setup!$AI$7<>\"\",INDIRECT(\"'\" & Setup!$AI$7 & \"'!\" & AE194),0) + IF(Setup!$AI$8<>\"\",INDIRECT(\"'\" & Setup!$AI$8 & \"'!\" & AE194),0) + IF(Setup!$AI$9<>\"\",INDIRECT(\"'\" & Setup!$AI$9 & \"'!\" & AE194),0) + IF(Setup!$AI$10<>\"\",INDIRECT(\"'\" & Setup!$AI$10 & \"'!\" & AE194),0) + IF(Setup!$AI$11<>\"\",INDIRECT(\"'\" & Setup!$AI$11 & \"'!\" & AE194),0) + IF(Setup!$AI$12<>\"\",INDIRECT(\"'\" & Setup!$AI$12 & \"'!\" & AE194),0)","v":0},{"$f":"IF(Setup!$AJ$7<>\"\",INDIRECT(\"'\" & Setup!$AJ$7 & \"'!\" & AD194),0) + IF(Setup!$AJ$8<>\"\",INDIRECT(\"'\" & Setup!$AJ$8 & \"'!\" & AD194),0) + IF(Setup!$AJ$9<>\"\",INDIRECT(\"'\" & Setup!$AJ$9 & \"'!\" & AD194),0) + IF(Setup!$AJ$10<>\"\",INDIRECT(\"'\" & Setup!$AJ$10 & \"'!\" & AD194),0) + IF(Setup!$AJ$11<>\"\",INDIRECT(\"'\" & Setup!$AJ$11 & \"'!\" & AD194),0) + IF(Setup!$AJ$12<>\"\",INDIRECT(\"'\" & Setup!$AJ$12 & \"'!\" & AD194),0)","v":0},{"$f":"IF(Setup!$AJ$7<>\"\",INDIRECT(\"'\" & Setup!$AJ$7 & \"'!\" & AE194),0) + IF(Setup!$AJ$8<>\"\",INDIRECT(\"'\" & Setup!$AJ$8 & \"'!\" & AE194),0) + IF(Setup!$AJ$9<>\"\",INDIRECT(\"'\" & Setup!$AJ$9 & \"'!\" & AE194),0) + IF(Setup!$AJ$10<>\"\",INDIRECT(\"'\" & Setup!$AJ$10 & \"'!\" & AE194),0) + IF(Setup!$AJ$11<>\"\",INDIRECT(\"'\" & Setup!$AJ$11 & \"'!\" & AE194),0) + IF(Setup!$AJ$12<>\"\",INDIRECT(\"'\" & Setup!$AJ$12 & \"'!\" & AE194),0)","v":0}]
[{"$f":"Planning!A178","v":"I170"},{"$f":"Planning!B178","v":0},{"$f":"Planning!C178","v":0},{"$f":"Planning!D178","v":0},{"$f":"Planning!E178","v":0},{"$f":"Planning!G178","v":0},null,0,0,{"$f":"IF(AND($AR195=\"2\",$AB194<>Lists!$A$17),AU195,AT195)","v":""},"",0,0,{"$f":"IF(AND($AR195=\"2\",$AB195<>Lists!$A$17),AW195,AV195)","v":""},"",0,0,{"$f":"IF(AND($AR195=\"2\",$AB195<>Lists!$A$17),AY195,AX195)","v":""},"",0,0,{"$f":"IF(AND($AR195=\"2\",$AB195<>Lists!$A$17),BA195,AZ195)","v":""},"",0,0,{"$f":"IF(AND($AR195=\"2\",$AB195<>Lists!$A$17),BC195,BB195)","v":""},"",{"$f":"Planning!H178","v":0},"00","H194","J194","I194","",null,{"$f":"IF(Setup!$AG$7<>\"\",INDIRECT(\"'\" & Setup!$AG$7 & \"'!\" & AF195),0) + IF(Setup!$AG$8<>\"\",INDIRECT(\"'\" & Setup!$AG$8 & \"'!\" & AF195),0) + IF(Setup!$AG$9<>\"\",INDIRECT(\"'\" & Setup!$AG$9 & \"'!\" & AF195),0) + IF(Setup!$AG$10<>\"\",INDIRECT(\"'\" & Setup!$AG$10 & \"'!\" & AF195),0) + IF(Setup!$AG$11<>\"\",INDIRECT(\"'\" & Setup!$AG$11 & \"'!\" & AF195),0) + IF(Setup!$AG$12<>\"\",INDIRECT(\"'\" & Setup!$AG$12 & \"'!\" & AF195),0)","v":0},{"$f":"IF(Setup!$AH$7<>\"\",INDIRECT(\"'\" & Setup!$AH$7 & \"'!\" & AF195),0) + IF(Setup!$AH$8<>\"\",INDIRECT(\"'\" & Setup!$AH$8 & \"'!\" & AF195),0) + IF(Setup!$AH$9<>\"\",INDIRECT(\"'\" & Setup!$AH$9 & \"'!\" & AF195),0) + IF(Setup!$AH$10<>\"\",INDIRECT(\"'\" & Setup!$AH$10 & \"'!\" & AF195),0) + IF(Setup!$AH$11<>\"\",INDIRECT(\"'\" & Setup!$AH$11 & \"'!\" & AF195),0) + IF(Setup!$AH$12<>\"\",INDIRECT(\"'\" & Setup!$AH$12 & \"'!\" & AF195),0)","v":0},{"$f":"IF(Setup!$AI$7<>\"\",INDIRECT(\"'\" & Setup!$AI$7 & \"'!\" & AF195),0) + IF(Setup!$AI$8<>\"\",INDIRECT(\"'\" & Setup!$AI$8 & \"'!\" & AF195),0) + IF(Setup!$AI$9<>\"\",INDIRECT(\"'\" & Setup!$AI$9 & \"'!\" & AF195),0) + IF(Setup!$AI$10<>\"\",INDIRECT(\"'\" & Setup!$AI$10 & \"'!\" & AF195),0) + IF(Setup!$AI$11<>\"\",INDIRECT(\"'\" & Setup!$AI$11 & \"'!\" & AF195),0) + IF(Setup!$AI$12<>\"\",INDIRECT(\"'\" & Setup!$AI$12 & \"'!\" & AF195),0)","v":0},{"$f":"IF(Setup!$AJ$7<>\"\",INDIRECT(\"'\" & Setup!$AJ$7 & \"'!\" & AF195),0) + IF(Setup!$AJ$8<>\"\",INDIRECT(\"'\" & Setup!$AJ$8 & \"'!\" & AF195),0) + IF(Setup!$AJ$9<>\"\",INDIRECT(\"'\" & Setup!$AJ$9 & \"'!\" & AF195),0) + IF(Setup!$AJ$10<>\"\",INDIRECT(\"'\" & Setup!$AJ$10 & \"'!\" & AF195),0) + IF(Setup!$AJ$11<>\"\",INDIRECT(\"'\" & Setup!$AJ$11 & \"'!\" & AF195),0) + IF(Setup!$AJ$12<>\"\",INDIRECT(\"'\" & Setup!$AJ$12 & \"'!\" & AF195),0)","v":0},null,"",{"$nulls":3},{"$f":"IF(C195=0,\"\",LEFT(INDEX(Lists!$H$5:$H$49,MATCH(C195,Lists!$G$5:$G$49,0),1),1))","v":""},null,"","","","","","","","","","",{"$nulls":6},{"$f":"IF(Setup!$AG$7<>\"\",INDIRECT(\"'\" & Setup!$AG$7 & \"'!\" & AD195),0) + IF(Setup!$AG$8<>\"\",INDIRECT(\"'\" & Setup!$AG$8 & \"'!\" & AD195),0) + IF(Setup!$AG$9<>\"\",INDIRECT(\"'\" & Setup!$AG$9 & \"'!\" & AD195),0) + IF(Setup!$AG$10<>\"\",INDIRECT(\"'\" & Setup!$AG$10 & \"'!\" & AD195),0) + IF(Setup!$AG$11<>\"\",INDIRECT(\"'\" & Setup!$AG$11 & \"'!\" & AD195),0) + IF(Setup!$AG$12<>\"\",INDIRECT(\"'\" & Setup!$AG$12 & \"'!\" & AD195),0)","v":0},{"$f":"IF(Setup!$AG$7<>\"\",INDIRECT(\"'\" & Setup!$AG$7 & \"'!\" & AE195),0) + IF(Setup!$AG$8<>\"\",INDIRECT(\"'\" & Setup!$AG$8 & \"'!\" & AE195),0) + IF(Setup!$AG$9<>\"\",INDIRECT(\"'\" & Setup!$AG$9 & \"'!\" & AE195),0) + IF(Setup!$AG$10<>\"\",INDIRECT(\"'\" & Setup!$AG$10 & \"'!\" & AE195),0) + IF(Setup!$AG$11<>\"\",INDIRECT(\"'\" & Setup!$AG$11 & \"'!\" & AE195),0) + IF(Setup!$AG$12<>\"\",INDIRECT(\"'\" & Setup!$AG$12 & \"'!\" & AE195),0)","v":0},{"$f":"IF(Setup!$AH$7<>\"\",INDIRECT(\"'\" & Setup!$AH$7 & \"'!\" & AD195),0) + IF(Setup!$AH$8<>\"\",INDIRECT(\"'\" & Setup!$AH$8 & \"'!\" & AD195),0) + IF(Setup!$AH$9<>\"\",INDIRECT(\"'\" & Setup!$AH$9 & \"'!\" & AD195),0) + IF(Setup!$AH$10<>\"\",INDIRECT(\"'\" & Setup!$AH$10 & \"'!\" & AD195),0) + IF(Setup!$AH$11<>\"\",INDIRECT(\"'\" & Setup!$AH$11 & \"'!\" & AD195),0) + IF(Setup!$AH$12<>\"\",INDIRECT(\"'\" & Setup!$AH$12 & \"'!\" & AD195),0)","v":0},{"$f":"IF(Setup!$AH$7<>\"\",INDIRECT(\"'\" & Setup!$AH$7 & \"'!\" & AE195),0) + IF(Setup!$AH$8<>\"\",INDIRECT(\"'\" & Setup!$AH$8 & \"'!\" & AE195),0) + IF(Setup!$AH$9<>\"\",INDIRECT(\"'\" & Setup!$AH$9 & \"'!\" & AE195),0) + IF(Setup!$AH$10<>\"\",INDIRECT(\"'\" & Setup!$AH$10 & \"'!\" & AE195),0) + IF(Setup!$AH$11<>\"\",INDIRECT(\"'\" & Setup!$AH$11 & \"'!\" & AE195),0) + IF(Setup!$AH$12<>\"\",INDIRECT(\"'\" & Setup!$AH$12 & \"'!\" & AE195),0)","v":0},{"$f":"IF(Setup!$AI$7<>\"\",INDIRECT(\"'\" & Setup!$AI$7 & \"'!\" & AD195),0) + IF(Setup!$AI$8<>\"\",INDIRECT(\"'\" & Setup!$AI$8 & \"'!\" & AD195),0) + IF(Setup!$AI$9<>\"\",INDIRECT(\"'\" & Setup!$AI$9 & \"'!\" & AD195),0) + IF(Setup!$AI$10<>\"\",INDIRECT(\"'\" & Setup!$AI$10 & \"'!\" & AD195),0) + IF(Setup!$AI$11<>\"\",INDIRECT(\"'\" & Setup!$AI$11 & \"'!\" & AD195),0) + IF(Setup!$AI$12<>\"\",INDIRECT(\"'\" & Setup!$AI$12 & \"'!\" & AD195),0)","v":0},{"$f":"IF(Setup!$AI$7<>\"\",INDIRECT(\"'\" & Setup!$AI$7 & \"'!\" & AE195),0) + IF(Setup!$AI$8<>\"\",INDIRECT(\"'\" & Setup!$AI$8 & \"'!\" & AE195),0) + IF(Setup!$AI$9<>\"\",INDIRECT(\"'\" & Setup!$AI$9 & \"'!\" & AE195),0) + IF(Setup!$AI$10<>\"\",INDIRECT(\"'\" & Setup!$AI$10 & \"'!\" & AE195),0) + IF(Setup!$AI$11<>\"\",INDIRECT(\"'\" & Setup!$AI$11 & \"'!\" & AE195),0) + IF(Setup!$AI$12<>\"\",INDIRECT(\"'\" & Setup!$AI$12 & \"'!\" & AE195),0)","v":0},{"$f":"IF(Setup!$AJ$7<>\"\",INDIRECT(\"'\" & Setup!$AJ$7 & \"'!\" & AD195),0) + IF(Setup!$AJ$8<>\"\",INDIRECT(\"'\" & Setup!$AJ$8 & \"'!\" & AD195),0) + IF(Setup!$AJ$9<>\"\",INDIRECT(\"'\" & Setup!$AJ$9 & \"'!\" & AD195),0) + IF(Setup!$AJ$10<>\"\",INDIRECT(\"'\" & Setup!$AJ$10 & \"'!\" & AD195),0) + IF(Setup!$AJ$11<>\"\",INDIRECT(\"'\" & Setup!$AJ$11 & \"'!\" & AD195),0) + IF(Setup!$AJ$12<>\"\",INDIRECT(\"'\" & Setup!$AJ$12 & \"'!\" & AD195),0)","v":0},{"$f":"IF(Setup!$AJ$7<>\"\",INDIRECT(\"'\" & Setup!$AJ$7 & \"'!\" & AE195),0) + IF(Setup!$AJ$8<>\"\",INDIRECT(\"'\" & Setup!$AJ$8 & \"'!\" & AE195),0) + IF(Setup!$AJ$9<>\"\",INDIRECT(\"'\" & Setup!$AJ$9 & \"'!\" & AE195),0) + IF(Setup!$AJ$10<>\"\",INDIRECT(\"'\" & Setup!$AJ$10 & \"'!\" & AE195),0) + IF(Setup!$AJ$11<>\"\",INDIRECT(\"'\" & Setup!$AJ$11 & \"'!\" & AE195),0) + IF(Setup!$AJ$12<>\"\",INDIRECT(\"'\" & Setup!$AJ$12 & \"'!\" & AE195),0)","v":0}]
[{"$f":"Planning!A179","v":"I171"},{"$f":"Planning!B179","v":0},{"$f":"Planning!C179","v":0},{"$f":"Planning!D179","v":0},{"$f":"Planning!E179","v":0},{"$f":"Planning!G179","v":0},null,0,0,{"$f":"IF(AND($AR196=\"2\",$AB195<>Lists!$A$17),AU196,AT196)","v":""},"",0,0,{"$f":"IF(AND($AR196=\"2\",$AB196<>Lists!$A$17),AW196,AV196)","v":""},"",0,0,{"$f":"IF(AND($AR196=\"2\",$AB196<>Lists!$A$17),AY196,AX196)","v":""},"",0,0,{"$f":"IF(AND($AR196=\"2\",$AB196<>Lists!$A$17),BA196,AZ196)","v":""},"",0,0,{"$f":"IF(AND($AR196=\"2\",$AB196<>Lists!$A$17),BC196,BB196)","v":""},"",{"$f":"Planning!H179","v":0},"00","H195","J195","I195","",null,{"$f":"IF(Setup!$AG$7<>\"\",INDIRECT(\"'\" & Setup!$AG$7 & \"'!\" & AF196),0) + IF(Setup!$AG$8<>\"\",INDIRECT(\"'\" & Setup!$AG$8 & \"'!\" & AF196),0) + IF(Setup!$AG$9<>\"\",INDIRECT(\"'\" & Setup!$AG$9 & \"'!\" & AF196),0) + IF(Setup!$AG$10<>\"\",INDIRECT(\"'\" & Setup!$AG$10 & \"'!\" & AF196),0) + IF(Setup!$AG$11<>\"\",INDIRECT(\"'\" & Setup!$AG$11 & \"'!\" & AF196),0) + IF(Setup!$AG$12<>\"\",INDIRECT(\"'\" & Setup!$AG$12 & \"'!\" & AF196),0)","v":0},{"$f":"IF(Setup!$AH$7<>\"\",INDIRECT(\"'\" & Setup!$AH$7 & \"'!\" & AF196),0) + IF(Setup!$AH$8<>\"\",INDIRECT(\"'\" & Setup!$AH$8 & \"'!\" & AF196),0) + IF(Setup!$AH$9<>\"\",INDIRECT(\"'\" & Setup!$AH$9 & \"'!\" & AF196),0) + IF(Setup!$AH$10<>\"\",INDIRECT(\"'\" & Setup!$AH$10 & \"'!\" & AF196),0) + IF(Setup!$AH$11<>\"\",INDIRECT(\"'\" & Setup!$AH$11 & \"'!\" & AF196),0) + IF(Setup!$AH$12<>\"\",INDIRECT(\"'\" & Setup!$AH$12 & \"'!\" & AF196),0)","v":0},{"$f":"IF(Setup!$AI$7<>\"\",INDIRECT(\"'\" & Setup!$AI$7 & \"'!\" & AF196),0) + IF(Setup!$AI$8<>\"\",INDIRECT(\"'\" & Setup!$AI$8 & \"'!\" & AF196),0) + IF(Setup!$AI$9<>\"\",INDIRECT(\"'\" & Setup!$AI$9 & \"'!\" & AF196),0) + IF(Setup!$AI$10<>\"\",INDIRECT(\"'\" & Setup!$AI$10 & \"'!\" & AF196),0) + IF(Setup!$AI$11<>\"\",INDIRECT(\"'\" & Setup!$AI$11 & \"'!\" & AF196),0) + IF(Setup!$AI$12<>\"\",INDIRECT(\"'\" & Setup!$AI$12 & \"'!\" & AF196),0)","v":0},{"$f":"IF(Setup!$AJ$7<>\"\",INDIRECT(\"'\" & Setup!$AJ$7 & \"'!\" & AF196),0) + IF(Setup!$AJ$8<>\"\",INDIRECT(\"'\" & Setup!$AJ$8 & \"'!\" & AF196),0) + IF(Setup!$AJ$9<>\"\",INDIRECT(\"'\" & Setup!$AJ$9 & \"'!\" & AF196),0) + IF(Setup!$AJ$10<>\"\",INDIRECT(\"'\" & Setup!$AJ$10 & \"'!\" & AF196),0) + IF(Setup!$AJ$11<>\"\",INDIRECT(\"'\" & Setup!$AJ$11 & \"'!\" & AF196),0) + IF(Setup!$AJ$12<>\"\",INDIRECT(\"'\" & Setup!$AJ$12 & \"'!\" & AF196),0)","v":0},null,"",{"$nulls":3},{"$f":"IF(C196=0,\"\",LEFT(INDEX(Lists!$H$5:$H$49,MATCH(C196,Lists!$G$5:$G$49,0),1),1))","v":""},null,"","","","","","","","","","",{"$nulls":6},{"$f":"IF(Setup!$AG$7<>\"\",INDIRECT(\"'\" & Setup!$AG$7 & \"'!\" & AD196),0) + IF(Setup!$AG$8<>\"\",INDIRECT(\"'\" & Setup!$AG$8 & \"'!\" & AD196),0) + IF(Setup!$AG$9<>\"\",INDIRECT(\"'\" & Setup!$AG$9 & \"'!\" & AD196),0) + IF(Setup!$AG$10<>\"\",INDIRECT(\"'\" & Setup!$AG$10 & \"'!\" & AD196),0) + IF(Setup!$AG$11<>\"\",INDIRECT(\"'\" & Setup!$AG$11 & \"'!\" & AD196),0) + IF(Setup!$AG$12<>\"\",INDIRECT(\"'\" & Setup!$AG$12 & \"'!\" & AD196),0)","v":0},{"$f":"IF(Setup!$AG$7<>\"\",INDIRECT(\"'\" & Setup!$AG$7 & \"'!\" & AE196),0) + IF(Setup!$AG$8<>\"\",INDIRECT(\"'\" & Setup!$AG$8 & \"'!\" & AE196),0) + IF(Setup!$AG$9<>\"\",INDIRECT(\"'\" & Setup!$AG$9 & \"'!\" & AE196),0) + IF(Setup!$AG$10<>\"\",INDIRECT(\"'\" & Setup!$AG$10 & \"'!\" & AE196),0) + IF(Setup!$AG$11<>\"\",INDIRECT(\"'\" & Setup!$AG$11 & \"'!\" & AE196),0) + IF(Setup!$AG$12<>\"\",INDIRECT(\"'\" & Setup!$AG$12 & \"'!\" & AE196),0)","v":0},{"$f":"IF(Setup!$AH$7<>\"\",INDIRECT(\"'\" & Setup!$AH$7 & \"'!\" & AD196),0) + IF(Setup!$AH$8<>\"\",INDIRECT(\"'\" & Setup!$AH$8 & \"'!\" & AD196),0) + IF(Setup!$AH$9<>\"\",INDIRECT(\"'\" & Setup!$AH$9 & \"'!\" & AD196),0) + IF(Setup!$AH$10<>\"\",INDIRECT(\"'\" & Setup!$AH$10 & \"'!\" & AD196),0) + IF(Setup!$AH$11<>\"\",INDIRECT(\"'\" & Setup!$AH$11 & \"'!\" & AD196),0) + IF(Setup!$AH$12<>\"\",INDIRECT(\"'\" & Setup!$AH$12 & \"'!\" & AD196),0)","v":0},{"$f":"IF(Setup!$AH$7<>\"\",INDIRECT(\"'\" & Setup!$AH$7 & \"'!\" & AE196),0) + IF(Setup!$AH$8<>\"\",INDIRECT(\"'\" & Setup!$AH$8 & \"'!\" & AE196),0) + IF(Setup!$AH$9<>\"\",INDIRECT(\"'\" & Setup!$AH$9 & \"'!\" & AE196),0) + IF(Setup!$AH$10<>\"\",INDIRECT(\"'\" & Setup!$AH$10 & \"'!\" & AE196),0) + IF(Setup!$AH$11<>\"\",INDIRECT(\"'\" & Setup!$AH$11 & \"'!\" & AE196),0) + IF(Setup!$AH$12<>\"\",INDIRECT(\"'\" & Setup!$AH$12 & \"'!\" & AE196),0)","v":0},{"$f":"IF(Setup!$AI$7<>\"\",INDIRECT(\"'\" & Setup!$AI$7 & \"'!\" & AD196),0) + IF(Setup!$AI$8<>\"\",INDIRECT(\"'\" & Setup!$AI$8 & \"'!\" & AD196),0) + IF(Setup!$AI$9<>\"\",INDIRECT(\"'\" & Setup!$AI$9 & \"'!\" & AD196),0) + IF(Setup!$AI$10<>\"\",INDIRECT(\"'\" & Setup!$AI$10 & \"'!\" & AD196),0) + IF(Setup!$AI$11<>\"\",INDIRECT(\"'\" & Setup!$AI$11 & \"'!\" & AD196),0) + IF(Setup!$AI$12<>\"\",INDIRECT(\"'\" & Setup!$AI$12 & \"'!\" & AD196),0)","v":0},{"$f":"IF(Setup!$AI$7<>\"\",INDIRECT(\"'\" & Setup!$AI$7 & \"'!\" & AE196),0) + IF(Setup!$AI$8<>\"\",INDIRECT(\"'\" & Setup!$AI$8 & \"'!\" & AE196),0) + IF(Setup!$AI$9<>\"\",INDIRECT(\"'\" & Setup!$AI$9 & \"'!\" & AE196),0) + IF(Setup!$AI$10<>\"\",INDIRECT(\"'\" & Setup!$AI$10 & \"'!\" & AE196),0) + IF(Setup!$AI$11<>\"\",INDIRECT(\"'\" & Setup!$AI$11 & \"'!\" & AE196),0) + IF(Setup!$AI$12<>\"\",INDIRECT(\"'\" & Setup!$AI$12 & \"'!\" & AE196),0)","v":0},{"$f":"IF(Setup!$AJ$7<>\"\",INDIRECT(\"'\" & Setup!$AJ$7 & \"'!\" & AD196),0) + IF(Setup!$AJ$8<>\"\",INDIRECT(\"'\" & Setup!$AJ$8 & \"'!\" & AD196),0) + IF(Setup!$AJ$9<>\"\",INDIRECT(\"'\" & Setup!$AJ$9 & \"'!\" & AD196),0) + IF(Setup!$AJ$10<>\"\",INDIRECT(\"'\" & Setup!$AJ$10 & \"'!\" & AD196),0) + IF(Setup!$AJ$11<>\"\",INDIRECT(\"'\" & Setup!$AJ$11 & \"'!\" & AD196),0) + IF(Setup!$AJ$12<>\"\",INDIRECT(\"'\" & Setup!$AJ$12 & \"'!\" & AD196),0)","v":0},{"$f":"IF(Setup!$AJ$7<>\"\",INDIRECT(\"'\" & Setup!$AJ$7 & \"'!\" & AE196),0) + IF(Setup!$AJ$8<>\"\",INDIRECT(\"'\" & Setup!$AJ$8 & \"'!\" & AE196),0) + IF(Setup!$AJ$9<>\"\",INDIRECT(\"'\" & Setup!$AJ$9 & \"'!\" & AE196),0) + IF(Setup!$AJ$10<>\"\",INDIRECT(\"'\" & Setup!$AJ$10 & \"'!\" & AE196),0) + IF(Setup!$AJ$11<>\"\",INDIRECT(\"'\" & Setup!$AJ$11 & \"'!\" & AE196),0) + IF(Setup!$AJ$12<>\"\",INDIRECT(\"'\" & Setup!$AJ$12 & \"'!\" & AE196),0)","v":0}]
[{"$f":"Planning!A180","v":"I172"},{"$f":"Planning!B180","v":0},{"$f":"Planning!C180","v":0},{"$f":"Planning!D180","v":0},{"$f":"Planning!E180","v":0},{"$f":"Planning!G180","v":0},null,0,0,{"$f":"IF(AND($AR197=\"2\",$AB196<>Lists!$A$17),AU197,AT197)","v":""},"",0,0,{"$f":"IF(AND($AR197=\"2\",$AB197<>Lists!$A$17),AW197,AV197)","v":""},"",0,0,{"$f":"IF(AND($AR197=\"2\",$AB197<>Lists!$A$17),AY197,AX197)","v":""},"",0,0,{"$f":"IF(AND($AR197=\"2\",$AB197<>Lists!$A$17),BA197,AZ197)","v":""},"",0,0,{"$f":"IF(AND($AR197=\"2\",$AB197<>Lists!$A$17),BC197,BB197)","v":""},"",{"$f":"Planning!H180","v":0},"00","H196","J196","I196","",null,{"$f":"IF(Setup!$AG$7<>\"\",INDIRECT(\"'\" & Setup!$AG$7 & \"'!\" & AF197),0) + IF(Setup!$AG$8<>\"\",INDIRECT(\"'\" & Setup!$AG$8 & \"'!\" & AF197),0) + IF(Setup!$AG$9<>\"\",INDIRECT(\"'\" & Setup!$AG$9 & \"'!\" & AF197),0) + IF(Setup!$AG$10<>\"\",INDIRECT(\"'\" & Setup!$AG$10 & \"'!\" & AF197),0) + IF(Setup!$AG$11<>\"\",INDIRECT(\"'\" & Setup!$AG$11 & \"'!\" & AF197),0) + IF(Setup!$AG$12<>\"\",INDIRECT(\"'\" & Setup!$AG$12 & \"'!\" & AF197),0)","v":0},{"$f":"IF(Setup!$AH$7<>\"\",INDIRECT(\"'\" & Setup!$AH$7 & \"'!\" & AF197),0) + IF(Setup!$AH$8<>\"\",INDIRECT(\"'\" & Setup!$AH$8 & \"'!\" & AF197),0) + IF(Setup!$AH$9<>\"\",INDIRECT(\"'\" & Setup!$AH$9 & \"'!\" & AF197),0) + IF(Setup!$AH$10<>\"\",INDIRECT(\"'\" & Setup!$AH$10 & \"'!\" & AF197),0) + IF(Setup!$AH$11<>\"\",INDIRECT(\"'\" & Setup!$AH$11 & \"'!\" & AF197),0) + IF(Setup!$AH$12<>\"\",INDIRECT(\"'\" & Setup!$AH$12 & \"'!\" & AF197),0)","v":0},{"$f":"IF(Setup!$AI$7<>\"\",INDIRECT(\"'\" & Setup!$AI$7 & \"'!\" & AF197),0) + IF(Setup!$AI$8<>\"\",INDIRECT(\"'\" & Setup!$AI$8 & \"'!\" & AF197),0) + IF(Setup!$AI$9<>\"\",INDIRECT(\"'\" & Setup!$AI$9 & \"'!\" & AF197),0) + IF(Setup!$AI$10<>\"\",INDIRECT(\"'\" & Setup!$AI$10 & \"'!\" & AF197),0) + IF(Setup!$AI$11<>\"\",INDIRECT(\"'\" & Setup!$AI$11 & \"'!\" & AF197),0) + IF(Setup!$AI$12<>\"\",INDIRECT(\"'\" & Setup!$AI$12 & \"'!\" & AF197),0)","v":0},{"$f":"IF(Setup!$AJ$7<>\"\",INDIRECT(\"'\" & Setup!$AJ$7 & \"'!\" & AF197),0) + IF(Setup!$AJ$8<>\"\",INDIRECT(\"'\" & Setup!$AJ$8 & \"'!\" & AF197),0) + IF(Setup!$AJ$9<>\"\",INDIRECT(\"'\" & Setup!$AJ$9 & \"'!\" & AF197),0) + IF(Setup!$AJ$10<>\"\",INDIRECT(\"'\" & Setup!$AJ$10 & \"'!\" & AF197),0) + IF(Setup!$AJ$11<>\"\",INDIRECT(\"'\" & Setup!$AJ$11 & \"'!\" & AF197),0) + IF(Setup!$AJ$12<>\"\",INDIRECT(\"'\" & Setup!$AJ$12 & \"'!\" & AF197),0)","v":0},null,"",{"$nulls":3},{"$f":"IF(C197=0,\"\",LEFT(INDEX(Lists!$H$5:$H$49,MATCH(C197,Lists!$G$5:$G$49,0),1),1))","v":""},null,"","","","","","","","","","",{"$nulls":6},{"$f":"IF(Setup!$AG$7<>\"\",INDIRECT(\"'\" & Setup!$AG$7 & \"'!\" & AD197),0) + IF(Setup!$AG$8<>\"\",INDIRECT(\"'\" & Setup!$AG$8 & \"'!\" & AD197),0) + IF(Setup!$AG$9<>\"\",INDIRECT(\"'\" & Setup!$AG$9 & \"'!\" & AD197),0) + IF(Setup!$AG$10<>\"\",INDIRECT(\"'\" & Setup!$AG$10 & \"'!\" & AD197),0) + IF(Setup!$AG$11<>\"\",INDIRECT(\"'\" & Setup!$AG$11 & \"'!\" & AD197),0) + IF(Setup!$AG$12<>\"\",INDIRECT(\"'\" & Setup!$AG$12 & \"'!\" & AD197),0)","v":0},{"$f":"IF(Setup!$AG$7<>\"\",INDIRECT(\"'\" & Setup!$AG$7 & \"'!\" & AE197),0) + IF(Setup!$AG$8<>\"\",INDIRECT(\"'\" & Setup!$AG$8 & \"'!\" & AE197),0) + IF(Setup!$AG$9<>\"\",INDIRECT(\"'\" & Setup!$AG$9 & \"'!\" & AE197),0) + IF(Setup!$AG$10<>\"\",INDIRECT(\"'\" & Setup!$AG$10 & \"'!\" & AE197),0) + IF(Setup!$AG$11<>\"\",INDIRECT(\"'\" & Setup!$AG$11 & \"'!\" & AE197),0) + IF(Setup!$AG$12<>\"\",INDIRECT(\"'\" & Setup!$AG$12 & \"'!\" & AE197),0)","v":0},{"$f":"IF(Setup!$AH$7<>\"\",INDIRECT(\"'\" & Setup!$AH$7 & \"'!\" & AD197),0) + IF(Setup!$AH$8<>\"\",INDIRECT(\"'\" & Setup!$AH$8 & \"'!\" & AD197),0) + IF(Setup!$AH$9<>\"\",INDIRECT(\"'\" & Setup!$AH$9 & \"'!\" & AD197),0) + IF(Setup!$AH$10<>\"\",INDIRECT(\"'\" & Setup!$AH$10 & \"'!\" & AD197),0) + IF(Setup!$AH$11<>\"\",INDIRECT(\"'\" & Setup!$AH$11 & \"'!\" & AD197),0) + IF(Setup!$AH$12<>\"\",INDIRECT(\"'\" & Setup!$AH$12 & \"'!\" & AD197),0)","v":0},{"$f":"IF(Setup!$AH$7<>\"\",INDIRECT(\"'\" & Setup!$AH$7 & \"'!\" & AE197),0) + IF(Setup!$AH$8<>\"\",INDIRECT(\"'\" & Setup!$AH$8 & \"'!\" & AE197),0) + IF(Setup!$AH$9<>\"\",INDIRECT(\"'\" & Setup!$AH$9 & \"'!\" & AE197),0) + IF(Setup!$AH$10<>\"\",INDIRECT(\"'\" & Setup!$AH$10 & \"'!\" & AE197),0) + IF(Setup!$AH$11<>\"\",INDIRECT(\"'\" & Setup!$AH$11 & \"'!\" & AE197),0) + IF(Setup!$AH$12<>\"\",INDIRECT(\"'\" & Setup!$AH$12 & \"'!\" & AE197),0)","v":0},{"$f":"IF(Setup!$AI$7<>\"\",INDIRECT(\"'\" & Setup!$AI$7 & \"'!\" & AD197),0) + IF(Setup!$AI$8<>\"\",INDIRECT(\"'\" & Setup!$AI$8 & \"'!\" & AD197),0) + IF(Setup!$AI$9<>\"\",INDIRECT(\"'\" & Setup!$AI$9 & \"'!\" & AD197),0) + IF(Setup!$AI$10<>\"\",INDIRECT(\"'\" & Setup!$AI$10 & \"'!\" & AD197),0) + IF(Setup!$AI$11<>\"\",INDIRECT(\"'\" & Setup!$AI$11 & \"'!\" & AD197),0) + IF(Setup!$AI$12<>\"\",INDIRECT(\"'\" & Setup!$AI$12 & \"'!\" & AD197),0)","v":0},{"$f":"IF(Setup!$AI$7<>\"\",INDIRECT(\"'\" & Setup!$AI$7 & \"'!\" & AE197),0) + IF(Setup!$AI$8<>\"\",INDIRECT(\"'\" & Setup!$AI$8 & \"'!\" & AE197),0) + IF(Setup!$AI$9<>\"\",INDIRECT(\"'\" & Setup!$AI$9 & \"'!\" & AE197),0) + IF(Setup!$AI$10<>\"\",INDIRECT(\"'\" & Setup!$AI$10 & \"'!\" & AE197),0) + IF(Setup!$AI$11<>\"\",INDIRECT(\"'\" & Setup!$AI$11 & \"'!\" & AE197),0) + IF(Setup!$AI$12<>\"\",INDIRECT(\"'\" & Setup!$AI$12 & \"'!\" & AE197),0)","v":0},{"$f":"IF(Setup!$AJ$7<>\"\",INDIRECT(\"'\" & Setup!$AJ$7 & \"'!\" & AD197),0) + IF(Setup!$AJ$8<>\"\",INDIRECT(\"'\" & Setup!$AJ$8 & \"'!\" & AD197),0) + IF(Setup!$AJ$9<>\"\",INDIRECT(\"'\" & Setup!$AJ$9 & \"'!\" & AD197),0) + IF(Setup!$AJ$10<>\"\",INDIRECT(\"'\" & Setup!$AJ$10 & \"'!\" & AD197),0) + IF(Setup!$AJ$11<>\"\",INDIRECT(\"'\" & Setup!$AJ$11 & \"'!\" & AD197),0) + IF(Setup!$AJ$12<>\"\",INDIRECT(\"'\" & Setup!$AJ$12 & \"'!\" & AD197),0)","v":0},{"$f":"IF(Setup!$AJ$7<>\"\",INDIRECT(\"'\" & Setup!$AJ$7 & \"'!\" & AE197),0) + IF(Setup!$AJ$8<>\"\",INDIRECT(\"'\" & Setup!$AJ$8 & \"'!\" & AE197),0) + IF(Setup!$AJ$9<>\"\",INDIRECT(\"'\" & Setup!$AJ$9 & \"'!\" & AE197),0) + IF(Setup!$AJ$10<>\"\",INDIRECT(\"'\" & Setup!$AJ$10 & \"'!\" & AE197),0) + IF(Setup!$AJ$11<>\"\",INDIRECT(\"'\" & Setup!$AJ$11 & \"'!\" & AE197),0) + IF(Setup!$AJ$12<>\"\",INDIRECT(\"'\" & Setup!$AJ$12 & \"'!\" & AE197),0)","v":0}]
[{"$f":"Planning!A181","v":"I173"},{"$f":"Planning!B181","v":0},{"$f":"Planning!C181","v":0},{"$f":"Planning!D181","v":0},{"$f":"Planning!E181","v":0},{"$f":"Planning!G181","v":0},null,0,0,{"$f":"IF(AND($AR198=\"2\",$AB197<>Lists!$A$17),AU198,AT198)","v":""},"",0,0,{"$f":"IF(AND($AR198=\"2\",$AB198<>Lists!$A$17),AW198,AV198)","v":""},"",0,0,{"$f":"IF(AND($AR198=\"2\",$AB198<>Lists!$A$17),AY198,AX198)","v":""},"",0,0,{"$f":"IF(AND($AR198=\"2\",$AB198<>Lists!$A$17),BA198,AZ198)","v":""},"",0,0,{"$f":"IF(AND($AR198=\"2\",$AB198<>Lists!$A$17),BC198,BB198)","v":""},"",{"$f":"Planning!H181","v":0},"00","H197","J197","I197","",null,{"$f":"IF(Setup!$AG$7<>\"\",INDIRECT(\"'\" & Setup!$AG$7 & \"'!\" & AF198),0) + IF(Setup!$AG$8<>\"\",INDIRECT(\"'\" & Setup!$AG$8 & \"'!\" & AF198),0) + IF(Setup!$AG$9<>\"\",INDIRECT(\"'\" & Setup!$AG$9 & \"'!\" & AF198),0) + IF(Setup!$AG$10<>\"\",INDIRECT(\"'\" & Setup!$AG$10 & \"'!\" & AF198),0) + IF(Setup!$AG$11<>\"\",INDIRECT(\"'\" & Setup!$AG$11 & \"'!\" & AF198),0) + IF(Setup!$AG$12<>\"\",INDIRECT(\"'\" & Setup!$AG$12 & \"'!\" & AF198),0)","v":0},{"$f":"IF(Setup!$AH$7<>\"\",INDIRECT(\"'\" & Setup!$AH$7 & \"'!\" & AF198),0) + IF(Setup!$AH$8<>\"\",INDIRECT(\"'\" & Setup!$AH$8 & \"'!\" & AF198),0) + IF(Setup!$AH$9<>\"\",INDIRECT(\"'\" & Setup!$AH$9 & \"'!\" & AF198),0) + IF(Setup!$AH$10<>\"\",INDIRECT(\"'\" & Setup!$AH$10 & \"'!\" & AF198),0) + IF(Setup!$AH$11<>\"\",INDIRECT(\"'\" & Setup!$AH$11 & \"'!\" & AF198),0) + IF(Setup!$AH$12<>\"\",INDIRECT(\"'\" & Setup!$AH$12 & \"'!\" & AF198),0)","v":0},{"$f":"IF(Setup!$AI$7<>\"\",INDIRECT(\"'\" & Setup!$AI$7 & \"'!\" & AF198),0) + IF(Setup!$AI$8<>\"\",INDIRECT(\"'\" & Setup!$AI$8 & \"'!\" & AF198),0) + IF(Setup!$AI$9<>\"\",INDIRECT(\"'\" & Setup!$AI$9 & \"'!\" & AF198),0) + IF(Setup!$AI$10<>\"\",INDIRECT(\"'\" & Setup!$AI$10 & \"'!\" & AF198),0) + IF(Setup!$AI$11<>\"\",INDIRECT(\"'\" & Setup!$AI$11 & \"'!\" & AF198),0) + IF(Setup!$AI$12<>\"\",INDIRECT(\"'\" & Setup!$AI$12 & \"'!\" & AF198),0)","v":0},{"$f":"IF(Setup!$AJ$7<>\"\",INDIRECT(\"'\" & Setup!$AJ$7 & \"'!\" & AF198),0) + IF(Setup!$AJ$8<>\"\",INDIRECT(\"'\" & Setup!$AJ$8 & \"'!\" & AF198),0) + IF(Setup!$AJ$9<>\"\",INDIRECT(\"'\" & Setup!$AJ$9 & \"'!\" & AF198),0) + IF(Setup!$AJ$10<>\"\",INDIRECT(\"'\" & Setup!$AJ$10 & \"'!\" & AF198),0) + IF(Setup!$AJ$11<>\"\",INDIRECT(\"'\" & Setup!$AJ$11 & \"'!\" & AF198),0) + IF(Setup!$AJ$12<>\"\",INDIRECT(\"'\" & Setup!$AJ$12 & \"'!\" & AF198),0)","v":0},null,"",{"$nulls":3},{"$f":"IF(C198=0,\"\",LEFT(INDEX(Lists!$H$5:$H$49,MATCH(C198,Lists!$G$5:$G$49,0),1),1))","v":""},null,"","","","","","","","","","",{"$nulls":6},{"$f":"IF(Setup!$AG$7<>\"\",INDIRECT(\"'\" & Setup!$AG$7 & \"'!\" & AD198),0) + IF(Setup!$AG$8<>\"\",INDIRECT(\"'\" & Setup!$AG$8 & \"'!\" & AD198),0) + IF(Setup!$AG$9<>\"\",INDIRECT(\"'\" & Setup!$AG$9 & \"'!\" & AD198),0) + IF(Setup!$AG$10<>\"\",INDIRECT(\"'\" & Setup!$AG$10 & \"'!\" & AD198),0) + IF(Setup!$AG$11<>\"\",INDIRECT(\"'\" & Setup!$AG$11 & \"'!\" & AD198),0) + IF(Setup!$AG$12<>\"\",INDIRECT(\"'\" & Setup!$AG$12 & \"'!\" & AD198),0)","v":0},{"$f":"IF(Setup!$AG$7<>\"\",INDIRECT(\"'\" & Setup!$AG$7 & \"'!\" & AE198),0) + IF(Setup!$AG$8<>\"\",INDIRECT(\"'\" & Setup!$AG$8 & \"'!\" & AE198),0) + IF(Setup!$AG$9<>\"\",INDIRECT(\"'\" & Setup!$AG$9 & \"'!\" & AE198),0) + IF(Setup!$AG$10<>\"\",INDIRECT(\"'\" & Setup!$AG$10 & \"'!\" & AE198),0) + IF(Setup!$AG$11<>\"\",INDIRECT(\"'\" & Setup!$AG$11 & \"'!\" & AE198),0) + IF(Setup!$AG$12<>\"\",INDIRECT(\"'\" & Setup!$AG$12 & \"'!\" & AE198),0)","v":0},{"$f":"IF(Setup!$AH$7<>\"\",INDIRECT(\"'\" & Setup!$AH$7 & \"'!\" & AD198),0) + IF(Setup!$AH$8<>\"\",INDIRECT(\"'\" & Setup!$AH$8 & \"'!\" & AD198),0) + IF(Setup!$AH$9<>\"\",INDIRECT(\"'\" & Setup!$AH$9 & \"'!\" & AD198),0) + IF(Setup!$AH$10<>\"\",INDIRECT(\"'\" & Setup!$AH$10 & \"'!\" & AD198),0) + IF(Setup!$AH$11<>\"\",INDIRECT(\"'\" & Setup!$AH$11 & \"'!\" & AD198),0) + IF(Setup!$AH$12<>\"\",INDIRECT(\"'\" & Setup!$AH$12 & \"'!\" & AD198),0)","v":0},{"$f":"IF(Setup!$AH$7<>\"\",INDIRECT(\"'\" & Setup!$AH$7 & \"'!\" & AE198),0) + IF(Setup!$AH$8<>\"\",INDIRECT(\"'\" & Setup!$AH$8 & \"'!\" & AE198),0) + IF(Setup!$AH$9<>\"\",INDIRECT(\"'\" & Setup!$AH$9 & \"'!\" & AE198),0) + IF(Setup!$AH$10<>\"\",INDIRECT(\"'\" & Setup!$AH$10 & \"'!\" & AE198),0) + IF(Setup!$AH$11<>\"\",INDIRECT(\"'\" & Setup!$AH$11 & \"'!\" & AE198),0) + IF(Setup!$AH$12<>\"\",INDIRECT(\"'\" & Setup!$AH$12 & \"'!\" & AE198),0)","v":0},{"$f":"IF(Setup!$AI$7<>\"\",INDIRECT(\"'\" & Setup!$AI$7 & \"'!\" & AD198),0) + IF(Setup!$AI$8<>\"\",INDIRECT(\"'\" & Setup!$AI$8 & \"'!\" & AD198),0) + IF(Setup!$AI$9<>\"\",INDIRECT(\"'\" & Setup!$AI$9 & \"'!\" & AD198),0) + IF(Setup!$AI$10<>\"\",INDIRECT(\"'\" & Setup!$AI$10 & \"'!\" & AD198),0) + IF(Setup!$AI$11<>\"\",INDIRECT(\"'\" & Setup!$AI$11 & \"'!\" & AD198),0) + IF(Setup!$AI$12<>\"\",INDIRECT(\"'\" & Setup!$AI$12 & \"'!\" & AD198),0)","v":0},{"$f":"IF(Setup!$AI$7<>\"\",INDIRECT(\"'\" & Setup!$AI$7 & \"'!\" & AE198),0) + IF(Setup!$AI$8<>\"\",INDIRECT(\"'\" & Setup!$AI$8 & \"'!\" & AE198),0) + IF(Setup!$AI$9<>\"\",INDIRECT(\"'\" & Setup!$AI$9 & \"'!\" & AE198),0) + IF(Setup!$AI$10<>\"\",INDIRECT(\"'\" & Setup!$AI$10 & \"'!\" & AE198),0) + IF(Setup!$AI$11<>\"\",INDIRECT(\"'\" & Setup!$AI$11 & \"'!\" & AE198),0) + IF(Setup!$AI$12<>\"\",INDIRECT(\"'\" & Setup!$AI$12 & \"'!\" & AE198),0)","v":0},{"$f":"IF(Setup!$AJ$7<>\"\",INDIRECT(\"'\" & Setup!$AJ$7 & \"'!\" & AD198),0) + IF(Setup!$AJ$8<>\"\",INDIRECT(\"'\" & Setup!$AJ$8 & \"'!\" & AD198),0) + IF(Setup!$AJ$9<>\"\",INDIRECT(\"'\" & Setup!$AJ$9 & \"'!\" & AD198),0) + IF(Setup!$AJ$10<>\"\",INDIRECT(\"'\" & Setup!$AJ$10 & \"'!\" & AD198),0) + IF(Setup!$AJ$11<>\"\",INDIRECT(\"'\" & Setup!$AJ$11 & \"'!\" & AD198),0) + IF(Setup!$AJ$12<>\"\",INDIRECT(\"'\" & Setup!$AJ$12 & \"'!\" & AD198),0)","v":0},{"$f":"IF(Setup!$AJ$7<>\"\",INDIRECT(\"'\" & Setup!$AJ$7 & \"'!\" & AE198),0) + IF(Setup!$AJ$8<>\"\",INDIRECT(\"'\" & Setup!$AJ$8 & \"'!\" & AE198),0) + IF(Setup!$AJ$9<>\"\",INDIRECT(\"'\" & Setup!$AJ$9 & \"'!\" & AE198),0) + IF(Setup!$AJ$10<>\"\",INDIRECT(\"'\" & Setup!$AJ$10 & \"'!\" & AE198),0) + IF(Setup!$AJ$11<>\"\",INDIRECT(\"'\" & Setup!$AJ$11 & \"'!\" & AE198),0) + IF(Setup!$AJ$12<>\"\",INDIRECT(\"'\" & Setup!$AJ$12 & \"'!\" & AE198),0)","v":0}]
[{"$f":"Planning!A182","v":"I174"},{"$f":"Planning!B182","v":0},{"$f":"Planning!C182","v":0},{"$f":"Planning!D182","v":0},{"$f":"Planning!E182","v":0},{"$f":"Planning!G182","v":0},null,0,0,{"$f":"IF(AND($AR199=\"2\",$AB198<>Lists!$A$17),AU199,AT199)","v":""},"",0,0,{"$f":"IF(AND($AR199=\"2\",$AB199<>Lists!$A$17),AW199,AV199)","v":""},"",0,0,{"$f":"IF(AND($AR199=\"2\",$AB199<>Lists!$A$17),AY199,AX199)","v":""},"",0,0,{"$f":"IF(AND($AR199=\"2\",$AB199<>Lists!$A$17),BA199,AZ199)","v":""},"",0,0,{"$f":"IF(AND($AR199=\"2\",$AB199<>Lists!$A$17),BC199,BB199)","v":""},"",{"$f":"Planning!H182","v":0},"00","H198","J198","I198","",null,{"$f":"IF(Setup!$AG$7<>\"\",INDIRECT(\"'\" & Setup!$AG$7 & \"'!\" & AF199),0) + IF(Setup!$AG$8<>\"\",INDIRECT(\"'\" & Setup!$AG$8 & \"'!\" & AF199),0) + IF(Setup!$AG$9<>\"\",INDIRECT(\"'\" & Setup!$AG$9 & \"'!\" & AF199),0) + IF(Setup!$AG$10<>\"\",INDIRECT(\"'\" & Setup!$AG$10 & \"'!\" & AF199),0) + IF(Setup!$AG$11<>\"\",INDIRECT(\"'\" & Setup!$AG$11 & \"'!\" & AF199),0) + IF(Setup!$AG$12<>\"\",INDIRECT(\"'\" & Setup!$AG$12 & \"'!\" & AF199),0)","v":0},{"$f":"IF(Setup!$AH$7<>\"\",INDIRECT(\"'\" & Setup!$AH$7 & \"'!\" & AF199),0) + IF(Setup!$AH$8<>\"\",INDIRECT(\"'\" & Setup!$AH$8 & \"'!\" & AF199),0) + IF(Setup!$AH$9<>\"\",INDIRECT(\"'\" & Setup!$AH$9 & \"'!\" & AF199),0) + IF(Setup!$AH$10<>\"\",INDIRECT(\"'\" & Setup!$AH$10 & \"'!\" & AF199),0) + IF(Setup!$AH$11<>\"\",INDIRECT(\"'\" & Setup!$AH$11 & \"'!\" & AF199),0) + IF(Setup!$AH$12<>\"\",INDIRECT(\"'\" & Setup!$AH$12 & \"'!\" & AF199),0)","v":0},{"$f":"IF(Setup!$AI$7<>\"\",INDIRECT(\"'\" & Setup!$AI$7 & \"'!\" & AF199),0) + IF(Setup!$AI$8<>\"\",INDIRECT(\"'\" & Setup!$AI$8 & \"'!\" & AF199),0) + IF(Setup!$AI$9<>\"\",INDIRECT(\"'\" & Setup!$AI$9 & \"'!\" & AF199),0) + IF(Setup!$AI$10<>\"\",INDIRECT(\"'\" & Setup!$AI$10 & \"'!\" & AF199),0) + IF(Setup!$AI$11<>\"\",INDIRECT(\"'\" & Setup!$AI$11 & \"'!\" & AF199),0) + IF(Setup!$AI$12<>\"\",INDIRECT(\"'\" & Setup!$AI$12 & \"'!\" & AF199),0)","v":0},{"$f":"IF(Setup!$AJ$7<>\"\",INDIRECT(\"'\" & Setup!$AJ$7 & \"'!\" & AF199),0) + IF(Setup!$AJ$8<>\"\",INDIRECT(\"'\" & Setup!$AJ$8 & \"'!\" & AF199),0) + IF(Setup!$AJ$9<>\"\",INDIRECT(\"'\" & Setup!$AJ$9 & \"'!\" & AF199),0) + IF(Setup!$AJ$10<>\"\",INDIRECT(\"'\" & Setup!$AJ$10 & \"'!\" & AF199),0) + IF(Setup!$AJ$11<>\"\",INDIRECT(\"'\" & Setup!$AJ$11 & \"'!\" & AF199),0) + IF(Setup!$AJ$12<>\"\",INDIRECT(\"'\" & Setup!$AJ$12 & \"'!\" & AF199),0)","v":0},null,"",{"$nulls":3},{"$f":"IF(C199=0,\"\",LEFT(INDEX(Lists!$H$5:$H$49,MATCH(C199,Lists!$G$5:$G$49,0),1),1))","v":""},null,"","","","","","","","","","",{"$nulls":6},{"$f":"IF(Setup!$AG$7<>\"\",INDIRECT(\"'\" & Setup!$AG$7 & \"'!\" & AD199),0) + IF(Setup!$AG$8<>\"\",INDIRECT(\"'\" & Setup!$AG$8 & \"'!\" & AD199),0) + IF(Setup!$AG$9<>\"\",INDIRECT(\"'\" & Setup!$AG$9 & \"'!\" & AD199),0) + IF(Setup!$AG$10<>\"\",INDIRECT(\"'\" & Setup!$AG$10 & \"'!\" & AD199),0) + IF(Setup!$AG$11<>\"\",INDIRECT(\"'\" & Setup!$AG$11 & \"'!\" & AD199),0) + IF(Setup!$AG$12<>\"\",INDIRECT(\"'\" & Setup!$AG$12 & \"'!\" & AD199),0)","v":0},{"$f":"IF(Setup!$AG$7<>\"\",INDIRECT(\"'\" & Setup!$AG$7 & \"'!\" & AE199),0) + IF(Setup!$AG$8<>\"\",INDIRECT(\"'\" & Setup!$AG$8 & \"'!\" & AE199),0) + IF(Setup!$AG$9<>\"\",INDIRECT(\"'\" & Setup!$AG$9 & \"'!\" & AE199),0) + IF(Setup!$AG$10<>\"\",INDIRECT(\"'\" & Setup!$AG$10 & \"'!\" & AE199),0) + IF(Setup!$AG$11<>\"\",INDIRECT(\"'\" & Setup!$AG$11 & \"'!\" & AE199),0) + IF(Setup!$AG$12<>\"\",INDIRECT(\"'\" & Setup!$AG$12 & \"'!\" & AE199),0)","v":0},{"$f":"IF(Setup!$AH$7<>\"\",INDIRECT(\"'\" & Setup!$AH$7 & \"'!\" & AD199),0) + IF(Setup!$AH$8<>\"\",INDIRECT(\"'\" & Setup!$AH$8 & \"'!\" & AD199),0) + IF(Setup!$AH$9<>\"\",INDIRECT(\"'\" & Setup!$AH$9 & \"'!\" & AD199),0) + IF(Setup!$AH$10<>\"\",INDIRECT(\"'\" & Setup!$AH$10 & \"'!\" & AD199),0) + IF(Setup!$AH$11<>\"\",INDIRECT(\"'\" & Setup!$AH$11 & \"'!\" & AD199),0) + IF(Setup!$AH$12<>\"\",INDIRECT(\"'\" & Setup!$AH$12 & \"'!\" & AD199),0)","v":0},{"$f":"IF(Setup!$AH$7<>\"\",INDIRECT(\"'\" & Setup!$AH$7 & \"'!\" & AE199),0) + IF(Setup!$AH$8<>\"\",INDIRECT(\"'\" & Setup!$AH$8 & \"'!\" & AE199),0) + IF(Setup!$AH$9<>\"\",INDIRECT(\"'\" & Setup!$AH$9 & \"'!\" & AE199),0) + IF(Setup!$AH$10<>\"\",INDIRECT(\"'\" & Setup!$AH$10 & \"'!\" & AE199),0) + IF(Setup!$AH$11<>\"\",INDIRECT(\"'\" & Setup!$AH$11 & \"'!\" & AE199),0) + IF(Setup!$AH$12<>\"\",INDIRECT(\"'\" & Setup!$AH$12 & \"'!\" & AE199),0)","v":0},{"$f":"IF(Setup!$AI$7<>\"\",INDIRECT(\"'\" & Setup!$AI$7 & \"'!\" & AD199),0) + IF(Setup!$AI$8<>\"\",INDIRECT(\"'\" & Setup!$AI$8 & \"'!\" & AD199),0) + IF(Setup!$AI$9<>\"\",INDIRECT(\"'\" & Setup!$AI$9 & \"'!\" & AD199),0) + IF(Setup!$AI$10<>\"\",INDIRECT(\"'\" & Setup!$AI$10 & \"'!\" & AD199),0) + IF(Setup!$AI$11<>\"\",INDIRECT(\"'\" & Setup!$AI$11 & \"'!\" & AD199),0) + IF(Setup!$AI$12<>\"\",INDIRECT(\"'\" & Setup!$AI$12 & \"'!\" & AD199),0)","v":0},{"$f":"IF(Setup!$AI$7<>\"\",INDIRECT(\"'\" & Setup!$AI$7 & \"'!\" & AE199),0) + IF(Setup!$AI$8<>\"\",INDIRECT(\"'\" & Setup!$AI$8 & \"'!\" & AE199),0) + IF(Setup!$AI$9<>\"\",INDIRECT(\"'\" & Setup!$AI$9 & \"'!\" & AE199),0) + IF(Setup!$AI$10<>\"\",INDIRECT(\"'\" & Setup!$AI$10 & \"'!\" & AE199),0) + IF(Setup!$AI$11<>\"\",INDIRECT(\"'\" & Setup!$AI$11 & \"'!\" & AE199),0) + IF(Setup!$AI$12<>\"\",INDIRECT(\"'\" & Setup!$AI$12 & \"'!\" & AE199),0)","v":0},{"$f":"IF(Setup!$AJ$7<>\"\",INDIRECT(\"'\" & Setup!$AJ$7 & \"'!\" & AD199),0) + IF(Setup!$AJ$8<>\"\",INDIRECT(\"'\" & Setup!$AJ$8 & \"'!\" & AD199),0) + IF(Setup!$AJ$9<>\"\",INDIRECT(\"'\" & Setup!$AJ$9 & \"'!\" & AD199),0) + IF(Setup!$AJ$10<>\"\",INDIRECT(\"'\" & Setup!$AJ$10 & \"'!\" & AD199),0) + IF(Setup!$AJ$11<>\"\",INDIRECT(\"'\" & Setup!$AJ$11 & \"'!\" & AD199),0) + IF(Setup!$AJ$12<>\"\",INDIRECT(\"'\" & Setup!$AJ$12 & \"'!\" & AD199),0)","v":0},{"$f":"IF(Setup!$AJ$7<>\"\",INDIRECT(\"'\" & Setup!$AJ$7 & \"'!\" & AE199),0) + IF(Setup!$AJ$8<>\"\",INDIRECT(\"'\" & Setup!$AJ$8 & \"'!\" & AE199),0) + IF(Setup!$AJ$9<>\"\",INDIRECT(\"'\" & Setup!$AJ$9 & \"'!\" & AE199),0) + IF(Setup!$AJ$10<>\"\",INDIRECT(\"'\" & Setup!$AJ$10 & \"'!\" & AE199),0) + IF(Setup!$AJ$11<>\"\",INDIRECT(\"'\" & Setup!$AJ$11 & \"'!\" & AE199),0) + IF(Setup!$AJ$12<>\"\",INDIRECT(\"'\" & Setup!$AJ$12 & \"'!\" & AE199),0)","v":0}]
[{"$f":"Planning!A183","v":"I175"},{"$f":"Planning!B183","v":0},{"$f":"Planning!C183","v":0},{"$f":"Planning!D183","v":0},{"$f":"Planning!E183","v":0},{"$f":"Planning!G183","v":0},null,0,0,{"$f":"IF(AND($AR200=\"2\",$AB199<>Lists!$A$17),AU200,AT200)","v":""},"",0,0,{"$f":"IF(AND($AR200=\"2\",$AB200<>Lists!$A$17),AW200,AV200)","v":""},"",0,0,{"$f":"IF(AND($AR200=\"2\",$AB200<>Lists!$A$17),AY200,AX200)","v":""},"",0,0,{"$f":"IF(AND($AR200=\"2\",$AB200<>Lists!$A$17),BA200,AZ200)","v":""},"",0,0,{"$f":"IF(AND($AR200=\"2\",$AB200<>Lists!$A$17),BC200,BB200)","v":""},"",{"$f":"Planning!H183","v":0},"00","H199","J199","I199","",null,{"$f":"IF(Setup!$AG$7<>\"\",INDIRECT(\"'\" & Setup!$AG$7 & \"'!\" & AF200),0) + IF(Setup!$AG$8<>\"\",INDIRECT(\"'\" & Setup!$AG$8 & \"'!\" & AF200),0) + IF(Setup!$AG$9<>\"\",INDIRECT(\"'\" & Setup!$AG$9 & \"'!\" & AF200),0) + IF(Setup!$AG$10<>\"\",INDIRECT(\"'\" & Setup!$AG$10 & \"'!\" & AF200),0) + IF(Setup!$AG$11<>\"\",INDIRECT(\"'\" & Setup!$AG$11 & \"'!\" & AF200),0) + IF(Setup!$AG$12<>\"\",INDIRECT(\"'\" & Setup!$AG$12 & \"'!\" & AF200),0)","v":0},{"$f":"IF(Setup!$AH$7<>\"\",INDIRECT(\"'\" & Setup!$AH$7 & \"'!\" & AF200),0) + IF(Setup!$AH$8<>\"\",INDIRECT(\"'\" & Setup!$AH$8 & \"'!\" & AF200),0) + IF(Setup!$AH$9<>\"\",INDIRECT(\"'\" & Setup!$AH$9 & \"'!\" & AF200),0) + IF(Setup!$AH$10<>\"\",INDIRECT(\"'\" & Setup!$AH$10 & \"'!\" & AF200),0) + IF(Setup!$AH$11<>\"\",INDIRECT(\"'\" & Setup!$AH$11 & \"'!\" & AF200),0) + IF(Setup!$AH$12<>\"\",INDIRECT(\"'\" & Setup!$AH$12 & \"'!\" & AF200),0)","v":0},{"$f":"IF(Setup!$AI$7<>\"\",INDIRECT(\"'\" & Setup!$AI$7 & \"'!\" & AF200),0) + IF(Setup!$AI$8<>\"\",INDIRECT(\"'\" & Setup!$AI$8 & \"'!\" & AF200),0) + IF(Setup!$AI$9<>\"\",INDIRECT(\"'\" & Setup!$AI$9 & \"'!\" & AF200),0) + IF(Setup!$AI$10<>\"\",INDIRECT(\"'\" & Setup!$AI$10 & \"'!\" & AF200),0) + IF(Setup!$AI$11<>\"\",INDIRECT(\"'\" & Setup!$AI$11 & \"'!\" & AF200),0) + IF(Setup!$AI$12<>\"\",INDIRECT(\"'\" & Setup!$AI$12 & \"'!\" & AF200),0)","v":0},{"$f":"IF(Setup!$AJ$7<>\"\",INDIRECT(\"'\" & Setup!$AJ$7 & \"'!\" & AF200),0) + IF(Setup!$AJ$8<>\"\",INDIRECT(\"'\" & Setup!$AJ$8 & \"'!\" & AF200),0) + IF(Setup!$AJ$9<>\"\",INDIRECT(\"'\" & Setup!$AJ$9 & \"'!\" & AF200),0) + IF(Setup!$AJ$10<>\"\",INDIRECT(\"'\" & Setup!$AJ$10 & \"'!\" & AF200),0) + IF(Setup!$AJ$11<>\"\",INDIRECT(\"'\" & Setup!$AJ$11 & \"'!\" & AF200),0) + IF(Setup!$AJ$12<>\"\",INDIRECT(\"'\" & Setup!$AJ$12 & \"'!\" & AF200),0)","v":0},null,"",{"$nulls":3},{"$f":"IF(C200=0,\"\",LEFT(INDEX(Lists!$H$5:$H$49,MATCH(C200,Lists!$G$5:$G$49,0),1),1))","v":""},null,"","","","","","","","","","",{"$nulls":6},{"$f":"IF(Setup!$AG$7<>\"\",INDIRECT(\"'\" & Setup!$AG$7 & \"'!\" & AD200),0) + IF(Setup!$AG$8<>\"\",INDIRECT(\"'\" & Setup!$AG$8 & \"'!\" & AD200),0) + IF(Setup!$AG$9<>\"\",INDIRECT(\"'\" & Setup!$AG$9 & \"'!\" & AD200),0) + IF(Setup!$AG$10<>\"\",INDIRECT(\"'\" & Setup!$AG$10 & \"'!\" & AD200),0) + IF(Setup!$AG$11<>\"\",INDIRECT(\"'\" & Setup!$AG$11 & \"'!\" & AD200),0) + IF(Setup!$AG$12<>\"\",INDIRECT(\"'\" & Setup!$AG$12 & \"'!\" & AD200),0)","v":0},{"$f":"IF(Setup!$AG$7<>\"\",INDIRECT(\"'\" & Setup!$AG$7 & \"'!\" & AE200),0) + IF(Setup!$AG$8<>\"\",INDIRECT(\"'\" & Setup!$AG$8 & \"'!\" & AE200),0) + IF(Setup!$AG$9<>\"\",INDIRECT(\"'\" & Setup!$AG$9 & \"'!\" & AE200),0) + IF(Setup!$AG$10<>\"\",INDIRECT(\"'\" & Setup!$AG$10 & \"'!\" & AE200),0) + IF(Setup!$AG$11<>\"\",INDIRECT(\"'\" & Setup!$AG$11 & \"'!\" & AE200),0) + IF(Setup!$AG$12<>\"\",INDIRECT(\"'\" & Setup!$AG$12 & \"'!\" & AE200),0)","v":0},{"$f":"IF(Setup!$AH$7<>\"\",INDIRECT(\"'\" & Setup!$AH$7 & \"'!\" & AD200),0) + IF(Setup!$AH$8<>\"\",INDIRECT(\"'\" & Setup!$AH$8 & \"'!\" & AD200),0) + IF(Setup!$AH$9<>\"\",INDIRECT(\"'\" & Setup!$AH$9 & \"'!\" & AD200),0) + IF(Setup!$AH$10<>\"\",INDIRECT(\"'\" & Setup!$AH$10 & \"'!\" & AD200),0) + IF(Setup!$AH$11<>\"\",INDIRECT(\"'\" & Setup!$AH$11 & \"'!\" & AD200),0) + IF(Setup!$AH$12<>\"\",INDIRECT(\"'\" & Setup!$AH$12 & \"'!\" & AD200),0)","v":0},{"$f":"IF(Setup!$AH$7<>\"\",INDIRECT(\"'\" & Setup!$AH$7 & \"'!\" & AE200),0) + IF(Setup!$AH$8<>\"\",INDIRECT(\"'\" & Setup!$AH$8 & \"'!\" & AE200),0) + IF(Setup!$AH$9<>\"\",INDIRECT(\"'\" & Setup!$AH$9 & \"'!\" & AE200),0) + IF(Setup!$AH$10<>\"\",INDIRECT(\"'\" & Setup!$AH$10 & \"'!\" & AE200),0) + IF(Setup!$AH$11<>\"\",INDIRECT(\"'\" & Setup!$AH$11 & \"'!\" & AE200),0) + IF(Setup!$AH$12<>\"\",INDIRECT(\"'\" & Setup!$AH$12 & \"'!\" & AE200),0)","v":0},{"$f":"IF(Setup!$AI$7<>\"\",INDIRECT(\"'\" & Setup!$AI$7 & \"'!\" & AD200),0) + IF(Setup!$AI$8<>\"\",INDIRECT(\"'\" & Setup!$AI$8 & \"'!\" & AD200),0) + IF(Setup!$AI$9<>\"\",INDIRECT(\"'\" & Setup!$AI$9 & \"'!\" & AD200),0) + IF(Setup!$AI$10<>\"\",INDIRECT(\"'\" & Setup!$AI$10 & \"'!\" & AD200),0) + IF(Setup!$AI$11<>\"\",INDIRECT(\"'\" & Setup!$AI$11 & \"'!\" & AD200),0) + IF(Setup!$AI$12<>\"\",INDIRECT(\"'\" & Setup!$AI$12 & \"'!\" & AD200),0)","v":0},{"$f":"IF(Setup!$AI$7<>\"\",INDIRECT(\"'\" & Setup!$AI$7 & \"'!\" & AE200),0) + IF(Setup!$AI$8<>\"\",INDIRECT(\"'\" & Setup!$AI$8 & \"'!\" & AE200),0) + IF(Setup!$AI$9<>\"\",INDIRECT(\"'\" & Setup!$AI$9 & \"'!\" & AE200),0) + IF(Setup!$AI$10<>\"\",INDIRECT(\"'\" & Setup!$AI$10 & \"'!\" & AE200),0) + IF(Setup!$AI$11<>\"\",INDIRECT(\"'\" & Setup!$AI$11 & \"'!\" & AE200),0) + IF(Setup!$AI$12<>\"\",INDIRECT(\"'\" & Setup!$AI$12 & \"'!\" & AE200),0)","v":0},{"$f":"IF(Setup!$AJ$7<>\"\",INDIRECT(\"'\" & Setup!$AJ$7 & \"'!\" & AD200),0) + IF(Setup!$AJ$8<>\"\",INDIRECT(\"'\" & Setup!$AJ$8 & \"'!\" & AD200),0) + IF(Setup!$AJ$9<>\"\",INDIRECT(\"'\" & Setup!$AJ$9 & \"'!\" & AD200),0) + IF(Setup!$AJ$10<>\"\",INDIRECT(\"'\" & Setup!$AJ$10 & \"'!\" & AD200),0) + IF(Setup!$AJ$11<>\"\",INDIRECT(\"'\" & Setup!$AJ$11 & \"'!\" & AD200),0) + IF(Setup!$AJ$12<>\"\",INDIRECT(\"'\" & Setup!$AJ$12 & \"'!\" & AD200),0)","v":0},{"$f":"IF(Setup!$AJ$7<>\"\",INDIRECT(\"'\" & Setup!$AJ$7 & \"'!\" & AE200),0) + IF(Setup!$AJ$8<>\"\",INDIRECT(\"'\" & Setup!$AJ$8 & \"'!\" & AE200),0) + IF(Setup!$AJ$9<>\"\",INDIRECT(\"'\" & Setup!$AJ$9 & \"'!\" & AE200),0) + IF(Setup!$AJ$10<>\"\",INDIRECT(\"'\" & Setup!$AJ$10 & \"'!\" & AE200),0) + IF(Setup!$AJ$11<>\"\",INDIRECT(\"'\" & Setup!$AJ$11 & \"'!\" & AE200),0) + IF(Setup!$AJ$12<>\"\",INDIRECT(\"'\" & Setup!$AJ$12 & \"'!\" & AE200),0)","v":0}]
[{"$f":"Planning!A184","v":"I176"},{"$f":"Planning!B184","v":0},{"$f":"Planning!C184","v":0},{"$f":"Planning!D184","v":0},{"$f":"Planning!E184","v":0},{"$f":"Planning!G184","v":0},null,0,0,{"$f":"IF(AND($AR201=\"2\",$AB200<>Lists!$A$17),AU201,AT201)","v":""},"",0,0,{"$f":"IF(AND($AR201=\"2\",$AB201<>Lists!$A$17),AW201,AV201)","v":""},"",0,0,{"$f":"IF(AND($AR201=\"2\",$AB201<>Lists!$A$17),AY201,AX201)","v":""},"",0,0,{"$f":"IF(AND($AR201=\"2\",$AB201<>Lists!$A$17),BA201,AZ201)","v":""},"",0,0,{"$f":"IF(AND($AR201=\"2\",$AB201<>Lists!$A$17),BC201,BB201)","v":""},"",{"$f":"Planning!H184","v":0},"00","H200","J200","I200","",null,{"$f":"IF(Setup!$AG$7<>\"\",INDIRECT(\"'\" & Setup!$AG$7 & \"'!\" & AF201),0) + IF(Setup!$AG$8<>\"\",INDIRECT(\"'\" & Setup!$AG$8 & \"'!\" & AF201),0) + IF(Setup!$AG$9<>\"\",INDIRECT(\"'\" & Setup!$AG$9 & \"'!\" & AF201),0) + IF(Setup!$AG$10<>\"\",INDIRECT(\"'\" & Setup!$AG$10 & \"'!\" & AF201),0) + IF(Setup!$AG$11<>\"\",INDIRECT(\"'\" & Setup!$AG$11 & \"'!\" & AF201),0) + IF(Setup!$AG$12<>\"\",INDIRECT(\"'\" & Setup!$AG$12 & \"'!\" & AF201),0)","v":0},{"$f":"IF(Setup!$AH$7<>\"\",INDIRECT(\"'\" & Setup!$AH$7 & \"'!\" & AF201),0) + IF(Setup!$AH$8<>\"\",INDIRECT(\"'\" & Setup!$AH$8 & \"'!\" & AF201),0) + IF(Setup!$AH$9<>\"\",INDIRECT(\"'\" & Setup!$AH$9 & \"'!\" & AF201),0) + IF(Setup!$AH$10<>\"\",INDIRECT(\"'\" & Setup!$AH$10 & \"'!\" & AF201),0) + IF(Setup!$AH$11<>\"\",INDIRECT(\"'\" & Setup!$AH$11 & \"'!\" & AF201),0) + IF(Setup!$AH$12<>\"\",INDIRECT(\"'\" & Setup!$AH$12 & \"'!\" & AF201),0)","v":0},{"$f":"IF(Setup!$AI$7<>\"\",INDIRECT(\"'\" & Setup!$AI$7 & \"'!\" & AF201),0) + IF(Setup!$AI$8<>\"\",INDIRECT(\"'\" & Setup!$AI$8 & \"'!\" & AF201),0) + IF(Setup!$AI$9<>\"\",INDIRECT(\"'\" & Setup!$AI$9 & \"'!\" & AF201),0) + IF(Setup!$AI$10<>\"\",INDIRECT(\"'\" & Setup!$AI$10 & \"'!\" & AF201),0) + IF(Setup!$AI$11<>\"\",INDIRECT(\"'\" & Setup!$AI$11 & \"'!\" & AF201),0) + IF(Setup!$AI$12<>\"\",INDIRECT(\"'\" & Setup!$AI$12 & \"'!\" & AF201),0)","v":0},{"$f":"IF(Setup!$AJ$7<>\"\",INDIRECT(\"'\" & Setup!$AJ$7 & \"'!\" & AF201),0) + IF(Setup!$AJ$8<>\"\",INDIRECT(\"'\" & Setup!$AJ$8 & \"'!\" & AF201),0) + IF(Setup!$AJ$9<>\"\",INDIRECT(\"'\" & Setup!$AJ$9 & \"'!\" & AF201),0) + IF(Setup!$AJ$10<>\"\",INDIRECT(\"'\" & Setup!$AJ$10 & \"'!\" & AF201),0) + IF(Setup!$AJ$11<>\"\",INDIRECT(\"'\" & Setup!$AJ$11 & \"'!\" & AF201),0) + IF(Setup!$AJ$12<>\"\",INDIRECT(\"'\" & Setup!$AJ$12 & \"'!\" & AF201),0)","v":0},null,"",{"$nulls":3},{"$f":"IF(C201=0,\"\",LEFT(INDEX(Lists!$H$5:$H$49,MATCH(C201,Lists!$G$5:$G$49,0),1),1))","v":""},null,"","","","","","","","","","",{"$nulls":6},{"$f":"IF(Setup!$AG$7<>\"\",INDIRECT(\"'\" & Setup!$AG$7 & \"'!\" & AD201),0) + IF(Setup!$AG$8<>\"\",INDIRECT(\"'\" & Setup!$AG$8 & \"'!\" & AD201),0) + IF(Setup!$AG$9<>\"\",INDIRECT(\"'\" & Setup!$AG$9 & \"'!\" & AD201),0) + IF(Setup!$AG$10<>\"\",INDIRECT(\"'\" & Setup!$AG$10 & \"'!\" & AD201),0) + IF(Setup!$AG$11<>\"\",INDIRECT(\"'\" & Setup!$AG$11 & \"'!\" & AD201),0) + IF(Setup!$AG$12<>\"\",INDIRECT(\"'\" & Setup!$AG$12 & \"'!\" & AD201),0)","v":0},{"$f":"IF(Setup!$AG$7<>\"\",INDIRECT(\"'\" & Setup!$AG$7 & \"'!\" & AE201),0) + IF(Setup!$AG$8<>\"\",INDIRECT(\"'\" & Setup!$AG$8 & \"'!\" & AE201),0) + IF(Setup!$AG$9<>\"\",INDIRECT(\"'\" & Setup!$AG$9 & \"'!\" & AE201),0) + IF(Setup!$AG$10<>\"\",INDIRECT(\"'\" & Setup!$AG$10 & \"'!\" & AE201),0) + IF(Setup!$AG$11<>\"\",INDIRECT(\"'\" & Setup!$AG$11 & \"'!\" & AE201),0) + IF(Setup!$AG$12<>\"\",INDIRECT(\"'\" & Setup!$AG$12 & \"'!\" & AE201),0)","v":0},{"$f":"IF(Setup!$AH$7<>\"\",INDIRECT(\"'\" & Setup!$AH$7 & \"'!\" & AD201),0) + IF(Setup!$AH$8<>\"\",INDIRECT(\"'\" & Setup!$AH$8 & \"'!\" & AD201),0) + IF(Setup!$AH$9<>\"\",INDIRECT(\"'\" & Setup!$AH$9 & \"'!\" & AD201),0) + IF(Setup!$AH$10<>\"\",INDIRECT(\"'\" & Setup!$AH$10 & \"'!\" & AD201),0) + IF(Setup!$AH$11<>\"\",INDIRECT(\"'\" & Setup!$AH$11 & \"'!\" & AD201),0) + IF(Setup!$AH$12<>\"\",INDIRECT(\"'\" & Setup!$AH$12 & \"'!\" & AD201),0)","v":0},{"$f":"IF(Setup!$AH$7<>\"\",INDIRECT(\"'\" & Setup!$AH$7 & \"'!\" & AE201),0) + IF(Setup!$AH$8<>\"\",INDIRECT(\"'\" & Setup!$AH$8 & \"'!\" & AE201),0) + IF(Setup!$AH$9<>\"\",INDIRECT(\"'\" & Setup!$AH$9 & \"'!\" & AE201),0) + IF(Setup!$AH$10<>\"\",INDIRECT(\"'\" & Setup!$AH$10 & \"'!\" & AE201),0) + IF(Setup!$AH$11<>\"\",INDIRECT(\"'\" & Setup!$AH$11 & \"'!\" & AE201),0) + IF(Setup!$AH$12<>\"\",INDIRECT(\"'\" & Setup!$AH$12 & \"'!\" & AE201),0)","v":0},{"$f":"IF(Setup!$AI$7<>\"\",INDIRECT(\"'\" & Setup!$AI$7 & \"'!\" & AD201),0) + IF(Setup!$AI$8<>\"\",INDIRECT(\"'\" & Setup!$AI$8 & \"'!\" & AD201),0) + IF(Setup!$AI$9<>\"\",INDIRECT(\"'\" & Setup!$AI$9 & \"'!\" & AD201),0) + IF(Setup!$AI$10<>\"\",INDIRECT(\"'\" & Setup!$AI$10 & \"'!\" & AD201),0) + IF(Setup!$AI$11<>\"\",INDIRECT(\"'\" & Setup!$AI$11 & \"'!\" & AD201),0) + IF(Setup!$AI$12<>\"\",INDIRECT(\"'\" & Setup!$AI$12 & \"'!\" & AD201),0)","v":0},{"$f":"IF(Setup!$AI$7<>\"\",INDIRECT(\"'\" & Setup!$AI$7 & \"'!\" & AE201),0) + IF(Setup!$AI$8<>\"\",INDIRECT(\"'\" & Setup!$AI$8 & \"'!\" & AE201),0) + IF(Setup!$AI$9<>\"\",INDIRECT(\"'\" & Setup!$AI$9 & \"'!\" & AE201),0) + IF(Setup!$AI$10<>\"\",INDIRECT(\"'\" & Setup!$AI$10 & \"'!\" & AE201),0) + IF(Setup!$AI$11<>\"\",INDIRECT(\"'\" & Setup!$AI$11 & \"'!\" & AE201),0) + IF(Setup!$AI$12<>\"\",INDIRECT(\"'\" & Setup!$AI$12 & \"'!\" & AE201),0)","v":0},{"$f":"IF(Setup!$AJ$7<>\"\",INDIRECT(\"'\" & Setup!$AJ$7 & \"'!\" & AD201),0) + IF(Setup!$AJ$8<>\"\",INDIRECT(\"'\" & Setup!$AJ$8 & \"'!\" & AD201),0) + IF(Setup!$AJ$9<>\"\",INDIRECT(\"'\" & Setup!$AJ$9 & \"'!\" & AD201),0) + IF(Setup!$AJ$10<>\"\",INDIRECT(\"'\" & Setup!$AJ$10 & \"'!\" & AD201),0) + IF(Setup!$AJ$11<>\"\",INDIRECT(\"'\" & Setup!$AJ$11 & \"'!\" & AD201),0) + IF(Setup!$AJ$12<>\"\",INDIRECT(\"'\" & Setup!$AJ$12 & \"'!\" & AD201),0)","v":0},{"$f":"IF(Setup!$AJ$7<>\"\",INDIRECT(\"'\" & Setup!$AJ$7 & \"'!\" & AE201),0) + IF(Setup!$AJ$8<>\"\",INDIRECT(\"'\" & Setup!$AJ$8 & \"'!\" & AE201),0) + IF(Setup!$AJ$9<>\"\",INDIRECT(\"'\" & Setup!$AJ$9 & \"'!\" & AE201),0) + IF(Setup!$AJ$10<>\"\",INDIRECT(\"'\" & Setup!$AJ$10 & \"'!\" & AE201),0) + IF(Setup!$AJ$11<>\"\",INDIRECT(\"'\" & Setup!$AJ$11 & \"'!\" & AE201),0) + IF(Setup!$AJ$12<>\"\",INDIRECT(\"'\" & Setup!$AJ$12 & \"'!\" & AE201),0)","v":0}]
[{"$f":"Planning!A185","v":"I177"},{"$f":"Planning!B185","v":0},{"$f":"Planning!C185","v":0},{"$f":"Planning!D185","v":0},{"$f":"Planning!E185","v":0},{"$f":"Planning!G185","v":0},null,0,0,{"$f":"IF(AND($AR202=\"2\",$AB201<>Lists!$A$17),AU202,AT202)","v":""},"",0,0,{"$f":"IF(AND($AR202=\"2\",$AB202<>Lists!$A$17),AW202,AV202)","v":""},"",0,0,{"$f":"IF(AND($AR202=\"2\",$AB202<>Lists!$A$17),AY202,AX202)","v":""},"",0,0,{"$f":"IF(AND($AR202=\"2\",$AB202<>Lists!$A$17),BA202,AZ202)","v":""},"",0,0,{"$f":"IF(AND($AR202=\"2\",$AB202<>Lists!$A$17),BC202,BB202)","v":""},"",{"$f":"Planning!H185","v":0},"00","H201","J201","I201","",null,{"$f":"IF(Setup!$AG$7<>\"\",INDIRECT(\"'\" & Setup!$AG$7 & \"'!\" & AF202),0) + IF(Setup!$AG$8<>\"\",INDIRECT(\"'\" & Setup!$AG$8 & \"'!\" & AF202),0) + IF(Setup!$AG$9<>\"\",INDIRECT(\"'\" & Setup!$AG$9 & \"'!\" & AF202),0) + IF(Setup!$AG$10<>\"\",INDIRECT(\"'\" & Setup!$AG$10 & \"'!\" & AF202),0) + IF(Setup!$AG$11<>\"\",INDIRECT(\"'\" & Setup!$AG$11 & \"'!\" & AF202),0) + IF(Setup!$AG$12<>\"\",INDIRECT(\"'\" & Setup!$AG$12 & \"'!\" & AF202),0)","v":0},{"$f":"IF(Setup!$AH$7<>\"\",INDIRECT(\"'\" & Setup!$AH$7 & \"'!\" & AF202),0) + IF(Setup!$AH$8<>\"\",INDIRECT(\"'\" & Setup!$AH$8 & \"'!\" & AF202),0) + IF(Setup!$AH$9<>\"\",INDIRECT(\"'\" & Setup!$AH$9 & \"'!\" & AF202),0) + IF(Setup!$AH$10<>\"\",INDIRECT(\"'\" & Setup!$AH$10 & \"'!\" & AF202),0) + IF(Setup!$AH$11<>\"\",INDIRECT(\"'\" & Setup!$AH$11 & \"'!\" & AF202),0) + IF(Setup!$AH$12<>\"\",INDIRECT(\"'\" & Setup!$AH$12 & \"'!\" & AF202),0)","v":0},{"$f":"IF(Setup!$AI$7<>\"\",INDIRECT(\"'\" & Setup!$AI$7 & \"'!\" & AF202),0) + IF(Setup!$AI$8<>\"\",INDIRECT(\"'\" & Setup!$AI$8 & \"'!\" & AF202),0) + IF(Setup!$AI$9<>\"\",INDIRECT(\"'\" & Setup!$AI$9 & \"'!\" & AF202),0) + IF(Setup!$AI$10<>\"\",INDIRECT(\"'\" & Setup!$AI$10 & \"'!\" & AF202),0) + IF(Setup!$AI$11<>\"\",INDIRECT(\"'\" & Setup!$AI$11 & \"'!\" & AF202),0) + IF(Setup!$AI$12<>\"\",INDIRECT(\"'\" & Setup!$AI$12 & \"'!\" & AF202),0)","v":0},{"$f":"IF(Setup!$AJ$7<>\"\",INDIRECT(\"'\" & Setup!$AJ$7 & \"'!\" & AF202),0) + IF(Setup!$AJ$8<>\"\",INDIRECT(\"'\" & Setup!$AJ$8 & \"'!\" & AF202),0) + IF(Setup!$AJ$9<>\"\",INDIRECT(\"'\" & Setup!$AJ$9 & \"'!\" & AF202),0) + IF(Setup!$AJ$10<>\"\",INDIRECT(\"'\" & Setup!$AJ$10 & \"'!\" & AF202),0) + IF(Setup!$AJ$11<>\"\",INDIRECT(\"'\" & Setup!$AJ$11 & \"'!\" & AF202),0) + IF(Setup!$AJ$12<>\"\",INDIRECT(\"'\" & Setup!$AJ$12 & \"'!\" & AF202),0)","v":0},null,"",{"$nulls":3},{"$f":"IF(C202=0,\"\",LEFT(INDEX(Lists!$H$5:$H$49,MATCH(C202,Lists!$G$5:$G$49,0),1),1))","v":""},null,"","","","","","","","","","",{"$nulls":6},{"$f":"IF(Setup!$AG$7<>\"\",INDIRECT(\"'\" & Setup!$AG$7 & \"'!\" & AD202),0) + IF(Setup!$AG$8<>\"\",INDIRECT(\"'\" & Setup!$AG$8 & \"'!\" & AD202),0) + IF(Setup!$AG$9<>\"\",INDIRECT(\"'\" & Setup!$AG$9 & \"'!\" & AD202),0) + IF(Setup!$AG$10<>\"\",INDIRECT(\"'\" & Setup!$AG$10 & \"'!\" & AD202),0) + IF(Setup!$AG$11<>\"\",INDIRECT(\"'\" & Setup!$AG$11 & \"'!\" & AD202),0) + IF(Setup!$AG$12<>\"\",INDIRECT(\"'\" & Setup!$AG$12 & \"'!\" & AD202),0)","v":0},{"$f":"IF(Setup!$AG$7<>\"\",INDIRECT(\"'\" & Setup!$AG$7 & \"'!\" & AE202),0) + IF(Setup!$AG$8<>\"\",INDIRECT(\"'\" & Setup!$AG$8 & \"'!\" & AE202),0) + IF(Setup!$AG$9<>\"\",INDIRECT(\"'\" & Setup!$AG$9 & \"'!\" & AE202),0) + IF(Setup!$AG$10<>\"\",INDIRECT(\"'\" & Setup!$AG$10 & \"'!\" & AE202),0) + IF(Setup!$AG$11<>\"\",INDIRECT(\"'\" & Setup!$AG$11 & \"'!\" & AE202),0) + IF(Setup!$AG$12<>\"\",INDIRECT(\"'\" & Setup!$AG$12 & \"'!\" & AE202),0)","v":0},{"$f":"IF(Setup!$AH$7<>\"\",INDIRECT(\"'\" & Setup!$AH$7 & \"'!\" & AD202),0) + IF(Setup!$AH$8<>\"\",INDIRECT(\"'\" & Setup!$AH$8 & \"'!\" & AD202),0) + IF(Setup!$AH$9<>\"\",INDIRECT(\"'\" & Setup!$AH$9 & \"'!\" & AD202),0) + IF(Setup!$AH$10<>\"\",INDIRECT(\"'\" & Setup!$AH$10 & \"'!\" & AD202),0) + IF(Setup!$AH$11<>\"\",INDIRECT(\"'\" & Setup!$AH$11 & \"'!\" & AD202),0) + IF(Setup!$AH$12<>\"\",INDIRECT(\"'\" & Setup!$AH$12 & \"'!\" & AD202),0)","v":0},{"$f":"IF(Setup!$AH$7<>\"\",INDIRECT(\"'\" & Setup!$AH$7 & \"'!\" & AE202),0) + IF(Setup!$AH$8<>\"\",INDIRECT(\"'\" & Setup!$AH$8 & \"'!\" & AE202),0) + IF(Setup!$AH$9<>\"\",INDIRECT(\"'\" & Setup!$AH$9 & \"'!\" & AE202),0) + IF(Setup!$AH$10<>\"\",INDIRECT(\"'\" & Setup!$AH$10 & \"'!\" & AE202),0) + IF(Setup!$AH$11<>\"\",INDIRECT(\"'\" & Setup!$AH$11 & \"'!\" & AE202),0) + IF(Setup!$AH$12<>\"\",INDIRECT(\"'\" & Setup!$AH$12 & \"'!\" & AE202),0)","v":0},{"$f":"IF(Setup!$AI$7<>\"\",INDIRECT(\"'\" & Setup!$AI$7 & \"'!\" & AD202),0) + IF(Setup!$AI$8<>\"\",INDIRECT(\"'\" & Setup!$AI$8 & \"'!\" & AD202),0) + IF(Setup!$AI$9<>\"\",INDIRECT(\"'\" & Setup!$AI$9 & \"'!\" & AD202),0) + IF(Setup!$AI$10<>\"\",INDIRECT(\"'\" & Setup!$AI$10 & \"'!\" & AD202),0) + IF(Setup!$AI$11<>\"\",INDIRECT(\"'\" & Setup!$AI$11 & \"'!\" & AD202),0) + IF(Setup!$AI$12<>\"\",INDIRECT(\"'\" & Setup!$AI$12 & \"'!\" & AD202),0)","v":0},{"$f":"IF(Setup!$AI$7<>\"\",INDIRECT(\"'\" & Setup!$AI$7 & \"'!\" & AE202),0) + IF(Setup!$AI$8<>\"\",INDIRECT(\"'\" & Setup!$AI$8 & \"'!\" & AE202),0) + IF(Setup!$AI$9<>\"\",INDIRECT(\"'\" & Setup!$AI$9 & \"'!\" & AE202),0) + IF(Setup!$AI$10<>\"\",INDIRECT(\"'\" & Setup!$AI$10 & \"'!\" & AE202),0) + IF(Setup!$AI$11<>\"\",INDIRECT(\"'\" & Setup!$AI$11 & \"'!\" & AE202),0) + IF(Setup!$AI$12<>\"\",INDIRECT(\"'\" & Setup!$AI$12 & \"'!\" & AE202),0)","v":0},{"$f":"IF(Setup!$AJ$7<>\"\",INDIRECT(\"'\" & Setup!$AJ$7 & \"'!\" & AD202),0) + IF(Setup!$AJ$8<>\"\",INDIRECT(\"'\" & Setup!$AJ$8 & \"'!\" & AD202),0) + IF(Setup!$AJ$9<>\"\",INDIRECT(\"'\" & Setup!$AJ$9 & \"'!\" & AD202),0) + IF(Setup!$AJ$10<>\"\",INDIRECT(\"'\" & Setup!$AJ$10 & \"'!\" & AD202),0) + IF(Setup!$AJ$11<>\"\",INDIRECT(\"'\" & Setup!$AJ$11 & \"'!\" & AD202),0) + IF(Setup!$AJ$12<>\"\",INDIRECT(\"'\" & Setup!$AJ$12 & \"'!\" & AD202),0)","v":0},{"$f":"IF(Setup!$AJ$7<>\"\",INDIRECT(\"'\" & Setup!$AJ$7 & \"'!\" & AE202),0) + IF(Setup!$AJ$8<>\"\",INDIRECT(\"'\" & Setup!$AJ$8 & \"'!\" & AE202),0) + IF(Setup!$AJ$9<>\"\",INDIRECT(\"'\" & Setup!$AJ$9 & \"'!\" & AE202),0) + IF(Setup!$AJ$10<>\"\",INDIRECT(\"'\" & Setup!$AJ$10 & \"'!\" & AE202),0) + IF(Setup!$AJ$11<>\"\",INDIRECT(\"'\" & Setup!$AJ$11 & \"'!\" & AE202),0) + IF(Setup!$AJ$12<>\"\",INDIRECT(\"'\" & Setup!$AJ$12 & \"'!\" & AE202),0)","v":0}]
[{"$f":"Planning!A186","v":"I178"},{"$f":"Planning!B186","v":0},{"$f":"Planning!C186","v":0},{"$f":"Planning!D186","v":0},{"$f":"Planning!E186","v":0},{"$f":"Planning!G186","v":0},null,0,0,{"$f":"IF(AND($AR203=\"2\",$AB202<>Lists!$A$17),AU203,AT203)","v":""},"",0,0,{"$f":"IF(AND($AR203=\"2\",$AB203<>Lists!$A$17),AW203,AV203)","v":""},"",0,0,{"$f":"IF(AND($AR203=\"2\",$AB203<>Lists!$A$17),AY203,AX203)","v":""},"",0,0,{"$f":"IF(AND($AR203=\"2\",$AB203<>Lists!$A$17),BA203,AZ203)","v":""},"",0,0,{"$f":"IF(AND($AR203=\"2\",$AB203<>Lists!$A$17),BC203,BB203)","v":""},"",{"$f":"Planning!H186","v":0},"00","H202","J202","I202","",null,{"$f":"IF(Setup!$AG$7<>\"\",INDIRECT(\"'\" & Setup!$AG$7 & \"'!\" & AF203),0) + IF(Setup!$AG$8<>\"\",INDIRECT(\"'\" & Setup!$AG$8 & \"'!\" & AF203),0) + IF(Setup!$AG$9<>\"\",INDIRECT(\"'\" & Setup!$AG$9 & \"'!\" & AF203),0) + IF(Setup!$AG$10<>\"\",INDIRECT(\"'\" & Setup!$AG$10 & \"'!\" & AF203),0) + IF(Setup!$AG$11<>\"\",INDIRECT(\"'\" & Setup!$AG$11 & \"'!\" & AF203),0) + IF(Setup!$AG$12<>\"\",INDIRECT(\"'\" & Setup!$AG$12 & \"'!\" & AF203),0)","v":0},{"$f":"IF(Setup!$AH$7<>\"\",INDIRECT(\"'\" & Setup!$AH$7 & \"'!\" & AF203),0) + IF(Setup!$AH$8<>\"\",INDIRECT(\"'\" & Setup!$AH$8 & \"'!\" & AF203),0) + IF(Setup!$AH$9<>\"\",INDIRECT(\"'\" & Setup!$AH$9 & \"'!\" & AF203),0) + IF(Setup!$AH$10<>\"\",INDIRECT(\"'\" & Setup!$AH$10 & \"'!\" & AF203),0) + IF(Setup!$AH$11<>\"\",INDIRECT(\"'\" & Setup!$AH$11 & \"'!\" & AF203),0) + IF(Setup!$AH$12<>\"\",INDIRECT(\"'\" & Setup!$AH$12 & \"'!\" & AF203),0)","v":0},{"$f":"IF(Setup!$AI$7<>\"\",INDIRECT(\"'\" & Setup!$AI$7 & \"'!\" & AF203),0) + IF(Setup!$AI$8<>\"\",INDIRECT(\"'\" & Setup!$AI$8 & \"'!\" & AF203),0) + IF(Setup!$AI$9<>\"\",INDIRECT(\"'\" & Setup!$AI$9 & \"'!\" & AF203),0) + IF(Setup!$AI$10<>\"\",INDIRECT(\"'\" & Setup!$AI$10 & \"'!\" & AF203),0) + IF(Setup!$AI$11<>\"\",INDIRECT(\"'\" & Setup!$AI$11 & \"'!\" & AF203),0) + IF(Setup!$AI$12<>\"\",INDIRECT(\"'\" & Setup!$AI$12 & \"'!\" & AF203),0)","v":0},{"$f":"IF(Setup!$AJ$7<>\"\",INDIRECT(\"'\" & Setup!$AJ$7 & \"'!\" & AF203),0) + IF(Setup!$AJ$8<>\"\",INDIRECT(\"'\" & Setup!$AJ$8 & \"'!\" & AF203),0) + IF(Setup!$AJ$9<>\"\",INDIRECT(\"'\" & Setup!$AJ$9 & \"'!\" & AF203),0) + IF(Setup!$AJ$10<>\"\",INDIRECT(\"'\" & Setup!$AJ$10 & \"'!\" & AF203),0) + IF(Setup!$AJ$11<>\"\",INDIRECT(\"'\" & Setup!$AJ$11 & \"'!\" & AF203),0) + IF(Setup!$AJ$12<>\"\",INDIRECT(\"'\" & Setup!$AJ$12 & \"'!\" & AF203),0)","v":0},null,"",{"$nulls":3},{"$f":"IF(C203=0,\"\",LEFT(INDEX(Lists!$H$5:$H$49,MATCH(C203,Lists!$G$5:$G$49,0),1),1))","v":""},null,"","","","","","","","","","",{"$nulls":6},{"$f":"IF(Setup!$AG$7<>\"\",INDIRECT(\"'\" & Setup!$AG$7 & \"'!\" & AD203),0) + IF(Setup!$AG$8<>\"\",INDIRECT(\"'\" & Setup!$AG$8 & \"'!\" & AD203),0) + IF(Setup!$AG$9<>\"\",INDIRECT(\"'\" & Setup!$AG$9 & \"'!\" & AD203),0) + IF(Setup!$AG$10<>\"\",INDIRECT(\"'\" & Setup!$AG$10 & \"'!\" & AD203),0) + IF(Setup!$AG$11<>\"\",INDIRECT(\"'\" & Setup!$AG$11 & \"'!\" & AD203),0) + IF(Setup!$AG$12<>\"\",INDIRECT(\"'\" & Setup!$AG$12 & \"'!\" & AD203),0)","v":0},{"$f":"IF(Setup!$AG$7<>\"\",INDIRECT(\"'\" & Setup!$AG$7 & \"'!\" & AE203),0) + IF(Setup!$AG$8<>\"\",INDIRECT(\"'\" & Setup!$AG$8 & \"'!\" & AE203),0) + IF(Setup!$AG$9<>\"\",INDIRECT(\"'\" & Setup!$AG$9 & \"'!\" & AE203),0) + IF(Setup!$AG$10<>\"\",INDIRECT(\"'\" & Setup!$AG$10 & \"'!\" & AE203),0) + IF(Setup!$AG$11<>\"\",INDIRECT(\"'\" & Setup!$AG$11 & \"'!\" & AE203),0) + IF(Setup!$AG$12<>\"\",INDIRECT(\"'\" & Setup!$AG$12 & \"'!\" & AE203),0)","v":0},{"$f":"IF(Setup!$AH$7<>\"\",INDIRECT(\"'\" & Setup!$AH$7 & \"'!\" & AD203),0) + IF(Setup!$AH$8<>\"\",INDIRECT(\"'\" & Setup!$AH$8 & \"'!\" & AD203),0) + IF(Setup!$AH$9<>\"\",INDIRECT(\"'\" & Setup!$AH$9 & \"'!\" & AD203),0) + IF(Setup!$AH$10<>\"\",INDIRECT(\"'\" & Setup!$AH$10 & \"'!\" & AD203),0) + IF(Setup!$AH$11<>\"\",INDIRECT(\"'\" & Setup!$AH$11 & \"'!\" & AD203),0) + IF(Setup!$AH$12<>\"\",INDIRECT(\"'\" & Setup!$AH$12 & \"'!\" & AD203),0)","v":0},{"$f":"IF(Setup!$AH$7<>\"\",INDIRECT(\"'\" & Setup!$AH$7 & \"'!\" & AE203),0) + IF(Setup!$AH$8<>\"\",INDIRECT(\"'\" & Setup!$AH$8 & \"'!\" & AE203),0) + IF(Setup!$AH$9<>\"\",INDIRECT(\"'\" & Setup!$AH$9 & \"'!\" & AE203),0) + IF(Setup!$AH$10<>\"\",INDIRECT(\"'\" & Setup!$AH$10 & \"'!\" & AE203),0) + IF(Setup!$AH$11<>\"\",INDIRECT(\"'\" & Setup!$AH$11 & \"'!\" & AE203),0) + IF(Setup!$AH$12<>\"\",INDIRECT(\"'\" & Setup!$AH$12 & \"'!\" & AE203),0)","v":0},{"$f":"IF(Setup!$AI$7<>\"\",INDIRECT(\"'\" & Setup!$AI$7 & \"'!\" & AD203),0) + IF(Setup!$AI$8<>\"\",INDIRECT(\"'\" & Setup!$AI$8 & \"'!\" & AD203),0) + IF(Setup!$AI$9<>\"\",INDIRECT(\"'\" & Setup!$AI$9 & \"'!\" & AD203),0) + IF(Setup!$AI$10<>\"\",INDIRECT(\"'\" & Setup!$AI$10 & \"'!\" & AD203),0) + IF(Setup!$AI$11<>\"\",INDIRECT(\"'\" & Setup!$AI$11 & \"'!\" & AD203),0) + IF(Setup!$AI$12<>\"\",INDIRECT(\"'\" & Setup!$AI$12 & \"'!\" & AD203),0)","v":0},{"$f":"IF(Setup!$AI$7<>\"\",INDIRECT(\"'\" & Setup!$AI$7 & \"'!\" & AE203),0) + IF(Setup!$AI$8<>\"\",INDIRECT(\"'\" & Setup!$AI$8 & \"'!\" & AE203),0) + IF(Setup!$AI$9<>\"\",INDIRECT(\"'\" & Setup!$AI$9 & \"'!\" & AE203),0) + IF(Setup!$AI$10<>\"\",INDIRECT(\"'\" & Setup!$AI$10 & \"'!\" & AE203),0) + IF(Setup!$AI$11<>\"\",INDIRECT(\"'\" & Setup!$AI$11 & \"'!\" & AE203),0) + IF(Setup!$AI$12<>\"\",INDIRECT(\"'\" & Setup!$AI$12 & \"'!\" & AE203),0)","v":0},{"$f":"IF(Setup!$AJ$7<>\"\",INDIRECT(\"'\" & Setup!$AJ$7 & \"'!\" & AD203),0) + IF(Setup!$AJ$8<>\"\",INDIRECT(\"'\" & Setup!$AJ$8 & \"'!\" & AD203),0) + IF(Setup!$AJ$9<>\"\",INDIRECT(\"'\" & Setup!$AJ$9 & \"'!\" & AD203),0) + IF(Setup!$AJ$10<>\"\",INDIRECT(\"'\" & Setup!$AJ$10 & \"'!\" & AD203),0) + IF(Setup!$AJ$11<>\"\",INDIRECT(\"'\" & Setup!$AJ$11 & \"'!\" & AD203),0) + IF(Setup!$AJ$12<>\"\",INDIRECT(\"'\" & Setup!$AJ$12 & \"'!\" & AD203),0)","v":0},{"$f":"IF(Setup!$AJ$7<>\"\",INDIRECT(\"'\" & Setup!$AJ$7 & \"'!\" & AE203),0) + IF(Setup!$AJ$8<>\"\",INDIRECT(\"'\" & Setup!$AJ$8 & \"'!\" & AE203),0) + IF(Setup!$AJ$9<>\"\",INDIRECT(\"'\" & Setup!$AJ$9 & \"'!\" & AE203),0) + IF(Setup!$AJ$10<>\"\",INDIRECT(\"'\" & Setup!$AJ$10 & \"'!\" & AE203),0) + IF(Setup!$AJ$11<>\"\",INDIRECT(\"'\" & Setup!$AJ$11 & \"'!\" & AE203),0) + IF(Setup!$AJ$12<>\"\",INDIRECT(\"'\" & Setup!$AJ$12 & \"'!\" & AE203),0)","v":0}]
[{"$f":"Planning!A187","v":"I179"},{"$f":"Planning!B187","v":0},{"$f":"Planning!C187","v":0},{"$f":"Planning!D187","v":0},{"$f":"Planning!E187","v":0},{"$f":"Planning!G187","v":0},null,0,0,{"$f":"IF(AND($AR204=\"2\",$AB203<>Lists!$A$17),AU204,AT204)","v":""},"",0,0,{"$f":"IF(AND($AR204=\"2\",$AB204<>Lists!$A$17),AW204,AV204)","v":""},"",0,0,{"$f":"IF(AND($AR204=\"2\",$AB204<>Lists!$A$17),AY204,AX204)","v":""},"",0,0,{"$f":"IF(AND($AR204=\"2\",$AB204<>Lists!$A$17),BA204,AZ204)","v":""},"",0,0,{"$f":"IF(AND($AR204=\"2\",$AB204<>Lists!$A$17),BC204,BB204)","v":""},"",{"$f":"Planning!H187","v":0},"00","H203","J203","I203","",null,{"$f":"IF(Setup!$AG$7<>\"\",INDIRECT(\"'\" & Setup!$AG$7 & \"'!\" & AF204),0) + IF(Setup!$AG$8<>\"\",INDIRECT(\"'\" & Setup!$AG$8 & \"'!\" & AF204),0) + IF(Setup!$AG$9<>\"\",INDIRECT(\"'\" & Setup!$AG$9 & \"'!\" & AF204),0) + IF(Setup!$AG$10<>\"\",INDIRECT(\"'\" & Setup!$AG$10 & \"'!\" & AF204),0) + IF(Setup!$AG$11<>\"\",INDIRECT(\"'\" & Setup!$AG$11 & \"'!\" & AF204),0) + IF(Setup!$AG$12<>\"\",INDIRECT(\"'\" & Setup!$AG$12 & \"'!\" & AF204),0)","v":0},{"$f":"IF(Setup!$AH$7<>\"\",INDIRECT(\"'\" & Setup!$AH$7 & \"'!\" & AF204),0) + IF(Setup!$AH$8<>\"\",INDIRECT(\"'\" & Setup!$AH$8 & \"'!\" & AF204),0) + IF(Setup!$AH$9<>\"\",INDIRECT(\"'\" & Setup!$AH$9 & \"'!\" & AF204),0) + IF(Setup!$AH$10<>\"\",INDIRECT(\"'\" & Setup!$AH$10 & \"'!\" & AF204),0) + IF(Setup!$AH$11<>\"\",INDIRECT(\"'\" & Setup!$AH$11 & \"'!\" & AF204),0) + IF(Setup!$AH$12<>\"\",INDIRECT(\"'\" & Setup!$AH$12 & \"'!\" & AF204),0)","v":0},{"$f":"IF(Setup!$AI$7<>\"\",INDIRECT(\"'\" & Setup!$AI$7 & \"'!\" & AF204),0) + IF(Setup!$AI$8<>\"\",INDIRECT(\"'\" & Setup!$AI$8 & \"'!\" & AF204),0) + IF(Setup!$AI$9<>\"\",INDIRECT(\"'\" & Setup!$AI$9 & \"'!\" & AF204),0) + IF(Setup!$AI$10<>\"\",INDIRECT(\"'\" & Setup!$AI$10 & \"'!\" & AF204),0) + IF(Setup!$AI$11<>\"\",INDIRECT(\"'\" & Setup!$AI$11 & \"'!\" & AF204),0) + IF(Setup!$AI$12<>\"\",INDIRECT(\"'\" & Setup!$AI$12 & \"'!\" & AF204),0)","v":0},{"$f":"IF(Setup!$AJ$7<>\"\",INDIRECT(\"'\" & Setup!$AJ$7 & \"'!\" & AF204),0) + IF(Setup!$AJ$8<>\"\",INDIRECT(\"'\" & Setup!$AJ$8 & \"'!\" & AF204),0) + IF(Setup!$AJ$9<>\"\",INDIRECT(\"'\" & Setup!$AJ$9 & \"'!\" & AF204),0) + IF(Setup!$AJ$10<>\"\",INDIRECT(\"'\" & Setup!$AJ$10 & \"'!\" & AF204),0) + IF(Setup!$AJ$11<>\"\",INDIRECT(\"'\" & Setup!$AJ$11 & \"'!\" & AF204),0) + IF(Setup!$AJ$12<>\"\",INDIRECT(\"'\" & Setup!$AJ$12 & \"'!\" & AF204),0)","v":0},null,"",{"$nulls":3},{"$f":"IF(C204=0,\"\",LEFT(INDEX(Lists!$H$5:$H$49,MATCH(C204,Lists!$G$5:$G$49,0),1),1))","v":""},null,"","","","","","","","","","",{"$nulls":6},{"$f":"IF(Setup!$AG$7<>\"\",INDIRECT(\"'\" & Setup!$AG$7 & \"'!\" & AD204),0) + IF(Setup!$AG$8<>\"\",INDIRECT(\"'\" & Setup!$AG$8 & \"'!\" & AD204),0) + IF(Setup!$AG$9<>\"\",INDIRECT(\"'\" & Setup!$AG$9 & \"'!\" & AD204),0) + IF(Setup!$AG$10<>\"\",INDIRECT(\"'\" & Setup!$AG$10 & \"'!\" & AD204),0) + IF(Setup!$AG$11<>\"\",INDIRECT(\"'\" & Setup!$AG$11 & \"'!\" & AD204),0) + IF(Setup!$AG$12<>\"\",INDIRECT(\"'\" & Setup!$AG$12 & \"'!\" & AD204),0)","v":0},{"$f":"IF(Setup!$AG$7<>\"\",INDIRECT(\"'\" & Setup!$AG$7 & \"'!\" & AE204),0) + IF(Setup!$AG$8<>\"\",INDIRECT(\"'\" & Setup!$AG$8 & \"'!\" & AE204),0) + IF(Setup!$AG$9<>\"\",INDIRECT(\"'\" & Setup!$AG$9 & \"'!\" & AE204),0) + IF(Setup!$AG$10<>\"\",INDIRECT(\"'\" & Setup!$AG$10 & \"'!\" & AE204),0) + IF(Setup!$AG$11<>\"\",INDIRECT(\"'\" & Setup!$AG$11 & \"'!\" & AE204),0) + IF(Setup!$AG$12<>\"\",INDIRECT(\"'\" & Setup!$AG$12 & \"'!\" & AE204),0)","v":0},{"$f":"IF(Setup!$AH$7<>\"\",INDIRECT(\"'\" & Setup!$AH$7 & \"'!\" & AD204),0) + IF(Setup!$AH$8<>\"\",INDIRECT(\"'\" & Setup!$AH$8 & \"'!\" & AD204),0) + IF(Setup!$AH$9<>\"\",INDIRECT(\"'\" & Setup!$AH$9 & \"'!\" & AD204),0) + IF(Setup!$AH$10<>\"\",INDIRECT(\"'\" & Setup!$AH$10 & \"'!\" & AD204),0) + IF(Setup!$AH$11<>\"\",INDIRECT(\"'\" & Setup!$AH$11 & \"'!\" & AD204),0) + IF(Setup!$AH$12<>\"\",INDIRECT(\"'\" & Setup!$AH$12 & \"'!\" & AD204),0)","v":0},{"$f":"IF(Setup!$AH$7<>\"\",INDIRECT(\"'\" & Setup!$AH$7 & \"'!\" & AE204),0) + IF(Setup!$AH$8<>\"\",INDIRECT(\"'\" & Setup!$AH$8 & \"'!\" & AE204),0) + IF(Setup!$AH$9<>\"\",INDIRECT(\"'\" & Setup!$AH$9 & \"'!\" & AE204),0) + IF(Setup!$AH$10<>\"\",INDIRECT(\"'\" & Setup!$AH$10 & \"'!\" & AE204),0) + IF(Setup!$AH$11<>\"\",INDIRECT(\"'\" & Setup!$AH$11 & \"'!\" & AE204),0) + IF(Setup!$AH$12<>\"\",INDIRECT(\"'\" & Setup!$AH$12 & \"'!\" & AE204),0)","v":0},{"$f":"IF(Setup!$AI$7<>\"\",INDIRECT(\"'\" & Setup!$AI$7 & \"'!\" & AD204),0) + IF(Setup!$AI$8<>\"\",INDIRECT(\"'\" & Setup!$AI$8 & \"'!\" & AD204),0) + IF(Setup!$AI$9<>\"\",INDIRECT(\"'\" & Setup!$AI$9 & \"'!\" & AD204),0) + IF(Setup!$AI$10<>\"\",INDIRECT(\"'\" & Setup!$AI$10 & \"'!\" & AD204),0) + IF(Setup!$AI$11<>\"\",INDIRECT(\"'\" & Setup!$AI$11 & \"'!\" & AD204),0) + IF(Setup!$AI$12<>\"\",INDIRECT(\"'\" & Setup!$AI$12 & \"'!\" & AD204),0)","v":0},{"$f":"IF(Setup!$AI$7<>\"\",INDIRECT(\"'\" & Setup!$AI$7 & \"'!\" & AE204),0) + IF(Setup!$AI$8<>\"\",INDIRECT(\"'\" & Setup!$AI$8 & \"'!\" & AE204),0) + IF(Setup!$AI$9<>\"\",INDIRECT(\"'\" & Setup!$AI$9 & \"'!\" & AE204),0) + IF(Setup!$AI$10<>\"\",INDIRECT(\"'\" & Setup!$AI$10 & \"'!\" & AE204),0) + IF(Setup!$AI$11<>\"\",INDIRECT(\"'\" & Setup!$AI$11 & \"'!\" & AE204),0) + IF(Setup!$AI$12<>\"\",INDIRECT(\"'\" & Setup!$AI$12 & \"'!\" & AE204),0)","v":0},{"$f":"IF(Setup!$AJ$7<>\"\",INDIRECT(\"'\" & Setup!$AJ$7 & \"'!\" & AD204),0) + IF(Setup!$AJ$8<>\"\",INDIRECT(\"'\" & Setup!$AJ$8 & \"'!\" & AD204),0) + IF(Setup!$AJ$9<>\"\",INDIRECT(\"'\" & Setup!$AJ$9 & \"'!\" & AD204),0) + IF(Setup!$AJ$10<>\"\",INDIRECT(\"'\" & Setup!$AJ$10 & \"'!\" & AD204),0) + IF(Setup!$AJ$11<>\"\",INDIRECT(\"'\" & Setup!$AJ$11 & \"'!\" & AD204),0) + IF(Setup!$AJ$12<>\"\",INDIRECT(\"'\" & Setup!$AJ$12 & \"'!\" & AD204),0)","v":0},{"$f":"IF(Setup!$AJ$7<>\"\",INDIRECT(\"'\" & Setup!$AJ$7 & \"'!\" & AE204),0) + IF(Setup!$AJ$8<>\"\",INDIRECT(\"'\" & Setup!$AJ$8 & \"'!\" & AE204),0) + IF(Setup!$AJ$9<>\"\",INDIRECT(\"'\" & Setup!$AJ$9 & \"'!\" & AE204),0) + IF(Setup!$AJ$10<>\"\",INDIRECT(\"'\" & Setup!$AJ$10 & \"'!\" & AE204),0) + IF(Setup!$AJ$11<>\"\",INDIRECT(\"'\" & Setup!$AJ$11 & \"'!\" & AE204),0) + IF(Setup!$AJ$12<>\"\",INDIRECT(\"'\" & Setup!$AJ$12 & \"'!\" & AE204),0)","v":0}]
[{"$f":"Planning!A188","v":"I180"},{"$f":"Planning!B188","v":0},{"$f":"Planning!C188","v":0},{"$f":"Planning!D188","v":0},{"$f":"Planning!E188","v":0},{"$f":"Planning!G188","v":0},null,0,0,{"$f":"IF(AND($AR205=\"2\",$AB204<>Lists!$A$17),AU205,AT205)","v":""},"",0,0,{"$f":"IF(AND($AR205=\"2\",$AB205<>Lists!$A$17),AW205,AV205)","v":""},"",0,0,{"$f":"IF(AND($AR205=\"2\",$AB205<>Lists!$A$17),AY205,AX205)","v":""},"",0,0,{"$f":"IF(AND($AR205=\"2\",$AB205<>Lists!$A$17),BA205,AZ205)","v":""},"",0,0,{"$f":"IF(AND($AR205=\"2\",$AB205<>Lists!$A$17),BC205,BB205)","v":""},"",{"$f":"Planning!H188","v":0},"00","H204","J204","I204","",null,{"$f":"IF(Setup!$AG$7<>\"\",INDIRECT(\"'\" & Setup!$AG$7 & \"'!\" & AF205),0) + IF(Setup!$AG$8<>\"\",INDIRECT(\"'\" & Setup!$AG$8 & \"'!\" & AF205),0) + IF(Setup!$AG$9<>\"\",INDIRECT(\"'\" & Setup!$AG$9 & \"'!\" & AF205),0) + IF(Setup!$AG$10<>\"\",INDIRECT(\"'\" & Setup!$AG$10 & \"'!\" & AF205),0) + IF(Setup!$AG$11<>\"\",INDIRECT(\"'\" & Setup!$AG$11 & \"'!\" & AF205),0) + IF(Setup!$AG$12<>\"\",INDIRECT(\"'\" & Setup!$AG$12 & \"'!\" & AF205),0)","v":0},{"$f":"IF(Setup!$AH$7<>\"\",INDIRECT(\"'\" & Setup!$AH$7 & \"'!\" & AF205),0) + IF(Setup!$AH$8<>\"\",INDIRECT(\"'\" & Setup!$AH$8 & \"'!\" & AF205),0) + IF(Setup!$AH$9<>\"\",INDIRECT(\"'\" & Setup!$AH$9 & \"'!\" & AF205),0) + IF(Setup!$AH$10<>\"\",INDIRECT(\"'\" & Setup!$AH$10 & \"'!\" & AF205),0) + IF(Setup!$AH$11<>\"\",INDIRECT(\"'\" & Setup!$AH$11 & \"'!\" & AF205),0) + IF(Setup!$AH$12<>\"\",INDIRECT(\"'\" & Setup!$AH$12 & \"'!\" & AF205),0)","v":0},{"$f":"IF(Setup!$AI$7<>\"\",INDIRECT(\"'\" & Setup!$AI$7 & \"'!\" & AF205),0) + IF(Setup!$AI$8<>\"\",INDIRECT(\"'\" & Setup!$AI$8 & \"'!\" & AF205),0) + IF(Setup!$AI$9<>\"\",INDIRECT(\"'\" & Setup!$AI$9 & \"'!\" & AF205),0) + IF(Setup!$AI$10<>\"\",INDIRECT(\"'\" & Setup!$AI$10 & \"'!\" & AF205),0) + IF(Setup!$AI$11<>\"\",INDIRECT(\"'\" & Setup!$AI$11 & \"'!\" & AF205),0) + IF(Setup!$AI$12<>\"\",INDIRECT(\"'\" & Setup!$AI$12 & \"'!\" & AF205),0)","v":0},{"$f":"IF(Setup!$AJ$7<>\"\",INDIRECT(\"'\" & Setup!$AJ$7 & \"'!\" & AF205),0) + IF(Setup!$AJ$8<>\"\",INDIRECT(\"'\" & Setup!$AJ$8 & \"'!\" & AF205),0) + IF(Setup!$AJ$9<>\"\",INDIRECT(\"'\" & Setup!$AJ$9 & \"'!\" & AF205),0) + IF(Setup!$AJ$10<>\"\",INDIRECT(\"'\" & Setup!$AJ$10 & \"'!\" & AF205),0) + IF(Setup!$AJ$11<>\"\",INDIRECT(\"'\" & Setup!$AJ$11 & \"'!\" & AF205),0) + IF(Setup!$AJ$12<>\"\",INDIRECT(\"'\" & Setup!$AJ$12 & \"'!\" & AF205),0)","v":0},null,"",{"$nulls":3},{"$f":"IF(C205=0,\"\",LEFT(INDEX(Lists!$H$5:$H$49,MATCH(C205,Lists!$G$5:$G$49,0),1),1))","v":""},null,"","","","","","","","","","",{"$nulls":6},{"$f":"IF(Setup!$AG$7<>\"\",INDIRECT(\"'\" & Setup!$AG$7 & \"'!\" & AD205),0) + IF(Setup!$AG$8<>\"\",INDIRECT(\"'\" & Setup!$AG$8 & \"'!\" & AD205),0) + IF(Setup!$AG$9<>\"\",INDIRECT(\"'\" & Setup!$AG$9 & \"'!\" & AD205),0) + IF(Setup!$AG$10<>\"\",INDIRECT(\"'\" & Setup!$AG$10 & \"'!\" & AD205),0) + IF(Setup!$AG$11<>\"\",INDIRECT(\"'\" & Setup!$AG$11 & \"'!\" & AD205),0) + IF(Setup!$AG$12<>\"\",INDIRECT(\"'\" & Setup!$AG$12 & \"'!\" & AD205),0)","v":0},{"$f":"IF(Setup!$AG$7<>\"\",INDIRECT(\"'\" & Setup!$AG$7 & \"'!\" & AE205),0) + IF(Setup!$AG$8<>\"\",INDIRECT(\"'\" & Setup!$AG$8 & \"'!\" & AE205),0) + IF(Setup!$AG$9<>\"\",INDIRECT(\"'\" & Setup!$AG$9 & \"'!\" & AE205),0) + IF(Setup!$AG$10<>\"\",INDIRECT(\"'\" & Setup!$AG$10 & \"'!\" & AE205),0) + IF(Setup!$AG$11<>\"\",INDIRECT(\"'\" & Setup!$AG$11 & \"'!\" & AE205),0) + IF(Setup!$AG$12<>\"\",INDIRECT(\"'\" & Setup!$AG$12 & \"'!\" & AE205),0)","v":0},{"$f":"IF(Setup!$AH$7<>\"\",INDIRECT(\"'\" & Setup!$AH$7 & \"'!\" & AD205),0) + IF(Setup!$AH$8<>\"\",INDIRECT(\"'\" & Setup!$AH$8 & \"'!\" & AD205),0) + IF(Setup!$AH$9<>\"\",INDIRECT(\"'\" & Setup!$AH$9 & \"'!\" & AD205),0) + IF(Setup!$AH$10<>\"\",INDIRECT(\"'\" & Setup!$AH$10 & \"'!\" & AD205),0) + IF(Setup!$AH$11<>\"\",INDIRECT(\"'\" & Setup!$AH$11 & \"'!\" & AD205),0) + IF(Setup!$AH$12<>\"\",INDIRECT(\"'\" & Setup!$AH$12 & \"'!\" & AD205),0)","v":0},{"$f":"IF(Setup!$AH$7<>\"\",INDIRECT(\"'\" & Setup!$AH$7 & \"'!\" & AE205),0) + IF(Setup!$AH$8<>\"\",INDIRECT(\"'\" & Setup!$AH$8 & \"'!\" & AE205),0) + IF(Setup!$AH$9<>\"\",INDIRECT(\"'\" & Setup!$AH$9 & \"'!\" & AE205),0) + IF(Setup!$AH$10<>\"\",INDIRECT(\"'\" & Setup!$AH$10 & \"'!\" & AE205),0) + IF(Setup!$AH$11<>\"\",INDIRECT(\"'\" & Setup!$AH$11 & \"'!\" & AE205),0) + IF(Setup!$AH$12<>\"\",INDIRECT(\"'\" & Setup!$AH$12 & \"'!\" & AE205),0)","v":0},{"$f":"IF(Setup!$AI$7<>\"\",INDIRECT(\"'\" & Setup!$AI$7 & \"'!\" & AD205),0) + IF(Setup!$AI$8<>\"\",INDIRECT(\"'\" & Setup!$AI$8 & \"'!\" & AD205),0) + IF(Setup!$AI$9<>\"\",INDIRECT(\"'\" & Setup!$AI$9 & \"'!\" & AD205),0) + IF(Setup!$AI$10<>\"\",INDIRECT(\"'\" & Setup!$AI$10 & \"'!\" & AD205),0) + IF(Setup!$AI$11<>\"\",INDIRECT(\"'\" & Setup!$AI$11 & \"'!\" & AD205),0) + IF(Setup!$AI$12<>\"\",INDIRECT(\"'\" & Setup!$AI$12 & \"'!\" & AD205),0)","v":0},{"$f":"IF(Setup!$AI$7<>\"\",INDIRECT(\"'\" & Setup!$AI$7 & \"'!\" & AE205),0) + IF(Setup!$AI$8<>\"\",INDIRECT(\"'\" & Setup!$AI$8 & \"'!\" & AE205),0) + IF(Setup!$AI$9<>\"\",INDIRECT(\"'\" & Setup!$AI$9 & \"'!\" & AE205),0) + IF(Setup!$AI$10<>\"\",INDIRECT(\"'\" & Setup!$AI$10 & \"'!\" & AE205),0) + IF(Setup!$AI$11<>\"\",INDIRECT(\"'\" & Setup!$AI$11 & \"'!\" & AE205),0) + IF(Setup!$AI$12<>\"\",INDIRECT(\"'\" & Setup!$AI$12 & \"'!\" & AE205),0)","v":0},{"$f":"IF(Setup!$AJ$7<>\"\",INDIRECT(\"'\" & Setup!$AJ$7 & \"'!\" & AD205),0) + IF(Setup!$AJ$8<>\"\",INDIRECT(\"'\" & Setup!$AJ$8 & \"'!\" & AD205),0) + IF(Setup!$AJ$9<>\"\",INDIRECT(\"'\" & Setup!$AJ$9 & \"'!\" & AD205),0) + IF(Setup!$AJ$10<>\"\",INDIRECT(\"'\" & Setup!$AJ$10 & \"'!\" & AD205),0) + IF(Setup!$AJ$11<>\"\",INDIRECT(\"'\" & Setup!$AJ$11 & \"'!\" & AD205),0) + IF(Setup!$AJ$12<>\"\",INDIRECT(\"'\" & Setup!$AJ$12 & \"'!\" & AD205),0)","v":0},{"$f":"IF(Setup!$AJ$7<>\"\",INDIRECT(\"'\" & Setup!$AJ$7 & \"'!\" & AE205),0) + IF(Setup!$AJ$8<>\"\",INDIRECT(\"'\" & Setup!$AJ$8 & \"'!\" & AE205),0) + IF(Setup!$AJ$9<>\"\",INDIRECT(\"'\" & Setup!$AJ$9 & \"'!\" & AE205),0) + IF(Setup!$AJ$10<>\"\",INDIRECT(\"'\" & Setup!$AJ$10 & \"'!\" & AE205),0) + IF(Setup!$AJ$11<>\"\",INDIRECT(\"'\" & Setup!$AJ$11 & \"'!\" & AE205),0) + IF(Setup!$AJ$12<>\"\",INDIRECT(\"'\" & Setup!$AJ$12 & \"'!\" & AE205),0)","v":0}]
[{"$f":"Planning!A189","v":"I181"},{"$f":"Planning!B189","v":0},{"$f":"Planning!C189","v":0},{"$f":"Planning!D189","v":0},{"$f":"Planning!E189","v":0},{"$f":"Planning!G189","v":0},null,0,0,{"$f":"IF(AND($AR206=\"2\",$AB205<>Lists!$A$17),AU206,AT206)","v":""},"",0,0,{"$f":"IF(AND($AR206=\"2\",$AB206<>Lists!$A$17),AW206,AV206)","v":""},"",0,0,{"$f":"IF(AND($AR206=\"2\",$AB206<>Lists!$A$17),AY206,AX206)","v":""},"",0,0,{"$f":"IF(AND($AR206=\"2\",$AB206<>Lists!$A$17),BA206,AZ206)","v":""},"",0,0,{"$f":"IF(AND($AR206=\"2\",$AB206<>Lists!$A$17),BC206,BB206)","v":""},"",{"$f":"Planning!H189","v":0},"00","H205","J205","I205","",null,{"$f":"IF(Setup!$AG$7<>\"\",INDIRECT(\"'\" & Setup!$AG$7 & \"'!\" & AF206),0) + IF(Setup!$AG$8<>\"\",INDIRECT(\"'\" & Setup!$AG$8 & \"'!\" & AF206),0) + IF(Setup!$AG$9<>\"\",INDIRECT(\"'\" & Setup!$AG$9 & \"'!\" & AF206),0) + IF(Setup!$AG$10<>\"\",INDIRECT(\"'\" & Setup!$AG$10 & \"'!\" & AF206),0) + IF(Setup!$AG$11<>\"\",INDIRECT(\"'\" & Setup!$AG$11 & \"'!\" & AF206),0) + IF(Setup!$AG$12<>\"\",INDIRECT(\"'\" & Setup!$AG$12 & \"'!\" & AF206),0)","v":0},{"$f":"IF(Setup!$AH$7<>\"\",INDIRECT(\"'\" & Setup!$AH$7 & \"'!\" & AF206),0) + IF(Setup!$AH$8<>\"\",INDIRECT(\"'\" & Setup!$AH$8 & \"'!\" & AF206),0) + IF(Setup!$AH$9<>\"\",INDIRECT(\"'\" & Setup!$AH$9 & \"'!\" & AF206),0) + IF(Setup!$AH$10<>\"\",INDIRECT(\"'\" & Setup!$AH$10 & \"'!\" & AF206),0) + IF(Setup!$AH$11<>\"\",INDIRECT(\"'\" & Setup!$AH$11 & \"'!\" & AF206),0) + IF(Setup!$AH$12<>\"\",INDIRECT(\"'\" & Setup!$AH$12 & \"'!\" & AF206),0)","v":0},{"$f":"IF(Setup!$AI$7<>\"\",INDIRECT(\"'\" & Setup!$AI$7 & \"'!\" & AF206),0) + IF(Setup!$AI$8<>\"\",INDIRECT(\"'\" & Setup!$AI$8 & \"'!\" & AF206),0) + IF(Setup!$AI$9<>\"\",INDIRECT(\"'\" & Setup!$AI$9 & \"'!\" & AF206),0) + IF(Setup!$AI$10<>\"\",INDIRECT(\"'\" & Setup!$AI$10 & \"'!\" & AF206),0) + IF(Setup!$AI$11<>\"\",INDIRECT(\"'\" & Setup!$AI$11 & \"'!\" & AF206),0) + IF(Setup!$AI$12<>\"\",INDIRECT(\"'\" & Setup!$AI$12 & \"'!\" & AF206),0)","v":0},{"$f":"IF(Setup!$AJ$7<>\"\",INDIRECT(\"'\" & Setup!$AJ$7 & \"'!\" & AF206),0) + IF(Setup!$AJ$8<>\"\",INDIRECT(\"'\" & Setup!$AJ$8 & \"'!\" & AF206),0) + IF(Setup!$AJ$9<>\"\",INDIRECT(\"'\" & Setup!$AJ$9 & \"'!\" & AF206),0) + IF(Setup!$AJ$10<>\"\",INDIRECT(\"'\" & Setup!$AJ$10 & \"'!\" & AF206),0) + IF(Setup!$AJ$11<>\"\",INDIRECT(\"'\" & Setup!$AJ$11 & \"'!\" & AF206),0) + IF(Setup!$AJ$12<>\"\",INDIRECT(\"'\" & Setup!$AJ$12 & \"'!\" & AF206),0)","v":0},null,"",{"$nulls":3},{"$f":"IF(C206=0,\"\",LEFT(INDEX(Lists!$H$5:$H$49,MATCH(C206,Lists!$G$5:$G$49,0),1),1))","v":""},null,"","","","","","","","","","",{"$nulls":6},{"$f":"IF(Setup!$AG$7<>\"\",INDIRECT(\"'\" & Setup!$AG$7 & \"'!\" & AD206),0) + IF(Setup!$AG$8<>\"\",INDIRECT(\"'\" & Setup!$AG$8 & \"'!\" & AD206),0) + IF(Setup!$AG$9<>\"\",INDIRECT(\"'\" & Setup!$AG$9 & \"'!\" & AD206),0) + IF(Setup!$AG$10<>\"\",INDIRECT(\"'\" & Setup!$AG$10 & \"'!\" & AD206),0) + IF(Setup!$AG$11<>\"\",INDIRECT(\"'\" & Setup!$AG$11 & \"'!\" & AD206),0) + IF(Setup!$AG$12<>\"\",INDIRECT(\"'\" & Setup!$AG$12 & \"'!\" & AD206),0)","v":0},{"$f":"IF(Setup!$AG$7<>\"\",INDIRECT(\"'\" & Setup!$AG$7 & \"'!\" & AE206),0) + IF(Setup!$AG$8<>\"\",INDIRECT(\"'\" & Setup!$AG$8 & \"'!\" & AE206),0) + IF(Setup!$AG$9<>\"\",INDIRECT(\"'\" & Setup!$AG$9 & \"'!\" & AE206),0) + IF(Setup!$AG$10<>\"\",INDIRECT(\"'\" & Setup!$AG$10 & \"'!\" & AE206),0) + IF(Setup!$AG$11<>\"\",INDIRECT(\"'\" & Setup!$AG$11 & \"'!\" & AE206),0) + IF(Setup!$AG$12<>\"\",INDIRECT(\"'\" & Setup!$AG$12 & \"'!\" & AE206),0)","v":0},{"$f":"IF(Setup!$AH$7<>\"\",INDIRECT(\"'\" & Setup!$AH$7 & \"'!\" & AD206),0) + IF(Setup!$AH$8<>\"\",INDIRECT(\"'\" & Setup!$AH$8 & \"'!\" & AD206),0) + IF(Setup!$AH$9<>\"\",INDIRECT(\"'\" & Setup!$AH$9 & \"'!\" & AD206),0) + IF(Setup!$AH$10<>\"\",INDIRECT(\"'\" & Setup!$AH$10 & \"'!\" & AD206),0) + IF(Setup!$AH$11<>\"\",INDIRECT(\"'\" & Setup!$AH$11 & \"'!\" & AD206),0) + IF(Setup!$AH$12<>\"\",INDIRECT(\"'\" & Setup!$AH$12 & \"'!\" & AD206),0)","v":0},{"$f":"IF(Setup!$AH$7<>\"\",INDIRECT(\"'\" & Setup!$AH$7 & \"'!\" & AE206),0) + IF(Setup!$AH$8<>\"\",INDIRECT(\"'\" & Setup!$AH$8 & \"'!\" & AE206),0) + IF(Setup!$AH$9<>\"\",INDIRECT(\"'\" & Setup!$AH$9 & \"'!\" & AE206),0) + IF(Setup!$AH$10<>\"\",INDIRECT(\"'\" & Setup!$AH$10 & \"'!\" & AE206),0) + IF(Setup!$AH$11<>\"\",INDIRECT(\"'\" & Setup!$AH$11 & \"'!\" & AE206),0) + IF(Setup!$AH$12<>\"\",INDIRECT(\"'\" & Setup!$AH$12 & \"'!\" & AE206),0)","v":0},{"$f":"IF(Setup!$AI$7<>\"\",INDIRECT(\"'\" & Setup!$AI$7 & \"'!\" & AD206),0) + IF(Setup!$AI$8<>\"\",INDIRECT(\"'\" & Setup!$AI$8 & \"'!\" & AD206),0) + IF(Setup!$AI$9<>\"\",INDIRECT(\"'\" & Setup!$AI$9 & \"'!\" & AD206),0) + IF(Setup!$AI$10<>\"\",INDIRECT(\"'\" & Setup!$AI$10 & \"'!\" & AD206),0) + IF(Setup!$AI$11<>\"\",INDIRECT(\"'\" & Setup!$AI$11 & \"'!\" & AD206),0) + IF(Setup!$AI$12<>\"\",INDIRECT(\"'\" & Setup!$AI$12 & \"'!\" & AD206),0)","v":0},{"$f":"IF(Setup!$AI$7<>\"\",INDIRECT(\"'\" & Setup!$AI$7 & \"'!\" & AE206),0) + IF(Setup!$AI$8<>\"\",INDIRECT(\"'\" & Setup!$AI$8 & \"'!\" & AE206),0) + IF(Setup!$AI$9<>\"\",INDIRECT(\"'\" & Setup!$AI$9 & \"'!\" & AE206),0) + IF(Setup!$AI$10<>\"\",INDIRECT(\"'\" & Setup!$AI$10 & \"'!\" & AE206),0) + IF(Setup!$AI$11<>\"\",INDIRECT(\"'\" & Setup!$AI$11 & \"'!\" & AE206),0) + IF(Setup!$AI$12<>\"\",INDIRECT(\"'\" & Setup!$AI$12 & \"'!\" & AE206),0)","v":0},{"$f":"IF(Setup!$AJ$7<>\"\",INDIRECT(\"'\" & Setup!$AJ$7 & \"'!\" & AD206),0) + IF(Setup!$AJ$8<>\"\",INDIRECT(\"'\" & Setup!$AJ$8 & \"'!\" & AD206),0) + IF(Setup!$AJ$9<>\"\",INDIRECT(\"'\" & Setup!$AJ$9 & \"'!\" & AD206),0) + IF(Setup!$AJ$10<>\"\",INDIRECT(\"'\" & Setup!$AJ$10 & \"'!\" & AD206),0) + IF(Setup!$AJ$11<>\"\",INDIRECT(\"'\" & Setup!$AJ$11 & \"'!\" & AD206),0) + IF(Setup!$AJ$12<>\"\",INDIRECT(\"'\" & Setup!$AJ$12 & \"'!\" & AD206),0)","v":0},{"$f":"IF(Setup!$AJ$7<>\"\",INDIRECT(\"'\" & Setup!$AJ$7 & \"'!\" & AE206),0) + IF(Setup!$AJ$8<>\"\",INDIRECT(\"'\" & Setup!$AJ$8 & \"'!\" & AE206),0) + IF(Setup!$AJ$9<>\"\",INDIRECT(\"'\" & Setup!$AJ$9 & \"'!\" & AE206),0) + IF(Setup!$AJ$10<>\"\",INDIRECT(\"'\" & Setup!$AJ$10 & \"'!\" & AE206),0) + IF(Setup!$AJ$11<>\"\",INDIRECT(\"'\" & Setup!$AJ$11 & \"'!\" & AE206),0) + IF(Setup!$AJ$12<>\"\",INDIRECT(\"'\" & Setup!$AJ$12 & \"'!\" & AE206),0)","v":0}]
[{"$f":"Planning!A190","v":"I182"},{"$f":"Planning!B190","v":0},{"$f":"Planning!C190","v":0},{"$f":"Planning!D190","v":0},{"$f":"Planning!E190","v":0},{"$f":"Planning!G190","v":0},null,0,0,{"$f":"IF(AND($AR207=\"2\",$AB206<>Lists!$A$17),AU207,AT207)","v":""},"",0,0,{"$f":"IF(AND($AR207=\"2\",$AB207<>Lists!$A$17),AW207,AV207)","v":""},"",0,0,{"$f":"IF(AND($AR207=\"2\",$AB207<>Lists!$A$17),AY207,AX207)","v":""},"",0,0,{"$f":"IF(AND($AR207=\"2\",$AB207<>Lists!$A$17),BA207,AZ207)","v":""},"",0,0,{"$f":"IF(AND($AR207=\"2\",$AB207<>Lists!$A$17),BC207,BB207)","v":""},"",{"$f":"Planning!H190","v":0},"00","H206","J206","I206","",null,{"$f":"IF(Setup!$AG$7<>\"\",INDIRECT(\"'\" & Setup!$AG$7 & \"'!\" & AF207),0) + IF(Setup!$AG$8<>\"\",INDIRECT(\"'\" & Setup!$AG$8 & \"'!\" & AF207),0) + IF(Setup!$AG$9<>\"\",INDIRECT(\"'\" & Setup!$AG$9 & \"'!\" & AF207),0) + IF(Setup!$AG$10<>\"\",INDIRECT(\"'\" & Setup!$AG$10 & \"'!\" & AF207),0) + IF(Setup!$AG$11<>\"\",INDIRECT(\"'\" & Setup!$AG$11 & \"'!\" & AF207),0) + IF(Setup!$AG$12<>\"\",INDIRECT(\"'\" & Setup!$AG$12 & \"'!\" & AF207),0)","v":0},{"$f":"IF(Setup!$AH$7<>\"\",INDIRECT(\"'\" & Setup!$AH$7 & \"'!\" & AF207),0) + IF(Setup!$AH$8<>\"\",INDIRECT(\"'\" & Setup!$AH$8 & \"'!\" & AF207),0) + IF(Setup!$AH$9<>\"\",INDIRECT(\"'\" & Setup!$AH$9 & \"'!\" & AF207),0) + IF(Setup!$AH$10<>\"\",INDIRECT(\"'\" & Setup!$AH$10 & \"'!\" & AF207),0) + IF(Setup!$AH$11<>\"\",INDIRECT(\"'\" & Setup!$AH$11 & \"'!\" & AF207),0) + IF(Setup!$AH$12<>\"\",INDIRECT(\"'\" & Setup!$AH$12 & \"'!\" & AF207),0)","v":0},{"$f":"IF(Setup!$AI$7<>\"\",INDIRECT(\"'\" & Setup!$AI$7 & \"'!\" & AF207),0) + IF(Setup!$AI$8<>\"\",INDIRECT(\"'\" & Setup!$AI$8 & \"'!\" & AF207),0) + IF(Setup!$AI$9<>\"\",INDIRECT(\"'\" & Setup!$AI$9 & \"'!\" & AF207),0) + IF(Setup!$AI$10<>\"\",INDIRECT(\"'\" & Setup!$AI$10 & \"'!\" & AF207),0) + IF(Setup!$AI$11<>\"\",INDIRECT(\"'\" & Setup!$AI$11 & \"'!\" & AF207),0) + IF(Setup!$AI$12<>\"\",INDIRECT(\"'\" & Setup!$AI$12 & \"'!\" & AF207),0)","v":0},{"$f":"IF(Setup!$AJ$7<>\"\",INDIRECT(\"'\" & Setup!$AJ$7 & \"'!\" & AF207),0) + IF(Setup!$AJ$8<>\"\",INDIRECT(\"'\" & Setup!$AJ$8 & \"'!\" & AF207),0) + IF(Setup!$AJ$9<>\"\",INDIRECT(\"'\" & Setup!$AJ$9 & \"'!\" & AF207),0) + IF(Setup!$AJ$10<>\"\",INDIRECT(\"'\" & Setup!$AJ$10 & \"'!\" & AF207),0) + IF(Setup!$AJ$11<>\"\",INDIRECT(\"'\" & Setup!$AJ$11 & \"'!\" & AF207),0) + IF(Setup!$AJ$12<>\"\",INDIRECT(\"'\" & Setup!$AJ$12 & \"'!\" & AF207),0)","v":0},null,"",{"$nulls":3},{"$f":"IF(C207=0,\"\",LEFT(INDEX(Lists!$H$5:$H$49,MATCH(C207,Lists!$G$5:$G$49,0),1),1))","v":""},null,"","","","","","","","","","",{"$nulls":6},{"$f":"IF(Setup!$AG$7<>\"\",INDIRECT(\"'\" & Setup!$AG$7 & \"'!\" & AD207),0) + IF(Setup!$AG$8<>\"\",INDIRECT(\"'\" & Setup!$AG$8 & \"'!\" & AD207),0) + IF(Setup!$AG$9<>\"\",INDIRECT(\"'\" & Setup!$AG$9 & \"'!\" & AD207),0) + IF(Setup!$AG$10<>\"\",INDIRECT(\"'\" & Setup!$AG$10 & \"'!\" & AD207),0) + IF(Setup!$AG$11<>\"\",INDIRECT(\"'\" & Setup!$AG$11 & \"'!\" & AD207),0) + IF(Setup!$AG$12<>\"\",INDIRECT(\"'\" & Setup!$AG$12 & \"'!\" & AD207),0)","v":0},{"$f":"IF(Setup!$AG$7<>\"\",INDIRECT(\"'\" & Setup!$AG$7 & \"'!\" & AE207),0) + IF(Setup!$AG$8<>\"\",INDIRECT(\"'\" & Setup!$AG$8 & \"'!\" & AE207),0) + IF(Setup!$AG$9<>\"\",INDIRECT(\"'\" & Setup!$AG$9 & \"'!\" & AE207),0) + IF(Setup!$AG$10<>\"\",INDIRECT(\"'\" & Setup!$AG$10 & \"'!\" & AE207),0) + IF(Setup!$AG$11<>\"\",INDIRECT(\"'\" & Setup!$AG$11 & \"'!\" & AE207),0) + IF(Setup!$AG$12<>\"\",INDIRECT(\"'\" & Setup!$AG$12 & \"'!\" & AE207),0)","v":0},{"$f":"IF(Setup!$AH$7<>\"\",INDIRECT(\"'\" & Setup!$AH$7 & \"'!\" & AD207),0) + IF(Setup!$AH$8<>\"\",INDIRECT(\"'\" & Setup!$AH$8 & \"'!\" & AD207),0) + IF(Setup!$AH$9<>\"\",INDIRECT(\"'\" & Setup!$AH$9 & \"'!\" & AD207),0) + IF(Setup!$AH$10<>\"\",INDIRECT(\"'\" & Setup!$AH$10 & \"'!\" & AD207),0) + IF(Setup!$AH$11<>\"\",INDIRECT(\"'\" & Setup!$AH$11 & \"'!\" & AD207),0) + IF(Setup!$AH$12<>\"\",INDIRECT(\"'\" & Setup!$AH$12 & \"'!\" & AD207),0)","v":0},{"$f":"IF(Setup!$AH$7<>\"\",INDIRECT(\"'\" & Setup!$AH$7 & \"'!\" & AE207),0) + IF(Setup!$AH$8<>\"\",INDIRECT(\"'\" & Setup!$AH$8 & \"'!\" & AE207),0) + IF(Setup!$AH$9<>\"\",INDIRECT(\"'\" & Setup!$AH$9 & \"'!\" & AE207),0) + IF(Setup!$AH$10<>\"\",INDIRECT(\"'\" & Setup!$AH$10 & \"'!\" & AE207),0) + IF(Setup!$AH$11<>\"\",INDIRECT(\"'\" & Setup!$AH$11 & \"'!\" & AE207),0) + IF(Setup!$AH$12<>\"\",INDIRECT(\"'\" & Setup!$AH$12 & \"'!\" & AE207),0)","v":0},{"$f":"IF(Setup!$AI$7<>\"\",INDIRECT(\"'\" & Setup!$AI$7 & \"'!\" & AD207),0) + IF(Setup!$AI$8<>\"\",INDIRECT(\"'\" & Setup!$AI$8 & \"'!\" & AD207),0) + IF(Setup!$AI$9<>\"\",INDIRECT(\"'\" & Setup!$AI$9 & \"'!\" & AD207),0) + IF(Setup!$AI$10<>\"\",INDIRECT(\"'\" & Setup!$AI$10 & \"'!\" & AD207),0) + IF(Setup!$AI$11<>\"\",INDIRECT(\"'\" & Setup!$AI$11 & \"'!\" & AD207),0) + IF(Setup!$AI$12<>\"\",INDIRECT(\"'\" & Setup!$AI$12 & \"'!\" & AD207),0)","v":0},{"$f":"IF(Setup!$AI$7<>\"\",INDIRECT(\"'\" & Setup!$AI$7 & \"'!\" & AE207),0) + IF(Setup!$AI$8<>\"\",INDIRECT(\"'\" & Setup!$AI$8 & \"'!\" & AE207),0) + IF(Setup!$AI$9<>\"\",INDIRECT(\"'\" & Setup!$AI$9 & \"'!\" & AE207),0) + IF(Setup!$AI$10<>\"\",INDIRECT(\"'\" & Setup!$AI$10 & \"'!\" & AE207),0) + IF(Setup!$AI$11<>\"\",INDIRECT(\"'\" & Setup!$AI$11 & \"'!\" & AE207),0) + IF(Setup!$AI$12<>\"\",INDIRECT(\"'\" & Setup!$AI$12 & \"'!\" & AE207),0)","v":0},{"$f":"IF(Setup!$AJ$7<>\"\",INDIRECT(\"'\" & Setup!$AJ$7 & \"'!\" & AD207),0) + IF(Setup!$AJ$8<>\"\",INDIRECT(\"'\" & Setup!$AJ$8 & \"'!\" & AD207),0) + IF(Setup!$AJ$9<>\"\",INDIRECT(\"'\" & Setup!$AJ$9 & \"'!\" & AD207),0) + IF(Setup!$AJ$10<>\"\",INDIRECT(\"'\" & Setup!$AJ$10 & \"'!\" & AD207),0) + IF(Setup!$AJ$11<>\"\",INDIRECT(\"'\" & Setup!$AJ$11 & \"'!\" & AD207),0) + IF(Setup!$AJ$12<>\"\",INDIRECT(\"'\" & Setup!$AJ$12 & \"'!\" & AD207),0)","v":0},{"$f":"IF(Setup!$AJ$7<>\"\",INDIRECT(\"'\" & Setup!$AJ$7 & \"'!\" & AE207),0) + IF(Setup!$AJ$8<>\"\",INDIRECT(\"'\" & Setup!$AJ$8 & \"'!\" & AE207),0) + IF(Setup!$AJ$9<>\"\",INDIRECT(\"'\" & Setup!$AJ$9 & \"'!\" & AE207),0) + IF(Setup!$AJ$10<>\"\",INDIRECT(\"'\" & Setup!$AJ$10 & \"'!\" & AE207),0) + IF(Setup!$AJ$11<>\"\",INDIRECT(\"'\" & Setup!$AJ$11 & \"'!\" & AE207),0) + IF(Setup!$AJ$12<>\"\",INDIRECT(\"'\" & Setup!$AJ$12 & \"'!\" & AE207),0)","v":0}]
[{"$f":"Planning!A191","v":"I183"},{"$f":"Planning!B191","v":0},{"$f":"Planning!C191","v":0},{"$f":"Planning!D191","v":0},{"$f":"Planning!E191","v":0},{"$f":"Planning!G191","v":0},null,0,0,{"$f":"IF(AND($AR208=\"2\",$AB207<>Lists!$A$17),AU208,AT208)","v":""},"",0,0,{"$f":"IF(AND($AR208=\"2\",$AB208<>Lists!$A$17),AW208,AV208)","v":""},"",0,0,{"$f":"IF(AND($AR208=\"2\",$AB208<>Lists!$A$17),AY208,AX208)","v":""},"",0,0,{"$f":"IF(AND($AR208=\"2\",$AB208<>Lists!$A$17),BA208,AZ208)","v":""},"",0,0,{"$f":"IF(AND($AR208=\"2\",$AB208<>Lists!$A$17),BC208,BB208)","v":""},"",{"$f":"Planning!H191","v":0},"00","H207","J207","I207","",null,{"$f":"IF(Setup!$AG$7<>\"\",INDIRECT(\"'\" & Setup!$AG$7 & \"'!\" & AF208),0) + IF(Setup!$AG$8<>\"\",INDIRECT(\"'\" & Setup!$AG$8 & \"'!\" & AF208),0) + IF(Setup!$AG$9<>\"\",INDIRECT(\"'\" & Setup!$AG$9 & \"'!\" & AF208),0) + IF(Setup!$AG$10<>\"\",INDIRECT(\"'\" & Setup!$AG$10 & \"'!\" & AF208),0) + IF(Setup!$AG$11<>\"\",INDIRECT(\"'\" & Setup!$AG$11 & \"'!\" & AF208),0) + IF(Setup!$AG$12<>\"\",INDIRECT(\"'\" & Setup!$AG$12 & \"'!\" & AF208),0)","v":0},{"$f":"IF(Setup!$AH$7<>\"\",INDIRECT(\"'\" & Setup!$AH$7 & \"'!\" & AF208),0) + IF(Setup!$AH$8<>\"\",INDIRECT(\"'\" & Setup!$AH$8 & \"'!\" & AF208),0) + IF(Setup!$AH$9<>\"\",INDIRECT(\"'\" & Setup!$AH$9 & \"'!\" & AF208),0) + IF(Setup!$AH$10<>\"\",INDIRECT(\"'\" & Setup!$AH$10 & \"'!\" & AF208),0) + IF(Setup!$AH$11<>\"\",INDIRECT(\"'\" & Setup!$AH$11 & \"'!\" & AF208),0) + IF(Setup!$AH$12<>\"\",INDIRECT(\"'\" & Setup!$AH$12 & \"'!\" & AF208),0)","v":0},{"$f":"IF(Setup!$AI$7<>\"\",INDIRECT(\"'\" & Setup!$AI$7 & \"'!\" & AF208),0) + IF(Setup!$AI$8<>\"\",INDIRECT(\"'\" & Setup!$AI$8 & \"'!\" & AF208),0) + IF(Setup!$AI$9<>\"\",INDIRECT(\"'\" & Setup!$AI$9 & \"'!\" & AF208),0) + IF(Setup!$AI$10<>\"\",INDIRECT(\"'\" & Setup!$AI$10 & \"'!\" & AF208),0) + IF(Setup!$AI$11<>\"\",INDIRECT(\"'\" & Setup!$AI$11 & \"'!\" & AF208),0) + IF(Setup!$AI$12<>\"\",INDIRECT(\"'\" & Setup!$AI$12 & \"'!\" & AF208),0)","v":0},{"$f":"IF(Setup!$AJ$7<>\"\",INDIRECT(\"'\" & Setup!$AJ$7 & \"'!\" & AF208),0) + IF(Setup!$AJ$8<>\"\",INDIRECT(\"'\" & Setup!$AJ$8 & \"'!\" & AF208),0) + IF(Setup!$AJ$9<>\"\",INDIRECT(\"'\" & Setup!$AJ$9 & \"'!\" & AF208),0) + IF(Setup!$AJ$10<>\"\",INDIRECT(\"'\" & Setup!$AJ$10 & \"'!\" & AF208),0) + IF(Setup!$AJ$11<>\"\",INDIRECT(\"'\" & Setup!$AJ$11 & \"'!\" & AF208),0) + IF(Setup!$AJ$12<>\"\",INDIRECT(\"'\" & Setup!$AJ$12 & \"'!\" & AF208),0)","v":0},null,"",{"$nulls":3},{"$f":"IF(C208=0,\"\",LEFT(INDEX(Lists!$H$5:$H$49,MATCH(C208,Lists!$G$5:$G$49,0),1),1))","v":""},null,"","","","","","","","","","",{"$nulls":6},{"$f":"IF(Setup!$AG$7<>\"\",INDIRECT(\"'\" & Setup!$AG$7 & \"'!\" & AD208),0) + IF(Setup!$AG$8<>\"\",INDIRECT(\"'\" & Setup!$AG$8 & \"'!\" & AD208),0) + IF(Setup!$AG$9<>\"\",INDIRECT(\"'\" & Setup!$AG$9 & \"'!\" & AD208),0) + IF(Setup!$AG$10<>\"\",INDIRECT(\"'\" & Setup!$AG$10 & \"'!\" & AD208),0) + IF(Setup!$AG$11<>\"\",INDIRECT(\"'\" & Setup!$AG$11 & \"'!\" & AD208),0) + IF(Setup!$AG$12<>\"\",INDIRECT(\"'\" & Setup!$AG$12 & \"'!\" & AD208),0)","v":0},{"$f":"IF(Setup!$AG$7<>\"\",INDIRECT(\"'\" & Setup!$AG$7 & \"'!\" & AE208),0) + IF(Setup!$AG$8<>\"\",INDIRECT(\"'\" & Setup!$AG$8 & \"'!\" & AE208),0) + IF(Setup!$AG$9<>\"\",INDIRECT(\"'\" & Setup!$AG$9 & \"'!\" & AE208),0) + IF(Setup!$AG$10<>\"\",INDIRECT(\"'\" & Setup!$AG$10 & \"'!\" & AE208),0) + IF(Setup!$AG$11<>\"\",INDIRECT(\"'\" & Setup!$AG$11 & \"'!\" & AE208),0) + IF(Setup!$AG$12<>\"\",INDIRECT(\"'\" & Setup!$AG$12 & \"'!\" & AE208),0)","v":0},{"$f":"IF(Setup!$AH$7<>\"\",INDIRECT(\"'\" & Setup!$AH$7 & \"'!\" & AD208),0) + IF(Setup!$AH$8<>\"\",INDIRECT(\"'\" & Setup!$AH$8 & \"'!\" & AD208),0) + IF(Setup!$AH$9<>\"\",INDIRECT(\"'\" & Setup!$AH$9 & \"'!\" & AD208),0) + IF(Setup!$AH$10<>\"\",INDIRECT(\"'\" & Setup!$AH$10 & \"'!\" & AD208),0) + IF(Setup!$AH$11<>\"\",INDIRECT(\"'\" & Setup!$AH$11 & \"'!\" & AD208),0) + IF(Setup!$AH$12<>\"\",INDIRECT(\"'\" & Setup!$AH$12 & \"'!\" & AD208),0)","v":0},{"$f":"IF(Setup!$AH$7<>\"\",INDIRECT(\"'\" & Setup!$AH$7 & \"'!\" & AE208),0) + IF(Setup!$AH$8<>\"\",INDIRECT(\"'\" & Setup!$AH$8 & \"'!\" & AE208),0) + IF(Setup!$AH$9<>\"\",INDIRECT(\"'\" & Setup!$AH$9 & \"'!\" & AE208),0) + IF(Setup!$AH$10<>\"\",INDIRECT(\"'\" & Setup!$AH$10 & \"'!\" & AE208),0) + IF(Setup!$AH$11<>\"\",INDIRECT(\"'\" & Setup!$AH$11 & \"'!\" & AE208),0) + IF(Setup!$AH$12<>\"\",INDIRECT(\"'\" & Setup!$AH$12 & \"'!\" & AE208),0)","v":0},{"$f":"IF(Setup!$AI$7<>\"\",INDIRECT(\"'\" & Setup!$AI$7 & \"'!\" & AD208),0) + IF(Setup!$AI$8<>\"\",INDIRECT(\"'\" & Setup!$AI$8 & \"'!\" & AD208),0) + IF(Setup!$AI$9<>\"\",INDIRECT(\"'\" & Setup!$AI$9 & \"'!\" & AD208),0) + IF(Setup!$AI$10<>\"\",INDIRECT(\"'\" & Setup!$AI$10 & \"'!\" & AD208),0) + IF(Setup!$AI$11<>\"\",INDIRECT(\"'\" & Setup!$AI$11 & \"'!\" & AD208),0) + IF(Setup!$AI$12<>\"\",INDIRECT(\"'\" & Setup!$AI$12 & \"'!\" & AD208),0)","v":0},{"$f":"IF(Setup!$AI$7<>\"\",INDIRECT(\"'\" & Setup!$AI$7 & \"'!\" & AE208),0) + IF(Setup!$AI$8<>\"\",INDIRECT(\"'\" & Setup!$AI$8 & \"'!\" & AE208),0) + IF(Setup!$AI$9<>\"\",INDIRECT(\"'\" & Setup!$AI$9 & \"'!\" & AE208),0) + IF(Setup!$AI$10<>\"\",INDIRECT(\"'\" & Setup!$AI$10 & \"'!\" & AE208),0) + IF(Setup!$AI$11<>\"\",INDIRECT(\"'\" & Setup!$AI$11 & \"'!\" & AE208),0) + IF(Setup!$AI$12<>\"\",INDIRECT(\"'\" & Setup!$AI$12 & \"'!\" & AE208),0)","v":0},{"$f":"IF(Setup!$AJ$7<>\"\",INDIRECT(\"'\" & Setup!$AJ$7 & \"'!\" & AD208),0) + IF(Setup!$AJ$8<>\"\",INDIRECT(\"'\" & Setup!$AJ$8 & \"'!\" & AD208),0) + IF(Setup!$AJ$9<>\"\",INDIRECT(\"'\" & Setup!$AJ$9 & \"'!\" & AD208),0) + IF(Setup!$AJ$10<>\"\",INDIRECT(\"'\" & Setup!$AJ$10 & \"'!\" & AD208),0) + IF(Setup!$AJ$11<>\"\",INDIRECT(\"'\" & Setup!$AJ$11 & \"'!\" & AD208),0) + IF(Setup!$AJ$12<>\"\",INDIRECT(\"'\" & Setup!$AJ$12 & \"'!\" & AD208),0)","v":0},{"$f":"IF(Setup!$AJ$7<>\"\",INDIRECT(\"'\" & Setup!$AJ$7 & \"'!\" & AE208),0) + IF(Setup!$AJ$8<>\"\",INDIRECT(\"'\" & Setup!$AJ$8 & \"'!\" & AE208),0) + IF(Setup!$AJ$9<>\"\",INDIRECT(\"'\" & Setup!$AJ$9 & \"'!\" & AE208),0) + IF(Setup!$AJ$10<>\"\",INDIRECT(\"'\" & Setup!$AJ$10 & \"'!\" & AE208),0) + IF(Setup!$AJ$11<>\"\",INDIRECT(\"'\" & Setup!$AJ$11 & \"'!\" & AE208),0) + IF(Setup!$AJ$12<>\"\",INDIRECT(\"'\" & Setup!$AJ$12 & \"'!\" & AE208),0)","v":0}]
[{"$f":"Planning!A192","v":"I184"},{"$f":"Planning!B192","v":0},{"$f":"Planning!C192","v":0},{"$f":"Planning!D192","v":0},{"$f":"Planning!E192","v":0},{"$f":"Planning!G192","v":0},null,0,0,{"$f":"IF(AND($AR209=\"2\",$AB208<>Lists!$A$17),AU209,AT209)","v":""},"",0,0,{"$f":"IF(AND($AR209=\"2\",$AB209<>Lists!$A$17),AW209,AV209)","v":""},"",0,0,{"$f":"IF(AND($AR209=\"2\",$AB209<>Lists!$A$17),AY209,AX209)","v":""},"",0,0,{"$f":"IF(AND($AR209=\"2\",$AB209<>Lists!$A$17),BA209,AZ209)","v":""},"",0,0,{"$f":"IF(AND($AR209=\"2\",$AB209<>Lists!$A$17),BC209,BB209)","v":""},"",{"$f":"Planning!H192","v":0},"00","H208","J208","I208","",null,{"$f":"IF(Setup!$AG$7<>\"\",INDIRECT(\"'\" & Setup!$AG$7 & \"'!\" & AF209),0) + IF(Setup!$AG$8<>\"\",INDIRECT(\"'\" & Setup!$AG$8 & \"'!\" & AF209),0) + IF(Setup!$AG$9<>\"\",INDIRECT(\"'\" & Setup!$AG$9 & \"'!\" & AF209),0) + IF(Setup!$AG$10<>\"\",INDIRECT(\"'\" & Setup!$AG$10 & \"'!\" & AF209),0) + IF(Setup!$AG$11<>\"\",INDIRECT(\"'\" & Setup!$AG$11 & \"'!\" & AF209),0) + IF(Setup!$AG$12<>\"\",INDIRECT(\"'\" & Setup!$AG$12 & \"'!\" & AF209),0)","v":0},{"$f":"IF(Setup!$AH$7<>\"\",INDIRECT(\"'\" & Setup!$AH$7 & \"'!\" & AF209),0) + IF(Setup!$AH$8<>\"\",INDIRECT(\"'\" & Setup!$AH$8 & \"'!\" & AF209),0) + IF(Setup!$AH$9<>\"\",INDIRECT(\"'\" & Setup!$AH$9 & \"'!\" & AF209),0) + IF(Setup!$AH$10<>\"\",INDIRECT(\"'\" & Setup!$AH$10 & \"'!\" & AF209),0) + IF(Setup!$AH$11<>\"\",INDIRECT(\"'\" & Setup!$AH$11 & \"'!\" & AF209),0) + IF(Setup!$AH$12<>\"\",INDIRECT(\"'\" & Setup!$AH$12 & \"'!\" & AF209),0)","v":0},{"$f":"IF(Setup!$AI$7<>\"\",INDIRECT(\"'\" & Setup!$AI$7 & \"'!\" & AF209),0) + IF(Setup!$AI$8<>\"\",INDIRECT(\"'\" & Setup!$AI$8 & \"'!\" & AF209),0) + IF(Setup!$AI$9<>\"\",INDIRECT(\"'\" & Setup!$AI$9 & \"'!\" & AF209),0) + IF(Setup!$AI$10<>\"\",INDIRECT(\"'\" & Setup!$AI$10 & \"'!\" & AF209),0) + IF(Setup!$AI$11<>\"\",INDIRECT(\"'\" & Setup!$AI$11 & \"'!\" & AF209),0) + IF(Setup!$AI$12<>\"\",INDIRECT(\"'\" & Setup!$AI$12 & \"'!\" & AF209),0)","v":0},{"$f":"IF(Setup!$AJ$7<>\"\",INDIRECT(\"'\" & Setup!$AJ$7 & \"'!\" & AF209),0) + IF(Setup!$AJ$8<>\"\",INDIRECT(\"'\" & Setup!$AJ$8 & \"'!\" & AF209),0) + IF(Setup!$AJ$9<>\"\",INDIRECT(\"'\" & Setup!$AJ$9 & \"'!\" & AF209),0) + IF(Setup!$AJ$10<>\"\",INDIRECT(\"'\" & Setup!$AJ$10 & \"'!\" & AF209),0) + IF(Setup!$AJ$11<>\"\",INDIRECT(\"'\" & Setup!$AJ$11 & \"'!\" & AF209),0) + IF(Setup!$AJ$12<>\"\",INDIRECT(\"'\" & Setup!$AJ$12 & \"'!\" & AF209),0)","v":0},null,"",{"$nulls":3},{"$f":"IF(C209=0,\"\",LEFT(INDEX(Lists!$H$5:$H$49,MATCH(C209,Lists!$G$5:$G$49,0),1),1))","v":""},null,"","","","","","","","","","",{"$nulls":6},{"$f":"IF(Setup!$AG$7<>\"\",INDIRECT(\"'\" & Setup!$AG$7 & \"'!\" & AD209),0) + IF(Setup!$AG$8<>\"\",INDIRECT(\"'\" & Setup!$AG$8 & \"'!\" & AD209),0) + IF(Setup!$AG$9<>\"\",INDIRECT(\"'\" & Setup!$AG$9 & \"'!\" & AD209),0) + IF(Setup!$AG$10<>\"\",INDIRECT(\"'\" & Setup!$AG$10 & \"'!\" & AD209),0) + IF(Setup!$AG$11<>\"\",INDIRECT(\"'\" & Setup!$AG$11 & \"'!\" & AD209),0) + IF(Setup!$AG$12<>\"\",INDIRECT(\"'\" & Setup!$AG$12 & \"'!\" & AD209),0)","v":0},{"$f":"IF(Setup!$AG$7<>\"\",INDIRECT(\"'\" & Setup!$AG$7 & \"'!\" & AE209),0) + IF(Setup!$AG$8<>\"\",INDIRECT(\"'\" & Setup!$AG$8 & \"'!\" & AE209),0) + IF(Setup!$AG$9<>\"\",INDIRECT(\"'\" & Setup!$AG$9 & \"'!\" & AE209),0) + IF(Setup!$AG$10<>\"\",INDIRECT(\"'\" & Setup!$AG$10 & \"'!\" & AE209),0) + IF(Setup!$AG$11<>\"\",INDIRECT(\"'\" & Setup!$AG$11 & \"'!\" & AE209),0) + IF(Setup!$AG$12<>\"\",INDIRECT(\"'\" & Setup!$AG$12 & \"'!\" & AE209),0)","v":0},{"$f":"IF(Setup!$AH$7<>\"\",INDIRECT(\"'\" & Setup!$AH$7 & \"'!\" & AD209),0) + IF(Setup!$AH$8<>\"\",INDIRECT(\"'\" & Setup!$AH$8 & \"'!\" & AD209),0) + IF(Setup!$AH$9<>\"\",INDIRECT(\"'\" & Setup!$AH$9 & \"'!\" & AD209),0) + IF(Setup!$AH$10<>\"\",INDIRECT(\"'\" & Setup!$AH$10 & \"'!\" & AD209),0) + IF(Setup!$AH$11<>\"\",INDIRECT(\"'\" & Setup!$AH$11 & \"'!\" & AD209),0) + IF(Setup!$AH$12<>\"\",INDIRECT(\"'\" & Setup!$AH$12 & \"'!\" & AD209),0)","v":0},{"$f":"IF(Setup!$AH$7<>\"\",INDIRECT(\"'\" & Setup!$AH$7 & \"'!\" & AE209),0) + IF(Setup!$AH$8<>\"\",INDIRECT(\"'\" & Setup!$AH$8 & \"'!\" & AE209),0) + IF(Setup!$AH$9<>\"\",INDIRECT(\"'\" & Setup!$AH$9 & \"'!\" & AE209),0) + IF(Setup!$AH$10<>\"\",INDIRECT(\"'\" & Setup!$AH$10 & \"'!\" & AE209),0) + IF(Setup!$AH$11<>\"\",INDIRECT(\"'\" & Setup!$AH$11 & \"'!\" & AE209),0) + IF(Setup!$AH$12<>\"\",INDIRECT(\"'\" & Setup!$AH$12 & \"'!\" & AE209),0)","v":0},{"$f":"IF(Setup!$AI$7<>\"\",INDIRECT(\"'\" & Setup!$AI$7 & \"'!\" & AD209),0) + IF(Setup!$AI$8<>\"\",INDIRECT(\"'\" & Setup!$AI$8 & \"'!\" & AD209),0) + IF(Setup!$AI$9<>\"\",INDIRECT(\"'\" & Setup!$AI$9 & \"'!\" & AD209),0) + IF(Setup!$AI$10<>\"\",INDIRECT(\"'\" & Setup!$AI$10 & \"'!\" & AD209),0) + IF(Setup!$AI$11<>\"\",INDIRECT(\"'\" & Setup!$AI$11 & \"'!\" & AD209),0) + IF(Setup!$AI$12<>\"\",INDIRECT(\"'\" & Setup!$AI$12 & \"'!\" & AD209),0)","v":0},{"$f":"IF(Setup!$AI$7<>\"\",INDIRECT(\"'\" & Setup!$AI$7 & \"'!\" & AE209),0) + IF(Setup!$AI$8<>\"\",INDIRECT(\"'\" & Setup!$AI$8 & \"'!\" & AE209),0) + IF(Setup!$AI$9<>\"\",INDIRECT(\"'\" & Setup!$AI$9 & \"'!\" & AE209),0) + IF(Setup!$AI$10<>\"\",INDIRECT(\"'\" & Setup!$AI$10 & \"'!\" & AE209),0) + IF(Setup!$AI$11<>\"\",INDIRECT(\"'\" & Setup!$AI$11 & \"'!\" & AE209),0) + IF(Setup!$AI$12<>\"\",INDIRECT(\"'\" & Setup!$AI$12 & \"'!\" & AE209),0)","v":0},{"$f":"IF(Setup!$AJ$7<>\"\",INDIRECT(\"'\" & Setup!$AJ$7 & \"'!\" & AD209),0) + IF(Setup!$AJ$8<>\"\",INDIRECT(\"'\" & Setup!$AJ$8 & \"'!\" & AD209),0) + IF(Setup!$AJ$9<>\"\",INDIRECT(\"'\" & Setup!$AJ$9 & \"'!\" & AD209),0) + IF(Setup!$AJ$10<>\"\",INDIRECT(\"'\" & Setup!$AJ$10 & \"'!\" & AD209),0) + IF(Setup!$AJ$11<>\"\",INDIRECT(\"'\" & Setup!$AJ$11 & \"'!\" & AD209),0) + IF(Setup!$AJ$12<>\"\",INDIRECT(\"'\" & Setup!$AJ$12 & \"'!\" & AD209),0)","v":0},{"$f":"IF(Setup!$AJ$7<>\"\",INDIRECT(\"'\" & Setup!$AJ$7 & \"'!\" & AE209),0) + IF(Setup!$AJ$8<>\"\",INDIRECT(\"'\" & Setup!$AJ$8 & \"'!\" & AE209),0) + IF(Setup!$AJ$9<>\"\",INDIRECT(\"'\" & Setup!$AJ$9 & \"'!\" & AE209),0) + IF(Setup!$AJ$10<>\"\",INDIRECT(\"'\" & Setup!$AJ$10 & \"'!\" & AE209),0) + IF(Setup!$AJ$11<>\"\",INDIRECT(\"'\" & Setup!$AJ$11 & \"'!\" & AE209),0) + IF(Setup!$AJ$12<>\"\",INDIRECT(\"'\" & Setup!$AJ$12 & \"'!\" & AE209),0)","v":0}]
[{"$f":"Planning!A193","v":"I185"},{"$f":"Planning!B193","v":0},{"$f":"Planning!C193","v":0},{"$f":"Planning!D193","v":0},{"$f":"Planning!E193","v":0},{"$f":"Planning!G193","v":0},null,0,0,{"$f":"IF(AND($AR210=\"2\",$AB209<>Lists!$A$17),AU210,AT210)","v":""},"",0,0,{"$f":"IF(AND($AR210=\"2\",$AB210<>Lists!$A$17),AW210,AV210)","v":""},"",0,0,{"$f":"IF(AND($AR210=\"2\",$AB210<>Lists!$A$17),AY210,AX210)","v":""},"",0,0,{"$f":"IF(AND($AR210=\"2\",$AB210<>Lists!$A$17),BA210,AZ210)","v":""},"",0,0,{"$f":"IF(AND($AR210=\"2\",$AB210<>Lists!$A$17),BC210,BB210)","v":""},"",{"$f":"Planning!H193","v":0},"00","H209","J209","I209","",null,{"$f":"IF(Setup!$AG$7<>\"\",INDIRECT(\"'\" & Setup!$AG$7 & \"'!\" & AF210),0) + IF(Setup!$AG$8<>\"\",INDIRECT(\"'\" & Setup!$AG$8 & \"'!\" & AF210),0) + IF(Setup!$AG$9<>\"\",INDIRECT(\"'\" & Setup!$AG$9 & \"'!\" & AF210),0) + IF(Setup!$AG$10<>\"\",INDIRECT(\"'\" & Setup!$AG$10 & \"'!\" & AF210),0) + IF(Setup!$AG$11<>\"\",INDIRECT(\"'\" & Setup!$AG$11 & \"'!\" & AF210),0) + IF(Setup!$AG$12<>\"\",INDIRECT(\"'\" & Setup!$AG$12 & \"'!\" & AF210),0)","v":0},{"$f":"IF(Setup!$AH$7<>\"\",INDIRECT(\"'\" & Setup!$AH$7 & \"'!\" & AF210),0) + IF(Setup!$AH$8<>\"\",INDIRECT(\"'\" & Setup!$AH$8 & \"'!\" & AF210),0) + IF(Setup!$AH$9<>\"\",INDIRECT(\"'\" & Setup!$AH$9 & \"'!\" & AF210),0) + IF(Setup!$AH$10<>\"\",INDIRECT(\"'\" & Setup!$AH$10 & \"'!\" & AF210),0) + IF(Setup!$AH$11<>\"\",INDIRECT(\"'\" & Setup!$AH$11 & \"'!\" & AF210),0) + IF(Setup!$AH$12<>\"\",INDIRECT(\"'\" & Setup!$AH$12 & \"'!\" & AF210),0)","v":0},{"$f":"IF(Setup!$AI$7<>\"\",INDIRECT(\"'\" & Setup!$AI$7 & \"'!\" & AF210),0) + IF(Setup!$AI$8<>\"\",INDIRECT(\"'\" & Setup!$AI$8 & \"'!\" & AF210),0) + IF(Setup!$AI$9<>\"\",INDIRECT(\"'\" & Setup!$AI$9 & \"'!\" & AF210),0) + IF(Setup!$AI$10<>\"\",INDIRECT(\"'\" & Setup!$AI$10 & \"'!\" & AF210),0) + IF(Setup!$AI$11<>\"\",INDIRECT(\"'\" & Setup!$AI$11 & \"'!\" & AF210),0) + IF(Setup!$AI$12<>\"\",INDIRECT(\"'\" & Setup!$AI$12 & \"'!\" & AF210),0)","v":0},{"$f":"IF(Setup!$AJ$7<>\"\",INDIRECT(\"'\" & Setup!$AJ$7 & \"'!\" & AF210),0) + IF(Setup!$AJ$8<>\"\",INDIRECT(\"'\" & Setup!$AJ$8 & \"'!\" & AF210),0) + IF(Setup!$AJ$9<>\"\",INDIRECT(\"'\" & Setup!$AJ$9 & \"'!\" & AF210),0) + IF(Setup!$AJ$10<>\"\",INDIRECT(\"'\" & Setup!$AJ$10 & \"'!\" & AF210),0) + IF(Setup!$AJ$11<>\"\",INDIRECT(\"'\" & Setup!$AJ$11 & \"'!\" & AF210),0) + IF(Setup!$AJ$12<>\"\",INDIRECT(\"'\" & Setup!$AJ$12 & \"'!\" & AF210),0)","v":0},null,"",{"$nulls":3},{"$f":"IF(C210=0,\"\",LEFT(INDEX(Lists!$H$5:$H$49,MATCH(C210,Lists!$G$5:$G$49,0),1),1))","v":""},null,"","","","","","","","","","",{"$nulls":6},{"$f":"IF(Setup!$AG$7<>\"\",INDIRECT(\"'\" & Setup!$AG$7 & \"'!\" & AD210),0) + IF(Setup!$AG$8<>\"\",INDIRECT(\"'\" & Setup!$AG$8 & \"'!\" & AD210),0) + IF(Setup!$AG$9<>\"\",INDIRECT(\"'\" & Setup!$AG$9 & \"'!\" & AD210),0) + IF(Setup!$AG$10<>\"\",INDIRECT(\"'\" & Setup!$AG$10 & \"'!\" & AD210),0) + IF(Setup!$AG$11<>\"\",INDIRECT(\"'\" & Setup!$AG$11 & \"'!\" & AD210),0) + IF(Setup!$AG$12<>\"\",INDIRECT(\"'\" & Setup!$AG$12 & \"'!\" & AD210),0)","v":0},{"$f":"IF(Setup!$AG$7<>\"\",INDIRECT(\"'\" & Setup!$AG$7 & \"'!\" & AE210),0) + IF(Setup!$AG$8<>\"\",INDIRECT(\"'\" & Setup!$AG$8 & \"'!\" & AE210),0) + IF(Setup!$AG$9<>\"\",INDIRECT(\"'\" & Setup!$AG$9 & \"'!\" & AE210),0) + IF(Setup!$AG$10<>\"\",INDIRECT(\"'\" & Setup!$AG$10 & \"'!\" & AE210),0) + IF(Setup!$AG$11<>\"\",INDIRECT(\"'\" & Setup!$AG$11 & \"'!\" & AE210),0) + IF(Setup!$AG$12<>\"\",INDIRECT(\"'\" & Setup!$AG$12 & \"'!\" & AE210),0)","v":0},{"$f":"IF(Setup!$AH$7<>\"\",INDIRECT(\"'\" & Setup!$AH$7 & \"'!\" & AD210),0) + IF(Setup!$AH$8<>\"\",INDIRECT(\"'\" & Setup!$AH$8 & \"'!\" & AD210),0) + IF(Setup!$AH$9<>\"\",INDIRECT(\"'\" & Setup!$AH$9 & \"'!\" & AD210),0) + IF(Setup!$AH$10<>\"\",INDIRECT(\"'\" & Setup!$AH$10 & \"'!\" & AD210),0) + IF(Setup!$AH$11<>\"\",INDIRECT(\"'\" & Setup!$AH$11 & \"'!\" & AD210),0) + IF(Setup!$AH$12<>\"\",INDIRECT(\"'\" & Setup!$AH$12 & \"'!\" & AD210),0)","v":0},{"$f":"IF(Setup!$AH$7<>\"\",INDIRECT(\"'\" & Setup!$AH$7 & \"'!\" & AE210),0) + IF(Setup!$AH$8<>\"\",INDIRECT(\"'\" & Setup!$AH$8 & \"'!\" & AE210),0) + IF(Setup!$AH$9<>\"\",INDIRECT(\"'\" & Setup!$AH$9 & \"'!\" & AE210),0) + IF(Setup!$AH$10<>\"\",INDIRECT(\"'\" & Setup!$AH$10 & \"'!\" & AE210),0) + IF(Setup!$AH$11<>\"\",INDIRECT(\"'\" & Setup!$AH$11 & \"'!\" & AE210),0) + IF(Setup!$AH$12<>\"\",INDIRECT(\"'\" & Setup!$AH$12 & \"'!\" & AE210),0)","v":0},{"$f":"IF(Setup!$AI$7<>\"\",INDIRECT(\"'\" & Setup!$AI$7 & \"'!\" & AD210),0) + IF(Setup!$AI$8<>\"\",INDIRECT(\"'\" & Setup!$AI$8 & \"'!\" & AD210),0) + IF(Setup!$AI$9<>\"\",INDIRECT(\"'\" & Setup!$AI$9 & \"'!\" & AD210),0) + IF(Setup!$AI$10<>\"\",INDIRECT(\"'\" & Setup!$AI$10 & \"'!\" & AD210),0) + IF(Setup!$AI$11<>\"\",INDIRECT(\"'\" & Setup!$AI$11 & \"'!\" & AD210),0) + IF(Setup!$AI$12<>\"\",INDIRECT(\"'\" & Setup!$AI$12 & \"'!\" & AD210),0)","v":0},{"$f":"IF(Setup!$AI$7<>\"\",INDIRECT(\"'\" & Setup!$AI$7 & \"'!\" & AE210),0) + IF(Setup!$AI$8<>\"\",INDIRECT(\"'\" & Setup!$AI$8 & \"'!\" & AE210),0) + IF(Setup!$AI$9<>\"\",INDIRECT(\"'\" & Setup!$AI$9 & \"'!\" & AE210),0) + IF(Setup!$AI$10<>\"\",INDIRECT(\"'\" & Setup!$AI$10 & \"'!\" & AE210),0) + IF(Setup!$AI$11<>\"\",INDIRECT(\"'\" & Setup!$AI$11 & \"'!\" & AE210),0) + IF(Setup!$AI$12<>\"\",INDIRECT(\"'\" & Setup!$AI$12 & \"'!\" & AE210),0)","v":0},{"$f":"IF(Setup!$AJ$7<>\"\",INDIRECT(\"'\" & Setup!$AJ$7 & \"'!\" & AD210),0) + IF(Setup!$AJ$8<>\"\",INDIRECT(\"'\" & Setup!$AJ$8 & \"'!\" & AD210),0) + IF(Setup!$AJ$9<>\"\",INDIRECT(\"'\" & Setup!$AJ$9 & \"'!\" & AD210),0) + IF(Setup!$AJ$10<>\"\",INDIRECT(\"'\" & Setup!$AJ$10 & \"'!\" & AD210),0) + IF(Setup!$AJ$11<>\"\",INDIRECT(\"'\" & Setup!$AJ$11 & \"'!\" & AD210),0) + IF(Setup!$AJ$12<>\"\",INDIRECT(\"'\" & Setup!$AJ$12 & \"'!\" & AD210),0)","v":0},{"$f":"IF(Setup!$AJ$7<>\"\",INDIRECT(\"'\" & Setup!$AJ$7 & \"'!\" & AE210),0) + IF(Setup!$AJ$8<>\"\",INDIRECT(\"'\" & Setup!$AJ$8 & \"'!\" & AE210),0) + IF(Setup!$AJ$9<>\"\",INDIRECT(\"'\" & Setup!$AJ$9 & \"'!\" & AE210),0) + IF(Setup!$AJ$10<>\"\",INDIRECT(\"'\" & Setup!$AJ$10 & \"'!\" & AE210),0) + IF(Setup!$AJ$11<>\"\",INDIRECT(\"'\" & Setup!$AJ$11 & \"'!\" & AE210),0) + IF(Setup!$AJ$12<>\"\",INDIRECT(\"'\" & Setup!$AJ$12 & \"'!\" & AE210),0)","v":0}]
[{"$f":"Planning!A194","v":"I186"},{"$f":"Planning!B194","v":0},{"$f":"Planning!C194","v":0},{"$f":"Planning!D194","v":0},{"$f":"Planning!E194","v":0},{"$f":"Planning!G194","v":0},null,0,0,{"$f":"IF(AND($AR211=\"2\",$AB210<>Lists!$A$17),AU211,AT211)","v":""},"",0,0,{"$f":"IF(AND($AR211=\"2\",$AB211<>Lists!$A$17),AW211,AV211)","v":""},"",0,0,{"$f":"IF(AND($AR211=\"2\",$AB211<>Lists!$A$17),AY211,AX211)","v":""},"",0,0,{"$f":"IF(AND($AR211=\"2\",$AB211<>Lists!$A$17),BA211,AZ211)","v":""},"",0,0,{"$f":"IF(AND($AR211=\"2\",$AB211<>Lists!$A$17),BC211,BB211)","v":""},"",{"$f":"Planning!H194","v":0},"00","H210","J210","I210","",null,{"$f":"IF(Setup!$AG$7<>\"\",INDIRECT(\"'\" & Setup!$AG$7 & \"'!\" & AF211),0) + IF(Setup!$AG$8<>\"\",INDIRECT(\"'\" & Setup!$AG$8 & \"'!\" & AF211),0) + IF(Setup!$AG$9<>\"\",INDIRECT(\"'\" & Setup!$AG$9 & \"'!\" & AF211),0) + IF(Setup!$AG$10<>\"\",INDIRECT(\"'\" & Setup!$AG$10 & \"'!\" & AF211),0) + IF(Setup!$AG$11<>\"\",INDIRECT(\"'\" & Setup!$AG$11 & \"'!\" & AF211),0) + IF(Setup!$AG$12<>\"\",INDIRECT(\"'\" & Setup!$AG$12 & \"'!\" & AF211),0)","v":0},{"$f":"IF(Setup!$AH$7<>\"\",INDIRECT(\"'\" & Setup!$AH$7 & \"'!\" & AF211),0) + IF(Setup!$AH$8<>\"\",INDIRECT(\"'\" & Setup!$AH$8 & \"'!\" & AF211),0) + IF(Setup!$AH$9<>\"\",INDIRECT(\"'\" & Setup!$AH$9 & \"'!\" & AF211),0) + IF(Setup!$AH$10<>\"\",INDIRECT(\"'\" & Setup!$AH$10 & \"'!\" & AF211),0) + IF(Setup!$AH$11<>\"\",INDIRECT(\"'\" & Setup!$AH$11 & \"'!\" & AF211),0) + IF(Setup!$AH$12<>\"\",INDIRECT(\"'\" & Setup!$AH$12 & \"'!\" & AF211),0)","v":0},{"$f":"IF(Setup!$AI$7<>\"\",INDIRECT(\"'\" & Setup!$AI$7 & \"'!\" & AF211),0) + IF(Setup!$AI$8<>\"\",INDIRECT(\"'\" & Setup!$AI$8 & \"'!\" & AF211),0) + IF(Setup!$AI$9<>\"\",INDIRECT(\"'\" & Setup!$AI$9 & \"'!\" & AF211),0) + IF(Setup!$AI$10<>\"\",INDIRECT(\"'\" & Setup!$AI$10 & \"'!\" & AF211),0) + IF(Setup!$AI$11<>\"\",INDIRECT(\"'\" & Setup!$AI$11 & \"'!\" & AF211),0) + IF(Setup!$AI$12<>\"\",INDIRECT(\"'\" & Setup!$AI$12 & \"'!\" & AF211),0)","v":0},{"$f":"IF(Setup!$AJ$7<>\"\",INDIRECT(\"'\" & Setup!$AJ$7 & \"'!\" & AF211),0) + IF(Setup!$AJ$8<>\"\",INDIRECT(\"'\" & Setup!$AJ$8 & \"'!\" & AF211),0) + IF(Setup!$AJ$9<>\"\",INDIRECT(\"'\" & Setup!$AJ$9 & \"'!\" & AF211),0) + IF(Setup!$AJ$10<>\"\",INDIRECT(\"'\" & Setup!$AJ$10 & \"'!\" & AF211),0) + IF(Setup!$AJ$11<>\"\",INDIRECT(\"'\" & Setup!$AJ$11 & \"'!\" & AF211),0) + IF(Setup!$AJ$12<>\"\",INDIRECT(\"'\" & Setup!$AJ$12 & \"'!\" & AF211),0)","v":0},null,"",{"$nulls":3},{"$f":"IF(C211=0,\"\",LEFT(INDEX(Lists!$H$5:$H$49,MATCH(C211,Lists!$G$5:$G$49,0),1),1))","v":""},null,"","","","","","","","","","",{"$nulls":6},{"$f":"IF(Setup!$AG$7<>\"\",INDIRECT(\"'\" & Setup!$AG$7 & \"'!\" & AD211),0) + IF(Setup!$AG$8<>\"\",INDIRECT(\"'\" & Setup!$AG$8 & \"'!\" & AD211),0) + IF(Setup!$AG$9<>\"\",INDIRECT(\"'\" & Setup!$AG$9 & \"'!\" & AD211),0) + IF(Setup!$AG$10<>\"\",INDIRECT(\"'\" & Setup!$AG$10 & \"'!\" & AD211),0) + IF(Setup!$AG$11<>\"\",INDIRECT(\"'\" & Setup!$AG$11 & \"'!\" & AD211),0) + IF(Setup!$AG$12<>\"\",INDIRECT(\"'\" & Setup!$AG$12 & \"'!\" & AD211),0)","v":0},{"$f":"IF(Setup!$AG$7<>\"\",INDIRECT(\"'\" & Setup!$AG$7 & \"'!\" & AE211),0) + IF(Setup!$AG$8<>\"\",INDIRECT(\"'\" & Setup!$AG$8 & \"'!\" & AE211),0) + IF(Setup!$AG$9<>\"\",INDIRECT(\"'\" & Setup!$AG$9 & \"'!\" & AE211),0) + IF(Setup!$AG$10<>\"\",INDIRECT(\"'\" & Setup!$AG$10 & \"'!\" & AE211),0) + IF(Setup!$AG$11<>\"\",INDIRECT(\"'\" & Setup!$AG$11 & \"'!\" & AE211),0) + IF(Setup!$AG$12<>\"\",INDIRECT(\"'\" & Setup!$AG$12 & \"'!\" & AE211),0)","v":0},{"$f":"IF(Setup!$AH$7<>\"\",INDIRECT(\"'\" & Setup!$AH$7 & \"'!\" & AD211),0) + IF(Setup!$AH$8<>\"\",INDIRECT(\"'\" & Setup!$AH$8 & \"'!\" & AD211),0) + IF(Setup!$AH$9<>\"\",INDIRECT(\"'\" & Setup!$AH$9 & \"'!\" & AD211),0) + IF(Setup!$AH$10<>\"\",INDIRECT(\"'\" & Setup!$AH$10 & \"'!\" & AD211),0) + IF(Setup!$AH$11<>\"\",INDIRECT(\"'\" & Setup!$AH$11 & \"'!\" & AD211),0) + IF(Setup!$AH$12<>\"\",INDIRECT(\"'\" & Setup!$AH$12 & \"'!\" & AD211),0)","v":0},{"$f":"IF(Setup!$AH$7<>\"\",INDIRECT(\"'\" & Setup!$AH$7 & \"'!\" & AE211),0) + IF(Setup!$AH$8<>\"\",INDIRECT(\"'\" & Setup!$AH$8 & \"'!\" & AE211),0) + IF(Setup!$AH$9<>\"\",INDIRECT(\"'\" & Setup!$AH$9 & \"'!\" & AE211),0) + IF(Setup!$AH$10<>\"\",INDIRECT(\"'\" & Setup!$AH$10 & \"'!\" & AE211),0) + IF(Setup!$AH$11<>\"\",INDIRECT(\"'\" & Setup!$AH$11 & \"'!\" & AE211),0) + IF(Setup!$AH$12<>\"\",INDIRECT(\"'\" & Setup!$AH$12 & \"'!\" & AE211),0)","v":0},{"$f":"IF(Setup!$AI$7<>\"\",INDIRECT(\"'\" & Setup!$AI$7 & \"'!\" & AD211),0) + IF(Setup!$AI$8<>\"\",INDIRECT(\"'\" & Setup!$AI$8 & \"'!\" & AD211),0) + IF(Setup!$AI$9<>\"\",INDIRECT(\"'\" & Setup!$AI$9 & \"'!\" & AD211),0) + IF(Setup!$AI$10<>\"\",INDIRECT(\"'\" & Setup!$AI$10 & \"'!\" & AD211),0) + IF(Setup!$AI$11<>\"\",INDIRECT(\"'\" & Setup!$AI$11 & \"'!\" & AD211),0) + IF(Setup!$AI$12<>\"\",INDIRECT(\"'\" & Setup!$AI$12 & \"'!\" & AD211),0)","v":0},{"$f":"IF(Setup!$AI$7<>\"\",INDIRECT(\"'\" & Setup!$AI$7 & \"'!\" & AE211),0) + IF(Setup!$AI$8<>\"\",INDIRECT(\"'\" & Setup!$AI$8 & \"'!\" & AE211),0) + IF(Setup!$AI$9<>\"\",INDIRECT(\"'\" & Setup!$AI$9 & \"'!\" & AE211),0) + IF(Setup!$AI$10<>\"\",INDIRECT(\"'\" & Setup!$AI$10 & \"'!\" & AE211),0) + IF(Setup!$AI$11<>\"\",INDIRECT(\"'\" & Setup!$AI$11 & \"'!\" & AE211),0) + IF(Setup!$AI$12<>\"\",INDIRECT(\"'\" & Setup!$AI$12 & \"'!\" & AE211),0)","v":0},{"$f":"IF(Setup!$AJ$7<>\"\",INDIRECT(\"'\" & Setup!$AJ$7 & \"'!\" & AD211),0) + IF(Setup!$AJ$8<>\"\",INDIRECT(\"'\" & Setup!$AJ$8 & \"'!\" & AD211),0) + IF(Setup!$AJ$9<>\"\",INDIRECT(\"'\" & Setup!$AJ$9 & \"'!\" & AD211),0) + IF(Setup!$AJ$10<>\"\",INDIRECT(\"'\" & Setup!$AJ$10 & \"'!\" & AD211),0) + IF(Setup!$AJ$11<>\"\",INDIRECT(\"'\" & Setup!$AJ$11 & \"'!\" & AD211),0) + IF(Setup!$AJ$12<>\"\",INDIRECT(\"'\" & Setup!$AJ$12 & \"'!\" & AD211),0)","v":0},{"$f":"IF(Setup!$AJ$7<>\"\",INDIRECT(\"'\" & Setup!$AJ$7 & \"'!\" & AE211),0) + IF(Setup!$AJ$8<>\"\",INDIRECT(\"'\" & Setup!$AJ$8 & \"'!\" & AE211),0) + IF(Setup!$AJ$9<>\"\",INDIRECT(\"'\" & Setup!$AJ$9 & \"'!\" & AE211),0) + IF(Setup!$AJ$10<>\"\",INDIRECT(\"'\" & Setup!$AJ$10 & \"'!\" & AE211),0) + IF(Setup!$AJ$11<>\"\",INDIRECT(\"'\" & Setup!$AJ$11 & \"'!\" & AE211),0) + IF(Setup!$AJ$12<>\"\",INDIRECT(\"'\" & Setup!$AJ$12 & \"'!\" & AE211),0)","v":0}]
[{"$f":"Planning!A195","v":"I187"},{"$f":"Planning!B195","v":0},{"$f":"Planning!C195","v":0},{"$f":"Planning!D195","v":0},{"$f":"Planning!E195","v":0},{"$f":"Planning!G195","v":0},null,0,0,{"$f":"IF(AND($AR212=\"2\",$AB211<>Lists!$A$17),AU212,AT212)","v":""},"",0,0,{"$f":"IF(AND($AR212=\"2\",$AB212<>Lists!$A$17),AW212,AV212)","v":""},"",0,0,{"$f":"IF(AND($AR212=\"2\",$AB212<>Lists!$A$17),AY212,AX212)","v":""},"",0,0,{"$f":"IF(AND($AR212=\"2\",$AB212<>Lists!$A$17),BA212,AZ212)","v":""},"",0,0,{"$f":"IF(AND($AR212=\"2\",$AB212<>Lists!$A$17),BC212,BB212)","v":""},"",{"$f":"Planning!H195","v":0},"00","H211","J211","I211","",null,{"$f":"IF(Setup!$AG$7<>\"\",INDIRECT(\"'\" & Setup!$AG$7 & \"'!\" & AF212),0) + IF(Setup!$AG$8<>\"\",INDIRECT(\"'\" & Setup!$AG$8 & \"'!\" & AF212),0) + IF(Setup!$AG$9<>\"\",INDIRECT(\"'\" & Setup!$AG$9 & \"'!\" & AF212),0) + IF(Setup!$AG$10<>\"\",INDIRECT(\"'\" & Setup!$AG$10 & \"'!\" & AF212),0) + IF(Setup!$AG$11<>\"\",INDIRECT(\"'\" & Setup!$AG$11 & \"'!\" & AF212),0) + IF(Setup!$AG$12<>\"\",INDIRECT(\"'\" & Setup!$AG$12 & \"'!\" & AF212),0)","v":0},{"$f":"IF(Setup!$AH$7<>\"\",INDIRECT(\"'\" & Setup!$AH$7 & \"'!\" & AF212),0) + IF(Setup!$AH$8<>\"\",INDIRECT(\"'\" & Setup!$AH$8 & \"'!\" & AF212),0) + IF(Setup!$AH$9<>\"\",INDIRECT(\"'\" & Setup!$AH$9 & \"'!\" & AF212),0) + IF(Setup!$AH$10<>\"\",INDIRECT(\"'\" & Setup!$AH$10 & \"'!\" & AF212),0) + IF(Setup!$AH$11<>\"\",INDIRECT(\"'\" & Setup!$AH$11 & \"'!\" & AF212),0) + IF(Setup!$AH$12<>\"\",INDIRECT(\"'\" & Setup!$AH$12 & \"'!\" & AF212),0)","v":0},{"$f":"IF(Setup!$AI$7<>\"\",INDIRECT(\"'\" & Setup!$AI$7 & \"'!\" & AF212),0) + IF(Setup!$AI$8<>\"\",INDIRECT(\"'\" & Setup!$AI$8 & \"'!\" & AF212),0) + IF(Setup!$AI$9<>\"\",INDIRECT(\"'\" & Setup!$AI$9 & \"'!\" & AF212),0) + IF(Setup!$AI$10<>\"\",INDIRECT(\"'\" & Setup!$AI$10 & \"'!\" & AF212),0) + IF(Setup!$AI$11<>\"\",INDIRECT(\"'\" & Setup!$AI$11 & \"'!\" & AF212),0) + IF(Setup!$AI$12<>\"\",INDIRECT(\"'\" & Setup!$AI$12 & \"'!\" & AF212),0)","v":0},{"$f":"IF(Setup!$AJ$7<>\"\",INDIRECT(\"'\" & Setup!$AJ$7 & \"'!\" & AF212),0) + IF(Setup!$AJ$8<>\"\",INDIRECT(\"'\" & Setup!$AJ$8 & \"'!\" & AF212),0) + IF(Setup!$AJ$9<>\"\",INDIRECT(\"'\" & Setup!$AJ$9 & \"'!\" & AF212),0) + IF(Setup!$AJ$10<>\"\",INDIRECT(\"'\" & Setup!$AJ$10 & \"'!\" & AF212),0) + IF(Setup!$AJ$11<>\"\",INDIRECT(\"'\" & Setup!$AJ$11 & \"'!\" & AF212),0) + IF(Setup!$AJ$12<>\"\",INDIRECT(\"'\" & Setup!$AJ$12 & \"'!\" & AF212),0)","v":0},null,"",{"$nulls":3},{"$f":"IF(C212=0,\"\",LEFT(INDEX(Lists!$H$5:$H$49,MATCH(C212,Lists!$G$5:$G$49,0),1),1))","v":""},null,"","","","","","","","","","",{"$nulls":6},{"$f":"IF(Setup!$AG$7<>\"\",INDIRECT(\"'\" & Setup!$AG$7 & \"'!\" & AD212),0) + IF(Setup!$AG$8<>\"\",INDIRECT(\"'\" & Setup!$AG$8 & \"'!\" & AD212),0) + IF(Setup!$AG$9<>\"\",INDIRECT(\"'\" & Setup!$AG$9 & \"'!\" & AD212),0) + IF(Setup!$AG$10<>\"\",INDIRECT(\"'\" & Setup!$AG$10 & \"'!\" & AD212),0) + IF(Setup!$AG$11<>\"\",INDIRECT(\"'\" & Setup!$AG$11 & \"'!\" & AD212),0) + IF(Setup!$AG$12<>\"\",INDIRECT(\"'\" & Setup!$AG$12 & \"'!\" & AD212),0)","v":0},{"$f":"IF(Setup!$AG$7<>\"\",INDIRECT(\"'\" & Setup!$AG$7 & \"'!\" & AE212),0) + IF(Setup!$AG$8<>\"\",INDIRECT(\"'\" & Setup!$AG$8 & \"'!\" & AE212),0) + IF(Setup!$AG$9<>\"\",INDIRECT(\"'\" & Setup!$AG$9 & \"'!\" & AE212),0) + IF(Setup!$AG$10<>\"\",INDIRECT(\"'\" & Setup!$AG$10 & \"'!\" & AE212),0) + IF(Setup!$AG$11<>\"\",INDIRECT(\"'\" & Setup!$AG$11 & \"'!\" & AE212),0) + IF(Setup!$AG$12<>\"\",INDIRECT(\"'\" & Setup!$AG$12 & \"'!\" & AE212),0)","v":0},{"$f":"IF(Setup!$AH$7<>\"\",INDIRECT(\"'\" & Setup!$AH$7 & \"'!\" & AD212),0) + IF(Setup!$AH$8<>\"\",INDIRECT(\"'\" & Setup!$AH$8 & \"'!\" & AD212),0) + IF(Setup!$AH$9<>\"\",INDIRECT(\"'\" & Setup!$AH$9 & \"'!\" & AD212),0) + IF(Setup!$AH$10<>\"\",INDIRECT(\"'\" & Setup!$AH$10 & \"'!\" & AD212),0) + IF(Setup!$AH$11<>\"\",INDIRECT(\"'\" & Setup!$AH$11 & \"'!\" & AD212),0) + IF(Setup!$AH$12<>\"\",INDIRECT(\"'\" & Setup!$AH$12 & \"'!\" & AD212),0)","v":0},{"$f":"IF(Setup!$AH$7<>\"\",INDIRECT(\"'\" & Setup!$AH$7 & \"'!\" & AE212),0) + IF(Setup!$AH$8<>\"\",INDIRECT(\"'\" & Setup!$AH$8 & \"'!\" & AE212),0) + IF(Setup!$AH$9<>\"\",INDIRECT(\"'\" & Setup!$AH$9 & \"'!\" & AE212),0) + IF(Setup!$AH$10<>\"\",INDIRECT(\"'\" & Setup!$AH$10 & \"'!\" & AE212),0) + IF(Setup!$AH$11<>\"\",INDIRECT(\"'\" & Setup!$AH$11 & \"'!\" & AE212),0) + IF(Setup!$AH$12<>\"\",INDIRECT(\"'\" & Setup!$AH$12 & \"'!\" & AE212),0)","v":0},{"$f":"IF(Setup!$AI$7<>\"\",INDIRECT(\"'\" & Setup!$AI$7 & \"'!\" & AD212),0) + IF(Setup!$AI$8<>\"\",INDIRECT(\"'\" & Setup!$AI$8 & \"'!\" & AD212),0) + IF(Setup!$AI$9<>\"\",INDIRECT(\"'\" & Setup!$AI$9 & \"'!\" & AD212),0) + IF(Setup!$AI$10<>\"\",INDIRECT(\"'\" & Setup!$AI$10 & \"'!\" & AD212),0) + IF(Setup!$AI$11<>\"\",INDIRECT(\"'\" & Setup!$AI$11 & \"'!\" & AD212),0) + IF(Setup!$AI$12<>\"\",INDIRECT(\"'\" & Setup!$AI$12 & \"'!\" & AD212),0)","v":0},{"$f":"IF(Setup!$AI$7<>\"\",INDIRECT(\"'\" & Setup!$AI$7 & \"'!\" & AE212),0) + IF(Setup!$AI$8<>\"\",INDIRECT(\"'\" & Setup!$AI$8 & \"'!\" & AE212),0) + IF(Setup!$AI$9<>\"\",INDIRECT(\"'\" & Setup!$AI$9 & \"'!\" & AE212),0) + IF(Setup!$AI$10<>\"\",INDIRECT(\"'\" & Setup!$AI$10 & \"'!\" & AE212),0) + IF(Setup!$AI$11<>\"\",INDIRECT(\"'\" & Setup!$AI$11 & \"'!\" & AE212),0) + IF(Setup!$AI$12<>\"\",INDIRECT(\"'\" & Setup!$AI$12 & \"'!\" & AE212),0)","v":0},{"$f":"IF(Setup!$AJ$7<>\"\",INDIRECT(\"'\" & Setup!$AJ$7 & \"'!\" & AD212),0) + IF(Setup!$AJ$8<>\"\",INDIRECT(\"'\" & Setup!$AJ$8 & \"'!\" & AD212),0) + IF(Setup!$AJ$9<>\"\",INDIRECT(\"'\" & Setup!$AJ$9 & \"'!\" & AD212),0) + IF(Setup!$AJ$10<>\"\",INDIRECT(\"'\" & Setup!$AJ$10 & \"'!\" & AD212),0) + IF(Setup!$AJ$11<>\"\",INDIRECT(\"'\" & Setup!$AJ$11 & \"'!\" & AD212),0) + IF(Setup!$AJ$12<>\"\",INDIRECT(\"'\" & Setup!$AJ$12 & \"'!\" & AD212),0)","v":0},{"$f":"IF(Setup!$AJ$7<>\"\",INDIRECT(\"'\" & Setup!$AJ$7 & \"'!\" & AE212),0) + IF(Setup!$AJ$8<>\"\",INDIRECT(\"'\" & Setup!$AJ$8 & \"'!\" & AE212),0) + IF(Setup!$AJ$9<>\"\",INDIRECT(\"'\" & Setup!$AJ$9 & \"'!\" & AE212),0) + IF(Setup!$AJ$10<>\"\",INDIRECT(\"'\" & Setup!$AJ$10 & \"'!\" & AE212),0) + IF(Setup!$AJ$11<>\"\",INDIRECT(\"'\" & Setup!$AJ$11 & \"'!\" & AE212),0) + IF(Setup!$AJ$12<>\"\",INDIRECT(\"'\" & Setup!$AJ$12 & \"'!\" & AE212),0)","v":0}]
[{"$f":"Planning!A196","v":"I188"},{"$f":"Planning!B196","v":0},{"$f":"Planning!C196","v":0},{"$f":"Planning!D196","v":0},{"$f":"Planning!E196","v":0},{"$f":"Planning!G196","v":0},null,0,0,{"$f":"IF(AND($AR213=\"2\",$AB212<>Lists!$A$17),AU213,AT213)","v":""},"",0,0,{"$f":"IF(AND($AR213=\"2\",$AB213<>Lists!$A$17),AW213,AV213)","v":""},"",0,0,{"$f":"IF(AND($AR213=\"2\",$AB213<>Lists!$A$17),AY213,AX213)","v":""},"",0,0,{"$f":"IF(AND($AR213=\"2\",$AB213<>Lists!$A$17),BA213,AZ213)","v":""},"",0,0,{"$f":"IF(AND($AR213=\"2\",$AB213<>Lists!$A$17),BC213,BB213)","v":""},"",{"$f":"Planning!H196","v":0},"00","H212","J212","I212","",null,{"$f":"IF(Setup!$AG$7<>\"\",INDIRECT(\"'\" & Setup!$AG$7 & \"'!\" & AF213),0) + IF(Setup!$AG$8<>\"\",INDIRECT(\"'\" & Setup!$AG$8 & \"'!\" & AF213),0) + IF(Setup!$AG$9<>\"\",INDIRECT(\"'\" & Setup!$AG$9 & \"'!\" & AF213),0) + IF(Setup!$AG$10<>\"\",INDIRECT(\"'\" & Setup!$AG$10 & \"'!\" & AF213),0) + IF(Setup!$AG$11<>\"\",INDIRECT(\"'\" & Setup!$AG$11 & \"'!\" & AF213),0) + IF(Setup!$AG$12<>\"\",INDIRECT(\"'\" & Setup!$AG$12 & \"'!\" & AF213),0)","v":0},{"$f":"IF(Setup!$AH$7<>\"\",INDIRECT(\"'\" & Setup!$AH$7 & \"'!\" & AF213),0) + IF(Setup!$AH$8<>\"\",INDIRECT(\"'\" & Setup!$AH$8 & \"'!\" & AF213),0) + IF(Setup!$AH$9<>\"\",INDIRECT(\"'\" & Setup!$AH$9 & \"'!\" & AF213),0) + IF(Setup!$AH$10<>\"\",INDIRECT(\"'\" & Setup!$AH$10 & \"'!\" & AF213),0) + IF(Setup!$AH$11<>\"\",INDIRECT(\"'\" & Setup!$AH$11 & \"'!\" & AF213),0) + IF(Setup!$AH$12<>\"\",INDIRECT(\"'\" & Setup!$AH$12 & \"'!\" & AF213),0)","v":0},{"$f":"IF(Setup!$AI$7<>\"\",INDIRECT(\"'\" & Setup!$AI$7 & \"'!\" & AF213),0) + IF(Setup!$AI$8<>\"\",INDIRECT(\"'\" & Setup!$AI$8 & \"'!\" & AF213),0) + IF(Setup!$AI$9<>\"\",INDIRECT(\"'\" & Setup!$AI$9 & \"'!\" & AF213),0) + IF(Setup!$AI$10<>\"\",INDIRECT(\"'\" & Setup!$AI$10 & \"'!\" & AF213),0) + IF(Setup!$AI$11<>\"\",INDIRECT(\"'\" & Setup!$AI$11 & \"'!\" & AF213),0) + IF(Setup!$AI$12<>\"\",INDIRECT(\"'\" & Setup!$AI$12 & \"'!\" & AF213),0)","v":0},{"$f":"IF(Setup!$AJ$7<>\"\",INDIRECT(\"'\" & Setup!$AJ$7 & \"'!\" & AF213),0) + IF(Setup!$AJ$8<>\"\",INDIRECT(\"'\" & Setup!$AJ$8 & \"'!\" & AF213),0) + IF(Setup!$AJ$9<>\"\",INDIRECT(\"'\" & Setup!$AJ$9 & \"'!\" & AF213),0) + IF(Setup!$AJ$10<>\"\",INDIRECT(\"'\" & Setup!$AJ$10 & \"'!\" & AF213),0) + IF(Setup!$AJ$11<>\"\",INDIRECT(\"'\" & Setup!$AJ$11 & \"'!\" & AF213),0) + IF(Setup!$AJ$12<>\"\",INDIRECT(\"'\" & Setup!$AJ$12 & \"'!\" & AF213),0)","v":0},null,"",{"$nulls":3},{"$f":"IF(C213=0,\"\",LEFT(INDEX(Lists!$H$5:$H$49,MATCH(C213,Lists!$G$5:$G$49,0),1),1))","v":""},null,"","","","","","","","","","",{"$nulls":6},{"$f":"IF(Setup!$AG$7<>\"\",INDIRECT(\"'\" & Setup!$AG$7 & \"'!\" & AD213),0) + IF(Setup!$AG$8<>\"\",INDIRECT(\"'\" & Setup!$AG$8 & \"'!\" & AD213),0) + IF(Setup!$AG$9<>\"\",INDIRECT(\"'\" & Setup!$AG$9 & \"'!\" & AD213),0) + IF(Setup!$AG$10<>\"\",INDIRECT(\"'\" & Setup!$AG$10 & \"'!\" & AD213),0) + IF(Setup!$AG$11<>\"\",INDIRECT(\"'\" & Setup!$AG$11 & \"'!\" & AD213),0) + IF(Setup!$AG$12<>\"\",INDIRECT(\"'\" & Setup!$AG$12 & \"'!\" & AD213),0)","v":0},{"$f":"IF(Setup!$AG$7<>\"\",INDIRECT(\"'\" & Setup!$AG$7 & \"'!\" & AE213),0) + IF(Setup!$AG$8<>\"\",INDIRECT(\"'\" & Setup!$AG$8 & \"'!\" & AE213),0) + IF(Setup!$AG$9<>\"\",INDIRECT(\"'\" & Setup!$AG$9 & \"'!\" & AE213),0) + IF(Setup!$AG$10<>\"\",INDIRECT(\"'\" & Setup!$AG$10 & \"'!\" & AE213),0) + IF(Setup!$AG$11<>\"\",INDIRECT(\"'\" & Setup!$AG$11 & \"'!\" & AE213),0) + IF(Setup!$AG$12<>\"\",INDIRECT(\"'\" & Setup!$AG$12 & \"'!\" & AE213),0)","v":0},{"$f":"IF(Setup!$AH$7<>\"\",INDIRECT(\"'\" & Setup!$AH$7 & \"'!\" & AD213),0) + IF(Setup!$AH$8<>\"\",INDIRECT(\"'\" & Setup!$AH$8 & \"'!\" & AD213),0) + IF(Setup!$AH$9<>\"\",INDIRECT(\"'\" & Setup!$AH$9 & \"'!\" & AD213),0) + IF(Setup!$AH$10<>\"\",INDIRECT(\"'\" & Setup!$AH$10 & \"'!\" & AD213),0) + IF(Setup!$AH$11<>\"\",INDIRECT(\"'\" & Setup!$AH$11 & \"'!\" & AD213),0) + IF(Setup!$AH$12<>\"\",INDIRECT(\"'\" & Setup!$AH$12 & \"'!\" & AD213),0)","v":0},{"$f":"IF(Setup!$AH$7<>\"\",INDIRECT(\"'\" & Setup!$AH$7 & \"'!\" & AE213),0) + IF(Setup!$AH$8<>\"\",INDIRECT(\"'\" & Setup!$AH$8 & \"'!\" & AE213),0) + IF(Setup!$AH$9<>\"\",INDIRECT(\"'\" & Setup!$AH$9 & \"'!\" & AE213),0) + IF(Setup!$AH$10<>\"\",INDIRECT(\"'\" & Setup!$AH$10 & \"'!\" & AE213),0) + IF(Setup!$AH$11<>\"\",INDIRECT(\"'\" & Setup!$AH$11 & \"'!\" & AE213),0) + IF(Setup!$AH$12<>\"\",INDIRECT(\"'\" & Setup!$AH$12 & \"'!\" & AE213),0)","v":0},{"$f":"IF(Setup!$AI$7<>\"\",INDIRECT(\"'\" & Setup!$AI$7 & \"'!\" & AD213),0) + IF(Setup!$AI$8<>\"\",INDIRECT(\"'\" & Setup!$AI$8 & \"'!\" & AD213),0) + IF(Setup!$AI$9<>\"\",INDIRECT(\"'\" & Setup!$AI$9 & \"'!\" & AD213),0) + IF(Setup!$AI$10<>\"\",INDIRECT(\"'\" & Setup!$AI$10 & \"'!\" & AD213),0) + IF(Setup!$AI$11<>\"\",INDIRECT(\"'\" & Setup!$AI$11 & \"'!\" & AD213),0) + IF(Setup!$AI$12<>\"\",INDIRECT(\"'\" & Setup!$AI$12 & \"'!\" & AD213),0)","v":0},{"$f":"IF(Setup!$AI$7<>\"\",INDIRECT(\"'\" & Setup!$AI$7 & \"'!\" & AE213),0) + IF(Setup!$AI$8<>\"\",INDIRECT(\"'\" & Setup!$AI$8 & \"'!\" & AE213),0) + IF(Setup!$AI$9<>\"\",INDIRECT(\"'\" & Setup!$AI$9 & \"'!\" & AE213),0) + IF(Setup!$AI$10<>\"\",INDIRECT(\"'\" & Setup!$AI$10 & \"'!\" & AE213),0) + IF(Setup!$AI$11<>\"\",INDIRECT(\"'\" & Setup!$AI$11 & \"'!\" & AE213),0) + IF(Setup!$AI$12<>\"\",INDIRECT(\"'\" & Setup!$AI$12 & \"'!\" & AE213),0)","v":0},{"$f":"IF(Setup!$AJ$7<>\"\",INDIRECT(\"'\" & Setup!$AJ$7 & \"'!\" & AD213),0) + IF(Setup!$AJ$8<>\"\",INDIRECT(\"'\" & Setup!$AJ$8 & \"'!\" & AD213),0) + IF(Setup!$AJ$9<>\"\",INDIRECT(\"'\" & Setup!$AJ$9 & \"'!\" & AD213),0) + IF(Setup!$AJ$10<>\"\",INDIRECT(\"'\" & Setup!$AJ$10 & \"'!\" & AD213),0) + IF(Setup!$AJ$11<>\"\",INDIRECT(\"'\" & Setup!$AJ$11 & \"'!\" & AD213),0) + IF(Setup!$AJ$12<>\"\",INDIRECT(\"'\" & Setup!$AJ$12 & \"'!\" & AD213),0)","v":0},{"$f":"IF(Setup!$AJ$7<>\"\",INDIRECT(\"'\" & Setup!$AJ$7 & \"'!\" & AE213),0) + IF(Setup!$AJ$8<>\"\",INDIRECT(\"'\" & Setup!$AJ$8 & \"'!\" & AE213),0) + IF(Setup!$AJ$9<>\"\",INDIRECT(\"'\" & Setup!$AJ$9 & \"'!\" & AE213),0) + IF(Setup!$AJ$10<>\"\",INDIRECT(\"'\" & Setup!$AJ$10 & \"'!\" & AE213),0) + IF(Setup!$AJ$11<>\"\",INDIRECT(\"'\" & Setup!$AJ$11 & \"'!\" & AE213),0) + IF(Setup!$AJ$12<>\"\",INDIRECT(\"'\" & Setup!$AJ$12 & \"'!\" & AE213),0)","v":0}]
[{"$f":"Planning!A197","v":"I189"},{"$f":"Planning!B197","v":0},{"$f":"Planning!C197","v":0},{"$f":"Planning!D197","v":0},{"$f":"Planning!E197","v":0},{"$f":"Planning!G197","v":0},null,0,0,{"$f":"IF(AND($AR214=\"2\",$AB213<>Lists!$A$17),AU214,AT214)","v":""},"",0,0,{"$f":"IF(AND($AR214=\"2\",$AB214<>Lists!$A$17),AW214,AV214)","v":""},"",0,0,{"$f":"IF(AND($AR214=\"2\",$AB214<>Lists!$A$17),AY214,AX214)","v":""},"",0,0,{"$f":"IF(AND($AR214=\"2\",$AB214<>Lists!$A$17),BA214,AZ214)","v":""},"",0,0,{"$f":"IF(AND($AR214=\"2\",$AB214<>Lists!$A$17),BC214,BB214)","v":""},"",{"$f":"Planning!H197","v":0},"00","H213","J213","I213","",null,{"$f":"IF(Setup!$AG$7<>\"\",INDIRECT(\"'\" & Setup!$AG$7 & \"'!\" & AF214),0) + IF(Setup!$AG$8<>\"\",INDIRECT(\"'\" & Setup!$AG$8 & \"'!\" & AF214),0) + IF(Setup!$AG$9<>\"\",INDIRECT(\"'\" & Setup!$AG$9 & \"'!\" & AF214),0) + IF(Setup!$AG$10<>\"\",INDIRECT(\"'\" & Setup!$AG$10 & \"'!\" & AF214),0) + IF(Setup!$AG$11<>\"\",INDIRECT(\"'\" & Setup!$AG$11 & \"'!\" & AF214),0) + IF(Setup!$AG$12<>\"\",INDIRECT(\"'\" & Setup!$AG$12 & \"'!\" & AF214),0)","v":0},{"$f":"IF(Setup!$AH$7<>\"\",INDIRECT(\"'\" & Setup!$AH$7 & \"'!\" & AF214),0) + IF(Setup!$AH$8<>\"\",INDIRECT(\"'\" & Setup!$AH$8 & \"'!\" & AF214),0) + IF(Setup!$AH$9<>\"\",INDIRECT(\"'\" & Setup!$AH$9 & \"'!\" & AF214),0) + IF(Setup!$AH$10<>\"\",INDIRECT(\"'\" & Setup!$AH$10 & \"'!\" & AF214),0) + IF(Setup!$AH$11<>\"\",INDIRECT(\"'\" & Setup!$AH$11 & \"'!\" & AF214),0) + IF(Setup!$AH$12<>\"\",INDIRECT(\"'\" & Setup!$AH$12 & \"'!\" & AF214),0)","v":0},{"$f":"IF(Setup!$AI$7<>\"\",INDIRECT(\"'\" & Setup!$AI$7 & \"'!\" & AF214),0) + IF(Setup!$AI$8<>\"\",INDIRECT(\"'\" & Setup!$AI$8 & \"'!\" & AF214),0) + IF(Setup!$AI$9<>\"\",INDIRECT(\"'\" & Setup!$AI$9 & \"'!\" & AF214),0) + IF(Setup!$AI$10<>\"\",INDIRECT(\"'\" & Setup!$AI$10 & \"'!\" & AF214),0) + IF(Setup!$AI$11<>\"\",INDIRECT(\"'\" & Setup!$AI$11 & \"'!\" & AF214),0) + IF(Setup!$AI$12<>\"\",INDIRECT(\"'\" & Setup!$AI$12 & \"'!\" & AF214),0)","v":0},{"$f":"IF(Setup!$AJ$7<>\"\",INDIRECT(\"'\" & Setup!$AJ$7 & \"'!\" & AF214),0) + IF(Setup!$AJ$8<>\"\",INDIRECT(\"'\" & Setup!$AJ$8 & \"'!\" & AF214),0) + IF(Setup!$AJ$9<>\"\",INDIRECT(\"'\" & Setup!$AJ$9 & \"'!\" & AF214),0) + IF(Setup!$AJ$10<>\"\",INDIRECT(\"'\" & Setup!$AJ$10 & \"'!\" & AF214),0) + IF(Setup!$AJ$11<>\"\",INDIRECT(\"'\" & Setup!$AJ$11 & \"'!\" & AF214),0) + IF(Setup!$AJ$12<>\"\",INDIRECT(\"'\" & Setup!$AJ$12 & \"'!\" & AF214),0)","v":0},null,"",{"$nulls":3},{"$f":"IF(C214=0,\"\",LEFT(INDEX(Lists!$H$5:$H$49,MATCH(C214,Lists!$G$5:$G$49,0),1),1))","v":""},null,"","","","","","","","","","",{"$nulls":6},{"$f":"IF(Setup!$AG$7<>\"\",INDIRECT(\"'\" & Setup!$AG$7 & \"'!\" & AD214),0) + IF(Setup!$AG$8<>\"\",INDIRECT(\"'\" & Setup!$AG$8 & \"'!\" & AD214),0) + IF(Setup!$AG$9<>\"\",INDIRECT(\"'\" & Setup!$AG$9 & \"'!\" & AD214),0) + IF(Setup!$AG$10<>\"\",INDIRECT(\"'\" & Setup!$AG$10 & \"'!\" & AD214),0) + IF(Setup!$AG$11<>\"\",INDIRECT(\"'\" & Setup!$AG$11 & \"'!\" & AD214),0) + IF(Setup!$AG$12<>\"\",INDIRECT(\"'\" & Setup!$AG$12 & \"'!\" & AD214),0)","v":0},{"$f":"IF(Setup!$AG$7<>\"\",INDIRECT(\"'\" & Setup!$AG$7 & \"'!\" & AE214),0) + IF(Setup!$AG$8<>\"\",INDIRECT(\"'\" & Setup!$AG$8 & \"'!\" & AE214),0) + IF(Setup!$AG$9<>\"\",INDIRECT(\"'\" & Setup!$AG$9 & \"'!\" & AE214),0) + IF(Setup!$AG$10<>\"\",INDIRECT(\"'\" & Setup!$AG$10 & \"'!\" & AE214),0) + IF(Setup!$AG$11<>\"\",INDIRECT(\"'\" & Setup!$AG$11 & \"'!\" & AE214),0) + IF(Setup!$AG$12<>\"\",INDIRECT(\"'\" & Setup!$AG$12 & \"'!\" & AE214),0)","v":0},{"$f":"IF(Setup!$AH$7<>\"\",INDIRECT(\"'\" & Setup!$AH$7 & \"'!\" & AD214),0) + IF(Setup!$AH$8<>\"\",INDIRECT(\"'\" & Setup!$AH$8 & \"'!\" & AD214),0) + IF(Setup!$AH$9<>\"\",INDIRECT(\"'\" & Setup!$AH$9 & \"'!\" & AD214),0) + IF(Setup!$AH$10<>\"\",INDIRECT(\"'\" & Setup!$AH$10 & \"'!\" & AD214),0) + IF(Setup!$AH$11<>\"\",INDIRECT(\"'\" & Setup!$AH$11 & \"'!\" & AD214),0) + IF(Setup!$AH$12<>\"\",INDIRECT(\"'\" & Setup!$AH$12 & \"'!\" & AD214),0)","v":0},{"$f":"IF(Setup!$AH$7<>\"\",INDIRECT(\"'\" & Setup!$AH$7 & \"'!\" & AE214),0) + IF(Setup!$AH$8<>\"\",INDIRECT(\"'\" & Setup!$AH$8 & \"'!\" & AE214),0) + IF(Setup!$AH$9<>\"\",INDIRECT(\"'\" & Setup!$AH$9 & \"'!\" & AE214),0) + IF(Setup!$AH$10<>\"\",INDIRECT(\"'\" & Setup!$AH$10 & \"'!\" & AE214),0) + IF(Setup!$AH$11<>\"\",INDIRECT(\"'\" & Setup!$AH$11 & \"'!\" & AE214),0) + IF(Setup!$AH$12<>\"\",INDIRECT(\"'\" & Setup!$AH$12 & \"'!\" & AE214),0)","v":0},{"$f":"IF(Setup!$AI$7<>\"\",INDIRECT(\"'\" & Setup!$AI$7 & \"'!\" & AD214),0) + IF(Setup!$AI$8<>\"\",INDIRECT(\"'\" & Setup!$AI$8 & \"'!\" & AD214),0) + IF(Setup!$AI$9<>\"\",INDIRECT(\"'\" & Setup!$AI$9 & \"'!\" & AD214),0) + IF(Setup!$AI$10<>\"\",INDIRECT(\"'\" & Setup!$AI$10 & \"'!\" & AD214),0) + IF(Setup!$AI$11<>\"\",INDIRECT(\"'\" & Setup!$AI$11 & \"'!\" & AD214),0) + IF(Setup!$AI$12<>\"\",INDIRECT(\"'\" & Setup!$AI$12 & \"'!\" & AD214),0)","v":0},{"$f":"IF(Setup!$AI$7<>\"\",INDIRECT(\"'\" & Setup!$AI$7 & \"'!\" & AE214),0) + IF(Setup!$AI$8<>\"\",INDIRECT(\"'\" & Setup!$AI$8 & \"'!\" & AE214),0) + IF(Setup!$AI$9<>\"\",INDIRECT(\"'\" & Setup!$AI$9 & \"'!\" & AE214),0) + IF(Setup!$AI$10<>\"\",INDIRECT(\"'\" & Setup!$AI$10 & \"'!\" & AE214),0) + IF(Setup!$AI$11<>\"\",INDIRECT(\"'\" & Setup!$AI$11 & \"'!\" & AE214),0) + IF(Setup!$AI$12<>\"\",INDIRECT(\"'\" & Setup!$AI$12 & \"'!\" & AE214),0)","v":0},{"$f":"IF(Setup!$AJ$7<>\"\",INDIRECT(\"'\" & Setup!$AJ$7 & \"'!\" & AD214),0) + IF(Setup!$AJ$8<>\"\",INDIRECT(\"'\" & Setup!$AJ$8 & \"'!\" & AD214),0) + IF(Setup!$AJ$9<>\"\",INDIRECT(\"'\" & Setup!$AJ$9 & \"'!\" & AD214),0) + IF(Setup!$AJ$10<>\"\",INDIRECT(\"'\" & Setup!$AJ$10 & \"'!\" & AD214),0) + IF(Setup!$AJ$11<>\"\",INDIRECT(\"'\" & Setup!$AJ$11 & \"'!\" & AD214),0) + IF(Setup!$AJ$12<>\"\",INDIRECT(\"'\" & Setup!$AJ$12 & \"'!\" & AD214),0)","v":0},{"$f":"IF(Setup!$AJ$7<>\"\",INDIRECT(\"'\" & Setup!$AJ$7 & \"'!\" & AE214),0) + IF(Setup!$AJ$8<>\"\",INDIRECT(\"'\" & Setup!$AJ$8 & \"'!\" & AE214),0) + IF(Setup!$AJ$9<>\"\",INDIRECT(\"'\" & Setup!$AJ$9 & \"'!\" & AE214),0) + IF(Setup!$AJ$10<>\"\",INDIRECT(\"'\" & Setup!$AJ$10 & \"'!\" & AE214),0) + IF(Setup!$AJ$11<>\"\",INDIRECT(\"'\" & Setup!$AJ$11 & \"'!\" & AE214),0) + IF(Setup!$AJ$12<>\"\",INDIRECT(\"'\" & Setup!$AJ$12 & \"'!\" & AE214),0)","v":0}]
[{"$f":"Planning!A198","v":"I190"},{"$f":"Planning!B198","v":0},{"$f":"Planning!C198","v":0},{"$f":"Planning!D198","v":0},{"$f":"Planning!E198","v":0},{"$f":"Planning!G198","v":0},null,0,0,{"$f":"IF(AND($AR215=\"2\",$AB214<>Lists!$A$17),AU215,AT215)","v":""},"",0,0,{"$f":"IF(AND($AR215=\"2\",$AB215<>Lists!$A$17),AW215,AV215)","v":""},"",0,0,{"$f":"IF(AND($AR215=\"2\",$AB215<>Lists!$A$17),AY215,AX215)","v":""},"",0,0,{"$f":"IF(AND($AR215=\"2\",$AB215<>Lists!$A$17),BA215,AZ215)","v":""},"",0,0,{"$f":"IF(AND($AR215=\"2\",$AB215<>Lists!$A$17),BC215,BB215)","v":""},"",{"$f":"Planning!H198","v":0},"00","H214","J214","I214","",null,{"$f":"IF(Setup!$AG$7<>\"\",INDIRECT(\"'\" & Setup!$AG$7 & \"'!\" & AF215),0) + IF(Setup!$AG$8<>\"\",INDIRECT(\"'\" & Setup!$AG$8 & \"'!\" & AF215),0) + IF(Setup!$AG$9<>\"\",INDIRECT(\"'\" & Setup!$AG$9 & \"'!\" & AF215),0) + IF(Setup!$AG$10<>\"\",INDIRECT(\"'\" & Setup!$AG$10 & \"'!\" & AF215),0) + IF(Setup!$AG$11<>\"\",INDIRECT(\"'\" & Setup!$AG$11 & \"'!\" & AF215),0) + IF(Setup!$AG$12<>\"\",INDIRECT(\"'\" & Setup!$AG$12 & \"'!\" & AF215),0)","v":0},{"$f":"IF(Setup!$AH$7<>\"\",INDIRECT(\"'\" & Setup!$AH$7 & \"'!\" & AF215),0) + IF(Setup!$AH$8<>\"\",INDIRECT(\"'\" & Setup!$AH$8 & \"'!\" & AF215),0) + IF(Setup!$AH$9<>\"\",INDIRECT(\"'\" & Setup!$AH$9 & \"'!\" & AF215),0) + IF(Setup!$AH$10<>\"\",INDIRECT(\"'\" & Setup!$AH$10 & \"'!\" & AF215),0) + IF(Setup!$AH$11<>\"\",INDIRECT(\"'\" & Setup!$AH$11 & \"'!\" & AF215),0) + IF(Setup!$AH$12<>\"\",INDIRECT(\"'\" & Setup!$AH$12 & \"'!\" & AF215),0)","v":0},{"$f":"IF(Setup!$AI$7<>\"\",INDIRECT(\"'\" & Setup!$AI$7 & \"'!\" & AF215),0) + IF(Setup!$AI$8<>\"\",INDIRECT(\"'\" & Setup!$AI$8 & \"'!\" & AF215),0) + IF(Setup!$AI$9<>\"\",INDIRECT(\"'\" & Setup!$AI$9 & \"'!\" & AF215),0) + IF(Setup!$AI$10<>\"\",INDIRECT(\"'\" & Setup!$AI$10 & \"'!\" & AF215),0) + IF(Setup!$AI$11<>\"\",INDIRECT(\"'\" & Setup!$AI$11 & \"'!\" & AF215),0) + IF(Setup!$AI$12<>\"\",INDIRECT(\"'\" & Setup!$AI$12 & \"'!\" & AF215),0)","v":0},{"$f":"IF(Setup!$AJ$7<>\"\",INDIRECT(\"'\" & Setup!$AJ$7 & \"'!\" & AF215),0) + IF(Setup!$AJ$8<>\"\",INDIRECT(\"'\" & Setup!$AJ$8 & \"'!\" & AF215),0) + IF(Setup!$AJ$9<>\"\",INDIRECT(\"'\" & Setup!$AJ$9 & \"'!\" & AF215),0) + IF(Setup!$AJ$10<>\"\",INDIRECT(\"'\" & Setup!$AJ$10 & \"'!\" & AF215),0) + IF(Setup!$AJ$11<>\"\",INDIRECT(\"'\" & Setup!$AJ$11 & \"'!\" & AF215),0) + IF(Setup!$AJ$12<>\"\",INDIRECT(\"'\" & Setup!$AJ$12 & \"'!\" & AF215),0)","v":0},null,"",{"$nulls":3},{"$f":"IF(C215=0,\"\",LEFT(INDEX(Lists!$H$5:$H$49,MATCH(C215,Lists!$G$5:$G$49,0),1),1))","v":""},null,"","","","","","","","","","",{"$nulls":6},{"$f":"IF(Setup!$AG$7<>\"\",INDIRECT(\"'\" & Setup!$AG$7 & \"'!\" & AD215),0) + IF(Setup!$AG$8<>\"\",INDIRECT(\"'\" & Setup!$AG$8 & \"'!\" & AD215),0) + IF(Setup!$AG$9<>\"\",INDIRECT(\"'\" & Setup!$AG$9 & \"'!\" & AD215),0) + IF(Setup!$AG$10<>\"\",INDIRECT(\"'\" & Setup!$AG$10 & \"'!\" & AD215),0) + IF(Setup!$AG$11<>\"\",INDIRECT(\"'\" & Setup!$AG$11 & \"'!\" & AD215),0) + IF(Setup!$AG$12<>\"\",INDIRECT(\"'\" & Setup!$AG$12 & \"'!\" & AD215),0)","v":0},{"$f":"IF(Setup!$AG$7<>\"\",INDIRECT(\"'\" & Setup!$AG$7 & \"'!\" & AE215),0) + IF(Setup!$AG$8<>\"\",INDIRECT(\"'\" & Setup!$AG$8 & \"'!\" & AE215),0) + IF(Setup!$AG$9<>\"\",INDIRECT(\"'\" & Setup!$AG$9 & \"'!\" & AE215),0) + IF(Setup!$AG$10<>\"\",INDIRECT(\"'\" & Setup!$AG$10 & \"'!\" & AE215),0) + IF(Setup!$AG$11<>\"\",INDIRECT(\"'\" & Setup!$AG$11 & \"'!\" & AE215),0) + IF(Setup!$AG$12<>\"\",INDIRECT(\"'\" & Setup!$AG$12 & \"'!\" & AE215),0)","v":0},{"$f":"IF(Setup!$AH$7<>\"\",INDIRECT(\"'\" & Setup!$AH$7 & \"'!\" & AD215),0) + IF(Setup!$AH$8<>\"\",INDIRECT(\"'\" & Setup!$AH$8 & \"'!\" & AD215),0) + IF(Setup!$AH$9<>\"\",INDIRECT(\"'\" & Setup!$AH$9 & \"'!\" & AD215),0) + IF(Setup!$AH$10<>\"\",INDIRECT(\"'\" & Setup!$AH$10 & \"'!\" & AD215),0) + IF(Setup!$AH$11<>\"\",INDIRECT(\"'\" & Setup!$AH$11 & \"'!\" & AD215),0) + IF(Setup!$AH$12<>\"\",INDIRECT(\"'\" & Setup!$AH$12 & \"'!\" & AD215),0)","v":0},{"$f":"IF(Setup!$AH$7<>\"\",INDIRECT(\"'\" & Setup!$AH$7 & \"'!\" & AE215),0) + IF(Setup!$AH$8<>\"\",INDIRECT(\"'\" & Setup!$AH$8 & \"'!\" & AE215),0) + IF(Setup!$AH$9<>\"\",INDIRECT(\"'\" & Setup!$AH$9 & \"'!\" & AE215),0) + IF(Setup!$AH$10<>\"\",INDIRECT(\"'\" & Setup!$AH$10 & \"'!\" & AE215),0) + IF(Setup!$AH$11<>\"\",INDIRECT(\"'\" & Setup!$AH$11 & \"'!\" & AE215),0) + IF(Setup!$AH$12<>\"\",INDIRECT(\"'\" & Setup!$AH$12 & \"'!\" & AE215),0)","v":0},{"$f":"IF(Setup!$AI$7<>\"\",INDIRECT(\"'\" & Setup!$AI$7 & \"'!\" & AD215),0) + IF(Setup!$AI$8<>\"\",INDIRECT(\"'\" & Setup!$AI$8 & \"'!\" & AD215),0) + IF(Setup!$AI$9<>\"\",INDIRECT(\"'\" & Setup!$AI$9 & \"'!\" & AD215),0) + IF(Setup!$AI$10<>\"\",INDIRECT(\"'\" & Setup!$AI$10 & \"'!\" & AD215),0) + IF(Setup!$AI$11<>\"\",INDIRECT(\"'\" & Setup!$AI$11 & \"'!\" & AD215),0) + IF(Setup!$AI$12<>\"\",INDIRECT(\"'\" & Setup!$AI$12 & \"'!\" & AD215),0)","v":0},{"$f":"IF(Setup!$AI$7<>\"\",INDIRECT(\"'\" & Setup!$AI$7 & \"'!\" & AE215),0) + IF(Setup!$AI$8<>\"\",INDIRECT(\"'\" & Setup!$AI$8 & \"'!\" & AE215),0) + IF(Setup!$AI$9<>\"\",INDIRECT(\"'\" & Setup!$AI$9 & \"'!\" & AE215),0) + IF(Setup!$AI$10<>\"\",INDIRECT(\"'\" & Setup!$AI$10 & \"'!\" & AE215),0) + IF(Setup!$AI$11<>\"\",INDIRECT(\"'\" & Setup!$AI$11 & \"'!\" & AE215),0) + IF(Setup!$AI$12<>\"\",INDIRECT(\"'\" & Setup!$AI$12 & \"'!\" & AE215),0)","v":0},{"$f":"IF(Setup!$AJ$7<>\"\",INDIRECT(\"'\" & Setup!$AJ$7 & \"'!\" & AD215),0) + IF(Setup!$AJ$8<>\"\",INDIRECT(\"'\" & Setup!$AJ$8 & \"'!\" & AD215),0) + IF(Setup!$AJ$9<>\"\",INDIRECT(\"'\" & Setup!$AJ$9 & \"'!\" & AD215),0) + IF(Setup!$AJ$10<>\"\",INDIRECT(\"'\" & Setup!$AJ$10 & \"'!\" & AD215),0) + IF(Setup!$AJ$11<>\"\",INDIRECT(\"'\" & Setup!$AJ$11 & \"'!\" & AD215),0) + IF(Setup!$AJ$12<>\"\",INDIRECT(\"'\" & Setup!$AJ$12 & \"'!\" & AD215),0)","v":0},{"$f":"IF(Setup!$AJ$7<>\"\",INDIRECT(\"'\" & Setup!$AJ$7 & \"'!\" & AE215),0) + IF(Setup!$AJ$8<>\"\",INDIRECT(\"'\" & Setup!$AJ$8 & \"'!\" & AE215),0) + IF(Setup!$AJ$9<>\"\",INDIRECT(\"'\" & Setup!$AJ$9 & \"'!\" & AE215),0) + IF(Setup!$AJ$10<>\"\",INDIRECT(\"'\" & Setup!$AJ$10 & \"'!\" & AE215),0) + IF(Setup!$AJ$11<>\"\",INDIRECT(\"'\" & Setup!$AJ$11 & \"'!\" & AE215),0) + IF(Setup!$AJ$12<>\"\",INDIRECT(\"'\" & Setup!$AJ$12 & \"'!\" & AE215),0)","v":0}]
[{"$f":"Planning!A199","v":"I191"},{"$f":"Planning!B199","v":0},{"$f":"Planning!C199","v":0},{"$f":"Planning!D199","v":0},{"$f":"Planning!E199","v":0},{"$f":"Planning!G199","v":0},null,0,0,{"$f":"IF(AND($AR216=\"2\",$AB215<>Lists!$A$17),AU216,AT216)","v":""},"",0,0,{"$f":"IF(AND($AR216=\"2\",$AB216<>Lists!$A$17),AW216,AV216)","v":""},"",0,0,{"$f":"IF(AND($AR216=\"2\",$AB216<>Lists!$A$17),AY216,AX216)","v":""},"",0,0,{"$f":"IF(AND($AR216=\"2\",$AB216<>Lists!$A$17),BA216,AZ216)","v":""},"",0,0,{"$f":"IF(AND($AR216=\"2\",$AB216<>Lists!$A$17),BC216,BB216)","v":""},"",{"$f":"Planning!H199","v":0},"00","H215","J215","I215","",null,{"$f":"IF(Setup!$AG$7<>\"\",INDIRECT(\"'\" & Setup!$AG$7 & \"'!\" & AF216),0) + IF(Setup!$AG$8<>\"\",INDIRECT(\"'\" & Setup!$AG$8 & \"'!\" & AF216),0) + IF(Setup!$AG$9<>\"\",INDIRECT(\"'\" & Setup!$AG$9 & \"'!\" & AF216),0) + IF(Setup!$AG$10<>\"\",INDIRECT(\"'\" & Setup!$AG$10 & \"'!\" & AF216),0) + IF(Setup!$AG$11<>\"\",INDIRECT(\"'\" & Setup!$AG$11 & \"'!\" & AF216),0) + IF(Setup!$AG$12<>\"\",INDIRECT(\"'\" & Setup!$AG$12 & \"'!\" & AF216),0)","v":0},{"$f":"IF(Setup!$AH$7<>\"\",INDIRECT(\"'\" & Setup!$AH$7 & \"'!\" & AF216),0) + IF(Setup!$AH$8<>\"\",INDIRECT(\"'\" & Setup!$AH$8 & \"'!\" & AF216),0) + IF(Setup!$AH$9<>\"\",INDIRECT(\"'\" & Setup!$AH$9 & \"'!\" & AF216),0) + IF(Setup!$AH$10<>\"\",INDIRECT(\"'\" & Setup!$AH$10 & \"'!\" & AF216),0) + IF(Setup!$AH$11<>\"\",INDIRECT(\"'\" & Setup!$AH$11 & \"'!\" & AF216),0) + IF(Setup!$AH$12<>\"\",INDIRECT(\"'\" & Setup!$AH$12 & \"'!\" & AF216),0)","v":0},{"$f":"IF(Setup!$AI$7<>\"\",INDIRECT(\"'\" & Setup!$AI$7 & \"'!\" & AF216),0) + IF(Setup!$AI$8<>\"\",INDIRECT(\"'\" & Setup!$AI$8 & \"'!\" & AF216),0) + IF(Setup!$AI$9<>\"\",INDIRECT(\"'\" & Setup!$AI$9 & \"'!\" & AF216),0) + IF(Setup!$AI$10<>\"\",INDIRECT(\"'\" & Setup!$AI$10 & \"'!\" & AF216),0) + IF(Setup!$AI$11<>\"\",INDIRECT(\"'\" & Setup!$AI$11 & \"'!\" & AF216),0) + IF(Setup!$AI$12<>\"\",INDIRECT(\"'\" & Setup!$AI$12 & \"'!\" & AF216),0)","v":0},{"$f":"IF(Setup!$AJ$7<>\"\",INDIRECT(\"'\" & Setup!$AJ$7 & \"'!\" & AF216),0) + IF(Setup!$AJ$8<>\"\",INDIRECT(\"'\" & Setup!$AJ$8 & \"'!\" & AF216),0) + IF(Setup!$AJ$9<>\"\",INDIRECT(\"'\" & Setup!$AJ$9 & \"'!\" & AF216),0) + IF(Setup!$AJ$10<>\"\",INDIRECT(\"'\" & Setup!$AJ$10 & \"'!\" & AF216),0) + IF(Setup!$AJ$11<>\"\",INDIRECT(\"'\" & Setup!$AJ$11 & \"'!\" & AF216),0) + IF(Setup!$AJ$12<>\"\",INDIRECT(\"'\" & Setup!$AJ$12 & \"'!\" & AF216),0)","v":0},null,"",{"$nulls":3},{"$f":"IF(C216=0,\"\",LEFT(INDEX(Lists!$H$5:$H$49,MATCH(C216,Lists!$G$5:$G$49,0),1),1))","v":""},null,"","","","","","","","","","",{"$nulls":6},{"$f":"IF(Setup!$AG$7<>\"\",INDIRECT(\"'\" & Setup!$AG$7 & \"'!\" & AD216),0) + IF(Setup!$AG$8<>\"\",INDIRECT(\"'\" & Setup!$AG$8 & \"'!\" & AD216),0) + IF(Setup!$AG$9<>\"\",INDIRECT(\"'\" & Setup!$AG$9 & \"'!\" & AD216),0) + IF(Setup!$AG$10<>\"\",INDIRECT(\"'\" & Setup!$AG$10 & \"'!\" & AD216),0) + IF(Setup!$AG$11<>\"\",INDIRECT(\"'\" & Setup!$AG$11 & \"'!\" & AD216),0) + IF(Setup!$AG$12<>\"\",INDIRECT(\"'\" & Setup!$AG$12 & \"'!\" & AD216),0)","v":0},{"$f":"IF(Setup!$AG$7<>\"\",INDIRECT(\"'\" & Setup!$AG$7 & \"'!\" & AE216),0) + IF(Setup!$AG$8<>\"\",INDIRECT(\"'\" & Setup!$AG$8 & \"'!\" & AE216),0) + IF(Setup!$AG$9<>\"\",INDIRECT(\"'\" & Setup!$AG$9 & \"'!\" & AE216),0) + IF(Setup!$AG$10<>\"\",INDIRECT(\"'\" & Setup!$AG$10 & \"'!\" & AE216),0) + IF(Setup!$AG$11<>\"\",INDIRECT(\"'\" & Setup!$AG$11 & \"'!\" & AE216),0) + IF(Setup!$AG$12<>\"\",INDIRECT(\"'\" & Setup!$AG$12 & \"'!\" & AE216),0)","v":0},{"$f":"IF(Setup!$AH$7<>\"\",INDIRECT(\"'\" & Setup!$AH$7 & \"'!\" & AD216),0) + IF(Setup!$AH$8<>\"\",INDIRECT(\"'\" & Setup!$AH$8 & \"'!\" & AD216),0) + IF(Setup!$AH$9<>\"\",INDIRECT(\"'\" & Setup!$AH$9 & \"'!\" & AD216),0) + IF(Setup!$AH$10<>\"\",INDIRECT(\"'\" & Setup!$AH$10 & \"'!\" & AD216),0) + IF(Setup!$AH$11<>\"\",INDIRECT(\"'\" & Setup!$AH$11 & \"'!\" & AD216),0) + IF(Setup!$AH$12<>\"\",INDIRECT(\"'\" & Setup!$AH$12 & \"'!\" & AD216),0)","v":0},{"$f":"IF(Setup!$AH$7<>\"\",INDIRECT(\"'\" & Setup!$AH$7 & \"'!\" & AE216),0) + IF(Setup!$AH$8<>\"\",INDIRECT(\"'\" & Setup!$AH$8 & \"'!\" & AE216),0) + IF(Setup!$AH$9<>\"\",INDIRECT(\"'\" & Setup!$AH$9 & \"'!\" & AE216),0) + IF(Setup!$AH$10<>\"\",INDIRECT(\"'\" & Setup!$AH$10 & \"'!\" & AE216),0) + IF(Setup!$AH$11<>\"\",INDIRECT(\"'\" & Setup!$AH$11 & \"'!\" & AE216),0) + IF(Setup!$AH$12<>\"\",INDIRECT(\"'\" & Setup!$AH$12 & \"'!\" & AE216),0)","v":0},{"$f":"IF(Setup!$AI$7<>\"\",INDIRECT(\"'\" & Setup!$AI$7 & \"'!\" & AD216),0) + IF(Setup!$AI$8<>\"\",INDIRECT(\"'\" & Setup!$AI$8 & \"'!\" & AD216),0) + IF(Setup!$AI$9<>\"\",INDIRECT(\"'\" & Setup!$AI$9 & \"'!\" & AD216),0) + IF(Setup!$AI$10<>\"\",INDIRECT(\"'\" & Setup!$AI$10 & \"'!\" & AD216),0) + IF(Setup!$AI$11<>\"\",INDIRECT(\"'\" & Setup!$AI$11 & \"'!\" & AD216),0) + IF(Setup!$AI$12<>\"\",INDIRECT(\"'\" & Setup!$AI$12 & \"'!\" & AD216),0)","v":0},{"$f":"IF(Setup!$AI$7<>\"\",INDIRECT(\"'\" & Setup!$AI$7 & \"'!\" & AE216),0) + IF(Setup!$AI$8<>\"\",INDIRECT(\"'\" & Setup!$AI$8 & \"'!\" & AE216),0) + IF(Setup!$AI$9<>\"\",INDIRECT(\"'\" & Setup!$AI$9 & \"'!\" & AE216),0) + IF(Setup!$AI$10<>\"\",INDIRECT(\"'\" & Setup!$AI$10 & \"'!\" & AE216),0) + IF(Setup!$AI$11<>\"\",INDIRECT(\"'\" & Setup!$AI$11 & \"'!\" & AE216),0) + IF(Setup!$AI$12<>\"\",INDIRECT(\"'\" & Setup!$AI$12 & \"'!\" & AE216),0)","v":0},{"$f":"IF(Setup!$AJ$7<>\"\",INDIRECT(\"'\" & Setup!$AJ$7 & \"'!\" & AD216),0) + IF(Setup!$AJ$8<>\"\",INDIRECT(\"'\" & Setup!$AJ$8 & \"'!\" & AD216),0) + IF(Setup!$AJ$9<>\"\",INDIRECT(\"'\" & Setup!$AJ$9 & \"'!\" & AD216),0) + IF(Setup!$AJ$10<>\"\",INDIRECT(\"'\" & Setup!$AJ$10 & \"'!\" & AD216),0) + IF(Setup!$AJ$11<>\"\",INDIRECT(\"'\" & Setup!$AJ$11 & \"'!\" & AD216),0) + IF(Setup!$AJ$12<>\"\",INDIRECT(\"'\" & Setup!$AJ$12 & \"'!\" & AD216),0)","v":0},{"$f":"IF(Setup!$AJ$7<>\"\",INDIRECT(\"'\" & Setup!$AJ$7 & \"'!\" & AE216),0) + IF(Setup!$AJ$8<>\"\",INDIRECT(\"'\" & Setup!$AJ$8 & \"'!\" & AE216),0) + IF(Setup!$AJ$9<>\"\",INDIRECT(\"'\" & Setup!$AJ$9 & \"'!\" & AE216),0) + IF(Setup!$AJ$10<>\"\",INDIRECT(\"'\" & Setup!$AJ$10 & \"'!\" & AE216),0) + IF(Setup!$AJ$11<>\"\",INDIRECT(\"'\" & Setup!$AJ$11 & \"'!\" & AE216),0) + IF(Setup!$AJ$12<>\"\",INDIRECT(\"'\" & Setup!$AJ$12 & \"'!\" & AE216),0)","v":0}]
[{"$f":"Planning!A200","v":"I192"},{"$f":"Planning!B200","v":0},{"$f":"Planning!C200","v":0},{"$f":"Planning!D200","v":0},{"$f":"Planning!E200","v":0},{"$f":"Planning!G200","v":0},null,0,0,{"$f":"IF(AND($AR217=\"2\",$AB216<>Lists!$A$17),AU217,AT217)","v":""},"",0,0,{"$f":"IF(AND($AR217=\"2\",$AB217<>Lists!$A$17),AW217,AV217)","v":""},"",0,0,{"$f":"IF(AND($AR217=\"2\",$AB217<>Lists!$A$17),AY217,AX217)","v":""},"",0,0,{"$f":"IF(AND($AR217=\"2\",$AB217<>Lists!$A$17),BA217,AZ217)","v":""},"",0,0,{"$f":"IF(AND($AR217=\"2\",$AB217<>Lists!$A$17),BC217,BB217)","v":""},"",{"$f":"Planning!H200","v":0},"00","H216","J216","I216","",null,{"$f":"IF(Setup!$AG$7<>\"\",INDIRECT(\"'\" & Setup!$AG$7 & \"'!\" & AF217),0) + IF(Setup!$AG$8<>\"\",INDIRECT(\"'\" & Setup!$AG$8 & \"'!\" & AF217),0) + IF(Setup!$AG$9<>\"\",INDIRECT(\"'\" & Setup!$AG$9 & \"'!\" & AF217),0) + IF(Setup!$AG$10<>\"\",INDIRECT(\"'\" & Setup!$AG$10 & \"'!\" & AF217),0) + IF(Setup!$AG$11<>\"\",INDIRECT(\"'\" & Setup!$AG$11 & \"'!\" & AF217),0) + IF(Setup!$AG$12<>\"\",INDIRECT(\"'\" & Setup!$AG$12 & \"'!\" & AF217),0)","v":0},{"$f":"IF(Setup!$AH$7<>\"\",INDIRECT(\"'\" & Setup!$AH$7 & \"'!\" & AF217),0) + IF(Setup!$AH$8<>\"\",INDIRECT(\"'\" & Setup!$AH$8 & \"'!\" & AF217),0) + IF(Setup!$AH$9<>\"\",INDIRECT(\"'\" & Setup!$AH$9 & \"'!\" & AF217),0) + IF(Setup!$AH$10<>\"\",INDIRECT(\"'\" & Setup!$AH$10 & \"'!\" & AF217),0) + IF(Setup!$AH$11<>\"\",INDIRECT(\"'\" & Setup!$AH$11 & \"'!\" & AF217),0) + IF(Setup!$AH$12<>\"\",INDIRECT(\"'\" & Setup!$AH$12 & \"'!\" & AF217),0)","v":0},{"$f":"IF(Setup!$AI$7<>\"\",INDIRECT(\"'\" & Setup!$AI$7 & \"'!\" & AF217),0) + IF(Setup!$AI$8<>\"\",INDIRECT(\"'\" & Setup!$AI$8 & \"'!\" & AF217),0) + IF(Setup!$AI$9<>\"\",INDIRECT(\"'\" & Setup!$AI$9 & \"'!\" & AF217),0) + IF(Setup!$AI$10<>\"\",INDIRECT(\"'\" & Setup!$AI$10 & \"'!\" & AF217),0) + IF(Setup!$AI$11<>\"\",INDIRECT(\"'\" & Setup!$AI$11 & \"'!\" & AF217),0) + IF(Setup!$AI$12<>\"\",INDIRECT(\"'\" & Setup!$AI$12 & \"'!\" & AF217),0)","v":0},{"$f":"IF(Setup!$AJ$7<>\"\",INDIRECT(\"'\" & Setup!$AJ$7 & \"'!\" & AF217),0) + IF(Setup!$AJ$8<>\"\",INDIRECT(\"'\" & Setup!$AJ$8 & \"'!\" & AF217),0) + IF(Setup!$AJ$9<>\"\",INDIRECT(\"'\" & Setup!$AJ$9 & \"'!\" & AF217),0) + IF(Setup!$AJ$10<>\"\",INDIRECT(\"'\" & Setup!$AJ$10 & \"'!\" & AF217),0) + IF(Setup!$AJ$11<>\"\",INDIRECT(\"'\" & Setup!$AJ$11 & \"'!\" & AF217),0) + IF(Setup!$AJ$12<>\"\",INDIRECT(\"'\" & Setup!$AJ$12 & \"'!\" & AF217),0)","v":0},null,"",{"$nulls":3},{"$f":"IF(C217=0,\"\",LEFT(INDEX(Lists!$H$5:$H$49,MATCH(C217,Lists!$G$5:$G$49,0),1),1))","v":""},null,"","","","","","","","","","",{"$nulls":6},{"$f":"IF(Setup!$AG$7<>\"\",INDIRECT(\"'\" & Setup!$AG$7 & \"'!\" & AD217),0) + IF(Setup!$AG$8<>\"\",INDIRECT(\"'\" & Setup!$AG$8 & \"'!\" & AD217),0) + IF(Setup!$AG$9<>\"\",INDIRECT(\"'\" & Setup!$AG$9 & \"'!\" & AD217),0) + IF(Setup!$AG$10<>\"\",INDIRECT(\"'\" & Setup!$AG$10 & \"'!\" & AD217),0) + IF(Setup!$AG$11<>\"\",INDIRECT(\"'\" & Setup!$AG$11 & \"'!\" & AD217),0) + IF(Setup!$AG$12<>\"\",INDIRECT(\"'\" & Setup!$AG$12 & \"'!\" & AD217),0)","v":0},{"$f":"IF(Setup!$AG$7<>\"\",INDIRECT(\"'\" & Setup!$AG$7 & \"'!\" & AE217),0) + IF(Setup!$AG$8<>\"\",INDIRECT(\"'\" & Setup!$AG$8 & \"'!\" & AE217),0) + IF(Setup!$AG$9<>\"\",INDIRECT(\"'\" & Setup!$AG$9 & \"'!\" & AE217),0) + IF(Setup!$AG$10<>\"\",INDIRECT(\"'\" & Setup!$AG$10 & \"'!\" & AE217),0) + IF(Setup!$AG$11<>\"\",INDIRECT(\"'\" & Setup!$AG$11 & \"'!\" & AE217),0) + IF(Setup!$AG$12<>\"\",INDIRECT(\"'\" & Setup!$AG$12 & \"'!\" & AE217),0)","v":0},{"$f":"IF(Setup!$AH$7<>\"\",INDIRECT(\"'\" & Setup!$AH$7 & \"'!\" & AD217),0) + IF(Setup!$AH$8<>\"\",INDIRECT(\"'\" & Setup!$AH$8 & \"'!\" & AD217),0) + IF(Setup!$AH$9<>\"\",INDIRECT(\"'\" & Setup!$AH$9 & \"'!\" & AD217),0) + IF(Setup!$AH$10<>\"\",INDIRECT(\"'\" & Setup!$AH$10 & \"'!\" & AD217),0) + IF(Setup!$AH$11<>\"\",INDIRECT(\"'\" & Setup!$AH$11 & \"'!\" & AD217),0) + IF(Setup!$AH$12<>\"\",INDIRECT(\"'\" & Setup!$AH$12 & \"'!\" & AD217),0)","v":0},{"$f":"IF(Setup!$AH$7<>\"\",INDIRECT(\"'\" & Setup!$AH$7 & \"'!\" & AE217),0) + IF(Setup!$AH$8<>\"\",INDIRECT(\"'\" & Setup!$AH$8 & \"'!\" & AE217),0) + IF(Setup!$AH$9<>\"\",INDIRECT(\"'\" & Setup!$AH$9 & \"'!\" & AE217),0) + IF(Setup!$AH$10<>\"\",INDIRECT(\"'\" & Setup!$AH$10 & \"'!\" & AE217),0) + IF(Setup!$AH$11<>\"\",INDIRECT(\"'\" & Setup!$AH$11 & \"'!\" & AE217),0) + IF(Setup!$AH$12<>\"\",INDIRECT(\"'\" & Setup!$AH$12 & \"'!\" & AE217),0)","v":0},{"$f":"IF(Setup!$AI$7<>\"\",INDIRECT(\"'\" & Setup!$AI$7 & \"'!\" & AD217),0) + IF(Setup!$AI$8<>\"\",INDIRECT(\"'\" & Setup!$AI$8 & \"'!\" & AD217),0) + IF(Setup!$AI$9<>\"\",INDIRECT(\"'\" & Setup!$AI$9 & \"'!\" & AD217),0) + IF(Setup!$AI$10<>\"\",INDIRECT(\"'\" & Setup!$AI$10 & \"'!\" & AD217),0) + IF(Setup!$AI$11<>\"\",INDIRECT(\"'\" & Setup!$AI$11 & \"'!\" & AD217),0) + IF(Setup!$AI$12<>\"\",INDIRECT(\"'\" & Setup!$AI$12 & \"'!\" & AD217),0)","v":0},{"$f":"IF(Setup!$AI$7<>\"\",INDIRECT(\"'\" & Setup!$AI$7 & \"'!\" & AE217),0) + IF(Setup!$AI$8<>\"\",INDIRECT(\"'\" & Setup!$AI$8 & \"'!\" & AE217),0) + IF(Setup!$AI$9<>\"\",INDIRECT(\"'\" & Setup!$AI$9 & \"'!\" & AE217),0) + IF(Setup!$AI$10<>\"\",INDIRECT(\"'\" & Setup!$AI$10 & \"'!\" & AE217),0) + IF(Setup!$AI$11<>\"\",INDIRECT(\"'\" & Setup!$AI$11 & \"'!\" & AE217),0) + IF(Setup!$AI$12<>\"\",INDIRECT(\"'\" & Setup!$AI$12 & \"'!\" & AE217),0)","v":0},{"$f":"IF(Setup!$AJ$7<>\"\",INDIRECT(\"'\" & Setup!$AJ$7 & \"'!\" & AD217),0) + IF(Setup!$AJ$8<>\"\",INDIRECT(\"'\" & Setup!$AJ$8 & \"'!\" & AD217),0) + IF(Setup!$AJ$9<>\"\",INDIRECT(\"'\" & Setup!$AJ$9 & \"'!\" & AD217),0) + IF(Setup!$AJ$10<>\"\",INDIRECT(\"'\" & Setup!$AJ$10 & \"'!\" & AD217),0) + IF(Setup!$AJ$11<>\"\",INDIRECT(\"'\" & Setup!$AJ$11 & \"'!\" & AD217),0) + IF(Setup!$AJ$12<>\"\",INDIRECT(\"'\" & Setup!$AJ$12 & \"'!\" & AD217),0)","v":0},{"$f":"IF(Setup!$AJ$7<>\"\",INDIRECT(\"'\" & Setup!$AJ$7 & \"'!\" & AE217),0) + IF(Setup!$AJ$8<>\"\",INDIRECT(\"'\" & Setup!$AJ$8 & \"'!\" & AE217),0) + IF(Setup!$AJ$9<>\"\",INDIRECT(\"'\" & Setup!$AJ$9 & \"'!\" & AE217),0) + IF(Setup!$AJ$10<>\"\",INDIRECT(\"'\" & Setup!$AJ$10 & \"'!\" & AE217),0) + IF(Setup!$AJ$11<>\"\",INDIRECT(\"'\" & Setup!$AJ$11 & \"'!\" & AE217),0) + IF(Setup!$AJ$12<>\"\",INDIRECT(\"'\" & Setup!$AJ$12 & \"'!\" & AE217),0)","v":0}]
[{"$f":"Planning!A201","v":"I193"},{"$f":"Planning!B201","v":0},{"$f":"Planning!C201","v":0},{"$f":"Planning!D201","v":0},{"$f":"Planning!E201","v":0},{"$f":"Planning!G201","v":0},null,0,0,{"$f":"IF(AND($AR218=\"2\",$AB217<>Lists!$A$17),AU218,AT218)","v":""},{"$f":"IF($AN218 = ExcluirDelPLogro,\"\",IF(AND(H218=0,I218=0),\"\",J218))","v":""},{"$f":"IF(AR218<>\"3\",BJ218,INDIRECT(\"'\" & MesCierreQ1 & \"'!\" & AD218))","v":0},{"$f":"IF(AR218<>\"3\",BK218,INDIRECT(\"'\" & MesCierreQ1 & \"'!\" & AE218))","v":0},{"$f":"IF(AND($AR218=\"2\",$AB218<>Lists!$A$17),AW218,AV218)","v":""},{"$f":"IF($AN218=ExcluirDelPLogro,\"\",IF(AND(L218=0,M218=0),\"\",N218))","v":""},{"$f":"IF(AR218<>\"3\",BL218,INDIRECT(\"'\" & MesCierreQ2 & \"'!\" & AD218))","v":0},{"$f":"IF(AR218<>\"3\",BM218,INDIRECT(\"'\" & MesCierreQ2 & \"'!\" & AE218))","v":0},{"$f":"IF(AND($AR218=\"2\",$AB218<>Lists!$A$17),AY218,AX218)","v":""},{"$f":"IF($AN218=ExcluirDelPLogro,\"\",IF(AND(P218=0,Q218=0),\"\",R218))","v":""},{"$f":"IF(AR218<>\"3\",BN218,INDIRECT(\"'\" & MesCierreQ3 & \"'!\" & AD218))","v":0},{"$f":"IF(AR218<>\"3\",BO218,INDIRECT(\"'\" & MesCierreQ3 & \"'!\" & AE218))","v":0},{"$f":"IF(AND($AR218=\"2\",$AB218<>Lists!$A$17),BA218,AZ218)","v":""},{"$f":"IF($AN218=ExcluirDelPLogro,\"\",IF(AND(T218=0,U218=0),\"\",V218))","v":""},{"$f":"IF(AR218<>\"3\",BP218,INDIRECT(\"'\" & MesCierreQ4 & \"'!\" & AD218))","v":0},{"$f":"IF(AR218<>\"3\",BQ218,INDIRECT(\"'\" & MesCierreQ4 & \"'!\" & AE218))","v":0},{"$f":"IF(AND($AR218=\"2\",$AB218<>Lists!$A$17),BC218,BB218)","v":""},{"$f":"IF($AN218=ExcluirDelPLogro,\"\",IF(AND(X218=0,Y218=0),\"\",Z218))","v":""},{"$f":"Planning!H201","v":0},"00","H217","J217","I217","",null,{"$f":"IF(Setup!$AG$7<>\"\",INDIRECT(\"'\" & Setup!$AG$7 & \"'!\" & AF218),0) + IF(Setup!$AG$8<>\"\",INDIRECT(\"'\" & Setup!$AG$8 & \"'!\" & AF218),0) + IF(Setup!$AG$9<>\"\",INDIRECT(\"'\" & Setup!$AG$9 & \"'!\" & AF218),0) + IF(Setup!$AG$10<>\"\",INDIRECT(\"'\" & Setup!$AG$10 & \"'!\" & AF218),0) + IF(Setup!$AG$11<>\"\",INDIRECT(\"'\" & Setup!$AG$11 & \"'!\" & AF218),0) + IF(Setup!$AG$12<>\"\",INDIRECT(\"'\" & Setup!$AG$12 & \"'!\" & AF218),0)","v":0},{"$f":"IF(Setup!$AH$7<>\"\",INDIRECT(\"'\" & Setup!$AH$7 & \"'!\" & AF218),0) + IF(Setup!$AH$8<>\"\",INDIRECT(\"'\" & Setup!$AH$8 & \"'!\" & AF218),0) + IF(Setup!$AH$9<>\"\",INDIRECT(\"'\" & Setup!$AH$9 & \"'!\" & AF218),0) + IF(Setup!$AH$10<>\"\",INDIRECT(\"'\" & Setup!$AH$10 & \"'!\" & AF218),0) + IF(Setup!$AH$11<>\"\",INDIRECT(\"'\" & Setup!$AH$11 & \"'!\" & AF218),0) + IF(Setup!$AH$12<>\"\",INDIRECT(\"'\" & Setup!$AH$12 & \"'!\" & AF218),0)","v":0},{"$f":"IF(Setup!$AI$7<>\"\",INDIRECT(\"'\" & Setup!$AI$7 & \"'!\" & AF218),0) + IF(Setup!$AI$8<>\"\",INDIRECT(\"'\" & Setup!$AI$8 & \"'!\" & AF218),0) + IF(Setup!$AI$9<>\"\",INDIRECT(\"'\" & Setup!$AI$9 & \"'!\" & AF218),0) + IF(Setup!$AI$10<>\"\",INDIRECT(\"'\" & Setup!$AI$10 & \"'!\" & AF218),0) + IF(Setup!$AI$11<>\"\",INDIRECT(\"'\" & Setup!$AI$11 & \"'!\" & AF218),0) + IF(Setup!$AI$12<>\"\",INDIRECT(\"'\" & Setup!$AI$12 & \"'!\" & AF218),0)","v":0},{"$f":"IF(Setup!$AJ$7<>\"\",INDIRECT(\"'\" & Setup!$AJ$7 & \"'!\" & AF218),0) + IF(Setup!$AJ$8<>\"\",INDIRECT(\"'\" & Setup!$AJ$8 & \"'!\" & AF218),0) + IF(Setup!$AJ$9<>\"\",INDIRECT(\"'\" & Setup!$AJ$9 & \"'!\" & AF218),0) + IF(Setup!$AJ$10<>\"\",INDIRECT(\"'\" & Setup!$AJ$10 & \"'!\" & AF218),0) + IF(Setup!$AJ$11<>\"\",INDIRECT(\"'\" & Setup!$AJ$11 & \"'!\" & AF218),0) + IF(Setup!$AJ$12<>\"\",INDIRECT(\"'\" & Setup!$AJ$12 & \"'!\" & AF218),0)","v":0},null,"",{"$nulls":3},{"$f":"IF(C218=0,\"\",LEFT(INDEX(Lists!$H$5:$H$49,MATCH(C218,Lists!$G$5:$G$49,0),1),1))","v":""},null,"","","","","","","","","","",{"$nulls":6},{"$f":"IF(Setup!$AG$7<>\"\",INDIRECT(\"'\" & Setup!$AG$7 & \"'!\" & AD218),0) + IF(Setup!$AG$8<>\"\",INDIRECT(\"'\" & Setup!$AG$8 & \"'!\" & AD218),0) + IF(Setup!$AG$9<>\"\",INDIRECT(\"'\" & Setup!$AG$9 & \"'!\" & AD218),0) + IF(Setup!$AG$10<>\"\",INDIRECT(\"'\" & Setup!$AG$10 & \"'!\" & AD218),0) + IF(Setup!$AG$11<>\"\",INDIRECT(\"'\" & Setup!$AG$11 & \"'!\" & AD218),0) + IF(Setup!$AG$12<>\"\",INDIRECT(\"'\" & Setup!$AG$12 & \"'!\" & AD218),0)","v":0},{"$f":"IF(Setup!$AG$7<>\"\",INDIRECT(\"'\" & Setup!$AG$7 & \"'!\" & AE218),0) + IF(Setup!$AG$8<>\"\",INDIRECT(\"'\" & Setup!$AG$8 & \"'!\" & AE218),0) + IF(Setup!$AG$9<>\"\",INDIRECT(\"'\" & Setup!$AG$9 & \"'!\" & AE218),0) + IF(Setup!$AG$10<>\"\",INDIRECT(\"'\" & Setup!$AG$10 & \"'!\" & AE218),0) + IF(Setup!$AG$11<>\"\",INDIRECT(\"'\" & Setup!$AG$11 & \"'!\" & AE218),0) + IF(Setup!$AG$12<>\"\",INDIRECT(\"'\" & Setup!$AG$12 & \"'!\" & AE218),0)","v":0},{"$f":"IF(Setup!$AH$7<>\"\",INDIRECT(\"'\" & Setup!$AH$7 & \"'!\" & AD218),0) + IF(Setup!$AH$8<>\"\",INDIRECT(\"'\" & Setup!$AH$8 & \"'!\" & AD218),0) + IF(Setup!$AH$9<>\"\",INDIRECT(\"'\" & Setup!$AH$9 & \"'!\" & AD218),0) + IF(Setup!$AH$10<>\"\",INDIRECT(\"'\" & Setup!$AH$10 & \"'!\" & AD218),0) + IF(Setup!$AH$11<>\"\",INDIRECT(\"'\" & Setup!$AH$11 & \"'!\" & AD218),0) + IF(Setup!$AH$12<>\"\",INDIRECT(\"'\" & Setup!$AH$12 & \"'!\" & AD218),0)","v":0},{"$f":"IF(Setup!$AH$7<>\"\",INDIRECT(\"'\" & Setup!$AH$7 & \"'!\" & AE218),0) + IF(Setup!$AH$8<>\"\",INDIRECT(\"'\" & Setup!$AH$8 & \"'!\" & AE218),0) + IF(Setup!$AH$9<>\"\",INDIRECT(\"'\" & Setup!$AH$9 & \"'!\" & AE218),0) + IF(Setup!$AH$10<>\"\",INDIRECT(\"'\" & Setup!$AH$10 & \"'!\" & AE218),0) + IF(Setup!$AH$11<>\"\",INDIRECT(\"'\" & Setup!$AH$11 & \"'!\" & AE218),0) + IF(Setup!$AH$12<>\"\",INDIRECT(\"'\" & Setup!$AH$12 & \"'!\" & AE218),0)","v":0},{"$f":"IF(Setup!$AI$7<>\"\",INDIRECT(\"'\" & Setup!$AI$7 & \"'!\" & AD218),0) + IF(Setup!$AI$8<>\"\",INDIRECT(\"'\" & Setup!$AI$8 & \"'!\" & AD218),0) + IF(Setup!$AI$9<>\"\",INDIRECT(\"'\" & Setup!$AI$9 & \"'!\" & AD218),0) + IF(Setup!$AI$10<>\"\",INDIRECT(\"'\" & Setup!$AI$10 & \"'!\" & AD218),0) + IF(Setup!$AI$11<>\"\",INDIRECT(\"'\" & Setup!$AI$11 & \"'!\" & AD218),0) + IF(Setup!$AI$12<>\"\",INDIRECT(\"'\" & Setup!$AI$12 & \"'!\" & AD218),0)","v":0},{"$f":"IF(Setup!$AI$7<>\"\",INDIRECT(\"'\" & Setup!$AI$7 & \"'!\" & AE218),0) + IF(Setup!$AI$8<>\"\",INDIRECT(\"'\" & Setup!$AI$8 & \"'!\" & AE218),0) + IF(Setup!$AI$9<>\"\",INDIRECT(\"'\" & Setup!$AI$9 & \"'!\" & AE218),0) + IF(Setup!$AI$10<>\"\",INDIRECT(\"'\" & Setup!$AI$10 & \"'!\" & AE218),0) + IF(Setup!$AI$11<>\"\",INDIRECT(\"'\" & Setup!$AI$11 & \"'!\" & AE218),0) + IF(Setup!$AI$12<>\"\",INDIRECT(\"'\" & Setup!$AI$12 & \"'!\" & AE218),0)","v":0},{"$f":"IF(Setup!$AJ$7<>\"\",INDIRECT(\"'\" & Setup!$AJ$7 & \"'!\" & AD218),0) + IF(Setup!$AJ$8<>\"\",INDIRECT(\"'\" & Setup!$AJ$8 & \"'!\" & AD218),0) + IF(Setup!$AJ$9<>\"\",INDIRECT(\"'\" & Setup!$AJ$9 & \"'!\" & AD218),0) + IF(Setup!$AJ$10<>\"\",INDIRECT(\"'\" & Setup!$AJ$10 & \"'!\" & AD218),0) + IF(Setup!$AJ$11<>\"\",INDIRECT(\"'\" & Setup!$AJ$11 & \"'!\" & AD218),0) + IF(Setup!$AJ$12<>\"\",INDIRECT(\"'\" & Setup!$AJ$12 & \"'!\" & AD218),0)","v":0},{"$f":"IF(Setup!$AJ$7<>\"\",INDIRECT(\"'\" & Setup!$AJ$7 & \"'!\" & AE218),0) + IF(Setup!$AJ$8<>\"\",INDIRECT(\"'\" & Setup!$AJ$8 & \"'!\" & AE218),0) + IF(Setup!$AJ$9<>\"\",INDIRECT(\"'\" & Setup!$AJ$9 & \"'!\" & AE218),0) + IF(Setup!$AJ$10<>\"\",INDIRECT(\"'\" & Setup!$AJ$10 & \"'!\" & AE218),0) + IF(Setup!$AJ$11<>\"\",INDIRECT(\"'\" & Setup!$AJ$11 & \"'!\" & AE218),0) + IF(Setup!$AJ$12<>\"\",INDIRECT(\"'\" & Setup!$AJ$12 & \"'!\" & AE218),0)","v":0}]
[{"$f":"Planning!A202","v":"I194"},{"$f":"Planning!B202","v":0},{"$f":"Planning!C202","v":0},{"$f":"Planning!D202","v":0},{"$f":"Planning!E202","v":0},{"$f":"Planning!G202","v":0},null,{"$f":"IF(AR219<>\"3\",SUM(L219,P219,T219,X219),X219)","v":0},{"$f":"IF(AR219<>\"3\",SUM(M219,Q219,U219,Y219),Y219)","v":0},{"$f":"IF(AND($AR219=\"2\",$AB218<>Lists!$A$17),AU219,AT219)","v":""},"",0,0,{"$f":"IF(AND($AR219=\"2\",$AB219<>Lists!$A$17),AW219,AV219)","v":""},"",0,0,{"$f":"IF(AND($AR219=\"2\",$AB219<>Lists!$A$17),AY219,AX219)","v":""},"",0,0,{"$f":"IF(AND($AR219=\"2\",$AB219<>Lists!$A$17),BA219,AZ219)","v":""},"",0,0,{"$f":"IF(AND($AR219=\"2\",$AB219<>Lists!$A$17),BC219,BB219)","v":""},"",{"$f":"Planning!H202","v":0},{"$f":"LEFT(B219,1)&C219","v":"00"},"H218","J218","I218",{"$f":"IF(E219=0,\"\",\"[\"&A219&\"] \"&E219)","v":""},null,{"$f":"IF(Setup!$AG$7<>\"\",INDIRECT(\"'\" & Setup!$AG$7 & \"'!\" & AF219),0) + IF(Setup!$AG$8<>\"\",INDIRECT(\"'\" & Setup!$AG$8 & \"'!\" & AF219),0) + IF(Setup!$AG$9<>\"\",INDIRECT(\"'\" & Setup!$AG$9 & \"'!\" & AF219),0) + IF(Setup!$AG$10<>\"\",INDIRECT(\"'\" & Setup!$AG$10 & \"'!\" & AF219),0) + IF(Setup!$AG$11<>\"\",INDIRECT(\"'\" & Setup!$AG$11 & \"'!\" & AF219),0) + IF(Setup!$AG$12<>\"\",INDIRECT(\"'\" & Setup!$AG$12 & \"'!\" & AF219),0)","v":0},{"$f":"IF(Setup!$AH$7<>\"\",INDIRECT(\"'\" & Setup!$AH$7 & \"'!\" & AF219),0) + IF(Setup!$AH$8<>\"\",INDIRECT(\"'\" & Setup!$AH$8 & \"'!\" & AF219),0) + IF(Setup!$AH$9<>\"\",INDIRECT(\"'\" & Setup!$AH$9 & \"'!\" & AF219),0) + IF(Setup!$AH$10<>\"\",INDIRECT(\"'\" & Setup!$AH$10 & \"'!\" & AF219),0) + IF(Setup!$AH$11<>\"\",INDIRECT(\"'\" & Setup!$AH$11 & \"'!\" & AF219),0) + IF(Setup!$AH$12<>\"\",INDIRECT(\"'\" & Setup!$AH$12 & \"'!\" & AF219),0)","v":0},{"$f":"IF(Setup!$AI$7<>\"\",INDIRECT(\"'\" & Setup!$AI$7 & \"'!\" & AF219),0) + IF(Setup!$AI$8<>\"\",INDIRECT(\"'\" & Setup!$AI$8 & \"'!\" & AF219),0) + IF(Setup!$AI$9<>\"\",INDIRECT(\"'\" & Setup!$AI$9 & \"'!\" & AF219),0) + IF(Setup!$AI$10<>\"\",INDIRECT(\"'\" & Setup!$AI$10 & \"'!\" & AF219),0) + IF(Setup!$AI$11<>\"\",INDIRECT(\"'\" & Setup!$AI$11 & \"'!\" & AF219),0) + IF(Setup!$AI$12<>\"\",INDIRECT(\"'\" & Setup!$AI$12 & \"'!\" & AF219),0)","v":0},{"$f":"IF(Setup!$AJ$7<>\"\",INDIRECT(\"'\" & Setup!$AJ$7 & \"'!\" & AF219),0) + IF(Setup!$AJ$8<>\"\",INDIRECT(\"'\" & Setup!$AJ$8 & \"'!\" & AF219),0) + IF(Setup!$AJ$9<>\"\",INDIRECT(\"'\" & Setup!$AJ$9 & \"'!\" & AF219),0) + IF(Setup!$AJ$10<>\"\",INDIRECT(\"'\" & Setup!$AJ$10 & \"'!\" & AF219),0) + IF(Setup!$AJ$11<>\"\",INDIRECT(\"'\" & Setup!$AJ$11 & \"'!\" & AF219),0) + IF(Setup!$AJ$12<>\"\",INDIRECT(\"'\" & Setup!$AJ$12 & \"'!\" & AF219),0)","v":0},null,{"$f":"IF(B219=0,\"\",IF(LEFT(B219,1)=\"1\",\"1\",\"2\"))","v":""},{"$nulls":3},{"$f":"IF(C219=0,\"\",LEFT(INDEX(Lists!$H$5:$H$49,MATCH(C219,Lists!$G$5:$G$49,0),1),1))","v":""},null,{"$f":"IF(AND(H219=0,I219=0),\"\",IF(H219>0,I219/H219,I219))","v":""},{"$f":"IF(AND(H219=0,I219=0),\"\",IF(I219>0,H219/I219,0))","v":""},{"$f":"IF(AND(L219=0,M219=0),\"\",IF(L219>0,M219/L219,M219))","v":""},{"$f":"IF(AND(L219=0,M219=0),\"\",IF(M219>0,L219/M219,0))","v":""},{"$f":"IF(AND(P219=0,Q219=0),\"\",IF(P219>0,Q219/P219,Q219))","v":""},{"$f":"IF(AND(P219=0,Q219=0),\"\",IF(Q219>0,P219/Q219,0))","v":""},{"$f":"IF(AND(T219=0,U219=0),\"\",IF(T219>0,U219/T219,U219))","v":""},{"$f":"IF(AND(T219=0,U219=0),\"\",IF(U219>0,T219/U219,0))","v":""},{"$f":"IF(AND(X219=0,Y219=0),\"\",IF(X219>0,Y219/X219,Y219))","v":""},{"$f":"IF(AND(X219=0,Y219=0),\"\",IF(Y219>0,X219/Y219,0))","v":""},{"$nulls":6},{"$f":"IF(Setup!$AG$7<>\"\",INDIRECT(\"'\" & Setup!$AG$7 & \"'!\" & AD219),0) + IF(Setup!$AG$8<>\"\",INDIRECT(\"'\" & Setup!$AG$8 & \"'!\" & AD219),0) + IF(Setup!$AG$9<>\"\",INDIRECT(\"'\" & Setup!$AG$9 & \"'!\" & AD219),0) + IF(Setup!$AG$10<>\"\",INDIRECT(\"'\" & Setup!$AG$10 & \"'!\" & AD219),0) + IF(Setup!$AG$11<>\"\",INDIRECT(\"'\" & Setup!$AG$11 & \"'!\" & AD219),0) + IF(Setup!$AG$12<>\"\",INDIRECT(\"'\" & Setup!$AG$12 & \"'!\" & AD219),0)","v":0},{"$f":"IF(Setup!$AG$7<>\"\",INDIRECT(\"'\" & Setup!$AG$7 & \"'!\" & AE219),0) + IF(Setup!$AG$8<>\"\",INDIRECT(\"'\" & Setup!$AG$8 & \"'!\" & AE219),0) + IF(Setup!$AG$9<>\"\",INDIRECT(\"'\" & Setup!$AG$9 & \"'!\" & AE219),0) + IF(Setup!$AG$10<>\"\",INDIRECT(\"'\" & Setup!$AG$10 & \"'!\" & AE219),0) + IF(Setup!$AG$11<>\"\",INDIRECT(\"'\" & Setup!$AG$11 & \"'!\" & AE219),0) + IF(Setup!$AG$12<>\"\",INDIRECT(\"'\" & Setup!$AG$12 & \"'!\" & AE219),0)","v":0},{"$f":"IF(Setup!$AH$7<>\"\",INDIRECT(\"'\" & Setup!$AH$7 & \"'!\" & AD219),0) + IF(Setup!$AH$8<>\"\",INDIRECT(\"'\" & Setup!$AH$8 & \"'!\" & AD219),0) + IF(Setup!$AH$9<>\"\",INDIRECT(\"'\" & Setup!$AH$9 & \"'!\" & AD219),0) + IF(Setup!$AH$10<>\"\",INDIRECT(\"'\" & Setup!$AH$10 & \"'!\" & AD219),0) + IF(Setup!$AH$11<>\"\",INDIRECT(\"'\" & Setup!$AH$11 & \"'!\" & AD219),0) + IF(Setup!$AH$12<>\"\",INDIRECT(\"'\" & Setup!$AH$12 & \"'!\" & AD219),0)","v":0},{"$f":"IF(Setup!$AH$7<>\"\",INDIRECT(\"'\" & Setup!$AH$7 & \"'!\" & AE219),0) + IF(Setup!$AH$8<>\"\",INDIRECT(\"'\" & Setup!$AH$8 & \"'!\" & AE219),0) + IF(Setup!$AH$9<>\"\",INDIRECT(\"'\" & Setup!$AH$9 & \"'!\" & AE219),0) + IF(Setup!$AH$10<>\"\",INDIRECT(\"'\" & Setup!$AH$10 & \"'!\" & AE219),0) + IF(Setup!$AH$11<>\"\",INDIRECT(\"'\" & Setup!$AH$11 & \"'!\" & AE219),0) + IF(Setup!$AH$12<>\"\",INDIRECT(\"'\" & Setup!$AH$12 & \"'!\" & AE219),0)","v":0},{"$f":"IF(Setup!$AI$7<>\"\",INDIRECT(\"'\" & Setup!$AI$7 & \"'!\" & AD219),0) + IF(Setup!$AI$8<>\"\",INDIRECT(\"'\" & Setup!$AI$8 & \"'!\" & AD219),0) + IF(Setup!$AI$9<>\"\",INDIRECT(\"'\" & Setup!$AI$9 & \"'!\" & AD219),0) + IF(Setup!$AI$10<>\"\",INDIRECT(\"'\" & Setup!$AI$10 & \"'!\" & AD219),0) + IF(Setup!$AI$11<>\"\",INDIRECT(\"'\" & Setup!$AI$11 & \"'!\" & AD219),0) + IF(Setup!$AI$12<>\"\",INDIRECT(\"'\" & Setup!$AI$12 & \"'!\" & AD219),0)","v":0},{"$f":"IF(Setup!$AI$7<>\"\",INDIRECT(\"'\" & Setup!$AI$7 & \"'!\" & AE219),0) + IF(Setup!$AI$8<>\"\",INDIRECT(\"'\" & Setup!$AI$8 & \"'!\" & AE219),0) + IF(Setup!$AI$9<>\"\",INDIRECT(\"'\" & Setup!$AI$9 & \"'!\" & AE219),0) + IF(Setup!$AI$10<>\"\",INDIRECT(\"'\" & Setup!$AI$10 & \"'!\" & AE219),0) + IF(Setup!$AI$11<>\"\",INDIRECT(\"'\" & Setup!$AI$11 & \"'!\" & AE219),0) + IF(Setup!$AI$12<>\"\",INDIRECT(\"'\" & Setup!$AI$12 & \"'!\" & AE219),0)","v":0},{"$f":"IF(Setup!$AJ$7<>\"\",INDIRECT(\"'\" & Setup!$AJ$7 & \"'!\" & AD219),0) + IF(Setup!$AJ$8<>\"\",INDIRECT(\"'\" & Setup!$AJ$8 & \"'!\" & AD219),0) + IF(Setup!$AJ$9<>\"\",INDIRECT(\"'\" & Setup!$AJ$9 & \"'!\" & AD219),0) + IF(Setup!$AJ$10<>\"\",INDIRECT(\"'\" & Setup!$AJ$10 & \"'!\" & AD219),0) + IF(Setup!$AJ$11<>\"\",INDIRECT(\"'\" & Setup!$AJ$11 & \"'!\" & AD219),0) + IF(Setup!$AJ$12<>\"\",INDIRECT(\"'\" & Setup!$AJ$12 & \"'!\" & AD219),0)","v":0},{"$f":"IF(Setup!$AJ$7<>\"\",INDIRECT(\"'\" & Setup!$AJ$7 & \"'!\" & AE219),0) + IF(Setup!$AJ$8<>\"\",INDIRECT(\"'\" & Setup!$AJ$8 & \"'!\" & AE219),0) + IF(Setup!$AJ$9<>\"\",INDIRECT(\"'\" & Setup!$AJ$9 & \"'!\" & AE219),0) + IF(Setup!$AJ$10<>\"\",INDIRECT(\"'\" & Setup!$AJ$10 & \"'!\" & AE219),0) + IF(Setup!$AJ$11<>\"\",INDIRECT(\"'\" & Setup!$AJ$11 & \"'!\" & AE219),0) + IF(Setup!$AJ$12<>\"\",INDIRECT(\"'\" & Setup!$AJ$12 & \"'!\" & AE219),0)","v":0}]
[{"$f":"Planning!A203","v":"I195"},{"$f":"Planning!B203","v":0},{"$f":"Planning!C203","v":0},{"$f":"Planning!D203","v":0},{"$f":"Planning!E203","v":0},{"$f":"Planning!G203","v":0},null,0,0,{"$f":"IF(AND($AR220=\"2\",$AB219<>Lists!$A$17),AU220,AT220)","v":""},"",0,0,{"$f":"IF(AND($AR220=\"2\",$AB220<>Lists!$A$17),AW220,AV220)","v":""},"",0,0,{"$f":"IF(AND($AR220=\"2\",$AB220<>Lists!$A$17),AY220,AX220)","v":""},"",0,0,{"$f":"IF(AND($AR220=\"2\",$AB220<>Lists!$A$17),BA220,AZ220)","v":""},"",0,0,{"$f":"IF(AND($AR220=\"2\",$AB220<>Lists!$A$17),BC220,BB220)","v":""},"",{"$f":"Planning!H203","v":0},"00","H219","J219","I219","",null,{"$f":"IF(Setup!$AG$7<>\"\",INDIRECT(\"'\" & Setup!$AG$7 & \"'!\" & AF220),0) + IF(Setup!$AG$8<>\"\",INDIRECT(\"'\" & Setup!$AG$8 & \"'!\" & AF220),0) + IF(Setup!$AG$9<>\"\",INDIRECT(\"'\" & Setup!$AG$9 & \"'!\" & AF220),0) + IF(Setup!$AG$10<>\"\",INDIRECT(\"'\" & Setup!$AG$10 & \"'!\" & AF220),0) + IF(Setup!$AG$11<>\"\",INDIRECT(\"'\" & Setup!$AG$11 & \"'!\" & AF220),0) + IF(Setup!$AG$12<>\"\",INDIRECT(\"'\" & Setup!$AG$12 & \"'!\" & AF220),0)","v":0},{"$f":"IF(Setup!$AH$7<>\"\",INDIRECT(\"'\" & Setup!$AH$7 & \"'!\" & AF220),0) + IF(Setup!$AH$8<>\"\",INDIRECT(\"'\" & Setup!$AH$8 & \"'!\" & AF220),0) + IF(Setup!$AH$9<>\"\",INDIRECT(\"'\" & Setup!$AH$9 & \"'!\" & AF220),0) + IF(Setup!$AH$10<>\"\",INDIRECT(\"'\" & Setup!$AH$10 & \"'!\" & AF220),0) + IF(Setup!$AH$11<>\"\",INDIRECT(\"'\" & Setup!$AH$11 & \"'!\" & AF220),0) + IF(Setup!$AH$12<>\"\",INDIRECT(\"'\" & Setup!$AH$12 & \"'!\" & AF220),0)","v":0},{"$f":"IF(Setup!$AI$7<>\"\",INDIRECT(\"'\" & Setup!$AI$7 & \"'!\" & AF220),0) + IF(Setup!$AI$8<>\"\",INDIRECT(\"'\" & Setup!$AI$8 & \"'!\" & AF220),0) + IF(Setup!$AI$9<>\"\",INDIRECT(\"'\" & Setup!$AI$9 & \"'!\" & AF220),0) + IF(Setup!$AI$10<>\"\",INDIRECT(\"'\" & Setup!$AI$10 & \"'!\" & AF220),0) + IF(Setup!$AI$11<>\"\",INDIRECT(\"'\" & Setup!$AI$11 & \"'!\" & AF220),0) + IF(Setup!$AI$12<>\"\",INDIRECT(\"'\" & Setup!$AI$12 & \"'!\" & AF220),0)","v":0},{"$f":"IF(Setup!$AJ$7<>\"\",INDIRECT(\"'\" & Setup!$AJ$7 & \"'!\" & AF220),0) + IF(Setup!$AJ$8<>\"\",INDIRECT(\"'\" & Setup!$AJ$8 & \"'!\" & AF220),0) + IF(Setup!$AJ$9<>\"\",INDIRECT(\"'\" & Setup!$AJ$9 & \"'!\" & AF220),0) + IF(Setup!$AJ$10<>\"\",INDIRECT(\"'\" & Setup!$AJ$10 & \"'!\" & AF220),0) + IF(Setup!$AJ$11<>\"\",INDIRECT(\"'\" & Setup!$AJ$11 & \"'!\" & AF220),0) + IF(Setup!$AJ$12<>\"\",INDIRECT(\"'\" & Setup!$AJ$12 & \"'!\" & AF220),0)","v":0},null,"",{"$nulls":3},{"$f":"IF(C220=0,\"\",LEFT(INDEX(Lists!$H$5:$H$49,MATCH(C220,Lists!$G$5:$G$49,0),1),1))","v":""},null,"","","","","","","","","","",{"$nulls":6},{"$f":"IF(Setup!$AG$7<>\"\",INDIRECT(\"'\" & Setup!$AG$7 & \"'!\" & AD220),0) + IF(Setup!$AG$8<>\"\",INDIRECT(\"'\" & Setup!$AG$8 & \"'!\" & AD220),0) + IF(Setup!$AG$9<>\"\",INDIRECT(\"'\" & Setup!$AG$9 & \"'!\" & AD220),0) + IF(Setup!$AG$10<>\"\",INDIRECT(\"'\" & Setup!$AG$10 & \"'!\" & AD220),0) + IF(Setup!$AG$11<>\"\",INDIRECT(\"'\" & Setup!$AG$11 & \"'!\" & AD220),0) + IF(Setup!$AG$12<>\"\",INDIRECT(\"'\" & Setup!$AG$12 & \"'!\" & AD220),0)","v":0},{"$f":"IF(Setup!$AG$7<>\"\",INDIRECT(\"'\" & Setup!$AG$7 & \"'!\" & AE220),0) + IF(Setup!$AG$8<>\"\",INDIRECT(\"'\" & Setup!$AG$8 & \"'!\" & AE220),0) + IF(Setup!$AG$9<>\"\",INDIRECT(\"'\" & Setup!$AG$9 & \"'!\" & AE220),0) + IF(Setup!$AG$10<>\"\",INDIRECT(\"'\" & Setup!$AG$10 & \"'!\" & AE220),0) + IF(Setup!$AG$11<>\"\",INDIRECT(\"'\" & Setup!$AG$11 & \"'!\" & AE220),0) + IF(Setup!$AG$12<>\"\",INDIRECT(\"'\" & Setup!$AG$12 & \"'!\" & AE220),0)","v":0},{"$f":"IF(Setup!$AH$7<>\"\",INDIRECT(\"'\" & Setup!$AH$7 & \"'!\" & AD220),0) + IF(Setup!$AH$8<>\"\",INDIRECT(\"'\" & Setup!$AH$8 & \"'!\" & AD220),0) + IF(Setup!$AH$9<>\"\",INDIRECT(\"'\" & Setup!$AH$9 & \"'!\" & AD220),0) + IF(Setup!$AH$10<>\"\",INDIRECT(\"'\" & Setup!$AH$10 & \"'!\" & AD220),0) + IF(Setup!$AH$11<>\"\",INDIRECT(\"'\" & Setup!$AH$11 & \"'!\" & AD220),0) + IF(Setup!$AH$12<>\"\",INDIRECT(\"'\" & Setup!$AH$12 & \"'!\" & AD220),0)","v":0},{"$f":"IF(Setup!$AH$7<>\"\",INDIRECT(\"'\" & Setup!$AH$7 & \"'!\" & AE220),0) + IF(Setup!$AH$8<>\"\",INDIRECT(\"'\" & Setup!$AH$8 & \"'!\" & AE220),0) + IF(Setup!$AH$9<>\"\",INDIRECT(\"'\" & Setup!$AH$9 & \"'!\" & AE220),0) + IF(Setup!$AH$10<>\"\",INDIRECT(\"'\" & Setup!$AH$10 & \"'!\" & AE220),0) + IF(Setup!$AH$11<>\"\",INDIRECT(\"'\" & Setup!$AH$11 & \"'!\" & AE220),0) + IF(Setup!$AH$12<>\"\",INDIRECT(\"'\" & Setup!$AH$12 & \"'!\" & AE220),0)","v":0},{"$f":"IF(Setup!$AI$7<>\"\",INDIRECT(\"'\" & Setup!$AI$7 & \"'!\" & AD220),0) + IF(Setup!$AI$8<>\"\",INDIRECT(\"'\" & Setup!$AI$8 & \"'!\" & AD220),0) + IF(Setup!$AI$9<>\"\",INDIRECT(\"'\" & Setup!$AI$9 & \"'!\" & AD220),0) + IF(Setup!$AI$10<>\"\",INDIRECT(\"'\" & Setup!$AI$10 & \"'!\" & AD220),0) + IF(Setup!$AI$11<>\"\",INDIRECT(\"'\" & Setup!$AI$11 & \"'!\" & AD220),0) + IF(Setup!$AI$12<>\"\",INDIRECT(\"'\" & Setup!$AI$12 & \"'!\" & AD220),0)","v":0},{"$f":"IF(Setup!$AI$7<>\"\",INDIRECT(\"'\" & Setup!$AI$7 & \"'!\" & AE220),0) + IF(Setup!$AI$8<>\"\",INDIRECT(\"'\" & Setup!$AI$8 & \"'!\" & AE220),0) + IF(Setup!$AI$9<>\"\",INDIRECT(\"'\" & Setup!$AI$9 & \"'!\" & AE220),0) + IF(Setup!$AI$10<>\"\",INDIRECT(\"'\" & Setup!$AI$10 & \"'!\" & AE220),0) + IF(Setup!$AI$11<>\"\",INDIRECT(\"'\" & Setup!$AI$11 & \"'!\" & AE220),0) + IF(Setup!$AI$12<>\"\",INDIRECT(\"'\" & Setup!$AI$12 & \"'!\" & AE220),0)","v":0},{"$f":"IF(Setup!$AJ$7<>\"\",INDIRECT(\"'\" & Setup!$AJ$7 & \"'!\" & AD220),0) + IF(Setup!$AJ$8<>\"\",INDIRECT(\"'\" & Setup!$AJ$8 & \"'!\" & AD220),0) + IF(Setup!$AJ$9<>\"\",INDIRECT(\"'\" & Setup!$AJ$9 & \"'!\" & AD220),0) + IF(Setup!$AJ$10<>\"\",INDIRECT(\"'\" & Setup!$AJ$10 & \"'!\" & AD220),0) + IF(Setup!$AJ$11<>\"\",INDIRECT(\"'\" & Setup!$AJ$11 & \"'!\" & AD220),0) + IF(Setup!$AJ$12<>\"\",INDIRECT(\"'\" & Setup!$AJ$12 & \"'!\" & AD220),0)","v":0},{"$f":"IF(Setup!$AJ$7<>\"\",INDIRECT(\"'\" & Setup!$AJ$7 & \"'!\" & AE220),0) + IF(Setup!$AJ$8<>\"\",INDIRECT(\"'\" & Setup!$AJ$8 & \"'!\" & AE220),0) + IF(Setup!$AJ$9<>\"\",INDIRECT(\"'\" & Setup!$AJ$9 & \"'!\" & AE220),0) + IF(Setup!$AJ$10<>\"\",INDIRECT(\"'\" & Setup!$AJ$10 & \"'!\" & AE220),0) + IF(Setup!$AJ$11<>\"\",INDIRECT(\"'\" & Setup!$AJ$11 & \"'!\" & AE220),0) + IF(Setup!$AJ$12<>\"\",INDIRECT(\"'\" & Setup!$AJ$12 & \"'!\" & AE220),0)","v":0}]
[{"$f":"Planning!A204","v":"I196"},{"$f":"Planning!B204","v":0},{"$f":"Planning!C204","v":0},{"$f":"Planning!D204","v":0},{"$f":"Planning!E204","v":0},{"$f":"Planning!G204","v":0},null,0,0,{"$f":"IF(AND($AR221=\"2\",$AB220<>Lists!$A$17),AU221,AT221)","v":""},"",0,0,{"$f":"IF(AND($AR221=\"2\",$AB221<>Lists!$A$17),AW221,AV221)","v":""},"",0,0,{"$f":"IF(AND($AR221=\"2\",$AB221<>Lists!$A$17),AY221,AX221)","v":""},"",0,0,{"$f":"IF(AND($AR221=\"2\",$AB221<>Lists!$A$17),BA221,AZ221)","v":""},"",0,0,{"$f":"IF(AND($AR221=\"2\",$AB221<>Lists!$A$17),BC221,BB221)","v":""},"",{"$f":"Planning!H204","v":0},"00","H220","J220","I220","",null,{"$f":"IF(Setup!$AG$7<>\"\",INDIRECT(\"'\" & Setup!$AG$7 & \"'!\" & AF221),0) + IF(Setup!$AG$8<>\"\",INDIRECT(\"'\" & Setup!$AG$8 & \"'!\" & AF221),0) + IF(Setup!$AG$9<>\"\",INDIRECT(\"'\" & Setup!$AG$9 & \"'!\" & AF221),0) + IF(Setup!$AG$10<>\"\",INDIRECT(\"'\" & Setup!$AG$10 & \"'!\" & AF221),0) + IF(Setup!$AG$11<>\"\",INDIRECT(\"'\" & Setup!$AG$11 & \"'!\" & AF221),0) + IF(Setup!$AG$12<>\"\",INDIRECT(\"'\" & Setup!$AG$12 & \"'!\" & AF221),0)","v":0},{"$f":"IF(Setup!$AH$7<>\"\",INDIRECT(\"'\" & Setup!$AH$7 & \"'!\" & AF221),0) + IF(Setup!$AH$8<>\"\",INDIRECT(\"'\" & Setup!$AH$8 & \"'!\" & AF221),0) + IF(Setup!$AH$9<>\"\",INDIRECT(\"'\" & Setup!$AH$9 & \"'!\" & AF221),0) + IF(Setup!$AH$10<>\"\",INDIRECT(\"'\" & Setup!$AH$10 & \"'!\" & AF221),0) + IF(Setup!$AH$11<>\"\",INDIRECT(\"'\" & Setup!$AH$11 & \"'!\" & AF221),0) + IF(Setup!$AH$12<>\"\",INDIRECT(\"'\" & Setup!$AH$12 & \"'!\" & AF221),0)","v":0},{"$f":"IF(Setup!$AI$7<>\"\",INDIRECT(\"'\" & Setup!$AI$7 & \"'!\" & AF221),0) + IF(Setup!$AI$8<>\"\",INDIRECT(\"'\" & Setup!$AI$8 & \"'!\" & AF221),0) + IF(Setup!$AI$9<>\"\",INDIRECT(\"'\" & Setup!$AI$9 & \"'!\" & AF221),0) + IF(Setup!$AI$10<>\"\",INDIRECT(\"'\" & Setup!$AI$10 & \"'!\" & AF221),0) + IF(Setup!$AI$11<>\"\",INDIRECT(\"'\" & Setup!$AI$11 & \"'!\" & AF221),0) + IF(Setup!$AI$12<>\"\",INDIRECT(\"'\" & Setup!$AI$12 & \"'!\" & AF221),0)","v":0},{"$f":"IF(Setup!$AJ$7<>\"\",INDIRECT(\"'\" & Setup!$AJ$7 & \"'!\" & AF221),0) + IF(Setup!$AJ$8<>\"\",INDIRECT(\"'\" & Setup!$AJ$8 & \"'!\" & AF221),0) + IF(Setup!$AJ$9<>\"\",INDIRECT(\"'\" & Setup!$AJ$9 & \"'!\" & AF221),0) + IF(Setup!$AJ$10<>\"\",INDIRECT(\"'\" & Setup!$AJ$10 & \"'!\" & AF221),0) + IF(Setup!$AJ$11<>\"\",INDIRECT(\"'\" & Setup!$AJ$11 & \"'!\" & AF221),0) + IF(Setup!$AJ$12<>\"\",INDIRECT(\"'\" & Setup!$AJ$12 & \"'!\" & AF221),0)","v":0},null,"",{"$nulls":3},{"$f":"IF(C221=0,\"\",LEFT(INDEX(Lists!$H$5:$H$49,MATCH(C221,Lists!$G$5:$G$49,0),1),1))","v":""},null,"","","","","","","","","","",{"$nulls":6},{"$f":"IF(Setup!$AG$7<>\"\",INDIRECT(\"'\" & Setup!$AG$7 & \"'!\" & AD221),0) + IF(Setup!$AG$8<>\"\",INDIRECT(\"'\" & Setup!$AG$8 & \"'!\" & AD221),0) + IF(Setup!$AG$9<>\"\",INDIRECT(\"'\" & Setup!$AG$9 & \"'!\" & AD221),0) + IF(Setup!$AG$10<>\"\",INDIRECT(\"'\" & Setup!$AG$10 & \"'!\" & AD221),0) + IF(Setup!$AG$11<>\"\",INDIRECT(\"'\" & Setup!$AG$11 & \"'!\" & AD221),0) + IF(Setup!$AG$12<>\"\",INDIRECT(\"'\" & Setup!$AG$12 & \"'!\" & AD221),0)","v":0},{"$f":"IF(Setup!$AG$7<>\"\",INDIRECT(\"'\" & Setup!$AG$7 & \"'!\" & AE221),0) + IF(Setup!$AG$8<>\"\",INDIRECT(\"'\" & Setup!$AG$8 & \"'!\" & AE221),0) + IF(Setup!$AG$9<>\"\",INDIRECT(\"'\" & Setup!$AG$9 & \"'!\" & AE221),0) + IF(Setup!$AG$10<>\"\",INDIRECT(\"'\" & Setup!$AG$10 & \"'!\" & AE221),0) + IF(Setup!$AG$11<>\"\",INDIRECT(\"'\" & Setup!$AG$11 & \"'!\" & AE221),0) + IF(Setup!$AG$12<>\"\",INDIRECT(\"'\" & Setup!$AG$12 & \"'!\" & AE221),0)","v":0},{"$f":"IF(Setup!$AH$7<>\"\",INDIRECT(\"'\" & Setup!$AH$7 & \"'!\" & AD221),0) + IF(Setup!$AH$8<>\"\",INDIRECT(\"'\" & Setup!$AH$8 & \"'!\" & AD221),0) + IF(Setup!$AH$9<>\"\",INDIRECT(\"'\" & Setup!$AH$9 & \"'!\" & AD221),0) + IF(Setup!$AH$10<>\"\",INDIRECT(\"'\" & Setup!$AH$10 & \"'!\" & AD221),0) + IF(Setup!$AH$11<>\"\",INDIRECT(\"'\" & Setup!$AH$11 & \"'!\" & AD221),0) + IF(Setup!$AH$12<>\"\",INDIRECT(\"'\" & Setup!$AH$12 & \"'!\" & AD221),0)","v":0},{"$f":"IF(Setup!$AH$7<>\"\",INDIRECT(\"'\" & Setup!$AH$7 & \"'!\" & AE221),0) + IF(Setup!$AH$8<>\"\",INDIRECT(\"'\" & Setup!$AH$8 & \"'!\" & AE221),0) + IF(Setup!$AH$9<>\"\",INDIRECT(\"'\" & Setup!$AH$9 & \"'!\" & AE221),0) + IF(Setup!$AH$10<>\"\",INDIRECT(\"'\" & Setup!$AH$10 & \"'!\" & AE221),0) + IF(Setup!$AH$11<>\"\",INDIRECT(\"'\" & Setup!$AH$11 & \"'!\" & AE221),0) + IF(Setup!$AH$12<>\"\",INDIRECT(\"'\" & Setup!$AH$12 & \"'!\" & AE221),0)","v":0},{"$f":"IF(Setup!$AI$7<>\"\",INDIRECT(\"'\" & Setup!$AI$7 & \"'!\" & AD221),0) + IF(Setup!$AI$8<>\"\",INDIRECT(\"'\" & Setup!$AI$8 & \"'!\" & AD221),0) + IF(Setup!$AI$9<>\"\",INDIRECT(\"'\" & Setup!$AI$9 & \"'!\" & AD221),0) + IF(Setup!$AI$10<>\"\",INDIRECT(\"'\" & Setup!$AI$10 & \"'!\" & AD221),0) + IF(Setup!$AI$11<>\"\",INDIRECT(\"'\" & Setup!$AI$11 & \"'!\" & AD221),0) + IF(Setup!$AI$12<>\"\",INDIRECT(\"'\" & Setup!$AI$12 & \"'!\" & AD221),0)","v":0},{"$f":"IF(Setup!$AI$7<>\"\",INDIRECT(\"'\" & Setup!$AI$7 & \"'!\" & AE221),0) + IF(Setup!$AI$8<>\"\",INDIRECT(\"'\" & Setup!$AI$8 & \"'!\" & AE221),0) + IF(Setup!$AI$9<>\"\",INDIRECT(\"'\" & Setup!$AI$9 & \"'!\" & AE221),0) + IF(Setup!$AI$10<>\"\",INDIRECT(\"'\" & Setup!$AI$10 & \"'!\" & AE221),0) + IF(Setup!$AI$11<>\"\",INDIRECT(\"'\" & Setup!$AI$11 & \"'!\" & AE221),0) + IF(Setup!$AI$12<>\"\",INDIRECT(\"'\" & Setup!$AI$12 & \"'!\" & AE221),0)","v":0},{"$f":"IF(Setup!$AJ$7<>\"\",INDIRECT(\"'\" & Setup!$AJ$7 & \"'!\" & AD221),0) + IF(Setup!$AJ$8<>\"\",INDIRECT(\"'\" & Setup!$AJ$8 & \"'!\" & AD221),0) + IF(Setup!$AJ$9<>\"\",INDIRECT(\"'\" & Setup!$AJ$9 & \"'!\" & AD221),0) + IF(Setup!$AJ$10<>\"\",INDIRECT(\"'\" & Setup!$AJ$10 & \"'!\" & AD221),0) + IF(Setup!$AJ$11<>\"\",INDIRECT(\"'\" & Setup!$AJ$11 & \"'!\" & AD221),0) + IF(Setup!$AJ$12<>\"\",INDIRECT(\"'\" & Setup!$AJ$12 & \"'!\" & AD221),0)","v":0},{"$f":"IF(Setup!$AJ$7<>\"\",INDIRECT(\"'\" & Setup!$AJ$7 & \"'!\" & AE221),0) + IF(Setup!$AJ$8<>\"\",INDIRECT(\"'\" & Setup!$AJ$8 & \"'!\" & AE221),0) + IF(Setup!$AJ$9<>\"\",INDIRECT(\"'\" & Setup!$AJ$9 & \"'!\" & AE221),0) + IF(Setup!$AJ$10<>\"\",INDIRECT(\"'\" & Setup!$AJ$10 & \"'!\" & AE221),0) + IF(Setup!$AJ$11<>\"\",INDIRECT(\"'\" & Setup!$AJ$11 & \"'!\" & AE221),0) + IF(Setup!$AJ$12<>\"\",INDIRECT(\"'\" & Setup!$AJ$12 & \"'!\" & AE221),0)","v":0}]
[{"$f":"Planning!A205","v":"I197"},{"$f":"Planning!B205","v":0},{"$f":"Planning!C205","v":0},{"$f":"Planning!D205","v":0},{"$f":"Planning!E205","v":0},{"$f":"Planning!G205","v":0},null,0,0,{"$f":"IF(AND($AR222=\"2\",$AB221<>Lists!$A$17),AU222,AT222)","v":""},"",0,0,{"$f":"IF(AND($AR222=\"2\",$AB222<>Lists!$A$17),AW222,AV222)","v":""},"",0,0,{"$f":"IF(AND($AR222=\"2\",$AB222<>Lists!$A$17),AY222,AX222)","v":""},"",0,0,{"$f":"IF(AND($AR222=\"2\",$AB222<>Lists!$A$17),BA222,AZ222)","v":""},"",0,0,{"$f":"IF(AND($AR222=\"2\",$AB222<>Lists!$A$17),BC222,BB222)","v":""},"",{"$f":"Planning!H205","v":0},"00","H221","J221","I221","",null,{"$f":"IF(Setup!$AG$7<>\"\",INDIRECT(\"'\" & Setup!$AG$7 & \"'!\" & AF222),0) + IF(Setup!$AG$8<>\"\",INDIRECT(\"'\" & Setup!$AG$8 & \"'!\" & AF222),0) + IF(Setup!$AG$9<>\"\",INDIRECT(\"'\" & Setup!$AG$9 & \"'!\" & AF222),0) + IF(Setup!$AG$10<>\"\",INDIRECT(\"'\" & Setup!$AG$10 & \"'!\" & AF222),0) + IF(Setup!$AG$11<>\"\",INDIRECT(\"'\" & Setup!$AG$11 & \"'!\" & AF222),0) + IF(Setup!$AG$12<>\"\",INDIRECT(\"'\" & Setup!$AG$12 & \"'!\" & AF222),0)","v":0},{"$f":"IF(Setup!$AH$7<>\"\",INDIRECT(\"'\" & Setup!$AH$7 & \"'!\" & AF222),0) + IF(Setup!$AH$8<>\"\",INDIRECT(\"'\" & Setup!$AH$8 & \"'!\" & AF222),0) + IF(Setup!$AH$9<>\"\",INDIRECT(\"'\" & Setup!$AH$9 & \"'!\" & AF222),0) + IF(Setup!$AH$10<>\"\",INDIRECT(\"'\" & Setup!$AH$10 & \"'!\" & AF222),0) + IF(Setup!$AH$11<>\"\",INDIRECT(\"'\" & Setup!$AH$11 & \"'!\" & AF222),0) + IF(Setup!$AH$12<>\"\",INDIRECT(\"'\" & Setup!$AH$12 & \"'!\" & AF222),0)","v":0},{"$f":"IF(Setup!$AI$7<>\"\",INDIRECT(\"'\" & Setup!$AI$7 & \"'!\" & AF222),0) + IF(Setup!$AI$8<>\"\",INDIRECT(\"'\" & Setup!$AI$8 & \"'!\" & AF222),0) + IF(Setup!$AI$9<>\"\",INDIRECT(\"'\" & Setup!$AI$9 & \"'!\" & AF222),0) + IF(Setup!$AI$10<>\"\",INDIRECT(\"'\" & Setup!$AI$10 & \"'!\" & AF222),0) + IF(Setup!$AI$11<>\"\",INDIRECT(\"'\" & Setup!$AI$11 & \"'!\" & AF222),0) + IF(Setup!$AI$12<>\"\",INDIRECT(\"'\" & Setup!$AI$12 & \"'!\" & AF222),0)","v":0},{"$f":"IF(Setup!$AJ$7<>\"\",INDIRECT(\"'\" & Setup!$AJ$7 & \"'!\" & AF222),0) + IF(Setup!$AJ$8<>\"\",INDIRECT(\"'\" & Setup!$AJ$8 & \"'!\" & AF222),0) + IF(Setup!$AJ$9<>\"\",INDIRECT(\"'\" & Setup!$AJ$9 & \"'!\" & AF222),0) + IF(Setup!$AJ$10<>\"\",INDIRECT(\"'\" & Setup!$AJ$10 & \"'!\" & AF222),0) + IF(Setup!$AJ$11<>\"\",INDIRECT(\"'\" & Setup!$AJ$11 & \"'!\" & AF222),0) + IF(Setup!$AJ$12<>\"\",INDIRECT(\"'\" & Setup!$AJ$12 & \"'!\" & AF222),0)","v":0},null,"",{"$nulls":3},{"$f":"IF(C222=0,\"\",LEFT(INDEX(Lists!$H$5:$H$49,MATCH(C222,Lists!$G$5:$G$49,0),1),1))","v":""},null,"","","","","","","","","","",{"$nulls":6},{"$f":"IF(Setup!$AG$7<>\"\",INDIRECT(\"'\" & Setup!$AG$7 & \"'!\" & AD222),0) + IF(Setup!$AG$8<>\"\",INDIRECT(\"'\" & Setup!$AG$8 & \"'!\" & AD222),0) + IF(Setup!$AG$9<>\"\",INDIRECT(\"'\" & Setup!$AG$9 & \"'!\" & AD222),0) + IF(Setup!$AG$10<>\"\",INDIRECT(\"'\" & Setup!$AG$10 & \"'!\" & AD222),0) + IF(Setup!$AG$11<>\"\",INDIRECT(\"'\" & Setup!$AG$11 & \"'!\" & AD222),0) + IF(Setup!$AG$12<>\"\",INDIRECT(\"'\" & Setup!$AG$12 & \"'!\" & AD222),0)","v":0},{"$f":"IF(Setup!$AG$7<>\"\",INDIRECT(\"'\" & Setup!$AG$7 & \"'!\" & AE222),0) + IF(Setup!$AG$8<>\"\",INDIRECT(\"'\" & Setup!$AG$8 & \"'!\" & AE222),0) + IF(Setup!$AG$9<>\"\",INDIRECT(\"'\" & Setup!$AG$9 & \"'!\" & AE222),0) + IF(Setup!$AG$10<>\"\",INDIRECT(\"'\" & Setup!$AG$10 & \"'!\" & AE222),0) + IF(Setup!$AG$11<>\"\",INDIRECT(\"'\" & Setup!$AG$11 & \"'!\" & AE222),0) + IF(Setup!$AG$12<>\"\",INDIRECT(\"'\" & Setup!$AG$12 & \"'!\" & AE222),0)","v":0},{"$f":"IF(Setup!$AH$7<>\"\",INDIRECT(\"'\" & Setup!$AH$7 & \"'!\" & AD222),0) + IF(Setup!$AH$8<>\"\",INDIRECT(\"'\" & Setup!$AH$8 & \"'!\" & AD222),0) + IF(Setup!$AH$9<>\"\",INDIRECT(\"'\" & Setup!$AH$9 & \"'!\" & AD222),0) + IF(Setup!$AH$10<>\"\",INDIRECT(\"'\" & Setup!$AH$10 & \"'!\" & AD222),0) + IF(Setup!$AH$11<>\"\",INDIRECT(\"'\" & Setup!$AH$11 & \"'!\" & AD222),0) + IF(Setup!$AH$12<>\"\",INDIRECT(\"'\" & Setup!$AH$12 & \"'!\" & AD222),0)","v":0},{"$f":"IF(Setup!$AH$7<>\"\",INDIRECT(\"'\" & Setup!$AH$7 & \"'!\" & AE222),0) + IF(Setup!$AH$8<>\"\",INDIRECT(\"'\" & Setup!$AH$8 & \"'!\" & AE222),0) + IF(Setup!$AH$9<>\"\",INDIRECT(\"'\" & Setup!$AH$9 & \"'!\" & AE222),0) + IF(Setup!$AH$10<>\"\",INDIRECT(\"'\" & Setup!$AH$10 & \"'!\" & AE222),0) + IF(Setup!$AH$11<>\"\",INDIRECT(\"'\" & Setup!$AH$11 & \"'!\" & AE222),0) + IF(Setup!$AH$12<>\"\",INDIRECT(\"'\" & Setup!$AH$12 & \"'!\" & AE222),0)","v":0},{"$f":"IF(Setup!$AI$7<>\"\",INDIRECT(\"'\" & Setup!$AI$7 & \"'!\" & AD222),0) + IF(Setup!$AI$8<>\"\",INDIRECT(\"'\" & Setup!$AI$8 & \"'!\" & AD222),0) + IF(Setup!$AI$9<>\"\",INDIRECT(\"'\" & Setup!$AI$9 & \"'!\" & AD222),0) + IF(Setup!$AI$10<>\"\",INDIRECT(\"'\" & Setup!$AI$10 & \"'!\" & AD222),0) + IF(Setup!$AI$11<>\"\",INDIRECT(\"'\" & Setup!$AI$11 & \"'!\" & AD222),0) + IF(Setup!$AI$12<>\"\",INDIRECT(\"'\" & Setup!$AI$12 & \"'!\" & AD222),0)","v":0},{"$f":"IF(Setup!$AI$7<>\"\",INDIRECT(\"'\" & Setup!$AI$7 & \"'!\" & AE222),0) + IF(Setup!$AI$8<>\"\",INDIRECT(\"'\" & Setup!$AI$8 & \"'!\" & AE222),0) + IF(Setup!$AI$9<>\"\",INDIRECT(\"'\" & Setup!$AI$9 & \"'!\" & AE222),0) + IF(Setup!$AI$10<>\"\",INDIRECT(\"'\" & Setup!$AI$10 & \"'!\" & AE222),0) + IF(Setup!$AI$11<>\"\",INDIRECT(\"'\" & Setup!$AI$11 & \"'!\" & AE222),0) + IF(Setup!$AI$12<>\"\",INDIRECT(\"'\" & Setup!$AI$12 & \"'!\" & AE222),0)","v":0},{"$f":"IF(Setup!$AJ$7<>\"\",INDIRECT(\"'\" & Setup!$AJ$7 & \"'!\" & AD222),0) + IF(Setup!$AJ$8<>\"\",INDIRECT(\"'\" & Setup!$AJ$8 & \"'!\" & AD222),0) + IF(Setup!$AJ$9<>\"\",INDIRECT(\"'\" & Setup!$AJ$9 & \"'!\" & AD222),0) + IF(Setup!$AJ$10<>\"\",INDIRECT(\"'\" & Setup!$AJ$10 & \"'!\" & AD222),0) + IF(Setup!$AJ$11<>\"\",INDIRECT(\"'\" & Setup!$AJ$11 & \"'!\" & AD222),0) + IF(Setup!$AJ$12<>\"\",INDIRECT(\"'\" & Setup!$AJ$12 & \"'!\" & AD222),0)","v":0},{"$f":"IF(Setup!$AJ$7<>\"\",INDIRECT(\"'\" & Setup!$AJ$7 & \"'!\" & AE222),0) + IF(Setup!$AJ$8<>\"\",INDIRECT(\"'\" & Setup!$AJ$8 & \"'!\" & AE222),0) + IF(Setup!$AJ$9<>\"\",INDIRECT(\"'\" & Setup!$AJ$9 & \"'!\" & AE222),0) + IF(Setup!$AJ$10<>\"\",INDIRECT(\"'\" & Setup!$AJ$10 & \"'!\" & AE222),0) + IF(Setup!$AJ$11<>\"\",INDIRECT(\"'\" & Setup!$AJ$11 & \"'!\" & AE222),0) + IF(Setup!$AJ$12<>\"\",INDIRECT(\"'\" & Setup!$AJ$12 & \"'!\" & AE222),0)","v":0}]
[{"$f":"Planning!A206","v":"I198"},{"$f":"Planning!B206","v":0},{"$f":"Planning!C206","v":0},{"$f":"Planning!D206","v":0},{"$f":"Planning!E206","v":0},{"$f":"Planning!G206","v":0},null,0,0,{"$f":"IF(AND($AR223=\"2\",$AB222<>Lists!$A$17),AU223,AT223)","v":""},"",0,0,{"$f":"IF(AND($AR223=\"2\",$AB223<>Lists!$A$17),AW223,AV223)","v":""},"",0,0,{"$f":"IF(AND($AR223=\"2\",$AB223<>Lists!$A$17),AY223,AX223)","v":""},"",0,0,{"$f":"IF(AND($AR223=\"2\",$AB223<>Lists!$A$17),BA223,AZ223)","v":""},"",0,0,{"$f":"IF(AND($AR223=\"2\",$AB223<>Lists!$A$17),BC223,BB223)","v":""},"",{"$f":"Planning!H206","v":0},"00","H222","J222","I222","",null,{"$f":"IF(Setup!$AG$7<>\"\",INDIRECT(\"'\" & Setup!$AG$7 & \"'!\" & AF223),0) + IF(Setup!$AG$8<>\"\",INDIRECT(\"'\" & Setup!$AG$8 & \"'!\" & AF223),0) + IF(Setup!$AG$9<>\"\",INDIRECT(\"'\" & Setup!$AG$9 & \"'!\" & AF223),0) + IF(Setup!$AG$10<>\"\",INDIRECT(\"'\" & Setup!$AG$10 & \"'!\" & AF223),0) + IF(Setup!$AG$11<>\"\",INDIRECT(\"'\" & Setup!$AG$11 & \"'!\" & AF223),0) + IF(Setup!$AG$12<>\"\",INDIRECT(\"'\" & Setup!$AG$12 & \"'!\" & AF223),0)","v":0},{"$f":"IF(Setup!$AH$7<>\"\",INDIRECT(\"'\" & Setup!$AH$7 & \"'!\" & AF223),0) + IF(Setup!$AH$8<>\"\",INDIRECT(\"'\" & Setup!$AH$8 & \"'!\" & AF223),0) + IF(Setup!$AH$9<>\"\",INDIRECT(\"'\" & Setup!$AH$9 & \"'!\" & AF223),0) + IF(Setup!$AH$10<>\"\",INDIRECT(\"'\" & Setup!$AH$10 & \"'!\" & AF223),0) + IF(Setup!$AH$11<>\"\",INDIRECT(\"'\" & Setup!$AH$11 & \"'!\" & AF223),0) + IF(Setup!$AH$12<>\"\",INDIRECT(\"'\" & Setup!$AH$12 & \"'!\" & AF223),0)","v":0},{"$f":"IF(Setup!$AI$7<>\"\",INDIRECT(\"'\" & Setup!$AI$7 & \"'!\" & AF223),0) + IF(Setup!$AI$8<>\"\",INDIRECT(\"'\" & Setup!$AI$8 & \"'!\" & AF223),0) + IF(Setup!$AI$9<>\"\",INDIRECT(\"'\" & Setup!$AI$9 & \"'!\" & AF223),0) + IF(Setup!$AI$10<>\"\",INDIRECT(\"'\" & Setup!$AI$10 & \"'!\" & AF223),0) + IF(Setup!$AI$11<>\"\",INDIRECT(\"'\" & Setup!$AI$11 & \"'!\" & AF223),0) + IF(Setup!$AI$12<>\"\",INDIRECT(\"'\" & Setup!$AI$12 & \"'!\" & AF223),0)","v":0},{"$f":"IF(Setup!$AJ$7<>\"\",INDIRECT(\"'\" & Setup!$AJ$7 & \"'!\" & AF223),0) + IF(Setup!$AJ$8<>\"\",INDIRECT(\"'\" & Setup!$AJ$8 & \"'!\" & AF223),0) + IF(Setup!$AJ$9<>\"\",INDIRECT(\"'\" & Setup!$AJ$9 & \"'!\" & AF223),0) + IF(Setup!$AJ$10<>\"\",INDIRECT(\"'\" & Setup!$AJ$10 & \"'!\" & AF223),0) + IF(Setup!$AJ$11<>\"\",INDIRECT(\"'\" & Setup!$AJ$11 & \"'!\" & AF223),0) + IF(Setup!$AJ$12<>\"\",INDIRECT(\"'\" & Setup!$AJ$12 & \"'!\" & AF223),0)","v":0},null,"",{"$nulls":3},{"$f":"IF(C223=0,\"\",LEFT(INDEX(Lists!$H$5:$H$49,MATCH(C223,Lists!$G$5:$G$49,0),1),1))","v":""},null,"","","","","","","","","","",{"$nulls":6},{"$f":"IF(Setup!$AG$7<>\"\",INDIRECT(\"'\" & Setup!$AG$7 & \"'!\" & AD223),0) + IF(Setup!$AG$8<>\"\",INDIRECT(\"'\" & Setup!$AG$8 & \"'!\" & AD223),0) + IF(Setup!$AG$9<>\"\",INDIRECT(\"'\" & Setup!$AG$9 & \"'!\" & AD223),0) + IF(Setup!$AG$10<>\"\",INDIRECT(\"'\" & Setup!$AG$10 & \"'!\" & AD223),0) + IF(Setup!$AG$11<>\"\",INDIRECT(\"'\" & Setup!$AG$11 & \"'!\" & AD223),0) + IF(Setup!$AG$12<>\"\",INDIRECT(\"'\" & Setup!$AG$12 & \"'!\" & AD223),0)","v":0},{"$f":"IF(Setup!$AG$7<>\"\",INDIRECT(\"'\" & Setup!$AG$7 & \"'!\" & AE223),0) + IF(Setup!$AG$8<>\"\",INDIRECT(\"'\" & Setup!$AG$8 & \"'!\" & AE223),0) + IF(Setup!$AG$9<>\"\",INDIRECT(\"'\" & Setup!$AG$9 & \"'!\" & AE223),0) + IF(Setup!$AG$10<>\"\",INDIRECT(\"'\" & Setup!$AG$10 & \"'!\" & AE223),0) + IF(Setup!$AG$11<>\"\",INDIRECT(\"'\" & Setup!$AG$11 & \"'!\" & AE223),0) + IF(Setup!$AG$12<>\"\",INDIRECT(\"'\" & Setup!$AG$12 & \"'!\" & AE223),0)","v":0},{"$f":"IF(Setup!$AH$7<>\"\",INDIRECT(\"'\" & Setup!$AH$7 & \"'!\" & AD223),0) + IF(Setup!$AH$8<>\"\",INDIRECT(\"'\" & Setup!$AH$8 & \"'!\" & AD223),0) + IF(Setup!$AH$9<>\"\",INDIRECT(\"'\" & Setup!$AH$9 & \"'!\" & AD223),0) + IF(Setup!$AH$10<>\"\",INDIRECT(\"'\" & Setup!$AH$10 & \"'!\" & AD223),0) + IF(Setup!$AH$11<>\"\",INDIRECT(\"'\" & Setup!$AH$11 & \"'!\" & AD223),0) + IF(Setup!$AH$12<>\"\",INDIRECT(\"'\" & Setup!$AH$12 & \"'!\" & AD223),0)","v":0},{"$f":"IF(Setup!$AH$7<>\"\",INDIRECT(\"'\" & Setup!$AH$7 & \"'!\" & AE223),0) + IF(Setup!$AH$8<>\"\",INDIRECT(\"'\" & Setup!$AH$8 & \"'!\" & AE223),0) + IF(Setup!$AH$9<>\"\",INDIRECT(\"'\" & Setup!$AH$9 & \"'!\" & AE223),0) + IF(Setup!$AH$10<>\"\",INDIRECT(\"'\" & Setup!$AH$10 & \"'!\" & AE223),0) + IF(Setup!$AH$11<>\"\",INDIRECT(\"'\" & Setup!$AH$11 & \"'!\" & AE223),0) + IF(Setup!$AH$12<>\"\",INDIRECT(\"'\" & Setup!$AH$12 & \"'!\" & AE223),0)","v":0},{"$f":"IF(Setup!$AI$7<>\"\",INDIRECT(\"'\" & Setup!$AI$7 & \"'!\" & AD223),0) + IF(Setup!$AI$8<>\"\",INDIRECT(\"'\" & Setup!$AI$8 & \"'!\" & AD223),0) + IF(Setup!$AI$9<>\"\",INDIRECT(\"'\" & Setup!$AI$9 & \"'!\" & AD223),0) + IF(Setup!$AI$10<>\"\",INDIRECT(\"'\" & Setup!$AI$10 & \"'!\" & AD223),0) + IF(Setup!$AI$11<>\"\",INDIRECT(\"'\" & Setup!$AI$11 & \"'!\" & AD223),0) + IF(Setup!$AI$12<>\"\",INDIRECT(\"'\" & Setup!$AI$12 & \"'!\" & AD223),0)","v":0},{"$f":"IF(Setup!$AI$7<>\"\",INDIRECT(\"'\" & Setup!$AI$7 & \"'!\" & AE223),0) + IF(Setup!$AI$8<>\"\",INDIRECT(\"'\" & Setup!$AI$8 & \"'!\" & AE223),0) + IF(Setup!$AI$9<>\"\",INDIRECT(\"'\" & Setup!$AI$9 & \"'!\" & AE223),0) + IF(Setup!$AI$10<>\"\",INDIRECT(\"'\" & Setup!$AI$10 & \"'!\" & AE223),0) + IF(Setup!$AI$11<>\"\",INDIRECT(\"'\" & Setup!$AI$11 & \"'!\" & AE223),0) + IF(Setup!$AI$12<>\"\",INDIRECT(\"'\" & Setup!$AI$12 & \"'!\" & AE223),0)","v":0},{"$f":"IF(Setup!$AJ$7<>\"\",INDIRECT(\"'\" & Setup!$AJ$7 & \"'!\" & AD223),0) + IF(Setup!$AJ$8<>\"\",INDIRECT(\"'\" & Setup!$AJ$8 & \"'!\" & AD223),0) + IF(Setup!$AJ$9<>\"\",INDIRECT(\"'\" & Setup!$AJ$9 & \"'!\" & AD223),0) + IF(Setup!$AJ$10<>\"\",INDIRECT(\"'\" & Setup!$AJ$10 & \"'!\" & AD223),0) + IF(Setup!$AJ$11<>\"\",INDIRECT(\"'\" & Setup!$AJ$11 & \"'!\" & AD223),0) + IF(Setup!$AJ$12<>\"\",INDIRECT(\"'\" & Setup!$AJ$12 & \"'!\" & AD223),0)","v":0},{"$f":"IF(Setup!$AJ$7<>\"\",INDIRECT(\"'\" & Setup!$AJ$7 & \"'!\" & AE223),0) + IF(Setup!$AJ$8<>\"\",INDIRECT(\"'\" & Setup!$AJ$8 & \"'!\" & AE223),0) + IF(Setup!$AJ$9<>\"\",INDIRECT(\"'\" & Setup!$AJ$9 & \"'!\" & AE223),0) + IF(Setup!$AJ$10<>\"\",INDIRECT(\"'\" & Setup!$AJ$10 & \"'!\" & AE223),0) + IF(Setup!$AJ$11<>\"\",INDIRECT(\"'\" & Setup!$AJ$11 & \"'!\" & AE223),0) + IF(Setup!$AJ$12<>\"\",INDIRECT(\"'\" & Setup!$AJ$12 & \"'!\" & AE223),0)","v":0}]
[{"$f":"Planning!A207","v":"I199"},{"$f":"Planning!B207","v":0},{"$f":"Planning!C207","v":0},{"$f":"Planning!D207","v":0},{"$f":"Planning!E207","v":0},{"$f":"Planning!G207","v":0},null,0,0,{"$f":"IF(AND($AR224=\"2\",$AB223<>Lists!$A$17),AU224,AT224)","v":""},"",0,0,{"$f":"IF(AND($AR224=\"2\",$AB224<>Lists!$A$17),AW224,AV224)","v":""},"",0,0,{"$f":"IF(AND($AR224=\"2\",$AB224<>Lists!$A$17),AY224,AX224)","v":""},"",0,0,{"$f":"IF(AND($AR224=\"2\",$AB224<>Lists!$A$17),BA224,AZ224)","v":""},"",0,0,{"$f":"IF(AND($AR224=\"2\",$AB224<>Lists!$A$17),BC224,BB224)","v":""},"",{"$f":"Planning!H207","v":0},"00","H223","J223","I223","",null,{"$f":"IF(Setup!$AG$7<>\"\",INDIRECT(\"'\" & Setup!$AG$7 & \"'!\" & AF224),0) + IF(Setup!$AG$8<>\"\",INDIRECT(\"'\" & Setup!$AG$8 & \"'!\" & AF224),0) + IF(Setup!$AG$9<>\"\",INDIRECT(\"'\" & Setup!$AG$9 & \"'!\" & AF224),0) + IF(Setup!$AG$10<>\"\",INDIRECT(\"'\" & Setup!$AG$10 & \"'!\" & AF224),0) + IF(Setup!$AG$11<>\"\",INDIRECT(\"'\" & Setup!$AG$11 & \"'!\" & AF224),0) + IF(Setup!$AG$12<>\"\",INDIRECT(\"'\" & Setup!$AG$12 & \"'!\" & AF224),0)","v":0},{"$f":"IF(Setup!$AH$7<>\"\",INDIRECT(\"'\" & Setup!$AH$7 & \"'!\" & AF224),0) + IF(Setup!$AH$8<>\"\",INDIRECT(\"'\" & Setup!$AH$8 & \"'!\" & AF224),0) + IF(Setup!$AH$9<>\"\",INDIRECT(\"'\" & Setup!$AH$9 & \"'!\" & AF224),0) + IF(Setup!$AH$10<>\"\",INDIRECT(\"'\" & Setup!$AH$10 & \"'!\" & AF224),0) + IF(Setup!$AH$11<>\"\",INDIRECT(\"'\" & Setup!$AH$11 & \"'!\" & AF224),0) + IF(Setup!$AH$12<>\"\",INDIRECT(\"'\" & Setup!$AH$12 & \"'!\" & AF224),0)","v":0},{"$f":"IF(Setup!$AI$7<>\"\",INDIRECT(\"'\" & Setup!$AI$7 & \"'!\" & AF224),0) + IF(Setup!$AI$8<>\"\",INDIRECT(\"'\" & Setup!$AI$8 & \"'!\" & AF224),0) + IF(Setup!$AI$9<>\"\",INDIRECT(\"'\" & Setup!$AI$9 & \"'!\" & AF224),0) + IF(Setup!$AI$10<>\"\",INDIRECT(\"'\" & Setup!$AI$10 & \"'!\" & AF224),0) + IF(Setup!$AI$11<>\"\",INDIRECT(\"'\" & Setup!$AI$11 & \"'!\" & AF224),0) + IF(Setup!$AI$12<>\"\",INDIRECT(\"'\" & Setup!$AI$12 & \"'!\" & AF224),0)","v":0},{"$f":"IF(Setup!$AJ$7<>\"\",INDIRECT(\"'\" & Setup!$AJ$7 & \"'!\" & AF224),0) + IF(Setup!$AJ$8<>\"\",INDIRECT(\"'\" & Setup!$AJ$8 & \"'!\" & AF224),0) + IF(Setup!$AJ$9<>\"\",INDIRECT(\"'\" & Setup!$AJ$9 & \"'!\" & AF224),0) + IF(Setup!$AJ$10<>\"\",INDIRECT(\"'\" & Setup!$AJ$10 & \"'!\" & AF224),0) + IF(Setup!$AJ$11<>\"\",INDIRECT(\"'\" & Setup!$AJ$11 & \"'!\" & AF224),0) + IF(Setup!$AJ$12<>\"\",INDIRECT(\"'\" & Setup!$AJ$12 & \"'!\" & AF224),0)","v":0},null,"",{"$nulls":3},{"$f":"IF(C224=0,\"\",LEFT(INDEX(Lists!$H$5:$H$49,MATCH(C224,Lists!$G$5:$G$49,0),1),1))","v":""},null,"","","","","","","","","","",{"$nulls":6},{"$f":"IF(Setup!$AG$7<>\"\",INDIRECT(\"'\" & Setup!$AG$7 & \"'!\" & AD224),0) + IF(Setup!$AG$8<>\"\",INDIRECT(\"'\" & Setup!$AG$8 & \"'!\" & AD224),0) + IF(Setup!$AG$9<>\"\",INDIRECT(\"'\" & Setup!$AG$9 & \"'!\" & AD224),0) + IF(Setup!$AG$10<>\"\",INDIRECT(\"'\" & Setup!$AG$10 & \"'!\" & AD224),0) + IF(Setup!$AG$11<>\"\",INDIRECT(\"'\" & Setup!$AG$11 & \"'!\" & AD224),0) + IF(Setup!$AG$12<>\"\",INDIRECT(\"'\" & Setup!$AG$12 & \"'!\" & AD224),0)","v":0},{"$f":"IF(Setup!$AG$7<>\"\",INDIRECT(\"'\" & Setup!$AG$7 & \"'!\" & AE224),0) + IF(Setup!$AG$8<>\"\",INDIRECT(\"'\" & Setup!$AG$8 & \"'!\" & AE224),0) + IF(Setup!$AG$9<>\"\",INDIRECT(\"'\" & Setup!$AG$9 & \"'!\" & AE224),0) + IF(Setup!$AG$10<>\"\",INDIRECT(\"'\" & Setup!$AG$10 & \"'!\" & AE224),0) + IF(Setup!$AG$11<>\"\",INDIRECT(\"'\" & Setup!$AG$11 & \"'!\" & AE224),0) + IF(Setup!$AG$12<>\"\",INDIRECT(\"'\" & Setup!$AG$12 & \"'!\" & AE224),0)","v":0},{"$f":"IF(Setup!$AH$7<>\"\",INDIRECT(\"'\" & Setup!$AH$7 & \"'!\" & AD224),0) + IF(Setup!$AH$8<>\"\",INDIRECT(\"'\" & Setup!$AH$8 & \"'!\" & AD224),0) + IF(Setup!$AH$9<>\"\",INDIRECT(\"'\" & Setup!$AH$9 & \"'!\" & AD224),0) + IF(Setup!$AH$10<>\"\",INDIRECT(\"'\" & Setup!$AH$10 & \"'!\" & AD224),0) + IF(Setup!$AH$11<>\"\",INDIRECT(\"'\" & Setup!$AH$11 & \"'!\" & AD224),0) + IF(Setup!$AH$12<>\"\",INDIRECT(\"'\" & Setup!$AH$12 & \"'!\" & AD224),0)","v":0},{"$f":"IF(Setup!$AH$7<>\"\",INDIRECT(\"'\" & Setup!$AH$7 & \"'!\" & AE224),0) + IF(Setup!$AH$8<>\"\",INDIRECT(\"'\" & Setup!$AH$8 & \"'!\" & AE224),0) + IF(Setup!$AH$9<>\"\",INDIRECT(\"'\" & Setup!$AH$9 & \"'!\" & AE224),0) + IF(Setup!$AH$10<>\"\",INDIRECT(\"'\" & Setup!$AH$10 & \"'!\" & AE224),0) + IF(Setup!$AH$11<>\"\",INDIRECT(\"'\" & Setup!$AH$11 & \"'!\" & AE224),0) + IF(Setup!$AH$12<>\"\",INDIRECT(\"'\" & Setup!$AH$12 & \"'!\" & AE224),0)","v":0},{"$f":"IF(Setup!$AI$7<>\"\",INDIRECT(\"'\" & Setup!$AI$7 & \"'!\" & AD224),0) + IF(Setup!$AI$8<>\"\",INDIRECT(\"'\" & Setup!$AI$8 & \"'!\" & AD224),0) + IF(Setup!$AI$9<>\"\",INDIRECT(\"'\" & Setup!$AI$9 & \"'!\" & AD224),0) + IF(Setup!$AI$10<>\"\",INDIRECT(\"'\" & Setup!$AI$10 & \"'!\" & AD224),0) + IF(Setup!$AI$11<>\"\",INDIRECT(\"'\" & Setup!$AI$11 & \"'!\" & AD224),0) + IF(Setup!$AI$12<>\"\",INDIRECT(\"'\" & Setup!$AI$12 & \"'!\" & AD224),0)","v":0},{"$f":"IF(Setup!$AI$7<>\"\",INDIRECT(\"'\" & Setup!$AI$7 & \"'!\" & AE224),0) + IF(Setup!$AI$8<>\"\",INDIRECT(\"'\" & Setup!$AI$8 & \"'!\" & AE224),0) + IF(Setup!$AI$9<>\"\",INDIRECT(\"'\" & Setup!$AI$9 & \"'!\" & AE224),0) + IF(Setup!$AI$10<>\"\",INDIRECT(\"'\" & Setup!$AI$10 & \"'!\" & AE224),0) + IF(Setup!$AI$11<>\"\",INDIRECT(\"'\" & Setup!$AI$11 & \"'!\" & AE224),0) + IF(Setup!$AI$12<>\"\",INDIRECT(\"'\" & Setup!$AI$12 & \"'!\" & AE224),0)","v":0},{"$f":"IF(Setup!$AJ$7<>\"\",INDIRECT(\"'\" & Setup!$AJ$7 & \"'!\" & AD224),0) + IF(Setup!$AJ$8<>\"\",INDIRECT(\"'\" & Setup!$AJ$8 & \"'!\" & AD224),0) + IF(Setup!$AJ$9<>\"\",INDIRECT(\"'\" & Setup!$AJ$9 & \"'!\" & AD224),0) + IF(Setup!$AJ$10<>\"\",INDIRECT(\"'\" & Setup!$AJ$10 & \"'!\" & AD224),0) + IF(Setup!$AJ$11<>\"\",INDIRECT(\"'\" & Setup!$AJ$11 & \"'!\" & AD224),0) + IF(Setup!$AJ$12<>\"\",INDIRECT(\"'\" & Setup!$AJ$12 & \"'!\" & AD224),0)","v":0},{"$f":"IF(Setup!$AJ$7<>\"\",INDIRECT(\"'\" & Setup!$AJ$7 & \"'!\" & AE224),0) + IF(Setup!$AJ$8<>\"\",INDIRECT(\"'\" & Setup!$AJ$8 & \"'!\" & AE224),0) + IF(Setup!$AJ$9<>\"\",INDIRECT(\"'\" & Setup!$AJ$9 & \"'!\" & AE224),0) + IF(Setup!$AJ$10<>\"\",INDIRECT(\"'\" & Setup!$AJ$10 & \"'!\" & AE224),0) + IF(Setup!$AJ$11<>\"\",INDIRECT(\"'\" & Setup!$AJ$11 & \"'!\" & AE224),0) + IF(Setup!$AJ$12<>\"\",INDIRECT(\"'\" & Setup!$AJ$12 & \"'!\" & AE224),0)","v":0}]
[{"$f":"Planning!A208","v":"I200"},{"$f":"Planning!B208","v":0},{"$f":"Planning!C208","v":0},{"$f":"Planning!D208","v":0},{"$f":"Planning!E208","v":0},{"$f":"Planning!G208","v":0},null,0,0,{"$f":"IF(AND($AR225=\"2\",$AB224<>Lists!$A$17),AU225,AT225)","v":""},"",0,0,{"$f":"IF(AND($AR225=\"2\",$AB225<>Lists!$A$17),AW225,AV225)","v":""},"",0,0,{"$f":"IF(AND($AR225=\"2\",$AB225<>Lists!$A$17),AY225,AX225)","v":""},"",0,0,{"$f":"IF(AND($AR225=\"2\",$AB225<>Lists!$A$17),BA225,AZ225)","v":""},"",0,0,{"$f":"IF(AND($AR225=\"2\",$AB225<>Lists!$A$17),BC225,BB225)","v":""},"",{"$f":"Planning!H208","v":0},"00","H224","J224","I224","",null,{"$f":"IF(Setup!$AG$7<>\"\",INDIRECT(\"'\" & Setup!$AG$7 & \"'!\" & AF225),0) + IF(Setup!$AG$8<>\"\",INDIRECT(\"'\" & Setup!$AG$8 & \"'!\" & AF225),0) + IF(Setup!$AG$9<>\"\",INDIRECT(\"'\" & Setup!$AG$9 & \"'!\" & AF225),0) + IF(Setup!$AG$10<>\"\",INDIRECT(\"'\" & Setup!$AG$10 & \"'!\" & AF225),0) + IF(Setup!$AG$11<>\"\",INDIRECT(\"'\" & Setup!$AG$11 & \"'!\" & AF225),0) + IF(Setup!$AG$12<>\"\",INDIRECT(\"'\" & Setup!$AG$12 & \"'!\" & AF225),0)","v":0},{"$f":"IF(Setup!$AH$7<>\"\",INDIRECT(\"'\" & Setup!$AH$7 & \"'!\" & AF225),0) + IF(Setup!$AH$8<>\"\",INDIRECT(\"'\" & Setup!$AH$8 & \"'!\" & AF225),0) + IF(Setup!$AH$9<>\"\",INDIRECT(\"'\" & Setup!$AH$9 & \"'!\" & AF225),0) + IF(Setup!$AH$10<>\"\",INDIRECT(\"'\" & Setup!$AH$10 & \"'!\" & AF225),0) + IF(Setup!$AH$11<>\"\",INDIRECT(\"'\" & Setup!$AH$11 & \"'!\" & AF225),0) + IF(Setup!$AH$12<>\"\",INDIRECT(\"'\" & Setup!$AH$12 & \"'!\" & AF225),0)","v":0},{"$f":"IF(Setup!$AI$7<>\"\",INDIRECT(\"'\" & Setup!$AI$7 & \"'!\" & AF225),0) + IF(Setup!$AI$8<>\"\",INDIRECT(\"'\" & Setup!$AI$8 & \"'!\" & AF225),0) + IF(Setup!$AI$9<>\"\",INDIRECT(\"'\" & Setup!$AI$9 & \"'!\" & AF225),0) + IF(Setup!$AI$10<>\"\",INDIRECT(\"'\" & Setup!$AI$10 & \"'!\" & AF225),0) + IF(Setup!$AI$11<>\"\",INDIRECT(\"'\" & Setup!$AI$11 & \"'!\" & AF225),0) + IF(Setup!$AI$12<>\"\",INDIRECT(\"'\" & Setup!$AI$12 & \"'!\" & AF225),0)","v":0},{"$f":"IF(Setup!$AJ$7<>\"\",INDIRECT(\"'\" & Setup!$AJ$7 & \"'!\" & AF225),0) + IF(Setup!$AJ$8<>\"\",INDIRECT(\"'\" & Setup!$AJ$8 & \"'!\" & AF225),0) + IF(Setup!$AJ$9<>\"\",INDIRECT(\"'\" & Setup!$AJ$9 & \"'!\" & AF225),0) + IF(Setup!$AJ$10<>\"\",INDIRECT(\"'\" & Setup!$AJ$10 & \"'!\" & AF225),0) + IF(Setup!$AJ$11<>\"\",INDIRECT(\"'\" & Setup!$AJ$11 & \"'!\" & AF225),0) + IF(Setup!$AJ$12<>\"\",INDIRECT(\"'\" & Setup!$AJ$12 & \"'!\" & AF225),0)","v":0},null,"",{"$nulls":3},{"$f":"IF(C225=0,\"\",LEFT(INDEX(Lists!$H$5:$H$49,MATCH(C225,Lists!$G$5:$G$49,0),1),1))","v":""},null,"","","","","","","","","","",{"$nulls":6},{"$f":"IF(Setup!$AG$7<>\"\",INDIRECT(\"'\" & Setup!$AG$7 & \"'!\" & AD225),0) + IF(Setup!$AG$8<>\"\",INDIRECT(\"'\" & Setup!$AG$8 & \"'!\" & AD225),0) + IF(Setup!$AG$9<>\"\",INDIRECT(\"'\" & Setup!$AG$9 & \"'!\" & AD225),0) + IF(Setup!$AG$10<>\"\",INDIRECT(\"'\" & Setup!$AG$10 & \"'!\" & AD225),0) + IF(Setup!$AG$11<>\"\",INDIRECT(\"'\" & Setup!$AG$11 & \"'!\" & AD225),0) + IF(Setup!$AG$12<>\"\",INDIRECT(\"'\" & Setup!$AG$12 & \"'!\" & AD225),0)","v":0},{"$f":"IF(Setup!$AG$7<>\"\",INDIRECT(\"'\" & Setup!$AG$7 & \"'!\" & AE225),0) + IF(Setup!$AG$8<>\"\",INDIRECT(\"'\" & Setup!$AG$8 & \"'!\" & AE225),0) + IF(Setup!$AG$9<>\"\",INDIRECT(\"'\" & Setup!$AG$9 & \"'!\" & AE225),0) + IF(Setup!$AG$10<>\"\",INDIRECT(\"'\" & Setup!$AG$10 & \"'!\" & AE225),0) + IF(Setup!$AG$11<>\"\",INDIRECT(\"'\" & Setup!$AG$11 & \"'!\" & AE225),0) + IF(Setup!$AG$12<>\"\",INDIRECT(\"'\" & Setup!$AG$12 & \"'!\" & AE225),0)","v":0},{"$f":"IF(Setup!$AH$7<>\"\",INDIRECT(\"'\" & Setup!$AH$7 & \"'!\" & AD225),0) + IF(Setup!$AH$8<>\"\",INDIRECT(\"'\" & Setup!$AH$8 & \"'!\" & AD225),0) + IF(Setup!$AH$9<>\"\",INDIRECT(\"'\" & Setup!$AH$9 & \"'!\" & AD225),0) + IF(Setup!$AH$10<>\"\",INDIRECT(\"'\" & Setup!$AH$10 & \"'!\" & AD225),0) + IF(Setup!$AH$11<>\"\",INDIRECT(\"'\" & Setup!$AH$11 & \"'!\" & AD225),0) + IF(Setup!$AH$12<>\"\",INDIRECT(\"'\" & Setup!$AH$12 & \"'!\" & AD225),0)","v":0},{"$f":"IF(Setup!$AH$7<>\"\",INDIRECT(\"'\" & Setup!$AH$7 & \"'!\" & AE225),0) + IF(Setup!$AH$8<>\"\",INDIRECT(\"'\" & Setup!$AH$8 & \"'!\" & AE225),0) + IF(Setup!$AH$9<>\"\",INDIRECT(\"'\" & Setup!$AH$9 & \"'!\" & AE225),0) + IF(Setup!$AH$10<>\"\",INDIRECT(\"'\" & Setup!$AH$10 & \"'!\" & AE225),0) + IF(Setup!$AH$11<>\"\",INDIRECT(\"'\" & Setup!$AH$11 & \"'!\" & AE225),0) + IF(Setup!$AH$12<>\"\",INDIRECT(\"'\" & Setup!$AH$12 & \"'!\" & AE225),0)","v":0},{"$f":"IF(Setup!$AI$7<>\"\",INDIRECT(\"'\" & Setup!$AI$7 & \"'!\" & AD225),0) + IF(Setup!$AI$8<>\"\",INDIRECT(\"'\" & Setup!$AI$8 & \"'!\" & AD225),0) + IF(Setup!$AI$9<>\"\",INDIRECT(\"'\" & Setup!$AI$9 & \"'!\" & AD225),0) + IF(Setup!$AI$10<>\"\",INDIRECT(\"'\" & Setup!$AI$10 & \"'!\" & AD225),0) + IF(Setup!$AI$11<>\"\",INDIRECT(\"'\" & Setup!$AI$11 & \"'!\" & AD225),0) + IF(Setup!$AI$12<>\"\",INDIRECT(\"'\" & Setup!$AI$12 & \"'!\" & AD225),0)","v":0},{"$f":"IF(Setup!$AI$7<>\"\",INDIRECT(\"'\" & Setup!$AI$7 & \"'!\" & AE225),0) + IF(Setup!$AI$8<>\"\",INDIRECT(\"'\" & Setup!$AI$8 & \"'!\" & AE225),0) + IF(Setup!$AI$9<>\"\",INDIRECT(\"'\" & Setup!$AI$9 & \"'!\" & AE225),0) + IF(Setup!$AI$10<>\"\",INDIRECT(\"'\" & Setup!$AI$10 & \"'!\" & AE225),0) + IF(Setup!$AI$11<>\"\",INDIRECT(\"'\" & Setup!$AI$11 & \"'!\" & AE225),0) + IF(Setup!$AI$12<>\"\",INDIRECT(\"'\" & Setup!$AI$12 & \"'!\" & AE225),0)","v":0},{"$f":"IF(Setup!$AJ$7<>\"\",INDIRECT(\"'\" & Setup!$AJ$7 & \"'!\" & AD225),0) + IF(Setup!$AJ$8<>\"\",INDIRECT(\"'\" & Setup!$AJ$8 & \"'!\" & AD225),0) + IF(Setup!$AJ$9<>\"\",INDIRECT(\"'\" & Setup!$AJ$9 & \"'!\" & AD225),0) + IF(Setup!$AJ$10<>\"\",INDIRECT(\"'\" & Setup!$AJ$10 & \"'!\" & AD225),0) + IF(Setup!$AJ$11<>\"\",INDIRECT(\"'\" & Setup!$AJ$11 & \"'!\" & AD225),0) + IF(Setup!$AJ$12<>\"\",INDIRECT(\"'\" & Setup!$AJ$12 & \"'!\" & AD225),0)","v":0},{"$f":"IF(Setup!$AJ$7<>\"\",INDIRECT(\"'\" & Setup!$AJ$7 & \"'!\" & AE225),0) + IF(Setup!$AJ$8<>\"\",INDIRECT(\"'\" & Setup!$AJ$8 & \"'!\" & AE225),0) + IF(Setup!$AJ$9<>\"\",INDIRECT(\"'\" & Setup!$AJ$9 & \"'!\" & AE225),0) + IF(Setup!$AJ$10<>\"\",INDIRECT(\"'\" & Setup!$AJ$10 & \"'!\" & AE225),0) + IF(Setup!$AJ$11<>\"\",INDIRECT(\"'\" & Setup!$AJ$11 & \"'!\" & AE225),0) + IF(Setup!$AJ$12<>\"\",INDIRECT(\"'\" & Setup!$AJ$12 & \"'!\" & AE225),0)","v":0}]
[{"$nulls":3},".",".",{"$nulls":34},".",{"$nulls":3},".",null,".",".",".",".",".",".",".",".",".","."]
[]
[]
[{"$f":"Translations!A111","v":"PERIOD FINANCIAL SUMMARY"}]
[]
[{"$nulls":7},{"$f":"Translations!$A$103","v":"Annual"},{"$nulls":3},{"$f":"Translations!$A$104","v":"1st Quarter advance"},{"$nulls":3},{"$f":"Translations!$A$105","v":"2nd Quarter advance"},{"$nulls":3},{"$f":"Translations!$A$106","v":"3rd Quarter advance"},{"$nulls":3},{"$f":"Translations!$A$107","v":"4th Quarter advance"}]
[{"$f":"Translations!$A$88","v":"Item"},"Tipo de Ítem","ID Enlace",{"$f":"Translations!$A$91","v":"Activity code"},{"$f":"Translations!$A$92","v":"Indicator / Activity"},"Categoría de Costos",null,{"$f":"Translations!$A$356","v":"Budget"},{"$f":"Translations!$A$362","v":"Expenditure"},{"$f":"Translations!$A$108","v":"Result %"},null,{"$f":"Translations!$A$356","v":"Budget"},{"$f":"Translations!$A$362","v":"Expenditure"},{"$f":"Translations!$A$108","v":"Result %"},null,{"$f":"Translations!$A$356","v":"Budget"},{"$f":"Translations!$A$362","v":"Expenditure"},{"$f":"Translations!$A$108","v":"Result %"},null,{"$f":"Translations!$A$356","v":"Budget"},{"$f":"Translations!$A$362","v":"Expenditure"},{"$f":"Translations!$A$108","v":"Result %"},null,{"$f":"Translations!$A$356","v":"Budget"},{"$f":"Translations!$A$362","v":"Expenditure"},{"$f":"Translations!$A$108","v":"Result %"}]
[{"$nulls":29},"En las hojas MONTH",{"$nulls":4},"SUMATORIA MES ANTERIOR",{"$nulls":4},"Indicador =1 Actividad = 2",{"$nulls":30},"PENDIENTE DEL Q ANTERIOR"]
[]
[{"$f":"Translations!A109","v":"Totals"},{"$nulls":6},{"$f":"SUM(L235,P235,T235,X235)","v":{"v":1119375,"d":"1,119,375.00"}},{"$f":"SUM(M235,Q235,U235,Y235)","v":{"v":1112125,"d":"1,112,125.00"}},{"$f":"IFERROR(AVERAGEIF(K237:K436,\"<> \"),\"\")","v":{"v":0.995023681515617,"d":"99.50%"}},null,{"$f":"SUMIFS(L237:L436,$AB$237:$AB$436,\"<>0\")","v":{"v":504075,"d":"504,075.00"}},{"$f":"SUMIFS(M237:M436,$AB$237:$AB$436,\"<>0\")","v":{"v":494925,"d":"494,925.00"}},{"$f":"IFERROR(AVERAGEIF(O237:O436,\"<> \"),\"\")","v":{"v":0.9863002279472622,"d":"98.63%"}},null,{"$f":"SUMIFS(P237:P436,$AB$237:$AB$436,\"<>0\")","v":{"v":615300,"d":"615,300.00"}},{"$f":"SUMIFS(Q237:Q436,$AB$237:$AB$436,\"<>0\")","v":{"v":617200,"d":"617,200.00"}},{"$f":"IFERROR(AVERAGEIF(S237:S436,\"<> \"),\"\")","v":{"v":1.0046991209460332,"d":"100.47%"}},null,{"$f":"SUMIFS(T237:T436,$AB$237:$AB$436,\"<>0\")","v":{"v":0,"d":"0.00"}},{"$f":"SUMIFS(U237:U436,$AB$237:$AB$436,\"<>0\")","v":{"v":0,"d":"0.00"}},{"$f":"IFERROR(AVERAGEIF(W237:W436,\"<> \"),\"\")","v":""},null,{"$f":"SUMIFS(X237:X436,$AB$237:$AB$436,\"<>0\")","v":{"v":0,"d":"0.00"}},{"$f":"SUMIFS(Y237:Y436,$AB$237:$AB$436,\"<>0\")","v":{"v":0,"d":"0.00"}},{"$f":"IFERROR(AVERAGEIF(AA237:AA436,\"<> \"),\"\")","v":""},null,null,"REF","Meta","Resultado","Anterior",null,null,"Q1","Q2","Q3","Q4",{"$nulls":32},"Q1","Q2","Q3","Q4"]
[]
[{"$f":"Planning!A9","v":"I001"},{"$f":"Planning!B9","v":"1. Indicator"},{"$f":"Planning!C9","v":"Pr68"},{"$f":"Planning!D9","v":1},{"$f":"Planning!E9","v":"[Pr68] # PLHIV that initiated ARV with CD4 count <200 Target [2. Inverse]"},{"$f":"Planning!G9","v":0},{"$f":"IF(C237<>0,NumObjetivo(C237),0)","v":1},{"$f":"SUM(L237,P237,T237,X237)","v":{"v":310225,"d":"310,225.00"}},{"$f":"SUM(M237,Q237,U237,Y237)","v":{"v":310225,"d":"310,225.00"}},{"$f":"IF(AND(H237=0,I237=0),\"\",IF(H237>0,I237/H237,I237))","v":{"v":1,"d":"100.00%"}},{"$f":"IF($AN237 = ExcluirDelPLogro,\"\",IF(AND(H237=0,I237=0),\"\",J237))","v":1},{"$f":"IF(Setup!$AG$7<>\"\",INDIRECT(\"'\" & Setup!$AG$7 & \"'!\" & AD237),0) + IF(Setup!$AG$8<>\"\",INDIRECT(\"'\" & Setup!$AG$8 & \"'!\" & AD237),0) + IF(Setup!$AG$9<>\"\",INDIRECT(\"'\" & Setup!$AG$9 & \"'!\" & AD237),0) + IF(Setup!$AG$10<>\"\",INDIRECT(\"'\" & Setup!$AG$10 & \"'!\" & AD237),0) + IF(Setup!$AG$11<>\"\",INDIRECT(\"'\" & Setup!$AG$11 & \"'!\" & AD237),0) + IF(Setup!$AG$12<>\"\",INDIRECT(\"'\" & Setup!$AG$12 & \"'!\" & AD237),0)","v":{"v":169625,"d":"169,625.00"}},{"$f":"IF(Setup!$AG$7<>\"\",INDIRECT(\"'\" & Setup!$AG$7 & \"'!\" & AE237),0) + IF(Setup!$AG$8<>\"\",INDIRECT(\"'\" & Setup!$AG$8 & \"'!\" & AE237),0) + IF(Setup!$AG$9<>\"\",INDIRECT(\"'\" & Setup!$AG$9 & \"'!\" & AE237),0) + IF(Setup!$AG$10<>\"\",INDIRECT(\"'\" & Setup!$AG$10 & \"'!\" & AE237),0) + IF(Setup!$AG$11<>\"\",INDIRECT(\"'\" & Setup!$AG$11 & \"'!\" & AE237),0) + IF(Setup!$AG$12<>\"\",INDIRECT(\"'\" & Setup!$AG$12 & \"'!\" & AE237),0)","v":{"v":167625,"d":"167,625.00"}},{"$f":"IF(AND(L237=0,M237=0),\"\",IF(L237>0,M237/L237,M237))","v":{"v":0.9882092851879145,"d":"98.82%"}},{"$f":"IF($AN237=ExcluirDelPLogro,\"\",IF(AND(L237=0,M237=0),\"\",N237))","v":0.9882092851879145},{"$f":"IF(Setup!$AH$7<>\"\",INDIRECT(\"'\" & Setup!$AH$7 & \"'!\" & AD237),0) + IF(Setup!$AH$8<>\"\",INDIRECT(\"'\" & Setup!$AH$8 & \"'!\" & AD237),0) + IF(Setup!$AH$9<>\"\",INDIRECT(\"'\" & Setup!$AH$9 & \"'!\" & AD237),0) + IF(Setup!$AH$10<>\"\",INDIRECT(\"'\" & Setup!$AH$10 & \"'!\" & AD237),0) + IF(Setup!$AH$11<>\"\",INDIRECT(\"'\" & Setup!$AH$11 & \"'!\" & AD237),0) + IF(Setup!$AH$12<>\"\",INDIRECT(\"'\" & Setup!$AH$12 & \"'!\" & AD237),0)","v":{"v":140600,"d":"140,600.00"}},{"$f":"IF(Setup!$AH$7<>\"\",INDIRECT(\"'\" & Setup!$AH$7 & \"'!\" & AE237),0) + IF(Setup!$AH$8<>\"\",INDIRECT(\"'\" & Setup!$AH$8 & \"'!\" & AE237),0) + IF(Setup!$AH$9<>\"\",INDIRECT(\"'\" & Setup!$AH$9 & \"'!\" & AE237),0) + IF(Setup!$AH$10<>\"\",INDIRECT(\"'\" & Setup!$AH$10 & \"'!\" & AE237),0) + IF(Setup!$AH$11<>\"\",INDIRECT(\"'\" & Setup!$AH$11 & \"'!\" & AE237),0) + IF(Setup!$AH$12<>\"\",INDIRECT(\"'\" & Setup!$AH$12 & \"'!\" & AE237),0)","v":{"v":142600,"d":"142,600.00"}},{"$f":"IF(AND(P237=0,Q237=0),\"\",IF(P237>0,Q237/P237,Q237))","v":{"v":1.0142247510668563,"d":"101.42%"}},{"$f":"IF($AN237=ExcluirDelPLogro,\"\",IF(AND(P237=0,Q237=0),\"\",R237))","v":1.0142247510668563},{"$f":"IF(Setup!$AI$7<>\"\",INDIRECT(\"'\" & Setup!$AI$7 & \"'!\" & AD237),0) + IF(Setup!$AI$8<>\"\",INDIRECT(\"'\" & Setup!$AI$8 & \"'!\" & AD237),0) + IF(Setup!$AI$9<>\"\",INDIRECT(\"'\" & Setup!$AI$9 & \"'!\" & AD237),0) + IF(Setup!$AI$10<>\"\",INDIRECT(\"'\" & Setup!$AI$10 & \"'!\" & AD237),0) + IF(Setup!$AI$11<>\"\",INDIRECT(\"'\" & Setup!$AI$11 & \"'!\" & AD237),0) + IF(Setup!$AI$12<>\"\",INDIRECT(\"'\" & Setup!$AI$12 & \"'!\" & AD237),0)","v":{"v":0,"d":"0.00"}},{"$f":"IF(Setup!$AI$7<>\"\",INDIRECT(\"'\" & Setup!$AI$7 & \"'!\" & AE237),0) + IF(Setup!$AI$8<>\"\",INDIRECT(\"'\" & Setup!$AI$8 & \"'!\" & AE237),0) + IF(Setup!$AI$9<>\"\",INDIRECT(\"'\" & Setup!$AI$9 & \"'!\" & AE237),0) + IF(Setup!$AI$10<>\"\",INDIRECT(\"'\" & Setup!$AI$10 & \"'!\" & AE237),0) + IF(Setup!$AI$11<>\"\",INDIRECT(\"'\" & Setup!$AI$11 & \"'!\" & AE237),0) + IF(Setup!$AI$12<>\"\",INDIRECT(\"'\" & Setup!$AI$12 & \"'!\" & AE237),0)","v":{"v":0,"d":"0.00"}},{"$f":"IF(AND(T237=0,U237=0),\"\",IF(T237>0,U237/T237,U237))","v":""},{"$f":"IF($AN237=ExcluirDelPLogro,\"\",IF(AND(T237=0,U237=0),\"\",V237))","v":""},{"$f":"IF(Setup!$AJ$7<>\"\",INDIRECT(\"'\" & Setup!$AJ$7 & \"'!\" & AD237),0) + IF(Setup!$AJ$8<>\"\",INDIRECT(\"'\" & Setup!$AJ$8 & \"'!\" & AD237),0) + IF(Setup!$AJ$9<>\"\",INDIRECT(\"'\" & Setup!$AJ$9 & \"'!\" & AD237),0) + IF(Setup!$AJ$10<>\"\",INDIRECT(\"'\" & Setup!$AJ$10 & \"'!\" & AD237),0) + IF(Setup!$AJ$11<>\"\",INDIRECT(\"'\" & Setup!$AJ$11 & \"'!\" & AD237),0) + IF(Setup!$AJ$12<>\"\",INDIRECT(\"'\" & Setup!$AJ$12 & \"'!\" & AD237),0)","v":0},{"$f":"IF(Setup!$AJ$7<>\"\",INDIRECT(\"'\" & Setup!$AJ$7 & \"'!\" & AE237),0) + IF(Setup!$AJ$8<>\"\",INDIRECT(\"'\" & Setup!$AJ$8 & \"'!\" & AE237),0) + IF(Setup!$AJ$9<>\"\",INDIRECT(\"'\" & Setup!$AJ$9 & \"'!\" & AE237),0) + IF(Setup!$AJ$10<>\"\",INDIRECT(\"'\" & Setup!$AJ$10 & \"'!\" & AE237),0) + IF(Setup!$AJ$11<>\"\",INDIRECT(\"'\" & Setup!$AJ$11 & \"'!\" & AE237),0) + IF(Setup!$AJ$12<>\"\",INDIRECT(\"'\" & Setup!$AJ$12 & \"'!\" & AE237),0)","v":0},{"$f":"IF(AND(X237=0,Y237=0),\"\",IF(X237>0,Y237/X237,Y237))","v":""},{"$f":"IF($AN237=ExcluirDelPLogro,\"\",IF(AND(X237=0,Y237=0),\"\",Z237))","v":""},{"$f":"Planning!H9","v":0},{"$f":"LEFT(B237,1)&C237","v":"1Pr68"},"M25","O25","N25",null,null,{"$f":"IF(Setup!$AG$7<>\"\",INDIRECT(\"'\" & Setup!$AG$7 & \"'!\" & AF237),0) + IF(Setup!$AG$8<>\"\",INDIRECT(\"'\" & Setup!$AG$8 & \"'!\" & AF237),0) + IF(Setup!$AG$9<>\"\",INDIRECT(\"'\" & Setup!$AG$9 & \"'!\" & AF237),0) + IF(Setup!$AG$10<>\"\",INDIRECT(\"'\" & Setup!$AG$10 & \"'!\" & AF237),0) + IF(Setup!$AG$11<>\"\",INDIRECT(\"'\" & Setup!$AG$11 & \"'!\" & AF237),0) + IF(Setup!$AG$12<>\"\",INDIRECT(\"'\" & Setup!$AG$12 & \"'!\" & AF237),0)","v":6670},{"$f":"IF(Setup!$AH$7<>\"\",INDIRECT(\"'\" & Setup!$AH$7 & \"'!\" & AF237),0) + IF(Setup!$AH$8<>\"\",INDIRECT(\"'\" & Setup!$AH$8 & \"'!\" & AF237),0) + IF(Setup!$AH$9<>\"\",INDIRECT(\"'\" & Setup!$AH$9 & \"'!\" & AF237),0) + IF(Setup!$AH$10<>\"\",INDIRECT(\"'\" & Setup!$AH$10 & \"'!\" & AF237),0) + IF(Setup!$AH$11<>\"\",INDIRECT(\"'\" & Setup!$AH$11 & \"'!\" & AF237),0) + IF(Setup!$AH$12<>\"\",INDIRECT(\"'\" & Setup!$AH$12 & \"'!\" & AF237),0)","v":2010},{"$f":"IF(Setup!$AI$7<>\"\",INDIRECT(\"'\" & Setup!$AI$7 & \"'!\" & AF237),0) + IF(Setup!$AI$8<>\"\",INDIRECT(\"'\" & Setup!$AI$8 & \"'!\" & AF237),0) + IF(Setup!$AI$9<>\"\",INDIRECT(\"'\" & Setup!$AI$9 & \"'!\" & AF237),0) + IF(Setup!$AI$10<>\"\",INDIRECT(\"'\" & Setup!$AI$10 & \"'!\" & AF237),0) + IF(Setup!$AI$11<>\"\",INDIRECT(\"'\" & Setup!$AI$11 & \"'!\" & AF237),0) + IF(Setup!$AI$12<>\"\",INDIRECT(\"'\" & Setup!$AI$12 & \"'!\" & AF237),0)","v":0},{"$f":"IF(Setup!$AJ$7<>\"\",INDIRECT(\"'\" & Setup!$AJ$7 & \"'!\" & AF237),0) + IF(Setup!$AJ$8<>\"\",INDIRECT(\"'\" & Setup!$AJ$8 & \"'!\" & AF237),0) + IF(Setup!$AJ$9<>\"\",INDIRECT(\"'\" & Setup!$AJ$9 & \"'!\" & AF237),0) + IF(Setup!$AJ$10<>\"\",INDIRECT(\"'\" & Setup!$AJ$10 & \"'!\" & AF237),0) + IF(Setup!$AJ$11<>\"\",INDIRECT(\"'\" & Setup!$AJ$11 & \"'!\" & AF237),0) + IF(Setup!$AJ$12<>\"\",INDIRECT(\"'\" & Setup!$AJ$12 & \"'!\" & AF237),0)","v":0},null,{"$f":"IF(B237=0,\"\",IF(LEFT(B237,1)=\"1\",\"1\",\"2\"))","v":"1"},{"$nulls":30},0,{"$f":"IF(Setup!$AH$7=\"\",0,INDIRECT(\"'\" & Setup!$AH$7 & \"'!\" & AF237))","v":2000},{"$f":"IF(Setup!$AI$7=\"\",0,INDIRECT(\"'\" & Setup!$AI$7 & \"'!\" & AF237))","v":0},{"$f":"IF(Setup!$AJ$7=\"\",0,INDIRECT(\"'\" & Setup!$AJ$7 & \"'!\" & AF237))","v":0}]
[{"$f":"Planning!A10","v":"I002"},{"$f":"Planning!B10","v":"2. Activity: Contributing"},{"$f":"Planning!C10","v":"Pr68"},{"$f":"Planning!D10","v":1.2},{"$f":"Planning!E10","v":"PLHIV reimbursed for transportation costs to HIV testing and treatment centres\n"},{"$f":"Planning!G10","v":"12. Living support to client/ target population "},{"$f":"IF(C238<>0,NumObjetivo(C238),0)","v":1},{"$f":"SUM(L238,P238,T238,X238)","v":{"v":250000,"d":"250,000.00"}},{"$f":"SUM(M238,Q238,U238,Y238)","v":{"v":250000,"d":"250,000.00"}},{"$f":"IF(AND(H238=0,I238=0),\"\",IF(H238>0,I238/H238,I238))","v":{"v":1,"d":"100.00%"}},"",{"$f":"IF(Setup!$AG$7<>\"\",INDIRECT(\"'\" & Setup!$AG$7 & \"'!\" & AD238),0) + IF(Setup!$AG$8<>\"\",INDIRECT(\"'\" & Setup!$AG$8 & \"'!\" & AD238),0) + IF(Setup!$AG$9<>\"\",INDIRECT(\"'\" & Setup!$AG$9 & \"'!\" & AD238),0) + IF(Setup!$AG$10<>\"\",INDIRECT(\"'\" & Setup!$AG$10 & \"'!\" & AD238),0) + IF(Setup!$AG$11<>\"\",INDIRECT(\"'\" & Setup!$AG$11 & \"'!\" & AD238),0) + IF(Setup!$AG$12<>\"\",INDIRECT(\"'\" & Setup!$AG$12 & \"'!\" & AD238),0)","v":{"v":125000,"d":"125,000.00"}},{"$f":"IF(Setup!$AG$7<>\"\",INDIRECT(\"'\" & Setup!$AG$7 & \"'!\" & AE238),0) + IF(Setup!$AG$8<>\"\",INDIRECT(\"'\" & Setup!$AG$8 & \"'!\" & AE238),0) + IF(Setup!$AG$9<>\"\",INDIRECT(\"'\" & Setup!$AG$9 & \"'!\" & AE238),0) + IF(Setup!$AG$10<>\"\",INDIRECT(\"'\" & Setup!$AG$10 & \"'!\" & AE238),0) + IF(Setup!$AG$11<>\"\",INDIRECT(\"'\" & Setup!$AG$11 & \"'!\" & AE238),0) + IF(Setup!$AG$12<>\"\",INDIRECT(\"'\" & Setup!$AG$12 & \"'!\" & AE238),0)","v":{"v":123000,"d":"123,000.00"}},{"$f":"IF(AND(L238=0,M238=0),\"\",IF(L238>0,M238/L238,M238))","v":{"v":0.984,"d":"98.40%"}},"",{"$f":"IF(Setup!$AH$7<>\"\",INDIRECT(\"'\" & Setup!$AH$7 & \"'!\" & AD238),0) + IF(Setup!$AH$8<>\"\",INDIRECT(\"'\" & Setup!$AH$8 & \"'!\" & AD238),0) + IF(Setup!$AH$9<>\"\",INDIRECT(\"'\" & Setup!$AH$9 & \"'!\" & AD238),0) + IF(Setup!$AH$10<>\"\",INDIRECT(\"'\" & Setup!$AH$10 & \"'!\" & AD238),0) + IF(Setup!$AH$11<>\"\",INDIRECT(\"'\" & Setup!$AH$11 & \"'!\" & AD238),0) + IF(Setup!$AH$12<>\"\",INDIRECT(\"'\" & Setup!$AH$12 & \"'!\" & AD238),0)","v":{"v":125000,"d":"125,000.00"}},{"$f":"IF(Setup!$AH$7<>\"\",INDIRECT(\"'\" & Setup!$AH$7 & \"'!\" & AE238),0) + IF(Setup!$AH$8<>\"\",INDIRECT(\"'\" & Setup!$AH$8 & \"'!\" & AE238),0) + IF(Setup!$AH$9<>\"\",INDIRECT(\"'\" & Setup!$AH$9 & \"'!\" & AE238),0) + IF(Setup!$AH$10<>\"\",INDIRECT(\"'\" & Setup!$AH$10 & \"'!\" & AE238),0) + IF(Setup!$AH$11<>\"\",INDIRECT(\"'\" & Setup!$AH$11 & \"'!\" & AE238),0) + IF(Setup!$AH$12<>\"\",INDIRECT(\"'\" & Setup!$AH$12 & \"'!\" & AE238),0)","v":{"v":127000,"d":"127,000.00"}},{"$f":"IF(AND(P238=0,Q238=0),\"\",IF(P238>0,Q238/P238,Q238))","v":{"v":1.016,"d":"101.60%"}},"",{"$f":"IF(Setup!$AI$7<>\"\",INDIRECT(\"'\" & Setup!$AI$7 & \"'!\" & AD238),0) + IF(Setup!$AI$8<>\"\",INDIRECT(\"'\" & Setup!$AI$8 & \"'!\" & AD238),0) + IF(Setup!$AI$9<>\"\",INDIRECT(\"'\" & Setup!$AI$9 & \"'!\" & AD238),0) + IF(Setup!$AI$10<>\"\",INDIRECT(\"'\" & Setup!$AI$10 & \"'!\" & AD238),0) + IF(Setup!$AI$11<>\"\",INDIRECT(\"'\" & Setup!$AI$11 & \"'!\" & AD238),0) + IF(Setup!$AI$12<>\"\",INDIRECT(\"'\" & Setup!$AI$12 & \"'!\" & AD238),0)","v":{"v":0,"d":"0.00"}},{"$f":"IF(Setup!$AI$7<>\"\",INDIRECT(\"'\" & Setup!$AI$7 & \"'!\" & AE238),0) + IF(Setup!$AI$8<>\"\",INDIRECT(\"'\" & Setup!$AI$8 & \"'!\" & AE238),0) + IF(Setup!$AI$9<>\"\",INDIRECT(\"'\" & Setup!$AI$9 & \"'!\" & AE238),0) + IF(Setup!$AI$10<>\"\",INDIRECT(\"'\" & Setup!$AI$10 & \"'!\" & AE238),0) + IF(Setup!$AI$11<>\"\",INDIRECT(\"'\" & Setup!$AI$11 & \"'!\" & AE238),0) + IF(Setup!$AI$12<>\"\",INDIRECT(\"'\" & Setup!$AI$12 & \"'!\" & AE238),0)","v":{"v":0,"d":"0.00"}},"","",{"$f":"IF(Setup!$AJ$7<>\"\",INDIRECT(\"'\" & Setup!$AJ$7 & \"'!\" & AD238),0) + IF(Setup!$AJ$8<>\"\",INDIRECT(\"'\" & Setup!$AJ$8 & \"'!\" & AD238),0) + IF(Setup!$AJ$9<>\"\",INDIRECT(\"'\" & Setup!$AJ$9 & \"'!\" & AD238),0) + IF(Setup!$AJ$10<>\"\",INDIRECT(\"'\" & Setup!$AJ$10 & \"'!\" & AD238),0) + IF(Setup!$AJ$11<>\"\",INDIRECT(\"'\" & Setup!$AJ$11 & \"'!\" & AD238),0) + IF(Setup!$AJ$12<>\"\",INDIRECT(\"'\" & Setup!$AJ$12 & \"'!\" & AD238),0)","v":0},{"$f":"IF(Setup!$AJ$7<>\"\",INDIRECT(\"'\" & Setup!$AJ$7 & \"'!\" & AE238),0) + IF(Setup!$AJ$8<>\"\",INDIRECT(\"'\" & Setup!$AJ$8 & \"'!\" & AE238),0) + IF(Setup!$AJ$9<>\"\",INDIRECT(\"'\" & Setup!$AJ$9 & \"'!\" & AE238),0) + IF(Setup!$AJ$10<>\"\",INDIRECT(\"'\" & Setup!$AJ$10 & \"'!\" & AE238),0) + IF(Setup!$AJ$11<>\"\",INDIRECT(\"'\" & Setup!$AJ$11 & \"'!\" & AE238),0) + IF(Setup!$AJ$12<>\"\",INDIRECT(\"'\" & Setup!$AJ$12 & \"'!\" & AE238),0)","v":0},"","",{"$f":"Planning!H10","v":"1. YES"},"2Pr68","M26","O26","N26",null,null,{"$f":"IF(Setup!$AG$7<>\"\",INDIRECT(\"'\" & Setup!$AG$7 & \"'!\" & AF238),0) + IF(Setup!$AG$8<>\"\",INDIRECT(\"'\" & Setup!$AG$8 & \"'!\" & AF238),0) + IF(Setup!$AG$9<>\"\",INDIRECT(\"'\" & Setup!$AG$9 & \"'!\" & AF238),0) + IF(Setup!$AG$10<>\"\",INDIRECT(\"'\" & Setup!$AG$10 & \"'!\" & AF238),0) + IF(Setup!$AG$11<>\"\",INDIRECT(\"'\" & Setup!$AG$11 & \"'!\" & AF238),0) + IF(Setup!$AG$12<>\"\",INDIRECT(\"'\" & Setup!$AG$12 & \"'!\" & AF238),0)","v":5000},{"$f":"IF(Setup!$AH$7<>\"\",INDIRECT(\"'\" & Setup!$AH$7 & \"'!\" & AF238),0) + IF(Setup!$AH$8<>\"\",INDIRECT(\"'\" & Setup!$AH$8 & \"'!\" & AF238),0) + IF(Setup!$AH$9<>\"\",INDIRECT(\"'\" & Setup!$AH$9 & \"'!\" & AF238),0) + IF(Setup!$AH$10<>\"\",INDIRECT(\"'\" & Setup!$AH$10 & \"'!\" & AF238),0) + IF(Setup!$AH$11<>\"\",INDIRECT(\"'\" & Setup!$AH$11 & \"'!\" & AF238),0) + IF(Setup!$AH$12<>\"\",INDIRECT(\"'\" & Setup!$AH$12 & \"'!\" & AF238),0)","v":2000},{"$f":"IF(Setup!$AI$7<>\"\",INDIRECT(\"'\" & Setup!$AI$7 & \"'!\" & AF238),0) + IF(Setup!$AI$8<>\"\",INDIRECT(\"'\" & Setup!$AI$8 & \"'!\" & AF238),0) + IF(Setup!$AI$9<>\"\",INDIRECT(\"'\" & Setup!$AI$9 & \"'!\" & AF238),0) + IF(Setup!$AI$10<>\"\",INDIRECT(\"'\" & Setup!$AI$10 & \"'!\" & AF238),0) + IF(Setup!$AI$11<>\"\",INDIRECT(\"'\" & Setup!$AI$11 & \"'!\" & AF238),0) + IF(Setup!$AI$12<>\"\",INDIRECT(\"'\" & Setup!$AI$12 & \"'!\" & AF238),0)","v":0},{"$f":"IF(Setup!$AJ$7<>\"\",INDIRECT(\"'\" & Setup!$AJ$7 & \"'!\" & AF238),0) + IF(Setup!$AJ$8<>\"\",INDIRECT(\"'\" & Setup!$AJ$8 & \"'!\" & AF238),0) + IF(Setup!$AJ$9<>\"\",INDIRECT(\"'\" & Setup!$AJ$9 & \"'!\" & AF238),0) + IF(Setup!$AJ$10<>\"\",INDIRECT(\"'\" & Setup!$AJ$10 & \"'!\" & AF238),0) + IF(Setup!$AJ$11<>\"\",INDIRECT(\"'\" & Setup!$AJ$11 & \"'!\" & AF238),0) + IF(Setup!$AJ$12<>\"\",INDIRECT(\"'\" & Setup!$AJ$12 & \"'!\" & AF238),0)","v":0},null,"2",{"$nulls":30},0,{"$f":"IF(Setup!$AH$7=\"\",0,INDIRECT(\"'\" & Setup!$AH$7 & \"'!\" & AF238))","v":2000},{"$f":"IF(Setup!$AI$7=\"\",0,INDIRECT(\"'\" & Setup!$AI$7 & \"'!\" & AF238))","v":0},{"$f":"IF(Setup!$AJ$7=\"\",0,INDIRECT(\"'\" & Setup!$AJ$7 & \"'!\" & AF238))","v":0}]
[{"$f":"Planning!A11","v":"I003"},{"$f":"Planning!B11","v":"3. Activity: Non-Contributing"},{"$f":"Planning!C11","v":"Pr68"},{"$f":"Planning!D11","v":1.3},{"$f":"Planning!E11","v":"Communication materials produced to educate HIV+ patients about HIV treatment (Migrants and Sexual Workers). \n\n"},{"$f":"Planning!G11","v":"10. Communication material and publications"},1,{"v":4200,"d":"4,200.00"},{"v":4200,"d":"4,200.00"},{"v":1,"d":"100.00%"},"",{"$f":"IF(Setup!$AG$7<>\"\",INDIRECT(\"'\" & Setup!$AG$7 & \"'!\" & AD239),0) + IF(Setup!$AG$8<>\"\",INDIRECT(\"'\" & Setup!$AG$8 & \"'!\" & AD239),0) + IF(Setup!$AG$9<>\"\",INDIRECT(\"'\" & Setup!$AG$9 & \"'!\" & AD239),0) + IF(Setup!$AG$10<>\"\",INDIRECT(\"'\" & Setup!$AG$10 & \"'!\" & AD239),0) + IF(Setup!$AG$11<>\"\",INDIRECT(\"'\" & Setup!$AG$11 & \"'!\" & AD239),0) + IF(Setup!$AG$12<>\"\",INDIRECT(\"'\" & Setup!$AG$12 & \"'!\" & AD239),0)","v":{"v":2100,"d":"2,100.00"}},{"$f":"IF(Setup!$AG$7<>\"\",INDIRECT(\"'\" & Setup!$AG$7 & \"'!\" & AE239),0) + IF(Setup!$AG$8<>\"\",INDIRECT(\"'\" & Setup!$AG$8 & \"'!\" & AE239),0) + IF(Setup!$AG$9<>\"\",INDIRECT(\"'\" & Setup!$AG$9 & \"'!\" & AE239),0) + IF(Setup!$AG$10<>\"\",INDIRECT(\"'\" & Setup!$AG$10 & \"'!\" & AE239),0) + IF(Setup!$AG$11<>\"\",INDIRECT(\"'\" & Setup!$AG$11 & \"'!\" & AE239),0) + IF(Setup!$AG$12<>\"\",INDIRECT(\"'\" & Setup!$AG$12 & \"'!\" & AE239),0)","v":{"v":2100,"d":"2,100.00"}},{"v":1,"d":"100.00%"},"",{"$f":"IF(Setup!$AH$7<>\"\",INDIRECT(\"'\" & Setup!$AH$7 & \"'!\" & AD239),0) + IF(Setup!$AH$8<>\"\",INDIRECT(\"'\" & Setup!$AH$8 & \"'!\" & AD239),0) + IF(Setup!$AH$9<>\"\",INDIRECT(\"'\" & Setup!$AH$9 & \"'!\" & AD239),0) + IF(Setup!$AH$10<>\"\",INDIRECT(\"'\" & Setup!$AH$10 & \"'!\" & AD239),0) + IF(Setup!$AH$11<>\"\",INDIRECT(\"'\" & Setup!$AH$11 & \"'!\" & AD239),0) + IF(Setup!$AH$12<>\"\",INDIRECT(\"'\" & Setup!$AH$12 & \"'!\" & AD239),0)","v":{"v":2100,"d":"2,100.00"}},{"$f":"IF(Setup!$AH$7<>\"\",INDIRECT(\"'\" & Setup!$AH$7 & \"'!\" & AE239),0) + IF(Setup!$AH$8<>\"\",INDIRECT(\"'\" & Setup!$AH$8 & \"'!\" & AE239),0) + IF(Setup!$AH$9<>\"\",INDIRECT(\"'\" & Setup!$AH$9 & \"'!\" & AE239),0) + IF(Setup!$AH$10<>\"\",INDIRECT(\"'\" & Setup!$AH$10 & \"'!\" & AE239),0) + IF(Setup!$AH$11<>\"\",INDIRECT(\"'\" & Setup!$AH$11 & \"'!\" & AE239),0) + IF(Setup!$AH$12<>\"\",INDIRECT(\"'\" & Setup!$AH$12 & \"'!\" & AE239),0)","v":{"v":2100,"d":"2,100.00"}},{"v":1,"d":"100.00%"},"",{"$f":"IF(Setup!$AI$7<>\"\",INDIRECT(\"'\" & Setup!$AI$7 & \"'!\" & AD239),0) + IF(Setup!$AI$8<>\"\",INDIRECT(\"'\" & Setup!$AI$8 & \"'!\" & AD239),0) + IF(Setup!$AI$9<>\"\",INDIRECT(\"'\" & Setup!$AI$9 & \"'!\" & AD239),0) + IF(Setup!$AI$10<>\"\",INDIRECT(\"'\" & Setup!$AI$10 & \"'!\" & AD239),0) + IF(Setup!$AI$11<>\"\",INDIRECT(\"'\" & Setup!$AI$11 & \"'!\" & AD239),0) + IF(Setup!$AI$12<>\"\",INDIRECT(\"'\" & Setup!$AI$12 & \"'!\" & AD239),0)","v":{"v":0,"d":"0.00"}},{"$f":"IF(Setup!$AI$7<>\"\",INDIRECT(\"'\" & Setup!$AI$7 & \"'!\" & AE239),0) + IF(Setup!$AI$8<>\"\",INDIRECT(\"'\" & Setup!$AI$8 & \"'!\" & AE239),0) + IF(Setup!$AI$9<>\"\",INDIRECT(\"'\" & Setup!$AI$9 & \"'!\" & AE239),0) + IF(Setup!$AI$10<>\"\",INDIRECT(\"'\" & Setup!$AI$10 & \"'!\" & AE239),0) + IF(Setup!$AI$11<>\"\",INDIRECT(\"'\" & Setup!$AI$11 & \"'!\" & AE239),0) + IF(Setup!$AI$12<>\"\",INDIRECT(\"'\" & Setup!$AI$12 & \"'!\" & AE239),0)","v":{"v":0,"d":"0.00"}},"","",{"$f":"IF(Setup!$AJ$7<>\"\",INDIRECT(\"'\" & Setup!$AJ$7 & \"'!\" & AD239),0) + IF(Setup!$AJ$8<>\"\",INDIRECT(\"'\" & Setup!$AJ$8 & \"'!\" & AD239),0) + IF(Setup!$AJ$9<>\"\",INDIRECT(\"'\" & Setup!$AJ$9 & \"'!\" & AD239),0) + IF(Setup!$AJ$10<>\"\",INDIRECT(\"'\" & Setup!$AJ$10 & \"'!\" & AD239),0) + IF(Setup!$AJ$11<>\"\",INDIRECT(\"'\" & Setup!$AJ$11 & \"'!\" & AD239),0) + IF(Setup!$AJ$12<>\"\",INDIRECT(\"'\" & Setup!$AJ$12 & \"'!\" & AD239),0)","v":0},{"$f":"IF(Setup!$AJ$7<>\"\",INDIRECT(\"'\" & Setup!$AJ$7 & \"'!\" & AE239),0) + IF(Setup!$AJ$8<>\"\",INDIRECT(\"'\" & Setup!$AJ$8 & \"'!\" & AE239),0) + IF(Setup!$AJ$9<>\"\",INDIRECT(\"'\" & Setup!$AJ$9 & \"'!\" & AE239),0) + IF(Setup!$AJ$10<>\"\",INDIRECT(\"'\" & Setup!$AJ$10 & \"'!\" & AE239),0) + IF(Setup!$AJ$11<>\"\",INDIRECT(\"'\" & Setup!$AJ$11 & \"'!\" & AE239),0) + IF(Setup!$AJ$12<>\"\",INDIRECT(\"'\" & Setup!$AJ$12 & \"'!\" & AE239),0)","v":0},"","",{"$f":"Planning!H11","v":"2. NO"},"3Pr68","M27","O27","N27",null,null,{"$f":"IF(Setup!$AG$7<>\"\",INDIRECT(\"'\" & Setup!$AG$7 & \"'!\" & AF239),0) + IF(Setup!$AG$8<>\"\",INDIRECT(\"'\" & Setup!$AG$8 & \"'!\" & AF239),0) + IF(Setup!$AG$9<>\"\",INDIRECT(\"'\" & Setup!$AG$9 & \"'!\" & AF239),0) + IF(Setup!$AG$10<>\"\",INDIRECT(\"'\" & Setup!$AG$10 & \"'!\" & AF239),0) + IF(Setup!$AG$11<>\"\",INDIRECT(\"'\" & Setup!$AG$11 & \"'!\" & AF239),0) + IF(Setup!$AG$12<>\"\",INDIRECT(\"'\" & Setup!$AG$12 & \"'!\" & AF239),0)","v":120},{"$f":"IF(Setup!$AH$7<>\"\",INDIRECT(\"'\" & Setup!$AH$7 & \"'!\" & AF239),0) + IF(Setup!$AH$8<>\"\",INDIRECT(\"'\" & Setup!$AH$8 & \"'!\" & AF239),0) + IF(Setup!$AH$9<>\"\",INDIRECT(\"'\" & Setup!$AH$9 & \"'!\" & AF239),0) + IF(Setup!$AH$10<>\"\",INDIRECT(\"'\" & Setup!$AH$10 & \"'!\" & AF239),0) + IF(Setup!$AH$11<>\"\",INDIRECT(\"'\" & Setup!$AH$11 & \"'!\" & AF239),0) + IF(Setup!$AH$12<>\"\",INDIRECT(\"'\" & Setup!$AH$12 & \"'!\" & AF239),0)","v":10},{"$f":"IF(Setup!$AI$7<>\"\",INDIRECT(\"'\" & Setup!$AI$7 & \"'!\" & AF239),0) + IF(Setup!$AI$8<>\"\",INDIRECT(\"'\" & Setup!$AI$8 & \"'!\" & AF239),0) + IF(Setup!$AI$9<>\"\",INDIRECT(\"'\" & Setup!$AI$9 & \"'!\" & AF239),0) + IF(Setup!$AI$10<>\"\",INDIRECT(\"'\" & Setup!$AI$10 & \"'!\" & AF239),0) + IF(Setup!$AI$11<>\"\",INDIRECT(\"'\" & Setup!$AI$11 & \"'!\" & AF239),0) + IF(Setup!$AI$12<>\"\",INDIRECT(\"'\" & Setup!$AI$12 & \"'!\" & AF239),0)","v":0},{"$f":"IF(Setup!$AJ$7<>\"\",INDIRECT(\"'\" & Setup!$AJ$7 & \"'!\" & AF239),0) + IF(Setup!$AJ$8<>\"\",INDIRECT(\"'\" & Setup!$AJ$8 & \"'!\" & AF239),0) + IF(Setup!$AJ$9<>\"\",INDIRECT(\"'\" & Setup!$AJ$9 & \"'!\" & AF239),0) + IF(Setup!$AJ$10<>\"\",INDIRECT(\"'\" & Setup!$AJ$10 & \"'!\" & AF239),0) + IF(Setup!$AJ$11<>\"\",INDIRECT(\"'\" & Setup!$AJ$11 & \"'!\" & AF239),0) + IF(Setup!$AJ$12<>\"\",INDIRECT(\"'\" & Setup!$AJ$12 & \"'!\" & AF239),0)","v":0},null,"2",{"$nulls":30},0,{"$f":"IF(Setup!$AH$7=\"\",0,INDIRECT(\"'\" & Setup!$AH$7 & \"'!\" & AF239))","v":0},{"$f":"IF(Setup!$AI$7=\"\",0,INDIRECT(\"'\" & Setup!$AI$7 & \"'!\" & AF239))","v":0},{"$f":"IF(Setup!$AJ$7=\"\",0,INDIRECT(\"'\" & Setup!$AJ$7 & \"'!\" & AF239))","v":0}]
[{"$f":"Planning!A12","v":"I004"},{"$f":"Planning!B12","v":"3. Activity: Non-Contributing"},{"$f":"Planning!C12","v":"Pr68"},{"$f":"Planning!D12","v":1.4},{"$f":"Planning!E12","v":"Supervisory visits to verify the appropriate application of testing and treatment protocols at centers. "},{"$f":"Planning!G12","v":"11. Programme administration costs"},1,{"v":56025,"d":"56,025.00"},{"v":56025,"d":"56,025.00"},{"v":1,"d":"100.00%"},"",{"$f":"IF(Setup!$AG$7<>\"\",INDIRECT(\"'\" & Setup!$AG$7 & \"'!\" & AD240),0) + IF(Setup!$AG$8<>\"\",INDIRECT(\"'\" & Setup!$AG$8 & \"'!\" & AD240),0) + IF(Setup!$AG$9<>\"\",INDIRECT(\"'\" & Setup!$AG$9 & \"'!\" & AD240),0) + IF(Setup!$AG$10<>\"\",INDIRECT(\"'\" & Setup!$AG$10 & \"'!\" & AD240),0) + IF(Setup!$AG$11<>\"\",INDIRECT(\"'\" & Setup!$AG$11 & \"'!\" & AD240),0) + IF(Setup!$AG$12<>\"\",INDIRECT(\"'\" & Setup!$AG$12 & \"'!\" & AD240),0)","v":{"v":42525,"d":"42,525.00"}},{"$f":"IF(Setup!$AG$7<>\"\",INDIRECT(\"'\" & Setup!$AG$7 & \"'!\" & AE240),0) + IF(Setup!$AG$8<>\"\",INDIRECT(\"'\" & Setup!$AG$8 & \"'!\" & AE240),0) + IF(Setup!$AG$9<>\"\",INDIRECT(\"'\" & Setup!$AG$9 & \"'!\" & AE240),0) + IF(Setup!$AG$10<>\"\",INDIRECT(\"'\" & Setup!$AG$10 & \"'!\" & AE240),0) + IF(Setup!$AG$11<>\"\",INDIRECT(\"'\" & Setup!$AG$11 & \"'!\" & AE240),0) + IF(Setup!$AG$12<>\"\",INDIRECT(\"'\" & Setup!$AG$12 & \"'!\" & AE240),0)","v":{"v":42525,"d":"42,525.00"}},{"v":1,"d":"100.00%"},"",{"$f":"IF(Setup!$AH$7<>\"\",INDIRECT(\"'\" & Setup!$AH$7 & \"'!\" & AD240),0) + IF(Setup!$AH$8<>\"\",INDIRECT(\"'\" & Setup!$AH$8 & \"'!\" & AD240),0) + IF(Setup!$AH$9<>\"\",INDIRECT(\"'\" & Setup!$AH$9 & \"'!\" & AD240),0) + IF(Setup!$AH$10<>\"\",INDIRECT(\"'\" & Setup!$AH$10 & \"'!\" & AD240),0) + IF(Setup!$AH$11<>\"\",INDIRECT(\"'\" & Setup!$AH$11 & \"'!\" & AD240),0) + IF(Setup!$AH$12<>\"\",INDIRECT(\"'\" & Setup!$AH$12 & \"'!\" & AD240),0)","v":{"v":13500,"d":"13,500.00"}},{"$f":"IF(Setup!$AH$7<>\"\",INDIRECT(\"'\" & Setup!$AH$7 & \"'!\" & AE240),0) + IF(Setup!$AH$8<>\"\",INDIRECT(\"'\" & Setup!$AH$8 & \"'!\" & AE240),0) + IF(Setup!$AH$9<>\"\",INDIRECT(\"'\" & Setup!$AH$9 & \"'!\" & AE240),0) + IF(Setup!$AH$10<>\"\",INDIRECT(\"'\" & Setup!$AH$10 & \"'!\" & AE240),0) + IF(Setup!$AH$11<>\"\",INDIRECT(\"'\" & Setup!$AH$11 & \"'!\" & AE240),0) + IF(Setup!$AH$12<>\"\",INDIRECT(\"'\" & Setup!$AH$12 & \"'!\" & AE240),0)","v":{"v":13500,"d":"13,500.00"}},{"v":1,"d":"100.00%"},"",{"$f":"IF(Setup!$AI$7<>\"\",INDIRECT(\"'\" & Setup!$AI$7 & \"'!\" & AD240),0) + IF(Setup!$AI$8<>\"\",INDIRECT(\"'\" & Setup!$AI$8 & \"'!\" & AD240),0) + IF(Setup!$AI$9<>\"\",INDIRECT(\"'\" & Setup!$AI$9 & \"'!\" & AD240),0) + IF(Setup!$AI$10<>\"\",INDIRECT(\"'\" & Setup!$AI$10 & \"'!\" & AD240),0) + IF(Setup!$AI$11<>\"\",INDIRECT(\"'\" & Setup!$AI$11 & \"'!\" & AD240),0) + IF(Setup!$AI$12<>\"\",INDIRECT(\"'\" & Setup!$AI$12 & \"'!\" & AD240),0)","v":{"v":0,"d":"0.00"}},{"$f":"IF(Setup!$AI$7<>\"\",INDIRECT(\"'\" & Setup!$AI$7 & \"'!\" & AE240),0) + IF(Setup!$AI$8<>\"\",INDIRECT(\"'\" & Setup!$AI$8 & \"'!\" & AE240),0) + IF(Setup!$AI$9<>\"\",INDIRECT(\"'\" & Setup!$AI$9 & \"'!\" & AE240),0) + IF(Setup!$AI$10<>\"\",INDIRECT(\"'\" & Setup!$AI$10 & \"'!\" & AE240),0) + IF(Setup!$AI$11<>\"\",INDIRECT(\"'\" & Setup!$AI$11 & \"'!\" & AE240),0) + IF(Setup!$AI$12<>\"\",INDIRECT(\"'\" & Setup!$AI$12 & \"'!\" & AE240),0)","v":{"v":0,"d":"0.00"}},"","",{"$f":"IF(Setup!$AJ$7<>\"\",INDIRECT(\"'\" & Setup!$AJ$7 & \"'!\" & AD240),0) + IF(Setup!$AJ$8<>\"\",INDIRECT(\"'\" & Setup!$AJ$8 & \"'!\" & AD240),0) + IF(Setup!$AJ$9<>\"\",INDIRECT(\"'\" & Setup!$AJ$9 & \"'!\" & AD240),0) + IF(Setup!$AJ$10<>\"\",INDIRECT(\"'\" & Setup!$AJ$10 & \"'!\" & AD240),0) + IF(Setup!$AJ$11<>\"\",INDIRECT(\"'\" & Setup!$AJ$11 & \"'!\" & AD240),0) + IF(Setup!$AJ$12<>\"\",INDIRECT(\"'\" & Setup!$AJ$12 & \"'!\" & AD240),0)","v":0},{"$f":"IF(Setup!$AJ$7<>\"\",INDIRECT(\"'\" & Setup!$AJ$7 & \"'!\" & AE240),0) + IF(Setup!$AJ$8<>\"\",INDIRECT(\"'\" & Setup!$AJ$8 & \"'!\" & AE240),0) + IF(Setup!$AJ$9<>\"\",INDIRECT(\"'\" & Setup!$AJ$9 & \"'!\" & AE240),0) + IF(Setup!$AJ$10<>\"\",INDIRECT(\"'\" & Setup!$AJ$10 & \"'!\" & AE240),0) + IF(Setup!$AJ$11<>\"\",INDIRECT(\"'\" & Setup!$AJ$11 & \"'!\" & AE240),0) + IF(Setup!$AJ$12<>\"\",INDIRECT(\"'\" & Setup!$AJ$12 & \"'!\" & AE240),0)","v":0},"","",{"$f":"Planning!H12","v":"2. NO"},"3Pr68","M28","O28","N28",null,null,{"$f":"IF(Setup!$AG$7<>\"\",INDIRECT(\"'\" & Setup!$AG$7 & \"'!\" & AF240),0) + IF(Setup!$AG$8<>\"\",INDIRECT(\"'\" & Setup!$AG$8 & \"'!\" & AF240),0) + IF(Setup!$AG$9<>\"\",INDIRECT(\"'\" & Setup!$AG$9 & \"'!\" & AF240),0) + IF(Setup!$AG$10<>\"\",INDIRECT(\"'\" & Setup!$AG$10 & \"'!\" & AF240),0) + IF(Setup!$AG$11<>\"\",INDIRECT(\"'\" & Setup!$AG$11 & \"'!\" & AF240),0) + IF(Setup!$AG$12<>\"\",INDIRECT(\"'\" & Setup!$AG$12 & \"'!\" & AF240),0)","v":1550},{"$f":"IF(Setup!$AH$7<>\"\",INDIRECT(\"'\" & Setup!$AH$7 & \"'!\" & AF240),0) + IF(Setup!$AH$8<>\"\",INDIRECT(\"'\" & Setup!$AH$8 & \"'!\" & AF240),0) + IF(Setup!$AH$9<>\"\",INDIRECT(\"'\" & Setup!$AH$9 & \"'!\" & AF240),0) + IF(Setup!$AH$10<>\"\",INDIRECT(\"'\" & Setup!$AH$10 & \"'!\" & AF240),0) + IF(Setup!$AH$11<>\"\",INDIRECT(\"'\" & Setup!$AH$11 & \"'!\" & AF240),0) + IF(Setup!$AH$12<>\"\",INDIRECT(\"'\" & Setup!$AH$12 & \"'!\" & AF240),0)","v":0},{"$f":"IF(Setup!$AI$7<>\"\",INDIRECT(\"'\" & Setup!$AI$7 & \"'!\" & AF240),0) + IF(Setup!$AI$8<>\"\",INDIRECT(\"'\" & Setup!$AI$8 & \"'!\" & AF240),0) + IF(Setup!$AI$9<>\"\",INDIRECT(\"'\" & Setup!$AI$9 & \"'!\" & AF240),0) + IF(Setup!$AI$10<>\"\",INDIRECT(\"'\" & Setup!$AI$10 & \"'!\" & AF240),0) + IF(Setup!$AI$11<>\"\",INDIRECT(\"'\" & Setup!$AI$11 & \"'!\" & AF240),0) + IF(Setup!$AI$12<>\"\",INDIRECT(\"'\" & Setup!$AI$12 & \"'!\" & AF240),0)","v":0},{"$f":"IF(Setup!$AJ$7<>\"\",INDIRECT(\"'\" & Setup!$AJ$7 & \"'!\" & AF240),0) + IF(Setup!$AJ$8<>\"\",INDIRECT(\"'\" & Setup!$AJ$8 & \"'!\" & AF240),0) + IF(Setup!$AJ$9<>\"\",INDIRECT(\"'\" & Setup!$AJ$9 & \"'!\" & AF240),0) + IF(Setup!$AJ$10<>\"\",INDIRECT(\"'\" & Setup!$AJ$10 & \"'!\" & AF240),0) + IF(Setup!$AJ$11<>\"\",INDIRECT(\"'\" & Setup!$AJ$11 & \"'!\" & AF240),0) + IF(Setup!$AJ$12<>\"\",INDIRECT(\"'\" & Setup!$AJ$12 & \"'!\" & AF240),0)","v":0},null,"2",{"$nulls":30},0,{"$f":"IF(Setup!$AH$7=\"\",0,INDIRECT(\"'\" & Setup!$AH$7 & \"'!\" & AF240))","v":0},{"$f":"IF(Setup!$AI$7=\"\",0,INDIRECT(\"'\" & Setup!$AI$7 & \"'!\" & AF240))","v":0},{"$f":"IF(Setup!$AJ$7=\"\",0,INDIRECT(\"'\" & Setup!$AJ$7 & \"'!\" & AF240))","v":0}]
[{"$f":"Planning!A13","v":"I005"},{"$f":"Planning!B13","v":"1. Indicator"},{"$f":"Planning!C13","v":"Pr72"},{"$f":"Planning!D13","v":2},{"$f":"Planning!E13","v":"[Pr72] # new HIV+ enrolled in care services Target [3. Non-Cumulative]"},{"$f":"Planning!G13","v":0},1,{"v":167400,"d":"167,400.00"},{"v":167400,"d":"167,400.00"},{"v":1,"d":"100.00%"},1,{"$f":"IF(Setup!$AG$7<>\"\",INDIRECT(\"'\" & Setup!$AG$7 & \"'!\" & AD241),0) + IF(Setup!$AG$8<>\"\",INDIRECT(\"'\" & Setup!$AG$8 & \"'!\" & AD241),0) + IF(Setup!$AG$9<>\"\",INDIRECT(\"'\" & Setup!$AG$9 & \"'!\" & AD241),0) + IF(Setup!$AG$10<>\"\",INDIRECT(\"'\" & Setup!$AG$10 & \"'!\" & AD241),0) + IF(Setup!$AG$11<>\"\",INDIRECT(\"'\" & Setup!$AG$11 & \"'!\" & AD241),0) + IF(Setup!$AG$12<>\"\",INDIRECT(\"'\" & Setup!$AG$12 & \"'!\" & AD241),0)","v":{"v":83700,"d":"83,700.00"}},{"$f":"IF(Setup!$AG$7<>\"\",INDIRECT(\"'\" & Setup!$AG$7 & \"'!\" & AE241),0) + IF(Setup!$AG$8<>\"\",INDIRECT(\"'\" & Setup!$AG$8 & \"'!\" & AE241),0) + IF(Setup!$AG$9<>\"\",INDIRECT(\"'\" & Setup!$AG$9 & \"'!\" & AE241),0) + IF(Setup!$AG$10<>\"\",INDIRECT(\"'\" & Setup!$AG$10 & \"'!\" & AE241),0) + IF(Setup!$AG$11<>\"\",INDIRECT(\"'\" & Setup!$AG$11 & \"'!\" & AE241),0) + IF(Setup!$AG$12<>\"\",INDIRECT(\"'\" & Setup!$AG$12 & \"'!\" & AE241),0)","v":{"v":83000,"d":"83,000.00"}},{"v":0.991636798088411,"d":"99.16%"},0.991636798088411,{"$f":"IF(Setup!$AH$7<>\"\",INDIRECT(\"'\" & Setup!$AH$7 & \"'!\" & AD241),0) + IF(Setup!$AH$8<>\"\",INDIRECT(\"'\" & Setup!$AH$8 & \"'!\" & AD241),0) + IF(Setup!$AH$9<>\"\",INDIRECT(\"'\" & Setup!$AH$9 & \"'!\" & AD241),0) + IF(Setup!$AH$10<>\"\",INDIRECT(\"'\" & Setup!$AH$10 & \"'!\" & AD241),0) + IF(Setup!$AH$11<>\"\",INDIRECT(\"'\" & Setup!$AH$11 & \"'!\" & AD241),0) + IF(Setup!$AH$12<>\"\",INDIRECT(\"'\" & Setup!$AH$12 & \"'!\" & AD241),0)","v":{"v":83700,"d":"83,700.00"}},{"$f":"IF(Setup!$AH$7<>\"\",INDIRECT(\"'\" & Setup!$AH$7 & \"'!\" & AE241),0) + IF(Setup!$AH$8<>\"\",INDIRECT(\"'\" & Setup!$AH$8 & \"'!\" & AE241),0) + IF(Setup!$AH$9<>\"\",INDIRECT(\"'\" & Setup!$AH$9 & \"'!\" & AE241),0) + IF(Setup!$AH$10<>\"\",INDIRECT(\"'\" & Setup!$AH$10 & \"'!\" & AE241),0) + IF(Setup!$AH$11<>\"\",INDIRECT(\"'\" & Setup!$AH$11 & \"'!\" & AE241),0) + IF(Setup!$AH$12<>\"\",INDIRECT(\"'\" & Setup!$AH$12 & \"'!\" & AE241),0)","v":{"v":84400,"d":"84,400.00"}},{"v":1.008363201911589,"d":"100.84%"},1.008363201911589,{"$f":"IF(Setup!$AI$7<>\"\",INDIRECT(\"'\" & Setup!$AI$7 & \"'!\" & AD241),0) + IF(Setup!$AI$8<>\"\",INDIRECT(\"'\" & Setup!$AI$8 & \"'!\" & AD241),0) + IF(Setup!$AI$9<>\"\",INDIRECT(\"'\" & Setup!$AI$9 & \"'!\" & AD241),0) + IF(Setup!$AI$10<>\"\",INDIRECT(\"'\" & Setup!$AI$10 & \"'!\" & AD241),0) + IF(Setup!$AI$11<>\"\",INDIRECT(\"'\" & Setup!$AI$11 & \"'!\" & AD241),0) + IF(Setup!$AI$12<>\"\",INDIRECT(\"'\" & Setup!$AI$12 & \"'!\" & AD241),0)","v":{"v":0,"d":"0.00"}},{"$f":"IF(Setup!$AI$7<>\"\",INDIRECT(\"'\" & Setup!$AI$7 & \"'!\" & AE241),0) + IF(Setup!$AI$8<>\"\",INDIRECT(\"'\" & Setup!$AI$8 & \"'!\" & AE241),0) + IF(Setup!$AI$9<>\"\",INDIRECT(\"'\" & Setup!$AI$9 & \"'!\" & AE241),0) + IF(Setup!$AI$10<>\"\",INDIRECT(\"'\" & Setup!$AI$10 & \"'!\" & AE241),0) + IF(Setup!$AI$11<>\"\",INDIRECT(\"'\" & Setup!$AI$11 & \"'!\" & AE241),0) + IF(Setup!$AI$12<>\"\",INDIRECT(\"'\" & Setup!$AI$12 & \"'!\" & AE241),0)","v":{"v":0,"d":"0.00"}},"","",{"$f":"IF(Setup!$AJ$7<>\"\",INDIRECT(\"'\" & Setup!$AJ$7 & \"'!\" & AD241),0) + IF(Setup!$AJ$8<>\"\",INDIRECT(\"'\" & Setup!$AJ$8 & \"'!\" & AD241),0) + IF(Setup!$AJ$9<>\"\",INDIRECT(\"'\" & Setup!$AJ$9 & \"'!\" & AD241),0) + IF(Setup!$AJ$10<>\"\",INDIRECT(\"'\" & Setup!$AJ$10 & \"'!\" & AD241),0) + IF(Setup!$AJ$11<>\"\",INDIRECT(\"'\" & Setup!$AJ$11 & \"'!\" & AD241),0) + IF(Setup!$AJ$12<>\"\",INDIRECT(\"'\" & Setup!$AJ$12 & \"'!\" & AD241),0)","v":0},{"$f":"IF(Setup!$AJ$7<>\"\",INDIRECT(\"'\" & Setup!$AJ$7 & \"'!\" & AE241),0) + IF(Setup!$AJ$8<>\"\",INDIRECT(\"'\" & Setup!$AJ$8 & \"'!\" & AE241),0) + IF(Setup!$AJ$9<>\"\",INDIRECT(\"'\" & Setup!$AJ$9 & \"'!\" & AE241),0) + IF(Setup!$AJ$10<>\"\",INDIRECT(\"'\" & Setup!$AJ$10 & \"'!\" & AE241),0) + IF(Setup!$AJ$11<>\"\",INDIRECT(\"'\" & Setup!$AJ$11 & \"'!\" & AE241),0) + IF(Setup!$AJ$12<>\"\",INDIRECT(\"'\" & Setup!$AJ$12 & \"'!\" & AE241),0)","v":0},"","",{"$f":"Planning!H13","v":0},"1Pr72","M29","O29","N29",null,null,{"$f":"IF(Setup!$AG$7<>\"\",INDIRECT(\"'\" & Setup!$AG$7 & \"'!\" & AF241),0) + IF(Setup!$AG$8<>\"\",INDIRECT(\"'\" & Setup!$AG$8 & \"'!\" & AF241),0) + IF(Setup!$AG$9<>\"\",INDIRECT(\"'\" & Setup!$AG$9 & \"'!\" & AF241),0) + IF(Setup!$AG$10<>\"\",INDIRECT(\"'\" & Setup!$AG$10 & \"'!\" & AF241),0) + IF(Setup!$AG$11<>\"\",INDIRECT(\"'\" & Setup!$AG$11 & \"'!\" & AF241),0) + IF(Setup!$AG$12<>\"\",INDIRECT(\"'\" & Setup!$AG$12 & \"'!\" & AF241),0)","v":5700},{"$f":"IF(Setup!$AH$7<>\"\",INDIRECT(\"'\" & Setup!$AH$7 & \"'!\" & AF241),0) + IF(Setup!$AH$8<>\"\",INDIRECT(\"'\" & Setup!$AH$8 & \"'!\" & AF241),0) + IF(Setup!$AH$9<>\"\",INDIRECT(\"'\" & Setup!$AH$9 & \"'!\" & AF241),0) + IF(Setup!$AH$10<>\"\",INDIRECT(\"'\" & Setup!$AH$10 & \"'!\" & AF241),0) + IF(Setup!$AH$11<>\"\",INDIRECT(\"'\" & Setup!$AH$11 & \"'!\" & AF241),0) + IF(Setup!$AH$12<>\"\",INDIRECT(\"'\" & Setup!$AH$12 & \"'!\" & AF241),0)","v":4800},{"$f":"IF(Setup!$AI$7<>\"\",INDIRECT(\"'\" & Setup!$AI$7 & \"'!\" & AF241),0) + IF(Setup!$AI$8<>\"\",INDIRECT(\"'\" & Setup!$AI$8 & \"'!\" & AF241),0) + IF(Setup!$AI$9<>\"\",INDIRECT(\"'\" & Setup!$AI$9 & \"'!\" & AF241),0) + IF(Setup!$AI$10<>\"\",INDIRECT(\"'\" & Setup!$AI$10 & \"'!\" & AF241),0) + IF(Setup!$AI$11<>\"\",INDIRECT(\"'\" & Setup!$AI$11 & \"'!\" & AF241),0) + IF(Setup!$AI$12<>\"\",INDIRECT(\"'\" & Setup!$AI$12 & \"'!\" & AF241),0)","v":0},{"$f":"IF(Setup!$AJ$7<>\"\",INDIRECT(\"'\" & Setup!$AJ$7 & \"'!\" & AF241),0) + IF(Setup!$AJ$8<>\"\",INDIRECT(\"'\" & Setup!$AJ$8 & \"'!\" & AF241),0) + IF(Setup!$AJ$9<>\"\",INDIRECT(\"'\" & Setup!$AJ$9 & \"'!\" & AF241),0) + IF(Setup!$AJ$10<>\"\",INDIRECT(\"'\" & Setup!$AJ$10 & \"'!\" & AF241),0) + IF(Setup!$AJ$11<>\"\",INDIRECT(\"'\" & Setup!$AJ$11 & \"'!\" & AF241),0) + IF(Setup!$AJ$12<>\"\",INDIRECT(\"'\" & Setup!$AJ$12 & \"'!\" & AF241),0)","v":0},null,"1",{"$nulls":30},0,{"$f":"IF(Setup!$AH$7=\"\",0,INDIRECT(\"'\" & Setup!$AH$7 & \"'!\" & AF241))","v":700},{"$f":"IF(Setup!$AI$7=\"\",0,INDIRECT(\"'\" & Setup!$AI$7 & \"'!\" & AF241))","v":0},{"$f":"IF(Setup!$AJ$7=\"\",0,INDIRECT(\"'\" & Setup!$AJ$7 & \"'!\" & AF241))","v":0}]
[{"$f":"Planning!A14","v":"I006"},{"$f":"Planning!B14","v":"2. Activity: Contributing"},{"$f":"Planning!C14","v":"Pr72"},{"$f":"Planning!D14","v":2.1},{"$f":"Planning!E14","v":"Enrollment of  newly diagnosed HIV+ patients for home visits to monitor use of ARV."},{"$f":"Planning!G14","v":"12. Living support to client/ target population "},1,{"v":167400,"d":"167,400.00"},{"v":167400,"d":"167,400.00"},{"v":1,"d":"100.00%"},"",{"$f":"IF(Setup!$AG$7<>\"\",INDIRECT(\"'\" & Setup!$AG$7 & \"'!\" & AD242),0) + IF(Setup!$AG$8<>\"\",INDIRECT(\"'\" & Setup!$AG$8 & \"'!\" & AD242),0) + IF(Setup!$AG$9<>\"\",INDIRECT(\"'\" & Setup!$AG$9 & \"'!\" & AD242),0) + IF(Setup!$AG$10<>\"\",INDIRECT(\"'\" & Setup!$AG$10 & \"'!\" & AD242),0) + IF(Setup!$AG$11<>\"\",INDIRECT(\"'\" & Setup!$AG$11 & \"'!\" & AD242),0) + IF(Setup!$AG$12<>\"\",INDIRECT(\"'\" & Setup!$AG$12 & \"'!\" & AD242),0)","v":{"v":83700,"d":"83,700.00"}},{"$f":"IF(Setup!$AG$7<>\"\",INDIRECT(\"'\" & Setup!$AG$7 & \"'!\" & AE242),0) + IF(Setup!$AG$8<>\"\",INDIRECT(\"'\" & Setup!$AG$8 & \"'!\" & AE242),0) + IF(Setup!$AG$9<>\"\",INDIRECT(\"'\" & Setup!$AG$9 & \"'!\" & AE242),0) + IF(Setup!$AG$10<>\"\",INDIRECT(\"'\" & Setup!$AG$10 & \"'!\" & AE242),0) + IF(Setup!$AG$11<>\"\",INDIRECT(\"'\" & Setup!$AG$11 & \"'!\" & AE242),0) + IF(Setup!$AG$12<>\"\",INDIRECT(\"'\" & Setup!$AG$12 & \"'!\" & AE242),0)","v":{"v":83000,"d":"83,000.00"}},{"v":0.991636798088411,"d":"99.16%"},"",{"$f":"IF(Setup!$AH$7<>\"\",INDIRECT(\"'\" & Setup!$AH$7 & \"'!\" & AD242),0) + IF(Setup!$AH$8<>\"\",INDIRECT(\"'\" & Setup!$AH$8 & \"'!\" & AD242),0) + IF(Setup!$AH$9<>\"\",INDIRECT(\"'\" & Setup!$AH$9 & \"'!\" & AD242),0) + IF(Setup!$AH$10<>\"\",INDIRECT(\"'\" & Setup!$AH$10 & \"'!\" & AD242),0) + IF(Setup!$AH$11<>\"\",INDIRECT(\"'\" & Setup!$AH$11 & \"'!\" & AD242),0) + IF(Setup!$AH$12<>\"\",INDIRECT(\"'\" & Setup!$AH$12 & \"'!\" & AD242),0)","v":{"v":83700,"d":"83,700.00"}},{"$f":"IF(Setup!$AH$7<>\"\",INDIRECT(\"'\" & Setup!$AH$7 & \"'!\" & AE242),0) + IF(Setup!$AH$8<>\"\",INDIRECT(\"'\" & Setup!$AH$8 & \"'!\" & AE242),0) + IF(Setup!$AH$9<>\"\",INDIRECT(\"'\" & Setup!$AH$9 & \"'!\" & AE242),0) + IF(Setup!$AH$10<>\"\",INDIRECT(\"'\" & Setup!$AH$10 & \"'!\" & AE242),0) + IF(Setup!$AH$11<>\"\",INDIRECT(\"'\" & Setup!$AH$11 & \"'!\" & AE242),0) + IF(Setup!$AH$12<>\"\",INDIRECT(\"'\" & Setup!$AH$12 & \"'!\" & AE242),0)","v":{"v":84400,"d":"84,400.00"}},{"v":1.008363201911589,"d":"100.84%"},"",{"$f":"IF(Setup!$AI$7<>\"\",INDIRECT(\"'\" & Setup!$AI$7 & \"'!\" & AD242),0) + IF(Setup!$AI$8<>\"\",INDIRECT(\"'\" & Setup!$AI$8 & \"'!\" & AD242),0) + IF(Setup!$AI$9<>\"\",INDIRECT(\"'\" & Setup!$AI$9 & \"'!\" & AD242),0) + IF(Setup!$AI$10<>\"\",INDIRECT(\"'\" & Setup!$AI$10 & \"'!\" & AD242),0) + IF(Setup!$AI$11<>\"\",INDIRECT(\"'\" & Setup!$AI$11 & \"'!\" & AD242),0) + IF(Setup!$AI$12<>\"\",INDIRECT(\"'\" & Setup!$AI$12 & \"'!\" & AD242),0)","v":{"v":0,"d":"0.00"}},{"$f":"IF(Setup!$AI$7<>\"\",INDIRECT(\"'\" & Setup!$AI$7 & \"'!\" & AE242),0) + IF(Setup!$AI$8<>\"\",INDIRECT(\"'\" & Setup!$AI$8 & \"'!\" & AE242),0) + IF(Setup!$AI$9<>\"\",INDIRECT(\"'\" & Setup!$AI$9 & \"'!\" & AE242),0) + IF(Setup!$AI$10<>\"\",INDIRECT(\"'\" & Setup!$AI$10 & \"'!\" & AE242),0) + IF(Setup!$AI$11<>\"\",INDIRECT(\"'\" & Setup!$AI$11 & \"'!\" & AE242),0) + IF(Setup!$AI$12<>\"\",INDIRECT(\"'\" & Setup!$AI$12 & \"'!\" & AE242),0)","v":{"v":0,"d":"0.00"}},"","",{"$f":"IF(Setup!$AJ$7<>\"\",INDIRECT(\"'\" & Setup!$AJ$7 & \"'!\" & AD242),0) + IF(Setup!$AJ$8<>\"\",INDIRECT(\"'\" & Setup!$AJ$8 & \"'!\" & AD242),0) + IF(Setup!$AJ$9<>\"\",INDIRECT(\"'\" & Setup!$AJ$9 & \"'!\" & AD242),0) + IF(Setup!$AJ$10<>\"\",INDIRECT(\"'\" & Setup!$AJ$10 & \"'!\" & AD242),0) + IF(Setup!$AJ$11<>\"\",INDIRECT(\"'\" & Setup!$AJ$11 & \"'!\" & AD242),0) + IF(Setup!$AJ$12<>\"\",INDIRECT(\"'\" & Setup!$AJ$12 & \"'!\" & AD242),0)","v":0},{"$f":"IF(Setup!$AJ$7<>\"\",INDIRECT(\"'\" & Setup!$AJ$7 & \"'!\" & AE242),0) + IF(Setup!$AJ$8<>\"\",INDIRECT(\"'\" & Setup!$AJ$8 & \"'!\" & AE242),0) + IF(Setup!$AJ$9<>\"\",INDIRECT(\"'\" & Setup!$AJ$9 & \"'!\" & AE242),0) + IF(Setup!$AJ$10<>\"\",INDIRECT(\"'\" & Setup!$AJ$10 & \"'!\" & AE242),0) + IF(Setup!$AJ$11<>\"\",INDIRECT(\"'\" & Setup!$AJ$11 & \"'!\" & AE242),0) + IF(Setup!$AJ$12<>\"\",INDIRECT(\"'\" & Setup!$AJ$12 & \"'!\" & AE242),0)","v":0},"","",{"$f":"Planning!H14","v":"1. YES"},"2Pr72","M30","O30","N30",null,null,{"$f":"IF(Setup!$AG$7<>\"\",INDIRECT(\"'\" & Setup!$AG$7 & \"'!\" & AF242),0) + IF(Setup!$AG$8<>\"\",INDIRECT(\"'\" & Setup!$AG$8 & \"'!\" & AF242),0) + IF(Setup!$AG$9<>\"\",INDIRECT(\"'\" & Setup!$AG$9 & \"'!\" & AF242),0) + IF(Setup!$AG$10<>\"\",INDIRECT(\"'\" & Setup!$AG$10 & \"'!\" & AF242),0) + IF(Setup!$AG$11<>\"\",INDIRECT(\"'\" & Setup!$AG$11 & \"'!\" & AF242),0) + IF(Setup!$AG$12<>\"\",INDIRECT(\"'\" & Setup!$AG$12 & \"'!\" & AF242),0)","v":5700},{"$f":"IF(Setup!$AH$7<>\"\",INDIRECT(\"'\" & Setup!$AH$7 & \"'!\" & AF242),0) + IF(Setup!$AH$8<>\"\",INDIRECT(\"'\" & Setup!$AH$8 & \"'!\" & AF242),0) + IF(Setup!$AH$9<>\"\",INDIRECT(\"'\" & Setup!$AH$9 & \"'!\" & AF242),0) + IF(Setup!$AH$10<>\"\",INDIRECT(\"'\" & Setup!$AH$10 & \"'!\" & AF242),0) + IF(Setup!$AH$11<>\"\",INDIRECT(\"'\" & Setup!$AH$11 & \"'!\" & AF242),0) + IF(Setup!$AH$12<>\"\",INDIRECT(\"'\" & Setup!$AH$12 & \"'!\" & AF242),0)","v":4800},{"$f":"IF(Setup!$AI$7<>\"\",INDIRECT(\"'\" & Setup!$AI$7 & \"'!\" & AF242),0) + IF(Setup!$AI$8<>\"\",INDIRECT(\"'\" & Setup!$AI$8 & \"'!\" & AF242),0) + IF(Setup!$AI$9<>\"\",INDIRECT(\"'\" & Setup!$AI$9 & \"'!\" & AF242),0) + IF(Setup!$AI$10<>\"\",INDIRECT(\"'\" & Setup!$AI$10 & \"'!\" & AF242),0) + IF(Setup!$AI$11<>\"\",INDIRECT(\"'\" & Setup!$AI$11 & \"'!\" & AF242),0) + IF(Setup!$AI$12<>\"\",INDIRECT(\"'\" & Setup!$AI$12 & \"'!\" & AF242),0)","v":0},{"$f":"IF(Setup!$AJ$7<>\"\",INDIRECT(\"'\" & Setup!$AJ$7 & \"'!\" & AF242),0) + IF(Setup!$AJ$8<>\"\",INDIRECT(\"'\" & Setup!$AJ$8 & \"'!\" & AF242),0) + IF(Setup!$AJ$9<>\"\",INDIRECT(\"'\" & Setup!$AJ$9 & \"'!\" & AF242),0) + IF(Setup!$AJ$10<>\"\",INDIRECT(\"'\" & Setup!$AJ$10 & \"'!\" & AF242),0) + IF(Setup!$AJ$11<>\"\",INDIRECT(\"'\" & Setup!$AJ$11 & \"'!\" & AF242),0) + IF(Setup!$AJ$12<>\"\",INDIRECT(\"'\" & Setup!$AJ$12 & \"'!\" & AF242),0)","v":0},null,"2",{"$nulls":30},0,{"$f":"IF(Setup!$AH$7=\"\",0,INDIRECT(\"'\" & Setup!$AH$7 & \"'!\" & AF242))","v":700},{"$f":"IF(Setup!$AI$7=\"\",0,INDIRECT(\"'\" & Setup!$AI$7 & \"'!\" & AF242))","v":0},{"$f":"IF(Setup!$AJ$7=\"\",0,INDIRECT(\"'\" & Setup!$AJ$7 & \"'!\" & AF242))","v":0}]
[{"$f":"Planning!A15","v":"I007"},{"$f":"Planning!B15","v":"1. Indicator"},{"$f":"Planning!C15","v":"Pr74"},{"$f":"Planning!D15","v":3},{"$f":"Planning!E15","v":"[Pr74] # aged 10-24 yrs reached by HIV life skills ed. in school  Target [1. Standard]"},{"$f":"Planning!G15","v":0},2,{"v":393750,"d":"393,750.00"},{"v":387500,"d":"387,500.00"},{"v":0.9841269841269841,"d":"98.41%"},0.9841269841269841,{"$f":"IF(Setup!$AG$7<>\"\",INDIRECT(\"'\" & Setup!$AG$7 & \"'!\" & AD243),0) + IF(Setup!$AG$8<>\"\",INDIRECT(\"'\" & Setup!$AG$8 & \"'!\" & AD243),0) + IF(Setup!$AG$9<>\"\",INDIRECT(\"'\" & Setup!$AG$9 & \"'!\" & AD243),0) + IF(Setup!$AG$10<>\"\",INDIRECT(\"'\" & Setup!$AG$10 & \"'!\" & AD243),0) + IF(Setup!$AG$11<>\"\",INDIRECT(\"'\" & Setup!$AG$11 & \"'!\" & AD243),0) + IF(Setup!$AG$12<>\"\",INDIRECT(\"'\" & Setup!$AG$12 & \"'!\" & AD243),0)","v":{"v":213750,"d":"213,750.00"}},{"$f":"IF(Setup!$AG$7<>\"\",INDIRECT(\"'\" & Setup!$AG$7 & \"'!\" & AE243),0) + IF(Setup!$AG$8<>\"\",INDIRECT(\"'\" & Setup!$AG$8 & \"'!\" & AE243),0) + IF(Setup!$AG$9<>\"\",INDIRECT(\"'\" & Setup!$AG$9 & \"'!\" & AE243),0) + IF(Setup!$AG$10<>\"\",INDIRECT(\"'\" & Setup!$AG$10 & \"'!\" & AE243),0) + IF(Setup!$AG$11<>\"\",INDIRECT(\"'\" & Setup!$AG$11 & \"'!\" & AE243),0) + IF(Setup!$AG$12<>\"\",INDIRECT(\"'\" & Setup!$AG$12 & \"'!\" & AE243),0)","v":{"v":207500,"d":"207,500.00"}},{"v":0.9707602339181286,"d":"97.08%"},0.9707602339181286,{"$f":"IF(Setup!$AH$7<>\"\",INDIRECT(\"'\" & Setup!$AH$7 & \"'!\" & AD243),0) + IF(Setup!$AH$8<>\"\",INDIRECT(\"'\" & Setup!$AH$8 & \"'!\" & AD243),0) + IF(Setup!$AH$9<>\"\",INDIRECT(\"'\" & Setup!$AH$9 & \"'!\" & AD243),0) + IF(Setup!$AH$10<>\"\",INDIRECT(\"'\" & Setup!$AH$10 & \"'!\" & AD243),0) + IF(Setup!$AH$11<>\"\",INDIRECT(\"'\" & Setup!$AH$11 & \"'!\" & AD243),0) + IF(Setup!$AH$12<>\"\",INDIRECT(\"'\" & Setup!$AH$12 & \"'!\" & AD243),0)","v":{"v":180000,"d":"180,000.00"}},{"$f":"IF(Setup!$AH$7<>\"\",INDIRECT(\"'\" & Setup!$AH$7 & \"'!\" & AE243),0) + IF(Setup!$AH$8<>\"\",INDIRECT(\"'\" & Setup!$AH$8 & \"'!\" & AE243),0) + IF(Setup!$AH$9<>\"\",INDIRECT(\"'\" & Setup!$AH$9 & \"'!\" & AE243),0) + IF(Setup!$AH$10<>\"\",INDIRECT(\"'\" & Setup!$AH$10 & \"'!\" & AE243),0) + IF(Setup!$AH$11<>\"\",INDIRECT(\"'\" & Setup!$AH$11 & \"'!\" & AE243),0) + IF(Setup!$AH$12<>\"\",INDIRECT(\"'\" & Setup!$AH$12 & \"'!\" & AE243),0)","v":{"v":180000,"d":"180,000.00"}},{"v":1,"d":"100.00%"},1,{"$f":"IF(Setup!$AI$7<>\"\",INDIRECT(\"'\" & Setup!$AI$7 & \"'!\" & AD243),0) + IF(Setup!$AI$8<>\"\",INDIRECT(\"'\" & Setup!$AI$8 & \"'!\" & AD243),0) + IF(Setup!$AI$9<>\"\",INDIRECT(\"'\" & Setup!$AI$9 & \"'!\" & AD243),0) + IF(Setup!$AI$10<>\"\",INDIRECT(\"'\" & Setup!$AI$10 & \"'!\" & AD243),0) + IF(Setup!$AI$11<>\"\",INDIRECT(\"'\" & Setup!$AI$11 & \"'!\" & AD243),0) + IF(Setup!$AI$12<>\"\",INDIRECT(\"'\" & Setup!$AI$12 & \"'!\" & AD243),0)","v":{"v":0,"d":"0.00"}},{"$f":"IF(Setup!$AI$7<>\"\",INDIRECT(\"'\" & Setup!$AI$7 & \"'!\" & AE243),0) + IF(Setup!$AI$8<>\"\",INDIRECT(\"'\" & Setup!$AI$8 & \"'!\" & AE243),0) + IF(Setup!$AI$9<>\"\",INDIRECT(\"'\" & Setup!$AI$9 & \"'!\" & AE243),0) + IF(Setup!$AI$10<>\"\",INDIRECT(\"'\" & Setup!$AI$10 & \"'!\" & AE243),0) + IF(Setup!$AI$11<>\"\",INDIRECT(\"'\" & Setup!$AI$11 & \"'!\" & AE243),0) + IF(Setup!$AI$12<>\"\",INDIRECT(\"'\" & Setup!$AI$12 & \"'!\" & AE243),0)","v":{"v":0,"d":"0.00"}},"","",{"$f":"IF(Setup!$AJ$7<>\"\",INDIRECT(\"'\" & Setup!$AJ$7 & \"'!\" & AD243),0) + IF(Setup!$AJ$8<>\"\",INDIRECT(\"'\" & Setup!$AJ$8 & \"'!\" & AD243),0) + IF(Setup!$AJ$9<>\"\",INDIRECT(\"'\" & Setup!$AJ$9 & \"'!\" & AD243),0) + IF(Setup!$AJ$10<>\"\",INDIRECT(\"'\" & Setup!$AJ$10 & \"'!\" & AD243),0) + IF(Setup!$AJ$11<>\"\",INDIRECT(\"'\" & Setup!$AJ$11 & \"'!\" & AD243),0) + IF(Setup!$AJ$12<>\"\",INDIRECT(\"'\" & Setup!$AJ$12 & \"'!\" & AD243),0)","v":0},{"$f":"IF(Setup!$AJ$7<>\"\",INDIRECT(\"'\" & Setup!$AJ$7 & \"'!\" & AE243),0) + IF(Setup!$AJ$8<>\"\",INDIRECT(\"'\" & Setup!$AJ$8 & \"'!\" & AE243),0) + IF(Setup!$AJ$9<>\"\",INDIRECT(\"'\" & Setup!$AJ$9 & \"'!\" & AE243),0) + IF(Setup!$AJ$10<>\"\",INDIRECT(\"'\" & Setup!$AJ$10 & \"'!\" & AE243),0) + IF(Setup!$AJ$11<>\"\",INDIRECT(\"'\" & Setup!$AJ$11 & \"'!\" & AE243),0) + IF(Setup!$AJ$12<>\"\",INDIRECT(\"'\" & Setup!$AJ$12 & \"'!\" & AE243),0)","v":0},"","",{"$f":"Planning!H15","v":0},"1Pr74","M31","O31","N31",null,null,{"$f":"IF(Setup!$AG$7<>\"\",INDIRECT(\"'\" & Setup!$AG$7 & \"'!\" & AF243),0) + IF(Setup!$AG$8<>\"\",INDIRECT(\"'\" & Setup!$AG$8 & \"'!\" & AF243),0) + IF(Setup!$AG$9<>\"\",INDIRECT(\"'\" & Setup!$AG$9 & \"'!\" & AF243),0) + IF(Setup!$AG$10<>\"\",INDIRECT(\"'\" & Setup!$AG$10 & \"'!\" & AF243),0) + IF(Setup!$AG$11<>\"\",INDIRECT(\"'\" & Setup!$AG$11 & \"'!\" & AF243),0) + IF(Setup!$AG$12<>\"\",INDIRECT(\"'\" & Setup!$AG$12 & \"'!\" & AF243),0)","v":20000},{"$f":"IF(Setup!$AH$7<>\"\",INDIRECT(\"'\" & Setup!$AH$7 & \"'!\" & AF243),0) + IF(Setup!$AH$8<>\"\",INDIRECT(\"'\" & Setup!$AH$8 & \"'!\" & AF243),0) + IF(Setup!$AH$9<>\"\",INDIRECT(\"'\" & Setup!$AH$9 & \"'!\" & AF243),0) + IF(Setup!$AH$10<>\"\",INDIRECT(\"'\" & Setup!$AH$10 & \"'!\" & AF243),0) + IF(Setup!$AH$11<>\"\",INDIRECT(\"'\" & Setup!$AH$11 & \"'!\" & AF243),0) + IF(Setup!$AH$12<>\"\",INDIRECT(\"'\" & Setup!$AH$12 & \"'!\" & AF243),0)","v":25750},{"$f":"IF(Setup!$AI$7<>\"\",INDIRECT(\"'\" & Setup!$AI$7 & \"'!\" & AF243),0) + IF(Setup!$AI$8<>\"\",INDIRECT(\"'\" & Setup!$AI$8 & \"'!\" & AF243),0) + IF(Setup!$AI$9<>\"\",INDIRECT(\"'\" & Setup!$AI$9 & \"'!\" & AF243),0) + IF(Setup!$AI$10<>\"\",INDIRECT(\"'\" & Setup!$AI$10 & \"'!\" & AF243),0) + IF(Setup!$AI$11<>\"\",INDIRECT(\"'\" & Setup!$AI$11 & \"'!\" & AF243),0) + IF(Setup!$AI$12<>\"\",INDIRECT(\"'\" & Setup!$AI$12 & \"'!\" & AF243),0)","v":18750},{"$f":"IF(Setup!$AJ$7<>\"\",INDIRECT(\"'\" & Setup!$AJ$7 & \"'!\" & AF243),0) + IF(Setup!$AJ$8<>\"\",INDIRECT(\"'\" & Setup!$AJ$8 & \"'!\" & AF243),0) + IF(Setup!$AJ$9<>\"\",INDIRECT(\"'\" & Setup!$AJ$9 & \"'!\" & AF243),0) + IF(Setup!$AJ$10<>\"\",INDIRECT(\"'\" & Setup!$AJ$10 & \"'!\" & AF243),0) + IF(Setup!$AJ$11<>\"\",INDIRECT(\"'\" & Setup!$AJ$11 & \"'!\" & AF243),0) + IF(Setup!$AJ$12<>\"\",INDIRECT(\"'\" & Setup!$AJ$12 & \"'!\" & AF243),0)","v":18750},null,"1",{"$nulls":30},0,{"$f":"IF(Setup!$AH$7=\"\",0,INDIRECT(\"'\" & Setup!$AH$7 & \"'!\" & AF243))","v":6250},{"$f":"IF(Setup!$AI$7=\"\",0,INDIRECT(\"'\" & Setup!$AI$7 & \"'!\" & AF243))","v":6250},{"$f":"IF(Setup!$AJ$7=\"\",0,INDIRECT(\"'\" & Setup!$AJ$7 & \"'!\" & AF243))","v":6250}]
[{"$f":"Planning!A16","v":"I008"},{"$f":"Planning!B16","v":"2. Activity: Contributing"},{"$f":"Planning!C16","v":"Pr74"},{"$f":"Planning!D16","v":3.1},{"$f":"Planning!E16","v":"Transportation of students to meetings and conferences for peer education activities"},{"$f":"Planning!G16","v":"2. Travel related costs"},2,{"v":393750,"d":"393,750.00"},{"v":387500,"d":"387,500.00"},{"v":0.9841269841269841,"d":"98.41%"},"",{"$f":"IF(Setup!$AG$7<>\"\",INDIRECT(\"'\" & Setup!$AG$7 & \"'!\" & AD244),0) + IF(Setup!$AG$8<>\"\",INDIRECT(\"'\" & Setup!$AG$8 & \"'!\" & AD244),0) + IF(Setup!$AG$9<>\"\",INDIRECT(\"'\" & Setup!$AG$9 & \"'!\" & AD244),0) + IF(Setup!$AG$10<>\"\",INDIRECT(\"'\" & Setup!$AG$10 & \"'!\" & AD244),0) + IF(Setup!$AG$11<>\"\",INDIRECT(\"'\" & Setup!$AG$11 & \"'!\" & AD244),0) + IF(Setup!$AG$12<>\"\",INDIRECT(\"'\" & Setup!$AG$12 & \"'!\" & AD244),0)","v":{"v":213750,"d":"213,750.00"}},{"$f":"IF(Setup!$AG$7<>\"\",INDIRECT(\"'\" & Setup!$AG$7 & \"'!\" & AE244),0) + IF(Setup!$AG$8<>\"\",INDIRECT(\"'\" & Setup!$AG$8 & \"'!\" & AE244),0) + IF(Setup!$AG$9<>\"\",INDIRECT(\"'\" & Setup!$AG$9 & \"'!\" & AE244),0) + IF(Setup!$AG$10<>\"\",INDIRECT(\"'\" & Setup!$AG$10 & \"'!\" & AE244),0) + IF(Setup!$AG$11<>\"\",INDIRECT(\"'\" & Setup!$AG$11 & \"'!\" & AE244),0) + IF(Setup!$AG$12<>\"\",INDIRECT(\"'\" & Setup!$AG$12 & \"'!\" & AE244),0)","v":{"v":207500,"d":"207,500.00"}},{"v":0.9707602339181286,"d":"97.08%"},"",{"$f":"IF(Setup!$AH$7<>\"\",INDIRECT(\"'\" & Setup!$AH$7 & \"'!\" & AD244),0) + IF(Setup!$AH$8<>\"\",INDIRECT(\"'\" & Setup!$AH$8 & \"'!\" & AD244),0) + IF(Setup!$AH$9<>\"\",INDIRECT(\"'\" & Setup!$AH$9 & \"'!\" & AD244),0) + IF(Setup!$AH$10<>\"\",INDIRECT(\"'\" & Setup!$AH$10 & \"'!\" & AD244),0) + IF(Setup!$AH$11<>\"\",INDIRECT(\"'\" & Setup!$AH$11 & \"'!\" & AD244),0) + IF(Setup!$AH$12<>\"\",INDIRECT(\"'\" & Setup!$AH$12 & \"'!\" & AD244),0)","v":{"v":180000,"d":"180,000.00"}},{"$f":"IF(Setup!$AH$7<>\"\",INDIRECT(\"'\" & Setup!$AH$7 & \"'!\" & AE244),0) + IF(Setup!$AH$8<>\"\",INDIRECT(\"'\" & Setup!$AH$8 & \"'!\" & AE244),0) + IF(Setup!$AH$9<>\"\",INDIRECT(\"'\" & Setup!$AH$9 & \"'!\" & AE244),0) + IF(Setup!$AH$10<>\"\",INDIRECT(\"'\" & Setup!$AH$10 & \"'!\" & AE244),0) + IF(Setup!$AH$11<>\"\",INDIRECT(\"'\" & Setup!$AH$11 & \"'!\" & AE244),0) + IF(Setup!$AH$12<>\"\",INDIRECT(\"'\" & Setup!$AH$12 & \"'!\" & AE244),0)","v":{"v":180000,"d":"180,000.00"}},{"v":1,"d":"100.00%"},"",{"$f":"IF(Setup!$AI$7<>\"\",INDIRECT(\"'\" & Setup!$AI$7 & \"'!\" & AD244),0) + IF(Setup!$AI$8<>\"\",INDIRECT(\"'\" & Setup!$AI$8 & \"'!\" & AD244),0) + IF(Setup!$AI$9<>\"\",INDIRECT(\"'\" & Setup!$AI$9 & \"'!\" & AD244),0) + IF(Setup!$AI$10<>\"\",INDIRECT(\"'\" & Setup!$AI$10 & \"'!\" & AD244),0) + IF(Setup!$AI$11<>\"\",INDIRECT(\"'\" & Setup!$AI$11 & \"'!\" & AD244),0) + IF(Setup!$AI$12<>\"\",INDIRECT(\"'\" & Setup!$AI$12 & \"'!\" & AD244),0)","v":{"v":0,"d":"0.00"}},{"$f":"IF(Setup!$AI$7<>\"\",INDIRECT(\"'\" & Setup!$AI$7 & \"'!\" & AE244),0) + IF(Setup!$AI$8<>\"\",INDIRECT(\"'\" & Setup!$AI$8 & \"'!\" & AE244),0) + IF(Setup!$AI$9<>\"\",INDIRECT(\"'\" & Setup!$AI$9 & \"'!\" & AE244),0) + IF(Setup!$AI$10<>\"\",INDIRECT(\"'\" & Setup!$AI$10 & \"'!\" & AE244),0) + IF(Setup!$AI$11<>\"\",INDIRECT(\"'\" & Setup!$AI$11 & \"'!\" & AE244),0) + IF(Setup!$AI$12<>\"\",INDIRECT(\"'\" & Setup!$AI$12 & \"'!\" & AE244),0)","v":{"v":0,"d":"0.00"}},"","",{"$f":"IF(Setup!$AJ$7<>\"\",INDIRECT(\"'\" & Setup!$AJ$7 & \"'!\" & AD244),0) + IF(Setup!$AJ$8<>\"\",INDIRECT(\"'\" & Setup!$AJ$8 & \"'!\" & AD244),0) + IF(Setup!$AJ$9<>\"\",INDIRECT(\"'\" & Setup!$AJ$9 & \"'!\" & AD244),0) + IF(Setup!$AJ$10<>\"\",INDIRECT(\"'\" & Setup!$AJ$10 & \"'!\" & AD244),0) + IF(Setup!$AJ$11<>\"\",INDIRECT(\"'\" & Setup!$AJ$11 & \"'!\" & AD244),0) + IF(Setup!$AJ$12<>\"\",INDIRECT(\"'\" & Setup!$AJ$12 & \"'!\" & AD244),0)","v":0},{"$f":"IF(Setup!$AJ$7<>\"\",INDIRECT(\"'\" & Setup!$AJ$7 & \"'!\" & AE244),0) + IF(Setup!$AJ$8<>\"\",INDIRECT(\"'\" & Setup!$AJ$8 & \"'!\" & AE244),0) + IF(Setup!$AJ$9<>\"\",INDIRECT(\"'\" & Setup!$AJ$9 & \"'!\" & AE244),0) + IF(Setup!$AJ$10<>\"\",INDIRECT(\"'\" & Setup!$AJ$10 & \"'!\" & AE244),0) + IF(Setup!$AJ$11<>\"\",INDIRECT(\"'\" & Setup!$AJ$11 & \"'!\" & AE244),0) + IF(Setup!$AJ$12<>\"\",INDIRECT(\"'\" & Setup!$AJ$12 & \"'!\" & AE244),0)","v":0},"","",{"$f":"Planning!H16","v":"1. YES"},"2Pr74","M32","O32","N32",null,null,{"$f":"IF(Setup!$AG$7<>\"\",INDIRECT(\"'\" & Setup!$AG$7 & \"'!\" & AF244),0) + IF(Setup!$AG$8<>\"\",INDIRECT(\"'\" & Setup!$AG$8 & \"'!\" & AF244),0) + IF(Setup!$AG$9<>\"\",INDIRECT(\"'\" & Setup!$AG$9 & \"'!\" & AF244),0) + IF(Setup!$AG$10<>\"\",INDIRECT(\"'\" & Setup!$AG$10 & \"'!\" & AF244),0) + IF(Setup!$AG$11<>\"\",INDIRECT(\"'\" & Setup!$AG$11 & \"'!\" & AF244),0) + IF(Setup!$AG$12<>\"\",INDIRECT(\"'\" & Setup!$AG$12 & \"'!\" & AF244),0)","v":20000},{"$f":"IF(Setup!$AH$7<>\"\",INDIRECT(\"'\" & Setup!$AH$7 & \"'!\" & AF244),0) + IF(Setup!$AH$8<>\"\",INDIRECT(\"'\" & Setup!$AH$8 & \"'!\" & AF244),0) + IF(Setup!$AH$9<>\"\",INDIRECT(\"'\" & Setup!$AH$9 & \"'!\" & AF244),0) + IF(Setup!$AH$10<>\"\",INDIRECT(\"'\" & Setup!$AH$10 & \"'!\" & AF244),0) + IF(Setup!$AH$11<>\"\",INDIRECT(\"'\" & Setup!$AH$11 & \"'!\" & AF244),0) + IF(Setup!$AH$12<>\"\",INDIRECT(\"'\" & Setup!$AH$12 & \"'!\" & AF244),0)","v":25750},{"$f":"IF(Setup!$AI$7<>\"\",INDIRECT(\"'\" & Setup!$AI$7 & \"'!\" & AF244),0) + IF(Setup!$AI$8<>\"\",INDIRECT(\"'\" & Setup!$AI$8 & \"'!\" & AF244),0) + IF(Setup!$AI$9<>\"\",INDIRECT(\"'\" & Setup!$AI$9 & \"'!\" & AF244),0) + IF(Setup!$AI$10<>\"\",INDIRECT(\"'\" & Setup!$AI$10 & \"'!\" & AF244),0) + IF(Setup!$AI$11<>\"\",INDIRECT(\"'\" & Setup!$AI$11 & \"'!\" & AF244),0) + IF(Setup!$AI$12<>\"\",INDIRECT(\"'\" & Setup!$AI$12 & \"'!\" & AF244),0)","v":18750},{"$f":"IF(Setup!$AJ$7<>\"\",INDIRECT(\"'\" & Setup!$AJ$7 & \"'!\" & AF244),0) + IF(Setup!$AJ$8<>\"\",INDIRECT(\"'\" & Setup!$AJ$8 & \"'!\" & AF244),0) + IF(Setup!$AJ$9<>\"\",INDIRECT(\"'\" & Setup!$AJ$9 & \"'!\" & AF244),0) + IF(Setup!$AJ$10<>\"\",INDIRECT(\"'\" & Setup!$AJ$10 & \"'!\" & AF244),0) + IF(Setup!$AJ$11<>\"\",INDIRECT(\"'\" & Setup!$AJ$11 & \"'!\" & AF244),0) + IF(Setup!$AJ$12<>\"\",INDIRECT(\"'\" & Setup!$AJ$12 & \"'!\" & AF244),0)","v":18750},null,"2",{"$nulls":30},0,{"$f":"IF(Setup!$AH$7=\"\",0,INDIRECT(\"'\" & Setup!$AH$7 & \"'!\" & AF244))","v":6250},{"$f":"IF(Setup!$AI$7=\"\",0,INDIRECT(\"'\" & Setup!$AI$7 & \"'!\" & AF244))","v":6250},{"$f":"IF(Setup!$AJ$7=\"\",0,INDIRECT(\"'\" & Setup!$AJ$7 & \"'!\" & AF244))","v":6250}]
[{"$f":"Planning!A17","v":"I009"},{"$f":"Planning!B17","v":"1. Indicator"},{"$f":"Planning!C17","v":"OI01"},{"$f":"Planning!D17","v":4},{"$f":"Planning!E17","v":"[OI01] # of new orphans and vulnerable children (0 - 17 yrs) benefiting from  services provided at OVC centers [1. Standard]"},{"$f":"Planning!G17","v":0},1,{"v":248000,"d":"248,000.00"},{"v":247000,"d":"247,000.00"},{"v":0.9959677419354839,"d":"99.60%"},0.9959677419354839,{"$f":"IF(Setup!$AG$7<>\"\",INDIRECT(\"'\" & Setup!$AG$7 & \"'!\" & AD245),0) + IF(Setup!$AG$8<>\"\",INDIRECT(\"'\" & Setup!$AG$8 & \"'!\" & AD245),0) + IF(Setup!$AG$9<>\"\",INDIRECT(\"'\" & Setup!$AG$9 & \"'!\" & AD245),0) + IF(Setup!$AG$10<>\"\",INDIRECT(\"'\" & Setup!$AG$10 & \"'!\" & AD245),0) + IF(Setup!$AG$11<>\"\",INDIRECT(\"'\" & Setup!$AG$11 & \"'!\" & AD245),0) + IF(Setup!$AG$12<>\"\",INDIRECT(\"'\" & Setup!$AG$12 & \"'!\" & AD245),0)","v":{"v":37000,"d":"37,000.00"}},{"$f":"IF(Setup!$AG$7<>\"\",INDIRECT(\"'\" & Setup!$AG$7 & \"'!\" & AE245),0) + IF(Setup!$AG$8<>\"\",INDIRECT(\"'\" & Setup!$AG$8 & \"'!\" & AE245),0) + IF(Setup!$AG$9<>\"\",INDIRECT(\"'\" & Setup!$AG$9 & \"'!\" & AE245),0) + IF(Setup!$AG$10<>\"\",INDIRECT(\"'\" & Setup!$AG$10 & \"'!\" & AE245),0) + IF(Setup!$AG$11<>\"\",INDIRECT(\"'\" & Setup!$AG$11 & \"'!\" & AE245),0) + IF(Setup!$AG$12<>\"\",INDIRECT(\"'\" & Setup!$AG$12 & \"'!\" & AE245),0)","v":{"v":36800,"d":"36,800.00"}},{"v":0.9945945945945946,"d":"99.46%"},0.9945945945945946,{"$f":"IF(Setup!$AH$7<>\"\",INDIRECT(\"'\" & Setup!$AH$7 & \"'!\" & AD245),0) + IF(Setup!$AH$8<>\"\",INDIRECT(\"'\" & Setup!$AH$8 & \"'!\" & AD245),0) + IF(Setup!$AH$9<>\"\",INDIRECT(\"'\" & Setup!$AH$9 & \"'!\" & AD245),0) + IF(Setup!$AH$10<>\"\",INDIRECT(\"'\" & Setup!$AH$10 & \"'!\" & AD245),0) + IF(Setup!$AH$11<>\"\",INDIRECT(\"'\" & Setup!$AH$11 & \"'!\" & AD245),0) + IF(Setup!$AH$12<>\"\",INDIRECT(\"'\" & Setup!$AH$12 & \"'!\" & AD245),0)","v":{"v":211000,"d":"211,000.00"}},{"$f":"IF(Setup!$AH$7<>\"\",INDIRECT(\"'\" & Setup!$AH$7 & \"'!\" & AE245),0) + IF(Setup!$AH$8<>\"\",INDIRECT(\"'\" & Setup!$AH$8 & \"'!\" & AE245),0) + IF(Setup!$AH$9<>\"\",INDIRECT(\"'\" & Setup!$AH$9 & \"'!\" & AE245),0) + IF(Setup!$AH$10<>\"\",INDIRECT(\"'\" & Setup!$AH$10 & \"'!\" & AE245),0) + IF(Setup!$AH$11<>\"\",INDIRECT(\"'\" & Setup!$AH$11 & \"'!\" & AE245),0) + IF(Setup!$AH$12<>\"\",INDIRECT(\"'\" & Setup!$AH$12 & \"'!\" & AE245),0)","v":{"v":210200,"d":"210,200.00"}},{"v":0.9962085308056872,"d":"99.62%"},0.9962085308056872,{"$f":"IF(Setup!$AI$7<>\"\",INDIRECT(\"'\" & Setup!$AI$7 & \"'!\" & AD245),0) + IF(Setup!$AI$8<>\"\",INDIRECT(\"'\" & Setup!$AI$8 & \"'!\" & AD245),0) + IF(Setup!$AI$9<>\"\",INDIRECT(\"'\" & Setup!$AI$9 & \"'!\" & AD245),0) + IF(Setup!$AI$10<>\"\",INDIRECT(\"'\" & Setup!$AI$10 & \"'!\" & AD245),0) + IF(Setup!$AI$11<>\"\",INDIRECT(\"'\" & Setup!$AI$11 & \"'!\" & AD245),0) + IF(Setup!$AI$12<>\"\",INDIRECT(\"'\" & Setup!$AI$12 & \"'!\" & AD245),0)","v":{"v":0,"d":"0.00"}},{"$f":"IF(Setup!$AI$7<>\"\",INDIRECT(\"'\" & Setup!$AI$7 & \"'!\" & AE245),0) + IF(Setup!$AI$8<>\"\",INDIRECT(\"'\" & Setup!$AI$8 & \"'!\" & AE245),0) + IF(Setup!$AI$9<>\"\",INDIRECT(\"'\" & Setup!$AI$9 & \"'!\" & AE245),0) + IF(Setup!$AI$10<>\"\",INDIRECT(\"'\" & Setup!$AI$10 & \"'!\" & AE245),0) + IF(Setup!$AI$11<>\"\",INDIRECT(\"'\" & Setup!$AI$11 & \"'!\" & AE245),0) + IF(Setup!$AI$12<>\"\",INDIRECT(\"'\" & Setup!$AI$12 & \"'!\" & AE245),0)","v":{"v":0,"d":"0.00"}},"","",{"$f":"IF(Setup!$AJ$7<>\"\",INDIRECT(\"'\" & Setup!$AJ$7 & \"'!\" & AD245),0) + IF(Setup!$AJ$8<>\"\",INDIRECT(\"'\" & Setup!$AJ$8 & \"'!\" & AD245),0) + IF(Setup!$AJ$9<>\"\",INDIRECT(\"'\" & Setup!$AJ$9 & \"'!\" & AD245),0) + IF(Setup!$AJ$10<>\"\",INDIRECT(\"'\" & Setup!$AJ$10 & \"'!\" & AD245),0) + IF(Setup!$AJ$11<>\"\",INDIRECT(\"'\" & Setup!$AJ$11 & \"'!\" & AD245),0) + IF(Setup!$AJ$12<>\"\",INDIRECT(\"'\" & Setup!$AJ$12 & \"'!\" & AD245),0)","v":0},{"$f":"IF(Setup!$AJ$7<>\"\",INDIRECT(\"'\" & Setup!$AJ$7 & \"'!\" & AE245),0) + IF(Setup!$AJ$8<>\"\",INDIRECT(\"'\" & Setup!$AJ$8 & \"'!\" & AE245),0) + IF(Setup!$AJ$9<>\"\",INDIRECT(\"'\" & Setup!$AJ$9 & \"'!\" & AE245),0) + IF(Setup!$AJ$10<>\"\",INDIRECT(\"'\" & Setup!$AJ$10 & \"'!\" & AE245),0) + IF(Setup!$AJ$11<>\"\",INDIRECT(\"'\" & Setup!$AJ$11 & \"'!\" & AE245),0) + IF(Setup!$AJ$12<>\"\",INDIRECT(\"'\" & Setup!$AJ$12 & \"'!\" & AE245),0)","v":0},"","",{"$f":"Planning!H17","v":0},"1OI01","M33","O33","N33",null,null,{"$f":"IF(Setup!$AG$7<>\"\",INDIRECT(\"'\" & Setup!$AG$7 & \"'!\" & AF245),0) + IF(Setup!$AG$8<>\"\",INDIRECT(\"'\" & Setup!$AG$8 & \"'!\" & AF245),0) + IF(Setup!$AG$9<>\"\",INDIRECT(\"'\" & Setup!$AG$9 & \"'!\" & AF245),0) + IF(Setup!$AG$10<>\"\",INDIRECT(\"'\" & Setup!$AG$10 & \"'!\" & AF245),0) + IF(Setup!$AG$11<>\"\",INDIRECT(\"'\" & Setup!$AG$11 & \"'!\" & AF245),0) + IF(Setup!$AG$12<>\"\",INDIRECT(\"'\" & Setup!$AG$12 & \"'!\" & AF245),0)","v":0},{"$f":"IF(Setup!$AH$7<>\"\",INDIRECT(\"'\" & Setup!$AH$7 & \"'!\" & AF245),0) + IF(Setup!$AH$8<>\"\",INDIRECT(\"'\" & Setup!$AH$8 & \"'!\" & AF245),0) + IF(Setup!$AH$9<>\"\",INDIRECT(\"'\" & Setup!$AH$9 & \"'!\" & AF245),0) + IF(Setup!$AH$10<>\"\",INDIRECT(\"'\" & Setup!$AH$10 & \"'!\" & AF245),0) + IF(Setup!$AH$11<>\"\",INDIRECT(\"'\" & Setup!$AH$11 & \"'!\" & AF245),0) + IF(Setup!$AH$12<>\"\",INDIRECT(\"'\" & Setup!$AH$12 & \"'!\" & AF245),0)","v":400},{"$f":"IF(Setup!$AI$7<>\"\",INDIRECT(\"'\" & Setup!$AI$7 & \"'!\" & AF245),0) + IF(Setup!$AI$8<>\"\",INDIRECT(\"'\" & Setup!$AI$8 & \"'!\" & AF245),0) + IF(Setup!$AI$9<>\"\",INDIRECT(\"'\" & Setup!$AI$9 & \"'!\" & AF245),0) + IF(Setup!$AI$10<>\"\",INDIRECT(\"'\" & Setup!$AI$10 & \"'!\" & AF245),0) + IF(Setup!$AI$11<>\"\",INDIRECT(\"'\" & Setup!$AI$11 & \"'!\" & AF245),0) + IF(Setup!$AI$12<>\"\",INDIRECT(\"'\" & Setup!$AI$12 & \"'!\" & AF245),0)","v":3000},{"$f":"IF(Setup!$AJ$7<>\"\",INDIRECT(\"'\" & Setup!$AJ$7 & \"'!\" & AF245),0) + IF(Setup!$AJ$8<>\"\",INDIRECT(\"'\" & Setup!$AJ$8 & \"'!\" & AF245),0) + IF(Setup!$AJ$9<>\"\",INDIRECT(\"'\" & Setup!$AJ$9 & \"'!\" & AF245),0) + IF(Setup!$AJ$10<>\"\",INDIRECT(\"'\" & Setup!$AJ$10 & \"'!\" & AF245),0) + IF(Setup!$AJ$11<>\"\",INDIRECT(\"'\" & Setup!$AJ$11 & \"'!\" & AF245),0) + IF(Setup!$AJ$12<>\"\",INDIRECT(\"'\" & Setup!$AJ$12 & \"'!\" & AF245),0)","v":3000},null,"1",{"$nulls":30},0,{"$f":"IF(Setup!$AH$7=\"\",0,INDIRECT(\"'\" & Setup!$AH$7 & \"'!\" & AF245))","v":200},{"$f":"IF(Setup!$AI$7=\"\",0,INDIRECT(\"'\" & Setup!$AI$7 & \"'!\" & AF245))","v":1000},{"$f":"IF(Setup!$AJ$7=\"\",0,INDIRECT(\"'\" & Setup!$AJ$7 & \"'!\" & AF245))","v":1000}]
[{"$f":"Planning!A18","v":"I010"},{"$f":"Planning!B18","v":"3. Activity: Non-Contributing"},{"$f":"Planning!C18","v":"OI01"},{"$f":"Planning!D18","v":4.1},{"$f":"Planning!E18","v":"# of OVC centers established and fully equipped  "},{"$f":"Planning!G18","v":"8. Infrastructure "},1,{"v":16000,"d":"16,000.00"},{"v":16000,"d":"16,000.00"},{"v":1,"d":"100.00%"},"",{"$f":"IF(Setup!$AG$7<>\"\",INDIRECT(\"'\" & Setup!$AG$7 & \"'!\" & AD246),0) + IF(Setup!$AG$8<>\"\",INDIRECT(\"'\" & Setup!$AG$8 & \"'!\" & AD246),0) + IF(Setup!$AG$9<>\"\",INDIRECT(\"'\" & Setup!$AG$9 & \"'!\" & AD246),0) + IF(Setup!$AG$10<>\"\",INDIRECT(\"'\" & Setup!$AG$10 & \"'!\" & AD246),0) + IF(Setup!$AG$11<>\"\",INDIRECT(\"'\" & Setup!$AG$11 & \"'!\" & AD246),0) + IF(Setup!$AG$12<>\"\",INDIRECT(\"'\" & Setup!$AG$12 & \"'!\" & AD246),0)","v":{"v":8000,"d":"8,000.00"}},{"$f":"IF(Setup!$AG$7<>\"\",INDIRECT(\"'\" & Setup!$AG$7 & \"'!\" & AE246),0) + IF(Setup!$AG$8<>\"\",INDIRECT(\"'\" & Setup!$AG$8 & \"'!\" & AE246),0) + IF(Setup!$AG$9<>\"\",INDIRECT(\"'\" & Setup!$AG$9 & \"'!\" & AE246),0) + IF(Setup!$AG$10<>\"\",INDIRECT(\"'\" & Setup!$AG$10 & \"'!\" & AE246),0) + IF(Setup!$AG$11<>\"\",INDIRECT(\"'\" & Setup!$AG$11 & \"'!\" & AE246),0) + IF(Setup!$AG$12<>\"\",INDIRECT(\"'\" & Setup!$AG$12 & \"'!\" & AE246),0)","v":{"v":8000,"d":"8,000.00"}},{"v":1,"d":"100.00%"},"",{"$f":"IF(Setup!$AH$7<>\"\",INDIRECT(\"'\" & Setup!$AH$7 & \"'!\" & AD246),0) + IF(Setup!$AH$8<>\"\",INDIRECT(\"'\" & Setup!$AH$8 & \"'!\" & AD246),0) + IF(Setup!$AH$9<>\"\",INDIRECT(\"'\" & Setup!$AH$9 & \"'!\" & AD246),0) + IF(Setup!$AH$10<>\"\",INDIRECT(\"'\" & Setup!$AH$10 & \"'!\" & AD246),0) + IF(Setup!$AH$11<>\"\",INDIRECT(\"'\" & Setup!$AH$11 & \"'!\" & AD246),0) + IF(Setup!$AH$12<>\"\",INDIRECT(\"'\" & Setup!$AH$12 & \"'!\" & AD246),0)","v":{"v":8000,"d":"8,000.00"}},{"$f":"IF(Setup!$AH$7<>\"\",INDIRECT(\"'\" & Setup!$AH$7 & \"'!\" & AE246),0) + IF(Setup!$AH$8<>\"\",INDIRECT(\"'\" & Setup!$AH$8 & \"'!\" & AE246),0) + IF(Setup!$AH$9<>\"\",INDIRECT(\"'\" & Setup!$AH$9 & \"'!\" & AE246),0) + IF(Setup!$AH$10<>\"\",INDIRECT(\"'\" & Setup!$AH$10 & \"'!\" & AE246),0) + IF(Setup!$AH$11<>\"\",INDIRECT(\"'\" & Setup!$AH$11 & \"'!\" & AE246),0) + IF(Setup!$AH$12<>\"\",INDIRECT(\"'\" & Setup!$AH$12 & \"'!\" & AE246),0)","v":{"v":8000,"d":"8,000.00"}},{"v":1,"d":"100.00%"},"",{"$f":"IF(Setup!$AI$7<>\"\",INDIRECT(\"'\" & Setup!$AI$7 & \"'!\" & AD246),0) + IF(Setup!$AI$8<>\"\",INDIRECT(\"'\" & Setup!$AI$8 & \"'!\" & AD246),0) + IF(Setup!$AI$9<>\"\",INDIRECT(\"'\" & Setup!$AI$9 & \"'!\" & AD246),0) + IF(Setup!$AI$10<>\"\",INDIRECT(\"'\" & Setup!$AI$10 & \"'!\" & AD246),0) + IF(Setup!$AI$11<>\"\",INDIRECT(\"'\" & Setup!$AI$11 & \"'!\" & AD246),0) + IF(Setup!$AI$12<>\"\",INDIRECT(\"'\" & Setup!$AI$12 & \"'!\" & AD246),0)","v":{"v":0,"d":"0.00"}},{"$f":"IF(Setup!$AI$7<>\"\",INDIRECT(\"'\" & Setup!$AI$7 & \"'!\" & AE246),0) + IF(Setup!$AI$8<>\"\",INDIRECT(\"'\" & Setup!$AI$8 & \"'!\" & AE246),0) + IF(Setup!$AI$9<>\"\",INDIRECT(\"'\" & Setup!$AI$9 & \"'!\" & AE246),0) + IF(Setup!$AI$10<>\"\",INDIRECT(\"'\" & Setup!$AI$10 & \"'!\" & AE246),0) + IF(Setup!$AI$11<>\"\",INDIRECT(\"'\" & Setup!$AI$11 & \"'!\" & AE246),0) + IF(Setup!$AI$12<>\"\",INDIRECT(\"'\" & Setup!$AI$12 & \"'!\" & AE246),0)","v":{"v":0,"d":"0.00"}},"","",{"$f":"IF(Setup!$AJ$7<>\"\",INDIRECT(\"'\" & Setup!$AJ$7 & \"'!\" & AD246),0) + IF(Setup!$AJ$8<>\"\",INDIRECT(\"'\" & Setup!$AJ$8 & \"'!\" & AD246),0) + IF(Setup!$AJ$9<>\"\",INDIRECT(\"'\" & Setup!$AJ$9 & \"'!\" & AD246),0) + IF(Setup!$AJ$10<>\"\",INDIRECT(\"'\" & Setup!$AJ$10 & \"'!\" & AD246),0) + IF(Setup!$AJ$11<>\"\",INDIRECT(\"'\" & Setup!$AJ$11 & \"'!\" & AD246),0) + IF(Setup!$AJ$12<>\"\",INDIRECT(\"'\" & Setup!$AJ$12 & \"'!\" & AD246),0)","v":0},{"$f":"IF(Setup!$AJ$7<>\"\",INDIRECT(\"'\" & Setup!$AJ$7 & \"'!\" & AE246),0) + IF(Setup!$AJ$8<>\"\",INDIRECT(\"'\" & Setup!$AJ$8 & \"'!\" & AE246),0) + IF(Setup!$AJ$9<>\"\",INDIRECT(\"'\" & Setup!$AJ$9 & \"'!\" & AE246),0) + IF(Setup!$AJ$10<>\"\",INDIRECT(\"'\" & Setup!$AJ$10 & \"'!\" & AE246),0) + IF(Setup!$AJ$11<>\"\",INDIRECT(\"'\" & Setup!$AJ$11 & \"'!\" & AE246),0) + IF(Setup!$AJ$12<>\"\",INDIRECT(\"'\" & Setup!$AJ$12 & \"'!\" & AE246),0)","v":0},"","",{"$f":"Planning!H18","v":"2. NO"},"3OI01","M34","O34","N34",null,null,{"$f":"IF(Setup!$AG$7<>\"\",INDIRECT(\"'\" & Setup!$AG$7 & \"'!\" & AF246),0) + IF(Setup!$AG$8<>\"\",INDIRECT(\"'\" & Setup!$AG$8 & \"'!\" & AF246),0) + IF(Setup!$AG$9<>\"\",INDIRECT(\"'\" & Setup!$AG$9 & \"'!\" & AF246),0) + IF(Setup!$AG$10<>\"\",INDIRECT(\"'\" & Setup!$AG$10 & \"'!\" & AF246),0) + IF(Setup!$AG$11<>\"\",INDIRECT(\"'\" & Setup!$AG$11 & \"'!\" & AF246),0) + IF(Setup!$AG$12<>\"\",INDIRECT(\"'\" & Setup!$AG$12 & \"'!\" & AF246),0)","v":0},{"$f":"IF(Setup!$AH$7<>\"\",INDIRECT(\"'\" & Setup!$AH$7 & \"'!\" & AF246),0) + IF(Setup!$AH$8<>\"\",INDIRECT(\"'\" & Setup!$AH$8 & \"'!\" & AF246),0) + IF(Setup!$AH$9<>\"\",INDIRECT(\"'\" & Setup!$AH$9 & \"'!\" & AF246),0) + IF(Setup!$AH$10<>\"\",INDIRECT(\"'\" & Setup!$AH$10 & \"'!\" & AF246),0) + IF(Setup!$AH$11<>\"\",INDIRECT(\"'\" & Setup!$AH$11 & \"'!\" & AF246),0) + IF(Setup!$AH$12<>\"\",INDIRECT(\"'\" & Setup!$AH$12 & \"'!\" & AF246),0)","v":0},{"$f":"IF(Setup!$AI$7<>\"\",INDIRECT(\"'\" & Setup!$AI$7 & \"'!\" & AF246),0) + IF(Setup!$AI$8<>\"\",INDIRECT(\"'\" & Setup!$AI$8 & \"'!\" & AF246),0) + IF(Setup!$AI$9<>\"\",INDIRECT(\"'\" & Setup!$AI$9 & \"'!\" & AF246),0) + IF(Setup!$AI$10<>\"\",INDIRECT(\"'\" & Setup!$AI$10 & \"'!\" & AF246),0) + IF(Setup!$AI$11<>\"\",INDIRECT(\"'\" & Setup!$AI$11 & \"'!\" & AF246),0) + IF(Setup!$AI$12<>\"\",INDIRECT(\"'\" & Setup!$AI$12 & \"'!\" & AF246),0)","v":0},{"$f":"IF(Setup!$AJ$7<>\"\",INDIRECT(\"'\" & Setup!$AJ$7 & \"'!\" & AF246),0) + IF(Setup!$AJ$8<>\"\",INDIRECT(\"'\" & Setup!$AJ$8 & \"'!\" & AF246),0) + IF(Setup!$AJ$9<>\"\",INDIRECT(\"'\" & Setup!$AJ$9 & \"'!\" & AF246),0) + IF(Setup!$AJ$10<>\"\",INDIRECT(\"'\" & Setup!$AJ$10 & \"'!\" & AF246),0) + IF(Setup!$AJ$11<>\"\",INDIRECT(\"'\" & Setup!$AJ$11 & \"'!\" & AF246),0) + IF(Setup!$AJ$12<>\"\",INDIRECT(\"'\" & Setup!$AJ$12 & \"'!\" & AF246),0)","v":0},null,"2",{"$nulls":30},0,{"$f":"IF(Setup!$AH$7=\"\",0,INDIRECT(\"'\" & Setup!$AH$7 & \"'!\" & AF246))","v":0},{"$f":"IF(Setup!$AI$7=\"\",0,INDIRECT(\"'\" & Setup!$AI$7 & \"'!\" & AF246))","v":0},{"$f":"IF(Setup!$AJ$7=\"\",0,INDIRECT(\"'\" & Setup!$AJ$7 & \"'!\" & AF246))","v":0}]
[{"$f":"Planning!A19","v":"I011"},{"$f":"Planning!B19","v":"2. Activity: Contributing"},{"$f":"Planning!C19","v":"OI01"},{"$f":"Planning!D19","v":4.2},{"$f":"Planning!E19","v":"# of OVC registered at centres"},{"$f":"Planning!G19","v":"12. Living support to client/ target population "},1,{"v":200000,"d":"200,000.00"},{"v":200000,"d":"200,000.00"},{"v":1,"d":"100.00%"},"",{"$f":"IF(Setup!$AG$7<>\"\",INDIRECT(\"'\" & Setup!$AG$7 & \"'!\" & AD247),0) + IF(Setup!$AG$8<>\"\",INDIRECT(\"'\" & Setup!$AG$8 & \"'!\" & AD247),0) + IF(Setup!$AG$9<>\"\",INDIRECT(\"'\" & Setup!$AG$9 & \"'!\" & AD247),0) + IF(Setup!$AG$10<>\"\",INDIRECT(\"'\" & Setup!$AG$10 & \"'!\" & AD247),0) + IF(Setup!$AG$11<>\"\",INDIRECT(\"'\" & Setup!$AG$11 & \"'!\" & AD247),0) + IF(Setup!$AG$12<>\"\",INDIRECT(\"'\" & Setup!$AG$12 & \"'!\" & AD247),0)","v":{"v":25000,"d":"25,000.00"}},{"$f":"IF(Setup!$AG$7<>\"\",INDIRECT(\"'\" & Setup!$AG$7 & \"'!\" & AE247),0) + IF(Setup!$AG$8<>\"\",INDIRECT(\"'\" & Setup!$AG$8 & \"'!\" & AE247),0) + IF(Setup!$AG$9<>\"\",INDIRECT(\"'\" & Setup!$AG$9 & \"'!\" & AE247),0) + IF(Setup!$AG$10<>\"\",INDIRECT(\"'\" & Setup!$AG$10 & \"'!\" & AE247),0) + IF(Setup!$AG$11<>\"\",INDIRECT(\"'\" & Setup!$AG$11 & \"'!\" & AE247),0) + IF(Setup!$AG$12<>\"\",INDIRECT(\"'\" & Setup!$AG$12 & \"'!\" & AE247),0)","v":{"v":25000,"d":"25,000.00"}},{"v":1,"d":"100.00%"},"",{"$f":"IF(Setup!$AH$7<>\"\",INDIRECT(\"'\" & Setup!$AH$7 & \"'!\" & AD247),0) + IF(Setup!$AH$8<>\"\",INDIRECT(\"'\" & Setup!$AH$8 & \"'!\" & AD247),0) + IF(Setup!$AH$9<>\"\",INDIRECT(\"'\" & Setup!$AH$9 & \"'!\" & AD247),0) + IF(Setup!$AH$10<>\"\",INDIRECT(\"'\" & Setup!$AH$10 & \"'!\" & AD247),0) + IF(Setup!$AH$11<>\"\",INDIRECT(\"'\" & Setup!$AH$11 & \"'!\" & AD247),0) + IF(Setup!$AH$12<>\"\",INDIRECT(\"'\" & Setup!$AH$12 & \"'!\" & AD247),0)","v":{"v":175000,"d":"175,000.00"}},{"$f":"IF(Setup!$AH$7<>\"\",INDIRECT(\"'\" & Setup!$AH$7 & \"'!\" & AE247),0) + IF(Setup!$AH$8<>\"\",INDIRECT(\"'\" & Setup!$AH$8 & \"'!\" & AE247),0) + IF(Setup!$AH$9<>\"\",INDIRECT(\"'\" & Setup!$AH$9 & \"'!\" & AE247),0) + IF(Setup!$AH$10<>\"\",INDIRECT(\"'\" & Setup!$AH$10 & \"'!\" & AE247),0) + IF(Setup!$AH$11<>\"\",INDIRECT(\"'\" & Setup!$AH$11 & \"'!\" & AE247),0) + IF(Setup!$AH$12<>\"\",INDIRECT(\"'\" & Setup!$AH$12 & \"'!\" & AE247),0)","v":{"v":175000,"d":"175,000.00"}},{"v":1,"d":"100.00%"},"",{"$f":"IF(Setup!$AI$7<>\"\",INDIRECT(\"'\" & Setup!$AI$7 & \"'!\" & AD247),0) + IF(Setup!$AI$8<>\"\",INDIRECT(\"'\" & Setup!$AI$8 & \"'!\" & AD247),0) + IF(Setup!$AI$9<>\"\",INDIRECT(\"'\" & Setup!$AI$9 & \"'!\" & AD247),0) + IF(Setup!$AI$10<>\"\",INDIRECT(\"'\" & Setup!$AI$10 & \"'!\" & AD247),0) + IF(Setup!$AI$11<>\"\",INDIRECT(\"'\" & Setup!$AI$11 & \"'!\" & AD247),0) + IF(Setup!$AI$12<>\"\",INDIRECT(\"'\" & Setup!$AI$12 & \"'!\" & AD247),0)","v":{"v":0,"d":"0.00"}},{"$f":"IF(Setup!$AI$7<>\"\",INDIRECT(\"'\" & Setup!$AI$7 & \"'!\" & AE247),0) + IF(Setup!$AI$8<>\"\",INDIRECT(\"'\" & Setup!$AI$8 & \"'!\" & AE247),0) + IF(Setup!$AI$9<>\"\",INDIRECT(\"'\" & Setup!$AI$9 & \"'!\" & AE247),0) + IF(Setup!$AI$10<>\"\",INDIRECT(\"'\" & Setup!$AI$10 & \"'!\" & AE247),0) + IF(Setup!$AI$11<>\"\",INDIRECT(\"'\" & Setup!$AI$11 & \"'!\" & AE247),0) + IF(Setup!$AI$12<>\"\",INDIRECT(\"'\" & Setup!$AI$12 & \"'!\" & AE247),0)","v":{"v":0,"d":"0.00"}},"","",{"$f":"IF(Setup!$AJ$7<>\"\",INDIRECT(\"'\" & Setup!$AJ$7 & \"'!\" & AD247),0) + IF(Setup!$AJ$8<>\"\",INDIRECT(\"'\" & Setup!$AJ$8 & \"'!\" & AD247),0) + IF(Setup!$AJ$9<>\"\",INDIRECT(\"'\" & Setup!$AJ$9 & \"'!\" & AD247),0) + IF(Setup!$AJ$10<>\"\",INDIRECT(\"'\" & Setup!$AJ$10 & \"'!\" & AD247),0) + IF(Setup!$AJ$11<>\"\",INDIRECT(\"'\" & Setup!$AJ$11 & \"'!\" & AD247),0) + IF(Setup!$AJ$12<>\"\",INDIRECT(\"'\" & Setup!$AJ$12 & \"'!\" & AD247),0)","v":0},{"$f":"IF(Setup!$AJ$7<>\"\",INDIRECT(\"'\" & Setup!$AJ$7 & \"'!\" & AE247),0) + IF(Setup!$AJ$8<>\"\",INDIRECT(\"'\" & Setup!$AJ$8 & \"'!\" & AE247),0) + IF(Setup!$AJ$9<>\"\",INDIRECT(\"'\" & Setup!$AJ$9 & \"'!\" & AE247),0) + IF(Setup!$AJ$10<>\"\",INDIRECT(\"'\" & Setup!$AJ$10 & \"'!\" & AE247),0) + IF(Setup!$AJ$11<>\"\",INDIRECT(\"'\" & Setup!$AJ$11 & \"'!\" & AE247),0) + IF(Setup!$AJ$12<>\"\",INDIRECT(\"'\" & Setup!$AJ$12 & \"'!\" & AE247),0)","v":0},"","",{"$f":"Planning!H19","v":"1. YES"},"2OI01","M35","O35","N35",null,null,{"$f":"IF(Setup!$AG$7<>\"\",INDIRECT(\"'\" & Setup!$AG$7 & \"'!\" & AF247),0) + IF(Setup!$AG$8<>\"\",INDIRECT(\"'\" & Setup!$AG$8 & \"'!\" & AF247),0) + IF(Setup!$AG$9<>\"\",INDIRECT(\"'\" & Setup!$AG$9 & \"'!\" & AF247),0) + IF(Setup!$AG$10<>\"\",INDIRECT(\"'\" & Setup!$AG$10 & \"'!\" & AF247),0) + IF(Setup!$AG$11<>\"\",INDIRECT(\"'\" & Setup!$AG$11 & \"'!\" & AF247),0) + IF(Setup!$AG$12<>\"\",INDIRECT(\"'\" & Setup!$AG$12 & \"'!\" & AF247),0)","v":0},{"$f":"IF(Setup!$AH$7<>\"\",INDIRECT(\"'\" & Setup!$AH$7 & \"'!\" & AF247),0) + IF(Setup!$AH$8<>\"\",INDIRECT(\"'\" & Setup!$AH$8 & \"'!\" & AF247),0) + IF(Setup!$AH$9<>\"\",INDIRECT(\"'\" & Setup!$AH$9 & \"'!\" & AF247),0) + IF(Setup!$AH$10<>\"\",INDIRECT(\"'\" & Setup!$AH$10 & \"'!\" & AF247),0) + IF(Setup!$AH$11<>\"\",INDIRECT(\"'\" & Setup!$AH$11 & \"'!\" & AF247),0) + IF(Setup!$AH$12<>\"\",INDIRECT(\"'\" & Setup!$AH$12 & \"'!\" & AF247),0)","v":0},{"$f":"IF(Setup!$AI$7<>\"\",INDIRECT(\"'\" & Setup!$AI$7 & \"'!\" & AF247),0) + IF(Setup!$AI$8<>\"\",INDIRECT(\"'\" & Setup!$AI$8 & \"'!\" & AF247),0) + IF(Setup!$AI$9<>\"\",INDIRECT(\"'\" & Setup!$AI$9 & \"'!\" & AF247),0) + IF(Setup!$AI$10<>\"\",INDIRECT(\"'\" & Setup!$AI$10 & \"'!\" & AF247),0) + IF(Setup!$AI$11<>\"\",INDIRECT(\"'\" & Setup!$AI$11 & \"'!\" & AF247),0) + IF(Setup!$AI$12<>\"\",INDIRECT(\"'\" & Setup!$AI$12 & \"'!\" & AF247),0)","v":0},{"$f":"IF(Setup!$AJ$7<>\"\",INDIRECT(\"'\" & Setup!$AJ$7 & \"'!\" & AF247),0) + IF(Setup!$AJ$8<>\"\",INDIRECT(\"'\" & Setup!$AJ$8 & \"'!\" & AF247),0) + IF(Setup!$AJ$9<>\"\",INDIRECT(\"'\" & Setup!$AJ$9 & \"'!\" & AF247),0) + IF(Setup!$AJ$10<>\"\",INDIRECT(\"'\" & Setup!$AJ$10 & \"'!\" & AF247),0) + IF(Setup!$AJ$11<>\"\",INDIRECT(\"'\" & Setup!$AJ$11 & \"'!\" & AF247),0) + IF(Setup!$AJ$12<>\"\",INDIRECT(\"'\" & Setup!$AJ$12 & \"'!\" & AF247),0)","v":0},null,"2",{"$nulls":30},0,{"$f":"IF(Setup!$AH$7=\"\",0,INDIRECT(\"'\" & Setup!$AH$7 & \"'!\" & AF247))","v":0},{"$f":"IF(Setup!$AI$7=\"\",0,INDIRECT(\"'\" & Setup!$AI$7 & \"'!\" & AF247))","v":0},{"$f":"IF(Setup!$AJ$7=\"\",0,INDIRECT(\"'\" & Setup!$AJ$7 & \"'!\" & AF247))","v":0}]
[{"$f":"Planning!A20","v":"I012"},{"$f":"Planning!B20","v":"3. Activity: Non-Contributing"},{"$f":"Planning!C20","v":"OI01"},{"$f":"Planning!D20","v":4.3},{"$f":"Planning!E20","v":"# of meals provided at the OVC centers "},{"$f":"Planning!G20","v":"12. Living support to client/ target population "},1,{"v":32000,"d":"32,000.00"},{"v":31000,"d":"31,000.00"},{"v":0.96875,"d":"96.88%"},"",{"$f":"IF(Setup!$AG$7<>\"\",INDIRECT(\"'\" & Setup!$AG$7 & \"'!\" & AD248),0) + IF(Setup!$AG$8<>\"\",INDIRECT(\"'\" & Setup!$AG$8 & \"'!\" & AD248),0) + IF(Setup!$AG$9<>\"\",INDIRECT(\"'\" & Setup!$AG$9 & \"'!\" & AD248),0) + IF(Setup!$AG$10<>\"\",INDIRECT(\"'\" & Setup!$AG$10 & \"'!\" & AD248),0) + IF(Setup!$AG$11<>\"\",INDIRECT(\"'\" & Setup!$AG$11 & \"'!\" & AD248),0) + IF(Setup!$AG$12<>\"\",INDIRECT(\"'\" & Setup!$AG$12 & \"'!\" & AD248),0)","v":{"v":4000,"d":"4,000.00"}},{"$f":"IF(Setup!$AG$7<>\"\",INDIRECT(\"'\" & Setup!$AG$7 & \"'!\" & AE248),0) + IF(Setup!$AG$8<>\"\",INDIRECT(\"'\" & Setup!$AG$8 & \"'!\" & AE248),0) + IF(Setup!$AG$9<>\"\",INDIRECT(\"'\" & Setup!$AG$9 & \"'!\" & AE248),0) + IF(Setup!$AG$10<>\"\",INDIRECT(\"'\" & Setup!$AG$10 & \"'!\" & AE248),0) + IF(Setup!$AG$11<>\"\",INDIRECT(\"'\" & Setup!$AG$11 & \"'!\" & AE248),0) + IF(Setup!$AG$12<>\"\",INDIRECT(\"'\" & Setup!$AG$12 & \"'!\" & AE248),0)","v":{"v":3800,"d":"3,800.00"}},{"v":0.95,"d":"95.00%"},"",{"$f":"IF(Setup!$AH$7<>\"\",INDIRECT(\"'\" & Setup!$AH$7 & \"'!\" & AD248),0) + IF(Setup!$AH$8<>\"\",INDIRECT(\"'\" & Setup!$AH$8 & \"'!\" & AD248),0) + IF(Setup!$AH$9<>\"\",INDIRECT(\"'\" & Setup!$AH$9 & \"'!\" & AD248),0) + IF(Setup!$AH$10<>\"\",INDIRECT(\"'\" & Setup!$AH$10 & \"'!\" & AD248),0) + IF(Setup!$AH$11<>\"\",INDIRECT(\"'\" & Setup!$AH$11 & \"'!\" & AD248),0) + IF(Setup!$AH$12<>\"\",INDIRECT(\"'\" & Setup!$AH$12 & \"'!\" & AD248),0)","v":{"v":28000,"d":"28,000.00"}},{"$f":"IF(Setup!$AH$7<>\"\",INDIRECT(\"'\" & Setup!$AH$7 & \"'!\" & AE248),0) + IF(Setup!$AH$8<>\"\",INDIRECT(\"'\" & Setup!$AH$8 & \"'!\" & AE248),0) + IF(Setup!$AH$9<>\"\",INDIRECT(\"'\" & Setup!$AH$9 & \"'!\" & AE248),0) + IF(Setup!$AH$10<>\"\",INDIRECT(\"'\" & Setup!$AH$10 & \"'!\" & AE248),0) + IF(Setup!$AH$11<>\"\",INDIRECT(\"'\" & Setup!$AH$11 & \"'!\" & AE248),0) + IF(Setup!$AH$12<>\"\",INDIRECT(\"'\" & Setup!$AH$12 & \"'!\" & AE248),0)","v":{"v":27200,"d":"27,200.00"}},{"v":0.9714285714285714,"d":"97.14%"},"",{"$f":"IF(Setup!$AI$7<>\"\",INDIRECT(\"'\" & Setup!$AI$7 & \"'!\" & AD248),0) + IF(Setup!$AI$8<>\"\",INDIRECT(\"'\" & Setup!$AI$8 & \"'!\" & AD248),0) + IF(Setup!$AI$9<>\"\",INDIRECT(\"'\" & Setup!$AI$9 & \"'!\" & AD248),0) + IF(Setup!$AI$10<>\"\",INDIRECT(\"'\" & Setup!$AI$10 & \"'!\" & AD248),0) + IF(Setup!$AI$11<>\"\",INDIRECT(\"'\" & Setup!$AI$11 & \"'!\" & AD248),0) + IF(Setup!$AI$12<>\"\",INDIRECT(\"'\" & Setup!$AI$12 & \"'!\" & AD248),0)","v":{"v":0,"d":"0.00"}},{"$f":"IF(Setup!$AI$7<>\"\",INDIRECT(\"'\" & Setup!$AI$7 & \"'!\" & AE248),0) + IF(Setup!$AI$8<>\"\",INDIRECT(\"'\" & Setup!$AI$8 & \"'!\" & AE248),0) + IF(Setup!$AI$9<>\"\",INDIRECT(\"'\" & Setup!$AI$9 & \"'!\" & AE248),0) + IF(Setup!$AI$10<>\"\",INDIRECT(\"'\" & Setup!$AI$10 & \"'!\" & AE248),0) + IF(Setup!$AI$11<>\"\",INDIRECT(\"'\" & Setup!$AI$11 & \"'!\" & AE248),0) + IF(Setup!$AI$12<>\"\",INDIRECT(\"'\" & Setup!$AI$12 & \"'!\" & AE248),0)","v":{"v":0,"d":"0.00"}},"","",{"$f":"IF(Setup!$AJ$7<>\"\",INDIRECT(\"'\" & Setup!$AJ$7 & \"'!\" & AD248),0) + IF(Setup!$AJ$8<>\"\",INDIRECT(\"'\" & Setup!$AJ$8 & \"'!\" & AD248),0) + IF(Setup!$AJ$9<>\"\",INDIRECT(\"'\" & Setup!$AJ$9 & \"'!\" & AD248),0) + IF(Setup!$AJ$10<>\"\",INDIRECT(\"'\" & Setup!$AJ$10 & \"'!\" & AD248),0) + IF(Setup!$AJ$11<>\"\",INDIRECT(\"'\" & Setup!$AJ$11 & \"'!\" & AD248),0) + IF(Setup!$AJ$12<>\"\",INDIRECT(\"'\" & Setup!$AJ$12 & \"'!\" & AD248),0)","v":0},{"$f":"IF(Setup!$AJ$7<>\"\",INDIRECT(\"'\" & Setup!$AJ$7 & \"'!\" & AE248),0) + IF(Setup!$AJ$8<>\"\",INDIRECT(\"'\" & Setup!$AJ$8 & \"'!\" & AE248),0) + IF(Setup!$AJ$9<>\"\",INDIRECT(\"'\" & Setup!$AJ$9 & \"'!\" & AE248),0) + IF(Setup!$AJ$10<>\"\",INDIRECT(\"'\" & Setup!$AJ$10 & \"'!\" & AE248),0) + IF(Setup!$AJ$11<>\"\",INDIRECT(\"'\" & Setup!$AJ$11 & \"'!\" & AE248),0) + IF(Setup!$AJ$12<>\"\",INDIRECT(\"'\" & Setup!$AJ$12 & \"'!\" & AE248),0)","v":0},"","",{"$f":"Planning!H20","v":"2. NO"},"3OI01","M36","O36","N36",null,null,{"$f":"IF(Setup!$AG$7<>\"\",INDIRECT(\"'\" & Setup!$AG$7 & \"'!\" & AF248),0) + IF(Setup!$AG$8<>\"\",INDIRECT(\"'\" & Setup!$AG$8 & \"'!\" & AF248),0) + IF(Setup!$AG$9<>\"\",INDIRECT(\"'\" & Setup!$AG$9 & \"'!\" & AF248),0) + IF(Setup!$AG$10<>\"\",INDIRECT(\"'\" & Setup!$AG$10 & \"'!\" & AF248),0) + IF(Setup!$AG$11<>\"\",INDIRECT(\"'\" & Setup!$AG$11 & \"'!\" & AF248),0) + IF(Setup!$AG$12<>\"\",INDIRECT(\"'\" & Setup!$AG$12 & \"'!\" & AF248),0)","v":0},{"$f":"IF(Setup!$AH$7<>\"\",INDIRECT(\"'\" & Setup!$AH$7 & \"'!\" & AF248),0) + IF(Setup!$AH$8<>\"\",INDIRECT(\"'\" & Setup!$AH$8 & \"'!\" & AF248),0) + IF(Setup!$AH$9<>\"\",INDIRECT(\"'\" & Setup!$AH$9 & \"'!\" & AF248),0) + IF(Setup!$AH$10<>\"\",INDIRECT(\"'\" & Setup!$AH$10 & \"'!\" & AF248),0) + IF(Setup!$AH$11<>\"\",INDIRECT(\"'\" & Setup!$AH$11 & \"'!\" & AF248),0) + IF(Setup!$AH$12<>\"\",INDIRECT(\"'\" & Setup!$AH$12 & \"'!\" & AF248),0)","v":400},{"$f":"IF(Setup!$AI$7<>\"\",INDIRECT(\"'\" & Setup!$AI$7 & \"'!\" & AF248),0) + IF(Setup!$AI$8<>\"\",INDIRECT(\"'\" & Setup!$AI$8 & \"'!\" & AF248),0) + IF(Setup!$AI$9<>\"\",INDIRECT(\"'\" & Setup!$AI$9 & \"'!\" & AF248),0) + IF(Setup!$AI$10<>\"\",INDIRECT(\"'\" & Setup!$AI$10 & \"'!\" & AF248),0) + IF(Setup!$AI$11<>\"\",INDIRECT(\"'\" & Setup!$AI$11 & \"'!\" & AF248),0) + IF(Setup!$AI$12<>\"\",INDIRECT(\"'\" & Setup!$AI$12 & \"'!\" & AF248),0)","v":3000},{"$f":"IF(Setup!$AJ$7<>\"\",INDIRECT(\"'\" & Setup!$AJ$7 & \"'!\" & AF248),0) + IF(Setup!$AJ$8<>\"\",INDIRECT(\"'\" & Setup!$AJ$8 & \"'!\" & AF248),0) + IF(Setup!$AJ$9<>\"\",INDIRECT(\"'\" & Setup!$AJ$9 & \"'!\" & AF248),0) + IF(Setup!$AJ$10<>\"\",INDIRECT(\"'\" & Setup!$AJ$10 & \"'!\" & AF248),0) + IF(Setup!$AJ$11<>\"\",INDIRECT(\"'\" & Setup!$AJ$11 & \"'!\" & AF248),0) + IF(Setup!$AJ$12<>\"\",INDIRECT(\"'\" & Setup!$AJ$12 & \"'!\" & AF248),0)","v":3000},null,"2",{"$nulls":30},0,{"$f":"IF(Setup!$AH$7=\"\",0,INDIRECT(\"'\" & Setup!$AH$7 & \"'!\" & AF248))","v":200},{"$f":"IF(Setup!$AI$7=\"\",0,INDIRECT(\"'\" & Setup!$AI$7 & \"'!\" & AF248))","v":1000},{"$f":"IF(Setup!$AJ$7=\"\",0,INDIRECT(\"'\" & Setup!$AJ$7 & \"'!\" & AF248))","v":1000}]
[{"$f":"Planning!A21","v":"I013"},{"$f":"Planning!B21","v":0},{"$f":"Planning!C21","v":0},{"$f":"Planning!D21","v":0},{"$f":"Planning!E21","v":0},{"$f":"Planning!G21","v":0},0,{"v":0,"d":"0.00"},{"v":0,"d":"0.00"},"","",{"$f":"IF(Setup!$AG$7<>\"\",INDIRECT(\"'\" & Setup!$AG$7 & \"'!\" & AD249),0) + IF(Setup!$AG$8<>\"\",INDIRECT(\"'\" & Setup!$AG$8 & \"'!\" & AD249),0) + IF(Setup!$AG$9<>\"\",INDIRECT(\"'\" & Setup!$AG$9 & \"'!\" & AD249),0) + IF(Setup!$AG$10<>\"\",INDIRECT(\"'\" & Setup!$AG$10 & \"'!\" & AD249),0) + IF(Setup!$AG$11<>\"\",INDIRECT(\"'\" & Setup!$AG$11 & \"'!\" & AD249),0) + IF(Setup!$AG$12<>\"\",INDIRECT(\"'\" & Setup!$AG$12 & \"'!\" & AD249),0)","v":{"v":0,"d":"0.00"}},{"$f":"IF(Setup!$AG$7<>\"\",INDIRECT(\"'\" & Setup!$AG$7 & \"'!\" & AE249),0) + IF(Setup!$AG$8<>\"\",INDIRECT(\"'\" & Setup!$AG$8 & \"'!\" & AE249),0) + IF(Setup!$AG$9<>\"\",INDIRECT(\"'\" & Setup!$AG$9 & \"'!\" & AE249),0) + IF(Setup!$AG$10<>\"\",INDIRECT(\"'\" & Setup!$AG$10 & \"'!\" & AE249),0) + IF(Setup!$AG$11<>\"\",INDIRECT(\"'\" & Setup!$AG$11 & \"'!\" & AE249),0) + IF(Setup!$AG$12<>\"\",INDIRECT(\"'\" & Setup!$AG$12 & \"'!\" & AE249),0)","v":{"v":0,"d":"0.00"}},"","",{"$f":"IF(Setup!$AH$7<>\"\",INDIRECT(\"'\" & Setup!$AH$7 & \"'!\" & AD249),0) + IF(Setup!$AH$8<>\"\",INDIRECT(\"'\" & Setup!$AH$8 & \"'!\" & AD249),0) + IF(Setup!$AH$9<>\"\",INDIRECT(\"'\" & Setup!$AH$9 & \"'!\" & AD249),0) + IF(Setup!$AH$10<>\"\",INDIRECT(\"'\" & Setup!$AH$10 & \"'!\" & AD249),0) + IF(Setup!$AH$11<>\"\",INDIRECT(\"'\" & Setup!$AH$11 & \"'!\" & AD249),0) + IF(Setup!$AH$12<>\"\",INDIRECT(\"'\" & Setup!$AH$12 & \"'!\" & AD249),0)","v":{"v":0,"d":"0.00"}},{"$f":"IF(Setup!$AH$7<>\"\",INDIRECT(\"'\" & Setup!$AH$7 & \"'!\" & AE249),0) + IF(Setup!$AH$8<>\"\",INDIRECT(\"'\" & Setup!$AH$8 & \"'!\" & AE249),0) + IF(Setup!$AH$9<>\"\",INDIRECT(\"'\" & Setup!$AH$9 & \"'!\" & AE249),0) + IF(Setup!$AH$10<>\"\",INDIRECT(\"'\" & Setup!$AH$10 & \"'!\" & AE249),0) + IF(Setup!$AH$11<>\"\",INDIRECT(\"'\" & Setup!$AH$11 & \"'!\" & AE249),0) + IF(Setup!$AH$12<>\"\",INDIRECT(\"'\" & Setup!$AH$12 & \"'!\" & AE249),0)","v":{"v":0,"d":"0.00"}},"","",{"$f":"IF(Setup!$AI$7<>\"\",INDIRECT(\"'\" & Setup!$AI$7 & \"'!\" & AD249),0) + IF(Setup!$AI$8<>\"\",INDIRECT(\"'\" & Setup!$AI$8 & \"'!\" & AD249),0) + IF(Setup!$AI$9<>\"\",INDIRECT(\"'\" & Setup!$AI$9 & \"'!\" & AD249),0) + IF(Setup!$AI$10<>\"\",INDIRECT(\"'\" & Setup!$AI$10 & \"'!\" & AD249),0) + IF(Setup!$AI$11<>\"\",INDIRECT(\"'\" & Setup!$AI$11 & \"'!\" & AD249),0) + IF(Setup!$AI$12<>\"\",INDIRECT(\"'\" & Setup!$AI$12 & \"'!\" & AD249),0)","v":{"v":0,"d":"0.00"}},{"$f":"IF(Setup!$AI$7<>\"\",INDIRECT(\"'\" & Setup!$AI$7 & \"'!\" & AE249),0) + IF(Setup!$AI$8<>\"\",INDIRECT(\"'\" & Setup!$AI$8 & \"'!\" & AE249),0) + IF(Setup!$AI$9<>\"\",INDIRECT(\"'\" & Setup!$AI$9 & \"'!\" & AE249),0) + IF(Setup!$AI$10<>\"\",INDIRECT(\"'\" & Setup!$AI$10 & \"'!\" & AE249),0) + IF(Setup!$AI$11<>\"\",INDIRECT(\"'\" & Setup!$AI$11 & \"'!\" & AE249),0) + IF(Setup!$AI$12<>\"\",INDIRECT(\"'\" & Setup!$AI$12 & \"'!\" & AE249),0)","v":{"v":0,"d":"0.00"}},"","",{"$f":"IF(Setup!$AJ$7<>\"\",INDIRECT(\"'\" & Setup!$AJ$7 & \"'!\" & AD249),0) + IF(Setup!$AJ$8<>\"\",INDIRECT(\"'\" & Setup!$AJ$8 & \"'!\" & AD249),0) + IF(Setup!$AJ$9<>\"\",INDIRECT(\"'\" & Setup!$AJ$9 & \"'!\" & AD249),0) + IF(Setup!$AJ$10<>\"\",INDIRECT(\"'\" & Setup!$AJ$10 & \"'!\" & AD249),0) + IF(Setup!$AJ$11<>\"\",INDIRECT(\"'\" & Setup!$AJ$11 & \"'!\" & AD249),0) + IF(Setup!$AJ$12<>\"\",INDIRECT(\"'\" & Setup!$AJ$12 & \"'!\" & AD249),0)","v":0},{"$f":"IF(Setup!$AJ$7<>\"\",INDIRECT(\"'\" & Setup!$AJ$7 & \"'!\" & AE249),0) + IF(Setup!$AJ$8<>\"\",INDIRECT(\"'\" & Setup!$AJ$8 & \"'!\" & AE249),0) + IF(Setup!$AJ$9<>\"\",INDIRECT(\"'\" & Setup!$AJ$9 & \"'!\" & AE249),0) + IF(Setup!$AJ$10<>\"\",INDIRECT(\"'\" & Setup!$AJ$10 & \"'!\" & AE249),0) + IF(Setup!$AJ$11<>\"\",INDIRECT(\"'\" & Setup!$AJ$11 & \"'!\" & AE249),0) + IF(Setup!$AJ$12<>\"\",INDIRECT(\"'\" & Setup!$AJ$12 & \"'!\" & AE249),0)","v":0},"","",{"$f":"Planning!H21","v":0},"00","M37","O37","N37",null,null,{"$f":"IF(Setup!$AG$7<>\"\",INDIRECT(\"'\" & Setup!$AG$7 & \"'!\" & AF249),0) + IF(Setup!$AG$8<>\"\",INDIRECT(\"'\" & Setup!$AG$8 & \"'!\" & AF249),0) + IF(Setup!$AG$9<>\"\",INDIRECT(\"'\" & Setup!$AG$9 & \"'!\" & AF249),0) + IF(Setup!$AG$10<>\"\",INDIRECT(\"'\" & Setup!$AG$10 & \"'!\" & AF249),0) + IF(Setup!$AG$11<>\"\",INDIRECT(\"'\" & Setup!$AG$11 & \"'!\" & AF249),0) + IF(Setup!$AG$12<>\"\",INDIRECT(\"'\" & Setup!$AG$12 & \"'!\" & AF249),0)","v":0},{"$f":"IF(Setup!$AH$7<>\"\",INDIRECT(\"'\" & Setup!$AH$7 & \"'!\" & AF249),0) + IF(Setup!$AH$8<>\"\",INDIRECT(\"'\" & Setup!$AH$8 & \"'!\" & AF249),0) + IF(Setup!$AH$9<>\"\",INDIRECT(\"'\" & Setup!$AH$9 & \"'!\" & AF249),0) + IF(Setup!$AH$10<>\"\",INDIRECT(\"'\" & Setup!$AH$10 & \"'!\" & AF249),0) + IF(Setup!$AH$11<>\"\",INDIRECT(\"'\" & Setup!$AH$11 & \"'!\" & AF249),0) + IF(Setup!$AH$12<>\"\",INDIRECT(\"'\" & Setup!$AH$12 & \"'!\" & AF249),0)","v":0},{"$f":"IF(Setup!$AI$7<>\"\",INDIRECT(\"'\" & Setup!$AI$7 & \"'!\" & AF249),0) + IF(Setup!$AI$8<>\"\",INDIRECT(\"'\" & Setup!$AI$8 & \"'!\" & AF249),0) + IF(Setup!$AI$9<>\"\",INDIRECT(\"'\" & Setup!$AI$9 & \"'!\" & AF249),0) + IF(Setup!$AI$10<>\"\",INDIRECT(\"'\" & Setup!$AI$10 & \"'!\" & AF249),0) + IF(Setup!$AI$11<>\"\",INDIRECT(\"'\" & Setup!$AI$11 & \"'!\" & AF249),0) + IF(Setup!$AI$12<>\"\",INDIRECT(\"'\" & Setup!$AI$12 & \"'!\" & AF249),0)","v":0},{"$f":"IF(Setup!$AJ$7<>\"\",INDIRECT(\"'\" & Setup!$AJ$7 & \"'!\" & AF249),0) + IF(Setup!$AJ$8<>\"\",INDIRECT(\"'\" & Setup!$AJ$8 & \"'!\" & AF249),0) + IF(Setup!$AJ$9<>\"\",INDIRECT(\"'\" & Setup!$AJ$9 & \"'!\" & AF249),0) + IF(Setup!$AJ$10<>\"\",INDIRECT(\"'\" & Setup!$AJ$10 & \"'!\" & AF249),0) + IF(Setup!$AJ$11<>\"\",INDIRECT(\"'\" & Setup!$AJ$11 & \"'!\" & AF249),0) + IF(Setup!$AJ$12<>\"\",INDIRECT(\"'\" & Setup!$AJ$12 & \"'!\" & AF249),0)","v":0},null,"",{"$nulls":30},0,{"$f":"IF(Setup!$AH$7=\"\",0,INDIRECT(\"'\" & Setup!$AH$7 & \"'!\" & AF249))","v":0},{"$f":"IF(Setup!$AI$7=\"\",0,INDIRECT(\"'\" & Setup!$AI$7 & \"'!\" & AF249))","v":0},{"$f":"IF(Setup!$AJ$7=\"\",0,INDIRECT(\"'\" & Setup!$AJ$7 & \"'!\" & AF249))","v":0}]
[{"$f":"Planning!A22","v":"I014"},{"$f":"Planning!B22","v":0},{"$f":"Planning!C22","v":0},{"$f":"Planning!D22","v":0},{"$f":"Planning!E22","v":0},{"$f":"Planning!G22","v":0},0,{"v":0,"d":"0.00"},{"v":0,"d":"0.00"},"","",{"$f":"IF(Setup!$AG$7<>\"\",INDIRECT(\"'\" & Setup!$AG$7 & \"'!\" & AD250),0) + IF(Setup!$AG$8<>\"\",INDIRECT(\"'\" & Setup!$AG$8 & \"'!\" & AD250),0) + IF(Setup!$AG$9<>\"\",INDIRECT(\"'\" & Setup!$AG$9 & \"'!\" & AD250),0) + IF(Setup!$AG$10<>\"\",INDIRECT(\"'\" & Setup!$AG$10 & \"'!\" & AD250),0) + IF(Setup!$AG$11<>\"\",INDIRECT(\"'\" & Setup!$AG$11 & \"'!\" & AD250),0) + IF(Setup!$AG$12<>\"\",INDIRECT(\"'\" & Setup!$AG$12 & \"'!\" & AD250),0)","v":{"v":0,"d":"0.00"}},{"$f":"IF(Setup!$AG$7<>\"\",INDIRECT(\"'\" & Setup!$AG$7 & \"'!\" & AE250),0) + IF(Setup!$AG$8<>\"\",INDIRECT(\"'\" & Setup!$AG$8 & \"'!\" & AE250),0) + IF(Setup!$AG$9<>\"\",INDIRECT(\"'\" & Setup!$AG$9 & \"'!\" & AE250),0) + IF(Setup!$AG$10<>\"\",INDIRECT(\"'\" & Setup!$AG$10 & \"'!\" & AE250),0) + IF(Setup!$AG$11<>\"\",INDIRECT(\"'\" & Setup!$AG$11 & \"'!\" & AE250),0) + IF(Setup!$AG$12<>\"\",INDIRECT(\"'\" & Setup!$AG$12 & \"'!\" & AE250),0)","v":{"v":0,"d":"0.00"}},"","",{"$f":"IF(Setup!$AH$7<>\"\",INDIRECT(\"'\" & Setup!$AH$7 & \"'!\" & AD250),0) + IF(Setup!$AH$8<>\"\",INDIRECT(\"'\" & Setup!$AH$8 & \"'!\" & AD250),0) + IF(Setup!$AH$9<>\"\",INDIRECT(\"'\" & Setup!$AH$9 & \"'!\" & AD250),0) + IF(Setup!$AH$10<>\"\",INDIRECT(\"'\" & Setup!$AH$10 & \"'!\" & AD250),0) + IF(Setup!$AH$11<>\"\",INDIRECT(\"'\" & Setup!$AH$11 & \"'!\" & AD250),0) + IF(Setup!$AH$12<>\"\",INDIRECT(\"'\" & Setup!$AH$12 & \"'!\" & AD250),0)","v":{"v":0,"d":"0.00"}},{"$f":"IF(Setup!$AH$7<>\"\",INDIRECT(\"'\" & Setup!$AH$7 & \"'!\" & AE250),0) + IF(Setup!$AH$8<>\"\",INDIRECT(\"'\" & Setup!$AH$8 & \"'!\" & AE250),0) + IF(Setup!$AH$9<>\"\",INDIRECT(\"'\" & Setup!$AH$9 & \"'!\" & AE250),0) + IF(Setup!$AH$10<>\"\",INDIRECT(\"'\" & Setup!$AH$10 & \"'!\" & AE250),0) + IF(Setup!$AH$11<>\"\",INDIRECT(\"'\" & Setup!$AH$11 & \"'!\" & AE250),0) + IF(Setup!$AH$12<>\"\",INDIRECT(\"'\" & Setup!$AH$12 & \"'!\" & AE250),0)","v":{"v":0,"d":"0.00"}},"","",{"$f":"IF(Setup!$AI$7<>\"\",INDIRECT(\"'\" & Setup!$AI$7 & \"'!\" & AD250),0) + IF(Setup!$AI$8<>\"\",INDIRECT(\"'\" & Setup!$AI$8 & \"'!\" & AD250),0) + IF(Setup!$AI$9<>\"\",INDIRECT(\"'\" & Setup!$AI$9 & \"'!\" & AD250),0) + IF(Setup!$AI$10<>\"\",INDIRECT(\"'\" & Setup!$AI$10 & \"'!\" & AD250),0) + IF(Setup!$AI$11<>\"\",INDIRECT(\"'\" & Setup!$AI$11 & \"'!\" & AD250),0) + IF(Setup!$AI$12<>\"\",INDIRECT(\"'\" & Setup!$AI$12 & \"'!\" & AD250),0)","v":{"v":0,"d":"0.00"}},{"$f":"IF(Setup!$AI$7<>\"\",INDIRECT(\"'\" & Setup!$AI$7 & \"'!\" & AE250),0) + IF(Setup!$AI$8<>\"\",INDIRECT(\"'\" & Setup!$AI$8 & \"'!\" & AE250),0) + IF(Setup!$AI$9<>\"\",INDIRECT(\"'\" & Setup!$AI$9 & \"'!\" & AE250),0) + IF(Setup!$AI$10<>\"\",INDIRECT(\"'\" & Setup!$AI$10 & \"'!\" & AE250),0) + IF(Setup!$AI$11<>\"\",INDIRECT(\"'\" & Setup!$AI$11 & \"'!\" & AE250),0) + IF(Setup!$AI$12<>\"\",INDIRECT(\"'\" & Setup!$AI$12 & \"'!\" & AE250),0)","v":{"v":0,"d":"0.00"}},"","",{"$f":"IF(Setup!$AJ$7<>\"\",INDIRECT(\"'\" & Setup!$AJ$7 & \"'!\" & AD250),0) + IF(Setup!$AJ$8<>\"\",INDIRECT(\"'\" & Setup!$AJ$8 & \"'!\" & AD250),0) + IF(Setup!$AJ$9<>\"\",INDIRECT(\"'\" & Setup!$AJ$9 & \"'!\" & AD250),0) + IF(Setup!$AJ$10<>\"\",INDIRECT(\"'\" & Setup!$AJ$10 & \"'!\" & AD250),0) + IF(Setup!$AJ$11<>\"\",INDIRECT(\"'\" & Setup!$AJ$11 & \"'!\" & AD250),0) + IF(Setup!$AJ$12<>\"\",INDIRECT(\"'\" & Setup!$AJ$12 & \"'!\" & AD250),0)","v":0},{"$f":"IF(Setup!$AJ$7<>\"\",INDIRECT(\"'\" & Setup!$AJ$7 & \"'!\" & AE250),0) + IF(Setup!$AJ$8<>\"\",INDIRECT(\"'\" & Setup!$AJ$8 & \"'!\" & AE250),0) + IF(Setup!$AJ$9<>\"\",INDIRECT(\"'\" & Setup!$AJ$9 & \"'!\" & AE250),0) + IF(Setup!$AJ$10<>\"\",INDIRECT(\"'\" & Setup!$AJ$10 & \"'!\" & AE250),0) + IF(Setup!$AJ$11<>\"\",INDIRECT(\"'\" & Setup!$AJ$11 & \"'!\" & AE250),0) + IF(Setup!$AJ$12<>\"\",INDIRECT(\"'\" & Setup!$AJ$12 & \"'!\" & AE250),0)","v":0},"","",{"$f":"Planning!H22","v":0},"00","M38","O38","N38",null,null,{"$f":"IF(Setup!$AG$7<>\"\",INDIRECT(\"'\" & Setup!$AG$7 & \"'!\" & AF250),0) + IF(Setup!$AG$8<>\"\",INDIRECT(\"'\" & Setup!$AG$8 & \"'!\" & AF250),0) + IF(Setup!$AG$9<>\"\",INDIRECT(\"'\" & Setup!$AG$9 & \"'!\" & AF250),0) + IF(Setup!$AG$10<>\"\",INDIRECT(\"'\" & Setup!$AG$10 & \"'!\" & AF250),0) + IF(Setup!$AG$11<>\"\",INDIRECT(\"'\" & Setup!$AG$11 & \"'!\" & AF250),0) + IF(Setup!$AG$12<>\"\",INDIRECT(\"'\" & Setup!$AG$12 & \"'!\" & AF250),0)","v":0},{"$f":"IF(Setup!$AH$7<>\"\",INDIRECT(\"'\" & Setup!$AH$7 & \"'!\" & AF250),0) + IF(Setup!$AH$8<>\"\",INDIRECT(\"'\" & Setup!$AH$8 & \"'!\" & AF250),0) + IF(Setup!$AH$9<>\"\",INDIRECT(\"'\" & Setup!$AH$9 & \"'!\" & AF250),0) + IF(Setup!$AH$10<>\"\",INDIRECT(\"'\" & Setup!$AH$10 & \"'!\" & AF250),0) + IF(Setup!$AH$11<>\"\",INDIRECT(\"'\" & Setup!$AH$11 & \"'!\" & AF250),0) + IF(Setup!$AH$12<>\"\",INDIRECT(\"'\" & Setup!$AH$12 & \"'!\" & AF250),0)","v":0},{"$f":"IF(Setup!$AI$7<>\"\",INDIRECT(\"'\" & Setup!$AI$7 & \"'!\" & AF250),0) + IF(Setup!$AI$8<>\"\",INDIRECT(\"'\" & Setup!$AI$8 & \"'!\" & AF250),0) + IF(Setup!$AI$9<>\"\",INDIRECT(\"'\" & Setup!$AI$9 & \"'!\" & AF250),0) + IF(Setup!$AI$10<>\"\",INDIRECT(\"'\" & Setup!$AI$10 & \"'!\" & AF250),0) + IF(Setup!$AI$11<>\"\",INDIRECT(\"'\" & Setup!$AI$11 & \"'!\" & AF250),0) + IF(Setup!$AI$12<>\"\",INDIRECT(\"'\" & Setup!$AI$12 & \"'!\" & AF250),0)","v":0},{"$f":"IF(Setup!$AJ$7<>\"\",INDIRECT(\"'\" & Setup!$AJ$7 & \"'!\" & AF250),0) + IF(Setup!$AJ$8<>\"\",INDIRECT(\"'\" & Setup!$AJ$8 & \"'!\" & AF250),0) + IF(Setup!$AJ$9<>\"\",INDIRECT(\"'\" & Setup!$AJ$9 & \"'!\" & AF250),0) + IF(Setup!$AJ$10<>\"\",INDIRECT(\"'\" & Setup!$AJ$10 & \"'!\" & AF250),0) + IF(Setup!$AJ$11<>\"\",INDIRECT(\"'\" & Setup!$AJ$11 & \"'!\" & AF250),0) + IF(Setup!$AJ$12<>\"\",INDIRECT(\"'\" & Setup!$AJ$12 & \"'!\" & AF250),0)","v":0},null,"",{"$nulls":30},0,{"$f":"IF(Setup!$AH$7=\"\",0,INDIRECT(\"'\" & Setup!$AH$7 & \"'!\" & AF250))","v":0},{"$f":"IF(Setup!$AI$7=\"\",0,INDIRECT(\"'\" & Setup!$AI$7 & \"'!\" & AF250))","v":0},{"$f":"IF(Setup!$AJ$7=\"\",0,INDIRECT(\"'\" & Setup!$AJ$7 & \"'!\" & AF250))","v":0}]
[{"$f":"Planning!A23","v":"I015"},{"$f":"Planning!B23","v":0},{"$f":"Planning!C23","v":0},{"$f":"Planning!D23","v":0},{"$f":"Planning!E23","v":0},{"$f":"Planning!G23","v":0},0,{"v":0,"d":"0.00"},{"v":0,"d":"0.00"},"","",{"$f":"IF(Setup!$AG$7<>\"\",INDIRECT(\"'\" & Setup!$AG$7 & \"'!\" & AD251),0) + IF(Setup!$AG$8<>\"\",INDIRECT(\"'\" & Setup!$AG$8 & \"'!\" & AD251),0) + IF(Setup!$AG$9<>\"\",INDIRECT(\"'\" & Setup!$AG$9 & \"'!\" & AD251),0) + IF(Setup!$AG$10<>\"\",INDIRECT(\"'\" & Setup!$AG$10 & \"'!\" & AD251),0) + IF(Setup!$AG$11<>\"\",INDIRECT(\"'\" & Setup!$AG$11 & \"'!\" & AD251),0) + IF(Setup!$AG$12<>\"\",INDIRECT(\"'\" & Setup!$AG$12 & \"'!\" & AD251),0)","v":{"v":0,"d":"0.00"}},{"$f":"IF(Setup!$AG$7<>\"\",INDIRECT(\"'\" & Setup!$AG$7 & \"'!\" & AE251),0) + IF(Setup!$AG$8<>\"\",INDIRECT(\"'\" & Setup!$AG$8 & \"'!\" & AE251),0) + IF(Setup!$AG$9<>\"\",INDIRECT(\"'\" & Setup!$AG$9 & \"'!\" & AE251),0) + IF(Setup!$AG$10<>\"\",INDIRECT(\"'\" & Setup!$AG$10 & \"'!\" & AE251),0) + IF(Setup!$AG$11<>\"\",INDIRECT(\"'\" & Setup!$AG$11 & \"'!\" & AE251),0) + IF(Setup!$AG$12<>\"\",INDIRECT(\"'\" & Setup!$AG$12 & \"'!\" & AE251),0)","v":{"v":0,"d":"0.00"}},"","",{"$f":"IF(Setup!$AH$7<>\"\",INDIRECT(\"'\" & Setup!$AH$7 & \"'!\" & AD251),0) + IF(Setup!$AH$8<>\"\",INDIRECT(\"'\" & Setup!$AH$8 & \"'!\" & AD251),0) + IF(Setup!$AH$9<>\"\",INDIRECT(\"'\" & Setup!$AH$9 & \"'!\" & AD251),0) + IF(Setup!$AH$10<>\"\",INDIRECT(\"'\" & Setup!$AH$10 & \"'!\" & AD251),0) + IF(Setup!$AH$11<>\"\",INDIRECT(\"'\" & Setup!$AH$11 & \"'!\" & AD251),0) + IF(Setup!$AH$12<>\"\",INDIRECT(\"'\" & Setup!$AH$12 & \"'!\" & AD251),0)","v":{"v":0,"d":"0.00"}},{"$f":"IF(Setup!$AH$7<>\"\",INDIRECT(\"'\" & Setup!$AH$7 & \"'!\" & AE251),0) + IF(Setup!$AH$8<>\"\",INDIRECT(\"'\" & Setup!$AH$8 & \"'!\" & AE251),0) + IF(Setup!$AH$9<>\"\",INDIRECT(\"'\" & Setup!$AH$9 & \"'!\" & AE251),0) + IF(Setup!$AH$10<>\"\",INDIRECT(\"'\" & Setup!$AH$10 & \"'!\" & AE251),0) + IF(Setup!$AH$11<>\"\",INDIRECT(\"'\" & Setup!$AH$11 & \"'!\" & AE251),0) + IF(Setup!$AH$12<>\"\",INDIRECT(\"'\" & Setup!$AH$12 & \"'!\" & AE251),0)","v":{"v":0,"d":"0.00"}},"","",{"$f":"IF(Setup!$AI$7<>\"\",INDIRECT(\"'\" & Setup!$AI$7 & \"'!\" & AD251),0) + IF(Setup!$AI$8<>\"\",INDIRECT(\"'\" & Setup!$AI$8 & \"'!\" & AD251),0) + IF(Setup!$AI$9<>\"\",INDIRECT(\"'\" & Setup!$AI$9 & \"'!\" & AD251),0) + IF(Setup!$AI$10<>\"\",INDIRECT(\"'\" & Setup!$AI$10 & \"'!\" & AD251),0) + IF(Setup!$AI$11<>\"\",INDIRECT(\"'\" & Setup!$AI$11 & \"'!\" & AD251),0) + IF(Setup!$AI$12<>\"\",INDIRECT(\"'\" & Setup!$AI$12 & \"'!\" & AD251),0)","v":{"v":0,"d":"0.00"}},{"$f":"IF(Setup!$AI$7<>\"\",INDIRECT(\"'\" & Setup!$AI$7 & \"'!\" & AE251),0) + IF(Setup!$AI$8<>\"\",INDIRECT(\"'\" & Setup!$AI$8 & \"'!\" & AE251),0) + IF(Setup!$AI$9<>\"\",INDIRECT(\"'\" & Setup!$AI$9 & \"'!\" & AE251),0) + IF(Setup!$AI$10<>\"\",INDIRECT(\"'\" & Setup!$AI$10 & \"'!\" & AE251),0) + IF(Setup!$AI$11<>\"\",INDIRECT(\"'\" & Setup!$AI$11 & \"'!\" & AE251),0) + IF(Setup!$AI$12<>\"\",INDIRECT(\"'\" & Setup!$AI$12 & \"'!\" & AE251),0)","v":{"v":0,"d":"0.00"}},"","",{"$f":"IF(Setup!$AJ$7<>\"\",INDIRECT(\"'\" & Setup!$AJ$7 & \"'!\" & AD251),0) + IF(Setup!$AJ$8<>\"\",INDIRECT(\"'\" & Setup!$AJ$8 & \"'!\" & AD251),0) + IF(Setup!$AJ$9<>\"\",INDIRECT(\"'\" & Setup!$AJ$9 & \"'!\" & AD251),0) + IF(Setup!$AJ$10<>\"\",INDIRECT(\"'\" & Setup!$AJ$10 & \"'!\" & AD251),0) + IF(Setup!$AJ$11<>\"\",INDIRECT(\"'\" & Setup!$AJ$11 & \"'!\" & AD251),0) + IF(Setup!$AJ$12<>\"\",INDIRECT(\"'\" & Setup!$AJ$12 & \"'!\" & AD251),0)","v":0},{"$f":"IF(Setup!$AJ$7<>\"\",INDIRECT(\"'\" & Setup!$AJ$7 & \"'!\" & AE251),0) + IF(Setup!$AJ$8<>\"\",INDIRECT(\"'\" & Setup!$AJ$8 & \"'!\" & AE251),0) + IF(Setup!$AJ$9<>\"\",INDIRECT(\"'\" & Setup!$AJ$9 & \"'!\" & AE251),0) + IF(Setup!$AJ$10<>\"\",INDIRECT(\"'\" & Setup!$AJ$10 & \"'!\" & AE251),0) + IF(Setup!$AJ$11<>\"\",INDIRECT(\"'\" & Setup!$AJ$11 & \"'!\" & AE251),0) + IF(Setup!$AJ$12<>\"\",INDIRECT(\"'\" & Setup!$AJ$12 & \"'!\" & AE251),0)","v":0},"","",{"$f":"Planning!H23","v":0},"00","M39","O39","N39",null,null,{"$f":"IF(Setup!$AG$7<>\"\",INDIRECT(\"'\" & Setup!$AG$7 & \"'!\" & AF251),0) + IF(Setup!$AG$8<>\"\",INDIRECT(\"'\" & Setup!$AG$8 & \"'!\" & AF251),0) + IF(Setup!$AG$9<>\"\",INDIRECT(\"'\" & Setup!$AG$9 & \"'!\" & AF251),0) + IF(Setup!$AG$10<>\"\",INDIRECT(\"'\" & Setup!$AG$10 & \"'!\" & AF251),0) + IF(Setup!$AG$11<>\"\",INDIRECT(\"'\" & Setup!$AG$11 & \"'!\" & AF251),0) + IF(Setup!$AG$12<>\"\",INDIRECT(\"'\" & Setup!$AG$12 & \"'!\" & AF251),0)","v":0},{"$f":"IF(Setup!$AH$7<>\"\",INDIRECT(\"'\" & Setup!$AH$7 & \"'!\" & AF251),0) + IF(Setup!$AH$8<>\"\",INDIRECT(\"'\" & Setup!$AH$8 & \"'!\" & AF251),0) + IF(Setup!$AH$9<>\"\",INDIRECT(\"'\" & Setup!$AH$9 & \"'!\" & AF251),0) + IF(Setup!$AH$10<>\"\",INDIRECT(\"'\" & Setup!$AH$10 & \"'!\" & AF251),0) + IF(Setup!$AH$11<>\"\",INDIRECT(\"'\" & Setup!$AH$11 & \"'!\" & AF251),0) + IF(Setup!$AH$12<>\"\",INDIRECT(\"'\" & Setup!$AH$12 & \"'!\" & AF251),0)","v":0},{"$f":"IF(Setup!$AI$7<>\"\",INDIRECT(\"'\" & Setup!$AI$7 & \"'!\" & AF251),0) + IF(Setup!$AI$8<>\"\",INDIRECT(\"'\" & Setup!$AI$8 & \"'!\" & AF251),0) + IF(Setup!$AI$9<>\"\",INDIRECT(\"'\" & Setup!$AI$9 & \"'!\" & AF251),0) + IF(Setup!$AI$10<>\"\",INDIRECT(\"'\" & Setup!$AI$10 & \"'!\" & AF251),0) + IF(Setup!$AI$11<>\"\",INDIRECT(\"'\" & Setup!$AI$11 & \"'!\" & AF251),0) + IF(Setup!$AI$12<>\"\",INDIRECT(\"'\" & Setup!$AI$12 & \"'!\" & AF251),0)","v":0},{"$f":"IF(Setup!$AJ$7<>\"\",INDIRECT(\"'\" & Setup!$AJ$7 & \"'!\" & AF251),0) + IF(Setup!$AJ$8<>\"\",INDIRECT(\"'\" & Setup!$AJ$8 & \"'!\" & AF251),0) + IF(Setup!$AJ$9<>\"\",INDIRECT(\"'\" & Setup!$AJ$9 & \"'!\" & AF251),0) + IF(Setup!$AJ$10<>\"\",INDIRECT(\"'\" & Setup!$AJ$10 & \"'!\" & AF251),0) + IF(Setup!$AJ$11<>\"\",INDIRECT(\"'\" & Setup!$AJ$11 & \"'!\" & AF251),0) + IF(Setup!$AJ$12<>\"\",INDIRECT(\"'\" & Setup!$AJ$12 & \"'!\" & AF251),0)","v":0},null,"",{"$nulls":30},0,{"$f":"IF(Setup!$AH$7=\"\",0,INDIRECT(\"'\" & Setup!$AH$7 & \"'!\" & AF251))","v":0},{"$f":"IF(Setup!$AI$7=\"\",0,INDIRECT(\"'\" & Setup!$AI$7 & \"'!\" & AF251))","v":0},{"$f":"IF(Setup!$AJ$7=\"\",0,INDIRECT(\"'\" & Setup!$AJ$7 & \"'!\" & AF251))","v":0}]
[{"$f":"Planning!A24","v":"I016"},{"$f":"Planning!B24","v":0},{"$f":"Planning!C24","v":0},{"$f":"Planning!D24","v":0},{"$f":"Planning!E24","v":0},{"$f":"Planning!G24","v":0},0,{"v":0,"d":"0.00"},{"v":0,"d":"0.00"},"","",{"$f":"IF(Setup!$AG$7<>\"\",INDIRECT(\"'\" & Setup!$AG$7 & \"'!\" & AD252),0) + IF(Setup!$AG$8<>\"\",INDIRECT(\"'\" & Setup!$AG$8 & \"'!\" & AD252),0) + IF(Setup!$AG$9<>\"\",INDIRECT(\"'\" & Setup!$AG$9 & \"'!\" & AD252),0) + IF(Setup!$AG$10<>\"\",INDIRECT(\"'\" & Setup!$AG$10 & \"'!\" & AD252),0) + IF(Setup!$AG$11<>\"\",INDIRECT(\"'\" & Setup!$AG$11 & \"'!\" & AD252),0) + IF(Setup!$AG$12<>\"\",INDIRECT(\"'\" & Setup!$AG$12 & \"'!\" & AD252),0)","v":{"v":0,"d":"0.00"}},{"$f":"IF(Setup!$AG$7<>\"\",INDIRECT(\"'\" & Setup!$AG$7 & \"'!\" & AE252),0) + IF(Setup!$AG$8<>\"\",INDIRECT(\"'\" & Setup!$AG$8 & \"'!\" & AE252),0) + IF(Setup!$AG$9<>\"\",INDIRECT(\"'\" & Setup!$AG$9 & \"'!\" & AE252),0) + IF(Setup!$AG$10<>\"\",INDIRECT(\"'\" & Setup!$AG$10 & \"'!\" & AE252),0) + IF(Setup!$AG$11<>\"\",INDIRECT(\"'\" & Setup!$AG$11 & \"'!\" & AE252),0) + IF(Setup!$AG$12<>\"\",INDIRECT(\"'\" & Setup!$AG$12 & \"'!\" & AE252),0)","v":{"v":0,"d":"0.00"}},"","",{"$f":"IF(Setup!$AH$7<>\"\",INDIRECT(\"'\" & Setup!$AH$7 & \"'!\" & AD252),0) + IF(Setup!$AH$8<>\"\",INDIRECT(\"'\" & Setup!$AH$8 & \"'!\" & AD252),0) + IF(Setup!$AH$9<>\"\",INDIRECT(\"'\" & Setup!$AH$9 & \"'!\" & AD252),0) + IF(Setup!$AH$10<>\"\",INDIRECT(\"'\" & Setup!$AH$10 & \"'!\" & AD252),0) + IF(Setup!$AH$11<>\"\",INDIRECT(\"'\" & Setup!$AH$11 & \"'!\" & AD252),0) + IF(Setup!$AH$12<>\"\",INDIRECT(\"'\" & Setup!$AH$12 & \"'!\" & AD252),0)","v":{"v":0,"d":"0.00"}},{"$f":"IF(Setup!$AH$7<>\"\",INDIRECT(\"'\" & Setup!$AH$7 & \"'!\" & AE252),0) + IF(Setup!$AH$8<>\"\",INDIRECT(\"'\" & Setup!$AH$8 & \"'!\" & AE252),0) + IF(Setup!$AH$9<>\"\",INDIRECT(\"'\" & Setup!$AH$9 & \"'!\" & AE252),0) + IF(Setup!$AH$10<>\"\",INDIRECT(\"'\" & Setup!$AH$10 & \"'!\" & AE252),0) + IF(Setup!$AH$11<>\"\",INDIRECT(\"'\" & Setup!$AH$11 & \"'!\" & AE252),0) + IF(Setup!$AH$12<>\"\",INDIRECT(\"'\" & Setup!$AH$12 & \"'!\" & AE252),0)","v":{"v":0,"d":"0.00"}},"","",{"$f":"IF(Setup!$AI$7<>\"\",INDIRECT(\"'\" & Setup!$AI$7 & \"'!\" & AD252),0) + IF(Setup!$AI$8<>\"\",INDIRECT(\"'\" & Setup!$AI$8 & \"'!\" & AD252),0) + IF(Setup!$AI$9<>\"\",INDIRECT(\"'\" & Setup!$AI$9 & \"'!\" & AD252),0) + IF(Setup!$AI$10<>\"\",INDIRECT(\"'\" & Setup!$AI$10 & \"'!\" & AD252),0) + IF(Setup!$AI$11<>\"\",INDIRECT(\"'\" & Setup!$AI$11 & \"'!\" & AD252),0) + IF(Setup!$AI$12<>\"\",INDIRECT(\"'\" & Setup!$AI$12 & \"'!\" & AD252),0)","v":{"v":0,"d":"0.00"}},{"$f":"IF(Setup!$AI$7<>\"\",INDIRECT(\"'\" & Setup!$AI$7 & \"'!\" & AE252),0) + IF(Setup!$AI$8<>\"\",INDIRECT(\"'\" & Setup!$AI$8 & \"'!\" & AE252),0) + IF(Setup!$AI$9<>\"\",INDIRECT(\"'\" & Setup!$AI$9 & \"'!\" & AE252),0) + IF(Setup!$AI$10<>\"\",INDIRECT(\"'\" & Setup!$AI$10 & \"'!\" & AE252),0) + IF(Setup!$AI$11<>\"\",INDIRECT(\"'\" & Setup!$AI$11 & \"'!\" & AE252),0) + IF(Setup!$AI$12<>\"\",INDIRECT(\"'\" & Setup!$AI$12 & \"'!\" & AE252),0)","v":{"v":0,"d":"0.00"}},"","",{"$f":"IF(Setup!$AJ$7<>\"\",INDIRECT(\"'\" & Setup!$AJ$7 & \"'!\" & AD252),0) + IF(Setup!$AJ$8<>\"\",INDIRECT(\"'\" & Setup!$AJ$8 & \"'!\" & AD252),0) + IF(Setup!$AJ$9<>\"\",INDIRECT(\"'\" & Setup!$AJ$9 & \"'!\" & AD252),0) + IF(Setup!$AJ$10<>\"\",INDIRECT(\"'\" & Setup!$AJ$10 & \"'!\" & AD252),0) + IF(Setup!$AJ$11<>\"\",INDIRECT(\"'\" & Setup!$AJ$11 & \"'!\" & AD252),0) + IF(Setup!$AJ$12<>\"\",INDIRECT(\"'\" & Setup!$AJ$12 & \"'!\" & AD252),0)","v":0},{"$f":"IF(Setup!$AJ$7<>\"\",INDIRECT(\"'\" & Setup!$AJ$7 & \"'!\" & AE252),0) + IF(Setup!$AJ$8<>\"\",INDIRECT(\"'\" & Setup!$AJ$8 & \"'!\" & AE252),0) + IF(Setup!$AJ$9<>\"\",INDIRECT(\"'\" & Setup!$AJ$9 & \"'!\" & AE252),0) + IF(Setup!$AJ$10<>\"\",INDIRECT(\"'\" & Setup!$AJ$10 & \"'!\" & AE252),0) + IF(Setup!$AJ$11<>\"\",INDIRECT(\"'\" & Setup!$AJ$11 & \"'!\" & AE252),0) + IF(Setup!$AJ$12<>\"\",INDIRECT(\"'\" & Setup!$AJ$12 & \"'!\" & AE252),0)","v":0},"","",{"$f":"Planning!H24","v":0},"00","M40","O40","N40",null,null,{"$f":"IF(Setup!$AG$7<>\"\",INDIRECT(\"'\" & Setup!$AG$7 & \"'!\" & AF252),0) + IF(Setup!$AG$8<>\"\",INDIRECT(\"'\" & Setup!$AG$8 & \"'!\" & AF252),0) + IF(Setup!$AG$9<>\"\",INDIRECT(\"'\" & Setup!$AG$9 & \"'!\" & AF252),0) + IF(Setup!$AG$10<>\"\",INDIRECT(\"'\" & Setup!$AG$10 & \"'!\" & AF252),0) + IF(Setup!$AG$11<>\"\",INDIRECT(\"'\" & Setup!$AG$11 & \"'!\" & AF252),0) + IF(Setup!$AG$12<>\"\",INDIRECT(\"'\" & Setup!$AG$12 & \"'!\" & AF252),0)","v":0},{"$f":"IF(Setup!$AH$7<>\"\",INDIRECT(\"'\" & Setup!$AH$7 & \"'!\" & AF252),0) + IF(Setup!$AH$8<>\"\",INDIRECT(\"'\" & Setup!$AH$8 & \"'!\" & AF252),0) + IF(Setup!$AH$9<>\"\",INDIRECT(\"'\" & Setup!$AH$9 & \"'!\" & AF252),0) + IF(Setup!$AH$10<>\"\",INDIRECT(\"'\" & Setup!$AH$10 & \"'!\" & AF252),0) + IF(Setup!$AH$11<>\"\",INDIRECT(\"'\" & Setup!$AH$11 & \"'!\" & AF252),0) + IF(Setup!$AH$12<>\"\",INDIRECT(\"'\" & Setup!$AH$12 & \"'!\" & AF252),0)","v":0},{"$f":"IF(Setup!$AI$7<>\"\",INDIRECT(\"'\" & Setup!$AI$7 & \"'!\" & AF252),0) + IF(Setup!$AI$8<>\"\",INDIRECT(\"'\" & Setup!$AI$8 & \"'!\" & AF252),0) + IF(Setup!$AI$9<>\"\",INDIRECT(\"'\" & Setup!$AI$9 & \"'!\" & AF252),0) + IF(Setup!$AI$10<>\"\",INDIRECT(\"'\" & Setup!$AI$10 & \"'!\" & AF252),0) + IF(Setup!$AI$11<>\"\",INDIRECT(\"'\" & Setup!$AI$11 & \"'!\" & AF252),0) + IF(Setup!$AI$12<>\"\",INDIRECT(\"'\" & Setup!$AI$12 & \"'!\" & AF252),0)","v":0},{"$f":"IF(Setup!$AJ$7<>\"\",INDIRECT(\"'\" & Setup!$AJ$7 & \"'!\" & AF252),0) + IF(Setup!$AJ$8<>\"\",INDIRECT(\"'\" & Setup!$AJ$8 & \"'!\" & AF252),0) + IF(Setup!$AJ$9<>\"\",INDIRECT(\"'\" & Setup!$AJ$9 & \"'!\" & AF252),0) + IF(Setup!$AJ$10<>\"\",INDIRECT(\"'\" & Setup!$AJ$10 & \"'!\" & AF252),0) + IF(Setup!$AJ$11<>\"\",INDIRECT(\"'\" & Setup!$AJ$11 & \"'!\" & AF252),0) + IF(Setup!$AJ$12<>\"\",INDIRECT(\"'\" & Setup!$AJ$12 & \"'!\" & AF252),0)","v":0},null,"",{"$nulls":30},0,{"$f":"IF(Setup!$AH$7=\"\",0,INDIRECT(\"'\" & Setup!$AH$7 & \"'!\" & AF252))","v":0},{"$f":"IF(Setup!$AI$7=\"\",0,INDIRECT(\"'\" & Setup!$AI$7 & \"'!\" & AF252))","v":0},{"$f":"IF(Setup!$AJ$7=\"\",0,INDIRECT(\"'\" & Setup!$AJ$7 & \"'!\" & AF252))","v":0}]
[{"$f":"Planning!A25","v":"I017"},{"$f":"Planning!B25","v":0},{"$f":"Planning!C25","v":0},{"$f":"Planning!D25","v":0},{"$f":"Planning!E25","v":0},{"$f":"Planning!G25","v":0},0,{"v":0,"d":"0.00"},{"v":0,"d":"0.00"},"","",{"$f":"IF(Setup!$AG$7<>\"\",INDIRECT(\"'\" & Setup!$AG$7 & \"'!\" & AD253),0) + IF(Setup!$AG$8<>\"\",INDIRECT(\"'\" & Setup!$AG$8 & \"'!\" & AD253),0) + IF(Setup!$AG$9<>\"\",INDIRECT(\"'\" & Setup!$AG$9 & \"'!\" & AD253),0) + IF(Setup!$AG$10<>\"\",INDIRECT(\"'\" & Setup!$AG$10 & \"'!\" & AD253),0) + IF(Setup!$AG$11<>\"\",INDIRECT(\"'\" & Setup!$AG$11 & \"'!\" & AD253),0) + IF(Setup!$AG$12<>\"\",INDIRECT(\"'\" & Setup!$AG$12 & \"'!\" & AD253),0)","v":{"v":0,"d":"0.00"}},{"$f":"IF(Setup!$AG$7<>\"\",INDIRECT(\"'\" & Setup!$AG$7 & \"'!\" & AE253),0) + IF(Setup!$AG$8<>\"\",INDIRECT(\"'\" & Setup!$AG$8 & \"'!\" & AE253),0) + IF(Setup!$AG$9<>\"\",INDIRECT(\"'\" & Setup!$AG$9 & \"'!\" & AE253),0) + IF(Setup!$AG$10<>\"\",INDIRECT(\"'\" & Setup!$AG$10 & \"'!\" & AE253),0) + IF(Setup!$AG$11<>\"\",INDIRECT(\"'\" & Setup!$AG$11 & \"'!\" & AE253),0) + IF(Setup!$AG$12<>\"\",INDIRECT(\"'\" & Setup!$AG$12 & \"'!\" & AE253),0)","v":{"v":0,"d":"0.00"}},"","",{"$f":"IF(Setup!$AH$7<>\"\",INDIRECT(\"'\" & Setup!$AH$7 & \"'!\" & AD253),0) + IF(Setup!$AH$8<>\"\",INDIRECT(\"'\" & Setup!$AH$8 & \"'!\" & AD253),0) + IF(Setup!$AH$9<>\"\",INDIRECT(\"'\" & Setup!$AH$9 & \"'!\" & AD253),0) + IF(Setup!$AH$10<>\"\",INDIRECT(\"'\" & Setup!$AH$10 & \"'!\" & AD253),0) + IF(Setup!$AH$11<>\"\",INDIRECT(\"'\" & Setup!$AH$11 & \"'!\" & AD253),0) + IF(Setup!$AH$12<>\"\",INDIRECT(\"'\" & Setup!$AH$12 & \"'!\" & AD253),0)","v":{"v":0,"d":"0.00"}},{"$f":"IF(Setup!$AH$7<>\"\",INDIRECT(\"'\" & Setup!$AH$7 & \"'!\" & AE253),0) + IF(Setup!$AH$8<>\"\",INDIRECT(\"'\" & Setup!$AH$8 & \"'!\" & AE253),0) + IF(Setup!$AH$9<>\"\",INDIRECT(\"'\" & Setup!$AH$9 & \"'!\" & AE253),0) + IF(Setup!$AH$10<>\"\",INDIRECT(\"'\" & Setup!$AH$10 & \"'!\" & AE253),0) + IF(Setup!$AH$11<>\"\",INDIRECT(\"'\" & Setup!$AH$11 & \"'!\" & AE253),0) + IF(Setup!$AH$12<>\"\",INDIRECT(\"'\" & Setup!$AH$12 & \"'!\" & AE253),0)","v":{"v":0,"d":"0.00"}},"","",{"$f":"IF(Setup!$AI$7<>\"\",INDIRECT(\"'\" & Setup!$AI$7 & \"'!\" & AD253),0) + IF(Setup!$AI$8<>\"\",INDIRECT(\"'\" & Setup!$AI$8 & \"'!\" & AD253),0) + IF(Setup!$AI$9<>\"\",INDIRECT(\"'\" & Setup!$AI$9 & \"'!\" & AD253),0) + IF(Setup!$AI$10<>\"\",INDIRECT(\"'\" & Setup!$AI$10 & \"'!\" & AD253),0) + IF(Setup!$AI$11<>\"\",INDIRECT(\"'\" & Setup!$AI$11 & \"'!\" & AD253),0) + IF(Setup!$AI$12<>\"\",INDIRECT(\"'\" & Setup!$AI$12 & \"'!\" & AD253),0)","v":{"v":0,"d":"0.00"}},{"$f":"IF(Setup!$AI$7<>\"\",INDIRECT(\"'\" & Setup!$AI$7 & \"'!\" & AE253),0) + IF(Setup!$AI$8<>\"\",INDIRECT(\"'\" & Setup!$AI$8 & \"'!\" & AE253),0) + IF(Setup!$AI$9<>\"\",INDIRECT(\"'\" & Setup!$AI$9 & \"'!\" & AE253),0) + IF(Setup!$AI$10<>\"\",INDIRECT(\"'\" & Setup!$AI$10 & \"'!\" & AE253),0) + IF(Setup!$AI$11<>\"\",INDIRECT(\"'\" & Setup!$AI$11 & \"'!\" & AE253),0) + IF(Setup!$AI$12<>\"\",INDIRECT(\"'\" & Setup!$AI$12 & \"'!\" & AE253),0)","v":{"v":0,"d":"0.00"}},"","",{"$f":"IF(Setup!$AJ$7<>\"\",INDIRECT(\"'\" & Setup!$AJ$7 & \"'!\" & AD253),0) + IF(Setup!$AJ$8<>\"\",INDIRECT(\"'\" & Setup!$AJ$8 & \"'!\" & AD253),0) + IF(Setup!$AJ$9<>\"\",INDIRECT(\"'\" & Setup!$AJ$9 & \"'!\" & AD253),0) + IF(Setup!$AJ$10<>\"\",INDIRECT(\"'\" & Setup!$AJ$10 & \"'!\" & AD253),0) + IF(Setup!$AJ$11<>\"\",INDIRECT(\"'\" & Setup!$AJ$11 & \"'!\" & AD253),0) + IF(Setup!$AJ$12<>\"\",INDIRECT(\"'\" & Setup!$AJ$12 & \"'!\" & AD253),0)","v":0},{"$f":"IF(Setup!$AJ$7<>\"\",INDIRECT(\"'\" & Setup!$AJ$7 & \"'!\" & AE253),0) + IF(Setup!$AJ$8<>\"\",INDIRECT(\"'\" & Setup!$AJ$8 & \"'!\" & AE253),0) + IF(Setup!$AJ$9<>\"\",INDIRECT(\"'\" & Setup!$AJ$9 & \"'!\" & AE253),0) + IF(Setup!$AJ$10<>\"\",INDIRECT(\"'\" & Setup!$AJ$10 & \"'!\" & AE253),0) + IF(Setup!$AJ$11<>\"\",INDIRECT(\"'\" & Setup!$AJ$11 & \"'!\" & AE253),0) + IF(Setup!$AJ$12<>\"\",INDIRECT(\"'\" & Setup!$AJ$12 & \"'!\" & AE253),0)","v":0},"","",{"$f":"Planning!H25","v":0},"00","M41","O41","N41",null,null,{"$f":"IF(Setup!$AG$7<>\"\",INDIRECT(\"'\" & Setup!$AG$7 & \"'!\" & AF253),0) + IF(Setup!$AG$8<>\"\",INDIRECT(\"'\" & Setup!$AG$8 & \"'!\" & AF253),0) + IF(Setup!$AG$9<>\"\",INDIRECT(\"'\" & Setup!$AG$9 & \"'!\" & AF253),0) + IF(Setup!$AG$10<>\"\",INDIRECT(\"'\" & Setup!$AG$10 & \"'!\" & AF253),0) + IF(Setup!$AG$11<>\"\",INDIRECT(\"'\" & Setup!$AG$11 & \"'!\" & AF253),0) + IF(Setup!$AG$12<>\"\",INDIRECT(\"'\" & Setup!$AG$12 & \"'!\" & AF253),0)","v":0},{"$f":"IF(Setup!$AH$7<>\"\",INDIRECT(\"'\" & Setup!$AH$7 & \"'!\" & AF253),0) + IF(Setup!$AH$8<>\"\",INDIRECT(\"'\" & Setup!$AH$8 & \"'!\" & AF253),0) + IF(Setup!$AH$9<>\"\",INDIRECT(\"'\" & Setup!$AH$9 & \"'!\" & AF253),0) + IF(Setup!$AH$10<>\"\",INDIRECT(\"'\" & Setup!$AH$10 & \"'!\" & AF253),0) + IF(Setup!$AH$11<>\"\",INDIRECT(\"'\" & Setup!$AH$11 & \"'!\" & AF253),0) + IF(Setup!$AH$12<>\"\",INDIRECT(\"'\" & Setup!$AH$12 & \"'!\" & AF253),0)","v":0},{"$f":"IF(Setup!$AI$7<>\"\",INDIRECT(\"'\" & Setup!$AI$7 & \"'!\" & AF253),0) + IF(Setup!$AI$8<>\"\",INDIRECT(\"'\" & Setup!$AI$8 & \"'!\" & AF253),0) + IF(Setup!$AI$9<>\"\",INDIRECT(\"'\" & Setup!$AI$9 & \"'!\" & AF253),0) + IF(Setup!$AI$10<>\"\",INDIRECT(\"'\" & Setup!$AI$10 & \"'!\" & AF253),0) + IF(Setup!$AI$11<>\"\",INDIRECT(\"'\" & Setup!$AI$11 & \"'!\" & AF253),0) + IF(Setup!$AI$12<>\"\",INDIRECT(\"'\" & Setup!$AI$12 & \"'!\" & AF253),0)","v":0},{"$f":"IF(Setup!$AJ$7<>\"\",INDIRECT(\"'\" & Setup!$AJ$7 & \"'!\" & AF253),0) + IF(Setup!$AJ$8<>\"\",INDIRECT(\"'\" & Setup!$AJ$8 & \"'!\" & AF253),0) + IF(Setup!$AJ$9<>\"\",INDIRECT(\"'\" & Setup!$AJ$9 & \"'!\" & AF253),0) + IF(Setup!$AJ$10<>\"\",INDIRECT(\"'\" & Setup!$AJ$10 & \"'!\" & AF253),0) + IF(Setup!$AJ$11<>\"\",INDIRECT(\"'\" & Setup!$AJ$11 & \"'!\" & AF253),0) + IF(Setup!$AJ$12<>\"\",INDIRECT(\"'\" & Setup!$AJ$12 & \"'!\" & AF253),0)","v":0},null,"",{"$nulls":30},0,{"$f":"IF(Setup!$AH$7=\"\",0,INDIRECT(\"'\" & Setup!$AH$7 & \"'!\" & AF253))","v":0},{"$f":"IF(Setup!$AI$7=\"\",0,INDIRECT(\"'\" & Setup!$AI$7 & \"'!\" & AF253))","v":0},{"$f":"IF(Setup!$AJ$7=\"\",0,INDIRECT(\"'\" & Setup!$AJ$7 & \"'!\" & AF253))","v":0}]
[{"$f":"Planning!A26","v":"I018"},{"$f":"Planning!B26","v":0},{"$f":"Planning!C26","v":0},{"$f":"Planning!D26","v":0},{"$f":"Planning!E26","v":0},{"$f":"Planning!G26","v":0},0,{"v":0,"d":"0.00"},{"v":0,"d":"0.00"},"","",{"$f":"IF(Setup!$AG$7<>\"\",INDIRECT(\"'\" & Setup!$AG$7 & \"'!\" & AD254),0) + IF(Setup!$AG$8<>\"\",INDIRECT(\"'\" & Setup!$AG$8 & \"'!\" & AD254),0) + IF(Setup!$AG$9<>\"\",INDIRECT(\"'\" & Setup!$AG$9 & \"'!\" & AD254),0) + IF(Setup!$AG$10<>\"\",INDIRECT(\"'\" & Setup!$AG$10 & \"'!\" & AD254),0) + IF(Setup!$AG$11<>\"\",INDIRECT(\"'\" & Setup!$AG$11 & \"'!\" & AD254),0) + IF(Setup!$AG$12<>\"\",INDIRECT(\"'\" & Setup!$AG$12 & \"'!\" & AD254),0)","v":{"v":0,"d":"0.00"}},{"$f":"IF(Setup!$AG$7<>\"\",INDIRECT(\"'\" & Setup!$AG$7 & \"'!\" & AE254),0) + IF(Setup!$AG$8<>\"\",INDIRECT(\"'\" & Setup!$AG$8 & \"'!\" & AE254),0) + IF(Setup!$AG$9<>\"\",INDIRECT(\"'\" & Setup!$AG$9 & \"'!\" & AE254),0) + IF(Setup!$AG$10<>\"\",INDIRECT(\"'\" & Setup!$AG$10 & \"'!\" & AE254),0) + IF(Setup!$AG$11<>\"\",INDIRECT(\"'\" & Setup!$AG$11 & \"'!\" & AE254),0) + IF(Setup!$AG$12<>\"\",INDIRECT(\"'\" & Setup!$AG$12 & \"'!\" & AE254),0)","v":{"v":0,"d":"0.00"}},"","",{"$f":"IF(Setup!$AH$7<>\"\",INDIRECT(\"'\" & Setup!$AH$7 & \"'!\" & AD254),0) + IF(Setup!$AH$8<>\"\",INDIRECT(\"'\" & Setup!$AH$8 & \"'!\" & AD254),0) + IF(Setup!$AH$9<>\"\",INDIRECT(\"'\" & Setup!$AH$9 & \"'!\" & AD254),0) + IF(Setup!$AH$10<>\"\",INDIRECT(\"'\" & Setup!$AH$10 & \"'!\" & AD254),0) + IF(Setup!$AH$11<>\"\",INDIRECT(\"'\" & Setup!$AH$11 & \"'!\" & AD254),0) + IF(Setup!$AH$12<>\"\",INDIRECT(\"'\" & Setup!$AH$12 & \"'!\" & AD254),0)","v":{"v":0,"d":"0.00"}},{"$f":"IF(Setup!$AH$7<>\"\",INDIRECT(\"'\" & Setup!$AH$7 & \"'!\" & AE254),0) + IF(Setup!$AH$8<>\"\",INDIRECT(\"'\" & Setup!$AH$8 & \"'!\" & AE254),0) + IF(Setup!$AH$9<>\"\",INDIRECT(\"'\" & Setup!$AH$9 & \"'!\" & AE254),0) + IF(Setup!$AH$10<>\"\",INDIRECT(\"'\" & Setup!$AH$10 & \"'!\" & AE254),0) + IF(Setup!$AH$11<>\"\",INDIRECT(\"'\" & Setup!$AH$11 & \"'!\" & AE254),0) + IF(Setup!$AH$12<>\"\",INDIRECT(\"'\" & Setup!$AH$12 & \"'!\" & AE254),0)","v":{"v":0,"d":"0.00"}},"","",{"$f":"IF(Setup!$AI$7<>\"\",INDIRECT(\"'\" & Setup!$AI$7 & \"'!\" & AD254),0) + IF(Setup!$AI$8<>\"\",INDIRECT(\"'\" & Setup!$AI$8 & \"'!\" & AD254),0) + IF(Setup!$AI$9<>\"\",INDIRECT(\"'\" & Setup!$AI$9 & \"'!\" & AD254),0) + IF(Setup!$AI$10<>\"\",INDIRECT(\"'\" & Setup!$AI$10 & \"'!\" & AD254),0) + IF(Setup!$AI$11<>\"\",INDIRECT(\"'\" & Setup!$AI$11 & \"'!\" & AD254),0) + IF(Setup!$AI$12<>\"\",INDIRECT(\"'\" & Setup!$AI$12 & \"'!\" & AD254),0)","v":{"v":0,"d":"0.00"}},{"$f":"IF(Setup!$AI$7<>\"\",INDIRECT(\"'\" & Setup!$AI$7 & \"'!\" & AE254),0) + IF(Setup!$AI$8<>\"\",INDIRECT(\"'\" & Setup!$AI$8 & \"'!\" & AE254),0) + IF(Setup!$AI$9<>\"\",INDIRECT(\"'\" & Setup!$AI$9 & \"'!\" & AE254),0) + IF(Setup!$AI$10<>\"\",INDIRECT(\"'\" & Setup!$AI$10 & \"'!\" & AE254),0) + IF(Setup!$AI$11<>\"\",INDIRECT(\"'\" & Setup!$AI$11 & \"'!\" & AE254),0) + IF(Setup!$AI$12<>\"\",INDIRECT(\"'\" & Setup!$AI$12 & \"'!\" & AE254),0)","v":{"v":0,"d":"0.00"}},"","",{"$f":"IF(Setup!$AJ$7<>\"\",INDIRECT(\"'\" & Setup!$AJ$7 & \"'!\" & AD254),0) + IF(Setup!$AJ$8<>\"\",INDIRECT(\"'\" & Setup!$AJ$8 & \"'!\" & AD254),0) + IF(Setup!$AJ$9<>\"\",INDIRECT(\"'\" & Setup!$AJ$9 & \"'!\" & AD254),0) + IF(Setup!$AJ$10<>\"\",INDIRECT(\"'\" & Setup!$AJ$10 & \"'!\" & AD254),0) + IF(Setup!$AJ$11<>\"\",INDIRECT(\"'\" & Setup!$AJ$11 & \"'!\" & AD254),0) + IF(Setup!$AJ$12<>\"\",INDIRECT(\"'\" & Setup!$AJ$12 & \"'!\" & AD254),0)","v":0},{"$f":"IF(Setup!$AJ$7<>\"\",INDIRECT(\"'\" & Setup!$AJ$7 & \"'!\" & AE254),0) + IF(Setup!$AJ$8<>\"\",INDIRECT(\"'\" & Setup!$AJ$8 & \"'!\" & AE254),0) + IF(Setup!$AJ$9<>\"\",INDIRECT(\"'\" & Setup!$AJ$9 & \"'!\" & AE254),0) + IF(Setup!$AJ$10<>\"\",INDIRECT(\"'\" & Setup!$AJ$10 & \"'!\" & AE254),0) + IF(Setup!$AJ$11<>\"\",INDIRECT(\"'\" & Setup!$AJ$11 & \"'!\" & AE254),0) + IF(Setup!$AJ$12<>\"\",INDIRECT(\"'\" & Setup!$AJ$12 & \"'!\" & AE254),0)","v":0},"","",{"$f":"Planning!H26","v":0},"00","M42","O42","N42",null,null,{"$f":"IF(Setup!$AG$7<>\"\",INDIRECT(\"'\" & Setup!$AG$7 & \"'!\" & AF254),0) + IF(Setup!$AG$8<>\"\",INDIRECT(\"'\" & Setup!$AG$8 & \"'!\" & AF254),0) + IF(Setup!$AG$9<>\"\",INDIRECT(\"'\" & Setup!$AG$9 & \"'!\" & AF254),0) + IF(Setup!$AG$10<>\"\",INDIRECT(\"'\" & Setup!$AG$10 & \"'!\" & AF254),0) + IF(Setup!$AG$11<>\"\",INDIRECT(\"'\" & Setup!$AG$11 & \"'!\" & AF254),0) + IF(Setup!$AG$12<>\"\",INDIRECT(\"'\" & Setup!$AG$12 & \"'!\" & AF254),0)","v":0},{"$f":"IF(Setup!$AH$7<>\"\",INDIRECT(\"'\" & Setup!$AH$7 & \"'!\" & AF254),0) + IF(Setup!$AH$8<>\"\",INDIRECT(\"'\" & Setup!$AH$8 & \"'!\" & AF254),0) + IF(Setup!$AH$9<>\"\",INDIRECT(\"'\" & Setup!$AH$9 & \"'!\" & AF254),0) + IF(Setup!$AH$10<>\"\",INDIRECT(\"'\" & Setup!$AH$10 & \"'!\" & AF254),0) + IF(Setup!$AH$11<>\"\",INDIRECT(\"'\" & Setup!$AH$11 & \"'!\" & AF254),0) + IF(Setup!$AH$12<>\"\",INDIRECT(\"'\" & Setup!$AH$12 & \"'!\" & AF254),0)","v":0},{"$f":"IF(Setup!$AI$7<>\"\",INDIRECT(\"'\" & Setup!$AI$7 & \"'!\" & AF254),0) + IF(Setup!$AI$8<>\"\",INDIRECT(\"'\" & Setup!$AI$8 & \"'!\" & AF254),0) + IF(Setup!$AI$9<>\"\",INDIRECT(\"'\" & Setup!$AI$9 & \"'!\" & AF254),0) + IF(Setup!$AI$10<>\"\",INDIRECT(\"'\" & Setup!$AI$10 & \"'!\" & AF254),0) + IF(Setup!$AI$11<>\"\",INDIRECT(\"'\" & Setup!$AI$11 & \"'!\" & AF254),0) + IF(Setup!$AI$12<>\"\",INDIRECT(\"'\" & Setup!$AI$12 & \"'!\" & AF254),0)","v":0},{"$f":"IF(Setup!$AJ$7<>\"\",INDIRECT(\"'\" & Setup!$AJ$7 & \"'!\" & AF254),0) + IF(Setup!$AJ$8<>\"\",INDIRECT(\"'\" & Setup!$AJ$8 & \"'!\" & AF254),0) + IF(Setup!$AJ$9<>\"\",INDIRECT(\"'\" & Setup!$AJ$9 & \"'!\" & AF254),0) + IF(Setup!$AJ$10<>\"\",INDIRECT(\"'\" & Setup!$AJ$10 & \"'!\" & AF254),0) + IF(Setup!$AJ$11<>\"\",INDIRECT(\"'\" & Setup!$AJ$11 & \"'!\" & AF254),0) + IF(Setup!$AJ$12<>\"\",INDIRECT(\"'\" & Setup!$AJ$12 & \"'!\" & AF254),0)","v":0},null,"",{"$nulls":30},0,{"$f":"IF(Setup!$AH$7=\"\",0,INDIRECT(\"'\" & Setup!$AH$7 & \"'!\" & AF254))","v":0},{"$f":"IF(Setup!$AI$7=\"\",0,INDIRECT(\"'\" & Setup!$AI$7 & \"'!\" & AF254))","v":0},{"$f":"IF(Setup!$AJ$7=\"\",0,INDIRECT(\"'\" & Setup!$AJ$7 & \"'!\" & AF254))","v":0}]
[{"$f":"Planning!A27","v":"I019"},{"$f":"Planning!B27","v":0},{"$f":"Planning!C27","v":0},{"$f":"Planning!D27","v":0},{"$f":"Planning!E27","v":0},{"$f":"Planning!G27","v":0},0,{"v":0,"d":"0.00"},{"v":0,"d":"0.00"},"","",{"$f":"IF(Setup!$AG$7<>\"\",INDIRECT(\"'\" & Setup!$AG$7 & \"'!\" & AD255),0) + IF(Setup!$AG$8<>\"\",INDIRECT(\"'\" & Setup!$AG$8 & \"'!\" & AD255),0) + IF(Setup!$AG$9<>\"\",INDIRECT(\"'\" & Setup!$AG$9 & \"'!\" & AD255),0) + IF(Setup!$AG$10<>\"\",INDIRECT(\"'\" & Setup!$AG$10 & \"'!\" & AD255),0) + IF(Setup!$AG$11<>\"\",INDIRECT(\"'\" & Setup!$AG$11 & \"'!\" & AD255),0) + IF(Setup!$AG$12<>\"\",INDIRECT(\"'\" & Setup!$AG$12 & \"'!\" & AD255),0)","v":{"v":0,"d":"0.00"}},{"$f":"IF(Setup!$AG$7<>\"\",INDIRECT(\"'\" & Setup!$AG$7 & \"'!\" & AE255),0) + IF(Setup!$AG$8<>\"\",INDIRECT(\"'\" & Setup!$AG$8 & \"'!\" & AE255),0) + IF(Setup!$AG$9<>\"\",INDIRECT(\"'\" & Setup!$AG$9 & \"'!\" & AE255),0) + IF(Setup!$AG$10<>\"\",INDIRECT(\"'\" & Setup!$AG$10 & \"'!\" & AE255),0) + IF(Setup!$AG$11<>\"\",INDIRECT(\"'\" & Setup!$AG$11 & \"'!\" & AE255),0) + IF(Setup!$AG$12<>\"\",INDIRECT(\"'\" & Setup!$AG$12 & \"'!\" & AE255),0)","v":{"v":0,"d":"0.00"}},"","",{"$f":"IF(Setup!$AH$7<>\"\",INDIRECT(\"'\" & Setup!$AH$7 & \"'!\" & AD255),0) + IF(Setup!$AH$8<>\"\",INDIRECT(\"'\" & Setup!$AH$8 & \"'!\" & AD255),0) + IF(Setup!$AH$9<>\"\",INDIRECT(\"'\" & Setup!$AH$9 & \"'!\" & AD255),0) + IF(Setup!$AH$10<>\"\",INDIRECT(\"'\" & Setup!$AH$10 & \"'!\" & AD255),0) + IF(Setup!$AH$11<>\"\",INDIRECT(\"'\" & Setup!$AH$11 & \"'!\" & AD255),0) + IF(Setup!$AH$12<>\"\",INDIRECT(\"'\" & Setup!$AH$12 & \"'!\" & AD255),0)","v":{"v":0,"d":"0.00"}},{"$f":"IF(Setup!$AH$7<>\"\",INDIRECT(\"'\" & Setup!$AH$7 & \"'!\" & AE255),0) + IF(Setup!$AH$8<>\"\",INDIRECT(\"'\" & Setup!$AH$8 & \"'!\" & AE255),0) + IF(Setup!$AH$9<>\"\",INDIRECT(\"'\" & Setup!$AH$9 & \"'!\" & AE255),0) + IF(Setup!$AH$10<>\"\",INDIRECT(\"'\" & Setup!$AH$10 & \"'!\" & AE255),0) + IF(Setup!$AH$11<>\"\",INDIRECT(\"'\" & Setup!$AH$11 & \"'!\" & AE255),0) + IF(Setup!$AH$12<>\"\",INDIRECT(\"'\" & Setup!$AH$12 & \"'!\" & AE255),0)","v":{"v":0,"d":"0.00"}},"","",{"$f":"IF(Setup!$AI$7<>\"\",INDIRECT(\"'\" & Setup!$AI$7 & \"'!\" & AD255),0) + IF(Setup!$AI$8<>\"\",INDIRECT(\"'\" & Setup!$AI$8 & \"'!\" & AD255),0) + IF(Setup!$AI$9<>\"\",INDIRECT(\"'\" & Setup!$AI$9 & \"'!\" & AD255),0) + IF(Setup!$AI$10<>\"\",INDIRECT(\"'\" & Setup!$AI$10 & \"'!\" & AD255),0) + IF(Setup!$AI$11<>\"\",INDIRECT(\"'\" & Setup!$AI$11 & \"'!\" & AD255),0) + IF(Setup!$AI$12<>\"\",INDIRECT(\"'\" & Setup!$AI$12 & \"'!\" & AD255),0)","v":{"v":0,"d":"0.00"}},{"$f":"IF(Setup!$AI$7<>\"\",INDIRECT(\"'\" & Setup!$AI$7 & \"'!\" & AE255),0) + IF(Setup!$AI$8<>\"\",INDIRECT(\"'\" & Setup!$AI$8 & \"'!\" & AE255),0) + IF(Setup!$AI$9<>\"\",INDIRECT(\"'\" & Setup!$AI$9 & \"'!\" & AE255),0) + IF(Setup!$AI$10<>\"\",INDIRECT(\"'\" & Setup!$AI$10 & \"'!\" & AE255),0) + IF(Setup!$AI$11<>\"\",INDIRECT(\"'\" & Setup!$AI$11 & \"'!\" & AE255),0) + IF(Setup!$AI$12<>\"\",INDIRECT(\"'\" & Setup!$AI$12 & \"'!\" & AE255),0)","v":{"v":0,"d":"0.00"}},"","",{"$f":"IF(Setup!$AJ$7<>\"\",INDIRECT(\"'\" & Setup!$AJ$7 & \"'!\" & AD255),0) + IF(Setup!$AJ$8<>\"\",INDIRECT(\"'\" & Setup!$AJ$8 & \"'!\" & AD255),0) + IF(Setup!$AJ$9<>\"\",INDIRECT(\"'\" & Setup!$AJ$9 & \"'!\" & AD255),0) + IF(Setup!$AJ$10<>\"\",INDIRECT(\"'\" & Setup!$AJ$10 & \"'!\" & AD255),0) + IF(Setup!$AJ$11<>\"\",INDIRECT(\"'\" & Setup!$AJ$11 & \"'!\" & AD255),0) + IF(Setup!$AJ$12<>\"\",INDIRECT(\"'\" & Setup!$AJ$12 & \"'!\" & AD255),0)","v":0},{"$f":"IF(Setup!$AJ$7<>\"\",INDIRECT(\"'\" & Setup!$AJ$7 & \"'!\" & AE255),0) + IF(Setup!$AJ$8<>\"\",INDIRECT(\"'\" & Setup!$AJ$8 & \"'!\" & AE255),0) + IF(Setup!$AJ$9<>\"\",INDIRECT(\"'\" & Setup!$AJ$9 & \"'!\" & AE255),0) + IF(Setup!$AJ$10<>\"\",INDIRECT(\"'\" & Setup!$AJ$10 & \"'!\" & AE255),0) + IF(Setup!$AJ$11<>\"\",INDIRECT(\"'\" & Setup!$AJ$11 & \"'!\" & AE255),0) + IF(Setup!$AJ$12<>\"\",INDIRECT(\"'\" & Setup!$AJ$12 & \"'!\" & AE255),0)","v":0},"","",{"$f":"Planning!H27","v":0},"00","M43","O43","N43",null,null,{"$f":"IF(Setup!$AG$7<>\"\",INDIRECT(\"'\" & Setup!$AG$7 & \"'!\" & AF255),0) + IF(Setup!$AG$8<>\"\",INDIRECT(\"'\" & Setup!$AG$8 & \"'!\" & AF255),0) + IF(Setup!$AG$9<>\"\",INDIRECT(\"'\" & Setup!$AG$9 & \"'!\" & AF255),0) + IF(Setup!$AG$10<>\"\",INDIRECT(\"'\" & Setup!$AG$10 & \"'!\" & AF255),0) + IF(Setup!$AG$11<>\"\",INDIRECT(\"'\" & Setup!$AG$11 & \"'!\" & AF255),0) + IF(Setup!$AG$12<>\"\",INDIRECT(\"'\" & Setup!$AG$12 & \"'!\" & AF255),0)","v":0},{"$f":"IF(Setup!$AH$7<>\"\",INDIRECT(\"'\" & Setup!$AH$7 & \"'!\" & AF255),0) + IF(Setup!$AH$8<>\"\",INDIRECT(\"'\" & Setup!$AH$8 & \"'!\" & AF255),0) + IF(Setup!$AH$9<>\"\",INDIRECT(\"'\" & Setup!$AH$9 & \"'!\" & AF255),0) + IF(Setup!$AH$10<>\"\",INDIRECT(\"'\" & Setup!$AH$10 & \"'!\" & AF255),0) + IF(Setup!$AH$11<>\"\",INDIRECT(\"'\" & Setup!$AH$11 & \"'!\" & AF255),0) + IF(Setup!$AH$12<>\"\",INDIRECT(\"'\" & Setup!$AH$12 & \"'!\" & AF255),0)","v":0},{"$f":"IF(Setup!$AI$7<>\"\",INDIRECT(\"'\" & Setup!$AI$7 & \"'!\" & AF255),0) + IF(Setup!$AI$8<>\"\",INDIRECT(\"'\" & Setup!$AI$8 & \"'!\" & AF255),0) + IF(Setup!$AI$9<>\"\",INDIRECT(\"'\" & Setup!$AI$9 & \"'!\" & AF255),0) + IF(Setup!$AI$10<>\"\",INDIRECT(\"'\" & Setup!$AI$10 & \"'!\" & AF255),0) + IF(Setup!$AI$11<>\"\",INDIRECT(\"'\" & Setup!$AI$11 & \"'!\" & AF255),0) + IF(Setup!$AI$12<>\"\",INDIRECT(\"'\" & Setup!$AI$12 & \"'!\" & AF255),0)","v":0},{"$f":"IF(Setup!$AJ$7<>\"\",INDIRECT(\"'\" & Setup!$AJ$7 & \"'!\" & AF255),0) + IF(Setup!$AJ$8<>\"\",INDIRECT(\"'\" & Setup!$AJ$8 & \"'!\" & AF255),0) + IF(Setup!$AJ$9<>\"\",INDIRECT(\"'\" & Setup!$AJ$9 & \"'!\" & AF255),0) + IF(Setup!$AJ$10<>\"\",INDIRECT(\"'\" & Setup!$AJ$10 & \"'!\" & AF255),0) + IF(Setup!$AJ$11<>\"\",INDIRECT(\"'\" & Setup!$AJ$11 & \"'!\" & AF255),0) + IF(Setup!$AJ$12<>\"\",INDIRECT(\"'\" & Setup!$AJ$12 & \"'!\" & AF255),0)","v":0},null,"",{"$nulls":30},0,{"$f":"IF(Setup!$AH$7=\"\",0,INDIRECT(\"'\" & Setup!$AH$7 & \"'!\" & AF255))","v":0},{"$f":"IF(Setup!$AI$7=\"\",0,INDIRECT(\"'\" & Setup!$AI$7 & \"'!\" & AF255))","v":0},{"$f":"IF(Setup!$AJ$7=\"\",0,INDIRECT(\"'\" & Setup!$AJ$7 & \"'!\" & AF255))","v":0}]
[{"$f":"Planning!A28","v":"I020"},{"$f":"Planning!B28","v":0},{"$f":"Planning!C28","v":0},{"$f":"Planning!D28","v":0},{"$f":"Planning!E28","v":0},{"$f":"Planning!G28","v":0},0,{"v":0,"d":"0.00"},{"v":0,"d":"0.00"},"","",{"$f":"IF(Setup!$AG$7<>\"\",INDIRECT(\"'\" & Setup!$AG$7 & \"'!\" & AD256),0) + IF(Setup!$AG$8<>\"\",INDIRECT(\"'\" & Setup!$AG$8 & \"'!\" & AD256),0) + IF(Setup!$AG$9<>\"\",INDIRECT(\"'\" & Setup!$AG$9 & \"'!\" & AD256),0) + IF(Setup!$AG$10<>\"\",INDIRECT(\"'\" & Setup!$AG$10 & \"'!\" & AD256),0) + IF(Setup!$AG$11<>\"\",INDIRECT(\"'\" & Setup!$AG$11 & \"'!\" & AD256),0) + IF(Setup!$AG$12<>\"\",INDIRECT(\"'\" & Setup!$AG$12 & \"'!\" & AD256),0)","v":{"v":0,"d":"0.00"}},{"$f":"IF(Setup!$AG$7<>\"\",INDIRECT(\"'\" & Setup!$AG$7 & \"'!\" & AE256),0) + IF(Setup!$AG$8<>\"\",INDIRECT(\"'\" & Setup!$AG$8 & \"'!\" & AE256),0) + IF(Setup!$AG$9<>\"\",INDIRECT(\"'\" & Setup!$AG$9 & \"'!\" & AE256),0) + IF(Setup!$AG$10<>\"\",INDIRECT(\"'\" & Setup!$AG$10 & \"'!\" & AE256),0) + IF(Setup!$AG$11<>\"\",INDIRECT(\"'\" & Setup!$AG$11 & \"'!\" & AE256),0) + IF(Setup!$AG$12<>\"\",INDIRECT(\"'\" & Setup!$AG$12 & \"'!\" & AE256),0)","v":{"v":0,"d":"0.00"}},"","",{"$f":"IF(Setup!$AH$7<>\"\",INDIRECT(\"'\" & Setup!$AH$7 & \"'!\" & AD256),0) + IF(Setup!$AH$8<>\"\",INDIRECT(\"'\" & Setup!$AH$8 & \"'!\" & AD256),0) + IF(Setup!$AH$9<>\"\",INDIRECT(\"'\" & Setup!$AH$9 & \"'!\" & AD256),0) + IF(Setup!$AH$10<>\"\",INDIRECT(\"'\" & Setup!$AH$10 & \"'!\" & AD256),0) + IF(Setup!$AH$11<>\"\",INDIRECT(\"'\" & Setup!$AH$11 & \"'!\" & AD256),0) + IF(Setup!$AH$12<>\"\",INDIRECT(\"'\" & Setup!$AH$12 & \"'!\" & AD256),0)","v":{"v":0,"d":"0.00"}},{"$f":"IF(Setup!$AH$7<>\"\",INDIRECT(\"'\" & Setup!$AH$7 & \"'!\" & AE256),0) + IF(Setup!$AH$8<>\"\",INDIRECT(\"'\" & Setup!$AH$8 & \"'!\" & AE256),0) + IF(Setup!$AH$9<>\"\",INDIRECT(\"'\" & Setup!$AH$9 & \"'!\" & AE256),0) + IF(Setup!$AH$10<>\"\",INDIRECT(\"'\" & Setup!$AH$10 & \"'!\" & AE256),0) + IF(Setup!$AH$11<>\"\",INDIRECT(\"'\" & Setup!$AH$11 & \"'!\" & AE256),0) + IF(Setup!$AH$12<>\"\",INDIRECT(\"'\" & Setup!$AH$12 & \"'!\" & AE256),0)","v":{"v":0,"d":"0.00"}},"","",{"$f":"IF(Setup!$AI$7<>\"\",INDIRECT(\"'\" & Setup!$AI$7 & \"'!\" & AD256),0) + IF(Setup!$AI$8<>\"\",INDIRECT(\"'\" & Setup!$AI$8 & \"'!\" & AD256),0) + IF(Setup!$AI$9<>\"\",INDIRECT(\"'\" & Setup!$AI$9 & \"'!\" & AD256),0) + IF(Setup!$AI$10<>\"\",INDIRECT(\"'\" & Setup!$AI$10 & \"'!\" & AD256),0) + IF(Setup!$AI$11<>\"\",INDIRECT(\"'\" & Setup!$AI$11 & \"'!\" & AD256),0) + IF(Setup!$AI$12<>\"\",INDIRECT(\"'\" & Setup!$AI$12 & \"'!\" & AD256),0)","v":{"v":0,"d":"0.00"}},{"$f":"IF(Setup!$AI$7<>\"\",INDIRECT(\"'\" & Setup!$AI$7 & \"'!\" & AE256),0) + IF(Setup!$AI$8<>\"\",INDIRECT(\"'\" & Setup!$AI$8 & \"'!\" & AE256),0) + IF(Setup!$AI$9<>\"\",INDIRECT(\"'\" & Setup!$AI$9 & \"'!\" & AE256),0) + IF(Setup!$AI$10<>\"\",INDIRECT(\"'\" & Setup!$AI$10 & \"'!\" & AE256),0) + IF(Setup!$AI$11<>\"\",INDIRECT(\"'\" & Setup!$AI$11 & \"'!\" & AE256),0) + IF(Setup!$AI$12<>\"\",INDIRECT(\"'\" & Setup!$AI$12 & \"'!\" & AE256),0)","v":{"v":0,"d":"0.00"}},"","",{"$f":"IF(Setup!$AJ$7<>\"\",INDIRECT(\"'\" & Setup!$AJ$7 & \"'!\" & AD256),0) + IF(Setup!$AJ$8<>\"\",INDIRECT(\"'\" & Setup!$AJ$8 & \"'!\" & AD256),0) + IF(Setup!$AJ$9<>\"\",INDIRECT(\"'\" & Setup!$AJ$9 & \"'!\" & AD256),0) + IF(Setup!$AJ$10<>\"\",INDIRECT(\"'\" & Setup!$AJ$10 & \"'!\" & AD256),0) + IF(Setup!$AJ$11<>\"\",INDIRECT(\"'\" & Setup!$AJ$11 & \"'!\" & AD256),0) + IF(Setup!$AJ$12<>\"\",INDIRECT(\"'\" & Setup!$AJ$12 & \"'!\" & AD256),0)","v":0},{"$f":"IF(Setup!$AJ$7<>\"\",INDIRECT(\"'\" & Setup!$AJ$7 & \"'!\" & AE256),0) + IF(Setup!$AJ$8<>\"\",INDIRECT(\"'\" & Setup!$AJ$8 & \"'!\" & AE256),0) + IF(Setup!$AJ$9<>\"\",INDIRECT(\"'\" & Setup!$AJ$9 & \"'!\" & AE256),0) + IF(Setup!$AJ$10<>\"\",INDIRECT(\"'\" & Setup!$AJ$10 & \"'!\" & AE256),0) + IF(Setup!$AJ$11<>\"\",INDIRECT(\"'\" & Setup!$AJ$11 & \"'!\" & AE256),0) + IF(Setup!$AJ$12<>\"\",INDIRECT(\"'\" & Setup!$AJ$12 & \"'!\" & AE256),0)","v":0},"","",{"$f":"Planning!H28","v":0},"00","M44","O44","N44",null,null,{"$f":"IF(Setup!$AG$7<>\"\",INDIRECT(\"'\" & Setup!$AG$7 & \"'!\" & AF256),0) + IF(Setup!$AG$8<>\"\",INDIRECT(\"'\" & Setup!$AG$8 & \"'!\" & AF256),0) + IF(Setup!$AG$9<>\"\",INDIRECT(\"'\" & Setup!$AG$9 & \"'!\" & AF256),0) + IF(Setup!$AG$10<>\"\",INDIRECT(\"'\" & Setup!$AG$10 & \"'!\" & AF256),0) + IF(Setup!$AG$11<>\"\",INDIRECT(\"'\" & Setup!$AG$11 & \"'!\" & AF256),0) + IF(Setup!$AG$12<>\"\",INDIRECT(\"'\" & Setup!$AG$12 & \"'!\" & AF256),0)","v":0},{"$f":"IF(Setup!$AH$7<>\"\",INDIRECT(\"'\" & Setup!$AH$7 & \"'!\" & AF256),0) + IF(Setup!$AH$8<>\"\",INDIRECT(\"'\" & Setup!$AH$8 & \"'!\" & AF256),0) + IF(Setup!$AH$9<>\"\",INDIRECT(\"'\" & Setup!$AH$9 & \"'!\" & AF256),0) + IF(Setup!$AH$10<>\"\",INDIRECT(\"'\" & Setup!$AH$10 & \"'!\" & AF256),0) + IF(Setup!$AH$11<>\"\",INDIRECT(\"'\" & Setup!$AH$11 & \"'!\" & AF256),0) + IF(Setup!$AH$12<>\"\",INDIRECT(\"'\" & Setup!$AH$12 & \"'!\" & AF256),0)","v":0},{"$f":"IF(Setup!$AI$7<>\"\",INDIRECT(\"'\" & Setup!$AI$7 & \"'!\" & AF256),0) + IF(Setup!$AI$8<>\"\",INDIRECT(\"'\" & Setup!$AI$8 & \"'!\" & AF256),0) + IF(Setup!$AI$9<>\"\",INDIRECT(\"'\" & Setup!$AI$9 & \"'!\" & AF256),0) + IF(Setup!$AI$10<>\"\",INDIRECT(\"'\" & Setup!$AI$10 & \"'!\" & AF256),0) + IF(Setup!$AI$11<>\"\",INDIRECT(\"'\" & Setup!$AI$11 & \"'!\" & AF256),0) + IF(Setup!$AI$12<>\"\",INDIRECT(\"'\" & Setup!$AI$12 & \"'!\" & AF256),0)","v":0},{"$f":"IF(Setup!$AJ$7<>\"\",INDIRECT(\"'\" & Setup!$AJ$7 & \"'!\" & AF256),0) + IF(Setup!$AJ$8<>\"\",INDIRECT(\"'\" & Setup!$AJ$8 & \"'!\" & AF256),0) + IF(Setup!$AJ$9<>\"\",INDIRECT(\"'\" & Setup!$AJ$9 & \"'!\" & AF256),0) + IF(Setup!$AJ$10<>\"\",INDIRECT(\"'\" & Setup!$AJ$10 & \"'!\" & AF256),0) + IF(Setup!$AJ$11<>\"\",INDIRECT(\"'\" & Setup!$AJ$11 & \"'!\" & AF256),0) + IF(Setup!$AJ$12<>\"\",INDIRECT(\"'\" & Setup!$AJ$12 & \"'!\" & AF256),0)","v":0},null,"",{"$nulls":30},0,{"$f":"IF(Setup!$AH$7=\"\",0,INDIRECT(\"'\" & Setup!$AH$7 & \"'!\" & AF256))","v":0},{"$f":"IF(Setup!$AI$7=\"\",0,INDIRECT(\"'\" & Setup!$AI$7 & \"'!\" & AF256))","v":0},{"$f":"IF(Setup!$AJ$7=\"\",0,INDIRECT(\"'\" & Setup!$AJ$7 & \"'!\" & AF256))","v":0}]
[{"$f":"Planning!A29","v":"I021"},{"$f":"Planning!B29","v":0},{"$f":"Planning!C29","v":0},{"$f":"Planning!D29","v":0},{"$f":"Planning!E29","v":0},{"$f":"Planning!G29","v":0},0,{"v":0,"d":"0.00"},{"v":0,"d":"0.00"},"","",{"$f":"IF(Setup!$AG$7<>\"\",INDIRECT(\"'\" & Setup!$AG$7 & \"'!\" & AD257),0) + IF(Setup!$AG$8<>\"\",INDIRECT(\"'\" & Setup!$AG$8 & \"'!\" & AD257),0) + IF(Setup!$AG$9<>\"\",INDIRECT(\"'\" & Setup!$AG$9 & \"'!\" & AD257),0) + IF(Setup!$AG$10<>\"\",INDIRECT(\"'\" & Setup!$AG$10 & \"'!\" & AD257),0) + IF(Setup!$AG$11<>\"\",INDIRECT(\"'\" & Setup!$AG$11 & \"'!\" & AD257),0) + IF(Setup!$AG$12<>\"\",INDIRECT(\"'\" & Setup!$AG$12 & \"'!\" & AD257),0)","v":{"v":0,"d":"0.00"}},{"$f":"IF(Setup!$AG$7<>\"\",INDIRECT(\"'\" & Setup!$AG$7 & \"'!\" & AE257),0) + IF(Setup!$AG$8<>\"\",INDIRECT(\"'\" & Setup!$AG$8 & \"'!\" & AE257),0) + IF(Setup!$AG$9<>\"\",INDIRECT(\"'\" & Setup!$AG$9 & \"'!\" & AE257),0) + IF(Setup!$AG$10<>\"\",INDIRECT(\"'\" & Setup!$AG$10 & \"'!\" & AE257),0) + IF(Setup!$AG$11<>\"\",INDIRECT(\"'\" & Setup!$AG$11 & \"'!\" & AE257),0) + IF(Setup!$AG$12<>\"\",INDIRECT(\"'\" & Setup!$AG$12 & \"'!\" & AE257),0)","v":{"v":0,"d":"0.00"}},"","",{"$f":"IF(Setup!$AH$7<>\"\",INDIRECT(\"'\" & Setup!$AH$7 & \"'!\" & AD257),0) + IF(Setup!$AH$8<>\"\",INDIRECT(\"'\" & Setup!$AH$8 & \"'!\" & AD257),0) + IF(Setup!$AH$9<>\"\",INDIRECT(\"'\" & Setup!$AH$9 & \"'!\" & AD257),0) + IF(Setup!$AH$10<>\"\",INDIRECT(\"'\" & Setup!$AH$10 & \"'!\" & AD257),0) + IF(Setup!$AH$11<>\"\",INDIRECT(\"'\" & Setup!$AH$11 & \"'!\" & AD257),0) + IF(Setup!$AH$12<>\"\",INDIRECT(\"'\" & Setup!$AH$12 & \"'!\" & AD257),0)","v":{"v":0,"d":"0.00"}},{"$f":"IF(Setup!$AH$7<>\"\",INDIRECT(\"'\" & Setup!$AH$7 & \"'!\" & AE257),0) + IF(Setup!$AH$8<>\"\",INDIRECT(\"'\" & Setup!$AH$8 & \"'!\" & AE257),0) + IF(Setup!$AH$9<>\"\",INDIRECT(\"'\" & Setup!$AH$9 & \"'!\" & AE257),0) + IF(Setup!$AH$10<>\"\",INDIRECT(\"'\" & Setup!$AH$10 & \"'!\" & AE257),0) + IF(Setup!$AH$11<>\"\",INDIRECT(\"'\" & Setup!$AH$11 & \"'!\" & AE257),0) + IF(Setup!$AH$12<>\"\",INDIRECT(\"'\" & Setup!$AH$12 & \"'!\" & AE257),0)","v":{"v":0,"d":"0.00"}},"","",{"$f":"IF(Setup!$AI$7<>\"\",INDIRECT(\"'\" & Setup!$AI$7 & \"'!\" & AD257),0) + IF(Setup!$AI$8<>\"\",INDIRECT(\"'\" & Setup!$AI$8 & \"'!\" & AD257),0) + IF(Setup!$AI$9<>\"\",INDIRECT(\"'\" & Setup!$AI$9 & \"'!\" & AD257),0) + IF(Setup!$AI$10<>\"\",INDIRECT(\"'\" & Setup!$AI$10 & \"'!\" & AD257),0) + IF(Setup!$AI$11<>\"\",INDIRECT(\"'\" & Setup!$AI$11 & \"'!\" & AD257),0) + IF(Setup!$AI$12<>\"\",INDIRECT(\"'\" & Setup!$AI$12 & \"'!\" & AD257),0)","v":{"v":0,"d":"0.00"}},{"$f":"IF(Setup!$AI$7<>\"\",INDIRECT(\"'\" & Setup!$AI$7 & \"'!\" & AE257),0) + IF(Setup!$AI$8<>\"\",INDIRECT(\"'\" & Setup!$AI$8 & \"'!\" & AE257),0) + IF(Setup!$AI$9<>\"\",INDIRECT(\"'\" & Setup!$AI$9 & \"'!\" & AE257),0) + IF(Setup!$AI$10<>\"\",INDIRECT(\"'\" & Setup!$AI$10 & \"'!\" & AE257),0) + IF(Setup!$AI$11<>\"\",INDIRECT(\"'\" & Setup!$AI$11 & \"'!\" & AE257),0) + IF(Setup!$AI$12<>\"\",INDIRECT(\"'\" & Setup!$AI$12 & \"'!\" & AE257),0)","v":{"v":0,"d":"0.00"}},"","",{"$f":"IF(Setup!$AJ$7<>\"\",INDIRECT(\"'\" & Setup!$AJ$7 & \"'!\" & AD257),0) + IF(Setup!$AJ$8<>\"\",INDIRECT(\"'\" & Setup!$AJ$8 & \"'!\" & AD257),0) + IF(Setup!$AJ$9<>\"\",INDIRECT(\"'\" & Setup!$AJ$9 & \"'!\" & AD257),0) + IF(Setup!$AJ$10<>\"\",INDIRECT(\"'\" & Setup!$AJ$10 & \"'!\" & AD257),0) + IF(Setup!$AJ$11<>\"\",INDIRECT(\"'\" & Setup!$AJ$11 & \"'!\" & AD257),0) + IF(Setup!$AJ$12<>\"\",INDIRECT(\"'\" & Setup!$AJ$12 & \"'!\" & AD257),0)","v":0},{"$f":"IF(Setup!$AJ$7<>\"\",INDIRECT(\"'\" & Setup!$AJ$7 & \"'!\" & AE257),0) + IF(Setup!$AJ$8<>\"\",INDIRECT(\"'\" & Setup!$AJ$8 & \"'!\" & AE257),0) + IF(Setup!$AJ$9<>\"\",INDIRECT(\"'\" & Setup!$AJ$9 & \"'!\" & AE257),0) + IF(Setup!$AJ$10<>\"\",INDIRECT(\"'\" & Setup!$AJ$10 & \"'!\" & AE257),0) + IF(Setup!$AJ$11<>\"\",INDIRECT(\"'\" & Setup!$AJ$11 & \"'!\" & AE257),0) + IF(Setup!$AJ$12<>\"\",INDIRECT(\"'\" & Setup!$AJ$12 & \"'!\" & AE257),0)","v":0},"","",{"$f":"Planning!H29","v":0},"00","M45","O45","N45",null,null,{"$f":"IF(Setup!$AG$7<>\"\",INDIRECT(\"'\" & Setup!$AG$7 & \"'!\" & AF257),0) + IF(Setup!$AG$8<>\"\",INDIRECT(\"'\" & Setup!$AG$8 & \"'!\" & AF257),0) + IF(Setup!$AG$9<>\"\",INDIRECT(\"'\" & Setup!$AG$9 & \"'!\" & AF257),0) + IF(Setup!$AG$10<>\"\",INDIRECT(\"'\" & Setup!$AG$10 & \"'!\" & AF257),0) + IF(Setup!$AG$11<>\"\",INDIRECT(\"'\" & Setup!$AG$11 & \"'!\" & AF257),0) + IF(Setup!$AG$12<>\"\",INDIRECT(\"'\" & Setup!$AG$12 & \"'!\" & AF257),0)","v":0},{"$f":"IF(Setup!$AH$7<>\"\",INDIRECT(\"'\" & Setup!$AH$7 & \"'!\" & AF257),0) + IF(Setup!$AH$8<>\"\",INDIRECT(\"'\" & Setup!$AH$8 & \"'!\" & AF257),0) + IF(Setup!$AH$9<>\"\",INDIRECT(\"'\" & Setup!$AH$9 & \"'!\" & AF257),0) + IF(Setup!$AH$10<>\"\",INDIRECT(\"'\" & Setup!$AH$10 & \"'!\" & AF257),0) + IF(Setup!$AH$11<>\"\",INDIRECT(\"'\" & Setup!$AH$11 & \"'!\" & AF257),0) + IF(Setup!$AH$12<>\"\",INDIRECT(\"'\" & Setup!$AH$12 & \"'!\" & AF257),0)","v":0},{"$f":"IF(Setup!$AI$7<>\"\",INDIRECT(\"'\" & Setup!$AI$7 & \"'!\" & AF257),0) + IF(Setup!$AI$8<>\"\",INDIRECT(\"'\" & Setup!$AI$8 & \"'!\" & AF257),0) + IF(Setup!$AI$9<>\"\",INDIRECT(\"'\" & Setup!$AI$9 & \"'!\" & AF257),0) + IF(Setup!$AI$10<>\"\",INDIRECT(\"'\" & Setup!$AI$10 & \"'!\" & AF257),0) + IF(Setup!$AI$11<>\"\",INDIRECT(\"'\" & Setup!$AI$11 & \"'!\" & AF257),0) + IF(Setup!$AI$12<>\"\",INDIRECT(\"'\" & Setup!$AI$12 & \"'!\" & AF257),0)","v":0},{"$f":"IF(Setup!$AJ$7<>\"\",INDIRECT(\"'\" & Setup!$AJ$7 & \"'!\" & AF257),0) + IF(Setup!$AJ$8<>\"\",INDIRECT(\"'\" & Setup!$AJ$8 & \"'!\" & AF257),0) + IF(Setup!$AJ$9<>\"\",INDIRECT(\"'\" & Setup!$AJ$9 & \"'!\" & AF257),0) + IF(Setup!$AJ$10<>\"\",INDIRECT(\"'\" & Setup!$AJ$10 & \"'!\" & AF257),0) + IF(Setup!$AJ$11<>\"\",INDIRECT(\"'\" & Setup!$AJ$11 & \"'!\" & AF257),0) + IF(Setup!$AJ$12<>\"\",INDIRECT(\"'\" & Setup!$AJ$12 & \"'!\" & AF257),0)","v":0},null,"",{"$nulls":30},0,{"$f":"IF(Setup!$AH$7=\"\",0,INDIRECT(\"'\" & Setup!$AH$7 & \"'!\" & AF257))","v":0},{"$f":"IF(Setup!$AI$7=\"\",0,INDIRECT(\"'\" & Setup!$AI$7 & \"'!\" & AF257))","v":0},{"$f":"IF(Setup!$AJ$7=\"\",0,INDIRECT(\"'\" & Setup!$AJ$7 & \"'!\" & AF257))","v":0}]
[{"$f":"Planning!A30","v":"I022"},{"$f":"Planning!B30","v":0},{"$f":"Planning!C30","v":0},{"$f":"Planning!D30","v":0},{"$f":"Planning!E30","v":0},{"$f":"Planning!G30","v":0},0,{"v":0,"d":"0.00"},{"v":0,"d":"0.00"},"","",{"$f":"IF(Setup!$AG$7<>\"\",INDIRECT(\"'\" & Setup!$AG$7 & \"'!\" & AD258),0) + IF(Setup!$AG$8<>\"\",INDIRECT(\"'\" & Setup!$AG$8 & \"'!\" & AD258),0) + IF(Setup!$AG$9<>\"\",INDIRECT(\"'\" & Setup!$AG$9 & \"'!\" & AD258),0) + IF(Setup!$AG$10<>\"\",INDIRECT(\"'\" & Setup!$AG$10 & \"'!\" & AD258),0) + IF(Setup!$AG$11<>\"\",INDIRECT(\"'\" & Setup!$AG$11 & \"'!\" & AD258),0) + IF(Setup!$AG$12<>\"\",INDIRECT(\"'\" & Setup!$AG$12 & \"'!\" & AD258),0)","v":{"v":0,"d":"0.00"}},{"$f":"IF(Setup!$AG$7<>\"\",INDIRECT(\"'\" & Setup!$AG$7 & \"'!\" & AE258),0) + IF(Setup!$AG$8<>\"\",INDIRECT(\"'\" & Setup!$AG$8 & \"'!\" & AE258),0) + IF(Setup!$AG$9<>\"\",INDIRECT(\"'\" & Setup!$AG$9 & \"'!\" & AE258),0) + IF(Setup!$AG$10<>\"\",INDIRECT(\"'\" & Setup!$AG$10 & \"'!\" & AE258),0) + IF(Setup!$AG$11<>\"\",INDIRECT(\"'\" & Setup!$AG$11 & \"'!\" & AE258),0) + IF(Setup!$AG$12<>\"\",INDIRECT(\"'\" & Setup!$AG$12 & \"'!\" & AE258),0)","v":{"v":0,"d":"0.00"}},"","",{"$f":"IF(Setup!$AH$7<>\"\",INDIRECT(\"'\" & Setup!$AH$7 & \"'!\" & AD258),0) + IF(Setup!$AH$8<>\"\",INDIRECT(\"'\" & Setup!$AH$8 & \"'!\" & AD258),0) + IF(Setup!$AH$9<>\"\",INDIRECT(\"'\" & Setup!$AH$9 & \"'!\" & AD258),0) + IF(Setup!$AH$10<>\"\",INDIRECT(\"'\" & Setup!$AH$10 & \"'!\" & AD258),0) + IF(Setup!$AH$11<>\"\",INDIRECT(\"'\" & Setup!$AH$11 & \"'!\" & AD258),0) + IF(Setup!$AH$12<>\"\",INDIRECT(\"'\" & Setup!$AH$12 & \"'!\" & AD258),0)","v":{"v":0,"d":"0.00"}},{"$f":"IF(Setup!$AH$7<>\"\",INDIRECT(\"'\" & Setup!$AH$7 & \"'!\" & AE258),0) + IF(Setup!$AH$8<>\"\",INDIRECT(\"'\" & Setup!$AH$8 & \"'!\" & AE258),0) + IF(Setup!$AH$9<>\"\",INDIRECT(\"'\" & Setup!$AH$9 & \"'!\" & AE258),0) + IF(Setup!$AH$10<>\"\",INDIRECT(\"'\" & Setup!$AH$10 & \"'!\" & AE258),0) + IF(Setup!$AH$11<>\"\",INDIRECT(\"'\" & Setup!$AH$11 & \"'!\" & AE258),0) + IF(Setup!$AH$12<>\"\",INDIRECT(\"'\" & Setup!$AH$12 & \"'!\" & AE258),0)","v":{"v":0,"d":"0.00"}},"","",{"$f":"IF(Setup!$AI$7<>\"\",INDIRECT(\"'\" & Setup!$AI$7 & \"'!\" & AD258),0) + IF(Setup!$AI$8<>\"\",INDIRECT(\"'\" & Setup!$AI$8 & \"'!\" & AD258),0) + IF(Setup!$AI$9<>\"\",INDIRECT(\"'\" & Setup!$AI$9 & \"'!\" & AD258),0) + IF(Setup!$AI$10<>\"\",INDIRECT(\"'\" & Setup!$AI$10 & \"'!\" & AD258),0) + IF(Setup!$AI$11<>\"\",INDIRECT(\"'\" & Setup!$AI$11 & \"'!\" & AD258),0) + IF(Setup!$AI$12<>\"\",INDIRECT(\"'\" & Setup!$AI$12 & \"'!\" & AD258),0)","v":{"v":0,"d":"0.00"}},{"$f":"IF(Setup!$AI$7<>\"\",INDIRECT(\"'\" & Setup!$AI$7 & \"'!\" & AE258),0) + IF(Setup!$AI$8<>\"\",INDIRECT(\"'\" & Setup!$AI$8 & \"'!\" & AE258),0) + IF(Setup!$AI$9<>\"\",INDIRECT(\"'\" & Setup!$AI$9 & \"'!\" & AE258),0) + IF(Setup!$AI$10<>\"\",INDIRECT(\"'\" & Setup!$AI$10 & \"'!\" & AE258),0) + IF(Setup!$AI$11<>\"\",INDIRECT(\"'\" & Setup!$AI$11 & \"'!\" & AE258),0) + IF(Setup!$AI$12<>\"\",INDIRECT(\"'\" & Setup!$AI$12 & \"'!\" & AE258),0)","v":{"v":0,"d":"0.00"}},"","",{"$f":"IF(Setup!$AJ$7<>\"\",INDIRECT(\"'\" & Setup!$AJ$7 & \"'!\" & AD258),0) + IF(Setup!$AJ$8<>\"\",INDIRECT(\"'\" & Setup!$AJ$8 & \"'!\" & AD258),0) + IF(Setup!$AJ$9<>\"\",INDIRECT(\"'\" & Setup!$AJ$9 & \"'!\" & AD258),0) + IF(Setup!$AJ$10<>\"\",INDIRECT(\"'\" & Setup!$AJ$10 & \"'!\" & AD258),0) + IF(Setup!$AJ$11<>\"\",INDIRECT(\"'\" & Setup!$AJ$11 & \"'!\" & AD258),0) + IF(Setup!$AJ$12<>\"\",INDIRECT(\"'\" & Setup!$AJ$12 & \"'!\" & AD258),0)","v":0},{"$f":"IF(Setup!$AJ$7<>\"\",INDIRECT(\"'\" & Setup!$AJ$7 & \"'!\" & AE258),0) + IF(Setup!$AJ$8<>\"\",INDIRECT(\"'\" & Setup!$AJ$8 & \"'!\" & AE258),0) + IF(Setup!$AJ$9<>\"\",INDIRECT(\"'\" & Setup!$AJ$9 & \"'!\" & AE258),0) + IF(Setup!$AJ$10<>\"\",INDIRECT(\"'\" & Setup!$AJ$10 & \"'!\" & AE258),0) + IF(Setup!$AJ$11<>\"\",INDIRECT(\"'\" & Setup!$AJ$11 & \"'!\" & AE258),0) + IF(Setup!$AJ$12<>\"\",INDIRECT(\"'\" & Setup!$AJ$12 & \"'!\" & AE258),0)","v":0},"","",{"$f":"Planning!H30","v":0},"00","M46","O46","N46",null,null,{"$f":"IF(Setup!$AG$7<>\"\",INDIRECT(\"'\" & Setup!$AG$7 & \"'!\" & AF258),0) + IF(Setup!$AG$8<>\"\",INDIRECT(\"'\" & Setup!$AG$8 & \"'!\" & AF258),0) + IF(Setup!$AG$9<>\"\",INDIRECT(\"'\" & Setup!$AG$9 & \"'!\" & AF258),0) + IF(Setup!$AG$10<>\"\",INDIRECT(\"'\" & Setup!$AG$10 & \"'!\" & AF258),0) + IF(Setup!$AG$11<>\"\",INDIRECT(\"'\" & Setup!$AG$11 & \"'!\" & AF258),0) + IF(Setup!$AG$12<>\"\",INDIRECT(\"'\" & Setup!$AG$12 & \"'!\" & AF258),0)","v":0},{"$f":"IF(Setup!$AH$7<>\"\",INDIRECT(\"'\" & Setup!$AH$7 & \"'!\" & AF258),0) + IF(Setup!$AH$8<>\"\",INDIRECT(\"'\" & Setup!$AH$8 & \"'!\" & AF258),0) + IF(Setup!$AH$9<>\"\",INDIRECT(\"'\" & Setup!$AH$9 & \"'!\" & AF258),0) + IF(Setup!$AH$10<>\"\",INDIRECT(\"'\" & Setup!$AH$10 & \"'!\" & AF258),0) + IF(Setup!$AH$11<>\"\",INDIRECT(\"'\" & Setup!$AH$11 & \"'!\" & AF258),0) + IF(Setup!$AH$12<>\"\",INDIRECT(\"'\" & Setup!$AH$12 & \"'!\" & AF258),0)","v":0},{"$f":"IF(Setup!$AI$7<>\"\",INDIRECT(\"'\" & Setup!$AI$7 & \"'!\" & AF258),0) + IF(Setup!$AI$8<>\"\",INDIRECT(\"'\" & Setup!$AI$8 & \"'!\" & AF258),0) + IF(Setup!$AI$9<>\"\",INDIRECT(\"'\" & Setup!$AI$9 & \"'!\" & AF258),0) + IF(Setup!$AI$10<>\"\",INDIRECT(\"'\" & Setup!$AI$10 & \"'!\" & AF258),0) + IF(Setup!$AI$11<>\"\",INDIRECT(\"'\" & Setup!$AI$11 & \"'!\" & AF258),0) + IF(Setup!$AI$12<>\"\",INDIRECT(\"'\" & Setup!$AI$12 & \"'!\" & AF258),0)","v":0},{"$f":"IF(Setup!$AJ$7<>\"\",INDIRECT(\"'\" & Setup!$AJ$7 & \"'!\" & AF258),0) + IF(Setup!$AJ$8<>\"\",INDIRECT(\"'\" & Setup!$AJ$8 & \"'!\" & AF258),0) + IF(Setup!$AJ$9<>\"\",INDIRECT(\"'\" & Setup!$AJ$9 & \"'!\" & AF258),0) + IF(Setup!$AJ$10<>\"\",INDIRECT(\"'\" & Setup!$AJ$10 & \"'!\" & AF258),0) + IF(Setup!$AJ$11<>\"\",INDIRECT(\"'\" & Setup!$AJ$11 & \"'!\" & AF258),0) + IF(Setup!$AJ$12<>\"\",INDIRECT(\"'\" & Setup!$AJ$12 & \"'!\" & AF258),0)","v":0},null,"",{"$nulls":30},0,{"$f":"IF(Setup!$AH$7=\"\",0,INDIRECT(\"'\" & Setup!$AH$7 & \"'!\" & AF258))","v":0},{"$f":"IF(Setup!$AI$7=\"\",0,INDIRECT(\"'\" & Setup!$AI$7 & \"'!\" & AF258))","v":0},{"$f":"IF(Setup!$AJ$7=\"\",0,INDIRECT(\"'\" & Setup!$AJ$7 & \"'!\" & AF258))","v":0}]
[{"$f":"Planning!A31","v":"I023"},{"$f":"Planning!B31","v":0},{"$f":"Planning!C31","v":0},{"$f":"Planning!D31","v":0},{"$f":"Planning!E31","v":0},{"$f":"Planning!G31","v":0},0,{"v":0,"d":"0.00"},{"v":0,"d":"0.00"},"","",{"$f":"IF(Setup!$AG$7<>\"\",INDIRECT(\"'\" & Setup!$AG$7 & \"'!\" & AD259),0) + IF(Setup!$AG$8<>\"\",INDIRECT(\"'\" & Setup!$AG$8 & \"'!\" & AD259),0) + IF(Setup!$AG$9<>\"\",INDIRECT(\"'\" & Setup!$AG$9 & \"'!\" & AD259),0) + IF(Setup!$AG$10<>\"\",INDIRECT(\"'\" & Setup!$AG$10 & \"'!\" & AD259),0) + IF(Setup!$AG$11<>\"\",INDIRECT(\"'\" & Setup!$AG$11 & \"'!\" & AD259),0) + IF(Setup!$AG$12<>\"\",INDIRECT(\"'\" & Setup!$AG$12 & \"'!\" & AD259),0)","v":{"v":0,"d":"0.00"}},{"$f":"IF(Setup!$AG$7<>\"\",INDIRECT(\"'\" & Setup!$AG$7 & \"'!\" & AE259),0) + IF(Setup!$AG$8<>\"\",INDIRECT(\"'\" & Setup!$AG$8 & \"'!\" & AE259),0) + IF(Setup!$AG$9<>\"\",INDIRECT(\"'\" & Setup!$AG$9 & \"'!\" & AE259),0) + IF(Setup!$AG$10<>\"\",INDIRECT(\"'\" & Setup!$AG$10 & \"'!\" & AE259),0) + IF(Setup!$AG$11<>\"\",INDIRECT(\"'\" & Setup!$AG$11 & \"'!\" & AE259),0) + IF(Setup!$AG$12<>\"\",INDIRECT(\"'\" & Setup!$AG$12 & \"'!\" & AE259),0)","v":{"v":0,"d":"0.00"}},"","",{"$f":"IF(Setup!$AH$7<>\"\",INDIRECT(\"'\" & Setup!$AH$7 & \"'!\" & AD259),0) + IF(Setup!$AH$8<>\"\",INDIRECT(\"'\" & Setup!$AH$8 & \"'!\" & AD259),0) + IF(Setup!$AH$9<>\"\",INDIRECT(\"'\" & Setup!$AH$9 & \"'!\" & AD259),0) + IF(Setup!$AH$10<>\"\",INDIRECT(\"'\" & Setup!$AH$10 & \"'!\" & AD259),0) + IF(Setup!$AH$11<>\"\",INDIRECT(\"'\" & Setup!$AH$11 & \"'!\" & AD259),0) + IF(Setup!$AH$12<>\"\",INDIRECT(\"'\" & Setup!$AH$12 & \"'!\" & AD259),0)","v":{"v":0,"d":"0.00"}},{"$f":"IF(Setup!$AH$7<>\"\",INDIRECT(\"'\" & Setup!$AH$7 & \"'!\" & AE259),0) + IF(Setup!$AH$8<>\"\",INDIRECT(\"'\" & Setup!$AH$8 & \"'!\" & AE259),0) + IF(Setup!$AH$9<>\"\",INDIRECT(\"'\" & Setup!$AH$9 & \"'!\" & AE259),0) + IF(Setup!$AH$10<>\"\",INDIRECT(\"'\" & Setup!$AH$10 & \"'!\" & AE259),0) + IF(Setup!$AH$11<>\"\",INDIRECT(\"'\" & Setup!$AH$11 & \"'!\" & AE259),0) + IF(Setup!$AH$12<>\"\",INDIRECT(\"'\" & Setup!$AH$12 & \"'!\" & AE259),0)","v":{"v":0,"d":"0.00"}},"","",{"$f":"IF(Setup!$AI$7<>\"\",INDIRECT(\"'\" & Setup!$AI$7 & \"'!\" & AD259),0) + IF(Setup!$AI$8<>\"\",INDIRECT(\"'\" & Setup!$AI$8 & \"'!\" & AD259),0) + IF(Setup!$AI$9<>\"\",INDIRECT(\"'\" & Setup!$AI$9 & \"'!\" & AD259),0) + IF(Setup!$AI$10<>\"\",INDIRECT(\"'\" & Setup!$AI$10 & \"'!\" & AD259),0) + IF(Setup!$AI$11<>\"\",INDIRECT(\"'\" & Setup!$AI$11 & \"'!\" & AD259),0) + IF(Setup!$AI$12<>\"\",INDIRECT(\"'\" & Setup!$AI$12 & \"'!\" & AD259),0)","v":{"v":0,"d":"0.00"}},{"$f":"IF(Setup!$AI$7<>\"\",INDIRECT(\"'\" & Setup!$AI$7 & \"'!\" & AE259),0) + IF(Setup!$AI$8<>\"\",INDIRECT(\"'\" & Setup!$AI$8 & \"'!\" & AE259),0) + IF(Setup!$AI$9<>\"\",INDIRECT(\"'\" & Setup!$AI$9 & \"'!\" & AE259),0) + IF(Setup!$AI$10<>\"\",INDIRECT(\"'\" & Setup!$AI$10 & \"'!\" & AE259),0) + IF(Setup!$AI$11<>\"\",INDIRECT(\"'\" & Setup!$AI$11 & \"'!\" & AE259),0) + IF(Setup!$AI$12<>\"\",INDIRECT(\"'\" & Setup!$AI$12 & \"'!\" & AE259),0)","v":{"v":0,"d":"0.00"}},"","",{"$f":"IF(Setup!$AJ$7<>\"\",INDIRECT(\"'\" & Setup!$AJ$7 & \"'!\" & AD259),0) + IF(Setup!$AJ$8<>\"\",INDIRECT(\"'\" & Setup!$AJ$8 & \"'!\" & AD259),0) + IF(Setup!$AJ$9<>\"\",INDIRECT(\"'\" & Setup!$AJ$9 & \"'!\" & AD259),0) + IF(Setup!$AJ$10<>\"\",INDIRECT(\"'\" & Setup!$AJ$10 & \"'!\" & AD259),0) + IF(Setup!$AJ$11<>\"\",INDIRECT(\"'\" & Setup!$AJ$11 & \"'!\" & AD259),0) + IF(Setup!$AJ$12<>\"\",INDIRECT(\"'\" & Setup!$AJ$12 & \"'!\" & AD259),0)","v":0},{"$f":"IF(Setup!$AJ$7<>\"\",INDIRECT(\"'\" & Setup!$AJ$7 & \"'!\" & AE259),0) + IF(Setup!$AJ$8<>\"\",INDIRECT(\"'\" & Setup!$AJ$8 & \"'!\" & AE259),0) + IF(Setup!$AJ$9<>\"\",INDIRECT(\"'\" & Setup!$AJ$9 & \"'!\" & AE259),0) + IF(Setup!$AJ$10<>\"\",INDIRECT(\"'\" & Setup!$AJ$10 & \"'!\" & AE259),0) + IF(Setup!$AJ$11<>\"\",INDIRECT(\"'\" & Setup!$AJ$11 & \"'!\" & AE259),0) + IF(Setup!$AJ$12<>\"\",INDIRECT(\"'\" & Setup!$AJ$12 & \"'!\" & AE259),0)","v":0},"","",{"$f":"Planning!H31","v":0},"00","M47","O47","N47",null,null,{"$f":"IF(Setup!$AG$7<>\"\",INDIRECT(\"'\" & Setup!$AG$7 & \"'!\" & AF259),0) + IF(Setup!$AG$8<>\"\",INDIRECT(\"'\" & Setup!$AG$8 & \"'!\" & AF259),0) + IF(Setup!$AG$9<>\"\",INDIRECT(\"'\" & Setup!$AG$9 & \"'!\" & AF259),0) + IF(Setup!$AG$10<>\"\",INDIRECT(\"'\" & Setup!$AG$10 & \"'!\" & AF259),0) + IF(Setup!$AG$11<>\"\",INDIRECT(\"'\" & Setup!$AG$11 & \"'!\" & AF259),0) + IF(Setup!$AG$12<>\"\",INDIRECT(\"'\" & Setup!$AG$12 & \"'!\" & AF259),0)","v":0},{"$f":"IF(Setup!$AH$7<>\"\",INDIRECT(\"'\" & Setup!$AH$7 & \"'!\" & AF259),0) + IF(Setup!$AH$8<>\"\",INDIRECT(\"'\" & Setup!$AH$8 & \"'!\" & AF259),0) + IF(Setup!$AH$9<>\"\",INDIRECT(\"'\" & Setup!$AH$9 & \"'!\" & AF259),0) + IF(Setup!$AH$10<>\"\",INDIRECT(\"'\" & Setup!$AH$10 & \"'!\" & AF259),0) + IF(Setup!$AH$11<>\"\",INDIRECT(\"'\" & Setup!$AH$11 & \"'!\" & AF259),0) + IF(Setup!$AH$12<>\"\",INDIRECT(\"'\" & Setup!$AH$12 & \"'!\" & AF259),0)","v":0},{"$f":"IF(Setup!$AI$7<>\"\",INDIRECT(\"'\" & Setup!$AI$7 & \"'!\" & AF259),0) + IF(Setup!$AI$8<>\"\",INDIRECT(\"'\" & Setup!$AI$8 & \"'!\" & AF259),0) + IF(Setup!$AI$9<>\"\",INDIRECT(\"'\" & Setup!$AI$9 & \"'!\" & AF259),0) + IF(Setup!$AI$10<>\"\",INDIRECT(\"'\" & Setup!$AI$10 & \"'!\" & AF259),0) + IF(Setup!$AI$11<>\"\",INDIRECT(\"'\" & Setup!$AI$11 & \"'!\" & AF259),0) + IF(Setup!$AI$12<>\"\",INDIRECT(\"'\" & Setup!$AI$12 & \"'!\" & AF259),0)","v":0},{"$f":"IF(Setup!$AJ$7<>\"\",INDIRECT(\"'\" & Setup!$AJ$7 & \"'!\" & AF259),0) + IF(Setup!$AJ$8<>\"\",INDIRECT(\"'\" & Setup!$AJ$8 & \"'!\" & AF259),0) + IF(Setup!$AJ$9<>\"\",INDIRECT(\"'\" & Setup!$AJ$9 & \"'!\" & AF259),0) + IF(Setup!$AJ$10<>\"\",INDIRECT(\"'\" & Setup!$AJ$10 & \"'!\" & AF259),0) + IF(Setup!$AJ$11<>\"\",INDIRECT(\"'\" & Setup!$AJ$11 & \"'!\" & AF259),0) + IF(Setup!$AJ$12<>\"\",INDIRECT(\"'\" & Setup!$AJ$12 & \"'!\" & AF259),0)","v":0},null,"",{"$nulls":30},0,{"$f":"IF(Setup!$AH$7=\"\",0,INDIRECT(\"'\" & Setup!$AH$7 & \"'!\" & AF259))","v":0},{"$f":"IF(Setup!$AI$7=\"\",0,INDIRECT(\"'\" & Setup!$AI$7 & \"'!\" & AF259))","v":0},{"$f":"IF(Setup!$AJ$7=\"\",0,INDIRECT(\"'\" & Setup!$AJ$7 & \"'!\" & AF259))","v":0}]
[{"$f":"Planning!A32","v":"I024"},{"$f":"Planning!B32","v":0},{"$f":"Planning!C32","v":0},{"$f":"Planning!D32","v":0},{"$f":"Planning!E32","v":0},{"$f":"Planning!G32","v":0},0,{"v":0,"d":"0.00"},{"v":0,"d":"0.00"},"","",{"$f":"IF(Setup!$AG$7<>\"\",INDIRECT(\"'\" & Setup!$AG$7 & \"'!\" & AD260),0) + IF(Setup!$AG$8<>\"\",INDIRECT(\"'\" & Setup!$AG$8 & \"'!\" & AD260),0) + IF(Setup!$AG$9<>\"\",INDIRECT(\"'\" & Setup!$AG$9 & \"'!\" & AD260),0) + IF(Setup!$AG$10<>\"\",INDIRECT(\"'\" & Setup!$AG$10 & \"'!\" & AD260),0) + IF(Setup!$AG$11<>\"\",INDIRECT(\"'\" & Setup!$AG$11 & \"'!\" & AD260),0) + IF(Setup!$AG$12<>\"\",INDIRECT(\"'\" & Setup!$AG$12 & \"'!\" & AD260),0)","v":{"v":0,"d":"0.00"}},{"$f":"IF(Setup!$AG$7<>\"\",INDIRECT(\"'\" & Setup!$AG$7 & \"'!\" & AE260),0) + IF(Setup!$AG$8<>\"\",INDIRECT(\"'\" & Setup!$AG$8 & \"'!\" & AE260),0) + IF(Setup!$AG$9<>\"\",INDIRECT(\"'\" & Setup!$AG$9 & \"'!\" & AE260),0) + IF(Setup!$AG$10<>\"\",INDIRECT(\"'\" & Setup!$AG$10 & \"'!\" & AE260),0) + IF(Setup!$AG$11<>\"\",INDIRECT(\"'\" & Setup!$AG$11 & \"'!\" & AE260),0) + IF(Setup!$AG$12<>\"\",INDIRECT(\"'\" & Setup!$AG$12 & \"'!\" & AE260),0)","v":{"v":0,"d":"0.00"}},"","",{"$f":"IF(Setup!$AH$7<>\"\",INDIRECT(\"'\" & Setup!$AH$7 & \"'!\" & AD260),0) + IF(Setup!$AH$8<>\"\",INDIRECT(\"'\" & Setup!$AH$8 & \"'!\" & AD260),0) + IF(Setup!$AH$9<>\"\",INDIRECT(\"'\" & Setup!$AH$9 & \"'!\" & AD260),0) + IF(Setup!$AH$10<>\"\",INDIRECT(\"'\" & Setup!$AH$10 & \"'!\" & AD260),0) + IF(Setup!$AH$11<>\"\",INDIRECT(\"'\" & Setup!$AH$11 & \"'!\" & AD260),0) + IF(Setup!$AH$12<>\"\",INDIRECT(\"'\" & Setup!$AH$12 & \"'!\" & AD260),0)","v":{"v":0,"d":"0.00"}},{"$f":"IF(Setup!$AH$7<>\"\",INDIRECT(\"'\" & Setup!$AH$7 & \"'!\" & AE260),0) + IF(Setup!$AH$8<>\"\",INDIRECT(\"'\" & Setup!$AH$8 & \"'!\" & AE260),0) + IF(Setup!$AH$9<>\"\",INDIRECT(\"'\" & Setup!$AH$9 & \"'!\" & AE260),0) + IF(Setup!$AH$10<>\"\",INDIRECT(\"'\" & Setup!$AH$10 & \"'!\" & AE260),0) + IF(Setup!$AH$11<>\"\",INDIRECT(\"'\" & Setup!$AH$11 & \"'!\" & AE260),0) + IF(Setup!$AH$12<>\"\",INDIRECT(\"'\" & Setup!$AH$12 & \"'!\" & AE260),0)","v":{"v":0,"d":"0.00"}},"","",{"$f":"IF(Setup!$AI$7<>\"\",INDIRECT(\"'\" & Setup!$AI$7 & \"'!\" & AD260),0) + IF(Setup!$AI$8<>\"\",INDIRECT(\"'\" & Setup!$AI$8 & \"'!\" & AD260),0) + IF(Setup!$AI$9<>\"\",INDIRECT(\"'\" & Setup!$AI$9 & \"'!\" & AD260),0) + IF(Setup!$AI$10<>\"\",INDIRECT(\"'\" & Setup!$AI$10 & \"'!\" & AD260),0) + IF(Setup!$AI$11<>\"\",INDIRECT(\"'\" & Setup!$AI$11 & \"'!\" & AD260),0) + IF(Setup!$AI$12<>\"\",INDIRECT(\"'\" & Setup!$AI$12 & \"'!\" & AD260),0)","v":{"v":0,"d":"0.00"}},{"$f":"IF(Setup!$AI$7<>\"\",INDIRECT(\"'\" & Setup!$AI$7 & \"'!\" & AE260),0) + IF(Setup!$AI$8<>\"\",INDIRECT(\"'\" & Setup!$AI$8 & \"'!\" & AE260),0) + IF(Setup!$AI$9<>\"\",INDIRECT(\"'\" & Setup!$AI$9 & \"'!\" & AE260),0) + IF(Setup!$AI$10<>\"\",INDIRECT(\"'\" & Setup!$AI$10 & \"'!\" & AE260),0) + IF(Setup!$AI$11<>\"\",INDIRECT(\"'\" & Setup!$AI$11 & \"'!\" & AE260),0) + IF(Setup!$AI$12<>\"\",INDIRECT(\"'\" & Setup!$AI$12 & \"'!\" & AE260),0)","v":{"v":0,"d":"0.00"}},"","",{"$f":"IF(Setup!$AJ$7<>\"\",INDIRECT(\"'\" & Setup!$AJ$7 & \"'!\" & AD260),0) + IF(Setup!$AJ$8<>\"\",INDIRECT(\"'\" & Setup!$AJ$8 & \"'!\" & AD260),0) + IF(Setup!$AJ$9<>\"\",INDIRECT(\"'\" & Setup!$AJ$9 & \"'!\" & AD260),0) + IF(Setup!$AJ$10<>\"\",INDIRECT(\"'\" & Setup!$AJ$10 & \"'!\" & AD260),0) + IF(Setup!$AJ$11<>\"\",INDIRECT(\"'\" & Setup!$AJ$11 & \"'!\" & AD260),0) + IF(Setup!$AJ$12<>\"\",INDIRECT(\"'\" & Setup!$AJ$12 & \"'!\" & AD260),0)","v":0},{"$f":"IF(Setup!$AJ$7<>\"\",INDIRECT(\"'\" & Setup!$AJ$7 & \"'!\" & AE260),0) + IF(Setup!$AJ$8<>\"\",INDIRECT(\"'\" & Setup!$AJ$8 & \"'!\" & AE260),0) + IF(Setup!$AJ$9<>\"\",INDIRECT(\"'\" & Setup!$AJ$9 & \"'!\" & AE260),0) + IF(Setup!$AJ$10<>\"\",INDIRECT(\"'\" & Setup!$AJ$10 & \"'!\" & AE260),0) + IF(Setup!$AJ$11<>\"\",INDIRECT(\"'\" & Setup!$AJ$11 & \"'!\" & AE260),0) + IF(Setup!$AJ$12<>\"\",INDIRECT(\"'\" & Setup!$AJ$12 & \"'!\" & AE260),0)","v":0},"","",{"$f":"Planning!H32","v":0},"00","M48","O48","N48",null,null,{"$f":"IF(Setup!$AG$7<>\"\",INDIRECT(\"'\" & Setup!$AG$7 & \"'!\" & AF260),0) + IF(Setup!$AG$8<>\"\",INDIRECT(\"'\" & Setup!$AG$8 & \"'!\" & AF260),0) + IF(Setup!$AG$9<>\"\",INDIRECT(\"'\" & Setup!$AG$9 & \"'!\" & AF260),0) + IF(Setup!$AG$10<>\"\",INDIRECT(\"'\" & Setup!$AG$10 & \"'!\" & AF260),0) + IF(Setup!$AG$11<>\"\",INDIRECT(\"'\" & Setup!$AG$11 & \"'!\" & AF260),0) + IF(Setup!$AG$12<>\"\",INDIRECT(\"'\" & Setup!$AG$12 & \"'!\" & AF260),0)","v":0},{"$f":"IF(Setup!$AH$7<>\"\",INDIRECT(\"'\" & Setup!$AH$7 & \"'!\" & AF260),0) + IF(Setup!$AH$8<>\"\",INDIRECT(\"'\" & Setup!$AH$8 & \"'!\" & AF260),0) + IF(Setup!$AH$9<>\"\",INDIRECT(\"'\" & Setup!$AH$9 & \"'!\" & AF260),0) + IF(Setup!$AH$10<>\"\",INDIRECT(\"'\" & Setup!$AH$10 & \"'!\" & AF260),0) + IF(Setup!$AH$11<>\"\",INDIRECT(\"'\" & Setup!$AH$11 & \"'!\" & AF260),0) + IF(Setup!$AH$12<>\"\",INDIRECT(\"'\" & Setup!$AH$12 & \"'!\" & AF260),0)","v":0},{"$f":"IF(Setup!$AI$7<>\"\",INDIRECT(\"'\" & Setup!$AI$7 & \"'!\" & AF260),0) + IF(Setup!$AI$8<>\"\",INDIRECT(\"'\" & Setup!$AI$8 & \"'!\" & AF260),0) + IF(Setup!$AI$9<>\"\",INDIRECT(\"'\" & Setup!$AI$9 & \"'!\" & AF260),0) + IF(Setup!$AI$10<>\"\",INDIRECT(\"'\" & Setup!$AI$10 & \"'!\" & AF260),0) + IF(Setup!$AI$11<>\"\",INDIRECT(\"'\" & Setup!$AI$11 & \"'!\" & AF260),0) + IF(Setup!$AI$12<>\"\",INDIRECT(\"'\" & Setup!$AI$12 & \"'!\" & AF260),0)","v":0},{"$f":"IF(Setup!$AJ$7<>\"\",INDIRECT(\"'\" & Setup!$AJ$7 & \"'!\" & AF260),0) + IF(Setup!$AJ$8<>\"\",INDIRECT(\"'\" & Setup!$AJ$8 & \"'!\" & AF260),0) + IF(Setup!$AJ$9<>\"\",INDIRECT(\"'\" & Setup!$AJ$9 & \"'!\" & AF260),0) + IF(Setup!$AJ$10<>\"\",INDIRECT(\"'\" & Setup!$AJ$10 & \"'!\" & AF260),0) + IF(Setup!$AJ$11<>\"\",INDIRECT(\"'\" & Setup!$AJ$11 & \"'!\" & AF260),0) + IF(Setup!$AJ$12<>\"\",INDIRECT(\"'\" & Setup!$AJ$12 & \"'!\" & AF260),0)","v":0},null,"",{"$nulls":30},0,{"$f":"IF(Setup!$AH$7=\"\",0,INDIRECT(\"'\" & Setup!$AH$7 & \"'!\" & AF260))","v":0},{"$f":"IF(Setup!$AI$7=\"\",0,INDIRECT(\"'\" & Setup!$AI$7 & \"'!\" & AF260))","v":0},{"$f":"IF(Setup!$AJ$7=\"\",0,INDIRECT(\"'\" & Setup!$AJ$7 & \"'!\" & AF260))","v":0}]
[{"$f":"Planning!A33","v":"I025"},{"$f":"Planning!B33","v":0},{"$f":"Planning!C33","v":0},{"$f":"Planning!D33","v":0},{"$f":"Planning!E33","v":0},{"$f":"Planning!G33","v":0},0,{"v":0,"d":"0.00"},{"v":0,"d":"0.00"},"","",{"$f":"IF(Setup!$AG$7<>\"\",INDIRECT(\"'\" & Setup!$AG$7 & \"'!\" & AD261),0) + IF(Setup!$AG$8<>\"\",INDIRECT(\"'\" & Setup!$AG$8 & \"'!\" & AD261),0) + IF(Setup!$AG$9<>\"\",INDIRECT(\"'\" & Setup!$AG$9 & \"'!\" & AD261),0) + IF(Setup!$AG$10<>\"\",INDIRECT(\"'\" & Setup!$AG$10 & \"'!\" & AD261),0) + IF(Setup!$AG$11<>\"\",INDIRECT(\"'\" & Setup!$AG$11 & \"'!\" & AD261),0) + IF(Setup!$AG$12<>\"\",INDIRECT(\"'\" & Setup!$AG$12 & \"'!\" & AD261),0)","v":{"v":0,"d":"0.00"}},{"$f":"IF(Setup!$AG$7<>\"\",INDIRECT(\"'\" & Setup!$AG$7 & \"'!\" & AE261),0) + IF(Setup!$AG$8<>\"\",INDIRECT(\"'\" & Setup!$AG$8 & \"'!\" & AE261),0) + IF(Setup!$AG$9<>\"\",INDIRECT(\"'\" & Setup!$AG$9 & \"'!\" & AE261),0) + IF(Setup!$AG$10<>\"\",INDIRECT(\"'\" & Setup!$AG$10 & \"'!\" & AE261),0) + IF(Setup!$AG$11<>\"\",INDIRECT(\"'\" & Setup!$AG$11 & \"'!\" & AE261),0) + IF(Setup!$AG$12<>\"\",INDIRECT(\"'\" & Setup!$AG$12 & \"'!\" & AE261),0)","v":{"v":0,"d":"0.00"}},"","",{"$f":"IF(Setup!$AH$7<>\"\",INDIRECT(\"'\" & Setup!$AH$7 & \"'!\" & AD261),0) + IF(Setup!$AH$8<>\"\",INDIRECT(\"'\" & Setup!$AH$8 & \"'!\" & AD261),0) + IF(Setup!$AH$9<>\"\",INDIRECT(\"'\" & Setup!$AH$9 & \"'!\" & AD261),0) + IF(Setup!$AH$10<>\"\",INDIRECT(\"'\" & Setup!$AH$10 & \"'!\" & AD261),0) + IF(Setup!$AH$11<>\"\",INDIRECT(\"'\" & Setup!$AH$11 & \"'!\" & AD261),0) + IF(Setup!$AH$12<>\"\",INDIRECT(\"'\" & Setup!$AH$12 & \"'!\" & AD261),0)","v":{"v":0,"d":"0.00"}},{"$f":"IF(Setup!$AH$7<>\"\",INDIRECT(\"'\" & Setup!$AH$7 & \"'!\" & AE261),0) + IF(Setup!$AH$8<>\"\",INDIRECT(\"'\" & Setup!$AH$8 & \"'!\" & AE261),0) + IF(Setup!$AH$9<>\"\",INDIRECT(\"'\" & Setup!$AH$9 & \"'!\" & AE261),0) + IF(Setup!$AH$10<>\"\",INDIRECT(\"'\" & Setup!$AH$10 & \"'!\" & AE261),0) + IF(Setup!$AH$11<>\"\",INDIRECT(\"'\" & Setup!$AH$11 & \"'!\" & AE261),0) + IF(Setup!$AH$12<>\"\",INDIRECT(\"'\" & Setup!$AH$12 & \"'!\" & AE261),0)","v":{"v":0,"d":"0.00"}},"","",{"$f":"IF(Setup!$AI$7<>\"\",INDIRECT(\"'\" & Setup!$AI$7 & \"'!\" & AD261),0) + IF(Setup!$AI$8<>\"\",INDIRECT(\"'\" & Setup!$AI$8 & \"'!\" & AD261),0) + IF(Setup!$AI$9<>\"\",INDIRECT(\"'\" & Setup!$AI$9 & \"'!\" & AD261),0) + IF(Setup!$AI$10<>\"\",INDIRECT(\"'\" & Setup!$AI$10 & \"'!\" & AD261),0) + IF(Setup!$AI$11<>\"\",INDIRECT(\"'\" & Setup!$AI$11 & \"'!\" & AD261),0) + IF(Setup!$AI$12<>\"\",INDIRECT(\"'\" & Setup!$AI$12 & \"'!\" & AD261),0)","v":{"v":0,"d":"0.00"}},{"$f":"IF(Setup!$AI$7<>\"\",INDIRECT(\"'\" & Setup!$AI$7 & \"'!\" & AE261),0) + IF(Setup!$AI$8<>\"\",INDIRECT(\"'\" & Setup!$AI$8 & \"'!\" & AE261),0) + IF(Setup!$AI$9<>\"\",INDIRECT(\"'\" & Setup!$AI$9 & \"'!\" & AE261),0) + IF(Setup!$AI$10<>\"\",INDIRECT(\"'\" & Setup!$AI$10 & \"'!\" & AE261),0) + IF(Setup!$AI$11<>\"\",INDIRECT(\"'\" & Setup!$AI$11 & \"'!\" & AE261),0) + IF(Setup!$AI$12<>\"\",INDIRECT(\"'\" & Setup!$AI$12 & \"'!\" & AE261),0)","v":{"v":0,"d":"0.00"}},"","",{"$f":"IF(Setup!$AJ$7<>\"\",INDIRECT(\"'\" & Setup!$AJ$7 & \"'!\" & AD261),0) + IF(Setup!$AJ$8<>\"\",INDIRECT(\"'\" & Setup!$AJ$8 & \"'!\" & AD261),0) + IF(Setup!$AJ$9<>\"\",INDIRECT(\"'\" & Setup!$AJ$9 & \"'!\" & AD261),0) + IF(Setup!$AJ$10<>\"\",INDIRECT(\"'\" & Setup!$AJ$10 & \"'!\" & AD261),0) + IF(Setup!$AJ$11<>\"\",INDIRECT(\"'\" & Setup!$AJ$11 & \"'!\" & AD261),0) + IF(Setup!$AJ$12<>\"\",INDIRECT(\"'\" & Setup!$AJ$12 & \"'!\" & AD261),0)","v":0},{"$f":"IF(Setup!$AJ$7<>\"\",INDIRECT(\"'\" & Setup!$AJ$7 & \"'!\" & AE261),0) + IF(Setup!$AJ$8<>\"\",INDIRECT(\"'\" & Setup!$AJ$8 & \"'!\" & AE261),0) + IF(Setup!$AJ$9<>\"\",INDIRECT(\"'\" & Setup!$AJ$9 & \"'!\" & AE261),0) + IF(Setup!$AJ$10<>\"\",INDIRECT(\"'\" & Setup!$AJ$10 & \"'!\" & AE261),0) + IF(Setup!$AJ$11<>\"\",INDIRECT(\"'\" & Setup!$AJ$11 & \"'!\" & AE261),0) + IF(Setup!$AJ$12<>\"\",INDIRECT(\"'\" & Setup!$AJ$12 & \"'!\" & AE261),0)","v":0},"","",{"$f":"Planning!H33","v":0},"00","M49","O49","N49",null,null,{"$f":"IF(Setup!$AG$7<>\"\",INDIRECT(\"'\" & Setup!$AG$7 & \"'!\" & AF261),0) + IF(Setup!$AG$8<>\"\",INDIRECT(\"'\" & Setup!$AG$8 & \"'!\" & AF261),0) + IF(Setup!$AG$9<>\"\",INDIRECT(\"'\" & Setup!$AG$9 & \"'!\" & AF261),0) + IF(Setup!$AG$10<>\"\",INDIRECT(\"'\" & Setup!$AG$10 & \"'!\" & AF261),0) + IF(Setup!$AG$11<>\"\",INDIRECT(\"'\" & Setup!$AG$11 & \"'!\" & AF261),0) + IF(Setup!$AG$12<>\"\",INDIRECT(\"'\" & Setup!$AG$12 & \"'!\" & AF261),0)","v":0},{"$f":"IF(Setup!$AH$7<>\"\",INDIRECT(\"'\" & Setup!$AH$7 & \"'!\" & AF261),0) + IF(Setup!$AH$8<>\"\",INDIRECT(\"'\" & Setup!$AH$8 & \"'!\" & AF261),0) + IF(Setup!$AH$9<>\"\",INDIRECT(\"'\" & Setup!$AH$9 & \"'!\" & AF261),0) + IF(Setup!$AH$10<>\"\",INDIRECT(\"'\" & Setup!$AH$10 & \"'!\" & AF261),0) + IF(Setup!$AH$11<>\"\",INDIRECT(\"'\" & Setup!$AH$11 & \"'!\" & AF261),0) + IF(Setup!$AH$12<>\"\",INDIRECT(\"'\" & Setup!$AH$12 & \"'!\" & AF261),0)","v":0},{"$f":"IF(Setup!$AI$7<>\"\",INDIRECT(\"'\" & Setup!$AI$7 & \"'!\" & AF261),0) + IF(Setup!$AI$8<>\"\",INDIRECT(\"'\" & Setup!$AI$8 & \"'!\" & AF261),0) + IF(Setup!$AI$9<>\"\",INDIRECT(\"'\" & Setup!$AI$9 & \"'!\" & AF261),0) + IF(Setup!$AI$10<>\"\",INDIRECT(\"'\" & Setup!$AI$10 & \"'!\" & AF261),0) + IF(Setup!$AI$11<>\"\",INDIRECT(\"'\" & Setup!$AI$11 & \"'!\" & AF261),0) + IF(Setup!$AI$12<>\"\",INDIRECT(\"'\" & Setup!$AI$12 & \"'!\" & AF261),0)","v":0},{"$f":"IF(Setup!$AJ$7<>\"\",INDIRECT(\"'\" & Setup!$AJ$7 & \"'!\" & AF261),0) + IF(Setup!$AJ$8<>\"\",INDIRECT(\"'\" & Setup!$AJ$8 & \"'!\" & AF261),0) + IF(Setup!$AJ$9<>\"\",INDIRECT(\"'\" & Setup!$AJ$9 & \"'!\" & AF261),0) + IF(Setup!$AJ$10<>\"\",INDIRECT(\"'\" & Setup!$AJ$10 & \"'!\" & AF261),0) + IF(Setup!$AJ$11<>\"\",INDIRECT(\"'\" & Setup!$AJ$11 & \"'!\" & AF261),0) + IF(Setup!$AJ$12<>\"\",INDIRECT(\"'\" & Setup!$AJ$12 & \"'!\" & AF261),0)","v":0},null,"",{"$nulls":30},0,{"$f":"IF(Setup!$AH$7=\"\",0,INDIRECT(\"'\" & Setup!$AH$7 & \"'!\" & AF261))","v":0},{"$f":"IF(Setup!$AI$7=\"\",0,INDIRECT(\"'\" & Setup!$AI$7 & \"'!\" & AF261))","v":0},{"$f":"IF(Setup!$AJ$7=\"\",0,INDIRECT(\"'\" & Setup!$AJ$7 & \"'!\" & AF261))","v":0}]
[{"$f":"Planning!A34","v":"I026"},{"$f":"Planning!B34","v":0},{"$f":"Planning!C34","v":0},{"$f":"Planning!D34","v":0},{"$f":"Planning!E34","v":0},{"$f":"Planning!G34","v":0},0,{"v":0,"d":"0.00"},{"v":0,"d":"0.00"},"","",{"$f":"IF(Setup!$AG$7<>\"\",INDIRECT(\"'\" & Setup!$AG$7 & \"'!\" & AD262),0) + IF(Setup!$AG$8<>\"\",INDIRECT(\"'\" & Setup!$AG$8 & \"'!\" & AD262),0) + IF(Setup!$AG$9<>\"\",INDIRECT(\"'\" & Setup!$AG$9 & \"'!\" & AD262),0) + IF(Setup!$AG$10<>\"\",INDIRECT(\"'\" & Setup!$AG$10 & \"'!\" & AD262),0) + IF(Setup!$AG$11<>\"\",INDIRECT(\"'\" & Setup!$AG$11 & \"'!\" & AD262),0) + IF(Setup!$AG$12<>\"\",INDIRECT(\"'\" & Setup!$AG$12 & \"'!\" & AD262),0)","v":{"v":0,"d":"0.00"}},{"$f":"IF(Setup!$AG$7<>\"\",INDIRECT(\"'\" & Setup!$AG$7 & \"'!\" & AE262),0) + IF(Setup!$AG$8<>\"\",INDIRECT(\"'\" & Setup!$AG$8 & \"'!\" & AE262),0) + IF(Setup!$AG$9<>\"\",INDIRECT(\"'\" & Setup!$AG$9 & \"'!\" & AE262),0) + IF(Setup!$AG$10<>\"\",INDIRECT(\"'\" & Setup!$AG$10 & \"'!\" & AE262),0) + IF(Setup!$AG$11<>\"\",INDIRECT(\"'\" & Setup!$AG$11 & \"'!\" & AE262),0) + IF(Setup!$AG$12<>\"\",INDIRECT(\"'\" & Setup!$AG$12 & \"'!\" & AE262),0)","v":{"v":0,"d":"0.00"}},"","",{"$f":"IF(Setup!$AH$7<>\"\",INDIRECT(\"'\" & Setup!$AH$7 & \"'!\" & AD262),0) + IF(Setup!$AH$8<>\"\",INDIRECT(\"'\" & Setup!$AH$8 & \"'!\" & AD262),0) + IF(Setup!$AH$9<>\"\",INDIRECT(\"'\" & Setup!$AH$9 & \"'!\" & AD262),0) + IF(Setup!$AH$10<>\"\",INDIRECT(\"'\" & Setup!$AH$10 & \"'!\" & AD262),0) + IF(Setup!$AH$11<>\"\",INDIRECT(\"'\" & Setup!$AH$11 & \"'!\" & AD262),0) + IF(Setup!$AH$12<>\"\",INDIRECT(\"'\" & Setup!$AH$12 & \"'!\" & AD262),0)","v":{"v":0,"d":"0.00"}},{"$f":"IF(Setup!$AH$7<>\"\",INDIRECT(\"'\" & Setup!$AH$7 & \"'!\" & AE262),0) + IF(Setup!$AH$8<>\"\",INDIRECT(\"'\" & Setup!$AH$8 & \"'!\" & AE262),0) + IF(Setup!$AH$9<>\"\",INDIRECT(\"'\" & Setup!$AH$9 & \"'!\" & AE262),0) + IF(Setup!$AH$10<>\"\",INDIRECT(\"'\" & Setup!$AH$10 & \"'!\" & AE262),0) + IF(Setup!$AH$11<>\"\",INDIRECT(\"'\" & Setup!$AH$11 & \"'!\" & AE262),0) + IF(Setup!$AH$12<>\"\",INDIRECT(\"'\" & Setup!$AH$12 & \"'!\" & AE262),0)","v":{"v":0,"d":"0.00"}},"","",{"$f":"IF(Setup!$AI$7<>\"\",INDIRECT(\"'\" & Setup!$AI$7 & \"'!\" & AD262),0) + IF(Setup!$AI$8<>\"\",INDIRECT(\"'\" & Setup!$AI$8 & \"'!\" & AD262),0) + IF(Setup!$AI$9<>\"\",INDIRECT(\"'\" & Setup!$AI$9 & \"'!\" & AD262),0) + IF(Setup!$AI$10<>\"\",INDIRECT(\"'\" & Setup!$AI$10 & \"'!\" & AD262),0) + IF(Setup!$AI$11<>\"\",INDIRECT(\"'\" & Setup!$AI$11 & \"'!\" & AD262),0) + IF(Setup!$AI$12<>\"\",INDIRECT(\"'\" & Setup!$AI$12 & \"'!\" & AD262),0)","v":{"v":0,"d":"0.00"}},{"$f":"IF(Setup!$AI$7<>\"\",INDIRECT(\"'\" & Setup!$AI$7 & \"'!\" & AE262),0) + IF(Setup!$AI$8<>\"\",INDIRECT(\"'\" & Setup!$AI$8 & \"'!\" & AE262),0) + IF(Setup!$AI$9<>\"\",INDIRECT(\"'\" & Setup!$AI$9 & \"'!\" & AE262),0) + IF(Setup!$AI$10<>\"\",INDIRECT(\"'\" & Setup!$AI$10 & \"'!\" & AE262),0) + IF(Setup!$AI$11<>\"\",INDIRECT(\"'\" & Setup!$AI$11 & \"'!\" & AE262),0) + IF(Setup!$AI$12<>\"\",INDIRECT(\"'\" & Setup!$AI$12 & \"'!\" & AE262),0)","v":{"v":0,"d":"0.00"}},"","",{"$f":"IF(Setup!$AJ$7<>\"\",INDIRECT(\"'\" & Setup!$AJ$7 & \"'!\" & AD262),0) + IF(Setup!$AJ$8<>\"\",INDIRECT(\"'\" & Setup!$AJ$8 & \"'!\" & AD262),0) + IF(Setup!$AJ$9<>\"\",INDIRECT(\"'\" & Setup!$AJ$9 & \"'!\" & AD262),0) + IF(Setup!$AJ$10<>\"\",INDIRECT(\"'\" & Setup!$AJ$10 & \"'!\" & AD262),0) + IF(Setup!$AJ$11<>\"\",INDIRECT(\"'\" & Setup!$AJ$11 & \"'!\" & AD262),0) + IF(Setup!$AJ$12<>\"\",INDIRECT(\"'\" & Setup!$AJ$12 & \"'!\" & AD262),0)","v":0},{"$f":"IF(Setup!$AJ$7<>\"\",INDIRECT(\"'\" & Setup!$AJ$7 & \"'!\" & AE262),0) + IF(Setup!$AJ$8<>\"\",INDIRECT(\"'\" & Setup!$AJ$8 & \"'!\" & AE262),0) + IF(Setup!$AJ$9<>\"\",INDIRECT(\"'\" & Setup!$AJ$9 & \"'!\" & AE262),0) + IF(Setup!$AJ$10<>\"\",INDIRECT(\"'\" & Setup!$AJ$10 & \"'!\" & AE262),0) + IF(Setup!$AJ$11<>\"\",INDIRECT(\"'\" & Setup!$AJ$11 & \"'!\" & AE262),0) + IF(Setup!$AJ$12<>\"\",INDIRECT(\"'\" & Setup!$AJ$12 & \"'!\" & AE262),0)","v":0},"","",{"$f":"Planning!H34","v":0},"00","M50","O50","N50",null,null,{"$f":"IF(Setup!$AG$7<>\"\",INDIRECT(\"'\" & Setup!$AG$7 & \"'!\" & AF262),0) + IF(Setup!$AG$8<>\"\",INDIRECT(\"'\" & Setup!$AG$8 & \"'!\" & AF262),0) + IF(Setup!$AG$9<>\"\",INDIRECT(\"'\" & Setup!$AG$9 & \"'!\" & AF262),0) + IF(Setup!$AG$10<>\"\",INDIRECT(\"'\" & Setup!$AG$10 & \"'!\" & AF262),0) + IF(Setup!$AG$11<>\"\",INDIRECT(\"'\" & Setup!$AG$11 & \"'!\" & AF262),0) + IF(Setup!$AG$12<>\"\",INDIRECT(\"'\" & Setup!$AG$12 & \"'!\" & AF262),0)","v":0},{"$f":"IF(Setup!$AH$7<>\"\",INDIRECT(\"'\" & Setup!$AH$7 & \"'!\" & AF262),0) + IF(Setup!$AH$8<>\"\",INDIRECT(\"'\" & Setup!$AH$8 & \"'!\" & AF262),0) + IF(Setup!$AH$9<>\"\",INDIRECT(\"'\" & Setup!$AH$9 & \"'!\" & AF262),0) + IF(Setup!$AH$10<>\"\",INDIRECT(\"'\" & Setup!$AH$10 & \"'!\" & AF262),0) + IF(Setup!$AH$11<>\"\",INDIRECT(\"'\" & Setup!$AH$11 & \"'!\" & AF262),0) + IF(Setup!$AH$12<>\"\",INDIRECT(\"'\" & Setup!$AH$12 & \"'!\" & AF262),0)","v":0},{"$f":"IF(Setup!$AI$7<>\"\",INDIRECT(\"'\" & Setup!$AI$7 & \"'!\" & AF262),0) + IF(Setup!$AI$8<>\"\",INDIRECT(\"'\" & Setup!$AI$8 & \"'!\" & AF262),0) + IF(Setup!$AI$9<>\"\",INDIRECT(\"'\" & Setup!$AI$9 & \"'!\" & AF262),0) + IF(Setup!$AI$10<>\"\",INDIRECT(\"'\" & Setup!$AI$10 & \"'!\" & AF262),0) + IF(Setup!$AI$11<>\"\",INDIRECT(\"'\" & Setup!$AI$11 & \"'!\" & AF262),0) + IF(Setup!$AI$12<>\"\",INDIRECT(\"'\" & Setup!$AI$12 & \"'!\" & AF262),0)","v":0},{"$f":"IF(Setup!$AJ$7<>\"\",INDIRECT(\"'\" & Setup!$AJ$7 & \"'!\" & AF262),0) + IF(Setup!$AJ$8<>\"\",INDIRECT(\"'\" & Setup!$AJ$8 & \"'!\" & AF262),0) + IF(Setup!$AJ$9<>\"\",INDIRECT(\"'\" & Setup!$AJ$9 & \"'!\" & AF262),0) + IF(Setup!$AJ$10<>\"\",INDIRECT(\"'\" & Setup!$AJ$10 & \"'!\" & AF262),0) + IF(Setup!$AJ$11<>\"\",INDIRECT(\"'\" & Setup!$AJ$11 & \"'!\" & AF262),0) + IF(Setup!$AJ$12<>\"\",INDIRECT(\"'\" & Setup!$AJ$12 & \"'!\" & AF262),0)","v":0},null,"",{"$nulls":30},0,{"$f":"IF(Setup!$AH$7=\"\",0,INDIRECT(\"'\" & Setup!$AH$7 & \"'!\" & AF262))","v":0},{"$f":"IF(Setup!$AI$7=\"\",0,INDIRECT(\"'\" & Setup!$AI$7 & \"'!\" & AF262))","v":0},{"$f":"IF(Setup!$AJ$7=\"\",0,INDIRECT(\"'\" & Setup!$AJ$7 & \"'!\" & AF262))","v":0}]
[{"$f":"Planning!A35","v":"I027"},{"$f":"Planning!B35","v":0},{"$f":"Planning!C35","v":0},{"$f":"Planning!D35","v":0},{"$f":"Planning!E35","v":0},{"$f":"Planning!G35","v":0},0,{"v":0,"d":"0.00"},{"v":0,"d":"0.00"},"","",{"$f":"IF(Setup!$AG$7<>\"\",INDIRECT(\"'\" & Setup!$AG$7 & \"'!\" & AD263),0) + IF(Setup!$AG$8<>\"\",INDIRECT(\"'\" & Setup!$AG$8 & \"'!\" & AD263),0) + IF(Setup!$AG$9<>\"\",INDIRECT(\"'\" & Setup!$AG$9 & \"'!\" & AD263),0) + IF(Setup!$AG$10<>\"\",INDIRECT(\"'\" & Setup!$AG$10 & \"'!\" & AD263),0) + IF(Setup!$AG$11<>\"\",INDIRECT(\"'\" & Setup!$AG$11 & \"'!\" & AD263),0) + IF(Setup!$AG$12<>\"\",INDIRECT(\"'\" & Setup!$AG$12 & \"'!\" & AD263),0)","v":{"v":0,"d":"0.00"}},{"$f":"IF(Setup!$AG$7<>\"\",INDIRECT(\"'\" & Setup!$AG$7 & \"'!\" & AE263),0) + IF(Setup!$AG$8<>\"\",INDIRECT(\"'\" & Setup!$AG$8 & \"'!\" & AE263),0) + IF(Setup!$AG$9<>\"\",INDIRECT(\"'\" & Setup!$AG$9 & \"'!\" & AE263),0) + IF(Setup!$AG$10<>\"\",INDIRECT(\"'\" & Setup!$AG$10 & \"'!\" & AE263),0) + IF(Setup!$AG$11<>\"\",INDIRECT(\"'\" & Setup!$AG$11 & \"'!\" & AE263),0) + IF(Setup!$AG$12<>\"\",INDIRECT(\"'\" & Setup!$AG$12 & \"'!\" & AE263),0)","v":{"v":0,"d":"0.00"}},"","",{"$f":"IF(Setup!$AH$7<>\"\",INDIRECT(\"'\" & Setup!$AH$7 & \"'!\" & AD263),0) + IF(Setup!$AH$8<>\"\",INDIRECT(\"'\" & Setup!$AH$8 & \"'!\" & AD263),0) + IF(Setup!$AH$9<>\"\",INDIRECT(\"'\" & Setup!$AH$9 & \"'!\" & AD263),0) + IF(Setup!$AH$10<>\"\",INDIRECT(\"'\" & Setup!$AH$10 & \"'!\" & AD263),0) + IF(Setup!$AH$11<>\"\",INDIRECT(\"'\" & Setup!$AH$11 & \"'!\" & AD263),0) + IF(Setup!$AH$12<>\"\",INDIRECT(\"'\" & Setup!$AH$12 & \"'!\" & AD263),0)","v":{"v":0,"d":"0.00"}},{"$f":"IF(Setup!$AH$7<>\"\",INDIRECT(\"'\" & Setup!$AH$7 & \"'!\" & AE263),0) + IF(Setup!$AH$8<>\"\",INDIRECT(\"'\" & Setup!$AH$8 & \"'!\" & AE263),0) + IF(Setup!$AH$9<>\"\",INDIRECT(\"'\" & Setup!$AH$9 & \"'!\" & AE263),0) + IF(Setup!$AH$10<>\"\",INDIRECT(\"'\" & Setup!$AH$10 & \"'!\" & AE263),0) + IF(Setup!$AH$11<>\"\",INDIRECT(\"'\" & Setup!$AH$11 & \"'!\" & AE263),0) + IF(Setup!$AH$12<>\"\",INDIRECT(\"'\" & Setup!$AH$12 & \"'!\" & AE263),0)","v":{"v":0,"d":"0.00"}},"","",{"$f":"IF(Setup!$AI$7<>\"\",INDIRECT(\"'\" & Setup!$AI$7 & \"'!\" & AD263),0) + IF(Setup!$AI$8<>\"\",INDIRECT(\"'\" & Setup!$AI$8 & \"'!\" & AD263),0) + IF(Setup!$AI$9<>\"\",INDIRECT(\"'\" & Setup!$AI$9 & \"'!\" & AD263),0) + IF(Setup!$AI$10<>\"\",INDIRECT(\"'\" & Setup!$AI$10 & \"'!\" & AD263),0) + IF(Setup!$AI$11<>\"\",INDIRECT(\"'\" & Setup!$AI$11 & \"'!\" & AD263),0) + IF(Setup!$AI$12<>\"\",INDIRECT(\"'\" & Setup!$AI$12 & \"'!\" & AD263),0)","v":{"v":0,"d":"0.00"}},{"$f":"IF(Setup!$AI$7<>\"\",INDIRECT(\"'\" & Setup!$AI$7 & \"'!\" & AE263),0) + IF(Setup!$AI$8<>\"\",INDIRECT(\"'\" & Setup!$AI$8 & \"'!\" & AE263),0) + IF(Setup!$AI$9<>\"\",INDIRECT(\"'\" & Setup!$AI$9 & \"'!\" & AE263),0) + IF(Setup!$AI$10<>\"\",INDIRECT(\"'\" & Setup!$AI$10 & \"'!\" & AE263),0) + IF(Setup!$AI$11<>\"\",INDIRECT(\"'\" & Setup!$AI$11 & \"'!\" & AE263),0) + IF(Setup!$AI$12<>\"\",INDIRECT(\"'\" & Setup!$AI$12 & \"'!\" & AE263),0)","v":{"v":0,"d":"0.00"}},"","",{"$f":"IF(Setup!$AJ$7<>\"\",INDIRECT(\"'\" & Setup!$AJ$7 & \"'!\" & AD263),0) + IF(Setup!$AJ$8<>\"\",INDIRECT(\"'\" & Setup!$AJ$8 & \"'!\" & AD263),0) + IF(Setup!$AJ$9<>\"\",INDIRECT(\"'\" & Setup!$AJ$9 & \"'!\" & AD263),0) + IF(Setup!$AJ$10<>\"\",INDIRECT(\"'\" & Setup!$AJ$10 & \"'!\" & AD263),0) + IF(Setup!$AJ$11<>\"\",INDIRECT(\"'\" & Setup!$AJ$11 & \"'!\" & AD263),0) + IF(Setup!$AJ$12<>\"\",INDIRECT(\"'\" & Setup!$AJ$12 & \"'!\" & AD263),0)","v":0},{"$f":"IF(Setup!$AJ$7<>\"\",INDIRECT(\"'\" & Setup!$AJ$7 & \"'!\" & AE263),0) + IF(Setup!$AJ$8<>\"\",INDIRECT(\"'\" & Setup!$AJ$8 & \"'!\" & AE263),0) + IF(Setup!$AJ$9<>\"\",INDIRECT(\"'\" & Setup!$AJ$9 & \"'!\" & AE263),0) + IF(Setup!$AJ$10<>\"\",INDIRECT(\"'\" & Setup!$AJ$10 & \"'!\" & AE263),0) + IF(Setup!$AJ$11<>\"\",INDIRECT(\"'\" & Setup!$AJ$11 & \"'!\" & AE263),0) + IF(Setup!$AJ$12<>\"\",INDIRECT(\"'\" & Setup!$AJ$12 & \"'!\" & AE263),0)","v":0},"","",{"$f":"Planning!H35","v":0},"00","M51","O51","N51",null,null,{"$f":"IF(Setup!$AG$7<>\"\",INDIRECT(\"'\" & Setup!$AG$7 & \"'!\" & AF263),0) + IF(Setup!$AG$8<>\"\",INDIRECT(\"'\" & Setup!$AG$8 & \"'!\" & AF263),0) + IF(Setup!$AG$9<>\"\",INDIRECT(\"'\" & Setup!$AG$9 & \"'!\" & AF263),0) + IF(Setup!$AG$10<>\"\",INDIRECT(\"'\" & Setup!$AG$10 & \"'!\" & AF263),0) + IF(Setup!$AG$11<>\"\",INDIRECT(\"'\" & Setup!$AG$11 & \"'!\" & AF263),0) + IF(Setup!$AG$12<>\"\",INDIRECT(\"'\" & Setup!$AG$12 & \"'!\" & AF263),0)","v":0},{"$f":"IF(Setup!$AH$7<>\"\",INDIRECT(\"'\" & Setup!$AH$7 & \"'!\" & AF263),0) + IF(Setup!$AH$8<>\"\",INDIRECT(\"'\" & Setup!$AH$8 & \"'!\" & AF263),0) + IF(Setup!$AH$9<>\"\",INDIRECT(\"'\" & Setup!$AH$9 & \"'!\" & AF263),0) + IF(Setup!$AH$10<>\"\",INDIRECT(\"'\" & Setup!$AH$10 & \"'!\" & AF263),0) + IF(Setup!$AH$11<>\"\",INDIRECT(\"'\" & Setup!$AH$11 & \"'!\" & AF263),0) + IF(Setup!$AH$12<>\"\",INDIRECT(\"'\" & Setup!$AH$12 & \"'!\" & AF263),0)","v":0},{"$f":"IF(Setup!$AI$7<>\"\",INDIRECT(\"'\" & Setup!$AI$7 & \"'!\" & AF263),0) + IF(Setup!$AI$8<>\"\",INDIRECT(\"'\" & Setup!$AI$8 & \"'!\" & AF263),0) + IF(Setup!$AI$9<>\"\",INDIRECT(\"'\" & Setup!$AI$9 & \"'!\" & AF263),0) + IF(Setup!$AI$10<>\"\",INDIRECT(\"'\" & Setup!$AI$10 & \"'!\" & AF263),0) + IF(Setup!$AI$11<>\"\",INDIRECT(\"'\" & Setup!$AI$11 & \"'!\" & AF263),0) + IF(Setup!$AI$12<>\"\",INDIRECT(\"'\" & Setup!$AI$12 & \"'!\" & AF263),0)","v":0},{"$f":"IF(Setup!$AJ$7<>\"\",INDIRECT(\"'\" & Setup!$AJ$7 & \"'!\" & AF263),0) + IF(Setup!$AJ$8<>\"\",INDIRECT(\"'\" & Setup!$AJ$8 & \"'!\" & AF263),0) + IF(Setup!$AJ$9<>\"\",INDIRECT(\"'\" & Setup!$AJ$9 & \"'!\" & AF263),0) + IF(Setup!$AJ$10<>\"\",INDIRECT(\"'\" & Setup!$AJ$10 & \"'!\" & AF263),0) + IF(Setup!$AJ$11<>\"\",INDIRECT(\"'\" & Setup!$AJ$11 & \"'!\" & AF263),0) + IF(Setup!$AJ$12<>\"\",INDIRECT(\"'\" & Setup!$AJ$12 & \"'!\" & AF263),0)","v":0},null,"",{"$nulls":30},0,{"$f":"IF(Setup!$AH$7=\"\",0,INDIRECT(\"'\" & Setup!$AH$7 & \"'!\" & AF263))","v":0},{"$f":"IF(Setup!$AI$7=\"\",0,INDIRECT(\"'\" & Setup!$AI$7 & \"'!\" & AF263))","v":0},{"$f":"IF(Setup!$AJ$7=\"\",0,INDIRECT(\"'\" & Setup!$AJ$7 & \"'!\" & AF263))","v":0}]
[{"$f":"Planning!A36","v":"I028"},{"$f":"Planning!B36","v":0},{"$f":"Planning!C36","v":0},{"$f":"Planning!D36","v":0},{"$f":"Planning!E36","v":0},{"$f":"Planning!G36","v":0},0,{"v":0,"d":"0.00"},{"v":0,"d":"0.00"},"","",{"$f":"IF(Setup!$AG$7<>\"\",INDIRECT(\"'\" & Setup!$AG$7 & \"'!\" & AD264),0) + IF(Setup!$AG$8<>\"\",INDIRECT(\"'\" & Setup!$AG$8 & \"'!\" & AD264),0) + IF(Setup!$AG$9<>\"\",INDIRECT(\"'\" & Setup!$AG$9 & \"'!\" & AD264),0) + IF(Setup!$AG$10<>\"\",INDIRECT(\"'\" & Setup!$AG$10 & \"'!\" & AD264),0) + IF(Setup!$AG$11<>\"\",INDIRECT(\"'\" & Setup!$AG$11 & \"'!\" & AD264),0) + IF(Setup!$AG$12<>\"\",INDIRECT(\"'\" & Setup!$AG$12 & \"'!\" & AD264),0)","v":{"v":0,"d":"0.00"}},{"$f":"IF(Setup!$AG$7<>\"\",INDIRECT(\"'\" & Setup!$AG$7 & \"'!\" & AE264),0) + IF(Setup!$AG$8<>\"\",INDIRECT(\"'\" & Setup!$AG$8 & \"'!\" & AE264),0) + IF(Setup!$AG$9<>\"\",INDIRECT(\"'\" & Setup!$AG$9 & \"'!\" & AE264),0) + IF(Setup!$AG$10<>\"\",INDIRECT(\"'\" & Setup!$AG$10 & \"'!\" & AE264),0) + IF(Setup!$AG$11<>\"\",INDIRECT(\"'\" & Setup!$AG$11 & \"'!\" & AE264),0) + IF(Setup!$AG$12<>\"\",INDIRECT(\"'\" & Setup!$AG$12 & \"'!\" & AE264),0)","v":{"v":0,"d":"0.00"}},"","",{"$f":"IF(Setup!$AH$7<>\"\",INDIRECT(\"'\" & Setup!$AH$7 & \"'!\" & AD264),0) + IF(Setup!$AH$8<>\"\",INDIRECT(\"'\" & Setup!$AH$8 & \"'!\" & AD264),0) + IF(Setup!$AH$9<>\"\",INDIRECT(\"'\" & Setup!$AH$9 & \"'!\" & AD264),0) + IF(Setup!$AH$10<>\"\",INDIRECT(\"'\" & Setup!$AH$10 & \"'!\" & AD264),0) + IF(Setup!$AH$11<>\"\",INDIRECT(\"'\" & Setup!$AH$11 & \"'!\" & AD264),0) + IF(Setup!$AH$12<>\"\",INDIRECT(\"'\" & Setup!$AH$12 & \"'!\" & AD264),0)","v":{"v":0,"d":"0.00"}},{"$f":"IF(Setup!$AH$7<>\"\",INDIRECT(\"'\" & Setup!$AH$7 & \"'!\" & AE264),0) + IF(Setup!$AH$8<>\"\",INDIRECT(\"'\" & Setup!$AH$8 & \"'!\" & AE264),0) + IF(Setup!$AH$9<>\"\",INDIRECT(\"'\" & Setup!$AH$9 & \"'!\" & AE264),0) + IF(Setup!$AH$10<>\"\",INDIRECT(\"'\" & Setup!$AH$10 & \"'!\" & AE264),0) + IF(Setup!$AH$11<>\"\",INDIRECT(\"'\" & Setup!$AH$11 & \"'!\" & AE264),0) + IF(Setup!$AH$12<>\"\",INDIRECT(\"'\" & Setup!$AH$12 & \"'!\" & AE264),0)","v":{"v":0,"d":"0.00"}},"","",{"$f":"IF(Setup!$AI$7<>\"\",INDIRECT(\"'\" & Setup!$AI$7 & \"'!\" & AD264),0) + IF(Setup!$AI$8<>\"\",INDIRECT(\"'\" & Setup!$AI$8 & \"'!\" & AD264),0) + IF(Setup!$AI$9<>\"\",INDIRECT(\"'\" & Setup!$AI$9 & \"'!\" & AD264),0) + IF(Setup!$AI$10<>\"\",INDIRECT(\"'\" & Setup!$AI$10 & \"'!\" & AD264),0) + IF(Setup!$AI$11<>\"\",INDIRECT(\"'\" & Setup!$AI$11 & \"'!\" & AD264),0) + IF(Setup!$AI$12<>\"\",INDIRECT(\"'\" & Setup!$AI$12 & \"'!\" & AD264),0)","v":{"v":0,"d":"0.00"}},{"$f":"IF(Setup!$AI$7<>\"\",INDIRECT(\"'\" & Setup!$AI$7 & \"'!\" & AE264),0) + IF(Setup!$AI$8<>\"\",INDIRECT(\"'\" & Setup!$AI$8 & \"'!\" & AE264),0) + IF(Setup!$AI$9<>\"\",INDIRECT(\"'\" & Setup!$AI$9 & \"'!\" & AE264),0) + IF(Setup!$AI$10<>\"\",INDIRECT(\"'\" & Setup!$AI$10 & \"'!\" & AE264),0) + IF(Setup!$AI$11<>\"\",INDIRECT(\"'\" & Setup!$AI$11 & \"'!\" & AE264),0) + IF(Setup!$AI$12<>\"\",INDIRECT(\"'\" & Setup!$AI$12 & \"'!\" & AE264),0)","v":{"v":0,"d":"0.00"}},"","",{"$f":"IF(Setup!$AJ$7<>\"\",INDIRECT(\"'\" & Setup!$AJ$7 & \"'!\" & AD264),0) + IF(Setup!$AJ$8<>\"\",INDIRECT(\"'\" & Setup!$AJ$8 & \"'!\" & AD264),0) + IF(Setup!$AJ$9<>\"\",INDIRECT(\"'\" & Setup!$AJ$9 & \"'!\" & AD264),0) + IF(Setup!$AJ$10<>\"\",INDIRECT(\"'\" & Setup!$AJ$10 & \"'!\" & AD264),0) + IF(Setup!$AJ$11<>\"\",INDIRECT(\"'\" & Setup!$AJ$11 & \"'!\" & AD264),0) + IF(Setup!$AJ$12<>\"\",INDIRECT(\"'\" & Setup!$AJ$12 & \"'!\" & AD264),0)","v":0},{"$f":"IF(Setup!$AJ$7<>\"\",INDIRECT(\"'\" & Setup!$AJ$7 & \"'!\" & AE264),0) + IF(Setup!$AJ$8<>\"\",INDIRECT(\"'\" & Setup!$AJ$8 & \"'!\" & AE264),0) + IF(Setup!$AJ$9<>\"\",INDIRECT(\"'\" & Setup!$AJ$9 & \"'!\" & AE264),0) + IF(Setup!$AJ$10<>\"\",INDIRECT(\"'\" & Setup!$AJ$10 & \"'!\" & AE264),0) + IF(Setup!$AJ$11<>\"\",INDIRECT(\"'\" & Setup!$AJ$11 & \"'!\" & AE264),0) + IF(Setup!$AJ$12<>\"\",INDIRECT(\"'\" & Setup!$AJ$12 & \"'!\" & AE264),0)","v":0},"","",{"$f":"Planning!H36","v":0},"00","M52","O52","N52",null,null,{"$f":"IF(Setup!$AG$7<>\"\",INDIRECT(\"'\" & Setup!$AG$7 & \"'!\" & AF264),0) + IF(Setup!$AG$8<>\"\",INDIRECT(\"'\" & Setup!$AG$8 & \"'!\" & AF264),0) + IF(Setup!$AG$9<>\"\",INDIRECT(\"'\" & Setup!$AG$9 & \"'!\" & AF264),0) + IF(Setup!$AG$10<>\"\",INDIRECT(\"'\" & Setup!$AG$10 & \"'!\" & AF264),0) + IF(Setup!$AG$11<>\"\",INDIRECT(\"'\" & Setup!$AG$11 & \"'!\" & AF264),0) + IF(Setup!$AG$12<>\"\",INDIRECT(\"'\" & Setup!$AG$12 & \"'!\" & AF264),0)","v":0},{"$f":"IF(Setup!$AH$7<>\"\",INDIRECT(\"'\" & Setup!$AH$7 & \"'!\" & AF264),0) + IF(Setup!$AH$8<>\"\",INDIRECT(\"'\" & Setup!$AH$8 & \"'!\" & AF264),0) + IF(Setup!$AH$9<>\"\",INDIRECT(\"'\" & Setup!$AH$9 & \"'!\" & AF264),0) + IF(Setup!$AH$10<>\"\",INDIRECT(\"'\" & Setup!$AH$10 & \"'!\" & AF264),0) + IF(Setup!$AH$11<>\"\",INDIRECT(\"'\" & Setup!$AH$11 & \"'!\" & AF264),0) + IF(Setup!$AH$12<>\"\",INDIRECT(\"'\" & Setup!$AH$12 & \"'!\" & AF264),0)","v":0},{"$f":"IF(Setup!$AI$7<>\"\",INDIRECT(\"'\" & Setup!$AI$7 & \"'!\" & AF264),0) + IF(Setup!$AI$8<>\"\",INDIRECT(\"'\" & Setup!$AI$8 & \"'!\" & AF264),0) + IF(Setup!$AI$9<>\"\",INDIRECT(\"'\" & Setup!$AI$9 & \"'!\" & AF264),0) + IF(Setup!$AI$10<>\"\",INDIRECT(\"'\" & Setup!$AI$10 & \"'!\" & AF264),0) + IF(Setup!$AI$11<>\"\",INDIRECT(\"'\" & Setup!$AI$11 & \"'!\" & AF264),0) + IF(Setup!$AI$12<>\"\",INDIRECT(\"'\" & Setup!$AI$12 & \"'!\" & AF264),0)","v":0},{"$f":"IF(Setup!$AJ$7<>\"\",INDIRECT(\"'\" & Setup!$AJ$7 & \"'!\" & AF264),0) + IF(Setup!$AJ$8<>\"\",INDIRECT(\"'\" & Setup!$AJ$8 & \"'!\" & AF264),0) + IF(Setup!$AJ$9<>\"\",INDIRECT(\"'\" & Setup!$AJ$9 & \"'!\" & AF264),0) + IF(Setup!$AJ$10<>\"\",INDIRECT(\"'\" & Setup!$AJ$10 & \"'!\" & AF264),0) + IF(Setup!$AJ$11<>\"\",INDIRECT(\"'\" & Setup!$AJ$11 & \"'!\" & AF264),0) + IF(Setup!$AJ$12<>\"\",INDIRECT(\"'\" & Setup!$AJ$12 & \"'!\" & AF264),0)","v":0},null,"",{"$nulls":30},0,{"$f":"IF(Setup!$AH$7=\"\",0,INDIRECT(\"'\" & Setup!$AH$7 & \"'!\" & AF264))","v":0},{"$f":"IF(Setup!$AI$7=\"\",0,INDIRECT(\"'\" & Setup!$AI$7 & \"'!\" & AF264))","v":0},{"$f":"IF(Setup!$AJ$7=\"\",0,INDIRECT(\"'\" & Setup!$AJ$7 & \"'!\" & AF264))","v":0}]
[{"$f":"Planning!A37","v":"I029"},{"$f":"Planning!B37","v":0},{"$f":"Planning!C37","v":0},{"$f":"Planning!D37","v":0},{"$f":"Planning!E37","v":0},{"$f":"Planning!G37","v":0},0,{"v":0,"d":"0.00"},{"v":0,"d":"0.00"},"","",{"$f":"IF(Setup!$AG$7<>\"\",INDIRECT(\"'\" & Setup!$AG$7 & \"'!\" & AD265),0) + IF(Setup!$AG$8<>\"\",INDIRECT(\"'\" & Setup!$AG$8 & \"'!\" & AD265),0) + IF(Setup!$AG$9<>\"\",INDIRECT(\"'\" & Setup!$AG$9 & \"'!\" & AD265),0) + IF(Setup!$AG$10<>\"\",INDIRECT(\"'\" & Setup!$AG$10 & \"'!\" & AD265),0) + IF(Setup!$AG$11<>\"\",INDIRECT(\"'\" & Setup!$AG$11 & \"'!\" & AD265),0) + IF(Setup!$AG$12<>\"\",INDIRECT(\"'\" & Setup!$AG$12 & \"'!\" & AD265),0)","v":{"v":0,"d":"0.00"}},{"$f":"IF(Setup!$AG$7<>\"\",INDIRECT(\"'\" & Setup!$AG$7 & \"'!\" & AE265),0) + IF(Setup!$AG$8<>\"\",INDIRECT(\"'\" & Setup!$AG$8 & \"'!\" & AE265),0) + IF(Setup!$AG$9<>\"\",INDIRECT(\"'\" & Setup!$AG$9 & \"'!\" & AE265),0) + IF(Setup!$AG$10<>\"\",INDIRECT(\"'\" & Setup!$AG$10 & \"'!\" & AE265),0) + IF(Setup!$AG$11<>\"\",INDIRECT(\"'\" & Setup!$AG$11 & \"'!\" & AE265),0) + IF(Setup!$AG$12<>\"\",INDIRECT(\"'\" & Setup!$AG$12 & \"'!\" & AE265),0)","v":{"v":0,"d":"0.00"}},"","",{"$f":"IF(Setup!$AH$7<>\"\",INDIRECT(\"'\" & Setup!$AH$7 & \"'!\" & AD265),0) + IF(Setup!$AH$8<>\"\",INDIRECT(\"'\" & Setup!$AH$8 & \"'!\" & AD265),0) + IF(Setup!$AH$9<>\"\",INDIRECT(\"'\" & Setup!$AH$9 & \"'!\" & AD265),0) + IF(Setup!$AH$10<>\"\",INDIRECT(\"'\" & Setup!$AH$10 & \"'!\" & AD265),0) + IF(Setup!$AH$11<>\"\",INDIRECT(\"'\" & Setup!$AH$11 & \"'!\" & AD265),0) + IF(Setup!$AH$12<>\"\",INDIRECT(\"'\" & Setup!$AH$12 & \"'!\" & AD265),0)","v":{"v":0,"d":"0.00"}},{"$f":"IF(Setup!$AH$7<>\"\",INDIRECT(\"'\" & Setup!$AH$7 & \"'!\" & AE265),0) + IF(Setup!$AH$8<>\"\",INDIRECT(\"'\" & Setup!$AH$8 & \"'!\" & AE265),0) + IF(Setup!$AH$9<>\"\",INDIRECT(\"'\" & Setup!$AH$9 & \"'!\" & AE265),0) + IF(Setup!$AH$10<>\"\",INDIRECT(\"'\" & Setup!$AH$10 & \"'!\" & AE265),0) + IF(Setup!$AH$11<>\"\",INDIRECT(\"'\" & Setup!$AH$11 & \"'!\" & AE265),0) + IF(Setup!$AH$12<>\"\",INDIRECT(\"'\" & Setup!$AH$12 & \"'!\" & AE265),0)","v":{"v":0,"d":"0.00"}},"","",{"$f":"IF(Setup!$AI$7<>\"\",INDIRECT(\"'\" & Setup!$AI$7 & \"'!\" & AD265),0) + IF(Setup!$AI$8<>\"\",INDIRECT(\"'\" & Setup!$AI$8 & \"'!\" & AD265),0) + IF(Setup!$AI$9<>\"\",INDIRECT(\"'\" & Setup!$AI$9 & \"'!\" & AD265),0) + IF(Setup!$AI$10<>\"\",INDIRECT(\"'\" & Setup!$AI$10 & \"'!\" & AD265),0) + IF(Setup!$AI$11<>\"\",INDIRECT(\"'\" & Setup!$AI$11 & \"'!\" & AD265),0) + IF(Setup!$AI$12<>\"\",INDIRECT(\"'\" & Setup!$AI$12 & \"'!\" & AD265),0)","v":{"v":0,"d":"0.00"}},{"$f":"IF(Setup!$AI$7<>\"\",INDIRECT(\"'\" & Setup!$AI$7 & \"'!\" & AE265),0) + IF(Setup!$AI$8<>\"\",INDIRECT(\"'\" & Setup!$AI$8 & \"'!\" & AE265),0) + IF(Setup!$AI$9<>\"\",INDIRECT(\"'\" & Setup!$AI$9 & \"'!\" & AE265),0) + IF(Setup!$AI$10<>\"\",INDIRECT(\"'\" & Setup!$AI$10 & \"'!\" & AE265),0) + IF(Setup!$AI$11<>\"\",INDIRECT(\"'\" & Setup!$AI$11 & \"'!\" & AE265),0) + IF(Setup!$AI$12<>\"\",INDIRECT(\"'\" & Setup!$AI$12 & \"'!\" & AE265),0)","v":{"v":0,"d":"0.00"}},"","",{"$f":"IF(Setup!$AJ$7<>\"\",INDIRECT(\"'\" & Setup!$AJ$7 & \"'!\" & AD265),0) + IF(Setup!$AJ$8<>\"\",INDIRECT(\"'\" & Setup!$AJ$8 & \"'!\" & AD265),0) + IF(Setup!$AJ$9<>\"\",INDIRECT(\"'\" & Setup!$AJ$9 & \"'!\" & AD265),0) + IF(Setup!$AJ$10<>\"\",INDIRECT(\"'\" & Setup!$AJ$10 & \"'!\" & AD265),0) + IF(Setup!$AJ$11<>\"\",INDIRECT(\"'\" & Setup!$AJ$11 & \"'!\" & AD265),0) + IF(Setup!$AJ$12<>\"\",INDIRECT(\"'\" & Setup!$AJ$12 & \"'!\" & AD265),0)","v":0},{"$f":"IF(Setup!$AJ$7<>\"\",INDIRECT(\"'\" & Setup!$AJ$7 & \"'!\" & AE265),0) + IF(Setup!$AJ$8<>\"\",INDIRECT(\"'\" & Setup!$AJ$8 & \"'!\" & AE265),0) + IF(Setup!$AJ$9<>\"\",INDIRECT(\"'\" & Setup!$AJ$9 & \"'!\" & AE265),0) + IF(Setup!$AJ$10<>\"\",INDIRECT(\"'\" & Setup!$AJ$10 & \"'!\" & AE265),0) + IF(Setup!$AJ$11<>\"\",INDIRECT(\"'\" & Setup!$AJ$11 & \"'!\" & AE265),0) + IF(Setup!$AJ$12<>\"\",INDIRECT(\"'\" & Setup!$AJ$12 & \"'!\" & AE265),0)","v":0},"","",{"$f":"Planning!H37","v":0},"00","M53","O53","N53",null,null,{"$f":"IF(Setup!$AG$7<>\"\",INDIRECT(\"'\" & Setup!$AG$7 & \"'!\" & AF265),0) + IF(Setup!$AG$8<>\"\",INDIRECT(\"'\" & Setup!$AG$8 & \"'!\" & AF265),0) + IF(Setup!$AG$9<>\"\",INDIRECT(\"'\" & Setup!$AG$9 & \"'!\" & AF265),0) + IF(Setup!$AG$10<>\"\",INDIRECT(\"'\" & Setup!$AG$10 & \"'!\" & AF265),0) + IF(Setup!$AG$11<>\"\",INDIRECT(\"'\" & Setup!$AG$11 & \"'!\" & AF265),0) + IF(Setup!$AG$12<>\"\",INDIRECT(\"'\" & Setup!$AG$12 & \"'!\" & AF265),0)","v":0},{"$f":"IF(Setup!$AH$7<>\"\",INDIRECT(\"'\" & Setup!$AH$7 & \"'!\" & AF265),0) + IF(Setup!$AH$8<>\"\",INDIRECT(\"'\" & Setup!$AH$8 & \"'!\" & AF265),0) + IF(Setup!$AH$9<>\"\",INDIRECT(\"'\" & Setup!$AH$9 & \"'!\" & AF265),0) + IF(Setup!$AH$10<>\"\",INDIRECT(\"'\" & Setup!$AH$10 & \"'!\" & AF265),0) + IF(Setup!$AH$11<>\"\",INDIRECT(\"'\" & Setup!$AH$11 & \"'!\" & AF265),0) + IF(Setup!$AH$12<>\"\",INDIRECT(\"'\" & Setup!$AH$12 & \"'!\" & AF265),0)","v":0},{"$f":"IF(Setup!$AI$7<>\"\",INDIRECT(\"'\" & Setup!$AI$7 & \"'!\" & AF265),0) + IF(Setup!$AI$8<>\"\",INDIRECT(\"'\" & Setup!$AI$8 & \"'!\" & AF265),0) + IF(Setup!$AI$9<>\"\",INDIRECT(\"'\" & Setup!$AI$9 & \"'!\" & AF265),0) + IF(Setup!$AI$10<>\"\",INDIRECT(\"'\" & Setup!$AI$10 & \"'!\" & AF265),0) + IF(Setup!$AI$11<>\"\",INDIRECT(\"'\" & Setup!$AI$11 & \"'!\" & AF265),0) + IF(Setup!$AI$12<>\"\",INDIRECT(\"'\" & Setup!$AI$12 & \"'!\" & AF265),0)","v":0},{"$f":"IF(Setup!$AJ$7<>\"\",INDIRECT(\"'\" & Setup!$AJ$7 & \"'!\" & AF265),0) + IF(Setup!$AJ$8<>\"\",INDIRECT(\"'\" & Setup!$AJ$8 & \"'!\" & AF265),0) + IF(Setup!$AJ$9<>\"\",INDIRECT(\"'\" & Setup!$AJ$9 & \"'!\" & AF265),0) + IF(Setup!$AJ$10<>\"\",INDIRECT(\"'\" & Setup!$AJ$10 & \"'!\" & AF265),0) + IF(Setup!$AJ$11<>\"\",INDIRECT(\"'\" & Setup!$AJ$11 & \"'!\" & AF265),0) + IF(Setup!$AJ$12<>\"\",INDIRECT(\"'\" & Setup!$AJ$12 & \"'!\" & AF265),0)","v":0},null,"",{"$nulls":30},0,{"$f":"IF(Setup!$AH$7=\"\",0,INDIRECT(\"'\" & Setup!$AH$7 & \"'!\" & AF265))","v":0},{"$f":"IF(Setup!$AI$7=\"\",0,INDIRECT(\"'\" & Setup!$AI$7 & \"'!\" & AF265))","v":0},{"$f":"IF(Setup!$AJ$7=\"\",0,INDIRECT(\"'\" & Setup!$AJ$7 & \"'!\" & AF265))","v":0}]
[{"$f":"Planning!A38","v":"I030"},{"$f":"Planning!B38","v":0},{"$f":"Planning!C38","v":0},{"$f":"Planning!D38","v":0},{"$f":"Planning!E38","v":0},{"$f":"Planning!G38","v":0},0,{"v":0,"d":"0.00"},{"v":0,"d":"0.00"},"","",{"$f":"IF(Setup!$AG$7<>\"\",INDIRECT(\"'\" & Setup!$AG$7 & \"'!\" & AD266),0) + IF(Setup!$AG$8<>\"\",INDIRECT(\"'\" & Setup!$AG$8 & \"'!\" & AD266),0) + IF(Setup!$AG$9<>\"\",INDIRECT(\"'\" & Setup!$AG$9 & \"'!\" & AD266),0) + IF(Setup!$AG$10<>\"\",INDIRECT(\"'\" & Setup!$AG$10 & \"'!\" & AD266),0) + IF(Setup!$AG$11<>\"\",INDIRECT(\"'\" & Setup!$AG$11 & \"'!\" & AD266),0) + IF(Setup!$AG$12<>\"\",INDIRECT(\"'\" & Setup!$AG$12 & \"'!\" & AD266),0)","v":{"v":0,"d":"0.00"}},{"$f":"IF(Setup!$AG$7<>\"\",INDIRECT(\"'\" & Setup!$AG$7 & \"'!\" & AE266),0) + IF(Setup!$AG$8<>\"\",INDIRECT(\"'\" & Setup!$AG$8 & \"'!\" & AE266),0) + IF(Setup!$AG$9<>\"\",INDIRECT(\"'\" & Setup!$AG$9 & \"'!\" & AE266),0) + IF(Setup!$AG$10<>\"\",INDIRECT(\"'\" & Setup!$AG$10 & \"'!\" & AE266),0) + IF(Setup!$AG$11<>\"\",INDIRECT(\"'\" & Setup!$AG$11 & \"'!\" & AE266),0) + IF(Setup!$AG$12<>\"\",INDIRECT(\"'\" & Setup!$AG$12 & \"'!\" & AE266),0)","v":{"v":0,"d":"0.00"}},"","",{"$f":"IF(Setup!$AH$7<>\"\",INDIRECT(\"'\" & Setup!$AH$7 & \"'!\" & AD266),0) + IF(Setup!$AH$8<>\"\",INDIRECT(\"'\" & Setup!$AH$8 & \"'!\" & AD266),0) + IF(Setup!$AH$9<>\"\",INDIRECT(\"'\" & Setup!$AH$9 & \"'!\" & AD266),0) + IF(Setup!$AH$10<>\"\",INDIRECT(\"'\" & Setup!$AH$10 & \"'!\" & AD266),0) + IF(Setup!$AH$11<>\"\",INDIRECT(\"'\" & Setup!$AH$11 & \"'!\" & AD266),0) + IF(Setup!$AH$12<>\"\",INDIRECT(\"'\" & Setup!$AH$12 & \"'!\" & AD266),0)","v":{"v":0,"d":"0.00"}},{"$f":"IF(Setup!$AH$7<>\"\",INDIRECT(\"'\" & Setup!$AH$7 & \"'!\" & AE266),0) + IF(Setup!$AH$8<>\"\",INDIRECT(\"'\" & Setup!$AH$8 & \"'!\" & AE266),0) + IF(Setup!$AH$9<>\"\",INDIRECT(\"'\" & Setup!$AH$9 & \"'!\" & AE266),0) + IF(Setup!$AH$10<>\"\",INDIRECT(\"'\" & Setup!$AH$10 & \"'!\" & AE266),0) + IF(Setup!$AH$11<>\"\",INDIRECT(\"'\" & Setup!$AH$11 & \"'!\" & AE266),0) + IF(Setup!$AH$12<>\"\",INDIRECT(\"'\" & Setup!$AH$12 & \"'!\" & AE266),0)","v":{"v":0,"d":"0.00"}},"","",{"$f":"IF(Setup!$AI$7<>\"\",INDIRECT(\"'\" & Setup!$AI$7 & \"'!\" & AD266),0) + IF(Setup!$AI$8<>\"\",INDIRECT(\"'\" & Setup!$AI$8 & \"'!\" & AD266),0) + IF(Setup!$AI$9<>\"\",INDIRECT(\"'\" & Setup!$AI$9 & \"'!\" & AD266),0) + IF(Setup!$AI$10<>\"\",INDIRECT(\"'\" & Setup!$AI$10 & \"'!\" & AD266),0) + IF(Setup!$AI$11<>\"\",INDIRECT(\"'\" & Setup!$AI$11 & \"'!\" & AD266),0) + IF(Setup!$AI$12<>\"\",INDIRECT(\"'\" & Setup!$AI$12 & \"'!\" & AD266),0)","v":{"v":0,"d":"0.00"}},{"$f":"IF(Setup!$AI$7<>\"\",INDIRECT(\"'\" & Setup!$AI$7 & \"'!\" & AE266),0) + IF(Setup!$AI$8<>\"\",INDIRECT(\"'\" & Setup!$AI$8 & \"'!\" & AE266),0) + IF(Setup!$AI$9<>\"\",INDIRECT(\"'\" & Setup!$AI$9 & \"'!\" & AE266),0) + IF(Setup!$AI$10<>\"\",INDIRECT(\"'\" & Setup!$AI$10 & \"'!\" & AE266),0) + IF(Setup!$AI$11<>\"\",INDIRECT(\"'\" & Setup!$AI$11 & \"'!\" & AE266),0) + IF(Setup!$AI$12<>\"\",INDIRECT(\"'\" & Setup!$AI$12 & \"'!\" & AE266),0)","v":{"v":0,"d":"0.00"}},"","",{"$f":"IF(Setup!$AJ$7<>\"\",INDIRECT(\"'\" & Setup!$AJ$7 & \"'!\" & AD266),0) + IF(Setup!$AJ$8<>\"\",INDIRECT(\"'\" & Setup!$AJ$8 & \"'!\" & AD266),0) + IF(Setup!$AJ$9<>\"\",INDIRECT(\"'\" & Setup!$AJ$9 & \"'!\" & AD266),0) + IF(Setup!$AJ$10<>\"\",INDIRECT(\"'\" & Setup!$AJ$10 & \"'!\" & AD266),0) + IF(Setup!$AJ$11<>\"\",INDIRECT(\"'\" & Setup!$AJ$11 & \"'!\" & AD266),0) + IF(Setup!$AJ$12<>\"\",INDIRECT(\"'\" & Setup!$AJ$12 & \"'!\" & AD266),0)","v":0},{"$f":"IF(Setup!$AJ$7<>\"\",INDIRECT(\"'\" & Setup!$AJ$7 & \"'!\" & AE266),0) + IF(Setup!$AJ$8<>\"\",INDIRECT(\"'\" & Setup!$AJ$8 & \"'!\" & AE266),0) + IF(Setup!$AJ$9<>\"\",INDIRECT(\"'\" & Setup!$AJ$9 & \"'!\" & AE266),0) + IF(Setup!$AJ$10<>\"\",INDIRECT(\"'\" & Setup!$AJ$10 & \"'!\" & AE266),0) + IF(Setup!$AJ$11<>\"\",INDIRECT(\"'\" & Setup!$AJ$11 & \"'!\" & AE266),0) + IF(Setup!$AJ$12<>\"\",INDIRECT(\"'\" & Setup!$AJ$12 & \"'!\" & AE266),0)","v":0},"","",{"$f":"Planning!H38","v":0},"00","M54","O54","N54",null,null,{"$f":"IF(Setup!$AG$7<>\"\",INDIRECT(\"'\" & Setup!$AG$7 & \"'!\" & AF266),0) + IF(Setup!$AG$8<>\"\",INDIRECT(\"'\" & Setup!$AG$8 & \"'!\" & AF266),0) + IF(Setup!$AG$9<>\"\",INDIRECT(\"'\" & Setup!$AG$9 & \"'!\" & AF266),0) + IF(Setup!$AG$10<>\"\",INDIRECT(\"'\" & Setup!$AG$10 & \"'!\" & AF266),0) + IF(Setup!$AG$11<>\"\",INDIRECT(\"'\" & Setup!$AG$11 & \"'!\" & AF266),0) + IF(Setup!$AG$12<>\"\",INDIRECT(\"'\" & Setup!$AG$12 & \"'!\" & AF266),0)","v":0},{"$f":"IF(Setup!$AH$7<>\"\",INDIRECT(\"'\" & Setup!$AH$7 & \"'!\" & AF266),0) + IF(Setup!$AH$8<>\"\",INDIRECT(\"'\" & Setup!$AH$8 & \"'!\" & AF266),0) + IF(Setup!$AH$9<>\"\",INDIRECT(\"'\" & Setup!$AH$9 & \"'!\" & AF266),0) + IF(Setup!$AH$10<>\"\",INDIRECT(\"'\" & Setup!$AH$10 & \"'!\" & AF266),0) + IF(Setup!$AH$11<>\"\",INDIRECT(\"'\" & Setup!$AH$11 & \"'!\" & AF266),0) + IF(Setup!$AH$12<>\"\",INDIRECT(\"'\" & Setup!$AH$12 & \"'!\" & AF266),0)","v":0},{"$f":"IF(Setup!$AI$7<>\"\",INDIRECT(\"'\" & Setup!$AI$7 & \"'!\" & AF266),0) + IF(Setup!$AI$8<>\"\",INDIRECT(\"'\" & Setup!$AI$8 & \"'!\" & AF266),0) + IF(Setup!$AI$9<>\"\",INDIRECT(\"'\" & Setup!$AI$9 & \"'!\" & AF266),0) + IF(Setup!$AI$10<>\"\",INDIRECT(\"'\" & Setup!$AI$10 & \"'!\" & AF266),0) + IF(Setup!$AI$11<>\"\",INDIRECT(\"'\" & Setup!$AI$11 & \"'!\" & AF266),0) + IF(Setup!$AI$12<>\"\",INDIRECT(\"'\" & Setup!$AI$12 & \"'!\" & AF266),0)","v":0},{"$f":"IF(Setup!$AJ$7<>\"\",INDIRECT(\"'\" & Setup!$AJ$7 & \"'!\" & AF266),0) + IF(Setup!$AJ$8<>\"\",INDIRECT(\"'\" & Setup!$AJ$8 & \"'!\" & AF266),0) + IF(Setup!$AJ$9<>\"\",INDIRECT(\"'\" & Setup!$AJ$9 & \"'!\" & AF266),0) + IF(Setup!$AJ$10<>\"\",INDIRECT(\"'\" & Setup!$AJ$10 & \"'!\" & AF266),0) + IF(Setup!$AJ$11<>\"\",INDIRECT(\"'\" & Setup!$AJ$11 & \"'!\" & AF266),0) + IF(Setup!$AJ$12<>\"\",INDIRECT(\"'\" & Setup!$AJ$12 & \"'!\" & AF266),0)","v":0},null,"",{"$nulls":30},0,{"$f":"IF(Setup!$AH$7=\"\",0,INDIRECT(\"'\" & Setup!$AH$7 & \"'!\" & AF266))","v":0},{"$f":"IF(Setup!$AI$7=\"\",0,INDIRECT(\"'\" & Setup!$AI$7 & \"'!\" & AF266))","v":0},{"$f":"IF(Setup!$AJ$7=\"\",0,INDIRECT(\"'\" & Setup!$AJ$7 & \"'!\" & AF266))","v":0}]
[{"$f":"Planning!A39","v":"I031"},{"$f":"Planning!B39","v":0},{"$f":"Planning!C39","v":0},{"$f":"Planning!D39","v":0},{"$f":"Planning!E39","v":0},{"$f":"Planning!G39","v":0},0,{"v":0,"d":"0.00"},{"v":0,"d":"0.00"},"","",{"$f":"IF(Setup!$AG$7<>\"\",INDIRECT(\"'\" & Setup!$AG$7 & \"'!\" & AD267),0) + IF(Setup!$AG$8<>\"\",INDIRECT(\"'\" & Setup!$AG$8 & \"'!\" & AD267),0) + IF(Setup!$AG$9<>\"\",INDIRECT(\"'\" & Setup!$AG$9 & \"'!\" & AD267),0) + IF(Setup!$AG$10<>\"\",INDIRECT(\"'\" & Setup!$AG$10 & \"'!\" & AD267),0) + IF(Setup!$AG$11<>\"\",INDIRECT(\"'\" & Setup!$AG$11 & \"'!\" & AD267),0) + IF(Setup!$AG$12<>\"\",INDIRECT(\"'\" & Setup!$AG$12 & \"'!\" & AD267),0)","v":{"v":0,"d":"0.00"}},{"$f":"IF(Setup!$AG$7<>\"\",INDIRECT(\"'\" & Setup!$AG$7 & \"'!\" & AE267),0) + IF(Setup!$AG$8<>\"\",INDIRECT(\"'\" & Setup!$AG$8 & \"'!\" & AE267),0) + IF(Setup!$AG$9<>\"\",INDIRECT(\"'\" & Setup!$AG$9 & \"'!\" & AE267),0) + IF(Setup!$AG$10<>\"\",INDIRECT(\"'\" & Setup!$AG$10 & \"'!\" & AE267),0) + IF(Setup!$AG$11<>\"\",INDIRECT(\"'\" & Setup!$AG$11 & \"'!\" & AE267),0) + IF(Setup!$AG$12<>\"\",INDIRECT(\"'\" & Setup!$AG$12 & \"'!\" & AE267),0)","v":{"v":0,"d":"0.00"}},"","",{"$f":"IF(Setup!$AH$7<>\"\",INDIRECT(\"'\" & Setup!$AH$7 & \"'!\" & AD267),0) + IF(Setup!$AH$8<>\"\",INDIRECT(\"'\" & Setup!$AH$8 & \"'!\" & AD267),0) + IF(Setup!$AH$9<>\"\",INDIRECT(\"'\" & Setup!$AH$9 & \"'!\" & AD267),0) + IF(Setup!$AH$10<>\"\",INDIRECT(\"'\" & Setup!$AH$10 & \"'!\" & AD267),0) + IF(Setup!$AH$11<>\"\",INDIRECT(\"'\" & Setup!$AH$11 & \"'!\" & AD267),0) + IF(Setup!$AH$12<>\"\",INDIRECT(\"'\" & Setup!$AH$12 & \"'!\" & AD267),0)","v":{"v":0,"d":"0.00"}},{"$f":"IF(Setup!$AH$7<>\"\",INDIRECT(\"'\" & Setup!$AH$7 & \"'!\" & AE267),0) + IF(Setup!$AH$8<>\"\",INDIRECT(\"'\" & Setup!$AH$8 & \"'!\" & AE267),0) + IF(Setup!$AH$9<>\"\",INDIRECT(\"'\" & Setup!$AH$9 & \"'!\" & AE267),0) + IF(Setup!$AH$10<>\"\",INDIRECT(\"'\" & Setup!$AH$10 & \"'!\" & AE267),0) + IF(Setup!$AH$11<>\"\",INDIRECT(\"'\" & Setup!$AH$11 & \"'!\" & AE267),0) + IF(Setup!$AH$12<>\"\",INDIRECT(\"'\" & Setup!$AH$12 & \"'!\" & AE267),0)","v":{"v":0,"d":"0.00"}},"","",{"$f":"IF(Setup!$AI$7<>\"\",INDIRECT(\"'\" & Setup!$AI$7 & \"'!\" & AD267),0) + IF(Setup!$AI$8<>\"\",INDIRECT(\"'\" & Setup!$AI$8 & \"'!\" & AD267),0) + IF(Setup!$AI$9<>\"\",INDIRECT(\"'\" & Setup!$AI$9 & \"'!\" & AD267),0) + IF(Setup!$AI$10<>\"\",INDIRECT(\"'\" & Setup!$AI$10 & \"'!\" & AD267),0) + IF(Setup!$AI$11<>\"\",INDIRECT(\"'\" & Setup!$AI$11 & \"'!\" & AD267),0) + IF(Setup!$AI$12<>\"\",INDIRECT(\"'\" & Setup!$AI$12 & \"'!\" & AD267),0)","v":{"v":0,"d":"0.00"}},{"$f":"IF(Setup!$AI$7<>\"\",INDIRECT(\"'\" & Setup!$AI$7 & \"'!\" & AE267),0) + IF(Setup!$AI$8<>\"\",INDIRECT(\"'\" & Setup!$AI$8 & \"'!\" & AE267),0) + IF(Setup!$AI$9<>\"\",INDIRECT(\"'\" & Setup!$AI$9 & \"'!\" & AE267),0) + IF(Setup!$AI$10<>\"\",INDIRECT(\"'\" & Setup!$AI$10 & \"'!\" & AE267),0) + IF(Setup!$AI$11<>\"\",INDIRECT(\"'\" & Setup!$AI$11 & \"'!\" & AE267),0) + IF(Setup!$AI$12<>\"\",INDIRECT(\"'\" & Setup!$AI$12 & \"'!\" & AE267),0)","v":{"v":0,"d":"0.00"}},"","",{"$f":"IF(Setup!$AJ$7<>\"\",INDIRECT(\"'\" & Setup!$AJ$7 & \"'!\" & AD267),0) + IF(Setup!$AJ$8<>\"\",INDIRECT(\"'\" & Setup!$AJ$8 & \"'!\" & AD267),0) + IF(Setup!$AJ$9<>\"\",INDIRECT(\"'\" & Setup!$AJ$9 & \"'!\" & AD267),0) + IF(Setup!$AJ$10<>\"\",INDIRECT(\"'\" & Setup!$AJ$10 & \"'!\" & AD267),0) + IF(Setup!$AJ$11<>\"\",INDIRECT(\"'\" & Setup!$AJ$11 & \"'!\" & AD267),0) + IF(Setup!$AJ$12<>\"\",INDIRECT(\"'\" & Setup!$AJ$12 & \"'!\" & AD267),0)","v":0},{"$f":"IF(Setup!$AJ$7<>\"\",INDIRECT(\"'\" & Setup!$AJ$7 & \"'!\" & AE267),0) + IF(Setup!$AJ$8<>\"\",INDIRECT(\"'\" & Setup!$AJ$8 & \"'!\" & AE267),0) + IF(Setup!$AJ$9<>\"\",INDIRECT(\"'\" & Setup!$AJ$9 & \"'!\" & AE267),0) + IF(Setup!$AJ$10<>\"\",INDIRECT(\"'\" & Setup!$AJ$10 & \"'!\" & AE267),0) + IF(Setup!$AJ$11<>\"\",INDIRECT(\"'\" & Setup!$AJ$11 & \"'!\" & AE267),0) + IF(Setup!$AJ$12<>\"\",INDIRECT(\"'\" & Setup!$AJ$12 & \"'!\" & AE267),0)","v":0},"","",{"$f":"Planning!H39","v":0},"00","M55","O55","N55",null,null,{"$f":"IF(Setup!$AG$7<>\"\",INDIRECT(\"'\" & Setup!$AG$7 & \"'!\" & AF267),0) + IF(Setup!$AG$8<>\"\",INDIRECT(\"'\" & Setup!$AG$8 & \"'!\" & AF267),0) + IF(Setup!$AG$9<>\"\",INDIRECT(\"'\" & Setup!$AG$9 & \"'!\" & AF267),0) + IF(Setup!$AG$10<>\"\",INDIRECT(\"'\" & Setup!$AG$10 & \"'!\" & AF267),0) + IF(Setup!$AG$11<>\"\",INDIRECT(\"'\" & Setup!$AG$11 & \"'!\" & AF267),0) + IF(Setup!$AG$12<>\"\",INDIRECT(\"'\" & Setup!$AG$12 & \"'!\" & AF267),0)","v":0},{"$f":"IF(Setup!$AH$7<>\"\",INDIRECT(\"'\" & Setup!$AH$7 & \"'!\" & AF267),0) + IF(Setup!$AH$8<>\"\",INDIRECT(\"'\" & Setup!$AH$8 & \"'!\" & AF267),0) + IF(Setup!$AH$9<>\"\",INDIRECT(\"'\" & Setup!$AH$9 & \"'!\" & AF267),0) + IF(Setup!$AH$10<>\"\",INDIRECT(\"'\" & Setup!$AH$10 & \"'!\" & AF267),0) + IF(Setup!$AH$11<>\"\",INDIRECT(\"'\" & Setup!$AH$11 & \"'!\" & AF267),0) + IF(Setup!$AH$12<>\"\",INDIRECT(\"'\" & Setup!$AH$12 & \"'!\" & AF267),0)","v":0},{"$f":"IF(Setup!$AI$7<>\"\",INDIRECT(\"'\" & Setup!$AI$7 & \"'!\" & AF267),0) + IF(Setup!$AI$8<>\"\",INDIRECT(\"'\" & Setup!$AI$8 & \"'!\" & AF267),0) + IF(Setup!$AI$9<>\"\",INDIRECT(\"'\" & Setup!$AI$9 & \"'!\" & AF267),0) + IF(Setup!$AI$10<>\"\",INDIRECT(\"'\" & Setup!$AI$10 & \"'!\" & AF267),0) + IF(Setup!$AI$11<>\"\",INDIRECT(\"'\" & Setup!$AI$11 & \"'!\" & AF267),0) + IF(Setup!$AI$12<>\"\",INDIRECT(\"'\" & Setup!$AI$12 & \"'!\" & AF267),0)","v":0},{"$f":"IF(Setup!$AJ$7<>\"\",INDIRECT(\"'\" & Setup!$AJ$7 & \"'!\" & AF267),0) + IF(Setup!$AJ$8<>\"\",INDIRECT(\"'\" & Setup!$AJ$8 & \"'!\" & AF267),0) + IF(Setup!$AJ$9<>\"\",INDIRECT(\"'\" & Setup!$AJ$9 & \"'!\" & AF267),0) + IF(Setup!$AJ$10<>\"\",INDIRECT(\"'\" & Setup!$AJ$10 & \"'!\" & AF267),0) + IF(Setup!$AJ$11<>\"\",INDIRECT(\"'\" & Setup!$AJ$11 & \"'!\" & AF267),0) + IF(Setup!$AJ$12<>\"\",INDIRECT(\"'\" & Setup!$AJ$12 & \"'!\" & AF267),0)","v":0},null,"",{"$nulls":30},0,{"$f":"IF(Setup!$AH$7=\"\",0,INDIRECT(\"'\" & Setup!$AH$7 & \"'!\" & AF267))","v":0},{"$f":"IF(Setup!$AI$7=\"\",0,INDIRECT(\"'\" & Setup!$AI$7 & \"'!\" & AF267))","v":0},{"$f":"IF(Setup!$AJ$7=\"\",0,INDIRECT(\"'\" & Setup!$AJ$7 & \"'!\" & AF267))","v":0}]
[{"$f":"Planning!A40","v":"I032"},{"$f":"Planning!B40","v":0},{"$f":"Planning!C40","v":0},{"$f":"Planning!D40","v":0},{"$f":"Planning!E40","v":0},{"$f":"Planning!G40","v":0},0,{"v":0,"d":"0.00"},{"v":0,"d":"0.00"},"","",{"$f":"IF(Setup!$AG$7<>\"\",INDIRECT(\"'\" & Setup!$AG$7 & \"'!\" & AD268),0) + IF(Setup!$AG$8<>\"\",INDIRECT(\"'\" & Setup!$AG$8 & \"'!\" & AD268),0) + IF(Setup!$AG$9<>\"\",INDIRECT(\"'\" & Setup!$AG$9 & \"'!\" & AD268),0) + IF(Setup!$AG$10<>\"\",INDIRECT(\"'\" & Setup!$AG$10 & \"'!\" & AD268),0) + IF(Setup!$AG$11<>\"\",INDIRECT(\"'\" & Setup!$AG$11 & \"'!\" & AD268),0) + IF(Setup!$AG$12<>\"\",INDIRECT(\"'\" & Setup!$AG$12 & \"'!\" & AD268),0)","v":{"v":0,"d":"0.00"}},{"$f":"IF(Setup!$AG$7<>\"\",INDIRECT(\"'\" & Setup!$AG$7 & \"'!\" & AE268),0) + IF(Setup!$AG$8<>\"\",INDIRECT(\"'\" & Setup!$AG$8 & \"'!\" & AE268),0) + IF(Setup!$AG$9<>\"\",INDIRECT(\"'\" & Setup!$AG$9 & \"'!\" & AE268),0) + IF(Setup!$AG$10<>\"\",INDIRECT(\"'\" & Setup!$AG$10 & \"'!\" & AE268),0) + IF(Setup!$AG$11<>\"\",INDIRECT(\"'\" & Setup!$AG$11 & \"'!\" & AE268),0) + IF(Setup!$AG$12<>\"\",INDIRECT(\"'\" & Setup!$AG$12 & \"'!\" & AE268),0)","v":{"v":0,"d":"0.00"}},"","",{"$f":"IF(Setup!$AH$7<>\"\",INDIRECT(\"'\" & Setup!$AH$7 & \"'!\" & AD268),0) + IF(Setup!$AH$8<>\"\",INDIRECT(\"'\" & Setup!$AH$8 & \"'!\" & AD268),0) + IF(Setup!$AH$9<>\"\",INDIRECT(\"'\" & Setup!$AH$9 & \"'!\" & AD268),0) + IF(Setup!$AH$10<>\"\",INDIRECT(\"'\" & Setup!$AH$10 & \"'!\" & AD268),0) + IF(Setup!$AH$11<>\"\",INDIRECT(\"'\" & Setup!$AH$11 & \"'!\" & AD268),0) + IF(Setup!$AH$12<>\"\",INDIRECT(\"'\" & Setup!$AH$12 & \"'!\" & AD268),0)","v":{"v":0,"d":"0.00"}},{"$f":"IF(Setup!$AH$7<>\"\",INDIRECT(\"'\" & Setup!$AH$7 & \"'!\" & AE268),0) + IF(Setup!$AH$8<>\"\",INDIRECT(\"'\" & Setup!$AH$8 & \"'!\" & AE268),0) + IF(Setup!$AH$9<>\"\",INDIRECT(\"'\" & Setup!$AH$9 & \"'!\" & AE268),0) + IF(Setup!$AH$10<>\"\",INDIRECT(\"'\" & Setup!$AH$10 & \"'!\" & AE268),0) + IF(Setup!$AH$11<>\"\",INDIRECT(\"'\" & Setup!$AH$11 & \"'!\" & AE268),0) + IF(Setup!$AH$12<>\"\",INDIRECT(\"'\" & Setup!$AH$12 & \"'!\" & AE268),0)","v":{"v":0,"d":"0.00"}},"","",{"$f":"IF(Setup!$AI$7<>\"\",INDIRECT(\"'\" & Setup!$AI$7 & \"'!\" & AD268),0) + IF(Setup!$AI$8<>\"\",INDIRECT(\"'\" & Setup!$AI$8 & \"'!\" & AD268),0) + IF(Setup!$AI$9<>\"\",INDIRECT(\"'\" & Setup!$AI$9 & \"'!\" & AD268),0) + IF(Setup!$AI$10<>\"\",INDIRECT(\"'\" & Setup!$AI$10 & \"'!\" & AD268),0) + IF(Setup!$AI$11<>\"\",INDIRECT(\"'\" & Setup!$AI$11 & \"'!\" & AD268),0) + IF(Setup!$AI$12<>\"\",INDIRECT(\"'\" & Setup!$AI$12 & \"'!\" & AD268),0)","v":{"v":0,"d":"0.00"}},{"$f":"IF(Setup!$AI$7<>\"\",INDIRECT(\"'\" & Setup!$AI$7 & \"'!\" & AE268),0) + IF(Setup!$AI$8<>\"\",INDIRECT(\"'\" & Setup!$AI$8 & \"'!\" & AE268),0) + IF(Setup!$AI$9<>\"\",INDIRECT(\"'\" & Setup!$AI$9 & \"'!\" & AE268),0) + IF(Setup!$AI$10<>\"\",INDIRECT(\"'\" & Setup!$AI$10 & \"'!\" & AE268),0) + IF(Setup!$AI$11<>\"\",INDIRECT(\"'\" & Setup!$AI$11 & \"'!\" & AE268),0) + IF(Setup!$AI$12<>\"\",INDIRECT(\"'\" & Setup!$AI$12 & \"'!\" & AE268),0)","v":{"v":0,"d":"0.00"}},"","",{"$f":"IF(Setup!$AJ$7<>\"\",INDIRECT(\"'\" & Setup!$AJ$7 & \"'!\" & AD268),0) + IF(Setup!$AJ$8<>\"\",INDIRECT(\"'\" & Setup!$AJ$8 & \"'!\" & AD268),0) + IF(Setup!$AJ$9<>\"\",INDIRECT(\"'\" & Setup!$AJ$9 & \"'!\" & AD268),0) + IF(Setup!$AJ$10<>\"\",INDIRECT(\"'\" & Setup!$AJ$10 & \"'!\" & AD268),0) + IF(Setup!$AJ$11<>\"\",INDIRECT(\"'\" & Setup!$AJ$11 & \"'!\" & AD268),0) + IF(Setup!$AJ$12<>\"\",INDIRECT(\"'\" & Setup!$AJ$12 & \"'!\" & AD268),0)","v":0},{"$f":"IF(Setup!$AJ$7<>\"\",INDIRECT(\"'\" & Setup!$AJ$7 & \"'!\" & AE268),0) + IF(Setup!$AJ$8<>\"\",INDIRECT(\"'\" & Setup!$AJ$8 & \"'!\" & AE268),0) + IF(Setup!$AJ$9<>\"\",INDIRECT(\"'\" & Setup!$AJ$9 & \"'!\" & AE268),0) + IF(Setup!$AJ$10<>\"\",INDIRECT(\"'\" & Setup!$AJ$10 & \"'!\" & AE268),0) + IF(Setup!$AJ$11<>\"\",INDIRECT(\"'\" & Setup!$AJ$11 & \"'!\" & AE268),0) + IF(Setup!$AJ$12<>\"\",INDIRECT(\"'\" & Setup!$AJ$12 & \"'!\" & AE268),0)","v":0},"","",{"$f":"Planning!H40","v":0},"00","M56","O56","N56",null,null,{"$f":"IF(Setup!$AG$7<>\"\",INDIRECT(\"'\" & Setup!$AG$7 & \"'!\" & AF268),0) + IF(Setup!$AG$8<>\"\",INDIRECT(\"'\" & Setup!$AG$8 & \"'!\" & AF268),0) + IF(Setup!$AG$9<>\"\",INDIRECT(\"'\" & Setup!$AG$9 & \"'!\" & AF268),0) + IF(Setup!$AG$10<>\"\",INDIRECT(\"'\" & Setup!$AG$10 & \"'!\" & AF268),0) + IF(Setup!$AG$11<>\"\",INDIRECT(\"'\" & Setup!$AG$11 & \"'!\" & AF268),0) + IF(Setup!$AG$12<>\"\",INDIRECT(\"'\" & Setup!$AG$12 & \"'!\" & AF268),0)","v":0},{"$f":"IF(Setup!$AH$7<>\"\",INDIRECT(\"'\" & Setup!$AH$7 & \"'!\" & AF268),0) + IF(Setup!$AH$8<>\"\",INDIRECT(\"'\" & Setup!$AH$8 & \"'!\" & AF268),0) + IF(Setup!$AH$9<>\"\",INDIRECT(\"'\" & Setup!$AH$9 & \"'!\" & AF268),0) + IF(Setup!$AH$10<>\"\",INDIRECT(\"'\" & Setup!$AH$10 & \"'!\" & AF268),0) + IF(Setup!$AH$11<>\"\",INDIRECT(\"'\" & Setup!$AH$11 & \"'!\" & AF268),0) + IF(Setup!$AH$12<>\"\",INDIRECT(\"'\" & Setup!$AH$12 & \"'!\" & AF268),0)","v":0},{"$f":"IF(Setup!$AI$7<>\"\",INDIRECT(\"'\" & Setup!$AI$7 & \"'!\" & AF268),0) + IF(Setup!$AI$8<>\"\",INDIRECT(\"'\" & Setup!$AI$8 & \"'!\" & AF268),0) + IF(Setup!$AI$9<>\"\",INDIRECT(\"'\" & Setup!$AI$9 & \"'!\" & AF268),0) + IF(Setup!$AI$10<>\"\",INDIRECT(\"'\" & Setup!$AI$10 & \"'!\" & AF268),0) + IF(Setup!$AI$11<>\"\",INDIRECT(\"'\" & Setup!$AI$11 & \"'!\" & AF268),0) + IF(Setup!$AI$12<>\"\",INDIRECT(\"'\" & Setup!$AI$12 & \"'!\" & AF268),0)","v":0},{"$f":"IF(Setup!$AJ$7<>\"\",INDIRECT(\"'\" & Setup!$AJ$7 & \"'!\" & AF268),0) + IF(Setup!$AJ$8<>\"\",INDIRECT(\"'\" & Setup!$AJ$8 & \"'!\" & AF268),0) + IF(Setup!$AJ$9<>\"\",INDIRECT(\"'\" & Setup!$AJ$9 & \"'!\" & AF268),0) + IF(Setup!$AJ$10<>\"\",INDIRECT(\"'\" & Setup!$AJ$10 & \"'!\" & AF268),0) + IF(Setup!$AJ$11<>\"\",INDIRECT(\"'\" & Setup!$AJ$11 & \"'!\" & AF268),0) + IF(Setup!$AJ$12<>\"\",INDIRECT(\"'\" & Setup!$AJ$12 & \"'!\" & AF268),0)","v":0},null,"",{"$nulls":30},0,{"$f":"IF(Setup!$AH$7=\"\",0,INDIRECT(\"'\" & Setup!$AH$7 & \"'!\" & AF268))","v":0},{"$f":"IF(Setup!$AI$7=\"\",0,INDIRECT(\"'\" & Setup!$AI$7 & \"'!\" & AF268))","v":0},{"$f":"IF(Setup!$AJ$7=\"\",0,INDIRECT(\"'\" & Setup!$AJ$7 & \"'!\" & AF268))","v":0}]
[{"$f":"Planning!A41","v":"I033"},{"$f":"Planning!B41","v":0},{"$f":"Planning!C41","v":0},{"$f":"Planning!D41","v":0},{"$f":"Planning!E41","v":0},{"$f":"Planning!G41","v":0},0,{"v":0,"d":"0.00"},{"v":0,"d":"0.00"},"",{"$f":"IF($AN269 = ExcluirDelPLogro,\"\",IF(AND(H269=0,I269=0),\"\",J269))","v":""},{"$f":"IF(Setup!$AG$7<>\"\",INDIRECT(\"'\" & Setup!$AG$7 & \"'!\" & AD269),0) + IF(Setup!$AG$8<>\"\",INDIRECT(\"'\" & Setup!$AG$8 & \"'!\" & AD269),0) + IF(Setup!$AG$9<>\"\",INDIRECT(\"'\" & Setup!$AG$9 & \"'!\" & AD269),0) + IF(Setup!$AG$10<>\"\",INDIRECT(\"'\" & Setup!$AG$10 & \"'!\" & AD269),0) + IF(Setup!$AG$11<>\"\",INDIRECT(\"'\" & Setup!$AG$11 & \"'!\" & AD269),0) + IF(Setup!$AG$12<>\"\",INDIRECT(\"'\" & Setup!$AG$12 & \"'!\" & AD269),0)","v":{"v":0,"d":"0.00"}},{"$f":"IF(Setup!$AG$7<>\"\",INDIRECT(\"'\" & Setup!$AG$7 & \"'!\" & AE269),0) + IF(Setup!$AG$8<>\"\",INDIRECT(\"'\" & Setup!$AG$8 & \"'!\" & AE269),0) + IF(Setup!$AG$9<>\"\",INDIRECT(\"'\" & Setup!$AG$9 & \"'!\" & AE269),0) + IF(Setup!$AG$10<>\"\",INDIRECT(\"'\" & Setup!$AG$10 & \"'!\" & AE269),0) + IF(Setup!$AG$11<>\"\",INDIRECT(\"'\" & Setup!$AG$11 & \"'!\" & AE269),0) + IF(Setup!$AG$12<>\"\",INDIRECT(\"'\" & Setup!$AG$12 & \"'!\" & AE269),0)","v":{"v":0,"d":"0.00"}},"",{"$f":"IF($AN269=ExcluirDelPLogro,\"\",IF(AND(L269=0,M269=0),\"\",N269))","v":""},{"$f":"IF(Setup!$AH$7<>\"\",INDIRECT(\"'\" & Setup!$AH$7 & \"'!\" & AD269),0) + IF(Setup!$AH$8<>\"\",INDIRECT(\"'\" & Setup!$AH$8 & \"'!\" & AD269),0) + IF(Setup!$AH$9<>\"\",INDIRECT(\"'\" & Setup!$AH$9 & \"'!\" & AD269),0) + IF(Setup!$AH$10<>\"\",INDIRECT(\"'\" & Setup!$AH$10 & \"'!\" & AD269),0) + IF(Setup!$AH$11<>\"\",INDIRECT(\"'\" & Setup!$AH$11 & \"'!\" & AD269),0) + IF(Setup!$AH$12<>\"\",INDIRECT(\"'\" & Setup!$AH$12 & \"'!\" & AD269),0)","v":{"v":0,"d":"0.00"}},{"$f":"IF(Setup!$AH$7<>\"\",INDIRECT(\"'\" & Setup!$AH$7 & \"'!\" & AE269),0) + IF(Setup!$AH$8<>\"\",INDIRECT(\"'\" & Setup!$AH$8 & \"'!\" & AE269),0) + IF(Setup!$AH$9<>\"\",INDIRECT(\"'\" & Setup!$AH$9 & \"'!\" & AE269),0) + IF(Setup!$AH$10<>\"\",INDIRECT(\"'\" & Setup!$AH$10 & \"'!\" & AE269),0) + IF(Setup!$AH$11<>\"\",INDIRECT(\"'\" & Setup!$AH$11 & \"'!\" & AE269),0) + IF(Setup!$AH$12<>\"\",INDIRECT(\"'\" & Setup!$AH$12 & \"'!\" & AE269),0)","v":{"v":0,"d":"0.00"}},"",{"$f":"IF($AN269=ExcluirDelPLogro,\"\",IF(AND(P269=0,Q269=0),\"\",R269))","v":""},{"$f":"IF(Setup!$AI$7<>\"\",INDIRECT(\"'\" & Setup!$AI$7 & \"'!\" & AD269),0) + IF(Setup!$AI$8<>\"\",INDIRECT(\"'\" & Setup!$AI$8 & \"'!\" & AD269),0) + IF(Setup!$AI$9<>\"\",INDIRECT(\"'\" & Setup!$AI$9 & \"'!\" & AD269),0) + IF(Setup!$AI$10<>\"\",INDIRECT(\"'\" & Setup!$AI$10 & \"'!\" & AD269),0) + IF(Setup!$AI$11<>\"\",INDIRECT(\"'\" & Setup!$AI$11 & \"'!\" & AD269),0) + IF(Setup!$AI$12<>\"\",INDIRECT(\"'\" & Setup!$AI$12 & \"'!\" & AD269),0)","v":{"v":0,"d":"0.00"}},{"$f":"IF(Setup!$AI$7<>\"\",INDIRECT(\"'\" & Setup!$AI$7 & \"'!\" & AE269),0) + IF(Setup!$AI$8<>\"\",INDIRECT(\"'\" & Setup!$AI$8 & \"'!\" & AE269),0) + IF(Setup!$AI$9<>\"\",INDIRECT(\"'\" & Setup!$AI$9 & \"'!\" & AE269),0) + IF(Setup!$AI$10<>\"\",INDIRECT(\"'\" & Setup!$AI$10 & \"'!\" & AE269),0) + IF(Setup!$AI$11<>\"\",INDIRECT(\"'\" & Setup!$AI$11 & \"'!\" & AE269),0) + IF(Setup!$AI$12<>\"\",INDIRECT(\"'\" & Setup!$AI$12 & \"'!\" & AE269),0)","v":{"v":0,"d":"0.00"}},"",{"$f":"IF($AN269=ExcluirDelPLogro,\"\",IF(AND(T269=0,U269=0),\"\",V269))","v":""},{"$f":"IF(Setup!$AJ$7<>\"\",INDIRECT(\"'\" & Setup!$AJ$7 & \"'!\" & AD269),0) + IF(Setup!$AJ$8<>\"\",INDIRECT(\"'\" & Setup!$AJ$8 & \"'!\" & AD269),0) + IF(Setup!$AJ$9<>\"\",INDIRECT(\"'\" & Setup!$AJ$9 & \"'!\" & AD269),0) + IF(Setup!$AJ$10<>\"\",INDIRECT(\"'\" & Setup!$AJ$10 & \"'!\" & AD269),0) + IF(Setup!$AJ$11<>\"\",INDIRECT(\"'\" & Setup!$AJ$11 & \"'!\" & AD269),0) + IF(Setup!$AJ$12<>\"\",INDIRECT(\"'\" & Setup!$AJ$12 & \"'!\" & AD269),0)","v":0},{"$f":"IF(Setup!$AJ$7<>\"\",INDIRECT(\"'\" & Setup!$AJ$7 & \"'!\" & AE269),0) + IF(Setup!$AJ$8<>\"\",INDIRECT(\"'\" & Setup!$AJ$8 & \"'!\" & AE269),0) + IF(Setup!$AJ$9<>\"\",INDIRECT(\"'\" & Setup!$AJ$9 & \"'!\" & AE269),0) + IF(Setup!$AJ$10<>\"\",INDIRECT(\"'\" & Setup!$AJ$10 & \"'!\" & AE269),0) + IF(Setup!$AJ$11<>\"\",INDIRECT(\"'\" & Setup!$AJ$11 & \"'!\" & AE269),0) + IF(Setup!$AJ$12<>\"\",INDIRECT(\"'\" & Setup!$AJ$12 & \"'!\" & AE269),0)","v":0},"",{"$f":"IF($AN269=ExcluirDelPLogro,\"\",IF(AND(X269=0,Y269=0),\"\",Z269))","v":""},{"$f":"Planning!H41","v":0},"00","M57","O57","N57",null,null,{"$f":"IF(Setup!$AG$7<>\"\",INDIRECT(\"'\" & Setup!$AG$7 & \"'!\" & AF269),0) + IF(Setup!$AG$8<>\"\",INDIRECT(\"'\" & Setup!$AG$8 & \"'!\" & AF269),0) + IF(Setup!$AG$9<>\"\",INDIRECT(\"'\" & Setup!$AG$9 & \"'!\" & AF269),0) + IF(Setup!$AG$10<>\"\",INDIRECT(\"'\" & Setup!$AG$10 & \"'!\" & AF269),0) + IF(Setup!$AG$11<>\"\",INDIRECT(\"'\" & Setup!$AG$11 & \"'!\" & AF269),0) + IF(Setup!$AG$12<>\"\",INDIRECT(\"'\" & Setup!$AG$12 & \"'!\" & AF269),0)","v":0},{"$f":"IF(Setup!$AH$7<>\"\",INDIRECT(\"'\" & Setup!$AH$7 & \"'!\" & AF269),0) + IF(Setup!$AH$8<>\"\",INDIRECT(\"'\" & Setup!$AH$8 & \"'!\" & AF269),0) + IF(Setup!$AH$9<>\"\",INDIRECT(\"'\" & Setup!$AH$9 & \"'!\" & AF269),0) + IF(Setup!$AH$10<>\"\",INDIRECT(\"'\" & Setup!$AH$10 & \"'!\" & AF269),0) + IF(Setup!$AH$11<>\"\",INDIRECT(\"'\" & Setup!$AH$11 & \"'!\" & AF269),0) + IF(Setup!$AH$12<>\"\",INDIRECT(\"'\" & Setup!$AH$12 & \"'!\" & AF269),0)","v":0},{"$f":"IF(Setup!$AI$7<>\"\",INDIRECT(\"'\" & Setup!$AI$7 & \"'!\" & AF269),0) + IF(Setup!$AI$8<>\"\",INDIRECT(\"'\" & Setup!$AI$8 & \"'!\" & AF269),0) + IF(Setup!$AI$9<>\"\",INDIRECT(\"'\" & Setup!$AI$9 & \"'!\" & AF269),0) + IF(Setup!$AI$10<>\"\",INDIRECT(\"'\" & Setup!$AI$10 & \"'!\" & AF269),0) + IF(Setup!$AI$11<>\"\",INDIRECT(\"'\" & Setup!$AI$11 & \"'!\" & AF269),0) + IF(Setup!$AI$12<>\"\",INDIRECT(\"'\" & Setup!$AI$12 & \"'!\" & AF269),0)","v":0},{"$f":"IF(Setup!$AJ$7<>\"\",INDIRECT(\"'\" & Setup!$AJ$7 & \"'!\" & AF269),0) + IF(Setup!$AJ$8<>\"\",INDIRECT(\"'\" & Setup!$AJ$8 & \"'!\" & AF269),0) + IF(Setup!$AJ$9<>\"\",INDIRECT(\"'\" & Setup!$AJ$9 & \"'!\" & AF269),0) + IF(Setup!$AJ$10<>\"\",INDIRECT(\"'\" & Setup!$AJ$10 & \"'!\" & AF269),0) + IF(Setup!$AJ$11<>\"\",INDIRECT(\"'\" & Setup!$AJ$11 & \"'!\" & AF269),0) + IF(Setup!$AJ$12<>\"\",INDIRECT(\"'\" & Setup!$AJ$12 & \"'!\" & AF269),0)","v":0},null,"",{"$nulls":30},0,{"$f":"IF(Setup!$AH$7=\"\",0,INDIRECT(\"'\" & Setup!$AH$7 & \"'!\" & AF269))","v":0},{"$f":"IF(Setup!$AI$7=\"\",0,INDIRECT(\"'\" & Setup!$AI$7 & \"'!\" & AF269))","v":0},{"$f":"IF(Setup!$AJ$7=\"\",0,INDIRECT(\"'\" & Setup!$AJ$7 & \"'!\" & AF269))","v":0}]
[{"$f":"Planning!A42","v":"I034"},{"$f":"Planning!B42","v":0},{"$f":"Planning!C42","v":0},{"$f":"Planning!D42","v":0},{"$f":"Planning!E42","v":0},{"$f":"Planning!G42","v":0},0,{"v":0,"d":"0.00"},{"v":0,"d":"0.00"},"","",{"$f":"IF(Setup!$AG$7<>\"\",INDIRECT(\"'\" & Setup!$AG$7 & \"'!\" & AD270),0) + IF(Setup!$AG$8<>\"\",INDIRECT(\"'\" & Setup!$AG$8 & \"'!\" & AD270),0) + IF(Setup!$AG$9<>\"\",INDIRECT(\"'\" & Setup!$AG$9 & \"'!\" & AD270),0) + IF(Setup!$AG$10<>\"\",INDIRECT(\"'\" & Setup!$AG$10 & \"'!\" & AD270),0) + IF(Setup!$AG$11<>\"\",INDIRECT(\"'\" & Setup!$AG$11 & \"'!\" & AD270),0) + IF(Setup!$AG$12<>\"\",INDIRECT(\"'\" & Setup!$AG$12 & \"'!\" & AD270),0)","v":{"v":0,"d":"0.00"}},{"$f":"IF(Setup!$AG$7<>\"\",INDIRECT(\"'\" & Setup!$AG$7 & \"'!\" & AE270),0) + IF(Setup!$AG$8<>\"\",INDIRECT(\"'\" & Setup!$AG$8 & \"'!\" & AE270),0) + IF(Setup!$AG$9<>\"\",INDIRECT(\"'\" & Setup!$AG$9 & \"'!\" & AE270),0) + IF(Setup!$AG$10<>\"\",INDIRECT(\"'\" & Setup!$AG$10 & \"'!\" & AE270),0) + IF(Setup!$AG$11<>\"\",INDIRECT(\"'\" & Setup!$AG$11 & \"'!\" & AE270),0) + IF(Setup!$AG$12<>\"\",INDIRECT(\"'\" & Setup!$AG$12 & \"'!\" & AE270),0)","v":{"v":0,"d":"0.00"}},"","",{"$f":"IF(Setup!$AH$7<>\"\",INDIRECT(\"'\" & Setup!$AH$7 & \"'!\" & AD270),0) + IF(Setup!$AH$8<>\"\",INDIRECT(\"'\" & Setup!$AH$8 & \"'!\" & AD270),0) + IF(Setup!$AH$9<>\"\",INDIRECT(\"'\" & Setup!$AH$9 & \"'!\" & AD270),0) + IF(Setup!$AH$10<>\"\",INDIRECT(\"'\" & Setup!$AH$10 & \"'!\" & AD270),0) + IF(Setup!$AH$11<>\"\",INDIRECT(\"'\" & Setup!$AH$11 & \"'!\" & AD270),0) + IF(Setup!$AH$12<>\"\",INDIRECT(\"'\" & Setup!$AH$12 & \"'!\" & AD270),0)","v":{"v":0,"d":"0.00"}},{"$f":"IF(Setup!$AH$7<>\"\",INDIRECT(\"'\" & Setup!$AH$7 & \"'!\" & AE270),0) + IF(Setup!$AH$8<>\"\",INDIRECT(\"'\" & Setup!$AH$8 & \"'!\" & AE270),0) + IF(Setup!$AH$9<>\"\",INDIRECT(\"'\" & Setup!$AH$9 & \"'!\" & AE270),0) + IF(Setup!$AH$10<>\"\",INDIRECT(\"'\" & Setup!$AH$10 & \"'!\" & AE270),0) + IF(Setup!$AH$11<>\"\",INDIRECT(\"'\" & Setup!$AH$11 & \"'!\" & AE270),0) + IF(Setup!$AH$12<>\"\",INDIRECT(\"'\" & Setup!$AH$12 & \"'!\" & AE270),0)","v":{"v":0,"d":"0.00"}},"","",{"$f":"IF(Setup!$AI$7<>\"\",INDIRECT(\"'\" & Setup!$AI$7 & \"'!\" & AD270),0) + IF(Setup!$AI$8<>\"\",INDIRECT(\"'\" & Setup!$AI$8 & \"'!\" & AD270),0) + IF(Setup!$AI$9<>\"\",INDIRECT(\"'\" & Setup!$AI$9 & \"'!\" & AD270),0) + IF(Setup!$AI$10<>\"\",INDIRECT(\"'\" & Setup!$AI$10 & \"'!\" & AD270),0) + IF(Setup!$AI$11<>\"\",INDIRECT(\"'\" & Setup!$AI$11 & \"'!\" & AD270),0) + IF(Setup!$AI$12<>\"\",INDIRECT(\"'\" & Setup!$AI$12 & \"'!\" & AD270),0)","v":{"v":0,"d":"0.00"}},{"$f":"IF(Setup!$AI$7<>\"\",INDIRECT(\"'\" & Setup!$AI$7 & \"'!\" & AE270),0) + IF(Setup!$AI$8<>\"\",INDIRECT(\"'\" & Setup!$AI$8 & \"'!\" & AE270),0) + IF(Setup!$AI$9<>\"\",INDIRECT(\"'\" & Setup!$AI$9 & \"'!\" & AE270),0) + IF(Setup!$AI$10<>\"\",INDIRECT(\"'\" & Setup!$AI$10 & \"'!\" & AE270),0) + IF(Setup!$AI$11<>\"\",INDIRECT(\"'\" & Setup!$AI$11 & \"'!\" & AE270),0) + IF(Setup!$AI$12<>\"\",INDIRECT(\"'\" & Setup!$AI$12 & \"'!\" & AE270),0)","v":{"v":0,"d":"0.00"}},"","",{"$f":"IF(Setup!$AJ$7<>\"\",INDIRECT(\"'\" & Setup!$AJ$7 & \"'!\" & AD270),0) + IF(Setup!$AJ$8<>\"\",INDIRECT(\"'\" & Setup!$AJ$8 & \"'!\" & AD270),0) + IF(Setup!$AJ$9<>\"\",INDIRECT(\"'\" & Setup!$AJ$9 & \"'!\" & AD270),0) + IF(Setup!$AJ$10<>\"\",INDIRECT(\"'\" & Setup!$AJ$10 & \"'!\" & AD270),0) + IF(Setup!$AJ$11<>\"\",INDIRECT(\"'\" & Setup!$AJ$11 & \"'!\" & AD270),0) + IF(Setup!$AJ$12<>\"\",INDIRECT(\"'\" & Setup!$AJ$12 & \"'!\" & AD270),0)","v":0},{"$f":"IF(Setup!$AJ$7<>\"\",INDIRECT(\"'\" & Setup!$AJ$7 & \"'!\" & AE270),0) + IF(Setup!$AJ$8<>\"\",INDIRECT(\"'\" & Setup!$AJ$8 & \"'!\" & AE270),0) + IF(Setup!$AJ$9<>\"\",INDIRECT(\"'\" & Setup!$AJ$9 & \"'!\" & AE270),0) + IF(Setup!$AJ$10<>\"\",INDIRECT(\"'\" & Setup!$AJ$10 & \"'!\" & AE270),0) + IF(Setup!$AJ$11<>\"\",INDIRECT(\"'\" & Setup!$AJ$11 & \"'!\" & AE270),0) + IF(Setup!$AJ$12<>\"\",INDIRECT(\"'\" & Setup!$AJ$12 & \"'!\" & AE270),0)","v":0},"","",{"$f":"Planning!H42","v":0},"00","M58","O58","N58",null,null,{"$f":"IF(Setup!$AG$7<>\"\",INDIRECT(\"'\" & Setup!$AG$7 & \"'!\" & AF270),0) + IF(Setup!$AG$8<>\"\",INDIRECT(\"'\" & Setup!$AG$8 & \"'!\" & AF270),0) + IF(Setup!$AG$9<>\"\",INDIRECT(\"'\" & Setup!$AG$9 & \"'!\" & AF270),0) + IF(Setup!$AG$10<>\"\",INDIRECT(\"'\" & Setup!$AG$10 & \"'!\" & AF270),0) + IF(Setup!$AG$11<>\"\",INDIRECT(\"'\" & Setup!$AG$11 & \"'!\" & AF270),0) + IF(Setup!$AG$12<>\"\",INDIRECT(\"'\" & Setup!$AG$12 & \"'!\" & AF270),0)","v":0},{"$f":"IF(Setup!$AH$7<>\"\",INDIRECT(\"'\" & Setup!$AH$7 & \"'!\" & AF270),0) + IF(Setup!$AH$8<>\"\",INDIRECT(\"'\" & Setup!$AH$8 & \"'!\" & AF270),0) + IF(Setup!$AH$9<>\"\",INDIRECT(\"'\" & Setup!$AH$9 & \"'!\" & AF270),0) + IF(Setup!$AH$10<>\"\",INDIRECT(\"'\" & Setup!$AH$10 & \"'!\" & AF270),0) + IF(Setup!$AH$11<>\"\",INDIRECT(\"'\" & Setup!$AH$11 & \"'!\" & AF270),0) + IF(Setup!$AH$12<>\"\",INDIRECT(\"'\" & Setup!$AH$12 & \"'!\" & AF270),0)","v":0},{"$f":"IF(Setup!$AI$7<>\"\",INDIRECT(\"'\" & Setup!$AI$7 & \"'!\" & AF270),0) + IF(Setup!$AI$8<>\"\",INDIRECT(\"'\" & Setup!$AI$8 & \"'!\" & AF270),0) + IF(Setup!$AI$9<>\"\",INDIRECT(\"'\" & Setup!$AI$9 & \"'!\" & AF270),0) + IF(Setup!$AI$10<>\"\",INDIRECT(\"'\" & Setup!$AI$10 & \"'!\" & AF270),0) + IF(Setup!$AI$11<>\"\",INDIRECT(\"'\" & Setup!$AI$11 & \"'!\" & AF270),0) + IF(Setup!$AI$12<>\"\",INDIRECT(\"'\" & Setup!$AI$12 & \"'!\" & AF270),0)","v":0},{"$f":"IF(Setup!$AJ$7<>\"\",INDIRECT(\"'\" & Setup!$AJ$7 & \"'!\" & AF270),0) + IF(Setup!$AJ$8<>\"\",INDIRECT(\"'\" & Setup!$AJ$8 & \"'!\" & AF270),0) + IF(Setup!$AJ$9<>\"\",INDIRECT(\"'\" & Setup!$AJ$9 & \"'!\" & AF270),0) + IF(Setup!$AJ$10<>\"\",INDIRECT(\"'\" & Setup!$AJ$10 & \"'!\" & AF270),0) + IF(Setup!$AJ$11<>\"\",INDIRECT(\"'\" & Setup!$AJ$11 & \"'!\" & AF270),0) + IF(Setup!$AJ$12<>\"\",INDIRECT(\"'\" & Setup!$AJ$12 & \"'!\" & AF270),0)","v":0},null,"",{"$nulls":30},0,{"$f":"IF(Setup!$AH$7=\"\",0,INDIRECT(\"'\" & Setup!$AH$7 & \"'!\" & AF270))","v":0},{"$f":"IF(Setup!$AI$7=\"\",0,INDIRECT(\"'\" & Setup!$AI$7 & \"'!\" & AF270))","v":0},{"$f":"IF(Setup!$AJ$7=\"\",0,INDIRECT(\"'\" & Setup!$AJ$7 & \"'!\" & AF270))","v":0}]
[{"$f":"Planning!A43","v":"I035"},{"$f":"Planning!B43","v":0},{"$f":"Planning!C43","v":0},{"$f":"Planning!D43","v":0},{"$f":"Planning!E43","v":0},{"$f":"Planning!G43","v":0},0,{"v":0,"d":"0.00"},{"v":0,"d":"0.00"},"","",{"$f":"IF(Setup!$AG$7<>\"\",INDIRECT(\"'\" & Setup!$AG$7 & \"'!\" & AD271),0) + IF(Setup!$AG$8<>\"\",INDIRECT(\"'\" & Setup!$AG$8 & \"'!\" & AD271),0) + IF(Setup!$AG$9<>\"\",INDIRECT(\"'\" & Setup!$AG$9 & \"'!\" & AD271),0) + IF(Setup!$AG$10<>\"\",INDIRECT(\"'\" & Setup!$AG$10 & \"'!\" & AD271),0) + IF(Setup!$AG$11<>\"\",INDIRECT(\"'\" & Setup!$AG$11 & \"'!\" & AD271),0) + IF(Setup!$AG$12<>\"\",INDIRECT(\"'\" & Setup!$AG$12 & \"'!\" & AD271),0)","v":{"v":0,"d":"0.00"}},{"$f":"IF(Setup!$AG$7<>\"\",INDIRECT(\"'\" & Setup!$AG$7 & \"'!\" & AE271),0) + IF(Setup!$AG$8<>\"\",INDIRECT(\"'\" & Setup!$AG$8 & \"'!\" & AE271),0) + IF(Setup!$AG$9<>\"\",INDIRECT(\"'\" & Setup!$AG$9 & \"'!\" & AE271),0) + IF(Setup!$AG$10<>\"\",INDIRECT(\"'\" & Setup!$AG$10 & \"'!\" & AE271),0) + IF(Setup!$AG$11<>\"\",INDIRECT(\"'\" & Setup!$AG$11 & \"'!\" & AE271),0) + IF(Setup!$AG$12<>\"\",INDIRECT(\"'\" & Setup!$AG$12 & \"'!\" & AE271),0)","v":{"v":0,"d":"0.00"}},"","",{"$f":"IF(Setup!$AH$7<>\"\",INDIRECT(\"'\" & Setup!$AH$7 & \"'!\" & AD271),0) + IF(Setup!$AH$8<>\"\",INDIRECT(\"'\" & Setup!$AH$8 & \"'!\" & AD271),0) + IF(Setup!$AH$9<>\"\",INDIRECT(\"'\" & Setup!$AH$9 & \"'!\" & AD271),0) + IF(Setup!$AH$10<>\"\",INDIRECT(\"'\" & Setup!$AH$10 & \"'!\" & AD271),0) + IF(Setup!$AH$11<>\"\",INDIRECT(\"'\" & Setup!$AH$11 & \"'!\" & AD271),0) + IF(Setup!$AH$12<>\"\",INDIRECT(\"'\" & Setup!$AH$12 & \"'!\" & AD271),0)","v":{"v":0,"d":"0.00"}},{"$f":"IF(Setup!$AH$7<>\"\",INDIRECT(\"'\" & Setup!$AH$7 & \"'!\" & AE271),0) + IF(Setup!$AH$8<>\"\",INDIRECT(\"'\" & Setup!$AH$8 & \"'!\" & AE271),0) + IF(Setup!$AH$9<>\"\",INDIRECT(\"'\" & Setup!$AH$9 & \"'!\" & AE271),0) + IF(Setup!$AH$10<>\"\",INDIRECT(\"'\" & Setup!$AH$10 & \"'!\" & AE271),0) + IF(Setup!$AH$11<>\"\",INDIRECT(\"'\" & Setup!$AH$11 & \"'!\" & AE271),0) + IF(Setup!$AH$12<>\"\",INDIRECT(\"'\" & Setup!$AH$12 & \"'!\" & AE271),0)","v":{"v":0,"d":"0.00"}},"","",{"$f":"IF(Setup!$AI$7<>\"\",INDIRECT(\"'\" & Setup!$AI$7 & \"'!\" & AD271),0) + IF(Setup!$AI$8<>\"\",INDIRECT(\"'\" & Setup!$AI$8 & \"'!\" & AD271),0) + IF(Setup!$AI$9<>\"\",INDIRECT(\"'\" & Setup!$AI$9 & \"'!\" & AD271),0) + IF(Setup!$AI$10<>\"\",INDIRECT(\"'\" & Setup!$AI$10 & \"'!\" & AD271),0) + IF(Setup!$AI$11<>\"\",INDIRECT(\"'\" & Setup!$AI$11 & \"'!\" & AD271),0) + IF(Setup!$AI$12<>\"\",INDIRECT(\"'\" & Setup!$AI$12 & \"'!\" & AD271),0)","v":{"v":0,"d":"0.00"}},{"$f":"IF(Setup!$AI$7<>\"\",INDIRECT(\"'\" & Setup!$AI$7 & \"'!\" & AE271),0) + IF(Setup!$AI$8<>\"\",INDIRECT(\"'\" & Setup!$AI$8 & \"'!\" & AE271),0) + IF(Setup!$AI$9<>\"\",INDIRECT(\"'\" & Setup!$AI$9 & \"'!\" & AE271),0) + IF(Setup!$AI$10<>\"\",INDIRECT(\"'\" & Setup!$AI$10 & \"'!\" & AE271),0) + IF(Setup!$AI$11<>\"\",INDIRECT(\"'\" & Setup!$AI$11 & \"'!\" & AE271),0) + IF(Setup!$AI$12<>\"\",INDIRECT(\"'\" & Setup!$AI$12 & \"'!\" & AE271),0)","v":{"v":0,"d":"0.00"}},"","",{"$f":"IF(Setup!$AJ$7<>\"\",INDIRECT(\"'\" & Setup!$AJ$7 & \"'!\" & AD271),0) + IF(Setup!$AJ$8<>\"\",INDIRECT(\"'\" & Setup!$AJ$8 & \"'!\" & AD271),0) + IF(Setup!$AJ$9<>\"\",INDIRECT(\"'\" & Setup!$AJ$9 & \"'!\" & AD271),0) + IF(Setup!$AJ$10<>\"\",INDIRECT(\"'\" & Setup!$AJ$10 & \"'!\" & AD271),0) + IF(Setup!$AJ$11<>\"\",INDIRECT(\"'\" & Setup!$AJ$11 & \"'!\" & AD271),0) + IF(Setup!$AJ$12<>\"\",INDIRECT(\"'\" & Setup!$AJ$12 & \"'!\" & AD271),0)","v":0},{"$f":"IF(Setup!$AJ$7<>\"\",INDIRECT(\"'\" & Setup!$AJ$7 & \"'!\" & AE271),0) + IF(Setup!$AJ$8<>\"\",INDIRECT(\"'\" & Setup!$AJ$8 & \"'!\" & AE271),0) + IF(Setup!$AJ$9<>\"\",INDIRECT(\"'\" & Setup!$AJ$9 & \"'!\" & AE271),0) + IF(Setup!$AJ$10<>\"\",INDIRECT(\"'\" & Setup!$AJ$10 & \"'!\" & AE271),0) + IF(Setup!$AJ$11<>\"\",INDIRECT(\"'\" & Setup!$AJ$11 & \"'!\" & AE271),0) + IF(Setup!$AJ$12<>\"\",INDIRECT(\"'\" & Setup!$AJ$12 & \"'!\" & AE271),0)","v":0},"","",{"$f":"Planning!H43","v":0},"00","M59","O59","N59",null,null,{"$f":"IF(Setup!$AG$7<>\"\",INDIRECT(\"'\" & Setup!$AG$7 & \"'!\" & AF271),0) + IF(Setup!$AG$8<>\"\",INDIRECT(\"'\" & Setup!$AG$8 & \"'!\" & AF271),0) + IF(Setup!$AG$9<>\"\",INDIRECT(\"'\" & Setup!$AG$9 & \"'!\" & AF271),0) + IF(Setup!$AG$10<>\"\",INDIRECT(\"'\" & Setup!$AG$10 & \"'!\" & AF271),0) + IF(Setup!$AG$11<>\"\",INDIRECT(\"'\" & Setup!$AG$11 & \"'!\" & AF271),0) + IF(Setup!$AG$12<>\"\",INDIRECT(\"'\" & Setup!$AG$12 & \"'!\" & AF271),0)","v":0},{"$f":"IF(Setup!$AH$7<>\"\",INDIRECT(\"'\" & Setup!$AH$7 & \"'!\" & AF271),0) + IF(Setup!$AH$8<>\"\",INDIRECT(\"'\" & Setup!$AH$8 & \"'!\" & AF271),0) + IF(Setup!$AH$9<>\"\",INDIRECT(\"'\" & Setup!$AH$9 & \"'!\" & AF271),0) + IF(Setup!$AH$10<>\"\",INDIRECT(\"'\" & Setup!$AH$10 & \"'!\" & AF271),0) + IF(Setup!$AH$11<>\"\",INDIRECT(\"'\" & Setup!$AH$11 & \"'!\" & AF271),0) + IF(Setup!$AH$12<>\"\",INDIRECT(\"'\" & Setup!$AH$12 & \"'!\" & AF271),0)","v":0},{"$f":"IF(Setup!$AI$7<>\"\",INDIRECT(\"'\" & Setup!$AI$7 & \"'!\" & AF271),0) + IF(Setup!$AI$8<>\"\",INDIRECT(\"'\" & Setup!$AI$8 & \"'!\" & AF271),0) + IF(Setup!$AI$9<>\"\",INDIRECT(\"'\" & Setup!$AI$9 & \"'!\" & AF271),0) + IF(Setup!$AI$10<>\"\",INDIRECT(\"'\" & Setup!$AI$10 & \"'!\" & AF271),0) + IF(Setup!$AI$11<>\"\",INDIRECT(\"'\" & Setup!$AI$11 & \"'!\" & AF271),0) + IF(Setup!$AI$12<>\"\",INDIRECT(\"'\" & Setup!$AI$12 & \"'!\" & AF271),0)","v":0},{"$f":"IF(Setup!$AJ$7<>\"\",INDIRECT(\"'\" & Setup!$AJ$7 & \"'!\" & AF271),0) + IF(Setup!$AJ$8<>\"\",INDIRECT(\"'\" & Setup!$AJ$8 & \"'!\" & AF271),0) + IF(Setup!$AJ$9<>\"\",INDIRECT(\"'\" & Setup!$AJ$9 & \"'!\" & AF271),0) + IF(Setup!$AJ$10<>\"\",INDIRECT(\"'\" & Setup!$AJ$10 & \"'!\" & AF271),0) + IF(Setup!$AJ$11<>\"\",INDIRECT(\"'\" & Setup!$AJ$11 & \"'!\" & AF271),0) + IF(Setup!$AJ$12<>\"\",INDIRECT(\"'\" & Setup!$AJ$12 & \"'!\" & AF271),0)","v":0},null,"",{"$nulls":30},0,{"$f":"IF(Setup!$AH$7=\"\",0,INDIRECT(\"'\" & Setup!$AH$7 & \"'!\" & AF271))","v":0},{"$f":"IF(Setup!$AI$7=\"\",0,INDIRECT(\"'\" & Setup!$AI$7 & \"'!\" & AF271))","v":0},{"$f":"IF(Setup!$AJ$7=\"\",0,INDIRECT(\"'\" & Setup!$AJ$7 & \"'!\" & AF271))","v":0}]
[{"$f":"Planning!A44","v":"I036"},{"$f":"Planning!B44","v":0},{"$f":"Planning!C44","v":0},{"$f":"Planning!D44","v":0},{"$f":"Planning!E44","v":0},{"$f":"Planning!G44","v":0},0,{"v":0,"d":"0.00"},{"v":0,"d":"0.00"},"","",{"$f":"IF(Setup!$AG$7<>\"\",INDIRECT(\"'\" & Setup!$AG$7 & \"'!\" & AD272),0) + IF(Setup!$AG$8<>\"\",INDIRECT(\"'\" & Setup!$AG$8 & \"'!\" & AD272),0) + IF(Setup!$AG$9<>\"\",INDIRECT(\"'\" & Setup!$AG$9 & \"'!\" & AD272),0) + IF(Setup!$AG$10<>\"\",INDIRECT(\"'\" & Setup!$AG$10 & \"'!\" & AD272),0) + IF(Setup!$AG$11<>\"\",INDIRECT(\"'\" & Setup!$AG$11 & \"'!\" & AD272),0) + IF(Setup!$AG$12<>\"\",INDIRECT(\"'\" & Setup!$AG$12 & \"'!\" & AD272),0)","v":{"v":0,"d":"0.00"}},{"$f":"IF(Setup!$AG$7<>\"\",INDIRECT(\"'\" & Setup!$AG$7 & \"'!\" & AE272),0) + IF(Setup!$AG$8<>\"\",INDIRECT(\"'\" & Setup!$AG$8 & \"'!\" & AE272),0) + IF(Setup!$AG$9<>\"\",INDIRECT(\"'\" & Setup!$AG$9 & \"'!\" & AE272),0) + IF(Setup!$AG$10<>\"\",INDIRECT(\"'\" & Setup!$AG$10 & \"'!\" & AE272),0) + IF(Setup!$AG$11<>\"\",INDIRECT(\"'\" & Setup!$AG$11 & \"'!\" & AE272),0) + IF(Setup!$AG$12<>\"\",INDIRECT(\"'\" & Setup!$AG$12 & \"'!\" & AE272),0)","v":{"v":0,"d":"0.00"}},"","",{"$f":"IF(Setup!$AH$7<>\"\",INDIRECT(\"'\" & Setup!$AH$7 & \"'!\" & AD272),0) + IF(Setup!$AH$8<>\"\",INDIRECT(\"'\" & Setup!$AH$8 & \"'!\" & AD272),0) + IF(Setup!$AH$9<>\"\",INDIRECT(\"'\" & Setup!$AH$9 & \"'!\" & AD272),0) + IF(Setup!$AH$10<>\"\",INDIRECT(\"'\" & Setup!$AH$10 & \"'!\" & AD272),0) + IF(Setup!$AH$11<>\"\",INDIRECT(\"'\" & Setup!$AH$11 & \"'!\" & AD272),0) + IF(Setup!$AH$12<>\"\",INDIRECT(\"'\" & Setup!$AH$12 & \"'!\" & AD272),0)","v":{"v":0,"d":"0.00"}},{"$f":"IF(Setup!$AH$7<>\"\",INDIRECT(\"'\" & Setup!$AH$7 & \"'!\" & AE272),0) + IF(Setup!$AH$8<>\"\",INDIRECT(\"'\" & Setup!$AH$8 & \"'!\" & AE272),0) + IF(Setup!$AH$9<>\"\",INDIRECT(\"'\" & Setup!$AH$9 & \"'!\" & AE272),0) + IF(Setup!$AH$10<>\"\",INDIRECT(\"'\" & Setup!$AH$10 & \"'!\" & AE272),0) + IF(Setup!$AH$11<>\"\",INDIRECT(\"'\" & Setup!$AH$11 & \"'!\" & AE272),0) + IF(Setup!$AH$12<>\"\",INDIRECT(\"'\" & Setup!$AH$12 & \"'!\" & AE272),0)","v":{"v":0,"d":"0.00"}},"","",{"$f":"IF(Setup!$AI$7<>\"\",INDIRECT(\"'\" & Setup!$AI$7 & \"'!\" & AD272),0) + IF(Setup!$AI$8<>\"\",INDIRECT(\"'\" & Setup!$AI$8 & \"'!\" & AD272),0) + IF(Setup!$AI$9<>\"\",INDIRECT(\"'\" & Setup!$AI$9 & \"'!\" & AD272),0) + IF(Setup!$AI$10<>\"\",INDIRECT(\"'\" & Setup!$AI$10 & \"'!\" & AD272),0) + IF(Setup!$AI$11<>\"\",INDIRECT(\"'\" & Setup!$AI$11 & \"'!\" & AD272),0) + IF(Setup!$AI$12<>\"\",INDIRECT(\"'\" & Setup!$AI$12 & \"'!\" & AD272),0)","v":{"v":0,"d":"0.00"}},{"$f":"IF(Setup!$AI$7<>\"\",INDIRECT(\"'\" & Setup!$AI$7 & \"'!\" & AE272),0) + IF(Setup!$AI$8<>\"\",INDIRECT(\"'\" & Setup!$AI$8 & \"'!\" & AE272),0) + IF(Setup!$AI$9<>\"\",INDIRECT(\"'\" & Setup!$AI$9 & \"'!\" & AE272),0) + IF(Setup!$AI$10<>\"\",INDIRECT(\"'\" & Setup!$AI$10 & \"'!\" & AE272),0) + IF(Setup!$AI$11<>\"\",INDIRECT(\"'\" & Setup!$AI$11 & \"'!\" & AE272),0) + IF(Setup!$AI$12<>\"\",INDIRECT(\"'\" & Setup!$AI$12 & \"'!\" & AE272),0)","v":{"v":0,"d":"0.00"}},"","",{"$f":"IF(Setup!$AJ$7<>\"\",INDIRECT(\"'\" & Setup!$AJ$7 & \"'!\" & AD272),0) + IF(Setup!$AJ$8<>\"\",INDIRECT(\"'\" & Setup!$AJ$8 & \"'!\" & AD272),0) + IF(Setup!$AJ$9<>\"\",INDIRECT(\"'\" & Setup!$AJ$9 & \"'!\" & AD272),0) + IF(Setup!$AJ$10<>\"\",INDIRECT(\"'\" & Setup!$AJ$10 & \"'!\" & AD272),0) + IF(Setup!$AJ$11<>\"\",INDIRECT(\"'\" & Setup!$AJ$11 & \"'!\" & AD272),0) + IF(Setup!$AJ$12<>\"\",INDIRECT(\"'\" & Setup!$AJ$12 & \"'!\" & AD272),0)","v":0},{"$f":"IF(Setup!$AJ$7<>\"\",INDIRECT(\"'\" & Setup!$AJ$7 & \"'!\" & AE272),0) + IF(Setup!$AJ$8<>\"\",INDIRECT(\"'\" & Setup!$AJ$8 & \"'!\" & AE272),0) + IF(Setup!$AJ$9<>\"\",INDIRECT(\"'\" & Setup!$AJ$9 & \"'!\" & AE272),0) + IF(Setup!$AJ$10<>\"\",INDIRECT(\"'\" & Setup!$AJ$10 & \"'!\" & AE272),0) + IF(Setup!$AJ$11<>\"\",INDIRECT(\"'\" & Setup!$AJ$11 & \"'!\" & AE272),0) + IF(Setup!$AJ$12<>\"\",INDIRECT(\"'\" & Setup!$AJ$12 & \"'!\" & AE272),0)","v":0},"","",{"$f":"Planning!H44","v":0},"00","M60","O60","N60",null,null,{"$f":"IF(Setup!$AG$7<>\"\",INDIRECT(\"'\" & Setup!$AG$7 & \"'!\" & AF272),0) + IF(Setup!$AG$8<>\"\",INDIRECT(\"'\" & Setup!$AG$8 & \"'!\" & AF272),0) + IF(Setup!$AG$9<>\"\",INDIRECT(\"'\" & Setup!$AG$9 & \"'!\" & AF272),0) + IF(Setup!$AG$10<>\"\",INDIRECT(\"'\" & Setup!$AG$10 & \"'!\" & AF272),0) + IF(Setup!$AG$11<>\"\",INDIRECT(\"'\" & Setup!$AG$11 & \"'!\" & AF272),0) + IF(Setup!$AG$12<>\"\",INDIRECT(\"'\" & Setup!$AG$12 & \"'!\" & AF272),0)","v":0},{"$f":"IF(Setup!$AH$7<>\"\",INDIRECT(\"'\" & Setup!$AH$7 & \"'!\" & AF272),0) + IF(Setup!$AH$8<>\"\",INDIRECT(\"'\" & Setup!$AH$8 & \"'!\" & AF272),0) + IF(Setup!$AH$9<>\"\",INDIRECT(\"'\" & Setup!$AH$9 & \"'!\" & AF272),0) + IF(Setup!$AH$10<>\"\",INDIRECT(\"'\" & Setup!$AH$10 & \"'!\" & AF272),0) + IF(Setup!$AH$11<>\"\",INDIRECT(\"'\" & Setup!$AH$11 & \"'!\" & AF272),0) + IF(Setup!$AH$12<>\"\",INDIRECT(\"'\" & Setup!$AH$12 & \"'!\" & AF272),0)","v":0},{"$f":"IF(Setup!$AI$7<>\"\",INDIRECT(\"'\" & Setup!$AI$7 & \"'!\" & AF272),0) + IF(Setup!$AI$8<>\"\",INDIRECT(\"'\" & Setup!$AI$8 & \"'!\" & AF272),0) + IF(Setup!$AI$9<>\"\",INDIRECT(\"'\" & Setup!$AI$9 & \"'!\" & AF272),0) + IF(Setup!$AI$10<>\"\",INDIRECT(\"'\" & Setup!$AI$10 & \"'!\" & AF272),0) + IF(Setup!$AI$11<>\"\",INDIRECT(\"'\" & Setup!$AI$11 & \"'!\" & AF272),0) + IF(Setup!$AI$12<>\"\",INDIRECT(\"'\" & Setup!$AI$12 & \"'!\" & AF272),0)","v":0},{"$f":"IF(Setup!$AJ$7<>\"\",INDIRECT(\"'\" & Setup!$AJ$7 & \"'!\" & AF272),0) + IF(Setup!$AJ$8<>\"\",INDIRECT(\"'\" & Setup!$AJ$8 & \"'!\" & AF272),0) + IF(Setup!$AJ$9<>\"\",INDIRECT(\"'\" & Setup!$AJ$9 & \"'!\" & AF272),0) + IF(Setup!$AJ$10<>\"\",INDIRECT(\"'\" & Setup!$AJ$10 & \"'!\" & AF272),0) + IF(Setup!$AJ$11<>\"\",INDIRECT(\"'\" & Setup!$AJ$11 & \"'!\" & AF272),0) + IF(Setup!$AJ$12<>\"\",INDIRECT(\"'\" & Setup!$AJ$12 & \"'!\" & AF272),0)","v":0},null,"",{"$nulls":30},0,{"$f":"IF(Setup!$AH$7=\"\",0,INDIRECT(\"'\" & Setup!$AH$7 & \"'!\" & AF272))","v":0},{"$f":"IF(Setup!$AI$7=\"\",0,INDIRECT(\"'\" & Setup!$AI$7 & \"'!\" & AF272))","v":0},{"$f":"IF(Setup!$AJ$7=\"\",0,INDIRECT(\"'\" & Setup!$AJ$7 & \"'!\" & AF272))","v":0}]
[{"$f":"Planning!A45","v":"I037"},{"$f":"Planning!B45","v":0},{"$f":"Planning!C45","v":0},{"$f":"Planning!D45","v":0},{"$f":"Planning!E45","v":0},{"$f":"Planning!G45","v":0},0,{"v":0,"d":"0.00"},{"v":0,"d":"0.00"},"","",{"$f":"IF(Setup!$AG$7<>\"\",INDIRECT(\"'\" & Setup!$AG$7 & \"'!\" & AD273),0) + IF(Setup!$AG$8<>\"\",INDIRECT(\"'\" & Setup!$AG$8 & \"'!\" & AD273),0) + IF(Setup!$AG$9<>\"\",INDIRECT(\"'\" & Setup!$AG$9 & \"'!\" & AD273),0) + IF(Setup!$AG$10<>\"\",INDIRECT(\"'\" & Setup!$AG$10 & \"'!\" & AD273),0) + IF(Setup!$AG$11<>\"\",INDIRECT(\"'\" & Setup!$AG$11 & \"'!\" & AD273),0) + IF(Setup!$AG$12<>\"\",INDIRECT(\"'\" & Setup!$AG$12 & \"'!\" & AD273),0)","v":{"v":0,"d":"0.00"}},{"$f":"IF(Setup!$AG$7<>\"\",INDIRECT(\"'\" & Setup!$AG$7 & \"'!\" & AE273),0) + IF(Setup!$AG$8<>\"\",INDIRECT(\"'\" & Setup!$AG$8 & \"'!\" & AE273),0) + IF(Setup!$AG$9<>\"\",INDIRECT(\"'\" & Setup!$AG$9 & \"'!\" & AE273),0) + IF(Setup!$AG$10<>\"\",INDIRECT(\"'\" & Setup!$AG$10 & \"'!\" & AE273),0) + IF(Setup!$AG$11<>\"\",INDIRECT(\"'\" & Setup!$AG$11 & \"'!\" & AE273),0) + IF(Setup!$AG$12<>\"\",INDIRECT(\"'\" & Setup!$AG$12 & \"'!\" & AE273),0)","v":{"v":0,"d":"0.00"}},"","",{"$f":"IF(Setup!$AH$7<>\"\",INDIRECT(\"'\" & Setup!$AH$7 & \"'!\" & AD273),0) + IF(Setup!$AH$8<>\"\",INDIRECT(\"'\" & Setup!$AH$8 & \"'!\" & AD273),0) + IF(Setup!$AH$9<>\"\",INDIRECT(\"'\" & Setup!$AH$9 & \"'!\" & AD273),0) + IF(Setup!$AH$10<>\"\",INDIRECT(\"'\" & Setup!$AH$10 & \"'!\" & AD273),0) + IF(Setup!$AH$11<>\"\",INDIRECT(\"'\" & Setup!$AH$11 & \"'!\" & AD273),0) + IF(Setup!$AH$12<>\"\",INDIRECT(\"'\" & Setup!$AH$12 & \"'!\" & AD273),0)","v":{"v":0,"d":"0.00"}},{"$f":"IF(Setup!$AH$7<>\"\",INDIRECT(\"'\" & Setup!$AH$7 & \"'!\" & AE273),0) + IF(Setup!$AH$8<>\"\",INDIRECT(\"'\" & Setup!$AH$8 & \"'!\" & AE273),0) + IF(Setup!$AH$9<>\"\",INDIRECT(\"'\" & Setup!$AH$9 & \"'!\" & AE273),0) + IF(Setup!$AH$10<>\"\",INDIRECT(\"'\" & Setup!$AH$10 & \"'!\" & AE273),0) + IF(Setup!$AH$11<>\"\",INDIRECT(\"'\" & Setup!$AH$11 & \"'!\" & AE273),0) + IF(Setup!$AH$12<>\"\",INDIRECT(\"'\" & Setup!$AH$12 & \"'!\" & AE273),0)","v":{"v":0,"d":"0.00"}},"","",{"$f":"IF(Setup!$AI$7<>\"\",INDIRECT(\"'\" & Setup!$AI$7 & \"'!\" & AD273),0) + IF(Setup!$AI$8<>\"\",INDIRECT(\"'\" & Setup!$AI$8 & \"'!\" & AD273),0) + IF(Setup!$AI$9<>\"\",INDIRECT(\"'\" & Setup!$AI$9 & \"'!\" & AD273),0) + IF(Setup!$AI$10<>\"\",INDIRECT(\"'\" & Setup!$AI$10 & \"'!\" & AD273),0) + IF(Setup!$AI$11<>\"\",INDIRECT(\"'\" & Setup!$AI$11 & \"'!\" & AD273),0) + IF(Setup!$AI$12<>\"\",INDIRECT(\"'\" & Setup!$AI$12 & \"'!\" & AD273),0)","v":{"v":0,"d":"0.00"}},{"$f":"IF(Setup!$AI$7<>\"\",INDIRECT(\"'\" & Setup!$AI$7 & \"'!\" & AE273),0) + IF(Setup!$AI$8<>\"\",INDIRECT(\"'\" & Setup!$AI$8 & \"'!\" & AE273),0) + IF(Setup!$AI$9<>\"\",INDIRECT(\"'\" & Setup!$AI$9 & \"'!\" & AE273),0) + IF(Setup!$AI$10<>\"\",INDIRECT(\"'\" & Setup!$AI$10 & \"'!\" & AE273),0) + IF(Setup!$AI$11<>\"\",INDIRECT(\"'\" & Setup!$AI$11 & \"'!\" & AE273),0) + IF(Setup!$AI$12<>\"\",INDIRECT(\"'\" & Setup!$AI$12 & \"'!\" & AE273),0)","v":{"v":0,"d":"0.00"}},"","",{"$f":"IF(Setup!$AJ$7<>\"\",INDIRECT(\"'\" & Setup!$AJ$7 & \"'!\" & AD273),0) + IF(Setup!$AJ$8<>\"\",INDIRECT(\"'\" & Setup!$AJ$8 & \"'!\" & AD273),0) + IF(Setup!$AJ$9<>\"\",INDIRECT(\"'\" & Setup!$AJ$9 & \"'!\" & AD273),0) + IF(Setup!$AJ$10<>\"\",INDIRECT(\"'\" & Setup!$AJ$10 & \"'!\" & AD273),0) + IF(Setup!$AJ$11<>\"\",INDIRECT(\"'\" & Setup!$AJ$11 & \"'!\" & AD273),0) + IF(Setup!$AJ$12<>\"\",INDIRECT(\"'\" & Setup!$AJ$12 & \"'!\" & AD273),0)","v":0},{"$f":"IF(Setup!$AJ$7<>\"\",INDIRECT(\"'\" & Setup!$AJ$7 & \"'!\" & AE273),0) + IF(Setup!$AJ$8<>\"\",INDIRECT(\"'\" & Setup!$AJ$8 & \"'!\" & AE273),0) + IF(Setup!$AJ$9<>\"\",INDIRECT(\"'\" & Setup!$AJ$9 & \"'!\" & AE273),0) + IF(Setup!$AJ$10<>\"\",INDIRECT(\"'\" & Setup!$AJ$10 & \"'!\" & AE273),0) + IF(Setup!$AJ$11<>\"\",INDIRECT(\"'\" & Setup!$AJ$11 & \"'!\" & AE273),0) + IF(Setup!$AJ$12<>\"\",INDIRECT(\"'\" & Setup!$AJ$12 & \"'!\" & AE273),0)","v":0},"","",{"$f":"Planning!H45","v":0},"00","M61","O61","N61",null,null,{"$f":"IF(Setup!$AG$7<>\"\",INDIRECT(\"'\" & Setup!$AG$7 & \"'!\" & AF273),0) + IF(Setup!$AG$8<>\"\",INDIRECT(\"'\" & Setup!$AG$8 & \"'!\" & AF273),0) + IF(Setup!$AG$9<>\"\",INDIRECT(\"'\" & Setup!$AG$9 & \"'!\" & AF273),0) + IF(Setup!$AG$10<>\"\",INDIRECT(\"'\" & Setup!$AG$10 & \"'!\" & AF273),0) + IF(Setup!$AG$11<>\"\",INDIRECT(\"'\" & Setup!$AG$11 & \"'!\" & AF273),0) + IF(Setup!$AG$12<>\"\",INDIRECT(\"'\" & Setup!$AG$12 & \"'!\" & AF273),0)","v":0},{"$f":"IF(Setup!$AH$7<>\"\",INDIRECT(\"'\" & Setup!$AH$7 & \"'!\" & AF273),0) + IF(Setup!$AH$8<>\"\",INDIRECT(\"'\" & Setup!$AH$8 & \"'!\" & AF273),0) + IF(Setup!$AH$9<>\"\",INDIRECT(\"'\" & Setup!$AH$9 & \"'!\" & AF273),0) + IF(Setup!$AH$10<>\"\",INDIRECT(\"'\" & Setup!$AH$10 & \"'!\" & AF273),0) + IF(Setup!$AH$11<>\"\",INDIRECT(\"'\" & Setup!$AH$11 & \"'!\" & AF273),0) + IF(Setup!$AH$12<>\"\",INDIRECT(\"'\" & Setup!$AH$12 & \"'!\" & AF273),0)","v":0},{"$f":"IF(Setup!$AI$7<>\"\",INDIRECT(\"'\" & Setup!$AI$7 & \"'!\" & AF273),0) + IF(Setup!$AI$8<>\"\",INDIRECT(\"'\" & Setup!$AI$8 & \"'!\" & AF273),0) + IF(Setup!$AI$9<>\"\",INDIRECT(\"'\" & Setup!$AI$9 & \"'!\" & AF273),0) + IF(Setup!$AI$10<>\"\",INDIRECT(\"'\" & Setup!$AI$10 & \"'!\" & AF273),0) + IF(Setup!$AI$11<>\"\",INDIRECT(\"'\" & Setup!$AI$11 & \"'!\" & AF273),0) + IF(Setup!$AI$12<>\"\",INDIRECT(\"'\" & Setup!$AI$12 & \"'!\" & AF273),0)","v":0},{"$f":"IF(Setup!$AJ$7<>\"\",INDIRECT(\"'\" & Setup!$AJ$7 & \"'!\" & AF273),0) + IF(Setup!$AJ$8<>\"\",INDIRECT(\"'\" & Setup!$AJ$8 & \"'!\" & AF273),0) + IF(Setup!$AJ$9<>\"\",INDIRECT(\"'\" & Setup!$AJ$9 & \"'!\" & AF273),0) + IF(Setup!$AJ$10<>\"\",INDIRECT(\"'\" & Setup!$AJ$10 & \"'!\" & AF273),0) + IF(Setup!$AJ$11<>\"\",INDIRECT(\"'\" & Setup!$AJ$11 & \"'!\" & AF273),0) + IF(Setup!$AJ$12<>\"\",INDIRECT(\"'\" & Setup!$AJ$12 & \"'!\" & AF273),0)","v":0},null,"",{"$nulls":30},0,{"$f":"IF(Setup!$AH$7=\"\",0,INDIRECT(\"'\" & Setup!$AH$7 & \"'!\" & AF273))","v":0},{"$f":"IF(Setup!$AI$7=\"\",0,INDIRECT(\"'\" & Setup!$AI$7 & \"'!\" & AF273))","v":0},{"$f":"IF(Setup!$AJ$7=\"\",0,INDIRECT(\"'\" & Setup!$AJ$7 & \"'!\" & AF273))","v":0}]
[{"$f":"Planning!A46","v":"I038"},{"$f":"Planning!B46","v":0},{"$f":"Planning!C46","v":0},{"$f":"Planning!D46","v":0},{"$f":"Planning!E46","v":0},{"$f":"Planning!G46","v":0},0,{"v":0,"d":"0.00"},{"v":0,"d":"0.00"},"","",{"$f":"IF(Setup!$AG$7<>\"\",INDIRECT(\"'\" & Setup!$AG$7 & \"'!\" & AD274),0) + IF(Setup!$AG$8<>\"\",INDIRECT(\"'\" & Setup!$AG$8 & \"'!\" & AD274),0) + IF(Setup!$AG$9<>\"\",INDIRECT(\"'\" & Setup!$AG$9 & \"'!\" & AD274),0) + IF(Setup!$AG$10<>\"\",INDIRECT(\"'\" & Setup!$AG$10 & \"'!\" & AD274),0) + IF(Setup!$AG$11<>\"\",INDIRECT(\"'\" & Setup!$AG$11 & \"'!\" & AD274),0) + IF(Setup!$AG$12<>\"\",INDIRECT(\"'\" & Setup!$AG$12 & \"'!\" & AD274),0)","v":{"v":0,"d":"0.00"}},{"$f":"IF(Setup!$AG$7<>\"\",INDIRECT(\"'\" & Setup!$AG$7 & \"'!\" & AE274),0) + IF(Setup!$AG$8<>\"\",INDIRECT(\"'\" & Setup!$AG$8 & \"'!\" & AE274),0) + IF(Setup!$AG$9<>\"\",INDIRECT(\"'\" & Setup!$AG$9 & \"'!\" & AE274),0) + IF(Setup!$AG$10<>\"\",INDIRECT(\"'\" & Setup!$AG$10 & \"'!\" & AE274),0) + IF(Setup!$AG$11<>\"\",INDIRECT(\"'\" & Setup!$AG$11 & \"'!\" & AE274),0) + IF(Setup!$AG$12<>\"\",INDIRECT(\"'\" & Setup!$AG$12 & \"'!\" & AE274),0)","v":{"v":0,"d":"0.00"}},"","",{"$f":"IF(Setup!$AH$7<>\"\",INDIRECT(\"'\" & Setup!$AH$7 & \"'!\" & AD274),0) + IF(Setup!$AH$8<>\"\",INDIRECT(\"'\" & Setup!$AH$8 & \"'!\" & AD274),0) + IF(Setup!$AH$9<>\"\",INDIRECT(\"'\" & Setup!$AH$9 & \"'!\" & AD274),0) + IF(Setup!$AH$10<>\"\",INDIRECT(\"'\" & Setup!$AH$10 & \"'!\" & AD274),0) + IF(Setup!$AH$11<>\"\",INDIRECT(\"'\" & Setup!$AH$11 & \"'!\" & AD274),0) + IF(Setup!$AH$12<>\"\",INDIRECT(\"'\" & Setup!$AH$12 & \"'!\" & AD274),0)","v":{"v":0,"d":"0.00"}},{"$f":"IF(Setup!$AH$7<>\"\",INDIRECT(\"'\" & Setup!$AH$7 & \"'!\" & AE274),0) + IF(Setup!$AH$8<>\"\",INDIRECT(\"'\" & Setup!$AH$8 & \"'!\" & AE274),0) + IF(Setup!$AH$9<>\"\",INDIRECT(\"'\" & Setup!$AH$9 & \"'!\" & AE274),0) + IF(Setup!$AH$10<>\"\",INDIRECT(\"'\" & Setup!$AH$10 & \"'!\" & AE274),0) + IF(Setup!$AH$11<>\"\",INDIRECT(\"'\" & Setup!$AH$11 & \"'!\" & AE274),0) + IF(Setup!$AH$12<>\"\",INDIRECT(\"'\" & Setup!$AH$12 & \"'!\" & AE274),0)","v":{"v":0,"d":"0.00"}},"","",{"$f":"IF(Setup!$AI$7<>\"\",INDIRECT(\"'\" & Setup!$AI$7 & \"'!\" & AD274),0) + IF(Setup!$AI$8<>\"\",INDIRECT(\"'\" & Setup!$AI$8 & \"'!\" & AD274),0) + IF(Setup!$AI$9<>\"\",INDIRECT(\"'\" & Setup!$AI$9 & \"'!\" & AD274),0) + IF(Setup!$AI$10<>\"\",INDIRECT(\"'\" & Setup!$AI$10 & \"'!\" & AD274),0) + IF(Setup!$AI$11<>\"\",INDIRECT(\"'\" & Setup!$AI$11 & \"'!\" & AD274),0) + IF(Setup!$AI$12<>\"\",INDIRECT(\"'\" & Setup!$AI$12 & \"'!\" & AD274),0)","v":{"v":0,"d":"0.00"}},{"$f":"IF(Setup!$AI$7<>\"\",INDIRECT(\"'\" & Setup!$AI$7 & \"'!\" & AE274),0) + IF(Setup!$AI$8<>\"\",INDIRECT(\"'\" & Setup!$AI$8 & \"'!\" & AE274),0) + IF(Setup!$AI$9<>\"\",INDIRECT(\"'\" & Setup!$AI$9 & \"'!\" & AE274),0) + IF(Setup!$AI$10<>\"\",INDIRECT(\"'\" & Setup!$AI$10 & \"'!\" & AE274),0) + IF(Setup!$AI$11<>\"\",INDIRECT(\"'\" & Setup!$AI$11 & \"'!\" & AE274),0) + IF(Setup!$AI$12<>\"\",INDIRECT(\"'\" & Setup!$AI$12 & \"'!\" & AE274),0)","v":{"v":0,"d":"0.00"}},"","",{"$f":"IF(Setup!$AJ$7<>\"\",INDIRECT(\"'\" & Setup!$AJ$7 & \"'!\" & AD274),0) + IF(Setup!$AJ$8<>\"\",INDIRECT(\"'\" & Setup!$AJ$8 & \"'!\" & AD274),0) + IF(Setup!$AJ$9<>\"\",INDIRECT(\"'\" & Setup!$AJ$9 & \"'!\" & AD274),0) + IF(Setup!$AJ$10<>\"\",INDIRECT(\"'\" & Setup!$AJ$10 & \"'!\" & AD274),0) + IF(Setup!$AJ$11<>\"\",INDIRECT(\"'\" & Setup!$AJ$11 & \"'!\" & AD274),0) + IF(Setup!$AJ$12<>\"\",INDIRECT(\"'\" & Setup!$AJ$12 & \"'!\" & AD274),0)","v":0},{"$f":"IF(Setup!$AJ$7<>\"\",INDIRECT(\"'\" & Setup!$AJ$7 & \"'!\" & AE274),0) + IF(Setup!$AJ$8<>\"\",INDIRECT(\"'\" & Setup!$AJ$8 & \"'!\" & AE274),0) + IF(Setup!$AJ$9<>\"\",INDIRECT(\"'\" & Setup!$AJ$9 & \"'!\" & AE274),0) + IF(Setup!$AJ$10<>\"\",INDIRECT(\"'\" & Setup!$AJ$10 & \"'!\" & AE274),0) + IF(Setup!$AJ$11<>\"\",INDIRECT(\"'\" & Setup!$AJ$11 & \"'!\" & AE274),0) + IF(Setup!$AJ$12<>\"\",INDIRECT(\"'\" & Setup!$AJ$12 & \"'!\" & AE274),0)","v":0},"","",{"$f":"Planning!H46","v":0},"00","M62","O62","N62",null,null,{"$f":"IF(Setup!$AG$7<>\"\",INDIRECT(\"'\" & Setup!$AG$7 & \"'!\" & AF274),0) + IF(Setup!$AG$8<>\"\",INDIRECT(\"'\" & Setup!$AG$8 & \"'!\" & AF274),0) + IF(Setup!$AG$9<>\"\",INDIRECT(\"'\" & Setup!$AG$9 & \"'!\" & AF274),0) + IF(Setup!$AG$10<>\"\",INDIRECT(\"'\" & Setup!$AG$10 & \"'!\" & AF274),0) + IF(Setup!$AG$11<>\"\",INDIRECT(\"'\" & Setup!$AG$11 & \"'!\" & AF274),0) + IF(Setup!$AG$12<>\"\",INDIRECT(\"'\" & Setup!$AG$12 & \"'!\" & AF274),0)","v":0},{"$f":"IF(Setup!$AH$7<>\"\",INDIRECT(\"'\" & Setup!$AH$7 & \"'!\" & AF274),0) + IF(Setup!$AH$8<>\"\",INDIRECT(\"'\" & Setup!$AH$8 & \"'!\" & AF274),0) + IF(Setup!$AH$9<>\"\",INDIRECT(\"'\" & Setup!$AH$9 & \"'!\" & AF274),0) + IF(Setup!$AH$10<>\"\",INDIRECT(\"'\" & Setup!$AH$10 & \"'!\" & AF274),0) + IF(Setup!$AH$11<>\"\",INDIRECT(\"'\" & Setup!$AH$11 & \"'!\" & AF274),0) + IF(Setup!$AH$12<>\"\",INDIRECT(\"'\" & Setup!$AH$12 & \"'!\" & AF274),0)","v":0},{"$f":"IF(Setup!$AI$7<>\"\",INDIRECT(\"'\" & Setup!$AI$7 & \"'!\" & AF274),0) + IF(Setup!$AI$8<>\"\",INDIRECT(\"'\" & Setup!$AI$8 & \"'!\" & AF274),0) + IF(Setup!$AI$9<>\"\",INDIRECT(\"'\" & Setup!$AI$9 & \"'!\" & AF274),0) + IF(Setup!$AI$10<>\"\",INDIRECT(\"'\" & Setup!$AI$10 & \"'!\" & AF274),0) + IF(Setup!$AI$11<>\"\",INDIRECT(\"'\" & Setup!$AI$11 & \"'!\" & AF274),0) + IF(Setup!$AI$12<>\"\",INDIRECT(\"'\" & Setup!$AI$12 & \"'!\" & AF274),0)","v":0},{"$f":"IF(Setup!$AJ$7<>\"\",INDIRECT(\"'\" & Setup!$AJ$7 & \"'!\" & AF274),0) + IF(Setup!$AJ$8<>\"\",INDIRECT(\"'\" & Setup!$AJ$8 & \"'!\" & AF274),0) + IF(Setup!$AJ$9<>\"\",INDIRECT(\"'\" & Setup!$AJ$9 & \"'!\" & AF274),0) + IF(Setup!$AJ$10<>\"\",INDIRECT(\"'\" & Setup!$AJ$10 & \"'!\" & AF274),0) + IF(Setup!$AJ$11<>\"\",INDIRECT(\"'\" & Setup!$AJ$11 & \"'!\" & AF274),0) + IF(Setup!$AJ$12<>\"\",INDIRECT(\"'\" & Setup!$AJ$12 & \"'!\" & AF274),0)","v":0},null,"",{"$nulls":30},0,{"$f":"IF(Setup!$AH$7=\"\",0,INDIRECT(\"'\" & Setup!$AH$7 & \"'!\" & AF274))","v":0},{"$f":"IF(Setup!$AI$7=\"\",0,INDIRECT(\"'\" & Setup!$AI$7 & \"'!\" & AF274))","v":0},{"$f":"IF(Setup!$AJ$7=\"\",0,INDIRECT(\"'\" & Setup!$AJ$7 & \"'!\" & AF274))","v":0}]
[{"$f":"Planning!A47","v":"I039"},{"$f":"Planning!B47","v":0},{"$f":"Planning!C47","v":0},{"$f":"Planning!D47","v":0},{"$f":"Planning!E47","v":0},{"$f":"Planning!G47","v":0},0,{"v":0,"d":"0.00"},{"v":0,"d":"0.00"},"","",{"$f":"IF(Setup!$AG$7<>\"\",INDIRECT(\"'\" & Setup!$AG$7 & \"'!\" & AD275),0) + IF(Setup!$AG$8<>\"\",INDIRECT(\"'\" & Setup!$AG$8 & \"'!\" & AD275),0) + IF(Setup!$AG$9<>\"\",INDIRECT(\"'\" & Setup!$AG$9 & \"'!\" & AD275),0) + IF(Setup!$AG$10<>\"\",INDIRECT(\"'\" & Setup!$AG$10 & \"'!\" & AD275),0) + IF(Setup!$AG$11<>\"\",INDIRECT(\"'\" & Setup!$AG$11 & \"'!\" & AD275),0) + IF(Setup!$AG$12<>\"\",INDIRECT(\"'\" & Setup!$AG$12 & \"'!\" & AD275),0)","v":{"v":0,"d":"0.00"}},{"$f":"IF(Setup!$AG$7<>\"\",INDIRECT(\"'\" & Setup!$AG$7 & \"'!\" & AE275),0) + IF(Setup!$AG$8<>\"\",INDIRECT(\"'\" & Setup!$AG$8 & \"'!\" & AE275),0) + IF(Setup!$AG$9<>\"\",INDIRECT(\"'\" & Setup!$AG$9 & \"'!\" & AE275),0) + IF(Setup!$AG$10<>\"\",INDIRECT(\"'\" & Setup!$AG$10 & \"'!\" & AE275),0) + IF(Setup!$AG$11<>\"\",INDIRECT(\"'\" & Setup!$AG$11 & \"'!\" & AE275),0) + IF(Setup!$AG$12<>\"\",INDIRECT(\"'\" & Setup!$AG$12 & \"'!\" & AE275),0)","v":{"v":0,"d":"0.00"}},"","",{"$f":"IF(Setup!$AH$7<>\"\",INDIRECT(\"'\" & Setup!$AH$7 & \"'!\" & AD275),0) + IF(Setup!$AH$8<>\"\",INDIRECT(\"'\" & Setup!$AH$8 & \"'!\" & AD275),0) + IF(Setup!$AH$9<>\"\",INDIRECT(\"'\" & Setup!$AH$9 & \"'!\" & AD275),0) + IF(Setup!$AH$10<>\"\",INDIRECT(\"'\" & Setup!$AH$10 & \"'!\" & AD275),0) + IF(Setup!$AH$11<>\"\",INDIRECT(\"'\" & Setup!$AH$11 & \"'!\" & AD275),0) + IF(Setup!$AH$12<>\"\",INDIRECT(\"'\" & Setup!$AH$12 & \"'!\" & AD275),0)","v":{"v":0,"d":"0.00"}},{"$f":"IF(Setup!$AH$7<>\"\",INDIRECT(\"'\" & Setup!$AH$7 & \"'!\" & AE275),0) + IF(Setup!$AH$8<>\"\",INDIRECT(\"'\" & Setup!$AH$8 & \"'!\" & AE275),0) + IF(Setup!$AH$9<>\"\",INDIRECT(\"'\" & Setup!$AH$9 & \"'!\" & AE275),0) + IF(Setup!$AH$10<>\"\",INDIRECT(\"'\" & Setup!$AH$10 & \"'!\" & AE275),0) + IF(Setup!$AH$11<>\"\",INDIRECT(\"'\" & Setup!$AH$11 & \"'!\" & AE275),0) + IF(Setup!$AH$12<>\"\",INDIRECT(\"'\" & Setup!$AH$12 & \"'!\" & AE275),0)","v":{"v":0,"d":"0.00"}},"","",{"$f":"IF(Setup!$AI$7<>\"\",INDIRECT(\"'\" & Setup!$AI$7 & \"'!\" & AD275),0) + IF(Setup!$AI$8<>\"\",INDIRECT(\"'\" & Setup!$AI$8 & \"'!\" & AD275),0) + IF(Setup!$AI$9<>\"\",INDIRECT(\"'\" & Setup!$AI$9 & \"'!\" & AD275),0) + IF(Setup!$AI$10<>\"\",INDIRECT(\"'\" & Setup!$AI$10 & \"'!\" & AD275),0) + IF(Setup!$AI$11<>\"\",INDIRECT(\"'\" & Setup!$AI$11 & \"'!\" & AD275),0) + IF(Setup!$AI$12<>\"\",INDIRECT(\"'\" & Setup!$AI$12 & \"'!\" & AD275),0)","v":{"v":0,"d":"0.00"}},{"$f":"IF(Setup!$AI$7<>\"\",INDIRECT(\"'\" & Setup!$AI$7 & \"'!\" & AE275),0) + IF(Setup!$AI$8<>\"\",INDIRECT(\"'\" & Setup!$AI$8 & \"'!\" & AE275),0) + IF(Setup!$AI$9<>\"\",INDIRECT(\"'\" & Setup!$AI$9 & \"'!\" & AE275),0) + IF(Setup!$AI$10<>\"\",INDIRECT(\"'\" & Setup!$AI$10 & \"'!\" & AE275),0) + IF(Setup!$AI$11<>\"\",INDIRECT(\"'\" & Setup!$AI$11 & \"'!\" & AE275),0) + IF(Setup!$AI$12<>\"\",INDIRECT(\"'\" & Setup!$AI$12 & \"'!\" & AE275),0)","v":{"v":0,"d":"0.00"}},"","",{"$f":"IF(Setup!$AJ$7<>\"\",INDIRECT(\"'\" & Setup!$AJ$7 & \"'!\" & AD275),0) + IF(Setup!$AJ$8<>\"\",INDIRECT(\"'\" & Setup!$AJ$8 & \"'!\" & AD275),0) + IF(Setup!$AJ$9<>\"\",INDIRECT(\"'\" & Setup!$AJ$9 & \"'!\" & AD275),0) + IF(Setup!$AJ$10<>\"\",INDIRECT(\"'\" & Setup!$AJ$10 & \"'!\" & AD275),0) + IF(Setup!$AJ$11<>\"\",INDIRECT(\"'\" & Setup!$AJ$11 & \"'!\" & AD275),0) + IF(Setup!$AJ$12<>\"\",INDIRECT(\"'\" & Setup!$AJ$12 & \"'!\" & AD275),0)","v":0},{"$f":"IF(Setup!$AJ$7<>\"\",INDIRECT(\"'\" & Setup!$AJ$7 & \"'!\" & AE275),0) + IF(Setup!$AJ$8<>\"\",INDIRECT(\"'\" & Setup!$AJ$8 & \"'!\" & AE275),0) + IF(Setup!$AJ$9<>\"\",INDIRECT(\"'\" & Setup!$AJ$9 & \"'!\" & AE275),0) + IF(Setup!$AJ$10<>\"\",INDIRECT(\"'\" & Setup!$AJ$10 & \"'!\" & AE275),0) + IF(Setup!$AJ$11<>\"\",INDIRECT(\"'\" & Setup!$AJ$11 & \"'!\" & AE275),0) + IF(Setup!$AJ$12<>\"\",INDIRECT(\"'\" & Setup!$AJ$12 & \"'!\" & AE275),0)","v":0},"","",{"$f":"Planning!H47","v":0},"00","M63","O63","N63",null,null,{"$f":"IF(Setup!$AG$7<>\"\",INDIRECT(\"'\" & Setup!$AG$7 & \"'!\" & AF275),0) + IF(Setup!$AG$8<>\"\",INDIRECT(\"'\" & Setup!$AG$8 & \"'!\" & AF275),0) + IF(Setup!$AG$9<>\"\",INDIRECT(\"'\" & Setup!$AG$9 & \"'!\" & AF275),0) + IF(Setup!$AG$10<>\"\",INDIRECT(\"'\" & Setup!$AG$10 & \"'!\" & AF275),0) + IF(Setup!$AG$11<>\"\",INDIRECT(\"'\" & Setup!$AG$11 & \"'!\" & AF275),0) + IF(Setup!$AG$12<>\"\",INDIRECT(\"'\" & Setup!$AG$12 & \"'!\" & AF275),0)","v":0},{"$f":"IF(Setup!$AH$7<>\"\",INDIRECT(\"'\" & Setup!$AH$7 & \"'!\" & AF275),0) + IF(Setup!$AH$8<>\"\",INDIRECT(\"'\" & Setup!$AH$8 & \"'!\" & AF275),0) + IF(Setup!$AH$9<>\"\",INDIRECT(\"'\" & Setup!$AH$9 & \"'!\" & AF275),0) + IF(Setup!$AH$10<>\"\",INDIRECT(\"'\" & Setup!$AH$10 & \"'!\" & AF275),0) + IF(Setup!$AH$11<>\"\",INDIRECT(\"'\" & Setup!$AH$11 & \"'!\" & AF275),0) + IF(Setup!$AH$12<>\"\",INDIRECT(\"'\" & Setup!$AH$12 & \"'!\" & AF275),0)","v":0},{"$f":"IF(Setup!$AI$7<>\"\",INDIRECT(\"'\" & Setup!$AI$7 & \"'!\" & AF275),0) + IF(Setup!$AI$8<>\"\",INDIRECT(\"'\" & Setup!$AI$8 & \"'!\" & AF275),0) + IF(Setup!$AI$9<>\"\",INDIRECT(\"'\" & Setup!$AI$9 & \"'!\" & AF275),0) + IF(Setup!$AI$10<>\"\",INDIRECT(\"'\" & Setup!$AI$10 & \"'!\" & AF275),0) + IF(Setup!$AI$11<>\"\",INDIRECT(\"'\" & Setup!$AI$11 & \"'!\" & AF275),0) + IF(Setup!$AI$12<>\"\",INDIRECT(\"'\" & Setup!$AI$12 & \"'!\" & AF275),0)","v":0},{"$f":"IF(Setup!$AJ$7<>\"\",INDIRECT(\"'\" & Setup!$AJ$7 & \"'!\" & AF275),0) + IF(Setup!$AJ$8<>\"\",INDIRECT(\"'\" & Setup!$AJ$8 & \"'!\" & AF275),0) + IF(Setup!$AJ$9<>\"\",INDIRECT(\"'\" & Setup!$AJ$9 & \"'!\" & AF275),0) + IF(Setup!$AJ$10<>\"\",INDIRECT(\"'\" & Setup!$AJ$10 & \"'!\" & AF275),0) + IF(Setup!$AJ$11<>\"\",INDIRECT(\"'\" & Setup!$AJ$11 & \"'!\" & AF275),0) + IF(Setup!$AJ$12<>\"\",INDIRECT(\"'\" & Setup!$AJ$12 & \"'!\" & AF275),0)","v":0},null,"",{"$nulls":30},0,{"$f":"IF(Setup!$AH$7=\"\",0,INDIRECT(\"'\" & Setup!$AH$7 & \"'!\" & AF275))","v":0},{"$f":"IF(Setup!$AI$7=\"\",0,INDIRECT(\"'\" & Setup!$AI$7 & \"'!\" & AF275))","v":0},{"$f":"IF(Setup!$AJ$7=\"\",0,INDIRECT(\"'\" & Setup!$AJ$7 & \"'!\" & AF275))","v":0}]
[{"$f":"Planning!A48","v":"I040"},{"$f":"Planning!B48","v":0},{"$f":"Planning!C48","v":0},{"$f":"Planning!D48","v":0},{"$f":"Planning!E48","v":0},{"$f":"Planning!G48","v":0},0,{"v":0,"d":"0.00"},{"v":0,"d":"0.00"},"","",{"$f":"IF(Setup!$AG$7<>\"\",INDIRECT(\"'\" & Setup!$AG$7 & \"'!\" & AD276),0) + IF(Setup!$AG$8<>\"\",INDIRECT(\"'\" & Setup!$AG$8 & \"'!\" & AD276),0) + IF(Setup!$AG$9<>\"\",INDIRECT(\"'\" & Setup!$AG$9 & \"'!\" & AD276),0) + IF(Setup!$AG$10<>\"\",INDIRECT(\"'\" & Setup!$AG$10 & \"'!\" & AD276),0) + IF(Setup!$AG$11<>\"\",INDIRECT(\"'\" & Setup!$AG$11 & \"'!\" & AD276),0) + IF(Setup!$AG$12<>\"\",INDIRECT(\"'\" & Setup!$AG$12 & \"'!\" & AD276),0)","v":{"v":0,"d":"0.00"}},{"$f":"IF(Setup!$AG$7<>\"\",INDIRECT(\"'\" & Setup!$AG$7 & \"'!\" & AE276),0) + IF(Setup!$AG$8<>\"\",INDIRECT(\"'\" & Setup!$AG$8 & \"'!\" & AE276),0) + IF(Setup!$AG$9<>\"\",INDIRECT(\"'\" & Setup!$AG$9 & \"'!\" & AE276),0) + IF(Setup!$AG$10<>\"\",INDIRECT(\"'\" & Setup!$AG$10 & \"'!\" & AE276),0) + IF(Setup!$AG$11<>\"\",INDIRECT(\"'\" & Setup!$AG$11 & \"'!\" & AE276),0) + IF(Setup!$AG$12<>\"\",INDIRECT(\"'\" & Setup!$AG$12 & \"'!\" & AE276),0)","v":{"v":0,"d":"0.00"}},"","",{"$f":"IF(Setup!$AH$7<>\"\",INDIRECT(\"'\" & Setup!$AH$7 & \"'!\" & AD276),0) + IF(Setup!$AH$8<>\"\",INDIRECT(\"'\" & Setup!$AH$8 & \"'!\" & AD276),0) + IF(Setup!$AH$9<>\"\",INDIRECT(\"'\" & Setup!$AH$9 & \"'!\" & AD276),0) + IF(Setup!$AH$10<>\"\",INDIRECT(\"'\" & Setup!$AH$10 & \"'!\" & AD276),0) + IF(Setup!$AH$11<>\"\",INDIRECT(\"'\" & Setup!$AH$11 & \"'!\" & AD276),0) + IF(Setup!$AH$12<>\"\",INDIRECT(\"'\" & Setup!$AH$12 & \"'!\" & AD276),0)","v":{"v":0,"d":"0.00"}},{"$f":"IF(Setup!$AH$7<>\"\",INDIRECT(\"'\" & Setup!$AH$7 & \"'!\" & AE276),0) + IF(Setup!$AH$8<>\"\",INDIRECT(\"'\" & Setup!$AH$8 & \"'!\" & AE276),0) + IF(Setup!$AH$9<>\"\",INDIRECT(\"'\" & Setup!$AH$9 & \"'!\" & AE276),0) + IF(Setup!$AH$10<>\"\",INDIRECT(\"'\" & Setup!$AH$10 & \"'!\" & AE276),0) + IF(Setup!$AH$11<>\"\",INDIRECT(\"'\" & Setup!$AH$11 & \"'!\" & AE276),0) + IF(Setup!$AH$12<>\"\",INDIRECT(\"'\" & Setup!$AH$12 & \"'!\" & AE276),0)","v":{"v":0,"d":"0.00"}},"","",{"$f":"IF(Setup!$AI$7<>\"\",INDIRECT(\"'\" & Setup!$AI$7 & \"'!\" & AD276),0) + IF(Setup!$AI$8<>\"\",INDIRECT(\"'\" & Setup!$AI$8 & \"'!\" & AD276),0) + IF(Setup!$AI$9<>\"\",INDIRECT(\"'\" & Setup!$AI$9 & \"'!\" & AD276),0) + IF(Setup!$AI$10<>\"\",INDIRECT(\"'\" & Setup!$AI$10 & \"'!\" & AD276),0) + IF(Setup!$AI$11<>\"\",INDIRECT(\"'\" & Setup!$AI$11 & \"'!\" & AD276),0) + IF(Setup!$AI$12<>\"\",INDIRECT(\"'\" & Setup!$AI$12 & \"'!\" & AD276),0)","v":{"v":0,"d":"0.00"}},{"$f":"IF(Setup!$AI$7<>\"\",INDIRECT(\"'\" & Setup!$AI$7 & \"'!\" & AE276),0) + IF(Setup!$AI$8<>\"\",INDIRECT(\"'\" & Setup!$AI$8 & \"'!\" & AE276),0) + IF(Setup!$AI$9<>\"\",INDIRECT(\"'\" & Setup!$AI$9 & \"'!\" & AE276),0) + IF(Setup!$AI$10<>\"\",INDIRECT(\"'\" & Setup!$AI$10 & \"'!\" & AE276),0) + IF(Setup!$AI$11<>\"\",INDIRECT(\"'\" & Setup!$AI$11 & \"'!\" & AE276),0) + IF(Setup!$AI$12<>\"\",INDIRECT(\"'\" & Setup!$AI$12 & \"'!\" & AE276),0)","v":{"v":0,"d":"0.00"}},"","",{"$f":"IF(Setup!$AJ$7<>\"\",INDIRECT(\"'\" & Setup!$AJ$7 & \"'!\" & AD276),0) + IF(Setup!$AJ$8<>\"\",INDIRECT(\"'\" & Setup!$AJ$8 & \"'!\" & AD276),0) + IF(Setup!$AJ$9<>\"\",INDIRECT(\"'\" & Setup!$AJ$9 & \"'!\" & AD276),0) + IF(Setup!$AJ$10<>\"\",INDIRECT(\"'\" & Setup!$AJ$10 & \"'!\" & AD276),0) + IF(Setup!$AJ$11<>\"\",INDIRECT(\"'\" & Setup!$AJ$11 & \"'!\" & AD276),0) + IF(Setup!$AJ$12<>\"\",INDIRECT(\"'\" & Setup!$AJ$12 & \"'!\" & AD276),0)","v":0},{"$f":"IF(Setup!$AJ$7<>\"\",INDIRECT(\"'\" & Setup!$AJ$7 & \"'!\" & AE276),0) + IF(Setup!$AJ$8<>\"\",INDIRECT(\"'\" & Setup!$AJ$8 & \"'!\" & AE276),0) + IF(Setup!$AJ$9<>\"\",INDIRECT(\"'\" & Setup!$AJ$9 & \"'!\" & AE276),0) + IF(Setup!$AJ$10<>\"\",INDIRECT(\"'\" & Setup!$AJ$10 & \"'!\" & AE276),0) + IF(Setup!$AJ$11<>\"\",INDIRECT(\"'\" & Setup!$AJ$11 & \"'!\" & AE276),0) + IF(Setup!$AJ$12<>\"\",INDIRECT(\"'\" & Setup!$AJ$12 & \"'!\" & AE276),0)","v":0},"","",{"$f":"Planning!H48","v":0},"00","M64","O64","N64",null,null,{"$f":"IF(Setup!$AG$7<>\"\",INDIRECT(\"'\" & Setup!$AG$7 & \"'!\" & AF276),0) + IF(Setup!$AG$8<>\"\",INDIRECT(\"'\" & Setup!$AG$8 & \"'!\" & AF276),0) + IF(Setup!$AG$9<>\"\",INDIRECT(\"'\" & Setup!$AG$9 & \"'!\" & AF276),0) + IF(Setup!$AG$10<>\"\",INDIRECT(\"'\" & Setup!$AG$10 & \"'!\" & AF276),0) + IF(Setup!$AG$11<>\"\",INDIRECT(\"'\" & Setup!$AG$11 & \"'!\" & AF276),0) + IF(Setup!$AG$12<>\"\",INDIRECT(\"'\" & Setup!$AG$12 & \"'!\" & AF276),0)","v":0},{"$f":"IF(Setup!$AH$7<>\"\",INDIRECT(\"'\" & Setup!$AH$7 & \"'!\" & AF276),0) + IF(Setup!$AH$8<>\"\",INDIRECT(\"'\" & Setup!$AH$8 & \"'!\" & AF276),0) + IF(Setup!$AH$9<>\"\",INDIRECT(\"'\" & Setup!$AH$9 & \"'!\" & AF276),0) + IF(Setup!$AH$10<>\"\",INDIRECT(\"'\" & Setup!$AH$10 & \"'!\" & AF276),0) + IF(Setup!$AH$11<>\"\",INDIRECT(\"'\" & Setup!$AH$11 & \"'!\" & AF276),0) + IF(Setup!$AH$12<>\"\",INDIRECT(\"'\" & Setup!$AH$12 & \"'!\" & AF276),0)","v":0},{"$f":"IF(Setup!$AI$7<>\"\",INDIRECT(\"'\" & Setup!$AI$7 & \"'!\" & AF276),0) + IF(Setup!$AI$8<>\"\",INDIRECT(\"'\" & Setup!$AI$8 & \"'!\" & AF276),0) + IF(Setup!$AI$9<>\"\",INDIRECT(\"'\" & Setup!$AI$9 & \"'!\" & AF276),0) + IF(Setup!$AI$10<>\"\",INDIRECT(\"'\" & Setup!$AI$10 & \"'!\" & AF276),0) + IF(Setup!$AI$11<>\"\",INDIRECT(\"'\" & Setup!$AI$11 & \"'!\" & AF276),0) + IF(Setup!$AI$12<>\"\",INDIRECT(\"'\" & Setup!$AI$12 & \"'!\" & AF276),0)","v":0},{"$f":"IF(Setup!$AJ$7<>\"\",INDIRECT(\"'\" & Setup!$AJ$7 & \"'!\" & AF276),0) + IF(Setup!$AJ$8<>\"\",INDIRECT(\"'\" & Setup!$AJ$8 & \"'!\" & AF276),0) + IF(Setup!$AJ$9<>\"\",INDIRECT(\"'\" & Setup!$AJ$9 & \"'!\" & AF276),0) + IF(Setup!$AJ$10<>\"\",INDIRECT(\"'\" & Setup!$AJ$10 & \"'!\" & AF276),0) + IF(Setup!$AJ$11<>\"\",INDIRECT(\"'\" & Setup!$AJ$11 & \"'!\" & AF276),0) + IF(Setup!$AJ$12<>\"\",INDIRECT(\"'\" & Setup!$AJ$12 & \"'!\" & AF276),0)","v":0},null,"",{"$nulls":30},0,{"$f":"IF(Setup!$AH$7=\"\",0,INDIRECT(\"'\" & Setup!$AH$7 & \"'!\" & AF276))","v":0},{"$f":"IF(Setup!$AI$7=\"\",0,INDIRECT(\"'\" & Setup!$AI$7 & \"'!\" & AF276))","v":0},{"$f":"IF(Setup!$AJ$7=\"\",0,INDIRECT(\"'\" & Setup!$AJ$7 & \"'!\" & AF276))","v":0}]
[{"$f":"Planning!A49","v":"I041"},{"$f":"Planning!B49","v":0},{"$f":"Planning!C49","v":0},{"$f":"Planning!D49","v":0},{"$f":"Planning!E49","v":0},{"$f":"Planning!G49","v":0},0,{"v":0,"d":"0.00"},{"v":0,"d":"0.00"},"","",{"$f":"IF(Setup!$AG$7<>\"\",INDIRECT(\"'\" & Setup!$AG$7 & \"'!\" & AD277),0) + IF(Setup!$AG$8<>\"\",INDIRECT(\"'\" & Setup!$AG$8 & \"'!\" & AD277),0) + IF(Setup!$AG$9<>\"\",INDIRECT(\"'\" & Setup!$AG$9 & \"'!\" & AD277),0) + IF(Setup!$AG$10<>\"\",INDIRECT(\"'\" & Setup!$AG$10 & \"'!\" & AD277),0) + IF(Setup!$AG$11<>\"\",INDIRECT(\"'\" & Setup!$AG$11 & \"'!\" & AD277),0) + IF(Setup!$AG$12<>\"\",INDIRECT(\"'\" & Setup!$AG$12 & \"'!\" & AD277),0)","v":{"v":0,"d":"0.00"}},{"$f":"IF(Setup!$AG$7<>\"\",INDIRECT(\"'\" & Setup!$AG$7 & \"'!\" & AE277),0) + IF(Setup!$AG$8<>\"\",INDIRECT(\"'\" & Setup!$AG$8 & \"'!\" & AE277),0) + IF(Setup!$AG$9<>\"\",INDIRECT(\"'\" & Setup!$AG$9 & \"'!\" & AE277),0) + IF(Setup!$AG$10<>\"\",INDIRECT(\"'\" & Setup!$AG$10 & \"'!\" & AE277),0) + IF(Setup!$AG$11<>\"\",INDIRECT(\"'\" & Setup!$AG$11 & \"'!\" & AE277),0) + IF(Setup!$AG$12<>\"\",INDIRECT(\"'\" & Setup!$AG$12 & \"'!\" & AE277),0)","v":{"v":0,"d":"0.00"}},"","",{"$f":"IF(Setup!$AH$7<>\"\",INDIRECT(\"'\" & Setup!$AH$7 & \"'!\" & AD277),0) + IF(Setup!$AH$8<>\"\",INDIRECT(\"'\" & Setup!$AH$8 & \"'!\" & AD277),0) + IF(Setup!$AH$9<>\"\",INDIRECT(\"'\" & Setup!$AH$9 & \"'!\" & AD277),0) + IF(Setup!$AH$10<>\"\",INDIRECT(\"'\" & Setup!$AH$10 & \"'!\" & AD277),0) + IF(Setup!$AH$11<>\"\",INDIRECT(\"'\" & Setup!$AH$11 & \"'!\" & AD277),0) + IF(Setup!$AH$12<>\"\",INDIRECT(\"'\" & Setup!$AH$12 & \"'!\" & AD277),0)","v":{"v":0,"d":"0.00"}},{"$f":"IF(Setup!$AH$7<>\"\",INDIRECT(\"'\" & Setup!$AH$7 & \"'!\" & AE277),0) + IF(Setup!$AH$8<>\"\",INDIRECT(\"'\" & Setup!$AH$8 & \"'!\" & AE277),0) + IF(Setup!$AH$9<>\"\",INDIRECT(\"'\" & Setup!$AH$9 & \"'!\" & AE277),0) + IF(Setup!$AH$10<>\"\",INDIRECT(\"'\" & Setup!$AH$10 & \"'!\" & AE277),0) + IF(Setup!$AH$11<>\"\",INDIRECT(\"'\" & Setup!$AH$11 & \"'!\" & AE277),0) + IF(Setup!$AH$12<>\"\",INDIRECT(\"'\" & Setup!$AH$12 & \"'!\" & AE277),0)","v":{"v":0,"d":"0.00"}},"","",{"$f":"IF(Setup!$AI$7<>\"\",INDIRECT(\"'\" & Setup!$AI$7 & \"'!\" & AD277),0) + IF(Setup!$AI$8<>\"\",INDIRECT(\"'\" & Setup!$AI$8 & \"'!\" & AD277),0) + IF(Setup!$AI$9<>\"\",INDIRECT(\"'\" & Setup!$AI$9 & \"'!\" & AD277),0) + IF(Setup!$AI$10<>\"\",INDIRECT(\"'\" & Setup!$AI$10 & \"'!\" & AD277),0) + IF(Setup!$AI$11<>\"\",INDIRECT(\"'\" & Setup!$AI$11 & \"'!\" & AD277),0) + IF(Setup!$AI$12<>\"\",INDIRECT(\"'\" & Setup!$AI$12 & \"'!\" & AD277),0)","v":{"v":0,"d":"0.00"}},{"$f":"IF(Setup!$AI$7<>\"\",INDIRECT(\"'\" & Setup!$AI$7 & \"'!\" & AE277),0) + IF(Setup!$AI$8<>\"\",INDIRECT(\"'\" & Setup!$AI$8 & \"'!\" & AE277),0) + IF(Setup!$AI$9<>\"\",INDIRECT(\"'\" & Setup!$AI$9 & \"'!\" & AE277),0) + IF(Setup!$AI$10<>\"\",INDIRECT(\"'\" & Setup!$AI$10 & \"'!\" & AE277),0) + IF(Setup!$AI$11<>\"\",INDIRECT(\"'\" & Setup!$AI$11 & \"'!\" & AE277),0) + IF(Setup!$AI$12<>\"\",INDIRECT(\"'\" & Setup!$AI$12 & \"'!\" & AE277),0)","v":{"v":0,"d":"0.00"}},"","",{"$f":"IF(Setup!$AJ$7<>\"\",INDIRECT(\"'\" & Setup!$AJ$7 & \"'!\" & AD277),0) + IF(Setup!$AJ$8<>\"\",INDIRECT(\"'\" & Setup!$AJ$8 & \"'!\" & AD277),0) + IF(Setup!$AJ$9<>\"\",INDIRECT(\"'\" & Setup!$AJ$9 & \"'!\" & AD277),0) + IF(Setup!$AJ$10<>\"\",INDIRECT(\"'\" & Setup!$AJ$10 & \"'!\" & AD277),0) + IF(Setup!$AJ$11<>\"\",INDIRECT(\"'\" & Setup!$AJ$11 & \"'!\" & AD277),0) + IF(Setup!$AJ$12<>\"\",INDIRECT(\"'\" & Setup!$AJ$12 & \"'!\" & AD277),0)","v":0},{"$f":"IF(Setup!$AJ$7<>\"\",INDIRECT(\"'\" & Setup!$AJ$7 & \"'!\" & AE277),0) + IF(Setup!$AJ$8<>\"\",INDIRECT(\"'\" & Setup!$AJ$8 & \"'!\" & AE277),0) + IF(Setup!$AJ$9<>\"\",INDIRECT(\"'\" & Setup!$AJ$9 & \"'!\" & AE277),0) + IF(Setup!$AJ$10<>\"\",INDIRECT(\"'\" & Setup!$AJ$10 & \"'!\" & AE277),0) + IF(Setup!$AJ$11<>\"\",INDIRECT(\"'\" & Setup!$AJ$11 & \"'!\" & AE277),0) + IF(Setup!$AJ$12<>\"\",INDIRECT(\"'\" & Setup!$AJ$12 & \"'!\" & AE277),0)","v":0},"","",{"$f":"Planning!H49","v":0},"00","M65","O65","N65",null,null,{"$f":"IF(Setup!$AG$7<>\"\",INDIRECT(\"'\" & Setup!$AG$7 & \"'!\" & AF277),0) + IF(Setup!$AG$8<>\"\",INDIRECT(\"'\" & Setup!$AG$8 & \"'!\" & AF277),0) + IF(Setup!$AG$9<>\"\",INDIRECT(\"'\" & Setup!$AG$9 & \"'!\" & AF277),0) + IF(Setup!$AG$10<>\"\",INDIRECT(\"'\" & Setup!$AG$10 & \"'!\" & AF277),0) + IF(Setup!$AG$11<>\"\",INDIRECT(\"'\" & Setup!$AG$11 & \"'!\" & AF277),0) + IF(Setup!$AG$12<>\"\",INDIRECT(\"'\" & Setup!$AG$12 & \"'!\" & AF277),0)","v":0},{"$f":"IF(Setup!$AH$7<>\"\",INDIRECT(\"'\" & Setup!$AH$7 & \"'!\" & AF277),0) + IF(Setup!$AH$8<>\"\",INDIRECT(\"'\" & Setup!$AH$8 & \"'!\" & AF277),0) + IF(Setup!$AH$9<>\"\",INDIRECT(\"'\" & Setup!$AH$9 & \"'!\" & AF277),0) + IF(Setup!$AH$10<>\"\",INDIRECT(\"'\" & Setup!$AH$10 & \"'!\" & AF277),0) + IF(Setup!$AH$11<>\"\",INDIRECT(\"'\" & Setup!$AH$11 & \"'!\" & AF277),0) + IF(Setup!$AH$12<>\"\",INDIRECT(\"'\" & Setup!$AH$12 & \"'!\" & AF277),0)","v":0},{"$f":"IF(Setup!$AI$7<>\"\",INDIRECT(\"'\" & Setup!$AI$7 & \"'!\" & AF277),0) + IF(Setup!$AI$8<>\"\",INDIRECT(\"'\" & Setup!$AI$8 & \"'!\" & AF277),0) + IF(Setup!$AI$9<>\"\",INDIRECT(\"'\" & Setup!$AI$9 & \"'!\" & AF277),0) + IF(Setup!$AI$10<>\"\",INDIRECT(\"'\" & Setup!$AI$10 & \"'!\" & AF277),0) + IF(Setup!$AI$11<>\"\",INDIRECT(\"'\" & Setup!$AI$11 & \"'!\" & AF277),0) + IF(Setup!$AI$12<>\"\",INDIRECT(\"'\" & Setup!$AI$12 & \"'!\" & AF277),0)","v":0},{"$f":"IF(Setup!$AJ$7<>\"\",INDIRECT(\"'\" & Setup!$AJ$7 & \"'!\" & AF277),0) + IF(Setup!$AJ$8<>\"\",INDIRECT(\"'\" & Setup!$AJ$8 & \"'!\" & AF277),0) + IF(Setup!$AJ$9<>\"\",INDIRECT(\"'\" & Setup!$AJ$9 & \"'!\" & AF277),0) + IF(Setup!$AJ$10<>\"\",INDIRECT(\"'\" & Setup!$AJ$10 & \"'!\" & AF277),0) + IF(Setup!$AJ$11<>\"\",INDIRECT(\"'\" & Setup!$AJ$11 & \"'!\" & AF277),0) + IF(Setup!$AJ$12<>\"\",INDIRECT(\"'\" & Setup!$AJ$12 & \"'!\" & AF277),0)","v":0},null,"",{"$nulls":30},0,{"$f":"IF(Setup!$AH$7=\"\",0,INDIRECT(\"'\" & Setup!$AH$7 & \"'!\" & AF277))","v":0},{"$f":"IF(Setup!$AI$7=\"\",0,INDIRECT(\"'\" & Setup!$AI$7 & \"'!\" & AF277))","v":0},{"$f":"IF(Setup!$AJ$7=\"\",0,INDIRECT(\"'\" & Setup!$AJ$7 & \"'!\" & AF277))","v":0}]
[{"$f":"Planning!A50","v":"I042"},{"$f":"Planning!B50","v":0},{"$f":"Planning!C50","v":0},{"$f":"Planning!D50","v":0},{"$f":"Planning!E50","v":0},{"$f":"Planning!G50","v":0},0,{"v":0,"d":"0.00"},{"v":0,"d":"0.00"},"","",{"$f":"IF(Setup!$AG$7<>\"\",INDIRECT(\"'\" & Setup!$AG$7 & \"'!\" & AD278),0) + IF(Setup!$AG$8<>\"\",INDIRECT(\"'\" & Setup!$AG$8 & \"'!\" & AD278),0) + IF(Setup!$AG$9<>\"\",INDIRECT(\"'\" & Setup!$AG$9 & \"'!\" & AD278),0) + IF(Setup!$AG$10<>\"\",INDIRECT(\"'\" & Setup!$AG$10 & \"'!\" & AD278),0) + IF(Setup!$AG$11<>\"\",INDIRECT(\"'\" & Setup!$AG$11 & \"'!\" & AD278),0) + IF(Setup!$AG$12<>\"\",INDIRECT(\"'\" & Setup!$AG$12 & \"'!\" & AD278),0)","v":{"v":0,"d":"0.00"}},{"$f":"IF(Setup!$AG$7<>\"\",INDIRECT(\"'\" & Setup!$AG$7 & \"'!\" & AE278),0) + IF(Setup!$AG$8<>\"\",INDIRECT(\"'\" & Setup!$AG$8 & \"'!\" & AE278),0) + IF(Setup!$AG$9<>\"\",INDIRECT(\"'\" & Setup!$AG$9 & \"'!\" & AE278),0) + IF(Setup!$AG$10<>\"\",INDIRECT(\"'\" & Setup!$AG$10 & \"'!\" & AE278),0) + IF(Setup!$AG$11<>\"\",INDIRECT(\"'\" & Setup!$AG$11 & \"'!\" & AE278),0) + IF(Setup!$AG$12<>\"\",INDIRECT(\"'\" & Setup!$AG$12 & \"'!\" & AE278),0)","v":{"v":0,"d":"0.00"}},"","",{"$f":"IF(Setup!$AH$7<>\"\",INDIRECT(\"'\" & Setup!$AH$7 & \"'!\" & AD278),0) + IF(Setup!$AH$8<>\"\",INDIRECT(\"'\" & Setup!$AH$8 & \"'!\" & AD278),0) + IF(Setup!$AH$9<>\"\",INDIRECT(\"'\" & Setup!$AH$9 & \"'!\" & AD278),0) + IF(Setup!$AH$10<>\"\",INDIRECT(\"'\" & Setup!$AH$10 & \"'!\" & AD278),0) + IF(Setup!$AH$11<>\"\",INDIRECT(\"'\" & Setup!$AH$11 & \"'!\" & AD278),0) + IF(Setup!$AH$12<>\"\",INDIRECT(\"'\" & Setup!$AH$12 & \"'!\" & AD278),0)","v":{"v":0,"d":"0.00"}},{"$f":"IF(Setup!$AH$7<>\"\",INDIRECT(\"'\" & Setup!$AH$7 & \"'!\" & AE278),0) + IF(Setup!$AH$8<>\"\",INDIRECT(\"'\" & Setup!$AH$8 & \"'!\" & AE278),0) + IF(Setup!$AH$9<>\"\",INDIRECT(\"'\" & Setup!$AH$9 & \"'!\" & AE278),0) + IF(Setup!$AH$10<>\"\",INDIRECT(\"'\" & Setup!$AH$10 & \"'!\" & AE278),0) + IF(Setup!$AH$11<>\"\",INDIRECT(\"'\" & Setup!$AH$11 & \"'!\" & AE278),0) + IF(Setup!$AH$12<>\"\",INDIRECT(\"'\" & Setup!$AH$12 & \"'!\" & AE278),0)","v":{"v":0,"d":"0.00"}},"","",{"$f":"IF(Setup!$AI$7<>\"\",INDIRECT(\"'\" & Setup!$AI$7 & \"'!\" & AD278),0) + IF(Setup!$AI$8<>\"\",INDIRECT(\"'\" & Setup!$AI$8 & \"'!\" & AD278),0) + IF(Setup!$AI$9<>\"\",INDIRECT(\"'\" & Setup!$AI$9 & \"'!\" & AD278),0) + IF(Setup!$AI$10<>\"\",INDIRECT(\"'\" & Setup!$AI$10 & \"'!\" & AD278),0) + IF(Setup!$AI$11<>\"\",INDIRECT(\"'\" & Setup!$AI$11 & \"'!\" & AD278),0) + IF(Setup!$AI$12<>\"\",INDIRECT(\"'\" & Setup!$AI$12 & \"'!\" & AD278),0)","v":{"v":0,"d":"0.00"}},{"$f":"IF(Setup!$AI$7<>\"\",INDIRECT(\"'\" & Setup!$AI$7 & \"'!\" & AE278),0) + IF(Setup!$AI$8<>\"\",INDIRECT(\"'\" & Setup!$AI$8 & \"'!\" & AE278),0) + IF(Setup!$AI$9<>\"\",INDIRECT(\"'\" & Setup!$AI$9 & \"'!\" & AE278),0) + IF(Setup!$AI$10<>\"\",INDIRECT(\"'\" & Setup!$AI$10 & \"'!\" & AE278),0) + IF(Setup!$AI$11<>\"\",INDIRECT(\"'\" & Setup!$AI$11 & \"'!\" & AE278),0) + IF(Setup!$AI$12<>\"\",INDIRECT(\"'\" & Setup!$AI$12 & \"'!\" & AE278),0)","v":{"v":0,"d":"0.00"}},"","",{"$f":"IF(Setup!$AJ$7<>\"\",INDIRECT(\"'\" & Setup!$AJ$7 & \"'!\" & AD278),0) + IF(Setup!$AJ$8<>\"\",INDIRECT(\"'\" & Setup!$AJ$8 & \"'!\" & AD278),0) + IF(Setup!$AJ$9<>\"\",INDIRECT(\"'\" & Setup!$AJ$9 & \"'!\" & AD278),0) + IF(Setup!$AJ$10<>\"\",INDIRECT(\"'\" & Setup!$AJ$10 & \"'!\" & AD278),0) + IF(Setup!$AJ$11<>\"\",INDIRECT(\"'\" & Setup!$AJ$11 & \"'!\" & AD278),0) + IF(Setup!$AJ$12<>\"\",INDIRECT(\"'\" & Setup!$AJ$12 & \"'!\" & AD278),0)","v":0},{"$f":"IF(Setup!$AJ$7<>\"\",INDIRECT(\"'\" & Setup!$AJ$7 & \"'!\" & AE278),0) + IF(Setup!$AJ$8<>\"\",INDIRECT(\"'\" & Setup!$AJ$8 & \"'!\" & AE278),0) + IF(Setup!$AJ$9<>\"\",INDIRECT(\"'\" & Setup!$AJ$9 & \"'!\" & AE278),0) + IF(Setup!$AJ$10<>\"\",INDIRECT(\"'\" & Setup!$AJ$10 & \"'!\" & AE278),0) + IF(Setup!$AJ$11<>\"\",INDIRECT(\"'\" & Setup!$AJ$11 & \"'!\" & AE278),0) + IF(Setup!$AJ$12<>\"\",INDIRECT(\"'\" & Setup!$AJ$12 & \"'!\" & AE278),0)","v":0},"","",{"$f":"Planning!H50","v":0},"00","M66","O66","N66",null,null,{"$f":"IF(Setup!$AG$7<>\"\",INDIRECT(\"'\" & Setup!$AG$7 & \"'!\" & AF278),0) + IF(Setup!$AG$8<>\"\",INDIRECT(\"'\" & Setup!$AG$8 & \"'!\" & AF278),0) + IF(Setup!$AG$9<>\"\",INDIRECT(\"'\" & Setup!$AG$9 & \"'!\" & AF278),0) + IF(Setup!$AG$10<>\"\",INDIRECT(\"'\" & Setup!$AG$10 & \"'!\" & AF278),0) + IF(Setup!$AG$11<>\"\",INDIRECT(\"'\" & Setup!$AG$11 & \"'!\" & AF278),0) + IF(Setup!$AG$12<>\"\",INDIRECT(\"'\" & Setup!$AG$12 & \"'!\" & AF278),0)","v":0},{"$f":"IF(Setup!$AH$7<>\"\",INDIRECT(\"'\" & Setup!$AH$7 & \"'!\" & AF278),0) + IF(Setup!$AH$8<>\"\",INDIRECT(\"'\" & Setup!$AH$8 & \"'!\" & AF278),0) + IF(Setup!$AH$9<>\"\",INDIRECT(\"'\" & Setup!$AH$9 & \"'!\" & AF278),0) + IF(Setup!$AH$10<>\"\",INDIRECT(\"'\" & Setup!$AH$10 & \"'!\" & AF278),0) + IF(Setup!$AH$11<>\"\",INDIRECT(\"'\" & Setup!$AH$11 & \"'!\" & AF278),0) + IF(Setup!$AH$12<>\"\",INDIRECT(\"'\" & Setup!$AH$12 & \"'!\" & AF278),0)","v":0},{"$f":"IF(Setup!$AI$7<>\"\",INDIRECT(\"'\" & Setup!$AI$7 & \"'!\" & AF278),0) + IF(Setup!$AI$8<>\"\",INDIRECT(\"'\" & Setup!$AI$8 & \"'!\" & AF278),0) + IF(Setup!$AI$9<>\"\",INDIRECT(\"'\" & Setup!$AI$9 & \"'!\" & AF278),0) + IF(Setup!$AI$10<>\"\",INDIRECT(\"'\" & Setup!$AI$10 & \"'!\" & AF278),0) + IF(Setup!$AI$11<>\"\",INDIRECT(\"'\" & Setup!$AI$11 & \"'!\" & AF278),0) + IF(Setup!$AI$12<>\"\",INDIRECT(\"'\" & Setup!$AI$12 & \"'!\" & AF278),0)","v":0},{"$f":"IF(Setup!$AJ$7<>\"\",INDIRECT(\"'\" & Setup!$AJ$7 & \"'!\" & AF278),0) + IF(Setup!$AJ$8<>\"\",INDIRECT(\"'\" & Setup!$AJ$8 & \"'!\" & AF278),0) + IF(Setup!$AJ$9<>\"\",INDIRECT(\"'\" & Setup!$AJ$9 & \"'!\" & AF278),0) + IF(Setup!$AJ$10<>\"\",INDIRECT(\"'\" & Setup!$AJ$10 & \"'!\" & AF278),0) + IF(Setup!$AJ$11<>\"\",INDIRECT(\"'\" & Setup!$AJ$11 & \"'!\" & AF278),0) + IF(Setup!$AJ$12<>\"\",INDIRECT(\"'\" & Setup!$AJ$12 & \"'!\" & AF278),0)","v":0},null,"",{"$nulls":30},0,{"$f":"IF(Setup!$AH$7=\"\",0,INDIRECT(\"'\" & Setup!$AH$7 & \"'!\" & AF278))","v":0},{"$f":"IF(Setup!$AI$7=\"\",0,INDIRECT(\"'\" & Setup!$AI$7 & \"'!\" & AF278))","v":0},{"$f":"IF(Setup!$AJ$7=\"\",0,INDIRECT(\"'\" & Setup!$AJ$7 & \"'!\" & AF278))","v":0}]
[{"$f":"Planning!A51","v":"I043"},{"$f":"Planning!B51","v":0},{"$f":"Planning!C51","v":0},{"$f":"Planning!D51","v":0},{"$f":"Planning!E51","v":0},{"$f":"Planning!G51","v":0},0,{"v":0,"d":"0.00"},{"v":0,"d":"0.00"},"","",{"$f":"IF(Setup!$AG$7<>\"\",INDIRECT(\"'\" & Setup!$AG$7 & \"'!\" & AD279),0) + IF(Setup!$AG$8<>\"\",INDIRECT(\"'\" & Setup!$AG$8 & \"'!\" & AD279),0) + IF(Setup!$AG$9<>\"\",INDIRECT(\"'\" & Setup!$AG$9 & \"'!\" & AD279),0) + IF(Setup!$AG$10<>\"\",INDIRECT(\"'\" & Setup!$AG$10 & \"'!\" & AD279),0) + IF(Setup!$AG$11<>\"\",INDIRECT(\"'\" & Setup!$AG$11 & \"'!\" & AD279),0) + IF(Setup!$AG$12<>\"\",INDIRECT(\"'\" & Setup!$AG$12 & \"'!\" & AD279),0)","v":{"v":0,"d":"0.00"}},{"$f":"IF(Setup!$AG$7<>\"\",INDIRECT(\"'\" & Setup!$AG$7 & \"'!\" & AE279),0) + IF(Setup!$AG$8<>\"\",INDIRECT(\"'\" & Setup!$AG$8 & \"'!\" & AE279),0) + IF(Setup!$AG$9<>\"\",INDIRECT(\"'\" & Setup!$AG$9 & \"'!\" & AE279),0) + IF(Setup!$AG$10<>\"\",INDIRECT(\"'\" & Setup!$AG$10 & \"'!\" & AE279),0) + IF(Setup!$AG$11<>\"\",INDIRECT(\"'\" & Setup!$AG$11 & \"'!\" & AE279),0) + IF(Setup!$AG$12<>\"\",INDIRECT(\"'\" & Setup!$AG$12 & \"'!\" & AE279),0)","v":{"v":0,"d":"0.00"}},"","",{"$f":"IF(Setup!$AH$7<>\"\",INDIRECT(\"'\" & Setup!$AH$7 & \"'!\" & AD279),0) + IF(Setup!$AH$8<>\"\",INDIRECT(\"'\" & Setup!$AH$8 & \"'!\" & AD279),0) + IF(Setup!$AH$9<>\"\",INDIRECT(\"'\" & Setup!$AH$9 & \"'!\" & AD279),0) + IF(Setup!$AH$10<>\"\",INDIRECT(\"'\" & Setup!$AH$10 & \"'!\" & AD279),0) + IF(Setup!$AH$11<>\"\",INDIRECT(\"'\" & Setup!$AH$11 & \"'!\" & AD279),0) + IF(Setup!$AH$12<>\"\",INDIRECT(\"'\" & Setup!$AH$12 & \"'!\" & AD279),0)","v":{"v":0,"d":"0.00"}},{"$f":"IF(Setup!$AH$7<>\"\",INDIRECT(\"'\" & Setup!$AH$7 & \"'!\" & AE279),0) + IF(Setup!$AH$8<>\"\",INDIRECT(\"'\" & Setup!$AH$8 & \"'!\" & AE279),0) + IF(Setup!$AH$9<>\"\",INDIRECT(\"'\" & Setup!$AH$9 & \"'!\" & AE279),0) + IF(Setup!$AH$10<>\"\",INDIRECT(\"'\" & Setup!$AH$10 & \"'!\" & AE279),0) + IF(Setup!$AH$11<>\"\",INDIRECT(\"'\" & Setup!$AH$11 & \"'!\" & AE279),0) + IF(Setup!$AH$12<>\"\",INDIRECT(\"'\" & Setup!$AH$12 & \"'!\" & AE279),0)","v":{"v":0,"d":"0.00"}},"","",{"$f":"IF(Setup!$AI$7<>\"\",INDIRECT(\"'\" & Setup!$AI$7 & \"'!\" & AD279),0) + IF(Setup!$AI$8<>\"\",INDIRECT(\"'\" & Setup!$AI$8 & \"'!\" & AD279),0) + IF(Setup!$AI$9<>\"\",INDIRECT(\"'\" & Setup!$AI$9 & \"'!\" & AD279),0) + IF(Setup!$AI$10<>\"\",INDIRECT(\"'\" & Setup!$AI$10 & \"'!\" & AD279),0) + IF(Setup!$AI$11<>\"\",INDIRECT(\"'\" & Setup!$AI$11 & \"'!\" & AD279),0) + IF(Setup!$AI$12<>\"\",INDIRECT(\"'\" & Setup!$AI$12 & \"'!\" & AD279),0)","v":{"v":0,"d":"0.00"}},{"$f":"IF(Setup!$AI$7<>\"\",INDIRECT(\"'\" & Setup!$AI$7 & \"'!\" & AE279),0) + IF(Setup!$AI$8<>\"\",INDIRECT(\"'\" & Setup!$AI$8 & \"'!\" & AE279),0) + IF(Setup!$AI$9<>\"\",INDIRECT(\"'\" & Setup!$AI$9 & \"'!\" & AE279),0) + IF(Setup!$AI$10<>\"\",INDIRECT(\"'\" & Setup!$AI$10 & \"'!\" & AE279),0) + IF(Setup!$AI$11<>\"\",INDIRECT(\"'\" & Setup!$AI$11 & \"'!\" & AE279),0) + IF(Setup!$AI$12<>\"\",INDIRECT(\"'\" & Setup!$AI$12 & \"'!\" & AE279),0)","v":{"v":0,"d":"0.00"}},"","",{"$f":"IF(Setup!$AJ$7<>\"\",INDIRECT(\"'\" & Setup!$AJ$7 & \"'!\" & AD279),0) + IF(Setup!$AJ$8<>\"\",INDIRECT(\"'\" & Setup!$AJ$8 & \"'!\" & AD279),0) + IF(Setup!$AJ$9<>\"\",INDIRECT(\"'\" & Setup!$AJ$9 & \"'!\" & AD279),0) + IF(Setup!$AJ$10<>\"\",INDIRECT(\"'\" & Setup!$AJ$10 & \"'!\" & AD279),0) + IF(Setup!$AJ$11<>\"\",INDIRECT(\"'\" & Setup!$AJ$11 & \"'!\" & AD279),0) + IF(Setup!$AJ$12<>\"\",INDIRECT(\"'\" & Setup!$AJ$12 & \"'!\" & AD279),0)","v":0},{"$f":"IF(Setup!$AJ$7<>\"\",INDIRECT(\"'\" & Setup!$AJ$7 & \"'!\" & AE279),0) + IF(Setup!$AJ$8<>\"\",INDIRECT(\"'\" & Setup!$AJ$8 & \"'!\" & AE279),0) + IF(Setup!$AJ$9<>\"\",INDIRECT(\"'\" & Setup!$AJ$9 & \"'!\" & AE279),0) + IF(Setup!$AJ$10<>\"\",INDIRECT(\"'\" & Setup!$AJ$10 & \"'!\" & AE279),0) + IF(Setup!$AJ$11<>\"\",INDIRECT(\"'\" & Setup!$AJ$11 & \"'!\" & AE279),0) + IF(Setup!$AJ$12<>\"\",INDIRECT(\"'\" & Setup!$AJ$12 & \"'!\" & AE279),0)","v":0},"","",{"$f":"Planning!H51","v":0},"00","M67","O67","N67",null,null,{"$f":"IF(Setup!$AG$7<>\"\",INDIRECT(\"'\" & Setup!$AG$7 & \"'!\" & AF279),0) + IF(Setup!$AG$8<>\"\",INDIRECT(\"'\" & Setup!$AG$8 & \"'!\" & AF279),0) + IF(Setup!$AG$9<>\"\",INDIRECT(\"'\" & Setup!$AG$9 & \"'!\" & AF279),0) + IF(Setup!$AG$10<>\"\",INDIRECT(\"'\" & Setup!$AG$10 & \"'!\" & AF279),0) + IF(Setup!$AG$11<>\"\",INDIRECT(\"'\" & Setup!$AG$11 & \"'!\" & AF279),0) + IF(Setup!$AG$12<>\"\",INDIRECT(\"'\" & Setup!$AG$12 & \"'!\" & AF279),0)","v":0},{"$f":"IF(Setup!$AH$7<>\"\",INDIRECT(\"'\" & Setup!$AH$7 & \"'!\" & AF279),0) + IF(Setup!$AH$8<>\"\",INDIRECT(\"'\" & Setup!$AH$8 & \"'!\" & AF279),0) + IF(Setup!$AH$9<>\"\",INDIRECT(\"'\" & Setup!$AH$9 & \"'!\" & AF279),0) + IF(Setup!$AH$10<>\"\",INDIRECT(\"'\" & Setup!$AH$10 & \"'!\" & AF279),0) + IF(Setup!$AH$11<>\"\",INDIRECT(\"'\" & Setup!$AH$11 & \"'!\" & AF279),0) + IF(Setup!$AH$12<>\"\",INDIRECT(\"'\" & Setup!$AH$12 & \"'!\" & AF279),0)","v":0},{"$f":"IF(Setup!$AI$7<>\"\",INDIRECT(\"'\" & Setup!$AI$7 & \"'!\" & AF279),0) + IF(Setup!$AI$8<>\"\",INDIRECT(\"'\" & Setup!$AI$8 & \"'!\" & AF279),0) + IF(Setup!$AI$9<>\"\",INDIRECT(\"'\" & Setup!$AI$9 & \"'!\" & AF279),0) + IF(Setup!$AI$10<>\"\",INDIRECT(\"'\" & Setup!$AI$10 & \"'!\" & AF279),0) + IF(Setup!$AI$11<>\"\",INDIRECT(\"'\" & Setup!$AI$11 & \"'!\" & AF279),0) + IF(Setup!$AI$12<>\"\",INDIRECT(\"'\" & Setup!$AI$12 & \"'!\" & AF279),0)","v":0},{"$f":"IF(Setup!$AJ$7<>\"\",INDIRECT(\"'\" & Setup!$AJ$7 & \"'!\" & AF279),0) + IF(Setup!$AJ$8<>\"\",INDIRECT(\"'\" & Setup!$AJ$8 & \"'!\" & AF279),0) + IF(Setup!$AJ$9<>\"\",INDIRECT(\"'\" & Setup!$AJ$9 & \"'!\" & AF279),0) + IF(Setup!$AJ$10<>\"\",INDIRECT(\"'\" & Setup!$AJ$10 & \"'!\" & AF279),0) + IF(Setup!$AJ$11<>\"\",INDIRECT(\"'\" & Setup!$AJ$11 & \"'!\" & AF279),0) + IF(Setup!$AJ$12<>\"\",INDIRECT(\"'\" & Setup!$AJ$12 & \"'!\" & AF279),0)","v":0},null,"",{"$nulls":30},0,{"$f":"IF(Setup!$AH$7=\"\",0,INDIRECT(\"'\" & Setup!$AH$7 & \"'!\" & AF279))","v":0},{"$f":"IF(Setup!$AI$7=\"\",0,INDIRECT(\"'\" & Setup!$AI$7 & \"'!\" & AF279))","v":0},{"$f":"IF(Setup!$AJ$7=\"\",0,INDIRECT(\"'\" & Setup!$AJ$7 & \"'!\" & AF279))","v":0}]
[{"$f":"Planning!A52","v":"I044"},{"$f":"Planning!B52","v":0},{"$f":"Planning!C52","v":0},{"$f":"Planning!D52","v":0},{"$f":"Planning!E52","v":0},{"$f":"Planning!G52","v":0},0,{"v":0,"d":"0.00"},{"v":0,"d":"0.00"},"","",{"$f":"IF(Setup!$AG$7<>\"\",INDIRECT(\"'\" & Setup!$AG$7 & \"'!\" & AD280),0) + IF(Setup!$AG$8<>\"\",INDIRECT(\"'\" & Setup!$AG$8 & \"'!\" & AD280),0) + IF(Setup!$AG$9<>\"\",INDIRECT(\"'\" & Setup!$AG$9 & \"'!\" & AD280),0) + IF(Setup!$AG$10<>\"\",INDIRECT(\"'\" & Setup!$AG$10 & \"'!\" & AD280),0) + IF(Setup!$AG$11<>\"\",INDIRECT(\"'\" & Setup!$AG$11 & \"'!\" & AD280),0) + IF(Setup!$AG$12<>\"\",INDIRECT(\"'\" & Setup!$AG$12 & \"'!\" & AD280),0)","v":{"v":0,"d":"0.00"}},{"$f":"IF(Setup!$AG$7<>\"\",INDIRECT(\"'\" & Setup!$AG$7 & \"'!\" & AE280),0) + IF(Setup!$AG$8<>\"\",INDIRECT(\"'\" & Setup!$AG$8 & \"'!\" & AE280),0) + IF(Setup!$AG$9<>\"\",INDIRECT(\"'\" & Setup!$AG$9 & \"'!\" & AE280),0) + IF(Setup!$AG$10<>\"\",INDIRECT(\"'\" & Setup!$AG$10 & \"'!\" & AE280),0) + IF(Setup!$AG$11<>\"\",INDIRECT(\"'\" & Setup!$AG$11 & \"'!\" & AE280),0) + IF(Setup!$AG$12<>\"\",INDIRECT(\"'\" & Setup!$AG$12 & \"'!\" & AE280),0)","v":{"v":0,"d":"0.00"}},"","",{"$f":"IF(Setup!$AH$7<>\"\",INDIRECT(\"'\" & Setup!$AH$7 & \"'!\" & AD280),0) + IF(Setup!$AH$8<>\"\",INDIRECT(\"'\" & Setup!$AH$8 & \"'!\" & AD280),0) + IF(Setup!$AH$9<>\"\",INDIRECT(\"'\" & Setup!$AH$9 & \"'!\" & AD280),0) + IF(Setup!$AH$10<>\"\",INDIRECT(\"'\" & Setup!$AH$10 & \"'!\" & AD280),0) + IF(Setup!$AH$11<>\"\",INDIRECT(\"'\" & Setup!$AH$11 & \"'!\" & AD280),0) + IF(Setup!$AH$12<>\"\",INDIRECT(\"'\" & Setup!$AH$12 & \"'!\" & AD280),0)","v":{"v":0,"d":"0.00"}},{"$f":"IF(Setup!$AH$7<>\"\",INDIRECT(\"'\" & Setup!$AH$7 & \"'!\" & AE280),0) + IF(Setup!$AH$8<>\"\",INDIRECT(\"'\" & Setup!$AH$8 & \"'!\" & AE280),0) + IF(Setup!$AH$9<>\"\",INDIRECT(\"'\" & Setup!$AH$9 & \"'!\" & AE280),0) + IF(Setup!$AH$10<>\"\",INDIRECT(\"'\" & Setup!$AH$10 & \"'!\" & AE280),0) + IF(Setup!$AH$11<>\"\",INDIRECT(\"'\" & Setup!$AH$11 & \"'!\" & AE280),0) + IF(Setup!$AH$12<>\"\",INDIRECT(\"'\" & Setup!$AH$12 & \"'!\" & AE280),0)","v":{"v":0,"d":"0.00"}},"","",{"$f":"IF(Setup!$AI$7<>\"\",INDIRECT(\"'\" & Setup!$AI$7 & \"'!\" & AD280),0) + IF(Setup!$AI$8<>\"\",INDIRECT(\"'\" & Setup!$AI$8 & \"'!\" & AD280),0) + IF(Setup!$AI$9<>\"\",INDIRECT(\"'\" & Setup!$AI$9 & \"'!\" & AD280),0) + IF(Setup!$AI$10<>\"\",INDIRECT(\"'\" & Setup!$AI$10 & \"'!\" & AD280),0) + IF(Setup!$AI$11<>\"\",INDIRECT(\"'\" & Setup!$AI$11 & \"'!\" & AD280),0) + IF(Setup!$AI$12<>\"\",INDIRECT(\"'\" & Setup!$AI$12 & \"'!\" & AD280),0)","v":{"v":0,"d":"0.00"}},{"$f":"IF(Setup!$AI$7<>\"\",INDIRECT(\"'\" & Setup!$AI$7 & \"'!\" & AE280),0) + IF(Setup!$AI$8<>\"\",INDIRECT(\"'\" & Setup!$AI$8 & \"'!\" & AE280),0) + IF(Setup!$AI$9<>\"\",INDIRECT(\"'\" & Setup!$AI$9 & \"'!\" & AE280),0) + IF(Setup!$AI$10<>\"\",INDIRECT(\"'\" & Setup!$AI$10 & \"'!\" & AE280),0) + IF(Setup!$AI$11<>\"\",INDIRECT(\"'\" & Setup!$AI$11 & \"'!\" & AE280),0) + IF(Setup!$AI$12<>\"\",INDIRECT(\"'\" & Setup!$AI$12 & \"'!\" & AE280),0)","v":{"v":0,"d":"0.00"}},"","",{"$f":"IF(Setup!$AJ$7<>\"\",INDIRECT(\"'\" & Setup!$AJ$7 & \"'!\" & AD280),0) + IF(Setup!$AJ$8<>\"\",INDIRECT(\"'\" & Setup!$AJ$8 & \"'!\" & AD280),0) + IF(Setup!$AJ$9<>\"\",INDIRECT(\"'\" & Setup!$AJ$9 & \"'!\" & AD280),0) + IF(Setup!$AJ$10<>\"\",INDIRECT(\"'\" & Setup!$AJ$10 & \"'!\" & AD280),0) + IF(Setup!$AJ$11<>\"\",INDIRECT(\"'\" & Setup!$AJ$11 & \"'!\" & AD280),0) + IF(Setup!$AJ$12<>\"\",INDIRECT(\"'\" & Setup!$AJ$12 & \"'!\" & AD280),0)","v":0},{"$f":"IF(Setup!$AJ$7<>\"\",INDIRECT(\"'\" & Setup!$AJ$7 & \"'!\" & AE280),0) + IF(Setup!$AJ$8<>\"\",INDIRECT(\"'\" & Setup!$AJ$8 & \"'!\" & AE280),0) + IF(Setup!$AJ$9<>\"\",INDIRECT(\"'\" & Setup!$AJ$9 & \"'!\" & AE280),0) + IF(Setup!$AJ$10<>\"\",INDIRECT(\"'\" & Setup!$AJ$10 & \"'!\" & AE280),0) + IF(Setup!$AJ$11<>\"\",INDIRECT(\"'\" & Setup!$AJ$11 & \"'!\" & AE280),0) + IF(Setup!$AJ$12<>\"\",INDIRECT(\"'\" & Setup!$AJ$12 & \"'!\" & AE280),0)","v":0},"","",{"$f":"Planning!H52","v":0},"00","M68","O68","N68",null,null,{"$f":"IF(Setup!$AG$7<>\"\",INDIRECT(\"'\" & Setup!$AG$7 & \"'!\" & AF280),0) + IF(Setup!$AG$8<>\"\",INDIRECT(\"'\" & Setup!$AG$8 & \"'!\" & AF280),0) + IF(Setup!$AG$9<>\"\",INDIRECT(\"'\" & Setup!$AG$9 & \"'!\" & AF280),0) + IF(Setup!$AG$10<>\"\",INDIRECT(\"'\" & Setup!$AG$10 & \"'!\" & AF280),0) + IF(Setup!$AG$11<>\"\",INDIRECT(\"'\" & Setup!$AG$11 & \"'!\" & AF280),0) + IF(Setup!$AG$12<>\"\",INDIRECT(\"'\" & Setup!$AG$12 & \"'!\" & AF280),0)","v":0},{"$f":"IF(Setup!$AH$7<>\"\",INDIRECT(\"'\" & Setup!$AH$7 & \"'!\" & AF280),0) + IF(Setup!$AH$8<>\"\",INDIRECT(\"'\" & Setup!$AH$8 & \"'!\" & AF280),0) + IF(Setup!$AH$9<>\"\",INDIRECT(\"'\" & Setup!$AH$9 & \"'!\" & AF280),0) + IF(Setup!$AH$10<>\"\",INDIRECT(\"'\" & Setup!$AH$10 & \"'!\" & AF280),0) + IF(Setup!$AH$11<>\"\",INDIRECT(\"'\" & Setup!$AH$11 & \"'!\" & AF280),0) + IF(Setup!$AH$12<>\"\",INDIRECT(\"'\" & Setup!$AH$12 & \"'!\" & AF280),0)","v":0},{"$f":"IF(Setup!$AI$7<>\"\",INDIRECT(\"'\" & Setup!$AI$7 & \"'!\" & AF280),0) + IF(Setup!$AI$8<>\"\",INDIRECT(\"'\" & Setup!$AI$8 & \"'!\" & AF280),0) + IF(Setup!$AI$9<>\"\",INDIRECT(\"'\" & Setup!$AI$9 & \"'!\" & AF280),0) + IF(Setup!$AI$10<>\"\",INDIRECT(\"'\" & Setup!$AI$10 & \"'!\" & AF280),0) + IF(Setup!$AI$11<>\"\",INDIRECT(\"'\" & Setup!$AI$11 & \"'!\" & AF280),0) + IF(Setup!$AI$12<>\"\",INDIRECT(\"'\" & Setup!$AI$12 & \"'!\" & AF280),0)","v":0},{"$f":"IF(Setup!$AJ$7<>\"\",INDIRECT(\"'\" & Setup!$AJ$7 & \"'!\" & AF280),0) + IF(Setup!$AJ$8<>\"\",INDIRECT(\"'\" & Setup!$AJ$8 & \"'!\" & AF280),0) + IF(Setup!$AJ$9<>\"\",INDIRECT(\"'\" & Setup!$AJ$9 & \"'!\" & AF280),0) + IF(Setup!$AJ$10<>\"\",INDIRECT(\"'\" & Setup!$AJ$10 & \"'!\" & AF280),0) + IF(Setup!$AJ$11<>\"\",INDIRECT(\"'\" & Setup!$AJ$11 & \"'!\" & AF280),0) + IF(Setup!$AJ$12<>\"\",INDIRECT(\"'\" & Setup!$AJ$12 & \"'!\" & AF280),0)","v":0},null,"",{"$nulls":30},0,{"$f":"IF(Setup!$AH$7=\"\",0,INDIRECT(\"'\" & Setup!$AH$7 & \"'!\" & AF280))","v":0},{"$f":"IF(Setup!$AI$7=\"\",0,INDIRECT(\"'\" & Setup!$AI$7 & \"'!\" & AF280))","v":0},{"$f":"IF(Setup!$AJ$7=\"\",0,INDIRECT(\"'\" & Setup!$AJ$7 & \"'!\" & AF280))","v":0}]
[{"$f":"Planning!A53","v":"I045"},{"$f":"Planning!B53","v":0},{"$f":"Planning!C53","v":0},{"$f":"Planning!D53","v":0},{"$f":"Planning!E53","v":0},{"$f":"Planning!G53","v":0},0,{"v":0,"d":"0.00"},{"v":0,"d":"0.00"},"","",{"$f":"IF(Setup!$AG$7<>\"\",INDIRECT(\"'\" & Setup!$AG$7 & \"'!\" & AD281),0) + IF(Setup!$AG$8<>\"\",INDIRECT(\"'\" & Setup!$AG$8 & \"'!\" & AD281),0) + IF(Setup!$AG$9<>\"\",INDIRECT(\"'\" & Setup!$AG$9 & \"'!\" & AD281),0) + IF(Setup!$AG$10<>\"\",INDIRECT(\"'\" & Setup!$AG$10 & \"'!\" & AD281),0) + IF(Setup!$AG$11<>\"\",INDIRECT(\"'\" & Setup!$AG$11 & \"'!\" & AD281),0) + IF(Setup!$AG$12<>\"\",INDIRECT(\"'\" & Setup!$AG$12 & \"'!\" & AD281),0)","v":{"v":0,"d":"0.00"}},{"$f":"IF(Setup!$AG$7<>\"\",INDIRECT(\"'\" & Setup!$AG$7 & \"'!\" & AE281),0) + IF(Setup!$AG$8<>\"\",INDIRECT(\"'\" & Setup!$AG$8 & \"'!\" & AE281),0) + IF(Setup!$AG$9<>\"\",INDIRECT(\"'\" & Setup!$AG$9 & \"'!\" & AE281),0) + IF(Setup!$AG$10<>\"\",INDIRECT(\"'\" & Setup!$AG$10 & \"'!\" & AE281),0) + IF(Setup!$AG$11<>\"\",INDIRECT(\"'\" & Setup!$AG$11 & \"'!\" & AE281),0) + IF(Setup!$AG$12<>\"\",INDIRECT(\"'\" & Setup!$AG$12 & \"'!\" & AE281),0)","v":{"v":0,"d":"0.00"}},"","",{"$f":"IF(Setup!$AH$7<>\"\",INDIRECT(\"'\" & Setup!$AH$7 & \"'!\" & AD281),0) + IF(Setup!$AH$8<>\"\",INDIRECT(\"'\" & Setup!$AH$8 & \"'!\" & AD281),0) + IF(Setup!$AH$9<>\"\",INDIRECT(\"'\" & Setup!$AH$9 & \"'!\" & AD281),0) + IF(Setup!$AH$10<>\"\",INDIRECT(\"'\" & Setup!$AH$10 & \"'!\" & AD281),0) + IF(Setup!$AH$11<>\"\",INDIRECT(\"'\" & Setup!$AH$11 & \"'!\" & AD281),0) + IF(Setup!$AH$12<>\"\",INDIRECT(\"'\" & Setup!$AH$12 & \"'!\" & AD281),0)","v":{"v":0,"d":"0.00"}},{"$f":"IF(Setup!$AH$7<>\"\",INDIRECT(\"'\" & Setup!$AH$7 & \"'!\" & AE281),0) + IF(Setup!$AH$8<>\"\",INDIRECT(\"'\" & Setup!$AH$8 & \"'!\" & AE281),0) + IF(Setup!$AH$9<>\"\",INDIRECT(\"'\" & Setup!$AH$9 & \"'!\" & AE281),0) + IF(Setup!$AH$10<>\"\",INDIRECT(\"'\" & Setup!$AH$10 & \"'!\" & AE281),0) + IF(Setup!$AH$11<>\"\",INDIRECT(\"'\" & Setup!$AH$11 & \"'!\" & AE281),0) + IF(Setup!$AH$12<>\"\",INDIRECT(\"'\" & Setup!$AH$12 & \"'!\" & AE281),0)","v":{"v":0,"d":"0.00"}},"","",{"$f":"IF(Setup!$AI$7<>\"\",INDIRECT(\"'\" & Setup!$AI$7 & \"'!\" & AD281),0) + IF(Setup!$AI$8<>\"\",INDIRECT(\"'\" & Setup!$AI$8 & \"'!\" & AD281),0) + IF(Setup!$AI$9<>\"\",INDIRECT(\"'\" & Setup!$AI$9 & \"'!\" & AD281),0) + IF(Setup!$AI$10<>\"\",INDIRECT(\"'\" & Setup!$AI$10 & \"'!\" & AD281),0) + IF(Setup!$AI$11<>\"\",INDIRECT(\"'\" & Setup!$AI$11 & \"'!\" & AD281),0) + IF(Setup!$AI$12<>\"\",INDIRECT(\"'\" & Setup!$AI$12 & \"'!\" & AD281),0)","v":{"v":0,"d":"0.00"}},{"$f":"IF(Setup!$AI$7<>\"\",INDIRECT(\"'\" & Setup!$AI$7 & \"'!\" & AE281),0) + IF(Setup!$AI$8<>\"\",INDIRECT(\"'\" & Setup!$AI$8 & \"'!\" & AE281),0) + IF(Setup!$AI$9<>\"\",INDIRECT(\"'\" & Setup!$AI$9 & \"'!\" & AE281),0) + IF(Setup!$AI$10<>\"\",INDIRECT(\"'\" & Setup!$AI$10 & \"'!\" & AE281),0) + IF(Setup!$AI$11<>\"\",INDIRECT(\"'\" & Setup!$AI$11 & \"'!\" & AE281),0) + IF(Setup!$AI$12<>\"\",INDIRECT(\"'\" & Setup!$AI$12 & \"'!\" & AE281),0)","v":{"v":0,"d":"0.00"}},"","",{"$f":"IF(Setup!$AJ$7<>\"\",INDIRECT(\"'\" & Setup!$AJ$7 & \"'!\" & AD281),0) + IF(Setup!$AJ$8<>\"\",INDIRECT(\"'\" & Setup!$AJ$8 & \"'!\" & AD281),0) + IF(Setup!$AJ$9<>\"\",INDIRECT(\"'\" & Setup!$AJ$9 & \"'!\" & AD281),0) + IF(Setup!$AJ$10<>\"\",INDIRECT(\"'\" & Setup!$AJ$10 & \"'!\" & AD281),0) + IF(Setup!$AJ$11<>\"\",INDIRECT(\"'\" & Setup!$AJ$11 & \"'!\" & AD281),0) + IF(Setup!$AJ$12<>\"\",INDIRECT(\"'\" & Setup!$AJ$12 & \"'!\" & AD281),0)","v":0},{"$f":"IF(Setup!$AJ$7<>\"\",INDIRECT(\"'\" & Setup!$AJ$7 & \"'!\" & AE281),0) + IF(Setup!$AJ$8<>\"\",INDIRECT(\"'\" & Setup!$AJ$8 & \"'!\" & AE281),0) + IF(Setup!$AJ$9<>\"\",INDIRECT(\"'\" & Setup!$AJ$9 & \"'!\" & AE281),0) + IF(Setup!$AJ$10<>\"\",INDIRECT(\"'\" & Setup!$AJ$10 & \"'!\" & AE281),0) + IF(Setup!$AJ$11<>\"\",INDIRECT(\"'\" & Setup!$AJ$11 & \"'!\" & AE281),0) + IF(Setup!$AJ$12<>\"\",INDIRECT(\"'\" & Setup!$AJ$12 & \"'!\" & AE281),0)","v":0},"","",{"$f":"Planning!H53","v":0},"00","M69","O69","N69",null,null,{"$f":"IF(Setup!$AG$7<>\"\",INDIRECT(\"'\" & Setup!$AG$7 & \"'!\" & AF281),0) + IF(Setup!$AG$8<>\"\",INDIRECT(\"'\" & Setup!$AG$8 & \"'!\" & AF281),0) + IF(Setup!$AG$9<>\"\",INDIRECT(\"'\" & Setup!$AG$9 & \"'!\" & AF281),0) + IF(Setup!$AG$10<>\"\",INDIRECT(\"'\" & Setup!$AG$10 & \"'!\" & AF281),0) + IF(Setup!$AG$11<>\"\",INDIRECT(\"'\" & Setup!$AG$11 & \"'!\" & AF281),0) + IF(Setup!$AG$12<>\"\",INDIRECT(\"'\" & Setup!$AG$12 & \"'!\" & AF281),0)","v":0},{"$f":"IF(Setup!$AH$7<>\"\",INDIRECT(\"'\" & Setup!$AH$7 & \"'!\" & AF281),0) + IF(Setup!$AH$8<>\"\",INDIRECT(\"'\" & Setup!$AH$8 & \"'!\" & AF281),0) + IF(Setup!$AH$9<>\"\",INDIRECT(\"'\" & Setup!$AH$9 & \"'!\" & AF281),0) + IF(Setup!$AH$10<>\"\",INDIRECT(\"'\" & Setup!$AH$10 & \"'!\" & AF281),0) + IF(Setup!$AH$11<>\"\",INDIRECT(\"'\" & Setup!$AH$11 & \"'!\" & AF281),0) + IF(Setup!$AH$12<>\"\",INDIRECT(\"'\" & Setup!$AH$12 & \"'!\" & AF281),0)","v":0},{"$f":"IF(Setup!$AI$7<>\"\",INDIRECT(\"'\" & Setup!$AI$7 & \"'!\" & AF281),0) + IF(Setup!$AI$8<>\"\",INDIRECT(\"'\" & Setup!$AI$8 & \"'!\" & AF281),0) + IF(Setup!$AI$9<>\"\",INDIRECT(\"'\" & Setup!$AI$9 & \"'!\" & AF281),0) + IF(Setup!$AI$10<>\"\",INDIRECT(\"'\" & Setup!$AI$10 & \"'!\" & AF281),0) + IF(Setup!$AI$11<>\"\",INDIRECT(\"'\" & Setup!$AI$11 & \"'!\" & AF281),0) + IF(Setup!$AI$12<>\"\",INDIRECT(\"'\" & Setup!$AI$12 & \"'!\" & AF281),0)","v":0},{"$f":"IF(Setup!$AJ$7<>\"\",INDIRECT(\"'\" & Setup!$AJ$7 & \"'!\" & AF281),0) + IF(Setup!$AJ$8<>\"\",INDIRECT(\"'\" & Setup!$AJ$8 & \"'!\" & AF281),0) + IF(Setup!$AJ$9<>\"\",INDIRECT(\"'\" & Setup!$AJ$9 & \"'!\" & AF281),0) + IF(Setup!$AJ$10<>\"\",INDIRECT(\"'\" & Setup!$AJ$10 & \"'!\" & AF281),0) + IF(Setup!$AJ$11<>\"\",INDIRECT(\"'\" & Setup!$AJ$11 & \"'!\" & AF281),0) + IF(Setup!$AJ$12<>\"\",INDIRECT(\"'\" & Setup!$AJ$12 & \"'!\" & AF281),0)","v":0},null,"",{"$nulls":30},0,{"$f":"IF(Setup!$AH$7=\"\",0,INDIRECT(\"'\" & Setup!$AH$7 & \"'!\" & AF281))","v":0},{"$f":"IF(Setup!$AI$7=\"\",0,INDIRECT(\"'\" & Setup!$AI$7 & \"'!\" & AF281))","v":0},{"$f":"IF(Setup!$AJ$7=\"\",0,INDIRECT(\"'\" & Setup!$AJ$7 & \"'!\" & AF281))","v":0}]
[{"$f":"Planning!A54","v":"I046"},{"$f":"Planning!B54","v":0},{"$f":"Planning!C54","v":0},{"$f":"Planning!D54","v":0},{"$f":"Planning!E54","v":0},{"$f":"Planning!G54","v":0},0,{"v":0,"d":"0.00"},{"v":0,"d":"0.00"},"","",{"$f":"IF(Setup!$AG$7<>\"\",INDIRECT(\"'\" & Setup!$AG$7 & \"'!\" & AD282),0) + IF(Setup!$AG$8<>\"\",INDIRECT(\"'\" & Setup!$AG$8 & \"'!\" & AD282),0) + IF(Setup!$AG$9<>\"\",INDIRECT(\"'\" & Setup!$AG$9 & \"'!\" & AD282),0) + IF(Setup!$AG$10<>\"\",INDIRECT(\"'\" & Setup!$AG$10 & \"'!\" & AD282),0) + IF(Setup!$AG$11<>\"\",INDIRECT(\"'\" & Setup!$AG$11 & \"'!\" & AD282),0) + IF(Setup!$AG$12<>\"\",INDIRECT(\"'\" & Setup!$AG$12 & \"'!\" & AD282),0)","v":{"v":0,"d":"0.00"}},{"$f":"IF(Setup!$AG$7<>\"\",INDIRECT(\"'\" & Setup!$AG$7 & \"'!\" & AE282),0) + IF(Setup!$AG$8<>\"\",INDIRECT(\"'\" & Setup!$AG$8 & \"'!\" & AE282),0) + IF(Setup!$AG$9<>\"\",INDIRECT(\"'\" & Setup!$AG$9 & \"'!\" & AE282),0) + IF(Setup!$AG$10<>\"\",INDIRECT(\"'\" & Setup!$AG$10 & \"'!\" & AE282),0) + IF(Setup!$AG$11<>\"\",INDIRECT(\"'\" & Setup!$AG$11 & \"'!\" & AE282),0) + IF(Setup!$AG$12<>\"\",INDIRECT(\"'\" & Setup!$AG$12 & \"'!\" & AE282),0)","v":{"v":0,"d":"0.00"}},"","",{"$f":"IF(Setup!$AH$7<>\"\",INDIRECT(\"'\" & Setup!$AH$7 & \"'!\" & AD282),0) + IF(Setup!$AH$8<>\"\",INDIRECT(\"'\" & Setup!$AH$8 & \"'!\" & AD282),0) + IF(Setup!$AH$9<>\"\",INDIRECT(\"'\" & Setup!$AH$9 & \"'!\" & AD282),0) + IF(Setup!$AH$10<>\"\",INDIRECT(\"'\" & Setup!$AH$10 & \"'!\" & AD282),0) + IF(Setup!$AH$11<>\"\",INDIRECT(\"'\" & Setup!$AH$11 & \"'!\" & AD282),0) + IF(Setup!$AH$12<>\"\",INDIRECT(\"'\" & Setup!$AH$12 & \"'!\" & AD282),0)","v":{"v":0,"d":"0.00"}},{"$f":"IF(Setup!$AH$7<>\"\",INDIRECT(\"'\" & Setup!$AH$7 & \"'!\" & AE282),0) + IF(Setup!$AH$8<>\"\",INDIRECT(\"'\" & Setup!$AH$8 & \"'!\" & AE282),0) + IF(Setup!$AH$9<>\"\",INDIRECT(\"'\" & Setup!$AH$9 & \"'!\" & AE282),0) + IF(Setup!$AH$10<>\"\",INDIRECT(\"'\" & Setup!$AH$10 & \"'!\" & AE282),0) + IF(Setup!$AH$11<>\"\",INDIRECT(\"'\" & Setup!$AH$11 & \"'!\" & AE282),0) + IF(Setup!$AH$12<>\"\",INDIRECT(\"'\" & Setup!$AH$12 & \"'!\" & AE282),0)","v":{"v":0,"d":"0.00"}},"","",{"$f":"IF(Setup!$AI$7<>\"\",INDIRECT(\"'\" & Setup!$AI$7 & \"'!\" & AD282),0) + IF(Setup!$AI$8<>\"\",INDIRECT(\"'\" & Setup!$AI$8 & \"'!\" & AD282),0) + IF(Setup!$AI$9<>\"\",INDIRECT(\"'\" & Setup!$AI$9 & \"'!\" & AD282),0) + IF(Setup!$AI$10<>\"\",INDIRECT(\"'\" & Setup!$AI$10 & \"'!\" & AD282),0) + IF(Setup!$AI$11<>\"\",INDIRECT(\"'\" & Setup!$AI$11 & \"'!\" & AD282),0) + IF(Setup!$AI$12<>\"\",INDIRECT(\"'\" & Setup!$AI$12 & \"'!\" & AD282),0)","v":{"v":0,"d":"0.00"}},{"$f":"IF(Setup!$AI$7<>\"\",INDIRECT(\"'\" & Setup!$AI$7 & \"'!\" & AE282),0) + IF(Setup!$AI$8<>\"\",INDIRECT(\"'\" & Setup!$AI$8 & \"'!\" & AE282),0) + IF(Setup!$AI$9<>\"\",INDIRECT(\"'\" & Setup!$AI$9 & \"'!\" & AE282),0) + IF(Setup!$AI$10<>\"\",INDIRECT(\"'\" & Setup!$AI$10 & \"'!\" & AE282),0) + IF(Setup!$AI$11<>\"\",INDIRECT(\"'\" & Setup!$AI$11 & \"'!\" & AE282),0) + IF(Setup!$AI$12<>\"\",INDIRECT(\"'\" & Setup!$AI$12 & \"'!\" & AE282),0)","v":{"v":0,"d":"0.00"}},"","",{"$f":"IF(Setup!$AJ$7<>\"\",INDIRECT(\"'\" & Setup!$AJ$7 & \"'!\" & AD282),0) + IF(Setup!$AJ$8<>\"\",INDIRECT(\"'\" & Setup!$AJ$8 & \"'!\" & AD282),0) + IF(Setup!$AJ$9<>\"\",INDIRECT(\"'\" & Setup!$AJ$9 & \"'!\" & AD282),0) + IF(Setup!$AJ$10<>\"\",INDIRECT(\"'\" & Setup!$AJ$10 & \"'!\" & AD282),0) + IF(Setup!$AJ$11<>\"\",INDIRECT(\"'\" & Setup!$AJ$11 & \"'!\" & AD282),0) + IF(Setup!$AJ$12<>\"\",INDIRECT(\"'\" & Setup!$AJ$12 & \"'!\" & AD282),0)","v":0},{"$f":"IF(Setup!$AJ$7<>\"\",INDIRECT(\"'\" & Setup!$AJ$7 & \"'!\" & AE282),0) + IF(Setup!$AJ$8<>\"\",INDIRECT(\"'\" & Setup!$AJ$8 & \"'!\" & AE282),0) + IF(Setup!$AJ$9<>\"\",INDIRECT(\"'\" & Setup!$AJ$9 & \"'!\" & AE282),0) + IF(Setup!$AJ$10<>\"\",INDIRECT(\"'\" & Setup!$AJ$10 & \"'!\" & AE282),0) + IF(Setup!$AJ$11<>\"\",INDIRECT(\"'\" & Setup!$AJ$11 & \"'!\" & AE282),0) + IF(Setup!$AJ$12<>\"\",INDIRECT(\"'\" & Setup!$AJ$12 & \"'!\" & AE282),0)","v":0},"","",{"$f":"Planning!H54","v":0},"00","M70","O70","N70",null,null,{"$f":"IF(Setup!$AG$7<>\"\",INDIRECT(\"'\" & Setup!$AG$7 & \"'!\" & AF282),0) + IF(Setup!$AG$8<>\"\",INDIRECT(\"'\" & Setup!$AG$8 & \"'!\" & AF282),0) + IF(Setup!$AG$9<>\"\",INDIRECT(\"'\" & Setup!$AG$9 & \"'!\" & AF282),0) + IF(Setup!$AG$10<>\"\",INDIRECT(\"'\" & Setup!$AG$10 & \"'!\" & AF282),0) + IF(Setup!$AG$11<>\"\",INDIRECT(\"'\" & Setup!$AG$11 & \"'!\" & AF282),0) + IF(Setup!$AG$12<>\"\",INDIRECT(\"'\" & Setup!$AG$12 & \"'!\" & AF282),0)","v":0},{"$f":"IF(Setup!$AH$7<>\"\",INDIRECT(\"'\" & Setup!$AH$7 & \"'!\" & AF282),0) + IF(Setup!$AH$8<>\"\",INDIRECT(\"'\" & Setup!$AH$8 & \"'!\" & AF282),0) + IF(Setup!$AH$9<>\"\",INDIRECT(\"'\" & Setup!$AH$9 & \"'!\" & AF282),0) + IF(Setup!$AH$10<>\"\",INDIRECT(\"'\" & Setup!$AH$10 & \"'!\" & AF282),0) + IF(Setup!$AH$11<>\"\",INDIRECT(\"'\" & Setup!$AH$11 & \"'!\" & AF282),0) + IF(Setup!$AH$12<>\"\",INDIRECT(\"'\" & Setup!$AH$12 & \"'!\" & AF282),0)","v":0},{"$f":"IF(Setup!$AI$7<>\"\",INDIRECT(\"'\" & Setup!$AI$7 & \"'!\" & AF282),0) + IF(Setup!$AI$8<>\"\",INDIRECT(\"'\" & Setup!$AI$8 & \"'!\" & AF282),0) + IF(Setup!$AI$9<>\"\",INDIRECT(\"'\" & Setup!$AI$9 & \"'!\" & AF282),0) + IF(Setup!$AI$10<>\"\",INDIRECT(\"'\" & Setup!$AI$10 & \"'!\" & AF282),0) + IF(Setup!$AI$11<>\"\",INDIRECT(\"'\" & Setup!$AI$11 & \"'!\" & AF282),0) + IF(Setup!$AI$12<>\"\",INDIRECT(\"'\" & Setup!$AI$12 & \"'!\" & AF282),0)","v":0},{"$f":"IF(Setup!$AJ$7<>\"\",INDIRECT(\"'\" & Setup!$AJ$7 & \"'!\" & AF282),0) + IF(Setup!$AJ$8<>\"\",INDIRECT(\"'\" & Setup!$AJ$8 & \"'!\" & AF282),0) + IF(Setup!$AJ$9<>\"\",INDIRECT(\"'\" & Setup!$AJ$9 & \"'!\" & AF282),0) + IF(Setup!$AJ$10<>\"\",INDIRECT(\"'\" & Setup!$AJ$10 & \"'!\" & AF282),0) + IF(Setup!$AJ$11<>\"\",INDIRECT(\"'\" & Setup!$AJ$11 & \"'!\" & AF282),0) + IF(Setup!$AJ$12<>\"\",INDIRECT(\"'\" & Setup!$AJ$12 & \"'!\" & AF282),0)","v":0},null,"",{"$nulls":30},0,{"$f":"IF(Setup!$AH$7=\"\",0,INDIRECT(\"'\" & Setup!$AH$7 & \"'!\" & AF282))","v":0},{"$f":"IF(Setup!$AI$7=\"\",0,INDIRECT(\"'\" & Setup!$AI$7 & \"'!\" & AF282))","v":0},{"$f":"IF(Setup!$AJ$7=\"\",0,INDIRECT(\"'\" & Setup!$AJ$7 & \"'!\" & AF282))","v":0}]
[{"$f":"Planning!A55","v":"I047"},{"$f":"Planning!B55","v":0},{"$f":"Planning!C55","v":0},{"$f":"Planning!D55","v":0},{"$f":"Planning!E55","v":0},{"$f":"Planning!G55","v":0},0,{"v":0,"d":"0.00"},{"v":0,"d":"0.00"},"","",{"$f":"IF(Setup!$AG$7<>\"\",INDIRECT(\"'\" & Setup!$AG$7 & \"'!\" & AD283),0) + IF(Setup!$AG$8<>\"\",INDIRECT(\"'\" & Setup!$AG$8 & \"'!\" & AD283),0) + IF(Setup!$AG$9<>\"\",INDIRECT(\"'\" & Setup!$AG$9 & \"'!\" & AD283),0) + IF(Setup!$AG$10<>\"\",INDIRECT(\"'\" & Setup!$AG$10 & \"'!\" & AD283),0) + IF(Setup!$AG$11<>\"\",INDIRECT(\"'\" & Setup!$AG$11 & \"'!\" & AD283),0) + IF(Setup!$AG$12<>\"\",INDIRECT(\"'\" & Setup!$AG$12 & \"'!\" & AD283),0)","v":{"v":0,"d":"0.00"}},{"$f":"IF(Setup!$AG$7<>\"\",INDIRECT(\"'\" & Setup!$AG$7 & \"'!\" & AE283),0) + IF(Setup!$AG$8<>\"\",INDIRECT(\"'\" & Setup!$AG$8 & \"'!\" & AE283),0) + IF(Setup!$AG$9<>\"\",INDIRECT(\"'\" & Setup!$AG$9 & \"'!\" & AE283),0) + IF(Setup!$AG$10<>\"\",INDIRECT(\"'\" & Setup!$AG$10 & \"'!\" & AE283),0) + IF(Setup!$AG$11<>\"\",INDIRECT(\"'\" & Setup!$AG$11 & \"'!\" & AE283),0) + IF(Setup!$AG$12<>\"\",INDIRECT(\"'\" & Setup!$AG$12 & \"'!\" & AE283),0)","v":{"v":0,"d":"0.00"}},"","",{"$f":"IF(Setup!$AH$7<>\"\",INDIRECT(\"'\" & Setup!$AH$7 & \"'!\" & AD283),0) + IF(Setup!$AH$8<>\"\",INDIRECT(\"'\" & Setup!$AH$8 & \"'!\" & AD283),0) + IF(Setup!$AH$9<>\"\",INDIRECT(\"'\" & Setup!$AH$9 & \"'!\" & AD283),0) + IF(Setup!$AH$10<>\"\",INDIRECT(\"'\" & Setup!$AH$10 & \"'!\" & AD283),0) + IF(Setup!$AH$11<>\"\",INDIRECT(\"'\" & Setup!$AH$11 & \"'!\" & AD283),0) + IF(Setup!$AH$12<>\"\",INDIRECT(\"'\" & Setup!$AH$12 & \"'!\" & AD283),0)","v":{"v":0,"d":"0.00"}},{"$f":"IF(Setup!$AH$7<>\"\",INDIRECT(\"'\" & Setup!$AH$7 & \"'!\" & AE283),0) + IF(Setup!$AH$8<>\"\",INDIRECT(\"'\" & Setup!$AH$8 & \"'!\" & AE283),0) + IF(Setup!$AH$9<>\"\",INDIRECT(\"'\" & Setup!$AH$9 & \"'!\" & AE283),0) + IF(Setup!$AH$10<>\"\",INDIRECT(\"'\" & Setup!$AH$10 & \"'!\" & AE283),0) + IF(Setup!$AH$11<>\"\",INDIRECT(\"'\" & Setup!$AH$11 & \"'!\" & AE283),0) + IF(Setup!$AH$12<>\"\",INDIRECT(\"'\" & Setup!$AH$12 & \"'!\" & AE283),0)","v":{"v":0,"d":"0.00"}},"","",{"$f":"IF(Setup!$AI$7<>\"\",INDIRECT(\"'\" & Setup!$AI$7 & \"'!\" & AD283),0) + IF(Setup!$AI$8<>\"\",INDIRECT(\"'\" & Setup!$AI$8 & \"'!\" & AD283),0) + IF(Setup!$AI$9<>\"\",INDIRECT(\"'\" & Setup!$AI$9 & \"'!\" & AD283),0) + IF(Setup!$AI$10<>\"\",INDIRECT(\"'\" & Setup!$AI$10 & \"'!\" & AD283),0) + IF(Setup!$AI$11<>\"\",INDIRECT(\"'\" & Setup!$AI$11 & \"'!\" & AD283),0) + IF(Setup!$AI$12<>\"\",INDIRECT(\"'\" & Setup!$AI$12 & \"'!\" & AD283),0)","v":{"v":0,"d":"0.00"}},{"$f":"IF(Setup!$AI$7<>\"\",INDIRECT(\"'\" & Setup!$AI$7 & \"'!\" & AE283),0) + IF(Setup!$AI$8<>\"\",INDIRECT(\"'\" & Setup!$AI$8 & \"'!\" & AE283),0) + IF(Setup!$AI$9<>\"\",INDIRECT(\"'\" & Setup!$AI$9 & \"'!\" & AE283),0) + IF(Setup!$AI$10<>\"\",INDIRECT(\"'\" & Setup!$AI$10 & \"'!\" & AE283),0) + IF(Setup!$AI$11<>\"\",INDIRECT(\"'\" & Setup!$AI$11 & \"'!\" & AE283),0) + IF(Setup!$AI$12<>\"\",INDIRECT(\"'\" & Setup!$AI$12 & \"'!\" & AE283),0)","v":{"v":0,"d":"0.00"}},"","",{"$f":"IF(Setup!$AJ$7<>\"\",INDIRECT(\"'\" & Setup!$AJ$7 & \"'!\" & AD283),0) + IF(Setup!$AJ$8<>\"\",INDIRECT(\"'\" & Setup!$AJ$8 & \"'!\" & AD283),0) + IF(Setup!$AJ$9<>\"\",INDIRECT(\"'\" & Setup!$AJ$9 & \"'!\" & AD283),0) + IF(Setup!$AJ$10<>\"\",INDIRECT(\"'\" & Setup!$AJ$10 & \"'!\" & AD283),0) + IF(Setup!$AJ$11<>\"\",INDIRECT(\"'\" & Setup!$AJ$11 & \"'!\" & AD283),0) + IF(Setup!$AJ$12<>\"\",INDIRECT(\"'\" & Setup!$AJ$12 & \"'!\" & AD283),0)","v":0},{"$f":"IF(Setup!$AJ$7<>\"\",INDIRECT(\"'\" & Setup!$AJ$7 & \"'!\" & AE283),0) + IF(Setup!$AJ$8<>\"\",INDIRECT(\"'\" & Setup!$AJ$8 & \"'!\" & AE283),0) + IF(Setup!$AJ$9<>\"\",INDIRECT(\"'\" & Setup!$AJ$9 & \"'!\" & AE283),0) + IF(Setup!$AJ$10<>\"\",INDIRECT(\"'\" & Setup!$AJ$10 & \"'!\" & AE283),0) + IF(Setup!$AJ$11<>\"\",INDIRECT(\"'\" & Setup!$AJ$11 & \"'!\" & AE283),0) + IF(Setup!$AJ$12<>\"\",INDIRECT(\"'\" & Setup!$AJ$12 & \"'!\" & AE283),0)","v":0},"","",{"$f":"Planning!H55","v":0},"00","M71","O71","N71",null,null,{"$f":"IF(Setup!$AG$7<>\"\",INDIRECT(\"'\" & Setup!$AG$7 & \"'!\" & AF283),0) + IF(Setup!$AG$8<>\"\",INDIRECT(\"'\" & Setup!$AG$8 & \"'!\" & AF283),0) + IF(Setup!$AG$9<>\"\",INDIRECT(\"'\" & Setup!$AG$9 & \"'!\" & AF283),0) + IF(Setup!$AG$10<>\"\",INDIRECT(\"'\" & Setup!$AG$10 & \"'!\" & AF283),0) + IF(Setup!$AG$11<>\"\",INDIRECT(\"'\" & Setup!$AG$11 & \"'!\" & AF283),0) + IF(Setup!$AG$12<>\"\",INDIRECT(\"'\" & Setup!$AG$12 & \"'!\" & AF283),0)","v":0},{"$f":"IF(Setup!$AH$7<>\"\",INDIRECT(\"'\" & Setup!$AH$7 & \"'!\" & AF283),0) + IF(Setup!$AH$8<>\"\",INDIRECT(\"'\" & Setup!$AH$8 & \"'!\" & AF283),0) + IF(Setup!$AH$9<>\"\",INDIRECT(\"'\" & Setup!$AH$9 & \"'!\" & AF283),0) + IF(Setup!$AH$10<>\"\",INDIRECT(\"'\" & Setup!$AH$10 & \"'!\" & AF283),0) + IF(Setup!$AH$11<>\"\",INDIRECT(\"'\" & Setup!$AH$11 & \"'!\" & AF283),0) + IF(Setup!$AH$12<>\"\",INDIRECT(\"'\" & Setup!$AH$12 & \"'!\" & AF283),0)","v":0},{"$f":"IF(Setup!$AI$7<>\"\",INDIRECT(\"'\" & Setup!$AI$7 & \"'!\" & AF283),0) + IF(Setup!$AI$8<>\"\",INDIRECT(\"'\" & Setup!$AI$8 & \"'!\" & AF283),0) + IF(Setup!$AI$9<>\"\",INDIRECT(\"'\" & Setup!$AI$9 & \"'!\" & AF283),0) + IF(Setup!$AI$10<>\"\",INDIRECT(\"'\" & Setup!$AI$10 & \"'!\" & AF283),0) + IF(Setup!$AI$11<>\"\",INDIRECT(\"'\" & Setup!$AI$11 & \"'!\" & AF283),0) + IF(Setup!$AI$12<>\"\",INDIRECT(\"'\" & Setup!$AI$12 & \"'!\" & AF283),0)","v":0},{"$f":"IF(Setup!$AJ$7<>\"\",INDIRECT(\"'\" & Setup!$AJ$7 & \"'!\" & AF283),0) + IF(Setup!$AJ$8<>\"\",INDIRECT(\"'\" & Setup!$AJ$8 & \"'!\" & AF283),0) + IF(Setup!$AJ$9<>\"\",INDIRECT(\"'\" & Setup!$AJ$9 & \"'!\" & AF283),0) + IF(Setup!$AJ$10<>\"\",INDIRECT(\"'\" & Setup!$AJ$10 & \"'!\" & AF283),0) + IF(Setup!$AJ$11<>\"\",INDIRECT(\"'\" & Setup!$AJ$11 & \"'!\" & AF283),0) + IF(Setup!$AJ$12<>\"\",INDIRECT(\"'\" & Setup!$AJ$12 & \"'!\" & AF283),0)","v":0},null,"",{"$nulls":30},0,{"$f":"IF(Setup!$AH$7=\"\",0,INDIRECT(\"'\" & Setup!$AH$7 & \"'!\" & AF283))","v":0},{"$f":"IF(Setup!$AI$7=\"\",0,INDIRECT(\"'\" & Setup!$AI$7 & \"'!\" & AF283))","v":0},{"$f":"IF(Setup!$AJ$7=\"\",0,INDIRECT(\"'\" & Setup!$AJ$7 & \"'!\" & AF283))","v":0}]
[{"$f":"Planning!A56","v":"I048"},{"$f":"Planning!B56","v":0},{"$f":"Planning!C56","v":0},{"$f":"Planning!D56","v":0},{"$f":"Planning!E56","v":0},{"$f":"Planning!G56","v":0},0,{"v":0,"d":"0.00"},{"v":0,"d":"0.00"},"","",{"$f":"IF(Setup!$AG$7<>\"\",INDIRECT(\"'\" & Setup!$AG$7 & \"'!\" & AD284),0) + IF(Setup!$AG$8<>\"\",INDIRECT(\"'\" & Setup!$AG$8 & \"'!\" & AD284),0) + IF(Setup!$AG$9<>\"\",INDIRECT(\"'\" & Setup!$AG$9 & \"'!\" & AD284),0) + IF(Setup!$AG$10<>\"\",INDIRECT(\"'\" & Setup!$AG$10 & \"'!\" & AD284),0) + IF(Setup!$AG$11<>\"\",INDIRECT(\"'\" & Setup!$AG$11 & \"'!\" & AD284),0) + IF(Setup!$AG$12<>\"\",INDIRECT(\"'\" & Setup!$AG$12 & \"'!\" & AD284),0)","v":{"v":0,"d":"0.00"}},{"$f":"IF(Setup!$AG$7<>\"\",INDIRECT(\"'\" & Setup!$AG$7 & \"'!\" & AE284),0) + IF(Setup!$AG$8<>\"\",INDIRECT(\"'\" & Setup!$AG$8 & \"'!\" & AE284),0) + IF(Setup!$AG$9<>\"\",INDIRECT(\"'\" & Setup!$AG$9 & \"'!\" & AE284),0) + IF(Setup!$AG$10<>\"\",INDIRECT(\"'\" & Setup!$AG$10 & \"'!\" & AE284),0) + IF(Setup!$AG$11<>\"\",INDIRECT(\"'\" & Setup!$AG$11 & \"'!\" & AE284),0) + IF(Setup!$AG$12<>\"\",INDIRECT(\"'\" & Setup!$AG$12 & \"'!\" & AE284),0)","v":{"v":0,"d":"0.00"}},"","",{"$f":"IF(Setup!$AH$7<>\"\",INDIRECT(\"'\" & Setup!$AH$7 & \"'!\" & AD284),0) + IF(Setup!$AH$8<>\"\",INDIRECT(\"'\" & Setup!$AH$8 & \"'!\" & AD284),0) + IF(Setup!$AH$9<>\"\",INDIRECT(\"'\" & Setup!$AH$9 & \"'!\" & AD284),0) + IF(Setup!$AH$10<>\"\",INDIRECT(\"'\" & Setup!$AH$10 & \"'!\" & AD284),0) + IF(Setup!$AH$11<>\"\",INDIRECT(\"'\" & Setup!$AH$11 & \"'!\" & AD284),0) + IF(Setup!$AH$12<>\"\",INDIRECT(\"'\" & Setup!$AH$12 & \"'!\" & AD284),0)","v":{"v":0,"d":"0.00"}},{"$f":"IF(Setup!$AH$7<>\"\",INDIRECT(\"'\" & Setup!$AH$7 & \"'!\" & AE284),0) + IF(Setup!$AH$8<>\"\",INDIRECT(\"'\" & Setup!$AH$8 & \"'!\" & AE284),0) + IF(Setup!$AH$9<>\"\",INDIRECT(\"'\" & Setup!$AH$9 & \"'!\" & AE284),0) + IF(Setup!$AH$10<>\"\",INDIRECT(\"'\" & Setup!$AH$10 & \"'!\" & AE284),0) + IF(Setup!$AH$11<>\"\",INDIRECT(\"'\" & Setup!$AH$11 & \"'!\" & AE284),0) + IF(Setup!$AH$12<>\"\",INDIRECT(\"'\" & Setup!$AH$12 & \"'!\" & AE284),0)","v":{"v":0,"d":"0.00"}},"","",{"$f":"IF(Setup!$AI$7<>\"\",INDIRECT(\"'\" & Setup!$AI$7 & \"'!\" & AD284),0) + IF(Setup!$AI$8<>\"\",INDIRECT(\"'\" & Setup!$AI$8 & \"'!\" & AD284),0) + IF(Setup!$AI$9<>\"\",INDIRECT(\"'\" & Setup!$AI$9 & \"'!\" & AD284),0) + IF(Setup!$AI$10<>\"\",INDIRECT(\"'\" & Setup!$AI$10 & \"'!\" & AD284),0) + IF(Setup!$AI$11<>\"\",INDIRECT(\"'\" & Setup!$AI$11 & \"'!\" & AD284),0) + IF(Setup!$AI$12<>\"\",INDIRECT(\"'\" & Setup!$AI$12 & \"'!\" & AD284),0)","v":{"v":0,"d":"0.00"}},{"$f":"IF(Setup!$AI$7<>\"\",INDIRECT(\"'\" & Setup!$AI$7 & \"'!\" & AE284),0) + IF(Setup!$AI$8<>\"\",INDIRECT(\"'\" & Setup!$AI$8 & \"'!\" & AE284),0) + IF(Setup!$AI$9<>\"\",INDIRECT(\"'\" & Setup!$AI$9 & \"'!\" & AE284),0) + IF(Setup!$AI$10<>\"\",INDIRECT(\"'\" & Setup!$AI$10 & \"'!\" & AE284),0) + IF(Setup!$AI$11<>\"\",INDIRECT(\"'\" & Setup!$AI$11 & \"'!\" & AE284),0) + IF(Setup!$AI$12<>\"\",INDIRECT(\"'\" & Setup!$AI$12 & \"'!\" & AE284),0)","v":{"v":0,"d":"0.00"}},"","",{"$f":"IF(Setup!$AJ$7<>\"\",INDIRECT(\"'\" & Setup!$AJ$7 & \"'!\" & AD284),0) + IF(Setup!$AJ$8<>\"\",INDIRECT(\"'\" & Setup!$AJ$8 & \"'!\" & AD284),0) + IF(Setup!$AJ$9<>\"\",INDIRECT(\"'\" & Setup!$AJ$9 & \"'!\" & AD284),0) + IF(Setup!$AJ$10<>\"\",INDIRECT(\"'\" & Setup!$AJ$10 & \"'!\" & AD284),0) + IF(Setup!$AJ$11<>\"\",INDIRECT(\"'\" & Setup!$AJ$11 & \"'!\" & AD284),0) + IF(Setup!$AJ$12<>\"\",INDIRECT(\"'\" & Setup!$AJ$12 & \"'!\" & AD284),0)","v":0},{"$f":"IF(Setup!$AJ$7<>\"\",INDIRECT(\"'\" & Setup!$AJ$7 & \"'!\" & AE284),0) + IF(Setup!$AJ$8<>\"\",INDIRECT(\"'\" & Setup!$AJ$8 & \"'!\" & AE284),0) + IF(Setup!$AJ$9<>\"\",INDIRECT(\"'\" & Setup!$AJ$9 & \"'!\" & AE284),0) + IF(Setup!$AJ$10<>\"\",INDIRECT(\"'\" & Setup!$AJ$10 & \"'!\" & AE284),0) + IF(Setup!$AJ$11<>\"\",INDIRECT(\"'\" & Setup!$AJ$11 & \"'!\" & AE284),0) + IF(Setup!$AJ$12<>\"\",INDIRECT(\"'\" & Setup!$AJ$12 & \"'!\" & AE284),0)","v":0},"","",{"$f":"Planning!H56","v":0},"00","M72","O72","N72",null,null,{"$f":"IF(Setup!$AG$7<>\"\",INDIRECT(\"'\" & Setup!$AG$7 & \"'!\" & AF284),0) + IF(Setup!$AG$8<>\"\",INDIRECT(\"'\" & Setup!$AG$8 & \"'!\" & AF284),0) + IF(Setup!$AG$9<>\"\",INDIRECT(\"'\" & Setup!$AG$9 & \"'!\" & AF284),0) + IF(Setup!$AG$10<>\"\",INDIRECT(\"'\" & Setup!$AG$10 & \"'!\" & AF284),0) + IF(Setup!$AG$11<>\"\",INDIRECT(\"'\" & Setup!$AG$11 & \"'!\" & AF284),0) + IF(Setup!$AG$12<>\"\",INDIRECT(\"'\" & Setup!$AG$12 & \"'!\" & AF284),0)","v":0},{"$f":"IF(Setup!$AH$7<>\"\",INDIRECT(\"'\" & Setup!$AH$7 & \"'!\" & AF284),0) + IF(Setup!$AH$8<>\"\",INDIRECT(\"'\" & Setup!$AH$8 & \"'!\" & AF284),0) + IF(Setup!$AH$9<>\"\",INDIRECT(\"'\" & Setup!$AH$9 & \"'!\" & AF284),0) + IF(Setup!$AH$10<>\"\",INDIRECT(\"'\" & Setup!$AH$10 & \"'!\" & AF284),0) + IF(Setup!$AH$11<>\"\",INDIRECT(\"'\" & Setup!$AH$11 & \"'!\" & AF284),0) + IF(Setup!$AH$12<>\"\",INDIRECT(\"'\" & Setup!$AH$12 & \"'!\" & AF284),0)","v":0},{"$f":"IF(Setup!$AI$7<>\"\",INDIRECT(\"'\" & Setup!$AI$7 & \"'!\" & AF284),0) + IF(Setup!$AI$8<>\"\",INDIRECT(\"'\" & Setup!$AI$8 & \"'!\" & AF284),0) + IF(Setup!$AI$9<>\"\",INDIRECT(\"'\" & Setup!$AI$9 & \"'!\" & AF284),0) + IF(Setup!$AI$10<>\"\",INDIRECT(\"'\" & Setup!$AI$10 & \"'!\" & AF284),0) + IF(Setup!$AI$11<>\"\",INDIRECT(\"'\" & Setup!$AI$11 & \"'!\" & AF284),0) + IF(Setup!$AI$12<>\"\",INDIRECT(\"'\" & Setup!$AI$12 & \"'!\" & AF284),0)","v":0},{"$f":"IF(Setup!$AJ$7<>\"\",INDIRECT(\"'\" & Setup!$AJ$7 & \"'!\" & AF284),0) + IF(Setup!$AJ$8<>\"\",INDIRECT(\"'\" & Setup!$AJ$8 & \"'!\" & AF284),0) + IF(Setup!$AJ$9<>\"\",INDIRECT(\"'\" & Setup!$AJ$9 & \"'!\" & AF284),0) + IF(Setup!$AJ$10<>\"\",INDIRECT(\"'\" & Setup!$AJ$10 & \"'!\" & AF284),0) + IF(Setup!$AJ$11<>\"\",INDIRECT(\"'\" & Setup!$AJ$11 & \"'!\" & AF284),0) + IF(Setup!$AJ$12<>\"\",INDIRECT(\"'\" & Setup!$AJ$12 & \"'!\" & AF284),0)","v":0},null,"",{"$nulls":30},0,{"$f":"IF(Setup!$AH$7=\"\",0,INDIRECT(\"'\" & Setup!$AH$7 & \"'!\" & AF284))","v":0},{"$f":"IF(Setup!$AI$7=\"\",0,INDIRECT(\"'\" & Setup!$AI$7 & \"'!\" & AF284))","v":0},{"$f":"IF(Setup!$AJ$7=\"\",0,INDIRECT(\"'\" & Setup!$AJ$7 & \"'!\" & AF284))","v":0}]
[{"$f":"Planning!A57","v":"I049"},{"$f":"Planning!B57","v":0},{"$f":"Planning!C57","v":0},{"$f":"Planning!D57","v":0},{"$f":"Planning!E57","v":0},{"$f":"Planning!G57","v":0},0,{"v":0,"d":"0.00"},{"v":0,"d":"0.00"},"","",{"$f":"IF(Setup!$AG$7<>\"\",INDIRECT(\"'\" & Setup!$AG$7 & \"'!\" & AD285),0) + IF(Setup!$AG$8<>\"\",INDIRECT(\"'\" & Setup!$AG$8 & \"'!\" & AD285),0) + IF(Setup!$AG$9<>\"\",INDIRECT(\"'\" & Setup!$AG$9 & \"'!\" & AD285),0) + IF(Setup!$AG$10<>\"\",INDIRECT(\"'\" & Setup!$AG$10 & \"'!\" & AD285),0) + IF(Setup!$AG$11<>\"\",INDIRECT(\"'\" & Setup!$AG$11 & \"'!\" & AD285),0) + IF(Setup!$AG$12<>\"\",INDIRECT(\"'\" & Setup!$AG$12 & \"'!\" & AD285),0)","v":{"v":0,"d":"0.00"}},{"$f":"IF(Setup!$AG$7<>\"\",INDIRECT(\"'\" & Setup!$AG$7 & \"'!\" & AE285),0) + IF(Setup!$AG$8<>\"\",INDIRECT(\"'\" & Setup!$AG$8 & \"'!\" & AE285),0) + IF(Setup!$AG$9<>\"\",INDIRECT(\"'\" & Setup!$AG$9 & \"'!\" & AE285),0) + IF(Setup!$AG$10<>\"\",INDIRECT(\"'\" & Setup!$AG$10 & \"'!\" & AE285),0) + IF(Setup!$AG$11<>\"\",INDIRECT(\"'\" & Setup!$AG$11 & \"'!\" & AE285),0) + IF(Setup!$AG$12<>\"\",INDIRECT(\"'\" & Setup!$AG$12 & \"'!\" & AE285),0)","v":{"v":0,"d":"0.00"}},"","",{"$f":"IF(Setup!$AH$7<>\"\",INDIRECT(\"'\" & Setup!$AH$7 & \"'!\" & AD285),0) + IF(Setup!$AH$8<>\"\",INDIRECT(\"'\" & Setup!$AH$8 & \"'!\" & AD285),0) + IF(Setup!$AH$9<>\"\",INDIRECT(\"'\" & Setup!$AH$9 & \"'!\" & AD285),0) + IF(Setup!$AH$10<>\"\",INDIRECT(\"'\" & Setup!$AH$10 & \"'!\" & AD285),0) + IF(Setup!$AH$11<>\"\",INDIRECT(\"'\" & Setup!$AH$11 & \"'!\" & AD285),0) + IF(Setup!$AH$12<>\"\",INDIRECT(\"'\" & Setup!$AH$12 & \"'!\" & AD285),0)","v":{"v":0,"d":"0.00"}},{"$f":"IF(Setup!$AH$7<>\"\",INDIRECT(\"'\" & Setup!$AH$7 & \"'!\" & AE285),0) + IF(Setup!$AH$8<>\"\",INDIRECT(\"'\" & Setup!$AH$8 & \"'!\" & AE285),0) + IF(Setup!$AH$9<>\"\",INDIRECT(\"'\" & Setup!$AH$9 & \"'!\" & AE285),0) + IF(Setup!$AH$10<>\"\",INDIRECT(\"'\" & Setup!$AH$10 & \"'!\" & AE285),0) + IF(Setup!$AH$11<>\"\",INDIRECT(\"'\" & Setup!$AH$11 & \"'!\" & AE285),0) + IF(Setup!$AH$12<>\"\",INDIRECT(\"'\" & Setup!$AH$12 & \"'!\" & AE285),0)","v":{"v":0,"d":"0.00"}},"","",{"$f":"IF(Setup!$AI$7<>\"\",INDIRECT(\"'\" & Setup!$AI$7 & \"'!\" & AD285),0) + IF(Setup!$AI$8<>\"\",INDIRECT(\"'\" & Setup!$AI$8 & \"'!\" & AD285),0) + IF(Setup!$AI$9<>\"\",INDIRECT(\"'\" & Setup!$AI$9 & \"'!\" & AD285),0) + IF(Setup!$AI$10<>\"\",INDIRECT(\"'\" & Setup!$AI$10 & \"'!\" & AD285),0) + IF(Setup!$AI$11<>\"\",INDIRECT(\"'\" & Setup!$AI$11 & \"'!\" & AD285),0) + IF(Setup!$AI$12<>\"\",INDIRECT(\"'\" & Setup!$AI$12 & \"'!\" & AD285),0)","v":{"v":0,"d":"0.00"}},{"$f":"IF(Setup!$AI$7<>\"\",INDIRECT(\"'\" & Setup!$AI$7 & \"'!\" & AE285),0) + IF(Setup!$AI$8<>\"\",INDIRECT(\"'\" & Setup!$AI$8 & \"'!\" & AE285),0) + IF(Setup!$AI$9<>\"\",INDIRECT(\"'\" & Setup!$AI$9 & \"'!\" & AE285),0) + IF(Setup!$AI$10<>\"\",INDIRECT(\"'\" & Setup!$AI$10 & \"'!\" & AE285),0) + IF(Setup!$AI$11<>\"\",INDIRECT(\"'\" & Setup!$AI$11 & \"'!\" & AE285),0) + IF(Setup!$AI$12<>\"\",INDIRECT(\"'\" & Setup!$AI$12 & \"'!\" & AE285),0)","v":{"v":0,"d":"0.00"}},"","",{"$f":"IF(Setup!$AJ$7<>\"\",INDIRECT(\"'\" & Setup!$AJ$7 & \"'!\" & AD285),0) + IF(Setup!$AJ$8<>\"\",INDIRECT(\"'\" & Setup!$AJ$8 & \"'!\" & AD285),0) + IF(Setup!$AJ$9<>\"\",INDIRECT(\"'\" & Setup!$AJ$9 & \"'!\" & AD285),0) + IF(Setup!$AJ$10<>\"\",INDIRECT(\"'\" & Setup!$AJ$10 & \"'!\" & AD285),0) + IF(Setup!$AJ$11<>\"\",INDIRECT(\"'\" & Setup!$AJ$11 & \"'!\" & AD285),0) + IF(Setup!$AJ$12<>\"\",INDIRECT(\"'\" & Setup!$AJ$12 & \"'!\" & AD285),0)","v":0},{"$f":"IF(Setup!$AJ$7<>\"\",INDIRECT(\"'\" & Setup!$AJ$7 & \"'!\" & AE285),0) + IF(Setup!$AJ$8<>\"\",INDIRECT(\"'\" & Setup!$AJ$8 & \"'!\" & AE285),0) + IF(Setup!$AJ$9<>\"\",INDIRECT(\"'\" & Setup!$AJ$9 & \"'!\" & AE285),0) + IF(Setup!$AJ$10<>\"\",INDIRECT(\"'\" & Setup!$AJ$10 & \"'!\" & AE285),0) + IF(Setup!$AJ$11<>\"\",INDIRECT(\"'\" & Setup!$AJ$11 & \"'!\" & AE285),0) + IF(Setup!$AJ$12<>\"\",INDIRECT(\"'\" & Setup!$AJ$12 & \"'!\" & AE285),0)","v":0},"","",{"$f":"Planning!H57","v":0},"00","M73","O73","N73",null,null,{"$f":"IF(Setup!$AG$7<>\"\",INDIRECT(\"'\" & Setup!$AG$7 & \"'!\" & AF285),0) + IF(Setup!$AG$8<>\"\",INDIRECT(\"'\" & Setup!$AG$8 & \"'!\" & AF285),0) + IF(Setup!$AG$9<>\"\",INDIRECT(\"'\" & Setup!$AG$9 & \"'!\" & AF285),0) + IF(Setup!$AG$10<>\"\",INDIRECT(\"'\" & Setup!$AG$10 & \"'!\" & AF285),0) + IF(Setup!$AG$11<>\"\",INDIRECT(\"'\" & Setup!$AG$11 & \"'!\" & AF285),0) + IF(Setup!$AG$12<>\"\",INDIRECT(\"'\" & Setup!$AG$12 & \"'!\" & AF285),0)","v":0},{"$f":"IF(Setup!$AH$7<>\"\",INDIRECT(\"'\" & Setup!$AH$7 & \"'!\" & AF285),0) + IF(Setup!$AH$8<>\"\",INDIRECT(\"'\" & Setup!$AH$8 & \"'!\" & AF285),0) + IF(Setup!$AH$9<>\"\",INDIRECT(\"'\" & Setup!$AH$9 & \"'!\" & AF285),0) + IF(Setup!$AH$10<>\"\",INDIRECT(\"'\" & Setup!$AH$10 & \"'!\" & AF285),0) + IF(Setup!$AH$11<>\"\",INDIRECT(\"'\" & Setup!$AH$11 & \"'!\" & AF285),0) + IF(Setup!$AH$12<>\"\",INDIRECT(\"'\" & Setup!$AH$12 & \"'!\" & AF285),0)","v":0},{"$f":"IF(Setup!$AI$7<>\"\",INDIRECT(\"'\" & Setup!$AI$7 & \"'!\" & AF285),0) + IF(Setup!$AI$8<>\"\",INDIRECT(\"'\" & Setup!$AI$8 & \"'!\" & AF285),0) + IF(Setup!$AI$9<>\"\",INDIRECT(\"'\" & Setup!$AI$9 & \"'!\" & AF285),0) + IF(Setup!$AI$10<>\"\",INDIRECT(\"'\" & Setup!$AI$10 & \"'!\" & AF285),0) + IF(Setup!$AI$11<>\"\",INDIRECT(\"'\" & Setup!$AI$11 & \"'!\" & AF285),0) + IF(Setup!$AI$12<>\"\",INDIRECT(\"'\" & Setup!$AI$12 & \"'!\" & AF285),0)","v":0},{"$f":"IF(Setup!$AJ$7<>\"\",INDIRECT(\"'\" & Setup!$AJ$7 & \"'!\" & AF285),0) + IF(Setup!$AJ$8<>\"\",INDIRECT(\"'\" & Setup!$AJ$8 & \"'!\" & AF285),0) + IF(Setup!$AJ$9<>\"\",INDIRECT(\"'\" & Setup!$AJ$9 & \"'!\" & AF285),0) + IF(Setup!$AJ$10<>\"\",INDIRECT(\"'\" & Setup!$AJ$10 & \"'!\" & AF285),0) + IF(Setup!$AJ$11<>\"\",INDIRECT(\"'\" & Setup!$AJ$11 & \"'!\" & AF285),0) + IF(Setup!$AJ$12<>\"\",INDIRECT(\"'\" & Setup!$AJ$12 & \"'!\" & AF285),0)","v":0},null,"",{"$nulls":30},0,{"$f":"IF(Setup!$AH$7=\"\",0,INDIRECT(\"'\" & Setup!$AH$7 & \"'!\" & AF285))","v":0},{"$f":"IF(Setup!$AI$7=\"\",0,INDIRECT(\"'\" & Setup!$AI$7 & \"'!\" & AF285))","v":0},{"$f":"IF(Setup!$AJ$7=\"\",0,INDIRECT(\"'\" & Setup!$AJ$7 & \"'!\" & AF285))","v":0}]
[{"$f":"Planning!A58","v":"I050"},{"$f":"Planning!B58","v":0},{"$f":"Planning!C58","v":0},{"$f":"Planning!D58","v":0},{"$f":"Planning!E58","v":0},{"$f":"Planning!G58","v":0},0,{"v":0,"d":"0.00"},{"v":0,"d":"0.00"},"","",{"$f":"IF(Setup!$AG$7<>\"\",INDIRECT(\"'\" & Setup!$AG$7 & \"'!\" & AD286),0) + IF(Setup!$AG$8<>\"\",INDIRECT(\"'\" & Setup!$AG$8 & \"'!\" & AD286),0) + IF(Setup!$AG$9<>\"\",INDIRECT(\"'\" & Setup!$AG$9 & \"'!\" & AD286),0) + IF(Setup!$AG$10<>\"\",INDIRECT(\"'\" & Setup!$AG$10 & \"'!\" & AD286),0) + IF(Setup!$AG$11<>\"\",INDIRECT(\"'\" & Setup!$AG$11 & \"'!\" & AD286),0) + IF(Setup!$AG$12<>\"\",INDIRECT(\"'\" & Setup!$AG$12 & \"'!\" & AD286),0)","v":{"v":0,"d":"0.00"}},{"$f":"IF(Setup!$AG$7<>\"\",INDIRECT(\"'\" & Setup!$AG$7 & \"'!\" & AE286),0) + IF(Setup!$AG$8<>\"\",INDIRECT(\"'\" & Setup!$AG$8 & \"'!\" & AE286),0) + IF(Setup!$AG$9<>\"\",INDIRECT(\"'\" & Setup!$AG$9 & \"'!\" & AE286),0) + IF(Setup!$AG$10<>\"\",INDIRECT(\"'\" & Setup!$AG$10 & \"'!\" & AE286),0) + IF(Setup!$AG$11<>\"\",INDIRECT(\"'\" & Setup!$AG$11 & \"'!\" & AE286),0) + IF(Setup!$AG$12<>\"\",INDIRECT(\"'\" & Setup!$AG$12 & \"'!\" & AE286),0)","v":{"v":0,"d":"0.00"}},"","",{"$f":"IF(Setup!$AH$7<>\"\",INDIRECT(\"'\" & Setup!$AH$7 & \"'!\" & AD286),0) + IF(Setup!$AH$8<>\"\",INDIRECT(\"'\" & Setup!$AH$8 & \"'!\" & AD286),0) + IF(Setup!$AH$9<>\"\",INDIRECT(\"'\" & Setup!$AH$9 & \"'!\" & AD286),0) + IF(Setup!$AH$10<>\"\",INDIRECT(\"'\" & Setup!$AH$10 & \"'!\" & AD286),0) + IF(Setup!$AH$11<>\"\",INDIRECT(\"'\" & Setup!$AH$11 & \"'!\" & AD286),0) + IF(Setup!$AH$12<>\"\",INDIRECT(\"'\" & Setup!$AH$12 & \"'!\" & AD286),0)","v":{"v":0,"d":"0.00"}},{"$f":"IF(Setup!$AH$7<>\"\",INDIRECT(\"'\" & Setup!$AH$7 & \"'!\" & AE286),0) + IF(Setup!$AH$8<>\"\",INDIRECT(\"'\" & Setup!$AH$8 & \"'!\" & AE286),0) + IF(Setup!$AH$9<>\"\",INDIRECT(\"'\" & Setup!$AH$9 & \"'!\" & AE286),0) + IF(Setup!$AH$10<>\"\",INDIRECT(\"'\" & Setup!$AH$10 & \"'!\" & AE286),0) + IF(Setup!$AH$11<>\"\",INDIRECT(\"'\" & Setup!$AH$11 & \"'!\" & AE286),0) + IF(Setup!$AH$12<>\"\",INDIRECT(\"'\" & Setup!$AH$12 & \"'!\" & AE286),0)","v":{"v":0,"d":"0.00"}},"","",{"$f":"IF(Setup!$AI$7<>\"\",INDIRECT(\"'\" & Setup!$AI$7 & \"'!\" & AD286),0) + IF(Setup!$AI$8<>\"\",INDIRECT(\"'\" & Setup!$AI$8 & \"'!\" & AD286),0) + IF(Setup!$AI$9<>\"\",INDIRECT(\"'\" & Setup!$AI$9 & \"'!\" & AD286),0) + IF(Setup!$AI$10<>\"\",INDIRECT(\"'\" & Setup!$AI$10 & \"'!\" & AD286),0) + IF(Setup!$AI$11<>\"\",INDIRECT(\"'\" & Setup!$AI$11 & \"'!\" & AD286),0) + IF(Setup!$AI$12<>\"\",INDIRECT(\"'\" & Setup!$AI$12 & \"'!\" & AD286),0)","v":{"v":0,"d":"0.00"}},{"$f":"IF(Setup!$AI$7<>\"\",INDIRECT(\"'\" & Setup!$AI$7 & \"'!\" & AE286),0) + IF(Setup!$AI$8<>\"\",INDIRECT(\"'\" & Setup!$AI$8 & \"'!\" & AE286),0) + IF(Setup!$AI$9<>\"\",INDIRECT(\"'\" & Setup!$AI$9 & \"'!\" & AE286),0) + IF(Setup!$AI$10<>\"\",INDIRECT(\"'\" & Setup!$AI$10 & \"'!\" & AE286),0) + IF(Setup!$AI$11<>\"\",INDIRECT(\"'\" & Setup!$AI$11 & \"'!\" & AE286),0) + IF(Setup!$AI$12<>\"\",INDIRECT(\"'\" & Setup!$AI$12 & \"'!\" & AE286),0)","v":{"v":0,"d":"0.00"}},"","",{"$f":"IF(Setup!$AJ$7<>\"\",INDIRECT(\"'\" & Setup!$AJ$7 & \"'!\" & AD286),0) + IF(Setup!$AJ$8<>\"\",INDIRECT(\"'\" & Setup!$AJ$8 & \"'!\" & AD286),0) + IF(Setup!$AJ$9<>\"\",INDIRECT(\"'\" & Setup!$AJ$9 & \"'!\" & AD286),0) + IF(Setup!$AJ$10<>\"\",INDIRECT(\"'\" & Setup!$AJ$10 & \"'!\" & AD286),0) + IF(Setup!$AJ$11<>\"\",INDIRECT(\"'\" & Setup!$AJ$11 & \"'!\" & AD286),0) + IF(Setup!$AJ$12<>\"\",INDIRECT(\"'\" & Setup!$AJ$12 & \"'!\" & AD286),0)","v":0},{"$f":"IF(Setup!$AJ$7<>\"\",INDIRECT(\"'\" & Setup!$AJ$7 & \"'!\" & AE286),0) + IF(Setup!$AJ$8<>\"\",INDIRECT(\"'\" & Setup!$AJ$8 & \"'!\" & AE286),0) + IF(Setup!$AJ$9<>\"\",INDIRECT(\"'\" & Setup!$AJ$9 & \"'!\" & AE286),0) + IF(Setup!$AJ$10<>\"\",INDIRECT(\"'\" & Setup!$AJ$10 & \"'!\" & AE286),0) + IF(Setup!$AJ$11<>\"\",INDIRECT(\"'\" & Setup!$AJ$11 & \"'!\" & AE286),0) + IF(Setup!$AJ$12<>\"\",INDIRECT(\"'\" & Setup!$AJ$12 & \"'!\" & AE286),0)","v":0},"","",{"$f":"Planning!H58","v":0},"00","M74","O74","N74",null,null,{"$f":"IF(Setup!$AG$7<>\"\",INDIRECT(\"'\" & Setup!$AG$7 & \"'!\" & AF286),0) + IF(Setup!$AG$8<>\"\",INDIRECT(\"'\" & Setup!$AG$8 & \"'!\" & AF286),0) + IF(Setup!$AG$9<>\"\",INDIRECT(\"'\" & Setup!$AG$9 & \"'!\" & AF286),0) + IF(Setup!$AG$10<>\"\",INDIRECT(\"'\" & Setup!$AG$10 & \"'!\" & AF286),0) + IF(Setup!$AG$11<>\"\",INDIRECT(\"'\" & Setup!$AG$11 & \"'!\" & AF286),0) + IF(Setup!$AG$12<>\"\",INDIRECT(\"'\" & Setup!$AG$12 & \"'!\" & AF286),0)","v":0},{"$f":"IF(Setup!$AH$7<>\"\",INDIRECT(\"'\" & Setup!$AH$7 & \"'!\" & AF286),0) + IF(Setup!$AH$8<>\"\",INDIRECT(\"'\" & Setup!$AH$8 & \"'!\" & AF286),0) + IF(Setup!$AH$9<>\"\",INDIRECT(\"'\" & Setup!$AH$9 & \"'!\" & AF286),0) + IF(Setup!$AH$10<>\"\",INDIRECT(\"'\" & Setup!$AH$10 & \"'!\" & AF286),0) + IF(Setup!$AH$11<>\"\",INDIRECT(\"'\" & Setup!$AH$11 & \"'!\" & AF286),0) + IF(Setup!$AH$12<>\"\",INDIRECT(\"'\" & Setup!$AH$12 & \"'!\" & AF286),0)","v":0},{"$f":"IF(Setup!$AI$7<>\"\",INDIRECT(\"'\" & Setup!$AI$7 & \"'!\" & AF286),0) + IF(Setup!$AI$8<>\"\",INDIRECT(\"'\" & Setup!$AI$8 & \"'!\" & AF286),0) + IF(Setup!$AI$9<>\"\",INDIRECT(\"'\" & Setup!$AI$9 & \"'!\" & AF286),0) + IF(Setup!$AI$10<>\"\",INDIRECT(\"'\" & Setup!$AI$10 & \"'!\" & AF286),0) + IF(Setup!$AI$11<>\"\",INDIRECT(\"'\" & Setup!$AI$11 & \"'!\" & AF286),0) + IF(Setup!$AI$12<>\"\",INDIRECT(\"'\" & Setup!$AI$12 & \"'!\" & AF286),0)","v":0},{"$f":"IF(Setup!$AJ$7<>\"\",INDIRECT(\"'\" & Setup!$AJ$7 & \"'!\" & AF286),0) + IF(Setup!$AJ$8<>\"\",INDIRECT(\"'\" & Setup!$AJ$8 & \"'!\" & AF286),0) + IF(Setup!$AJ$9<>\"\",INDIRECT(\"'\" & Setup!$AJ$9 & \"'!\" & AF286),0) + IF(Setup!$AJ$10<>\"\",INDIRECT(\"'\" & Setup!$AJ$10 & \"'!\" & AF286),0) + IF(Setup!$AJ$11<>\"\",INDIRECT(\"'\" & Setup!$AJ$11 & \"'!\" & AF286),0) + IF(Setup!$AJ$12<>\"\",INDIRECT(\"'\" & Setup!$AJ$12 & \"'!\" & AF286),0)","v":0},null,"",{"$nulls":30},0,{"$f":"IF(Setup!$AH$7=\"\",0,INDIRECT(\"'\" & Setup!$AH$7 & \"'!\" & AF286))","v":0},{"$f":"IF(Setup!$AI$7=\"\",0,INDIRECT(\"'\" & Setup!$AI$7 & \"'!\" & AF286))","v":0},{"$f":"IF(Setup!$AJ$7=\"\",0,INDIRECT(\"'\" & Setup!$AJ$7 & \"'!\" & AF286))","v":0}]
[{"$f":"Planning!A59","v":"I051"},{"$f":"Planning!B59","v":0},{"$f":"Planning!C59","v":0},{"$f":"Planning!D59","v":0},{"$f":"Planning!E59","v":0},{"$f":"Planning!G59","v":0},0,{"v":0,"d":"0.00"},{"v":0,"d":"0.00"},"","",{"$f":"IF(Setup!$AG$7<>\"\",INDIRECT(\"'\" & Setup!$AG$7 & \"'!\" & AD287),0) + IF(Setup!$AG$8<>\"\",INDIRECT(\"'\" & Setup!$AG$8 & \"'!\" & AD287),0) + IF(Setup!$AG$9<>\"\",INDIRECT(\"'\" & Setup!$AG$9 & \"'!\" & AD287),0) + IF(Setup!$AG$10<>\"\",INDIRECT(\"'\" & Setup!$AG$10 & \"'!\" & AD287),0) + IF(Setup!$AG$11<>\"\",INDIRECT(\"'\" & Setup!$AG$11 & \"'!\" & AD287),0) + IF(Setup!$AG$12<>\"\",INDIRECT(\"'\" & Setup!$AG$12 & \"'!\" & AD287),0)","v":{"v":0,"d":"0.00"}},{"$f":"IF(Setup!$AG$7<>\"\",INDIRECT(\"'\" & Setup!$AG$7 & \"'!\" & AE287),0) + IF(Setup!$AG$8<>\"\",INDIRECT(\"'\" & Setup!$AG$8 & \"'!\" & AE287),0) + IF(Setup!$AG$9<>\"\",INDIRECT(\"'\" & Setup!$AG$9 & \"'!\" & AE287),0) + IF(Setup!$AG$10<>\"\",INDIRECT(\"'\" & Setup!$AG$10 & \"'!\" & AE287),0) + IF(Setup!$AG$11<>\"\",INDIRECT(\"'\" & Setup!$AG$11 & \"'!\" & AE287),0) + IF(Setup!$AG$12<>\"\",INDIRECT(\"'\" & Setup!$AG$12 & \"'!\" & AE287),0)","v":{"v":0,"d":"0.00"}},"","",{"$f":"IF(Setup!$AH$7<>\"\",INDIRECT(\"'\" & Setup!$AH$7 & \"'!\" & AD287),0) + IF(Setup!$AH$8<>\"\",INDIRECT(\"'\" & Setup!$AH$8 & \"'!\" & AD287),0) + IF(Setup!$AH$9<>\"\",INDIRECT(\"'\" & Setup!$AH$9 & \"'!\" & AD287),0) + IF(Setup!$AH$10<>\"\",INDIRECT(\"'\" & Setup!$AH$10 & \"'!\" & AD287),0) + IF(Setup!$AH$11<>\"\",INDIRECT(\"'\" & Setup!$AH$11 & \"'!\" & AD287),0) + IF(Setup!$AH$12<>\"\",INDIRECT(\"'\" & Setup!$AH$12 & \"'!\" & AD287),0)","v":{"v":0,"d":"0.00"}},{"$f":"IF(Setup!$AH$7<>\"\",INDIRECT(\"'\" & Setup!$AH$7 & \"'!\" & AE287),0) + IF(Setup!$AH$8<>\"\",INDIRECT(\"'\" & Setup!$AH$8 & \"'!\" & AE287),0) + IF(Setup!$AH$9<>\"\",INDIRECT(\"'\" & Setup!$AH$9 & \"'!\" & AE287),0) + IF(Setup!$AH$10<>\"\",INDIRECT(\"'\" & Setup!$AH$10 & \"'!\" & AE287),0) + IF(Setup!$AH$11<>\"\",INDIRECT(\"'\" & Setup!$AH$11 & \"'!\" & AE287),0) + IF(Setup!$AH$12<>\"\",INDIRECT(\"'\" & Setup!$AH$12 & \"'!\" & AE287),0)","v":{"v":0,"d":"0.00"}},"","",{"$f":"IF(Setup!$AI$7<>\"\",INDIRECT(\"'\" & Setup!$AI$7 & \"'!\" & AD287),0) + IF(Setup!$AI$8<>\"\",INDIRECT(\"'\" & Setup!$AI$8 & \"'!\" & AD287),0) + IF(Setup!$AI$9<>\"\",INDIRECT(\"'\" & Setup!$AI$9 & \"'!\" & AD287),0) + IF(Setup!$AI$10<>\"\",INDIRECT(\"'\" & Setup!$AI$10 & \"'!\" & AD287),0) + IF(Setup!$AI$11<>\"\",INDIRECT(\"'\" & Setup!$AI$11 & \"'!\" & AD287),0) + IF(Setup!$AI$12<>\"\",INDIRECT(\"'\" & Setup!$AI$12 & \"'!\" & AD287),0)","v":{"v":0,"d":"0.00"}},{"$f":"IF(Setup!$AI$7<>\"\",INDIRECT(\"'\" & Setup!$AI$7 & \"'!\" & AE287),0) + IF(Setup!$AI$8<>\"\",INDIRECT(\"'\" & Setup!$AI$8 & \"'!\" & AE287),0) + IF(Setup!$AI$9<>\"\",INDIRECT(\"'\" & Setup!$AI$9 & \"'!\" & AE287),0) + IF(Setup!$AI$10<>\"\",INDIRECT(\"'\" & Setup!$AI$10 & \"'!\" & AE287),0) + IF(Setup!$AI$11<>\"\",INDIRECT(\"'\" & Setup!$AI$11 & \"'!\" & AE287),0) + IF(Setup!$AI$12<>\"\",INDIRECT(\"'\" & Setup!$AI$12 & \"'!\" & AE287),0)","v":{"v":0,"d":"0.00"}},"","",{"$f":"IF(Setup!$AJ$7<>\"\",INDIRECT(\"'\" & Setup!$AJ$7 & \"'!\" & AD287),0) + IF(Setup!$AJ$8<>\"\",INDIRECT(\"'\" & Setup!$AJ$8 & \"'!\" & AD287),0) + IF(Setup!$AJ$9<>\"\",INDIRECT(\"'\" & Setup!$AJ$9 & \"'!\" & AD287),0) + IF(Setup!$AJ$10<>\"\",INDIRECT(\"'\" & Setup!$AJ$10 & \"'!\" & AD287),0) + IF(Setup!$AJ$11<>\"\",INDIRECT(\"'\" & Setup!$AJ$11 & \"'!\" & AD287),0) + IF(Setup!$AJ$12<>\"\",INDIRECT(\"'\" & Setup!$AJ$12 & \"'!\" & AD287),0)","v":0},{"$f":"IF(Setup!$AJ$7<>\"\",INDIRECT(\"'\" & Setup!$AJ$7 & \"'!\" & AE287),0) + IF(Setup!$AJ$8<>\"\",INDIRECT(\"'\" & Setup!$AJ$8 & \"'!\" & AE287),0) + IF(Setup!$AJ$9<>\"\",INDIRECT(\"'\" & Setup!$AJ$9 & \"'!\" & AE287),0) + IF(Setup!$AJ$10<>\"\",INDIRECT(\"'\" & Setup!$AJ$10 & \"'!\" & AE287),0) + IF(Setup!$AJ$11<>\"\",INDIRECT(\"'\" & Setup!$AJ$11 & \"'!\" & AE287),0) + IF(Setup!$AJ$12<>\"\",INDIRECT(\"'\" & Setup!$AJ$12 & \"'!\" & AE287),0)","v":0},"","",{"$f":"Planning!H59","v":0},"00","M75","O75","N75",null,null,{"$f":"IF(Setup!$AG$7<>\"\",INDIRECT(\"'\" & Setup!$AG$7 & \"'!\" & AF287),0) + IF(Setup!$AG$8<>\"\",INDIRECT(\"'\" & Setup!$AG$8 & \"'!\" & AF287),0) + IF(Setup!$AG$9<>\"\",INDIRECT(\"'\" & Setup!$AG$9 & \"'!\" & AF287),0) + IF(Setup!$AG$10<>\"\",INDIRECT(\"'\" & Setup!$AG$10 & \"'!\" & AF287),0) + IF(Setup!$AG$11<>\"\",INDIRECT(\"'\" & Setup!$AG$11 & \"'!\" & AF287),0) + IF(Setup!$AG$12<>\"\",INDIRECT(\"'\" & Setup!$AG$12 & \"'!\" & AF287),0)","v":0},{"$f":"IF(Setup!$AH$7<>\"\",INDIRECT(\"'\" & Setup!$AH$7 & \"'!\" & AF287),0) + IF(Setup!$AH$8<>\"\",INDIRECT(\"'\" & Setup!$AH$8 & \"'!\" & AF287),0) + IF(Setup!$AH$9<>\"\",INDIRECT(\"'\" & Setup!$AH$9 & \"'!\" & AF287),0) + IF(Setup!$AH$10<>\"\",INDIRECT(\"'\" & Setup!$AH$10 & \"'!\" & AF287),0) + IF(Setup!$AH$11<>\"\",INDIRECT(\"'\" & Setup!$AH$11 & \"'!\" & AF287),0) + IF(Setup!$AH$12<>\"\",INDIRECT(\"'\" & Setup!$AH$12 & \"'!\" & AF287),0)","v":0},{"$f":"IF(Setup!$AI$7<>\"\",INDIRECT(\"'\" & Setup!$AI$7 & \"'!\" & AF287),0) + IF(Setup!$AI$8<>\"\",INDIRECT(\"'\" & Setup!$AI$8 & \"'!\" & AF287),0) + IF(Setup!$AI$9<>\"\",INDIRECT(\"'\" & Setup!$AI$9 & \"'!\" & AF287),0) + IF(Setup!$AI$10<>\"\",INDIRECT(\"'\" & Setup!$AI$10 & \"'!\" & AF287),0) + IF(Setup!$AI$11<>\"\",INDIRECT(\"'\" & Setup!$AI$11 & \"'!\" & AF287),0) + IF(Setup!$AI$12<>\"\",INDIRECT(\"'\" & Setup!$AI$12 & \"'!\" & AF287),0)","v":0},{"$f":"IF(Setup!$AJ$7<>\"\",INDIRECT(\"'\" & Setup!$AJ$7 & \"'!\" & AF287),0) + IF(Setup!$AJ$8<>\"\",INDIRECT(\"'\" & Setup!$AJ$8 & \"'!\" & AF287),0) + IF(Setup!$AJ$9<>\"\",INDIRECT(\"'\" & Setup!$AJ$9 & \"'!\" & AF287),0) + IF(Setup!$AJ$10<>\"\",INDIRECT(\"'\" & Setup!$AJ$10 & \"'!\" & AF287),0) + IF(Setup!$AJ$11<>\"\",INDIRECT(\"'\" & Setup!$AJ$11 & \"'!\" & AF287),0) + IF(Setup!$AJ$12<>\"\",INDIRECT(\"'\" & Setup!$AJ$12 & \"'!\" & AF287),0)","v":0},null,"",{"$nulls":30},0,{"$f":"IF(Setup!$AH$7=\"\",0,INDIRECT(\"'\" & Setup!$AH$7 & \"'!\" & AF287))","v":0},{"$f":"IF(Setup!$AI$7=\"\",0,INDIRECT(\"'\" & Setup!$AI$7 & \"'!\" & AF287))","v":0},{"$f":"IF(Setup!$AJ$7=\"\",0,INDIRECT(\"'\" & Setup!$AJ$7 & \"'!\" & AF287))","v":0}]
[{"$f":"Planning!A60","v":"I052"},{"$f":"Planning!B60","v":0},{"$f":"Planning!C60","v":0},{"$f":"Planning!D60","v":0},{"$f":"Planning!E60","v":0},{"$f":"Planning!G60","v":0},0,{"v":0,"d":"0.00"},{"v":0,"d":"0.00"},"","",{"$f":"IF(Setup!$AG$7<>\"\",INDIRECT(\"'\" & Setup!$AG$7 & \"'!\" & AD288),0) + IF(Setup!$AG$8<>\"\",INDIRECT(\"'\" & Setup!$AG$8 & \"'!\" & AD288),0) + IF(Setup!$AG$9<>\"\",INDIRECT(\"'\" & Setup!$AG$9 & \"'!\" & AD288),0) + IF(Setup!$AG$10<>\"\",INDIRECT(\"'\" & Setup!$AG$10 & \"'!\" & AD288),0) + IF(Setup!$AG$11<>\"\",INDIRECT(\"'\" & Setup!$AG$11 & \"'!\" & AD288),0) + IF(Setup!$AG$12<>\"\",INDIRECT(\"'\" & Setup!$AG$12 & \"'!\" & AD288),0)","v":{"v":0,"d":"0.00"}},{"$f":"IF(Setup!$AG$7<>\"\",INDIRECT(\"'\" & Setup!$AG$7 & \"'!\" & AE288),0) + IF(Setup!$AG$8<>\"\",INDIRECT(\"'\" & Setup!$AG$8 & \"'!\" & AE288),0) + IF(Setup!$AG$9<>\"\",INDIRECT(\"'\" & Setup!$AG$9 & \"'!\" & AE288),0) + IF(Setup!$AG$10<>\"\",INDIRECT(\"'\" & Setup!$AG$10 & \"'!\" & AE288),0) + IF(Setup!$AG$11<>\"\",INDIRECT(\"'\" & Setup!$AG$11 & \"'!\" & AE288),0) + IF(Setup!$AG$12<>\"\",INDIRECT(\"'\" & Setup!$AG$12 & \"'!\" & AE288),0)","v":{"v":0,"d":"0.00"}},"","",{"$f":"IF(Setup!$AH$7<>\"\",INDIRECT(\"'\" & Setup!$AH$7 & \"'!\" & AD288),0) + IF(Setup!$AH$8<>\"\",INDIRECT(\"'\" & Setup!$AH$8 & \"'!\" & AD288),0) + IF(Setup!$AH$9<>\"\",INDIRECT(\"'\" & Setup!$AH$9 & \"'!\" & AD288),0) + IF(Setup!$AH$10<>\"\",INDIRECT(\"'\" & Setup!$AH$10 & \"'!\" & AD288),0) + IF(Setup!$AH$11<>\"\",INDIRECT(\"'\" & Setup!$AH$11 & \"'!\" & AD288),0) + IF(Setup!$AH$12<>\"\",INDIRECT(\"'\" & Setup!$AH$12 & \"'!\" & AD288),0)","v":{"v":0,"d":"0.00"}},{"$f":"IF(Setup!$AH$7<>\"\",INDIRECT(\"'\" & Setup!$AH$7 & \"'!\" & AE288),0) + IF(Setup!$AH$8<>\"\",INDIRECT(\"'\" & Setup!$AH$8 & \"'!\" & AE288),0) + IF(Setup!$AH$9<>\"\",INDIRECT(\"'\" & Setup!$AH$9 & \"'!\" & AE288),0) + IF(Setup!$AH$10<>\"\",INDIRECT(\"'\" & Setup!$AH$10 & \"'!\" & AE288),0) + IF(Setup!$AH$11<>\"\",INDIRECT(\"'\" & Setup!$AH$11 & \"'!\" & AE288),0) + IF(Setup!$AH$12<>\"\",INDIRECT(\"'\" & Setup!$AH$12 & \"'!\" & AE288),0)","v":{"v":0,"d":"0.00"}},"","",{"$f":"IF(Setup!$AI$7<>\"\",INDIRECT(\"'\" & Setup!$AI$7 & \"'!\" & AD288),0) + IF(Setup!$AI$8<>\"\",INDIRECT(\"'\" & Setup!$AI$8 & \"'!\" & AD288),0) + IF(Setup!$AI$9<>\"\",INDIRECT(\"'\" & Setup!$AI$9 & \"'!\" & AD288),0) + IF(Setup!$AI$10<>\"\",INDIRECT(\"'\" & Setup!$AI$10 & \"'!\" & AD288),0) + IF(Setup!$AI$11<>\"\",INDIRECT(\"'\" & Setup!$AI$11 & \"'!\" & AD288),0) + IF(Setup!$AI$12<>\"\",INDIRECT(\"'\" & Setup!$AI$12 & \"'!\" & AD288),0)","v":{"v":0,"d":"0.00"}},{"$f":"IF(Setup!$AI$7<>\"\",INDIRECT(\"'\" & Setup!$AI$7 & \"'!\" & AE288),0) + IF(Setup!$AI$8<>\"\",INDIRECT(\"'\" & Setup!$AI$8 & \"'!\" & AE288),0) + IF(Setup!$AI$9<>\"\",INDIRECT(\"'\" & Setup!$AI$9 & \"'!\" & AE288),0) + IF(Setup!$AI$10<>\"\",INDIRECT(\"'\" & Setup!$AI$10 & \"'!\" & AE288),0) + IF(Setup!$AI$11<>\"\",INDIRECT(\"'\" & Setup!$AI$11 & \"'!\" & AE288),0) + IF(Setup!$AI$12<>\"\",INDIRECT(\"'\" & Setup!$AI$12 & \"'!\" & AE288),0)","v":{"v":0,"d":"0.00"}},"","",{"$f":"IF(Setup!$AJ$7<>\"\",INDIRECT(\"'\" & Setup!$AJ$7 & \"'!\" & AD288),0) + IF(Setup!$AJ$8<>\"\",INDIRECT(\"'\" & Setup!$AJ$8 & \"'!\" & AD288),0) + IF(Setup!$AJ$9<>\"\",INDIRECT(\"'\" & Setup!$AJ$9 & \"'!\" & AD288),0) + IF(Setup!$AJ$10<>\"\",INDIRECT(\"'\" & Setup!$AJ$10 & \"'!\" & AD288),0) + IF(Setup!$AJ$11<>\"\",INDIRECT(\"'\" & Setup!$AJ$11 & \"'!\" & AD288),0) + IF(Setup!$AJ$12<>\"\",INDIRECT(\"'\" & Setup!$AJ$12 & \"'!\" & AD288),0)","v":0},{"$f":"IF(Setup!$AJ$7<>\"\",INDIRECT(\"'\" & Setup!$AJ$7 & \"'!\" & AE288),0) + IF(Setup!$AJ$8<>\"\",INDIRECT(\"'\" & Setup!$AJ$8 & \"'!\" & AE288),0) + IF(Setup!$AJ$9<>\"\",INDIRECT(\"'\" & Setup!$AJ$9 & \"'!\" & AE288),0) + IF(Setup!$AJ$10<>\"\",INDIRECT(\"'\" & Setup!$AJ$10 & \"'!\" & AE288),0) + IF(Setup!$AJ$11<>\"\",INDIRECT(\"'\" & Setup!$AJ$11 & \"'!\" & AE288),0) + IF(Setup!$AJ$12<>\"\",INDIRECT(\"'\" & Setup!$AJ$12 & \"'!\" & AE288),0)","v":0},"","",{"$f":"Planning!H60","v":0},"00","M76","O76","N76",null,null,{"$f":"IF(Setup!$AG$7<>\"\",INDIRECT(\"'\" & Setup!$AG$7 & \"'!\" & AF288),0) + IF(Setup!$AG$8<>\"\",INDIRECT(\"'\" & Setup!$AG$8 & \"'!\" & AF288),0) + IF(Setup!$AG$9<>\"\",INDIRECT(\"'\" & Setup!$AG$9 & \"'!\" & AF288),0) + IF(Setup!$AG$10<>\"\",INDIRECT(\"'\" & Setup!$AG$10 & \"'!\" & AF288),0) + IF(Setup!$AG$11<>\"\",INDIRECT(\"'\" & Setup!$AG$11 & \"'!\" & AF288),0) + IF(Setup!$AG$12<>\"\",INDIRECT(\"'\" & Setup!$AG$12 & \"'!\" & AF288),0)","v":0},{"$f":"IF(Setup!$AH$7<>\"\",INDIRECT(\"'\" & Setup!$AH$7 & \"'!\" & AF288),0) + IF(Setup!$AH$8<>\"\",INDIRECT(\"'\" & Setup!$AH$8 & \"'!\" & AF288),0) + IF(Setup!$AH$9<>\"\",INDIRECT(\"'\" & Setup!$AH$9 & \"'!\" & AF288),0) + IF(Setup!$AH$10<>\"\",INDIRECT(\"'\" & Setup!$AH$10 & \"'!\" & AF288),0) + IF(Setup!$AH$11<>\"\",INDIRECT(\"'\" & Setup!$AH$11 & \"'!\" & AF288),0) + IF(Setup!$AH$12<>\"\",INDIRECT(\"'\" & Setup!$AH$12 & \"'!\" & AF288),0)","v":0},{"$f":"IF(Setup!$AI$7<>\"\",INDIRECT(\"'\" & Setup!$AI$7 & \"'!\" & AF288),0) + IF(Setup!$AI$8<>\"\",INDIRECT(\"'\" & Setup!$AI$8 & \"'!\" & AF288),0) + IF(Setup!$AI$9<>\"\",INDIRECT(\"'\" & Setup!$AI$9 & \"'!\" & AF288),0) + IF(Setup!$AI$10<>\"\",INDIRECT(\"'\" & Setup!$AI$10 & \"'!\" & AF288),0) + IF(Setup!$AI$11<>\"\",INDIRECT(\"'\" & Setup!$AI$11 & \"'!\" & AF288),0) + IF(Setup!$AI$12<>\"\",INDIRECT(\"'\" & Setup!$AI$12 & \"'!\" & AF288),0)","v":0},{"$f":"IF(Setup!$AJ$7<>\"\",INDIRECT(\"'\" & Setup!$AJ$7 & \"'!\" & AF288),0) + IF(Setup!$AJ$8<>\"\",INDIRECT(\"'\" & Setup!$AJ$8 & \"'!\" & AF288),0) + IF(Setup!$AJ$9<>\"\",INDIRECT(\"'\" & Setup!$AJ$9 & \"'!\" & AF288),0) + IF(Setup!$AJ$10<>\"\",INDIRECT(\"'\" & Setup!$AJ$10 & \"'!\" & AF288),0) + IF(Setup!$AJ$11<>\"\",INDIRECT(\"'\" & Setup!$AJ$11 & \"'!\" & AF288),0) + IF(Setup!$AJ$12<>\"\",INDIRECT(\"'\" & Setup!$AJ$12 & \"'!\" & AF288),0)","v":0},null,"",{"$nulls":30},0,{"$f":"IF(Setup!$AH$7=\"\",0,INDIRECT(\"'\" & Setup!$AH$7 & \"'!\" & AF288))","v":0},{"$f":"IF(Setup!$AI$7=\"\",0,INDIRECT(\"'\" & Setup!$AI$7 & \"'!\" & AF288))","v":0},{"$f":"IF(Setup!$AJ$7=\"\",0,INDIRECT(\"'\" & Setup!$AJ$7 & \"'!\" & AF288))","v":0}]
[{"$f":"Planning!A61","v":"I053"},{"$f":"Planning!B61","v":0},{"$f":"Planning!C61","v":0},{"$f":"Planning!D61","v":0},{"$f":"Planning!E61","v":0},{"$f":"Planning!G61","v":0},0,{"v":0,"d":"0.00"},{"v":0,"d":"0.00"},"","",{"$f":"IF(Setup!$AG$7<>\"\",INDIRECT(\"'\" & Setup!$AG$7 & \"'!\" & AD289),0) + IF(Setup!$AG$8<>\"\",INDIRECT(\"'\" & Setup!$AG$8 & \"'!\" & AD289),0) + IF(Setup!$AG$9<>\"\",INDIRECT(\"'\" & Setup!$AG$9 & \"'!\" & AD289),0) + IF(Setup!$AG$10<>\"\",INDIRECT(\"'\" & Setup!$AG$10 & \"'!\" & AD289),0) + IF(Setup!$AG$11<>\"\",INDIRECT(\"'\" & Setup!$AG$11 & \"'!\" & AD289),0) + IF(Setup!$AG$12<>\"\",INDIRECT(\"'\" & Setup!$AG$12 & \"'!\" & AD289),0)","v":{"v":0,"d":"0.00"}},{"$f":"IF(Setup!$AG$7<>\"\",INDIRECT(\"'\" & Setup!$AG$7 & \"'!\" & AE289),0) + IF(Setup!$AG$8<>\"\",INDIRECT(\"'\" & Setup!$AG$8 & \"'!\" & AE289),0) + IF(Setup!$AG$9<>\"\",INDIRECT(\"'\" & Setup!$AG$9 & \"'!\" & AE289),0) + IF(Setup!$AG$10<>\"\",INDIRECT(\"'\" & Setup!$AG$10 & \"'!\" & AE289),0) + IF(Setup!$AG$11<>\"\",INDIRECT(\"'\" & Setup!$AG$11 & \"'!\" & AE289),0) + IF(Setup!$AG$12<>\"\",INDIRECT(\"'\" & Setup!$AG$12 & \"'!\" & AE289),0)","v":{"v":0,"d":"0.00"}},"","",{"$f":"IF(Setup!$AH$7<>\"\",INDIRECT(\"'\" & Setup!$AH$7 & \"'!\" & AD289),0) + IF(Setup!$AH$8<>\"\",INDIRECT(\"'\" & Setup!$AH$8 & \"'!\" & AD289),0) + IF(Setup!$AH$9<>\"\",INDIRECT(\"'\" & Setup!$AH$9 & \"'!\" & AD289),0) + IF(Setup!$AH$10<>\"\",INDIRECT(\"'\" & Setup!$AH$10 & \"'!\" & AD289),0) + IF(Setup!$AH$11<>\"\",INDIRECT(\"'\" & Setup!$AH$11 & \"'!\" & AD289),0) + IF(Setup!$AH$12<>\"\",INDIRECT(\"'\" & Setup!$AH$12 & \"'!\" & AD289),0)","v":{"v":0,"d":"0.00"}},{"$f":"IF(Setup!$AH$7<>\"\",INDIRECT(\"'\" & Setup!$AH$7 & \"'!\" & AE289),0) + IF(Setup!$AH$8<>\"\",INDIRECT(\"'\" & Setup!$AH$8 & \"'!\" & AE289),0) + IF(Setup!$AH$9<>\"\",INDIRECT(\"'\" & Setup!$AH$9 & \"'!\" & AE289),0) + IF(Setup!$AH$10<>\"\",INDIRECT(\"'\" & Setup!$AH$10 & \"'!\" & AE289),0) + IF(Setup!$AH$11<>\"\",INDIRECT(\"'\" & Setup!$AH$11 & \"'!\" & AE289),0) + IF(Setup!$AH$12<>\"\",INDIRECT(\"'\" & Setup!$AH$12 & \"'!\" & AE289),0)","v":{"v":0,"d":"0.00"}},"","",{"$f":"IF(Setup!$AI$7<>\"\",INDIRECT(\"'\" & Setup!$AI$7 & \"'!\" & AD289),0) + IF(Setup!$AI$8<>\"\",INDIRECT(\"'\" & Setup!$AI$8 & \"'!\" & AD289),0) + IF(Setup!$AI$9<>\"\",INDIRECT(\"'\" & Setup!$AI$9 & \"'!\" & AD289),0) + IF(Setup!$AI$10<>\"\",INDIRECT(\"'\" & Setup!$AI$10 & \"'!\" & AD289),0) + IF(Setup!$AI$11<>\"\",INDIRECT(\"'\" & Setup!$AI$11 & \"'!\" & AD289),0) + IF(Setup!$AI$12<>\"\",INDIRECT(\"'\" & Setup!$AI$12 & \"'!\" & AD289),0)","v":{"v":0,"d":"0.00"}},{"$f":"IF(Setup!$AI$7<>\"\",INDIRECT(\"'\" & Setup!$AI$7 & \"'!\" & AE289),0) + IF(Setup!$AI$8<>\"\",INDIRECT(\"'\" & Setup!$AI$8 & \"'!\" & AE289),0) + IF(Setup!$AI$9<>\"\",INDIRECT(\"'\" & Setup!$AI$9 & \"'!\" & AE289),0) + IF(Setup!$AI$10<>\"\",INDIRECT(\"'\" & Setup!$AI$10 & \"'!\" & AE289),0) + IF(Setup!$AI$11<>\"\",INDIRECT(\"'\" & Setup!$AI$11 & \"'!\" & AE289),0) + IF(Setup!$AI$12<>\"\",INDIRECT(\"'\" & Setup!$AI$12 & \"'!\" & AE289),0)","v":{"v":0,"d":"0.00"}},"","",{"$f":"IF(Setup!$AJ$7<>\"\",INDIRECT(\"'\" & Setup!$AJ$7 & \"'!\" & AD289),0) + IF(Setup!$AJ$8<>\"\",INDIRECT(\"'\" & Setup!$AJ$8 & \"'!\" & AD289),0) + IF(Setup!$AJ$9<>\"\",INDIRECT(\"'\" & Setup!$AJ$9 & \"'!\" & AD289),0) + IF(Setup!$AJ$10<>\"\",INDIRECT(\"'\" & Setup!$AJ$10 & \"'!\" & AD289),0) + IF(Setup!$AJ$11<>\"\",INDIRECT(\"'\" & Setup!$AJ$11 & \"'!\" & AD289),0) + IF(Setup!$AJ$12<>\"\",INDIRECT(\"'\" & Setup!$AJ$12 & \"'!\" & AD289),0)","v":0},{"$f":"IF(Setup!$AJ$7<>\"\",INDIRECT(\"'\" & Setup!$AJ$7 & \"'!\" & AE289),0) + IF(Setup!$AJ$8<>\"\",INDIRECT(\"'\" & Setup!$AJ$8 & \"'!\" & AE289),0) + IF(Setup!$AJ$9<>\"\",INDIRECT(\"'\" & Setup!$AJ$9 & \"'!\" & AE289),0) + IF(Setup!$AJ$10<>\"\",INDIRECT(\"'\" & Setup!$AJ$10 & \"'!\" & AE289),0) + IF(Setup!$AJ$11<>\"\",INDIRECT(\"'\" & Setup!$AJ$11 & \"'!\" & AE289),0) + IF(Setup!$AJ$12<>\"\",INDIRECT(\"'\" & Setup!$AJ$12 & \"'!\" & AE289),0)","v":0},"","",{"$f":"Planning!H61","v":0},"00","M77","O77","N77",null,null,{"$f":"IF(Setup!$AG$7<>\"\",INDIRECT(\"'\" & Setup!$AG$7 & \"'!\" & AF289),0) + IF(Setup!$AG$8<>\"\",INDIRECT(\"'\" & Setup!$AG$8 & \"'!\" & AF289),0) + IF(Setup!$AG$9<>\"\",INDIRECT(\"'\" & Setup!$AG$9 & \"'!\" & AF289),0) + IF(Setup!$AG$10<>\"\",INDIRECT(\"'\" & Setup!$AG$10 & \"'!\" & AF289),0) + IF(Setup!$AG$11<>\"\",INDIRECT(\"'\" & Setup!$AG$11 & \"'!\" & AF289),0) + IF(Setup!$AG$12<>\"\",INDIRECT(\"'\" & Setup!$AG$12 & \"'!\" & AF289),0)","v":0},{"$f":"IF(Setup!$AH$7<>\"\",INDIRECT(\"'\" & Setup!$AH$7 & \"'!\" & AF289),0) + IF(Setup!$AH$8<>\"\",INDIRECT(\"'\" & Setup!$AH$8 & \"'!\" & AF289),0) + IF(Setup!$AH$9<>\"\",INDIRECT(\"'\" & Setup!$AH$9 & \"'!\" & AF289),0) + IF(Setup!$AH$10<>\"\",INDIRECT(\"'\" & Setup!$AH$10 & \"'!\" & AF289),0) + IF(Setup!$AH$11<>\"\",INDIRECT(\"'\" & Setup!$AH$11 & \"'!\" & AF289),0) + IF(Setup!$AH$12<>\"\",INDIRECT(\"'\" & Setup!$AH$12 & \"'!\" & AF289),0)","v":0},{"$f":"IF(Setup!$AI$7<>\"\",INDIRECT(\"'\" & Setup!$AI$7 & \"'!\" & AF289),0) + IF(Setup!$AI$8<>\"\",INDIRECT(\"'\" & Setup!$AI$8 & \"'!\" & AF289),0) + IF(Setup!$AI$9<>\"\",INDIRECT(\"'\" & Setup!$AI$9 & \"'!\" & AF289),0) + IF(Setup!$AI$10<>\"\",INDIRECT(\"'\" & Setup!$AI$10 & \"'!\" & AF289),0) + IF(Setup!$AI$11<>\"\",INDIRECT(\"'\" & Setup!$AI$11 & \"'!\" & AF289),0) + IF(Setup!$AI$12<>\"\",INDIRECT(\"'\" & Setup!$AI$12 & \"'!\" & AF289),0)","v":0},{"$f":"IF(Setup!$AJ$7<>\"\",INDIRECT(\"'\" & Setup!$AJ$7 & \"'!\" & AF289),0) + IF(Setup!$AJ$8<>\"\",INDIRECT(\"'\" & Setup!$AJ$8 & \"'!\" & AF289),0) + IF(Setup!$AJ$9<>\"\",INDIRECT(\"'\" & Setup!$AJ$9 & \"'!\" & AF289),0) + IF(Setup!$AJ$10<>\"\",INDIRECT(\"'\" & Setup!$AJ$10 & \"'!\" & AF289),0) + IF(Setup!$AJ$11<>\"\",INDIRECT(\"'\" & Setup!$AJ$11 & \"'!\" & AF289),0) + IF(Setup!$AJ$12<>\"\",INDIRECT(\"'\" & Setup!$AJ$12 & \"'!\" & AF289),0)","v":0},null,"",{"$nulls":30},0,{"$f":"IF(Setup!$AH$7=\"\",0,INDIRECT(\"'\" & Setup!$AH$7 & \"'!\" & AF289))","v":0},{"$f":"IF(Setup!$AI$7=\"\",0,INDIRECT(\"'\" & Setup!$AI$7 & \"'!\" & AF289))","v":0},{"$f":"IF(Setup!$AJ$7=\"\",0,INDIRECT(\"'\" & Setup!$AJ$7 & \"'!\" & AF289))","v":0}]
[{"$f":"Planning!A62","v":"I054"},{"$f":"Planning!B62","v":0},{"$f":"Planning!C62","v":0},{"$f":"Planning!D62","v":0},{"$f":"Planning!E62","v":0},{"$f":"Planning!G62","v":0},0,{"v":0,"d":"0.00"},{"v":0,"d":"0.00"},"","",{"$f":"IF(Setup!$AG$7<>\"\",INDIRECT(\"'\" & Setup!$AG$7 & \"'!\" & AD290),0) + IF(Setup!$AG$8<>\"\",INDIRECT(\"'\" & Setup!$AG$8 & \"'!\" & AD290),0) + IF(Setup!$AG$9<>\"\",INDIRECT(\"'\" & Setup!$AG$9 & \"'!\" & AD290),0) + IF(Setup!$AG$10<>\"\",INDIRECT(\"'\" & Setup!$AG$10 & \"'!\" & AD290),0) + IF(Setup!$AG$11<>\"\",INDIRECT(\"'\" & Setup!$AG$11 & \"'!\" & AD290),0) + IF(Setup!$AG$12<>\"\",INDIRECT(\"'\" & Setup!$AG$12 & \"'!\" & AD290),0)","v":{"v":0,"d":"0.00"}},{"$f":"IF(Setup!$AG$7<>\"\",INDIRECT(\"'\" & Setup!$AG$7 & \"'!\" & AE290),0) + IF(Setup!$AG$8<>\"\",INDIRECT(\"'\" & Setup!$AG$8 & \"'!\" & AE290),0) + IF(Setup!$AG$9<>\"\",INDIRECT(\"'\" & Setup!$AG$9 & \"'!\" & AE290),0) + IF(Setup!$AG$10<>\"\",INDIRECT(\"'\" & Setup!$AG$10 & \"'!\" & AE290),0) + IF(Setup!$AG$11<>\"\",INDIRECT(\"'\" & Setup!$AG$11 & \"'!\" & AE290),0) + IF(Setup!$AG$12<>\"\",INDIRECT(\"'\" & Setup!$AG$12 & \"'!\" & AE290),0)","v":{"v":0,"d":"0.00"}},"","",{"$f":"IF(Setup!$AH$7<>\"\",INDIRECT(\"'\" & Setup!$AH$7 & \"'!\" & AD290),0) + IF(Setup!$AH$8<>\"\",INDIRECT(\"'\" & Setup!$AH$8 & \"'!\" & AD290),0) + IF(Setup!$AH$9<>\"\",INDIRECT(\"'\" & Setup!$AH$9 & \"'!\" & AD290),0) + IF(Setup!$AH$10<>\"\",INDIRECT(\"'\" & Setup!$AH$10 & \"'!\" & AD290),0) + IF(Setup!$AH$11<>\"\",INDIRECT(\"'\" & Setup!$AH$11 & \"'!\" & AD290),0) + IF(Setup!$AH$12<>\"\",INDIRECT(\"'\" & Setup!$AH$12 & \"'!\" & AD290),0)","v":{"v":0,"d":"0.00"}},{"$f":"IF(Setup!$AH$7<>\"\",INDIRECT(\"'\" & Setup!$AH$7 & \"'!\" & AE290),0) + IF(Setup!$AH$8<>\"\",INDIRECT(\"'\" & Setup!$AH$8 & \"'!\" & AE290),0) + IF(Setup!$AH$9<>\"\",INDIRECT(\"'\" & Setup!$AH$9 & \"'!\" & AE290),0) + IF(Setup!$AH$10<>\"\",INDIRECT(\"'\" & Setup!$AH$10 & \"'!\" & AE290),0) + IF(Setup!$AH$11<>\"\",INDIRECT(\"'\" & Setup!$AH$11 & \"'!\" & AE290),0) + IF(Setup!$AH$12<>\"\",INDIRECT(\"'\" & Setup!$AH$12 & \"'!\" & AE290),0)","v":{"v":0,"d":"0.00"}},"","",{"$f":"IF(Setup!$AI$7<>\"\",INDIRECT(\"'\" & Setup!$AI$7 & \"'!\" & AD290),0) + IF(Setup!$AI$8<>\"\",INDIRECT(\"'\" & Setup!$AI$8 & \"'!\" & AD290),0) + IF(Setup!$AI$9<>\"\",INDIRECT(\"'\" & Setup!$AI$9 & \"'!\" & AD290),0) + IF(Setup!$AI$10<>\"\",INDIRECT(\"'\" & Setup!$AI$10 & \"'!\" & AD290),0) + IF(Setup!$AI$11<>\"\",INDIRECT(\"'\" & Setup!$AI$11 & \"'!\" & AD290),0) + IF(Setup!$AI$12<>\"\",INDIRECT(\"'\" & Setup!$AI$12 & \"'!\" & AD290),0)","v":{"v":0,"d":"0.00"}},{"$f":"IF(Setup!$AI$7<>\"\",INDIRECT(\"'\" & Setup!$AI$7 & \"'!\" & AE290),0) + IF(Setup!$AI$8<>\"\",INDIRECT(\"'\" & Setup!$AI$8 & \"'!\" & AE290),0) + IF(Setup!$AI$9<>\"\",INDIRECT(\"'\" & Setup!$AI$9 & \"'!\" & AE290),0) + IF(Setup!$AI$10<>\"\",INDIRECT(\"'\" & Setup!$AI$10 & \"'!\" & AE290),0) + IF(Setup!$AI$11<>\"\",INDIRECT(\"'\" & Setup!$AI$11 & \"'!\" & AE290),0) + IF(Setup!$AI$12<>\"\",INDIRECT(\"'\" & Setup!$AI$12 & \"'!\" & AE290),0)","v":{"v":0,"d":"0.00"}},"","",{"$f":"IF(Setup!$AJ$7<>\"\",INDIRECT(\"'\" & Setup!$AJ$7 & \"'!\" & AD290),0) + IF(Setup!$AJ$8<>\"\",INDIRECT(\"'\" & Setup!$AJ$8 & \"'!\" & AD290),0) + IF(Setup!$AJ$9<>\"\",INDIRECT(\"'\" & Setup!$AJ$9 & \"'!\" & AD290),0) + IF(Setup!$AJ$10<>\"\",INDIRECT(\"'\" & Setup!$AJ$10 & \"'!\" & AD290),0) + IF(Setup!$AJ$11<>\"\",INDIRECT(\"'\" & Setup!$AJ$11 & \"'!\" & AD290),0) + IF(Setup!$AJ$12<>\"\",INDIRECT(\"'\" & Setup!$AJ$12 & \"'!\" & AD290),0)","v":0},{"$f":"IF(Setup!$AJ$7<>\"\",INDIRECT(\"'\" & Setup!$AJ$7 & \"'!\" & AE290),0) + IF(Setup!$AJ$8<>\"\",INDIRECT(\"'\" & Setup!$AJ$8 & \"'!\" & AE290),0) + IF(Setup!$AJ$9<>\"\",INDIRECT(\"'\" & Setup!$AJ$9 & \"'!\" & AE290),0) + IF(Setup!$AJ$10<>\"\",INDIRECT(\"'\" & Setup!$AJ$10 & \"'!\" & AE290),0) + IF(Setup!$AJ$11<>\"\",INDIRECT(\"'\" & Setup!$AJ$11 & \"'!\" & AE290),0) + IF(Setup!$AJ$12<>\"\",INDIRECT(\"'\" & Setup!$AJ$12 & \"'!\" & AE290),0)","v":0},"","",{"$f":"Planning!H62","v":0},"00","M78","O78","N78",null,null,{"$f":"IF(Setup!$AG$7<>\"\",INDIRECT(\"'\" & Setup!$AG$7 & \"'!\" & AF290),0) + IF(Setup!$AG$8<>\"\",INDIRECT(\"'\" & Setup!$AG$8 & \"'!\" & AF290),0) + IF(Setup!$AG$9<>\"\",INDIRECT(\"'\" & Setup!$AG$9 & \"'!\" & AF290),0) + IF(Setup!$AG$10<>\"\",INDIRECT(\"'\" & Setup!$AG$10 & \"'!\" & AF290),0) + IF(Setup!$AG$11<>\"\",INDIRECT(\"'\" & Setup!$AG$11 & \"'!\" & AF290),0) + IF(Setup!$AG$12<>\"\",INDIRECT(\"'\" & Setup!$AG$12 & \"'!\" & AF290),0)","v":0},{"$f":"IF(Setup!$AH$7<>\"\",INDIRECT(\"'\" & Setup!$AH$7 & \"'!\" & AF290),0) + IF(Setup!$AH$8<>\"\",INDIRECT(\"'\" & Setup!$AH$8 & \"'!\" & AF290),0) + IF(Setup!$AH$9<>\"\",INDIRECT(\"'\" & Setup!$AH$9 & \"'!\" & AF290),0) + IF(Setup!$AH$10<>\"\",INDIRECT(\"'\" & Setup!$AH$10 & \"'!\" & AF290),0) + IF(Setup!$AH$11<>\"\",INDIRECT(\"'\" & Setup!$AH$11 & \"'!\" & AF290),0) + IF(Setup!$AH$12<>\"\",INDIRECT(\"'\" & Setup!$AH$12 & \"'!\" & AF290),0)","v":0},{"$f":"IF(Setup!$AI$7<>\"\",INDIRECT(\"'\" & Setup!$AI$7 & \"'!\" & AF290),0) + IF(Setup!$AI$8<>\"\",INDIRECT(\"'\" & Setup!$AI$8 & \"'!\" & AF290),0) + IF(Setup!$AI$9<>\"\",INDIRECT(\"'\" & Setup!$AI$9 & \"'!\" & AF290),0) + IF(Setup!$AI$10<>\"\",INDIRECT(\"'\" & Setup!$AI$10 & \"'!\" & AF290),0) + IF(Setup!$AI$11<>\"\",INDIRECT(\"'\" & Setup!$AI$11 & \"'!\" & AF290),0) + IF(Setup!$AI$12<>\"\",INDIRECT(\"'\" & Setup!$AI$12 & \"'!\" & AF290),0)","v":0},{"$f":"IF(Setup!$AJ$7<>\"\",INDIRECT(\"'\" & Setup!$AJ$7 & \"'!\" & AF290),0) + IF(Setup!$AJ$8<>\"\",INDIRECT(\"'\" & Setup!$AJ$8 & \"'!\" & AF290),0) + IF(Setup!$AJ$9<>\"\",INDIRECT(\"'\" & Setup!$AJ$9 & \"'!\" & AF290),0) + IF(Setup!$AJ$10<>\"\",INDIRECT(\"'\" & Setup!$AJ$10 & \"'!\" & AF290),0) + IF(Setup!$AJ$11<>\"\",INDIRECT(\"'\" & Setup!$AJ$11 & \"'!\" & AF290),0) + IF(Setup!$AJ$12<>\"\",INDIRECT(\"'\" & Setup!$AJ$12 & \"'!\" & AF290),0)","v":0},null,"",{"$nulls":30},0,{"$f":"IF(Setup!$AH$7=\"\",0,INDIRECT(\"'\" & Setup!$AH$7 & \"'!\" & AF290))","v":0},{"$f":"IF(Setup!$AI$7=\"\",0,INDIRECT(\"'\" & Setup!$AI$7 & \"'!\" & AF290))","v":0},{"$f":"IF(Setup!$AJ$7=\"\",0,INDIRECT(\"'\" & Setup!$AJ$7 & \"'!\" & AF290))","v":0}]
[{"$f":"Planning!A63","v":"I055"},{"$f":"Planning!B63","v":0},{"$f":"Planning!C63","v":0},{"$f":"Planning!D63","v":0},{"$f":"Planning!E63","v":0},{"$f":"Planning!G63","v":0},0,{"v":0,"d":"0.00"},{"v":0,"d":"0.00"},"","",{"$f":"IF(Setup!$AG$7<>\"\",INDIRECT(\"'\" & Setup!$AG$7 & \"'!\" & AD291),0) + IF(Setup!$AG$8<>\"\",INDIRECT(\"'\" & Setup!$AG$8 & \"'!\" & AD291),0) + IF(Setup!$AG$9<>\"\",INDIRECT(\"'\" & Setup!$AG$9 & \"'!\" & AD291),0) + IF(Setup!$AG$10<>\"\",INDIRECT(\"'\" & Setup!$AG$10 & \"'!\" & AD291),0) + IF(Setup!$AG$11<>\"\",INDIRECT(\"'\" & Setup!$AG$11 & \"'!\" & AD291),0) + IF(Setup!$AG$12<>\"\",INDIRECT(\"'\" & Setup!$AG$12 & \"'!\" & AD291),0)","v":{"v":0,"d":"0.00"}},{"$f":"IF(Setup!$AG$7<>\"\",INDIRECT(\"'\" & Setup!$AG$7 & \"'!\" & AE291),0) + IF(Setup!$AG$8<>\"\",INDIRECT(\"'\" & Setup!$AG$8 & \"'!\" & AE291),0) + IF(Setup!$AG$9<>\"\",INDIRECT(\"'\" & Setup!$AG$9 & \"'!\" & AE291),0) + IF(Setup!$AG$10<>\"\",INDIRECT(\"'\" & Setup!$AG$10 & \"'!\" & AE291),0) + IF(Setup!$AG$11<>\"\",INDIRECT(\"'\" & Setup!$AG$11 & \"'!\" & AE291),0) + IF(Setup!$AG$12<>\"\",INDIRECT(\"'\" & Setup!$AG$12 & \"'!\" & AE291),0)","v":{"v":0,"d":"0.00"}},"","",{"$f":"IF(Setup!$AH$7<>\"\",INDIRECT(\"'\" & Setup!$AH$7 & \"'!\" & AD291),0) + IF(Setup!$AH$8<>\"\",INDIRECT(\"'\" & Setup!$AH$8 & \"'!\" & AD291),0) + IF(Setup!$AH$9<>\"\",INDIRECT(\"'\" & Setup!$AH$9 & \"'!\" & AD291),0) + IF(Setup!$AH$10<>\"\",INDIRECT(\"'\" & Setup!$AH$10 & \"'!\" & AD291),0) + IF(Setup!$AH$11<>\"\",INDIRECT(\"'\" & Setup!$AH$11 & \"'!\" & AD291),0) + IF(Setup!$AH$12<>\"\",INDIRECT(\"'\" & Setup!$AH$12 & \"'!\" & AD291),0)","v":{"v":0,"d":"0.00"}},{"$f":"IF(Setup!$AH$7<>\"\",INDIRECT(\"'\" & Setup!$AH$7 & \"'!\" & AE291),0) + IF(Setup!$AH$8<>\"\",INDIRECT(\"'\" & Setup!$AH$8 & \"'!\" & AE291),0) + IF(Setup!$AH$9<>\"\",INDIRECT(\"'\" & Setup!$AH$9 & \"'!\" & AE291),0) + IF(Setup!$AH$10<>\"\",INDIRECT(\"'\" & Setup!$AH$10 & \"'!\" & AE291),0) + IF(Setup!$AH$11<>\"\",INDIRECT(\"'\" & Setup!$AH$11 & \"'!\" & AE291),0) + IF(Setup!$AH$12<>\"\",INDIRECT(\"'\" & Setup!$AH$12 & \"'!\" & AE291),0)","v":{"v":0,"d":"0.00"}},"","",{"$f":"IF(Setup!$AI$7<>\"\",INDIRECT(\"'\" & Setup!$AI$7 & \"'!\" & AD291),0) + IF(Setup!$AI$8<>\"\",INDIRECT(\"'\" & Setup!$AI$8 & \"'!\" & AD291),0) + IF(Setup!$AI$9<>\"\",INDIRECT(\"'\" & Setup!$AI$9 & \"'!\" & AD291),0) + IF(Setup!$AI$10<>\"\",INDIRECT(\"'\" & Setup!$AI$10 & \"'!\" & AD291),0) + IF(Setup!$AI$11<>\"\",INDIRECT(\"'\" & Setup!$AI$11 & \"'!\" & AD291),0) + IF(Setup!$AI$12<>\"\",INDIRECT(\"'\" & Setup!$AI$12 & \"'!\" & AD291),0)","v":{"v":0,"d":"0.00"}},{"$f":"IF(Setup!$AI$7<>\"\",INDIRECT(\"'\" & Setup!$AI$7 & \"'!\" & AE291),0) + IF(Setup!$AI$8<>\"\",INDIRECT(\"'\" & Setup!$AI$8 & \"'!\" & AE291),0) + IF(Setup!$AI$9<>\"\",INDIRECT(\"'\" & Setup!$AI$9 & \"'!\" & AE291),0) + IF(Setup!$AI$10<>\"\",INDIRECT(\"'\" & Setup!$AI$10 & \"'!\" & AE291),0) + IF(Setup!$AI$11<>\"\",INDIRECT(\"'\" & Setup!$AI$11 & \"'!\" & AE291),0) + IF(Setup!$AI$12<>\"\",INDIRECT(\"'\" & Setup!$AI$12 & \"'!\" & AE291),0)","v":{"v":0,"d":"0.00"}},"","",{"$f":"IF(Setup!$AJ$7<>\"\",INDIRECT(\"'\" & Setup!$AJ$7 & \"'!\" & AD291),0) + IF(Setup!$AJ$8<>\"\",INDIRECT(\"'\" & Setup!$AJ$8 & \"'!\" & AD291),0) + IF(Setup!$AJ$9<>\"\",INDIRECT(\"'\" & Setup!$AJ$9 & \"'!\" & AD291),0) + IF(Setup!$AJ$10<>\"\",INDIRECT(\"'\" & Setup!$AJ$10 & \"'!\" & AD291),0) + IF(Setup!$AJ$11<>\"\",INDIRECT(\"'\" & Setup!$AJ$11 & \"'!\" & AD291),0) + IF(Setup!$AJ$12<>\"\",INDIRECT(\"'\" & Setup!$AJ$12 & \"'!\" & AD291),0)","v":0},{"$f":"IF(Setup!$AJ$7<>\"\",INDIRECT(\"'\" & Setup!$AJ$7 & \"'!\" & AE291),0) + IF(Setup!$AJ$8<>\"\",INDIRECT(\"'\" & Setup!$AJ$8 & \"'!\" & AE291),0) + IF(Setup!$AJ$9<>\"\",INDIRECT(\"'\" & Setup!$AJ$9 & \"'!\" & AE291),0) + IF(Setup!$AJ$10<>\"\",INDIRECT(\"'\" & Setup!$AJ$10 & \"'!\" & AE291),0) + IF(Setup!$AJ$11<>\"\",INDIRECT(\"'\" & Setup!$AJ$11 & \"'!\" & AE291),0) + IF(Setup!$AJ$12<>\"\",INDIRECT(\"'\" & Setup!$AJ$12 & \"'!\" & AE291),0)","v":0},"","",{"$f":"Planning!H63","v":0},"00","M79","O79","N79",null,null,{"$f":"IF(Setup!$AG$7<>\"\",INDIRECT(\"'\" & Setup!$AG$7 & \"'!\" & AF291),0) + IF(Setup!$AG$8<>\"\",INDIRECT(\"'\" & Setup!$AG$8 & \"'!\" & AF291),0) + IF(Setup!$AG$9<>\"\",INDIRECT(\"'\" & Setup!$AG$9 & \"'!\" & AF291),0) + IF(Setup!$AG$10<>\"\",INDIRECT(\"'\" & Setup!$AG$10 & \"'!\" & AF291),0) + IF(Setup!$AG$11<>\"\",INDIRECT(\"'\" & Setup!$AG$11 & \"'!\" & AF291),0) + IF(Setup!$AG$12<>\"\",INDIRECT(\"'\" & Setup!$AG$12 & \"'!\" & AF291),0)","v":0},{"$f":"IF(Setup!$AH$7<>\"\",INDIRECT(\"'\" & Setup!$AH$7 & \"'!\" & AF291),0) + IF(Setup!$AH$8<>\"\",INDIRECT(\"'\" & Setup!$AH$8 & \"'!\" & AF291),0) + IF(Setup!$AH$9<>\"\",INDIRECT(\"'\" & Setup!$AH$9 & \"'!\" & AF291),0) + IF(Setup!$AH$10<>\"\",INDIRECT(\"'\" & Setup!$AH$10 & \"'!\" & AF291),0) + IF(Setup!$AH$11<>\"\",INDIRECT(\"'\" & Setup!$AH$11 & \"'!\" & AF291),0) + IF(Setup!$AH$12<>\"\",INDIRECT(\"'\" & Setup!$AH$12 & \"'!\" & AF291),0)","v":0},{"$f":"IF(Setup!$AI$7<>\"\",INDIRECT(\"'\" & Setup!$AI$7 & \"'!\" & AF291),0) + IF(Setup!$AI$8<>\"\",INDIRECT(\"'\" & Setup!$AI$8 & \"'!\" & AF291),0) + IF(Setup!$AI$9<>\"\",INDIRECT(\"'\" & Setup!$AI$9 & \"'!\" & AF291),0) + IF(Setup!$AI$10<>\"\",INDIRECT(\"'\" & Setup!$AI$10 & \"'!\" & AF291),0) + IF(Setup!$AI$11<>\"\",INDIRECT(\"'\" & Setup!$AI$11 & \"'!\" & AF291),0) + IF(Setup!$AI$12<>\"\",INDIRECT(\"'\" & Setup!$AI$12 & \"'!\" & AF291),0)","v":0},{"$f":"IF(Setup!$AJ$7<>\"\",INDIRECT(\"'\" & Setup!$AJ$7 & \"'!\" & AF291),0) + IF(Setup!$AJ$8<>\"\",INDIRECT(\"'\" & Setup!$AJ$8 & \"'!\" & AF291),0) + IF(Setup!$AJ$9<>\"\",INDIRECT(\"'\" & Setup!$AJ$9 & \"'!\" & AF291),0) + IF(Setup!$AJ$10<>\"\",INDIRECT(\"'\" & Setup!$AJ$10 & \"'!\" & AF291),0) + IF(Setup!$AJ$11<>\"\",INDIRECT(\"'\" & Setup!$AJ$11 & \"'!\" & AF291),0) + IF(Setup!$AJ$12<>\"\",INDIRECT(\"'\" & Setup!$AJ$12 & \"'!\" & AF291),0)","v":0},null,"",{"$nulls":30},0,{"$f":"IF(Setup!$AH$7=\"\",0,INDIRECT(\"'\" & Setup!$AH$7 & \"'!\" & AF291))","v":0},{"$f":"IF(Setup!$AI$7=\"\",0,INDIRECT(\"'\" & Setup!$AI$7 & \"'!\" & AF291))","v":0},{"$f":"IF(Setup!$AJ$7=\"\",0,INDIRECT(\"'\" & Setup!$AJ$7 & \"'!\" & AF291))","v":0}]
[{"$f":"Planning!A64","v":"I056"},{"$f":"Planning!B64","v":0},{"$f":"Planning!C64","v":0},{"$f":"Planning!D64","v":0},{"$f":"Planning!E64","v":0},{"$f":"Planning!G64","v":0},0,{"v":0,"d":"0.00"},{"v":0,"d":"0.00"},"","",{"$f":"IF(Setup!$AG$7<>\"\",INDIRECT(\"'\" & Setup!$AG$7 & \"'!\" & AD292),0) + IF(Setup!$AG$8<>\"\",INDIRECT(\"'\" & Setup!$AG$8 & \"'!\" & AD292),0) + IF(Setup!$AG$9<>\"\",INDIRECT(\"'\" & Setup!$AG$9 & \"'!\" & AD292),0) + IF(Setup!$AG$10<>\"\",INDIRECT(\"'\" & Setup!$AG$10 & \"'!\" & AD292),0) + IF(Setup!$AG$11<>\"\",INDIRECT(\"'\" & Setup!$AG$11 & \"'!\" & AD292),0) + IF(Setup!$AG$12<>\"\",INDIRECT(\"'\" & Setup!$AG$12 & \"'!\" & AD292),0)","v":{"v":0,"d":"0.00"}},{"$f":"IF(Setup!$AG$7<>\"\",INDIRECT(\"'\" & Setup!$AG$7 & \"'!\" & AE292),0) + IF(Setup!$AG$8<>\"\",INDIRECT(\"'\" & Setup!$AG$8 & \"'!\" & AE292),0) + IF(Setup!$AG$9<>\"\",INDIRECT(\"'\" & Setup!$AG$9 & \"'!\" & AE292),0) + IF(Setup!$AG$10<>\"\",INDIRECT(\"'\" & Setup!$AG$10 & \"'!\" & AE292),0) + IF(Setup!$AG$11<>\"\",INDIRECT(\"'\" & Setup!$AG$11 & \"'!\" & AE292),0) + IF(Setup!$AG$12<>\"\",INDIRECT(\"'\" & Setup!$AG$12 & \"'!\" & AE292),0)","v":{"v":0,"d":"0.00"}},"","",{"$f":"IF(Setup!$AH$7<>\"\",INDIRECT(\"'\" & Setup!$AH$7 & \"'!\" & AD292),0) + IF(Setup!$AH$8<>\"\",INDIRECT(\"'\" & Setup!$AH$8 & \"'!\" & AD292),0) + IF(Setup!$AH$9<>\"\",INDIRECT(\"'\" & Setup!$AH$9 & \"'!\" & AD292),0) + IF(Setup!$AH$10<>\"\",INDIRECT(\"'\" & Setup!$AH$10 & \"'!\" & AD292),0) + IF(Setup!$AH$11<>\"\",INDIRECT(\"'\" & Setup!$AH$11 & \"'!\" & AD292),0) + IF(Setup!$AH$12<>\"\",INDIRECT(\"'\" & Setup!$AH$12 & \"'!\" & AD292),0)","v":{"v":0,"d":"0.00"}},{"$f":"IF(Setup!$AH$7<>\"\",INDIRECT(\"'\" & Setup!$AH$7 & \"'!\" & AE292),0) + IF(Setup!$AH$8<>\"\",INDIRECT(\"'\" & Setup!$AH$8 & \"'!\" & AE292),0) + IF(Setup!$AH$9<>\"\",INDIRECT(\"'\" & Setup!$AH$9 & \"'!\" & AE292),0) + IF(Setup!$AH$10<>\"\",INDIRECT(\"'\" & Setup!$AH$10 & \"'!\" & AE292),0) + IF(Setup!$AH$11<>\"\",INDIRECT(\"'\" & Setup!$AH$11 & \"'!\" & AE292),0) + IF(Setup!$AH$12<>\"\",INDIRECT(\"'\" & Setup!$AH$12 & \"'!\" & AE292),0)","v":{"v":0,"d":"0.00"}},"","",{"$f":"IF(Setup!$AI$7<>\"\",INDIRECT(\"'\" & Setup!$AI$7 & \"'!\" & AD292),0) + IF(Setup!$AI$8<>\"\",INDIRECT(\"'\" & Setup!$AI$8 & \"'!\" & AD292),0) + IF(Setup!$AI$9<>\"\",INDIRECT(\"'\" & Setup!$AI$9 & \"'!\" & AD292),0) + IF(Setup!$AI$10<>\"\",INDIRECT(\"'\" & Setup!$AI$10 & \"'!\" & AD292),0) + IF(Setup!$AI$11<>\"\",INDIRECT(\"'\" & Setup!$AI$11 & \"'!\" & AD292),0) + IF(Setup!$AI$12<>\"\",INDIRECT(\"'\" & Setup!$AI$12 & \"'!\" & AD292),0)","v":{"v":0,"d":"0.00"}},{"$f":"IF(Setup!$AI$7<>\"\",INDIRECT(\"'\" & Setup!$AI$7 & \"'!\" & AE292),0) + IF(Setup!$AI$8<>\"\",INDIRECT(\"'\" & Setup!$AI$8 & \"'!\" & AE292),0) + IF(Setup!$AI$9<>\"\",INDIRECT(\"'\" & Setup!$AI$9 & \"'!\" & AE292),0) + IF(Setup!$AI$10<>\"\",INDIRECT(\"'\" & Setup!$AI$10 & \"'!\" & AE292),0) + IF(Setup!$AI$11<>\"\",INDIRECT(\"'\" & Setup!$AI$11 & \"'!\" & AE292),0) + IF(Setup!$AI$12<>\"\",INDIRECT(\"'\" & Setup!$AI$12 & \"'!\" & AE292),0)","v":{"v":0,"d":"0.00"}},"","",{"$f":"IF(Setup!$AJ$7<>\"\",INDIRECT(\"'\" & Setup!$AJ$7 & \"'!\" & AD292),0) + IF(Setup!$AJ$8<>\"\",INDIRECT(\"'\" & Setup!$AJ$8 & \"'!\" & AD292),0) + IF(Setup!$AJ$9<>\"\",INDIRECT(\"'\" & Setup!$AJ$9 & \"'!\" & AD292),0) + IF(Setup!$AJ$10<>\"\",INDIRECT(\"'\" & Setup!$AJ$10 & \"'!\" & AD292),0) + IF(Setup!$AJ$11<>\"\",INDIRECT(\"'\" & Setup!$AJ$11 & \"'!\" & AD292),0) + IF(Setup!$AJ$12<>\"\",INDIRECT(\"'\" & Setup!$AJ$12 & \"'!\" & AD292),0)","v":0},{"$f":"IF(Setup!$AJ$7<>\"\",INDIRECT(\"'\" & Setup!$AJ$7 & \"'!\" & AE292),0) + IF(Setup!$AJ$8<>\"\",INDIRECT(\"'\" & Setup!$AJ$8 & \"'!\" & AE292),0) + IF(Setup!$AJ$9<>\"\",INDIRECT(\"'\" & Setup!$AJ$9 & \"'!\" & AE292),0) + IF(Setup!$AJ$10<>\"\",INDIRECT(\"'\" & Setup!$AJ$10 & \"'!\" & AE292),0) + IF(Setup!$AJ$11<>\"\",INDIRECT(\"'\" & Setup!$AJ$11 & \"'!\" & AE292),0) + IF(Setup!$AJ$12<>\"\",INDIRECT(\"'\" & Setup!$AJ$12 & \"'!\" & AE292),0)","v":0},"","",{"$f":"Planning!H64","v":0},"00","M80","O80","N80",null,null,{"$f":"IF(Setup!$AG$7<>\"\",INDIRECT(\"'\" & Setup!$AG$7 & \"'!\" & AF292),0) + IF(Setup!$AG$8<>\"\",INDIRECT(\"'\" & Setup!$AG$8 & \"'!\" & AF292),0) + IF(Setup!$AG$9<>\"\",INDIRECT(\"'\" & Setup!$AG$9 & \"'!\" & AF292),0) + IF(Setup!$AG$10<>\"\",INDIRECT(\"'\" & Setup!$AG$10 & \"'!\" & AF292),0) + IF(Setup!$AG$11<>\"\",INDIRECT(\"'\" & Setup!$AG$11 & \"'!\" & AF292),0) + IF(Setup!$AG$12<>\"\",INDIRECT(\"'\" & Setup!$AG$12 & \"'!\" & AF292),0)","v":0},{"$f":"IF(Setup!$AH$7<>\"\",INDIRECT(\"'\" & Setup!$AH$7 & \"'!\" & AF292),0) + IF(Setup!$AH$8<>\"\",INDIRECT(\"'\" & Setup!$AH$8 & \"'!\" & AF292),0) + IF(Setup!$AH$9<>\"\",INDIRECT(\"'\" & Setup!$AH$9 & \"'!\" & AF292),0) + IF(Setup!$AH$10<>\"\",INDIRECT(\"'\" & Setup!$AH$10 & \"'!\" & AF292),0) + IF(Setup!$AH$11<>\"\",INDIRECT(\"'\" & Setup!$AH$11 & \"'!\" & AF292),0) + IF(Setup!$AH$12<>\"\",INDIRECT(\"'\" & Setup!$AH$12 & \"'!\" & AF292),0)","v":0},{"$f":"IF(Setup!$AI$7<>\"\",INDIRECT(\"'\" & Setup!$AI$7 & \"'!\" & AF292),0) + IF(Setup!$AI$8<>\"\",INDIRECT(\"'\" & Setup!$AI$8 & \"'!\" & AF292),0) + IF(Setup!$AI$9<>\"\",INDIRECT(\"'\" & Setup!$AI$9 & \"'!\" & AF292),0) + IF(Setup!$AI$10<>\"\",INDIRECT(\"'\" & Setup!$AI$10 & \"'!\" & AF292),0) + IF(Setup!$AI$11<>\"\",INDIRECT(\"'\" & Setup!$AI$11 & \"'!\" & AF292),0) + IF(Setup!$AI$12<>\"\",INDIRECT(\"'\" & Setup!$AI$12 & \"'!\" & AF292),0)","v":0},{"$f":"IF(Setup!$AJ$7<>\"\",INDIRECT(\"'\" & Setup!$AJ$7 & \"'!\" & AF292),0) + IF(Setup!$AJ$8<>\"\",INDIRECT(\"'\" & Setup!$AJ$8 & \"'!\" & AF292),0) + IF(Setup!$AJ$9<>\"\",INDIRECT(\"'\" & Setup!$AJ$9 & \"'!\" & AF292),0) + IF(Setup!$AJ$10<>\"\",INDIRECT(\"'\" & Setup!$AJ$10 & \"'!\" & AF292),0) + IF(Setup!$AJ$11<>\"\",INDIRECT(\"'\" & Setup!$AJ$11 & \"'!\" & AF292),0) + IF(Setup!$AJ$12<>\"\",INDIRECT(\"'\" & Setup!$AJ$12 & \"'!\" & AF292),0)","v":0},null,"",{"$nulls":30},0,{"$f":"IF(Setup!$AH$7=\"\",0,INDIRECT(\"'\" & Setup!$AH$7 & \"'!\" & AF292))","v":0},{"$f":"IF(Setup!$AI$7=\"\",0,INDIRECT(\"'\" & Setup!$AI$7 & \"'!\" & AF292))","v":0},{"$f":"IF(Setup!$AJ$7=\"\",0,INDIRECT(\"'\" & Setup!$AJ$7 & \"'!\" & AF292))","v":0}]
[{"$f":"Planning!A65","v":"I057"},{"$f":"Planning!B65","v":0},{"$f":"Planning!C65","v":0},{"$f":"Planning!D65","v":0},{"$f":"Planning!E65","v":0},{"$f":"Planning!G65","v":0},0,{"v":0,"d":"0.00"},{"v":0,"d":"0.00"},"","",{"$f":"IF(Setup!$AG$7<>\"\",INDIRECT(\"'\" & Setup!$AG$7 & \"'!\" & AD293),0) + IF(Setup!$AG$8<>\"\",INDIRECT(\"'\" & Setup!$AG$8 & \"'!\" & AD293),0) + IF(Setup!$AG$9<>\"\",INDIRECT(\"'\" & Setup!$AG$9 & \"'!\" & AD293),0) + IF(Setup!$AG$10<>\"\",INDIRECT(\"'\" & Setup!$AG$10 & \"'!\" & AD293),0) + IF(Setup!$AG$11<>\"\",INDIRECT(\"'\" & Setup!$AG$11 & \"'!\" & AD293),0) + IF(Setup!$AG$12<>\"\",INDIRECT(\"'\" & Setup!$AG$12 & \"'!\" & AD293),0)","v":{"v":0,"d":"0.00"}},{"$f":"IF(Setup!$AG$7<>\"\",INDIRECT(\"'\" & Setup!$AG$7 & \"'!\" & AE293),0) + IF(Setup!$AG$8<>\"\",INDIRECT(\"'\" & Setup!$AG$8 & \"'!\" & AE293),0) + IF(Setup!$AG$9<>\"\",INDIRECT(\"'\" & Setup!$AG$9 & \"'!\" & AE293),0) + IF(Setup!$AG$10<>\"\",INDIRECT(\"'\" & Setup!$AG$10 & \"'!\" & AE293),0) + IF(Setup!$AG$11<>\"\",INDIRECT(\"'\" & Setup!$AG$11 & \"'!\" & AE293),0) + IF(Setup!$AG$12<>\"\",INDIRECT(\"'\" & Setup!$AG$12 & \"'!\" & AE293),0)","v":{"v":0,"d":"0.00"}},"","",{"$f":"IF(Setup!$AH$7<>\"\",INDIRECT(\"'\" & Setup!$AH$7 & \"'!\" & AD293),0) + IF(Setup!$AH$8<>\"\",INDIRECT(\"'\" & Setup!$AH$8 & \"'!\" & AD293),0) + IF(Setup!$AH$9<>\"\",INDIRECT(\"'\" & Setup!$AH$9 & \"'!\" & AD293),0) + IF(Setup!$AH$10<>\"\",INDIRECT(\"'\" & Setup!$AH$10 & \"'!\" & AD293),0) + IF(Setup!$AH$11<>\"\",INDIRECT(\"'\" & Setup!$AH$11 & \"'!\" & AD293),0) + IF(Setup!$AH$12<>\"\",INDIRECT(\"'\" & Setup!$AH$12 & \"'!\" & AD293),0)","v":{"v":0,"d":"0.00"}},{"$f":"IF(Setup!$AH$7<>\"\",INDIRECT(\"'\" & Setup!$AH$7 & \"'!\" & AE293),0) + IF(Setup!$AH$8<>\"\",INDIRECT(\"'\" & Setup!$AH$8 & \"'!\" & AE293),0) + IF(Setup!$AH$9<>\"\",INDIRECT(\"'\" & Setup!$AH$9 & \"'!\" & AE293),0) + IF(Setup!$AH$10<>\"\",INDIRECT(\"'\" & Setup!$AH$10 & \"'!\" & AE293),0) + IF(Setup!$AH$11<>\"\",INDIRECT(\"'\" & Setup!$AH$11 & \"'!\" & AE293),0) + IF(Setup!$AH$12<>\"\",INDIRECT(\"'\" & Setup!$AH$12 & \"'!\" & AE293),0)","v":{"v":0,"d":"0.00"}},"","",{"$f":"IF(Setup!$AI$7<>\"\",INDIRECT(\"'\" & Setup!$AI$7 & \"'!\" & AD293),0) + IF(Setup!$AI$8<>\"\",INDIRECT(\"'\" & Setup!$AI$8 & \"'!\" & AD293),0) + IF(Setup!$AI$9<>\"\",INDIRECT(\"'\" & Setup!$AI$9 & \"'!\" & AD293),0) + IF(Setup!$AI$10<>\"\",INDIRECT(\"'\" & Setup!$AI$10 & \"'!\" & AD293),0) + IF(Setup!$AI$11<>\"\",INDIRECT(\"'\" & Setup!$AI$11 & \"'!\" & AD293),0) + IF(Setup!$AI$12<>\"\",INDIRECT(\"'\" & Setup!$AI$12 & \"'!\" & AD293),0)","v":{"v":0,"d":"0.00"}},{"$f":"IF(Setup!$AI$7<>\"\",INDIRECT(\"'\" & Setup!$AI$7 & \"'!\" & AE293),0) + IF(Setup!$AI$8<>\"\",INDIRECT(\"'\" & Setup!$AI$8 & \"'!\" & AE293),0) + IF(Setup!$AI$9<>\"\",INDIRECT(\"'\" & Setup!$AI$9 & \"'!\" & AE293),0) + IF(Setup!$AI$10<>\"\",INDIRECT(\"'\" & Setup!$AI$10 & \"'!\" & AE293),0) + IF(Setup!$AI$11<>\"\",INDIRECT(\"'\" & Setup!$AI$11 & \"'!\" & AE293),0) + IF(Setup!$AI$12<>\"\",INDIRECT(\"'\" & Setup!$AI$12 & \"'!\" & AE293),0)","v":{"v":0,"d":"0.00"}},"","",{"$f":"IF(Setup!$AJ$7<>\"\",INDIRECT(\"'\" & Setup!$AJ$7 & \"'!\" & AD293),0) + IF(Setup!$AJ$8<>\"\",INDIRECT(\"'\" & Setup!$AJ$8 & \"'!\" & AD293),0) + IF(Setup!$AJ$9<>\"\",INDIRECT(\"'\" & Setup!$AJ$9 & \"'!\" & AD293),0) + IF(Setup!$AJ$10<>\"\",INDIRECT(\"'\" & Setup!$AJ$10 & \"'!\" & AD293),0) + IF(Setup!$AJ$11<>\"\",INDIRECT(\"'\" & Setup!$AJ$11 & \"'!\" & AD293),0) + IF(Setup!$AJ$12<>\"\",INDIRECT(\"'\" & Setup!$AJ$12 & \"'!\" & AD293),0)","v":0},{"$f":"IF(Setup!$AJ$7<>\"\",INDIRECT(\"'\" & Setup!$AJ$7 & \"'!\" & AE293),0) + IF(Setup!$AJ$8<>\"\",INDIRECT(\"'\" & Setup!$AJ$8 & \"'!\" & AE293),0) + IF(Setup!$AJ$9<>\"\",INDIRECT(\"'\" & Setup!$AJ$9 & \"'!\" & AE293),0) + IF(Setup!$AJ$10<>\"\",INDIRECT(\"'\" & Setup!$AJ$10 & \"'!\" & AE293),0) + IF(Setup!$AJ$11<>\"\",INDIRECT(\"'\" & Setup!$AJ$11 & \"'!\" & AE293),0) + IF(Setup!$AJ$12<>\"\",INDIRECT(\"'\" & Setup!$AJ$12 & \"'!\" & AE293),0)","v":0},"","",{"$f":"Planning!H65","v":0},"00","M81","O81","N81",null,null,{"$f":"IF(Setup!$AG$7<>\"\",INDIRECT(\"'\" & Setup!$AG$7 & \"'!\" & AF293),0) + IF(Setup!$AG$8<>\"\",INDIRECT(\"'\" & Setup!$AG$8 & \"'!\" & AF293),0) + IF(Setup!$AG$9<>\"\",INDIRECT(\"'\" & Setup!$AG$9 & \"'!\" & AF293),0) + IF(Setup!$AG$10<>\"\",INDIRECT(\"'\" & Setup!$AG$10 & \"'!\" & AF293),0) + IF(Setup!$AG$11<>\"\",INDIRECT(\"'\" & Setup!$AG$11 & \"'!\" & AF293),0) + IF(Setup!$AG$12<>\"\",INDIRECT(\"'\" & Setup!$AG$12 & \"'!\" & AF293),0)","v":0},{"$f":"IF(Setup!$AH$7<>\"\",INDIRECT(\"'\" & Setup!$AH$7 & \"'!\" & AF293),0) + IF(Setup!$AH$8<>\"\",INDIRECT(\"'\" & Setup!$AH$8 & \"'!\" & AF293),0) + IF(Setup!$AH$9<>\"\",INDIRECT(\"'\" & Setup!$AH$9 & \"'!\" & AF293),0) + IF(Setup!$AH$10<>\"\",INDIRECT(\"'\" & Setup!$AH$10 & \"'!\" & AF293),0) + IF(Setup!$AH$11<>\"\",INDIRECT(\"'\" & Setup!$AH$11 & \"'!\" & AF293),0) + IF(Setup!$AH$12<>\"\",INDIRECT(\"'\" & Setup!$AH$12 & \"'!\" & AF293),0)","v":0},{"$f":"IF(Setup!$AI$7<>\"\",INDIRECT(\"'\" & Setup!$AI$7 & \"'!\" & AF293),0) + IF(Setup!$AI$8<>\"\",INDIRECT(\"'\" & Setup!$AI$8 & \"'!\" & AF293),0) + IF(Setup!$AI$9<>\"\",INDIRECT(\"'\" & Setup!$AI$9 & \"'!\" & AF293),0) + IF(Setup!$AI$10<>\"\",INDIRECT(\"'\" & Setup!$AI$10 & \"'!\" & AF293),0) + IF(Setup!$AI$11<>\"\",INDIRECT(\"'\" & Setup!$AI$11 & \"'!\" & AF293),0) + IF(Setup!$AI$12<>\"\",INDIRECT(\"'\" & Setup!$AI$12 & \"'!\" & AF293),0)","v":0},{"$f":"IF(Setup!$AJ$7<>\"\",INDIRECT(\"'\" & Setup!$AJ$7 & \"'!\" & AF293),0) + IF(Setup!$AJ$8<>\"\",INDIRECT(\"'\" & Setup!$AJ$8 & \"'!\" & AF293),0) + IF(Setup!$AJ$9<>\"\",INDIRECT(\"'\" & Setup!$AJ$9 & \"'!\" & AF293),0) + IF(Setup!$AJ$10<>\"\",INDIRECT(\"'\" & Setup!$AJ$10 & \"'!\" & AF293),0) + IF(Setup!$AJ$11<>\"\",INDIRECT(\"'\" & Setup!$AJ$11 & \"'!\" & AF293),0) + IF(Setup!$AJ$12<>\"\",INDIRECT(\"'\" & Setup!$AJ$12 & \"'!\" & AF293),0)","v":0},null,"",{"$nulls":30},0,{"$f":"IF(Setup!$AH$7=\"\",0,INDIRECT(\"'\" & Setup!$AH$7 & \"'!\" & AF293))","v":0},{"$f":"IF(Setup!$AI$7=\"\",0,INDIRECT(\"'\" & Setup!$AI$7 & \"'!\" & AF293))","v":0},{"$f":"IF(Setup!$AJ$7=\"\",0,INDIRECT(\"'\" & Setup!$AJ$7 & \"'!\" & AF293))","v":0}]
[{"$f":"Planning!A66","v":"I058"},{"$f":"Planning!B66","v":0},{"$f":"Planning!C66","v":0},{"$f":"Planning!D66","v":0},{"$f":"Planning!E66","v":0},{"$f":"Planning!G66","v":0},0,{"v":0,"d":"0.00"},{"v":0,"d":"0.00"},"","",{"$f":"IF(Setup!$AG$7<>\"\",INDIRECT(\"'\" & Setup!$AG$7 & \"'!\" & AD294),0) + IF(Setup!$AG$8<>\"\",INDIRECT(\"'\" & Setup!$AG$8 & \"'!\" & AD294),0) + IF(Setup!$AG$9<>\"\",INDIRECT(\"'\" & Setup!$AG$9 & \"'!\" & AD294),0) + IF(Setup!$AG$10<>\"\",INDIRECT(\"'\" & Setup!$AG$10 & \"'!\" & AD294),0) + IF(Setup!$AG$11<>\"\",INDIRECT(\"'\" & Setup!$AG$11 & \"'!\" & AD294),0) + IF(Setup!$AG$12<>\"\",INDIRECT(\"'\" & Setup!$AG$12 & \"'!\" & AD294),0)","v":{"v":0,"d":"0.00"}},{"$f":"IF(Setup!$AG$7<>\"\",INDIRECT(\"'\" & Setup!$AG$7 & \"'!\" & AE294),0) + IF(Setup!$AG$8<>\"\",INDIRECT(\"'\" & Setup!$AG$8 & \"'!\" & AE294),0) + IF(Setup!$AG$9<>\"\",INDIRECT(\"'\" & Setup!$AG$9 & \"'!\" & AE294),0) + IF(Setup!$AG$10<>\"\",INDIRECT(\"'\" & Setup!$AG$10 & \"'!\" & AE294),0) + IF(Setup!$AG$11<>\"\",INDIRECT(\"'\" & Setup!$AG$11 & \"'!\" & AE294),0) + IF(Setup!$AG$12<>\"\",INDIRECT(\"'\" & Setup!$AG$12 & \"'!\" & AE294),0)","v":{"v":0,"d":"0.00"}},"","",{"$f":"IF(Setup!$AH$7<>\"\",INDIRECT(\"'\" & Setup!$AH$7 & \"'!\" & AD294),0) + IF(Setup!$AH$8<>\"\",INDIRECT(\"'\" & Setup!$AH$8 & \"'!\" & AD294),0) + IF(Setup!$AH$9<>\"\",INDIRECT(\"'\" & Setup!$AH$9 & \"'!\" & AD294),0) + IF(Setup!$AH$10<>\"\",INDIRECT(\"'\" & Setup!$AH$10 & \"'!\" & AD294),0) + IF(Setup!$AH$11<>\"\",INDIRECT(\"'\" & Setup!$AH$11 & \"'!\" & AD294),0) + IF(Setup!$AH$12<>\"\",INDIRECT(\"'\" & Setup!$AH$12 & \"'!\" & AD294),0)","v":{"v":0,"d":"0.00"}},{"$f":"IF(Setup!$AH$7<>\"\",INDIRECT(\"'\" & Setup!$AH$7 & \"'!\" & AE294),0) + IF(Setup!$AH$8<>\"\",INDIRECT(\"'\" & Setup!$AH$8 & \"'!\" & AE294),0) + IF(Setup!$AH$9<>\"\",INDIRECT(\"'\" & Setup!$AH$9 & \"'!\" & AE294),0) + IF(Setup!$AH$10<>\"\",INDIRECT(\"'\" & Setup!$AH$10 & \"'!\" & AE294),0) + IF(Setup!$AH$11<>\"\",INDIRECT(\"'\" & Setup!$AH$11 & \"'!\" & AE294),0) + IF(Setup!$AH$12<>\"\",INDIRECT(\"'\" & Setup!$AH$12 & \"'!\" & AE294),0)","v":{"v":0,"d":"0.00"}},"","",{"$f":"IF(Setup!$AI$7<>\"\",INDIRECT(\"'\" & Setup!$AI$7 & \"'!\" & AD294),0) + IF(Setup!$AI$8<>\"\",INDIRECT(\"'\" & Setup!$AI$8 & \"'!\" & AD294),0) + IF(Setup!$AI$9<>\"\",INDIRECT(\"'\" & Setup!$AI$9 & \"'!\" & AD294),0) + IF(Setup!$AI$10<>\"\",INDIRECT(\"'\" & Setup!$AI$10 & \"'!\" & AD294),0) + IF(Setup!$AI$11<>\"\",INDIRECT(\"'\" & Setup!$AI$11 & \"'!\" & AD294),0) + IF(Setup!$AI$12<>\"\",INDIRECT(\"'\" & Setup!$AI$12 & \"'!\" & AD294),0)","v":{"v":0,"d":"0.00"}},{"$f":"IF(Setup!$AI$7<>\"\",INDIRECT(\"'\" & Setup!$AI$7 & \"'!\" & AE294),0) + IF(Setup!$AI$8<>\"\",INDIRECT(\"'\" & Setup!$AI$8 & \"'!\" & AE294),0) + IF(Setup!$AI$9<>\"\",INDIRECT(\"'\" & Setup!$AI$9 & \"'!\" & AE294),0) + IF(Setup!$AI$10<>\"\",INDIRECT(\"'\" & Setup!$AI$10 & \"'!\" & AE294),0) + IF(Setup!$AI$11<>\"\",INDIRECT(\"'\" & Setup!$AI$11 & \"'!\" & AE294),0) + IF(Setup!$AI$12<>\"\",INDIRECT(\"'\" & Setup!$AI$12 & \"'!\" & AE294),0)","v":{"v":0,"d":"0.00"}},"","",{"$f":"IF(Setup!$AJ$7<>\"\",INDIRECT(\"'\" & Setup!$AJ$7 & \"'!\" & AD294),0) + IF(Setup!$AJ$8<>\"\",INDIRECT(\"'\" & Setup!$AJ$8 & \"'!\" & AD294),0) + IF(Setup!$AJ$9<>\"\",INDIRECT(\"'\" & Setup!$AJ$9 & \"'!\" & AD294),0) + IF(Setup!$AJ$10<>\"\",INDIRECT(\"'\" & Setup!$AJ$10 & \"'!\" & AD294),0) + IF(Setup!$AJ$11<>\"\",INDIRECT(\"'\" & Setup!$AJ$11 & \"'!\" & AD294),0) + IF(Setup!$AJ$12<>\"\",INDIRECT(\"'\" & Setup!$AJ$12 & \"'!\" & AD294),0)","v":0},{"$f":"IF(Setup!$AJ$7<>\"\",INDIRECT(\"'\" & Setup!$AJ$7 & \"'!\" & AE294),0) + IF(Setup!$AJ$8<>\"\",INDIRECT(\"'\" & Setup!$AJ$8 & \"'!\" & AE294),0) + IF(Setup!$AJ$9<>\"\",INDIRECT(\"'\" & Setup!$AJ$9 & \"'!\" & AE294),0) + IF(Setup!$AJ$10<>\"\",INDIRECT(\"'\" & Setup!$AJ$10 & \"'!\" & AE294),0) + IF(Setup!$AJ$11<>\"\",INDIRECT(\"'\" & Setup!$AJ$11 & \"'!\" & AE294),0) + IF(Setup!$AJ$12<>\"\",INDIRECT(\"'\" & Setup!$AJ$12 & \"'!\" & AE294),0)","v":0},"","",{"$f":"Planning!H66","v":0},"00","M82","O82","N82",null,null,{"$f":"IF(Setup!$AG$7<>\"\",INDIRECT(\"'\" & Setup!$AG$7 & \"'!\" & AF294),0) + IF(Setup!$AG$8<>\"\",INDIRECT(\"'\" & Setup!$AG$8 & \"'!\" & AF294),0) + IF(Setup!$AG$9<>\"\",INDIRECT(\"'\" & Setup!$AG$9 & \"'!\" & AF294),0) + IF(Setup!$AG$10<>\"\",INDIRECT(\"'\" & Setup!$AG$10 & \"'!\" & AF294),0) + IF(Setup!$AG$11<>\"\",INDIRECT(\"'\" & Setup!$AG$11 & \"'!\" & AF294),0) + IF(Setup!$AG$12<>\"\",INDIRECT(\"'\" & Setup!$AG$12 & \"'!\" & AF294),0)","v":0},{"$f":"IF(Setup!$AH$7<>\"\",INDIRECT(\"'\" & Setup!$AH$7 & \"'!\" & AF294),0) + IF(Setup!$AH$8<>\"\",INDIRECT(\"'\" & Setup!$AH$8 & \"'!\" & AF294),0) + IF(Setup!$AH$9<>\"\",INDIRECT(\"'\" & Setup!$AH$9 & \"'!\" & AF294),0) + IF(Setup!$AH$10<>\"\",INDIRECT(\"'\" & Setup!$AH$10 & \"'!\" & AF294),0) + IF(Setup!$AH$11<>\"\",INDIRECT(\"'\" & Setup!$AH$11 & \"'!\" & AF294),0) + IF(Setup!$AH$12<>\"\",INDIRECT(\"'\" & Setup!$AH$12 & \"'!\" & AF294),0)","v":0},{"$f":"IF(Setup!$AI$7<>\"\",INDIRECT(\"'\" & Setup!$AI$7 & \"'!\" & AF294),0) + IF(Setup!$AI$8<>\"\",INDIRECT(\"'\" & Setup!$AI$8 & \"'!\" & AF294),0) + IF(Setup!$AI$9<>\"\",INDIRECT(\"'\" & Setup!$AI$9 & \"'!\" & AF294),0) + IF(Setup!$AI$10<>\"\",INDIRECT(\"'\" & Setup!$AI$10 & \"'!\" & AF294),0) + IF(Setup!$AI$11<>\"\",INDIRECT(\"'\" & Setup!$AI$11 & \"'!\" & AF294),0) + IF(Setup!$AI$12<>\"\",INDIRECT(\"'\" & Setup!$AI$12 & \"'!\" & AF294),0)","v":0},{"$f":"IF(Setup!$AJ$7<>\"\",INDIRECT(\"'\" & Setup!$AJ$7 & \"'!\" & AF294),0) + IF(Setup!$AJ$8<>\"\",INDIRECT(\"'\" & Setup!$AJ$8 & \"'!\" & AF294),0) + IF(Setup!$AJ$9<>\"\",INDIRECT(\"'\" & Setup!$AJ$9 & \"'!\" & AF294),0) + IF(Setup!$AJ$10<>\"\",INDIRECT(\"'\" & Setup!$AJ$10 & \"'!\" & AF294),0) + IF(Setup!$AJ$11<>\"\",INDIRECT(\"'\" & Setup!$AJ$11 & \"'!\" & AF294),0) + IF(Setup!$AJ$12<>\"\",INDIRECT(\"'\" & Setup!$AJ$12 & \"'!\" & AF294),0)","v":0},null,"",{"$nulls":30},0,{"$f":"IF(Setup!$AH$7=\"\",0,INDIRECT(\"'\" & Setup!$AH$7 & \"'!\" & AF294))","v":0},{"$f":"IF(Setup!$AI$7=\"\",0,INDIRECT(\"'\" & Setup!$AI$7 & \"'!\" & AF294))","v":0},{"$f":"IF(Setup!$AJ$7=\"\",0,INDIRECT(\"'\" & Setup!$AJ$7 & \"'!\" & AF294))","v":0}]
[{"$f":"Planning!A67","v":"I059"},{"$f":"Planning!B67","v":0},{"$f":"Planning!C67","v":0},{"$f":"Planning!D67","v":0},{"$f":"Planning!E67","v":0},{"$f":"Planning!G67","v":0},0,{"v":0,"d":"0.00"},{"v":0,"d":"0.00"},"","",{"$f":"IF(Setup!$AG$7<>\"\",INDIRECT(\"'\" & Setup!$AG$7 & \"'!\" & AD295),0) + IF(Setup!$AG$8<>\"\",INDIRECT(\"'\" & Setup!$AG$8 & \"'!\" & AD295),0) + IF(Setup!$AG$9<>\"\",INDIRECT(\"'\" & Setup!$AG$9 & \"'!\" & AD295),0) + IF(Setup!$AG$10<>\"\",INDIRECT(\"'\" & Setup!$AG$10 & \"'!\" & AD295),0) + IF(Setup!$AG$11<>\"\",INDIRECT(\"'\" & Setup!$AG$11 & \"'!\" & AD295),0) + IF(Setup!$AG$12<>\"\",INDIRECT(\"'\" & Setup!$AG$12 & \"'!\" & AD295),0)","v":{"v":0,"d":"0.00"}},{"$f":"IF(Setup!$AG$7<>\"\",INDIRECT(\"'\" & Setup!$AG$7 & \"'!\" & AE295),0) + IF(Setup!$AG$8<>\"\",INDIRECT(\"'\" & Setup!$AG$8 & \"'!\" & AE295),0) + IF(Setup!$AG$9<>\"\",INDIRECT(\"'\" & Setup!$AG$9 & \"'!\" & AE295),0) + IF(Setup!$AG$10<>\"\",INDIRECT(\"'\" & Setup!$AG$10 & \"'!\" & AE295),0) + IF(Setup!$AG$11<>\"\",INDIRECT(\"'\" & Setup!$AG$11 & \"'!\" & AE295),0) + IF(Setup!$AG$12<>\"\",INDIRECT(\"'\" & Setup!$AG$12 & \"'!\" & AE295),0)","v":{"v":0,"d":"0.00"}},"","",{"$f":"IF(Setup!$AH$7<>\"\",INDIRECT(\"'\" & Setup!$AH$7 & \"'!\" & AD295),0) + IF(Setup!$AH$8<>\"\",INDIRECT(\"'\" & Setup!$AH$8 & \"'!\" & AD295),0) + IF(Setup!$AH$9<>\"\",INDIRECT(\"'\" & Setup!$AH$9 & \"'!\" & AD295),0) + IF(Setup!$AH$10<>\"\",INDIRECT(\"'\" & Setup!$AH$10 & \"'!\" & AD295),0) + IF(Setup!$AH$11<>\"\",INDIRECT(\"'\" & Setup!$AH$11 & \"'!\" & AD295),0) + IF(Setup!$AH$12<>\"\",INDIRECT(\"'\" & Setup!$AH$12 & \"'!\" & AD295),0)","v":{"v":0,"d":"0.00"}},{"$f":"IF(Setup!$AH$7<>\"\",INDIRECT(\"'\" & Setup!$AH$7 & \"'!\" & AE295),0) + IF(Setup!$AH$8<>\"\",INDIRECT(\"'\" & Setup!$AH$8 & \"'!\" & AE295),0) + IF(Setup!$AH$9<>\"\",INDIRECT(\"'\" & Setup!$AH$9 & \"'!\" & AE295),0) + IF(Setup!$AH$10<>\"\",INDIRECT(\"'\" & Setup!$AH$10 & \"'!\" & AE295),0) + IF(Setup!$AH$11<>\"\",INDIRECT(\"'\" & Setup!$AH$11 & \"'!\" & AE295),0) + IF(Setup!$AH$12<>\"\",INDIRECT(\"'\" & Setup!$AH$12 & \"'!\" & AE295),0)","v":{"v":0,"d":"0.00"}},"","",{"$f":"IF(Setup!$AI$7<>\"\",INDIRECT(\"'\" & Setup!$AI$7 & \"'!\" & AD295),0) + IF(Setup!$AI$8<>\"\",INDIRECT(\"'\" & Setup!$AI$8 & \"'!\" & AD295),0) + IF(Setup!$AI$9<>\"\",INDIRECT(\"'\" & Setup!$AI$9 & \"'!\" & AD295),0) + IF(Setup!$AI$10<>\"\",INDIRECT(\"'\" & Setup!$AI$10 & \"'!\" & AD295),0) + IF(Setup!$AI$11<>\"\",INDIRECT(\"'\" & Setup!$AI$11 & \"'!\" & AD295),0) + IF(Setup!$AI$12<>\"\",INDIRECT(\"'\" & Setup!$AI$12 & \"'!\" & AD295),0)","v":{"v":0,"d":"0.00"}},{"$f":"IF(Setup!$AI$7<>\"\",INDIRECT(\"'\" & Setup!$AI$7 & \"'!\" & AE295),0) + IF(Setup!$AI$8<>\"\",INDIRECT(\"'\" & Setup!$AI$8 & \"'!\" & AE295),0) + IF(Setup!$AI$9<>\"\",INDIRECT(\"'\" & Setup!$AI$9 & \"'!\" & AE295),0) + IF(Setup!$AI$10<>\"\",INDIRECT(\"'\" & Setup!$AI$10 & \"'!\" & AE295),0) + IF(Setup!$AI$11<>\"\",INDIRECT(\"'\" & Setup!$AI$11 & \"'!\" & AE295),0) + IF(Setup!$AI$12<>\"\",INDIRECT(\"'\" & Setup!$AI$12 & \"'!\" & AE295),0)","v":{"v":0,"d":"0.00"}},"","",{"$f":"IF(Setup!$AJ$7<>\"\",INDIRECT(\"'\" & Setup!$AJ$7 & \"'!\" & AD295),0) + IF(Setup!$AJ$8<>\"\",INDIRECT(\"'\" & Setup!$AJ$8 & \"'!\" & AD295),0) + IF(Setup!$AJ$9<>\"\",INDIRECT(\"'\" & Setup!$AJ$9 & \"'!\" & AD295),0) + IF(Setup!$AJ$10<>\"\",INDIRECT(\"'\" & Setup!$AJ$10 & \"'!\" & AD295),0) + IF(Setup!$AJ$11<>\"\",INDIRECT(\"'\" & Setup!$AJ$11 & \"'!\" & AD295),0) + IF(Setup!$AJ$12<>\"\",INDIRECT(\"'\" & Setup!$AJ$12 & \"'!\" & AD295),0)","v":0},{"$f":"IF(Setup!$AJ$7<>\"\",INDIRECT(\"'\" & Setup!$AJ$7 & \"'!\" & AE295),0) + IF(Setup!$AJ$8<>\"\",INDIRECT(\"'\" & Setup!$AJ$8 & \"'!\" & AE295),0) + IF(Setup!$AJ$9<>\"\",INDIRECT(\"'\" & Setup!$AJ$9 & \"'!\" & AE295),0) + IF(Setup!$AJ$10<>\"\",INDIRECT(\"'\" & Setup!$AJ$10 & \"'!\" & AE295),0) + IF(Setup!$AJ$11<>\"\",INDIRECT(\"'\" & Setup!$AJ$11 & \"'!\" & AE295),0) + IF(Setup!$AJ$12<>\"\",INDIRECT(\"'\" & Setup!$AJ$12 & \"'!\" & AE295),0)","v":0},"","",{"$f":"Planning!H67","v":0},"00","M83","O83","N83",null,null,{"$f":"IF(Setup!$AG$7<>\"\",INDIRECT(\"'\" & Setup!$AG$7 & \"'!\" & AF295),0) + IF(Setup!$AG$8<>\"\",INDIRECT(\"'\" & Setup!$AG$8 & \"'!\" & AF295),0) + IF(Setup!$AG$9<>\"\",INDIRECT(\"'\" & Setup!$AG$9 & \"'!\" & AF295),0) + IF(Setup!$AG$10<>\"\",INDIRECT(\"'\" & Setup!$AG$10 & \"'!\" & AF295),0) + IF(Setup!$AG$11<>\"\",INDIRECT(\"'\" & Setup!$AG$11 & \"'!\" & AF295),0) + IF(Setup!$AG$12<>\"\",INDIRECT(\"'\" & Setup!$AG$12 & \"'!\" & AF295),0)","v":0},{"$f":"IF(Setup!$AH$7<>\"\",INDIRECT(\"'\" & Setup!$AH$7 & \"'!\" & AF295),0) + IF(Setup!$AH$8<>\"\",INDIRECT(\"'\" & Setup!$AH$8 & \"'!\" & AF295),0) + IF(Setup!$AH$9<>\"\",INDIRECT(\"'\" & Setup!$AH$9 & \"'!\" & AF295),0) + IF(Setup!$AH$10<>\"\",INDIRECT(\"'\" & Setup!$AH$10 & \"'!\" & AF295),0) + IF(Setup!$AH$11<>\"\",INDIRECT(\"'\" & Setup!$AH$11 & \"'!\" & AF295),0) + IF(Setup!$AH$12<>\"\",INDIRECT(\"'\" & Setup!$AH$12 & \"'!\" & AF295),0)","v":0},{"$f":"IF(Setup!$AI$7<>\"\",INDIRECT(\"'\" & Setup!$AI$7 & \"'!\" & AF295),0) + IF(Setup!$AI$8<>\"\",INDIRECT(\"'\" & Setup!$AI$8 & \"'!\" & AF295),0) + IF(Setup!$AI$9<>\"\",INDIRECT(\"'\" & Setup!$AI$9 & \"'!\" & AF295),0) + IF(Setup!$AI$10<>\"\",INDIRECT(\"'\" & Setup!$AI$10 & \"'!\" & AF295),0) + IF(Setup!$AI$11<>\"\",INDIRECT(\"'\" & Setup!$AI$11 & \"'!\" & AF295),0) + IF(Setup!$AI$12<>\"\",INDIRECT(\"'\" & Setup!$AI$12 & \"'!\" & AF295),0)","v":0},{"$f":"IF(Setup!$AJ$7<>\"\",INDIRECT(\"'\" & Setup!$AJ$7 & \"'!\" & AF295),0) + IF(Setup!$AJ$8<>\"\",INDIRECT(\"'\" & Setup!$AJ$8 & \"'!\" & AF295),0) + IF(Setup!$AJ$9<>\"\",INDIRECT(\"'\" & Setup!$AJ$9 & \"'!\" & AF295),0) + IF(Setup!$AJ$10<>\"\",INDIRECT(\"'\" & Setup!$AJ$10 & \"'!\" & AF295),0) + IF(Setup!$AJ$11<>\"\",INDIRECT(\"'\" & Setup!$AJ$11 & \"'!\" & AF295),0) + IF(Setup!$AJ$12<>\"\",INDIRECT(\"'\" & Setup!$AJ$12 & \"'!\" & AF295),0)","v":0},null,"",{"$nulls":30},0,{"$f":"IF(Setup!$AH$7=\"\",0,INDIRECT(\"'\" & Setup!$AH$7 & \"'!\" & AF295))","v":0},{"$f":"IF(Setup!$AI$7=\"\",0,INDIRECT(\"'\" & Setup!$AI$7 & \"'!\" & AF295))","v":0},{"$f":"IF(Setup!$AJ$7=\"\",0,INDIRECT(\"'\" & Setup!$AJ$7 & \"'!\" & AF295))","v":0}]
[{"$f":"Planning!A68","v":"I060"},{"$f":"Planning!B68","v":0},{"$f":"Planning!C68","v":0},{"$f":"Planning!D68","v":0},{"$f":"Planning!E68","v":0},{"$f":"Planning!G68","v":0},0,{"v":0,"d":"0.00"},{"v":0,"d":"0.00"},"","",{"$f":"IF(Setup!$AG$7<>\"\",INDIRECT(\"'\" & Setup!$AG$7 & \"'!\" & AD296),0) + IF(Setup!$AG$8<>\"\",INDIRECT(\"'\" & Setup!$AG$8 & \"'!\" & AD296),0) + IF(Setup!$AG$9<>\"\",INDIRECT(\"'\" & Setup!$AG$9 & \"'!\" & AD296),0) + IF(Setup!$AG$10<>\"\",INDIRECT(\"'\" & Setup!$AG$10 & \"'!\" & AD296),0) + IF(Setup!$AG$11<>\"\",INDIRECT(\"'\" & Setup!$AG$11 & \"'!\" & AD296),0) + IF(Setup!$AG$12<>\"\",INDIRECT(\"'\" & Setup!$AG$12 & \"'!\" & AD296),0)","v":{"v":0,"d":"0.00"}},{"$f":"IF(Setup!$AG$7<>\"\",INDIRECT(\"'\" & Setup!$AG$7 & \"'!\" & AE296),0) + IF(Setup!$AG$8<>\"\",INDIRECT(\"'\" & Setup!$AG$8 & \"'!\" & AE296),0) + IF(Setup!$AG$9<>\"\",INDIRECT(\"'\" & Setup!$AG$9 & \"'!\" & AE296),0) + IF(Setup!$AG$10<>\"\",INDIRECT(\"'\" & Setup!$AG$10 & \"'!\" & AE296),0) + IF(Setup!$AG$11<>\"\",INDIRECT(\"'\" & Setup!$AG$11 & \"'!\" & AE296),0) + IF(Setup!$AG$12<>\"\",INDIRECT(\"'\" & Setup!$AG$12 & \"'!\" & AE296),0)","v":{"v":0,"d":"0.00"}},"","",{"$f":"IF(Setup!$AH$7<>\"\",INDIRECT(\"'\" & Setup!$AH$7 & \"'!\" & AD296),0) + IF(Setup!$AH$8<>\"\",INDIRECT(\"'\" & Setup!$AH$8 & \"'!\" & AD296),0) + IF(Setup!$AH$9<>\"\",INDIRECT(\"'\" & Setup!$AH$9 & \"'!\" & AD296),0) + IF(Setup!$AH$10<>\"\",INDIRECT(\"'\" & Setup!$AH$10 & \"'!\" & AD296),0) + IF(Setup!$AH$11<>\"\",INDIRECT(\"'\" & Setup!$AH$11 & \"'!\" & AD296),0) + IF(Setup!$AH$12<>\"\",INDIRECT(\"'\" & Setup!$AH$12 & \"'!\" & AD296),0)","v":{"v":0,"d":"0.00"}},{"$f":"IF(Setup!$AH$7<>\"\",INDIRECT(\"'\" & Setup!$AH$7 & \"'!\" & AE296),0) + IF(Setup!$AH$8<>\"\",INDIRECT(\"'\" & Setup!$AH$8 & \"'!\" & AE296),0) + IF(Setup!$AH$9<>\"\",INDIRECT(\"'\" & Setup!$AH$9 & \"'!\" & AE296),0) + IF(Setup!$AH$10<>\"\",INDIRECT(\"'\" & Setup!$AH$10 & \"'!\" & AE296),0) + IF(Setup!$AH$11<>\"\",INDIRECT(\"'\" & Setup!$AH$11 & \"'!\" & AE296),0) + IF(Setup!$AH$12<>\"\",INDIRECT(\"'\" & Setup!$AH$12 & \"'!\" & AE296),0)","v":{"v":0,"d":"0.00"}},"","",{"$f":"IF(Setup!$AI$7<>\"\",INDIRECT(\"'\" & Setup!$AI$7 & \"'!\" & AD296),0) + IF(Setup!$AI$8<>\"\",INDIRECT(\"'\" & Setup!$AI$8 & \"'!\" & AD296),0) + IF(Setup!$AI$9<>\"\",INDIRECT(\"'\" & Setup!$AI$9 & \"'!\" & AD296),0) + IF(Setup!$AI$10<>\"\",INDIRECT(\"'\" & Setup!$AI$10 & \"'!\" & AD296),0) + IF(Setup!$AI$11<>\"\",INDIRECT(\"'\" & Setup!$AI$11 & \"'!\" & AD296),0) + IF(Setup!$AI$12<>\"\",INDIRECT(\"'\" & Setup!$AI$12 & \"'!\" & AD296),0)","v":{"v":0,"d":"0.00"}},{"$f":"IF(Setup!$AI$7<>\"\",INDIRECT(\"'\" & Setup!$AI$7 & \"'!\" & AE296),0) + IF(Setup!$AI$8<>\"\",INDIRECT(\"'\" & Setup!$AI$8 & \"'!\" & AE296),0) + IF(Setup!$AI$9<>\"\",INDIRECT(\"'\" & Setup!$AI$9 & \"'!\" & AE296),0) + IF(Setup!$AI$10<>\"\",INDIRECT(\"'\" & Setup!$AI$10 & \"'!\" & AE296),0) + IF(Setup!$AI$11<>\"\",INDIRECT(\"'\" & Setup!$AI$11 & \"'!\" & AE296),0) + IF(Setup!$AI$12<>\"\",INDIRECT(\"'\" & Setup!$AI$12 & \"'!\" & AE296),0)","v":{"v":0,"d":"0.00"}},"","",{"$f":"IF(Setup!$AJ$7<>\"\",INDIRECT(\"'\" & Setup!$AJ$7 & \"'!\" & AD296),0) + IF(Setup!$AJ$8<>\"\",INDIRECT(\"'\" & Setup!$AJ$8 & \"'!\" & AD296),0) + IF(Setup!$AJ$9<>\"\",INDIRECT(\"'\" & Setup!$AJ$9 & \"'!\" & AD296),0) + IF(Setup!$AJ$10<>\"\",INDIRECT(\"'\" & Setup!$AJ$10 & \"'!\" & AD296),0) + IF(Setup!$AJ$11<>\"\",INDIRECT(\"'\" & Setup!$AJ$11 & \"'!\" & AD296),0) + IF(Setup!$AJ$12<>\"\",INDIRECT(\"'\" & Setup!$AJ$12 & \"'!\" & AD296),0)","v":0},{"$f":"IF(Setup!$AJ$7<>\"\",INDIRECT(\"'\" & Setup!$AJ$7 & \"'!\" & AE296),0) + IF(Setup!$AJ$8<>\"\",INDIRECT(\"'\" & Setup!$AJ$8 & \"'!\" & AE296),0) + IF(Setup!$AJ$9<>\"\",INDIRECT(\"'\" & Setup!$AJ$9 & \"'!\" & AE296),0) + IF(Setup!$AJ$10<>\"\",INDIRECT(\"'\" & Setup!$AJ$10 & \"'!\" & AE296),0) + IF(Setup!$AJ$11<>\"\",INDIRECT(\"'\" & Setup!$AJ$11 & \"'!\" & AE296),0) + IF(Setup!$AJ$12<>\"\",INDIRECT(\"'\" & Setup!$AJ$12 & \"'!\" & AE296),0)","v":0},"","",{"$f":"Planning!H68","v":0},"00","M84","O84","N84",null,null,{"$f":"IF(Setup!$AG$7<>\"\",INDIRECT(\"'\" & Setup!$AG$7 & \"'!\" & AF296),0) + IF(Setup!$AG$8<>\"\",INDIRECT(\"'\" & Setup!$AG$8 & \"'!\" & AF296),0) + IF(Setup!$AG$9<>\"\",INDIRECT(\"'\" & Setup!$AG$9 & \"'!\" & AF296),0) + IF(Setup!$AG$10<>\"\",INDIRECT(\"'\" & Setup!$AG$10 & \"'!\" & AF296),0) + IF(Setup!$AG$11<>\"\",INDIRECT(\"'\" & Setup!$AG$11 & \"'!\" & AF296),0) + IF(Setup!$AG$12<>\"\",INDIRECT(\"'\" & Setup!$AG$12 & \"'!\" & AF296),0)","v":0},{"$f":"IF(Setup!$AH$7<>\"\",INDIRECT(\"'\" & Setup!$AH$7 & \"'!\" & AF296),0) + IF(Setup!$AH$8<>\"\",INDIRECT(\"'\" & Setup!$AH$8 & \"'!\" & AF296),0) + IF(Setup!$AH$9<>\"\",INDIRECT(\"'\" & Setup!$AH$9 & \"'!\" & AF296),0) + IF(Setup!$AH$10<>\"\",INDIRECT(\"'\" & Setup!$AH$10 & \"'!\" & AF296),0) + IF(Setup!$AH$11<>\"\",INDIRECT(\"'\" & Setup!$AH$11 & \"'!\" & AF296),0) + IF(Setup!$AH$12<>\"\",INDIRECT(\"'\" & Setup!$AH$12 & \"'!\" & AF296),0)","v":0},{"$f":"IF(Setup!$AI$7<>\"\",INDIRECT(\"'\" & Setup!$AI$7 & \"'!\" & AF296),0) + IF(Setup!$AI$8<>\"\",INDIRECT(\"'\" & Setup!$AI$8 & \"'!\" & AF296),0) + IF(Setup!$AI$9<>\"\",INDIRECT(\"'\" & Setup!$AI$9 & \"'!\" & AF296),0) + IF(Setup!$AI$10<>\"\",INDIRECT(\"'\" & Setup!$AI$10 & \"'!\" & AF296),0) + IF(Setup!$AI$11<>\"\",INDIRECT(\"'\" & Setup!$AI$11 & \"'!\" & AF296),0) + IF(Setup!$AI$12<>\"\",INDIRECT(\"'\" & Setup!$AI$12 & \"'!\" & AF296),0)","v":0},{"$f":"IF(Setup!$AJ$7<>\"\",INDIRECT(\"'\" & Setup!$AJ$7 & \"'!\" & AF296),0) + IF(Setup!$AJ$8<>\"\",INDIRECT(\"'\" & Setup!$AJ$8 & \"'!\" & AF296),0) + IF(Setup!$AJ$9<>\"\",INDIRECT(\"'\" & Setup!$AJ$9 & \"'!\" & AF296),0) + IF(Setup!$AJ$10<>\"\",INDIRECT(\"'\" & Setup!$AJ$10 & \"'!\" & AF296),0) + IF(Setup!$AJ$11<>\"\",INDIRECT(\"'\" & Setup!$AJ$11 & \"'!\" & AF296),0) + IF(Setup!$AJ$12<>\"\",INDIRECT(\"'\" & Setup!$AJ$12 & \"'!\" & AF296),0)","v":0},null,"",{"$nulls":30},0,{"$f":"IF(Setup!$AH$7=\"\",0,INDIRECT(\"'\" & Setup!$AH$7 & \"'!\" & AF296))","v":0},{"$f":"IF(Setup!$AI$7=\"\",0,INDIRECT(\"'\" & Setup!$AI$7 & \"'!\" & AF296))","v":0},{"$f":"IF(Setup!$AJ$7=\"\",0,INDIRECT(\"'\" & Setup!$AJ$7 & \"'!\" & AF296))","v":0}]
[{"$f":"Planning!A69","v":"I061"},{"$f":"Planning!B69","v":0},{"$f":"Planning!C69","v":0},{"$f":"Planning!D69","v":0},{"$f":"Planning!E69","v":0},{"$f":"Planning!G69","v":0},0,{"v":0,"d":"0.00"},{"v":0,"d":"0.00"},"","",{"$f":"IF(Setup!$AG$7<>\"\",INDIRECT(\"'\" & Setup!$AG$7 & \"'!\" & AD297),0) + IF(Setup!$AG$8<>\"\",INDIRECT(\"'\" & Setup!$AG$8 & \"'!\" & AD297),0) + IF(Setup!$AG$9<>\"\",INDIRECT(\"'\" & Setup!$AG$9 & \"'!\" & AD297),0) + IF(Setup!$AG$10<>\"\",INDIRECT(\"'\" & Setup!$AG$10 & \"'!\" & AD297),0) + IF(Setup!$AG$11<>\"\",INDIRECT(\"'\" & Setup!$AG$11 & \"'!\" & AD297),0) + IF(Setup!$AG$12<>\"\",INDIRECT(\"'\" & Setup!$AG$12 & \"'!\" & AD297),0)","v":{"v":0,"d":"0.00"}},{"$f":"IF(Setup!$AG$7<>\"\",INDIRECT(\"'\" & Setup!$AG$7 & \"'!\" & AE297),0) + IF(Setup!$AG$8<>\"\",INDIRECT(\"'\" & Setup!$AG$8 & \"'!\" & AE297),0) + IF(Setup!$AG$9<>\"\",INDIRECT(\"'\" & Setup!$AG$9 & \"'!\" & AE297),0) + IF(Setup!$AG$10<>\"\",INDIRECT(\"'\" & Setup!$AG$10 & \"'!\" & AE297),0) + IF(Setup!$AG$11<>\"\",INDIRECT(\"'\" & Setup!$AG$11 & \"'!\" & AE297),0) + IF(Setup!$AG$12<>\"\",INDIRECT(\"'\" & Setup!$AG$12 & \"'!\" & AE297),0)","v":{"v":0,"d":"0.00"}},"","",{"$f":"IF(Setup!$AH$7<>\"\",INDIRECT(\"'\" & Setup!$AH$7 & \"'!\" & AD297),0) + IF(Setup!$AH$8<>\"\",INDIRECT(\"'\" & Setup!$AH$8 & \"'!\" & AD297),0) + IF(Setup!$AH$9<>\"\",INDIRECT(\"'\" & Setup!$AH$9 & \"'!\" & AD297),0) + IF(Setup!$AH$10<>\"\",INDIRECT(\"'\" & Setup!$AH$10 & \"'!\" & AD297),0) + IF(Setup!$AH$11<>\"\",INDIRECT(\"'\" & Setup!$AH$11 & \"'!\" & AD297),0) + IF(Setup!$AH$12<>\"\",INDIRECT(\"'\" & Setup!$AH$12 & \"'!\" & AD297),0)","v":{"v":0,"d":"0.00"}},{"$f":"IF(Setup!$AH$7<>\"\",INDIRECT(\"'\" & Setup!$AH$7 & \"'!\" & AE297),0) + IF(Setup!$AH$8<>\"\",INDIRECT(\"'\" & Setup!$AH$8 & \"'!\" & AE297),0) + IF(Setup!$AH$9<>\"\",INDIRECT(\"'\" & Setup!$AH$9 & \"'!\" & AE297),0) + IF(Setup!$AH$10<>\"\",INDIRECT(\"'\" & Setup!$AH$10 & \"'!\" & AE297),0) + IF(Setup!$AH$11<>\"\",INDIRECT(\"'\" & Setup!$AH$11 & \"'!\" & AE297),0) + IF(Setup!$AH$12<>\"\",INDIRECT(\"'\" & Setup!$AH$12 & \"'!\" & AE297),0)","v":{"v":0,"d":"0.00"}},"","",{"$f":"IF(Setup!$AI$7<>\"\",INDIRECT(\"'\" & Setup!$AI$7 & \"'!\" & AD297),0) + IF(Setup!$AI$8<>\"\",INDIRECT(\"'\" & Setup!$AI$8 & \"'!\" & AD297),0) + IF(Setup!$AI$9<>\"\",INDIRECT(\"'\" & Setup!$AI$9 & \"'!\" & AD297),0) + IF(Setup!$AI$10<>\"\",INDIRECT(\"'\" & Setup!$AI$10 & \"'!\" & AD297),0) + IF(Setup!$AI$11<>\"\",INDIRECT(\"'\" & Setup!$AI$11 & \"'!\" & AD297),0) + IF(Setup!$AI$12<>\"\",INDIRECT(\"'\" & Setup!$AI$12 & \"'!\" & AD297),0)","v":{"v":0,"d":"0.00"}},{"$f":"IF(Setup!$AI$7<>\"\",INDIRECT(\"'\" & Setup!$AI$7 & \"'!\" & AE297),0) + IF(Setup!$AI$8<>\"\",INDIRECT(\"'\" & Setup!$AI$8 & \"'!\" & AE297),0) + IF(Setup!$AI$9<>\"\",INDIRECT(\"'\" & Setup!$AI$9 & \"'!\" & AE297),0) + IF(Setup!$AI$10<>\"\",INDIRECT(\"'\" & Setup!$AI$10 & \"'!\" & AE297),0) + IF(Setup!$AI$11<>\"\",INDIRECT(\"'\" & Setup!$AI$11 & \"'!\" & AE297),0) + IF(Setup!$AI$12<>\"\",INDIRECT(\"'\" & Setup!$AI$12 & \"'!\" & AE297),0)","v":{"v":0,"d":"0.00"}},"","",{"$f":"IF(Setup!$AJ$7<>\"\",INDIRECT(\"'\" & Setup!$AJ$7 & \"'!\" & AD297),0) + IF(Setup!$AJ$8<>\"\",INDIRECT(\"'\" & Setup!$AJ$8 & \"'!\" & AD297),0) + IF(Setup!$AJ$9<>\"\",INDIRECT(\"'\" & Setup!$AJ$9 & \"'!\" & AD297),0) + IF(Setup!$AJ$10<>\"\",INDIRECT(\"'\" & Setup!$AJ$10 & \"'!\" & AD297),0) + IF(Setup!$AJ$11<>\"\",INDIRECT(\"'\" & Setup!$AJ$11 & \"'!\" & AD297),0) + IF(Setup!$AJ$12<>\"\",INDIRECT(\"'\" & Setup!$AJ$12 & \"'!\" & AD297),0)","v":0},{"$f":"IF(Setup!$AJ$7<>\"\",INDIRECT(\"'\" & Setup!$AJ$7 & \"'!\" & AE297),0) + IF(Setup!$AJ$8<>\"\",INDIRECT(\"'\" & Setup!$AJ$8 & \"'!\" & AE297),0) + IF(Setup!$AJ$9<>\"\",INDIRECT(\"'\" & Setup!$AJ$9 & \"'!\" & AE297),0) + IF(Setup!$AJ$10<>\"\",INDIRECT(\"'\" & Setup!$AJ$10 & \"'!\" & AE297),0) + IF(Setup!$AJ$11<>\"\",INDIRECT(\"'\" & Setup!$AJ$11 & \"'!\" & AE297),0) + IF(Setup!$AJ$12<>\"\",INDIRECT(\"'\" & Setup!$AJ$12 & \"'!\" & AE297),0)","v":0},"","",{"$f":"Planning!H69","v":0},"00","M85","O85","N85",null,null,{"$f":"IF(Setup!$AG$7<>\"\",INDIRECT(\"'\" & Setup!$AG$7 & \"'!\" & AF297),0) + IF(Setup!$AG$8<>\"\",INDIRECT(\"'\" & Setup!$AG$8 & \"'!\" & AF297),0) + IF(Setup!$AG$9<>\"\",INDIRECT(\"'\" & Setup!$AG$9 & \"'!\" & AF297),0) + IF(Setup!$AG$10<>\"\",INDIRECT(\"'\" & Setup!$AG$10 & \"'!\" & AF297),0) + IF(Setup!$AG$11<>\"\",INDIRECT(\"'\" & Setup!$AG$11 & \"'!\" & AF297),0) + IF(Setup!$AG$12<>\"\",INDIRECT(\"'\" & Setup!$AG$12 & \"'!\" & AF297),0)","v":0},{"$f":"IF(Setup!$AH$7<>\"\",INDIRECT(\"'\" & Setup!$AH$7 & \"'!\" & AF297),0) + IF(Setup!$AH$8<>\"\",INDIRECT(\"'\" & Setup!$AH$8 & \"'!\" & AF297),0) + IF(Setup!$AH$9<>\"\",INDIRECT(\"'\" & Setup!$AH$9 & \"'!\" & AF297),0) + IF(Setup!$AH$10<>\"\",INDIRECT(\"'\" & Setup!$AH$10 & \"'!\" & AF297),0) + IF(Setup!$AH$11<>\"\",INDIRECT(\"'\" & Setup!$AH$11 & \"'!\" & AF297),0) + IF(Setup!$AH$12<>\"\",INDIRECT(\"'\" & Setup!$AH$12 & \"'!\" & AF297),0)","v":0},{"$f":"IF(Setup!$AI$7<>\"\",INDIRECT(\"'\" & Setup!$AI$7 & \"'!\" & AF297),0) + IF(Setup!$AI$8<>\"\",INDIRECT(\"'\" & Setup!$AI$8 & \"'!\" & AF297),0) + IF(Setup!$AI$9<>\"\",INDIRECT(\"'\" & Setup!$AI$9 & \"'!\" & AF297),0) + IF(Setup!$AI$10<>\"\",INDIRECT(\"'\" & Setup!$AI$10 & \"'!\" & AF297),0) + IF(Setup!$AI$11<>\"\",INDIRECT(\"'\" & Setup!$AI$11 & \"'!\" & AF297),0) + IF(Setup!$AI$12<>\"\",INDIRECT(\"'\" & Setup!$AI$12 & \"'!\" & AF297),0)","v":0},{"$f":"IF(Setup!$AJ$7<>\"\",INDIRECT(\"'\" & Setup!$AJ$7 & \"'!\" & AF297),0) + IF(Setup!$AJ$8<>\"\",INDIRECT(\"'\" & Setup!$AJ$8 & \"'!\" & AF297),0) + IF(Setup!$AJ$9<>\"\",INDIRECT(\"'\" & Setup!$AJ$9 & \"'!\" & AF297),0) + IF(Setup!$AJ$10<>\"\",INDIRECT(\"'\" & Setup!$AJ$10 & \"'!\" & AF297),0) + IF(Setup!$AJ$11<>\"\",INDIRECT(\"'\" & Setup!$AJ$11 & \"'!\" & AF297),0) + IF(Setup!$AJ$12<>\"\",INDIRECT(\"'\" & Setup!$AJ$12 & \"'!\" & AF297),0)","v":0},null,"",{"$nulls":30},0,{"$f":"IF(Setup!$AH$7=\"\",0,INDIRECT(\"'\" & Setup!$AH$7 & \"'!\" & AF297))","v":0},{"$f":"IF(Setup!$AI$7=\"\",0,INDIRECT(\"'\" & Setup!$AI$7 & \"'!\" & AF297))","v":0},{"$f":"IF(Setup!$AJ$7=\"\",0,INDIRECT(\"'\" & Setup!$AJ$7 & \"'!\" & AF297))","v":0}]
[{"$f":"Planning!A70","v":"I062"},{"$f":"Planning!B70","v":0},{"$f":"Planning!C70","v":0},{"$f":"Planning!D70","v":0},{"$f":"Planning!E70","v":0},{"$f":"Planning!G70","v":0},0,{"v":0,"d":"0.00"},{"v":0,"d":"0.00"},"","",{"$f":"IF(Setup!$AG$7<>\"\",INDIRECT(\"'\" & Setup!$AG$7 & \"'!\" & AD298),0) + IF(Setup!$AG$8<>\"\",INDIRECT(\"'\" & Setup!$AG$8 & \"'!\" & AD298),0) + IF(Setup!$AG$9<>\"\",INDIRECT(\"'\" & Setup!$AG$9 & \"'!\" & AD298),0) + IF(Setup!$AG$10<>\"\",INDIRECT(\"'\" & Setup!$AG$10 & \"'!\" & AD298),0) + IF(Setup!$AG$11<>\"\",INDIRECT(\"'\" & Setup!$AG$11 & \"'!\" & AD298),0) + IF(Setup!$AG$12<>\"\",INDIRECT(\"'\" & Setup!$AG$12 & \"'!\" & AD298),0)","v":{"v":0,"d":"0.00"}},{"$f":"IF(Setup!$AG$7<>\"\",INDIRECT(\"'\" & Setup!$AG$7 & \"'!\" & AE298),0) + IF(Setup!$AG$8<>\"\",INDIRECT(\"'\" & Setup!$AG$8 & \"'!\" & AE298),0) + IF(Setup!$AG$9<>\"\",INDIRECT(\"'\" & Setup!$AG$9 & \"'!\" & AE298),0) + IF(Setup!$AG$10<>\"\",INDIRECT(\"'\" & Setup!$AG$10 & \"'!\" & AE298),0) + IF(Setup!$AG$11<>\"\",INDIRECT(\"'\" & Setup!$AG$11 & \"'!\" & AE298),0) + IF(Setup!$AG$12<>\"\",INDIRECT(\"'\" & Setup!$AG$12 & \"'!\" & AE298),0)","v":{"v":0,"d":"0.00"}},"","",{"$f":"IF(Setup!$AH$7<>\"\",INDIRECT(\"'\" & Setup!$AH$7 & \"'!\" & AD298),0) + IF(Setup!$AH$8<>\"\",INDIRECT(\"'\" & Setup!$AH$8 & \"'!\" & AD298),0) + IF(Setup!$AH$9<>\"\",INDIRECT(\"'\" & Setup!$AH$9 & \"'!\" & AD298),0) + IF(Setup!$AH$10<>\"\",INDIRECT(\"'\" & Setup!$AH$10 & \"'!\" & AD298),0) + IF(Setup!$AH$11<>\"\",INDIRECT(\"'\" & Setup!$AH$11 & \"'!\" & AD298),0) + IF(Setup!$AH$12<>\"\",INDIRECT(\"'\" & Setup!$AH$12 & \"'!\" & AD298),0)","v":{"v":0,"d":"0.00"}},{"$f":"IF(Setup!$AH$7<>\"\",INDIRECT(\"'\" & Setup!$AH$7 & \"'!\" & AE298),0) + IF(Setup!$AH$8<>\"\",INDIRECT(\"'\" & Setup!$AH$8 & \"'!\" & AE298),0) + IF(Setup!$AH$9<>\"\",INDIRECT(\"'\" & Setup!$AH$9 & \"'!\" & AE298),0) + IF(Setup!$AH$10<>\"\",INDIRECT(\"'\" & Setup!$AH$10 & \"'!\" & AE298),0) + IF(Setup!$AH$11<>\"\",INDIRECT(\"'\" & Setup!$AH$11 & \"'!\" & AE298),0) + IF(Setup!$AH$12<>\"\",INDIRECT(\"'\" & Setup!$AH$12 & \"'!\" & AE298),0)","v":{"v":0,"d":"0.00"}},"","",{"$f":"IF(Setup!$AI$7<>\"\",INDIRECT(\"'\" & Setup!$AI$7 & \"'!\" & AD298),0) + IF(Setup!$AI$8<>\"\",INDIRECT(\"'\" & Setup!$AI$8 & \"'!\" & AD298),0) + IF(Setup!$AI$9<>\"\",INDIRECT(\"'\" & Setup!$AI$9 & \"'!\" & AD298),0) + IF(Setup!$AI$10<>\"\",INDIRECT(\"'\" & Setup!$AI$10 & \"'!\" & AD298),0) + IF(Setup!$AI$11<>\"\",INDIRECT(\"'\" & Setup!$AI$11 & \"'!\" & AD298),0) + IF(Setup!$AI$12<>\"\",INDIRECT(\"'\" & Setup!$AI$12 & \"'!\" & AD298),0)","v":{"v":0,"d":"0.00"}},{"$f":"IF(Setup!$AI$7<>\"\",INDIRECT(\"'\" & Setup!$AI$7 & \"'!\" & AE298),0) + IF(Setup!$AI$8<>\"\",INDIRECT(\"'\" & Setup!$AI$8 & \"'!\" & AE298),0) + IF(Setup!$AI$9<>\"\",INDIRECT(\"'\" & Setup!$AI$9 & \"'!\" & AE298),0) + IF(Setup!$AI$10<>\"\",INDIRECT(\"'\" & Setup!$AI$10 & \"'!\" & AE298),0) + IF(Setup!$AI$11<>\"\",INDIRECT(\"'\" & Setup!$AI$11 & \"'!\" & AE298),0) + IF(Setup!$AI$12<>\"\",INDIRECT(\"'\" & Setup!$AI$12 & \"'!\" & AE298),0)","v":{"v":0,"d":"0.00"}},"","",{"$f":"IF(Setup!$AJ$7<>\"\",INDIRECT(\"'\" & Setup!$AJ$7 & \"'!\" & AD298),0) + IF(Setup!$AJ$8<>\"\",INDIRECT(\"'\" & Setup!$AJ$8 & \"'!\" & AD298),0) + IF(Setup!$AJ$9<>\"\",INDIRECT(\"'\" & Setup!$AJ$9 & \"'!\" & AD298),0) + IF(Setup!$AJ$10<>\"\",INDIRECT(\"'\" & Setup!$AJ$10 & \"'!\" & AD298),0) + IF(Setup!$AJ$11<>\"\",INDIRECT(\"'\" & Setup!$AJ$11 & \"'!\" & AD298),0) + IF(Setup!$AJ$12<>\"\",INDIRECT(\"'\" & Setup!$AJ$12 & \"'!\" & AD298),0)","v":0},{"$f":"IF(Setup!$AJ$7<>\"\",INDIRECT(\"'\" & Setup!$AJ$7 & \"'!\" & AE298),0) + IF(Setup!$AJ$8<>\"\",INDIRECT(\"'\" & Setup!$AJ$8 & \"'!\" & AE298),0) + IF(Setup!$AJ$9<>\"\",INDIRECT(\"'\" & Setup!$AJ$9 & \"'!\" & AE298),0) + IF(Setup!$AJ$10<>\"\",INDIRECT(\"'\" & Setup!$AJ$10 & \"'!\" & AE298),0) + IF(Setup!$AJ$11<>\"\",INDIRECT(\"'\" & Setup!$AJ$11 & \"'!\" & AE298),0) + IF(Setup!$AJ$12<>\"\",INDIRECT(\"'\" & Setup!$AJ$12 & \"'!\" & AE298),0)","v":0},"","",{"$f":"Planning!H70","v":0},"00","M86","O86","N86",null,null,{"$f":"IF(Setup!$AG$7<>\"\",INDIRECT(\"'\" & Setup!$AG$7 & \"'!\" & AF298),0) + IF(Setup!$AG$8<>\"\",INDIRECT(\"'\" & Setup!$AG$8 & \"'!\" & AF298),0) + IF(Setup!$AG$9<>\"\",INDIRECT(\"'\" & Setup!$AG$9 & \"'!\" & AF298),0) + IF(Setup!$AG$10<>\"\",INDIRECT(\"'\" & Setup!$AG$10 & \"'!\" & AF298),0) + IF(Setup!$AG$11<>\"\",INDIRECT(\"'\" & Setup!$AG$11 & \"'!\" & AF298),0) + IF(Setup!$AG$12<>\"\",INDIRECT(\"'\" & Setup!$AG$12 & \"'!\" & AF298),0)","v":0},{"$f":"IF(Setup!$AH$7<>\"\",INDIRECT(\"'\" & Setup!$AH$7 & \"'!\" & AF298),0) + IF(Setup!$AH$8<>\"\",INDIRECT(\"'\" & Setup!$AH$8 & \"'!\" & AF298),0) + IF(Setup!$AH$9<>\"\",INDIRECT(\"'\" & Setup!$AH$9 & \"'!\" & AF298),0) + IF(Setup!$AH$10<>\"\",INDIRECT(\"'\" & Setup!$AH$10 & \"'!\" & AF298),0) + IF(Setup!$AH$11<>\"\",INDIRECT(\"'\" & Setup!$AH$11 & \"'!\" & AF298),0) + IF(Setup!$AH$12<>\"\",INDIRECT(\"'\" & Setup!$AH$12 & \"'!\" & AF298),0)","v":0},{"$f":"IF(Setup!$AI$7<>\"\",INDIRECT(\"'\" & Setup!$AI$7 & \"'!\" & AF298),0) + IF(Setup!$AI$8<>\"\",INDIRECT(\"'\" & Setup!$AI$8 & \"'!\" & AF298),0) + IF(Setup!$AI$9<>\"\",INDIRECT(\"'\" & Setup!$AI$9 & \"'!\" & AF298),0) + IF(Setup!$AI$10<>\"\",INDIRECT(\"'\" & Setup!$AI$10 & \"'!\" & AF298),0) + IF(Setup!$AI$11<>\"\",INDIRECT(\"'\" & Setup!$AI$11 & \"'!\" & AF298),0) + IF(Setup!$AI$12<>\"\",INDIRECT(\"'\" & Setup!$AI$12 & \"'!\" & AF298),0)","v":0},{"$f":"IF(Setup!$AJ$7<>\"\",INDIRECT(\"'\" & Setup!$AJ$7 & \"'!\" & AF298),0) + IF(Setup!$AJ$8<>\"\",INDIRECT(\"'\" & Setup!$AJ$8 & \"'!\" & AF298),0) + IF(Setup!$AJ$9<>\"\",INDIRECT(\"'\" & Setup!$AJ$9 & \"'!\" & AF298),0) + IF(Setup!$AJ$10<>\"\",INDIRECT(\"'\" & Setup!$AJ$10 & \"'!\" & AF298),0) + IF(Setup!$AJ$11<>\"\",INDIRECT(\"'\" & Setup!$AJ$11 & \"'!\" & AF298),0) + IF(Setup!$AJ$12<>\"\",INDIRECT(\"'\" & Setup!$AJ$12 & \"'!\" & AF298),0)","v":0},null,"",{"$nulls":30},0,{"$f":"IF(Setup!$AH$7=\"\",0,INDIRECT(\"'\" & Setup!$AH$7 & \"'!\" & AF298))","v":0},{"$f":"IF(Setup!$AI$7=\"\",0,INDIRECT(\"'\" & Setup!$AI$7 & \"'!\" & AF298))","v":0},{"$f":"IF(Setup!$AJ$7=\"\",0,INDIRECT(\"'\" & Setup!$AJ$7 & \"'!\" & AF298))","v":0}]
[{"$f":"Planning!A71","v":"I063"},{"$f":"Planning!B71","v":0},{"$f":"Planning!C71","v":0},{"$f":"Planning!D71","v":0},{"$f":"Planning!E71","v":0},{"$f":"Planning!G71","v":0},0,{"v":0,"d":"0.00"},{"v":0,"d":"0.00"},"","",{"$f":"IF(Setup!$AG$7<>\"\",INDIRECT(\"'\" & Setup!$AG$7 & \"'!\" & AD299),0) + IF(Setup!$AG$8<>\"\",INDIRECT(\"'\" & Setup!$AG$8 & \"'!\" & AD299),0) + IF(Setup!$AG$9<>\"\",INDIRECT(\"'\" & Setup!$AG$9 & \"'!\" & AD299),0) + IF(Setup!$AG$10<>\"\",INDIRECT(\"'\" & Setup!$AG$10 & \"'!\" & AD299),0) + IF(Setup!$AG$11<>\"\",INDIRECT(\"'\" & Setup!$AG$11 & \"'!\" & AD299),0) + IF(Setup!$AG$12<>\"\",INDIRECT(\"'\" & Setup!$AG$12 & \"'!\" & AD299),0)","v":{"v":0,"d":"0.00"}},{"$f":"IF(Setup!$AG$7<>\"\",INDIRECT(\"'\" & Setup!$AG$7 & \"'!\" & AE299),0) + IF(Setup!$AG$8<>\"\",INDIRECT(\"'\" & Setup!$AG$8 & \"'!\" & AE299),0) + IF(Setup!$AG$9<>\"\",INDIRECT(\"'\" & Setup!$AG$9 & \"'!\" & AE299),0) + IF(Setup!$AG$10<>\"\",INDIRECT(\"'\" & Setup!$AG$10 & \"'!\" & AE299),0) + IF(Setup!$AG$11<>\"\",INDIRECT(\"'\" & Setup!$AG$11 & \"'!\" & AE299),0) + IF(Setup!$AG$12<>\"\",INDIRECT(\"'\" & Setup!$AG$12 & \"'!\" & AE299),0)","v":{"v":0,"d":"0.00"}},"","",{"$f":"IF(Setup!$AH$7<>\"\",INDIRECT(\"'\" & Setup!$AH$7 & \"'!\" & AD299),0) + IF(Setup!$AH$8<>\"\",INDIRECT(\"'\" & Setup!$AH$8 & \"'!\" & AD299),0) + IF(Setup!$AH$9<>\"\",INDIRECT(\"'\" & Setup!$AH$9 & \"'!\" & AD299),0) + IF(Setup!$AH$10<>\"\",INDIRECT(\"'\" & Setup!$AH$10 & \"'!\" & AD299),0) + IF(Setup!$AH$11<>\"\",INDIRECT(\"'\" & Setup!$AH$11 & \"'!\" & AD299),0) + IF(Setup!$AH$12<>\"\",INDIRECT(\"'\" & Setup!$AH$12 & \"'!\" & AD299),0)","v":{"v":0,"d":"0.00"}},{"$f":"IF(Setup!$AH$7<>\"\",INDIRECT(\"'\" & Setup!$AH$7 & \"'!\" & AE299),0) + IF(Setup!$AH$8<>\"\",INDIRECT(\"'\" & Setup!$AH$8 & \"'!\" & AE299),0) + IF(Setup!$AH$9<>\"\",INDIRECT(\"'\" & Setup!$AH$9 & \"'!\" & AE299),0) + IF(Setup!$AH$10<>\"\",INDIRECT(\"'\" & Setup!$AH$10 & \"'!\" & AE299),0) + IF(Setup!$AH$11<>\"\",INDIRECT(\"'\" & Setup!$AH$11 & \"'!\" & AE299),0) + IF(Setup!$AH$12<>\"\",INDIRECT(\"'\" & Setup!$AH$12 & \"'!\" & AE299),0)","v":{"v":0,"d":"0.00"}},"","",{"$f":"IF(Setup!$AI$7<>\"\",INDIRECT(\"'\" & Setup!$AI$7 & \"'!\" & AD299),0) + IF(Setup!$AI$8<>\"\",INDIRECT(\"'\" & Setup!$AI$8 & \"'!\" & AD299),0) + IF(Setup!$AI$9<>\"\",INDIRECT(\"'\" & Setup!$AI$9 & \"'!\" & AD299),0) + IF(Setup!$AI$10<>\"\",INDIRECT(\"'\" & Setup!$AI$10 & \"'!\" & AD299),0) + IF(Setup!$AI$11<>\"\",INDIRECT(\"'\" & Setup!$AI$11 & \"'!\" & AD299),0) + IF(Setup!$AI$12<>\"\",INDIRECT(\"'\" & Setup!$AI$12 & \"'!\" & AD299),0)","v":{"v":0,"d":"0.00"}},{"$f":"IF(Setup!$AI$7<>\"\",INDIRECT(\"'\" & Setup!$AI$7 & \"'!\" & AE299),0) + IF(Setup!$AI$8<>\"\",INDIRECT(\"'\" & Setup!$AI$8 & \"'!\" & AE299),0) + IF(Setup!$AI$9<>\"\",INDIRECT(\"'\" & Setup!$AI$9 & \"'!\" & AE299),0) + IF(Setup!$AI$10<>\"\",INDIRECT(\"'\" & Setup!$AI$10 & \"'!\" & AE299),0) + IF(Setup!$AI$11<>\"\",INDIRECT(\"'\" & Setup!$AI$11 & \"'!\" & AE299),0) + IF(Setup!$AI$12<>\"\",INDIRECT(\"'\" & Setup!$AI$12 & \"'!\" & AE299),0)","v":{"v":0,"d":"0.00"}},"","",{"$f":"IF(Setup!$AJ$7<>\"\",INDIRECT(\"'\" & Setup!$AJ$7 & \"'!\" & AD299),0) + IF(Setup!$AJ$8<>\"\",INDIRECT(\"'\" & Setup!$AJ$8 & \"'!\" & AD299),0) + IF(Setup!$AJ$9<>\"\",INDIRECT(\"'\" & Setup!$AJ$9 & \"'!\" & AD299),0) + IF(Setup!$AJ$10<>\"\",INDIRECT(\"'\" & Setup!$AJ$10 & \"'!\" & AD299),0) + IF(Setup!$AJ$11<>\"\",INDIRECT(\"'\" & Setup!$AJ$11 & \"'!\" & AD299),0) + IF(Setup!$AJ$12<>\"\",INDIRECT(\"'\" & Setup!$AJ$12 & \"'!\" & AD299),0)","v":0},{"$f":"IF(Setup!$AJ$7<>\"\",INDIRECT(\"'\" & Setup!$AJ$7 & \"'!\" & AE299),0) + IF(Setup!$AJ$8<>\"\",INDIRECT(\"'\" & Setup!$AJ$8 & \"'!\" & AE299),0) + IF(Setup!$AJ$9<>\"\",INDIRECT(\"'\" & Setup!$AJ$9 & \"'!\" & AE299),0) + IF(Setup!$AJ$10<>\"\",INDIRECT(\"'\" & Setup!$AJ$10 & \"'!\" & AE299),0) + IF(Setup!$AJ$11<>\"\",INDIRECT(\"'\" & Setup!$AJ$11 & \"'!\" & AE299),0) + IF(Setup!$AJ$12<>\"\",INDIRECT(\"'\" & Setup!$AJ$12 & \"'!\" & AE299),0)","v":0},"","",{"$f":"Planning!H71","v":0},"00","M87","O87","N87",null,null,{"$f":"IF(Setup!$AG$7<>\"\",INDIRECT(\"'\" & Setup!$AG$7 & \"'!\" & AF299),0) + IF(Setup!$AG$8<>\"\",INDIRECT(\"'\" & Setup!$AG$8 & \"'!\" & AF299),0) + IF(Setup!$AG$9<>\"\",INDIRECT(\"'\" & Setup!$AG$9 & \"'!\" & AF299),0) + IF(Setup!$AG$10<>\"\",INDIRECT(\"'\" & Setup!$AG$10 & \"'!\" & AF299),0) + IF(Setup!$AG$11<>\"\",INDIRECT(\"'\" & Setup!$AG$11 & \"'!\" & AF299),0) + IF(Setup!$AG$12<>\"\",INDIRECT(\"'\" & Setup!$AG$12 & \"'!\" & AF299),0)","v":0},{"$f":"IF(Setup!$AH$7<>\"\",INDIRECT(\"'\" & Setup!$AH$7 & \"'!\" & AF299),0) + IF(Setup!$AH$8<>\"\",INDIRECT(\"'\" & Setup!$AH$8 & \"'!\" & AF299),0) + IF(Setup!$AH$9<>\"\",INDIRECT(\"'\" & Setup!$AH$9 & \"'!\" & AF299),0) + IF(Setup!$AH$10<>\"\",INDIRECT(\"'\" & Setup!$AH$10 & \"'!\" & AF299),0) + IF(Setup!$AH$11<>\"\",INDIRECT(\"'\" & Setup!$AH$11 & \"'!\" & AF299),0) + IF(Setup!$AH$12<>\"\",INDIRECT(\"'\" & Setup!$AH$12 & \"'!\" & AF299),0)","v":0},{"$f":"IF(Setup!$AI$7<>\"\",INDIRECT(\"'\" & Setup!$AI$7 & \"'!\" & AF299),0) + IF(Setup!$AI$8<>\"\",INDIRECT(\"'\" & Setup!$AI$8 & \"'!\" & AF299),0) + IF(Setup!$AI$9<>\"\",INDIRECT(\"'\" & Setup!$AI$9 & \"'!\" & AF299),0) + IF(Setup!$AI$10<>\"\",INDIRECT(\"'\" & Setup!$AI$10 & \"'!\" & AF299),0) + IF(Setup!$AI$11<>\"\",INDIRECT(\"'\" & Setup!$AI$11 & \"'!\" & AF299),0) + IF(Setup!$AI$12<>\"\",INDIRECT(\"'\" & Setup!$AI$12 & \"'!\" & AF299),0)","v":0},{"$f":"IF(Setup!$AJ$7<>\"\",INDIRECT(\"'\" & Setup!$AJ$7 & \"'!\" & AF299),0) + IF(Setup!$AJ$8<>\"\",INDIRECT(\"'\" & Setup!$AJ$8 & \"'!\" & AF299),0) + IF(Setup!$AJ$9<>\"\",INDIRECT(\"'\" & Setup!$AJ$9 & \"'!\" & AF299),0) + IF(Setup!$AJ$10<>\"\",INDIRECT(\"'\" & Setup!$AJ$10 & \"'!\" & AF299),0) + IF(Setup!$AJ$11<>\"\",INDIRECT(\"'\" & Setup!$AJ$11 & \"'!\" & AF299),0) + IF(Setup!$AJ$12<>\"\",INDIRECT(\"'\" & Setup!$AJ$12 & \"'!\" & AF299),0)","v":0},null,"",{"$nulls":30},0,{"$f":"IF(Setup!$AH$7=\"\",0,INDIRECT(\"'\" & Setup!$AH$7 & \"'!\" & AF299))","v":0},{"$f":"IF(Setup!$AI$7=\"\",0,INDIRECT(\"'\" & Setup!$AI$7 & \"'!\" & AF299))","v":0},{"$f":"IF(Setup!$AJ$7=\"\",0,INDIRECT(\"'\" & Setup!$AJ$7 & \"'!\" & AF299))","v":0}]
[{"$f":"Planning!A72","v":"I064"},{"$f":"Planning!B72","v":0},{"$f":"Planning!C72","v":0},{"$f":"Planning!D72","v":0},{"$f":"Planning!E72","v":0},{"$f":"Planning!G72","v":0},0,{"v":0,"d":"0.00"},{"v":0,"d":"0.00"},"","",{"$f":"IF(Setup!$AG$7<>\"\",INDIRECT(\"'\" & Setup!$AG$7 & \"'!\" & AD300),0) + IF(Setup!$AG$8<>\"\",INDIRECT(\"'\" & Setup!$AG$8 & \"'!\" & AD300),0) + IF(Setup!$AG$9<>\"\",INDIRECT(\"'\" & Setup!$AG$9 & \"'!\" & AD300),0) + IF(Setup!$AG$10<>\"\",INDIRECT(\"'\" & Setup!$AG$10 & \"'!\" & AD300),0) + IF(Setup!$AG$11<>\"\",INDIRECT(\"'\" & Setup!$AG$11 & \"'!\" & AD300),0) + IF(Setup!$AG$12<>\"\",INDIRECT(\"'\" & Setup!$AG$12 & \"'!\" & AD300),0)","v":{"v":0,"d":"0.00"}},{"$f":"IF(Setup!$AG$7<>\"\",INDIRECT(\"'\" & Setup!$AG$7 & \"'!\" & AE300),0) + IF(Setup!$AG$8<>\"\",INDIRECT(\"'\" & Setup!$AG$8 & \"'!\" & AE300),0) + IF(Setup!$AG$9<>\"\",INDIRECT(\"'\" & Setup!$AG$9 & \"'!\" & AE300),0) + IF(Setup!$AG$10<>\"\",INDIRECT(\"'\" & Setup!$AG$10 & \"'!\" & AE300),0) + IF(Setup!$AG$11<>\"\",INDIRECT(\"'\" & Setup!$AG$11 & \"'!\" & AE300),0) + IF(Setup!$AG$12<>\"\",INDIRECT(\"'\" & Setup!$AG$12 & \"'!\" & AE300),0)","v":{"v":0,"d":"0.00"}},"","",{"$f":"IF(Setup!$AH$7<>\"\",INDIRECT(\"'\" & Setup!$AH$7 & \"'!\" & AD300),0) + IF(Setup!$AH$8<>\"\",INDIRECT(\"'\" & Setup!$AH$8 & \"'!\" & AD300),0) + IF(Setup!$AH$9<>\"\",INDIRECT(\"'\" & Setup!$AH$9 & \"'!\" & AD300),0) + IF(Setup!$AH$10<>\"\",INDIRECT(\"'\" & Setup!$AH$10 & \"'!\" & AD300),0) + IF(Setup!$AH$11<>\"\",INDIRECT(\"'\" & Setup!$AH$11 & \"'!\" & AD300),0) + IF(Setup!$AH$12<>\"\",INDIRECT(\"'\" & Setup!$AH$12 & \"'!\" & AD300),0)","v":{"v":0,"d":"0.00"}},{"$f":"IF(Setup!$AH$7<>\"\",INDIRECT(\"'\" & Setup!$AH$7 & \"'!\" & AE300),0) + IF(Setup!$AH$8<>\"\",INDIRECT(\"'\" & Setup!$AH$8 & \"'!\" & AE300),0) + IF(Setup!$AH$9<>\"\",INDIRECT(\"'\" & Setup!$AH$9 & \"'!\" & AE300),0) + IF(Setup!$AH$10<>\"\",INDIRECT(\"'\" & Setup!$AH$10 & \"'!\" & AE300),0) + IF(Setup!$AH$11<>\"\",INDIRECT(\"'\" & Setup!$AH$11 & \"'!\" & AE300),0) + IF(Setup!$AH$12<>\"\",INDIRECT(\"'\" & Setup!$AH$12 & \"'!\" & AE300),0)","v":{"v":0,"d":"0.00"}},"","",{"$f":"IF(Setup!$AI$7<>\"\",INDIRECT(\"'\" & Setup!$AI$7 & \"'!\" & AD300),0) + IF(Setup!$AI$8<>\"\",INDIRECT(\"'\" & Setup!$AI$8 & \"'!\" & AD300),0) + IF(Setup!$AI$9<>\"\",INDIRECT(\"'\" & Setup!$AI$9 & \"'!\" & AD300),0) + IF(Setup!$AI$10<>\"\",INDIRECT(\"'\" & Setup!$AI$10 & \"'!\" & AD300),0) + IF(Setup!$AI$11<>\"\",INDIRECT(\"'\" & Setup!$AI$11 & \"'!\" & AD300),0) + IF(Setup!$AI$12<>\"\",INDIRECT(\"'\" & Setup!$AI$12 & \"'!\" & AD300),0)","v":{"v":0,"d":"0.00"}},{"$f":"IF(Setup!$AI$7<>\"\",INDIRECT(\"'\" & Setup!$AI$7 & \"'!\" & AE300),0) + IF(Setup!$AI$8<>\"\",INDIRECT(\"'\" & Setup!$AI$8 & \"'!\" & AE300),0) + IF(Setup!$AI$9<>\"\",INDIRECT(\"'\" & Setup!$AI$9 & \"'!\" & AE300),0) + IF(Setup!$AI$10<>\"\",INDIRECT(\"'\" & Setup!$AI$10 & \"'!\" & AE300),0) + IF(Setup!$AI$11<>\"\",INDIRECT(\"'\" & Setup!$AI$11 & \"'!\" & AE300),0) + IF(Setup!$AI$12<>\"\",INDIRECT(\"'\" & Setup!$AI$12 & \"'!\" & AE300),0)","v":{"v":0,"d":"0.00"}},"","",{"$f":"IF(Setup!$AJ$7<>\"\",INDIRECT(\"'\" & Setup!$AJ$7 & \"'!\" & AD300),0) + IF(Setup!$AJ$8<>\"\",INDIRECT(\"'\" & Setup!$AJ$8 & \"'!\" & AD300),0) + IF(Setup!$AJ$9<>\"\",INDIRECT(\"'\" & Setup!$AJ$9 & \"'!\" & AD300),0) + IF(Setup!$AJ$10<>\"\",INDIRECT(\"'\" & Setup!$AJ$10 & \"'!\" & AD300),0) + IF(Setup!$AJ$11<>\"\",INDIRECT(\"'\" & Setup!$AJ$11 & \"'!\" & AD300),0) + IF(Setup!$AJ$12<>\"\",INDIRECT(\"'\" & Setup!$AJ$12 & \"'!\" & AD300),0)","v":0},{"$f":"IF(Setup!$AJ$7<>\"\",INDIRECT(\"'\" & Setup!$AJ$7 & \"'!\" & AE300),0) + IF(Setup!$AJ$8<>\"\",INDIRECT(\"'\" & Setup!$AJ$8 & \"'!\" & AE300),0) + IF(Setup!$AJ$9<>\"\",INDIRECT(\"'\" & Setup!$AJ$9 & \"'!\" & AE300),0) + IF(Setup!$AJ$10<>\"\",INDIRECT(\"'\" & Setup!$AJ$10 & \"'!\" & AE300),0) + IF(Setup!$AJ$11<>\"\",INDIRECT(\"'\" & Setup!$AJ$11 & \"'!\" & AE300),0) + IF(Setup!$AJ$12<>\"\",INDIRECT(\"'\" & Setup!$AJ$12 & \"'!\" & AE300),0)","v":0},"","",{"$f":"Planning!H72","v":0},"00","M88","O88","N88",null,null,{"$f":"IF(Setup!$AG$7<>\"\",INDIRECT(\"'\" & Setup!$AG$7 & \"'!\" & AF300),0) + IF(Setup!$AG$8<>\"\",INDIRECT(\"'\" & Setup!$AG$8 & \"'!\" & AF300),0) + IF(Setup!$AG$9<>\"\",INDIRECT(\"'\" & Setup!$AG$9 & \"'!\" & AF300),0) + IF(Setup!$AG$10<>\"\",INDIRECT(\"'\" & Setup!$AG$10 & \"'!\" & AF300),0) + IF(Setup!$AG$11<>\"\",INDIRECT(\"'\" & Setup!$AG$11 & \"'!\" & AF300),0) + IF(Setup!$AG$12<>\"\",INDIRECT(\"'\" & Setup!$AG$12 & \"'!\" & AF300),0)","v":0},{"$f":"IF(Setup!$AH$7<>\"\",INDIRECT(\"'\" & Setup!$AH$7 & \"'!\" & AF300),0) + IF(Setup!$AH$8<>\"\",INDIRECT(\"'\" & Setup!$AH$8 & \"'!\" & AF300),0) + IF(Setup!$AH$9<>\"\",INDIRECT(\"'\" & Setup!$AH$9 & \"'!\" & AF300),0) + IF(Setup!$AH$10<>\"\",INDIRECT(\"'\" & Setup!$AH$10 & \"'!\" & AF300),0) + IF(Setup!$AH$11<>\"\",INDIRECT(\"'\" & Setup!$AH$11 & \"'!\" & AF300),0) + IF(Setup!$AH$12<>\"\",INDIRECT(\"'\" & Setup!$AH$12 & \"'!\" & AF300),0)","v":0},{"$f":"IF(Setup!$AI$7<>\"\",INDIRECT(\"'\" & Setup!$AI$7 & \"'!\" & AF300),0) + IF(Setup!$AI$8<>\"\",INDIRECT(\"'\" & Setup!$AI$8 & \"'!\" & AF300),0) + IF(Setup!$AI$9<>\"\",INDIRECT(\"'\" & Setup!$AI$9 & \"'!\" & AF300),0) + IF(Setup!$AI$10<>\"\",INDIRECT(\"'\" & Setup!$AI$10 & \"'!\" & AF300),0) + IF(Setup!$AI$11<>\"\",INDIRECT(\"'\" & Setup!$AI$11 & \"'!\" & AF300),0) + IF(Setup!$AI$12<>\"\",INDIRECT(\"'\" & Setup!$AI$12 & \"'!\" & AF300),0)","v":0},{"$f":"IF(Setup!$AJ$7<>\"\",INDIRECT(\"'\" & Setup!$AJ$7 & \"'!\" & AF300),0) + IF(Setup!$AJ$8<>\"\",INDIRECT(\"'\" & Setup!$AJ$8 & \"'!\" & AF300),0) + IF(Setup!$AJ$9<>\"\",INDIRECT(\"'\" & Setup!$AJ$9 & \"'!\" & AF300),0) + IF(Setup!$AJ$10<>\"\",INDIRECT(\"'\" & Setup!$AJ$10 & \"'!\" & AF300),0) + IF(Setup!$AJ$11<>\"\",INDIRECT(\"'\" & Setup!$AJ$11 & \"'!\" & AF300),0) + IF(Setup!$AJ$12<>\"\",INDIRECT(\"'\" & Setup!$AJ$12 & \"'!\" & AF300),0)","v":0},null,"",{"$nulls":30},0,{"$f":"IF(Setup!$AH$7=\"\",0,INDIRECT(\"'\" & Setup!$AH$7 & \"'!\" & AF300))","v":0},{"$f":"IF(Setup!$AI$7=\"\",0,INDIRECT(\"'\" & Setup!$AI$7 & \"'!\" & AF300))","v":0},{"$f":"IF(Setup!$AJ$7=\"\",0,INDIRECT(\"'\" & Setup!$AJ$7 & \"'!\" & AF300))","v":0}]
[{"$f":"Planning!A73","v":"I065"},{"$f":"Planning!B73","v":0},{"$f":"Planning!C73","v":0},{"$f":"Planning!D73","v":0},{"$f":"Planning!E73","v":0},{"$f":"Planning!G73","v":0},0,{"v":0,"d":"0.00"},{"v":0,"d":"0.00"},"",{"$f":"IF($AN301 = ExcluirDelPLogro,\"\",IF(AND(H301=0,I301=0),\"\",J301))","v":""},{"$f":"IF(Setup!$AG$7<>\"\",INDIRECT(\"'\" & Setup!$AG$7 & \"'!\" & AD301),0) + IF(Setup!$AG$8<>\"\",INDIRECT(\"'\" & Setup!$AG$8 & \"'!\" & AD301),0) + IF(Setup!$AG$9<>\"\",INDIRECT(\"'\" & Setup!$AG$9 & \"'!\" & AD301),0) + IF(Setup!$AG$10<>\"\",INDIRECT(\"'\" & Setup!$AG$10 & \"'!\" & AD301),0) + IF(Setup!$AG$11<>\"\",INDIRECT(\"'\" & Setup!$AG$11 & \"'!\" & AD301),0) + IF(Setup!$AG$12<>\"\",INDIRECT(\"'\" & Setup!$AG$12 & \"'!\" & AD301),0)","v":{"v":0,"d":"0.00"}},{"$f":"IF(Setup!$AG$7<>\"\",INDIRECT(\"'\" & Setup!$AG$7 & \"'!\" & AE301),0) + IF(Setup!$AG$8<>\"\",INDIRECT(\"'\" & Setup!$AG$8 & \"'!\" & AE301),0) + IF(Setup!$AG$9<>\"\",INDIRECT(\"'\" & Setup!$AG$9 & \"'!\" & AE301),0) + IF(Setup!$AG$10<>\"\",INDIRECT(\"'\" & Setup!$AG$10 & \"'!\" & AE301),0) + IF(Setup!$AG$11<>\"\",INDIRECT(\"'\" & Setup!$AG$11 & \"'!\" & AE301),0) + IF(Setup!$AG$12<>\"\",INDIRECT(\"'\" & Setup!$AG$12 & \"'!\" & AE301),0)","v":{"v":0,"d":"0.00"}},"",{"$f":"IF($AN301=ExcluirDelPLogro,\"\",IF(AND(L301=0,M301=0),\"\",N301))","v":""},{"$f":"IF(Setup!$AH$7<>\"\",INDIRECT(\"'\" & Setup!$AH$7 & \"'!\" & AD301),0) + IF(Setup!$AH$8<>\"\",INDIRECT(\"'\" & Setup!$AH$8 & \"'!\" & AD301),0) + IF(Setup!$AH$9<>\"\",INDIRECT(\"'\" & Setup!$AH$9 & \"'!\" & AD301),0) + IF(Setup!$AH$10<>\"\",INDIRECT(\"'\" & Setup!$AH$10 & \"'!\" & AD301),0) + IF(Setup!$AH$11<>\"\",INDIRECT(\"'\" & Setup!$AH$11 & \"'!\" & AD301),0) + IF(Setup!$AH$12<>\"\",INDIRECT(\"'\" & Setup!$AH$12 & \"'!\" & AD301),0)","v":{"v":0,"d":"0.00"}},{"$f":"IF(Setup!$AH$7<>\"\",INDIRECT(\"'\" & Setup!$AH$7 & \"'!\" & AE301),0) + IF(Setup!$AH$8<>\"\",INDIRECT(\"'\" & Setup!$AH$8 & \"'!\" & AE301),0) + IF(Setup!$AH$9<>\"\",INDIRECT(\"'\" & Setup!$AH$9 & \"'!\" & AE301),0) + IF(Setup!$AH$10<>\"\",INDIRECT(\"'\" & Setup!$AH$10 & \"'!\" & AE301),0) + IF(Setup!$AH$11<>\"\",INDIRECT(\"'\" & Setup!$AH$11 & \"'!\" & AE301),0) + IF(Setup!$AH$12<>\"\",INDIRECT(\"'\" & Setup!$AH$12 & \"'!\" & AE301),0)","v":{"v":0,"d":"0.00"}},"",{"$f":"IF($AN301=ExcluirDelPLogro,\"\",IF(AND(P301=0,Q301=0),\"\",R301))","v":""},{"$f":"IF(Setup!$AI$7<>\"\",INDIRECT(\"'\" & Setup!$AI$7 & \"'!\" & AD301),0) + IF(Setup!$AI$8<>\"\",INDIRECT(\"'\" & Setup!$AI$8 & \"'!\" & AD301),0) + IF(Setup!$AI$9<>\"\",INDIRECT(\"'\" & Setup!$AI$9 & \"'!\" & AD301),0) + IF(Setup!$AI$10<>\"\",INDIRECT(\"'\" & Setup!$AI$10 & \"'!\" & AD301),0) + IF(Setup!$AI$11<>\"\",INDIRECT(\"'\" & Setup!$AI$11 & \"'!\" & AD301),0) + IF(Setup!$AI$12<>\"\",INDIRECT(\"'\" & Setup!$AI$12 & \"'!\" & AD301),0)","v":{"v":0,"d":"0.00"}},{"$f":"IF(Setup!$AI$7<>\"\",INDIRECT(\"'\" & Setup!$AI$7 & \"'!\" & AE301),0) + IF(Setup!$AI$8<>\"\",INDIRECT(\"'\" & Setup!$AI$8 & \"'!\" & AE301),0) + IF(Setup!$AI$9<>\"\",INDIRECT(\"'\" & Setup!$AI$9 & \"'!\" & AE301),0) + IF(Setup!$AI$10<>\"\",INDIRECT(\"'\" & Setup!$AI$10 & \"'!\" & AE301),0) + IF(Setup!$AI$11<>\"\",INDIRECT(\"'\" & Setup!$AI$11 & \"'!\" & AE301),0) + IF(Setup!$AI$12<>\"\",INDIRECT(\"'\" & Setup!$AI$12 & \"'!\" & AE301),0)","v":{"v":0,"d":"0.00"}},{"$f":"IF(AND(T301=0,U301=0),\"\",IF(T301>0,U301/T301,U301))","v":""},{"$f":"IF($AN301=ExcluirDelPLogro,\"\",IF(AND(T301=0,U301=0),\"\",V301))","v":""},{"$f":"IF(Setup!$AJ$7<>\"\",INDIRECT(\"'\" & Setup!$AJ$7 & \"'!\" & AD301),0) + IF(Setup!$AJ$8<>\"\",INDIRECT(\"'\" & Setup!$AJ$8 & \"'!\" & AD301),0) + IF(Setup!$AJ$9<>\"\",INDIRECT(\"'\" & Setup!$AJ$9 & \"'!\" & AD301),0) + IF(Setup!$AJ$10<>\"\",INDIRECT(\"'\" & Setup!$AJ$10 & \"'!\" & AD301),0) + IF(Setup!$AJ$11<>\"\",INDIRECT(\"'\" & Setup!$AJ$11 & \"'!\" & AD301),0) + IF(Setup!$AJ$12<>\"\",INDIRECT(\"'\" & Setup!$AJ$12 & \"'!\" & AD301),0)","v":0},{"$f":"IF(Setup!$AJ$7<>\"\",INDIRECT(\"'\" & Setup!$AJ$7 & \"'!\" & AE301),0) + IF(Setup!$AJ$8<>\"\",INDIRECT(\"'\" & Setup!$AJ$8 & \"'!\" & AE301),0) + IF(Setup!$AJ$9<>\"\",INDIRECT(\"'\" & Setup!$AJ$9 & \"'!\" & AE301),0) + IF(Setup!$AJ$10<>\"\",INDIRECT(\"'\" & Setup!$AJ$10 & \"'!\" & AE301),0) + IF(Setup!$AJ$11<>\"\",INDIRECT(\"'\" & Setup!$AJ$11 & \"'!\" & AE301),0) + IF(Setup!$AJ$12<>\"\",INDIRECT(\"'\" & Setup!$AJ$12 & \"'!\" & AE301),0)","v":0},{"$f":"IF(AND(X301=0,Y301=0),\"\",IF(X301>0,Y301/X301,Y301))","v":""},{"$f":"IF($AN301=ExcluirDelPLogro,\"\",IF(AND(X301=0,Y301=0),\"\",Z301))","v":""},{"$f":"Planning!H73","v":0},{"$f":"LEFT(B301,1)&C301","v":"00"},"M89","O89","N89",null,null,{"$f":"IF(Setup!$AG$7<>\"\",INDIRECT(\"'\" & Setup!$AG$7 & \"'!\" & AF301),0) + IF(Setup!$AG$8<>\"\",INDIRECT(\"'\" & Setup!$AG$8 & \"'!\" & AF301),0) + IF(Setup!$AG$9<>\"\",INDIRECT(\"'\" & Setup!$AG$9 & \"'!\" & AF301),0) + IF(Setup!$AG$10<>\"\",INDIRECT(\"'\" & Setup!$AG$10 & \"'!\" & AF301),0) + IF(Setup!$AG$11<>\"\",INDIRECT(\"'\" & Setup!$AG$11 & \"'!\" & AF301),0) + IF(Setup!$AG$12<>\"\",INDIRECT(\"'\" & Setup!$AG$12 & \"'!\" & AF301),0)","v":0},{"$f":"IF(Setup!$AH$7<>\"\",INDIRECT(\"'\" & Setup!$AH$7 & \"'!\" & AF301),0) + IF(Setup!$AH$8<>\"\",INDIRECT(\"'\" & Setup!$AH$8 & \"'!\" & AF301),0) + IF(Setup!$AH$9<>\"\",INDIRECT(\"'\" & Setup!$AH$9 & \"'!\" & AF301),0) + IF(Setup!$AH$10<>\"\",INDIRECT(\"'\" & Setup!$AH$10 & \"'!\" & AF301),0) + IF(Setup!$AH$11<>\"\",INDIRECT(\"'\" & Setup!$AH$11 & \"'!\" & AF301),0) + IF(Setup!$AH$12<>\"\",INDIRECT(\"'\" & Setup!$AH$12 & \"'!\" & AF301),0)","v":0},{"$f":"IF(Setup!$AI$7<>\"\",INDIRECT(\"'\" & Setup!$AI$7 & \"'!\" & AF301),0) + IF(Setup!$AI$8<>\"\",INDIRECT(\"'\" & Setup!$AI$8 & \"'!\" & AF301),0) + IF(Setup!$AI$9<>\"\",INDIRECT(\"'\" & Setup!$AI$9 & \"'!\" & AF301),0) + IF(Setup!$AI$10<>\"\",INDIRECT(\"'\" & Setup!$AI$10 & \"'!\" & AF301),0) + IF(Setup!$AI$11<>\"\",INDIRECT(\"'\" & Setup!$AI$11 & \"'!\" & AF301),0) + IF(Setup!$AI$12<>\"\",INDIRECT(\"'\" & Setup!$AI$12 & \"'!\" & AF301),0)","v":0},{"$f":"IF(Setup!$AJ$7<>\"\",INDIRECT(\"'\" & Setup!$AJ$7 & \"'!\" & AF301),0) + IF(Setup!$AJ$8<>\"\",INDIRECT(\"'\" & Setup!$AJ$8 & \"'!\" & AF301),0) + IF(Setup!$AJ$9<>\"\",INDIRECT(\"'\" & Setup!$AJ$9 & \"'!\" & AF301),0) + IF(Setup!$AJ$10<>\"\",INDIRECT(\"'\" & Setup!$AJ$10 & \"'!\" & AF301),0) + IF(Setup!$AJ$11<>\"\",INDIRECT(\"'\" & Setup!$AJ$11 & \"'!\" & AF301),0) + IF(Setup!$AJ$12<>\"\",INDIRECT(\"'\" & Setup!$AJ$12 & \"'!\" & AF301),0)","v":0},null,{"$f":"IF(B301=0,\"\",IF(LEFT(B301,1)=\"1\",\"1\",\"2\"))","v":""},{"$nulls":30},0,{"$f":"IF(Setup!$AH$7=\"\",0,INDIRECT(\"'\" & Setup!$AH$7 & \"'!\" & AF301))","v":0},{"$f":"IF(Setup!$AI$7=\"\",0,INDIRECT(\"'\" & Setup!$AI$7 & \"'!\" & AF301))","v":0},{"$f":"IF(Setup!$AJ$7=\"\",0,INDIRECT(\"'\" & Setup!$AJ$7 & \"'!\" & AF301))","v":0}]
[{"$f":"Planning!A74","v":"I066"},{"$f":"Planning!B74","v":0},{"$f":"Planning!C74","v":0},{"$f":"Planning!D74","v":0},{"$f":"Planning!E74","v":0},{"$f":"Planning!G74","v":0},{"$f":"IF(C302<>0,NumObjetivo(C302),0)","v":0},{"$f":"SUM(L302,P302,T302,X302)","v":{"v":0,"d":"0.00"}},{"$f":"SUM(M302,Q302,U302,Y302)","v":{"v":0,"d":"0.00"}},{"$f":"IF(AND(H302=0,I302=0),\"\",IF(H302>0,I302/H302,I302))","v":""},"",{"$f":"IF(Setup!$AG$7<>\"\",INDIRECT(\"'\" & Setup!$AG$7 & \"'!\" & AD302),0) + IF(Setup!$AG$8<>\"\",INDIRECT(\"'\" & Setup!$AG$8 & \"'!\" & AD302),0) + IF(Setup!$AG$9<>\"\",INDIRECT(\"'\" & Setup!$AG$9 & \"'!\" & AD302),0) + IF(Setup!$AG$10<>\"\",INDIRECT(\"'\" & Setup!$AG$10 & \"'!\" & AD302),0) + IF(Setup!$AG$11<>\"\",INDIRECT(\"'\" & Setup!$AG$11 & \"'!\" & AD302),0) + IF(Setup!$AG$12<>\"\",INDIRECT(\"'\" & Setup!$AG$12 & \"'!\" & AD302),0)","v":{"v":0,"d":"0.00"}},{"$f":"IF(Setup!$AG$7<>\"\",INDIRECT(\"'\" & Setup!$AG$7 & \"'!\" & AE302),0) + IF(Setup!$AG$8<>\"\",INDIRECT(\"'\" & Setup!$AG$8 & \"'!\" & AE302),0) + IF(Setup!$AG$9<>\"\",INDIRECT(\"'\" & Setup!$AG$9 & \"'!\" & AE302),0) + IF(Setup!$AG$10<>\"\",INDIRECT(\"'\" & Setup!$AG$10 & \"'!\" & AE302),0) + IF(Setup!$AG$11<>\"\",INDIRECT(\"'\" & Setup!$AG$11 & \"'!\" & AE302),0) + IF(Setup!$AG$12<>\"\",INDIRECT(\"'\" & Setup!$AG$12 & \"'!\" & AE302),0)","v":{"v":0,"d":"0.00"}},{"$f":"IF(AND(L302=0,M302=0),\"\",IF(L302>0,M302/L302,M302))","v":""},"",{"$f":"IF(Setup!$AH$7<>\"\",INDIRECT(\"'\" & Setup!$AH$7 & \"'!\" & AD302),0) + IF(Setup!$AH$8<>\"\",INDIRECT(\"'\" & Setup!$AH$8 & \"'!\" & AD302),0) + IF(Setup!$AH$9<>\"\",INDIRECT(\"'\" & Setup!$AH$9 & \"'!\" & AD302),0) + IF(Setup!$AH$10<>\"\",INDIRECT(\"'\" & Setup!$AH$10 & \"'!\" & AD302),0) + IF(Setup!$AH$11<>\"\",INDIRECT(\"'\" & Setup!$AH$11 & \"'!\" & AD302),0) + IF(Setup!$AH$12<>\"\",INDIRECT(\"'\" & Setup!$AH$12 & \"'!\" & AD302),0)","v":{"v":0,"d":"0.00"}},{"$f":"IF(Setup!$AH$7<>\"\",INDIRECT(\"'\" & Setup!$AH$7 & \"'!\" & AE302),0) + IF(Setup!$AH$8<>\"\",INDIRECT(\"'\" & Setup!$AH$8 & \"'!\" & AE302),0) + IF(Setup!$AH$9<>\"\",INDIRECT(\"'\" & Setup!$AH$9 & \"'!\" & AE302),0) + IF(Setup!$AH$10<>\"\",INDIRECT(\"'\" & Setup!$AH$10 & \"'!\" & AE302),0) + IF(Setup!$AH$11<>\"\",INDIRECT(\"'\" & Setup!$AH$11 & \"'!\" & AE302),0) + IF(Setup!$AH$12<>\"\",INDIRECT(\"'\" & Setup!$AH$12 & \"'!\" & AE302),0)","v":{"v":0,"d":"0.00"}},{"$f":"IF(AND(P302=0,Q302=0),\"\",IF(P302>0,Q302/P302,Q302))","v":""},"",{"$f":"IF(Setup!$AI$7<>\"\",INDIRECT(\"'\" & Setup!$AI$7 & \"'!\" & AD302),0) + IF(Setup!$AI$8<>\"\",INDIRECT(\"'\" & Setup!$AI$8 & \"'!\" & AD302),0) + IF(Setup!$AI$9<>\"\",INDIRECT(\"'\" & Setup!$AI$9 & \"'!\" & AD302),0) + IF(Setup!$AI$10<>\"\",INDIRECT(\"'\" & Setup!$AI$10 & \"'!\" & AD302),0) + IF(Setup!$AI$11<>\"\",INDIRECT(\"'\" & Setup!$AI$11 & \"'!\" & AD302),0) + IF(Setup!$AI$12<>\"\",INDIRECT(\"'\" & Setup!$AI$12 & \"'!\" & AD302),0)","v":{"v":0,"d":"0.00"}},{"$f":"IF(Setup!$AI$7<>\"\",INDIRECT(\"'\" & Setup!$AI$7 & \"'!\" & AE302),0) + IF(Setup!$AI$8<>\"\",INDIRECT(\"'\" & Setup!$AI$8 & \"'!\" & AE302),0) + IF(Setup!$AI$9<>\"\",INDIRECT(\"'\" & Setup!$AI$9 & \"'!\" & AE302),0) + IF(Setup!$AI$10<>\"\",INDIRECT(\"'\" & Setup!$AI$10 & \"'!\" & AE302),0) + IF(Setup!$AI$11<>\"\",INDIRECT(\"'\" & Setup!$AI$11 & \"'!\" & AE302),0) + IF(Setup!$AI$12<>\"\",INDIRECT(\"'\" & Setup!$AI$12 & \"'!\" & AE302),0)","v":{"v":0,"d":"0.00"}},"","",{"$f":"IF(Setup!$AJ$7<>\"\",INDIRECT(\"'\" & Setup!$AJ$7 & \"'!\" & AD302),0) + IF(Setup!$AJ$8<>\"\",INDIRECT(\"'\" & Setup!$AJ$8 & \"'!\" & AD302),0) + IF(Setup!$AJ$9<>\"\",INDIRECT(\"'\" & Setup!$AJ$9 & \"'!\" & AD302),0) + IF(Setup!$AJ$10<>\"\",INDIRECT(\"'\" & Setup!$AJ$10 & \"'!\" & AD302),0) + IF(Setup!$AJ$11<>\"\",INDIRECT(\"'\" & Setup!$AJ$11 & \"'!\" & AD302),0) + IF(Setup!$AJ$12<>\"\",INDIRECT(\"'\" & Setup!$AJ$12 & \"'!\" & AD302),0)","v":0},{"$f":"IF(Setup!$AJ$7<>\"\",INDIRECT(\"'\" & Setup!$AJ$7 & \"'!\" & AE302),0) + IF(Setup!$AJ$8<>\"\",INDIRECT(\"'\" & Setup!$AJ$8 & \"'!\" & AE302),0) + IF(Setup!$AJ$9<>\"\",INDIRECT(\"'\" & Setup!$AJ$9 & \"'!\" & AE302),0) + IF(Setup!$AJ$10<>\"\",INDIRECT(\"'\" & Setup!$AJ$10 & \"'!\" & AE302),0) + IF(Setup!$AJ$11<>\"\",INDIRECT(\"'\" & Setup!$AJ$11 & \"'!\" & AE302),0) + IF(Setup!$AJ$12<>\"\",INDIRECT(\"'\" & Setup!$AJ$12 & \"'!\" & AE302),0)","v":0},"","",{"$f":"Planning!H74","v":0},"00","M90","O90","N90",null,null,{"$f":"IF(Setup!$AG$7<>\"\",INDIRECT(\"'\" & Setup!$AG$7 & \"'!\" & AF302),0) + IF(Setup!$AG$8<>\"\",INDIRECT(\"'\" & Setup!$AG$8 & \"'!\" & AF302),0) + IF(Setup!$AG$9<>\"\",INDIRECT(\"'\" & Setup!$AG$9 & \"'!\" & AF302),0) + IF(Setup!$AG$10<>\"\",INDIRECT(\"'\" & Setup!$AG$10 & \"'!\" & AF302),0) + IF(Setup!$AG$11<>\"\",INDIRECT(\"'\" & Setup!$AG$11 & \"'!\" & AF302),0) + IF(Setup!$AG$12<>\"\",INDIRECT(\"'\" & Setup!$AG$12 & \"'!\" & AF302),0)","v":0},{"$f":"IF(Setup!$AH$7<>\"\",INDIRECT(\"'\" & Setup!$AH$7 & \"'!\" & AF302),0) + IF(Setup!$AH$8<>\"\",INDIRECT(\"'\" & Setup!$AH$8 & \"'!\" & AF302),0) + IF(Setup!$AH$9<>\"\",INDIRECT(\"'\" & Setup!$AH$9 & \"'!\" & AF302),0) + IF(Setup!$AH$10<>\"\",INDIRECT(\"'\" & Setup!$AH$10 & \"'!\" & AF302),0) + IF(Setup!$AH$11<>\"\",INDIRECT(\"'\" & Setup!$AH$11 & \"'!\" & AF302),0) + IF(Setup!$AH$12<>\"\",INDIRECT(\"'\" & Setup!$AH$12 & \"'!\" & AF302),0)","v":0},{"$f":"IF(Setup!$AI$7<>\"\",INDIRECT(\"'\" & Setup!$AI$7 & \"'!\" & AF302),0) + IF(Setup!$AI$8<>\"\",INDIRECT(\"'\" & Setup!$AI$8 & \"'!\" & AF302),0) + IF(Setup!$AI$9<>\"\",INDIRECT(\"'\" & Setup!$AI$9 & \"'!\" & AF302),0) + IF(Setup!$AI$10<>\"\",INDIRECT(\"'\" & Setup!$AI$10 & \"'!\" & AF302),0) + IF(Setup!$AI$11<>\"\",INDIRECT(\"'\" & Setup!$AI$11 & \"'!\" & AF302),0) + IF(Setup!$AI$12<>\"\",INDIRECT(\"'\" & Setup!$AI$12 & \"'!\" & AF302),0)","v":0},{"$f":"IF(Setup!$AJ$7<>\"\",INDIRECT(\"'\" & Setup!$AJ$7 & \"'!\" & AF302),0) + IF(Setup!$AJ$8<>\"\",INDIRECT(\"'\" & Setup!$AJ$8 & \"'!\" & AF302),0) + IF(Setup!$AJ$9<>\"\",INDIRECT(\"'\" & Setup!$AJ$9 & \"'!\" & AF302),0) + IF(Setup!$AJ$10<>\"\",INDIRECT(\"'\" & Setup!$AJ$10 & \"'!\" & AF302),0) + IF(Setup!$AJ$11<>\"\",INDIRECT(\"'\" & Setup!$AJ$11 & \"'!\" & AF302),0) + IF(Setup!$AJ$12<>\"\",INDIRECT(\"'\" & Setup!$AJ$12 & \"'!\" & AF302),0)","v":0},null,"",{"$nulls":30},0,{"$f":"IF(Setup!$AH$7=\"\",0,INDIRECT(\"'\" & Setup!$AH$7 & \"'!\" & AF302))","v":0},{"$f":"IF(Setup!$AI$7=\"\",0,INDIRECT(\"'\" & Setup!$AI$7 & \"'!\" & AF302))","v":0},{"$f":"IF(Setup!$AJ$7=\"\",0,INDIRECT(\"'\" & Setup!$AJ$7 & \"'!\" & AF302))","v":0}]
[{"$f":"Planning!A75","v":"I067"},{"$f":"Planning!B75","v":0},{"$f":"Planning!C75","v":0},{"$f":"Planning!D75","v":0},{"$f":"Planning!E75","v":0},{"$f":"Planning!G75","v":0},0,{"v":0,"d":"0.00"},{"v":0,"d":"0.00"},"","",{"$f":"IF(Setup!$AG$7<>\"\",INDIRECT(\"'\" & Setup!$AG$7 & \"'!\" & AD303),0) + IF(Setup!$AG$8<>\"\",INDIRECT(\"'\" & Setup!$AG$8 & \"'!\" & AD303),0) + IF(Setup!$AG$9<>\"\",INDIRECT(\"'\" & Setup!$AG$9 & \"'!\" & AD303),0) + IF(Setup!$AG$10<>\"\",INDIRECT(\"'\" & Setup!$AG$10 & \"'!\" & AD303),0) + IF(Setup!$AG$11<>\"\",INDIRECT(\"'\" & Setup!$AG$11 & \"'!\" & AD303),0) + IF(Setup!$AG$12<>\"\",INDIRECT(\"'\" & Setup!$AG$12 & \"'!\" & AD303),0)","v":{"v":0,"d":"0.00"}},{"$f":"IF(Setup!$AG$7<>\"\",INDIRECT(\"'\" & Setup!$AG$7 & \"'!\" & AE303),0) + IF(Setup!$AG$8<>\"\",INDIRECT(\"'\" & Setup!$AG$8 & \"'!\" & AE303),0) + IF(Setup!$AG$9<>\"\",INDIRECT(\"'\" & Setup!$AG$9 & \"'!\" & AE303),0) + IF(Setup!$AG$10<>\"\",INDIRECT(\"'\" & Setup!$AG$10 & \"'!\" & AE303),0) + IF(Setup!$AG$11<>\"\",INDIRECT(\"'\" & Setup!$AG$11 & \"'!\" & AE303),0) + IF(Setup!$AG$12<>\"\",INDIRECT(\"'\" & Setup!$AG$12 & \"'!\" & AE303),0)","v":{"v":0,"d":"0.00"}},"","",{"$f":"IF(Setup!$AH$7<>\"\",INDIRECT(\"'\" & Setup!$AH$7 & \"'!\" & AD303),0) + IF(Setup!$AH$8<>\"\",INDIRECT(\"'\" & Setup!$AH$8 & \"'!\" & AD303),0) + IF(Setup!$AH$9<>\"\",INDIRECT(\"'\" & Setup!$AH$9 & \"'!\" & AD303),0) + IF(Setup!$AH$10<>\"\",INDIRECT(\"'\" & Setup!$AH$10 & \"'!\" & AD303),0) + IF(Setup!$AH$11<>\"\",INDIRECT(\"'\" & Setup!$AH$11 & \"'!\" & AD303),0) + IF(Setup!$AH$12<>\"\",INDIRECT(\"'\" & Setup!$AH$12 & \"'!\" & AD303),0)","v":{"v":0,"d":"0.00"}},{"$f":"IF(Setup!$AH$7<>\"\",INDIRECT(\"'\" & Setup!$AH$7 & \"'!\" & AE303),0) + IF(Setup!$AH$8<>\"\",INDIRECT(\"'\" & Setup!$AH$8 & \"'!\" & AE303),0) + IF(Setup!$AH$9<>\"\",INDIRECT(\"'\" & Setup!$AH$9 & \"'!\" & AE303),0) + IF(Setup!$AH$10<>\"\",INDIRECT(\"'\" & Setup!$AH$10 & \"'!\" & AE303),0) + IF(Setup!$AH$11<>\"\",INDIRECT(\"'\" & Setup!$AH$11 & \"'!\" & AE303),0) + IF(Setup!$AH$12<>\"\",INDIRECT(\"'\" & Setup!$AH$12 & \"'!\" & AE303),0)","v":{"v":0,"d":"0.00"}},"","",{"$f":"IF(Setup!$AI$7<>\"\",INDIRECT(\"'\" & Setup!$AI$7 & \"'!\" & AD303),0) + IF(Setup!$AI$8<>\"\",INDIRECT(\"'\" & Setup!$AI$8 & \"'!\" & AD303),0) + IF(Setup!$AI$9<>\"\",INDIRECT(\"'\" & Setup!$AI$9 & \"'!\" & AD303),0) + IF(Setup!$AI$10<>\"\",INDIRECT(\"'\" & Setup!$AI$10 & \"'!\" & AD303),0) + IF(Setup!$AI$11<>\"\",INDIRECT(\"'\" & Setup!$AI$11 & \"'!\" & AD303),0) + IF(Setup!$AI$12<>\"\",INDIRECT(\"'\" & Setup!$AI$12 & \"'!\" & AD303),0)","v":{"v":0,"d":"0.00"}},{"$f":"IF(Setup!$AI$7<>\"\",INDIRECT(\"'\" & Setup!$AI$7 & \"'!\" & AE303),0) + IF(Setup!$AI$8<>\"\",INDIRECT(\"'\" & Setup!$AI$8 & \"'!\" & AE303),0) + IF(Setup!$AI$9<>\"\",INDIRECT(\"'\" & Setup!$AI$9 & \"'!\" & AE303),0) + IF(Setup!$AI$10<>\"\",INDIRECT(\"'\" & Setup!$AI$10 & \"'!\" & AE303),0) + IF(Setup!$AI$11<>\"\",INDIRECT(\"'\" & Setup!$AI$11 & \"'!\" & AE303),0) + IF(Setup!$AI$12<>\"\",INDIRECT(\"'\" & Setup!$AI$12 & \"'!\" & AE303),0)","v":{"v":0,"d":"0.00"}},"","",{"$f":"IF(Setup!$AJ$7<>\"\",INDIRECT(\"'\" & Setup!$AJ$7 & \"'!\" & AD303),0) + IF(Setup!$AJ$8<>\"\",INDIRECT(\"'\" & Setup!$AJ$8 & \"'!\" & AD303),0) + IF(Setup!$AJ$9<>\"\",INDIRECT(\"'\" & Setup!$AJ$9 & \"'!\" & AD303),0) + IF(Setup!$AJ$10<>\"\",INDIRECT(\"'\" & Setup!$AJ$10 & \"'!\" & AD303),0) + IF(Setup!$AJ$11<>\"\",INDIRECT(\"'\" & Setup!$AJ$11 & \"'!\" & AD303),0) + IF(Setup!$AJ$12<>\"\",INDIRECT(\"'\" & Setup!$AJ$12 & \"'!\" & AD303),0)","v":0},{"$f":"IF(Setup!$AJ$7<>\"\",INDIRECT(\"'\" & Setup!$AJ$7 & \"'!\" & AE303),0) + IF(Setup!$AJ$8<>\"\",INDIRECT(\"'\" & Setup!$AJ$8 & \"'!\" & AE303),0) + IF(Setup!$AJ$9<>\"\",INDIRECT(\"'\" & Setup!$AJ$9 & \"'!\" & AE303),0) + IF(Setup!$AJ$10<>\"\",INDIRECT(\"'\" & Setup!$AJ$10 & \"'!\" & AE303),0) + IF(Setup!$AJ$11<>\"\",INDIRECT(\"'\" & Setup!$AJ$11 & \"'!\" & AE303),0) + IF(Setup!$AJ$12<>\"\",INDIRECT(\"'\" & Setup!$AJ$12 & \"'!\" & AE303),0)","v":0},"","",{"$f":"Planning!H75","v":0},"00","M91","O91","N91",null,null,{"$f":"IF(Setup!$AG$7<>\"\",INDIRECT(\"'\" & Setup!$AG$7 & \"'!\" & AF303),0) + IF(Setup!$AG$8<>\"\",INDIRECT(\"'\" & Setup!$AG$8 & \"'!\" & AF303),0) + IF(Setup!$AG$9<>\"\",INDIRECT(\"'\" & Setup!$AG$9 & \"'!\" & AF303),0) + IF(Setup!$AG$10<>\"\",INDIRECT(\"'\" & Setup!$AG$10 & \"'!\" & AF303),0) + IF(Setup!$AG$11<>\"\",INDIRECT(\"'\" & Setup!$AG$11 & \"'!\" & AF303),0) + IF(Setup!$AG$12<>\"\",INDIRECT(\"'\" & Setup!$AG$12 & \"'!\" & AF303),0)","v":0},{"$f":"IF(Setup!$AH$7<>\"\",INDIRECT(\"'\" & Setup!$AH$7 & \"'!\" & AF303),0) + IF(Setup!$AH$8<>\"\",INDIRECT(\"'\" & Setup!$AH$8 & \"'!\" & AF303),0) + IF(Setup!$AH$9<>\"\",INDIRECT(\"'\" & Setup!$AH$9 & \"'!\" & AF303),0) + IF(Setup!$AH$10<>\"\",INDIRECT(\"'\" & Setup!$AH$10 & \"'!\" & AF303),0) + IF(Setup!$AH$11<>\"\",INDIRECT(\"'\" & Setup!$AH$11 & \"'!\" & AF303),0) + IF(Setup!$AH$12<>\"\",INDIRECT(\"'\" & Setup!$AH$12 & \"'!\" & AF303),0)","v":0},{"$f":"IF(Setup!$AI$7<>\"\",INDIRECT(\"'\" & Setup!$AI$7 & \"'!\" & AF303),0) + IF(Setup!$AI$8<>\"\",INDIRECT(\"'\" & Setup!$AI$8 & \"'!\" & AF303),0) + IF(Setup!$AI$9<>\"\",INDIRECT(\"'\" & Setup!$AI$9 & \"'!\" & AF303),0) + IF(Setup!$AI$10<>\"\",INDIRECT(\"'\" & Setup!$AI$10 & \"'!\" & AF303),0) + IF(Setup!$AI$11<>\"\",INDIRECT(\"'\" & Setup!$AI$11 & \"'!\" & AF303),0) + IF(Setup!$AI$12<>\"\",INDIRECT(\"'\" & Setup!$AI$12 & \"'!\" & AF303),0)","v":0},{"$f":"IF(Setup!$AJ$7<>\"\",INDIRECT(\"'\" & Setup!$AJ$7 & \"'!\" & AF303),0) + IF(Setup!$AJ$8<>\"\",INDIRECT(\"'\" & Setup!$AJ$8 & \"'!\" & AF303),0) + IF(Setup!$AJ$9<>\"\",INDIRECT(\"'\" & Setup!$AJ$9 & \"'!\" & AF303),0) + IF(Setup!$AJ$10<>\"\",INDIRECT(\"'\" & Setup!$AJ$10 & \"'!\" & AF303),0) + IF(Setup!$AJ$11<>\"\",INDIRECT(\"'\" & Setup!$AJ$11 & \"'!\" & AF303),0) + IF(Setup!$AJ$12<>\"\",INDIRECT(\"'\" & Setup!$AJ$12 & \"'!\" & AF303),0)","v":0},null,"",{"$nulls":30},0,{"$f":"IF(Setup!$AH$7=\"\",0,INDIRECT(\"'\" & Setup!$AH$7 & \"'!\" & AF303))","v":0},{"$f":"IF(Setup!$AI$7=\"\",0,INDIRECT(\"'\" & Setup!$AI$7 & \"'!\" & AF303))","v":0},{"$f":"IF(Setup!$AJ$7=\"\",0,INDIRECT(\"'\" & Setup!$AJ$7 & \"'!\" & AF303))","v":0}]
[{"$f":"Planning!A76","v":"I068"},{"$f":"Planning!B76","v":0},{"$f":"Planning!C76","v":0},{"$f":"Planning!D76","v":0},{"$f":"Planning!E76","v":0},{"$f":"Planning!G76","v":0},0,{"v":0,"d":"0.00"},{"v":0,"d":"0.00"},"","",{"$f":"IF(Setup!$AG$7<>\"\",INDIRECT(\"'\" & Setup!$AG$7 & \"'!\" & AD304),0) + IF(Setup!$AG$8<>\"\",INDIRECT(\"'\" & Setup!$AG$8 & \"'!\" & AD304),0) + IF(Setup!$AG$9<>\"\",INDIRECT(\"'\" & Setup!$AG$9 & \"'!\" & AD304),0) + IF(Setup!$AG$10<>\"\",INDIRECT(\"'\" & Setup!$AG$10 & \"'!\" & AD304),0) + IF(Setup!$AG$11<>\"\",INDIRECT(\"'\" & Setup!$AG$11 & \"'!\" & AD304),0) + IF(Setup!$AG$12<>\"\",INDIRECT(\"'\" & Setup!$AG$12 & \"'!\" & AD304),0)","v":{"v":0,"d":"0.00"}},{"$f":"IF(Setup!$AG$7<>\"\",INDIRECT(\"'\" & Setup!$AG$7 & \"'!\" & AE304),0) + IF(Setup!$AG$8<>\"\",INDIRECT(\"'\" & Setup!$AG$8 & \"'!\" & AE304),0) + IF(Setup!$AG$9<>\"\",INDIRECT(\"'\" & Setup!$AG$9 & \"'!\" & AE304),0) + IF(Setup!$AG$10<>\"\",INDIRECT(\"'\" & Setup!$AG$10 & \"'!\" & AE304),0) + IF(Setup!$AG$11<>\"\",INDIRECT(\"'\" & Setup!$AG$11 & \"'!\" & AE304),0) + IF(Setup!$AG$12<>\"\",INDIRECT(\"'\" & Setup!$AG$12 & \"'!\" & AE304),0)","v":{"v":0,"d":"0.00"}},"","",{"$f":"IF(Setup!$AH$7<>\"\",INDIRECT(\"'\" & Setup!$AH$7 & \"'!\" & AD304),0) + IF(Setup!$AH$8<>\"\",INDIRECT(\"'\" & Setup!$AH$8 & \"'!\" & AD304),0) + IF(Setup!$AH$9<>\"\",INDIRECT(\"'\" & Setup!$AH$9 & \"'!\" & AD304),0) + IF(Setup!$AH$10<>\"\",INDIRECT(\"'\" & Setup!$AH$10 & \"'!\" & AD304),0) + IF(Setup!$AH$11<>\"\",INDIRECT(\"'\" & Setup!$AH$11 & \"'!\" & AD304),0) + IF(Setup!$AH$12<>\"\",INDIRECT(\"'\" & Setup!$AH$12 & \"'!\" & AD304),0)","v":{"v":0,"d":"0.00"}},{"$f":"IF(Setup!$AH$7<>\"\",INDIRECT(\"'\" & Setup!$AH$7 & \"'!\" & AE304),0) + IF(Setup!$AH$8<>\"\",INDIRECT(\"'\" & Setup!$AH$8 & \"'!\" & AE304),0) + IF(Setup!$AH$9<>\"\",INDIRECT(\"'\" & Setup!$AH$9 & \"'!\" & AE304),0) + IF(Setup!$AH$10<>\"\",INDIRECT(\"'\" & Setup!$AH$10 & \"'!\" & AE304),0) + IF(Setup!$AH$11<>\"\",INDIRECT(\"'\" & Setup!$AH$11 & \"'!\" & AE304),0) + IF(Setup!$AH$12<>\"\",INDIRECT(\"'\" & Setup!$AH$12 & \"'!\" & AE304),0)","v":{"v":0,"d":"0.00"}},"","",{"$f":"IF(Setup!$AI$7<>\"\",INDIRECT(\"'\" & Setup!$AI$7 & \"'!\" & AD304),0) + IF(Setup!$AI$8<>\"\",INDIRECT(\"'\" & Setup!$AI$8 & \"'!\" & AD304),0) + IF(Setup!$AI$9<>\"\",INDIRECT(\"'\" & Setup!$AI$9 & \"'!\" & AD304),0) + IF(Setup!$AI$10<>\"\",INDIRECT(\"'\" & Setup!$AI$10 & \"'!\" & AD304),0) + IF(Setup!$AI$11<>\"\",INDIRECT(\"'\" & Setup!$AI$11 & \"'!\" & AD304),0) + IF(Setup!$AI$12<>\"\",INDIRECT(\"'\" & Setup!$AI$12 & \"'!\" & AD304),0)","v":{"v":0,"d":"0.00"}},{"$f":"IF(Setup!$AI$7<>\"\",INDIRECT(\"'\" & Setup!$AI$7 & \"'!\" & AE304),0) + IF(Setup!$AI$8<>\"\",INDIRECT(\"'\" & Setup!$AI$8 & \"'!\" & AE304),0) + IF(Setup!$AI$9<>\"\",INDIRECT(\"'\" & Setup!$AI$9 & \"'!\" & AE304),0) + IF(Setup!$AI$10<>\"\",INDIRECT(\"'\" & Setup!$AI$10 & \"'!\" & AE304),0) + IF(Setup!$AI$11<>\"\",INDIRECT(\"'\" & Setup!$AI$11 & \"'!\" & AE304),0) + IF(Setup!$AI$12<>\"\",INDIRECT(\"'\" & Setup!$AI$12 & \"'!\" & AE304),0)","v":{"v":0,"d":"0.00"}},"","",{"$f":"IF(Setup!$AJ$7<>\"\",INDIRECT(\"'\" & Setup!$AJ$7 & \"'!\" & AD304),0) + IF(Setup!$AJ$8<>\"\",INDIRECT(\"'\" & Setup!$AJ$8 & \"'!\" & AD304),0) + IF(Setup!$AJ$9<>\"\",INDIRECT(\"'\" & Setup!$AJ$9 & \"'!\" & AD304),0) + IF(Setup!$AJ$10<>\"\",INDIRECT(\"'\" & Setup!$AJ$10 & \"'!\" & AD304),0) + IF(Setup!$AJ$11<>\"\",INDIRECT(\"'\" & Setup!$AJ$11 & \"'!\" & AD304),0) + IF(Setup!$AJ$12<>\"\",INDIRECT(\"'\" & Setup!$AJ$12 & \"'!\" & AD304),0)","v":0},{"$f":"IF(Setup!$AJ$7<>\"\",INDIRECT(\"'\" & Setup!$AJ$7 & \"'!\" & AE304),0) + IF(Setup!$AJ$8<>\"\",INDIRECT(\"'\" & Setup!$AJ$8 & \"'!\" & AE304),0) + IF(Setup!$AJ$9<>\"\",INDIRECT(\"'\" & Setup!$AJ$9 & \"'!\" & AE304),0) + IF(Setup!$AJ$10<>\"\",INDIRECT(\"'\" & Setup!$AJ$10 & \"'!\" & AE304),0) + IF(Setup!$AJ$11<>\"\",INDIRECT(\"'\" & Setup!$AJ$11 & \"'!\" & AE304),0) + IF(Setup!$AJ$12<>\"\",INDIRECT(\"'\" & Setup!$AJ$12 & \"'!\" & AE304),0)","v":0},"","",{"$f":"Planning!H76","v":0},"00","M92","O92","N92",null,null,{"$f":"IF(Setup!$AG$7<>\"\",INDIRECT(\"'\" & Setup!$AG$7 & \"'!\" & AF304),0) + IF(Setup!$AG$8<>\"\",INDIRECT(\"'\" & Setup!$AG$8 & \"'!\" & AF304),0) + IF(Setup!$AG$9<>\"\",INDIRECT(\"'\" & Setup!$AG$9 & \"'!\" & AF304),0) + IF(Setup!$AG$10<>\"\",INDIRECT(\"'\" & Setup!$AG$10 & \"'!\" & AF304),0) + IF(Setup!$AG$11<>\"\",INDIRECT(\"'\" & Setup!$AG$11 & \"'!\" & AF304),0) + IF(Setup!$AG$12<>\"\",INDIRECT(\"'\" & Setup!$AG$12 & \"'!\" & AF304),0)","v":0},{"$f":"IF(Setup!$AH$7<>\"\",INDIRECT(\"'\" & Setup!$AH$7 & \"'!\" & AF304),0) + IF(Setup!$AH$8<>\"\",INDIRECT(\"'\" & Setup!$AH$8 & \"'!\" & AF304),0) + IF(Setup!$AH$9<>\"\",INDIRECT(\"'\" & Setup!$AH$9 & \"'!\" & AF304),0) + IF(Setup!$AH$10<>\"\",INDIRECT(\"'\" & Setup!$AH$10 & \"'!\" & AF304),0) + IF(Setup!$AH$11<>\"\",INDIRECT(\"'\" & Setup!$AH$11 & \"'!\" & AF304),0) + IF(Setup!$AH$12<>\"\",INDIRECT(\"'\" & Setup!$AH$12 & \"'!\" & AF304),0)","v":0},{"$f":"IF(Setup!$AI$7<>\"\",INDIRECT(\"'\" & Setup!$AI$7 & \"'!\" & AF304),0) + IF(Setup!$AI$8<>\"\",INDIRECT(\"'\" & Setup!$AI$8 & \"'!\" & AF304),0) + IF(Setup!$AI$9<>\"\",INDIRECT(\"'\" & Setup!$AI$9 & \"'!\" & AF304),0) + IF(Setup!$AI$10<>\"\",INDIRECT(\"'\" & Setup!$AI$10 & \"'!\" & AF304),0) + IF(Setup!$AI$11<>\"\",INDIRECT(\"'\" & Setup!$AI$11 & \"'!\" & AF304),0) + IF(Setup!$AI$12<>\"\",INDIRECT(\"'\" & Setup!$AI$12 & \"'!\" & AF304),0)","v":0},{"$f":"IF(Setup!$AJ$7<>\"\",INDIRECT(\"'\" & Setup!$AJ$7 & \"'!\" & AF304),0) + IF(Setup!$AJ$8<>\"\",INDIRECT(\"'\" & Setup!$AJ$8 & \"'!\" & AF304),0) + IF(Setup!$AJ$9<>\"\",INDIRECT(\"'\" & Setup!$AJ$9 & \"'!\" & AF304),0) + IF(Setup!$AJ$10<>\"\",INDIRECT(\"'\" & Setup!$AJ$10 & \"'!\" & AF304),0) + IF(Setup!$AJ$11<>\"\",INDIRECT(\"'\" & Setup!$AJ$11 & \"'!\" & AF304),0) + IF(Setup!$AJ$12<>\"\",INDIRECT(\"'\" & Setup!$AJ$12 & \"'!\" & AF304),0)","v":0},null,"",{"$nulls":30},0,{"$f":"IF(Setup!$AH$7=\"\",0,INDIRECT(\"'\" & Setup!$AH$7 & \"'!\" & AF304))","v":0},{"$f":"IF(Setup!$AI$7=\"\",0,INDIRECT(\"'\" & Setup!$AI$7 & \"'!\" & AF304))","v":0},{"$f":"IF(Setup!$AJ$7=\"\",0,INDIRECT(\"'\" & Setup!$AJ$7 & \"'!\" & AF304))","v":0}]
[{"$f":"Planning!A77","v":"I069"},{"$f":"Planning!B77","v":0},{"$f":"Planning!C77","v":0},{"$f":"Planning!D77","v":0},{"$f":"Planning!E77","v":0},{"$f":"Planning!G77","v":0},0,{"v":0,"d":"0.00"},{"v":0,"d":"0.00"},"","",{"$f":"IF(Setup!$AG$7<>\"\",INDIRECT(\"'\" & Setup!$AG$7 & \"'!\" & AD305),0) + IF(Setup!$AG$8<>\"\",INDIRECT(\"'\" & Setup!$AG$8 & \"'!\" & AD305),0) + IF(Setup!$AG$9<>\"\",INDIRECT(\"'\" & Setup!$AG$9 & \"'!\" & AD305),0) + IF(Setup!$AG$10<>\"\",INDIRECT(\"'\" & Setup!$AG$10 & \"'!\" & AD305),0) + IF(Setup!$AG$11<>\"\",INDIRECT(\"'\" & Setup!$AG$11 & \"'!\" & AD305),0) + IF(Setup!$AG$12<>\"\",INDIRECT(\"'\" & Setup!$AG$12 & \"'!\" & AD305),0)","v":{"v":0,"d":"0.00"}},{"$f":"IF(Setup!$AG$7<>\"\",INDIRECT(\"'\" & Setup!$AG$7 & \"'!\" & AE305),0) + IF(Setup!$AG$8<>\"\",INDIRECT(\"'\" & Setup!$AG$8 & \"'!\" & AE305),0) + IF(Setup!$AG$9<>\"\",INDIRECT(\"'\" & Setup!$AG$9 & \"'!\" & AE305),0) + IF(Setup!$AG$10<>\"\",INDIRECT(\"'\" & Setup!$AG$10 & \"'!\" & AE305),0) + IF(Setup!$AG$11<>\"\",INDIRECT(\"'\" & Setup!$AG$11 & \"'!\" & AE305),0) + IF(Setup!$AG$12<>\"\",INDIRECT(\"'\" & Setup!$AG$12 & \"'!\" & AE305),0)","v":{"v":0,"d":"0.00"}},"","",{"$f":"IF(Setup!$AH$7<>\"\",INDIRECT(\"'\" & Setup!$AH$7 & \"'!\" & AD305),0) + IF(Setup!$AH$8<>\"\",INDIRECT(\"'\" & Setup!$AH$8 & \"'!\" & AD305),0) + IF(Setup!$AH$9<>\"\",INDIRECT(\"'\" & Setup!$AH$9 & \"'!\" & AD305),0) + IF(Setup!$AH$10<>\"\",INDIRECT(\"'\" & Setup!$AH$10 & \"'!\" & AD305),0) + IF(Setup!$AH$11<>\"\",INDIRECT(\"'\" & Setup!$AH$11 & \"'!\" & AD305),0) + IF(Setup!$AH$12<>\"\",INDIRECT(\"'\" & Setup!$AH$12 & \"'!\" & AD305),0)","v":{"v":0,"d":"0.00"}},{"$f":"IF(Setup!$AH$7<>\"\",INDIRECT(\"'\" & Setup!$AH$7 & \"'!\" & AE305),0) + IF(Setup!$AH$8<>\"\",INDIRECT(\"'\" & Setup!$AH$8 & \"'!\" & AE305),0) + IF(Setup!$AH$9<>\"\",INDIRECT(\"'\" & Setup!$AH$9 & \"'!\" & AE305),0) + IF(Setup!$AH$10<>\"\",INDIRECT(\"'\" & Setup!$AH$10 & \"'!\" & AE305),0) + IF(Setup!$AH$11<>\"\",INDIRECT(\"'\" & Setup!$AH$11 & \"'!\" & AE305),0) + IF(Setup!$AH$12<>\"\",INDIRECT(\"'\" & Setup!$AH$12 & \"'!\" & AE305),0)","v":{"v":0,"d":"0.00"}},"","",{"$f":"IF(Setup!$AI$7<>\"\",INDIRECT(\"'\" & Setup!$AI$7 & \"'!\" & AD305),0) + IF(Setup!$AI$8<>\"\",INDIRECT(\"'\" & Setup!$AI$8 & \"'!\" & AD305),0) + IF(Setup!$AI$9<>\"\",INDIRECT(\"'\" & Setup!$AI$9 & \"'!\" & AD305),0) + IF(Setup!$AI$10<>\"\",INDIRECT(\"'\" & Setup!$AI$10 & \"'!\" & AD305),0) + IF(Setup!$AI$11<>\"\",INDIRECT(\"'\" & Setup!$AI$11 & \"'!\" & AD305),0) + IF(Setup!$AI$12<>\"\",INDIRECT(\"'\" & Setup!$AI$12 & \"'!\" & AD305),0)","v":{"v":0,"d":"0.00"}},{"$f":"IF(Setup!$AI$7<>\"\",INDIRECT(\"'\" & Setup!$AI$7 & \"'!\" & AE305),0) + IF(Setup!$AI$8<>\"\",INDIRECT(\"'\" & Setup!$AI$8 & \"'!\" & AE305),0) + IF(Setup!$AI$9<>\"\",INDIRECT(\"'\" & Setup!$AI$9 & \"'!\" & AE305),0) + IF(Setup!$AI$10<>\"\",INDIRECT(\"'\" & Setup!$AI$10 & \"'!\" & AE305),0) + IF(Setup!$AI$11<>\"\",INDIRECT(\"'\" & Setup!$AI$11 & \"'!\" & AE305),0) + IF(Setup!$AI$12<>\"\",INDIRECT(\"'\" & Setup!$AI$12 & \"'!\" & AE305),0)","v":{"v":0,"d":"0.00"}},"","",{"$f":"IF(Setup!$AJ$7<>\"\",INDIRECT(\"'\" & Setup!$AJ$7 & \"'!\" & AD305),0) + IF(Setup!$AJ$8<>\"\",INDIRECT(\"'\" & Setup!$AJ$8 & \"'!\" & AD305),0) + IF(Setup!$AJ$9<>\"\",INDIRECT(\"'\" & Setup!$AJ$9 & \"'!\" & AD305),0) + IF(Setup!$AJ$10<>\"\",INDIRECT(\"'\" & Setup!$AJ$10 & \"'!\" & AD305),0) + IF(Setup!$AJ$11<>\"\",INDIRECT(\"'\" & Setup!$AJ$11 & \"'!\" & AD305),0) + IF(Setup!$AJ$12<>\"\",INDIRECT(\"'\" & Setup!$AJ$12 & \"'!\" & AD305),0)","v":0},{"$f":"IF(Setup!$AJ$7<>\"\",INDIRECT(\"'\" & Setup!$AJ$7 & \"'!\" & AE305),0) + IF(Setup!$AJ$8<>\"\",INDIRECT(\"'\" & Setup!$AJ$8 & \"'!\" & AE305),0) + IF(Setup!$AJ$9<>\"\",INDIRECT(\"'\" & Setup!$AJ$9 & \"'!\" & AE305),0) + IF(Setup!$AJ$10<>\"\",INDIRECT(\"'\" & Setup!$AJ$10 & \"'!\" & AE305),0) + IF(Setup!$AJ$11<>\"\",INDIRECT(\"'\" & Setup!$AJ$11 & \"'!\" & AE305),0) + IF(Setup!$AJ$12<>\"\",INDIRECT(\"'\" & Setup!$AJ$12 & \"'!\" & AE305),0)","v":0},"","",{"$f":"Planning!H77","v":0},"00","M93","O93","N93",null,null,{"$f":"IF(Setup!$AG$7<>\"\",INDIRECT(\"'\" & Setup!$AG$7 & \"'!\" & AF305),0) + IF(Setup!$AG$8<>\"\",INDIRECT(\"'\" & Setup!$AG$8 & \"'!\" & AF305),0) + IF(Setup!$AG$9<>\"\",INDIRECT(\"'\" & Setup!$AG$9 & \"'!\" & AF305),0) + IF(Setup!$AG$10<>\"\",INDIRECT(\"'\" & Setup!$AG$10 & \"'!\" & AF305),0) + IF(Setup!$AG$11<>\"\",INDIRECT(\"'\" & Setup!$AG$11 & \"'!\" & AF305),0) + IF(Setup!$AG$12<>\"\",INDIRECT(\"'\" & Setup!$AG$12 & \"'!\" & AF305),0)","v":0},{"$f":"IF(Setup!$AH$7<>\"\",INDIRECT(\"'\" & Setup!$AH$7 & \"'!\" & AF305),0) + IF(Setup!$AH$8<>\"\",INDIRECT(\"'\" & Setup!$AH$8 & \"'!\" & AF305),0) + IF(Setup!$AH$9<>\"\",INDIRECT(\"'\" & Setup!$AH$9 & \"'!\" & AF305),0) + IF(Setup!$AH$10<>\"\",INDIRECT(\"'\" & Setup!$AH$10 & \"'!\" & AF305),0) + IF(Setup!$AH$11<>\"\",INDIRECT(\"'\" & Setup!$AH$11 & \"'!\" & AF305),0) + IF(Setup!$AH$12<>\"\",INDIRECT(\"'\" & Setup!$AH$12 & \"'!\" & AF305),0)","v":0},{"$f":"IF(Setup!$AI$7<>\"\",INDIRECT(\"'\" & Setup!$AI$7 & \"'!\" & AF305),0) + IF(Setup!$AI$8<>\"\",INDIRECT(\"'\" & Setup!$AI$8 & \"'!\" & AF305),0) + IF(Setup!$AI$9<>\"\",INDIRECT(\"'\" & Setup!$AI$9 & \"'!\" & AF305),0) + IF(Setup!$AI$10<>\"\",INDIRECT(\"'\" & Setup!$AI$10 & \"'!\" & AF305),0) + IF(Setup!$AI$11<>\"\",INDIRECT(\"'\" & Setup!$AI$11 & \"'!\" & AF305),0) + IF(Setup!$AI$12<>\"\",INDIRECT(\"'\" & Setup!$AI$12 & \"'!\" & AF305),0)","v":0},{"$f":"IF(Setup!$AJ$7<>\"\",INDIRECT(\"'\" & Setup!$AJ$7 & \"'!\" & AF305),0) + IF(Setup!$AJ$8<>\"\",INDIRECT(\"'\" & Setup!$AJ$8 & \"'!\" & AF305),0) + IF(Setup!$AJ$9<>\"\",INDIRECT(\"'\" & Setup!$AJ$9 & \"'!\" & AF305),0) + IF(Setup!$AJ$10<>\"\",INDIRECT(\"'\" & Setup!$AJ$10 & \"'!\" & AF305),0) + IF(Setup!$AJ$11<>\"\",INDIRECT(\"'\" & Setup!$AJ$11 & \"'!\" & AF305),0) + IF(Setup!$AJ$12<>\"\",INDIRECT(\"'\" & Setup!$AJ$12 & \"'!\" & AF305),0)","v":0},null,"",{"$nulls":30},0,{"$f":"IF(Setup!$AH$7=\"\",0,INDIRECT(\"'\" & Setup!$AH$7 & \"'!\" & AF305))","v":0},{"$f":"IF(Setup!$AI$7=\"\",0,INDIRECT(\"'\" & Setup!$AI$7 & \"'!\" & AF305))","v":0},{"$f":"IF(Setup!$AJ$7=\"\",0,INDIRECT(\"'\" & Setup!$AJ$7 & \"'!\" & AF305))","v":0}]
[{"$f":"Planning!A78","v":"I070"},{"$f":"Planning!B78","v":0},{"$f":"Planning!C78","v":0},{"$f":"Planning!D78","v":0},{"$f":"Planning!E78","v":0},{"$f":"Planning!G78","v":0},0,{"v":0,"d":"0.00"},{"v":0,"d":"0.00"},"","",{"$f":"IF(Setup!$AG$7<>\"\",INDIRECT(\"'\" & Setup!$AG$7 & \"'!\" & AD306),0) + IF(Setup!$AG$8<>\"\",INDIRECT(\"'\" & Setup!$AG$8 & \"'!\" & AD306),0) + IF(Setup!$AG$9<>\"\",INDIRECT(\"'\" & Setup!$AG$9 & \"'!\" & AD306),0) + IF(Setup!$AG$10<>\"\",INDIRECT(\"'\" & Setup!$AG$10 & \"'!\" & AD306),0) + IF(Setup!$AG$11<>\"\",INDIRECT(\"'\" & Setup!$AG$11 & \"'!\" & AD306),0) + IF(Setup!$AG$12<>\"\",INDIRECT(\"'\" & Setup!$AG$12 & \"'!\" & AD306),0)","v":{"v":0,"d":"0.00"}},{"$f":"IF(Setup!$AG$7<>\"\",INDIRECT(\"'\" & Setup!$AG$7 & \"'!\" & AE306),0) + IF(Setup!$AG$8<>\"\",INDIRECT(\"'\" & Setup!$AG$8 & \"'!\" & AE306),0) + IF(Setup!$AG$9<>\"\",INDIRECT(\"'\" & Setup!$AG$9 & \"'!\" & AE306),0) + IF(Setup!$AG$10<>\"\",INDIRECT(\"'\" & Setup!$AG$10 & \"'!\" & AE306),0) + IF(Setup!$AG$11<>\"\",INDIRECT(\"'\" & Setup!$AG$11 & \"'!\" & AE306),0) + IF(Setup!$AG$12<>\"\",INDIRECT(\"'\" & Setup!$AG$12 & \"'!\" & AE306),0)","v":{"v":0,"d":"0.00"}},"","",{"$f":"IF(Setup!$AH$7<>\"\",INDIRECT(\"'\" & Setup!$AH$7 & \"'!\" & AD306),0) + IF(Setup!$AH$8<>\"\",INDIRECT(\"'\" & Setup!$AH$8 & \"'!\" & AD306),0) + IF(Setup!$AH$9<>\"\",INDIRECT(\"'\" & Setup!$AH$9 & \"'!\" & AD306),0) + IF(Setup!$AH$10<>\"\",INDIRECT(\"'\" & Setup!$AH$10 & \"'!\" & AD306),0) + IF(Setup!$AH$11<>\"\",INDIRECT(\"'\" & Setup!$AH$11 & \"'!\" & AD306),0) + IF(Setup!$AH$12<>\"\",INDIRECT(\"'\" & Setup!$AH$12 & \"'!\" & AD306),0)","v":{"v":0,"d":"0.00"}},{"$f":"IF(Setup!$AH$7<>\"\",INDIRECT(\"'\" & Setup!$AH$7 & \"'!\" & AE306),0) + IF(Setup!$AH$8<>\"\",INDIRECT(\"'\" & Setup!$AH$8 & \"'!\" & AE306),0) + IF(Setup!$AH$9<>\"\",INDIRECT(\"'\" & Setup!$AH$9 & \"'!\" & AE306),0) + IF(Setup!$AH$10<>\"\",INDIRECT(\"'\" & Setup!$AH$10 & \"'!\" & AE306),0) + IF(Setup!$AH$11<>\"\",INDIRECT(\"'\" & Setup!$AH$11 & \"'!\" & AE306),0) + IF(Setup!$AH$12<>\"\",INDIRECT(\"'\" & Setup!$AH$12 & \"'!\" & AE306),0)","v":{"v":0,"d":"0.00"}},"","",{"$f":"IF(Setup!$AI$7<>\"\",INDIRECT(\"'\" & Setup!$AI$7 & \"'!\" & AD306),0) + IF(Setup!$AI$8<>\"\",INDIRECT(\"'\" & Setup!$AI$8 & \"'!\" & AD306),0) + IF(Setup!$AI$9<>\"\",INDIRECT(\"'\" & Setup!$AI$9 & \"'!\" & AD306),0) + IF(Setup!$AI$10<>\"\",INDIRECT(\"'\" & Setup!$AI$10 & \"'!\" & AD306),0) + IF(Setup!$AI$11<>\"\",INDIRECT(\"'\" & Setup!$AI$11 & \"'!\" & AD306),0) + IF(Setup!$AI$12<>\"\",INDIRECT(\"'\" & Setup!$AI$12 & \"'!\" & AD306),0)","v":{"v":0,"d":"0.00"}},{"$f":"IF(Setup!$AI$7<>\"\",INDIRECT(\"'\" & Setup!$AI$7 & \"'!\" & AE306),0) + IF(Setup!$AI$8<>\"\",INDIRECT(\"'\" & Setup!$AI$8 & \"'!\" & AE306),0) + IF(Setup!$AI$9<>\"\",INDIRECT(\"'\" & Setup!$AI$9 & \"'!\" & AE306),0) + IF(Setup!$AI$10<>\"\",INDIRECT(\"'\" & Setup!$AI$10 & \"'!\" & AE306),0) + IF(Setup!$AI$11<>\"\",INDIRECT(\"'\" & Setup!$AI$11 & \"'!\" & AE306),0) + IF(Setup!$AI$12<>\"\",INDIRECT(\"'\" & Setup!$AI$12 & \"'!\" & AE306),0)","v":{"v":0,"d":"0.00"}},"","",{"$f":"IF(Setup!$AJ$7<>\"\",INDIRECT(\"'\" & Setup!$AJ$7 & \"'!\" & AD306),0) + IF(Setup!$AJ$8<>\"\",INDIRECT(\"'\" & Setup!$AJ$8 & \"'!\" & AD306),0) + IF(Setup!$AJ$9<>\"\",INDIRECT(\"'\" & Setup!$AJ$9 & \"'!\" & AD306),0) + IF(Setup!$AJ$10<>\"\",INDIRECT(\"'\" & Setup!$AJ$10 & \"'!\" & AD306),0) + IF(Setup!$AJ$11<>\"\",INDIRECT(\"'\" & Setup!$AJ$11 & \"'!\" & AD306),0) + IF(Setup!$AJ$12<>\"\",INDIRECT(\"'\" & Setup!$AJ$12 & \"'!\" & AD306),0)","v":0},{"$f":"IF(Setup!$AJ$7<>\"\",INDIRECT(\"'\" & Setup!$AJ$7 & \"'!\" & AE306),0) + IF(Setup!$AJ$8<>\"\",INDIRECT(\"'\" & Setup!$AJ$8 & \"'!\" & AE306),0) + IF(Setup!$AJ$9<>\"\",INDIRECT(\"'\" & Setup!$AJ$9 & \"'!\" & AE306),0) + IF(Setup!$AJ$10<>\"\",INDIRECT(\"'\" & Setup!$AJ$10 & \"'!\" & AE306),0) + IF(Setup!$AJ$11<>\"\",INDIRECT(\"'\" & Setup!$AJ$11 & \"'!\" & AE306),0) + IF(Setup!$AJ$12<>\"\",INDIRECT(\"'\" & Setup!$AJ$12 & \"'!\" & AE306),0)","v":0},"","",{"$f":"Planning!H78","v":0},"00","M94","O94","N94",null,null,{"$f":"IF(Setup!$AG$7<>\"\",INDIRECT(\"'\" & Setup!$AG$7 & \"'!\" & AF306),0) + IF(Setup!$AG$8<>\"\",INDIRECT(\"'\" & Setup!$AG$8 & \"'!\" & AF306),0) + IF(Setup!$AG$9<>\"\",INDIRECT(\"'\" & Setup!$AG$9 & \"'!\" & AF306),0) + IF(Setup!$AG$10<>\"\",INDIRECT(\"'\" & Setup!$AG$10 & \"'!\" & AF306),0) + IF(Setup!$AG$11<>\"\",INDIRECT(\"'\" & Setup!$AG$11 & \"'!\" & AF306),0) + IF(Setup!$AG$12<>\"\",INDIRECT(\"'\" & Setup!$AG$12 & \"'!\" & AF306),0)","v":0},{"$f":"IF(Setup!$AH$7<>\"\",INDIRECT(\"'\" & Setup!$AH$7 & \"'!\" & AF306),0) + IF(Setup!$AH$8<>\"\",INDIRECT(\"'\" & Setup!$AH$8 & \"'!\" & AF306),0) + IF(Setup!$AH$9<>\"\",INDIRECT(\"'\" & Setup!$AH$9 & \"'!\" & AF306),0) + IF(Setup!$AH$10<>\"\",INDIRECT(\"'\" & Setup!$AH$10 & \"'!\" & AF306),0) + IF(Setup!$AH$11<>\"\",INDIRECT(\"'\" & Setup!$AH$11 & \"'!\" & AF306),0) + IF(Setup!$AH$12<>\"\",INDIRECT(\"'\" & Setup!$AH$12 & \"'!\" & AF306),0)","v":0},{"$f":"IF(Setup!$AI$7<>\"\",INDIRECT(\"'\" & Setup!$AI$7 & \"'!\" & AF306),0) + IF(Setup!$AI$8<>\"\",INDIRECT(\"'\" & Setup!$AI$8 & \"'!\" & AF306),0) + IF(Setup!$AI$9<>\"\",INDIRECT(\"'\" & Setup!$AI$9 & \"'!\" & AF306),0) + IF(Setup!$AI$10<>\"\",INDIRECT(\"'\" & Setup!$AI$10 & \"'!\" & AF306),0) + IF(Setup!$AI$11<>\"\",INDIRECT(\"'\" & Setup!$AI$11 & \"'!\" & AF306),0) + IF(Setup!$AI$12<>\"\",INDIRECT(\"'\" & Setup!$AI$12 & \"'!\" & AF306),0)","v":0},{"$f":"IF(Setup!$AJ$7<>\"\",INDIRECT(\"'\" & Setup!$AJ$7 & \"'!\" & AF306),0) + IF(Setup!$AJ$8<>\"\",INDIRECT(\"'\" & Setup!$AJ$8 & \"'!\" & AF306),0) + IF(Setup!$AJ$9<>\"\",INDIRECT(\"'\" & Setup!$AJ$9 & \"'!\" & AF306),0) + IF(Setup!$AJ$10<>\"\",INDIRECT(\"'\" & Setup!$AJ$10 & \"'!\" & AF306),0) + IF(Setup!$AJ$11<>\"\",INDIRECT(\"'\" & Setup!$AJ$11 & \"'!\" & AF306),0) + IF(Setup!$AJ$12<>\"\",INDIRECT(\"'\" & Setup!$AJ$12 & \"'!\" & AF306),0)","v":0},null,"",{"$nulls":30},0,{"$f":"IF(Setup!$AH$7=\"\",0,INDIRECT(\"'\" & Setup!$AH$7 & \"'!\" & AF306))","v":0},{"$f":"IF(Setup!$AI$7=\"\",0,INDIRECT(\"'\" & Setup!$AI$7 & \"'!\" & AF306))","v":0},{"$f":"IF(Setup!$AJ$7=\"\",0,INDIRECT(\"'\" & Setup!$AJ$7 & \"'!\" & AF306))","v":0}]
[{"$f":"Planning!A79","v":"I071"},{"$f":"Planning!B79","v":0},{"$f":"Planning!C79","v":0},{"$f":"Planning!D79","v":0},{"$f":"Planning!E79","v":0},{"$f":"Planning!G79","v":0},0,{"v":0,"d":"0.00"},{"v":0,"d":"0.00"},"","",{"$f":"IF(Setup!$AG$7<>\"\",INDIRECT(\"'\" & Setup!$AG$7 & \"'!\" & AD307),0) + IF(Setup!$AG$8<>\"\",INDIRECT(\"'\" & Setup!$AG$8 & \"'!\" & AD307),0) + IF(Setup!$AG$9<>\"\",INDIRECT(\"'\" & Setup!$AG$9 & \"'!\" & AD307),0) + IF(Setup!$AG$10<>\"\",INDIRECT(\"'\" & Setup!$AG$10 & \"'!\" & AD307),0) + IF(Setup!$AG$11<>\"\",INDIRECT(\"'\" & Setup!$AG$11 & \"'!\" & AD307),0) + IF(Setup!$AG$12<>\"\",INDIRECT(\"'\" & Setup!$AG$12 & \"'!\" & AD307),0)","v":{"v":0,"d":"0.00"}},{"$f":"IF(Setup!$AG$7<>\"\",INDIRECT(\"'\" & Setup!$AG$7 & \"'!\" & AE307),0) + IF(Setup!$AG$8<>\"\",INDIRECT(\"'\" & Setup!$AG$8 & \"'!\" & AE307),0) + IF(Setup!$AG$9<>\"\",INDIRECT(\"'\" & Setup!$AG$9 & \"'!\" & AE307),0) + IF(Setup!$AG$10<>\"\",INDIRECT(\"'\" & Setup!$AG$10 & \"'!\" & AE307),0) + IF(Setup!$AG$11<>\"\",INDIRECT(\"'\" & Setup!$AG$11 & \"'!\" & AE307),0) + IF(Setup!$AG$12<>\"\",INDIRECT(\"'\" & Setup!$AG$12 & \"'!\" & AE307),0)","v":{"v":0,"d":"0.00"}},"","",{"$f":"IF(Setup!$AH$7<>\"\",INDIRECT(\"'\" & Setup!$AH$7 & \"'!\" & AD307),0) + IF(Setup!$AH$8<>\"\",INDIRECT(\"'\" & Setup!$AH$8 & \"'!\" & AD307),0) + IF(Setup!$AH$9<>\"\",INDIRECT(\"'\" & Setup!$AH$9 & \"'!\" & AD307),0) + IF(Setup!$AH$10<>\"\",INDIRECT(\"'\" & Setup!$AH$10 & \"'!\" & AD307),0) + IF(Setup!$AH$11<>\"\",INDIRECT(\"'\" & Setup!$AH$11 & \"'!\" & AD307),0) + IF(Setup!$AH$12<>\"\",INDIRECT(\"'\" & Setup!$AH$12 & \"'!\" & AD307),0)","v":{"v":0,"d":"0.00"}},{"$f":"IF(Setup!$AH$7<>\"\",INDIRECT(\"'\" & Setup!$AH$7 & \"'!\" & AE307),0) + IF(Setup!$AH$8<>\"\",INDIRECT(\"'\" & Setup!$AH$8 & \"'!\" & AE307),0) + IF(Setup!$AH$9<>\"\",INDIRECT(\"'\" & Setup!$AH$9 & \"'!\" & AE307),0) + IF(Setup!$AH$10<>\"\",INDIRECT(\"'\" & Setup!$AH$10 & \"'!\" & AE307),0) + IF(Setup!$AH$11<>\"\",INDIRECT(\"'\" & Setup!$AH$11 & \"'!\" & AE307),0) + IF(Setup!$AH$12<>\"\",INDIRECT(\"'\" & Setup!$AH$12 & \"'!\" & AE307),0)","v":{"v":0,"d":"0.00"}},"","",{"$f":"IF(Setup!$AI$7<>\"\",INDIRECT(\"'\" & Setup!$AI$7 & \"'!\" & AD307),0) + IF(Setup!$AI$8<>\"\",INDIRECT(\"'\" & Setup!$AI$8 & \"'!\" & AD307),0) + IF(Setup!$AI$9<>\"\",INDIRECT(\"'\" & Setup!$AI$9 & \"'!\" & AD307),0) + IF(Setup!$AI$10<>\"\",INDIRECT(\"'\" & Setup!$AI$10 & \"'!\" & AD307),0) + IF(Setup!$AI$11<>\"\",INDIRECT(\"'\" & Setup!$AI$11 & \"'!\" & AD307),0) + IF(Setup!$AI$12<>\"\",INDIRECT(\"'\" & Setup!$AI$12 & \"'!\" & AD307),0)","v":{"v":0,"d":"0.00"}},{"$f":"IF(Setup!$AI$7<>\"\",INDIRECT(\"'\" & Setup!$AI$7 & \"'!\" & AE307),0) + IF(Setup!$AI$8<>\"\",INDIRECT(\"'\" & Setup!$AI$8 & \"'!\" & AE307),0) + IF(Setup!$AI$9<>\"\",INDIRECT(\"'\" & Setup!$AI$9 & \"'!\" & AE307),0) + IF(Setup!$AI$10<>\"\",INDIRECT(\"'\" & Setup!$AI$10 & \"'!\" & AE307),0) + IF(Setup!$AI$11<>\"\",INDIRECT(\"'\" & Setup!$AI$11 & \"'!\" & AE307),0) + IF(Setup!$AI$12<>\"\",INDIRECT(\"'\" & Setup!$AI$12 & \"'!\" & AE307),0)","v":{"v":0,"d":"0.00"}},"","",{"$f":"IF(Setup!$AJ$7<>\"\",INDIRECT(\"'\" & Setup!$AJ$7 & \"'!\" & AD307),0) + IF(Setup!$AJ$8<>\"\",INDIRECT(\"'\" & Setup!$AJ$8 & \"'!\" & AD307),0) + IF(Setup!$AJ$9<>\"\",INDIRECT(\"'\" & Setup!$AJ$9 & \"'!\" & AD307),0) + IF(Setup!$AJ$10<>\"\",INDIRECT(\"'\" & Setup!$AJ$10 & \"'!\" & AD307),0) + IF(Setup!$AJ$11<>\"\",INDIRECT(\"'\" & Setup!$AJ$11 & \"'!\" & AD307),0) + IF(Setup!$AJ$12<>\"\",INDIRECT(\"'\" & Setup!$AJ$12 & \"'!\" & AD307),0)","v":0},{"$f":"IF(Setup!$AJ$7<>\"\",INDIRECT(\"'\" & Setup!$AJ$7 & \"'!\" & AE307),0) + IF(Setup!$AJ$8<>\"\",INDIRECT(\"'\" & Setup!$AJ$8 & \"'!\" & AE307),0) + IF(Setup!$AJ$9<>\"\",INDIRECT(\"'\" & Setup!$AJ$9 & \"'!\" & AE307),0) + IF(Setup!$AJ$10<>\"\",INDIRECT(\"'\" & Setup!$AJ$10 & \"'!\" & AE307),0) + IF(Setup!$AJ$11<>\"\",INDIRECT(\"'\" & Setup!$AJ$11 & \"'!\" & AE307),0) + IF(Setup!$AJ$12<>\"\",INDIRECT(\"'\" & Setup!$AJ$12 & \"'!\" & AE307),0)","v":0},"","",{"$f":"Planning!H79","v":0},"00","M95","O95","N95",null,null,{"$f":"IF(Setup!$AG$7<>\"\",INDIRECT(\"'\" & Setup!$AG$7 & \"'!\" & AF307),0) + IF(Setup!$AG$8<>\"\",INDIRECT(\"'\" & Setup!$AG$8 & \"'!\" & AF307),0) + IF(Setup!$AG$9<>\"\",INDIRECT(\"'\" & Setup!$AG$9 & \"'!\" & AF307),0) + IF(Setup!$AG$10<>\"\",INDIRECT(\"'\" & Setup!$AG$10 & \"'!\" & AF307),0) + IF(Setup!$AG$11<>\"\",INDIRECT(\"'\" & Setup!$AG$11 & \"'!\" & AF307),0) + IF(Setup!$AG$12<>\"\",INDIRECT(\"'\" & Setup!$AG$12 & \"'!\" & AF307),0)","v":0},{"$f":"IF(Setup!$AH$7<>\"\",INDIRECT(\"'\" & Setup!$AH$7 & \"'!\" & AF307),0) + IF(Setup!$AH$8<>\"\",INDIRECT(\"'\" & Setup!$AH$8 & \"'!\" & AF307),0) + IF(Setup!$AH$9<>\"\",INDIRECT(\"'\" & Setup!$AH$9 & \"'!\" & AF307),0) + IF(Setup!$AH$10<>\"\",INDIRECT(\"'\" & Setup!$AH$10 & \"'!\" & AF307),0) + IF(Setup!$AH$11<>\"\",INDIRECT(\"'\" & Setup!$AH$11 & \"'!\" & AF307),0) + IF(Setup!$AH$12<>\"\",INDIRECT(\"'\" & Setup!$AH$12 & \"'!\" & AF307),0)","v":0},{"$f":"IF(Setup!$AI$7<>\"\",INDIRECT(\"'\" & Setup!$AI$7 & \"'!\" & AF307),0) + IF(Setup!$AI$8<>\"\",INDIRECT(\"'\" & Setup!$AI$8 & \"'!\" & AF307),0) + IF(Setup!$AI$9<>\"\",INDIRECT(\"'\" & Setup!$AI$9 & \"'!\" & AF307),0) + IF(Setup!$AI$10<>\"\",INDIRECT(\"'\" & Setup!$AI$10 & \"'!\" & AF307),0) + IF(Setup!$AI$11<>\"\",INDIRECT(\"'\" & Setup!$AI$11 & \"'!\" & AF307),0) + IF(Setup!$AI$12<>\"\",INDIRECT(\"'\" & Setup!$AI$12 & \"'!\" & AF307),0)","v":0},{"$f":"IF(Setup!$AJ$7<>\"\",INDIRECT(\"'\" & Setup!$AJ$7 & \"'!\" & AF307),0) + IF(Setup!$AJ$8<>\"\",INDIRECT(\"'\" & Setup!$AJ$8 & \"'!\" & AF307),0) + IF(Setup!$AJ$9<>\"\",INDIRECT(\"'\" & Setup!$AJ$9 & \"'!\" & AF307),0) + IF(Setup!$AJ$10<>\"\",INDIRECT(\"'\" & Setup!$AJ$10 & \"'!\" & AF307),0) + IF(Setup!$AJ$11<>\"\",INDIRECT(\"'\" & Setup!$AJ$11 & \"'!\" & AF307),0) + IF(Setup!$AJ$12<>\"\",INDIRECT(\"'\" & Setup!$AJ$12 & \"'!\" & AF307),0)","v":0},null,"",{"$nulls":30},0,{"$f":"IF(Setup!$AH$7=\"\",0,INDIRECT(\"'\" & Setup!$AH$7 & \"'!\" & AF307))","v":0},{"$f":"IF(Setup!$AI$7=\"\",0,INDIRECT(\"'\" & Setup!$AI$7 & \"'!\" & AF307))","v":0},{"$f":"IF(Setup!$AJ$7=\"\",0,INDIRECT(\"'\" & Setup!$AJ$7 & \"'!\" & AF307))","v":0}]
[{"$f":"Planning!A80","v":"I072"},{"$f":"Planning!B80","v":0},{"$f":"Planning!C80","v":0},{"$f":"Planning!D80","v":0},{"$f":"Planning!E80","v":0},{"$f":"Planning!G80","v":0},0,{"v":0,"d":"0.00"},{"v":0,"d":"0.00"},"","",{"$f":"IF(Setup!$AG$7<>\"\",INDIRECT(\"'\" & Setup!$AG$7 & \"'!\" & AD308),0) + IF(Setup!$AG$8<>\"\",INDIRECT(\"'\" & Setup!$AG$8 & \"'!\" & AD308),0) + IF(Setup!$AG$9<>\"\",INDIRECT(\"'\" & Setup!$AG$9 & \"'!\" & AD308),0) + IF(Setup!$AG$10<>\"\",INDIRECT(\"'\" & Setup!$AG$10 & \"'!\" & AD308),0) + IF(Setup!$AG$11<>\"\",INDIRECT(\"'\" & Setup!$AG$11 & \"'!\" & AD308),0) + IF(Setup!$AG$12<>\"\",INDIRECT(\"'\" & Setup!$AG$12 & \"'!\" & AD308),0)","v":{"v":0,"d":"0.00"}},{"$f":"IF(Setup!$AG$7<>\"\",INDIRECT(\"'\" & Setup!$AG$7 & \"'!\" & AE308),0) + IF(Setup!$AG$8<>\"\",INDIRECT(\"'\" & Setup!$AG$8 & \"'!\" & AE308),0) + IF(Setup!$AG$9<>\"\",INDIRECT(\"'\" & Setup!$AG$9 & \"'!\" & AE308),0) + IF(Setup!$AG$10<>\"\",INDIRECT(\"'\" & Setup!$AG$10 & \"'!\" & AE308),0) + IF(Setup!$AG$11<>\"\",INDIRECT(\"'\" & Setup!$AG$11 & \"'!\" & AE308),0) + IF(Setup!$AG$12<>\"\",INDIRECT(\"'\" & Setup!$AG$12 & \"'!\" & AE308),0)","v":{"v":0,"d":"0.00"}},"","",{"$f":"IF(Setup!$AH$7<>\"\",INDIRECT(\"'\" & Setup!$AH$7 & \"'!\" & AD308),0) + IF(Setup!$AH$8<>\"\",INDIRECT(\"'\" & Setup!$AH$8 & \"'!\" & AD308),0) + IF(Setup!$AH$9<>\"\",INDIRECT(\"'\" & Setup!$AH$9 & \"'!\" & AD308),0) + IF(Setup!$AH$10<>\"\",INDIRECT(\"'\" & Setup!$AH$10 & \"'!\" & AD308),0) + IF(Setup!$AH$11<>\"\",INDIRECT(\"'\" & Setup!$AH$11 & \"'!\" & AD308),0) + IF(Setup!$AH$12<>\"\",INDIRECT(\"'\" & Setup!$AH$12 & \"'!\" & AD308),0)","v":{"v":0,"d":"0.00"}},{"$f":"IF(Setup!$AH$7<>\"\",INDIRECT(\"'\" & Setup!$AH$7 & \"'!\" & AE308),0) + IF(Setup!$AH$8<>\"\",INDIRECT(\"'\" & Setup!$AH$8 & \"'!\" & AE308),0) + IF(Setup!$AH$9<>\"\",INDIRECT(\"'\" & Setup!$AH$9 & \"'!\" & AE308),0) + IF(Setup!$AH$10<>\"\",INDIRECT(\"'\" & Setup!$AH$10 & \"'!\" & AE308),0) + IF(Setup!$AH$11<>\"\",INDIRECT(\"'\" & Setup!$AH$11 & \"'!\" & AE308),0) + IF(Setup!$AH$12<>\"\",INDIRECT(\"'\" & Setup!$AH$12 & \"'!\" & AE308),0)","v":{"v":0,"d":"0.00"}},"","",{"$f":"IF(Setup!$AI$7<>\"\",INDIRECT(\"'\" & Setup!$AI$7 & \"'!\" & AD308),0) + IF(Setup!$AI$8<>\"\",INDIRECT(\"'\" & Setup!$AI$8 & \"'!\" & AD308),0) + IF(Setup!$AI$9<>\"\",INDIRECT(\"'\" & Setup!$AI$9 & \"'!\" & AD308),0) + IF(Setup!$AI$10<>\"\",INDIRECT(\"'\" & Setup!$AI$10 & \"'!\" & AD308),0) + IF(Setup!$AI$11<>\"\",INDIRECT(\"'\" & Setup!$AI$11 & \"'!\" & AD308),0) + IF(Setup!$AI$12<>\"\",INDIRECT(\"'\" & Setup!$AI$12 & \"'!\" & AD308),0)","v":{"v":0,"d":"0.00"}},{"$f":"IF(Setup!$AI$7<>\"\",INDIRECT(\"'\" & Setup!$AI$7 & \"'!\" & AE308),0) + IF(Setup!$AI$8<>\"\",INDIRECT(\"'\" & Setup!$AI$8 & \"'!\" & AE308),0) + IF(Setup!$AI$9<>\"\",INDIRECT(\"'\" & Setup!$AI$9 & \"'!\" & AE308),0) + IF(Setup!$AI$10<>\"\",INDIRECT(\"'\" & Setup!$AI$10 & \"'!\" & AE308),0) + IF(Setup!$AI$11<>\"\",INDIRECT(\"'\" & Setup!$AI$11 & \"'!\" & AE308),0) + IF(Setup!$AI$12<>\"\",INDIRECT(\"'\" & Setup!$AI$12 & \"'!\" & AE308),0)","v":{"v":0,"d":"0.00"}},"","",{"$f":"IF(Setup!$AJ$7<>\"\",INDIRECT(\"'\" & Setup!$AJ$7 & \"'!\" & AD308),0) + IF(Setup!$AJ$8<>\"\",INDIRECT(\"'\" & Setup!$AJ$8 & \"'!\" & AD308),0) + IF(Setup!$AJ$9<>\"\",INDIRECT(\"'\" & Setup!$AJ$9 & \"'!\" & AD308),0) + IF(Setup!$AJ$10<>\"\",INDIRECT(\"'\" & Setup!$AJ$10 & \"'!\" & AD308),0) + IF(Setup!$AJ$11<>\"\",INDIRECT(\"'\" & Setup!$AJ$11 & \"'!\" & AD308),0) + IF(Setup!$AJ$12<>\"\",INDIRECT(\"'\" & Setup!$AJ$12 & \"'!\" & AD308),0)","v":0},{"$f":"IF(Setup!$AJ$7<>\"\",INDIRECT(\"'\" & Setup!$AJ$7 & \"'!\" & AE308),0) + IF(Setup!$AJ$8<>\"\",INDIRECT(\"'\" & Setup!$AJ$8 & \"'!\" & AE308),0) + IF(Setup!$AJ$9<>\"\",INDIRECT(\"'\" & Setup!$AJ$9 & \"'!\" & AE308),0) + IF(Setup!$AJ$10<>\"\",INDIRECT(\"'\" & Setup!$AJ$10 & \"'!\" & AE308),0) + IF(Setup!$AJ$11<>\"\",INDIRECT(\"'\" & Setup!$AJ$11 & \"'!\" & AE308),0) + IF(Setup!$AJ$12<>\"\",INDIRECT(\"'\" & Setup!$AJ$12 & \"'!\" & AE308),0)","v":0},"","",{"$f":"Planning!H80","v":0},"00","M96","O96","N96",null,null,{"$f":"IF(Setup!$AG$7<>\"\",INDIRECT(\"'\" & Setup!$AG$7 & \"'!\" & AF308),0) + IF(Setup!$AG$8<>\"\",INDIRECT(\"'\" & Setup!$AG$8 & \"'!\" & AF308),0) + IF(Setup!$AG$9<>\"\",INDIRECT(\"'\" & Setup!$AG$9 & \"'!\" & AF308),0) + IF(Setup!$AG$10<>\"\",INDIRECT(\"'\" & Setup!$AG$10 & \"'!\" & AF308),0) + IF(Setup!$AG$11<>\"\",INDIRECT(\"'\" & Setup!$AG$11 & \"'!\" & AF308),0) + IF(Setup!$AG$12<>\"\",INDIRECT(\"'\" & Setup!$AG$12 & \"'!\" & AF308),0)","v":0},{"$f":"IF(Setup!$AH$7<>\"\",INDIRECT(\"'\" & Setup!$AH$7 & \"'!\" & AF308),0) + IF(Setup!$AH$8<>\"\",INDIRECT(\"'\" & Setup!$AH$8 & \"'!\" & AF308),0) + IF(Setup!$AH$9<>\"\",INDIRECT(\"'\" & Setup!$AH$9 & \"'!\" & AF308),0) + IF(Setup!$AH$10<>\"\",INDIRECT(\"'\" & Setup!$AH$10 & \"'!\" & AF308),0) + IF(Setup!$AH$11<>\"\",INDIRECT(\"'\" & Setup!$AH$11 & \"'!\" & AF308),0) + IF(Setup!$AH$12<>\"\",INDIRECT(\"'\" & Setup!$AH$12 & \"'!\" & AF308),0)","v":0},{"$f":"IF(Setup!$AI$7<>\"\",INDIRECT(\"'\" & Setup!$AI$7 & \"'!\" & AF308),0) + IF(Setup!$AI$8<>\"\",INDIRECT(\"'\" & Setup!$AI$8 & \"'!\" & AF308),0) + IF(Setup!$AI$9<>\"\",INDIRECT(\"'\" & Setup!$AI$9 & \"'!\" & AF308),0) + IF(Setup!$AI$10<>\"\",INDIRECT(\"'\" & Setup!$AI$10 & \"'!\" & AF308),0) + IF(Setup!$AI$11<>\"\",INDIRECT(\"'\" & Setup!$AI$11 & \"'!\" & AF308),0) + IF(Setup!$AI$12<>\"\",INDIRECT(\"'\" & Setup!$AI$12 & \"'!\" & AF308),0)","v":0},{"$f":"IF(Setup!$AJ$7<>\"\",INDIRECT(\"'\" & Setup!$AJ$7 & \"'!\" & AF308),0) + IF(Setup!$AJ$8<>\"\",INDIRECT(\"'\" & Setup!$AJ$8 & \"'!\" & AF308),0) + IF(Setup!$AJ$9<>\"\",INDIRECT(\"'\" & Setup!$AJ$9 & \"'!\" & AF308),0) + IF(Setup!$AJ$10<>\"\",INDIRECT(\"'\" & Setup!$AJ$10 & \"'!\" & AF308),0) + IF(Setup!$AJ$11<>\"\",INDIRECT(\"'\" & Setup!$AJ$11 & \"'!\" & AF308),0) + IF(Setup!$AJ$12<>\"\",INDIRECT(\"'\" & Setup!$AJ$12 & \"'!\" & AF308),0)","v":0},null,"",{"$nulls":30},0,{"$f":"IF(Setup!$AH$7=\"\",0,INDIRECT(\"'\" & Setup!$AH$7 & \"'!\" & AF308))","v":0},{"$f":"IF(Setup!$AI$7=\"\",0,INDIRECT(\"'\" & Setup!$AI$7 & \"'!\" & AF308))","v":0},{"$f":"IF(Setup!$AJ$7=\"\",0,INDIRECT(\"'\" & Setup!$AJ$7 & \"'!\" & AF308))","v":0}]
[{"$f":"Planning!A81","v":"I073"},{"$f":"Planning!B81","v":0},{"$f":"Planning!C81","v":0},{"$f":"Planning!D81","v":0},{"$f":"Planning!E81","v":0},{"$f":"Planning!G81","v":0},0,{"v":0,"d":"0.00"},{"v":0,"d":"0.00"},"","",{"$f":"IF(Setup!$AG$7<>\"\",INDIRECT(\"'\" & Setup!$AG$7 & \"'!\" & AD309),0) + IF(Setup!$AG$8<>\"\",INDIRECT(\"'\" & Setup!$AG$8 & \"'!\" & AD309),0) + IF(Setup!$AG$9<>\"\",INDIRECT(\"'\" & Setup!$AG$9 & \"'!\" & AD309),0) + IF(Setup!$AG$10<>\"\",INDIRECT(\"'\" & Setup!$AG$10 & \"'!\" & AD309),0) + IF(Setup!$AG$11<>\"\",INDIRECT(\"'\" & Setup!$AG$11 & \"'!\" & AD309),0) + IF(Setup!$AG$12<>\"\",INDIRECT(\"'\" & Setup!$AG$12 & \"'!\" & AD309),0)","v":{"v":0,"d":"0.00"}},{"$f":"IF(Setup!$AG$7<>\"\",INDIRECT(\"'\" & Setup!$AG$7 & \"'!\" & AE309),0) + IF(Setup!$AG$8<>\"\",INDIRECT(\"'\" & Setup!$AG$8 & \"'!\" & AE309),0) + IF(Setup!$AG$9<>\"\",INDIRECT(\"'\" & Setup!$AG$9 & \"'!\" & AE309),0) + IF(Setup!$AG$10<>\"\",INDIRECT(\"'\" & Setup!$AG$10 & \"'!\" & AE309),0) + IF(Setup!$AG$11<>\"\",INDIRECT(\"'\" & Setup!$AG$11 & \"'!\" & AE309),0) + IF(Setup!$AG$12<>\"\",INDIRECT(\"'\" & Setup!$AG$12 & \"'!\" & AE309),0)","v":{"v":0,"d":"0.00"}},"","",{"$f":"IF(Setup!$AH$7<>\"\",INDIRECT(\"'\" & Setup!$AH$7 & \"'!\" & AD309),0) + IF(Setup!$AH$8<>\"\",INDIRECT(\"'\" & Setup!$AH$8 & \"'!\" & AD309),0) + IF(Setup!$AH$9<>\"\",INDIRECT(\"'\" & Setup!$AH$9 & \"'!\" & AD309),0) + IF(Setup!$AH$10<>\"\",INDIRECT(\"'\" & Setup!$AH$10 & \"'!\" & AD309),0) + IF(Setup!$AH$11<>\"\",INDIRECT(\"'\" & Setup!$AH$11 & \"'!\" & AD309),0) + IF(Setup!$AH$12<>\"\",INDIRECT(\"'\" & Setup!$AH$12 & \"'!\" & AD309),0)","v":{"v":0,"d":"0.00"}},{"$f":"IF(Setup!$AH$7<>\"\",INDIRECT(\"'\" & Setup!$AH$7 & \"'!\" & AE309),0) + IF(Setup!$AH$8<>\"\",INDIRECT(\"'\" & Setup!$AH$8 & \"'!\" & AE309),0) + IF(Setup!$AH$9<>\"\",INDIRECT(\"'\" & Setup!$AH$9 & \"'!\" & AE309),0) + IF(Setup!$AH$10<>\"\",INDIRECT(\"'\" & Setup!$AH$10 & \"'!\" & AE309),0) + IF(Setup!$AH$11<>\"\",INDIRECT(\"'\" & Setup!$AH$11 & \"'!\" & AE309),0) + IF(Setup!$AH$12<>\"\",INDIRECT(\"'\" & Setup!$AH$12 & \"'!\" & AE309),0)","v":{"v":0,"d":"0.00"}},"","",{"$f":"IF(Setup!$AI$7<>\"\",INDIRECT(\"'\" & Setup!$AI$7 & \"'!\" & AD309),0) + IF(Setup!$AI$8<>\"\",INDIRECT(\"'\" & Setup!$AI$8 & \"'!\" & AD309),0) + IF(Setup!$AI$9<>\"\",INDIRECT(\"'\" & Setup!$AI$9 & \"'!\" & AD309),0) + IF(Setup!$AI$10<>\"\",INDIRECT(\"'\" & Setup!$AI$10 & \"'!\" & AD309),0) + IF(Setup!$AI$11<>\"\",INDIRECT(\"'\" & Setup!$AI$11 & \"'!\" & AD309),0) + IF(Setup!$AI$12<>\"\",INDIRECT(\"'\" & Setup!$AI$12 & \"'!\" & AD309),0)","v":{"v":0,"d":"0.00"}},{"$f":"IF(Setup!$AI$7<>\"\",INDIRECT(\"'\" & Setup!$AI$7 & \"'!\" & AE309),0) + IF(Setup!$AI$8<>\"\",INDIRECT(\"'\" & Setup!$AI$8 & \"'!\" & AE309),0) + IF(Setup!$AI$9<>\"\",INDIRECT(\"'\" & Setup!$AI$9 & \"'!\" & AE309),0) + IF(Setup!$AI$10<>\"\",INDIRECT(\"'\" & Setup!$AI$10 & \"'!\" & AE309),0) + IF(Setup!$AI$11<>\"\",INDIRECT(\"'\" & Setup!$AI$11 & \"'!\" & AE309),0) + IF(Setup!$AI$12<>\"\",INDIRECT(\"'\" & Setup!$AI$12 & \"'!\" & AE309),0)","v":{"v":0,"d":"0.00"}},"","",{"$f":"IF(Setup!$AJ$7<>\"\",INDIRECT(\"'\" & Setup!$AJ$7 & \"'!\" & AD309),0) + IF(Setup!$AJ$8<>\"\",INDIRECT(\"'\" & Setup!$AJ$8 & \"'!\" & AD309),0) + IF(Setup!$AJ$9<>\"\",INDIRECT(\"'\" & Setup!$AJ$9 & \"'!\" & AD309),0) + IF(Setup!$AJ$10<>\"\",INDIRECT(\"'\" & Setup!$AJ$10 & \"'!\" & AD309),0) + IF(Setup!$AJ$11<>\"\",INDIRECT(\"'\" & Setup!$AJ$11 & \"'!\" & AD309),0) + IF(Setup!$AJ$12<>\"\",INDIRECT(\"'\" & Setup!$AJ$12 & \"'!\" & AD309),0)","v":0},{"$f":"IF(Setup!$AJ$7<>\"\",INDIRECT(\"'\" & Setup!$AJ$7 & \"'!\" & AE309),0) + IF(Setup!$AJ$8<>\"\",INDIRECT(\"'\" & Setup!$AJ$8 & \"'!\" & AE309),0) + IF(Setup!$AJ$9<>\"\",INDIRECT(\"'\" & Setup!$AJ$9 & \"'!\" & AE309),0) + IF(Setup!$AJ$10<>\"\",INDIRECT(\"'\" & Setup!$AJ$10 & \"'!\" & AE309),0) + IF(Setup!$AJ$11<>\"\",INDIRECT(\"'\" & Setup!$AJ$11 & \"'!\" & AE309),0) + IF(Setup!$AJ$12<>\"\",INDIRECT(\"'\" & Setup!$AJ$12 & \"'!\" & AE309),0)","v":0},"","",{"$f":"Planning!H81","v":0},"00","M97","O97","N97",null,null,{"$f":"IF(Setup!$AG$7<>\"\",INDIRECT(\"'\" & Setup!$AG$7 & \"'!\" & AF309),0) + IF(Setup!$AG$8<>\"\",INDIRECT(\"'\" & Setup!$AG$8 & \"'!\" & AF309),0) + IF(Setup!$AG$9<>\"\",INDIRECT(\"'\" & Setup!$AG$9 & \"'!\" & AF309),0) + IF(Setup!$AG$10<>\"\",INDIRECT(\"'\" & Setup!$AG$10 & \"'!\" & AF309),0) + IF(Setup!$AG$11<>\"\",INDIRECT(\"'\" & Setup!$AG$11 & \"'!\" & AF309),0) + IF(Setup!$AG$12<>\"\",INDIRECT(\"'\" & Setup!$AG$12 & \"'!\" & AF309),0)","v":0},{"$f":"IF(Setup!$AH$7<>\"\",INDIRECT(\"'\" & Setup!$AH$7 & \"'!\" & AF309),0) + IF(Setup!$AH$8<>\"\",INDIRECT(\"'\" & Setup!$AH$8 & \"'!\" & AF309),0) + IF(Setup!$AH$9<>\"\",INDIRECT(\"'\" & Setup!$AH$9 & \"'!\" & AF309),0) + IF(Setup!$AH$10<>\"\",INDIRECT(\"'\" & Setup!$AH$10 & \"'!\" & AF309),0) + IF(Setup!$AH$11<>\"\",INDIRECT(\"'\" & Setup!$AH$11 & \"'!\" & AF309),0) + IF(Setup!$AH$12<>\"\",INDIRECT(\"'\" & Setup!$AH$12 & \"'!\" & AF309),0)","v":0},{"$f":"IF(Setup!$AI$7<>\"\",INDIRECT(\"'\" & Setup!$AI$7 & \"'!\" & AF309),0) + IF(Setup!$AI$8<>\"\",INDIRECT(\"'\" & Setup!$AI$8 & \"'!\" & AF309),0) + IF(Setup!$AI$9<>\"\",INDIRECT(\"'\" & Setup!$AI$9 & \"'!\" & AF309),0) + IF(Setup!$AI$10<>\"\",INDIRECT(\"'\" & Setup!$AI$10 & \"'!\" & AF309),0) + IF(Setup!$AI$11<>\"\",INDIRECT(\"'\" & Setup!$AI$11 & \"'!\" & AF309),0) + IF(Setup!$AI$12<>\"\",INDIRECT(\"'\" & Setup!$AI$12 & \"'!\" & AF309),0)","v":0},{"$f":"IF(Setup!$AJ$7<>\"\",INDIRECT(\"'\" & Setup!$AJ$7 & \"'!\" & AF309),0) + IF(Setup!$AJ$8<>\"\",INDIRECT(\"'\" & Setup!$AJ$8 & \"'!\" & AF309),0) + IF(Setup!$AJ$9<>\"\",INDIRECT(\"'\" & Setup!$AJ$9 & \"'!\" & AF309),0) + IF(Setup!$AJ$10<>\"\",INDIRECT(\"'\" & Setup!$AJ$10 & \"'!\" & AF309),0) + IF(Setup!$AJ$11<>\"\",INDIRECT(\"'\" & Setup!$AJ$11 & \"'!\" & AF309),0) + IF(Setup!$AJ$12<>\"\",INDIRECT(\"'\" & Setup!$AJ$12 & \"'!\" & AF309),0)","v":0},null,"",{"$nulls":30},0,{"$f":"IF(Setup!$AH$7=\"\",0,INDIRECT(\"'\" & Setup!$AH$7 & \"'!\" & AF309))","v":0},{"$f":"IF(Setup!$AI$7=\"\",0,INDIRECT(\"'\" & Setup!$AI$7 & \"'!\" & AF309))","v":0},{"$f":"IF(Setup!$AJ$7=\"\",0,INDIRECT(\"'\" & Setup!$AJ$7 & \"'!\" & AF309))","v":0}]
[{"$f":"Planning!A82","v":"I074"},{"$f":"Planning!B82","v":0},{"$f":"Planning!C82","v":0},{"$f":"Planning!D82","v":0},{"$f":"Planning!E82","v":0},{"$f":"Planning!G82","v":0},0,{"v":0,"d":"0.00"},{"v":0,"d":"0.00"},"","",{"$f":"IF(Setup!$AG$7<>\"\",INDIRECT(\"'\" & Setup!$AG$7 & \"'!\" & AD310),0) + IF(Setup!$AG$8<>\"\",INDIRECT(\"'\" & Setup!$AG$8 & \"'!\" & AD310),0) + IF(Setup!$AG$9<>\"\",INDIRECT(\"'\" & Setup!$AG$9 & \"'!\" & AD310),0) + IF(Setup!$AG$10<>\"\",INDIRECT(\"'\" & Setup!$AG$10 & \"'!\" & AD310),0) + IF(Setup!$AG$11<>\"\",INDIRECT(\"'\" & Setup!$AG$11 & \"'!\" & AD310),0) + IF(Setup!$AG$12<>\"\",INDIRECT(\"'\" & Setup!$AG$12 & \"'!\" & AD310),0)","v":{"v":0,"d":"0.00"}},{"$f":"IF(Setup!$AG$7<>\"\",INDIRECT(\"'\" & Setup!$AG$7 & \"'!\" & AE310),0) + IF(Setup!$AG$8<>\"\",INDIRECT(\"'\" & Setup!$AG$8 & \"'!\" & AE310),0) + IF(Setup!$AG$9<>\"\",INDIRECT(\"'\" & Setup!$AG$9 & \"'!\" & AE310),0) + IF(Setup!$AG$10<>\"\",INDIRECT(\"'\" & Setup!$AG$10 & \"'!\" & AE310),0) + IF(Setup!$AG$11<>\"\",INDIRECT(\"'\" & Setup!$AG$11 & \"'!\" & AE310),0) + IF(Setup!$AG$12<>\"\",INDIRECT(\"'\" & Setup!$AG$12 & \"'!\" & AE310),0)","v":{"v":0,"d":"0.00"}},"","",{"$f":"IF(Setup!$AH$7<>\"\",INDIRECT(\"'\" & Setup!$AH$7 & \"'!\" & AD310),0) + IF(Setup!$AH$8<>\"\",INDIRECT(\"'\" & Setup!$AH$8 & \"'!\" & AD310),0) + IF(Setup!$AH$9<>\"\",INDIRECT(\"'\" & Setup!$AH$9 & \"'!\" & AD310),0) + IF(Setup!$AH$10<>\"\",INDIRECT(\"'\" & Setup!$AH$10 & \"'!\" & AD310),0) + IF(Setup!$AH$11<>\"\",INDIRECT(\"'\" & Setup!$AH$11 & \"'!\" & AD310),0) + IF(Setup!$AH$12<>\"\",INDIRECT(\"'\" & Setup!$AH$12 & \"'!\" & AD310),0)","v":{"v":0,"d":"0.00"}},{"$f":"IF(Setup!$AH$7<>\"\",INDIRECT(\"'\" & Setup!$AH$7 & \"'!\" & AE310),0) + IF(Setup!$AH$8<>\"\",INDIRECT(\"'\" & Setup!$AH$8 & \"'!\" & AE310),0) + IF(Setup!$AH$9<>\"\",INDIRECT(\"'\" & Setup!$AH$9 & \"'!\" & AE310),0) + IF(Setup!$AH$10<>\"\",INDIRECT(\"'\" & Setup!$AH$10 & \"'!\" & AE310),0) + IF(Setup!$AH$11<>\"\",INDIRECT(\"'\" & Setup!$AH$11 & \"'!\" & AE310),0) + IF(Setup!$AH$12<>\"\",INDIRECT(\"'\" & Setup!$AH$12 & \"'!\" & AE310),0)","v":{"v":0,"d":"0.00"}},"","",{"$f":"IF(Setup!$AI$7<>\"\",INDIRECT(\"'\" & Setup!$AI$7 & \"'!\" & AD310),0) + IF(Setup!$AI$8<>\"\",INDIRECT(\"'\" & Setup!$AI$8 & \"'!\" & AD310),0) + IF(Setup!$AI$9<>\"\",INDIRECT(\"'\" & Setup!$AI$9 & \"'!\" & AD310),0) + IF(Setup!$AI$10<>\"\",INDIRECT(\"'\" & Setup!$AI$10 & \"'!\" & AD310),0) + IF(Setup!$AI$11<>\"\",INDIRECT(\"'\" & Setup!$AI$11 & \"'!\" & AD310),0) + IF(Setup!$AI$12<>\"\",INDIRECT(\"'\" & Setup!$AI$12 & \"'!\" & AD310),0)","v":{"v":0,"d":"0.00"}},{"$f":"IF(Setup!$AI$7<>\"\",INDIRECT(\"'\" & Setup!$AI$7 & \"'!\" & AE310),0) + IF(Setup!$AI$8<>\"\",INDIRECT(\"'\" & Setup!$AI$8 & \"'!\" & AE310),0) + IF(Setup!$AI$9<>\"\",INDIRECT(\"'\" & Setup!$AI$9 & \"'!\" & AE310),0) + IF(Setup!$AI$10<>\"\",INDIRECT(\"'\" & Setup!$AI$10 & \"'!\" & AE310),0) + IF(Setup!$AI$11<>\"\",INDIRECT(\"'\" & Setup!$AI$11 & \"'!\" & AE310),0) + IF(Setup!$AI$12<>\"\",INDIRECT(\"'\" & Setup!$AI$12 & \"'!\" & AE310),0)","v":{"v":0,"d":"0.00"}},"","",{"$f":"IF(Setup!$AJ$7<>\"\",INDIRECT(\"'\" & Setup!$AJ$7 & \"'!\" & AD310),0) + IF(Setup!$AJ$8<>\"\",INDIRECT(\"'\" & Setup!$AJ$8 & \"'!\" & AD310),0) + IF(Setup!$AJ$9<>\"\",INDIRECT(\"'\" & Setup!$AJ$9 & \"'!\" & AD310),0) + IF(Setup!$AJ$10<>\"\",INDIRECT(\"'\" & Setup!$AJ$10 & \"'!\" & AD310),0) + IF(Setup!$AJ$11<>\"\",INDIRECT(\"'\" & Setup!$AJ$11 & \"'!\" & AD310),0) + IF(Setup!$AJ$12<>\"\",INDIRECT(\"'\" & Setup!$AJ$12 & \"'!\" & AD310),0)","v":0},{"$f":"IF(Setup!$AJ$7<>\"\",INDIRECT(\"'\" & Setup!$AJ$7 & \"'!\" & AE310),0) + IF(Setup!$AJ$8<>\"\",INDIRECT(\"'\" & Setup!$AJ$8 & \"'!\" & AE310),0) + IF(Setup!$AJ$9<>\"\",INDIRECT(\"'\" & Setup!$AJ$9 & \"'!\" & AE310),0) + IF(Setup!$AJ$10<>\"\",INDIRECT(\"'\" & Setup!$AJ$10 & \"'!\" & AE310),0) + IF(Setup!$AJ$11<>\"\",INDIRECT(\"'\" & Setup!$AJ$11 & \"'!\" & AE310),0) + IF(Setup!$AJ$12<>\"\",INDIRECT(\"'\" & Setup!$AJ$12 & \"'!\" & AE310),0)","v":0},"","",{"$f":"Planning!H82","v":0},"00","M98","O98","N98",null,null,{"$f":"IF(Setup!$AG$7<>\"\",INDIRECT(\"'\" & Setup!$AG$7 & \"'!\" & AF310),0) + IF(Setup!$AG$8<>\"\",INDIRECT(\"'\" & Setup!$AG$8 & \"'!\" & AF310),0) + IF(Setup!$AG$9<>\"\",INDIRECT(\"'\" & Setup!$AG$9 & \"'!\" & AF310),0) + IF(Setup!$AG$10<>\"\",INDIRECT(\"'\" & Setup!$AG$10 & \"'!\" & AF310),0) + IF(Setup!$AG$11<>\"\",INDIRECT(\"'\" & Setup!$AG$11 & \"'!\" & AF310),0) + IF(Setup!$AG$12<>\"\",INDIRECT(\"'\" & Setup!$AG$12 & \"'!\" & AF310),0)","v":0},{"$f":"IF(Setup!$AH$7<>\"\",INDIRECT(\"'\" & Setup!$AH$7 & \"'!\" & AF310),0) + IF(Setup!$AH$8<>\"\",INDIRECT(\"'\" & Setup!$AH$8 & \"'!\" & AF310),0) + IF(Setup!$AH$9<>\"\",INDIRECT(\"'\" & Setup!$AH$9 & \"'!\" & AF310),0) + IF(Setup!$AH$10<>\"\",INDIRECT(\"'\" & Setup!$AH$10 & \"'!\" & AF310),0) + IF(Setup!$AH$11<>\"\",INDIRECT(\"'\" & Setup!$AH$11 & \"'!\" & AF310),0) + IF(Setup!$AH$12<>\"\",INDIRECT(\"'\" & Setup!$AH$12 & \"'!\" & AF310),0)","v":0},{"$f":"IF(Setup!$AI$7<>\"\",INDIRECT(\"'\" & Setup!$AI$7 & \"'!\" & AF310),0) + IF(Setup!$AI$8<>\"\",INDIRECT(\"'\" & Setup!$AI$8 & \"'!\" & AF310),0) + IF(Setup!$AI$9<>\"\",INDIRECT(\"'\" & Setup!$AI$9 & \"'!\" & AF310),0) + IF(Setup!$AI$10<>\"\",INDIRECT(\"'\" & Setup!$AI$10 & \"'!\" & AF310),0) + IF(Setup!$AI$11<>\"\",INDIRECT(\"'\" & Setup!$AI$11 & \"'!\" & AF310),0) + IF(Setup!$AI$12<>\"\",INDIRECT(\"'\" & Setup!$AI$12 & \"'!\" & AF310),0)","v":0},{"$f":"IF(Setup!$AJ$7<>\"\",INDIRECT(\"'\" & Setup!$AJ$7 & \"'!\" & AF310),0) + IF(Setup!$AJ$8<>\"\",INDIRECT(\"'\" & Setup!$AJ$8 & \"'!\" & AF310),0) + IF(Setup!$AJ$9<>\"\",INDIRECT(\"'\" & Setup!$AJ$9 & \"'!\" & AF310),0) + IF(Setup!$AJ$10<>\"\",INDIRECT(\"'\" & Setup!$AJ$10 & \"'!\" & AF310),0) + IF(Setup!$AJ$11<>\"\",INDIRECT(\"'\" & Setup!$AJ$11 & \"'!\" & AF310),0) + IF(Setup!$AJ$12<>\"\",INDIRECT(\"'\" & Setup!$AJ$12 & \"'!\" & AF310),0)","v":0},null,"",{"$nulls":30},0,{"$f":"IF(Setup!$AH$7=\"\",0,INDIRECT(\"'\" & Setup!$AH$7 & \"'!\" & AF310))","v":0},{"$f":"IF(Setup!$AI$7=\"\",0,INDIRECT(\"'\" & Setup!$AI$7 & \"'!\" & AF310))","v":0},{"$f":"IF(Setup!$AJ$7=\"\",0,INDIRECT(\"'\" & Setup!$AJ$7 & \"'!\" & AF310))","v":0}]
[{"$f":"Planning!A83","v":"I075"},{"$f":"Planning!B83","v":0},{"$f":"Planning!C83","v":0},{"$f":"Planning!D83","v":0},{"$f":"Planning!E83","v":0},{"$f":"Planning!G83","v":0},0,{"v":0,"d":"0.00"},{"v":0,"d":"0.00"},"","",{"$f":"IF(Setup!$AG$7<>\"\",INDIRECT(\"'\" & Setup!$AG$7 & \"'!\" & AD311),0) + IF(Setup!$AG$8<>\"\",INDIRECT(\"'\" & Setup!$AG$8 & \"'!\" & AD311),0) + IF(Setup!$AG$9<>\"\",INDIRECT(\"'\" & Setup!$AG$9 & \"'!\" & AD311),0) + IF(Setup!$AG$10<>\"\",INDIRECT(\"'\" & Setup!$AG$10 & \"'!\" & AD311),0) + IF(Setup!$AG$11<>\"\",INDIRECT(\"'\" & Setup!$AG$11 & \"'!\" & AD311),0) + IF(Setup!$AG$12<>\"\",INDIRECT(\"'\" & Setup!$AG$12 & \"'!\" & AD311),0)","v":{"v":0,"d":"0.00"}},{"$f":"IF(Setup!$AG$7<>\"\",INDIRECT(\"'\" & Setup!$AG$7 & \"'!\" & AE311),0) + IF(Setup!$AG$8<>\"\",INDIRECT(\"'\" & Setup!$AG$8 & \"'!\" & AE311),0) + IF(Setup!$AG$9<>\"\",INDIRECT(\"'\" & Setup!$AG$9 & \"'!\" & AE311),0) + IF(Setup!$AG$10<>\"\",INDIRECT(\"'\" & Setup!$AG$10 & \"'!\" & AE311),0) + IF(Setup!$AG$11<>\"\",INDIRECT(\"'\" & Setup!$AG$11 & \"'!\" & AE311),0) + IF(Setup!$AG$12<>\"\",INDIRECT(\"'\" & Setup!$AG$12 & \"'!\" & AE311),0)","v":{"v":0,"d":"0.00"}},"","",{"$f":"IF(Setup!$AH$7<>\"\",INDIRECT(\"'\" & Setup!$AH$7 & \"'!\" & AD311),0) + IF(Setup!$AH$8<>\"\",INDIRECT(\"'\" & Setup!$AH$8 & \"'!\" & AD311),0) + IF(Setup!$AH$9<>\"\",INDIRECT(\"'\" & Setup!$AH$9 & \"'!\" & AD311),0) + IF(Setup!$AH$10<>\"\",INDIRECT(\"'\" & Setup!$AH$10 & \"'!\" & AD311),0) + IF(Setup!$AH$11<>\"\",INDIRECT(\"'\" & Setup!$AH$11 & \"'!\" & AD311),0) + IF(Setup!$AH$12<>\"\",INDIRECT(\"'\" & Setup!$AH$12 & \"'!\" & AD311),0)","v":{"v":0,"d":"0.00"}},{"$f":"IF(Setup!$AH$7<>\"\",INDIRECT(\"'\" & Setup!$AH$7 & \"'!\" & AE311),0) + IF(Setup!$AH$8<>\"\",INDIRECT(\"'\" & Setup!$AH$8 & \"'!\" & AE311),0) + IF(Setup!$AH$9<>\"\",INDIRECT(\"'\" & Setup!$AH$9 & \"'!\" & AE311),0) + IF(Setup!$AH$10<>\"\",INDIRECT(\"'\" & Setup!$AH$10 & \"'!\" & AE311),0) + IF(Setup!$AH$11<>\"\",INDIRECT(\"'\" & Setup!$AH$11 & \"'!\" & AE311),0) + IF(Setup!$AH$12<>\"\",INDIRECT(\"'\" & Setup!$AH$12 & \"'!\" & AE311),0)","v":{"v":0,"d":"0.00"}},"","",{"$f":"IF(Setup!$AI$7<>\"\",INDIRECT(\"'\" & Setup!$AI$7 & \"'!\" & AD311),0) + IF(Setup!$AI$8<>\"\",INDIRECT(\"'\" & Setup!$AI$8 & \"'!\" & AD311),0) + IF(Setup!$AI$9<>\"\",INDIRECT(\"'\" & Setup!$AI$9 & \"'!\" & AD311),0) + IF(Setup!$AI$10<>\"\",INDIRECT(\"'\" & Setup!$AI$10 & \"'!\" & AD311),0) + IF(Setup!$AI$11<>\"\",INDIRECT(\"'\" & Setup!$AI$11 & \"'!\" & AD311),0) + IF(Setup!$AI$12<>\"\",INDIRECT(\"'\" & Setup!$AI$12 & \"'!\" & AD311),0)","v":{"v":0,"d":"0.00"}},{"$f":"IF(Setup!$AI$7<>\"\",INDIRECT(\"'\" & Setup!$AI$7 & \"'!\" & AE311),0) + IF(Setup!$AI$8<>\"\",INDIRECT(\"'\" & Setup!$AI$8 & \"'!\" & AE311),0) + IF(Setup!$AI$9<>\"\",INDIRECT(\"'\" & Setup!$AI$9 & \"'!\" & AE311),0) + IF(Setup!$AI$10<>\"\",INDIRECT(\"'\" & Setup!$AI$10 & \"'!\" & AE311),0) + IF(Setup!$AI$11<>\"\",INDIRECT(\"'\" & Setup!$AI$11 & \"'!\" & AE311),0) + IF(Setup!$AI$12<>\"\",INDIRECT(\"'\" & Setup!$AI$12 & \"'!\" & AE311),0)","v":{"v":0,"d":"0.00"}},"","",{"$f":"IF(Setup!$AJ$7<>\"\",INDIRECT(\"'\" & Setup!$AJ$7 & \"'!\" & AD311),0) + IF(Setup!$AJ$8<>\"\",INDIRECT(\"'\" & Setup!$AJ$8 & \"'!\" & AD311),0) + IF(Setup!$AJ$9<>\"\",INDIRECT(\"'\" & Setup!$AJ$9 & \"'!\" & AD311),0) + IF(Setup!$AJ$10<>\"\",INDIRECT(\"'\" & Setup!$AJ$10 & \"'!\" & AD311),0) + IF(Setup!$AJ$11<>\"\",INDIRECT(\"'\" & Setup!$AJ$11 & \"'!\" & AD311),0) + IF(Setup!$AJ$12<>\"\",INDIRECT(\"'\" & Setup!$AJ$12 & \"'!\" & AD311),0)","v":0},{"$f":"IF(Setup!$AJ$7<>\"\",INDIRECT(\"'\" & Setup!$AJ$7 & \"'!\" & AE311),0) + IF(Setup!$AJ$8<>\"\",INDIRECT(\"'\" & Setup!$AJ$8 & \"'!\" & AE311),0) + IF(Setup!$AJ$9<>\"\",INDIRECT(\"'\" & Setup!$AJ$9 & \"'!\" & AE311),0) + IF(Setup!$AJ$10<>\"\",INDIRECT(\"'\" & Setup!$AJ$10 & \"'!\" & AE311),0) + IF(Setup!$AJ$11<>\"\",INDIRECT(\"'\" & Setup!$AJ$11 & \"'!\" & AE311),0) + IF(Setup!$AJ$12<>\"\",INDIRECT(\"'\" & Setup!$AJ$12 & \"'!\" & AE311),0)","v":0},"","",{"$f":"Planning!H83","v":0},"00","M99","O99","N99",null,null,{"$f":"IF(Setup!$AG$7<>\"\",INDIRECT(\"'\" & Setup!$AG$7 & \"'!\" & AF311),0) + IF(Setup!$AG$8<>\"\",INDIRECT(\"'\" & Setup!$AG$8 & \"'!\" & AF311),0) + IF(Setup!$AG$9<>\"\",INDIRECT(\"'\" & Setup!$AG$9 & \"'!\" & AF311),0) + IF(Setup!$AG$10<>\"\",INDIRECT(\"'\" & Setup!$AG$10 & \"'!\" & AF311),0) + IF(Setup!$AG$11<>\"\",INDIRECT(\"'\" & Setup!$AG$11 & \"'!\" & AF311),0) + IF(Setup!$AG$12<>\"\",INDIRECT(\"'\" & Setup!$AG$12 & \"'!\" & AF311),0)","v":0},{"$f":"IF(Setup!$AH$7<>\"\",INDIRECT(\"'\" & Setup!$AH$7 & \"'!\" & AF311),0) + IF(Setup!$AH$8<>\"\",INDIRECT(\"'\" & Setup!$AH$8 & \"'!\" & AF311),0) + IF(Setup!$AH$9<>\"\",INDIRECT(\"'\" & Setup!$AH$9 & \"'!\" & AF311),0) + IF(Setup!$AH$10<>\"\",INDIRECT(\"'\" & Setup!$AH$10 & \"'!\" & AF311),0) + IF(Setup!$AH$11<>\"\",INDIRECT(\"'\" & Setup!$AH$11 & \"'!\" & AF311),0) + IF(Setup!$AH$12<>\"\",INDIRECT(\"'\" & Setup!$AH$12 & \"'!\" & AF311),0)","v":0},{"$f":"IF(Setup!$AI$7<>\"\",INDIRECT(\"'\" & Setup!$AI$7 & \"'!\" & AF311),0) + IF(Setup!$AI$8<>\"\",INDIRECT(\"'\" & Setup!$AI$8 & \"'!\" & AF311),0) + IF(Setup!$AI$9<>\"\",INDIRECT(\"'\" & Setup!$AI$9 & \"'!\" & AF311),0) + IF(Setup!$AI$10<>\"\",INDIRECT(\"'\" & Setup!$AI$10 & \"'!\" & AF311),0) + IF(Setup!$AI$11<>\"\",INDIRECT(\"'\" & Setup!$AI$11 & \"'!\" & AF311),0) + IF(Setup!$AI$12<>\"\",INDIRECT(\"'\" & Setup!$AI$12 & \"'!\" & AF311),0)","v":0},{"$f":"IF(Setup!$AJ$7<>\"\",INDIRECT(\"'\" & Setup!$AJ$7 & \"'!\" & AF311),0) + IF(Setup!$AJ$8<>\"\",INDIRECT(\"'\" & Setup!$AJ$8 & \"'!\" & AF311),0) + IF(Setup!$AJ$9<>\"\",INDIRECT(\"'\" & Setup!$AJ$9 & \"'!\" & AF311),0) + IF(Setup!$AJ$10<>\"\",INDIRECT(\"'\" & Setup!$AJ$10 & \"'!\" & AF311),0) + IF(Setup!$AJ$11<>\"\",INDIRECT(\"'\" & Setup!$AJ$11 & \"'!\" & AF311),0) + IF(Setup!$AJ$12<>\"\",INDIRECT(\"'\" & Setup!$AJ$12 & \"'!\" & AF311),0)","v":0},null,"",{"$nulls":30},0,{"$f":"IF(Setup!$AH$7=\"\",0,INDIRECT(\"'\" & Setup!$AH$7 & \"'!\" & AF311))","v":0},{"$f":"IF(Setup!$AI$7=\"\",0,INDIRECT(\"'\" & Setup!$AI$7 & \"'!\" & AF311))","v":0},{"$f":"IF(Setup!$AJ$7=\"\",0,INDIRECT(\"'\" & Setup!$AJ$7 & \"'!\" & AF311))","v":0}]
[{"$f":"Planning!A84","v":"I076"},{"$f":"Planning!B84","v":0},{"$f":"Planning!C84","v":0},{"$f":"Planning!D84","v":0},{"$f":"Planning!E84","v":0},{"$f":"Planning!G84","v":0},0,{"v":0,"d":"0.00"},{"v":0,"d":"0.00"},"","",{"$f":"IF(Setup!$AG$7<>\"\",INDIRECT(\"'\" & Setup!$AG$7 & \"'!\" & AD312),0) + IF(Setup!$AG$8<>\"\",INDIRECT(\"'\" & Setup!$AG$8 & \"'!\" & AD312),0) + IF(Setup!$AG$9<>\"\",INDIRECT(\"'\" & Setup!$AG$9 & \"'!\" & AD312),0) + IF(Setup!$AG$10<>\"\",INDIRECT(\"'\" & Setup!$AG$10 & \"'!\" & AD312),0) + IF(Setup!$AG$11<>\"\",INDIRECT(\"'\" & Setup!$AG$11 & \"'!\" & AD312),0) + IF(Setup!$AG$12<>\"\",INDIRECT(\"'\" & Setup!$AG$12 & \"'!\" & AD312),0)","v":{"v":0,"d":"0.00"}},{"$f":"IF(Setup!$AG$7<>\"\",INDIRECT(\"'\" & Setup!$AG$7 & \"'!\" & AE312),0) + IF(Setup!$AG$8<>\"\",INDIRECT(\"'\" & Setup!$AG$8 & \"'!\" & AE312),0) + IF(Setup!$AG$9<>\"\",INDIRECT(\"'\" & Setup!$AG$9 & \"'!\" & AE312),0) + IF(Setup!$AG$10<>\"\",INDIRECT(\"'\" & Setup!$AG$10 & \"'!\" & AE312),0) + IF(Setup!$AG$11<>\"\",INDIRECT(\"'\" & Setup!$AG$11 & \"'!\" & AE312),0) + IF(Setup!$AG$12<>\"\",INDIRECT(\"'\" & Setup!$AG$12 & \"'!\" & AE312),0)","v":{"v":0,"d":"0.00"}},"","",{"$f":"IF(Setup!$AH$7<>\"\",INDIRECT(\"'\" & Setup!$AH$7 & \"'!\" & AD312),0) + IF(Setup!$AH$8<>\"\",INDIRECT(\"'\" & Setup!$AH$8 & \"'!\" & AD312),0) + IF(Setup!$AH$9<>\"\",INDIRECT(\"'\" & Setup!$AH$9 & \"'!\" & AD312),0) + IF(Setup!$AH$10<>\"\",INDIRECT(\"'\" & Setup!$AH$10 & \"'!\" & AD312),0) + IF(Setup!$AH$11<>\"\",INDIRECT(\"'\" & Setup!$AH$11 & \"'!\" & AD312),0) + IF(Setup!$AH$12<>\"\",INDIRECT(\"'\" & Setup!$AH$12 & \"'!\" & AD312),0)","v":{"v":0,"d":"0.00"}},{"$f":"IF(Setup!$AH$7<>\"\",INDIRECT(\"'\" & Setup!$AH$7 & \"'!\" & AE312),0) + IF(Setup!$AH$8<>\"\",INDIRECT(\"'\" & Setup!$AH$8 & \"'!\" & AE312),0) + IF(Setup!$AH$9<>\"\",INDIRECT(\"'\" & Setup!$AH$9 & \"'!\" & AE312),0) + IF(Setup!$AH$10<>\"\",INDIRECT(\"'\" & Setup!$AH$10 & \"'!\" & AE312),0) + IF(Setup!$AH$11<>\"\",INDIRECT(\"'\" & Setup!$AH$11 & \"'!\" & AE312),0) + IF(Setup!$AH$12<>\"\",INDIRECT(\"'\" & Setup!$AH$12 & \"'!\" & AE312),0)","v":{"v":0,"d":"0.00"}},"","",{"$f":"IF(Setup!$AI$7<>\"\",INDIRECT(\"'\" & Setup!$AI$7 & \"'!\" & AD312),0) + IF(Setup!$AI$8<>\"\",INDIRECT(\"'\" & Setup!$AI$8 & \"'!\" & AD312),0) + IF(Setup!$AI$9<>\"\",INDIRECT(\"'\" & Setup!$AI$9 & \"'!\" & AD312),0) + IF(Setup!$AI$10<>\"\",INDIRECT(\"'\" & Setup!$AI$10 & \"'!\" & AD312),0) + IF(Setup!$AI$11<>\"\",INDIRECT(\"'\" & Setup!$AI$11 & \"'!\" & AD312),0) + IF(Setup!$AI$12<>\"\",INDIRECT(\"'\" & Setup!$AI$12 & \"'!\" & AD312),0)","v":{"v":0,"d":"0.00"}},{"$f":"IF(Setup!$AI$7<>\"\",INDIRECT(\"'\" & Setup!$AI$7 & \"'!\" & AE312),0) + IF(Setup!$AI$8<>\"\",INDIRECT(\"'\" & Setup!$AI$8 & \"'!\" & AE312),0) + IF(Setup!$AI$9<>\"\",INDIRECT(\"'\" & Setup!$AI$9 & \"'!\" & AE312),0) + IF(Setup!$AI$10<>\"\",INDIRECT(\"'\" & Setup!$AI$10 & \"'!\" & AE312),0) + IF(Setup!$AI$11<>\"\",INDIRECT(\"'\" & Setup!$AI$11 & \"'!\" & AE312),0) + IF(Setup!$AI$12<>\"\",INDIRECT(\"'\" & Setup!$AI$12 & \"'!\" & AE312),0)","v":{"v":0,"d":"0.00"}},"","",{"$f":"IF(Setup!$AJ$7<>\"\",INDIRECT(\"'\" & Setup!$AJ$7 & \"'!\" & AD312),0) + IF(Setup!$AJ$8<>\"\",INDIRECT(\"'\" & Setup!$AJ$8 & \"'!\" & AD312),0) + IF(Setup!$AJ$9<>\"\",INDIRECT(\"'\" & Setup!$AJ$9 & \"'!\" & AD312),0) + IF(Setup!$AJ$10<>\"\",INDIRECT(\"'\" & Setup!$AJ$10 & \"'!\" & AD312),0) + IF(Setup!$AJ$11<>\"\",INDIRECT(\"'\" & Setup!$AJ$11 & \"'!\" & AD312),0) + IF(Setup!$AJ$12<>\"\",INDIRECT(\"'\" & Setup!$AJ$12 & \"'!\" & AD312),0)","v":0},{"$f":"IF(Setup!$AJ$7<>\"\",INDIRECT(\"'\" & Setup!$AJ$7 & \"'!\" & AE312),0) + IF(Setup!$AJ$8<>\"\",INDIRECT(\"'\" & Setup!$AJ$8 & \"'!\" & AE312),0) + IF(Setup!$AJ$9<>\"\",INDIRECT(\"'\" & Setup!$AJ$9 & \"'!\" & AE312),0) + IF(Setup!$AJ$10<>\"\",INDIRECT(\"'\" & Setup!$AJ$10 & \"'!\" & AE312),0) + IF(Setup!$AJ$11<>\"\",INDIRECT(\"'\" & Setup!$AJ$11 & \"'!\" & AE312),0) + IF(Setup!$AJ$12<>\"\",INDIRECT(\"'\" & Setup!$AJ$12 & \"'!\" & AE312),0)","v":0},"","",{"$f":"Planning!H84","v":0},"00","M100","O100","N100",null,null,{"$f":"IF(Setup!$AG$7<>\"\",INDIRECT(\"'\" & Setup!$AG$7 & \"'!\" & AF312),0) + IF(Setup!$AG$8<>\"\",INDIRECT(\"'\" & Setup!$AG$8 & \"'!\" & AF312),0) + IF(Setup!$AG$9<>\"\",INDIRECT(\"'\" & Setup!$AG$9 & \"'!\" & AF312),0) + IF(Setup!$AG$10<>\"\",INDIRECT(\"'\" & Setup!$AG$10 & \"'!\" & AF312),0) + IF(Setup!$AG$11<>\"\",INDIRECT(\"'\" & Setup!$AG$11 & \"'!\" & AF312),0) + IF(Setup!$AG$12<>\"\",INDIRECT(\"'\" & Setup!$AG$12 & \"'!\" & AF312),0)","v":0},{"$f":"IF(Setup!$AH$7<>\"\",INDIRECT(\"'\" & Setup!$AH$7 & \"'!\" & AF312),0) + IF(Setup!$AH$8<>\"\",INDIRECT(\"'\" & Setup!$AH$8 & \"'!\" & AF312),0) + IF(Setup!$AH$9<>\"\",INDIRECT(\"'\" & Setup!$AH$9 & \"'!\" & AF312),0) + IF(Setup!$AH$10<>\"\",INDIRECT(\"'\" & Setup!$AH$10 & \"'!\" & AF312),0) + IF(Setup!$AH$11<>\"\",INDIRECT(\"'\" & Setup!$AH$11 & \"'!\" & AF312),0) + IF(Setup!$AH$12<>\"\",INDIRECT(\"'\" & Setup!$AH$12 & \"'!\" & AF312),0)","v":0},{"$f":"IF(Setup!$AI$7<>\"\",INDIRECT(\"'\" & Setup!$AI$7 & \"'!\" & AF312),0) + IF(Setup!$AI$8<>\"\",INDIRECT(\"'\" & Setup!$AI$8 & \"'!\" & AF312),0) + IF(Setup!$AI$9<>\"\",INDIRECT(\"'\" & Setup!$AI$9 & \"'!\" & AF312),0) + IF(Setup!$AI$10<>\"\",INDIRECT(\"'\" & Setup!$AI$10 & \"'!\" & AF312),0) + IF(Setup!$AI$11<>\"\",INDIRECT(\"'\" & Setup!$AI$11 & \"'!\" & AF312),0) + IF(Setup!$AI$12<>\"\",INDIRECT(\"'\" & Setup!$AI$12 & \"'!\" & AF312),0)","v":0},{"$f":"IF(Setup!$AJ$7<>\"\",INDIRECT(\"'\" & Setup!$AJ$7 & \"'!\" & AF312),0) + IF(Setup!$AJ$8<>\"\",INDIRECT(\"'\" & Setup!$AJ$8 & \"'!\" & AF312),0) + IF(Setup!$AJ$9<>\"\",INDIRECT(\"'\" & Setup!$AJ$9 & \"'!\" & AF312),0) + IF(Setup!$AJ$10<>\"\",INDIRECT(\"'\" & Setup!$AJ$10 & \"'!\" & AF312),0) + IF(Setup!$AJ$11<>\"\",INDIRECT(\"'\" & Setup!$AJ$11 & \"'!\" & AF312),0) + IF(Setup!$AJ$12<>\"\",INDIRECT(\"'\" & Setup!$AJ$12 & \"'!\" & AF312),0)","v":0},null,"",{"$nulls":30},0,{"$f":"IF(Setup!$AH$7=\"\",0,INDIRECT(\"'\" & Setup!$AH$7 & \"'!\" & AF312))","v":0},{"$f":"IF(Setup!$AI$7=\"\",0,INDIRECT(\"'\" & Setup!$AI$7 & \"'!\" & AF312))","v":0},{"$f":"IF(Setup!$AJ$7=\"\",0,INDIRECT(\"'\" & Setup!$AJ$7 & \"'!\" & AF312))","v":0}]
[{"$f":"Planning!A85","v":"I077"},{"$f":"Planning!B85","v":0},{"$f":"Planning!C85","v":0},{"$f":"Planning!D85","v":0},{"$f":"Planning!E85","v":0},{"$f":"Planning!G85","v":0},0,{"v":0,"d":"0.00"},{"v":0,"d":"0.00"},"","",{"$f":"IF(Setup!$AG$7<>\"\",INDIRECT(\"'\" & Setup!$AG$7 & \"'!\" & AD313),0) + IF(Setup!$AG$8<>\"\",INDIRECT(\"'\" & Setup!$AG$8 & \"'!\" & AD313),0) + IF(Setup!$AG$9<>\"\",INDIRECT(\"'\" & Setup!$AG$9 & \"'!\" & AD313),0) + IF(Setup!$AG$10<>\"\",INDIRECT(\"'\" & Setup!$AG$10 & \"'!\" & AD313),0) + IF(Setup!$AG$11<>\"\",INDIRECT(\"'\" & Setup!$AG$11 & \"'!\" & AD313),0) + IF(Setup!$AG$12<>\"\",INDIRECT(\"'\" & Setup!$AG$12 & \"'!\" & AD313),0)","v":{"v":0,"d":"0.00"}},{"$f":"IF(Setup!$AG$7<>\"\",INDIRECT(\"'\" & Setup!$AG$7 & \"'!\" & AE313),0) + IF(Setup!$AG$8<>\"\",INDIRECT(\"'\" & Setup!$AG$8 & \"'!\" & AE313),0) + IF(Setup!$AG$9<>\"\",INDIRECT(\"'\" & Setup!$AG$9 & \"'!\" & AE313),0) + IF(Setup!$AG$10<>\"\",INDIRECT(\"'\" & Setup!$AG$10 & \"'!\" & AE313),0) + IF(Setup!$AG$11<>\"\",INDIRECT(\"'\" & Setup!$AG$11 & \"'!\" & AE313),0) + IF(Setup!$AG$12<>\"\",INDIRECT(\"'\" & Setup!$AG$12 & \"'!\" & AE313),0)","v":{"v":0,"d":"0.00"}},"","",{"$f":"IF(Setup!$AH$7<>\"\",INDIRECT(\"'\" & Setup!$AH$7 & \"'!\" & AD313),0) + IF(Setup!$AH$8<>\"\",INDIRECT(\"'\" & Setup!$AH$8 & \"'!\" & AD313),0) + IF(Setup!$AH$9<>\"\",INDIRECT(\"'\" & Setup!$AH$9 & \"'!\" & AD313),0) + IF(Setup!$AH$10<>\"\",INDIRECT(\"'\" & Setup!$AH$10 & \"'!\" & AD313),0) + IF(Setup!$AH$11<>\"\",INDIRECT(\"'\" & Setup!$AH$11 & \"'!\" & AD313),0) + IF(Setup!$AH$12<>\"\",INDIRECT(\"'\" & Setup!$AH$12 & \"'!\" & AD313),0)","v":{"v":0,"d":"0.00"}},{"$f":"IF(Setup!$AH$7<>\"\",INDIRECT(\"'\" & Setup!$AH$7 & \"'!\" & AE313),0) + IF(Setup!$AH$8<>\"\",INDIRECT(\"'\" & Setup!$AH$8 & \"'!\" & AE313),0) + IF(Setup!$AH$9<>\"\",INDIRECT(\"'\" & Setup!$AH$9 & \"'!\" & AE313),0) + IF(Setup!$AH$10<>\"\",INDIRECT(\"'\" & Setup!$AH$10 & \"'!\" & AE313),0) + IF(Setup!$AH$11<>\"\",INDIRECT(\"'\" & Setup!$AH$11 & \"'!\" & AE313),0) + IF(Setup!$AH$12<>\"\",INDIRECT(\"'\" & Setup!$AH$12 & \"'!\" & AE313),0)","v":{"v":0,"d":"0.00"}},"","",{"$f":"IF(Setup!$AI$7<>\"\",INDIRECT(\"'\" & Setup!$AI$7 & \"'!\" & AD313),0) + IF(Setup!$AI$8<>\"\",INDIRECT(\"'\" & Setup!$AI$8 & \"'!\" & AD313),0) + IF(Setup!$AI$9<>\"\",INDIRECT(\"'\" & Setup!$AI$9 & \"'!\" & AD313),0) + IF(Setup!$AI$10<>\"\",INDIRECT(\"'\" & Setup!$AI$10 & \"'!\" & AD313),0) + IF(Setup!$AI$11<>\"\",INDIRECT(\"'\" & Setup!$AI$11 & \"'!\" & AD313),0) + IF(Setup!$AI$12<>\"\",INDIRECT(\"'\" & Setup!$AI$12 & \"'!\" & AD313),0)","v":{"v":0,"d":"0.00"}},{"$f":"IF(Setup!$AI$7<>\"\",INDIRECT(\"'\" & Setup!$AI$7 & \"'!\" & AE313),0) + IF(Setup!$AI$8<>\"\",INDIRECT(\"'\" & Setup!$AI$8 & \"'!\" & AE313),0) + IF(Setup!$AI$9<>\"\",INDIRECT(\"'\" & Setup!$AI$9 & \"'!\" & AE313),0) + IF(Setup!$AI$10<>\"\",INDIRECT(\"'\" & Setup!$AI$10 & \"'!\" & AE313),0) + IF(Setup!$AI$11<>\"\",INDIRECT(\"'\" & Setup!$AI$11 & \"'!\" & AE313),0) + IF(Setup!$AI$12<>\"\",INDIRECT(\"'\" & Setup!$AI$12 & \"'!\" & AE313),0)","v":{"v":0,"d":"0.00"}},"","",{"$f":"IF(Setup!$AJ$7<>\"\",INDIRECT(\"'\" & Setup!$AJ$7 & \"'!\" & AD313),0) + IF(Setup!$AJ$8<>\"\",INDIRECT(\"'\" & Setup!$AJ$8 & \"'!\" & AD313),0) + IF(Setup!$AJ$9<>\"\",INDIRECT(\"'\" & Setup!$AJ$9 & \"'!\" & AD313),0) + IF(Setup!$AJ$10<>\"\",INDIRECT(\"'\" & Setup!$AJ$10 & \"'!\" & AD313),0) + IF(Setup!$AJ$11<>\"\",INDIRECT(\"'\" & Setup!$AJ$11 & \"'!\" & AD313),0) + IF(Setup!$AJ$12<>\"\",INDIRECT(\"'\" & Setup!$AJ$12 & \"'!\" & AD313),0)","v":0},{"$f":"IF(Setup!$AJ$7<>\"\",INDIRECT(\"'\" & Setup!$AJ$7 & \"'!\" & AE313),0) + IF(Setup!$AJ$8<>\"\",INDIRECT(\"'\" & Setup!$AJ$8 & \"'!\" & AE313),0) + IF(Setup!$AJ$9<>\"\",INDIRECT(\"'\" & Setup!$AJ$9 & \"'!\" & AE313),0) + IF(Setup!$AJ$10<>\"\",INDIRECT(\"'\" & Setup!$AJ$10 & \"'!\" & AE313),0) + IF(Setup!$AJ$11<>\"\",INDIRECT(\"'\" & Setup!$AJ$11 & \"'!\" & AE313),0) + IF(Setup!$AJ$12<>\"\",INDIRECT(\"'\" & Setup!$AJ$12 & \"'!\" & AE313),0)","v":0},"","",{"$f":"Planning!H85","v":0},"00","M101","O101","N101",null,null,{"$f":"IF(Setup!$AG$7<>\"\",INDIRECT(\"'\" & Setup!$AG$7 & \"'!\" & AF313),0) + IF(Setup!$AG$8<>\"\",INDIRECT(\"'\" & Setup!$AG$8 & \"'!\" & AF313),0) + IF(Setup!$AG$9<>\"\",INDIRECT(\"'\" & Setup!$AG$9 & \"'!\" & AF313),0) + IF(Setup!$AG$10<>\"\",INDIRECT(\"'\" & Setup!$AG$10 & \"'!\" & AF313),0) + IF(Setup!$AG$11<>\"\",INDIRECT(\"'\" & Setup!$AG$11 & \"'!\" & AF313),0) + IF(Setup!$AG$12<>\"\",INDIRECT(\"'\" & Setup!$AG$12 & \"'!\" & AF313),0)","v":0},{"$f":"IF(Setup!$AH$7<>\"\",INDIRECT(\"'\" & Setup!$AH$7 & \"'!\" & AF313),0) + IF(Setup!$AH$8<>\"\",INDIRECT(\"'\" & Setup!$AH$8 & \"'!\" & AF313),0) + IF(Setup!$AH$9<>\"\",INDIRECT(\"'\" & Setup!$AH$9 & \"'!\" & AF313),0) + IF(Setup!$AH$10<>\"\",INDIRECT(\"'\" & Setup!$AH$10 & \"'!\" & AF313),0) + IF(Setup!$AH$11<>\"\",INDIRECT(\"'\" & Setup!$AH$11 & \"'!\" & AF313),0) + IF(Setup!$AH$12<>\"\",INDIRECT(\"'\" & Setup!$AH$12 & \"'!\" & AF313),0)","v":0},{"$f":"IF(Setup!$AI$7<>\"\",INDIRECT(\"'\" & Setup!$AI$7 & \"'!\" & AF313),0) + IF(Setup!$AI$8<>\"\",INDIRECT(\"'\" & Setup!$AI$8 & \"'!\" & AF313),0) + IF(Setup!$AI$9<>\"\",INDIRECT(\"'\" & Setup!$AI$9 & \"'!\" & AF313),0) + IF(Setup!$AI$10<>\"\",INDIRECT(\"'\" & Setup!$AI$10 & \"'!\" & AF313),0) + IF(Setup!$AI$11<>\"\",INDIRECT(\"'\" & Setup!$AI$11 & \"'!\" & AF313),0) + IF(Setup!$AI$12<>\"\",INDIRECT(\"'\" & Setup!$AI$12 & \"'!\" & AF313),0)","v":0},{"$f":"IF(Setup!$AJ$7<>\"\",INDIRECT(\"'\" & Setup!$AJ$7 & \"'!\" & AF313),0) + IF(Setup!$AJ$8<>\"\",INDIRECT(\"'\" & Setup!$AJ$8 & \"'!\" & AF313),0) + IF(Setup!$AJ$9<>\"\",INDIRECT(\"'\" & Setup!$AJ$9 & \"'!\" & AF313),0) + IF(Setup!$AJ$10<>\"\",INDIRECT(\"'\" & Setup!$AJ$10 & \"'!\" & AF313),0) + IF(Setup!$AJ$11<>\"\",INDIRECT(\"'\" & Setup!$AJ$11 & \"'!\" & AF313),0) + IF(Setup!$AJ$12<>\"\",INDIRECT(\"'\" & Setup!$AJ$12 & \"'!\" & AF313),0)","v":0},null,"",{"$nulls":30},0,{"$f":"IF(Setup!$AH$7=\"\",0,INDIRECT(\"'\" & Setup!$AH$7 & \"'!\" & AF313))","v":0},{"$f":"IF(Setup!$AI$7=\"\",0,INDIRECT(\"'\" & Setup!$AI$7 & \"'!\" & AF313))","v":0},{"$f":"IF(Setup!$AJ$7=\"\",0,INDIRECT(\"'\" & Setup!$AJ$7 & \"'!\" & AF313))","v":0}]
[{"$f":"Planning!A86","v":"I078"},{"$f":"Planning!B86","v":0},{"$f":"Planning!C86","v":0},{"$f":"Planning!D86","v":0},{"$f":"Planning!E86","v":0},{"$f":"Planning!G86","v":0},0,{"v":0,"d":"0.00"},{"v":0,"d":"0.00"},"","",{"$f":"IF(Setup!$AG$7<>\"\",INDIRECT(\"'\" & Setup!$AG$7 & \"'!\" & AD314),0) + IF(Setup!$AG$8<>\"\",INDIRECT(\"'\" & Setup!$AG$8 & \"'!\" & AD314),0) + IF(Setup!$AG$9<>\"\",INDIRECT(\"'\" & Setup!$AG$9 & \"'!\" & AD314),0) + IF(Setup!$AG$10<>\"\",INDIRECT(\"'\" & Setup!$AG$10 & \"'!\" & AD314),0) + IF(Setup!$AG$11<>\"\",INDIRECT(\"'\" & Setup!$AG$11 & \"'!\" & AD314),0) + IF(Setup!$AG$12<>\"\",INDIRECT(\"'\" & Setup!$AG$12 & \"'!\" & AD314),0)","v":{"v":0,"d":"0.00"}},{"$f":"IF(Setup!$AG$7<>\"\",INDIRECT(\"'\" & Setup!$AG$7 & \"'!\" & AE314),0) + IF(Setup!$AG$8<>\"\",INDIRECT(\"'\" & Setup!$AG$8 & \"'!\" & AE314),0) + IF(Setup!$AG$9<>\"\",INDIRECT(\"'\" & Setup!$AG$9 & \"'!\" & AE314),0) + IF(Setup!$AG$10<>\"\",INDIRECT(\"'\" & Setup!$AG$10 & \"'!\" & AE314),0) + IF(Setup!$AG$11<>\"\",INDIRECT(\"'\" & Setup!$AG$11 & \"'!\" & AE314),0) + IF(Setup!$AG$12<>\"\",INDIRECT(\"'\" & Setup!$AG$12 & \"'!\" & AE314),0)","v":{"v":0,"d":"0.00"}},"","",{"$f":"IF(Setup!$AH$7<>\"\",INDIRECT(\"'\" & Setup!$AH$7 & \"'!\" & AD314),0) + IF(Setup!$AH$8<>\"\",INDIRECT(\"'\" & Setup!$AH$8 & \"'!\" & AD314),0) + IF(Setup!$AH$9<>\"\",INDIRECT(\"'\" & Setup!$AH$9 & \"'!\" & AD314),0) + IF(Setup!$AH$10<>\"\",INDIRECT(\"'\" & Setup!$AH$10 & \"'!\" & AD314),0) + IF(Setup!$AH$11<>\"\",INDIRECT(\"'\" & Setup!$AH$11 & \"'!\" & AD314),0) + IF(Setup!$AH$12<>\"\",INDIRECT(\"'\" & Setup!$AH$12 & \"'!\" & AD314),0)","v":{"v":0,"d":"0.00"}},{"$f":"IF(Setup!$AH$7<>\"\",INDIRECT(\"'\" & Setup!$AH$7 & \"'!\" & AE314),0) + IF(Setup!$AH$8<>\"\",INDIRECT(\"'\" & Setup!$AH$8 & \"'!\" & AE314),0) + IF(Setup!$AH$9<>\"\",INDIRECT(\"'\" & Setup!$AH$9 & \"'!\" & AE314),0) + IF(Setup!$AH$10<>\"\",INDIRECT(\"'\" & Setup!$AH$10 & \"'!\" & AE314),0) + IF(Setup!$AH$11<>\"\",INDIRECT(\"'\" & Setup!$AH$11 & \"'!\" & AE314),0) + IF(Setup!$AH$12<>\"\",INDIRECT(\"'\" & Setup!$AH$12 & \"'!\" & AE314),0)","v":{"v":0,"d":"0.00"}},"","",{"$f":"IF(Setup!$AI$7<>\"\",INDIRECT(\"'\" & Setup!$AI$7 & \"'!\" & AD314),0) + IF(Setup!$AI$8<>\"\",INDIRECT(\"'\" & Setup!$AI$8 & \"'!\" & AD314),0) + IF(Setup!$AI$9<>\"\",INDIRECT(\"'\" & Setup!$AI$9 & \"'!\" & AD314),0) + IF(Setup!$AI$10<>\"\",INDIRECT(\"'\" & Setup!$AI$10 & \"'!\" & AD314),0) + IF(Setup!$AI$11<>\"\",INDIRECT(\"'\" & Setup!$AI$11 & \"'!\" & AD314),0) + IF(Setup!$AI$12<>\"\",INDIRECT(\"'\" & Setup!$AI$12 & \"'!\" & AD314),0)","v":{"v":0,"d":"0.00"}},{"$f":"IF(Setup!$AI$7<>\"\",INDIRECT(\"'\" & Setup!$AI$7 & \"'!\" & AE314),0) + IF(Setup!$AI$8<>\"\",INDIRECT(\"'\" & Setup!$AI$8 & \"'!\" & AE314),0) + IF(Setup!$AI$9<>\"\",INDIRECT(\"'\" & Setup!$AI$9 & \"'!\" & AE314),0) + IF(Setup!$AI$10<>\"\",INDIRECT(\"'\" & Setup!$AI$10 & \"'!\" & AE314),0) + IF(Setup!$AI$11<>\"\",INDIRECT(\"'\" & Setup!$AI$11 & \"'!\" & AE314),0) + IF(Setup!$AI$12<>\"\",INDIRECT(\"'\" & Setup!$AI$12 & \"'!\" & AE314),0)","v":{"v":0,"d":"0.00"}},"","",{"$f":"IF(Setup!$AJ$7<>\"\",INDIRECT(\"'\" & Setup!$AJ$7 & \"'!\" & AD314),0) + IF(Setup!$AJ$8<>\"\",INDIRECT(\"'\" & Setup!$AJ$8 & \"'!\" & AD314),0) + IF(Setup!$AJ$9<>\"\",INDIRECT(\"'\" & Setup!$AJ$9 & \"'!\" & AD314),0) + IF(Setup!$AJ$10<>\"\",INDIRECT(\"'\" & Setup!$AJ$10 & \"'!\" & AD314),0) + IF(Setup!$AJ$11<>\"\",INDIRECT(\"'\" & Setup!$AJ$11 & \"'!\" & AD314),0) + IF(Setup!$AJ$12<>\"\",INDIRECT(\"'\" & Setup!$AJ$12 & \"'!\" & AD314),0)","v":0},{"$f":"IF(Setup!$AJ$7<>\"\",INDIRECT(\"'\" & Setup!$AJ$7 & \"'!\" & AE314),0) + IF(Setup!$AJ$8<>\"\",INDIRECT(\"'\" & Setup!$AJ$8 & \"'!\" & AE314),0) + IF(Setup!$AJ$9<>\"\",INDIRECT(\"'\" & Setup!$AJ$9 & \"'!\" & AE314),0) + IF(Setup!$AJ$10<>\"\",INDIRECT(\"'\" & Setup!$AJ$10 & \"'!\" & AE314),0) + IF(Setup!$AJ$11<>\"\",INDIRECT(\"'\" & Setup!$AJ$11 & \"'!\" & AE314),0) + IF(Setup!$AJ$12<>\"\",INDIRECT(\"'\" & Setup!$AJ$12 & \"'!\" & AE314),0)","v":0},"","",{"$f":"Planning!H86","v":0},"00","M102","O102","N102",null,null,{"$f":"IF(Setup!$AG$7<>\"\",INDIRECT(\"'\" & Setup!$AG$7 & \"'!\" & AF314),0) + IF(Setup!$AG$8<>\"\",INDIRECT(\"'\" & Setup!$AG$8 & \"'!\" & AF314),0) + IF(Setup!$AG$9<>\"\",INDIRECT(\"'\" & Setup!$AG$9 & \"'!\" & AF314),0) + IF(Setup!$AG$10<>\"\",INDIRECT(\"'\" & Setup!$AG$10 & \"'!\" & AF314),0) + IF(Setup!$AG$11<>\"\",INDIRECT(\"'\" & Setup!$AG$11 & \"'!\" & AF314),0) + IF(Setup!$AG$12<>\"\",INDIRECT(\"'\" & Setup!$AG$12 & \"'!\" & AF314),0)","v":0},{"$f":"IF(Setup!$AH$7<>\"\",INDIRECT(\"'\" & Setup!$AH$7 & \"'!\" & AF314),0) + IF(Setup!$AH$8<>\"\",INDIRECT(\"'\" & Setup!$AH$8 & \"'!\" & AF314),0) + IF(Setup!$AH$9<>\"\",INDIRECT(\"'\" & Setup!$AH$9 & \"'!\" & AF314),0) + IF(Setup!$AH$10<>\"\",INDIRECT(\"'\" & Setup!$AH$10 & \"'!\" & AF314),0) + IF(Setup!$AH$11<>\"\",INDIRECT(\"'\" & Setup!$AH$11 & \"'!\" & AF314),0) + IF(Setup!$AH$12<>\"\",INDIRECT(\"'\" & Setup!$AH$12 & \"'!\" & AF314),0)","v":0},{"$f":"IF(Setup!$AI$7<>\"\",INDIRECT(\"'\" & Setup!$AI$7 & \"'!\" & AF314),0) + IF(Setup!$AI$8<>\"\",INDIRECT(\"'\" & Setup!$AI$8 & \"'!\" & AF314),0) + IF(Setup!$AI$9<>\"\",INDIRECT(\"'\" & Setup!$AI$9 & \"'!\" & AF314),0) + IF(Setup!$AI$10<>\"\",INDIRECT(\"'\" & Setup!$AI$10 & \"'!\" & AF314),0) + IF(Setup!$AI$11<>\"\",INDIRECT(\"'\" & Setup!$AI$11 & \"'!\" & AF314),0) + IF(Setup!$AI$12<>\"\",INDIRECT(\"'\" & Setup!$AI$12 & \"'!\" & AF314),0)","v":0},{"$f":"IF(Setup!$AJ$7<>\"\",INDIRECT(\"'\" & Setup!$AJ$7 & \"'!\" & AF314),0) + IF(Setup!$AJ$8<>\"\",INDIRECT(\"'\" & Setup!$AJ$8 & \"'!\" & AF314),0) + IF(Setup!$AJ$9<>\"\",INDIRECT(\"'\" & Setup!$AJ$9 & \"'!\" & AF314),0) + IF(Setup!$AJ$10<>\"\",INDIRECT(\"'\" & Setup!$AJ$10 & \"'!\" & AF314),0) + IF(Setup!$AJ$11<>\"\",INDIRECT(\"'\" & Setup!$AJ$11 & \"'!\" & AF314),0) + IF(Setup!$AJ$12<>\"\",INDIRECT(\"'\" & Setup!$AJ$12 & \"'!\" & AF314),0)","v":0},null,"",{"$nulls":30},0,{"$f":"IF(Setup!$AH$7=\"\",0,INDIRECT(\"'\" & Setup!$AH$7 & \"'!\" & AF314))","v":0},{"$f":"IF(Setup!$AI$7=\"\",0,INDIRECT(\"'\" & Setup!$AI$7 & \"'!\" & AF314))","v":0},{"$f":"IF(Setup!$AJ$7=\"\",0,INDIRECT(\"'\" & Setup!$AJ$7 & \"'!\" & AF314))","v":0}]
[{"$f":"Planning!A87","v":"I079"},{"$f":"Planning!B87","v":0},{"$f":"Planning!C87","v":0},{"$f":"Planning!D87","v":0},{"$f":"Planning!E87","v":0},{"$f":"Planning!G87","v":0},0,{"v":0,"d":"0.00"},{"v":0,"d":"0.00"},"","",{"$f":"IF(Setup!$AG$7<>\"\",INDIRECT(\"'\" & Setup!$AG$7 & \"'!\" & AD315),0) + IF(Setup!$AG$8<>\"\",INDIRECT(\"'\" & Setup!$AG$8 & \"'!\" & AD315),0) + IF(Setup!$AG$9<>\"\",INDIRECT(\"'\" & Setup!$AG$9 & \"'!\" & AD315),0) + IF(Setup!$AG$10<>\"\",INDIRECT(\"'\" & Setup!$AG$10 & \"'!\" & AD315),0) + IF(Setup!$AG$11<>\"\",INDIRECT(\"'\" & Setup!$AG$11 & \"'!\" & AD315),0) + IF(Setup!$AG$12<>\"\",INDIRECT(\"'\" & Setup!$AG$12 & \"'!\" & AD315),0)","v":{"v":0,"d":"0.00"}},{"$f":"IF(Setup!$AG$7<>\"\",INDIRECT(\"'\" & Setup!$AG$7 & \"'!\" & AE315),0) + IF(Setup!$AG$8<>\"\",INDIRECT(\"'\" & Setup!$AG$8 & \"'!\" & AE315),0) + IF(Setup!$AG$9<>\"\",INDIRECT(\"'\" & Setup!$AG$9 & \"'!\" & AE315),0) + IF(Setup!$AG$10<>\"\",INDIRECT(\"'\" & Setup!$AG$10 & \"'!\" & AE315),0) + IF(Setup!$AG$11<>\"\",INDIRECT(\"'\" & Setup!$AG$11 & \"'!\" & AE315),0) + IF(Setup!$AG$12<>\"\",INDIRECT(\"'\" & Setup!$AG$12 & \"'!\" & AE315),0)","v":{"v":0,"d":"0.00"}},"","",{"$f":"IF(Setup!$AH$7<>\"\",INDIRECT(\"'\" & Setup!$AH$7 & \"'!\" & AD315),0) + IF(Setup!$AH$8<>\"\",INDIRECT(\"'\" & Setup!$AH$8 & \"'!\" & AD315),0) + IF(Setup!$AH$9<>\"\",INDIRECT(\"'\" & Setup!$AH$9 & \"'!\" & AD315),0) + IF(Setup!$AH$10<>\"\",INDIRECT(\"'\" & Setup!$AH$10 & \"'!\" & AD315),0) + IF(Setup!$AH$11<>\"\",INDIRECT(\"'\" & Setup!$AH$11 & \"'!\" & AD315),0) + IF(Setup!$AH$12<>\"\",INDIRECT(\"'\" & Setup!$AH$12 & \"'!\" & AD315),0)","v":{"v":0,"d":"0.00"}},{"$f":"IF(Setup!$AH$7<>\"\",INDIRECT(\"'\" & Setup!$AH$7 & \"'!\" & AE315),0) + IF(Setup!$AH$8<>\"\",INDIRECT(\"'\" & Setup!$AH$8 & \"'!\" & AE315),0) + IF(Setup!$AH$9<>\"\",INDIRECT(\"'\" & Setup!$AH$9 & \"'!\" & AE315),0) + IF(Setup!$AH$10<>\"\",INDIRECT(\"'\" & Setup!$AH$10 & \"'!\" & AE315),0) + IF(Setup!$AH$11<>\"\",INDIRECT(\"'\" & Setup!$AH$11 & \"'!\" & AE315),0) + IF(Setup!$AH$12<>\"\",INDIRECT(\"'\" & Setup!$AH$12 & \"'!\" & AE315),0)","v":{"v":0,"d":"0.00"}},"","",{"$f":"IF(Setup!$AI$7<>\"\",INDIRECT(\"'\" & Setup!$AI$7 & \"'!\" & AD315),0) + IF(Setup!$AI$8<>\"\",INDIRECT(\"'\" & Setup!$AI$8 & \"'!\" & AD315),0) + IF(Setup!$AI$9<>\"\",INDIRECT(\"'\" & Setup!$AI$9 & \"'!\" & AD315),0) + IF(Setup!$AI$10<>\"\",INDIRECT(\"'\" & Setup!$AI$10 & \"'!\" & AD315),0) + IF(Setup!$AI$11<>\"\",INDIRECT(\"'\" & Setup!$AI$11 & \"'!\" & AD315),0) + IF(Setup!$AI$12<>\"\",INDIRECT(\"'\" & Setup!$AI$12 & \"'!\" & AD315),0)","v":{"v":0,"d":"0.00"}},{"$f":"IF(Setup!$AI$7<>\"\",INDIRECT(\"'\" & Setup!$AI$7 & \"'!\" & AE315),0) + IF(Setup!$AI$8<>\"\",INDIRECT(\"'\" & Setup!$AI$8 & \"'!\" & AE315),0) + IF(Setup!$AI$9<>\"\",INDIRECT(\"'\" & Setup!$AI$9 & \"'!\" & AE315),0) + IF(Setup!$AI$10<>\"\",INDIRECT(\"'\" & Setup!$AI$10 & \"'!\" & AE315),0) + IF(Setup!$AI$11<>\"\",INDIRECT(\"'\" & Setup!$AI$11 & \"'!\" & AE315),0) + IF(Setup!$AI$12<>\"\",INDIRECT(\"'\" & Setup!$AI$12 & \"'!\" & AE315),0)","v":{"v":0,"d":"0.00"}},"","",{"$f":"IF(Setup!$AJ$7<>\"\",INDIRECT(\"'\" & Setup!$AJ$7 & \"'!\" & AD315),0) + IF(Setup!$AJ$8<>\"\",INDIRECT(\"'\" & Setup!$AJ$8 & \"'!\" & AD315),0) + IF(Setup!$AJ$9<>\"\",INDIRECT(\"'\" & Setup!$AJ$9 & \"'!\" & AD315),0) + IF(Setup!$AJ$10<>\"\",INDIRECT(\"'\" & Setup!$AJ$10 & \"'!\" & AD315),0) + IF(Setup!$AJ$11<>\"\",INDIRECT(\"'\" & Setup!$AJ$11 & \"'!\" & AD315),0) + IF(Setup!$AJ$12<>\"\",INDIRECT(\"'\" & Setup!$AJ$12 & \"'!\" & AD315),0)","v":0},{"$f":"IF(Setup!$AJ$7<>\"\",INDIRECT(\"'\" & Setup!$AJ$7 & \"'!\" & AE315),0) + IF(Setup!$AJ$8<>\"\",INDIRECT(\"'\" & Setup!$AJ$8 & \"'!\" & AE315),0) + IF(Setup!$AJ$9<>\"\",INDIRECT(\"'\" & Setup!$AJ$9 & \"'!\" & AE315),0) + IF(Setup!$AJ$10<>\"\",INDIRECT(\"'\" & Setup!$AJ$10 & \"'!\" & AE315),0) + IF(Setup!$AJ$11<>\"\",INDIRECT(\"'\" & Setup!$AJ$11 & \"'!\" & AE315),0) + IF(Setup!$AJ$12<>\"\",INDIRECT(\"'\" & Setup!$AJ$12 & \"'!\" & AE315),0)","v":0},"","",{"$f":"Planning!H87","v":0},"00","M103","O103","N103",null,null,{"$f":"IF(Setup!$AG$7<>\"\",INDIRECT(\"'\" & Setup!$AG$7 & \"'!\" & AF315),0) + IF(Setup!$AG$8<>\"\",INDIRECT(\"'\" & Setup!$AG$8 & \"'!\" & AF315),0) + IF(Setup!$AG$9<>\"\",INDIRECT(\"'\" & Setup!$AG$9 & \"'!\" & AF315),0) + IF(Setup!$AG$10<>\"\",INDIRECT(\"'\" & Setup!$AG$10 & \"'!\" & AF315),0) + IF(Setup!$AG$11<>\"\",INDIRECT(\"'\" & Setup!$AG$11 & \"'!\" & AF315),0) + IF(Setup!$AG$12<>\"\",INDIRECT(\"'\" & Setup!$AG$12 & \"'!\" & AF315),0)","v":0},{"$f":"IF(Setup!$AH$7<>\"\",INDIRECT(\"'\" & Setup!$AH$7 & \"'!\" & AF315),0) + IF(Setup!$AH$8<>\"\",INDIRECT(\"'\" & Setup!$AH$8 & \"'!\" & AF315),0) + IF(Setup!$AH$9<>\"\",INDIRECT(\"'\" & Setup!$AH$9 & \"'!\" & AF315),0) + IF(Setup!$AH$10<>\"\",INDIRECT(\"'\" & Setup!$AH$10 & \"'!\" & AF315),0) + IF(Setup!$AH$11<>\"\",INDIRECT(\"'\" & Setup!$AH$11 & \"'!\" & AF315),0) + IF(Setup!$AH$12<>\"\",INDIRECT(\"'\" & Setup!$AH$12 & \"'!\" & AF315),0)","v":0},{"$f":"IF(Setup!$AI$7<>\"\",INDIRECT(\"'\" & Setup!$AI$7 & \"'!\" & AF315),0) + IF(Setup!$AI$8<>\"\",INDIRECT(\"'\" & Setup!$AI$8 & \"'!\" & AF315),0) + IF(Setup!$AI$9<>\"\",INDIRECT(\"'\" & Setup!$AI$9 & \"'!\" & AF315),0) + IF(Setup!$AI$10<>\"\",INDIRECT(\"'\" & Setup!$AI$10 & \"'!\" & AF315),0) + IF(Setup!$AI$11<>\"\",INDIRECT(\"'\" & Setup!$AI$11 & \"'!\" & AF315),0) + IF(Setup!$AI$12<>\"\",INDIRECT(\"'\" & Setup!$AI$12 & \"'!\" & AF315),0)","v":0},{"$f":"IF(Setup!$AJ$7<>\"\",INDIRECT(\"'\" & Setup!$AJ$7 & \"'!\" & AF315),0) + IF(Setup!$AJ$8<>\"\",INDIRECT(\"'\" & Setup!$AJ$8 & \"'!\" & AF315),0) + IF(Setup!$AJ$9<>\"\",INDIRECT(\"'\" & Setup!$AJ$9 & \"'!\" & AF315),0) + IF(Setup!$AJ$10<>\"\",INDIRECT(\"'\" & Setup!$AJ$10 & \"'!\" & AF315),0) + IF(Setup!$AJ$11<>\"\",INDIRECT(\"'\" & Setup!$AJ$11 & \"'!\" & AF315),0) + IF(Setup!$AJ$12<>\"\",INDIRECT(\"'\" & Setup!$AJ$12 & \"'!\" & AF315),0)","v":0},null,"",{"$nulls":30},0,{"$f":"IF(Setup!$AH$7=\"\",0,INDIRECT(\"'\" & Setup!$AH$7 & \"'!\" & AF315))","v":0},{"$f":"IF(Setup!$AI$7=\"\",0,INDIRECT(\"'\" & Setup!$AI$7 & \"'!\" & AF315))","v":0},{"$f":"IF(Setup!$AJ$7=\"\",0,INDIRECT(\"'\" & Setup!$AJ$7 & \"'!\" & AF315))","v":0}]
[{"$f":"Planning!A88","v":"I080"},{"$f":"Planning!B88","v":0},{"$f":"Planning!C88","v":0},{"$f":"Planning!D88","v":0},{"$f":"Planning!E88","v":0},{"$f":"Planning!G88","v":0},0,{"v":0,"d":"0.00"},{"v":0,"d":"0.00"},"","",{"$f":"IF(Setup!$AG$7<>\"\",INDIRECT(\"'\" & Setup!$AG$7 & \"'!\" & AD316),0) + IF(Setup!$AG$8<>\"\",INDIRECT(\"'\" & Setup!$AG$8 & \"'!\" & AD316),0) + IF(Setup!$AG$9<>\"\",INDIRECT(\"'\" & Setup!$AG$9 & \"'!\" & AD316),0) + IF(Setup!$AG$10<>\"\",INDIRECT(\"'\" & Setup!$AG$10 & \"'!\" & AD316),0) + IF(Setup!$AG$11<>\"\",INDIRECT(\"'\" & Setup!$AG$11 & \"'!\" & AD316),0) + IF(Setup!$AG$12<>\"\",INDIRECT(\"'\" & Setup!$AG$12 & \"'!\" & AD316),0)","v":{"v":0,"d":"0.00"}},{"$f":"IF(Setup!$AG$7<>\"\",INDIRECT(\"'\" & Setup!$AG$7 & \"'!\" & AE316),0) + IF(Setup!$AG$8<>\"\",INDIRECT(\"'\" & Setup!$AG$8 & \"'!\" & AE316),0) + IF(Setup!$AG$9<>\"\",INDIRECT(\"'\" & Setup!$AG$9 & \"'!\" & AE316),0) + IF(Setup!$AG$10<>\"\",INDIRECT(\"'\" & Setup!$AG$10 & \"'!\" & AE316),0) + IF(Setup!$AG$11<>\"\",INDIRECT(\"'\" & Setup!$AG$11 & \"'!\" & AE316),0) + IF(Setup!$AG$12<>\"\",INDIRECT(\"'\" & Setup!$AG$12 & \"'!\" & AE316),0)","v":{"v":0,"d":"0.00"}},"","",{"$f":"IF(Setup!$AH$7<>\"\",INDIRECT(\"'\" & Setup!$AH$7 & \"'!\" & AD316),0) + IF(Setup!$AH$8<>\"\",INDIRECT(\"'\" & Setup!$AH$8 & \"'!\" & AD316),0) + IF(Setup!$AH$9<>\"\",INDIRECT(\"'\" & Setup!$AH$9 & \"'!\" & AD316),0) + IF(Setup!$AH$10<>\"\",INDIRECT(\"'\" & Setup!$AH$10 & \"'!\" & AD316),0) + IF(Setup!$AH$11<>\"\",INDIRECT(\"'\" & Setup!$AH$11 & \"'!\" & AD316),0) + IF(Setup!$AH$12<>\"\",INDIRECT(\"'\" & Setup!$AH$12 & \"'!\" & AD316),0)","v":{"v":0,"d":"0.00"}},{"$f":"IF(Setup!$AH$7<>\"\",INDIRECT(\"'\" & Setup!$AH$7 & \"'!\" & AE316),0) + IF(Setup!$AH$8<>\"\",INDIRECT(\"'\" & Setup!$AH$8 & \"'!\" & AE316),0) + IF(Setup!$AH$9<>\"\",INDIRECT(\"'\" & Setup!$AH$9 & \"'!\" & AE316),0) + IF(Setup!$AH$10<>\"\",INDIRECT(\"'\" & Setup!$AH$10 & \"'!\" & AE316),0) + IF(Setup!$AH$11<>\"\",INDIRECT(\"'\" & Setup!$AH$11 & \"'!\" & AE316),0) + IF(Setup!$AH$12<>\"\",INDIRECT(\"'\" & Setup!$AH$12 & \"'!\" & AE316),0)","v":{"v":0,"d":"0.00"}},"","",{"$f":"IF(Setup!$AI$7<>\"\",INDIRECT(\"'\" & Setup!$AI$7 & \"'!\" & AD316),0) + IF(Setup!$AI$8<>\"\",INDIRECT(\"'\" & Setup!$AI$8 & \"'!\" & AD316),0) + IF(Setup!$AI$9<>\"\",INDIRECT(\"'\" & Setup!$AI$9 & \"'!\" & AD316),0) + IF(Setup!$AI$10<>\"\",INDIRECT(\"'\" & Setup!$AI$10 & \"'!\" & AD316),0) + IF(Setup!$AI$11<>\"\",INDIRECT(\"'\" & Setup!$AI$11 & \"'!\" & AD316),0) + IF(Setup!$AI$12<>\"\",INDIRECT(\"'\" & Setup!$AI$12 & \"'!\" & AD316),0)","v":{"v":0,"d":"0.00"}},{"$f":"IF(Setup!$AI$7<>\"\",INDIRECT(\"'\" & Setup!$AI$7 & \"'!\" & AE316),0) + IF(Setup!$AI$8<>\"\",INDIRECT(\"'\" & Setup!$AI$8 & \"'!\" & AE316),0) + IF(Setup!$AI$9<>\"\",INDIRECT(\"'\" & Setup!$AI$9 & \"'!\" & AE316),0) + IF(Setup!$AI$10<>\"\",INDIRECT(\"'\" & Setup!$AI$10 & \"'!\" & AE316),0) + IF(Setup!$AI$11<>\"\",INDIRECT(\"'\" & Setup!$AI$11 & \"'!\" & AE316),0) + IF(Setup!$AI$12<>\"\",INDIRECT(\"'\" & Setup!$AI$12 & \"'!\" & AE316),0)","v":{"v":0,"d":"0.00"}},"","",{"$f":"IF(Setup!$AJ$7<>\"\",INDIRECT(\"'\" & Setup!$AJ$7 & \"'!\" & AD316),0) + IF(Setup!$AJ$8<>\"\",INDIRECT(\"'\" & Setup!$AJ$8 & \"'!\" & AD316),0) + IF(Setup!$AJ$9<>\"\",INDIRECT(\"'\" & Setup!$AJ$9 & \"'!\" & AD316),0) + IF(Setup!$AJ$10<>\"\",INDIRECT(\"'\" & Setup!$AJ$10 & \"'!\" & AD316),0) + IF(Setup!$AJ$11<>\"\",INDIRECT(\"'\" & Setup!$AJ$11 & \"'!\" & AD316),0) + IF(Setup!$AJ$12<>\"\",INDIRECT(\"'\" & Setup!$AJ$12 & \"'!\" & AD316),0)","v":0},{"$f":"IF(Setup!$AJ$7<>\"\",INDIRECT(\"'\" & Setup!$AJ$7 & \"'!\" & AE316),0) + IF(Setup!$AJ$8<>\"\",INDIRECT(\"'\" & Setup!$AJ$8 & \"'!\" & AE316),0) + IF(Setup!$AJ$9<>\"\",INDIRECT(\"'\" & Setup!$AJ$9 & \"'!\" & AE316),0) + IF(Setup!$AJ$10<>\"\",INDIRECT(\"'\" & Setup!$AJ$10 & \"'!\" & AE316),0) + IF(Setup!$AJ$11<>\"\",INDIRECT(\"'\" & Setup!$AJ$11 & \"'!\" & AE316),0) + IF(Setup!$AJ$12<>\"\",INDIRECT(\"'\" & Setup!$AJ$12 & \"'!\" & AE316),0)","v":0},"","",{"$f":"Planning!H88","v":0},"00","M104","O104","N104",null,null,{"$f":"IF(Setup!$AG$7<>\"\",INDIRECT(\"'\" & Setup!$AG$7 & \"'!\" & AF316),0) + IF(Setup!$AG$8<>\"\",INDIRECT(\"'\" & Setup!$AG$8 & \"'!\" & AF316),0) + IF(Setup!$AG$9<>\"\",INDIRECT(\"'\" & Setup!$AG$9 & \"'!\" & AF316),0) + IF(Setup!$AG$10<>\"\",INDIRECT(\"'\" & Setup!$AG$10 & \"'!\" & AF316),0) + IF(Setup!$AG$11<>\"\",INDIRECT(\"'\" & Setup!$AG$11 & \"'!\" & AF316),0) + IF(Setup!$AG$12<>\"\",INDIRECT(\"'\" & Setup!$AG$12 & \"'!\" & AF316),0)","v":0},{"$f":"IF(Setup!$AH$7<>\"\",INDIRECT(\"'\" & Setup!$AH$7 & \"'!\" & AF316),0) + IF(Setup!$AH$8<>\"\",INDIRECT(\"'\" & Setup!$AH$8 & \"'!\" & AF316),0) + IF(Setup!$AH$9<>\"\",INDIRECT(\"'\" & Setup!$AH$9 & \"'!\" & AF316),0) + IF(Setup!$AH$10<>\"\",INDIRECT(\"'\" & Setup!$AH$10 & \"'!\" & AF316),0) + IF(Setup!$AH$11<>\"\",INDIRECT(\"'\" & Setup!$AH$11 & \"'!\" & AF316),0) + IF(Setup!$AH$12<>\"\",INDIRECT(\"'\" & Setup!$AH$12 & \"'!\" & AF316),0)","v":0},{"$f":"IF(Setup!$AI$7<>\"\",INDIRECT(\"'\" & Setup!$AI$7 & \"'!\" & AF316),0) + IF(Setup!$AI$8<>\"\",INDIRECT(\"'\" & Setup!$AI$8 & \"'!\" & AF316),0) + IF(Setup!$AI$9<>\"\",INDIRECT(\"'\" & Setup!$AI$9 & \"'!\" & AF316),0) + IF(Setup!$AI$10<>\"\",INDIRECT(\"'\" & Setup!$AI$10 & \"'!\" & AF316),0) + IF(Setup!$AI$11<>\"\",INDIRECT(\"'\" & Setup!$AI$11 & \"'!\" & AF316),0) + IF(Setup!$AI$12<>\"\",INDIRECT(\"'\" & Setup!$AI$12 & \"'!\" & AF316),0)","v":0},{"$f":"IF(Setup!$AJ$7<>\"\",INDIRECT(\"'\" & Setup!$AJ$7 & \"'!\" & AF316),0) + IF(Setup!$AJ$8<>\"\",INDIRECT(\"'\" & Setup!$AJ$8 & \"'!\" & AF316),0) + IF(Setup!$AJ$9<>\"\",INDIRECT(\"'\" & Setup!$AJ$9 & \"'!\" & AF316),0) + IF(Setup!$AJ$10<>\"\",INDIRECT(\"'\" & Setup!$AJ$10 & \"'!\" & AF316),0) + IF(Setup!$AJ$11<>\"\",INDIRECT(\"'\" & Setup!$AJ$11 & \"'!\" & AF316),0) + IF(Setup!$AJ$12<>\"\",INDIRECT(\"'\" & Setup!$AJ$12 & \"'!\" & AF316),0)","v":0},null,"",{"$nulls":30},0,{"$f":"IF(Setup!$AH$7=\"\",0,INDIRECT(\"'\" & Setup!$AH$7 & \"'!\" & AF316))","v":0},{"$f":"IF(Setup!$AI$7=\"\",0,INDIRECT(\"'\" & Setup!$AI$7 & \"'!\" & AF316))","v":0},{"$f":"IF(Setup!$AJ$7=\"\",0,INDIRECT(\"'\" & Setup!$AJ$7 & \"'!\" & AF316))","v":0}]
[{"$f":"Planning!A89","v":"I081"},{"$f":"Planning!B89","v":0},{"$f":"Planning!C89","v":0},{"$f":"Planning!D89","v":0},{"$f":"Planning!E89","v":0},{"$f":"Planning!G89","v":0},0,{"v":0,"d":"0.00"},{"v":0,"d":"0.00"},"","",{"$f":"IF(Setup!$AG$7<>\"\",INDIRECT(\"'\" & Setup!$AG$7 & \"'!\" & AD317),0) + IF(Setup!$AG$8<>\"\",INDIRECT(\"'\" & Setup!$AG$8 & \"'!\" & AD317),0) + IF(Setup!$AG$9<>\"\",INDIRECT(\"'\" & Setup!$AG$9 & \"'!\" & AD317),0) + IF(Setup!$AG$10<>\"\",INDIRECT(\"'\" & Setup!$AG$10 & \"'!\" & AD317),0) + IF(Setup!$AG$11<>\"\",INDIRECT(\"'\" & Setup!$AG$11 & \"'!\" & AD317),0) + IF(Setup!$AG$12<>\"\",INDIRECT(\"'\" & Setup!$AG$12 & \"'!\" & AD317),0)","v":{"v":0,"d":"0.00"}},{"$f":"IF(Setup!$AG$7<>\"\",INDIRECT(\"'\" & Setup!$AG$7 & \"'!\" & AE317),0) + IF(Setup!$AG$8<>\"\",INDIRECT(\"'\" & Setup!$AG$8 & \"'!\" & AE317),0) + IF(Setup!$AG$9<>\"\",INDIRECT(\"'\" & Setup!$AG$9 & \"'!\" & AE317),0) + IF(Setup!$AG$10<>\"\",INDIRECT(\"'\" & Setup!$AG$10 & \"'!\" & AE317),0) + IF(Setup!$AG$11<>\"\",INDIRECT(\"'\" & Setup!$AG$11 & \"'!\" & AE317),0) + IF(Setup!$AG$12<>\"\",INDIRECT(\"'\" & Setup!$AG$12 & \"'!\" & AE317),0)","v":{"v":0,"d":"0.00"}},"","",{"$f":"IF(Setup!$AH$7<>\"\",INDIRECT(\"'\" & Setup!$AH$7 & \"'!\" & AD317),0) + IF(Setup!$AH$8<>\"\",INDIRECT(\"'\" & Setup!$AH$8 & \"'!\" & AD317),0) + IF(Setup!$AH$9<>\"\",INDIRECT(\"'\" & Setup!$AH$9 & \"'!\" & AD317),0) + IF(Setup!$AH$10<>\"\",INDIRECT(\"'\" & Setup!$AH$10 & \"'!\" & AD317),0) + IF(Setup!$AH$11<>\"\",INDIRECT(\"'\" & Setup!$AH$11 & \"'!\" & AD317),0) + IF(Setup!$AH$12<>\"\",INDIRECT(\"'\" & Setup!$AH$12 & \"'!\" & AD317),0)","v":{"v":0,"d":"0.00"}},{"$f":"IF(Setup!$AH$7<>\"\",INDIRECT(\"'\" & Setup!$AH$7 & \"'!\" & AE317),0) + IF(Setup!$AH$8<>\"\",INDIRECT(\"'\" & Setup!$AH$8 & \"'!\" & AE317),0) + IF(Setup!$AH$9<>\"\",INDIRECT(\"'\" & Setup!$AH$9 & \"'!\" & AE317),0) + IF(Setup!$AH$10<>\"\",INDIRECT(\"'\" & Setup!$AH$10 & \"'!\" & AE317),0) + IF(Setup!$AH$11<>\"\",INDIRECT(\"'\" & Setup!$AH$11 & \"'!\" & AE317),0) + IF(Setup!$AH$12<>\"\",INDIRECT(\"'\" & Setup!$AH$12 & \"'!\" & AE317),0)","v":{"v":0,"d":"0.00"}},"","",{"$f":"IF(Setup!$AI$7<>\"\",INDIRECT(\"'\" & Setup!$AI$7 & \"'!\" & AD317),0) + IF(Setup!$AI$8<>\"\",INDIRECT(\"'\" & Setup!$AI$8 & \"'!\" & AD317),0) + IF(Setup!$AI$9<>\"\",INDIRECT(\"'\" & Setup!$AI$9 & \"'!\" & AD317),0) + IF(Setup!$AI$10<>\"\",INDIRECT(\"'\" & Setup!$AI$10 & \"'!\" & AD317),0) + IF(Setup!$AI$11<>\"\",INDIRECT(\"'\" & Setup!$AI$11 & \"'!\" & AD317),0) + IF(Setup!$AI$12<>\"\",INDIRECT(\"'\" & Setup!$AI$12 & \"'!\" & AD317),0)","v":{"v":0,"d":"0.00"}},{"$f":"IF(Setup!$AI$7<>\"\",INDIRECT(\"'\" & Setup!$AI$7 & \"'!\" & AE317),0) + IF(Setup!$AI$8<>\"\",INDIRECT(\"'\" & Setup!$AI$8 & \"'!\" & AE317),0) + IF(Setup!$AI$9<>\"\",INDIRECT(\"'\" & Setup!$AI$9 & \"'!\" & AE317),0) + IF(Setup!$AI$10<>\"\",INDIRECT(\"'\" & Setup!$AI$10 & \"'!\" & AE317),0) + IF(Setup!$AI$11<>\"\",INDIRECT(\"'\" & Setup!$AI$11 & \"'!\" & AE317),0) + IF(Setup!$AI$12<>\"\",INDIRECT(\"'\" & Setup!$AI$12 & \"'!\" & AE317),0)","v":{"v":0,"d":"0.00"}},"","",{"$f":"IF(Setup!$AJ$7<>\"\",INDIRECT(\"'\" & Setup!$AJ$7 & \"'!\" & AD317),0) + IF(Setup!$AJ$8<>\"\",INDIRECT(\"'\" & Setup!$AJ$8 & \"'!\" & AD317),0) + IF(Setup!$AJ$9<>\"\",INDIRECT(\"'\" & Setup!$AJ$9 & \"'!\" & AD317),0) + IF(Setup!$AJ$10<>\"\",INDIRECT(\"'\" & Setup!$AJ$10 & \"'!\" & AD317),0) + IF(Setup!$AJ$11<>\"\",INDIRECT(\"'\" & Setup!$AJ$11 & \"'!\" & AD317),0) + IF(Setup!$AJ$12<>\"\",INDIRECT(\"'\" & Setup!$AJ$12 & \"'!\" & AD317),0)","v":0},{"$f":"IF(Setup!$AJ$7<>\"\",INDIRECT(\"'\" & Setup!$AJ$7 & \"'!\" & AE317),0) + IF(Setup!$AJ$8<>\"\",INDIRECT(\"'\" & Setup!$AJ$8 & \"'!\" & AE317),0) + IF(Setup!$AJ$9<>\"\",INDIRECT(\"'\" & Setup!$AJ$9 & \"'!\" & AE317),0) + IF(Setup!$AJ$10<>\"\",INDIRECT(\"'\" & Setup!$AJ$10 & \"'!\" & AE317),0) + IF(Setup!$AJ$11<>\"\",INDIRECT(\"'\" & Setup!$AJ$11 & \"'!\" & AE317),0) + IF(Setup!$AJ$12<>\"\",INDIRECT(\"'\" & Setup!$AJ$12 & \"'!\" & AE317),0)","v":0},"","",{"$f":"Planning!H89","v":0},"00","M105","O105","N105",null,null,{"$f":"IF(Setup!$AG$7<>\"\",INDIRECT(\"'\" & Setup!$AG$7 & \"'!\" & AF317),0) + IF(Setup!$AG$8<>\"\",INDIRECT(\"'\" & Setup!$AG$8 & \"'!\" & AF317),0) + IF(Setup!$AG$9<>\"\",INDIRECT(\"'\" & Setup!$AG$9 & \"'!\" & AF317),0) + IF(Setup!$AG$10<>\"\",INDIRECT(\"'\" & Setup!$AG$10 & \"'!\" & AF317),0) + IF(Setup!$AG$11<>\"\",INDIRECT(\"'\" & Setup!$AG$11 & \"'!\" & AF317),0) + IF(Setup!$AG$12<>\"\",INDIRECT(\"'\" & Setup!$AG$12 & \"'!\" & AF317),0)","v":0},{"$f":"IF(Setup!$AH$7<>\"\",INDIRECT(\"'\" & Setup!$AH$7 & \"'!\" & AF317),0) + IF(Setup!$AH$8<>\"\",INDIRECT(\"'\" & Setup!$AH$8 & \"'!\" & AF317),0) + IF(Setup!$AH$9<>\"\",INDIRECT(\"'\" & Setup!$AH$9 & \"'!\" & AF317),0) + IF(Setup!$AH$10<>\"\",INDIRECT(\"'\" & Setup!$AH$10 & \"'!\" & AF317),0) + IF(Setup!$AH$11<>\"\",INDIRECT(\"'\" & Setup!$AH$11 & \"'!\" & AF317),0) + IF(Setup!$AH$12<>\"\",INDIRECT(\"'\" & Setup!$AH$12 & \"'!\" & AF317),0)","v":0},{"$f":"IF(Setup!$AI$7<>\"\",INDIRECT(\"'\" & Setup!$AI$7 & \"'!\" & AF317),0) + IF(Setup!$AI$8<>\"\",INDIRECT(\"'\" & Setup!$AI$8 & \"'!\" & AF317),0) + IF(Setup!$AI$9<>\"\",INDIRECT(\"'\" & Setup!$AI$9 & \"'!\" & AF317),0) + IF(Setup!$AI$10<>\"\",INDIRECT(\"'\" & Setup!$AI$10 & \"'!\" & AF317),0) + IF(Setup!$AI$11<>\"\",INDIRECT(\"'\" & Setup!$AI$11 & \"'!\" & AF317),0) + IF(Setup!$AI$12<>\"\",INDIRECT(\"'\" & Setup!$AI$12 & \"'!\" & AF317),0)","v":0},{"$f":"IF(Setup!$AJ$7<>\"\",INDIRECT(\"'\" & Setup!$AJ$7 & \"'!\" & AF317),0) + IF(Setup!$AJ$8<>\"\",INDIRECT(\"'\" & Setup!$AJ$8 & \"'!\" & AF317),0) + IF(Setup!$AJ$9<>\"\",INDIRECT(\"'\" & Setup!$AJ$9 & \"'!\" & AF317),0) + IF(Setup!$AJ$10<>\"\",INDIRECT(\"'\" & Setup!$AJ$10 & \"'!\" & AF317),0) + IF(Setup!$AJ$11<>\"\",INDIRECT(\"'\" & Setup!$AJ$11 & \"'!\" & AF317),0) + IF(Setup!$AJ$12<>\"\",INDIRECT(\"'\" & Setup!$AJ$12 & \"'!\" & AF317),0)","v":0},null,"",{"$nulls":30},0,{"$f":"IF(Setup!$AH$7=\"\",0,INDIRECT(\"'\" & Setup!$AH$7 & \"'!\" & AF317))","v":0},{"$f":"IF(Setup!$AI$7=\"\",0,INDIRECT(\"'\" & Setup!$AI$7 & \"'!\" & AF317))","v":0},{"$f":"IF(Setup!$AJ$7=\"\",0,INDIRECT(\"'\" & Setup!$AJ$7 & \"'!\" & AF317))","v":0}]
[{"$f":"Planning!A90","v":"I082"},{"$f":"Planning!B90","v":0},{"$f":"Planning!C90","v":0},{"$f":"Planning!D90","v":0},{"$f":"Planning!E90","v":0},{"$f":"Planning!G90","v":0},0,{"v":0,"d":"0.00"},{"v":0,"d":"0.00"},"","",{"$f":"IF(Setup!$AG$7<>\"\",INDIRECT(\"'\" & Setup!$AG$7 & \"'!\" & AD318),0) + IF(Setup!$AG$8<>\"\",INDIRECT(\"'\" & Setup!$AG$8 & \"'!\" & AD318),0) + IF(Setup!$AG$9<>\"\",INDIRECT(\"'\" & Setup!$AG$9 & \"'!\" & AD318),0) + IF(Setup!$AG$10<>\"\",INDIRECT(\"'\" & Setup!$AG$10 & \"'!\" & AD318),0) + IF(Setup!$AG$11<>\"\",INDIRECT(\"'\" & Setup!$AG$11 & \"'!\" & AD318),0) + IF(Setup!$AG$12<>\"\",INDIRECT(\"'\" & Setup!$AG$12 & \"'!\" & AD318),0)","v":{"v":0,"d":"0.00"}},{"$f":"IF(Setup!$AG$7<>\"\",INDIRECT(\"'\" & Setup!$AG$7 & \"'!\" & AE318),0) + IF(Setup!$AG$8<>\"\",INDIRECT(\"'\" & Setup!$AG$8 & \"'!\" & AE318),0) + IF(Setup!$AG$9<>\"\",INDIRECT(\"'\" & Setup!$AG$9 & \"'!\" & AE318),0) + IF(Setup!$AG$10<>\"\",INDIRECT(\"'\" & Setup!$AG$10 & \"'!\" & AE318),0) + IF(Setup!$AG$11<>\"\",INDIRECT(\"'\" & Setup!$AG$11 & \"'!\" & AE318),0) + IF(Setup!$AG$12<>\"\",INDIRECT(\"'\" & Setup!$AG$12 & \"'!\" & AE318),0)","v":{"v":0,"d":"0.00"}},"","",{"$f":"IF(Setup!$AH$7<>\"\",INDIRECT(\"'\" & Setup!$AH$7 & \"'!\" & AD318),0) + IF(Setup!$AH$8<>\"\",INDIRECT(\"'\" & Setup!$AH$8 & \"'!\" & AD318),0) + IF(Setup!$AH$9<>\"\",INDIRECT(\"'\" & Setup!$AH$9 & \"'!\" & AD318),0) + IF(Setup!$AH$10<>\"\",INDIRECT(\"'\" & Setup!$AH$10 & \"'!\" & AD318),0) + IF(Setup!$AH$11<>\"\",INDIRECT(\"'\" & Setup!$AH$11 & \"'!\" & AD318),0) + IF(Setup!$AH$12<>\"\",INDIRECT(\"'\" & Setup!$AH$12 & \"'!\" & AD318),0)","v":{"v":0,"d":"0.00"}},{"$f":"IF(Setup!$AH$7<>\"\",INDIRECT(\"'\" & Setup!$AH$7 & \"'!\" & AE318),0) + IF(Setup!$AH$8<>\"\",INDIRECT(\"'\" & Setup!$AH$8 & \"'!\" & AE318),0) + IF(Setup!$AH$9<>\"\",INDIRECT(\"'\" & Setup!$AH$9 & \"'!\" & AE318),0) + IF(Setup!$AH$10<>\"\",INDIRECT(\"'\" & Setup!$AH$10 & \"'!\" & AE318),0) + IF(Setup!$AH$11<>\"\",INDIRECT(\"'\" & Setup!$AH$11 & \"'!\" & AE318),0) + IF(Setup!$AH$12<>\"\",INDIRECT(\"'\" & Setup!$AH$12 & \"'!\" & AE318),0)","v":{"v":0,"d":"0.00"}},"","",{"$f":"IF(Setup!$AI$7<>\"\",INDIRECT(\"'\" & Setup!$AI$7 & \"'!\" & AD318),0) + IF(Setup!$AI$8<>\"\",INDIRECT(\"'\" & Setup!$AI$8 & \"'!\" & AD318),0) + IF(Setup!$AI$9<>\"\",INDIRECT(\"'\" & Setup!$AI$9 & \"'!\" & AD318),0) + IF(Setup!$AI$10<>\"\",INDIRECT(\"'\" & Setup!$AI$10 & \"'!\" & AD318),0) + IF(Setup!$AI$11<>\"\",INDIRECT(\"'\" & Setup!$AI$11 & \"'!\" & AD318),0) + IF(Setup!$AI$12<>\"\",INDIRECT(\"'\" & Setup!$AI$12 & \"'!\" & AD318),0)","v":{"v":0,"d":"0.00"}},{"$f":"IF(Setup!$AI$7<>\"\",INDIRECT(\"'\" & Setup!$AI$7 & \"'!\" & AE318),0) + IF(Setup!$AI$8<>\"\",INDIRECT(\"'\" & Setup!$AI$8 & \"'!\" & AE318),0) + IF(Setup!$AI$9<>\"\",INDIRECT(\"'\" & Setup!$AI$9 & \"'!\" & AE318),0) + IF(Setup!$AI$10<>\"\",INDIRECT(\"'\" & Setup!$AI$10 & \"'!\" & AE318),0) + IF(Setup!$AI$11<>\"\",INDIRECT(\"'\" & Setup!$AI$11 & \"'!\" & AE318),0) + IF(Setup!$AI$12<>\"\",INDIRECT(\"'\" & Setup!$AI$12 & \"'!\" & AE318),0)","v":{"v":0,"d":"0.00"}},"","",{"$f":"IF(Setup!$AJ$7<>\"\",INDIRECT(\"'\" & Setup!$AJ$7 & \"'!\" & AD318),0) + IF(Setup!$AJ$8<>\"\",INDIRECT(\"'\" & Setup!$AJ$8 & \"'!\" & AD318),0) + IF(Setup!$AJ$9<>\"\",INDIRECT(\"'\" & Setup!$AJ$9 & \"'!\" & AD318),0) + IF(Setup!$AJ$10<>\"\",INDIRECT(\"'\" & Setup!$AJ$10 & \"'!\" & AD318),0) + IF(Setup!$AJ$11<>\"\",INDIRECT(\"'\" & Setup!$AJ$11 & \"'!\" & AD318),0) + IF(Setup!$AJ$12<>\"\",INDIRECT(\"'\" & Setup!$AJ$12 & \"'!\" & AD318),0)","v":0},{"$f":"IF(Setup!$AJ$7<>\"\",INDIRECT(\"'\" & Setup!$AJ$7 & \"'!\" & AE318),0) + IF(Setup!$AJ$8<>\"\",INDIRECT(\"'\" & Setup!$AJ$8 & \"'!\" & AE318),0) + IF(Setup!$AJ$9<>\"\",INDIRECT(\"'\" & Setup!$AJ$9 & \"'!\" & AE318),0) + IF(Setup!$AJ$10<>\"\",INDIRECT(\"'\" & Setup!$AJ$10 & \"'!\" & AE318),0) + IF(Setup!$AJ$11<>\"\",INDIRECT(\"'\" & Setup!$AJ$11 & \"'!\" & AE318),0) + IF(Setup!$AJ$12<>\"\",INDIRECT(\"'\" & Setup!$AJ$12 & \"'!\" & AE318),0)","v":0},"","",{"$f":"Planning!H90","v":0},"00","M106","O106","N106",null,null,{"$f":"IF(Setup!$AG$7<>\"\",INDIRECT(\"'\" & Setup!$AG$7 & \"'!\" & AF318),0) + IF(Setup!$AG$8<>\"\",INDIRECT(\"'\" & Setup!$AG$8 & \"'!\" & AF318),0) + IF(Setup!$AG$9<>\"\",INDIRECT(\"'\" & Setup!$AG$9 & \"'!\" & AF318),0) + IF(Setup!$AG$10<>\"\",INDIRECT(\"'\" & Setup!$AG$10 & \"'!\" & AF318),0) + IF(Setup!$AG$11<>\"\",INDIRECT(\"'\" & Setup!$AG$11 & \"'!\" & AF318),0) + IF(Setup!$AG$12<>\"\",INDIRECT(\"'\" & Setup!$AG$12 & \"'!\" & AF318),0)","v":0},{"$f":"IF(Setup!$AH$7<>\"\",INDIRECT(\"'\" & Setup!$AH$7 & \"'!\" & AF318),0) + IF(Setup!$AH$8<>\"\",INDIRECT(\"'\" & Setup!$AH$8 & \"'!\" & AF318),0) + IF(Setup!$AH$9<>\"\",INDIRECT(\"'\" & Setup!$AH$9 & \"'!\" & AF318),0) + IF(Setup!$AH$10<>\"\",INDIRECT(\"'\" & Setup!$AH$10 & \"'!\" & AF318),0) + IF(Setup!$AH$11<>\"\",INDIRECT(\"'\" & Setup!$AH$11 & \"'!\" & AF318),0) + IF(Setup!$AH$12<>\"\",INDIRECT(\"'\" & Setup!$AH$12 & \"'!\" & AF318),0)","v":0},{"$f":"IF(Setup!$AI$7<>\"\",INDIRECT(\"'\" & Setup!$AI$7 & \"'!\" & AF318),0) + IF(Setup!$AI$8<>\"\",INDIRECT(\"'\" & Setup!$AI$8 & \"'!\" & AF318),0) + IF(Setup!$AI$9<>\"\",INDIRECT(\"'\" & Setup!$AI$9 & \"'!\" & AF318),0) + IF(Setup!$AI$10<>\"\",INDIRECT(\"'\" & Setup!$AI$10 & \"'!\" & AF318),0) + IF(Setup!$AI$11<>\"\",INDIRECT(\"'\" & Setup!$AI$11 & \"'!\" & AF318),0) + IF(Setup!$AI$12<>\"\",INDIRECT(\"'\" & Setup!$AI$12 & \"'!\" & AF318),0)","v":0},{"$f":"IF(Setup!$AJ$7<>\"\",INDIRECT(\"'\" & Setup!$AJ$7 & \"'!\" & AF318),0) + IF(Setup!$AJ$8<>\"\",INDIRECT(\"'\" & Setup!$AJ$8 & \"'!\" & AF318),0) + IF(Setup!$AJ$9<>\"\",INDIRECT(\"'\" & Setup!$AJ$9 & \"'!\" & AF318),0) + IF(Setup!$AJ$10<>\"\",INDIRECT(\"'\" & Setup!$AJ$10 & \"'!\" & AF318),0) + IF(Setup!$AJ$11<>\"\",INDIRECT(\"'\" & Setup!$AJ$11 & \"'!\" & AF318),0) + IF(Setup!$AJ$12<>\"\",INDIRECT(\"'\" & Setup!$AJ$12 & \"'!\" & AF318),0)","v":0},null,"",{"$nulls":30},0,{"$f":"IF(Setup!$AH$7=\"\",0,INDIRECT(\"'\" & Setup!$AH$7 & \"'!\" & AF318))","v":0},{"$f":"IF(Setup!$AI$7=\"\",0,INDIRECT(\"'\" & Setup!$AI$7 & \"'!\" & AF318))","v":0},{"$f":"IF(Setup!$AJ$7=\"\",0,INDIRECT(\"'\" & Setup!$AJ$7 & \"'!\" & AF318))","v":0}]
[{"$f":"Planning!A91","v":"I083"},{"$f":"Planning!B91","v":0},{"$f":"Planning!C91","v":0},{"$f":"Planning!D91","v":0},{"$f":"Planning!E91","v":0},{"$f":"Planning!G91","v":0},0,{"v":0,"d":"0.00"},{"v":0,"d":"0.00"},"","",{"$f":"IF(Setup!$AG$7<>\"\",INDIRECT(\"'\" & Setup!$AG$7 & \"'!\" & AD319),0) + IF(Setup!$AG$8<>\"\",INDIRECT(\"'\" & Setup!$AG$8 & \"'!\" & AD319),0) + IF(Setup!$AG$9<>\"\",INDIRECT(\"'\" & Setup!$AG$9 & \"'!\" & AD319),0) + IF(Setup!$AG$10<>\"\",INDIRECT(\"'\" & Setup!$AG$10 & \"'!\" & AD319),0) + IF(Setup!$AG$11<>\"\",INDIRECT(\"'\" & Setup!$AG$11 & \"'!\" & AD319),0) + IF(Setup!$AG$12<>\"\",INDIRECT(\"'\" & Setup!$AG$12 & \"'!\" & AD319),0)","v":{"v":0,"d":"0.00"}},{"$f":"IF(Setup!$AG$7<>\"\",INDIRECT(\"'\" & Setup!$AG$7 & \"'!\" & AE319),0) + IF(Setup!$AG$8<>\"\",INDIRECT(\"'\" & Setup!$AG$8 & \"'!\" & AE319),0) + IF(Setup!$AG$9<>\"\",INDIRECT(\"'\" & Setup!$AG$9 & \"'!\" & AE319),0) + IF(Setup!$AG$10<>\"\",INDIRECT(\"'\" & Setup!$AG$10 & \"'!\" & AE319),0) + IF(Setup!$AG$11<>\"\",INDIRECT(\"'\" & Setup!$AG$11 & \"'!\" & AE319),0) + IF(Setup!$AG$12<>\"\",INDIRECT(\"'\" & Setup!$AG$12 & \"'!\" & AE319),0)","v":{"v":0,"d":"0.00"}},"","",{"$f":"IF(Setup!$AH$7<>\"\",INDIRECT(\"'\" & Setup!$AH$7 & \"'!\" & AD319),0) + IF(Setup!$AH$8<>\"\",INDIRECT(\"'\" & Setup!$AH$8 & \"'!\" & AD319),0) + IF(Setup!$AH$9<>\"\",INDIRECT(\"'\" & Setup!$AH$9 & \"'!\" & AD319),0) + IF(Setup!$AH$10<>\"\",INDIRECT(\"'\" & Setup!$AH$10 & \"'!\" & AD319),0) + IF(Setup!$AH$11<>\"\",INDIRECT(\"'\" & Setup!$AH$11 & \"'!\" & AD319),0) + IF(Setup!$AH$12<>\"\",INDIRECT(\"'\" & Setup!$AH$12 & \"'!\" & AD319),0)","v":{"v":0,"d":"0.00"}},{"$f":"IF(Setup!$AH$7<>\"\",INDIRECT(\"'\" & Setup!$AH$7 & \"'!\" & AE319),0) + IF(Setup!$AH$8<>\"\",INDIRECT(\"'\" & Setup!$AH$8 & \"'!\" & AE319),0) + IF(Setup!$AH$9<>\"\",INDIRECT(\"'\" & Setup!$AH$9 & \"'!\" & AE319),0) + IF(Setup!$AH$10<>\"\",INDIRECT(\"'\" & Setup!$AH$10 & \"'!\" & AE319),0) + IF(Setup!$AH$11<>\"\",INDIRECT(\"'\" & Setup!$AH$11 & \"'!\" & AE319),0) + IF(Setup!$AH$12<>\"\",INDIRECT(\"'\" & Setup!$AH$12 & \"'!\" & AE319),0)","v":{"v":0,"d":"0.00"}},"","",{"$f":"IF(Setup!$AI$7<>\"\",INDIRECT(\"'\" & Setup!$AI$7 & \"'!\" & AD319),0) + IF(Setup!$AI$8<>\"\",INDIRECT(\"'\" & Setup!$AI$8 & \"'!\" & AD319),0) + IF(Setup!$AI$9<>\"\",INDIRECT(\"'\" & Setup!$AI$9 & \"'!\" & AD319),0) + IF(Setup!$AI$10<>\"\",INDIRECT(\"'\" & Setup!$AI$10 & \"'!\" & AD319),0) + IF(Setup!$AI$11<>\"\",INDIRECT(\"'\" & Setup!$AI$11 & \"'!\" & AD319),0) + IF(Setup!$AI$12<>\"\",INDIRECT(\"'\" & Setup!$AI$12 & \"'!\" & AD319),0)","v":{"v":0,"d":"0.00"}},{"$f":"IF(Setup!$AI$7<>\"\",INDIRECT(\"'\" & Setup!$AI$7 & \"'!\" & AE319),0) + IF(Setup!$AI$8<>\"\",INDIRECT(\"'\" & Setup!$AI$8 & \"'!\" & AE319),0) + IF(Setup!$AI$9<>\"\",INDIRECT(\"'\" & Setup!$AI$9 & \"'!\" & AE319),0) + IF(Setup!$AI$10<>\"\",INDIRECT(\"'\" & Setup!$AI$10 & \"'!\" & AE319),0) + IF(Setup!$AI$11<>\"\",INDIRECT(\"'\" & Setup!$AI$11 & \"'!\" & AE319),0) + IF(Setup!$AI$12<>\"\",INDIRECT(\"'\" & Setup!$AI$12 & \"'!\" & AE319),0)","v":{"v":0,"d":"0.00"}},"","",{"$f":"IF(Setup!$AJ$7<>\"\",INDIRECT(\"'\" & Setup!$AJ$7 & \"'!\" & AD319),0) + IF(Setup!$AJ$8<>\"\",INDIRECT(\"'\" & Setup!$AJ$8 & \"'!\" & AD319),0) + IF(Setup!$AJ$9<>\"\",INDIRECT(\"'\" & Setup!$AJ$9 & \"'!\" & AD319),0) + IF(Setup!$AJ$10<>\"\",INDIRECT(\"'\" & Setup!$AJ$10 & \"'!\" & AD319),0) + IF(Setup!$AJ$11<>\"\",INDIRECT(\"'\" & Setup!$AJ$11 & \"'!\" & AD319),0) + IF(Setup!$AJ$12<>\"\",INDIRECT(\"'\" & Setup!$AJ$12 & \"'!\" & AD319),0)","v":0},{"$f":"IF(Setup!$AJ$7<>\"\",INDIRECT(\"'\" & Setup!$AJ$7 & \"'!\" & AE319),0) + IF(Setup!$AJ$8<>\"\",INDIRECT(\"'\" & Setup!$AJ$8 & \"'!\" & AE319),0) + IF(Setup!$AJ$9<>\"\",INDIRECT(\"'\" & Setup!$AJ$9 & \"'!\" & AE319),0) + IF(Setup!$AJ$10<>\"\",INDIRECT(\"'\" & Setup!$AJ$10 & \"'!\" & AE319),0) + IF(Setup!$AJ$11<>\"\",INDIRECT(\"'\" & Setup!$AJ$11 & \"'!\" & AE319),0) + IF(Setup!$AJ$12<>\"\",INDIRECT(\"'\" & Setup!$AJ$12 & \"'!\" & AE319),0)","v":0},"","",{"$f":"Planning!H91","v":0},"00","M107","O107","N107",null,null,{"$f":"IF(Setup!$AG$7<>\"\",INDIRECT(\"'\" & Setup!$AG$7 & \"'!\" & AF319),0) + IF(Setup!$AG$8<>\"\",INDIRECT(\"'\" & Setup!$AG$8 & \"'!\" & AF319),0) + IF(Setup!$AG$9<>\"\",INDIRECT(\"'\" & Setup!$AG$9 & \"'!\" & AF319),0) + IF(Setup!$AG$10<>\"\",INDIRECT(\"'\" & Setup!$AG$10 & \"'!\" & AF319),0) + IF(Setup!$AG$11<>\"\",INDIRECT(\"'\" & Setup!$AG$11 & \"'!\" & AF319),0) + IF(Setup!$AG$12<>\"\",INDIRECT(\"'\" & Setup!$AG$12 & \"'!\" & AF319),0)","v":0},{"$f":"IF(Setup!$AH$7<>\"\",INDIRECT(\"'\" & Setup!$AH$7 & \"'!\" & AF319),0) + IF(Setup!$AH$8<>\"\",INDIRECT(\"'\" & Setup!$AH$8 & \"'!\" & AF319),0) + IF(Setup!$AH$9<>\"\",INDIRECT(\"'\" & Setup!$AH$9 & \"'!\" & AF319),0) + IF(Setup!$AH$10<>\"\",INDIRECT(\"'\" & Setup!$AH$10 & \"'!\" & AF319),0) + IF(Setup!$AH$11<>\"\",INDIRECT(\"'\" & Setup!$AH$11 & \"'!\" & AF319),0) + IF(Setup!$AH$12<>\"\",INDIRECT(\"'\" & Setup!$AH$12 & \"'!\" & AF319),0)","v":0},{"$f":"IF(Setup!$AI$7<>\"\",INDIRECT(\"'\" & Setup!$AI$7 & \"'!\" & AF319),0) + IF(Setup!$AI$8<>\"\",INDIRECT(\"'\" & Setup!$AI$8 & \"'!\" & AF319),0) + IF(Setup!$AI$9<>\"\",INDIRECT(\"'\" & Setup!$AI$9 & \"'!\" & AF319),0) + IF(Setup!$AI$10<>\"\",INDIRECT(\"'\" & Setup!$AI$10 & \"'!\" & AF319),0) + IF(Setup!$AI$11<>\"\",INDIRECT(\"'\" & Setup!$AI$11 & \"'!\" & AF319),0) + IF(Setup!$AI$12<>\"\",INDIRECT(\"'\" & Setup!$AI$12 & \"'!\" & AF319),0)","v":0},{"$f":"IF(Setup!$AJ$7<>\"\",INDIRECT(\"'\" & Setup!$AJ$7 & \"'!\" & AF319),0) + IF(Setup!$AJ$8<>\"\",INDIRECT(\"'\" & Setup!$AJ$8 & \"'!\" & AF319),0) + IF(Setup!$AJ$9<>\"\",INDIRECT(\"'\" & Setup!$AJ$9 & \"'!\" & AF319),0) + IF(Setup!$AJ$10<>\"\",INDIRECT(\"'\" & Setup!$AJ$10 & \"'!\" & AF319),0) + IF(Setup!$AJ$11<>\"\",INDIRECT(\"'\" & Setup!$AJ$11 & \"'!\" & AF319),0) + IF(Setup!$AJ$12<>\"\",INDIRECT(\"'\" & Setup!$AJ$12 & \"'!\" & AF319),0)","v":0},null,"",{"$nulls":30},0,{"$f":"IF(Setup!$AH$7=\"\",0,INDIRECT(\"'\" & Setup!$AH$7 & \"'!\" & AF319))","v":0},{"$f":"IF(Setup!$AI$7=\"\",0,INDIRECT(\"'\" & Setup!$AI$7 & \"'!\" & AF319))","v":0},{"$f":"IF(Setup!$AJ$7=\"\",0,INDIRECT(\"'\" & Setup!$AJ$7 & \"'!\" & AF319))","v":0}]
[{"$f":"Planning!A92","v":"I084"},{"$f":"Planning!B92","v":0},{"$f":"Planning!C92","v":0},{"$f":"Planning!D92","v":0},{"$f":"Planning!E92","v":0},{"$f":"Planning!G92","v":0},0,{"v":0,"d":"0.00"},{"v":0,"d":"0.00"},"","",{"$f":"IF(Setup!$AG$7<>\"\",INDIRECT(\"'\" & Setup!$AG$7 & \"'!\" & AD320),0) + IF(Setup!$AG$8<>\"\",INDIRECT(\"'\" & Setup!$AG$8 & \"'!\" & AD320),0) + IF(Setup!$AG$9<>\"\",INDIRECT(\"'\" & Setup!$AG$9 & \"'!\" & AD320),0) + IF(Setup!$AG$10<>\"\",INDIRECT(\"'\" & Setup!$AG$10 & \"'!\" & AD320),0) + IF(Setup!$AG$11<>\"\",INDIRECT(\"'\" & Setup!$AG$11 & \"'!\" & AD320),0) + IF(Setup!$AG$12<>\"\",INDIRECT(\"'\" & Setup!$AG$12 & \"'!\" & AD320),0)","v":{"v":0,"d":"0.00"}},{"$f":"IF(Setup!$AG$7<>\"\",INDIRECT(\"'\" & Setup!$AG$7 & \"'!\" & AE320),0) + IF(Setup!$AG$8<>\"\",INDIRECT(\"'\" & Setup!$AG$8 & \"'!\" & AE320),0) + IF(Setup!$AG$9<>\"\",INDIRECT(\"'\" & Setup!$AG$9 & \"'!\" & AE320),0) + IF(Setup!$AG$10<>\"\",INDIRECT(\"'\" & Setup!$AG$10 & \"'!\" & AE320),0) + IF(Setup!$AG$11<>\"\",INDIRECT(\"'\" & Setup!$AG$11 & \"'!\" & AE320),0) + IF(Setup!$AG$12<>\"\",INDIRECT(\"'\" & Setup!$AG$12 & \"'!\" & AE320),0)","v":{"v":0,"d":"0.00"}},"","",{"$f":"IF(Setup!$AH$7<>\"\",INDIRECT(\"'\" & Setup!$AH$7 & \"'!\" & AD320),0) + IF(Setup!$AH$8<>\"\",INDIRECT(\"'\" & Setup!$AH$8 & \"'!\" & AD320),0) + IF(Setup!$AH$9<>\"\",INDIRECT(\"'\" & Setup!$AH$9 & \"'!\" & AD320),0) + IF(Setup!$AH$10<>\"\",INDIRECT(\"'\" & Setup!$AH$10 & \"'!\" & AD320),0) + IF(Setup!$AH$11<>\"\",INDIRECT(\"'\" & Setup!$AH$11 & \"'!\" & AD320),0) + IF(Setup!$AH$12<>\"\",INDIRECT(\"'\" & Setup!$AH$12 & \"'!\" & AD320),0)","v":{"v":0,"d":"0.00"}},{"$f":"IF(Setup!$AH$7<>\"\",INDIRECT(\"'\" & Setup!$AH$7 & \"'!\" & AE320),0) + IF(Setup!$AH$8<>\"\",INDIRECT(\"'\" & Setup!$AH$8 & \"'!\" & AE320),0) + IF(Setup!$AH$9<>\"\",INDIRECT(\"'\" & Setup!$AH$9 & \"'!\" & AE320),0) + IF(Setup!$AH$10<>\"\",INDIRECT(\"'\" & Setup!$AH$10 & \"'!\" & AE320),0) + IF(Setup!$AH$11<>\"\",INDIRECT(\"'\" & Setup!$AH$11 & \"'!\" & AE320),0) + IF(Setup!$AH$12<>\"\",INDIRECT(\"'\" & Setup!$AH$12 & \"'!\" & AE320),0)","v":{"v":0,"d":"0.00"}},"","",{"$f":"IF(Setup!$AI$7<>\"\",INDIRECT(\"'\" & Setup!$AI$7 & \"'!\" & AD320),0) + IF(Setup!$AI$8<>\"\",INDIRECT(\"'\" & Setup!$AI$8 & \"'!\" & AD320),0) + IF(Setup!$AI$9<>\"\",INDIRECT(\"'\" & Setup!$AI$9 & \"'!\" & AD320),0) + IF(Setup!$AI$10<>\"\",INDIRECT(\"'\" & Setup!$AI$10 & \"'!\" & AD320),0) + IF(Setup!$AI$11<>\"\",INDIRECT(\"'\" & Setup!$AI$11 & \"'!\" & AD320),0) + IF(Setup!$AI$12<>\"\",INDIRECT(\"'\" & Setup!$AI$12 & \"'!\" & AD320),0)","v":{"v":0,"d":"0.00"}},{"$f":"IF(Setup!$AI$7<>\"\",INDIRECT(\"'\" & Setup!$AI$7 & \"'!\" & AE320),0) + IF(Setup!$AI$8<>\"\",INDIRECT(\"'\" & Setup!$AI$8 & \"'!\" & AE320),0) + IF(Setup!$AI$9<>\"\",INDIRECT(\"'\" & Setup!$AI$9 & \"'!\" & AE320),0) + IF(Setup!$AI$10<>\"\",INDIRECT(\"'\" & Setup!$AI$10 & \"'!\" & AE320),0) + IF(Setup!$AI$11<>\"\",INDIRECT(\"'\" & Setup!$AI$11 & \"'!\" & AE320),0) + IF(Setup!$AI$12<>\"\",INDIRECT(\"'\" & Setup!$AI$12 & \"'!\" & AE320),0)","v":{"v":0,"d":"0.00"}},"","",{"$f":"IF(Setup!$AJ$7<>\"\",INDIRECT(\"'\" & Setup!$AJ$7 & \"'!\" & AD320),0) + IF(Setup!$AJ$8<>\"\",INDIRECT(\"'\" & Setup!$AJ$8 & \"'!\" & AD320),0) + IF(Setup!$AJ$9<>\"\",INDIRECT(\"'\" & Setup!$AJ$9 & \"'!\" & AD320),0) + IF(Setup!$AJ$10<>\"\",INDIRECT(\"'\" & Setup!$AJ$10 & \"'!\" & AD320),0) + IF(Setup!$AJ$11<>\"\",INDIRECT(\"'\" & Setup!$AJ$11 & \"'!\" & AD320),0) + IF(Setup!$AJ$12<>\"\",INDIRECT(\"'\" & Setup!$AJ$12 & \"'!\" & AD320),0)","v":0},{"$f":"IF(Setup!$AJ$7<>\"\",INDIRECT(\"'\" & Setup!$AJ$7 & \"'!\" & AE320),0) + IF(Setup!$AJ$8<>\"\",INDIRECT(\"'\" & Setup!$AJ$8 & \"'!\" & AE320),0) + IF(Setup!$AJ$9<>\"\",INDIRECT(\"'\" & Setup!$AJ$9 & \"'!\" & AE320),0) + IF(Setup!$AJ$10<>\"\",INDIRECT(\"'\" & Setup!$AJ$10 & \"'!\" & AE320),0) + IF(Setup!$AJ$11<>\"\",INDIRECT(\"'\" & Setup!$AJ$11 & \"'!\" & AE320),0) + IF(Setup!$AJ$12<>\"\",INDIRECT(\"'\" & Setup!$AJ$12 & \"'!\" & AE320),0)","v":0},"","",{"$f":"Planning!H92","v":0},"00","M108","O108","N108",null,null,{"$f":"IF(Setup!$AG$7<>\"\",INDIRECT(\"'\" & Setup!$AG$7 & \"'!\" & AF320),0) + IF(Setup!$AG$8<>\"\",INDIRECT(\"'\" & Setup!$AG$8 & \"'!\" & AF320),0) + IF(Setup!$AG$9<>\"\",INDIRECT(\"'\" & Setup!$AG$9 & \"'!\" & AF320),0) + IF(Setup!$AG$10<>\"\",INDIRECT(\"'\" & Setup!$AG$10 & \"'!\" & AF320),0) + IF(Setup!$AG$11<>\"\",INDIRECT(\"'\" & Setup!$AG$11 & \"'!\" & AF320),0) + IF(Setup!$AG$12<>\"\",INDIRECT(\"'\" & Setup!$AG$12 & \"'!\" & AF320),0)","v":0},{"$f":"IF(Setup!$AH$7<>\"\",INDIRECT(\"'\" & Setup!$AH$7 & \"'!\" & AF320),0) + IF(Setup!$AH$8<>\"\",INDIRECT(\"'\" & Setup!$AH$8 & \"'!\" & AF320),0) + IF(Setup!$AH$9<>\"\",INDIRECT(\"'\" & Setup!$AH$9 & \"'!\" & AF320),0) + IF(Setup!$AH$10<>\"\",INDIRECT(\"'\" & Setup!$AH$10 & \"'!\" & AF320),0) + IF(Setup!$AH$11<>\"\",INDIRECT(\"'\" & Setup!$AH$11 & \"'!\" & AF320),0) + IF(Setup!$AH$12<>\"\",INDIRECT(\"'\" & Setup!$AH$12 & \"'!\" & AF320),0)","v":0},{"$f":"IF(Setup!$AI$7<>\"\",INDIRECT(\"'\" & Setup!$AI$7 & \"'!\" & AF320),0) + IF(Setup!$AI$8<>\"\",INDIRECT(\"'\" & Setup!$AI$8 & \"'!\" & AF320),0) + IF(Setup!$AI$9<>\"\",INDIRECT(\"'\" & Setup!$AI$9 & \"'!\" & AF320),0) + IF(Setup!$AI$10<>\"\",INDIRECT(\"'\" & Setup!$AI$10 & \"'!\" & AF320),0) + IF(Setup!$AI$11<>\"\",INDIRECT(\"'\" & Setup!$AI$11 & \"'!\" & AF320),0) + IF(Setup!$AI$12<>\"\",INDIRECT(\"'\" & Setup!$AI$12 & \"'!\" & AF320),0)","v":0},{"$f":"IF(Setup!$AJ$7<>\"\",INDIRECT(\"'\" & Setup!$AJ$7 & \"'!\" & AF320),0) + IF(Setup!$AJ$8<>\"\",INDIRECT(\"'\" & Setup!$AJ$8 & \"'!\" & AF320),0) + IF(Setup!$AJ$9<>\"\",INDIRECT(\"'\" & Setup!$AJ$9 & \"'!\" & AF320),0) + IF(Setup!$AJ$10<>\"\",INDIRECT(\"'\" & Setup!$AJ$10 & \"'!\" & AF320),0) + IF(Setup!$AJ$11<>\"\",INDIRECT(\"'\" & Setup!$AJ$11 & \"'!\" & AF320),0) + IF(Setup!$AJ$12<>\"\",INDIRECT(\"'\" & Setup!$AJ$12 & \"'!\" & AF320),0)","v":0},null,"",{"$nulls":30},0,{"$f":"IF(Setup!$AH$7=\"\",0,INDIRECT(\"'\" & Setup!$AH$7 & \"'!\" & AF320))","v":0},{"$f":"IF(Setup!$AI$7=\"\",0,INDIRECT(\"'\" & Setup!$AI$7 & \"'!\" & AF320))","v":0},{"$f":"IF(Setup!$AJ$7=\"\",0,INDIRECT(\"'\" & Setup!$AJ$7 & \"'!\" & AF320))","v":0}]
[{"$f":"Planning!A93","v":"I085"},{"$f":"Planning!B93","v":0},{"$f":"Planning!C93","v":0},{"$f":"Planning!D93","v":0},{"$f":"Planning!E93","v":0},{"$f":"Planning!G93","v":0},0,{"v":0,"d":"0.00"},{"v":0,"d":"0.00"},"","",{"$f":"IF(Setup!$AG$7<>\"\",INDIRECT(\"'\" & Setup!$AG$7 & \"'!\" & AD321),0) + IF(Setup!$AG$8<>\"\",INDIRECT(\"'\" & Setup!$AG$8 & \"'!\" & AD321),0) + IF(Setup!$AG$9<>\"\",INDIRECT(\"'\" & Setup!$AG$9 & \"'!\" & AD321),0) + IF(Setup!$AG$10<>\"\",INDIRECT(\"'\" & Setup!$AG$10 & \"'!\" & AD321),0) + IF(Setup!$AG$11<>\"\",INDIRECT(\"'\" & Setup!$AG$11 & \"'!\" & AD321),0) + IF(Setup!$AG$12<>\"\",INDIRECT(\"'\" & Setup!$AG$12 & \"'!\" & AD321),0)","v":{"v":0,"d":"0.00"}},{"$f":"IF(Setup!$AG$7<>\"\",INDIRECT(\"'\" & Setup!$AG$7 & \"'!\" & AE321),0) + IF(Setup!$AG$8<>\"\",INDIRECT(\"'\" & Setup!$AG$8 & \"'!\" & AE321),0) + IF(Setup!$AG$9<>\"\",INDIRECT(\"'\" & Setup!$AG$9 & \"'!\" & AE321),0) + IF(Setup!$AG$10<>\"\",INDIRECT(\"'\" & Setup!$AG$10 & \"'!\" & AE321),0) + IF(Setup!$AG$11<>\"\",INDIRECT(\"'\" & Setup!$AG$11 & \"'!\" & AE321),0) + IF(Setup!$AG$12<>\"\",INDIRECT(\"'\" & Setup!$AG$12 & \"'!\" & AE321),0)","v":{"v":0,"d":"0.00"}},"","",{"$f":"IF(Setup!$AH$7<>\"\",INDIRECT(\"'\" & Setup!$AH$7 & \"'!\" & AD321),0) + IF(Setup!$AH$8<>\"\",INDIRECT(\"'\" & Setup!$AH$8 & \"'!\" & AD321),0) + IF(Setup!$AH$9<>\"\",INDIRECT(\"'\" & Setup!$AH$9 & \"'!\" & AD321),0) + IF(Setup!$AH$10<>\"\",INDIRECT(\"'\" & Setup!$AH$10 & \"'!\" & AD321),0) + IF(Setup!$AH$11<>\"\",INDIRECT(\"'\" & Setup!$AH$11 & \"'!\" & AD321),0) + IF(Setup!$AH$12<>\"\",INDIRECT(\"'\" & Setup!$AH$12 & \"'!\" & AD321),0)","v":{"v":0,"d":"0.00"}},{"$f":"IF(Setup!$AH$7<>\"\",INDIRECT(\"'\" & Setup!$AH$7 & \"'!\" & AE321),0) + IF(Setup!$AH$8<>\"\",INDIRECT(\"'\" & Setup!$AH$8 & \"'!\" & AE321),0) + IF(Setup!$AH$9<>\"\",INDIRECT(\"'\" & Setup!$AH$9 & \"'!\" & AE321),0) + IF(Setup!$AH$10<>\"\",INDIRECT(\"'\" & Setup!$AH$10 & \"'!\" & AE321),0) + IF(Setup!$AH$11<>\"\",INDIRECT(\"'\" & Setup!$AH$11 & \"'!\" & AE321),0) + IF(Setup!$AH$12<>\"\",INDIRECT(\"'\" & Setup!$AH$12 & \"'!\" & AE321),0)","v":{"v":0,"d":"0.00"}},"","",{"$f":"IF(Setup!$AI$7<>\"\",INDIRECT(\"'\" & Setup!$AI$7 & \"'!\" & AD321),0) + IF(Setup!$AI$8<>\"\",INDIRECT(\"'\" & Setup!$AI$8 & \"'!\" & AD321),0) + IF(Setup!$AI$9<>\"\",INDIRECT(\"'\" & Setup!$AI$9 & \"'!\" & AD321),0) + IF(Setup!$AI$10<>\"\",INDIRECT(\"'\" & Setup!$AI$10 & \"'!\" & AD321),0) + IF(Setup!$AI$11<>\"\",INDIRECT(\"'\" & Setup!$AI$11 & \"'!\" & AD321),0) + IF(Setup!$AI$12<>\"\",INDIRECT(\"'\" & Setup!$AI$12 & \"'!\" & AD321),0)","v":{"v":0,"d":"0.00"}},{"$f":"IF(Setup!$AI$7<>\"\",INDIRECT(\"'\" & Setup!$AI$7 & \"'!\" & AE321),0) + IF(Setup!$AI$8<>\"\",INDIRECT(\"'\" & Setup!$AI$8 & \"'!\" & AE321),0) + IF(Setup!$AI$9<>\"\",INDIRECT(\"'\" & Setup!$AI$9 & \"'!\" & AE321),0) + IF(Setup!$AI$10<>\"\",INDIRECT(\"'\" & Setup!$AI$10 & \"'!\" & AE321),0) + IF(Setup!$AI$11<>\"\",INDIRECT(\"'\" & Setup!$AI$11 & \"'!\" & AE321),0) + IF(Setup!$AI$12<>\"\",INDIRECT(\"'\" & Setup!$AI$12 & \"'!\" & AE321),0)","v":{"v":0,"d":"0.00"}},"","",{"$f":"IF(Setup!$AJ$7<>\"\",INDIRECT(\"'\" & Setup!$AJ$7 & \"'!\" & AD321),0) + IF(Setup!$AJ$8<>\"\",INDIRECT(\"'\" & Setup!$AJ$8 & \"'!\" & AD321),0) + IF(Setup!$AJ$9<>\"\",INDIRECT(\"'\" & Setup!$AJ$9 & \"'!\" & AD321),0) + IF(Setup!$AJ$10<>\"\",INDIRECT(\"'\" & Setup!$AJ$10 & \"'!\" & AD321),0) + IF(Setup!$AJ$11<>\"\",INDIRECT(\"'\" & Setup!$AJ$11 & \"'!\" & AD321),0) + IF(Setup!$AJ$12<>\"\",INDIRECT(\"'\" & Setup!$AJ$12 & \"'!\" & AD321),0)","v":0},{"$f":"IF(Setup!$AJ$7<>\"\",INDIRECT(\"'\" & Setup!$AJ$7 & \"'!\" & AE321),0) + IF(Setup!$AJ$8<>\"\",INDIRECT(\"'\" & Setup!$AJ$8 & \"'!\" & AE321),0) + IF(Setup!$AJ$9<>\"\",INDIRECT(\"'\" & Setup!$AJ$9 & \"'!\" & AE321),0) + IF(Setup!$AJ$10<>\"\",INDIRECT(\"'\" & Setup!$AJ$10 & \"'!\" & AE321),0) + IF(Setup!$AJ$11<>\"\",INDIRECT(\"'\" & Setup!$AJ$11 & \"'!\" & AE321),0) + IF(Setup!$AJ$12<>\"\",INDIRECT(\"'\" & Setup!$AJ$12 & \"'!\" & AE321),0)","v":0},"","",{"$f":"Planning!H93","v":0},"00","M109","O109","N109",null,null,{"$f":"IF(Setup!$AG$7<>\"\",INDIRECT(\"'\" & Setup!$AG$7 & \"'!\" & AF321),0) + IF(Setup!$AG$8<>\"\",INDIRECT(\"'\" & Setup!$AG$8 & \"'!\" & AF321),0) + IF(Setup!$AG$9<>\"\",INDIRECT(\"'\" & Setup!$AG$9 & \"'!\" & AF321),0) + IF(Setup!$AG$10<>\"\",INDIRECT(\"'\" & Setup!$AG$10 & \"'!\" & AF321),0) + IF(Setup!$AG$11<>\"\",INDIRECT(\"'\" & Setup!$AG$11 & \"'!\" & AF321),0) + IF(Setup!$AG$12<>\"\",INDIRECT(\"'\" & Setup!$AG$12 & \"'!\" & AF321),0)","v":0},{"$f":"IF(Setup!$AH$7<>\"\",INDIRECT(\"'\" & Setup!$AH$7 & \"'!\" & AF321),0) + IF(Setup!$AH$8<>\"\",INDIRECT(\"'\" & Setup!$AH$8 & \"'!\" & AF321),0) + IF(Setup!$AH$9<>\"\",INDIRECT(\"'\" & Setup!$AH$9 & \"'!\" & AF321),0) + IF(Setup!$AH$10<>\"\",INDIRECT(\"'\" & Setup!$AH$10 & \"'!\" & AF321),0) + IF(Setup!$AH$11<>\"\",INDIRECT(\"'\" & Setup!$AH$11 & \"'!\" & AF321),0) + IF(Setup!$AH$12<>\"\",INDIRECT(\"'\" & Setup!$AH$12 & \"'!\" & AF321),0)","v":0},{"$f":"IF(Setup!$AI$7<>\"\",INDIRECT(\"'\" & Setup!$AI$7 & \"'!\" & AF321),0) + IF(Setup!$AI$8<>\"\",INDIRECT(\"'\" & Setup!$AI$8 & \"'!\" & AF321),0) + IF(Setup!$AI$9<>\"\",INDIRECT(\"'\" & Setup!$AI$9 & \"'!\" & AF321),0) + IF(Setup!$AI$10<>\"\",INDIRECT(\"'\" & Setup!$AI$10 & \"'!\" & AF321),0) + IF(Setup!$AI$11<>\"\",INDIRECT(\"'\" & Setup!$AI$11 & \"'!\" & AF321),0) + IF(Setup!$AI$12<>\"\",INDIRECT(\"'\" & Setup!$AI$12 & \"'!\" & AF321),0)","v":0},{"$f":"IF(Setup!$AJ$7<>\"\",INDIRECT(\"'\" & Setup!$AJ$7 & \"'!\" & AF321),0) + IF(Setup!$AJ$8<>\"\",INDIRECT(\"'\" & Setup!$AJ$8 & \"'!\" & AF321),0) + IF(Setup!$AJ$9<>\"\",INDIRECT(\"'\" & Setup!$AJ$9 & \"'!\" & AF321),0) + IF(Setup!$AJ$10<>\"\",INDIRECT(\"'\" & Setup!$AJ$10 & \"'!\" & AF321),0) + IF(Setup!$AJ$11<>\"\",INDIRECT(\"'\" & Setup!$AJ$11 & \"'!\" & AF321),0) + IF(Setup!$AJ$12<>\"\",INDIRECT(\"'\" & Setup!$AJ$12 & \"'!\" & AF321),0)","v":0},null,"",{"$nulls":30},0,{"$f":"IF(Setup!$AH$7=\"\",0,INDIRECT(\"'\" & Setup!$AH$7 & \"'!\" & AF321))","v":0},{"$f":"IF(Setup!$AI$7=\"\",0,INDIRECT(\"'\" & Setup!$AI$7 & \"'!\" & AF321))","v":0},{"$f":"IF(Setup!$AJ$7=\"\",0,INDIRECT(\"'\" & Setup!$AJ$7 & \"'!\" & AF321))","v":0}]
[{"$f":"Planning!A94","v":"I086"},{"$f":"Planning!B94","v":0},{"$f":"Planning!C94","v":0},{"$f":"Planning!D94","v":0},{"$f":"Planning!E94","v":0},{"$f":"Planning!G94","v":0},0,{"v":0,"d":"0.00"},{"v":0,"d":"0.00"},"","",{"$f":"IF(Setup!$AG$7<>\"\",INDIRECT(\"'\" & Setup!$AG$7 & \"'!\" & AD322),0) + IF(Setup!$AG$8<>\"\",INDIRECT(\"'\" & Setup!$AG$8 & \"'!\" & AD322),0) + IF(Setup!$AG$9<>\"\",INDIRECT(\"'\" & Setup!$AG$9 & \"'!\" & AD322),0) + IF(Setup!$AG$10<>\"\",INDIRECT(\"'\" & Setup!$AG$10 & \"'!\" & AD322),0) + IF(Setup!$AG$11<>\"\",INDIRECT(\"'\" & Setup!$AG$11 & \"'!\" & AD322),0) + IF(Setup!$AG$12<>\"\",INDIRECT(\"'\" & Setup!$AG$12 & \"'!\" & AD322),0)","v":{"v":0,"d":"0.00"}},{"$f":"IF(Setup!$AG$7<>\"\",INDIRECT(\"'\" & Setup!$AG$7 & \"'!\" & AE322),0) + IF(Setup!$AG$8<>\"\",INDIRECT(\"'\" & Setup!$AG$8 & \"'!\" & AE322),0) + IF(Setup!$AG$9<>\"\",INDIRECT(\"'\" & Setup!$AG$9 & \"'!\" & AE322),0) + IF(Setup!$AG$10<>\"\",INDIRECT(\"'\" & Setup!$AG$10 & \"'!\" & AE322),0) + IF(Setup!$AG$11<>\"\",INDIRECT(\"'\" & Setup!$AG$11 & \"'!\" & AE322),0) + IF(Setup!$AG$12<>\"\",INDIRECT(\"'\" & Setup!$AG$12 & \"'!\" & AE322),0)","v":{"v":0,"d":"0.00"}},"","",{"$f":"IF(Setup!$AH$7<>\"\",INDIRECT(\"'\" & Setup!$AH$7 & \"'!\" & AD322),0) + IF(Setup!$AH$8<>\"\",INDIRECT(\"'\" & Setup!$AH$8 & \"'!\" & AD322),0) + IF(Setup!$AH$9<>\"\",INDIRECT(\"'\" & Setup!$AH$9 & \"'!\" & AD322),0) + IF(Setup!$AH$10<>\"\",INDIRECT(\"'\" & Setup!$AH$10 & \"'!\" & AD322),0) + IF(Setup!$AH$11<>\"\",INDIRECT(\"'\" & Setup!$AH$11 & \"'!\" & AD322),0) + IF(Setup!$AH$12<>\"\",INDIRECT(\"'\" & Setup!$AH$12 & \"'!\" & AD322),0)","v":{"v":0,"d":"0.00"}},{"$f":"IF(Setup!$AH$7<>\"\",INDIRECT(\"'\" & Setup!$AH$7 & \"'!\" & AE322),0) + IF(Setup!$AH$8<>\"\",INDIRECT(\"'\" & Setup!$AH$8 & \"'!\" & AE322),0) + IF(Setup!$AH$9<>\"\",INDIRECT(\"'\" & Setup!$AH$9 & \"'!\" & AE322),0) + IF(Setup!$AH$10<>\"\",INDIRECT(\"'\" & Setup!$AH$10 & \"'!\" & AE322),0) + IF(Setup!$AH$11<>\"\",INDIRECT(\"'\" & Setup!$AH$11 & \"'!\" & AE322),0) + IF(Setup!$AH$12<>\"\",INDIRECT(\"'\" & Setup!$AH$12 & \"'!\" & AE322),0)","v":{"v":0,"d":"0.00"}},"","",{"$f":"IF(Setup!$AI$7<>\"\",INDIRECT(\"'\" & Setup!$AI$7 & \"'!\" & AD322),0) + IF(Setup!$AI$8<>\"\",INDIRECT(\"'\" & Setup!$AI$8 & \"'!\" & AD322),0) + IF(Setup!$AI$9<>\"\",INDIRECT(\"'\" & Setup!$AI$9 & \"'!\" & AD322),0) + IF(Setup!$AI$10<>\"\",INDIRECT(\"'\" & Setup!$AI$10 & \"'!\" & AD322),0) + IF(Setup!$AI$11<>\"\",INDIRECT(\"'\" & Setup!$AI$11 & \"'!\" & AD322),0) + IF(Setup!$AI$12<>\"\",INDIRECT(\"'\" & Setup!$AI$12 & \"'!\" & AD322),0)","v":{"v":0,"d":"0.00"}},{"$f":"IF(Setup!$AI$7<>\"\",INDIRECT(\"'\" & Setup!$AI$7 & \"'!\" & AE322),0) + IF(Setup!$AI$8<>\"\",INDIRECT(\"'\" & Setup!$AI$8 & \"'!\" & AE322),0) + IF(Setup!$AI$9<>\"\",INDIRECT(\"'\" & Setup!$AI$9 & \"'!\" & AE322),0) + IF(Setup!$AI$10<>\"\",INDIRECT(\"'\" & Setup!$AI$10 & \"'!\" & AE322),0) + IF(Setup!$AI$11<>\"\",INDIRECT(\"'\" & Setup!$AI$11 & \"'!\" & AE322),0) + IF(Setup!$AI$12<>\"\",INDIRECT(\"'\" & Setup!$AI$12 & \"'!\" & AE322),0)","v":{"v":0,"d":"0.00"}},"","",{"$f":"IF(Setup!$AJ$7<>\"\",INDIRECT(\"'\" & Setup!$AJ$7 & \"'!\" & AD322),0) + IF(Setup!$AJ$8<>\"\",INDIRECT(\"'\" & Setup!$AJ$8 & \"'!\" & AD322),0) + IF(Setup!$AJ$9<>\"\",INDIRECT(\"'\" & Setup!$AJ$9 & \"'!\" & AD322),0) + IF(Setup!$AJ$10<>\"\",INDIRECT(\"'\" & Setup!$AJ$10 & \"'!\" & AD322),0) + IF(Setup!$AJ$11<>\"\",INDIRECT(\"'\" & Setup!$AJ$11 & \"'!\" & AD322),0) + IF(Setup!$AJ$12<>\"\",INDIRECT(\"'\" & Setup!$AJ$12 & \"'!\" & AD322),0)","v":0},{"$f":"IF(Setup!$AJ$7<>\"\",INDIRECT(\"'\" & Setup!$AJ$7 & \"'!\" & AE322),0) + IF(Setup!$AJ$8<>\"\",INDIRECT(\"'\" & Setup!$AJ$8 & \"'!\" & AE322),0) + IF(Setup!$AJ$9<>\"\",INDIRECT(\"'\" & Setup!$AJ$9 & \"'!\" & AE322),0) + IF(Setup!$AJ$10<>\"\",INDIRECT(\"'\" & Setup!$AJ$10 & \"'!\" & AE322),0) + IF(Setup!$AJ$11<>\"\",INDIRECT(\"'\" & Setup!$AJ$11 & \"'!\" & AE322),0) + IF(Setup!$AJ$12<>\"\",INDIRECT(\"'\" & Setup!$AJ$12 & \"'!\" & AE322),0)","v":0},"","",{"$f":"Planning!H94","v":0},"00","M110","O110","N110",null,null,{"$f":"IF(Setup!$AG$7<>\"\",INDIRECT(\"'\" & Setup!$AG$7 & \"'!\" & AF322),0) + IF(Setup!$AG$8<>\"\",INDIRECT(\"'\" & Setup!$AG$8 & \"'!\" & AF322),0) + IF(Setup!$AG$9<>\"\",INDIRECT(\"'\" & Setup!$AG$9 & \"'!\" & AF322),0) + IF(Setup!$AG$10<>\"\",INDIRECT(\"'\" & Setup!$AG$10 & \"'!\" & AF322),0) + IF(Setup!$AG$11<>\"\",INDIRECT(\"'\" & Setup!$AG$11 & \"'!\" & AF322),0) + IF(Setup!$AG$12<>\"\",INDIRECT(\"'\" & Setup!$AG$12 & \"'!\" & AF322),0)","v":0},{"$f":"IF(Setup!$AH$7<>\"\",INDIRECT(\"'\" & Setup!$AH$7 & \"'!\" & AF322),0) + IF(Setup!$AH$8<>\"\",INDIRECT(\"'\" & Setup!$AH$8 & \"'!\" & AF322),0) + IF(Setup!$AH$9<>\"\",INDIRECT(\"'\" & Setup!$AH$9 & \"'!\" & AF322),0) + IF(Setup!$AH$10<>\"\",INDIRECT(\"'\" & Setup!$AH$10 & \"'!\" & AF322),0) + IF(Setup!$AH$11<>\"\",INDIRECT(\"'\" & Setup!$AH$11 & \"'!\" & AF322),0) + IF(Setup!$AH$12<>\"\",INDIRECT(\"'\" & Setup!$AH$12 & \"'!\" & AF322),0)","v":0},{"$f":"IF(Setup!$AI$7<>\"\",INDIRECT(\"'\" & Setup!$AI$7 & \"'!\" & AF322),0) + IF(Setup!$AI$8<>\"\",INDIRECT(\"'\" & Setup!$AI$8 & \"'!\" & AF322),0) + IF(Setup!$AI$9<>\"\",INDIRECT(\"'\" & Setup!$AI$9 & \"'!\" & AF322),0) + IF(Setup!$AI$10<>\"\",INDIRECT(\"'\" & Setup!$AI$10 & \"'!\" & AF322),0) + IF(Setup!$AI$11<>\"\",INDIRECT(\"'\" & Setup!$AI$11 & \"'!\" & AF322),0) + IF(Setup!$AI$12<>\"\",INDIRECT(\"'\" & Setup!$AI$12 & \"'!\" & AF322),0)","v":0},{"$f":"IF(Setup!$AJ$7<>\"\",INDIRECT(\"'\" & Setup!$AJ$7 & \"'!\" & AF322),0) + IF(Setup!$AJ$8<>\"\",INDIRECT(\"'\" & Setup!$AJ$8 & \"'!\" & AF322),0) + IF(Setup!$AJ$9<>\"\",INDIRECT(\"'\" & Setup!$AJ$9 & \"'!\" & AF322),0) + IF(Setup!$AJ$10<>\"\",INDIRECT(\"'\" & Setup!$AJ$10 & \"'!\" & AF322),0) + IF(Setup!$AJ$11<>\"\",INDIRECT(\"'\" & Setup!$AJ$11 & \"'!\" & AF322),0) + IF(Setup!$AJ$12<>\"\",INDIRECT(\"'\" & Setup!$AJ$12 & \"'!\" & AF322),0)","v":0},null,"",{"$nulls":30},0,{"$f":"IF(Setup!$AH$7=\"\",0,INDIRECT(\"'\" & Setup!$AH$7 & \"'!\" & AF322))","v":0},{"$f":"IF(Setup!$AI$7=\"\",0,INDIRECT(\"'\" & Setup!$AI$7 & \"'!\" & AF322))","v":0},{"$f":"IF(Setup!$AJ$7=\"\",0,INDIRECT(\"'\" & Setup!$AJ$7 & \"'!\" & AF322))","v":0}]
[{"$f":"Planning!A95","v":"I087"},{"$f":"Planning!B95","v":0},{"$f":"Planning!C95","v":0},{"$f":"Planning!D95","v":0},{"$f":"Planning!E95","v":0},{"$f":"Planning!G95","v":0},0,{"v":0,"d":"0.00"},{"v":0,"d":"0.00"},"","",{"$f":"IF(Setup!$AG$7<>\"\",INDIRECT(\"'\" & Setup!$AG$7 & \"'!\" & AD323),0) + IF(Setup!$AG$8<>\"\",INDIRECT(\"'\" & Setup!$AG$8 & \"'!\" & AD323),0) + IF(Setup!$AG$9<>\"\",INDIRECT(\"'\" & Setup!$AG$9 & \"'!\" & AD323),0) + IF(Setup!$AG$10<>\"\",INDIRECT(\"'\" & Setup!$AG$10 & \"'!\" & AD323),0) + IF(Setup!$AG$11<>\"\",INDIRECT(\"'\" & Setup!$AG$11 & \"'!\" & AD323),0) + IF(Setup!$AG$12<>\"\",INDIRECT(\"'\" & Setup!$AG$12 & \"'!\" & AD323),0)","v":{"v":0,"d":"0.00"}},{"$f":"IF(Setup!$AG$7<>\"\",INDIRECT(\"'\" & Setup!$AG$7 & \"'!\" & AE323),0) + IF(Setup!$AG$8<>\"\",INDIRECT(\"'\" & Setup!$AG$8 & \"'!\" & AE323),0) + IF(Setup!$AG$9<>\"\",INDIRECT(\"'\" & Setup!$AG$9 & \"'!\" & AE323),0) + IF(Setup!$AG$10<>\"\",INDIRECT(\"'\" & Setup!$AG$10 & \"'!\" & AE323),0) + IF(Setup!$AG$11<>\"\",INDIRECT(\"'\" & Setup!$AG$11 & \"'!\" & AE323),0) + IF(Setup!$AG$12<>\"\",INDIRECT(\"'\" & Setup!$AG$12 & \"'!\" & AE323),0)","v":{"v":0,"d":"0.00"}},"","",{"$f":"IF(Setup!$AH$7<>\"\",INDIRECT(\"'\" & Setup!$AH$7 & \"'!\" & AD323),0) + IF(Setup!$AH$8<>\"\",INDIRECT(\"'\" & Setup!$AH$8 & \"'!\" & AD323),0) + IF(Setup!$AH$9<>\"\",INDIRECT(\"'\" & Setup!$AH$9 & \"'!\" & AD323),0) + IF(Setup!$AH$10<>\"\",INDIRECT(\"'\" & Setup!$AH$10 & \"'!\" & AD323),0) + IF(Setup!$AH$11<>\"\",INDIRECT(\"'\" & Setup!$AH$11 & \"'!\" & AD323),0) + IF(Setup!$AH$12<>\"\",INDIRECT(\"'\" & Setup!$AH$12 & \"'!\" & AD323),0)","v":{"v":0,"d":"0.00"}},{"$f":"IF(Setup!$AH$7<>\"\",INDIRECT(\"'\" & Setup!$AH$7 & \"'!\" & AE323),0) + IF(Setup!$AH$8<>\"\",INDIRECT(\"'\" & Setup!$AH$8 & \"'!\" & AE323),0) + IF(Setup!$AH$9<>\"\",INDIRECT(\"'\" & Setup!$AH$9 & \"'!\" & AE323),0) + IF(Setup!$AH$10<>\"\",INDIRECT(\"'\" & Setup!$AH$10 & \"'!\" & AE323),0) + IF(Setup!$AH$11<>\"\",INDIRECT(\"'\" & Setup!$AH$11 & \"'!\" & AE323),0) + IF(Setup!$AH$12<>\"\",INDIRECT(\"'\" & Setup!$AH$12 & \"'!\" & AE323),0)","v":{"v":0,"d":"0.00"}},"","",{"$f":"IF(Setup!$AI$7<>\"\",INDIRECT(\"'\" & Setup!$AI$7 & \"'!\" & AD323),0) + IF(Setup!$AI$8<>\"\",INDIRECT(\"'\" & Setup!$AI$8 & \"'!\" & AD323),0) + IF(Setup!$AI$9<>\"\",INDIRECT(\"'\" & Setup!$AI$9 & \"'!\" & AD323),0) + IF(Setup!$AI$10<>\"\",INDIRECT(\"'\" & Setup!$AI$10 & \"'!\" & AD323),0) + IF(Setup!$AI$11<>\"\",INDIRECT(\"'\" & Setup!$AI$11 & \"'!\" & AD323),0) + IF(Setup!$AI$12<>\"\",INDIRECT(\"'\" & Setup!$AI$12 & \"'!\" & AD323),0)","v":{"v":0,"d":"0.00"}},{"$f":"IF(Setup!$AI$7<>\"\",INDIRECT(\"'\" & Setup!$AI$7 & \"'!\" & AE323),0) + IF(Setup!$AI$8<>\"\",INDIRECT(\"'\" & Setup!$AI$8 & \"'!\" & AE323),0) + IF(Setup!$AI$9<>\"\",INDIRECT(\"'\" & Setup!$AI$9 & \"'!\" & AE323),0) + IF(Setup!$AI$10<>\"\",INDIRECT(\"'\" & Setup!$AI$10 & \"'!\" & AE323),0) + IF(Setup!$AI$11<>\"\",INDIRECT(\"'\" & Setup!$AI$11 & \"'!\" & AE323),0) + IF(Setup!$AI$12<>\"\",INDIRECT(\"'\" & Setup!$AI$12 & \"'!\" & AE323),0)","v":{"v":0,"d":"0.00"}},"","",{"$f":"IF(Setup!$AJ$7<>\"\",INDIRECT(\"'\" & Setup!$AJ$7 & \"'!\" & AD323),0) + IF(Setup!$AJ$8<>\"\",INDIRECT(\"'\" & Setup!$AJ$8 & \"'!\" & AD323),0) + IF(Setup!$AJ$9<>\"\",INDIRECT(\"'\" & Setup!$AJ$9 & \"'!\" & AD323),0) + IF(Setup!$AJ$10<>\"\",INDIRECT(\"'\" & Setup!$AJ$10 & \"'!\" & AD323),0) + IF(Setup!$AJ$11<>\"\",INDIRECT(\"'\" & Setup!$AJ$11 & \"'!\" & AD323),0) + IF(Setup!$AJ$12<>\"\",INDIRECT(\"'\" & Setup!$AJ$12 & \"'!\" & AD323),0)","v":0},{"$f":"IF(Setup!$AJ$7<>\"\",INDIRECT(\"'\" & Setup!$AJ$7 & \"'!\" & AE323),0) + IF(Setup!$AJ$8<>\"\",INDIRECT(\"'\" & Setup!$AJ$8 & \"'!\" & AE323),0) + IF(Setup!$AJ$9<>\"\",INDIRECT(\"'\" & Setup!$AJ$9 & \"'!\" & AE323),0) + IF(Setup!$AJ$10<>\"\",INDIRECT(\"'\" & Setup!$AJ$10 & \"'!\" & AE323),0) + IF(Setup!$AJ$11<>\"\",INDIRECT(\"'\" & Setup!$AJ$11 & \"'!\" & AE323),0) + IF(Setup!$AJ$12<>\"\",INDIRECT(\"'\" & Setup!$AJ$12 & \"'!\" & AE323),0)","v":0},"","",{"$f":"Planning!H95","v":0},"00","M111","O111","N111",null,null,{"$f":"IF(Setup!$AG$7<>\"\",INDIRECT(\"'\" & Setup!$AG$7 & \"'!\" & AF323),0) + IF(Setup!$AG$8<>\"\",INDIRECT(\"'\" & Setup!$AG$8 & \"'!\" & AF323),0) + IF(Setup!$AG$9<>\"\",INDIRECT(\"'\" & Setup!$AG$9 & \"'!\" & AF323),0) + IF(Setup!$AG$10<>\"\",INDIRECT(\"'\" & Setup!$AG$10 & \"'!\" & AF323),0) + IF(Setup!$AG$11<>\"\",INDIRECT(\"'\" & Setup!$AG$11 & \"'!\" & AF323),0) + IF(Setup!$AG$12<>\"\",INDIRECT(\"'\" & Setup!$AG$12 & \"'!\" & AF323),0)","v":0},{"$f":"IF(Setup!$AH$7<>\"\",INDIRECT(\"'\" & Setup!$AH$7 & \"'!\" & AF323),0) + IF(Setup!$AH$8<>\"\",INDIRECT(\"'\" & Setup!$AH$8 & \"'!\" & AF323),0) + IF(Setup!$AH$9<>\"\",INDIRECT(\"'\" & Setup!$AH$9 & \"'!\" & AF323),0) + IF(Setup!$AH$10<>\"\",INDIRECT(\"'\" & Setup!$AH$10 & \"'!\" & AF323),0) + IF(Setup!$AH$11<>\"\",INDIRECT(\"'\" & Setup!$AH$11 & \"'!\" & AF323),0) + IF(Setup!$AH$12<>\"\",INDIRECT(\"'\" & Setup!$AH$12 & \"'!\" & AF323),0)","v":0},{"$f":"IF(Setup!$AI$7<>\"\",INDIRECT(\"'\" & Setup!$AI$7 & \"'!\" & AF323),0) + IF(Setup!$AI$8<>\"\",INDIRECT(\"'\" & Setup!$AI$8 & \"'!\" & AF323),0) + IF(Setup!$AI$9<>\"\",INDIRECT(\"'\" & Setup!$AI$9 & \"'!\" & AF323),0) + IF(Setup!$AI$10<>\"\",INDIRECT(\"'\" & Setup!$AI$10 & \"'!\" & AF323),0) + IF(Setup!$AI$11<>\"\",INDIRECT(\"'\" & Setup!$AI$11 & \"'!\" & AF323),0) + IF(Setup!$AI$12<>\"\",INDIRECT(\"'\" & Setup!$AI$12 & \"'!\" & AF323),0)","v":0},{"$f":"IF(Setup!$AJ$7<>\"\",INDIRECT(\"'\" & Setup!$AJ$7 & \"'!\" & AF323),0) + IF(Setup!$AJ$8<>\"\",INDIRECT(\"'\" & Setup!$AJ$8 & \"'!\" & AF323),0) + IF(Setup!$AJ$9<>\"\",INDIRECT(\"'\" & Setup!$AJ$9 & \"'!\" & AF323),0) + IF(Setup!$AJ$10<>\"\",INDIRECT(\"'\" & Setup!$AJ$10 & \"'!\" & AF323),0) + IF(Setup!$AJ$11<>\"\",INDIRECT(\"'\" & Setup!$AJ$11 & \"'!\" & AF323),0) + IF(Setup!$AJ$12<>\"\",INDIRECT(\"'\" & Setup!$AJ$12 & \"'!\" & AF323),0)","v":0},null,"",{"$nulls":30},0,{"$f":"IF(Setup!$AH$7=\"\",0,INDIRECT(\"'\" & Setup!$AH$7 & \"'!\" & AF323))","v":0},{"$f":"IF(Setup!$AI$7=\"\",0,INDIRECT(\"'\" & Setup!$AI$7 & \"'!\" & AF323))","v":0},{"$f":"IF(Setup!$AJ$7=\"\",0,INDIRECT(\"'\" & Setup!$AJ$7 & \"'!\" & AF323))","v":0}]
[{"$f":"Planning!A96","v":"I088"},{"$f":"Planning!B96","v":0},{"$f":"Planning!C96","v":0},{"$f":"Planning!D96","v":0},{"$f":"Planning!E96","v":0},{"$f":"Planning!G96","v":0},0,{"v":0,"d":"0.00"},{"v":0,"d":"0.00"},"","",{"$f":"IF(Setup!$AG$7<>\"\",INDIRECT(\"'\" & Setup!$AG$7 & \"'!\" & AD324),0) + IF(Setup!$AG$8<>\"\",INDIRECT(\"'\" & Setup!$AG$8 & \"'!\" & AD324),0) + IF(Setup!$AG$9<>\"\",INDIRECT(\"'\" & Setup!$AG$9 & \"'!\" & AD324),0) + IF(Setup!$AG$10<>\"\",INDIRECT(\"'\" & Setup!$AG$10 & \"'!\" & AD324),0) + IF(Setup!$AG$11<>\"\",INDIRECT(\"'\" & Setup!$AG$11 & \"'!\" & AD324),0) + IF(Setup!$AG$12<>\"\",INDIRECT(\"'\" & Setup!$AG$12 & \"'!\" & AD324),0)","v":{"v":0,"d":"0.00"}},{"$f":"IF(Setup!$AG$7<>\"\",INDIRECT(\"'\" & Setup!$AG$7 & \"'!\" & AE324),0) + IF(Setup!$AG$8<>\"\",INDIRECT(\"'\" & Setup!$AG$8 & \"'!\" & AE324),0) + IF(Setup!$AG$9<>\"\",INDIRECT(\"'\" & Setup!$AG$9 & \"'!\" & AE324),0) + IF(Setup!$AG$10<>\"\",INDIRECT(\"'\" & Setup!$AG$10 & \"'!\" & AE324),0) + IF(Setup!$AG$11<>\"\",INDIRECT(\"'\" & Setup!$AG$11 & \"'!\" & AE324),0) + IF(Setup!$AG$12<>\"\",INDIRECT(\"'\" & Setup!$AG$12 & \"'!\" & AE324),0)","v":{"v":0,"d":"0.00"}},"","",{"$f":"IF(Setup!$AH$7<>\"\",INDIRECT(\"'\" & Setup!$AH$7 & \"'!\" & AD324),0) + IF(Setup!$AH$8<>\"\",INDIRECT(\"'\" & Setup!$AH$8 & \"'!\" & AD324),0) + IF(Setup!$AH$9<>\"\",INDIRECT(\"'\" & Setup!$AH$9 & \"'!\" & AD324),0) + IF(Setup!$AH$10<>\"\",INDIRECT(\"'\" & Setup!$AH$10 & \"'!\" & AD324),0) + IF(Setup!$AH$11<>\"\",INDIRECT(\"'\" & Setup!$AH$11 & \"'!\" & AD324),0) + IF(Setup!$AH$12<>\"\",INDIRECT(\"'\" & Setup!$AH$12 & \"'!\" & AD324),0)","v":{"v":0,"d":"0.00"}},{"$f":"IF(Setup!$AH$7<>\"\",INDIRECT(\"'\" & Setup!$AH$7 & \"'!\" & AE324),0) + IF(Setup!$AH$8<>\"\",INDIRECT(\"'\" & Setup!$AH$8 & \"'!\" & AE324),0) + IF(Setup!$AH$9<>\"\",INDIRECT(\"'\" & Setup!$AH$9 & \"'!\" & AE324),0) + IF(Setup!$AH$10<>\"\",INDIRECT(\"'\" & Setup!$AH$10 & \"'!\" & AE324),0) + IF(Setup!$AH$11<>\"\",INDIRECT(\"'\" & Setup!$AH$11 & \"'!\" & AE324),0) + IF(Setup!$AH$12<>\"\",INDIRECT(\"'\" & Setup!$AH$12 & \"'!\" & AE324),0)","v":{"v":0,"d":"0.00"}},"","",{"$f":"IF(Setup!$AI$7<>\"\",INDIRECT(\"'\" & Setup!$AI$7 & \"'!\" & AD324),0) + IF(Setup!$AI$8<>\"\",INDIRECT(\"'\" & Setup!$AI$8 & \"'!\" & AD324),0) + IF(Setup!$AI$9<>\"\",INDIRECT(\"'\" & Setup!$AI$9 & \"'!\" & AD324),0) + IF(Setup!$AI$10<>\"\",INDIRECT(\"'\" & Setup!$AI$10 & \"'!\" & AD324),0) + IF(Setup!$AI$11<>\"\",INDIRECT(\"'\" & Setup!$AI$11 & \"'!\" & AD324),0) + IF(Setup!$AI$12<>\"\",INDIRECT(\"'\" & Setup!$AI$12 & \"'!\" & AD324),0)","v":{"v":0,"d":"0.00"}},{"$f":"IF(Setup!$AI$7<>\"\",INDIRECT(\"'\" & Setup!$AI$7 & \"'!\" & AE324),0) + IF(Setup!$AI$8<>\"\",INDIRECT(\"'\" & Setup!$AI$8 & \"'!\" & AE324),0) + IF(Setup!$AI$9<>\"\",INDIRECT(\"'\" & Setup!$AI$9 & \"'!\" & AE324),0) + IF(Setup!$AI$10<>\"\",INDIRECT(\"'\" & Setup!$AI$10 & \"'!\" & AE324),0) + IF(Setup!$AI$11<>\"\",INDIRECT(\"'\" & Setup!$AI$11 & \"'!\" & AE324),0) + IF(Setup!$AI$12<>\"\",INDIRECT(\"'\" & Setup!$AI$12 & \"'!\" & AE324),0)","v":{"v":0,"d":"0.00"}},"","",{"$f":"IF(Setup!$AJ$7<>\"\",INDIRECT(\"'\" & Setup!$AJ$7 & \"'!\" & AD324),0) + IF(Setup!$AJ$8<>\"\",INDIRECT(\"'\" & Setup!$AJ$8 & \"'!\" & AD324),0) + IF(Setup!$AJ$9<>\"\",INDIRECT(\"'\" & Setup!$AJ$9 & \"'!\" & AD324),0) + IF(Setup!$AJ$10<>\"\",INDIRECT(\"'\" & Setup!$AJ$10 & \"'!\" & AD324),0) + IF(Setup!$AJ$11<>\"\",INDIRECT(\"'\" & Setup!$AJ$11 & \"'!\" & AD324),0) + IF(Setup!$AJ$12<>\"\",INDIRECT(\"'\" & Setup!$AJ$12 & \"'!\" & AD324),0)","v":0},{"$f":"IF(Setup!$AJ$7<>\"\",INDIRECT(\"'\" & Setup!$AJ$7 & \"'!\" & AE324),0) + IF(Setup!$AJ$8<>\"\",INDIRECT(\"'\" & Setup!$AJ$8 & \"'!\" & AE324),0) + IF(Setup!$AJ$9<>\"\",INDIRECT(\"'\" & Setup!$AJ$9 & \"'!\" & AE324),0) + IF(Setup!$AJ$10<>\"\",INDIRECT(\"'\" & Setup!$AJ$10 & \"'!\" & AE324),0) + IF(Setup!$AJ$11<>\"\",INDIRECT(\"'\" & Setup!$AJ$11 & \"'!\" & AE324),0) + IF(Setup!$AJ$12<>\"\",INDIRECT(\"'\" & Setup!$AJ$12 & \"'!\" & AE324),0)","v":0},"","",{"$f":"Planning!H96","v":0},"00","M112","O112","N112",null,null,{"$f":"IF(Setup!$AG$7<>\"\",INDIRECT(\"'\" & Setup!$AG$7 & \"'!\" & AF324),0) + IF(Setup!$AG$8<>\"\",INDIRECT(\"'\" & Setup!$AG$8 & \"'!\" & AF324),0) + IF(Setup!$AG$9<>\"\",INDIRECT(\"'\" & Setup!$AG$9 & \"'!\" & AF324),0) + IF(Setup!$AG$10<>\"\",INDIRECT(\"'\" & Setup!$AG$10 & \"'!\" & AF324),0) + IF(Setup!$AG$11<>\"\",INDIRECT(\"'\" & Setup!$AG$11 & \"'!\" & AF324),0) + IF(Setup!$AG$12<>\"\",INDIRECT(\"'\" & Setup!$AG$12 & \"'!\" & AF324),0)","v":0},{"$f":"IF(Setup!$AH$7<>\"\",INDIRECT(\"'\" & Setup!$AH$7 & \"'!\" & AF324),0) + IF(Setup!$AH$8<>\"\",INDIRECT(\"'\" & Setup!$AH$8 & \"'!\" & AF324),0) + IF(Setup!$AH$9<>\"\",INDIRECT(\"'\" & Setup!$AH$9 & \"'!\" & AF324),0) + IF(Setup!$AH$10<>\"\",INDIRECT(\"'\" & Setup!$AH$10 & \"'!\" & AF324),0) + IF(Setup!$AH$11<>\"\",INDIRECT(\"'\" & Setup!$AH$11 & \"'!\" & AF324),0) + IF(Setup!$AH$12<>\"\",INDIRECT(\"'\" & Setup!$AH$12 & \"'!\" & AF324),0)","v":0},{"$f":"IF(Setup!$AI$7<>\"\",INDIRECT(\"'\" & Setup!$AI$7 & \"'!\" & AF324),0) + IF(Setup!$AI$8<>\"\",INDIRECT(\"'\" & Setup!$AI$8 & \"'!\" & AF324),0) + IF(Setup!$AI$9<>\"\",INDIRECT(\"'\" & Setup!$AI$9 & \"'!\" & AF324),0) + IF(Setup!$AI$10<>\"\",INDIRECT(\"'\" & Setup!$AI$10 & \"'!\" & AF324),0) + IF(Setup!$AI$11<>\"\",INDIRECT(\"'\" & Setup!$AI$11 & \"'!\" & AF324),0) + IF(Setup!$AI$12<>\"\",INDIRECT(\"'\" & Setup!$AI$12 & \"'!\" & AF324),0)","v":0},{"$f":"IF(Setup!$AJ$7<>\"\",INDIRECT(\"'\" & Setup!$AJ$7 & \"'!\" & AF324),0) + IF(Setup!$AJ$8<>\"\",INDIRECT(\"'\" & Setup!$AJ$8 & \"'!\" & AF324),0) + IF(Setup!$AJ$9<>\"\",INDIRECT(\"'\" & Setup!$AJ$9 & \"'!\" & AF324),0) + IF(Setup!$AJ$10<>\"\",INDIRECT(\"'\" & Setup!$AJ$10 & \"'!\" & AF324),0) + IF(Setup!$AJ$11<>\"\",INDIRECT(\"'\" & Setup!$AJ$11 & \"'!\" & AF324),0) + IF(Setup!$AJ$12<>\"\",INDIRECT(\"'\" & Setup!$AJ$12 & \"'!\" & AF324),0)","v":0},null,"",{"$nulls":30},0,{"$f":"IF(Setup!$AH$7=\"\",0,INDIRECT(\"'\" & Setup!$AH$7 & \"'!\" & AF324))","v":0},{"$f":"IF(Setup!$AI$7=\"\",0,INDIRECT(\"'\" & Setup!$AI$7 & \"'!\" & AF324))","v":0},{"$f":"IF(Setup!$AJ$7=\"\",0,INDIRECT(\"'\" & Setup!$AJ$7 & \"'!\" & AF324))","v":0}]
[{"$f":"Planning!A97","v":"I089"},{"$f":"Planning!B97","v":0},{"$f":"Planning!C97","v":0},{"$f":"Planning!D97","v":0},{"$f":"Planning!E97","v":0},{"$f":"Planning!G97","v":0},0,{"v":0,"d":"0.00"},{"v":0,"d":"0.00"},"","",{"$f":"IF(Setup!$AG$7<>\"\",INDIRECT(\"'\" & Setup!$AG$7 & \"'!\" & AD325),0) + IF(Setup!$AG$8<>\"\",INDIRECT(\"'\" & Setup!$AG$8 & \"'!\" & AD325),0) + IF(Setup!$AG$9<>\"\",INDIRECT(\"'\" & Setup!$AG$9 & \"'!\" & AD325),0) + IF(Setup!$AG$10<>\"\",INDIRECT(\"'\" & Setup!$AG$10 & \"'!\" & AD325),0) + IF(Setup!$AG$11<>\"\",INDIRECT(\"'\" & Setup!$AG$11 & \"'!\" & AD325),0) + IF(Setup!$AG$12<>\"\",INDIRECT(\"'\" & Setup!$AG$12 & \"'!\" & AD325),0)","v":{"v":0,"d":"0.00"}},{"$f":"IF(Setup!$AG$7<>\"\",INDIRECT(\"'\" & Setup!$AG$7 & \"'!\" & AE325),0) + IF(Setup!$AG$8<>\"\",INDIRECT(\"'\" & Setup!$AG$8 & \"'!\" & AE325),0) + IF(Setup!$AG$9<>\"\",INDIRECT(\"'\" & Setup!$AG$9 & \"'!\" & AE325),0) + IF(Setup!$AG$10<>\"\",INDIRECT(\"'\" & Setup!$AG$10 & \"'!\" & AE325),0) + IF(Setup!$AG$11<>\"\",INDIRECT(\"'\" & Setup!$AG$11 & \"'!\" & AE325),0) + IF(Setup!$AG$12<>\"\",INDIRECT(\"'\" & Setup!$AG$12 & \"'!\" & AE325),0)","v":{"v":0,"d":"0.00"}},"","",{"$f":"IF(Setup!$AH$7<>\"\",INDIRECT(\"'\" & Setup!$AH$7 & \"'!\" & AD325),0) + IF(Setup!$AH$8<>\"\",INDIRECT(\"'\" & Setup!$AH$8 & \"'!\" & AD325),0) + IF(Setup!$AH$9<>\"\",INDIRECT(\"'\" & Setup!$AH$9 & \"'!\" & AD325),0) + IF(Setup!$AH$10<>\"\",INDIRECT(\"'\" & Setup!$AH$10 & \"'!\" & AD325),0) + IF(Setup!$AH$11<>\"\",INDIRECT(\"'\" & Setup!$AH$11 & \"'!\" & AD325),0) + IF(Setup!$AH$12<>\"\",INDIRECT(\"'\" & Setup!$AH$12 & \"'!\" & AD325),0)","v":{"v":0,"d":"0.00"}},{"$f":"IF(Setup!$AH$7<>\"\",INDIRECT(\"'\" & Setup!$AH$7 & \"'!\" & AE325),0) + IF(Setup!$AH$8<>\"\",INDIRECT(\"'\" & Setup!$AH$8 & \"'!\" & AE325),0) + IF(Setup!$AH$9<>\"\",INDIRECT(\"'\" & Setup!$AH$9 & \"'!\" & AE325),0) + IF(Setup!$AH$10<>\"\",INDIRECT(\"'\" & Setup!$AH$10 & \"'!\" & AE325),0) + IF(Setup!$AH$11<>\"\",INDIRECT(\"'\" & Setup!$AH$11 & \"'!\" & AE325),0) + IF(Setup!$AH$12<>\"\",INDIRECT(\"'\" & Setup!$AH$12 & \"'!\" & AE325),0)","v":{"v":0,"d":"0.00"}},"","",{"$f":"IF(Setup!$AI$7<>\"\",INDIRECT(\"'\" & Setup!$AI$7 & \"'!\" & AD325),0) + IF(Setup!$AI$8<>\"\",INDIRECT(\"'\" & Setup!$AI$8 & \"'!\" & AD325),0) + IF(Setup!$AI$9<>\"\",INDIRECT(\"'\" & Setup!$AI$9 & \"'!\" & AD325),0) + IF(Setup!$AI$10<>\"\",INDIRECT(\"'\" & Setup!$AI$10 & \"'!\" & AD325),0) + IF(Setup!$AI$11<>\"\",INDIRECT(\"'\" & Setup!$AI$11 & \"'!\" & AD325),0) + IF(Setup!$AI$12<>\"\",INDIRECT(\"'\" & Setup!$AI$12 & \"'!\" & AD325),0)","v":{"v":0,"d":"0.00"}},{"$f":"IF(Setup!$AI$7<>\"\",INDIRECT(\"'\" & Setup!$AI$7 & \"'!\" & AE325),0) + IF(Setup!$AI$8<>\"\",INDIRECT(\"'\" & Setup!$AI$8 & \"'!\" & AE325),0) + IF(Setup!$AI$9<>\"\",INDIRECT(\"'\" & Setup!$AI$9 & \"'!\" & AE325),0) + IF(Setup!$AI$10<>\"\",INDIRECT(\"'\" & Setup!$AI$10 & \"'!\" & AE325),0) + IF(Setup!$AI$11<>\"\",INDIRECT(\"'\" & Setup!$AI$11 & \"'!\" & AE325),0) + IF(Setup!$AI$12<>\"\",INDIRECT(\"'\" & Setup!$AI$12 & \"'!\" & AE325),0)","v":{"v":0,"d":"0.00"}},"","",{"$f":"IF(Setup!$AJ$7<>\"\",INDIRECT(\"'\" & Setup!$AJ$7 & \"'!\" & AD325),0) + IF(Setup!$AJ$8<>\"\",INDIRECT(\"'\" & Setup!$AJ$8 & \"'!\" & AD325),0) + IF(Setup!$AJ$9<>\"\",INDIRECT(\"'\" & Setup!$AJ$9 & \"'!\" & AD325),0) + IF(Setup!$AJ$10<>\"\",INDIRECT(\"'\" & Setup!$AJ$10 & \"'!\" & AD325),0) + IF(Setup!$AJ$11<>\"\",INDIRECT(\"'\" & Setup!$AJ$11 & \"'!\" & AD325),0) + IF(Setup!$AJ$12<>\"\",INDIRECT(\"'\" & Setup!$AJ$12 & \"'!\" & AD325),0)","v":0},{"$f":"IF(Setup!$AJ$7<>\"\",INDIRECT(\"'\" & Setup!$AJ$7 & \"'!\" & AE325),0) + IF(Setup!$AJ$8<>\"\",INDIRECT(\"'\" & Setup!$AJ$8 & \"'!\" & AE325),0) + IF(Setup!$AJ$9<>\"\",INDIRECT(\"'\" & Setup!$AJ$9 & \"'!\" & AE325),0) + IF(Setup!$AJ$10<>\"\",INDIRECT(\"'\" & Setup!$AJ$10 & \"'!\" & AE325),0) + IF(Setup!$AJ$11<>\"\",INDIRECT(\"'\" & Setup!$AJ$11 & \"'!\" & AE325),0) + IF(Setup!$AJ$12<>\"\",INDIRECT(\"'\" & Setup!$AJ$12 & \"'!\" & AE325),0)","v":0},"","",{"$f":"Planning!H97","v":0},"00","M113","O113","N113",null,null,{"$f":"IF(Setup!$AG$7<>\"\",INDIRECT(\"'\" & Setup!$AG$7 & \"'!\" & AF325),0) + IF(Setup!$AG$8<>\"\",INDIRECT(\"'\" & Setup!$AG$8 & \"'!\" & AF325),0) + IF(Setup!$AG$9<>\"\",INDIRECT(\"'\" & Setup!$AG$9 & \"'!\" & AF325),0) + IF(Setup!$AG$10<>\"\",INDIRECT(\"'\" & Setup!$AG$10 & \"'!\" & AF325),0) + IF(Setup!$AG$11<>\"\",INDIRECT(\"'\" & Setup!$AG$11 & \"'!\" & AF325),0) + IF(Setup!$AG$12<>\"\",INDIRECT(\"'\" & Setup!$AG$12 & \"'!\" & AF325),0)","v":0},{"$f":"IF(Setup!$AH$7<>\"\",INDIRECT(\"'\" & Setup!$AH$7 & \"'!\" & AF325),0) + IF(Setup!$AH$8<>\"\",INDIRECT(\"'\" & Setup!$AH$8 & \"'!\" & AF325),0) + IF(Setup!$AH$9<>\"\",INDIRECT(\"'\" & Setup!$AH$9 & \"'!\" & AF325),0) + IF(Setup!$AH$10<>\"\",INDIRECT(\"'\" & Setup!$AH$10 & \"'!\" & AF325),0) + IF(Setup!$AH$11<>\"\",INDIRECT(\"'\" & Setup!$AH$11 & \"'!\" & AF325),0) + IF(Setup!$AH$12<>\"\",INDIRECT(\"'\" & Setup!$AH$12 & \"'!\" & AF325),0)","v":0},{"$f":"IF(Setup!$AI$7<>\"\",INDIRECT(\"'\" & Setup!$AI$7 & \"'!\" & AF325),0) + IF(Setup!$AI$8<>\"\",INDIRECT(\"'\" & Setup!$AI$8 & \"'!\" & AF325),0) + IF(Setup!$AI$9<>\"\",INDIRECT(\"'\" & Setup!$AI$9 & \"'!\" & AF325),0) + IF(Setup!$AI$10<>\"\",INDIRECT(\"'\" & Setup!$AI$10 & \"'!\" & AF325),0) + IF(Setup!$AI$11<>\"\",INDIRECT(\"'\" & Setup!$AI$11 & \"'!\" & AF325),0) + IF(Setup!$AI$12<>\"\",INDIRECT(\"'\" & Setup!$AI$12 & \"'!\" & AF325),0)","v":0},{"$f":"IF(Setup!$AJ$7<>\"\",INDIRECT(\"'\" & Setup!$AJ$7 & \"'!\" & AF325),0) + IF(Setup!$AJ$8<>\"\",INDIRECT(\"'\" & Setup!$AJ$8 & \"'!\" & AF325),0) + IF(Setup!$AJ$9<>\"\",INDIRECT(\"'\" & Setup!$AJ$9 & \"'!\" & AF325),0) + IF(Setup!$AJ$10<>\"\",INDIRECT(\"'\" & Setup!$AJ$10 & \"'!\" & AF325),0) + IF(Setup!$AJ$11<>\"\",INDIRECT(\"'\" & Setup!$AJ$11 & \"'!\" & AF325),0) + IF(Setup!$AJ$12<>\"\",INDIRECT(\"'\" & Setup!$AJ$12 & \"'!\" & AF325),0)","v":0},null,"",{"$nulls":30},0,{"$f":"IF(Setup!$AH$7=\"\",0,INDIRECT(\"'\" & Setup!$AH$7 & \"'!\" & AF325))","v":0},{"$f":"IF(Setup!$AI$7=\"\",0,INDIRECT(\"'\" & Setup!$AI$7 & \"'!\" & AF325))","v":0},{"$f":"IF(Setup!$AJ$7=\"\",0,INDIRECT(\"'\" & Setup!$AJ$7 & \"'!\" & AF325))","v":0}]
[{"$f":"Planning!A98","v":"I090"},{"$f":"Planning!B98","v":0},{"$f":"Planning!C98","v":0},{"$f":"Planning!D98","v":0},{"$f":"Planning!E98","v":0},{"$f":"Planning!G98","v":0},0,{"v":0,"d":"0.00"},{"v":0,"d":"0.00"},"","",{"$f":"IF(Setup!$AG$7<>\"\",INDIRECT(\"'\" & Setup!$AG$7 & \"'!\" & AD326),0) + IF(Setup!$AG$8<>\"\",INDIRECT(\"'\" & Setup!$AG$8 & \"'!\" & AD326),0) + IF(Setup!$AG$9<>\"\",INDIRECT(\"'\" & Setup!$AG$9 & \"'!\" & AD326),0) + IF(Setup!$AG$10<>\"\",INDIRECT(\"'\" & Setup!$AG$10 & \"'!\" & AD326),0) + IF(Setup!$AG$11<>\"\",INDIRECT(\"'\" & Setup!$AG$11 & \"'!\" & AD326),0) + IF(Setup!$AG$12<>\"\",INDIRECT(\"'\" & Setup!$AG$12 & \"'!\" & AD326),0)","v":{"v":0,"d":"0.00"}},{"$f":"IF(Setup!$AG$7<>\"\",INDIRECT(\"'\" & Setup!$AG$7 & \"'!\" & AE326),0) + IF(Setup!$AG$8<>\"\",INDIRECT(\"'\" & Setup!$AG$8 & \"'!\" & AE326),0) + IF(Setup!$AG$9<>\"\",INDIRECT(\"'\" & Setup!$AG$9 & \"'!\" & AE326),0) + IF(Setup!$AG$10<>\"\",INDIRECT(\"'\" & Setup!$AG$10 & \"'!\" & AE326),0) + IF(Setup!$AG$11<>\"\",INDIRECT(\"'\" & Setup!$AG$11 & \"'!\" & AE326),0) + IF(Setup!$AG$12<>\"\",INDIRECT(\"'\" & Setup!$AG$12 & \"'!\" & AE326),0)","v":{"v":0,"d":"0.00"}},"","",{"$f":"IF(Setup!$AH$7<>\"\",INDIRECT(\"'\" & Setup!$AH$7 & \"'!\" & AD326),0) + IF(Setup!$AH$8<>\"\",INDIRECT(\"'\" & Setup!$AH$8 & \"'!\" & AD326),0) + IF(Setup!$AH$9<>\"\",INDIRECT(\"'\" & Setup!$AH$9 & \"'!\" & AD326),0) + IF(Setup!$AH$10<>\"\",INDIRECT(\"'\" & Setup!$AH$10 & \"'!\" & AD326),0) + IF(Setup!$AH$11<>\"\",INDIRECT(\"'\" & Setup!$AH$11 & \"'!\" & AD326),0) + IF(Setup!$AH$12<>\"\",INDIRECT(\"'\" & Setup!$AH$12 & \"'!\" & AD326),0)","v":{"v":0,"d":"0.00"}},{"$f":"IF(Setup!$AH$7<>\"\",INDIRECT(\"'\" & Setup!$AH$7 & \"'!\" & AE326),0) + IF(Setup!$AH$8<>\"\",INDIRECT(\"'\" & Setup!$AH$8 & \"'!\" & AE326),0) + IF(Setup!$AH$9<>\"\",INDIRECT(\"'\" & Setup!$AH$9 & \"'!\" & AE326),0) + IF(Setup!$AH$10<>\"\",INDIRECT(\"'\" & Setup!$AH$10 & \"'!\" & AE326),0) + IF(Setup!$AH$11<>\"\",INDIRECT(\"'\" & Setup!$AH$11 & \"'!\" & AE326),0) + IF(Setup!$AH$12<>\"\",INDIRECT(\"'\" & Setup!$AH$12 & \"'!\" & AE326),0)","v":{"v":0,"d":"0.00"}},"","",{"$f":"IF(Setup!$AI$7<>\"\",INDIRECT(\"'\" & Setup!$AI$7 & \"'!\" & AD326),0) + IF(Setup!$AI$8<>\"\",INDIRECT(\"'\" & Setup!$AI$8 & \"'!\" & AD326),0) + IF(Setup!$AI$9<>\"\",INDIRECT(\"'\" & Setup!$AI$9 & \"'!\" & AD326),0) + IF(Setup!$AI$10<>\"\",INDIRECT(\"'\" & Setup!$AI$10 & \"'!\" & AD326),0) + IF(Setup!$AI$11<>\"\",INDIRECT(\"'\" & Setup!$AI$11 & \"'!\" & AD326),0) + IF(Setup!$AI$12<>\"\",INDIRECT(\"'\" & Setup!$AI$12 & \"'!\" & AD326),0)","v":{"v":0,"d":"0.00"}},{"$f":"IF(Setup!$AI$7<>\"\",INDIRECT(\"'\" & Setup!$AI$7 & \"'!\" & AE326),0) + IF(Setup!$AI$8<>\"\",INDIRECT(\"'\" & Setup!$AI$8 & \"'!\" & AE326),0) + IF(Setup!$AI$9<>\"\",INDIRECT(\"'\" & Setup!$AI$9 & \"'!\" & AE326),0) + IF(Setup!$AI$10<>\"\",INDIRECT(\"'\" & Setup!$AI$10 & \"'!\" & AE326),0) + IF(Setup!$AI$11<>\"\",INDIRECT(\"'\" & Setup!$AI$11 & \"'!\" & AE326),0) + IF(Setup!$AI$12<>\"\",INDIRECT(\"'\" & Setup!$AI$12 & \"'!\" & AE326),0)","v":{"v":0,"d":"0.00"}},"","",{"$f":"IF(Setup!$AJ$7<>\"\",INDIRECT(\"'\" & Setup!$AJ$7 & \"'!\" & AD326),0) + IF(Setup!$AJ$8<>\"\",INDIRECT(\"'\" & Setup!$AJ$8 & \"'!\" & AD326),0) + IF(Setup!$AJ$9<>\"\",INDIRECT(\"'\" & Setup!$AJ$9 & \"'!\" & AD326),0) + IF(Setup!$AJ$10<>\"\",INDIRECT(\"'\" & Setup!$AJ$10 & \"'!\" & AD326),0) + IF(Setup!$AJ$11<>\"\",INDIRECT(\"'\" & Setup!$AJ$11 & \"'!\" & AD326),0) + IF(Setup!$AJ$12<>\"\",INDIRECT(\"'\" & Setup!$AJ$12 & \"'!\" & AD326),0)","v":0},{"$f":"IF(Setup!$AJ$7<>\"\",INDIRECT(\"'\" & Setup!$AJ$7 & \"'!\" & AE326),0) + IF(Setup!$AJ$8<>\"\",INDIRECT(\"'\" & Setup!$AJ$8 & \"'!\" & AE326),0) + IF(Setup!$AJ$9<>\"\",INDIRECT(\"'\" & Setup!$AJ$9 & \"'!\" & AE326),0) + IF(Setup!$AJ$10<>\"\",INDIRECT(\"'\" & Setup!$AJ$10 & \"'!\" & AE326),0) + IF(Setup!$AJ$11<>\"\",INDIRECT(\"'\" & Setup!$AJ$11 & \"'!\" & AE326),0) + IF(Setup!$AJ$12<>\"\",INDIRECT(\"'\" & Setup!$AJ$12 & \"'!\" & AE326),0)","v":0},"","",{"$f":"Planning!H98","v":0},"00","M114","O114","N114",null,null,{"$f":"IF(Setup!$AG$7<>\"\",INDIRECT(\"'\" & Setup!$AG$7 & \"'!\" & AF326),0) + IF(Setup!$AG$8<>\"\",INDIRECT(\"'\" & Setup!$AG$8 & \"'!\" & AF326),0) + IF(Setup!$AG$9<>\"\",INDIRECT(\"'\" & Setup!$AG$9 & \"'!\" & AF326),0) + IF(Setup!$AG$10<>\"\",INDIRECT(\"'\" & Setup!$AG$10 & \"'!\" & AF326),0) + IF(Setup!$AG$11<>\"\",INDIRECT(\"'\" & Setup!$AG$11 & \"'!\" & AF326),0) + IF(Setup!$AG$12<>\"\",INDIRECT(\"'\" & Setup!$AG$12 & \"'!\" & AF326),0)","v":0},{"$f":"IF(Setup!$AH$7<>\"\",INDIRECT(\"'\" & Setup!$AH$7 & \"'!\" & AF326),0) + IF(Setup!$AH$8<>\"\",INDIRECT(\"'\" & Setup!$AH$8 & \"'!\" & AF326),0) + IF(Setup!$AH$9<>\"\",INDIRECT(\"'\" & Setup!$AH$9 & \"'!\" & AF326),0) + IF(Setup!$AH$10<>\"\",INDIRECT(\"'\" & Setup!$AH$10 & \"'!\" & AF326),0) + IF(Setup!$AH$11<>\"\",INDIRECT(\"'\" & Setup!$AH$11 & \"'!\" & AF326),0) + IF(Setup!$AH$12<>\"\",INDIRECT(\"'\" & Setup!$AH$12 & \"'!\" & AF326),0)","v":0},{"$f":"IF(Setup!$AI$7<>\"\",INDIRECT(\"'\" & Setup!$AI$7 & \"'!\" & AF326),0) + IF(Setup!$AI$8<>\"\",INDIRECT(\"'\" & Setup!$AI$8 & \"'!\" & AF326),0) + IF(Setup!$AI$9<>\"\",INDIRECT(\"'\" & Setup!$AI$9 & \"'!\" & AF326),0) + IF(Setup!$AI$10<>\"\",INDIRECT(\"'\" & Setup!$AI$10 & \"'!\" & AF326),0) + IF(Setup!$AI$11<>\"\",INDIRECT(\"'\" & Setup!$AI$11 & \"'!\" & AF326),0) + IF(Setup!$AI$12<>\"\",INDIRECT(\"'\" & Setup!$AI$12 & \"'!\" & AF326),0)","v":0},{"$f":"IF(Setup!$AJ$7<>\"\",INDIRECT(\"'\" & Setup!$AJ$7 & \"'!\" & AF326),0) + IF(Setup!$AJ$8<>\"\",INDIRECT(\"'\" & Setup!$AJ$8 & \"'!\" & AF326),0) + IF(Setup!$AJ$9<>\"\",INDIRECT(\"'\" & Setup!$AJ$9 & \"'!\" & AF326),0) + IF(Setup!$AJ$10<>\"\",INDIRECT(\"'\" & Setup!$AJ$10 & \"'!\" & AF326),0) + IF(Setup!$AJ$11<>\"\",INDIRECT(\"'\" & Setup!$AJ$11 & \"'!\" & AF326),0) + IF(Setup!$AJ$12<>\"\",INDIRECT(\"'\" & Setup!$AJ$12 & \"'!\" & AF326),0)","v":0},null,"",{"$nulls":30},0,{"$f":"IF(Setup!$AH$7=\"\",0,INDIRECT(\"'\" & Setup!$AH$7 & \"'!\" & AF326))","v":0},{"$f":"IF(Setup!$AI$7=\"\",0,INDIRECT(\"'\" & Setup!$AI$7 & \"'!\" & AF326))","v":0},{"$f":"IF(Setup!$AJ$7=\"\",0,INDIRECT(\"'\" & Setup!$AJ$7 & \"'!\" & AF326))","v":0}]
[{"$f":"Planning!A99","v":"I091"},{"$f":"Planning!B99","v":0},{"$f":"Planning!C99","v":0},{"$f":"Planning!D99","v":0},{"$f":"Planning!E99","v":0},{"$f":"Planning!G99","v":0},0,{"v":0,"d":"0.00"},{"v":0,"d":"0.00"},"","",{"$f":"IF(Setup!$AG$7<>\"\",INDIRECT(\"'\" & Setup!$AG$7 & \"'!\" & AD327),0) + IF(Setup!$AG$8<>\"\",INDIRECT(\"'\" & Setup!$AG$8 & \"'!\" & AD327),0) + IF(Setup!$AG$9<>\"\",INDIRECT(\"'\" & Setup!$AG$9 & \"'!\" & AD327),0) + IF(Setup!$AG$10<>\"\",INDIRECT(\"'\" & Setup!$AG$10 & \"'!\" & AD327),0) + IF(Setup!$AG$11<>\"\",INDIRECT(\"'\" & Setup!$AG$11 & \"'!\" & AD327),0) + IF(Setup!$AG$12<>\"\",INDIRECT(\"'\" & Setup!$AG$12 & \"'!\" & AD327),0)","v":{"v":0,"d":"0.00"}},{"$f":"IF(Setup!$AG$7<>\"\",INDIRECT(\"'\" & Setup!$AG$7 & \"'!\" & AE327),0) + IF(Setup!$AG$8<>\"\",INDIRECT(\"'\" & Setup!$AG$8 & \"'!\" & AE327),0) + IF(Setup!$AG$9<>\"\",INDIRECT(\"'\" & Setup!$AG$9 & \"'!\" & AE327),0) + IF(Setup!$AG$10<>\"\",INDIRECT(\"'\" & Setup!$AG$10 & \"'!\" & AE327),0) + IF(Setup!$AG$11<>\"\",INDIRECT(\"'\" & Setup!$AG$11 & \"'!\" & AE327),0) + IF(Setup!$AG$12<>\"\",INDIRECT(\"'\" & Setup!$AG$12 & \"'!\" & AE327),0)","v":{"v":0,"d":"0.00"}},"","",{"$f":"IF(Setup!$AH$7<>\"\",INDIRECT(\"'\" & Setup!$AH$7 & \"'!\" & AD327),0) + IF(Setup!$AH$8<>\"\",INDIRECT(\"'\" & Setup!$AH$8 & \"'!\" & AD327),0) + IF(Setup!$AH$9<>\"\",INDIRECT(\"'\" & Setup!$AH$9 & \"'!\" & AD327),0) + IF(Setup!$AH$10<>\"\",INDIRECT(\"'\" & Setup!$AH$10 & \"'!\" & AD327),0) + IF(Setup!$AH$11<>\"\",INDIRECT(\"'\" & Setup!$AH$11 & \"'!\" & AD327),0) + IF(Setup!$AH$12<>\"\",INDIRECT(\"'\" & Setup!$AH$12 & \"'!\" & AD327),0)","v":{"v":0,"d":"0.00"}},{"$f":"IF(Setup!$AH$7<>\"\",INDIRECT(\"'\" & Setup!$AH$7 & \"'!\" & AE327),0) + IF(Setup!$AH$8<>\"\",INDIRECT(\"'\" & Setup!$AH$8 & \"'!\" & AE327),0) + IF(Setup!$AH$9<>\"\",INDIRECT(\"'\" & Setup!$AH$9 & \"'!\" & AE327),0) + IF(Setup!$AH$10<>\"\",INDIRECT(\"'\" & Setup!$AH$10 & \"'!\" & AE327),0) + IF(Setup!$AH$11<>\"\",INDIRECT(\"'\" & Setup!$AH$11 & \"'!\" & AE327),0) + IF(Setup!$AH$12<>\"\",INDIRECT(\"'\" & Setup!$AH$12 & \"'!\" & AE327),0)","v":{"v":0,"d":"0.00"}},"","",{"$f":"IF(Setup!$AI$7<>\"\",INDIRECT(\"'\" & Setup!$AI$7 & \"'!\" & AD327),0) + IF(Setup!$AI$8<>\"\",INDIRECT(\"'\" & Setup!$AI$8 & \"'!\" & AD327),0) + IF(Setup!$AI$9<>\"\",INDIRECT(\"'\" & Setup!$AI$9 & \"'!\" & AD327),0) + IF(Setup!$AI$10<>\"\",INDIRECT(\"'\" & Setup!$AI$10 & \"'!\" & AD327),0) + IF(Setup!$AI$11<>\"\",INDIRECT(\"'\" & Setup!$AI$11 & \"'!\" & AD327),0) + IF(Setup!$AI$12<>\"\",INDIRECT(\"'\" & Setup!$AI$12 & \"'!\" & AD327),0)","v":{"v":0,"d":"0.00"}},{"$f":"IF(Setup!$AI$7<>\"\",INDIRECT(\"'\" & Setup!$AI$7 & \"'!\" & AE327),0) + IF(Setup!$AI$8<>\"\",INDIRECT(\"'\" & Setup!$AI$8 & \"'!\" & AE327),0) + IF(Setup!$AI$9<>\"\",INDIRECT(\"'\" & Setup!$AI$9 & \"'!\" & AE327),0) + IF(Setup!$AI$10<>\"\",INDIRECT(\"'\" & Setup!$AI$10 & \"'!\" & AE327),0) + IF(Setup!$AI$11<>\"\",INDIRECT(\"'\" & Setup!$AI$11 & \"'!\" & AE327),0) + IF(Setup!$AI$12<>\"\",INDIRECT(\"'\" & Setup!$AI$12 & \"'!\" & AE327),0)","v":{"v":0,"d":"0.00"}},"","",{"$f":"IF(Setup!$AJ$7<>\"\",INDIRECT(\"'\" & Setup!$AJ$7 & \"'!\" & AD327),0) + IF(Setup!$AJ$8<>\"\",INDIRECT(\"'\" & Setup!$AJ$8 & \"'!\" & AD327),0) + IF(Setup!$AJ$9<>\"\",INDIRECT(\"'\" & Setup!$AJ$9 & \"'!\" & AD327),0) + IF(Setup!$AJ$10<>\"\",INDIRECT(\"'\" & Setup!$AJ$10 & \"'!\" & AD327),0) + IF(Setup!$AJ$11<>\"\",INDIRECT(\"'\" & Setup!$AJ$11 & \"'!\" & AD327),0) + IF(Setup!$AJ$12<>\"\",INDIRECT(\"'\" & Setup!$AJ$12 & \"'!\" & AD327),0)","v":0},{"$f":"IF(Setup!$AJ$7<>\"\",INDIRECT(\"'\" & Setup!$AJ$7 & \"'!\" & AE327),0) + IF(Setup!$AJ$8<>\"\",INDIRECT(\"'\" & Setup!$AJ$8 & \"'!\" & AE327),0) + IF(Setup!$AJ$9<>\"\",INDIRECT(\"'\" & Setup!$AJ$9 & \"'!\" & AE327),0) + IF(Setup!$AJ$10<>\"\",INDIRECT(\"'\" & Setup!$AJ$10 & \"'!\" & AE327),0) + IF(Setup!$AJ$11<>\"\",INDIRECT(\"'\" & Setup!$AJ$11 & \"'!\" & AE327),0) + IF(Setup!$AJ$12<>\"\",INDIRECT(\"'\" & Setup!$AJ$12 & \"'!\" & AE327),0)","v":0},"","",{"$f":"Planning!H99","v":0},"00","M115","O115","N115",null,null,{"$f":"IF(Setup!$AG$7<>\"\",INDIRECT(\"'\" & Setup!$AG$7 & \"'!\" & AF327),0) + IF(Setup!$AG$8<>\"\",INDIRECT(\"'\" & Setup!$AG$8 & \"'!\" & AF327),0) + IF(Setup!$AG$9<>\"\",INDIRECT(\"'\" & Setup!$AG$9 & \"'!\" & AF327),0) + IF(Setup!$AG$10<>\"\",INDIRECT(\"'\" & Setup!$AG$10 & \"'!\" & AF327),0) + IF(Setup!$AG$11<>\"\",INDIRECT(\"'\" & Setup!$AG$11 & \"'!\" & AF327),0) + IF(Setup!$AG$12<>\"\",INDIRECT(\"'\" & Setup!$AG$12 & \"'!\" & AF327),0)","v":0},{"$f":"IF(Setup!$AH$7<>\"\",INDIRECT(\"'\" & Setup!$AH$7 & \"'!\" & AF327),0) + IF(Setup!$AH$8<>\"\",INDIRECT(\"'\" & Setup!$AH$8 & \"'!\" & AF327),0) + IF(Setup!$AH$9<>\"\",INDIRECT(\"'\" & Setup!$AH$9 & \"'!\" & AF327),0) + IF(Setup!$AH$10<>\"\",INDIRECT(\"'\" & Setup!$AH$10 & \"'!\" & AF327),0) + IF(Setup!$AH$11<>\"\",INDIRECT(\"'\" & Setup!$AH$11 & \"'!\" & AF327),0) + IF(Setup!$AH$12<>\"\",INDIRECT(\"'\" & Setup!$AH$12 & \"'!\" & AF327),0)","v":0},{"$f":"IF(Setup!$AI$7<>\"\",INDIRECT(\"'\" & Setup!$AI$7 & \"'!\" & AF327),0) + IF(Setup!$AI$8<>\"\",INDIRECT(\"'\" & Setup!$AI$8 & \"'!\" & AF327),0) + IF(Setup!$AI$9<>\"\",INDIRECT(\"'\" & Setup!$AI$9 & \"'!\" & AF327),0) + IF(Setup!$AI$10<>\"\",INDIRECT(\"'\" & Setup!$AI$10 & \"'!\" & AF327),0) + IF(Setup!$AI$11<>\"\",INDIRECT(\"'\" & Setup!$AI$11 & \"'!\" & AF327),0) + IF(Setup!$AI$12<>\"\",INDIRECT(\"'\" & Setup!$AI$12 & \"'!\" & AF327),0)","v":0},{"$f":"IF(Setup!$AJ$7<>\"\",INDIRECT(\"'\" & Setup!$AJ$7 & \"'!\" & AF327),0) + IF(Setup!$AJ$8<>\"\",INDIRECT(\"'\" & Setup!$AJ$8 & \"'!\" & AF327),0) + IF(Setup!$AJ$9<>\"\",INDIRECT(\"'\" & Setup!$AJ$9 & \"'!\" & AF327),0) + IF(Setup!$AJ$10<>\"\",INDIRECT(\"'\" & Setup!$AJ$10 & \"'!\" & AF327),0) + IF(Setup!$AJ$11<>\"\",INDIRECT(\"'\" & Setup!$AJ$11 & \"'!\" & AF327),0) + IF(Setup!$AJ$12<>\"\",INDIRECT(\"'\" & Setup!$AJ$12 & \"'!\" & AF327),0)","v":0},null,"",{"$nulls":30},0,{"$f":"IF(Setup!$AH$7=\"\",0,INDIRECT(\"'\" & Setup!$AH$7 & \"'!\" & AF327))","v":0},{"$f":"IF(Setup!$AI$7=\"\",0,INDIRECT(\"'\" & Setup!$AI$7 & \"'!\" & AF327))","v":0},{"$f":"IF(Setup!$AJ$7=\"\",0,INDIRECT(\"'\" & Setup!$AJ$7 & \"'!\" & AF327))","v":0}]
[{"$f":"Planning!A100","v":"I092"},{"$f":"Planning!B100","v":0},{"$f":"Planning!C100","v":0},{"$f":"Planning!D100","v":0},{"$f":"Planning!E100","v":0},{"$f":"Planning!G100","v":0},0,{"v":0,"d":"0.00"},{"v":0,"d":"0.00"},"","",{"$f":"IF(Setup!$AG$7<>\"\",INDIRECT(\"'\" & Setup!$AG$7 & \"'!\" & AD328),0) + IF(Setup!$AG$8<>\"\",INDIRECT(\"'\" & Setup!$AG$8 & \"'!\" & AD328),0) + IF(Setup!$AG$9<>\"\",INDIRECT(\"'\" & Setup!$AG$9 & \"'!\" & AD328),0) + IF(Setup!$AG$10<>\"\",INDIRECT(\"'\" & Setup!$AG$10 & \"'!\" & AD328),0) + IF(Setup!$AG$11<>\"\",INDIRECT(\"'\" & Setup!$AG$11 & \"'!\" & AD328),0) + IF(Setup!$AG$12<>\"\",INDIRECT(\"'\" & Setup!$AG$12 & \"'!\" & AD328),0)","v":{"v":0,"d":"0.00"}},{"$f":"IF(Setup!$AG$7<>\"\",INDIRECT(\"'\" & Setup!$AG$7 & \"'!\" & AE328),0) + IF(Setup!$AG$8<>\"\",INDIRECT(\"'\" & Setup!$AG$8 & \"'!\" & AE328),0) + IF(Setup!$AG$9<>\"\",INDIRECT(\"'\" & Setup!$AG$9 & \"'!\" & AE328),0) + IF(Setup!$AG$10<>\"\",INDIRECT(\"'\" & Setup!$AG$10 & \"'!\" & AE328),0) + IF(Setup!$AG$11<>\"\",INDIRECT(\"'\" & Setup!$AG$11 & \"'!\" & AE328),0) + IF(Setup!$AG$12<>\"\",INDIRECT(\"'\" & Setup!$AG$12 & \"'!\" & AE328),0)","v":{"v":0,"d":"0.00"}},"","",{"$f":"IF(Setup!$AH$7<>\"\",INDIRECT(\"'\" & Setup!$AH$7 & \"'!\" & AD328),0) + IF(Setup!$AH$8<>\"\",INDIRECT(\"'\" & Setup!$AH$8 & \"'!\" & AD328),0) + IF(Setup!$AH$9<>\"\",INDIRECT(\"'\" & Setup!$AH$9 & \"'!\" & AD328),0) + IF(Setup!$AH$10<>\"\",INDIRECT(\"'\" & Setup!$AH$10 & \"'!\" & AD328),0) + IF(Setup!$AH$11<>\"\",INDIRECT(\"'\" & Setup!$AH$11 & \"'!\" & AD328),0) + IF(Setup!$AH$12<>\"\",INDIRECT(\"'\" & Setup!$AH$12 & \"'!\" & AD328),0)","v":{"v":0,"d":"0.00"}},{"$f":"IF(Setup!$AH$7<>\"\",INDIRECT(\"'\" & Setup!$AH$7 & \"'!\" & AE328),0) + IF(Setup!$AH$8<>\"\",INDIRECT(\"'\" & Setup!$AH$8 & \"'!\" & AE328),0) + IF(Setup!$AH$9<>\"\",INDIRECT(\"'\" & Setup!$AH$9 & \"'!\" & AE328),0) + IF(Setup!$AH$10<>\"\",INDIRECT(\"'\" & Setup!$AH$10 & \"'!\" & AE328),0) + IF(Setup!$AH$11<>\"\",INDIRECT(\"'\" & Setup!$AH$11 & \"'!\" & AE328),0) + IF(Setup!$AH$12<>\"\",INDIRECT(\"'\" & Setup!$AH$12 & \"'!\" & AE328),0)","v":{"v":0,"d":"0.00"}},"","",{"$f":"IF(Setup!$AI$7<>\"\",INDIRECT(\"'\" & Setup!$AI$7 & \"'!\" & AD328),0) + IF(Setup!$AI$8<>\"\",INDIRECT(\"'\" & Setup!$AI$8 & \"'!\" & AD328),0) + IF(Setup!$AI$9<>\"\",INDIRECT(\"'\" & Setup!$AI$9 & \"'!\" & AD328),0) + IF(Setup!$AI$10<>\"\",INDIRECT(\"'\" & Setup!$AI$10 & \"'!\" & AD328),0) + IF(Setup!$AI$11<>\"\",INDIRECT(\"'\" & Setup!$AI$11 & \"'!\" & AD328),0) + IF(Setup!$AI$12<>\"\",INDIRECT(\"'\" & Setup!$AI$12 & \"'!\" & AD328),0)","v":{"v":0,"d":"0.00"}},{"$f":"IF(Setup!$AI$7<>\"\",INDIRECT(\"'\" & Setup!$AI$7 & \"'!\" & AE328),0) + IF(Setup!$AI$8<>\"\",INDIRECT(\"'\" & Setup!$AI$8 & \"'!\" & AE328),0) + IF(Setup!$AI$9<>\"\",INDIRECT(\"'\" & Setup!$AI$9 & \"'!\" & AE328),0) + IF(Setup!$AI$10<>\"\",INDIRECT(\"'\" & Setup!$AI$10 & \"'!\" & AE328),0) + IF(Setup!$AI$11<>\"\",INDIRECT(\"'\" & Setup!$AI$11 & \"'!\" & AE328),0) + IF(Setup!$AI$12<>\"\",INDIRECT(\"'\" & Setup!$AI$12 & \"'!\" & AE328),0)","v":{"v":0,"d":"0.00"}},"","",{"$f":"IF(Setup!$AJ$7<>\"\",INDIRECT(\"'\" & Setup!$AJ$7 & \"'!\" & AD328),0) + IF(Setup!$AJ$8<>\"\",INDIRECT(\"'\" & Setup!$AJ$8 & \"'!\" & AD328),0) + IF(Setup!$AJ$9<>\"\",INDIRECT(\"'\" & Setup!$AJ$9 & \"'!\" & AD328),0) + IF(Setup!$AJ$10<>\"\",INDIRECT(\"'\" & Setup!$AJ$10 & \"'!\" & AD328),0) + IF(Setup!$AJ$11<>\"\",INDIRECT(\"'\" & Setup!$AJ$11 & \"'!\" & AD328),0) + IF(Setup!$AJ$12<>\"\",INDIRECT(\"'\" & Setup!$AJ$12 & \"'!\" & AD328),0)","v":0},{"$f":"IF(Setup!$AJ$7<>\"\",INDIRECT(\"'\" & Setup!$AJ$7 & \"'!\" & AE328),0) + IF(Setup!$AJ$8<>\"\",INDIRECT(\"'\" & Setup!$AJ$8 & \"'!\" & AE328),0) + IF(Setup!$AJ$9<>\"\",INDIRECT(\"'\" & Setup!$AJ$9 & \"'!\" & AE328),0) + IF(Setup!$AJ$10<>\"\",INDIRECT(\"'\" & Setup!$AJ$10 & \"'!\" & AE328),0) + IF(Setup!$AJ$11<>\"\",INDIRECT(\"'\" & Setup!$AJ$11 & \"'!\" & AE328),0) + IF(Setup!$AJ$12<>\"\",INDIRECT(\"'\" & Setup!$AJ$12 & \"'!\" & AE328),0)","v":0},"","",{"$f":"Planning!H100","v":0},"00","M116","O116","N116",null,null,{"$f":"IF(Setup!$AG$7<>\"\",INDIRECT(\"'\" & Setup!$AG$7 & \"'!\" & AF328),0) + IF(Setup!$AG$8<>\"\",INDIRECT(\"'\" & Setup!$AG$8 & \"'!\" & AF328),0) + IF(Setup!$AG$9<>\"\",INDIRECT(\"'\" & Setup!$AG$9 & \"'!\" & AF328),0) + IF(Setup!$AG$10<>\"\",INDIRECT(\"'\" & Setup!$AG$10 & \"'!\" & AF328),0) + IF(Setup!$AG$11<>\"\",INDIRECT(\"'\" & Setup!$AG$11 & \"'!\" & AF328),0) + IF(Setup!$AG$12<>\"\",INDIRECT(\"'\" & Setup!$AG$12 & \"'!\" & AF328),0)","v":0},{"$f":"IF(Setup!$AH$7<>\"\",INDIRECT(\"'\" & Setup!$AH$7 & \"'!\" & AF328),0) + IF(Setup!$AH$8<>\"\",INDIRECT(\"'\" & Setup!$AH$8 & \"'!\" & AF328),0) + IF(Setup!$AH$9<>\"\",INDIRECT(\"'\" & Setup!$AH$9 & \"'!\" & AF328),0) + IF(Setup!$AH$10<>\"\",INDIRECT(\"'\" & Setup!$AH$10 & \"'!\" & AF328),0) + IF(Setup!$AH$11<>\"\",INDIRECT(\"'\" & Setup!$AH$11 & \"'!\" & AF328),0) + IF(Setup!$AH$12<>\"\",INDIRECT(\"'\" & Setup!$AH$12 & \"'!\" & AF328),0)","v":0},{"$f":"IF(Setup!$AI$7<>\"\",INDIRECT(\"'\" & Setup!$AI$7 & \"'!\" & AF328),0) + IF(Setup!$AI$8<>\"\",INDIRECT(\"'\" & Setup!$AI$8 & \"'!\" & AF328),0) + IF(Setup!$AI$9<>\"\",INDIRECT(\"'\" & Setup!$AI$9 & \"'!\" & AF328),0) + IF(Setup!$AI$10<>\"\",INDIRECT(\"'\" & Setup!$AI$10 & \"'!\" & AF328),0) + IF(Setup!$AI$11<>\"\",INDIRECT(\"'\" & Setup!$AI$11 & \"'!\" & AF328),0) + IF(Setup!$AI$12<>\"\",INDIRECT(\"'\" & Setup!$AI$12 & \"'!\" & AF328),0)","v":0},{"$f":"IF(Setup!$AJ$7<>\"\",INDIRECT(\"'\" & Setup!$AJ$7 & \"'!\" & AF328),0) + IF(Setup!$AJ$8<>\"\",INDIRECT(\"'\" & Setup!$AJ$8 & \"'!\" & AF328),0) + IF(Setup!$AJ$9<>\"\",INDIRECT(\"'\" & Setup!$AJ$9 & \"'!\" & AF328),0) + IF(Setup!$AJ$10<>\"\",INDIRECT(\"'\" & Setup!$AJ$10 & \"'!\" & AF328),0) + IF(Setup!$AJ$11<>\"\",INDIRECT(\"'\" & Setup!$AJ$11 & \"'!\" & AF328),0) + IF(Setup!$AJ$12<>\"\",INDIRECT(\"'\" & Setup!$AJ$12 & \"'!\" & AF328),0)","v":0},null,"",{"$nulls":30},0,{"$f":"IF(Setup!$AH$7=\"\",0,INDIRECT(\"'\" & Setup!$AH$7 & \"'!\" & AF328))","v":0},{"$f":"IF(Setup!$AI$7=\"\",0,INDIRECT(\"'\" & Setup!$AI$7 & \"'!\" & AF328))","v":0},{"$f":"IF(Setup!$AJ$7=\"\",0,INDIRECT(\"'\" & Setup!$AJ$7 & \"'!\" & AF328))","v":0}]
[{"$f":"Planning!A101","v":"I093"},{"$f":"Planning!B101","v":0},{"$f":"Planning!C101","v":0},{"$f":"Planning!D101","v":0},{"$f":"Planning!E101","v":0},{"$f":"Planning!G101","v":0},0,{"v":0,"d":"0.00"},{"v":0,"d":"0.00"},"","",{"$f":"IF(Setup!$AG$7<>\"\",INDIRECT(\"'\" & Setup!$AG$7 & \"'!\" & AD329),0) + IF(Setup!$AG$8<>\"\",INDIRECT(\"'\" & Setup!$AG$8 & \"'!\" & AD329),0) + IF(Setup!$AG$9<>\"\",INDIRECT(\"'\" & Setup!$AG$9 & \"'!\" & AD329),0) + IF(Setup!$AG$10<>\"\",INDIRECT(\"'\" & Setup!$AG$10 & \"'!\" & AD329),0) + IF(Setup!$AG$11<>\"\",INDIRECT(\"'\" & Setup!$AG$11 & \"'!\" & AD329),0) + IF(Setup!$AG$12<>\"\",INDIRECT(\"'\" & Setup!$AG$12 & \"'!\" & AD329),0)","v":{"v":0,"d":"0.00"}},{"$f":"IF(Setup!$AG$7<>\"\",INDIRECT(\"'\" & Setup!$AG$7 & \"'!\" & AE329),0) + IF(Setup!$AG$8<>\"\",INDIRECT(\"'\" & Setup!$AG$8 & \"'!\" & AE329),0) + IF(Setup!$AG$9<>\"\",INDIRECT(\"'\" & Setup!$AG$9 & \"'!\" & AE329),0) + IF(Setup!$AG$10<>\"\",INDIRECT(\"'\" & Setup!$AG$10 & \"'!\" & AE329),0) + IF(Setup!$AG$11<>\"\",INDIRECT(\"'\" & Setup!$AG$11 & \"'!\" & AE329),0) + IF(Setup!$AG$12<>\"\",INDIRECT(\"'\" & Setup!$AG$12 & \"'!\" & AE329),0)","v":{"v":0,"d":"0.00"}},"","",{"$f":"IF(Setup!$AH$7<>\"\",INDIRECT(\"'\" & Setup!$AH$7 & \"'!\" & AD329),0) + IF(Setup!$AH$8<>\"\",INDIRECT(\"'\" & Setup!$AH$8 & \"'!\" & AD329),0) + IF(Setup!$AH$9<>\"\",INDIRECT(\"'\" & Setup!$AH$9 & \"'!\" & AD329),0) + IF(Setup!$AH$10<>\"\",INDIRECT(\"'\" & Setup!$AH$10 & \"'!\" & AD329),0) + IF(Setup!$AH$11<>\"\",INDIRECT(\"'\" & Setup!$AH$11 & \"'!\" & AD329),0) + IF(Setup!$AH$12<>\"\",INDIRECT(\"'\" & Setup!$AH$12 & \"'!\" & AD329),0)","v":{"v":0,"d":"0.00"}},{"$f":"IF(Setup!$AH$7<>\"\",INDIRECT(\"'\" & Setup!$AH$7 & \"'!\" & AE329),0) + IF(Setup!$AH$8<>\"\",INDIRECT(\"'\" & Setup!$AH$8 & \"'!\" & AE329),0) + IF(Setup!$AH$9<>\"\",INDIRECT(\"'\" & Setup!$AH$9 & \"'!\" & AE329),0) + IF(Setup!$AH$10<>\"\",INDIRECT(\"'\" & Setup!$AH$10 & \"'!\" & AE329),0) + IF(Setup!$AH$11<>\"\",INDIRECT(\"'\" & Setup!$AH$11 & \"'!\" & AE329),0) + IF(Setup!$AH$12<>\"\",INDIRECT(\"'\" & Setup!$AH$12 & \"'!\" & AE329),0)","v":{"v":0,"d":"0.00"}},"","",{"$f":"IF(Setup!$AI$7<>\"\",INDIRECT(\"'\" & Setup!$AI$7 & \"'!\" & AD329),0) + IF(Setup!$AI$8<>\"\",INDIRECT(\"'\" & Setup!$AI$8 & \"'!\" & AD329),0) + IF(Setup!$AI$9<>\"\",INDIRECT(\"'\" & Setup!$AI$9 & \"'!\" & AD329),0) + IF(Setup!$AI$10<>\"\",INDIRECT(\"'\" & Setup!$AI$10 & \"'!\" & AD329),0) + IF(Setup!$AI$11<>\"\",INDIRECT(\"'\" & Setup!$AI$11 & \"'!\" & AD329),0) + IF(Setup!$AI$12<>\"\",INDIRECT(\"'\" & Setup!$AI$12 & \"'!\" & AD329),0)","v":{"v":0,"d":"0.00"}},{"$f":"IF(Setup!$AI$7<>\"\",INDIRECT(\"'\" & Setup!$AI$7 & \"'!\" & AE329),0) + IF(Setup!$AI$8<>\"\",INDIRECT(\"'\" & Setup!$AI$8 & \"'!\" & AE329),0) + IF(Setup!$AI$9<>\"\",INDIRECT(\"'\" & Setup!$AI$9 & \"'!\" & AE329),0) + IF(Setup!$AI$10<>\"\",INDIRECT(\"'\" & Setup!$AI$10 & \"'!\" & AE329),0) + IF(Setup!$AI$11<>\"\",INDIRECT(\"'\" & Setup!$AI$11 & \"'!\" & AE329),0) + IF(Setup!$AI$12<>\"\",INDIRECT(\"'\" & Setup!$AI$12 & \"'!\" & AE329),0)","v":{"v":0,"d":"0.00"}},"","",{"$f":"IF(Setup!$AJ$7<>\"\",INDIRECT(\"'\" & Setup!$AJ$7 & \"'!\" & AD329),0) + IF(Setup!$AJ$8<>\"\",INDIRECT(\"'\" & Setup!$AJ$8 & \"'!\" & AD329),0) + IF(Setup!$AJ$9<>\"\",INDIRECT(\"'\" & Setup!$AJ$9 & \"'!\" & AD329),0) + IF(Setup!$AJ$10<>\"\",INDIRECT(\"'\" & Setup!$AJ$10 & \"'!\" & AD329),0) + IF(Setup!$AJ$11<>\"\",INDIRECT(\"'\" & Setup!$AJ$11 & \"'!\" & AD329),0) + IF(Setup!$AJ$12<>\"\",INDIRECT(\"'\" & Setup!$AJ$12 & \"'!\" & AD329),0)","v":0},{"$f":"IF(Setup!$AJ$7<>\"\",INDIRECT(\"'\" & Setup!$AJ$7 & \"'!\" & AE329),0) + IF(Setup!$AJ$8<>\"\",INDIRECT(\"'\" & Setup!$AJ$8 & \"'!\" & AE329),0) + IF(Setup!$AJ$9<>\"\",INDIRECT(\"'\" & Setup!$AJ$9 & \"'!\" & AE329),0) + IF(Setup!$AJ$10<>\"\",INDIRECT(\"'\" & Setup!$AJ$10 & \"'!\" & AE329),0) + IF(Setup!$AJ$11<>\"\",INDIRECT(\"'\" & Setup!$AJ$11 & \"'!\" & AE329),0) + IF(Setup!$AJ$12<>\"\",INDIRECT(\"'\" & Setup!$AJ$12 & \"'!\" & AE329),0)","v":0},"","",{"$f":"Planning!H101","v":0},"00","M117","O117","N117",null,null,{"$f":"IF(Setup!$AG$7<>\"\",INDIRECT(\"'\" & Setup!$AG$7 & \"'!\" & AF329),0) + IF(Setup!$AG$8<>\"\",INDIRECT(\"'\" & Setup!$AG$8 & \"'!\" & AF329),0) + IF(Setup!$AG$9<>\"\",INDIRECT(\"'\" & Setup!$AG$9 & \"'!\" & AF329),0) + IF(Setup!$AG$10<>\"\",INDIRECT(\"'\" & Setup!$AG$10 & \"'!\" & AF329),0) + IF(Setup!$AG$11<>\"\",INDIRECT(\"'\" & Setup!$AG$11 & \"'!\" & AF329),0) + IF(Setup!$AG$12<>\"\",INDIRECT(\"'\" & Setup!$AG$12 & \"'!\" & AF329),0)","v":0},{"$f":"IF(Setup!$AH$7<>\"\",INDIRECT(\"'\" & Setup!$AH$7 & \"'!\" & AF329),0) + IF(Setup!$AH$8<>\"\",INDIRECT(\"'\" & Setup!$AH$8 & \"'!\" & AF329),0) + IF(Setup!$AH$9<>\"\",INDIRECT(\"'\" & Setup!$AH$9 & \"'!\" & AF329),0) + IF(Setup!$AH$10<>\"\",INDIRECT(\"'\" & Setup!$AH$10 & \"'!\" & AF329),0) + IF(Setup!$AH$11<>\"\",INDIRECT(\"'\" & Setup!$AH$11 & \"'!\" & AF329),0) + IF(Setup!$AH$12<>\"\",INDIRECT(\"'\" & Setup!$AH$12 & \"'!\" & AF329),0)","v":0},{"$f":"IF(Setup!$AI$7<>\"\",INDIRECT(\"'\" & Setup!$AI$7 & \"'!\" & AF329),0) + IF(Setup!$AI$8<>\"\",INDIRECT(\"'\" & Setup!$AI$8 & \"'!\" & AF329),0) + IF(Setup!$AI$9<>\"\",INDIRECT(\"'\" & Setup!$AI$9 & \"'!\" & AF329),0) + IF(Setup!$AI$10<>\"\",INDIRECT(\"'\" & Setup!$AI$10 & \"'!\" & AF329),0) + IF(Setup!$AI$11<>\"\",INDIRECT(\"'\" & Setup!$AI$11 & \"'!\" & AF329),0) + IF(Setup!$AI$12<>\"\",INDIRECT(\"'\" & Setup!$AI$12 & \"'!\" & AF329),0)","v":0},{"$f":"IF(Setup!$AJ$7<>\"\",INDIRECT(\"'\" & Setup!$AJ$7 & \"'!\" & AF329),0) + IF(Setup!$AJ$8<>\"\",INDIRECT(\"'\" & Setup!$AJ$8 & \"'!\" & AF329),0) + IF(Setup!$AJ$9<>\"\",INDIRECT(\"'\" & Setup!$AJ$9 & \"'!\" & AF329),0) + IF(Setup!$AJ$10<>\"\",INDIRECT(\"'\" & Setup!$AJ$10 & \"'!\" & AF329),0) + IF(Setup!$AJ$11<>\"\",INDIRECT(\"'\" & Setup!$AJ$11 & \"'!\" & AF329),0) + IF(Setup!$AJ$12<>\"\",INDIRECT(\"'\" & Setup!$AJ$12 & \"'!\" & AF329),0)","v":0},null,"",{"$nulls":30},0,{"$f":"IF(Setup!$AH$7=\"\",0,INDIRECT(\"'\" & Setup!$AH$7 & \"'!\" & AF329))","v":0},{"$f":"IF(Setup!$AI$7=\"\",0,INDIRECT(\"'\" & Setup!$AI$7 & \"'!\" & AF329))","v":0},{"$f":"IF(Setup!$AJ$7=\"\",0,INDIRECT(\"'\" & Setup!$AJ$7 & \"'!\" & AF329))","v":0}]
[{"$f":"Planning!A102","v":"I094"},{"$f":"Planning!B102","v":0},{"$f":"Planning!C102","v":0},{"$f":"Planning!D102","v":0},{"$f":"Planning!E102","v":0},{"$f":"Planning!G102","v":0},0,{"v":0,"d":"0.00"},{"v":0,"d":"0.00"},"","",{"$f":"IF(Setup!$AG$7<>\"\",INDIRECT(\"'\" & Setup!$AG$7 & \"'!\" & AD330),0) + IF(Setup!$AG$8<>\"\",INDIRECT(\"'\" & Setup!$AG$8 & \"'!\" & AD330),0) + IF(Setup!$AG$9<>\"\",INDIRECT(\"'\" & Setup!$AG$9 & \"'!\" & AD330),0) + IF(Setup!$AG$10<>\"\",INDIRECT(\"'\" & Setup!$AG$10 & \"'!\" & AD330),0) + IF(Setup!$AG$11<>\"\",INDIRECT(\"'\" & Setup!$AG$11 & \"'!\" & AD330),0) + IF(Setup!$AG$12<>\"\",INDIRECT(\"'\" & Setup!$AG$12 & \"'!\" & AD330),0)","v":{"v":0,"d":"0.00"}},{"$f":"IF(Setup!$AG$7<>\"\",INDIRECT(\"'\" & Setup!$AG$7 & \"'!\" & AE330),0) + IF(Setup!$AG$8<>\"\",INDIRECT(\"'\" & Setup!$AG$8 & \"'!\" & AE330),0) + IF(Setup!$AG$9<>\"\",INDIRECT(\"'\" & Setup!$AG$9 & \"'!\" & AE330),0) + IF(Setup!$AG$10<>\"\",INDIRECT(\"'\" & Setup!$AG$10 & \"'!\" & AE330),0) + IF(Setup!$AG$11<>\"\",INDIRECT(\"'\" & Setup!$AG$11 & \"'!\" & AE330),0) + IF(Setup!$AG$12<>\"\",INDIRECT(\"'\" & Setup!$AG$12 & \"'!\" & AE330),0)","v":{"v":0,"d":"0.00"}},"","",{"$f":"IF(Setup!$AH$7<>\"\",INDIRECT(\"'\" & Setup!$AH$7 & \"'!\" & AD330),0) + IF(Setup!$AH$8<>\"\",INDIRECT(\"'\" & Setup!$AH$8 & \"'!\" & AD330),0) + IF(Setup!$AH$9<>\"\",INDIRECT(\"'\" & Setup!$AH$9 & \"'!\" & AD330),0) + IF(Setup!$AH$10<>\"\",INDIRECT(\"'\" & Setup!$AH$10 & \"'!\" & AD330),0) + IF(Setup!$AH$11<>\"\",INDIRECT(\"'\" & Setup!$AH$11 & \"'!\" & AD330),0) + IF(Setup!$AH$12<>\"\",INDIRECT(\"'\" & Setup!$AH$12 & \"'!\" & AD330),0)","v":{"v":0,"d":"0.00"}},{"$f":"IF(Setup!$AH$7<>\"\",INDIRECT(\"'\" & Setup!$AH$7 & \"'!\" & AE330),0) + IF(Setup!$AH$8<>\"\",INDIRECT(\"'\" & Setup!$AH$8 & \"'!\" & AE330),0) + IF(Setup!$AH$9<>\"\",INDIRECT(\"'\" & Setup!$AH$9 & \"'!\" & AE330),0) + IF(Setup!$AH$10<>\"\",INDIRECT(\"'\" & Setup!$AH$10 & \"'!\" & AE330),0) + IF(Setup!$AH$11<>\"\",INDIRECT(\"'\" & Setup!$AH$11 & \"'!\" & AE330),0) + IF(Setup!$AH$12<>\"\",INDIRECT(\"'\" & Setup!$AH$12 & \"'!\" & AE330),0)","v":{"v":0,"d":"0.00"}},"","",{"$f":"IF(Setup!$AI$7<>\"\",INDIRECT(\"'\" & Setup!$AI$7 & \"'!\" & AD330),0) + IF(Setup!$AI$8<>\"\",INDIRECT(\"'\" & Setup!$AI$8 & \"'!\" & AD330),0) + IF(Setup!$AI$9<>\"\",INDIRECT(\"'\" & Setup!$AI$9 & \"'!\" & AD330),0) + IF(Setup!$AI$10<>\"\",INDIRECT(\"'\" & Setup!$AI$10 & \"'!\" & AD330),0) + IF(Setup!$AI$11<>\"\",INDIRECT(\"'\" & Setup!$AI$11 & \"'!\" & AD330),0) + IF(Setup!$AI$12<>\"\",INDIRECT(\"'\" & Setup!$AI$12 & \"'!\" & AD330),0)","v":{"v":0,"d":"0.00"}},{"$f":"IF(Setup!$AI$7<>\"\",INDIRECT(\"'\" & Setup!$AI$7 & \"'!\" & AE330),0) + IF(Setup!$AI$8<>\"\",INDIRECT(\"'\" & Setup!$AI$8 & \"'!\" & AE330),0) + IF(Setup!$AI$9<>\"\",INDIRECT(\"'\" & Setup!$AI$9 & \"'!\" & AE330),0) + IF(Setup!$AI$10<>\"\",INDIRECT(\"'\" & Setup!$AI$10 & \"'!\" & AE330),0) + IF(Setup!$AI$11<>\"\",INDIRECT(\"'\" & Setup!$AI$11 & \"'!\" & AE330),0) + IF(Setup!$AI$12<>\"\",INDIRECT(\"'\" & Setup!$AI$12 & \"'!\" & AE330),0)","v":{"v":0,"d":"0.00"}},"","",{"$f":"IF(Setup!$AJ$7<>\"\",INDIRECT(\"'\" & Setup!$AJ$7 & \"'!\" & AD330),0) + IF(Setup!$AJ$8<>\"\",INDIRECT(\"'\" & Setup!$AJ$8 & \"'!\" & AD330),0) + IF(Setup!$AJ$9<>\"\",INDIRECT(\"'\" & Setup!$AJ$9 & \"'!\" & AD330),0) + IF(Setup!$AJ$10<>\"\",INDIRECT(\"'\" & Setup!$AJ$10 & \"'!\" & AD330),0) + IF(Setup!$AJ$11<>\"\",INDIRECT(\"'\" & Setup!$AJ$11 & \"'!\" & AD330),0) + IF(Setup!$AJ$12<>\"\",INDIRECT(\"'\" & Setup!$AJ$12 & \"'!\" & AD330),0)","v":0},{"$f":"IF(Setup!$AJ$7<>\"\",INDIRECT(\"'\" & Setup!$AJ$7 & \"'!\" & AE330),0) + IF(Setup!$AJ$8<>\"\",INDIRECT(\"'\" & Setup!$AJ$8 & \"'!\" & AE330),0) + IF(Setup!$AJ$9<>\"\",INDIRECT(\"'\" & Setup!$AJ$9 & \"'!\" & AE330),0) + IF(Setup!$AJ$10<>\"\",INDIRECT(\"'\" & Setup!$AJ$10 & \"'!\" & AE330),0) + IF(Setup!$AJ$11<>\"\",INDIRECT(\"'\" & Setup!$AJ$11 & \"'!\" & AE330),0) + IF(Setup!$AJ$12<>\"\",INDIRECT(\"'\" & Setup!$AJ$12 & \"'!\" & AE330),0)","v":0},"","",{"$f":"Planning!H102","v":0},"00","M118","O118","N118",null,null,{"$f":"IF(Setup!$AG$7<>\"\",INDIRECT(\"'\" & Setup!$AG$7 & \"'!\" & AF330),0) + IF(Setup!$AG$8<>\"\",INDIRECT(\"'\" & Setup!$AG$8 & \"'!\" & AF330),0) + IF(Setup!$AG$9<>\"\",INDIRECT(\"'\" & Setup!$AG$9 & \"'!\" & AF330),0) + IF(Setup!$AG$10<>\"\",INDIRECT(\"'\" & Setup!$AG$10 & \"'!\" & AF330),0) + IF(Setup!$AG$11<>\"\",INDIRECT(\"'\" & Setup!$AG$11 & \"'!\" & AF330),0) + IF(Setup!$AG$12<>\"\",INDIRECT(\"'\" & Setup!$AG$12 & \"'!\" & AF330),0)","v":0},{"$f":"IF(Setup!$AH$7<>\"\",INDIRECT(\"'\" & Setup!$AH$7 & \"'!\" & AF330),0) + IF(Setup!$AH$8<>\"\",INDIRECT(\"'\" & Setup!$AH$8 & \"'!\" & AF330),0) + IF(Setup!$AH$9<>\"\",INDIRECT(\"'\" & Setup!$AH$9 & \"'!\" & AF330),0) + IF(Setup!$AH$10<>\"\",INDIRECT(\"'\" & Setup!$AH$10 & \"'!\" & AF330),0) + IF(Setup!$AH$11<>\"\",INDIRECT(\"'\" & Setup!$AH$11 & \"'!\" & AF330),0) + IF(Setup!$AH$12<>\"\",INDIRECT(\"'\" & Setup!$AH$12 & \"'!\" & AF330),0)","v":0},{"$f":"IF(Setup!$AI$7<>\"\",INDIRECT(\"'\" & Setup!$AI$7 & \"'!\" & AF330),0) + IF(Setup!$AI$8<>\"\",INDIRECT(\"'\" & Setup!$AI$8 & \"'!\" & AF330),0) + IF(Setup!$AI$9<>\"\",INDIRECT(\"'\" & Setup!$AI$9 & \"'!\" & AF330),0) + IF(Setup!$AI$10<>\"\",INDIRECT(\"'\" & Setup!$AI$10 & \"'!\" & AF330),0) + IF(Setup!$AI$11<>\"\",INDIRECT(\"'\" & Setup!$AI$11 & \"'!\" & AF330),0) + IF(Setup!$AI$12<>\"\",INDIRECT(\"'\" & Setup!$AI$12 & \"'!\" & AF330),0)","v":0},{"$f":"IF(Setup!$AJ$7<>\"\",INDIRECT(\"'\" & Setup!$AJ$7 & \"'!\" & AF330),0) + IF(Setup!$AJ$8<>\"\",INDIRECT(\"'\" & Setup!$AJ$8 & \"'!\" & AF330),0) + IF(Setup!$AJ$9<>\"\",INDIRECT(\"'\" & Setup!$AJ$9 & \"'!\" & AF330),0) + IF(Setup!$AJ$10<>\"\",INDIRECT(\"'\" & Setup!$AJ$10 & \"'!\" & AF330),0) + IF(Setup!$AJ$11<>\"\",INDIRECT(\"'\" & Setup!$AJ$11 & \"'!\" & AF330),0) + IF(Setup!$AJ$12<>\"\",INDIRECT(\"'\" & Setup!$AJ$12 & \"'!\" & AF330),0)","v":0},null,"",{"$nulls":30},0,{"$f":"IF(Setup!$AH$7=\"\",0,INDIRECT(\"'\" & Setup!$AH$7 & \"'!\" & AF330))","v":0},{"$f":"IF(Setup!$AI$7=\"\",0,INDIRECT(\"'\" & Setup!$AI$7 & \"'!\" & AF330))","v":0},{"$f":"IF(Setup!$AJ$7=\"\",0,INDIRECT(\"'\" & Setup!$AJ$7 & \"'!\" & AF330))","v":0}]
[{"$f":"Planning!A103","v":"I095"},{"$f":"Planning!B103","v":0},{"$f":"Planning!C103","v":0},{"$f":"Planning!D103","v":0},{"$f":"Planning!E103","v":0},{"$f":"Planning!G103","v":0},0,{"v":0,"d":"0.00"},{"v":0,"d":"0.00"},"","",{"$f":"IF(Setup!$AG$7<>\"\",INDIRECT(\"'\" & Setup!$AG$7 & \"'!\" & AD331),0) + IF(Setup!$AG$8<>\"\",INDIRECT(\"'\" & Setup!$AG$8 & \"'!\" & AD331),0) + IF(Setup!$AG$9<>\"\",INDIRECT(\"'\" & Setup!$AG$9 & \"'!\" & AD331),0) + IF(Setup!$AG$10<>\"\",INDIRECT(\"'\" & Setup!$AG$10 & \"'!\" & AD331),0) + IF(Setup!$AG$11<>\"\",INDIRECT(\"'\" & Setup!$AG$11 & \"'!\" & AD331),0) + IF(Setup!$AG$12<>\"\",INDIRECT(\"'\" & Setup!$AG$12 & \"'!\" & AD331),0)","v":{"v":0,"d":"0.00"}},{"$f":"IF(Setup!$AG$7<>\"\",INDIRECT(\"'\" & Setup!$AG$7 & \"'!\" & AE331),0) + IF(Setup!$AG$8<>\"\",INDIRECT(\"'\" & Setup!$AG$8 & \"'!\" & AE331),0) + IF(Setup!$AG$9<>\"\",INDIRECT(\"'\" & Setup!$AG$9 & \"'!\" & AE331),0) + IF(Setup!$AG$10<>\"\",INDIRECT(\"'\" & Setup!$AG$10 & \"'!\" & AE331),0) + IF(Setup!$AG$11<>\"\",INDIRECT(\"'\" & Setup!$AG$11 & \"'!\" & AE331),0) + IF(Setup!$AG$12<>\"\",INDIRECT(\"'\" & Setup!$AG$12 & \"'!\" & AE331),0)","v":{"v":0,"d":"0.00"}},"","",{"$f":"IF(Setup!$AH$7<>\"\",INDIRECT(\"'\" & Setup!$AH$7 & \"'!\" & AD331),0) + IF(Setup!$AH$8<>\"\",INDIRECT(\"'\" & Setup!$AH$8 & \"'!\" & AD331),0) + IF(Setup!$AH$9<>\"\",INDIRECT(\"'\" & Setup!$AH$9 & \"'!\" & AD331),0) + IF(Setup!$AH$10<>\"\",INDIRECT(\"'\" & Setup!$AH$10 & \"'!\" & AD331),0) + IF(Setup!$AH$11<>\"\",INDIRECT(\"'\" & Setup!$AH$11 & \"'!\" & AD331),0) + IF(Setup!$AH$12<>\"\",INDIRECT(\"'\" & Setup!$AH$12 & \"'!\" & AD331),0)","v":{"v":0,"d":"0.00"}},{"$f":"IF(Setup!$AH$7<>\"\",INDIRECT(\"'\" & Setup!$AH$7 & \"'!\" & AE331),0) + IF(Setup!$AH$8<>\"\",INDIRECT(\"'\" & Setup!$AH$8 & \"'!\" & AE331),0) + IF(Setup!$AH$9<>\"\",INDIRECT(\"'\" & Setup!$AH$9 & \"'!\" & AE331),0) + IF(Setup!$AH$10<>\"\",INDIRECT(\"'\" & Setup!$AH$10 & \"'!\" & AE331),0) + IF(Setup!$AH$11<>\"\",INDIRECT(\"'\" & Setup!$AH$11 & \"'!\" & AE331),0) + IF(Setup!$AH$12<>\"\",INDIRECT(\"'\" & Setup!$AH$12 & \"'!\" & AE331),0)","v":{"v":0,"d":"0.00"}},"","",{"$f":"IF(Setup!$AI$7<>\"\",INDIRECT(\"'\" & Setup!$AI$7 & \"'!\" & AD331),0) + IF(Setup!$AI$8<>\"\",INDIRECT(\"'\" & Setup!$AI$8 & \"'!\" & AD331),0) + IF(Setup!$AI$9<>\"\",INDIRECT(\"'\" & Setup!$AI$9 & \"'!\" & AD331),0) + IF(Setup!$AI$10<>\"\",INDIRECT(\"'\" & Setup!$AI$10 & \"'!\" & AD331),0) + IF(Setup!$AI$11<>\"\",INDIRECT(\"'\" & Setup!$AI$11 & \"'!\" & AD331),0) + IF(Setup!$AI$12<>\"\",INDIRECT(\"'\" & Setup!$AI$12 & \"'!\" & AD331),0)","v":{"v":0,"d":"0.00"}},{"$f":"IF(Setup!$AI$7<>\"\",INDIRECT(\"'\" & Setup!$AI$7 & \"'!\" & AE331),0) + IF(Setup!$AI$8<>\"\",INDIRECT(\"'\" & Setup!$AI$8 & \"'!\" & AE331),0) + IF(Setup!$AI$9<>\"\",INDIRECT(\"'\" & Setup!$AI$9 & \"'!\" & AE331),0) + IF(Setup!$AI$10<>\"\",INDIRECT(\"'\" & Setup!$AI$10 & \"'!\" & AE331),0) + IF(Setup!$AI$11<>\"\",INDIRECT(\"'\" & Setup!$AI$11 & \"'!\" & AE331),0) + IF(Setup!$AI$12<>\"\",INDIRECT(\"'\" & Setup!$AI$12 & \"'!\" & AE331),0)","v":{"v":0,"d":"0.00"}},"","",{"$f":"IF(Setup!$AJ$7<>\"\",INDIRECT(\"'\" & Setup!$AJ$7 & \"'!\" & AD331),0) + IF(Setup!$AJ$8<>\"\",INDIRECT(\"'\" & Setup!$AJ$8 & \"'!\" & AD331),0) + IF(Setup!$AJ$9<>\"\",INDIRECT(\"'\" & Setup!$AJ$9 & \"'!\" & AD331),0) + IF(Setup!$AJ$10<>\"\",INDIRECT(\"'\" & Setup!$AJ$10 & \"'!\" & AD331),0) + IF(Setup!$AJ$11<>\"\",INDIRECT(\"'\" & Setup!$AJ$11 & \"'!\" & AD331),0) + IF(Setup!$AJ$12<>\"\",INDIRECT(\"'\" & Setup!$AJ$12 & \"'!\" & AD331),0)","v":0},{"$f":"IF(Setup!$AJ$7<>\"\",INDIRECT(\"'\" & Setup!$AJ$7 & \"'!\" & AE331),0) + IF(Setup!$AJ$8<>\"\",INDIRECT(\"'\" & Setup!$AJ$8 & \"'!\" & AE331),0) + IF(Setup!$AJ$9<>\"\",INDIRECT(\"'\" & Setup!$AJ$9 & \"'!\" & AE331),0) + IF(Setup!$AJ$10<>\"\",INDIRECT(\"'\" & Setup!$AJ$10 & \"'!\" & AE331),0) + IF(Setup!$AJ$11<>\"\",INDIRECT(\"'\" & Setup!$AJ$11 & \"'!\" & AE331),0) + IF(Setup!$AJ$12<>\"\",INDIRECT(\"'\" & Setup!$AJ$12 & \"'!\" & AE331),0)","v":0},"","",{"$f":"Planning!H103","v":0},"00","M119","O119","N119",null,null,{"$f":"IF(Setup!$AG$7<>\"\",INDIRECT(\"'\" & Setup!$AG$7 & \"'!\" & AF331),0) + IF(Setup!$AG$8<>\"\",INDIRECT(\"'\" & Setup!$AG$8 & \"'!\" & AF331),0) + IF(Setup!$AG$9<>\"\",INDIRECT(\"'\" & Setup!$AG$9 & \"'!\" & AF331),0) + IF(Setup!$AG$10<>\"\",INDIRECT(\"'\" & Setup!$AG$10 & \"'!\" & AF331),0) + IF(Setup!$AG$11<>\"\",INDIRECT(\"'\" & Setup!$AG$11 & \"'!\" & AF331),0) + IF(Setup!$AG$12<>\"\",INDIRECT(\"'\" & Setup!$AG$12 & \"'!\" & AF331),0)","v":0},{"$f":"IF(Setup!$AH$7<>\"\",INDIRECT(\"'\" & Setup!$AH$7 & \"'!\" & AF331),0) + IF(Setup!$AH$8<>\"\",INDIRECT(\"'\" & Setup!$AH$8 & \"'!\" & AF331),0) + IF(Setup!$AH$9<>\"\",INDIRECT(\"'\" & Setup!$AH$9 & \"'!\" & AF331),0) + IF(Setup!$AH$10<>\"\",INDIRECT(\"'\" & Setup!$AH$10 & \"'!\" & AF331),0) + IF(Setup!$AH$11<>\"\",INDIRECT(\"'\" & Setup!$AH$11 & \"'!\" & AF331),0) + IF(Setup!$AH$12<>\"\",INDIRECT(\"'\" & Setup!$AH$12 & \"'!\" & AF331),0)","v":0},{"$f":"IF(Setup!$AI$7<>\"\",INDIRECT(\"'\" & Setup!$AI$7 & \"'!\" & AF331),0) + IF(Setup!$AI$8<>\"\",INDIRECT(\"'\" & Setup!$AI$8 & \"'!\" & AF331),0) + IF(Setup!$AI$9<>\"\",INDIRECT(\"'\" & Setup!$AI$9 & \"'!\" & AF331),0) + IF(Setup!$AI$10<>\"\",INDIRECT(\"'\" & Setup!$AI$10 & \"'!\" & AF331),0) + IF(Setup!$AI$11<>\"\",INDIRECT(\"'\" & Setup!$AI$11 & \"'!\" & AF331),0) + IF(Setup!$AI$12<>\"\",INDIRECT(\"'\" & Setup!$AI$12 & \"'!\" & AF331),0)","v":0},{"$f":"IF(Setup!$AJ$7<>\"\",INDIRECT(\"'\" & Setup!$AJ$7 & \"'!\" & AF331),0) + IF(Setup!$AJ$8<>\"\",INDIRECT(\"'\" & Setup!$AJ$8 & \"'!\" & AF331),0) + IF(Setup!$AJ$9<>\"\",INDIRECT(\"'\" & Setup!$AJ$9 & \"'!\" & AF331),0) + IF(Setup!$AJ$10<>\"\",INDIRECT(\"'\" & Setup!$AJ$10 & \"'!\" & AF331),0) + IF(Setup!$AJ$11<>\"\",INDIRECT(\"'\" & Setup!$AJ$11 & \"'!\" & AF331),0) + IF(Setup!$AJ$12<>\"\",INDIRECT(\"'\" & Setup!$AJ$12 & \"'!\" & AF331),0)","v":0},null,"",{"$nulls":30},0,{"$f":"IF(Setup!$AH$7=\"\",0,INDIRECT(\"'\" & Setup!$AH$7 & \"'!\" & AF331))","v":0},{"$f":"IF(Setup!$AI$7=\"\",0,INDIRECT(\"'\" & Setup!$AI$7 & \"'!\" & AF331))","v":0},{"$f":"IF(Setup!$AJ$7=\"\",0,INDIRECT(\"'\" & Setup!$AJ$7 & \"'!\" & AF331))","v":0}]
[{"$f":"Planning!A104","v":"I096"},{"$f":"Planning!B104","v":0},{"$f":"Planning!C104","v":0},{"$f":"Planning!D104","v":0},{"$f":"Planning!E104","v":0},{"$f":"Planning!G104","v":0},0,{"v":0,"d":"0.00"},{"v":0,"d":"0.00"},"","",{"$f":"IF(Setup!$AG$7<>\"\",INDIRECT(\"'\" & Setup!$AG$7 & \"'!\" & AD332),0) + IF(Setup!$AG$8<>\"\",INDIRECT(\"'\" & Setup!$AG$8 & \"'!\" & AD332),0) + IF(Setup!$AG$9<>\"\",INDIRECT(\"'\" & Setup!$AG$9 & \"'!\" & AD332),0) + IF(Setup!$AG$10<>\"\",INDIRECT(\"'\" & Setup!$AG$10 & \"'!\" & AD332),0) + IF(Setup!$AG$11<>\"\",INDIRECT(\"'\" & Setup!$AG$11 & \"'!\" & AD332),0) + IF(Setup!$AG$12<>\"\",INDIRECT(\"'\" & Setup!$AG$12 & \"'!\" & AD332),0)","v":{"v":0,"d":"0.00"}},{"$f":"IF(Setup!$AG$7<>\"\",INDIRECT(\"'\" & Setup!$AG$7 & \"'!\" & AE332),0) + IF(Setup!$AG$8<>\"\",INDIRECT(\"'\" & Setup!$AG$8 & \"'!\" & AE332),0) + IF(Setup!$AG$9<>\"\",INDIRECT(\"'\" & Setup!$AG$9 & \"'!\" & AE332),0) + IF(Setup!$AG$10<>\"\",INDIRECT(\"'\" & Setup!$AG$10 & \"'!\" & AE332),0) + IF(Setup!$AG$11<>\"\",INDIRECT(\"'\" & Setup!$AG$11 & \"'!\" & AE332),0) + IF(Setup!$AG$12<>\"\",INDIRECT(\"'\" & Setup!$AG$12 & \"'!\" & AE332),0)","v":{"v":0,"d":"0.00"}},"","",{"$f":"IF(Setup!$AH$7<>\"\",INDIRECT(\"'\" & Setup!$AH$7 & \"'!\" & AD332),0) + IF(Setup!$AH$8<>\"\",INDIRECT(\"'\" & Setup!$AH$8 & \"'!\" & AD332),0) + IF(Setup!$AH$9<>\"\",INDIRECT(\"'\" & Setup!$AH$9 & \"'!\" & AD332),0) + IF(Setup!$AH$10<>\"\",INDIRECT(\"'\" & Setup!$AH$10 & \"'!\" & AD332),0) + IF(Setup!$AH$11<>\"\",INDIRECT(\"'\" & Setup!$AH$11 & \"'!\" & AD332),0) + IF(Setup!$AH$12<>\"\",INDIRECT(\"'\" & Setup!$AH$12 & \"'!\" & AD332),0)","v":{"v":0,"d":"0.00"}},{"$f":"IF(Setup!$AH$7<>\"\",INDIRECT(\"'\" & Setup!$AH$7 & \"'!\" & AE332),0) + IF(Setup!$AH$8<>\"\",INDIRECT(\"'\" & Setup!$AH$8 & \"'!\" & AE332),0) + IF(Setup!$AH$9<>\"\",INDIRECT(\"'\" & Setup!$AH$9 & \"'!\" & AE332),0) + IF(Setup!$AH$10<>\"\",INDIRECT(\"'\" & Setup!$AH$10 & \"'!\" & AE332),0) + IF(Setup!$AH$11<>\"\",INDIRECT(\"'\" & Setup!$AH$11 & \"'!\" & AE332),0) + IF(Setup!$AH$12<>\"\",INDIRECT(\"'\" & Setup!$AH$12 & \"'!\" & AE332),0)","v":{"v":0,"d":"0.00"}},"","",{"$f":"IF(Setup!$AI$7<>\"\",INDIRECT(\"'\" & Setup!$AI$7 & \"'!\" & AD332),0) + IF(Setup!$AI$8<>\"\",INDIRECT(\"'\" & Setup!$AI$8 & \"'!\" & AD332),0) + IF(Setup!$AI$9<>\"\",INDIRECT(\"'\" & Setup!$AI$9 & \"'!\" & AD332),0) + IF(Setup!$AI$10<>\"\",INDIRECT(\"'\" & Setup!$AI$10 & \"'!\" & AD332),0) + IF(Setup!$AI$11<>\"\",INDIRECT(\"'\" & Setup!$AI$11 & \"'!\" & AD332),0) + IF(Setup!$AI$12<>\"\",INDIRECT(\"'\" & Setup!$AI$12 & \"'!\" & AD332),0)","v":{"v":0,"d":"0.00"}},{"$f":"IF(Setup!$AI$7<>\"\",INDIRECT(\"'\" & Setup!$AI$7 & \"'!\" & AE332),0) + IF(Setup!$AI$8<>\"\",INDIRECT(\"'\" & Setup!$AI$8 & \"'!\" & AE332),0) + IF(Setup!$AI$9<>\"\",INDIRECT(\"'\" & Setup!$AI$9 & \"'!\" & AE332),0) + IF(Setup!$AI$10<>\"\",INDIRECT(\"'\" & Setup!$AI$10 & \"'!\" & AE332),0) + IF(Setup!$AI$11<>\"\",INDIRECT(\"'\" & Setup!$AI$11 & \"'!\" & AE332),0) + IF(Setup!$AI$12<>\"\",INDIRECT(\"'\" & Setup!$AI$12 & \"'!\" & AE332),0)","v":{"v":0,"d":"0.00"}},"","",{"$f":"IF(Setup!$AJ$7<>\"\",INDIRECT(\"'\" & Setup!$AJ$7 & \"'!\" & AD332),0) + IF(Setup!$AJ$8<>\"\",INDIRECT(\"'\" & Setup!$AJ$8 & \"'!\" & AD332),0) + IF(Setup!$AJ$9<>\"\",INDIRECT(\"'\" & Setup!$AJ$9 & \"'!\" & AD332),0) + IF(Setup!$AJ$10<>\"\",INDIRECT(\"'\" & Setup!$AJ$10 & \"'!\" & AD332),0) + IF(Setup!$AJ$11<>\"\",INDIRECT(\"'\" & Setup!$AJ$11 & \"'!\" & AD332),0) + IF(Setup!$AJ$12<>\"\",INDIRECT(\"'\" & Setup!$AJ$12 & \"'!\" & AD332),0)","v":0},{"$f":"IF(Setup!$AJ$7<>\"\",INDIRECT(\"'\" & Setup!$AJ$7 & \"'!\" & AE332),0) + IF(Setup!$AJ$8<>\"\",INDIRECT(\"'\" & Setup!$AJ$8 & \"'!\" & AE332),0) + IF(Setup!$AJ$9<>\"\",INDIRECT(\"'\" & Setup!$AJ$9 & \"'!\" & AE332),0) + IF(Setup!$AJ$10<>\"\",INDIRECT(\"'\" & Setup!$AJ$10 & \"'!\" & AE332),0) + IF(Setup!$AJ$11<>\"\",INDIRECT(\"'\" & Setup!$AJ$11 & \"'!\" & AE332),0) + IF(Setup!$AJ$12<>\"\",INDIRECT(\"'\" & Setup!$AJ$12 & \"'!\" & AE332),0)","v":0},"","",{"$f":"Planning!H104","v":0},"00","M120","O120","N120",null,null,{"$f":"IF(Setup!$AG$7<>\"\",INDIRECT(\"'\" & Setup!$AG$7 & \"'!\" & AF332),0) + IF(Setup!$AG$8<>\"\",INDIRECT(\"'\" & Setup!$AG$8 & \"'!\" & AF332),0) + IF(Setup!$AG$9<>\"\",INDIRECT(\"'\" & Setup!$AG$9 & \"'!\" & AF332),0) + IF(Setup!$AG$10<>\"\",INDIRECT(\"'\" & Setup!$AG$10 & \"'!\" & AF332),0) + IF(Setup!$AG$11<>\"\",INDIRECT(\"'\" & Setup!$AG$11 & \"'!\" & AF332),0) + IF(Setup!$AG$12<>\"\",INDIRECT(\"'\" & Setup!$AG$12 & \"'!\" & AF332),0)","v":0},{"$f":"IF(Setup!$AH$7<>\"\",INDIRECT(\"'\" & Setup!$AH$7 & \"'!\" & AF332),0) + IF(Setup!$AH$8<>\"\",INDIRECT(\"'\" & Setup!$AH$8 & \"'!\" & AF332),0) + IF(Setup!$AH$9<>\"\",INDIRECT(\"'\" & Setup!$AH$9 & \"'!\" & AF332),0) + IF(Setup!$AH$10<>\"\",INDIRECT(\"'\" & Setup!$AH$10 & \"'!\" & AF332),0) + IF(Setup!$AH$11<>\"\",INDIRECT(\"'\" & Setup!$AH$11 & \"'!\" & AF332),0) + IF(Setup!$AH$12<>\"\",INDIRECT(\"'\" & Setup!$AH$12 & \"'!\" & AF332),0)","v":0},{"$f":"IF(Setup!$AI$7<>\"\",INDIRECT(\"'\" & Setup!$AI$7 & \"'!\" & AF332),0) + IF(Setup!$AI$8<>\"\",INDIRECT(\"'\" & Setup!$AI$8 & \"'!\" & AF332),0) + IF(Setup!$AI$9<>\"\",INDIRECT(\"'\" & Setup!$AI$9 & \"'!\" & AF332),0) + IF(Setup!$AI$10<>\"\",INDIRECT(\"'\" & Setup!$AI$10 & \"'!\" & AF332),0) + IF(Setup!$AI$11<>\"\",INDIRECT(\"'\" & Setup!$AI$11 & \"'!\" & AF332),0) + IF(Setup!$AI$12<>\"\",INDIRECT(\"'\" & Setup!$AI$12 & \"'!\" & AF332),0)","v":0},{"$f":"IF(Setup!$AJ$7<>\"\",INDIRECT(\"'\" & Setup!$AJ$7 & \"'!\" & AF332),0) + IF(Setup!$AJ$8<>\"\",INDIRECT(\"'\" & Setup!$AJ$8 & \"'!\" & AF332),0) + IF(Setup!$AJ$9<>\"\",INDIRECT(\"'\" & Setup!$AJ$9 & \"'!\" & AF332),0) + IF(Setup!$AJ$10<>\"\",INDIRECT(\"'\" & Setup!$AJ$10 & \"'!\" & AF332),0) + IF(Setup!$AJ$11<>\"\",INDIRECT(\"'\" & Setup!$AJ$11 & \"'!\" & AF332),0) + IF(Setup!$AJ$12<>\"\",INDIRECT(\"'\" & Setup!$AJ$12 & \"'!\" & AF332),0)","v":0},null,"",{"$nulls":30},0,{"$f":"IF(Setup!$AH$7=\"\",0,INDIRECT(\"'\" & Setup!$AH$7 & \"'!\" & AF332))","v":0},{"$f":"IF(Setup!$AI$7=\"\",0,INDIRECT(\"'\" & Setup!$AI$7 & \"'!\" & AF332))","v":0},{"$f":"IF(Setup!$AJ$7=\"\",0,INDIRECT(\"'\" & Setup!$AJ$7 & \"'!\" & AF332))","v":0}]
[{"$f":"Planning!A105","v":"I097"},{"$f":"Planning!B105","v":0},{"$f":"Planning!C105","v":0},{"$f":"Planning!D105","v":0},{"$f":"Planning!E105","v":0},{"$f":"Planning!G105","v":0},0,{"v":0,"d":"0.00"},{"v":0,"d":"0.00"},"",{"$f":"IF($AN333 = ExcluirDelPLogro,\"\",IF(AND(H333=0,I333=0),\"\",J333))","v":""},{"$f":"IF(Setup!$AG$7<>\"\",INDIRECT(\"'\" & Setup!$AG$7 & \"'!\" & AD333),0) + IF(Setup!$AG$8<>\"\",INDIRECT(\"'\" & Setup!$AG$8 & \"'!\" & AD333),0) + IF(Setup!$AG$9<>\"\",INDIRECT(\"'\" & Setup!$AG$9 & \"'!\" & AD333),0) + IF(Setup!$AG$10<>\"\",INDIRECT(\"'\" & Setup!$AG$10 & \"'!\" & AD333),0) + IF(Setup!$AG$11<>\"\",INDIRECT(\"'\" & Setup!$AG$11 & \"'!\" & AD333),0) + IF(Setup!$AG$12<>\"\",INDIRECT(\"'\" & Setup!$AG$12 & \"'!\" & AD333),0)","v":{"v":0,"d":"0.00"}},{"$f":"IF(Setup!$AG$7<>\"\",INDIRECT(\"'\" & Setup!$AG$7 & \"'!\" & AE333),0) + IF(Setup!$AG$8<>\"\",INDIRECT(\"'\" & Setup!$AG$8 & \"'!\" & AE333),0) + IF(Setup!$AG$9<>\"\",INDIRECT(\"'\" & Setup!$AG$9 & \"'!\" & AE333),0) + IF(Setup!$AG$10<>\"\",INDIRECT(\"'\" & Setup!$AG$10 & \"'!\" & AE333),0) + IF(Setup!$AG$11<>\"\",INDIRECT(\"'\" & Setup!$AG$11 & \"'!\" & AE333),0) + IF(Setup!$AG$12<>\"\",INDIRECT(\"'\" & Setup!$AG$12 & \"'!\" & AE333),0)","v":{"v":0,"d":"0.00"}},"",{"$f":"IF($AN333=ExcluirDelPLogro,\"\",IF(AND(L333=0,M333=0),\"\",N333))","v":""},{"$f":"IF(Setup!$AH$7<>\"\",INDIRECT(\"'\" & Setup!$AH$7 & \"'!\" & AD333),0) + IF(Setup!$AH$8<>\"\",INDIRECT(\"'\" & Setup!$AH$8 & \"'!\" & AD333),0) + IF(Setup!$AH$9<>\"\",INDIRECT(\"'\" & Setup!$AH$9 & \"'!\" & AD333),0) + IF(Setup!$AH$10<>\"\",INDIRECT(\"'\" & Setup!$AH$10 & \"'!\" & AD333),0) + IF(Setup!$AH$11<>\"\",INDIRECT(\"'\" & Setup!$AH$11 & \"'!\" & AD333),0) + IF(Setup!$AH$12<>\"\",INDIRECT(\"'\" & Setup!$AH$12 & \"'!\" & AD333),0)","v":{"v":0,"d":"0.00"}},{"$f":"IF(Setup!$AH$7<>\"\",INDIRECT(\"'\" & Setup!$AH$7 & \"'!\" & AE333),0) + IF(Setup!$AH$8<>\"\",INDIRECT(\"'\" & Setup!$AH$8 & \"'!\" & AE333),0) + IF(Setup!$AH$9<>\"\",INDIRECT(\"'\" & Setup!$AH$9 & \"'!\" & AE333),0) + IF(Setup!$AH$10<>\"\",INDIRECT(\"'\" & Setup!$AH$10 & \"'!\" & AE333),0) + IF(Setup!$AH$11<>\"\",INDIRECT(\"'\" & Setup!$AH$11 & \"'!\" & AE333),0) + IF(Setup!$AH$12<>\"\",INDIRECT(\"'\" & Setup!$AH$12 & \"'!\" & AE333),0)","v":{"v":0,"d":"0.00"}},"",{"$f":"IF($AN333=ExcluirDelPLogro,\"\",IF(AND(P333=0,Q333=0),\"\",R333))","v":""},{"$f":"IF(Setup!$AI$7<>\"\",INDIRECT(\"'\" & Setup!$AI$7 & \"'!\" & AD333),0) + IF(Setup!$AI$8<>\"\",INDIRECT(\"'\" & Setup!$AI$8 & \"'!\" & AD333),0) + IF(Setup!$AI$9<>\"\",INDIRECT(\"'\" & Setup!$AI$9 & \"'!\" & AD333),0) + IF(Setup!$AI$10<>\"\",INDIRECT(\"'\" & Setup!$AI$10 & \"'!\" & AD333),0) + IF(Setup!$AI$11<>\"\",INDIRECT(\"'\" & Setup!$AI$11 & \"'!\" & AD333),0) + IF(Setup!$AI$12<>\"\",INDIRECT(\"'\" & Setup!$AI$12 & \"'!\" & AD333),0)","v":{"v":0,"d":"0.00"}},{"$f":"IF(Setup!$AI$7<>\"\",INDIRECT(\"'\" & Setup!$AI$7 & \"'!\" & AE333),0) + IF(Setup!$AI$8<>\"\",INDIRECT(\"'\" & Setup!$AI$8 & \"'!\" & AE333),0) + IF(Setup!$AI$9<>\"\",INDIRECT(\"'\" & Setup!$AI$9 & \"'!\" & AE333),0) + IF(Setup!$AI$10<>\"\",INDIRECT(\"'\" & Setup!$AI$10 & \"'!\" & AE333),0) + IF(Setup!$AI$11<>\"\",INDIRECT(\"'\" & Setup!$AI$11 & \"'!\" & AE333),0) + IF(Setup!$AI$12<>\"\",INDIRECT(\"'\" & Setup!$AI$12 & \"'!\" & AE333),0)","v":{"v":0,"d":"0.00"}},"",{"$f":"IF($AN333=ExcluirDelPLogro,\"\",IF(AND(T333=0,U333=0),\"\",V333))","v":""},{"$f":"IF(Setup!$AJ$7<>\"\",INDIRECT(\"'\" & Setup!$AJ$7 & \"'!\" & AD333),0) + IF(Setup!$AJ$8<>\"\",INDIRECT(\"'\" & Setup!$AJ$8 & \"'!\" & AD333),0) + IF(Setup!$AJ$9<>\"\",INDIRECT(\"'\" & Setup!$AJ$9 & \"'!\" & AD333),0) + IF(Setup!$AJ$10<>\"\",INDIRECT(\"'\" & Setup!$AJ$10 & \"'!\" & AD333),0) + IF(Setup!$AJ$11<>\"\",INDIRECT(\"'\" & Setup!$AJ$11 & \"'!\" & AD333),0) + IF(Setup!$AJ$12<>\"\",INDIRECT(\"'\" & Setup!$AJ$12 & \"'!\" & AD333),0)","v":0},{"$f":"IF(Setup!$AJ$7<>\"\",INDIRECT(\"'\" & Setup!$AJ$7 & \"'!\" & AE333),0) + IF(Setup!$AJ$8<>\"\",INDIRECT(\"'\" & Setup!$AJ$8 & \"'!\" & AE333),0) + IF(Setup!$AJ$9<>\"\",INDIRECT(\"'\" & Setup!$AJ$9 & \"'!\" & AE333),0) + IF(Setup!$AJ$10<>\"\",INDIRECT(\"'\" & Setup!$AJ$10 & \"'!\" & AE333),0) + IF(Setup!$AJ$11<>\"\",INDIRECT(\"'\" & Setup!$AJ$11 & \"'!\" & AE333),0) + IF(Setup!$AJ$12<>\"\",INDIRECT(\"'\" & Setup!$AJ$12 & \"'!\" & AE333),0)","v":0},"",{"$f":"IF($AN333=ExcluirDelPLogro,\"\",IF(AND(X333=0,Y333=0),\"\",Z333))","v":""},{"$f":"Planning!H105","v":0},"00","M121","O121","N121",null,null,{"$f":"IF(Setup!$AG$7<>\"\",INDIRECT(\"'\" & Setup!$AG$7 & \"'!\" & AF333),0) + IF(Setup!$AG$8<>\"\",INDIRECT(\"'\" & Setup!$AG$8 & \"'!\" & AF333),0) + IF(Setup!$AG$9<>\"\",INDIRECT(\"'\" & Setup!$AG$9 & \"'!\" & AF333),0) + IF(Setup!$AG$10<>\"\",INDIRECT(\"'\" & Setup!$AG$10 & \"'!\" & AF333),0) + IF(Setup!$AG$11<>\"\",INDIRECT(\"'\" & Setup!$AG$11 & \"'!\" & AF333),0) + IF(Setup!$AG$12<>\"\",INDIRECT(\"'\" & Setup!$AG$12 & \"'!\" & AF333),0)","v":0},{"$f":"IF(Setup!$AH$7<>\"\",INDIRECT(\"'\" & Setup!$AH$7 & \"'!\" & AF333),0) + IF(Setup!$AH$8<>\"\",INDIRECT(\"'\" & Setup!$AH$8 & \"'!\" & AF333),0) + IF(Setup!$AH$9<>\"\",INDIRECT(\"'\" & Setup!$AH$9 & \"'!\" & AF333),0) + IF(Setup!$AH$10<>\"\",INDIRECT(\"'\" & Setup!$AH$10 & \"'!\" & AF333),0) + IF(Setup!$AH$11<>\"\",INDIRECT(\"'\" & Setup!$AH$11 & \"'!\" & AF333),0) + IF(Setup!$AH$12<>\"\",INDIRECT(\"'\" & Setup!$AH$12 & \"'!\" & AF333),0)","v":0},{"$f":"IF(Setup!$AI$7<>\"\",INDIRECT(\"'\" & Setup!$AI$7 & \"'!\" & AF333),0) + IF(Setup!$AI$8<>\"\",INDIRECT(\"'\" & Setup!$AI$8 & \"'!\" & AF333),0) + IF(Setup!$AI$9<>\"\",INDIRECT(\"'\" & Setup!$AI$9 & \"'!\" & AF333),0) + IF(Setup!$AI$10<>\"\",INDIRECT(\"'\" & Setup!$AI$10 & \"'!\" & AF333),0) + IF(Setup!$AI$11<>\"\",INDIRECT(\"'\" & Setup!$AI$11 & \"'!\" & AF333),0) + IF(Setup!$AI$12<>\"\",INDIRECT(\"'\" & Setup!$AI$12 & \"'!\" & AF333),0)","v":0},{"$f":"IF(Setup!$AJ$7<>\"\",INDIRECT(\"'\" & Setup!$AJ$7 & \"'!\" & AF333),0) + IF(Setup!$AJ$8<>\"\",INDIRECT(\"'\" & Setup!$AJ$8 & \"'!\" & AF333),0) + IF(Setup!$AJ$9<>\"\",INDIRECT(\"'\" & Setup!$AJ$9 & \"'!\" & AF333),0) + IF(Setup!$AJ$10<>\"\",INDIRECT(\"'\" & Setup!$AJ$10 & \"'!\" & AF333),0) + IF(Setup!$AJ$11<>\"\",INDIRECT(\"'\" & Setup!$AJ$11 & \"'!\" & AF333),0) + IF(Setup!$AJ$12<>\"\",INDIRECT(\"'\" & Setup!$AJ$12 & \"'!\" & AF333),0)","v":0},null,"",{"$nulls":30},0,{"$f":"IF(Setup!$AH$7=\"\",0,INDIRECT(\"'\" & Setup!$AH$7 & \"'!\" & AF333))","v":0},{"$f":"IF(Setup!$AI$7=\"\",0,INDIRECT(\"'\" & Setup!$AI$7 & \"'!\" & AF333))","v":0},{"$f":"IF(Setup!$AJ$7=\"\",0,INDIRECT(\"'\" & Setup!$AJ$7 & \"'!\" & AF333))","v":0}]
[{"$f":"Planning!A106","v":"I098"},{"$f":"Planning!B106","v":0},{"$f":"Planning!C106","v":0},{"$f":"Planning!D106","v":0},{"$f":"Planning!E106","v":0},{"$f":"Planning!G106","v":0},0,{"v":0,"d":"0.00"},{"v":0,"d":"0.00"},"","",{"$f":"IF(Setup!$AG$7<>\"\",INDIRECT(\"'\" & Setup!$AG$7 & \"'!\" & AD334),0) + IF(Setup!$AG$8<>\"\",INDIRECT(\"'\" & Setup!$AG$8 & \"'!\" & AD334),0) + IF(Setup!$AG$9<>\"\",INDIRECT(\"'\" & Setup!$AG$9 & \"'!\" & AD334),0) + IF(Setup!$AG$10<>\"\",INDIRECT(\"'\" & Setup!$AG$10 & \"'!\" & AD334),0) + IF(Setup!$AG$11<>\"\",INDIRECT(\"'\" & Setup!$AG$11 & \"'!\" & AD334),0) + IF(Setup!$AG$12<>\"\",INDIRECT(\"'\" & Setup!$AG$12 & \"'!\" & AD334),0)","v":{"v":0,"d":"0.00"}},{"$f":"IF(Setup!$AG$7<>\"\",INDIRECT(\"'\" & Setup!$AG$7 & \"'!\" & AE334),0) + IF(Setup!$AG$8<>\"\",INDIRECT(\"'\" & Setup!$AG$8 & \"'!\" & AE334),0) + IF(Setup!$AG$9<>\"\",INDIRECT(\"'\" & Setup!$AG$9 & \"'!\" & AE334),0) + IF(Setup!$AG$10<>\"\",INDIRECT(\"'\" & Setup!$AG$10 & \"'!\" & AE334),0) + IF(Setup!$AG$11<>\"\",INDIRECT(\"'\" & Setup!$AG$11 & \"'!\" & AE334),0) + IF(Setup!$AG$12<>\"\",INDIRECT(\"'\" & Setup!$AG$12 & \"'!\" & AE334),0)","v":{"v":0,"d":"0.00"}},"","",{"$f":"IF(Setup!$AH$7<>\"\",INDIRECT(\"'\" & Setup!$AH$7 & \"'!\" & AD334),0) + IF(Setup!$AH$8<>\"\",INDIRECT(\"'\" & Setup!$AH$8 & \"'!\" & AD334),0) + IF(Setup!$AH$9<>\"\",INDIRECT(\"'\" & Setup!$AH$9 & \"'!\" & AD334),0) + IF(Setup!$AH$10<>\"\",INDIRECT(\"'\" & Setup!$AH$10 & \"'!\" & AD334),0) + IF(Setup!$AH$11<>\"\",INDIRECT(\"'\" & Setup!$AH$11 & \"'!\" & AD334),0) + IF(Setup!$AH$12<>\"\",INDIRECT(\"'\" & Setup!$AH$12 & \"'!\" & AD334),0)","v":{"v":0,"d":"0.00"}},{"$f":"IF(Setup!$AH$7<>\"\",INDIRECT(\"'\" & Setup!$AH$7 & \"'!\" & AE334),0) + IF(Setup!$AH$8<>\"\",INDIRECT(\"'\" & Setup!$AH$8 & \"'!\" & AE334),0) + IF(Setup!$AH$9<>\"\",INDIRECT(\"'\" & Setup!$AH$9 & \"'!\" & AE334),0) + IF(Setup!$AH$10<>\"\",INDIRECT(\"'\" & Setup!$AH$10 & \"'!\" & AE334),0) + IF(Setup!$AH$11<>\"\",INDIRECT(\"'\" & Setup!$AH$11 & \"'!\" & AE334),0) + IF(Setup!$AH$12<>\"\",INDIRECT(\"'\" & Setup!$AH$12 & \"'!\" & AE334),0)","v":{"v":0,"d":"0.00"}},"","",{"$f":"IF(Setup!$AI$7<>\"\",INDIRECT(\"'\" & Setup!$AI$7 & \"'!\" & AD334),0) + IF(Setup!$AI$8<>\"\",INDIRECT(\"'\" & Setup!$AI$8 & \"'!\" & AD334),0) + IF(Setup!$AI$9<>\"\",INDIRECT(\"'\" & Setup!$AI$9 & \"'!\" & AD334),0) + IF(Setup!$AI$10<>\"\",INDIRECT(\"'\" & Setup!$AI$10 & \"'!\" & AD334),0) + IF(Setup!$AI$11<>\"\",INDIRECT(\"'\" & Setup!$AI$11 & \"'!\" & AD334),0) + IF(Setup!$AI$12<>\"\",INDIRECT(\"'\" & Setup!$AI$12 & \"'!\" & AD334),0)","v":{"v":0,"d":"0.00"}},{"$f":"IF(Setup!$AI$7<>\"\",INDIRECT(\"'\" & Setup!$AI$7 & \"'!\" & AE334),0) + IF(Setup!$AI$8<>\"\",INDIRECT(\"'\" & Setup!$AI$8 & \"'!\" & AE334),0) + IF(Setup!$AI$9<>\"\",INDIRECT(\"'\" & Setup!$AI$9 & \"'!\" & AE334),0) + IF(Setup!$AI$10<>\"\",INDIRECT(\"'\" & Setup!$AI$10 & \"'!\" & AE334),0) + IF(Setup!$AI$11<>\"\",INDIRECT(\"'\" & Setup!$AI$11 & \"'!\" & AE334),0) + IF(Setup!$AI$12<>\"\",INDIRECT(\"'\" & Setup!$AI$12 & \"'!\" & AE334),0)","v":{"v":0,"d":"0.00"}},"","",{"$f":"IF(Setup!$AJ$7<>\"\",INDIRECT(\"'\" & Setup!$AJ$7 & \"'!\" & AD334),0) + IF(Setup!$AJ$8<>\"\",INDIRECT(\"'\" & Setup!$AJ$8 & \"'!\" & AD334),0) + IF(Setup!$AJ$9<>\"\",INDIRECT(\"'\" & Setup!$AJ$9 & \"'!\" & AD334),0) + IF(Setup!$AJ$10<>\"\",INDIRECT(\"'\" & Setup!$AJ$10 & \"'!\" & AD334),0) + IF(Setup!$AJ$11<>\"\",INDIRECT(\"'\" & Setup!$AJ$11 & \"'!\" & AD334),0) + IF(Setup!$AJ$12<>\"\",INDIRECT(\"'\" & Setup!$AJ$12 & \"'!\" & AD334),0)","v":0},{"$f":"IF(Setup!$AJ$7<>\"\",INDIRECT(\"'\" & Setup!$AJ$7 & \"'!\" & AE334),0) + IF(Setup!$AJ$8<>\"\",INDIRECT(\"'\" & Setup!$AJ$8 & \"'!\" & AE334),0) + IF(Setup!$AJ$9<>\"\",INDIRECT(\"'\" & Setup!$AJ$9 & \"'!\" & AE334),0) + IF(Setup!$AJ$10<>\"\",INDIRECT(\"'\" & Setup!$AJ$10 & \"'!\" & AE334),0) + IF(Setup!$AJ$11<>\"\",INDIRECT(\"'\" & Setup!$AJ$11 & \"'!\" & AE334),0) + IF(Setup!$AJ$12<>\"\",INDIRECT(\"'\" & Setup!$AJ$12 & \"'!\" & AE334),0)","v":0},"","",{"$f":"Planning!H106","v":0},"00","M122","O122","N122",null,null,{"$f":"IF(Setup!$AG$7<>\"\",INDIRECT(\"'\" & Setup!$AG$7 & \"'!\" & AF334),0) + IF(Setup!$AG$8<>\"\",INDIRECT(\"'\" & Setup!$AG$8 & \"'!\" & AF334),0) + IF(Setup!$AG$9<>\"\",INDIRECT(\"'\" & Setup!$AG$9 & \"'!\" & AF334),0) + IF(Setup!$AG$10<>\"\",INDIRECT(\"'\" & Setup!$AG$10 & \"'!\" & AF334),0) + IF(Setup!$AG$11<>\"\",INDIRECT(\"'\" & Setup!$AG$11 & \"'!\" & AF334),0) + IF(Setup!$AG$12<>\"\",INDIRECT(\"'\" & Setup!$AG$12 & \"'!\" & AF334),0)","v":0},{"$f":"IF(Setup!$AH$7<>\"\",INDIRECT(\"'\" & Setup!$AH$7 & \"'!\" & AF334),0) + IF(Setup!$AH$8<>\"\",INDIRECT(\"'\" & Setup!$AH$8 & \"'!\" & AF334),0) + IF(Setup!$AH$9<>\"\",INDIRECT(\"'\" & Setup!$AH$9 & \"'!\" & AF334),0) + IF(Setup!$AH$10<>\"\",INDIRECT(\"'\" & Setup!$AH$10 & \"'!\" & AF334),0) + IF(Setup!$AH$11<>\"\",INDIRECT(\"'\" & Setup!$AH$11 & \"'!\" & AF334),0) + IF(Setup!$AH$12<>\"\",INDIRECT(\"'\" & Setup!$AH$12 & \"'!\" & AF334),0)","v":0},{"$f":"IF(Setup!$AI$7<>\"\",INDIRECT(\"'\" & Setup!$AI$7 & \"'!\" & AF334),0) + IF(Setup!$AI$8<>\"\",INDIRECT(\"'\" & Setup!$AI$8 & \"'!\" & AF334),0) + IF(Setup!$AI$9<>\"\",INDIRECT(\"'\" & Setup!$AI$9 & \"'!\" & AF334),0) + IF(Setup!$AI$10<>\"\",INDIRECT(\"'\" & Setup!$AI$10 & \"'!\" & AF334),0) + IF(Setup!$AI$11<>\"\",INDIRECT(\"'\" & Setup!$AI$11 & \"'!\" & AF334),0) + IF(Setup!$AI$12<>\"\",INDIRECT(\"'\" & Setup!$AI$12 & \"'!\" & AF334),0)","v":0},{"$f":"IF(Setup!$AJ$7<>\"\",INDIRECT(\"'\" & Setup!$AJ$7 & \"'!\" & AF334),0) + IF(Setup!$AJ$8<>\"\",INDIRECT(\"'\" & Setup!$AJ$8 & \"'!\" & AF334),0) + IF(Setup!$AJ$9<>\"\",INDIRECT(\"'\" & Setup!$AJ$9 & \"'!\" & AF334),0) + IF(Setup!$AJ$10<>\"\",INDIRECT(\"'\" & Setup!$AJ$10 & \"'!\" & AF334),0) + IF(Setup!$AJ$11<>\"\",INDIRECT(\"'\" & Setup!$AJ$11 & \"'!\" & AF334),0) + IF(Setup!$AJ$12<>\"\",INDIRECT(\"'\" & Setup!$AJ$12 & \"'!\" & AF334),0)","v":0},null,"",{"$nulls":30},0,{"$f":"IF(Setup!$AH$7=\"\",0,INDIRECT(\"'\" & Setup!$AH$7 & \"'!\" & AF334))","v":0},{"$f":"IF(Setup!$AI$7=\"\",0,INDIRECT(\"'\" & Setup!$AI$7 & \"'!\" & AF334))","v":0},{"$f":"IF(Setup!$AJ$7=\"\",0,INDIRECT(\"'\" & Setup!$AJ$7 & \"'!\" & AF334))","v":0}]
[{"$f":"Planning!A107","v":"I099"},{"$f":"Planning!B107","v":0},{"$f":"Planning!C107","v":0},{"$f":"Planning!D107","v":0},{"$f":"Planning!E107","v":0},{"$f":"Planning!G107","v":0},0,{"v":0,"d":"0.00"},{"v":0,"d":"0.00"},"","",{"$f":"IF(Setup!$AG$7<>\"\",INDIRECT(\"'\" & Setup!$AG$7 & \"'!\" & AD335),0) + IF(Setup!$AG$8<>\"\",INDIRECT(\"'\" & Setup!$AG$8 & \"'!\" & AD335),0) + IF(Setup!$AG$9<>\"\",INDIRECT(\"'\" & Setup!$AG$9 & \"'!\" & AD335),0) + IF(Setup!$AG$10<>\"\",INDIRECT(\"'\" & Setup!$AG$10 & \"'!\" & AD335),0) + IF(Setup!$AG$11<>\"\",INDIRECT(\"'\" & Setup!$AG$11 & \"'!\" & AD335),0) + IF(Setup!$AG$12<>\"\",INDIRECT(\"'\" & Setup!$AG$12 & \"'!\" & AD335),0)","v":{"v":0,"d":"0.00"}},{"$f":"IF(Setup!$AG$7<>\"\",INDIRECT(\"'\" & Setup!$AG$7 & \"'!\" & AE335),0) + IF(Setup!$AG$8<>\"\",INDIRECT(\"'\" & Setup!$AG$8 & \"'!\" & AE335),0) + IF(Setup!$AG$9<>\"\",INDIRECT(\"'\" & Setup!$AG$9 & \"'!\" & AE335),0) + IF(Setup!$AG$10<>\"\",INDIRECT(\"'\" & Setup!$AG$10 & \"'!\" & AE335),0) + IF(Setup!$AG$11<>\"\",INDIRECT(\"'\" & Setup!$AG$11 & \"'!\" & AE335),0) + IF(Setup!$AG$12<>\"\",INDIRECT(\"'\" & Setup!$AG$12 & \"'!\" & AE335),0)","v":{"v":0,"d":"0.00"}},"","",{"$f":"IF(Setup!$AH$7<>\"\",INDIRECT(\"'\" & Setup!$AH$7 & \"'!\" & AD335),0) + IF(Setup!$AH$8<>\"\",INDIRECT(\"'\" & Setup!$AH$8 & \"'!\" & AD335),0) + IF(Setup!$AH$9<>\"\",INDIRECT(\"'\" & Setup!$AH$9 & \"'!\" & AD335),0) + IF(Setup!$AH$10<>\"\",INDIRECT(\"'\" & Setup!$AH$10 & \"'!\" & AD335),0) + IF(Setup!$AH$11<>\"\",INDIRECT(\"'\" & Setup!$AH$11 & \"'!\" & AD335),0) + IF(Setup!$AH$12<>\"\",INDIRECT(\"'\" & Setup!$AH$12 & \"'!\" & AD335),0)","v":{"v":0,"d":"0.00"}},{"$f":"IF(Setup!$AH$7<>\"\",INDIRECT(\"'\" & Setup!$AH$7 & \"'!\" & AE335),0) + IF(Setup!$AH$8<>\"\",INDIRECT(\"'\" & Setup!$AH$8 & \"'!\" & AE335),0) + IF(Setup!$AH$9<>\"\",INDIRECT(\"'\" & Setup!$AH$9 & \"'!\" & AE335),0) + IF(Setup!$AH$10<>\"\",INDIRECT(\"'\" & Setup!$AH$10 & \"'!\" & AE335),0) + IF(Setup!$AH$11<>\"\",INDIRECT(\"'\" & Setup!$AH$11 & \"'!\" & AE335),0) + IF(Setup!$AH$12<>\"\",INDIRECT(\"'\" & Setup!$AH$12 & \"'!\" & AE335),0)","v":{"v":0,"d":"0.00"}},"","",{"$f":"IF(Setup!$AI$7<>\"\",INDIRECT(\"'\" & Setup!$AI$7 & \"'!\" & AD335),0) + IF(Setup!$AI$8<>\"\",INDIRECT(\"'\" & Setup!$AI$8 & \"'!\" & AD335),0) + IF(Setup!$AI$9<>\"\",INDIRECT(\"'\" & Setup!$AI$9 & \"'!\" & AD335),0) + IF(Setup!$AI$10<>\"\",INDIRECT(\"'\" & Setup!$AI$10 & \"'!\" & AD335),0) + IF(Setup!$AI$11<>\"\",INDIRECT(\"'\" & Setup!$AI$11 & \"'!\" & AD335),0) + IF(Setup!$AI$12<>\"\",INDIRECT(\"'\" & Setup!$AI$12 & \"'!\" & AD335),0)","v":{"v":0,"d":"0.00"}},{"$f":"IF(Setup!$AI$7<>\"\",INDIRECT(\"'\" & Setup!$AI$7 & \"'!\" & AE335),0) + IF(Setup!$AI$8<>\"\",INDIRECT(\"'\" & Setup!$AI$8 & \"'!\" & AE335),0) + IF(Setup!$AI$9<>\"\",INDIRECT(\"'\" & Setup!$AI$9 & \"'!\" & AE335),0) + IF(Setup!$AI$10<>\"\",INDIRECT(\"'\" & Setup!$AI$10 & \"'!\" & AE335),0) + IF(Setup!$AI$11<>\"\",INDIRECT(\"'\" & Setup!$AI$11 & \"'!\" & AE335),0) + IF(Setup!$AI$12<>\"\",INDIRECT(\"'\" & Setup!$AI$12 & \"'!\" & AE335),0)","v":{"v":0,"d":"0.00"}},"","",{"$f":"IF(Setup!$AJ$7<>\"\",INDIRECT(\"'\" & Setup!$AJ$7 & \"'!\" & AD335),0) + IF(Setup!$AJ$8<>\"\",INDIRECT(\"'\" & Setup!$AJ$8 & \"'!\" & AD335),0) + IF(Setup!$AJ$9<>\"\",INDIRECT(\"'\" & Setup!$AJ$9 & \"'!\" & AD335),0) + IF(Setup!$AJ$10<>\"\",INDIRECT(\"'\" & Setup!$AJ$10 & \"'!\" & AD335),0) + IF(Setup!$AJ$11<>\"\",INDIRECT(\"'\" & Setup!$AJ$11 & \"'!\" & AD335),0) + IF(Setup!$AJ$12<>\"\",INDIRECT(\"'\" & Setup!$AJ$12 & \"'!\" & AD335),0)","v":0},{"$f":"IF(Setup!$AJ$7<>\"\",INDIRECT(\"'\" & Setup!$AJ$7 & \"'!\" & AE335),0) + IF(Setup!$AJ$8<>\"\",INDIRECT(\"'\" & Setup!$AJ$8 & \"'!\" & AE335),0) + IF(Setup!$AJ$9<>\"\",INDIRECT(\"'\" & Setup!$AJ$9 & \"'!\" & AE335),0) + IF(Setup!$AJ$10<>\"\",INDIRECT(\"'\" & Setup!$AJ$10 & \"'!\" & AE335),0) + IF(Setup!$AJ$11<>\"\",INDIRECT(\"'\" & Setup!$AJ$11 & \"'!\" & AE335),0) + IF(Setup!$AJ$12<>\"\",INDIRECT(\"'\" & Setup!$AJ$12 & \"'!\" & AE335),0)","v":0},"","",{"$f":"Planning!H107","v":0},"00","M123","O123","N123",null,null,{"$f":"IF(Setup!$AG$7<>\"\",INDIRECT(\"'\" & Setup!$AG$7 & \"'!\" & AF335),0) + IF(Setup!$AG$8<>\"\",INDIRECT(\"'\" & Setup!$AG$8 & \"'!\" & AF335),0) + IF(Setup!$AG$9<>\"\",INDIRECT(\"'\" & Setup!$AG$9 & \"'!\" & AF335),0) + IF(Setup!$AG$10<>\"\",INDIRECT(\"'\" & Setup!$AG$10 & \"'!\" & AF335),0) + IF(Setup!$AG$11<>\"\",INDIRECT(\"'\" & Setup!$AG$11 & \"'!\" & AF335),0) + IF(Setup!$AG$12<>\"\",INDIRECT(\"'\" & Setup!$AG$12 & \"'!\" & AF335),0)","v":0},{"$f":"IF(Setup!$AH$7<>\"\",INDIRECT(\"'\" & Setup!$AH$7 & \"'!\" & AF335),0) + IF(Setup!$AH$8<>\"\",INDIRECT(\"'\" & Setup!$AH$8 & \"'!\" & AF335),0) + IF(Setup!$AH$9<>\"\",INDIRECT(\"'\" & Setup!$AH$9 & \"'!\" & AF335),0) + IF(Setup!$AH$10<>\"\",INDIRECT(\"'\" & Setup!$AH$10 & \"'!\" & AF335),0) + IF(Setup!$AH$11<>\"\",INDIRECT(\"'\" & Setup!$AH$11 & \"'!\" & AF335),0) + IF(Setup!$AH$12<>\"\",INDIRECT(\"'\" & Setup!$AH$12 & \"'!\" & AF335),0)","v":0},{"$f":"IF(Setup!$AI$7<>\"\",INDIRECT(\"'\" & Setup!$AI$7 & \"'!\" & AF335),0) + IF(Setup!$AI$8<>\"\",INDIRECT(\"'\" & Setup!$AI$8 & \"'!\" & AF335),0) + IF(Setup!$AI$9<>\"\",INDIRECT(\"'\" & Setup!$AI$9 & \"'!\" & AF335),0) + IF(Setup!$AI$10<>\"\",INDIRECT(\"'\" & Setup!$AI$10 & \"'!\" & AF335),0) + IF(Setup!$AI$11<>\"\",INDIRECT(\"'\" & Setup!$AI$11 & \"'!\" & AF335),0) + IF(Setup!$AI$12<>\"\",INDIRECT(\"'\" & Setup!$AI$12 & \"'!\" & AF335),0)","v":0},{"$f":"IF(Setup!$AJ$7<>\"\",INDIRECT(\"'\" & Setup!$AJ$7 & \"'!\" & AF335),0) + IF(Setup!$AJ$8<>\"\",INDIRECT(\"'\" & Setup!$AJ$8 & \"'!\" & AF335),0) + IF(Setup!$AJ$9<>\"\",INDIRECT(\"'\" & Setup!$AJ$9 & \"'!\" & AF335),0) + IF(Setup!$AJ$10<>\"\",INDIRECT(\"'\" & Setup!$AJ$10 & \"'!\" & AF335),0) + IF(Setup!$AJ$11<>\"\",INDIRECT(\"'\" & Setup!$AJ$11 & \"'!\" & AF335),0) + IF(Setup!$AJ$12<>\"\",INDIRECT(\"'\" & Setup!$AJ$12 & \"'!\" & AF335),0)","v":0},null,"",{"$nulls":30},0,{"$f":"IF(Setup!$AH$7=\"\",0,INDIRECT(\"'\" & Setup!$AH$7 & \"'!\" & AF335))","v":0},{"$f":"IF(Setup!$AI$7=\"\",0,INDIRECT(\"'\" & Setup!$AI$7 & \"'!\" & AF335))","v":0},{"$f":"IF(Setup!$AJ$7=\"\",0,INDIRECT(\"'\" & Setup!$AJ$7 & \"'!\" & AF335))","v":0}]
[{"$f":"Planning!A108","v":"I100"},{"$f":"Planning!B108","v":0},{"$f":"Planning!C108","v":0},{"$f":"Planning!D108","v":0},{"$f":"Planning!E108","v":0},{"$f":"Planning!G108","v":0},0,{"v":0,"d":"0.00"},{"v":0,"d":"0.00"},"","",{"$f":"IF(Setup!$AG$7<>\"\",INDIRECT(\"'\" & Setup!$AG$7 & \"'!\" & AD336),0) + IF(Setup!$AG$8<>\"\",INDIRECT(\"'\" & Setup!$AG$8 & \"'!\" & AD336),0) + IF(Setup!$AG$9<>\"\",INDIRECT(\"'\" & Setup!$AG$9 & \"'!\" & AD336),0) + IF(Setup!$AG$10<>\"\",INDIRECT(\"'\" & Setup!$AG$10 & \"'!\" & AD336),0) + IF(Setup!$AG$11<>\"\",INDIRECT(\"'\" & Setup!$AG$11 & \"'!\" & AD336),0) + IF(Setup!$AG$12<>\"\",INDIRECT(\"'\" & Setup!$AG$12 & \"'!\" & AD336),0)","v":{"v":0,"d":"0.00"}},{"$f":"IF(Setup!$AG$7<>\"\",INDIRECT(\"'\" & Setup!$AG$7 & \"'!\" & AE336),0) + IF(Setup!$AG$8<>\"\",INDIRECT(\"'\" & Setup!$AG$8 & \"'!\" & AE336),0) + IF(Setup!$AG$9<>\"\",INDIRECT(\"'\" & Setup!$AG$9 & \"'!\" & AE336),0) + IF(Setup!$AG$10<>\"\",INDIRECT(\"'\" & Setup!$AG$10 & \"'!\" & AE336),0) + IF(Setup!$AG$11<>\"\",INDIRECT(\"'\" & Setup!$AG$11 & \"'!\" & AE336),0) + IF(Setup!$AG$12<>\"\",INDIRECT(\"'\" & Setup!$AG$12 & \"'!\" & AE336),0)","v":{"v":0,"d":"0.00"}},"","",{"$f":"IF(Setup!$AH$7<>\"\",INDIRECT(\"'\" & Setup!$AH$7 & \"'!\" & AD336),0) + IF(Setup!$AH$8<>\"\",INDIRECT(\"'\" & Setup!$AH$8 & \"'!\" & AD336),0) + IF(Setup!$AH$9<>\"\",INDIRECT(\"'\" & Setup!$AH$9 & \"'!\" & AD336),0) + IF(Setup!$AH$10<>\"\",INDIRECT(\"'\" & Setup!$AH$10 & \"'!\" & AD336),0) + IF(Setup!$AH$11<>\"\",INDIRECT(\"'\" & Setup!$AH$11 & \"'!\" & AD336),0) + IF(Setup!$AH$12<>\"\",INDIRECT(\"'\" & Setup!$AH$12 & \"'!\" & AD336),0)","v":{"v":0,"d":"0.00"}},{"$f":"IF(Setup!$AH$7<>\"\",INDIRECT(\"'\" & Setup!$AH$7 & \"'!\" & AE336),0) + IF(Setup!$AH$8<>\"\",INDIRECT(\"'\" & Setup!$AH$8 & \"'!\" & AE336),0) + IF(Setup!$AH$9<>\"\",INDIRECT(\"'\" & Setup!$AH$9 & \"'!\" & AE336),0) + IF(Setup!$AH$10<>\"\",INDIRECT(\"'\" & Setup!$AH$10 & \"'!\" & AE336),0) + IF(Setup!$AH$11<>\"\",INDIRECT(\"'\" & Setup!$AH$11 & \"'!\" & AE336),0) + IF(Setup!$AH$12<>\"\",INDIRECT(\"'\" & Setup!$AH$12 & \"'!\" & AE336),0)","v":{"v":0,"d":"0.00"}},"","",{"$f":"IF(Setup!$AI$7<>\"\",INDIRECT(\"'\" & Setup!$AI$7 & \"'!\" & AD336),0) + IF(Setup!$AI$8<>\"\",INDIRECT(\"'\" & Setup!$AI$8 & \"'!\" & AD336),0) + IF(Setup!$AI$9<>\"\",INDIRECT(\"'\" & Setup!$AI$9 & \"'!\" & AD336),0) + IF(Setup!$AI$10<>\"\",INDIRECT(\"'\" & Setup!$AI$10 & \"'!\" & AD336),0) + IF(Setup!$AI$11<>\"\",INDIRECT(\"'\" & Setup!$AI$11 & \"'!\" & AD336),0) + IF(Setup!$AI$12<>\"\",INDIRECT(\"'\" & Setup!$AI$12 & \"'!\" & AD336),0)","v":{"v":0,"d":"0.00"}},{"$f":"IF(Setup!$AI$7<>\"\",INDIRECT(\"'\" & Setup!$AI$7 & \"'!\" & AE336),0) + IF(Setup!$AI$8<>\"\",INDIRECT(\"'\" & Setup!$AI$8 & \"'!\" & AE336),0) + IF(Setup!$AI$9<>\"\",INDIRECT(\"'\" & Setup!$AI$9 & \"'!\" & AE336),0) + IF(Setup!$AI$10<>\"\",INDIRECT(\"'\" & Setup!$AI$10 & \"'!\" & AE336),0) + IF(Setup!$AI$11<>\"\",INDIRECT(\"'\" & Setup!$AI$11 & \"'!\" & AE336),0) + IF(Setup!$AI$12<>\"\",INDIRECT(\"'\" & Setup!$AI$12 & \"'!\" & AE336),0)","v":{"v":0,"d":"0.00"}},"","",{"$f":"IF(Setup!$AJ$7<>\"\",INDIRECT(\"'\" & Setup!$AJ$7 & \"'!\" & AD336),0) + IF(Setup!$AJ$8<>\"\",INDIRECT(\"'\" & Setup!$AJ$8 & \"'!\" & AD336),0) + IF(Setup!$AJ$9<>\"\",INDIRECT(\"'\" & Setup!$AJ$9 & \"'!\" & AD336),0) + IF(Setup!$AJ$10<>\"\",INDIRECT(\"'\" & Setup!$AJ$10 & \"'!\" & AD336),0) + IF(Setup!$AJ$11<>\"\",INDIRECT(\"'\" & Setup!$AJ$11 & \"'!\" & AD336),0) + IF(Setup!$AJ$12<>\"\",INDIRECT(\"'\" & Setup!$AJ$12 & \"'!\" & AD336),0)","v":0},{"$f":"IF(Setup!$AJ$7<>\"\",INDIRECT(\"'\" & Setup!$AJ$7 & \"'!\" & AE336),0) + IF(Setup!$AJ$8<>\"\",INDIRECT(\"'\" & Setup!$AJ$8 & \"'!\" & AE336),0) + IF(Setup!$AJ$9<>\"\",INDIRECT(\"'\" & Setup!$AJ$9 & \"'!\" & AE336),0) + IF(Setup!$AJ$10<>\"\",INDIRECT(\"'\" & Setup!$AJ$10 & \"'!\" & AE336),0) + IF(Setup!$AJ$11<>\"\",INDIRECT(\"'\" & Setup!$AJ$11 & \"'!\" & AE336),0) + IF(Setup!$AJ$12<>\"\",INDIRECT(\"'\" & Setup!$AJ$12 & \"'!\" & AE336),0)","v":0},"","",{"$f":"Planning!H108","v":0},"00","M124","O124","N124",null,null,{"$f":"IF(Setup!$AG$7<>\"\",INDIRECT(\"'\" & Setup!$AG$7 & \"'!\" & AF336),0) + IF(Setup!$AG$8<>\"\",INDIRECT(\"'\" & Setup!$AG$8 & \"'!\" & AF336),0) + IF(Setup!$AG$9<>\"\",INDIRECT(\"'\" & Setup!$AG$9 & \"'!\" & AF336),0) + IF(Setup!$AG$10<>\"\",INDIRECT(\"'\" & Setup!$AG$10 & \"'!\" & AF336),0) + IF(Setup!$AG$11<>\"\",INDIRECT(\"'\" & Setup!$AG$11 & \"'!\" & AF336),0) + IF(Setup!$AG$12<>\"\",INDIRECT(\"'\" & Setup!$AG$12 & \"'!\" & AF336),0)","v":0},{"$f":"IF(Setup!$AH$7<>\"\",INDIRECT(\"'\" & Setup!$AH$7 & \"'!\" & AF336),0) + IF(Setup!$AH$8<>\"\",INDIRECT(\"'\" & Setup!$AH$8 & \"'!\" & AF336),0) + IF(Setup!$AH$9<>\"\",INDIRECT(\"'\" & Setup!$AH$9 & \"'!\" & AF336),0) + IF(Setup!$AH$10<>\"\",INDIRECT(\"'\" & Setup!$AH$10 & \"'!\" & AF336),0) + IF(Setup!$AH$11<>\"\",INDIRECT(\"'\" & Setup!$AH$11 & \"'!\" & AF336),0) + IF(Setup!$AH$12<>\"\",INDIRECT(\"'\" & Setup!$AH$12 & \"'!\" & AF336),0)","v":0},{"$f":"IF(Setup!$AI$7<>\"\",INDIRECT(\"'\" & Setup!$AI$7 & \"'!\" & AF336),0) + IF(Setup!$AI$8<>\"\",INDIRECT(\"'\" & Setup!$AI$8 & \"'!\" & AF336),0) + IF(Setup!$AI$9<>\"\",INDIRECT(\"'\" & Setup!$AI$9 & \"'!\" & AF336),0) + IF(Setup!$AI$10<>\"\",INDIRECT(\"'\" & Setup!$AI$10 & \"'!\" & AF336),0) + IF(Setup!$AI$11<>\"\",INDIRECT(\"'\" & Setup!$AI$11 & \"'!\" & AF336),0) + IF(Setup!$AI$12<>\"\",INDIRECT(\"'\" & Setup!$AI$12 & \"'!\" & AF336),0)","v":0},{"$f":"IF(Setup!$AJ$7<>\"\",INDIRECT(\"'\" & Setup!$AJ$7 & \"'!\" & AF336),0) + IF(Setup!$AJ$8<>\"\",INDIRECT(\"'\" & Setup!$AJ$8 & \"'!\" & AF336),0) + IF(Setup!$AJ$9<>\"\",INDIRECT(\"'\" & Setup!$AJ$9 & \"'!\" & AF336),0) + IF(Setup!$AJ$10<>\"\",INDIRECT(\"'\" & Setup!$AJ$10 & \"'!\" & AF336),0) + IF(Setup!$AJ$11<>\"\",INDIRECT(\"'\" & Setup!$AJ$11 & \"'!\" & AF336),0) + IF(Setup!$AJ$12<>\"\",INDIRECT(\"'\" & Setup!$AJ$12 & \"'!\" & AF336),0)","v":0},null,"",{"$nulls":30},0,{"$f":"IF(Setup!$AH$7=\"\",0,INDIRECT(\"'\" & Setup!$AH$7 & \"'!\" & AF336))","v":0},{"$f":"IF(Setup!$AI$7=\"\",0,INDIRECT(\"'\" & Setup!$AI$7 & \"'!\" & AF336))","v":0},{"$f":"IF(Setup!$AJ$7=\"\",0,INDIRECT(\"'\" & Setup!$AJ$7 & \"'!\" & AF336))","v":0}]
[{"$f":"Planning!A109","v":"I101"},{"$f":"Planning!B109","v":0},{"$f":"Planning!C109","v":0},{"$f":"Planning!D109","v":0},{"$f":"Planning!E109","v":0},{"$f":"Planning!G109","v":0},0,{"v":0,"d":"0.00"},{"v":0,"d":"0.00"},"","",{"$f":"IF(Setup!$AG$7<>\"\",INDIRECT(\"'\" & Setup!$AG$7 & \"'!\" & AD337),0) + IF(Setup!$AG$8<>\"\",INDIRECT(\"'\" & Setup!$AG$8 & \"'!\" & AD337),0) + IF(Setup!$AG$9<>\"\",INDIRECT(\"'\" & Setup!$AG$9 & \"'!\" & AD337),0) + IF(Setup!$AG$10<>\"\",INDIRECT(\"'\" & Setup!$AG$10 & \"'!\" & AD337),0) + IF(Setup!$AG$11<>\"\",INDIRECT(\"'\" & Setup!$AG$11 & \"'!\" & AD337),0) + IF(Setup!$AG$12<>\"\",INDIRECT(\"'\" & Setup!$AG$12 & \"'!\" & AD337),0)","v":{"v":0,"d":"0.00"}},{"$f":"IF(Setup!$AG$7<>\"\",INDIRECT(\"'\" & Setup!$AG$7 & \"'!\" & AE337),0) + IF(Setup!$AG$8<>\"\",INDIRECT(\"'\" & Setup!$AG$8 & \"'!\" & AE337),0) + IF(Setup!$AG$9<>\"\",INDIRECT(\"'\" & Setup!$AG$9 & \"'!\" & AE337),0) + IF(Setup!$AG$10<>\"\",INDIRECT(\"'\" & Setup!$AG$10 & \"'!\" & AE337),0) + IF(Setup!$AG$11<>\"\",INDIRECT(\"'\" & Setup!$AG$11 & \"'!\" & AE337),0) + IF(Setup!$AG$12<>\"\",INDIRECT(\"'\" & Setup!$AG$12 & \"'!\" & AE337),0)","v":{"v":0,"d":"0.00"}},"","",{"$f":"IF(Setup!$AH$7<>\"\",INDIRECT(\"'\" & Setup!$AH$7 & \"'!\" & AD337),0) + IF(Setup!$AH$8<>\"\",INDIRECT(\"'\" & Setup!$AH$8 & \"'!\" & AD337),0) + IF(Setup!$AH$9<>\"\",INDIRECT(\"'\" & Setup!$AH$9 & \"'!\" & AD337),0) + IF(Setup!$AH$10<>\"\",INDIRECT(\"'\" & Setup!$AH$10 & \"'!\" & AD337),0) + IF(Setup!$AH$11<>\"\",INDIRECT(\"'\" & Setup!$AH$11 & \"'!\" & AD337),0) + IF(Setup!$AH$12<>\"\",INDIRECT(\"'\" & Setup!$AH$12 & \"'!\" & AD337),0)","v":{"v":0,"d":"0.00"}},{"$f":"IF(Setup!$AH$7<>\"\",INDIRECT(\"'\" & Setup!$AH$7 & \"'!\" & AE337),0) + IF(Setup!$AH$8<>\"\",INDIRECT(\"'\" & Setup!$AH$8 & \"'!\" & AE337),0) + IF(Setup!$AH$9<>\"\",INDIRECT(\"'\" & Setup!$AH$9 & \"'!\" & AE337),0) + IF(Setup!$AH$10<>\"\",INDIRECT(\"'\" & Setup!$AH$10 & \"'!\" & AE337),0) + IF(Setup!$AH$11<>\"\",INDIRECT(\"'\" & Setup!$AH$11 & \"'!\" & AE337),0) + IF(Setup!$AH$12<>\"\",INDIRECT(\"'\" & Setup!$AH$12 & \"'!\" & AE337),0)","v":{"v":0,"d":"0.00"}},"","",{"$f":"IF(Setup!$AI$7<>\"\",INDIRECT(\"'\" & Setup!$AI$7 & \"'!\" & AD337),0) + IF(Setup!$AI$8<>\"\",INDIRECT(\"'\" & Setup!$AI$8 & \"'!\" & AD337),0) + IF(Setup!$AI$9<>\"\",INDIRECT(\"'\" & Setup!$AI$9 & \"'!\" & AD337),0) + IF(Setup!$AI$10<>\"\",INDIRECT(\"'\" & Setup!$AI$10 & \"'!\" & AD337),0) + IF(Setup!$AI$11<>\"\",INDIRECT(\"'\" & Setup!$AI$11 & \"'!\" & AD337),0) + IF(Setup!$AI$12<>\"\",INDIRECT(\"'\" & Setup!$AI$12 & \"'!\" & AD337),0)","v":{"v":0,"d":"0.00"}},{"$f":"IF(Setup!$AI$7<>\"\",INDIRECT(\"'\" & Setup!$AI$7 & \"'!\" & AE337),0) + IF(Setup!$AI$8<>\"\",INDIRECT(\"'\" & Setup!$AI$8 & \"'!\" & AE337),0) + IF(Setup!$AI$9<>\"\",INDIRECT(\"'\" & Setup!$AI$9 & \"'!\" & AE337),0) + IF(Setup!$AI$10<>\"\",INDIRECT(\"'\" & Setup!$AI$10 & \"'!\" & AE337),0) + IF(Setup!$AI$11<>\"\",INDIRECT(\"'\" & Setup!$AI$11 & \"'!\" & AE337),0) + IF(Setup!$AI$12<>\"\",INDIRECT(\"'\" & Setup!$AI$12 & \"'!\" & AE337),0)","v":{"v":0,"d":"0.00"}},"","",{"$f":"IF(Setup!$AJ$7<>\"\",INDIRECT(\"'\" & Setup!$AJ$7 & \"'!\" & AD337),0) + IF(Setup!$AJ$8<>\"\",INDIRECT(\"'\" & Setup!$AJ$8 & \"'!\" & AD337),0) + IF(Setup!$AJ$9<>\"\",INDIRECT(\"'\" & Setup!$AJ$9 & \"'!\" & AD337),0) + IF(Setup!$AJ$10<>\"\",INDIRECT(\"'\" & Setup!$AJ$10 & \"'!\" & AD337),0) + IF(Setup!$AJ$11<>\"\",INDIRECT(\"'\" & Setup!$AJ$11 & \"'!\" & AD337),0) + IF(Setup!$AJ$12<>\"\",INDIRECT(\"'\" & Setup!$AJ$12 & \"'!\" & AD337),0)","v":0},{"$f":"IF(Setup!$AJ$7<>\"\",INDIRECT(\"'\" & Setup!$AJ$7 & \"'!\" & AE337),0) + IF(Setup!$AJ$8<>\"\",INDIRECT(\"'\" & Setup!$AJ$8 & \"'!\" & AE337),0) + IF(Setup!$AJ$9<>\"\",INDIRECT(\"'\" & Setup!$AJ$9 & \"'!\" & AE337),0) + IF(Setup!$AJ$10<>\"\",INDIRECT(\"'\" & Setup!$AJ$10 & \"'!\" & AE337),0) + IF(Setup!$AJ$11<>\"\",INDIRECT(\"'\" & Setup!$AJ$11 & \"'!\" & AE337),0) + IF(Setup!$AJ$12<>\"\",INDIRECT(\"'\" & Setup!$AJ$12 & \"'!\" & AE337),0)","v":0},"","",{"$f":"Planning!H109","v":0},"00","M125","O125","N125",null,null,{"$f":"IF(Setup!$AG$7<>\"\",INDIRECT(\"'\" & Setup!$AG$7 & \"'!\" & AF337),0) + IF(Setup!$AG$8<>\"\",INDIRECT(\"'\" & Setup!$AG$8 & \"'!\" & AF337),0) + IF(Setup!$AG$9<>\"\",INDIRECT(\"'\" & Setup!$AG$9 & \"'!\" & AF337),0) + IF(Setup!$AG$10<>\"\",INDIRECT(\"'\" & Setup!$AG$10 & \"'!\" & AF337),0) + IF(Setup!$AG$11<>\"\",INDIRECT(\"'\" & Setup!$AG$11 & \"'!\" & AF337),0) + IF(Setup!$AG$12<>\"\",INDIRECT(\"'\" & Setup!$AG$12 & \"'!\" & AF337),0)","v":0},{"$f":"IF(Setup!$AH$7<>\"\",INDIRECT(\"'\" & Setup!$AH$7 & \"'!\" & AF337),0) + IF(Setup!$AH$8<>\"\",INDIRECT(\"'\" & Setup!$AH$8 & \"'!\" & AF337),0) + IF(Setup!$AH$9<>\"\",INDIRECT(\"'\" & Setup!$AH$9 & \"'!\" & AF337),0) + IF(Setup!$AH$10<>\"\",INDIRECT(\"'\" & Setup!$AH$10 & \"'!\" & AF337),0) + IF(Setup!$AH$11<>\"\",INDIRECT(\"'\" & Setup!$AH$11 & \"'!\" & AF337),0) + IF(Setup!$AH$12<>\"\",INDIRECT(\"'\" & Setup!$AH$12 & \"'!\" & AF337),0)","v":0},{"$f":"IF(Setup!$AI$7<>\"\",INDIRECT(\"'\" & Setup!$AI$7 & \"'!\" & AF337),0) + IF(Setup!$AI$8<>\"\",INDIRECT(\"'\" & Setup!$AI$8 & \"'!\" & AF337),0) + IF(Setup!$AI$9<>\"\",INDIRECT(\"'\" & Setup!$AI$9 & \"'!\" & AF337),0) + IF(Setup!$AI$10<>\"\",INDIRECT(\"'\" & Setup!$AI$10 & \"'!\" & AF337),0) + IF(Setup!$AI$11<>\"\",INDIRECT(\"'\" & Setup!$AI$11 & \"'!\" & AF337),0) + IF(Setup!$AI$12<>\"\",INDIRECT(\"'\" & Setup!$AI$12 & \"'!\" & AF337),0)","v":0},{"$f":"IF(Setup!$AJ$7<>\"\",INDIRECT(\"'\" & Setup!$AJ$7 & \"'!\" & AF337),0) + IF(Setup!$AJ$8<>\"\",INDIRECT(\"'\" & Setup!$AJ$8 & \"'!\" & AF337),0) + IF(Setup!$AJ$9<>\"\",INDIRECT(\"'\" & Setup!$AJ$9 & \"'!\" & AF337),0) + IF(Setup!$AJ$10<>\"\",INDIRECT(\"'\" & Setup!$AJ$10 & \"'!\" & AF337),0) + IF(Setup!$AJ$11<>\"\",INDIRECT(\"'\" & Setup!$AJ$11 & \"'!\" & AF337),0) + IF(Setup!$AJ$12<>\"\",INDIRECT(\"'\" & Setup!$AJ$12 & \"'!\" & AF337),0)","v":0},null,"",{"$nulls":30},0,{"$f":"IF(Setup!$AH$7=\"\",0,INDIRECT(\"'\" & Setup!$AH$7 & \"'!\" & AF337))","v":0},{"$f":"IF(Setup!$AI$7=\"\",0,INDIRECT(\"'\" & Setup!$AI$7 & \"'!\" & AF337))","v":0},{"$f":"IF(Setup!$AJ$7=\"\",0,INDIRECT(\"'\" & Setup!$AJ$7 & \"'!\" & AF337))","v":0}]
[{"$f":"Planning!A110","v":"I102"},{"$f":"Planning!B110","v":0},{"$f":"Planning!C110","v":0},{"$f":"Planning!D110","v":0},{"$f":"Planning!E110","v":0},{"$f":"Planning!G110","v":0},0,{"v":0,"d":"0.00"},{"v":0,"d":"0.00"},"","",{"$f":"IF(Setup!$AG$7<>\"\",INDIRECT(\"'\" & Setup!$AG$7 & \"'!\" & AD338),0) + IF(Setup!$AG$8<>\"\",INDIRECT(\"'\" & Setup!$AG$8 & \"'!\" & AD338),0) + IF(Setup!$AG$9<>\"\",INDIRECT(\"'\" & Setup!$AG$9 & \"'!\" & AD338),0) + IF(Setup!$AG$10<>\"\",INDIRECT(\"'\" & Setup!$AG$10 & \"'!\" & AD338),0) + IF(Setup!$AG$11<>\"\",INDIRECT(\"'\" & Setup!$AG$11 & \"'!\" & AD338),0) + IF(Setup!$AG$12<>\"\",INDIRECT(\"'\" & Setup!$AG$12 & \"'!\" & AD338),0)","v":{"v":0,"d":"0.00"}},{"$f":"IF(Setup!$AG$7<>\"\",INDIRECT(\"'\" & Setup!$AG$7 & \"'!\" & AE338),0) + IF(Setup!$AG$8<>\"\",INDIRECT(\"'\" & Setup!$AG$8 & \"'!\" & AE338),0) + IF(Setup!$AG$9<>\"\",INDIRECT(\"'\" & Setup!$AG$9 & \"'!\" & AE338),0) + IF(Setup!$AG$10<>\"\",INDIRECT(\"'\" & Setup!$AG$10 & \"'!\" & AE338),0) + IF(Setup!$AG$11<>\"\",INDIRECT(\"'\" & Setup!$AG$11 & \"'!\" & AE338),0) + IF(Setup!$AG$12<>\"\",INDIRECT(\"'\" & Setup!$AG$12 & \"'!\" & AE338),0)","v":{"v":0,"d":"0.00"}},"","",{"$f":"IF(Setup!$AH$7<>\"\",INDIRECT(\"'\" & Setup!$AH$7 & \"'!\" & AD338),0) + IF(Setup!$AH$8<>\"\",INDIRECT(\"'\" & Setup!$AH$8 & \"'!\" & AD338),0) + IF(Setup!$AH$9<>\"\",INDIRECT(\"'\" & Setup!$AH$9 & \"'!\" & AD338),0) + IF(Setup!$AH$10<>\"\",INDIRECT(\"'\" & Setup!$AH$10 & \"'!\" & AD338),0) + IF(Setup!$AH$11<>\"\",INDIRECT(\"'\" & Setup!$AH$11 & \"'!\" & AD338),0) + IF(Setup!$AH$12<>\"\",INDIRECT(\"'\" & Setup!$AH$12 & \"'!\" & AD338),0)","v":{"v":0,"d":"0.00"}},{"$f":"IF(Setup!$AH$7<>\"\",INDIRECT(\"'\" & Setup!$AH$7 & \"'!\" & AE338),0) + IF(Setup!$AH$8<>\"\",INDIRECT(\"'\" & Setup!$AH$8 & \"'!\" & AE338),0) + IF(Setup!$AH$9<>\"\",INDIRECT(\"'\" & Setup!$AH$9 & \"'!\" & AE338),0) + IF(Setup!$AH$10<>\"\",INDIRECT(\"'\" & Setup!$AH$10 & \"'!\" & AE338),0) + IF(Setup!$AH$11<>\"\",INDIRECT(\"'\" & Setup!$AH$11 & \"'!\" & AE338),0) + IF(Setup!$AH$12<>\"\",INDIRECT(\"'\" & Setup!$AH$12 & \"'!\" & AE338),0)","v":{"v":0,"d":"0.00"}},"","",{"$f":"IF(Setup!$AI$7<>\"\",INDIRECT(\"'\" & Setup!$AI$7 & \"'!\" & AD338),0) + IF(Setup!$AI$8<>\"\",INDIRECT(\"'\" & Setup!$AI$8 & \"'!\" & AD338),0) + IF(Setup!$AI$9<>\"\",INDIRECT(\"'\" & Setup!$AI$9 & \"'!\" & AD338),0) + IF(Setup!$AI$10<>\"\",INDIRECT(\"'\" & Setup!$AI$10 & \"'!\" & AD338),0) + IF(Setup!$AI$11<>\"\",INDIRECT(\"'\" & Setup!$AI$11 & \"'!\" & AD338),0) + IF(Setup!$AI$12<>\"\",INDIRECT(\"'\" & Setup!$AI$12 & \"'!\" & AD338),0)","v":{"v":0,"d":"0.00"}},{"$f":"IF(Setup!$AI$7<>\"\",INDIRECT(\"'\" & Setup!$AI$7 & \"'!\" & AE338),0) + IF(Setup!$AI$8<>\"\",INDIRECT(\"'\" & Setup!$AI$8 & \"'!\" & AE338),0) + IF(Setup!$AI$9<>\"\",INDIRECT(\"'\" & Setup!$AI$9 & \"'!\" & AE338),0) + IF(Setup!$AI$10<>\"\",INDIRECT(\"'\" & Setup!$AI$10 & \"'!\" & AE338),0) + IF(Setup!$AI$11<>\"\",INDIRECT(\"'\" & Setup!$AI$11 & \"'!\" & AE338),0) + IF(Setup!$AI$12<>\"\",INDIRECT(\"'\" & Setup!$AI$12 & \"'!\" & AE338),0)","v":{"v":0,"d":"0.00"}},"","",{"$f":"IF(Setup!$AJ$7<>\"\",INDIRECT(\"'\" & Setup!$AJ$7 & \"'!\" & AD338),0) + IF(Setup!$AJ$8<>\"\",INDIRECT(\"'\" & Setup!$AJ$8 & \"'!\" & AD338),0) + IF(Setup!$AJ$9<>\"\",INDIRECT(\"'\" & Setup!$AJ$9 & \"'!\" & AD338),0) + IF(Setup!$AJ$10<>\"\",INDIRECT(\"'\" & Setup!$AJ$10 & \"'!\" & AD338),0) + IF(Setup!$AJ$11<>\"\",INDIRECT(\"'\" & Setup!$AJ$11 & \"'!\" & AD338),0) + IF(Setup!$AJ$12<>\"\",INDIRECT(\"'\" & Setup!$AJ$12 & \"'!\" & AD338),0)","v":0},{"$f":"IF(Setup!$AJ$7<>\"\",INDIRECT(\"'\" & Setup!$AJ$7 & \"'!\" & AE338),0) + IF(Setup!$AJ$8<>\"\",INDIRECT(\"'\" & Setup!$AJ$8 & \"'!\" & AE338),0) + IF(Setup!$AJ$9<>\"\",INDIRECT(\"'\" & Setup!$AJ$9 & \"'!\" & AE338),0) + IF(Setup!$AJ$10<>\"\",INDIRECT(\"'\" & Setup!$AJ$10 & \"'!\" & AE338),0) + IF(Setup!$AJ$11<>\"\",INDIRECT(\"'\" & Setup!$AJ$11 & \"'!\" & AE338),0) + IF(Setup!$AJ$12<>\"\",INDIRECT(\"'\" & Setup!$AJ$12 & \"'!\" & AE338),0)","v":0},"","",{"$f":"Planning!H110","v":0},"00","M126","O126","N126",null,null,{"$f":"IF(Setup!$AG$7<>\"\",INDIRECT(\"'\" & Setup!$AG$7 & \"'!\" & AF338),0) + IF(Setup!$AG$8<>\"\",INDIRECT(\"'\" & Setup!$AG$8 & \"'!\" & AF338),0) + IF(Setup!$AG$9<>\"\",INDIRECT(\"'\" & Setup!$AG$9 & \"'!\" & AF338),0) + IF(Setup!$AG$10<>\"\",INDIRECT(\"'\" & Setup!$AG$10 & \"'!\" & AF338),0) + IF(Setup!$AG$11<>\"\",INDIRECT(\"'\" & Setup!$AG$11 & \"'!\" & AF338),0) + IF(Setup!$AG$12<>\"\",INDIRECT(\"'\" & Setup!$AG$12 & \"'!\" & AF338),0)","v":0},{"$f":"IF(Setup!$AH$7<>\"\",INDIRECT(\"'\" & Setup!$AH$7 & \"'!\" & AF338),0) + IF(Setup!$AH$8<>\"\",INDIRECT(\"'\" & Setup!$AH$8 & \"'!\" & AF338),0) + IF(Setup!$AH$9<>\"\",INDIRECT(\"'\" & Setup!$AH$9 & \"'!\" & AF338),0) + IF(Setup!$AH$10<>\"\",INDIRECT(\"'\" & Setup!$AH$10 & \"'!\" & AF338),0) + IF(Setup!$AH$11<>\"\",INDIRECT(\"'\" & Setup!$AH$11 & \"'!\" & AF338),0) + IF(Setup!$AH$12<>\"\",INDIRECT(\"'\" & Setup!$AH$12 & \"'!\" & AF338),0)","v":0},{"$f":"IF(Setup!$AI$7<>\"\",INDIRECT(\"'\" & Setup!$AI$7 & \"'!\" & AF338),0) + IF(Setup!$AI$8<>\"\",INDIRECT(\"'\" & Setup!$AI$8 & \"'!\" & AF338),0) + IF(Setup!$AI$9<>\"\",INDIRECT(\"'\" & Setup!$AI$9 & \"'!\" & AF338),0) + IF(Setup!$AI$10<>\"\",INDIRECT(\"'\" & Setup!$AI$10 & \"'!\" & AF338),0) + IF(Setup!$AI$11<>\"\",INDIRECT(\"'\" & Setup!$AI$11 & \"'!\" & AF338),0) + IF(Setup!$AI$12<>\"\",INDIRECT(\"'\" & Setup!$AI$12 & \"'!\" & AF338),0)","v":0},{"$f":"IF(Setup!$AJ$7<>\"\",INDIRECT(\"'\" & Setup!$AJ$7 & \"'!\" & AF338),0) + IF(Setup!$AJ$8<>\"\",INDIRECT(\"'\" & Setup!$AJ$8 & \"'!\" & AF338),0) + IF(Setup!$AJ$9<>\"\",INDIRECT(\"'\" & Setup!$AJ$9 & \"'!\" & AF338),0) + IF(Setup!$AJ$10<>\"\",INDIRECT(\"'\" & Setup!$AJ$10 & \"'!\" & AF338),0) + IF(Setup!$AJ$11<>\"\",INDIRECT(\"'\" & Setup!$AJ$11 & \"'!\" & AF338),0) + IF(Setup!$AJ$12<>\"\",INDIRECT(\"'\" & Setup!$AJ$12 & \"'!\" & AF338),0)","v":0},null,"",{"$nulls":30},0,{"$f":"IF(Setup!$AH$7=\"\",0,INDIRECT(\"'\" & Setup!$AH$7 & \"'!\" & AF338))","v":0},{"$f":"IF(Setup!$AI$7=\"\",0,INDIRECT(\"'\" & Setup!$AI$7 & \"'!\" & AF338))","v":0},{"$f":"IF(Setup!$AJ$7=\"\",0,INDIRECT(\"'\" & Setup!$AJ$7 & \"'!\" & AF338))","v":0}]
[{"$f":"Planning!A111","v":"I103"},{"$f":"Planning!B111","v":0},{"$f":"Planning!C111","v":0},{"$f":"Planning!D111","v":0},{"$f":"Planning!E111","v":0},{"$f":"Planning!G111","v":0},0,{"v":0,"d":"0.00"},{"v":0,"d":"0.00"},"","",{"$f":"IF(Setup!$AG$7<>\"\",INDIRECT(\"'\" & Setup!$AG$7 & \"'!\" & AD339),0) + IF(Setup!$AG$8<>\"\",INDIRECT(\"'\" & Setup!$AG$8 & \"'!\" & AD339),0) + IF(Setup!$AG$9<>\"\",INDIRECT(\"'\" & Setup!$AG$9 & \"'!\" & AD339),0) + IF(Setup!$AG$10<>\"\",INDIRECT(\"'\" & Setup!$AG$10 & \"'!\" & AD339),0) + IF(Setup!$AG$11<>\"\",INDIRECT(\"'\" & Setup!$AG$11 & \"'!\" & AD339),0) + IF(Setup!$AG$12<>\"\",INDIRECT(\"'\" & Setup!$AG$12 & \"'!\" & AD339),0)","v":{"v":0,"d":"0.00"}},{"$f":"IF(Setup!$AG$7<>\"\",INDIRECT(\"'\" & Setup!$AG$7 & \"'!\" & AE339),0) + IF(Setup!$AG$8<>\"\",INDIRECT(\"'\" & Setup!$AG$8 & \"'!\" & AE339),0) + IF(Setup!$AG$9<>\"\",INDIRECT(\"'\" & Setup!$AG$9 & \"'!\" & AE339),0) + IF(Setup!$AG$10<>\"\",INDIRECT(\"'\" & Setup!$AG$10 & \"'!\" & AE339),0) + IF(Setup!$AG$11<>\"\",INDIRECT(\"'\" & Setup!$AG$11 & \"'!\" & AE339),0) + IF(Setup!$AG$12<>\"\",INDIRECT(\"'\" & Setup!$AG$12 & \"'!\" & AE339),0)","v":{"v":0,"d":"0.00"}},"","",{"$f":"IF(Setup!$AH$7<>\"\",INDIRECT(\"'\" & Setup!$AH$7 & \"'!\" & AD339),0) + IF(Setup!$AH$8<>\"\",INDIRECT(\"'\" & Setup!$AH$8 & \"'!\" & AD339),0) + IF(Setup!$AH$9<>\"\",INDIRECT(\"'\" & Setup!$AH$9 & \"'!\" & AD339),0) + IF(Setup!$AH$10<>\"\",INDIRECT(\"'\" & Setup!$AH$10 & \"'!\" & AD339),0) + IF(Setup!$AH$11<>\"\",INDIRECT(\"'\" & Setup!$AH$11 & \"'!\" & AD339),0) + IF(Setup!$AH$12<>\"\",INDIRECT(\"'\" & Setup!$AH$12 & \"'!\" & AD339),0)","v":{"v":0,"d":"0.00"}},{"$f":"IF(Setup!$AH$7<>\"\",INDIRECT(\"'\" & Setup!$AH$7 & \"'!\" & AE339),0) + IF(Setup!$AH$8<>\"\",INDIRECT(\"'\" & Setup!$AH$8 & \"'!\" & AE339),0) + IF(Setup!$AH$9<>\"\",INDIRECT(\"'\" & Setup!$AH$9 & \"'!\" & AE339),0) + IF(Setup!$AH$10<>\"\",INDIRECT(\"'\" & Setup!$AH$10 & \"'!\" & AE339),0) + IF(Setup!$AH$11<>\"\",INDIRECT(\"'\" & Setup!$AH$11 & \"'!\" & AE339),0) + IF(Setup!$AH$12<>\"\",INDIRECT(\"'\" & Setup!$AH$12 & \"'!\" & AE339),0)","v":{"v":0,"d":"0.00"}},"","",{"$f":"IF(Setup!$AI$7<>\"\",INDIRECT(\"'\" & Setup!$AI$7 & \"'!\" & AD339),0) + IF(Setup!$AI$8<>\"\",INDIRECT(\"'\" & Setup!$AI$8 & \"'!\" & AD339),0) + IF(Setup!$AI$9<>\"\",INDIRECT(\"'\" & Setup!$AI$9 & \"'!\" & AD339),0) + IF(Setup!$AI$10<>\"\",INDIRECT(\"'\" & Setup!$AI$10 & \"'!\" & AD339),0) + IF(Setup!$AI$11<>\"\",INDIRECT(\"'\" & Setup!$AI$11 & \"'!\" & AD339),0) + IF(Setup!$AI$12<>\"\",INDIRECT(\"'\" & Setup!$AI$12 & \"'!\" & AD339),0)","v":{"v":0,"d":"0.00"}},{"$f":"IF(Setup!$AI$7<>\"\",INDIRECT(\"'\" & Setup!$AI$7 & \"'!\" & AE339),0) + IF(Setup!$AI$8<>\"\",INDIRECT(\"'\" & Setup!$AI$8 & \"'!\" & AE339),0) + IF(Setup!$AI$9<>\"\",INDIRECT(\"'\" & Setup!$AI$9 & \"'!\" & AE339),0) + IF(Setup!$AI$10<>\"\",INDIRECT(\"'\" & Setup!$AI$10 & \"'!\" & AE339),0) + IF(Setup!$AI$11<>\"\",INDIRECT(\"'\" & Setup!$AI$11 & \"'!\" & AE339),0) + IF(Setup!$AI$12<>\"\",INDIRECT(\"'\" & Setup!$AI$12 & \"'!\" & AE339),0)","v":{"v":0,"d":"0.00"}},"","",{"$f":"IF(Setup!$AJ$7<>\"\",INDIRECT(\"'\" & Setup!$AJ$7 & \"'!\" & AD339),0) + IF(Setup!$AJ$8<>\"\",INDIRECT(\"'\" & Setup!$AJ$8 & \"'!\" & AD339),0) + IF(Setup!$AJ$9<>\"\",INDIRECT(\"'\" & Setup!$AJ$9 & \"'!\" & AD339),0) + IF(Setup!$AJ$10<>\"\",INDIRECT(\"'\" & Setup!$AJ$10 & \"'!\" & AD339),0) + IF(Setup!$AJ$11<>\"\",INDIRECT(\"'\" & Setup!$AJ$11 & \"'!\" & AD339),0) + IF(Setup!$AJ$12<>\"\",INDIRECT(\"'\" & Setup!$AJ$12 & \"'!\" & AD339),0)","v":0},{"$f":"IF(Setup!$AJ$7<>\"\",INDIRECT(\"'\" & Setup!$AJ$7 & \"'!\" & AE339),0) + IF(Setup!$AJ$8<>\"\",INDIRECT(\"'\" & Setup!$AJ$8 & \"'!\" & AE339),0) + IF(Setup!$AJ$9<>\"\",INDIRECT(\"'\" & Setup!$AJ$9 & \"'!\" & AE339),0) + IF(Setup!$AJ$10<>\"\",INDIRECT(\"'\" & Setup!$AJ$10 & \"'!\" & AE339),0) + IF(Setup!$AJ$11<>\"\",INDIRECT(\"'\" & Setup!$AJ$11 & \"'!\" & AE339),0) + IF(Setup!$AJ$12<>\"\",INDIRECT(\"'\" & Setup!$AJ$12 & \"'!\" & AE339),0)","v":0},"","",{"$f":"Planning!H111","v":0},"00","M127","O127","N127",null,null,{"$f":"IF(Setup!$AG$7<>\"\",INDIRECT(\"'\" & Setup!$AG$7 & \"'!\" & AF339),0) + IF(Setup!$AG$8<>\"\",INDIRECT(\"'\" & Setup!$AG$8 & \"'!\" & AF339),0) + IF(Setup!$AG$9<>\"\",INDIRECT(\"'\" & Setup!$AG$9 & \"'!\" & AF339),0) + IF(Setup!$AG$10<>\"\",INDIRECT(\"'\" & Setup!$AG$10 & \"'!\" & AF339),0) + IF(Setup!$AG$11<>\"\",INDIRECT(\"'\" & Setup!$AG$11 & \"'!\" & AF339),0) + IF(Setup!$AG$12<>\"\",INDIRECT(\"'\" & Setup!$AG$12 & \"'!\" & AF339),0)","v":0},{"$f":"IF(Setup!$AH$7<>\"\",INDIRECT(\"'\" & Setup!$AH$7 & \"'!\" & AF339),0) + IF(Setup!$AH$8<>\"\",INDIRECT(\"'\" & Setup!$AH$8 & \"'!\" & AF339),0) + IF(Setup!$AH$9<>\"\",INDIRECT(\"'\" & Setup!$AH$9 & \"'!\" & AF339),0) + IF(Setup!$AH$10<>\"\",INDIRECT(\"'\" & Setup!$AH$10 & \"'!\" & AF339),0) + IF(Setup!$AH$11<>\"\",INDIRECT(\"'\" & Setup!$AH$11 & \"'!\" & AF339),0) + IF(Setup!$AH$12<>\"\",INDIRECT(\"'\" & Setup!$AH$12 & \"'!\" & AF339),0)","v":0},{"$f":"IF(Setup!$AI$7<>\"\",INDIRECT(\"'\" & Setup!$AI$7 & \"'!\" & AF339),0) + IF(Setup!$AI$8<>\"\",INDIRECT(\"'\" & Setup!$AI$8 & \"'!\" & AF339),0) + IF(Setup!$AI$9<>\"\",INDIRECT(\"'\" & Setup!$AI$9 & \"'!\" & AF339),0) + IF(Setup!$AI$10<>\"\",INDIRECT(\"'\" & Setup!$AI$10 & \"'!\" & AF339),0) + IF(Setup!$AI$11<>\"\",INDIRECT(\"'\" & Setup!$AI$11 & \"'!\" & AF339),0) + IF(Setup!$AI$12<>\"\",INDIRECT(\"'\" & Setup!$AI$12 & \"'!\" & AF339),0)","v":0},{"$f":"IF(Setup!$AJ$7<>\"\",INDIRECT(\"'\" & Setup!$AJ$7 & \"'!\" & AF339),0) + IF(Setup!$AJ$8<>\"\",INDIRECT(\"'\" & Setup!$AJ$8 & \"'!\" & AF339),0) + IF(Setup!$AJ$9<>\"\",INDIRECT(\"'\" & Setup!$AJ$9 & \"'!\" & AF339),0) + IF(Setup!$AJ$10<>\"\",INDIRECT(\"'\" & Setup!$AJ$10 & \"'!\" & AF339),0) + IF(Setup!$AJ$11<>\"\",INDIRECT(\"'\" & Setup!$AJ$11 & \"'!\" & AF339),0) + IF(Setup!$AJ$12<>\"\",INDIRECT(\"'\" & Setup!$AJ$12 & \"'!\" & AF339),0)","v":0},null,"",{"$nulls":30},0,{"$f":"IF(Setup!$AH$7=\"\",0,INDIRECT(\"'\" & Setup!$AH$7 & \"'!\" & AF339))","v":0},{"$f":"IF(Setup!$AI$7=\"\",0,INDIRECT(\"'\" & Setup!$AI$7 & \"'!\" & AF339))","v":0},{"$f":"IF(Setup!$AJ$7=\"\",0,INDIRECT(\"'\" & Setup!$AJ$7 & \"'!\" & AF339))","v":0}]
[{"$f":"Planning!A112","v":"I104"},{"$f":"Planning!B112","v":0},{"$f":"Planning!C112","v":0},{"$f":"Planning!D112","v":0},{"$f":"Planning!E112","v":0},{"$f":"Planning!G112","v":0},0,{"v":0,"d":"0.00"},{"v":0,"d":"0.00"},"","",{"$f":"IF(Setup!$AG$7<>\"\",INDIRECT(\"'\" & Setup!$AG$7 & \"'!\" & AD340),0) + IF(Setup!$AG$8<>\"\",INDIRECT(\"'\" & Setup!$AG$8 & \"'!\" & AD340),0) + IF(Setup!$AG$9<>\"\",INDIRECT(\"'\" & Setup!$AG$9 & \"'!\" & AD340),0) + IF(Setup!$AG$10<>\"\",INDIRECT(\"'\" & Setup!$AG$10 & \"'!\" & AD340),0) + IF(Setup!$AG$11<>\"\",INDIRECT(\"'\" & Setup!$AG$11 & \"'!\" & AD340),0) + IF(Setup!$AG$12<>\"\",INDIRECT(\"'\" & Setup!$AG$12 & \"'!\" & AD340),0)","v":{"v":0,"d":"0.00"}},{"$f":"IF(Setup!$AG$7<>\"\",INDIRECT(\"'\" & Setup!$AG$7 & \"'!\" & AE340),0) + IF(Setup!$AG$8<>\"\",INDIRECT(\"'\" & Setup!$AG$8 & \"'!\" & AE340),0) + IF(Setup!$AG$9<>\"\",INDIRECT(\"'\" & Setup!$AG$9 & \"'!\" & AE340),0) + IF(Setup!$AG$10<>\"\",INDIRECT(\"'\" & Setup!$AG$10 & \"'!\" & AE340),0) + IF(Setup!$AG$11<>\"\",INDIRECT(\"'\" & Setup!$AG$11 & \"'!\" & AE340),0) + IF(Setup!$AG$12<>\"\",INDIRECT(\"'\" & Setup!$AG$12 & \"'!\" & AE340),0)","v":{"v":0,"d":"0.00"}},"","",{"$f":"IF(Setup!$AH$7<>\"\",INDIRECT(\"'\" & Setup!$AH$7 & \"'!\" & AD340),0) + IF(Setup!$AH$8<>\"\",INDIRECT(\"'\" & Setup!$AH$8 & \"'!\" & AD340),0) + IF(Setup!$AH$9<>\"\",INDIRECT(\"'\" & Setup!$AH$9 & \"'!\" & AD340),0) + IF(Setup!$AH$10<>\"\",INDIRECT(\"'\" & Setup!$AH$10 & \"'!\" & AD340),0) + IF(Setup!$AH$11<>\"\",INDIRECT(\"'\" & Setup!$AH$11 & \"'!\" & AD340),0) + IF(Setup!$AH$12<>\"\",INDIRECT(\"'\" & Setup!$AH$12 & \"'!\" & AD340),0)","v":{"v":0,"d":"0.00"}},{"$f":"IF(Setup!$AH$7<>\"\",INDIRECT(\"'\" & Setup!$AH$7 & \"'!\" & AE340),0) + IF(Setup!$AH$8<>\"\",INDIRECT(\"'\" & Setup!$AH$8 & \"'!\" & AE340),0) + IF(Setup!$AH$9<>\"\",INDIRECT(\"'\" & Setup!$AH$9 & \"'!\" & AE340),0) + IF(Setup!$AH$10<>\"\",INDIRECT(\"'\" & Setup!$AH$10 & \"'!\" & AE340),0) + IF(Setup!$AH$11<>\"\",INDIRECT(\"'\" & Setup!$AH$11 & \"'!\" & AE340),0) + IF(Setup!$AH$12<>\"\",INDIRECT(\"'\" & Setup!$AH$12 & \"'!\" & AE340),0)","v":{"v":0,"d":"0.00"}},"","",{"$f":"IF(Setup!$AI$7<>\"\",INDIRECT(\"'\" & Setup!$AI$7 & \"'!\" & AD340),0) + IF(Setup!$AI$8<>\"\",INDIRECT(\"'\" & Setup!$AI$8 & \"'!\" & AD340),0) + IF(Setup!$AI$9<>\"\",INDIRECT(\"'\" & Setup!$AI$9 & \"'!\" & AD340),0) + IF(Setup!$AI$10<>\"\",INDIRECT(\"'\" & Setup!$AI$10 & \"'!\" & AD340),0) + IF(Setup!$AI$11<>\"\",INDIRECT(\"'\" & Setup!$AI$11 & \"'!\" & AD340),0) + IF(Setup!$AI$12<>\"\",INDIRECT(\"'\" & Setup!$AI$12 & \"'!\" & AD340),0)","v":{"v":0,"d":"0.00"}},{"$f":"IF(Setup!$AI$7<>\"\",INDIRECT(\"'\" & Setup!$AI$7 & \"'!\" & AE340),0) + IF(Setup!$AI$8<>\"\",INDIRECT(\"'\" & Setup!$AI$8 & \"'!\" & AE340),0) + IF(Setup!$AI$9<>\"\",INDIRECT(\"'\" & Setup!$AI$9 & \"'!\" & AE340),0) + IF(Setup!$AI$10<>\"\",INDIRECT(\"'\" & Setup!$AI$10 & \"'!\" & AE340),0) + IF(Setup!$AI$11<>\"\",INDIRECT(\"'\" & Setup!$AI$11 & \"'!\" & AE340),0) + IF(Setup!$AI$12<>\"\",INDIRECT(\"'\" & Setup!$AI$12 & \"'!\" & AE340),0)","v":{"v":0,"d":"0.00"}},"","",{"$f":"IF(Setup!$AJ$7<>\"\",INDIRECT(\"'\" & Setup!$AJ$7 & \"'!\" & AD340),0) + IF(Setup!$AJ$8<>\"\",INDIRECT(\"'\" & Setup!$AJ$8 & \"'!\" & AD340),0) + IF(Setup!$AJ$9<>\"\",INDIRECT(\"'\" & Setup!$AJ$9 & \"'!\" & AD340),0) + IF(Setup!$AJ$10<>\"\",INDIRECT(\"'\" & Setup!$AJ$10 & \"'!\" & AD340),0) + IF(Setup!$AJ$11<>\"\",INDIRECT(\"'\" & Setup!$AJ$11 & \"'!\" & AD340),0) + IF(Setup!$AJ$12<>\"\",INDIRECT(\"'\" & Setup!$AJ$12 & \"'!\" & AD340),0)","v":0},{"$f":"IF(Setup!$AJ$7<>\"\",INDIRECT(\"'\" & Setup!$AJ$7 & \"'!\" & AE340),0) + IF(Setup!$AJ$8<>\"\",INDIRECT(\"'\" & Setup!$AJ$8 & \"'!\" & AE340),0) + IF(Setup!$AJ$9<>\"\",INDIRECT(\"'\" & Setup!$AJ$9 & \"'!\" & AE340),0) + IF(Setup!$AJ$10<>\"\",INDIRECT(\"'\" & Setup!$AJ$10 & \"'!\" & AE340),0) + IF(Setup!$AJ$11<>\"\",INDIRECT(\"'\" & Setup!$AJ$11 & \"'!\" & AE340),0) + IF(Setup!$AJ$12<>\"\",INDIRECT(\"'\" & Setup!$AJ$12 & \"'!\" & AE340),0)","v":0},"","",{"$f":"Planning!H112","v":0},"00","M128","O128","N128",null,null,{"$f":"IF(Setup!$AG$7<>\"\",INDIRECT(\"'\" & Setup!$AG$7 & \"'!\" & AF340),0) + IF(Setup!$AG$8<>\"\",INDIRECT(\"'\" & Setup!$AG$8 & \"'!\" & AF340),0) + IF(Setup!$AG$9<>\"\",INDIRECT(\"'\" & Setup!$AG$9 & \"'!\" & AF340),0) + IF(Setup!$AG$10<>\"\",INDIRECT(\"'\" & Setup!$AG$10 & \"'!\" & AF340),0) + IF(Setup!$AG$11<>\"\",INDIRECT(\"'\" & Setup!$AG$11 & \"'!\" & AF340),0) + IF(Setup!$AG$12<>\"\",INDIRECT(\"'\" & Setup!$AG$12 & \"'!\" & AF340),0)","v":0},{"$f":"IF(Setup!$AH$7<>\"\",INDIRECT(\"'\" & Setup!$AH$7 & \"'!\" & AF340),0) + IF(Setup!$AH$8<>\"\",INDIRECT(\"'\" & Setup!$AH$8 & \"'!\" & AF340),0) + IF(Setup!$AH$9<>\"\",INDIRECT(\"'\" & Setup!$AH$9 & \"'!\" & AF340),0) + IF(Setup!$AH$10<>\"\",INDIRECT(\"'\" & Setup!$AH$10 & \"'!\" & AF340),0) + IF(Setup!$AH$11<>\"\",INDIRECT(\"'\" & Setup!$AH$11 & \"'!\" & AF340),0) + IF(Setup!$AH$12<>\"\",INDIRECT(\"'\" & Setup!$AH$12 & \"'!\" & AF340),0)","v":0},{"$f":"IF(Setup!$AI$7<>\"\",INDIRECT(\"'\" & Setup!$AI$7 & \"'!\" & AF340),0) + IF(Setup!$AI$8<>\"\",INDIRECT(\"'\" & Setup!$AI$8 & \"'!\" & AF340),0) + IF(Setup!$AI$9<>\"\",INDIRECT(\"'\" & Setup!$AI$9 & \"'!\" & AF340),0) + IF(Setup!$AI$10<>\"\",INDIRECT(\"'\" & Setup!$AI$10 & \"'!\" & AF340),0) + IF(Setup!$AI$11<>\"\",INDIRECT(\"'\" & Setup!$AI$11 & \"'!\" & AF340),0) + IF(Setup!$AI$12<>\"\",INDIRECT(\"'\" & Setup!$AI$12 & \"'!\" & AF340),0)","v":0},{"$f":"IF(Setup!$AJ$7<>\"\",INDIRECT(\"'\" & Setup!$AJ$7 & \"'!\" & AF340),0) + IF(Setup!$AJ$8<>\"\",INDIRECT(\"'\" & Setup!$AJ$8 & \"'!\" & AF340),0) + IF(Setup!$AJ$9<>\"\",INDIRECT(\"'\" & Setup!$AJ$9 & \"'!\" & AF340),0) + IF(Setup!$AJ$10<>\"\",INDIRECT(\"'\" & Setup!$AJ$10 & \"'!\" & AF340),0) + IF(Setup!$AJ$11<>\"\",INDIRECT(\"'\" & Setup!$AJ$11 & \"'!\" & AF340),0) + IF(Setup!$AJ$12<>\"\",INDIRECT(\"'\" & Setup!$AJ$12 & \"'!\" & AF340),0)","v":0},null,"",{"$nulls":30},0,{"$f":"IF(Setup!$AH$7=\"\",0,INDIRECT(\"'\" & Setup!$AH$7 & \"'!\" & AF340))","v":0},{"$f":"IF(Setup!$AI$7=\"\",0,INDIRECT(\"'\" & Setup!$AI$7 & \"'!\" & AF340))","v":0},{"$f":"IF(Setup!$AJ$7=\"\",0,INDIRECT(\"'\" & Setup!$AJ$7 & \"'!\" & AF340))","v":0}]
[{"$f":"Planning!A113","v":"I105"},{"$f":"Planning!B113","v":0},{"$f":"Planning!C113","v":0},{"$f":"Planning!D113","v":0},{"$f":"Planning!E113","v":0},{"$f":"Planning!G113","v":0},0,{"v":0,"d":"0.00"},{"v":0,"d":"0.00"},"","",{"$f":"IF(Setup!$AG$7<>\"\",INDIRECT(\"'\" & Setup!$AG$7 & \"'!\" & AD341),0) + IF(Setup!$AG$8<>\"\",INDIRECT(\"'\" & Setup!$AG$8 & \"'!\" & AD341),0) + IF(Setup!$AG$9<>\"\",INDIRECT(\"'\" & Setup!$AG$9 & \"'!\" & AD341),0) + IF(Setup!$AG$10<>\"\",INDIRECT(\"'\" & Setup!$AG$10 & \"'!\" & AD341),0) + IF(Setup!$AG$11<>\"\",INDIRECT(\"'\" & Setup!$AG$11 & \"'!\" & AD341),0) + IF(Setup!$AG$12<>\"\",INDIRECT(\"'\" & Setup!$AG$12 & \"'!\" & AD341),0)","v":{"v":0,"d":"0.00"}},{"$f":"IF(Setup!$AG$7<>\"\",INDIRECT(\"'\" & Setup!$AG$7 & \"'!\" & AE341),0) + IF(Setup!$AG$8<>\"\",INDIRECT(\"'\" & Setup!$AG$8 & \"'!\" & AE341),0) + IF(Setup!$AG$9<>\"\",INDIRECT(\"'\" & Setup!$AG$9 & \"'!\" & AE341),0) + IF(Setup!$AG$10<>\"\",INDIRECT(\"'\" & Setup!$AG$10 & \"'!\" & AE341),0) + IF(Setup!$AG$11<>\"\",INDIRECT(\"'\" & Setup!$AG$11 & \"'!\" & AE341),0) + IF(Setup!$AG$12<>\"\",INDIRECT(\"'\" & Setup!$AG$12 & \"'!\" & AE341),0)","v":{"v":0,"d":"0.00"}},"","",{"$f":"IF(Setup!$AH$7<>\"\",INDIRECT(\"'\" & Setup!$AH$7 & \"'!\" & AD341),0) + IF(Setup!$AH$8<>\"\",INDIRECT(\"'\" & Setup!$AH$8 & \"'!\" & AD341),0) + IF(Setup!$AH$9<>\"\",INDIRECT(\"'\" & Setup!$AH$9 & \"'!\" & AD341),0) + IF(Setup!$AH$10<>\"\",INDIRECT(\"'\" & Setup!$AH$10 & \"'!\" & AD341),0) + IF(Setup!$AH$11<>\"\",INDIRECT(\"'\" & Setup!$AH$11 & \"'!\" & AD341),0) + IF(Setup!$AH$12<>\"\",INDIRECT(\"'\" & Setup!$AH$12 & \"'!\" & AD341),0)","v":{"v":0,"d":"0.00"}},{"$f":"IF(Setup!$AH$7<>\"\",INDIRECT(\"'\" & Setup!$AH$7 & \"'!\" & AE341),0) + IF(Setup!$AH$8<>\"\",INDIRECT(\"'\" & Setup!$AH$8 & \"'!\" & AE341),0) + IF(Setup!$AH$9<>\"\",INDIRECT(\"'\" & Setup!$AH$9 & \"'!\" & AE341),0) + IF(Setup!$AH$10<>\"\",INDIRECT(\"'\" & Setup!$AH$10 & \"'!\" & AE341),0) + IF(Setup!$AH$11<>\"\",INDIRECT(\"'\" & Setup!$AH$11 & \"'!\" & AE341),0) + IF(Setup!$AH$12<>\"\",INDIRECT(\"'\" & Setup!$AH$12 & \"'!\" & AE341),0)","v":{"v":0,"d":"0.00"}},"","",{"$f":"IF(Setup!$AI$7<>\"\",INDIRECT(\"'\" & Setup!$AI$7 & \"'!\" & AD341),0) + IF(Setup!$AI$8<>\"\",INDIRECT(\"'\" & Setup!$AI$8 & \"'!\" & AD341),0) + IF(Setup!$AI$9<>\"\",INDIRECT(\"'\" & Setup!$AI$9 & \"'!\" & AD341),0) + IF(Setup!$AI$10<>\"\",INDIRECT(\"'\" & Setup!$AI$10 & \"'!\" & AD341),0) + IF(Setup!$AI$11<>\"\",INDIRECT(\"'\" & Setup!$AI$11 & \"'!\" & AD341),0) + IF(Setup!$AI$12<>\"\",INDIRECT(\"'\" & Setup!$AI$12 & \"'!\" & AD341),0)","v":{"v":0,"d":"0.00"}},{"$f":"IF(Setup!$AI$7<>\"\",INDIRECT(\"'\" & Setup!$AI$7 & \"'!\" & AE341),0) + IF(Setup!$AI$8<>\"\",INDIRECT(\"'\" & Setup!$AI$8 & \"'!\" & AE341),0) + IF(Setup!$AI$9<>\"\",INDIRECT(\"'\" & Setup!$AI$9 & \"'!\" & AE341),0) + IF(Setup!$AI$10<>\"\",INDIRECT(\"'\" & Setup!$AI$10 & \"'!\" & AE341),0) + IF(Setup!$AI$11<>\"\",INDIRECT(\"'\" & Setup!$AI$11 & \"'!\" & AE341),0) + IF(Setup!$AI$12<>\"\",INDIRECT(\"'\" & Setup!$AI$12 & \"'!\" & AE341),0)","v":{"v":0,"d":"0.00"}},"","",{"$f":"IF(Setup!$AJ$7<>\"\",INDIRECT(\"'\" & Setup!$AJ$7 & \"'!\" & AD341),0) + IF(Setup!$AJ$8<>\"\",INDIRECT(\"'\" & Setup!$AJ$8 & \"'!\" & AD341),0) + IF(Setup!$AJ$9<>\"\",INDIRECT(\"'\" & Setup!$AJ$9 & \"'!\" & AD341),0) + IF(Setup!$AJ$10<>\"\",INDIRECT(\"'\" & Setup!$AJ$10 & \"'!\" & AD341),0) + IF(Setup!$AJ$11<>\"\",INDIRECT(\"'\" & Setup!$AJ$11 & \"'!\" & AD341),0) + IF(Setup!$AJ$12<>\"\",INDIRECT(\"'\" & Setup!$AJ$12 & \"'!\" & AD341),0)","v":0},{"$f":"IF(Setup!$AJ$7<>\"\",INDIRECT(\"'\" & Setup!$AJ$7 & \"'!\" & AE341),0) + IF(Setup!$AJ$8<>\"\",INDIRECT(\"'\" & Setup!$AJ$8 & \"'!\" & AE341),0) + IF(Setup!$AJ$9<>\"\",INDIRECT(\"'\" & Setup!$AJ$9 & \"'!\" & AE341),0) + IF(Setup!$AJ$10<>\"\",INDIRECT(\"'\" & Setup!$AJ$10 & \"'!\" & AE341),0) + IF(Setup!$AJ$11<>\"\",INDIRECT(\"'\" & Setup!$AJ$11 & \"'!\" & AE341),0) + IF(Setup!$AJ$12<>\"\",INDIRECT(\"'\" & Setup!$AJ$12 & \"'!\" & AE341),0)","v":0},"","",{"$f":"Planning!H113","v":0},"00","M129","O129","N129",null,null,{"$f":"IF(Setup!$AG$7<>\"\",INDIRECT(\"'\" & Setup!$AG$7 & \"'!\" & AF341),0) + IF(Setup!$AG$8<>\"\",INDIRECT(\"'\" & Setup!$AG$8 & \"'!\" & AF341),0) + IF(Setup!$AG$9<>\"\",INDIRECT(\"'\" & Setup!$AG$9 & \"'!\" & AF341),0) + IF(Setup!$AG$10<>\"\",INDIRECT(\"'\" & Setup!$AG$10 & \"'!\" & AF341),0) + IF(Setup!$AG$11<>\"\",INDIRECT(\"'\" & Setup!$AG$11 & \"'!\" & AF341),0) + IF(Setup!$AG$12<>\"\",INDIRECT(\"'\" & Setup!$AG$12 & \"'!\" & AF341),0)","v":0},{"$f":"IF(Setup!$AH$7<>\"\",INDIRECT(\"'\" & Setup!$AH$7 & \"'!\" & AF341),0) + IF(Setup!$AH$8<>\"\",INDIRECT(\"'\" & Setup!$AH$8 & \"'!\" & AF341),0) + IF(Setup!$AH$9<>\"\",INDIRECT(\"'\" & Setup!$AH$9 & \"'!\" & AF341),0) + IF(Setup!$AH$10<>\"\",INDIRECT(\"'\" & Setup!$AH$10 & \"'!\" & AF341),0) + IF(Setup!$AH$11<>\"\",INDIRECT(\"'\" & Setup!$AH$11 & \"'!\" & AF341),0) + IF(Setup!$AH$12<>\"\",INDIRECT(\"'\" & Setup!$AH$12 & \"'!\" & AF341),0)","v":0},{"$f":"IF(Setup!$AI$7<>\"\",INDIRECT(\"'\" & Setup!$AI$7 & \"'!\" & AF341),0) + IF(Setup!$AI$8<>\"\",INDIRECT(\"'\" & Setup!$AI$8 & \"'!\" & AF341),0) + IF(Setup!$AI$9<>\"\",INDIRECT(\"'\" & Setup!$AI$9 & \"'!\" & AF341),0) + IF(Setup!$AI$10<>\"\",INDIRECT(\"'\" & Setup!$AI$10 & \"'!\" & AF341),0) + IF(Setup!$AI$11<>\"\",INDIRECT(\"'\" & Setup!$AI$11 & \"'!\" & AF341),0) + IF(Setup!$AI$12<>\"\",INDIRECT(\"'\" & Setup!$AI$12 & \"'!\" & AF341),0)","v":0},{"$f":"IF(Setup!$AJ$7<>\"\",INDIRECT(\"'\" & Setup!$AJ$7 & \"'!\" & AF341),0) + IF(Setup!$AJ$8<>\"\",INDIRECT(\"'\" & Setup!$AJ$8 & \"'!\" & AF341),0) + IF(Setup!$AJ$9<>\"\",INDIRECT(\"'\" & Setup!$AJ$9 & \"'!\" & AF341),0) + IF(Setup!$AJ$10<>\"\",INDIRECT(\"'\" & Setup!$AJ$10 & \"'!\" & AF341),0) + IF(Setup!$AJ$11<>\"\",INDIRECT(\"'\" & Setup!$AJ$11 & \"'!\" & AF341),0) + IF(Setup!$AJ$12<>\"\",INDIRECT(\"'\" & Setup!$AJ$12 & \"'!\" & AF341),0)","v":0},null,"",{"$nulls":30},0,{"$f":"IF(Setup!$AH$7=\"\",0,INDIRECT(\"'\" & Setup!$AH$7 & \"'!\" & AF341))","v":0},{"$f":"IF(Setup!$AI$7=\"\",0,INDIRECT(\"'\" & Setup!$AI$7 & \"'!\" & AF341))","v":0},{"$f":"IF(Setup!$AJ$7=\"\",0,INDIRECT(\"'\" & Setup!$AJ$7 & \"'!\" & AF341))","v":0}]
[{"$f":"Planning!A114","v":"I106"},{"$f":"Planning!B114","v":0},{"$f":"Planning!C114","v":0},{"$f":"Planning!D114","v":0},{"$f":"Planning!E114","v":0},{"$f":"Planning!G114","v":0},0,{"v":0,"d":"0.00"},{"v":0,"d":"0.00"},"","",{"$f":"IF(Setup!$AG$7<>\"\",INDIRECT(\"'\" & Setup!$AG$7 & \"'!\" & AD342),0) + IF(Setup!$AG$8<>\"\",INDIRECT(\"'\" & Setup!$AG$8 & \"'!\" & AD342),0) + IF(Setup!$AG$9<>\"\",INDIRECT(\"'\" & Setup!$AG$9 & \"'!\" & AD342),0) + IF(Setup!$AG$10<>\"\",INDIRECT(\"'\" & Setup!$AG$10 & \"'!\" & AD342),0) + IF(Setup!$AG$11<>\"\",INDIRECT(\"'\" & Setup!$AG$11 & \"'!\" & AD342),0) + IF(Setup!$AG$12<>\"\",INDIRECT(\"'\" & Setup!$AG$12 & \"'!\" & AD342),0)","v":{"v":0,"d":"0.00"}},{"$f":"IF(Setup!$AG$7<>\"\",INDIRECT(\"'\" & Setup!$AG$7 & \"'!\" & AE342),0) + IF(Setup!$AG$8<>\"\",INDIRECT(\"'\" & Setup!$AG$8 & \"'!\" & AE342),0) + IF(Setup!$AG$9<>\"\",INDIRECT(\"'\" & Setup!$AG$9 & \"'!\" & AE342),0) + IF(Setup!$AG$10<>\"\",INDIRECT(\"'\" & Setup!$AG$10 & \"'!\" & AE342),0) + IF(Setup!$AG$11<>\"\",INDIRECT(\"'\" & Setup!$AG$11 & \"'!\" & AE342),0) + IF(Setup!$AG$12<>\"\",INDIRECT(\"'\" & Setup!$AG$12 & \"'!\" & AE342),0)","v":{"v":0,"d":"0.00"}},"","",{"$f":"IF(Setup!$AH$7<>\"\",INDIRECT(\"'\" & Setup!$AH$7 & \"'!\" & AD342),0) + IF(Setup!$AH$8<>\"\",INDIRECT(\"'\" & Setup!$AH$8 & \"'!\" & AD342),0) + IF(Setup!$AH$9<>\"\",INDIRECT(\"'\" & Setup!$AH$9 & \"'!\" & AD342),0) + IF(Setup!$AH$10<>\"\",INDIRECT(\"'\" & Setup!$AH$10 & \"'!\" & AD342),0) + IF(Setup!$AH$11<>\"\",INDIRECT(\"'\" & Setup!$AH$11 & \"'!\" & AD342),0) + IF(Setup!$AH$12<>\"\",INDIRECT(\"'\" & Setup!$AH$12 & \"'!\" & AD342),0)","v":{"v":0,"d":"0.00"}},{"$f":"IF(Setup!$AH$7<>\"\",INDIRECT(\"'\" & Setup!$AH$7 & \"'!\" & AE342),0) + IF(Setup!$AH$8<>\"\",INDIRECT(\"'\" & Setup!$AH$8 & \"'!\" & AE342),0) + IF(Setup!$AH$9<>\"\",INDIRECT(\"'\" & Setup!$AH$9 & \"'!\" & AE342),0) + IF(Setup!$AH$10<>\"\",INDIRECT(\"'\" & Setup!$AH$10 & \"'!\" & AE342),0) + IF(Setup!$AH$11<>\"\",INDIRECT(\"'\" & Setup!$AH$11 & \"'!\" & AE342),0) + IF(Setup!$AH$12<>\"\",INDIRECT(\"'\" & Setup!$AH$12 & \"'!\" & AE342),0)","v":{"v":0,"d":"0.00"}},"","",{"$f":"IF(Setup!$AI$7<>\"\",INDIRECT(\"'\" & Setup!$AI$7 & \"'!\" & AD342),0) + IF(Setup!$AI$8<>\"\",INDIRECT(\"'\" & Setup!$AI$8 & \"'!\" & AD342),0) + IF(Setup!$AI$9<>\"\",INDIRECT(\"'\" & Setup!$AI$9 & \"'!\" & AD342),0) + IF(Setup!$AI$10<>\"\",INDIRECT(\"'\" & Setup!$AI$10 & \"'!\" & AD342),0) + IF(Setup!$AI$11<>\"\",INDIRECT(\"'\" & Setup!$AI$11 & \"'!\" & AD342),0) + IF(Setup!$AI$12<>\"\",INDIRECT(\"'\" & Setup!$AI$12 & \"'!\" & AD342),0)","v":{"v":0,"d":"0.00"}},{"$f":"IF(Setup!$AI$7<>\"\",INDIRECT(\"'\" & Setup!$AI$7 & \"'!\" & AE342),0) + IF(Setup!$AI$8<>\"\",INDIRECT(\"'\" & Setup!$AI$8 & \"'!\" & AE342),0) + IF(Setup!$AI$9<>\"\",INDIRECT(\"'\" & Setup!$AI$9 & \"'!\" & AE342),0) + IF(Setup!$AI$10<>\"\",INDIRECT(\"'\" & Setup!$AI$10 & \"'!\" & AE342),0) + IF(Setup!$AI$11<>\"\",INDIRECT(\"'\" & Setup!$AI$11 & \"'!\" & AE342),0) + IF(Setup!$AI$12<>\"\",INDIRECT(\"'\" & Setup!$AI$12 & \"'!\" & AE342),0)","v":{"v":0,"d":"0.00"}},"","",{"$f":"IF(Setup!$AJ$7<>\"\",INDIRECT(\"'\" & Setup!$AJ$7 & \"'!\" & AD342),0) + IF(Setup!$AJ$8<>\"\",INDIRECT(\"'\" & Setup!$AJ$8 & \"'!\" & AD342),0) + IF(Setup!$AJ$9<>\"\",INDIRECT(\"'\" & Setup!$AJ$9 & \"'!\" & AD342),0) + IF(Setup!$AJ$10<>\"\",INDIRECT(\"'\" & Setup!$AJ$10 & \"'!\" & AD342),0) + IF(Setup!$AJ$11<>\"\",INDIRECT(\"'\" & Setup!$AJ$11 & \"'!\" & AD342),0) + IF(Setup!$AJ$12<>\"\",INDIRECT(\"'\" & Setup!$AJ$12 & \"'!\" & AD342),0)","v":0},{"$f":"IF(Setup!$AJ$7<>\"\",INDIRECT(\"'\" & Setup!$AJ$7 & \"'!\" & AE342),0) + IF(Setup!$AJ$8<>\"\",INDIRECT(\"'\" & Setup!$AJ$8 & \"'!\" & AE342),0) + IF(Setup!$AJ$9<>\"\",INDIRECT(\"'\" & Setup!$AJ$9 & \"'!\" & AE342),0) + IF(Setup!$AJ$10<>\"\",INDIRECT(\"'\" & Setup!$AJ$10 & \"'!\" & AE342),0) + IF(Setup!$AJ$11<>\"\",INDIRECT(\"'\" & Setup!$AJ$11 & \"'!\" & AE342),0) + IF(Setup!$AJ$12<>\"\",INDIRECT(\"'\" & Setup!$AJ$12 & \"'!\" & AE342),0)","v":0},"","",{"$f":"Planning!H114","v":0},"00","M130","O130","N130",null,null,{"$f":"IF(Setup!$AG$7<>\"\",INDIRECT(\"'\" & Setup!$AG$7 & \"'!\" & AF342),0) + IF(Setup!$AG$8<>\"\",INDIRECT(\"'\" & Setup!$AG$8 & \"'!\" & AF342),0) + IF(Setup!$AG$9<>\"\",INDIRECT(\"'\" & Setup!$AG$9 & \"'!\" & AF342),0) + IF(Setup!$AG$10<>\"\",INDIRECT(\"'\" & Setup!$AG$10 & \"'!\" & AF342),0) + IF(Setup!$AG$11<>\"\",INDIRECT(\"'\" & Setup!$AG$11 & \"'!\" & AF342),0) + IF(Setup!$AG$12<>\"\",INDIRECT(\"'\" & Setup!$AG$12 & \"'!\" & AF342),0)","v":0},{"$f":"IF(Setup!$AH$7<>\"\",INDIRECT(\"'\" & Setup!$AH$7 & \"'!\" & AF342),0) + IF(Setup!$AH$8<>\"\",INDIRECT(\"'\" & Setup!$AH$8 & \"'!\" & AF342),0) + IF(Setup!$AH$9<>\"\",INDIRECT(\"'\" & Setup!$AH$9 & \"'!\" & AF342),0) + IF(Setup!$AH$10<>\"\",INDIRECT(\"'\" & Setup!$AH$10 & \"'!\" & AF342),0) + IF(Setup!$AH$11<>\"\",INDIRECT(\"'\" & Setup!$AH$11 & \"'!\" & AF342),0) + IF(Setup!$AH$12<>\"\",INDIRECT(\"'\" & Setup!$AH$12 & \"'!\" & AF342),0)","v":0},{"$f":"IF(Setup!$AI$7<>\"\",INDIRECT(\"'\" & Setup!$AI$7 & \"'!\" & AF342),0) + IF(Setup!$AI$8<>\"\",INDIRECT(\"'\" & Setup!$AI$8 & \"'!\" & AF342),0) + IF(Setup!$AI$9<>\"\",INDIRECT(\"'\" & Setup!$AI$9 & \"'!\" & AF342),0) + IF(Setup!$AI$10<>\"\",INDIRECT(\"'\" & Setup!$AI$10 & \"'!\" & AF342),0) + IF(Setup!$AI$11<>\"\",INDIRECT(\"'\" & Setup!$AI$11 & \"'!\" & AF342),0) + IF(Setup!$AI$12<>\"\",INDIRECT(\"'\" & Setup!$AI$12 & \"'!\" & AF342),0)","v":0},{"$f":"IF(Setup!$AJ$7<>\"\",INDIRECT(\"'\" & Setup!$AJ$7 & \"'!\" & AF342),0) + IF(Setup!$AJ$8<>\"\",INDIRECT(\"'\" & Setup!$AJ$8 & \"'!\" & AF342),0) + IF(Setup!$AJ$9<>\"\",INDIRECT(\"'\" & Setup!$AJ$9 & \"'!\" & AF342),0) + IF(Setup!$AJ$10<>\"\",INDIRECT(\"'\" & Setup!$AJ$10 & \"'!\" & AF342),0) + IF(Setup!$AJ$11<>\"\",INDIRECT(\"'\" & Setup!$AJ$11 & \"'!\" & AF342),0) + IF(Setup!$AJ$12<>\"\",INDIRECT(\"'\" & Setup!$AJ$12 & \"'!\" & AF342),0)","v":0},null,"",{"$nulls":30},0,{"$f":"IF(Setup!$AH$7=\"\",0,INDIRECT(\"'\" & Setup!$AH$7 & \"'!\" & AF342))","v":0},{"$f":"IF(Setup!$AI$7=\"\",0,INDIRECT(\"'\" & Setup!$AI$7 & \"'!\" & AF342))","v":0},{"$f":"IF(Setup!$AJ$7=\"\",0,INDIRECT(\"'\" & Setup!$AJ$7 & \"'!\" & AF342))","v":0}]
[{"$f":"Planning!A115","v":"I107"},{"$f":"Planning!B115","v":0},{"$f":"Planning!C115","v":0},{"$f":"Planning!D115","v":0},{"$f":"Planning!E115","v":0},{"$f":"Planning!G115","v":0},0,{"v":0,"d":"0.00"},{"v":0,"d":"0.00"},"","",{"$f":"IF(Setup!$AG$7<>\"\",INDIRECT(\"'\" & Setup!$AG$7 & \"'!\" & AD343),0) + IF(Setup!$AG$8<>\"\",INDIRECT(\"'\" & Setup!$AG$8 & \"'!\" & AD343),0) + IF(Setup!$AG$9<>\"\",INDIRECT(\"'\" & Setup!$AG$9 & \"'!\" & AD343),0) + IF(Setup!$AG$10<>\"\",INDIRECT(\"'\" & Setup!$AG$10 & \"'!\" & AD343),0) + IF(Setup!$AG$11<>\"\",INDIRECT(\"'\" & Setup!$AG$11 & \"'!\" & AD343),0) + IF(Setup!$AG$12<>\"\",INDIRECT(\"'\" & Setup!$AG$12 & \"'!\" & AD343),0)","v":{"v":0,"d":"0.00"}},{"$f":"IF(Setup!$AG$7<>\"\",INDIRECT(\"'\" & Setup!$AG$7 & \"'!\" & AE343),0) + IF(Setup!$AG$8<>\"\",INDIRECT(\"'\" & Setup!$AG$8 & \"'!\" & AE343),0) + IF(Setup!$AG$9<>\"\",INDIRECT(\"'\" & Setup!$AG$9 & \"'!\" & AE343),0) + IF(Setup!$AG$10<>\"\",INDIRECT(\"'\" & Setup!$AG$10 & \"'!\" & AE343),0) + IF(Setup!$AG$11<>\"\",INDIRECT(\"'\" & Setup!$AG$11 & \"'!\" & AE343),0) + IF(Setup!$AG$12<>\"\",INDIRECT(\"'\" & Setup!$AG$12 & \"'!\" & AE343),0)","v":{"v":0,"d":"0.00"}},"","",{"$f":"IF(Setup!$AH$7<>\"\",INDIRECT(\"'\" & Setup!$AH$7 & \"'!\" & AD343),0) + IF(Setup!$AH$8<>\"\",INDIRECT(\"'\" & Setup!$AH$8 & \"'!\" & AD343),0) + IF(Setup!$AH$9<>\"\",INDIRECT(\"'\" & Setup!$AH$9 & \"'!\" & AD343),0) + IF(Setup!$AH$10<>\"\",INDIRECT(\"'\" & Setup!$AH$10 & \"'!\" & AD343),0) + IF(Setup!$AH$11<>\"\",INDIRECT(\"'\" & Setup!$AH$11 & \"'!\" & AD343),0) + IF(Setup!$AH$12<>\"\",INDIRECT(\"'\" & Setup!$AH$12 & \"'!\" & AD343),0)","v":{"v":0,"d":"0.00"}},{"$f":"IF(Setup!$AH$7<>\"\",INDIRECT(\"'\" & Setup!$AH$7 & \"'!\" & AE343),0) + IF(Setup!$AH$8<>\"\",INDIRECT(\"'\" & Setup!$AH$8 & \"'!\" & AE343),0) + IF(Setup!$AH$9<>\"\",INDIRECT(\"'\" & Setup!$AH$9 & \"'!\" & AE343),0) + IF(Setup!$AH$10<>\"\",INDIRECT(\"'\" & Setup!$AH$10 & \"'!\" & AE343),0) + IF(Setup!$AH$11<>\"\",INDIRECT(\"'\" & Setup!$AH$11 & \"'!\" & AE343),0) + IF(Setup!$AH$12<>\"\",INDIRECT(\"'\" & Setup!$AH$12 & \"'!\" & AE343),0)","v":{"v":0,"d":"0.00"}},"","",{"$f":"IF(Setup!$AI$7<>\"\",INDIRECT(\"'\" & Setup!$AI$7 & \"'!\" & AD343),0) + IF(Setup!$AI$8<>\"\",INDIRECT(\"'\" & Setup!$AI$8 & \"'!\" & AD343),0) + IF(Setup!$AI$9<>\"\",INDIRECT(\"'\" & Setup!$AI$9 & \"'!\" & AD343),0) + IF(Setup!$AI$10<>\"\",INDIRECT(\"'\" & Setup!$AI$10 & \"'!\" & AD343),0) + IF(Setup!$AI$11<>\"\",INDIRECT(\"'\" & Setup!$AI$11 & \"'!\" & AD343),0) + IF(Setup!$AI$12<>\"\",INDIRECT(\"'\" & Setup!$AI$12 & \"'!\" & AD343),0)","v":{"v":0,"d":"0.00"}},{"$f":"IF(Setup!$AI$7<>\"\",INDIRECT(\"'\" & Setup!$AI$7 & \"'!\" & AE343),0) + IF(Setup!$AI$8<>\"\",INDIRECT(\"'\" & Setup!$AI$8 & \"'!\" & AE343),0) + IF(Setup!$AI$9<>\"\",INDIRECT(\"'\" & Setup!$AI$9 & \"'!\" & AE343),0) + IF(Setup!$AI$10<>\"\",INDIRECT(\"'\" & Setup!$AI$10 & \"'!\" & AE343),0) + IF(Setup!$AI$11<>\"\",INDIRECT(\"'\" & Setup!$AI$11 & \"'!\" & AE343),0) + IF(Setup!$AI$12<>\"\",INDIRECT(\"'\" & Setup!$AI$12 & \"'!\" & AE343),0)","v":{"v":0,"d":"0.00"}},"","",{"$f":"IF(Setup!$AJ$7<>\"\",INDIRECT(\"'\" & Setup!$AJ$7 & \"'!\" & AD343),0) + IF(Setup!$AJ$8<>\"\",INDIRECT(\"'\" & Setup!$AJ$8 & \"'!\" & AD343),0) + IF(Setup!$AJ$9<>\"\",INDIRECT(\"'\" & Setup!$AJ$9 & \"'!\" & AD343),0) + IF(Setup!$AJ$10<>\"\",INDIRECT(\"'\" & Setup!$AJ$10 & \"'!\" & AD343),0) + IF(Setup!$AJ$11<>\"\",INDIRECT(\"'\" & Setup!$AJ$11 & \"'!\" & AD343),0) + IF(Setup!$AJ$12<>\"\",INDIRECT(\"'\" & Setup!$AJ$12 & \"'!\" & AD343),0)","v":0},{"$f":"IF(Setup!$AJ$7<>\"\",INDIRECT(\"'\" & Setup!$AJ$7 & \"'!\" & AE343),0) + IF(Setup!$AJ$8<>\"\",INDIRECT(\"'\" & Setup!$AJ$8 & \"'!\" & AE343),0) + IF(Setup!$AJ$9<>\"\",INDIRECT(\"'\" & Setup!$AJ$9 & \"'!\" & AE343),0) + IF(Setup!$AJ$10<>\"\",INDIRECT(\"'\" & Setup!$AJ$10 & \"'!\" & AE343),0) + IF(Setup!$AJ$11<>\"\",INDIRECT(\"'\" & Setup!$AJ$11 & \"'!\" & AE343),0) + IF(Setup!$AJ$12<>\"\",INDIRECT(\"'\" & Setup!$AJ$12 & \"'!\" & AE343),0)","v":0},"","",{"$f":"Planning!H115","v":0},"00","M131","O131","N131",null,null,{"$f":"IF(Setup!$AG$7<>\"\",INDIRECT(\"'\" & Setup!$AG$7 & \"'!\" & AF343),0) + IF(Setup!$AG$8<>\"\",INDIRECT(\"'\" & Setup!$AG$8 & \"'!\" & AF343),0) + IF(Setup!$AG$9<>\"\",INDIRECT(\"'\" & Setup!$AG$9 & \"'!\" & AF343),0) + IF(Setup!$AG$10<>\"\",INDIRECT(\"'\" & Setup!$AG$10 & \"'!\" & AF343),0) + IF(Setup!$AG$11<>\"\",INDIRECT(\"'\" & Setup!$AG$11 & \"'!\" & AF343),0) + IF(Setup!$AG$12<>\"\",INDIRECT(\"'\" & Setup!$AG$12 & \"'!\" & AF343),0)","v":0},{"$f":"IF(Setup!$AH$7<>\"\",INDIRECT(\"'\" & Setup!$AH$7 & \"'!\" & AF343),0) + IF(Setup!$AH$8<>\"\",INDIRECT(\"'\" & Setup!$AH$8 & \"'!\" & AF343),0) + IF(Setup!$AH$9<>\"\",INDIRECT(\"'\" & Setup!$AH$9 & \"'!\" & AF343),0) + IF(Setup!$AH$10<>\"\",INDIRECT(\"'\" & Setup!$AH$10 & \"'!\" & AF343),0) + IF(Setup!$AH$11<>\"\",INDIRECT(\"'\" & Setup!$AH$11 & \"'!\" & AF343),0) + IF(Setup!$AH$12<>\"\",INDIRECT(\"'\" & Setup!$AH$12 & \"'!\" & AF343),0)","v":0},{"$f":"IF(Setup!$AI$7<>\"\",INDIRECT(\"'\" & Setup!$AI$7 & \"'!\" & AF343),0) + IF(Setup!$AI$8<>\"\",INDIRECT(\"'\" & Setup!$AI$8 & \"'!\" & AF343),0) + IF(Setup!$AI$9<>\"\",INDIRECT(\"'\" & Setup!$AI$9 & \"'!\" & AF343),0) + IF(Setup!$AI$10<>\"\",INDIRECT(\"'\" & Setup!$AI$10 & \"'!\" & AF343),0) + IF(Setup!$AI$11<>\"\",INDIRECT(\"'\" & Setup!$AI$11 & \"'!\" & AF343),0) + IF(Setup!$AI$12<>\"\",INDIRECT(\"'\" & Setup!$AI$12 & \"'!\" & AF343),0)","v":0},{"$f":"IF(Setup!$AJ$7<>\"\",INDIRECT(\"'\" & Setup!$AJ$7 & \"'!\" & AF343),0) + IF(Setup!$AJ$8<>\"\",INDIRECT(\"'\" & Setup!$AJ$8 & \"'!\" & AF343),0) + IF(Setup!$AJ$9<>\"\",INDIRECT(\"'\" & Setup!$AJ$9 & \"'!\" & AF343),0) + IF(Setup!$AJ$10<>\"\",INDIRECT(\"'\" & Setup!$AJ$10 & \"'!\" & AF343),0) + IF(Setup!$AJ$11<>\"\",INDIRECT(\"'\" & Setup!$AJ$11 & \"'!\" & AF343),0) + IF(Setup!$AJ$12<>\"\",INDIRECT(\"'\" & Setup!$AJ$12 & \"'!\" & AF343),0)","v":0},null,"",{"$nulls":30},0,{"$f":"IF(Setup!$AH$7=\"\",0,INDIRECT(\"'\" & Setup!$AH$7 & \"'!\" & AF343))","v":0},{"$f":"IF(Setup!$AI$7=\"\",0,INDIRECT(\"'\" & Setup!$AI$7 & \"'!\" & AF343))","v":0},{"$f":"IF(Setup!$AJ$7=\"\",0,INDIRECT(\"'\" & Setup!$AJ$7 & \"'!\" & AF343))","v":0}]
[{"$f":"Planning!A116","v":"I108"},{"$f":"Planning!B116","v":0},{"$f":"Planning!C116","v":0},{"$f":"Planning!D116","v":0},{"$f":"Planning!E116","v":0},{"$f":"Planning!G116","v":0},0,{"v":0,"d":"0.00"},{"v":0,"d":"0.00"},"","",{"$f":"IF(Setup!$AG$7<>\"\",INDIRECT(\"'\" & Setup!$AG$7 & \"'!\" & AD344),0) + IF(Setup!$AG$8<>\"\",INDIRECT(\"'\" & Setup!$AG$8 & \"'!\" & AD344),0) + IF(Setup!$AG$9<>\"\",INDIRECT(\"'\" & Setup!$AG$9 & \"'!\" & AD344),0) + IF(Setup!$AG$10<>\"\",INDIRECT(\"'\" & Setup!$AG$10 & \"'!\" & AD344),0) + IF(Setup!$AG$11<>\"\",INDIRECT(\"'\" & Setup!$AG$11 & \"'!\" & AD344),0) + IF(Setup!$AG$12<>\"\",INDIRECT(\"'\" & Setup!$AG$12 & \"'!\" & AD344),0)","v":{"v":0,"d":"0.00"}},{"$f":"IF(Setup!$AG$7<>\"\",INDIRECT(\"'\" & Setup!$AG$7 & \"'!\" & AE344),0) + IF(Setup!$AG$8<>\"\",INDIRECT(\"'\" & Setup!$AG$8 & \"'!\" & AE344),0) + IF(Setup!$AG$9<>\"\",INDIRECT(\"'\" & Setup!$AG$9 & \"'!\" & AE344),0) + IF(Setup!$AG$10<>\"\",INDIRECT(\"'\" & Setup!$AG$10 & \"'!\" & AE344),0) + IF(Setup!$AG$11<>\"\",INDIRECT(\"'\" & Setup!$AG$11 & \"'!\" & AE344),0) + IF(Setup!$AG$12<>\"\",INDIRECT(\"'\" & Setup!$AG$12 & \"'!\" & AE344),0)","v":{"v":0,"d":"0.00"}},"","",{"$f":"IF(Setup!$AH$7<>\"\",INDIRECT(\"'\" & Setup!$AH$7 & \"'!\" & AD344),0) + IF(Setup!$AH$8<>\"\",INDIRECT(\"'\" & Setup!$AH$8 & \"'!\" & AD344),0) + IF(Setup!$AH$9<>\"\",INDIRECT(\"'\" & Setup!$AH$9 & \"'!\" & AD344),0) + IF(Setup!$AH$10<>\"\",INDIRECT(\"'\" & Setup!$AH$10 & \"'!\" & AD344),0) + IF(Setup!$AH$11<>\"\",INDIRECT(\"'\" & Setup!$AH$11 & \"'!\" & AD344),0) + IF(Setup!$AH$12<>\"\",INDIRECT(\"'\" & Setup!$AH$12 & \"'!\" & AD344),0)","v":{"v":0,"d":"0.00"}},{"$f":"IF(Setup!$AH$7<>\"\",INDIRECT(\"'\" & Setup!$AH$7 & \"'!\" & AE344),0) + IF(Setup!$AH$8<>\"\",INDIRECT(\"'\" & Setup!$AH$8 & \"'!\" & AE344),0) + IF(Setup!$AH$9<>\"\",INDIRECT(\"'\" & Setup!$AH$9 & \"'!\" & AE344),0) + IF(Setup!$AH$10<>\"\",INDIRECT(\"'\" & Setup!$AH$10 & \"'!\" & AE344),0) + IF(Setup!$AH$11<>\"\",INDIRECT(\"'\" & Setup!$AH$11 & \"'!\" & AE344),0) + IF(Setup!$AH$12<>\"\",INDIRECT(\"'\" & Setup!$AH$12 & \"'!\" & AE344),0)","v":{"v":0,"d":"0.00"}},"","",{"$f":"IF(Setup!$AI$7<>\"\",INDIRECT(\"'\" & Setup!$AI$7 & \"'!\" & AD344),0) + IF(Setup!$AI$8<>\"\",INDIRECT(\"'\" & Setup!$AI$8 & \"'!\" & AD344),0) + IF(Setup!$AI$9<>\"\",INDIRECT(\"'\" & Setup!$AI$9 & \"'!\" & AD344),0) + IF(Setup!$AI$10<>\"\",INDIRECT(\"'\" & Setup!$AI$10 & \"'!\" & AD344),0) + IF(Setup!$AI$11<>\"\",INDIRECT(\"'\" & Setup!$AI$11 & \"'!\" & AD344),0) + IF(Setup!$AI$12<>\"\",INDIRECT(\"'\" & Setup!$AI$12 & \"'!\" & AD344),0)","v":{"v":0,"d":"0.00"}},{"$f":"IF(Setup!$AI$7<>\"\",INDIRECT(\"'\" & Setup!$AI$7 & \"'!\" & AE344),0) + IF(Setup!$AI$8<>\"\",INDIRECT(\"'\" & Setup!$AI$8 & \"'!\" & AE344),0) + IF(Setup!$AI$9<>\"\",INDIRECT(\"'\" & Setup!$AI$9 & \"'!\" & AE344),0) + IF(Setup!$AI$10<>\"\",INDIRECT(\"'\" & Setup!$AI$10 & \"'!\" & AE344),0) + IF(Setup!$AI$11<>\"\",INDIRECT(\"'\" & Setup!$AI$11 & \"'!\" & AE344),0) + IF(Setup!$AI$12<>\"\",INDIRECT(\"'\" & Setup!$AI$12 & \"'!\" & AE344),0)","v":{"v":0,"d":"0.00"}},"","",{"$f":"IF(Setup!$AJ$7<>\"\",INDIRECT(\"'\" & Setup!$AJ$7 & \"'!\" & AD344),0) + IF(Setup!$AJ$8<>\"\",INDIRECT(\"'\" & Setup!$AJ$8 & \"'!\" & AD344),0) + IF(Setup!$AJ$9<>\"\",INDIRECT(\"'\" & Setup!$AJ$9 & \"'!\" & AD344),0) + IF(Setup!$AJ$10<>\"\",INDIRECT(\"'\" & Setup!$AJ$10 & \"'!\" & AD344),0) + IF(Setup!$AJ$11<>\"\",INDIRECT(\"'\" & Setup!$AJ$11 & \"'!\" & AD344),0) + IF(Setup!$AJ$12<>\"\",INDIRECT(\"'\" & Setup!$AJ$12 & \"'!\" & AD344),0)","v":0},{"$f":"IF(Setup!$AJ$7<>\"\",INDIRECT(\"'\" & Setup!$AJ$7 & \"'!\" & AE344),0) + IF(Setup!$AJ$8<>\"\",INDIRECT(\"'\" & Setup!$AJ$8 & \"'!\" & AE344),0) + IF(Setup!$AJ$9<>\"\",INDIRECT(\"'\" & Setup!$AJ$9 & \"'!\" & AE344),0) + IF(Setup!$AJ$10<>\"\",INDIRECT(\"'\" & Setup!$AJ$10 & \"'!\" & AE344),0) + IF(Setup!$AJ$11<>\"\",INDIRECT(\"'\" & Setup!$AJ$11 & \"'!\" & AE344),0) + IF(Setup!$AJ$12<>\"\",INDIRECT(\"'\" & Setup!$AJ$12 & \"'!\" & AE344),0)","v":0},"","",{"$f":"Planning!H116","v":0},"00","M132","O132","N132",null,null,{"$f":"IF(Setup!$AG$7<>\"\",INDIRECT(\"'\" & Setup!$AG$7 & \"'!\" & AF344),0) + IF(Setup!$AG$8<>\"\",INDIRECT(\"'\" & Setup!$AG$8 & \"'!\" & AF344),0) + IF(Setup!$AG$9<>\"\",INDIRECT(\"'\" & Setup!$AG$9 & \"'!\" & AF344),0) + IF(Setup!$AG$10<>\"\",INDIRECT(\"'\" & Setup!$AG$10 & \"'!\" & AF344),0) + IF(Setup!$AG$11<>\"\",INDIRECT(\"'\" & Setup!$AG$11 & \"'!\" & AF344),0) + IF(Setup!$AG$12<>\"\",INDIRECT(\"'\" & Setup!$AG$12 & \"'!\" & AF344),0)","v":0},{"$f":"IF(Setup!$AH$7<>\"\",INDIRECT(\"'\" & Setup!$AH$7 & \"'!\" & AF344),0) + IF(Setup!$AH$8<>\"\",INDIRECT(\"'\" & Setup!$AH$8 & \"'!\" & AF344),0) + IF(Setup!$AH$9<>\"\",INDIRECT(\"'\" & Setup!$AH$9 & \"'!\" & AF344),0) + IF(Setup!$AH$10<>\"\",INDIRECT(\"'\" & Setup!$AH$10 & \"'!\" & AF344),0) + IF(Setup!$AH$11<>\"\",INDIRECT(\"'\" & Setup!$AH$11 & \"'!\" & AF344),0) + IF(Setup!$AH$12<>\"\",INDIRECT(\"'\" & Setup!$AH$12 & \"'!\" & AF344),0)","v":0},{"$f":"IF(Setup!$AI$7<>\"\",INDIRECT(\"'\" & Setup!$AI$7 & \"'!\" & AF344),0) + IF(Setup!$AI$8<>\"\",INDIRECT(\"'\" & Setup!$AI$8 & \"'!\" & AF344),0) + IF(Setup!$AI$9<>\"\",INDIRECT(\"'\" & Setup!$AI$9 & \"'!\" & AF344),0) + IF(Setup!$AI$10<>\"\",INDIRECT(\"'\" & Setup!$AI$10 & \"'!\" & AF344),0) + IF(Setup!$AI$11<>\"\",INDIRECT(\"'\" & Setup!$AI$11 & \"'!\" & AF344),0) + IF(Setup!$AI$12<>\"\",INDIRECT(\"'\" & Setup!$AI$12 & \"'!\" & AF344),0)","v":0},{"$f":"IF(Setup!$AJ$7<>\"\",INDIRECT(\"'\" & Setup!$AJ$7 & \"'!\" & AF344),0) + IF(Setup!$AJ$8<>\"\",INDIRECT(\"'\" & Setup!$AJ$8 & \"'!\" & AF344),0) + IF(Setup!$AJ$9<>\"\",INDIRECT(\"'\" & Setup!$AJ$9 & \"'!\" & AF344),0) + IF(Setup!$AJ$10<>\"\",INDIRECT(\"'\" & Setup!$AJ$10 & \"'!\" & AF344),0) + IF(Setup!$AJ$11<>\"\",INDIRECT(\"'\" & Setup!$AJ$11 & \"'!\" & AF344),0) + IF(Setup!$AJ$12<>\"\",INDIRECT(\"'\" & Setup!$AJ$12 & \"'!\" & AF344),0)","v":0},null,"",{"$nulls":30},0,{"$f":"IF(Setup!$AH$7=\"\",0,INDIRECT(\"'\" & Setup!$AH$7 & \"'!\" & AF344))","v":0},{"$f":"IF(Setup!$AI$7=\"\",0,INDIRECT(\"'\" & Setup!$AI$7 & \"'!\" & AF344))","v":0},{"$f":"IF(Setup!$AJ$7=\"\",0,INDIRECT(\"'\" & Setup!$AJ$7 & \"'!\" & AF344))","v":0}]
[{"$f":"Planning!A117","v":"I109"},{"$f":"Planning!B117","v":0},{"$f":"Planning!C117","v":0},{"$f":"Planning!D117","v":0},{"$f":"Planning!E117","v":0},{"$f":"Planning!G117","v":0},0,{"v":0,"d":"0.00"},{"v":0,"d":"0.00"},"","",{"$f":"IF(Setup!$AG$7<>\"\",INDIRECT(\"'\" & Setup!$AG$7 & \"'!\" & AD345),0) + IF(Setup!$AG$8<>\"\",INDIRECT(\"'\" & Setup!$AG$8 & \"'!\" & AD345),0) + IF(Setup!$AG$9<>\"\",INDIRECT(\"'\" & Setup!$AG$9 & \"'!\" & AD345),0) + IF(Setup!$AG$10<>\"\",INDIRECT(\"'\" & Setup!$AG$10 & \"'!\" & AD345),0) + IF(Setup!$AG$11<>\"\",INDIRECT(\"'\" & Setup!$AG$11 & \"'!\" & AD345),0) + IF(Setup!$AG$12<>\"\",INDIRECT(\"'\" & Setup!$AG$12 & \"'!\" & AD345),0)","v":{"v":0,"d":"0.00"}},{"$f":"IF(Setup!$AG$7<>\"\",INDIRECT(\"'\" & Setup!$AG$7 & \"'!\" & AE345),0) + IF(Setup!$AG$8<>\"\",INDIRECT(\"'\" & Setup!$AG$8 & \"'!\" & AE345),0) + IF(Setup!$AG$9<>\"\",INDIRECT(\"'\" & Setup!$AG$9 & \"'!\" & AE345),0) + IF(Setup!$AG$10<>\"\",INDIRECT(\"'\" & Setup!$AG$10 & \"'!\" & AE345),0) + IF(Setup!$AG$11<>\"\",INDIRECT(\"'\" & Setup!$AG$11 & \"'!\" & AE345),0) + IF(Setup!$AG$12<>\"\",INDIRECT(\"'\" & Setup!$AG$12 & \"'!\" & AE345),0)","v":{"v":0,"d":"0.00"}},"","",{"$f":"IF(Setup!$AH$7<>\"\",INDIRECT(\"'\" & Setup!$AH$7 & \"'!\" & AD345),0) + IF(Setup!$AH$8<>\"\",INDIRECT(\"'\" & Setup!$AH$8 & \"'!\" & AD345),0) + IF(Setup!$AH$9<>\"\",INDIRECT(\"'\" & Setup!$AH$9 & \"'!\" & AD345),0) + IF(Setup!$AH$10<>\"\",INDIRECT(\"'\" & Setup!$AH$10 & \"'!\" & AD345),0) + IF(Setup!$AH$11<>\"\",INDIRECT(\"'\" & Setup!$AH$11 & \"'!\" & AD345),0) + IF(Setup!$AH$12<>\"\",INDIRECT(\"'\" & Setup!$AH$12 & \"'!\" & AD345),0)","v":{"v":0,"d":"0.00"}},{"$f":"IF(Setup!$AH$7<>\"\",INDIRECT(\"'\" & Setup!$AH$7 & \"'!\" & AE345),0) + IF(Setup!$AH$8<>\"\",INDIRECT(\"'\" & Setup!$AH$8 & \"'!\" & AE345),0) + IF(Setup!$AH$9<>\"\",INDIRECT(\"'\" & Setup!$AH$9 & \"'!\" & AE345),0) + IF(Setup!$AH$10<>\"\",INDIRECT(\"'\" & Setup!$AH$10 & \"'!\" & AE345),0) + IF(Setup!$AH$11<>\"\",INDIRECT(\"'\" & Setup!$AH$11 & \"'!\" & AE345),0) + IF(Setup!$AH$12<>\"\",INDIRECT(\"'\" & Setup!$AH$12 & \"'!\" & AE345),0)","v":{"v":0,"d":"0.00"}},"","",{"$f":"IF(Setup!$AI$7<>\"\",INDIRECT(\"'\" & Setup!$AI$7 & \"'!\" & AD345),0) + IF(Setup!$AI$8<>\"\",INDIRECT(\"'\" & Setup!$AI$8 & \"'!\" & AD345),0) + IF(Setup!$AI$9<>\"\",INDIRECT(\"'\" & Setup!$AI$9 & \"'!\" & AD345),0) + IF(Setup!$AI$10<>\"\",INDIRECT(\"'\" & Setup!$AI$10 & \"'!\" & AD345),0) + IF(Setup!$AI$11<>\"\",INDIRECT(\"'\" & Setup!$AI$11 & \"'!\" & AD345),0) + IF(Setup!$AI$12<>\"\",INDIRECT(\"'\" & Setup!$AI$12 & \"'!\" & AD345),0)","v":{"v":0,"d":"0.00"}},{"$f":"IF(Setup!$AI$7<>\"\",INDIRECT(\"'\" & Setup!$AI$7 & \"'!\" & AE345),0) + IF(Setup!$AI$8<>\"\",INDIRECT(\"'\" & Setup!$AI$8 & \"'!\" & AE345),0) + IF(Setup!$AI$9<>\"\",INDIRECT(\"'\" & Setup!$AI$9 & \"'!\" & AE345),0) + IF(Setup!$AI$10<>\"\",INDIRECT(\"'\" & Setup!$AI$10 & \"'!\" & AE345),0) + IF(Setup!$AI$11<>\"\",INDIRECT(\"'\" & Setup!$AI$11 & \"'!\" & AE345),0) + IF(Setup!$AI$12<>\"\",INDIRECT(\"'\" & Setup!$AI$12 & \"'!\" & AE345),0)","v":{"v":0,"d":"0.00"}},"","",{"$f":"IF(Setup!$AJ$7<>\"\",INDIRECT(\"'\" & Setup!$AJ$7 & \"'!\" & AD345),0) + IF(Setup!$AJ$8<>\"\",INDIRECT(\"'\" & Setup!$AJ$8 & \"'!\" & AD345),0) + IF(Setup!$AJ$9<>\"\",INDIRECT(\"'\" & Setup!$AJ$9 & \"'!\" & AD345),0) + IF(Setup!$AJ$10<>\"\",INDIRECT(\"'\" & Setup!$AJ$10 & \"'!\" & AD345),0) + IF(Setup!$AJ$11<>\"\",INDIRECT(\"'\" & Setup!$AJ$11 & \"'!\" & AD345),0) + IF(Setup!$AJ$12<>\"\",INDIRECT(\"'\" & Setup!$AJ$12 & \"'!\" & AD345),0)","v":0},{"$f":"IF(Setup!$AJ$7<>\"\",INDIRECT(\"'\" & Setup!$AJ$7 & \"'!\" & AE345),0) + IF(Setup!$AJ$8<>\"\",INDIRECT(\"'\" & Setup!$AJ$8 & \"'!\" & AE345),0) + IF(Setup!$AJ$9<>\"\",INDIRECT(\"'\" & Setup!$AJ$9 & \"'!\" & AE345),0) + IF(Setup!$AJ$10<>\"\",INDIRECT(\"'\" & Setup!$AJ$10 & \"'!\" & AE345),0) + IF(Setup!$AJ$11<>\"\",INDIRECT(\"'\" & Setup!$AJ$11 & \"'!\" & AE345),0) + IF(Setup!$AJ$12<>\"\",INDIRECT(\"'\" & Setup!$AJ$12 & \"'!\" & AE345),0)","v":0},"","",{"$f":"Planning!H117","v":0},"00","M133","O133","N133",null,null,{"$f":"IF(Setup!$AG$7<>\"\",INDIRECT(\"'\" & Setup!$AG$7 & \"'!\" & AF345),0) + IF(Setup!$AG$8<>\"\",INDIRECT(\"'\" & Setup!$AG$8 & \"'!\" & AF345),0) + IF(Setup!$AG$9<>\"\",INDIRECT(\"'\" & Setup!$AG$9 & \"'!\" & AF345),0) + IF(Setup!$AG$10<>\"\",INDIRECT(\"'\" & Setup!$AG$10 & \"'!\" & AF345),0) + IF(Setup!$AG$11<>\"\",INDIRECT(\"'\" & Setup!$AG$11 & \"'!\" & AF345),0) + IF(Setup!$AG$12<>\"\",INDIRECT(\"'\" & Setup!$AG$12 & \"'!\" & AF345),0)","v":0},{"$f":"IF(Setup!$AH$7<>\"\",INDIRECT(\"'\" & Setup!$AH$7 & \"'!\" & AF345),0) + IF(Setup!$AH$8<>\"\",INDIRECT(\"'\" & Setup!$AH$8 & \"'!\" & AF345),0) + IF(Setup!$AH$9<>\"\",INDIRECT(\"'\" & Setup!$AH$9 & \"'!\" & AF345),0) + IF(Setup!$AH$10<>\"\",INDIRECT(\"'\" & Setup!$AH$10 & \"'!\" & AF345),0) + IF(Setup!$AH$11<>\"\",INDIRECT(\"'\" & Setup!$AH$11 & \"'!\" & AF345),0) + IF(Setup!$AH$12<>\"\",INDIRECT(\"'\" & Setup!$AH$12 & \"'!\" & AF345),0)","v":0},{"$f":"IF(Setup!$AI$7<>\"\",INDIRECT(\"'\" & Setup!$AI$7 & \"'!\" & AF345),0) + IF(Setup!$AI$8<>\"\",INDIRECT(\"'\" & Setup!$AI$8 & \"'!\" & AF345),0) + IF(Setup!$AI$9<>\"\",INDIRECT(\"'\" & Setup!$AI$9 & \"'!\" & AF345),0) + IF(Setup!$AI$10<>\"\",INDIRECT(\"'\" & Setup!$AI$10 & \"'!\" & AF345),0) + IF(Setup!$AI$11<>\"\",INDIRECT(\"'\" & Setup!$AI$11 & \"'!\" & AF345),0) + IF(Setup!$AI$12<>\"\",INDIRECT(\"'\" & Setup!$AI$12 & \"'!\" & AF345),0)","v":0},{"$f":"IF(Setup!$AJ$7<>\"\",INDIRECT(\"'\" & Setup!$AJ$7 & \"'!\" & AF345),0) + IF(Setup!$AJ$8<>\"\",INDIRECT(\"'\" & Setup!$AJ$8 & \"'!\" & AF345),0) + IF(Setup!$AJ$9<>\"\",INDIRECT(\"'\" & Setup!$AJ$9 & \"'!\" & AF345),0) + IF(Setup!$AJ$10<>\"\",INDIRECT(\"'\" & Setup!$AJ$10 & \"'!\" & AF345),0) + IF(Setup!$AJ$11<>\"\",INDIRECT(\"'\" & Setup!$AJ$11 & \"'!\" & AF345),0) + IF(Setup!$AJ$12<>\"\",INDIRECT(\"'\" & Setup!$AJ$12 & \"'!\" & AF345),0)","v":0},null,"",{"$nulls":30},0,{"$f":"IF(Setup!$AH$7=\"\",0,INDIRECT(\"'\" & Setup!$AH$7 & \"'!\" & AF345))","v":0},{"$f":"IF(Setup!$AI$7=\"\",0,INDIRECT(\"'\" & Setup!$AI$7 & \"'!\" & AF345))","v":0},{"$f":"IF(Setup!$AJ$7=\"\",0,INDIRECT(\"'\" & Setup!$AJ$7 & \"'!\" & AF345))","v":0}]
[{"$f":"Planning!A118","v":"I110"},{"$f":"Planning!B118","v":0},{"$f":"Planning!C118","v":0},{"$f":"Planning!D118","v":0},{"$f":"Planning!E118","v":0},{"$f":"Planning!G118","v":0},0,{"v":0,"d":"0.00"},{"v":0,"d":"0.00"},"","",{"$f":"IF(Setup!$AG$7<>\"\",INDIRECT(\"'\" & Setup!$AG$7 & \"'!\" & AD346),0) + IF(Setup!$AG$8<>\"\",INDIRECT(\"'\" & Setup!$AG$8 & \"'!\" & AD346),0) + IF(Setup!$AG$9<>\"\",INDIRECT(\"'\" & Setup!$AG$9 & \"'!\" & AD346),0) + IF(Setup!$AG$10<>\"\",INDIRECT(\"'\" & Setup!$AG$10 & \"'!\" & AD346),0) + IF(Setup!$AG$11<>\"\",INDIRECT(\"'\" & Setup!$AG$11 & \"'!\" & AD346),0) + IF(Setup!$AG$12<>\"\",INDIRECT(\"'\" & Setup!$AG$12 & \"'!\" & AD346),0)","v":{"v":0,"d":"0.00"}},{"$f":"IF(Setup!$AG$7<>\"\",INDIRECT(\"'\" & Setup!$AG$7 & \"'!\" & AE346),0) + IF(Setup!$AG$8<>\"\",INDIRECT(\"'\" & Setup!$AG$8 & \"'!\" & AE346),0) + IF(Setup!$AG$9<>\"\",INDIRECT(\"'\" & Setup!$AG$9 & \"'!\" & AE346),0) + IF(Setup!$AG$10<>\"\",INDIRECT(\"'\" & Setup!$AG$10 & \"'!\" & AE346),0) + IF(Setup!$AG$11<>\"\",INDIRECT(\"'\" & Setup!$AG$11 & \"'!\" & AE346),0) + IF(Setup!$AG$12<>\"\",INDIRECT(\"'\" & Setup!$AG$12 & \"'!\" & AE346),0)","v":{"v":0,"d":"0.00"}},"","",{"$f":"IF(Setup!$AH$7<>\"\",INDIRECT(\"'\" & Setup!$AH$7 & \"'!\" & AD346),0) + IF(Setup!$AH$8<>\"\",INDIRECT(\"'\" & Setup!$AH$8 & \"'!\" & AD346),0) + IF(Setup!$AH$9<>\"\",INDIRECT(\"'\" & Setup!$AH$9 & \"'!\" & AD346),0) + IF(Setup!$AH$10<>\"\",INDIRECT(\"'\" & Setup!$AH$10 & \"'!\" & AD346),0) + IF(Setup!$AH$11<>\"\",INDIRECT(\"'\" & Setup!$AH$11 & \"'!\" & AD346),0) + IF(Setup!$AH$12<>\"\",INDIRECT(\"'\" & Setup!$AH$12 & \"'!\" & AD346),0)","v":{"v":0,"d":"0.00"}},{"$f":"IF(Setup!$AH$7<>\"\",INDIRECT(\"'\" & Setup!$AH$7 & \"'!\" & AE346),0) + IF(Setup!$AH$8<>\"\",INDIRECT(\"'\" & Setup!$AH$8 & \"'!\" & AE346),0) + IF(Setup!$AH$9<>\"\",INDIRECT(\"'\" & Setup!$AH$9 & \"'!\" & AE346),0) + IF(Setup!$AH$10<>\"\",INDIRECT(\"'\" & Setup!$AH$10 & \"'!\" & AE346),0) + IF(Setup!$AH$11<>\"\",INDIRECT(\"'\" & Setup!$AH$11 & \"'!\" & AE346),0) + IF(Setup!$AH$12<>\"\",INDIRECT(\"'\" & Setup!$AH$12 & \"'!\" & AE346),0)","v":{"v":0,"d":"0.00"}},"","",{"$f":"IF(Setup!$AI$7<>\"\",INDIRECT(\"'\" & Setup!$AI$7 & \"'!\" & AD346),0) + IF(Setup!$AI$8<>\"\",INDIRECT(\"'\" & Setup!$AI$8 & \"'!\" & AD346),0) + IF(Setup!$AI$9<>\"\",INDIRECT(\"'\" & Setup!$AI$9 & \"'!\" & AD346),0) + IF(Setup!$AI$10<>\"\",INDIRECT(\"'\" & Setup!$AI$10 & \"'!\" & AD346),0) + IF(Setup!$AI$11<>\"\",INDIRECT(\"'\" & Setup!$AI$11 & \"'!\" & AD346),0) + IF(Setup!$AI$12<>\"\",INDIRECT(\"'\" & Setup!$AI$12 & \"'!\" & AD346),0)","v":{"v":0,"d":"0.00"}},{"$f":"IF(Setup!$AI$7<>\"\",INDIRECT(\"'\" & Setup!$AI$7 & \"'!\" & AE346),0) + IF(Setup!$AI$8<>\"\",INDIRECT(\"'\" & Setup!$AI$8 & \"'!\" & AE346),0) + IF(Setup!$AI$9<>\"\",INDIRECT(\"'\" & Setup!$AI$9 & \"'!\" & AE346),0) + IF(Setup!$AI$10<>\"\",INDIRECT(\"'\" & Setup!$AI$10 & \"'!\" & AE346),0) + IF(Setup!$AI$11<>\"\",INDIRECT(\"'\" & Setup!$AI$11 & \"'!\" & AE346),0) + IF(Setup!$AI$12<>\"\",INDIRECT(\"'\" & Setup!$AI$12 & \"'!\" & AE346),0)","v":{"v":0,"d":"0.00"}},"","",{"$f":"IF(Setup!$AJ$7<>\"\",INDIRECT(\"'\" & Setup!$AJ$7 & \"'!\" & AD346),0) + IF(Setup!$AJ$8<>\"\",INDIRECT(\"'\" & Setup!$AJ$8 & \"'!\" & AD346),0) + IF(Setup!$AJ$9<>\"\",INDIRECT(\"'\" & Setup!$AJ$9 & \"'!\" & AD346),0) + IF(Setup!$AJ$10<>\"\",INDIRECT(\"'\" & Setup!$AJ$10 & \"'!\" & AD346),0) + IF(Setup!$AJ$11<>\"\",INDIRECT(\"'\" & Setup!$AJ$11 & \"'!\" & AD346),0) + IF(Setup!$AJ$12<>\"\",INDIRECT(\"'\" & Setup!$AJ$12 & \"'!\" & AD346),0)","v":0},{"$f":"IF(Setup!$AJ$7<>\"\",INDIRECT(\"'\" & Setup!$AJ$7 & \"'!\" & AE346),0) + IF(Setup!$AJ$8<>\"\",INDIRECT(\"'\" & Setup!$AJ$8 & \"'!\" & AE346),0) + IF(Setup!$AJ$9<>\"\",INDIRECT(\"'\" & Setup!$AJ$9 & \"'!\" & AE346),0) + IF(Setup!$AJ$10<>\"\",INDIRECT(\"'\" & Setup!$AJ$10 & \"'!\" & AE346),0) + IF(Setup!$AJ$11<>\"\",INDIRECT(\"'\" & Setup!$AJ$11 & \"'!\" & AE346),0) + IF(Setup!$AJ$12<>\"\",INDIRECT(\"'\" & Setup!$AJ$12 & \"'!\" & AE346),0)","v":0},"","",{"$f":"Planning!H118","v":0},"00","M134","O134","N134",null,null,{"$f":"IF(Setup!$AG$7<>\"\",INDIRECT(\"'\" & Setup!$AG$7 & \"'!\" & AF346),0) + IF(Setup!$AG$8<>\"\",INDIRECT(\"'\" & Setup!$AG$8 & \"'!\" & AF346),0) + IF(Setup!$AG$9<>\"\",INDIRECT(\"'\" & Setup!$AG$9 & \"'!\" & AF346),0) + IF(Setup!$AG$10<>\"\",INDIRECT(\"'\" & Setup!$AG$10 & \"'!\" & AF346),0) + IF(Setup!$AG$11<>\"\",INDIRECT(\"'\" & Setup!$AG$11 & \"'!\" & AF346),0) + IF(Setup!$AG$12<>\"\",INDIRECT(\"'\" & Setup!$AG$12 & \"'!\" & AF346),0)","v":0},{"$f":"IF(Setup!$AH$7<>\"\",INDIRECT(\"'\" & Setup!$AH$7 & \"'!\" & AF346),0) + IF(Setup!$AH$8<>\"\",INDIRECT(\"'\" & Setup!$AH$8 & \"'!\" & AF346),0) + IF(Setup!$AH$9<>\"\",INDIRECT(\"'\" & Setup!$AH$9 & \"'!\" & AF346),0) + IF(Setup!$AH$10<>\"\",INDIRECT(\"'\" & Setup!$AH$10 & \"'!\" & AF346),0) + IF(Setup!$AH$11<>\"\",INDIRECT(\"'\" & Setup!$AH$11 & \"'!\" & AF346),0) + IF(Setup!$AH$12<>\"\",INDIRECT(\"'\" & Setup!$AH$12 & \"'!\" & AF346),0)","v":0},{"$f":"IF(Setup!$AI$7<>\"\",INDIRECT(\"'\" & Setup!$AI$7 & \"'!\" & AF346),0) + IF(Setup!$AI$8<>\"\",INDIRECT(\"'\" & Setup!$AI$8 & \"'!\" & AF346),0) + IF(Setup!$AI$9<>\"\",INDIRECT(\"'\" & Setup!$AI$9 & \"'!\" & AF346),0) + IF(Setup!$AI$10<>\"\",INDIRECT(\"'\" & Setup!$AI$10 & \"'!\" & AF346),0) + IF(Setup!$AI$11<>\"\",INDIRECT(\"'\" & Setup!$AI$11 & \"'!\" & AF346),0) + IF(Setup!$AI$12<>\"\",INDIRECT(\"'\" & Setup!$AI$12 & \"'!\" & AF346),0)","v":0},{"$f":"IF(Setup!$AJ$7<>\"\",INDIRECT(\"'\" & Setup!$AJ$7 & \"'!\" & AF346),0) + IF(Setup!$AJ$8<>\"\",INDIRECT(\"'\" & Setup!$AJ$8 & \"'!\" & AF346),0) + IF(Setup!$AJ$9<>\"\",INDIRECT(\"'\" & Setup!$AJ$9 & \"'!\" & AF346),0) + IF(Setup!$AJ$10<>\"\",INDIRECT(\"'\" & Setup!$AJ$10 & \"'!\" & AF346),0) + IF(Setup!$AJ$11<>\"\",INDIRECT(\"'\" & Setup!$AJ$11 & \"'!\" & AF346),0) + IF(Setup!$AJ$12<>\"\",INDIRECT(\"'\" & Setup!$AJ$12 & \"'!\" & AF346),0)","v":0},null,"",{"$nulls":30},0,{"$f":"IF(Setup!$AH$7=\"\",0,INDIRECT(\"'\" & Setup!$AH$7 & \"'!\" & AF346))","v":0},{"$f":"IF(Setup!$AI$7=\"\",0,INDIRECT(\"'\" & Setup!$AI$7 & \"'!\" & AF346))","v":0},{"$f":"IF(Setup!$AJ$7=\"\",0,INDIRECT(\"'\" & Setup!$AJ$7 & \"'!\" & AF346))","v":0}]
[{"$f":"Planning!A119","v":"I111"},{"$f":"Planning!B119","v":0},{"$f":"Planning!C119","v":0},{"$f":"Planning!D119","v":0},{"$f":"Planning!E119","v":0},{"$f":"Planning!G119","v":0},0,{"v":0,"d":"0.00"},{"v":0,"d":"0.00"},"","",{"$f":"IF(Setup!$AG$7<>\"\",INDIRECT(\"'\" & Setup!$AG$7 & \"'!\" & AD347),0) + IF(Setup!$AG$8<>\"\",INDIRECT(\"'\" & Setup!$AG$8 & \"'!\" & AD347),0) + IF(Setup!$AG$9<>\"\",INDIRECT(\"'\" & Setup!$AG$9 & \"'!\" & AD347),0) + IF(Setup!$AG$10<>\"\",INDIRECT(\"'\" & Setup!$AG$10 & \"'!\" & AD347),0) + IF(Setup!$AG$11<>\"\",INDIRECT(\"'\" & Setup!$AG$11 & \"'!\" & AD347),0) + IF(Setup!$AG$12<>\"\",INDIRECT(\"'\" & Setup!$AG$12 & \"'!\" & AD347),0)","v":{"v":0,"d":"0.00"}},{"$f":"IF(Setup!$AG$7<>\"\",INDIRECT(\"'\" & Setup!$AG$7 & \"'!\" & AE347),0) + IF(Setup!$AG$8<>\"\",INDIRECT(\"'\" & Setup!$AG$8 & \"'!\" & AE347),0) + IF(Setup!$AG$9<>\"\",INDIRECT(\"'\" & Setup!$AG$9 & \"'!\" & AE347),0) + IF(Setup!$AG$10<>\"\",INDIRECT(\"'\" & Setup!$AG$10 & \"'!\" & AE347),0) + IF(Setup!$AG$11<>\"\",INDIRECT(\"'\" & Setup!$AG$11 & \"'!\" & AE347),0) + IF(Setup!$AG$12<>\"\",INDIRECT(\"'\" & Setup!$AG$12 & \"'!\" & AE347),0)","v":{"v":0,"d":"0.00"}},"","",{"$f":"IF(Setup!$AH$7<>\"\",INDIRECT(\"'\" & Setup!$AH$7 & \"'!\" & AD347),0) + IF(Setup!$AH$8<>\"\",INDIRECT(\"'\" & Setup!$AH$8 & \"'!\" & AD347),0) + IF(Setup!$AH$9<>\"\",INDIRECT(\"'\" & Setup!$AH$9 & \"'!\" & AD347),0) + IF(Setup!$AH$10<>\"\",INDIRECT(\"'\" & Setup!$AH$10 & \"'!\" & AD347),0) + IF(Setup!$AH$11<>\"\",INDIRECT(\"'\" & Setup!$AH$11 & \"'!\" & AD347),0) + IF(Setup!$AH$12<>\"\",INDIRECT(\"'\" & Setup!$AH$12 & \"'!\" & AD347),0)","v":{"v":0,"d":"0.00"}},{"$f":"IF(Setup!$AH$7<>\"\",INDIRECT(\"'\" & Setup!$AH$7 & \"'!\" & AE347),0) + IF(Setup!$AH$8<>\"\",INDIRECT(\"'\" & Setup!$AH$8 & \"'!\" & AE347),0) + IF(Setup!$AH$9<>\"\",INDIRECT(\"'\" & Setup!$AH$9 & \"'!\" & AE347),0) + IF(Setup!$AH$10<>\"\",INDIRECT(\"'\" & Setup!$AH$10 & \"'!\" & AE347),0) + IF(Setup!$AH$11<>\"\",INDIRECT(\"'\" & Setup!$AH$11 & \"'!\" & AE347),0) + IF(Setup!$AH$12<>\"\",INDIRECT(\"'\" & Setup!$AH$12 & \"'!\" & AE347),0)","v":{"v":0,"d":"0.00"}},"","",{"$f":"IF(Setup!$AI$7<>\"\",INDIRECT(\"'\" & Setup!$AI$7 & \"'!\" & AD347),0) + IF(Setup!$AI$8<>\"\",INDIRECT(\"'\" & Setup!$AI$8 & \"'!\" & AD347),0) + IF(Setup!$AI$9<>\"\",INDIRECT(\"'\" & Setup!$AI$9 & \"'!\" & AD347),0) + IF(Setup!$AI$10<>\"\",INDIRECT(\"'\" & Setup!$AI$10 & \"'!\" & AD347),0) + IF(Setup!$AI$11<>\"\",INDIRECT(\"'\" & Setup!$AI$11 & \"'!\" & AD347),0) + IF(Setup!$AI$12<>\"\",INDIRECT(\"'\" & Setup!$AI$12 & \"'!\" & AD347),0)","v":{"v":0,"d":"0.00"}},{"$f":"IF(Setup!$AI$7<>\"\",INDIRECT(\"'\" & Setup!$AI$7 & \"'!\" & AE347),0) + IF(Setup!$AI$8<>\"\",INDIRECT(\"'\" & Setup!$AI$8 & \"'!\" & AE347),0) + IF(Setup!$AI$9<>\"\",INDIRECT(\"'\" & Setup!$AI$9 & \"'!\" & AE347),0) + IF(Setup!$AI$10<>\"\",INDIRECT(\"'\" & Setup!$AI$10 & \"'!\" & AE347),0) + IF(Setup!$AI$11<>\"\",INDIRECT(\"'\" & Setup!$AI$11 & \"'!\" & AE347),0) + IF(Setup!$AI$12<>\"\",INDIRECT(\"'\" & Setup!$AI$12 & \"'!\" & AE347),0)","v":{"v":0,"d":"0.00"}},"","",{"$f":"IF(Setup!$AJ$7<>\"\",INDIRECT(\"'\" & Setup!$AJ$7 & \"'!\" & AD347),0) + IF(Setup!$AJ$8<>\"\",INDIRECT(\"'\" & Setup!$AJ$8 & \"'!\" & AD347),0) + IF(Setup!$AJ$9<>\"\",INDIRECT(\"'\" & Setup!$AJ$9 & \"'!\" & AD347),0) + IF(Setup!$AJ$10<>\"\",INDIRECT(\"'\" & Setup!$AJ$10 & \"'!\" & AD347),0) + IF(Setup!$AJ$11<>\"\",INDIRECT(\"'\" & Setup!$AJ$11 & \"'!\" & AD347),0) + IF(Setup!$AJ$12<>\"\",INDIRECT(\"'\" & Setup!$AJ$12 & \"'!\" & AD347),0)","v":0},{"$f":"IF(Setup!$AJ$7<>\"\",INDIRECT(\"'\" & Setup!$AJ$7 & \"'!\" & AE347),0) + IF(Setup!$AJ$8<>\"\",INDIRECT(\"'\" & Setup!$AJ$8 & \"'!\" & AE347),0) + IF(Setup!$AJ$9<>\"\",INDIRECT(\"'\" & Setup!$AJ$9 & \"'!\" & AE347),0) + IF(Setup!$AJ$10<>\"\",INDIRECT(\"'\" & Setup!$AJ$10 & \"'!\" & AE347),0) + IF(Setup!$AJ$11<>\"\",INDIRECT(\"'\" & Setup!$AJ$11 & \"'!\" & AE347),0) + IF(Setup!$AJ$12<>\"\",INDIRECT(\"'\" & Setup!$AJ$12 & \"'!\" & AE347),0)","v":0},"","",{"$f":"Planning!H119","v":0},"00","M135","O135","N135",null,null,{"$f":"IF(Setup!$AG$7<>\"\",INDIRECT(\"'\" & Setup!$AG$7 & \"'!\" & AF347),0) + IF(Setup!$AG$8<>\"\",INDIRECT(\"'\" & Setup!$AG$8 & \"'!\" & AF347),0) + IF(Setup!$AG$9<>\"\",INDIRECT(\"'\" & Setup!$AG$9 & \"'!\" & AF347),0) + IF(Setup!$AG$10<>\"\",INDIRECT(\"'\" & Setup!$AG$10 & \"'!\" & AF347),0) + IF(Setup!$AG$11<>\"\",INDIRECT(\"'\" & Setup!$AG$11 & \"'!\" & AF347),0) + IF(Setup!$AG$12<>\"\",INDIRECT(\"'\" & Setup!$AG$12 & \"'!\" & AF347),0)","v":0},{"$f":"IF(Setup!$AH$7<>\"\",INDIRECT(\"'\" & Setup!$AH$7 & \"'!\" & AF347),0) + IF(Setup!$AH$8<>\"\",INDIRECT(\"'\" & Setup!$AH$8 & \"'!\" & AF347),0) + IF(Setup!$AH$9<>\"\",INDIRECT(\"'\" & Setup!$AH$9 & \"'!\" & AF347),0) + IF(Setup!$AH$10<>\"\",INDIRECT(\"'\" & Setup!$AH$10 & \"'!\" & AF347),0) + IF(Setup!$AH$11<>\"\",INDIRECT(\"'\" & Setup!$AH$11 & \"'!\" & AF347),0) + IF(Setup!$AH$12<>\"\",INDIRECT(\"'\" & Setup!$AH$12 & \"'!\" & AF347),0)","v":0},{"$f":"IF(Setup!$AI$7<>\"\",INDIRECT(\"'\" & Setup!$AI$7 & \"'!\" & AF347),0) + IF(Setup!$AI$8<>\"\",INDIRECT(\"'\" & Setup!$AI$8 & \"'!\" & AF347),0) + IF(Setup!$AI$9<>\"\",INDIRECT(\"'\" & Setup!$AI$9 & \"'!\" & AF347),0) + IF(Setup!$AI$10<>\"\",INDIRECT(\"'\" & Setup!$AI$10 & \"'!\" & AF347),0) + IF(Setup!$AI$11<>\"\",INDIRECT(\"'\" & Setup!$AI$11 & \"'!\" & AF347),0) + IF(Setup!$AI$12<>\"\",INDIRECT(\"'\" & Setup!$AI$12 & \"'!\" & AF347),0)","v":0},{"$f":"IF(Setup!$AJ$7<>\"\",INDIRECT(\"'\" & Setup!$AJ$7 & \"'!\" & AF347),0) + IF(Setup!$AJ$8<>\"\",INDIRECT(\"'\" & Setup!$AJ$8 & \"'!\" & AF347),0) + IF(Setup!$AJ$9<>\"\",INDIRECT(\"'\" & Setup!$AJ$9 & \"'!\" & AF347),0) + IF(Setup!$AJ$10<>\"\",INDIRECT(\"'\" & Setup!$AJ$10 & \"'!\" & AF347),0) + IF(Setup!$AJ$11<>\"\",INDIRECT(\"'\" & Setup!$AJ$11 & \"'!\" & AF347),0) + IF(Setup!$AJ$12<>\"\",INDIRECT(\"'\" & Setup!$AJ$12 & \"'!\" & AF347),0)","v":0},null,"",{"$nulls":30},0,{"$f":"IF(Setup!$AH$7=\"\",0,INDIRECT(\"'\" & Setup!$AH$7 & \"'!\" & AF347))","v":0},{"$f":"IF(Setup!$AI$7=\"\",0,INDIRECT(\"'\" & Setup!$AI$7 & \"'!\" & AF347))","v":0},{"$f":"IF(Setup!$AJ$7=\"\",0,INDIRECT(\"'\" & Setup!$AJ$7 & \"'!\" & AF347))","v":0}]
[{"$f":"Planning!A120","v":"I112"},{"$f":"Planning!B120","v":0},{"$f":"Planning!C120","v":0},{"$f":"Planning!D120","v":0},{"$f":"Planning!E120","v":0},{"$f":"Planning!G120","v":0},0,{"v":0,"d":"0.00"},{"v":0,"d":"0.00"},"","",{"$f":"IF(Setup!$AG$7<>\"\",INDIRECT(\"'\" & Setup!$AG$7 & \"'!\" & AD348),0) + IF(Setup!$AG$8<>\"\",INDIRECT(\"'\" & Setup!$AG$8 & \"'!\" & AD348),0) + IF(Setup!$AG$9<>\"\",INDIRECT(\"'\" & Setup!$AG$9 & \"'!\" & AD348),0) + IF(Setup!$AG$10<>\"\",INDIRECT(\"'\" & Setup!$AG$10 & \"'!\" & AD348),0) + IF(Setup!$AG$11<>\"\",INDIRECT(\"'\" & Setup!$AG$11 & \"'!\" & AD348),0) + IF(Setup!$AG$12<>\"\",INDIRECT(\"'\" & Setup!$AG$12 & \"'!\" & AD348),0)","v":{"v":0,"d":"0.00"}},{"$f":"IF(Setup!$AG$7<>\"\",INDIRECT(\"'\" & Setup!$AG$7 & \"'!\" & AE348),0) + IF(Setup!$AG$8<>\"\",INDIRECT(\"'\" & Setup!$AG$8 & \"'!\" & AE348),0) + IF(Setup!$AG$9<>\"\",INDIRECT(\"'\" & Setup!$AG$9 & \"'!\" & AE348),0) + IF(Setup!$AG$10<>\"\",INDIRECT(\"'\" & Setup!$AG$10 & \"'!\" & AE348),0) + IF(Setup!$AG$11<>\"\",INDIRECT(\"'\" & Setup!$AG$11 & \"'!\" & AE348),0) + IF(Setup!$AG$12<>\"\",INDIRECT(\"'\" & Setup!$AG$12 & \"'!\" & AE348),0)","v":{"v":0,"d":"0.00"}},"","",{"$f":"IF(Setup!$AH$7<>\"\",INDIRECT(\"'\" & Setup!$AH$7 & \"'!\" & AD348),0) + IF(Setup!$AH$8<>\"\",INDIRECT(\"'\" & Setup!$AH$8 & \"'!\" & AD348),0) + IF(Setup!$AH$9<>\"\",INDIRECT(\"'\" & Setup!$AH$9 & \"'!\" & AD348),0) + IF(Setup!$AH$10<>\"\",INDIRECT(\"'\" & Setup!$AH$10 & \"'!\" & AD348),0) + IF(Setup!$AH$11<>\"\",INDIRECT(\"'\" & Setup!$AH$11 & \"'!\" & AD348),0) + IF(Setup!$AH$12<>\"\",INDIRECT(\"'\" & Setup!$AH$12 & \"'!\" & AD348),0)","v":{"v":0,"d":"0.00"}},{"$f":"IF(Setup!$AH$7<>\"\",INDIRECT(\"'\" & Setup!$AH$7 & \"'!\" & AE348),0) + IF(Setup!$AH$8<>\"\",INDIRECT(\"'\" & Setup!$AH$8 & \"'!\" & AE348),0) + IF(Setup!$AH$9<>\"\",INDIRECT(\"'\" & Setup!$AH$9 & \"'!\" & AE348),0) + IF(Setup!$AH$10<>\"\",INDIRECT(\"'\" & Setup!$AH$10 & \"'!\" & AE348),0) + IF(Setup!$AH$11<>\"\",INDIRECT(\"'\" & Setup!$AH$11 & \"'!\" & AE348),0) + IF(Setup!$AH$12<>\"\",INDIRECT(\"'\" & Setup!$AH$12 & \"'!\" & AE348),0)","v":{"v":0,"d":"0.00"}},"","",{"$f":"IF(Setup!$AI$7<>\"\",INDIRECT(\"'\" & Setup!$AI$7 & \"'!\" & AD348),0) + IF(Setup!$AI$8<>\"\",INDIRECT(\"'\" & Setup!$AI$8 & \"'!\" & AD348),0) + IF(Setup!$AI$9<>\"\",INDIRECT(\"'\" & Setup!$AI$9 & \"'!\" & AD348),0) + IF(Setup!$AI$10<>\"\",INDIRECT(\"'\" & Setup!$AI$10 & \"'!\" & AD348),0) + IF(Setup!$AI$11<>\"\",INDIRECT(\"'\" & Setup!$AI$11 & \"'!\" & AD348),0) + IF(Setup!$AI$12<>\"\",INDIRECT(\"'\" & Setup!$AI$12 & \"'!\" & AD348),0)","v":{"v":0,"d":"0.00"}},{"$f":"IF(Setup!$AI$7<>\"\",INDIRECT(\"'\" & Setup!$AI$7 & \"'!\" & AE348),0) + IF(Setup!$AI$8<>\"\",INDIRECT(\"'\" & Setup!$AI$8 & \"'!\" & AE348),0) + IF(Setup!$AI$9<>\"\",INDIRECT(\"'\" & Setup!$AI$9 & \"'!\" & AE348),0) + IF(Setup!$AI$10<>\"\",INDIRECT(\"'\" & Setup!$AI$10 & \"'!\" & AE348),0) + IF(Setup!$AI$11<>\"\",INDIRECT(\"'\" & Setup!$AI$11 & \"'!\" & AE348),0) + IF(Setup!$AI$12<>\"\",INDIRECT(\"'\" & Setup!$AI$12 & \"'!\" & AE348),0)","v":{"v":0,"d":"0.00"}},"","",{"$f":"IF(Setup!$AJ$7<>\"\",INDIRECT(\"'\" & Setup!$AJ$7 & \"'!\" & AD348),0) + IF(Setup!$AJ$8<>\"\",INDIRECT(\"'\" & Setup!$AJ$8 & \"'!\" & AD348),0) + IF(Setup!$AJ$9<>\"\",INDIRECT(\"'\" & Setup!$AJ$9 & \"'!\" & AD348),0) + IF(Setup!$AJ$10<>\"\",INDIRECT(\"'\" & Setup!$AJ$10 & \"'!\" & AD348),0) + IF(Setup!$AJ$11<>\"\",INDIRECT(\"'\" & Setup!$AJ$11 & \"'!\" & AD348),0) + IF(Setup!$AJ$12<>\"\",INDIRECT(\"'\" & Setup!$AJ$12 & \"'!\" & AD348),0)","v":0},{"$f":"IF(Setup!$AJ$7<>\"\",INDIRECT(\"'\" & Setup!$AJ$7 & \"'!\" & AE348),0) + IF(Setup!$AJ$8<>\"\",INDIRECT(\"'\" & Setup!$AJ$8 & \"'!\" & AE348),0) + IF(Setup!$AJ$9<>\"\",INDIRECT(\"'\" & Setup!$AJ$9 & \"'!\" & AE348),0) + IF(Setup!$AJ$10<>\"\",INDIRECT(\"'\" & Setup!$AJ$10 & \"'!\" & AE348),0) + IF(Setup!$AJ$11<>\"\",INDIRECT(\"'\" & Setup!$AJ$11 & \"'!\" & AE348),0) + IF(Setup!$AJ$12<>\"\",INDIRECT(\"'\" & Setup!$AJ$12 & \"'!\" & AE348),0)","v":0},"","",{"$f":"Planning!H120","v":0},"00","M136","O136","N136",null,null,{"$f":"IF(Setup!$AG$7<>\"\",INDIRECT(\"'\" & Setup!$AG$7 & \"'!\" & AF348),0) + IF(Setup!$AG$8<>\"\",INDIRECT(\"'\" & Setup!$AG$8 & \"'!\" & AF348),0) + IF(Setup!$AG$9<>\"\",INDIRECT(\"'\" & Setup!$AG$9 & \"'!\" & AF348),0) + IF(Setup!$AG$10<>\"\",INDIRECT(\"'\" & Setup!$AG$10 & \"'!\" & AF348),0) + IF(Setup!$AG$11<>\"\",INDIRECT(\"'\" & Setup!$AG$11 & \"'!\" & AF348),0) + IF(Setup!$AG$12<>\"\",INDIRECT(\"'\" & Setup!$AG$12 & \"'!\" & AF348),0)","v":0},{"$f":"IF(Setup!$AH$7<>\"\",INDIRECT(\"'\" & Setup!$AH$7 & \"'!\" & AF348),0) + IF(Setup!$AH$8<>\"\",INDIRECT(\"'\" & Setup!$AH$8 & \"'!\" & AF348),0) + IF(Setup!$AH$9<>\"\",INDIRECT(\"'\" & Setup!$AH$9 & \"'!\" & AF348),0) + IF(Setup!$AH$10<>\"\",INDIRECT(\"'\" & Setup!$AH$10 & \"'!\" & AF348),0) + IF(Setup!$AH$11<>\"\",INDIRECT(\"'\" & Setup!$AH$11 & \"'!\" & AF348),0) + IF(Setup!$AH$12<>\"\",INDIRECT(\"'\" & Setup!$AH$12 & \"'!\" & AF348),0)","v":0},{"$f":"IF(Setup!$AI$7<>\"\",INDIRECT(\"'\" & Setup!$AI$7 & \"'!\" & AF348),0) + IF(Setup!$AI$8<>\"\",INDIRECT(\"'\" & Setup!$AI$8 & \"'!\" & AF348),0) + IF(Setup!$AI$9<>\"\",INDIRECT(\"'\" & Setup!$AI$9 & \"'!\" & AF348),0) + IF(Setup!$AI$10<>\"\",INDIRECT(\"'\" & Setup!$AI$10 & \"'!\" & AF348),0) + IF(Setup!$AI$11<>\"\",INDIRECT(\"'\" & Setup!$AI$11 & \"'!\" & AF348),0) + IF(Setup!$AI$12<>\"\",INDIRECT(\"'\" & Setup!$AI$12 & \"'!\" & AF348),0)","v":0},{"$f":"IF(Setup!$AJ$7<>\"\",INDIRECT(\"'\" & Setup!$AJ$7 & \"'!\" & AF348),0) + IF(Setup!$AJ$8<>\"\",INDIRECT(\"'\" & Setup!$AJ$8 & \"'!\" & AF348),0) + IF(Setup!$AJ$9<>\"\",INDIRECT(\"'\" & Setup!$AJ$9 & \"'!\" & AF348),0) + IF(Setup!$AJ$10<>\"\",INDIRECT(\"'\" & Setup!$AJ$10 & \"'!\" & AF348),0) + IF(Setup!$AJ$11<>\"\",INDIRECT(\"'\" & Setup!$AJ$11 & \"'!\" & AF348),0) + IF(Setup!$AJ$12<>\"\",INDIRECT(\"'\" & Setup!$AJ$12 & \"'!\" & AF348),0)","v":0},null,"",{"$nulls":30},0,{"$f":"IF(Setup!$AH$7=\"\",0,INDIRECT(\"'\" & Setup!$AH$7 & \"'!\" & AF348))","v":0},{"$f":"IF(Setup!$AI$7=\"\",0,INDIRECT(\"'\" & Setup!$AI$7 & \"'!\" & AF348))","v":0},{"$f":"IF(Setup!$AJ$7=\"\",0,INDIRECT(\"'\" & Setup!$AJ$7 & \"'!\" & AF348))","v":0}]
[{"$f":"Planning!A121","v":"I113"},{"$f":"Planning!B121","v":0},{"$f":"Planning!C121","v":0},{"$f":"Planning!D121","v":0},{"$f":"Planning!E121","v":0},{"$f":"Planning!G121","v":0},0,{"v":0,"d":"0.00"},{"v":0,"d":"0.00"},"","",{"$f":"IF(Setup!$AG$7<>\"\",INDIRECT(\"'\" & Setup!$AG$7 & \"'!\" & AD349),0) + IF(Setup!$AG$8<>\"\",INDIRECT(\"'\" & Setup!$AG$8 & \"'!\" & AD349),0) + IF(Setup!$AG$9<>\"\",INDIRECT(\"'\" & Setup!$AG$9 & \"'!\" & AD349),0) + IF(Setup!$AG$10<>\"\",INDIRECT(\"'\" & Setup!$AG$10 & \"'!\" & AD349),0) + IF(Setup!$AG$11<>\"\",INDIRECT(\"'\" & Setup!$AG$11 & \"'!\" & AD349),0) + IF(Setup!$AG$12<>\"\",INDIRECT(\"'\" & Setup!$AG$12 & \"'!\" & AD349),0)","v":{"v":0,"d":"0.00"}},{"$f":"IF(Setup!$AG$7<>\"\",INDIRECT(\"'\" & Setup!$AG$7 & \"'!\" & AE349),0) + IF(Setup!$AG$8<>\"\",INDIRECT(\"'\" & Setup!$AG$8 & \"'!\" & AE349),0) + IF(Setup!$AG$9<>\"\",INDIRECT(\"'\" & Setup!$AG$9 & \"'!\" & AE349),0) + IF(Setup!$AG$10<>\"\",INDIRECT(\"'\" & Setup!$AG$10 & \"'!\" & AE349),0) + IF(Setup!$AG$11<>\"\",INDIRECT(\"'\" & Setup!$AG$11 & \"'!\" & AE349),0) + IF(Setup!$AG$12<>\"\",INDIRECT(\"'\" & Setup!$AG$12 & \"'!\" & AE349),0)","v":{"v":0,"d":"0.00"}},"","",{"$f":"IF(Setup!$AH$7<>\"\",INDIRECT(\"'\" & Setup!$AH$7 & \"'!\" & AD349),0) + IF(Setup!$AH$8<>\"\",INDIRECT(\"'\" & Setup!$AH$8 & \"'!\" & AD349),0) + IF(Setup!$AH$9<>\"\",INDIRECT(\"'\" & Setup!$AH$9 & \"'!\" & AD349),0) + IF(Setup!$AH$10<>\"\",INDIRECT(\"'\" & Setup!$AH$10 & \"'!\" & AD349),0) + IF(Setup!$AH$11<>\"\",INDIRECT(\"'\" & Setup!$AH$11 & \"'!\" & AD349),0) + IF(Setup!$AH$12<>\"\",INDIRECT(\"'\" & Setup!$AH$12 & \"'!\" & AD349),0)","v":{"v":0,"d":"0.00"}},{"$f":"IF(Setup!$AH$7<>\"\",INDIRECT(\"'\" & Setup!$AH$7 & \"'!\" & AE349),0) + IF(Setup!$AH$8<>\"\",INDIRECT(\"'\" & Setup!$AH$8 & \"'!\" & AE349),0) + IF(Setup!$AH$9<>\"\",INDIRECT(\"'\" & Setup!$AH$9 & \"'!\" & AE349),0) + IF(Setup!$AH$10<>\"\",INDIRECT(\"'\" & Setup!$AH$10 & \"'!\" & AE349),0) + IF(Setup!$AH$11<>\"\",INDIRECT(\"'\" & Setup!$AH$11 & \"'!\" & AE349),0) + IF(Setup!$AH$12<>\"\",INDIRECT(\"'\" & Setup!$AH$12 & \"'!\" & AE349),0)","v":{"v":0,"d":"0.00"}},"","",{"$f":"IF(Setup!$AI$7<>\"\",INDIRECT(\"'\" & Setup!$AI$7 & \"'!\" & AD349),0) + IF(Setup!$AI$8<>\"\",INDIRECT(\"'\" & Setup!$AI$8 & \"'!\" & AD349),0) + IF(Setup!$AI$9<>\"\",INDIRECT(\"'\" & Setup!$AI$9 & \"'!\" & AD349),0) + IF(Setup!$AI$10<>\"\",INDIRECT(\"'\" & Setup!$AI$10 & \"'!\" & AD349),0) + IF(Setup!$AI$11<>\"\",INDIRECT(\"'\" & Setup!$AI$11 & \"'!\" & AD349),0) + IF(Setup!$AI$12<>\"\",INDIRECT(\"'\" & Setup!$AI$12 & \"'!\" & AD349),0)","v":{"v":0,"d":"0.00"}},{"$f":"IF(Setup!$AI$7<>\"\",INDIRECT(\"'\" & Setup!$AI$7 & \"'!\" & AE349),0) + IF(Setup!$AI$8<>\"\",INDIRECT(\"'\" & Setup!$AI$8 & \"'!\" & AE349),0) + IF(Setup!$AI$9<>\"\",INDIRECT(\"'\" & Setup!$AI$9 & \"'!\" & AE349),0) + IF(Setup!$AI$10<>\"\",INDIRECT(\"'\" & Setup!$AI$10 & \"'!\" & AE349),0) + IF(Setup!$AI$11<>\"\",INDIRECT(\"'\" & Setup!$AI$11 & \"'!\" & AE349),0) + IF(Setup!$AI$12<>\"\",INDIRECT(\"'\" & Setup!$AI$12 & \"'!\" & AE349),0)","v":{"v":0,"d":"0.00"}},"","",{"$f":"IF(Setup!$AJ$7<>\"\",INDIRECT(\"'\" & Setup!$AJ$7 & \"'!\" & AD349),0) + IF(Setup!$AJ$8<>\"\",INDIRECT(\"'\" & Setup!$AJ$8 & \"'!\" & AD349),0) + IF(Setup!$AJ$9<>\"\",INDIRECT(\"'\" & Setup!$AJ$9 & \"'!\" & AD349),0) + IF(Setup!$AJ$10<>\"\",INDIRECT(\"'\" & Setup!$AJ$10 & \"'!\" & AD349),0) + IF(Setup!$AJ$11<>\"\",INDIRECT(\"'\" & Setup!$AJ$11 & \"'!\" & AD349),0) + IF(Setup!$AJ$12<>\"\",INDIRECT(\"'\" & Setup!$AJ$12 & \"'!\" & AD349),0)","v":0},{"$f":"IF(Setup!$AJ$7<>\"\",INDIRECT(\"'\" & Setup!$AJ$7 & \"'!\" & AE349),0) + IF(Setup!$AJ$8<>\"\",INDIRECT(\"'\" & Setup!$AJ$8 & \"'!\" & AE349),0) + IF(Setup!$AJ$9<>\"\",INDIRECT(\"'\" & Setup!$AJ$9 & \"'!\" & AE349),0) + IF(Setup!$AJ$10<>\"\",INDIRECT(\"'\" & Setup!$AJ$10 & \"'!\" & AE349),0) + IF(Setup!$AJ$11<>\"\",INDIRECT(\"'\" & Setup!$AJ$11 & \"'!\" & AE349),0) + IF(Setup!$AJ$12<>\"\",INDIRECT(\"'\" & Setup!$AJ$12 & \"'!\" & AE349),0)","v":0},"","",{"$f":"Planning!H121","v":0},"00","M137","O137","N137",null,null,{"$f":"IF(Setup!$AG$7<>\"\",INDIRECT(\"'\" & Setup!$AG$7 & \"'!\" & AF349),0) + IF(Setup!$AG$8<>\"\",INDIRECT(\"'\" & Setup!$AG$8 & \"'!\" & AF349),0) + IF(Setup!$AG$9<>\"\",INDIRECT(\"'\" & Setup!$AG$9 & \"'!\" & AF349),0) + IF(Setup!$AG$10<>\"\",INDIRECT(\"'\" & Setup!$AG$10 & \"'!\" & AF349),0) + IF(Setup!$AG$11<>\"\",INDIRECT(\"'\" & Setup!$AG$11 & \"'!\" & AF349),0) + IF(Setup!$AG$12<>\"\",INDIRECT(\"'\" & Setup!$AG$12 & \"'!\" & AF349),0)","v":0},{"$f":"IF(Setup!$AH$7<>\"\",INDIRECT(\"'\" & Setup!$AH$7 & \"'!\" & AF349),0) + IF(Setup!$AH$8<>\"\",INDIRECT(\"'\" & Setup!$AH$8 & \"'!\" & AF349),0) + IF(Setup!$AH$9<>\"\",INDIRECT(\"'\" & Setup!$AH$9 & \"'!\" & AF349),0) + IF(Setup!$AH$10<>\"\",INDIRECT(\"'\" & Setup!$AH$10 & \"'!\" & AF349),0) + IF(Setup!$AH$11<>\"\",INDIRECT(\"'\" & Setup!$AH$11 & \"'!\" & AF349),0) + IF(Setup!$AH$12<>\"\",INDIRECT(\"'\" & Setup!$AH$12 & \"'!\" & AF349),0)","v":0},{"$f":"IF(Setup!$AI$7<>\"\",INDIRECT(\"'\" & Setup!$AI$7 & \"'!\" & AF349),0) + IF(Setup!$AI$8<>\"\",INDIRECT(\"'\" & Setup!$AI$8 & \"'!\" & AF349),0) + IF(Setup!$AI$9<>\"\",INDIRECT(\"'\" & Setup!$AI$9 & \"'!\" & AF349),0) + IF(Setup!$AI$10<>\"\",INDIRECT(\"'\" & Setup!$AI$10 & \"'!\" & AF349),0) + IF(Setup!$AI$11<>\"\",INDIRECT(\"'\" & Setup!$AI$11 & \"'!\" & AF349),0) + IF(Setup!$AI$12<>\"\",INDIRECT(\"'\" & Setup!$AI$12 & \"'!\" & AF349),0)","v":0},{"$f":"IF(Setup!$AJ$7<>\"\",INDIRECT(\"'\" & Setup!$AJ$7 & \"'!\" & AF349),0) + IF(Setup!$AJ$8<>\"\",INDIRECT(\"'\" & Setup!$AJ$8 & \"'!\" & AF349),0) + IF(Setup!$AJ$9<>\"\",INDIRECT(\"'\" & Setup!$AJ$9 & \"'!\" & AF349),0) + IF(Setup!$AJ$10<>\"\",INDIRECT(\"'\" & Setup!$AJ$10 & \"'!\" & AF349),0) + IF(Setup!$AJ$11<>\"\",INDIRECT(\"'\" & Setup!$AJ$11 & \"'!\" & AF349),0) + IF(Setup!$AJ$12<>\"\",INDIRECT(\"'\" & Setup!$AJ$12 & \"'!\" & AF349),0)","v":0},null,"",{"$nulls":30},0,{"$f":"IF(Setup!$AH$7=\"\",0,INDIRECT(\"'\" & Setup!$AH$7 & \"'!\" & AF349))","v":0},{"$f":"IF(Setup!$AI$7=\"\",0,INDIRECT(\"'\" & Setup!$AI$7 & \"'!\" & AF349))","v":0},{"$f":"IF(Setup!$AJ$7=\"\",0,INDIRECT(\"'\" & Setup!$AJ$7 & \"'!\" & AF349))","v":0}]
[{"$f":"Planning!A122","v":"I114"},{"$f":"Planning!B122","v":0},{"$f":"Planning!C122","v":0},{"$f":"Planning!D122","v":0},{"$f":"Planning!E122","v":0},{"$f":"Planning!G122","v":0},0,{"v":0,"d":"0.00"},{"v":0,"d":"0.00"},"","",{"$f":"IF(Setup!$AG$7<>\"\",INDIRECT(\"'\" & Setup!$AG$7 & \"'!\" & AD350),0) + IF(Setup!$AG$8<>\"\",INDIRECT(\"'\" & Setup!$AG$8 & \"'!\" & AD350),0) + IF(Setup!$AG$9<>\"\",INDIRECT(\"'\" & Setup!$AG$9 & \"'!\" & AD350),0) + IF(Setup!$AG$10<>\"\",INDIRECT(\"'\" & Setup!$AG$10 & \"'!\" & AD350),0) + IF(Setup!$AG$11<>\"\",INDIRECT(\"'\" & Setup!$AG$11 & \"'!\" & AD350),0) + IF(Setup!$AG$12<>\"\",INDIRECT(\"'\" & Setup!$AG$12 & \"'!\" & AD350),0)","v":{"v":0,"d":"0.00"}},{"$f":"IF(Setup!$AG$7<>\"\",INDIRECT(\"'\" & Setup!$AG$7 & \"'!\" & AE350),0) + IF(Setup!$AG$8<>\"\",INDIRECT(\"'\" & Setup!$AG$8 & \"'!\" & AE350),0) + IF(Setup!$AG$9<>\"\",INDIRECT(\"'\" & Setup!$AG$9 & \"'!\" & AE350),0) + IF(Setup!$AG$10<>\"\",INDIRECT(\"'\" & Setup!$AG$10 & \"'!\" & AE350),0) + IF(Setup!$AG$11<>\"\",INDIRECT(\"'\" & Setup!$AG$11 & \"'!\" & AE350),0) + IF(Setup!$AG$12<>\"\",INDIRECT(\"'\" & Setup!$AG$12 & \"'!\" & AE350),0)","v":{"v":0,"d":"0.00"}},"","",{"$f":"IF(Setup!$AH$7<>\"\",INDIRECT(\"'\" & Setup!$AH$7 & \"'!\" & AD350),0) + IF(Setup!$AH$8<>\"\",INDIRECT(\"'\" & Setup!$AH$8 & \"'!\" & AD350),0) + IF(Setup!$AH$9<>\"\",INDIRECT(\"'\" & Setup!$AH$9 & \"'!\" & AD350),0) + IF(Setup!$AH$10<>\"\",INDIRECT(\"'\" & Setup!$AH$10 & \"'!\" & AD350),0) + IF(Setup!$AH$11<>\"\",INDIRECT(\"'\" & Setup!$AH$11 & \"'!\" & AD350),0) + IF(Setup!$AH$12<>\"\",INDIRECT(\"'\" & Setup!$AH$12 & \"'!\" & AD350),0)","v":{"v":0,"d":"0.00"}},{"$f":"IF(Setup!$AH$7<>\"\",INDIRECT(\"'\" & Setup!$AH$7 & \"'!\" & AE350),0) + IF(Setup!$AH$8<>\"\",INDIRECT(\"'\" & Setup!$AH$8 & \"'!\" & AE350),0) + IF(Setup!$AH$9<>\"\",INDIRECT(\"'\" & Setup!$AH$9 & \"'!\" & AE350),0) + IF(Setup!$AH$10<>\"\",INDIRECT(\"'\" & Setup!$AH$10 & \"'!\" & AE350),0) + IF(Setup!$AH$11<>\"\",INDIRECT(\"'\" & Setup!$AH$11 & \"'!\" & AE350),0) + IF(Setup!$AH$12<>\"\",INDIRECT(\"'\" & Setup!$AH$12 & \"'!\" & AE350),0)","v":{"v":0,"d":"0.00"}},"","",{"$f":"IF(Setup!$AI$7<>\"\",INDIRECT(\"'\" & Setup!$AI$7 & \"'!\" & AD350),0) + IF(Setup!$AI$8<>\"\",INDIRECT(\"'\" & Setup!$AI$8 & \"'!\" & AD350),0) + IF(Setup!$AI$9<>\"\",INDIRECT(\"'\" & Setup!$AI$9 & \"'!\" & AD350),0) + IF(Setup!$AI$10<>\"\",INDIRECT(\"'\" & Setup!$AI$10 & \"'!\" & AD350),0) + IF(Setup!$AI$11<>\"\",INDIRECT(\"'\" & Setup!$AI$11 & \"'!\" & AD350),0) + IF(Setup!$AI$12<>\"\",INDIRECT(\"'\" & Setup!$AI$12 & \"'!\" & AD350),0)","v":{"v":0,"d":"0.00"}},{"$f":"IF(Setup!$AI$7<>\"\",INDIRECT(\"'\" & Setup!$AI$7 & \"'!\" & AE350),0) + IF(Setup!$AI$8<>\"\",INDIRECT(\"'\" & Setup!$AI$8 & \"'!\" & AE350),0) + IF(Setup!$AI$9<>\"\",INDIRECT(\"'\" & Setup!$AI$9 & \"'!\" & AE350),0) + IF(Setup!$AI$10<>\"\",INDIRECT(\"'\" & Setup!$AI$10 & \"'!\" & AE350),0) + IF(Setup!$AI$11<>\"\",INDIRECT(\"'\" & Setup!$AI$11 & \"'!\" & AE350),0) + IF(Setup!$AI$12<>\"\",INDIRECT(\"'\" & Setup!$AI$12 & \"'!\" & AE350),0)","v":{"v":0,"d":"0.00"}},"","",{"$f":"IF(Setup!$AJ$7<>\"\",INDIRECT(\"'\" & Setup!$AJ$7 & \"'!\" & AD350),0) + IF(Setup!$AJ$8<>\"\",INDIRECT(\"'\" & Setup!$AJ$8 & \"'!\" & AD350),0) + IF(Setup!$AJ$9<>\"\",INDIRECT(\"'\" & Setup!$AJ$9 & \"'!\" & AD350),0) + IF(Setup!$AJ$10<>\"\",INDIRECT(\"'\" & Setup!$AJ$10 & \"'!\" & AD350),0) + IF(Setup!$AJ$11<>\"\",INDIRECT(\"'\" & Setup!$AJ$11 & \"'!\" & AD350),0) + IF(Setup!$AJ$12<>\"\",INDIRECT(\"'\" & Setup!$AJ$12 & \"'!\" & AD350),0)","v":0},{"$f":"IF(Setup!$AJ$7<>\"\",INDIRECT(\"'\" & Setup!$AJ$7 & \"'!\" & AE350),0) + IF(Setup!$AJ$8<>\"\",INDIRECT(\"'\" & Setup!$AJ$8 & \"'!\" & AE350),0) + IF(Setup!$AJ$9<>\"\",INDIRECT(\"'\" & Setup!$AJ$9 & \"'!\" & AE350),0) + IF(Setup!$AJ$10<>\"\",INDIRECT(\"'\" & Setup!$AJ$10 & \"'!\" & AE350),0) + IF(Setup!$AJ$11<>\"\",INDIRECT(\"'\" & Setup!$AJ$11 & \"'!\" & AE350),0) + IF(Setup!$AJ$12<>\"\",INDIRECT(\"'\" & Setup!$AJ$12 & \"'!\" & AE350),0)","v":0},"","",{"$f":"Planning!H122","v":0},"00","M138","O138","N138",null,null,{"$f":"IF(Setup!$AG$7<>\"\",INDIRECT(\"'\" & Setup!$AG$7 & \"'!\" & AF350),0) + IF(Setup!$AG$8<>\"\",INDIRECT(\"'\" & Setup!$AG$8 & \"'!\" & AF350),0) + IF(Setup!$AG$9<>\"\",INDIRECT(\"'\" & Setup!$AG$9 & \"'!\" & AF350),0) + IF(Setup!$AG$10<>\"\",INDIRECT(\"'\" & Setup!$AG$10 & \"'!\" & AF350),0) + IF(Setup!$AG$11<>\"\",INDIRECT(\"'\" & Setup!$AG$11 & \"'!\" & AF350),0) + IF(Setup!$AG$12<>\"\",INDIRECT(\"'\" & Setup!$AG$12 & \"'!\" & AF350),0)","v":0},{"$f":"IF(Setup!$AH$7<>\"\",INDIRECT(\"'\" & Setup!$AH$7 & \"'!\" & AF350),0) + IF(Setup!$AH$8<>\"\",INDIRECT(\"'\" & Setup!$AH$8 & \"'!\" & AF350),0) + IF(Setup!$AH$9<>\"\",INDIRECT(\"'\" & Setup!$AH$9 & \"'!\" & AF350),0) + IF(Setup!$AH$10<>\"\",INDIRECT(\"'\" & Setup!$AH$10 & \"'!\" & AF350),0) + IF(Setup!$AH$11<>\"\",INDIRECT(\"'\" & Setup!$AH$11 & \"'!\" & AF350),0) + IF(Setup!$AH$12<>\"\",INDIRECT(\"'\" & Setup!$AH$12 & \"'!\" & AF350),0)","v":0},{"$f":"IF(Setup!$AI$7<>\"\",INDIRECT(\"'\" & Setup!$AI$7 & \"'!\" & AF350),0) + IF(Setup!$AI$8<>\"\",INDIRECT(\"'\" & Setup!$AI$8 & \"'!\" & AF350),0) + IF(Setup!$AI$9<>\"\",INDIRECT(\"'\" & Setup!$AI$9 & \"'!\" & AF350),0) + IF(Setup!$AI$10<>\"\",INDIRECT(\"'\" & Setup!$AI$10 & \"'!\" & AF350),0) + IF(Setup!$AI$11<>\"\",INDIRECT(\"'\" & Setup!$AI$11 & \"'!\" & AF350),0) + IF(Setup!$AI$12<>\"\",INDIRECT(\"'\" & Setup!$AI$12 & \"'!\" & AF350),0)","v":0},{"$f":"IF(Setup!$AJ$7<>\"\",INDIRECT(\"'\" & Setup!$AJ$7 & \"'!\" & AF350),0) + IF(Setup!$AJ$8<>\"\",INDIRECT(\"'\" & Setup!$AJ$8 & \"'!\" & AF350),0) + IF(Setup!$AJ$9<>\"\",INDIRECT(\"'\" & Setup!$AJ$9 & \"'!\" & AF350),0) + IF(Setup!$AJ$10<>\"\",INDIRECT(\"'\" & Setup!$AJ$10 & \"'!\" & AF350),0) + IF(Setup!$AJ$11<>\"\",INDIRECT(\"'\" & Setup!$AJ$11 & \"'!\" & AF350),0) + IF(Setup!$AJ$12<>\"\",INDIRECT(\"'\" & Setup!$AJ$12 & \"'!\" & AF350),0)","v":0},null,"",{"$nulls":30},0,{"$f":"IF(Setup!$AH$7=\"\",0,INDIRECT(\"'\" & Setup!$AH$7 & \"'!\" & AF350))","v":0},{"$f":"IF(Setup!$AI$7=\"\",0,INDIRECT(\"'\" & Setup!$AI$7 & \"'!\" & AF350))","v":0},{"$f":"IF(Setup!$AJ$7=\"\",0,INDIRECT(\"'\" & Setup!$AJ$7 & \"'!\" & AF350))","v":0}]
[{"$f":"Planning!A123","v":"I115"},{"$f":"Planning!B123","v":0},{"$f":"Planning!C123","v":0},{"$f":"Planning!D123","v":0},{"$f":"Planning!E123","v":0},{"$f":"Planning!G123","v":0},0,{"v":0,"d":"0.00"},{"v":0,"d":"0.00"},"","",{"$f":"IF(Setup!$AG$7<>\"\",INDIRECT(\"'\" & Setup!$AG$7 & \"'!\" & AD351),0) + IF(Setup!$AG$8<>\"\",INDIRECT(\"'\" & Setup!$AG$8 & \"'!\" & AD351),0) + IF(Setup!$AG$9<>\"\",INDIRECT(\"'\" & Setup!$AG$9 & \"'!\" & AD351),0) + IF(Setup!$AG$10<>\"\",INDIRECT(\"'\" & Setup!$AG$10 & \"'!\" & AD351),0) + IF(Setup!$AG$11<>\"\",INDIRECT(\"'\" & Setup!$AG$11 & \"'!\" & AD351),0) + IF(Setup!$AG$12<>\"\",INDIRECT(\"'\" & Setup!$AG$12 & \"'!\" & AD351),0)","v":{"v":0,"d":"0.00"}},{"$f":"IF(Setup!$AG$7<>\"\",INDIRECT(\"'\" & Setup!$AG$7 & \"'!\" & AE351),0) + IF(Setup!$AG$8<>\"\",INDIRECT(\"'\" & Setup!$AG$8 & \"'!\" & AE351),0) + IF(Setup!$AG$9<>\"\",INDIRECT(\"'\" & Setup!$AG$9 & \"'!\" & AE351),0) + IF(Setup!$AG$10<>\"\",INDIRECT(\"'\" & Setup!$AG$10 & \"'!\" & AE351),0) + IF(Setup!$AG$11<>\"\",INDIRECT(\"'\" & Setup!$AG$11 & \"'!\" & AE351),0) + IF(Setup!$AG$12<>\"\",INDIRECT(\"'\" & Setup!$AG$12 & \"'!\" & AE351),0)","v":{"v":0,"d":"0.00"}},"","",{"$f":"IF(Setup!$AH$7<>\"\",INDIRECT(\"'\" & Setup!$AH$7 & \"'!\" & AD351),0) + IF(Setup!$AH$8<>\"\",INDIRECT(\"'\" & Setup!$AH$8 & \"'!\" & AD351),0) + IF(Setup!$AH$9<>\"\",INDIRECT(\"'\" & Setup!$AH$9 & \"'!\" & AD351),0) + IF(Setup!$AH$10<>\"\",INDIRECT(\"'\" & Setup!$AH$10 & \"'!\" & AD351),0) + IF(Setup!$AH$11<>\"\",INDIRECT(\"'\" & Setup!$AH$11 & \"'!\" & AD351),0) + IF(Setup!$AH$12<>\"\",INDIRECT(\"'\" & Setup!$AH$12 & \"'!\" & AD351),0)","v":{"v":0,"d":"0.00"}},{"$f":"IF(Setup!$AH$7<>\"\",INDIRECT(\"'\" & Setup!$AH$7 & \"'!\" & AE351),0) + IF(Setup!$AH$8<>\"\",INDIRECT(\"'\" & Setup!$AH$8 & \"'!\" & AE351),0) + IF(Setup!$AH$9<>\"\",INDIRECT(\"'\" & Setup!$AH$9 & \"'!\" & AE351),0) + IF(Setup!$AH$10<>\"\",INDIRECT(\"'\" & Setup!$AH$10 & \"'!\" & AE351),0) + IF(Setup!$AH$11<>\"\",INDIRECT(\"'\" & Setup!$AH$11 & \"'!\" & AE351),0) + IF(Setup!$AH$12<>\"\",INDIRECT(\"'\" & Setup!$AH$12 & \"'!\" & AE351),0)","v":{"v":0,"d":"0.00"}},"","",{"$f":"IF(Setup!$AI$7<>\"\",INDIRECT(\"'\" & Setup!$AI$7 & \"'!\" & AD351),0) + IF(Setup!$AI$8<>\"\",INDIRECT(\"'\" & Setup!$AI$8 & \"'!\" & AD351),0) + IF(Setup!$AI$9<>\"\",INDIRECT(\"'\" & Setup!$AI$9 & \"'!\" & AD351),0) + IF(Setup!$AI$10<>\"\",INDIRECT(\"'\" & Setup!$AI$10 & \"'!\" & AD351),0) + IF(Setup!$AI$11<>\"\",INDIRECT(\"'\" & Setup!$AI$11 & \"'!\" & AD351),0) + IF(Setup!$AI$12<>\"\",INDIRECT(\"'\" & Setup!$AI$12 & \"'!\" & AD351),0)","v":{"v":0,"d":"0.00"}},{"$f":"IF(Setup!$AI$7<>\"\",INDIRECT(\"'\" & Setup!$AI$7 & \"'!\" & AE351),0) + IF(Setup!$AI$8<>\"\",INDIRECT(\"'\" & Setup!$AI$8 & \"'!\" & AE351),0) + IF(Setup!$AI$9<>\"\",INDIRECT(\"'\" & Setup!$AI$9 & \"'!\" & AE351),0) + IF(Setup!$AI$10<>\"\",INDIRECT(\"'\" & Setup!$AI$10 & \"'!\" & AE351),0) + IF(Setup!$AI$11<>\"\",INDIRECT(\"'\" & Setup!$AI$11 & \"'!\" & AE351),0) + IF(Setup!$AI$12<>\"\",INDIRECT(\"'\" & Setup!$AI$12 & \"'!\" & AE351),0)","v":{"v":0,"d":"0.00"}},"","",{"$f":"IF(Setup!$AJ$7<>\"\",INDIRECT(\"'\" & Setup!$AJ$7 & \"'!\" & AD351),0) + IF(Setup!$AJ$8<>\"\",INDIRECT(\"'\" & Setup!$AJ$8 & \"'!\" & AD351),0) + IF(Setup!$AJ$9<>\"\",INDIRECT(\"'\" & Setup!$AJ$9 & \"'!\" & AD351),0) + IF(Setup!$AJ$10<>\"\",INDIRECT(\"'\" & Setup!$AJ$10 & \"'!\" & AD351),0) + IF(Setup!$AJ$11<>\"\",INDIRECT(\"'\" & Setup!$AJ$11 & \"'!\" & AD351),0) + IF(Setup!$AJ$12<>\"\",INDIRECT(\"'\" & Setup!$AJ$12 & \"'!\" & AD351),0)","v":0},{"$f":"IF(Setup!$AJ$7<>\"\",INDIRECT(\"'\" & Setup!$AJ$7 & \"'!\" & AE351),0) + IF(Setup!$AJ$8<>\"\",INDIRECT(\"'\" & Setup!$AJ$8 & \"'!\" & AE351),0) + IF(Setup!$AJ$9<>\"\",INDIRECT(\"'\" & Setup!$AJ$9 & \"'!\" & AE351),0) + IF(Setup!$AJ$10<>\"\",INDIRECT(\"'\" & Setup!$AJ$10 & \"'!\" & AE351),0) + IF(Setup!$AJ$11<>\"\",INDIRECT(\"'\" & Setup!$AJ$11 & \"'!\" & AE351),0) + IF(Setup!$AJ$12<>\"\",INDIRECT(\"'\" & Setup!$AJ$12 & \"'!\" & AE351),0)","v":0},"","",{"$f":"Planning!H123","v":0},"00","M139","O139","N139",null,null,{"$f":"IF(Setup!$AG$7<>\"\",INDIRECT(\"'\" & Setup!$AG$7 & \"'!\" & AF351),0) + IF(Setup!$AG$8<>\"\",INDIRECT(\"'\" & Setup!$AG$8 & \"'!\" & AF351),0) + IF(Setup!$AG$9<>\"\",INDIRECT(\"'\" & Setup!$AG$9 & \"'!\" & AF351),0) + IF(Setup!$AG$10<>\"\",INDIRECT(\"'\" & Setup!$AG$10 & \"'!\" & AF351),0) + IF(Setup!$AG$11<>\"\",INDIRECT(\"'\" & Setup!$AG$11 & \"'!\" & AF351),0) + IF(Setup!$AG$12<>\"\",INDIRECT(\"'\" & Setup!$AG$12 & \"'!\" & AF351),0)","v":0},{"$f":"IF(Setup!$AH$7<>\"\",INDIRECT(\"'\" & Setup!$AH$7 & \"'!\" & AF351),0) + IF(Setup!$AH$8<>\"\",INDIRECT(\"'\" & Setup!$AH$8 & \"'!\" & AF351),0) + IF(Setup!$AH$9<>\"\",INDIRECT(\"'\" & Setup!$AH$9 & \"'!\" & AF351),0) + IF(Setup!$AH$10<>\"\",INDIRECT(\"'\" & Setup!$AH$10 & \"'!\" & AF351),0) + IF(Setup!$AH$11<>\"\",INDIRECT(\"'\" & Setup!$AH$11 & \"'!\" & AF351),0) + IF(Setup!$AH$12<>\"\",INDIRECT(\"'\" & Setup!$AH$12 & \"'!\" & AF351),0)","v":0},{"$f":"IF(Setup!$AI$7<>\"\",INDIRECT(\"'\" & Setup!$AI$7 & \"'!\" & AF351),0) + IF(Setup!$AI$8<>\"\",INDIRECT(\"'\" & Setup!$AI$8 & \"'!\" & AF351),0) + IF(Setup!$AI$9<>\"\",INDIRECT(\"'\" & Setup!$AI$9 & \"'!\" & AF351),0) + IF(Setup!$AI$10<>\"\",INDIRECT(\"'\" & Setup!$AI$10 & \"'!\" & AF351),0) + IF(Setup!$AI$11<>\"\",INDIRECT(\"'\" & Setup!$AI$11 & \"'!\" & AF351),0) + IF(Setup!$AI$12<>\"\",INDIRECT(\"'\" & Setup!$AI$12 & \"'!\" & AF351),0)","v":0},{"$f":"IF(Setup!$AJ$7<>\"\",INDIRECT(\"'\" & Setup!$AJ$7 & \"'!\" & AF351),0) + IF(Setup!$AJ$8<>\"\",INDIRECT(\"'\" & Setup!$AJ$8 & \"'!\" & AF351),0) + IF(Setup!$AJ$9<>\"\",INDIRECT(\"'\" & Setup!$AJ$9 & \"'!\" & AF351),0) + IF(Setup!$AJ$10<>\"\",INDIRECT(\"'\" & Setup!$AJ$10 & \"'!\" & AF351),0) + IF(Setup!$AJ$11<>\"\",INDIRECT(\"'\" & Setup!$AJ$11 & \"'!\" & AF351),0) + IF(Setup!$AJ$12<>\"\",INDIRECT(\"'\" & Setup!$AJ$12 & \"'!\" & AF351),0)","v":0},null,"",{"$nulls":30},0,{"$f":"IF(Setup!$AH$7=\"\",0,INDIRECT(\"'\" & Setup!$AH$7 & \"'!\" & AF351))","v":0},{"$f":"IF(Setup!$AI$7=\"\",0,INDIRECT(\"'\" & Setup!$AI$7 & \"'!\" & AF351))","v":0},{"$f":"IF(Setup!$AJ$7=\"\",0,INDIRECT(\"'\" & Setup!$AJ$7 & \"'!\" & AF351))","v":0}]
[{"$f":"Planning!A124","v":"I116"},{"$f":"Planning!B124","v":0},{"$f":"Planning!C124","v":0},{"$f":"Planning!D124","v":0},{"$f":"Planning!E124","v":0},{"$f":"Planning!G124","v":0},0,{"v":0,"d":"0.00"},{"v":0,"d":"0.00"},"","",{"$f":"IF(Setup!$AG$7<>\"\",INDIRECT(\"'\" & Setup!$AG$7 & \"'!\" & AD352),0) + IF(Setup!$AG$8<>\"\",INDIRECT(\"'\" & Setup!$AG$8 & \"'!\" & AD352),0) + IF(Setup!$AG$9<>\"\",INDIRECT(\"'\" & Setup!$AG$9 & \"'!\" & AD352),0) + IF(Setup!$AG$10<>\"\",INDIRECT(\"'\" & Setup!$AG$10 & \"'!\" & AD352),0) + IF(Setup!$AG$11<>\"\",INDIRECT(\"'\" & Setup!$AG$11 & \"'!\" & AD352),0) + IF(Setup!$AG$12<>\"\",INDIRECT(\"'\" & Setup!$AG$12 & \"'!\" & AD352),0)","v":{"v":0,"d":"0.00"}},{"$f":"IF(Setup!$AG$7<>\"\",INDIRECT(\"'\" & Setup!$AG$7 & \"'!\" & AE352),0) + IF(Setup!$AG$8<>\"\",INDIRECT(\"'\" & Setup!$AG$8 & \"'!\" & AE352),0) + IF(Setup!$AG$9<>\"\",INDIRECT(\"'\" & Setup!$AG$9 & \"'!\" & AE352),0) + IF(Setup!$AG$10<>\"\",INDIRECT(\"'\" & Setup!$AG$10 & \"'!\" & AE352),0) + IF(Setup!$AG$11<>\"\",INDIRECT(\"'\" & Setup!$AG$11 & \"'!\" & AE352),0) + IF(Setup!$AG$12<>\"\",INDIRECT(\"'\" & Setup!$AG$12 & \"'!\" & AE352),0)","v":{"v":0,"d":"0.00"}},"","",{"$f":"IF(Setup!$AH$7<>\"\",INDIRECT(\"'\" & Setup!$AH$7 & \"'!\" & AD352),0) + IF(Setup!$AH$8<>\"\",INDIRECT(\"'\" & Setup!$AH$8 & \"'!\" & AD352),0) + IF(Setup!$AH$9<>\"\",INDIRECT(\"'\" & Setup!$AH$9 & \"'!\" & AD352),0) + IF(Setup!$AH$10<>\"\",INDIRECT(\"'\" & Setup!$AH$10 & \"'!\" & AD352),0) + IF(Setup!$AH$11<>\"\",INDIRECT(\"'\" & Setup!$AH$11 & \"'!\" & AD352),0) + IF(Setup!$AH$12<>\"\",INDIRECT(\"'\" & Setup!$AH$12 & \"'!\" & AD352),0)","v":{"v":0,"d":"0.00"}},{"$f":"IF(Setup!$AH$7<>\"\",INDIRECT(\"'\" & Setup!$AH$7 & \"'!\" & AE352),0) + IF(Setup!$AH$8<>\"\",INDIRECT(\"'\" & Setup!$AH$8 & \"'!\" & AE352),0) + IF(Setup!$AH$9<>\"\",INDIRECT(\"'\" & Setup!$AH$9 & \"'!\" & AE352),0) + IF(Setup!$AH$10<>\"\",INDIRECT(\"'\" & Setup!$AH$10 & \"'!\" & AE352),0) + IF(Setup!$AH$11<>\"\",INDIRECT(\"'\" & Setup!$AH$11 & \"'!\" & AE352),0) + IF(Setup!$AH$12<>\"\",INDIRECT(\"'\" & Setup!$AH$12 & \"'!\" & AE352),0)","v":{"v":0,"d":"0.00"}},"","",{"$f":"IF(Setup!$AI$7<>\"\",INDIRECT(\"'\" & Setup!$AI$7 & \"'!\" & AD352),0) + IF(Setup!$AI$8<>\"\",INDIRECT(\"'\" & Setup!$AI$8 & \"'!\" & AD352),0) + IF(Setup!$AI$9<>\"\",INDIRECT(\"'\" & Setup!$AI$9 & \"'!\" & AD352),0) + IF(Setup!$AI$10<>\"\",INDIRECT(\"'\" & Setup!$AI$10 & \"'!\" & AD352),0) + IF(Setup!$AI$11<>\"\",INDIRECT(\"'\" & Setup!$AI$11 & \"'!\" & AD352),0) + IF(Setup!$AI$12<>\"\",INDIRECT(\"'\" & Setup!$AI$12 & \"'!\" & AD352),0)","v":{"v":0,"d":"0.00"}},{"$f":"IF(Setup!$AI$7<>\"\",INDIRECT(\"'\" & Setup!$AI$7 & \"'!\" & AE352),0) + IF(Setup!$AI$8<>\"\",INDIRECT(\"'\" & Setup!$AI$8 & \"'!\" & AE352),0) + IF(Setup!$AI$9<>\"\",INDIRECT(\"'\" & Setup!$AI$9 & \"'!\" & AE352),0) + IF(Setup!$AI$10<>\"\",INDIRECT(\"'\" & Setup!$AI$10 & \"'!\" & AE352),0) + IF(Setup!$AI$11<>\"\",INDIRECT(\"'\" & Setup!$AI$11 & \"'!\" & AE352),0) + IF(Setup!$AI$12<>\"\",INDIRECT(\"'\" & Setup!$AI$12 & \"'!\" & AE352),0)","v":{"v":0,"d":"0.00"}},"","",{"$f":"IF(Setup!$AJ$7<>\"\",INDIRECT(\"'\" & Setup!$AJ$7 & \"'!\" & AD352),0) + IF(Setup!$AJ$8<>\"\",INDIRECT(\"'\" & Setup!$AJ$8 & \"'!\" & AD352),0) + IF(Setup!$AJ$9<>\"\",INDIRECT(\"'\" & Setup!$AJ$9 & \"'!\" & AD352),0) + IF(Setup!$AJ$10<>\"\",INDIRECT(\"'\" & Setup!$AJ$10 & \"'!\" & AD352),0) + IF(Setup!$AJ$11<>\"\",INDIRECT(\"'\" & Setup!$AJ$11 & \"'!\" & AD352),0) + IF(Setup!$AJ$12<>\"\",INDIRECT(\"'\" & Setup!$AJ$12 & \"'!\" & AD352),0)","v":0},{"$f":"IF(Setup!$AJ$7<>\"\",INDIRECT(\"'\" & Setup!$AJ$7 & \"'!\" & AE352),0) + IF(Setup!$AJ$8<>\"\",INDIRECT(\"'\" & Setup!$AJ$8 & \"'!\" & AE352),0) + IF(Setup!$AJ$9<>\"\",INDIRECT(\"'\" & Setup!$AJ$9 & \"'!\" & AE352),0) + IF(Setup!$AJ$10<>\"\",INDIRECT(\"'\" & Setup!$AJ$10 & \"'!\" & AE352),0) + IF(Setup!$AJ$11<>\"\",INDIRECT(\"'\" & Setup!$AJ$11 & \"'!\" & AE352),0) + IF(Setup!$AJ$12<>\"\",INDIRECT(\"'\" & Setup!$AJ$12 & \"'!\" & AE352),0)","v":0},"","",{"$f":"Planning!H124","v":0},"00","M140","O140","N140",null,null,{"$f":"IF(Setup!$AG$7<>\"\",INDIRECT(\"'\" & Setup!$AG$7 & \"'!\" & AF352),0) + IF(Setup!$AG$8<>\"\",INDIRECT(\"'\" & Setup!$AG$8 & \"'!\" & AF352),0) + IF(Setup!$AG$9<>\"\",INDIRECT(\"'\" & Setup!$AG$9 & \"'!\" & AF352),0) + IF(Setup!$AG$10<>\"\",INDIRECT(\"'\" & Setup!$AG$10 & \"'!\" & AF352),0) + IF(Setup!$AG$11<>\"\",INDIRECT(\"'\" & Setup!$AG$11 & \"'!\" & AF352),0) + IF(Setup!$AG$12<>\"\",INDIRECT(\"'\" & Setup!$AG$12 & \"'!\" & AF352),0)","v":0},{"$f":"IF(Setup!$AH$7<>\"\",INDIRECT(\"'\" & Setup!$AH$7 & \"'!\" & AF352),0) + IF(Setup!$AH$8<>\"\",INDIRECT(\"'\" & Setup!$AH$8 & \"'!\" & AF352),0) + IF(Setup!$AH$9<>\"\",INDIRECT(\"'\" & Setup!$AH$9 & \"'!\" & AF352),0) + IF(Setup!$AH$10<>\"\",INDIRECT(\"'\" & Setup!$AH$10 & \"'!\" & AF352),0) + IF(Setup!$AH$11<>\"\",INDIRECT(\"'\" & Setup!$AH$11 & \"'!\" & AF352),0) + IF(Setup!$AH$12<>\"\",INDIRECT(\"'\" & Setup!$AH$12 & \"'!\" & AF352),0)","v":0},{"$f":"IF(Setup!$AI$7<>\"\",INDIRECT(\"'\" & Setup!$AI$7 & \"'!\" & AF352),0) + IF(Setup!$AI$8<>\"\",INDIRECT(\"'\" & Setup!$AI$8 & \"'!\" & AF352),0) + IF(Setup!$AI$9<>\"\",INDIRECT(\"'\" & Setup!$AI$9 & \"'!\" & AF352),0) + IF(Setup!$AI$10<>\"\",INDIRECT(\"'\" & Setup!$AI$10 & \"'!\" & AF352),0) + IF(Setup!$AI$11<>\"\",INDIRECT(\"'\" & Setup!$AI$11 & \"'!\" & AF352),0) + IF(Setup!$AI$12<>\"\",INDIRECT(\"'\" & Setup!$AI$12 & \"'!\" & AF352),0)","v":0},{"$f":"IF(Setup!$AJ$7<>\"\",INDIRECT(\"'\" & Setup!$AJ$7 & \"'!\" & AF352),0) + IF(Setup!$AJ$8<>\"\",INDIRECT(\"'\" & Setup!$AJ$8 & \"'!\" & AF352),0) + IF(Setup!$AJ$9<>\"\",INDIRECT(\"'\" & Setup!$AJ$9 & \"'!\" & AF352),0) + IF(Setup!$AJ$10<>\"\",INDIRECT(\"'\" & Setup!$AJ$10 & \"'!\" & AF352),0) + IF(Setup!$AJ$11<>\"\",INDIRECT(\"'\" & Setup!$AJ$11 & \"'!\" & AF352),0) + IF(Setup!$AJ$12<>\"\",INDIRECT(\"'\" & Setup!$AJ$12 & \"'!\" & AF352),0)","v":0},null,"",{"$nulls":30},0,{"$f":"IF(Setup!$AH$7=\"\",0,INDIRECT(\"'\" & Setup!$AH$7 & \"'!\" & AF352))","v":0},{"$f":"IF(Setup!$AI$7=\"\",0,INDIRECT(\"'\" & Setup!$AI$7 & \"'!\" & AF352))","v":0},{"$f":"IF(Setup!$AJ$7=\"\",0,INDIRECT(\"'\" & Setup!$AJ$7 & \"'!\" & AF352))","v":0}]
[{"$f":"Planning!A125","v":"I117"},{"$f":"Planning!B125","v":0},{"$f":"Planning!C125","v":0},{"$f":"Planning!D125","v":0},{"$f":"Planning!E125","v":0},{"$f":"Planning!G125","v":0},0,{"v":0,"d":"0.00"},{"v":0,"d":"0.00"},"","",{"$f":"IF(Setup!$AG$7<>\"\",INDIRECT(\"'\" & Setup!$AG$7 & \"'!\" & AD353),0) + IF(Setup!$AG$8<>\"\",INDIRECT(\"'\" & Setup!$AG$8 & \"'!\" & AD353),0) + IF(Setup!$AG$9<>\"\",INDIRECT(\"'\" & Setup!$AG$9 & \"'!\" & AD353),0) + IF(Setup!$AG$10<>\"\",INDIRECT(\"'\" & Setup!$AG$10 & \"'!\" & AD353),0) + IF(Setup!$AG$11<>\"\",INDIRECT(\"'\" & Setup!$AG$11 & \"'!\" & AD353),0) + IF(Setup!$AG$12<>\"\",INDIRECT(\"'\" & Setup!$AG$12 & \"'!\" & AD353),0)","v":{"v":0,"d":"0.00"}},{"$f":"IF(Setup!$AG$7<>\"\",INDIRECT(\"'\" & Setup!$AG$7 & \"'!\" & AE353),0) + IF(Setup!$AG$8<>\"\",INDIRECT(\"'\" & Setup!$AG$8 & \"'!\" & AE353),0) + IF(Setup!$AG$9<>\"\",INDIRECT(\"'\" & Setup!$AG$9 & \"'!\" & AE353),0) + IF(Setup!$AG$10<>\"\",INDIRECT(\"'\" & Setup!$AG$10 & \"'!\" & AE353),0) + IF(Setup!$AG$11<>\"\",INDIRECT(\"'\" & Setup!$AG$11 & \"'!\" & AE353),0) + IF(Setup!$AG$12<>\"\",INDIRECT(\"'\" & Setup!$AG$12 & \"'!\" & AE353),0)","v":{"v":0,"d":"0.00"}},"","",{"$f":"IF(Setup!$AH$7<>\"\",INDIRECT(\"'\" & Setup!$AH$7 & \"'!\" & AD353),0) + IF(Setup!$AH$8<>\"\",INDIRECT(\"'\" & Setup!$AH$8 & \"'!\" & AD353),0) + IF(Setup!$AH$9<>\"\",INDIRECT(\"'\" & Setup!$AH$9 & \"'!\" & AD353),0) + IF(Setup!$AH$10<>\"\",INDIRECT(\"'\" & Setup!$AH$10 & \"'!\" & AD353),0) + IF(Setup!$AH$11<>\"\",INDIRECT(\"'\" & Setup!$AH$11 & \"'!\" & AD353),0) + IF(Setup!$AH$12<>\"\",INDIRECT(\"'\" & Setup!$AH$12 & \"'!\" & AD353),0)","v":{"v":0,"d":"0.00"}},{"$f":"IF(Setup!$AH$7<>\"\",INDIRECT(\"'\" & Setup!$AH$7 & \"'!\" & AE353),0) + IF(Setup!$AH$8<>\"\",INDIRECT(\"'\" & Setup!$AH$8 & \"'!\" & AE353),0) + IF(Setup!$AH$9<>\"\",INDIRECT(\"'\" & Setup!$AH$9 & \"'!\" & AE353),0) + IF(Setup!$AH$10<>\"\",INDIRECT(\"'\" & Setup!$AH$10 & \"'!\" & AE353),0) + IF(Setup!$AH$11<>\"\",INDIRECT(\"'\" & Setup!$AH$11 & \"'!\" & AE353),0) + IF(Setup!$AH$12<>\"\",INDIRECT(\"'\" & Setup!$AH$12 & \"'!\" & AE353),0)","v":{"v":0,"d":"0.00"}},"","",{"$f":"IF(Setup!$AI$7<>\"\",INDIRECT(\"'\" & Setup!$AI$7 & \"'!\" & AD353),0) + IF(Setup!$AI$8<>\"\",INDIRECT(\"'\" & Setup!$AI$8 & \"'!\" & AD353),0) + IF(Setup!$AI$9<>\"\",INDIRECT(\"'\" & Setup!$AI$9 & \"'!\" & AD353),0) + IF(Setup!$AI$10<>\"\",INDIRECT(\"'\" & Setup!$AI$10 & \"'!\" & AD353),0) + IF(Setup!$AI$11<>\"\",INDIRECT(\"'\" & Setup!$AI$11 & \"'!\" & AD353),0) + IF(Setup!$AI$12<>\"\",INDIRECT(\"'\" & Setup!$AI$12 & \"'!\" & AD353),0)","v":{"v":0,"d":"0.00"}},{"$f":"IF(Setup!$AI$7<>\"\",INDIRECT(\"'\" & Setup!$AI$7 & \"'!\" & AE353),0) + IF(Setup!$AI$8<>\"\",INDIRECT(\"'\" & Setup!$AI$8 & \"'!\" & AE353),0) + IF(Setup!$AI$9<>\"\",INDIRECT(\"'\" & Setup!$AI$9 & \"'!\" & AE353),0) + IF(Setup!$AI$10<>\"\",INDIRECT(\"'\" & Setup!$AI$10 & \"'!\" & AE353),0) + IF(Setup!$AI$11<>\"\",INDIRECT(\"'\" & Setup!$AI$11 & \"'!\" & AE353),0) + IF(Setup!$AI$12<>\"\",INDIRECT(\"'\" & Setup!$AI$12 & \"'!\" & AE353),0)","v":{"v":0,"d":"0.00"}},"","",{"$f":"IF(Setup!$AJ$7<>\"\",INDIRECT(\"'\" & Setup!$AJ$7 & \"'!\" & AD353),0) + IF(Setup!$AJ$8<>\"\",INDIRECT(\"'\" & Setup!$AJ$8 & \"'!\" & AD353),0) + IF(Setup!$AJ$9<>\"\",INDIRECT(\"'\" & Setup!$AJ$9 & \"'!\" & AD353),0) + IF(Setup!$AJ$10<>\"\",INDIRECT(\"'\" & Setup!$AJ$10 & \"'!\" & AD353),0) + IF(Setup!$AJ$11<>\"\",INDIRECT(\"'\" & Setup!$AJ$11 & \"'!\" & AD353),0) + IF(Setup!$AJ$12<>\"\",INDIRECT(\"'\" & Setup!$AJ$12 & \"'!\" & AD353),0)","v":0},{"$f":"IF(Setup!$AJ$7<>\"\",INDIRECT(\"'\" & Setup!$AJ$7 & \"'!\" & AE353),0) + IF(Setup!$AJ$8<>\"\",INDIRECT(\"'\" & Setup!$AJ$8 & \"'!\" & AE353),0) + IF(Setup!$AJ$9<>\"\",INDIRECT(\"'\" & Setup!$AJ$9 & \"'!\" & AE353),0) + IF(Setup!$AJ$10<>\"\",INDIRECT(\"'\" & Setup!$AJ$10 & \"'!\" & AE353),0) + IF(Setup!$AJ$11<>\"\",INDIRECT(\"'\" & Setup!$AJ$11 & \"'!\" & AE353),0) + IF(Setup!$AJ$12<>\"\",INDIRECT(\"'\" & Setup!$AJ$12 & \"'!\" & AE353),0)","v":0},"","",{"$f":"Planning!H125","v":0},"00","M141","O141","N141",null,null,{"$f":"IF(Setup!$AG$7<>\"\",INDIRECT(\"'\" & Setup!$AG$7 & \"'!\" & AF353),0) + IF(Setup!$AG$8<>\"\",INDIRECT(\"'\" & Setup!$AG$8 & \"'!\" & AF353),0) + IF(Setup!$AG$9<>\"\",INDIRECT(\"'\" & Setup!$AG$9 & \"'!\" & AF353),0) + IF(Setup!$AG$10<>\"\",INDIRECT(\"'\" & Setup!$AG$10 & \"'!\" & AF353),0) + IF(Setup!$AG$11<>\"\",INDIRECT(\"'\" & Setup!$AG$11 & \"'!\" & AF353),0) + IF(Setup!$AG$12<>\"\",INDIRECT(\"'\" & Setup!$AG$12 & \"'!\" & AF353),0)","v":0},{"$f":"IF(Setup!$AH$7<>\"\",INDIRECT(\"'\" & Setup!$AH$7 & \"'!\" & AF353),0) + IF(Setup!$AH$8<>\"\",INDIRECT(\"'\" & Setup!$AH$8 & \"'!\" & AF353),0) + IF(Setup!$AH$9<>\"\",INDIRECT(\"'\" & Setup!$AH$9 & \"'!\" & AF353),0) + IF(Setup!$AH$10<>\"\",INDIRECT(\"'\" & Setup!$AH$10 & \"'!\" & AF353),0) + IF(Setup!$AH$11<>\"\",INDIRECT(\"'\" & Setup!$AH$11 & \"'!\" & AF353),0) + IF(Setup!$AH$12<>\"\",INDIRECT(\"'\" & Setup!$AH$12 & \"'!\" & AF353),0)","v":0},{"$f":"IF(Setup!$AI$7<>\"\",INDIRECT(\"'\" & Setup!$AI$7 & \"'!\" & AF353),0) + IF(Setup!$AI$8<>\"\",INDIRECT(\"'\" & Setup!$AI$8 & \"'!\" & AF353),0) + IF(Setup!$AI$9<>\"\",INDIRECT(\"'\" & Setup!$AI$9 & \"'!\" & AF353),0) + IF(Setup!$AI$10<>\"\",INDIRECT(\"'\" & Setup!$AI$10 & \"'!\" & AF353),0) + IF(Setup!$AI$11<>\"\",INDIRECT(\"'\" & Setup!$AI$11 & \"'!\" & AF353),0) + IF(Setup!$AI$12<>\"\",INDIRECT(\"'\" & Setup!$AI$12 & \"'!\" & AF353),0)","v":0},{"$f":"IF(Setup!$AJ$7<>\"\",INDIRECT(\"'\" & Setup!$AJ$7 & \"'!\" & AF353),0) + IF(Setup!$AJ$8<>\"\",INDIRECT(\"'\" & Setup!$AJ$8 & \"'!\" & AF353),0) + IF(Setup!$AJ$9<>\"\",INDIRECT(\"'\" & Setup!$AJ$9 & \"'!\" & AF353),0) + IF(Setup!$AJ$10<>\"\",INDIRECT(\"'\" & Setup!$AJ$10 & \"'!\" & AF353),0) + IF(Setup!$AJ$11<>\"\",INDIRECT(\"'\" & Setup!$AJ$11 & \"'!\" & AF353),0) + IF(Setup!$AJ$12<>\"\",INDIRECT(\"'\" & Setup!$AJ$12 & \"'!\" & AF353),0)","v":0},null,"",{"$nulls":30},0,{"$f":"IF(Setup!$AH$7=\"\",0,INDIRECT(\"'\" & Setup!$AH$7 & \"'!\" & AF353))","v":0},{"$f":"IF(Setup!$AI$7=\"\",0,INDIRECT(\"'\" & Setup!$AI$7 & \"'!\" & AF353))","v":0},{"$f":"IF(Setup!$AJ$7=\"\",0,INDIRECT(\"'\" & Setup!$AJ$7 & \"'!\" & AF353))","v":0}]
[{"$f":"Planning!A126","v":"I118"},{"$f":"Planning!B126","v":0},{"$f":"Planning!C126","v":0},{"$f":"Planning!D126","v":0},{"$f":"Planning!E126","v":0},{"$f":"Planning!G126","v":0},0,{"v":0,"d":"0.00"},{"v":0,"d":"0.00"},"","",{"$f":"IF(Setup!$AG$7<>\"\",INDIRECT(\"'\" & Setup!$AG$7 & \"'!\" & AD354),0) + IF(Setup!$AG$8<>\"\",INDIRECT(\"'\" & Setup!$AG$8 & \"'!\" & AD354),0) + IF(Setup!$AG$9<>\"\",INDIRECT(\"'\" & Setup!$AG$9 & \"'!\" & AD354),0) + IF(Setup!$AG$10<>\"\",INDIRECT(\"'\" & Setup!$AG$10 & \"'!\" & AD354),0) + IF(Setup!$AG$11<>\"\",INDIRECT(\"'\" & Setup!$AG$11 & \"'!\" & AD354),0) + IF(Setup!$AG$12<>\"\",INDIRECT(\"'\" & Setup!$AG$12 & \"'!\" & AD354),0)","v":{"v":0,"d":"0.00"}},{"$f":"IF(Setup!$AG$7<>\"\",INDIRECT(\"'\" & Setup!$AG$7 & \"'!\" & AE354),0) + IF(Setup!$AG$8<>\"\",INDIRECT(\"'\" & Setup!$AG$8 & \"'!\" & AE354),0) + IF(Setup!$AG$9<>\"\",INDIRECT(\"'\" & Setup!$AG$9 & \"'!\" & AE354),0) + IF(Setup!$AG$10<>\"\",INDIRECT(\"'\" & Setup!$AG$10 & \"'!\" & AE354),0) + IF(Setup!$AG$11<>\"\",INDIRECT(\"'\" & Setup!$AG$11 & \"'!\" & AE354),0) + IF(Setup!$AG$12<>\"\",INDIRECT(\"'\" & Setup!$AG$12 & \"'!\" & AE354),0)","v":{"v":0,"d":"0.00"}},"","",{"$f":"IF(Setup!$AH$7<>\"\",INDIRECT(\"'\" & Setup!$AH$7 & \"'!\" & AD354),0) + IF(Setup!$AH$8<>\"\",INDIRECT(\"'\" & Setup!$AH$8 & \"'!\" & AD354),0) + IF(Setup!$AH$9<>\"\",INDIRECT(\"'\" & Setup!$AH$9 & \"'!\" & AD354),0) + IF(Setup!$AH$10<>\"\",INDIRECT(\"'\" & Setup!$AH$10 & \"'!\" & AD354),0) + IF(Setup!$AH$11<>\"\",INDIRECT(\"'\" & Setup!$AH$11 & \"'!\" & AD354),0) + IF(Setup!$AH$12<>\"\",INDIRECT(\"'\" & Setup!$AH$12 & \"'!\" & AD354),0)","v":{"v":0,"d":"0.00"}},{"$f":"IF(Setup!$AH$7<>\"\",INDIRECT(\"'\" & Setup!$AH$7 & \"'!\" & AE354),0) + IF(Setup!$AH$8<>\"\",INDIRECT(\"'\" & Setup!$AH$8 & \"'!\" & AE354),0) + IF(Setup!$AH$9<>\"\",INDIRECT(\"'\" & Setup!$AH$9 & \"'!\" & AE354),0) + IF(Setup!$AH$10<>\"\",INDIRECT(\"'\" & Setup!$AH$10 & \"'!\" & AE354),0) + IF(Setup!$AH$11<>\"\",INDIRECT(\"'\" & Setup!$AH$11 & \"'!\" & AE354),0) + IF(Setup!$AH$12<>\"\",INDIRECT(\"'\" & Setup!$AH$12 & \"'!\" & AE354),0)","v":{"v":0,"d":"0.00"}},"","",{"$f":"IF(Setup!$AI$7<>\"\",INDIRECT(\"'\" & Setup!$AI$7 & \"'!\" & AD354),0) + IF(Setup!$AI$8<>\"\",INDIRECT(\"'\" & Setup!$AI$8 & \"'!\" & AD354),0) + IF(Setup!$AI$9<>\"\",INDIRECT(\"'\" & Setup!$AI$9 & \"'!\" & AD354),0) + IF(Setup!$AI$10<>\"\",INDIRECT(\"'\" & Setup!$AI$10 & \"'!\" & AD354),0) + IF(Setup!$AI$11<>\"\",INDIRECT(\"'\" & Setup!$AI$11 & \"'!\" & AD354),0) + IF(Setup!$AI$12<>\"\",INDIRECT(\"'\" & Setup!$AI$12 & \"'!\" & AD354),0)","v":{"v":0,"d":"0.00"}},{"$f":"IF(Setup!$AI$7<>\"\",INDIRECT(\"'\" & Setup!$AI$7 & \"'!\" & AE354),0) + IF(Setup!$AI$8<>\"\",INDIRECT(\"'\" & Setup!$AI$8 & \"'!\" & AE354),0) + IF(Setup!$AI$9<>\"\",INDIRECT(\"'\" & Setup!$AI$9 & \"'!\" & AE354),0) + IF(Setup!$AI$10<>\"\",INDIRECT(\"'\" & Setup!$AI$10 & \"'!\" & AE354),0) + IF(Setup!$AI$11<>\"\",INDIRECT(\"'\" & Setup!$AI$11 & \"'!\" & AE354),0) + IF(Setup!$AI$12<>\"\",INDIRECT(\"'\" & Setup!$AI$12 & \"'!\" & AE354),0)","v":{"v":0,"d":"0.00"}},"","",{"$f":"IF(Setup!$AJ$7<>\"\",INDIRECT(\"'\" & Setup!$AJ$7 & \"'!\" & AD354),0) + IF(Setup!$AJ$8<>\"\",INDIRECT(\"'\" & Setup!$AJ$8 & \"'!\" & AD354),0) + IF(Setup!$AJ$9<>\"\",INDIRECT(\"'\" & Setup!$AJ$9 & \"'!\" & AD354),0) + IF(Setup!$AJ$10<>\"\",INDIRECT(\"'\" & Setup!$AJ$10 & \"'!\" & AD354),0) + IF(Setup!$AJ$11<>\"\",INDIRECT(\"'\" & Setup!$AJ$11 & \"'!\" & AD354),0) + IF(Setup!$AJ$12<>\"\",INDIRECT(\"'\" & Setup!$AJ$12 & \"'!\" & AD354),0)","v":0},{"$f":"IF(Setup!$AJ$7<>\"\",INDIRECT(\"'\" & Setup!$AJ$7 & \"'!\" & AE354),0) + IF(Setup!$AJ$8<>\"\",INDIRECT(\"'\" & Setup!$AJ$8 & \"'!\" & AE354),0) + IF(Setup!$AJ$9<>\"\",INDIRECT(\"'\" & Setup!$AJ$9 & \"'!\" & AE354),0) + IF(Setup!$AJ$10<>\"\",INDIRECT(\"'\" & Setup!$AJ$10 & \"'!\" & AE354),0) + IF(Setup!$AJ$11<>\"\",INDIRECT(\"'\" & Setup!$AJ$11 & \"'!\" & AE354),0) + IF(Setup!$AJ$12<>\"\",INDIRECT(\"'\" & Setup!$AJ$12 & \"'!\" & AE354),0)","v":0},"","",{"$f":"Planning!H126","v":0},"00","M142","O142","N142",null,null,{"$f":"IF(Setup!$AG$7<>\"\",INDIRECT(\"'\" & Setup!$AG$7 & \"'!\" & AF354),0) + IF(Setup!$AG$8<>\"\",INDIRECT(\"'\" & Setup!$AG$8 & \"'!\" & AF354),0) + IF(Setup!$AG$9<>\"\",INDIRECT(\"'\" & Setup!$AG$9 & \"'!\" & AF354),0) + IF(Setup!$AG$10<>\"\",INDIRECT(\"'\" & Setup!$AG$10 & \"'!\" & AF354),0) + IF(Setup!$AG$11<>\"\",INDIRECT(\"'\" & Setup!$AG$11 & \"'!\" & AF354),0) + IF(Setup!$AG$12<>\"\",INDIRECT(\"'\" & Setup!$AG$12 & \"'!\" & AF354),0)","v":0},{"$f":"IF(Setup!$AH$7<>\"\",INDIRECT(\"'\" & Setup!$AH$7 & \"'!\" & AF354),0) + IF(Setup!$AH$8<>\"\",INDIRECT(\"'\" & Setup!$AH$8 & \"'!\" & AF354),0) + IF(Setup!$AH$9<>\"\",INDIRECT(\"'\" & Setup!$AH$9 & \"'!\" & AF354),0) + IF(Setup!$AH$10<>\"\",INDIRECT(\"'\" & Setup!$AH$10 & \"'!\" & AF354),0) + IF(Setup!$AH$11<>\"\",INDIRECT(\"'\" & Setup!$AH$11 & \"'!\" & AF354),0) + IF(Setup!$AH$12<>\"\",INDIRECT(\"'\" & Setup!$AH$12 & \"'!\" & AF354),0)","v":0},{"$f":"IF(Setup!$AI$7<>\"\",INDIRECT(\"'\" & Setup!$AI$7 & \"'!\" & AF354),0) + IF(Setup!$AI$8<>\"\",INDIRECT(\"'\" & Setup!$AI$8 & \"'!\" & AF354),0) + IF(Setup!$AI$9<>\"\",INDIRECT(\"'\" & Setup!$AI$9 & \"'!\" & AF354),0) + IF(Setup!$AI$10<>\"\",INDIRECT(\"'\" & Setup!$AI$10 & \"'!\" & AF354),0) + IF(Setup!$AI$11<>\"\",INDIRECT(\"'\" & Setup!$AI$11 & \"'!\" & AF354),0) + IF(Setup!$AI$12<>\"\",INDIRECT(\"'\" & Setup!$AI$12 & \"'!\" & AF354),0)","v":0},{"$f":"IF(Setup!$AJ$7<>\"\",INDIRECT(\"'\" & Setup!$AJ$7 & \"'!\" & AF354),0) + IF(Setup!$AJ$8<>\"\",INDIRECT(\"'\" & Setup!$AJ$8 & \"'!\" & AF354),0) + IF(Setup!$AJ$9<>\"\",INDIRECT(\"'\" & Setup!$AJ$9 & \"'!\" & AF354),0) + IF(Setup!$AJ$10<>\"\",INDIRECT(\"'\" & Setup!$AJ$10 & \"'!\" & AF354),0) + IF(Setup!$AJ$11<>\"\",INDIRECT(\"'\" & Setup!$AJ$11 & \"'!\" & AF354),0) + IF(Setup!$AJ$12<>\"\",INDIRECT(\"'\" & Setup!$AJ$12 & \"'!\" & AF354),0)","v":0},null,"",{"$nulls":30},0,{"$f":"IF(Setup!$AH$7=\"\",0,INDIRECT(\"'\" & Setup!$AH$7 & \"'!\" & AF354))","v":0},{"$f":"IF(Setup!$AI$7=\"\",0,INDIRECT(\"'\" & Setup!$AI$7 & \"'!\" & AF354))","v":0},{"$f":"IF(Setup!$AJ$7=\"\",0,INDIRECT(\"'\" & Setup!$AJ$7 & \"'!\" & AF354))","v":0}]
[{"$f":"Planning!A127","v":"I119"},{"$f":"Planning!B127","v":0},{"$f":"Planning!C127","v":0},{"$f":"Planning!D127","v":0},{"$f":"Planning!E127","v":0},{"$f":"Planning!G127","v":0},0,{"v":0,"d":"0.00"},{"v":0,"d":"0.00"},"","",{"$f":"IF(Setup!$AG$7<>\"\",INDIRECT(\"'\" & Setup!$AG$7 & \"'!\" & AD355),0) + IF(Setup!$AG$8<>\"\",INDIRECT(\"'\" & Setup!$AG$8 & \"'!\" & AD355),0) + IF(Setup!$AG$9<>\"\",INDIRECT(\"'\" & Setup!$AG$9 & \"'!\" & AD355),0) + IF(Setup!$AG$10<>\"\",INDIRECT(\"'\" & Setup!$AG$10 & \"'!\" & AD355),0) + IF(Setup!$AG$11<>\"\",INDIRECT(\"'\" & Setup!$AG$11 & \"'!\" & AD355),0) + IF(Setup!$AG$12<>\"\",INDIRECT(\"'\" & Setup!$AG$12 & \"'!\" & AD355),0)","v":{"v":0,"d":"0.00"}},{"$f":"IF(Setup!$AG$7<>\"\",INDIRECT(\"'\" & Setup!$AG$7 & \"'!\" & AE355),0) + IF(Setup!$AG$8<>\"\",INDIRECT(\"'\" & Setup!$AG$8 & \"'!\" & AE355),0) + IF(Setup!$AG$9<>\"\",INDIRECT(\"'\" & Setup!$AG$9 & \"'!\" & AE355),0) + IF(Setup!$AG$10<>\"\",INDIRECT(\"'\" & Setup!$AG$10 & \"'!\" & AE355),0) + IF(Setup!$AG$11<>\"\",INDIRECT(\"'\" & Setup!$AG$11 & \"'!\" & AE355),0) + IF(Setup!$AG$12<>\"\",INDIRECT(\"'\" & Setup!$AG$12 & \"'!\" & AE355),0)","v":{"v":0,"d":"0.00"}},"","",{"$f":"IF(Setup!$AH$7<>\"\",INDIRECT(\"'\" & Setup!$AH$7 & \"'!\" & AD355),0) + IF(Setup!$AH$8<>\"\",INDIRECT(\"'\" & Setup!$AH$8 & \"'!\" & AD355),0) + IF(Setup!$AH$9<>\"\",INDIRECT(\"'\" & Setup!$AH$9 & \"'!\" & AD355),0) + IF(Setup!$AH$10<>\"\",INDIRECT(\"'\" & Setup!$AH$10 & \"'!\" & AD355),0) + IF(Setup!$AH$11<>\"\",INDIRECT(\"'\" & Setup!$AH$11 & \"'!\" & AD355),0) + IF(Setup!$AH$12<>\"\",INDIRECT(\"'\" & Setup!$AH$12 & \"'!\" & AD355),0)","v":{"v":0,"d":"0.00"}},{"$f":"IF(Setup!$AH$7<>\"\",INDIRECT(\"'\" & Setup!$AH$7 & \"'!\" & AE355),0) + IF(Setup!$AH$8<>\"\",INDIRECT(\"'\" & Setup!$AH$8 & \"'!\" & AE355),0) + IF(Setup!$AH$9<>\"\",INDIRECT(\"'\" & Setup!$AH$9 & \"'!\" & AE355),0) + IF(Setup!$AH$10<>\"\",INDIRECT(\"'\" & Setup!$AH$10 & \"'!\" & AE355),0) + IF(Setup!$AH$11<>\"\",INDIRECT(\"'\" & Setup!$AH$11 & \"'!\" & AE355),0) + IF(Setup!$AH$12<>\"\",INDIRECT(\"'\" & Setup!$AH$12 & \"'!\" & AE355),0)","v":{"v":0,"d":"0.00"}},"","",{"$f":"IF(Setup!$AI$7<>\"\",INDIRECT(\"'\" & Setup!$AI$7 & \"'!\" & AD355),0) + IF(Setup!$AI$8<>\"\",INDIRECT(\"'\" & Setup!$AI$8 & \"'!\" & AD355),0) + IF(Setup!$AI$9<>\"\",INDIRECT(\"'\" & Setup!$AI$9 & \"'!\" & AD355),0) + IF(Setup!$AI$10<>\"\",INDIRECT(\"'\" & Setup!$AI$10 & \"'!\" & AD355),0) + IF(Setup!$AI$11<>\"\",INDIRECT(\"'\" & Setup!$AI$11 & \"'!\" & AD355),0) + IF(Setup!$AI$12<>\"\",INDIRECT(\"'\" & Setup!$AI$12 & \"'!\" & AD355),0)","v":{"v":0,"d":"0.00"}},{"$f":"IF(Setup!$AI$7<>\"\",INDIRECT(\"'\" & Setup!$AI$7 & \"'!\" & AE355),0) + IF(Setup!$AI$8<>\"\",INDIRECT(\"'\" & Setup!$AI$8 & \"'!\" & AE355),0) + IF(Setup!$AI$9<>\"\",INDIRECT(\"'\" & Setup!$AI$9 & \"'!\" & AE355),0) + IF(Setup!$AI$10<>\"\",INDIRECT(\"'\" & Setup!$AI$10 & \"'!\" & AE355),0) + IF(Setup!$AI$11<>\"\",INDIRECT(\"'\" & Setup!$AI$11 & \"'!\" & AE355),0) + IF(Setup!$AI$12<>\"\",INDIRECT(\"'\" & Setup!$AI$12 & \"'!\" & AE355),0)","v":{"v":0,"d":"0.00"}},"","",{"$f":"IF(Setup!$AJ$7<>\"\",INDIRECT(\"'\" & Setup!$AJ$7 & \"'!\" & AD355),0) + IF(Setup!$AJ$8<>\"\",INDIRECT(\"'\" & Setup!$AJ$8 & \"'!\" & AD355),0) + IF(Setup!$AJ$9<>\"\",INDIRECT(\"'\" & Setup!$AJ$9 & \"'!\" & AD355),0) + IF(Setup!$AJ$10<>\"\",INDIRECT(\"'\" & Setup!$AJ$10 & \"'!\" & AD355),0) + IF(Setup!$AJ$11<>\"\",INDIRECT(\"'\" & Setup!$AJ$11 & \"'!\" & AD355),0) + IF(Setup!$AJ$12<>\"\",INDIRECT(\"'\" & Setup!$AJ$12 & \"'!\" & AD355),0)","v":0},{"$f":"IF(Setup!$AJ$7<>\"\",INDIRECT(\"'\" & Setup!$AJ$7 & \"'!\" & AE355),0) + IF(Setup!$AJ$8<>\"\",INDIRECT(\"'\" & Setup!$AJ$8 & \"'!\" & AE355),0) + IF(Setup!$AJ$9<>\"\",INDIRECT(\"'\" & Setup!$AJ$9 & \"'!\" & AE355),0) + IF(Setup!$AJ$10<>\"\",INDIRECT(\"'\" & Setup!$AJ$10 & \"'!\" & AE355),0) + IF(Setup!$AJ$11<>\"\",INDIRECT(\"'\" & Setup!$AJ$11 & \"'!\" & AE355),0) + IF(Setup!$AJ$12<>\"\",INDIRECT(\"'\" & Setup!$AJ$12 & \"'!\" & AE355),0)","v":0},"","",{"$f":"Planning!H127","v":0},"00","M143","O143","N143",null,null,{"$f":"IF(Setup!$AG$7<>\"\",INDIRECT(\"'\" & Setup!$AG$7 & \"'!\" & AF355),0) + IF(Setup!$AG$8<>\"\",INDIRECT(\"'\" & Setup!$AG$8 & \"'!\" & AF355),0) + IF(Setup!$AG$9<>\"\",INDIRECT(\"'\" & Setup!$AG$9 & \"'!\" & AF355),0) + IF(Setup!$AG$10<>\"\",INDIRECT(\"'\" & Setup!$AG$10 & \"'!\" & AF355),0) + IF(Setup!$AG$11<>\"\",INDIRECT(\"'\" & Setup!$AG$11 & \"'!\" & AF355),0) + IF(Setup!$AG$12<>\"\",INDIRECT(\"'\" & Setup!$AG$12 & \"'!\" & AF355),0)","v":0},{"$f":"IF(Setup!$AH$7<>\"\",INDIRECT(\"'\" & Setup!$AH$7 & \"'!\" & AF355),0) + IF(Setup!$AH$8<>\"\",INDIRECT(\"'\" & Setup!$AH$8 & \"'!\" & AF355),0) + IF(Setup!$AH$9<>\"\",INDIRECT(\"'\" & Setup!$AH$9 & \"'!\" & AF355),0) + IF(Setup!$AH$10<>\"\",INDIRECT(\"'\" & Setup!$AH$10 & \"'!\" & AF355),0) + IF(Setup!$AH$11<>\"\",INDIRECT(\"'\" & Setup!$AH$11 & \"'!\" & AF355),0) + IF(Setup!$AH$12<>\"\",INDIRECT(\"'\" & Setup!$AH$12 & \"'!\" & AF355),0)","v":0},{"$f":"IF(Setup!$AI$7<>\"\",INDIRECT(\"'\" & Setup!$AI$7 & \"'!\" & AF355),0) + IF(Setup!$AI$8<>\"\",INDIRECT(\"'\" & Setup!$AI$8 & \"'!\" & AF355),0) + IF(Setup!$AI$9<>\"\",INDIRECT(\"'\" & Setup!$AI$9 & \"'!\" & AF355),0) + IF(Setup!$AI$10<>\"\",INDIRECT(\"'\" & Setup!$AI$10 & \"'!\" & AF355),0) + IF(Setup!$AI$11<>\"\",INDIRECT(\"'\" & Setup!$AI$11 & \"'!\" & AF355),0) + IF(Setup!$AI$12<>\"\",INDIRECT(\"'\" & Setup!$AI$12 & \"'!\" & AF355),0)","v":0},{"$f":"IF(Setup!$AJ$7<>\"\",INDIRECT(\"'\" & Setup!$AJ$7 & \"'!\" & AF355),0) + IF(Setup!$AJ$8<>\"\",INDIRECT(\"'\" & Setup!$AJ$8 & \"'!\" & AF355),0) + IF(Setup!$AJ$9<>\"\",INDIRECT(\"'\" & Setup!$AJ$9 & \"'!\" & AF355),0) + IF(Setup!$AJ$10<>\"\",INDIRECT(\"'\" & Setup!$AJ$10 & \"'!\" & AF355),0) + IF(Setup!$AJ$11<>\"\",INDIRECT(\"'\" & Setup!$AJ$11 & \"'!\" & AF355),0) + IF(Setup!$AJ$12<>\"\",INDIRECT(\"'\" & Setup!$AJ$12 & \"'!\" & AF355),0)","v":0},null,"",{"$nulls":30},0,{"$f":"IF(Setup!$AH$7=\"\",0,INDIRECT(\"'\" & Setup!$AH$7 & \"'!\" & AF355))","v":0},{"$f":"IF(Setup!$AI$7=\"\",0,INDIRECT(\"'\" & Setup!$AI$7 & \"'!\" & AF355))","v":0},{"$f":"IF(Setup!$AJ$7=\"\",0,INDIRECT(\"'\" & Setup!$AJ$7 & \"'!\" & AF355))","v":0}]
[{"$f":"Planning!A128","v":"I120"},{"$f":"Planning!B128","v":0},{"$f":"Planning!C128","v":0},{"$f":"Planning!D128","v":0},{"$f":"Planning!E128","v":0},{"$f":"Planning!G128","v":0},0,{"v":0,"d":"0.00"},{"v":0,"d":"0.00"},"","",{"$f":"IF(Setup!$AG$7<>\"\",INDIRECT(\"'\" & Setup!$AG$7 & \"'!\" & AD356),0) + IF(Setup!$AG$8<>\"\",INDIRECT(\"'\" & Setup!$AG$8 & \"'!\" & AD356),0) + IF(Setup!$AG$9<>\"\",INDIRECT(\"'\" & Setup!$AG$9 & \"'!\" & AD356),0) + IF(Setup!$AG$10<>\"\",INDIRECT(\"'\" & Setup!$AG$10 & \"'!\" & AD356),0) + IF(Setup!$AG$11<>\"\",INDIRECT(\"'\" & Setup!$AG$11 & \"'!\" & AD356),0) + IF(Setup!$AG$12<>\"\",INDIRECT(\"'\" & Setup!$AG$12 & \"'!\" & AD356),0)","v":{"v":0,"d":"0.00"}},{"$f":"IF(Setup!$AG$7<>\"\",INDIRECT(\"'\" & Setup!$AG$7 & \"'!\" & AE356),0) + IF(Setup!$AG$8<>\"\",INDIRECT(\"'\" & Setup!$AG$8 & \"'!\" & AE356),0) + IF(Setup!$AG$9<>\"\",INDIRECT(\"'\" & Setup!$AG$9 & \"'!\" & AE356),0) + IF(Setup!$AG$10<>\"\",INDIRECT(\"'\" & Setup!$AG$10 & \"'!\" & AE356),0) + IF(Setup!$AG$11<>\"\",INDIRECT(\"'\" & Setup!$AG$11 & \"'!\" & AE356),0) + IF(Setup!$AG$12<>\"\",INDIRECT(\"'\" & Setup!$AG$12 & \"'!\" & AE356),0)","v":{"v":0,"d":"0.00"}},"","",{"$f":"IF(Setup!$AH$7<>\"\",INDIRECT(\"'\" & Setup!$AH$7 & \"'!\" & AD356),0) + IF(Setup!$AH$8<>\"\",INDIRECT(\"'\" & Setup!$AH$8 & \"'!\" & AD356),0) + IF(Setup!$AH$9<>\"\",INDIRECT(\"'\" & Setup!$AH$9 & \"'!\" & AD356),0) + IF(Setup!$AH$10<>\"\",INDIRECT(\"'\" & Setup!$AH$10 & \"'!\" & AD356),0) + IF(Setup!$AH$11<>\"\",INDIRECT(\"'\" & Setup!$AH$11 & \"'!\" & AD356),0) + IF(Setup!$AH$12<>\"\",INDIRECT(\"'\" & Setup!$AH$12 & \"'!\" & AD356),0)","v":{"v":0,"d":"0.00"}},{"$f":"IF(Setup!$AH$7<>\"\",INDIRECT(\"'\" & Setup!$AH$7 & \"'!\" & AE356),0) + IF(Setup!$AH$8<>\"\",INDIRECT(\"'\" & Setup!$AH$8 & \"'!\" & AE356),0) + IF(Setup!$AH$9<>\"\",INDIRECT(\"'\" & Setup!$AH$9 & \"'!\" & AE356),0) + IF(Setup!$AH$10<>\"\",INDIRECT(\"'\" & Setup!$AH$10 & \"'!\" & AE356),0) + IF(Setup!$AH$11<>\"\",INDIRECT(\"'\" & Setup!$AH$11 & \"'!\" & AE356),0) + IF(Setup!$AH$12<>\"\",INDIRECT(\"'\" & Setup!$AH$12 & \"'!\" & AE356),0)","v":{"v":0,"d":"0.00"}},"","",{"$f":"IF(Setup!$AI$7<>\"\",INDIRECT(\"'\" & Setup!$AI$7 & \"'!\" & AD356),0) + IF(Setup!$AI$8<>\"\",INDIRECT(\"'\" & Setup!$AI$8 & \"'!\" & AD356),0) + IF(Setup!$AI$9<>\"\",INDIRECT(\"'\" & Setup!$AI$9 & \"'!\" & AD356),0) + IF(Setup!$AI$10<>\"\",INDIRECT(\"'\" & Setup!$AI$10 & \"'!\" & AD356),0) + IF(Setup!$AI$11<>\"\",INDIRECT(\"'\" & Setup!$AI$11 & \"'!\" & AD356),0) + IF(Setup!$AI$12<>\"\",INDIRECT(\"'\" & Setup!$AI$12 & \"'!\" & AD356),0)","v":{"v":0,"d":"0.00"}},{"$f":"IF(Setup!$AI$7<>\"\",INDIRECT(\"'\" & Setup!$AI$7 & \"'!\" & AE356),0) + IF(Setup!$AI$8<>\"\",INDIRECT(\"'\" & Setup!$AI$8 & \"'!\" & AE356),0) + IF(Setup!$AI$9<>\"\",INDIRECT(\"'\" & Setup!$AI$9 & \"'!\" & AE356),0) + IF(Setup!$AI$10<>\"\",INDIRECT(\"'\" & Setup!$AI$10 & \"'!\" & AE356),0) + IF(Setup!$AI$11<>\"\",INDIRECT(\"'\" & Setup!$AI$11 & \"'!\" & AE356),0) + IF(Setup!$AI$12<>\"\",INDIRECT(\"'\" & Setup!$AI$12 & \"'!\" & AE356),0)","v":{"v":0,"d":"0.00"}},"","",{"$f":"IF(Setup!$AJ$7<>\"\",INDIRECT(\"'\" & Setup!$AJ$7 & \"'!\" & AD356),0) + IF(Setup!$AJ$8<>\"\",INDIRECT(\"'\" & Setup!$AJ$8 & \"'!\" & AD356),0) + IF(Setup!$AJ$9<>\"\",INDIRECT(\"'\" & Setup!$AJ$9 & \"'!\" & AD356),0) + IF(Setup!$AJ$10<>\"\",INDIRECT(\"'\" & Setup!$AJ$10 & \"'!\" & AD356),0) + IF(Setup!$AJ$11<>\"\",INDIRECT(\"'\" & Setup!$AJ$11 & \"'!\" & AD356),0) + IF(Setup!$AJ$12<>\"\",INDIRECT(\"'\" & Setup!$AJ$12 & \"'!\" & AD356),0)","v":0},{"$f":"IF(Setup!$AJ$7<>\"\",INDIRECT(\"'\" & Setup!$AJ$7 & \"'!\" & AE356),0) + IF(Setup!$AJ$8<>\"\",INDIRECT(\"'\" & Setup!$AJ$8 & \"'!\" & AE356),0) + IF(Setup!$AJ$9<>\"\",INDIRECT(\"'\" & Setup!$AJ$9 & \"'!\" & AE356),0) + IF(Setup!$AJ$10<>\"\",INDIRECT(\"'\" & Setup!$AJ$10 & \"'!\" & AE356),0) + IF(Setup!$AJ$11<>\"\",INDIRECT(\"'\" & Setup!$AJ$11 & \"'!\" & AE356),0) + IF(Setup!$AJ$12<>\"\",INDIRECT(\"'\" & Setup!$AJ$12 & \"'!\" & AE356),0)","v":0},"","",{"$f":"Planning!H128","v":0},"00","M144","O144","N144",null,null,{"$f":"IF(Setup!$AG$7<>\"\",INDIRECT(\"'\" & Setup!$AG$7 & \"'!\" & AF356),0) + IF(Setup!$AG$8<>\"\",INDIRECT(\"'\" & Setup!$AG$8 & \"'!\" & AF356),0) + IF(Setup!$AG$9<>\"\",INDIRECT(\"'\" & Setup!$AG$9 & \"'!\" & AF356),0) + IF(Setup!$AG$10<>\"\",INDIRECT(\"'\" & Setup!$AG$10 & \"'!\" & AF356),0) + IF(Setup!$AG$11<>\"\",INDIRECT(\"'\" & Setup!$AG$11 & \"'!\" & AF356),0) + IF(Setup!$AG$12<>\"\",INDIRECT(\"'\" & Setup!$AG$12 & \"'!\" & AF356),0)","v":0},{"$f":"IF(Setup!$AH$7<>\"\",INDIRECT(\"'\" & Setup!$AH$7 & \"'!\" & AF356),0) + IF(Setup!$AH$8<>\"\",INDIRECT(\"'\" & Setup!$AH$8 & \"'!\" & AF356),0) + IF(Setup!$AH$9<>\"\",INDIRECT(\"'\" & Setup!$AH$9 & \"'!\" & AF356),0) + IF(Setup!$AH$10<>\"\",INDIRECT(\"'\" & Setup!$AH$10 & \"'!\" & AF356),0) + IF(Setup!$AH$11<>\"\",INDIRECT(\"'\" & Setup!$AH$11 & \"'!\" & AF356),0) + IF(Setup!$AH$12<>\"\",INDIRECT(\"'\" & Setup!$AH$12 & \"'!\" & AF356),0)","v":0},{"$f":"IF(Setup!$AI$7<>\"\",INDIRECT(\"'\" & Setup!$AI$7 & \"'!\" & AF356),0) + IF(Setup!$AI$8<>\"\",INDIRECT(\"'\" & Setup!$AI$8 & \"'!\" & AF356),0) + IF(Setup!$AI$9<>\"\",INDIRECT(\"'\" & Setup!$AI$9 & \"'!\" & AF356),0) + IF(Setup!$AI$10<>\"\",INDIRECT(\"'\" & Setup!$AI$10 & \"'!\" & AF356),0) + IF(Setup!$AI$11<>\"\",INDIRECT(\"'\" & Setup!$AI$11 & \"'!\" & AF356),0) + IF(Setup!$AI$12<>\"\",INDIRECT(\"'\" & Setup!$AI$12 & \"'!\" & AF356),0)","v":0},{"$f":"IF(Setup!$AJ$7<>\"\",INDIRECT(\"'\" & Setup!$AJ$7 & \"'!\" & AF356),0) + IF(Setup!$AJ$8<>\"\",INDIRECT(\"'\" & Setup!$AJ$8 & \"'!\" & AF356),0) + IF(Setup!$AJ$9<>\"\",INDIRECT(\"'\" & Setup!$AJ$9 & \"'!\" & AF356),0) + IF(Setup!$AJ$10<>\"\",INDIRECT(\"'\" & Setup!$AJ$10 & \"'!\" & AF356),0) + IF(Setup!$AJ$11<>\"\",INDIRECT(\"'\" & Setup!$AJ$11 & \"'!\" & AF356),0) + IF(Setup!$AJ$12<>\"\",INDIRECT(\"'\" & Setup!$AJ$12 & \"'!\" & AF356),0)","v":0},null,"",{"$nulls":30},0,{"$f":"IF(Setup!$AH$7=\"\",0,INDIRECT(\"'\" & Setup!$AH$7 & \"'!\" & AF356))","v":0},{"$f":"IF(Setup!$AI$7=\"\",0,INDIRECT(\"'\" & Setup!$AI$7 & \"'!\" & AF356))","v":0},{"$f":"IF(Setup!$AJ$7=\"\",0,INDIRECT(\"'\" & Setup!$AJ$7 & \"'!\" & AF356))","v":0}]
[{"$f":"Planning!A129","v":"I121"},{"$f":"Planning!B129","v":0},{"$f":"Planning!C129","v":0},{"$f":"Planning!D129","v":0},{"$f":"Planning!E129","v":0},{"$f":"Planning!G129","v":0},0,{"v":0,"d":"0.00"},{"v":0,"d":"0.00"},"","",{"$f":"IF(Setup!$AG$7<>\"\",INDIRECT(\"'\" & Setup!$AG$7 & \"'!\" & AD357),0) + IF(Setup!$AG$8<>\"\",INDIRECT(\"'\" & Setup!$AG$8 & \"'!\" & AD357),0) + IF(Setup!$AG$9<>\"\",INDIRECT(\"'\" & Setup!$AG$9 & \"'!\" & AD357),0) + IF(Setup!$AG$10<>\"\",INDIRECT(\"'\" & Setup!$AG$10 & \"'!\" & AD357),0) + IF(Setup!$AG$11<>\"\",INDIRECT(\"'\" & Setup!$AG$11 & \"'!\" & AD357),0) + IF(Setup!$AG$12<>\"\",INDIRECT(\"'\" & Setup!$AG$12 & \"'!\" & AD357),0)","v":{"v":0,"d":"0.00"}},{"$f":"IF(Setup!$AG$7<>\"\",INDIRECT(\"'\" & Setup!$AG$7 & \"'!\" & AE357),0) + IF(Setup!$AG$8<>\"\",INDIRECT(\"'\" & Setup!$AG$8 & \"'!\" & AE357),0) + IF(Setup!$AG$9<>\"\",INDIRECT(\"'\" & Setup!$AG$9 & \"'!\" & AE357),0) + IF(Setup!$AG$10<>\"\",INDIRECT(\"'\" & Setup!$AG$10 & \"'!\" & AE357),0) + IF(Setup!$AG$11<>\"\",INDIRECT(\"'\" & Setup!$AG$11 & \"'!\" & AE357),0) + IF(Setup!$AG$12<>\"\",INDIRECT(\"'\" & Setup!$AG$12 & \"'!\" & AE357),0)","v":{"v":0,"d":"0.00"}},"","",{"$f":"IF(Setup!$AH$7<>\"\",INDIRECT(\"'\" & Setup!$AH$7 & \"'!\" & AD357),0) + IF(Setup!$AH$8<>\"\",INDIRECT(\"'\" & Setup!$AH$8 & \"'!\" & AD357),0) + IF(Setup!$AH$9<>\"\",INDIRECT(\"'\" & Setup!$AH$9 & \"'!\" & AD357),0) + IF(Setup!$AH$10<>\"\",INDIRECT(\"'\" & Setup!$AH$10 & \"'!\" & AD357),0) + IF(Setup!$AH$11<>\"\",INDIRECT(\"'\" & Setup!$AH$11 & \"'!\" & AD357),0) + IF(Setup!$AH$12<>\"\",INDIRECT(\"'\" & Setup!$AH$12 & \"'!\" & AD357),0)","v":{"v":0,"d":"0.00"}},{"$f":"IF(Setup!$AH$7<>\"\",INDIRECT(\"'\" & Setup!$AH$7 & \"'!\" & AE357),0) + IF(Setup!$AH$8<>\"\",INDIRECT(\"'\" & Setup!$AH$8 & \"'!\" & AE357),0) + IF(Setup!$AH$9<>\"\",INDIRECT(\"'\" & Setup!$AH$9 & \"'!\" & AE357),0) + IF(Setup!$AH$10<>\"\",INDIRECT(\"'\" & Setup!$AH$10 & \"'!\" & AE357),0) + IF(Setup!$AH$11<>\"\",INDIRECT(\"'\" & Setup!$AH$11 & \"'!\" & AE357),0) + IF(Setup!$AH$12<>\"\",INDIRECT(\"'\" & Setup!$AH$12 & \"'!\" & AE357),0)","v":{"v":0,"d":"0.00"}},"","",{"$f":"IF(Setup!$AI$7<>\"\",INDIRECT(\"'\" & Setup!$AI$7 & \"'!\" & AD357),0) + IF(Setup!$AI$8<>\"\",INDIRECT(\"'\" & Setup!$AI$8 & \"'!\" & AD357),0) + IF(Setup!$AI$9<>\"\",INDIRECT(\"'\" & Setup!$AI$9 & \"'!\" & AD357),0) + IF(Setup!$AI$10<>\"\",INDIRECT(\"'\" & Setup!$AI$10 & \"'!\" & AD357),0) + IF(Setup!$AI$11<>\"\",INDIRECT(\"'\" & Setup!$AI$11 & \"'!\" & AD357),0) + IF(Setup!$AI$12<>\"\",INDIRECT(\"'\" & Setup!$AI$12 & \"'!\" & AD357),0)","v":{"v":0,"d":"0.00"}},{"$f":"IF(Setup!$AI$7<>\"\",INDIRECT(\"'\" & Setup!$AI$7 & \"'!\" & AE357),0) + IF(Setup!$AI$8<>\"\",INDIRECT(\"'\" & Setup!$AI$8 & \"'!\" & AE357),0) + IF(Setup!$AI$9<>\"\",INDIRECT(\"'\" & Setup!$AI$9 & \"'!\" & AE357),0) + IF(Setup!$AI$10<>\"\",INDIRECT(\"'\" & Setup!$AI$10 & \"'!\" & AE357),0) + IF(Setup!$AI$11<>\"\",INDIRECT(\"'\" & Setup!$AI$11 & \"'!\" & AE357),0) + IF(Setup!$AI$12<>\"\",INDIRECT(\"'\" & Setup!$AI$12 & \"'!\" & AE357),0)","v":{"v":0,"d":"0.00"}},"","",{"$f":"IF(Setup!$AJ$7<>\"\",INDIRECT(\"'\" & Setup!$AJ$7 & \"'!\" & AD357),0) + IF(Setup!$AJ$8<>\"\",INDIRECT(\"'\" & Setup!$AJ$8 & \"'!\" & AD357),0) + IF(Setup!$AJ$9<>\"\",INDIRECT(\"'\" & Setup!$AJ$9 & \"'!\" & AD357),0) + IF(Setup!$AJ$10<>\"\",INDIRECT(\"'\" & Setup!$AJ$10 & \"'!\" & AD357),0) + IF(Setup!$AJ$11<>\"\",INDIRECT(\"'\" & Setup!$AJ$11 & \"'!\" & AD357),0) + IF(Setup!$AJ$12<>\"\",INDIRECT(\"'\" & Setup!$AJ$12 & \"'!\" & AD357),0)","v":0},{"$f":"IF(Setup!$AJ$7<>\"\",INDIRECT(\"'\" & Setup!$AJ$7 & \"'!\" & AE357),0) + IF(Setup!$AJ$8<>\"\",INDIRECT(\"'\" & Setup!$AJ$8 & \"'!\" & AE357),0) + IF(Setup!$AJ$9<>\"\",INDIRECT(\"'\" & Setup!$AJ$9 & \"'!\" & AE357),0) + IF(Setup!$AJ$10<>\"\",INDIRECT(\"'\" & Setup!$AJ$10 & \"'!\" & AE357),0) + IF(Setup!$AJ$11<>\"\",INDIRECT(\"'\" & Setup!$AJ$11 & \"'!\" & AE357),0) + IF(Setup!$AJ$12<>\"\",INDIRECT(\"'\" & Setup!$AJ$12 & \"'!\" & AE357),0)","v":0},"","",{"$f":"Planning!H129","v":0},"00","M145","O145","N145",null,null,{"$f":"IF(Setup!$AG$7<>\"\",INDIRECT(\"'\" & Setup!$AG$7 & \"'!\" & AF357),0) + IF(Setup!$AG$8<>\"\",INDIRECT(\"'\" & Setup!$AG$8 & \"'!\" & AF357),0) + IF(Setup!$AG$9<>\"\",INDIRECT(\"'\" & Setup!$AG$9 & \"'!\" & AF357),0) + IF(Setup!$AG$10<>\"\",INDIRECT(\"'\" & Setup!$AG$10 & \"'!\" & AF357),0) + IF(Setup!$AG$11<>\"\",INDIRECT(\"'\" & Setup!$AG$11 & \"'!\" & AF357),0) + IF(Setup!$AG$12<>\"\",INDIRECT(\"'\" & Setup!$AG$12 & \"'!\" & AF357),0)","v":0},{"$f":"IF(Setup!$AH$7<>\"\",INDIRECT(\"'\" & Setup!$AH$7 & \"'!\" & AF357),0) + IF(Setup!$AH$8<>\"\",INDIRECT(\"'\" & Setup!$AH$8 & \"'!\" & AF357),0) + IF(Setup!$AH$9<>\"\",INDIRECT(\"'\" & Setup!$AH$9 & \"'!\" & AF357),0) + IF(Setup!$AH$10<>\"\",INDIRECT(\"'\" & Setup!$AH$10 & \"'!\" & AF357),0) + IF(Setup!$AH$11<>\"\",INDIRECT(\"'\" & Setup!$AH$11 & \"'!\" & AF357),0) + IF(Setup!$AH$12<>\"\",INDIRECT(\"'\" & Setup!$AH$12 & \"'!\" & AF357),0)","v":0},{"$f":"IF(Setup!$AI$7<>\"\",INDIRECT(\"'\" & Setup!$AI$7 & \"'!\" & AF357),0) + IF(Setup!$AI$8<>\"\",INDIRECT(\"'\" & Setup!$AI$8 & \"'!\" & AF357),0) + IF(Setup!$AI$9<>\"\",INDIRECT(\"'\" & Setup!$AI$9 & \"'!\" & AF357),0) + IF(Setup!$AI$10<>\"\",INDIRECT(\"'\" & Setup!$AI$10 & \"'!\" & AF357),0) + IF(Setup!$AI$11<>\"\",INDIRECT(\"'\" & Setup!$AI$11 & \"'!\" & AF357),0) + IF(Setup!$AI$12<>\"\",INDIRECT(\"'\" & Setup!$AI$12 & \"'!\" & AF357),0)","v":0},{"$f":"IF(Setup!$AJ$7<>\"\",INDIRECT(\"'\" & Setup!$AJ$7 & \"'!\" & AF357),0) + IF(Setup!$AJ$8<>\"\",INDIRECT(\"'\" & Setup!$AJ$8 & \"'!\" & AF357),0) + IF(Setup!$AJ$9<>\"\",INDIRECT(\"'\" & Setup!$AJ$9 & \"'!\" & AF357),0) + IF(Setup!$AJ$10<>\"\",INDIRECT(\"'\" & Setup!$AJ$10 & \"'!\" & AF357),0) + IF(Setup!$AJ$11<>\"\",INDIRECT(\"'\" & Setup!$AJ$11 & \"'!\" & AF357),0) + IF(Setup!$AJ$12<>\"\",INDIRECT(\"'\" & Setup!$AJ$12 & \"'!\" & AF357),0)","v":0},null,"",{"$nulls":30},0,{"$f":"IF(Setup!$AH$7=\"\",0,INDIRECT(\"'\" & Setup!$AH$7 & \"'!\" & AF357))","v":0},{"$f":"IF(Setup!$AI$7=\"\",0,INDIRECT(\"'\" & Setup!$AI$7 & \"'!\" & AF357))","v":0},{"$f":"IF(Setup!$AJ$7=\"\",0,INDIRECT(\"'\" & Setup!$AJ$7 & \"'!\" & AF357))","v":0}]
[{"$f":"Planning!A130","v":"I122"},{"$f":"Planning!B130","v":0},{"$f":"Planning!C130","v":0},{"$f":"Planning!D130","v":0},{"$f":"Planning!E130","v":0},{"$f":"Planning!G130","v":0},0,{"v":0,"d":"0.00"},{"v":0,"d":"0.00"},"","",{"$f":"IF(Setup!$AG$7<>\"\",INDIRECT(\"'\" & Setup!$AG$7 & \"'!\" & AD358),0) + IF(Setup!$AG$8<>\"\",INDIRECT(\"'\" & Setup!$AG$8 & \"'!\" & AD358),0) + IF(Setup!$AG$9<>\"\",INDIRECT(\"'\" & Setup!$AG$9 & \"'!\" & AD358),0) + IF(Setup!$AG$10<>\"\",INDIRECT(\"'\" & Setup!$AG$10 & \"'!\" & AD358),0) + IF(Setup!$AG$11<>\"\",INDIRECT(\"'\" & Setup!$AG$11 & \"'!\" & AD358),0) + IF(Setup!$AG$12<>\"\",INDIRECT(\"'\" & Setup!$AG$12 & \"'!\" & AD358),0)","v":{"v":0,"d":"0.00"}},{"$f":"IF(Setup!$AG$7<>\"\",INDIRECT(\"'\" & Setup!$AG$7 & \"'!\" & AE358),0) + IF(Setup!$AG$8<>\"\",INDIRECT(\"'\" & Setup!$AG$8 & \"'!\" & AE358),0) + IF(Setup!$AG$9<>\"\",INDIRECT(\"'\" & Setup!$AG$9 & \"'!\" & AE358),0) + IF(Setup!$AG$10<>\"\",INDIRECT(\"'\" & Setup!$AG$10 & \"'!\" & AE358),0) + IF(Setup!$AG$11<>\"\",INDIRECT(\"'\" & Setup!$AG$11 & \"'!\" & AE358),0) + IF(Setup!$AG$12<>\"\",INDIRECT(\"'\" & Setup!$AG$12 & \"'!\" & AE358),0)","v":{"v":0,"d":"0.00"}},"","",{"$f":"IF(Setup!$AH$7<>\"\",INDIRECT(\"'\" & Setup!$AH$7 & \"'!\" & AD358),0) + IF(Setup!$AH$8<>\"\",INDIRECT(\"'\" & Setup!$AH$8 & \"'!\" & AD358),0) + IF(Setup!$AH$9<>\"\",INDIRECT(\"'\" & Setup!$AH$9 & \"'!\" & AD358),0) + IF(Setup!$AH$10<>\"\",INDIRECT(\"'\" & Setup!$AH$10 & \"'!\" & AD358),0) + IF(Setup!$AH$11<>\"\",INDIRECT(\"'\" & Setup!$AH$11 & \"'!\" & AD358),0) + IF(Setup!$AH$12<>\"\",INDIRECT(\"'\" & Setup!$AH$12 & \"'!\" & AD358),0)","v":{"v":0,"d":"0.00"}},{"$f":"IF(Setup!$AH$7<>\"\",INDIRECT(\"'\" & Setup!$AH$7 & \"'!\" & AE358),0) + IF(Setup!$AH$8<>\"\",INDIRECT(\"'\" & Setup!$AH$8 & \"'!\" & AE358),0) + IF(Setup!$AH$9<>\"\",INDIRECT(\"'\" & Setup!$AH$9 & \"'!\" & AE358),0) + IF(Setup!$AH$10<>\"\",INDIRECT(\"'\" & Setup!$AH$10 & \"'!\" & AE358),0) + IF(Setup!$AH$11<>\"\",INDIRECT(\"'\" & Setup!$AH$11 & \"'!\" & AE358),0) + IF(Setup!$AH$12<>\"\",INDIRECT(\"'\" & Setup!$AH$12 & \"'!\" & AE358),0)","v":{"v":0,"d":"0.00"}},"","",{"$f":"IF(Setup!$AI$7<>\"\",INDIRECT(\"'\" & Setup!$AI$7 & \"'!\" & AD358),0) + IF(Setup!$AI$8<>\"\",INDIRECT(\"'\" & Setup!$AI$8 & \"'!\" & AD358),0) + IF(Setup!$AI$9<>\"\",INDIRECT(\"'\" & Setup!$AI$9 & \"'!\" & AD358),0) + IF(Setup!$AI$10<>\"\",INDIRECT(\"'\" & Setup!$AI$10 & \"'!\" & AD358),0) + IF(Setup!$AI$11<>\"\",INDIRECT(\"'\" & Setup!$AI$11 & \"'!\" & AD358),0) + IF(Setup!$AI$12<>\"\",INDIRECT(\"'\" & Setup!$AI$12 & \"'!\" & AD358),0)","v":{"v":0,"d":"0.00"}},{"$f":"IF(Setup!$AI$7<>\"\",INDIRECT(\"'\" & Setup!$AI$7 & \"'!\" & AE358),0) + IF(Setup!$AI$8<>\"\",INDIRECT(\"'\" & Setup!$AI$8 & \"'!\" & AE358),0) + IF(Setup!$AI$9<>\"\",INDIRECT(\"'\" & Setup!$AI$9 & \"'!\" & AE358),0) + IF(Setup!$AI$10<>\"\",INDIRECT(\"'\" & Setup!$AI$10 & \"'!\" & AE358),0) + IF(Setup!$AI$11<>\"\",INDIRECT(\"'\" & Setup!$AI$11 & \"'!\" & AE358),0) + IF(Setup!$AI$12<>\"\",INDIRECT(\"'\" & Setup!$AI$12 & \"'!\" & AE358),0)","v":{"v":0,"d":"0.00"}},"","",{"$f":"IF(Setup!$AJ$7<>\"\",INDIRECT(\"'\" & Setup!$AJ$7 & \"'!\" & AD358),0) + IF(Setup!$AJ$8<>\"\",INDIRECT(\"'\" & Setup!$AJ$8 & \"'!\" & AD358),0) + IF(Setup!$AJ$9<>\"\",INDIRECT(\"'\" & Setup!$AJ$9 & \"'!\" & AD358),0) + IF(Setup!$AJ$10<>\"\",INDIRECT(\"'\" & Setup!$AJ$10 & \"'!\" & AD358),0) + IF(Setup!$AJ$11<>\"\",INDIRECT(\"'\" & Setup!$AJ$11 & \"'!\" & AD358),0) + IF(Setup!$AJ$12<>\"\",INDIRECT(\"'\" & Setup!$AJ$12 & \"'!\" & AD358),0)","v":0},{"$f":"IF(Setup!$AJ$7<>\"\",INDIRECT(\"'\" & Setup!$AJ$7 & \"'!\" & AE358),0) + IF(Setup!$AJ$8<>\"\",INDIRECT(\"'\" & Setup!$AJ$8 & \"'!\" & AE358),0) + IF(Setup!$AJ$9<>\"\",INDIRECT(\"'\" & Setup!$AJ$9 & \"'!\" & AE358),0) + IF(Setup!$AJ$10<>\"\",INDIRECT(\"'\" & Setup!$AJ$10 & \"'!\" & AE358),0) + IF(Setup!$AJ$11<>\"\",INDIRECT(\"'\" & Setup!$AJ$11 & \"'!\" & AE358),0) + IF(Setup!$AJ$12<>\"\",INDIRECT(\"'\" & Setup!$AJ$12 & \"'!\" & AE358),0)","v":0},"","",{"$f":"Planning!H130","v":0},"00","M146","O146","N146",null,null,{"$f":"IF(Setup!$AG$7<>\"\",INDIRECT(\"'\" & Setup!$AG$7 & \"'!\" & AF358),0) + IF(Setup!$AG$8<>\"\",INDIRECT(\"'\" & Setup!$AG$8 & \"'!\" & AF358),0) + IF(Setup!$AG$9<>\"\",INDIRECT(\"'\" & Setup!$AG$9 & \"'!\" & AF358),0) + IF(Setup!$AG$10<>\"\",INDIRECT(\"'\" & Setup!$AG$10 & \"'!\" & AF358),0) + IF(Setup!$AG$11<>\"\",INDIRECT(\"'\" & Setup!$AG$11 & \"'!\" & AF358),0) + IF(Setup!$AG$12<>\"\",INDIRECT(\"'\" & Setup!$AG$12 & \"'!\" & AF358),0)","v":0},{"$f":"IF(Setup!$AH$7<>\"\",INDIRECT(\"'\" & Setup!$AH$7 & \"'!\" & AF358),0) + IF(Setup!$AH$8<>\"\",INDIRECT(\"'\" & Setup!$AH$8 & \"'!\" & AF358),0) + IF(Setup!$AH$9<>\"\",INDIRECT(\"'\" & Setup!$AH$9 & \"'!\" & AF358),0) + IF(Setup!$AH$10<>\"\",INDIRECT(\"'\" & Setup!$AH$10 & \"'!\" & AF358),0) + IF(Setup!$AH$11<>\"\",INDIRECT(\"'\" & Setup!$AH$11 & \"'!\" & AF358),0) + IF(Setup!$AH$12<>\"\",INDIRECT(\"'\" & Setup!$AH$12 & \"'!\" & AF358),0)","v":0},{"$f":"IF(Setup!$AI$7<>\"\",INDIRECT(\"'\" & Setup!$AI$7 & \"'!\" & AF358),0) + IF(Setup!$AI$8<>\"\",INDIRECT(\"'\" & Setup!$AI$8 & \"'!\" & AF358),0) + IF(Setup!$AI$9<>\"\",INDIRECT(\"'\" & Setup!$AI$9 & \"'!\" & AF358),0) + IF(Setup!$AI$10<>\"\",INDIRECT(\"'\" & Setup!$AI$10 & \"'!\" & AF358),0) + IF(Setup!$AI$11<>\"\",INDIRECT(\"'\" & Setup!$AI$11 & \"'!\" & AF358),0) + IF(Setup!$AI$12<>\"\",INDIRECT(\"'\" & Setup!$AI$12 & \"'!\" & AF358),0)","v":0},{"$f":"IF(Setup!$AJ$7<>\"\",INDIRECT(\"'\" & Setup!$AJ$7 & \"'!\" & AF358),0) + IF(Setup!$AJ$8<>\"\",INDIRECT(\"'\" & Setup!$AJ$8 & \"'!\" & AF358),0) + IF(Setup!$AJ$9<>\"\",INDIRECT(\"'\" & Setup!$AJ$9 & \"'!\" & AF358),0) + IF(Setup!$AJ$10<>\"\",INDIRECT(\"'\" & Setup!$AJ$10 & \"'!\" & AF358),0) + IF(Setup!$AJ$11<>\"\",INDIRECT(\"'\" & Setup!$AJ$11 & \"'!\" & AF358),0) + IF(Setup!$AJ$12<>\"\",INDIRECT(\"'\" & Setup!$AJ$12 & \"'!\" & AF358),0)","v":0},null,"",{"$nulls":30},0,{"$f":"IF(Setup!$AH$7=\"\",0,INDIRECT(\"'\" & Setup!$AH$7 & \"'!\" & AF358))","v":0},{"$f":"IF(Setup!$AI$7=\"\",0,INDIRECT(\"'\" & Setup!$AI$7 & \"'!\" & AF358))","v":0},{"$f":"IF(Setup!$AJ$7=\"\",0,INDIRECT(\"'\" & Setup!$AJ$7 & \"'!\" & AF358))","v":0}]
[{"$f":"Planning!A131","v":"I123"},{"$f":"Planning!B131","v":0},{"$f":"Planning!C131","v":0},{"$f":"Planning!D131","v":0},{"$f":"Planning!E131","v":0},{"$f":"Planning!G131","v":0},0,{"v":0,"d":"0.00"},{"v":0,"d":"0.00"},"","",{"$f":"IF(Setup!$AG$7<>\"\",INDIRECT(\"'\" & Setup!$AG$7 & \"'!\" & AD359),0) + IF(Setup!$AG$8<>\"\",INDIRECT(\"'\" & Setup!$AG$8 & \"'!\" & AD359),0) + IF(Setup!$AG$9<>\"\",INDIRECT(\"'\" & Setup!$AG$9 & \"'!\" & AD359),0) + IF(Setup!$AG$10<>\"\",INDIRECT(\"'\" & Setup!$AG$10 & \"'!\" & AD359),0) + IF(Setup!$AG$11<>\"\",INDIRECT(\"'\" & Setup!$AG$11 & \"'!\" & AD359),0) + IF(Setup!$AG$12<>\"\",INDIRECT(\"'\" & Setup!$AG$12 & \"'!\" & AD359),0)","v":{"v":0,"d":"0.00"}},{"$f":"IF(Setup!$AG$7<>\"\",INDIRECT(\"'\" & Setup!$AG$7 & \"'!\" & AE359),0) + IF(Setup!$AG$8<>\"\",INDIRECT(\"'\" & Setup!$AG$8 & \"'!\" & AE359),0) + IF(Setup!$AG$9<>\"\",INDIRECT(\"'\" & Setup!$AG$9 & \"'!\" & AE359),0) + IF(Setup!$AG$10<>\"\",INDIRECT(\"'\" & Setup!$AG$10 & \"'!\" & AE359),0) + IF(Setup!$AG$11<>\"\",INDIRECT(\"'\" & Setup!$AG$11 & \"'!\" & AE359),0) + IF(Setup!$AG$12<>\"\",INDIRECT(\"'\" & Setup!$AG$12 & \"'!\" & AE359),0)","v":{"v":0,"d":"0.00"}},"","",{"$f":"IF(Setup!$AH$7<>\"\",INDIRECT(\"'\" & Setup!$AH$7 & \"'!\" & AD359),0) + IF(Setup!$AH$8<>\"\",INDIRECT(\"'\" & Setup!$AH$8 & \"'!\" & AD359),0) + IF(Setup!$AH$9<>\"\",INDIRECT(\"'\" & Setup!$AH$9 & \"'!\" & AD359),0) + IF(Setup!$AH$10<>\"\",INDIRECT(\"'\" & Setup!$AH$10 & \"'!\" & AD359),0) + IF(Setup!$AH$11<>\"\",INDIRECT(\"'\" & Setup!$AH$11 & \"'!\" & AD359),0) + IF(Setup!$AH$12<>\"\",INDIRECT(\"'\" & Setup!$AH$12 & \"'!\" & AD359),0)","v":{"v":0,"d":"0.00"}},{"$f":"IF(Setup!$AH$7<>\"\",INDIRECT(\"'\" & Setup!$AH$7 & \"'!\" & AE359),0) + IF(Setup!$AH$8<>\"\",INDIRECT(\"'\" & Setup!$AH$8 & \"'!\" & AE359),0) + IF(Setup!$AH$9<>\"\",INDIRECT(\"'\" & Setup!$AH$9 & \"'!\" & AE359),0) + IF(Setup!$AH$10<>\"\",INDIRECT(\"'\" & Setup!$AH$10 & \"'!\" & AE359),0) + IF(Setup!$AH$11<>\"\",INDIRECT(\"'\" & Setup!$AH$11 & \"'!\" & AE359),0) + IF(Setup!$AH$12<>\"\",INDIRECT(\"'\" & Setup!$AH$12 & \"'!\" & AE359),0)","v":{"v":0,"d":"0.00"}},"","",{"$f":"IF(Setup!$AI$7<>\"\",INDIRECT(\"'\" & Setup!$AI$7 & \"'!\" & AD359),0) + IF(Setup!$AI$8<>\"\",INDIRECT(\"'\" & Setup!$AI$8 & \"'!\" & AD359),0) + IF(Setup!$AI$9<>\"\",INDIRECT(\"'\" & Setup!$AI$9 & \"'!\" & AD359),0) + IF(Setup!$AI$10<>\"\",INDIRECT(\"'\" & Setup!$AI$10 & \"'!\" & AD359),0) + IF(Setup!$AI$11<>\"\",INDIRECT(\"'\" & Setup!$AI$11 & \"'!\" & AD359),0) + IF(Setup!$AI$12<>\"\",INDIRECT(\"'\" & Setup!$AI$12 & \"'!\" & AD359),0)","v":{"v":0,"d":"0.00"}},{"$f":"IF(Setup!$AI$7<>\"\",INDIRECT(\"'\" & Setup!$AI$7 & \"'!\" & AE359),0) + IF(Setup!$AI$8<>\"\",INDIRECT(\"'\" & Setup!$AI$8 & \"'!\" & AE359),0) + IF(Setup!$AI$9<>\"\",INDIRECT(\"'\" & Setup!$AI$9 & \"'!\" & AE359),0) + IF(Setup!$AI$10<>\"\",INDIRECT(\"'\" & Setup!$AI$10 & \"'!\" & AE359),0) + IF(Setup!$AI$11<>\"\",INDIRECT(\"'\" & Setup!$AI$11 & \"'!\" & AE359),0) + IF(Setup!$AI$12<>\"\",INDIRECT(\"'\" & Setup!$AI$12 & \"'!\" & AE359),0)","v":{"v":0,"d":"0.00"}},"","",{"$f":"IF(Setup!$AJ$7<>\"\",INDIRECT(\"'\" & Setup!$AJ$7 & \"'!\" & AD359),0) + IF(Setup!$AJ$8<>\"\",INDIRECT(\"'\" & Setup!$AJ$8 & \"'!\" & AD359),0) + IF(Setup!$AJ$9<>\"\",INDIRECT(\"'\" & Setup!$AJ$9 & \"'!\" & AD359),0) + IF(Setup!$AJ$10<>\"\",INDIRECT(\"'\" & Setup!$AJ$10 & \"'!\" & AD359),0) + IF(Setup!$AJ$11<>\"\",INDIRECT(\"'\" & Setup!$AJ$11 & \"'!\" & AD359),0) + IF(Setup!$AJ$12<>\"\",INDIRECT(\"'\" & Setup!$AJ$12 & \"'!\" & AD359),0)","v":0},{"$f":"IF(Setup!$AJ$7<>\"\",INDIRECT(\"'\" & Setup!$AJ$7 & \"'!\" & AE359),0) + IF(Setup!$AJ$8<>\"\",INDIRECT(\"'\" & Setup!$AJ$8 & \"'!\" & AE359),0) + IF(Setup!$AJ$9<>\"\",INDIRECT(\"'\" & Setup!$AJ$9 & \"'!\" & AE359),0) + IF(Setup!$AJ$10<>\"\",INDIRECT(\"'\" & Setup!$AJ$10 & \"'!\" & AE359),0) + IF(Setup!$AJ$11<>\"\",INDIRECT(\"'\" & Setup!$AJ$11 & \"'!\" & AE359),0) + IF(Setup!$AJ$12<>\"\",INDIRECT(\"'\" & Setup!$AJ$12 & \"'!\" & AE359),0)","v":0},"","",{"$f":"Planning!H131","v":0},"00","M147","O147","N147",null,null,{"$f":"IF(Setup!$AG$7<>\"\",INDIRECT(\"'\" & Setup!$AG$7 & \"'!\" & AF359),0) + IF(Setup!$AG$8<>\"\",INDIRECT(\"'\" & Setup!$AG$8 & \"'!\" & AF359),0) + IF(Setup!$AG$9<>\"\",INDIRECT(\"'\" & Setup!$AG$9 & \"'!\" & AF359),0) + IF(Setup!$AG$10<>\"\",INDIRECT(\"'\" & Setup!$AG$10 & \"'!\" & AF359),0) + IF(Setup!$AG$11<>\"\",INDIRECT(\"'\" & Setup!$AG$11 & \"'!\" & AF359),0) + IF(Setup!$AG$12<>\"\",INDIRECT(\"'\" & Setup!$AG$12 & \"'!\" & AF359),0)","v":0},{"$f":"IF(Setup!$AH$7<>\"\",INDIRECT(\"'\" & Setup!$AH$7 & \"'!\" & AF359),0) + IF(Setup!$AH$8<>\"\",INDIRECT(\"'\" & Setup!$AH$8 & \"'!\" & AF359),0) + IF(Setup!$AH$9<>\"\",INDIRECT(\"'\" & Setup!$AH$9 & \"'!\" & AF359),0) + IF(Setup!$AH$10<>\"\",INDIRECT(\"'\" & Setup!$AH$10 & \"'!\" & AF359),0) + IF(Setup!$AH$11<>\"\",INDIRECT(\"'\" & Setup!$AH$11 & \"'!\" & AF359),0) + IF(Setup!$AH$12<>\"\",INDIRECT(\"'\" & Setup!$AH$12 & \"'!\" & AF359),0)","v":0},{"$f":"IF(Setup!$AI$7<>\"\",INDIRECT(\"'\" & Setup!$AI$7 & \"'!\" & AF359),0) + IF(Setup!$AI$8<>\"\",INDIRECT(\"'\" & Setup!$AI$8 & \"'!\" & AF359),0) + IF(Setup!$AI$9<>\"\",INDIRECT(\"'\" & Setup!$AI$9 & \"'!\" & AF359),0) + IF(Setup!$AI$10<>\"\",INDIRECT(\"'\" & Setup!$AI$10 & \"'!\" & AF359),0) + IF(Setup!$AI$11<>\"\",INDIRECT(\"'\" & Setup!$AI$11 & \"'!\" & AF359),0) + IF(Setup!$AI$12<>\"\",INDIRECT(\"'\" & Setup!$AI$12 & \"'!\" & AF359),0)","v":0},{"$f":"IF(Setup!$AJ$7<>\"\",INDIRECT(\"'\" & Setup!$AJ$7 & \"'!\" & AF359),0) + IF(Setup!$AJ$8<>\"\",INDIRECT(\"'\" & Setup!$AJ$8 & \"'!\" & AF359),0) + IF(Setup!$AJ$9<>\"\",INDIRECT(\"'\" & Setup!$AJ$9 & \"'!\" & AF359),0) + IF(Setup!$AJ$10<>\"\",INDIRECT(\"'\" & Setup!$AJ$10 & \"'!\" & AF359),0) + IF(Setup!$AJ$11<>\"\",INDIRECT(\"'\" & Setup!$AJ$11 & \"'!\" & AF359),0) + IF(Setup!$AJ$12<>\"\",INDIRECT(\"'\" & Setup!$AJ$12 & \"'!\" & AF359),0)","v":0},null,"",{"$nulls":30},0,{"$f":"IF(Setup!$AH$7=\"\",0,INDIRECT(\"'\" & Setup!$AH$7 & \"'!\" & AF359))","v":0},{"$f":"IF(Setup!$AI$7=\"\",0,INDIRECT(\"'\" & Setup!$AI$7 & \"'!\" & AF359))","v":0},{"$f":"IF(Setup!$AJ$7=\"\",0,INDIRECT(\"'\" & Setup!$AJ$7 & \"'!\" & AF359))","v":0}]
[{"$f":"Planning!A132","v":"I124"},{"$f":"Planning!B132","v":0},{"$f":"Planning!C132","v":0},{"$f":"Planning!D132","v":0},{"$f":"Planning!E132","v":0},{"$f":"Planning!G132","v":0},0,{"v":0,"d":"0.00"},{"v":0,"d":"0.00"},"","",{"$f":"IF(Setup!$AG$7<>\"\",INDIRECT(\"'\" & Setup!$AG$7 & \"'!\" & AD360),0) + IF(Setup!$AG$8<>\"\",INDIRECT(\"'\" & Setup!$AG$8 & \"'!\" & AD360),0) + IF(Setup!$AG$9<>\"\",INDIRECT(\"'\" & Setup!$AG$9 & \"'!\" & AD360),0) + IF(Setup!$AG$10<>\"\",INDIRECT(\"'\" & Setup!$AG$10 & \"'!\" & AD360),0) + IF(Setup!$AG$11<>\"\",INDIRECT(\"'\" & Setup!$AG$11 & \"'!\" & AD360),0) + IF(Setup!$AG$12<>\"\",INDIRECT(\"'\" & Setup!$AG$12 & \"'!\" & AD360),0)","v":{"v":0,"d":"0.00"}},{"$f":"IF(Setup!$AG$7<>\"\",INDIRECT(\"'\" & Setup!$AG$7 & \"'!\" & AE360),0) + IF(Setup!$AG$8<>\"\",INDIRECT(\"'\" & Setup!$AG$8 & \"'!\" & AE360),0) + IF(Setup!$AG$9<>\"\",INDIRECT(\"'\" & Setup!$AG$9 & \"'!\" & AE360),0) + IF(Setup!$AG$10<>\"\",INDIRECT(\"'\" & Setup!$AG$10 & \"'!\" & AE360),0) + IF(Setup!$AG$11<>\"\",INDIRECT(\"'\" & Setup!$AG$11 & \"'!\" & AE360),0) + IF(Setup!$AG$12<>\"\",INDIRECT(\"'\" & Setup!$AG$12 & \"'!\" & AE360),0)","v":{"v":0,"d":"0.00"}},"","",{"$f":"IF(Setup!$AH$7<>\"\",INDIRECT(\"'\" & Setup!$AH$7 & \"'!\" & AD360),0) + IF(Setup!$AH$8<>\"\",INDIRECT(\"'\" & Setup!$AH$8 & \"'!\" & AD360),0) + IF(Setup!$AH$9<>\"\",INDIRECT(\"'\" & Setup!$AH$9 & \"'!\" & AD360),0) + IF(Setup!$AH$10<>\"\",INDIRECT(\"'\" & Setup!$AH$10 & \"'!\" & AD360),0) + IF(Setup!$AH$11<>\"\",INDIRECT(\"'\" & Setup!$AH$11 & \"'!\" & AD360),0) + IF(Setup!$AH$12<>\"\",INDIRECT(\"'\" & Setup!$AH$12 & \"'!\" & AD360),0)","v":{"v":0,"d":"0.00"}},{"$f":"IF(Setup!$AH$7<>\"\",INDIRECT(\"'\" & Setup!$AH$7 & \"'!\" & AE360),0) + IF(Setup!$AH$8<>\"\",INDIRECT(\"'\" & Setup!$AH$8 & \"'!\" & AE360),0) + IF(Setup!$AH$9<>\"\",INDIRECT(\"'\" & Setup!$AH$9 & \"'!\" & AE360),0) + IF(Setup!$AH$10<>\"\",INDIRECT(\"'\" & Setup!$AH$10 & \"'!\" & AE360),0) + IF(Setup!$AH$11<>\"\",INDIRECT(\"'\" & Setup!$AH$11 & \"'!\" & AE360),0) + IF(Setup!$AH$12<>\"\",INDIRECT(\"'\" & Setup!$AH$12 & \"'!\" & AE360),0)","v":{"v":0,"d":"0.00"}},"","",{"$f":"IF(Setup!$AI$7<>\"\",INDIRECT(\"'\" & Setup!$AI$7 & \"'!\" & AD360),0) + IF(Setup!$AI$8<>\"\",INDIRECT(\"'\" & Setup!$AI$8 & \"'!\" & AD360),0) + IF(Setup!$AI$9<>\"\",INDIRECT(\"'\" & Setup!$AI$9 & \"'!\" & AD360),0) + IF(Setup!$AI$10<>\"\",INDIRECT(\"'\" & Setup!$AI$10 & \"'!\" & AD360),0) + IF(Setup!$AI$11<>\"\",INDIRECT(\"'\" & Setup!$AI$11 & \"'!\" & AD360),0) + IF(Setup!$AI$12<>\"\",INDIRECT(\"'\" & Setup!$AI$12 & \"'!\" & AD360),0)","v":{"v":0,"d":"0.00"}},{"$f":"IF(Setup!$AI$7<>\"\",INDIRECT(\"'\" & Setup!$AI$7 & \"'!\" & AE360),0) + IF(Setup!$AI$8<>\"\",INDIRECT(\"'\" & Setup!$AI$8 & \"'!\" & AE360),0) + IF(Setup!$AI$9<>\"\",INDIRECT(\"'\" & Setup!$AI$9 & \"'!\" & AE360),0) + IF(Setup!$AI$10<>\"\",INDIRECT(\"'\" & Setup!$AI$10 & \"'!\" & AE360),0) + IF(Setup!$AI$11<>\"\",INDIRECT(\"'\" & Setup!$AI$11 & \"'!\" & AE360),0) + IF(Setup!$AI$12<>\"\",INDIRECT(\"'\" & Setup!$AI$12 & \"'!\" & AE360),0)","v":{"v":0,"d":"0.00"}},"","",{"$f":"IF(Setup!$AJ$7<>\"\",INDIRECT(\"'\" & Setup!$AJ$7 & \"'!\" & AD360),0) + IF(Setup!$AJ$8<>\"\",INDIRECT(\"'\" & Setup!$AJ$8 & \"'!\" & AD360),0) + IF(Setup!$AJ$9<>\"\",INDIRECT(\"'\" & Setup!$AJ$9 & \"'!\" & AD360),0) + IF(Setup!$AJ$10<>\"\",INDIRECT(\"'\" & Setup!$AJ$10 & \"'!\" & AD360),0) + IF(Setup!$AJ$11<>\"\",INDIRECT(\"'\" & Setup!$AJ$11 & \"'!\" & AD360),0) + IF(Setup!$AJ$12<>\"\",INDIRECT(\"'\" & Setup!$AJ$12 & \"'!\" & AD360),0)","v":0},{"$f":"IF(Setup!$AJ$7<>\"\",INDIRECT(\"'\" & Setup!$AJ$7 & \"'!\" & AE360),0) + IF(Setup!$AJ$8<>\"\",INDIRECT(\"'\" & Setup!$AJ$8 & \"'!\" & AE360),0) + IF(Setup!$AJ$9<>\"\",INDIRECT(\"'\" & Setup!$AJ$9 & \"'!\" & AE360),0) + IF(Setup!$AJ$10<>\"\",INDIRECT(\"'\" & Setup!$AJ$10 & \"'!\" & AE360),0) + IF(Setup!$AJ$11<>\"\",INDIRECT(\"'\" & Setup!$AJ$11 & \"'!\" & AE360),0) + IF(Setup!$AJ$12<>\"\",INDIRECT(\"'\" & Setup!$AJ$12 & \"'!\" & AE360),0)","v":0},"","",{"$f":"Planning!H132","v":0},"00","M148","O148","N148",null,null,{"$f":"IF(Setup!$AG$7<>\"\",INDIRECT(\"'\" & Setup!$AG$7 & \"'!\" & AF360),0) + IF(Setup!$AG$8<>\"\",INDIRECT(\"'\" & Setup!$AG$8 & \"'!\" & AF360),0) + IF(Setup!$AG$9<>\"\",INDIRECT(\"'\" & Setup!$AG$9 & \"'!\" & AF360),0) + IF(Setup!$AG$10<>\"\",INDIRECT(\"'\" & Setup!$AG$10 & \"'!\" & AF360),0) + IF(Setup!$AG$11<>\"\",INDIRECT(\"'\" & Setup!$AG$11 & \"'!\" & AF360),0) + IF(Setup!$AG$12<>\"\",INDIRECT(\"'\" & Setup!$AG$12 & \"'!\" & AF360),0)","v":0},{"$f":"IF(Setup!$AH$7<>\"\",INDIRECT(\"'\" & Setup!$AH$7 & \"'!\" & AF360),0) + IF(Setup!$AH$8<>\"\",INDIRECT(\"'\" & Setup!$AH$8 & \"'!\" & AF360),0) + IF(Setup!$AH$9<>\"\",INDIRECT(\"'\" & Setup!$AH$9 & \"'!\" & AF360),0) + IF(Setup!$AH$10<>\"\",INDIRECT(\"'\" & Setup!$AH$10 & \"'!\" & AF360),0) + IF(Setup!$AH$11<>\"\",INDIRECT(\"'\" & Setup!$AH$11 & \"'!\" & AF360),0) + IF(Setup!$AH$12<>\"\",INDIRECT(\"'\" & Setup!$AH$12 & \"'!\" & AF360),0)","v":0},{"$f":"IF(Setup!$AI$7<>\"\",INDIRECT(\"'\" & Setup!$AI$7 & \"'!\" & AF360),0) + IF(Setup!$AI$8<>\"\",INDIRECT(\"'\" & Setup!$AI$8 & \"'!\" & AF360),0) + IF(Setup!$AI$9<>\"\",INDIRECT(\"'\" & Setup!$AI$9 & \"'!\" & AF360),0) + IF(Setup!$AI$10<>\"\",INDIRECT(\"'\" & Setup!$AI$10 & \"'!\" & AF360),0) + IF(Setup!$AI$11<>\"\",INDIRECT(\"'\" & Setup!$AI$11 & \"'!\" & AF360),0) + IF(Setup!$AI$12<>\"\",INDIRECT(\"'\" & Setup!$AI$12 & \"'!\" & AF360),0)","v":0},{"$f":"IF(Setup!$AJ$7<>\"\",INDIRECT(\"'\" & Setup!$AJ$7 & \"'!\" & AF360),0) + IF(Setup!$AJ$8<>\"\",INDIRECT(\"'\" & Setup!$AJ$8 & \"'!\" & AF360),0) + IF(Setup!$AJ$9<>\"\",INDIRECT(\"'\" & Setup!$AJ$9 & \"'!\" & AF360),0) + IF(Setup!$AJ$10<>\"\",INDIRECT(\"'\" & Setup!$AJ$10 & \"'!\" & AF360),0) + IF(Setup!$AJ$11<>\"\",INDIRECT(\"'\" & Setup!$AJ$11 & \"'!\" & AF360),0) + IF(Setup!$AJ$12<>\"\",INDIRECT(\"'\" & Setup!$AJ$12 & \"'!\" & AF360),0)","v":0},null,"",{"$nulls":30},0,{"$f":"IF(Setup!$AH$7=\"\",0,INDIRECT(\"'\" & Setup!$AH$7 & \"'!\" & AF360))","v":0},{"$f":"IF(Setup!$AI$7=\"\",0,INDIRECT(\"'\" & Setup!$AI$7 & \"'!\" & AF360))","v":0},{"$f":"IF(Setup!$AJ$7=\"\",0,INDIRECT(\"'\" & Setup!$AJ$7 & \"'!\" & AF360))","v":0}]
[{"$f":"Planning!A133","v":"I125"},{"$f":"Planning!B133","v":0},{"$f":"Planning!C133","v":0},{"$f":"Planning!D133","v":0},{"$f":"Planning!E133","v":0},{"$f":"Planning!G133","v":0},0,{"v":0,"d":"0.00"},{"v":0,"d":"0.00"},"","",{"$f":"IF(Setup!$AG$7<>\"\",INDIRECT(\"'\" & Setup!$AG$7 & \"'!\" & AD361),0) + IF(Setup!$AG$8<>\"\",INDIRECT(\"'\" & Setup!$AG$8 & \"'!\" & AD361),0) + IF(Setup!$AG$9<>\"\",INDIRECT(\"'\" & Setup!$AG$9 & \"'!\" & AD361),0) + IF(Setup!$AG$10<>\"\",INDIRECT(\"'\" & Setup!$AG$10 & \"'!\" & AD361),0) + IF(Setup!$AG$11<>\"\",INDIRECT(\"'\" & Setup!$AG$11 & \"'!\" & AD361),0) + IF(Setup!$AG$12<>\"\",INDIRECT(\"'\" & Setup!$AG$12 & \"'!\" & AD361),0)","v":{"v":0,"d":"0.00"}},{"$f":"IF(Setup!$AG$7<>\"\",INDIRECT(\"'\" & Setup!$AG$7 & \"'!\" & AE361),0) + IF(Setup!$AG$8<>\"\",INDIRECT(\"'\" & Setup!$AG$8 & \"'!\" & AE361),0) + IF(Setup!$AG$9<>\"\",INDIRECT(\"'\" & Setup!$AG$9 & \"'!\" & AE361),0) + IF(Setup!$AG$10<>\"\",INDIRECT(\"'\" & Setup!$AG$10 & \"'!\" & AE361),0) + IF(Setup!$AG$11<>\"\",INDIRECT(\"'\" & Setup!$AG$11 & \"'!\" & AE361),0) + IF(Setup!$AG$12<>\"\",INDIRECT(\"'\" & Setup!$AG$12 & \"'!\" & AE361),0)","v":{"v":0,"d":"0.00"}},"","",{"$f":"IF(Setup!$AH$7<>\"\",INDIRECT(\"'\" & Setup!$AH$7 & \"'!\" & AD361),0) + IF(Setup!$AH$8<>\"\",INDIRECT(\"'\" & Setup!$AH$8 & \"'!\" & AD361),0) + IF(Setup!$AH$9<>\"\",INDIRECT(\"'\" & Setup!$AH$9 & \"'!\" & AD361),0) + IF(Setup!$AH$10<>\"\",INDIRECT(\"'\" & Setup!$AH$10 & \"'!\" & AD361),0) + IF(Setup!$AH$11<>\"\",INDIRECT(\"'\" & Setup!$AH$11 & \"'!\" & AD361),0) + IF(Setup!$AH$12<>\"\",INDIRECT(\"'\" & Setup!$AH$12 & \"'!\" & AD361),0)","v":{"v":0,"d":"0.00"}},{"$f":"IF(Setup!$AH$7<>\"\",INDIRECT(\"'\" & Setup!$AH$7 & \"'!\" & AE361),0) + IF(Setup!$AH$8<>\"\",INDIRECT(\"'\" & Setup!$AH$8 & \"'!\" & AE361),0) + IF(Setup!$AH$9<>\"\",INDIRECT(\"'\" & Setup!$AH$9 & \"'!\" & AE361),0) + IF(Setup!$AH$10<>\"\",INDIRECT(\"'\" & Setup!$AH$10 & \"'!\" & AE361),0) + IF(Setup!$AH$11<>\"\",INDIRECT(\"'\" & Setup!$AH$11 & \"'!\" & AE361),0) + IF(Setup!$AH$12<>\"\",INDIRECT(\"'\" & Setup!$AH$12 & \"'!\" & AE361),0)","v":{"v":0,"d":"0.00"}},"","",{"$f":"IF(Setup!$AI$7<>\"\",INDIRECT(\"'\" & Setup!$AI$7 & \"'!\" & AD361),0) + IF(Setup!$AI$8<>\"\",INDIRECT(\"'\" & Setup!$AI$8 & \"'!\" & AD361),0) + IF(Setup!$AI$9<>\"\",INDIRECT(\"'\" & Setup!$AI$9 & \"'!\" & AD361),0) + IF(Setup!$AI$10<>\"\",INDIRECT(\"'\" & Setup!$AI$10 & \"'!\" & AD361),0) + IF(Setup!$AI$11<>\"\",INDIRECT(\"'\" & Setup!$AI$11 & \"'!\" & AD361),0) + IF(Setup!$AI$12<>\"\",INDIRECT(\"'\" & Setup!$AI$12 & \"'!\" & AD361),0)","v":{"v":0,"d":"0.00"}},{"$f":"IF(Setup!$AI$7<>\"\",INDIRECT(\"'\" & Setup!$AI$7 & \"'!\" & AE361),0) + IF(Setup!$AI$8<>\"\",INDIRECT(\"'\" & Setup!$AI$8 & \"'!\" & AE361),0) + IF(Setup!$AI$9<>\"\",INDIRECT(\"'\" & Setup!$AI$9 & \"'!\" & AE361),0) + IF(Setup!$AI$10<>\"\",INDIRECT(\"'\" & Setup!$AI$10 & \"'!\" & AE361),0) + IF(Setup!$AI$11<>\"\",INDIRECT(\"'\" & Setup!$AI$11 & \"'!\" & AE361),0) + IF(Setup!$AI$12<>\"\",INDIRECT(\"'\" & Setup!$AI$12 & \"'!\" & AE361),0)","v":{"v":0,"d":"0.00"}},"","",{"$f":"IF(Setup!$AJ$7<>\"\",INDIRECT(\"'\" & Setup!$AJ$7 & \"'!\" & AD361),0) + IF(Setup!$AJ$8<>\"\",INDIRECT(\"'\" & Setup!$AJ$8 & \"'!\" & AD361),0) + IF(Setup!$AJ$9<>\"\",INDIRECT(\"'\" & Setup!$AJ$9 & \"'!\" & AD361),0) + IF(Setup!$AJ$10<>\"\",INDIRECT(\"'\" & Setup!$AJ$10 & \"'!\" & AD361),0) + IF(Setup!$AJ$11<>\"\",INDIRECT(\"'\" & Setup!$AJ$11 & \"'!\" & AD361),0) + IF(Setup!$AJ$12<>\"\",INDIRECT(\"'\" & Setup!$AJ$12 & \"'!\" & AD361),0)","v":0},{"$f":"IF(Setup!$AJ$7<>\"\",INDIRECT(\"'\" & Setup!$AJ$7 & \"'!\" & AE361),0) + IF(Setup!$AJ$8<>\"\",INDIRECT(\"'\" & Setup!$AJ$8 & \"'!\" & AE361),0) + IF(Setup!$AJ$9<>\"\",INDIRECT(\"'\" & Setup!$AJ$9 & \"'!\" & AE361),0) + IF(Setup!$AJ$10<>\"\",INDIRECT(\"'\" & Setup!$AJ$10 & \"'!\" & AE361),0) + IF(Setup!$AJ$11<>\"\",INDIRECT(\"'\" & Setup!$AJ$11 & \"'!\" & AE361),0) + IF(Setup!$AJ$12<>\"\",INDIRECT(\"'\" & Setup!$AJ$12 & \"'!\" & AE361),0)","v":0},"","",{"$f":"Planning!H133","v":0},"00","M149","O149","N149",null,null,{"$f":"IF(Setup!$AG$7<>\"\",INDIRECT(\"'\" & Setup!$AG$7 & \"'!\" & AF361),0) + IF(Setup!$AG$8<>\"\",INDIRECT(\"'\" & Setup!$AG$8 & \"'!\" & AF361),0) + IF(Setup!$AG$9<>\"\",INDIRECT(\"'\" & Setup!$AG$9 & \"'!\" & AF361),0) + IF(Setup!$AG$10<>\"\",INDIRECT(\"'\" & Setup!$AG$10 & \"'!\" & AF361),0) + IF(Setup!$AG$11<>\"\",INDIRECT(\"'\" & Setup!$AG$11 & \"'!\" & AF361),0) + IF(Setup!$AG$12<>\"\",INDIRECT(\"'\" & Setup!$AG$12 & \"'!\" & AF361),0)","v":0},{"$f":"IF(Setup!$AH$7<>\"\",INDIRECT(\"'\" & Setup!$AH$7 & \"'!\" & AF361),0) + IF(Setup!$AH$8<>\"\",INDIRECT(\"'\" & Setup!$AH$8 & \"'!\" & AF361),0) + IF(Setup!$AH$9<>\"\",INDIRECT(\"'\" & Setup!$AH$9 & \"'!\" & AF361),0) + IF(Setup!$AH$10<>\"\",INDIRECT(\"'\" & Setup!$AH$10 & \"'!\" & AF361),0) + IF(Setup!$AH$11<>\"\",INDIRECT(\"'\" & Setup!$AH$11 & \"'!\" & AF361),0) + IF(Setup!$AH$12<>\"\",INDIRECT(\"'\" & Setup!$AH$12 & \"'!\" & AF361),0)","v":0},{"$f":"IF(Setup!$AI$7<>\"\",INDIRECT(\"'\" & Setup!$AI$7 & \"'!\" & AF361),0) + IF(Setup!$AI$8<>\"\",INDIRECT(\"'\" & Setup!$AI$8 & \"'!\" & AF361),0) + IF(Setup!$AI$9<>\"\",INDIRECT(\"'\" & Setup!$AI$9 & \"'!\" & AF361),0) + IF(Setup!$AI$10<>\"\",INDIRECT(\"'\" & Setup!$AI$10 & \"'!\" & AF361),0) + IF(Setup!$AI$11<>\"\",INDIRECT(\"'\" & Setup!$AI$11 & \"'!\" & AF361),0) + IF(Setup!$AI$12<>\"\",INDIRECT(\"'\" & Setup!$AI$12 & \"'!\" & AF361),0)","v":0},{"$f":"IF(Setup!$AJ$7<>\"\",INDIRECT(\"'\" & Setup!$AJ$7 & \"'!\" & AF361),0) + IF(Setup!$AJ$8<>\"\",INDIRECT(\"'\" & Setup!$AJ$8 & \"'!\" & AF361),0) + IF(Setup!$AJ$9<>\"\",INDIRECT(\"'\" & Setup!$AJ$9 & \"'!\" & AF361),0) + IF(Setup!$AJ$10<>\"\",INDIRECT(\"'\" & Setup!$AJ$10 & \"'!\" & AF361),0) + IF(Setup!$AJ$11<>\"\",INDIRECT(\"'\" & Setup!$AJ$11 & \"'!\" & AF361),0) + IF(Setup!$AJ$12<>\"\",INDIRECT(\"'\" & Setup!$AJ$12 & \"'!\" & AF361),0)","v":0},null,"",{"$nulls":30},0,{"$f":"IF(Setup!$AH$7=\"\",0,INDIRECT(\"'\" & Setup!$AH$7 & \"'!\" & AF361))","v":0},{"$f":"IF(Setup!$AI$7=\"\",0,INDIRECT(\"'\" & Setup!$AI$7 & \"'!\" & AF361))","v":0},{"$f":"IF(Setup!$AJ$7=\"\",0,INDIRECT(\"'\" & Setup!$AJ$7 & \"'!\" & AF361))","v":0}]
[{"$f":"Planning!A134","v":"I126"},{"$f":"Planning!B134","v":0},{"$f":"Planning!C134","v":0},{"$f":"Planning!D134","v":0},{"$f":"Planning!E134","v":0},{"$f":"Planning!G134","v":0},0,{"v":0,"d":"0.00"},{"v":0,"d":"0.00"},"","",{"$f":"IF(Setup!$AG$7<>\"\",INDIRECT(\"'\" & Setup!$AG$7 & \"'!\" & AD362),0) + IF(Setup!$AG$8<>\"\",INDIRECT(\"'\" & Setup!$AG$8 & \"'!\" & AD362),0) + IF(Setup!$AG$9<>\"\",INDIRECT(\"'\" & Setup!$AG$9 & \"'!\" & AD362),0) + IF(Setup!$AG$10<>\"\",INDIRECT(\"'\" & Setup!$AG$10 & \"'!\" & AD362),0) + IF(Setup!$AG$11<>\"\",INDIRECT(\"'\" & Setup!$AG$11 & \"'!\" & AD362),0) + IF(Setup!$AG$12<>\"\",INDIRECT(\"'\" & Setup!$AG$12 & \"'!\" & AD362),0)","v":{"v":0,"d":"0.00"}},{"$f":"IF(Setup!$AG$7<>\"\",INDIRECT(\"'\" & Setup!$AG$7 & \"'!\" & AE362),0) + IF(Setup!$AG$8<>\"\",INDIRECT(\"'\" & Setup!$AG$8 & \"'!\" & AE362),0) + IF(Setup!$AG$9<>\"\",INDIRECT(\"'\" & Setup!$AG$9 & \"'!\" & AE362),0) + IF(Setup!$AG$10<>\"\",INDIRECT(\"'\" & Setup!$AG$10 & \"'!\" & AE362),0) + IF(Setup!$AG$11<>\"\",INDIRECT(\"'\" & Setup!$AG$11 & \"'!\" & AE362),0) + IF(Setup!$AG$12<>\"\",INDIRECT(\"'\" & Setup!$AG$12 & \"'!\" & AE362),0)","v":{"v":0,"d":"0.00"}},"","",{"$f":"IF(Setup!$AH$7<>\"\",INDIRECT(\"'\" & Setup!$AH$7 & \"'!\" & AD362),0) + IF(Setup!$AH$8<>\"\",INDIRECT(\"'\" & Setup!$AH$8 & \"'!\" & AD362),0) + IF(Setup!$AH$9<>\"\",INDIRECT(\"'\" & Setup!$AH$9 & \"'!\" & AD362),0) + IF(Setup!$AH$10<>\"\",INDIRECT(\"'\" & Setup!$AH$10 & \"'!\" & AD362),0) + IF(Setup!$AH$11<>\"\",INDIRECT(\"'\" & Setup!$AH$11 & \"'!\" & AD362),0) + IF(Setup!$AH$12<>\"\",INDIRECT(\"'\" & Setup!$AH$12 & \"'!\" & AD362),0)","v":{"v":0,"d":"0.00"}},{"$f":"IF(Setup!$AH$7<>\"\",INDIRECT(\"'\" & Setup!$AH$7 & \"'!\" & AE362),0) + IF(Setup!$AH$8<>\"\",INDIRECT(\"'\" & Setup!$AH$8 & \"'!\" & AE362),0) + IF(Setup!$AH$9<>\"\",INDIRECT(\"'\" & Setup!$AH$9 & \"'!\" & AE362),0) + IF(Setup!$AH$10<>\"\",INDIRECT(\"'\" & Setup!$AH$10 & \"'!\" & AE362),0) + IF(Setup!$AH$11<>\"\",INDIRECT(\"'\" & Setup!$AH$11 & \"'!\" & AE362),0) + IF(Setup!$AH$12<>\"\",INDIRECT(\"'\" & Setup!$AH$12 & \"'!\" & AE362),0)","v":{"v":0,"d":"0.00"}},"","",{"$f":"IF(Setup!$AI$7<>\"\",INDIRECT(\"'\" & Setup!$AI$7 & \"'!\" & AD362),0) + IF(Setup!$AI$8<>\"\",INDIRECT(\"'\" & Setup!$AI$8 & \"'!\" & AD362),0) + IF(Setup!$AI$9<>\"\",INDIRECT(\"'\" & Setup!$AI$9 & \"'!\" & AD362),0) + IF(Setup!$AI$10<>\"\",INDIRECT(\"'\" & Setup!$AI$10 & \"'!\" & AD362),0) + IF(Setup!$AI$11<>\"\",INDIRECT(\"'\" & Setup!$AI$11 & \"'!\" & AD362),0) + IF(Setup!$AI$12<>\"\",INDIRECT(\"'\" & Setup!$AI$12 & \"'!\" & AD362),0)","v":{"v":0,"d":"0.00"}},{"$f":"IF(Setup!$AI$7<>\"\",INDIRECT(\"'\" & Setup!$AI$7 & \"'!\" & AE362),0) + IF(Setup!$AI$8<>\"\",INDIRECT(\"'\" & Setup!$AI$8 & \"'!\" & AE362),0) + IF(Setup!$AI$9<>\"\",INDIRECT(\"'\" & Setup!$AI$9 & \"'!\" & AE362),0) + IF(Setup!$AI$10<>\"\",INDIRECT(\"'\" & Setup!$AI$10 & \"'!\" & AE362),0) + IF(Setup!$AI$11<>\"\",INDIRECT(\"'\" & Setup!$AI$11 & \"'!\" & AE362),0) + IF(Setup!$AI$12<>\"\",INDIRECT(\"'\" & Setup!$AI$12 & \"'!\" & AE362),0)","v":{"v":0,"d":"0.00"}},"","",{"$f":"IF(Setup!$AJ$7<>\"\",INDIRECT(\"'\" & Setup!$AJ$7 & \"'!\" & AD362),0) + IF(Setup!$AJ$8<>\"\",INDIRECT(\"'\" & Setup!$AJ$8 & \"'!\" & AD362),0) + IF(Setup!$AJ$9<>\"\",INDIRECT(\"'\" & Setup!$AJ$9 & \"'!\" & AD362),0) + IF(Setup!$AJ$10<>\"\",INDIRECT(\"'\" & Setup!$AJ$10 & \"'!\" & AD362),0) + IF(Setup!$AJ$11<>\"\",INDIRECT(\"'\" & Setup!$AJ$11 & \"'!\" & AD362),0) + IF(Setup!$AJ$12<>\"\",INDIRECT(\"'\" & Setup!$AJ$12 & \"'!\" & AD362),0)","v":0},{"$f":"IF(Setup!$AJ$7<>\"\",INDIRECT(\"'\" & Setup!$AJ$7 & \"'!\" & AE362),0) + IF(Setup!$AJ$8<>\"\",INDIRECT(\"'\" & Setup!$AJ$8 & \"'!\" & AE362),0) + IF(Setup!$AJ$9<>\"\",INDIRECT(\"'\" & Setup!$AJ$9 & \"'!\" & AE362),0) + IF(Setup!$AJ$10<>\"\",INDIRECT(\"'\" & Setup!$AJ$10 & \"'!\" & AE362),0) + IF(Setup!$AJ$11<>\"\",INDIRECT(\"'\" & Setup!$AJ$11 & \"'!\" & AE362),0) + IF(Setup!$AJ$12<>\"\",INDIRECT(\"'\" & Setup!$AJ$12 & \"'!\" & AE362),0)","v":0},"","",{"$f":"Planning!H134","v":0},"00","M150","O150","N150",null,null,{"$f":"IF(Setup!$AG$7<>\"\",INDIRECT(\"'\" & Setup!$AG$7 & \"'!\" & AF362),0) + IF(Setup!$AG$8<>\"\",INDIRECT(\"'\" & Setup!$AG$8 & \"'!\" & AF362),0) + IF(Setup!$AG$9<>\"\",INDIRECT(\"'\" & Setup!$AG$9 & \"'!\" & AF362),0) + IF(Setup!$AG$10<>\"\",INDIRECT(\"'\" & Setup!$AG$10 & \"'!\" & AF362),0) + IF(Setup!$AG$11<>\"\",INDIRECT(\"'\" & Setup!$AG$11 & \"'!\" & AF362),0) + IF(Setup!$AG$12<>\"\",INDIRECT(\"'\" & Setup!$AG$12 & \"'!\" & AF362),0)","v":0},{"$f":"IF(Setup!$AH$7<>\"\",INDIRECT(\"'\" & Setup!$AH$7 & \"'!\" & AF362),0) + IF(Setup!$AH$8<>\"\",INDIRECT(\"'\" & Setup!$AH$8 & \"'!\" & AF362),0) + IF(Setup!$AH$9<>\"\",INDIRECT(\"'\" & Setup!$AH$9 & \"'!\" & AF362),0) + IF(Setup!$AH$10<>\"\",INDIRECT(\"'\" & Setup!$AH$10 & \"'!\" & AF362),0) + IF(Setup!$AH$11<>\"\",INDIRECT(\"'\" & Setup!$AH$11 & \"'!\" & AF362),0) + IF(Setup!$AH$12<>\"\",INDIRECT(\"'\" & Setup!$AH$12 & \"'!\" & AF362),0)","v":0},{"$f":"IF(Setup!$AI$7<>\"\",INDIRECT(\"'\" & Setup!$AI$7 & \"'!\" & AF362),0) + IF(Setup!$AI$8<>\"\",INDIRECT(\"'\" & Setup!$AI$8 & \"'!\" & AF362),0) + IF(Setup!$AI$9<>\"\",INDIRECT(\"'\" & Setup!$AI$9 & \"'!\" & AF362),0) + IF(Setup!$AI$10<>\"\",INDIRECT(\"'\" & Setup!$AI$10 & \"'!\" & AF362),0) + IF(Setup!$AI$11<>\"\",INDIRECT(\"'\" & Setup!$AI$11 & \"'!\" & AF362),0) + IF(Setup!$AI$12<>\"\",INDIRECT(\"'\" & Setup!$AI$12 & \"'!\" & AF362),0)","v":0},{"$f":"IF(Setup!$AJ$7<>\"\",INDIRECT(\"'\" & Setup!$AJ$7 & \"'!\" & AF362),0) + IF(Setup!$AJ$8<>\"\",INDIRECT(\"'\" & Setup!$AJ$8 & \"'!\" & AF362),0) + IF(Setup!$AJ$9<>\"\",INDIRECT(\"'\" & Setup!$AJ$9 & \"'!\" & AF362),0) + IF(Setup!$AJ$10<>\"\",INDIRECT(\"'\" & Setup!$AJ$10 & \"'!\" & AF362),0) + IF(Setup!$AJ$11<>\"\",INDIRECT(\"'\" & Setup!$AJ$11 & \"'!\" & AF362),0) + IF(Setup!$AJ$12<>\"\",INDIRECT(\"'\" & Setup!$AJ$12 & \"'!\" & AF362),0)","v":0},null,"",{"$nulls":30},0,{"$f":"IF(Setup!$AH$7=\"\",0,INDIRECT(\"'\" & Setup!$AH$7 & \"'!\" & AF362))","v":0},{"$f":"IF(Setup!$AI$7=\"\",0,INDIRECT(\"'\" & Setup!$AI$7 & \"'!\" & AF362))","v":0},{"$f":"IF(Setup!$AJ$7=\"\",0,INDIRECT(\"'\" & Setup!$AJ$7 & \"'!\" & AF362))","v":0}]
[{"$f":"Planning!A135","v":"I127"},{"$f":"Planning!B135","v":0},{"$f":"Planning!C135","v":0},{"$f":"Planning!D135","v":0},{"$f":"Planning!E135","v":0},{"$f":"Planning!G135","v":0},0,{"v":0,"d":"0.00"},{"v":0,"d":"0.00"},"","",{"$f":"IF(Setup!$AG$7<>\"\",INDIRECT(\"'\" & Setup!$AG$7 & \"'!\" & AD363),0) + IF(Setup!$AG$8<>\"\",INDIRECT(\"'\" & Setup!$AG$8 & \"'!\" & AD363),0) + IF(Setup!$AG$9<>\"\",INDIRECT(\"'\" & Setup!$AG$9 & \"'!\" & AD363),0) + IF(Setup!$AG$10<>\"\",INDIRECT(\"'\" & Setup!$AG$10 & \"'!\" & AD363),0) + IF(Setup!$AG$11<>\"\",INDIRECT(\"'\" & Setup!$AG$11 & \"'!\" & AD363),0) + IF(Setup!$AG$12<>\"\",INDIRECT(\"'\" & Setup!$AG$12 & \"'!\" & AD363),0)","v":{"v":0,"d":"0.00"}},{"$f":"IF(Setup!$AG$7<>\"\",INDIRECT(\"'\" & Setup!$AG$7 & \"'!\" & AE363),0) + IF(Setup!$AG$8<>\"\",INDIRECT(\"'\" & Setup!$AG$8 & \"'!\" & AE363),0) + IF(Setup!$AG$9<>\"\",INDIRECT(\"'\" & Setup!$AG$9 & \"'!\" & AE363),0) + IF(Setup!$AG$10<>\"\",INDIRECT(\"'\" & Setup!$AG$10 & \"'!\" & AE363),0) + IF(Setup!$AG$11<>\"\",INDIRECT(\"'\" & Setup!$AG$11 & \"'!\" & AE363),0) + IF(Setup!$AG$12<>\"\",INDIRECT(\"'\" & Setup!$AG$12 & \"'!\" & AE363),0)","v":{"v":0,"d":"0.00"}},"","",{"$f":"IF(Setup!$AH$7<>\"\",INDIRECT(\"'\" & Setup!$AH$7 & \"'!\" & AD363),0) + IF(Setup!$AH$8<>\"\",INDIRECT(\"'\" & Setup!$AH$8 & \"'!\" & AD363),0) + IF(Setup!$AH$9<>\"\",INDIRECT(\"'\" & Setup!$AH$9 & \"'!\" & AD363),0) + IF(Setup!$AH$10<>\"\",INDIRECT(\"'\" & Setup!$AH$10 & \"'!\" & AD363),0) + IF(Setup!$AH$11<>\"\",INDIRECT(\"'\" & Setup!$AH$11 & \"'!\" & AD363),0) + IF(Setup!$AH$12<>\"\",INDIRECT(\"'\" & Setup!$AH$12 & \"'!\" & AD363),0)","v":{"v":0,"d":"0.00"}},{"$f":"IF(Setup!$AH$7<>\"\",INDIRECT(\"'\" & Setup!$AH$7 & \"'!\" & AE363),0) + IF(Setup!$AH$8<>\"\",INDIRECT(\"'\" & Setup!$AH$8 & \"'!\" & AE363),0) + IF(Setup!$AH$9<>\"\",INDIRECT(\"'\" & Setup!$AH$9 & \"'!\" & AE363),0) + IF(Setup!$AH$10<>\"\",INDIRECT(\"'\" & Setup!$AH$10 & \"'!\" & AE363),0) + IF(Setup!$AH$11<>\"\",INDIRECT(\"'\" & Setup!$AH$11 & \"'!\" & AE363),0) + IF(Setup!$AH$12<>\"\",INDIRECT(\"'\" & Setup!$AH$12 & \"'!\" & AE363),0)","v":{"v":0,"d":"0.00"}},"","",{"$f":"IF(Setup!$AI$7<>\"\",INDIRECT(\"'\" & Setup!$AI$7 & \"'!\" & AD363),0) + IF(Setup!$AI$8<>\"\",INDIRECT(\"'\" & Setup!$AI$8 & \"'!\" & AD363),0) + IF(Setup!$AI$9<>\"\",INDIRECT(\"'\" & Setup!$AI$9 & \"'!\" & AD363),0) + IF(Setup!$AI$10<>\"\",INDIRECT(\"'\" & Setup!$AI$10 & \"'!\" & AD363),0) + IF(Setup!$AI$11<>\"\",INDIRECT(\"'\" & Setup!$AI$11 & \"'!\" & AD363),0) + IF(Setup!$AI$12<>\"\",INDIRECT(\"'\" & Setup!$AI$12 & \"'!\" & AD363),0)","v":{"v":0,"d":"0.00"}},{"$f":"IF(Setup!$AI$7<>\"\",INDIRECT(\"'\" & Setup!$AI$7 & \"'!\" & AE363),0) + IF(Setup!$AI$8<>\"\",INDIRECT(\"'\" & Setup!$AI$8 & \"'!\" & AE363),0) + IF(Setup!$AI$9<>\"\",INDIRECT(\"'\" & Setup!$AI$9 & \"'!\" & AE363),0) + IF(Setup!$AI$10<>\"\",INDIRECT(\"'\" & Setup!$AI$10 & \"'!\" & AE363),0) + IF(Setup!$AI$11<>\"\",INDIRECT(\"'\" & Setup!$AI$11 & \"'!\" & AE363),0) + IF(Setup!$AI$12<>\"\",INDIRECT(\"'\" & Setup!$AI$12 & \"'!\" & AE363),0)","v":{"v":0,"d":"0.00"}},"","",{"$f":"IF(Setup!$AJ$7<>\"\",INDIRECT(\"'\" & Setup!$AJ$7 & \"'!\" & AD363),0) + IF(Setup!$AJ$8<>\"\",INDIRECT(\"'\" & Setup!$AJ$8 & \"'!\" & AD363),0) + IF(Setup!$AJ$9<>\"\",INDIRECT(\"'\" & Setup!$AJ$9 & \"'!\" & AD363),0) + IF(Setup!$AJ$10<>\"\",INDIRECT(\"'\" & Setup!$AJ$10 & \"'!\" & AD363),0) + IF(Setup!$AJ$11<>\"\",INDIRECT(\"'\" & Setup!$AJ$11 & \"'!\" & AD363),0) + IF(Setup!$AJ$12<>\"\",INDIRECT(\"'\" & Setup!$AJ$12 & \"'!\" & AD363),0)","v":0},{"$f":"IF(Setup!$AJ$7<>\"\",INDIRECT(\"'\" & Setup!$AJ$7 & \"'!\" & AE363),0) + IF(Setup!$AJ$8<>\"\",INDIRECT(\"'\" & Setup!$AJ$8 & \"'!\" & AE363),0) + IF(Setup!$AJ$9<>\"\",INDIRECT(\"'\" & Setup!$AJ$9 & \"'!\" & AE363),0) + IF(Setup!$AJ$10<>\"\",INDIRECT(\"'\" & Setup!$AJ$10 & \"'!\" & AE363),0) + IF(Setup!$AJ$11<>\"\",INDIRECT(\"'\" & Setup!$AJ$11 & \"'!\" & AE363),0) + IF(Setup!$AJ$12<>\"\",INDIRECT(\"'\" & Setup!$AJ$12 & \"'!\" & AE363),0)","v":0},"","",{"$f":"Planning!H135","v":0},"00","M151","O151","N151",null,null,{"$f":"IF(Setup!$AG$7<>\"\",INDIRECT(\"'\" & Setup!$AG$7 & \"'!\" & AF363),0) + IF(Setup!$AG$8<>\"\",INDIRECT(\"'\" & Setup!$AG$8 & \"'!\" & AF363),0) + IF(Setup!$AG$9<>\"\",INDIRECT(\"'\" & Setup!$AG$9 & \"'!\" & AF363),0) + IF(Setup!$AG$10<>\"\",INDIRECT(\"'\" & Setup!$AG$10 & \"'!\" & AF363),0) + IF(Setup!$AG$11<>\"\",INDIRECT(\"'\" & Setup!$AG$11 & \"'!\" & AF363),0) + IF(Setup!$AG$12<>\"\",INDIRECT(\"'\" & Setup!$AG$12 & \"'!\" & AF363),0)","v":0},{"$f":"IF(Setup!$AH$7<>\"\",INDIRECT(\"'\" & Setup!$AH$7 & \"'!\" & AF363),0) + IF(Setup!$AH$8<>\"\",INDIRECT(\"'\" & Setup!$AH$8 & \"'!\" & AF363),0) + IF(Setup!$AH$9<>\"\",INDIRECT(\"'\" & Setup!$AH$9 & \"'!\" & AF363),0) + IF(Setup!$AH$10<>\"\",INDIRECT(\"'\" & Setup!$AH$10 & \"'!\" & AF363),0) + IF(Setup!$AH$11<>\"\",INDIRECT(\"'\" & Setup!$AH$11 & \"'!\" & AF363),0) + IF(Setup!$AH$12<>\"\",INDIRECT(\"'\" & Setup!$AH$12 & \"'!\" & AF363),0)","v":0},{"$f":"IF(Setup!$AI$7<>\"\",INDIRECT(\"'\" & Setup!$AI$7 & \"'!\" & AF363),0) + IF(Setup!$AI$8<>\"\",INDIRECT(\"'\" & Setup!$AI$8 & \"'!\" & AF363),0) + IF(Setup!$AI$9<>\"\",INDIRECT(\"'\" & Setup!$AI$9 & \"'!\" & AF363),0) + IF(Setup!$AI$10<>\"\",INDIRECT(\"'\" & Setup!$AI$10 & \"'!\" & AF363),0) + IF(Setup!$AI$11<>\"\",INDIRECT(\"'\" & Setup!$AI$11 & \"'!\" & AF363),0) + IF(Setup!$AI$12<>\"\",INDIRECT(\"'\" & Setup!$AI$12 & \"'!\" & AF363),0)","v":0},{"$f":"IF(Setup!$AJ$7<>\"\",INDIRECT(\"'\" & Setup!$AJ$7 & \"'!\" & AF363),0) + IF(Setup!$AJ$8<>\"\",INDIRECT(\"'\" & Setup!$AJ$8 & \"'!\" & AF363),0) + IF(Setup!$AJ$9<>\"\",INDIRECT(\"'\" & Setup!$AJ$9 & \"'!\" & AF363),0) + IF(Setup!$AJ$10<>\"\",INDIRECT(\"'\" & Setup!$AJ$10 & \"'!\" & AF363),0) + IF(Setup!$AJ$11<>\"\",INDIRECT(\"'\" & Setup!$AJ$11 & \"'!\" & AF363),0) + IF(Setup!$AJ$12<>\"\",INDIRECT(\"'\" & Setup!$AJ$12 & \"'!\" & AF363),0)","v":0},null,"",{"$nulls":30},0,{"$f":"IF(Setup!$AH$7=\"\",0,INDIRECT(\"'\" & Setup!$AH$7 & \"'!\" & AF363))","v":0},{"$f":"IF(Setup!$AI$7=\"\",0,INDIRECT(\"'\" & Setup!$AI$7 & \"'!\" & AF363))","v":0},{"$f":"IF(Setup!$AJ$7=\"\",0,INDIRECT(\"'\" & Setup!$AJ$7 & \"'!\" & AF363))","v":0}]
[{"$f":"Planning!A136","v":"I128"},{"$f":"Planning!B136","v":0},{"$f":"Planning!C136","v":0},{"$f":"Planning!D136","v":0},{"$f":"Planning!E136","v":0},{"$f":"Planning!G136","v":0},0,{"v":0,"d":"0.00"},{"v":0,"d":"0.00"},"","",{"$f":"IF(Setup!$AG$7<>\"\",INDIRECT(\"'\" & Setup!$AG$7 & \"'!\" & AD364),0) + IF(Setup!$AG$8<>\"\",INDIRECT(\"'\" & Setup!$AG$8 & \"'!\" & AD364),0) + IF(Setup!$AG$9<>\"\",INDIRECT(\"'\" & Setup!$AG$9 & \"'!\" & AD364),0) + IF(Setup!$AG$10<>\"\",INDIRECT(\"'\" & Setup!$AG$10 & \"'!\" & AD364),0) + IF(Setup!$AG$11<>\"\",INDIRECT(\"'\" & Setup!$AG$11 & \"'!\" & AD364),0) + IF(Setup!$AG$12<>\"\",INDIRECT(\"'\" & Setup!$AG$12 & \"'!\" & AD364),0)","v":{"v":0,"d":"0.00"}},{"$f":"IF(Setup!$AG$7<>\"\",INDIRECT(\"'\" & Setup!$AG$7 & \"'!\" & AE364),0) + IF(Setup!$AG$8<>\"\",INDIRECT(\"'\" & Setup!$AG$8 & \"'!\" & AE364),0) + IF(Setup!$AG$9<>\"\",INDIRECT(\"'\" & Setup!$AG$9 & \"'!\" & AE364),0) + IF(Setup!$AG$10<>\"\",INDIRECT(\"'\" & Setup!$AG$10 & \"'!\" & AE364),0) + IF(Setup!$AG$11<>\"\",INDIRECT(\"'\" & Setup!$AG$11 & \"'!\" & AE364),0) + IF(Setup!$AG$12<>\"\",INDIRECT(\"'\" & Setup!$AG$12 & \"'!\" & AE364),0)","v":{"v":0,"d":"0.00"}},"","",{"$f":"IF(Setup!$AH$7<>\"\",INDIRECT(\"'\" & Setup!$AH$7 & \"'!\" & AD364),0) + IF(Setup!$AH$8<>\"\",INDIRECT(\"'\" & Setup!$AH$8 & \"'!\" & AD364),0) + IF(Setup!$AH$9<>\"\",INDIRECT(\"'\" & Setup!$AH$9 & \"'!\" & AD364),0) + IF(Setup!$AH$10<>\"\",INDIRECT(\"'\" & Setup!$AH$10 & \"'!\" & AD364),0) + IF(Setup!$AH$11<>\"\",INDIRECT(\"'\" & Setup!$AH$11 & \"'!\" & AD364),0) + IF(Setup!$AH$12<>\"\",INDIRECT(\"'\" & Setup!$AH$12 & \"'!\" & AD364),0)","v":{"v":0,"d":"0.00"}},{"$f":"IF(Setup!$AH$7<>\"\",INDIRECT(\"'\" & Setup!$AH$7 & \"'!\" & AE364),0) + IF(Setup!$AH$8<>\"\",INDIRECT(\"'\" & Setup!$AH$8 & \"'!\" & AE364),0) + IF(Setup!$AH$9<>\"\",INDIRECT(\"'\" & Setup!$AH$9 & \"'!\" & AE364),0) + IF(Setup!$AH$10<>\"\",INDIRECT(\"'\" & Setup!$AH$10 & \"'!\" & AE364),0) + IF(Setup!$AH$11<>\"\",INDIRECT(\"'\" & Setup!$AH$11 & \"'!\" & AE364),0) + IF(Setup!$AH$12<>\"\",INDIRECT(\"'\" & Setup!$AH$12 & \"'!\" & AE364),0)","v":{"v":0,"d":"0.00"}},"","",{"$f":"IF(Setup!$AI$7<>\"\",INDIRECT(\"'\" & Setup!$AI$7 & \"'!\" & AD364),0) + IF(Setup!$AI$8<>\"\",INDIRECT(\"'\" & Setup!$AI$8 & \"'!\" & AD364),0) + IF(Setup!$AI$9<>\"\",INDIRECT(\"'\" & Setup!$AI$9 & \"'!\" & AD364),0) + IF(Setup!$AI$10<>\"\",INDIRECT(\"'\" & Setup!$AI$10 & \"'!\" & AD364),0) + IF(Setup!$AI$11<>\"\",INDIRECT(\"'\" & Setup!$AI$11 & \"'!\" & AD364),0) + IF(Setup!$AI$12<>\"\",INDIRECT(\"'\" & Setup!$AI$12 & \"'!\" & AD364),0)","v":{"v":0,"d":"0.00"}},{"$f":"IF(Setup!$AI$7<>\"\",INDIRECT(\"'\" & Setup!$AI$7 & \"'!\" & AE364),0) + IF(Setup!$AI$8<>\"\",INDIRECT(\"'\" & Setup!$AI$8 & \"'!\" & AE364),0) + IF(Setup!$AI$9<>\"\",INDIRECT(\"'\" & Setup!$AI$9 & \"'!\" & AE364),0) + IF(Setup!$AI$10<>\"\",INDIRECT(\"'\" & Setup!$AI$10 & \"'!\" & AE364),0) + IF(Setup!$AI$11<>\"\",INDIRECT(\"'\" & Setup!$AI$11 & \"'!\" & AE364),0) + IF(Setup!$AI$12<>\"\",INDIRECT(\"'\" & Setup!$AI$12 & \"'!\" & AE364),0)","v":{"v":0,"d":"0.00"}},"","",{"$f":"IF(Setup!$AJ$7<>\"\",INDIRECT(\"'\" & Setup!$AJ$7 & \"'!\" & AD364),0) + IF(Setup!$AJ$8<>\"\",INDIRECT(\"'\" & Setup!$AJ$8 & \"'!\" & AD364),0) + IF(Setup!$AJ$9<>\"\",INDIRECT(\"'\" & Setup!$AJ$9 & \"'!\" & AD364),0) + IF(Setup!$AJ$10<>\"\",INDIRECT(\"'\" & Setup!$AJ$10 & \"'!\" & AD364),0) + IF(Setup!$AJ$11<>\"\",INDIRECT(\"'\" & Setup!$AJ$11 & \"'!\" & AD364),0) + IF(Setup!$AJ$12<>\"\",INDIRECT(\"'\" & Setup!$AJ$12 & \"'!\" & AD364),0)","v":0},{"$f":"IF(Setup!$AJ$7<>\"\",INDIRECT(\"'\" & Setup!$AJ$7 & \"'!\" & AE364),0) + IF(Setup!$AJ$8<>\"\",INDIRECT(\"'\" & Setup!$AJ$8 & \"'!\" & AE364),0) + IF(Setup!$AJ$9<>\"\",INDIRECT(\"'\" & Setup!$AJ$9 & \"'!\" & AE364),0) + IF(Setup!$AJ$10<>\"\",INDIRECT(\"'\" & Setup!$AJ$10 & \"'!\" & AE364),0) + IF(Setup!$AJ$11<>\"\",INDIRECT(\"'\" & Setup!$AJ$11 & \"'!\" & AE364),0) + IF(Setup!$AJ$12<>\"\",INDIRECT(\"'\" & Setup!$AJ$12 & \"'!\" & AE364),0)","v":0},"","",{"$f":"Planning!H136","v":0},"00","M152","O152","N152",null,null,{"$f":"IF(Setup!$AG$7<>\"\",INDIRECT(\"'\" & Setup!$AG$7 & \"'!\" & AF364),0) + IF(Setup!$AG$8<>\"\",INDIRECT(\"'\" & Setup!$AG$8 & \"'!\" & AF364),0) + IF(Setup!$AG$9<>\"\",INDIRECT(\"'\" & Setup!$AG$9 & \"'!\" & AF364),0) + IF(Setup!$AG$10<>\"\",INDIRECT(\"'\" & Setup!$AG$10 & \"'!\" & AF364),0) + IF(Setup!$AG$11<>\"\",INDIRECT(\"'\" & Setup!$AG$11 & \"'!\" & AF364),0) + IF(Setup!$AG$12<>\"\",INDIRECT(\"'\" & Setup!$AG$12 & \"'!\" & AF364),0)","v":0},{"$f":"IF(Setup!$AH$7<>\"\",INDIRECT(\"'\" & Setup!$AH$7 & \"'!\" & AF364),0) + IF(Setup!$AH$8<>\"\",INDIRECT(\"'\" & Setup!$AH$8 & \"'!\" & AF364),0) + IF(Setup!$AH$9<>\"\",INDIRECT(\"'\" & Setup!$AH$9 & \"'!\" & AF364),0) + IF(Setup!$AH$10<>\"\",INDIRECT(\"'\" & Setup!$AH$10 & \"'!\" & AF364),0) + IF(Setup!$AH$11<>\"\",INDIRECT(\"'\" & Setup!$AH$11 & \"'!\" & AF364),0) + IF(Setup!$AH$12<>\"\",INDIRECT(\"'\" & Setup!$AH$12 & \"'!\" & AF364),0)","v":0},{"$f":"IF(Setup!$AI$7<>\"\",INDIRECT(\"'\" & Setup!$AI$7 & \"'!\" & AF364),0) + IF(Setup!$AI$8<>\"\",INDIRECT(\"'\" & Setup!$AI$8 & \"'!\" & AF364),0) + IF(Setup!$AI$9<>\"\",INDIRECT(\"'\" & Setup!$AI$9 & \"'!\" & AF364),0) + IF(Setup!$AI$10<>\"\",INDIRECT(\"'\" & Setup!$AI$10 & \"'!\" & AF364),0) + IF(Setup!$AI$11<>\"\",INDIRECT(\"'\" & Setup!$AI$11 & \"'!\" & AF364),0) + IF(Setup!$AI$12<>\"\",INDIRECT(\"'\" & Setup!$AI$12 & \"'!\" & AF364),0)","v":0},{"$f":"IF(Setup!$AJ$7<>\"\",INDIRECT(\"'\" & Setup!$AJ$7 & \"'!\" & AF364),0) + IF(Setup!$AJ$8<>\"\",INDIRECT(\"'\" & Setup!$AJ$8 & \"'!\" & AF364),0) + IF(Setup!$AJ$9<>\"\",INDIRECT(\"'\" & Setup!$AJ$9 & \"'!\" & AF364),0) + IF(Setup!$AJ$10<>\"\",INDIRECT(\"'\" & Setup!$AJ$10 & \"'!\" & AF364),0) + IF(Setup!$AJ$11<>\"\",INDIRECT(\"'\" & Setup!$AJ$11 & \"'!\" & AF364),0) + IF(Setup!$AJ$12<>\"\",INDIRECT(\"'\" & Setup!$AJ$12 & \"'!\" & AF364),0)","v":0},null,"",{"$nulls":30},0,{"$f":"IF(Setup!$AH$7=\"\",0,INDIRECT(\"'\" & Setup!$AH$7 & \"'!\" & AF364))","v":0},{"$f":"IF(Setup!$AI$7=\"\",0,INDIRECT(\"'\" & Setup!$AI$7 & \"'!\" & AF364))","v":0},{"$f":"IF(Setup!$AJ$7=\"\",0,INDIRECT(\"'\" & Setup!$AJ$7 & \"'!\" & AF364))","v":0}]
[{"$f":"Planning!A137","v":"I129"},{"$f":"Planning!B137","v":0},{"$f":"Planning!C137","v":0},{"$f":"Planning!D137","v":0},{"$f":"Planning!E137","v":0},{"$f":"Planning!G137","v":0},0,{"v":0,"d":"0.00"},{"v":0,"d":"0.00"},"",{"$f":"IF($AN365 = ExcluirDelPLogro,\"\",IF(AND(H365=0,I365=0),\"\",J365))","v":""},{"$f":"IF(Setup!$AG$7<>\"\",INDIRECT(\"'\" & Setup!$AG$7 & \"'!\" & AD365),0) + IF(Setup!$AG$8<>\"\",INDIRECT(\"'\" & Setup!$AG$8 & \"'!\" & AD365),0) + IF(Setup!$AG$9<>\"\",INDIRECT(\"'\" & Setup!$AG$9 & \"'!\" & AD365),0) + IF(Setup!$AG$10<>\"\",INDIRECT(\"'\" & Setup!$AG$10 & \"'!\" & AD365),0) + IF(Setup!$AG$11<>\"\",INDIRECT(\"'\" & Setup!$AG$11 & \"'!\" & AD365),0) + IF(Setup!$AG$12<>\"\",INDIRECT(\"'\" & Setup!$AG$12 & \"'!\" & AD365),0)","v":{"v":0,"d":"0.00"}},{"$f":"IF(Setup!$AG$7<>\"\",INDIRECT(\"'\" & Setup!$AG$7 & \"'!\" & AE365),0) + IF(Setup!$AG$8<>\"\",INDIRECT(\"'\" & Setup!$AG$8 & \"'!\" & AE365),0) + IF(Setup!$AG$9<>\"\",INDIRECT(\"'\" & Setup!$AG$9 & \"'!\" & AE365),0) + IF(Setup!$AG$10<>\"\",INDIRECT(\"'\" & Setup!$AG$10 & \"'!\" & AE365),0) + IF(Setup!$AG$11<>\"\",INDIRECT(\"'\" & Setup!$AG$11 & \"'!\" & AE365),0) + IF(Setup!$AG$12<>\"\",INDIRECT(\"'\" & Setup!$AG$12 & \"'!\" & AE365),0)","v":{"v":0,"d":"0.00"}},"",{"$f":"IF($AN365=ExcluirDelPLogro,\"\",IF(AND(L365=0,M365=0),\"\",N365))","v":""},{"$f":"IF(Setup!$AH$7<>\"\",INDIRECT(\"'\" & Setup!$AH$7 & \"'!\" & AD365),0) + IF(Setup!$AH$8<>\"\",INDIRECT(\"'\" & Setup!$AH$8 & \"'!\" & AD365),0) + IF(Setup!$AH$9<>\"\",INDIRECT(\"'\" & Setup!$AH$9 & \"'!\" & AD365),0) + IF(Setup!$AH$10<>\"\",INDIRECT(\"'\" & Setup!$AH$10 & \"'!\" & AD365),0) + IF(Setup!$AH$11<>\"\",INDIRECT(\"'\" & Setup!$AH$11 & \"'!\" & AD365),0) + IF(Setup!$AH$12<>\"\",INDIRECT(\"'\" & Setup!$AH$12 & \"'!\" & AD365),0)","v":{"v":0,"d":"0.00"}},{"$f":"IF(Setup!$AH$7<>\"\",INDIRECT(\"'\" & Setup!$AH$7 & \"'!\" & AE365),0) + IF(Setup!$AH$8<>\"\",INDIRECT(\"'\" & Setup!$AH$8 & \"'!\" & AE365),0) + IF(Setup!$AH$9<>\"\",INDIRECT(\"'\" & Setup!$AH$9 & \"'!\" & AE365),0) + IF(Setup!$AH$10<>\"\",INDIRECT(\"'\" & Setup!$AH$10 & \"'!\" & AE365),0) + IF(Setup!$AH$11<>\"\",INDIRECT(\"'\" & Setup!$AH$11 & \"'!\" & AE365),0) + IF(Setup!$AH$12<>\"\",INDIRECT(\"'\" & Setup!$AH$12 & \"'!\" & AE365),0)","v":{"v":0,"d":"0.00"}},"",{"$f":"IF($AN365=ExcluirDelPLogro,\"\",IF(AND(P365=0,Q365=0),\"\",R365))","v":""},{"$f":"IF(Setup!$AI$7<>\"\",INDIRECT(\"'\" & Setup!$AI$7 & \"'!\" & AD365),0) + IF(Setup!$AI$8<>\"\",INDIRECT(\"'\" & Setup!$AI$8 & \"'!\" & AD365),0) + IF(Setup!$AI$9<>\"\",INDIRECT(\"'\" & Setup!$AI$9 & \"'!\" & AD365),0) + IF(Setup!$AI$10<>\"\",INDIRECT(\"'\" & Setup!$AI$10 & \"'!\" & AD365),0) + IF(Setup!$AI$11<>\"\",INDIRECT(\"'\" & Setup!$AI$11 & \"'!\" & AD365),0) + IF(Setup!$AI$12<>\"\",INDIRECT(\"'\" & Setup!$AI$12 & \"'!\" & AD365),0)","v":{"v":0,"d":"0.00"}},{"$f":"IF(Setup!$AI$7<>\"\",INDIRECT(\"'\" & Setup!$AI$7 & \"'!\" & AE365),0) + IF(Setup!$AI$8<>\"\",INDIRECT(\"'\" & Setup!$AI$8 & \"'!\" & AE365),0) + IF(Setup!$AI$9<>\"\",INDIRECT(\"'\" & Setup!$AI$9 & \"'!\" & AE365),0) + IF(Setup!$AI$10<>\"\",INDIRECT(\"'\" & Setup!$AI$10 & \"'!\" & AE365),0) + IF(Setup!$AI$11<>\"\",INDIRECT(\"'\" & Setup!$AI$11 & \"'!\" & AE365),0) + IF(Setup!$AI$12<>\"\",INDIRECT(\"'\" & Setup!$AI$12 & \"'!\" & AE365),0)","v":{"v":0,"d":"0.00"}},{"$f":"IF(AND(T365=0,U365=0),\"\",IF(T365>0,U365/T365,U365))","v":""},{"$f":"IF($AN365=ExcluirDelPLogro,\"\",IF(AND(T365=0,U365=0),\"\",V365))","v":""},{"$f":"IF(Setup!$AJ$7<>\"\",INDIRECT(\"'\" & Setup!$AJ$7 & \"'!\" & AD365),0) + IF(Setup!$AJ$8<>\"\",INDIRECT(\"'\" & Setup!$AJ$8 & \"'!\" & AD365),0) + IF(Setup!$AJ$9<>\"\",INDIRECT(\"'\" & Setup!$AJ$9 & \"'!\" & AD365),0) + IF(Setup!$AJ$10<>\"\",INDIRECT(\"'\" & Setup!$AJ$10 & \"'!\" & AD365),0) + IF(Setup!$AJ$11<>\"\",INDIRECT(\"'\" & Setup!$AJ$11 & \"'!\" & AD365),0) + IF(Setup!$AJ$12<>\"\",INDIRECT(\"'\" & Setup!$AJ$12 & \"'!\" & AD365),0)","v":0},{"$f":"IF(Setup!$AJ$7<>\"\",INDIRECT(\"'\" & Setup!$AJ$7 & \"'!\" & AE365),0) + IF(Setup!$AJ$8<>\"\",INDIRECT(\"'\" & Setup!$AJ$8 & \"'!\" & AE365),0) + IF(Setup!$AJ$9<>\"\",INDIRECT(\"'\" & Setup!$AJ$9 & \"'!\" & AE365),0) + IF(Setup!$AJ$10<>\"\",INDIRECT(\"'\" & Setup!$AJ$10 & \"'!\" & AE365),0) + IF(Setup!$AJ$11<>\"\",INDIRECT(\"'\" & Setup!$AJ$11 & \"'!\" & AE365),0) + IF(Setup!$AJ$12<>\"\",INDIRECT(\"'\" & Setup!$AJ$12 & \"'!\" & AE365),0)","v":0},{"$f":"IF(AND(X365=0,Y365=0),\"\",IF(X365>0,Y365/X365,Y365))","v":""},{"$f":"IF($AN365=ExcluirDelPLogro,\"\",IF(AND(X365=0,Y365=0),\"\",Z365))","v":""},{"$f":"Planning!H137","v":0},{"$f":"LEFT(B365,1)&C365","v":"00"},"M153","O153","N153",null,null,{"$f":"IF(Setup!$AG$7<>\"\",INDIRECT(\"'\" & Setup!$AG$7 & \"'!\" & AF365),0) + IF(Setup!$AG$8<>\"\",INDIRECT(\"'\" & Setup!$AG$8 & \"'!\" & AF365),0) + IF(Setup!$AG$9<>\"\",INDIRECT(\"'\" & Setup!$AG$9 & \"'!\" & AF365),0) + IF(Setup!$AG$10<>\"\",INDIRECT(\"'\" & Setup!$AG$10 & \"'!\" & AF365),0) + IF(Setup!$AG$11<>\"\",INDIRECT(\"'\" & Setup!$AG$11 & \"'!\" & AF365),0) + IF(Setup!$AG$12<>\"\",INDIRECT(\"'\" & Setup!$AG$12 & \"'!\" & AF365),0)","v":0},{"$f":"IF(Setup!$AH$7<>\"\",INDIRECT(\"'\" & Setup!$AH$7 & \"'!\" & AF365),0) + IF(Setup!$AH$8<>\"\",INDIRECT(\"'\" & Setup!$AH$8 & \"'!\" & AF365),0) + IF(Setup!$AH$9<>\"\",INDIRECT(\"'\" & Setup!$AH$9 & \"'!\" & AF365),0) + IF(Setup!$AH$10<>\"\",INDIRECT(\"'\" & Setup!$AH$10 & \"'!\" & AF365),0) + IF(Setup!$AH$11<>\"\",INDIRECT(\"'\" & Setup!$AH$11 & \"'!\" & AF365),0) + IF(Setup!$AH$12<>\"\",INDIRECT(\"'\" & Setup!$AH$12 & \"'!\" & AF365),0)","v":0},{"$f":"IF(Setup!$AI$7<>\"\",INDIRECT(\"'\" & Setup!$AI$7 & \"'!\" & AF365),0) + IF(Setup!$AI$8<>\"\",INDIRECT(\"'\" & Setup!$AI$8 & \"'!\" & AF365),0) + IF(Setup!$AI$9<>\"\",INDIRECT(\"'\" & Setup!$AI$9 & \"'!\" & AF365),0) + IF(Setup!$AI$10<>\"\",INDIRECT(\"'\" & Setup!$AI$10 & \"'!\" & AF365),0) + IF(Setup!$AI$11<>\"\",INDIRECT(\"'\" & Setup!$AI$11 & \"'!\" & AF365),0) + IF(Setup!$AI$12<>\"\",INDIRECT(\"'\" & Setup!$AI$12 & \"'!\" & AF365),0)","v":0},{"$f":"IF(Setup!$AJ$7<>\"\",INDIRECT(\"'\" & Setup!$AJ$7 & \"'!\" & AF365),0) + IF(Setup!$AJ$8<>\"\",INDIRECT(\"'\" & Setup!$AJ$8 & \"'!\" & AF365),0) + IF(Setup!$AJ$9<>\"\",INDIRECT(\"'\" & Setup!$AJ$9 & \"'!\" & AF365),0) + IF(Setup!$AJ$10<>\"\",INDIRECT(\"'\" & Setup!$AJ$10 & \"'!\" & AF365),0) + IF(Setup!$AJ$11<>\"\",INDIRECT(\"'\" & Setup!$AJ$11 & \"'!\" & AF365),0) + IF(Setup!$AJ$12<>\"\",INDIRECT(\"'\" & Setup!$AJ$12 & \"'!\" & AF365),0)","v":0},null,{"$f":"IF(B365=0,\"\",IF(LEFT(B365,1)=\"1\",\"1\",\"2\"))","v":""},{"$nulls":30},0,{"$f":"IF(Setup!$AH$7=\"\",0,INDIRECT(\"'\" & Setup!$AH$7 & \"'!\" & AF365))","v":0},{"$f":"IF(Setup!$AI$7=\"\",0,INDIRECT(\"'\" & Setup!$AI$7 & \"'!\" & AF365))","v":0},{"$f":"IF(Setup!$AJ$7=\"\",0,INDIRECT(\"'\" & Setup!$AJ$7 & \"'!\" & AF365))","v":0}]
[{"$f":"Planning!A138","v":"I130"},{"$f":"Planning!B138","v":0},{"$f":"Planning!C138","v":0},{"$f":"Planning!D138","v":0},{"$f":"Planning!E138","v":0},{"$f":"Planning!G138","v":0},{"$f":"IF(C366<>0,NumObjetivo(C366),0)","v":0},{"$f":"SUM(L366,P366,T366,X366)","v":{"v":0,"d":"0.00"}},{"$f":"SUM(M366,Q366,U366,Y366)","v":{"v":0,"d":"0.00"}},{"$f":"IF(AND(H366=0,I366=0),\"\",IF(H366>0,I366/H366,I366))","v":""},"",{"$f":"IF(Setup!$AG$7<>\"\",INDIRECT(\"'\" & Setup!$AG$7 & \"'!\" & AD366),0) + IF(Setup!$AG$8<>\"\",INDIRECT(\"'\" & Setup!$AG$8 & \"'!\" & AD366),0) + IF(Setup!$AG$9<>\"\",INDIRECT(\"'\" & Setup!$AG$9 & \"'!\" & AD366),0) + IF(Setup!$AG$10<>\"\",INDIRECT(\"'\" & Setup!$AG$10 & \"'!\" & AD366),0) + IF(Setup!$AG$11<>\"\",INDIRECT(\"'\" & Setup!$AG$11 & \"'!\" & AD366),0) + IF(Setup!$AG$12<>\"\",INDIRECT(\"'\" & Setup!$AG$12 & \"'!\" & AD366),0)","v":{"v":0,"d":"0.00"}},{"$f":"IF(Setup!$AG$7<>\"\",INDIRECT(\"'\" & Setup!$AG$7 & \"'!\" & AE366),0) + IF(Setup!$AG$8<>\"\",INDIRECT(\"'\" & Setup!$AG$8 & \"'!\" & AE366),0) + IF(Setup!$AG$9<>\"\",INDIRECT(\"'\" & Setup!$AG$9 & \"'!\" & AE366),0) + IF(Setup!$AG$10<>\"\",INDIRECT(\"'\" & Setup!$AG$10 & \"'!\" & AE366),0) + IF(Setup!$AG$11<>\"\",INDIRECT(\"'\" & Setup!$AG$11 & \"'!\" & AE366),0) + IF(Setup!$AG$12<>\"\",INDIRECT(\"'\" & Setup!$AG$12 & \"'!\" & AE366),0)","v":{"v":0,"d":"0.00"}},{"$f":"IF(AND(L366=0,M366=0),\"\",IF(L366>0,M366/L366,M366))","v":""},"",{"$f":"IF(Setup!$AH$7<>\"\",INDIRECT(\"'\" & Setup!$AH$7 & \"'!\" & AD366),0) + IF(Setup!$AH$8<>\"\",INDIRECT(\"'\" & Setup!$AH$8 & \"'!\" & AD366),0) + IF(Setup!$AH$9<>\"\",INDIRECT(\"'\" & Setup!$AH$9 & \"'!\" & AD366),0) + IF(Setup!$AH$10<>\"\",INDIRECT(\"'\" & Setup!$AH$10 & \"'!\" & AD366),0) + IF(Setup!$AH$11<>\"\",INDIRECT(\"'\" & Setup!$AH$11 & \"'!\" & AD366),0) + IF(Setup!$AH$12<>\"\",INDIRECT(\"'\" & Setup!$AH$12 & \"'!\" & AD366),0)","v":{"v":0,"d":"0.00"}},{"$f":"IF(Setup!$AH$7<>\"\",INDIRECT(\"'\" & Setup!$AH$7 & \"'!\" & AE366),0) + IF(Setup!$AH$8<>\"\",INDIRECT(\"'\" & Setup!$AH$8 & \"'!\" & AE366),0) + IF(Setup!$AH$9<>\"\",INDIRECT(\"'\" & Setup!$AH$9 & \"'!\" & AE366),0) + IF(Setup!$AH$10<>\"\",INDIRECT(\"'\" & Setup!$AH$10 & \"'!\" & AE366),0) + IF(Setup!$AH$11<>\"\",INDIRECT(\"'\" & Setup!$AH$11 & \"'!\" & AE366),0) + IF(Setup!$AH$12<>\"\",INDIRECT(\"'\" & Setup!$AH$12 & \"'!\" & AE366),0)","v":{"v":0,"d":"0.00"}},{"$f":"IF(AND(P366=0,Q366=0),\"\",IF(P366>0,Q366/P366,Q366))","v":""},"",{"$f":"IF(Setup!$AI$7<>\"\",INDIRECT(\"'\" & Setup!$AI$7 & \"'!\" & AD366),0) + IF(Setup!$AI$8<>\"\",INDIRECT(\"'\" & Setup!$AI$8 & \"'!\" & AD366),0) + IF(Setup!$AI$9<>\"\",INDIRECT(\"'\" & Setup!$AI$9 & \"'!\" & AD366),0) + IF(Setup!$AI$10<>\"\",INDIRECT(\"'\" & Setup!$AI$10 & \"'!\" & AD366),0) + IF(Setup!$AI$11<>\"\",INDIRECT(\"'\" & Setup!$AI$11 & \"'!\" & AD366),0) + IF(Setup!$AI$12<>\"\",INDIRECT(\"'\" & Setup!$AI$12 & \"'!\" & AD366),0)","v":{"v":0,"d":"0.00"}},{"$f":"IF(Setup!$AI$7<>\"\",INDIRECT(\"'\" & Setup!$AI$7 & \"'!\" & AE366),0) + IF(Setup!$AI$8<>\"\",INDIRECT(\"'\" & Setup!$AI$8 & \"'!\" & AE366),0) + IF(Setup!$AI$9<>\"\",INDIRECT(\"'\" & Setup!$AI$9 & \"'!\" & AE366),0) + IF(Setup!$AI$10<>\"\",INDIRECT(\"'\" & Setup!$AI$10 & \"'!\" & AE366),0) + IF(Setup!$AI$11<>\"\",INDIRECT(\"'\" & Setup!$AI$11 & \"'!\" & AE366),0) + IF(Setup!$AI$12<>\"\",INDIRECT(\"'\" & Setup!$AI$12 & \"'!\" & AE366),0)","v":{"v":0,"d":"0.00"}},"","",{"$f":"IF(Setup!$AJ$7<>\"\",INDIRECT(\"'\" & Setup!$AJ$7 & \"'!\" & AD366),0) + IF(Setup!$AJ$8<>\"\",INDIRECT(\"'\" & Setup!$AJ$8 & \"'!\" & AD366),0) + IF(Setup!$AJ$9<>\"\",INDIRECT(\"'\" & Setup!$AJ$9 & \"'!\" & AD366),0) + IF(Setup!$AJ$10<>\"\",INDIRECT(\"'\" & Setup!$AJ$10 & \"'!\" & AD366),0) + IF(Setup!$AJ$11<>\"\",INDIRECT(\"'\" & Setup!$AJ$11 & \"'!\" & AD366),0) + IF(Setup!$AJ$12<>\"\",INDIRECT(\"'\" & Setup!$AJ$12 & \"'!\" & AD366),0)","v":0},{"$f":"IF(Setup!$AJ$7<>\"\",INDIRECT(\"'\" & Setup!$AJ$7 & \"'!\" & AE366),0) + IF(Setup!$AJ$8<>\"\",INDIRECT(\"'\" & Setup!$AJ$8 & \"'!\" & AE366),0) + IF(Setup!$AJ$9<>\"\",INDIRECT(\"'\" & Setup!$AJ$9 & \"'!\" & AE366),0) + IF(Setup!$AJ$10<>\"\",INDIRECT(\"'\" & Setup!$AJ$10 & \"'!\" & AE366),0) + IF(Setup!$AJ$11<>\"\",INDIRECT(\"'\" & Setup!$AJ$11 & \"'!\" & AE366),0) + IF(Setup!$AJ$12<>\"\",INDIRECT(\"'\" & Setup!$AJ$12 & \"'!\" & AE366),0)","v":0},"","",{"$f":"Planning!H138","v":0},"00","M154","O154","N154",null,null,{"$f":"IF(Setup!$AG$7<>\"\",INDIRECT(\"'\" & Setup!$AG$7 & \"'!\" & AF366),0) + IF(Setup!$AG$8<>\"\",INDIRECT(\"'\" & Setup!$AG$8 & \"'!\" & AF366),0) + IF(Setup!$AG$9<>\"\",INDIRECT(\"'\" & Setup!$AG$9 & \"'!\" & AF366),0) + IF(Setup!$AG$10<>\"\",INDIRECT(\"'\" & Setup!$AG$10 & \"'!\" & AF366),0) + IF(Setup!$AG$11<>\"\",INDIRECT(\"'\" & Setup!$AG$11 & \"'!\" & AF366),0) + IF(Setup!$AG$12<>\"\",INDIRECT(\"'\" & Setup!$AG$12 & \"'!\" & AF366),0)","v":0},{"$f":"IF(Setup!$AH$7<>\"\",INDIRECT(\"'\" & Setup!$AH$7 & \"'!\" & AF366),0) + IF(Setup!$AH$8<>\"\",INDIRECT(\"'\" & Setup!$AH$8 & \"'!\" & AF366),0) + IF(Setup!$AH$9<>\"\",INDIRECT(\"'\" & Setup!$AH$9 & \"'!\" & AF366),0) + IF(Setup!$AH$10<>\"\",INDIRECT(\"'\" & Setup!$AH$10 & \"'!\" & AF366),0) + IF(Setup!$AH$11<>\"\",INDIRECT(\"'\" & Setup!$AH$11 & \"'!\" & AF366),0) + IF(Setup!$AH$12<>\"\",INDIRECT(\"'\" & Setup!$AH$12 & \"'!\" & AF366),0)","v":0},{"$f":"IF(Setup!$AI$7<>\"\",INDIRECT(\"'\" & Setup!$AI$7 & \"'!\" & AF366),0) + IF(Setup!$AI$8<>\"\",INDIRECT(\"'\" & Setup!$AI$8 & \"'!\" & AF366),0) + IF(Setup!$AI$9<>\"\",INDIRECT(\"'\" & Setup!$AI$9 & \"'!\" & AF366),0) + IF(Setup!$AI$10<>\"\",INDIRECT(\"'\" & Setup!$AI$10 & \"'!\" & AF366),0) + IF(Setup!$AI$11<>\"\",INDIRECT(\"'\" & Setup!$AI$11 & \"'!\" & AF366),0) + IF(Setup!$AI$12<>\"\",INDIRECT(\"'\" & Setup!$AI$12 & \"'!\" & AF366),0)","v":0},{"$f":"IF(Setup!$AJ$7<>\"\",INDIRECT(\"'\" & Setup!$AJ$7 & \"'!\" & AF366),0) + IF(Setup!$AJ$8<>\"\",INDIRECT(\"'\" & Setup!$AJ$8 & \"'!\" & AF366),0) + IF(Setup!$AJ$9<>\"\",INDIRECT(\"'\" & Setup!$AJ$9 & \"'!\" & AF366),0) + IF(Setup!$AJ$10<>\"\",INDIRECT(\"'\" & Setup!$AJ$10 & \"'!\" & AF366),0) + IF(Setup!$AJ$11<>\"\",INDIRECT(\"'\" & Setup!$AJ$11 & \"'!\" & AF366),0) + IF(Setup!$AJ$12<>\"\",INDIRECT(\"'\" & Setup!$AJ$12 & \"'!\" & AF366),0)","v":0},null,"",{"$nulls":30},0,{"$f":"IF(Setup!$AH$7=\"\",0,INDIRECT(\"'\" & Setup!$AH$7 & \"'!\" & AF366))","v":0},{"$f":"IF(Setup!$AI$7=\"\",0,INDIRECT(\"'\" & Setup!$AI$7 & \"'!\" & AF366))","v":0},{"$f":"IF(Setup!$AJ$7=\"\",0,INDIRECT(\"'\" & Setup!$AJ$7 & \"'!\" & AF366))","v":0}]
[{"$f":"Planning!A139","v":"I131"},{"$f":"Planning!B139","v":0},{"$f":"Planning!C139","v":0},{"$f":"Planning!D139","v":0},{"$f":"Planning!E139","v":0},{"$f":"Planning!G139","v":0},0,{"v":0,"d":"0.00"},{"v":0,"d":"0.00"},"","",{"$f":"IF(Setup!$AG$7<>\"\",INDIRECT(\"'\" & Setup!$AG$7 & \"'!\" & AD367),0) + IF(Setup!$AG$8<>\"\",INDIRECT(\"'\" & Setup!$AG$8 & \"'!\" & AD367),0) + IF(Setup!$AG$9<>\"\",INDIRECT(\"'\" & Setup!$AG$9 & \"'!\" & AD367),0) + IF(Setup!$AG$10<>\"\",INDIRECT(\"'\" & Setup!$AG$10 & \"'!\" & AD367),0) + IF(Setup!$AG$11<>\"\",INDIRECT(\"'\" & Setup!$AG$11 & \"'!\" & AD367),0) + IF(Setup!$AG$12<>\"\",INDIRECT(\"'\" & Setup!$AG$12 & \"'!\" & AD367),0)","v":{"v":0,"d":"0.00"}},{"$f":"IF(Setup!$AG$7<>\"\",INDIRECT(\"'\" & Setup!$AG$7 & \"'!\" & AE367),0) + IF(Setup!$AG$8<>\"\",INDIRECT(\"'\" & Setup!$AG$8 & \"'!\" & AE367),0) + IF(Setup!$AG$9<>\"\",INDIRECT(\"'\" & Setup!$AG$9 & \"'!\" & AE367),0) + IF(Setup!$AG$10<>\"\",INDIRECT(\"'\" & Setup!$AG$10 & \"'!\" & AE367),0) + IF(Setup!$AG$11<>\"\",INDIRECT(\"'\" & Setup!$AG$11 & \"'!\" & AE367),0) + IF(Setup!$AG$12<>\"\",INDIRECT(\"'\" & Setup!$AG$12 & \"'!\" & AE367),0)","v":{"v":0,"d":"0.00"}},"","",{"$f":"IF(Setup!$AH$7<>\"\",INDIRECT(\"'\" & Setup!$AH$7 & \"'!\" & AD367),0) + IF(Setup!$AH$8<>\"\",INDIRECT(\"'\" & Setup!$AH$8 & \"'!\" & AD367),0) + IF(Setup!$AH$9<>\"\",INDIRECT(\"'\" & Setup!$AH$9 & \"'!\" & AD367),0) + IF(Setup!$AH$10<>\"\",INDIRECT(\"'\" & Setup!$AH$10 & \"'!\" & AD367),0) + IF(Setup!$AH$11<>\"\",INDIRECT(\"'\" & Setup!$AH$11 & \"'!\" & AD367),0) + IF(Setup!$AH$12<>\"\",INDIRECT(\"'\" & Setup!$AH$12 & \"'!\" & AD367),0)","v":{"v":0,"d":"0.00"}},{"$f":"IF(Setup!$AH$7<>\"\",INDIRECT(\"'\" & Setup!$AH$7 & \"'!\" & AE367),0) + IF(Setup!$AH$8<>\"\",INDIRECT(\"'\" & Setup!$AH$8 & \"'!\" & AE367),0) + IF(Setup!$AH$9<>\"\",INDIRECT(\"'\" & Setup!$AH$9 & \"'!\" & AE367),0) + IF(Setup!$AH$10<>\"\",INDIRECT(\"'\" & Setup!$AH$10 & \"'!\" & AE367),0) + IF(Setup!$AH$11<>\"\",INDIRECT(\"'\" & Setup!$AH$11 & \"'!\" & AE367),0) + IF(Setup!$AH$12<>\"\",INDIRECT(\"'\" & Setup!$AH$12 & \"'!\" & AE367),0)","v":{"v":0,"d":"0.00"}},"","",{"$f":"IF(Setup!$AI$7<>\"\",INDIRECT(\"'\" & Setup!$AI$7 & \"'!\" & AD367),0) + IF(Setup!$AI$8<>\"\",INDIRECT(\"'\" & Setup!$AI$8 & \"'!\" & AD367),0) + IF(Setup!$AI$9<>\"\",INDIRECT(\"'\" & Setup!$AI$9 & \"'!\" & AD367),0) + IF(Setup!$AI$10<>\"\",INDIRECT(\"'\" & Setup!$AI$10 & \"'!\" & AD367),0) + IF(Setup!$AI$11<>\"\",INDIRECT(\"'\" & Setup!$AI$11 & \"'!\" & AD367),0) + IF(Setup!$AI$12<>\"\",INDIRECT(\"'\" & Setup!$AI$12 & \"'!\" & AD367),0)","v":{"v":0,"d":"0.00"}},{"$f":"IF(Setup!$AI$7<>\"\",INDIRECT(\"'\" & Setup!$AI$7 & \"'!\" & AE367),0) + IF(Setup!$AI$8<>\"\",INDIRECT(\"'\" & Setup!$AI$8 & \"'!\" & AE367),0) + IF(Setup!$AI$9<>\"\",INDIRECT(\"'\" & Setup!$AI$9 & \"'!\" & AE367),0) + IF(Setup!$AI$10<>\"\",INDIRECT(\"'\" & Setup!$AI$10 & \"'!\" & AE367),0) + IF(Setup!$AI$11<>\"\",INDIRECT(\"'\" & Setup!$AI$11 & \"'!\" & AE367),0) + IF(Setup!$AI$12<>\"\",INDIRECT(\"'\" & Setup!$AI$12 & \"'!\" & AE367),0)","v":{"v":0,"d":"0.00"}},"","",{"$f":"IF(Setup!$AJ$7<>\"\",INDIRECT(\"'\" & Setup!$AJ$7 & \"'!\" & AD367),0) + IF(Setup!$AJ$8<>\"\",INDIRECT(\"'\" & Setup!$AJ$8 & \"'!\" & AD367),0) + IF(Setup!$AJ$9<>\"\",INDIRECT(\"'\" & Setup!$AJ$9 & \"'!\" & AD367),0) + IF(Setup!$AJ$10<>\"\",INDIRECT(\"'\" & Setup!$AJ$10 & \"'!\" & AD367),0) + IF(Setup!$AJ$11<>\"\",INDIRECT(\"'\" & Setup!$AJ$11 & \"'!\" & AD367),0) + IF(Setup!$AJ$12<>\"\",INDIRECT(\"'\" & Setup!$AJ$12 & \"'!\" & AD367),0)","v":0},{"$f":"IF(Setup!$AJ$7<>\"\",INDIRECT(\"'\" & Setup!$AJ$7 & \"'!\" & AE367),0) + IF(Setup!$AJ$8<>\"\",INDIRECT(\"'\" & Setup!$AJ$8 & \"'!\" & AE367),0) + IF(Setup!$AJ$9<>\"\",INDIRECT(\"'\" & Setup!$AJ$9 & \"'!\" & AE367),0) + IF(Setup!$AJ$10<>\"\",INDIRECT(\"'\" & Setup!$AJ$10 & \"'!\" & AE367),0) + IF(Setup!$AJ$11<>\"\",INDIRECT(\"'\" & Setup!$AJ$11 & \"'!\" & AE367),0) + IF(Setup!$AJ$12<>\"\",INDIRECT(\"'\" & Setup!$AJ$12 & \"'!\" & AE367),0)","v":0},"","",{"$f":"Planning!H139","v":0},"00","M155","O155","N155",null,null,{"$f":"IF(Setup!$AG$7<>\"\",INDIRECT(\"'\" & Setup!$AG$7 & \"'!\" & AF367),0) + IF(Setup!$AG$8<>\"\",INDIRECT(\"'\" & Setup!$AG$8 & \"'!\" & AF367),0) + IF(Setup!$AG$9<>\"\",INDIRECT(\"'\" & Setup!$AG$9 & \"'!\" & AF367),0) + IF(Setup!$AG$10<>\"\",INDIRECT(\"'\" & Setup!$AG$10 & \"'!\" & AF367),0) + IF(Setup!$AG$11<>\"\",INDIRECT(\"'\" & Setup!$AG$11 & \"'!\" & AF367),0) + IF(Setup!$AG$12<>\"\",INDIRECT(\"'\" & Setup!$AG$12 & \"'!\" & AF367),0)","v":0},{"$f":"IF(Setup!$AH$7<>\"\",INDIRECT(\"'\" & Setup!$AH$7 & \"'!\" & AF367),0) + IF(Setup!$AH$8<>\"\",INDIRECT(\"'\" & Setup!$AH$8 & \"'!\" & AF367),0) + IF(Setup!$AH$9<>\"\",INDIRECT(\"'\" & Setup!$AH$9 & \"'!\" & AF367),0) + IF(Setup!$AH$10<>\"\",INDIRECT(\"'\" & Setup!$AH$10 & \"'!\" & AF367),0) + IF(Setup!$AH$11<>\"\",INDIRECT(\"'\" & Setup!$AH$11 & \"'!\" & AF367),0) + IF(Setup!$AH$12<>\"\",INDIRECT(\"'\" & Setup!$AH$12 & \"'!\" & AF367),0)","v":0},{"$f":"IF(Setup!$AI$7<>\"\",INDIRECT(\"'\" & Setup!$AI$7 & \"'!\" & AF367),0) + IF(Setup!$AI$8<>\"\",INDIRECT(\"'\" & Setup!$AI$8 & \"'!\" & AF367),0) + IF(Setup!$AI$9<>\"\",INDIRECT(\"'\" & Setup!$AI$9 & \"'!\" & AF367),0) + IF(Setup!$AI$10<>\"\",INDIRECT(\"'\" & Setup!$AI$10 & \"'!\" & AF367),0) + IF(Setup!$AI$11<>\"\",INDIRECT(\"'\" & Setup!$AI$11 & \"'!\" & AF367),0) + IF(Setup!$AI$12<>\"\",INDIRECT(\"'\" & Setup!$AI$12 & \"'!\" & AF367),0)","v":0},{"$f":"IF(Setup!$AJ$7<>\"\",INDIRECT(\"'\" & Setup!$AJ$7 & \"'!\" & AF367),0) + IF(Setup!$AJ$8<>\"\",INDIRECT(\"'\" & Setup!$AJ$8 & \"'!\" & AF367),0) + IF(Setup!$AJ$9<>\"\",INDIRECT(\"'\" & Setup!$AJ$9 & \"'!\" & AF367),0) + IF(Setup!$AJ$10<>\"\",INDIRECT(\"'\" & Setup!$AJ$10 & \"'!\" & AF367),0) + IF(Setup!$AJ$11<>\"\",INDIRECT(\"'\" & Setup!$AJ$11 & \"'!\" & AF367),0) + IF(Setup!$AJ$12<>\"\",INDIRECT(\"'\" & Setup!$AJ$12 & \"'!\" & AF367),0)","v":0},null,"",{"$nulls":30},0,{"$f":"IF(Setup!$AH$7=\"\",0,INDIRECT(\"'\" & Setup!$AH$7 & \"'!\" & AF367))","v":0},{"$f":"IF(Setup!$AI$7=\"\",0,INDIRECT(\"'\" & Setup!$AI$7 & \"'!\" & AF367))","v":0},{"$f":"IF(Setup!$AJ$7=\"\",0,INDIRECT(\"'\" & Setup!$AJ$7 & \"'!\" & AF367))","v":0}]
[{"$f":"Planning!A140","v":"I132"},{"$f":"Planning!B140","v":0},{"$f":"Planning!C140","v":0},{"$f":"Planning!D140","v":0},{"$f":"Planning!E140","v":0},{"$f":"Planning!G140","v":0},0,{"v":0,"d":"0.00"},{"v":0,"d":"0.00"},"","",{"$f":"IF(Setup!$AG$7<>\"\",INDIRECT(\"'\" & Setup!$AG$7 & \"'!\" & AD368),0) + IF(Setup!$AG$8<>\"\",INDIRECT(\"'\" & Setup!$AG$8 & \"'!\" & AD368),0) + IF(Setup!$AG$9<>\"\",INDIRECT(\"'\" & Setup!$AG$9 & \"'!\" & AD368),0) + IF(Setup!$AG$10<>\"\",INDIRECT(\"'\" & Setup!$AG$10 & \"'!\" & AD368),0) + IF(Setup!$AG$11<>\"\",INDIRECT(\"'\" & Setup!$AG$11 & \"'!\" & AD368),0) + IF(Setup!$AG$12<>\"\",INDIRECT(\"'\" & Setup!$AG$12 & \"'!\" & AD368),0)","v":{"v":0,"d":"0.00"}},{"$f":"IF(Setup!$AG$7<>\"\",INDIRECT(\"'\" & Setup!$AG$7 & \"'!\" & AE368),0) + IF(Setup!$AG$8<>\"\",INDIRECT(\"'\" & Setup!$AG$8 & \"'!\" & AE368),0) + IF(Setup!$AG$9<>\"\",INDIRECT(\"'\" & Setup!$AG$9 & \"'!\" & AE368),0) + IF(Setup!$AG$10<>\"\",INDIRECT(\"'\" & Setup!$AG$10 & \"'!\" & AE368),0) + IF(Setup!$AG$11<>\"\",INDIRECT(\"'\" & Setup!$AG$11 & \"'!\" & AE368),0) + IF(Setup!$AG$12<>\"\",INDIRECT(\"'\" & Setup!$AG$12 & \"'!\" & AE368),0)","v":{"v":0,"d":"0.00"}},"","",{"$f":"IF(Setup!$AH$7<>\"\",INDIRECT(\"'\" & Setup!$AH$7 & \"'!\" & AD368),0) + IF(Setup!$AH$8<>\"\",INDIRECT(\"'\" & Setup!$AH$8 & \"'!\" & AD368),0) + IF(Setup!$AH$9<>\"\",INDIRECT(\"'\" & Setup!$AH$9 & \"'!\" & AD368),0) + IF(Setup!$AH$10<>\"\",INDIRECT(\"'\" & Setup!$AH$10 & \"'!\" & AD368),0) + IF(Setup!$AH$11<>\"\",INDIRECT(\"'\" & Setup!$AH$11 & \"'!\" & AD368),0) + IF(Setup!$AH$12<>\"\",INDIRECT(\"'\" & Setup!$AH$12 & \"'!\" & AD368),0)","v":{"v":0,"d":"0.00"}},{"$f":"IF(Setup!$AH$7<>\"\",INDIRECT(\"'\" & Setup!$AH$7 & \"'!\" & AE368),0) + IF(Setup!$AH$8<>\"\",INDIRECT(\"'\" & Setup!$AH$8 & \"'!\" & AE368),0) + IF(Setup!$AH$9<>\"\",INDIRECT(\"'\" & Setup!$AH$9 & \"'!\" & AE368),0) + IF(Setup!$AH$10<>\"\",INDIRECT(\"'\" & Setup!$AH$10 & \"'!\" & AE368),0) + IF(Setup!$AH$11<>\"\",INDIRECT(\"'\" & Setup!$AH$11 & \"'!\" & AE368),0) + IF(Setup!$AH$12<>\"\",INDIRECT(\"'\" & Setup!$AH$12 & \"'!\" & AE368),0)","v":{"v":0,"d":"0.00"}},"","",{"$f":"IF(Setup!$AI$7<>\"\",INDIRECT(\"'\" & Setup!$AI$7 & \"'!\" & AD368),0) + IF(Setup!$AI$8<>\"\",INDIRECT(\"'\" & Setup!$AI$8 & \"'!\" & AD368),0) + IF(Setup!$AI$9<>\"\",INDIRECT(\"'\" & Setup!$AI$9 & \"'!\" & AD368),0) + IF(Setup!$AI$10<>\"\",INDIRECT(\"'\" & Setup!$AI$10 & \"'!\" & AD368),0) + IF(Setup!$AI$11<>\"\",INDIRECT(\"'\" & Setup!$AI$11 & \"'!\" & AD368),0) + IF(Setup!$AI$12<>\"\",INDIRECT(\"'\" & Setup!$AI$12 & \"'!\" & AD368),0)","v":{"v":0,"d":"0.00"}},{"$f":"IF(Setup!$AI$7<>\"\",INDIRECT(\"'\" & Setup!$AI$7 & \"'!\" & AE368),0) + IF(Setup!$AI$8<>\"\",INDIRECT(\"'\" & Setup!$AI$8 & \"'!\" & AE368),0) + IF(Setup!$AI$9<>\"\",INDIRECT(\"'\" & Setup!$AI$9 & \"'!\" & AE368),0) + IF(Setup!$AI$10<>\"\",INDIRECT(\"'\" & Setup!$AI$10 & \"'!\" & AE368),0) + IF(Setup!$AI$11<>\"\",INDIRECT(\"'\" & Setup!$AI$11 & \"'!\" & AE368),0) + IF(Setup!$AI$12<>\"\",INDIRECT(\"'\" & Setup!$AI$12 & \"'!\" & AE368),0)","v":{"v":0,"d":"0.00"}},"","",{"$f":"IF(Setup!$AJ$7<>\"\",INDIRECT(\"'\" & Setup!$AJ$7 & \"'!\" & AD368),0) + IF(Setup!$AJ$8<>\"\",INDIRECT(\"'\" & Setup!$AJ$8 & \"'!\" & AD368),0) + IF(Setup!$AJ$9<>\"\",INDIRECT(\"'\" & Setup!$AJ$9 & \"'!\" & AD368),0) + IF(Setup!$AJ$10<>\"\",INDIRECT(\"'\" & Setup!$AJ$10 & \"'!\" & AD368),0) + IF(Setup!$AJ$11<>\"\",INDIRECT(\"'\" & Setup!$AJ$11 & \"'!\" & AD368),0) + IF(Setup!$AJ$12<>\"\",INDIRECT(\"'\" & Setup!$AJ$12 & \"'!\" & AD368),0)","v":0},{"$f":"IF(Setup!$AJ$7<>\"\",INDIRECT(\"'\" & Setup!$AJ$7 & \"'!\" & AE368),0) + IF(Setup!$AJ$8<>\"\",INDIRECT(\"'\" & Setup!$AJ$8 & \"'!\" & AE368),0) + IF(Setup!$AJ$9<>\"\",INDIRECT(\"'\" & Setup!$AJ$9 & \"'!\" & AE368),0) + IF(Setup!$AJ$10<>\"\",INDIRECT(\"'\" & Setup!$AJ$10 & \"'!\" & AE368),0) + IF(Setup!$AJ$11<>\"\",INDIRECT(\"'\" & Setup!$AJ$11 & \"'!\" & AE368),0) + IF(Setup!$AJ$12<>\"\",INDIRECT(\"'\" & Setup!$AJ$12 & \"'!\" & AE368),0)","v":0},"","",{"$f":"Planning!H140","v":0},"00","M156","O156","N156",null,null,{"$f":"IF(Setup!$AG$7<>\"\",INDIRECT(\"'\" & Setup!$AG$7 & \"'!\" & AF368),0) + IF(Setup!$AG$8<>\"\",INDIRECT(\"'\" & Setup!$AG$8 & \"'!\" & AF368),0) + IF(Setup!$AG$9<>\"\",INDIRECT(\"'\" & Setup!$AG$9 & \"'!\" & AF368),0) + IF(Setup!$AG$10<>\"\",INDIRECT(\"'\" & Setup!$AG$10 & \"'!\" & AF368),0) + IF(Setup!$AG$11<>\"\",INDIRECT(\"'\" & Setup!$AG$11 & \"'!\" & AF368),0) + IF(Setup!$AG$12<>\"\",INDIRECT(\"'\" & Setup!$AG$12 & \"'!\" & AF368),0)","v":0},{"$f":"IF(Setup!$AH$7<>\"\",INDIRECT(\"'\" & Setup!$AH$7 & \"'!\" & AF368),0) + IF(Setup!$AH$8<>\"\",INDIRECT(\"'\" & Setup!$AH$8 & \"'!\" & AF368),0) + IF(Setup!$AH$9<>\"\",INDIRECT(\"'\" & Setup!$AH$9 & \"'!\" & AF368),0) + IF(Setup!$AH$10<>\"\",INDIRECT(\"'\" & Setup!$AH$10 & \"'!\" & AF368),0) + IF(Setup!$AH$11<>\"\",INDIRECT(\"'\" & Setup!$AH$11 & \"'!\" & AF368),0) + IF(Setup!$AH$12<>\"\",INDIRECT(\"'\" & Setup!$AH$12 & \"'!\" & AF368),0)","v":0},{"$f":"IF(Setup!$AI$7<>\"\",INDIRECT(\"'\" & Setup!$AI$7 & \"'!\" & AF368),0) + IF(Setup!$AI$8<>\"\",INDIRECT(\"'\" & Setup!$AI$8 & \"'!\" & AF368),0) + IF(Setup!$AI$9<>\"\",INDIRECT(\"'\" & Setup!$AI$9 & \"'!\" & AF368),0) + IF(Setup!$AI$10<>\"\",INDIRECT(\"'\" & Setup!$AI$10 & \"'!\" & AF368),0) + IF(Setup!$AI$11<>\"\",INDIRECT(\"'\" & Setup!$AI$11 & \"'!\" & AF368),0) + IF(Setup!$AI$12<>\"\",INDIRECT(\"'\" & Setup!$AI$12 & \"'!\" & AF368),0)","v":0},{"$f":"IF(Setup!$AJ$7<>\"\",INDIRECT(\"'\" & Setup!$AJ$7 & \"'!\" & AF368),0) + IF(Setup!$AJ$8<>\"\",INDIRECT(\"'\" & Setup!$AJ$8 & \"'!\" & AF368),0) + IF(Setup!$AJ$9<>\"\",INDIRECT(\"'\" & Setup!$AJ$9 & \"'!\" & AF368),0) + IF(Setup!$AJ$10<>\"\",INDIRECT(\"'\" & Setup!$AJ$10 & \"'!\" & AF368),0) + IF(Setup!$AJ$11<>\"\",INDIRECT(\"'\" & Setup!$AJ$11 & \"'!\" & AF368),0) + IF(Setup!$AJ$12<>\"\",INDIRECT(\"'\" & Setup!$AJ$12 & \"'!\" & AF368),0)","v":0},null,"",{"$nulls":30},0,{"$f":"IF(Setup!$AH$7=\"\",0,INDIRECT(\"'\" & Setup!$AH$7 & \"'!\" & AF368))","v":0},{"$f":"IF(Setup!$AI$7=\"\",0,INDIRECT(\"'\" & Setup!$AI$7 & \"'!\" & AF368))","v":0},{"$f":"IF(Setup!$AJ$7=\"\",0,INDIRECT(\"'\" & Setup!$AJ$7 & \"'!\" & AF368))","v":0}]
[{"$f":"Planning!A141","v":"I133"},{"$f":"Planning!B141","v":0},{"$f":"Planning!C141","v":0},{"$f":"Planning!D141","v":0},{"$f":"Planning!E141","v":0},{"$f":"Planning!G141","v":0},0,{"v":0,"d":"0.00"},{"v":0,"d":"0.00"},"","",{"$f":"IF(Setup!$AG$7<>\"\",INDIRECT(\"'\" & Setup!$AG$7 & \"'!\" & AD369),0) + IF(Setup!$AG$8<>\"\",INDIRECT(\"'\" & Setup!$AG$8 & \"'!\" & AD369),0) + IF(Setup!$AG$9<>\"\",INDIRECT(\"'\" & Setup!$AG$9 & \"'!\" & AD369),0) + IF(Setup!$AG$10<>\"\",INDIRECT(\"'\" & Setup!$AG$10 & \"'!\" & AD369),0) + IF(Setup!$AG$11<>\"\",INDIRECT(\"'\" & Setup!$AG$11 & \"'!\" & AD369),0) + IF(Setup!$AG$12<>\"\",INDIRECT(\"'\" & Setup!$AG$12 & \"'!\" & AD369),0)","v":{"v":0,"d":"0.00"}},{"$f":"IF(Setup!$AG$7<>\"\",INDIRECT(\"'\" & Setup!$AG$7 & \"'!\" & AE369),0) + IF(Setup!$AG$8<>\"\",INDIRECT(\"'\" & Setup!$AG$8 & \"'!\" & AE369),0) + IF(Setup!$AG$9<>\"\",INDIRECT(\"'\" & Setup!$AG$9 & \"'!\" & AE369),0) + IF(Setup!$AG$10<>\"\",INDIRECT(\"'\" & Setup!$AG$10 & \"'!\" & AE369),0) + IF(Setup!$AG$11<>\"\",INDIRECT(\"'\" & Setup!$AG$11 & \"'!\" & AE369),0) + IF(Setup!$AG$12<>\"\",INDIRECT(\"'\" & Setup!$AG$12 & \"'!\" & AE369),0)","v":{"v":0,"d":"0.00"}},"","",{"$f":"IF(Setup!$AH$7<>\"\",INDIRECT(\"'\" & Setup!$AH$7 & \"'!\" & AD369),0) + IF(Setup!$AH$8<>\"\",INDIRECT(\"'\" & Setup!$AH$8 & \"'!\" & AD369),0) + IF(Setup!$AH$9<>\"\",INDIRECT(\"'\" & Setup!$AH$9 & \"'!\" & AD369),0) + IF(Setup!$AH$10<>\"\",INDIRECT(\"'\" & Setup!$AH$10 & \"'!\" & AD369),0) + IF(Setup!$AH$11<>\"\",INDIRECT(\"'\" & Setup!$AH$11 & \"'!\" & AD369),0) + IF(Setup!$AH$12<>\"\",INDIRECT(\"'\" & Setup!$AH$12 & \"'!\" & AD369),0)","v":{"v":0,"d":"0.00"}},{"$f":"IF(Setup!$AH$7<>\"\",INDIRECT(\"'\" & Setup!$AH$7 & \"'!\" & AE369),0) + IF(Setup!$AH$8<>\"\",INDIRECT(\"'\" & Setup!$AH$8 & \"'!\" & AE369),0) + IF(Setup!$AH$9<>\"\",INDIRECT(\"'\" & Setup!$AH$9 & \"'!\" & AE369),0) + IF(Setup!$AH$10<>\"\",INDIRECT(\"'\" & Setup!$AH$10 & \"'!\" & AE369),0) + IF(Setup!$AH$11<>\"\",INDIRECT(\"'\" & Setup!$AH$11 & \"'!\" & AE369),0) + IF(Setup!$AH$12<>\"\",INDIRECT(\"'\" & Setup!$AH$12 & \"'!\" & AE369),0)","v":{"v":0,"d":"0.00"}},"","",{"$f":"IF(Setup!$AI$7<>\"\",INDIRECT(\"'\" & Setup!$AI$7 & \"'!\" & AD369),0) + IF(Setup!$AI$8<>\"\",INDIRECT(\"'\" & Setup!$AI$8 & \"'!\" & AD369),0) + IF(Setup!$AI$9<>\"\",INDIRECT(\"'\" & Setup!$AI$9 & \"'!\" & AD369),0) + IF(Setup!$AI$10<>\"\",INDIRECT(\"'\" & Setup!$AI$10 & \"'!\" & AD369),0) + IF(Setup!$AI$11<>\"\",INDIRECT(\"'\" & Setup!$AI$11 & \"'!\" & AD369),0) + IF(Setup!$AI$12<>\"\",INDIRECT(\"'\" & Setup!$AI$12 & \"'!\" & AD369),0)","v":{"v":0,"d":"0.00"}},{"$f":"IF(Setup!$AI$7<>\"\",INDIRECT(\"'\" & Setup!$AI$7 & \"'!\" & AE369),0) + IF(Setup!$AI$8<>\"\",INDIRECT(\"'\" & Setup!$AI$8 & \"'!\" & AE369),0) + IF(Setup!$AI$9<>\"\",INDIRECT(\"'\" & Setup!$AI$9 & \"'!\" & AE369),0) + IF(Setup!$AI$10<>\"\",INDIRECT(\"'\" & Setup!$AI$10 & \"'!\" & AE369),0) + IF(Setup!$AI$11<>\"\",INDIRECT(\"'\" & Setup!$AI$11 & \"'!\" & AE369),0) + IF(Setup!$AI$12<>\"\",INDIRECT(\"'\" & Setup!$AI$12 & \"'!\" & AE369),0)","v":{"v":0,"d":"0.00"}},"","",{"$f":"IF(Setup!$AJ$7<>\"\",INDIRECT(\"'\" & Setup!$AJ$7 & \"'!\" & AD369),0) + IF(Setup!$AJ$8<>\"\",INDIRECT(\"'\" & Setup!$AJ$8 & \"'!\" & AD369),0) + IF(Setup!$AJ$9<>\"\",INDIRECT(\"'\" & Setup!$AJ$9 & \"'!\" & AD369),0) + IF(Setup!$AJ$10<>\"\",INDIRECT(\"'\" & Setup!$AJ$10 & \"'!\" & AD369),0) + IF(Setup!$AJ$11<>\"\",INDIRECT(\"'\" & Setup!$AJ$11 & \"'!\" & AD369),0) + IF(Setup!$AJ$12<>\"\",INDIRECT(\"'\" & Setup!$AJ$12 & \"'!\" & AD369),0)","v":0},{"$f":"IF(Setup!$AJ$7<>\"\",INDIRECT(\"'\" & Setup!$AJ$7 & \"'!\" & AE369),0) + IF(Setup!$AJ$8<>\"\",INDIRECT(\"'\" & Setup!$AJ$8 & \"'!\" & AE369),0) + IF(Setup!$AJ$9<>\"\",INDIRECT(\"'\" & Setup!$AJ$9 & \"'!\" & AE369),0) + IF(Setup!$AJ$10<>\"\",INDIRECT(\"'\" & Setup!$AJ$10 & \"'!\" & AE369),0) + IF(Setup!$AJ$11<>\"\",INDIRECT(\"'\" & Setup!$AJ$11 & \"'!\" & AE369),0) + IF(Setup!$AJ$12<>\"\",INDIRECT(\"'\" & Setup!$AJ$12 & \"'!\" & AE369),0)","v":0},"","",{"$f":"Planning!H141","v":0},"00","M157","O157","N157",null,null,{"$f":"IF(Setup!$AG$7<>\"\",INDIRECT(\"'\" & Setup!$AG$7 & \"'!\" & AF369),0) + IF(Setup!$AG$8<>\"\",INDIRECT(\"'\" & Setup!$AG$8 & \"'!\" & AF369),0) + IF(Setup!$AG$9<>\"\",INDIRECT(\"'\" & Setup!$AG$9 & \"'!\" & AF369),0) + IF(Setup!$AG$10<>\"\",INDIRECT(\"'\" & Setup!$AG$10 & \"'!\" & AF369),0) + IF(Setup!$AG$11<>\"\",INDIRECT(\"'\" & Setup!$AG$11 & \"'!\" & AF369),0) + IF(Setup!$AG$12<>\"\",INDIRECT(\"'\" & Setup!$AG$12 & \"'!\" & AF369),0)","v":0},{"$f":"IF(Setup!$AH$7<>\"\",INDIRECT(\"'\" & Setup!$AH$7 & \"'!\" & AF369),0) + IF(Setup!$AH$8<>\"\",INDIRECT(\"'\" & Setup!$AH$8 & \"'!\" & AF369),0) + IF(Setup!$AH$9<>\"\",INDIRECT(\"'\" & Setup!$AH$9 & \"'!\" & AF369),0) + IF(Setup!$AH$10<>\"\",INDIRECT(\"'\" & Setup!$AH$10 & \"'!\" & AF369),0) + IF(Setup!$AH$11<>\"\",INDIRECT(\"'\" & Setup!$AH$11 & \"'!\" & AF369),0) + IF(Setup!$AH$12<>\"\",INDIRECT(\"'\" & Setup!$AH$12 & \"'!\" & AF369),0)","v":0},{"$f":"IF(Setup!$AI$7<>\"\",INDIRECT(\"'\" & Setup!$AI$7 & \"'!\" & AF369),0) + IF(Setup!$AI$8<>\"\",INDIRECT(\"'\" & Setup!$AI$8 & \"'!\" & AF369),0) + IF(Setup!$AI$9<>\"\",INDIRECT(\"'\" & Setup!$AI$9 & \"'!\" & AF369),0) + IF(Setup!$AI$10<>\"\",INDIRECT(\"'\" & Setup!$AI$10 & \"'!\" & AF369),0) + IF(Setup!$AI$11<>\"\",INDIRECT(\"'\" & Setup!$AI$11 & \"'!\" & AF369),0) + IF(Setup!$AI$12<>\"\",INDIRECT(\"'\" & Setup!$AI$12 & \"'!\" & AF369),0)","v":0},{"$f":"IF(Setup!$AJ$7<>\"\",INDIRECT(\"'\" & Setup!$AJ$7 & \"'!\" & AF369),0) + IF(Setup!$AJ$8<>\"\",INDIRECT(\"'\" & Setup!$AJ$8 & \"'!\" & AF369),0) + IF(Setup!$AJ$9<>\"\",INDIRECT(\"'\" & Setup!$AJ$9 & \"'!\" & AF369),0) + IF(Setup!$AJ$10<>\"\",INDIRECT(\"'\" & Setup!$AJ$10 & \"'!\" & AF369),0) + IF(Setup!$AJ$11<>\"\",INDIRECT(\"'\" & Setup!$AJ$11 & \"'!\" & AF369),0) + IF(Setup!$AJ$12<>\"\",INDIRECT(\"'\" & Setup!$AJ$12 & \"'!\" & AF369),0)","v":0},null,"",{"$nulls":30},0,{"$f":"IF(Setup!$AH$7=\"\",0,INDIRECT(\"'\" & Setup!$AH$7 & \"'!\" & AF369))","v":0},{"$f":"IF(Setup!$AI$7=\"\",0,INDIRECT(\"'\" & Setup!$AI$7 & \"'!\" & AF369))","v":0},{"$f":"IF(Setup!$AJ$7=\"\",0,INDIRECT(\"'\" & Setup!$AJ$7 & \"'!\" & AF369))","v":0}]
[{"$f":"Planning!A142","v":"I134"},{"$f":"Planning!B142","v":0},{"$f":"Planning!C142","v":0},{"$f":"Planning!D142","v":0},{"$f":"Planning!E142","v":0},{"$f":"Planning!G142","v":0},0,{"v":0,"d":"0.00"},{"v":0,"d":"0.00"},"","",{"$f":"IF(Setup!$AG$7<>\"\",INDIRECT(\"'\" & Setup!$AG$7 & \"'!\" & AD370),0) + IF(Setup!$AG$8<>\"\",INDIRECT(\"'\" & Setup!$AG$8 & \"'!\" & AD370),0) + IF(Setup!$AG$9<>\"\",INDIRECT(\"'\" & Setup!$AG$9 & \"'!\" & AD370),0) + IF(Setup!$AG$10<>\"\",INDIRECT(\"'\" & Setup!$AG$10 & \"'!\" & AD370),0) + IF(Setup!$AG$11<>\"\",INDIRECT(\"'\" & Setup!$AG$11 & \"'!\" & AD370),0) + IF(Setup!$AG$12<>\"\",INDIRECT(\"'\" & Setup!$AG$12 & \"'!\" & AD370),0)","v":{"v":0,"d":"0.00"}},{"$f":"IF(Setup!$AG$7<>\"\",INDIRECT(\"'\" & Setup!$AG$7 & \"'!\" & AE370),0) + IF(Setup!$AG$8<>\"\",INDIRECT(\"'\" & Setup!$AG$8 & \"'!\" & AE370),0) + IF(Setup!$AG$9<>\"\",INDIRECT(\"'\" & Setup!$AG$9 & \"'!\" & AE370),0) + IF(Setup!$AG$10<>\"\",INDIRECT(\"'\" & Setup!$AG$10 & \"'!\" & AE370),0) + IF(Setup!$AG$11<>\"\",INDIRECT(\"'\" & Setup!$AG$11 & \"'!\" & AE370),0) + IF(Setup!$AG$12<>\"\",INDIRECT(\"'\" & Setup!$AG$12 & \"'!\" & AE370),0)","v":{"v":0,"d":"0.00"}},"","",{"$f":"IF(Setup!$AH$7<>\"\",INDIRECT(\"'\" & Setup!$AH$7 & \"'!\" & AD370),0) + IF(Setup!$AH$8<>\"\",INDIRECT(\"'\" & Setup!$AH$8 & \"'!\" & AD370),0) + IF(Setup!$AH$9<>\"\",INDIRECT(\"'\" & Setup!$AH$9 & \"'!\" & AD370),0) + IF(Setup!$AH$10<>\"\",INDIRECT(\"'\" & Setup!$AH$10 & \"'!\" & AD370),0) + IF(Setup!$AH$11<>\"\",INDIRECT(\"'\" & Setup!$AH$11 & \"'!\" & AD370),0) + IF(Setup!$AH$12<>\"\",INDIRECT(\"'\" & Setup!$AH$12 & \"'!\" & AD370),0)","v":{"v":0,"d":"0.00"}},{"$f":"IF(Setup!$AH$7<>\"\",INDIRECT(\"'\" & Setup!$AH$7 & \"'!\" & AE370),0) + IF(Setup!$AH$8<>\"\",INDIRECT(\"'\" & Setup!$AH$8 & \"'!\" & AE370),0) + IF(Setup!$AH$9<>\"\",INDIRECT(\"'\" & Setup!$AH$9 & \"'!\" & AE370),0) + IF(Setup!$AH$10<>\"\",INDIRECT(\"'\" & Setup!$AH$10 & \"'!\" & AE370),0) + IF(Setup!$AH$11<>\"\",INDIRECT(\"'\" & Setup!$AH$11 & \"'!\" & AE370),0) + IF(Setup!$AH$12<>\"\",INDIRECT(\"'\" & Setup!$AH$12 & \"'!\" & AE370),0)","v":{"v":0,"d":"0.00"}},"","",{"$f":"IF(Setup!$AI$7<>\"\",INDIRECT(\"'\" & Setup!$AI$7 & \"'!\" & AD370),0) + IF(Setup!$AI$8<>\"\",INDIRECT(\"'\" & Setup!$AI$8 & \"'!\" & AD370),0) + IF(Setup!$AI$9<>\"\",INDIRECT(\"'\" & Setup!$AI$9 & \"'!\" & AD370),0) + IF(Setup!$AI$10<>\"\",INDIRECT(\"'\" & Setup!$AI$10 & \"'!\" & AD370),0) + IF(Setup!$AI$11<>\"\",INDIRECT(\"'\" & Setup!$AI$11 & \"'!\" & AD370),0) + IF(Setup!$AI$12<>\"\",INDIRECT(\"'\" & Setup!$AI$12 & \"'!\" & AD370),0)","v":{"v":0,"d":"0.00"}},{"$f":"IF(Setup!$AI$7<>\"\",INDIRECT(\"'\" & Setup!$AI$7 & \"'!\" & AE370),0) + IF(Setup!$AI$8<>\"\",INDIRECT(\"'\" & Setup!$AI$8 & \"'!\" & AE370),0) + IF(Setup!$AI$9<>\"\",INDIRECT(\"'\" & Setup!$AI$9 & \"'!\" & AE370),0) + IF(Setup!$AI$10<>\"\",INDIRECT(\"'\" & Setup!$AI$10 & \"'!\" & AE370),0) + IF(Setup!$AI$11<>\"\",INDIRECT(\"'\" & Setup!$AI$11 & \"'!\" & AE370),0) + IF(Setup!$AI$12<>\"\",INDIRECT(\"'\" & Setup!$AI$12 & \"'!\" & AE370),0)","v":{"v":0,"d":"0.00"}},"","",{"$f":"IF(Setup!$AJ$7<>\"\",INDIRECT(\"'\" & Setup!$AJ$7 & \"'!\" & AD370),0) + IF(Setup!$AJ$8<>\"\",INDIRECT(\"'\" & Setup!$AJ$8 & \"'!\" & AD370),0) + IF(Setup!$AJ$9<>\"\",INDIRECT(\"'\" & Setup!$AJ$9 & \"'!\" & AD370),0) + IF(Setup!$AJ$10<>\"\",INDIRECT(\"'\" & Setup!$AJ$10 & \"'!\" & AD370),0) + IF(Setup!$AJ$11<>\"\",INDIRECT(\"'\" & Setup!$AJ$11 & \"'!\" & AD370),0) + IF(Setup!$AJ$12<>\"\",INDIRECT(\"'\" & Setup!$AJ$12 & \"'!\" & AD370),0)","v":0},{"$f":"IF(Setup!$AJ$7<>\"\",INDIRECT(\"'\" & Setup!$AJ$7 & \"'!\" & AE370),0) + IF(Setup!$AJ$8<>\"\",INDIRECT(\"'\" & Setup!$AJ$8 & \"'!\" & AE370),0) + IF(Setup!$AJ$9<>\"\",INDIRECT(\"'\" & Setup!$AJ$9 & \"'!\" & AE370),0) + IF(Setup!$AJ$10<>\"\",INDIRECT(\"'\" & Setup!$AJ$10 & \"'!\" & AE370),0) + IF(Setup!$AJ$11<>\"\",INDIRECT(\"'\" & Setup!$AJ$11 & \"'!\" & AE370),0) + IF(Setup!$AJ$12<>\"\",INDIRECT(\"'\" & Setup!$AJ$12 & \"'!\" & AE370),0)","v":0},"","",{"$f":"Planning!H142","v":0},"00","M158","O158","N158",null,null,{"$f":"IF(Setup!$AG$7<>\"\",INDIRECT(\"'\" & Setup!$AG$7 & \"'!\" & AF370),0) + IF(Setup!$AG$8<>\"\",INDIRECT(\"'\" & Setup!$AG$8 & \"'!\" & AF370),0) + IF(Setup!$AG$9<>\"\",INDIRECT(\"'\" & Setup!$AG$9 & \"'!\" & AF370),0) + IF(Setup!$AG$10<>\"\",INDIRECT(\"'\" & Setup!$AG$10 & \"'!\" & AF370),0) + IF(Setup!$AG$11<>\"\",INDIRECT(\"'\" & Setup!$AG$11 & \"'!\" & AF370),0) + IF(Setup!$AG$12<>\"\",INDIRECT(\"'\" & Setup!$AG$12 & \"'!\" & AF370),0)","v":0},{"$f":"IF(Setup!$AH$7<>\"\",INDIRECT(\"'\" & Setup!$AH$7 & \"'!\" & AF370),0) + IF(Setup!$AH$8<>\"\",INDIRECT(\"'\" & Setup!$AH$8 & \"'!\" & AF370),0) + IF(Setup!$AH$9<>\"\",INDIRECT(\"'\" & Setup!$AH$9 & \"'!\" & AF370),0) + IF(Setup!$AH$10<>\"\",INDIRECT(\"'\" & Setup!$AH$10 & \"'!\" & AF370),0) + IF(Setup!$AH$11<>\"\",INDIRECT(\"'\" & Setup!$AH$11 & \"'!\" & AF370),0) + IF(Setup!$AH$12<>\"\",INDIRECT(\"'\" & Setup!$AH$12 & \"'!\" & AF370),0)","v":0},{"$f":"IF(Setup!$AI$7<>\"\",INDIRECT(\"'\" & Setup!$AI$7 & \"'!\" & AF370),0) + IF(Setup!$AI$8<>\"\",INDIRECT(\"'\" & Setup!$AI$8 & \"'!\" & AF370),0) + IF(Setup!$AI$9<>\"\",INDIRECT(\"'\" & Setup!$AI$9 & \"'!\" & AF370),0) + IF(Setup!$AI$10<>\"\",INDIRECT(\"'\" & Setup!$AI$10 & \"'!\" & AF370),0) + IF(Setup!$AI$11<>\"\",INDIRECT(\"'\" & Setup!$AI$11 & \"'!\" & AF370),0) + IF(Setup!$AI$12<>\"\",INDIRECT(\"'\" & Setup!$AI$12 & \"'!\" & AF370),0)","v":0},{"$f":"IF(Setup!$AJ$7<>\"\",INDIRECT(\"'\" & Setup!$AJ$7 & \"'!\" & AF370),0) + IF(Setup!$AJ$8<>\"\",INDIRECT(\"'\" & Setup!$AJ$8 & \"'!\" & AF370),0) + IF(Setup!$AJ$9<>\"\",INDIRECT(\"'\" & Setup!$AJ$9 & \"'!\" & AF370),0) + IF(Setup!$AJ$10<>\"\",INDIRECT(\"'\" & Setup!$AJ$10 & \"'!\" & AF370),0) + IF(Setup!$AJ$11<>\"\",INDIRECT(\"'\" & Setup!$AJ$11 & \"'!\" & AF370),0) + IF(Setup!$AJ$12<>\"\",INDIRECT(\"'\" & Setup!$AJ$12 & \"'!\" & AF370),0)","v":0},null,"",{"$nulls":30},0,{"$f":"IF(Setup!$AH$7=\"\",0,INDIRECT(\"'\" & Setup!$AH$7 & \"'!\" & AF370))","v":0},{"$f":"IF(Setup!$AI$7=\"\",0,INDIRECT(\"'\" & Setup!$AI$7 & \"'!\" & AF370))","v":0},{"$f":"IF(Setup!$AJ$7=\"\",0,INDIRECT(\"'\" & Setup!$AJ$7 & \"'!\" & AF370))","v":0}]
[{"$f":"Planning!A143","v":"I135"},{"$f":"Planning!B143","v":0},{"$f":"Planning!C143","v":0},{"$f":"Planning!D143","v":0},{"$f":"Planning!E143","v":0},{"$f":"Planning!G143","v":0},0,{"v":0,"d":"0.00"},{"v":0,"d":"0.00"},"","",{"$f":"IF(Setup!$AG$7<>\"\",INDIRECT(\"'\" & Setup!$AG$7 & \"'!\" & AD371),0) + IF(Setup!$AG$8<>\"\",INDIRECT(\"'\" & Setup!$AG$8 & \"'!\" & AD371),0) + IF(Setup!$AG$9<>\"\",INDIRECT(\"'\" & Setup!$AG$9 & \"'!\" & AD371),0) + IF(Setup!$AG$10<>\"\",INDIRECT(\"'\" & Setup!$AG$10 & \"'!\" & AD371),0) + IF(Setup!$AG$11<>\"\",INDIRECT(\"'\" & Setup!$AG$11 & \"'!\" & AD371),0) + IF(Setup!$AG$12<>\"\",INDIRECT(\"'\" & Setup!$AG$12 & \"'!\" & AD371),0)","v":{"v":0,"d":"0.00"}},{"$f":"IF(Setup!$AG$7<>\"\",INDIRECT(\"'\" & Setup!$AG$7 & \"'!\" & AE371),0) + IF(Setup!$AG$8<>\"\",INDIRECT(\"'\" & Setup!$AG$8 & \"'!\" & AE371),0) + IF(Setup!$AG$9<>\"\",INDIRECT(\"'\" & Setup!$AG$9 & \"'!\" & AE371),0) + IF(Setup!$AG$10<>\"\",INDIRECT(\"'\" & Setup!$AG$10 & \"'!\" & AE371),0) + IF(Setup!$AG$11<>\"\",INDIRECT(\"'\" & Setup!$AG$11 & \"'!\" & AE371),0) + IF(Setup!$AG$12<>\"\",INDIRECT(\"'\" & Setup!$AG$12 & \"'!\" & AE371),0)","v":{"v":0,"d":"0.00"}},"","",{"$f":"IF(Setup!$AH$7<>\"\",INDIRECT(\"'\" & Setup!$AH$7 & \"'!\" & AD371),0) + IF(Setup!$AH$8<>\"\",INDIRECT(\"'\" & Setup!$AH$8 & \"'!\" & AD371),0) + IF(Setup!$AH$9<>\"\",INDIRECT(\"'\" & Setup!$AH$9 & \"'!\" & AD371),0) + IF(Setup!$AH$10<>\"\",INDIRECT(\"'\" & Setup!$AH$10 & \"'!\" & AD371),0) + IF(Setup!$AH$11<>\"\",INDIRECT(\"'\" & Setup!$AH$11 & \"'!\" & AD371),0) + IF(Setup!$AH$12<>\"\",INDIRECT(\"'\" & Setup!$AH$12 & \"'!\" & AD371),0)","v":{"v":0,"d":"0.00"}},{"$f":"IF(Setup!$AH$7<>\"\",INDIRECT(\"'\" & Setup!$AH$7 & \"'!\" & AE371),0) + IF(Setup!$AH$8<>\"\",INDIRECT(\"'\" & Setup!$AH$8 & \"'!\" & AE371),0) + IF(Setup!$AH$9<>\"\",INDIRECT(\"'\" & Setup!$AH$9 & \"'!\" & AE371),0) + IF(Setup!$AH$10<>\"\",INDIRECT(\"'\" & Setup!$AH$10 & \"'!\" & AE371),0) + IF(Setup!$AH$11<>\"\",INDIRECT(\"'\" & Setup!$AH$11 & \"'!\" & AE371),0) + IF(Setup!$AH$12<>\"\",INDIRECT(\"'\" & Setup!$AH$12 & \"'!\" & AE371),0)","v":{"v":0,"d":"0.00"}},"","",{"$f":"IF(Setup!$AI$7<>\"\",INDIRECT(\"'\" & Setup!$AI$7 & \"'!\" & AD371),0) + IF(Setup!$AI$8<>\"\",INDIRECT(\"'\" & Setup!$AI$8 & \"'!\" & AD371),0) + IF(Setup!$AI$9<>\"\",INDIRECT(\"'\" & Setup!$AI$9 & \"'!\" & AD371),0) + IF(Setup!$AI$10<>\"\",INDIRECT(\"'\" & Setup!$AI$10 & \"'!\" & AD371),0) + IF(Setup!$AI$11<>\"\",INDIRECT(\"'\" & Setup!$AI$11 & \"'!\" & AD371),0) + IF(Setup!$AI$12<>\"\",INDIRECT(\"'\" & Setup!$AI$12 & \"'!\" & AD371),0)","v":{"v":0,"d":"0.00"}},{"$f":"IF(Setup!$AI$7<>\"\",INDIRECT(\"'\" & Setup!$AI$7 & \"'!\" & AE371),0) + IF(Setup!$AI$8<>\"\",INDIRECT(\"'\" & Setup!$AI$8 & \"'!\" & AE371),0) + IF(Setup!$AI$9<>\"\",INDIRECT(\"'\" & Setup!$AI$9 & \"'!\" & AE371),0) + IF(Setup!$AI$10<>\"\",INDIRECT(\"'\" & Setup!$AI$10 & \"'!\" & AE371),0) + IF(Setup!$AI$11<>\"\",INDIRECT(\"'\" & Setup!$AI$11 & \"'!\" & AE371),0) + IF(Setup!$AI$12<>\"\",INDIRECT(\"'\" & Setup!$AI$12 & \"'!\" & AE371),0)","v":{"v":0,"d":"0.00"}},"","",{"$f":"IF(Setup!$AJ$7<>\"\",INDIRECT(\"'\" & Setup!$AJ$7 & \"'!\" & AD371),0) + IF(Setup!$AJ$8<>\"\",INDIRECT(\"'\" & Setup!$AJ$8 & \"'!\" & AD371),0) + IF(Setup!$AJ$9<>\"\",INDIRECT(\"'\" & Setup!$AJ$9 & \"'!\" & AD371),0) + IF(Setup!$AJ$10<>\"\",INDIRECT(\"'\" & Setup!$AJ$10 & \"'!\" & AD371),0) + IF(Setup!$AJ$11<>\"\",INDIRECT(\"'\" & Setup!$AJ$11 & \"'!\" & AD371),0) + IF(Setup!$AJ$12<>\"\",INDIRECT(\"'\" & Setup!$AJ$12 & \"'!\" & AD371),0)","v":0},{"$f":"IF(Setup!$AJ$7<>\"\",INDIRECT(\"'\" & Setup!$AJ$7 & \"'!\" & AE371),0) + IF(Setup!$AJ$8<>\"\",INDIRECT(\"'\" & Setup!$AJ$8 & \"'!\" & AE371),0) + IF(Setup!$AJ$9<>\"\",INDIRECT(\"'\" & Setup!$AJ$9 & \"'!\" & AE371),0) + IF(Setup!$AJ$10<>\"\",INDIRECT(\"'\" & Setup!$AJ$10 & \"'!\" & AE371),0) + IF(Setup!$AJ$11<>\"\",INDIRECT(\"'\" & Setup!$AJ$11 & \"'!\" & AE371),0) + IF(Setup!$AJ$12<>\"\",INDIRECT(\"'\" & Setup!$AJ$12 & \"'!\" & AE371),0)","v":0},"","",{"$f":"Planning!H143","v":0},"00","M159","O159","N159",null,null,{"$f":"IF(Setup!$AG$7<>\"\",INDIRECT(\"'\" & Setup!$AG$7 & \"'!\" & AF371),0) + IF(Setup!$AG$8<>\"\",INDIRECT(\"'\" & Setup!$AG$8 & \"'!\" & AF371),0) + IF(Setup!$AG$9<>\"\",INDIRECT(\"'\" & Setup!$AG$9 & \"'!\" & AF371),0) + IF(Setup!$AG$10<>\"\",INDIRECT(\"'\" & Setup!$AG$10 & \"'!\" & AF371),0) + IF(Setup!$AG$11<>\"\",INDIRECT(\"'\" & Setup!$AG$11 & \"'!\" & AF371),0) + IF(Setup!$AG$12<>\"\",INDIRECT(\"'\" & Setup!$AG$12 & \"'!\" & AF371),0)","v":0},{"$f":"IF(Setup!$AH$7<>\"\",INDIRECT(\"'\" & Setup!$AH$7 & \"'!\" & AF371),0) + IF(Setup!$AH$8<>\"\",INDIRECT(\"'\" & Setup!$AH$8 & \"'!\" & AF371),0) + IF(Setup!$AH$9<>\"\",INDIRECT(\"'\" & Setup!$AH$9 & \"'!\" & AF371),0) + IF(Setup!$AH$10<>\"\",INDIRECT(\"'\" & Setup!$AH$10 & \"'!\" & AF371),0) + IF(Setup!$AH$11<>\"\",INDIRECT(\"'\" & Setup!$AH$11 & \"'!\" & AF371),0) + IF(Setup!$AH$12<>\"\",INDIRECT(\"'\" & Setup!$AH$12 & \"'!\" & AF371),0)","v":0},{"$f":"IF(Setup!$AI$7<>\"\",INDIRECT(\"'\" & Setup!$AI$7 & \"'!\" & AF371),0) + IF(Setup!$AI$8<>\"\",INDIRECT(\"'\" & Setup!$AI$8 & \"'!\" & AF371),0) + IF(Setup!$AI$9<>\"\",INDIRECT(\"'\" & Setup!$AI$9 & \"'!\" & AF371),0) + IF(Setup!$AI$10<>\"\",INDIRECT(\"'\" & Setup!$AI$10 & \"'!\" & AF371),0) + IF(Setup!$AI$11<>\"\",INDIRECT(\"'\" & Setup!$AI$11 & \"'!\" & AF371),0) + IF(Setup!$AI$12<>\"\",INDIRECT(\"'\" & Setup!$AI$12 & \"'!\" & AF371),0)","v":0},{"$f":"IF(Setup!$AJ$7<>\"\",INDIRECT(\"'\" & Setup!$AJ$7 & \"'!\" & AF371),0) + IF(Setup!$AJ$8<>\"\",INDIRECT(\"'\" & Setup!$AJ$8 & \"'!\" & AF371),0) + IF(Setup!$AJ$9<>\"\",INDIRECT(\"'\" & Setup!$AJ$9 & \"'!\" & AF371),0) + IF(Setup!$AJ$10<>\"\",INDIRECT(\"'\" & Setup!$AJ$10 & \"'!\" & AF371),0) + IF(Setup!$AJ$11<>\"\",INDIRECT(\"'\" & Setup!$AJ$11 & \"'!\" & AF371),0) + IF(Setup!$AJ$12<>\"\",INDIRECT(\"'\" & Setup!$AJ$12 & \"'!\" & AF371),0)","v":0},null,"",{"$nulls":30},0,{"$f":"IF(Setup!$AH$7=\"\",0,INDIRECT(\"'\" & Setup!$AH$7 & \"'!\" & AF371))","v":0},{"$f":"IF(Setup!$AI$7=\"\",0,INDIRECT(\"'\" & Setup!$AI$7 & \"'!\" & AF371))","v":0},{"$f":"IF(Setup!$AJ$7=\"\",0,INDIRECT(\"'\" & Setup!$AJ$7 & \"'!\" & AF371))","v":0}]
[{"$f":"Planning!A144","v":"I136"},{"$f":"Planning!B144","v":0},{"$f":"Planning!C144","v":0},{"$f":"Planning!D144","v":0},{"$f":"Planning!E144","v":0},{"$f":"Planning!G144","v":0},0,{"v":0,"d":"0.00"},{"v":0,"d":"0.00"},"","",{"$f":"IF(Setup!$AG$7<>\"\",INDIRECT(\"'\" & Setup!$AG$7 & \"'!\" & AD372),0) + IF(Setup!$AG$8<>\"\",INDIRECT(\"'\" & Setup!$AG$8 & \"'!\" & AD372),0) + IF(Setup!$AG$9<>\"\",INDIRECT(\"'\" & Setup!$AG$9 & \"'!\" & AD372),0) + IF(Setup!$AG$10<>\"\",INDIRECT(\"'\" & Setup!$AG$10 & \"'!\" & AD372),0) + IF(Setup!$AG$11<>\"\",INDIRECT(\"'\" & Setup!$AG$11 & \"'!\" & AD372),0) + IF(Setup!$AG$12<>\"\",INDIRECT(\"'\" & Setup!$AG$12 & \"'!\" & AD372),0)","v":{"v":0,"d":"0.00"}},{"$f":"IF(Setup!$AG$7<>\"\",INDIRECT(\"'\" & Setup!$AG$7 & \"'!\" & AE372),0) + IF(Setup!$AG$8<>\"\",INDIRECT(\"'\" & Setup!$AG$8 & \"'!\" & AE372),0) + IF(Setup!$AG$9<>\"\",INDIRECT(\"'\" & Setup!$AG$9 & \"'!\" & AE372),0) + IF(Setup!$AG$10<>\"\",INDIRECT(\"'\" & Setup!$AG$10 & \"'!\" & AE372),0) + IF(Setup!$AG$11<>\"\",INDIRECT(\"'\" & Setup!$AG$11 & \"'!\" & AE372),0) + IF(Setup!$AG$12<>\"\",INDIRECT(\"'\" & Setup!$AG$12 & \"'!\" & AE372),0)","v":{"v":0,"d":"0.00"}},"","",{"$f":"IF(Setup!$AH$7<>\"\",INDIRECT(\"'\" & Setup!$AH$7 & \"'!\" & AD372),0) + IF(Setup!$AH$8<>\"\",INDIRECT(\"'\" & Setup!$AH$8 & \"'!\" & AD372),0) + IF(Setup!$AH$9<>\"\",INDIRECT(\"'\" & Setup!$AH$9 & \"'!\" & AD372),0) + IF(Setup!$AH$10<>\"\",INDIRECT(\"'\" & Setup!$AH$10 & \"'!\" & AD372),0) + IF(Setup!$AH$11<>\"\",INDIRECT(\"'\" & Setup!$AH$11 & \"'!\" & AD372),0) + IF(Setup!$AH$12<>\"\",INDIRECT(\"'\" & Setup!$AH$12 & \"'!\" & AD372),0)","v":{"v":0,"d":"0.00"}},{"$f":"IF(Setup!$AH$7<>\"\",INDIRECT(\"'\" & Setup!$AH$7 & \"'!\" & AE372),0) + IF(Setup!$AH$8<>\"\",INDIRECT(\"'\" & Setup!$AH$8 & \"'!\" & AE372),0) + IF(Setup!$AH$9<>\"\",INDIRECT(\"'\" & Setup!$AH$9 & \"'!\" & AE372),0) + IF(Setup!$AH$10<>\"\",INDIRECT(\"'\" & Setup!$AH$10 & \"'!\" & AE372),0) + IF(Setup!$AH$11<>\"\",INDIRECT(\"'\" & Setup!$AH$11 & \"'!\" & AE372),0) + IF(Setup!$AH$12<>\"\",INDIRECT(\"'\" & Setup!$AH$12 & \"'!\" & AE372),0)","v":{"v":0,"d":"0.00"}},"","",{"$f":"IF(Setup!$AI$7<>\"\",INDIRECT(\"'\" & Setup!$AI$7 & \"'!\" & AD372),0) + IF(Setup!$AI$8<>\"\",INDIRECT(\"'\" & Setup!$AI$8 & \"'!\" & AD372),0) + IF(Setup!$AI$9<>\"\",INDIRECT(\"'\" & Setup!$AI$9 & \"'!\" & AD372),0) + IF(Setup!$AI$10<>\"\",INDIRECT(\"'\" & Setup!$AI$10 & \"'!\" & AD372),0) + IF(Setup!$AI$11<>\"\",INDIRECT(\"'\" & Setup!$AI$11 & \"'!\" & AD372),0) + IF(Setup!$AI$12<>\"\",INDIRECT(\"'\" & Setup!$AI$12 & \"'!\" & AD372),0)","v":{"v":0,"d":"0.00"}},{"$f":"IF(Setup!$AI$7<>\"\",INDIRECT(\"'\" & Setup!$AI$7 & \"'!\" & AE372),0) + IF(Setup!$AI$8<>\"\",INDIRECT(\"'\" & Setup!$AI$8 & \"'!\" & AE372),0) + IF(Setup!$AI$9<>\"\",INDIRECT(\"'\" & Setup!$AI$9 & \"'!\" & AE372),0) + IF(Setup!$AI$10<>\"\",INDIRECT(\"'\" & Setup!$AI$10 & \"'!\" & AE372),0) + IF(Setup!$AI$11<>\"\",INDIRECT(\"'\" & Setup!$AI$11 & \"'!\" & AE372),0) + IF(Setup!$AI$12<>\"\",INDIRECT(\"'\" & Setup!$AI$12 & \"'!\" & AE372),0)","v":{"v":0,"d":"0.00"}},"","",{"$f":"IF(Setup!$AJ$7<>\"\",INDIRECT(\"'\" & Setup!$AJ$7 & \"'!\" & AD372),0) + IF(Setup!$AJ$8<>\"\",INDIRECT(\"'\" & Setup!$AJ$8 & \"'!\" & AD372),0) + IF(Setup!$AJ$9<>\"\",INDIRECT(\"'\" & Setup!$AJ$9 & \"'!\" & AD372),0) + IF(Setup!$AJ$10<>\"\",INDIRECT(\"'\" & Setup!$AJ$10 & \"'!\" & AD372),0) + IF(Setup!$AJ$11<>\"\",INDIRECT(\"'\" & Setup!$AJ$11 & \"'!\" & AD372),0) + IF(Setup!$AJ$12<>\"\",INDIRECT(\"'\" & Setup!$AJ$12 & \"'!\" & AD372),0)","v":0},{"$f":"IF(Setup!$AJ$7<>\"\",INDIRECT(\"'\" & Setup!$AJ$7 & \"'!\" & AE372),0) + IF(Setup!$AJ$8<>\"\",INDIRECT(\"'\" & Setup!$AJ$8 & \"'!\" & AE372),0) + IF(Setup!$AJ$9<>\"\",INDIRECT(\"'\" & Setup!$AJ$9 & \"'!\" & AE372),0) + IF(Setup!$AJ$10<>\"\",INDIRECT(\"'\" & Setup!$AJ$10 & \"'!\" & AE372),0) + IF(Setup!$AJ$11<>\"\",INDIRECT(\"'\" & Setup!$AJ$11 & \"'!\" & AE372),0) + IF(Setup!$AJ$12<>\"\",INDIRECT(\"'\" & Setup!$AJ$12 & \"'!\" & AE372),0)","v":0},"","",{"$f":"Planning!H144","v":0},"00","M160","O160","N160",null,null,{"$f":"IF(Setup!$AG$7<>\"\",INDIRECT(\"'\" & Setup!$AG$7 & \"'!\" & AF372),0) + IF(Setup!$AG$8<>\"\",INDIRECT(\"'\" & Setup!$AG$8 & \"'!\" & AF372),0) + IF(Setup!$AG$9<>\"\",INDIRECT(\"'\" & Setup!$AG$9 & \"'!\" & AF372),0) + IF(Setup!$AG$10<>\"\",INDIRECT(\"'\" & Setup!$AG$10 & \"'!\" & AF372),0) + IF(Setup!$AG$11<>\"\",INDIRECT(\"'\" & Setup!$AG$11 & \"'!\" & AF372),0) + IF(Setup!$AG$12<>\"\",INDIRECT(\"'\" & Setup!$AG$12 & \"'!\" & AF372),0)","v":0},{"$f":"IF(Setup!$AH$7<>\"\",INDIRECT(\"'\" & Setup!$AH$7 & \"'!\" & AF372),0) + IF(Setup!$AH$8<>\"\",INDIRECT(\"'\" & Setup!$AH$8 & \"'!\" & AF372),0) + IF(Setup!$AH$9<>\"\",INDIRECT(\"'\" & Setup!$AH$9 & \"'!\" & AF372),0) + IF(Setup!$AH$10<>\"\",INDIRECT(\"'\" & Setup!$AH$10 & \"'!\" & AF372),0) + IF(Setup!$AH$11<>\"\",INDIRECT(\"'\" & Setup!$AH$11 & \"'!\" & AF372),0) + IF(Setup!$AH$12<>\"\",INDIRECT(\"'\" & Setup!$AH$12 & \"'!\" & AF372),0)","v":0},{"$f":"IF(Setup!$AI$7<>\"\",INDIRECT(\"'\" & Setup!$AI$7 & \"'!\" & AF372),0) + IF(Setup!$AI$8<>\"\",INDIRECT(\"'\" & Setup!$AI$8 & \"'!\" & AF372),0) + IF(Setup!$AI$9<>\"\",INDIRECT(\"'\" & Setup!$AI$9 & \"'!\" & AF372),0) + IF(Setup!$AI$10<>\"\",INDIRECT(\"'\" & Setup!$AI$10 & \"'!\" & AF372),0) + IF(Setup!$AI$11<>\"\",INDIRECT(\"'\" & Setup!$AI$11 & \"'!\" & AF372),0) + IF(Setup!$AI$12<>\"\",INDIRECT(\"'\" & Setup!$AI$12 & \"'!\" & AF372),0)","v":0},{"$f":"IF(Setup!$AJ$7<>\"\",INDIRECT(\"'\" & Setup!$AJ$7 & \"'!\" & AF372),0) + IF(Setup!$AJ$8<>\"\",INDIRECT(\"'\" & Setup!$AJ$8 & \"'!\" & AF372),0) + IF(Setup!$AJ$9<>\"\",INDIRECT(\"'\" & Setup!$AJ$9 & \"'!\" & AF372),0) + IF(Setup!$AJ$10<>\"\",INDIRECT(\"'\" & Setup!$AJ$10 & \"'!\" & AF372),0) + IF(Setup!$AJ$11<>\"\",INDIRECT(\"'\" & Setup!$AJ$11 & \"'!\" & AF372),0) + IF(Setup!$AJ$12<>\"\",INDIRECT(\"'\" & Setup!$AJ$12 & \"'!\" & AF372),0)","v":0},null,"",{"$nulls":30},0,{"$f":"IF(Setup!$AH$7=\"\",0,INDIRECT(\"'\" & Setup!$AH$7 & \"'!\" & AF372))","v":0},{"$f":"IF(Setup!$AI$7=\"\",0,INDIRECT(\"'\" & Setup!$AI$7 & \"'!\" & AF372))","v":0},{"$f":"IF(Setup!$AJ$7=\"\",0,INDIRECT(\"'\" & Setup!$AJ$7 & \"'!\" & AF372))","v":0}]
[{"$f":"Planning!A145","v":"I137"},{"$f":"Planning!B145","v":0},{"$f":"Planning!C145","v":0},{"$f":"Planning!D145","v":0},{"$f":"Planning!E145","v":0},{"$f":"Planning!G145","v":0},0,{"v":0,"d":"0.00"},{"v":0,"d":"0.00"},"","",{"$f":"IF(Setup!$AG$7<>\"\",INDIRECT(\"'\" & Setup!$AG$7 & \"'!\" & AD373),0) + IF(Setup!$AG$8<>\"\",INDIRECT(\"'\" & Setup!$AG$8 & \"'!\" & AD373),0) + IF(Setup!$AG$9<>\"\",INDIRECT(\"'\" & Setup!$AG$9 & \"'!\" & AD373),0) + IF(Setup!$AG$10<>\"\",INDIRECT(\"'\" & Setup!$AG$10 & \"'!\" & AD373),0) + IF(Setup!$AG$11<>\"\",INDIRECT(\"'\" & Setup!$AG$11 & \"'!\" & AD373),0) + IF(Setup!$AG$12<>\"\",INDIRECT(\"'\" & Setup!$AG$12 & \"'!\" & AD373),0)","v":{"v":0,"d":"0.00"}},{"$f":"IF(Setup!$AG$7<>\"\",INDIRECT(\"'\" & Setup!$AG$7 & \"'!\" & AE373),0) + IF(Setup!$AG$8<>\"\",INDIRECT(\"'\" & Setup!$AG$8 & \"'!\" & AE373),0) + IF(Setup!$AG$9<>\"\",INDIRECT(\"'\" & Setup!$AG$9 & \"'!\" & AE373),0) + IF(Setup!$AG$10<>\"\",INDIRECT(\"'\" & Setup!$AG$10 & \"'!\" & AE373),0) + IF(Setup!$AG$11<>\"\",INDIRECT(\"'\" & Setup!$AG$11 & \"'!\" & AE373),0) + IF(Setup!$AG$12<>\"\",INDIRECT(\"'\" & Setup!$AG$12 & \"'!\" & AE373),0)","v":{"v":0,"d":"0.00"}},"","",{"$f":"IF(Setup!$AH$7<>\"\",INDIRECT(\"'\" & Setup!$AH$7 & \"'!\" & AD373),0) + IF(Setup!$AH$8<>\"\",INDIRECT(\"'\" & Setup!$AH$8 & \"'!\" & AD373),0) + IF(Setup!$AH$9<>\"\",INDIRECT(\"'\" & Setup!$AH$9 & \"'!\" & AD373),0) + IF(Setup!$AH$10<>\"\",INDIRECT(\"'\" & Setup!$AH$10 & \"'!\" & AD373),0) + IF(Setup!$AH$11<>\"\",INDIRECT(\"'\" & Setup!$AH$11 & \"'!\" & AD373),0) + IF(Setup!$AH$12<>\"\",INDIRECT(\"'\" & Setup!$AH$12 & \"'!\" & AD373),0)","v":{"v":0,"d":"0.00"}},{"$f":"IF(Setup!$AH$7<>\"\",INDIRECT(\"'\" & Setup!$AH$7 & \"'!\" & AE373),0) + IF(Setup!$AH$8<>\"\",INDIRECT(\"'\" & Setup!$AH$8 & \"'!\" & AE373),0) + IF(Setup!$AH$9<>\"\",INDIRECT(\"'\" & Setup!$AH$9 & \"'!\" & AE373),0) + IF(Setup!$AH$10<>\"\",INDIRECT(\"'\" & Setup!$AH$10 & \"'!\" & AE373),0) + IF(Setup!$AH$11<>\"\",INDIRECT(\"'\" & Setup!$AH$11 & \"'!\" & AE373),0) + IF(Setup!$AH$12<>\"\",INDIRECT(\"'\" & Setup!$AH$12 & \"'!\" & AE373),0)","v":{"v":0,"d":"0.00"}},"","",{"$f":"IF(Setup!$AI$7<>\"\",INDIRECT(\"'\" & Setup!$AI$7 & \"'!\" & AD373),0) + IF(Setup!$AI$8<>\"\",INDIRECT(\"'\" & Setup!$AI$8 & \"'!\" & AD373),0) + IF(Setup!$AI$9<>\"\",INDIRECT(\"'\" & Setup!$AI$9 & \"'!\" & AD373),0) + IF(Setup!$AI$10<>\"\",INDIRECT(\"'\" & Setup!$AI$10 & \"'!\" & AD373),0) + IF(Setup!$AI$11<>\"\",INDIRECT(\"'\" & Setup!$AI$11 & \"'!\" & AD373),0) + IF(Setup!$AI$12<>\"\",INDIRECT(\"'\" & Setup!$AI$12 & \"'!\" & AD373),0)","v":{"v":0,"d":"0.00"}},{"$f":"IF(Setup!$AI$7<>\"\",INDIRECT(\"'\" & Setup!$AI$7 & \"'!\" & AE373),0) + IF(Setup!$AI$8<>\"\",INDIRECT(\"'\" & Setup!$AI$8 & \"'!\" & AE373),0) + IF(Setup!$AI$9<>\"\",INDIRECT(\"'\" & Setup!$AI$9 & \"'!\" & AE373),0) + IF(Setup!$AI$10<>\"\",INDIRECT(\"'\" & Setup!$AI$10 & \"'!\" & AE373),0) + IF(Setup!$AI$11<>\"\",INDIRECT(\"'\" & Setup!$AI$11 & \"'!\" & AE373),0) + IF(Setup!$AI$12<>\"\",INDIRECT(\"'\" & Setup!$AI$12 & \"'!\" & AE373),0)","v":{"v":0,"d":"0.00"}},"","",{"$f":"IF(Setup!$AJ$7<>\"\",INDIRECT(\"'\" & Setup!$AJ$7 & \"'!\" & AD373),0) + IF(Setup!$AJ$8<>\"\",INDIRECT(\"'\" & Setup!$AJ$8 & \"'!\" & AD373),0) + IF(Setup!$AJ$9<>\"\",INDIRECT(\"'\" & Setup!$AJ$9 & \"'!\" & AD373),0) + IF(Setup!$AJ$10<>\"\",INDIRECT(\"'\" & Setup!$AJ$10 & \"'!\" & AD373),0) + IF(Setup!$AJ$11<>\"\",INDIRECT(\"'\" & Setup!$AJ$11 & \"'!\" & AD373),0) + IF(Setup!$AJ$12<>\"\",INDIRECT(\"'\" & Setup!$AJ$12 & \"'!\" & AD373),0)","v":0},{"$f":"IF(Setup!$AJ$7<>\"\",INDIRECT(\"'\" & Setup!$AJ$7 & \"'!\" & AE373),0) + IF(Setup!$AJ$8<>\"\",INDIRECT(\"'\" & Setup!$AJ$8 & \"'!\" & AE373),0) + IF(Setup!$AJ$9<>\"\",INDIRECT(\"'\" & Setup!$AJ$9 & \"'!\" & AE373),0) + IF(Setup!$AJ$10<>\"\",INDIRECT(\"'\" & Setup!$AJ$10 & \"'!\" & AE373),0) + IF(Setup!$AJ$11<>\"\",INDIRECT(\"'\" & Setup!$AJ$11 & \"'!\" & AE373),0) + IF(Setup!$AJ$12<>\"\",INDIRECT(\"'\" & Setup!$AJ$12 & \"'!\" & AE373),0)","v":0},"","",{"$f":"Planning!H145","v":0},"00","M161","O161","N161",null,null,{"$f":"IF(Setup!$AG$7<>\"\",INDIRECT(\"'\" & Setup!$AG$7 & \"'!\" & AF373),0) + IF(Setup!$AG$8<>\"\",INDIRECT(\"'\" & Setup!$AG$8 & \"'!\" & AF373),0) + IF(Setup!$AG$9<>\"\",INDIRECT(\"'\" & Setup!$AG$9 & \"'!\" & AF373),0) + IF(Setup!$AG$10<>\"\",INDIRECT(\"'\" & Setup!$AG$10 & \"'!\" & AF373),0) + IF(Setup!$AG$11<>\"\",INDIRECT(\"'\" & Setup!$AG$11 & \"'!\" & AF373),0) + IF(Setup!$AG$12<>\"\",INDIRECT(\"'\" & Setup!$AG$12 & \"'!\" & AF373),0)","v":0},{"$f":"IF(Setup!$AH$7<>\"\",INDIRECT(\"'\" & Setup!$AH$7 & \"'!\" & AF373),0) + IF(Setup!$AH$8<>\"\",INDIRECT(\"'\" & Setup!$AH$8 & \"'!\" & AF373),0) + IF(Setup!$AH$9<>\"\",INDIRECT(\"'\" & Setup!$AH$9 & \"'!\" & AF373),0) + IF(Setup!$AH$10<>\"\",INDIRECT(\"'\" & Setup!$AH$10 & \"'!\" & AF373),0) + IF(Setup!$AH$11<>\"\",INDIRECT(\"'\" & Setup!$AH$11 & \"'!\" & AF373),0) + IF(Setup!$AH$12<>\"\",INDIRECT(\"'\" & Setup!$AH$12 & \"'!\" & AF373),0)","v":0},{"$f":"IF(Setup!$AI$7<>\"\",INDIRECT(\"'\" & Setup!$AI$7 & \"'!\" & AF373),0) + IF(Setup!$AI$8<>\"\",INDIRECT(\"'\" & Setup!$AI$8 & \"'!\" & AF373),0) + IF(Setup!$AI$9<>\"\",INDIRECT(\"'\" & Setup!$AI$9 & \"'!\" & AF373),0) + IF(Setup!$AI$10<>\"\",INDIRECT(\"'\" & Setup!$AI$10 & \"'!\" & AF373),0) + IF(Setup!$AI$11<>\"\",INDIRECT(\"'\" & Setup!$AI$11 & \"'!\" & AF373),0) + IF(Setup!$AI$12<>\"\",INDIRECT(\"'\" & Setup!$AI$12 & \"'!\" & AF373),0)","v":0},{"$f":"IF(Setup!$AJ$7<>\"\",INDIRECT(\"'\" & Setup!$AJ$7 & \"'!\" & AF373),0) + IF(Setup!$AJ$8<>\"\",INDIRECT(\"'\" & Setup!$AJ$8 & \"'!\" & AF373),0) + IF(Setup!$AJ$9<>\"\",INDIRECT(\"'\" & Setup!$AJ$9 & \"'!\" & AF373),0) + IF(Setup!$AJ$10<>\"\",INDIRECT(\"'\" & Setup!$AJ$10 & \"'!\" & AF373),0) + IF(Setup!$AJ$11<>\"\",INDIRECT(\"'\" & Setup!$AJ$11 & \"'!\" & AF373),0) + IF(Setup!$AJ$12<>\"\",INDIRECT(\"'\" & Setup!$AJ$12 & \"'!\" & AF373),0)","v":0},null,"",{"$nulls":30},0,{"$f":"IF(Setup!$AH$7=\"\",0,INDIRECT(\"'\" & Setup!$AH$7 & \"'!\" & AF373))","v":0},{"$f":"IF(Setup!$AI$7=\"\",0,INDIRECT(\"'\" & Setup!$AI$7 & \"'!\" & AF373))","v":0},{"$f":"IF(Setup!$AJ$7=\"\",0,INDIRECT(\"'\" & Setup!$AJ$7 & \"'!\" & AF373))","v":0}]
[{"$f":"Planning!A146","v":"I138"},{"$f":"Planning!B146","v":0},{"$f":"Planning!C146","v":0},{"$f":"Planning!D146","v":0},{"$f":"Planning!E146","v":0},{"$f":"Planning!G146","v":0},0,{"v":0,"d":"0.00"},{"v":0,"d":"0.00"},"","",{"$f":"IF(Setup!$AG$7<>\"\",INDIRECT(\"'\" & Setup!$AG$7 & \"'!\" & AD374),0) + IF(Setup!$AG$8<>\"\",INDIRECT(\"'\" & Setup!$AG$8 & \"'!\" & AD374),0) + IF(Setup!$AG$9<>\"\",INDIRECT(\"'\" & Setup!$AG$9 & \"'!\" & AD374),0) + IF(Setup!$AG$10<>\"\",INDIRECT(\"'\" & Setup!$AG$10 & \"'!\" & AD374),0) + IF(Setup!$AG$11<>\"\",INDIRECT(\"'\" & Setup!$AG$11 & \"'!\" & AD374),0) + IF(Setup!$AG$12<>\"\",INDIRECT(\"'\" & Setup!$AG$12 & \"'!\" & AD374),0)","v":{"v":0,"d":"0.00"}},{"$f":"IF(Setup!$AG$7<>\"\",INDIRECT(\"'\" & Setup!$AG$7 & \"'!\" & AE374),0) + IF(Setup!$AG$8<>\"\",INDIRECT(\"'\" & Setup!$AG$8 & \"'!\" & AE374),0) + IF(Setup!$AG$9<>\"\",INDIRECT(\"'\" & Setup!$AG$9 & \"'!\" & AE374),0) + IF(Setup!$AG$10<>\"\",INDIRECT(\"'\" & Setup!$AG$10 & \"'!\" & AE374),0) + IF(Setup!$AG$11<>\"\",INDIRECT(\"'\" & Setup!$AG$11 & \"'!\" & AE374),0) + IF(Setup!$AG$12<>\"\",INDIRECT(\"'\" & Setup!$AG$12 & \"'!\" & AE374),0)","v":{"v":0,"d":"0.00"}},"","",{"$f":"IF(Setup!$AH$7<>\"\",INDIRECT(\"'\" & Setup!$AH$7 & \"'!\" & AD374),0) + IF(Setup!$AH$8<>\"\",INDIRECT(\"'\" & Setup!$AH$8 & \"'!\" & AD374),0) + IF(Setup!$AH$9<>\"\",INDIRECT(\"'\" & Setup!$AH$9 & \"'!\" & AD374),0) + IF(Setup!$AH$10<>\"\",INDIRECT(\"'\" & Setup!$AH$10 & \"'!\" & AD374),0) + IF(Setup!$AH$11<>\"\",INDIRECT(\"'\" & Setup!$AH$11 & \"'!\" & AD374),0) + IF(Setup!$AH$12<>\"\",INDIRECT(\"'\" & Setup!$AH$12 & \"'!\" & AD374),0)","v":{"v":0,"d":"0.00"}},{"$f":"IF(Setup!$AH$7<>\"\",INDIRECT(\"'\" & Setup!$AH$7 & \"'!\" & AE374),0) + IF(Setup!$AH$8<>\"\",INDIRECT(\"'\" & Setup!$AH$8 & \"'!\" & AE374),0) + IF(Setup!$AH$9<>\"\",INDIRECT(\"'\" & Setup!$AH$9 & \"'!\" & AE374),0) + IF(Setup!$AH$10<>\"\",INDIRECT(\"'\" & Setup!$AH$10 & \"'!\" & AE374),0) + IF(Setup!$AH$11<>\"\",INDIRECT(\"'\" & Setup!$AH$11 & \"'!\" & AE374),0) + IF(Setup!$AH$12<>\"\",INDIRECT(\"'\" & Setup!$AH$12 & \"'!\" & AE374),0)","v":{"v":0,"d":"0.00"}},"","",{"$f":"IF(Setup!$AI$7<>\"\",INDIRECT(\"'\" & Setup!$AI$7 & \"'!\" & AD374),0) + IF(Setup!$AI$8<>\"\",INDIRECT(\"'\" & Setup!$AI$8 & \"'!\" & AD374),0) + IF(Setup!$AI$9<>\"\",INDIRECT(\"'\" & Setup!$AI$9 & \"'!\" & AD374),0) + IF(Setup!$AI$10<>\"\",INDIRECT(\"'\" & Setup!$AI$10 & \"'!\" & AD374),0) + IF(Setup!$AI$11<>\"\",INDIRECT(\"'\" & Setup!$AI$11 & \"'!\" & AD374),0) + IF(Setup!$AI$12<>\"\",INDIRECT(\"'\" & Setup!$AI$12 & \"'!\" & AD374),0)","v":{"v":0,"d":"0.00"}},{"$f":"IF(Setup!$AI$7<>\"\",INDIRECT(\"'\" & Setup!$AI$7 & \"'!\" & AE374),0) + IF(Setup!$AI$8<>\"\",INDIRECT(\"'\" & Setup!$AI$8 & \"'!\" & AE374),0) + IF(Setup!$AI$9<>\"\",INDIRECT(\"'\" & Setup!$AI$9 & \"'!\" & AE374),0) + IF(Setup!$AI$10<>\"\",INDIRECT(\"'\" & Setup!$AI$10 & \"'!\" & AE374),0) + IF(Setup!$AI$11<>\"\",INDIRECT(\"'\" & Setup!$AI$11 & \"'!\" & AE374),0) + IF(Setup!$AI$12<>\"\",INDIRECT(\"'\" & Setup!$AI$12 & \"'!\" & AE374),0)","v":{"v":0,"d":"0.00"}},"","",{"$f":"IF(Setup!$AJ$7<>\"\",INDIRECT(\"'\" & Setup!$AJ$7 & \"'!\" & AD374),0) + IF(Setup!$AJ$8<>\"\",INDIRECT(\"'\" & Setup!$AJ$8 & \"'!\" & AD374),0) + IF(Setup!$AJ$9<>\"\",INDIRECT(\"'\" & Setup!$AJ$9 & \"'!\" & AD374),0) + IF(Setup!$AJ$10<>\"\",INDIRECT(\"'\" & Setup!$AJ$10 & \"'!\" & AD374),0) + IF(Setup!$AJ$11<>\"\",INDIRECT(\"'\" & Setup!$AJ$11 & \"'!\" & AD374),0) + IF(Setup!$AJ$12<>\"\",INDIRECT(\"'\" & Setup!$AJ$12 & \"'!\" & AD374),0)","v":0},{"$f":"IF(Setup!$AJ$7<>\"\",INDIRECT(\"'\" & Setup!$AJ$7 & \"'!\" & AE374),0) + IF(Setup!$AJ$8<>\"\",INDIRECT(\"'\" & Setup!$AJ$8 & \"'!\" & AE374),0) + IF(Setup!$AJ$9<>\"\",INDIRECT(\"'\" & Setup!$AJ$9 & \"'!\" & AE374),0) + IF(Setup!$AJ$10<>\"\",INDIRECT(\"'\" & Setup!$AJ$10 & \"'!\" & AE374),0) + IF(Setup!$AJ$11<>\"\",INDIRECT(\"'\" & Setup!$AJ$11 & \"'!\" & AE374),0) + IF(Setup!$AJ$12<>\"\",INDIRECT(\"'\" & Setup!$AJ$12 & \"'!\" & AE374),0)","v":0},"","",{"$f":"Planning!H146","v":0},"00","M162","O162","N162",null,null,{"$f":"IF(Setup!$AG$7<>\"\",INDIRECT(\"'\" & Setup!$AG$7 & \"'!\" & AF374),0) + IF(Setup!$AG$8<>\"\",INDIRECT(\"'\" & Setup!$AG$8 & \"'!\" & AF374),0) + IF(Setup!$AG$9<>\"\",INDIRECT(\"'\" & Setup!$AG$9 & \"'!\" & AF374),0) + IF(Setup!$AG$10<>\"\",INDIRECT(\"'\" & Setup!$AG$10 & \"'!\" & AF374),0) + IF(Setup!$AG$11<>\"\",INDIRECT(\"'\" & Setup!$AG$11 & \"'!\" & AF374),0) + IF(Setup!$AG$12<>\"\",INDIRECT(\"'\" & Setup!$AG$12 & \"'!\" & AF374),0)","v":0},{"$f":"IF(Setup!$AH$7<>\"\",INDIRECT(\"'\" & Setup!$AH$7 & \"'!\" & AF374),0) + IF(Setup!$AH$8<>\"\",INDIRECT(\"'\" & Setup!$AH$8 & \"'!\" & AF374),0) + IF(Setup!$AH$9<>\"\",INDIRECT(\"'\" & Setup!$AH$9 & \"'!\" & AF374),0) + IF(Setup!$AH$10<>\"\",INDIRECT(\"'\" & Setup!$AH$10 & \"'!\" & AF374),0) + IF(Setup!$AH$11<>\"\",INDIRECT(\"'\" & Setup!$AH$11 & \"'!\" & AF374),0) + IF(Setup!$AH$12<>\"\",INDIRECT(\"'\" & Setup!$AH$12 & \"'!\" & AF374),0)","v":0},{"$f":"IF(Setup!$AI$7<>\"\",INDIRECT(\"'\" & Setup!$AI$7 & \"'!\" & AF374),0) + IF(Setup!$AI$8<>\"\",INDIRECT(\"'\" & Setup!$AI$8 & \"'!\" & AF374),0) + IF(Setup!$AI$9<>\"\",INDIRECT(\"'\" & Setup!$AI$9 & \"'!\" & AF374),0) + IF(Setup!$AI$10<>\"\",INDIRECT(\"'\" & Setup!$AI$10 & \"'!\" & AF374),0) + IF(Setup!$AI$11<>\"\",INDIRECT(\"'\" & Setup!$AI$11 & \"'!\" & AF374),0) + IF(Setup!$AI$12<>\"\",INDIRECT(\"'\" & Setup!$AI$12 & \"'!\" & AF374),0)","v":0},{"$f":"IF(Setup!$AJ$7<>\"\",INDIRECT(\"'\" & Setup!$AJ$7 & \"'!\" & AF374),0) + IF(Setup!$AJ$8<>\"\",INDIRECT(\"'\" & Setup!$AJ$8 & \"'!\" & AF374),0) + IF(Setup!$AJ$9<>\"\",INDIRECT(\"'\" & Setup!$AJ$9 & \"'!\" & AF374),0) + IF(Setup!$AJ$10<>\"\",INDIRECT(\"'\" & Setup!$AJ$10 & \"'!\" & AF374),0) + IF(Setup!$AJ$11<>\"\",INDIRECT(\"'\" & Setup!$AJ$11 & \"'!\" & AF374),0) + IF(Setup!$AJ$12<>\"\",INDIRECT(\"'\" & Setup!$AJ$12 & \"'!\" & AF374),0)","v":0},null,"",{"$nulls":30},0,{"$f":"IF(Setup!$AH$7=\"\",0,INDIRECT(\"'\" & Setup!$AH$7 & \"'!\" & AF374))","v":0},{"$f":"IF(Setup!$AI$7=\"\",0,INDIRECT(\"'\" & Setup!$AI$7 & \"'!\" & AF374))","v":0},{"$f":"IF(Setup!$AJ$7=\"\",0,INDIRECT(\"'\" & Setup!$AJ$7 & \"'!\" & AF374))","v":0}]
[{"$f":"Planning!A147","v":"I139"},{"$f":"Planning!B147","v":0},{"$f":"Planning!C147","v":0},{"$f":"Planning!D147","v":0},{"$f":"Planning!E147","v":0},{"$f":"Planning!G147","v":0},0,{"v":0,"d":"0.00"},{"v":0,"d":"0.00"},"","",{"$f":"IF(Setup!$AG$7<>\"\",INDIRECT(\"'\" & Setup!$AG$7 & \"'!\" & AD375),0) + IF(Setup!$AG$8<>\"\",INDIRECT(\"'\" & Setup!$AG$8 & \"'!\" & AD375),0) + IF(Setup!$AG$9<>\"\",INDIRECT(\"'\" & Setup!$AG$9 & \"'!\" & AD375),0) + IF(Setup!$AG$10<>\"\",INDIRECT(\"'\" & Setup!$AG$10 & \"'!\" & AD375),0) + IF(Setup!$AG$11<>\"\",INDIRECT(\"'\" & Setup!$AG$11 & \"'!\" & AD375),0) + IF(Setup!$AG$12<>\"\",INDIRECT(\"'\" & Setup!$AG$12 & \"'!\" & AD375),0)","v":{"v":0,"d":"0.00"}},{"$f":"IF(Setup!$AG$7<>\"\",INDIRECT(\"'\" & Setup!$AG$7 & \"'!\" & AE375),0) + IF(Setup!$AG$8<>\"\",INDIRECT(\"'\" & Setup!$AG$8 & \"'!\" & AE375),0) + IF(Setup!$AG$9<>\"\",INDIRECT(\"'\" & Setup!$AG$9 & \"'!\" & AE375),0) + IF(Setup!$AG$10<>\"\",INDIRECT(\"'\" & Setup!$AG$10 & \"'!\" & AE375),0) + IF(Setup!$AG$11<>\"\",INDIRECT(\"'\" & Setup!$AG$11 & \"'!\" & AE375),0) + IF(Setup!$AG$12<>\"\",INDIRECT(\"'\" & Setup!$AG$12 & \"'!\" & AE375),0)","v":{"v":0,"d":"0.00"}},"","",{"$f":"IF(Setup!$AH$7<>\"\",INDIRECT(\"'\" & Setup!$AH$7 & \"'!\" & AD375),0) + IF(Setup!$AH$8<>\"\",INDIRECT(\"'\" & Setup!$AH$8 & \"'!\" & AD375),0) + IF(Setup!$AH$9<>\"\",INDIRECT(\"'\" & Setup!$AH$9 & \"'!\" & AD375),0) + IF(Setup!$AH$10<>\"\",INDIRECT(\"'\" & Setup!$AH$10 & \"'!\" & AD375),0) + IF(Setup!$AH$11<>\"\",INDIRECT(\"'\" & Setup!$AH$11 & \"'!\" & AD375),0) + IF(Setup!$AH$12<>\"\",INDIRECT(\"'\" & Setup!$AH$12 & \"'!\" & AD375),0)","v":{"v":0,"d":"0.00"}},{"$f":"IF(Setup!$AH$7<>\"\",INDIRECT(\"'\" & Setup!$AH$7 & \"'!\" & AE375),0) + IF(Setup!$AH$8<>\"\",INDIRECT(\"'\" & Setup!$AH$8 & \"'!\" & AE375),0) + IF(Setup!$AH$9<>\"\",INDIRECT(\"'\" & Setup!$AH$9 & \"'!\" & AE375),0) + IF(Setup!$AH$10<>\"\",INDIRECT(\"'\" & Setup!$AH$10 & \"'!\" & AE375),0) + IF(Setup!$AH$11<>\"\",INDIRECT(\"'\" & Setup!$AH$11 & \"'!\" & AE375),0) + IF(Setup!$AH$12<>\"\",INDIRECT(\"'\" & Setup!$AH$12 & \"'!\" & AE375),0)","v":{"v":0,"d":"0.00"}},"","",{"$f":"IF(Setup!$AI$7<>\"\",INDIRECT(\"'\" & Setup!$AI$7 & \"'!\" & AD375),0) + IF(Setup!$AI$8<>\"\",INDIRECT(\"'\" & Setup!$AI$8 & \"'!\" & AD375),0) + IF(Setup!$AI$9<>\"\",INDIRECT(\"'\" & Setup!$AI$9 & \"'!\" & AD375),0) + IF(Setup!$AI$10<>\"\",INDIRECT(\"'\" & Setup!$AI$10 & \"'!\" & AD375),0) + IF(Setup!$AI$11<>\"\",INDIRECT(\"'\" & Setup!$AI$11 & \"'!\" & AD375),0) + IF(Setup!$AI$12<>\"\",INDIRECT(\"'\" & Setup!$AI$12 & \"'!\" & AD375),0)","v":{"v":0,"d":"0.00"}},{"$f":"IF(Setup!$AI$7<>\"\",INDIRECT(\"'\" & Setup!$AI$7 & \"'!\" & AE375),0) + IF(Setup!$AI$8<>\"\",INDIRECT(\"'\" & Setup!$AI$8 & \"'!\" & AE375),0) + IF(Setup!$AI$9<>\"\",INDIRECT(\"'\" & Setup!$AI$9 & \"'!\" & AE375),0) + IF(Setup!$AI$10<>\"\",INDIRECT(\"'\" & Setup!$AI$10 & \"'!\" & AE375),0) + IF(Setup!$AI$11<>\"\",INDIRECT(\"'\" & Setup!$AI$11 & \"'!\" & AE375),0) + IF(Setup!$AI$12<>\"\",INDIRECT(\"'\" & Setup!$AI$12 & \"'!\" & AE375),0)","v":{"v":0,"d":"0.00"}},"","",{"$f":"IF(Setup!$AJ$7<>\"\",INDIRECT(\"'\" & Setup!$AJ$7 & \"'!\" & AD375),0) + IF(Setup!$AJ$8<>\"\",INDIRECT(\"'\" & Setup!$AJ$8 & \"'!\" & AD375),0) + IF(Setup!$AJ$9<>\"\",INDIRECT(\"'\" & Setup!$AJ$9 & \"'!\" & AD375),0) + IF(Setup!$AJ$10<>\"\",INDIRECT(\"'\" & Setup!$AJ$10 & \"'!\" & AD375),0) + IF(Setup!$AJ$11<>\"\",INDIRECT(\"'\" & Setup!$AJ$11 & \"'!\" & AD375),0) + IF(Setup!$AJ$12<>\"\",INDIRECT(\"'\" & Setup!$AJ$12 & \"'!\" & AD375),0)","v":0},{"$f":"IF(Setup!$AJ$7<>\"\",INDIRECT(\"'\" & Setup!$AJ$7 & \"'!\" & AE375),0) + IF(Setup!$AJ$8<>\"\",INDIRECT(\"'\" & Setup!$AJ$8 & \"'!\" & AE375),0) + IF(Setup!$AJ$9<>\"\",INDIRECT(\"'\" & Setup!$AJ$9 & \"'!\" & AE375),0) + IF(Setup!$AJ$10<>\"\",INDIRECT(\"'\" & Setup!$AJ$10 & \"'!\" & AE375),0) + IF(Setup!$AJ$11<>\"\",INDIRECT(\"'\" & Setup!$AJ$11 & \"'!\" & AE375),0) + IF(Setup!$AJ$12<>\"\",INDIRECT(\"'\" & Setup!$AJ$12 & \"'!\" & AE375),0)","v":0},"","",{"$f":"Planning!H147","v":0},"00","M163","O163","N163",null,null,{"$f":"IF(Setup!$AG$7<>\"\",INDIRECT(\"'\" & Setup!$AG$7 & \"'!\" & AF375),0) + IF(Setup!$AG$8<>\"\",INDIRECT(\"'\" & Setup!$AG$8 & \"'!\" & AF375),0) + IF(Setup!$AG$9<>\"\",INDIRECT(\"'\" & Setup!$AG$9 & \"'!\" & AF375),0) + IF(Setup!$AG$10<>\"\",INDIRECT(\"'\" & Setup!$AG$10 & \"'!\" & AF375),0) + IF(Setup!$AG$11<>\"\",INDIRECT(\"'\" & Setup!$AG$11 & \"'!\" & AF375),0) + IF(Setup!$AG$12<>\"\",INDIRECT(\"'\" & Setup!$AG$12 & \"'!\" & AF375),0)","v":0},{"$f":"IF(Setup!$AH$7<>\"\",INDIRECT(\"'\" & Setup!$AH$7 & \"'!\" & AF375),0) + IF(Setup!$AH$8<>\"\",INDIRECT(\"'\" & Setup!$AH$8 & \"'!\" & AF375),0) + IF(Setup!$AH$9<>\"\",INDIRECT(\"'\" & Setup!$AH$9 & \"'!\" & AF375),0) + IF(Setup!$AH$10<>\"\",INDIRECT(\"'\" & Setup!$AH$10 & \"'!\" & AF375),0) + IF(Setup!$AH$11<>\"\",INDIRECT(\"'\" & Setup!$AH$11 & \"'!\" & AF375),0) + IF(Setup!$AH$12<>\"\",INDIRECT(\"'\" & Setup!$AH$12 & \"'!\" & AF375),0)","v":0},{"$f":"IF(Setup!$AI$7<>\"\",INDIRECT(\"'\" & Setup!$AI$7 & \"'!\" & AF375),0) + IF(Setup!$AI$8<>\"\",INDIRECT(\"'\" & Setup!$AI$8 & \"'!\" & AF375),0) + IF(Setup!$AI$9<>\"\",INDIRECT(\"'\" & Setup!$AI$9 & \"'!\" & AF375),0) + IF(Setup!$AI$10<>\"\",INDIRECT(\"'\" & Setup!$AI$10 & \"'!\" & AF375),0) + IF(Setup!$AI$11<>\"\",INDIRECT(\"'\" & Setup!$AI$11 & \"'!\" & AF375),0) + IF(Setup!$AI$12<>\"\",INDIRECT(\"'\" & Setup!$AI$12 & \"'!\" & AF375),0)","v":0},{"$f":"IF(Setup!$AJ$7<>\"\",INDIRECT(\"'\" & Setup!$AJ$7 & \"'!\" & AF375),0) + IF(Setup!$AJ$8<>\"\",INDIRECT(\"'\" & Setup!$AJ$8 & \"'!\" & AF375),0) + IF(Setup!$AJ$9<>\"\",INDIRECT(\"'\" & Setup!$AJ$9 & \"'!\" & AF375),0) + IF(Setup!$AJ$10<>\"\",INDIRECT(\"'\" & Setup!$AJ$10 & \"'!\" & AF375),0) + IF(Setup!$AJ$11<>\"\",INDIRECT(\"'\" & Setup!$AJ$11 & \"'!\" & AF375),0) + IF(Setup!$AJ$12<>\"\",INDIRECT(\"'\" & Setup!$AJ$12 & \"'!\" & AF375),0)","v":0},null,"",{"$nulls":30},0,{"$f":"IF(Setup!$AH$7=\"\",0,INDIRECT(\"'\" & Setup!$AH$7 & \"'!\" & AF375))","v":0},{"$f":"IF(Setup!$AI$7=\"\",0,INDIRECT(\"'\" & Setup!$AI$7 & \"'!\" & AF375))","v":0},{"$f":"IF(Setup!$AJ$7=\"\",0,INDIRECT(\"'\" & Setup!$AJ$7 & \"'!\" & AF375))","v":0}]
[{"$f":"Planning!A148","v":"I140"},{"$f":"Planning!B148","v":0},{"$f":"Planning!C148","v":0},{"$f":"Planning!D148","v":0},{"$f":"Planning!E148","v":0},{"$f":"Planning!G148","v":0},0,{"v":0,"d":"0.00"},{"v":0,"d":"0.00"},"","",{"$f":"IF(Setup!$AG$7<>\"\",INDIRECT(\"'\" & Setup!$AG$7 & \"'!\" & AD376),0) + IF(Setup!$AG$8<>\"\",INDIRECT(\"'\" & Setup!$AG$8 & \"'!\" & AD376),0) + IF(Setup!$AG$9<>\"\",INDIRECT(\"'\" & Setup!$AG$9 & \"'!\" & AD376),0) + IF(Setup!$AG$10<>\"\",INDIRECT(\"'\" & Setup!$AG$10 & \"'!\" & AD376),0) + IF(Setup!$AG$11<>\"\",INDIRECT(\"'\" & Setup!$AG$11 & \"'!\" & AD376),0) + IF(Setup!$AG$12<>\"\",INDIRECT(\"'\" & Setup!$AG$12 & \"'!\" & AD376),0)","v":{"v":0,"d":"0.00"}},{"$f":"IF(Setup!$AG$7<>\"\",INDIRECT(\"'\" & Setup!$AG$7 & \"'!\" & AE376),0) + IF(Setup!$AG$8<>\"\",INDIRECT(\"'\" & Setup!$AG$8 & \"'!\" & AE376),0) + IF(Setup!$AG$9<>\"\",INDIRECT(\"'\" & Setup!$AG$9 & \"'!\" & AE376),0) + IF(Setup!$AG$10<>\"\",INDIRECT(\"'\" & Setup!$AG$10 & \"'!\" & AE376),0) + IF(Setup!$AG$11<>\"\",INDIRECT(\"'\" & Setup!$AG$11 & \"'!\" & AE376),0) + IF(Setup!$AG$12<>\"\",INDIRECT(\"'\" & Setup!$AG$12 & \"'!\" & AE376),0)","v":{"v":0,"d":"0.00"}},"","",{"$f":"IF(Setup!$AH$7<>\"\",INDIRECT(\"'\" & Setup!$AH$7 & \"'!\" & AD376),0) + IF(Setup!$AH$8<>\"\",INDIRECT(\"'\" & Setup!$AH$8 & \"'!\" & AD376),0) + IF(Setup!$AH$9<>\"\",INDIRECT(\"'\" & Setup!$AH$9 & \"'!\" & AD376),0) + IF(Setup!$AH$10<>\"\",INDIRECT(\"'\" & Setup!$AH$10 & \"'!\" & AD376),0) + IF(Setup!$AH$11<>\"\",INDIRECT(\"'\" & Setup!$AH$11 & \"'!\" & AD376),0) + IF(Setup!$AH$12<>\"\",INDIRECT(\"'\" & Setup!$AH$12 & \"'!\" & AD376),0)","v":{"v":0,"d":"0.00"}},{"$f":"IF(Setup!$AH$7<>\"\",INDIRECT(\"'\" & Setup!$AH$7 & \"'!\" & AE376),0) + IF(Setup!$AH$8<>\"\",INDIRECT(\"'\" & Setup!$AH$8 & \"'!\" & AE376),0) + IF(Setup!$AH$9<>\"\",INDIRECT(\"'\" & Setup!$AH$9 & \"'!\" & AE376),0) + IF(Setup!$AH$10<>\"\",INDIRECT(\"'\" & Setup!$AH$10 & \"'!\" & AE376),0) + IF(Setup!$AH$11<>\"\",INDIRECT(\"'\" & Setup!$AH$11 & \"'!\" & AE376),0) + IF(Setup!$AH$12<>\"\",INDIRECT(\"'\" & Setup!$AH$12 & \"'!\" & AE376),0)","v":{"v":0,"d":"0.00"}},"","",{"$f":"IF(Setup!$AI$7<>\"\",INDIRECT(\"'\" & Setup!$AI$7 & \"'!\" & AD376),0) + IF(Setup!$AI$8<>\"\",INDIRECT(\"'\" & Setup!$AI$8 & \"'!\" & AD376),0) + IF(Setup!$AI$9<>\"\",INDIRECT(\"'\" & Setup!$AI$9 & \"'!\" & AD376),0) + IF(Setup!$AI$10<>\"\",INDIRECT(\"'\" & Setup!$AI$10 & \"'!\" & AD376),0) + IF(Setup!$AI$11<>\"\",INDIRECT(\"'\" & Setup!$AI$11 & \"'!\" & AD376),0) + IF(Setup!$AI$12<>\"\",INDIRECT(\"'\" & Setup!$AI$12 & \"'!\" & AD376),0)","v":{"v":0,"d":"0.00"}},{"$f":"IF(Setup!$AI$7<>\"\",INDIRECT(\"'\" & Setup!$AI$7 & \"'!\" & AE376),0) + IF(Setup!$AI$8<>\"\",INDIRECT(\"'\" & Setup!$AI$8 & \"'!\" & AE376),0) + IF(Setup!$AI$9<>\"\",INDIRECT(\"'\" & Setup!$AI$9 & \"'!\" & AE376),0) + IF(Setup!$AI$10<>\"\",INDIRECT(\"'\" & Setup!$AI$10 & \"'!\" & AE376),0) + IF(Setup!$AI$11<>\"\",INDIRECT(\"'\" & Setup!$AI$11 & \"'!\" & AE376),0) + IF(Setup!$AI$12<>\"\",INDIRECT(\"'\" & Setup!$AI$12 & \"'!\" & AE376),0)","v":{"v":0,"d":"0.00"}},"","",{"$f":"IF(Setup!$AJ$7<>\"\",INDIRECT(\"'\" & Setup!$AJ$7 & \"'!\" & AD376),0) + IF(Setup!$AJ$8<>\"\",INDIRECT(\"'\" & Setup!$AJ$8 & \"'!\" & AD376),0) + IF(Setup!$AJ$9<>\"\",INDIRECT(\"'\" & Setup!$AJ$9 & \"'!\" & AD376),0) + IF(Setup!$AJ$10<>\"\",INDIRECT(\"'\" & Setup!$AJ$10 & \"'!\" & AD376),0) + IF(Setup!$AJ$11<>\"\",INDIRECT(\"'\" & Setup!$AJ$11 & \"'!\" & AD376),0) + IF(Setup!$AJ$12<>\"\",INDIRECT(\"'\" & Setup!$AJ$12 & \"'!\" & AD376),0)","v":0},{"$f":"IF(Setup!$AJ$7<>\"\",INDIRECT(\"'\" & Setup!$AJ$7 & \"'!\" & AE376),0) + IF(Setup!$AJ$8<>\"\",INDIRECT(\"'\" & Setup!$AJ$8 & \"'!\" & AE376),0) + IF(Setup!$AJ$9<>\"\",INDIRECT(\"'\" & Setup!$AJ$9 & \"'!\" & AE376),0) + IF(Setup!$AJ$10<>\"\",INDIRECT(\"'\" & Setup!$AJ$10 & \"'!\" & AE376),0) + IF(Setup!$AJ$11<>\"\",INDIRECT(\"'\" & Setup!$AJ$11 & \"'!\" & AE376),0) + IF(Setup!$AJ$12<>\"\",INDIRECT(\"'\" & Setup!$AJ$12 & \"'!\" & AE376),0)","v":0},"","",{"$f":"Planning!H148","v":0},"00","M164","O164","N164",null,null,{"$f":"IF(Setup!$AG$7<>\"\",INDIRECT(\"'\" & Setup!$AG$7 & \"'!\" & AF376),0) + IF(Setup!$AG$8<>\"\",INDIRECT(\"'\" & Setup!$AG$8 & \"'!\" & AF376),0) + IF(Setup!$AG$9<>\"\",INDIRECT(\"'\" & Setup!$AG$9 & \"'!\" & AF376),0) + IF(Setup!$AG$10<>\"\",INDIRECT(\"'\" & Setup!$AG$10 & \"'!\" & AF376),0) + IF(Setup!$AG$11<>\"\",INDIRECT(\"'\" & Setup!$AG$11 & \"'!\" & AF376),0) + IF(Setup!$AG$12<>\"\",INDIRECT(\"'\" & Setup!$AG$12 & \"'!\" & AF376),0)","v":0},{"$f":"IF(Setup!$AH$7<>\"\",INDIRECT(\"'\" & Setup!$AH$7 & \"'!\" & AF376),0) + IF(Setup!$AH$8<>\"\",INDIRECT(\"'\" & Setup!$AH$8 & \"'!\" & AF376),0) + IF(Setup!$AH$9<>\"\",INDIRECT(\"'\" & Setup!$AH$9 & \"'!\" & AF376),0) + IF(Setup!$AH$10<>\"\",INDIRECT(\"'\" & Setup!$AH$10 & \"'!\" & AF376),0) + IF(Setup!$AH$11<>\"\",INDIRECT(\"'\" & Setup!$AH$11 & \"'!\" & AF376),0) + IF(Setup!$AH$12<>\"\",INDIRECT(\"'\" & Setup!$AH$12 & \"'!\" & AF376),0)","v":0},{"$f":"IF(Setup!$AI$7<>\"\",INDIRECT(\"'\" & Setup!$AI$7 & \"'!\" & AF376),0) + IF(Setup!$AI$8<>\"\",INDIRECT(\"'\" & Setup!$AI$8 & \"'!\" & AF376),0) + IF(Setup!$AI$9<>\"\",INDIRECT(\"'\" & Setup!$AI$9 & \"'!\" & AF376),0) + IF(Setup!$AI$10<>\"\",INDIRECT(\"'\" & Setup!$AI$10 & \"'!\" & AF376),0) + IF(Setup!$AI$11<>\"\",INDIRECT(\"'\" & Setup!$AI$11 & \"'!\" & AF376),0) + IF(Setup!$AI$12<>\"\",INDIRECT(\"'\" & Setup!$AI$12 & \"'!\" & AF376),0)","v":0},{"$f":"IF(Setup!$AJ$7<>\"\",INDIRECT(\"'\" & Setup!$AJ$7 & \"'!\" & AF376),0) + IF(Setup!$AJ$8<>\"\",INDIRECT(\"'\" & Setup!$AJ$8 & \"'!\" & AF376),0) + IF(Setup!$AJ$9<>\"\",INDIRECT(\"'\" & Setup!$AJ$9 & \"'!\" & AF376),0) + IF(Setup!$AJ$10<>\"\",INDIRECT(\"'\" & Setup!$AJ$10 & \"'!\" & AF376),0) + IF(Setup!$AJ$11<>\"\",INDIRECT(\"'\" & Setup!$AJ$11 & \"'!\" & AF376),0) + IF(Setup!$AJ$12<>\"\",INDIRECT(\"'\" & Setup!$AJ$12 & \"'!\" & AF376),0)","v":0},null,"",{"$nulls":30},0,{"$f":"IF(Setup!$AH$7=\"\",0,INDIRECT(\"'\" & Setup!$AH$7 & \"'!\" & AF376))","v":0},{"$f":"IF(Setup!$AI$7=\"\",0,INDIRECT(\"'\" & Setup!$AI$7 & \"'!\" & AF376))","v":0},{"$f":"IF(Setup!$AJ$7=\"\",0,INDIRECT(\"'\" & Setup!$AJ$7 & \"'!\" & AF376))","v":0}]
[{"$f":"Planning!A149","v":"I141"},{"$f":"Planning!B149","v":0},{"$f":"Planning!C149","v":0},{"$f":"Planning!D149","v":0},{"$f":"Planning!E149","v":0},{"$f":"Planning!G149","v":0},0,{"v":0,"d":"0.00"},{"v":0,"d":"0.00"},"","",{"$f":"IF(Setup!$AG$7<>\"\",INDIRECT(\"'\" & Setup!$AG$7 & \"'!\" & AD377),0) + IF(Setup!$AG$8<>\"\",INDIRECT(\"'\" & Setup!$AG$8 & \"'!\" & AD377),0) + IF(Setup!$AG$9<>\"\",INDIRECT(\"'\" & Setup!$AG$9 & \"'!\" & AD377),0) + IF(Setup!$AG$10<>\"\",INDIRECT(\"'\" & Setup!$AG$10 & \"'!\" & AD377),0) + IF(Setup!$AG$11<>\"\",INDIRECT(\"'\" & Setup!$AG$11 & \"'!\" & AD377),0) + IF(Setup!$AG$12<>\"\",INDIRECT(\"'\" & Setup!$AG$12 & \"'!\" & AD377),0)","v":{"v":0,"d":"0.00"}},{"$f":"IF(Setup!$AG$7<>\"\",INDIRECT(\"'\" & Setup!$AG$7 & \"'!\" & AE377),0) + IF(Setup!$AG$8<>\"\",INDIRECT(\"'\" & Setup!$AG$8 & \"'!\" & AE377),0) + IF(Setup!$AG$9<>\"\",INDIRECT(\"'\" & Setup!$AG$9 & \"'!\" & AE377),0) + IF(Setup!$AG$10<>\"\",INDIRECT(\"'\" & Setup!$AG$10 & \"'!\" & AE377),0) + IF(Setup!$AG$11<>\"\",INDIRECT(\"'\" & Setup!$AG$11 & \"'!\" & AE377),0) + IF(Setup!$AG$12<>\"\",INDIRECT(\"'\" & Setup!$AG$12 & \"'!\" & AE377),0)","v":{"v":0,"d":"0.00"}},"","",{"$f":"IF(Setup!$AH$7<>\"\",INDIRECT(\"'\" & Setup!$AH$7 & \"'!\" & AD377),0) + IF(Setup!$AH$8<>\"\",INDIRECT(\"'\" & Setup!$AH$8 & \"'!\" & AD377),0) + IF(Setup!$AH$9<>\"\",INDIRECT(\"'\" & Setup!$AH$9 & \"'!\" & AD377),0) + IF(Setup!$AH$10<>\"\",INDIRECT(\"'\" & Setup!$AH$10 & \"'!\" & AD377),0) + IF(Setup!$AH$11<>\"\",INDIRECT(\"'\" & Setup!$AH$11 & \"'!\" & AD377),0) + IF(Setup!$AH$12<>\"\",INDIRECT(\"'\" & Setup!$AH$12 & \"'!\" & AD377),0)","v":{"v":0,"d":"0.00"}},{"$f":"IF(Setup!$AH$7<>\"\",INDIRECT(\"'\" & Setup!$AH$7 & \"'!\" & AE377),0) + IF(Setup!$AH$8<>\"\",INDIRECT(\"'\" & Setup!$AH$8 & \"'!\" & AE377),0) + IF(Setup!$AH$9<>\"\",INDIRECT(\"'\" & Setup!$AH$9 & \"'!\" & AE377),0) + IF(Setup!$AH$10<>\"\",INDIRECT(\"'\" & Setup!$AH$10 & \"'!\" & AE377),0) + IF(Setup!$AH$11<>\"\",INDIRECT(\"'\" & Setup!$AH$11 & \"'!\" & AE377),0) + IF(Setup!$AH$12<>\"\",INDIRECT(\"'\" & Setup!$AH$12 & \"'!\" & AE377),0)","v":{"v":0,"d":"0.00"}},"","",{"$f":"IF(Setup!$AI$7<>\"\",INDIRECT(\"'\" & Setup!$AI$7 & \"'!\" & AD377),0) + IF(Setup!$AI$8<>\"\",INDIRECT(\"'\" & Setup!$AI$8 & \"'!\" & AD377),0) + IF(Setup!$AI$9<>\"\",INDIRECT(\"'\" & Setup!$AI$9 & \"'!\" & AD377),0) + IF(Setup!$AI$10<>\"\",INDIRECT(\"'\" & Setup!$AI$10 & \"'!\" & AD377),0) + IF(Setup!$AI$11<>\"\",INDIRECT(\"'\" & Setup!$AI$11 & \"'!\" & AD377),0) + IF(Setup!$AI$12<>\"\",INDIRECT(\"'\" & Setup!$AI$12 & \"'!\" & AD377),0)","v":{"v":0,"d":"0.00"}},{"$f":"IF(Setup!$AI$7<>\"\",INDIRECT(\"'\" & Setup!$AI$7 & \"'!\" & AE377),0) + IF(Setup!$AI$8<>\"\",INDIRECT(\"'\" & Setup!$AI$8 & \"'!\" & AE377),0) + IF(Setup!$AI$9<>\"\",INDIRECT(\"'\" & Setup!$AI$9 & \"'!\" & AE377),0) + IF(Setup!$AI$10<>\"\",INDIRECT(\"'\" & Setup!$AI$10 & \"'!\" & AE377),0) + IF(Setup!$AI$11<>\"\",INDIRECT(\"'\" & Setup!$AI$11 & \"'!\" & AE377),0) + IF(Setup!$AI$12<>\"\",INDIRECT(\"'\" & Setup!$AI$12 & \"'!\" & AE377),0)","v":{"v":0,"d":"0.00"}},"","",{"$f":"IF(Setup!$AJ$7<>\"\",INDIRECT(\"'\" & Setup!$AJ$7 & \"'!\" & AD377),0) + IF(Setup!$AJ$8<>\"\",INDIRECT(\"'\" & Setup!$AJ$8 & \"'!\" & AD377),0) + IF(Setup!$AJ$9<>\"\",INDIRECT(\"'\" & Setup!$AJ$9 & \"'!\" & AD377),0) + IF(Setup!$AJ$10<>\"\",INDIRECT(\"'\" & Setup!$AJ$10 & \"'!\" & AD377),0) + IF(Setup!$AJ$11<>\"\",INDIRECT(\"'\" & Setup!$AJ$11 & \"'!\" & AD377),0) + IF(Setup!$AJ$12<>\"\",INDIRECT(\"'\" & Setup!$AJ$12 & \"'!\" & AD377),0)","v":0},{"$f":"IF(Setup!$AJ$7<>\"\",INDIRECT(\"'\" & Setup!$AJ$7 & \"'!\" & AE377),0) + IF(Setup!$AJ$8<>\"\",INDIRECT(\"'\" & Setup!$AJ$8 & \"'!\" & AE377),0) + IF(Setup!$AJ$9<>\"\",INDIRECT(\"'\" & Setup!$AJ$9 & \"'!\" & AE377),0) + IF(Setup!$AJ$10<>\"\",INDIRECT(\"'\" & Setup!$AJ$10 & \"'!\" & AE377),0) + IF(Setup!$AJ$11<>\"\",INDIRECT(\"'\" & Setup!$AJ$11 & \"'!\" & AE377),0) + IF(Setup!$AJ$12<>\"\",INDIRECT(\"'\" & Setup!$AJ$12 & \"'!\" & AE377),0)","v":0},"","",{"$f":"Planning!H149","v":0},"00","M165","O165","N165",null,null,{"$f":"IF(Setup!$AG$7<>\"\",INDIRECT(\"'\" & Setup!$AG$7 & \"'!\" & AF377),0) + IF(Setup!$AG$8<>\"\",INDIRECT(\"'\" & Setup!$AG$8 & \"'!\" & AF377),0) + IF(Setup!$AG$9<>\"\",INDIRECT(\"'\" & Setup!$AG$9 & \"'!\" & AF377),0) + IF(Setup!$AG$10<>\"\",INDIRECT(\"'\" & Setup!$AG$10 & \"'!\" & AF377),0) + IF(Setup!$AG$11<>\"\",INDIRECT(\"'\" & Setup!$AG$11 & \"'!\" & AF377),0) + IF(Setup!$AG$12<>\"\",INDIRECT(\"'\" & Setup!$AG$12 & \"'!\" & AF377),0)","v":0},{"$f":"IF(Setup!$AH$7<>\"\",INDIRECT(\"'\" & Setup!$AH$7 & \"'!\" & AF377),0) + IF(Setup!$AH$8<>\"\",INDIRECT(\"'\" & Setup!$AH$8 & \"'!\" & AF377),0) + IF(Setup!$AH$9<>\"\",INDIRECT(\"'\" & Setup!$AH$9 & \"'!\" & AF377),0) + IF(Setup!$AH$10<>\"\",INDIRECT(\"'\" & Setup!$AH$10 & \"'!\" & AF377),0) + IF(Setup!$AH$11<>\"\",INDIRECT(\"'\" & Setup!$AH$11 & \"'!\" & AF377),0) + IF(Setup!$AH$12<>\"\",INDIRECT(\"'\" & Setup!$AH$12 & \"'!\" & AF377),0)","v":0},{"$f":"IF(Setup!$AI$7<>\"\",INDIRECT(\"'\" & Setup!$AI$7 & \"'!\" & AF377),0) + IF(Setup!$AI$8<>\"\",INDIRECT(\"'\" & Setup!$AI$8 & \"'!\" & AF377),0) + IF(Setup!$AI$9<>\"\",INDIRECT(\"'\" & Setup!$AI$9 & \"'!\" & AF377),0) + IF(Setup!$AI$10<>\"\",INDIRECT(\"'\" & Setup!$AI$10 & \"'!\" & AF377),0) + IF(Setup!$AI$11<>\"\",INDIRECT(\"'\" & Setup!$AI$11 & \"'!\" & AF377),0) + IF(Setup!$AI$12<>\"\",INDIRECT(\"'\" & Setup!$AI$12 & \"'!\" & AF377),0)","v":0},{"$f":"IF(Setup!$AJ$7<>\"\",INDIRECT(\"'\" & Setup!$AJ$7 & \"'!\" & AF377),0) + IF(Setup!$AJ$8<>\"\",INDIRECT(\"'\" & Setup!$AJ$8 & \"'!\" & AF377),0) + IF(Setup!$AJ$9<>\"\",INDIRECT(\"'\" & Setup!$AJ$9 & \"'!\" & AF377),0) + IF(Setup!$AJ$10<>\"\",INDIRECT(\"'\" & Setup!$AJ$10 & \"'!\" & AF377),0) + IF(Setup!$AJ$11<>\"\",INDIRECT(\"'\" & Setup!$AJ$11 & \"'!\" & AF377),0) + IF(Setup!$AJ$12<>\"\",INDIRECT(\"'\" & Setup!$AJ$12 & \"'!\" & AF377),0)","v":0},null,"",{"$nulls":30},0,{"$f":"IF(Setup!$AH$7=\"\",0,INDIRECT(\"'\" & Setup!$AH$7 & \"'!\" & AF377))","v":0},{"$f":"IF(Setup!$AI$7=\"\",0,INDIRECT(\"'\" & Setup!$AI$7 & \"'!\" & AF377))","v":0},{"$f":"IF(Setup!$AJ$7=\"\",0,INDIRECT(\"'\" & Setup!$AJ$7 & \"'!\" & AF377))","v":0}]
[{"$f":"Planning!A150","v":"I142"},{"$f":"Planning!B150","v":0},{"$f":"Planning!C150","v":0},{"$f":"Planning!D150","v":0},{"$f":"Planning!E150","v":0},{"$f":"Planning!G150","v":0},0,{"v":0,"d":"0.00"},{"v":0,"d":"0.00"},"","",{"$f":"IF(Setup!$AG$7<>\"\",INDIRECT(\"'\" & Setup!$AG$7 & \"'!\" & AD378),0) + IF(Setup!$AG$8<>\"\",INDIRECT(\"'\" & Setup!$AG$8 & \"'!\" & AD378),0) + IF(Setup!$AG$9<>\"\",INDIRECT(\"'\" & Setup!$AG$9 & \"'!\" & AD378),0) + IF(Setup!$AG$10<>\"\",INDIRECT(\"'\" & Setup!$AG$10 & \"'!\" & AD378),0) + IF(Setup!$AG$11<>\"\",INDIRECT(\"'\" & Setup!$AG$11 & \"'!\" & AD378),0) + IF(Setup!$AG$12<>\"\",INDIRECT(\"'\" & Setup!$AG$12 & \"'!\" & AD378),0)","v":{"v":0,"d":"0.00"}},{"$f":"IF(Setup!$AG$7<>\"\",INDIRECT(\"'\" & Setup!$AG$7 & \"'!\" & AE378),0) + IF(Setup!$AG$8<>\"\",INDIRECT(\"'\" & Setup!$AG$8 & \"'!\" & AE378),0) + IF(Setup!$AG$9<>\"\",INDIRECT(\"'\" & Setup!$AG$9 & \"'!\" & AE378),0) + IF(Setup!$AG$10<>\"\",INDIRECT(\"'\" & Setup!$AG$10 & \"'!\" & AE378),0) + IF(Setup!$AG$11<>\"\",INDIRECT(\"'\" & Setup!$AG$11 & \"'!\" & AE378),0) + IF(Setup!$AG$12<>\"\",INDIRECT(\"'\" & Setup!$AG$12 & \"'!\" & AE378),0)","v":{"v":0,"d":"0.00"}},"","",{"$f":"IF(Setup!$AH$7<>\"\",INDIRECT(\"'\" & Setup!$AH$7 & \"'!\" & AD378),0) + IF(Setup!$AH$8<>\"\",INDIRECT(\"'\" & Setup!$AH$8 & \"'!\" & AD378),0) + IF(Setup!$AH$9<>\"\",INDIRECT(\"'\" & Setup!$AH$9 & \"'!\" & AD378),0) + IF(Setup!$AH$10<>\"\",INDIRECT(\"'\" & Setup!$AH$10 & \"'!\" & AD378),0) + IF(Setup!$AH$11<>\"\",INDIRECT(\"'\" & Setup!$AH$11 & \"'!\" & AD378),0) + IF(Setup!$AH$12<>\"\",INDIRECT(\"'\" & Setup!$AH$12 & \"'!\" & AD378),0)","v":{"v":0,"d":"0.00"}},{"$f":"IF(Setup!$AH$7<>\"\",INDIRECT(\"'\" & Setup!$AH$7 & \"'!\" & AE378),0) + IF(Setup!$AH$8<>\"\",INDIRECT(\"'\" & Setup!$AH$8 & \"'!\" & AE378),0) + IF(Setup!$AH$9<>\"\",INDIRECT(\"'\" & Setup!$AH$9 & \"'!\" & AE378),0) + IF(Setup!$AH$10<>\"\",INDIRECT(\"'\" & Setup!$AH$10 & \"'!\" & AE378),0) + IF(Setup!$AH$11<>\"\",INDIRECT(\"'\" & Setup!$AH$11 & \"'!\" & AE378),0) + IF(Setup!$AH$12<>\"\",INDIRECT(\"'\" & Setup!$AH$12 & \"'!\" & AE378),0)","v":{"v":0,"d":"0.00"}},"","",{"$f":"IF(Setup!$AI$7<>\"\",INDIRECT(\"'\" & Setup!$AI$7 & \"'!\" & AD378),0) + IF(Setup!$AI$8<>\"\",INDIRECT(\"'\" & Setup!$AI$8 & \"'!\" & AD378),0) + IF(Setup!$AI$9<>\"\",INDIRECT(\"'\" & Setup!$AI$9 & \"'!\" & AD378),0) + IF(Setup!$AI$10<>\"\",INDIRECT(\"'\" & Setup!$AI$10 & \"'!\" & AD378),0) + IF(Setup!$AI$11<>\"\",INDIRECT(\"'\" & Setup!$AI$11 & \"'!\" & AD378),0) + IF(Setup!$AI$12<>\"\",INDIRECT(\"'\" & Setup!$AI$12 & \"'!\" & AD378),0)","v":{"v":0,"d":"0.00"}},{"$f":"IF(Setup!$AI$7<>\"\",INDIRECT(\"'\" & Setup!$AI$7 & \"'!\" & AE378),0) + IF(Setup!$AI$8<>\"\",INDIRECT(\"'\" & Setup!$AI$8 & \"'!\" & AE378),0) + IF(Setup!$AI$9<>\"\",INDIRECT(\"'\" & Setup!$AI$9 & \"'!\" & AE378),0) + IF(Setup!$AI$10<>\"\",INDIRECT(\"'\" & Setup!$AI$10 & \"'!\" & AE378),0) + IF(Setup!$AI$11<>\"\",INDIRECT(\"'\" & Setup!$AI$11 & \"'!\" & AE378),0) + IF(Setup!$AI$12<>\"\",INDIRECT(\"'\" & Setup!$AI$12 & \"'!\" & AE378),0)","v":{"v":0,"d":"0.00"}},"","",{"$f":"IF(Setup!$AJ$7<>\"\",INDIRECT(\"'\" & Setup!$AJ$7 & \"'!\" & AD378),0) + IF(Setup!$AJ$8<>\"\",INDIRECT(\"'\" & Setup!$AJ$8 & \"'!\" & AD378),0) + IF(Setup!$AJ$9<>\"\",INDIRECT(\"'\" & Setup!$AJ$9 & \"'!\" & AD378),0) + IF(Setup!$AJ$10<>\"\",INDIRECT(\"'\" & Setup!$AJ$10 & \"'!\" & AD378),0) + IF(Setup!$AJ$11<>\"\",INDIRECT(\"'\" & Setup!$AJ$11 & \"'!\" & AD378),0) + IF(Setup!$AJ$12<>\"\",INDIRECT(\"'\" & Setup!$AJ$12 & \"'!\" & AD378),0)","v":0},{"$f":"IF(Setup!$AJ$7<>\"\",INDIRECT(\"'\" & Setup!$AJ$7 & \"'!\" & AE378),0) + IF(Setup!$AJ$8<>\"\",INDIRECT(\"'\" & Setup!$AJ$8 & \"'!\" & AE378),0) + IF(Setup!$AJ$9<>\"\",INDIRECT(\"'\" & Setup!$AJ$9 & \"'!\" & AE378),0) + IF(Setup!$AJ$10<>\"\",INDIRECT(\"'\" & Setup!$AJ$10 & \"'!\" & AE378),0) + IF(Setup!$AJ$11<>\"\",INDIRECT(\"'\" & Setup!$AJ$11 & \"'!\" & AE378),0) + IF(Setup!$AJ$12<>\"\",INDIRECT(\"'\" & Setup!$AJ$12 & \"'!\" & AE378),0)","v":0},"","",{"$f":"Planning!H150","v":0},"00","M166","O166","N166",null,null,{"$f":"IF(Setup!$AG$7<>\"\",INDIRECT(\"'\" & Setup!$AG$7 & \"'!\" & AF378),0) + IF(Setup!$AG$8<>\"\",INDIRECT(\"'\" & Setup!$AG$8 & \"'!\" & AF378),0) + IF(Setup!$AG$9<>\"\",INDIRECT(\"'\" & Setup!$AG$9 & \"'!\" & AF378),0) + IF(Setup!$AG$10<>\"\",INDIRECT(\"'\" & Setup!$AG$10 & \"'!\" & AF378),0) + IF(Setup!$AG$11<>\"\",INDIRECT(\"'\" & Setup!$AG$11 & \"'!\" & AF378),0) + IF(Setup!$AG$12<>\"\",INDIRECT(\"'\" & Setup!$AG$12 & \"'!\" & AF378),0)","v":0},{"$f":"IF(Setup!$AH$7<>\"\",INDIRECT(\"'\" & Setup!$AH$7 & \"'!\" & AF378),0) + IF(Setup!$AH$8<>\"\",INDIRECT(\"'\" & Setup!$AH$8 & \"'!\" & AF378),0) + IF(Setup!$AH$9<>\"\",INDIRECT(\"'\" & Setup!$AH$9 & \"'!\" & AF378),0) + IF(Setup!$AH$10<>\"\",INDIRECT(\"'\" & Setup!$AH$10 & \"'!\" & AF378),0) + IF(Setup!$AH$11<>\"\",INDIRECT(\"'\" & Setup!$AH$11 & \"'!\" & AF378),0) + IF(Setup!$AH$12<>\"\",INDIRECT(\"'\" & Setup!$AH$12 & \"'!\" & AF378),0)","v":0},{"$f":"IF(Setup!$AI$7<>\"\",INDIRECT(\"'\" & Setup!$AI$7 & \"'!\" & AF378),0) + IF(Setup!$AI$8<>\"\",INDIRECT(\"'\" & Setup!$AI$8 & \"'!\" & AF378),0) + IF(Setup!$AI$9<>\"\",INDIRECT(\"'\" & Setup!$AI$9 & \"'!\" & AF378),0) + IF(Setup!$AI$10<>\"\",INDIRECT(\"'\" & Setup!$AI$10 & \"'!\" & AF378),0) + IF(Setup!$AI$11<>\"\",INDIRECT(\"'\" & Setup!$AI$11 & \"'!\" & AF378),0) + IF(Setup!$AI$12<>\"\",INDIRECT(\"'\" & Setup!$AI$12 & \"'!\" & AF378),0)","v":0},{"$f":"IF(Setup!$AJ$7<>\"\",INDIRECT(\"'\" & Setup!$AJ$7 & \"'!\" & AF378),0) + IF(Setup!$AJ$8<>\"\",INDIRECT(\"'\" & Setup!$AJ$8 & \"'!\" & AF378),0) + IF(Setup!$AJ$9<>\"\",INDIRECT(\"'\" & Setup!$AJ$9 & \"'!\" & AF378),0) + IF(Setup!$AJ$10<>\"\",INDIRECT(\"'\" & Setup!$AJ$10 & \"'!\" & AF378),0) + IF(Setup!$AJ$11<>\"\",INDIRECT(\"'\" & Setup!$AJ$11 & \"'!\" & AF378),0) + IF(Setup!$AJ$12<>\"\",INDIRECT(\"'\" & Setup!$AJ$12 & \"'!\" & AF378),0)","v":0},null,"",{"$nulls":30},0,{"$f":"IF(Setup!$AH$7=\"\",0,INDIRECT(\"'\" & Setup!$AH$7 & \"'!\" & AF378))","v":0},{"$f":"IF(Setup!$AI$7=\"\",0,INDIRECT(\"'\" & Setup!$AI$7 & \"'!\" & AF378))","v":0},{"$f":"IF(Setup!$AJ$7=\"\",0,INDIRECT(\"'\" & Setup!$AJ$7 & \"'!\" & AF378))","v":0}]
[{"$f":"Planning!A151","v":"I143"},{"$f":"Planning!B151","v":0},{"$f":"Planning!C151","v":0},{"$f":"Planning!D151","v":0},{"$f":"Planning!E151","v":0},{"$f":"Planning!G151","v":0},0,{"v":0,"d":"0.00"},{"v":0,"d":"0.00"},"","",{"$f":"IF(Setup!$AG$7<>\"\",INDIRECT(\"'\" & Setup!$AG$7 & \"'!\" & AD379),0) + IF(Setup!$AG$8<>\"\",INDIRECT(\"'\" & Setup!$AG$8 & \"'!\" & AD379),0) + IF(Setup!$AG$9<>\"\",INDIRECT(\"'\" & Setup!$AG$9 & \"'!\" & AD379),0) + IF(Setup!$AG$10<>\"\",INDIRECT(\"'\" & Setup!$AG$10 & \"'!\" & AD379),0) + IF(Setup!$AG$11<>\"\",INDIRECT(\"'\" & Setup!$AG$11 & \"'!\" & AD379),0) + IF(Setup!$AG$12<>\"\",INDIRECT(\"'\" & Setup!$AG$12 & \"'!\" & AD379),0)","v":{"v":0,"d":"0.00"}},{"$f":"IF(Setup!$AG$7<>\"\",INDIRECT(\"'\" & Setup!$AG$7 & \"'!\" & AE379),0) + IF(Setup!$AG$8<>\"\",INDIRECT(\"'\" & Setup!$AG$8 & \"'!\" & AE379),0) + IF(Setup!$AG$9<>\"\",INDIRECT(\"'\" & Setup!$AG$9 & \"'!\" & AE379),0) + IF(Setup!$AG$10<>\"\",INDIRECT(\"'\" & Setup!$AG$10 & \"'!\" & AE379),0) + IF(Setup!$AG$11<>\"\",INDIRECT(\"'\" & Setup!$AG$11 & \"'!\" & AE379),0) + IF(Setup!$AG$12<>\"\",INDIRECT(\"'\" & Setup!$AG$12 & \"'!\" & AE379),0)","v":{"v":0,"d":"0.00"}},"","",{"$f":"IF(Setup!$AH$7<>\"\",INDIRECT(\"'\" & Setup!$AH$7 & \"'!\" & AD379),0) + IF(Setup!$AH$8<>\"\",INDIRECT(\"'\" & Setup!$AH$8 & \"'!\" & AD379),0) + IF(Setup!$AH$9<>\"\",INDIRECT(\"'\" & Setup!$AH$9 & \"'!\" & AD379),0) + IF(Setup!$AH$10<>\"\",INDIRECT(\"'\" & Setup!$AH$10 & \"'!\" & AD379),0) + IF(Setup!$AH$11<>\"\",INDIRECT(\"'\" & Setup!$AH$11 & \"'!\" & AD379),0) + IF(Setup!$AH$12<>\"\",INDIRECT(\"'\" & Setup!$AH$12 & \"'!\" & AD379),0)","v":{"v":0,"d":"0.00"}},{"$f":"IF(Setup!$AH$7<>\"\",INDIRECT(\"'\" & Setup!$AH$7 & \"'!\" & AE379),0) + IF(Setup!$AH$8<>\"\",INDIRECT(\"'\" & Setup!$AH$8 & \"'!\" & AE379),0) + IF(Setup!$AH$9<>\"\",INDIRECT(\"'\" & Setup!$AH$9 & \"'!\" & AE379),0) + IF(Setup!$AH$10<>\"\",INDIRECT(\"'\" & Setup!$AH$10 & \"'!\" & AE379),0) + IF(Setup!$AH$11<>\"\",INDIRECT(\"'\" & Setup!$AH$11 & \"'!\" & AE379),0) + IF(Setup!$AH$12<>\"\",INDIRECT(\"'\" & Setup!$AH$12 & \"'!\" & AE379),0)","v":{"v":0,"d":"0.00"}},"","",{"$f":"IF(Setup!$AI$7<>\"\",INDIRECT(\"'\" & Setup!$AI$7 & \"'!\" & AD379),0) + IF(Setup!$AI$8<>\"\",INDIRECT(\"'\" & Setup!$AI$8 & \"'!\" & AD379),0) + IF(Setup!$AI$9<>\"\",INDIRECT(\"'\" & Setup!$AI$9 & \"'!\" & AD379),0) + IF(Setup!$AI$10<>\"\",INDIRECT(\"'\" & Setup!$AI$10 & \"'!\" & AD379),0) + IF(Setup!$AI$11<>\"\",INDIRECT(\"'\" & Setup!$AI$11 & \"'!\" & AD379),0) + IF(Setup!$AI$12<>\"\",INDIRECT(\"'\" & Setup!$AI$12 & \"'!\" & AD379),0)","v":{"v":0,"d":"0.00"}},{"$f":"IF(Setup!$AI$7<>\"\",INDIRECT(\"'\" & Setup!$AI$7 & \"'!\" & AE379),0) + IF(Setup!$AI$8<>\"\",INDIRECT(\"'\" & Setup!$AI$8 & \"'!\" & AE379),0) + IF(Setup!$AI$9<>\"\",INDIRECT(\"'\" & Setup!$AI$9 & \"'!\" & AE379),0) + IF(Setup!$AI$10<>\"\",INDIRECT(\"'\" & Setup!$AI$10 & \"'!\" & AE379),0) + IF(Setup!$AI$11<>\"\",INDIRECT(\"'\" & Setup!$AI$11 & \"'!\" & AE379),0) + IF(Setup!$AI$12<>\"\",INDIRECT(\"'\" & Setup!$AI$12 & \"'!\" & AE379),0)","v":{"v":0,"d":"0.00"}},"","",{"$f":"IF(Setup!$AJ$7<>\"\",INDIRECT(\"'\" & Setup!$AJ$7 & \"'!\" & AD379),0) + IF(Setup!$AJ$8<>\"\",INDIRECT(\"'\" & Setup!$AJ$8 & \"'!\" & AD379),0) + IF(Setup!$AJ$9<>\"\",INDIRECT(\"'\" & Setup!$AJ$9 & \"'!\" & AD379),0) + IF(Setup!$AJ$10<>\"\",INDIRECT(\"'\" & Setup!$AJ$10 & \"'!\" & AD379),0) + IF(Setup!$AJ$11<>\"\",INDIRECT(\"'\" & Setup!$AJ$11 & \"'!\" & AD379),0) + IF(Setup!$AJ$12<>\"\",INDIRECT(\"'\" & Setup!$AJ$12 & \"'!\" & AD379),0)","v":0},{"$f":"IF(Setup!$AJ$7<>\"\",INDIRECT(\"'\" & Setup!$AJ$7 & \"'!\" & AE379),0) + IF(Setup!$AJ$8<>\"\",INDIRECT(\"'\" & Setup!$AJ$8 & \"'!\" & AE379),0) + IF(Setup!$AJ$9<>\"\",INDIRECT(\"'\" & Setup!$AJ$9 & \"'!\" & AE379),0) + IF(Setup!$AJ$10<>\"\",INDIRECT(\"'\" & Setup!$AJ$10 & \"'!\" & AE379),0) + IF(Setup!$AJ$11<>\"\",INDIRECT(\"'\" & Setup!$AJ$11 & \"'!\" & AE379),0) + IF(Setup!$AJ$12<>\"\",INDIRECT(\"'\" & Setup!$AJ$12 & \"'!\" & AE379),0)","v":0},"","",{"$f":"Planning!H151","v":0},"00","M167","O167","N167",null,null,{"$f":"IF(Setup!$AG$7<>\"\",INDIRECT(\"'\" & Setup!$AG$7 & \"'!\" & AF379),0) + IF(Setup!$AG$8<>\"\",INDIRECT(\"'\" & Setup!$AG$8 & \"'!\" & AF379),0) + IF(Setup!$AG$9<>\"\",INDIRECT(\"'\" & Setup!$AG$9 & \"'!\" & AF379),0) + IF(Setup!$AG$10<>\"\",INDIRECT(\"'\" & Setup!$AG$10 & \"'!\" & AF379),0) + IF(Setup!$AG$11<>\"\",INDIRECT(\"'\" & Setup!$AG$11 & \"'!\" & AF379),0) + IF(Setup!$AG$12<>\"\",INDIRECT(\"'\" & Setup!$AG$12 & \"'!\" & AF379),0)","v":0},{"$f":"IF(Setup!$AH$7<>\"\",INDIRECT(\"'\" & Setup!$AH$7 & \"'!\" & AF379),0) + IF(Setup!$AH$8<>\"\",INDIRECT(\"'\" & Setup!$AH$8 & \"'!\" & AF379),0) + IF(Setup!$AH$9<>\"\",INDIRECT(\"'\" & Setup!$AH$9 & \"'!\" & AF379),0) + IF(Setup!$AH$10<>\"\",INDIRECT(\"'\" & Setup!$AH$10 & \"'!\" & AF379),0) + IF(Setup!$AH$11<>\"\",INDIRECT(\"'\" & Setup!$AH$11 & \"'!\" & AF379),0) + IF(Setup!$AH$12<>\"\",INDIRECT(\"'\" & Setup!$AH$12 & \"'!\" & AF379),0)","v":0},{"$f":"IF(Setup!$AI$7<>\"\",INDIRECT(\"'\" & Setup!$AI$7 & \"'!\" & AF379),0) + IF(Setup!$AI$8<>\"\",INDIRECT(\"'\" & Setup!$AI$8 & \"'!\" & AF379),0) + IF(Setup!$AI$9<>\"\",INDIRECT(\"'\" & Setup!$AI$9 & \"'!\" & AF379),0) + IF(Setup!$AI$10<>\"\",INDIRECT(\"'\" & Setup!$AI$10 & \"'!\" & AF379),0) + IF(Setup!$AI$11<>\"\",INDIRECT(\"'\" & Setup!$AI$11 & \"'!\" & AF379),0) + IF(Setup!$AI$12<>\"\",INDIRECT(\"'\" & Setup!$AI$12 & \"'!\" & AF379),0)","v":0},{"$f":"IF(Setup!$AJ$7<>\"\",INDIRECT(\"'\" & Setup!$AJ$7 & \"'!\" & AF379),0) + IF(Setup!$AJ$8<>\"\",INDIRECT(\"'\" & Setup!$AJ$8 & \"'!\" & AF379),0) + IF(Setup!$AJ$9<>\"\",INDIRECT(\"'\" & Setup!$AJ$9 & \"'!\" & AF379),0) + IF(Setup!$AJ$10<>\"\",INDIRECT(\"'\" & Setup!$AJ$10 & \"'!\" & AF379),0) + IF(Setup!$AJ$11<>\"\",INDIRECT(\"'\" & Setup!$AJ$11 & \"'!\" & AF379),0) + IF(Setup!$AJ$12<>\"\",INDIRECT(\"'\" & Setup!$AJ$12 & \"'!\" & AF379),0)","v":0},null,"",{"$nulls":30},0,{"$f":"IF(Setup!$AH$7=\"\",0,INDIRECT(\"'\" & Setup!$AH$7 & \"'!\" & AF379))","v":0},{"$f":"IF(Setup!$AI$7=\"\",0,INDIRECT(\"'\" & Setup!$AI$7 & \"'!\" & AF379))","v":0},{"$f":"IF(Setup!$AJ$7=\"\",0,INDIRECT(\"'\" & Setup!$AJ$7 & \"'!\" & AF379))","v":0}]
[{"$f":"Planning!A152","v":"I144"},{"$f":"Planning!B152","v":0},{"$f":"Planning!C152","v":0},{"$f":"Planning!D152","v":0},{"$f":"Planning!E152","v":0},{"$f":"Planning!G152","v":0},0,{"v":0,"d":"0.00"},{"v":0,"d":"0.00"},"","",{"$f":"IF(Setup!$AG$7<>\"\",INDIRECT(\"'\" & Setup!$AG$7 & \"'!\" & AD380),0) + IF(Setup!$AG$8<>\"\",INDIRECT(\"'\" & Setup!$AG$8 & \"'!\" & AD380),0) + IF(Setup!$AG$9<>\"\",INDIRECT(\"'\" & Setup!$AG$9 & \"'!\" & AD380),0) + IF(Setup!$AG$10<>\"\",INDIRECT(\"'\" & Setup!$AG$10 & \"'!\" & AD380),0) + IF(Setup!$AG$11<>\"\",INDIRECT(\"'\" & Setup!$AG$11 & \"'!\" & AD380),0) + IF(Setup!$AG$12<>\"\",INDIRECT(\"'\" & Setup!$AG$12 & \"'!\" & AD380),0)","v":{"v":0,"d":"0.00"}},{"$f":"IF(Setup!$AG$7<>\"\",INDIRECT(\"'\" & Setup!$AG$7 & \"'!\" & AE380),0) + IF(Setup!$AG$8<>\"\",INDIRECT(\"'\" & Setup!$AG$8 & \"'!\" & AE380),0) + IF(Setup!$AG$9<>\"\",INDIRECT(\"'\" & Setup!$AG$9 & \"'!\" & AE380),0) + IF(Setup!$AG$10<>\"\",INDIRECT(\"'\" & Setup!$AG$10 & \"'!\" & AE380),0) + IF(Setup!$AG$11<>\"\",INDIRECT(\"'\" & Setup!$AG$11 & \"'!\" & AE380),0) + IF(Setup!$AG$12<>\"\",INDIRECT(\"'\" & Setup!$AG$12 & \"'!\" & AE380),0)","v":{"v":0,"d":"0.00"}},"","",{"$f":"IF(Setup!$AH$7<>\"\",INDIRECT(\"'\" & Setup!$AH$7 & \"'!\" & AD380),0) + IF(Setup!$AH$8<>\"\",INDIRECT(\"'\" & Setup!$AH$8 & \"'!\" & AD380),0) + IF(Setup!$AH$9<>\"\",INDIRECT(\"'\" & Setup!$AH$9 & \"'!\" & AD380),0) + IF(Setup!$AH$10<>\"\",INDIRECT(\"'\" & Setup!$AH$10 & \"'!\" & AD380),0) + IF(Setup!$AH$11<>\"\",INDIRECT(\"'\" & Setup!$AH$11 & \"'!\" & AD380),0) + IF(Setup!$AH$12<>\"\",INDIRECT(\"'\" & Setup!$AH$12 & \"'!\" & AD380),0)","v":{"v":0,"d":"0.00"}},{"$f":"IF(Setup!$AH$7<>\"\",INDIRECT(\"'\" & Setup!$AH$7 & \"'!\" & AE380),0) + IF(Setup!$AH$8<>\"\",INDIRECT(\"'\" & Setup!$AH$8 & \"'!\" & AE380),0) + IF(Setup!$AH$9<>\"\",INDIRECT(\"'\" & Setup!$AH$9 & \"'!\" & AE380),0) + IF(Setup!$AH$10<>\"\",INDIRECT(\"'\" & Setup!$AH$10 & \"'!\" & AE380),0) + IF(Setup!$AH$11<>\"\",INDIRECT(\"'\" & Setup!$AH$11 & \"'!\" & AE380),0) + IF(Setup!$AH$12<>\"\",INDIRECT(\"'\" & Setup!$AH$12 & \"'!\" & AE380),0)","v":{"v":0,"d":"0.00"}},"","",{"$f":"IF(Setup!$AI$7<>\"\",INDIRECT(\"'\" & Setup!$AI$7 & \"'!\" & AD380),0) + IF(Setup!$AI$8<>\"\",INDIRECT(\"'\" & Setup!$AI$8 & \"'!\" & AD380),0) + IF(Setup!$AI$9<>\"\",INDIRECT(\"'\" & Setup!$AI$9 & \"'!\" & AD380),0) + IF(Setup!$AI$10<>\"\",INDIRECT(\"'\" & Setup!$AI$10 & \"'!\" & AD380),0) + IF(Setup!$AI$11<>\"\",INDIRECT(\"'\" & Setup!$AI$11 & \"'!\" & AD380),0) + IF(Setup!$AI$12<>\"\",INDIRECT(\"'\" & Setup!$AI$12 & \"'!\" & AD380),0)","v":{"v":0,"d":"0.00"}},{"$f":"IF(Setup!$AI$7<>\"\",INDIRECT(\"'\" & Setup!$AI$7 & \"'!\" & AE380),0) + IF(Setup!$AI$8<>\"\",INDIRECT(\"'\" & Setup!$AI$8 & \"'!\" & AE380),0) + IF(Setup!$AI$9<>\"\",INDIRECT(\"'\" & Setup!$AI$9 & \"'!\" & AE380),0) + IF(Setup!$AI$10<>\"\",INDIRECT(\"'\" & Setup!$AI$10 & \"'!\" & AE380),0) + IF(Setup!$AI$11<>\"\",INDIRECT(\"'\" & Setup!$AI$11 & \"'!\" & AE380),0) + IF(Setup!$AI$12<>\"\",INDIRECT(\"'\" & Setup!$AI$12 & \"'!\" & AE380),0)","v":{"v":0,"d":"0.00"}},"","",{"$f":"IF(Setup!$AJ$7<>\"\",INDIRECT(\"'\" & Setup!$AJ$7 & \"'!\" & AD380),0) + IF(Setup!$AJ$8<>\"\",INDIRECT(\"'\" & Setup!$AJ$8 & \"'!\" & AD380),0) + IF(Setup!$AJ$9<>\"\",INDIRECT(\"'\" & Setup!$AJ$9 & \"'!\" & AD380),0) + IF(Setup!$AJ$10<>\"\",INDIRECT(\"'\" & Setup!$AJ$10 & \"'!\" & AD380),0) + IF(Setup!$AJ$11<>\"\",INDIRECT(\"'\" & Setup!$AJ$11 & \"'!\" & AD380),0) + IF(Setup!$AJ$12<>\"\",INDIRECT(\"'\" & Setup!$AJ$12 & \"'!\" & AD380),0)","v":0},{"$f":"IF(Setup!$AJ$7<>\"\",INDIRECT(\"'\" & Setup!$AJ$7 & \"'!\" & AE380),0) + IF(Setup!$AJ$8<>\"\",INDIRECT(\"'\" & Setup!$AJ$8 & \"'!\" & AE380),0) + IF(Setup!$AJ$9<>\"\",INDIRECT(\"'\" & Setup!$AJ$9 & \"'!\" & AE380),0) + IF(Setup!$AJ$10<>\"\",INDIRECT(\"'\" & Setup!$AJ$10 & \"'!\" & AE380),0) + IF(Setup!$AJ$11<>\"\",INDIRECT(\"'\" & Setup!$AJ$11 & \"'!\" & AE380),0) + IF(Setup!$AJ$12<>\"\",INDIRECT(\"'\" & Setup!$AJ$12 & \"'!\" & AE380),0)","v":0},"","",{"$f":"Planning!H152","v":0},"00","M168","O168","N168",null,null,{"$f":"IF(Setup!$AG$7<>\"\",INDIRECT(\"'\" & Setup!$AG$7 & \"'!\" & AF380),0) + IF(Setup!$AG$8<>\"\",INDIRECT(\"'\" & Setup!$AG$8 & \"'!\" & AF380),0) + IF(Setup!$AG$9<>\"\",INDIRECT(\"'\" & Setup!$AG$9 & \"'!\" & AF380),0) + IF(Setup!$AG$10<>\"\",INDIRECT(\"'\" & Setup!$AG$10 & \"'!\" & AF380),0) + IF(Setup!$AG$11<>\"\",INDIRECT(\"'\" & Setup!$AG$11 & \"'!\" & AF380),0) + IF(Setup!$AG$12<>\"\",INDIRECT(\"'\" & Setup!$AG$12 & \"'!\" & AF380),0)","v":0},{"$f":"IF(Setup!$AH$7<>\"\",INDIRECT(\"'\" & Setup!$AH$7 & \"'!\" & AF380),0) + IF(Setup!$AH$8<>\"\",INDIRECT(\"'\" & Setup!$AH$8 & \"'!\" & AF380),0) + IF(Setup!$AH$9<>\"\",INDIRECT(\"'\" & Setup!$AH$9 & \"'!\" & AF380),0) + IF(Setup!$AH$10<>\"\",INDIRECT(\"'\" & Setup!$AH$10 & \"'!\" & AF380),0) + IF(Setup!$AH$11<>\"\",INDIRECT(\"'\" & Setup!$AH$11 & \"'!\" & AF380),0) + IF(Setup!$AH$12<>\"\",INDIRECT(\"'\" & Setup!$AH$12 & \"'!\" & AF380),0)","v":0},{"$f":"IF(Setup!$AI$7<>\"\",INDIRECT(\"'\" & Setup!$AI$7 & \"'!\" & AF380),0) + IF(Setup!$AI$8<>\"\",INDIRECT(\"'\" & Setup!$AI$8 & \"'!\" & AF380),0) + IF(Setup!$AI$9<>\"\",INDIRECT(\"'\" & Setup!$AI$9 & \"'!\" & AF380),0) + IF(Setup!$AI$10<>\"\",INDIRECT(\"'\" & Setup!$AI$10 & \"'!\" & AF380),0) + IF(Setup!$AI$11<>\"\",INDIRECT(\"'\" & Setup!$AI$11 & \"'!\" & AF380),0) + IF(Setup!$AI$12<>\"\",INDIRECT(\"'\" & Setup!$AI$12 & \"'!\" & AF380),0)","v":0},{"$f":"IF(Setup!$AJ$7<>\"\",INDIRECT(\"'\" & Setup!$AJ$7 & \"'!\" & AF380),0) + IF(Setup!$AJ$8<>\"\",INDIRECT(\"'\" & Setup!$AJ$8 & \"'!\" & AF380),0) + IF(Setup!$AJ$9<>\"\",INDIRECT(\"'\" & Setup!$AJ$9 & \"'!\" & AF380),0) + IF(Setup!$AJ$10<>\"\",INDIRECT(\"'\" & Setup!$AJ$10 & \"'!\" & AF380),0) + IF(Setup!$AJ$11<>\"\",INDIRECT(\"'\" & Setup!$AJ$11 & \"'!\" & AF380),0) + IF(Setup!$AJ$12<>\"\",INDIRECT(\"'\" & Setup!$AJ$12 & \"'!\" & AF380),0)","v":0},null,"",{"$nulls":30},0,{"$f":"IF(Setup!$AH$7=\"\",0,INDIRECT(\"'\" & Setup!$AH$7 & \"'!\" & AF380))","v":0},{"$f":"IF(Setup!$AI$7=\"\",0,INDIRECT(\"'\" & Setup!$AI$7 & \"'!\" & AF380))","v":0},{"$f":"IF(Setup!$AJ$7=\"\",0,INDIRECT(\"'\" & Setup!$AJ$7 & \"'!\" & AF380))","v":0}]
[{"$f":"Planning!A153","v":"I145"},{"$f":"Planning!B153","v":0},{"$f":"Planning!C153","v":0},{"$f":"Planning!D153","v":0},{"$f":"Planning!E153","v":0},{"$f":"Planning!G153","v":0},0,{"v":0,"d":"0.00"},{"v":0,"d":"0.00"},"","",{"$f":"IF(Setup!$AG$7<>\"\",INDIRECT(\"'\" & Setup!$AG$7 & \"'!\" & AD381),0) + IF(Setup!$AG$8<>\"\",INDIRECT(\"'\" & Setup!$AG$8 & \"'!\" & AD381),0) + IF(Setup!$AG$9<>\"\",INDIRECT(\"'\" & Setup!$AG$9 & \"'!\" & AD381),0) + IF(Setup!$AG$10<>\"\",INDIRECT(\"'\" & Setup!$AG$10 & \"'!\" & AD381),0) + IF(Setup!$AG$11<>\"\",INDIRECT(\"'\" & Setup!$AG$11 & \"'!\" & AD381),0) + IF(Setup!$AG$12<>\"\",INDIRECT(\"'\" & Setup!$AG$12 & \"'!\" & AD381),0)","v":{"v":0,"d":"0.00"}},{"$f":"IF(Setup!$AG$7<>\"\",INDIRECT(\"'\" & Setup!$AG$7 & \"'!\" & AE381),0) + IF(Setup!$AG$8<>\"\",INDIRECT(\"'\" & Setup!$AG$8 & \"'!\" & AE381),0) + IF(Setup!$AG$9<>\"\",INDIRECT(\"'\" & Setup!$AG$9 & \"'!\" & AE381),0) + IF(Setup!$AG$10<>\"\",INDIRECT(\"'\" & Setup!$AG$10 & \"'!\" & AE381),0) + IF(Setup!$AG$11<>\"\",INDIRECT(\"'\" & Setup!$AG$11 & \"'!\" & AE381),0) + IF(Setup!$AG$12<>\"\",INDIRECT(\"'\" & Setup!$AG$12 & \"'!\" & AE381),0)","v":{"v":0,"d":"0.00"}},"","",{"$f":"IF(Setup!$AH$7<>\"\",INDIRECT(\"'\" & Setup!$AH$7 & \"'!\" & AD381),0) + IF(Setup!$AH$8<>\"\",INDIRECT(\"'\" & Setup!$AH$8 & \"'!\" & AD381),0) + IF(Setup!$AH$9<>\"\",INDIRECT(\"'\" & Setup!$AH$9 & \"'!\" & AD381),0) + IF(Setup!$AH$10<>\"\",INDIRECT(\"'\" & Setup!$AH$10 & \"'!\" & AD381),0) + IF(Setup!$AH$11<>\"\",INDIRECT(\"'\" & Setup!$AH$11 & \"'!\" & AD381),0) + IF(Setup!$AH$12<>\"\",INDIRECT(\"'\" & Setup!$AH$12 & \"'!\" & AD381),0)","v":{"v":0,"d":"0.00"}},{"$f":"IF(Setup!$AH$7<>\"\",INDIRECT(\"'\" & Setup!$AH$7 & \"'!\" & AE381),0) + IF(Setup!$AH$8<>\"\",INDIRECT(\"'\" & Setup!$AH$8 & \"'!\" & AE381),0) + IF(Setup!$AH$9<>\"\",INDIRECT(\"'\" & Setup!$AH$9 & \"'!\" & AE381),0) + IF(Setup!$AH$10<>\"\",INDIRECT(\"'\" & Setup!$AH$10 & \"'!\" & AE381),0) + IF(Setup!$AH$11<>\"\",INDIRECT(\"'\" & Setup!$AH$11 & \"'!\" & AE381),0) + IF(Setup!$AH$12<>\"\",INDIRECT(\"'\" & Setup!$AH$12 & \"'!\" & AE381),0)","v":{"v":0,"d":"0.00"}},"","",{"$f":"IF(Setup!$AI$7<>\"\",INDIRECT(\"'\" & Setup!$AI$7 & \"'!\" & AD381),0) + IF(Setup!$AI$8<>\"\",INDIRECT(\"'\" & Setup!$AI$8 & \"'!\" & AD381),0) + IF(Setup!$AI$9<>\"\",INDIRECT(\"'\" & Setup!$AI$9 & \"'!\" & AD381),0) + IF(Setup!$AI$10<>\"\",INDIRECT(\"'\" & Setup!$AI$10 & \"'!\" & AD381),0) + IF(Setup!$AI$11<>\"\",INDIRECT(\"'\" & Setup!$AI$11 & \"'!\" & AD381),0) + IF(Setup!$AI$12<>\"\",INDIRECT(\"'\" & Setup!$AI$12 & \"'!\" & AD381),0)","v":{"v":0,"d":"0.00"}},{"$f":"IF(Setup!$AI$7<>\"\",INDIRECT(\"'\" & Setup!$AI$7 & \"'!\" & AE381),0) + IF(Setup!$AI$8<>\"\",INDIRECT(\"'\" & Setup!$AI$8 & \"'!\" & AE381),0) + IF(Setup!$AI$9<>\"\",INDIRECT(\"'\" & Setup!$AI$9 & \"'!\" & AE381),0) + IF(Setup!$AI$10<>\"\",INDIRECT(\"'\" & Setup!$AI$10 & \"'!\" & AE381),0) + IF(Setup!$AI$11<>\"\",INDIRECT(\"'\" & Setup!$AI$11 & \"'!\" & AE381),0) + IF(Setup!$AI$12<>\"\",INDIRECT(\"'\" & Setup!$AI$12 & \"'!\" & AE381),0)","v":{"v":0,"d":"0.00"}},"","",{"$f":"IF(Setup!$AJ$7<>\"\",INDIRECT(\"'\" & Setup!$AJ$7 & \"'!\" & AD381),0) + IF(Setup!$AJ$8<>\"\",INDIRECT(\"'\" & Setup!$AJ$8 & \"'!\" & AD381),0) + IF(Setup!$AJ$9<>\"\",INDIRECT(\"'\" & Setup!$AJ$9 & \"'!\" & AD381),0) + IF(Setup!$AJ$10<>\"\",INDIRECT(\"'\" & Setup!$AJ$10 & \"'!\" & AD381),0) + IF(Setup!$AJ$11<>\"\",INDIRECT(\"'\" & Setup!$AJ$11 & \"'!\" & AD381),0) + IF(Setup!$AJ$12<>\"\",INDIRECT(\"'\" & Setup!$AJ$12 & \"'!\" & AD381),0)","v":0},{"$f":"IF(Setup!$AJ$7<>\"\",INDIRECT(\"'\" & Setup!$AJ$7 & \"'!\" & AE381),0) + IF(Setup!$AJ$8<>\"\",INDIRECT(\"'\" & Setup!$AJ$8 & \"'!\" & AE381),0) + IF(Setup!$AJ$9<>\"\",INDIRECT(\"'\" & Setup!$AJ$9 & \"'!\" & AE381),0) + IF(Setup!$AJ$10<>\"\",INDIRECT(\"'\" & Setup!$AJ$10 & \"'!\" & AE381),0) + IF(Setup!$AJ$11<>\"\",INDIRECT(\"'\" & Setup!$AJ$11 & \"'!\" & AE381),0) + IF(Setup!$AJ$12<>\"\",INDIRECT(\"'\" & Setup!$AJ$12 & \"'!\" & AE381),0)","v":0},"","",{"$f":"Planning!H153","v":0},"00","M169","O169","N169",null,null,{"$f":"IF(Setup!$AG$7<>\"\",INDIRECT(\"'\" & Setup!$AG$7 & \"'!\" & AF381),0) + IF(Setup!$AG$8<>\"\",INDIRECT(\"'\" & Setup!$AG$8 & \"'!\" & AF381),0) + IF(Setup!$AG$9<>\"\",INDIRECT(\"'\" & Setup!$AG$9 & \"'!\" & AF381),0) + IF(Setup!$AG$10<>\"\",INDIRECT(\"'\" & Setup!$AG$10 & \"'!\" & AF381),0) + IF(Setup!$AG$11<>\"\",INDIRECT(\"'\" & Setup!$AG$11 & \"'!\" & AF381),0) + IF(Setup!$AG$12<>\"\",INDIRECT(\"'\" & Setup!$AG$12 & \"'!\" & AF381),0)","v":0},{"$f":"IF(Setup!$AH$7<>\"\",INDIRECT(\"'\" & Setup!$AH$7 & \"'!\" & AF381),0) + IF(Setup!$AH$8<>\"\",INDIRECT(\"'\" & Setup!$AH$8 & \"'!\" & AF381),0) + IF(Setup!$AH$9<>\"\",INDIRECT(\"'\" & Setup!$AH$9 & \"'!\" & AF381),0) + IF(Setup!$AH$10<>\"\",INDIRECT(\"'\" & Setup!$AH$10 & \"'!\" & AF381),0) + IF(Setup!$AH$11<>\"\",INDIRECT(\"'\" & Setup!$AH$11 & \"'!\" & AF381),0) + IF(Setup!$AH$12<>\"\",INDIRECT(\"'\" & Setup!$AH$12 & \"'!\" & AF381),0)","v":0},{"$f":"IF(Setup!$AI$7<>\"\",INDIRECT(\"'\" & Setup!$AI$7 & \"'!\" & AF381),0) + IF(Setup!$AI$8<>\"\",INDIRECT(\"'\" & Setup!$AI$8 & \"'!\" & AF381),0) + IF(Setup!$AI$9<>\"\",INDIRECT(\"'\" & Setup!$AI$9 & \"'!\" & AF381),0) + IF(Setup!$AI$10<>\"\",INDIRECT(\"'\" & Setup!$AI$10 & \"'!\" & AF381),0) + IF(Setup!$AI$11<>\"\",INDIRECT(\"'\" & Setup!$AI$11 & \"'!\" & AF381),0) + IF(Setup!$AI$12<>\"\",INDIRECT(\"'\" & Setup!$AI$12 & \"'!\" & AF381),0)","v":0},{"$f":"IF(Setup!$AJ$7<>\"\",INDIRECT(\"'\" & Setup!$AJ$7 & \"'!\" & AF381),0) + IF(Setup!$AJ$8<>\"\",INDIRECT(\"'\" & Setup!$AJ$8 & \"'!\" & AF381),0) + IF(Setup!$AJ$9<>\"\",INDIRECT(\"'\" & Setup!$AJ$9 & \"'!\" & AF381),0) + IF(Setup!$AJ$10<>\"\",INDIRECT(\"'\" & Setup!$AJ$10 & \"'!\" & AF381),0) + IF(Setup!$AJ$11<>\"\",INDIRECT(\"'\" & Setup!$AJ$11 & \"'!\" & AF381),0) + IF(Setup!$AJ$12<>\"\",INDIRECT(\"'\" & Setup!$AJ$12 & \"'!\" & AF381),0)","v":0},null,"",{"$nulls":30},0,{"$f":"IF(Setup!$AH$7=\"\",0,INDIRECT(\"'\" & Setup!$AH$7 & \"'!\" & AF381))","v":0},{"$f":"IF(Setup!$AI$7=\"\",0,INDIRECT(\"'\" & Setup!$AI$7 & \"'!\" & AF381))","v":0},{"$f":"IF(Setup!$AJ$7=\"\",0,INDIRECT(\"'\" & Setup!$AJ$7 & \"'!\" & AF381))","v":0}]
[{"$f":"Planning!A154","v":"I146"},{"$f":"Planning!B154","v":0},{"$f":"Planning!C154","v":0},{"$f":"Planning!D154","v":0},{"$f":"Planning!E154","v":0},{"$f":"Planning!G154","v":0},0,{"v":0,"d":"0.00"},{"v":0,"d":"0.00"},"","",{"$f":"IF(Setup!$AG$7<>\"\",INDIRECT(\"'\" & Setup!$AG$7 & \"'!\" & AD382),0) + IF(Setup!$AG$8<>\"\",INDIRECT(\"'\" & Setup!$AG$8 & \"'!\" & AD382),0) + IF(Setup!$AG$9<>\"\",INDIRECT(\"'\" & Setup!$AG$9 & \"'!\" & AD382),0) + IF(Setup!$AG$10<>\"\",INDIRECT(\"'\" & Setup!$AG$10 & \"'!\" & AD382),0) + IF(Setup!$AG$11<>\"\",INDIRECT(\"'\" & Setup!$AG$11 & \"'!\" & AD382),0) + IF(Setup!$AG$12<>\"\",INDIRECT(\"'\" & Setup!$AG$12 & \"'!\" & AD382),0)","v":{"v":0,"d":"0.00"}},{"$f":"IF(Setup!$AG$7<>\"\",INDIRECT(\"'\" & Setup!$AG$7 & \"'!\" & AE382),0) + IF(Setup!$AG$8<>\"\",INDIRECT(\"'\" & Setup!$AG$8 & \"'!\" & AE382),0) + IF(Setup!$AG$9<>\"\",INDIRECT(\"'\" & Setup!$AG$9 & \"'!\" & AE382),0) + IF(Setup!$AG$10<>\"\",INDIRECT(\"'\" & Setup!$AG$10 & \"'!\" & AE382),0) + IF(Setup!$AG$11<>\"\",INDIRECT(\"'\" & Setup!$AG$11 & \"'!\" & AE382),0) + IF(Setup!$AG$12<>\"\",INDIRECT(\"'\" & Setup!$AG$12 & \"'!\" & AE382),0)","v":{"v":0,"d":"0.00"}},"","",{"$f":"IF(Setup!$AH$7<>\"\",INDIRECT(\"'\" & Setup!$AH$7 & \"'!\" & AD382),0) + IF(Setup!$AH$8<>\"\",INDIRECT(\"'\" & Setup!$AH$8 & \"'!\" & AD382),0) + IF(Setup!$AH$9<>\"\",INDIRECT(\"'\" & Setup!$AH$9 & \"'!\" & AD382),0) + IF(Setup!$AH$10<>\"\",INDIRECT(\"'\" & Setup!$AH$10 & \"'!\" & AD382),0) + IF(Setup!$AH$11<>\"\",INDIRECT(\"'\" & Setup!$AH$11 & \"'!\" & AD382),0) + IF(Setup!$AH$12<>\"\",INDIRECT(\"'\" & Setup!$AH$12 & \"'!\" & AD382),0)","v":{"v":0,"d":"0.00"}},{"$f":"IF(Setup!$AH$7<>\"\",INDIRECT(\"'\" & Setup!$AH$7 & \"'!\" & AE382),0) + IF(Setup!$AH$8<>\"\",INDIRECT(\"'\" & Setup!$AH$8 & \"'!\" & AE382),0) + IF(Setup!$AH$9<>\"\",INDIRECT(\"'\" & Setup!$AH$9 & \"'!\" & AE382),0) + IF(Setup!$AH$10<>\"\",INDIRECT(\"'\" & Setup!$AH$10 & \"'!\" & AE382),0) + IF(Setup!$AH$11<>\"\",INDIRECT(\"'\" & Setup!$AH$11 & \"'!\" & AE382),0) + IF(Setup!$AH$12<>\"\",INDIRECT(\"'\" & Setup!$AH$12 & \"'!\" & AE382),0)","v":{"v":0,"d":"0.00"}},"","",{"$f":"IF(Setup!$AI$7<>\"\",INDIRECT(\"'\" & Setup!$AI$7 & \"'!\" & AD382),0) + IF(Setup!$AI$8<>\"\",INDIRECT(\"'\" & Setup!$AI$8 & \"'!\" & AD382),0) + IF(Setup!$AI$9<>\"\",INDIRECT(\"'\" & Setup!$AI$9 & \"'!\" & AD382),0) + IF(Setup!$AI$10<>\"\",INDIRECT(\"'\" & Setup!$AI$10 & \"'!\" & AD382),0) + IF(Setup!$AI$11<>\"\",INDIRECT(\"'\" & Setup!$AI$11 & \"'!\" & AD382),0) + IF(Setup!$AI$12<>\"\",INDIRECT(\"'\" & Setup!$AI$12 & \"'!\" & AD382),0)","v":{"v":0,"d":"0.00"}},{"$f":"IF(Setup!$AI$7<>\"\",INDIRECT(\"'\" & Setup!$AI$7 & \"'!\" & AE382),0) + IF(Setup!$AI$8<>\"\",INDIRECT(\"'\" & Setup!$AI$8 & \"'!\" & AE382),0) + IF(Setup!$AI$9<>\"\",INDIRECT(\"'\" & Setup!$AI$9 & \"'!\" & AE382),0) + IF(Setup!$AI$10<>\"\",INDIRECT(\"'\" & Setup!$AI$10 & \"'!\" & AE382),0) + IF(Setup!$AI$11<>\"\",INDIRECT(\"'\" & Setup!$AI$11 & \"'!\" & AE382),0) + IF(Setup!$AI$12<>\"\",INDIRECT(\"'\" & Setup!$AI$12 & \"'!\" & AE382),0)","v":{"v":0,"d":"0.00"}},"","",{"$f":"IF(Setup!$AJ$7<>\"\",INDIRECT(\"'\" & Setup!$AJ$7 & \"'!\" & AD382),0) + IF(Setup!$AJ$8<>\"\",INDIRECT(\"'\" & Setup!$AJ$8 & \"'!\" & AD382),0) + IF(Setup!$AJ$9<>\"\",INDIRECT(\"'\" & Setup!$AJ$9 & \"'!\" & AD382),0) + IF(Setup!$AJ$10<>\"\",INDIRECT(\"'\" & Setup!$AJ$10 & \"'!\" & AD382),0) + IF(Setup!$AJ$11<>\"\",INDIRECT(\"'\" & Setup!$AJ$11 & \"'!\" & AD382),0) + IF(Setup!$AJ$12<>\"\",INDIRECT(\"'\" & Setup!$AJ$12 & \"'!\" & AD382),0)","v":0},{"$f":"IF(Setup!$AJ$7<>\"\",INDIRECT(\"'\" & Setup!$AJ$7 & \"'!\" & AE382),0) + IF(Setup!$AJ$8<>\"\",INDIRECT(\"'\" & Setup!$AJ$8 & \"'!\" & AE382),0) + IF(Setup!$AJ$9<>\"\",INDIRECT(\"'\" & Setup!$AJ$9 & \"'!\" & AE382),0) + IF(Setup!$AJ$10<>\"\",INDIRECT(\"'\" & Setup!$AJ$10 & \"'!\" & AE382),0) + IF(Setup!$AJ$11<>\"\",INDIRECT(\"'\" & Setup!$AJ$11 & \"'!\" & AE382),0) + IF(Setup!$AJ$12<>\"\",INDIRECT(\"'\" & Setup!$AJ$12 & \"'!\" & AE382),0)","v":0},"","",{"$f":"Planning!H154","v":0},"00","M170","O170","N170",null,null,{"$f":"IF(Setup!$AG$7<>\"\",INDIRECT(\"'\" & Setup!$AG$7 & \"'!\" & AF382),0) + IF(Setup!$AG$8<>\"\",INDIRECT(\"'\" & Setup!$AG$8 & \"'!\" & AF382),0) + IF(Setup!$AG$9<>\"\",INDIRECT(\"'\" & Setup!$AG$9 & \"'!\" & AF382),0) + IF(Setup!$AG$10<>\"\",INDIRECT(\"'\" & Setup!$AG$10 & \"'!\" & AF382),0) + IF(Setup!$AG$11<>\"\",INDIRECT(\"'\" & Setup!$AG$11 & \"'!\" & AF382),0) + IF(Setup!$AG$12<>\"\",INDIRECT(\"'\" & Setup!$AG$12 & \"'!\" & AF382),0)","v":0},{"$f":"IF(Setup!$AH$7<>\"\",INDIRECT(\"'\" & Setup!$AH$7 & \"'!\" & AF382),0) + IF(Setup!$AH$8<>\"\",INDIRECT(\"'\" & Setup!$AH$8 & \"'!\" & AF382),0) + IF(Setup!$AH$9<>\"\",INDIRECT(\"'\" & Setup!$AH$9 & \"'!\" & AF382),0) + IF(Setup!$AH$10<>\"\",INDIRECT(\"'\" & Setup!$AH$10 & \"'!\" & AF382),0) + IF(Setup!$AH$11<>\"\",INDIRECT(\"'\" & Setup!$AH$11 & \"'!\" & AF382),0) + IF(Setup!$AH$12<>\"\",INDIRECT(\"'\" & Setup!$AH$12 & \"'!\" & AF382),0)","v":0},{"$f":"IF(Setup!$AI$7<>\"\",INDIRECT(\"'\" & Setup!$AI$7 & \"'!\" & AF382),0) + IF(Setup!$AI$8<>\"\",INDIRECT(\"'\" & Setup!$AI$8 & \"'!\" & AF382),0) + IF(Setup!$AI$9<>\"\",INDIRECT(\"'\" & Setup!$AI$9 & \"'!\" & AF382),0) + IF(Setup!$AI$10<>\"\",INDIRECT(\"'\" & Setup!$AI$10 & \"'!\" & AF382),0) + IF(Setup!$AI$11<>\"\",INDIRECT(\"'\" & Setup!$AI$11 & \"'!\" & AF382),0) + IF(Setup!$AI$12<>\"\",INDIRECT(\"'\" & Setup!$AI$12 & \"'!\" & AF382),0)","v":0},{"$f":"IF(Setup!$AJ$7<>\"\",INDIRECT(\"'\" & Setup!$AJ$7 & \"'!\" & AF382),0) + IF(Setup!$AJ$8<>\"\",INDIRECT(\"'\" & Setup!$AJ$8 & \"'!\" & AF382),0) + IF(Setup!$AJ$9<>\"\",INDIRECT(\"'\" & Setup!$AJ$9 & \"'!\" & AF382),0) + IF(Setup!$AJ$10<>\"\",INDIRECT(\"'\" & Setup!$AJ$10 & \"'!\" & AF382),0) + IF(Setup!$AJ$11<>\"\",INDIRECT(\"'\" & Setup!$AJ$11 & \"'!\" & AF382),0) + IF(Setup!$AJ$12<>\"\",INDIRECT(\"'\" & Setup!$AJ$12 & \"'!\" & AF382),0)","v":0},null,"",{"$nulls":30},0,{"$f":"IF(Setup!$AH$7=\"\",0,INDIRECT(\"'\" & Setup!$AH$7 & \"'!\" & AF382))","v":0},{"$f":"IF(Setup!$AI$7=\"\",0,INDIRECT(\"'\" & Setup!$AI$7 & \"'!\" & AF382))","v":0},{"$f":"IF(Setup!$AJ$7=\"\",0,INDIRECT(\"'\" & Setup!$AJ$7 & \"'!\" & AF382))","v":0}]
[{"$f":"Planning!A155","v":"I147"},{"$f":"Planning!B155","v":0},{"$f":"Planning!C155","v":0},{"$f":"Planning!D155","v":0},{"$f":"Planning!E155","v":0},{"$f":"Planning!G155","v":0},0,{"v":0,"d":"0.00"},{"v":0,"d":"0.00"},"","",{"$f":"IF(Setup!$AG$7<>\"\",INDIRECT(\"'\" & Setup!$AG$7 & \"'!\" & AD383),0) + IF(Setup!$AG$8<>\"\",INDIRECT(\"'\" & Setup!$AG$8 & \"'!\" & AD383),0) + IF(Setup!$AG$9<>\"\",INDIRECT(\"'\" & Setup!$AG$9 & \"'!\" & AD383),0) + IF(Setup!$AG$10<>\"\",INDIRECT(\"'\" & Setup!$AG$10 & \"'!\" & AD383),0) + IF(Setup!$AG$11<>\"\",INDIRECT(\"'\" & Setup!$AG$11 & \"'!\" & AD383),0) + IF(Setup!$AG$12<>\"\",INDIRECT(\"'\" & Setup!$AG$12 & \"'!\" & AD383),0)","v":{"v":0,"d":"0.00"}},{"$f":"IF(Setup!$AG$7<>\"\",INDIRECT(\"'\" & Setup!$AG$7 & \"'!\" & AE383),0) + IF(Setup!$AG$8<>\"\",INDIRECT(\"'\" & Setup!$AG$8 & \"'!\" & AE383),0) + IF(Setup!$AG$9<>\"\",INDIRECT(\"'\" & Setup!$AG$9 & \"'!\" & AE383),0) + IF(Setup!$AG$10<>\"\",INDIRECT(\"'\" & Setup!$AG$10 & \"'!\" & AE383),0) + IF(Setup!$AG$11<>\"\",INDIRECT(\"'\" & Setup!$AG$11 & \"'!\" & AE383),0) + IF(Setup!$AG$12<>\"\",INDIRECT(\"'\" & Setup!$AG$12 & \"'!\" & AE383),0)","v":{"v":0,"d":"0.00"}},"","",{"$f":"IF(Setup!$AH$7<>\"\",INDIRECT(\"'\" & Setup!$AH$7 & \"'!\" & AD383),0) + IF(Setup!$AH$8<>\"\",INDIRECT(\"'\" & Setup!$AH$8 & \"'!\" & AD383),0) + IF(Setup!$AH$9<>\"\",INDIRECT(\"'\" & Setup!$AH$9 & \"'!\" & AD383),0) + IF(Setup!$AH$10<>\"\",INDIRECT(\"'\" & Setup!$AH$10 & \"'!\" & AD383),0) + IF(Setup!$AH$11<>\"\",INDIRECT(\"'\" & Setup!$AH$11 & \"'!\" & AD383),0) + IF(Setup!$AH$12<>\"\",INDIRECT(\"'\" & Setup!$AH$12 & \"'!\" & AD383),0)","v":{"v":0,"d":"0.00"}},{"$f":"IF(Setup!$AH$7<>\"\",INDIRECT(\"'\" & Setup!$AH$7 & \"'!\" & AE383),0) + IF(Setup!$AH$8<>\"\",INDIRECT(\"'\" & Setup!$AH$8 & \"'!\" & AE383),0) + IF(Setup!$AH$9<>\"\",INDIRECT(\"'\" & Setup!$AH$9 & \"'!\" & AE383),0) + IF(Setup!$AH$10<>\"\",INDIRECT(\"'\" & Setup!$AH$10 & \"'!\" & AE383),0) + IF(Setup!$AH$11<>\"\",INDIRECT(\"'\" & Setup!$AH$11 & \"'!\" & AE383),0) + IF(Setup!$AH$12<>\"\",INDIRECT(\"'\" & Setup!$AH$12 & \"'!\" & AE383),0)","v":{"v":0,"d":"0.00"}},"","",{"$f":"IF(Setup!$AI$7<>\"\",INDIRECT(\"'\" & Setup!$AI$7 & \"'!\" & AD383),0) + IF(Setup!$AI$8<>\"\",INDIRECT(\"'\" & Setup!$AI$8 & \"'!\" & AD383),0) + IF(Setup!$AI$9<>\"\",INDIRECT(\"'\" & Setup!$AI$9 & \"'!\" & AD383),0) + IF(Setup!$AI$10<>\"\",INDIRECT(\"'\" & Setup!$AI$10 & \"'!\" & AD383),0) + IF(Setup!$AI$11<>\"\",INDIRECT(\"'\" & Setup!$AI$11 & \"'!\" & AD383),0) + IF(Setup!$AI$12<>\"\",INDIRECT(\"'\" & Setup!$AI$12 & \"'!\" & AD383),0)","v":{"v":0,"d":"0.00"}},{"$f":"IF(Setup!$AI$7<>\"\",INDIRECT(\"'\" & Setup!$AI$7 & \"'!\" & AE383),0) + IF(Setup!$AI$8<>\"\",INDIRECT(\"'\" & Setup!$AI$8 & \"'!\" & AE383),0) + IF(Setup!$AI$9<>\"\",INDIRECT(\"'\" & Setup!$AI$9 & \"'!\" & AE383),0) + IF(Setup!$AI$10<>\"\",INDIRECT(\"'\" & Setup!$AI$10 & \"'!\" & AE383),0) + IF(Setup!$AI$11<>\"\",INDIRECT(\"'\" & Setup!$AI$11 & \"'!\" & AE383),0) + IF(Setup!$AI$12<>\"\",INDIRECT(\"'\" & Setup!$AI$12 & \"'!\" & AE383),0)","v":{"v":0,"d":"0.00"}},"","",{"$f":"IF(Setup!$AJ$7<>\"\",INDIRECT(\"'\" & Setup!$AJ$7 & \"'!\" & AD383),0) + IF(Setup!$AJ$8<>\"\",INDIRECT(\"'\" & Setup!$AJ$8 & \"'!\" & AD383),0) + IF(Setup!$AJ$9<>\"\",INDIRECT(\"'\" & Setup!$AJ$9 & \"'!\" & AD383),0) + IF(Setup!$AJ$10<>\"\",INDIRECT(\"'\" & Setup!$AJ$10 & \"'!\" & AD383),0) + IF(Setup!$AJ$11<>\"\",INDIRECT(\"'\" & Setup!$AJ$11 & \"'!\" & AD383),0) + IF(Setup!$AJ$12<>\"\",INDIRECT(\"'\" & Setup!$AJ$12 & \"'!\" & AD383),0)","v":0},{"$f":"IF(Setup!$AJ$7<>\"\",INDIRECT(\"'\" & Setup!$AJ$7 & \"'!\" & AE383),0) + IF(Setup!$AJ$8<>\"\",INDIRECT(\"'\" & Setup!$AJ$8 & \"'!\" & AE383),0) + IF(Setup!$AJ$9<>\"\",INDIRECT(\"'\" & Setup!$AJ$9 & \"'!\" & AE383),0) + IF(Setup!$AJ$10<>\"\",INDIRECT(\"'\" & Setup!$AJ$10 & \"'!\" & AE383),0) + IF(Setup!$AJ$11<>\"\",INDIRECT(\"'\" & Setup!$AJ$11 & \"'!\" & AE383),0) + IF(Setup!$AJ$12<>\"\",INDIRECT(\"'\" & Setup!$AJ$12 & \"'!\" & AE383),0)","v":0},"","",{"$f":"Planning!H155","v":0},"00","M171","O171","N171",null,null,{"$f":"IF(Setup!$AG$7<>\"\",INDIRECT(\"'\" & Setup!$AG$7 & \"'!\" & AF383),0) + IF(Setup!$AG$8<>\"\",INDIRECT(\"'\" & Setup!$AG$8 & \"'!\" & AF383),0) + IF(Setup!$AG$9<>\"\",INDIRECT(\"'\" & Setup!$AG$9 & \"'!\" & AF383),0) + IF(Setup!$AG$10<>\"\",INDIRECT(\"'\" & Setup!$AG$10 & \"'!\" & AF383),0) + IF(Setup!$AG$11<>\"\",INDIRECT(\"'\" & Setup!$AG$11 & \"'!\" & AF383),0) + IF(Setup!$AG$12<>\"\",INDIRECT(\"'\" & Setup!$AG$12 & \"'!\" & AF383),0)","v":0},{"$f":"IF(Setup!$AH$7<>\"\",INDIRECT(\"'\" & Setup!$AH$7 & \"'!\" & AF383),0) + IF(Setup!$AH$8<>\"\",INDIRECT(\"'\" & Setup!$AH$8 & \"'!\" & AF383),0) + IF(Setup!$AH$9<>\"\",INDIRECT(\"'\" & Setup!$AH$9 & \"'!\" & AF383),0) + IF(Setup!$AH$10<>\"\",INDIRECT(\"'\" & Setup!$AH$10 & \"'!\" & AF383),0) + IF(Setup!$AH$11<>\"\",INDIRECT(\"'\" & Setup!$AH$11 & \"'!\" & AF383),0) + IF(Setup!$AH$12<>\"\",INDIRECT(\"'\" & Setup!$AH$12 & \"'!\" & AF383),0)","v":0},{"$f":"IF(Setup!$AI$7<>\"\",INDIRECT(\"'\" & Setup!$AI$7 & \"'!\" & AF383),0) + IF(Setup!$AI$8<>\"\",INDIRECT(\"'\" & Setup!$AI$8 & \"'!\" & AF383),0) + IF(Setup!$AI$9<>\"\",INDIRECT(\"'\" & Setup!$AI$9 & \"'!\" & AF383),0) + IF(Setup!$AI$10<>\"\",INDIRECT(\"'\" & Setup!$AI$10 & \"'!\" & AF383),0) + IF(Setup!$AI$11<>\"\",INDIRECT(\"'\" & Setup!$AI$11 & \"'!\" & AF383),0) + IF(Setup!$AI$12<>\"\",INDIRECT(\"'\" & Setup!$AI$12 & \"'!\" & AF383),0)","v":0},{"$f":"IF(Setup!$AJ$7<>\"\",INDIRECT(\"'\" & Setup!$AJ$7 & \"'!\" & AF383),0) + IF(Setup!$AJ$8<>\"\",INDIRECT(\"'\" & Setup!$AJ$8 & \"'!\" & AF383),0) + IF(Setup!$AJ$9<>\"\",INDIRECT(\"'\" & Setup!$AJ$9 & \"'!\" & AF383),0) + IF(Setup!$AJ$10<>\"\",INDIRECT(\"'\" & Setup!$AJ$10 & \"'!\" & AF383),0) + IF(Setup!$AJ$11<>\"\",INDIRECT(\"'\" & Setup!$AJ$11 & \"'!\" & AF383),0) + IF(Setup!$AJ$12<>\"\",INDIRECT(\"'\" & Setup!$AJ$12 & \"'!\" & AF383),0)","v":0},null,"",{"$nulls":30},0,{"$f":"IF(Setup!$AH$7=\"\",0,INDIRECT(\"'\" & Setup!$AH$7 & \"'!\" & AF383))","v":0},{"$f":"IF(Setup!$AI$7=\"\",0,INDIRECT(\"'\" & Setup!$AI$7 & \"'!\" & AF383))","v":0},{"$f":"IF(Setup!$AJ$7=\"\",0,INDIRECT(\"'\" & Setup!$AJ$7 & \"'!\" & AF383))","v":0}]
[{"$f":"Planning!A156","v":"I148"},{"$f":"Planning!B156","v":0},{"$f":"Planning!C156","v":0},{"$f":"Planning!D156","v":0},{"$f":"Planning!E156","v":0},{"$f":"Planning!G156","v":0},0,{"v":0,"d":"0.00"},{"v":0,"d":"0.00"},"","",{"$f":"IF(Setup!$AG$7<>\"\",INDIRECT(\"'\" & Setup!$AG$7 & \"'!\" & AD384),0) + IF(Setup!$AG$8<>\"\",INDIRECT(\"'\" & Setup!$AG$8 & \"'!\" & AD384),0) + IF(Setup!$AG$9<>\"\",INDIRECT(\"'\" & Setup!$AG$9 & \"'!\" & AD384),0) + IF(Setup!$AG$10<>\"\",INDIRECT(\"'\" & Setup!$AG$10 & \"'!\" & AD384),0) + IF(Setup!$AG$11<>\"\",INDIRECT(\"'\" & Setup!$AG$11 & \"'!\" & AD384),0) + IF(Setup!$AG$12<>\"\",INDIRECT(\"'\" & Setup!$AG$12 & \"'!\" & AD384),0)","v":{"v":0,"d":"0.00"}},{"$f":"IF(Setup!$AG$7<>\"\",INDIRECT(\"'\" & Setup!$AG$7 & \"'!\" & AE384),0) + IF(Setup!$AG$8<>\"\",INDIRECT(\"'\" & Setup!$AG$8 & \"'!\" & AE384),0) + IF(Setup!$AG$9<>\"\",INDIRECT(\"'\" & Setup!$AG$9 & \"'!\" & AE384),0) + IF(Setup!$AG$10<>\"\",INDIRECT(\"'\" & Setup!$AG$10 & \"'!\" & AE384),0) + IF(Setup!$AG$11<>\"\",INDIRECT(\"'\" & Setup!$AG$11 & \"'!\" & AE384),0) + IF(Setup!$AG$12<>\"\",INDIRECT(\"'\" & Setup!$AG$12 & \"'!\" & AE384),0)","v":{"v":0,"d":"0.00"}},"","",{"$f":"IF(Setup!$AH$7<>\"\",INDIRECT(\"'\" & Setup!$AH$7 & \"'!\" & AD384),0) + IF(Setup!$AH$8<>\"\",INDIRECT(\"'\" & Setup!$AH$8 & \"'!\" & AD384),0) + IF(Setup!$AH$9<>\"\",INDIRECT(\"'\" & Setup!$AH$9 & \"'!\" & AD384),0) + IF(Setup!$AH$10<>\"\",INDIRECT(\"'\" & Setup!$AH$10 & \"'!\" & AD384),0) + IF(Setup!$AH$11<>\"\",INDIRECT(\"'\" & Setup!$AH$11 & \"'!\" & AD384),0) + IF(Setup!$AH$12<>\"\",INDIRECT(\"'\" & Setup!$AH$12 & \"'!\" & AD384),0)","v":{"v":0,"d":"0.00"}},{"$f":"IF(Setup!$AH$7<>\"\",INDIRECT(\"'\" & Setup!$AH$7 & \"'!\" & AE384),0) + IF(Setup!$AH$8<>\"\",INDIRECT(\"'\" & Setup!$AH$8 & \"'!\" & AE384),0) + IF(Setup!$AH$9<>\"\",INDIRECT(\"'\" & Setup!$AH$9 & \"'!\" & AE384),0) + IF(Setup!$AH$10<>\"\",INDIRECT(\"'\" & Setup!$AH$10 & \"'!\" & AE384),0) + IF(Setup!$AH$11<>\"\",INDIRECT(\"'\" & Setup!$AH$11 & \"'!\" & AE384),0) + IF(Setup!$AH$12<>\"\",INDIRECT(\"'\" & Setup!$AH$12 & \"'!\" & AE384),0)","v":{"v":0,"d":"0.00"}},"","",{"$f":"IF(Setup!$AI$7<>\"\",INDIRECT(\"'\" & Setup!$AI$7 & \"'!\" & AD384),0) + IF(Setup!$AI$8<>\"\",INDIRECT(\"'\" & Setup!$AI$8 & \"'!\" & AD384),0) + IF(Setup!$AI$9<>\"\",INDIRECT(\"'\" & Setup!$AI$9 & \"'!\" & AD384),0) + IF(Setup!$AI$10<>\"\",INDIRECT(\"'\" & Setup!$AI$10 & \"'!\" & AD384),0) + IF(Setup!$AI$11<>\"\",INDIRECT(\"'\" & Setup!$AI$11 & \"'!\" & AD384),0) + IF(Setup!$AI$12<>\"\",INDIRECT(\"'\" & Setup!$AI$12 & \"'!\" & AD384),0)","v":{"v":0,"d":"0.00"}},{"$f":"IF(Setup!$AI$7<>\"\",INDIRECT(\"'\" & Setup!$AI$7 & \"'!\" & AE384),0) + IF(Setup!$AI$8<>\"\",INDIRECT(\"'\" & Setup!$AI$8 & \"'!\" & AE384),0) + IF(Setup!$AI$9<>\"\",INDIRECT(\"'\" & Setup!$AI$9 & \"'!\" & AE384),0) + IF(Setup!$AI$10<>\"\",INDIRECT(\"'\" & Setup!$AI$10 & \"'!\" & AE384),0) + IF(Setup!$AI$11<>\"\",INDIRECT(\"'\" & Setup!$AI$11 & \"'!\" & AE384),0) + IF(Setup!$AI$12<>\"\",INDIRECT(\"'\" & Setup!$AI$12 & \"'!\" & AE384),0)","v":{"v":0,"d":"0.00"}},"","",{"$f":"IF(Setup!$AJ$7<>\"\",INDIRECT(\"'\" & Setup!$AJ$7 & \"'!\" & AD384),0) + IF(Setup!$AJ$8<>\"\",INDIRECT(\"'\" & Setup!$AJ$8 & \"'!\" & AD384),0) + IF(Setup!$AJ$9<>\"\",INDIRECT(\"'\" & Setup!$AJ$9 & \"'!\" & AD384),0) + IF(Setup!$AJ$10<>\"\",INDIRECT(\"'\" & Setup!$AJ$10 & \"'!\" & AD384),0) + IF(Setup!$AJ$11<>\"\",INDIRECT(\"'\" & Setup!$AJ$11 & \"'!\" & AD384),0) + IF(Setup!$AJ$12<>\"\",INDIRECT(\"'\" & Setup!$AJ$12 & \"'!\" & AD384),0)","v":0},{"$f":"IF(Setup!$AJ$7<>\"\",INDIRECT(\"'\" & Setup!$AJ$7 & \"'!\" & AE384),0) + IF(Setup!$AJ$8<>\"\",INDIRECT(\"'\" & Setup!$AJ$8 & \"'!\" & AE384),0) + IF(Setup!$AJ$9<>\"\",INDIRECT(\"'\" & Setup!$AJ$9 & \"'!\" & AE384),0) + IF(Setup!$AJ$10<>\"\",INDIRECT(\"'\" & Setup!$AJ$10 & \"'!\" & AE384),0) + IF(Setup!$AJ$11<>\"\",INDIRECT(\"'\" & Setup!$AJ$11 & \"'!\" & AE384),0) + IF(Setup!$AJ$12<>\"\",INDIRECT(\"'\" & Setup!$AJ$12 & \"'!\" & AE384),0)","v":0},"","",{"$f":"Planning!H156","v":0},"00","M172","O172","N172",null,null,{"$f":"IF(Setup!$AG$7<>\"\",INDIRECT(\"'\" & Setup!$AG$7 & \"'!\" & AF384),0) + IF(Setup!$AG$8<>\"\",INDIRECT(\"'\" & Setup!$AG$8 & \"'!\" & AF384),0) + IF(Setup!$AG$9<>\"\",INDIRECT(\"'\" & Setup!$AG$9 & \"'!\" & AF384),0) + IF(Setup!$AG$10<>\"\",INDIRECT(\"'\" & Setup!$AG$10 & \"'!\" & AF384),0) + IF(Setup!$AG$11<>\"\",INDIRECT(\"'\" & Setup!$AG$11 & \"'!\" & AF384),0) + IF(Setup!$AG$12<>\"\",INDIRECT(\"'\" & Setup!$AG$12 & \"'!\" & AF384),0)","v":0},{"$f":"IF(Setup!$AH$7<>\"\",INDIRECT(\"'\" & Setup!$AH$7 & \"'!\" & AF384),0) + IF(Setup!$AH$8<>\"\",INDIRECT(\"'\" & Setup!$AH$8 & \"'!\" & AF384),0) + IF(Setup!$AH$9<>\"\",INDIRECT(\"'\" & Setup!$AH$9 & \"'!\" & AF384),0) + IF(Setup!$AH$10<>\"\",INDIRECT(\"'\" & Setup!$AH$10 & \"'!\" & AF384),0) + IF(Setup!$AH$11<>\"\",INDIRECT(\"'\" & Setup!$AH$11 & \"'!\" & AF384),0) + IF(Setup!$AH$12<>\"\",INDIRECT(\"'\" & Setup!$AH$12 & \"'!\" & AF384),0)","v":0},{"$f":"IF(Setup!$AI$7<>\"\",INDIRECT(\"'\" & Setup!$AI$7 & \"'!\" & AF384),0) + IF(Setup!$AI$8<>\"\",INDIRECT(\"'\" & Setup!$AI$8 & \"'!\" & AF384),0) + IF(Setup!$AI$9<>\"\",INDIRECT(\"'\" & Setup!$AI$9 & \"'!\" & AF384),0) + IF(Setup!$AI$10<>\"\",INDIRECT(\"'\" & Setup!$AI$10 & \"'!\" & AF384),0) + IF(Setup!$AI$11<>\"\",INDIRECT(\"'\" & Setup!$AI$11 & \"'!\" & AF384),0) + IF(Setup!$AI$12<>\"\",INDIRECT(\"'\" & Setup!$AI$12 & \"'!\" & AF384),0)","v":0},{"$f":"IF(Setup!$AJ$7<>\"\",INDIRECT(\"'\" & Setup!$AJ$7 & \"'!\" & AF384),0) + IF(Setup!$AJ$8<>\"\",INDIRECT(\"'\" & Setup!$AJ$8 & \"'!\" & AF384),0) + IF(Setup!$AJ$9<>\"\",INDIRECT(\"'\" & Setup!$AJ$9 & \"'!\" & AF384),0) + IF(Setup!$AJ$10<>\"\",INDIRECT(\"'\" & Setup!$AJ$10 & \"'!\" & AF384),0) + IF(Setup!$AJ$11<>\"\",INDIRECT(\"'\" & Setup!$AJ$11 & \"'!\" & AF384),0) + IF(Setup!$AJ$12<>\"\",INDIRECT(\"'\" & Setup!$AJ$12 & \"'!\" & AF384),0)","v":0},null,"",{"$nulls":30},0,{"$f":"IF(Setup!$AH$7=\"\",0,INDIRECT(\"'\" & Setup!$AH$7 & \"'!\" & AF384))","v":0},{"$f":"IF(Setup!$AI$7=\"\",0,INDIRECT(\"'\" & Setup!$AI$7 & \"'!\" & AF384))","v":0},{"$f":"IF(Setup!$AJ$7=\"\",0,INDIRECT(\"'\" & Setup!$AJ$7 & \"'!\" & AF384))","v":0}]
[{"$f":"Planning!A157","v":"I149"},{"$f":"Planning!B157","v":0},{"$f":"Planning!C157","v":0},{"$f":"Planning!D157","v":0},{"$f":"Planning!E157","v":0},{"$f":"Planning!G157","v":0},0,{"v":0,"d":"0.00"},{"v":0,"d":"0.00"},"","",{"$f":"IF(Setup!$AG$7<>\"\",INDIRECT(\"'\" & Setup!$AG$7 & \"'!\" & AD385),0) + IF(Setup!$AG$8<>\"\",INDIRECT(\"'\" & Setup!$AG$8 & \"'!\" & AD385),0) + IF(Setup!$AG$9<>\"\",INDIRECT(\"'\" & Setup!$AG$9 & \"'!\" & AD385),0) + IF(Setup!$AG$10<>\"\",INDIRECT(\"'\" & Setup!$AG$10 & \"'!\" & AD385),0) + IF(Setup!$AG$11<>\"\",INDIRECT(\"'\" & Setup!$AG$11 & \"'!\" & AD385),0) + IF(Setup!$AG$12<>\"\",INDIRECT(\"'\" & Setup!$AG$12 & \"'!\" & AD385),0)","v":{"v":0,"d":"0.00"}},{"$f":"IF(Setup!$AG$7<>\"\",INDIRECT(\"'\" & Setup!$AG$7 & \"'!\" & AE385),0) + IF(Setup!$AG$8<>\"\",INDIRECT(\"'\" & Setup!$AG$8 & \"'!\" & AE385),0) + IF(Setup!$AG$9<>\"\",INDIRECT(\"'\" & Setup!$AG$9 & \"'!\" & AE385),0) + IF(Setup!$AG$10<>\"\",INDIRECT(\"'\" & Setup!$AG$10 & \"'!\" & AE385),0) + IF(Setup!$AG$11<>\"\",INDIRECT(\"'\" & Setup!$AG$11 & \"'!\" & AE385),0) + IF(Setup!$AG$12<>\"\",INDIRECT(\"'\" & Setup!$AG$12 & \"'!\" & AE385),0)","v":{"v":0,"d":"0.00"}},"","",{"$f":"IF(Setup!$AH$7<>\"\",INDIRECT(\"'\" & Setup!$AH$7 & \"'!\" & AD385),0) + IF(Setup!$AH$8<>\"\",INDIRECT(\"'\" & Setup!$AH$8 & \"'!\" & AD385),0) + IF(Setup!$AH$9<>\"\",INDIRECT(\"'\" & Setup!$AH$9 & \"'!\" & AD385),0) + IF(Setup!$AH$10<>\"\",INDIRECT(\"'\" & Setup!$AH$10 & \"'!\" & AD385),0) + IF(Setup!$AH$11<>\"\",INDIRECT(\"'\" & Setup!$AH$11 & \"'!\" & AD385),0) + IF(Setup!$AH$12<>\"\",INDIRECT(\"'\" & Setup!$AH$12 & \"'!\" & AD385),0)","v":{"v":0,"d":"0.00"}},{"$f":"IF(Setup!$AH$7<>\"\",INDIRECT(\"'\" & Setup!$AH$7 & \"'!\" & AE385),0) + IF(Setup!$AH$8<>\"\",INDIRECT(\"'\" & Setup!$AH$8 & \"'!\" & AE385),0) + IF(Setup!$AH$9<>\"\",INDIRECT(\"'\" & Setup!$AH$9 & \"'!\" & AE385),0) + IF(Setup!$AH$10<>\"\",INDIRECT(\"'\" & Setup!$AH$10 & \"'!\" & AE385),0) + IF(Setup!$AH$11<>\"\",INDIRECT(\"'\" & Setup!$AH$11 & \"'!\" & AE385),0) + IF(Setup!$AH$12<>\"\",INDIRECT(\"'\" & Setup!$AH$12 & \"'!\" & AE385),0)","v":{"v":0,"d":"0.00"}},"","",{"$f":"IF(Setup!$AI$7<>\"\",INDIRECT(\"'\" & Setup!$AI$7 & \"'!\" & AD385),0) + IF(Setup!$AI$8<>\"\",INDIRECT(\"'\" & Setup!$AI$8 & \"'!\" & AD385),0) + IF(Setup!$AI$9<>\"\",INDIRECT(\"'\" & Setup!$AI$9 & \"'!\" & AD385),0) + IF(Setup!$AI$10<>\"\",INDIRECT(\"'\" & Setup!$AI$10 & \"'!\" & AD385),0) + IF(Setup!$AI$11<>\"\",INDIRECT(\"'\" & Setup!$AI$11 & \"'!\" & AD385),0) + IF(Setup!$AI$12<>\"\",INDIRECT(\"'\" & Setup!$AI$12 & \"'!\" & AD385),0)","v":{"v":0,"d":"0.00"}},{"$f":"IF(Setup!$AI$7<>\"\",INDIRECT(\"'\" & Setup!$AI$7 & \"'!\" & AE385),0) + IF(Setup!$AI$8<>\"\",INDIRECT(\"'\" & Setup!$AI$8 & \"'!\" & AE385),0) + IF(Setup!$AI$9<>\"\",INDIRECT(\"'\" & Setup!$AI$9 & \"'!\" & AE385),0) + IF(Setup!$AI$10<>\"\",INDIRECT(\"'\" & Setup!$AI$10 & \"'!\" & AE385),0) + IF(Setup!$AI$11<>\"\",INDIRECT(\"'\" & Setup!$AI$11 & \"'!\" & AE385),0) + IF(Setup!$AI$12<>\"\",INDIRECT(\"'\" & Setup!$AI$12 & \"'!\" & AE385),0)","v":{"v":0,"d":"0.00"}},"","",{"$f":"IF(Setup!$AJ$7<>\"\",INDIRECT(\"'\" & Setup!$AJ$7 & \"'!\" & AD385),0) + IF(Setup!$AJ$8<>\"\",INDIRECT(\"'\" & Setup!$AJ$8 & \"'!\" & AD385),0) + IF(Setup!$AJ$9<>\"\",INDIRECT(\"'\" & Setup!$AJ$9 & \"'!\" & AD385),0) + IF(Setup!$AJ$10<>\"\",INDIRECT(\"'\" & Setup!$AJ$10 & \"'!\" & AD385),0) + IF(Setup!$AJ$11<>\"\",INDIRECT(\"'\" & Setup!$AJ$11 & \"'!\" & AD385),0) + IF(Setup!$AJ$12<>\"\",INDIRECT(\"'\" & Setup!$AJ$12 & \"'!\" & AD385),0)","v":0},{"$f":"IF(Setup!$AJ$7<>\"\",INDIRECT(\"'\" & Setup!$AJ$7 & \"'!\" & AE385),0) + IF(Setup!$AJ$8<>\"\",INDIRECT(\"'\" & Setup!$AJ$8 & \"'!\" & AE385),0) + IF(Setup!$AJ$9<>\"\",INDIRECT(\"'\" & Setup!$AJ$9 & \"'!\" & AE385),0) + IF(Setup!$AJ$10<>\"\",INDIRECT(\"'\" & Setup!$AJ$10 & \"'!\" & AE385),0) + IF(Setup!$AJ$11<>\"\",INDIRECT(\"'\" & Setup!$AJ$11 & \"'!\" & AE385),0) + IF(Setup!$AJ$12<>\"\",INDIRECT(\"'\" & Setup!$AJ$12 & \"'!\" & AE385),0)","v":0},"","",{"$f":"Planning!H157","v":0},"00","M173","O173","N173",null,null,{"$f":"IF(Setup!$AG$7<>\"\",INDIRECT(\"'\" & Setup!$AG$7 & \"'!\" & AF385),0) + IF(Setup!$AG$8<>\"\",INDIRECT(\"'\" & Setup!$AG$8 & \"'!\" & AF385),0) + IF(Setup!$AG$9<>\"\",INDIRECT(\"'\" & Setup!$AG$9 & \"'!\" & AF385),0) + IF(Setup!$AG$10<>\"\",INDIRECT(\"'\" & Setup!$AG$10 & \"'!\" & AF385),0) + IF(Setup!$AG$11<>\"\",INDIRECT(\"'\" & Setup!$AG$11 & \"'!\" & AF385),0) + IF(Setup!$AG$12<>\"\",INDIRECT(\"'\" & Setup!$AG$12 & \"'!\" & AF385),0)","v":0},{"$f":"IF(Setup!$AH$7<>\"\",INDIRECT(\"'\" & Setup!$AH$7 & \"'!\" & AF385),0) + IF(Setup!$AH$8<>\"\",INDIRECT(\"'\" & Setup!$AH$8 & \"'!\" & AF385),0) + IF(Setup!$AH$9<>\"\",INDIRECT(\"'\" & Setup!$AH$9 & \"'!\" & AF385),0) + IF(Setup!$AH$10<>\"\",INDIRECT(\"'\" & Setup!$AH$10 & \"'!\" & AF385),0) + IF(Setup!$AH$11<>\"\",INDIRECT(\"'\" & Setup!$AH$11 & \"'!\" & AF385),0) + IF(Setup!$AH$12<>\"\",INDIRECT(\"'\" & Setup!$AH$12 & \"'!\" & AF385),0)","v":0},{"$f":"IF(Setup!$AI$7<>\"\",INDIRECT(\"'\" & Setup!$AI$7 & \"'!\" & AF385),0) + IF(Setup!$AI$8<>\"\",INDIRECT(\"'\" & Setup!$AI$8 & \"'!\" & AF385),0) + IF(Setup!$AI$9<>\"\",INDIRECT(\"'\" & Setup!$AI$9 & \"'!\" & AF385),0) + IF(Setup!$AI$10<>\"\",INDIRECT(\"'\" & Setup!$AI$10 & \"'!\" & AF385),0) + IF(Setup!$AI$11<>\"\",INDIRECT(\"'\" & Setup!$AI$11 & \"'!\" & AF385),0) + IF(Setup!$AI$12<>\"\",INDIRECT(\"'\" & Setup!$AI$12 & \"'!\" & AF385),0)","v":0},{"$f":"IF(Setup!$AJ$7<>\"\",INDIRECT(\"'\" & Setup!$AJ$7 & \"'!\" & AF385),0) + IF(Setup!$AJ$8<>\"\",INDIRECT(\"'\" & Setup!$AJ$8 & \"'!\" & AF385),0) + IF(Setup!$AJ$9<>\"\",INDIRECT(\"'\" & Setup!$AJ$9 & \"'!\" & AF385),0) + IF(Setup!$AJ$10<>\"\",INDIRECT(\"'\" & Setup!$AJ$10 & \"'!\" & AF385),0) + IF(Setup!$AJ$11<>\"\",INDIRECT(\"'\" & Setup!$AJ$11 & \"'!\" & AF385),0) + IF(Setup!$AJ$12<>\"\",INDIRECT(\"'\" & Setup!$AJ$12 & \"'!\" & AF385),0)","v":0},null,"",{"$nulls":30},0,{"$f":"IF(Setup!$AH$7=\"\",0,INDIRECT(\"'\" & Setup!$AH$7 & \"'!\" & AF385))","v":0},{"$f":"IF(Setup!$AI$7=\"\",0,INDIRECT(\"'\" & Setup!$AI$7 & \"'!\" & AF385))","v":0},{"$f":"IF(Setup!$AJ$7=\"\",0,INDIRECT(\"'\" & Setup!$AJ$7 & \"'!\" & AF385))","v":0}]
[{"$f":"Planning!A158","v":"I150"},{"$f":"Planning!B158","v":0},{"$f":"Planning!C158","v":0},{"$f":"Planning!D158","v":0},{"$f":"Planning!E158","v":0},{"$f":"Planning!G158","v":0},0,{"v":0,"d":"0.00"},{"v":0,"d":"0.00"},"","",{"$f":"IF(Setup!$AG$7<>\"\",INDIRECT(\"'\" & Setup!$AG$7 & \"'!\" & AD386),0) + IF(Setup!$AG$8<>\"\",INDIRECT(\"'\" & Setup!$AG$8 & \"'!\" & AD386),0) + IF(Setup!$AG$9<>\"\",INDIRECT(\"'\" & Setup!$AG$9 & \"'!\" & AD386),0) + IF(Setup!$AG$10<>\"\",INDIRECT(\"'\" & Setup!$AG$10 & \"'!\" & AD386),0) + IF(Setup!$AG$11<>\"\",INDIRECT(\"'\" & Setup!$AG$11 & \"'!\" & AD386),0) + IF(Setup!$AG$12<>\"\",INDIRECT(\"'\" & Setup!$AG$12 & \"'!\" & AD386),0)","v":{"v":0,"d":"0.00"}},{"$f":"IF(Setup!$AG$7<>\"\",INDIRECT(\"'\" & Setup!$AG$7 & \"'!\" & AE386),0) + IF(Setup!$AG$8<>\"\",INDIRECT(\"'\" & Setup!$AG$8 & \"'!\" & AE386),0) + IF(Setup!$AG$9<>\"\",INDIRECT(\"'\" & Setup!$AG$9 & \"'!\" & AE386),0) + IF(Setup!$AG$10<>\"\",INDIRECT(\"'\" & Setup!$AG$10 & \"'!\" & AE386),0) + IF(Setup!$AG$11<>\"\",INDIRECT(\"'\" & Setup!$AG$11 & \"'!\" & AE386),0) + IF(Setup!$AG$12<>\"\",INDIRECT(\"'\" & Setup!$AG$12 & \"'!\" & AE386),0)","v":{"v":0,"d":"0.00"}},"","",{"$f":"IF(Setup!$AH$7<>\"\",INDIRECT(\"'\" & Setup!$AH$7 & \"'!\" & AD386),0) + IF(Setup!$AH$8<>\"\",INDIRECT(\"'\" & Setup!$AH$8 & \"'!\" & AD386),0) + IF(Setup!$AH$9<>\"\",INDIRECT(\"'\" & Setup!$AH$9 & \"'!\" & AD386),0) + IF(Setup!$AH$10<>\"\",INDIRECT(\"'\" & Setup!$AH$10 & \"'!\" & AD386),0) + IF(Setup!$AH$11<>\"\",INDIRECT(\"'\" & Setup!$AH$11 & \"'!\" & AD386),0) + IF(Setup!$AH$12<>\"\",INDIRECT(\"'\" & Setup!$AH$12 & \"'!\" & AD386),0)","v":{"v":0,"d":"0.00"}},{"$f":"IF(Setup!$AH$7<>\"\",INDIRECT(\"'\" & Setup!$AH$7 & \"'!\" & AE386),0) + IF(Setup!$AH$8<>\"\",INDIRECT(\"'\" & Setup!$AH$8 & \"'!\" & AE386),0) + IF(Setup!$AH$9<>\"\",INDIRECT(\"'\" & Setup!$AH$9 & \"'!\" & AE386),0) + IF(Setup!$AH$10<>\"\",INDIRECT(\"'\" & Setup!$AH$10 & \"'!\" & AE386),0) + IF(Setup!$AH$11<>\"\",INDIRECT(\"'\" & Setup!$AH$11 & \"'!\" & AE386),0) + IF(Setup!$AH$12<>\"\",INDIRECT(\"'\" & Setup!$AH$12 & \"'!\" & AE386),0)","v":{"v":0,"d":"0.00"}},"","",{"$f":"IF(Setup!$AI$7<>\"\",INDIRECT(\"'\" & Setup!$AI$7 & \"'!\" & AD386),0) + IF(Setup!$AI$8<>\"\",INDIRECT(\"'\" & Setup!$AI$8 & \"'!\" & AD386),0) + IF(Setup!$AI$9<>\"\",INDIRECT(\"'\" & Setup!$AI$9 & \"'!\" & AD386),0) + IF(Setup!$AI$10<>\"\",INDIRECT(\"'\" & Setup!$AI$10 & \"'!\" & AD386),0) + IF(Setup!$AI$11<>\"\",INDIRECT(\"'\" & Setup!$AI$11 & \"'!\" & AD386),0) + IF(Setup!$AI$12<>\"\",INDIRECT(\"'\" & Setup!$AI$12 & \"'!\" & AD386),0)","v":{"v":0,"d":"0.00"}},{"$f":"IF(Setup!$AI$7<>\"\",INDIRECT(\"'\" & Setup!$AI$7 & \"'!\" & AE386),0) + IF(Setup!$AI$8<>\"\",INDIRECT(\"'\" & Setup!$AI$8 & \"'!\" & AE386),0) + IF(Setup!$AI$9<>\"\",INDIRECT(\"'\" & Setup!$AI$9 & \"'!\" & AE386),0) + IF(Setup!$AI$10<>\"\",INDIRECT(\"'\" & Setup!$AI$10 & \"'!\" & AE386),0) + IF(Setup!$AI$11<>\"\",INDIRECT(\"'\" & Setup!$AI$11 & \"'!\" & AE386),0) + IF(Setup!$AI$12<>\"\",INDIRECT(\"'\" & Setup!$AI$12 & \"'!\" & AE386),0)","v":{"v":0,"d":"0.00"}},"","",{"$f":"IF(Setup!$AJ$7<>\"\",INDIRECT(\"'\" & Setup!$AJ$7 & \"'!\" & AD386),0) + IF(Setup!$AJ$8<>\"\",INDIRECT(\"'\" & Setup!$AJ$8 & \"'!\" & AD386),0) + IF(Setup!$AJ$9<>\"\",INDIRECT(\"'\" & Setup!$AJ$9 & \"'!\" & AD386),0) + IF(Setup!$AJ$10<>\"\",INDIRECT(\"'\" & Setup!$AJ$10 & \"'!\" & AD386),0) + IF(Setup!$AJ$11<>\"\",INDIRECT(\"'\" & Setup!$AJ$11 & \"'!\" & AD386),0) + IF(Setup!$AJ$12<>\"\",INDIRECT(\"'\" & Setup!$AJ$12 & \"'!\" & AD386),0)","v":0},{"$f":"IF(Setup!$AJ$7<>\"\",INDIRECT(\"'\" & Setup!$AJ$7 & \"'!\" & AE386),0) + IF(Setup!$AJ$8<>\"\",INDIRECT(\"'\" & Setup!$AJ$8 & \"'!\" & AE386),0) + IF(Setup!$AJ$9<>\"\",INDIRECT(\"'\" & Setup!$AJ$9 & \"'!\" & AE386),0) + IF(Setup!$AJ$10<>\"\",INDIRECT(\"'\" & Setup!$AJ$10 & \"'!\" & AE386),0) + IF(Setup!$AJ$11<>\"\",INDIRECT(\"'\" & Setup!$AJ$11 & \"'!\" & AE386),0) + IF(Setup!$AJ$12<>\"\",INDIRECT(\"'\" & Setup!$AJ$12 & \"'!\" & AE386),0)","v":0},"","",{"$f":"Planning!H158","v":0},"00","M174","O174","N174",null,null,{"$f":"IF(Setup!$AG$7<>\"\",INDIRECT(\"'\" & Setup!$AG$7 & \"'!\" & AF386),0) + IF(Setup!$AG$8<>\"\",INDIRECT(\"'\" & Setup!$AG$8 & \"'!\" & AF386),0) + IF(Setup!$AG$9<>\"\",INDIRECT(\"'\" & Setup!$AG$9 & \"'!\" & AF386),0) + IF(Setup!$AG$10<>\"\",INDIRECT(\"'\" & Setup!$AG$10 & \"'!\" & AF386),0) + IF(Setup!$AG$11<>\"\",INDIRECT(\"'\" & Setup!$AG$11 & \"'!\" & AF386),0) + IF(Setup!$AG$12<>\"\",INDIRECT(\"'\" & Setup!$AG$12 & \"'!\" & AF386),0)","v":0},{"$f":"IF(Setup!$AH$7<>\"\",INDIRECT(\"'\" & Setup!$AH$7 & \"'!\" & AF386),0) + IF(Setup!$AH$8<>\"\",INDIRECT(\"'\" & Setup!$AH$8 & \"'!\" & AF386),0) + IF(Setup!$AH$9<>\"\",INDIRECT(\"'\" & Setup!$AH$9 & \"'!\" & AF386),0) + IF(Setup!$AH$10<>\"\",INDIRECT(\"'\" & Setup!$AH$10 & \"'!\" & AF386),0) + IF(Setup!$AH$11<>\"\",INDIRECT(\"'\" & Setup!$AH$11 & \"'!\" & AF386),0) + IF(Setup!$AH$12<>\"\",INDIRECT(\"'\" & Setup!$AH$12 & \"'!\" & AF386),0)","v":0},{"$f":"IF(Setup!$AI$7<>\"\",INDIRECT(\"'\" & Setup!$AI$7 & \"'!\" & AF386),0) + IF(Setup!$AI$8<>\"\",INDIRECT(\"'\" & Setup!$AI$8 & \"'!\" & AF386),0) + IF(Setup!$AI$9<>\"\",INDIRECT(\"'\" & Setup!$AI$9 & \"'!\" & AF386),0) + IF(Setup!$AI$10<>\"\",INDIRECT(\"'\" & Setup!$AI$10 & \"'!\" & AF386),0) + IF(Setup!$AI$11<>\"\",INDIRECT(\"'\" & Setup!$AI$11 & \"'!\" & AF386),0) + IF(Setup!$AI$12<>\"\",INDIRECT(\"'\" & Setup!$AI$12 & \"'!\" & AF386),0)","v":0},{"$f":"IF(Setup!$AJ$7<>\"\",INDIRECT(\"'\" & Setup!$AJ$7 & \"'!\" & AF386),0) + IF(Setup!$AJ$8<>\"\",INDIRECT(\"'\" & Setup!$AJ$8 & \"'!\" & AF386),0) + IF(Setup!$AJ$9<>\"\",INDIRECT(\"'\" & Setup!$AJ$9 & \"'!\" & AF386),0) + IF(Setup!$AJ$10<>\"\",INDIRECT(\"'\" & Setup!$AJ$10 & \"'!\" & AF386),0) + IF(Setup!$AJ$11<>\"\",INDIRECT(\"'\" & Setup!$AJ$11 & \"'!\" & AF386),0) + IF(Setup!$AJ$12<>\"\",INDIRECT(\"'\" & Setup!$AJ$12 & \"'!\" & AF386),0)","v":0},null,"",{"$nulls":30},0,{"$f":"IF(Setup!$AH$7=\"\",0,INDIRECT(\"'\" & Setup!$AH$7 & \"'!\" & AF386))","v":0},{"$f":"IF(Setup!$AI$7=\"\",0,INDIRECT(\"'\" & Setup!$AI$7 & \"'!\" & AF386))","v":0},{"$f":"IF(Setup!$AJ$7=\"\",0,INDIRECT(\"'\" & Setup!$AJ$7 & \"'!\" & AF386))","v":0}]
[{"$f":"Planning!A159","v":"I151"},{"$f":"Planning!B159","v":0},{"$f":"Planning!C159","v":0},{"$f":"Planning!D159","v":0},{"$f":"Planning!E159","v":0},{"$f":"Planning!G159","v":0},0,{"v":0,"d":"0.00"},{"v":0,"d":"0.00"},"","",{"$f":"IF(Setup!$AG$7<>\"\",INDIRECT(\"'\" & Setup!$AG$7 & \"'!\" & AD387),0) + IF(Setup!$AG$8<>\"\",INDIRECT(\"'\" & Setup!$AG$8 & \"'!\" & AD387),0) + IF(Setup!$AG$9<>\"\",INDIRECT(\"'\" & Setup!$AG$9 & \"'!\" & AD387),0) + IF(Setup!$AG$10<>\"\",INDIRECT(\"'\" & Setup!$AG$10 & \"'!\" & AD387),0) + IF(Setup!$AG$11<>\"\",INDIRECT(\"'\" & Setup!$AG$11 & \"'!\" & AD387),0) + IF(Setup!$AG$12<>\"\",INDIRECT(\"'\" & Setup!$AG$12 & \"'!\" & AD387),0)","v":{"v":0,"d":"0.00"}},{"$f":"IF(Setup!$AG$7<>\"\",INDIRECT(\"'\" & Setup!$AG$7 & \"'!\" & AE387),0) + IF(Setup!$AG$8<>\"\",INDIRECT(\"'\" & Setup!$AG$8 & \"'!\" & AE387),0) + IF(Setup!$AG$9<>\"\",INDIRECT(\"'\" & Setup!$AG$9 & \"'!\" & AE387),0) + IF(Setup!$AG$10<>\"\",INDIRECT(\"'\" & Setup!$AG$10 & \"'!\" & AE387),0) + IF(Setup!$AG$11<>\"\",INDIRECT(\"'\" & Setup!$AG$11 & \"'!\" & AE387),0) + IF(Setup!$AG$12<>\"\",INDIRECT(\"'\" & Setup!$AG$12 & \"'!\" & AE387),0)","v":{"v":0,"d":"0.00"}},"","",{"$f":"IF(Setup!$AH$7<>\"\",INDIRECT(\"'\" & Setup!$AH$7 & \"'!\" & AD387),0) + IF(Setup!$AH$8<>\"\",INDIRECT(\"'\" & Setup!$AH$8 & \"'!\" & AD387),0) + IF(Setup!$AH$9<>\"\",INDIRECT(\"'\" & Setup!$AH$9 & \"'!\" & AD387),0) + IF(Setup!$AH$10<>\"\",INDIRECT(\"'\" & Setup!$AH$10 & \"'!\" & AD387),0) + IF(Setup!$AH$11<>\"\",INDIRECT(\"'\" & Setup!$AH$11 & \"'!\" & AD387),0) + IF(Setup!$AH$12<>\"\",INDIRECT(\"'\" & Setup!$AH$12 & \"'!\" & AD387),0)","v":{"v":0,"d":"0.00"}},{"$f":"IF(Setup!$AH$7<>\"\",INDIRECT(\"'\" & Setup!$AH$7 & \"'!\" & AE387),0) + IF(Setup!$AH$8<>\"\",INDIRECT(\"'\" & Setup!$AH$8 & \"'!\" & AE387),0) + IF(Setup!$AH$9<>\"\",INDIRECT(\"'\" & Setup!$AH$9 & \"'!\" & AE387),0) + IF(Setup!$AH$10<>\"\",INDIRECT(\"'\" & Setup!$AH$10 & \"'!\" & AE387),0) + IF(Setup!$AH$11<>\"\",INDIRECT(\"'\" & Setup!$AH$11 & \"'!\" & AE387),0) + IF(Setup!$AH$12<>\"\",INDIRECT(\"'\" & Setup!$AH$12 & \"'!\" & AE387),0)","v":{"v":0,"d":"0.00"}},"","",{"$f":"IF(Setup!$AI$7<>\"\",INDIRECT(\"'\" & Setup!$AI$7 & \"'!\" & AD387),0) + IF(Setup!$AI$8<>\"\",INDIRECT(\"'\" & Setup!$AI$8 & \"'!\" & AD387),0) + IF(Setup!$AI$9<>\"\",INDIRECT(\"'\" & Setup!$AI$9 & \"'!\" & AD387),0) + IF(Setup!$AI$10<>\"\",INDIRECT(\"'\" & Setup!$AI$10 & \"'!\" & AD387),0) + IF(Setup!$AI$11<>\"\",INDIRECT(\"'\" & Setup!$AI$11 & \"'!\" & AD387),0) + IF(Setup!$AI$12<>\"\",INDIRECT(\"'\" & Setup!$AI$12 & \"'!\" & AD387),0)","v":{"v":0,"d":"0.00"}},{"$f":"IF(Setup!$AI$7<>\"\",INDIRECT(\"'\" & Setup!$AI$7 & \"'!\" & AE387),0) + IF(Setup!$AI$8<>\"\",INDIRECT(\"'\" & Setup!$AI$8 & \"'!\" & AE387),0) + IF(Setup!$AI$9<>\"\",INDIRECT(\"'\" & Setup!$AI$9 & \"'!\" & AE387),0) + IF(Setup!$AI$10<>\"\",INDIRECT(\"'\" & Setup!$AI$10 & \"'!\" & AE387),0) + IF(Setup!$AI$11<>\"\",INDIRECT(\"'\" & Setup!$AI$11 & \"'!\" & AE387),0) + IF(Setup!$AI$12<>\"\",INDIRECT(\"'\" & Setup!$AI$12 & \"'!\" & AE387),0)","v":{"v":0,"d":"0.00"}},"","",{"$f":"IF(Setup!$AJ$7<>\"\",INDIRECT(\"'\" & Setup!$AJ$7 & \"'!\" & AD387),0) + IF(Setup!$AJ$8<>\"\",INDIRECT(\"'\" & Setup!$AJ$8 & \"'!\" & AD387),0) + IF(Setup!$AJ$9<>\"\",INDIRECT(\"'\" & Setup!$AJ$9 & \"'!\" & AD387),0) + IF(Setup!$AJ$10<>\"\",INDIRECT(\"'\" & Setup!$AJ$10 & \"'!\" & AD387),0) + IF(Setup!$AJ$11<>\"\",INDIRECT(\"'\" & Setup!$AJ$11 & \"'!\" & AD387),0) + IF(Setup!$AJ$12<>\"\",INDIRECT(\"'\" & Setup!$AJ$12 & \"'!\" & AD387),0)","v":0},{"$f":"IF(Setup!$AJ$7<>\"\",INDIRECT(\"'\" & Setup!$AJ$7 & \"'!\" & AE387),0) + IF(Setup!$AJ$8<>\"\",INDIRECT(\"'\" & Setup!$AJ$8 & \"'!\" & AE387),0) + IF(Setup!$AJ$9<>\"\",INDIRECT(\"'\" & Setup!$AJ$9 & \"'!\" & AE387),0) + IF(Setup!$AJ$10<>\"\",INDIRECT(\"'\" & Setup!$AJ$10 & \"'!\" & AE387),0) + IF(Setup!$AJ$11<>\"\",INDIRECT(\"'\" & Setup!$AJ$11 & \"'!\" & AE387),0) + IF(Setup!$AJ$12<>\"\",INDIRECT(\"'\" & Setup!$AJ$12 & \"'!\" & AE387),0)","v":0},"","",{"$f":"Planning!H159","v":0},"00","M175","O175","N175",null,null,{"$f":"IF(Setup!$AG$7<>\"\",INDIRECT(\"'\" & Setup!$AG$7 & \"'!\" & AF387),0) + IF(Setup!$AG$8<>\"\",INDIRECT(\"'\" & Setup!$AG$8 & \"'!\" & AF387),0) + IF(Setup!$AG$9<>\"\",INDIRECT(\"'\" & Setup!$AG$9 & \"'!\" & AF387),0) + IF(Setup!$AG$10<>\"\",INDIRECT(\"'\" & Setup!$AG$10 & \"'!\" & AF387),0) + IF(Setup!$AG$11<>\"\",INDIRECT(\"'\" & Setup!$AG$11 & \"'!\" & AF387),0) + IF(Setup!$AG$12<>\"\",INDIRECT(\"'\" & Setup!$AG$12 & \"'!\" & AF387),0)","v":0},{"$f":"IF(Setup!$AH$7<>\"\",INDIRECT(\"'\" & Setup!$AH$7 & \"'!\" & AF387),0) + IF(Setup!$AH$8<>\"\",INDIRECT(\"'\" & Setup!$AH$8 & \"'!\" & AF387),0) + IF(Setup!$AH$9<>\"\",INDIRECT(\"'\" & Setup!$AH$9 & \"'!\" & AF387),0) + IF(Setup!$AH$10<>\"\",INDIRECT(\"'\" & Setup!$AH$10 & \"'!\" & AF387),0) + IF(Setup!$AH$11<>\"\",INDIRECT(\"'\" & Setup!$AH$11 & \"'!\" & AF387),0) + IF(Setup!$AH$12<>\"\",INDIRECT(\"'\" & Setup!$AH$12 & \"'!\" & AF387),0)","v":0},{"$f":"IF(Setup!$AI$7<>\"\",INDIRECT(\"'\" & Setup!$AI$7 & \"'!\" & AF387),0) + IF(Setup!$AI$8<>\"\",INDIRECT(\"'\" & Setup!$AI$8 & \"'!\" & AF387),0) + IF(Setup!$AI$9<>\"\",INDIRECT(\"'\" & Setup!$AI$9 & \"'!\" & AF387),0) + IF(Setup!$AI$10<>\"\",INDIRECT(\"'\" & Setup!$AI$10 & \"'!\" & AF387),0) + IF(Setup!$AI$11<>\"\",INDIRECT(\"'\" & Setup!$AI$11 & \"'!\" & AF387),0) + IF(Setup!$AI$12<>\"\",INDIRECT(\"'\" & Setup!$AI$12 & \"'!\" & AF387),0)","v":0},{"$f":"IF(Setup!$AJ$7<>\"\",INDIRECT(\"'\" & Setup!$AJ$7 & \"'!\" & AF387),0) + IF(Setup!$AJ$8<>\"\",INDIRECT(\"'\" & Setup!$AJ$8 & \"'!\" & AF387),0) + IF(Setup!$AJ$9<>\"\",INDIRECT(\"'\" & Setup!$AJ$9 & \"'!\" & AF387),0) + IF(Setup!$AJ$10<>\"\",INDIRECT(\"'\" & Setup!$AJ$10 & \"'!\" & AF387),0) + IF(Setup!$AJ$11<>\"\",INDIRECT(\"'\" & Setup!$AJ$11 & \"'!\" & AF387),0) + IF(Setup!$AJ$12<>\"\",INDIRECT(\"'\" & Setup!$AJ$12 & \"'!\" & AF387),0)","v":0},null,"",{"$nulls":30},0,{"$f":"IF(Setup!$AH$7=\"\",0,INDIRECT(\"'\" & Setup!$AH$7 & \"'!\" & AF387))","v":0},{"$f":"IF(Setup!$AI$7=\"\",0,INDIRECT(\"'\" & Setup!$AI$7 & \"'!\" & AF387))","v":0},{"$f":"IF(Setup!$AJ$7=\"\",0,INDIRECT(\"'\" & Setup!$AJ$7 & \"'!\" & AF387))","v":0}]
[{"$f":"Planning!A160","v":"I152"},{"$f":"Planning!B160","v":0},{"$f":"Planning!C160","v":0},{"$f":"Planning!D160","v":0},{"$f":"Planning!E160","v":0},{"$f":"Planning!G160","v":0},0,{"v":0,"d":"0.00"},{"v":0,"d":"0.00"},"","",{"$f":"IF(Setup!$AG$7<>\"\",INDIRECT(\"'\" & Setup!$AG$7 & \"'!\" & AD388),0) + IF(Setup!$AG$8<>\"\",INDIRECT(\"'\" & Setup!$AG$8 & \"'!\" & AD388),0) + IF(Setup!$AG$9<>\"\",INDIRECT(\"'\" & Setup!$AG$9 & \"'!\" & AD388),0) + IF(Setup!$AG$10<>\"\",INDIRECT(\"'\" & Setup!$AG$10 & \"'!\" & AD388),0) + IF(Setup!$AG$11<>\"\",INDIRECT(\"'\" & Setup!$AG$11 & \"'!\" & AD388),0) + IF(Setup!$AG$12<>\"\",INDIRECT(\"'\" & Setup!$AG$12 & \"'!\" & AD388),0)","v":{"v":0,"d":"0.00"}},{"$f":"IF(Setup!$AG$7<>\"\",INDIRECT(\"'\" & Setup!$AG$7 & \"'!\" & AE388),0) + IF(Setup!$AG$8<>\"\",INDIRECT(\"'\" & Setup!$AG$8 & \"'!\" & AE388),0) + IF(Setup!$AG$9<>\"\",INDIRECT(\"'\" & Setup!$AG$9 & \"'!\" & AE388),0) + IF(Setup!$AG$10<>\"\",INDIRECT(\"'\" & Setup!$AG$10 & \"'!\" & AE388),0) + IF(Setup!$AG$11<>\"\",INDIRECT(\"'\" & Setup!$AG$11 & \"'!\" & AE388),0) + IF(Setup!$AG$12<>\"\",INDIRECT(\"'\" & Setup!$AG$12 & \"'!\" & AE388),0)","v":{"v":0,"d":"0.00"}},"","",{"$f":"IF(Setup!$AH$7<>\"\",INDIRECT(\"'\" & Setup!$AH$7 & \"'!\" & AD388),0) + IF(Setup!$AH$8<>\"\",INDIRECT(\"'\" & Setup!$AH$8 & \"'!\" & AD388),0) + IF(Setup!$AH$9<>\"\",INDIRECT(\"'\" & Setup!$AH$9 & \"'!\" & AD388),0) + IF(Setup!$AH$10<>\"\",INDIRECT(\"'\" & Setup!$AH$10 & \"'!\" & AD388),0) + IF(Setup!$AH$11<>\"\",INDIRECT(\"'\" & Setup!$AH$11 & \"'!\" & AD388),0) + IF(Setup!$AH$12<>\"\",INDIRECT(\"'\" & Setup!$AH$12 & \"'!\" & AD388),0)","v":{"v":0,"d":"0.00"}},{"$f":"IF(Setup!$AH$7<>\"\",INDIRECT(\"'\" & Setup!$AH$7 & \"'!\" & AE388),0) + IF(Setup!$AH$8<>\"\",INDIRECT(\"'\" & Setup!$AH$8 & \"'!\" & AE388),0) + IF(Setup!$AH$9<>\"\",INDIRECT(\"'\" & Setup!$AH$9 & \"'!\" & AE388),0) + IF(Setup!$AH$10<>\"\",INDIRECT(\"'\" & Setup!$AH$10 & \"'!\" & AE388),0) + IF(Setup!$AH$11<>\"\",INDIRECT(\"'\" & Setup!$AH$11 & \"'!\" & AE388),0) + IF(Setup!$AH$12<>\"\",INDIRECT(\"'\" & Setup!$AH$12 & \"'!\" & AE388),0)","v":{"v":0,"d":"0.00"}},"","",{"$f":"IF(Setup!$AI$7<>\"\",INDIRECT(\"'\" & Setup!$AI$7 & \"'!\" & AD388),0) + IF(Setup!$AI$8<>\"\",INDIRECT(\"'\" & Setup!$AI$8 & \"'!\" & AD388),0) + IF(Setup!$AI$9<>\"\",INDIRECT(\"'\" & Setup!$AI$9 & \"'!\" & AD388),0) + IF(Setup!$AI$10<>\"\",INDIRECT(\"'\" & Setup!$AI$10 & \"'!\" & AD388),0) + IF(Setup!$AI$11<>\"\",INDIRECT(\"'\" & Setup!$AI$11 & \"'!\" & AD388),0) + IF(Setup!$AI$12<>\"\",INDIRECT(\"'\" & Setup!$AI$12 & \"'!\" & AD388),0)","v":{"v":0,"d":"0.00"}},{"$f":"IF(Setup!$AI$7<>\"\",INDIRECT(\"'\" & Setup!$AI$7 & \"'!\" & AE388),0) + IF(Setup!$AI$8<>\"\",INDIRECT(\"'\" & Setup!$AI$8 & \"'!\" & AE388),0) + IF(Setup!$AI$9<>\"\",INDIRECT(\"'\" & Setup!$AI$9 & \"'!\" & AE388),0) + IF(Setup!$AI$10<>\"\",INDIRECT(\"'\" & Setup!$AI$10 & \"'!\" & AE388),0) + IF(Setup!$AI$11<>\"\",INDIRECT(\"'\" & Setup!$AI$11 & \"'!\" & AE388),0) + IF(Setup!$AI$12<>\"\",INDIRECT(\"'\" & Setup!$AI$12 & \"'!\" & AE388),0)","v":{"v":0,"d":"0.00"}},"","",{"$f":"IF(Setup!$AJ$7<>\"\",INDIRECT(\"'\" & Setup!$AJ$7 & \"'!\" & AD388),0) + IF(Setup!$AJ$8<>\"\",INDIRECT(\"'\" & Setup!$AJ$8 & \"'!\" & AD388),0) + IF(Setup!$AJ$9<>\"\",INDIRECT(\"'\" & Setup!$AJ$9 & \"'!\" & AD388),0) + IF(Setup!$AJ$10<>\"\",INDIRECT(\"'\" & Setup!$AJ$10 & \"'!\" & AD388),0) + IF(Setup!$AJ$11<>\"\",INDIRECT(\"'\" & Setup!$AJ$11 & \"'!\" & AD388),0) + IF(Setup!$AJ$12<>\"\",INDIRECT(\"'\" & Setup!$AJ$12 & \"'!\" & AD388),0)","v":0},{"$f":"IF(Setup!$AJ$7<>\"\",INDIRECT(\"'\" & Setup!$AJ$7 & \"'!\" & AE388),0) + IF(Setup!$AJ$8<>\"\",INDIRECT(\"'\" & Setup!$AJ$8 & \"'!\" & AE388),0) + IF(Setup!$AJ$9<>\"\",INDIRECT(\"'\" & Setup!$AJ$9 & \"'!\" & AE388),0) + IF(Setup!$AJ$10<>\"\",INDIRECT(\"'\" & Setup!$AJ$10 & \"'!\" & AE388),0) + IF(Setup!$AJ$11<>\"\",INDIRECT(\"'\" & Setup!$AJ$11 & \"'!\" & AE388),0) + IF(Setup!$AJ$12<>\"\",INDIRECT(\"'\" & Setup!$AJ$12 & \"'!\" & AE388),0)","v":0},"","",{"$f":"Planning!H160","v":0},"00","M176","O176","N176",null,null,{"$f":"IF(Setup!$AG$7<>\"\",INDIRECT(\"'\" & Setup!$AG$7 & \"'!\" & AF388),0) + IF(Setup!$AG$8<>\"\",INDIRECT(\"'\" & Setup!$AG$8 & \"'!\" & AF388),0) + IF(Setup!$AG$9<>\"\",INDIRECT(\"'\" & Setup!$AG$9 & \"'!\" & AF388),0) + IF(Setup!$AG$10<>\"\",INDIRECT(\"'\" & Setup!$AG$10 & \"'!\" & AF388),0) + IF(Setup!$AG$11<>\"\",INDIRECT(\"'\" & Setup!$AG$11 & \"'!\" & AF388),0) + IF(Setup!$AG$12<>\"\",INDIRECT(\"'\" & Setup!$AG$12 & \"'!\" & AF388),0)","v":0},{"$f":"IF(Setup!$AH$7<>\"\",INDIRECT(\"'\" & Setup!$AH$7 & \"'!\" & AF388),0) + IF(Setup!$AH$8<>\"\",INDIRECT(\"'\" & Setup!$AH$8 & \"'!\" & AF388),0) + IF(Setup!$AH$9<>\"\",INDIRECT(\"'\" & Setup!$AH$9 & \"'!\" & AF388),0) + IF(Setup!$AH$10<>\"\",INDIRECT(\"'\" & Setup!$AH$10 & \"'!\" & AF388),0) + IF(Setup!$AH$11<>\"\",INDIRECT(\"'\" & Setup!$AH$11 & \"'!\" & AF388),0) + IF(Setup!$AH$12<>\"\",INDIRECT(\"'\" & Setup!$AH$12 & \"'!\" & AF388),0)","v":0},{"$f":"IF(Setup!$AI$7<>\"\",INDIRECT(\"'\" & Setup!$AI$7 & \"'!\" & AF388),0) + IF(Setup!$AI$8<>\"\",INDIRECT(\"'\" & Setup!$AI$8 & \"'!\" & AF388),0) + IF(Setup!$AI$9<>\"\",INDIRECT(\"'\" & Setup!$AI$9 & \"'!\" & AF388),0) + IF(Setup!$AI$10<>\"\",INDIRECT(\"'\" & Setup!$AI$10 & \"'!\" & AF388),0) + IF(Setup!$AI$11<>\"\",INDIRECT(\"'\" & Setup!$AI$11 & \"'!\" & AF388),0) + IF(Setup!$AI$12<>\"\",INDIRECT(\"'\" & Setup!$AI$12 & \"'!\" & AF388),0)","v":0},{"$f":"IF(Setup!$AJ$7<>\"\",INDIRECT(\"'\" & Setup!$AJ$7 & \"'!\" & AF388),0) + IF(Setup!$AJ$8<>\"\",INDIRECT(\"'\" & Setup!$AJ$8 & \"'!\" & AF388),0) + IF(Setup!$AJ$9<>\"\",INDIRECT(\"'\" & Setup!$AJ$9 & \"'!\" & AF388),0) + IF(Setup!$AJ$10<>\"\",INDIRECT(\"'\" & Setup!$AJ$10 & \"'!\" & AF388),0) + IF(Setup!$AJ$11<>\"\",INDIRECT(\"'\" & Setup!$AJ$11 & \"'!\" & AF388),0) + IF(Setup!$AJ$12<>\"\",INDIRECT(\"'\" & Setup!$AJ$12 & \"'!\" & AF388),0)","v":0},null,"",{"$nulls":30},0,{"$f":"IF(Setup!$AH$7=\"\",0,INDIRECT(\"'\" & Setup!$AH$7 & \"'!\" & AF388))","v":0},{"$f":"IF(Setup!$AI$7=\"\",0,INDIRECT(\"'\" & Setup!$AI$7 & \"'!\" & AF388))","v":0},{"$f":"IF(Setup!$AJ$7=\"\",0,INDIRECT(\"'\" & Setup!$AJ$7 & \"'!\" & AF388))","v":0}]
[{"$f":"Planning!A161","v":"I153"},{"$f":"Planning!B161","v":0},{"$f":"Planning!C161","v":0},{"$f":"Planning!D161","v":0},{"$f":"Planning!E161","v":0},{"$f":"Planning!G161","v":0},0,{"v":0,"d":"0.00"},{"v":0,"d":"0.00"},"","",{"$f":"IF(Setup!$AG$7<>\"\",INDIRECT(\"'\" & Setup!$AG$7 & \"'!\" & AD389),0) + IF(Setup!$AG$8<>\"\",INDIRECT(\"'\" & Setup!$AG$8 & \"'!\" & AD389),0) + IF(Setup!$AG$9<>\"\",INDIRECT(\"'\" & Setup!$AG$9 & \"'!\" & AD389),0) + IF(Setup!$AG$10<>\"\",INDIRECT(\"'\" & Setup!$AG$10 & \"'!\" & AD389),0) + IF(Setup!$AG$11<>\"\",INDIRECT(\"'\" & Setup!$AG$11 & \"'!\" & AD389),0) + IF(Setup!$AG$12<>\"\",INDIRECT(\"'\" & Setup!$AG$12 & \"'!\" & AD389),0)","v":{"v":0,"d":"0.00"}},{"$f":"IF(Setup!$AG$7<>\"\",INDIRECT(\"'\" & Setup!$AG$7 & \"'!\" & AE389),0) + IF(Setup!$AG$8<>\"\",INDIRECT(\"'\" & Setup!$AG$8 & \"'!\" & AE389),0) + IF(Setup!$AG$9<>\"\",INDIRECT(\"'\" & Setup!$AG$9 & \"'!\" & AE389),0) + IF(Setup!$AG$10<>\"\",INDIRECT(\"'\" & Setup!$AG$10 & \"'!\" & AE389),0) + IF(Setup!$AG$11<>\"\",INDIRECT(\"'\" & Setup!$AG$11 & \"'!\" & AE389),0) + IF(Setup!$AG$12<>\"\",INDIRECT(\"'\" & Setup!$AG$12 & \"'!\" & AE389),0)","v":{"v":0,"d":"0.00"}},"","",{"$f":"IF(Setup!$AH$7<>\"\",INDIRECT(\"'\" & Setup!$AH$7 & \"'!\" & AD389),0) + IF(Setup!$AH$8<>\"\",INDIRECT(\"'\" & Setup!$AH$8 & \"'!\" & AD389),0) + IF(Setup!$AH$9<>\"\",INDIRECT(\"'\" & Setup!$AH$9 & \"'!\" & AD389),0) + IF(Setup!$AH$10<>\"\",INDIRECT(\"'\" & Setup!$AH$10 & \"'!\" & AD389),0) + IF(Setup!$AH$11<>\"\",INDIRECT(\"'\" & Setup!$AH$11 & \"'!\" & AD389),0) + IF(Setup!$AH$12<>\"\",INDIRECT(\"'\" & Setup!$AH$12 & \"'!\" & AD389),0)","v":{"v":0,"d":"0.00"}},{"$f":"IF(Setup!$AH$7<>\"\",INDIRECT(\"'\" & Setup!$AH$7 & \"'!\" & AE389),0) + IF(Setup!$AH$8<>\"\",INDIRECT(\"'\" & Setup!$AH$8 & \"'!\" & AE389),0) + IF(Setup!$AH$9<>\"\",INDIRECT(\"'\" & Setup!$AH$9 & \"'!\" & AE389),0) + IF(Setup!$AH$10<>\"\",INDIRECT(\"'\" & Setup!$AH$10 & \"'!\" & AE389),0) + IF(Setup!$AH$11<>\"\",INDIRECT(\"'\" & Setup!$AH$11 & \"'!\" & AE389),0) + IF(Setup!$AH$12<>\"\",INDIRECT(\"'\" & Setup!$AH$12 & \"'!\" & AE389),0)","v":{"v":0,"d":"0.00"}},"","",{"$f":"IF(Setup!$AI$7<>\"\",INDIRECT(\"'\" & Setup!$AI$7 & \"'!\" & AD389),0) + IF(Setup!$AI$8<>\"\",INDIRECT(\"'\" & Setup!$AI$8 & \"'!\" & AD389),0) + IF(Setup!$AI$9<>\"\",INDIRECT(\"'\" & Setup!$AI$9 & \"'!\" & AD389),0) + IF(Setup!$AI$10<>\"\",INDIRECT(\"'\" & Setup!$AI$10 & \"'!\" & AD389),0) + IF(Setup!$AI$11<>\"\",INDIRECT(\"'\" & Setup!$AI$11 & \"'!\" & AD389),0) + IF(Setup!$AI$12<>\"\",INDIRECT(\"'\" & Setup!$AI$12 & \"'!\" & AD389),0)","v":{"v":0,"d":"0.00"}},{"$f":"IF(Setup!$AI$7<>\"\",INDIRECT(\"'\" & Setup!$AI$7 & \"'!\" & AE389),0) + IF(Setup!$AI$8<>\"\",INDIRECT(\"'\" & Setup!$AI$8 & \"'!\" & AE389),0) + IF(Setup!$AI$9<>\"\",INDIRECT(\"'\" & Setup!$AI$9 & \"'!\" & AE389),0) + IF(Setup!$AI$10<>\"\",INDIRECT(\"'\" & Setup!$AI$10 & \"'!\" & AE389),0) + IF(Setup!$AI$11<>\"\",INDIRECT(\"'\" & Setup!$AI$11 & \"'!\" & AE389),0) + IF(Setup!$AI$12<>\"\",INDIRECT(\"'\" & Setup!$AI$12 & \"'!\" & AE389),0)","v":{"v":0,"d":"0.00"}},"","",{"$f":"IF(Setup!$AJ$7<>\"\",INDIRECT(\"'\" & Setup!$AJ$7 & \"'!\" & AD389),0) + IF(Setup!$AJ$8<>\"\",INDIRECT(\"'\" & Setup!$AJ$8 & \"'!\" & AD389),0) + IF(Setup!$AJ$9<>\"\",INDIRECT(\"'\" & Setup!$AJ$9 & \"'!\" & AD389),0) + IF(Setup!$AJ$10<>\"\",INDIRECT(\"'\" & Setup!$AJ$10 & \"'!\" & AD389),0) + IF(Setup!$AJ$11<>\"\",INDIRECT(\"'\" & Setup!$AJ$11 & \"'!\" & AD389),0) + IF(Setup!$AJ$12<>\"\",INDIRECT(\"'\" & Setup!$AJ$12 & \"'!\" & AD389),0)","v":0},{"$f":"IF(Setup!$AJ$7<>\"\",INDIRECT(\"'\" & Setup!$AJ$7 & \"'!\" & AE389),0) + IF(Setup!$AJ$8<>\"\",INDIRECT(\"'\" & Setup!$AJ$8 & \"'!\" & AE389),0) + IF(Setup!$AJ$9<>\"\",INDIRECT(\"'\" & Setup!$AJ$9 & \"'!\" & AE389),0) + IF(Setup!$AJ$10<>\"\",INDIRECT(\"'\" & Setup!$AJ$10 & \"'!\" & AE389),0) + IF(Setup!$AJ$11<>\"\",INDIRECT(\"'\" & Setup!$AJ$11 & \"'!\" & AE389),0) + IF(Setup!$AJ$12<>\"\",INDIRECT(\"'\" & Setup!$AJ$12 & \"'!\" & AE389),0)","v":0},"","",{"$f":"Planning!H161","v":0},"00","M177","O177","N177",null,null,{"$f":"IF(Setup!$AG$7<>\"\",INDIRECT(\"'\" & Setup!$AG$7 & \"'!\" & AF389),0) + IF(Setup!$AG$8<>\"\",INDIRECT(\"'\" & Setup!$AG$8 & \"'!\" & AF389),0) + IF(Setup!$AG$9<>\"\",INDIRECT(\"'\" & Setup!$AG$9 & \"'!\" & AF389),0) + IF(Setup!$AG$10<>\"\",INDIRECT(\"'\" & Setup!$AG$10 & \"'!\" & AF389),0) + IF(Setup!$AG$11<>\"\",INDIRECT(\"'\" & Setup!$AG$11 & \"'!\" & AF389),0) + IF(Setup!$AG$12<>\"\",INDIRECT(\"'\" & Setup!$AG$12 & \"'!\" & AF389),0)","v":0},{"$f":"IF(Setup!$AH$7<>\"\",INDIRECT(\"'\" & Setup!$AH$7 & \"'!\" & AF389),0) + IF(Setup!$AH$8<>\"\",INDIRECT(\"'\" & Setup!$AH$8 & \"'!\" & AF389),0) + IF(Setup!$AH$9<>\"\",INDIRECT(\"'\" & Setup!$AH$9 & \"'!\" & AF389),0) + IF(Setup!$AH$10<>\"\",INDIRECT(\"'\" & Setup!$AH$10 & \"'!\" & AF389),0) + IF(Setup!$AH$11<>\"\",INDIRECT(\"'\" & Setup!$AH$11 & \"'!\" & AF389),0) + IF(Setup!$AH$12<>\"\",INDIRECT(\"'\" & Setup!$AH$12 & \"'!\" & AF389),0)","v":0},{"$f":"IF(Setup!$AI$7<>\"\",INDIRECT(\"'\" & Setup!$AI$7 & \"'!\" & AF389),0) + IF(Setup!$AI$8<>\"\",INDIRECT(\"'\" & Setup!$AI$8 & \"'!\" & AF389),0) + IF(Setup!$AI$9<>\"\",INDIRECT(\"'\" & Setup!$AI$9 & \"'!\" & AF389),0) + IF(Setup!$AI$10<>\"\",INDIRECT(\"'\" & Setup!$AI$10 & \"'!\" & AF389),0) + IF(Setup!$AI$11<>\"\",INDIRECT(\"'\" & Setup!$AI$11 & \"'!\" & AF389),0) + IF(Setup!$AI$12<>\"\",INDIRECT(\"'\" & Setup!$AI$12 & \"'!\" & AF389),0)","v":0},{"$f":"IF(Setup!$AJ$7<>\"\",INDIRECT(\"'\" & Setup!$AJ$7 & \"'!\" & AF389),0) + IF(Setup!$AJ$8<>\"\",INDIRECT(\"'\" & Setup!$AJ$8 & \"'!\" & AF389),0) + IF(Setup!$AJ$9<>\"\",INDIRECT(\"'\" & Setup!$AJ$9 & \"'!\" & AF389),0) + IF(Setup!$AJ$10<>\"\",INDIRECT(\"'\" & Setup!$AJ$10 & \"'!\" & AF389),0) + IF(Setup!$AJ$11<>\"\",INDIRECT(\"'\" & Setup!$AJ$11 & \"'!\" & AF389),0) + IF(Setup!$AJ$12<>\"\",INDIRECT(\"'\" & Setup!$AJ$12 & \"'!\" & AF389),0)","v":0},null,"",{"$nulls":30},0,{"$f":"IF(Setup!$AH$7=\"\",0,INDIRECT(\"'\" & Setup!$AH$7 & \"'!\" & AF389))","v":0},{"$f":"IF(Setup!$AI$7=\"\",0,INDIRECT(\"'\" & Setup!$AI$7 & \"'!\" & AF389))","v":0},{"$f":"IF(Setup!$AJ$7=\"\",0,INDIRECT(\"'\" & Setup!$AJ$7 & \"'!\" & AF389))","v":0}]
[{"$f":"Planning!A162","v":"I154"},{"$f":"Planning!B162","v":0},{"$f":"Planning!C162","v":0},{"$f":"Planning!D162","v":0},{"$f":"Planning!E162","v":0},{"$f":"Planning!G162","v":0},0,{"v":0,"d":"0.00"},{"v":0,"d":"0.00"},"","",{"$f":"IF(Setup!$AG$7<>\"\",INDIRECT(\"'\" & Setup!$AG$7 & \"'!\" & AD390),0) + IF(Setup!$AG$8<>\"\",INDIRECT(\"'\" & Setup!$AG$8 & \"'!\" & AD390),0) + IF(Setup!$AG$9<>\"\",INDIRECT(\"'\" & Setup!$AG$9 & \"'!\" & AD390),0) + IF(Setup!$AG$10<>\"\",INDIRECT(\"'\" & Setup!$AG$10 & \"'!\" & AD390),0) + IF(Setup!$AG$11<>\"\",INDIRECT(\"'\" & Setup!$AG$11 & \"'!\" & AD390),0) + IF(Setup!$AG$12<>\"\",INDIRECT(\"'\" & Setup!$AG$12 & \"'!\" & AD390),0)","v":{"v":0,"d":"0.00"}},{"$f":"IF(Setup!$AG$7<>\"\",INDIRECT(\"'\" & Setup!$AG$7 & \"'!\" & AE390),0) + IF(Setup!$AG$8<>\"\",INDIRECT(\"'\" & Setup!$AG$8 & \"'!\" & AE390),0) + IF(Setup!$AG$9<>\"\",INDIRECT(\"'\" & Setup!$AG$9 & \"'!\" & AE390),0) + IF(Setup!$AG$10<>\"\",INDIRECT(\"'\" & Setup!$AG$10 & \"'!\" & AE390),0) + IF(Setup!$AG$11<>\"\",INDIRECT(\"'\" & Setup!$AG$11 & \"'!\" & AE390),0) + IF(Setup!$AG$12<>\"\",INDIRECT(\"'\" & Setup!$AG$12 & \"'!\" & AE390),0)","v":{"v":0,"d":"0.00"}},"","",{"$f":"IF(Setup!$AH$7<>\"\",INDIRECT(\"'\" & Setup!$AH$7 & \"'!\" & AD390),0) + IF(Setup!$AH$8<>\"\",INDIRECT(\"'\" & Setup!$AH$8 & \"'!\" & AD390),0) + IF(Setup!$AH$9<>\"\",INDIRECT(\"'\" & Setup!$AH$9 & \"'!\" & AD390),0) + IF(Setup!$AH$10<>\"\",INDIRECT(\"'\" & Setup!$AH$10 & \"'!\" & AD390),0) + IF(Setup!$AH$11<>\"\",INDIRECT(\"'\" & Setup!$AH$11 & \"'!\" & AD390),0) + IF(Setup!$AH$12<>\"\",INDIRECT(\"'\" & Setup!$AH$12 & \"'!\" & AD390),0)","v":{"v":0,"d":"0.00"}},{"$f":"IF(Setup!$AH$7<>\"\",INDIRECT(\"'\" & Setup!$AH$7 & \"'!\" & AE390),0) + IF(Setup!$AH$8<>\"\",INDIRECT(\"'\" & Setup!$AH$8 & \"'!\" & AE390),0) + IF(Setup!$AH$9<>\"\",INDIRECT(\"'\" & Setup!$AH$9 & \"'!\" & AE390),0) + IF(Setup!$AH$10<>\"\",INDIRECT(\"'\" & Setup!$AH$10 & \"'!\" & AE390),0) + IF(Setup!$AH$11<>\"\",INDIRECT(\"'\" & Setup!$AH$11 & \"'!\" & AE390),0) + IF(Setup!$AH$12<>\"\",INDIRECT(\"'\" & Setup!$AH$12 & \"'!\" & AE390),0)","v":{"v":0,"d":"0.00"}},"","",{"$f":"IF(Setup!$AI$7<>\"\",INDIRECT(\"'\" & Setup!$AI$7 & \"'!\" & AD390),0) + IF(Setup!$AI$8<>\"\",INDIRECT(\"'\" & Setup!$AI$8 & \"'!\" & AD390),0) + IF(Setup!$AI$9<>\"\",INDIRECT(\"'\" & Setup!$AI$9 & \"'!\" & AD390),0) + IF(Setup!$AI$10<>\"\",INDIRECT(\"'\" & Setup!$AI$10 & \"'!\" & AD390),0) + IF(Setup!$AI$11<>\"\",INDIRECT(\"'\" & Setup!$AI$11 & \"'!\" & AD390),0) + IF(Setup!$AI$12<>\"\",INDIRECT(\"'\" & Setup!$AI$12 & \"'!\" & AD390),0)","v":{"v":0,"d":"0.00"}},{"$f":"IF(Setup!$AI$7<>\"\",INDIRECT(\"'\" & Setup!$AI$7 & \"'!\" & AE390),0) + IF(Setup!$AI$8<>\"\",INDIRECT(\"'\" & Setup!$AI$8 & \"'!\" & AE390),0) + IF(Setup!$AI$9<>\"\",INDIRECT(\"'\" & Setup!$AI$9 & \"'!\" & AE390),0) + IF(Setup!$AI$10<>\"\",INDIRECT(\"'\" & Setup!$AI$10 & \"'!\" & AE390),0) + IF(Setup!$AI$11<>\"\",INDIRECT(\"'\" & Setup!$AI$11 & \"'!\" & AE390),0) + IF(Setup!$AI$12<>\"\",INDIRECT(\"'\" & Setup!$AI$12 & \"'!\" & AE390),0)","v":{"v":0,"d":"0.00"}},"","",{"$f":"IF(Setup!$AJ$7<>\"\",INDIRECT(\"'\" & Setup!$AJ$7 & \"'!\" & AD390),0) + IF(Setup!$AJ$8<>\"\",INDIRECT(\"'\" & Setup!$AJ$8 & \"'!\" & AD390),0) + IF(Setup!$AJ$9<>\"\",INDIRECT(\"'\" & Setup!$AJ$9 & \"'!\" & AD390),0) + IF(Setup!$AJ$10<>\"\",INDIRECT(\"'\" & Setup!$AJ$10 & \"'!\" & AD390),0) + IF(Setup!$AJ$11<>\"\",INDIRECT(\"'\" & Setup!$AJ$11 & \"'!\" & AD390),0) + IF(Setup!$AJ$12<>\"\",INDIRECT(\"'\" & Setup!$AJ$12 & \"'!\" & AD390),0)","v":0},{"$f":"IF(Setup!$AJ$7<>\"\",INDIRECT(\"'\" & Setup!$AJ$7 & \"'!\" & AE390),0) + IF(Setup!$AJ$8<>\"\",INDIRECT(\"'\" & Setup!$AJ$8 & \"'!\" & AE390),0) + IF(Setup!$AJ$9<>\"\",INDIRECT(\"'\" & Setup!$AJ$9 & \"'!\" & AE390),0) + IF(Setup!$AJ$10<>\"\",INDIRECT(\"'\" & Setup!$AJ$10 & \"'!\" & AE390),0) + IF(Setup!$AJ$11<>\"\",INDIRECT(\"'\" & Setup!$AJ$11 & \"'!\" & AE390),0) + IF(Setup!$AJ$12<>\"\",INDIRECT(\"'\" & Setup!$AJ$12 & \"'!\" & AE390),0)","v":0},"","",{"$f":"Planning!H162","v":0},"00","M178","O178","N178",null,null,{"$f":"IF(Setup!$AG$7<>\"\",INDIRECT(\"'\" & Setup!$AG$7 & \"'!\" & AF390),0) + IF(Setup!$AG$8<>\"\",INDIRECT(\"'\" & Setup!$AG$8 & \"'!\" & AF390),0) + IF(Setup!$AG$9<>\"\",INDIRECT(\"'\" & Setup!$AG$9 & \"'!\" & AF390),0) + IF(Setup!$AG$10<>\"\",INDIRECT(\"'\" & Setup!$AG$10 & \"'!\" & AF390),0) + IF(Setup!$AG$11<>\"\",INDIRECT(\"'\" & Setup!$AG$11 & \"'!\" & AF390),0) + IF(Setup!$AG$12<>\"\",INDIRECT(\"'\" & Setup!$AG$12 & \"'!\" & AF390),0)","v":0},{"$f":"IF(Setup!$AH$7<>\"\",INDIRECT(\"'\" & Setup!$AH$7 & \"'!\" & AF390),0) + IF(Setup!$AH$8<>\"\",INDIRECT(\"'\" & Setup!$AH$8 & \"'!\" & AF390),0) + IF(Setup!$AH$9<>\"\",INDIRECT(\"'\" & Setup!$AH$9 & \"'!\" & AF390),0) + IF(Setup!$AH$10<>\"\",INDIRECT(\"'\" & Setup!$AH$10 & \"'!\" & AF390),0) + IF(Setup!$AH$11<>\"\",INDIRECT(\"'\" & Setup!$AH$11 & \"'!\" & AF390),0) + IF(Setup!$AH$12<>\"\",INDIRECT(\"'\" & Setup!$AH$12 & \"'!\" & AF390),0)","v":0},{"$f":"IF(Setup!$AI$7<>\"\",INDIRECT(\"'\" & Setup!$AI$7 & \"'!\" & AF390),0) + IF(Setup!$AI$8<>\"\",INDIRECT(\"'\" & Setup!$AI$8 & \"'!\" & AF390),0) + IF(Setup!$AI$9<>\"\",INDIRECT(\"'\" & Setup!$AI$9 & \"'!\" & AF390),0) + IF(Setup!$AI$10<>\"\",INDIRECT(\"'\" & Setup!$AI$10 & \"'!\" & AF390),0) + IF(Setup!$AI$11<>\"\",INDIRECT(\"'\" & Setup!$AI$11 & \"'!\" & AF390),0) + IF(Setup!$AI$12<>\"\",INDIRECT(\"'\" & Setup!$AI$12 & \"'!\" & AF390),0)","v":0},{"$f":"IF(Setup!$AJ$7<>\"\",INDIRECT(\"'\" & Setup!$AJ$7 & \"'!\" & AF390),0) + IF(Setup!$AJ$8<>\"\",INDIRECT(\"'\" & Setup!$AJ$8 & \"'!\" & AF390),0) + IF(Setup!$AJ$9<>\"\",INDIRECT(\"'\" & Setup!$AJ$9 & \"'!\" & AF390),0) + IF(Setup!$AJ$10<>\"\",INDIRECT(\"'\" & Setup!$AJ$10 & \"'!\" & AF390),0) + IF(Setup!$AJ$11<>\"\",INDIRECT(\"'\" & Setup!$AJ$11 & \"'!\" & AF390),0) + IF(Setup!$AJ$12<>\"\",INDIRECT(\"'\" & Setup!$AJ$12 & \"'!\" & AF390),0)","v":0},null,"",{"$nulls":30},0,{"$f":"IF(Setup!$AH$7=\"\",0,INDIRECT(\"'\" & Setup!$AH$7 & \"'!\" & AF390))","v":0},{"$f":"IF(Setup!$AI$7=\"\",0,INDIRECT(\"'\" & Setup!$AI$7 & \"'!\" & AF390))","v":0},{"$f":"IF(Setup!$AJ$7=\"\",0,INDIRECT(\"'\" & Setup!$AJ$7 & \"'!\" & AF390))","v":0}]
[{"$f":"Planning!A163","v":"I155"},{"$f":"Planning!B163","v":0},{"$f":"Planning!C163","v":0},{"$f":"Planning!D163","v":0},{"$f":"Planning!E163","v":0},{"$f":"Planning!G163","v":0},0,{"v":0,"d":"0.00"},{"v":0,"d":"0.00"},"","",{"$f":"IF(Setup!$AG$7<>\"\",INDIRECT(\"'\" & Setup!$AG$7 & \"'!\" & AD391),0) + IF(Setup!$AG$8<>\"\",INDIRECT(\"'\" & Setup!$AG$8 & \"'!\" & AD391),0) + IF(Setup!$AG$9<>\"\",INDIRECT(\"'\" & Setup!$AG$9 & \"'!\" & AD391),0) + IF(Setup!$AG$10<>\"\",INDIRECT(\"'\" & Setup!$AG$10 & \"'!\" & AD391),0) + IF(Setup!$AG$11<>\"\",INDIRECT(\"'\" & Setup!$AG$11 & \"'!\" & AD391),0) + IF(Setup!$AG$12<>\"\",INDIRECT(\"'\" & Setup!$AG$12 & \"'!\" & AD391),0)","v":{"v":0,"d":"0.00"}},{"$f":"IF(Setup!$AG$7<>\"\",INDIRECT(\"'\" & Setup!$AG$7 & \"'!\" & AE391),0) + IF(Setup!$AG$8<>\"\",INDIRECT(\"'\" & Setup!$AG$8 & \"'!\" & AE391),0) + IF(Setup!$AG$9<>\"\",INDIRECT(\"'\" & Setup!$AG$9 & \"'!\" & AE391),0) + IF(Setup!$AG$10<>\"\",INDIRECT(\"'\" & Setup!$AG$10 & \"'!\" & AE391),0) + IF(Setup!$AG$11<>\"\",INDIRECT(\"'\" & Setup!$AG$11 & \"'!\" & AE391),0) + IF(Setup!$AG$12<>\"\",INDIRECT(\"'\" & Setup!$AG$12 & \"'!\" & AE391),0)","v":{"v":0,"d":"0.00"}},"","",{"$f":"IF(Setup!$AH$7<>\"\",INDIRECT(\"'\" & Setup!$AH$7 & \"'!\" & AD391),0) + IF(Setup!$AH$8<>\"\",INDIRECT(\"'\" & Setup!$AH$8 & \"'!\" & AD391),0) + IF(Setup!$AH$9<>\"\",INDIRECT(\"'\" & Setup!$AH$9 & \"'!\" & AD391),0) + IF(Setup!$AH$10<>\"\",INDIRECT(\"'\" & Setup!$AH$10 & \"'!\" & AD391),0) + IF(Setup!$AH$11<>\"\",INDIRECT(\"'\" & Setup!$AH$11 & \"'!\" & AD391),0) + IF(Setup!$AH$12<>\"\",INDIRECT(\"'\" & Setup!$AH$12 & \"'!\" & AD391),0)","v":{"v":0,"d":"0.00"}},{"$f":"IF(Setup!$AH$7<>\"\",INDIRECT(\"'\" & Setup!$AH$7 & \"'!\" & AE391),0) + IF(Setup!$AH$8<>\"\",INDIRECT(\"'\" & Setup!$AH$8 & \"'!\" & AE391),0) + IF(Setup!$AH$9<>\"\",INDIRECT(\"'\" & Setup!$AH$9 & \"'!\" & AE391),0) + IF(Setup!$AH$10<>\"\",INDIRECT(\"'\" & Setup!$AH$10 & \"'!\" & AE391),0) + IF(Setup!$AH$11<>\"\",INDIRECT(\"'\" & Setup!$AH$11 & \"'!\" & AE391),0) + IF(Setup!$AH$12<>\"\",INDIRECT(\"'\" & Setup!$AH$12 & \"'!\" & AE391),0)","v":{"v":0,"d":"0.00"}},"","",{"$f":"IF(Setup!$AI$7<>\"\",INDIRECT(\"'\" & Setup!$AI$7 & \"'!\" & AD391),0) + IF(Setup!$AI$8<>\"\",INDIRECT(\"'\" & Setup!$AI$8 & \"'!\" & AD391),0) + IF(Setup!$AI$9<>\"\",INDIRECT(\"'\" & Setup!$AI$9 & \"'!\" & AD391),0) + IF(Setup!$AI$10<>\"\",INDIRECT(\"'\" & Setup!$AI$10 & \"'!\" & AD391),0) + IF(Setup!$AI$11<>\"\",INDIRECT(\"'\" & Setup!$AI$11 & \"'!\" & AD391),0) + IF(Setup!$AI$12<>\"\",INDIRECT(\"'\" & Setup!$AI$12 & \"'!\" & AD391),0)","v":{"v":0,"d":"0.00"}},{"$f":"IF(Setup!$AI$7<>\"\",INDIRECT(\"'\" & Setup!$AI$7 & \"'!\" & AE391),0) + IF(Setup!$AI$8<>\"\",INDIRECT(\"'\" & Setup!$AI$8 & \"'!\" & AE391),0) + IF(Setup!$AI$9<>\"\",INDIRECT(\"'\" & Setup!$AI$9 & \"'!\" & AE391),0) + IF(Setup!$AI$10<>\"\",INDIRECT(\"'\" & Setup!$AI$10 & \"'!\" & AE391),0) + IF(Setup!$AI$11<>\"\",INDIRECT(\"'\" & Setup!$AI$11 & \"'!\" & AE391),0) + IF(Setup!$AI$12<>\"\",INDIRECT(\"'\" & Setup!$AI$12 & \"'!\" & AE391),0)","v":{"v":0,"d":"0.00"}},"","",{"$f":"IF(Setup!$AJ$7<>\"\",INDIRECT(\"'\" & Setup!$AJ$7 & \"'!\" & AD391),0) + IF(Setup!$AJ$8<>\"\",INDIRECT(\"'\" & Setup!$AJ$8 & \"'!\" & AD391),0) + IF(Setup!$AJ$9<>\"\",INDIRECT(\"'\" & Setup!$AJ$9 & \"'!\" & AD391),0) + IF(Setup!$AJ$10<>\"\",INDIRECT(\"'\" & Setup!$AJ$10 & \"'!\" & AD391),0) + IF(Setup!$AJ$11<>\"\",INDIRECT(\"'\" & Setup!$AJ$11 & \"'!\" & AD391),0) + IF(Setup!$AJ$12<>\"\",INDIRECT(\"'\" & Setup!$AJ$12 & \"'!\" & AD391),0)","v":0},{"$f":"IF(Setup!$AJ$7<>\"\",INDIRECT(\"'\" & Setup!$AJ$7 & \"'!\" & AE391),0) + IF(Setup!$AJ$8<>\"\",INDIRECT(\"'\" & Setup!$AJ$8 & \"'!\" & AE391),0) + IF(Setup!$AJ$9<>\"\",INDIRECT(\"'\" & Setup!$AJ$9 & \"'!\" & AE391),0) + IF(Setup!$AJ$10<>\"\",INDIRECT(\"'\" & Setup!$AJ$10 & \"'!\" & AE391),0) + IF(Setup!$AJ$11<>\"\",INDIRECT(\"'\" & Setup!$AJ$11 & \"'!\" & AE391),0) + IF(Setup!$AJ$12<>\"\",INDIRECT(\"'\" & Setup!$AJ$12 & \"'!\" & AE391),0)","v":0},"","",{"$f":"Planning!H163","v":0},"00","M179","O179","N179",null,null,{"$f":"IF(Setup!$AG$7<>\"\",INDIRECT(\"'\" & Setup!$AG$7 & \"'!\" & AF391),0) + IF(Setup!$AG$8<>\"\",INDIRECT(\"'\" & Setup!$AG$8 & \"'!\" & AF391),0) + IF(Setup!$AG$9<>\"\",INDIRECT(\"'\" & Setup!$AG$9 & \"'!\" & AF391),0) + IF(Setup!$AG$10<>\"\",INDIRECT(\"'\" & Setup!$AG$10 & \"'!\" & AF391),0) + IF(Setup!$AG$11<>\"\",INDIRECT(\"'\" & Setup!$AG$11 & \"'!\" & AF391),0) + IF(Setup!$AG$12<>\"\",INDIRECT(\"'\" & Setup!$AG$12 & \"'!\" & AF391),0)","v":0},{"$f":"IF(Setup!$AH$7<>\"\",INDIRECT(\"'\" & Setup!$AH$7 & \"'!\" & AF391),0) + IF(Setup!$AH$8<>\"\",INDIRECT(\"'\" & Setup!$AH$8 & \"'!\" & AF391),0) + IF(Setup!$AH$9<>\"\",INDIRECT(\"'\" & Setup!$AH$9 & \"'!\" & AF391),0) + IF(Setup!$AH$10<>\"\",INDIRECT(\"'\" & Setup!$AH$10 & \"'!\" & AF391),0) + IF(Setup!$AH$11<>\"\",INDIRECT(\"'\" & Setup!$AH$11 & \"'!\" & AF391),0) + IF(Setup!$AH$12<>\"\",INDIRECT(\"'\" & Setup!$AH$12 & \"'!\" & AF391),0)","v":0},{"$f":"IF(Setup!$AI$7<>\"\",INDIRECT(\"'\" & Setup!$AI$7 & \"'!\" & AF391),0) + IF(Setup!$AI$8<>\"\",INDIRECT(\"'\" & Setup!$AI$8 & \"'!\" & AF391),0) + IF(Setup!$AI$9<>\"\",INDIRECT(\"'\" & Setup!$AI$9 & \"'!\" & AF391),0) + IF(Setup!$AI$10<>\"\",INDIRECT(\"'\" & Setup!$AI$10 & \"'!\" & AF391),0) + IF(Setup!$AI$11<>\"\",INDIRECT(\"'\" & Setup!$AI$11 & \"'!\" & AF391),0) + IF(Setup!$AI$12<>\"\",INDIRECT(\"'\" & Setup!$AI$12 & \"'!\" & AF391),0)","v":0},{"$f":"IF(Setup!$AJ$7<>\"\",INDIRECT(\"'\" & Setup!$AJ$7 & \"'!\" & AF391),0) + IF(Setup!$AJ$8<>\"\",INDIRECT(\"'\" & Setup!$AJ$8 & \"'!\" & AF391),0) + IF(Setup!$AJ$9<>\"\",INDIRECT(\"'\" & Setup!$AJ$9 & \"'!\" & AF391),0) + IF(Setup!$AJ$10<>\"\",INDIRECT(\"'\" & Setup!$AJ$10 & \"'!\" & AF391),0) + IF(Setup!$AJ$11<>\"\",INDIRECT(\"'\" & Setup!$AJ$11 & \"'!\" & AF391),0) + IF(Setup!$AJ$12<>\"\",INDIRECT(\"'\" & Setup!$AJ$12 & \"'!\" & AF391),0)","v":0},null,"",{"$nulls":30},0,{"$f":"IF(Setup!$AH$7=\"\",0,INDIRECT(\"'\" & Setup!$AH$7 & \"'!\" & AF391))","v":0},{"$f":"IF(Setup!$AI$7=\"\",0,INDIRECT(\"'\" & Setup!$AI$7 & \"'!\" & AF391))","v":0},{"$f":"IF(Setup!$AJ$7=\"\",0,INDIRECT(\"'\" & Setup!$AJ$7 & \"'!\" & AF391))","v":0}]
[{"$f":"Planning!A164","v":"I156"},{"$f":"Planning!B164","v":0},{"$f":"Planning!C164","v":0},{"$f":"Planning!D164","v":0},{"$f":"Planning!E164","v":0},{"$f":"Planning!G164","v":0},0,{"v":0,"d":"0.00"},{"v":0,"d":"0.00"},"","",{"$f":"IF(Setup!$AG$7<>\"\",INDIRECT(\"'\" & Setup!$AG$7 & \"'!\" & AD392),0) + IF(Setup!$AG$8<>\"\",INDIRECT(\"'\" & Setup!$AG$8 & \"'!\" & AD392),0) + IF(Setup!$AG$9<>\"\",INDIRECT(\"'\" & Setup!$AG$9 & \"'!\" & AD392),0) + IF(Setup!$AG$10<>\"\",INDIRECT(\"'\" & Setup!$AG$10 & \"'!\" & AD392),0) + IF(Setup!$AG$11<>\"\",INDIRECT(\"'\" & Setup!$AG$11 & \"'!\" & AD392),0) + IF(Setup!$AG$12<>\"\",INDIRECT(\"'\" & Setup!$AG$12 & \"'!\" & AD392),0)","v":{"v":0,"d":"0.00"}},{"$f":"IF(Setup!$AG$7<>\"\",INDIRECT(\"'\" & Setup!$AG$7 & \"'!\" & AE392),0) + IF(Setup!$AG$8<>\"\",INDIRECT(\"'\" & Setup!$AG$8 & \"'!\" & AE392),0) + IF(Setup!$AG$9<>\"\",INDIRECT(\"'\" & Setup!$AG$9 & \"'!\" & AE392),0) + IF(Setup!$AG$10<>\"\",INDIRECT(\"'\" & Setup!$AG$10 & \"'!\" & AE392),0) + IF(Setup!$AG$11<>\"\",INDIRECT(\"'\" & Setup!$AG$11 & \"'!\" & AE392),0) + IF(Setup!$AG$12<>\"\",INDIRECT(\"'\" & Setup!$AG$12 & \"'!\" & AE392),0)","v":{"v":0,"d":"0.00"}},"","",{"$f":"IF(Setup!$AH$7<>\"\",INDIRECT(\"'\" & Setup!$AH$7 & \"'!\" & AD392),0) + IF(Setup!$AH$8<>\"\",INDIRECT(\"'\" & Setup!$AH$8 & \"'!\" & AD392),0) + IF(Setup!$AH$9<>\"\",INDIRECT(\"'\" & Setup!$AH$9 & \"'!\" & AD392),0) + IF(Setup!$AH$10<>\"\",INDIRECT(\"'\" & Setup!$AH$10 & \"'!\" & AD392),0) + IF(Setup!$AH$11<>\"\",INDIRECT(\"'\" & Setup!$AH$11 & \"'!\" & AD392),0) + IF(Setup!$AH$12<>\"\",INDIRECT(\"'\" & Setup!$AH$12 & \"'!\" & AD392),0)","v":{"v":0,"d":"0.00"}},{"$f":"IF(Setup!$AH$7<>\"\",INDIRECT(\"'\" & Setup!$AH$7 & \"'!\" & AE392),0) + IF(Setup!$AH$8<>\"\",INDIRECT(\"'\" & Setup!$AH$8 & \"'!\" & AE392),0) + IF(Setup!$AH$9<>\"\",INDIRECT(\"'\" & Setup!$AH$9 & \"'!\" & AE392),0) + IF(Setup!$AH$10<>\"\",INDIRECT(\"'\" & Setup!$AH$10 & \"'!\" & AE392),0) + IF(Setup!$AH$11<>\"\",INDIRECT(\"'\" & Setup!$AH$11 & \"'!\" & AE392),0) + IF(Setup!$AH$12<>\"\",INDIRECT(\"'\" & Setup!$AH$12 & \"'!\" & AE392),0)","v":{"v":0,"d":"0.00"}},"","",{"$f":"IF(Setup!$AI$7<>\"\",INDIRECT(\"'\" & Setup!$AI$7 & \"'!\" & AD392),0) + IF(Setup!$AI$8<>\"\",INDIRECT(\"'\" & Setup!$AI$8 & \"'!\" & AD392),0) + IF(Setup!$AI$9<>\"\",INDIRECT(\"'\" & Setup!$AI$9 & \"'!\" & AD392),0) + IF(Setup!$AI$10<>\"\",INDIRECT(\"'\" & Setup!$AI$10 & \"'!\" & AD392),0) + IF(Setup!$AI$11<>\"\",INDIRECT(\"'\" & Setup!$AI$11 & \"'!\" & AD392),0) + IF(Setup!$AI$12<>\"\",INDIRECT(\"'\" & Setup!$AI$12 & \"'!\" & AD392),0)","v":{"v":0,"d":"0.00"}},{"$f":"IF(Setup!$AI$7<>\"\",INDIRECT(\"'\" & Setup!$AI$7 & \"'!\" & AE392),0) + IF(Setup!$AI$8<>\"\",INDIRECT(\"'\" & Setup!$AI$8 & \"'!\" & AE392),0) + IF(Setup!$AI$9<>\"\",INDIRECT(\"'\" & Setup!$AI$9 & \"'!\" & AE392),0) + IF(Setup!$AI$10<>\"\",INDIRECT(\"'\" & Setup!$AI$10 & \"'!\" & AE392),0) + IF(Setup!$AI$11<>\"\",INDIRECT(\"'\" & Setup!$AI$11 & \"'!\" & AE392),0) + IF(Setup!$AI$12<>\"\",INDIRECT(\"'\" & Setup!$AI$12 & \"'!\" & AE392),0)","v":{"v":0,"d":"0.00"}},"","",{"$f":"IF(Setup!$AJ$7<>\"\",INDIRECT(\"'\" & Setup!$AJ$7 & \"'!\" & AD392),0) + IF(Setup!$AJ$8<>\"\",INDIRECT(\"'\" & Setup!$AJ$8 & \"'!\" & AD392),0) + IF(Setup!$AJ$9<>\"\",INDIRECT(\"'\" & Setup!$AJ$9 & \"'!\" & AD392),0) + IF(Setup!$AJ$10<>\"\",INDIRECT(\"'\" & Setup!$AJ$10 & \"'!\" & AD392),0) + IF(Setup!$AJ$11<>\"\",INDIRECT(\"'\" & Setup!$AJ$11 & \"'!\" & AD392),0) + IF(Setup!$AJ$12<>\"\",INDIRECT(\"'\" & Setup!$AJ$12 & \"'!\" & AD392),0)","v":0},{"$f":"IF(Setup!$AJ$7<>\"\",INDIRECT(\"'\" & Setup!$AJ$7 & \"'!\" & AE392),0) + IF(Setup!$AJ$8<>\"\",INDIRECT(\"'\" & Setup!$AJ$8 & \"'!\" & AE392),0) + IF(Setup!$AJ$9<>\"\",INDIRECT(\"'\" & Setup!$AJ$9 & \"'!\" & AE392),0) + IF(Setup!$AJ$10<>\"\",INDIRECT(\"'\" & Setup!$AJ$10 & \"'!\" & AE392),0) + IF(Setup!$AJ$11<>\"\",INDIRECT(\"'\" & Setup!$AJ$11 & \"'!\" & AE392),0) + IF(Setup!$AJ$12<>\"\",INDIRECT(\"'\" & Setup!$AJ$12 & \"'!\" & AE392),0)","v":0},"","",{"$f":"Planning!H164","v":0},"00","M180","O180","N180",null,null,{"$f":"IF(Setup!$AG$7<>\"\",INDIRECT(\"'\" & Setup!$AG$7 & \"'!\" & AF392),0) + IF(Setup!$AG$8<>\"\",INDIRECT(\"'\" & Setup!$AG$8 & \"'!\" & AF392),0) + IF(Setup!$AG$9<>\"\",INDIRECT(\"'\" & Setup!$AG$9 & \"'!\" & AF392),0) + IF(Setup!$AG$10<>\"\",INDIRECT(\"'\" & Setup!$AG$10 & \"'!\" & AF392),0) + IF(Setup!$AG$11<>\"\",INDIRECT(\"'\" & Setup!$AG$11 & \"'!\" & AF392),0) + IF(Setup!$AG$12<>\"\",INDIRECT(\"'\" & Setup!$AG$12 & \"'!\" & AF392),0)","v":0},{"$f":"IF(Setup!$AH$7<>\"\",INDIRECT(\"'\" & Setup!$AH$7 & \"'!\" & AF392),0) + IF(Setup!$AH$8<>\"\",INDIRECT(\"'\" & Setup!$AH$8 & \"'!\" & AF392),0) + IF(Setup!$AH$9<>\"\",INDIRECT(\"'\" & Setup!$AH$9 & \"'!\" & AF392),0) + IF(Setup!$AH$10<>\"\",INDIRECT(\"'\" & Setup!$AH$10 & \"'!\" & AF392),0) + IF(Setup!$AH$11<>\"\",INDIRECT(\"'\" & Setup!$AH$11 & \"'!\" & AF392),0) + IF(Setup!$AH$12<>\"\",INDIRECT(\"'\" & Setup!$AH$12 & \"'!\" & AF392),0)","v":0},{"$f":"IF(Setup!$AI$7<>\"\",INDIRECT(\"'\" & Setup!$AI$7 & \"'!\" & AF392),0) + IF(Setup!$AI$8<>\"\",INDIRECT(\"'\" & Setup!$AI$8 & \"'!\" & AF392),0) + IF(Setup!$AI$9<>\"\",INDIRECT(\"'\" & Setup!$AI$9 & \"'!\" & AF392),0) + IF(Setup!$AI$10<>\"\",INDIRECT(\"'\" & Setup!$AI$10 & \"'!\" & AF392),0) + IF(Setup!$AI$11<>\"\",INDIRECT(\"'\" & Setup!$AI$11 & \"'!\" & AF392),0) + IF(Setup!$AI$12<>\"\",INDIRECT(\"'\" & Setup!$AI$12 & \"'!\" & AF392),0)","v":0},{"$f":"IF(Setup!$AJ$7<>\"\",INDIRECT(\"'\" & Setup!$AJ$7 & \"'!\" & AF392),0) + IF(Setup!$AJ$8<>\"\",INDIRECT(\"'\" & Setup!$AJ$8 & \"'!\" & AF392),0) + IF(Setup!$AJ$9<>\"\",INDIRECT(\"'\" & Setup!$AJ$9 & \"'!\" & AF392),0) + IF(Setup!$AJ$10<>\"\",INDIRECT(\"'\" & Setup!$AJ$10 & \"'!\" & AF392),0) + IF(Setup!$AJ$11<>\"\",INDIRECT(\"'\" & Setup!$AJ$11 & \"'!\" & AF392),0) + IF(Setup!$AJ$12<>\"\",INDIRECT(\"'\" & Setup!$AJ$12 & \"'!\" & AF392),0)","v":0},null,"",{"$nulls":30},0,{"$f":"IF(Setup!$AH$7=\"\",0,INDIRECT(\"'\" & Setup!$AH$7 & \"'!\" & AF392))","v":0},{"$f":"IF(Setup!$AI$7=\"\",0,INDIRECT(\"'\" & Setup!$AI$7 & \"'!\" & AF392))","v":0},{"$f":"IF(Setup!$AJ$7=\"\",0,INDIRECT(\"'\" & Setup!$AJ$7 & \"'!\" & AF392))","v":0}]
[{"$f":"Planning!A165","v":"I157"},{"$f":"Planning!B165","v":0},{"$f":"Planning!C165","v":0},{"$f":"Planning!D165","v":0},{"$f":"Planning!E165","v":0},{"$f":"Planning!G165","v":0},0,{"v":0,"d":"0.00"},{"v":0,"d":"0.00"},"","",{"$f":"IF(Setup!$AG$7<>\"\",INDIRECT(\"'\" & Setup!$AG$7 & \"'!\" & AD393),0) + IF(Setup!$AG$8<>\"\",INDIRECT(\"'\" & Setup!$AG$8 & \"'!\" & AD393),0) + IF(Setup!$AG$9<>\"\",INDIRECT(\"'\" & Setup!$AG$9 & \"'!\" & AD393),0) + IF(Setup!$AG$10<>\"\",INDIRECT(\"'\" & Setup!$AG$10 & \"'!\" & AD393),0) + IF(Setup!$AG$11<>\"\",INDIRECT(\"'\" & Setup!$AG$11 & \"'!\" & AD393),0) + IF(Setup!$AG$12<>\"\",INDIRECT(\"'\" & Setup!$AG$12 & \"'!\" & AD393),0)","v":{"v":0,"d":"0.00"}},{"$f":"IF(Setup!$AG$7<>\"\",INDIRECT(\"'\" & Setup!$AG$7 & \"'!\" & AE393),0) + IF(Setup!$AG$8<>\"\",INDIRECT(\"'\" & Setup!$AG$8 & \"'!\" & AE393),0) + IF(Setup!$AG$9<>\"\",INDIRECT(\"'\" & Setup!$AG$9 & \"'!\" & AE393),0) + IF(Setup!$AG$10<>\"\",INDIRECT(\"'\" & Setup!$AG$10 & \"'!\" & AE393),0) + IF(Setup!$AG$11<>\"\",INDIRECT(\"'\" & Setup!$AG$11 & \"'!\" & AE393),0) + IF(Setup!$AG$12<>\"\",INDIRECT(\"'\" & Setup!$AG$12 & \"'!\" & AE393),0)","v":{"v":0,"d":"0.00"}},"","",{"$f":"IF(Setup!$AH$7<>\"\",INDIRECT(\"'\" & Setup!$AH$7 & \"'!\" & AD393),0) + IF(Setup!$AH$8<>\"\",INDIRECT(\"'\" & Setup!$AH$8 & \"'!\" & AD393),0) + IF(Setup!$AH$9<>\"\",INDIRECT(\"'\" & Setup!$AH$9 & \"'!\" & AD393),0) + IF(Setup!$AH$10<>\"\",INDIRECT(\"'\" & Setup!$AH$10 & \"'!\" & AD393),0) + IF(Setup!$AH$11<>\"\",INDIRECT(\"'\" & Setup!$AH$11 & \"'!\" & AD393),0) + IF(Setup!$AH$12<>\"\",INDIRECT(\"'\" & Setup!$AH$12 & \"'!\" & AD393),0)","v":{"v":0,"d":"0.00"}},{"$f":"IF(Setup!$AH$7<>\"\",INDIRECT(\"'\" & Setup!$AH$7 & \"'!\" & AE393),0) + IF(Setup!$AH$8<>\"\",INDIRECT(\"'\" & Setup!$AH$8 & \"'!\" & AE393),0) + IF(Setup!$AH$9<>\"\",INDIRECT(\"'\" & Setup!$AH$9 & \"'!\" & AE393),0) + IF(Setup!$AH$10<>\"\",INDIRECT(\"'\" & Setup!$AH$10 & \"'!\" & AE393),0) + IF(Setup!$AH$11<>\"\",INDIRECT(\"'\" & Setup!$AH$11 & \"'!\" & AE393),0) + IF(Setup!$AH$12<>\"\",INDIRECT(\"'\" & Setup!$AH$12 & \"'!\" & AE393),0)","v":{"v":0,"d":"0.00"}},"","",{"$f":"IF(Setup!$AI$7<>\"\",INDIRECT(\"'\" & Setup!$AI$7 & \"'!\" & AD393),0) + IF(Setup!$AI$8<>\"\",INDIRECT(\"'\" & Setup!$AI$8 & \"'!\" & AD393),0) + IF(Setup!$AI$9<>\"\",INDIRECT(\"'\" & Setup!$AI$9 & \"'!\" & AD393),0) + IF(Setup!$AI$10<>\"\",INDIRECT(\"'\" & Setup!$AI$10 & \"'!\" & AD393),0) + IF(Setup!$AI$11<>\"\",INDIRECT(\"'\" & Setup!$AI$11 & \"'!\" & AD393),0) + IF(Setup!$AI$12<>\"\",INDIRECT(\"'\" & Setup!$AI$12 & \"'!\" & AD393),0)","v":{"v":0,"d":"0.00"}},{"$f":"IF(Setup!$AI$7<>\"\",INDIRECT(\"'\" & Setup!$AI$7 & \"'!\" & AE393),0) + IF(Setup!$AI$8<>\"\",INDIRECT(\"'\" & Setup!$AI$8 & \"'!\" & AE393),0) + IF(Setup!$AI$9<>\"\",INDIRECT(\"'\" & Setup!$AI$9 & \"'!\" & AE393),0) + IF(Setup!$AI$10<>\"\",INDIRECT(\"'\" & Setup!$AI$10 & \"'!\" & AE393),0) + IF(Setup!$AI$11<>\"\",INDIRECT(\"'\" & Setup!$AI$11 & \"'!\" & AE393),0) + IF(Setup!$AI$12<>\"\",INDIRECT(\"'\" & Setup!$AI$12 & \"'!\" & AE393),0)","v":{"v":0,"d":"0.00"}},"","",{"$f":"IF(Setup!$AJ$7<>\"\",INDIRECT(\"'\" & Setup!$AJ$7 & \"'!\" & AD393),0) + IF(Setup!$AJ$8<>\"\",INDIRECT(\"'\" & Setup!$AJ$8 & \"'!\" & AD393),0) + IF(Setup!$AJ$9<>\"\",INDIRECT(\"'\" & Setup!$AJ$9 & \"'!\" & AD393),0) + IF(Setup!$AJ$10<>\"\",INDIRECT(\"'\" & Setup!$AJ$10 & \"'!\" & AD393),0) + IF(Setup!$AJ$11<>\"\",INDIRECT(\"'\" & Setup!$AJ$11 & \"'!\" & AD393),0) + IF(Setup!$AJ$12<>\"\",INDIRECT(\"'\" & Setup!$AJ$12 & \"'!\" & AD393),0)","v":0},{"$f":"IF(Setup!$AJ$7<>\"\",INDIRECT(\"'\" & Setup!$AJ$7 & \"'!\" & AE393),0) + IF(Setup!$AJ$8<>\"\",INDIRECT(\"'\" & Setup!$AJ$8 & \"'!\" & AE393),0) + IF(Setup!$AJ$9<>\"\",INDIRECT(\"'\" & Setup!$AJ$9 & \"'!\" & AE393),0) + IF(Setup!$AJ$10<>\"\",INDIRECT(\"'\" & Setup!$AJ$10 & \"'!\" & AE393),0) + IF(Setup!$AJ$11<>\"\",INDIRECT(\"'\" & Setup!$AJ$11 & \"'!\" & AE393),0) + IF(Setup!$AJ$12<>\"\",INDIRECT(\"'\" & Setup!$AJ$12 & \"'!\" & AE393),0)","v":0},"","",{"$f":"Planning!H165","v":0},"00","M181","O181","N181",null,null,{"$f":"IF(Setup!$AG$7<>\"\",INDIRECT(\"'\" & Setup!$AG$7 & \"'!\" & AF393),0) + IF(Setup!$AG$8<>\"\",INDIRECT(\"'\" & Setup!$AG$8 & \"'!\" & AF393),0) + IF(Setup!$AG$9<>\"\",INDIRECT(\"'\" & Setup!$AG$9 & \"'!\" & AF393),0) + IF(Setup!$AG$10<>\"\",INDIRECT(\"'\" & Setup!$AG$10 & \"'!\" & AF393),0) + IF(Setup!$AG$11<>\"\",INDIRECT(\"'\" & Setup!$AG$11 & \"'!\" & AF393),0) + IF(Setup!$AG$12<>\"\",INDIRECT(\"'\" & Setup!$AG$12 & \"'!\" & AF393),0)","v":0},{"$f":"IF(Setup!$AH$7<>\"\",INDIRECT(\"'\" & Setup!$AH$7 & \"'!\" & AF393),0) + IF(Setup!$AH$8<>\"\",INDIRECT(\"'\" & Setup!$AH$8 & \"'!\" & AF393),0) + IF(Setup!$AH$9<>\"\",INDIRECT(\"'\" & Setup!$AH$9 & \"'!\" & AF393),0) + IF(Setup!$AH$10<>\"\",INDIRECT(\"'\" & Setup!$AH$10 & \"'!\" & AF393),0) + IF(Setup!$AH$11<>\"\",INDIRECT(\"'\" & Setup!$AH$11 & \"'!\" & AF393),0) + IF(Setup!$AH$12<>\"\",INDIRECT(\"'\" & Setup!$AH$12 & \"'!\" & AF393),0)","v":0},{"$f":"IF(Setup!$AI$7<>\"\",INDIRECT(\"'\" & Setup!$AI$7 & \"'!\" & AF393),0) + IF(Setup!$AI$8<>\"\",INDIRECT(\"'\" & Setup!$AI$8 & \"'!\" & AF393),0) + IF(Setup!$AI$9<>\"\",INDIRECT(\"'\" & Setup!$AI$9 & \"'!\" & AF393),0) + IF(Setup!$AI$10<>\"\",INDIRECT(\"'\" & Setup!$AI$10 & \"'!\" & AF393),0) + IF(Setup!$AI$11<>\"\",INDIRECT(\"'\" & Setup!$AI$11 & \"'!\" & AF393),0) + IF(Setup!$AI$12<>\"\",INDIRECT(\"'\" & Setup!$AI$12 & \"'!\" & AF393),0)","v":0},{"$f":"IF(Setup!$AJ$7<>\"\",INDIRECT(\"'\" & Setup!$AJ$7 & \"'!\" & AF393),0) + IF(Setup!$AJ$8<>\"\",INDIRECT(\"'\" & Setup!$AJ$8 & \"'!\" & AF393),0) + IF(Setup!$AJ$9<>\"\",INDIRECT(\"'\" & Setup!$AJ$9 & \"'!\" & AF393),0) + IF(Setup!$AJ$10<>\"\",INDIRECT(\"'\" & Setup!$AJ$10 & \"'!\" & AF393),0) + IF(Setup!$AJ$11<>\"\",INDIRECT(\"'\" & Setup!$AJ$11 & \"'!\" & AF393),0) + IF(Setup!$AJ$12<>\"\",INDIRECT(\"'\" & Setup!$AJ$12 & \"'!\" & AF393),0)","v":0},null,"",{"$nulls":30},0,{"$f":"IF(Setup!$AH$7=\"\",0,INDIRECT(\"'\" & Setup!$AH$7 & \"'!\" & AF393))","v":0},{"$f":"IF(Setup!$AI$7=\"\",0,INDIRECT(\"'\" & Setup!$AI$7 & \"'!\" & AF393))","v":0},{"$f":"IF(Setup!$AJ$7=\"\",0,INDIRECT(\"'\" & Setup!$AJ$7 & \"'!\" & AF393))","v":0}]
[{"$f":"Planning!A166","v":"I158"},{"$f":"Planning!B166","v":0},{"$f":"Planning!C166","v":0},{"$f":"Planning!D166","v":0},{"$f":"Planning!E166","v":0},{"$f":"Planning!G166","v":0},0,{"v":0,"d":"0.00"},{"v":0,"d":"0.00"},"","",{"$f":"IF(Setup!$AG$7<>\"\",INDIRECT(\"'\" & Setup!$AG$7 & \"'!\" & AD394),0) + IF(Setup!$AG$8<>\"\",INDIRECT(\"'\" & Setup!$AG$8 & \"'!\" & AD394),0) + IF(Setup!$AG$9<>\"\",INDIRECT(\"'\" & Setup!$AG$9 & \"'!\" & AD394),0) + IF(Setup!$AG$10<>\"\",INDIRECT(\"'\" & Setup!$AG$10 & \"'!\" & AD394),0) + IF(Setup!$AG$11<>\"\",INDIRECT(\"'\" & Setup!$AG$11 & \"'!\" & AD394),0) + IF(Setup!$AG$12<>\"\",INDIRECT(\"'\" & Setup!$AG$12 & \"'!\" & AD394),0)","v":{"v":0,"d":"0.00"}},{"$f":"IF(Setup!$AG$7<>\"\",INDIRECT(\"'\" & Setup!$AG$7 & \"'!\" & AE394),0) + IF(Setup!$AG$8<>\"\",INDIRECT(\"'\" & Setup!$AG$8 & \"'!\" & AE394),0) + IF(Setup!$AG$9<>\"\",INDIRECT(\"'\" & Setup!$AG$9 & \"'!\" & AE394),0) + IF(Setup!$AG$10<>\"\",INDIRECT(\"'\" & Setup!$AG$10 & \"'!\" & AE394),0) + IF(Setup!$AG$11<>\"\",INDIRECT(\"'\" & Setup!$AG$11 & \"'!\" & AE394),0) + IF(Setup!$AG$12<>\"\",INDIRECT(\"'\" & Setup!$AG$12 & \"'!\" & AE394),0)","v":{"v":0,"d":"0.00"}},"","",{"$f":"IF(Setup!$AH$7<>\"\",INDIRECT(\"'\" & Setup!$AH$7 & \"'!\" & AD394),0) + IF(Setup!$AH$8<>\"\",INDIRECT(\"'\" & Setup!$AH$8 & \"'!\" & AD394),0) + IF(Setup!$AH$9<>\"\",INDIRECT(\"'\" & Setup!$AH$9 & \"'!\" & AD394),0) + IF(Setup!$AH$10<>\"\",INDIRECT(\"'\" & Setup!$AH$10 & \"'!\" & AD394),0) + IF(Setup!$AH$11<>\"\",INDIRECT(\"'\" & Setup!$AH$11 & \"'!\" & AD394),0) + IF(Setup!$AH$12<>\"\",INDIRECT(\"'\" & Setup!$AH$12 & \"'!\" & AD394),0)","v":{"v":0,"d":"0.00"}},{"$f":"IF(Setup!$AH$7<>\"\",INDIRECT(\"'\" & Setup!$AH$7 & \"'!\" & AE394),0) + IF(Setup!$AH$8<>\"\",INDIRECT(\"'\" & Setup!$AH$8 & \"'!\" & AE394),0) + IF(Setup!$AH$9<>\"\",INDIRECT(\"'\" & Setup!$AH$9 & \"'!\" & AE394),0) + IF(Setup!$AH$10<>\"\",INDIRECT(\"'\" & Setup!$AH$10 & \"'!\" & AE394),0) + IF(Setup!$AH$11<>\"\",INDIRECT(\"'\" & Setup!$AH$11 & \"'!\" & AE394),0) + IF(Setup!$AH$12<>\"\",INDIRECT(\"'\" & Setup!$AH$12 & \"'!\" & AE394),0)","v":{"v":0,"d":"0.00"}},"","",{"$f":"IF(Setup!$AI$7<>\"\",INDIRECT(\"'\" & Setup!$AI$7 & \"'!\" & AD394),0) + IF(Setup!$AI$8<>\"\",INDIRECT(\"'\" & Setup!$AI$8 & \"'!\" & AD394),0) + IF(Setup!$AI$9<>\"\",INDIRECT(\"'\" & Setup!$AI$9 & \"'!\" & AD394),0) + IF(Setup!$AI$10<>\"\",INDIRECT(\"'\" & Setup!$AI$10 & \"'!\" & AD394),0) + IF(Setup!$AI$11<>\"\",INDIRECT(\"'\" & Setup!$AI$11 & \"'!\" & AD394),0) + IF(Setup!$AI$12<>\"\",INDIRECT(\"'\" & Setup!$AI$12 & \"'!\" & AD394),0)","v":{"v":0,"d":"0.00"}},{"$f":"IF(Setup!$AI$7<>\"\",INDIRECT(\"'\" & Setup!$AI$7 & \"'!\" & AE394),0) + IF(Setup!$AI$8<>\"\",INDIRECT(\"'\" & Setup!$AI$8 & \"'!\" & AE394),0) + IF(Setup!$AI$9<>\"\",INDIRECT(\"'\" & Setup!$AI$9 & \"'!\" & AE394),0) + IF(Setup!$AI$10<>\"\",INDIRECT(\"'\" & Setup!$AI$10 & \"'!\" & AE394),0) + IF(Setup!$AI$11<>\"\",INDIRECT(\"'\" & Setup!$AI$11 & \"'!\" & AE394),0) + IF(Setup!$AI$12<>\"\",INDIRECT(\"'\" & Setup!$AI$12 & \"'!\" & AE394),0)","v":{"v":0,"d":"0.00"}},"","",{"$f":"IF(Setup!$AJ$7<>\"\",INDIRECT(\"'\" & Setup!$AJ$7 & \"'!\" & AD394),0) + IF(Setup!$AJ$8<>\"\",INDIRECT(\"'\" & Setup!$AJ$8 & \"'!\" & AD394),0) + IF(Setup!$AJ$9<>\"\",INDIRECT(\"'\" & Setup!$AJ$9 & \"'!\" & AD394),0) + IF(Setup!$AJ$10<>\"\",INDIRECT(\"'\" & Setup!$AJ$10 & \"'!\" & AD394),0) + IF(Setup!$AJ$11<>\"\",INDIRECT(\"'\" & Setup!$AJ$11 & \"'!\" & AD394),0) + IF(Setup!$AJ$12<>\"\",INDIRECT(\"'\" & Setup!$AJ$12 & \"'!\" & AD394),0)","v":0},{"$f":"IF(Setup!$AJ$7<>\"\",INDIRECT(\"'\" & Setup!$AJ$7 & \"'!\" & AE394),0) + IF(Setup!$AJ$8<>\"\",INDIRECT(\"'\" & Setup!$AJ$8 & \"'!\" & AE394),0) + IF(Setup!$AJ$9<>\"\",INDIRECT(\"'\" & Setup!$AJ$9 & \"'!\" & AE394),0) + IF(Setup!$AJ$10<>\"\",INDIRECT(\"'\" & Setup!$AJ$10 & \"'!\" & AE394),0) + IF(Setup!$AJ$11<>\"\",INDIRECT(\"'\" & Setup!$AJ$11 & \"'!\" & AE394),0) + IF(Setup!$AJ$12<>\"\",INDIRECT(\"'\" & Setup!$AJ$12 & \"'!\" & AE394),0)","v":0},"","",{"$f":"Planning!H166","v":0},"00","M182","O182","N182",null,null,{"$f":"IF(Setup!$AG$7<>\"\",INDIRECT(\"'\" & Setup!$AG$7 & \"'!\" & AF394),0) + IF(Setup!$AG$8<>\"\",INDIRECT(\"'\" & Setup!$AG$8 & \"'!\" & AF394),0) + IF(Setup!$AG$9<>\"\",INDIRECT(\"'\" & Setup!$AG$9 & \"'!\" & AF394),0) + IF(Setup!$AG$10<>\"\",INDIRECT(\"'\" & Setup!$AG$10 & \"'!\" & AF394),0) + IF(Setup!$AG$11<>\"\",INDIRECT(\"'\" & Setup!$AG$11 & \"'!\" & AF394),0) + IF(Setup!$AG$12<>\"\",INDIRECT(\"'\" & Setup!$AG$12 & \"'!\" & AF394),0)","v":0},{"$f":"IF(Setup!$AH$7<>\"\",INDIRECT(\"'\" & Setup!$AH$7 & \"'!\" & AF394),0) + IF(Setup!$AH$8<>\"\",INDIRECT(\"'\" & Setup!$AH$8 & \"'!\" & AF394),0) + IF(Setup!$AH$9<>\"\",INDIRECT(\"'\" & Setup!$AH$9 & \"'!\" & AF394),0) + IF(Setup!$AH$10<>\"\",INDIRECT(\"'\" & Setup!$AH$10 & \"'!\" & AF394),0) + IF(Setup!$AH$11<>\"\",INDIRECT(\"'\" & Setup!$AH$11 & \"'!\" & AF394),0) + IF(Setup!$AH$12<>\"\",INDIRECT(\"'\" & Setup!$AH$12 & \"'!\" & AF394),0)","v":0},{"$f":"IF(Setup!$AI$7<>\"\",INDIRECT(\"'\" & Setup!$AI$7 & \"'!\" & AF394),0) + IF(Setup!$AI$8<>\"\",INDIRECT(\"'\" & Setup!$AI$8 & \"'!\" & AF394),0) + IF(Setup!$AI$9<>\"\",INDIRECT(\"'\" & Setup!$AI$9 & \"'!\" & AF394),0) + IF(Setup!$AI$10<>\"\",INDIRECT(\"'\" & Setup!$AI$10 & \"'!\" & AF394),0) + IF(Setup!$AI$11<>\"\",INDIRECT(\"'\" & Setup!$AI$11 & \"'!\" & AF394),0) + IF(Setup!$AI$12<>\"\",INDIRECT(\"'\" & Setup!$AI$12 & \"'!\" & AF394),0)","v":0},{"$f":"IF(Setup!$AJ$7<>\"\",INDIRECT(\"'\" & Setup!$AJ$7 & \"'!\" & AF394),0) + IF(Setup!$AJ$8<>\"\",INDIRECT(\"'\" & Setup!$AJ$8 & \"'!\" & AF394),0) + IF(Setup!$AJ$9<>\"\",INDIRECT(\"'\" & Setup!$AJ$9 & \"'!\" & AF394),0) + IF(Setup!$AJ$10<>\"\",INDIRECT(\"'\" & Setup!$AJ$10 & \"'!\" & AF394),0) + IF(Setup!$AJ$11<>\"\",INDIRECT(\"'\" & Setup!$AJ$11 & \"'!\" & AF394),0) + IF(Setup!$AJ$12<>\"\",INDIRECT(\"'\" & Setup!$AJ$12 & \"'!\" & AF394),0)","v":0},null,"",{"$nulls":30},0,{"$f":"IF(Setup!$AH$7=\"\",0,INDIRECT(\"'\" & Setup!$AH$7 & \"'!\" & AF394))","v":0},{"$f":"IF(Setup!$AI$7=\"\",0,INDIRECT(\"'\" & Setup!$AI$7 & \"'!\" & AF394))","v":0},{"$f":"IF(Setup!$AJ$7=\"\",0,INDIRECT(\"'\" & Setup!$AJ$7 & \"'!\" & AF394))","v":0}]
[{"$f":"Planning!A167","v":"I159"},{"$f":"Planning!B167","v":0},{"$f":"Planning!C167","v":0},{"$f":"Planning!D167","v":0},{"$f":"Planning!E167","v":0},{"$f":"Planning!G167","v":0},0,{"v":0,"d":"0.00"},{"v":0,"d":"0.00"},"","",{"$f":"IF(Setup!$AG$7<>\"\",INDIRECT(\"'\" & Setup!$AG$7 & \"'!\" & AD395),0) + IF(Setup!$AG$8<>\"\",INDIRECT(\"'\" & Setup!$AG$8 & \"'!\" & AD395),0) + IF(Setup!$AG$9<>\"\",INDIRECT(\"'\" & Setup!$AG$9 & \"'!\" & AD395),0) + IF(Setup!$AG$10<>\"\",INDIRECT(\"'\" & Setup!$AG$10 & \"'!\" & AD395),0) + IF(Setup!$AG$11<>\"\",INDIRECT(\"'\" & Setup!$AG$11 & \"'!\" & AD395),0) + IF(Setup!$AG$12<>\"\",INDIRECT(\"'\" & Setup!$AG$12 & \"'!\" & AD395),0)","v":{"v":0,"d":"0.00"}},{"$f":"IF(Setup!$AG$7<>\"\",INDIRECT(\"'\" & Setup!$AG$7 & \"'!\" & AE395),0) + IF(Setup!$AG$8<>\"\",INDIRECT(\"'\" & Setup!$AG$8 & \"'!\" & AE395),0) + IF(Setup!$AG$9<>\"\",INDIRECT(\"'\" & Setup!$AG$9 & \"'!\" & AE395),0) + IF(Setup!$AG$10<>\"\",INDIRECT(\"'\" & Setup!$AG$10 & \"'!\" & AE395),0) + IF(Setup!$AG$11<>\"\",INDIRECT(\"'\" & Setup!$AG$11 & \"'!\" & AE395),0) + IF(Setup!$AG$12<>\"\",INDIRECT(\"'\" & Setup!$AG$12 & \"'!\" & AE395),0)","v":{"v":0,"d":"0.00"}},"","",{"$f":"IF(Setup!$AH$7<>\"\",INDIRECT(\"'\" & Setup!$AH$7 & \"'!\" & AD395),0) + IF(Setup!$AH$8<>\"\",INDIRECT(\"'\" & Setup!$AH$8 & \"'!\" & AD395),0) + IF(Setup!$AH$9<>\"\",INDIRECT(\"'\" & Setup!$AH$9 & \"'!\" & AD395),0) + IF(Setup!$AH$10<>\"\",INDIRECT(\"'\" & Setup!$AH$10 & \"'!\" & AD395),0) + IF(Setup!$AH$11<>\"\",INDIRECT(\"'\" & Setup!$AH$11 & \"'!\" & AD395),0) + IF(Setup!$AH$12<>\"\",INDIRECT(\"'\" & Setup!$AH$12 & \"'!\" & AD395),0)","v":{"v":0,"d":"0.00"}},{"$f":"IF(Setup!$AH$7<>\"\",INDIRECT(\"'\" & Setup!$AH$7 & \"'!\" & AE395),0) + IF(Setup!$AH$8<>\"\",INDIRECT(\"'\" & Setup!$AH$8 & \"'!\" & AE395),0) + IF(Setup!$AH$9<>\"\",INDIRECT(\"'\" & Setup!$AH$9 & \"'!\" & AE395),0) + IF(Setup!$AH$10<>\"\",INDIRECT(\"'\" & Setup!$AH$10 & \"'!\" & AE395),0) + IF(Setup!$AH$11<>\"\",INDIRECT(\"'\" & Setup!$AH$11 & \"'!\" & AE395),0) + IF(Setup!$AH$12<>\"\",INDIRECT(\"'\" & Setup!$AH$12 & \"'!\" & AE395),0)","v":{"v":0,"d":"0.00"}},"","",{"$f":"IF(Setup!$AI$7<>\"\",INDIRECT(\"'\" & Setup!$AI$7 & \"'!\" & AD395),0) + IF(Setup!$AI$8<>\"\",INDIRECT(\"'\" & Setup!$AI$8 & \"'!\" & AD395),0) + IF(Setup!$AI$9<>\"\",INDIRECT(\"'\" & Setup!$AI$9 & \"'!\" & AD395),0) + IF(Setup!$AI$10<>\"\",INDIRECT(\"'\" & Setup!$AI$10 & \"'!\" & AD395),0) + IF(Setup!$AI$11<>\"\",INDIRECT(\"'\" & Setup!$AI$11 & \"'!\" & AD395),0) + IF(Setup!$AI$12<>\"\",INDIRECT(\"'\" & Setup!$AI$12 & \"'!\" & AD395),0)","v":{"v":0,"d":"0.00"}},{"$f":"IF(Setup!$AI$7<>\"\",INDIRECT(\"'\" & Setup!$AI$7 & \"'!\" & AE395),0) + IF(Setup!$AI$8<>\"\",INDIRECT(\"'\" & Setup!$AI$8 & \"'!\" & AE395),0) + IF(Setup!$AI$9<>\"\",INDIRECT(\"'\" & Setup!$AI$9 & \"'!\" & AE395),0) + IF(Setup!$AI$10<>\"\",INDIRECT(\"'\" & Setup!$AI$10 & \"'!\" & AE395),0) + IF(Setup!$AI$11<>\"\",INDIRECT(\"'\" & Setup!$AI$11 & \"'!\" & AE395),0) + IF(Setup!$AI$12<>\"\",INDIRECT(\"'\" & Setup!$AI$12 & \"'!\" & AE395),0)","v":{"v":0,"d":"0.00"}},"","",{"$f":"IF(Setup!$AJ$7<>\"\",INDIRECT(\"'\" & Setup!$AJ$7 & \"'!\" & AD395),0) + IF(Setup!$AJ$8<>\"\",INDIRECT(\"'\" & Setup!$AJ$8 & \"'!\" & AD395),0) + IF(Setup!$AJ$9<>\"\",INDIRECT(\"'\" & Setup!$AJ$9 & \"'!\" & AD395),0) + IF(Setup!$AJ$10<>\"\",INDIRECT(\"'\" & Setup!$AJ$10 & \"'!\" & AD395),0) + IF(Setup!$AJ$11<>\"\",INDIRECT(\"'\" & Setup!$AJ$11 & \"'!\" & AD395),0) + IF(Setup!$AJ$12<>\"\",INDIRECT(\"'\" & Setup!$AJ$12 & \"'!\" & AD395),0)","v":0},{"$f":"IF(Setup!$AJ$7<>\"\",INDIRECT(\"'\" & Setup!$AJ$7 & \"'!\" & AE395),0) + IF(Setup!$AJ$8<>\"\",INDIRECT(\"'\" & Setup!$AJ$8 & \"'!\" & AE395),0) + IF(Setup!$AJ$9<>\"\",INDIRECT(\"'\" & Setup!$AJ$9 & \"'!\" & AE395),0) + IF(Setup!$AJ$10<>\"\",INDIRECT(\"'\" & Setup!$AJ$10 & \"'!\" & AE395),0) + IF(Setup!$AJ$11<>\"\",INDIRECT(\"'\" & Setup!$AJ$11 & \"'!\" & AE395),0) + IF(Setup!$AJ$12<>\"\",INDIRECT(\"'\" & Setup!$AJ$12 & \"'!\" & AE395),0)","v":0},"","",{"$f":"Planning!H167","v":0},"00","M183","O183","N183",null,null,{"$f":"IF(Setup!$AG$7<>\"\",INDIRECT(\"'\" & Setup!$AG$7 & \"'!\" & AF395),0) + IF(Setup!$AG$8<>\"\",INDIRECT(\"'\" & Setup!$AG$8 & \"'!\" & AF395),0) + IF(Setup!$AG$9<>\"\",INDIRECT(\"'\" & Setup!$AG$9 & \"'!\" & AF395),0) + IF(Setup!$AG$10<>\"\",INDIRECT(\"'\" & Setup!$AG$10 & \"'!\" & AF395),0) + IF(Setup!$AG$11<>\"\",INDIRECT(\"'\" & Setup!$AG$11 & \"'!\" & AF395),0) + IF(Setup!$AG$12<>\"\",INDIRECT(\"'\" & Setup!$AG$12 & \"'!\" & AF395),0)","v":0},{"$f":"IF(Setup!$AH$7<>\"\",INDIRECT(\"'\" & Setup!$AH$7 & \"'!\" & AF395),0) + IF(Setup!$AH$8<>\"\",INDIRECT(\"'\" & Setup!$AH$8 & \"'!\" & AF395),0) + IF(Setup!$AH$9<>\"\",INDIRECT(\"'\" & Setup!$AH$9 & \"'!\" & AF395),0) + IF(Setup!$AH$10<>\"\",INDIRECT(\"'\" & Setup!$AH$10 & \"'!\" & AF395),0) + IF(Setup!$AH$11<>\"\",INDIRECT(\"'\" & Setup!$AH$11 & \"'!\" & AF395),0) + IF(Setup!$AH$12<>\"\",INDIRECT(\"'\" & Setup!$AH$12 & \"'!\" & AF395),0)","v":0},{"$f":"IF(Setup!$AI$7<>\"\",INDIRECT(\"'\" & Setup!$AI$7 & \"'!\" & AF395),0) + IF(Setup!$AI$8<>\"\",INDIRECT(\"'\" & Setup!$AI$8 & \"'!\" & AF395),0) + IF(Setup!$AI$9<>\"\",INDIRECT(\"'\" & Setup!$AI$9 & \"'!\" & AF395),0) + IF(Setup!$AI$10<>\"\",INDIRECT(\"'\" & Setup!$AI$10 & \"'!\" & AF395),0) + IF(Setup!$AI$11<>\"\",INDIRECT(\"'\" & Setup!$AI$11 & \"'!\" & AF395),0) + IF(Setup!$AI$12<>\"\",INDIRECT(\"'\" & Setup!$AI$12 & \"'!\" & AF395),0)","v":0},{"$f":"IF(Setup!$AJ$7<>\"\",INDIRECT(\"'\" & Setup!$AJ$7 & \"'!\" & AF395),0) + IF(Setup!$AJ$8<>\"\",INDIRECT(\"'\" & Setup!$AJ$8 & \"'!\" & AF395),0) + IF(Setup!$AJ$9<>\"\",INDIRECT(\"'\" & Setup!$AJ$9 & \"'!\" & AF395),0) + IF(Setup!$AJ$10<>\"\",INDIRECT(\"'\" & Setup!$AJ$10 & \"'!\" & AF395),0) + IF(Setup!$AJ$11<>\"\",INDIRECT(\"'\" & Setup!$AJ$11 & \"'!\" & AF395),0) + IF(Setup!$AJ$12<>\"\",INDIRECT(\"'\" & Setup!$AJ$12 & \"'!\" & AF395),0)","v":0},null,"",{"$nulls":30},0,{"$f":"IF(Setup!$AH$7=\"\",0,INDIRECT(\"'\" & Setup!$AH$7 & \"'!\" & AF395))","v":0},{"$f":"IF(Setup!$AI$7=\"\",0,INDIRECT(\"'\" & Setup!$AI$7 & \"'!\" & AF395))","v":0},{"$f":"IF(Setup!$AJ$7=\"\",0,INDIRECT(\"'\" & Setup!$AJ$7 & \"'!\" & AF395))","v":0}]
[{"$f":"Planning!A168","v":"I160"},{"$f":"Planning!B168","v":0},{"$f":"Planning!C168","v":0},{"$f":"Planning!D168","v":0},{"$f":"Planning!E168","v":0},{"$f":"Planning!G168","v":0},0,{"v":0,"d":"0.00"},{"v":0,"d":"0.00"},"","",{"$f":"IF(Setup!$AG$7<>\"\",INDIRECT(\"'\" & Setup!$AG$7 & \"'!\" & AD396),0) + IF(Setup!$AG$8<>\"\",INDIRECT(\"'\" & Setup!$AG$8 & \"'!\" & AD396),0) + IF(Setup!$AG$9<>\"\",INDIRECT(\"'\" & Setup!$AG$9 & \"'!\" & AD396),0) + IF(Setup!$AG$10<>\"\",INDIRECT(\"'\" & Setup!$AG$10 & \"'!\" & AD396),0) + IF(Setup!$AG$11<>\"\",INDIRECT(\"'\" & Setup!$AG$11 & \"'!\" & AD396),0) + IF(Setup!$AG$12<>\"\",INDIRECT(\"'\" & Setup!$AG$12 & \"'!\" & AD396),0)","v":{"v":0,"d":"0.00"}},{"$f":"IF(Setup!$AG$7<>\"\",INDIRECT(\"'\" & Setup!$AG$7 & \"'!\" & AE396),0) + IF(Setup!$AG$8<>\"\",INDIRECT(\"'\" & Setup!$AG$8 & \"'!\" & AE396),0) + IF(Setup!$AG$9<>\"\",INDIRECT(\"'\" & Setup!$AG$9 & \"'!\" & AE396),0) + IF(Setup!$AG$10<>\"\",INDIRECT(\"'\" & Setup!$AG$10 & \"'!\" & AE396),0) + IF(Setup!$AG$11<>\"\",INDIRECT(\"'\" & Setup!$AG$11 & \"'!\" & AE396),0) + IF(Setup!$AG$12<>\"\",INDIRECT(\"'\" & Setup!$AG$12 & \"'!\" & AE396),0)","v":{"v":0,"d":"0.00"}},"","",{"$f":"IF(Setup!$AH$7<>\"\",INDIRECT(\"'\" & Setup!$AH$7 & \"'!\" & AD396),0) + IF(Setup!$AH$8<>\"\",INDIRECT(\"'\" & Setup!$AH$8 & \"'!\" & AD396),0) + IF(Setup!$AH$9<>\"\",INDIRECT(\"'\" & Setup!$AH$9 & \"'!\" & AD396),0) + IF(Setup!$AH$10<>\"\",INDIRECT(\"'\" & Setup!$AH$10 & \"'!\" & AD396),0) + IF(Setup!$AH$11<>\"\",INDIRECT(\"'\" & Setup!$AH$11 & \"'!\" & AD396),0) + IF(Setup!$AH$12<>\"\",INDIRECT(\"'\" & Setup!$AH$12 & \"'!\" & AD396),0)","v":{"v":0,"d":"0.00"}},{"$f":"IF(Setup!$AH$7<>\"\",INDIRECT(\"'\" & Setup!$AH$7 & \"'!\" & AE396),0) + IF(Setup!$AH$8<>\"\",INDIRECT(\"'\" & Setup!$AH$8 & \"'!\" & AE396),0) + IF(Setup!$AH$9<>\"\",INDIRECT(\"'\" & Setup!$AH$9 & \"'!\" & AE396),0) + IF(Setup!$AH$10<>\"\",INDIRECT(\"'\" & Setup!$AH$10 & \"'!\" & AE396),0) + IF(Setup!$AH$11<>\"\",INDIRECT(\"'\" & Setup!$AH$11 & \"'!\" & AE396),0) + IF(Setup!$AH$12<>\"\",INDIRECT(\"'\" & Setup!$AH$12 & \"'!\" & AE396),0)","v":{"v":0,"d":"0.00"}},"","",{"$f":"IF(Setup!$AI$7<>\"\",INDIRECT(\"'\" & Setup!$AI$7 & \"'!\" & AD396),0) + IF(Setup!$AI$8<>\"\",INDIRECT(\"'\" & Setup!$AI$8 & \"'!\" & AD396),0) + IF(Setup!$AI$9<>\"\",INDIRECT(\"'\" & Setup!$AI$9 & \"'!\" & AD396),0) + IF(Setup!$AI$10<>\"\",INDIRECT(\"'\" & Setup!$AI$10 & \"'!\" & AD396),0) + IF(Setup!$AI$11<>\"\",INDIRECT(\"'\" & Setup!$AI$11 & \"'!\" & AD396),0) + IF(Setup!$AI$12<>\"\",INDIRECT(\"'\" & Setup!$AI$12 & \"'!\" & AD396),0)","v":{"v":0,"d":"0.00"}},{"$f":"IF(Setup!$AI$7<>\"\",INDIRECT(\"'\" & Setup!$AI$7 & \"'!\" & AE396),0) + IF(Setup!$AI$8<>\"\",INDIRECT(\"'\" & Setup!$AI$8 & \"'!\" & AE396),0) + IF(Setup!$AI$9<>\"\",INDIRECT(\"'\" & Setup!$AI$9 & \"'!\" & AE396),0) + IF(Setup!$AI$10<>\"\",INDIRECT(\"'\" & Setup!$AI$10 & \"'!\" & AE396),0) + IF(Setup!$AI$11<>\"\",INDIRECT(\"'\" & Setup!$AI$11 & \"'!\" & AE396),0) + IF(Setup!$AI$12<>\"\",INDIRECT(\"'\" & Setup!$AI$12 & \"'!\" & AE396),0)","v":{"v":0,"d":"0.00"}},"","",{"$f":"IF(Setup!$AJ$7<>\"\",INDIRECT(\"'\" & Setup!$AJ$7 & \"'!\" & AD396),0) + IF(Setup!$AJ$8<>\"\",INDIRECT(\"'\" & Setup!$AJ$8 & \"'!\" & AD396),0) + IF(Setup!$AJ$9<>\"\",INDIRECT(\"'\" & Setup!$AJ$9 & \"'!\" & AD396),0) + IF(Setup!$AJ$10<>\"\",INDIRECT(\"'\" & Setup!$AJ$10 & \"'!\" & AD396),0) + IF(Setup!$AJ$11<>\"\",INDIRECT(\"'\" & Setup!$AJ$11 & \"'!\" & AD396),0) + IF(Setup!$AJ$12<>\"\",INDIRECT(\"'\" & Setup!$AJ$12 & \"'!\" & AD396),0)","v":0},{"$f":"IF(Setup!$AJ$7<>\"\",INDIRECT(\"'\" & Setup!$AJ$7 & \"'!\" & AE396),0) + IF(Setup!$AJ$8<>\"\",INDIRECT(\"'\" & Setup!$AJ$8 & \"'!\" & AE396),0) + IF(Setup!$AJ$9<>\"\",INDIRECT(\"'\" & Setup!$AJ$9 & \"'!\" & AE396),0) + IF(Setup!$AJ$10<>\"\",INDIRECT(\"'\" & Setup!$AJ$10 & \"'!\" & AE396),0) + IF(Setup!$AJ$11<>\"\",INDIRECT(\"'\" & Setup!$AJ$11 & \"'!\" & AE396),0) + IF(Setup!$AJ$12<>\"\",INDIRECT(\"'\" & Setup!$AJ$12 & \"'!\" & AE396),0)","v":0},"","",{"$f":"Planning!H168","v":0},"00","M184","O184","N184",null,null,{"$f":"IF(Setup!$AG$7<>\"\",INDIRECT(\"'\" & Setup!$AG$7 & \"'!\" & AF396),0) + IF(Setup!$AG$8<>\"\",INDIRECT(\"'\" & Setup!$AG$8 & \"'!\" & AF396),0) + IF(Setup!$AG$9<>\"\",INDIRECT(\"'\" & Setup!$AG$9 & \"'!\" & AF396),0) + IF(Setup!$AG$10<>\"\",INDIRECT(\"'\" & Setup!$AG$10 & \"'!\" & AF396),0) + IF(Setup!$AG$11<>\"\",INDIRECT(\"'\" & Setup!$AG$11 & \"'!\" & AF396),0) + IF(Setup!$AG$12<>\"\",INDIRECT(\"'\" & Setup!$AG$12 & \"'!\" & AF396),0)","v":0},{"$f":"IF(Setup!$AH$7<>\"\",INDIRECT(\"'\" & Setup!$AH$7 & \"'!\" & AF396),0) + IF(Setup!$AH$8<>\"\",INDIRECT(\"'\" & Setup!$AH$8 & \"'!\" & AF396),0) + IF(Setup!$AH$9<>\"\",INDIRECT(\"'\" & Setup!$AH$9 & \"'!\" & AF396),0) + IF(Setup!$AH$10<>\"\",INDIRECT(\"'\" & Setup!$AH$10 & \"'!\" & AF396),0) + IF(Setup!$AH$11<>\"\",INDIRECT(\"'\" & Setup!$AH$11 & \"'!\" & AF396),0) + IF(Setup!$AH$12<>\"\",INDIRECT(\"'\" & Setup!$AH$12 & \"'!\" & AF396),0)","v":0},{"$f":"IF(Setup!$AI$7<>\"\",INDIRECT(\"'\" & Setup!$AI$7 & \"'!\" & AF396),0) + IF(Setup!$AI$8<>\"\",INDIRECT(\"'\" & Setup!$AI$8 & \"'!\" & AF396),0) + IF(Setup!$AI$9<>\"\",INDIRECT(\"'\" & Setup!$AI$9 & \"'!\" & AF396),0) + IF(Setup!$AI$10<>\"\",INDIRECT(\"'\" & Setup!$AI$10 & \"'!\" & AF396),0) + IF(Setup!$AI$11<>\"\",INDIRECT(\"'\" & Setup!$AI$11 & \"'!\" & AF396),0) + IF(Setup!$AI$12<>\"\",INDIRECT(\"'\" & Setup!$AI$12 & \"'!\" & AF396),0)","v":0},{"$f":"IF(Setup!$AJ$7<>\"\",INDIRECT(\"'\" & Setup!$AJ$7 & \"'!\" & AF396),0) + IF(Setup!$AJ$8<>\"\",INDIRECT(\"'\" & Setup!$AJ$8 & \"'!\" & AF396),0) + IF(Setup!$AJ$9<>\"\",INDIRECT(\"'\" & Setup!$AJ$9 & \"'!\" & AF396),0) + IF(Setup!$AJ$10<>\"\",INDIRECT(\"'\" & Setup!$AJ$10 & \"'!\" & AF396),0) + IF(Setup!$AJ$11<>\"\",INDIRECT(\"'\" & Setup!$AJ$11 & \"'!\" & AF396),0) + IF(Setup!$AJ$12<>\"\",INDIRECT(\"'\" & Setup!$AJ$12 & \"'!\" & AF396),0)","v":0},null,"",{"$nulls":30},0,{"$f":"IF(Setup!$AH$7=\"\",0,INDIRECT(\"'\" & Setup!$AH$7 & \"'!\" & AF396))","v":0},{"$f":"IF(Setup!$AI$7=\"\",0,INDIRECT(\"'\" & Setup!$AI$7 & \"'!\" & AF396))","v":0},{"$f":"IF(Setup!$AJ$7=\"\",0,INDIRECT(\"'\" & Setup!$AJ$7 & \"'!\" & AF396))","v":0}]
[{"$f":"Planning!A169","v":"I161"},{"$f":"Planning!B169","v":0},{"$f":"Planning!C169","v":0},{"$f":"Planning!D169","v":0},{"$f":"Planning!E169","v":0},{"$f":"Planning!G169","v":0},0,{"v":0,"d":"0.00"},{"v":0,"d":"0.00"},"",{"$f":"IF($AN397 = ExcluirDelPLogro,\"\",IF(AND(H397=0,I397=0),\"\",J397))","v":""},{"$f":"IF(Setup!$AG$7<>\"\",INDIRECT(\"'\" & Setup!$AG$7 & \"'!\" & AD397),0) + IF(Setup!$AG$8<>\"\",INDIRECT(\"'\" & Setup!$AG$8 & \"'!\" & AD397),0) + IF(Setup!$AG$9<>\"\",INDIRECT(\"'\" & Setup!$AG$9 & \"'!\" & AD397),0) + IF(Setup!$AG$10<>\"\",INDIRECT(\"'\" & Setup!$AG$10 & \"'!\" & AD397),0) + IF(Setup!$AG$11<>\"\",INDIRECT(\"'\" & Setup!$AG$11 & \"'!\" & AD397),0) + IF(Setup!$AG$12<>\"\",INDIRECT(\"'\" & Setup!$AG$12 & \"'!\" & AD397),0)","v":{"v":0,"d":"0.00"}},{"$f":"IF(Setup!$AG$7<>\"\",INDIRECT(\"'\" & Setup!$AG$7 & \"'!\" & AE397),0) + IF(Setup!$AG$8<>\"\",INDIRECT(\"'\" & Setup!$AG$8 & \"'!\" & AE397),0) + IF(Setup!$AG$9<>\"\",INDIRECT(\"'\" & Setup!$AG$9 & \"'!\" & AE397),0) + IF(Setup!$AG$10<>\"\",INDIRECT(\"'\" & Setup!$AG$10 & \"'!\" & AE397),0) + IF(Setup!$AG$11<>\"\",INDIRECT(\"'\" & Setup!$AG$11 & \"'!\" & AE397),0) + IF(Setup!$AG$12<>\"\",INDIRECT(\"'\" & Setup!$AG$12 & \"'!\" & AE397),0)","v":{"v":0,"d":"0.00"}},"",{"$f":"IF($AN397=ExcluirDelPLogro,\"\",IF(AND(L397=0,M397=0),\"\",N397))","v":""},{"$f":"IF(Setup!$AH$7<>\"\",INDIRECT(\"'\" & Setup!$AH$7 & \"'!\" & AD397),0) + IF(Setup!$AH$8<>\"\",INDIRECT(\"'\" & Setup!$AH$8 & \"'!\" & AD397),0) + IF(Setup!$AH$9<>\"\",INDIRECT(\"'\" & Setup!$AH$9 & \"'!\" & AD397),0) + IF(Setup!$AH$10<>\"\",INDIRECT(\"'\" & Setup!$AH$10 & \"'!\" & AD397),0) + IF(Setup!$AH$11<>\"\",INDIRECT(\"'\" & Setup!$AH$11 & \"'!\" & AD397),0) + IF(Setup!$AH$12<>\"\",INDIRECT(\"'\" & Setup!$AH$12 & \"'!\" & AD397),0)","v":{"v":0,"d":"0.00"}},{"$f":"IF(Setup!$AH$7<>\"\",INDIRECT(\"'\" & Setup!$AH$7 & \"'!\" & AE397),0) + IF(Setup!$AH$8<>\"\",INDIRECT(\"'\" & Setup!$AH$8 & \"'!\" & AE397),0) + IF(Setup!$AH$9<>\"\",INDIRECT(\"'\" & Setup!$AH$9 & \"'!\" & AE397),0) + IF(Setup!$AH$10<>\"\",INDIRECT(\"'\" & Setup!$AH$10 & \"'!\" & AE397),0) + IF(Setup!$AH$11<>\"\",INDIRECT(\"'\" & Setup!$AH$11 & \"'!\" & AE397),0) + IF(Setup!$AH$12<>\"\",INDIRECT(\"'\" & Setup!$AH$12 & \"'!\" & AE397),0)","v":{"v":0,"d":"0.00"}},"",{"$f":"IF($AN397=ExcluirDelPLogro,\"\",IF(AND(P397=0,Q397=0),\"\",R397))","v":""},{"$f":"IF(Setup!$AI$7<>\"\",INDIRECT(\"'\" & Setup!$AI$7 & \"'!\" & AD397),0) + IF(Setup!$AI$8<>\"\",INDIRECT(\"'\" & Setup!$AI$8 & \"'!\" & AD397),0) + IF(Setup!$AI$9<>\"\",INDIRECT(\"'\" & Setup!$AI$9 & \"'!\" & AD397),0) + IF(Setup!$AI$10<>\"\",INDIRECT(\"'\" & Setup!$AI$10 & \"'!\" & AD397),0) + IF(Setup!$AI$11<>\"\",INDIRECT(\"'\" & Setup!$AI$11 & \"'!\" & AD397),0) + IF(Setup!$AI$12<>\"\",INDIRECT(\"'\" & Setup!$AI$12 & \"'!\" & AD397),0)","v":{"v":0,"d":"0.00"}},{"$f":"IF(Setup!$AI$7<>\"\",INDIRECT(\"'\" & Setup!$AI$7 & \"'!\" & AE397),0) + IF(Setup!$AI$8<>\"\",INDIRECT(\"'\" & Setup!$AI$8 & \"'!\" & AE397),0) + IF(Setup!$AI$9<>\"\",INDIRECT(\"'\" & Setup!$AI$9 & \"'!\" & AE397),0) + IF(Setup!$AI$10<>\"\",INDIRECT(\"'\" & Setup!$AI$10 & \"'!\" & AE397),0) + IF(Setup!$AI$11<>\"\",INDIRECT(\"'\" & Setup!$AI$11 & \"'!\" & AE397),0) + IF(Setup!$AI$12<>\"\",INDIRECT(\"'\" & Setup!$AI$12 & \"'!\" & AE397),0)","v":{"v":0,"d":"0.00"}},"",{"$f":"IF($AN397=ExcluirDelPLogro,\"\",IF(AND(T397=0,U397=0),\"\",V397))","v":""},{"$f":"IF(Setup!$AJ$7<>\"\",INDIRECT(\"'\" & Setup!$AJ$7 & \"'!\" & AD397),0) + IF(Setup!$AJ$8<>\"\",INDIRECT(\"'\" & Setup!$AJ$8 & \"'!\" & AD397),0) + IF(Setup!$AJ$9<>\"\",INDIRECT(\"'\" & Setup!$AJ$9 & \"'!\" & AD397),0) + IF(Setup!$AJ$10<>\"\",INDIRECT(\"'\" & Setup!$AJ$10 & \"'!\" & AD397),0) + IF(Setup!$AJ$11<>\"\",INDIRECT(\"'\" & Setup!$AJ$11 & \"'!\" & AD397),0) + IF(Setup!$AJ$12<>\"\",INDIRECT(\"'\" & Setup!$AJ$12 & \"'!\" & AD397),0)","v":0},{"$f":"IF(Setup!$AJ$7<>\"\",INDIRECT(\"'\" & Setup!$AJ$7 & \"'!\" & AE397),0) + IF(Setup!$AJ$8<>\"\",INDIRECT(\"'\" & Setup!$AJ$8 & \"'!\" & AE397),0) + IF(Setup!$AJ$9<>\"\",INDIRECT(\"'\" & Setup!$AJ$9 & \"'!\" & AE397),0) + IF(Setup!$AJ$10<>\"\",INDIRECT(\"'\" & Setup!$AJ$10 & \"'!\" & AE397),0) + IF(Setup!$AJ$11<>\"\",INDIRECT(\"'\" & Setup!$AJ$11 & \"'!\" & AE397),0) + IF(Setup!$AJ$12<>\"\",INDIRECT(\"'\" & Setup!$AJ$12 & \"'!\" & AE397),0)","v":0},"",{"$f":"IF($AN397=ExcluirDelPLogro,\"\",IF(AND(X397=0,Y397=0),\"\",Z397))","v":""},{"$f":"Planning!H169","v":0},"00","M185","O185","N185",null,null,{"$f":"IF(Setup!$AG$7<>\"\",INDIRECT(\"'\" & Setup!$AG$7 & \"'!\" & AF397),0) + IF(Setup!$AG$8<>\"\",INDIRECT(\"'\" & Setup!$AG$8 & \"'!\" & AF397),0) + IF(Setup!$AG$9<>\"\",INDIRECT(\"'\" & Setup!$AG$9 & \"'!\" & AF397),0) + IF(Setup!$AG$10<>\"\",INDIRECT(\"'\" & Setup!$AG$10 & \"'!\" & AF397),0) + IF(Setup!$AG$11<>\"\",INDIRECT(\"'\" & Setup!$AG$11 & \"'!\" & AF397),0) + IF(Setup!$AG$12<>\"\",INDIRECT(\"'\" & Setup!$AG$12 & \"'!\" & AF397),0)","v":0},{"$f":"IF(Setup!$AH$7<>\"\",INDIRECT(\"'\" & Setup!$AH$7 & \"'!\" & AF397),0) + IF(Setup!$AH$8<>\"\",INDIRECT(\"'\" & Setup!$AH$8 & \"'!\" & AF397),0) + IF(Setup!$AH$9<>\"\",INDIRECT(\"'\" & Setup!$AH$9 & \"'!\" & AF397),0) + IF(Setup!$AH$10<>\"\",INDIRECT(\"'\" & Setup!$AH$10 & \"'!\" & AF397),0) + IF(Setup!$AH$11<>\"\",INDIRECT(\"'\" & Setup!$AH$11 & \"'!\" & AF397),0) + IF(Setup!$AH$12<>\"\",INDIRECT(\"'\" & Setup!$AH$12 & \"'!\" & AF397),0)","v":0},{"$f":"IF(Setup!$AI$7<>\"\",INDIRECT(\"'\" & Setup!$AI$7 & \"'!\" & AF397),0) + IF(Setup!$AI$8<>\"\",INDIRECT(\"'\" & Setup!$AI$8 & \"'!\" & AF397),0) + IF(Setup!$AI$9<>\"\",INDIRECT(\"'\" & Setup!$AI$9 & \"'!\" & AF397),0) + IF(Setup!$AI$10<>\"\",INDIRECT(\"'\" & Setup!$AI$10 & \"'!\" & AF397),0) + IF(Setup!$AI$11<>\"\",INDIRECT(\"'\" & Setup!$AI$11 & \"'!\" & AF397),0) + IF(Setup!$AI$12<>\"\",INDIRECT(\"'\" & Setup!$AI$12 & \"'!\" & AF397),0)","v":0},{"$f":"IF(Setup!$AJ$7<>\"\",INDIRECT(\"'\" & Setup!$AJ$7 & \"'!\" & AF397),0) + IF(Setup!$AJ$8<>\"\",INDIRECT(\"'\" & Setup!$AJ$8 & \"'!\" & AF397),0) + IF(Setup!$AJ$9<>\"\",INDIRECT(\"'\" & Setup!$AJ$9 & \"'!\" & AF397),0) + IF(Setup!$AJ$10<>\"\",INDIRECT(\"'\" & Setup!$AJ$10 & \"'!\" & AF397),0) + IF(Setup!$AJ$11<>\"\",INDIRECT(\"'\" & Setup!$AJ$11 & \"'!\" & AF397),0) + IF(Setup!$AJ$12<>\"\",INDIRECT(\"'\" & Setup!$AJ$12 & \"'!\" & AF397),0)","v":0},null,"",{"$nulls":30},0,{"$f":"IF(Setup!$AH$7=\"\",0,INDIRECT(\"'\" & Setup!$AH$7 & \"'!\" & AF397))","v":0},{"$f":"IF(Setup!$AI$7=\"\",0,INDIRECT(\"'\" & Setup!$AI$7 & \"'!\" & AF397))","v":0},{"$f":"IF(Setup!$AJ$7=\"\",0,INDIRECT(\"'\" & Setup!$AJ$7 & \"'!\" & AF397))","v":0}]
[{"$f":"Planning!A170","v":"I162"},{"$f":"Planning!B170","v":0},{"$f":"Planning!C170","v":0},{"$f":"Planning!D170","v":0},{"$f":"Planning!E170","v":0},{"$f":"Planning!G170","v":0},0,{"v":0,"d":"0.00"},{"v":0,"d":"0.00"},"","",{"$f":"IF(Setup!$AG$7<>\"\",INDIRECT(\"'\" & Setup!$AG$7 & \"'!\" & AD398),0) + IF(Setup!$AG$8<>\"\",INDIRECT(\"'\" & Setup!$AG$8 & \"'!\" & AD398),0) + IF(Setup!$AG$9<>\"\",INDIRECT(\"'\" & Setup!$AG$9 & \"'!\" & AD398),0) + IF(Setup!$AG$10<>\"\",INDIRECT(\"'\" & Setup!$AG$10 & \"'!\" & AD398),0) + IF(Setup!$AG$11<>\"\",INDIRECT(\"'\" & Setup!$AG$11 & \"'!\" & AD398),0) + IF(Setup!$AG$12<>\"\",INDIRECT(\"'\" & Setup!$AG$12 & \"'!\" & AD398),0)","v":{"v":0,"d":"0.00"}},{"$f":"IF(Setup!$AG$7<>\"\",INDIRECT(\"'\" & Setup!$AG$7 & \"'!\" & AE398),0) + IF(Setup!$AG$8<>\"\",INDIRECT(\"'\" & Setup!$AG$8 & \"'!\" & AE398),0) + IF(Setup!$AG$9<>\"\",INDIRECT(\"'\" & Setup!$AG$9 & \"'!\" & AE398),0) + IF(Setup!$AG$10<>\"\",INDIRECT(\"'\" & Setup!$AG$10 & \"'!\" & AE398),0) + IF(Setup!$AG$11<>\"\",INDIRECT(\"'\" & Setup!$AG$11 & \"'!\" & AE398),0) + IF(Setup!$AG$12<>\"\",INDIRECT(\"'\" & Setup!$AG$12 & \"'!\" & AE398),0)","v":{"v":0,"d":"0.00"}},"","",{"$f":"IF(Setup!$AH$7<>\"\",INDIRECT(\"'\" & Setup!$AH$7 & \"'!\" & AD398),0) + IF(Setup!$AH$8<>\"\",INDIRECT(\"'\" & Setup!$AH$8 & \"'!\" & AD398),0) + IF(Setup!$AH$9<>\"\",INDIRECT(\"'\" & Setup!$AH$9 & \"'!\" & AD398),0) + IF(Setup!$AH$10<>\"\",INDIRECT(\"'\" & Setup!$AH$10 & \"'!\" & AD398),0) + IF(Setup!$AH$11<>\"\",INDIRECT(\"'\" & Setup!$AH$11 & \"'!\" & AD398),0) + IF(Setup!$AH$12<>\"\",INDIRECT(\"'\" & Setup!$AH$12 & \"'!\" & AD398),0)","v":{"v":0,"d":"0.00"}},{"$f":"IF(Setup!$AH$7<>\"\",INDIRECT(\"'\" & Setup!$AH$7 & \"'!\" & AE398),0) + IF(Setup!$AH$8<>\"\",INDIRECT(\"'\" & Setup!$AH$8 & \"'!\" & AE398),0) + IF(Setup!$AH$9<>\"\",INDIRECT(\"'\" & Setup!$AH$9 & \"'!\" & AE398),0) + IF(Setup!$AH$10<>\"\",INDIRECT(\"'\" & Setup!$AH$10 & \"'!\" & AE398),0) + IF(Setup!$AH$11<>\"\",INDIRECT(\"'\" & Setup!$AH$11 & \"'!\" & AE398),0) + IF(Setup!$AH$12<>\"\",INDIRECT(\"'\" & Setup!$AH$12 & \"'!\" & AE398),0)","v":{"v":0,"d":"0.00"}},"","",{"$f":"IF(Setup!$AI$7<>\"\",INDIRECT(\"'\" & Setup!$AI$7 & \"'!\" & AD398),0) + IF(Setup!$AI$8<>\"\",INDIRECT(\"'\" & Setup!$AI$8 & \"'!\" & AD398),0) + IF(Setup!$AI$9<>\"\",INDIRECT(\"'\" & Setup!$AI$9 & \"'!\" & AD398),0) + IF(Setup!$AI$10<>\"\",INDIRECT(\"'\" & Setup!$AI$10 & \"'!\" & AD398),0) + IF(Setup!$AI$11<>\"\",INDIRECT(\"'\" & Setup!$AI$11 & \"'!\" & AD398),0) + IF(Setup!$AI$12<>\"\",INDIRECT(\"'\" & Setup!$AI$12 & \"'!\" & AD398),0)","v":{"v":0,"d":"0.00"}},{"$f":"IF(Setup!$AI$7<>\"\",INDIRECT(\"'\" & Setup!$AI$7 & \"'!\" & AE398),0) + IF(Setup!$AI$8<>\"\",INDIRECT(\"'\" & Setup!$AI$8 & \"'!\" & AE398),0) + IF(Setup!$AI$9<>\"\",INDIRECT(\"'\" & Setup!$AI$9 & \"'!\" & AE398),0) + IF(Setup!$AI$10<>\"\",INDIRECT(\"'\" & Setup!$AI$10 & \"'!\" & AE398),0) + IF(Setup!$AI$11<>\"\",INDIRECT(\"'\" & Setup!$AI$11 & \"'!\" & AE398),0) + IF(Setup!$AI$12<>\"\",INDIRECT(\"'\" & Setup!$AI$12 & \"'!\" & AE398),0)","v":{"v":0,"d":"0.00"}},"","",{"$f":"IF(Setup!$AJ$7<>\"\",INDIRECT(\"'\" & Setup!$AJ$7 & \"'!\" & AD398),0) + IF(Setup!$AJ$8<>\"\",INDIRECT(\"'\" & Setup!$AJ$8 & \"'!\" & AD398),0) + IF(Setup!$AJ$9<>\"\",INDIRECT(\"'\" & Setup!$AJ$9 & \"'!\" & AD398),0) + IF(Setup!$AJ$10<>\"\",INDIRECT(\"'\" & Setup!$AJ$10 & \"'!\" & AD398),0) + IF(Setup!$AJ$11<>\"\",INDIRECT(\"'\" & Setup!$AJ$11 & \"'!\" & AD398),0) + IF(Setup!$AJ$12<>\"\",INDIRECT(\"'\" & Setup!$AJ$12 & \"'!\" & AD398),0)","v":0},{"$f":"IF(Setup!$AJ$7<>\"\",INDIRECT(\"'\" & Setup!$AJ$7 & \"'!\" & AE398),0) + IF(Setup!$AJ$8<>\"\",INDIRECT(\"'\" & Setup!$AJ$8 & \"'!\" & AE398),0) + IF(Setup!$AJ$9<>\"\",INDIRECT(\"'\" & Setup!$AJ$9 & \"'!\" & AE398),0) + IF(Setup!$AJ$10<>\"\",INDIRECT(\"'\" & Setup!$AJ$10 & \"'!\" & AE398),0) + IF(Setup!$AJ$11<>\"\",INDIRECT(\"'\" & Setup!$AJ$11 & \"'!\" & AE398),0) + IF(Setup!$AJ$12<>\"\",INDIRECT(\"'\" & Setup!$AJ$12 & \"'!\" & AE398),0)","v":0},"","",{"$f":"Planning!H170","v":0},"00","M186","O186","N186",null,null,{"$f":"IF(Setup!$AG$7<>\"\",INDIRECT(\"'\" & Setup!$AG$7 & \"'!\" & AF398),0) + IF(Setup!$AG$8<>\"\",INDIRECT(\"'\" & Setup!$AG$8 & \"'!\" & AF398),0) + IF(Setup!$AG$9<>\"\",INDIRECT(\"'\" & Setup!$AG$9 & \"'!\" & AF398),0) + IF(Setup!$AG$10<>\"\",INDIRECT(\"'\" & Setup!$AG$10 & \"'!\" & AF398),0) + IF(Setup!$AG$11<>\"\",INDIRECT(\"'\" & Setup!$AG$11 & \"'!\" & AF398),0) + IF(Setup!$AG$12<>\"\",INDIRECT(\"'\" & Setup!$AG$12 & \"'!\" & AF398),0)","v":0},{"$f":"IF(Setup!$AH$7<>\"\",INDIRECT(\"'\" & Setup!$AH$7 & \"'!\" & AF398),0) + IF(Setup!$AH$8<>\"\",INDIRECT(\"'\" & Setup!$AH$8 & \"'!\" & AF398),0) + IF(Setup!$AH$9<>\"\",INDIRECT(\"'\" & Setup!$AH$9 & \"'!\" & AF398),0) + IF(Setup!$AH$10<>\"\",INDIRECT(\"'\" & Setup!$AH$10 & \"'!\" & AF398),0) + IF(Setup!$AH$11<>\"\",INDIRECT(\"'\" & Setup!$AH$11 & \"'!\" & AF398),0) + IF(Setup!$AH$12<>\"\",INDIRECT(\"'\" & Setup!$AH$12 & \"'!\" & AF398),0)","v":0},{"$f":"IF(Setup!$AI$7<>\"\",INDIRECT(\"'\" & Setup!$AI$7 & \"'!\" & AF398),0) + IF(Setup!$AI$8<>\"\",INDIRECT(\"'\" & Setup!$AI$8 & \"'!\" & AF398),0) + IF(Setup!$AI$9<>\"\",INDIRECT(\"'\" & Setup!$AI$9 & \"'!\" & AF398),0) + IF(Setup!$AI$10<>\"\",INDIRECT(\"'\" & Setup!$AI$10 & \"'!\" & AF398),0) + IF(Setup!$AI$11<>\"\",INDIRECT(\"'\" & Setup!$AI$11 & \"'!\" & AF398),0) + IF(Setup!$AI$12<>\"\",INDIRECT(\"'\" & Setup!$AI$12 & \"'!\" & AF398),0)","v":0},{"$f":"IF(Setup!$AJ$7<>\"\",INDIRECT(\"'\" & Setup!$AJ$7 & \"'!\" & AF398),0) + IF(Setup!$AJ$8<>\"\",INDIRECT(\"'\" & Setup!$AJ$8 & \"'!\" & AF398),0) + IF(Setup!$AJ$9<>\"\",INDIRECT(\"'\" & Setup!$AJ$9 & \"'!\" & AF398),0) + IF(Setup!$AJ$10<>\"\",INDIRECT(\"'\" & Setup!$AJ$10 & \"'!\" & AF398),0) + IF(Setup!$AJ$11<>\"\",INDIRECT(\"'\" & Setup!$AJ$11 & \"'!\" & AF398),0) + IF(Setup!$AJ$12<>\"\",INDIRECT(\"'\" & Setup!$AJ$12 & \"'!\" & AF398),0)","v":0},null,"",{"$nulls":30},0,{"$f":"IF(Setup!$AH$7=\"\",0,INDIRECT(\"'\" & Setup!$AH$7 & \"'!\" & AF398))","v":0},{"$f":"IF(Setup!$AI$7=\"\",0,INDIRECT(\"'\" & Setup!$AI$7 & \"'!\" & AF398))","v":0},{"$f":"IF(Setup!$AJ$7=\"\",0,INDIRECT(\"'\" & Setup!$AJ$7 & \"'!\" & AF398))","v":0}]
[{"$f":"Planning!A171","v":"I163"},{"$f":"Planning!B171","v":0},{"$f":"Planning!C171","v":0},{"$f":"Planning!D171","v":0},{"$f":"Planning!E171","v":0},{"$f":"Planning!G171","v":0},0,{"v":0,"d":"0.00"},{"v":0,"d":"0.00"},"","",{"$f":"IF(Setup!$AG$7<>\"\",INDIRECT(\"'\" & Setup!$AG$7 & \"'!\" & AD399),0) + IF(Setup!$AG$8<>\"\",INDIRECT(\"'\" & Setup!$AG$8 & \"'!\" & AD399),0) + IF(Setup!$AG$9<>\"\",INDIRECT(\"'\" & Setup!$AG$9 & \"'!\" & AD399),0) + IF(Setup!$AG$10<>\"\",INDIRECT(\"'\" & Setup!$AG$10 & \"'!\" & AD399),0) + IF(Setup!$AG$11<>\"\",INDIRECT(\"'\" & Setup!$AG$11 & \"'!\" & AD399),0) + IF(Setup!$AG$12<>\"\",INDIRECT(\"'\" & Setup!$AG$12 & \"'!\" & AD399),0)","v":{"v":0,"d":"0.00"}},{"$f":"IF(Setup!$AG$7<>\"\",INDIRECT(\"'\" & Setup!$AG$7 & \"'!\" & AE399),0) + IF(Setup!$AG$8<>\"\",INDIRECT(\"'\" & Setup!$AG$8 & \"'!\" & AE399),0) + IF(Setup!$AG$9<>\"\",INDIRECT(\"'\" & Setup!$AG$9 & \"'!\" & AE399),0) + IF(Setup!$AG$10<>\"\",INDIRECT(\"'\" & Setup!$AG$10 & \"'!\" & AE399),0) + IF(Setup!$AG$11<>\"\",INDIRECT(\"'\" & Setup!$AG$11 & \"'!\" & AE399),0) + IF(Setup!$AG$12<>\"\",INDIRECT(\"'\" & Setup!$AG$12 & \"'!\" & AE399),0)","v":{"v":0,"d":"0.00"}},"","",{"$f":"IF(Setup!$AH$7<>\"\",INDIRECT(\"'\" & Setup!$AH$7 & \"'!\" & AD399),0) + IF(Setup!$AH$8<>\"\",INDIRECT(\"'\" & Setup!$AH$8 & \"'!\" & AD399),0) + IF(Setup!$AH$9<>\"\",INDIRECT(\"'\" & Setup!$AH$9 & \"'!\" & AD399),0) + IF(Setup!$AH$10<>\"\",INDIRECT(\"'\" & Setup!$AH$10 & \"'!\" & AD399),0) + IF(Setup!$AH$11<>\"\",INDIRECT(\"'\" & Setup!$AH$11 & \"'!\" & AD399),0) + IF(Setup!$AH$12<>\"\",INDIRECT(\"'\" & Setup!$AH$12 & \"'!\" & AD399),0)","v":{"v":0,"d":"0.00"}},{"$f":"IF(Setup!$AH$7<>\"\",INDIRECT(\"'\" & Setup!$AH$7 & \"'!\" & AE399),0) + IF(Setup!$AH$8<>\"\",INDIRECT(\"'\" & Setup!$AH$8 & \"'!\" & AE399),0) + IF(Setup!$AH$9<>\"\",INDIRECT(\"'\" & Setup!$AH$9 & \"'!\" & AE399),0) + IF(Setup!$AH$10<>\"\",INDIRECT(\"'\" & Setup!$AH$10 & \"'!\" & AE399),0) + IF(Setup!$AH$11<>\"\",INDIRECT(\"'\" & Setup!$AH$11 & \"'!\" & AE399),0) + IF(Setup!$AH$12<>\"\",INDIRECT(\"'\" & Setup!$AH$12 & \"'!\" & AE399),0)","v":{"v":0,"d":"0.00"}},"","",{"$f":"IF(Setup!$AI$7<>\"\",INDIRECT(\"'\" & Setup!$AI$7 & \"'!\" & AD399),0) + IF(Setup!$AI$8<>\"\",INDIRECT(\"'\" & Setup!$AI$8 & \"'!\" & AD399),0) + IF(Setup!$AI$9<>\"\",INDIRECT(\"'\" & Setup!$AI$9 & \"'!\" & AD399),0) + IF(Setup!$AI$10<>\"\",INDIRECT(\"'\" & Setup!$AI$10 & \"'!\" & AD399),0) + IF(Setup!$AI$11<>\"\",INDIRECT(\"'\" & Setup!$AI$11 & \"'!\" & AD399),0) + IF(Setup!$AI$12<>\"\",INDIRECT(\"'\" & Setup!$AI$12 & \"'!\" & AD399),0)","v":{"v":0,"d":"0.00"}},{"$f":"IF(Setup!$AI$7<>\"\",INDIRECT(\"'\" & Setup!$AI$7 & \"'!\" & AE399),0) + IF(Setup!$AI$8<>\"\",INDIRECT(\"'\" & Setup!$AI$8 & \"'!\" & AE399),0) + IF(Setup!$AI$9<>\"\",INDIRECT(\"'\" & Setup!$AI$9 & \"'!\" & AE399),0) + IF(Setup!$AI$10<>\"\",INDIRECT(\"'\" & Setup!$AI$10 & \"'!\" & AE399),0) + IF(Setup!$AI$11<>\"\",INDIRECT(\"'\" & Setup!$AI$11 & \"'!\" & AE399),0) + IF(Setup!$AI$12<>\"\",INDIRECT(\"'\" & Setup!$AI$12 & \"'!\" & AE399),0)","v":{"v":0,"d":"0.00"}},"","",{"$f":"IF(Setup!$AJ$7<>\"\",INDIRECT(\"'\" & Setup!$AJ$7 & \"'!\" & AD399),0) + IF(Setup!$AJ$8<>\"\",INDIRECT(\"'\" & Setup!$AJ$8 & \"'!\" & AD399),0) + IF(Setup!$AJ$9<>\"\",INDIRECT(\"'\" & Setup!$AJ$9 & \"'!\" & AD399),0) + IF(Setup!$AJ$10<>\"\",INDIRECT(\"'\" & Setup!$AJ$10 & \"'!\" & AD399),0) + IF(Setup!$AJ$11<>\"\",INDIRECT(\"'\" & Setup!$AJ$11 & \"'!\" & AD399),0) + IF(Setup!$AJ$12<>\"\",INDIRECT(\"'\" & Setup!$AJ$12 & \"'!\" & AD399),0)","v":0},{"$f":"IF(Setup!$AJ$7<>\"\",INDIRECT(\"'\" & Setup!$AJ$7 & \"'!\" & AE399),0) + IF(Setup!$AJ$8<>\"\",INDIRECT(\"'\" & Setup!$AJ$8 & \"'!\" & AE399),0) + IF(Setup!$AJ$9<>\"\",INDIRECT(\"'\" & Setup!$AJ$9 & \"'!\" & AE399),0) + IF(Setup!$AJ$10<>\"\",INDIRECT(\"'\" & Setup!$AJ$10 & \"'!\" & AE399),0) + IF(Setup!$AJ$11<>\"\",INDIRECT(\"'\" & Setup!$AJ$11 & \"'!\" & AE399),0) + IF(Setup!$AJ$12<>\"\",INDIRECT(\"'\" & Setup!$AJ$12 & \"'!\" & AE399),0)","v":0},"","",{"$f":"Planning!H171","v":0},"00","M187","O187","N187",null,null,{"$f":"IF(Setup!$AG$7<>\"\",INDIRECT(\"'\" & Setup!$AG$7 & \"'!\" & AF399),0) + IF(Setup!$AG$8<>\"\",INDIRECT(\"'\" & Setup!$AG$8 & \"'!\" & AF399),0) + IF(Setup!$AG$9<>\"\",INDIRECT(\"'\" & Setup!$AG$9 & \"'!\" & AF399),0) + IF(Setup!$AG$10<>\"\",INDIRECT(\"'\" & Setup!$AG$10 & \"'!\" & AF399),0) + IF(Setup!$AG$11<>\"\",INDIRECT(\"'\" & Setup!$AG$11 & \"'!\" & AF399),0) + IF(Setup!$AG$12<>\"\",INDIRECT(\"'\" & Setup!$AG$12 & \"'!\" & AF399),0)","v":0},{"$f":"IF(Setup!$AH$7<>\"\",INDIRECT(\"'\" & Setup!$AH$7 & \"'!\" & AF399),0) + IF(Setup!$AH$8<>\"\",INDIRECT(\"'\" & Setup!$AH$8 & \"'!\" & AF399),0) + IF(Setup!$AH$9<>\"\",INDIRECT(\"'\" & Setup!$AH$9 & \"'!\" & AF399),0) + IF(Setup!$AH$10<>\"\",INDIRECT(\"'\" & Setup!$AH$10 & \"'!\" & AF399),0) + IF(Setup!$AH$11<>\"\",INDIRECT(\"'\" & Setup!$AH$11 & \"'!\" & AF399),0) + IF(Setup!$AH$12<>\"\",INDIRECT(\"'\" & Setup!$AH$12 & \"'!\" & AF399),0)","v":0},{"$f":"IF(Setup!$AI$7<>\"\",INDIRECT(\"'\" & Setup!$AI$7 & \"'!\" & AF399),0) + IF(Setup!$AI$8<>\"\",INDIRECT(\"'\" & Setup!$AI$8 & \"'!\" & AF399),0) + IF(Setup!$AI$9<>\"\",INDIRECT(\"'\" & Setup!$AI$9 & \"'!\" & AF399),0) + IF(Setup!$AI$10<>\"\",INDIRECT(\"'\" & Setup!$AI$10 & \"'!\" & AF399),0) + IF(Setup!$AI$11<>\"\",INDIRECT(\"'\" & Setup!$AI$11 & \"'!\" & AF399),0) + IF(Setup!$AI$12<>\"\",INDIRECT(\"'\" & Setup!$AI$12 & \"'!\" & AF399),0)","v":0},{"$f":"IF(Setup!$AJ$7<>\"\",INDIRECT(\"'\" & Setup!$AJ$7 & \"'!\" & AF399),0) + IF(Setup!$AJ$8<>\"\",INDIRECT(\"'\" & Setup!$AJ$8 & \"'!\" & AF399),0) + IF(Setup!$AJ$9<>\"\",INDIRECT(\"'\" & Setup!$AJ$9 & \"'!\" & AF399),0) + IF(Setup!$AJ$10<>\"\",INDIRECT(\"'\" & Setup!$AJ$10 & \"'!\" & AF399),0) + IF(Setup!$AJ$11<>\"\",INDIRECT(\"'\" & Setup!$AJ$11 & \"'!\" & AF399),0) + IF(Setup!$AJ$12<>\"\",INDIRECT(\"'\" & Setup!$AJ$12 & \"'!\" & AF399),0)","v":0},null,"",{"$nulls":30},0,{"$f":"IF(Setup!$AH$7=\"\",0,INDIRECT(\"'\" & Setup!$AH$7 & \"'!\" & AF399))","v":0},{"$f":"IF(Setup!$AI$7=\"\",0,INDIRECT(\"'\" & Setup!$AI$7 & \"'!\" & AF399))","v":0},{"$f":"IF(Setup!$AJ$7=\"\",0,INDIRECT(\"'\" & Setup!$AJ$7 & \"'!\" & AF399))","v":0}]
[{"$f":"Planning!A172","v":"I164"},{"$f":"Planning!B172","v":0},{"$f":"Planning!C172","v":0},{"$f":"Planning!D172","v":0},{"$f":"Planning!E172","v":0},{"$f":"Planning!G172","v":0},0,{"v":0,"d":"0.00"},{"v":0,"d":"0.00"},"","",{"$f":"IF(Setup!$AG$7<>\"\",INDIRECT(\"'\" & Setup!$AG$7 & \"'!\" & AD400),0) + IF(Setup!$AG$8<>\"\",INDIRECT(\"'\" & Setup!$AG$8 & \"'!\" & AD400),0) + IF(Setup!$AG$9<>\"\",INDIRECT(\"'\" & Setup!$AG$9 & \"'!\" & AD400),0) + IF(Setup!$AG$10<>\"\",INDIRECT(\"'\" & Setup!$AG$10 & \"'!\" & AD400),0) + IF(Setup!$AG$11<>\"\",INDIRECT(\"'\" & Setup!$AG$11 & \"'!\" & AD400),0) + IF(Setup!$AG$12<>\"\",INDIRECT(\"'\" & Setup!$AG$12 & \"'!\" & AD400),0)","v":{"v":0,"d":"0.00"}},{"$f":"IF(Setup!$AG$7<>\"\",INDIRECT(\"'\" & Setup!$AG$7 & \"'!\" & AE400),0) + IF(Setup!$AG$8<>\"\",INDIRECT(\"'\" & Setup!$AG$8 & \"'!\" & AE400),0) + IF(Setup!$AG$9<>\"\",INDIRECT(\"'\" & Setup!$AG$9 & \"'!\" & AE400),0) + IF(Setup!$AG$10<>\"\",INDIRECT(\"'\" & Setup!$AG$10 & \"'!\" & AE400),0) + IF(Setup!$AG$11<>\"\",INDIRECT(\"'\" & Setup!$AG$11 & \"'!\" & AE400),0) + IF(Setup!$AG$12<>\"\",INDIRECT(\"'\" & Setup!$AG$12 & \"'!\" & AE400),0)","v":{"v":0,"d":"0.00"}},"","",{"$f":"IF(Setup!$AH$7<>\"\",INDIRECT(\"'\" & Setup!$AH$7 & \"'!\" & AD400),0) + IF(Setup!$AH$8<>\"\",INDIRECT(\"'\" & Setup!$AH$8 & \"'!\" & AD400),0) + IF(Setup!$AH$9<>\"\",INDIRECT(\"'\" & Setup!$AH$9 & \"'!\" & AD400),0) + IF(Setup!$AH$10<>\"\",INDIRECT(\"'\" & Setup!$AH$10 & \"'!\" & AD400),0) + IF(Setup!$AH$11<>\"\",INDIRECT(\"'\" & Setup!$AH$11 & \"'!\" & AD400),0) + IF(Setup!$AH$12<>\"\",INDIRECT(\"'\" & Setup!$AH$12 & \"'!\" & AD400),0)","v":{"v":0,"d":"0.00"}},{"$f":"IF(Setup!$AH$7<>\"\",INDIRECT(\"'\" & Setup!$AH$7 & \"'!\" & AE400),0) + IF(Setup!$AH$8<>\"\",INDIRECT(\"'\" & Setup!$AH$8 & \"'!\" & AE400),0) + IF(Setup!$AH$9<>\"\",INDIRECT(\"'\" & Setup!$AH$9 & \"'!\" & AE400),0) + IF(Setup!$AH$10<>\"\",INDIRECT(\"'\" & Setup!$AH$10 & \"'!\" & AE400),0) + IF(Setup!$AH$11<>\"\",INDIRECT(\"'\" & Setup!$AH$11 & \"'!\" & AE400),0) + IF(Setup!$AH$12<>\"\",INDIRECT(\"'\" & Setup!$AH$12 & \"'!\" & AE400),0)","v":{"v":0,"d":"0.00"}},"","",{"$f":"IF(Setup!$AI$7<>\"\",INDIRECT(\"'\" & Setup!$AI$7 & \"'!\" & AD400),0) + IF(Setup!$AI$8<>\"\",INDIRECT(\"'\" & Setup!$AI$8 & \"'!\" & AD400),0) + IF(Setup!$AI$9<>\"\",INDIRECT(\"'\" & Setup!$AI$9 & \"'!\" & AD400),0) + IF(Setup!$AI$10<>\"\",INDIRECT(\"'\" & Setup!$AI$10 & \"'!\" & AD400),0) + IF(Setup!$AI$11<>\"\",INDIRECT(\"'\" & Setup!$AI$11 & \"'!\" & AD400),0) + IF(Setup!$AI$12<>\"\",INDIRECT(\"'\" & Setup!$AI$12 & \"'!\" & AD400),0)","v":{"v":0,"d":"0.00"}},{"$f":"IF(Setup!$AI$7<>\"\",INDIRECT(\"'\" & Setup!$AI$7 & \"'!\" & AE400),0) + IF(Setup!$AI$8<>\"\",INDIRECT(\"'\" & Setup!$AI$8 & \"'!\" & AE400),0) + IF(Setup!$AI$9<>\"\",INDIRECT(\"'\" & Setup!$AI$9 & \"'!\" & AE400),0) + IF(Setup!$AI$10<>\"\",INDIRECT(\"'\" & Setup!$AI$10 & \"'!\" & AE400),0) + IF(Setup!$AI$11<>\"\",INDIRECT(\"'\" & Setup!$AI$11 & \"'!\" & AE400),0) + IF(Setup!$AI$12<>\"\",INDIRECT(\"'\" & Setup!$AI$12 & \"'!\" & AE400),0)","v":{"v":0,"d":"0.00"}},"","",{"$f":"IF(Setup!$AJ$7<>\"\",INDIRECT(\"'\" & Setup!$AJ$7 & \"'!\" & AD400),0) + IF(Setup!$AJ$8<>\"\",INDIRECT(\"'\" & Setup!$AJ$8 & \"'!\" & AD400),0) + IF(Setup!$AJ$9<>\"\",INDIRECT(\"'\" & Setup!$AJ$9 & \"'!\" & AD400),0) + IF(Setup!$AJ$10<>\"\",INDIRECT(\"'\" & Setup!$AJ$10 & \"'!\" & AD400),0) + IF(Setup!$AJ$11<>\"\",INDIRECT(\"'\" & Setup!$AJ$11 & \"'!\" & AD400),0) + IF(Setup!$AJ$12<>\"\",INDIRECT(\"'\" & Setup!$AJ$12 & \"'!\" & AD400),0)","v":0},{"$f":"IF(Setup!$AJ$7<>\"\",INDIRECT(\"'\" & Setup!$AJ$7 & \"'!\" & AE400),0) + IF(Setup!$AJ$8<>\"\",INDIRECT(\"'\" & Setup!$AJ$8 & \"'!\" & AE400),0) + IF(Setup!$AJ$9<>\"\",INDIRECT(\"'\" & Setup!$AJ$9 & \"'!\" & AE400),0) + IF(Setup!$AJ$10<>\"\",INDIRECT(\"'\" & Setup!$AJ$10 & \"'!\" & AE400),0) + IF(Setup!$AJ$11<>\"\",INDIRECT(\"'\" & Setup!$AJ$11 & \"'!\" & AE400),0) + IF(Setup!$AJ$12<>\"\",INDIRECT(\"'\" & Setup!$AJ$12 & \"'!\" & AE400),0)","v":0},"","",{"$f":"Planning!H172","v":0},"00","M188","O188","N188",null,null,{"$f":"IF(Setup!$AG$7<>\"\",INDIRECT(\"'\" & Setup!$AG$7 & \"'!\" & AF400),0) + IF(Setup!$AG$8<>\"\",INDIRECT(\"'\" & Setup!$AG$8 & \"'!\" & AF400),0) + IF(Setup!$AG$9<>\"\",INDIRECT(\"'\" & Setup!$AG$9 & \"'!\" & AF400),0) + IF(Setup!$AG$10<>\"\",INDIRECT(\"'\" & Setup!$AG$10 & \"'!\" & AF400),0) + IF(Setup!$AG$11<>\"\",INDIRECT(\"'\" & Setup!$AG$11 & \"'!\" & AF400),0) + IF(Setup!$AG$12<>\"\",INDIRECT(\"'\" & Setup!$AG$12 & \"'!\" & AF400),0)","v":0},{"$f":"IF(Setup!$AH$7<>\"\",INDIRECT(\"'\" & Setup!$AH$7 & \"'!\" & AF400),0) + IF(Setup!$AH$8<>\"\",INDIRECT(\"'\" & Setup!$AH$8 & \"'!\" & AF400),0) + IF(Setup!$AH$9<>\"\",INDIRECT(\"'\" & Setup!$AH$9 & \"'!\" & AF400),0) + IF(Setup!$AH$10<>\"\",INDIRECT(\"'\" & Setup!$AH$10 & \"'!\" & AF400),0) + IF(Setup!$AH$11<>\"\",INDIRECT(\"'\" & Setup!$AH$11 & \"'!\" & AF400),0) + IF(Setup!$AH$12<>\"\",INDIRECT(\"'\" & Setup!$AH$12 & \"'!\" & AF400),0)","v":0},{"$f":"IF(Setup!$AI$7<>\"\",INDIRECT(\"'\" & Setup!$AI$7 & \"'!\" & AF400),0) + IF(Setup!$AI$8<>\"\",INDIRECT(\"'\" & Setup!$AI$8 & \"'!\" & AF400),0) + IF(Setup!$AI$9<>\"\",INDIRECT(\"'\" & Setup!$AI$9 & \"'!\" & AF400),0) + IF(Setup!$AI$10<>\"\",INDIRECT(\"'\" & Setup!$AI$10 & \"'!\" & AF400),0) + IF(Setup!$AI$11<>\"\",INDIRECT(\"'\" & Setup!$AI$11 & \"'!\" & AF400),0) + IF(Setup!$AI$12<>\"\",INDIRECT(\"'\" & Setup!$AI$12 & \"'!\" & AF400),0)","v":0},{"$f":"IF(Setup!$AJ$7<>\"\",INDIRECT(\"'\" & Setup!$AJ$7 & \"'!\" & AF400),0) + IF(Setup!$AJ$8<>\"\",INDIRECT(\"'\" & Setup!$AJ$8 & \"'!\" & AF400),0) + IF(Setup!$AJ$9<>\"\",INDIRECT(\"'\" & Setup!$AJ$9 & \"'!\" & AF400),0) + IF(Setup!$AJ$10<>\"\",INDIRECT(\"'\" & Setup!$AJ$10 & \"'!\" & AF400),0) + IF(Setup!$AJ$11<>\"\",INDIRECT(\"'\" & Setup!$AJ$11 & \"'!\" & AF400),0) + IF(Setup!$AJ$12<>\"\",INDIRECT(\"'\" & Setup!$AJ$12 & \"'!\" & AF400),0)","v":0},null,"",{"$nulls":30},0,{"$f":"IF(Setup!$AH$7=\"\",0,INDIRECT(\"'\" & Setup!$AH$7 & \"'!\" & AF400))","v":0},{"$f":"IF(Setup!$AI$7=\"\",0,INDIRECT(\"'\" & Setup!$AI$7 & \"'!\" & AF400))","v":0},{"$f":"IF(Setup!$AJ$7=\"\",0,INDIRECT(\"'\" & Setup!$AJ$7 & \"'!\" & AF400))","v":0}]
[{"$f":"Planning!A173","v":"I165"},{"$f":"Planning!B173","v":0},{"$f":"Planning!C173","v":0},{"$f":"Planning!D173","v":0},{"$f":"Planning!E173","v":0},{"$f":"Planning!G173","v":0},0,{"v":0,"d":"0.00"},{"v":0,"d":"0.00"},"","",{"$f":"IF(Setup!$AG$7<>\"\",INDIRECT(\"'\" & Setup!$AG$7 & \"'!\" & AD401),0) + IF(Setup!$AG$8<>\"\",INDIRECT(\"'\" & Setup!$AG$8 & \"'!\" & AD401),0) + IF(Setup!$AG$9<>\"\",INDIRECT(\"'\" & Setup!$AG$9 & \"'!\" & AD401),0) + IF(Setup!$AG$10<>\"\",INDIRECT(\"'\" & Setup!$AG$10 & \"'!\" & AD401),0) + IF(Setup!$AG$11<>\"\",INDIRECT(\"'\" & Setup!$AG$11 & \"'!\" & AD401),0) + IF(Setup!$AG$12<>\"\",INDIRECT(\"'\" & Setup!$AG$12 & \"'!\" & AD401),0)","v":{"v":0,"d":"0.00"}},{"$f":"IF(Setup!$AG$7<>\"\",INDIRECT(\"'\" & Setup!$AG$7 & \"'!\" & AE401),0) + IF(Setup!$AG$8<>\"\",INDIRECT(\"'\" & Setup!$AG$8 & \"'!\" & AE401),0) + IF(Setup!$AG$9<>\"\",INDIRECT(\"'\" & Setup!$AG$9 & \"'!\" & AE401),0) + IF(Setup!$AG$10<>\"\",INDIRECT(\"'\" & Setup!$AG$10 & \"'!\" & AE401),0) + IF(Setup!$AG$11<>\"\",INDIRECT(\"'\" & Setup!$AG$11 & \"'!\" & AE401),0) + IF(Setup!$AG$12<>\"\",INDIRECT(\"'\" & Setup!$AG$12 & \"'!\" & AE401),0)","v":{"v":0,"d":"0.00"}},"","",{"$f":"IF(Setup!$AH$7<>\"\",INDIRECT(\"'\" & Setup!$AH$7 & \"'!\" & AD401),0) + IF(Setup!$AH$8<>\"\",INDIRECT(\"'\" & Setup!$AH$8 & \"'!\" & AD401),0) + IF(Setup!$AH$9<>\"\",INDIRECT(\"'\" & Setup!$AH$9 & \"'!\" & AD401),0) + IF(Setup!$AH$10<>\"\",INDIRECT(\"'\" & Setup!$AH$10 & \"'!\" & AD401),0) + IF(Setup!$AH$11<>\"\",INDIRECT(\"'\" & Setup!$AH$11 & \"'!\" & AD401),0) + IF(Setup!$AH$12<>\"\",INDIRECT(\"'\" & Setup!$AH$12 & \"'!\" & AD401),0)","v":{"v":0,"d":"0.00"}},{"$f":"IF(Setup!$AH$7<>\"\",INDIRECT(\"'\" & Setup!$AH$7 & \"'!\" & AE401),0) + IF(Setup!$AH$8<>\"\",INDIRECT(\"'\" & Setup!$AH$8 & \"'!\" & AE401),0) + IF(Setup!$AH$9<>\"\",INDIRECT(\"'\" & Setup!$AH$9 & \"'!\" & AE401),0) + IF(Setup!$AH$10<>\"\",INDIRECT(\"'\" & Setup!$AH$10 & \"'!\" & AE401),0) + IF(Setup!$AH$11<>\"\",INDIRECT(\"'\" & Setup!$AH$11 & \"'!\" & AE401),0) + IF(Setup!$AH$12<>\"\",INDIRECT(\"'\" & Setup!$AH$12 & \"'!\" & AE401),0)","v":{"v":0,"d":"0.00"}},"","",{"$f":"IF(Setup!$AI$7<>\"\",INDIRECT(\"'\" & Setup!$AI$7 & \"'!\" & AD401),0) + IF(Setup!$AI$8<>\"\",INDIRECT(\"'\" & Setup!$AI$8 & \"'!\" & AD401),0) + IF(Setup!$AI$9<>\"\",INDIRECT(\"'\" & Setup!$AI$9 & \"'!\" & AD401),0) + IF(Setup!$AI$10<>\"\",INDIRECT(\"'\" & Setup!$AI$10 & \"'!\" & AD401),0) + IF(Setup!$AI$11<>\"\",INDIRECT(\"'\" & Setup!$AI$11 & \"'!\" & AD401),0) + IF(Setup!$AI$12<>\"\",INDIRECT(\"'\" & Setup!$AI$12 & \"'!\" & AD401),0)","v":{"v":0,"d":"0.00"}},{"$f":"IF(Setup!$AI$7<>\"\",INDIRECT(\"'\" & Setup!$AI$7 & \"'!\" & AE401),0) + IF(Setup!$AI$8<>\"\",INDIRECT(\"'\" & Setup!$AI$8 & \"'!\" & AE401),0) + IF(Setup!$AI$9<>\"\",INDIRECT(\"'\" & Setup!$AI$9 & \"'!\" & AE401),0) + IF(Setup!$AI$10<>\"\",INDIRECT(\"'\" & Setup!$AI$10 & \"'!\" & AE401),0) + IF(Setup!$AI$11<>\"\",INDIRECT(\"'\" & Setup!$AI$11 & \"'!\" & AE401),0) + IF(Setup!$AI$12<>\"\",INDIRECT(\"'\" & Setup!$AI$12 & \"'!\" & AE401),0)","v":{"v":0,"d":"0.00"}},"","",{"$f":"IF(Setup!$AJ$7<>\"\",INDIRECT(\"'\" & Setup!$AJ$7 & \"'!\" & AD401),0) + IF(Setup!$AJ$8<>\"\",INDIRECT(\"'\" & Setup!$AJ$8 & \"'!\" & AD401),0) + IF(Setup!$AJ$9<>\"\",INDIRECT(\"'\" & Setup!$AJ$9 & \"'!\" & AD401),0) + IF(Setup!$AJ$10<>\"\",INDIRECT(\"'\" & Setup!$AJ$10 & \"'!\" & AD401),0) + IF(Setup!$AJ$11<>\"\",INDIRECT(\"'\" & Setup!$AJ$11 & \"'!\" & AD401),0) + IF(Setup!$AJ$12<>\"\",INDIRECT(\"'\" & Setup!$AJ$12 & \"'!\" & AD401),0)","v":0},{"$f":"IF(Setup!$AJ$7<>\"\",INDIRECT(\"'\" & Setup!$AJ$7 & \"'!\" & AE401),0) + IF(Setup!$AJ$8<>\"\",INDIRECT(\"'\" & Setup!$AJ$8 & \"'!\" & AE401),0) + IF(Setup!$AJ$9<>\"\",INDIRECT(\"'\" & Setup!$AJ$9 & \"'!\" & AE401),0) + IF(Setup!$AJ$10<>\"\",INDIRECT(\"'\" & Setup!$AJ$10 & \"'!\" & AE401),0) + IF(Setup!$AJ$11<>\"\",INDIRECT(\"'\" & Setup!$AJ$11 & \"'!\" & AE401),0) + IF(Setup!$AJ$12<>\"\",INDIRECT(\"'\" & Setup!$AJ$12 & \"'!\" & AE401),0)","v":0},"","",{"$f":"Planning!H173","v":0},"00","M189","O189","N189",null,null,{"$f":"IF(Setup!$AG$7<>\"\",INDIRECT(\"'\" & Setup!$AG$7 & \"'!\" & AF401),0) + IF(Setup!$AG$8<>\"\",INDIRECT(\"'\" & Setup!$AG$8 & \"'!\" & AF401),0) + IF(Setup!$AG$9<>\"\",INDIRECT(\"'\" & Setup!$AG$9 & \"'!\" & AF401),0) + IF(Setup!$AG$10<>\"\",INDIRECT(\"'\" & Setup!$AG$10 & \"'!\" & AF401),0) + IF(Setup!$AG$11<>\"\",INDIRECT(\"'\" & Setup!$AG$11 & \"'!\" & AF401),0) + IF(Setup!$AG$12<>\"\",INDIRECT(\"'\" & Setup!$AG$12 & \"'!\" & AF401),0)","v":0},{"$f":"IF(Setup!$AH$7<>\"\",INDIRECT(\"'\" & Setup!$AH$7 & \"'!\" & AF401),0) + IF(Setup!$AH$8<>\"\",INDIRECT(\"'\" & Setup!$AH$8 & \"'!\" & AF401),0) + IF(Setup!$AH$9<>\"\",INDIRECT(\"'\" & Setup!$AH$9 & \"'!\" & AF401),0) + IF(Setup!$AH$10<>\"\",INDIRECT(\"'\" & Setup!$AH$10 & \"'!\" & AF401),0) + IF(Setup!$AH$11<>\"\",INDIRECT(\"'\" & Setup!$AH$11 & \"'!\" & AF401),0) + IF(Setup!$AH$12<>\"\",INDIRECT(\"'\" & Setup!$AH$12 & \"'!\" & AF401),0)","v":0},{"$f":"IF(Setup!$AI$7<>\"\",INDIRECT(\"'\" & Setup!$AI$7 & \"'!\" & AF401),0) + IF(Setup!$AI$8<>\"\",INDIRECT(\"'\" & Setup!$AI$8 & \"'!\" & AF401),0) + IF(Setup!$AI$9<>\"\",INDIRECT(\"'\" & Setup!$AI$9 & \"'!\" & AF401),0) + IF(Setup!$AI$10<>\"\",INDIRECT(\"'\" & Setup!$AI$10 & \"'!\" & AF401),0) + IF(Setup!$AI$11<>\"\",INDIRECT(\"'\" & Setup!$AI$11 & \"'!\" & AF401),0) + IF(Setup!$AI$12<>\"\",INDIRECT(\"'\" & Setup!$AI$12 & \"'!\" & AF401),0)","v":0},{"$f":"IF(Setup!$AJ$7<>\"\",INDIRECT(\"'\" & Setup!$AJ$7 & \"'!\" & AF401),0) + IF(Setup!$AJ$8<>\"\",INDIRECT(\"'\" & Setup!$AJ$8 & \"'!\" & AF401),0) + IF(Setup!$AJ$9<>\"\",INDIRECT(\"'\" & Setup!$AJ$9 & \"'!\" & AF401),0) + IF(Setup!$AJ$10<>\"\",INDIRECT(\"'\" & Setup!$AJ$10 & \"'!\" & AF401),0) + IF(Setup!$AJ$11<>\"\",INDIRECT(\"'\" & Setup!$AJ$11 & \"'!\" & AF401),0) + IF(Setup!$AJ$12<>\"\",INDIRECT(\"'\" & Setup!$AJ$12 & \"'!\" & AF401),0)","v":0},null,"",{"$nulls":30},0,{"$f":"IF(Setup!$AH$7=\"\",0,INDIRECT(\"'\" & Setup!$AH$7 & \"'!\" & AF401))","v":0},{"$f":"IF(Setup!$AI$7=\"\",0,INDIRECT(\"'\" & Setup!$AI$7 & \"'!\" & AF401))","v":0},{"$f":"IF(Setup!$AJ$7=\"\",0,INDIRECT(\"'\" & Setup!$AJ$7 & \"'!\" & AF401))","v":0}]
[{"$f":"Planning!A174","v":"I166"},{"$f":"Planning!B174","v":0},{"$f":"Planning!C174","v":0},{"$f":"Planning!D174","v":0},{"$f":"Planning!E174","v":0},{"$f":"Planning!G174","v":0},0,{"v":0,"d":"0.00"},{"v":0,"d":"0.00"},"","",{"$f":"IF(Setup!$AG$7<>\"\",INDIRECT(\"'\" & Setup!$AG$7 & \"'!\" & AD402),0) + IF(Setup!$AG$8<>\"\",INDIRECT(\"'\" & Setup!$AG$8 & \"'!\" & AD402),0) + IF(Setup!$AG$9<>\"\",INDIRECT(\"'\" & Setup!$AG$9 & \"'!\" & AD402),0) + IF(Setup!$AG$10<>\"\",INDIRECT(\"'\" & Setup!$AG$10 & \"'!\" & AD402),0) + IF(Setup!$AG$11<>\"\",INDIRECT(\"'\" & Setup!$AG$11 & \"'!\" & AD402),0) + IF(Setup!$AG$12<>\"\",INDIRECT(\"'\" & Setup!$AG$12 & \"'!\" & AD402),0)","v":{"v":0,"d":"0.00"}},{"$f":"IF(Setup!$AG$7<>\"\",INDIRECT(\"'\" & Setup!$AG$7 & \"'!\" & AE402),0) + IF(Setup!$AG$8<>\"\",INDIRECT(\"'\" & Setup!$AG$8 & \"'!\" & AE402),0) + IF(Setup!$AG$9<>\"\",INDIRECT(\"'\" & Setup!$AG$9 & \"'!\" & AE402),0) + IF(Setup!$AG$10<>\"\",INDIRECT(\"'\" & Setup!$AG$10 & \"'!\" & AE402),0) + IF(Setup!$AG$11<>\"\",INDIRECT(\"'\" & Setup!$AG$11 & \"'!\" & AE402),0) + IF(Setup!$AG$12<>\"\",INDIRECT(\"'\" & Setup!$AG$12 & \"'!\" & AE402),0)","v":{"v":0,"d":"0.00"}},"","",{"$f":"IF(Setup!$AH$7<>\"\",INDIRECT(\"'\" & Setup!$AH$7 & \"'!\" & AD402),0) + IF(Setup!$AH$8<>\"\",INDIRECT(\"'\" & Setup!$AH$8 & \"'!\" & AD402),0) + IF(Setup!$AH$9<>\"\",INDIRECT(\"'\" & Setup!$AH$9 & \"'!\" & AD402),0) + IF(Setup!$AH$10<>\"\",INDIRECT(\"'\" & Setup!$AH$10 & \"'!\" & AD402),0) + IF(Setup!$AH$11<>\"\",INDIRECT(\"'\" & Setup!$AH$11 & \"'!\" & AD402),0) + IF(Setup!$AH$12<>\"\",INDIRECT(\"'\" & Setup!$AH$12 & \"'!\" & AD402),0)","v":{"v":0,"d":"0.00"}},{"$f":"IF(Setup!$AH$7<>\"\",INDIRECT(\"'\" & Setup!$AH$7 & \"'!\" & AE402),0) + IF(Setup!$AH$8<>\"\",INDIRECT(\"'\" & Setup!$AH$8 & \"'!\" & AE402),0) + IF(Setup!$AH$9<>\"\",INDIRECT(\"'\" & Setup!$AH$9 & \"'!\" & AE402),0) + IF(Setup!$AH$10<>\"\",INDIRECT(\"'\" & Setup!$AH$10 & \"'!\" & AE402),0) + IF(Setup!$AH$11<>\"\",INDIRECT(\"'\" & Setup!$AH$11 & \"'!\" & AE402),0) + IF(Setup!$AH$12<>\"\",INDIRECT(\"'\" & Setup!$AH$12 & \"'!\" & AE402),0)","v":{"v":0,"d":"0.00"}},"","",{"$f":"IF(Setup!$AI$7<>\"\",INDIRECT(\"'\" & Setup!$AI$7 & \"'!\" & AD402),0) + IF(Setup!$AI$8<>\"\",INDIRECT(\"'\" & Setup!$AI$8 & \"'!\" & AD402),0) + IF(Setup!$AI$9<>\"\",INDIRECT(\"'\" & Setup!$AI$9 & \"'!\" & AD402),0) + IF(Setup!$AI$10<>\"\",INDIRECT(\"'\" & Setup!$AI$10 & \"'!\" & AD402),0) + IF(Setup!$AI$11<>\"\",INDIRECT(\"'\" & Setup!$AI$11 & \"'!\" & AD402),0) + IF(Setup!$AI$12<>\"\",INDIRECT(\"'\" & Setup!$AI$12 & \"'!\" & AD402),0)","v":{"v":0,"d":"0.00"}},{"$f":"IF(Setup!$AI$7<>\"\",INDIRECT(\"'\" & Setup!$AI$7 & \"'!\" & AE402),0) + IF(Setup!$AI$8<>\"\",INDIRECT(\"'\" & Setup!$AI$8 & \"'!\" & AE402),0) + IF(Setup!$AI$9<>\"\",INDIRECT(\"'\" & Setup!$AI$9 & \"'!\" & AE402),0) + IF(Setup!$AI$10<>\"\",INDIRECT(\"'\" & Setup!$AI$10 & \"'!\" & AE402),0) + IF(Setup!$AI$11<>\"\",INDIRECT(\"'\" & Setup!$AI$11 & \"'!\" & AE402),0) + IF(Setup!$AI$12<>\"\",INDIRECT(\"'\" & Setup!$AI$12 & \"'!\" & AE402),0)","v":{"v":0,"d":"0.00"}},"","",{"$f":"IF(Setup!$AJ$7<>\"\",INDIRECT(\"'\" & Setup!$AJ$7 & \"'!\" & AD402),0) + IF(Setup!$AJ$8<>\"\",INDIRECT(\"'\" & Setup!$AJ$8 & \"'!\" & AD402),0) + IF(Setup!$AJ$9<>\"\",INDIRECT(\"'\" & Setup!$AJ$9 & \"'!\" & AD402),0) + IF(Setup!$AJ$10<>\"\",INDIRECT(\"'\" & Setup!$AJ$10 & \"'!\" & AD402),0) + IF(Setup!$AJ$11<>\"\",INDIRECT(\"'\" & Setup!$AJ$11 & \"'!\" & AD402),0) + IF(Setup!$AJ$12<>\"\",INDIRECT(\"'\" & Setup!$AJ$12 & \"'!\" & AD402),0)","v":0},{"$f":"IF(Setup!$AJ$7<>\"\",INDIRECT(\"'\" & Setup!$AJ$7 & \"'!\" & AE402),0) + IF(Setup!$AJ$8<>\"\",INDIRECT(\"'\" & Setup!$AJ$8 & \"'!\" & AE402),0) + IF(Setup!$AJ$9<>\"\",INDIRECT(\"'\" & Setup!$AJ$9 & \"'!\" & AE402),0) + IF(Setup!$AJ$10<>\"\",INDIRECT(\"'\" & Setup!$AJ$10 & \"'!\" & AE402),0) + IF(Setup!$AJ$11<>\"\",INDIRECT(\"'\" & Setup!$AJ$11 & \"'!\" & AE402),0) + IF(Setup!$AJ$12<>\"\",INDIRECT(\"'\" & Setup!$AJ$12 & \"'!\" & AE402),0)","v":0},"","",{"$f":"Planning!H174","v":0},"00","M190","O190","N190",null,null,{"$f":"IF(Setup!$AG$7<>\"\",INDIRECT(\"'\" & Setup!$AG$7 & \"'!\" & AF402),0) + IF(Setup!$AG$8<>\"\",INDIRECT(\"'\" & Setup!$AG$8 & \"'!\" & AF402),0) + IF(Setup!$AG$9<>\"\",INDIRECT(\"'\" & Setup!$AG$9 & \"'!\" & AF402),0) + IF(Setup!$AG$10<>\"\",INDIRECT(\"'\" & Setup!$AG$10 & \"'!\" & AF402),0) + IF(Setup!$AG$11<>\"\",INDIRECT(\"'\" & Setup!$AG$11 & \"'!\" & AF402),0) + IF(Setup!$AG$12<>\"\",INDIRECT(\"'\" & Setup!$AG$12 & \"'!\" & AF402),0)","v":0},{"$f":"IF(Setup!$AH$7<>\"\",INDIRECT(\"'\" & Setup!$AH$7 & \"'!\" & AF402),0) + IF(Setup!$AH$8<>\"\",INDIRECT(\"'\" & Setup!$AH$8 & \"'!\" & AF402),0) + IF(Setup!$AH$9<>\"\",INDIRECT(\"'\" & Setup!$AH$9 & \"'!\" & AF402),0) + IF(Setup!$AH$10<>\"\",INDIRECT(\"'\" & Setup!$AH$10 & \"'!\" & AF402),0) + IF(Setup!$AH$11<>\"\",INDIRECT(\"'\" & Setup!$AH$11 & \"'!\" & AF402),0) + IF(Setup!$AH$12<>\"\",INDIRECT(\"'\" & Setup!$AH$12 & \"'!\" & AF402),0)","v":0},{"$f":"IF(Setup!$AI$7<>\"\",INDIRECT(\"'\" & Setup!$AI$7 & \"'!\" & AF402),0) + IF(Setup!$AI$8<>\"\",INDIRECT(\"'\" & Setup!$AI$8 & \"'!\" & AF402),0) + IF(Setup!$AI$9<>\"\",INDIRECT(\"'\" & Setup!$AI$9 & \"'!\" & AF402),0) + IF(Setup!$AI$10<>\"\",INDIRECT(\"'\" & Setup!$AI$10 & \"'!\" & AF402),0) + IF(Setup!$AI$11<>\"\",INDIRECT(\"'\" & Setup!$AI$11 & \"'!\" & AF402),0) + IF(Setup!$AI$12<>\"\",INDIRECT(\"'\" & Setup!$AI$12 & \"'!\" & AF402),0)","v":0},{"$f":"IF(Setup!$AJ$7<>\"\",INDIRECT(\"'\" & Setup!$AJ$7 & \"'!\" & AF402),0) + IF(Setup!$AJ$8<>\"\",INDIRECT(\"'\" & Setup!$AJ$8 & \"'!\" & AF402),0) + IF(Setup!$AJ$9<>\"\",INDIRECT(\"'\" & Setup!$AJ$9 & \"'!\" & AF402),0) + IF(Setup!$AJ$10<>\"\",INDIRECT(\"'\" & Setup!$AJ$10 & \"'!\" & AF402),0) + IF(Setup!$AJ$11<>\"\",INDIRECT(\"'\" & Setup!$AJ$11 & \"'!\" & AF402),0) + IF(Setup!$AJ$12<>\"\",INDIRECT(\"'\" & Setup!$AJ$12 & \"'!\" & AF402),0)","v":0},null,"",{"$nulls":30},0,{"$f":"IF(Setup!$AH$7=\"\",0,INDIRECT(\"'\" & Setup!$AH$7 & \"'!\" & AF402))","v":0},{"$f":"IF(Setup!$AI$7=\"\",0,INDIRECT(\"'\" & Setup!$AI$7 & \"'!\" & AF402))","v":0},{"$f":"IF(Setup!$AJ$7=\"\",0,INDIRECT(\"'\" & Setup!$AJ$7 & \"'!\" & AF402))","v":0}]
[{"$f":"Planning!A175","v":"I167"},{"$f":"Planning!B175","v":0},{"$f":"Planning!C175","v":0},{"$f":"Planning!D175","v":0},{"$f":"Planning!E175","v":0},{"$f":"Planning!G175","v":0},0,{"v":0,"d":"0.00"},{"v":0,"d":"0.00"},"","",{"$f":"IF(Setup!$AG$7<>\"\",INDIRECT(\"'\" & Setup!$AG$7 & \"'!\" & AD403),0) + IF(Setup!$AG$8<>\"\",INDIRECT(\"'\" & Setup!$AG$8 & \"'!\" & AD403),0) + IF(Setup!$AG$9<>\"\",INDIRECT(\"'\" & Setup!$AG$9 & \"'!\" & AD403),0) + IF(Setup!$AG$10<>\"\",INDIRECT(\"'\" & Setup!$AG$10 & \"'!\" & AD403),0) + IF(Setup!$AG$11<>\"\",INDIRECT(\"'\" & Setup!$AG$11 & \"'!\" & AD403),0) + IF(Setup!$AG$12<>\"\",INDIRECT(\"'\" & Setup!$AG$12 & \"'!\" & AD403),0)","v":{"v":0,"d":"0.00"}},{"$f":"IF(Setup!$AG$7<>\"\",INDIRECT(\"'\" & Setup!$AG$7 & \"'!\" & AE403),0) + IF(Setup!$AG$8<>\"\",INDIRECT(\"'\" & Setup!$AG$8 & \"'!\" & AE403),0) + IF(Setup!$AG$9<>\"\",INDIRECT(\"'\" & Setup!$AG$9 & \"'!\" & AE403),0) + IF(Setup!$AG$10<>\"\",INDIRECT(\"'\" & Setup!$AG$10 & \"'!\" & AE403),0) + IF(Setup!$AG$11<>\"\",INDIRECT(\"'\" & Setup!$AG$11 & \"'!\" & AE403),0) + IF(Setup!$AG$12<>\"\",INDIRECT(\"'\" & Setup!$AG$12 & \"'!\" & AE403),0)","v":{"v":0,"d":"0.00"}},"","",{"$f":"IF(Setup!$AH$7<>\"\",INDIRECT(\"'\" & Setup!$AH$7 & \"'!\" & AD403),0) + IF(Setup!$AH$8<>\"\",INDIRECT(\"'\" & Setup!$AH$8 & \"'!\" & AD403),0) + IF(Setup!$AH$9<>\"\",INDIRECT(\"'\" & Setup!$AH$9 & \"'!\" & AD403),0) + IF(Setup!$AH$10<>\"\",INDIRECT(\"'\" & Setup!$AH$10 & \"'!\" & AD403),0) + IF(Setup!$AH$11<>\"\",INDIRECT(\"'\" & Setup!$AH$11 & \"'!\" & AD403),0) + IF(Setup!$AH$12<>\"\",INDIRECT(\"'\" & Setup!$AH$12 & \"'!\" & AD403),0)","v":{"v":0,"d":"0.00"}},{"$f":"IF(Setup!$AH$7<>\"\",INDIRECT(\"'\" & Setup!$AH$7 & \"'!\" & AE403),0) + IF(Setup!$AH$8<>\"\",INDIRECT(\"'\" & Setup!$AH$8 & \"'!\" & AE403),0) + IF(Setup!$AH$9<>\"\",INDIRECT(\"'\" & Setup!$AH$9 & \"'!\" & AE403),0) + IF(Setup!$AH$10<>\"\",INDIRECT(\"'\" & Setup!$AH$10 & \"'!\" & AE403),0) + IF(Setup!$AH$11<>\"\",INDIRECT(\"'\" & Setup!$AH$11 & \"'!\" & AE403),0) + IF(Setup!$AH$12<>\"\",INDIRECT(\"'\" & Setup!$AH$12 & \"'!\" & AE403),0)","v":{"v":0,"d":"0.00"}},"","",{"$f":"IF(Setup!$AI$7<>\"\",INDIRECT(\"'\" & Setup!$AI$7 & \"'!\" & AD403),0) + IF(Setup!$AI$8<>\"\",INDIRECT(\"'\" & Setup!$AI$8 & \"'!\" & AD403),0) + IF(Setup!$AI$9<>\"\",INDIRECT(\"'\" & Setup!$AI$9 & \"'!\" & AD403),0) + IF(Setup!$AI$10<>\"\",INDIRECT(\"'\" & Setup!$AI$10 & \"'!\" & AD403),0) + IF(Setup!$AI$11<>\"\",INDIRECT(\"'\" & Setup!$AI$11 & \"'!\" & AD403),0) + IF(Setup!$AI$12<>\"\",INDIRECT(\"'\" & Setup!$AI$12 & \"'!\" & AD403),0)","v":{"v":0,"d":"0.00"}},{"$f":"IF(Setup!$AI$7<>\"\",INDIRECT(\"'\" & Setup!$AI$7 & \"'!\" & AE403),0) + IF(Setup!$AI$8<>\"\",INDIRECT(\"'\" & Setup!$AI$8 & \"'!\" & AE403),0) + IF(Setup!$AI$9<>\"\",INDIRECT(\"'\" & Setup!$AI$9 & \"'!\" & AE403),0) + IF(Setup!$AI$10<>\"\",INDIRECT(\"'\" & Setup!$AI$10 & \"'!\" & AE403),0) + IF(Setup!$AI$11<>\"\",INDIRECT(\"'\" & Setup!$AI$11 & \"'!\" & AE403),0) + IF(Setup!$AI$12<>\"\",INDIRECT(\"'\" & Setup!$AI$12 & \"'!\" & AE403),0)","v":{"v":0,"d":"0.00"}},"","",{"$f":"IF(Setup!$AJ$7<>\"\",INDIRECT(\"'\" & Setup!$AJ$7 & \"'!\" & AD403),0) + IF(Setup!$AJ$8<>\"\",INDIRECT(\"'\" & Setup!$AJ$8 & \"'!\" & AD403),0) + IF(Setup!$AJ$9<>\"\",INDIRECT(\"'\" & Setup!$AJ$9 & \"'!\" & AD403),0) + IF(Setup!$AJ$10<>\"\",INDIRECT(\"'\" & Setup!$AJ$10 & \"'!\" & AD403),0) + IF(Setup!$AJ$11<>\"\",INDIRECT(\"'\" & Setup!$AJ$11 & \"'!\" & AD403),0) + IF(Setup!$AJ$12<>\"\",INDIRECT(\"'\" & Setup!$AJ$12 & \"'!\" & AD403),0)","v":0},{"$f":"IF(Setup!$AJ$7<>\"\",INDIRECT(\"'\" & Setup!$AJ$7 & \"'!\" & AE403),0) + IF(Setup!$AJ$8<>\"\",INDIRECT(\"'\" & Setup!$AJ$8 & \"'!\" & AE403),0) + IF(Setup!$AJ$9<>\"\",INDIRECT(\"'\" & Setup!$AJ$9 & \"'!\" & AE403),0) + IF(Setup!$AJ$10<>\"\",INDIRECT(\"'\" & Setup!$AJ$10 & \"'!\" & AE403),0) + IF(Setup!$AJ$11<>\"\",INDIRECT(\"'\" & Setup!$AJ$11 & \"'!\" & AE403),0) + IF(Setup!$AJ$12<>\"\",INDIRECT(\"'\" & Setup!$AJ$12 & \"'!\" & AE403),0)","v":0},"","",{"$f":"Planning!H175","v":0},"00","M191","O191","N191",null,null,{"$f":"IF(Setup!$AG$7<>\"\",INDIRECT(\"'\" & Setup!$AG$7 & \"'!\" & AF403),0) + IF(Setup!$AG$8<>\"\",INDIRECT(\"'\" & Setup!$AG$8 & \"'!\" & AF403),0) + IF(Setup!$AG$9<>\"\",INDIRECT(\"'\" & Setup!$AG$9 & \"'!\" & AF403),0) + IF(Setup!$AG$10<>\"\",INDIRECT(\"'\" & Setup!$AG$10 & \"'!\" & AF403),0) + IF(Setup!$AG$11<>\"\",INDIRECT(\"'\" & Setup!$AG$11 & \"'!\" & AF403),0) + IF(Setup!$AG$12<>\"\",INDIRECT(\"'\" & Setup!$AG$12 & \"'!\" & AF403),0)","v":0},{"$f":"IF(Setup!$AH$7<>\"\",INDIRECT(\"'\" & Setup!$AH$7 & \"'!\" & AF403),0) + IF(Setup!$AH$8<>\"\",INDIRECT(\"'\" & Setup!$AH$8 & \"'!\" & AF403),0) + IF(Setup!$AH$9<>\"\",INDIRECT(\"'\" & Setup!$AH$9 & \"'!\" & AF403),0) + IF(Setup!$AH$10<>\"\",INDIRECT(\"'\" & Setup!$AH$10 & \"'!\" & AF403),0) + IF(Setup!$AH$11<>\"\",INDIRECT(\"'\" & Setup!$AH$11 & \"'!\" & AF403),0) + IF(Setup!$AH$12<>\"\",INDIRECT(\"'\" & Setup!$AH$12 & \"'!\" & AF403),0)","v":0},{"$f":"IF(Setup!$AI$7<>\"\",INDIRECT(\"'\" & Setup!$AI$7 & \"'!\" & AF403),0) + IF(Setup!$AI$8<>\"\",INDIRECT(\"'\" & Setup!$AI$8 & \"'!\" & AF403),0) + IF(Setup!$AI$9<>\"\",INDIRECT(\"'\" & Setup!$AI$9 & \"'!\" & AF403),0) + IF(Setup!$AI$10<>\"\",INDIRECT(\"'\" & Setup!$AI$10 & \"'!\" & AF403),0) + IF(Setup!$AI$11<>\"\",INDIRECT(\"'\" & Setup!$AI$11 & \"'!\" & AF403),0) + IF(Setup!$AI$12<>\"\",INDIRECT(\"'\" & Setup!$AI$12 & \"'!\" & AF403),0)","v":0},{"$f":"IF(Setup!$AJ$7<>\"\",INDIRECT(\"'\" & Setup!$AJ$7 & \"'!\" & AF403),0) + IF(Setup!$AJ$8<>\"\",INDIRECT(\"'\" & Setup!$AJ$8 & \"'!\" & AF403),0) + IF(Setup!$AJ$9<>\"\",INDIRECT(\"'\" & Setup!$AJ$9 & \"'!\" & AF403),0) + IF(Setup!$AJ$10<>\"\",INDIRECT(\"'\" & Setup!$AJ$10 & \"'!\" & AF403),0) + IF(Setup!$AJ$11<>\"\",INDIRECT(\"'\" & Setup!$AJ$11 & \"'!\" & AF403),0) + IF(Setup!$AJ$12<>\"\",INDIRECT(\"'\" & Setup!$AJ$12 & \"'!\" & AF403),0)","v":0},null,"",{"$nulls":30},0,{"$f":"IF(Setup!$AH$7=\"\",0,INDIRECT(\"'\" & Setup!$AH$7 & \"'!\" & AF403))","v":0},{"$f":"IF(Setup!$AI$7=\"\",0,INDIRECT(\"'\" & Setup!$AI$7 & \"'!\" & AF403))","v":0},{"$f":"IF(Setup!$AJ$7=\"\",0,INDIRECT(\"'\" & Setup!$AJ$7 & \"'!\" & AF403))","v":0}]
[{"$f":"Planning!A176","v":"I168"},{"$f":"Planning!B176","v":0},{"$f":"Planning!C176","v":0},{"$f":"Planning!D176","v":0},{"$f":"Planning!E176","v":0},{"$f":"Planning!G176","v":0},0,{"v":0,"d":"0.00"},{"v":0,"d":"0.00"},"","",{"$f":"IF(Setup!$AG$7<>\"\",INDIRECT(\"'\" & Setup!$AG$7 & \"'!\" & AD404),0) + IF(Setup!$AG$8<>\"\",INDIRECT(\"'\" & Setup!$AG$8 & \"'!\" & AD404),0) + IF(Setup!$AG$9<>\"\",INDIRECT(\"'\" & Setup!$AG$9 & \"'!\" & AD404),0) + IF(Setup!$AG$10<>\"\",INDIRECT(\"'\" & Setup!$AG$10 & \"'!\" & AD404),0) + IF(Setup!$AG$11<>\"\",INDIRECT(\"'\" & Setup!$AG$11 & \"'!\" & AD404),0) + IF(Setup!$AG$12<>\"\",INDIRECT(\"'\" & Setup!$AG$12 & \"'!\" & AD404),0)","v":{"v":0,"d":"0.00"}},{"$f":"IF(Setup!$AG$7<>\"\",INDIRECT(\"'\" & Setup!$AG$7 & \"'!\" & AE404),0) + IF(Setup!$AG$8<>\"\",INDIRECT(\"'\" & Setup!$AG$8 & \"'!\" & AE404),0) + IF(Setup!$AG$9<>\"\",INDIRECT(\"'\" & Setup!$AG$9 & \"'!\" & AE404),0) + IF(Setup!$AG$10<>\"\",INDIRECT(\"'\" & Setup!$AG$10 & \"'!\" & AE404),0) + IF(Setup!$AG$11<>\"\",INDIRECT(\"'\" & Setup!$AG$11 & \"'!\" & AE404),0) + IF(Setup!$AG$12<>\"\",INDIRECT(\"'\" & Setup!$AG$12 & \"'!\" & AE404),0)","v":{"v":0,"d":"0.00"}},"","",{"$f":"IF(Setup!$AH$7<>\"\",INDIRECT(\"'\" & Setup!$AH$7 & \"'!\" & AD404),0) + IF(Setup!$AH$8<>\"\",INDIRECT(\"'\" & Setup!$AH$8 & \"'!\" & AD404),0) + IF(Setup!$AH$9<>\"\",INDIRECT(\"'\" & Setup!$AH$9 & \"'!\" & AD404),0) + IF(Setup!$AH$10<>\"\",INDIRECT(\"'\" & Setup!$AH$10 & \"'!\" & AD404),0) + IF(Setup!$AH$11<>\"\",INDIRECT(\"'\" & Setup!$AH$11 & \"'!\" & AD404),0) + IF(Setup!$AH$12<>\"\",INDIRECT(\"'\" & Setup!$AH$12 & \"'!\" & AD404),0)","v":{"v":0,"d":"0.00"}},{"$f":"IF(Setup!$AH$7<>\"\",INDIRECT(\"'\" & Setup!$AH$7 & \"'!\" & AE404),0) + IF(Setup!$AH$8<>\"\",INDIRECT(\"'\" & Setup!$AH$8 & \"'!\" & AE404),0) + IF(Setup!$AH$9<>\"\",INDIRECT(\"'\" & Setup!$AH$9 & \"'!\" & AE404),0) + IF(Setup!$AH$10<>\"\",INDIRECT(\"'\" & Setup!$AH$10 & \"'!\" & AE404),0) + IF(Setup!$AH$11<>\"\",INDIRECT(\"'\" & Setup!$AH$11 & \"'!\" & AE404),0) + IF(Setup!$AH$12<>\"\",INDIRECT(\"'\" & Setup!$AH$12 & \"'!\" & AE404),0)","v":{"v":0,"d":"0.00"}},"","",{"$f":"IF(Setup!$AI$7<>\"\",INDIRECT(\"'\" & Setup!$AI$7 & \"'!\" & AD404),0) + IF(Setup!$AI$8<>\"\",INDIRECT(\"'\" & Setup!$AI$8 & \"'!\" & AD404),0) + IF(Setup!$AI$9<>\"\",INDIRECT(\"'\" & Setup!$AI$9 & \"'!\" & AD404),0) + IF(Setup!$AI$10<>\"\",INDIRECT(\"'\" & Setup!$AI$10 & \"'!\" & AD404),0) + IF(Setup!$AI$11<>\"\",INDIRECT(\"'\" & Setup!$AI$11 & \"'!\" & AD404),0) + IF(Setup!$AI$12<>\"\",INDIRECT(\"'\" & Setup!$AI$12 & \"'!\" & AD404),0)","v":{"v":0,"d":"0.00"}},{"$f":"IF(Setup!$AI$7<>\"\",INDIRECT(\"'\" & Setup!$AI$7 & \"'!\" & AE404),0) + IF(Setup!$AI$8<>\"\",INDIRECT(\"'\" & Setup!$AI$8 & \"'!\" & AE404),0) + IF(Setup!$AI$9<>\"\",INDIRECT(\"'\" & Setup!$AI$9 & \"'!\" & AE404),0) + IF(Setup!$AI$10<>\"\",INDIRECT(\"'\" & Setup!$AI$10 & \"'!\" & AE404),0) + IF(Setup!$AI$11<>\"\",INDIRECT(\"'\" & Setup!$AI$11 & \"'!\" & AE404),0) + IF(Setup!$AI$12<>\"\",INDIRECT(\"'\" & Setup!$AI$12 & \"'!\" & AE404),0)","v":{"v":0,"d":"0.00"}},"","",{"$f":"IF(Setup!$AJ$7<>\"\",INDIRECT(\"'\" & Setup!$AJ$7 & \"'!\" & AD404),0) + IF(Setup!$AJ$8<>\"\",INDIRECT(\"'\" & Setup!$AJ$8 & \"'!\" & AD404),0) + IF(Setup!$AJ$9<>\"\",INDIRECT(\"'\" & Setup!$AJ$9 & \"'!\" & AD404),0) + IF(Setup!$AJ$10<>\"\",INDIRECT(\"'\" & Setup!$AJ$10 & \"'!\" & AD404),0) + IF(Setup!$AJ$11<>\"\",INDIRECT(\"'\" & Setup!$AJ$11 & \"'!\" & AD404),0) + IF(Setup!$AJ$12<>\"\",INDIRECT(\"'\" & Setup!$AJ$12 & \"'!\" & AD404),0)","v":0},{"$f":"IF(Setup!$AJ$7<>\"\",INDIRECT(\"'\" & Setup!$AJ$7 & \"'!\" & AE404),0) + IF(Setup!$AJ$8<>\"\",INDIRECT(\"'\" & Setup!$AJ$8 & \"'!\" & AE404),0) + IF(Setup!$AJ$9<>\"\",INDIRECT(\"'\" & Setup!$AJ$9 & \"'!\" & AE404),0) + IF(Setup!$AJ$10<>\"\",INDIRECT(\"'\" & Setup!$AJ$10 & \"'!\" & AE404),0) + IF(Setup!$AJ$11<>\"\",INDIRECT(\"'\" & Setup!$AJ$11 & \"'!\" & AE404),0) + IF(Setup!$AJ$12<>\"\",INDIRECT(\"'\" & Setup!$AJ$12 & \"'!\" & AE404),0)","v":0},"","",{"$f":"Planning!H176","v":0},"00","M192","O192","N192",null,null,{"$f":"IF(Setup!$AG$7<>\"\",INDIRECT(\"'\" & Setup!$AG$7 & \"'!\" & AF404),0) + IF(Setup!$AG$8<>\"\",INDIRECT(\"'\" & Setup!$AG$8 & \"'!\" & AF404),0) + IF(Setup!$AG$9<>\"\",INDIRECT(\"'\" & Setup!$AG$9 & \"'!\" & AF404),0) + IF(Setup!$AG$10<>\"\",INDIRECT(\"'\" & Setup!$AG$10 & \"'!\" & AF404),0) + IF(Setup!$AG$11<>\"\",INDIRECT(\"'\" & Setup!$AG$11 & \"'!\" & AF404),0) + IF(Setup!$AG$12<>\"\",INDIRECT(\"'\" & Setup!$AG$12 & \"'!\" & AF404),0)","v":0},{"$f":"IF(Setup!$AH$7<>\"\",INDIRECT(\"'\" & Setup!$AH$7 & \"'!\" & AF404),0) + IF(Setup!$AH$8<>\"\",INDIRECT(\"'\" & Setup!$AH$8 & \"'!\" & AF404),0) + IF(Setup!$AH$9<>\"\",INDIRECT(\"'\" & Setup!$AH$9 & \"'!\" & AF404),0) + IF(Setup!$AH$10<>\"\",INDIRECT(\"'\" & Setup!$AH$10 & \"'!\" & AF404),0) + IF(Setup!$AH$11<>\"\",INDIRECT(\"'\" & Setup!$AH$11 & \"'!\" & AF404),0) + IF(Setup!$AH$12<>\"\",INDIRECT(\"'\" & Setup!$AH$12 & \"'!\" & AF404),0)","v":0},{"$f":"IF(Setup!$AI$7<>\"\",INDIRECT(\"'\" & Setup!$AI$7 & \"'!\" & AF404),0) + IF(Setup!$AI$8<>\"\",INDIRECT(\"'\" & Setup!$AI$8 & \"'!\" & AF404),0) + IF(Setup!$AI$9<>\"\",INDIRECT(\"'\" & Setup!$AI$9 & \"'!\" & AF404),0) + IF(Setup!$AI$10<>\"\",INDIRECT(\"'\" & Setup!$AI$10 & \"'!\" & AF404),0) + IF(Setup!$AI$11<>\"\",INDIRECT(\"'\" & Setup!$AI$11 & \"'!\" & AF404),0) + IF(Setup!$AI$12<>\"\",INDIRECT(\"'\" & Setup!$AI$12 & \"'!\" & AF404),0)","v":0},{"$f":"IF(Setup!$AJ$7<>\"\",INDIRECT(\"'\" & Setup!$AJ$7 & \"'!\" & AF404),0) + IF(Setup!$AJ$8<>\"\",INDIRECT(\"'\" & Setup!$AJ$8 & \"'!\" & AF404),0) + IF(Setup!$AJ$9<>\"\",INDIRECT(\"'\" & Setup!$AJ$9 & \"'!\" & AF404),0) + IF(Setup!$AJ$10<>\"\",INDIRECT(\"'\" & Setup!$AJ$10 & \"'!\" & AF404),0) + IF(Setup!$AJ$11<>\"\",INDIRECT(\"'\" & Setup!$AJ$11 & \"'!\" & AF404),0) + IF(Setup!$AJ$12<>\"\",INDIRECT(\"'\" & Setup!$AJ$12 & \"'!\" & AF404),0)","v":0},null,"",{"$nulls":30},0,{"$f":"IF(Setup!$AH$7=\"\",0,INDIRECT(\"'\" & Setup!$AH$7 & \"'!\" & AF404))","v":0},{"$f":"IF(Setup!$AI$7=\"\",0,INDIRECT(\"'\" & Setup!$AI$7 & \"'!\" & AF404))","v":0},{"$f":"IF(Setup!$AJ$7=\"\",0,INDIRECT(\"'\" & Setup!$AJ$7 & \"'!\" & AF404))","v":0}]
[{"$f":"Planning!A177","v":"I169"},{"$f":"Planning!B177","v":0},{"$f":"Planning!C177","v":0},{"$f":"Planning!D177","v":0},{"$f":"Planning!E177","v":0},{"$f":"Planning!G177","v":0},0,{"v":0,"d":"0.00"},{"v":0,"d":"0.00"},"","",{"$f":"IF(Setup!$AG$7<>\"\",INDIRECT(\"'\" & Setup!$AG$7 & \"'!\" & AD405),0) + IF(Setup!$AG$8<>\"\",INDIRECT(\"'\" & Setup!$AG$8 & \"'!\" & AD405),0) + IF(Setup!$AG$9<>\"\",INDIRECT(\"'\" & Setup!$AG$9 & \"'!\" & AD405),0) + IF(Setup!$AG$10<>\"\",INDIRECT(\"'\" & Setup!$AG$10 & \"'!\" & AD405),0) + IF(Setup!$AG$11<>\"\",INDIRECT(\"'\" & Setup!$AG$11 & \"'!\" & AD405),0) + IF(Setup!$AG$12<>\"\",INDIRECT(\"'\" & Setup!$AG$12 & \"'!\" & AD405),0)","v":{"v":0,"d":"0.00"}},{"$f":"IF(Setup!$AG$7<>\"\",INDIRECT(\"'\" & Setup!$AG$7 & \"'!\" & AE405),0) + IF(Setup!$AG$8<>\"\",INDIRECT(\"'\" & Setup!$AG$8 & \"'!\" & AE405),0) + IF(Setup!$AG$9<>\"\",INDIRECT(\"'\" & Setup!$AG$9 & \"'!\" & AE405),0) + IF(Setup!$AG$10<>\"\",INDIRECT(\"'\" & Setup!$AG$10 & \"'!\" & AE405),0) + IF(Setup!$AG$11<>\"\",INDIRECT(\"'\" & Setup!$AG$11 & \"'!\" & AE405),0) + IF(Setup!$AG$12<>\"\",INDIRECT(\"'\" & Setup!$AG$12 & \"'!\" & AE405),0)","v":{"v":0,"d":"0.00"}},"","",{"$f":"IF(Setup!$AH$7<>\"\",INDIRECT(\"'\" & Setup!$AH$7 & \"'!\" & AD405),0) + IF(Setup!$AH$8<>\"\",INDIRECT(\"'\" & Setup!$AH$8 & \"'!\" & AD405),0) + IF(Setup!$AH$9<>\"\",INDIRECT(\"'\" & Setup!$AH$9 & \"'!\" & AD405),0) + IF(Setup!$AH$10<>\"\",INDIRECT(\"'\" & Setup!$AH$10 & \"'!\" & AD405),0) + IF(Setup!$AH$11<>\"\",INDIRECT(\"'\" & Setup!$AH$11 & \"'!\" & AD405),0) + IF(Setup!$AH$12<>\"\",INDIRECT(\"'\" & Setup!$AH$12 & \"'!\" & AD405),0)","v":{"v":0,"d":"0.00"}},{"$f":"IF(Setup!$AH$7<>\"\",INDIRECT(\"'\" & Setup!$AH$7 & \"'!\" & AE405),0) + IF(Setup!$AH$8<>\"\",INDIRECT(\"'\" & Setup!$AH$8 & \"'!\" & AE405),0) + IF(Setup!$AH$9<>\"\",INDIRECT(\"'\" & Setup!$AH$9 & \"'!\" & AE405),0) + IF(Setup!$AH$10<>\"\",INDIRECT(\"'\" & Setup!$AH$10 & \"'!\" & AE405),0) + IF(Setup!$AH$11<>\"\",INDIRECT(\"'\" & Setup!$AH$11 & \"'!\" & AE405),0) + IF(Setup!$AH$12<>\"\",INDIRECT(\"'\" & Setup!$AH$12 & \"'!\" & AE405),0)","v":{"v":0,"d":"0.00"}},"","",{"$f":"IF(Setup!$AI$7<>\"\",INDIRECT(\"'\" & Setup!$AI$7 & \"'!\" & AD405),0) + IF(Setup!$AI$8<>\"\",INDIRECT(\"'\" & Setup!$AI$8 & \"'!\" & AD405),0) + IF(Setup!$AI$9<>\"\",INDIRECT(\"'\" & Setup!$AI$9 & \"'!\" & AD405),0) + IF(Setup!$AI$10<>\"\",INDIRECT(\"'\" & Setup!$AI$10 & \"'!\" & AD405),0) + IF(Setup!$AI$11<>\"\",INDIRECT(\"'\" & Setup!$AI$11 & \"'!\" & AD405),0) + IF(Setup!$AI$12<>\"\",INDIRECT(\"'\" & Setup!$AI$12 & \"'!\" & AD405),0)","v":{"v":0,"d":"0.00"}},{"$f":"IF(Setup!$AI$7<>\"\",INDIRECT(\"'\" & Setup!$AI$7 & \"'!\" & AE405),0) + IF(Setup!$AI$8<>\"\",INDIRECT(\"'\" & Setup!$AI$8 & \"'!\" & AE405),0) + IF(Setup!$AI$9<>\"\",INDIRECT(\"'\" & Setup!$AI$9 & \"'!\" & AE405),0) + IF(Setup!$AI$10<>\"\",INDIRECT(\"'\" & Setup!$AI$10 & \"'!\" & AE405),0) + IF(Setup!$AI$11<>\"\",INDIRECT(\"'\" & Setup!$AI$11 & \"'!\" & AE405),0) + IF(Setup!$AI$12<>\"\",INDIRECT(\"'\" & Setup!$AI$12 & \"'!\" & AE405),0)","v":{"v":0,"d":"0.00"}},"","",{"$f":"IF(Setup!$AJ$7<>\"\",INDIRECT(\"'\" & Setup!$AJ$7 & \"'!\" & AD405),0) + IF(Setup!$AJ$8<>\"\",INDIRECT(\"'\" & Setup!$AJ$8 & \"'!\" & AD405),0) + IF(Setup!$AJ$9<>\"\",INDIRECT(\"'\" & Setup!$AJ$9 & \"'!\" & AD405),0) + IF(Setup!$AJ$10<>\"\",INDIRECT(\"'\" & Setup!$AJ$10 & \"'!\" & AD405),0) + IF(Setup!$AJ$11<>\"\",INDIRECT(\"'\" & Setup!$AJ$11 & \"'!\" & AD405),0) + IF(Setup!$AJ$12<>\"\",INDIRECT(\"'\" & Setup!$AJ$12 & \"'!\" & AD405),0)","v":0},{"$f":"IF(Setup!$AJ$7<>\"\",INDIRECT(\"'\" & Setup!$AJ$7 & \"'!\" & AE405),0) + IF(Setup!$AJ$8<>\"\",INDIRECT(\"'\" & Setup!$AJ$8 & \"'!\" & AE405),0) + IF(Setup!$AJ$9<>\"\",INDIRECT(\"'\" & Setup!$AJ$9 & \"'!\" & AE405),0) + IF(Setup!$AJ$10<>\"\",INDIRECT(\"'\" & Setup!$AJ$10 & \"'!\" & AE405),0) + IF(Setup!$AJ$11<>\"\",INDIRECT(\"'\" & Setup!$AJ$11 & \"'!\" & AE405),0) + IF(Setup!$AJ$12<>\"\",INDIRECT(\"'\" & Setup!$AJ$12 & \"'!\" & AE405),0)","v":0},"","",{"$f":"Planning!H177","v":0},"00","M193","O193","N193",null,null,{"$f":"IF(Setup!$AG$7<>\"\",INDIRECT(\"'\" & Setup!$AG$7 & \"'!\" & AF405),0) + IF(Setup!$AG$8<>\"\",INDIRECT(\"'\" & Setup!$AG$8 & \"'!\" & AF405),0) + IF(Setup!$AG$9<>\"\",INDIRECT(\"'\" & Setup!$AG$9 & \"'!\" & AF405),0) + IF(Setup!$AG$10<>\"\",INDIRECT(\"'\" & Setup!$AG$10 & \"'!\" & AF405),0) + IF(Setup!$AG$11<>\"\",INDIRECT(\"'\" & Setup!$AG$11 & \"'!\" & AF405),0) + IF(Setup!$AG$12<>\"\",INDIRECT(\"'\" & Setup!$AG$12 & \"'!\" & AF405),0)","v":0},{"$f":"IF(Setup!$AH$7<>\"\",INDIRECT(\"'\" & Setup!$AH$7 & \"'!\" & AF405),0) + IF(Setup!$AH$8<>\"\",INDIRECT(\"'\" & Setup!$AH$8 & \"'!\" & AF405),0) + IF(Setup!$AH$9<>\"\",INDIRECT(\"'\" & Setup!$AH$9 & \"'!\" & AF405),0) + IF(Setup!$AH$10<>\"\",INDIRECT(\"'\" & Setup!$AH$10 & \"'!\" & AF405),0) + IF(Setup!$AH$11<>\"\",INDIRECT(\"'\" & Setup!$AH$11 & \"'!\" & AF405),0) + IF(Setup!$AH$12<>\"\",INDIRECT(\"'\" & Setup!$AH$12 & \"'!\" & AF405),0)","v":0},{"$f":"IF(Setup!$AI$7<>\"\",INDIRECT(\"'\" & Setup!$AI$7 & \"'!\" & AF405),0) + IF(Setup!$AI$8<>\"\",INDIRECT(\"'\" & Setup!$AI$8 & \"'!\" & AF405),0) + IF(Setup!$AI$9<>\"\",INDIRECT(\"'\" & Setup!$AI$9 & \"'!\" & AF405),0) + IF(Setup!$AI$10<>\"\",INDIRECT(\"'\" & Setup!$AI$10 & \"'!\" & AF405),0) + IF(Setup!$AI$11<>\"\",INDIRECT(\"'\" & Setup!$AI$11 & \"'!\" & AF405),0) + IF(Setup!$AI$12<>\"\",INDIRECT(\"'\" & Setup!$AI$12 & \"'!\" & AF405),0)","v":0},{"$f":"IF(Setup!$AJ$7<>\"\",INDIRECT(\"'\" & Setup!$AJ$7 & \"'!\" & AF405),0) + IF(Setup!$AJ$8<>\"\",INDIRECT(\"'\" & Setup!$AJ$8 & \"'!\" & AF405),0) + IF(Setup!$AJ$9<>\"\",INDIRECT(\"'\" & Setup!$AJ$9 & \"'!\" & AF405),0) + IF(Setup!$AJ$10<>\"\",INDIRECT(\"'\" & Setup!$AJ$10 & \"'!\" & AF405),0) + IF(Setup!$AJ$11<>\"\",INDIRECT(\"'\" & Setup!$AJ$11 & \"'!\" & AF405),0) + IF(Setup!$AJ$12<>\"\",INDIRECT(\"'\" & Setup!$AJ$12 & \"'!\" & AF405),0)","v":0},null,"",{"$nulls":30},0,{"$f":"IF(Setup!$AH$7=\"\",0,INDIRECT(\"'\" & Setup!$AH$7 & \"'!\" & AF405))","v":0},{"$f":"IF(Setup!$AI$7=\"\",0,INDIRECT(\"'\" & Setup!$AI$7 & \"'!\" & AF405))","v":0},{"$f":"IF(Setup!$AJ$7=\"\",0,INDIRECT(\"'\" & Setup!$AJ$7 & \"'!\" & AF405))","v":0}]
[{"$f":"Planning!A178","v":"I170"},{"$f":"Planning!B178","v":0},{"$f":"Planning!C178","v":0},{"$f":"Planning!D178","v":0},{"$f":"Planning!E178","v":0},{"$f":"Planning!G178","v":0},0,{"v":0,"d":"0.00"},{"v":0,"d":"0.00"},"","",{"$f":"IF(Setup!$AG$7<>\"\",INDIRECT(\"'\" & Setup!$AG$7 & \"'!\" & AD406),0) + IF(Setup!$AG$8<>\"\",INDIRECT(\"'\" & Setup!$AG$8 & \"'!\" & AD406),0) + IF(Setup!$AG$9<>\"\",INDIRECT(\"'\" & Setup!$AG$9 & \"'!\" & AD406),0) + IF(Setup!$AG$10<>\"\",INDIRECT(\"'\" & Setup!$AG$10 & \"'!\" & AD406),0) + IF(Setup!$AG$11<>\"\",INDIRECT(\"'\" & Setup!$AG$11 & \"'!\" & AD406),0) + IF(Setup!$AG$12<>\"\",INDIRECT(\"'\" & Setup!$AG$12 & \"'!\" & AD406),0)","v":{"v":0,"d":"0.00"}},{"$f":"IF(Setup!$AG$7<>\"\",INDIRECT(\"'\" & Setup!$AG$7 & \"'!\" & AE406),0) + IF(Setup!$AG$8<>\"\",INDIRECT(\"'\" & Setup!$AG$8 & \"'!\" & AE406),0) + IF(Setup!$AG$9<>\"\",INDIRECT(\"'\" & Setup!$AG$9 & \"'!\" & AE406),0) + IF(Setup!$AG$10<>\"\",INDIRECT(\"'\" & Setup!$AG$10 & \"'!\" & AE406),0) + IF(Setup!$AG$11<>\"\",INDIRECT(\"'\" & Setup!$AG$11 & \"'!\" & AE406),0) + IF(Setup!$AG$12<>\"\",INDIRECT(\"'\" & Setup!$AG$12 & \"'!\" & AE406),0)","v":{"v":0,"d":"0.00"}},"","",{"$f":"IF(Setup!$AH$7<>\"\",INDIRECT(\"'\" & Setup!$AH$7 & \"'!\" & AD406),0) + IF(Setup!$AH$8<>\"\",INDIRECT(\"'\" & Setup!$AH$8 & \"'!\" & AD406),0) + IF(Setup!$AH$9<>\"\",INDIRECT(\"'\" & Setup!$AH$9 & \"'!\" & AD406),0) + IF(Setup!$AH$10<>\"\",INDIRECT(\"'\" & Setup!$AH$10 & \"'!\" & AD406),0) + IF(Setup!$AH$11<>\"\",INDIRECT(\"'\" & Setup!$AH$11 & \"'!\" & AD406),0) + IF(Setup!$AH$12<>\"\",INDIRECT(\"'\" & Setup!$AH$12 & \"'!\" & AD406),0)","v":{"v":0,"d":"0.00"}},{"$f":"IF(Setup!$AH$7<>\"\",INDIRECT(\"'\" & Setup!$AH$7 & \"'!\" & AE406),0) + IF(Setup!$AH$8<>\"\",INDIRECT(\"'\" & Setup!$AH$8 & \"'!\" & AE406),0) + IF(Setup!$AH$9<>\"\",INDIRECT(\"'\" & Setup!$AH$9 & \"'!\" & AE406),0) + IF(Setup!$AH$10<>\"\",INDIRECT(\"'\" & Setup!$AH$10 & \"'!\" & AE406),0) + IF(Setup!$AH$11<>\"\",INDIRECT(\"'\" & Setup!$AH$11 & \"'!\" & AE406),0) + IF(Setup!$AH$12<>\"\",INDIRECT(\"'\" & Setup!$AH$12 & \"'!\" & AE406),0)","v":{"v":0,"d":"0.00"}},"","",{"$f":"IF(Setup!$AI$7<>\"\",INDIRECT(\"'\" & Setup!$AI$7 & \"'!\" & AD406),0) + IF(Setup!$AI$8<>\"\",INDIRECT(\"'\" & Setup!$AI$8 & \"'!\" & AD406),0) + IF(Setup!$AI$9<>\"\",INDIRECT(\"'\" & Setup!$AI$9 & \"'!\" & AD406),0) + IF(Setup!$AI$10<>\"\",INDIRECT(\"'\" & Setup!$AI$10 & \"'!\" & AD406),0) + IF(Setup!$AI$11<>\"\",INDIRECT(\"'\" & Setup!$AI$11 & \"'!\" & AD406),0) + IF(Setup!$AI$12<>\"\",INDIRECT(\"'\" & Setup!$AI$12 & \"'!\" & AD406),0)","v":{"v":0,"d":"0.00"}},{"$f":"IF(Setup!$AI$7<>\"\",INDIRECT(\"'\" & Setup!$AI$7 & \"'!\" & AE406),0) + IF(Setup!$AI$8<>\"\",INDIRECT(\"'\" & Setup!$AI$8 & \"'!\" & AE406),0) + IF(Setup!$AI$9<>\"\",INDIRECT(\"'\" & Setup!$AI$9 & \"'!\" & AE406),0) + IF(Setup!$AI$10<>\"\",INDIRECT(\"'\" & Setup!$AI$10 & \"'!\" & AE406),0) + IF(Setup!$AI$11<>\"\",INDIRECT(\"'\" & Setup!$AI$11 & \"'!\" & AE406),0) + IF(Setup!$AI$12<>\"\",INDIRECT(\"'\" & Setup!$AI$12 & \"'!\" & AE406),0)","v":{"v":0,"d":"0.00"}},"","",{"$f":"IF(Setup!$AJ$7<>\"\",INDIRECT(\"'\" & Setup!$AJ$7 & \"'!\" & AD406),0) + IF(Setup!$AJ$8<>\"\",INDIRECT(\"'\" & Setup!$AJ$8 & \"'!\" & AD406),0) + IF(Setup!$AJ$9<>\"\",INDIRECT(\"'\" & Setup!$AJ$9 & \"'!\" & AD406),0) + IF(Setup!$AJ$10<>\"\",INDIRECT(\"'\" & Setup!$AJ$10 & \"'!\" & AD406),0) + IF(Setup!$AJ$11<>\"\",INDIRECT(\"'\" & Setup!$AJ$11 & \"'!\" & AD406),0) + IF(Setup!$AJ$12<>\"\",INDIRECT(\"'\" & Setup!$AJ$12 & \"'!\" & AD406),0)","v":0},{"$f":"IF(Setup!$AJ$7<>\"\",INDIRECT(\"'\" & Setup!$AJ$7 & \"'!\" & AE406),0) + IF(Setup!$AJ$8<>\"\",INDIRECT(\"'\" & Setup!$AJ$8 & \"'!\" & AE406),0) + IF(Setup!$AJ$9<>\"\",INDIRECT(\"'\" & Setup!$AJ$9 & \"'!\" & AE406),0) + IF(Setup!$AJ$10<>\"\",INDIRECT(\"'\" & Setup!$AJ$10 & \"'!\" & AE406),0) + IF(Setup!$AJ$11<>\"\",INDIRECT(\"'\" & Setup!$AJ$11 & \"'!\" & AE406),0) + IF(Setup!$AJ$12<>\"\",INDIRECT(\"'\" & Setup!$AJ$12 & \"'!\" & AE406),0)","v":0},"","",{"$f":"Planning!H178","v":0},"00","M194","O194","N194",null,null,{"$f":"IF(Setup!$AG$7<>\"\",INDIRECT(\"'\" & Setup!$AG$7 & \"'!\" & AF406),0) + IF(Setup!$AG$8<>\"\",INDIRECT(\"'\" & Setup!$AG$8 & \"'!\" & AF406),0) + IF(Setup!$AG$9<>\"\",INDIRECT(\"'\" & Setup!$AG$9 & \"'!\" & AF406),0) + IF(Setup!$AG$10<>\"\",INDIRECT(\"'\" & Setup!$AG$10 & \"'!\" & AF406),0) + IF(Setup!$AG$11<>\"\",INDIRECT(\"'\" & Setup!$AG$11 & \"'!\" & AF406),0) + IF(Setup!$AG$12<>\"\",INDIRECT(\"'\" & Setup!$AG$12 & \"'!\" & AF406),0)","v":0},{"$f":"IF(Setup!$AH$7<>\"\",INDIRECT(\"'\" & Setup!$AH$7 & \"'!\" & AF406),0) + IF(Setup!$AH$8<>\"\",INDIRECT(\"'\" & Setup!$AH$8 & \"'!\" & AF406),0) + IF(Setup!$AH$9<>\"\",INDIRECT(\"'\" & Setup!$AH$9 & \"'!\" & AF406),0) + IF(Setup!$AH$10<>\"\",INDIRECT(\"'\" & Setup!$AH$10 & \"'!\" & AF406),0) + IF(Setup!$AH$11<>\"\",INDIRECT(\"'\" & Setup!$AH$11 & \"'!\" & AF406),0) + IF(Setup!$AH$12<>\"\",INDIRECT(\"'\" & Setup!$AH$12 & \"'!\" & AF406),0)","v":0},{"$f":"IF(Setup!$AI$7<>\"\",INDIRECT(\"'\" & Setup!$AI$7 & \"'!\" & AF406),0) + IF(Setup!$AI$8<>\"\",INDIRECT(\"'\" & Setup!$AI$8 & \"'!\" & AF406),0) + IF(Setup!$AI$9<>\"\",INDIRECT(\"'\" & Setup!$AI$9 & \"'!\" & AF406),0) + IF(Setup!$AI$10<>\"\",INDIRECT(\"'\" & Setup!$AI$10 & \"'!\" & AF406),0) + IF(Setup!$AI$11<>\"\",INDIRECT(\"'\" & Setup!$AI$11 & \"'!\" & AF406),0) + IF(Setup!$AI$12<>\"\",INDIRECT(\"'\" & Setup!$AI$12 & \"'!\" & AF406),0)","v":0},{"$f":"IF(Setup!$AJ$7<>\"\",INDIRECT(\"'\" & Setup!$AJ$7 & \"'!\" & AF406),0) + IF(Setup!$AJ$8<>\"\",INDIRECT(\"'\" & Setup!$AJ$8 & \"'!\" & AF406),0) + IF(Setup!$AJ$9<>\"\",INDIRECT(\"'\" & Setup!$AJ$9 & \"'!\" & AF406),0) + IF(Setup!$AJ$10<>\"\",INDIRECT(\"'\" & Setup!$AJ$10 & \"'!\" & AF406),0) + IF(Setup!$AJ$11<>\"\",INDIRECT(\"'\" & Setup!$AJ$11 & \"'!\" & AF406),0) + IF(Setup!$AJ$12<>\"\",INDIRECT(\"'\" & Setup!$AJ$12 & \"'!\" & AF406),0)","v":0},null,"",{"$nulls":30},0,{"$f":"IF(Setup!$AH$7=\"\",0,INDIRECT(\"'\" & Setup!$AH$7 & \"'!\" & AF406))","v":0},{"$f":"IF(Setup!$AI$7=\"\",0,INDIRECT(\"'\" & Setup!$AI$7 & \"'!\" & AF406))","v":0},{"$f":"IF(Setup!$AJ$7=\"\",0,INDIRECT(\"'\" & Setup!$AJ$7 & \"'!\" & AF406))","v":0}]
[{"$f":"Planning!A179","v":"I171"},{"$f":"Planning!B179","v":0},{"$f":"Planning!C179","v":0},{"$f":"Planning!D179","v":0},{"$f":"Planning!E179","v":0},{"$f":"Planning!G179","v":0},0,{"v":0,"d":"0.00"},{"v":0,"d":"0.00"},"","",{"$f":"IF(Setup!$AG$7<>\"\",INDIRECT(\"'\" & Setup!$AG$7 & \"'!\" & AD407),0) + IF(Setup!$AG$8<>\"\",INDIRECT(\"'\" & Setup!$AG$8 & \"'!\" & AD407),0) + IF(Setup!$AG$9<>\"\",INDIRECT(\"'\" & Setup!$AG$9 & \"'!\" & AD407),0) + IF(Setup!$AG$10<>\"\",INDIRECT(\"'\" & Setup!$AG$10 & \"'!\" & AD407),0) + IF(Setup!$AG$11<>\"\",INDIRECT(\"'\" & Setup!$AG$11 & \"'!\" & AD407),0) + IF(Setup!$AG$12<>\"\",INDIRECT(\"'\" & Setup!$AG$12 & \"'!\" & AD407),0)","v":{"v":0,"d":"0.00"}},{"$f":"IF(Setup!$AG$7<>\"\",INDIRECT(\"'\" & Setup!$AG$7 & \"'!\" & AE407),0) + IF(Setup!$AG$8<>\"\",INDIRECT(\"'\" & Setup!$AG$8 & \"'!\" & AE407),0) + IF(Setup!$AG$9<>\"\",INDIRECT(\"'\" & Setup!$AG$9 & \"'!\" & AE407),0) + IF(Setup!$AG$10<>\"\",INDIRECT(\"'\" & Setup!$AG$10 & \"'!\" & AE407),0) + IF(Setup!$AG$11<>\"\",INDIRECT(\"'\" & Setup!$AG$11 & \"'!\" & AE407),0) + IF(Setup!$AG$12<>\"\",INDIRECT(\"'\" & Setup!$AG$12 & \"'!\" & AE407),0)","v":{"v":0,"d":"0.00"}},"","",{"$f":"IF(Setup!$AH$7<>\"\",INDIRECT(\"'\" & Setup!$AH$7 & \"'!\" & AD407),0) + IF(Setup!$AH$8<>\"\",INDIRECT(\"'\" & Setup!$AH$8 & \"'!\" & AD407),0) + IF(Setup!$AH$9<>\"\",INDIRECT(\"'\" & Setup!$AH$9 & \"'!\" & AD407),0) + IF(Setup!$AH$10<>\"\",INDIRECT(\"'\" & Setup!$AH$10 & \"'!\" & AD407),0) + IF(Setup!$AH$11<>\"\",INDIRECT(\"'\" & Setup!$AH$11 & \"'!\" & AD407),0) + IF(Setup!$AH$12<>\"\",INDIRECT(\"'\" & Setup!$AH$12 & \"'!\" & AD407),0)","v":{"v":0,"d":"0.00"}},{"$f":"IF(Setup!$AH$7<>\"\",INDIRECT(\"'\" & Setup!$AH$7 & \"'!\" & AE407),0) + IF(Setup!$AH$8<>\"\",INDIRECT(\"'\" & Setup!$AH$8 & \"'!\" & AE407),0) + IF(Setup!$AH$9<>\"\",INDIRECT(\"'\" & Setup!$AH$9 & \"'!\" & AE407),0) + IF(Setup!$AH$10<>\"\",INDIRECT(\"'\" & Setup!$AH$10 & \"'!\" & AE407),0) + IF(Setup!$AH$11<>\"\",INDIRECT(\"'\" & Setup!$AH$11 & \"'!\" & AE407),0) + IF(Setup!$AH$12<>\"\",INDIRECT(\"'\" & Setup!$AH$12 & \"'!\" & AE407),0)","v":{"v":0,"d":"0.00"}},"","",{"$f":"IF(Setup!$AI$7<>\"\",INDIRECT(\"'\" & Setup!$AI$7 & \"'!\" & AD407),0) + IF(Setup!$AI$8<>\"\",INDIRECT(\"'\" & Setup!$AI$8 & \"'!\" & AD407),0) + IF(Setup!$AI$9<>\"\",INDIRECT(\"'\" & Setup!$AI$9 & \"'!\" & AD407),0) + IF(Setup!$AI$10<>\"\",INDIRECT(\"'\" & Setup!$AI$10 & \"'!\" & AD407),0) + IF(Setup!$AI$11<>\"\",INDIRECT(\"'\" & Setup!$AI$11 & \"'!\" & AD407),0) + IF(Setup!$AI$12<>\"\",INDIRECT(\"'\" & Setup!$AI$12 & \"'!\" & AD407),0)","v":{"v":0,"d":"0.00"}},{"$f":"IF(Setup!$AI$7<>\"\",INDIRECT(\"'\" & Setup!$AI$7 & \"'!\" & AE407),0) + IF(Setup!$AI$8<>\"\",INDIRECT(\"'\" & Setup!$AI$8 & \"'!\" & AE407),0) + IF(Setup!$AI$9<>\"\",INDIRECT(\"'\" & Setup!$AI$9 & \"'!\" & AE407),0) + IF(Setup!$AI$10<>\"\",INDIRECT(\"'\" & Setup!$AI$10 & \"'!\" & AE407),0) + IF(Setup!$AI$11<>\"\",INDIRECT(\"'\" & Setup!$AI$11 & \"'!\" & AE407),0) + IF(Setup!$AI$12<>\"\",INDIRECT(\"'\" & Setup!$AI$12 & \"'!\" & AE407),0)","v":{"v":0,"d":"0.00"}},"","",{"$f":"IF(Setup!$AJ$7<>\"\",INDIRECT(\"'\" & Setup!$AJ$7 & \"'!\" & AD407),0) + IF(Setup!$AJ$8<>\"\",INDIRECT(\"'\" & Setup!$AJ$8 & \"'!\" & AD407),0) + IF(Setup!$AJ$9<>\"\",INDIRECT(\"'\" & Setup!$AJ$9 & \"'!\" & AD407),0) + IF(Setup!$AJ$10<>\"\",INDIRECT(\"'\" & Setup!$AJ$10 & \"'!\" & AD407),0) + IF(Setup!$AJ$11<>\"\",INDIRECT(\"'\" & Setup!$AJ$11 & \"'!\" & AD407),0) + IF(Setup!$AJ$12<>\"\",INDIRECT(\"'\" & Setup!$AJ$12 & \"'!\" & AD407),0)","v":0},{"$f":"IF(Setup!$AJ$7<>\"\",INDIRECT(\"'\" & Setup!$AJ$7 & \"'!\" & AE407),0) + IF(Setup!$AJ$8<>\"\",INDIRECT(\"'\" & Setup!$AJ$8 & \"'!\" & AE407),0) + IF(Setup!$AJ$9<>\"\",INDIRECT(\"'\" & Setup!$AJ$9 & \"'!\" & AE407),0) + IF(Setup!$AJ$10<>\"\",INDIRECT(\"'\" & Setup!$AJ$10 & \"'!\" & AE407),0) + IF(Setup!$AJ$11<>\"\",INDIRECT(\"'\" & Setup!$AJ$11 & \"'!\" & AE407),0) + IF(Setup!$AJ$12<>\"\",INDIRECT(\"'\" & Setup!$AJ$12 & \"'!\" & AE407),0)","v":0},"","",{"$f":"Planning!H179","v":0},"00","M195","O195","N195",null,null,{"$f":"IF(Setup!$AG$7<>\"\",INDIRECT(\"'\" & Setup!$AG$7 & \"'!\" & AF407),0) + IF(Setup!$AG$8<>\"\",INDIRECT(\"'\" & Setup!$AG$8 & \"'!\" & AF407),0) + IF(Setup!$AG$9<>\"\",INDIRECT(\"'\" & Setup!$AG$9 & \"'!\" & AF407),0) + IF(Setup!$AG$10<>\"\",INDIRECT(\"'\" & Setup!$AG$10 & \"'!\" & AF407),0) + IF(Setup!$AG$11<>\"\",INDIRECT(\"'\" & Setup!$AG$11 & \"'!\" & AF407),0) + IF(Setup!$AG$12<>\"\",INDIRECT(\"'\" & Setup!$AG$12 & \"'!\" & AF407),0)","v":0},{"$f":"IF(Setup!$AH$7<>\"\",INDIRECT(\"'\" & Setup!$AH$7 & \"'!\" & AF407),0) + IF(Setup!$AH$8<>\"\",INDIRECT(\"'\" & Setup!$AH$8 & \"'!\" & AF407),0) + IF(Setup!$AH$9<>\"\",INDIRECT(\"'\" & Setup!$AH$9 & \"'!\" & AF407),0) + IF(Setup!$AH$10<>\"\",INDIRECT(\"'\" & Setup!$AH$10 & \"'!\" & AF407),0) + IF(Setup!$AH$11<>\"\",INDIRECT(\"'\" & Setup!$AH$11 & \"'!\" & AF407),0) + IF(Setup!$AH$12<>\"\",INDIRECT(\"'\" & Setup!$AH$12 & \"'!\" & AF407),0)","v":0},{"$f":"IF(Setup!$AI$7<>\"\",INDIRECT(\"'\" & Setup!$AI$7 & \"'!\" & AF407),0) + IF(Setup!$AI$8<>\"\",INDIRECT(\"'\" & Setup!$AI$8 & \"'!\" & AF407),0) + IF(Setup!$AI$9<>\"\",INDIRECT(\"'\" & Setup!$AI$9 & \"'!\" & AF407),0) + IF(Setup!$AI$10<>\"\",INDIRECT(\"'\" & Setup!$AI$10 & \"'!\" & AF407),0) + IF(Setup!$AI$11<>\"\",INDIRECT(\"'\" & Setup!$AI$11 & \"'!\" & AF407),0) + IF(Setup!$AI$12<>\"\",INDIRECT(\"'\" & Setup!$AI$12 & \"'!\" & AF407),0)","v":0},{"$f":"IF(Setup!$AJ$7<>\"\",INDIRECT(\"'\" & Setup!$AJ$7 & \"'!\" & AF407),0) + IF(Setup!$AJ$8<>\"\",INDIRECT(\"'\" & Setup!$AJ$8 & \"'!\" & AF407),0) + IF(Setup!$AJ$9<>\"\",INDIRECT(\"'\" & Setup!$AJ$9 & \"'!\" & AF407),0) + IF(Setup!$AJ$10<>\"\",INDIRECT(\"'\" & Setup!$AJ$10 & \"'!\" & AF407),0) + IF(Setup!$AJ$11<>\"\",INDIRECT(\"'\" & Setup!$AJ$11 & \"'!\" & AF407),0) + IF(Setup!$AJ$12<>\"\",INDIRECT(\"'\" & Setup!$AJ$12 & \"'!\" & AF407),0)","v":0},null,"",{"$nulls":30},0,{"$f":"IF(Setup!$AH$7=\"\",0,INDIRECT(\"'\" & Setup!$AH$7 & \"'!\" & AF407))","v":0},{"$f":"IF(Setup!$AI$7=\"\",0,INDIRECT(\"'\" & Setup!$AI$7 & \"'!\" & AF407))","v":0},{"$f":"IF(Setup!$AJ$7=\"\",0,INDIRECT(\"'\" & Setup!$AJ$7 & \"'!\" & AF407))","v":0}]
[{"$f":"Planning!A180","v":"I172"},{"$f":"Planning!B180","v":0},{"$f":"Planning!C180","v":0},{"$f":"Planning!D180","v":0},{"$f":"Planning!E180","v":0},{"$f":"Planning!G180","v":0},0,{"v":0,"d":"0.00"},{"v":0,"d":"0.00"},"","",{"$f":"IF(Setup!$AG$7<>\"\",INDIRECT(\"'\" & Setup!$AG$7 & \"'!\" & AD408),0) + IF(Setup!$AG$8<>\"\",INDIRECT(\"'\" & Setup!$AG$8 & \"'!\" & AD408),0) + IF(Setup!$AG$9<>\"\",INDIRECT(\"'\" & Setup!$AG$9 & \"'!\" & AD408),0) + IF(Setup!$AG$10<>\"\",INDIRECT(\"'\" & Setup!$AG$10 & \"'!\" & AD408),0) + IF(Setup!$AG$11<>\"\",INDIRECT(\"'\" & Setup!$AG$11 & \"'!\" & AD408),0) + IF(Setup!$AG$12<>\"\",INDIRECT(\"'\" & Setup!$AG$12 & \"'!\" & AD408),0)","v":{"v":0,"d":"0.00"}},{"$f":"IF(Setup!$AG$7<>\"\",INDIRECT(\"'\" & Setup!$AG$7 & \"'!\" & AE408),0) + IF(Setup!$AG$8<>\"\",INDIRECT(\"'\" & Setup!$AG$8 & \"'!\" & AE408),0) + IF(Setup!$AG$9<>\"\",INDIRECT(\"'\" & Setup!$AG$9 & \"'!\" & AE408),0) + IF(Setup!$AG$10<>\"\",INDIRECT(\"'\" & Setup!$AG$10 & \"'!\" & AE408),0) + IF(Setup!$AG$11<>\"\",INDIRECT(\"'\" & Setup!$AG$11 & \"'!\" & AE408),0) + IF(Setup!$AG$12<>\"\",INDIRECT(\"'\" & Setup!$AG$12 & \"'!\" & AE408),0)","v":{"v":0,"d":"0.00"}},"","",{"$f":"IF(Setup!$AH$7<>\"\",INDIRECT(\"'\" & Setup!$AH$7 & \"'!\" & AD408),0) + IF(Setup!$AH$8<>\"\",INDIRECT(\"'\" & Setup!$AH$8 & \"'!\" & AD408),0) + IF(Setup!$AH$9<>\"\",INDIRECT(\"'\" & Setup!$AH$9 & \"'!\" & AD408),0) + IF(Setup!$AH$10<>\"\",INDIRECT(\"'\" & Setup!$AH$10 & \"'!\" & AD408),0) + IF(Setup!$AH$11<>\"\",INDIRECT(\"'\" & Setup!$AH$11 & \"'!\" & AD408),0) + IF(Setup!$AH$12<>\"\",INDIRECT(\"'\" & Setup!$AH$12 & \"'!\" & AD408),0)","v":{"v":0,"d":"0.00"}},{"$f":"IF(Setup!$AH$7<>\"\",INDIRECT(\"'\" & Setup!$AH$7 & \"'!\" & AE408),0) + IF(Setup!$AH$8<>\"\",INDIRECT(\"'\" & Setup!$AH$8 & \"'!\" & AE408),0) + IF(Setup!$AH$9<>\"\",INDIRECT(\"'\" & Setup!$AH$9 & \"'!\" & AE408),0) + IF(Setup!$AH$10<>\"\",INDIRECT(\"'\" & Setup!$AH$10 & \"'!\" & AE408),0) + IF(Setup!$AH$11<>\"\",INDIRECT(\"'\" & Setup!$AH$11 & \"'!\" & AE408),0) + IF(Setup!$AH$12<>\"\",INDIRECT(\"'\" & Setup!$AH$12 & \"'!\" & AE408),0)","v":{"v":0,"d":"0.00"}},"","",{"$f":"IF(Setup!$AI$7<>\"\",INDIRECT(\"'\" & Setup!$AI$7 & \"'!\" & AD408),0) + IF(Setup!$AI$8<>\"\",INDIRECT(\"'\" & Setup!$AI$8 & \"'!\" & AD408),0) + IF(Setup!$AI$9<>\"\",INDIRECT(\"'\" & Setup!$AI$9 & \"'!\" & AD408),0) + IF(Setup!$AI$10<>\"\",INDIRECT(\"'\" & Setup!$AI$10 & \"'!\" & AD408),0) + IF(Setup!$AI$11<>\"\",INDIRECT(\"'\" & Setup!$AI$11 & \"'!\" & AD408),0) + IF(Setup!$AI$12<>\"\",INDIRECT(\"'\" & Setup!$AI$12 & \"'!\" & AD408),0)","v":{"v":0,"d":"0.00"}},{"$f":"IF(Setup!$AI$7<>\"\",INDIRECT(\"'\" & Setup!$AI$7 & \"'!\" & AE408),0) + IF(Setup!$AI$8<>\"\",INDIRECT(\"'\" & Setup!$AI$8 & \"'!\" & AE408),0) + IF(Setup!$AI$9<>\"\",INDIRECT(\"'\" & Setup!$AI$9 & \"'!\" & AE408),0) + IF(Setup!$AI$10<>\"\",INDIRECT(\"'\" & Setup!$AI$10 & \"'!\" & AE408),0) + IF(Setup!$AI$11<>\"\",INDIRECT(\"'\" & Setup!$AI$11 & \"'!\" & AE408),0) + IF(Setup!$AI$12<>\"\",INDIRECT(\"'\" & Setup!$AI$12 & \"'!\" & AE408),0)","v":{"v":0,"d":"0.00"}},"","",{"$f":"IF(Setup!$AJ$7<>\"\",INDIRECT(\"'\" & Setup!$AJ$7 & \"'!\" & AD408),0) + IF(Setup!$AJ$8<>\"\",INDIRECT(\"'\" & Setup!$AJ$8 & \"'!\" & AD408),0) + IF(Setup!$AJ$9<>\"\",INDIRECT(\"'\" & Setup!$AJ$9 & \"'!\" & AD408),0) + IF(Setup!$AJ$10<>\"\",INDIRECT(\"'\" & Setup!$AJ$10 & \"'!\" & AD408),0) + IF(Setup!$AJ$11<>\"\",INDIRECT(\"'\" & Setup!$AJ$11 & \"'!\" & AD408),0) + IF(Setup!$AJ$12<>\"\",INDIRECT(\"'\" & Setup!$AJ$12 & \"'!\" & AD408),0)","v":0},{"$f":"IF(Setup!$AJ$7<>\"\",INDIRECT(\"'\" & Setup!$AJ$7 & \"'!\" & AE408),0) + IF(Setup!$AJ$8<>\"\",INDIRECT(\"'\" & Setup!$AJ$8 & \"'!\" & AE408),0) + IF(Setup!$AJ$9<>\"\",INDIRECT(\"'\" & Setup!$AJ$9 & \"'!\" & AE408),0) + IF(Setup!$AJ$10<>\"\",INDIRECT(\"'\" & Setup!$AJ$10 & \"'!\" & AE408),0) + IF(Setup!$AJ$11<>\"\",INDIRECT(\"'\" & Setup!$AJ$11 & \"'!\" & AE408),0) + IF(Setup!$AJ$12<>\"\",INDIRECT(\"'\" & Setup!$AJ$12 & \"'!\" & AE408),0)","v":0},"","",{"$f":"Planning!H180","v":0},"00","M196","O196","N196",null,null,{"$f":"IF(Setup!$AG$7<>\"\",INDIRECT(\"'\" & Setup!$AG$7 & \"'!\" & AF408),0) + IF(Setup!$AG$8<>\"\",INDIRECT(\"'\" & Setup!$AG$8 & \"'!\" & AF408),0) + IF(Setup!$AG$9<>\"\",INDIRECT(\"'\" & Setup!$AG$9 & \"'!\" & AF408),0) + IF(Setup!$AG$10<>\"\",INDIRECT(\"'\" & Setup!$AG$10 & \"'!\" & AF408),0) + IF(Setup!$AG$11<>\"\",INDIRECT(\"'\" & Setup!$AG$11 & \"'!\" & AF408),0) + IF(Setup!$AG$12<>\"\",INDIRECT(\"'\" & Setup!$AG$12 & \"'!\" & AF408),0)","v":0},{"$f":"IF(Setup!$AH$7<>\"\",INDIRECT(\"'\" & Setup!$AH$7 & \"'!\" & AF408),0) + IF(Setup!$AH$8<>\"\",INDIRECT(\"'\" & Setup!$AH$8 & \"'!\" & AF408),0) + IF(Setup!$AH$9<>\"\",INDIRECT(\"'\" & Setup!$AH$9 & \"'!\" & AF408),0) + IF(Setup!$AH$10<>\"\",INDIRECT(\"'\" & Setup!$AH$10 & \"'!\" & AF408),0) + IF(Setup!$AH$11<>\"\",INDIRECT(\"'\" & Setup!$AH$11 & \"'!\" & AF408),0) + IF(Setup!$AH$12<>\"\",INDIRECT(\"'\" & Setup!$AH$12 & \"'!\" & AF408),0)","v":0},{"$f":"IF(Setup!$AI$7<>\"\",INDIRECT(\"'\" & Setup!$AI$7 & \"'!\" & AF408),0) + IF(Setup!$AI$8<>\"\",INDIRECT(\"'\" & Setup!$AI$8 & \"'!\" & AF408),0) + IF(Setup!$AI$9<>\"\",INDIRECT(\"'\" & Setup!$AI$9 & \"'!\" & AF408),0) + IF(Setup!$AI$10<>\"\",INDIRECT(\"'\" & Setup!$AI$10 & \"'!\" & AF408),0) + IF(Setup!$AI$11<>\"\",INDIRECT(\"'\" & Setup!$AI$11 & \"'!\" & AF408),0) + IF(Setup!$AI$12<>\"\",INDIRECT(\"'\" & Setup!$AI$12 & \"'!\" & AF408),0)","v":0},{"$f":"IF(Setup!$AJ$7<>\"\",INDIRECT(\"'\" & Setup!$AJ$7 & \"'!\" & AF408),0) + IF(Setup!$AJ$8<>\"\",INDIRECT(\"'\" & Setup!$AJ$8 & \"'!\" & AF408),0) + IF(Setup!$AJ$9<>\"\",INDIRECT(\"'\" & Setup!$AJ$9 & \"'!\" & AF408),0) + IF(Setup!$AJ$10<>\"\",INDIRECT(\"'\" & Setup!$AJ$10 & \"'!\" & AF408),0) + IF(Setup!$AJ$11<>\"\",INDIRECT(\"'\" & Setup!$AJ$11 & \"'!\" & AF408),0) + IF(Setup!$AJ$12<>\"\",INDIRECT(\"'\" & Setup!$AJ$12 & \"'!\" & AF408),0)","v":0},null,"",{"$nulls":30},0,{"$f":"IF(Setup!$AH$7=\"\",0,INDIRECT(\"'\" & Setup!$AH$7 & \"'!\" & AF408))","v":0},{"$f":"IF(Setup!$AI$7=\"\",0,INDIRECT(\"'\" & Setup!$AI$7 & \"'!\" & AF408))","v":0},{"$f":"IF(Setup!$AJ$7=\"\",0,INDIRECT(\"'\" & Setup!$AJ$7 & \"'!\" & AF408))","v":0}]
[{"$f":"Planning!A181","v":"I173"},{"$f":"Planning!B181","v":0},{"$f":"Planning!C181","v":0},{"$f":"Planning!D181","v":0},{"$f":"Planning!E181","v":0},{"$f":"Planning!G181","v":0},0,{"v":0,"d":"0.00"},{"v":0,"d":"0.00"},"","",{"$f":"IF(Setup!$AG$7<>\"\",INDIRECT(\"'\" & Setup!$AG$7 & \"'!\" & AD409),0) + IF(Setup!$AG$8<>\"\",INDIRECT(\"'\" & Setup!$AG$8 & \"'!\" & AD409),0) + IF(Setup!$AG$9<>\"\",INDIRECT(\"'\" & Setup!$AG$9 & \"'!\" & AD409),0) + IF(Setup!$AG$10<>\"\",INDIRECT(\"'\" & Setup!$AG$10 & \"'!\" & AD409),0) + IF(Setup!$AG$11<>\"\",INDIRECT(\"'\" & Setup!$AG$11 & \"'!\" & AD409),0) + IF(Setup!$AG$12<>\"\",INDIRECT(\"'\" & Setup!$AG$12 & \"'!\" & AD409),0)","v":{"v":0,"d":"0.00"}},{"$f":"IF(Setup!$AG$7<>\"\",INDIRECT(\"'\" & Setup!$AG$7 & \"'!\" & AE409),0) + IF(Setup!$AG$8<>\"\",INDIRECT(\"'\" & Setup!$AG$8 & \"'!\" & AE409),0) + IF(Setup!$AG$9<>\"\",INDIRECT(\"'\" & Setup!$AG$9 & \"'!\" & AE409),0) + IF(Setup!$AG$10<>\"\",INDIRECT(\"'\" & Setup!$AG$10 & \"'!\" & AE409),0) + IF(Setup!$AG$11<>\"\",INDIRECT(\"'\" & Setup!$AG$11 & \"'!\" & AE409),0) + IF(Setup!$AG$12<>\"\",INDIRECT(\"'\" & Setup!$AG$12 & \"'!\" & AE409),0)","v":{"v":0,"d":"0.00"}},"","",{"$f":"IF(Setup!$AH$7<>\"\",INDIRECT(\"'\" & Setup!$AH$7 & \"'!\" & AD409),0) + IF(Setup!$AH$8<>\"\",INDIRECT(\"'\" & Setup!$AH$8 & \"'!\" & AD409),0) + IF(Setup!$AH$9<>\"\",INDIRECT(\"'\" & Setup!$AH$9 & \"'!\" & AD409),0) + IF(Setup!$AH$10<>\"\",INDIRECT(\"'\" & Setup!$AH$10 & \"'!\" & AD409),0) + IF(Setup!$AH$11<>\"\",INDIRECT(\"'\" & Setup!$AH$11 & \"'!\" & AD409),0) + IF(Setup!$AH$12<>\"\",INDIRECT(\"'\" & Setup!$AH$12 & \"'!\" & AD409),0)","v":{"v":0,"d":"0.00"}},{"$f":"IF(Setup!$AH$7<>\"\",INDIRECT(\"'\" & Setup!$AH$7 & \"'!\" & AE409),0) + IF(Setup!$AH$8<>\"\",INDIRECT(\"'\" & Setup!$AH$8 & \"'!\" & AE409),0) + IF(Setup!$AH$9<>\"\",INDIRECT(\"'\" & Setup!$AH$9 & \"'!\" & AE409),0) + IF(Setup!$AH$10<>\"\",INDIRECT(\"'\" & Setup!$AH$10 & \"'!\" & AE409),0) + IF(Setup!$AH$11<>\"\",INDIRECT(\"'\" & Setup!$AH$11 & \"'!\" & AE409),0) + IF(Setup!$AH$12<>\"\",INDIRECT(\"'\" & Setup!$AH$12 & \"'!\" & AE409),0)","v":{"v":0,"d":"0.00"}},"","",{"$f":"IF(Setup!$AI$7<>\"\",INDIRECT(\"'\" & Setup!$AI$7 & \"'!\" & AD409),0) + IF(Setup!$AI$8<>\"\",INDIRECT(\"'\" & Setup!$AI$8 & \"'!\" & AD409),0) + IF(Setup!$AI$9<>\"\",INDIRECT(\"'\" & Setup!$AI$9 & \"'!\" & AD409),0) + IF(Setup!$AI$10<>\"\",INDIRECT(\"'\" & Setup!$AI$10 & \"'!\" & AD409),0) + IF(Setup!$AI$11<>\"\",INDIRECT(\"'\" & Setup!$AI$11 & \"'!\" & AD409),0) + IF(Setup!$AI$12<>\"\",INDIRECT(\"'\" & Setup!$AI$12 & \"'!\" & AD409),0)","v":{"v":0,"d":"0.00"}},{"$f":"IF(Setup!$AI$7<>\"\",INDIRECT(\"'\" & Setup!$AI$7 & \"'!\" & AE409),0) + IF(Setup!$AI$8<>\"\",INDIRECT(\"'\" & Setup!$AI$8 & \"'!\" & AE409),0) + IF(Setup!$AI$9<>\"\",INDIRECT(\"'\" & Setup!$AI$9 & \"'!\" & AE409),0) + IF(Setup!$AI$10<>\"\",INDIRECT(\"'\" & Setup!$AI$10 & \"'!\" & AE409),0) + IF(Setup!$AI$11<>\"\",INDIRECT(\"'\" & Setup!$AI$11 & \"'!\" & AE409),0) + IF(Setup!$AI$12<>\"\",INDIRECT(\"'\" & Setup!$AI$12 & \"'!\" & AE409),0)","v":{"v":0,"d":"0.00"}},"","",{"$f":"IF(Setup!$AJ$7<>\"\",INDIRECT(\"'\" & Setup!$AJ$7 & \"'!\" & AD409),0) + IF(Setup!$AJ$8<>\"\",INDIRECT(\"'\" & Setup!$AJ$8 & \"'!\" & AD409),0) + IF(Setup!$AJ$9<>\"\",INDIRECT(\"'\" & Setup!$AJ$9 & \"'!\" & AD409),0) + IF(Setup!$AJ$10<>\"\",INDIRECT(\"'\" & Setup!$AJ$10 & \"'!\" & AD409),0) + IF(Setup!$AJ$11<>\"\",INDIRECT(\"'\" & Setup!$AJ$11 & \"'!\" & AD409),0) + IF(Setup!$AJ$12<>\"\",INDIRECT(\"'\" & Setup!$AJ$12 & \"'!\" & AD409),0)","v":0},{"$f":"IF(Setup!$AJ$7<>\"\",INDIRECT(\"'\" & Setup!$AJ$7 & \"'!\" & AE409),0) + IF(Setup!$AJ$8<>\"\",INDIRECT(\"'\" & Setup!$AJ$8 & \"'!\" & AE409),0) + IF(Setup!$AJ$9<>\"\",INDIRECT(\"'\" & Setup!$AJ$9 & \"'!\" & AE409),0) + IF(Setup!$AJ$10<>\"\",INDIRECT(\"'\" & Setup!$AJ$10 & \"'!\" & AE409),0) + IF(Setup!$AJ$11<>\"\",INDIRECT(\"'\" & Setup!$AJ$11 & \"'!\" & AE409),0) + IF(Setup!$AJ$12<>\"\",INDIRECT(\"'\" & Setup!$AJ$12 & \"'!\" & AE409),0)","v":0},"","",{"$f":"Planning!H181","v":0},"00","M197","O197","N197",null,null,{"$f":"IF(Setup!$AG$7<>\"\",INDIRECT(\"'\" & Setup!$AG$7 & \"'!\" & AF409),0) + IF(Setup!$AG$8<>\"\",INDIRECT(\"'\" & Setup!$AG$8 & \"'!\" & AF409),0) + IF(Setup!$AG$9<>\"\",INDIRECT(\"'\" & Setup!$AG$9 & \"'!\" & AF409),0) + IF(Setup!$AG$10<>\"\",INDIRECT(\"'\" & Setup!$AG$10 & \"'!\" & AF409),0) + IF(Setup!$AG$11<>\"\",INDIRECT(\"'\" & Setup!$AG$11 & \"'!\" & AF409),0) + IF(Setup!$AG$12<>\"\",INDIRECT(\"'\" & Setup!$AG$12 & \"'!\" & AF409),0)","v":0},{"$f":"IF(Setup!$AH$7<>\"\",INDIRECT(\"'\" & Setup!$AH$7 & \"'!\" & AF409),0) + IF(Setup!$AH$8<>\"\",INDIRECT(\"'\" & Setup!$AH$8 & \"'!\" & AF409),0) + IF(Setup!$AH$9<>\"\",INDIRECT(\"'\" & Setup!$AH$9 & \"'!\" & AF409),0) + IF(Setup!$AH$10<>\"\",INDIRECT(\"'\" & Setup!$AH$10 & \"'!\" & AF409),0) + IF(Setup!$AH$11<>\"\",INDIRECT(\"'\" & Setup!$AH$11 & \"'!\" & AF409),0) + IF(Setup!$AH$12<>\"\",INDIRECT(\"'\" & Setup!$AH$12 & \"'!\" & AF409),0)","v":0},{"$f":"IF(Setup!$AI$7<>\"\",INDIRECT(\"'\" & Setup!$AI$7 & \"'!\" & AF409),0) + IF(Setup!$AI$8<>\"\",INDIRECT(\"'\" & Setup!$AI$8 & \"'!\" & AF409),0) + IF(Setup!$AI$9<>\"\",INDIRECT(\"'\" & Setup!$AI$9 & \"'!\" & AF409),0) + IF(Setup!$AI$10<>\"\",INDIRECT(\"'\" & Setup!$AI$10 & \"'!\" & AF409),0) + IF(Setup!$AI$11<>\"\",INDIRECT(\"'\" & Setup!$AI$11 & \"'!\" & AF409),0) + IF(Setup!$AI$12<>\"\",INDIRECT(\"'\" & Setup!$AI$12 & \"'!\" & AF409),0)","v":0},{"$f":"IF(Setup!$AJ$7<>\"\",INDIRECT(\"'\" & Setup!$AJ$7 & \"'!\" & AF409),0) + IF(Setup!$AJ$8<>\"\",INDIRECT(\"'\" & Setup!$AJ$8 & \"'!\" & AF409),0) + IF(Setup!$AJ$9<>\"\",INDIRECT(\"'\" & Setup!$AJ$9 & \"'!\" & AF409),0) + IF(Setup!$AJ$10<>\"\",INDIRECT(\"'\" & Setup!$AJ$10 & \"'!\" & AF409),0) + IF(Setup!$AJ$11<>\"\",INDIRECT(\"'\" & Setup!$AJ$11 & \"'!\" & AF409),0) + IF(Setup!$AJ$12<>\"\",INDIRECT(\"'\" & Setup!$AJ$12 & \"'!\" & AF409),0)","v":0},null,"",{"$nulls":30},0,{"$f":"IF(Setup!$AH$7=\"\",0,INDIRECT(\"'\" & Setup!$AH$7 & \"'!\" & AF409))","v":0},{"$f":"IF(Setup!$AI$7=\"\",0,INDIRECT(\"'\" & Setup!$AI$7 & \"'!\" & AF409))","v":0},{"$f":"IF(Setup!$AJ$7=\"\",0,INDIRECT(\"'\" & Setup!$AJ$7 & \"'!\" & AF409))","v":0}]
[{"$f":"Planning!A182","v":"I174"},{"$f":"Planning!B182","v":0},{"$f":"Planning!C182","v":0},{"$f":"Planning!D182","v":0},{"$f":"Planning!E182","v":0},{"$f":"Planning!G182","v":0},0,{"v":0,"d":"0.00"},{"v":0,"d":"0.00"},"","",{"$f":"IF(Setup!$AG$7<>\"\",INDIRECT(\"'\" & Setup!$AG$7 & \"'!\" & AD410),0) + IF(Setup!$AG$8<>\"\",INDIRECT(\"'\" & Setup!$AG$8 & \"'!\" & AD410),0) + IF(Setup!$AG$9<>\"\",INDIRECT(\"'\" & Setup!$AG$9 & \"'!\" & AD410),0) + IF(Setup!$AG$10<>\"\",INDIRECT(\"'\" & Setup!$AG$10 & \"'!\" & AD410),0) + IF(Setup!$AG$11<>\"\",INDIRECT(\"'\" & Setup!$AG$11 & \"'!\" & AD410),0) + IF(Setup!$AG$12<>\"\",INDIRECT(\"'\" & Setup!$AG$12 & \"'!\" & AD410),0)","v":{"v":0,"d":"0.00"}},{"$f":"IF(Setup!$AG$7<>\"\",INDIRECT(\"'\" & Setup!$AG$7 & \"'!\" & AE410),0) + IF(Setup!$AG$8<>\"\",INDIRECT(\"'\" & Setup!$AG$8 & \"'!\" & AE410),0) + IF(Setup!$AG$9<>\"\",INDIRECT(\"'\" & Setup!$AG$9 & \"'!\" & AE410),0) + IF(Setup!$AG$10<>\"\",INDIRECT(\"'\" & Setup!$AG$10 & \"'!\" & AE410),0) + IF(Setup!$AG$11<>\"\",INDIRECT(\"'\" & Setup!$AG$11 & \"'!\" & AE410),0) + IF(Setup!$AG$12<>\"\",INDIRECT(\"'\" & Setup!$AG$12 & \"'!\" & AE410),0)","v":{"v":0,"d":"0.00"}},"","",{"$f":"IF(Setup!$AH$7<>\"\",INDIRECT(\"'\" & Setup!$AH$7 & \"'!\" & AD410),0) + IF(Setup!$AH$8<>\"\",INDIRECT(\"'\" & Setup!$AH$8 & \"'!\" & AD410),0) + IF(Setup!$AH$9<>\"\",INDIRECT(\"'\" & Setup!$AH$9 & \"'!\" & AD410),0) + IF(Setup!$AH$10<>\"\",INDIRECT(\"'\" & Setup!$AH$10 & \"'!\" & AD410),0) + IF(Setup!$AH$11<>\"\",INDIRECT(\"'\" & Setup!$AH$11 & \"'!\" & AD410),0) + IF(Setup!$AH$12<>\"\",INDIRECT(\"'\" & Setup!$AH$12 & \"'!\" & AD410),0)","v":{"v":0,"d":"0.00"}},{"$f":"IF(Setup!$AH$7<>\"\",INDIRECT(\"'\" & Setup!$AH$7 & \"'!\" & AE410),0) + IF(Setup!$AH$8<>\"\",INDIRECT(\"'\" & Setup!$AH$8 & \"'!\" & AE410),0) + IF(Setup!$AH$9<>\"\",INDIRECT(\"'\" & Setup!$AH$9 & \"'!\" & AE410),0) + IF(Setup!$AH$10<>\"\",INDIRECT(\"'\" & Setup!$AH$10 & \"'!\" & AE410),0) + IF(Setup!$AH$11<>\"\",INDIRECT(\"'\" & Setup!$AH$11 & \"'!\" & AE410),0) + IF(Setup!$AH$12<>\"\",INDIRECT(\"'\" & Setup!$AH$12 & \"'!\" & AE410),0)","v":{"v":0,"d":"0.00"}},"","",{"$f":"IF(Setup!$AI$7<>\"\",INDIRECT(\"'\" & Setup!$AI$7 & \"'!\" & AD410),0) + IF(Setup!$AI$8<>\"\",INDIRECT(\"'\" & Setup!$AI$8 & \"'!\" & AD410),0) + IF(Setup!$AI$9<>\"\",INDIRECT(\"'\" & Setup!$AI$9 & \"'!\" & AD410),0) + IF(Setup!$AI$10<>\"\",INDIRECT(\"'\" & Setup!$AI$10 & \"'!\" & AD410),0) + IF(Setup!$AI$11<>\"\",INDIRECT(\"'\" & Setup!$AI$11 & \"'!\" & AD410),0) + IF(Setup!$AI$12<>\"\",INDIRECT(\"'\" & Setup!$AI$12 & \"'!\" & AD410),0)","v":{"v":0,"d":"0.00"}},{"$f":"IF(Setup!$AI$7<>\"\",INDIRECT(\"'\" & Setup!$AI$7 & \"'!\" & AE410),0) + IF(Setup!$AI$8<>\"\",INDIRECT(\"'\" & Setup!$AI$8 & \"'!\" & AE410),0) + IF(Setup!$AI$9<>\"\",INDIRECT(\"'\" & Setup!$AI$9 & \"'!\" & AE410),0) + IF(Setup!$AI$10<>\"\",INDIRECT(\"'\" & Setup!$AI$10 & \"'!\" & AE410),0) + IF(Setup!$AI$11<>\"\",INDIRECT(\"'\" & Setup!$AI$11 & \"'!\" & AE410),0) + IF(Setup!$AI$12<>\"\",INDIRECT(\"'\" & Setup!$AI$12 & \"'!\" & AE410),0)","v":{"v":0,"d":"0.00"}},"","",{"$f":"IF(Setup!$AJ$7<>\"\",INDIRECT(\"'\" & Setup!$AJ$7 & \"'!\" & AD410),0) + IF(Setup!$AJ$8<>\"\",INDIRECT(\"'\" & Setup!$AJ$8 & \"'!\" & AD410),0) + IF(Setup!$AJ$9<>\"\",INDIRECT(\"'\" & Setup!$AJ$9 & \"'!\" & AD410),0) + IF(Setup!$AJ$10<>\"\",INDIRECT(\"'\" & Setup!$AJ$10 & \"'!\" & AD410),0) + IF(Setup!$AJ$11<>\"\",INDIRECT(\"'\" & Setup!$AJ$11 & \"'!\" & AD410),0) + IF(Setup!$AJ$12<>\"\",INDIRECT(\"'\" & Setup!$AJ$12 & \"'!\" & AD410),0)","v":0},{"$f":"IF(Setup!$AJ$7<>\"\",INDIRECT(\"'\" & Setup!$AJ$7 & \"'!\" & AE410),0) + IF(Setup!$AJ$8<>\"\",INDIRECT(\"'\" & Setup!$AJ$8 & \"'!\" & AE410),0) + IF(Setup!$AJ$9<>\"\",INDIRECT(\"'\" & Setup!$AJ$9 & \"'!\" & AE410),0) + IF(Setup!$AJ$10<>\"\",INDIRECT(\"'\" & Setup!$AJ$10 & \"'!\" & AE410),0) + IF(Setup!$AJ$11<>\"\",INDIRECT(\"'\" & Setup!$AJ$11 & \"'!\" & AE410),0) + IF(Setup!$AJ$12<>\"\",INDIRECT(\"'\" & Setup!$AJ$12 & \"'!\" & AE410),0)","v":0},"","",{"$f":"Planning!H182","v":0},"00","M198","O198","N198",null,null,{"$f":"IF(Setup!$AG$7<>\"\",INDIRECT(\"'\" & Setup!$AG$7 & \"'!\" & AF410),0) + IF(Setup!$AG$8<>\"\",INDIRECT(\"'\" & Setup!$AG$8 & \"'!\" & AF410),0) + IF(Setup!$AG$9<>\"\",INDIRECT(\"'\" & Setup!$AG$9 & \"'!\" & AF410),0) + IF(Setup!$AG$10<>\"\",INDIRECT(\"'\" & Setup!$AG$10 & \"'!\" & AF410),0) + IF(Setup!$AG$11<>\"\",INDIRECT(\"'\" & Setup!$AG$11 & \"'!\" & AF410),0) + IF(Setup!$AG$12<>\"\",INDIRECT(\"'\" & Setup!$AG$12 & \"'!\" & AF410),0)","v":0},{"$f":"IF(Setup!$AH$7<>\"\",INDIRECT(\"'\" & Setup!$AH$7 & \"'!\" & AF410),0) + IF(Setup!$AH$8<>\"\",INDIRECT(\"'\" & Setup!$AH$8 & \"'!\" & AF410),0) + IF(Setup!$AH$9<>\"\",INDIRECT(\"'\" & Setup!$AH$9 & \"'!\" & AF410),0) + IF(Setup!$AH$10<>\"\",INDIRECT(\"'\" & Setup!$AH$10 & \"'!\" & AF410),0) + IF(Setup!$AH$11<>\"\",INDIRECT(\"'\" & Setup!$AH$11 & \"'!\" & AF410),0) + IF(Setup!$AH$12<>\"\",INDIRECT(\"'\" & Setup!$AH$12 & \"'!\" & AF410),0)","v":0},{"$f":"IF(Setup!$AI$7<>\"\",INDIRECT(\"'\" & Setup!$AI$7 & \"'!\" & AF410),0) + IF(Setup!$AI$8<>\"\",INDIRECT(\"'\" & Setup!$AI$8 & \"'!\" & AF410),0) + IF(Setup!$AI$9<>\"\",INDIRECT(\"'\" & Setup!$AI$9 & \"'!\" & AF410),0) + IF(Setup!$AI$10<>\"\",INDIRECT(\"'\" & Setup!$AI$10 & \"'!\" & AF410),0) + IF(Setup!$AI$11<>\"\",INDIRECT(\"'\" & Setup!$AI$11 & \"'!\" & AF410),0) + IF(Setup!$AI$12<>\"\",INDIRECT(\"'\" & Setup!$AI$12 & \"'!\" & AF410),0)","v":0},{"$f":"IF(Setup!$AJ$7<>\"\",INDIRECT(\"'\" & Setup!$AJ$7 & \"'!\" & AF410),0) + IF(Setup!$AJ$8<>\"\",INDIRECT(\"'\" & Setup!$AJ$8 & \"'!\" & AF410),0) + IF(Setup!$AJ$9<>\"\",INDIRECT(\"'\" & Setup!$AJ$9 & \"'!\" & AF410),0) + IF(Setup!$AJ$10<>\"\",INDIRECT(\"'\" & Setup!$AJ$10 & \"'!\" & AF410),0) + IF(Setup!$AJ$11<>\"\",INDIRECT(\"'\" & Setup!$AJ$11 & \"'!\" & AF410),0) + IF(Setup!$AJ$12<>\"\",INDIRECT(\"'\" & Setup!$AJ$12 & \"'!\" & AF410),0)","v":0},null,"",{"$nulls":30},0,{"$f":"IF(Setup!$AH$7=\"\",0,INDIRECT(\"'\" & Setup!$AH$7 & \"'!\" & AF410))","v":0},{"$f":"IF(Setup!$AI$7=\"\",0,INDIRECT(\"'\" & Setup!$AI$7 & \"'!\" & AF410))","v":0},{"$f":"IF(Setup!$AJ$7=\"\",0,INDIRECT(\"'\" & Setup!$AJ$7 & \"'!\" & AF410))","v":0}]
[{"$f":"Planning!A183","v":"I175"},{"$f":"Planning!B183","v":0},{"$f":"Planning!C183","v":0},{"$f":"Planning!D183","v":0},{"$f":"Planning!E183","v":0},{"$f":"Planning!G183","v":0},0,{"v":0,"d":"0.00"},{"v":0,"d":"0.00"},"","",{"$f":"IF(Setup!$AG$7<>\"\",INDIRECT(\"'\" & Setup!$AG$7 & \"'!\" & AD411),0) + IF(Setup!$AG$8<>\"\",INDIRECT(\"'\" & Setup!$AG$8 & \"'!\" & AD411),0) + IF(Setup!$AG$9<>\"\",INDIRECT(\"'\" & Setup!$AG$9 & \"'!\" & AD411),0) + IF(Setup!$AG$10<>\"\",INDIRECT(\"'\" & Setup!$AG$10 & \"'!\" & AD411),0) + IF(Setup!$AG$11<>\"\",INDIRECT(\"'\" & Setup!$AG$11 & \"'!\" & AD411),0) + IF(Setup!$AG$12<>\"\",INDIRECT(\"'\" & Setup!$AG$12 & \"'!\" & AD411),0)","v":{"v":0,"d":"0.00"}},{"$f":"IF(Setup!$AG$7<>\"\",INDIRECT(\"'\" & Setup!$AG$7 & \"'!\" & AE411),0) + IF(Setup!$AG$8<>\"\",INDIRECT(\"'\" & Setup!$AG$8 & \"'!\" & AE411),0) + IF(Setup!$AG$9<>\"\",INDIRECT(\"'\" & Setup!$AG$9 & \"'!\" & AE411),0) + IF(Setup!$AG$10<>\"\",INDIRECT(\"'\" & Setup!$AG$10 & \"'!\" & AE411),0) + IF(Setup!$AG$11<>\"\",INDIRECT(\"'\" & Setup!$AG$11 & \"'!\" & AE411),0) + IF(Setup!$AG$12<>\"\",INDIRECT(\"'\" & Setup!$AG$12 & \"'!\" & AE411),0)","v":{"v":0,"d":"0.00"}},"","",{"$f":"IF(Setup!$AH$7<>\"\",INDIRECT(\"'\" & Setup!$AH$7 & \"'!\" & AD411),0) + IF(Setup!$AH$8<>\"\",INDIRECT(\"'\" & Setup!$AH$8 & \"'!\" & AD411),0) + IF(Setup!$AH$9<>\"\",INDIRECT(\"'\" & Setup!$AH$9 & \"'!\" & AD411),0) + IF(Setup!$AH$10<>\"\",INDIRECT(\"'\" & Setup!$AH$10 & \"'!\" & AD411),0) + IF(Setup!$AH$11<>\"\",INDIRECT(\"'\" & Setup!$AH$11 & \"'!\" & AD411),0) + IF(Setup!$AH$12<>\"\",INDIRECT(\"'\" & Setup!$AH$12 & \"'!\" & AD411),0)","v":{"v":0,"d":"0.00"}},{"$f":"IF(Setup!$AH$7<>\"\",INDIRECT(\"'\" & Setup!$AH$7 & \"'!\" & AE411),0) + IF(Setup!$AH$8<>\"\",INDIRECT(\"'\" & Setup!$AH$8 & \"'!\" & AE411),0) + IF(Setup!$AH$9<>\"\",INDIRECT(\"'\" & Setup!$AH$9 & \"'!\" & AE411),0) + IF(Setup!$AH$10<>\"\",INDIRECT(\"'\" & Setup!$AH$10 & \"'!\" & AE411),0) + IF(Setup!$AH$11<>\"\",INDIRECT(\"'\" & Setup!$AH$11 & \"'!\" & AE411),0) + IF(Setup!$AH$12<>\"\",INDIRECT(\"'\" & Setup!$AH$12 & \"'!\" & AE411),0)","v":{"v":0,"d":"0.00"}},"","",{"$f":"IF(Setup!$AI$7<>\"\",INDIRECT(\"'\" & Setup!$AI$7 & \"'!\" & AD411),0) + IF(Setup!$AI$8<>\"\",INDIRECT(\"'\" & Setup!$AI$8 & \"'!\" & AD411),0) + IF(Setup!$AI$9<>\"\",INDIRECT(\"'\" & Setup!$AI$9 & \"'!\" & AD411),0) + IF(Setup!$AI$10<>\"\",INDIRECT(\"'\" & Setup!$AI$10 & \"'!\" & AD411),0) + IF(Setup!$AI$11<>\"\",INDIRECT(\"'\" & Setup!$AI$11 & \"'!\" & AD411),0) + IF(Setup!$AI$12<>\"\",INDIRECT(\"'\" & Setup!$AI$12 & \"'!\" & AD411),0)","v":{"v":0,"d":"0.00"}},{"$f":"IF(Setup!$AI$7<>\"\",INDIRECT(\"'\" & Setup!$AI$7 & \"'!\" & AE411),0) + IF(Setup!$AI$8<>\"\",INDIRECT(\"'\" & Setup!$AI$8 & \"'!\" & AE411),0) + IF(Setup!$AI$9<>\"\",INDIRECT(\"'\" & Setup!$AI$9 & \"'!\" & AE411),0) + IF(Setup!$AI$10<>\"\",INDIRECT(\"'\" & Setup!$AI$10 & \"'!\" & AE411),0) + IF(Setup!$AI$11<>\"\",INDIRECT(\"'\" & Setup!$AI$11 & \"'!\" & AE411),0) + IF(Setup!$AI$12<>\"\",INDIRECT(\"'\" & Setup!$AI$12 & \"'!\" & AE411),0)","v":{"v":0,"d":"0.00"}},"","",{"$f":"IF(Setup!$AJ$7<>\"\",INDIRECT(\"'\" & Setup!$AJ$7 & \"'!\" & AD411),0) + IF(Setup!$AJ$8<>\"\",INDIRECT(\"'\" & Setup!$AJ$8 & \"'!\" & AD411),0) + IF(Setup!$AJ$9<>\"\",INDIRECT(\"'\" & Setup!$AJ$9 & \"'!\" & AD411),0) + IF(Setup!$AJ$10<>\"\",INDIRECT(\"'\" & Setup!$AJ$10 & \"'!\" & AD411),0) + IF(Setup!$AJ$11<>\"\",INDIRECT(\"'\" & Setup!$AJ$11 & \"'!\" & AD411),0) + IF(Setup!$AJ$12<>\"\",INDIRECT(\"'\" & Setup!$AJ$12 & \"'!\" & AD411),0)","v":0},{"$f":"IF(Setup!$AJ$7<>\"\",INDIRECT(\"'\" & Setup!$AJ$7 & \"'!\" & AE411),0) + IF(Setup!$AJ$8<>\"\",INDIRECT(\"'\" & Setup!$AJ$8 & \"'!\" & AE411),0) + IF(Setup!$AJ$9<>\"\",INDIRECT(\"'\" & Setup!$AJ$9 & \"'!\" & AE411),0) + IF(Setup!$AJ$10<>\"\",INDIRECT(\"'\" & Setup!$AJ$10 & \"'!\" & AE411),0) + IF(Setup!$AJ$11<>\"\",INDIRECT(\"'\" & Setup!$AJ$11 & \"'!\" & AE411),0) + IF(Setup!$AJ$12<>\"\",INDIRECT(\"'\" & Setup!$AJ$12 & \"'!\" & AE411),0)","v":0},"","",{"$f":"Planning!H183","v":0},"00","M199","O199","N199",null,null,{"$f":"IF(Setup!$AG$7<>\"\",INDIRECT(\"'\" & Setup!$AG$7 & \"'!\" & AF411),0) + IF(Setup!$AG$8<>\"\",INDIRECT(\"'\" & Setup!$AG$8 & \"'!\" & AF411),0) + IF(Setup!$AG$9<>\"\",INDIRECT(\"'\" & Setup!$AG$9 & \"'!\" & AF411),0) + IF(Setup!$AG$10<>\"\",INDIRECT(\"'\" & Setup!$AG$10 & \"'!\" & AF411),0) + IF(Setup!$AG$11<>\"\",INDIRECT(\"'\" & Setup!$AG$11 & \"'!\" & AF411),0) + IF(Setup!$AG$12<>\"\",INDIRECT(\"'\" & Setup!$AG$12 & \"'!\" & AF411),0)","v":0},{"$f":"IF(Setup!$AH$7<>\"\",INDIRECT(\"'\" & Setup!$AH$7 & \"'!\" & AF411),0) + IF(Setup!$AH$8<>\"\",INDIRECT(\"'\" & Setup!$AH$8 & \"'!\" & AF411),0) + IF(Setup!$AH$9<>\"\",INDIRECT(\"'\" & Setup!$AH$9 & \"'!\" & AF411),0) + IF(Setup!$AH$10<>\"\",INDIRECT(\"'\" & Setup!$AH$10 & \"'!\" & AF411),0) + IF(Setup!$AH$11<>\"\",INDIRECT(\"'\" & Setup!$AH$11 & \"'!\" & AF411),0) + IF(Setup!$AH$12<>\"\",INDIRECT(\"'\" & Setup!$AH$12 & \"'!\" & AF411),0)","v":0},{"$f":"IF(Setup!$AI$7<>\"\",INDIRECT(\"'\" & Setup!$AI$7 & \"'!\" & AF411),0) + IF(Setup!$AI$8<>\"\",INDIRECT(\"'\" & Setup!$AI$8 & \"'!\" & AF411),0) + IF(Setup!$AI$9<>\"\",INDIRECT(\"'\" & Setup!$AI$9 & \"'!\" & AF411),0) + IF(Setup!$AI$10<>\"\",INDIRECT(\"'\" & Setup!$AI$10 & \"'!\" & AF411),0) + IF(Setup!$AI$11<>\"\",INDIRECT(\"'\" & Setup!$AI$11 & \"'!\" & AF411),0) + IF(Setup!$AI$12<>\"\",INDIRECT(\"'\" & Setup!$AI$12 & \"'!\" & AF411),0)","v":0},{"$f":"IF(Setup!$AJ$7<>\"\",INDIRECT(\"'\" & Setup!$AJ$7 & \"'!\" & AF411),0) + IF(Setup!$AJ$8<>\"\",INDIRECT(\"'\" & Setup!$AJ$8 & \"'!\" & AF411),0) + IF(Setup!$AJ$9<>\"\",INDIRECT(\"'\" & Setup!$AJ$9 & \"'!\" & AF411),0) + IF(Setup!$AJ$10<>\"\",INDIRECT(\"'\" & Setup!$AJ$10 & \"'!\" & AF411),0) + IF(Setup!$AJ$11<>\"\",INDIRECT(\"'\" & Setup!$AJ$11 & \"'!\" & AF411),0) + IF(Setup!$AJ$12<>\"\",INDIRECT(\"'\" & Setup!$AJ$12 & \"'!\" & AF411),0)","v":0},null,"",{"$nulls":30},0,{"$f":"IF(Setup!$AH$7=\"\",0,INDIRECT(\"'\" & Setup!$AH$7 & \"'!\" & AF411))","v":0},{"$f":"IF(Setup!$AI$7=\"\",0,INDIRECT(\"'\" & Setup!$AI$7 & \"'!\" & AF411))","v":0},{"$f":"IF(Setup!$AJ$7=\"\",0,INDIRECT(\"'\" & Setup!$AJ$7 & \"'!\" & AF411))","v":0}]
[{"$f":"Planning!A184","v":"I176"},{"$f":"Planning!B184","v":0},{"$f":"Planning!C184","v":0},{"$f":"Planning!D184","v":0},{"$f":"Planning!E184","v":0},{"$f":"Planning!G184","v":0},0,{"v":0,"d":"0.00"},{"v":0,"d":"0.00"},"","",{"$f":"IF(Setup!$AG$7<>\"\",INDIRECT(\"'\" & Setup!$AG$7 & \"'!\" & AD412),0) + IF(Setup!$AG$8<>\"\",INDIRECT(\"'\" & Setup!$AG$8 & \"'!\" & AD412),0) + IF(Setup!$AG$9<>\"\",INDIRECT(\"'\" & Setup!$AG$9 & \"'!\" & AD412),0) + IF(Setup!$AG$10<>\"\",INDIRECT(\"'\" & Setup!$AG$10 & \"'!\" & AD412),0) + IF(Setup!$AG$11<>\"\",INDIRECT(\"'\" & Setup!$AG$11 & \"'!\" & AD412),0) + IF(Setup!$AG$12<>\"\",INDIRECT(\"'\" & Setup!$AG$12 & \"'!\" & AD412),0)","v":{"v":0,"d":"0.00"}},{"$f":"IF(Setup!$AG$7<>\"\",INDIRECT(\"'\" & Setup!$AG$7 & \"'!\" & AE412),0) + IF(Setup!$AG$8<>\"\",INDIRECT(\"'\" & Setup!$AG$8 & \"'!\" & AE412),0) + IF(Setup!$AG$9<>\"\",INDIRECT(\"'\" & Setup!$AG$9 & \"'!\" & AE412),0) + IF(Setup!$AG$10<>\"\",INDIRECT(\"'\" & Setup!$AG$10 & \"'!\" & AE412),0) + IF(Setup!$AG$11<>\"\",INDIRECT(\"'\" & Setup!$AG$11 & \"'!\" & AE412),0) + IF(Setup!$AG$12<>\"\",INDIRECT(\"'\" & Setup!$AG$12 & \"'!\" & AE412),0)","v":{"v":0,"d":"0.00"}},"","",{"$f":"IF(Setup!$AH$7<>\"\",INDIRECT(\"'\" & Setup!$AH$7 & \"'!\" & AD412),0) + IF(Setup!$AH$8<>\"\",INDIRECT(\"'\" & Setup!$AH$8 & \"'!\" & AD412),0) + IF(Setup!$AH$9<>\"\",INDIRECT(\"'\" & Setup!$AH$9 & \"'!\" & AD412),0) + IF(Setup!$AH$10<>\"\",INDIRECT(\"'\" & Setup!$AH$10 & \"'!\" & AD412),0) + IF(Setup!$AH$11<>\"\",INDIRECT(\"'\" & Setup!$AH$11 & \"'!\" & AD412),0) + IF(Setup!$AH$12<>\"\",INDIRECT(\"'\" & Setup!$AH$12 & \"'!\" & AD412),0)","v":{"v":0,"d":"0.00"}},{"$f":"IF(Setup!$AH$7<>\"\",INDIRECT(\"'\" & Setup!$AH$7 & \"'!\" & AE412),0) + IF(Setup!$AH$8<>\"\",INDIRECT(\"'\" & Setup!$AH$8 & \"'!\" & AE412),0) + IF(Setup!$AH$9<>\"\",INDIRECT(\"'\" & Setup!$AH$9 & \"'!\" & AE412),0) + IF(Setup!$AH$10<>\"\",INDIRECT(\"'\" & Setup!$AH$10 & \"'!\" & AE412),0) + IF(Setup!$AH$11<>\"\",INDIRECT(\"'\" & Setup!$AH$11 & \"'!\" & AE412),0) + IF(Setup!$AH$12<>\"\",INDIRECT(\"'\" & Setup!$AH$12 & \"'!\" & AE412),0)","v":{"v":0,"d":"0.00"}},"","",{"$f":"IF(Setup!$AI$7<>\"\",INDIRECT(\"'\" & Setup!$AI$7 & \"'!\" & AD412),0) + IF(Setup!$AI$8<>\"\",INDIRECT(\"'\" & Setup!$AI$8 & \"'!\" & AD412),0) + IF(Setup!$AI$9<>\"\",INDIRECT(\"'\" & Setup!$AI$9 & \"'!\" & AD412),0) + IF(Setup!$AI$10<>\"\",INDIRECT(\"'\" & Setup!$AI$10 & \"'!\" & AD412),0) + IF(Setup!$AI$11<>\"\",INDIRECT(\"'\" & Setup!$AI$11 & \"'!\" & AD412),0) + IF(Setup!$AI$12<>\"\",INDIRECT(\"'\" & Setup!$AI$12 & \"'!\" & AD412),0)","v":{"v":0,"d":"0.00"}},{"$f":"IF(Setup!$AI$7<>\"\",INDIRECT(\"'\" & Setup!$AI$7 & \"'!\" & AE412),0) + IF(Setup!$AI$8<>\"\",INDIRECT(\"'\" & Setup!$AI$8 & \"'!\" & AE412),0) + IF(Setup!$AI$9<>\"\",INDIRECT(\"'\" & Setup!$AI$9 & \"'!\" & AE412),0) + IF(Setup!$AI$10<>\"\",INDIRECT(\"'\" & Setup!$AI$10 & \"'!\" & AE412),0) + IF(Setup!$AI$11<>\"\",INDIRECT(\"'\" & Setup!$AI$11 & \"'!\" & AE412),0) + IF(Setup!$AI$12<>\"\",INDIRECT(\"'\" & Setup!$AI$12 & \"'!\" & AE412),0)","v":{"v":0,"d":"0.00"}},"","",{"$f":"IF(Setup!$AJ$7<>\"\",INDIRECT(\"'\" & Setup!$AJ$7 & \"'!\" & AD412),0) + IF(Setup!$AJ$8<>\"\",INDIRECT(\"'\" & Setup!$AJ$8 & \"'!\" & AD412),0) + IF(Setup!$AJ$9<>\"\",INDIRECT(\"'\" & Setup!$AJ$9 & \"'!\" & AD412),0) + IF(Setup!$AJ$10<>\"\",INDIRECT(\"'\" & Setup!$AJ$10 & \"'!\" & AD412),0) + IF(Setup!$AJ$11<>\"\",INDIRECT(\"'\" & Setup!$AJ$11 & \"'!\" & AD412),0) + IF(Setup!$AJ$12<>\"\",INDIRECT(\"'\" & Setup!$AJ$12 & \"'!\" & AD412),0)","v":0},{"$f":"IF(Setup!$AJ$7<>\"\",INDIRECT(\"'\" & Setup!$AJ$7 & \"'!\" & AE412),0) + IF(Setup!$AJ$8<>\"\",INDIRECT(\"'\" & Setup!$AJ$8 & \"'!\" & AE412),0) + IF(Setup!$AJ$9<>\"\",INDIRECT(\"'\" & Setup!$AJ$9 & \"'!\" & AE412),0) + IF(Setup!$AJ$10<>\"\",INDIRECT(\"'\" & Setup!$AJ$10 & \"'!\" & AE412),0) + IF(Setup!$AJ$11<>\"\",INDIRECT(\"'\" & Setup!$AJ$11 & \"'!\" & AE412),0) + IF(Setup!$AJ$12<>\"\",INDIRECT(\"'\" & Setup!$AJ$12 & \"'!\" & AE412),0)","v":0},"","",{"$f":"Planning!H184","v":0},"00","M200","O200","N200",null,null,{"$f":"IF(Setup!$AG$7<>\"\",INDIRECT(\"'\" & Setup!$AG$7 & \"'!\" & AF412),0) + IF(Setup!$AG$8<>\"\",INDIRECT(\"'\" & Setup!$AG$8 & \"'!\" & AF412),0) + IF(Setup!$AG$9<>\"\",INDIRECT(\"'\" & Setup!$AG$9 & \"'!\" & AF412),0) + IF(Setup!$AG$10<>\"\",INDIRECT(\"'\" & Setup!$AG$10 & \"'!\" & AF412),0) + IF(Setup!$AG$11<>\"\",INDIRECT(\"'\" & Setup!$AG$11 & \"'!\" & AF412),0) + IF(Setup!$AG$12<>\"\",INDIRECT(\"'\" & Setup!$AG$12 & \"'!\" & AF412),0)","v":0},{"$f":"IF(Setup!$AH$7<>\"\",INDIRECT(\"'\" & Setup!$AH$7 & \"'!\" & AF412),0) + IF(Setup!$AH$8<>\"\",INDIRECT(\"'\" & Setup!$AH$8 & \"'!\" & AF412),0) + IF(Setup!$AH$9<>\"\",INDIRECT(\"'\" & Setup!$AH$9 & \"'!\" & AF412),0) + IF(Setup!$AH$10<>\"\",INDIRECT(\"'\" & Setup!$AH$10 & \"'!\" & AF412),0) + IF(Setup!$AH$11<>\"\",INDIRECT(\"'\" & Setup!$AH$11 & \"'!\" & AF412),0) + IF(Setup!$AH$12<>\"\",INDIRECT(\"'\" & Setup!$AH$12 & \"'!\" & AF412),0)","v":0},{"$f":"IF(Setup!$AI$7<>\"\",INDIRECT(\"'\" & Setup!$AI$7 & \"'!\" & AF412),0) + IF(Setup!$AI$8<>\"\",INDIRECT(\"'\" & Setup!$AI$8 & \"'!\" & AF412),0) + IF(Setup!$AI$9<>\"\",INDIRECT(\"'\" & Setup!$AI$9 & \"'!\" & AF412),0) + IF(Setup!$AI$10<>\"\",INDIRECT(\"'\" & Setup!$AI$10 & \"'!\" & AF412),0) + IF(Setup!$AI$11<>\"\",INDIRECT(\"'\" & Setup!$AI$11 & \"'!\" & AF412),0) + IF(Setup!$AI$12<>\"\",INDIRECT(\"'\" & Setup!$AI$12 & \"'!\" & AF412),0)","v":0},{"$f":"IF(Setup!$AJ$7<>\"\",INDIRECT(\"'\" & Setup!$AJ$7 & \"'!\" & AF412),0) + IF(Setup!$AJ$8<>\"\",INDIRECT(\"'\" & Setup!$AJ$8 & \"'!\" & AF412),0) + IF(Setup!$AJ$9<>\"\",INDIRECT(\"'\" & Setup!$AJ$9 & \"'!\" & AF412),0) + IF(Setup!$AJ$10<>\"\",INDIRECT(\"'\" & Setup!$AJ$10 & \"'!\" & AF412),0) + IF(Setup!$AJ$11<>\"\",INDIRECT(\"'\" & Setup!$AJ$11 & \"'!\" & AF412),0) + IF(Setup!$AJ$12<>\"\",INDIRECT(\"'\" & Setup!$AJ$12 & \"'!\" & AF412),0)","v":0},null,"",{"$nulls":30},0,{"$f":"IF(Setup!$AH$7=\"\",0,INDIRECT(\"'\" & Setup!$AH$7 & \"'!\" & AF412))","v":0},{"$f":"IF(Setup!$AI$7=\"\",0,INDIRECT(\"'\" & Setup!$AI$7 & \"'!\" & AF412))","v":0},{"$f":"IF(Setup!$AJ$7=\"\",0,INDIRECT(\"'\" & Setup!$AJ$7 & \"'!\" & AF412))","v":0}]
[{"$f":"Planning!A185","v":"I177"},{"$f":"Planning!B185","v":0},{"$f":"Planning!C185","v":0},{"$f":"Planning!D185","v":0},{"$f":"Planning!E185","v":0},{"$f":"Planning!G185","v":0},0,{"v":0,"d":"0.00"},{"v":0,"d":"0.00"},"","",{"$f":"IF(Setup!$AG$7<>\"\",INDIRECT(\"'\" & Setup!$AG$7 & \"'!\" & AD413),0) + IF(Setup!$AG$8<>\"\",INDIRECT(\"'\" & Setup!$AG$8 & \"'!\" & AD413),0) + IF(Setup!$AG$9<>\"\",INDIRECT(\"'\" & Setup!$AG$9 & \"'!\" & AD413),0) + IF(Setup!$AG$10<>\"\",INDIRECT(\"'\" & Setup!$AG$10 & \"'!\" & AD413),0) + IF(Setup!$AG$11<>\"\",INDIRECT(\"'\" & Setup!$AG$11 & \"'!\" & AD413),0) + IF(Setup!$AG$12<>\"\",INDIRECT(\"'\" & Setup!$AG$12 & \"'!\" & AD413),0)","v":{"v":0,"d":"0.00"}},{"$f":"IF(Setup!$AG$7<>\"\",INDIRECT(\"'\" & Setup!$AG$7 & \"'!\" & AE413),0) + IF(Setup!$AG$8<>\"\",INDIRECT(\"'\" & Setup!$AG$8 & \"'!\" & AE413),0) + IF(Setup!$AG$9<>\"\",INDIRECT(\"'\" & Setup!$AG$9 & \"'!\" & AE413),0) + IF(Setup!$AG$10<>\"\",INDIRECT(\"'\" & Setup!$AG$10 & \"'!\" & AE413),0) + IF(Setup!$AG$11<>\"\",INDIRECT(\"'\" & Setup!$AG$11 & \"'!\" & AE413),0) + IF(Setup!$AG$12<>\"\",INDIRECT(\"'\" & Setup!$AG$12 & \"'!\" & AE413),0)","v":{"v":0,"d":"0.00"}},"","",{"$f":"IF(Setup!$AH$7<>\"\",INDIRECT(\"'\" & Setup!$AH$7 & \"'!\" & AD413),0) + IF(Setup!$AH$8<>\"\",INDIRECT(\"'\" & Setup!$AH$8 & \"'!\" & AD413),0) + IF(Setup!$AH$9<>\"\",INDIRECT(\"'\" & Setup!$AH$9 & \"'!\" & AD413),0) + IF(Setup!$AH$10<>\"\",INDIRECT(\"'\" & Setup!$AH$10 & \"'!\" & AD413),0) + IF(Setup!$AH$11<>\"\",INDIRECT(\"'\" & Setup!$AH$11 & \"'!\" & AD413),0) + IF(Setup!$AH$12<>\"\",INDIRECT(\"'\" & Setup!$AH$12 & \"'!\" & AD413),0)","v":{"v":0,"d":"0.00"}},{"$f":"IF(Setup!$AH$7<>\"\",INDIRECT(\"'\" & Setup!$AH$7 & \"'!\" & AE413),0) + IF(Setup!$AH$8<>\"\",INDIRECT(\"'\" & Setup!$AH$8 & \"'!\" & AE413),0) + IF(Setup!$AH$9<>\"\",INDIRECT(\"'\" & Setup!$AH$9 & \"'!\" & AE413),0) + IF(Setup!$AH$10<>\"\",INDIRECT(\"'\" & Setup!$AH$10 & \"'!\" & AE413),0) + IF(Setup!$AH$11<>\"\",INDIRECT(\"'\" & Setup!$AH$11 & \"'!\" & AE413),0) + IF(Setup!$AH$12<>\"\",INDIRECT(\"'\" & Setup!$AH$12 & \"'!\" & AE413),0)","v":{"v":0,"d":"0.00"}},"","",{"$f":"IF(Setup!$AI$7<>\"\",INDIRECT(\"'\" & Setup!$AI$7 & \"'!\" & AD413),0) + IF(Setup!$AI$8<>\"\",INDIRECT(\"'\" & Setup!$AI$8 & \"'!\" & AD413),0) + IF(Setup!$AI$9<>\"\",INDIRECT(\"'\" & Setup!$AI$9 & \"'!\" & AD413),0) + IF(Setup!$AI$10<>\"\",INDIRECT(\"'\" & Setup!$AI$10 & \"'!\" & AD413),0) + IF(Setup!$AI$11<>\"\",INDIRECT(\"'\" & Setup!$AI$11 & \"'!\" & AD413),0) + IF(Setup!$AI$12<>\"\",INDIRECT(\"'\" & Setup!$AI$12 & \"'!\" & AD413),0)","v":{"v":0,"d":"0.00"}},{"$f":"IF(Setup!$AI$7<>\"\",INDIRECT(\"'\" & Setup!$AI$7 & \"'!\" & AE413),0) + IF(Setup!$AI$8<>\"\",INDIRECT(\"'\" & Setup!$AI$8 & \"'!\" & AE413),0) + IF(Setup!$AI$9<>\"\",INDIRECT(\"'\" & Setup!$AI$9 & \"'!\" & AE413),0) + IF(Setup!$AI$10<>\"\",INDIRECT(\"'\" & Setup!$AI$10 & \"'!\" & AE413),0) + IF(Setup!$AI$11<>\"\",INDIRECT(\"'\" & Setup!$AI$11 & \"'!\" & AE413),0) + IF(Setup!$AI$12<>\"\",INDIRECT(\"'\" & Setup!$AI$12 & \"'!\" & AE413),0)","v":{"v":0,"d":"0.00"}},"","",{"$f":"IF(Setup!$AJ$7<>\"\",INDIRECT(\"'\" & Setup!$AJ$7 & \"'!\" & AD413),0) + IF(Setup!$AJ$8<>\"\",INDIRECT(\"'\" & Setup!$AJ$8 & \"'!\" & AD413),0) + IF(Setup!$AJ$9<>\"\",INDIRECT(\"'\" & Setup!$AJ$9 & \"'!\" & AD413),0) + IF(Setup!$AJ$10<>\"\",INDIRECT(\"'\" & Setup!$AJ$10 & \"'!\" & AD413),0) + IF(Setup!$AJ$11<>\"\",INDIRECT(\"'\" & Setup!$AJ$11 & \"'!\" & AD413),0) + IF(Setup!$AJ$12<>\"\",INDIRECT(\"'\" & Setup!$AJ$12 & \"'!\" & AD413),0)","v":0},{"$f":"IF(Setup!$AJ$7<>\"\",INDIRECT(\"'\" & Setup!$AJ$7 & \"'!\" & AE413),0) + IF(Setup!$AJ$8<>\"\",INDIRECT(\"'\" & Setup!$AJ$8 & \"'!\" & AE413),0) + IF(Setup!$AJ$9<>\"\",INDIRECT(\"'\" & Setup!$AJ$9 & \"'!\" & AE413),0) + IF(Setup!$AJ$10<>\"\",INDIRECT(\"'\" & Setup!$AJ$10 & \"'!\" & AE413),0) + IF(Setup!$AJ$11<>\"\",INDIRECT(\"'\" & Setup!$AJ$11 & \"'!\" & AE413),0) + IF(Setup!$AJ$12<>\"\",INDIRECT(\"'\" & Setup!$AJ$12 & \"'!\" & AE413),0)","v":0},"","",{"$f":"Planning!H185","v":0},"00","M201","O201","N201",null,null,{"$f":"IF(Setup!$AG$7<>\"\",INDIRECT(\"'\" & Setup!$AG$7 & \"'!\" & AF413),0) + IF(Setup!$AG$8<>\"\",INDIRECT(\"'\" & Setup!$AG$8 & \"'!\" & AF413),0) + IF(Setup!$AG$9<>\"\",INDIRECT(\"'\" & Setup!$AG$9 & \"'!\" & AF413),0) + IF(Setup!$AG$10<>\"\",INDIRECT(\"'\" & Setup!$AG$10 & \"'!\" & AF413),0) + IF(Setup!$AG$11<>\"\",INDIRECT(\"'\" & Setup!$AG$11 & \"'!\" & AF413),0) + IF(Setup!$AG$12<>\"\",INDIRECT(\"'\" & Setup!$AG$12 & \"'!\" & AF413),0)","v":0},{"$f":"IF(Setup!$AH$7<>\"\",INDIRECT(\"'\" & Setup!$AH$7 & \"'!\" & AF413),0) + IF(Setup!$AH$8<>\"\",INDIRECT(\"'\" & Setup!$AH$8 & \"'!\" & AF413),0) + IF(Setup!$AH$9<>\"\",INDIRECT(\"'\" & Setup!$AH$9 & \"'!\" & AF413),0) + IF(Setup!$AH$10<>\"\",INDIRECT(\"'\" & Setup!$AH$10 & \"'!\" & AF413),0) + IF(Setup!$AH$11<>\"\",INDIRECT(\"'\" & Setup!$AH$11 & \"'!\" & AF413),0) + IF(Setup!$AH$12<>\"\",INDIRECT(\"'\" & Setup!$AH$12 & \"'!\" & AF413),0)","v":0},{"$f":"IF(Setup!$AI$7<>\"\",INDIRECT(\"'\" & Setup!$AI$7 & \"'!\" & AF413),0) + IF(Setup!$AI$8<>\"\",INDIRECT(\"'\" & Setup!$AI$8 & \"'!\" & AF413),0) + IF(Setup!$AI$9<>\"\",INDIRECT(\"'\" & Setup!$AI$9 & \"'!\" & AF413),0) + IF(Setup!$AI$10<>\"\",INDIRECT(\"'\" & Setup!$AI$10 & \"'!\" & AF413),0) + IF(Setup!$AI$11<>\"\",INDIRECT(\"'\" & Setup!$AI$11 & \"'!\" & AF413),0) + IF(Setup!$AI$12<>\"\",INDIRECT(\"'\" & Setup!$AI$12 & \"'!\" & AF413),0)","v":0},{"$f":"IF(Setup!$AJ$7<>\"\",INDIRECT(\"'\" & Setup!$AJ$7 & \"'!\" & AF413),0) + IF(Setup!$AJ$8<>\"\",INDIRECT(\"'\" & Setup!$AJ$8 & \"'!\" & AF413),0) + IF(Setup!$AJ$9<>\"\",INDIRECT(\"'\" & Setup!$AJ$9 & \"'!\" & AF413),0) + IF(Setup!$AJ$10<>\"\",INDIRECT(\"'\" & Setup!$AJ$10 & \"'!\" & AF413),0) + IF(Setup!$AJ$11<>\"\",INDIRECT(\"'\" & Setup!$AJ$11 & \"'!\" & AF413),0) + IF(Setup!$AJ$12<>\"\",INDIRECT(\"'\" & Setup!$AJ$12 & \"'!\" & AF413),0)","v":0},null,"",{"$nulls":30},0,{"$f":"IF(Setup!$AH$7=\"\",0,INDIRECT(\"'\" & Setup!$AH$7 & \"'!\" & AF413))","v":0},{"$f":"IF(Setup!$AI$7=\"\",0,INDIRECT(\"'\" & Setup!$AI$7 & \"'!\" & AF413))","v":0},{"$f":"IF(Setup!$AJ$7=\"\",0,INDIRECT(\"'\" & Setup!$AJ$7 & \"'!\" & AF413))","v":0}]
[{"$f":"Planning!A186","v":"I178"},{"$f":"Planning!B186","v":0},{"$f":"Planning!C186","v":0},{"$f":"Planning!D186","v":0},{"$f":"Planning!E186","v":0},{"$f":"Planning!G186","v":0},0,{"v":0,"d":"0.00"},{"v":0,"d":"0.00"},"","",{"$f":"IF(Setup!$AG$7<>\"\",INDIRECT(\"'\" & Setup!$AG$7 & \"'!\" & AD414),0) + IF(Setup!$AG$8<>\"\",INDIRECT(\"'\" & Setup!$AG$8 & \"'!\" & AD414),0) + IF(Setup!$AG$9<>\"\",INDIRECT(\"'\" & Setup!$AG$9 & \"'!\" & AD414),0) + IF(Setup!$AG$10<>\"\",INDIRECT(\"'\" & Setup!$AG$10 & \"'!\" & AD414),0) + IF(Setup!$AG$11<>\"\",INDIRECT(\"'\" & Setup!$AG$11 & \"'!\" & AD414),0) + IF(Setup!$AG$12<>\"\",INDIRECT(\"'\" & Setup!$AG$12 & \"'!\" & AD414),0)","v":{"v":0,"d":"0.00"}},{"$f":"IF(Setup!$AG$7<>\"\",INDIRECT(\"'\" & Setup!$AG$7 & \"'!\" & AE414),0) + IF(Setup!$AG$8<>\"\",INDIRECT(\"'\" & Setup!$AG$8 & \"'!\" & AE414),0) + IF(Setup!$AG$9<>\"\",INDIRECT(\"'\" & Setup!$AG$9 & \"'!\" & AE414),0) + IF(Setup!$AG$10<>\"\",INDIRECT(\"'\" & Setup!$AG$10 & \"'!\" & AE414),0) + IF(Setup!$AG$11<>\"\",INDIRECT(\"'\" & Setup!$AG$11 & \"'!\" & AE414),0) + IF(Setup!$AG$12<>\"\",INDIRECT(\"'\" & Setup!$AG$12 & \"'!\" & AE414),0)","v":{"v":0,"d":"0.00"}},"","",{"$f":"IF(Setup!$AH$7<>\"\",INDIRECT(\"'\" & Setup!$AH$7 & \"'!\" & AD414),0) + IF(Setup!$AH$8<>\"\",INDIRECT(\"'\" & Setup!$AH$8 & \"'!\" & AD414),0) + IF(Setup!$AH$9<>\"\",INDIRECT(\"'\" & Setup!$AH$9 & \"'!\" & AD414),0) + IF(Setup!$AH$10<>\"\",INDIRECT(\"'\" & Setup!$AH$10 & \"'!\" & AD414),0) + IF(Setup!$AH$11<>\"\",INDIRECT(\"'\" & Setup!$AH$11 & \"'!\" & AD414),0) + IF(Setup!$AH$12<>\"\",INDIRECT(\"'\" & Setup!$AH$12 & \"'!\" & AD414),0)","v":{"v":0,"d":"0.00"}},{"$f":"IF(Setup!$AH$7<>\"\",INDIRECT(\"'\" & Setup!$AH$7 & \"'!\" & AE414),0) + IF(Setup!$AH$8<>\"\",INDIRECT(\"'\" & Setup!$AH$8 & \"'!\" & AE414),0) + IF(Setup!$AH$9<>\"\",INDIRECT(\"'\" & Setup!$AH$9 & \"'!\" & AE414),0) + IF(Setup!$AH$10<>\"\",INDIRECT(\"'\" & Setup!$AH$10 & \"'!\" & AE414),0) + IF(Setup!$AH$11<>\"\",INDIRECT(\"'\" & Setup!$AH$11 & \"'!\" & AE414),0) + IF(Setup!$AH$12<>\"\",INDIRECT(\"'\" & Setup!$AH$12 & \"'!\" & AE414),0)","v":{"v":0,"d":"0.00"}},"","",{"$f":"IF(Setup!$AI$7<>\"\",INDIRECT(\"'\" & Setup!$AI$7 & \"'!\" & AD414),0) + IF(Setup!$AI$8<>\"\",INDIRECT(\"'\" & Setup!$AI$8 & \"'!\" & AD414),0) + IF(Setup!$AI$9<>\"\",INDIRECT(\"'\" & Setup!$AI$9 & \"'!\" & AD414),0) + IF(Setup!$AI$10<>\"\",INDIRECT(\"'\" & Setup!$AI$10 & \"'!\" & AD414),0) + IF(Setup!$AI$11<>\"\",INDIRECT(\"'\" & Setup!$AI$11 & \"'!\" & AD414),0) + IF(Setup!$AI$12<>\"\",INDIRECT(\"'\" & Setup!$AI$12 & \"'!\" & AD414),0)","v":{"v":0,"d":"0.00"}},{"$f":"IF(Setup!$AI$7<>\"\",INDIRECT(\"'\" & Setup!$AI$7 & \"'!\" & AE414),0) + IF(Setup!$AI$8<>\"\",INDIRECT(\"'\" & Setup!$AI$8 & \"'!\" & AE414),0) + IF(Setup!$AI$9<>\"\",INDIRECT(\"'\" & Setup!$AI$9 & \"'!\" & AE414),0) + IF(Setup!$AI$10<>\"\",INDIRECT(\"'\" & Setup!$AI$10 & \"'!\" & AE414),0) + IF(Setup!$AI$11<>\"\",INDIRECT(\"'\" & Setup!$AI$11 & \"'!\" & AE414),0) + IF(Setup!$AI$12<>\"\",INDIRECT(\"'\" & Setup!$AI$12 & \"'!\" & AE414),0)","v":{"v":0,"d":"0.00"}},"","",{"$f":"IF(Setup!$AJ$7<>\"\",INDIRECT(\"'\" & Setup!$AJ$7 & \"'!\" & AD414),0) + IF(Setup!$AJ$8<>\"\",INDIRECT(\"'\" & Setup!$AJ$8 & \"'!\" & AD414),0) + IF(Setup!$AJ$9<>\"\",INDIRECT(\"'\" & Setup!$AJ$9 & \"'!\" & AD414),0) + IF(Setup!$AJ$10<>\"\",INDIRECT(\"'\" & Setup!$AJ$10 & \"'!\" & AD414),0) + IF(Setup!$AJ$11<>\"\",INDIRECT(\"'\" & Setup!$AJ$11 & \"'!\" & AD414),0) + IF(Setup!$AJ$12<>\"\",INDIRECT(\"'\" & Setup!$AJ$12 & \"'!\" & AD414),0)","v":0},{"$f":"IF(Setup!$AJ$7<>\"\",INDIRECT(\"'\" & Setup!$AJ$7 & \"'!\" & AE414),0) + IF(Setup!$AJ$8<>\"\",INDIRECT(\"'\" & Setup!$AJ$8 & \"'!\" & AE414),0) + IF(Setup!$AJ$9<>\"\",INDIRECT(\"'\" & Setup!$AJ$9 & \"'!\" & AE414),0) + IF(Setup!$AJ$10<>\"\",INDIRECT(\"'\" & Setup!$AJ$10 & \"'!\" & AE414),0) + IF(Setup!$AJ$11<>\"\",INDIRECT(\"'\" & Setup!$AJ$11 & \"'!\" & AE414),0) + IF(Setup!$AJ$12<>\"\",INDIRECT(\"'\" & Setup!$AJ$12 & \"'!\" & AE414),0)","v":0},"","",{"$f":"Planning!H186","v":0},"00","M202","O202","N202",null,null,{"$f":"IF(Setup!$AG$7<>\"\",INDIRECT(\"'\" & Setup!$AG$7 & \"'!\" & AF414),0) + IF(Setup!$AG$8<>\"\",INDIRECT(\"'\" & Setup!$AG$8 & \"'!\" & AF414),0) + IF(Setup!$AG$9<>\"\",INDIRECT(\"'\" & Setup!$AG$9 & \"'!\" & AF414),0) + IF(Setup!$AG$10<>\"\",INDIRECT(\"'\" & Setup!$AG$10 & \"'!\" & AF414),0) + IF(Setup!$AG$11<>\"\",INDIRECT(\"'\" & Setup!$AG$11 & \"'!\" & AF414),0) + IF(Setup!$AG$12<>\"\",INDIRECT(\"'\" & Setup!$AG$12 & \"'!\" & AF414),0)","v":0},{"$f":"IF(Setup!$AH$7<>\"\",INDIRECT(\"'\" & Setup!$AH$7 & \"'!\" & AF414),0) + IF(Setup!$AH$8<>\"\",INDIRECT(\"'\" & Setup!$AH$8 & \"'!\" & AF414),0) + IF(Setup!$AH$9<>\"\",INDIRECT(\"'\" & Setup!$AH$9 & \"'!\" & AF414),0) + IF(Setup!$AH$10<>\"\",INDIRECT(\"'\" & Setup!$AH$10 & \"'!\" & AF414),0) + IF(Setup!$AH$11<>\"\",INDIRECT(\"'\" & Setup!$AH$11 & \"'!\" & AF414),0) + IF(Setup!$AH$12<>\"\",INDIRECT(\"'\" & Setup!$AH$12 & \"'!\" & AF414),0)","v":0},{"$f":"IF(Setup!$AI$7<>\"\",INDIRECT(\"'\" & Setup!$AI$7 & \"'!\" & AF414),0) + IF(Setup!$AI$8<>\"\",INDIRECT(\"'\" & Setup!$AI$8 & \"'!\" & AF414),0) + IF(Setup!$AI$9<>\"\",INDIRECT(\"'\" & Setup!$AI$9 & \"'!\" & AF414),0) + IF(Setup!$AI$10<>\"\",INDIRECT(\"'\" & Setup!$AI$10 & \"'!\" & AF414),0) + IF(Setup!$AI$11<>\"\",INDIRECT(\"'\" & Setup!$AI$11 & \"'!\" & AF414),0) + IF(Setup!$AI$12<>\"\",INDIRECT(\"'\" & Setup!$AI$12 & \"'!\" & AF414),0)","v":0},{"$f":"IF(Setup!$AJ$7<>\"\",INDIRECT(\"'\" & Setup!$AJ$7 & \"'!\" & AF414),0) + IF(Setup!$AJ$8<>\"\",INDIRECT(\"'\" & Setup!$AJ$8 & \"'!\" & AF414),0) + IF(Setup!$AJ$9<>\"\",INDIRECT(\"'\" & Setup!$AJ$9 & \"'!\" & AF414),0) + IF(Setup!$AJ$10<>\"\",INDIRECT(\"'\" & Setup!$AJ$10 & \"'!\" & AF414),0) + IF(Setup!$AJ$11<>\"\",INDIRECT(\"'\" & Setup!$AJ$11 & \"'!\" & AF414),0) + IF(Setup!$AJ$12<>\"\",INDIRECT(\"'\" & Setup!$AJ$12 & \"'!\" & AF414),0)","v":0},null,"",{"$nulls":30},0,{"$f":"IF(Setup!$AH$7=\"\",0,INDIRECT(\"'\" & Setup!$AH$7 & \"'!\" & AF414))","v":0},{"$f":"IF(Setup!$AI$7=\"\",0,INDIRECT(\"'\" & Setup!$AI$7 & \"'!\" & AF414))","v":0},{"$f":"IF(Setup!$AJ$7=\"\",0,INDIRECT(\"'\" & Setup!$AJ$7 & \"'!\" & AF414))","v":0}]
[{"$f":"Planning!A187","v":"I179"},{"$f":"Planning!B187","v":0},{"$f":"Planning!C187","v":0},{"$f":"Planning!D187","v":0},{"$f":"Planning!E187","v":0},{"$f":"Planning!G187","v":0},0,{"v":0,"d":"0.00"},{"v":0,"d":"0.00"},"","",{"$f":"IF(Setup!$AG$7<>\"\",INDIRECT(\"'\" & Setup!$AG$7 & \"'!\" & AD415),0) + IF(Setup!$AG$8<>\"\",INDIRECT(\"'\" & Setup!$AG$8 & \"'!\" & AD415),0) + IF(Setup!$AG$9<>\"\",INDIRECT(\"'\" & Setup!$AG$9 & \"'!\" & AD415),0) + IF(Setup!$AG$10<>\"\",INDIRECT(\"'\" & Setup!$AG$10 & \"'!\" & AD415),0) + IF(Setup!$AG$11<>\"\",INDIRECT(\"'\" & Setup!$AG$11 & \"'!\" & AD415),0) + IF(Setup!$AG$12<>\"\",INDIRECT(\"'\" & Setup!$AG$12 & \"'!\" & AD415),0)","v":{"v":0,"d":"0.00"}},{"$f":"IF(Setup!$AG$7<>\"\",INDIRECT(\"'\" & Setup!$AG$7 & \"'!\" & AE415),0) + IF(Setup!$AG$8<>\"\",INDIRECT(\"'\" & Setup!$AG$8 & \"'!\" & AE415),0) + IF(Setup!$AG$9<>\"\",INDIRECT(\"'\" & Setup!$AG$9 & \"'!\" & AE415),0) + IF(Setup!$AG$10<>\"\",INDIRECT(\"'\" & Setup!$AG$10 & \"'!\" & AE415),0) + IF(Setup!$AG$11<>\"\",INDIRECT(\"'\" & Setup!$AG$11 & \"'!\" & AE415),0) + IF(Setup!$AG$12<>\"\",INDIRECT(\"'\" & Setup!$AG$12 & \"'!\" & AE415),0)","v":{"v":0,"d":"0.00"}},"","",{"$f":"IF(Setup!$AH$7<>\"\",INDIRECT(\"'\" & Setup!$AH$7 & \"'!\" & AD415),0) + IF(Setup!$AH$8<>\"\",INDIRECT(\"'\" & Setup!$AH$8 & \"'!\" & AD415),0) + IF(Setup!$AH$9<>\"\",INDIRECT(\"'\" & Setup!$AH$9 & \"'!\" & AD415),0) + IF(Setup!$AH$10<>\"\",INDIRECT(\"'\" & Setup!$AH$10 & \"'!\" & AD415),0) + IF(Setup!$AH$11<>\"\",INDIRECT(\"'\" & Setup!$AH$11 & \"'!\" & AD415),0) + IF(Setup!$AH$12<>\"\",INDIRECT(\"'\" & Setup!$AH$12 & \"'!\" & AD415),0)","v":{"v":0,"d":"0.00"}},{"$f":"IF(Setup!$AH$7<>\"\",INDIRECT(\"'\" & Setup!$AH$7 & \"'!\" & AE415),0) + IF(Setup!$AH$8<>\"\",INDIRECT(\"'\" & Setup!$AH$8 & \"'!\" & AE415),0) + IF(Setup!$AH$9<>\"\",INDIRECT(\"'\" & Setup!$AH$9 & \"'!\" & AE415),0) + IF(Setup!$AH$10<>\"\",INDIRECT(\"'\" & Setup!$AH$10 & \"'!\" & AE415),0) + IF(Setup!$AH$11<>\"\",INDIRECT(\"'\" & Setup!$AH$11 & \"'!\" & AE415),0) + IF(Setup!$AH$12<>\"\",INDIRECT(\"'\" & Setup!$AH$12 & \"'!\" & AE415),0)","v":{"v":0,"d":"0.00"}},"","",{"$f":"IF(Setup!$AI$7<>\"\",INDIRECT(\"'\" & Setup!$AI$7 & \"'!\" & AD415),0) + IF(Setup!$AI$8<>\"\",INDIRECT(\"'\" & Setup!$AI$8 & \"'!\" & AD415),0) + IF(Setup!$AI$9<>\"\",INDIRECT(\"'\" & Setup!$AI$9 & \"'!\" & AD415),0) + IF(Setup!$AI$10<>\"\",INDIRECT(\"'\" & Setup!$AI$10 & \"'!\" & AD415),0) + IF(Setup!$AI$11<>\"\",INDIRECT(\"'\" & Setup!$AI$11 & \"'!\" & AD415),0) + IF(Setup!$AI$12<>\"\",INDIRECT(\"'\" & Setup!$AI$12 & \"'!\" & AD415),0)","v":{"v":0,"d":"0.00"}},{"$f":"IF(Setup!$AI$7<>\"\",INDIRECT(\"'\" & Setup!$AI$7 & \"'!\" & AE415),0) + IF(Setup!$AI$8<>\"\",INDIRECT(\"'\" & Setup!$AI$8 & \"'!\" & AE415),0) + IF(Setup!$AI$9<>\"\",INDIRECT(\"'\" & Setup!$AI$9 & \"'!\" & AE415),0) + IF(Setup!$AI$10<>\"\",INDIRECT(\"'\" & Setup!$AI$10 & \"'!\" & AE415),0) + IF(Setup!$AI$11<>\"\",INDIRECT(\"'\" & Setup!$AI$11 & \"'!\" & AE415),0) + IF(Setup!$AI$12<>\"\",INDIRECT(\"'\" & Setup!$AI$12 & \"'!\" & AE415),0)","v":{"v":0,"d":"0.00"}},"","",{"$f":"IF(Setup!$AJ$7<>\"\",INDIRECT(\"'\" & Setup!$AJ$7 & \"'!\" & AD415),0) + IF(Setup!$AJ$8<>\"\",INDIRECT(\"'\" & Setup!$AJ$8 & \"'!\" & AD415),0) + IF(Setup!$AJ$9<>\"\",INDIRECT(\"'\" & Setup!$AJ$9 & \"'!\" & AD415),0) + IF(Setup!$AJ$10<>\"\",INDIRECT(\"'\" & Setup!$AJ$10 & \"'!\" & AD415),0) + IF(Setup!$AJ$11<>\"\",INDIRECT(\"'\" & Setup!$AJ$11 & \"'!\" & AD415),0) + IF(Setup!$AJ$12<>\"\",INDIRECT(\"'\" & Setup!$AJ$12 & \"'!\" & AD415),0)","v":0},{"$f":"IF(Setup!$AJ$7<>\"\",INDIRECT(\"'\" & Setup!$AJ$7 & \"'!\" & AE415),0) + IF(Setup!$AJ$8<>\"\",INDIRECT(\"'\" & Setup!$AJ$8 & \"'!\" & AE415),0) + IF(Setup!$AJ$9<>\"\",INDIRECT(\"'\" & Setup!$AJ$9 & \"'!\" & AE415),0) + IF(Setup!$AJ$10<>\"\",INDIRECT(\"'\" & Setup!$AJ$10 & \"'!\" & AE415),0) + IF(Setup!$AJ$11<>\"\",INDIRECT(\"'\" & Setup!$AJ$11 & \"'!\" & AE415),0) + IF(Setup!$AJ$12<>\"\",INDIRECT(\"'\" & Setup!$AJ$12 & \"'!\" & AE415),0)","v":0},"","",{"$f":"Planning!H187","v":0},"00","M203","O203","N203",null,null,{"$f":"IF(Setup!$AG$7<>\"\",INDIRECT(\"'\" & Setup!$AG$7 & \"'!\" & AF415),0) + IF(Setup!$AG$8<>\"\",INDIRECT(\"'\" & Setup!$AG$8 & \"'!\" & AF415),0) + IF(Setup!$AG$9<>\"\",INDIRECT(\"'\" & Setup!$AG$9 & \"'!\" & AF415),0) + IF(Setup!$AG$10<>\"\",INDIRECT(\"'\" & Setup!$AG$10 & \"'!\" & AF415),0) + IF(Setup!$AG$11<>\"\",INDIRECT(\"'\" & Setup!$AG$11 & \"'!\" & AF415),0) + IF(Setup!$AG$12<>\"\",INDIRECT(\"'\" & Setup!$AG$12 & \"'!\" & AF415),0)","v":0},{"$f":"IF(Setup!$AH$7<>\"\",INDIRECT(\"'\" & Setup!$AH$7 & \"'!\" & AF415),0) + IF(Setup!$AH$8<>\"\",INDIRECT(\"'\" & Setup!$AH$8 & \"'!\" & AF415),0) + IF(Setup!$AH$9<>\"\",INDIRECT(\"'\" & Setup!$AH$9 & \"'!\" & AF415),0) + IF(Setup!$AH$10<>\"\",INDIRECT(\"'\" & Setup!$AH$10 & \"'!\" & AF415),0) + IF(Setup!$AH$11<>\"\",INDIRECT(\"'\" & Setup!$AH$11 & \"'!\" & AF415),0) + IF(Setup!$AH$12<>\"\",INDIRECT(\"'\" & Setup!$AH$12 & \"'!\" & AF415),0)","v":0},{"$f":"IF(Setup!$AI$7<>\"\",INDIRECT(\"'\" & Setup!$AI$7 & \"'!\" & AF415),0) + IF(Setup!$AI$8<>\"\",INDIRECT(\"'\" & Setup!$AI$8 & \"'!\" & AF415),0) + IF(Setup!$AI$9<>\"\",INDIRECT(\"'\" & Setup!$AI$9 & \"'!\" & AF415),0) + IF(Setup!$AI$10<>\"\",INDIRECT(\"'\" & Setup!$AI$10 & \"'!\" & AF415),0) + IF(Setup!$AI$11<>\"\",INDIRECT(\"'\" & Setup!$AI$11 & \"'!\" & AF415),0) + IF(Setup!$AI$12<>\"\",INDIRECT(\"'\" & Setup!$AI$12 & \"'!\" & AF415),0)","v":0},{"$f":"IF(Setup!$AJ$7<>\"\",INDIRECT(\"'\" & Setup!$AJ$7 & \"'!\" & AF415),0) + IF(Setup!$AJ$8<>\"\",INDIRECT(\"'\" & Setup!$AJ$8 & \"'!\" & AF415),0) + IF(Setup!$AJ$9<>\"\",INDIRECT(\"'\" & Setup!$AJ$9 & \"'!\" & AF415),0) + IF(Setup!$AJ$10<>\"\",INDIRECT(\"'\" & Setup!$AJ$10 & \"'!\" & AF415),0) + IF(Setup!$AJ$11<>\"\",INDIRECT(\"'\" & Setup!$AJ$11 & \"'!\" & AF415),0) + IF(Setup!$AJ$12<>\"\",INDIRECT(\"'\" & Setup!$AJ$12 & \"'!\" & AF415),0)","v":0},null,"",{"$nulls":30},0,{"$f":"IF(Setup!$AH$7=\"\",0,INDIRECT(\"'\" & Setup!$AH$7 & \"'!\" & AF415))","v":0},{"$f":"IF(Setup!$AI$7=\"\",0,INDIRECT(\"'\" & Setup!$AI$7 & \"'!\" & AF415))","v":0},{"$f":"IF(Setup!$AJ$7=\"\",0,INDIRECT(\"'\" & Setup!$AJ$7 & \"'!\" & AF415))","v":0}]
[{"$f":"Planning!A188","v":"I180"},{"$f":"Planning!B188","v":0},{"$f":"Planning!C188","v":0},{"$f":"Planning!D188","v":0},{"$f":"Planning!E188","v":0},{"$f":"Planning!G188","v":0},0,{"v":0,"d":"0.00"},{"v":0,"d":"0.00"},"","",{"$f":"IF(Setup!$AG$7<>\"\",INDIRECT(\"'\" & Setup!$AG$7 & \"'!\" & AD416),0) + IF(Setup!$AG$8<>\"\",INDIRECT(\"'\" & Setup!$AG$8 & \"'!\" & AD416),0) + IF(Setup!$AG$9<>\"\",INDIRECT(\"'\" & Setup!$AG$9 & \"'!\" & AD416),0) + IF(Setup!$AG$10<>\"\",INDIRECT(\"'\" & Setup!$AG$10 & \"'!\" & AD416),0) + IF(Setup!$AG$11<>\"\",INDIRECT(\"'\" & Setup!$AG$11 & \"'!\" & AD416),0) + IF(Setup!$AG$12<>\"\",INDIRECT(\"'\" & Setup!$AG$12 & \"'!\" & AD416),0)","v":{"v":0,"d":"0.00"}},{"$f":"IF(Setup!$AG$7<>\"\",INDIRECT(\"'\" & Setup!$AG$7 & \"'!\" & AE416),0) + IF(Setup!$AG$8<>\"\",INDIRECT(\"'\" & Setup!$AG$8 & \"'!\" & AE416),0) + IF(Setup!$AG$9<>\"\",INDIRECT(\"'\" & Setup!$AG$9 & \"'!\" & AE416),0) + IF(Setup!$AG$10<>\"\",INDIRECT(\"'\" & Setup!$AG$10 & \"'!\" & AE416),0) + IF(Setup!$AG$11<>\"\",INDIRECT(\"'\" & Setup!$AG$11 & \"'!\" & AE416),0) + IF(Setup!$AG$12<>\"\",INDIRECT(\"'\" & Setup!$AG$12 & \"'!\" & AE416),0)","v":{"v":0,"d":"0.00"}},"","",{"$f":"IF(Setup!$AH$7<>\"\",INDIRECT(\"'\" & Setup!$AH$7 & \"'!\" & AD416),0) + IF(Setup!$AH$8<>\"\",INDIRECT(\"'\" & Setup!$AH$8 & \"'!\" & AD416),0) + IF(Setup!$AH$9<>\"\",INDIRECT(\"'\" & Setup!$AH$9 & \"'!\" & AD416),0) + IF(Setup!$AH$10<>\"\",INDIRECT(\"'\" & Setup!$AH$10 & \"'!\" & AD416),0) + IF(Setup!$AH$11<>\"\",INDIRECT(\"'\" & Setup!$AH$11 & \"'!\" & AD416),0) + IF(Setup!$AH$12<>\"\",INDIRECT(\"'\" & Setup!$AH$12 & \"'!\" & AD416),0)","v":{"v":0,"d":"0.00"}},{"$f":"IF(Setup!$AH$7<>\"\",INDIRECT(\"'\" & Setup!$AH$7 & \"'!\" & AE416),0) + IF(Setup!$AH$8<>\"\",INDIRECT(\"'\" & Setup!$AH$8 & \"'!\" & AE416),0) + IF(Setup!$AH$9<>\"\",INDIRECT(\"'\" & Setup!$AH$9 & \"'!\" & AE416),0) + IF(Setup!$AH$10<>\"\",INDIRECT(\"'\" & Setup!$AH$10 & \"'!\" & AE416),0) + IF(Setup!$AH$11<>\"\",INDIRECT(\"'\" & Setup!$AH$11 & \"'!\" & AE416),0) + IF(Setup!$AH$12<>\"\",INDIRECT(\"'\" & Setup!$AH$12 & \"'!\" & AE416),0)","v":{"v":0,"d":"0.00"}},"","",{"$f":"IF(Setup!$AI$7<>\"\",INDIRECT(\"'\" & Setup!$AI$7 & \"'!\" & AD416),0) + IF(Setup!$AI$8<>\"\",INDIRECT(\"'\" & Setup!$AI$8 & \"'!\" & AD416),0) + IF(Setup!$AI$9<>\"\",INDIRECT(\"'\" & Setup!$AI$9 & \"'!\" & AD416),0) + IF(Setup!$AI$10<>\"\",INDIRECT(\"'\" & Setup!$AI$10 & \"'!\" & AD416),0) + IF(Setup!$AI$11<>\"\",INDIRECT(\"'\" & Setup!$AI$11 & \"'!\" & AD416),0) + IF(Setup!$AI$12<>\"\",INDIRECT(\"'\" & Setup!$AI$12 & \"'!\" & AD416),0)","v":{"v":0,"d":"0.00"}},{"$f":"IF(Setup!$AI$7<>\"\",INDIRECT(\"'\" & Setup!$AI$7 & \"'!\" & AE416),0) + IF(Setup!$AI$8<>\"\",INDIRECT(\"'\" & Setup!$AI$8 & \"'!\" & AE416),0) + IF(Setup!$AI$9<>\"\",INDIRECT(\"'\" & Setup!$AI$9 & \"'!\" & AE416),0) + IF(Setup!$AI$10<>\"\",INDIRECT(\"'\" & Setup!$AI$10 & \"'!\" & AE416),0) + IF(Setup!$AI$11<>\"\",INDIRECT(\"'\" & Setup!$AI$11 & \"'!\" & AE416),0) + IF(Setup!$AI$12<>\"\",INDIRECT(\"'\" & Setup!$AI$12 & \"'!\" & AE416),0)","v":{"v":0,"d":"0.00"}},"","",{"$f":"IF(Setup!$AJ$7<>\"\",INDIRECT(\"'\" & Setup!$AJ$7 & \"'!\" & AD416),0) + IF(Setup!$AJ$8<>\"\",INDIRECT(\"'\" & Setup!$AJ$8 & \"'!\" & AD416),0) + IF(Setup!$AJ$9<>\"\",INDIRECT(\"'\" & Setup!$AJ$9 & \"'!\" & AD416),0) + IF(Setup!$AJ$10<>\"\",INDIRECT(\"'\" & Setup!$AJ$10 & \"'!\" & AD416),0) + IF(Setup!$AJ$11<>\"\",INDIRECT(\"'\" & Setup!$AJ$11 & \"'!\" & AD416),0) + IF(Setup!$AJ$12<>\"\",INDIRECT(\"'\" & Setup!$AJ$12 & \"'!\" & AD416),0)","v":0},{"$f":"IF(Setup!$AJ$7<>\"\",INDIRECT(\"'\" & Setup!$AJ$7 & \"'!\" & AE416),0) + IF(Setup!$AJ$8<>\"\",INDIRECT(\"'\" & Setup!$AJ$8 & \"'!\" & AE416),0) + IF(Setup!$AJ$9<>\"\",INDIRECT(\"'\" & Setup!$AJ$9 & \"'!\" & AE416),0) + IF(Setup!$AJ$10<>\"\",INDIRECT(\"'\" & Setup!$AJ$10 & \"'!\" & AE416),0) + IF(Setup!$AJ$11<>\"\",INDIRECT(\"'\" & Setup!$AJ$11 & \"'!\" & AE416),0) + IF(Setup!$AJ$12<>\"\",INDIRECT(\"'\" & Setup!$AJ$12 & \"'!\" & AE416),0)","v":0},"","",{"$f":"Planning!H188","v":0},"00","M204","O204","N204",null,null,{"$f":"IF(Setup!$AG$7<>\"\",INDIRECT(\"'\" & Setup!$AG$7 & \"'!\" & AF416),0) + IF(Setup!$AG$8<>\"\",INDIRECT(\"'\" & Setup!$AG$8 & \"'!\" & AF416),0) + IF(Setup!$AG$9<>\"\",INDIRECT(\"'\" & Setup!$AG$9 & \"'!\" & AF416),0) + IF(Setup!$AG$10<>\"\",INDIRECT(\"'\" & Setup!$AG$10 & \"'!\" & AF416),0) + IF(Setup!$AG$11<>\"\",INDIRECT(\"'\" & Setup!$AG$11 & \"'!\" & AF416),0) + IF(Setup!$AG$12<>\"\",INDIRECT(\"'\" & Setup!$AG$12 & \"'!\" & AF416),0)","v":0},{"$f":"IF(Setup!$AH$7<>\"\",INDIRECT(\"'\" & Setup!$AH$7 & \"'!\" & AF416),0) + IF(Setup!$AH$8<>\"\",INDIRECT(\"'\" & Setup!$AH$8 & \"'!\" & AF416),0) + IF(Setup!$AH$9<>\"\",INDIRECT(\"'\" & Setup!$AH$9 & \"'!\" & AF416),0) + IF(Setup!$AH$10<>\"\",INDIRECT(\"'\" & Setup!$AH$10 & \"'!\" & AF416),0) + IF(Setup!$AH$11<>\"\",INDIRECT(\"'\" & Setup!$AH$11 & \"'!\" & AF416),0) + IF(Setup!$AH$12<>\"\",INDIRECT(\"'\" & Setup!$AH$12 & \"'!\" & AF416),0)","v":0},{"$f":"IF(Setup!$AI$7<>\"\",INDIRECT(\"'\" & Setup!$AI$7 & \"'!\" & AF416),0) + IF(Setup!$AI$8<>\"\",INDIRECT(\"'\" & Setup!$AI$8 & \"'!\" & AF416),0) + IF(Setup!$AI$9<>\"\",INDIRECT(\"'\" & Setup!$AI$9 & \"'!\" & AF416),0) + IF(Setup!$AI$10<>\"\",INDIRECT(\"'\" & Setup!$AI$10 & \"'!\" & AF416),0) + IF(Setup!$AI$11<>\"\",INDIRECT(\"'\" & Setup!$AI$11 & \"'!\" & AF416),0) + IF(Setup!$AI$12<>\"\",INDIRECT(\"'\" & Setup!$AI$12 & \"'!\" & AF416),0)","v":0},{"$f":"IF(Setup!$AJ$7<>\"\",INDIRECT(\"'\" & Setup!$AJ$7 & \"'!\" & AF416),0) + IF(Setup!$AJ$8<>\"\",INDIRECT(\"'\" & Setup!$AJ$8 & \"'!\" & AF416),0) + IF(Setup!$AJ$9<>\"\",INDIRECT(\"'\" & Setup!$AJ$9 & \"'!\" & AF416),0) + IF(Setup!$AJ$10<>\"\",INDIRECT(\"'\" & Setup!$AJ$10 & \"'!\" & AF416),0) + IF(Setup!$AJ$11<>\"\",INDIRECT(\"'\" & Setup!$AJ$11 & \"'!\" & AF416),0) + IF(Setup!$AJ$12<>\"\",INDIRECT(\"'\" & Setup!$AJ$12 & \"'!\" & AF416),0)","v":0},null,"",{"$nulls":30},0,{"$f":"IF(Setup!$AH$7=\"\",0,INDIRECT(\"'\" & Setup!$AH$7 & \"'!\" & AF416))","v":0},{"$f":"IF(Setup!$AI$7=\"\",0,INDIRECT(\"'\" & Setup!$AI$7 & \"'!\" & AF416))","v":0},{"$f":"IF(Setup!$AJ$7=\"\",0,INDIRECT(\"'\" & Setup!$AJ$7 & \"'!\" & AF416))","v":0}]
[{"$f":"Planning!A189","v":"I181"},{"$f":"Planning!B189","v":0},{"$f":"Planning!C189","v":0},{"$f":"Planning!D189","v":0},{"$f":"Planning!E189","v":0},{"$f":"Planning!G189","v":0},0,{"v":0,"d":"0.00"},{"v":0,"d":"0.00"},"","",{"$f":"IF(Setup!$AG$7<>\"\",INDIRECT(\"'\" & Setup!$AG$7 & \"'!\" & AD417),0) + IF(Setup!$AG$8<>\"\",INDIRECT(\"'\" & Setup!$AG$8 & \"'!\" & AD417),0) + IF(Setup!$AG$9<>\"\",INDIRECT(\"'\" & Setup!$AG$9 & \"'!\" & AD417),0) + IF(Setup!$AG$10<>\"\",INDIRECT(\"'\" & Setup!$AG$10 & \"'!\" & AD417),0) + IF(Setup!$AG$11<>\"\",INDIRECT(\"'\" & Setup!$AG$11 & \"'!\" & AD417),0) + IF(Setup!$AG$12<>\"\",INDIRECT(\"'\" & Setup!$AG$12 & \"'!\" & AD417),0)","v":{"v":0,"d":"0.00"}},{"$f":"IF(Setup!$AG$7<>\"\",INDIRECT(\"'\" & Setup!$AG$7 & \"'!\" & AE417),0) + IF(Setup!$AG$8<>\"\",INDIRECT(\"'\" & Setup!$AG$8 & \"'!\" & AE417),0) + IF(Setup!$AG$9<>\"\",INDIRECT(\"'\" & Setup!$AG$9 & \"'!\" & AE417),0) + IF(Setup!$AG$10<>\"\",INDIRECT(\"'\" & Setup!$AG$10 & \"'!\" & AE417),0) + IF(Setup!$AG$11<>\"\",INDIRECT(\"'\" & Setup!$AG$11 & \"'!\" & AE417),0) + IF(Setup!$AG$12<>\"\",INDIRECT(\"'\" & Setup!$AG$12 & \"'!\" & AE417),0)","v":{"v":0,"d":"0.00"}},"","",{"$f":"IF(Setup!$AH$7<>\"\",INDIRECT(\"'\" & Setup!$AH$7 & \"'!\" & AD417),0) + IF(Setup!$AH$8<>\"\",INDIRECT(\"'\" & Setup!$AH$8 & \"'!\" & AD417),0) + IF(Setup!$AH$9<>\"\",INDIRECT(\"'\" & Setup!$AH$9 & \"'!\" & AD417),0) + IF(Setup!$AH$10<>\"\",INDIRECT(\"'\" & Setup!$AH$10 & \"'!\" & AD417),0) + IF(Setup!$AH$11<>\"\",INDIRECT(\"'\" & Setup!$AH$11 & \"'!\" & AD417),0) + IF(Setup!$AH$12<>\"\",INDIRECT(\"'\" & Setup!$AH$12 & \"'!\" & AD417),0)","v":{"v":0,"d":"0.00"}},{"$f":"IF(Setup!$AH$7<>\"\",INDIRECT(\"'\" & Setup!$AH$7 & \"'!\" & AE417),0) + IF(Setup!$AH$8<>\"\",INDIRECT(\"'\" & Setup!$AH$8 & \"'!\" & AE417),0) + IF(Setup!$AH$9<>\"\",INDIRECT(\"'\" & Setup!$AH$9 & \"'!\" & AE417),0) + IF(Setup!$AH$10<>\"\",INDIRECT(\"'\" & Setup!$AH$10 & \"'!\" & AE417),0) + IF(Setup!$AH$11<>\"\",INDIRECT(\"'\" & Setup!$AH$11 & \"'!\" & AE417),0) + IF(Setup!$AH$12<>\"\",INDIRECT(\"'\" & Setup!$AH$12 & \"'!\" & AE417),0)","v":{"v":0,"d":"0.00"}},"","",{"$f":"IF(Setup!$AI$7<>\"\",INDIRECT(\"'\" & Setup!$AI$7 & \"'!\" & AD417),0) + IF(Setup!$AI$8<>\"\",INDIRECT(\"'\" & Setup!$AI$8 & \"'!\" & AD417),0) + IF(Setup!$AI$9<>\"\",INDIRECT(\"'\" & Setup!$AI$9 & \"'!\" & AD417),0) + IF(Setup!$AI$10<>\"\",INDIRECT(\"'\" & Setup!$AI$10 & \"'!\" & AD417),0) + IF(Setup!$AI$11<>\"\",INDIRECT(\"'\" & Setup!$AI$11 & \"'!\" & AD417),0) + IF(Setup!$AI$12<>\"\",INDIRECT(\"'\" & Setup!$AI$12 & \"'!\" & AD417),0)","v":{"v":0,"d":"0.00"}},{"$f":"IF(Setup!$AI$7<>\"\",INDIRECT(\"'\" & Setup!$AI$7 & \"'!\" & AE417),0) + IF(Setup!$AI$8<>\"\",INDIRECT(\"'\" & Setup!$AI$8 & \"'!\" & AE417),0) + IF(Setup!$AI$9<>\"\",INDIRECT(\"'\" & Setup!$AI$9 & \"'!\" & AE417),0) + IF(Setup!$AI$10<>\"\",INDIRECT(\"'\" & Setup!$AI$10 & \"'!\" & AE417),0) + IF(Setup!$AI$11<>\"\",INDIRECT(\"'\" & Setup!$AI$11 & \"'!\" & AE417),0) + IF(Setup!$AI$12<>\"\",INDIRECT(\"'\" & Setup!$AI$12 & \"'!\" & AE417),0)","v":{"v":0,"d":"0.00"}},"","",{"$f":"IF(Setup!$AJ$7<>\"\",INDIRECT(\"'\" & Setup!$AJ$7 & \"'!\" & AD417),0) + IF(Setup!$AJ$8<>\"\",INDIRECT(\"'\" & Setup!$AJ$8 & \"'!\" & AD417),0) + IF(Setup!$AJ$9<>\"\",INDIRECT(\"'\" & Setup!$AJ$9 & \"'!\" & AD417),0) + IF(Setup!$AJ$10<>\"\",INDIRECT(\"'\" & Setup!$AJ$10 & \"'!\" & AD417),0) + IF(Setup!$AJ$11<>\"\",INDIRECT(\"'\" & Setup!$AJ$11 & \"'!\" & AD417),0) + IF(Setup!$AJ$12<>\"\",INDIRECT(\"'\" & Setup!$AJ$12 & \"'!\" & AD417),0)","v":0},{"$f":"IF(Setup!$AJ$7<>\"\",INDIRECT(\"'\" & Setup!$AJ$7 & \"'!\" & AE417),0) + IF(Setup!$AJ$8<>\"\",INDIRECT(\"'\" & Setup!$AJ$8 & \"'!\" & AE417),0) + IF(Setup!$AJ$9<>\"\",INDIRECT(\"'\" & Setup!$AJ$9 & \"'!\" & AE417),0) + IF(Setup!$AJ$10<>\"\",INDIRECT(\"'\" & Setup!$AJ$10 & \"'!\" & AE417),0) + IF(Setup!$AJ$11<>\"\",INDIRECT(\"'\" & Setup!$AJ$11 & \"'!\" & AE417),0) + IF(Setup!$AJ$12<>\"\",INDIRECT(\"'\" & Setup!$AJ$12 & \"'!\" & AE417),0)","v":0},"","",{"$f":"Planning!H189","v":0},"00","M205","O205","N205",null,null,{"$f":"IF(Setup!$AG$7<>\"\",INDIRECT(\"'\" & Setup!$AG$7 & \"'!\" & AF417),0) + IF(Setup!$AG$8<>\"\",INDIRECT(\"'\" & Setup!$AG$8 & \"'!\" & AF417),0) + IF(Setup!$AG$9<>\"\",INDIRECT(\"'\" & Setup!$AG$9 & \"'!\" & AF417),0) + IF(Setup!$AG$10<>\"\",INDIRECT(\"'\" & Setup!$AG$10 & \"'!\" & AF417),0) + IF(Setup!$AG$11<>\"\",INDIRECT(\"'\" & Setup!$AG$11 & \"'!\" & AF417),0) + IF(Setup!$AG$12<>\"\",INDIRECT(\"'\" & Setup!$AG$12 & \"'!\" & AF417),0)","v":0},{"$f":"IF(Setup!$AH$7<>\"\",INDIRECT(\"'\" & Setup!$AH$7 & \"'!\" & AF417),0) + IF(Setup!$AH$8<>\"\",INDIRECT(\"'\" & Setup!$AH$8 & \"'!\" & AF417),0) + IF(Setup!$AH$9<>\"\",INDIRECT(\"'\" & Setup!$AH$9 & \"'!\" & AF417),0) + IF(Setup!$AH$10<>\"\",INDIRECT(\"'\" & Setup!$AH$10 & \"'!\" & AF417),0) + IF(Setup!$AH$11<>\"\",INDIRECT(\"'\" & Setup!$AH$11 & \"'!\" & AF417),0) + IF(Setup!$AH$12<>\"\",INDIRECT(\"'\" & Setup!$AH$12 & \"'!\" & AF417),0)","v":0},{"$f":"IF(Setup!$AI$7<>\"\",INDIRECT(\"'\" & Setup!$AI$7 & \"'!\" & AF417),0) + IF(Setup!$AI$8<>\"\",INDIRECT(\"'\" & Setup!$AI$8 & \"'!\" & AF417),0) + IF(Setup!$AI$9<>\"\",INDIRECT(\"'\" & Setup!$AI$9 & \"'!\" & AF417),0) + IF(Setup!$AI$10<>\"\",INDIRECT(\"'\" & Setup!$AI$10 & \"'!\" & AF417),0) + IF(Setup!$AI$11<>\"\",INDIRECT(\"'\" & Setup!$AI$11 & \"'!\" & AF417),0) + IF(Setup!$AI$12<>\"\",INDIRECT(\"'\" & Setup!$AI$12 & \"'!\" & AF417),0)","v":0},{"$f":"IF(Setup!$AJ$7<>\"\",INDIRECT(\"'\" & Setup!$AJ$7 & \"'!\" & AF417),0) + IF(Setup!$AJ$8<>\"\",INDIRECT(\"'\" & Setup!$AJ$8 & \"'!\" & AF417),0) + IF(Setup!$AJ$9<>\"\",INDIRECT(\"'\" & Setup!$AJ$9 & \"'!\" & AF417),0) + IF(Setup!$AJ$10<>\"\",INDIRECT(\"'\" & Setup!$AJ$10 & \"'!\" & AF417),0) + IF(Setup!$AJ$11<>\"\",INDIRECT(\"'\" & Setup!$AJ$11 & \"'!\" & AF417),0) + IF(Setup!$AJ$12<>\"\",INDIRECT(\"'\" & Setup!$AJ$12 & \"'!\" & AF417),0)","v":0},null,"",{"$nulls":30},0,{"$f":"IF(Setup!$AH$7=\"\",0,INDIRECT(\"'\" & Setup!$AH$7 & \"'!\" & AF417))","v":0},{"$f":"IF(Setup!$AI$7=\"\",0,INDIRECT(\"'\" & Setup!$AI$7 & \"'!\" & AF417))","v":0},{"$f":"IF(Setup!$AJ$7=\"\",0,INDIRECT(\"'\" & Setup!$AJ$7 & \"'!\" & AF417))","v":0}]
[{"$f":"Planning!A190","v":"I182"},{"$f":"Planning!B190","v":0},{"$f":"Planning!C190","v":0},{"$f":"Planning!D190","v":0},{"$f":"Planning!E190","v":0},{"$f":"Planning!G190","v":0},0,{"v":0,"d":"0.00"},{"v":0,"d":"0.00"},"","",{"$f":"IF(Setup!$AG$7<>\"\",INDIRECT(\"'\" & Setup!$AG$7 & \"'!\" & AD418),0) + IF(Setup!$AG$8<>\"\",INDIRECT(\"'\" & Setup!$AG$8 & \"'!\" & AD418),0) + IF(Setup!$AG$9<>\"\",INDIRECT(\"'\" & Setup!$AG$9 & \"'!\" & AD418),0) + IF(Setup!$AG$10<>\"\",INDIRECT(\"'\" & Setup!$AG$10 & \"'!\" & AD418),0) + IF(Setup!$AG$11<>\"\",INDIRECT(\"'\" & Setup!$AG$11 & \"'!\" & AD418),0) + IF(Setup!$AG$12<>\"\",INDIRECT(\"'\" & Setup!$AG$12 & \"'!\" & AD418),0)","v":{"v":0,"d":"0.00"}},{"$f":"IF(Setup!$AG$7<>\"\",INDIRECT(\"'\" & Setup!$AG$7 & \"'!\" & AE418),0) + IF(Setup!$AG$8<>\"\",INDIRECT(\"'\" & Setup!$AG$8 & \"'!\" & AE418),0) + IF(Setup!$AG$9<>\"\",INDIRECT(\"'\" & Setup!$AG$9 & \"'!\" & AE418),0) + IF(Setup!$AG$10<>\"\",INDIRECT(\"'\" & Setup!$AG$10 & \"'!\" & AE418),0) + IF(Setup!$AG$11<>\"\",INDIRECT(\"'\" & Setup!$AG$11 & \"'!\" & AE418),0) + IF(Setup!$AG$12<>\"\",INDIRECT(\"'\" & Setup!$AG$12 & \"'!\" & AE418),0)","v":{"v":0,"d":"0.00"}},"","",{"$f":"IF(Setup!$AH$7<>\"\",INDIRECT(\"'\" & Setup!$AH$7 & \"'!\" & AD418),0) + IF(Setup!$AH$8<>\"\",INDIRECT(\"'\" & Setup!$AH$8 & \"'!\" & AD418),0) + IF(Setup!$AH$9<>\"\",INDIRECT(\"'\" & Setup!$AH$9 & \"'!\" & AD418),0) + IF(Setup!$AH$10<>\"\",INDIRECT(\"'\" & Setup!$AH$10 & \"'!\" & AD418),0) + IF(Setup!$AH$11<>\"\",INDIRECT(\"'\" & Setup!$AH$11 & \"'!\" & AD418),0) + IF(Setup!$AH$12<>\"\",INDIRECT(\"'\" & Setup!$AH$12 & \"'!\" & AD418),0)","v":{"v":0,"d":"0.00"}},{"$f":"IF(Setup!$AH$7<>\"\",INDIRECT(\"'\" & Setup!$AH$7 & \"'!\" & AE418),0) + IF(Setup!$AH$8<>\"\",INDIRECT(\"'\" & Setup!$AH$8 & \"'!\" & AE418),0) + IF(Setup!$AH$9<>\"\",INDIRECT(\"'\" & Setup!$AH$9 & \"'!\" & AE418),0) + IF(Setup!$AH$10<>\"\",INDIRECT(\"'\" & Setup!$AH$10 & \"'!\" & AE418),0) + IF(Setup!$AH$11<>\"\",INDIRECT(\"'\" & Setup!$AH$11 & \"'!\" & AE418),0) + IF(Setup!$AH$12<>\"\",INDIRECT(\"'\" & Setup!$AH$12 & \"'!\" & AE418),0)","v":{"v":0,"d":"0.00"}},"","",{"$f":"IF(Setup!$AI$7<>\"\",INDIRECT(\"'\" & Setup!$AI$7 & \"'!\" & AD418),0) + IF(Setup!$AI$8<>\"\",INDIRECT(\"'\" & Setup!$AI$8 & \"'!\" & AD418),0) + IF(Setup!$AI$9<>\"\",INDIRECT(\"'\" & Setup!$AI$9 & \"'!\" & AD418),0) + IF(Setup!$AI$10<>\"\",INDIRECT(\"'\" & Setup!$AI$10 & \"'!\" & AD418),0) + IF(Setup!$AI$11<>\"\",INDIRECT(\"'\" & Setup!$AI$11 & \"'!\" & AD418),0) + IF(Setup!$AI$12<>\"\",INDIRECT(\"'\" & Setup!$AI$12 & \"'!\" & AD418),0)","v":{"v":0,"d":"0.00"}},{"$f":"IF(Setup!$AI$7<>\"\",INDIRECT(\"'\" & Setup!$AI$7 & \"'!\" & AE418),0) + IF(Setup!$AI$8<>\"\",INDIRECT(\"'\" & Setup!$AI$8 & \"'!\" & AE418),0) + IF(Setup!$AI$9<>\"\",INDIRECT(\"'\" & Setup!$AI$9 & \"'!\" & AE418),0) + IF(Setup!$AI$10<>\"\",INDIRECT(\"'\" & Setup!$AI$10 & \"'!\" & AE418),0) + IF(Setup!$AI$11<>\"\",INDIRECT(\"'\" & Setup!$AI$11 & \"'!\" & AE418),0) + IF(Setup!$AI$12<>\"\",INDIRECT(\"'\" & Setup!$AI$12 & \"'!\" & AE418),0)","v":{"v":0,"d":"0.00"}},"","",{"$f":"IF(Setup!$AJ$7<>\"\",INDIRECT(\"'\" & Setup!$AJ$7 & \"'!\" & AD418),0) + IF(Setup!$AJ$8<>\"\",INDIRECT(\"'\" & Setup!$AJ$8 & \"'!\" & AD418),0) + IF(Setup!$AJ$9<>\"\",INDIRECT(\"'\" & Setup!$AJ$9 & \"'!\" & AD418),0) + IF(Setup!$AJ$10<>\"\",INDIRECT(\"'\" & Setup!$AJ$10 & \"'!\" & AD418),0) + IF(Setup!$AJ$11<>\"\",INDIRECT(\"'\" & Setup!$AJ$11 & \"'!\" & AD418),0) + IF(Setup!$AJ$12<>\"\",INDIRECT(\"'\" & Setup!$AJ$12 & \"'!\" & AD418),0)","v":0},{"$f":"IF(Setup!$AJ$7<>\"\",INDIRECT(\"'\" & Setup!$AJ$7 & \"'!\" & AE418),0) + IF(Setup!$AJ$8<>\"\",INDIRECT(\"'\" & Setup!$AJ$8 & \"'!\" & AE418),0) + IF(Setup!$AJ$9<>\"\",INDIRECT(\"'\" & Setup!$AJ$9 & \"'!\" & AE418),0) + IF(Setup!$AJ$10<>\"\",INDIRECT(\"'\" & Setup!$AJ$10 & \"'!\" & AE418),0) + IF(Setup!$AJ$11<>\"\",INDIRECT(\"'\" & Setup!$AJ$11 & \"'!\" & AE418),0) + IF(Setup!$AJ$12<>\"\",INDIRECT(\"'\" & Setup!$AJ$12 & \"'!\" & AE418),0)","v":0},"","",{"$f":"Planning!H190","v":0},"00","M206","O206","N206",null,null,{"$f":"IF(Setup!$AG$7<>\"\",INDIRECT(\"'\" & Setup!$AG$7 & \"'!\" & AF418),0) + IF(Setup!$AG$8<>\"\",INDIRECT(\"'\" & Setup!$AG$8 & \"'!\" & AF418),0) + IF(Setup!$AG$9<>\"\",INDIRECT(\"'\" & Setup!$AG$9 & \"'!\" & AF418),0) + IF(Setup!$AG$10<>\"\",INDIRECT(\"'\" & Setup!$AG$10 & \"'!\" & AF418),0) + IF(Setup!$AG$11<>\"\",INDIRECT(\"'\" & Setup!$AG$11 & \"'!\" & AF418),0) + IF(Setup!$AG$12<>\"\",INDIRECT(\"'\" & Setup!$AG$12 & \"'!\" & AF418),0)","v":0},{"$f":"IF(Setup!$AH$7<>\"\",INDIRECT(\"'\" & Setup!$AH$7 & \"'!\" & AF418),0) + IF(Setup!$AH$8<>\"\",INDIRECT(\"'\" & Setup!$AH$8 & \"'!\" & AF418),0) + IF(Setup!$AH$9<>\"\",INDIRECT(\"'\" & Setup!$AH$9 & \"'!\" & AF418),0) + IF(Setup!$AH$10<>\"\",INDIRECT(\"'\" & Setup!$AH$10 & \"'!\" & AF418),0) + IF(Setup!$AH$11<>\"\",INDIRECT(\"'\" & Setup!$AH$11 & \"'!\" & AF418),0) + IF(Setup!$AH$12<>\"\",INDIRECT(\"'\" & Setup!$AH$12 & \"'!\" & AF418),0)","v":0},{"$f":"IF(Setup!$AI$7<>\"\",INDIRECT(\"'\" & Setup!$AI$7 & \"'!\" & AF418),0) + IF(Setup!$AI$8<>\"\",INDIRECT(\"'\" & Setup!$AI$8 & \"'!\" & AF418),0) + IF(Setup!$AI$9<>\"\",INDIRECT(\"'\" & Setup!$AI$9 & \"'!\" & AF418),0) + IF(Setup!$AI$10<>\"\",INDIRECT(\"'\" & Setup!$AI$10 & \"'!\" & AF418),0) + IF(Setup!$AI$11<>\"\",INDIRECT(\"'\" & Setup!$AI$11 & \"'!\" & AF418),0) + IF(Setup!$AI$12<>\"\",INDIRECT(\"'\" & Setup!$AI$12 & \"'!\" & AF418),0)","v":0},{"$f":"IF(Setup!$AJ$7<>\"\",INDIRECT(\"'\" & Setup!$AJ$7 & \"'!\" & AF418),0) + IF(Setup!$AJ$8<>\"\",INDIRECT(\"'\" & Setup!$AJ$8 & \"'!\" & AF418),0) + IF(Setup!$AJ$9<>\"\",INDIRECT(\"'\" & Setup!$AJ$9 & \"'!\" & AF418),0) + IF(Setup!$AJ$10<>\"\",INDIRECT(\"'\" & Setup!$AJ$10 & \"'!\" & AF418),0) + IF(Setup!$AJ$11<>\"\",INDIRECT(\"'\" & Setup!$AJ$11 & \"'!\" & AF418),0) + IF(Setup!$AJ$12<>\"\",INDIRECT(\"'\" & Setup!$AJ$12 & \"'!\" & AF418),0)","v":0},null,"",{"$nulls":30},0,{"$f":"IF(Setup!$AH$7=\"\",0,INDIRECT(\"'\" & Setup!$AH$7 & \"'!\" & AF418))","v":0},{"$f":"IF(Setup!$AI$7=\"\",0,INDIRECT(\"'\" & Setup!$AI$7 & \"'!\" & AF418))","v":0},{"$f":"IF(Setup!$AJ$7=\"\",0,INDIRECT(\"'\" & Setup!$AJ$7 & \"'!\" & AF418))","v":0}]
[{"$f":"Planning!A191","v":"I183"},{"$f":"Planning!B191","v":0},{"$f":"Planning!C191","v":0},{"$f":"Planning!D191","v":0},{"$f":"Planning!E191","v":0},{"$f":"Planning!G191","v":0},0,{"v":0,"d":"0.00"},{"v":0,"d":"0.00"},"","",{"$f":"IF(Setup!$AG$7<>\"\",INDIRECT(\"'\" & Setup!$AG$7 & \"'!\" & AD419),0) + IF(Setup!$AG$8<>\"\",INDIRECT(\"'\" & Setup!$AG$8 & \"'!\" & AD419),0) + IF(Setup!$AG$9<>\"\",INDIRECT(\"'\" & Setup!$AG$9 & \"'!\" & AD419),0) + IF(Setup!$AG$10<>\"\",INDIRECT(\"'\" & Setup!$AG$10 & \"'!\" & AD419),0) + IF(Setup!$AG$11<>\"\",INDIRECT(\"'\" & Setup!$AG$11 & \"'!\" & AD419),0) + IF(Setup!$AG$12<>\"\",INDIRECT(\"'\" & Setup!$AG$12 & \"'!\" & AD419),0)","v":{"v":0,"d":"0.00"}},{"$f":"IF(Setup!$AG$7<>\"\",INDIRECT(\"'\" & Setup!$AG$7 & \"'!\" & AE419),0) + IF(Setup!$AG$8<>\"\",INDIRECT(\"'\" & Setup!$AG$8 & \"'!\" & AE419),0) + IF(Setup!$AG$9<>\"\",INDIRECT(\"'\" & Setup!$AG$9 & \"'!\" & AE419),0) + IF(Setup!$AG$10<>\"\",INDIRECT(\"'\" & Setup!$AG$10 & \"'!\" & AE419),0) + IF(Setup!$AG$11<>\"\",INDIRECT(\"'\" & Setup!$AG$11 & \"'!\" & AE419),0) + IF(Setup!$AG$12<>\"\",INDIRECT(\"'\" & Setup!$AG$12 & \"'!\" & AE419),0)","v":{"v":0,"d":"0.00"}},"","",{"$f":"IF(Setup!$AH$7<>\"\",INDIRECT(\"'\" & Setup!$AH$7 & \"'!\" & AD419),0) + IF(Setup!$AH$8<>\"\",INDIRECT(\"'\" & Setup!$AH$8 & \"'!\" & AD419),0) + IF(Setup!$AH$9<>\"\",INDIRECT(\"'\" & Setup!$AH$9 & \"'!\" & AD419),0) + IF(Setup!$AH$10<>\"\",INDIRECT(\"'\" & Setup!$AH$10 & \"'!\" & AD419),0) + IF(Setup!$AH$11<>\"\",INDIRECT(\"'\" & Setup!$AH$11 & \"'!\" & AD419),0) + IF(Setup!$AH$12<>\"\",INDIRECT(\"'\" & Setup!$AH$12 & \"'!\" & AD419),0)","v":{"v":0,"d":"0.00"}},{"$f":"IF(Setup!$AH$7<>\"\",INDIRECT(\"'\" & Setup!$AH$7 & \"'!\" & AE419),0) + IF(Setup!$AH$8<>\"\",INDIRECT(\"'\" & Setup!$AH$8 & \"'!\" & AE419),0) + IF(Setup!$AH$9<>\"\",INDIRECT(\"'\" & Setup!$AH$9 & \"'!\" & AE419),0) + IF(Setup!$AH$10<>\"\",INDIRECT(\"'\" & Setup!$AH$10 & \"'!\" & AE419),0) + IF(Setup!$AH$11<>\"\",INDIRECT(\"'\" & Setup!$AH$11 & \"'!\" & AE419),0) + IF(Setup!$AH$12<>\"\",INDIRECT(\"'\" & Setup!$AH$12 & \"'!\" & AE419),0)","v":{"v":0,"d":"0.00"}},"","",{"$f":"IF(Setup!$AI$7<>\"\",INDIRECT(\"'\" & Setup!$AI$7 & \"'!\" & AD419),0) + IF(Setup!$AI$8<>\"\",INDIRECT(\"'\" & Setup!$AI$8 & \"'!\" & AD419),0) + IF(Setup!$AI$9<>\"\",INDIRECT(\"'\" & Setup!$AI$9 & \"'!\" & AD419),0) + IF(Setup!$AI$10<>\"\",INDIRECT(\"'\" & Setup!$AI$10 & \"'!\" & AD419),0) + IF(Setup!$AI$11<>\"\",INDIRECT(\"'\" & Setup!$AI$11 & \"'!\" & AD419),0) + IF(Setup!$AI$12<>\"\",INDIRECT(\"'\" & Setup!$AI$12 & \"'!\" & AD419),0)","v":{"v":0,"d":"0.00"}},{"$f":"IF(Setup!$AI$7<>\"\",INDIRECT(\"'\" & Setup!$AI$7 & \"'!\" & AE419),0) + IF(Setup!$AI$8<>\"\",INDIRECT(\"'\" & Setup!$AI$8 & \"'!\" & AE419),0) + IF(Setup!$AI$9<>\"\",INDIRECT(\"'\" & Setup!$AI$9 & \"'!\" & AE419),0) + IF(Setup!$AI$10<>\"\",INDIRECT(\"'\" & Setup!$AI$10 & \"'!\" & AE419),0) + IF(Setup!$AI$11<>\"\",INDIRECT(\"'\" & Setup!$AI$11 & \"'!\" & AE419),0) + IF(Setup!$AI$12<>\"\",INDIRECT(\"'\" & Setup!$AI$12 & \"'!\" & AE419),0)","v":{"v":0,"d":"0.00"}},"","",{"$f":"IF(Setup!$AJ$7<>\"\",INDIRECT(\"'\" & Setup!$AJ$7 & \"'!\" & AD419),0) + IF(Setup!$AJ$8<>\"\",INDIRECT(\"'\" & Setup!$AJ$8 & \"'!\" & AD419),0) + IF(Setup!$AJ$9<>\"\",INDIRECT(\"'\" & Setup!$AJ$9 & \"'!\" & AD419),0) + IF(Setup!$AJ$10<>\"\",INDIRECT(\"'\" & Setup!$AJ$10 & \"'!\" & AD419),0) + IF(Setup!$AJ$11<>\"\",INDIRECT(\"'\" & Setup!$AJ$11 & \"'!\" & AD419),0) + IF(Setup!$AJ$12<>\"\",INDIRECT(\"'\" & Setup!$AJ$12 & \"'!\" & AD419),0)","v":0},{"$f":"IF(Setup!$AJ$7<>\"\",INDIRECT(\"'\" & Setup!$AJ$7 & \"'!\" & AE419),0) + IF(Setup!$AJ$8<>\"\",INDIRECT(\"'\" & Setup!$AJ$8 & \"'!\" & AE419),0) + IF(Setup!$AJ$9<>\"\",INDIRECT(\"'\" & Setup!$AJ$9 & \"'!\" & AE419),0) + IF(Setup!$AJ$10<>\"\",INDIRECT(\"'\" & Setup!$AJ$10 & \"'!\" & AE419),0) + IF(Setup!$AJ$11<>\"\",INDIRECT(\"'\" & Setup!$AJ$11 & \"'!\" & AE419),0) + IF(Setup!$AJ$12<>\"\",INDIRECT(\"'\" & Setup!$AJ$12 & \"'!\" & AE419),0)","v":0},"","",{"$f":"Planning!H191","v":0},"00","M207","O207","N207",null,null,{"$f":"IF(Setup!$AG$7<>\"\",INDIRECT(\"'\" & Setup!$AG$7 & \"'!\" & AF419),0) + IF(Setup!$AG$8<>\"\",INDIRECT(\"'\" & Setup!$AG$8 & \"'!\" & AF419),0) + IF(Setup!$AG$9<>\"\",INDIRECT(\"'\" & Setup!$AG$9 & \"'!\" & AF419),0) + IF(Setup!$AG$10<>\"\",INDIRECT(\"'\" & Setup!$AG$10 & \"'!\" & AF419),0) + IF(Setup!$AG$11<>\"\",INDIRECT(\"'\" & Setup!$AG$11 & \"'!\" & AF419),0) + IF(Setup!$AG$12<>\"\",INDIRECT(\"'\" & Setup!$AG$12 & \"'!\" & AF419),0)","v":0},{"$f":"IF(Setup!$AH$7<>\"\",INDIRECT(\"'\" & Setup!$AH$7 & \"'!\" & AF419),0) + IF(Setup!$AH$8<>\"\",INDIRECT(\"'\" & Setup!$AH$8 & \"'!\" & AF419),0) + IF(Setup!$AH$9<>\"\",INDIRECT(\"'\" & Setup!$AH$9 & \"'!\" & AF419),0) + IF(Setup!$AH$10<>\"\",INDIRECT(\"'\" & Setup!$AH$10 & \"'!\" & AF419),0) + IF(Setup!$AH$11<>\"\",INDIRECT(\"'\" & Setup!$AH$11 & \"'!\" & AF419),0) + IF(Setup!$AH$12<>\"\",INDIRECT(\"'\" & Setup!$AH$12 & \"'!\" & AF419),0)","v":0},{"$f":"IF(Setup!$AI$7<>\"\",INDIRECT(\"'\" & Setup!$AI$7 & \"'!\" & AF419),0) + IF(Setup!$AI$8<>\"\",INDIRECT(\"'\" & Setup!$AI$8 & \"'!\" & AF419),0) + IF(Setup!$AI$9<>\"\",INDIRECT(\"'\" & Setup!$AI$9 & \"'!\" & AF419),0) + IF(Setup!$AI$10<>\"\",INDIRECT(\"'\" & Setup!$AI$10 & \"'!\" & AF419),0) + IF(Setup!$AI$11<>\"\",INDIRECT(\"'\" & Setup!$AI$11 & \"'!\" & AF419),0) + IF(Setup!$AI$12<>\"\",INDIRECT(\"'\" & Setup!$AI$12 & \"'!\" & AF419),0)","v":0},{"$f":"IF(Setup!$AJ$7<>\"\",INDIRECT(\"'\" & Setup!$AJ$7 & \"'!\" & AF419),0) + IF(Setup!$AJ$8<>\"\",INDIRECT(\"'\" & Setup!$AJ$8 & \"'!\" & AF419),0) + IF(Setup!$AJ$9<>\"\",INDIRECT(\"'\" & Setup!$AJ$9 & \"'!\" & AF419),0) + IF(Setup!$AJ$10<>\"\",INDIRECT(\"'\" & Setup!$AJ$10 & \"'!\" & AF419),0) + IF(Setup!$AJ$11<>\"\",INDIRECT(\"'\" & Setup!$AJ$11 & \"'!\" & AF419),0) + IF(Setup!$AJ$12<>\"\",INDIRECT(\"'\" & Setup!$AJ$12 & \"'!\" & AF419),0)","v":0},null,"",{"$nulls":30},0,{"$f":"IF(Setup!$AH$7=\"\",0,INDIRECT(\"'\" & Setup!$AH$7 & \"'!\" & AF419))","v":0},{"$f":"IF(Setup!$AI$7=\"\",0,INDIRECT(\"'\" & Setup!$AI$7 & \"'!\" & AF419))","v":0},{"$f":"IF(Setup!$AJ$7=\"\",0,INDIRECT(\"'\" & Setup!$AJ$7 & \"'!\" & AF419))","v":0}]
[{"$f":"Planning!A192","v":"I184"},{"$f":"Planning!B192","v":0},{"$f":"Planning!C192","v":0},{"$f":"Planning!D192","v":0},{"$f":"Planning!E192","v":0},{"$f":"Planning!G192","v":0},0,{"v":0,"d":"0.00"},{"v":0,"d":"0.00"},"","",{"$f":"IF(Setup!$AG$7<>\"\",INDIRECT(\"'\" & Setup!$AG$7 & \"'!\" & AD420),0) + IF(Setup!$AG$8<>\"\",INDIRECT(\"'\" & Setup!$AG$8 & \"'!\" & AD420),0) + IF(Setup!$AG$9<>\"\",INDIRECT(\"'\" & Setup!$AG$9 & \"'!\" & AD420),0) + IF(Setup!$AG$10<>\"\",INDIRECT(\"'\" & Setup!$AG$10 & \"'!\" & AD420),0) + IF(Setup!$AG$11<>\"\",INDIRECT(\"'\" & Setup!$AG$11 & \"'!\" & AD420),0) + IF(Setup!$AG$12<>\"\",INDIRECT(\"'\" & Setup!$AG$12 & \"'!\" & AD420),0)","v":{"v":0,"d":"0.00"}},{"$f":"IF(Setup!$AG$7<>\"\",INDIRECT(\"'\" & Setup!$AG$7 & \"'!\" & AE420),0) + IF(Setup!$AG$8<>\"\",INDIRECT(\"'\" & Setup!$AG$8 & \"'!\" & AE420),0) + IF(Setup!$AG$9<>\"\",INDIRECT(\"'\" & Setup!$AG$9 & \"'!\" & AE420),0) + IF(Setup!$AG$10<>\"\",INDIRECT(\"'\" & Setup!$AG$10 & \"'!\" & AE420),0) + IF(Setup!$AG$11<>\"\",INDIRECT(\"'\" & Setup!$AG$11 & \"'!\" & AE420),0) + IF(Setup!$AG$12<>\"\",INDIRECT(\"'\" & Setup!$AG$12 & \"'!\" & AE420),0)","v":{"v":0,"d":"0.00"}},"","",{"$f":"IF(Setup!$AH$7<>\"\",INDIRECT(\"'\" & Setup!$AH$7 & \"'!\" & AD420),0) + IF(Setup!$AH$8<>\"\",INDIRECT(\"'\" & Setup!$AH$8 & \"'!\" & AD420),0) + IF(Setup!$AH$9<>\"\",INDIRECT(\"'\" & Setup!$AH$9 & \"'!\" & AD420),0) + IF(Setup!$AH$10<>\"\",INDIRECT(\"'\" & Setup!$AH$10 & \"'!\" & AD420),0) + IF(Setup!$AH$11<>\"\",INDIRECT(\"'\" & Setup!$AH$11 & \"'!\" & AD420),0) + IF(Setup!$AH$12<>\"\",INDIRECT(\"'\" & Setup!$AH$12 & \"'!\" & AD420),0)","v":{"v":0,"d":"0.00"}},{"$f":"IF(Setup!$AH$7<>\"\",INDIRECT(\"'\" & Setup!$AH$7 & \"'!\" & AE420),0) + IF(Setup!$AH$8<>\"\",INDIRECT(\"'\" & Setup!$AH$8 & \"'!\" & AE420),0) + IF(Setup!$AH$9<>\"\",INDIRECT(\"'\" & Setup!$AH$9 & \"'!\" & AE420),0) + IF(Setup!$AH$10<>\"\",INDIRECT(\"'\" & Setup!$AH$10 & \"'!\" & AE420),0) + IF(Setup!$AH$11<>\"\",INDIRECT(\"'\" & Setup!$AH$11 & \"'!\" & AE420),0) + IF(Setup!$AH$12<>\"\",INDIRECT(\"'\" & Setup!$AH$12 & \"'!\" & AE420),0)","v":{"v":0,"d":"0.00"}},"","",{"$f":"IF(Setup!$AI$7<>\"\",INDIRECT(\"'\" & Setup!$AI$7 & \"'!\" & AD420),0) + IF(Setup!$AI$8<>\"\",INDIRECT(\"'\" & Setup!$AI$8 & \"'!\" & AD420),0) + IF(Setup!$AI$9<>\"\",INDIRECT(\"'\" & Setup!$AI$9 & \"'!\" & AD420),0) + IF(Setup!$AI$10<>\"\",INDIRECT(\"'\" & Setup!$AI$10 & \"'!\" & AD420),0) + IF(Setup!$AI$11<>\"\",INDIRECT(\"'\" & Setup!$AI$11 & \"'!\" & AD420),0) + IF(Setup!$AI$12<>\"\",INDIRECT(\"'\" & Setup!$AI$12 & \"'!\" & AD420),0)","v":{"v":0,"d":"0.00"}},{"$f":"IF(Setup!$AI$7<>\"\",INDIRECT(\"'\" & Setup!$AI$7 & \"'!\" & AE420),0) + IF(Setup!$AI$8<>\"\",INDIRECT(\"'\" & Setup!$AI$8 & \"'!\" & AE420),0) + IF(Setup!$AI$9<>\"\",INDIRECT(\"'\" & Setup!$AI$9 & \"'!\" & AE420),0) + IF(Setup!$AI$10<>\"\",INDIRECT(\"'\" & Setup!$AI$10 & \"'!\" & AE420),0) + IF(Setup!$AI$11<>\"\",INDIRECT(\"'\" & Setup!$AI$11 & \"'!\" & AE420),0) + IF(Setup!$AI$12<>\"\",INDIRECT(\"'\" & Setup!$AI$12 & \"'!\" & AE420),0)","v":{"v":0,"d":"0.00"}},"","",{"$f":"IF(Setup!$AJ$7<>\"\",INDIRECT(\"'\" & Setup!$AJ$7 & \"'!\" & AD420),0) + IF(Setup!$AJ$8<>\"\",INDIRECT(\"'\" & Setup!$AJ$8 & \"'!\" & AD420),0) + IF(Setup!$AJ$9<>\"\",INDIRECT(\"'\" & Setup!$AJ$9 & \"'!\" & AD420),0) + IF(Setup!$AJ$10<>\"\",INDIRECT(\"'\" & Setup!$AJ$10 & \"'!\" & AD420),0) + IF(Setup!$AJ$11<>\"\",INDIRECT(\"'\" & Setup!$AJ$11 & \"'!\" & AD420),0) + IF(Setup!$AJ$12<>\"\",INDIRECT(\"'\" & Setup!$AJ$12 & \"'!\" & AD420),0)","v":0},{"$f":"IF(Setup!$AJ$7<>\"\",INDIRECT(\"'\" & Setup!$AJ$7 & \"'!\" & AE420),0) + IF(Setup!$AJ$8<>\"\",INDIRECT(\"'\" & Setup!$AJ$8 & \"'!\" & AE420),0) + IF(Setup!$AJ$9<>\"\",INDIRECT(\"'\" & Setup!$AJ$9 & \"'!\" & AE420),0) + IF(Setup!$AJ$10<>\"\",INDIRECT(\"'\" & Setup!$AJ$10 & \"'!\" & AE420),0) + IF(Setup!$AJ$11<>\"\",INDIRECT(\"'\" & Setup!$AJ$11 & \"'!\" & AE420),0) + IF(Setup!$AJ$12<>\"\",INDIRECT(\"'\" & Setup!$AJ$12 & \"'!\" & AE420),0)","v":0},"","",{"$f":"Planning!H192","v":0},"00","M208","O208","N208",null,null,{"$f":"IF(Setup!$AG$7<>\"\",INDIRECT(\"'\" & Setup!$AG$7 & \"'!\" & AF420),0) + IF(Setup!$AG$8<>\"\",INDIRECT(\"'\" & Setup!$AG$8 & \"'!\" & AF420),0) + IF(Setup!$AG$9<>\"\",INDIRECT(\"'\" & Setup!$AG$9 & \"'!\" & AF420),0) + IF(Setup!$AG$10<>\"\",INDIRECT(\"'\" & Setup!$AG$10 & \"'!\" & AF420),0) + IF(Setup!$AG$11<>\"\",INDIRECT(\"'\" & Setup!$AG$11 & \"'!\" & AF420),0) + IF(Setup!$AG$12<>\"\",INDIRECT(\"'\" & Setup!$AG$12 & \"'!\" & AF420),0)","v":0},{"$f":"IF(Setup!$AH$7<>\"\",INDIRECT(\"'\" & Setup!$AH$7 & \"'!\" & AF420),0) + IF(Setup!$AH$8<>\"\",INDIRECT(\"'\" & Setup!$AH$8 & \"'!\" & AF420),0) + IF(Setup!$AH$9<>\"\",INDIRECT(\"'\" & Setup!$AH$9 & \"'!\" & AF420),0) + IF(Setup!$AH$10<>\"\",INDIRECT(\"'\" & Setup!$AH$10 & \"'!\" & AF420),0) + IF(Setup!$AH$11<>\"\",INDIRECT(\"'\" & Setup!$AH$11 & \"'!\" & AF420),0) + IF(Setup!$AH$12<>\"\",INDIRECT(\"'\" & Setup!$AH$12 & \"'!\" & AF420),0)","v":0},{"$f":"IF(Setup!$AI$7<>\"\",INDIRECT(\"'\" & Setup!$AI$7 & \"'!\" & AF420),0) + IF(Setup!$AI$8<>\"\",INDIRECT(\"'\" & Setup!$AI$8 & \"'!\" & AF420),0) + IF(Setup!$AI$9<>\"\",INDIRECT(\"'\" & Setup!$AI$9 & \"'!\" & AF420),0) + IF(Setup!$AI$10<>\"\",INDIRECT(\"'\" & Setup!$AI$10 & \"'!\" & AF420),0) + IF(Setup!$AI$11<>\"\",INDIRECT(\"'\" & Setup!$AI$11 & \"'!\" & AF420),0) + IF(Setup!$AI$12<>\"\",INDIRECT(\"'\" & Setup!$AI$12 & \"'!\" & AF420),0)","v":0},{"$f":"IF(Setup!$AJ$7<>\"\",INDIRECT(\"'\" & Setup!$AJ$7 & \"'!\" & AF420),0) + IF(Setup!$AJ$8<>\"\",INDIRECT(\"'\" & Setup!$AJ$8 & \"'!\" & AF420),0) + IF(Setup!$AJ$9<>\"\",INDIRECT(\"'\" & Setup!$AJ$9 & \"'!\" & AF420),0) + IF(Setup!$AJ$10<>\"\",INDIRECT(\"'\" & Setup!$AJ$10 & \"'!\" & AF420),0) + IF(Setup!$AJ$11<>\"\",INDIRECT(\"'\" & Setup!$AJ$11 & \"'!\" & AF420),0) + IF(Setup!$AJ$12<>\"\",INDIRECT(\"'\" & Setup!$AJ$12 & \"'!\" & AF420),0)","v":0},null,"",{"$nulls":30},0,{"$f":"IF(Setup!$AH$7=\"\",0,INDIRECT(\"'\" & Setup!$AH$7 & \"'!\" & AF420))","v":0},{"$f":"IF(Setup!$AI$7=\"\",0,INDIRECT(\"'\" & Setup!$AI$7 & \"'!\" & AF420))","v":0},{"$f":"IF(Setup!$AJ$7=\"\",0,INDIRECT(\"'\" & Setup!$AJ$7 & \"'!\" & AF420))","v":0}]
[{"$f":"Planning!A193","v":"I185"},{"$f":"Planning!B193","v":0},{"$f":"Planning!C193","v":0},{"$f":"Planning!D193","v":0},{"$f":"Planning!E193","v":0},{"$f":"Planning!G193","v":0},0,{"v":0,"d":"0.00"},{"v":0,"d":"0.00"},"","",{"$f":"IF(Setup!$AG$7<>\"\",INDIRECT(\"'\" & Setup!$AG$7 & \"'!\" & AD421),0) + IF(Setup!$AG$8<>\"\",INDIRECT(\"'\" & Setup!$AG$8 & \"'!\" & AD421),0) + IF(Setup!$AG$9<>\"\",INDIRECT(\"'\" & Setup!$AG$9 & \"'!\" & AD421),0) + IF(Setup!$AG$10<>\"\",INDIRECT(\"'\" & Setup!$AG$10 & \"'!\" & AD421),0) + IF(Setup!$AG$11<>\"\",INDIRECT(\"'\" & Setup!$AG$11 & \"'!\" & AD421),0) + IF(Setup!$AG$12<>\"\",INDIRECT(\"'\" & Setup!$AG$12 & \"'!\" & AD421),0)","v":{"v":0,"d":"0.00"}},{"$f":"IF(Setup!$AG$7<>\"\",INDIRECT(\"'\" & Setup!$AG$7 & \"'!\" & AE421),0) + IF(Setup!$AG$8<>\"\",INDIRECT(\"'\" & Setup!$AG$8 & \"'!\" & AE421),0) + IF(Setup!$AG$9<>\"\",INDIRECT(\"'\" & Setup!$AG$9 & \"'!\" & AE421),0) + IF(Setup!$AG$10<>\"\",INDIRECT(\"'\" & Setup!$AG$10 & \"'!\" & AE421),0) + IF(Setup!$AG$11<>\"\",INDIRECT(\"'\" & Setup!$AG$11 & \"'!\" & AE421),0) + IF(Setup!$AG$12<>\"\",INDIRECT(\"'\" & Setup!$AG$12 & \"'!\" & AE421),0)","v":{"v":0,"d":"0.00"}},"","",{"$f":"IF(Setup!$AH$7<>\"\",INDIRECT(\"'\" & Setup!$AH$7 & \"'!\" & AD421),0) + IF(Setup!$AH$8<>\"\",INDIRECT(\"'\" & Setup!$AH$8 & \"'!\" & AD421),0) + IF(Setup!$AH$9<>\"\",INDIRECT(\"'\" & Setup!$AH$9 & \"'!\" & AD421),0) + IF(Setup!$AH$10<>\"\",INDIRECT(\"'\" & Setup!$AH$10 & \"'!\" & AD421),0) + IF(Setup!$AH$11<>\"\",INDIRECT(\"'\" & Setup!$AH$11 & \"'!\" & AD421),0) + IF(Setup!$AH$12<>\"\",INDIRECT(\"'\" & Setup!$AH$12 & \"'!\" & AD421),0)","v":{"v":0,"d":"0.00"}},{"$f":"IF(Setup!$AH$7<>\"\",INDIRECT(\"'\" & Setup!$AH$7 & \"'!\" & AE421),0) + IF(Setup!$AH$8<>\"\",INDIRECT(\"'\" & Setup!$AH$8 & \"'!\" & AE421),0) + IF(Setup!$AH$9<>\"\",INDIRECT(\"'\" & Setup!$AH$9 & \"'!\" & AE421),0) + IF(Setup!$AH$10<>\"\",INDIRECT(\"'\" & Setup!$AH$10 & \"'!\" & AE421),0) + IF(Setup!$AH$11<>\"\",INDIRECT(\"'\" & Setup!$AH$11 & \"'!\" & AE421),0) + IF(Setup!$AH$12<>\"\",INDIRECT(\"'\" & Setup!$AH$12 & \"'!\" & AE421),0)","v":{"v":0,"d":"0.00"}},"","",{"$f":"IF(Setup!$AI$7<>\"\",INDIRECT(\"'\" & Setup!$AI$7 & \"'!\" & AD421),0) + IF(Setup!$AI$8<>\"\",INDIRECT(\"'\" & Setup!$AI$8 & \"'!\" & AD421),0) + IF(Setup!$AI$9<>\"\",INDIRECT(\"'\" & Setup!$AI$9 & \"'!\" & AD421),0) + IF(Setup!$AI$10<>\"\",INDIRECT(\"'\" & Setup!$AI$10 & \"'!\" & AD421),0) + IF(Setup!$AI$11<>\"\",INDIRECT(\"'\" & Setup!$AI$11 & \"'!\" & AD421),0) + IF(Setup!$AI$12<>\"\",INDIRECT(\"'\" & Setup!$AI$12 & \"'!\" & AD421),0)","v":{"v":0,"d":"0.00"}},{"$f":"IF(Setup!$AI$7<>\"\",INDIRECT(\"'\" & Setup!$AI$7 & \"'!\" & AE421),0) + IF(Setup!$AI$8<>\"\",INDIRECT(\"'\" & Setup!$AI$8 & \"'!\" & AE421),0) + IF(Setup!$AI$9<>\"\",INDIRECT(\"'\" & Setup!$AI$9 & \"'!\" & AE421),0) + IF(Setup!$AI$10<>\"\",INDIRECT(\"'\" & Setup!$AI$10 & \"'!\" & AE421),0) + IF(Setup!$AI$11<>\"\",INDIRECT(\"'\" & Setup!$AI$11 & \"'!\" & AE421),0) + IF(Setup!$AI$12<>\"\",INDIRECT(\"'\" & Setup!$AI$12 & \"'!\" & AE421),0)","v":{"v":0,"d":"0.00"}},"","",{"$f":"IF(Setup!$AJ$7<>\"\",INDIRECT(\"'\" & Setup!$AJ$7 & \"'!\" & AD421),0) + IF(Setup!$AJ$8<>\"\",INDIRECT(\"'\" & Setup!$AJ$8 & \"'!\" & AD421),0) + IF(Setup!$AJ$9<>\"\",INDIRECT(\"'\" & Setup!$AJ$9 & \"'!\" & AD421),0) + IF(Setup!$AJ$10<>\"\",INDIRECT(\"'\" & Setup!$AJ$10 & \"'!\" & AD421),0) + IF(Setup!$AJ$11<>\"\",INDIRECT(\"'\" & Setup!$AJ$11 & \"'!\" & AD421),0) + IF(Setup!$AJ$12<>\"\",INDIRECT(\"'\" & Setup!$AJ$12 & \"'!\" & AD421),0)","v":0},{"$f":"IF(Setup!$AJ$7<>\"\",INDIRECT(\"'\" & Setup!$AJ$7 & \"'!\" & AE421),0) + IF(Setup!$AJ$8<>\"\",INDIRECT(\"'\" & Setup!$AJ$8 & \"'!\" & AE421),0) + IF(Setup!$AJ$9<>\"\",INDIRECT(\"'\" & Setup!$AJ$9 & \"'!\" & AE421),0) + IF(Setup!$AJ$10<>\"\",INDIRECT(\"'\" & Setup!$AJ$10 & \"'!\" & AE421),0) + IF(Setup!$AJ$11<>\"\",INDIRECT(\"'\" & Setup!$AJ$11 & \"'!\" & AE421),0) + IF(Setup!$AJ$12<>\"\",INDIRECT(\"'\" & Setup!$AJ$12 & \"'!\" & AE421),0)","v":0},"","",{"$f":"Planning!H193","v":0},"00","M209","O209","N209",null,null,{"$f":"IF(Setup!$AG$7<>\"\",INDIRECT(\"'\" & Setup!$AG$7 & \"'!\" & AF421),0) + IF(Setup!$AG$8<>\"\",INDIRECT(\"'\" & Setup!$AG$8 & \"'!\" & AF421),0) + IF(Setup!$AG$9<>\"\",INDIRECT(\"'\" & Setup!$AG$9 & \"'!\" & AF421),0) + IF(Setup!$AG$10<>\"\",INDIRECT(\"'\" & Setup!$AG$10 & \"'!\" & AF421),0) + IF(Setup!$AG$11<>\"\",INDIRECT(\"'\" & Setup!$AG$11 & \"'!\" & AF421),0) + IF(Setup!$AG$12<>\"\",INDIRECT(\"'\" & Setup!$AG$12 & \"'!\" & AF421),0)","v":0},{"$f":"IF(Setup!$AH$7<>\"\",INDIRECT(\"'\" & Setup!$AH$7 & \"'!\" & AF421),0) + IF(Setup!$AH$8<>\"\",INDIRECT(\"'\" & Setup!$AH$8 & \"'!\" & AF421),0) + IF(Setup!$AH$9<>\"\",INDIRECT(\"'\" & Setup!$AH$9 & \"'!\" & AF421),0) + IF(Setup!$AH$10<>\"\",INDIRECT(\"'\" & Setup!$AH$10 & \"'!\" & AF421),0) + IF(Setup!$AH$11<>\"\",INDIRECT(\"'\" & Setup!$AH$11 & \"'!\" & AF421),0) + IF(Setup!$AH$12<>\"\",INDIRECT(\"'\" & Setup!$AH$12 & \"'!\" & AF421),0)","v":0},{"$f":"IF(Setup!$AI$7<>\"\",INDIRECT(\"'\" & Setup!$AI$7 & \"'!\" & AF421),0) + IF(Setup!$AI$8<>\"\",INDIRECT(\"'\" & Setup!$AI$8 & \"'!\" & AF421),0) + IF(Setup!$AI$9<>\"\",INDIRECT(\"'\" & Setup!$AI$9 & \"'!\" & AF421),0) + IF(Setup!$AI$10<>\"\",INDIRECT(\"'\" & Setup!$AI$10 & \"'!\" & AF421),0) + IF(Setup!$AI$11<>\"\",INDIRECT(\"'\" & Setup!$AI$11 & \"'!\" & AF421),0) + IF(Setup!$AI$12<>\"\",INDIRECT(\"'\" & Setup!$AI$12 & \"'!\" & AF421),0)","v":0},{"$f":"IF(Setup!$AJ$7<>\"\",INDIRECT(\"'\" & Setup!$AJ$7 & \"'!\" & AF421),0) + IF(Setup!$AJ$8<>\"\",INDIRECT(\"'\" & Setup!$AJ$8 & \"'!\" & AF421),0) + IF(Setup!$AJ$9<>\"\",INDIRECT(\"'\" & Setup!$AJ$9 & \"'!\" & AF421),0) + IF(Setup!$AJ$10<>\"\",INDIRECT(\"'\" & Setup!$AJ$10 & \"'!\" & AF421),0) + IF(Setup!$AJ$11<>\"\",INDIRECT(\"'\" & Setup!$AJ$11 & \"'!\" & AF421),0) + IF(Setup!$AJ$12<>\"\",INDIRECT(\"'\" & Setup!$AJ$12 & \"'!\" & AF421),0)","v":0},null,"",{"$nulls":30},0,{"$f":"IF(Setup!$AH$7=\"\",0,INDIRECT(\"'\" & Setup!$AH$7 & \"'!\" & AF421))","v":0},{"$f":"IF(Setup!$AI$7=\"\",0,INDIRECT(\"'\" & Setup!$AI$7 & \"'!\" & AF421))","v":0},{"$f":"IF(Setup!$AJ$7=\"\",0,INDIRECT(\"'\" & Setup!$AJ$7 & \"'!\" & AF421))","v":0}]
[{"$f":"Planning!A194","v":"I186"},{"$f":"Planning!B194","v":0},{"$f":"Planning!C194","v":0},{"$f":"Planning!D194","v":0},{"$f":"Planning!E194","v":0},{"$f":"Planning!G194","v":0},0,{"v":0,"d":"0.00"},{"v":0,"d":"0.00"},"","",{"$f":"IF(Setup!$AG$7<>\"\",INDIRECT(\"'\" & Setup!$AG$7 & \"'!\" & AD422),0) + IF(Setup!$AG$8<>\"\",INDIRECT(\"'\" & Setup!$AG$8 & \"'!\" & AD422),0) + IF(Setup!$AG$9<>\"\",INDIRECT(\"'\" & Setup!$AG$9 & \"'!\" & AD422),0) + IF(Setup!$AG$10<>\"\",INDIRECT(\"'\" & Setup!$AG$10 & \"'!\" & AD422),0) + IF(Setup!$AG$11<>\"\",INDIRECT(\"'\" & Setup!$AG$11 & \"'!\" & AD422),0) + IF(Setup!$AG$12<>\"\",INDIRECT(\"'\" & Setup!$AG$12 & \"'!\" & AD422),0)","v":{"v":0,"d":"0.00"}},{"$f":"IF(Setup!$AG$7<>\"\",INDIRECT(\"'\" & Setup!$AG$7 & \"'!\" & AE422),0) + IF(Setup!$AG$8<>\"\",INDIRECT(\"'\" & Setup!$AG$8 & \"'!\" & AE422),0) + IF(Setup!$AG$9<>\"\",INDIRECT(\"'\" & Setup!$AG$9 & \"'!\" & AE422),0) + IF(Setup!$AG$10<>\"\",INDIRECT(\"'\" & Setup!$AG$10 & \"'!\" & AE422),0) + IF(Setup!$AG$11<>\"\",INDIRECT(\"'\" & Setup!$AG$11 & \"'!\" & AE422),0) + IF(Setup!$AG$12<>\"\",INDIRECT(\"'\" & Setup!$AG$12 & \"'!\" & AE422),0)","v":{"v":0,"d":"0.00"}},"","",{"$f":"IF(Setup!$AH$7<>\"\",INDIRECT(\"'\" & Setup!$AH$7 & \"'!\" & AD422),0) + IF(Setup!$AH$8<>\"\",INDIRECT(\"'\" & Setup!$AH$8 & \"'!\" & AD422),0) + IF(Setup!$AH$9<>\"\",INDIRECT(\"'\" & Setup!$AH$9 & \"'!\" & AD422),0) + IF(Setup!$AH$10<>\"\",INDIRECT(\"'\" & Setup!$AH$10 & \"'!\" & AD422),0) + IF(Setup!$AH$11<>\"\",INDIRECT(\"'\" & Setup!$AH$11 & \"'!\" & AD422),0) + IF(Setup!$AH$12<>\"\",INDIRECT(\"'\" & Setup!$AH$12 & \"'!\" & AD422),0)","v":{"v":0,"d":"0.00"}},{"$f":"IF(Setup!$AH$7<>\"\",INDIRECT(\"'\" & Setup!$AH$7 & \"'!\" & AE422),0) + IF(Setup!$AH$8<>\"\",INDIRECT(\"'\" & Setup!$AH$8 & \"'!\" & AE422),0) + IF(Setup!$AH$9<>\"\",INDIRECT(\"'\" & Setup!$AH$9 & \"'!\" & AE422),0) + IF(Setup!$AH$10<>\"\",INDIRECT(\"'\" & Setup!$AH$10 & \"'!\" & AE422),0) + IF(Setup!$AH$11<>\"\",INDIRECT(\"'\" & Setup!$AH$11 & \"'!\" & AE422),0) + IF(Setup!$AH$12<>\"\",INDIRECT(\"'\" & Setup!$AH$12 & \"'!\" & AE422),0)","v":{"v":0,"d":"0.00"}},"","",{"$f":"IF(Setup!$AI$7<>\"\",INDIRECT(\"'\" & Setup!$AI$7 & \"'!\" & AD422),0) + IF(Setup!$AI$8<>\"\",INDIRECT(\"'\" & Setup!$AI$8 & \"'!\" & AD422),0) + IF(Setup!$AI$9<>\"\",INDIRECT(\"'\" & Setup!$AI$9 & \"'!\" & AD422),0) + IF(Setup!$AI$10<>\"\",INDIRECT(\"'\" & Setup!$AI$10 & \"'!\" & AD422),0) + IF(Setup!$AI$11<>\"\",INDIRECT(\"'\" & Setup!$AI$11 & \"'!\" & AD422),0) + IF(Setup!$AI$12<>\"\",INDIRECT(\"'\" & Setup!$AI$12 & \"'!\" & AD422),0)","v":{"v":0,"d":"0.00"}},{"$f":"IF(Setup!$AI$7<>\"\",INDIRECT(\"'\" & Setup!$AI$7 & \"'!\" & AE422),0) + IF(Setup!$AI$8<>\"\",INDIRECT(\"'\" & Setup!$AI$8 & \"'!\" & AE422),0) + IF(Setup!$AI$9<>\"\",INDIRECT(\"'\" & Setup!$AI$9 & \"'!\" & AE422),0) + IF(Setup!$AI$10<>\"\",INDIRECT(\"'\" & Setup!$AI$10 & \"'!\" & AE422),0) + IF(Setup!$AI$11<>\"\",INDIRECT(\"'\" & Setup!$AI$11 & \"'!\" & AE422),0) + IF(Setup!$AI$12<>\"\",INDIRECT(\"'\" & Setup!$AI$12 & \"'!\" & AE422),0)","v":{"v":0,"d":"0.00"}},"","",{"$f":"IF(Setup!$AJ$7<>\"\",INDIRECT(\"'\" & Setup!$AJ$7 & \"'!\" & AD422),0) + IF(Setup!$AJ$8<>\"\",INDIRECT(\"'\" & Setup!$AJ$8 & \"'!\" & AD422),0) + IF(Setup!$AJ$9<>\"\",INDIRECT(\"'\" & Setup!$AJ$9 & \"'!\" & AD422),0) + IF(Setup!$AJ$10<>\"\",INDIRECT(\"'\" & Setup!$AJ$10 & \"'!\" & AD422),0) + IF(Setup!$AJ$11<>\"\",INDIRECT(\"'\" & Setup!$AJ$11 & \"'!\" & AD422),0) + IF(Setup!$AJ$12<>\"\",INDIRECT(\"'\" & Setup!$AJ$12 & \"'!\" & AD422),0)","v":0},{"$f":"IF(Setup!$AJ$7<>\"\",INDIRECT(\"'\" & Setup!$AJ$7 & \"'!\" & AE422),0) + IF(Setup!$AJ$8<>\"\",INDIRECT(\"'\" & Setup!$AJ$8 & \"'!\" & AE422),0) + IF(Setup!$AJ$9<>\"\",INDIRECT(\"'\" & Setup!$AJ$9 & \"'!\" & AE422),0) + IF(Setup!$AJ$10<>\"\",INDIRECT(\"'\" & Setup!$AJ$10 & \"'!\" & AE422),0) + IF(Setup!$AJ$11<>\"\",INDIRECT(\"'\" & Setup!$AJ$11 & \"'!\" & AE422),0) + IF(Setup!$AJ$12<>\"\",INDIRECT(\"'\" & Setup!$AJ$12 & \"'!\" & AE422),0)","v":0},"","",{"$f":"Planning!H194","v":0},"00","M210","O210","N210",null,null,{"$f":"IF(Setup!$AG$7<>\"\",INDIRECT(\"'\" & Setup!$AG$7 & \"'!\" & AF422),0) + IF(Setup!$AG$8<>\"\",INDIRECT(\"'\" & Setup!$AG$8 & \"'!\" & AF422),0) + IF(Setup!$AG$9<>\"\",INDIRECT(\"'\" & Setup!$AG$9 & \"'!\" & AF422),0) + IF(Setup!$AG$10<>\"\",INDIRECT(\"'\" & Setup!$AG$10 & \"'!\" & AF422),0) + IF(Setup!$AG$11<>\"\",INDIRECT(\"'\" & Setup!$AG$11 & \"'!\" & AF422),0) + IF(Setup!$AG$12<>\"\",INDIRECT(\"'\" & Setup!$AG$12 & \"'!\" & AF422),0)","v":0},{"$f":"IF(Setup!$AH$7<>\"\",INDIRECT(\"'\" & Setup!$AH$7 & \"'!\" & AF422),0) + IF(Setup!$AH$8<>\"\",INDIRECT(\"'\" & Setup!$AH$8 & \"'!\" & AF422),0) + IF(Setup!$AH$9<>\"\",INDIRECT(\"'\" & Setup!$AH$9 & \"'!\" & AF422),0) + IF(Setup!$AH$10<>\"\",INDIRECT(\"'\" & Setup!$AH$10 & \"'!\" & AF422),0) + IF(Setup!$AH$11<>\"\",INDIRECT(\"'\" & Setup!$AH$11 & \"'!\" & AF422),0) + IF(Setup!$AH$12<>\"\",INDIRECT(\"'\" & Setup!$AH$12 & \"'!\" & AF422),0)","v":0},{"$f":"IF(Setup!$AI$7<>\"\",INDIRECT(\"'\" & Setup!$AI$7 & \"'!\" & AF422),0) + IF(Setup!$AI$8<>\"\",INDIRECT(\"'\" & Setup!$AI$8 & \"'!\" & AF422),0) + IF(Setup!$AI$9<>\"\",INDIRECT(\"'\" & Setup!$AI$9 & \"'!\" & AF422),0) + IF(Setup!$AI$10<>\"\",INDIRECT(\"'\" & Setup!$AI$10 & \"'!\" & AF422),0) + IF(Setup!$AI$11<>\"\",INDIRECT(\"'\" & Setup!$AI$11 & \"'!\" & AF422),0) + IF(Setup!$AI$12<>\"\",INDIRECT(\"'\" & Setup!$AI$12 & \"'!\" & AF422),0)","v":0},{"$f":"IF(Setup!$AJ$7<>\"\",INDIRECT(\"'\" & Setup!$AJ$7 & \"'!\" & AF422),0) + IF(Setup!$AJ$8<>\"\",INDIRECT(\"'\" & Setup!$AJ$8 & \"'!\" & AF422),0) + IF(Setup!$AJ$9<>\"\",INDIRECT(\"'\" & Setup!$AJ$9 & \"'!\" & AF422),0) + IF(Setup!$AJ$10<>\"\",INDIRECT(\"'\" & Setup!$AJ$10 & \"'!\" & AF422),0) + IF(Setup!$AJ$11<>\"\",INDIRECT(\"'\" & Setup!$AJ$11 & \"'!\" & AF422),0) + IF(Setup!$AJ$12<>\"\",INDIRECT(\"'\" & Setup!$AJ$12 & \"'!\" & AF422),0)","v":0},null,"",{"$nulls":30},0,{"$f":"IF(Setup!$AH$7=\"\",0,INDIRECT(\"'\" & Setup!$AH$7 & \"'!\" & AF422))","v":0},{"$f":"IF(Setup!$AI$7=\"\",0,INDIRECT(\"'\" & Setup!$AI$7 & \"'!\" & AF422))","v":0},{"$f":"IF(Setup!$AJ$7=\"\",0,INDIRECT(\"'\" & Setup!$AJ$7 & \"'!\" & AF422))","v":0}]
[{"$f":"Planning!A195","v":"I187"},{"$f":"Planning!B195","v":0},{"$f":"Planning!C195","v":0},{"$f":"Planning!D195","v":0},{"$f":"Planning!E195","v":0},{"$f":"Planning!G195","v":0},0,{"v":0,"d":"0.00"},{"v":0,"d":"0.00"},"","",{"$f":"IF(Setup!$AG$7<>\"\",INDIRECT(\"'\" & Setup!$AG$7 & \"'!\" & AD423),0) + IF(Setup!$AG$8<>\"\",INDIRECT(\"'\" & Setup!$AG$8 & \"'!\" & AD423),0) + IF(Setup!$AG$9<>\"\",INDIRECT(\"'\" & Setup!$AG$9 & \"'!\" & AD423),0) + IF(Setup!$AG$10<>\"\",INDIRECT(\"'\" & Setup!$AG$10 & \"'!\" & AD423),0) + IF(Setup!$AG$11<>\"\",INDIRECT(\"'\" & Setup!$AG$11 & \"'!\" & AD423),0) + IF(Setup!$AG$12<>\"\",INDIRECT(\"'\" & Setup!$AG$12 & \"'!\" & AD423),0)","v":{"v":0,"d":"0.00"}},{"$f":"IF(Setup!$AG$7<>\"\",INDIRECT(\"'\" & Setup!$AG$7 & \"'!\" & AE423),0) + IF(Setup!$AG$8<>\"\",INDIRECT(\"'\" & Setup!$AG$8 & \"'!\" & AE423),0) + IF(Setup!$AG$9<>\"\",INDIRECT(\"'\" & Setup!$AG$9 & \"'!\" & AE423),0) + IF(Setup!$AG$10<>\"\",INDIRECT(\"'\" & Setup!$AG$10 & \"'!\" & AE423),0) + IF(Setup!$AG$11<>\"\",INDIRECT(\"'\" & Setup!$AG$11 & \"'!\" & AE423),0) + IF(Setup!$AG$12<>\"\",INDIRECT(\"'\" & Setup!$AG$12 & \"'!\" & AE423),0)","v":{"v":0,"d":"0.00"}},"","",{"$f":"IF(Setup!$AH$7<>\"\",INDIRECT(\"'\" & Setup!$AH$7 & \"'!\" & AD423),0) + IF(Setup!$AH$8<>\"\",INDIRECT(\"'\" & Setup!$AH$8 & \"'!\" & AD423),0) + IF(Setup!$AH$9<>\"\",INDIRECT(\"'\" & Setup!$AH$9 & \"'!\" & AD423),0) + IF(Setup!$AH$10<>\"\",INDIRECT(\"'\" & Setup!$AH$10 & \"'!\" & AD423),0) + IF(Setup!$AH$11<>\"\",INDIRECT(\"'\" & Setup!$AH$11 & \"'!\" & AD423),0) + IF(Setup!$AH$12<>\"\",INDIRECT(\"'\" & Setup!$AH$12 & \"'!\" & AD423),0)","v":{"v":0,"d":"0.00"}},{"$f":"IF(Setup!$AH$7<>\"\",INDIRECT(\"'\" & Setup!$AH$7 & \"'!\" & AE423),0) + IF(Setup!$AH$8<>\"\",INDIRECT(\"'\" & Setup!$AH$8 & \"'!\" & AE423),0) + IF(Setup!$AH$9<>\"\",INDIRECT(\"'\" & Setup!$AH$9 & \"'!\" & AE423),0) + IF(Setup!$AH$10<>\"\",INDIRECT(\"'\" & Setup!$AH$10 & \"'!\" & AE423),0) + IF(Setup!$AH$11<>\"\",INDIRECT(\"'\" & Setup!$AH$11 & \"'!\" & AE423),0) + IF(Setup!$AH$12<>\"\",INDIRECT(\"'\" & Setup!$AH$12 & \"'!\" & AE423),0)","v":{"v":0,"d":"0.00"}},"","",{"$f":"IF(Setup!$AI$7<>\"\",INDIRECT(\"'\" & Setup!$AI$7 & \"'!\" & AD423),0) + IF(Setup!$AI$8<>\"\",INDIRECT(\"'\" & Setup!$AI$8 & \"'!\" & AD423),0) + IF(Setup!$AI$9<>\"\",INDIRECT(\"'\" & Setup!$AI$9 & \"'!\" & AD423),0) + IF(Setup!$AI$10<>\"\",INDIRECT(\"'\" & Setup!$AI$10 & \"'!\" & AD423),0) + IF(Setup!$AI$11<>\"\",INDIRECT(\"'\" & Setup!$AI$11 & \"'!\" & AD423),0) + IF(Setup!$AI$12<>\"\",INDIRECT(\"'\" & Setup!$AI$12 & \"'!\" & AD423),0)","v":{"v":0,"d":"0.00"}},{"$f":"IF(Setup!$AI$7<>\"\",INDIRECT(\"'\" & Setup!$AI$7 & \"'!\" & AE423),0) + IF(Setup!$AI$8<>\"\",INDIRECT(\"'\" & Setup!$AI$8 & \"'!\" & AE423),0) + IF(Setup!$AI$9<>\"\",INDIRECT(\"'\" & Setup!$AI$9 & \"'!\" & AE423),0) + IF(Setup!$AI$10<>\"\",INDIRECT(\"'\" & Setup!$AI$10 & \"'!\" & AE423),0) + IF(Setup!$AI$11<>\"\",INDIRECT(\"'\" & Setup!$AI$11 & \"'!\" & AE423),0) + IF(Setup!$AI$12<>\"\",INDIRECT(\"'\" & Setup!$AI$12 & \"'!\" & AE423),0)","v":{"v":0,"d":"0.00"}},"","",{"$f":"IF(Setup!$AJ$7<>\"\",INDIRECT(\"'\" & Setup!$AJ$7 & \"'!\" & AD423),0) + IF(Setup!$AJ$8<>\"\",INDIRECT(\"'\" & Setup!$AJ$8 & \"'!\" & AD423),0) + IF(Setup!$AJ$9<>\"\",INDIRECT(\"'\" & Setup!$AJ$9 & \"'!\" & AD423),0) + IF(Setup!$AJ$10<>\"\",INDIRECT(\"'\" & Setup!$AJ$10 & \"'!\" & AD423),0) + IF(Setup!$AJ$11<>\"\",INDIRECT(\"'\" & Setup!$AJ$11 & \"'!\" & AD423),0) + IF(Setup!$AJ$12<>\"\",INDIRECT(\"'\" & Setup!$AJ$12 & \"'!\" & AD423),0)","v":0},{"$f":"IF(Setup!$AJ$7<>\"\",INDIRECT(\"'\" & Setup!$AJ$7 & \"'!\" & AE423),0) + IF(Setup!$AJ$8<>\"\",INDIRECT(\"'\" & Setup!$AJ$8 & \"'!\" & AE423),0) + IF(Setup!$AJ$9<>\"\",INDIRECT(\"'\" & Setup!$AJ$9 & \"'!\" & AE423),0) + IF(Setup!$AJ$10<>\"\",INDIRECT(\"'\" & Setup!$AJ$10 & \"'!\" & AE423),0) + IF(Setup!$AJ$11<>\"\",INDIRECT(\"'\" & Setup!$AJ$11 & \"'!\" & AE423),0) + IF(Setup!$AJ$12<>\"\",INDIRECT(\"'\" & Setup!$AJ$12 & \"'!\" & AE423),0)","v":0},"","",{"$f":"Planning!H195","v":0},"00","M211","O211","N211",null,null,{"$f":"IF(Setup!$AG$7<>\"\",INDIRECT(\"'\" & Setup!$AG$7 & \"'!\" & AF423),0) + IF(Setup!$AG$8<>\"\",INDIRECT(\"'\" & Setup!$AG$8 & \"'!\" & AF423),0) + IF(Setup!$AG$9<>\"\",INDIRECT(\"'\" & Setup!$AG$9 & \"'!\" & AF423),0) + IF(Setup!$AG$10<>\"\",INDIRECT(\"'\" & Setup!$AG$10 & \"'!\" & AF423),0) + IF(Setup!$AG$11<>\"\",INDIRECT(\"'\" & Setup!$AG$11 & \"'!\" & AF423),0) + IF(Setup!$AG$12<>\"\",INDIRECT(\"'\" & Setup!$AG$12 & \"'!\" & AF423),0)","v":0},{"$f":"IF(Setup!$AH$7<>\"\",INDIRECT(\"'\" & Setup!$AH$7 & \"'!\" & AF423),0) + IF(Setup!$AH$8<>\"\",INDIRECT(\"'\" & Setup!$AH$8 & \"'!\" & AF423),0) + IF(Setup!$AH$9<>\"\",INDIRECT(\"'\" & Setup!$AH$9 & \"'!\" & AF423),0) + IF(Setup!$AH$10<>\"\",INDIRECT(\"'\" & Setup!$AH$10 & \"'!\" & AF423),0) + IF(Setup!$AH$11<>\"\",INDIRECT(\"'\" & Setup!$AH$11 & \"'!\" & AF423),0) + IF(Setup!$AH$12<>\"\",INDIRECT(\"'\" & Setup!$AH$12 & \"'!\" & AF423),0)","v":0},{"$f":"IF(Setup!$AI$7<>\"\",INDIRECT(\"'\" & Setup!$AI$7 & \"'!\" & AF423),0) + IF(Setup!$AI$8<>\"\",INDIRECT(\"'\" & Setup!$AI$8 & \"'!\" & AF423),0) + IF(Setup!$AI$9<>\"\",INDIRECT(\"'\" & Setup!$AI$9 & \"'!\" & AF423),0) + IF(Setup!$AI$10<>\"\",INDIRECT(\"'\" & Setup!$AI$10 & \"'!\" & AF423),0) + IF(Setup!$AI$11<>\"\",INDIRECT(\"'\" & Setup!$AI$11 & \"'!\" & AF423),0) + IF(Setup!$AI$12<>\"\",INDIRECT(\"'\" & Setup!$AI$12 & \"'!\" & AF423),0)","v":0},{"$f":"IF(Setup!$AJ$7<>\"\",INDIRECT(\"'\" & Setup!$AJ$7 & \"'!\" & AF423),0) + IF(Setup!$AJ$8<>\"\",INDIRECT(\"'\" & Setup!$AJ$8 & \"'!\" & AF423),0) + IF(Setup!$AJ$9<>\"\",INDIRECT(\"'\" & Setup!$AJ$9 & \"'!\" & AF423),0) + IF(Setup!$AJ$10<>\"\",INDIRECT(\"'\" & Setup!$AJ$10 & \"'!\" & AF423),0) + IF(Setup!$AJ$11<>\"\",INDIRECT(\"'\" & Setup!$AJ$11 & \"'!\" & AF423),0) + IF(Setup!$AJ$12<>\"\",INDIRECT(\"'\" & Setup!$AJ$12 & \"'!\" & AF423),0)","v":0},null,"",{"$nulls":30},0,{"$f":"IF(Setup!$AH$7=\"\",0,INDIRECT(\"'\" & Setup!$AH$7 & \"'!\" & AF423))","v":0},{"$f":"IF(Setup!$AI$7=\"\",0,INDIRECT(\"'\" & Setup!$AI$7 & \"'!\" & AF423))","v":0},{"$f":"IF(Setup!$AJ$7=\"\",0,INDIRECT(\"'\" & Setup!$AJ$7 & \"'!\" & AF423))","v":0}]
[{"$f":"Planning!A196","v":"I188"},{"$f":"Planning!B196","v":0},{"$f":"Planning!C196","v":0},{"$f":"Planning!D196","v":0},{"$f":"Planning!E196","v":0},{"$f":"Planning!G196","v":0},0,{"v":0,"d":"0.00"},{"v":0,"d":"0.00"},"","",{"$f":"IF(Setup!$AG$7<>\"\",INDIRECT(\"'\" & Setup!$AG$7 & \"'!\" & AD424),0) + IF(Setup!$AG$8<>\"\",INDIRECT(\"'\" & Setup!$AG$8 & \"'!\" & AD424),0) + IF(Setup!$AG$9<>\"\",INDIRECT(\"'\" & Setup!$AG$9 & \"'!\" & AD424),0) + IF(Setup!$AG$10<>\"\",INDIRECT(\"'\" & Setup!$AG$10 & \"'!\" & AD424),0) + IF(Setup!$AG$11<>\"\",INDIRECT(\"'\" & Setup!$AG$11 & \"'!\" & AD424),0) + IF(Setup!$AG$12<>\"\",INDIRECT(\"'\" & Setup!$AG$12 & \"'!\" & AD424),0)","v":{"v":0,"d":"0.00"}},{"$f":"IF(Setup!$AG$7<>\"\",INDIRECT(\"'\" & Setup!$AG$7 & \"'!\" & AE424),0) + IF(Setup!$AG$8<>\"\",INDIRECT(\"'\" & Setup!$AG$8 & \"'!\" & AE424),0) + IF(Setup!$AG$9<>\"\",INDIRECT(\"'\" & Setup!$AG$9 & \"'!\" & AE424),0) + IF(Setup!$AG$10<>\"\",INDIRECT(\"'\" & Setup!$AG$10 & \"'!\" & AE424),0) + IF(Setup!$AG$11<>\"\",INDIRECT(\"'\" & Setup!$AG$11 & \"'!\" & AE424),0) + IF(Setup!$AG$12<>\"\",INDIRECT(\"'\" & Setup!$AG$12 & \"'!\" & AE424),0)","v":{"v":0,"d":"0.00"}},"","",{"$f":"IF(Setup!$AH$7<>\"\",INDIRECT(\"'\" & Setup!$AH$7 & \"'!\" & AD424),0) + IF(Setup!$AH$8<>\"\",INDIRECT(\"'\" & Setup!$AH$8 & \"'!\" & AD424),0) + IF(Setup!$AH$9<>\"\",INDIRECT(\"'\" & Setup!$AH$9 & \"'!\" & AD424),0) + IF(Setup!$AH$10<>\"\",INDIRECT(\"'\" & Setup!$AH$10 & \"'!\" & AD424),0) + IF(Setup!$AH$11<>\"\",INDIRECT(\"'\" & Setup!$AH$11 & \"'!\" & AD424),0) + IF(Setup!$AH$12<>\"\",INDIRECT(\"'\" & Setup!$AH$12 & \"'!\" & AD424),0)","v":{"v":0,"d":"0.00"}},{"$f":"IF(Setup!$AH$7<>\"\",INDIRECT(\"'\" & Setup!$AH$7 & \"'!\" & AE424),0) + IF(Setup!$AH$8<>\"\",INDIRECT(\"'\" & Setup!$AH$8 & \"'!\" & AE424),0) + IF(Setup!$AH$9<>\"\",INDIRECT(\"'\" & Setup!$AH$9 & \"'!\" & AE424),0) + IF(Setup!$AH$10<>\"\",INDIRECT(\"'\" & Setup!$AH$10 & \"'!\" & AE424),0) + IF(Setup!$AH$11<>\"\",INDIRECT(\"'\" & Setup!$AH$11 & \"'!\" & AE424),0) + IF(Setup!$AH$12<>\"\",INDIRECT(\"'\" & Setup!$AH$12 & \"'!\" & AE424),0)","v":{"v":0,"d":"0.00"}},"","",{"$f":"IF(Setup!$AI$7<>\"\",INDIRECT(\"'\" & Setup!$AI$7 & \"'!\" & AD424),0) + IF(Setup!$AI$8<>\"\",INDIRECT(\"'\" & Setup!$AI$8 & \"'!\" & AD424),0) + IF(Setup!$AI$9<>\"\",INDIRECT(\"'\" & Setup!$AI$9 & \"'!\" & AD424),0) + IF(Setup!$AI$10<>\"\",INDIRECT(\"'\" & Setup!$AI$10 & \"'!\" & AD424),0) + IF(Setup!$AI$11<>\"\",INDIRECT(\"'\" & Setup!$AI$11 & \"'!\" & AD424),0) + IF(Setup!$AI$12<>\"\",INDIRECT(\"'\" & Setup!$AI$12 & \"'!\" & AD424),0)","v":{"v":0,"d":"0.00"}},{"$f":"IF(Setup!$AI$7<>\"\",INDIRECT(\"'\" & Setup!$AI$7 & \"'!\" & AE424),0) + IF(Setup!$AI$8<>\"\",INDIRECT(\"'\" & Setup!$AI$8 & \"'!\" & AE424),0) + IF(Setup!$AI$9<>\"\",INDIRECT(\"'\" & Setup!$AI$9 & \"'!\" & AE424),0) + IF(Setup!$AI$10<>\"\",INDIRECT(\"'\" & Setup!$AI$10 & \"'!\" & AE424),0) + IF(Setup!$AI$11<>\"\",INDIRECT(\"'\" & Setup!$AI$11 & \"'!\" & AE424),0) + IF(Setup!$AI$12<>\"\",INDIRECT(\"'\" & Setup!$AI$12 & \"'!\" & AE424),0)","v":{"v":0,"d":"0.00"}},"","",{"$f":"IF(Setup!$AJ$7<>\"\",INDIRECT(\"'\" & Setup!$AJ$7 & \"'!\" & AD424),0) + IF(Setup!$AJ$8<>\"\",INDIRECT(\"'\" & Setup!$AJ$8 & \"'!\" & AD424),0) + IF(Setup!$AJ$9<>\"\",INDIRECT(\"'\" & Setup!$AJ$9 & \"'!\" & AD424),0) + IF(Setup!$AJ$10<>\"\",INDIRECT(\"'\" & Setup!$AJ$10 & \"'!\" & AD424),0) + IF(Setup!$AJ$11<>\"\",INDIRECT(\"'\" & Setup!$AJ$11 & \"'!\" & AD424),0) + IF(Setup!$AJ$12<>\"\",INDIRECT(\"'\" & Setup!$AJ$12 & \"'!\" & AD424),0)","v":0},{"$f":"IF(Setup!$AJ$7<>\"\",INDIRECT(\"'\" & Setup!$AJ$7 & \"'!\" & AE424),0) + IF(Setup!$AJ$8<>\"\",INDIRECT(\"'\" & Setup!$AJ$8 & \"'!\" & AE424),0) + IF(Setup!$AJ$9<>\"\",INDIRECT(\"'\" & Setup!$AJ$9 & \"'!\" & AE424),0) + IF(Setup!$AJ$10<>\"\",INDIRECT(\"'\" & Setup!$AJ$10 & \"'!\" & AE424),0) + IF(Setup!$AJ$11<>\"\",INDIRECT(\"'\" & Setup!$AJ$11 & \"'!\" & AE424),0) + IF(Setup!$AJ$12<>\"\",INDIRECT(\"'\" & Setup!$AJ$12 & \"'!\" & AE424),0)","v":0},"","",{"$f":"Planning!H196","v":0},"00","M212","O212","N212",null,null,{"$f":"IF(Setup!$AG$7<>\"\",INDIRECT(\"'\" & Setup!$AG$7 & \"'!\" & AF424),0) + IF(Setup!$AG$8<>\"\",INDIRECT(\"'\" & Setup!$AG$8 & \"'!\" & AF424),0) + IF(Setup!$AG$9<>\"\",INDIRECT(\"'\" & Setup!$AG$9 & \"'!\" & AF424),0) + IF(Setup!$AG$10<>\"\",INDIRECT(\"'\" & Setup!$AG$10 & \"'!\" & AF424),0) + IF(Setup!$AG$11<>\"\",INDIRECT(\"'\" & Setup!$AG$11 & \"'!\" & AF424),0) + IF(Setup!$AG$12<>\"\",INDIRECT(\"'\" & Setup!$AG$12 & \"'!\" & AF424),0)","v":0},{"$f":"IF(Setup!$AH$7<>\"\",INDIRECT(\"'\" & Setup!$AH$7 & \"'!\" & AF424),0) + IF(Setup!$AH$8<>\"\",INDIRECT(\"'\" & Setup!$AH$8 & \"'!\" & AF424),0) + IF(Setup!$AH$9<>\"\",INDIRECT(\"'\" & Setup!$AH$9 & \"'!\" & AF424),0) + IF(Setup!$AH$10<>\"\",INDIRECT(\"'\" & Setup!$AH$10 & \"'!\" & AF424),0) + IF(Setup!$AH$11<>\"\",INDIRECT(\"'\" & Setup!$AH$11 & \"'!\" & AF424),0) + IF(Setup!$AH$12<>\"\",INDIRECT(\"'\" & Setup!$AH$12 & \"'!\" & AF424),0)","v":0},{"$f":"IF(Setup!$AI$7<>\"\",INDIRECT(\"'\" & Setup!$AI$7 & \"'!\" & AF424),0) + IF(Setup!$AI$8<>\"\",INDIRECT(\"'\" & Setup!$AI$8 & \"'!\" & AF424),0) + IF(Setup!$AI$9<>\"\",INDIRECT(\"'\" & Setup!$AI$9 & \"'!\" & AF424),0) + IF(Setup!$AI$10<>\"\",INDIRECT(\"'\" & Setup!$AI$10 & \"'!\" & AF424),0) + IF(Setup!$AI$11<>\"\",INDIRECT(\"'\" & Setup!$AI$11 & \"'!\" & AF424),0) + IF(Setup!$AI$12<>\"\",INDIRECT(\"'\" & Setup!$AI$12 & \"'!\" & AF424),0)","v":0},{"$f":"IF(Setup!$AJ$7<>\"\",INDIRECT(\"'\" & Setup!$AJ$7 & \"'!\" & AF424),0) + IF(Setup!$AJ$8<>\"\",INDIRECT(\"'\" & Setup!$AJ$8 & \"'!\" & AF424),0) + IF(Setup!$AJ$9<>\"\",INDIRECT(\"'\" & Setup!$AJ$9 & \"'!\" & AF424),0) + IF(Setup!$AJ$10<>\"\",INDIRECT(\"'\" & Setup!$AJ$10 & \"'!\" & AF424),0) + IF(Setup!$AJ$11<>\"\",INDIRECT(\"'\" & Setup!$AJ$11 & \"'!\" & AF424),0) + IF(Setup!$AJ$12<>\"\",INDIRECT(\"'\" & Setup!$AJ$12 & \"'!\" & AF424),0)","v":0},null,"",{"$nulls":30},0,{"$f":"IF(Setup!$AH$7=\"\",0,INDIRECT(\"'\" & Setup!$AH$7 & \"'!\" & AF424))","v":0},{"$f":"IF(Setup!$AI$7=\"\",0,INDIRECT(\"'\" & Setup!$AI$7 & \"'!\" & AF424))","v":0},{"$f":"IF(Setup!$AJ$7=\"\",0,INDIRECT(\"'\" & Setup!$AJ$7 & \"'!\" & AF424))","v":0}]
[{"$f":"Planning!A197","v":"I189"},{"$f":"Planning!B197","v":0},{"$f":"Planning!C197","v":0},{"$f":"Planning!D197","v":0},{"$f":"Planning!E197","v":0},{"$f":"Planning!G197","v":0},0,{"v":0,"d":"0.00"},{"v":0,"d":"0.00"},"","",{"$f":"IF(Setup!$AG$7<>\"\",INDIRECT(\"'\" & Setup!$AG$7 & \"'!\" & AD425),0) + IF(Setup!$AG$8<>\"\",INDIRECT(\"'\" & Setup!$AG$8 & \"'!\" & AD425),0) + IF(Setup!$AG$9<>\"\",INDIRECT(\"'\" & Setup!$AG$9 & \"'!\" & AD425),0) + IF(Setup!$AG$10<>\"\",INDIRECT(\"'\" & Setup!$AG$10 & \"'!\" & AD425),0) + IF(Setup!$AG$11<>\"\",INDIRECT(\"'\" & Setup!$AG$11 & \"'!\" & AD425),0) + IF(Setup!$AG$12<>\"\",INDIRECT(\"'\" & Setup!$AG$12 & \"'!\" & AD425),0)","v":{"v":0,"d":"0.00"}},{"$f":"IF(Setup!$AG$7<>\"\",INDIRECT(\"'\" & Setup!$AG$7 & \"'!\" & AE425),0) + IF(Setup!$AG$8<>\"\",INDIRECT(\"'\" & Setup!$AG$8 & \"'!\" & AE425),0) + IF(Setup!$AG$9<>\"\",INDIRECT(\"'\" & Setup!$AG$9 & \"'!\" & AE425),0) + IF(Setup!$AG$10<>\"\",INDIRECT(\"'\" & Setup!$AG$10 & \"'!\" & AE425),0) + IF(Setup!$AG$11<>\"\",INDIRECT(\"'\" & Setup!$AG$11 & \"'!\" & AE425),0) + IF(Setup!$AG$12<>\"\",INDIRECT(\"'\" & Setup!$AG$12 & \"'!\" & AE425),0)","v":{"v":0,"d":"0.00"}},"","",{"$f":"IF(Setup!$AH$7<>\"\",INDIRECT(\"'\" & Setup!$AH$7 & \"'!\" & AD425),0) + IF(Setup!$AH$8<>\"\",INDIRECT(\"'\" & Setup!$AH$8 & \"'!\" & AD425),0) + IF(Setup!$AH$9<>\"\",INDIRECT(\"'\" & Setup!$AH$9 & \"'!\" & AD425),0) + IF(Setup!$AH$10<>\"\",INDIRECT(\"'\" & Setup!$AH$10 & \"'!\" & AD425),0) + IF(Setup!$AH$11<>\"\",INDIRECT(\"'\" & Setup!$AH$11 & \"'!\" & AD425),0) + IF(Setup!$AH$12<>\"\",INDIRECT(\"'\" & Setup!$AH$12 & \"'!\" & AD425),0)","v":{"v":0,"d":"0.00"}},{"$f":"IF(Setup!$AH$7<>\"\",INDIRECT(\"'\" & Setup!$AH$7 & \"'!\" & AE425),0) + IF(Setup!$AH$8<>\"\",INDIRECT(\"'\" & Setup!$AH$8 & \"'!\" & AE425),0) + IF(Setup!$AH$9<>\"\",INDIRECT(\"'\" & Setup!$AH$9 & \"'!\" & AE425),0) + IF(Setup!$AH$10<>\"\",INDIRECT(\"'\" & Setup!$AH$10 & \"'!\" & AE425),0) + IF(Setup!$AH$11<>\"\",INDIRECT(\"'\" & Setup!$AH$11 & \"'!\" & AE425),0) + IF(Setup!$AH$12<>\"\",INDIRECT(\"'\" & Setup!$AH$12 & \"'!\" & AE425),0)","v":{"v":0,"d":"0.00"}},"","",{"$f":"IF(Setup!$AI$7<>\"\",INDIRECT(\"'\" & Setup!$AI$7 & \"'!\" & AD425),0) + IF(Setup!$AI$8<>\"\",INDIRECT(\"'\" & Setup!$AI$8 & \"'!\" & AD425),0) + IF(Setup!$AI$9<>\"\",INDIRECT(\"'\" & Setup!$AI$9 & \"'!\" & AD425),0) + IF(Setup!$AI$10<>\"\",INDIRECT(\"'\" & Setup!$AI$10 & \"'!\" & AD425),0) + IF(Setup!$AI$11<>\"\",INDIRECT(\"'\" & Setup!$AI$11 & \"'!\" & AD425),0) + IF(Setup!$AI$12<>\"\",INDIRECT(\"'\" & Setup!$AI$12 & \"'!\" & AD425),0)","v":{"v":0,"d":"0.00"}},{"$f":"IF(Setup!$AI$7<>\"\",INDIRECT(\"'\" & Setup!$AI$7 & \"'!\" & AE425),0) + IF(Setup!$AI$8<>\"\",INDIRECT(\"'\" & Setup!$AI$8 & \"'!\" & AE425),0) + IF(Setup!$AI$9<>\"\",INDIRECT(\"'\" & Setup!$AI$9 & \"'!\" & AE425),0) + IF(Setup!$AI$10<>\"\",INDIRECT(\"'\" & Setup!$AI$10 & \"'!\" & AE425),0) + IF(Setup!$AI$11<>\"\",INDIRECT(\"'\" & Setup!$AI$11 & \"'!\" & AE425),0) + IF(Setup!$AI$12<>\"\",INDIRECT(\"'\" & Setup!$AI$12 & \"'!\" & AE425),0)","v":{"v":0,"d":"0.00"}},"","",{"$f":"IF(Setup!$AJ$7<>\"\",INDIRECT(\"'\" & Setup!$AJ$7 & \"'!\" & AD425),0) + IF(Setup!$AJ$8<>\"\",INDIRECT(\"'\" & Setup!$AJ$8 & \"'!\" & AD425),0) + IF(Setup!$AJ$9<>\"\",INDIRECT(\"'\" & Setup!$AJ$9 & \"'!\" & AD425),0) + IF(Setup!$AJ$10<>\"\",INDIRECT(\"'\" & Setup!$AJ$10 & \"'!\" & AD425),0) + IF(Setup!$AJ$11<>\"\",INDIRECT(\"'\" & Setup!$AJ$11 & \"'!\" & AD425),0) + IF(Setup!$AJ$12<>\"\",INDIRECT(\"'\" & Setup!$AJ$12 & \"'!\" & AD425),0)","v":0},{"$f":"IF(Setup!$AJ$7<>\"\",INDIRECT(\"'\" & Setup!$AJ$7 & \"'!\" & AE425),0) + IF(Setup!$AJ$8<>\"\",INDIRECT(\"'\" & Setup!$AJ$8 & \"'!\" & AE425),0) + IF(Setup!$AJ$9<>\"\",INDIRECT(\"'\" & Setup!$AJ$9 & \"'!\" & AE425),0) + IF(Setup!$AJ$10<>\"\",INDIRECT(\"'\" & Setup!$AJ$10 & \"'!\" & AE425),0) + IF(Setup!$AJ$11<>\"\",INDIRECT(\"'\" & Setup!$AJ$11 & \"'!\" & AE425),0) + IF(Setup!$AJ$12<>\"\",INDIRECT(\"'\" & Setup!$AJ$12 & \"'!\" & AE425),0)","v":0},"","",{"$f":"Planning!H197","v":0},"00","M213","O213","N213",null,null,{"$f":"IF(Setup!$AG$7<>\"\",INDIRECT(\"'\" & Setup!$AG$7 & \"'!\" & AF425),0) + IF(Setup!$AG$8<>\"\",INDIRECT(\"'\" & Setup!$AG$8 & \"'!\" & AF425),0) + IF(Setup!$AG$9<>\"\",INDIRECT(\"'\" & Setup!$AG$9 & \"'!\" & AF425),0) + IF(Setup!$AG$10<>\"\",INDIRECT(\"'\" & Setup!$AG$10 & \"'!\" & AF425),0) + IF(Setup!$AG$11<>\"\",INDIRECT(\"'\" & Setup!$AG$11 & \"'!\" & AF425),0) + IF(Setup!$AG$12<>\"\",INDIRECT(\"'\" & Setup!$AG$12 & \"'!\" & AF425),0)","v":0},{"$f":"IF(Setup!$AH$7<>\"\",INDIRECT(\"'\" & Setup!$AH$7 & \"'!\" & AF425),0) + IF(Setup!$AH$8<>\"\",INDIRECT(\"'\" & Setup!$AH$8 & \"'!\" & AF425),0) + IF(Setup!$AH$9<>\"\",INDIRECT(\"'\" & Setup!$AH$9 & \"'!\" & AF425),0) + IF(Setup!$AH$10<>\"\",INDIRECT(\"'\" & Setup!$AH$10 & \"'!\" & AF425),0) + IF(Setup!$AH$11<>\"\",INDIRECT(\"'\" & Setup!$AH$11 & \"'!\" & AF425),0) + IF(Setup!$AH$12<>\"\",INDIRECT(\"'\" & Setup!$AH$12 & \"'!\" & AF425),0)","v":0},{"$f":"IF(Setup!$AI$7<>\"\",INDIRECT(\"'\" & Setup!$AI$7 & \"'!\" & AF425),0) + IF(Setup!$AI$8<>\"\",INDIRECT(\"'\" & Setup!$AI$8 & \"'!\" & AF425),0) + IF(Setup!$AI$9<>\"\",INDIRECT(\"'\" & Setup!$AI$9 & \"'!\" & AF425),0) + IF(Setup!$AI$10<>\"\",INDIRECT(\"'\" & Setup!$AI$10 & \"'!\" & AF425),0) + IF(Setup!$AI$11<>\"\",INDIRECT(\"'\" & Setup!$AI$11 & \"'!\" & AF425),0) + IF(Setup!$AI$12<>\"\",INDIRECT(\"'\" & Setup!$AI$12 & \"'!\" & AF425),0)","v":0},{"$f":"IF(Setup!$AJ$7<>\"\",INDIRECT(\"'\" & Setup!$AJ$7 & \"'!\" & AF425),0) + IF(Setup!$AJ$8<>\"\",INDIRECT(\"'\" & Setup!$AJ$8 & \"'!\" & AF425),0) + IF(Setup!$AJ$9<>\"\",INDIRECT(\"'\" & Setup!$AJ$9 & \"'!\" & AF425),0) + IF(Setup!$AJ$10<>\"\",INDIRECT(\"'\" & Setup!$AJ$10 & \"'!\" & AF425),0) + IF(Setup!$AJ$11<>\"\",INDIRECT(\"'\" & Setup!$AJ$11 & \"'!\" & AF425),0) + IF(Setup!$AJ$12<>\"\",INDIRECT(\"'\" & Setup!$AJ$12 & \"'!\" & AF425),0)","v":0},null,"",{"$nulls":30},0,{"$f":"IF(Setup!$AH$7=\"\",0,INDIRECT(\"'\" & Setup!$AH$7 & \"'!\" & AF425))","v":0},{"$f":"IF(Setup!$AI$7=\"\",0,INDIRECT(\"'\" & Setup!$AI$7 & \"'!\" & AF425))","v":0},{"$f":"IF(Setup!$AJ$7=\"\",0,INDIRECT(\"'\" & Setup!$AJ$7 & \"'!\" & AF425))","v":0}]
[{"$f":"Planning!A198","v":"I190"},{"$f":"Planning!B198","v":0},{"$f":"Planning!C198","v":0},{"$f":"Planning!D198","v":0},{"$f":"Planning!E198","v":0},{"$f":"Planning!G198","v":0},0,{"v":0,"d":"0.00"},{"v":0,"d":"0.00"},"","",{"$f":"IF(Setup!$AG$7<>\"\",INDIRECT(\"'\" & Setup!$AG$7 & \"'!\" & AD426),0) + IF(Setup!$AG$8<>\"\",INDIRECT(\"'\" & Setup!$AG$8 & \"'!\" & AD426),0) + IF(Setup!$AG$9<>\"\",INDIRECT(\"'\" & Setup!$AG$9 & \"'!\" & AD426),0) + IF(Setup!$AG$10<>\"\",INDIRECT(\"'\" & Setup!$AG$10 & \"'!\" & AD426),0) + IF(Setup!$AG$11<>\"\",INDIRECT(\"'\" & Setup!$AG$11 & \"'!\" & AD426),0) + IF(Setup!$AG$12<>\"\",INDIRECT(\"'\" & Setup!$AG$12 & \"'!\" & AD426),0)","v":{"v":0,"d":"0.00"}},{"$f":"IF(Setup!$AG$7<>\"\",INDIRECT(\"'\" & Setup!$AG$7 & \"'!\" & AE426),0) + IF(Setup!$AG$8<>\"\",INDIRECT(\"'\" & Setup!$AG$8 & \"'!\" & AE426),0) + IF(Setup!$AG$9<>\"\",INDIRECT(\"'\" & Setup!$AG$9 & \"'!\" & AE426),0) + IF(Setup!$AG$10<>\"\",INDIRECT(\"'\" & Setup!$AG$10 & \"'!\" & AE426),0) + IF(Setup!$AG$11<>\"\",INDIRECT(\"'\" & Setup!$AG$11 & \"'!\" & AE426),0) + IF(Setup!$AG$12<>\"\",INDIRECT(\"'\" & Setup!$AG$12 & \"'!\" & AE426),0)","v":{"v":0,"d":"0.00"}},"","",{"$f":"IF(Setup!$AH$7<>\"\",INDIRECT(\"'\" & Setup!$AH$7 & \"'!\" & AD426),0) + IF(Setup!$AH$8<>\"\",INDIRECT(\"'\" & Setup!$AH$8 & \"'!\" & AD426),0) + IF(Setup!$AH$9<>\"\",INDIRECT(\"'\" & Setup!$AH$9 & \"'!\" & AD426),0) + IF(Setup!$AH$10<>\"\",INDIRECT(\"'\" & Setup!$AH$10 & \"'!\" & AD426),0) + IF(Setup!$AH$11<>\"\",INDIRECT(\"'\" & Setup!$AH$11 & \"'!\" & AD426),0) + IF(Setup!$AH$12<>\"\",INDIRECT(\"'\" & Setup!$AH$12 & \"'!\" & AD426),0)","v":{"v":0,"d":"0.00"}},{"$f":"IF(Setup!$AH$7<>\"\",INDIRECT(\"'\" & Setup!$AH$7 & \"'!\" & AE426),0) + IF(Setup!$AH$8<>\"\",INDIRECT(\"'\" & Setup!$AH$8 & \"'!\" & AE426),0) + IF(Setup!$AH$9<>\"\",INDIRECT(\"'\" & Setup!$AH$9 & \"'!\" & AE426),0) + IF(Setup!$AH$10<>\"\",INDIRECT(\"'\" & Setup!$AH$10 & \"'!\" & AE426),0) + IF(Setup!$AH$11<>\"\",INDIRECT(\"'\" & Setup!$AH$11 & \"'!\" & AE426),0) + IF(Setup!$AH$12<>\"\",INDIRECT(\"'\" & Setup!$AH$12 & \"'!\" & AE426),0)","v":{"v":0,"d":"0.00"}},"","",{"$f":"IF(Setup!$AI$7<>\"\",INDIRECT(\"'\" & Setup!$AI$7 & \"'!\" & AD426),0) + IF(Setup!$AI$8<>\"\",INDIRECT(\"'\" & Setup!$AI$8 & \"'!\" & AD426),0) + IF(Setup!$AI$9<>\"\",INDIRECT(\"'\" & Setup!$AI$9 & \"'!\" & AD426),0) + IF(Setup!$AI$10<>\"\",INDIRECT(\"'\" & Setup!$AI$10 & \"'!\" & AD426),0) + IF(Setup!$AI$11<>\"\",INDIRECT(\"'\" & Setup!$AI$11 & \"'!\" & AD426),0) + IF(Setup!$AI$12<>\"\",INDIRECT(\"'\" & Setup!$AI$12 & \"'!\" & AD426),0)","v":{"v":0,"d":"0.00"}},{"$f":"IF(Setup!$AI$7<>\"\",INDIRECT(\"'\" & Setup!$AI$7 & \"'!\" & AE426),0) + IF(Setup!$AI$8<>\"\",INDIRECT(\"'\" & Setup!$AI$8 & \"'!\" & AE426),0) + IF(Setup!$AI$9<>\"\",INDIRECT(\"'\" & Setup!$AI$9 & \"'!\" & AE426),0) + IF(Setup!$AI$10<>\"\",INDIRECT(\"'\" & Setup!$AI$10 & \"'!\" & AE426),0) + IF(Setup!$AI$11<>\"\",INDIRECT(\"'\" & Setup!$AI$11 & \"'!\" & AE426),0) + IF(Setup!$AI$12<>\"\",INDIRECT(\"'\" & Setup!$AI$12 & \"'!\" & AE426),0)","v":{"v":0,"d":"0.00"}},"","",{"$f":"IF(Setup!$AJ$7<>\"\",INDIRECT(\"'\" & Setup!$AJ$7 & \"'!\" & AD426),0) + IF(Setup!$AJ$8<>\"\",INDIRECT(\"'\" & Setup!$AJ$8 & \"'!\" & AD426),0) + IF(Setup!$AJ$9<>\"\",INDIRECT(\"'\" & Setup!$AJ$9 & \"'!\" & AD426),0) + IF(Setup!$AJ$10<>\"\",INDIRECT(\"'\" & Setup!$AJ$10 & \"'!\" & AD426),0) + IF(Setup!$AJ$11<>\"\",INDIRECT(\"'\" & Setup!$AJ$11 & \"'!\" & AD426),0) + IF(Setup!$AJ$12<>\"\",INDIRECT(\"'\" & Setup!$AJ$12 & \"'!\" & AD426),0)","v":0},{"$f":"IF(Setup!$AJ$7<>\"\",INDIRECT(\"'\" & Setup!$AJ$7 & \"'!\" & AE426),0) + IF(Setup!$AJ$8<>\"\",INDIRECT(\"'\" & Setup!$AJ$8 & \"'!\" & AE426),0) + IF(Setup!$AJ$9<>\"\",INDIRECT(\"'\" & Setup!$AJ$9 & \"'!\" & AE426),0) + IF(Setup!$AJ$10<>\"\",INDIRECT(\"'\" & Setup!$AJ$10 & \"'!\" & AE426),0) + IF(Setup!$AJ$11<>\"\",INDIRECT(\"'\" & Setup!$AJ$11 & \"'!\" & AE426),0) + IF(Setup!$AJ$12<>\"\",INDIRECT(\"'\" & Setup!$AJ$12 & \"'!\" & AE426),0)","v":0},"","",{"$f":"Planning!H198","v":0},"00","M214","O214","N214",null,null,{"$f":"IF(Setup!$AG$7<>\"\",INDIRECT(\"'\" & Setup!$AG$7 & \"'!\" & AF426),0) + IF(Setup!$AG$8<>\"\",INDIRECT(\"'\" & Setup!$AG$8 & \"'!\" & AF426),0) + IF(Setup!$AG$9<>\"\",INDIRECT(\"'\" & Setup!$AG$9 & \"'!\" & AF426),0) + IF(Setup!$AG$10<>\"\",INDIRECT(\"'\" & Setup!$AG$10 & \"'!\" & AF426),0) + IF(Setup!$AG$11<>\"\",INDIRECT(\"'\" & Setup!$AG$11 & \"'!\" & AF426),0) + IF(Setup!$AG$12<>\"\",INDIRECT(\"'\" & Setup!$AG$12 & \"'!\" & AF426),0)","v":0},{"$f":"IF(Setup!$AH$7<>\"\",INDIRECT(\"'\" & Setup!$AH$7 & \"'!\" & AF426),0) + IF(Setup!$AH$8<>\"\",INDIRECT(\"'\" & Setup!$AH$8 & \"'!\" & AF426),0) + IF(Setup!$AH$9<>\"\",INDIRECT(\"'\" & Setup!$AH$9 & \"'!\" & AF426),0) + IF(Setup!$AH$10<>\"\",INDIRECT(\"'\" & Setup!$AH$10 & \"'!\" & AF426),0) + IF(Setup!$AH$11<>\"\",INDIRECT(\"'\" & Setup!$AH$11 & \"'!\" & AF426),0) + IF(Setup!$AH$12<>\"\",INDIRECT(\"'\" & Setup!$AH$12 & \"'!\" & AF426),0)","v":0},{"$f":"IF(Setup!$AI$7<>\"\",INDIRECT(\"'\" & Setup!$AI$7 & \"'!\" & AF426),0) + IF(Setup!$AI$8<>\"\",INDIRECT(\"'\" & Setup!$AI$8 & \"'!\" & AF426),0) + IF(Setup!$AI$9<>\"\",INDIRECT(\"'\" & Setup!$AI$9 & \"'!\" & AF426),0) + IF(Setup!$AI$10<>\"\",INDIRECT(\"'\" & Setup!$AI$10 & \"'!\" & AF426),0) + IF(Setup!$AI$11<>\"\",INDIRECT(\"'\" & Setup!$AI$11 & \"'!\" & AF426),0) + IF(Setup!$AI$12<>\"\",INDIRECT(\"'\" & Setup!$AI$12 & \"'!\" & AF426),0)","v":0},{"$f":"IF(Setup!$AJ$7<>\"\",INDIRECT(\"'\" & Setup!$AJ$7 & \"'!\" & AF426),0) + IF(Setup!$AJ$8<>\"\",INDIRECT(\"'\" & Setup!$AJ$8 & \"'!\" & AF426),0) + IF(Setup!$AJ$9<>\"\",INDIRECT(\"'\" & Setup!$AJ$9 & \"'!\" & AF426),0) + IF(Setup!$AJ$10<>\"\",INDIRECT(\"'\" & Setup!$AJ$10 & \"'!\" & AF426),0) + IF(Setup!$AJ$11<>\"\",INDIRECT(\"'\" & Setup!$AJ$11 & \"'!\" & AF426),0) + IF(Setup!$AJ$12<>\"\",INDIRECT(\"'\" & Setup!$AJ$12 & \"'!\" & AF426),0)","v":0},null,"",{"$nulls":30},0,{"$f":"IF(Setup!$AH$7=\"\",0,INDIRECT(\"'\" & Setup!$AH$7 & \"'!\" & AF426))","v":0},{"$f":"IF(Setup!$AI$7=\"\",0,INDIRECT(\"'\" & Setup!$AI$7 & \"'!\" & AF426))","v":0},{"$f":"IF(Setup!$AJ$7=\"\",0,INDIRECT(\"'\" & Setup!$AJ$7 & \"'!\" & AF426))","v":0}]
[{"$f":"Planning!A199","v":"I191"},{"$f":"Planning!B199","v":0},{"$f":"Planning!C199","v":0},{"$f":"Planning!D199","v":0},{"$f":"Planning!E199","v":0},{"$f":"Planning!G199","v":0},0,{"v":0,"d":"0.00"},{"v":0,"d":"0.00"},"","",{"$f":"IF(Setup!$AG$7<>\"\",INDIRECT(\"'\" & Setup!$AG$7 & \"'!\" & AD427),0) + IF(Setup!$AG$8<>\"\",INDIRECT(\"'\" & Setup!$AG$8 & \"'!\" & AD427),0) + IF(Setup!$AG$9<>\"\",INDIRECT(\"'\" & Setup!$AG$9 & \"'!\" & AD427),0) + IF(Setup!$AG$10<>\"\",INDIRECT(\"'\" & Setup!$AG$10 & \"'!\" & AD427),0) + IF(Setup!$AG$11<>\"\",INDIRECT(\"'\" & Setup!$AG$11 & \"'!\" & AD427),0) + IF(Setup!$AG$12<>\"\",INDIRECT(\"'\" & Setup!$AG$12 & \"'!\" & AD427),0)","v":{"v":0,"d":"0.00"}},{"$f":"IF(Setup!$AG$7<>\"\",INDIRECT(\"'\" & Setup!$AG$7 & \"'!\" & AE427),0) + IF(Setup!$AG$8<>\"\",INDIRECT(\"'\" & Setup!$AG$8 & \"'!\" & AE427),0) + IF(Setup!$AG$9<>\"\",INDIRECT(\"'\" & Setup!$AG$9 & \"'!\" & AE427),0) + IF(Setup!$AG$10<>\"\",INDIRECT(\"'\" & Setup!$AG$10 & \"'!\" & AE427),0) + IF(Setup!$AG$11<>\"\",INDIRECT(\"'\" & Setup!$AG$11 & \"'!\" & AE427),0) + IF(Setup!$AG$12<>\"\",INDIRECT(\"'\" & Setup!$AG$12 & \"'!\" & AE427),0)","v":{"v":0,"d":"0.00"}},"","",{"$f":"IF(Setup!$AH$7<>\"\",INDIRECT(\"'\" & Setup!$AH$7 & \"'!\" & AD427),0) + IF(Setup!$AH$8<>\"\",INDIRECT(\"'\" & Setup!$AH$8 & \"'!\" & AD427),0) + IF(Setup!$AH$9<>\"\",INDIRECT(\"'\" & Setup!$AH$9 & \"'!\" & AD427),0) + IF(Setup!$AH$10<>\"\",INDIRECT(\"'\" & Setup!$AH$10 & \"'!\" & AD427),0) + IF(Setup!$AH$11<>\"\",INDIRECT(\"'\" & Setup!$AH$11 & \"'!\" & AD427),0) + IF(Setup!$AH$12<>\"\",INDIRECT(\"'\" & Setup!$AH$12 & \"'!\" & AD427),0)","v":{"v":0,"d":"0.00"}},{"$f":"IF(Setup!$AH$7<>\"\",INDIRECT(\"'\" & Setup!$AH$7 & \"'!\" & AE427),0) + IF(Setup!$AH$8<>\"\",INDIRECT(\"'\" & Setup!$AH$8 & \"'!\" & AE427),0) + IF(Setup!$AH$9<>\"\",INDIRECT(\"'\" & Setup!$AH$9 & \"'!\" & AE427),0) + IF(Setup!$AH$10<>\"\",INDIRECT(\"'\" & Setup!$AH$10 & \"'!\" & AE427),0) + IF(Setup!$AH$11<>\"\",INDIRECT(\"'\" & Setup!$AH$11 & \"'!\" & AE427),0) + IF(Setup!$AH$12<>\"\",INDIRECT(\"'\" & Setup!$AH$12 & \"'!\" & AE427),0)","v":{"v":0,"d":"0.00"}},"","",{"$f":"IF(Setup!$AI$7<>\"\",INDIRECT(\"'\" & Setup!$AI$7 & \"'!\" & AD427),0) + IF(Setup!$AI$8<>\"\",INDIRECT(\"'\" & Setup!$AI$8 & \"'!\" & AD427),0) + IF(Setup!$AI$9<>\"\",INDIRECT(\"'\" & Setup!$AI$9 & \"'!\" & AD427),0) + IF(Setup!$AI$10<>\"\",INDIRECT(\"'\" & Setup!$AI$10 & \"'!\" & AD427),0) + IF(Setup!$AI$11<>\"\",INDIRECT(\"'\" & Setup!$AI$11 & \"'!\" & AD427),0) + IF(Setup!$AI$12<>\"\",INDIRECT(\"'\" & Setup!$AI$12 & \"'!\" & AD427),0)","v":{"v":0,"d":"0.00"}},{"$f":"IF(Setup!$AI$7<>\"\",INDIRECT(\"'\" & Setup!$AI$7 & \"'!\" & AE427),0) + IF(Setup!$AI$8<>\"\",INDIRECT(\"'\" & Setup!$AI$8 & \"'!\" & AE427),0) + IF(Setup!$AI$9<>\"\",INDIRECT(\"'\" & Setup!$AI$9 & \"'!\" & AE427),0) + IF(Setup!$AI$10<>\"\",INDIRECT(\"'\" & Setup!$AI$10 & \"'!\" & AE427),0) + IF(Setup!$AI$11<>\"\",INDIRECT(\"'\" & Setup!$AI$11 & \"'!\" & AE427),0) + IF(Setup!$AI$12<>\"\",INDIRECT(\"'\" & Setup!$AI$12 & \"'!\" & AE427),0)","v":{"v":0,"d":"0.00"}},"","",{"$f":"IF(Setup!$AJ$7<>\"\",INDIRECT(\"'\" & Setup!$AJ$7 & \"'!\" & AD427),0) + IF(Setup!$AJ$8<>\"\",INDIRECT(\"'\" & Setup!$AJ$8 & \"'!\" & AD427),0) + IF(Setup!$AJ$9<>\"\",INDIRECT(\"'\" & Setup!$AJ$9 & \"'!\" & AD427),0) + IF(Setup!$AJ$10<>\"\",INDIRECT(\"'\" & Setup!$AJ$10 & \"'!\" & AD427),0) + IF(Setup!$AJ$11<>\"\",INDIRECT(\"'\" & Setup!$AJ$11 & \"'!\" & AD427),0) + IF(Setup!$AJ$12<>\"\",INDIRECT(\"'\" & Setup!$AJ$12 & \"'!\" & AD427),0)","v":0},{"$f":"IF(Setup!$AJ$7<>\"\",INDIRECT(\"'\" & Setup!$AJ$7 & \"'!\" & AE427),0) + IF(Setup!$AJ$8<>\"\",INDIRECT(\"'\" & Setup!$AJ$8 & \"'!\" & AE427),0) + IF(Setup!$AJ$9<>\"\",INDIRECT(\"'\" & Setup!$AJ$9 & \"'!\" & AE427),0) + IF(Setup!$AJ$10<>\"\",INDIRECT(\"'\" & Setup!$AJ$10 & \"'!\" & AE427),0) + IF(Setup!$AJ$11<>\"\",INDIRECT(\"'\" & Setup!$AJ$11 & \"'!\" & AE427),0) + IF(Setup!$AJ$12<>\"\",INDIRECT(\"'\" & Setup!$AJ$12 & \"'!\" & AE427),0)","v":0},"","",{"$f":"Planning!H199","v":0},"00","M215","O215","N215",null,null,{"$f":"IF(Setup!$AG$7<>\"\",INDIRECT(\"'\" & Setup!$AG$7 & \"'!\" & AF427),0) + IF(Setup!$AG$8<>\"\",INDIRECT(\"'\" & Setup!$AG$8 & \"'!\" & AF427),0) + IF(Setup!$AG$9<>\"\",INDIRECT(\"'\" & Setup!$AG$9 & \"'!\" & AF427),0) + IF(Setup!$AG$10<>\"\",INDIRECT(\"'\" & Setup!$AG$10 & \"'!\" & AF427),0) + IF(Setup!$AG$11<>\"\",INDIRECT(\"'\" & Setup!$AG$11 & \"'!\" & AF427),0) + IF(Setup!$AG$12<>\"\",INDIRECT(\"'\" & Setup!$AG$12 & \"'!\" & AF427),0)","v":0},{"$f":"IF(Setup!$AH$7<>\"\",INDIRECT(\"'\" & Setup!$AH$7 & \"'!\" & AF427),0) + IF(Setup!$AH$8<>\"\",INDIRECT(\"'\" & Setup!$AH$8 & \"'!\" & AF427),0) + IF(Setup!$AH$9<>\"\",INDIRECT(\"'\" & Setup!$AH$9 & \"'!\" & AF427),0) + IF(Setup!$AH$10<>\"\",INDIRECT(\"'\" & Setup!$AH$10 & \"'!\" & AF427),0) + IF(Setup!$AH$11<>\"\",INDIRECT(\"'\" & Setup!$AH$11 & \"'!\" & AF427),0) + IF(Setup!$AH$12<>\"\",INDIRECT(\"'\" & Setup!$AH$12 & \"'!\" & AF427),0)","v":0},{"$f":"IF(Setup!$AI$7<>\"\",INDIRECT(\"'\" & Setup!$AI$7 & \"'!\" & AF427),0) + IF(Setup!$AI$8<>\"\",INDIRECT(\"'\" & Setup!$AI$8 & \"'!\" & AF427),0) + IF(Setup!$AI$9<>\"\",INDIRECT(\"'\" & Setup!$AI$9 & \"'!\" & AF427),0) + IF(Setup!$AI$10<>\"\",INDIRECT(\"'\" & Setup!$AI$10 & \"'!\" & AF427),0) + IF(Setup!$AI$11<>\"\",INDIRECT(\"'\" & Setup!$AI$11 & \"'!\" & AF427),0) + IF(Setup!$AI$12<>\"\",INDIRECT(\"'\" & Setup!$AI$12 & \"'!\" & AF427),0)","v":0},{"$f":"IF(Setup!$AJ$7<>\"\",INDIRECT(\"'\" & Setup!$AJ$7 & \"'!\" & AF427),0) + IF(Setup!$AJ$8<>\"\",INDIRECT(\"'\" & Setup!$AJ$8 & \"'!\" & AF427),0) + IF(Setup!$AJ$9<>\"\",INDIRECT(\"'\" & Setup!$AJ$9 & \"'!\" & AF427),0) + IF(Setup!$AJ$10<>\"\",INDIRECT(\"'\" & Setup!$AJ$10 & \"'!\" & AF427),0) + IF(Setup!$AJ$11<>\"\",INDIRECT(\"'\" & Setup!$AJ$11 & \"'!\" & AF427),0) + IF(Setup!$AJ$12<>\"\",INDIRECT(\"'\" & Setup!$AJ$12 & \"'!\" & AF427),0)","v":0},null,"",{"$nulls":30},0,{"$f":"IF(Setup!$AH$7=\"\",0,INDIRECT(\"'\" & Setup!$AH$7 & \"'!\" & AF427))","v":0},{"$f":"IF(Setup!$AI$7=\"\",0,INDIRECT(\"'\" & Setup!$AI$7 & \"'!\" & AF427))","v":0},{"$f":"IF(Setup!$AJ$7=\"\",0,INDIRECT(\"'\" & Setup!$AJ$7 & \"'!\" & AF427))","v":0}]
[{"$f":"Planning!A200","v":"I192"},{"$f":"Planning!B200","v":0},{"$f":"Planning!C200","v":0},{"$f":"Planning!D200","v":0},{"$f":"Planning!E200","v":0},{"$f":"Planning!G200","v":0},0,{"v":0,"d":"0.00"},{"v":0,"d":"0.00"},"","",{"$f":"IF(Setup!$AG$7<>\"\",INDIRECT(\"'\" & Setup!$AG$7 & \"'!\" & AD428),0) + IF(Setup!$AG$8<>\"\",INDIRECT(\"'\" & Setup!$AG$8 & \"'!\" & AD428),0) + IF(Setup!$AG$9<>\"\",INDIRECT(\"'\" & Setup!$AG$9 & \"'!\" & AD428),0) + IF(Setup!$AG$10<>\"\",INDIRECT(\"'\" & Setup!$AG$10 & \"'!\" & AD428),0) + IF(Setup!$AG$11<>\"\",INDIRECT(\"'\" & Setup!$AG$11 & \"'!\" & AD428),0) + IF(Setup!$AG$12<>\"\",INDIRECT(\"'\" & Setup!$AG$12 & \"'!\" & AD428),0)","v":{"v":0,"d":"0.00"}},{"$f":"IF(Setup!$AG$7<>\"\",INDIRECT(\"'\" & Setup!$AG$7 & \"'!\" & AE428),0) + IF(Setup!$AG$8<>\"\",INDIRECT(\"'\" & Setup!$AG$8 & \"'!\" & AE428),0) + IF(Setup!$AG$9<>\"\",INDIRECT(\"'\" & Setup!$AG$9 & \"'!\" & AE428),0) + IF(Setup!$AG$10<>\"\",INDIRECT(\"'\" & Setup!$AG$10 & \"'!\" & AE428),0) + IF(Setup!$AG$11<>\"\",INDIRECT(\"'\" & Setup!$AG$11 & \"'!\" & AE428),0) + IF(Setup!$AG$12<>\"\",INDIRECT(\"'\" & Setup!$AG$12 & \"'!\" & AE428),0)","v":{"v":0,"d":"0.00"}},"","",{"$f":"IF(Setup!$AH$7<>\"\",INDIRECT(\"'\" & Setup!$AH$7 & \"'!\" & AD428),0) + IF(Setup!$AH$8<>\"\",INDIRECT(\"'\" & Setup!$AH$8 & \"'!\" & AD428),0) + IF(Setup!$AH$9<>\"\",INDIRECT(\"'\" & Setup!$AH$9 & \"'!\" & AD428),0) + IF(Setup!$AH$10<>\"\",INDIRECT(\"'\" & Setup!$AH$10 & \"'!\" & AD428),0) + IF(Setup!$AH$11<>\"\",INDIRECT(\"'\" & Setup!$AH$11 & \"'!\" & AD428),0) + IF(Setup!$AH$12<>\"\",INDIRECT(\"'\" & Setup!$AH$12 & \"'!\" & AD428),0)","v":{"v":0,"d":"0.00"}},{"$f":"IF(Setup!$AH$7<>\"\",INDIRECT(\"'\" & Setup!$AH$7 & \"'!\" & AE428),0) + IF(Setup!$AH$8<>\"\",INDIRECT(\"'\" & Setup!$AH$8 & \"'!\" & AE428),0) + IF(Setup!$AH$9<>\"\",INDIRECT(\"'\" & Setup!$AH$9 & \"'!\" & AE428),0) + IF(Setup!$AH$10<>\"\",INDIRECT(\"'\" & Setup!$AH$10 & \"'!\" & AE428),0) + IF(Setup!$AH$11<>\"\",INDIRECT(\"'\" & Setup!$AH$11 & \"'!\" & AE428),0) + IF(Setup!$AH$12<>\"\",INDIRECT(\"'\" & Setup!$AH$12 & \"'!\" & AE428),0)","v":{"v":0,"d":"0.00"}},"","",{"$f":"IF(Setup!$AI$7<>\"\",INDIRECT(\"'\" & Setup!$AI$7 & \"'!\" & AD428),0) + IF(Setup!$AI$8<>\"\",INDIRECT(\"'\" & Setup!$AI$8 & \"'!\" & AD428),0) + IF(Setup!$AI$9<>\"\",INDIRECT(\"'\" & Setup!$AI$9 & \"'!\" & AD428),0) + IF(Setup!$AI$10<>\"\",INDIRECT(\"'\" & Setup!$AI$10 & \"'!\" & AD428),0) + IF(Setup!$AI$11<>\"\",INDIRECT(\"'\" & Setup!$AI$11 & \"'!\" & AD428),0) + IF(Setup!$AI$12<>\"\",INDIRECT(\"'\" & Setup!$AI$12 & \"'!\" & AD428),0)","v":{"v":0,"d":"0.00"}},{"$f":"IF(Setup!$AI$7<>\"\",INDIRECT(\"'\" & Setup!$AI$7 & \"'!\" & AE428),0) + IF(Setup!$AI$8<>\"\",INDIRECT(\"'\" & Setup!$AI$8 & \"'!\" & AE428),0) + IF(Setup!$AI$9<>\"\",INDIRECT(\"'\" & Setup!$AI$9 & \"'!\" & AE428),0) + IF(Setup!$AI$10<>\"\",INDIRECT(\"'\" & Setup!$AI$10 & \"'!\" & AE428),0) + IF(Setup!$AI$11<>\"\",INDIRECT(\"'\" & Setup!$AI$11 & \"'!\" & AE428),0) + IF(Setup!$AI$12<>\"\",INDIRECT(\"'\" & Setup!$AI$12 & \"'!\" & AE428),0)","v":{"v":0,"d":"0.00"}},"","",{"$f":"IF(Setup!$AJ$7<>\"\",INDIRECT(\"'\" & Setup!$AJ$7 & \"'!\" & AD428),0) + IF(Setup!$AJ$8<>\"\",INDIRECT(\"'\" & Setup!$AJ$8 & \"'!\" & AD428),0) + IF(Setup!$AJ$9<>\"\",INDIRECT(\"'\" & Setup!$AJ$9 & \"'!\" & AD428),0) + IF(Setup!$AJ$10<>\"\",INDIRECT(\"'\" & Setup!$AJ$10 & \"'!\" & AD428),0) + IF(Setup!$AJ$11<>\"\",INDIRECT(\"'\" & Setup!$AJ$11 & \"'!\" & AD428),0) + IF(Setup!$AJ$12<>\"\",INDIRECT(\"'\" & Setup!$AJ$12 & \"'!\" & AD428),0)","v":0},{"$f":"IF(Setup!$AJ$7<>\"\",INDIRECT(\"'\" & Setup!$AJ$7 & \"'!\" & AE428),0) + IF(Setup!$AJ$8<>\"\",INDIRECT(\"'\" & Setup!$AJ$8 & \"'!\" & AE428),0) + IF(Setup!$AJ$9<>\"\",INDIRECT(\"'\" & Setup!$AJ$9 & \"'!\" & AE428),0) + IF(Setup!$AJ$10<>\"\",INDIRECT(\"'\" & Setup!$AJ$10 & \"'!\" & AE428),0) + IF(Setup!$AJ$11<>\"\",INDIRECT(\"'\" & Setup!$AJ$11 & \"'!\" & AE428),0) + IF(Setup!$AJ$12<>\"\",INDIRECT(\"'\" & Setup!$AJ$12 & \"'!\" & AE428),0)","v":0},"","",{"$f":"Planning!H200","v":0},"00","M216","O216","N216",null,null,{"$f":"IF(Setup!$AG$7<>\"\",INDIRECT(\"'\" & Setup!$AG$7 & \"'!\" & AF428),0) + IF(Setup!$AG$8<>\"\",INDIRECT(\"'\" & Setup!$AG$8 & \"'!\" & AF428),0) + IF(Setup!$AG$9<>\"\",INDIRECT(\"'\" & Setup!$AG$9 & \"'!\" & AF428),0) + IF(Setup!$AG$10<>\"\",INDIRECT(\"'\" & Setup!$AG$10 & \"'!\" & AF428),0) + IF(Setup!$AG$11<>\"\",INDIRECT(\"'\" & Setup!$AG$11 & \"'!\" & AF428),0) + IF(Setup!$AG$12<>\"\",INDIRECT(\"'\" & Setup!$AG$12 & \"'!\" & AF428),0)","v":0},{"$f":"IF(Setup!$AH$7<>\"\",INDIRECT(\"'\" & Setup!$AH$7 & \"'!\" & AF428),0) + IF(Setup!$AH$8<>\"\",INDIRECT(\"'\" & Setup!$AH$8 & \"'!\" & AF428),0) + IF(Setup!$AH$9<>\"\",INDIRECT(\"'\" & Setup!$AH$9 & \"'!\" & AF428),0) + IF(Setup!$AH$10<>\"\",INDIRECT(\"'\" & Setup!$AH$10 & \"'!\" & AF428),0) + IF(Setup!$AH$11<>\"\",INDIRECT(\"'\" & Setup!$AH$11 & \"'!\" & AF428),0) + IF(Setup!$AH$12<>\"\",INDIRECT(\"'\" & Setup!$AH$12 & \"'!\" & AF428),0)","v":0},{"$f":"IF(Setup!$AI$7<>\"\",INDIRECT(\"'\" & Setup!$AI$7 & \"'!\" & AF428),0) + IF(Setup!$AI$8<>\"\",INDIRECT(\"'\" & Setup!$AI$8 & \"'!\" & AF428),0) + IF(Setup!$AI$9<>\"\",INDIRECT(\"'\" & Setup!$AI$9 & \"'!\" & AF428),0) + IF(Setup!$AI$10<>\"\",INDIRECT(\"'\" & Setup!$AI$10 & \"'!\" & AF428),0) + IF(Setup!$AI$11<>\"\",INDIRECT(\"'\" & Setup!$AI$11 & \"'!\" & AF428),0) + IF(Setup!$AI$12<>\"\",INDIRECT(\"'\" & Setup!$AI$12 & \"'!\" & AF428),0)","v":0},{"$f":"IF(Setup!$AJ$7<>\"\",INDIRECT(\"'\" & Setup!$AJ$7 & \"'!\" & AF428),0) + IF(Setup!$AJ$8<>\"\",INDIRECT(\"'\" & Setup!$AJ$8 & \"'!\" & AF428),0) + IF(Setup!$AJ$9<>\"\",INDIRECT(\"'\" & Setup!$AJ$9 & \"'!\" & AF428),0) + IF(Setup!$AJ$10<>\"\",INDIRECT(\"'\" & Setup!$AJ$10 & \"'!\" & AF428),0) + IF(Setup!$AJ$11<>\"\",INDIRECT(\"'\" & Setup!$AJ$11 & \"'!\" & AF428),0) + IF(Setup!$AJ$12<>\"\",INDIRECT(\"'\" & Setup!$AJ$12 & \"'!\" & AF428),0)","v":0},null,"",{"$nulls":30},0,{"$f":"IF(Setup!$AH$7=\"\",0,INDIRECT(\"'\" & Setup!$AH$7 & \"'!\" & AF428))","v":0},{"$f":"IF(Setup!$AI$7=\"\",0,INDIRECT(\"'\" & Setup!$AI$7 & \"'!\" & AF428))","v":0},{"$f":"IF(Setup!$AJ$7=\"\",0,INDIRECT(\"'\" & Setup!$AJ$7 & \"'!\" & AF428))","v":0}]
[{"$f":"Planning!A201","v":"I193"},{"$f":"Planning!B201","v":0},{"$f":"Planning!C201","v":0},{"$f":"Planning!D201","v":0},{"$f":"Planning!E201","v":0},{"$f":"Planning!G201","v":0},0,{"v":0,"d":"0.00"},{"v":0,"d":"0.00"},"",{"$f":"IF($AN429 = ExcluirDelPLogro,\"\",IF(AND(H429=0,I429=0),\"\",J429))","v":""},{"$f":"IF(Setup!$AG$7<>\"\",INDIRECT(\"'\" & Setup!$AG$7 & \"'!\" & AD429),0) + IF(Setup!$AG$8<>\"\",INDIRECT(\"'\" & Setup!$AG$8 & \"'!\" & AD429),0) + IF(Setup!$AG$9<>\"\",INDIRECT(\"'\" & Setup!$AG$9 & \"'!\" & AD429),0) + IF(Setup!$AG$10<>\"\",INDIRECT(\"'\" & Setup!$AG$10 & \"'!\" & AD429),0) + IF(Setup!$AG$11<>\"\",INDIRECT(\"'\" & Setup!$AG$11 & \"'!\" & AD429),0) + IF(Setup!$AG$12<>\"\",INDIRECT(\"'\" & Setup!$AG$12 & \"'!\" & AD429),0)","v":{"v":0,"d":"0.00"}},{"$f":"IF(Setup!$AG$7<>\"\",INDIRECT(\"'\" & Setup!$AG$7 & \"'!\" & AE429),0) + IF(Setup!$AG$8<>\"\",INDIRECT(\"'\" & Setup!$AG$8 & \"'!\" & AE429),0) + IF(Setup!$AG$9<>\"\",INDIRECT(\"'\" & Setup!$AG$9 & \"'!\" & AE429),0) + IF(Setup!$AG$10<>\"\",INDIRECT(\"'\" & Setup!$AG$10 & \"'!\" & AE429),0) + IF(Setup!$AG$11<>\"\",INDIRECT(\"'\" & Setup!$AG$11 & \"'!\" & AE429),0) + IF(Setup!$AG$12<>\"\",INDIRECT(\"'\" & Setup!$AG$12 & \"'!\" & AE429),0)","v":{"v":0,"d":"0.00"}},"",{"$f":"IF($AN429=ExcluirDelPLogro,\"\",IF(AND(L429=0,M429=0),\"\",N429))","v":""},{"$f":"IF(Setup!$AH$7<>\"\",INDIRECT(\"'\" & Setup!$AH$7 & \"'!\" & AD429),0) + IF(Setup!$AH$8<>\"\",INDIRECT(\"'\" & Setup!$AH$8 & \"'!\" & AD429),0) + IF(Setup!$AH$9<>\"\",INDIRECT(\"'\" & Setup!$AH$9 & \"'!\" & AD429),0) + IF(Setup!$AH$10<>\"\",INDIRECT(\"'\" & Setup!$AH$10 & \"'!\" & AD429),0) + IF(Setup!$AH$11<>\"\",INDIRECT(\"'\" & Setup!$AH$11 & \"'!\" & AD429),0) + IF(Setup!$AH$12<>\"\",INDIRECT(\"'\" & Setup!$AH$12 & \"'!\" & AD429),0)","v":{"v":0,"d":"0.00"}},{"$f":"IF(Setup!$AH$7<>\"\",INDIRECT(\"'\" & Setup!$AH$7 & \"'!\" & AE429),0) + IF(Setup!$AH$8<>\"\",INDIRECT(\"'\" & Setup!$AH$8 & \"'!\" & AE429),0) + IF(Setup!$AH$9<>\"\",INDIRECT(\"'\" & Setup!$AH$9 & \"'!\" & AE429),0) + IF(Setup!$AH$10<>\"\",INDIRECT(\"'\" & Setup!$AH$10 & \"'!\" & AE429),0) + IF(Setup!$AH$11<>\"\",INDIRECT(\"'\" & Setup!$AH$11 & \"'!\" & AE429),0) + IF(Setup!$AH$12<>\"\",INDIRECT(\"'\" & Setup!$AH$12 & \"'!\" & AE429),0)","v":{"v":0,"d":"0.00"}},"",{"$f":"IF($AN429=ExcluirDelPLogro,\"\",IF(AND(P429=0,Q429=0),\"\",R429))","v":""},{"$f":"IF(Setup!$AI$7<>\"\",INDIRECT(\"'\" & Setup!$AI$7 & \"'!\" & AD429),0) + IF(Setup!$AI$8<>\"\",INDIRECT(\"'\" & Setup!$AI$8 & \"'!\" & AD429),0) + IF(Setup!$AI$9<>\"\",INDIRECT(\"'\" & Setup!$AI$9 & \"'!\" & AD429),0) + IF(Setup!$AI$10<>\"\",INDIRECT(\"'\" & Setup!$AI$10 & \"'!\" & AD429),0) + IF(Setup!$AI$11<>\"\",INDIRECT(\"'\" & Setup!$AI$11 & \"'!\" & AD429),0) + IF(Setup!$AI$12<>\"\",INDIRECT(\"'\" & Setup!$AI$12 & \"'!\" & AD429),0)","v":{"v":0,"d":"0.00"}},{"$f":"IF(Setup!$AI$7<>\"\",INDIRECT(\"'\" & Setup!$AI$7 & \"'!\" & AE429),0) + IF(Setup!$AI$8<>\"\",INDIRECT(\"'\" & Setup!$AI$8 & \"'!\" & AE429),0) + IF(Setup!$AI$9<>\"\",INDIRECT(\"'\" & Setup!$AI$9 & \"'!\" & AE429),0) + IF(Setup!$AI$10<>\"\",INDIRECT(\"'\" & Setup!$AI$10 & \"'!\" & AE429),0) + IF(Setup!$AI$11<>\"\",INDIRECT(\"'\" & Setup!$AI$11 & \"'!\" & AE429),0) + IF(Setup!$AI$12<>\"\",INDIRECT(\"'\" & Setup!$AI$12 & \"'!\" & AE429),0)","v":{"v":0,"d":"0.00"}},{"$f":"IF(AND(T429=0,U429=0),\"\",IF(T429>0,U429/T429,U429))","v":""},{"$f":"IF($AN429=ExcluirDelPLogro,\"\",IF(AND(T429=0,U429=0),\"\",V429))","v":""},{"$f":"IF(Setup!$AJ$7<>\"\",INDIRECT(\"'\" & Setup!$AJ$7 & \"'!\" & AD429),0) + IF(Setup!$AJ$8<>\"\",INDIRECT(\"'\" & Setup!$AJ$8 & \"'!\" & AD429),0) + IF(Setup!$AJ$9<>\"\",INDIRECT(\"'\" & Setup!$AJ$9 & \"'!\" & AD429),0) + IF(Setup!$AJ$10<>\"\",INDIRECT(\"'\" & Setup!$AJ$10 & \"'!\" & AD429),0) + IF(Setup!$AJ$11<>\"\",INDIRECT(\"'\" & Setup!$AJ$11 & \"'!\" & AD429),0) + IF(Setup!$AJ$12<>\"\",INDIRECT(\"'\" & Setup!$AJ$12 & \"'!\" & AD429),0)","v":0},{"$f":"IF(Setup!$AJ$7<>\"\",INDIRECT(\"'\" & Setup!$AJ$7 & \"'!\" & AE429),0) + IF(Setup!$AJ$8<>\"\",INDIRECT(\"'\" & Setup!$AJ$8 & \"'!\" & AE429),0) + IF(Setup!$AJ$9<>\"\",INDIRECT(\"'\" & Setup!$AJ$9 & \"'!\" & AE429),0) + IF(Setup!$AJ$10<>\"\",INDIRECT(\"'\" & Setup!$AJ$10 & \"'!\" & AE429),0) + IF(Setup!$AJ$11<>\"\",INDIRECT(\"'\" & Setup!$AJ$11 & \"'!\" & AE429),0) + IF(Setup!$AJ$12<>\"\",INDIRECT(\"'\" & Setup!$AJ$12 & \"'!\" & AE429),0)","v":0},{"$f":"IF(AND(X429=0,Y429=0),\"\",IF(X429>0,Y429/X429,Y429))","v":""},{"$f":"IF($AN429=ExcluirDelPLogro,\"\",IF(AND(X429=0,Y429=0),\"\",Z429))","v":""},{"$f":"Planning!H201","v":0},{"$f":"LEFT(B429,1)&C429","v":"00"},"M217","O217","N217",null,null,{"$f":"IF(Setup!$AG$7<>\"\",INDIRECT(\"'\" & Setup!$AG$7 & \"'!\" & AF429),0) + IF(Setup!$AG$8<>\"\",INDIRECT(\"'\" & Setup!$AG$8 & \"'!\" & AF429),0) + IF(Setup!$AG$9<>\"\",INDIRECT(\"'\" & Setup!$AG$9 & \"'!\" & AF429),0) + IF(Setup!$AG$10<>\"\",INDIRECT(\"'\" & Setup!$AG$10 & \"'!\" & AF429),0) + IF(Setup!$AG$11<>\"\",INDIRECT(\"'\" & Setup!$AG$11 & \"'!\" & AF429),0) + IF(Setup!$AG$12<>\"\",INDIRECT(\"'\" & Setup!$AG$12 & \"'!\" & AF429),0)","v":0},{"$f":"IF(Setup!$AH$7<>\"\",INDIRECT(\"'\" & Setup!$AH$7 & \"'!\" & AF429),0) + IF(Setup!$AH$8<>\"\",INDIRECT(\"'\" & Setup!$AH$8 & \"'!\" & AF429),0) + IF(Setup!$AH$9<>\"\",INDIRECT(\"'\" & Setup!$AH$9 & \"'!\" & AF429),0) + IF(Setup!$AH$10<>\"\",INDIRECT(\"'\" & Setup!$AH$10 & \"'!\" & AF429),0) + IF(Setup!$AH$11<>\"\",INDIRECT(\"'\" & Setup!$AH$11 & \"'!\" & AF429),0) + IF(Setup!$AH$12<>\"\",INDIRECT(\"'\" & Setup!$AH$12 & \"'!\" & AF429),0)","v":0},{"$f":"IF(Setup!$AI$7<>\"\",INDIRECT(\"'\" & Setup!$AI$7 & \"'!\" & AF429),0) + IF(Setup!$AI$8<>\"\",INDIRECT(\"'\" & Setup!$AI$8 & \"'!\" & AF429),0) + IF(Setup!$AI$9<>\"\",INDIRECT(\"'\" & Setup!$AI$9 & \"'!\" & AF429),0) + IF(Setup!$AI$10<>\"\",INDIRECT(\"'\" & Setup!$AI$10 & \"'!\" & AF429),0) + IF(Setup!$AI$11<>\"\",INDIRECT(\"'\" & Setup!$AI$11 & \"'!\" & AF429),0) + IF(Setup!$AI$12<>\"\",INDIRECT(\"'\" & Setup!$AI$12 & \"'!\" & AF429),0)","v":0},{"$f":"IF(Setup!$AJ$7<>\"\",INDIRECT(\"'\" & Setup!$AJ$7 & \"'!\" & AF429),0) + IF(Setup!$AJ$8<>\"\",INDIRECT(\"'\" & Setup!$AJ$8 & \"'!\" & AF429),0) + IF(Setup!$AJ$9<>\"\",INDIRECT(\"'\" & Setup!$AJ$9 & \"'!\" & AF429),0) + IF(Setup!$AJ$10<>\"\",INDIRECT(\"'\" & Setup!$AJ$10 & \"'!\" & AF429),0) + IF(Setup!$AJ$11<>\"\",INDIRECT(\"'\" & Setup!$AJ$11 & \"'!\" & AF429),0) + IF(Setup!$AJ$12<>\"\",INDIRECT(\"'\" & Setup!$AJ$12 & \"'!\" & AF429),0)","v":0},null,{"$f":"IF(B429=0,\"\",IF(LEFT(B429,1)=\"1\",\"1\",\"2\"))","v":""},{"$nulls":30},0,{"$f":"IF(Setup!$AH$7=\"\",0,INDIRECT(\"'\" & Setup!$AH$7 & \"'!\" & AF429))","v":0},{"$f":"IF(Setup!$AI$7=\"\",0,INDIRECT(\"'\" & Setup!$AI$7 & \"'!\" & AF429))","v":0},{"$f":"IF(Setup!$AJ$7=\"\",0,INDIRECT(\"'\" & Setup!$AJ$7 & \"'!\" & AF429))","v":0}]
[{"$f":"Planning!A202","v":"I194"},{"$f":"Planning!B202","v":0},{"$f":"Planning!C202","v":0},{"$f":"Planning!D202","v":0},{"$f":"Planning!E202","v":0},{"$f":"Planning!G202","v":0},{"$f":"IF(C430<>0,NumObjetivo(C430),0)","v":0},{"$f":"SUM(L430,P430,T430,X430)","v":{"v":0,"d":"0.00"}},{"$f":"SUM(M430,Q430,U430,Y430)","v":{"v":0,"d":"0.00"}},{"$f":"IF(AND(H430=0,I430=0),\"\",IF(H430>0,I430/H430,I430))","v":""},"",{"$f":"IF(Setup!$AG$7<>\"\",INDIRECT(\"'\" & Setup!$AG$7 & \"'!\" & AD430),0) + IF(Setup!$AG$8<>\"\",INDIRECT(\"'\" & Setup!$AG$8 & \"'!\" & AD430),0) + IF(Setup!$AG$9<>\"\",INDIRECT(\"'\" & Setup!$AG$9 & \"'!\" & AD430),0) + IF(Setup!$AG$10<>\"\",INDIRECT(\"'\" & Setup!$AG$10 & \"'!\" & AD430),0) + IF(Setup!$AG$11<>\"\",INDIRECT(\"'\" & Setup!$AG$11 & \"'!\" & AD430),0) + IF(Setup!$AG$12<>\"\",INDIRECT(\"'\" & Setup!$AG$12 & \"'!\" & AD430),0)","v":{"v":0,"d":"0.00"}},{"$f":"IF(Setup!$AG$7<>\"\",INDIRECT(\"'\" & Setup!$AG$7 & \"'!\" & AE430),0) + IF(Setup!$AG$8<>\"\",INDIRECT(\"'\" & Setup!$AG$8 & \"'!\" & AE430),0) + IF(Setup!$AG$9<>\"\",INDIRECT(\"'\" & Setup!$AG$9 & \"'!\" & AE430),0) + IF(Setup!$AG$10<>\"\",INDIRECT(\"'\" & Setup!$AG$10 & \"'!\" & AE430),0) + IF(Setup!$AG$11<>\"\",INDIRECT(\"'\" & Setup!$AG$11 & \"'!\" & AE430),0) + IF(Setup!$AG$12<>\"\",INDIRECT(\"'\" & Setup!$AG$12 & \"'!\" & AE430),0)","v":{"v":0,"d":"0.00"}},{"$f":"IF(AND(L430=0,M430=0),\"\",IF(L430>0,M430/L430,M430))","v":""},"",{"$f":"IF(Setup!$AH$7<>\"\",INDIRECT(\"'\" & Setup!$AH$7 & \"'!\" & AD430),0) + IF(Setup!$AH$8<>\"\",INDIRECT(\"'\" & Setup!$AH$8 & \"'!\" & AD430),0) + IF(Setup!$AH$9<>\"\",INDIRECT(\"'\" & Setup!$AH$9 & \"'!\" & AD430),0) + IF(Setup!$AH$10<>\"\",INDIRECT(\"'\" & Setup!$AH$10 & \"'!\" & AD430),0) + IF(Setup!$AH$11<>\"\",INDIRECT(\"'\" & Setup!$AH$11 & \"'!\" & AD430),0) + IF(Setup!$AH$12<>\"\",INDIRECT(\"'\" & Setup!$AH$12 & \"'!\" & AD430),0)","v":{"v":0,"d":"0.00"}},{"$f":"IF(Setup!$AH$7<>\"\",INDIRECT(\"'\" & Setup!$AH$7 & \"'!\" & AE430),0) + IF(Setup!$AH$8<>\"\",INDIRECT(\"'\" & Setup!$AH$8 & \"'!\" & AE430),0) + IF(Setup!$AH$9<>\"\",INDIRECT(\"'\" & Setup!$AH$9 & \"'!\" & AE430),0) + IF(Setup!$AH$10<>\"\",INDIRECT(\"'\" & Setup!$AH$10 & \"'!\" & AE430),0) + IF(Setup!$AH$11<>\"\",INDIRECT(\"'\" & Setup!$AH$11 & \"'!\" & AE430),0) + IF(Setup!$AH$12<>\"\",INDIRECT(\"'\" & Setup!$AH$12 & \"'!\" & AE430),0)","v":{"v":0,"d":"0.00"}},{"$f":"IF(AND(P430=0,Q430=0),\"\",IF(P430>0,Q430/P430,Q430))","v":""},"",{"$f":"IF(Setup!$AI$7<>\"\",INDIRECT(\"'\" & Setup!$AI$7 & \"'!\" & AD430),0) + IF(Setup!$AI$8<>\"\",INDIRECT(\"'\" & Setup!$AI$8 & \"'!\" & AD430),0) + IF(Setup!$AI$9<>\"\",INDIRECT(\"'\" & Setup!$AI$9 & \"'!\" & AD430),0) + IF(Setup!$AI$10<>\"\",INDIRECT(\"'\" & Setup!$AI$10 & \"'!\" & AD430),0) + IF(Setup!$AI$11<>\"\",INDIRECT(\"'\" & Setup!$AI$11 & \"'!\" & AD430),0) + IF(Setup!$AI$12<>\"\",INDIRECT(\"'\" & Setup!$AI$12 & \"'!\" & AD430),0)","v":{"v":0,"d":"0.00"}},{"$f":"IF(Setup!$AI$7<>\"\",INDIRECT(\"'\" & Setup!$AI$7 & \"'!\" & AE430),0) + IF(Setup!$AI$8<>\"\",INDIRECT(\"'\" & Setup!$AI$8 & \"'!\" & AE430),0) + IF(Setup!$AI$9<>\"\",INDIRECT(\"'\" & Setup!$AI$9 & \"'!\" & AE430),0) + IF(Setup!$AI$10<>\"\",INDIRECT(\"'\" & Setup!$AI$10 & \"'!\" & AE430),0) + IF(Setup!$AI$11<>\"\",INDIRECT(\"'\" & Setup!$AI$11 & \"'!\" & AE430),0) + IF(Setup!$AI$12<>\"\",INDIRECT(\"'\" & Setup!$AI$12 & \"'!\" & AE430),0)","v":{"v":0,"d":"0.00"}},"","",{"$f":"IF(Setup!$AJ$7<>\"\",INDIRECT(\"'\" & Setup!$AJ$7 & \"'!\" & AD430),0) + IF(Setup!$AJ$8<>\"\",INDIRECT(\"'\" & Setup!$AJ$8 & \"'!\" & AD430),0) + IF(Setup!$AJ$9<>\"\",INDIRECT(\"'\" & Setup!$AJ$9 & \"'!\" & AD430),0) + IF(Setup!$AJ$10<>\"\",INDIRECT(\"'\" & Setup!$AJ$10 & \"'!\" & AD430),0) + IF(Setup!$AJ$11<>\"\",INDIRECT(\"'\" & Setup!$AJ$11 & \"'!\" & AD430),0) + IF(Setup!$AJ$12<>\"\",INDIRECT(\"'\" & Setup!$AJ$12 & \"'!\" & AD430),0)","v":0},{"$f":"IF(Setup!$AJ$7<>\"\",INDIRECT(\"'\" & Setup!$AJ$7 & \"'!\" & AE430),0) + IF(Setup!$AJ$8<>\"\",INDIRECT(\"'\" & Setup!$AJ$8 & \"'!\" & AE430),0) + IF(Setup!$AJ$9<>\"\",INDIRECT(\"'\" & Setup!$AJ$9 & \"'!\" & AE430),0) + IF(Setup!$AJ$10<>\"\",INDIRECT(\"'\" & Setup!$AJ$10 & \"'!\" & AE430),0) + IF(Setup!$AJ$11<>\"\",INDIRECT(\"'\" & Setup!$AJ$11 & \"'!\" & AE430),0) + IF(Setup!$AJ$12<>\"\",INDIRECT(\"'\" & Setup!$AJ$12 & \"'!\" & AE430),0)","v":0},"","",{"$f":"Planning!H202","v":0},"00","M218","O218","N218",null,null,{"$f":"IF(Setup!$AG$7<>\"\",INDIRECT(\"'\" & Setup!$AG$7 & \"'!\" & AF430),0) + IF(Setup!$AG$8<>\"\",INDIRECT(\"'\" & Setup!$AG$8 & \"'!\" & AF430),0) + IF(Setup!$AG$9<>\"\",INDIRECT(\"'\" & Setup!$AG$9 & \"'!\" & AF430),0) + IF(Setup!$AG$10<>\"\",INDIRECT(\"'\" & Setup!$AG$10 & \"'!\" & AF430),0) + IF(Setup!$AG$11<>\"\",INDIRECT(\"'\" & Setup!$AG$11 & \"'!\" & AF430),0) + IF(Setup!$AG$12<>\"\",INDIRECT(\"'\" & Setup!$AG$12 & \"'!\" & AF430),0)","v":0},{"$f":"IF(Setup!$AH$7<>\"\",INDIRECT(\"'\" & Setup!$AH$7 & \"'!\" & AF430),0) + IF(Setup!$AH$8<>\"\",INDIRECT(\"'\" & Setup!$AH$8 & \"'!\" & AF430),0) + IF(Setup!$AH$9<>\"\",INDIRECT(\"'\" & Setup!$AH$9 & \"'!\" & AF430),0) + IF(Setup!$AH$10<>\"\",INDIRECT(\"'\" & Setup!$AH$10 & \"'!\" & AF430),0) + IF(Setup!$AH$11<>\"\",INDIRECT(\"'\" & Setup!$AH$11 & \"'!\" & AF430),0) + IF(Setup!$AH$12<>\"\",INDIRECT(\"'\" & Setup!$AH$12 & \"'!\" & AF430),0)","v":0},{"$f":"IF(Setup!$AI$7<>\"\",INDIRECT(\"'\" & Setup!$AI$7 & \"'!\" & AF430),0) + IF(Setup!$AI$8<>\"\",INDIRECT(\"'\" & Setup!$AI$8 & \"'!\" & AF430),0) + IF(Setup!$AI$9<>\"\",INDIRECT(\"'\" & Setup!$AI$9 & \"'!\" & AF430),0) + IF(Setup!$AI$10<>\"\",INDIRECT(\"'\" & Setup!$AI$10 & \"'!\" & AF430),0) + IF(Setup!$AI$11<>\"\",INDIRECT(\"'\" & Setup!$AI$11 & \"'!\" & AF430),0) + IF(Setup!$AI$12<>\"\",INDIRECT(\"'\" & Setup!$AI$12 & \"'!\" & AF430),0)","v":0},{"$f":"IF(Setup!$AJ$7<>\"\",INDIRECT(\"'\" & Setup!$AJ$7 & \"'!\" & AF430),0) + IF(Setup!$AJ$8<>\"\",INDIRECT(\"'\" & Setup!$AJ$8 & \"'!\" & AF430),0) + IF(Setup!$AJ$9<>\"\",INDIRECT(\"'\" & Setup!$AJ$9 & \"'!\" & AF430),0) + IF(Setup!$AJ$10<>\"\",INDIRECT(\"'\" & Setup!$AJ$10 & \"'!\" & AF430),0) + IF(Setup!$AJ$11<>\"\",INDIRECT(\"'\" & Setup!$AJ$11 & \"'!\" & AF430),0) + IF(Setup!$AJ$12<>\"\",INDIRECT(\"'\" & Setup!$AJ$12 & \"'!\" & AF430),0)","v":0},null,"",{"$nulls":30},0,{"$f":"IF(Setup!$AH$7=\"\",0,INDIRECT(\"'\" & Setup!$AH$7 & \"'!\" & AF430))","v":0},{"$f":"IF(Setup!$AI$7=\"\",0,INDIRECT(\"'\" & Setup!$AI$7 & \"'!\" & AF430))","v":0},{"$f":"IF(Setup!$AJ$7=\"\",0,INDIRECT(\"'\" & Setup!$AJ$7 & \"'!\" & AF430))","v":0}]
[{"$f":"Planning!A203","v":"I195"},{"$f":"Planning!B203","v":0},{"$f":"Planning!C203","v":0},{"$f":"Planning!D203","v":0},{"$f":"Planning!E203","v":0},{"$f":"Planning!G203","v":0},0,{"v":0,"d":"0.00"},{"v":0,"d":"0.00"},"","",{"$f":"IF(Setup!$AG$7<>\"\",INDIRECT(\"'\" & Setup!$AG$7 & \"'!\" & AD431),0) + IF(Setup!$AG$8<>\"\",INDIRECT(\"'\" & Setup!$AG$8 & \"'!\" & AD431),0) + IF(Setup!$AG$9<>\"\",INDIRECT(\"'\" & Setup!$AG$9 & \"'!\" & AD431),0) + IF(Setup!$AG$10<>\"\",INDIRECT(\"'\" & Setup!$AG$10 & \"'!\" & AD431),0) + IF(Setup!$AG$11<>\"\",INDIRECT(\"'\" & Setup!$AG$11 & \"'!\" & AD431),0) + IF(Setup!$AG$12<>\"\",INDIRECT(\"'\" & Setup!$AG$12 & \"'!\" & AD431),0)","v":{"v":0,"d":"0.00"}},{"$f":"IF(Setup!$AG$7<>\"\",INDIRECT(\"'\" & Setup!$AG$7 & \"'!\" & AE431),0) + IF(Setup!$AG$8<>\"\",INDIRECT(\"'\" & Setup!$AG$8 & \"'!\" & AE431),0) + IF(Setup!$AG$9<>\"\",INDIRECT(\"'\" & Setup!$AG$9 & \"'!\" & AE431),0) + IF(Setup!$AG$10<>\"\",INDIRECT(\"'\" & Setup!$AG$10 & \"'!\" & AE431),0) + IF(Setup!$AG$11<>\"\",INDIRECT(\"'\" & Setup!$AG$11 & \"'!\" & AE431),0) + IF(Setup!$AG$12<>\"\",INDIRECT(\"'\" & Setup!$AG$12 & \"'!\" & AE431),0)","v":{"v":0,"d":"0.00"}},"","",{"$f":"IF(Setup!$AH$7<>\"\",INDIRECT(\"'\" & Setup!$AH$7 & \"'!\" & AD431),0) + IF(Setup!$AH$8<>\"\",INDIRECT(\"'\" & Setup!$AH$8 & \"'!\" & AD431),0) + IF(Setup!$AH$9<>\"\",INDIRECT(\"'\" & Setup!$AH$9 & \"'!\" & AD431),0) + IF(Setup!$AH$10<>\"\",INDIRECT(\"'\" & Setup!$AH$10 & \"'!\" & AD431),0) + IF(Setup!$AH$11<>\"\",INDIRECT(\"'\" & Setup!$AH$11 & \"'!\" & AD431),0) + IF(Setup!$AH$12<>\"\",INDIRECT(\"'\" & Setup!$AH$12 & \"'!\" & AD431),0)","v":{"v":0,"d":"0.00"}},{"$f":"IF(Setup!$AH$7<>\"\",INDIRECT(\"'\" & Setup!$AH$7 & \"'!\" & AE431),0) + IF(Setup!$AH$8<>\"\",INDIRECT(\"'\" & Setup!$AH$8 & \"'!\" & AE431),0) + IF(Setup!$AH$9<>\"\",INDIRECT(\"'\" & Setup!$AH$9 & \"'!\" & AE431),0) + IF(Setup!$AH$10<>\"\",INDIRECT(\"'\" & Setup!$AH$10 & \"'!\" & AE431),0) + IF(Setup!$AH$11<>\"\",INDIRECT(\"'\" & Setup!$AH$11 & \"'!\" & AE431),0) + IF(Setup!$AH$12<>\"\",INDIRECT(\"'\" & Setup!$AH$12 & \"'!\" & AE431),0)","v":{"v":0,"d":"0.00"}},"","",{"$f":"IF(Setup!$AI$7<>\"\",INDIRECT(\"'\" & Setup!$AI$7 & \"'!\" & AD431),0) + IF(Setup!$AI$8<>\"\",INDIRECT(\"'\" & Setup!$AI$8 & \"'!\" & AD431),0) + IF(Setup!$AI$9<>\"\",INDIRECT(\"'\" & Setup!$AI$9 & \"'!\" & AD431),0) + IF(Setup!$AI$10<>\"\",INDIRECT(\"'\" & Setup!$AI$10 & \"'!\" & AD431),0) + IF(Setup!$AI$11<>\"\",INDIRECT(\"'\" & Setup!$AI$11 & \"'!\" & AD431),0) + IF(Setup!$AI$12<>\"\",INDIRECT(\"'\" & Setup!$AI$12 & \"'!\" & AD431),0)","v":{"v":0,"d":"0.00"}},{"$f":"IF(Setup!$AI$7<>\"\",INDIRECT(\"'\" & Setup!$AI$7 & \"'!\" & AE431),0) + IF(Setup!$AI$8<>\"\",INDIRECT(\"'\" & Setup!$AI$8 & \"'!\" & AE431),0) + IF(Setup!$AI$9<>\"\",INDIRECT(\"'\" & Setup!$AI$9 & \"'!\" & AE431),0) + IF(Setup!$AI$10<>\"\",INDIRECT(\"'\" & Setup!$AI$10 & \"'!\" & AE431),0) + IF(Setup!$AI$11<>\"\",INDIRECT(\"'\" & Setup!$AI$11 & \"'!\" & AE431),0) + IF(Setup!$AI$12<>\"\",INDIRECT(\"'\" & Setup!$AI$12 & \"'!\" & AE431),0)","v":{"v":0,"d":"0.00"}},"","",{"$f":"IF(Setup!$AJ$7<>\"\",INDIRECT(\"'\" & Setup!$AJ$7 & \"'!\" & AD431),0) + IF(Setup!$AJ$8<>\"\",INDIRECT(\"'\" & Setup!$AJ$8 & \"'!\" & AD431),0) + IF(Setup!$AJ$9<>\"\",INDIRECT(\"'\" & Setup!$AJ$9 & \"'!\" & AD431),0) + IF(Setup!$AJ$10<>\"\",INDIRECT(\"'\" & Setup!$AJ$10 & \"'!\" & AD431),0) + IF(Setup!$AJ$11<>\"\",INDIRECT(\"'\" & Setup!$AJ$11 & \"'!\" & AD431),0) + IF(Setup!$AJ$12<>\"\",INDIRECT(\"'\" & Setup!$AJ$12 & \"'!\" & AD431),0)","v":0},{"$f":"IF(Setup!$AJ$7<>\"\",INDIRECT(\"'\" & Setup!$AJ$7 & \"'!\" & AE431),0) + IF(Setup!$AJ$8<>\"\",INDIRECT(\"'\" & Setup!$AJ$8 & \"'!\" & AE431),0) + IF(Setup!$AJ$9<>\"\",INDIRECT(\"'\" & Setup!$AJ$9 & \"'!\" & AE431),0) + IF(Setup!$AJ$10<>\"\",INDIRECT(\"'\" & Setup!$AJ$10 & \"'!\" & AE431),0) + IF(Setup!$AJ$11<>\"\",INDIRECT(\"'\" & Setup!$AJ$11 & \"'!\" & AE431),0) + IF(Setup!$AJ$12<>\"\",INDIRECT(\"'\" & Setup!$AJ$12 & \"'!\" & AE431),0)","v":0},"","",{"$f":"Planning!H203","v":0},"00","M219","O219","N219",null,null,{"$f":"IF(Setup!$AG$7<>\"\",INDIRECT(\"'\" & Setup!$AG$7 & \"'!\" & AF431),0) + IF(Setup!$AG$8<>\"\",INDIRECT(\"'\" & Setup!$AG$8 & \"'!\" & AF431),0) + IF(Setup!$AG$9<>\"\",INDIRECT(\"'\" & Setup!$AG$9 & \"'!\" & AF431),0) + IF(Setup!$AG$10<>\"\",INDIRECT(\"'\" & Setup!$AG$10 & \"'!\" & AF431),0) + IF(Setup!$AG$11<>\"\",INDIRECT(\"'\" & Setup!$AG$11 & \"'!\" & AF431),0) + IF(Setup!$AG$12<>\"\",INDIRECT(\"'\" & Setup!$AG$12 & \"'!\" & AF431),0)","v":0},{"$f":"IF(Setup!$AH$7<>\"\",INDIRECT(\"'\" & Setup!$AH$7 & \"'!\" & AF431),0) + IF(Setup!$AH$8<>\"\",INDIRECT(\"'\" & Setup!$AH$8 & \"'!\" & AF431),0) + IF(Setup!$AH$9<>\"\",INDIRECT(\"'\" & Setup!$AH$9 & \"'!\" & AF431),0) + IF(Setup!$AH$10<>\"\",INDIRECT(\"'\" & Setup!$AH$10 & \"'!\" & AF431),0) + IF(Setup!$AH$11<>\"\",INDIRECT(\"'\" & Setup!$AH$11 & \"'!\" & AF431),0) + IF(Setup!$AH$12<>\"\",INDIRECT(\"'\" & Setup!$AH$12 & \"'!\" & AF431),0)","v":0},{"$f":"IF(Setup!$AI$7<>\"\",INDIRECT(\"'\" & Setup!$AI$7 & \"'!\" & AF431),0) + IF(Setup!$AI$8<>\"\",INDIRECT(\"'\" & Setup!$AI$8 & \"'!\" & AF431),0) + IF(Setup!$AI$9<>\"\",INDIRECT(\"'\" & Setup!$AI$9 & \"'!\" & AF431),0) + IF(Setup!$AI$10<>\"\",INDIRECT(\"'\" & Setup!$AI$10 & \"'!\" & AF431),0) + IF(Setup!$AI$11<>\"\",INDIRECT(\"'\" & Setup!$AI$11 & \"'!\" & AF431),0) + IF(Setup!$AI$12<>\"\",INDIRECT(\"'\" & Setup!$AI$12 & \"'!\" & AF431),0)","v":0},{"$f":"IF(Setup!$AJ$7<>\"\",INDIRECT(\"'\" & Setup!$AJ$7 & \"'!\" & AF431),0) + IF(Setup!$AJ$8<>\"\",INDIRECT(\"'\" & Setup!$AJ$8 & \"'!\" & AF431),0) + IF(Setup!$AJ$9<>\"\",INDIRECT(\"'\" & Setup!$AJ$9 & \"'!\" & AF431),0) + IF(Setup!$AJ$10<>\"\",INDIRECT(\"'\" & Setup!$AJ$10 & \"'!\" & AF431),0) + IF(Setup!$AJ$11<>\"\",INDIRECT(\"'\" & Setup!$AJ$11 & \"'!\" & AF431),0) + IF(Setup!$AJ$12<>\"\",INDIRECT(\"'\" & Setup!$AJ$12 & \"'!\" & AF431),0)","v":0},null,"",{"$nulls":30},0,{"$f":"IF(Setup!$AH$7=\"\",0,INDIRECT(\"'\" & Setup!$AH$7 & \"'!\" & AF431))","v":0},{"$f":"IF(Setup!$AI$7=\"\",0,INDIRECT(\"'\" & Setup!$AI$7 & \"'!\" & AF431))","v":0},{"$f":"IF(Setup!$AJ$7=\"\",0,INDIRECT(\"'\" & Setup!$AJ$7 & \"'!\" & AF431))","v":0}]
[{"$f":"Planning!A204","v":"I196"},{"$f":"Planning!B204","v":0},{"$f":"Planning!C204","v":0},{"$f":"Planning!D204","v":0},{"$f":"Planning!E204","v":0},{"$f":"Planning!G204","v":0},0,{"v":0,"d":"0.00"},{"v":0,"d":"0.00"},"","",{"$f":"IF(Setup!$AG$7<>\"\",INDIRECT(\"'\" & Setup!$AG$7 & \"'!\" & AD432),0) + IF(Setup!$AG$8<>\"\",INDIRECT(\"'\" & Setup!$AG$8 & \"'!\" & AD432),0) + IF(Setup!$AG$9<>\"\",INDIRECT(\"'\" & Setup!$AG$9 & \"'!\" & AD432),0) + IF(Setup!$AG$10<>\"\",INDIRECT(\"'\" & Setup!$AG$10 & \"'!\" & AD432),0) + IF(Setup!$AG$11<>\"\",INDIRECT(\"'\" & Setup!$AG$11 & \"'!\" & AD432),0) + IF(Setup!$AG$12<>\"\",INDIRECT(\"'\" & Setup!$AG$12 & \"'!\" & AD432),0)","v":{"v":0,"d":"0.00"}},{"$f":"IF(Setup!$AG$7<>\"\",INDIRECT(\"'\" & Setup!$AG$7 & \"'!\" & AE432),0) + IF(Setup!$AG$8<>\"\",INDIRECT(\"'\" & Setup!$AG$8 & \"'!\" & AE432),0) + IF(Setup!$AG$9<>\"\",INDIRECT(\"'\" & Setup!$AG$9 & \"'!\" & AE432),0) + IF(Setup!$AG$10<>\"\",INDIRECT(\"'\" & Setup!$AG$10 & \"'!\" & AE432),0) + IF(Setup!$AG$11<>\"\",INDIRECT(\"'\" & Setup!$AG$11 & \"'!\" & AE432),0) + IF(Setup!$AG$12<>\"\",INDIRECT(\"'\" & Setup!$AG$12 & \"'!\" & AE432),0)","v":{"v":0,"d":"0.00"}},"","",{"$f":"IF(Setup!$AH$7<>\"\",INDIRECT(\"'\" & Setup!$AH$7 & \"'!\" & AD432),0) + IF(Setup!$AH$8<>\"\",INDIRECT(\"'\" & Setup!$AH$8 & \"'!\" & AD432),0) + IF(Setup!$AH$9<>\"\",INDIRECT(\"'\" & Setup!$AH$9 & \"'!\" & AD432),0) + IF(Setup!$AH$10<>\"\",INDIRECT(\"'\" & Setup!$AH$10 & \"'!\" & AD432),0) + IF(Setup!$AH$11<>\"\",INDIRECT(\"'\" & Setup!$AH$11 & \"'!\" & AD432),0) + IF(Setup!$AH$12<>\"\",INDIRECT(\"'\" & Setup!$AH$12 & \"'!\" & AD432),0)","v":{"v":0,"d":"0.00"}},{"$f":"IF(Setup!$AH$7<>\"\",INDIRECT(\"'\" & Setup!$AH$7 & \"'!\" & AE432),0) + IF(Setup!$AH$8<>\"\",INDIRECT(\"'\" & Setup!$AH$8 & \"'!\" & AE432),0) + IF(Setup!$AH$9<>\"\",INDIRECT(\"'\" & Setup!$AH$9 & \"'!\" & AE432),0) + IF(Setup!$AH$10<>\"\",INDIRECT(\"'\" & Setup!$AH$10 & \"'!\" & AE432),0) + IF(Setup!$AH$11<>\"\",INDIRECT(\"'\" & Setup!$AH$11 & \"'!\" & AE432),0) + IF(Setup!$AH$12<>\"\",INDIRECT(\"'\" & Setup!$AH$12 & \"'!\" & AE432),0)","v":{"v":0,"d":"0.00"}},"","",{"$f":"IF(Setup!$AI$7<>\"\",INDIRECT(\"'\" & Setup!$AI$7 & \"'!\" & AD432),0) + IF(Setup!$AI$8<>\"\",INDIRECT(\"'\" & Setup!$AI$8 & \"'!\" & AD432),0) + IF(Setup!$AI$9<>\"\",INDIRECT(\"'\" & Setup!$AI$9 & \"'!\" & AD432),0) + IF(Setup!$AI$10<>\"\",INDIRECT(\"'\" & Setup!$AI$10 & \"'!\" & AD432),0) + IF(Setup!$AI$11<>\"\",INDIRECT(\"'\" & Setup!$AI$11 & \"'!\" & AD432),0) + IF(Setup!$AI$12<>\"\",INDIRECT(\"'\" & Setup!$AI$12 & \"'!\" & AD432),0)","v":{"v":0,"d":"0.00"}},{"$f":"IF(Setup!$AI$7<>\"\",INDIRECT(\"'\" & Setup!$AI$7 & \"'!\" & AE432),0) + IF(Setup!$AI$8<>\"\",INDIRECT(\"'\" & Setup!$AI$8 & \"'!\" & AE432),0) + IF(Setup!$AI$9<>\"\",INDIRECT(\"'\" & Setup!$AI$9 & \"'!\" & AE432),0) + IF(Setup!$AI$10<>\"\",INDIRECT(\"'\" & Setup!$AI$10 & \"'!\" & AE432),0) + IF(Setup!$AI$11<>\"\",INDIRECT(\"'\" & Setup!$AI$11 & \"'!\" & AE432),0) + IF(Setup!$AI$12<>\"\",INDIRECT(\"'\" & Setup!$AI$12 & \"'!\" & AE432),0)","v":{"v":0,"d":"0.00"}},"","",{"$f":"IF(Setup!$AJ$7<>\"\",INDIRECT(\"'\" & Setup!$AJ$7 & \"'!\" & AD432),0) + IF(Setup!$AJ$8<>\"\",INDIRECT(\"'\" & Setup!$AJ$8 & \"'!\" & AD432),0) + IF(Setup!$AJ$9<>\"\",INDIRECT(\"'\" & Setup!$AJ$9 & \"'!\" & AD432),0) + IF(Setup!$AJ$10<>\"\",INDIRECT(\"'\" & Setup!$AJ$10 & \"'!\" & AD432),0) + IF(Setup!$AJ$11<>\"\",INDIRECT(\"'\" & Setup!$AJ$11 & \"'!\" & AD432),0) + IF(Setup!$AJ$12<>\"\",INDIRECT(\"'\" & Setup!$AJ$12 & \"'!\" & AD432),0)","v":0},{"$f":"IF(Setup!$AJ$7<>\"\",INDIRECT(\"'\" & Setup!$AJ$7 & \"'!\" & AE432),0) + IF(Setup!$AJ$8<>\"\",INDIRECT(\"'\" & Setup!$AJ$8 & \"'!\" & AE432),0) + IF(Setup!$AJ$9<>\"\",INDIRECT(\"'\" & Setup!$AJ$9 & \"'!\" & AE432),0) + IF(Setup!$AJ$10<>\"\",INDIRECT(\"'\" & Setup!$AJ$10 & \"'!\" & AE432),0) + IF(Setup!$AJ$11<>\"\",INDIRECT(\"'\" & Setup!$AJ$11 & \"'!\" & AE432),0) + IF(Setup!$AJ$12<>\"\",INDIRECT(\"'\" & Setup!$AJ$12 & \"'!\" & AE432),0)","v":0},"","",{"$f":"Planning!H204","v":0},"00","M220","O220","N220",null,null,{"$f":"IF(Setup!$AG$7<>\"\",INDIRECT(\"'\" & Setup!$AG$7 & \"'!\" & AF432),0) + IF(Setup!$AG$8<>\"\",INDIRECT(\"'\" & Setup!$AG$8 & \"'!\" & AF432),0) + IF(Setup!$AG$9<>\"\",INDIRECT(\"'\" & Setup!$AG$9 & \"'!\" & AF432),0) + IF(Setup!$AG$10<>\"\",INDIRECT(\"'\" & Setup!$AG$10 & \"'!\" & AF432),0) + IF(Setup!$AG$11<>\"\",INDIRECT(\"'\" & Setup!$AG$11 & \"'!\" & AF432),0) + IF(Setup!$AG$12<>\"\",INDIRECT(\"'\" & Setup!$AG$12 & \"'!\" & AF432),0)","v":0},{"$f":"IF(Setup!$AH$7<>\"\",INDIRECT(\"'\" & Setup!$AH$7 & \"'!\" & AF432),0) + IF(Setup!$AH$8<>\"\",INDIRECT(\"'\" & Setup!$AH$8 & \"'!\" & AF432),0) + IF(Setup!$AH$9<>\"\",INDIRECT(\"'\" & Setup!$AH$9 & \"'!\" & AF432),0) + IF(Setup!$AH$10<>\"\",INDIRECT(\"'\" & Setup!$AH$10 & \"'!\" & AF432),0) + IF(Setup!$AH$11<>\"\",INDIRECT(\"'\" & Setup!$AH$11 & \"'!\" & AF432),0) + IF(Setup!$AH$12<>\"\",INDIRECT(\"'\" & Setup!$AH$12 & \"'!\" & AF432),0)","v":0},{"$f":"IF(Setup!$AI$7<>\"\",INDIRECT(\"'\" & Setup!$AI$7 & \"'!\" & AF432),0) + IF(Setup!$AI$8<>\"\",INDIRECT(\"'\" & Setup!$AI$8 & \"'!\" & AF432),0) + IF(Setup!$AI$9<>\"\",INDIRECT(\"'\" & Setup!$AI$9 & \"'!\" & AF432),0) + IF(Setup!$AI$10<>\"\",INDIRECT(\"'\" & Setup!$AI$10 & \"'!\" & AF432),0) + IF(Setup!$AI$11<>\"\",INDIRECT(\"'\" & Setup!$AI$11 & \"'!\" & AF432),0) + IF(Setup!$AI$12<>\"\",INDIRECT(\"'\" & Setup!$AI$12 & \"'!\" & AF432),0)","v":0},{"$f":"IF(Setup!$AJ$7<>\"\",INDIRECT(\"'\" & Setup!$AJ$7 & \"'!\" & AF432),0) + IF(Setup!$AJ$8<>\"\",INDIRECT(\"'\" & Setup!$AJ$8 & \"'!\" & AF432),0) + IF(Setup!$AJ$9<>\"\",INDIRECT(\"'\" & Setup!$AJ$9 & \"'!\" & AF432),0) + IF(Setup!$AJ$10<>\"\",INDIRECT(\"'\" & Setup!$AJ$10 & \"'!\" & AF432),0) + IF(Setup!$AJ$11<>\"\",INDIRECT(\"'\" & Setup!$AJ$11 & \"'!\" & AF432),0) + IF(Setup!$AJ$12<>\"\",INDIRECT(\"'\" & Setup!$AJ$12 & \"'!\" & AF432),0)","v":0},null,"",{"$nulls":30},0,{"$f":"IF(Setup!$AH$7=\"\",0,INDIRECT(\"'\" & Setup!$AH$7 & \"'!\" & AF432))","v":0},{"$f":"IF(Setup!$AI$7=\"\",0,INDIRECT(\"'\" & Setup!$AI$7 & \"'!\" & AF432))","v":0},{"$f":"IF(Setup!$AJ$7=\"\",0,INDIRECT(\"'\" & Setup!$AJ$7 & \"'!\" & AF432))","v":0}]
[{"$f":"Planning!A205","v":"I197"},{"$f":"Planning!B205","v":0},{"$f":"Planning!C205","v":0},{"$f":"Planning!D205","v":0},{"$f":"Planning!E205","v":0},{"$f":"Planning!G205","v":0},0,{"v":0,"d":"0.00"},{"v":0,"d":"0.00"},"","",{"$f":"IF(Setup!$AG$7<>\"\",INDIRECT(\"'\" & Setup!$AG$7 & \"'!\" & AD433),0) + IF(Setup!$AG$8<>\"\",INDIRECT(\"'\" & Setup!$AG$8 & \"'!\" & AD433),0) + IF(Setup!$AG$9<>\"\",INDIRECT(\"'\" & Setup!$AG$9 & \"'!\" & AD433),0) + IF(Setup!$AG$10<>\"\",INDIRECT(\"'\" & Setup!$AG$10 & \"'!\" & AD433),0) + IF(Setup!$AG$11<>\"\",INDIRECT(\"'\" & Setup!$AG$11 & \"'!\" & AD433),0) + IF(Setup!$AG$12<>\"\",INDIRECT(\"'\" & Setup!$AG$12 & \"'!\" & AD433),0)","v":{"v":0,"d":"0.00"}},{"$f":"IF(Setup!$AG$7<>\"\",INDIRECT(\"'\" & Setup!$AG$7 & \"'!\" & AE433),0) + IF(Setup!$AG$8<>\"\",INDIRECT(\"'\" & Setup!$AG$8 & \"'!\" & AE433),0) + IF(Setup!$AG$9<>\"\",INDIRECT(\"'\" & Setup!$AG$9 & \"'!\" & AE433),0) + IF(Setup!$AG$10<>\"\",INDIRECT(\"'\" & Setup!$AG$10 & \"'!\" & AE433),0) + IF(Setup!$AG$11<>\"\",INDIRECT(\"'\" & Setup!$AG$11 & \"'!\" & AE433),0) + IF(Setup!$AG$12<>\"\",INDIRECT(\"'\" & Setup!$AG$12 & \"'!\" & AE433),0)","v":{"v":0,"d":"0.00"}},"","",{"$f":"IF(Setup!$AH$7<>\"\",INDIRECT(\"'\" & Setup!$AH$7 & \"'!\" & AD433),0) + IF(Setup!$AH$8<>\"\",INDIRECT(\"'\" & Setup!$AH$8 & \"'!\" & AD433),0) + IF(Setup!$AH$9<>\"\",INDIRECT(\"'\" & Setup!$AH$9 & \"'!\" & AD433),0) + IF(Setup!$AH$10<>\"\",INDIRECT(\"'\" & Setup!$AH$10 & \"'!\" & AD433),0) + IF(Setup!$AH$11<>\"\",INDIRECT(\"'\" & Setup!$AH$11 & \"'!\" & AD433),0) + IF(Setup!$AH$12<>\"\",INDIRECT(\"'\" & Setup!$AH$12 & \"'!\" & AD433),0)","v":{"v":0,"d":"0.00"}},{"$f":"IF(Setup!$AH$7<>\"\",INDIRECT(\"'\" & Setup!$AH$7 & \"'!\" & AE433),0) + IF(Setup!$AH$8<>\"\",INDIRECT(\"'\" & Setup!$AH$8 & \"'!\" & AE433),0) + IF(Setup!$AH$9<>\"\",INDIRECT(\"'\" & Setup!$AH$9 & \"'!\" & AE433),0) + IF(Setup!$AH$10<>\"\",INDIRECT(\"'\" & Setup!$AH$10 & \"'!\" & AE433),0) + IF(Setup!$AH$11<>\"\",INDIRECT(\"'\" & Setup!$AH$11 & \"'!\" & AE433),0) + IF(Setup!$AH$12<>\"\",INDIRECT(\"'\" & Setup!$AH$12 & \"'!\" & AE433),0)","v":{"v":0,"d":"0.00"}},"","",{"$f":"IF(Setup!$AI$7<>\"\",INDIRECT(\"'\" & Setup!$AI$7 & \"'!\" & AD433),0) + IF(Setup!$AI$8<>\"\",INDIRECT(\"'\" & Setup!$AI$8 & \"'!\" & AD433),0) + IF(Setup!$AI$9<>\"\",INDIRECT(\"'\" & Setup!$AI$9 & \"'!\" & AD433),0) + IF(Setup!$AI$10<>\"\",INDIRECT(\"'\" & Setup!$AI$10 & \"'!\" & AD433),0) + IF(Setup!$AI$11<>\"\",INDIRECT(\"'\" & Setup!$AI$11 & \"'!\" & AD433),0) + IF(Setup!$AI$12<>\"\",INDIRECT(\"'\" & Setup!$AI$12 & \"'!\" & AD433),0)","v":{"v":0,"d":"0.00"}},{"$f":"IF(Setup!$AI$7<>\"\",INDIRECT(\"'\" & Setup!$AI$7 & \"'!\" & AE433),0) + IF(Setup!$AI$8<>\"\",INDIRECT(\"'\" & Setup!$AI$8 & \"'!\" & AE433),0) + IF(Setup!$AI$9<>\"\",INDIRECT(\"'\" & Setup!$AI$9 & \"'!\" & AE433),0) + IF(Setup!$AI$10<>\"\",INDIRECT(\"'\" & Setup!$AI$10 & \"'!\" & AE433),0) + IF(Setup!$AI$11<>\"\",INDIRECT(\"'\" & Setup!$AI$11 & \"'!\" & AE433),0) + IF(Setup!$AI$12<>\"\",INDIRECT(\"'\" & Setup!$AI$12 & \"'!\" & AE433),0)","v":{"v":0,"d":"0.00"}},"","",{"$f":"IF(Setup!$AJ$7<>\"\",INDIRECT(\"'\" & Setup!$AJ$7 & \"'!\" & AD433),0) + IF(Setup!$AJ$8<>\"\",INDIRECT(\"'\" & Setup!$AJ$8 & \"'!\" & AD433),0) + IF(Setup!$AJ$9<>\"\",INDIRECT(\"'\" & Setup!$AJ$9 & \"'!\" & AD433),0) + IF(Setup!$AJ$10<>\"\",INDIRECT(\"'\" & Setup!$AJ$10 & \"'!\" & AD433),0) + IF(Setup!$AJ$11<>\"\",INDIRECT(\"'\" & Setup!$AJ$11 & \"'!\" & AD433),0) + IF(Setup!$AJ$12<>\"\",INDIRECT(\"'\" & Setup!$AJ$12 & \"'!\" & AD433),0)","v":0},{"$f":"IF(Setup!$AJ$7<>\"\",INDIRECT(\"'\" & Setup!$AJ$7 & \"'!\" & AE433),0) + IF(Setup!$AJ$8<>\"\",INDIRECT(\"'\" & Setup!$AJ$8 & \"'!\" & AE433),0) + IF(Setup!$AJ$9<>\"\",INDIRECT(\"'\" & Setup!$AJ$9 & \"'!\" & AE433),0) + IF(Setup!$AJ$10<>\"\",INDIRECT(\"'\" & Setup!$AJ$10 & \"'!\" & AE433),0) + IF(Setup!$AJ$11<>\"\",INDIRECT(\"'\" & Setup!$AJ$11 & \"'!\" & AE433),0) + IF(Setup!$AJ$12<>\"\",INDIRECT(\"'\" & Setup!$AJ$12 & \"'!\" & AE433),0)","v":0},"","",{"$f":"Planning!H205","v":0},"00","M221","O221","N221",null,null,{"$f":"IF(Setup!$AG$7<>\"\",INDIRECT(\"'\" & Setup!$AG$7 & \"'!\" & AF433),0) + IF(Setup!$AG$8<>\"\",INDIRECT(\"'\" & Setup!$AG$8 & \"'!\" & AF433),0) + IF(Setup!$AG$9<>\"\",INDIRECT(\"'\" & Setup!$AG$9 & \"'!\" & AF433),0) + IF(Setup!$AG$10<>\"\",INDIRECT(\"'\" & Setup!$AG$10 & \"'!\" & AF433),0) + IF(Setup!$AG$11<>\"\",INDIRECT(\"'\" & Setup!$AG$11 & \"'!\" & AF433),0) + IF(Setup!$AG$12<>\"\",INDIRECT(\"'\" & Setup!$AG$12 & \"'!\" & AF433),0)","v":0},{"$f":"IF(Setup!$AH$7<>\"\",INDIRECT(\"'\" & Setup!$AH$7 & \"'!\" & AF433),0) + IF(Setup!$AH$8<>\"\",INDIRECT(\"'\" & Setup!$AH$8 & \"'!\" & AF433),0) + IF(Setup!$AH$9<>\"\",INDIRECT(\"'\" & Setup!$AH$9 & \"'!\" & AF433),0) + IF(Setup!$AH$10<>\"\",INDIRECT(\"'\" & Setup!$AH$10 & \"'!\" & AF433),0) + IF(Setup!$AH$11<>\"\",INDIRECT(\"'\" & Setup!$AH$11 & \"'!\" & AF433),0) + IF(Setup!$AH$12<>\"\",INDIRECT(\"'\" & Setup!$AH$12 & \"'!\" & AF433),0)","v":0},{"$f":"IF(Setup!$AI$7<>\"\",INDIRECT(\"'\" & Setup!$AI$7 & \"'!\" & AF433),0) + IF(Setup!$AI$8<>\"\",INDIRECT(\"'\" & Setup!$AI$8 & \"'!\" & AF433),0) + IF(Setup!$AI$9<>\"\",INDIRECT(\"'\" & Setup!$AI$9 & \"'!\" & AF433),0) + IF(Setup!$AI$10<>\"\",INDIRECT(\"'\" & Setup!$AI$10 & \"'!\" & AF433),0) + IF(Setup!$AI$11<>\"\",INDIRECT(\"'\" & Setup!$AI$11 & \"'!\" & AF433),0) + IF(Setup!$AI$12<>\"\",INDIRECT(\"'\" & Setup!$AI$12 & \"'!\" & AF433),0)","v":0},{"$f":"IF(Setup!$AJ$7<>\"\",INDIRECT(\"'\" & Setup!$AJ$7 & \"'!\" & AF433),0) + IF(Setup!$AJ$8<>\"\",INDIRECT(\"'\" & Setup!$AJ$8 & \"'!\" & AF433),0) + IF(Setup!$AJ$9<>\"\",INDIRECT(\"'\" & Setup!$AJ$9 & \"'!\" & AF433),0) + IF(Setup!$AJ$10<>\"\",INDIRECT(\"'\" & Setup!$AJ$10 & \"'!\" & AF433),0) + IF(Setup!$AJ$11<>\"\",INDIRECT(\"'\" & Setup!$AJ$11 & \"'!\" & AF433),0) + IF(Setup!$AJ$12<>\"\",INDIRECT(\"'\" & Setup!$AJ$12 & \"'!\" & AF433),0)","v":0},null,"",{"$nulls":30},0,{"$f":"IF(Setup!$AH$7=\"\",0,INDIRECT(\"'\" & Setup!$AH$7 & \"'!\" & AF433))","v":0},{"$f":"IF(Setup!$AI$7=\"\",0,INDIRECT(\"'\" & Setup!$AI$7 & \"'!\" & AF433))","v":0},{"$f":"IF(Setup!$AJ$7=\"\",0,INDIRECT(\"'\" & Setup!$AJ$7 & \"'!\" & AF433))","v":0}]
[{"$f":"Planning!A206","v":"I198"},{"$f":"Planning!B206","v":0},{"$f":"Planning!C206","v":0},{"$f":"Planning!D206","v":0},{"$f":"Planning!E206","v":0},{"$f":"Planning!G206","v":0},0,{"v":0,"d":"0.00"},{"v":0,"d":"0.00"},"","",{"$f":"IF(Setup!$AG$7<>\"\",INDIRECT(\"'\" & Setup!$AG$7 & \"'!\" & AD434),0) + IF(Setup!$AG$8<>\"\",INDIRECT(\"'\" & Setup!$AG$8 & \"'!\" & AD434),0) + IF(Setup!$AG$9<>\"\",INDIRECT(\"'\" & Setup!$AG$9 & \"'!\" & AD434),0) + IF(Setup!$AG$10<>\"\",INDIRECT(\"'\" & Setup!$AG$10 & \"'!\" & AD434),0) + IF(Setup!$AG$11<>\"\",INDIRECT(\"'\" & Setup!$AG$11 & \"'!\" & AD434),0) + IF(Setup!$AG$12<>\"\",INDIRECT(\"'\" & Setup!$AG$12 & \"'!\" & AD434),0)","v":{"v":0,"d":"0.00"}},{"$f":"IF(Setup!$AG$7<>\"\",INDIRECT(\"'\" & Setup!$AG$7 & \"'!\" & AE434),0) + IF(Setup!$AG$8<>\"\",INDIRECT(\"'\" & Setup!$AG$8 & \"'!\" & AE434),0) + IF(Setup!$AG$9<>\"\",INDIRECT(\"'\" & Setup!$AG$9 & \"'!\" & AE434),0) + IF(Setup!$AG$10<>\"\",INDIRECT(\"'\" & Setup!$AG$10 & \"'!\" & AE434),0) + IF(Setup!$AG$11<>\"\",INDIRECT(\"'\" & Setup!$AG$11 & \"'!\" & AE434),0) + IF(Setup!$AG$12<>\"\",INDIRECT(\"'\" & Setup!$AG$12 & \"'!\" & AE434),0)","v":{"v":0,"d":"0.00"}},"","",{"$f":"IF(Setup!$AH$7<>\"\",INDIRECT(\"'\" & Setup!$AH$7 & \"'!\" & AD434),0) + IF(Setup!$AH$8<>\"\",INDIRECT(\"'\" & Setup!$AH$8 & \"'!\" & AD434),0) + IF(Setup!$AH$9<>\"\",INDIRECT(\"'\" & Setup!$AH$9 & \"'!\" & AD434),0) + IF(Setup!$AH$10<>\"\",INDIRECT(\"'\" & Setup!$AH$10 & \"'!\" & AD434),0) + IF(Setup!$AH$11<>\"\",INDIRECT(\"'\" & Setup!$AH$11 & \"'!\" & AD434),0) + IF(Setup!$AH$12<>\"\",INDIRECT(\"'\" & Setup!$AH$12 & \"'!\" & AD434),0)","v":{"v":0,"d":"0.00"}},{"$f":"IF(Setup!$AH$7<>\"\",INDIRECT(\"'\" & Setup!$AH$7 & \"'!\" & AE434),0) + IF(Setup!$AH$8<>\"\",INDIRECT(\"'\" & Setup!$AH$8 & \"'!\" & AE434),0) + IF(Setup!$AH$9<>\"\",INDIRECT(\"'\" & Setup!$AH$9 & \"'!\" & AE434),0) + IF(Setup!$AH$10<>\"\",INDIRECT(\"'\" & Setup!$AH$10 & \"'!\" & AE434),0) + IF(Setup!$AH$11<>\"\",INDIRECT(\"'\" & Setup!$AH$11 & \"'!\" & AE434),0) + IF(Setup!$AH$12<>\"\",INDIRECT(\"'\" & Setup!$AH$12 & \"'!\" & AE434),0)","v":{"v":0,"d":"0.00"}},"","",{"$f":"IF(Setup!$AI$7<>\"\",INDIRECT(\"'\" & Setup!$AI$7 & \"'!\" & AD434),0) + IF(Setup!$AI$8<>\"\",INDIRECT(\"'\" & Setup!$AI$8 & \"'!\" & AD434),0) + IF(Setup!$AI$9<>\"\",INDIRECT(\"'\" & Setup!$AI$9 & \"'!\" & AD434),0) + IF(Setup!$AI$10<>\"\",INDIRECT(\"'\" & Setup!$AI$10 & \"'!\" & AD434),0) + IF(Setup!$AI$11<>\"\",INDIRECT(\"'\" & Setup!$AI$11 & \"'!\" & AD434),0) + IF(Setup!$AI$12<>\"\",INDIRECT(\"'\" & Setup!$AI$12 & \"'!\" & AD434),0)","v":{"v":0,"d":"0.00"}},{"$f":"IF(Setup!$AI$7<>\"\",INDIRECT(\"'\" & Setup!$AI$7 & \"'!\" & AE434),0) + IF(Setup!$AI$8<>\"\",INDIRECT(\"'\" & Setup!$AI$8 & \"'!\" & AE434),0) + IF(Setup!$AI$9<>\"\",INDIRECT(\"'\" & Setup!$AI$9 & \"'!\" & AE434),0) + IF(Setup!$AI$10<>\"\",INDIRECT(\"'\" & Setup!$AI$10 & \"'!\" & AE434),0) + IF(Setup!$AI$11<>\"\",INDIRECT(\"'\" & Setup!$AI$11 & \"'!\" & AE434),0) + IF(Setup!$AI$12<>\"\",INDIRECT(\"'\" & Setup!$AI$12 & \"'!\" & AE434),0)","v":{"v":0,"d":"0.00"}},"","",{"$f":"IF(Setup!$AJ$7<>\"\",INDIRECT(\"'\" & Setup!$AJ$7 & \"'!\" & AD434),0) + IF(Setup!$AJ$8<>\"\",INDIRECT(\"'\" & Setup!$AJ$8 & \"'!\" & AD434),0) + IF(Setup!$AJ$9<>\"\",INDIRECT(\"'\" & Setup!$AJ$9 & \"'!\" & AD434),0) + IF(Setup!$AJ$10<>\"\",INDIRECT(\"'\" & Setup!$AJ$10 & \"'!\" & AD434),0) + IF(Setup!$AJ$11<>\"\",INDIRECT(\"'\" & Setup!$AJ$11 & \"'!\" & AD434),0) + IF(Setup!$AJ$12<>\"\",INDIRECT(\"'\" & Setup!$AJ$12 & \"'!\" & AD434),0)","v":0},{"$f":"IF(Setup!$AJ$7<>\"\",INDIRECT(\"'\" & Setup!$AJ$7 & \"'!\" & AE434),0) + IF(Setup!$AJ$8<>\"\",INDIRECT(\"'\" & Setup!$AJ$8 & \"'!\" & AE434),0) + IF(Setup!$AJ$9<>\"\",INDIRECT(\"'\" & Setup!$AJ$9 & \"'!\" & AE434),0) + IF(Setup!$AJ$10<>\"\",INDIRECT(\"'\" & Setup!$AJ$10 & \"'!\" & AE434),0) + IF(Setup!$AJ$11<>\"\",INDIRECT(\"'\" & Setup!$AJ$11 & \"'!\" & AE434),0) + IF(Setup!$AJ$12<>\"\",INDIRECT(\"'\" & Setup!$AJ$12 & \"'!\" & AE434),0)","v":0},"","",{"$f":"Planning!H206","v":0},"00","M222","O222","N222",null,null,{"$f":"IF(Setup!$AG$7<>\"\",INDIRECT(\"'\" & Setup!$AG$7 & \"'!\" & AF434),0) + IF(Setup!$AG$8<>\"\",INDIRECT(\"'\" & Setup!$AG$8 & \"'!\" & AF434),0) + IF(Setup!$AG$9<>\"\",INDIRECT(\"'\" & Setup!$AG$9 & \"'!\" & AF434),0) + IF(Setup!$AG$10<>\"\",INDIRECT(\"'\" & Setup!$AG$10 & \"'!\" & AF434),0) + IF(Setup!$AG$11<>\"\",INDIRECT(\"'\" & Setup!$AG$11 & \"'!\" & AF434),0) + IF(Setup!$AG$12<>\"\",INDIRECT(\"'\" & Setup!$AG$12 & \"'!\" & AF434),0)","v":0},{"$f":"IF(Setup!$AH$7<>\"\",INDIRECT(\"'\" & Setup!$AH$7 & \"'!\" & AF434),0) + IF(Setup!$AH$8<>\"\",INDIRECT(\"'\" & Setup!$AH$8 & \"'!\" & AF434),0) + IF(Setup!$AH$9<>\"\",INDIRECT(\"'\" & Setup!$AH$9 & \"'!\" & AF434),0) + IF(Setup!$AH$10<>\"\",INDIRECT(\"'\" & Setup!$AH$10 & \"'!\" & AF434),0) + IF(Setup!$AH$11<>\"\",INDIRECT(\"'\" & Setup!$AH$11 & \"'!\" & AF434),0) + IF(Setup!$AH$12<>\"\",INDIRECT(\"'\" & Setup!$AH$12 & \"'!\" & AF434),0)","v":0},{"$f":"IF(Setup!$AI$7<>\"\",INDIRECT(\"'\" & Setup!$AI$7 & \"'!\" & AF434),0) + IF(Setup!$AI$8<>\"\",INDIRECT(\"'\" & Setup!$AI$8 & \"'!\" & AF434),0) + IF(Setup!$AI$9<>\"\",INDIRECT(\"'\" & Setup!$AI$9 & \"'!\" & AF434),0) + IF(Setup!$AI$10<>\"\",INDIRECT(\"'\" & Setup!$AI$10 & \"'!\" & AF434),0) + IF(Setup!$AI$11<>\"\",INDIRECT(\"'\" & Setup!$AI$11 & \"'!\" & AF434),0) + IF(Setup!$AI$12<>\"\",INDIRECT(\"'\" & Setup!$AI$12 & \"'!\" & AF434),0)","v":0},{"$f":"IF(Setup!$AJ$7<>\"\",INDIRECT(\"'\" & Setup!$AJ$7 & \"'!\" & AF434),0) + IF(Setup!$AJ$8<>\"\",INDIRECT(\"'\" & Setup!$AJ$8 & \"'!\" & AF434),0) + IF(Setup!$AJ$9<>\"\",INDIRECT(\"'\" & Setup!$AJ$9 & \"'!\" & AF434),0) + IF(Setup!$AJ$10<>\"\",INDIRECT(\"'\" & Setup!$AJ$10 & \"'!\" & AF434),0) + IF(Setup!$AJ$11<>\"\",INDIRECT(\"'\" & Setup!$AJ$11 & \"'!\" & AF434),0) + IF(Setup!$AJ$12<>\"\",INDIRECT(\"'\" & Setup!$AJ$12 & \"'!\" & AF434),0)","v":0},null,"",{"$nulls":30},0,{"$f":"IF(Setup!$AH$7=\"\",0,INDIRECT(\"'\" & Setup!$AH$7 & \"'!\" & AF434))","v":0},{"$f":"IF(Setup!$AI$7=\"\",0,INDIRECT(\"'\" & Setup!$AI$7 & \"'!\" & AF434))","v":0},{"$f":"IF(Setup!$AJ$7=\"\",0,INDIRECT(\"'\" & Setup!$AJ$7 & \"'!\" & AF434))","v":0}]
[{"$f":"Planning!A207","v":"I199"},{"$f":"Planning!B207","v":0},{"$f":"Planning!C207","v":0},{"$f":"Planning!D207","v":0},{"$f":"Planning!E207","v":0},{"$f":"Planning!G207","v":0},0,{"v":0,"d":"0.00"},{"v":0,"d":"0.00"},"","",{"$f":"IF(Setup!$AG$7<>\"\",INDIRECT(\"'\" & Setup!$AG$7 & \"'!\" & AD435),0) + IF(Setup!$AG$8<>\"\",INDIRECT(\"'\" & Setup!$AG$8 & \"'!\" & AD435),0) + IF(Setup!$AG$9<>\"\",INDIRECT(\"'\" & Setup!$AG$9 & \"'!\" & AD435),0) + IF(Setup!$AG$10<>\"\",INDIRECT(\"'\" & Setup!$AG$10 & \"'!\" & AD435),0) + IF(Setup!$AG$11<>\"\",INDIRECT(\"'\" & Setup!$AG$11 & \"'!\" & AD435),0) + IF(Setup!$AG$12<>\"\",INDIRECT(\"'\" & Setup!$AG$12 & \"'!\" & AD435),0)","v":{"v":0,"d":"0.00"}},{"$f":"IF(Setup!$AG$7<>\"\",INDIRECT(\"'\" & Setup!$AG$7 & \"'!\" & AE435),0) + IF(Setup!$AG$8<>\"\",INDIRECT(\"'\" & Setup!$AG$8 & \"'!\" & AE435),0) + IF(Setup!$AG$9<>\"\",INDIRECT(\"'\" & Setup!$AG$9 & \"'!\" & AE435),0) + IF(Setup!$AG$10<>\"\",INDIRECT(\"'\" & Setup!$AG$10 & \"'!\" & AE435),0) + IF(Setup!$AG$11<>\"\",INDIRECT(\"'\" & Setup!$AG$11 & \"'!\" & AE435),0) + IF(Setup!$AG$12<>\"\",INDIRECT(\"'\" & Setup!$AG$12 & \"'!\" & AE435),0)","v":{"v":0,"d":"0.00"}},"","",{"$f":"IF(Setup!$AH$7<>\"\",INDIRECT(\"'\" & Setup!$AH$7 & \"'!\" & AD435),0) + IF(Setup!$AH$8<>\"\",INDIRECT(\"'\" & Setup!$AH$8 & \"'!\" & AD435),0) + IF(Setup!$AH$9<>\"\",INDIRECT(\"'\" & Setup!$AH$9 & \"'!\" & AD435),0) + IF(Setup!$AH$10<>\"\",INDIRECT(\"'\" & Setup!$AH$10 & \"'!\" & AD435),0) + IF(Setup!$AH$11<>\"\",INDIRECT(\"'\" & Setup!$AH$11 & \"'!\" & AD435),0) + IF(Setup!$AH$12<>\"\",INDIRECT(\"'\" & Setup!$AH$12 & \"'!\" & AD435),0)","v":{"v":0,"d":"0.00"}},{"$f":"IF(Setup!$AH$7<>\"\",INDIRECT(\"'\" & Setup!$AH$7 & \"'!\" & AE435),0) + IF(Setup!$AH$8<>\"\",INDIRECT(\"'\" & Setup!$AH$8 & \"'!\" & AE435),0) + IF(Setup!$AH$9<>\"\",INDIRECT(\"'\" & Setup!$AH$9 & \"'!\" & AE435),0) + IF(Setup!$AH$10<>\"\",INDIRECT(\"'\" & Setup!$AH$10 & \"'!\" & AE435),0) + IF(Setup!$AH$11<>\"\",INDIRECT(\"'\" & Setup!$AH$11 & \"'!\" & AE435),0) + IF(Setup!$AH$12<>\"\",INDIRECT(\"'\" & Setup!$AH$12 & \"'!\" & AE435),0)","v":{"v":0,"d":"0.00"}},"","",{"$f":"IF(Setup!$AI$7<>\"\",INDIRECT(\"'\" & Setup!$AI$7 & \"'!\" & AD435),0) + IF(Setup!$AI$8<>\"\",INDIRECT(\"'\" & Setup!$AI$8 & \"'!\" & AD435),0) + IF(Setup!$AI$9<>\"\",INDIRECT(\"'\" & Setup!$AI$9 & \"'!\" & AD435),0) + IF(Setup!$AI$10<>\"\",INDIRECT(\"'\" & Setup!$AI$10 & \"'!\" & AD435),0) + IF(Setup!$AI$11<>\"\",INDIRECT(\"'\" & Setup!$AI$11 & \"'!\" & AD435),0) + IF(Setup!$AI$12<>\"\",INDIRECT(\"'\" & Setup!$AI$12 & \"'!\" & AD435),0)","v":{"v":0,"d":"0.00"}},{"$f":"IF(Setup!$AI$7<>\"\",INDIRECT(\"'\" & Setup!$AI$7 & \"'!\" & AE435),0) + IF(Setup!$AI$8<>\"\",INDIRECT(\"'\" & Setup!$AI$8 & \"'!\" & AE435),0) + IF(Setup!$AI$9<>\"\",INDIRECT(\"'\" & Setup!$AI$9 & \"'!\" & AE435),0) + IF(Setup!$AI$10<>\"\",INDIRECT(\"'\" & Setup!$AI$10 & \"'!\" & AE435),0) + IF(Setup!$AI$11<>\"\",INDIRECT(\"'\" & Setup!$AI$11 & \"'!\" & AE435),0) + IF(Setup!$AI$12<>\"\",INDIRECT(\"'\" & Setup!$AI$12 & \"'!\" & AE435),0)","v":{"v":0,"d":"0.00"}},"","",{"$f":"IF(Setup!$AJ$7<>\"\",INDIRECT(\"'\" & Setup!$AJ$7 & \"'!\" & AD435),0) + IF(Setup!$AJ$8<>\"\",INDIRECT(\"'\" & Setup!$AJ$8 & \"'!\" & AD435),0) + IF(Setup!$AJ$9<>\"\",INDIRECT(\"'\" & Setup!$AJ$9 & \"'!\" & AD435),0) + IF(Setup!$AJ$10<>\"\",INDIRECT(\"'\" & Setup!$AJ$10 & \"'!\" & AD435),0) + IF(Setup!$AJ$11<>\"\",INDIRECT(\"'\" & Setup!$AJ$11 & \"'!\" & AD435),0) + IF(Setup!$AJ$12<>\"\",INDIRECT(\"'\" & Setup!$AJ$12 & \"'!\" & AD435),0)","v":0},{"$f":"IF(Setup!$AJ$7<>\"\",INDIRECT(\"'\" & Setup!$AJ$7 & \"'!\" & AE435),0) + IF(Setup!$AJ$8<>\"\",INDIRECT(\"'\" & Setup!$AJ$8 & \"'!\" & AE435),0) + IF(Setup!$AJ$9<>\"\",INDIRECT(\"'\" & Setup!$AJ$9 & \"'!\" & AE435),0) + IF(Setup!$AJ$10<>\"\",INDIRECT(\"'\" & Setup!$AJ$10 & \"'!\" & AE435),0) + IF(Setup!$AJ$11<>\"\",INDIRECT(\"'\" & Setup!$AJ$11 & \"'!\" & AE435),0) + IF(Setup!$AJ$12<>\"\",INDIRECT(\"'\" & Setup!$AJ$12 & \"'!\" & AE435),0)","v":0},"","",{"$f":"Planning!H207","v":0},"00","M223","O223","N223",null,null,{"$f":"IF(Setup!$AG$7<>\"\",INDIRECT(\"'\" & Setup!$AG$7 & \"'!\" & AF435),0) + IF(Setup!$AG$8<>\"\",INDIRECT(\"'\" & Setup!$AG$8 & \"'!\" & AF435),0) + IF(Setup!$AG$9<>\"\",INDIRECT(\"'\" & Setup!$AG$9 & \"'!\" & AF435),0) + IF(Setup!$AG$10<>\"\",INDIRECT(\"'\" & Setup!$AG$10 & \"'!\" & AF435),0) + IF(Setup!$AG$11<>\"\",INDIRECT(\"'\" & Setup!$AG$11 & \"'!\" & AF435),0) + IF(Setup!$AG$12<>\"\",INDIRECT(\"'\" & Setup!$AG$12 & \"'!\" & AF435),0)","v":0},{"$f":"IF(Setup!$AH$7<>\"\",INDIRECT(\"'\" & Setup!$AH$7 & \"'!\" & AF435),0) + IF(Setup!$AH$8<>\"\",INDIRECT(\"'\" & Setup!$AH$8 & \"'!\" & AF435),0) + IF(Setup!$AH$9<>\"\",INDIRECT(\"'\" & Setup!$AH$9 & \"'!\" & AF435),0) + IF(Setup!$AH$10<>\"\",INDIRECT(\"'\" & Setup!$AH$10 & \"'!\" & AF435),0) + IF(Setup!$AH$11<>\"\",INDIRECT(\"'\" & Setup!$AH$11 & \"'!\" & AF435),0) + IF(Setup!$AH$12<>\"\",INDIRECT(\"'\" & Setup!$AH$12 & \"'!\" & AF435),0)","v":0},{"$f":"IF(Setup!$AI$7<>\"\",INDIRECT(\"'\" & Setup!$AI$7 & \"'!\" & AF435),0) + IF(Setup!$AI$8<>\"\",INDIRECT(\"'\" & Setup!$AI$8 & \"'!\" & AF435),0) + IF(Setup!$AI$9<>\"\",INDIRECT(\"'\" & Setup!$AI$9 & \"'!\" & AF435),0) + IF(Setup!$AI$10<>\"\",INDIRECT(\"'\" & Setup!$AI$10 & \"'!\" & AF435),0) + IF(Setup!$AI$11<>\"\",INDIRECT(\"'\" & Setup!$AI$11 & \"'!\" & AF435),0) + IF(Setup!$AI$12<>\"\",INDIRECT(\"'\" & Setup!$AI$12 & \"'!\" & AF435),0)","v":0},{"$f":"IF(Setup!$AJ$7<>\"\",INDIRECT(\"'\" & Setup!$AJ$7 & \"'!\" & AF435),0) + IF(Setup!$AJ$8<>\"\",INDIRECT(\"'\" & Setup!$AJ$8 & \"'!\" & AF435),0) + IF(Setup!$AJ$9<>\"\",INDIRECT(\"'\" & Setup!$AJ$9 & \"'!\" & AF435),0) + IF(Setup!$AJ$10<>\"\",INDIRECT(\"'\" & Setup!$AJ$10 & \"'!\" & AF435),0) + IF(Setup!$AJ$11<>\"\",INDIRECT(\"'\" & Setup!$AJ$11 & \"'!\" & AF435),0) + IF(Setup!$AJ$12<>\"\",INDIRECT(\"'\" & Setup!$AJ$12 & \"'!\" & AF435),0)","v":0},null,"",{"$nulls":30},0,{"$f":"IF(Setup!$AH$7=\"\",0,INDIRECT(\"'\" & Setup!$AH$7 & \"'!\" & AF435))","v":0},{"$f":"IF(Setup!$AI$7=\"\",0,INDIRECT(\"'\" & Setup!$AI$7 & \"'!\" & AF435))","v":0},{"$f":"IF(Setup!$AJ$7=\"\",0,INDIRECT(\"'\" & Setup!$AJ$7 & \"'!\" & AF435))","v":0}]
[{"$f":"Planning!A208","v":"I200"},{"$f":"Planning!B208","v":0},{"$f":"Planning!C208","v":0},{"$f":"Planning!D208","v":0},{"$f":"Planning!E208","v":0},{"$f":"Planning!G208","v":0},0,{"v":0,"d":"0.00"},{"v":0,"d":"0.00"},"","",{"$f":"IF(Setup!$AG$7<>\"\",INDIRECT(\"'\" & Setup!$AG$7 & \"'!\" & AD436),0) + IF(Setup!$AG$8<>\"\",INDIRECT(\"'\" & Setup!$AG$8 & \"'!\" & AD436),0) + IF(Setup!$AG$9<>\"\",INDIRECT(\"'\" & Setup!$AG$9 & \"'!\" & AD436),0) + IF(Setup!$AG$10<>\"\",INDIRECT(\"'\" & Setup!$AG$10 & \"'!\" & AD436),0) + IF(Setup!$AG$11<>\"\",INDIRECT(\"'\" & Setup!$AG$11 & \"'!\" & AD436),0) + IF(Setup!$AG$12<>\"\",INDIRECT(\"'\" & Setup!$AG$12 & \"'!\" & AD436),0)","v":{"v":0,"d":"0.00"}},{"$f":"IF(Setup!$AG$7<>\"\",INDIRECT(\"'\" & Setup!$AG$7 & \"'!\" & AE436),0) + IF(Setup!$AG$8<>\"\",INDIRECT(\"'\" & Setup!$AG$8 & \"'!\" & AE436),0) + IF(Setup!$AG$9<>\"\",INDIRECT(\"'\" & Setup!$AG$9 & \"'!\" & AE436),0) + IF(Setup!$AG$10<>\"\",INDIRECT(\"'\" & Setup!$AG$10 & \"'!\" & AE436),0) + IF(Setup!$AG$11<>\"\",INDIRECT(\"'\" & Setup!$AG$11 & \"'!\" & AE436),0) + IF(Setup!$AG$12<>\"\",INDIRECT(\"'\" & Setup!$AG$12 & \"'!\" & AE436),0)","v":{"v":0,"d":"0.00"}},"","",{"$f":"IF(Setup!$AH$7<>\"\",INDIRECT(\"'\" & Setup!$AH$7 & \"'!\" & AD436),0) + IF(Setup!$AH$8<>\"\",INDIRECT(\"'\" & Setup!$AH$8 & \"'!\" & AD436),0) + IF(Setup!$AH$9<>\"\",INDIRECT(\"'\" & Setup!$AH$9 & \"'!\" & AD436),0) + IF(Setup!$AH$10<>\"\",INDIRECT(\"'\" & Setup!$AH$10 & \"'!\" & AD436),0) + IF(Setup!$AH$11<>\"\",INDIRECT(\"'\" & Setup!$AH$11 & \"'!\" & AD436),0) + IF(Setup!$AH$12<>\"\",INDIRECT(\"'\" & Setup!$AH$12 & \"'!\" & AD436),0)","v":{"v":0,"d":"0.00"}},{"$f":"IF(Setup!$AH$7<>\"\",INDIRECT(\"'\" & Setup!$AH$7 & \"'!\" & AE436),0) + IF(Setup!$AH$8<>\"\",INDIRECT(\"'\" & Setup!$AH$8 & \"'!\" & AE436),0) + IF(Setup!$AH$9<>\"\",INDIRECT(\"'\" & Setup!$AH$9 & \"'!\" & AE436),0) + IF(Setup!$AH$10<>\"\",INDIRECT(\"'\" & Setup!$AH$10 & \"'!\" & AE436),0) + IF(Setup!$AH$11<>\"\",INDIRECT(\"'\" & Setup!$AH$11 & \"'!\" & AE436),0) + IF(Setup!$AH$12<>\"\",INDIRECT(\"'\" & Setup!$AH$12 & \"'!\" & AE436),0)","v":{"v":0,"d":"0.00"}},"","",{"$f":"IF(Setup!$AI$7<>\"\",INDIRECT(\"'\" & Setup!$AI$7 & \"'!\" & AD436),0) + IF(Setup!$AI$8<>\"\",INDIRECT(\"'\" & Setup!$AI$8 & \"'!\" & AD436),0) + IF(Setup!$AI$9<>\"\",INDIRECT(\"'\" & Setup!$AI$9 & \"'!\" & AD436),0) + IF(Setup!$AI$10<>\"\",INDIRECT(\"'\" & Setup!$AI$10 & \"'!\" & AD436),0) + IF(Setup!$AI$11<>\"\",INDIRECT(\"'\" & Setup!$AI$11 & \"'!\" & AD436),0) + IF(Setup!$AI$12<>\"\",INDIRECT(\"'\" & Setup!$AI$12 & \"'!\" & AD436),0)","v":{"v":0,"d":"0.00"}},{"$f":"IF(Setup!$AI$7<>\"\",INDIRECT(\"'\" & Setup!$AI$7 & \"'!\" & AE436),0) + IF(Setup!$AI$8<>\"\",INDIRECT(\"'\" & Setup!$AI$8 & \"'!\" & AE436),0) + IF(Setup!$AI$9<>\"\",INDIRECT(\"'\" & Setup!$AI$9 & \"'!\" & AE436),0) + IF(Setup!$AI$10<>\"\",INDIRECT(\"'\" & Setup!$AI$10 & \"'!\" & AE436),0) + IF(Setup!$AI$11<>\"\",INDIRECT(\"'\" & Setup!$AI$11 & \"'!\" & AE436),0) + IF(Setup!$AI$12<>\"\",INDIRECT(\"'\" & Setup!$AI$12 & \"'!\" & AE436),0)","v":{"v":0,"d":"0.00"}},"","",{"$f":"IF(Setup!$AJ$7<>\"\",INDIRECT(\"'\" & Setup!$AJ$7 & \"'!\" & AD436),0) + IF(Setup!$AJ$8<>\"\",INDIRECT(\"'\" & Setup!$AJ$8 & \"'!\" & AD436),0) + IF(Setup!$AJ$9<>\"\",INDIRECT(\"'\" & Setup!$AJ$9 & \"'!\" & AD436),0) + IF(Setup!$AJ$10<>\"\",INDIRECT(\"'\" & Setup!$AJ$10 & \"'!\" & AD436),0) + IF(Setup!$AJ$11<>\"\",INDIRECT(\"'\" & Setup!$AJ$11 & \"'!\" & AD436),0) + IF(Setup!$AJ$12<>\"\",INDIRECT(\"'\" & Setup!$AJ$12 & \"'!\" & AD436),0)","v":0},{"$f":"IF(Setup!$AJ$7<>\"\",INDIRECT(\"'\" & Setup!$AJ$7 & \"'!\" & AE436),0) + IF(Setup!$AJ$8<>\"\",INDIRECT(\"'\" & Setup!$AJ$8 & \"'!\" & AE436),0) + IF(Setup!$AJ$9<>\"\",INDIRECT(\"'\" & Setup!$AJ$9 & \"'!\" & AE436),0) + IF(Setup!$AJ$10<>\"\",INDIRECT(\"'\" & Setup!$AJ$10 & \"'!\" & AE436),0) + IF(Setup!$AJ$11<>\"\",INDIRECT(\"'\" & Setup!$AJ$11 & \"'!\" & AE436),0) + IF(Setup!$AJ$12<>\"\",INDIRECT(\"'\" & Setup!$AJ$12 & \"'!\" & AE436),0)","v":0},"","",{"$f":"Planning!H208","v":0},"00","M224","O224","N224",null,null,{"$f":"IF(Setup!$AG$7<>\"\",INDIRECT(\"'\" & Setup!$AG$7 & \"'!\" & AF436),0) + IF(Setup!$AG$8<>\"\",INDIRECT(\"'\" & Setup!$AG$8 & \"'!\" & AF436),0) + IF(Setup!$AG$9<>\"\",INDIRECT(\"'\" & Setup!$AG$9 & \"'!\" & AF436),0) + IF(Setup!$AG$10<>\"\",INDIRECT(\"'\" & Setup!$AG$10 & \"'!\" & AF436),0) + IF(Setup!$AG$11<>\"\",INDIRECT(\"'\" & Setup!$AG$11 & \"'!\" & AF436),0) + IF(Setup!$AG$12<>\"\",INDIRECT(\"'\" & Setup!$AG$12 & \"'!\" & AF436),0)","v":0},{"$f":"IF(Setup!$AH$7<>\"\",INDIRECT(\"'\" & Setup!$AH$7 & \"'!\" & AF436),0) + IF(Setup!$AH$8<>\"\",INDIRECT(\"'\" & Setup!$AH$8 & \"'!\" & AF436),0) + IF(Setup!$AH$9<>\"\",INDIRECT(\"'\" & Setup!$AH$9 & \"'!\" & AF436),0) + IF(Setup!$AH$10<>\"\",INDIRECT(\"'\" & Setup!$AH$10 & \"'!\" & AF436),0) + IF(Setup!$AH$11<>\"\",INDIRECT(\"'\" & Setup!$AH$11 & \"'!\" & AF436),0) + IF(Setup!$AH$12<>\"\",INDIRECT(\"'\" & Setup!$AH$12 & \"'!\" & AF436),0)","v":0},{"$f":"IF(Setup!$AI$7<>\"\",INDIRECT(\"'\" & Setup!$AI$7 & \"'!\" & AF436),0) + IF(Setup!$AI$8<>\"\",INDIRECT(\"'\" & Setup!$AI$8 & \"'!\" & AF436),0) + IF(Setup!$AI$9<>\"\",INDIRECT(\"'\" & Setup!$AI$9 & \"'!\" & AF436),0) + IF(Setup!$AI$10<>\"\",INDIRECT(\"'\" & Setup!$AI$10 & \"'!\" & AF436),0) + IF(Setup!$AI$11<>\"\",INDIRECT(\"'\" & Setup!$AI$11 & \"'!\" & AF436),0) + IF(Setup!$AI$12<>\"\",INDIRECT(\"'\" & Setup!$AI$12 & \"'!\" & AF436),0)","v":0},{"$f":"IF(Setup!$AJ$7<>\"\",INDIRECT(\"'\" & Setup!$AJ$7 & \"'!\" & AF436),0) + IF(Setup!$AJ$8<>\"\",INDIRECT(\"'\" & Setup!$AJ$8 & \"'!\" & AF436),0) + IF(Setup!$AJ$9<>\"\",INDIRECT(\"'\" & Setup!$AJ$9 & \"'!\" & AF436),0) + IF(Setup!$AJ$10<>\"\",INDIRECT(\"'\" & Setup!$AJ$10 & \"'!\" & AF436),0) + IF(Setup!$AJ$11<>\"\",INDIRECT(\"'\" & Setup!$AJ$11 & \"'!\" & AF436),0) + IF(Setup!$AJ$12<>\"\",INDIRECT(\"'\" & Setup!$AJ$12 & \"'!\" & AF436),0)","v":0},null,"",{"$nulls":30},0,{"$f":"IF(Setup!$AH$7=\"\",0,INDIRECT(\"'\" & Setup!$AH$7 & \"'!\" & AF436))","v":0},{"$f":"IF(Setup!$AI$7=\"\",0,INDIRECT(\"'\" & Setup!$AI$7 & \"'!\" & AF436))","v":0},{"$f":"IF(Setup!$AJ$7=\"\",0,INDIRECT(\"'\" & Setup!$AJ$7 & \"'!\" & AF436))","v":0}]
[{"$nulls":3},".",".",{"$nulls":34},"."]
[{"$f":"Translations!A112","v":"PERIOD DISBURSEMENTS"},{"$nulls":6},{"$f":"SUM(L438,P438,T438,X438)","v":{"v":1250000,"d":"1,250,000.00"}},{"$nulls":3},{"$f":"IF(Setup!$AG$7<>\"\",INDIRECT(\"'\" & Setup!$AG$7 & \"'!\" & AD438),0) + IF(Setup!$AG$8<>\"\",INDIRECT(\"'\" & Setup!$AG$8 & \"'!\" & AD438),0) + IF(Setup!$AG$9<>\"\",INDIRECT(\"'\" & Setup!$AG$9 & \"'!\" & AD438),0) + IF(Setup!$AG$10<>\"\",INDIRECT(\"'\" & Setup!$AG$10 & \"'!\" & AD438),0) + IF(Setup!$AG$11<>\"\",INDIRECT(\"'\" & Setup!$AG$11 & \"'!\" & AD438),0) + IF(Setup!$AG$12<>\"\",INDIRECT(\"'\" & Setup!$AG$12 & \"'!\" & AD438),0)","v":{"v":600000,"d":"600,000.00"}},{"$nulls":3},{"$f":"IF(Setup!$AH$7<>\"\",INDIRECT(\"'\" & Setup!$AH$7 & \"'!\" & AD438),0) + IF(Setup!$AH$8<>\"\",INDIRECT(\"'\" & Setup!$AH$8 & \"'!\" & AD438),0) + IF(Setup!$AH$9<>\"\",INDIRECT(\"'\" & Setup!$AH$9 & \"'!\" & AD438),0) + IF(Setup!$AH$10<>\"\",INDIRECT(\"'\" & Setup!$AH$10 & \"'!\" & AD438),0) + IF(Setup!$AH$11<>\"\",INDIRECT(\"'\" & Setup!$AH$11 & \"'!\" & AD438),0) + IF(Setup!$AH$12<>\"\",INDIRECT(\"'\" & Setup!$AH$12 & \"'!\" & AD438),0)","v":{"v":650000,"d":"650,000.00"}},{"$nulls":3},{"$f":"IF(Setup!$AI$7<>\"\",INDIRECT(\"'\" & Setup!$AI$7 & \"'!\" & AD438),0) + IF(Setup!$AI$8<>\"\",INDIRECT(\"'\" & Setup!$AI$8 & \"'!\" & AD438),0) + IF(Setup!$AI$9<>\"\",INDIRECT(\"'\" & Setup!$AI$9 & \"'!\" & AD438),0) + IF(Setup!$AI$10<>\"\",INDIRECT(\"'\" & Setup!$AI$10 & \"'!\" & AD438),0) + IF(Setup!$AI$11<>\"\",INDIRECT(\"'\" & Setup!$AI$11 & \"'!\" & AD438),0) + IF(Setup!$AI$12<>\"\",INDIRECT(\"'\" & Setup!$AI$12 & \"'!\" & AD438),0)","v":{"v":0,"d":"0.00"}},{"$nulls":3},{"$f":"IF(Setup!$AJ$7<>\"\",INDIRECT(\"'\" & Setup!$AJ$7 & \"'!\" & AD438),0) + IF(Setup!$AJ$8<>\"\",INDIRECT(\"'\" & Setup!$AJ$8 & \"'!\" & AD438),0) + IF(Setup!$AJ$9<>\"\",INDIRECT(\"'\" & Setup!$AJ$9 & \"'!\" & AD438),0) + IF(Setup!$AJ$10<>\"\",INDIRECT(\"'\" & Setup!$AJ$10 & \"'!\" & AD438),0) + IF(Setup!$AJ$11<>\"\",INDIRECT(\"'\" & Setup!$AJ$11 & \"'!\" & AD438),0) + IF(Setup!$AJ$12<>\"\",INDIRECT(\"'\" & Setup!$AJ$12 & \"'!\" & AD438),0)","v":{"v":0,"d":"0.00"}},{"$nulls":5},"O15"]
[]
[]
[{"$f":"Translations!A113","v":"Month summary"},{"$nulls":6},{"$f":"Translations!A116","v":"Follow-up"},{"$nulls":3},{"$f":"Translations!A150","v":"PROGRAMMATIC"},{"$f":"Translations!A154","v":"FINANCIAL"}]
[{"$f":"Translations!A114","v":"Months"},null,null,{"$f":"Translations!A115","v":"Month nane"},{"$nulls":3},{"$f":"Translations!A117","v":"Programmatic results %"},{"$f":"Translations!A118","v":"Expenditure %"},{"$f":"Translations!A119","v":"Report date"},null,{"$f":"Translations!$A$120","v":"Date of verification"},{"$f":"Translations!$A$120","v":"Date of verification"}]
["Month 1",null,null,{"$f":"Setup!AB8","v":"January"},{"$nulls":3},{"$f":"INDIRECT(\"'\"&$A443&\"'!K23\")","v":{"v":0.8859476485282937,"d":"88.59%"}},{"$f":"INDIRECT(\"'\"&$A443&\"'!P23\")","v":{"v":0.9203275841148698,"d":"92.03%"}},{"$f":"INDIRECT(\"'\"&$A443&\"'!J11\")","v":"2016-02-15"},null,{"$f":"INDIRECT(\"'\"&$A443&\"'!J18\")","v":"2016-02-17"},{"$f":"INDIRECT(\"'\"&$A443&\"'!O18\")","v":"2016-02-17"}]
["Month 2",null,null,{"$f":"Setup!AB9","v":"February"},{"$nulls":3},{"$f":"INDIRECT(\"'\"&$A444&\"'!K23\")","v":{"v":0.9073060548924587,"d":"90.73%"}},{"$f":"INDIRECT(\"'\"&$A444&\"'!P23\")","v":{"v":0.9055763933301925,"d":"90.56%"}},{"$f":"INDIRECT(\"'\"&$A444&\"'!J11\")","v":"2016-03-13"},null,{"$f":"INDIRECT(\"'\"&$A444&\"'!J18\")","v":"2016-03-15"},{"$f":"INDIRECT(\"'\"&$A444&\"'!O18\")","v":"2016-03-15"}]
["Month 3",null,null,{"$f":"Setup!AB10","v":"March"},{"$nulls":3},{"$f":"INDIRECT(\"'\"&$A445&\"'!K23\")","v":{"v":0.9500516325727774,"d":"95.01%"}},{"$f":"INDIRECT(\"'\"&$A445&\"'!P23\")","v":{"v":0.9693623786189327,"d":"96.94%"}},{"$f":"INDIRECT(\"'\"&$A445&\"'!J11\")","v":"2016-04-13"},null,{"$f":"INDIRECT(\"'\"&$A445&\"'!J18\")","v":"2016-04-15"},{"$f":"INDIRECT(\"'\"&$A445&\"'!O18\")","v":"2016-04-15"}]
["Month 4",null,null,{"$f":"Setup!AB11","v":"April"},{"$nulls":3},{"v":0.8431182795698925,"d":"84.31%"},{"v":0.9438437273245677,"d":"94.38%"},"2016-05-13",null,"2016-05-15","2016-05-15"]
["Month 5",null,null,{"$f":"Setup!AB12","v":"May"},{"$nulls":3},{"v":0.8839369930201848,"d":"88.39%"},{"v":0.9474232456140351,"d":"94.74%"},"2016-06-13",null,"2016-06-15","2016-06-15"]
["Month 6",null,null,{"$f":"Setup!AB13","v":"June"},{"$nulls":3},{"v":0.9796245421245421,"d":"97.96%"},{"v":0.9725491899404943,"d":"97.25%"},"2016-07-13",null,"2016-07-15","2016-07-15"]
["Month 7",null,null,{"$f":"Setup!AB14","v":"July"},{"$nulls":3},{"v":0,"d":"0.00%"},{"v":0,"d":"0.00%"},"00:00:00",null,"00:00:00","00:00:00"]
["Month 8",null,null,{"$f":"Setup!AB15","v":"August"},{"$nulls":3},{"v":0,"d":"0.00%"},{"v":0,"d":"0.00%"},"00:00:00",null,"00:00:00","00:00:00"]
["Month 9",null,null,{"$f":"Setup!AB16","v":"September"},{"$nulls":3},{"v":0,"d":"0.00%"},{"v":0,"d":"0.00%"},"00:00:00",null,"00:00:00","00:00:00"]
["Month 10",null,null,{"$f":"Setup!AB17","v":"October"},{"$nulls":3},{"v":0,"d":"0.00%"},{"v":0,"d":"0.00%"},"00:00:00",null,"00:00:00","00:00:00"]
["Month 11",null,null,{"$f":"Setup!AB18","v":"November"},{"$nulls":3},{"v":0,"d":"0.00%"},{"v":0,"d":"0.00%"},"00:00:00",null,"00:00:00","00:00:00"]
["Month 12",null,null,{"$f":"Setup!AB19","v":"December"},{"$nulls":3},{"v":0,"d":"0.00%"},{"v":0,"d":"0.00%"},"00:00:00",null,"00:00:00","00:00:00"]
[]
[]
[{"$f":"UPPER(Setup!AN6)","v":"PR DASHBOARD INDICATORS"}]
[]
[{"$f":"Setup!AQ7","v":"Indicator name"},{"$nulls":6},{"$f":"Translations!$A$103","v":"Annual"},{"$f":"Translations!$A48","v":"1st Quarter"},{"$f":"Translations!$A49","v":"2nd Quarter"},null,{"$f":"Translations!$A50","v":"3rd Quarter"},{"$f":"Translations!$A51","v":"4th Quarter"},{"$nulls":16},"Columna"]
[{"$f":"Setup!AP8","v":"Financial reports planned"},{"$nulls":6},{"$f":"SUM(I460:M460)","v":8},{"$f":"IF(Setup!$AG$7<>\"\",INDIRECT(\"'\" & Setup!$AG$7 & \"'!\" & AD460),0) + IF(Setup!$AG$8<>\"\",INDIRECT(\"'\" & Setup!$AG$8 & \"'!\" & AD460),0) + IF(Setup!$AG$9<>\"\",INDIRECT(\"'\" & Setup!$AG$9 & \"'!\" & AD460),0) + IF(Setup!$AG$10<>\"\",INDIRECT(\"'\" & Setup!$AG$10 & \"'!\" & AD460),0) + IF(Setup!$AG$11<>\"\",INDIRECT(\"'\" & Setup!$AG$11 & \"'!\" & AD460),0) + IF(Setup!$AG$12<>\"\",INDIRECT(\"'\" & Setup!$AG$12 & \"'!\" & AD460),0)","v":4},{"$f":"IF(Setup!$AH$7<>\"\",INDIRECT(\"'\" & Setup!$AH$7 & \"'!\" & AD460),0) + IF(Setup!$AH$8<>\"\",INDIRECT(\"'\" & Setup!$AH$8 & \"'!\" & AD460),0) + IF(Setup!$AH$9<>\"\",INDIRECT(\"'\" & Setup!$AH$9 & \"'!\" & AD460),0) + IF(Setup!$AH$10<>\"\",INDIRECT(\"'\" & Setup!$AH$10 & \"'!\" & AD460),0) + IF(Setup!$AH$11<>\"\",INDIRECT(\"'\" & Setup!$AH$11 & \"'!\" & AD460),0) + IF(Setup!$AH$12<>\"\",INDIRECT(\"'\" & Setup!$AH$12 & \"'!\" & AD460),0)","v":4},null,{"$f":"IF(Setup!$AI$7<>\"\",INDIRECT(\"'\" & Setup!$AI$7 & \"'!\" & AD460),0) + IF(Setup!$AI$8<>\"\",INDIRECT(\"'\" & Setup!$AI$8 & \"'!\" & AD460),0) + IF(Setup!$AI$9<>\"\",INDIRECT(\"'\" & Setup!$AI$9 & \"'!\" & AD460),0) + IF(Setup!$AI$10<>\"\",INDIRECT(\"'\" & Setup!$AI$10 & \"'!\" & AD460),0) + IF(Setup!$AI$11<>\"\",INDIRECT(\"'\" & Setup!$AI$11 & \"'!\" & AD460),0) + IF(Setup!$AI$12<>\"\",INDIRECT(\"'\" & Setup!$AI$12 & \"'!\" & AD460),0)","v":0},{"$f":"IF(Setup!$AJ$7<>\"\",INDIRECT(\"'\" & Setup!$AJ$7 & \"'!\" & AD460),0) + IF(Setup!$AJ$8<>\"\",INDIRECT(\"'\" & Setup!$AJ$8 & \"'!\" & AD460),0) + IF(Setup!$AJ$9<>\"\",INDIRECT(\"'\" & Setup!$AJ$9 & \"'!\" & AD460),0) + IF(Setup!$AJ$10<>\"\",INDIRECT(\"'\" & Setup!$AJ$10 & \"'!\" & AD460),0) + IF(Setup!$AJ$11<>\"\",INDIRECT(\"'\" & Setup!$AJ$11 & \"'!\" & AD460),0) + IF(Setup!$AJ$12<>\"\",INDIRECT(\"'\" & Setup!$AJ$12 & \"'!\" & AD460),0)","v":0},{"$nulls":16},"H228"]
[{"$f":"Setup!AP9","v":"Financial reports overdue"},{"$nulls":6},{"$f":"SUM(I461:M461)","v":2},{"$f":"IF(Setup!$AG$7<>\"\",INDIRECT(\"'\" & Setup!$AG$7 & \"'!\" & AD461),0) + IF(Setup!$AG$8<>\"\",INDIRECT(\"'\" & Setup!$AG$8 & \"'!\" & AD461),0) + IF(Setup!$AG$9<>\"\",INDIRECT(\"'\" & Setup!$AG$9 & \"'!\" & AD461),0) + IF(Setup!$AG$10<>\"\",INDIRECT(\"'\" & Setup!$AG$10 & \"'!\" & AD461),0) + IF(Setup!$AG$11<>\"\",INDIRECT(\"'\" & Setup!$AG$11 & \"'!\" & AD461),0) + IF(Setup!$AG$12<>\"\",INDIRECT(\"'\" & Setup!$AG$12 & \"'!\" & AD461),0)","v":1},{"$f":"IF(Setup!$AH$7<>\"\",INDIRECT(\"'\" & Setup!$AH$7 & \"'!\" & AD461),0) + IF(Setup!$AH$8<>\"\",INDIRECT(\"'\" & Setup!$AH$8 & \"'!\" & AD461),0) + IF(Setup!$AH$9<>\"\",INDIRECT(\"'\" & Setup!$AH$9 & \"'!\" & AD461),0) + IF(Setup!$AH$10<>\"\",INDIRECT(\"'\" & Setup!$AH$10 & \"'!\" & AD461),0) + IF(Setup!$AH$11<>\"\",INDIRECT(\"'\" & Setup!$AH$11 & \"'!\" & AD461),0) + IF(Setup!$AH$12<>\"\",INDIRECT(\"'\" & Setup!$AH$12 & \"'!\" & AD461),0)","v":1},null,{"$f":"IF(Setup!$AI$7<>\"\",INDIRECT(\"'\" & Setup!$AI$7 & \"'!\" & AD461),0) + IF(Setup!$AI$8<>\"\",INDIRECT(\"'\" & Setup!$AI$8 & \"'!\" & AD461),0) + IF(Setup!$AI$9<>\"\",INDIRECT(\"'\" & Setup!$AI$9 & \"'!\" & AD461),0) + IF(Setup!$AI$10<>\"\",INDIRECT(\"'\" & Setup!$AI$10 & \"'!\" & AD461),0) + IF(Setup!$AI$11<>\"\",INDIRECT(\"'\" & Setup!$AI$11 & \"'!\" & AD461),0) + IF(Setup!$AI$12<>\"\",INDIRECT(\"'\" & Setup!$AI$12 & \"'!\" & AD461),0)","v":0},{"$f":"IF(Setup!$AJ$7<>\"\",INDIRECT(\"'\" & Setup!$AJ$7 & \"'!\" & AD461),0) + IF(Setup!$AJ$8<>\"\",INDIRECT(\"'\" & Setup!$AJ$8 & \"'!\" & AD461),0) + IF(Setup!$AJ$9<>\"\",INDIRECT(\"'\" & Setup!$AJ$9 & \"'!\" & AD461),0) + IF(Setup!$AJ$10<>\"\",INDIRECT(\"'\" & Setup!$AJ$10 & \"'!\" & AD461),0) + IF(Setup!$AJ$11<>\"\",INDIRECT(\"'\" & Setup!$AJ$11 & \"'!\" & AD461),0) + IF(Setup!$AJ$12<>\"\",INDIRECT(\"'\" & Setup!$AJ$12 & \"'!\" & AD461),0)","v":0},{"$nulls":16},"H229"]
[{"$f":"Setup!AP10","v":0},{"$nulls":6},0,{"$f":"IF(Setup!$AG$7<>\"\",INDIRECT(\"'\" & Setup!$AG$7 & \"'!\" & AD462),0) + IF(Setup!$AG$8<>\"\",INDIRECT(\"'\" & Setup!$AG$8 & \"'!\" & AD462),0) + IF(Setup!$AG$9<>\"\",INDIRECT(\"'\" & Setup!$AG$9 & \"'!\" & AD462),0) + IF(Setup!$AG$10<>\"\",INDIRECT(\"'\" & Setup!$AG$10 & \"'!\" & AD462),0) + IF(Setup!$AG$11<>\"\",INDIRECT(\"'\" & Setup!$AG$11 & \"'!\" & AD462),0) + IF(Setup!$AG$12<>\"\",INDIRECT(\"'\" & Setup!$AG$12 & \"'!\" & AD462),0)","v":0},{"$f":"IF(Setup!$AH$7<>\"\",INDIRECT(\"'\" & Setup!$AH$7 & \"'!\" & AD462),0) + IF(Setup!$AH$8<>\"\",INDIRECT(\"'\" & Setup!$AH$8 & \"'!\" & AD462),0) + IF(Setup!$AH$9<>\"\",INDIRECT(\"'\" & Setup!$AH$9 & \"'!\" & AD462),0) + IF(Setup!$AH$10<>\"\",INDIRECT(\"'\" & Setup!$AH$10 & \"'!\" & AD462),0) + IF(Setup!$AH$11<>\"\",INDIRECT(\"'\" & Setup!$AH$11 & \"'!\" & AD462),0) + IF(Setup!$AH$12<>\"\",INDIRECT(\"'\" & Setup!$AH$12 & \"'!\" & AD462),0)","v":0},null,{"$f":"IF(Setup!$AI$7<>\"\",INDIRECT(\"'\" & Setup!$AI$7 & \"'!\" & AD462),0) + IF(Setup!$AI$8<>\"\",INDIRECT(\"'\" & Setup!$AI$8 & \"'!\" & AD462),0) + IF(Setup!$AI$9<>\"\",INDIRECT(\"'\" & Setup!$AI$9 & \"'!\" & AD462),0) + IF(Setup!$AI$10<>\"\",INDIRECT(\"'\" & Setup!$AI$10 & \"'!\" & AD462),0) + IF(Setup!$AI$11<>\"\",INDIRECT(\"'\" & Setup!$AI$11 & \"'!\" & AD462),0) + IF(Setup!$AI$12<>\"\",INDIRECT(\"'\" & Setup!$AI$12 & \"'!\" & AD462),0)","v":0},{"$f":"IF(Setup!$AJ$7<>\"\",INDIRECT(\"'\" & Setup!$AJ$7 & \"'!\" & AD462),0) + IF(Setup!$AJ$8<>\"\",INDIRECT(\"'\" & Setup!$AJ$8 & \"'!\" & AD462),0) + IF(Setup!$AJ$9<>\"\",INDIRECT(\"'\" & Setup!$AJ$9 & \"'!\" & AD462),0) + IF(Setup!$AJ$10<>\"\",INDIRECT(\"'\" & Setup!$AJ$10 & \"'!\" & AD462),0) + IF(Setup!$AJ$11<>\"\",INDIRECT(\"'\" & Setup!$AJ$11 & \"'!\" & AD462),0) + IF(Setup!$AJ$12<>\"\",INDIRECT(\"'\" & Setup!$AJ$12 & \"'!\" & AD462),0)","v":0},{"$nulls":16},"H230"]
[{"$f":"Setup!AP11","v":0},{"$nulls":6},0,{"$f":"IF(Setup!$AG$7<>\"\",INDIRECT(\"'\" & Setup!$AG$7 & \"'!\" & AD463),0) + IF(Setup!$AG$8<>\"\",INDIRECT(\"'\" & Setup!$AG$8 & \"'!\" & AD463),0) + IF(Setup!$AG$9<>\"\",INDIRECT(\"'\" & Setup!$AG$9 & \"'!\" & AD463),0) + IF(Setup!$AG$10<>\"\",INDIRECT(\"'\" & Setup!$AG$10 & \"'!\" & AD463),0) + IF(Setup!$AG$11<>\"\",INDIRECT(\"'\" & Setup!$AG$11 & \"'!\" & AD463),0) + IF(Setup!$AG$12<>\"\",INDIRECT(\"'\" & Setup!$AG$12 & \"'!\" & AD463),0)","v":0},{"$f":"IF(Setup!$AH$7<>\"\",INDIRECT(\"'\" & Setup!$AH$7 & \"'!\" & AD463),0) + IF(Setup!$AH$8<>\"\",INDIRECT(\"'\" & Setup!$AH$8 & \"'!\" & AD463),0) + IF(Setup!$AH$9<>\"\",INDIRECT(\"'\" & Setup!$AH$9 & \"'!\" & AD463),0) + IF(Setup!$AH$10<>\"\",INDIRECT(\"'\" & Setup!$AH$10 & \"'!\" & AD463),0) + IF(Setup!$AH$11<>\"\",INDIRECT(\"'\" & Setup!$AH$11 & \"'!\" & AD463),0) + IF(Setup!$AH$12<>\"\",INDIRECT(\"'\" & Setup!$AH$12 & \"'!\" & AD463),0)","v":0},null,{"$f":"IF(Setup!$AI$7<>\"\",INDIRECT(\"'\" & Setup!$AI$7 & \"'!\" & AD463),0) + IF(Setup!$AI$8<>\"\",INDIRECT(\"'\" & Setup!$AI$8 & \"'!\" & AD463),0) + IF(Setup!$AI$9<>\"\",INDIRECT(\"'\" & Setup!$AI$9 & \"'!\" & AD463),0) + IF(Setup!$AI$10<>\"\",INDIRECT(\"'\" & Setup!$AI$10 & \"'!\" & AD463),0) + IF(Setup!$AI$11<>\"\",INDIRECT(\"'\" & Setup!$AI$11 & \"'!\" & AD463),0) + IF(Setup!$AI$12<>\"\",INDIRECT(\"'\" & Setup!$AI$12 & \"'!\" & AD463),0)","v":0},{"$f":"IF(Setup!$AJ$7<>\"\",INDIRECT(\"'\" & Setup!$AJ$7 & \"'!\" & AD463),0) + IF(Setup!$AJ$8<>\"\",INDIRECT(\"'\" & Setup!$AJ$8 & \"'!\" & AD463),0) + IF(Setup!$AJ$9<>\"\",INDIRECT(\"'\" & Setup!$AJ$9 & \"'!\" & AD463),0) + IF(Setup!$AJ$10<>\"\",INDIRECT(\"'\" & Setup!$AJ$10 & \"'!\" & AD463),0) + IF(Setup!$AJ$11<>\"\",INDIRECT(\"'\" & Setup!$AJ$11 & \"'!\" & AD463),0) + IF(Setup!$AJ$12<>\"\",INDIRECT(\"'\" & Setup!$AJ$12 & \"'!\" & AD463),0)","v":0},{"$nulls":16},"H231"]
[{"$f":"Setup!AP12","v":0},{"$nulls":6},0,{"$f":"IF(Setup!$AG$7<>\"\",INDIRECT(\"'\" & Setup!$AG$7 & \"'!\" & AD464),0) + IF(Setup!$AG$8<>\"\",INDIRECT(\"'\" & Setup!$AG$8 & \"'!\" & AD464),0) + IF(Setup!$AG$9<>\"\",INDIRECT(\"'\" & Setup!$AG$9 & \"'!\" & AD464),0) + IF(Setup!$AG$10<>\"\",INDIRECT(\"'\" & Setup!$AG$10 & \"'!\" & AD464),0) + IF(Setup!$AG$11<>\"\",INDIRECT(\"'\" & Setup!$AG$11 & \"'!\" & AD464),0) + IF(Setup!$AG$12<>\"\",INDIRECT(\"'\" & Setup!$AG$12 & \"'!\" & AD464),0)","v":0},{"$f":"IF(Setup!$AH$7<>\"\",INDIRECT(\"'\" & Setup!$AH$7 & \"'!\" & AD464),0) + IF(Setup!$AH$8<>\"\",INDIRECT(\"'\" & Setup!$AH$8 & \"'!\" & AD464),0) + IF(Setup!$AH$9<>\"\",INDIRECT(\"'\" & Setup!$AH$9 & \"'!\" & AD464),0) + IF(Setup!$AH$10<>\"\",INDIRECT(\"'\" & Setup!$AH$10 & \"'!\" & AD464),0) + IF(Setup!$AH$11<>\"\",INDIRECT(\"'\" & Setup!$AH$11 & \"'!\" & AD464),0) + IF(Setup!$AH$12<>\"\",INDIRECT(\"'\" & Setup!$AH$12 & \"'!\" & AD464),0)","v":0},null,{"$f":"IF(Setup!$AI$7<>\"\",INDIRECT(\"'\" & Setup!$AI$7 & \"'!\" & AD464),0) + IF(Setup!$AI$8<>\"\",INDIRECT(\"'\" & Setup!$AI$8 & \"'!\" & AD464),0) + IF(Setup!$AI$9<>\"\",INDIRECT(\"'\" & Setup!$AI$9 & \"'!\" & AD464),0) + IF(Setup!$AI$10<>\"\",INDIRECT(\"'\" & Setup!$AI$10 & \"'!\" & AD464),0) + IF(Setup!$AI$11<>\"\",INDIRECT(\"'\" & Setup!$AI$11 & \"'!\" & AD464),0) + IF(Setup!$AI$12<>\"\",INDIRECT(\"'\" & Setup!$AI$12 & \"'!\" & AD464),0)","v":0},{"$f":"IF(Setup!$AJ$7<>\"\",INDIRECT(\"'\" & Setup!$AJ$7 & \"'!\" & AD464),0) + IF(Setup!$AJ$8<>\"\",INDIRECT(\"'\" & Setup!$AJ$8 & \"'!\" & AD464),0) + IF(Setup!$AJ$9<>\"\",INDIRECT(\"'\" & Setup!$AJ$9 & \"'!\" & AD464),0) + IF(Setup!$AJ$10<>\"\",INDIRECT(\"'\" & Setup!$AJ$10 & \"'!\" & AD464),0) + IF(Setup!$AJ$11<>\"\",INDIRECT(\"'\" & Setup!$AJ$11 & \"'!\" & AD464),0) + IF(Setup!$AJ$12<>\"\",INDIRECT(\"'\" & Setup!$AJ$12 & \"'!\" & AD464),0)","v":0},{"$nulls":16},"H232"]
[{"$f":"Setup!AP13","v":0},{"$nulls":6},0,{"$f":"IF(Setup!$AG$7<>\"\",INDIRECT(\"'\" & Setup!$AG$7 & \"'!\" & AD465),0) + IF(Setup!$AG$8<>\"\",INDIRECT(\"'\" & Setup!$AG$8 & \"'!\" & AD465),0) + IF(Setup!$AG$9<>\"\",INDIRECT(\"'\" & Setup!$AG$9 & \"'!\" & AD465),0) + IF(Setup!$AG$10<>\"\",INDIRECT(\"'\" & Setup!$AG$10 & \"'!\" & AD465),0) + IF(Setup!$AG$11<>\"\",INDIRECT(\"'\" & Setup!$AG$11 & \"'!\" & AD465),0) + IF(Setup!$AG$12<>\"\",INDIRECT(\"'\" & Setup!$AG$12 & \"'!\" & AD465),0)","v":0},{"$f":"IF(Setup!$AH$7<>\"\",INDIRECT(\"'\" & Setup!$AH$7 & \"'!\" & AD465),0) + IF(Setup!$AH$8<>\"\",INDIRECT(\"'\" & Setup!$AH$8 & \"'!\" & AD465),0) + IF(Setup!$AH$9<>\"\",INDIRECT(\"'\" & Setup!$AH$9 & \"'!\" & AD465),0) + IF(Setup!$AH$10<>\"\",INDIRECT(\"'\" & Setup!$AH$10 & \"'!\" & AD465),0) + IF(Setup!$AH$11<>\"\",INDIRECT(\"'\" & Setup!$AH$11 & \"'!\" & AD465),0) + IF(Setup!$AH$12<>\"\",INDIRECT(\"'\" & Setup!$AH$12 & \"'!\" & AD465),0)","v":0},null,{"$f":"IF(Setup!$AI$7<>\"\",INDIRECT(\"'\" & Setup!$AI$7 & \"'!\" & AD465),0) + IF(Setup!$AI$8<>\"\",INDIRECT(\"'\" & Setup!$AI$8 & \"'!\" & AD465),0) + IF(Setup!$AI$9<>\"\",INDIRECT(\"'\" & Setup!$AI$9 & \"'!\" & AD465),0) + IF(Setup!$AI$10<>\"\",INDIRECT(\"'\" & Setup!$AI$10 & \"'!\" & AD465),0) + IF(Setup!$AI$11<>\"\",INDIRECT(\"'\" & Setup!$AI$11 & \"'!\" & AD465),0) + IF(Setup!$AI$12<>\"\",INDIRECT(\"'\" & Setup!$AI$12 & \"'!\" & AD465),0)","v":0},{"$f":"IF(Setup!$AJ$7<>\"\",INDIRECT(\"'\" & Setup!$AJ$7 & \"'!\" & AD465),0) + IF(Setup!$AJ$8<>\"\",INDIRECT(\"'\" & Setup!$AJ$8 & \"'!\" & AD465),0) + IF(Setup!$AJ$9<>\"\",INDIRECT(\"'\" & Setup!$AJ$9 & \"'!\" & AD465),0) + IF(Setup!$AJ$10<>\"\",INDIRECT(\"'\" & Setup!$AJ$10 & \"'!\" & AD465),0) + IF(Setup!$AJ$11<>\"\",INDIRECT(\"'\" & Setup!$AJ$11 & \"'!\" & AD465),0) + IF(Setup!$AJ$12<>\"\",INDIRECT(\"'\" & Setup!$AJ$12 & \"'!\" & AD465),0)","v":0},{"$nulls":16},"H233"]
[{"$f":"Setup!AP14","v":0},{"$nulls":6},0,{"$f":"IF(Setup!$AG$7<>\"\",INDIRECT(\"'\" & Setup!$AG$7 & \"'!\" & AD466),0) + IF(Setup!$AG$8<>\"\",INDIRECT(\"'\" & Setup!$AG$8 & \"'!\" & AD466),0) + IF(Setup!$AG$9<>\"\",INDIRECT(\"'\" & Setup!$AG$9 & \"'!\" & AD466),0) + IF(Setup!$AG$10<>\"\",INDIRECT(\"'\" & Setup!$AG$10 & \"'!\" & AD466),0) + IF(Setup!$AG$11<>\"\",INDIRECT(\"'\" & Setup!$AG$11 & \"'!\" & AD466),0) + IF(Setup!$AG$12<>\"\",INDIRECT(\"'\" & Setup!$AG$12 & \"'!\" & AD466),0)","v":0},{"$f":"IF(Setup!$AH$7<>\"\",INDIRECT(\"'\" & Setup!$AH$7 & \"'!\" & AD466),0) + IF(Setup!$AH$8<>\"\",INDIRECT(\"'\" & Setup!$AH$8 & \"'!\" & AD466),0) + IF(Setup!$AH$9<>\"\",INDIRECT(\"'\" & Setup!$AH$9 & \"'!\" & AD466),0) + IF(Setup!$AH$10<>\"\",INDIRECT(\"'\" & Setup!$AH$10 & \"'!\" & AD466),0) + IF(Setup!$AH$11<>\"\",INDIRECT(\"'\" & Setup!$AH$11 & \"'!\" & AD466),0) + IF(Setup!$AH$12<>\"\",INDIRECT(\"'\" & Setup!$AH$12 & \"'!\" & AD466),0)","v":0},null,{"$f":"IF(Setup!$AI$7<>\"\",INDIRECT(\"'\" & Setup!$AI$7 & \"'!\" & AD466),0) + IF(Setup!$AI$8<>\"\",INDIRECT(\"'\" & Setup!$AI$8 & \"'!\" & AD466),0) + IF(Setup!$AI$9<>\"\",INDIRECT(\"'\" & Setup!$AI$9 & \"'!\" & AD466),0) + IF(Setup!$AI$10<>\"\",INDIRECT(\"'\" & Setup!$AI$10 & \"'!\" & AD466),0) + IF(Setup!$AI$11<>\"\",INDIRECT(\"'\" & Setup!$AI$11 & \"'!\" & AD466),0) + IF(Setup!$AI$12<>\"\",INDIRECT(\"'\" & Setup!$AI$12 & \"'!\" & AD466),0)","v":0},{"$f":"IF(Setup!$AJ$7<>\"\",INDIRECT(\"'\" & Setup!$AJ$7 & \"'!\" & AD466),0) + IF(Setup!$AJ$8<>\"\",INDIRECT(\"'\" & Setup!$AJ$8 & \"'!\" & AD466),0) + IF(Setup!$AJ$9<>\"\",INDIRECT(\"'\" & Setup!$AJ$9 & \"'!\" & AD466),0) + IF(Setup!$AJ$10<>\"\",INDIRECT(\"'\" & Setup!$AJ$10 & \"'!\" & AD466),0) + IF(Setup!$AJ$11<>\"\",INDIRECT(\"'\" & Setup!$AJ$11 & \"'!\" & AD466),0) + IF(Setup!$AJ$12<>\"\",INDIRECT(\"'\" & Setup!$AJ$12 & \"'!\" & AD466),0)","v":0},{"$nulls":16},"H234"]
[{"$f":"Setup!AP15","v":"Supervision actions recommended"},{"$nulls":6},10,{"$f":"IF(Setup!$AG$7<>\"\",INDIRECT(\"'\" & Setup!$AG$7 & \"'!\" & AD467),0) + IF(Setup!$AG$8<>\"\",INDIRECT(\"'\" & Setup!$AG$8 & \"'!\" & AD467),0) + IF(Setup!$AG$9<>\"\",INDIRECT(\"'\" & Setup!$AG$9 & \"'!\" & AD467),0) + IF(Setup!$AG$10<>\"\",INDIRECT(\"'\" & Setup!$AG$10 & \"'!\" & AD467),0) + IF(Setup!$AG$11<>\"\",INDIRECT(\"'\" & Setup!$AG$11 & \"'!\" & AD467),0) + IF(Setup!$AG$12<>\"\",INDIRECT(\"'\" & Setup!$AG$12 & \"'!\" & AD467),0)","v":7},{"$f":"IF(Setup!$AH$7<>\"\",INDIRECT(\"'\" & Setup!$AH$7 & \"'!\" & AD467),0) + IF(Setup!$AH$8<>\"\",INDIRECT(\"'\" & Setup!$AH$8 & \"'!\" & AD467),0) + IF(Setup!$AH$9<>\"\",INDIRECT(\"'\" & Setup!$AH$9 & \"'!\" & AD467),0) + IF(Setup!$AH$10<>\"\",INDIRECT(\"'\" & Setup!$AH$10 & \"'!\" & AD467),0) + IF(Setup!$AH$11<>\"\",INDIRECT(\"'\" & Setup!$AH$11 & \"'!\" & AD467),0) + IF(Setup!$AH$12<>\"\",INDIRECT(\"'\" & Setup!$AH$12 & \"'!\" & AD467),0)","v":3},null,{"$f":"IF(Setup!$AI$7<>\"\",INDIRECT(\"'\" & Setup!$AI$7 & \"'!\" & AD467),0) + IF(Setup!$AI$8<>\"\",INDIRECT(\"'\" & Setup!$AI$8 & \"'!\" & AD467),0) + IF(Setup!$AI$9<>\"\",INDIRECT(\"'\" & Setup!$AI$9 & \"'!\" & AD467),0) + IF(Setup!$AI$10<>\"\",INDIRECT(\"'\" & Setup!$AI$10 & \"'!\" & AD467),0) + IF(Setup!$AI$11<>\"\",INDIRECT(\"'\" & Setup!$AI$11 & \"'!\" & AD467),0) + IF(Setup!$AI$12<>\"\",INDIRECT(\"'\" & Setup!$AI$12 & \"'!\" & AD467),0)","v":0},{"$f":"IF(Setup!$AJ$7<>\"\",INDIRECT(\"'\" & Setup!$AJ$7 & \"'!\" & AD467),0) + IF(Setup!$AJ$8<>\"\",INDIRECT(\"'\" & Setup!$AJ$8 & \"'!\" & AD467),0) + IF(Setup!$AJ$9<>\"\",INDIRECT(\"'\" & Setup!$AJ$9 & \"'!\" & AD467),0) + IF(Setup!$AJ$10<>\"\",INDIRECT(\"'\" & Setup!$AJ$10 & \"'!\" & AD467),0) + IF(Setup!$AJ$11<>\"\",INDIRECT(\"'\" & Setup!$AJ$11 & \"'!\" & AD467),0) + IF(Setup!$AJ$12<>\"\",INDIRECT(\"'\" & Setup!$AJ$12 & \"'!\" & AD467),0)","v":0},{"$nulls":16},"H235"]
[{"$f":"Setup!AP16","v":"Supervision recommendations past due"},{"$nulls":6},4,{"$f":"IF(Setup!$AG$7<>\"\",INDIRECT(\"'\" & Setup!$AG$7 & \"'!\" & AD468),0) + IF(Setup!$AG$8<>\"\",INDIRECT(\"'\" & Setup!$AG$8 & \"'!\" & AD468),0) + IF(Setup!$AG$9<>\"\",INDIRECT(\"'\" & Setup!$AG$9 & \"'!\" & AD468),0) + IF(Setup!$AG$10<>\"\",INDIRECT(\"'\" & Setup!$AG$10 & \"'!\" & AD468),0) + IF(Setup!$AG$11<>\"\",INDIRECT(\"'\" & Setup!$AG$11 & \"'!\" & AD468),0) + IF(Setup!$AG$12<>\"\",INDIRECT(\"'\" & Setup!$AG$12 & \"'!\" & AD468),0)","v":2},{"$f":"IF(Setup!$AH$7<>\"\",INDIRECT(\"'\" & Setup!$AH$7 & \"'!\" & AD468),0) + IF(Setup!$AH$8<>\"\",INDIRECT(\"'\" & Setup!$AH$8 & \"'!\" & AD468),0) + IF(Setup!$AH$9<>\"\",INDIRECT(\"'\" & Setup!$AH$9 & \"'!\" & AD468),0) + IF(Setup!$AH$10<>\"\",INDIRECT(\"'\" & Setup!$AH$10 & \"'!\" & AD468),0) + IF(Setup!$AH$11<>\"\",INDIRECT(\"'\" & Setup!$AH$11 & \"'!\" & AD468),0) + IF(Setup!$AH$12<>\"\",INDIRECT(\"'\" & Setup!$AH$12 & \"'!\" & AD468),0)","v":2},null,{"$f":"IF(Setup!$AI$7<>\"\",INDIRECT(\"'\" & Setup!$AI$7 & \"'!\" & AD468),0) + IF(Setup!$AI$8<>\"\",INDIRECT(\"'\" & Setup!$AI$8 & \"'!\" & AD468),0) + IF(Setup!$AI$9<>\"\",INDIRECT(\"'\" & Setup!$AI$9 & \"'!\" & AD468),0) + IF(Setup!$AI$10<>\"\",INDIRECT(\"'\" & Setup!$AI$10 & \"'!\" & AD468),0) + IF(Setup!$AI$11<>\"\",INDIRECT(\"'\" & Setup!$AI$11 & \"'!\" & AD468),0) + IF(Setup!$AI$12<>\"\",INDIRECT(\"'\" & Setup!$AI$12 & \"'!\" & AD468),0)","v":0},{"$f":"IF(Setup!$AJ$7<>\"\",INDIRECT(\"'\" & Setup!$AJ$7 & \"'!\" & AD468),0) + IF(Setup!$AJ$8<>\"\",INDIRECT(\"'\" & Setup!$AJ$8 & \"'!\" & AD468),0) + IF(Setup!$AJ$9<>\"\",INDIRECT(\"'\" & Setup!$AJ$9 & \"'!\" & AD468),0) + IF(Setup!$AJ$10<>\"\",INDIRECT(\"'\" & Setup!$AJ$10 & \"'!\" & AD468),0) + IF(Setup!$AJ$11<>\"\",INDIRECT(\"'\" & Setup!$AJ$11 & \"'!\" & AD468),0) + IF(Setup!$AJ$12<>\"\",INDIRECT(\"'\" & Setup!$AJ$12 & \"'!\" & AD468),0)","v":0},{"$nulls":16},"H236"]
[{"$f":"Setup!AP17","v":"Programmatic reports planned"},{"$nulls":6},9,{"$f":"IF(Setup!$AG$7<>\"\",INDIRECT(\"'\" & Setup!$AG$7 & \"'!\" & AD469),0) + IF(Setup!$AG$8<>\"\",INDIRECT(\"'\" & Setup!$AG$8 & \"'!\" & AD469),0) + IF(Setup!$AG$9<>\"\",INDIRECT(\"'\" & Setup!$AG$9 & \"'!\" & AD469),0) + IF(Setup!$AG$10<>\"\",INDIRECT(\"'\" & Setup!$AG$10 & \"'!\" & AD469),0) + IF(Setup!$AG$11<>\"\",INDIRECT(\"'\" & Setup!$AG$11 & \"'!\" & AD469),0) + IF(Setup!$AG$12<>\"\",INDIRECT(\"'\" & Setup!$AG$12 & \"'!\" & AD469),0)","v":4},{"$f":"IF(Setup!$AH$7<>\"\",INDIRECT(\"'\" & Setup!$AH$7 & \"'!\" & AD469),0) + IF(Setup!$AH$8<>\"\",INDIRECT(\"'\" & Setup!$AH$8 & \"'!\" & AD469),0) + IF(Setup!$AH$9<>\"\",INDIRECT(\"'\" & Setup!$AH$9 & \"'!\" & AD469),0) + IF(Setup!$AH$10<>\"\",INDIRECT(\"'\" & Setup!$AH$10 & \"'!\" & AD469),0) + IF(Setup!$AH$11<>\"\",INDIRECT(\"'\" & Setup!$AH$11 & \"'!\" & AD469),0) + IF(Setup!$AH$12<>\"\",INDIRECT(\"'\" & Setup!$AH$12 & \"'!\" & AD469),0)","v":5},null,{"$f":"IF(Setup!$AI$7<>\"\",INDIRECT(\"'\" & Setup!$AI$7 & \"'!\" & AD469),0) + IF(Setup!$AI$8<>\"\",INDIRECT(\"'\" & Setup!$AI$8 & \"'!\" & AD469),0) + IF(Setup!$AI$9<>\"\",INDIRECT(\"'\" & Setup!$AI$9 & \"'!\" & AD469),0) + IF(Setup!$AI$10<>\"\",INDIRECT(\"'\" & Setup!$AI$10 & \"'!\" & AD469),0) + IF(Setup!$AI$11<>\"\",INDIRECT(\"'\" & Setup!$AI$11 & \"'!\" & AD469),0) + IF(Setup!$AI$12<>\"\",INDIRECT(\"'\" & Setup!$AI$12 & \"'!\" & AD469),0)","v":0},{"$f":"IF(Setup!$AJ$7<>\"\",INDIRECT(\"'\" & Setup!$AJ$7 & \"'!\" & AD469),0) + IF(Setup!$AJ$8<>\"\",INDIRECT(\"'\" & Setup!$AJ$8 & \"'!\" & AD469),0) + IF(Setup!$AJ$9<>\"\",INDIRECT(\"'\" & Setup!$AJ$9 & \"'!\" & AD469),0) + IF(Setup!$AJ$10<>\"\",INDIRECT(\"'\" & Setup!$AJ$10 & \"'!\" & AD469),0) + IF(Setup!$AJ$11<>\"\",INDIRECT(\"'\" & Setup!$AJ$11 & \"'!\" & AD469),0) + IF(Setup!$AJ$12<>\"\",INDIRECT(\"'\" & Setup!$AJ$12 & \"'!\" & AD469),0)","v":0},{"$nulls":16},"H237"]
[{"$f":"Setup!AP18","v":"Programmatic reports past due"},{"$nulls":6},6,{"$f":"IF(Setup!$AG$7<>\"\",INDIRECT(\"'\" & Setup!$AG$7 & \"'!\" & AD470),0) + IF(Setup!$AG$8<>\"\",INDIRECT(\"'\" & Setup!$AG$8 & \"'!\" & AD470),0) + IF(Setup!$AG$9<>\"\",INDIRECT(\"'\" & Setup!$AG$9 & \"'!\" & AD470),0) + IF(Setup!$AG$10<>\"\",INDIRECT(\"'\" & Setup!$AG$10 & \"'!\" & AD470),0) + IF(Setup!$AG$11<>\"\",INDIRECT(\"'\" & Setup!$AG$11 & \"'!\" & AD470),0) + IF(Setup!$AG$12<>\"\",INDIRECT(\"'\" & Setup!$AG$12 & \"'!\" & AD470),0)","v":2},{"$f":"IF(Setup!$AH$7<>\"\",INDIRECT(\"'\" & Setup!$AH$7 & \"'!\" & AD470),0) + IF(Setup!$AH$8<>\"\",INDIRECT(\"'\" & Setup!$AH$8 & \"'!\" & AD470),0) + IF(Setup!$AH$9<>\"\",INDIRECT(\"'\" & Setup!$AH$9 & \"'!\" & AD470),0) + IF(Setup!$AH$10<>\"\",INDIRECT(\"'\" & Setup!$AH$10 & \"'!\" & AD470),0) + IF(Setup!$AH$11<>\"\",INDIRECT(\"'\" & Setup!$AH$11 & \"'!\" & AD470),0) + IF(Setup!$AH$12<>\"\",INDIRECT(\"'\" & Setup!$AH$12 & \"'!\" & AD470),0)","v":4},null,{"$f":"IF(Setup!$AI$7<>\"\",INDIRECT(\"'\" & Setup!$AI$7 & \"'!\" & AD470),0) + IF(Setup!$AI$8<>\"\",INDIRECT(\"'\" & Setup!$AI$8 & \"'!\" & AD470),0) + IF(Setup!$AI$9<>\"\",INDIRECT(\"'\" & Setup!$AI$9 & \"'!\" & AD470),0) + IF(Setup!$AI$10<>\"\",INDIRECT(\"'\" & Setup!$AI$10 & \"'!\" & AD470),0) + IF(Setup!$AI$11<>\"\",INDIRECT(\"'\" & Setup!$AI$11 & \"'!\" & AD470),0) + IF(Setup!$AI$12<>\"\",INDIRECT(\"'\" & Setup!$AI$12 & \"'!\" & AD470),0)","v":0},{"$f":"IF(Setup!$AJ$7<>\"\",INDIRECT(\"'\" & Setup!$AJ$7 & \"'!\" & AD470),0) + IF(Setup!$AJ$8<>\"\",INDIRECT(\"'\" & Setup!$AJ$8 & \"'!\" & AD470),0) + IF(Setup!$AJ$9<>\"\",INDIRECT(\"'\" & Setup!$AJ$9 & \"'!\" & AD470),0) + IF(Setup!$AJ$10<>\"\",INDIRECT(\"'\" & Setup!$AJ$10 & \"'!\" & AD470),0) + IF(Setup!$AJ$11<>\"\",INDIRECT(\"'\" & Setup!$AJ$11 & \"'!\" & AD470),0) + IF(Setup!$AJ$12<>\"\",INDIRECT(\"'\" & Setup!$AJ$12 & \"'!\" & AD470),0)","v":0},{"$nulls":16},"H238"]
[{"$f":"Setup!AP19","v":0},{"$nulls":6},0,{"$f":"IF(Setup!$AG$7<>\"\",INDIRECT(\"'\" & Setup!$AG$7 & \"'!\" & AD471),0) + IF(Setup!$AG$8<>\"\",INDIRECT(\"'\" & Setup!$AG$8 & \"'!\" & AD471),0) + IF(Setup!$AG$9<>\"\",INDIRECT(\"'\" & Setup!$AG$9 & \"'!\" & AD471),0) + IF(Setup!$AG$10<>\"\",INDIRECT(\"'\" & Setup!$AG$10 & \"'!\" & AD471),0) + IF(Setup!$AG$11<>\"\",INDIRECT(\"'\" & Setup!$AG$11 & \"'!\" & AD471),0) + IF(Setup!$AG$12<>\"\",INDIRECT(\"'\" & Setup!$AG$12 & \"'!\" & AD471),0)","v":0},{"$f":"IF(Setup!$AH$7<>\"\",INDIRECT(\"'\" & Setup!$AH$7 & \"'!\" & AD471),0) + IF(Setup!$AH$8<>\"\",INDIRECT(\"'\" & Setup!$AH$8 & \"'!\" & AD471),0) + IF(Setup!$AH$9<>\"\",INDIRECT(\"'\" & Setup!$AH$9 & \"'!\" & AD471),0) + IF(Setup!$AH$10<>\"\",INDIRECT(\"'\" & Setup!$AH$10 & \"'!\" & AD471),0) + IF(Setup!$AH$11<>\"\",INDIRECT(\"'\" & Setup!$AH$11 & \"'!\" & AD471),0) + IF(Setup!$AH$12<>\"\",INDIRECT(\"'\" & Setup!$AH$12 & \"'!\" & AD471),0)","v":0},null,{"$f":"IF(Setup!$AI$7<>\"\",INDIRECT(\"'\" & Setup!$AI$7 & \"'!\" & AD471),0) + IF(Setup!$AI$8<>\"\",INDIRECT(\"'\" & Setup!$AI$8 & \"'!\" & AD471),0) + IF(Setup!$AI$9<>\"\",INDIRECT(\"'\" & Setup!$AI$9 & \"'!\" & AD471),0) + IF(Setup!$AI$10<>\"\",INDIRECT(\"'\" & Setup!$AI$10 & \"'!\" & AD471),0) + IF(Setup!$AI$11<>\"\",INDIRECT(\"'\" & Setup!$AI$11 & \"'!\" & AD471),0) + IF(Setup!$AI$12<>\"\",INDIRECT(\"'\" & Setup!$AI$12 & \"'!\" & AD471),0)","v":0},{"$f":"IF(Setup!$AJ$7<>\"\",INDIRECT(\"'\" & Setup!$AJ$7 & \"'!\" & AD471),0) + IF(Setup!$AJ$8<>\"\",INDIRECT(\"'\" & Setup!$AJ$8 & \"'!\" & AD471),0) + IF(Setup!$AJ$9<>\"\",INDIRECT(\"'\" & Setup!$AJ$9 & \"'!\" & AD471),0) + IF(Setup!$AJ$10<>\"\",INDIRECT(\"'\" & Setup!$AJ$10 & \"'!\" & AD471),0) + IF(Setup!$AJ$11<>\"\",INDIRECT(\"'\" & Setup!$AJ$11 & \"'!\" & AD471),0) + IF(Setup!$AJ$12<>\"\",INDIRECT(\"'\" & Setup!$AJ$12 & \"'!\" & AD471),0)","v":0},{"$nulls":16},"H239"]
[{"$f":"Setup!AP20","v":0},{"$nulls":6},0,{"$f":"IF(Setup!$AG$7<>\"\",INDIRECT(\"'\" & Setup!$AG$7 & \"'!\" & AD472),0) + IF(Setup!$AG$8<>\"\",INDIRECT(\"'\" & Setup!$AG$8 & \"'!\" & AD472),0) + IF(Setup!$AG$9<>\"\",INDIRECT(\"'\" & Setup!$AG$9 & \"'!\" & AD472),0) + IF(Setup!$AG$10<>\"\",INDIRECT(\"'\" & Setup!$AG$10 & \"'!\" & AD472),0) + IF(Setup!$AG$11<>\"\",INDIRECT(\"'\" & Setup!$AG$11 & \"'!\" & AD472),0) + IF(Setup!$AG$12<>\"\",INDIRECT(\"'\" & Setup!$AG$12 & \"'!\" & AD472),0)","v":0},{"$f":"IF(Setup!$AH$7<>\"\",INDIRECT(\"'\" & Setup!$AH$7 & \"'!\" & AD472),0) + IF(Setup!$AH$8<>\"\",INDIRECT(\"'\" & Setup!$AH$8 & \"'!\" & AD472),0) + IF(Setup!$AH$9<>\"\",INDIRECT(\"'\" & Setup!$AH$9 & \"'!\" & AD472),0) + IF(Setup!$AH$10<>\"\",INDIRECT(\"'\" & Setup!$AH$10 & \"'!\" & AD472),0) + IF(Setup!$AH$11<>\"\",INDIRECT(\"'\" & Setup!$AH$11 & \"'!\" & AD472),0) + IF(Setup!$AH$12<>\"\",INDIRECT(\"'\" & Setup!$AH$12 & \"'!\" & AD472),0)","v":0},null,{"$f":"IF(Setup!$AI$7<>\"\",INDIRECT(\"'\" & Setup!$AI$7 & \"'!\" & AD472),0) + IF(Setup!$AI$8<>\"\",INDIRECT(\"'\" & Setup!$AI$8 & \"'!\" & AD472),0) + IF(Setup!$AI$9<>\"\",INDIRECT(\"'\" & Setup!$AI$9 & \"'!\" & AD472),0) + IF(Setup!$AI$10<>\"\",INDIRECT(\"'\" & Setup!$AI$10 & \"'!\" & AD472),0) + IF(Setup!$AI$11<>\"\",INDIRECT(\"'\" & Setup!$AI$11 & \"'!\" & AD472),0) + IF(Setup!$AI$12<>\"\",INDIRECT(\"'\" & Setup!$AI$12 & \"'!\" & AD472),0)","v":0},{"$f":"IF(Setup!$AJ$7<>\"\",INDIRECT(\"'\" & Setup!$AJ$7 & \"'!\" & AD472),0) + IF(Setup!$AJ$8<>\"\",INDIRECT(\"'\" & Setup!$AJ$8 & \"'!\" & AD472),0) + IF(Setup!$AJ$9<>\"\",INDIRECT(\"'\" & Setup!$AJ$9 & \"'!\" & AD472),0) + IF(Setup!$AJ$10<>\"\",INDIRECT(\"'\" & Setup!$AJ$10 & \"'!\" & AD472),0) + IF(Setup!$AJ$11<>\"\",INDIRECT(\"'\" & Setup!$AJ$11 & \"'!\" & AD472),0) + IF(Setup!$AJ$12<>\"\",INDIRECT(\"'\" & Setup!$AJ$12 & \"'!\" & AD472),0)","v":0},{"$nulls":16},"H240"]
[{"$f":"Setup!AP21","v":0},{"$nulls":6},0,{"$f":"IF(Setup!$AG$7<>\"\",INDIRECT(\"'\" & Setup!$AG$7 & \"'!\" & AD473),0) + IF(Setup!$AG$8<>\"\",INDIRECT(\"'\" & Setup!$AG$8 & \"'!\" & AD473),0) + IF(Setup!$AG$9<>\"\",INDIRECT(\"'\" & Setup!$AG$9 & \"'!\" & AD473),0) + IF(Setup!$AG$10<>\"\",INDIRECT(\"'\" & Setup!$AG$10 & \"'!\" & AD473),0) + IF(Setup!$AG$11<>\"\",INDIRECT(\"'\" & Setup!$AG$11 & \"'!\" & AD473),0) + IF(Setup!$AG$12<>\"\",INDIRECT(\"'\" & Setup!$AG$12 & \"'!\" & AD473),0)","v":0},{"$f":"IF(Setup!$AH$7<>\"\",INDIRECT(\"'\" & Setup!$AH$7 & \"'!\" & AD473),0) + IF(Setup!$AH$8<>\"\",INDIRECT(\"'\" & Setup!$AH$8 & \"'!\" & AD473),0) + IF(Setup!$AH$9<>\"\",INDIRECT(\"'\" & Setup!$AH$9 & \"'!\" & AD473),0) + IF(Setup!$AH$10<>\"\",INDIRECT(\"'\" & Setup!$AH$10 & \"'!\" & AD473),0) + IF(Setup!$AH$11<>\"\",INDIRECT(\"'\" & Setup!$AH$11 & \"'!\" & AD473),0) + IF(Setup!$AH$12<>\"\",INDIRECT(\"'\" & Setup!$AH$12 & \"'!\" & AD473),0)","v":0},null,{"$f":"IF(Setup!$AI$7<>\"\",INDIRECT(\"'\" & Setup!$AI$7 & \"'!\" & AD473),0) + IF(Setup!$AI$8<>\"\",INDIRECT(\"'\" & Setup!$AI$8 & \"'!\" & AD473),0) + IF(Setup!$AI$9<>\"\",INDIRECT(\"'\" & Setup!$AI$9 & \"'!\" & AD473),0) + IF(Setup!$AI$10<>\"\",INDIRECT(\"'\" & Setup!$AI$10 & \"'!\" & AD473),0) + IF(Setup!$AI$11<>\"\",INDIRECT(\"'\" & Setup!$AI$11 & \"'!\" & AD473),0) + IF(Setup!$AI$12<>\"\",INDIRECT(\"'\" & Setup!$AI$12 & \"'!\" & AD473),0)","v":0},{"$f":"IF(Setup!$AJ$7<>\"\",INDIRECT(\"'\" & Setup!$AJ$7 & \"'!\" & AD473),0) + IF(Setup!$AJ$8<>\"\",INDIRECT(\"'\" & Setup!$AJ$8 & \"'!\" & AD473),0) + IF(Setup!$AJ$9<>\"\",INDIRECT(\"'\" & Setup!$AJ$9 & \"'!\" & AD473),0) + IF(Setup!$AJ$10<>\"\",INDIRECT(\"'\" & Setup!$AJ$10 & \"'!\" & AD473),0) + IF(Setup!$AJ$11<>\"\",INDIRECT(\"'\" & Setup!$AJ$11 & \"'!\" & AD473),0) + IF(Setup!$AJ$12<>\"\",INDIRECT(\"'\" & Setup!$AJ$12 & \"'!\" & AD473),0)","v":0},{"$nulls":16},"H241"]
[{"$f":"Setup!AP22","v":0},{"$nulls":6},0,{"$f":"IF(Setup!$AG$7<>\"\",INDIRECT(\"'\" & Setup!$AG$7 & \"'!\" & AD474),0) + IF(Setup!$AG$8<>\"\",INDIRECT(\"'\" & Setup!$AG$8 & \"'!\" & AD474),0) + IF(Setup!$AG$9<>\"\",INDIRECT(\"'\" & Setup!$AG$9 & \"'!\" & AD474),0) + IF(Setup!$AG$10<>\"\",INDIRECT(\"'\" & Setup!$AG$10 & \"'!\" & AD474),0) + IF(Setup!$AG$11<>\"\",INDIRECT(\"'\" & Setup!$AG$11 & \"'!\" & AD474),0) + IF(Setup!$AG$12<>\"\",INDIRECT(\"'\" & Setup!$AG$12 & \"'!\" & AD474),0)","v":0},{"$f":"IF(Setup!$AH$7<>\"\",INDIRECT(\"'\" & Setup!$AH$7 & \"'!\" & AD474),0) + IF(Setup!$AH$8<>\"\",INDIRECT(\"'\" & Setup!$AH$8 & \"'!\" & AD474),0) + IF(Setup!$AH$9<>\"\",INDIRECT(\"'\" & Setup!$AH$9 & \"'!\" & AD474),0) + IF(Setup!$AH$10<>\"\",INDIRECT(\"'\" & Setup!$AH$10 & \"'!\" & AD474),0) + IF(Setup!$AH$11<>\"\",INDIRECT(\"'\" & Setup!$AH$11 & \"'!\" & AD474),0) + IF(Setup!$AH$12<>\"\",INDIRECT(\"'\" & Setup!$AH$12 & \"'!\" & AD474),0)","v":0},null,{"$f":"IF(Setup!$AI$7<>\"\",INDIRECT(\"'\" & Setup!$AI$7 & \"'!\" & AD474),0) + IF(Setup!$AI$8<>\"\",INDIRECT(\"'\" & Setup!$AI$8 & \"'!\" & AD474),0) + IF(Setup!$AI$9<>\"\",INDIRECT(\"'\" & Setup!$AI$9 & \"'!\" & AD474),0) + IF(Setup!$AI$10<>\"\",INDIRECT(\"'\" & Setup!$AI$10 & \"'!\" & AD474),0) + IF(Setup!$AI$11<>\"\",INDIRECT(\"'\" & Setup!$AI$11 & \"'!\" & AD474),0) + IF(Setup!$AI$12<>\"\",INDIRECT(\"'\" & Setup!$AI$12 & \"'!\" & AD474),0)","v":0},{"$f":"IF(Setup!$AJ$7<>\"\",INDIRECT(\"'\" & Setup!$AJ$7 & \"'!\" & AD474),0) + IF(Setup!$AJ$8<>\"\",INDIRECT(\"'\" & Setup!$AJ$8 & \"'!\" & AD474),0) + IF(Setup!$AJ$9<>\"\",INDIRECT(\"'\" & Setup!$AJ$9 & \"'!\" & AD474),0) + IF(Setup!$AJ$10<>\"\",INDIRECT(\"'\" & Setup!$AJ$10 & \"'!\" & AD474),0) + IF(Setup!$AJ$11<>\"\",INDIRECT(\"'\" & Setup!$AJ$11 & \"'!\" & AD474),0) + IF(Setup!$AJ$12<>\"\",INDIRECT(\"'\" & Setup!$AJ$12 & \"'!\" & AD474),0)","v":0},{"$nulls":16},"H242"]
[{"$f":"Setup!AP23","v":0},{"$nulls":6},0,{"$f":"IF(Setup!$AG$7<>\"\",INDIRECT(\"'\" & Setup!$AG$7 & \"'!\" & AD475),0) + IF(Setup!$AG$8<>\"\",INDIRECT(\"'\" & Setup!$AG$8 & \"'!\" & AD475),0) + IF(Setup!$AG$9<>\"\",INDIRECT(\"'\" & Setup!$AG$9 & \"'!\" & AD475),0) + IF(Setup!$AG$10<>\"\",INDIRECT(\"'\" & Setup!$AG$10 & \"'!\" & AD475),0) + IF(Setup!$AG$11<>\"\",INDIRECT(\"'\" & Setup!$AG$11 & \"'!\" & AD475),0) + IF(Setup!$AG$12<>\"\",INDIRECT(\"'\" & Setup!$AG$12 & \"'!\" & AD475),0)","v":0},{"$f":"IF(Setup!$AH$7<>\"\",INDIRECT(\"'\" & Setup!$AH$7 & \"'!\" & AD475),0) + IF(Setup!$AH$8<>\"\",INDIRECT(\"'\" & Setup!$AH$8 & \"'!\" & AD475),0) + IF(Setup!$AH$9<>\"\",INDIRECT(\"'\" & Setup!$AH$9 & \"'!\" & AD475),0) + IF(Setup!$AH$10<>\"\",INDIRECT(\"'\" & Setup!$AH$10 & \"'!\" & AD475),0) + IF(Setup!$AH$11<>\"\",INDIRECT(\"'\" & Setup!$AH$11 & \"'!\" & AD475),0) + IF(Setup!$AH$12<>\"\",INDIRECT(\"'\" & Setup!$AH$12 & \"'!\" & AD475),0)","v":0},null,{"$f":"IF(Setup!$AI$7<>\"\",INDIRECT(\"'\" & Setup!$AI$7 & \"'!\" & AD475),0) + IF(Setup!$AI$8<>\"\",INDIRECT(\"'\" & Setup!$AI$8 & \"'!\" & AD475),0) + IF(Setup!$AI$9<>\"\",INDIRECT(\"'\" & Setup!$AI$9 & \"'!\" & AD475),0) + IF(Setup!$AI$10<>\"\",INDIRECT(\"'\" & Setup!$AI$10 & \"'!\" & AD475),0) + IF(Setup!$AI$11<>\"\",INDIRECT(\"'\" & Setup!$AI$11 & \"'!\" & AD475),0) + IF(Setup!$AI$12<>\"\",INDIRECT(\"'\" & Setup!$AI$12 & \"'!\" & AD475),0)","v":0},{"$f":"IF(Setup!$AJ$7<>\"\",INDIRECT(\"'\" & Setup!$AJ$7 & \"'!\" & AD475),0) + IF(Setup!$AJ$8<>\"\",INDIRECT(\"'\" & Setup!$AJ$8 & \"'!\" & AD475),0) + IF(Setup!$AJ$9<>\"\",INDIRECT(\"'\" & Setup!$AJ$9 & \"'!\" & AD475),0) + IF(Setup!$AJ$10<>\"\",INDIRECT(\"'\" & Setup!$AJ$10 & \"'!\" & AD475),0) + IF(Setup!$AJ$11<>\"\",INDIRECT(\"'\" & Setup!$AJ$11 & \"'!\" & AD475),0) + IF(Setup!$AJ$12<>\"\",INDIRECT(\"'\" & Setup!$AJ$12 & \"'!\" & AD475),0)","v":0},{"$nulls":16},"H243"]
[{"$f":"Setup!AP24","v":0},{"$nulls":6},0,{"$f":"IF(Setup!$AG$7<>\"\",INDIRECT(\"'\" & Setup!$AG$7 & \"'!\" & AD476),0) + IF(Setup!$AG$8<>\"\",INDIRECT(\"'\" & Setup!$AG$8 & \"'!\" & AD476),0) + IF(Setup!$AG$9<>\"\",INDIRECT(\"'\" & Setup!$AG$9 & \"'!\" & AD476),0) + IF(Setup!$AG$10<>\"\",INDIRECT(\"'\" & Setup!$AG$10 & \"'!\" & AD476),0) + IF(Setup!$AG$11<>\"\",INDIRECT(\"'\" & Setup!$AG$11 & \"'!\" & AD476),0) + IF(Setup!$AG$12<>\"\",INDIRECT(\"'\" & Setup!$AG$12 & \"'!\" & AD476),0)","v":0},{"$f":"IF(Setup!$AH$7<>\"\",INDIRECT(\"'\" & Setup!$AH$7 & \"'!\" & AD476),0) + IF(Setup!$AH$8<>\"\",INDIRECT(\"'\" & Setup!$AH$8 & \"'!\" & AD476),0) + IF(Setup!$AH$9<>\"\",INDIRECT(\"'\" & Setup!$AH$9 & \"'!\" & AD476),0) + IF(Setup!$AH$10<>\"\",INDIRECT(\"'\" & Setup!$AH$10 & \"'!\" & AD476),0) + IF(Setup!$AH$11<>\"\",INDIRECT(\"'\" & Setup!$AH$11 & \"'!\" & AD476),0) + IF(Setup!$AH$12<>\"\",INDIRECT(\"'\" & Setup!$AH$12 & \"'!\" & AD476),0)","v":0},null,{"$f":"IF(Setup!$AI$7<>\"\",INDIRECT(\"'\" & Setup!$AI$7 & \"'!\" & AD476),0) + IF(Setup!$AI$8<>\"\",INDIRECT(\"'\" & Setup!$AI$8 & \"'!\" & AD476),0) + IF(Setup!$AI$9<>\"\",INDIRECT(\"'\" & Setup!$AI$9 & \"'!\" & AD476),0) + IF(Setup!$AI$10<>\"\",INDIRECT(\"'\" & Setup!$AI$10 & \"'!\" & AD476),0) + IF(Setup!$AI$11<>\"\",INDIRECT(\"'\" & Setup!$AI$11 & \"'!\" & AD476),0) + IF(Setup!$AI$12<>\"\",INDIRECT(\"'\" & Setup!$AI$12 & \"'!\" & AD476),0)","v":0},{"$f":"IF(Setup!$AJ$7<>\"\",INDIRECT(\"'\" & Setup!$AJ$7 & \"'!\" & AD476),0) + IF(Setup!$AJ$8<>\"\",INDIRECT(\"'\" & Setup!$AJ$8 & \"'!\" & AD476),0) + IF(Setup!$AJ$9<>\"\",INDIRECT(\"'\" & Setup!$AJ$9 & \"'!\" & AD476),0) + IF(Setup!$AJ$10<>\"\",INDIRECT(\"'\" & Setup!$AJ$10 & \"'!\" & AD476),0) + IF(Setup!$AJ$11<>\"\",INDIRECT(\"'\" & Setup!$AJ$11 & \"'!\" & AD476),0) + IF(Setup!$AJ$12<>\"\",INDIRECT(\"'\" & Setup!$AJ$12 & \"'!\" & AD476),0)","v":0},{"$nulls":16},"H244"]
[{"$f":"Setup!AP25","v":0},{"$nulls":6},0,{"$f":"IF(Setup!$AG$7<>\"\",INDIRECT(\"'\" & Setup!$AG$7 & \"'!\" & AD477),0) + IF(Setup!$AG$8<>\"\",INDIRECT(\"'\" & Setup!$AG$8 & \"'!\" & AD477),0) + IF(Setup!$AG$9<>\"\",INDIRECT(\"'\" & Setup!$AG$9 & \"'!\" & AD477),0) + IF(Setup!$AG$10<>\"\",INDIRECT(\"'\" & Setup!$AG$10 & \"'!\" & AD477),0) + IF(Setup!$AG$11<>\"\",INDIRECT(\"'\" & Setup!$AG$11 & \"'!\" & AD477),0) + IF(Setup!$AG$12<>\"\",INDIRECT(\"'\" & Setup!$AG$12 & \"'!\" & AD477),0)","v":0},{"$f":"IF(Setup!$AH$7<>\"\",INDIRECT(\"'\" & Setup!$AH$7 & \"'!\" & AD477),0) + IF(Setup!$AH$8<>\"\",INDIRECT(\"'\" & Setup!$AH$8 & \"'!\" & AD477),0) + IF(Setup!$AH$9<>\"\",INDIRECT(\"'\" & Setup!$AH$9 & \"'!\" & AD477),0) + IF(Setup!$AH$10<>\"\",INDIRECT(\"'\" & Setup!$AH$10 & \"'!\" & AD477),0) + IF(Setup!$AH$11<>\"\",INDIRECT(\"'\" & Setup!$AH$11 & \"'!\" & AD477),0) + IF(Setup!$AH$12<>\"\",INDIRECT(\"'\" & Setup!$AH$12 & \"'!\" & AD477),0)","v":0},null,{"$f":"IF(Setup!$AI$7<>\"\",INDIRECT(\"'\" & Setup!$AI$7 & \"'!\" & AD477),0) + IF(Setup!$AI$8<>\"\",INDIRECT(\"'\" & Setup!$AI$8 & \"'!\" & AD477),0) + IF(Setup!$AI$9<>\"\",INDIRECT(\"'\" & Setup!$AI$9 & \"'!\" & AD477),0) + IF(Setup!$AI$10<>\"\",INDIRECT(\"'\" & Setup!$AI$10 & \"'!\" & AD477),0) + IF(Setup!$AI$11<>\"\",INDIRECT(\"'\" & Setup!$AI$11 & \"'!\" & AD477),0) + IF(Setup!$AI$12<>\"\",INDIRECT(\"'\" & Setup!$AI$12 & \"'!\" & AD477),0)","v":0},{"$f":"IF(Setup!$AJ$7<>\"\",INDIRECT(\"'\" & Setup!$AJ$7 & \"'!\" & AD477),0) + IF(Setup!$AJ$8<>\"\",INDIRECT(\"'\" & Setup!$AJ$8 & \"'!\" & AD477),0) + IF(Setup!$AJ$9<>\"\",INDIRECT(\"'\" & Setup!$AJ$9 & \"'!\" & AD477),0) + IF(Setup!$AJ$10<>\"\",INDIRECT(\"'\" & Setup!$AJ$10 & \"'!\" & AD477),0) + IF(Setup!$AJ$11<>\"\",INDIRECT(\"'\" & Setup!$AJ$11 & \"'!\" & AD477),0) + IF(Setup!$AJ$12<>\"\",INDIRECT(\"'\" & Setup!$AJ$12 & \"'!\" & AD477),0)","v":0},{"$nulls":16},"H245"]
[{"$f":"Setup!AP26","v":0},{"$nulls":6},0,{"$f":"IF(Setup!$AG$7<>\"\",INDIRECT(\"'\" & Setup!$AG$7 & \"'!\" & AD478),0) + IF(Setup!$AG$8<>\"\",INDIRECT(\"'\" & Setup!$AG$8 & \"'!\" & AD478),0) + IF(Setup!$AG$9<>\"\",INDIRECT(\"'\" & Setup!$AG$9 & \"'!\" & AD478),0) + IF(Setup!$AG$10<>\"\",INDIRECT(\"'\" & Setup!$AG$10 & \"'!\" & AD478),0) + IF(Setup!$AG$11<>\"\",INDIRECT(\"'\" & Setup!$AG$11 & \"'!\" & AD478),0) + IF(Setup!$AG$12<>\"\",INDIRECT(\"'\" & Setup!$AG$12 & \"'!\" & AD478),0)","v":0},{"$f":"IF(Setup!$AH$7<>\"\",INDIRECT(\"'\" & Setup!$AH$7 & \"'!\" & AD478),0) + IF(Setup!$AH$8<>\"\",INDIRECT(\"'\" & Setup!$AH$8 & \"'!\" & AD478),0) + IF(Setup!$AH$9<>\"\",INDIRECT(\"'\" & Setup!$AH$9 & \"'!\" & AD478),0) + IF(Setup!$AH$10<>\"\",INDIRECT(\"'\" & Setup!$AH$10 & \"'!\" & AD478),0) + IF(Setup!$AH$11<>\"\",INDIRECT(\"'\" & Setup!$AH$11 & \"'!\" & AD478),0) + IF(Setup!$AH$12<>\"\",INDIRECT(\"'\" & Setup!$AH$12 & \"'!\" & AD478),0)","v":0},null,{"$f":"IF(Setup!$AI$7<>\"\",INDIRECT(\"'\" & Setup!$AI$7 & \"'!\" & AD478),0) + IF(Setup!$AI$8<>\"\",INDIRECT(\"'\" & Setup!$AI$8 & \"'!\" & AD478),0) + IF(Setup!$AI$9<>\"\",INDIRECT(\"'\" & Setup!$AI$9 & \"'!\" & AD478),0) + IF(Setup!$AI$10<>\"\",INDIRECT(\"'\" & Setup!$AI$10 & \"'!\" & AD478),0) + IF(Setup!$AI$11<>\"\",INDIRECT(\"'\" & Setup!$AI$11 & \"'!\" & AD478),0) + IF(Setup!$AI$12<>\"\",INDIRECT(\"'\" & Setup!$AI$12 & \"'!\" & AD478),0)","v":0},{"$f":"IF(Setup!$AJ$7<>\"\",INDIRECT(\"'\" & Setup!$AJ$7 & \"'!\" & AD478),0) + IF(Setup!$AJ$8<>\"\",INDIRECT(\"'\" & Setup!$AJ$8 & \"'!\" & AD478),0) + IF(Setup!$AJ$9<>\"\",INDIRECT(\"'\" & Setup!$AJ$9 & \"'!\" & AD478),0) + IF(Setup!$AJ$10<>\"\",INDIRECT(\"'\" & Setup!$AJ$10 & \"'!\" & AD478),0) + IF(Setup!$AJ$11<>\"\",INDIRECT(\"'\" & Setup!$AJ$11 & \"'!\" & AD478),0) + IF(Setup!$AJ$12<>\"\",INDIRECT(\"'\" & Setup!$AJ$12 & \"'!\" & AD478),0)","v":0},{"$nulls":16},"H246"]
[{"$f":"Setup!AP27","v":0},{"$nulls":6},0,{"$f":"IF(Setup!$AG$7<>\"\",INDIRECT(\"'\" & Setup!$AG$7 & \"'!\" & AD479),0) + IF(Setup!$AG$8<>\"\",INDIRECT(\"'\" & Setup!$AG$8 & \"'!\" & AD479),0) + IF(Setup!$AG$9<>\"\",INDIRECT(\"'\" & Setup!$AG$9 & \"'!\" & AD479),0) + IF(Setup!$AG$10<>\"\",INDIRECT(\"'\" & Setup!$AG$10 & \"'!\" & AD479),0) + IF(Setup!$AG$11<>\"\",INDIRECT(\"'\" & Setup!$AG$11 & \"'!\" & AD479),0) + IF(Setup!$AG$12<>\"\",INDIRECT(\"'\" & Setup!$AG$12 & \"'!\" & AD479),0)","v":0},{"$f":"IF(Setup!$AH$7<>\"\",INDIRECT(\"'\" & Setup!$AH$7 & \"'!\" & AD479),0) + IF(Setup!$AH$8<>\"\",INDIRECT(\"'\" & Setup!$AH$8 & \"'!\" & AD479),0) + IF(Setup!$AH$9<>\"\",INDIRECT(\"'\" & Setup!$AH$9 & \"'!\" & AD479),0) + IF(Setup!$AH$10<>\"\",INDIRECT(\"'\" & Setup!$AH$10 & \"'!\" & AD479),0) + IF(Setup!$AH$11<>\"\",INDIRECT(\"'\" & Setup!$AH$11 & \"'!\" & AD479),0) + IF(Setup!$AH$12<>\"\",INDIRECT(\"'\" & Setup!$AH$12 & \"'!\" & AD479),0)","v":0},null,{"$f":"IF(Setup!$AI$7<>\"\",INDIRECT(\"'\" & Setup!$AI$7 & \"'!\" & AD479),0) + IF(Setup!$AI$8<>\"\",INDIRECT(\"'\" & Setup!$AI$8 & \"'!\" & AD479),0) + IF(Setup!$AI$9<>\"\",INDIRECT(\"'\" & Setup!$AI$9 & \"'!\" & AD479),0) + IF(Setup!$AI$10<>\"\",INDIRECT(\"'\" & Setup!$AI$10 & \"'!\" & AD479),0) + IF(Setup!$AI$11<>\"\",INDIRECT(\"'\" & Setup!$AI$11 & \"'!\" & AD479),0) + IF(Setup!$AI$12<>\"\",INDIRECT(\"'\" & Setup!$AI$12 & \"'!\" & AD479),0)","v":0},{"$f":"IF(Setup!$AJ$7<>\"\",INDIRECT(\"'\" & Setup!$AJ$7 & \"'!\" & AD479),0) + IF(Setup!$AJ$8<>\"\",INDIRECT(\"'\" & Setup!$AJ$8 & \"'!\" & AD479),0) + IF(Setup!$AJ$9<>\"\",INDIRECT(\"'\" & Setup!$AJ$9 & \"'!\" & AD479),0) + IF(Setup!$AJ$10<>\"\",INDIRECT(\"'\" & Setup!$AJ$10 & \"'!\" & AD479),0) + IF(Setup!$AJ$11<>\"\",INDIRECT(\"'\" & Setup!$AJ$11 & \"'!\" & AD479),0) + IF(Setup!$AJ$12<>\"\",INDIRECT(\"'\" & Setup!$AJ$12 & \"'!\" & AD479),0)","v":0},{"$nulls":16},"H247"]
[{"$f":"Setup!AP28","v":0},{"$nulls":6},0,{"$f":"IF(Setup!$AG$7<>\"\",INDIRECT(\"'\" & Setup!$AG$7 & \"'!\" & AD480),0) + IF(Setup!$AG$8<>\"\",INDIRECT(\"'\" & Setup!$AG$8 & \"'!\" & AD480),0) + IF(Setup!$AG$9<>\"\",INDIRECT(\"'\" & Setup!$AG$9 & \"'!\" & AD480),0) + IF(Setup!$AG$10<>\"\",INDIRECT(\"'\" & Setup!$AG$10 & \"'!\" & AD480),0) + IF(Setup!$AG$11<>\"\",INDIRECT(\"'\" & Setup!$AG$11 & \"'!\" & AD480),0) + IF(Setup!$AG$12<>\"\",INDIRECT(\"'\" & Setup!$AG$12 & \"'!\" & AD480),0)","v":0},{"$f":"IF(Setup!$AH$7<>\"\",INDIRECT(\"'\" & Setup!$AH$7 & \"'!\" & AD480),0) + IF(Setup!$AH$8<>\"\",INDIRECT(\"'\" & Setup!$AH$8 & \"'!\" & AD480),0) + IF(Setup!$AH$9<>\"\",INDIRECT(\"'\" & Setup!$AH$9 & \"'!\" & AD480),0) + IF(Setup!$AH$10<>\"\",INDIRECT(\"'\" & Setup!$AH$10 & \"'!\" & AD480),0) + IF(Setup!$AH$11<>\"\",INDIRECT(\"'\" & Setup!$AH$11 & \"'!\" & AD480),0) + IF(Setup!$AH$12<>\"\",INDIRECT(\"'\" & Setup!$AH$12 & \"'!\" & AD480),0)","v":0},null,{"$f":"IF(Setup!$AI$7<>\"\",INDIRECT(\"'\" & Setup!$AI$7 & \"'!\" & AD480),0) + IF(Setup!$AI$8<>\"\",INDIRECT(\"'\" & Setup!$AI$8 & \"'!\" & AD480),0) + IF(Setup!$AI$9<>\"\",INDIRECT(\"'\" & Setup!$AI$9 & \"'!\" & AD480),0) + IF(Setup!$AI$10<>\"\",INDIRECT(\"'\" & Setup!$AI$10 & \"'!\" & AD480),0) + IF(Setup!$AI$11<>\"\",INDIRECT(\"'\" & Setup!$AI$11 & \"'!\" & AD480),0) + IF(Setup!$AI$12<>\"\",INDIRECT(\"'\" & Setup!$AI$12 & \"'!\" & AD480),0)","v":0},{"$f":"IF(Setup!$AJ$7<>\"\",INDIRECT(\"'\" & Setup!$AJ$7 & \"'!\" & AD480),0) + IF(Setup!$AJ$8<>\"\",INDIRECT(\"'\" & Setup!$AJ$8 & \"'!\" & AD480),0) + IF(Setup!$AJ$9<>\"\",INDIRECT(\"'\" & Setup!$AJ$9 & \"'!\" & AD480),0) + IF(Setup!$AJ$10<>\"\",INDIRECT(\"'\" & Setup!$AJ$10 & \"'!\" & AD480),0) + IF(Setup!$AJ$11<>\"\",INDIRECT(\"'\" & Setup!$AJ$11 & \"'!\" & AD480),0) + IF(Setup!$AJ$12<>\"\",INDIRECT(\"'\" & Setup!$AJ$12 & \"'!\" & AD480),0)","v":0},{"$nulls":16},"H248"]
[{"$f":"Setup!AP29","v":0},{"$nulls":6},0,{"$f":"IF(Setup!$AG$7<>\"\",INDIRECT(\"'\" & Setup!$AG$7 & \"'!\" & AD481),0) + IF(Setup!$AG$8<>\"\",INDIRECT(\"'\" & Setup!$AG$8 & \"'!\" & AD481),0) + IF(Setup!$AG$9<>\"\",INDIRECT(\"'\" & Setup!$AG$9 & \"'!\" & AD481),0) + IF(Setup!$AG$10<>\"\",INDIRECT(\"'\" & Setup!$AG$10 & \"'!\" & AD481),0) + IF(Setup!$AG$11<>\"\",INDIRECT(\"'\" & Setup!$AG$11 & \"'!\" & AD481),0) + IF(Setup!$AG$12<>\"\",INDIRECT(\"'\" & Setup!$AG$12 & \"'!\" & AD481),0)","v":0},{"$f":"IF(Setup!$AH$7<>\"\",INDIRECT(\"'\" & Setup!$AH$7 & \"'!\" & AD481),0) + IF(Setup!$AH$8<>\"\",INDIRECT(\"'\" & Setup!$AH$8 & \"'!\" & AD481),0) + IF(Setup!$AH$9<>\"\",INDIRECT(\"'\" & Setup!$AH$9 & \"'!\" & AD481),0) + IF(Setup!$AH$10<>\"\",INDIRECT(\"'\" & Setup!$AH$10 & \"'!\" & AD481),0) + IF(Setup!$AH$11<>\"\",INDIRECT(\"'\" & Setup!$AH$11 & \"'!\" & AD481),0) + IF(Setup!$AH$12<>\"\",INDIRECT(\"'\" & Setup!$AH$12 & \"'!\" & AD481),0)","v":0},null,{"$f":"IF(Setup!$AI$7<>\"\",INDIRECT(\"'\" & Setup!$AI$7 & \"'!\" & AD481),0) + IF(Setup!$AI$8<>\"\",INDIRECT(\"'\" & Setup!$AI$8 & \"'!\" & AD481),0) + IF(Setup!$AI$9<>\"\",INDIRECT(\"'\" & Setup!$AI$9 & \"'!\" & AD481),0) + IF(Setup!$AI$10<>\"\",INDIRECT(\"'\" & Setup!$AI$10 & \"'!\" & AD481),0) + IF(Setup!$AI$11<>\"\",INDIRECT(\"'\" & Setup!$AI$11 & \"'!\" & AD481),0) + IF(Setup!$AI$12<>\"\",INDIRECT(\"'\" & Setup!$AI$12 & \"'!\" & AD481),0)","v":0},{"$f":"IF(Setup!$AJ$7<>\"\",INDIRECT(\"'\" & Setup!$AJ$7 & \"'!\" & AD481),0) + IF(Setup!$AJ$8<>\"\",INDIRECT(\"'\" & Setup!$AJ$8 & \"'!\" & AD481),0) + IF(Setup!$AJ$9<>\"\",INDIRECT(\"'\" & Setup!$AJ$9 & \"'!\" & AD481),0) + IF(Setup!$AJ$10<>\"\",INDIRECT(\"'\" & Setup!$AJ$10 & \"'!\" & AD481),0) + IF(Setup!$AJ$11<>\"\",INDIRECT(\"'\" & Setup!$AJ$11 & \"'!\" & AD481),0) + IF(Setup!$AJ$12<>\"\",INDIRECT(\"'\" & Setup!$AJ$12 & \"'!\" & AD481),0)","v":0},{"$nulls":16},"H249"]
[{"$f":"Setup!AP30","v":0},{"$nulls":6},0,{"$f":"IF(Setup!$AG$7<>\"\",INDIRECT(\"'\" & Setup!$AG$7 & \"'!\" & AD482),0) + IF(Setup!$AG$8<>\"\",INDIRECT(\"'\" & Setup!$AG$8 & \"'!\" & AD482),0) + IF(Setup!$AG$9<>\"\",INDIRECT(\"'\" & Setup!$AG$9 & \"'!\" & AD482),0) + IF(Setup!$AG$10<>\"\",INDIRECT(\"'\" & Setup!$AG$10 & \"'!\" & AD482),0) + IF(Setup!$AG$11<>\"\",INDIRECT(\"'\" & Setup!$AG$11 & \"'!\" & AD482),0) + IF(Setup!$AG$12<>\"\",INDIRECT(\"'\" & Setup!$AG$12 & \"'!\" & AD482),0)","v":0},{"$f":"IF(Setup!$AH$7<>\"\",INDIRECT(\"'\" & Setup!$AH$7 & \"'!\" & AD482),0) + IF(Setup!$AH$8<>\"\",INDIRECT(\"'\" & Setup!$AH$8 & \"'!\" & AD482),0) + IF(Setup!$AH$9<>\"\",INDIRECT(\"'\" & Setup!$AH$9 & \"'!\" & AD482),0) + IF(Setup!$AH$10<>\"\",INDIRECT(\"'\" & Setup!$AH$10 & \"'!\" & AD482),0) + IF(Setup!$AH$11<>\"\",INDIRECT(\"'\" & Setup!$AH$11 & \"'!\" & AD482),0) + IF(Setup!$AH$12<>\"\",INDIRECT(\"'\" & Setup!$AH$12 & \"'!\" & AD482),0)","v":0},null,{"$f":"IF(Setup!$AI$7<>\"\",INDIRECT(\"'\" & Setup!$AI$7 & \"'!\" & AD482),0) + IF(Setup!$AI$8<>\"\",INDIRECT(\"'\" & Setup!$AI$8 & \"'!\" & AD482),0) + IF(Setup!$AI$9<>\"\",INDIRECT(\"'\" & Setup!$AI$9 & \"'!\" & AD482),0) + IF(Setup!$AI$10<>\"\",INDIRECT(\"'\" & Setup!$AI$10 & \"'!\" & AD482),0) + IF(Setup!$AI$11<>\"\",INDIRECT(\"'\" & Setup!$AI$11 & \"'!\" & AD482),0) + IF(Setup!$AI$12<>\"\",INDIRECT(\"'\" & Setup!$AI$12 & \"'!\" & AD482),0)","v":0},{"$f":"IF(Setup!$AJ$7<>\"\",INDIRECT(\"'\" & Setup!$AJ$7 & \"'!\" & AD482),0) + IF(Setup!$AJ$8<>\"\",INDIRECT(\"'\" & Setup!$AJ$8 & \"'!\" & AD482),0) + IF(Setup!$AJ$9<>\"\",INDIRECT(\"'\" & Setup!$AJ$9 & \"'!\" & AD482),0) + IF(Setup!$AJ$10<>\"\",INDIRECT(\"'\" & Setup!$AJ$10 & \"'!\" & AD482),0) + IF(Setup!$AJ$11<>\"\",INDIRECT(\"'\" & Setup!$AJ$11 & \"'!\" & AD482),0) + IF(Setup!$AJ$12<>\"\",INDIRECT(\"'\" & Setup!$AJ$12 & \"'!\" & AD482),0)","v":0},{"$nulls":16},"H250"]
[{"$f":"Setup!AP31","v":0},{"$nulls":6},0,{"$f":"IF(Setup!$AG$7<>\"\",INDIRECT(\"'\" & Setup!$AG$7 & \"'!\" & AD483),0) + IF(Setup!$AG$8<>\"\",INDIRECT(\"'\" & Setup!$AG$8 & \"'!\" & AD483),0) + IF(Setup!$AG$9<>\"\",INDIRECT(\"'\" & Setup!$AG$9 & \"'!\" & AD483),0) + IF(Setup!$AG$10<>\"\",INDIRECT(\"'\" & Setup!$AG$10 & \"'!\" & AD483),0) + IF(Setup!$AG$11<>\"\",INDIRECT(\"'\" & Setup!$AG$11 & \"'!\" & AD483),0) + IF(Setup!$AG$12<>\"\",INDIRECT(\"'\" & Setup!$AG$12 & \"'!\" & AD483),0)","v":0},{"$f":"IF(Setup!$AH$7<>\"\",INDIRECT(\"'\" & Setup!$AH$7 & \"'!\" & AD483),0) + IF(Setup!$AH$8<>\"\",INDIRECT(\"'\" & Setup!$AH$8 & \"'!\" & AD483),0) + IF(Setup!$AH$9<>\"\",INDIRECT(\"'\" & Setup!$AH$9 & \"'!\" & AD483),0) + IF(Setup!$AH$10<>\"\",INDIRECT(\"'\" & Setup!$AH$10 & \"'!\" & AD483),0) + IF(Setup!$AH$11<>\"\",INDIRECT(\"'\" & Setup!$AH$11 & \"'!\" & AD483),0) + IF(Setup!$AH$12<>\"\",INDIRECT(\"'\" & Setup!$AH$12 & \"'!\" & AD483),0)","v":0},null,{"$f":"IF(Setup!$AI$7<>\"\",INDIRECT(\"'\" & Setup!$AI$7 & \"'!\" & AD483),0) + IF(Setup!$AI$8<>\"\",INDIRECT(\"'\" & Setup!$AI$8 & \"'!\" & AD483),0) + IF(Setup!$AI$9<>\"\",INDIRECT(\"'\" & Setup!$AI$9 & \"'!\" & AD483),0) + IF(Setup!$AI$10<>\"\",INDIRECT(\"'\" & Setup!$AI$10 & \"'!\" & AD483),0) + IF(Setup!$AI$11<>\"\",INDIRECT(\"'\" & Setup!$AI$11 & \"'!\" & AD483),0) + IF(Setup!$AI$12<>\"\",INDIRECT(\"'\" & Setup!$AI$12 & \"'!\" & AD483),0)","v":0},{"$f":"IF(Setup!$AJ$7<>\"\",INDIRECT(\"'\" & Setup!$AJ$7 & \"'!\" & AD483),0) + IF(Setup!$AJ$8<>\"\",INDIRECT(\"'\" & Setup!$AJ$8 & \"'!\" & AD483),0) + IF(Setup!$AJ$9<>\"\",INDIRECT(\"'\" & Setup!$AJ$9 & \"'!\" & AD483),0) + IF(Setup!$AJ$10<>\"\",INDIRECT(\"'\" & Setup!$AJ$10 & \"'!\" & AD483),0) + IF(Setup!$AJ$11<>\"\",INDIRECT(\"'\" & Setup!$AJ$11 & \"'!\" & AD483),0) + IF(Setup!$AJ$12<>\"\",INDIRECT(\"'\" & Setup!$AJ$12 & \"'!\" & AD483),0)","v":0},{"$nulls":16},"H251"]
[{"$f":"Setup!AP32","v":0},{"$nulls":6},0,{"$f":"IF(Setup!$AG$7<>\"\",INDIRECT(\"'\" & Setup!$AG$7 & \"'!\" & AD484),0) + IF(Setup!$AG$8<>\"\",INDIRECT(\"'\" & Setup!$AG$8 & \"'!\" & AD484),0) + IF(Setup!$AG$9<>\"\",INDIRECT(\"'\" & Setup!$AG$9 & \"'!\" & AD484),0) + IF(Setup!$AG$10<>\"\",INDIRECT(\"'\" & Setup!$AG$10 & \"'!\" & AD484),0) + IF(Setup!$AG$11<>\"\",INDIRECT(\"'\" & Setup!$AG$11 & \"'!\" & AD484),0) + IF(Setup!$AG$12<>\"\",INDIRECT(\"'\" & Setup!$AG$12 & \"'!\" & AD484),0)","v":0},{"$f":"IF(Setup!$AH$7<>\"\",INDIRECT(\"'\" & Setup!$AH$7 & \"'!\" & AD484),0) + IF(Setup!$AH$8<>\"\",INDIRECT(\"'\" & Setup!$AH$8 & \"'!\" & AD484),0) + IF(Setup!$AH$9<>\"\",INDIRECT(\"'\" & Setup!$AH$9 & \"'!\" & AD484),0) + IF(Setup!$AH$10<>\"\",INDIRECT(\"'\" & Setup!$AH$10 & \"'!\" & AD484),0) + IF(Setup!$AH$11<>\"\",INDIRECT(\"'\" & Setup!$AH$11 & \"'!\" & AD484),0) + IF(Setup!$AH$12<>\"\",INDIRECT(\"'\" & Setup!$AH$12 & \"'!\" & AD484),0)","v":0},null,{"$f":"IF(Setup!$AI$7<>\"\",INDIRECT(\"'\" & Setup!$AI$7 & \"'!\" & AD484),0) + IF(Setup!$AI$8<>\"\",INDIRECT(\"'\" & Setup!$AI$8 & \"'!\" & AD484),0) + IF(Setup!$AI$9<>\"\",INDIRECT(\"'\" & Setup!$AI$9 & \"'!\" & AD484),0) + IF(Setup!$AI$10<>\"\",INDIRECT(\"'\" & Setup!$AI$10 & \"'!\" & AD484),0) + IF(Setup!$AI$11<>\"\",INDIRECT(\"'\" & Setup!$AI$11 & \"'!\" & AD484),0) + IF(Setup!$AI$12<>\"\",INDIRECT(\"'\" & Setup!$AI$12 & \"'!\" & AD484),0)","v":0},{"$f":"IF(Setup!$AJ$7<>\"\",INDIRECT(\"'\" & Setup!$AJ$7 & \"'!\" & AD484),0) + IF(Setup!$AJ$8<>\"\",INDIRECT(\"'\" & Setup!$AJ$8 & \"'!\" & AD484),0) + IF(Setup!$AJ$9<>\"\",INDIRECT(\"'\" & Setup!$AJ$9 & \"'!\" & AD484),0) + IF(Setup!$AJ$10<>\"\",INDIRECT(\"'\" & Setup!$AJ$10 & \"'!\" & AD484),0) + IF(Setup!$AJ$11<>\"\",INDIRECT(\"'\" & Setup!$AJ$11 & \"'!\" & AD484),0) + IF(Setup!$AJ$12<>\"\",INDIRECT(\"'\" & Setup!$AJ$12 & \"'!\" & AD484),0)","v":0},{"$nulls":16},"H252"]
[{"$f":"Setup!AP33","v":0},{"$nulls":6},0,{"$f":"IF(Setup!$AG$7<>\"\",INDIRECT(\"'\" & Setup!$AG$7 & \"'!\" & AD485),0) + IF(Setup!$AG$8<>\"\",INDIRECT(\"'\" & Setup!$AG$8 & \"'!\" & AD485),0) + IF(Setup!$AG$9<>\"\",INDIRECT(\"'\" & Setup!$AG$9 & \"'!\" & AD485),0) + IF(Setup!$AG$10<>\"\",INDIRECT(\"'\" & Setup!$AG$10 & \"'!\" & AD485),0) + IF(Setup!$AG$11<>\"\",INDIRECT(\"'\" & Setup!$AG$11 & \"'!\" & AD485),0) + IF(Setup!$AG$12<>\"\",INDIRECT(\"'\" & Setup!$AG$12 & \"'!\" & AD485),0)","v":0},{"$f":"IF(Setup!$AH$7<>\"\",INDIRECT(\"'\" & Setup!$AH$7 & \"'!\" & AD485),0) + IF(Setup!$AH$8<>\"\",INDIRECT(\"'\" & Setup!$AH$8 & \"'!\" & AD485),0) + IF(Setup!$AH$9<>\"\",INDIRECT(\"'\" & Setup!$AH$9 & \"'!\" & AD485),0) + IF(Setup!$AH$10<>\"\",INDIRECT(\"'\" & Setup!$AH$10 & \"'!\" & AD485),0) + IF(Setup!$AH$11<>\"\",INDIRECT(\"'\" & Setup!$AH$11 & \"'!\" & AD485),0) + IF(Setup!$AH$12<>\"\",INDIRECT(\"'\" & Setup!$AH$12 & \"'!\" & AD485),0)","v":0},null,{"$f":"IF(Setup!$AI$7<>\"\",INDIRECT(\"'\" & Setup!$AI$7 & \"'!\" & AD485),0) + IF(Setup!$AI$8<>\"\",INDIRECT(\"'\" & Setup!$AI$8 & \"'!\" & AD485),0) + IF(Setup!$AI$9<>\"\",INDIRECT(\"'\" & Setup!$AI$9 & \"'!\" & AD485),0) + IF(Setup!$AI$10<>\"\",INDIRECT(\"'\" & Setup!$AI$10 & \"'!\" & AD485),0) + IF(Setup!$AI$11<>\"\",INDIRECT(\"'\" & Setup!$AI$11 & \"'!\" & AD485),0) + IF(Setup!$AI$12<>\"\",INDIRECT(\"'\" & Setup!$AI$12 & \"'!\" & AD485),0)","v":0},{"$f":"IF(Setup!$AJ$7<>\"\",INDIRECT(\"'\" & Setup!$AJ$7 & \"'!\" & AD485),0) + IF(Setup!$AJ$8<>\"\",INDIRECT(\"'\" & Setup!$AJ$8 & \"'!\" & AD485),0) + IF(Setup!$AJ$9<>\"\",INDIRECT(\"'\" & Setup!$AJ$9 & \"'!\" & AD485),0) + IF(Setup!$AJ$10<>\"\",INDIRECT(\"'\" & Setup!$AJ$10 & \"'!\" & AD485),0) + IF(Setup!$AJ$11<>\"\",INDIRECT(\"'\" & Setup!$AJ$11 & \"'!\" & AD485),0) + IF(Setup!$AJ$12<>\"\",INDIRECT(\"'\" & Setup!$AJ$12 & \"'!\" & AD485),0)","v":0},{"$nulls":16},"H253"]
[{"$f":"Setup!AP34","v":0},{"$nulls":6},0,{"$f":"IF(Setup!$AG$7<>\"\",INDIRECT(\"'\" & Setup!$AG$7 & \"'!\" & AD486),0) + IF(Setup!$AG$8<>\"\",INDIRECT(\"'\" & Setup!$AG$8 & \"'!\" & AD486),0) + IF(Setup!$AG$9<>\"\",INDIRECT(\"'\" & Setup!$AG$9 & \"'!\" & AD486),0) + IF(Setup!$AG$10<>\"\",INDIRECT(\"'\" & Setup!$AG$10 & \"'!\" & AD486),0) + IF(Setup!$AG$11<>\"\",INDIRECT(\"'\" & Setup!$AG$11 & \"'!\" & AD486),0) + IF(Setup!$AG$12<>\"\",INDIRECT(\"'\" & Setup!$AG$12 & \"'!\" & AD486),0)","v":0},{"$f":"IF(Setup!$AH$7<>\"\",INDIRECT(\"'\" & Setup!$AH$7 & \"'!\" & AD486),0) + IF(Setup!$AH$8<>\"\",INDIRECT(\"'\" & Setup!$AH$8 & \"'!\" & AD486),0) + IF(Setup!$AH$9<>\"\",INDIRECT(\"'\" & Setup!$AH$9 & \"'!\" & AD486),0) + IF(Setup!$AH$10<>\"\",INDIRECT(\"'\" & Setup!$AH$10 & \"'!\" & AD486),0) + IF(Setup!$AH$11<>\"\",INDIRECT(\"'\" & Setup!$AH$11 & \"'!\" & AD486),0) + IF(Setup!$AH$12<>\"\",INDIRECT(\"'\" & Setup!$AH$12 & \"'!\" & AD486),0)","v":0},null,{"$f":"IF(Setup!$AI$7<>\"\",INDIRECT(\"'\" & Setup!$AI$7 & \"'!\" & AD486),0) + IF(Setup!$AI$8<>\"\",INDIRECT(\"'\" & Setup!$AI$8 & \"'!\" & AD486),0) + IF(Setup!$AI$9<>\"\",INDIRECT(\"'\" & Setup!$AI$9 & \"'!\" & AD486),0) + IF(Setup!$AI$10<>\"\",INDIRECT(\"'\" & Setup!$AI$10 & \"'!\" & AD486),0) + IF(Setup!$AI$11<>\"\",INDIRECT(\"'\" & Setup!$AI$11 & \"'!\" & AD486),0) + IF(Setup!$AI$12<>\"\",INDIRECT(\"'\" & Setup!$AI$12 & \"'!\" & AD486),0)","v":0},{"$f":"IF(Setup!$AJ$7<>\"\",INDIRECT(\"'\" & Setup!$AJ$7 & \"'!\" & AD486),0) + IF(Setup!$AJ$8<>\"\",INDIRECT(\"'\" & Setup!$AJ$8 & \"'!\" & AD486),0) + IF(Setup!$AJ$9<>\"\",INDIRECT(\"'\" & Setup!$AJ$9 & \"'!\" & AD486),0) + IF(Setup!$AJ$10<>\"\",INDIRECT(\"'\" & Setup!$AJ$10 & \"'!\" & AD486),0) + IF(Setup!$AJ$11<>\"\",INDIRECT(\"'\" & Setup!$AJ$11 & \"'!\" & AD486),0) + IF(Setup!$AJ$12<>\"\",INDIRECT(\"'\" & Setup!$AJ$12 & \"'!\" & AD486),0)","v":0},{"$nulls":16},"H254"]
[{"$f":"Setup!AP35","v":0},{"$nulls":6},0,{"$f":"IF(Setup!$AG$7<>\"\",INDIRECT(\"'\" & Setup!$AG$7 & \"'!\" & AD487),0) + IF(Setup!$AG$8<>\"\",INDIRECT(\"'\" & Setup!$AG$8 & \"'!\" & AD487),0) + IF(Setup!$AG$9<>\"\",INDIRECT(\"'\" & Setup!$AG$9 & \"'!\" & AD487),0) + IF(Setup!$AG$10<>\"\",INDIRECT(\"'\" & Setup!$AG$10 & \"'!\" & AD487),0) + IF(Setup!$AG$11<>\"\",INDIRECT(\"'\" & Setup!$AG$11 & \"'!\" & AD487),0) + IF(Setup!$AG$12<>\"\",INDIRECT(\"'\" & Setup!$AG$12 & \"'!\" & AD487),0)","v":0},{"$f":"IF(Setup!$AH$7<>\"\",INDIRECT(\"'\" & Setup!$AH$7 & \"'!\" & AD487),0) + IF(Setup!$AH$8<>\"\",INDIRECT(\"'\" & Setup!$AH$8 & \"'!\" & AD487),0) + IF(Setup!$AH$9<>\"\",INDIRECT(\"'\" & Setup!$AH$9 & \"'!\" & AD487),0) + IF(Setup!$AH$10<>\"\",INDIRECT(\"'\" & Setup!$AH$10 & \"'!\" & AD487),0) + IF(Setup!$AH$11<>\"\",INDIRECT(\"'\" & Setup!$AH$11 & \"'!\" & AD487),0) + IF(Setup!$AH$12<>\"\",INDIRECT(\"'\" & Setup!$AH$12 & \"'!\" & AD487),0)","v":0},null,{"$f":"IF(Setup!$AI$7<>\"\",INDIRECT(\"'\" & Setup!$AI$7 & \"'!\" & AD487),0) + IF(Setup!$AI$8<>\"\",INDIRECT(\"'\" & Setup!$AI$8 & \"'!\" & AD487),0) + IF(Setup!$AI$9<>\"\",INDIRECT(\"'\" & Setup!$AI$9 & \"'!\" & AD487),0) + IF(Setup!$AI$10<>\"\",INDIRECT(\"'\" & Setup!$AI$10 & \"'!\" & AD487),0) + IF(Setup!$AI$11<>\"\",INDIRECT(\"'\" & Setup!$AI$11 & \"'!\" & AD487),0) + IF(Setup!$AI$12<>\"\",INDIRECT(\"'\" & Setup!$AI$12 & \"'!\" & AD487),0)","v":0},{"$f":"IF(Setup!$AJ$7<>\"\",INDIRECT(\"'\" & Setup!$AJ$7 & \"'!\" & AD487),0) + IF(Setup!$AJ$8<>\"\",INDIRECT(\"'\" & Setup!$AJ$8 & \"'!\" & AD487),0) + IF(Setup!$AJ$9<>\"\",INDIRECT(\"'\" & Setup!$AJ$9 & \"'!\" & AD487),0) + IF(Setup!$AJ$10<>\"\",INDIRECT(\"'\" & Setup!$AJ$10 & \"'!\" & AD487),0) + IF(Setup!$AJ$11<>\"\",INDIRECT(\"'\" & Setup!$AJ$11 & \"'!\" & AD487),0) + IF(Setup!$AJ$12<>\"\",INDIRECT(\"'\" & Setup!$AJ$12 & \"'!\" & AD487),0)","v":0},{"$nulls":16},"H255"]
[{"$f":"Setup!AP36","v":0},{"$nulls":6},{"$f":"SUM(I488:M488)","v":0},{"$f":"IF(Setup!$AG$7<>\"\",INDIRECT(\"'\" & Setup!$AG$7 & \"'!\" & AD488),0) + IF(Setup!$AG$8<>\"\",INDIRECT(\"'\" & Setup!$AG$8 & \"'!\" & AD488),0) + IF(Setup!$AG$9<>\"\",INDIRECT(\"'\" & Setup!$AG$9 & \"'!\" & AD488),0) + IF(Setup!$AG$10<>\"\",INDIRECT(\"'\" & Setup!$AG$10 & \"'!\" & AD488),0) + IF(Setup!$AG$11<>\"\",INDIRECT(\"'\" & Setup!$AG$11 & \"'!\" & AD488),0) + IF(Setup!$AG$12<>\"\",INDIRECT(\"'\" & Setup!$AG$12 & \"'!\" & AD488),0)","v":0},{"$f":"IF(Setup!$AH$7<>\"\",INDIRECT(\"'\" & Setup!$AH$7 & \"'!\" & AD488),0) + IF(Setup!$AH$8<>\"\",INDIRECT(\"'\" & Setup!$AH$8 & \"'!\" & AD488),0) + IF(Setup!$AH$9<>\"\",INDIRECT(\"'\" & Setup!$AH$9 & \"'!\" & AD488),0) + IF(Setup!$AH$10<>\"\",INDIRECT(\"'\" & Setup!$AH$10 & \"'!\" & AD488),0) + IF(Setup!$AH$11<>\"\",INDIRECT(\"'\" & Setup!$AH$11 & \"'!\" & AD488),0) + IF(Setup!$AH$12<>\"\",INDIRECT(\"'\" & Setup!$AH$12 & \"'!\" & AD488),0)","v":0},null,{"$f":"IF(Setup!$AI$7<>\"\",INDIRECT(\"'\" & Setup!$AI$7 & \"'!\" & AD488),0) + IF(Setup!$AI$8<>\"\",INDIRECT(\"'\" & Setup!$AI$8 & \"'!\" & AD488),0) + IF(Setup!$AI$9<>\"\",INDIRECT(\"'\" & Setup!$AI$9 & \"'!\" & AD488),0) + IF(Setup!$AI$10<>\"\",INDIRECT(\"'\" & Setup!$AI$10 & \"'!\" & AD488),0) + IF(Setup!$AI$11<>\"\",INDIRECT(\"'\" & Setup!$AI$11 & \"'!\" & AD488),0) + IF(Setup!$AI$12<>\"\",INDIRECT(\"'\" & Setup!$AI$12 & \"'!\" & AD488),0)","v":0},{"$f":"IF(Setup!$AJ$7<>\"\",INDIRECT(\"'\" & Setup!$AJ$7 & \"'!\" & AD488),0) + IF(Setup!$AJ$8<>\"\",INDIRECT(\"'\" & Setup!$AJ$8 & \"'!\" & AD488),0) + IF(Setup!$AJ$9<>\"\",INDIRECT(\"'\" & Setup!$AJ$9 & \"'!\" & AD488),0) + IF(Setup!$AJ$10<>\"\",INDIRECT(\"'\" & Setup!$AJ$10 & \"'!\" & AD488),0) + IF(Setup!$AJ$11<>\"\",INDIRECT(\"'\" & Setup!$AJ$11 & \"'!\" & AD488),0) + IF(Setup!$AJ$12<>\"\",INDIRECT(\"'\" & Setup!$AJ$12 & \"'!\" & AD488),0)","v":0},{"$nulls":16},"H256"]
[{"$f":"Setup!AP37","v":0},{"$nulls":6},0,{"$f":"IF(Setup!$AG$7<>\"\",INDIRECT(\"'\" & Setup!$AG$7 & \"'!\" & AD489),0) + IF(Setup!$AG$8<>\"\",INDIRECT(\"'\" & Setup!$AG$8 & \"'!\" & AD489),0) + IF(Setup!$AG$9<>\"\",INDIRECT(\"'\" & Setup!$AG$9 & \"'!\" & AD489),0) + IF(Setup!$AG$10<>\"\",INDIRECT(\"'\" & Setup!$AG$10 & \"'!\" & AD489),0) + IF(Setup!$AG$11<>\"\",INDIRECT(\"'\" & Setup!$AG$11 & \"'!\" & AD489),0) + IF(Setup!$AG$12<>\"\",INDIRECT(\"'\" & Setup!$AG$12 & \"'!\" & AD489),0)","v":0},{"$f":"IF(Setup!$AH$7<>\"\",INDIRECT(\"'\" & Setup!$AH$7 & \"'!\" & AD489),0) + IF(Setup!$AH$8<>\"\",INDIRECT(\"'\" & Setup!$AH$8 & \"'!\" & AD489),0) + IF(Setup!$AH$9<>\"\",INDIRECT(\"'\" & Setup!$AH$9 & \"'!\" & AD489),0) + IF(Setup!$AH$10<>\"\",INDIRECT(\"'\" & Setup!$AH$10 & \"'!\" & AD489),0) + IF(Setup!$AH$11<>\"\",INDIRECT(\"'\" & Setup!$AH$11 & \"'!\" & AD489),0) + IF(Setup!$AH$12<>\"\",INDIRECT(\"'\" & Setup!$AH$12 & \"'!\" & AD489),0)","v":0},null,{"$f":"IF(Setup!$AI$7<>\"\",INDIRECT(\"'\" & Setup!$AI$7 & \"'!\" & AD489),0) + IF(Setup!$AI$8<>\"\",INDIRECT(\"'\" & Setup!$AI$8 & \"'!\" & AD489),0) + IF(Setup!$AI$9<>\"\",INDIRECT(\"'\" & Setup!$AI$9 & \"'!\" & AD489),0) + IF(Setup!$AI$10<>\"\",INDIRECT(\"'\" & Setup!$AI$10 & \"'!\" & AD489),0) + IF(Setup!$AI$11<>\"\",INDIRECT(\"'\" & Setup!$AI$11 & \"'!\" & AD489),0) + IF(Setup!$AI$12<>\"\",INDIRECT(\"'\" & Setup!$AI$12 & \"'!\" & AD489),0)","v":0},{"$f":"IF(Setup!$AJ$7<>\"\",INDIRECT(\"'\" & Setup!$AJ$7 & \"'!\" & AD489),0) + IF(Setup!$AJ$8<>\"\",INDIRECT(\"'\" & Setup!$AJ$8 & \"'!\" & AD489),0) + IF(Setup!$AJ$9<>\"\",INDIRECT(\"'\" & Setup!$AJ$9 & \"'!\" & AD489),0) + IF(Setup!$AJ$10<>\"\",INDIRECT(\"'\" & Setup!$AJ$10 & \"'!\" & AD489),0) + IF(Setup!$AJ$11<>\"\",INDIRECT(\"'\" & Setup!$AJ$11 & \"'!\" & AD489),0) + IF(Setup!$AJ$12<>\"\",INDIRECT(\"'\" & Setup!$AJ$12 & \"'!\" & AD489),0)","v":0},{"$nulls":16},"H257"]
[{"$f":"Setup!AP38","v":0},{"$nulls":6},0,{"$f":"IF(Setup!$AG$7<>\"\",INDIRECT(\"'\" & Setup!$AG$7 & \"'!\" & AD490),0) + IF(Setup!$AG$8<>\"\",INDIRECT(\"'\" & Setup!$AG$8 & \"'!\" & AD490),0) + IF(Setup!$AG$9<>\"\",INDIRECT(\"'\" & Setup!$AG$9 & \"'!\" & AD490),0) + IF(Setup!$AG$10<>\"\",INDIRECT(\"'\" & Setup!$AG$10 & \"'!\" & AD490),0) + IF(Setup!$AG$11<>\"\",INDIRECT(\"'\" & Setup!$AG$11 & \"'!\" & AD490),0) + IF(Setup!$AG$12<>\"\",INDIRECT(\"'\" & Setup!$AG$12 & \"'!\" & AD490),0)","v":0},{"$f":"IF(Setup!$AH$7<>\"\",INDIRECT(\"'\" & Setup!$AH$7 & \"'!\" & AD490),0) + IF(Setup!$AH$8<>\"\",INDIRECT(\"'\" & Setup!$AH$8 & \"'!\" & AD490),0) + IF(Setup!$AH$9<>\"\",INDIRECT(\"'\" & Setup!$AH$9 & \"'!\" & AD490),0) + IF(Setup!$AH$10<>\"\",INDIRECT(\"'\" & Setup!$AH$10 & \"'!\" & AD490),0) + IF(Setup!$AH$11<>\"\",INDIRECT(\"'\" & Setup!$AH$11 & \"'!\" & AD490),0) + IF(Setup!$AH$12<>\"\",INDIRECT(\"'\" & Setup!$AH$12 & \"'!\" & AD490),0)","v":0},null,{"$f":"IF(Setup!$AI$7<>\"\",INDIRECT(\"'\" & Setup!$AI$7 & \"'!\" & AD490),0) + IF(Setup!$AI$8<>\"\",INDIRECT(\"'\" & Setup!$AI$8 & \"'!\" & AD490),0) + IF(Setup!$AI$9<>\"\",INDIRECT(\"'\" & Setup!$AI$9 & \"'!\" & AD490),0) + IF(Setup!$AI$10<>\"\",INDIRECT(\"'\" & Setup!$AI$10 & \"'!\" & AD490),0) + IF(Setup!$AI$11<>\"\",INDIRECT(\"'\" & Setup!$AI$11 & \"'!\" & AD490),0) + IF(Setup!$AI$12<>\"\",INDIRECT(\"'\" & Setup!$AI$12 & \"'!\" & AD490),0)","v":0},{"$f":"IF(Setup!$AJ$7<>\"\",INDIRECT(\"'\" & Setup!$AJ$7 & \"'!\" & AD490),0) + IF(Setup!$AJ$8<>\"\",INDIRECT(\"'\" & Setup!$AJ$8 & \"'!\" & AD490),0) + IF(Setup!$AJ$9<>\"\",INDIRECT(\"'\" & Setup!$AJ$9 & \"'!\" & AD490),0) + IF(Setup!$AJ$10<>\"\",INDIRECT(\"'\" & Setup!$AJ$10 & \"'!\" & AD490),0) + IF(Setup!$AJ$11<>\"\",INDIRECT(\"'\" & Setup!$AJ$11 & \"'!\" & AD490),0) + IF(Setup!$AJ$12<>\"\",INDIRECT(\"'\" & Setup!$AJ$12 & \"'!\" & AD490),0)","v":0},{"$nulls":16},"H258","Q1","Q2","Q3","Q4"]
[{"$f":"Setup!AP39","v":"Actual stock level - PS39 - Product 1: Efavirenz, 600 mg, 30 tablets"},{"$nulls":6},".",{"$f":"IF(Setup!$AG$5=0,0,INDIRECT(\"'\" & INDIRECT($AE$491) & \"'!\" & AD491))","v":11},{"$f":"IF(Setup!$AH$5=0,0,INDIRECT(\"'\" & INDIRECT($AF$491) & \"'!\" & AD491))","v":9},null,{"$f":"IF(Setup!$AI$5=0,0,INDIRECT(\"'\" & INDIRECT($AG$491) & \"'!\" & AD491))","v":0},{"$f":"IF(Setup!$AJ$5=0,0,INDIRECT(\"'\" & INDIRECT($AH$491) & \"'!\" & AD491))","v":0},{"$nulls":16},"H259",{"$f":" \"'Setup'!AG\" & (Setup!AG5 + 6)","v":"'Setup'!AG9"},{"$f":" \"'Setup'!AH\" & (Setup!AH5 + 6)","v":"'Setup'!AH9"},{"$f":" \"'Setup'!AI\" & (Setup!AI5 + 6)","v":"'Setup'!AI9"},{"$f":" \"'Setup'!AJ\" & (Setup!AJ5 + 6)","v":"'Setup'!AJ9"}]
[{"$f":"Setup!AP40","v":"Actual stock level - PS40 - Product 2: Efavirenz, 200 mg, 90 capsules"},{"$nulls":6},".",{"$f":"IF(Setup!$AG$5=0,0,INDIRECT(\"'\" & INDIRECT($AE$491) & \"'!\" & AD492))","v":12},{"$f":"IF(Setup!$AH$5=0,0,INDIRECT(\"'\" & INDIRECT($AF$491) & \"'!\" & AD492))","v":8},null,{"$f":"IF(Setup!$AI$5=0,0,INDIRECT(\"'\" & INDIRECT($AG$491) & \"'!\" & AD492))","v":0},{"$f":"IF(Setup!$AJ$5=0,0,INDIRECT(\"'\" & INDIRECT($AH$491) & \"'!\" & AD492))","v":0},{"$nulls":16},"H260"]
[{"$f":"Setup!AP41","v":"Actual stock level - PS41 - Product 3: TDF/3TC, 300/300 mg, 30 tablets"},{"$nulls":6},".",{"$f":"IF(Setup!$AG$5=0,0,INDIRECT(\"'\" & INDIRECT($AE$491) & \"'!\" & AD493))","v":13},{"$f":"IF(Setup!$AH$5=0,0,INDIRECT(\"'\" & INDIRECT($AF$491) & \"'!\" & AD493))","v":7},null,{"$f":"IF(Setup!$AI$5=0,0,INDIRECT(\"'\" & INDIRECT($AG$491) & \"'!\" & AD493))","v":0},{"$f":"IF(Setup!$AJ$5=0,0,INDIRECT(\"'\" & INDIRECT($AH$491) & \"'!\" & AD493))","v":0},{"$nulls":16},"H261"]
[{"$f":"Setup!AP42","v":"Actual stock level - PS42 - Product 4: 3TC, 10 mg/ml, oral solution 240 ml"},{"$nulls":6},".",{"$f":"IF(Setup!$AG$5=0,0,INDIRECT(\"'\" & INDIRECT($AE$491) & \"'!\" & AD494))","v":14},{"$f":"IF(Setup!$AH$5=0,0,INDIRECT(\"'\" & INDIRECT($AF$491) & \"'!\" & AD494))","v":6},null,{"$f":"IF(Setup!$AI$5=0,0,INDIRECT(\"'\" & INDIRECT($AG$491) & \"'!\" & AD494))","v":0},{"$f":"IF(Setup!$AJ$5=0,0,INDIRECT(\"'\" & INDIRECT($AH$491) & \"'!\" & AD494))","v":0},{"$nulls":16},"H262"]
[{"$f":"Setup!AP43","v":0},{"$nulls":6},".",{"$f":"IF(Setup!$AG$5=0,0,INDIRECT(\"'\" & INDIRECT($AE$491) & \"'!\" & AD495))","v":0},{"$f":"IF(Setup!$AH$5=0,0,INDIRECT(\"'\" & INDIRECT($AF$491) & \"'!\" & AD495))","v":0},null,{"$f":"IF(Setup!$AI$5=0,0,INDIRECT(\"'\" & INDIRECT($AG$491) & \"'!\" & AD495))","v":0},{"$f":"IF(Setup!$AJ$5=0,0,INDIRECT(\"'\" & INDIRECT($AH$491) & \"'!\" & AD495))","v":0},{"$nulls":16},"H263"]
[{"$f":"Setup!AP44","v":0},{"$nulls":6},".",{"$f":"IF(Setup!$AG$5=0,0,INDIRECT(\"'\" & INDIRECT($AE$491) & \"'!\" & AD496))","v":0},{"$f":"IF(Setup!$AH$5=0,0,INDIRECT(\"'\" & INDIRECT($AF$491) & \"'!\" & AD496))","v":0},null,{"$f":"IF(Setup!$AI$5=0,0,INDIRECT(\"'\" & INDIRECT($AG$491) & \"'!\" & AD496))","v":0},{"$f":"IF(Setup!$AJ$5=0,0,INDIRECT(\"'\" & INDIRECT($AH$491) & \"'!\" & AD496))","v":0},{"$nulls":16},"H264"]
[{"$f":"Setup!AP45","v":0},{"$nulls":6},".",{"$f":"IF(Setup!$AG$5=0,0,INDIRECT(\"'\" & INDIRECT($AE$491) & \"'!\" & AD497))","v":0},{"$f":"IF(Setup!$AH$5=0,0,INDIRECT(\"'\" & INDIRECT($AF$491) & \"'!\" & AD497))","v":0},null,{"$f":"IF(Setup!$AI$5=0,0,INDIRECT(\"'\" & INDIRECT($AG$491) & \"'!\" & AD497))","v":0},{"$f":"IF(Setup!$AJ$5=0,0,INDIRECT(\"'\" & INDIRECT($AH$491) & \"'!\" & AD497))","v":0},{"$nulls":16},"H265"]
[{"$f":"Setup!AP46","v":0},{"$nulls":6},".",{"$f":"IF(Setup!$AG$5=0,0,INDIRECT(\"'\" & INDIRECT($AE$491) & \"'!\" & AD498))","v":0},{"$f":"IF(Setup!$AH$5=0,0,INDIRECT(\"'\" & INDIRECT($AF$491) & \"'!\" & AD498))","v":0},null,{"$f":"IF(Setup!$AI$5=0,0,INDIRECT(\"'\" & INDIRECT($AG$491) & \"'!\" & AD498))","v":0},{"$f":"IF(Setup!$AJ$5=0,0,INDIRECT(\"'\" & INDIRECT($AH$491) & \"'!\" & AD498))","v":0},{"$nulls":16},"H266"]
[{"$f":"Setup!AP47","v":0},{"$nulls":6},".",{"$f":"IF(Setup!$AG$5=0,0,INDIRECT(\"'\" & INDIRECT($AE$491) & \"'!\" & AD499))","v":0},{"$f":"IF(Setup!$AH$5=0,0,INDIRECT(\"'\" & INDIRECT($AF$491) & \"'!\" & AD499))","v":0},null,{"$f":"IF(Setup!$AI$5=0,0,INDIRECT(\"'\" & INDIRECT($AG$491) & \"'!\" & AD499))","v":0},{"$f":"IF(Setup!$AJ$5=0,0,INDIRECT(\"'\" & INDIRECT($AH$491) & \"'!\" & AD499))","v":0},{"$nulls":16},"H267"]
[{"$f":"Setup!AP48","v":0},{"$nulls":6},".",{"$f":"IF(Setup!$AG$5=0,0,INDIRECT(\"'\" & INDIRECT($AE$491) & \"'!\" & AD500))","v":0},{"$f":"IF(Setup!$AH$5=0,0,INDIRECT(\"'\" & INDIRECT($AF$491) & \"'!\" & AD500))","v":0},null,{"$f":"IF(Setup!$AI$5=0,0,INDIRECT(\"'\" & INDIRECT($AG$491) & \"'!\" & AD500))","v":0},{"$f":"IF(Setup!$AJ$5=0,0,INDIRECT(\"'\" & INDIRECT($AH$491) & \"'!\" & AD500))","v":0},{"$nulls":16},"H268"]
[{"$f":"Setup!AP49","v":0},{"$nulls":6},".",{"$f":"IF(Setup!$AG$5=0,0,INDIRECT(\"'\" & INDIRECT($AE$491) & \"'!\" & AD501))","v":0},{"$f":"IF(Setup!$AH$5=0,0,INDIRECT(\"'\" & INDIRECT($AF$491) & \"'!\" & AD501))","v":0},null,{"$f":"IF(Setup!$AI$5=0,0,INDIRECT(\"'\" & INDIRECT($AG$491) & \"'!\" & AD501))","v":0},{"$f":"IF(Setup!$AJ$5=0,0,INDIRECT(\"'\" & INDIRECT($AH$491) & \"'!\" & AD501))","v":0},{"$nulls":16},"H269"]
[{"$f":"Setup!AP50","v":0},{"$nulls":6},".",{"$f":"IF(Setup!$AG$5=0,0,INDIRECT(\"'\" & INDIRECT($AE$491) & \"'!\" & AD502))","v":0},{"$f":"IF(Setup!$AH$5=0,0,INDIRECT(\"'\" & INDIRECT($AF$491) & \"'!\" & AD502))","v":0},null,{"$f":"IF(Setup!$AI$5=0,0,INDIRECT(\"'\" & INDIRECT($AG$491) & \"'!\" & AD502))","v":0},{"$f":"IF(Setup!$AJ$5=0,0,INDIRECT(\"'\" & INDIRECT($AH$491) & \"'!\" & AD502))","v":0},{"$nulls":16},"H270"]
[{"$f":"Setup!AP51","v":0},{"$nulls":6},".",{"$f":"IF(Setup!$AG$5=0,0,INDIRECT(\"'\" & INDIRECT($AE$491) & \"'!\" & AD503))","v":0},{"$f":"IF(Setup!$AH$5=0,0,INDIRECT(\"'\" & INDIRECT($AF$491) & \"'!\" & AD503))","v":0},null,{"$f":"IF(Setup!$AI$5=0,0,INDIRECT(\"'\" & INDIRECT($AG$491) & \"'!\" & AD503))","v":0},{"$f":"IF(Setup!$AJ$5=0,0,INDIRECT(\"'\" & INDIRECT($AH$491) & \"'!\" & AD503))","v":0},{"$nulls":16},"H271"]
[{"$f":"Setup!AP52","v":0},{"$nulls":6},".",{"$f":"IF(Setup!$AG$5=0,0,INDIRECT(\"'\" & INDIRECT($AE$491) & \"'!\" & AD504))","v":0},{"$f":"IF(Setup!$AH$5=0,0,INDIRECT(\"'\" & INDIRECT($AF$491) & \"'!\" & AD504))","v":0},null,{"$f":"IF(Setup!$AI$5=0,0,INDIRECT(\"'\" & INDIRECT($AG$491) & \"'!\" & AD504))","v":0},{"$f":"IF(Setup!$AJ$5=0,0,INDIRECT(\"'\" & INDIRECT($AH$491) & \"'!\" & AD504))","v":0},{"$nulls":16},"H272"]
[{"$f":"Setup!AP53","v":0},{"$nulls":6},".",{"$f":"IF(Setup!$AG$5=0,0,INDIRECT(\"'\" & INDIRECT($AE$491) & \"'!\" & AD505))","v":0},{"$f":"IF(Setup!$AH$5=0,0,INDIRECT(\"'\" & INDIRECT($AF$491) & \"'!\" & AD505))","v":0},null,{"$f":"IF(Setup!$AI$5=0,0,INDIRECT(\"'\" & INDIRECT($AG$491) & \"'!\" & AD505))","v":0},{"$f":"IF(Setup!$AJ$5=0,0,INDIRECT(\"'\" & INDIRECT($AH$491) & \"'!\" & AD505))","v":0},{"$nulls":16},"H273"]
[{"$f":"Setup!AP54","v":0},{"$nulls":6},".",{"$f":"IF(Setup!$AG$5=0,0,INDIRECT(\"'\" & INDIRECT($AE$491) & \"'!\" & AD506))","v":0},{"$f":"IF(Setup!$AH$5=0,0,INDIRECT(\"'\" & INDIRECT($AF$491) & \"'!\" & AD506))","v":0},null,{"$f":"IF(Setup!$AI$5=0,0,INDIRECT(\"'\" & INDIRECT($AG$491) & \"'!\" & AD506))","v":0},{"$f":"IF(Setup!$AJ$5=0,0,INDIRECT(\"'\" & INDIRECT($AH$491) & \"'!\" & AD506))","v":0},{"$nulls":16},"H274"]
[{"$f":"Setup!AP55","v":0},{"$nulls":6},".",{"$f":"IF(Setup!$AG$5=0,0,INDIRECT(\"'\" & INDIRECT($AE$491) & \"'!\" & AD507))","v":0},{"$f":"IF(Setup!$AH$5=0,0,INDIRECT(\"'\" & INDIRECT($AF$491) & \"'!\" & AD507))","v":0},null,{"$f":"IF(Setup!$AI$5=0,0,INDIRECT(\"'\" & INDIRECT($AG$491) & \"'!\" & AD507))","v":0},{"$f":"IF(Setup!$AJ$5=0,0,INDIRECT(\"'\" & INDIRECT($AH$491) & \"'!\" & AD507))","v":0},{"$nulls":16},"H275"]
[{"$f":"Setup!AP56","v":0},{"$nulls":6},".",{"$f":"IF(Setup!$AG$5=0,0,INDIRECT(\"'\" & INDIRECT($AE$491) & \"'!\" & AD508))","v":0},{"$f":"IF(Setup!$AH$5=0,0,INDIRECT(\"'\" & INDIRECT($AF$491) & \"'!\" & AD508))","v":0},null,{"$f":"IF(Setup!$AI$5=0,0,INDIRECT(\"'\" & INDIRECT($AG$491) & \"'!\" & AD508))","v":0},{"$f":"IF(Setup!$AJ$5=0,0,INDIRECT(\"'\" & INDIRECT($AH$491) & \"'!\" & AD508))","v":0},{"$nulls":16},"H276"]
[{"$f":"Setup!AP57","v":0},{"$nulls":6},".",{"$f":"IF(Setup!$AG$5=0,0,INDIRECT(\"'\" & INDIRECT($AE$491) & \"'!\" & AD509))","v":0},{"$f":"IF(Setup!$AH$5=0,0,INDIRECT(\"'\" & INDIRECT($AF$491) & \"'!\" & AD509))","v":0},null,{"$f":"IF(Setup!$AI$5=0,0,INDIRECT(\"'\" & INDIRECT($AG$491) & \"'!\" & AD509))","v":0},{"$f":"IF(Setup!$AJ$5=0,0,INDIRECT(\"'\" & INDIRECT($AH$491) & \"'!\" & AD509))","v":0},{"$nulls":16},"H277"]
[{"$f":"Setup!AP58","v":0},{"$nulls":6},".",{"$f":"IF(Setup!$AG$5=0,0,INDIRECT(\"'\" & INDIRECT($AE$491) & \"'!\" & AD510))","v":0},{"$f":"IF(Setup!$AH$5=0,0,INDIRECT(\"'\" & INDIRECT($AF$491) & \"'!\" & AD510))","v":0},null,{"$f":"IF(Setup!$AI$5=0,0,INDIRECT(\"'\" & INDIRECT($AG$491) & \"'!\" & AD510))","v":0},{"$f":"IF(Setup!$AJ$5=0,0,INDIRECT(\"'\" & INDIRECT($AH$491) & \"'!\" & AD510))","v":0},{"$nulls":16},"H278"]
[{"$f":"Setup!AP59","v":0},{"$nulls":6},{"$f":"SUM(I511:M511)","v":0},{"$f":"IF(Setup!$AG$7<>\"\",INDIRECT(\"'\" & Setup!$AG$7 & \"'!\" & AD511),0) + IF(Setup!$AG$8<>\"\",INDIRECT(\"'\" & Setup!$AG$8 & \"'!\" & AD511),0) + IF(Setup!$AG$9<>\"\",INDIRECT(\"'\" & Setup!$AG$9 & \"'!\" & AD511),0) + IF(Setup!$AG$10<>\"\",INDIRECT(\"'\" & Setup!$AG$10 & \"'!\" & AD511),0) + IF(Setup!$AG$11<>\"\",INDIRECT(\"'\" & Setup!$AG$11 & \"'!\" & AD511),0) + IF(Setup!$AG$12<>\"\",INDIRECT(\"'\" & Setup!$AG$12 & \"'!\" & AD511),0)","v":0},{"$f":"IF(Setup!$AH$7<>\"\",INDIRECT(\"'\" & Setup!$AH$7 & \"'!\" & AD511),0) + IF(Setup!$AH$8<>\"\",INDIRECT(\"'\" & Setup!$AH$8 & \"'!\" & AD511),0) + IF(Setup!$AH$9<>\"\",INDIRECT(\"'\" & Setup!$AH$9 & \"'!\" & AD511),0) + IF(Setup!$AH$10<>\"\",INDIRECT(\"'\" & Setup!$AH$10 & \"'!\" & AD511),0) + IF(Setup!$AH$11<>\"\",INDIRECT(\"'\" & Setup!$AH$11 & \"'!\" & AD511),0) + IF(Setup!$AH$12<>\"\",INDIRECT(\"'\" & Setup!$AH$12 & \"'!\" & AD511),0)","v":0},null,{"$f":"IF(Setup!$AI$7<>\"\",INDIRECT(\"'\" & Setup!$AI$7 & \"'!\" & AD511),0) + IF(Setup!$AI$8<>\"\",INDIRECT(\"'\" & Setup!$AI$8 & \"'!\" & AD511),0) + IF(Setup!$AI$9<>\"\",INDIRECT(\"'\" & Setup!$AI$9 & \"'!\" & AD511),0) + IF(Setup!$AI$10<>\"\",INDIRECT(\"'\" & Setup!$AI$10 & \"'!\" & AD511),0) + IF(Setup!$AI$11<>\"\",INDIRECT(\"'\" & Setup!$AI$11 & \"'!\" & AD511),0) + IF(Setup!$AI$12<>\"\",INDIRECT(\"'\" & Setup!$AI$12 & \"'!\" & AD511),0)","v":0},{"$f":"IF(Setup!$AJ$7<>\"\",INDIRECT(\"'\" & Setup!$AJ$7 & \"'!\" & AD511),0) + IF(Setup!$AJ$8<>\"\",INDIRECT(\"'\" & Setup!$AJ$8 & \"'!\" & AD511),0) + IF(Setup!$AJ$9<>\"\",INDIRECT(\"'\" & Setup!$AJ$9 & \"'!\" & AD511),0) + IF(Setup!$AJ$10<>\"\",INDIRECT(\"'\" & Setup!$AJ$10 & \"'!\" & AD511),0) + IF(Setup!$AJ$11<>\"\",INDIRECT(\"'\" & Setup!$AJ$11 & \"'!\" & AD511),0) + IF(Setup!$AJ$12<>\"\",INDIRECT(\"'\" & Setup!$AJ$12 & \"'!\" & AD511),0)","v":0},{"$nulls":16},"H279"]
[{"$f":"Setup!AP60","v":0},{"$nulls":6},0,{"$f":"IF(Setup!$AG$7<>\"\",INDIRECT(\"'\" & Setup!$AG$7 & \"'!\" & AD512),0) + IF(Setup!$AG$8<>\"\",INDIRECT(\"'\" & Setup!$AG$8 & \"'!\" & AD512),0) + IF(Setup!$AG$9<>\"\",INDIRECT(\"'\" & Setup!$AG$9 & \"'!\" & AD512),0) + IF(Setup!$AG$10<>\"\",INDIRECT(\"'\" & Setup!$AG$10 & \"'!\" & AD512),0) + IF(Setup!$AG$11<>\"\",INDIRECT(\"'\" & Setup!$AG$11 & \"'!\" & AD512),0) + IF(Setup!$AG$12<>\"\",INDIRECT(\"'\" & Setup!$AG$12 & \"'!\" & AD512),0)","v":0},{"$f":"IF(Setup!$AH$7<>\"\",INDIRECT(\"'\" & Setup!$AH$7 & \"'!\" & AD512),0) + IF(Setup!$AH$8<>\"\",INDIRECT(\"'\" & Setup!$AH$8 & \"'!\" & AD512),0) + IF(Setup!$AH$9<>\"\",INDIRECT(\"'\" & Setup!$AH$9 & \"'!\" & AD512),0) + IF(Setup!$AH$10<>\"\",INDIRECT(\"'\" & Setup!$AH$10 & \"'!\" & AD512),0) + IF(Setup!$AH$11<>\"\",INDIRECT(\"'\" & Setup!$AH$11 & \"'!\" & AD512),0) + IF(Setup!$AH$12<>\"\",INDIRECT(\"'\" & Setup!$AH$12 & \"'!\" & AD512),0)","v":0},null,{"$f":"IF(Setup!$AI$7<>\"\",INDIRECT(\"'\" & Setup!$AI$7 & \"'!\" & AD512),0) + IF(Setup!$AI$8<>\"\",INDIRECT(\"'\" & Setup!$AI$8 & \"'!\" & AD512),0) + IF(Setup!$AI$9<>\"\",INDIRECT(\"'\" & Setup!$AI$9 & \"'!\" & AD512),0) + IF(Setup!$AI$10<>\"\",INDIRECT(\"'\" & Setup!$AI$10 & \"'!\" & AD512),0) + IF(Setup!$AI$11<>\"\",INDIRECT(\"'\" & Setup!$AI$11 & \"'!\" & AD512),0) + IF(Setup!$AI$12<>\"\",INDIRECT(\"'\" & Setup!$AI$12 & \"'!\" & AD512),0)","v":0},{"$f":"IF(Setup!$AJ$7<>\"\",INDIRECT(\"'\" & Setup!$AJ$7 & \"'!\" & AD512),0) + IF(Setup!$AJ$8<>\"\",INDIRECT(\"'\" & Setup!$AJ$8 & \"'!\" & AD512),0) + IF(Setup!$AJ$9<>\"\",INDIRECT(\"'\" & Setup!$AJ$9 & \"'!\" & AD512),0) + IF(Setup!$AJ$10<>\"\",INDIRECT(\"'\" & Setup!$AJ$10 & \"'!\" & AD512),0) + IF(Setup!$AJ$11<>\"\",INDIRECT(\"'\" & Setup!$AJ$11 & \"'!\" & AD512),0) + IF(Setup!$AJ$12<>\"\",INDIRECT(\"'\" & Setup!$AJ$12 & \"'!\" & AD512),0)","v":0},{"$nulls":16},"H280"]
[{"$f":"Setup!AP61","v":0},{"$nulls":6},0,{"$f":"IF(Setup!$AG$7<>\"\",INDIRECT(\"'\" & Setup!$AG$7 & \"'!\" & AD513),0) + IF(Setup!$AG$8<>\"\",INDIRECT(\"'\" & Setup!$AG$8 & \"'!\" & AD513),0) + IF(Setup!$AG$9<>\"\",INDIRECT(\"'\" & Setup!$AG$9 & \"'!\" & AD513),0) + IF(Setup!$AG$10<>\"\",INDIRECT(\"'\" & Setup!$AG$10 & \"'!\" & AD513),0) + IF(Setup!$AG$11<>\"\",INDIRECT(\"'\" & Setup!$AG$11 & \"'!\" & AD513),0) + IF(Setup!$AG$12<>\"\",INDIRECT(\"'\" & Setup!$AG$12 & \"'!\" & AD513),0)","v":0},{"$f":"IF(Setup!$AH$7<>\"\",INDIRECT(\"'\" & Setup!$AH$7 & \"'!\" & AD513),0) + IF(Setup!$AH$8<>\"\",INDIRECT(\"'\" & Setup!$AH$8 & \"'!\" & AD513),0) + IF(Setup!$AH$9<>\"\",INDIRECT(\"'\" & Setup!$AH$9 & \"'!\" & AD513),0) + IF(Setup!$AH$10<>\"\",INDIRECT(\"'\" & Setup!$AH$10 & \"'!\" & AD513),0) + IF(Setup!$AH$11<>\"\",INDIRECT(\"'\" & Setup!$AH$11 & \"'!\" & AD513),0) + IF(Setup!$AH$12<>\"\",INDIRECT(\"'\" & Setup!$AH$12 & \"'!\" & AD513),0)","v":0},null,{"$f":"IF(Setup!$AI$7<>\"\",INDIRECT(\"'\" & Setup!$AI$7 & \"'!\" & AD513),0) + IF(Setup!$AI$8<>\"\",INDIRECT(\"'\" & Setup!$AI$8 & \"'!\" & AD513),0) + IF(Setup!$AI$9<>\"\",INDIRECT(\"'\" & Setup!$AI$9 & \"'!\" & AD513),0) + IF(Setup!$AI$10<>\"\",INDIRECT(\"'\" & Setup!$AI$10 & \"'!\" & AD513),0) + IF(Setup!$AI$11<>\"\",INDIRECT(\"'\" & Setup!$AI$11 & \"'!\" & AD513),0) + IF(Setup!$AI$12<>\"\",INDIRECT(\"'\" & Setup!$AI$12 & \"'!\" & AD513),0)","v":0},{"$f":"IF(Setup!$AJ$7<>\"\",INDIRECT(\"'\" & Setup!$AJ$7 & \"'!\" & AD513),0) + IF(Setup!$AJ$8<>\"\",INDIRECT(\"'\" & Setup!$AJ$8 & \"'!\" & AD513),0) + IF(Setup!$AJ$9<>\"\",INDIRECT(\"'\" & Setup!$AJ$9 & \"'!\" & AD513),0) + IF(Setup!$AJ$10<>\"\",INDIRECT(\"'\" & Setup!$AJ$10 & \"'!\" & AD513),0) + IF(Setup!$AJ$11<>\"\",INDIRECT(\"'\" & Setup!$AJ$11 & \"'!\" & AD513),0) + IF(Setup!$AJ$12<>\"\",INDIRECT(\"'\" & Setup!$AJ$12 & \"'!\" & AD513),0)","v":0},{"$nulls":16},"H281"]
[{"$f":"Setup!AP62","v":0},{"$nulls":6},0,{"$f":"IF(Setup!$AG$7<>\"\",INDIRECT(\"'\" & Setup!$AG$7 & \"'!\" & AD514),0) + IF(Setup!$AG$8<>\"\",INDIRECT(\"'\" & Setup!$AG$8 & \"'!\" & AD514),0) + IF(Setup!$AG$9<>\"\",INDIRECT(\"'\" & Setup!$AG$9 & \"'!\" & AD514),0) + IF(Setup!$AG$10<>\"\",INDIRECT(\"'\" & Setup!$AG$10 & \"'!\" & AD514),0) + IF(Setup!$AG$11<>\"\",INDIRECT(\"'\" & Setup!$AG$11 & \"'!\" & AD514),0) + IF(Setup!$AG$12<>\"\",INDIRECT(\"'\" & Setup!$AG$12 & \"'!\" & AD514),0)","v":0},{"$f":"IF(Setup!$AH$7<>\"\",INDIRECT(\"'\" & Setup!$AH$7 & \"'!\" & AD514),0) + IF(Setup!$AH$8<>\"\",INDIRECT(\"'\" & Setup!$AH$8 & \"'!\" & AD514),0) + IF(Setup!$AH$9<>\"\",INDIRECT(\"'\" & Setup!$AH$9 & \"'!\" & AD514),0) + IF(Setup!$AH$10<>\"\",INDIRECT(\"'\" & Setup!$AH$10 & \"'!\" & AD514),0) + IF(Setup!$AH$11<>\"\",INDIRECT(\"'\" & Setup!$AH$11 & \"'!\" & AD514),0) + IF(Setup!$AH$12<>\"\",INDIRECT(\"'\" & Setup!$AH$12 & \"'!\" & AD514),0)","v":0},null,{"$f":"IF(Setup!$AI$7<>\"\",INDIRECT(\"'\" & Setup!$AI$7 & \"'!\" & AD514),0) + IF(Setup!$AI$8<>\"\",INDIRECT(\"'\" & Setup!$AI$8 & \"'!\" & AD514),0) + IF(Setup!$AI$9<>\"\",INDIRECT(\"'\" & Setup!$AI$9 & \"'!\" & AD514),0) + IF(Setup!$AI$10<>\"\",INDIRECT(\"'\" & Setup!$AI$10 & \"'!\" & AD514),0) + IF(Setup!$AI$11<>\"\",INDIRECT(\"'\" & Setup!$AI$11 & \"'!\" & AD514),0) + IF(Setup!$AI$12<>\"\",INDIRECT(\"'\" & Setup!$AI$12 & \"'!\" & AD514),0)","v":0},{"$f":"IF(Setup!$AJ$7<>\"\",INDIRECT(\"'\" & Setup!$AJ$7 & \"'!\" & AD514),0) + IF(Setup!$AJ$8<>\"\",INDIRECT(\"'\" & Setup!$AJ$8 & \"'!\" & AD514),0) + IF(Setup!$AJ$9<>\"\",INDIRECT(\"'\" & Setup!$AJ$9 & \"'!\" & AD514),0) + IF(Setup!$AJ$10<>\"\",INDIRECT(\"'\" & Setup!$AJ$10 & \"'!\" & AD514),0) + IF(Setup!$AJ$11<>\"\",INDIRECT(\"'\" & Setup!$AJ$11 & \"'!\" & AD514),0) + IF(Setup!$AJ$12<>\"\",INDIRECT(\"'\" & Setup!$AJ$12 & \"'!\" & AD514),0)","v":0},{"$nulls":16},"H282"]
[{"$f":"Setup!AP63","v":0},{"$nulls":6},0,{"$f":"IF(Setup!$AG$7<>\"\",INDIRECT(\"'\" & Setup!$AG$7 & \"'!\" & AD515),0) + IF(Setup!$AG$8<>\"\",INDIRECT(\"'\" & Setup!$AG$8 & \"'!\" & AD515),0) + IF(Setup!$AG$9<>\"\",INDIRECT(\"'\" & Setup!$AG$9 & \"'!\" & AD515),0) + IF(Setup!$AG$10<>\"\",INDIRECT(\"'\" & Setup!$AG$10 & \"'!\" & AD515),0) + IF(Setup!$AG$11<>\"\",INDIRECT(\"'\" & Setup!$AG$11 & \"'!\" & AD515),0) + IF(Setup!$AG$12<>\"\",INDIRECT(\"'\" & Setup!$AG$12 & \"'!\" & AD515),0)","v":0},{"$f":"IF(Setup!$AH$7<>\"\",INDIRECT(\"'\" & Setup!$AH$7 & \"'!\" & AD515),0) + IF(Setup!$AH$8<>\"\",INDIRECT(\"'\" & Setup!$AH$8 & \"'!\" & AD515),0) + IF(Setup!$AH$9<>\"\",INDIRECT(\"'\" & Setup!$AH$9 & \"'!\" & AD515),0) + IF(Setup!$AH$10<>\"\",INDIRECT(\"'\" & Setup!$AH$10 & \"'!\" & AD515),0) + IF(Setup!$AH$11<>\"\",INDIRECT(\"'\" & Setup!$AH$11 & \"'!\" & AD515),0) + IF(Setup!$AH$12<>\"\",INDIRECT(\"'\" & Setup!$AH$12 & \"'!\" & AD515),0)","v":0},null,{"$f":"IF(Setup!$AI$7<>\"\",INDIRECT(\"'\" & Setup!$AI$7 & \"'!\" & AD515),0) + IF(Setup!$AI$8<>\"\",INDIRECT(\"'\" & Setup!$AI$8 & \"'!\" & AD515),0) + IF(Setup!$AI$9<>\"\",INDIRECT(\"'\" & Setup!$AI$9 & \"'!\" & AD515),0) + IF(Setup!$AI$10<>\"\",INDIRECT(\"'\" & Setup!$AI$10 & \"'!\" & AD515),0) + IF(Setup!$AI$11<>\"\",INDIRECT(\"'\" & Setup!$AI$11 & \"'!\" & AD515),0) + IF(Setup!$AI$12<>\"\",INDIRECT(\"'\" & Setup!$AI$12 & \"'!\" & AD515),0)","v":0},{"$f":"IF(Setup!$AJ$7<>\"\",INDIRECT(\"'\" & Setup!$AJ$7 & \"'!\" & AD515),0) + IF(Setup!$AJ$8<>\"\",INDIRECT(\"'\" & Setup!$AJ$8 & \"'!\" & AD515),0) + IF(Setup!$AJ$9<>\"\",INDIRECT(\"'\" & Setup!$AJ$9 & \"'!\" & AD515),0) + IF(Setup!$AJ$10<>\"\",INDIRECT(\"'\" & Setup!$AJ$10 & \"'!\" & AD515),0) + IF(Setup!$AJ$11<>\"\",INDIRECT(\"'\" & Setup!$AJ$11 & \"'!\" & AD515),0) + IF(Setup!$AJ$12<>\"\",INDIRECT(\"'\" & Setup!$AJ$12 & \"'!\" & AD515),0)","v":0},{"$nulls":16},"H283"]
[{"$f":"Setup!AP64","v":0},{"$nulls":6},0,{"$f":"IF(Setup!$AG$7<>\"\",INDIRECT(\"'\" & Setup!$AG$7 & \"'!\" & AD516),0) + IF(Setup!$AG$8<>\"\",INDIRECT(\"'\" & Setup!$AG$8 & \"'!\" & AD516),0) + IF(Setup!$AG$9<>\"\",INDIRECT(\"'\" & Setup!$AG$9 & \"'!\" & AD516),0) + IF(Setup!$AG$10<>\"\",INDIRECT(\"'\" & Setup!$AG$10 & \"'!\" & AD516),0) + IF(Setup!$AG$11<>\"\",INDIRECT(\"'\" & Setup!$AG$11 & \"'!\" & AD516),0) + IF(Setup!$AG$12<>\"\",INDIRECT(\"'\" & Setup!$AG$12 & \"'!\" & AD516),0)","v":0},{"$f":"IF(Setup!$AH$7<>\"\",INDIRECT(\"'\" & Setup!$AH$7 & \"'!\" & AD516),0) + IF(Setup!$AH$8<>\"\",INDIRECT(\"'\" & Setup!$AH$8 & \"'!\" & AD516),0) + IF(Setup!$AH$9<>\"\",INDIRECT(\"'\" & Setup!$AH$9 & \"'!\" & AD516),0) + IF(Setup!$AH$10<>\"\",INDIRECT(\"'\" & Setup!$AH$10 & \"'!\" & AD516),0) + IF(Setup!$AH$11<>\"\",INDIRECT(\"'\" & Setup!$AH$11 & \"'!\" & AD516),0) + IF(Setup!$AH$12<>\"\",INDIRECT(\"'\" & Setup!$AH$12 & \"'!\" & AD516),0)","v":0},null,{"$f":"IF(Setup!$AI$7<>\"\",INDIRECT(\"'\" & Setup!$AI$7 & \"'!\" & AD516),0) + IF(Setup!$AI$8<>\"\",INDIRECT(\"'\" & Setup!$AI$8 & \"'!\" & AD516),0) + IF(Setup!$AI$9<>\"\",INDIRECT(\"'\" & Setup!$AI$9 & \"'!\" & AD516),0) + IF(Setup!$AI$10<>\"\",INDIRECT(\"'\" & Setup!$AI$10 & \"'!\" & AD516),0) + IF(Setup!$AI$11<>\"\",INDIRECT(\"'\" & Setup!$AI$11 & \"'!\" & AD516),0) + IF(Setup!$AI$12<>\"\",INDIRECT(\"'\" & Setup!$AI$12 & \"'!\" & AD516),0)","v":0},{"$f":"IF(Setup!$AJ$7<>\"\",INDIRECT(\"'\" & Setup!$AJ$7 & \"'!\" & AD516),0) + IF(Setup!$AJ$8<>\"\",INDIRECT(\"'\" & Setup!$AJ$8 & \"'!\" & AD516),0) + IF(Setup!$AJ$9<>\"\",INDIRECT(\"'\" & Setup!$AJ$9 & \"'!\" & AD516),0) + IF(Setup!$AJ$10<>\"\",INDIRECT(\"'\" & Setup!$AJ$10 & \"'!\" & AD516),0) + IF(Setup!$AJ$11<>\"\",INDIRECT(\"'\" & Setup!$AJ$11 & \"'!\" & AD516),0) + IF(Setup!$AJ$12<>\"\",INDIRECT(\"'\" & Setup!$AJ$12 & \"'!\" & AD516),0)","v":0},{"$nulls":16},"H284"]
[{"$f":"Setup!AP65","v":0},{"$nulls":6},0,{"$f":"IF(Setup!$AG$7<>\"\",INDIRECT(\"'\" & Setup!$AG$7 & \"'!\" & AD517),0) + IF(Setup!$AG$8<>\"\",INDIRECT(\"'\" & Setup!$AG$8 & \"'!\" & AD517),0) + IF(Setup!$AG$9<>\"\",INDIRECT(\"'\" & Setup!$AG$9 & \"'!\" & AD517),0) + IF(Setup!$AG$10<>\"\",INDIRECT(\"'\" & Setup!$AG$10 & \"'!\" & AD517),0) + IF(Setup!$AG$11<>\"\",INDIRECT(\"'\" & Setup!$AG$11 & \"'!\" & AD517),0) + IF(Setup!$AG$12<>\"\",INDIRECT(\"'\" & Setup!$AG$12 & \"'!\" & AD517),0)","v":0},{"$f":"IF(Setup!$AH$7<>\"\",INDIRECT(\"'\" & Setup!$AH$7 & \"'!\" & AD517),0) + IF(Setup!$AH$8<>\"\",INDIRECT(\"'\" & Setup!$AH$8 & \"'!\" & AD517),0) + IF(Setup!$AH$9<>\"\",INDIRECT(\"'\" & Setup!$AH$9 & \"'!\" & AD517),0) + IF(Setup!$AH$10<>\"\",INDIRECT(\"'\" & Setup!$AH$10 & \"'!\" & AD517),0) + IF(Setup!$AH$11<>\"\",INDIRECT(\"'\" & Setup!$AH$11 & \"'!\" & AD517),0) + IF(Setup!$AH$12<>\"\",INDIRECT(\"'\" & Setup!$AH$12 & \"'!\" & AD517),0)","v":0},null,{"$f":"IF(Setup!$AI$7<>\"\",INDIRECT(\"'\" & Setup!$AI$7 & \"'!\" & AD517),0) + IF(Setup!$AI$8<>\"\",INDIRECT(\"'\" & Setup!$AI$8 & \"'!\" & AD517),0) + IF(Setup!$AI$9<>\"\",INDIRECT(\"'\" & Setup!$AI$9 & \"'!\" & AD517),0) + IF(Setup!$AI$10<>\"\",INDIRECT(\"'\" & Setup!$AI$10 & \"'!\" & AD517),0) + IF(Setup!$AI$11<>\"\",INDIRECT(\"'\" & Setup!$AI$11 & \"'!\" & AD517),0) + IF(Setup!$AI$12<>\"\",INDIRECT(\"'\" & Setup!$AI$12 & \"'!\" & AD517),0)","v":0},{"$f":"IF(Setup!$AJ$7<>\"\",INDIRECT(\"'\" & Setup!$AJ$7 & \"'!\" & AD517),0) + IF(Setup!$AJ$8<>\"\",INDIRECT(\"'\" & Setup!$AJ$8 & \"'!\" & AD517),0) + IF(Setup!$AJ$9<>\"\",INDIRECT(\"'\" & Setup!$AJ$9 & \"'!\" & AD517),0) + IF(Setup!$AJ$10<>\"\",INDIRECT(\"'\" & Setup!$AJ$10 & \"'!\" & AD517),0) + IF(Setup!$AJ$11<>\"\",INDIRECT(\"'\" & Setup!$AJ$11 & \"'!\" & AD517),0) + IF(Setup!$AJ$12<>\"\",INDIRECT(\"'\" & Setup!$AJ$12 & \"'!\" & AD517),0)","v":0},{"$nulls":16},"H285"]
[{"$f":"Setup!AP66","v":0},{"$nulls":6},0,{"$f":"IF(Setup!$AG$7<>\"\",INDIRECT(\"'\" & Setup!$AG$7 & \"'!\" & AD518),0) + IF(Setup!$AG$8<>\"\",INDIRECT(\"'\" & Setup!$AG$8 & \"'!\" & AD518),0) + IF(Setup!$AG$9<>\"\",INDIRECT(\"'\" & Setup!$AG$9 & \"'!\" & AD518),0) + IF(Setup!$AG$10<>\"\",INDIRECT(\"'\" & Setup!$AG$10 & \"'!\" & AD518),0) + IF(Setup!$AG$11<>\"\",INDIRECT(\"'\" & Setup!$AG$11 & \"'!\" & AD518),0) + IF(Setup!$AG$12<>\"\",INDIRECT(\"'\" & Setup!$AG$12 & \"'!\" & AD518),0)","v":0},{"$f":"IF(Setup!$AH$7<>\"\",INDIRECT(\"'\" & Setup!$AH$7 & \"'!\" & AD518),0) + IF(Setup!$AH$8<>\"\",INDIRECT(\"'\" & Setup!$AH$8 & \"'!\" & AD518),0) + IF(Setup!$AH$9<>\"\",INDIRECT(\"'\" & Setup!$AH$9 & \"'!\" & AD518),0) + IF(Setup!$AH$10<>\"\",INDIRECT(\"'\" & Setup!$AH$10 & \"'!\" & AD518),0) + IF(Setup!$AH$11<>\"\",INDIRECT(\"'\" & Setup!$AH$11 & \"'!\" & AD518),0) + IF(Setup!$AH$12<>\"\",INDIRECT(\"'\" & Setup!$AH$12 & \"'!\" & AD518),0)","v":0},null,{"$f":"IF(Setup!$AI$7<>\"\",INDIRECT(\"'\" & Setup!$AI$7 & \"'!\" & AD518),0) + IF(Setup!$AI$8<>\"\",INDIRECT(\"'\" & Setup!$AI$8 & \"'!\" & AD518),0) + IF(Setup!$AI$9<>\"\",INDIRECT(\"'\" & Setup!$AI$9 & \"'!\" & AD518),0) + IF(Setup!$AI$10<>\"\",INDIRECT(\"'\" & Setup!$AI$10 & \"'!\" & AD518),0) + IF(Setup!$AI$11<>\"\",INDIRECT(\"'\" & Setup!$AI$11 & \"'!\" & AD518),0) + IF(Setup!$AI$12<>\"\",INDIRECT(\"'\" & Setup!$AI$12 & \"'!\" & AD518),0)","v":0},{"$f":"IF(Setup!$AJ$7<>\"\",INDIRECT(\"'\" & Setup!$AJ$7 & \"'!\" & AD518),0) + IF(Setup!$AJ$8<>\"\",INDIRECT(\"'\" & Setup!$AJ$8 & \"'!\" & AD518),0) + IF(Setup!$AJ$9<>\"\",INDIRECT(\"'\" & Setup!$AJ$9 & \"'!\" & AD518),0) + IF(Setup!$AJ$10<>\"\",INDIRECT(\"'\" & Setup!$AJ$10 & \"'!\" & AD518),0) + IF(Setup!$AJ$11<>\"\",INDIRECT(\"'\" & Setup!$AJ$11 & \"'!\" & AD518),0) + IF(Setup!$AJ$12<>\"\",INDIRECT(\"'\" & Setup!$AJ$12 & \"'!\" & AD518),0)","v":0},{"$nulls":16},"H286"]
[{"$f":"Setup!AP67","v":0},{"$nulls":6},0,{"$f":"IF(Setup!$AG$7<>\"\",INDIRECT(\"'\" & Setup!$AG$7 & \"'!\" & AD519),0) + IF(Setup!$AG$8<>\"\",INDIRECT(\"'\" & Setup!$AG$8 & \"'!\" & AD519),0) + IF(Setup!$AG$9<>\"\",INDIRECT(\"'\" & Setup!$AG$9 & \"'!\" & AD519),0) + IF(Setup!$AG$10<>\"\",INDIRECT(\"'\" & Setup!$AG$10 & \"'!\" & AD519),0) + IF(Setup!$AG$11<>\"\",INDIRECT(\"'\" & Setup!$AG$11 & \"'!\" & AD519),0) + IF(Setup!$AG$12<>\"\",INDIRECT(\"'\" & Setup!$AG$12 & \"'!\" & AD519),0)","v":0},{"$f":"IF(Setup!$AH$7<>\"\",INDIRECT(\"'\" & Setup!$AH$7 & \"'!\" & AD519),0) + IF(Setup!$AH$8<>\"\",INDIRECT(\"'\" & Setup!$AH$8 & \"'!\" & AD519),0) + IF(Setup!$AH$9<>\"\",INDIRECT(\"'\" & Setup!$AH$9 & \"'!\" & AD519),0) + IF(Setup!$AH$10<>\"\",INDIRECT(\"'\" & Setup!$AH$10 & \"'!\" & AD519),0) + IF(Setup!$AH$11<>\"\",INDIRECT(\"'\" & Setup!$AH$11 & \"'!\" & AD519),0) + IF(Setup!$AH$12<>\"\",INDIRECT(\"'\" & Setup!$AH$12 & \"'!\" & AD519),0)","v":0},null,{"$f":"IF(Setup!$AI$7<>\"\",INDIRECT(\"'\" & Setup!$AI$7 & \"'!\" & AD519),0) + IF(Setup!$AI$8<>\"\",INDIRECT(\"'\" & Setup!$AI$8 & \"'!\" & AD519),0) + IF(Setup!$AI$9<>\"\",INDIRECT(\"'\" & Setup!$AI$9 & \"'!\" & AD519),0) + IF(Setup!$AI$10<>\"\",INDIRECT(\"'\" & Setup!$AI$10 & \"'!\" & AD519),0) + IF(Setup!$AI$11<>\"\",INDIRECT(\"'\" & Setup!$AI$11 & \"'!\" & AD519),0) + IF(Setup!$AI$12<>\"\",INDIRECT(\"'\" & Setup!$AI$12 & \"'!\" & AD519),0)","v":0},{"$f":"IF(Setup!$AJ$7<>\"\",INDIRECT(\"'\" & Setup!$AJ$7 & \"'!\" & AD519),0) + IF(Setup!$AJ$8<>\"\",INDIRECT(\"'\" & Setup!$AJ$8 & \"'!\" & AD519),0) + IF(Setup!$AJ$9<>\"\",INDIRECT(\"'\" & Setup!$AJ$9 & \"'!\" & AD519),0) + IF(Setup!$AJ$10<>\"\",INDIRECT(\"'\" & Setup!$AJ$10 & \"'!\" & AD519),0) + IF(Setup!$AJ$11<>\"\",INDIRECT(\"'\" & Setup!$AJ$11 & \"'!\" & AD519),0) + IF(Setup!$AJ$12<>\"\",INDIRECT(\"'\" & Setup!$AJ$12 & \"'!\" & AD519),0)","v":0},{"$nulls":16},"H287"]
[{"$f":"Setup!AP68","v":0},{"$nulls":6},0,{"$f":"IF(Setup!$AG$7<>\"\",INDIRECT(\"'\" & Setup!$AG$7 & \"'!\" & AD520),0) + IF(Setup!$AG$8<>\"\",INDIRECT(\"'\" & Setup!$AG$8 & \"'!\" & AD520),0) + IF(Setup!$AG$9<>\"\",INDIRECT(\"'\" & Setup!$AG$9 & \"'!\" & AD520),0) + IF(Setup!$AG$10<>\"\",INDIRECT(\"'\" & Setup!$AG$10 & \"'!\" & AD520),0) + IF(Setup!$AG$11<>\"\",INDIRECT(\"'\" & Setup!$AG$11 & \"'!\" & AD520),0) + IF(Setup!$AG$12<>\"\",INDIRECT(\"'\" & Setup!$AG$12 & \"'!\" & AD520),0)","v":0},{"$f":"IF(Setup!$AH$7<>\"\",INDIRECT(\"'\" & Setup!$AH$7 & \"'!\" & AD520),0) + IF(Setup!$AH$8<>\"\",INDIRECT(\"'\" & Setup!$AH$8 & \"'!\" & AD520),0) + IF(Setup!$AH$9<>\"\",INDIRECT(\"'\" & Setup!$AH$9 & \"'!\" & AD520),0) + IF(Setup!$AH$10<>\"\",INDIRECT(\"'\" & Setup!$AH$10 & \"'!\" & AD520),0) + IF(Setup!$AH$11<>\"\",INDIRECT(\"'\" & Setup!$AH$11 & \"'!\" & AD520),0) + IF(Setup!$AH$12<>\"\",INDIRECT(\"'\" & Setup!$AH$12 & \"'!\" & AD520),0)","v":0},null,{"$f":"IF(Setup!$AI$7<>\"\",INDIRECT(\"'\" & Setup!$AI$7 & \"'!\" & AD520),0) + IF(Setup!$AI$8<>\"\",INDIRECT(\"'\" & Setup!$AI$8 & \"'!\" & AD520),0) + IF(Setup!$AI$9<>\"\",INDIRECT(\"'\" & Setup!$AI$9 & \"'!\" & AD520),0) + IF(Setup!$AI$10<>\"\",INDIRECT(\"'\" & Setup!$AI$10 & \"'!\" & AD520),0) + IF(Setup!$AI$11<>\"\",INDIRECT(\"'\" & Setup!$AI$11 & \"'!\" & AD520),0) + IF(Setup!$AI$12<>\"\",INDIRECT(\"'\" & Setup!$AI$12 & \"'!\" & AD520),0)","v":0},{"$f":"IF(Setup!$AJ$7<>\"\",INDIRECT(\"'\" & Setup!$AJ$7 & \"'!\" & AD520),0) + IF(Setup!$AJ$8<>\"\",INDIRECT(\"'\" & Setup!$AJ$8 & \"'!\" & AD520),0) + IF(Setup!$AJ$9<>\"\",INDIRECT(\"'\" & Setup!$AJ$9 & \"'!\" & AD520),0) + IF(Setup!$AJ$10<>\"\",INDIRECT(\"'\" & Setup!$AJ$10 & \"'!\" & AD520),0) + IF(Setup!$AJ$11<>\"\",INDIRECT(\"'\" & Setup!$AJ$11 & \"'!\" & AD520),0) + IF(Setup!$AJ$12<>\"\",INDIRECT(\"'\" & Setup!$AJ$12 & \"'!\" & AD520),0)","v":0},{"$nulls":16},"H288"]
[{"$f":"Setup!AP69","v":0},{"$nulls":6},0,{"$f":"IF(Setup!$AG$7<>\"\",INDIRECT(\"'\" & Setup!$AG$7 & \"'!\" & AD521),0) + IF(Setup!$AG$8<>\"\",INDIRECT(\"'\" & Setup!$AG$8 & \"'!\" & AD521),0) + IF(Setup!$AG$9<>\"\",INDIRECT(\"'\" & Setup!$AG$9 & \"'!\" & AD521),0) + IF(Setup!$AG$10<>\"\",INDIRECT(\"'\" & Setup!$AG$10 & \"'!\" & AD521),0) + IF(Setup!$AG$11<>\"\",INDIRECT(\"'\" & Setup!$AG$11 & \"'!\" & AD521),0) + IF(Setup!$AG$12<>\"\",INDIRECT(\"'\" & Setup!$AG$12 & \"'!\" & AD521),0)","v":0},{"$f":"IF(Setup!$AH$7<>\"\",INDIRECT(\"'\" & Setup!$AH$7 & \"'!\" & AD521),0) + IF(Setup!$AH$8<>\"\",INDIRECT(\"'\" & Setup!$AH$8 & \"'!\" & AD521),0) + IF(Setup!$AH$9<>\"\",INDIRECT(\"'\" & Setup!$AH$9 & \"'!\" & AD521),0) + IF(Setup!$AH$10<>\"\",INDIRECT(\"'\" & Setup!$AH$10 & \"'!\" & AD521),0) + IF(Setup!$AH$11<>\"\",INDIRECT(\"'\" & Setup!$AH$11 & \"'!\" & AD521),0) + IF(Setup!$AH$12<>\"\",INDIRECT(\"'\" & Setup!$AH$12 & \"'!\" & AD521),0)","v":0},null,{"$f":"IF(Setup!$AI$7<>\"\",INDIRECT(\"'\" & Setup!$AI$7 & \"'!\" & AD521),0) + IF(Setup!$AI$8<>\"\",INDIRECT(\"'\" & Setup!$AI$8 & \"'!\" & AD521),0) + IF(Setup!$AI$9<>\"\",INDIRECT(\"'\" & Setup!$AI$9 & \"'!\" & AD521),0) + IF(Setup!$AI$10<>\"\",INDIRECT(\"'\" & Setup!$AI$10 & \"'!\" & AD521),0) + IF(Setup!$AI$11<>\"\",INDIRECT(\"'\" & Setup!$AI$11 & \"'!\" & AD521),0) + IF(Setup!$AI$12<>\"\",INDIRECT(\"'\" & Setup!$AI$12 & \"'!\" & AD521),0)","v":0},{"$f":"IF(Setup!$AJ$7<>\"\",INDIRECT(\"'\" & Setup!$AJ$7 & \"'!\" & AD521),0) + IF(Setup!$AJ$8<>\"\",INDIRECT(\"'\" & Setup!$AJ$8 & \"'!\" & AD521),0) + IF(Setup!$AJ$9<>\"\",INDIRECT(\"'\" & Setup!$AJ$9 & \"'!\" & AD521),0) + IF(Setup!$AJ$10<>\"\",INDIRECT(\"'\" & Setup!$AJ$10 & \"'!\" & AD521),0) + IF(Setup!$AJ$11<>\"\",INDIRECT(\"'\" & Setup!$AJ$11 & \"'!\" & AD521),0) + IF(Setup!$AJ$12<>\"\",INDIRECT(\"'\" & Setup!$AJ$12 & \"'!\" & AD521),0)","v":0},{"$nulls":16},"H289"]
[]
[]
[]
[{"$f":"UPPER(Translations!A407)","v":"OVERVIEW OF FINANCIAL PERFORMANCE"},{"$nulls":28},"O15"]
[]
[{"$f":"Translations!A326","v":"Monthly financial performance"},{"$nulls":6},{"$f":"Setup!$AB$8","v":"January"},{"$f":"Setup!$AB$9","v":"February"},{"$f":"Setup!$AB$10","v":"March"},null,{"$f":"Setup!$AB$11","v":"April"},{"$f":"Setup!$AB$12","v":"May"},{"$f":"Setup!$AB$13","v":"June"},null,{"$f":"Setup!$AB$14","v":"July"},{"$f":"Setup!$AB$15","v":"August"},{"$f":"Setup!$AB$16","v":"September"},null,{"$f":"Setup!$AB$17","v":"October"},{"$f":"Setup!$AB$18","v":"November"},{"$f":"Setup!$AB$19","v":"December"},null,{"$f":"Translations!$A$103","v":"Annual"}]
[{"$f":"Translations!A95","v":"Budget"},{"$nulls":6},{"$f":"'Month 1'!$M$23","v":{"v":149875,"d":"149,875.00"}},{"$f":"'Month 2'!$M$23","v":{"v":148600,"d":"148,600.00"}},{"$f":"'Month 3'!$M$23","v":{"v":205600,"d":"205,600.00"}},null,{"$f":"'Month 4'!$M$23","v":{"v":187850,"d":"187,850.00"}},{"$f":"'Month 5'!$M$23","v":{"v":206600,"d":"206,600.00"}},{"$f":"'Month 6'!$M$23","v":{"v":220850,"d":"220,850.00"}},null,{"$f":"'Month 7'!$M$23","v":{"v":0,"d":"0.00"}},{"$f":"'Month 8'!$M$23","v":{"v":0,"d":"0.00"}},{"$f":"'Month 9'!$M$23","v":{"v":0,"d":"0.00"}},null,{"$f":"'Month 10'!$M$23","v":{"v":0,"d":"0.00"}},{"$f":"'Month 11'!$M$23","v":{"v":0,"d":"0.00"}},{"$f":"'Month 12'!$M$23","v":{"v":0,"d":"0.00"}},null,{"$f":"H528+I528+J528+L528+M528+N528+P528+Q528+R528+T528+U528+V528","v":{"v":1119375,"d":"1,119,375.00"}}]
[{"$f":"Translations!A131","v":"Disbursement"},{"$nulls":6},{"$f":"'Month 1'!$O$15","v":{"v":600000,"d":"600,000.00"}},{"$f":"'Month 2'!$O$15","v":{"v":0,"d":"0.00"}},{"$f":"'Month 3'!$O$15","v":{"v":0,"d":"0.00"}},null,{"$f":"'Month 4'!$O$15","v":{"v":650000,"d":"650,000.00"}},{"$f":"'Month 5'!$O$15","v":{"v":0,"d":"0.00"}},{"$f":"'Month 6'!$O$15","v":{"v":0,"d":"0.00"}},null,{"$f":"'Month 7'!$O$15","v":{"v":0,"d":"0.00"}},{"$f":"'Month 8'!$O$15","v":{"v":0,"d":"0.00"}},{"$f":"'Month 9'!$O$15","v":{"v":0,"d":"0.00"}},null,{"$f":"'Month 10'!$O$15","v":{"v":0,"d":"0.00"}},{"$f":"'Month 11'!$O$15","v":{"v":0,"d":"0.00"}},{"$f":"'Month 12'!$O$15","v":{"v":0,"d":"0.00"}},null,{"$f":"H529+I529+J529+L529+M529+N529+P529+Q529+R529+T529+U529+V529","v":{"v":1250000,"d":"1,250,000.00"}}]
[{"$f":"Translations!A136","v":"Balance from previous period"},{"$nulls":6},{"v":0,"d":"0.00"},{"$f":"'Month 2'!$N$23","v":{"v":10725,"d":"10,725.00"}},{"$f":"'Month 3'!$N$23","v":{"v":21645,"d":"21,645.00"}},null,{"$f":"'Month 4'!$N$23","v":{"v":9150,"d":"9,150.00"}},{"$f":"'Month 5'!$N$23","v":{"v":13310,"d":"13,310.00"}},{"$f":"'Month 6'!$N$23","v":{"v":10500,"d":"10,500.00"}},null,{"$f":"'Month 7'!$N$23","v":{"v":7250,"d":"7,250.00"}},{"$f":"'Month 8'!$N$23","v":{"v":7250,"d":"7,250.00"}},{"$f":"'Month 9'!$N$23","v":{"v":7250,"d":"7,250.00"}},null,{"$f":"'Month 10'!$N$23","v":{"v":7250,"d":"7,250.00"}},{"$f":"'Month 11'!$N$23","v":{"v":7250,"d":"7,250.00"}},{"$f":"'Month 12'!$N$23","v":{"v":7250,"d":"7,250.00"}},null,{"$f":"X528-X531","v":{"v":7250,"d":"7,250.00"}}]
[{"$f":"Translations!A13","v":"Expenditure"},{"$nulls":6},{"$f":"'Month 1'!$O$23","v":{"v":139150,"d":"139,150.00"}},{"$f":"'Month 2'!$O$23","v":{"v":137680,"d":"137,680.00"}},{"$f":"'Month 3'!$O$23","v":{"v":218095,"d":"218,095.00"}},null,{"$f":"'Month 4'!$O$23","v":{"v":183690,"d":"183,690.00"}},{"$f":"'Month 5'!$O$23","v":{"v":209410,"d":"209,410.00"}},{"$f":"'Month 6'!$O$23","v":{"v":224100,"d":"224,100.00"}},null,{"$f":"'Month 7'!$O$23","v":{"v":0,"d":"0.00"}},{"$f":"'Month 8'!$O$23","v":{"v":0,"d":"0.00"}},{"$f":"'Month 9'!$O$23","v":{"v":0,"d":"0.00"}},null,{"$f":"'Month 10'!$O$23","v":{"v":0,"d":"0.00"}},{"$f":"'Month 11'!$O$23","v":{"v":0,"d":"0.00"}},{"$f":"'Month 12'!$O$23","v":{"v":0,"d":"0.00"}},null,{"$f":"H531+I531+J531+L531+M531+N531+P531+Q531+R531+T531+U531+V531","v":{"v":1112125,"d":"1,112,125.00"}}]
[{"$f":"Translations!A290","v":"Cash balance"},{"$nulls":6},{"$f":"H529-H531","v":{"v":460850,"d":"460,850.00"}},{"$f":"I529+H532-I531","v":{"v":323170,"d":"323,170.00"}},{"$f":"J529+I532-J531","v":{"v":105075,"d":"105,075.00"}},null,{"$f":"L529+J532-L531","v":{"v":571385,"d":"571,385.00"}},{"$f":"M529+L532-M531","v":{"v":361975,"d":"361,975.00"}},{"$f":"N529+M532-N531","v":{"v":137875,"d":"137,875.00"}},null,{"$f":"P529+N532-P531","v":{"v":137875,"d":"137,875.00"}},{"$f":"Q529+P532-Q531","v":{"v":137875,"d":"137,875.00"}},{"$f":"R529+Q532-R531","v":{"v":137875,"d":"137,875.00"}},null,{"$f":"T529+R532-T531","v":{"v":137875,"d":"137,875.00"}},{"$f":"U529+T532-U531","v":{"v":137875,"d":"137,875.00"}},{"$f":"V529+U532-V531","v":{"v":137875,"d":"137,875.00"}},null,{"$f":"X529-X531","v":{"v":137875,"d":"137,875.00"}}]
[]
[]
[{"$f":"Translations!A327","v":"Quarterly financial performance"},{"$nulls":6},{"$f":"Translations!$A$48","v":"1st Quarter"},{"$f":"Translations!$A$49","v":"2nd Quarter"},{"$f":"Translations!$A$50","v":"3rd Quarter"},null,{"$f":"Translations!$A$51","v":"4th Quarter"},{"$f":"Translations!$A$103","v":"Annual"}]
[{"$f":"Translations!A95","v":"Budget"},{"$nulls":6},{"$f":"L235","v":{"v":504075,"d":"504,075.00"}},{"$f":"P235","v":{"v":615300,"d":"615,300.00"}},{"$f":"T235","v":{"v":0,"d":"0.00"}},null,{"$f":"X235","v":{"v":0,"d":"0.00"}},{"$f":"SUM(H536:L536)","v":{"v":1119375,"d":"1,119,375.00"}}]
[{"$f":"Translations!A131","v":"Disbursement"},{"$nulls":6},{"$f":"L438","v":{"v":600000,"d":"600,000.00"}},{"$f":"P438","v":{"v":650000,"d":"650,000.00"}},{"$f":"T438","v":{"v":0,"d":"0.00"}},null,{"$f":"X438","v":{"v":0,"d":"0.00"}},{"$f":"SUM(H537:L537)","v":{"v":1250000,"d":"1,250,000.00"}}]
[{"$f":"Translations!A136","v":"Balance from previous period"},{"$nulls":6},{"v":0,"d":"0.00"},{"$f":"IF(Setup!$AH$7=\"\",0,INDIRECT(\"'\" & Setup!$AH$7 & \"'!$N$23\"))","v":{"v":9150,"d":"9,150.00"}},{"$f":"IF(Setup!$AI$7=\"\",0,INDIRECT(\"'\" & Setup!$AI$7 & \"'!$N$23\"))","v":{"v":7250,"d":"7,250.00"}},null,{"$f":"IF(Setup!$AJ$7=\"\",0,INDIRECT(\"'\" & Setup!$AJ$7 & \"'!$N$23\"))","v":{"v":7250,"d":"7,250.00"}},{"$f":"M536-M539","v":{"v":7250,"d":"7,250.00"}}]
[{"$f":"Translations!A13","v":"Expenditure"},{"$nulls":6},{"$f":"M235","v":{"v":494925,"d":"494,925.00"}},{"$f":"Q235","v":{"v":617200,"d":"617,200.00"}},{"$f":"U235","v":{"v":0,"d":"0.00"}},null,{"$f":"Y235","v":{"v":0,"d":"0.00"}},{"$f":"SUM(H539:L539)","v":{"v":1112125,"d":"1,112,125.00"}}]
[{"$f":"Translations!A290","v":"Cash balance"},{"$nulls":6},{"$f":"H537-H539","v":{"v":105075,"d":"105,075.00"}},{"$f":"I537+H540-I539","v":{"v":137875,"d":"137,875.00"}},{"$f":"J537+I540-J539","v":{"v":137875,"d":"137,875.00"}},null,{"$f":"L537+J540-L539","v":{"v":137875,"d":"137,875.00"}},{"$f":"M537-M539","v":{"v":137875,"d":"137,875.00"}}]
[]
[]
[]
[{"$f":"Translations!A334","v":"FINANCIAL RATIOS"},{"$nulls":28},"O15"]
[]
[{"$f":"Translations!A335","v":"Financial ratios (Monthly)"},{"$nulls":6},{"$f":"Setup!$AB$8","v":"January"},{"$f":"Setup!$AB$9","v":"February"},{"$f":"Setup!$AB$10","v":"March"},null,{"$f":"Setup!$AB$11","v":"April"},{"$f":"Setup!$AB$12","v":"May"},{"$f":"Setup!$AB$13","v":"June"},null,{"$f":"Setup!$AB$14","v":"July"},{"$f":"Setup!$AB$15","v":"August"},{"$f":"Setup!$AB$16","v":"September"},null,{"$f":"Setup!$AB$17","v":"October"},{"$f":"Setup!$AB$18","v":"November"},{"$f":"Setup!$AB$19","v":"December"},null,{"$f":"Translations!$A$103","v":"Annual"}]
[{"$f":"Translations!$A$316","v":"Expenditure vs budget (%)"},{"$nulls":6},{"$f":"IF(H528=0,0,H531/H528)","v":{"v":0.9284403669724771,"d":"92.84%"}},{"$f":"IF(I528=0,0,I531/I528)","v":{"v":0.9265141318977119,"d":"92.65%"}},{"v":1.0607733463035018,"d":"106.08%"},null,{"v":0.9778546712802768,"d":"97.79%"},{"v":1.0136011616650533,"d":"101.36%"},{"v":1.0147158705003396,"d":"101.47%"},null,{"v":0,"d":"0.00%"},{"v":0,"d":"0.00%"},{"v":0,"d":"0.00%"},null,{"v":0,"d":"0.00%"},{"v":0,"d":"0.00%"},{"v":0,"d":"0.00%"},null,{"v":0.9935231714126187,"d":"99.35%"}]
[{"$f":"Translations!$A$317","v":"Expenditure vs disbursement (%)"},{"$nulls":6},{"$f":"IF(H529=0,0,H531/H529)","v":{"v":0.23191666666666666,"d":"23.19%"}},{"$f":"IF(I529=0,0,I531/I529)","v":{"v":0,"d":"0.00%"}},{"v":0,"d":"0.00%"},null,{"v":0.2826,"d":"28.26%"},{"v":0,"d":"0.00%"},{"v":0,"d":"0.00%"},null,{"v":0,"d":"0.00%"},{"v":0,"d":"0.00%"},{"v":0,"d":"0.00%"},null,{"v":0,"d":"0.00%"},{"v":0,"d":"0.00%"},{"v":0,"d":"0.00%"},null,{"v":0.8897,"d":"88.97%"}]
[{"$f":"Translations!$A$318","v":"Disbursement vs budget (%)"},{"$nulls":6},{"$f":"IF(H528=0,0,H529/H528)","v":{"v":4.0033361134278564,"d":"400.33%"}},{"$f":"IF(I528=0,0,I529/I528)","v":{"v":0,"d":"0.00%"}},{"v":0,"d":"0.00%"},null,{"v":3.4602076124567476,"d":"346.02%"},{"v":0,"d":"0.00%"},{"v":0,"d":"0.00%"},null,{"v":0,"d":"0.00%"},{"v":0,"d":"0.00%"},{"v":0,"d":"0.00%"},null,{"v":0,"d":"0.00%"},{"v":0,"d":"0.00%"},{"v":0,"d":"0.00%"},null,{"v":1.1166945840312674,"d":"111.67%"}]
[{"$f":"Translations!$A$319","v":"Cash balance vs budget (%)"},{"$nulls":6},{"$f":"IF(H528=0,0,H532/H528)","v":{"v":3.0748957464553794,"d":"307.49%"}},{"$f":"IF(I528=0,0,I532/I528)","v":{"v":2.174764468371467,"d":"217.48%"}},{"v":0.5110651750972762,"d":"51.11%"},null,{"v":3.041708810220921,"d":"304.17%"},{"v":1.7520571151984512,"d":"175.21%"},{"v":0.6242925062259452,"d":"62.43%"},null,{"v":0,"d":"0.00%"},{"v":0,"d":"0.00%"},{"v":0,"d":"0.00%"},null,{"v":0,"d":"0.00%"},{"v":0,"d":"0.00%"},{"v":0,"d":"0.00%"},null,{"v":0.12317141261864879,"d":"12.32%"}]
[{"$f":"Translations!$A$320","v":"Cash balance vs disbursement (%)"},{"$nulls":6},{"$f":"IF(H529=0,0,H532/H529)","v":{"v":0.7680833333333333,"d":"76.81%"}},{"$f":"IF(I529=0,0,I532/I529)","v":{"v":0,"d":"0.00%"}},{"v":0,"d":"0.00%"},null,{"v":0.8790538461538462,"d":"87.91%"},{"v":0,"d":"0.00%"},{"v":0,"d":"0.00%"},null,{"v":0,"d":"0.00%"},{"v":0,"d":"0.00%"},{"v":0,"d":"0.00%"},null,{"v":0,"d":"0.00%"},{"v":0,"d":"0.00%"},{"v":0,"d":"0.00%"},null,{"v":0.1103,"d":"11.03%"}]
[]
[]
[{"$f":"Translations!A336","v":"Financial ratios (Quarterly)"},{"$nulls":6},{"$f":"Translations!$A$48","v":"1st Quarter"},{"$f":"Translations!$A$49","v":"2nd Quarter"},{"$f":"Translations!$A$50","v":"3rd Quarter"},null,{"$f":"Translations!$A$51","v":"4th Quarter"},{"$f":"Translations!$A$103","v":"Annual"}]
[{"$f":"Translations!$A$316","v":"Expenditure vs budget (%)"},{"$nulls":6},{"$f":"IF(H536=0,0,H539/H536)","v":{"v":0.9818479392947478,"d":"98.18%"}},{"$f":"IF(I536=0,0,I539/I536)","v":{"v":1.0030879245896311,"d":"100.31%"}},{"v":0,"d":"0.00%"},null,{"v":0,"d":"0.00%"},{"v":0.9935231714126187,"d":"99.35%"}]
[{"$f":"Translations!$A$317","v":"Expenditure vs disbursement (%)"},{"$nulls":6},{"$f":"IF(H537=0,0,H539/H537)","v":{"v":0.824875,"d":"82.49%"}},{"$f":"IF(I537=0,0,I539/I537)","v":{"v":0.9495384615384616,"d":"94.95%"}},{"v":0,"d":"0.00%"},null,{"v":0,"d":"0.00%"},{"v":0.8897,"d":"88.97%"}]
[{"$f":"Translations!$A$318","v":"Disbursement vs budget (%)"},{"$nulls":6},{"$f":"IF(H536=0,0,H537/H536)","v":{"v":1.1902990626394883,"d":"119.03%"}},{"$f":"IF(I536=0,0,I537/I536)","v":{"v":1.0563952543474728,"d":"105.64%"}},{"v":0,"d":"0.00%"},null,{"v":0,"d":"0.00%"},{"v":1.1166945840312674,"d":"111.67%"}]
[{"$f":"Translations!$A$319","v":"Cash balance vs budget (%)"},{"$nulls":6},{"$f":"IF(H536=0,0,H540/H536)","v":{"v":0.20845112334474036,"d":"20.85%"}},{"$f":"IF(I536=0,0,I540/I536)","v":{"v":0.22407768568178124,"d":"22.41%"}},{"v":0,"d":"0.00%"},null,{"v":0,"d":"0.00%"},{"v":0.12317141261864879,"d":"12.32%"}]
[{"$f":"Translations!$A$320","v":"Cash balance vs disbursement (%)"},{"$nulls":6},{"$f":"IF(H537=0,0,H540/H537)","v":{"v":0.175125,"d":"17.51%"}},{"$f":"IF(I537=0,0,I540/I537)","v":{"v":0.21211538461538462,"d":"21.21%"}},{"v":0,"d":"0.00%"},null,{"v":0,"d":"0.00%"},{"v":0.1103,"d":"11.03%"}]

{"sheet":"Financial","index":5,"n_rows":103,"n_cols":39,"rows_kept":103,"hidden":true,"merged":[[1,4,1,16],[1,18,1,19],[2,4,2,16],[2,18,3,19],[3,4,3,16],[5,10,5,19],[6,0,15,7],[6,10,7,19],[9,10,9,12],[9,14,9,19],[10,10,11,12],[10,14,11,19],[13,10,15,16],[13,18,13,19],[14,18,15,19],[17,3,18,4],[17,7,17,11],[17,13,17,17],[17,19,17,23],[17,25,17,29],[17,31,17,35],[19,3,19,4],[20,3,20,4],[21,3,21,4],[22,3,22,4],[23,3,23,4],[24,3,24,4],[25,3,25,4],[26,3,26,4],[27,3,27,4],[28,3,28,4],[29,3,29,4],[30,3,30,4],[31,3,31,4],[34,3,35,4],[34,7,34,11],[34,13,34,17],[34,19,34,23],[34,25,34,29],[34,31,34,35],[55,3,56,4],[55,7,55,11],[55,13,55,17],[55,19,55,23],[55,25,55,29],[55,31,55,35]]}
[]
["Financial",{"$nulls":3},{"$f":"Translations!A80","v":"SR Management Tool"}]
[{"$nulls":4},{"$f":"Setup!H11","v":"Direct Gender Partnership (DGP)"}]
[{"$nulls":4},{"$f":" Setup!H14 & \"  (\" & Setup!H13 & \")\" & \"  (\" & Setup!H16 & \")\"","v":"DMR-202-G01-H-00  (January  2016 - December 2016)  ($ - USD)"}]
[{"$nulls":14},{"$f":"Translations!A355","v":"Budget & expenditure"}]
[{"$f":"Setup!G19","v":"Details of programatic indicators"},{"$nulls":9},{"$f":"Setup!G17","v":"Key population"}]
[{"$f":"Setup!H19","v":"# PLHIV that initiated ARV with CD4 count <200\n# new HIV+ enrolled in care services \n# aged 10-24 yrs reached by HIV life skills ed. in school "},{"$nulls":9},{"$f":"Setup!H17","v":"Sex Workers - Migrants - Women"}]
{"$rows_empty":10}
[{"$nulls":3},{"$f":"Translations!A79","v":"TGF costs groups"},{"$nulls":3},{"$f":"Translations!$A$48","v":"1st Quarter"},{"$nulls":5},{"$f":"Translations!$A$49","v":"2nd Quarter"},{"$nulls":5},{"$f":"Translations!$A$50","v":"3rd Quarter"},{"$nulls":5},{"$f":"Translations!$A$51","v":"4th Quarter"},{"$nulls":5},{"$f":"Translations!A$125","v":"Total budget"}]
[{"$nulls":7},{"$f":"Translations!$A$95","v":"Budget"},{"$f":"Translations!$A$357","v":"Expenditure"},"%",{"$f":"Translations!$A$123","v":"Variation"},{"$f":"Translations!$A$136","v":"Balance from previous period"},null,{"$f":"Translations!$A$95","v":"Budget"},{"$f":"Translations!$A$357","v":"Expenditure"},"%",{"$f":"Translations!$A$123","v":"Variation"},{"$f":"Translations!$A$136","v":"Balance from previous period"},null,{"$f":"Translations!$A$95","v":"Budget"},{"$f":"Translations!$A$357","v":"Expenditure"},"%",{"$f":"Translations!$A$123","v":"Variation"},{"$f":"Translations!$A$136","v":"Balance from previous period"},null,{"$f":"Translations!$A$95","v":"Budget"},{"$f":"Translations!$A$357","v":"Expenditure"},"%",{"$f":"Translations!$A$123","v":"Variation"},{"$f":"Translations!$A$136","v":"Balance from previous period"},null,{"$f":"Translations!$A$95","v":"Budget"},{"$f":"Translations!$A$357","v":"Expenditure"},"%",{"$f":"Translations!$A$123","v":"Variation"},{"$f":"Translations!$A$136","v":"Balance from previous period"}]
[{"$nulls":3},{"$f":"Lists!C5","v":"1. Human resources"},{"$nulls":3},{"$f":"SUMIFS('M&E'!$L$237:$L$436,'M&E'!$F$237:$F$436,$D20,'M&E'!$AB$237:$AB$436,\"<>0\")","v":{"v":0,"d":"0.00"}},{"$f":"SUMIFS('M&E'!$M$237:$M$436,'M&E'!$F$237:$F$436,$D20,'M&E'!$AB$237:$AB$436,\"<>0\")","v":{"v":0,"d":"0.00"}},{"$f":"IF(AND(H20=0,I20=0),\"\",IF(H20>0,I20/H20,G20))","v":""},{"$f":"H20-I20","v":{"v":0,"d":"0.00"}},{"$f":"SUMIFS('M&E'!$BJ$237:$BJ$436,'M&E'!$F$237:$F$436,$D20,'M&E'!$AB$237:$AB$436,\"<>0\")","v":{"v":0,"d":"0.00"}},null,{"$f":"SUMIFS('M&E'!$P$237:$P$436,'M&E'!$F$237:$F$436,$D20,'M&E'!$AB$237:$AB$436,\"<>0\")","v":{"v":0,"d":"0.00"}},{"$f":"SUMIFS('M&E'!$Q$237:$Q$436,'M&E'!$F$237:$F$436,$D20,'M&E'!$AB$237:$AB$436,\"<>0\")","v":{"v":0,"d":"0.00"}},{"$f":"IF(AND(N20=0,O20=0),\"\",IF(N20>0,O20/N20,M20))","v":""},{"$f":"N20-O20","v":{"v":0,"d":"0.00"}},{"$f":"SUMIFS('M&E'!$BT$237:$BT$436,'M&E'!$F$237:$F$436,$D20,'M&E'!$AB$237:$AB$436,\"<>0\")","v":{"v":0,"d":"0.00"}},null,{"$f":"SUMIFS('M&E'!$T$237:$T$436,'M&E'!$F$237:$F$436,$D20,'M&E'!$AB$237:$AB$436,\"<>0\")","v":{"v":0,"d":"0.00"}},{"$f":"SUMIFS('M&E'!$U$237:$U$436,'M&E'!$F$237:$F$436,$D20,'M&E'!$AB$237:$AB$436,\"<>0\")","v":{"v":0,"d":"0.00"}},{"$f":"IF(AND(T20=0,U20=0),\"\",IF(T20>0,U20/T20,S20))","v":""},{"$f":"T20-U20","v":{"v":0,"d":"0.00"}},{"$f":"SUMIFS('M&E'!$BU$237:$BU$436,'M&E'!$F$237:$F$436,$D20,'M&E'!$AB$237:$AB$436,\"<>0\")","v":{"v":0,"d":"0.00"}},null,{"$f":"SUMIFS('M&E'!$X$237:$X$436,'M&E'!$F$237:$F$436,$D20,'M&E'!$AB$237:$AB$436,\"<>0\")","v":{"v":0,"d":"0.00"}},{"$f":"SUMIFS('M&E'!$Y$237:$Y$436,'M&E'!$F$237:$F$436,$D20,'M&E'!$AB$237:$AB$436,\"<>0\")","v":{"v":0,"d":"0.00"}},{"$f":"IF(AND(Z20=0,AA20=0),\"\",IF(Z20>0,AA20/Z20,Y20))","v":""},{"$f":"Z20-AA20","v":{"v":0,"d":"0.00"}},{"$f":"SUMIFS('M&E'!$BV$237:$BV$436,'M&E'!$F$237:$F$436,$D20,'M&E'!$AB$237:$AB$436,\"<>0\")","v":{"v":0,"d":"0.00"}},null,{"$f":"H20+N20+T20+Z20","v":{"v":0,"d":"0.00"}},{"$f":"I20+O20+U20+AA20","v":{"v":0,"d":"0.00"}},{"$f":"IF(AND(AF20=0,AG20=0),\"\",IF(AF20>0,AG20/AF20,AE20))","v":""},{"$f":"K20+Q20+W20+AC20","v":{"v":0,"d":"0.00"}},{"$f":"AD20","v":{"v":0,"d":"0.00"}}]
[{"$nulls":3},{"$f":"Lists!C6","v":"2. Travel related costs"},{"$nulls":3},{"$f":"SUMIFS('M&E'!$L$237:$L$436,'M&E'!$F$237:$F$436,$D21,'M&E'!$AB$237:$AB$436,\"<>0\")","v":{"v":213750,"d":"213,750.00"}},{"$f":"SUMIFS('M&E'!$M$237:$M$436,'M&E'!$F$237:$F$436,$D21,'M&E'!$AB$237:$AB$436,\"<>0\")","v":{"v":207500,"d":"207,500.00"}},{"$f":"IF(AND(H21=0,I21=0),\"\",IF(H21>0,I21/H21,G21))","v":{"v":0.9707602339181286,"d":"97.08%"}},{"$f":"H21-I21","v":{"v":6250,"d":"6,250.00"}},{"$f":"SUMIFS('M&E'!$BJ$237:$BJ$436,'M&E'!$F$237:$F$436,$D21,'M&E'!$AB$237:$AB$436,\"<>0\")","v":{"v":0,"d":"0.00"}},null,{"$f":"SUMIFS('M&E'!$P$237:$P$436,'M&E'!$F$237:$F$436,$D21,'M&E'!$AB$237:$AB$436,\"<>0\")","v":{"v":180000,"d":"180,000.00"}},{"$f":"SUMIFS('M&E'!$Q$237:$Q$436,'M&E'!$F$237:$F$436,$D21,'M&E'!$AB$237:$AB$436,\"<>0\")","v":{"v":180000,"d":"180,000.00"}},{"$f":"IF(AND(N21=0,O21=0),\"\",IF(N21>0,O21/N21,M21))","v":{"v":1,"d":"100.00%"}},{"$f":"N21-O21","v":{"v":0,"d":"0.00"}},{"$f":"SUMIFS('M&E'!$BT$237:$BT$436,'M&E'!$F$237:$F$436,$D21,'M&E'!$AB$237:$AB$436,\"<>0\")","v":{"v":6250,"d":"6,250.00"}},null,{"$f":"SUMIFS('M&E'!$T$237:$T$436,'M&E'!$F$237:$F$436,$D21,'M&E'!$AB$237:$AB$436,\"<>0\")","v":{"v":0,"d":"0.00"}},{"$f":"SUMIFS('M&E'!$U$237:$U$436,'M&E'!$F$237:$F$436,$D21,'M&E'!$AB$237:$AB$436,\"<>0\")","v":{"v":0,"d":"0.00"}},{"$f":"IF(AND(T21=0,U21=0),\"\",IF(T21>0,U21/T21,S21))","v":""},{"$f":"T21-U21","v":{"v":0,"d":"0.00"}},{"$f":"SUMIFS('M&E'!$BU$237:$BU$436,'M&E'!$F$237:$F$436,$D21,'M&E'!$AB$237:$AB$436,\"<>0\")","v":{"v":6250,"d":"6,250.00"}},null,{"$f":"SUMIFS('M&E'!$X$237:$X$436,'M&E'!$F$237:$F$436,$D21,'M&E'!$AB$237:$AB$436,\"<>0\")","v":{"v":0,"d":"0.00"}},{"$f":"SUMIFS('M&E'!$Y$237:$Y$436,'M&E'!$F$237:$F$436,$D21,'M&E'!$AB$237:$AB$436,\"<>0\")","v":{"v":0,"d":"0.00"}},{"$f":"IF(AND(Z21=0,AA21=0),\"\",IF(Z21>0,AA21/Z21,Y21))","v":""},{"$f":"Z21-AA21","v":{"v":0,"d":"0.00"}},{"$f":"SUMIFS('M&E'!$BV$237:$BV$436,'M&E'!$F$237:$F$436,$D21,'M&E'!$AB$237:$AB$436,\"<>0\")","v":{"v":6250,"d":"6,250.00"}},null,{"$f":"H21+N21+T21+Z21","v":{"v":393750,"d":"393,750.00"}},{"$f":"I21+O21+U21+AA21","v":{"v":387500,"d":"387,500.00"}},{"$f":"IF(AND(AF21=0,AG21=0),\"\",IF(AF21>0,AG21/AF21,AE21))","v":{"v":0.9841269841269841,"d":"98.41%"}},{"v":6250,"d":"6,250.00"},{"$f":"AD21","v":{"v":6250,"d":"6,250.00"}}]
[{"$nulls":3},{"$f":"Lists!C7","v":"3. External professional services"},{"$nulls":3},{"$f":"SUMIFS('M&E'!$L$237:$L$436,'M&E'!$F$237:$F$436,$D22,'M&E'!$AB$237:$AB$436,\"<>0\")","v":{"v":0,"d":"0.00"}},{"$f":"SUMIFS('M&E'!$M$237:$M$436,'M&E'!$F$237:$F$436,$D22,'M&E'!$AB$237:$AB$436,\"<>0\")","v":{"v":0,"d":"0.00"}},"",{"v":0,"d":"0.00"},{"$f":"SUMIFS('M&E'!$BJ$237:$BJ$436,'M&E'!$F$237:$F$436,$D22,'M&E'!$AB$237:$AB$436,\"<>0\")","v":{"v":0,"d":"0.00"}},null,{"$f":"SUMIFS('M&E'!$P$237:$P$436,'M&E'!$F$237:$F$436,$D22,'M&E'!$AB$237:$AB$436,\"<>0\")","v":{"v":0,"d":"0.00"}},{"$f":"SUMIFS('M&E'!$Q$237:$Q$436,'M&E'!$F$237:$F$436,$D22,'M&E'!$AB$237:$AB$436,\"<>0\")","v":{"v":0,"d":"0.00"}},"",{"v":0,"d":"0.00"},{"$f":"SUMIFS('M&E'!$BT$237:$BT$436,'M&E'!$F$237:$F$436,$D22,'M&E'!$AB$237:$AB$436,\"<>0\")","v":{"v":0,"d":"0.00"}},null,{"$f":"SUMIFS('M&E'!$T$237:$T$436,'M&E'!$F$237:$F$436,$D22,'M&E'!$AB$237:$AB$436,\"<>0\")","v":{"v":0,"d":"0.00"}},{"$f":"SUMIFS('M&E'!$U$237:$U$436,'M&E'!$F$237:$F$436,$D22,'M&E'!$AB$237:$AB$436,\"<>0\")","v":{"v":0,"d":"0.00"}},"",{"v":0,"d":"0.00"},{"$f":"SUMIFS('M&E'!$BU$237:$BU$436,'M&E'!$F$237:$F$436,$D22,'M&E'!$AB$237:$AB$436,\"<>0\")","v":{"v":0,"d":"0.00"}},null,{"$f":"SUMIFS('M&E'!$X$237:$X$436,'M&E'!$F$237:$F$436,$D22,'M&E'!$AB$237:$AB$436,\"<>0\")","v":{"v":0,"d":"0.00"}},{"$f":"SUMIFS('M&E'!$Y$237:$Y$436,'M&E'!$F$237:$F$436,$D22,'M&E'!$AB$237:$AB$436,\"<>0\")","v":{"v":0,"d":"0.00"}},"",{"v":0,"d":"0.00"},{"$f":"SUMIFS('M&E'!$BV$237:$BV$436,'M&E'!$F$237:$F$436,$D22,'M&E'!$AB$237:$AB$436,\"<>0\")","v":{"v":0,"d":"0.00"}},null,{"v":0,"d":"0.00"},{"v":0,"d":"0.00"},"",{"v":0,"d":"0.00"},{"v":0,"d":"0.00"}]
[{"$nulls":3},{"$f":"Lists!C8","v":"4. Health products - pharmaceutical products"},{"$nulls":3},{"$f":"SUMIFS('M&E'!$L$237:$L$436,'M&E'!$F$237:$F$436,$D23,'M&E'!$AB$237:$AB$436,\"<>0\")","v":{"v":0,"d":"0.00"}},{"$f":"SUMIFS('M&E'!$M$237:$M$436,'M&E'!$F$237:$F$436,$D23,'M&E'!$AB$237:$AB$436,\"<>0\")","v":{"v":0,"d":"0.00"}},"",{"v":0,"d":"0.00"},{"$f":"SUMIFS('M&E'!$BJ$237:$BJ$436,'M&E'!$F$237:$F$436,$D23,'M&E'!$AB$237:$AB$436,\"<>0\")","v":{"v":0,"d":"0.00"}},null,{"$f":"SUMIFS('M&E'!$P$237:$P$436,'M&E'!$F$237:$F$436,$D23,'M&E'!$AB$237:$AB$436,\"<>0\")","v":{"v":0,"d":"0.00"}},{"$f":"SUMIFS('M&E'!$Q$237:$Q$436,'M&E'!$F$237:$F$436,$D23,'M&E'!$AB$237:$AB$436,\"<>0\")","v":{"v":0,"d":"0.00"}},"",{"v":0,"d":"0.00"},{"$f":"SUMIFS('M&E'!$BT$237:$BT$436,'M&E'!$F$237:$F$436,$D23,'M&E'!$AB$237:$AB$436,\"<>0\")","v":{"v":0,"d":"0.00"}},null,{"$f":"SUMIFS('M&E'!$T$237:$T$436,'M&E'!$F$237:$F$436,$D23,'M&E'!$AB$237:$AB$436,\"<>0\")","v":{"v":0,"d":"0.00"}},{"$f":"SUMIFS('M&E'!$U$237:$U$436,'M&E'!$F$237:$F$436,$D23,'M&E'!$AB$237:$AB$436,\"<>0\")","v":{"v":0,"d":"0.00"}},"",{"v":0,"d":"0.00"},{"$f":"SUMIFS('M&E'!$BU$237:$BU$436,'M&E'!$F$237:$F$436,$D23,'M&E'!$AB$237:$AB$436,\"<>0\")","v":{"v":0,"d":"0.00"}},null,{"$f":"SUMIFS('M&E'!$X$237:$X$436,'M&E'!$F$237:$F$436,$D23,'M&E'!$AB$237:$AB$436,\"<>0\")","v":{"v":0,"d":"0.00"}},{"$f":"SUMIFS('M&E'!$Y$237:$Y$436,'M&E'!$F$237:$F$436,$D23,'M&E'!$AB$237:$AB$436,\"<>0\")","v":{"v":0,"d":"0.00"}},"",{"v":0,"d":"0.00"},{"$f":"SUMIFS('M&E'!$BV$237:$BV$436,'M&E'!$F$237:$F$436,$D23,'M&E'!$AB$237:$AB$436,\"<>0\")","v":{"v":0,"d":"0.00"}},null,{"v":0,"d":"0.00"},{"v":0,"d":"0.00"},"",{"v":0,"d":"0.00"},{"v":0,"d":"0.00"}]
[{"$nulls":3},{"$f":"Lists!C9","v":"5. Health products - non-pharmaceuticals"},{"$nulls":3},{"$f":"SUMIFS('M&E'!$L$237:$L$436,'M&E'!$F$237:$F$436,$D24,'M&E'!$AB$237:$AB$436,\"<>0\")","v":{"v":0,"d":"0.00"}},{"$f":"SUMIFS('M&E'!$M$237:$M$436,'M&E'!$F$237:$F$436,$D24,'M&E'!$AB$237:$AB$436,\"<>0\")","v":{"v":0,"d":"0.00"}},"",{"v":0,"d":"0.00"},{"$f":"SUMIFS('M&E'!$BJ$237:$BJ$436,'M&E'!$F$237:$F$436,$D24,'M&E'!$AB$237:$AB$436,\"<>0\")","v":{"v":0,"d":"0.00"}},null,{"$f":"SUMIFS('M&E'!$P$237:$P$436,'M&E'!$F$237:$F$436,$D24,'M&E'!$AB$237:$AB$436,\"<>0\")","v":{"v":0,"d":"0.00"}},{"$f":"SUMIFS('M&E'!$Q$237:$Q$436,'M&E'!$F$237:$F$436,$D24,'M&E'!$AB$237:$AB$436,\"<>0\")","v":{"v":0,"d":"0.00"}},"",{"v":0,"d":"0.00"},{"$f":"SUMIFS('M&E'!$BT$237:$BT$436,'M&E'!$F$237:$F$436,$D24,'M&E'!$AB$237:$AB$436,\"<>0\")","v":{"v":0,"d":"0.00"}},null,{"$f":"SUMIFS('M&E'!$T$237:$T$436,'M&E'!$F$237:$F$436,$D24,'M&E'!$AB$237:$AB$436,\"<>0\")","v":{"v":0,"d":"0.00"}},{"$f":"SUMIFS('M&E'!$U$237:$U$436,'M&E'!$F$237:$F$436,$D24,'M&E'!$AB$237:$AB$436,\"<>0\")","v":{"v":0,"d":"0.00"}},"",{"v":0,"d":"0.00"},{"$f":"SUMIFS('M&E'!$BU$237:$BU$436,'M&E'!$F$237:$F$436,$D24,'M&E'!$AB$237:$AB$436,\"<>0\")","v":{"v":0,"d":"0.00"}},null,{"$f":"SUMIFS('M&E'!$X$237:$X$436,'M&E'!$F$237:$F$436,$D24,'M&E'!$AB$237:$AB$436,\"<>0\")","v":{"v":0,"d":"0.00"}},{"$f":"SUMIFS('M&E'!$Y$237:$Y$436,'M&E'!$F$237:$F$436,$D24,'M&E'!$AB$237:$AB$436,\"<>0\")","v":{"v":0,"d":"0.00"}},"",{"v":0,"d":"0.00"},{"$f":"SUMIFS('M&E'!$BV$237:$BV$436,'M&E'!$F$237:$F$436,$D24,'M&E'!$AB$237:$AB$436,\"<>0\")","v":{"v":0,"d":"0.00"}},null,{"v":0,"d":"0.00"},{"v":0,"d":"0.00"},"",{"v":0,"d":"0.00"},{"v":0,"d":"0.00"}]
[{"$nulls":3},{"$f":"Lists!C10","v":"6. Health products - equipment"},{"$nulls":3},{"$f":"SUMIFS('M&E'!$L$237:$L$436,'M&E'!$F$237:$F$436,$D25,'M&E'!$AB$237:$AB$436,\"<>0\")","v":{"v":0,"d":"0.00"}},{"$f":"SUMIFS('M&E'!$M$237:$M$436,'M&E'!$F$237:$F$436,$D25,'M&E'!$AB$237:$AB$436,\"<>0\")","v":{"v":0,"d":"0.00"}},"",{"v":0,"d":"0.00"},{"$f":"SUMIFS('M&E'!$BJ$237:$BJ$436,'M&E'!$F$237:$F$436,$D25,'M&E'!$AB$237:$AB$436,\"<>0\")","v":{"v":0,"d":"0.00"}},null,{"$f":"SUMIFS('M&E'!$P$237:$P$436,'M&E'!$F$237:$F$436,$D25,'M&E'!$AB$237:$AB$436,\"<>0\")","v":{"v":0,"d":"0.00"}},{"$f":"SUMIFS('M&E'!$Q$237:$Q$436,'M&E'!$F$237:$F$436,$D25,'M&E'!$AB$237:$AB$436,\"<>0\")","v":{"v":0,"d":"0.00"}},"",{"v":0,"d":"0.00"},{"$f":"SUMIFS('M&E'!$BT$237:$BT$436,'M&E'!$F$237:$F$436,$D25,'M&E'!$AB$237:$AB$436,\"<>0\")","v":{"v":0,"d":"0.00"}},null,{"$f":"SUMIFS('M&E'!$T$237:$T$436,'M&E'!$F$237:$F$436,$D25,'M&E'!$AB$237:$AB$436,\"<>0\")","v":{"v":0,"d":"0.00"}},{"$f":"SUMIFS('M&E'!$U$237:$U$436,'M&E'!$F$237:$F$436,$D25,'M&E'!$AB$237:$AB$436,\"<>0\")","v":{"v":0,"d":"0.00"}},"",{"v":0,"d":"0.00"},{"$f":"SUMIFS('M&E'!$BU$237:$BU$436,'M&E'!$F$237:$F$436,$D25,'M&E'!$AB$237:$AB$436,\"<>0\")","v":{"v":0,"d":"0.00"}},null,{"$f":"SUMIFS('M&E'!$X$237:$X$436,'M&E'!$F$237:$F$436,$D25,'M&E'!$AB$237:$AB$436,\"<>0\")","v":{"v":0,"d":"0.00"}},{"$f":"SUMIFS('M&E'!$Y$237:$Y$436,'M&E'!$F$237:$F$436,$D25,'M&E'!$AB$237:$AB$436,\"<>0\")","v":{"v":0,"d":"0.00"}},"",{"v":0,"d":"0.00"},{"$f":"SUMIFS('M&E'!$BV$237:$BV$436,'M&E'!$F$237:$F$436,$D25,'M&E'!$AB$237:$AB$436,\"<>0\")","v":{"v":0,"d":"0.00"}},null,{"v":0,"d":"0.00"},{"v":0,"d":"0.00"},"",{"v":0,"d":"0.00"},{"v":0,"d":"0.00"}]
[{"$nulls":3},{"$f":"Lists!C11","v":"7. Procurement and supply-chain management costs"},{"$nulls":3},{"$f":"SUMIFS('M&E'!$L$237:$L$436,'M&E'!$F$237:$F$436,$D26,'M&E'!$AB$237:$AB$436,\"<>0\")","v":{"v":0,"d":"0.00"}},{"$f":"SUMIFS('M&E'!$M$237:$M$436,'M&E'!$F$237:$F$436,$D26,'M&E'!$AB$237:$AB$436,\"<>0\")","v":{"v":0,"d":"0.00"}},"",{"v":0,"d":"0.00"},{"$f":"SUMIFS('M&E'!$BJ$237:$BJ$436,'M&E'!$F$237:$F$436,$D26,'M&E'!$AB$237:$AB$436,\"<>0\")","v":{"v":0,"d":"0.00"}},null,{"$f":"SUMIFS('M&E'!$P$237:$P$436,'M&E'!$F$237:$F$436,$D26,'M&E'!$AB$237:$AB$436,\"<>0\")","v":{"v":0,"d":"0.00"}},{"$f":"SUMIFS('M&E'!$Q$237:$Q$436,'M&E'!$F$237:$F$436,$D26,'M&E'!$AB$237:$AB$436,\"<>0\")","v":{"v":0,"d":"0.00"}},"",{"v":0,"d":"0.00"},{"$f":"SUMIFS('M&E'!$BT$237:$BT$436,'M&E'!$F$237:$F$436,$D26,'M&E'!$AB$237:$AB$436,\"<>0\")","v":{"v":0,"d":"0.00"}},null,{"$f":"SUMIFS('M&E'!$T$237:$T$436,'M&E'!$F$237:$F$436,$D26,'M&E'!$AB$237:$AB$436,\"<>0\")","v":{"v":0,"d":"0.00"}},{"$f":"SUMIFS('M&E'!$U$237:$U$436,'M&E'!$F$237:$F$436,$D26,'M&E'!$AB$237:$AB$436,\"<>0\")","v":{"v":0,"d":"0.00"}},"",{"v":0,"d":"0.00"},{"$f":"SUMIFS('M&E'!$BU$237:$BU$436,'M&E'!$F$237:$F$436,$D26,'M&E'!$AB$237:$AB$436,\"<>0\")","v":{"v":0,"d":"0.00"}},null,{"$f":"SUMIFS('M&E'!$X$237:$X$436,'M&E'!$F$237:$F$436,$D26,'M&E'!$AB$237:$AB$436,\"<>0\")","v":{"v":0,"d":"0.00"}},{"$f":"SUMIFS('M&E'!$Y$237:$Y$436,'M&E'!$F$237:$F$436,$D26,'M&E'!$AB$237:$AB$436,\"<>0\")","v":{"v":0,"d":"0.00"}},"",{"v":0,"d":"0.00"},{"$f":"SUMIFS('M&E'!$BV$237:$BV$436,'M&E'!$F$237:$F$436,$D26,'M&E'!$AB$237:$AB$436,\"<>0\")","v":{"v":0,"d":"0.00"}},null,{"v":0,"d":"0.00"},{"v":0,"d":"0.00"},"",{"v":0,"d":"0.00"},{"v":0,"d":"0.00"}]
[{"$nulls":3},{"$f":"Lists!C12","v":"8. Infrastructure "},{"$nulls":3},{"$f":"SUMIFS('M&E'!$L$237:$L$436,'M&E'!$F$237:$F$436,$D27,'M&E'!$AB$237:$AB$436,\"<>0\")","v":{"v":8000,"d":"8,000.00"}},{"$f":"SUMIFS('M&E'!$M$237:$M$436,'M&E'!$F$237:$F$436,$D27,'M&E'!$AB$237:$AB$436,\"<>0\")","v":{"v":8000,"d":"8,000.00"}},{"v":1,"d":"100.00%"},{"v":0,"d":"0.00"},{"$f":"SUMIFS('M&E'!$BJ$237:$BJ$436,'M&E'!$F$237:$F$436,$D27,'M&E'!$AB$237:$AB$436,\"<>0\")","v":{"v":0,"d":"0.00"}},null,{"$f":"SUMIFS('M&E'!$P$237:$P$436,'M&E'!$F$237:$F$436,$D27,'M&E'!$AB$237:$AB$436,\"<>0\")","v":{"v":8000,"d":"8,000.00"}},{"$f":"SUMIFS('M&E'!$Q$237:$Q$436,'M&E'!$F$237:$F$436,$D27,'M&E'!$AB$237:$AB$436,\"<>0\")","v":{"v":8000,"d":"8,000.00"}},{"v":1,"d":"100.00%"},{"v":0,"d":"0.00"},{"$f":"SUMIFS('M&E'!$BT$237:$BT$436,'M&E'!$F$237:$F$436,$D27,'M&E'!$AB$237:$AB$436,\"<>0\")","v":{"v":0,"d":"0.00"}},null,{"$f":"SUMIFS('M&E'!$T$237:$T$436,'M&E'!$F$237:$F$436,$D27,'M&E'!$AB$237:$AB$436,\"<>0\")","v":{"v":0,"d":"0.00"}},{"$f":"SUMIFS('M&E'!$U$237:$U$436,'M&E'!$F$237:$F$436,$D27,'M&E'!$AB$237:$AB$436,\"<>0\")","v":{"v":0,"d":"0.00"}},"",{"v":0,"d":"0.00"},{"$f":"SUMIFS('M&E'!$BU$237:$BU$436,'M&E'!$F$237:$F$436,$D27,'M&E'!$AB$237:$AB$436,\"<>0\")","v":{"v":0,"d":"0.00"}},null,{"$f":"SUMIFS('M&E'!$X$237:$X$436,'M&E'!$F$237:$F$436,$D27,'M&E'!$AB$237:$AB$436,\"<>0\")","v":{"v":0,"d":"0.00"}},{"$f":"SUMIFS('M&E'!$Y$237:$Y$436,'M&E'!$F$237:$F$436,$D27,'M&E'!$AB$237:$AB$436,\"<>0\")","v":{"v":0,"d":"0.00"}},"",{"v":0,"d":"0.00"},{"$f":"SUMIFS('M&E'!$BV$237:$BV$436,'M&E'!$F$237:$F$436,$D27,'M&E'!$AB$237:$AB$436,\"<>0\")","v":{"v":0,"d":"0.00"}},null,{"v":16000,"d":"16,000.00"},{"v":16000,"d":"16,000.00"},{"v":1,"d":"100.00%"},{"v":0,"d":"0.00"},{"v":0,"d":"0.00"}]
[{"$nulls":3},{"$f":"Lists!C13","v":"9. Non-health equipment "},{"$nulls":3},{"$f":"SUMIFS('M&E'!$L$237:$L$436,'M&E'!$F$237:$F$436,$D28,'M&E'!$AB$237:$AB$436,\"<>0\")","v":{"v":0,"d":"0.00"}},{"$f":"SUMIFS('M&E'!$M$237:$M$436,'M&E'!$F$237:$F$436,$D28,'M&E'!$AB$237:$AB$436,\"<>0\")","v":{"v":0,"d":"0.00"}},"",{"v":0,"d":"0.00"},{"$f":"SUMIFS('M&E'!$BJ$237:$BJ$436,'M&E'!$F$237:$F$436,$D28,'M&E'!$AB$237:$AB$436,\"<>0\")","v":{"v":0,"d":"0.00"}},null,{"$f":"SUMIFS('M&E'!$P$237:$P$436,'M&E'!$F$237:$F$436,$D28,'M&E'!$AB$237:$AB$436,\"<>0\")","v":{"v":0,"d":"0.00"}},{"$f":"SUMIFS('M&E'!$Q$237:$Q$436,'M&E'!$F$237:$F$436,$D28,'M&E'!$AB$237:$AB$436,\"<>0\")","v":{"v":0,"d":"0.00"}},"",{"v":0,"d":"0.00"},{"$f":"SUMIFS('M&E'!$BT$237:$BT$436,'M&E'!$F$237:$F$436,$D28,'M&E'!$AB$237:$AB$436,\"<>0\")","v":{"v":0,"d":"0.00"}},null,{"$f":"SUMIFS('M&E'!$T$237:$T$436,'M&E'!$F$237:$F$436,$D28,'M&E'!$AB$237:$AB$436,\"<>0\")","v":{"v":0,"d":"0.00"}},{"$f":"SUMIFS('M&E'!$U$237:$U$436,'M&E'!$F$237:$F$436,$D28,'M&E'!$AB$237:$AB$436,\"<>0\")","v":{"v":0,"d":"0.00"}},"",{"v":0,"d":"0.00"},{"$f":"SUMIFS('M&E'!$BU$237:$BU$436,'M&E'!$F$237:$F$436,$D28,'M&E'!$AB$237:$AB$436,\"<>0\")","v":{"v":0,"d":"0.00"}},null,{"$f":"SUMIFS('M&E'!$X$237:$X$436,'M&E'!$F$237:$F$436,$D28,'M&E'!$AB$237:$AB$436,\"<>0\")","v":{"v":0,"d":"0.00"}},{"$f":"SUMIFS('M&E'!$Y$237:$Y$436,'M&E'!$F$237:$F$436,$D28,'M&E'!$AB$237:$AB$436,\"<>0\")","v":{"v":0,"d":"0.00"}},"",{"v":0,"d":"0.00"},{"$f":"SUMIFS('M&E'!$BV$237:$BV$436,'M&E'!$F$237:$F$436,$D28,'M&E'!$AB$237:$AB$436,\"<>0\")","v":{"v":0,"d":"0.00"}},null,{"v":0,"d":"0.00"},{"v":0,"d":"0.00"},"",{"v":0,"d":"0.00"},{"v":0,"d":"0.00"}]
[{"$nulls":3},{"$f":"Lists!C14","v":"10. Communication material and publications"},{"$nulls":3},{"$f":"SUMIFS('M&E'!$L$237:$L$436,'M&E'!$F$237:$F$436,$D29,'M&E'!$AB$237:$AB$436,\"<>0\")","v":{"v":2100,"d":"2,100.00"}},{"$f":"SUMIFS('M&E'!$M$237:$M$436,'M&E'!$F$237:$F$436,$D29,'M&E'!$AB$237:$AB$436,\"<>0\")","v":{"v":2100,"d":"2,100.00"}},{"v":1,"d":"100.00%"},{"v":0,"d":"0.00"},{"$f":"SUMIFS('M&E'!$BJ$237:$BJ$436,'M&E'!$F$237:$F$436,$D29,'M&E'!$AB$237:$AB$436,\"<>0\")","v":{"v":0,"d":"0.00"}},null,{"$f":"SUMIFS('M&E'!$P$237:$P$436,'M&E'!$F$237:$F$436,$D29,'M&E'!$AB$237:$AB$436,\"<>0\")","v":{"v":2100,"d":"2,100.00"}},{"$f":"SUMIFS('M&E'!$Q$237:$Q$436,'M&E'!$F$237:$F$436,$D29,'M&E'!$AB$237:$AB$436,\"<>0\")","v":{"v":2100,"d":"2,100.00"}},{"v":1,"d":"100.00%"},{"v":0,"d":"0.00"},{"$f":"SUMIFS('M&E'!$BT$237:$BT$436,'M&E'!$F$237:$F$436,$D29,'M&E'!$AB$237:$AB$436,\"<>0\")","v":{"v":0,"d":"0.00"}},null,{"$f":"SUMIFS('M&E'!$T$237:$T$436,'M&E'!$F$237:$F$436,$D29,'M&E'!$AB$237:$AB$436,\"<>0\")","v":{"v":0,"d":"0.00"}},{"$f":"SUMIFS('M&E'!$U$237:$U$436,'M&E'!$F$237:$F$436,$D29,'M&E'!$AB$237:$AB$436,\"<>0\")","v":{"v":0,"d":"0.00"}},"",{"v":0,"d":"0.00"},{"$f":"SUMIFS('M&E'!$BU$237:$BU$436,'M&E'!$F$237:$F$436,$D29,'M&E'!$AB$237:$AB$436,\"<>0\")","v":{"v":0,"d":"0.00"}},null,{"$f":"SUMIFS('M&E'!$X$237:$X$436,'M&E'!$F$237:$F$436,$D29,'M&E'!$AB$237:$AB$436,\"<>0\")","v":{"v":0,"d":"0.00"}},{"$f":"SUMIFS('M&E'!$Y$237:$Y$436,'M&E'!$F$237:$F$436,$D29,'M&E'!$AB$237:$AB$436,\"<>0\")","v":{"v":0,"d":"0.00"}},"",{"v":0,"d":"0.00"},{"$f":"SUMIFS('M&E'!$BV$237:$BV$436,'M&E'!$F$237:$F$436,$D29,'M&E'!$AB$237:$AB$436,\"<>0\")","v":{"v":0,"d":"0.00"}},null,{"v":4200,"d":"4,200.00"},{"v":4200,"d":"4,200.00"},{"v":1,"d":"100.00%"},{"v":0,"d":"0.00"},{"v":0,"d":"0.00"}]
[{"$nulls":3},{"$f":"Lists!C15","v":"11. Programme administration costs"},{"$nulls":3},{"$f":"SUMIFS('M&E'!$L$237:$L$436,'M&E'!$F$237:$F$436,$D30,'M&E'!$AB$237:$AB$436,\"<>0\")","v":{"v":42525,"d":"42,525.00"}},{"$f":"SUMIFS('M&E'!$M$237:$M$436,'M&E'!$F$237:$F$436,$D30,'M&E'!$AB$237:$AB$436,\"<>0\")","v":{"v":42525,"d":"42,525.00"}},{"v":1,"d":"100.00%"},{"v":0,"d":"0.00"},{"$f":"SUMIFS('M&E'!$BJ$237:$BJ$436,'M&E'!$F$237:$F$436,$D30,'M&E'!$AB$237:$AB$436,\"<>0\")","v":{"v":0,"d":"0.00"}},null,{"$f":"SUMIFS('M&E'!$P$237:$P$436,'M&E'!$F$237:$F$436,$D30,'M&E'!$AB$237:$AB$436,\"<>0\")","v":{"v":13500,"d":"13,500.00"}},{"$f":"SUMIFS('M&E'!$Q$237:$Q$436,'M&E'!$F$237:$F$436,$D30,'M&E'!$AB$237:$AB$436,\"<>0\")","v":{"v":13500,"d":"13,500.00"}},{"v":1,"d":"100.00%"},{"v":0,"d":"0.00"},{"$f":"SUMIFS('M&E'!$BT$237:$BT$436,'M&E'!$F$237:$F$436,$D30,'M&E'!$AB$237:$AB$436,\"<>0\")","v":{"v":0,"d":"0.00"}},null,{"$f":"SUMIFS('M&E'!$T$237:$T$436,'M&E'!$F$237:$F$436,$D30,'M&E'!$AB$237:$AB$436,\"<>0\")","v":{"v":0,"d":"0.00"}},{"$f":"SUMIFS('M&E'!$U$237:$U$436,'M&E'!$F$237:$F$436,$D30,'M&E'!$AB$237:$AB$436,\"<>0\")","v":{"v":0,"d":"0.00"}},"",{"v":0,"d":"0.00"},{"$f":"SUMIFS('M&E'!$BU$237:$BU$436,'M&E'!$F$237:$F$436,$D30,'M&E'!$AB$237:$AB$436,\"<>0\")","v":{"v":0,"d":"0.00"}},null,{"$f":"SUMIFS('M&E'!$X$237:$X$436,'M&E'!$F$237:$F$436,$D30,'M&E'!$AB$237:$AB$436,\"<>0\")","v":{"v":0,"d":"0.00"}},{"$f":"SUMIFS('M&E'!$Y$237:$Y$436,'M&E'!$F$237:$F$436,$D30,'M&E'!$AB$237:$AB$436,\"<>0\")","v":{"v":0,"d":"0.00"}},"",{"v":0,"d":"0.00"},{"$f":"SUMIFS('M&E'!$BV$237:$BV$436,'M&E'!$F$237:$F$436,$D30,'M&E'!$AB$237:$AB$436,\"<>0\")","v":{"v":0,"d":"0.00"}},null,{"v":56025,"d":"56,025.00"},{"v":56025,"d":"56,025.00"},{"v":1,"d":"100.00%"},{"v":0,"d":"0.00"},{"v":0,"d":"0.00"}]
[{"$nulls":3},{"$f":"Lists!C16","v":"12. Living support to client/ target population "},{"$nulls":3},{"$f":"SUMIFS('M&E'!$L$237:$L$436,'M&E'!$F$237:$F$436,$D31,'M&E'!$AB$237:$AB$436,\"<>0\")","v":{"v":237700,"d":"237,700.00"}},{"$f":"SUMIFS('M&E'!$M$237:$M$436,'M&E'!$F$237:$F$436,$D31,'M&E'!$AB$237:$AB$436,\"<>0\")","v":{"v":234800,"d":"234,800.00"}},{"v":0.9877997475809844,"d":"98.78%"},{"v":2900,"d":"2,900.00"},{"$f":"SUMIFS('M&E'!$BJ$237:$BJ$436,'M&E'!$F$237:$F$436,$D31,'M&E'!$AB$237:$AB$436,\"<>0\")","v":{"v":0,"d":"0.00"}},null,{"$f":"SUMIFS('M&E'!$P$237:$P$436,'M&E'!$F$237:$F$436,$D31,'M&E'!$AB$237:$AB$436,\"<>0\")","v":{"v":411700,"d":"411,700.00"}},{"$f":"SUMIFS('M&E'!$Q$237:$Q$436,'M&E'!$F$237:$F$436,$D31,'M&E'!$AB$237:$AB$436,\"<>0\")","v":{"v":413600,"d":"413,600.00"}},{"v":1.0046150109302892,"d":"100.46%"},{"v":-1900,"d":"-1,900.00"},{"$f":"SUMIFS('M&E'!$BT$237:$BT$436,'M&E'!$F$237:$F$436,$D31,'M&E'!$AB$237:$AB$436,\"<>0\")","v":{"v":2900,"d":"2,900.00"}},null,{"$f":"SUMIFS('M&E'!$T$237:$T$436,'M&E'!$F$237:$F$436,$D31,'M&E'!$AB$237:$AB$436,\"<>0\")","v":{"v":0,"d":"0.00"}},{"$f":"SUMIFS('M&E'!$U$237:$U$436,'M&E'!$F$237:$F$436,$D31,'M&E'!$AB$237:$AB$436,\"<>0\")","v":{"v":0,"d":"0.00"}},"",{"v":0,"d":"0.00"},{"$f":"SUMIFS('M&E'!$BU$237:$BU$436,'M&E'!$F$237:$F$436,$D31,'M&E'!$AB$237:$AB$436,\"<>0\")","v":{"v":1000,"d":"1,000.00"}},null,{"$f":"SUMIFS('M&E'!$X$237:$X$436,'M&E'!$F$237:$F$436,$D31,'M&E'!$AB$237:$AB$436,\"<>0\")","v":{"v":0,"d":"0.00"}},{"$f":"SUMIFS('M&E'!$Y$237:$Y$436,'M&E'!$F$237:$F$436,$D31,'M&E'!$AB$237:$AB$436,\"<>0\")","v":{"v":0,"d":"0.00"}},"",{"v":0,"d":"0.00"},{"$f":"SUMIFS('M&E'!$BV$237:$BV$436,'M&E'!$F$237:$F$436,$D31,'M&E'!$AB$237:$AB$436,\"<>0\")","v":{"v":1000,"d":"1,000.00"}},null,{"v":649400,"d":"649,400.00"},{"v":648400,"d":"648,400.00"},{"v":0.9984601170311056,"d":"99.85%"},{"v":1000,"d":"1,000.00"},{"v":1000,"d":"1,000.00"}]
[{"$nulls":3},{"$f":"Lists!C17","v":"13. Results-based financing (RBF)"},{"$nulls":3},{"$f":"SUMIFS('M&E'!$L$237:$L$436,'M&E'!$F$237:$F$436,$D32,'M&E'!$AB$237:$AB$436,\"<>0\")","v":{"v":0,"d":"0.00"}},{"$f":"SUMIFS('M&E'!$M$237:$M$436,'M&E'!$F$237:$F$436,$D32,'M&E'!$AB$237:$AB$436,\"<>0\")","v":{"v":0,"d":"0.00"}},"",{"v":0,"d":"0.00"},{"$f":"SUMIFS('M&E'!$BJ$237:$BJ$436,'M&E'!$F$237:$F$436,$D32,'M&E'!$AB$237:$AB$436,\"<>0\")","v":{"v":0,"d":"0.00"}},null,{"$f":"SUMIFS('M&E'!$P$237:$P$436,'M&E'!$F$237:$F$436,$D32,'M&E'!$AB$237:$AB$436,\"<>0\")","v":{"v":0,"d":"0.00"}},{"$f":"SUMIFS('M&E'!$Q$237:$Q$436,'M&E'!$F$237:$F$436,$D32,'M&E'!$AB$237:$AB$436,\"<>0\")","v":{"v":0,"d":"0.00"}},"",{"v":0,"d":"0.00"},{"$f":"SUMIFS('M&E'!$BT$237:$BT$436,'M&E'!$F$237:$F$436,$D32,'M&E'!$AB$237:$AB$436,\"<>0\")","v":{"v":0,"d":"0.00"}},null,{"$f":"SUMIFS('M&E'!$T$237:$T$436,'M&E'!$F$237:$F$436,$D32,'M&E'!$AB$237:$AB$436,\"<>0\")","v":{"v":0,"d":"0.00"}},{"$f":"SUMIFS('M&E'!$U$237:$U$436,'M&E'!$F$237:$F$436,$D32,'M&E'!$AB$237:$AB$436,\"<>0\")","v":{"v":0,"d":"0.00"}},"",{"v":0,"d":"0.00"},{"$f":"SUMIFS('M&E'!$BU$237:$BU$436,'M&E'!$F$237:$F$436,$D32,'M&E'!$AB$237:$AB$436,\"<>0\")","v":{"v":0,"d":"0.00"}},null,{"$f":"SUMIFS('M&E'!$X$237:$X$436,'M&E'!$F$237:$F$436,$D32,'M&E'!$AB$237:$AB$436,\"<>0\")","v":{"v":0,"d":"0.00"}},{"$f":"SUMIFS('M&E'!$Y$237:$Y$436,'M&E'!$F$237:$F$436,$D32,'M&E'!$AB$237:$AB$436,\"<>0\")","v":{"v":0,"d":"0.00"}},"",{"v":0,"d":"0.00"},{"$f":"SUMIFS('M&E'!$BV$237:$BV$436,'M&E'!$F$237:$F$436,$D32,'M&E'!$AB$237:$AB$436,\"<>0\")","v":{"v":0,"d":"0.00"}},null,{"v":0,"d":"0.00"},{"v":0,"d":"0.00"},"",{"v":0,"d":"0.00"},{"v":0,"d":"0.00"}]
[{"$nulls":3},{"$f":"Translations!$A$109","v":"Totals"},{"$nulls":3},{"$f":"SUM(H20:H32)","v":{"v":504075,"d":"504,075.00"}},{"$f":"SUM(I20:I32)","v":{"v":494925,"d":"494,925.00"}},{"v":0.9818479392947478,"d":"98.18%"},{"v":9150,"d":"9,150.00"},{"$f":"SUM(L20:L32)","v":{"v":0,"d":"0.00"}},null,{"$f":"SUM(N20:N32)","v":{"v":615300,"d":"615,300.00"}},{"$f":"SUM(O20:O32)","v":{"v":617200,"d":"617,200.00"}},{"v":1.0030879245896311,"d":"100.31%"},{"$f":"SUM(Q20:Q32)","v":{"v":-1900,"d":"-1,900.00"}},{"v":9150,"d":"9,150.00"},null,{"$f":"SUM(T20:T32)","v":{"v":0,"d":"0.00"}},{"$f":"SUM(U20:U32)","v":{"v":0,"d":"0.00"}},"",{"$f":"SUM(W20:W32)","v":{"v":0,"d":"0.00"}},{"v":7250,"d":"7,250.00"},null,{"$f":"SUM(Z20:Z32)","v":{"v":0,"d":"0.00"}},{"$f":"SUM(AA20:AA32)","v":{"v":0,"d":"0.00"}},"",{"$f":"SUM(AC20:AC32)","v":{"v":0,"d":"0.00"}},{"v":7250,"d":"7,250.00"},null,{"$f":"SUM(AF20:AF32)","v":{"v":1119375,"d":"1,119,375.00"}},{"$f":"SUM(AG20:AG32)","v":{"v":1112125,"d":"1,112,125.00"}},{"v":0.9935231714126187,"d":"99.35%"},{"$f":"SUM(AI20:AI32)","v":{"v":7250,"d":"7,250.00"}},{"v":7250,"d":"7,250.00"}]
[]
[{"$nulls":3},{"$f":"IF(Lists!V9=1,Translations!A124,Translations!A368)","v":"Performance framework objectives"},{"$nulls":3},{"$f":"Translations!$A$48","v":"1st Quarter"},{"$nulls":5},{"$f":"Translations!$A$49","v":"2nd Quarter"},{"$nulls":5},{"$f":"Translations!$A$50","v":"3rd Quarter"},{"$nulls":5},{"$f":"Translations!$A$51","v":"4th Quarter"},{"$nulls":5},{"$f":"Translations!A$125","v":"Total budget"}]
[{"$nulls":7},{"$f":"Translations!$A$95","v":"Budget"},{"$f":"Translations!$A$357","v":"Expenditure"},"%",{"$f":"Translations!$A$123","v":"Variation"},{"$f":"Translations!$A$136","v":"Balance from previous period"},null,{"$f":"Translations!$A$95","v":"Budget"},{"$f":"Translations!$A$357","v":"Expenditure"},"%",{"$f":"Translations!$A$123","v":"Variation"},{"$f":"Translations!$A$136","v":"Balance from previous period"},null,{"$f":"Translations!$A$95","v":"Budget"},{"$f":"Translations!$A$357","v":"Expenditure"},"%",{"$f":"Translations!$A$123","v":"Variation"},{"$f":"Translations!$A$136","v":"Balance from previous period"},null,{"$f":"Translations!$A$95","v":"Budget"},{"$f":"Translations!$A$357","v":"Expenditure"},"%",{"$f":"Translations!$A$123","v":"Variation"},{"$f":"Translations!$A$136","v":"Balance from previous period"},null,{"$f":"Translations!$A$95","v":"Budget"},{"$f":"Translations!$A$357","v":"Expenditure"},"%",{"$f":"Translations!$A$123","v":"Variation"},{"$f":"Translations!$A$136","v":"Balance from previous period"},null,null,"Para Listado"]
[{"$nulls":3},1,{"$f":"Setup!K8","v":"Increase the social acceptance and integration of PLHIV"},null,null,{"$f":"SUMIFS('M&E'!$L$237:$L$436,'M&E'!$G$237:$G$436,$D37,'M&E'!$AB$237:$AB$436,\"<>0\")","v":{"v":290325,"d":"290,325.00"}},{"$f":"SUMIFS('M&E'!$M$237:$M$436,'M&E'!$G$237:$G$436,$D37,'M&E'!$AB$237:$AB$436,\"<>0\")","v":{"v":287425,"d":"287,425.00"}},{"$f":"IF(AND(H37=0,I37=0),\"\",IF(H37>0,I37/H37,G37))","v":{"v":0.9900111943511581,"d":"99.00%"}},{"$f":"H37-I37","v":{"v":2900,"d":"2,900.00"}},{"$f":"SUMIFS('M&E'!$BJ$237:$BJ$436,'M&E'!$G$237:$G$436,$D37,'M&E'!$AB$237:$AB$436,\"<>0\")","v":{"v":0,"d":"0.00"}},null,{"$f":"SUMIFS('M&E'!$P$237:$P$436,'M&E'!$G$237:$G$436,$D37,'M&E'!$AB$237:$AB$436,\"<>0\")","v":{"v":435300,"d":"435,300.00"}},{"$f":"SUMIFS('M&E'!$Q$237:$Q$436,'M&E'!$G$237:$G$436,$D37,'M&E'!$AB$237:$AB$436,\"<>0\")","v":{"v":437200,"d":"437,200.00"}},{"$f":"IF(AND(N37=0,O37=0),\"\",IF(N37>0,O37/N37,M37))","v":{"v":1.0043648058810015,"d":"100.44%"}},{"$f":"N37-O37","v":{"v":-1900,"d":"-1,900.00"}},{"$f":"SUMIFS('M&E'!$BT$237:$BT$436,'M&E'!$G$237:$G$436,$D37,'M&E'!$AB$237:$AB$436,\"<>0\")","v":{"v":2900,"d":"2,900.00"}},null,{"$f":"SUMIFS('M&E'!$T$237:$T$436,'M&E'!$G$237:$G$436,$D37,'M&E'!$AB$237:$AB$436,\"<>0\")","v":{"v":0,"d":"0.00"}},{"$f":"SUMIFS('M&E'!$U$237:$U$436,'M&E'!$G$237:$G$436,$D37,'M&E'!$AB$237:$AB$436,\"<>0\")","v":{"v":0,"d":"0.00"}},{"$f":"IF(AND(T37=0,U37=0),\"\",IF(T37>0,U37/T37,S37))","v":""},{"$f":"T37-U37","v":{"v":0,"d":"0.00"}},{"$f":"SUMIFS('M&E'!$BU$237:$BU$436,'M&E'!$G$237:$G$436,$D37,'M&E'!$AB$237:$AB$436,\"<>0\")","v":{"v":1000,"d":"1,000.00"}},null,{"$f":"SUMIFS('M&E'!$X$237:$X$436,'M&E'!$G$237:$G$436,$D37,'M&E'!$AB$237:$AB$436,\"<>0\")","v":{"v":0,"d":"0.00"}},{"$f":"SUMIFS('M&E'!$Y$237:$Y$436,'M&E'!$G$237:$G$436,$D37,'M&E'!$AB$237:$AB$436,\"<>0\")","v":{"v":0,"d":"0.00"}},{"$f":"IF(AND(Z37=0,AA37=0),\"\",IF(Z37>0,AA37/Z37,Y37))","v":""},{"$f":"Z37-AA37","v":{"v":0,"d":"0.00"}},{"$f":"SUMIFS('M&E'!$BV$237:$BV$436,'M&E'!$G$237:$G$436,$D37,'M&E'!$AB$237:$AB$436,\"<>0\")","v":{"v":1000,"d":"1,000.00"}},null,{"$f":"H37+N37+T37+Z37","v":{"v":725625,"d":"725,625.00"}},{"$f":"I37+O37+U37+AA37","v":{"v":724625,"d":"724,625.00"}},{"$f":"IF(AND(AF37=0,AG37=0),\"\",IF(AF37>0,AG37/AF37,AE37))","v":{"v":0.9986218776916451,"d":"99.86%"}},{"$f":"K37+Q37+W37+AC37","v":{"v":1000,"d":"1,000.00"}},{"$f":"AD37","v":{"v":1000,"d":"1,000.00"}},null,null,{"$f":"IF(E37<>0,\"[\"&D37&\"] \" &E37,\"\")","v":"[1] Increase the social acceptance and integration of PLHIV"}]
[{"$nulls":3},2,{"$f":"Setup!K9","v":"Strengthening of civil society organizations conducting HIV activities"},null,null,{"$f":"SUMIFS('M&E'!$L$237:$L$436,'M&E'!$G$237:$G$436,$D38,'M&E'!$AB$237:$AB$436,\"<>0\")","v":{"v":213750,"d":"213,750.00"}},{"$f":"SUMIFS('M&E'!$M$237:$M$436,'M&E'!$G$237:$G$436,$D38,'M&E'!$AB$237:$AB$436,\"<>0\")","v":{"v":207500,"d":"207,500.00"}},{"$f":"IF(AND(H38=0,I38=0),\"\",IF(H38>0,I38/H38,G38))","v":{"v":0.9707602339181286,"d":"97.08%"}},{"$f":"H38-I38","v":{"v":6250,"d":"6,250.00"}},{"$f":"SUMIFS('M&E'!$BJ$237:$BJ$436,'M&E'!$G$237:$G$436,$D38,'M&E'!$AB$237:$AB$436,\"<>0\")","v":{"v":0,"d":"0.00"}},null,{"$f":"SUMIFS('M&E'!$P$237:$P$436,'M&E'!$G$237:$G$436,$D38,'M&E'!$AB$237:$AB$436,\"<>0\")","v":{"v":180000,"d":"180,000.00"}},{"$f":"SUMIFS('M&E'!$Q$237:$Q$436,'M&E'!$G$237:$G$436,$D38,'M&E'!$AB$237:$AB$436,\"<>0\")","v":{"v":180000,"d":"180,000.00"}},{"$f":"IF(AND(N38=0,O38=0),\"\",IF(N38>0,O38/N38,M38))","v":{"v":1,"d":"100.00%"}},{"$f":"N38-O38","v":{"v":0,"d":"0.00"}},{"$f":"SUMIFS('M&E'!$BT$237:$BT$436,'M&E'!$G$237:$G$436,$D38,'M&E'!$AB$237:$AB$436,\"<>0\")","v":{"v":6250,"d":"6,250.00"}},null,{"$f":"SUMIFS('M&E'!$T$237:$T$436,'M&E'!$G$237:$G$436,$D38,'M&E'!$AB$237:$AB$436,\"<>0\")","v":{"v":0,"d":"0.00"}},{"$f":"SUMIFS('M&E'!$U$237:$U$436,'M&E'!$G$237:$G$436,$D38,'M&E'!$AB$237:$AB$436,\"<>0\")","v":{"v":0,"d":"0.00"}},{"$f":"IF(AND(T38=0,U38=0),\"\",IF(T38>0,U38/T38,S38))","v":""},{"$f":"T38-U38","v":{"v":0,"d":"0.00"}},{"$f":"SUMIFS('M&E'!$BU$237:$BU$436,'M&E'!$G$237:$G$436,$D38,'M&E'!$AB$237:$AB$436,\"<>0\")","v":{"v":6250,"d":"6,250.00"}},null,{"$f":"SUMIFS('M&E'!$X$237:$X$436,'M&E'!$G$237:$G$436,$D38,'M&E'!$AB$237:$AB$436,\"<>0\")","v":{"v":0,"d":"0.00"}},{"$f":"SUMIFS('M&E'!$Y$237:$Y$436,'M&E'!$G$237:$G$436,$D38,'M&E'!$AB$237:$AB$436,\"<>0\")","v":{"v":0,"d":"0.00"}},{"$f":"IF(AND(Z38=0,AA38=0),\"\",IF(Z38>0,AA38/Z38,Y38))","v":""},{"$f":"Z38-AA38","v":{"v":0,"d":"0.00"}},{"$f":"SUMIFS('M&E'!$BV$237:$BV$436,'M&E'!$G$237:$G$436,$D38,'M&E'!$AB$237:$AB$436,\"<>0\")","v":{"v":6250,"d":"6,250.00"}},null,{"v":393750,"d":"393,750.00"},{"v":387500,"d":"387,500.00"},{"v":0.9841269841269841,"d":"98.41%"},{"v":6250,"d":"6,250.00"},{"v":6250,"d":"6,250.00"},null,null,{"$f":"IF(E38<>0,\"[\"&D38&\"] \" &E38,\"\")","v":"[2] Strengthening of civil society organizations conducting HIV activities"}]
[{"$nulls":3},3,{"$f":"Setup!K10","v":0},null,null,{"$f":"SUMIFS('M&E'!$L$237:$L$436,'M&E'!$G$237:$G$436,$D39,'M&E'!$AB$237:$AB$436,\"<>0\")","v":{"v":0,"d":"0.00"}},{"$f":"SUMIFS('M&E'!$M$237:$M$436,'M&E'!$G$237:$G$436,$D39,'M&E'!$AB$237:$AB$436,\"<>0\")","v":{"v":0,"d":"0.00"}},"",{"v":0,"d":"0.00"},{"$f":"SUMIFS('M&E'!$BJ$237:$BJ$436,'M&E'!$G$237:$G$436,$D39,'M&E'!$AB$237:$AB$436,\"<>0\")","v":{"v":0,"d":"0.00"}},null,{"$f":"SUMIFS('M&E'!$P$237:$P$436,'M&E'!$G$237:$G$436,$D39,'M&E'!$AB$237:$AB$436,\"<>0\")","v":{"v":0,"d":"0.00"}},{"$f":"SUMIFS('M&E'!$Q$237:$Q$436,'M&E'!$G$237:$G$436,$D39,'M&E'!$AB$237:$AB$436,\"<>0\")","v":{"v":0,"d":"0.00"}},"",{"v":0,"d":"0.00"},{"$f":"SUMIFS('M&E'!$BT$237:$BT$436,'M&E'!$G$237:$G$436,$D39,'M&E'!$AB$237:$AB$436,\"<>0\")","v":{"v":0,"d":"0.00"}},null,{"$f":"SUMIFS('M&E'!$T$237:$T$436,'M&E'!$G$237:$G$436,$D39,'M&E'!$AB$237:$AB$436,\"<>0\")","v":{"v":0,"d":"0.00"}},{"$f":"SUMIFS('M&E'!$U$237:$U$436,'M&E'!$G$237:$G$436,$D39,'M&E'!$AB$237:$AB$436,\"<>0\")","v":{"v":0,"d":"0.00"}},"",{"v":0,"d":"0.00"},{"$f":"SUMIFS('M&E'!$BU$237:$BU$436,'M&E'!$G$237:$G$436,$D39,'M&E'!$AB$237:$AB$436,\"<>0\")","v":{"v":0,"d":"0.00"}},null,{"$f":"SUMIFS('M&E'!$X$237:$X$436,'M&E'!$G$237:$G$436,$D39,'M&E'!$AB$237:$AB$436,\"<>0\")","v":{"v":0,"d":"0.00"}},{"$f":"SUMIFS('M&E'!$Y$237:$Y$436,'M&E'!$G$237:$G$436,$D39,'M&E'!$AB$237:$AB$436,\"<>0\")","v":{"v":0,"d":"0.00"}},"",{"v":0,"d":"0.00"},{"$f":"SUMIFS('M&E'!$BV$237:$BV$436,'M&E'!$G$237:$G$436,$D39,'M&E'!$AB$237:$AB$436,\"<>0\")","v":{"v":0,"d":"0.00"}},null,{"v":0,"d":"0.00"},{"v":0,"d":"0.00"},"",{"v":0,"d":"0.00"},{"v":0,"d":"0.00"},null,null,""]
[{"$nulls":3},4,{"$f":"Setup!K11","v":0},null,null,{"$f":"SUMIFS('M&E'!$L$237:$L$436,'M&E'!$G$237:$G$436,$D40,'M&E'!$AB$237:$AB$436,\"<>0\")","v":{"v":0,"d":"0.00"}},{"$f":"SUMIFS('M&E'!$M$237:$M$436,'M&E'!$G$237:$G$436,$D40,'M&E'!$AB$237:$AB$436,\"<>0\")","v":{"v":0,"d":"0.00"}},"",{"v":0,"d":"0.00"},{"$f":"SUMIFS('M&E'!$BJ$237:$BJ$436,'M&E'!$G$237:$G$436,$D40,'M&E'!$AB$237:$AB$436,\"<>0\")","v":{"v":0,"d":"0.00"}},null,{"$f":"SUMIFS('M&E'!$P$237:$P$436,'M&E'!$G$237:$G$436,$D40,'M&E'!$AB$237:$AB$436,\"<>0\")","v":{"v":0,"d":"0.00"}},{"$f":"SUMIFS('M&E'!$Q$237:$Q$436,'M&E'!$G$237:$G$436,$D40,'M&E'!$AB$237:$AB$436,\"<>0\")","v":{"v":0,"d":"0.00"}},"",{"v":0,"d":"0.00"},{"$f":"SUMIFS('M&E'!$BT$237:$BT$436,'M&E'!$G$237:$G$436,$D40,'M&E'!$AB$237:$AB$436,\"<>0\")","v":{"v":0,"d":"0.00"}},null,{"$f":"SUMIFS('M&E'!$T$237:$T$436,'M&E'!$G$237:$G$436,$D40,'M&E'!$AB$237:$AB$436,\"<>0\")","v":{"v":0,"d":"0.00"}},{"$f":"SUMIFS('M&E'!$U$237:$U$436,'M&E'!$G$237:$G$436,$D40,'M&E'!$AB$237:$AB$436,\"<>0\")","v":{"v":0,"d":"0.00"}},"",{"v":0,"d":"0.00"},{"$f":"SUMIFS('M&E'!$BU$237:$BU$436,'M&E'!$G$237:$G$436,$D40,'M&E'!$AB$237:$AB$436,\"<>0\")","v":{"v":0,"d":"0.00"}},null,{"$f":"SUMIFS('M&E'!$X$237:$X$436,'M&E'!$G$237:$G$436,$D40,'M&E'!$AB$237:$AB$436,\"<>0\")","v":{"v":0,"d":"0.00"}},{"$f":"SUMIFS('M&E'!$Y$237:$Y$436,'M&E'!$G$237:$G$436,$D40,'M&E'!$AB$237:$AB$436,\"<>0\")","v":{"v":0,"d":"0.00"}},"",{"v":0,"d":"0.00"},{"$f":"SUMIFS('M&E'!$BV$237:$BV$436,'M&E'!$G$237:$G$436,$D40,'M&E'!$AB$237:$AB$436,\"<>0\")","v":{"v":0,"d":"0.00"}},null,{"v":0,"d":"0.00"},{"v":0,"d":"0.00"},"",{"v":0,"d":"0.00"},{"v":0,"d":"0.00"},null,null,""]
[{"$nulls":3},5,{"$f":"Setup!K12","v":0},null,null,{"$f":"SUMIFS('M&E'!$L$237:$L$436,'M&E'!$G$237:$G$436,$D41,'M&E'!$AB$237:$AB$436,\"<>0\")","v":{"v":0,"d":"0.00"}},{"$f":"SUMIFS('M&E'!$M$237:$M$436,'M&E'!$G$237:$G$436,$D41,'M&E'!$AB$237:$AB$436,\"<>0\")","v":{"v":0,"d":"0.00"}},"",{"v":0,"d":"0.00"},{"$f":"SUMIFS('M&E'!$BJ$237:$BJ$436,'M&E'!$G$237:$G$436,$D41,'M&E'!$AB$237:$AB$436,\"<>0\")","v":{"v":0,"d":"0.00"}},null,{"$f":"SUMIFS('M&E'!$P$237:$P$436,'M&E'!$G$237:$G$436,$D41,'M&E'!$AB$237:$AB$436,\"<>0\")","v":{"v":0,"d":"0.00"}},{"$f":"SUMIFS('M&E'!$Q$237:$Q$436,'M&E'!$G$237:$G$436,$D41,'M&E'!$AB$237:$AB$436,\"<>0\")","v":{"v":0,"d":"0.00"}},"",{"v":0,"d":"0.00"},{"$f":"SUMIFS('M&E'!$BT$237:$BT$436,'M&E'!$G$237:$G$436,$D41,'M&E'!$AB$237:$AB$436,\"<>0\")","v":{"v":0,"d":"0.00"}},null,{"$f":"SUMIFS('M&E'!$T$237:$T$436,'M&E'!$G$237:$G$436,$D41,'M&E'!$AB$237:$AB$436,\"<>0\")","v":{"v":0,"d":"0.00"}},{"$f":"SUMIFS('M&E'!$U$237:$U$436,'M&E'!$G$237:$G$436,$D41,'M&E'!$AB$237:$AB$436,\"<>0\")","v":{"v":0,"d":"0.00"}},"",{"v":0,"d":"0.00"},{"$f":"SUMIFS('M&E'!$BU$237:$BU$436,'M&E'!$G$237:$G$436,$D41,'M&E'!$AB$237:$AB$436,\"<>0\")","v":{"v":0,"d":"0.00"}},null,{"$f":"SUMIFS('M&E'!$X$237:$X$436,'M&E'!$G$237:$G$436,$D41,'M&E'!$AB$237:$AB$436,\"<>0\")","v":{"v":0,"d":"0.00"}},{"$f":"SUMIFS('M&E'!$Y$237:$Y$436,'M&E'!$G$237:$G$436,$D41,'M&E'!$AB$237:$AB$436,\"<>0\")","v":{"v":0,"d":"0.00"}},"",{"v":0,"d":"0.00"},{"$f":"SUMIFS('M&E'!$BV$237:$BV$436,'M&E'!$G$237:$G$436,$D41,'M&E'!$AB$237:$AB$436,\"<>0\")","v":{"v":0,"d":"0.00"}},null,{"v":0,"d":"0.00"},{"v":0,"d":"0.00"},"",{"v":0,"d":"0.00"},{"v":0,"d":"0.00"},null,null,""]
[{"$nulls":3},6,{"$f":"Setup!K13","v":0},null,null,{"$f":"SUMIFS('M&E'!$L$237:$L$436,'M&E'!$G$237:$G$436,$D42,'M&E'!$AB$237:$AB$436,\"<>0\")","v":{"v":0,"d":"0.00"}},{"$f":"SUMIFS('M&E'!$M$237:$M$436,'M&E'!$G$237:$G$436,$D42,'M&E'!$AB$237:$AB$436,\"<>0\")","v":{"v":0,"d":"0.00"}},"",{"v":0,"d":"0.00"},{"$f":"SUMIFS('M&E'!$BJ$237:$BJ$436,'M&E'!$G$237:$G$436,$D42,'M&E'!$AB$237:$AB$436,\"<>0\")","v":{"v":0,"d":"0.00"}},null,{"$f":"SUMIFS('M&E'!$P$237:$P$436,'M&E'!$G$237:$G$436,$D42,'M&E'!$AB$237:$AB$436,\"<>0\")","v":{"v":0,"d":"0.00"}},{"$f":"SUMIFS('M&E'!$Q$237:$Q$436,'M&E'!$G$237:$G$436,$D42,'M&E'!$AB$237:$AB$436,\"<>0\")","v":{"v":0,"d":"0.00"}},"",{"v":0,"d":"0.00"},{"$f":"SUMIFS('M&E'!$BT$237:$BT$436,'M&E'!$G$237:$G$436,$D42,'M&E'!$AB$237:$AB$436,\"<>0\")","v":{"v":0,"d":"0.00"}},null,{"$f":"SUMIFS('M&E'!$T$237:$T$436,'M&E'!$G$237:$G$436,$D42,'M&E'!$AB$237:$AB$436,\"<>0\")","v":{"v":0,"d":"0.00"}},{"$f":"SUMIFS('M&E'!$U$237:$U$436,'M&E'!$G$237:$G$436,$D42,'M&E'!$AB$237:$AB$436,\"<>0\")","v":{"v":0,"d":"0.00"}},"",{"v":0,"d":"0.00"},{"$f":"SUMIFS('M&E'!$BU$237:$BU$436,'M&E'!$G$237:$G$436,$D42,'M&E'!$AB$237:$AB$436,\"<>0\")","v":{"v":0,"d":"0.00"}},null,{"$f":"SUMIFS('M&E'!$X$237:$X$436,'M&E'!$G$237:$G$436,$D42,'M&E'!$AB$237:$AB$436,\"<>0\")","v":{"v":0,"d":"0.00"}},{"$f":"SUMIFS('M&E'!$Y$237:$Y$436,'M&E'!$G$237:$G$436,$D42,'M&E'!$AB$237:$AB$436,\"<>0\")","v":{"v":0,"d":"0.00"}},"",{"v":0,"d":"0.00"},{"$f":"SUMIFS('M&E'!$BV$237:$BV$436,'M&E'!$G$237:$G$436,$D42,'M&E'!$AB$237:$AB$436,\"<>0\")","v":{"v":0,"d":"0.00"}},null,{"v":0,"d":"0.00"},{"v":0,"d":"0.00"},"",{"v":0,"d":"0.00"},{"v":0,"d":"0.00"},null,null,""]
[{"$nulls":3},7,{"$f":"Setup!K14","v":0},null,null,{"$f":"SUMIFS('M&E'!$L$237:$L$436,'M&E'!$G$237:$G$436,$D43,'M&E'!$AB$237:$AB$436,\"<>0\")","v":{"v":0,"d":"0.00"}},{"$f":"SUMIFS('M&E'!$M$237:$M$436,'M&E'!$G$237:$G$436,$D43,'M&E'!$AB$237:$AB$436,\"<>0\")","v":{"v":0,"d":"0.00"}},"",{"v":0,"d":"0.00"},{"$f":"SUMIFS('M&E'!$BJ$237:$BJ$436,'M&E'!$G$237:$G$436,$D43,'M&E'!$AB$237:$AB$436,\"<>0\")","v":{"v":0,"d":"0.00"}},null,{"$f":"SUMIFS('M&E'!$P$237:$P$436,'M&E'!$G$237:$G$436,$D43,'M&E'!$AB$237:$AB$436,\"<>0\")","v":{"v":0,"d":"0.00"}},{"$f":"SUMIFS('M&E'!$Q$237:$Q$436,'M&E'!$G$237:$G$436,$D43,'M&E'!$AB$237:$AB$436,\"<>0\")","v":{"v":0,"d":"0.00"}},"",{"v":0,"d":"0.00"},{"$f":"SUMIFS('M&E'!$BT$237:$BT$436,'M&E'!$G$237:$G$436,$D43,'M&E'!$AB$237:$AB$436,\"<>0\")","v":{"v":0,"d":"0.00"}},null,{"$f":"SUMIFS('M&E'!$T$237:$T$436,'M&E'!$G$237:$G$436,$D43,'M&E'!$AB$237:$AB$436,\"<>0\")","v":{"v":0,"d":"0.00"}},{"$f":"SUMIFS('M&E'!$U$237:$U$436,'M&E'!$G$237:$G$436,$D43,'M&E'!$AB$237:$AB$436,\"<>0\")","v":{"v":0,"d":"0.00"}},"",{"v":0,"d":"0.00"},{"$f":"SUMIFS('M&E'!$BU$237:$BU$436,'M&E'!$G$237:$G$436,$D43,'M&E'!$AB$237:$AB$436,\"<>0\")","v":{"v":0,"d":"0.00"}},null,{"$f":"SUMIFS('M&E'!$X$237:$X$436,'M&E'!$G$237:$G$436,$D43,'M&E'!$AB$237:$AB$436,\"<>0\")","v":{"v":0,"d":"0.00"}},{"$f":"SUMIFS('M&E'!$Y$237:$Y$436,'M&E'!$G$237:$G$436,$D43,'M&E'!$AB$237:$AB$436,\"<>0\")","v":{"v":0,"d":"0.00"}},"",{"v":0,"d":"0.00"},{"$f":"SUMIFS('M&E'!$BV$237:$BV$436,'M&E'!$G$237:$G$436,$D43,'M&E'!$AB$237:$AB$436,\"<>0\")","v":{"v":0,"d":"0.00"}},null,{"v":0,"d":"0.00"},{"v":0,"d":"0.00"},"",{"v":0,"d":"0.00"},{"v":0,"d":"0.00"},null,null,""]
[{"$nulls":3},8,{"$f":"Setup!K15","v":0},null,null,{"$f":"SUMIFS('M&E'!$L$237:$L$436,'M&E'!$G$237:$G$436,$D44,'M&E'!$AB$237:$AB$436,\"<>0\")","v":{"v":0,"d":"0.00"}},{"$f":"SUMIFS('M&E'!$M$237:$M$436,'M&E'!$G$237:$G$436,$D44,'M&E'!$AB$237:$AB$436,\"<>0\")","v":{"v":0,"d":"0.00"}},"",{"v":0,"d":"0.00"},{"$f":"SUMIFS('M&E'!$BJ$237:$BJ$436,'M&E'!$G$237:$G$436,$D44,'M&E'!$AB$237:$AB$436,\"<>0\")","v":{"v":0,"d":"0.00"}},null,{"$f":"SUMIFS('M&E'!$P$237:$P$436,'M&E'!$G$237:$G$436,$D44,'M&E'!$AB$237:$AB$436,\"<>0\")","v":{"v":0,"d":"0.00"}},{"$f":"SUMIFS('M&E'!$Q$237:$Q$436,'M&E'!$G$237:$G$436,$D44,'M&E'!$AB$237:$AB$436,\"<>0\")","v":{"v":0,"d":"0.00"}},"",{"v":0,"d":"0.00"},{"$f":"SUMIFS('M&E'!$BT$237:$BT$436,'M&E'!$G$237:$G$436,$D44,'M&E'!$AB$237:$AB$436,\"<>0\")","v":{"v":0,"d":"0.00"}},null,{"$f":"SUMIFS('M&E'!$T$237:$T$436,'M&E'!$G$237:$G$436,$D44,'M&E'!$AB$237:$AB$436,\"<>0\")","v":{"v":0,"d":"0.00"}},{"$f":"SUMIFS('M&E'!$U$237:$U$436,'M&E'!$G$237:$G$436,$D44,'M&E'!$AB$237:$AB$436,\"<>0\")","v":{"v":0,"d":"0.00"}},"",{"v":0,"d":"0.00"},{"$f":"SUMIFS('M&E'!$BU$237:$BU$436,'M&E'!$G$237:$G$436,$D44,'M&E'!$AB$237:$AB$436,\"<>0\")","v":{"v":0,"d":"0.00"}},null,{"$f":"SUMIFS('M&E'!$X$237:$X$436,'M&E'!$G$237:$G$436,$D44,'M&E'!$AB$237:$AB$436,\"<>0\")","v":{"v":0,"d":"0.00"}},{"$f":"SUMIFS('M&E'!$Y$237:$Y$436,'M&E'!$G$237:$G$436,$D44,'M&E'!$AB$237:$AB$436,\"<>0\")","v":{"v":0,"d":"0.00"}},"",{"v":0,"d":"0.00"},{"$f":"SUMIFS('M&E'!$BV$237:$BV$436,'M&E'!$G$237:$G$436,$D44,'M&E'!$AB$237:$AB$436,\"<>0\")","v":{"v":0,"d":"0.00"}},null,{"v":0,"d":"0.00"},{"v":0,"d":"0.00"},"",{"v":0,"d":"0.00"},{"v":0,"d":"0.00"},null,null,""]
[{"$nulls":3},9,{"$f":"Setup!K16","v":0},null,null,{"$f":"SUMIFS('M&E'!$L$237:$L$436,'M&E'!$G$237:$G$436,$D45,'M&E'!$AB$237:$AB$436,\"<>0\")","v":{"v":0,"d":"0.00"}},{"$f":"SUMIFS('M&E'!$M$237:$M$436,'M&E'!$G$237:$G$436,$D45,'M&E'!$AB$237:$AB$436,\"<>0\")","v":{"v":0,"d":"0.00"}},"",{"v":0,"d":"0.00"},{"$f":"SUMIFS('M&E'!$BJ$237:$BJ$436,'M&E'!$G$237:$G$436,$D45,'M&E'!$AB$237:$AB$436,\"<>0\")","v":{"v":0,"d":"0.00"}},null,{"$f":"SUMIFS('M&E'!$P$237:$P$436,'M&E'!$G$237:$G$436,$D45,'M&E'!$AB$237:$AB$436,\"<>0\")","v":{"v":0,"d":"0.00"}},{"$f":"SUMIFS('M&E'!$Q$237:$Q$436,'M&E'!$G$237:$G$436,$D45,'M&E'!$AB$237:$AB$436,\"<>0\")","v":{"v":0,"d":"0.00"}},"",{"v":0,"d":"0.00"},{"$f":"SUMIFS('M&E'!$BT$237:$BT$436,'M&E'!$G$237:$G$436,$D45,'M&E'!$AB$237:$AB$436,\"<>0\")","v":{"v":0,"d":"0.00"}},null,{"$f":"SUMIFS('M&E'!$T$237:$T$436,'M&E'!$G$237:$G$436,$D45,'M&E'!$AB$237:$AB$436,\"<>0\")","v":{"v":0,"d":"0.00"}},{"$f":"SUMIFS('M&E'!$U$237:$U$436,'M&E'!$G$237:$G$436,$D45,'M&E'!$AB$237:$AB$436,\"<>0\")","v":{"v":0,"d":"0.00"}},"",{"v":0,"d":"0.00"},{"$f":"SUMIFS('M&E'!$BU$237:$BU$436,'M&E'!$G$237:$G$436,$D45,'M&E'!$AB$237:$AB$436,\"<>0\")","v":{"v":0,"d":"0.00"}},null,{"$f":"SUMIFS('M&E'!$X$237:$X$436,'M&E'!$G$237:$G$436,$D45,'M&E'!$AB$237:$AB$436,\"<>0\")","v":{"v":0,"d":"0.00"}},{"$f":"SUMIFS('M&E'!$Y$237:$Y$436,'M&E'!$G$237:$G$436,$D45,'M&E'!$AB$237:$AB$436,\"<>0\")","v":{"v":0,"d":"0.00"}},"",{"v":0,"d":"0.00"},{"$f":"SUMIFS('M&E'!$BV$237:$BV$436,'M&E'!$G$237:$G$436,$D45,'M&E'!$AB$237:$AB$436,\"<>0\")","v":{"v":0,"d":"0.00"}},null,{"v":0,"d":"0.00"},{"v":0,"d":"0.00"},"",{"v":0,"d":"0.00"},{"v":0,"d":"0.00"},null,null,""]
[{"$nulls":3},10,{"$f":"Setup!K17","v":0},null,null,{"$f":"SUMIFS('M&E'!$L$237:$L$436,'M&E'!$G$237:$G$436,$D46,'M&E'!$AB$237:$AB$436,\"<>0\")","v":{"v":0,"d":"0.00"}},{"$f":"SUMIFS('M&E'!$M$237:$M$436,'M&E'!$G$237:$G$436,$D46,'M&E'!$AB$237:$AB$436,\"<>0\")","v":{"v":0,"d":"0.00"}},"",{"v":0,"d":"0.00"},{"$f":"SUMIFS('M&E'!$BJ$237:$BJ$436,'M&E'!$G$237:$G$436,$D46,'M&E'!$AB$237:$AB$436,\"<>0\")","v":{"v":0,"d":"0.00"}},null,{"$f":"SUMIFS('M&E'!$P$237:$P$436,'M&E'!$G$237:$G$436,$D46,'M&E'!$AB$237:$AB$436,\"<>0\")","v":{"v":0,"d":"0.00"}},{"$f":"SUMIFS('M&E'!$Q$237:$Q$436,'M&E'!$G$237:$G$436,$D46,'M&E'!$AB$237:$AB$436,\"<>0\")","v":{"v":0,"d":"0.00"}},"",{"v":0,"d":"0.00"},{"$f":"SUMIFS('M&E'!$BT$237:$BT$436,'M&E'!$G$237:$G$436,$D46,'M&E'!$AB$237:$AB$436,\"<>0\")","v":{"v":0,"d":"0.00"}},null,{"$f":"SUMIFS('M&E'!$T$237:$T$436,'M&E'!$G$237:$G$436,$D46,'M&E'!$AB$237:$AB$436,\"<>0\")","v":{"v":0,"d":"0.00"}},{"$f":"SUMIFS('M&E'!$U$237:$U$436,'M&E'!$G$237:$G$436,$D46,'M&E'!$AB$237:$AB$436,\"<>0\")","v":{"v":0,"d":"0.00"}},"",{"v":0,"d":"0.00"},{"$f":"SUMIFS('M&E'!$BU$237:$BU$436,'M&E'!$G$237:$G$436,$D46,'M&E'!$AB$237:$AB$436,\"<>0\")","v":{"v":0,"d":"0.00"}},null,{"$f":"SUMIFS('M&E'!$X$237:$X$436,'M&E'!$G$237:$G$436,$D46,'M&E'!$AB$237:$AB$436,\"<>0\")","v":{"v":0,"d":"0.00"}},{"$f":"SUMIFS('M&E'!$Y$237:$Y$436,'M&E'!$G$237:$G$436,$D46,'M&E'!$AB$237:$AB$436,\"<>0\")","v":{"v":0,"d":"0.00"}},"",{"v":0,"d":"0.00"},{"$f":"SUMIFS('M&E'!$BV$237:$BV$436,'M&E'!$G$237:$G$436,$D46,'M&E'!$AB$237:$AB$436,\"<>0\")","v":{"v":0,"d":"0.00"}},null,{"v":0,"d":"0.00"},{"v":0,"d":"0.00"},"",{"v":0,"d":"0.00"},{"v":0,"d":"0.00"},null,null,""]
[{"$nulls":3},11,{"$f":"Setup!K18","v":0},null,null,{"$f":"SUMIFS('M&E'!$L$237:$L$436,'M&E'!$G$237:$G$436,$D47,'M&E'!$AB$237:$AB$436,\"<>0\")","v":{"v":0,"d":"0.00"}},{"$f":"SUMIFS('M&E'!$M$237:$M$436,'M&E'!$G$237:$G$436,$D47,'M&E'!$AB$237:$AB$436,\"<>0\")","v":{"v":0,"d":"0.00"}},"",{"v":0,"d":"0.00"},{"$f":"SUMIFS('M&E'!$BJ$237:$BJ$436,'M&E'!$G$237:$G$436,$D47,'M&E'!$AB$237:$AB$436,\"<>0\")","v":{"v":0,"d":"0.00"}},null,{"$f":"SUMIFS('M&E'!$P$237:$P$436,'M&E'!$G$237:$G$436,$D47,'M&E'!$AB$237:$AB$436,\"<>0\")","v":{"v":0,"d":"0.00"}},{"$f":"SUMIFS('M&E'!$Q$237:$Q$436,'M&E'!$G$237:$G$436,$D47,'M&E'!$AB$237:$AB$436,\"<>0\")","v":{"v":0,"d":"0.00"}},"",{"v":0,"d":"0.00"},{"$f":"SUMIFS('M&E'!$BT$237:$BT$436,'M&E'!$G$237:$G$436,$D47,'M&E'!$AB$237:$AB$436,\"<>0\")","v":{"v":0,"d":"0.00"}},null,{"$f":"SUMIFS('M&E'!$T$237:$T$436,'M&E'!$G$237:$G$436,$D47,'M&E'!$AB$237:$AB$436,\"<>0\")","v":{"v":0,"d":"0.00"}},{"$f":"SUMIFS('M&E'!$U$237:$U$436,'M&E'!$G$237:$G$436,$D47,'M&E'!$AB$237:$AB$436,\"<>0\")","v":{"v":0,"d":"0.00"}},"",{"v":0,"d":"0.00"},{"$f":"SUMIFS('M&E'!$BU$237:$BU$436,'M&E'!$G$237:$G$436,$D47,'M&E'!$AB$237:$AB$436,\"<>0\")","v":{"v":0,"d":"0.00"}},null,{"$f":"SUMIFS('M&E'!$X$237:$X$436,'M&E'!$G$237:$G$436,$D47,'M&E'!$AB$237:$AB$436,\"<>0\")","v":{"v":0,"d":"0.00"}},{"$f":"SUMIFS('M&E'!$Y$237:$Y$436,'M&E'!$G$237:$G$436,$D47,'M&E'!$AB$237:$AB$436,\"<>0\")","v":{"v":0,"d":"0.00"}},"",{"v":0,"d":"0.00"},{"$f":"SUMIFS('M&E'!$BV$237:$BV$436,'M&E'!$G$237:$G$436,$D47,'M&E'!$AB$237:$AB$436,\"<>0\")","v":{"v":0,"d":"0.00"}},null,{"v":0,"d":"0.00"},{"v":0,"d":"0.00"},"",{"v":0,"d":"0.00"},{"v":0,"d":"0.00"},null,null,""]
[{"$nulls":3},12,{"$f":"Setup!K19","v":0},null,null,{"$f":"SUMIFS('M&E'!$L$237:$L$436,'M&E'!$G$237:$G$436,$D48,'M&E'!$AB$237:$AB$436,\"<>0\")","v":{"v":0,"d":"0.00"}},{"$f":"SUMIFS('M&E'!$M$237:$M$436,'M&E'!$G$237:$G$436,$D48,'M&E'!$AB$237:$AB$436,\"<>0\")","v":{"v":0,"d":"0.00"}},"",{"$f":"H48-I48","v":{"v":0,"d":"0.00"}},{"$f":"SUMIFS('M&E'!$BJ$237:$BJ$436,'M&E'!$G$237:$G$436,$D48,'M&E'!$AB$237:$AB$436,\"<>0\")","v":{"v":0,"d":"0.00"}},null,{"$f":"SUMIFS('M&E'!$P$237:$P$436,'M&E'!$G$237:$G$436,$D48,'M&E'!$AB$237:$AB$436,\"<>0\")","v":{"v":0,"d":"0.00"}},{"$f":"SUMIFS('M&E'!$Q$237:$Q$436,'M&E'!$G$237:$G$436,$D48,'M&E'!$AB$237:$AB$436,\"<>0\")","v":{"v":0,"d":"0.00"}},"",{"$f":"N48-O48","v":{"v":0,"d":"0.00"}},{"$f":"SUMIFS('M&E'!$BT$237:$BT$436,'M&E'!$G$237:$G$436,$D48,'M&E'!$AB$237:$AB$436,\"<>0\")","v":{"v":0,"d":"0.00"}},null,{"$f":"SUMIFS('M&E'!$T$237:$T$436,'M&E'!$G$237:$G$436,$D48,'M&E'!$AB$237:$AB$436,\"<>0\")","v":{"v":0,"d":"0.00"}},{"$f":"SUMIFS('M&E'!$U$237:$U$436,'M&E'!$G$237:$G$436,$D48,'M&E'!$AB$237:$AB$436,\"<>0\")","v":{"v":0,"d":"0.00"}},"",{"$f":"T48-U48","v":{"v":0,"d":"0.00"}},{"$f":"SUMIFS('M&E'!$BU$237:$BU$436,'M&E'!$G$237:$G$436,$D48,'M&E'!$AB$237:$AB$436,\"<>0\")","v":{"v":0,"d":"0.00"}},null,{"$f":"SUMIFS('M&E'!$X$237:$X$436,'M&E'!$G$237:$G$436,$D48,'M&E'!$AB$237:$AB$436,\"<>0\")","v":{"v":0,"d":"0.00"}},{"$f":"SUMIFS('M&E'!$Y$237:$Y$436,'M&E'!$G$237:$G$436,$D48,'M&E'!$AB$237:$AB$436,\"<>0\")","v":{"v":0,"d":"0.00"}},"",{"$f":"Z48-AA48","v":{"v":0,"d":"0.00"}},{"$f":"SUMIFS('M&E'!$BV$237:$BV$436,'M&E'!$G$237:$G$436,$D48,'M&E'!$AB$237:$AB$436,\"<>0\")","v":{"v":0,"d":"0.00"}},null,{"$f":"H48+N48+T48+Z48","v":{"v":0,"d":"0.00"}},{"$f":"I48+O48+U48+AA48","v":{"v":0,"d":"0.00"}},"",{"$f":"K48+Q48+W48+AC48","v":{"v":0,"d":"0.00"}},{"$f":"AD48","v":{"v":0,"d":"0.00"}},null,null,""]
[{"$nulls":3},13,{"$f":"Setup!K20","v":0},null,null,{"$f":"SUMIFS('M&E'!$L$237:$L$436,'M&E'!$G$237:$G$436,$D49,'M&E'!$AB$237:$AB$436,\"<>0\")","v":{"v":0,"d":"0.00"}},{"$f":"SUMIFS('M&E'!$M$237:$M$436,'M&E'!$G$237:$G$436,$D49,'M&E'!$AB$237:$AB$436,\"<>0\")","v":{"v":0,"d":"0.00"}},"",{"v":0,"d":"0.00"},{"$f":"SUMIFS('M&E'!$BJ$237:$BJ$436,'M&E'!$G$237:$G$436,$D49,'M&E'!$AB$237:$AB$436,\"<>0\")","v":{"v":0,"d":"0.00"}},null,{"$f":"SUMIFS('M&E'!$P$237:$P$436,'M&E'!$G$237:$G$436,$D49,'M&E'!$AB$237:$AB$436,\"<>0\")","v":{"v":0,"d":"0.00"}},{"$f":"SUMIFS('M&E'!$Q$237:$Q$436,'M&E'!$G$237:$G$436,$D49,'M&E'!$AB$237:$AB$436,\"<>0\")","v":{"v":0,"d":"0.00"}},"",{"v":0,"d":"0.00"},{"$f":"SUMIFS('M&E'!$BT$237:$BT$436,'M&E'!$G$237:$G$436,$D49,'M&E'!$AB$237:$AB$436,\"<>0\")","v":{"v":0,"d":"0.00"}},null,{"$f":"SUMIFS('M&E'!$T$237:$T$436,'M&E'!$G$237:$G$436,$D49,'M&E'!$AB$237:$AB$436,\"<>0\")","v":{"v":0,"d":"0.00"}},{"$f":"SUMIFS('M&E'!$U$237:$U$436,'M&E'!$G$237:$G$436,$D49,'M&E'!$AB$237:$AB$436,\"<>0\")","v":{"v":0,"d":"0.00"}},"",{"v":0,"d":"0.00"},{"$f":"SUMIFS('M&E'!$BU$237:$BU$436,'M&E'!$G$237:$G$436,$D49,'M&E'!$AB$237:$AB$436,\"<>0\")","v":{"v":0,"d":"0.00"}},null,{"$f":"SUMIFS('M&E'!$X$237:$X$436,'M&E'!$G$237:$G$436,$D49,'M&E'!$AB$237:$AB$436,\"<>0\")","v":{"v":0,"d":"0.00"}},{"$f":"SUMIFS('M&E'!$Y$237:$Y$436,'M&E'!$G$237:$G$436,$D49,'M&E'!$AB$237:$AB$436,\"<>0\")","v":{"v":0,"d":"0.00"}},"",{"v":0,"d":"0.00"},{"$f":"SUMIFS('M&E'!$BV$237:$BV$436,'M&E'!$G$237:$G$436,$D49,'M&E'!$AB$237:$AB$436,\"<>0\")","v":{"v":0,"d":"0.00"}},null,{"v":0,"d":"0.00"},{"v":0,"d":"0.00"},"",{"v":0,"d":"0.00"},{"v":0,"d":"0.00"},null,null,""]
[{"$nulls":3},14,{"$f":"Setup!K21","v":0},null,null,{"$f":"SUMIFS('M&E'!$L$237:$L$436,'M&E'!$G$237:$G$436,$D50,'M&E'!$AB$237:$AB$436,\"<>0\")","v":{"v":0,"d":"0.00"}},{"$f":"SUMIFS('M&E'!$M$237:$M$436,'M&E'!$G$237:$G$436,$D50,'M&E'!$AB$237:$AB$436,\"<>0\")","v":{"v":0,"d":"0.00"}},"",{"v":0,"d":"0.00"},{"$f":"SUMIFS('M&E'!$BJ$237:$BJ$436,'M&E'!$G$237:$G$436,$D50,'M&E'!$AB$237:$AB$436,\"<>0\")","v":{"v":0,"d":"0.00"}},null,{"$f":"SUMIFS('M&E'!$P$237:$P$436,'M&E'!$G$237:$G$436,$D50,'M&E'!$AB$237:$AB$436,\"<>0\")","v":{"v":0,"d":"0.00"}},{"$f":"SUMIFS('M&E'!$Q$237:$Q$436,'M&E'!$G$237:$G$436,$D50,'M&E'!$AB$237:$AB$436,\"<>0\")","v":{"v":0,"d":"0.00"}},"",{"v":0,"d":"0.00"},{"$f":"SUMIFS('M&E'!$BT$237:$BT$436,'M&E'!$G$237:$G$436,$D50,'M&E'!$AB$237:$AB$436,\"<>0\")","v":{"v":0,"d":"0.00"}},null,{"$f":"SUMIFS('M&E'!$T$237:$T$436,'M&E'!$G$237:$G$436,$D50,'M&E'!$AB$237:$AB$436,\"<>0\")","v":{"v":0,"d":"0.00"}},{"$f":"SUMIFS('M&E'!$U$237:$U$436,'M&E'!$G$237:$G$436,$D50,'M&E'!$AB$237:$AB$436,\"<>0\")","v":{"v":0,"d":"0.00"}},"",{"v":0,"d":"0.00"},{"$f":"SUMIFS('M&E'!$BU$237:$BU$436,'M&E'!$G$237:$G$436,$D50,'M&E'!$AB$237:$AB$436,\"<>0\")","v":{"v":0,"d":"0.00"}},null,{"$f":"SUMIFS('M&E'!$X$237:$X$436,'M&E'!$G$237:$G$436,$D50,'M&E'!$AB$237:$AB$436,\"<>0\")","v":{"v":0,"d":"0.00"}},{"$f":"SUMIFS('M&E'!$Y$237:$Y$436,'M&E'!$G$237:$G$436,$D50,'M&E'!$AB$237:$AB$436,\"<>0\")","v":{"v":0,"d":"0.00"}},"",{"v":0,"d":"0.00"},{"$f":"SUMIFS('M&E'!$BV$237:$BV$436,'M&E'!$G$237:$G$436,$D50,'M&E'!$AB$237:$AB$436,\"<>0\")","v":{"v":0,"d":"0.00"}},null,{"v":0,"d":"0.00"},{"v":0,"d":"0.00"},"",{"v":0,"d":"0.00"},{"v":0,"d":"0.00"},null,null,""]
[{"$nulls":3},15,{"$f":"Setup!K22","v":0},null,null,{"$f":"SUMIFS('M&E'!$L$237:$L$436,'M&E'!$G$237:$G$436,$D51,'M&E'!$AB$237:$AB$436,\"<>0\")","v":{"v":0,"d":"0.00"}},{"$f":"SUMIFS('M&E'!$M$237:$M$436,'M&E'!$G$237:$G$436,$D51,'M&E'!$AB$237:$AB$436,\"<>0\")","v":{"v":0,"d":"0.00"}},"",{"v":0,"d":"0.00"},{"$f":"SUMIFS('M&E'!$BJ$237:$BJ$436,'M&E'!$G$237:$G$436,$D51,'M&E'!$AB$237:$AB$436,\"<>0\")","v":{"v":0,"d":"0.00"}},null,{"$f":"SUMIFS('M&E'!$P$237:$P$436,'M&E'!$G$237:$G$436,$D51,'M&E'!$AB$237:$AB$436,\"<>0\")","v":{"v":0,"d":"0.00"}},{"$f":"SUMIFS('M&E'!$Q$237:$Q$436,'M&E'!$G$237:$G$436,$D51,'M&E'!$AB$237:$AB$436,\"<>0\")","v":{"v":0,"d":"0.00"}},"",{"v":0,"d":"0.00"},{"$f":"SUMIFS('M&E'!$BT$237:$BT$436,'M&E'!$G$237:$G$436,$D51,'M&E'!$AB$237:$AB$436,\"<>0\")","v":{"v":0,"d":"0.00"}},null,{"$f":"SUMIFS('M&E'!$T$237:$T$436,'M&E'!$G$237:$G$436,$D51,'M&E'!$AB$237:$AB$436,\"<>0\")","v":{"v":0,"d":"0.00"}},{"$f":"SUMIFS('M&E'!$U$237:$U$436,'M&E'!$G$237:$G$436,$D51,'M&E'!$AB$237:$AB$436,\"<>0\")","v":{"v":0,"d":"0.00"}},"",{"v":0,"d":"0.00"},{"$f":"SUMIFS('M&E'!$BU$237:$BU$436,'M&E'!$G$237:$G$436,$D51,'M&E'!$AB$237:$AB$436,\"<>0\")","v":{"v":0,"d":"0.00"}},null,{"$f":"SUMIFS('M&E'!$X$237:$X$436,'M&E'!$G$237:$G$436,$D51,'M&E'!$AB$237:$AB$436,\"<>0\")","v":{"v":0,"d":"0.00"}},{"$f":"SUMIFS('M&E'!$Y$237:$Y$436,'M&E'!$G$237:$G$436,$D51,'M&E'!$AB$237:$AB$436,\"<>0\")","v":{"v":0,"d":"0.00"}},"",{"v":0,"d":"0.00"},{"$f":"SUMIFS('M&E'!$BV$237:$BV$436,'M&E'!$G$237:$G$436,$D51,'M&E'!$AB$237:$AB$436,\"<>0\")","v":{"v":0,"d":"0.00"}},null,{"v":0,"d":"0.00"},{"v":0,"d":"0.00"},"",{"v":0,"d":"0.00"},{"v":0,"d":"0.00"},null,null,""]
[{"$nulls":3},16,{"$f":"Setup!K23","v":0},null,null,{"$f":"SUMIFS('M&E'!$L$237:$L$436,'M&E'!$G$237:$G$436,$D52,'M&E'!$AB$237:$AB$436,\"<>0\")","v":{"v":0,"d":"0.00"}},{"$f":"SUMIFS('M&E'!$M$237:$M$436,'M&E'!$G$237:$G$436,$D52,'M&E'!$AB$237:$AB$436,\"<>0\")","v":{"v":0,"d":"0.00"}},"",{"v":0,"d":"0.00"},{"$f":"SUMIFS('M&E'!$BJ$237:$BJ$436,'M&E'!$G$237:$G$436,$D52,'M&E'!$AB$237:$AB$436,\"<>0\")","v":{"v":0,"d":"0.00"}},null,{"$f":"SUMIFS('M&E'!$P$237:$P$436,'M&E'!$G$237:$G$436,$D52,'M&E'!$AB$237:$AB$436,\"<>0\")","v":{"v":0,"d":"0.00"}},{"$f":"SUMIFS('M&E'!$Q$237:$Q$436,'M&E'!$G$237:$G$436,$D52,'M&E'!$AB$237:$AB$436,\"<>0\")","v":{"v":0,"d":"0.00"}},"",{"v":0,"d":"0.00"},{"$f":"SUMIFS('M&E'!$BT$237:$BT$436,'M&E'!$G$237:$G$436,$D52,'M&E'!$AB$237:$AB$436,\"<>0\")","v":{"v":0,"d":"0.00"}},null,{"$f":"SUMIFS('M&E'!$T$237:$T$436,'M&E'!$G$237:$G$436,$D52,'M&E'!$AB$237:$AB$436,\"<>0\")","v":{"v":0,"d":"0.00"}},{"$f":"SUMIFS('M&E'!$U$237:$U$436,'M&E'!$G$237:$G$436,$D52,'M&E'!$AB$237:$AB$436,\"<>0\")","v":{"v":0,"d":"0.00"}},"",{"v":0,"d":"0.00"},{"$f":"SUMIFS('M&E'!$BU$237:$BU$436,'M&E'!$G$237:$G$436,$D52,'M&E'!$AB$237:$AB$436,\"<>0\")","v":{"v":0,"d":"0.00"}},null,{"$f":"SUMIFS('M&E'!$X$237:$X$436,'M&E'!$G$237:$G$436,$D52,'M&E'!$AB$237:$AB$436,\"<>0\")","v":{"v":0,"d":"0.00"}},{"$f":"SUMIFS('M&E'!$Y$237:$Y$436,'M&E'!$G$237:$G$436,$D52,'M&E'!$AB$237:$AB$436,\"<>0\")","v":{"v":0,"d":"0.00"}},"",{"v":0,"d":"0.00"},{"$f":"SUMIFS('M&E'!$BV$237:$BV$436,'M&E'!$G$237:$G$436,$D52,'M&E'!$AB$237:$AB$436,\"<>0\")","v":{"v":0,"d":"0.00"}},null,{"v":0,"d":"0.00"},{"v":0,"d":"0.00"},"",{"v":0,"d":"0.00"},{"v":0,"d":"0.00"},null,null,""]
[{"$nulls":3},{"$f":"Translations!$A$109","v":"Totals"},{"$nulls":3},{"$f":"SUM(H37:H52)","v":{"v":504075,"d":"504,075.00"}},{"$f":"SUM(I37:I52)","v":{"v":494925,"d":"494,925.00"}},{"v":0.9818479392947478,"d":"98.18%"},{"$f":"SUM(K37:K52)","v":{"v":9150,"d":"9,150.00"}},{"v":0,"d":"0.00"},null,{"$f":"SUM(N37:N52)","v":{"v":615300,"d":"615,300.00"}},{"$f":"SUM(O37:O52)","v":{"v":617200,"d":"617,200.00"}},{"v":1.0030879245896311,"d":"100.31%"},{"$f":"SUM(Q37:Q52)","v":{"v":-1900,"d":"-1,900.00"}},{"v":9150,"d":"9,150.00"},null,{"$f":"SUM(T37:T52)","v":{"v":0,"d":"0.00"}},{"$f":"SUM(U37:U52)","v":{"v":0,"d":"0.00"}},"",{"$f":"SUM(W37:W52)","v":{"v":0,"d":"0.00"}},{"v":7250,"d":"7,250.00"},null,{"$f":"SUM(Z37:Z52)","v":{"v":0,"d":"0.00"}},{"$f":"SUM(AA37:AA52)","v":{"v":0,"d":"0.00"}},"",{"$f":"SUM(AC37:AC52)","v":{"v":0,"d":"0.00"}},{"v":7250,"d":"7,250.00"},null,{"$f":"SUM(AF37:AF52)","v":{"v":1119375,"d":"1,119,375.00"}},{"$f":"SUM(AG37:AG52)","v":{"v":1112125,"d":"1,112,125.00"}},{"v":0.9935231714126187,"d":"99.35%"},{"$f":"SUM(AI37:AI52)","v":{"v":7250,"d":"7,250.00"}},{"v":7250,"d":"7,250.00"}]
[]
[]
[{"$nulls":3},{"$f":"Translations!A97","v":"All the programmatic indicators"},{"$nulls":3},{"$f":"Translations!$A$48","v":"1st Quarter"},{"$nulls":5},{"$f":"Translations!$A$49","v":"2nd Quarter"},{"$nulls":5},{"$f":"Translations!$A$50","v":"3rd Quarter"},{"$nulls":5},{"$f":"Translations!$A$51","v":"4th Quarter"},{"$nulls":5},{"$f":"Translations!A$125","v":"Total budget"}]
[{"$nulls":7},{"$f":"Translations!$A$95","v":"Budget"},{"$f":"Translations!$A$357","v":"Expenditure"},"%",{"$f":"Translations!$A$123","v":"Variation"},{"$f":"Translations!$A$136","v":"Balance from previous period"},null,{"$f":"Translations!$A$95","v":"Budget"},{"$f":"Translations!$A$357","v":"Expenditure"},"%",{"$f":"Translations!$A$123","v":"Variation"},{"$f":"Translations!$A$136","v":"Balance from previous period"},null,{"$f":"Translations!$A$95","v":"Budget"},{"$f":"Translations!$A$357","v":"Expenditure"},"%",{"$f":"Translations!$A$123","v":"Variation"},{"$f":"Translations!$A$136","v":"Balance from previous period"},null,{"$f":"Translations!$A$95","v":"Budget"},{"$f":"Translations!$A$357","v":"Expenditure"},"%",{"$f":"Translations!$A$123","v":"Variation"},{"$f":"Translations!$A$136","v":"Balance from previous period"},null,{"$f":"Translations!$A$95","v":"Budget"},{"$f":"Translations!$A$357","v":"Expenditure"},"%",{"$f":"Translations!$A$123","v":"Variation"},{"$f":"Translations!$A$136","v":"Balance from previous period"}]
[{"$nulls":3},{"$f":"Lists!G5","v":"Pr68"},{"$f":"Lists!F5","v":"[Pr68] # PLHIV that initiated ARV with CD4 count <200 Target"},null,null,{"$f":"SUMIFS('M&E'!$L$237:$L$436,'M&E'!$C$237:$C$436,$D58,'M&E'!$AB$237:$AB$436,\"<>0\")","v":{"v":169625,"d":"169,625.00"}},{"$f":"SUMIFS('M&E'!$M$237:$M$436,'M&E'!$C$237:$C$436,$D58,'M&E'!$AB$237:$AB$436,\"<>0\")","v":{"v":167625,"d":"167,625.00"}},{"$f":"IF(AND(H58=0,I58=0),\"\",IF(H58>0,I58/H58,G58))","v":{"v":0.9882092851879145,"d":"98.82%"}},{"$f":"H58-I58","v":{"v":2000,"d":"2,000.00"}},{"$f":"SUMIFS('M&E'!$BJ$237:$BJ$436,'M&E'!$C$237:$C$436,$D58,'M&E'!$AB$237:$AB$436,\"<>0\")","v":{"v":0,"d":"0.00"}},null,{"$f":"SUMIFS('M&E'!$P$237:$P$436,'M&E'!$C$237:$C$436,$D58,'M&E'!$AB$237:$AB$436,\"<>0\")","v":{"v":140600,"d":"140,600.00"}},{"$f":"SUMIFS('M&E'!$Q$237:$Q$436,'M&E'!$C$237:$C$436,$D58,'M&E'!$AB$237:$AB$436,\"<>0\")","v":{"v":142600,"d":"142,600.00"}},{"$f":"IF(AND(N58=0,O58=0),\"\",IF(N58>0,O58/N58,M58))","v":{"v":1.0142247510668563,"d":"101.42%"}},{"$f":"N58-O58","v":{"v":-2000,"d":"-2,000.00"}},{"$f":"SUMIFS('M&E'!$BT$237:$BT$436,'M&E'!$C$237:$C$436,$D58,'M&E'!$AB$237:$AB$436,\"<>0\")","v":{"v":2000,"d":"2,000.00"}},null,{"$f":"SUMIFS('M&E'!$T$237:$T$436,'M&E'!$C$237:$C$436,$D58,'M&E'!$AB$237:$AB$436,\"<>0\")","v":{"v":0,"d":"0.00"}},{"$f":"SUMIFS('M&E'!$U$237:$U$436,'M&E'!$C$237:$C$436,$D58,'M&E'!$AB$237:$AB$436,\"<>0\")","v":{"v":0,"d":"0.00"}},{"$f":"IF(AND(T58=0,U58=0),\"\",IF(T58>0,U58/T58,S58))","v":""},{"$f":"T58-U58","v":{"v":0,"d":"0.00"}},{"$f":"SUMIFS('M&E'!$BU$237:$BU$436,'M&E'!$C$237:$C$436,$D58,'M&E'!$AB$237:$AB$436,\"<>0\")","v":{"v":0,"d":"0.00"}},null,{"$f":"SUMIFS('M&E'!$X$237:$X$436,'M&E'!$C$237:$C$436,$D58,'M&E'!$AB$237:$AB$436,\"<>0\")","v":{"v":0,"d":"0.00"}},{"$f":"SUMIFS('M&E'!$Y$237:$Y$436,'M&E'!$C$237:$C$436,$D58,'M&E'!$AB$237:$AB$436,\"<>0\")","v":{"v":0,"d":"0.00"}},{"$f":"IF(AND(Z58=0,AA58=0),\"\",IF(Z58>0,AA58/Z58,Y58))","v":""},{"$f":"Z58-AA58","v":{"v":0,"d":"0.00"}},{"$f":"SUMIFS('M&E'!$BV$237:$BV$436,'M&E'!$C$237:$C$436,$D58,'M&E'!$AB$237:$AB$436,\"<>0\")","v":{"v":0,"d":"0.00"}},null,{"$f":"H58+N58+T58+Z58","v":{"v":310225,"d":"310,225.00"}},{"$f":"I58+O58+U58+AA58","v":{"v":310225,"d":"310,225.00"}},{"$f":"IF(AND(AF58=0,AG58=0),\"\",IF(AF58>0,AG58/AF58,AE58))","v":{"v":1,"d":"100.00%"}},{"$f":"K58+Q58+W58+AC58","v":{"v":0,"d":"0.00"}},{"$f":"AD58","v":{"v":0,"d":"0.00"}}]
[{"$nulls":3},{"$f":"Lists!G6","v":"Pr72"},{"$f":"Lists!F6","v":"[Pr72] # new HIV+ enrolled in care services Target"},null,null,{"$f":"SUMIFS('M&E'!$L$237:$L$436,'M&E'!$C$237:$C$436,$D59,'M&E'!$AB$237:$AB$436,\"<>0\")","v":{"v":83700,"d":"83,700.00"}},{"$f":"SUMIFS('M&E'!$M$237:$M$436,'M&E'!$C$237:$C$436,$D59,'M&E'!$AB$237:$AB$436,\"<>0\")","v":{"v":83000,"d":"83,000.00"}},{"$f":"IF(AND(H59=0,I59=0),\"\",IF(H59>0,I59/H59,G59))","v":{"v":0.991636798088411,"d":"99.16%"}},{"$f":"H59-I59","v":{"v":700,"d":"700.00"}},{"$f":"SUMIFS('M&E'!$BJ$237:$BJ$436,'M&E'!$C$237:$C$436,$D59,'M&E'!$AB$237:$AB$436,\"<>0\")","v":{"v":0,"d":"0.00"}},null,{"$f":"SUMIFS('M&E'!$P$237:$P$436,'M&E'!$C$237:$C$436,$D59,'M&E'!$AB$237:$AB$436,\"<>0\")","v":{"v":83700,"d":"83,700.00"}},{"$f":"SUMIFS('M&E'!$Q$237:$Q$436,'M&E'!$C$237:$C$436,$D59,'M&E'!$AB$237:$AB$436,\"<>0\")","v":{"v":84400,"d":"84,400.00"}},{"$f":"IF(AND(N59=0,O59=0),\"\",IF(N59>0,O59/N59,M59))","v":{"v":1.008363201911589,"d":"100.84%"}},{"$f":"N59-O59","v":{"v":-700,"d":"-700.00"}},{"$f":"SUMIFS('M&E'!$BT$237:$BT$436,'M&E'!$C$237:$C$436,$D59,'M&E'!$AB$237:$AB$436,\"<>0\")","v":{"v":700,"d":"700.00"}},null,{"$f":"SUMIFS('M&E'!$T$237:$T$436,'M&E'!$C$237:$C$436,$D59,'M&E'!$AB$237:$AB$436,\"<>0\")","v":{"v":0,"d":"0.00"}},{"$f":"SUMIFS('M&E'!$U$237:$U$436,'M&E'!$C$237:$C$436,$D59,'M&E'!$AB$237:$AB$436,\"<>0\")","v":{"v":0,"d":"0.00"}},{"$f":"IF(AND(T59=0,U59=0),\"\",IF(T59>0,U59/T59,S59))","v":""},{"$f":"T59-U59","v":{"v":0,"d":"0.00"}},{"$f":"SUMIFS('M&E'!$BU$237:$BU$436,'M&E'!$C$237:$C$436,$D59,'M&E'!$AB$237:$AB$436,\"<>0\")","v":{"v":0,"d":"0.00"}},null,{"$f":"SUMIFS('M&E'!$X$237:$X$436,'M&E'!$C$237:$C$436,$D59,'M&E'!$AB$237:$AB$436,\"<>0\")","v":{"v":0,"d":"0.00"}},{"$f":"SUMIFS('M&E'!$Y$237:$Y$436,'M&E'!$C$237:$C$436,$D59,'M&E'!$AB$237:$AB$436,\"<>0\")","v":{"v":0,"d":"0.00"}},{"$f":"IF(AND(Z59=0,AA59=0),\"\",IF(Z59>0,AA59/Z59,Y59))","v":""},{"$f":"Z59-AA59","v":{"v":0,"d":"0.00"}},{"$f":"SUMIFS('M&E'!$BV$237:$BV$436,'M&E'!$C$237:$C$436,$D59,'M&E'!$AB$237:$AB$436,\"<>0\")","v":{"v":0,"d":"0.00"}},null,{"v":167400,"d":"167,400.00"},{"v":167400,"d":"167,400.00"},{"v":1,"d":"100.00%"},{"v":0,"d":"0.00"},{"v":0,"d":"0.00"}]
[{"$nulls":3},{"$f":"Lists!G7","v":"Pr74"},{"$f":"Lists!F7","v":"[Pr74] # aged 10-24 yrs reached by HIV life skills ed. in school  Target"},null,null,{"$f":"SUMIFS('M&E'!$L$237:$L$436,'M&E'!$C$237:$C$436,$D60,'M&E'!$AB$237:$AB$436,\"<>0\")","v":{"v":213750,"d":"213,750.00"}},{"$f":"SUMIFS('M&E'!$M$237:$M$436,'M&E'!$C$237:$C$436,$D60,'M&E'!$AB$237:$AB$436,\"<>0\")","v":{"v":207500,"d":"207,500.00"}},{"v":0.9707602339181286,"d":"97.08%"},{"v":6250,"d":"6,250.00"},{"$f":"SUMIFS('M&E'!$BJ$237:$BJ$436,'M&E'!$C$237:$C$436,$D60,'M&E'!$AB$237:$AB$436,\"<>0\")","v":{"v":0,"d":"0.00"}},null,{"$f":"SUMIFS('M&E'!$P$237:$P$436,'M&E'!$C$237:$C$436,$D60,'M&E'!$AB$237:$AB$436,\"<>0\")","v":{"v":180000,"d":"180,000.00"}},{"$f":"SUMIFS('M&E'!$Q$237:$Q$436,'M&E'!$C$237:$C$436,$D60,'M&E'!$AB$237:$AB$436,\"<>0\")","v":{"v":180000,"d":"180,000.00"}},{"v":1,"d":"100.00%"},{"v":0,"d":"0.00"},{"$f":"SUMIFS('M&E'!$BT$237:$BT$436,'M&E'!$C$237:$C$436,$D60,'M&E'!$AB$237:$AB$436,\"<>0\")","v":{"v":6250,"d":"6,250.00"}},null,{"$f":"SUMIFS('M&E'!$T$237:$T$436,'M&E'!$C$237:$C$436,$D60,'M&E'!$AB$237:$AB$436,\"<>0\")","v":{"v":0,"d":"0.00"}},{"$f":"SUMIFS('M&E'!$U$237:$U$436,'M&E'!$C$237:$C$436,$D60,'M&E'!$AB$237:$AB$436,\"<>0\")","v":{"v":0,"d":"0.00"}},"",{"v":0,"d":"0.00"},{"$f":"SUMIFS('M&E'!$BU$237:$BU$436,'M&E'!$C$237:$C$436,$D60,'M&E'!$AB$237:$AB$436,\"<>0\")","v":{"v":6250,"d":"6,250.00"}},null,{"$f":"SUMIFS('M&E'!$X$237:$X$436,'M&E'!$C$237:$C$436,$D60,'M&E'!$AB$237:$AB$436,\"<>0\")","v":{"v":0,"d":"0.00"}},{"$f":"SUMIFS('M&E'!$Y$237:$Y$436,'M&E'!$C$237:$C$436,$D60,'M&E'!$AB$237:$AB$436,\"<>0\")","v":{"v":0,"d":"0.00"}},"",{"v":0,"d":"0.00"},{"$f":"SUMIFS('M&E'!$BV$237:$BV$436,'M&E'!$C$237:$C$436,$D60,'M&E'!$AB$237:$AB$436,\"<>0\")","v":{"v":6250,"d":"6,250.00"}},null,{"v":393750,"d":"393,750.00"},{"v":387500,"d":"387,500.00"},{"v":0.9841269841269841,"d":"98.41%"},{"v":6250,"d":"6,250.00"},{"v":6250,"d":"6,250.00"}]
[{"$nulls":3},{"$f":"Lists!G8","v":"OI01"},{"$f":"Lists!F8","v":"[OI01] # of new orphans and vulnerable children (0 - 17 yrs) benefiting from  services provided at OVC centers"},null,null,{"$f":"SUMIFS('M&E'!$L$237:$L$436,'M&E'!$C$237:$C$436,$D61,'M&E'!$AB$237:$AB$436,\"<>0\")","v":{"v":37000,"d":"37,000.00"}},{"$f":"SUMIFS('M&E'!$M$237:$M$436,'M&E'!$C$237:$C$436,$D61,'M&E'!$AB$237:$AB$436,\"<>0\")","v":{"v":36800,"d":"36,800.00"}},{"v":0.9945945945945946,"d":"99.46%"},{"v":200,"d":"200.00"},{"$f":"SUMIFS('M&E'!$BJ$237:$BJ$436,'M&E'!$C$237:$C$436,$D61,'M&E'!$AB$237:$AB$436,\"<>0\")","v":{"v":0,"d":"0.00"}},null,{"$f":"SUMIFS('M&E'!$P$237:$P$436,'M&E'!$C$237:$C$436,$D61,'M&E'!$AB$237:$AB$436,\"<>0\")","v":{"v":211000,"d":"211,000.00"}},{"$f":"SUMIFS('M&E'!$Q$237:$Q$436,'M&E'!$C$237:$C$436,$D61,'M&E'!$AB$237:$AB$436,\"<>0\")","v":{"v":210200,"d":"210,200.00"}},{"v":0.9962085308056872,"d":"99.62%"},{"v":800,"d":"800.00"},{"$f":"SUMIFS('M&E'!$BT$237:$BT$436,'M&E'!$C$237:$C$436,$D61,'M&E'!$AB$237:$AB$436,\"<>0\")","v":{"v":200,"d":"200.00"}},null,{"$f":"SUMIFS('M&E'!$T$237:$T$436,'M&E'!$C$237:$C$436,$D61,'M&E'!$AB$237:$AB$436,\"<>0\")","v":{"v":0,"d":"0.00"}},{"$f":"SUMIFS('M&E'!$U$237:$U$436,'M&E'!$C$237:$C$436,$D61,'M&E'!$AB$237:$AB$436,\"<>0\")","v":{"v":0,"d":"0.00"}},"",{"v":0,"d":"0.00"},{"$f":"SUMIFS('M&E'!$BU$237:$BU$436,'M&E'!$C$237:$C$436,$D61,'M&E'!$AB$237:$AB$436,\"<>0\")","v":{"v":1000,"d":"1,000.00"}},null,{"$f":"SUMIFS('M&E'!$X$237:$X$436,'M&E'!$C$237:$C$436,$D61,'M&E'!$AB$237:$AB$436,\"<>0\")","v":{"v":0,"d":"0.00"}},{"$f":"SUMIFS('M&E'!$Y$237:$Y$436,'M&E'!$C$237:$C$436,$D61,'M&E'!$AB$237:$AB$436,\"<>0\")","v":{"v":0,"d":"0.00"}},"",{"v":0,"d":"0.00"},{"$f":"SUMIFS('M&E'!$BV$237:$BV$436,'M&E'!$C$237:$C$436,$D61,'M&E'!$AB$237:$AB$436,\"<>0\")","v":{"v":1000,"d":"1,000.00"}},null,{"v":248000,"d":"248,000.00"},{"v":247000,"d":"247,000.00"},{"v":0.9959677419354839,"d":"99.60%"},{"v":1000,"d":"1,000.00"},{"v":1000,"d":"1,000.00"}]
[{"$nulls":3},{"$f":"Lists!G9","v":" "},{"$f":"Lists!F9","v":0},null,null,{"$f":"SUMIFS('M&E'!$L$237:$L$436,'M&E'!$C$237:$C$436,$D62,'M&E'!$AB$237:$AB$436,\"<>0\")","v":{"v":0,"d":"0.00"}},{"$f":"SUMIFS('M&E'!$M$237:$M$436,'M&E'!$C$237:$C$436,$D62,'M&E'!$AB$237:$AB$436,\"<>0\")","v":{"v":0,"d":"0.00"}},"",{"v":0,"d":"0.00"},{"$f":"SUMIFS('M&E'!$BJ$237:$BJ$436,'M&E'!$C$237:$C$436,$D62,'M&E'!$AB$237:$AB$436,\"<>0\")","v":{"v":0,"d":"0.00"}},null,{"$f":"SUMIFS('M&E'!$P$237:$P$436,'M&E'!$C$237:$C$436,$D62,'M&E'!$AB$237:$AB$436,\"<>0\")","v":{"v":0,"d":"0.00"}},{"$f":"SUMIFS('M&E'!$Q$237:$Q$436,'M&E'!$C$237:$C$436,$D62,'M&E'!$AB$237:$AB$436,\"<>0\")","v":{"v":0,"d":"0.00"}},"",{"v":0,"d":"0.00"},{"$f":"SUMIFS('M&E'!$BT$237:$BT$436,'M&E'!$C$237:$C$436,$D62,'M&E'!$AB$237:$AB$436,\"<>0\")","v":{"v":0,"d":"0.00"}},null,{"$f":"SUMIFS('M&E'!$T$237:$T$436,'M&E'!$C$237:$C$436,$D62,'M&E'!$AB$237:$AB$436,\"<>0\")","v":{"v":0,"d":"0.00"}},{"$f":"SUMIFS('M&E'!$U$237:$U$436,'M&E'!$C$237:$C$436,$D62,'M&E'!$AB$237:$AB$436,\"<>0\")","v":{"v":0,"d":"0.00"}},"",{"v":0,"d":"0.00"},{"$f":"SUMIFS('M&E'!$BU$237:$BU$436,'M&E'!$C$237:$C$436,$D62,'M&E'!$AB$237:$AB$436,\"<>0\")","v":{"v":0,"d":"0.00"}},null,{"$f":"SUMIFS('M&E'!$X$237:$X$436,'M&E'!$C$237:$C$436,$D62,'M&E'!$AB$237:$AB$436,\"<>0\")","v":{"v":0,"d":"0.00"}},{"$f":"SUMIFS('M&E'!$Y$237:$Y$436,'M&E'!$C$237:$C$436,$D62,'M&E'!$AB$237:$AB$436,\"<>0\")","v":{"v":0,"d":"0.00"}},"",{"v":0,"d":"0.00"},{"$f":"SUMIFS('M&E'!$BV$237:$BV$436,'M&E'!$C$237:$C$436,$D62,'M&E'!$AB$237:$AB$436,\"<>0\")","v":{"v":0,"d":"0.00"}},null,{"v":0,"d":"0.00"},{"v":0,"d":"0.00"},"",{"v":0,"d":"0.00"},{"v":0,"d":"0.00"}]
[{"$nulls":3},{"$f":"Lists!G10","v":" "},{"$f":"Lists!F10","v":0},null,null,{"$f":"SUMIFS('M&E'!$L$237:$L$436,'M&E'!$C$237:$C$436,$D63,'M&E'!$AB$237:$AB$436,\"<>0\")","v":{"v":0,"d":"0.00"}},{"$f":"SUMIFS('M&E'!$M$237:$M$436,'M&E'!$C$237:$C$436,$D63,'M&E'!$AB$237:$AB$436,\"<>0\")","v":{"v":0,"d":"0.00"}},"",{"v":0,"d":"0.00"},{"$f":"SUMIFS('M&E'!$BJ$237:$BJ$436,'M&E'!$C$237:$C$436,$D63,'M&E'!$AB$237:$AB$436,\"<>0\")","v":{"v":0,"d":"0.00"}},null,{"$f":"SUMIFS('M&E'!$P$237:$P$436,'M&E'!$C$237:$C$436,$D63,'M&E'!$AB$237:$AB$436,\"<>0\")","v":{"v":0,"d":"0.00"}},{"$f":"SUMIFS('M&E'!$Q$237:$Q$436,'M&E'!$C$237:$C$436,$D63,'M&E'!$AB$237:$AB$436,\"<>0\")","v":{"v":0,"d":"0.00"}},"",{"v":0,"d":"0.00"},{"$f":"SUMIFS('M&E'!$BT$237:$BT$436,'M&E'!$C$237:$C$436,$D63,'M&E'!$AB$237:$AB$436,\"<>0\")","v":{"v":0,"d":"0.00"}},null,{"$f":"SUMIFS('M&E'!$T$237:$T$436,'M&E'!$C$237:$C$436,$D63,'M&E'!$AB$237:$AB$436,\"<>0\")","v":{"v":0,"d":"0.00"}},{"$f":"SUMIFS('M&E'!$U$237:$U$436,'M&E'!$C$237:$C$436,$D63,'M&E'!$AB$237:$AB$436,\"<>0\")","v":{"v":0,"d":"0.00"}},"",{"v":0,"d":"0.00"},{"$f":"SUMIFS('M&E'!$BU$237:$BU$436,'M&E'!$C$237:$C$436,$D63,'M&E'!$AB$237:$AB$436,\"<>0\")","v":{"v":0,"d":"0.00"}},null,{"$f":"SUMIFS('M&E'!$X$237:$X$436,'M&E'!$C$237:$C$436,$D63,'M&E'!$AB$237:$AB$436,\"<>0\")","v":{"v":0,"d":"0.00"}},{"$f":"SUMIFS('M&E'!$Y$237:$Y$436,'M&E'!$C$237:$C$436,$D63,'M&E'!$AB$237:$AB$436,\"<>0\")","v":{"v":0,"d":"0.00"}},"",{"v":0,"d":"0.00"},{"$f":"SUMIFS('M&E'!$BV$237:$BV$436,'M&E'!$C$237:$C$436,$D63,'M&E'!$AB$237:$AB$436,\"<>0\")","v":{"v":0,"d":"0.00"}},null,{"v":0,"d":"0.00"},{"v":0,"d":"0.00"},"",{"v":0,"d":"0.00"},{"v":0,"d":"0.00"}]
[{"$nulls":3},{"$f":"Lists!G11","v":" "},{"$f":"Lists!F11","v":0},null,null,{"$f":"SUMIFS('M&E'!$L$237:$L$436,'M&E'!$C$237:$C$436,$D64,'M&E'!$AB$237:$AB$436,\"<>0\")","v":{"v":0,"d":"0.00"}},{"$f":"SUMIFS('M&E'!$M$237:$M$436,'M&E'!$C$237:$C$436,$D64,'M&E'!$AB$237:$AB$436,\"<>0\")","v":{"v":0,"d":"0.00"}},"",{"v":0,"d":"0.00"},{"$f":"SUMIFS('M&E'!$BJ$237:$BJ$436,'M&E'!$C$237:$C$436,$D64,'M&E'!$AB$237:$AB$436,\"<>0\")","v":{"v":0,"d":"0.00"}},null,{"$f":"SUMIFS('M&E'!$P$237:$P$436,'M&E'!$C$237:$C$436,$D64,'M&E'!$AB$237:$AB$436,\"<>0\")","v":{"v":0,"d":"0.00"}},{"$f":"SUMIFS('M&E'!$Q$237:$Q$436,'M&E'!$C$237:$C$436,$D64,'M&E'!$AB$237:$AB$436,\"<>0\")","v":{"v":0,"d":"0.00"}},"",{"v":0,"d":"0.00"},{"$f":"SUMIFS('M&E'!$BT$237:$BT$436,'M&E'!$C$237:$C$436,$D64,'M&E'!$AB$237:$AB$436,\"<>0\")","v":{"v":0,"d":"0.00"}},null,{"$f":"SUMIFS('M&E'!$T$237:$T$436,'M&E'!$C$237:$C$436,$D64,'M&E'!$AB$237:$AB$436,\"<>0\")","v":{"v":0,"d":"0.00"}},{"$f":"SUMIFS('M&E'!$U$237:$U$436,'M&E'!$C$237:$C$436,$D64,'M&E'!$AB$237:$AB$436,\"<>0\")","v":{"v":0,"d":"0.00"}},"",{"v":0,"d":"0.00"},{"$f":"SUMIFS('M&E'!$BU$237:$BU$436,'M&E'!$C$237:$C$436,$D64,'M&E'!$AB$237:$AB$436,\"<>0\")","v":{"v":0,"d":"0.00"}},null,{"$f":"SUMIFS('M&E'!$X$237:$X$436,'M&E'!$C$237:$C$436,$D64,'M&E'!$AB$237:$AB$436,\"<>0\")","v":{"v":0,"d":"0.00"}},{"$f":"SUMIFS('M&E'!$Y$237:$Y$436,'M&E'!$C$237:$C$436,$D64,'M&E'!$AB$237:$AB$436,\"<>0\")","v":{"v":0,"d":"0.00"}},"",{"v":0,"d":"0.00"},{"$f":"SUMIFS('M&E'!$BV$237:$BV$436,'M&E'!$C$237:$C$436,$D64,'M&E'!$AB$237:$AB$436,\"<>0\")","v":{"v":0,"d":"0.00"}},null,{"v":0,"d":"0.00"},{"v":0,"d":"0.00"},"",{"v":0,"d":"0.00"},{"v":0,"d":"0.00"}]
[{"$nulls":3},{"$f":"Lists!G12","v":" "},{"$f":"Lists!F12","v":0},null,null,{"$f":"SUMIFS('M&E'!$L$237:$L$436,'M&E'!$C$237:$C$436,$D65,'M&E'!$AB$237:$AB$436,\"<>0\")","v":{"v":0,"d":"0.00"}},{"$f":"SUMIFS('M&E'!$M$237:$M$436,'M&E'!$C$237:$C$436,$D65,'M&E'!$AB$237:$AB$436,\"<>0\")","v":{"v":0,"d":"0.00"}},"",{"v":0,"d":"0.00"},{"$f":"SUMIFS('M&E'!$BJ$237:$BJ$436,'M&E'!$C$237:$C$436,$D65,'M&E'!$AB$237:$AB$436,\"<>0\")","v":{"v":0,"d":"0.00"}},null,{"$f":"SUMIFS('M&E'!$P$237:$P$436,'M&E'!$C$237:$C$436,$D65,'M&E'!$AB$237:$AB$436,\"<>0\")","v":{"v":0,"d":"0.00"}},{"$f":"SUMIFS('M&E'!$Q$237:$Q$436,'M&E'!$C$237:$C$436,$D65,'M&E'!$AB$237:$AB$436,\"<>0\")","v":{"v":0,"d":"0.00"}},"",{"v":0,"d":"0.00"},{"$f":"SUMIFS('M&E'!$BT$237:$BT$436,'M&E'!$C$237:$C$436,$D65,'M&E'!$AB$237:$AB$436,\"<>0\")","v":{"v":0,"d":"0.00"}},null,{"$f":"SUMIFS('M&E'!$T$237:$T$436,'M&E'!$C$237:$C$436,$D65,'M&E'!$AB$237:$AB$436,\"<>0\")","v":{"v":0,"d":"0.00"}},{"$f":"SUMIFS('M&E'!$U$237:$U$436,'M&E'!$C$237:$C$436,$D65,'M&E'!$AB$237:$AB$436,\"<>0\")","v":{"v":0,"d":"0.00"}},"",{"v":0,"d":"0.00"},{"$f":"SUMIFS('M&E'!$BU$237:$BU$436,'M&E'!$C$237:$C$436,$D65,'M&E'!$AB$237:$AB$436,\"<>0\")","v":{"v":0,"d":"0.00"}},null,{"$f":"SUMIFS('M&E'!$X$237:$X$436,'M&E'!$C$237:$C$436,$D65,'M&E'!$AB$237:$AB$436,\"<>0\")","v":{"v":0,"d":"0.00"}},{"$f":"SUMIFS('M&E'!$Y$237:$Y$436,'M&E'!$C$237:$C$436,$D65,'M&E'!$AB$237:$AB$436,\"<>0\")","v":{"v":0,"d":"0.00"}},"",{"v":0,"d":"0.00"},{"$f":"SUMIFS('M&E'!$BV$237:$BV$436,'M&E'!$C$237:$C$436,$D65,'M&E'!$AB$237:$AB$436,\"<>0\")","v":{"v":0,"d":"0.00"}},null,{"v":0,"d":"0.00"},{"v":0,"d":"0.00"},"",{"v":0,"d":"0.00"},{"v":0,"d":"0.00"}]
[{"$nulls":3},{"$f":"Lists!G13","v":" "},{"$f":"Lists!F13","v":0},null,null,{"$f":"SUMIFS('M&E'!$L$237:$L$436,'M&E'!$C$237:$C$436,$D66,'M&E'!$AB$237:$AB$436,\"<>0\")","v":{"v":0,"d":"0.00"}},{"$f":"SUMIFS('M&E'!$M$237:$M$436,'M&E'!$C$237:$C$436,$D66,'M&E'!$AB$237:$AB$436,\"<>0\")","v":{"v":0,"d":"0.00"}},"",{"v":0,"d":"0.00"},{"$f":"SUMIFS('M&E'!$BJ$237:$BJ$436,'M&E'!$C$237:$C$436,$D66,'M&E'!$AB$237:$AB$436,\"<>0\")","v":{"v":0,"d":"0.00"}},null,{"$f":"SUMIFS('M&E'!$P$237:$P$436,'M&E'!$C$237:$C$436,$D66,'M&E'!$AB$237:$AB$436,\"<>0\")","v":{"v":0,"d":"0.00"}},{"$f":"SUMIFS('M&E'!$Q$237:$Q$436,'M&E'!$C$237:$C$436,$D66,'M&E'!$AB$237:$AB$436,\"<>0\")","v":{"v":0,"d":"0.00"}},"",{"v":0,"d":"0.00"},{"$f":"SUMIFS('M&E'!$BT$237:$BT$436,'M&E'!$C$237:$C$436,$D66,'M&E'!$AB$237:$AB$436,\"<>0\")","v":{"v":0,"d":"0.00"}},null,{"$f":"SUMIFS('M&E'!$T$237:$T$436,'M&E'!$C$237:$C$436,$D66,'M&E'!$AB$237:$AB$436,\"<>0\")","v":{"v":0,"d":"0.00"}},{"$f":"SUMIFS('M&E'!$U$237:$U$436,'M&E'!$C$237:$C$436,$D66,'M&E'!$AB$237:$AB$436,\"<>0\")","v":{"v":0,"d":"0.00"}},"",{"v":0,"d":"0.00"},{"$f":"SUMIFS('M&E'!$BU$237:$BU$436,'M&E'!$C$237:$C$436,$D66,'M&E'!$AB$237:$AB$436,\"<>0\")","v":{"v":0,"d":"0.00"}},null,{"$f":"SUMIFS('M&E'!$X$237:$X$436,'M&E'!$C$237:$C$436,$D66,'M&E'!$AB$237:$AB$436,\"<>0\")","v":{"v":0,"d":"0.00"}},{"$f":"SUMIFS('M&E'!$Y$237:$Y$436,'M&E'!$C$237:$C$436,$D66,'M&E'!$AB$237:$AB$436,\"<>0\")","v":{"v":0,"d":"0.00"}},"",{"v":0,"d":"0.00"},{"$f":"SUMIFS('M&E'!$BV$237:$BV$436,'M&E'!$C$237:$C$436,$D66,'M&E'!$AB$237:$AB$436,\"<>0\")","v":{"v":0,"d":"0.00"}},null,{"v":0,"d":"0.00"},{"v":0,"d":"0.00"},"",{"v":0,"d":"0.00"},{"v":0,"d":"0.00"}]
[{"$nulls":3},{"$f":"Lists!G14","v":" "},{"$f":"Lists!F14","v":0},null,null,{"$f":"SUMIFS('M&E'!$L$237:$L$436,'M&E'!$C$237:$C$436,$D67,'M&E'!$AB$237:$AB$436,\"<>0\")","v":{"v":0,"d":"0.00"}},{"$f":"SUMIFS('M&E'!$M$237:$M$436,'M&E'!$C$237:$C$436,$D67,'M&E'!$AB$237:$AB$436,\"<>0\")","v":{"v":0,"d":"0.00"}},"",{"v":0,"d":"0.00"},{"$f":"SUMIFS('M&E'!$BJ$237:$BJ$436,'M&E'!$C$237:$C$436,$D67,'M&E'!$AB$237:$AB$436,\"<>0\")","v":{"v":0,"d":"0.00"}},null,{"$f":"SUMIFS('M&E'!$P$237:$P$436,'M&E'!$C$237:$C$436,$D67,'M&E'!$AB$237:$AB$436,\"<>0\")","v":{"v":0,"d":"0.00"}},{"$f":"SUMIFS('M&E'!$Q$237:$Q$436,'M&E'!$C$237:$C$436,$D67,'M&E'!$AB$237:$AB$436,\"<>0\")","v":{"v":0,"d":"0.00"}},"",{"v":0,"d":"0.00"},{"$f":"SUMIFS('M&E'!$BT$237:$BT$436,'M&E'!$C$237:$C$436,$D67,'M&E'!$AB$237:$AB$436,\"<>0\")","v":{"v":0,"d":"0.00"}},null,{"$f":"SUMIFS('M&E'!$T$237:$T$436,'M&E'!$C$237:$C$436,$D67,'M&E'!$AB$237:$AB$436,\"<>0\")","v":{"v":0,"d":"0.00"}},{"$f":"SUMIFS('M&E'!$U$237:$U$436,'M&E'!$C$237:$C$436,$D67,'M&E'!$AB$237:$AB$436,\"<>0\")","v":{"v":0,"d":"0.00"}},"",{"v":0,"d":"0.00"},{"$f":"SUMIFS('M&E'!$BU$237:$BU$436,'M&E'!$C$237:$C$436,$D67,'M&E'!$AB$237:$AB$436,\"<>0\")","v":{"v":0,"d":"0.00"}},null,{"$f":"SUMIFS('M&E'!$X$237:$X$436,'M&E'!$C$237:$C$436,$D67,'M&E'!$AB$237:$AB$436,\"<>0\")","v":{"v":0,"d":"0.00"}},{"$f":"SUMIFS('M&E'!$Y$237:$Y$436,'M&E'!$C$237:$C$436,$D67,'M&E'!$AB$237:$AB$436,\"<>0\")","v":{"v":0,"d":"0.00"}},"",{"v":0,"d":"0.00"},{"$f":"SUMIFS('M&E'!$BV$237:$BV$436,'M&E'!$C$237:$C$436,$D67,'M&E'!$AB$237:$AB$436,\"<>0\")","v":{"v":0,"d":"0.00"}},null,{"v":0,"d":"0.00"},{"v":0,"d":"0.00"},"",{"v":0,"d":"0.00"},{"v":0,"d":"0.00"}]
[{"$nulls":3},{"$f":"Lists!G15","v":" "},{"$f":"Lists!F15","v":0},null,null,{"$f":"SUMIFS('M&E'!$L$237:$L$436,'M&E'!$C$237:$C$436,$D68,'M&E'!$AB$237:$AB$436,\"<>0\")","v":{"v":0,"d":"0.00"}},{"$f":"SUMIFS('M&E'!$M$237:$M$436,'M&E'!$C$237:$C$436,$D68,'M&E'!$AB$237:$AB$436,\"<>0\")","v":{"v":0,"d":"0.00"}},"",{"v":0,"d":"0.00"},{"$f":"SUMIFS('M&E'!$BJ$237:$BJ$436,'M&E'!$C$237:$C$436,$D68,'M&E'!$AB$237:$AB$436,\"<>0\")","v":{"v":0,"d":"0.00"}},null,{"$f":"SUMIFS('M&E'!$P$237:$P$436,'M&E'!$C$237:$C$436,$D68,'M&E'!$AB$237:$AB$436,\"<>0\")","v":{"v":0,"d":"0.00"}},{"$f":"SUMIFS('M&E'!$Q$237:$Q$436,'M&E'!$C$237:$C$436,$D68,'M&E'!$AB$237:$AB$436,\"<>0\")","v":{"v":0,"d":"0.00"}},"",{"v":0,"d":"0.00"},{"$f":"SUMIFS('M&E'!$BT$237:$BT$436,'M&E'!$C$237:$C$436,$D68,'M&E'!$AB$237:$AB$436,\"<>0\")","v":{"v":0,"d":"0.00"}},null,{"$f":"SUMIFS('M&E'!$T$237:$T$436,'M&E'!$C$237:$C$436,$D68,'M&E'!$AB$237:$AB$436,\"<>0\")","v":{"v":0,"d":"0.00"}},{"$f":"SUMIFS('M&E'!$U$237:$U$436,'M&E'!$C$237:$C$436,$D68,'M&E'!$AB$237:$AB$436,\"<>0\")","v":{"v":0,"d":"0.00"}},"",{"v":0,"d":"0.00"},{"$f":"SUMIFS('M&E'!$BU$237:$BU$436,'M&E'!$C$237:$C$436,$D68,'M&E'!$AB$237:$AB$436,\"<>0\")","v":{"v":0,"d":"0.00"}},null,{"$f":"SUMIFS('M&E'!$X$237:$X$436,'M&E'!$C$237:$C$436,$D68,'M&E'!$AB$237:$AB$436,\"<>0\")","v":{"v":0,"d":"0.00"}},{"$f":"SUMIFS('M&E'!$Y$237:$Y$436,'M&E'!$C$237:$C$436,$D68,'M&E'!$AB$237:$AB$436,\"<>0\")","v":{"v":0,"d":"0.00"}},"",{"v":0,"d":"0.00"},{"$f":"SUMIFS('M&E'!$BV$237:$BV$436,'M&E'!$C$237:$C$436,$D68,'M&E'!$AB$237:$AB$436,\"<>0\")","v":{"v":0,"d":"0.00"}},null,{"v":0,"d":"0.00"},{"v":0,"d":"0.00"},"",{"v":0,"d":"0.00"},{"v":0,"d":"0.00"}]
[{"$nulls":3},{"$f":"Lists!G16","v":" "},{"$f":"Lists!F16","v":0},null,null,{"$f":"SUMIFS('M&E'!$L$237:$L$436,'M&E'!$C$237:$C$436,$D69,'M&E'!$AB$237:$AB$436,\"<>0\")","v":{"v":0,"d":"0.00"}},{"$f":"SUMIFS('M&E'!$M$237:$M$436,'M&E'!$C$237:$C$436,$D69,'M&E'!$AB$237:$AB$436,\"<>0\")","v":{"v":0,"d":"0.00"}},"",{"v":0,"d":"0.00"},{"$f":"SUMIFS('M&E'!$BJ$237:$BJ$436,'M&E'!$C$237:$C$436,$D69,'M&E'!$AB$237:$AB$436,\"<>0\")","v":{"v":0,"d":"0.00"}},null,{"$f":"SUMIFS('M&E'!$P$237:$P$436,'M&E'!$C$237:$C$436,$D69,'M&E'!$AB$237:$AB$436,\"<>0\")","v":{"v":0,"d":"0.00"}},{"$f":"SUMIFS('M&E'!$Q$237:$Q$436,'M&E'!$C$237:$C$436,$D69,'M&E'!$AB$237:$AB$436,\"<>0\")","v":{"v":0,"d":"0.00"}},"",{"v":0,"d":"0.00"},{"$f":"SUMIFS('M&E'!$BT$237:$BT$436,'M&E'!$C$237:$C$436,$D69,'M&E'!$AB$237:$AB$436,\"<>0\")","v":{"v":0,"d":"0.00"}},null,{"$f":"SUMIFS('M&E'!$T$237:$T$436,'M&E'!$C$237:$C$436,$D69,'M&E'!$AB$237:$AB$436,\"<>0\")","v":{"v":0,"d":"0.00"}},{"$f":"SUMIFS('M&E'!$U$237:$U$436,'M&E'!$C$237:$C$436,$D69,'M&E'!$AB$237:$AB$436,\"<>0\")","v":{"v":0,"d":"0.00"}},"",{"v":0,"d":"0.00"},{"$f":"SUMIFS('M&E'!$BU$237:$BU$436,'M&E'!$C$237:$C$436,$D69,'M&E'!$AB$237:$AB$436,\"<>0\")","v":{"v":0,"d":"0.00"}},null,{"$f":"SUMIFS('M&E'!$X$237:$X$436,'M&E'!$C$237:$C$436,$D69,'M&E'!$AB$237:$AB$436,\"<>0\")","v":{"v":0,"d":"0.00"}},{"$f":"SUMIFS('M&E'!$Y$237:$Y$436,'M&E'!$C$237:$C$436,$D69,'M&E'!$AB$237:$AB$436,\"<>0\")","v":{"v":0,"d":"0.00"}},"",{"v":0,"d":"0.00"},{"$f":"SUMIFS('M&E'!$BV$237:$BV$436,'M&E'!$C$237:$C$436,$D69,'M&E'!$AB$237:$AB$436,\"<>0\")","v":{"v":0,"d":"0.00"}},null,{"v":0,"d":"0.00"},{"v":0,"d":"0.00"},"",{"v":0,"d":"0.00"},{"v":0,"d":"0.00"}]
[{"$nulls":3},{"$f":"Lists!G17","v":" "},{"$f":"Lists!F17","v":0},null,null,{"$f":"SUMIFS('M&E'!$L$237:$L$436,'M&E'!$C$237:$C$436,$D70,'M&E'!$AB$237:$AB$436,\"<>0\")","v":{"v":0,"d":"0.00"}},{"$f":"SUMIFS('M&E'!$M$237:$M$436,'M&E'!$C$237:$C$436,$D70,'M&E'!$AB$237:$AB$436,\"<>0\")","v":{"v":0,"d":"0.00"}},"",{"v":0,"d":"0.00"},{"$f":"SUMIFS('M&E'!$BJ$237:$BJ$436,'M&E'!$C$237:$C$436,$D70,'M&E'!$AB$237:$AB$436,\"<>0\")","v":{"v":0,"d":"0.00"}},null,{"$f":"SUMIFS('M&E'!$P$237:$P$436,'M&E'!$C$237:$C$436,$D70,'M&E'!$AB$237:$AB$436,\"<>0\")","v":{"v":0,"d":"0.00"}},{"$f":"SUMIFS('M&E'!$Q$237:$Q$436,'M&E'!$C$237:$C$436,$D70,'M&E'!$AB$237:$AB$436,\"<>0\")","v":{"v":0,"d":"0.00"}},"",{"v":0,"d":"0.00"},{"$f":"SUMIFS('M&E'!$BT$237:$BT$436,'M&E'!$C$237:$C$436,$D70,'M&E'!$AB$237:$AB$436,\"<>0\")","v":{"v":0,"d":"0.00"}},null,{"$f":"SUMIFS('M&E'!$T$237:$T$436,'M&E'!$C$237:$C$436,$D70,'M&E'!$AB$237:$AB$436,\"<>0\")","v":{"v":0,"d":"0.00"}},{"$f":"SUMIFS('M&E'!$U$237:$U$436,'M&E'!$C$237:$C$436,$D70,'M&E'!$AB$237:$AB$436,\"<>0\")","v":{"v":0,"d":"0.00"}},"",{"v":0,"d":"0.00"},{"$f":"SUMIFS('M&E'!$BU$237:$BU$436,'M&E'!$C$237:$C$436,$D70,'M&E'!$AB$237:$AB$436,\"<>0\")","v":{"v":0,"d":"0.00"}},null,{"$f":"SUMIFS('M&E'!$X$237:$X$436,'M&E'!$C$237:$C$436,$D70,'M&E'!$AB$237:$AB$436,\"<>0\")","v":{"v":0,"d":"0.00"}},{"$f":"SUMIFS('M&E'!$Y$237:$Y$436,'M&E'!$C$237:$C$436,$D70,'M&E'!$AB$237:$AB$436,\"<>0\")","v":{"v":0,"d":"0.00"}},"",{"v":0,"d":"0.00"},{"$f":"SUMIFS('M&E'!$BV$237:$BV$436,'M&E'!$C$237:$C$436,$D70,'M&E'!$AB$237:$AB$436,\"<>0\")","v":{"v":0,"d":"0.00"}},null,{"v":0,"d":"0.00"},{"v":0,"d":"0.00"},"",{"v":0,"d":"0.00"},{"v":0,"d":"0.00"}]
[{"$nulls":3},{"$f":"Lists!G18","v":" "},{"$f":"Lists!F18","v":0},null,null,{"$f":"SUMIFS('M&E'!$L$237:$L$436,'M&E'!$C$237:$C$436,$D71,'M&E'!$AB$237:$AB$436,\"<>0\")","v":{"v":0,"d":"0.00"}},{"$f":"SUMIFS('M&E'!$M$237:$M$436,'M&E'!$C$237:$C$436,$D71,'M&E'!$AB$237:$AB$436,\"<>0\")","v":{"v":0,"d":"0.00"}},"",{"v":0,"d":"0.00"},{"$f":"SUMIFS('M&E'!$BJ$237:$BJ$436,'M&E'!$C$237:$C$436,$D71,'M&E'!$AB$237:$AB$436,\"<>0\")","v":{"v":0,"d":"0.00"}},null,{"$f":"SUMIFS('M&E'!$P$237:$P$436,'M&E'!$C$237:$C$436,$D71,'M&E'!$AB$237:$AB$436,\"<>0\")","v":{"v":0,"d":"0.00"}},{"$f":"SUMIFS('M&E'!$Q$237:$Q$436,'M&E'!$C$237:$C$436,$D71,'M&E'!$AB$237:$AB$436,\"<>0\")","v":{"v":0,"d":"0.00"}},"",{"v":0,"d":"0.00"},{"$f":"SUMIFS('M&E'!$BT$237:$BT$436,'M&E'!$C$237:$C$436,$D71,'M&E'!$AB$237:$AB$436,\"<>0\")","v":{"v":0,"d":"0.00"}},null,{"$f":"SUMIFS('M&E'!$T$237:$T$436,'M&E'!$C$237:$C$436,$D71,'M&E'!$AB$237:$AB$436,\"<>0\")","v":{"v":0,"d":"0.00"}},{"$f":"SUMIFS('M&E'!$U$237:$U$436,'M&E'!$C$237:$C$436,$D71,'M&E'!$AB$237:$AB$436,\"<>0\")","v":{"v":0,"d":"0.00"}},"",{"v":0,"d":"0.00"},{"$f":"SUMIFS('M&E'!$BU$237:$BU$436,'M&E'!$C$237:$C$436,$D71,'M&E'!$AB$237:$AB$436,\"<>0\")","v":{"v":0,"d":"0.00"}},null,{"$f":"SUMIFS('M&E'!$X$237:$X$436,'M&E'!$C$237:$C$436,$D71,'M&E'!$AB$237:$AB$436,\"<>0\")","v":{"v":0,"d":"0.00"}},{"$f":"SUMIFS('M&E'!$Y$237:$Y$436,'M&E'!$C$237:$C$436,$D71,'M&E'!$AB$237:$AB$436,\"<>0\")","v":{"v":0,"d":"0.00"}},"",{"v":0,"d":"0.00"},{"$f":"SUMIFS('M&E'!$BV$237:$BV$436,'M&E'!$C$237:$C$436,$D71,'M&E'!$AB$237:$AB$436,\"<>0\")","v":{"v":0,"d":"0.00"}},null,{"v":0,"d":"0.00"},{"v":0,"d":"0.00"},"",{"v":0,"d":"0.00"},{"v":0,"d":"0.00"}]
[{"$nulls":3},{"$f":"Lists!G19","v":" "},{"$f":"Lists!F19","v":0},null,null,{"$f":"SUMIFS('M&E'!$L$237:$L$436,'M&E'!$C$237:$C$436,$D72,'M&E'!$AB$237:$AB$436,\"<>0\")","v":{"v":0,"d":"0.00"}},{"$f":"SUMIFS('M&E'!$M$237:$M$436,'M&E'!$C$237:$C$436,$D72,'M&E'!$AB$237:$AB$436,\"<>0\")","v":{"v":0,"d":"0.00"}},"",{"v":0,"d":"0.00"},{"$f":"SUMIFS('M&E'!$BJ$237:$BJ$436,'M&E'!$C$237:$C$436,$D72,'M&E'!$AB$237:$AB$436,\"<>0\")","v":{"v":0,"d":"0.00"}},null,{"$f":"SUMIFS('M&E'!$P$237:$P$436,'M&E'!$C$237:$C$436,$D72,'M&E'!$AB$237:$AB$436,\"<>0\")","v":{"v":0,"d":"0.00"}},{"$f":"SUMIFS('M&E'!$Q$237:$Q$436,'M&E'!$C$237:$C$436,$D72,'M&E'!$AB$237:$AB$436,\"<>0\")","v":{"v":0,"d":"0.00"}},"",{"v":0,"d":"0.00"},{"$f":"SUMIFS('M&E'!$BT$237:$BT$436,'M&E'!$C$237:$C$436,$D72,'M&E'!$AB$237:$AB$436,\"<>0\")","v":{"v":0,"d":"0.00"}},null,{"$f":"SUMIFS('M&E'!$T$237:$T$436,'M&E'!$C$237:$C$436,$D72,'M&E'!$AB$237:$AB$436,\"<>0\")","v":{"v":0,"d":"0.00"}},{"$f":"SUMIFS('M&E'!$U$237:$U$436,'M&E'!$C$237:$C$436,$D72,'M&E'!$AB$237:$AB$436,\"<>0\")","v":{"v":0,"d":"0.00"}},"",{"v":0,"d":"0.00"},{"$f":"SUMIFS('M&E'!$BU$237:$BU$436,'M&E'!$C$237:$C$436,$D72,'M&E'!$AB$237:$AB$436,\"<>0\")","v":{"v":0,"d":"0.00"}},null,{"$f":"SUMIFS('M&E'!$X$237:$X$436,'M&E'!$C$237:$C$436,$D72,'M&E'!$AB$237:$AB$436,\"<>0\")","v":{"v":0,"d":"0.00"}},{"$f":"SUMIFS('M&E'!$Y$237:$Y$436,'M&E'!$C$237:$C$436,$D72,'M&E'!$AB$237:$AB$436,\"<>0\")","v":{"v":0,"d":"0.00"}},"",{"v":0,"d":"0.00"},{"$f":"SUMIFS('M&E'!$BV$237:$BV$436,'M&E'!$C$237:$C$436,$D72,'M&E'!$AB$237:$AB$436,\"<>0\")","v":{"v":0,"d":"0.00"}},null,{"v":0,"d":"0.00"},{"v":0,"d":"0.00"},"",{"v":0,"d":"0.00"},{"v":0,"d":"0.00"}]
[{"$nulls":3},{"$f":"Lists!G20","v":" "},{"$f":"Lists!F20","v":0},null,null,{"$f":"SUMIFS('M&E'!$L$237:$L$436,'M&E'!$C$237:$C$436,$D73,'M&E'!$AB$237:$AB$436,\"<>0\")","v":{"v":0,"d":"0.00"}},{"$f":"SUMIFS('M&E'!$M$237:$M$436,'M&E'!$C$237:$C$436,$D73,'M&E'!$AB$237:$AB$436,\"<>0\")","v":{"v":0,"d":"0.00"}},"",{"v":0,"d":"0.00"},{"$f":"SUMIFS('M&E'!$BJ$237:$BJ$436,'M&E'!$C$237:$C$436,$D73,'M&E'!$AB$237:$AB$436,\"<>0\")","v":{"v":0,"d":"0.00"}},null,{"$f":"SUMIFS('M&E'!$P$237:$P$436,'M&E'!$C$237:$C$436,$D73,'M&E'!$AB$237:$AB$436,\"<>0\")","v":{"v":0,"d":"0.00"}},{"$f":"SUMIFS('M&E'!$Q$237:$Q$436,'M&E'!$C$237:$C$436,$D73,'M&E'!$AB$237:$AB$436,\"<>0\")","v":{"v":0,"d":"0.00"}},"",{"v":0,"d":"0.00"},{"$f":"SUMIFS('M&E'!$BT$237:$BT$436,'M&E'!$C$237:$C$436,$D73,'M&E'!$AB$237:$AB$436,\"<>0\")","v":{"v":0,"d":"0.00"}},null,{"$f":"SUMIFS('M&E'!$T$237:$T$436,'M&E'!$C$237:$C$436,$D73,'M&E'!$AB$237:$AB$436,\"<>0\")","v":{"v":0,"d":"0.00"}},{"$f":"SUMIFS('M&E'!$U$237:$U$436,'M&E'!$C$237:$C$436,$D73,'M&E'!$AB$237:$AB$436,\"<>0\")","v":{"v":0,"d":"0.00"}},"",{"v":0,"d":"0.00"},{"$f":"SUMIFS('M&E'!$BU$237:$BU$436,'M&E'!$C$237:$C$436,$D73,'M&E'!$AB$237:$AB$436,\"<>0\")","v":{"v":0,"d":"0.00"}},null,{"$f":"SUMIFS('M&E'!$X$237:$X$436,'M&E'!$C$237:$C$436,$D73,'M&E'!$AB$237:$AB$436,\"<>0\")","v":{"v":0,"d":"0.00"}},{"$f":"SUMIFS('M&E'!$Y$237:$Y$436,'M&E'!$C$237:$C$436,$D73,'M&E'!$AB$237:$AB$436,\"<>0\")","v":{"v":0,"d":"0.00"}},"",{"v":0,"d":"0.00"},{"$f":"SUMIFS('M&E'!$BV$237:$BV$436,'M&E'!$C$237:$C$436,$D73,'M&E'!$AB$237:$AB$436,\"<>0\")","v":{"v":0,"d":"0.00"}},null,{"v":0,"d":"0.00"},{"v":0,"d":"0.00"},"",{"v":0,"d":"0.00"},{"v":0,"d":"0.00"}]
[{"$nulls":3},{"$f":"Lists!G21","v":" "},{"$f":"Lists!F21","v":0},null,null,{"$f":"SUMIFS('M&E'!$L$237:$L$436,'M&E'!$C$237:$C$436,$D74,'M&E'!$AB$237:$AB$436,\"<>0\")","v":{"v":0,"d":"0.00"}},{"$f":"SUMIFS('M&E'!$M$237:$M$436,'M&E'!$C$237:$C$436,$D74,'M&E'!$AB$237:$AB$436,\"<>0\")","v":{"v":0,"d":"0.00"}},"",{"v":0,"d":"0.00"},{"$f":"SUMIFS('M&E'!$BJ$237:$BJ$436,'M&E'!$C$237:$C$436,$D74,'M&E'!$AB$237:$AB$436,\"<>0\")","v":{"v":0,"d":"0.00"}},null,{"$f":"SUMIFS('M&E'!$P$237:$P$436,'M&E'!$C$237:$C$436,$D74,'M&E'!$AB$237:$AB$436,\"<>0\")","v":{"v":0,"d":"0.00"}},{"$f":"SUMIFS('M&E'!$Q$237:$Q$436,'M&E'!$C$237:$C$436,$D74,'M&E'!$AB$237:$AB$436,\"<>0\")","v":{"v":0,"d":"0.00"}},"",{"v":0,"d":"0.00"},{"$f":"SUMIFS('M&E'!$BT$237:$BT$436,'M&E'!$C$237:$C$436,$D74,'M&E'!$AB$237:$AB$436,\"<>0\")","v":{"v":0,"d":"0.00"}},null,{"$f":"SUMIFS('M&E'!$T$237:$T$436,'M&E'!$C$237:$C$436,$D74,'M&E'!$AB$237:$AB$436,\"<>0\")","v":{"v":0,"d":"0.00"}},{"$f":"SUMIFS('M&E'!$U$237:$U$436,'M&E'!$C$237:$C$436,$D74,'M&E'!$AB$237:$AB$436,\"<>0\")","v":{"v":0,"d":"0.00"}},"",{"v":0,"d":"0.00"},{"$f":"SUMIFS('M&E'!$BU$237:$BU$436,'M&E'!$C$237:$C$436,$D74,'M&E'!$AB$237:$AB$436,\"<>0\")","v":{"v":0,"d":"0.00"}},null,{"$f":"SUMIFS('M&E'!$X$237:$X$436,'M&E'!$C$237:$C$436,$D74,'M&E'!$AB$237:$AB$436,\"<>0\")","v":{"v":0,"d":"0.00"}},{"$f":"SUMIFS('M&E'!$Y$237:$Y$436,'M&E'!$C$237:$C$436,$D74,'M&E'!$AB$237:$AB$436,\"<>0\")","v":{"v":0,"d":"0.00"}},"",{"v":0,"d":"0.00"},{"$f":"SUMIFS('M&E'!$BV$237:$BV$436,'M&E'!$C$237:$C$436,$D74,'M&E'!$AB$237:$AB$436,\"<>0\")","v":{"v":0,"d":"0.00"}},null,{"v":0,"d":"0.00"},{"v":0,"d":"0.00"},"",{"v":0,"d":"0.00"},{"v":0,"d":"0.00"}]
[{"$nulls":3},{"$f":"Lists!G22","v":" "},{"$f":"Lists!F22","v":0},null,null,{"$f":"SUMIFS('M&E'!$L$237:$L$436,'M&E'!$C$237:$C$436,$D75,'M&E'!$AB$237:$AB$436,\"<>0\")","v":{"v":0,"d":"0.00"}},{"$f":"SUMIFS('M&E'!$M$237:$M$436,'M&E'!$C$237:$C$436,$D75,'M&E'!$AB$237:$AB$436,\"<>0\")","v":{"v":0,"d":"0.00"}},"",{"v":0,"d":"0.00"},{"$f":"SUMIFS('M&E'!$BJ$237:$BJ$436,'M&E'!$C$237:$C$436,$D75,'M&E'!$AB$237:$AB$436,\"<>0\")","v":{"v":0,"d":"0.00"}},null,{"$f":"SUMIFS('M&E'!$P$237:$P$436,'M&E'!$C$237:$C$436,$D75,'M&E'!$AB$237:$AB$436,\"<>0\")","v":{"v":0,"d":"0.00"}},{"$f":"SUMIFS('M&E'!$Q$237:$Q$436,'M&E'!$C$237:$C$436,$D75,'M&E'!$AB$237:$AB$436,\"<>0\")","v":{"v":0,"d":"0.00"}},"",{"v":0,"d":"0.00"},{"$f":"SUMIFS('M&E'!$BT$237:$BT$436,'M&E'!$C$237:$C$436,$D75,'M&E'!$AB$237:$AB$436,\"<>0\")","v":{"v":0,"d":"0.00"}},null,{"$f":"SUMIFS('M&E'!$T$237:$T$436,'M&E'!$C$237:$C$436,$D75,'M&E'!$AB$237:$AB$436,\"<>0\")","v":{"v":0,"d":"0.00"}},{"$f":"SUMIFS('M&E'!$U$237:$U$436,'M&E'!$C$237:$C$436,$D75,'M&E'!$AB$237:$AB$436,\"<>0\")","v":{"v":0,"d":"0.00"}},"",{"v":0,"d":"0.00"},{"$f":"SUMIFS('M&E'!$BU$237:$BU$436,'M&E'!$C$237:$C$436,$D75,'M&E'!$AB$237:$AB$436,\"<>0\")","v":{"v":0,"d":"0.00"}},null,{"$f":"SUMIFS('M&E'!$X$237:$X$436,'M&E'!$C$237:$C$436,$D75,'M&E'!$AB$237:$AB$436,\"<>0\")","v":{"v":0,"d":"0.00"}},{"$f":"SUMIFS('M&E'!$Y$237:$Y$436,'M&E'!$C$237:$C$436,$D75,'M&E'!$AB$237:$AB$436,\"<>0\")","v":{"v":0,"d":"0.00"}},"",{"v":0,"d":"0.00"},{"$f":"SUMIFS('M&E'!$BV$237:$BV$436,'M&E'!$C$237:$C$436,$D75,'M&E'!$AB$237:$AB$436,\"<>0\")","v":{"v":0,"d":"0.00"}},null,{"v":0,"d":"0.00"},{"v":0,"d":"0.00"},"",{"v":0,"d":"0.00"},{"v":0,"d":"0.00"}]
[{"$nulls":3},{"$f":"Lists!G23","v":" "},{"$f":"Lists!F23","v":0},null,null,{"$f":"SUMIFS('M&E'!$L$237:$L$436,'M&E'!$C$237:$C$436,$D76,'M&E'!$AB$237:$AB$436,\"<>0\")","v":{"v":0,"d":"0.00"}},{"$f":"SUMIFS('M&E'!$M$237:$M$436,'M&E'!$C$237:$C$436,$D76,'M&E'!$AB$237:$AB$436,\"<>0\")","v":{"v":0,"d":"0.00"}},"",{"v":0,"d":"0.00"},{"$f":"SUMIFS('M&E'!$BJ$237:$BJ$436,'M&E'!$C$237:$C$436,$D76,'M&E'!$AB$237:$AB$436,\"<>0\")","v":{"v":0,"d":"0.00"}},null,{"$f":"SUMIFS('M&E'!$P$237:$P$436,'M&E'!$C$237:$C$436,$D76,'M&E'!$AB$237:$AB$436,\"<>0\")","v":{"v":0,"d":"0.00"}},{"$f":"SUMIFS('M&E'!$Q$237:$Q$436,'M&E'!$C$237:$C$436,$D76,'M&E'!$AB$237:$AB$436,\"<>0\")","v":{"v":0,"d":"0.00"}},"",{"v":0,"d":"0.00"},{"$f":"SUMIFS('M&E'!$BT$237:$BT$436,'M&E'!$C$237:$C$436,$D76,'M&E'!$AB$237:$AB$436,\"<>0\")","v":{"v":0,"d":"0.00"}},null,{"$f":"SUMIFS('M&E'!$T$237:$T$436,'M&E'!$C$237:$C$436,$D76,'M&E'!$AB$237:$AB$436,\"<>0\")","v":{"v":0,"d":"0.00"}},{"$f":"SUMIFS('M&E'!$U$237:$U$436,'M&E'!$C$237:$C$436,$D76,'M&E'!$AB$237:$AB$436,\"<>0\")","v":{"v":0,"d":"0.00"}},"",{"v":0,"d":"0.00"},{"$f":"SUMIFS('M&E'!$BU$237:$BU$436,'M&E'!$C$237:$C$436,$D76,'M&E'!$AB$237:$AB$436,\"<>0\")","v":{"v":0,"d":"0.00"}},null,{"$f":"SUMIFS('M&E'!$X$237:$X$436,'M&E'!$C$237:$C$436,$D76,'M&E'!$AB$237:$AB$436,\"<>0\")","v":{"v":0,"d":"0.00"}},{"$f":"SUMIFS('M&E'!$Y$237:$Y$436,'M&E'!$C$237:$C$436,$D76,'M&E'!$AB$237:$AB$436,\"<>0\")","v":{"v":0,"d":"0.00"}},"",{"v":0,"d":"0.00"},{"$f":"SUMIFS('M&E'!$BV$237:$BV$436,'M&E'!$C$237:$C$436,$D76,'M&E'!$AB$237:$AB$436,\"<>0\")","v":{"v":0,"d":"0.00"}},null,{"v":0,"d":"0.00"},{"v":0,"d":"0.00"},"",{"v":0,"d":"0.00"},{"v":0,"d":"0.00"}]
[{"$nulls":3},{"$f":"Lists!G24","v":" "},{"$f":"Lists!F24","v":0},null,null,{"$f":"SUMIFS('M&E'!$L$237:$L$436,'M&E'!$C$237:$C$436,$D77,'M&E'!$AB$237:$AB$436,\"<>0\")","v":{"v":0,"d":"0.00"}},{"$f":"SUMIFS('M&E'!$M$237:$M$436,'M&E'!$C$237:$C$436,$D77,'M&E'!$AB$237:$AB$436,\"<>0\")","v":{"v":0,"d":"0.00"}},"",{"v":0,"d":"0.00"},{"$f":"SUMIFS('M&E'!$BJ$237:$BJ$436,'M&E'!$C$237:$C$436,$D77,'M&E'!$AB$237:$AB$436,\"<>0\")","v":{"v":0,"d":"0.00"}},null,{"$f":"SUMIFS('M&E'!$P$237:$P$436,'M&E'!$C$237:$C$436,$D77,'M&E'!$AB$237:$AB$436,\"<>0\")","v":{"v":0,"d":"0.00"}},{"$f":"SUMIFS('M&E'!$Q$237:$Q$436,'M&E'!$C$237:$C$436,$D77,'M&E'!$AB$237:$AB$436,\"<>0\")","v":{"v":0,"d":"0.00"}},"",{"v":0,"d":"0.00"},{"$f":"SUMIFS('M&E'!$BT$237:$BT$436,'M&E'!$C$237:$C$436,$D77,'M&E'!$AB$237:$AB$436,\"<>0\")","v":{"v":0,"d":"0.00"}},null,{"$f":"SUMIFS('M&E'!$T$237:$T$436,'M&E'!$C$237:$C$436,$D77,'M&E'!$AB$237:$AB$436,\"<>0\")","v":{"v":0,"d":"0.00"}},{"$f":"SUMIFS('M&E'!$U$237:$U$436,'M&E'!$C$237:$C$436,$D77,'M&E'!$AB$237:$AB$436,\"<>0\")","v":{"v":0,"d":"0.00"}},"",{"v":0,"d":"0.00"},{"$f":"SUMIFS('M&E'!$BU$237:$BU$436,'M&E'!$C$237:$C$436,$D77,'M&E'!$AB$237:$AB$436,\"<>0\")","v":{"v":0,"d":"0.00"}},null,{"$f":"SUMIFS('M&E'!$X$237:$X$436,'M&E'!$C$237:$C$436,$D77,'M&E'!$AB$237:$AB$436,\"<>0\")","v":{"v":0,"d":"0.00"}},{"$f":"SUMIFS('M&E'!$Y$237:$Y$436,'M&E'!$C$237:$C$436,$D77,'M&E'!$AB$237:$AB$436,\"<>0\")","v":{"v":0,"d":"0.00"}},"",{"v":0,"d":"0.00"},{"$f":"SUMIFS('M&E'!$BV$237:$BV$436,'M&E'!$C$237:$C$436,$D77,'M&E'!$AB$237:$AB$436,\"<>0\")","v":{"v":0,"d":"0.00"}},null,{"v":0,"d":"0.00"},{"v":0,"d":"0.00"},"",{"v":0,"d":"0.00"},{"v":0,"d":"0.00"}]
[{"$nulls":3},{"$f":"Lists!G25","v":" "},{"$f":"Lists!F25","v":0},null,null,{"$f":"SUMIFS('M&E'!$L$237:$L$436,'M&E'!$C$237:$C$436,$D78,'M&E'!$AB$237:$AB$436,\"<>0\")","v":{"v":0,"d":"0.00"}},{"$f":"SUMIFS('M&E'!$M$237:$M$436,'M&E'!$C$237:$C$436,$D78,'M&E'!$AB$237:$AB$436,\"<>0\")","v":{"v":0,"d":"0.00"}},"",{"v":0,"d":"0.00"},{"$f":"SUMIFS('M&E'!$BJ$237:$BJ$436,'M&E'!$C$237:$C$436,$D78,'M&E'!$AB$237:$AB$436,\"<>0\")","v":{"v":0,"d":"0.00"}},null,{"$f":"SUMIFS('M&E'!$P$237:$P$436,'M&E'!$C$237:$C$436,$D78,'M&E'!$AB$237:$AB$436,\"<>0\")","v":{"v":0,"d":"0.00"}},{"$f":"SUMIFS('M&E'!$Q$237:$Q$436,'M&E'!$C$237:$C$436,$D78,'M&E'!$AB$237:$AB$436,\"<>0\")","v":{"v":0,"d":"0.00"}},"",{"v":0,"d":"0.00"},{"$f":"SUMIFS('M&E'!$BT$237:$BT$436,'M&E'!$C$237:$C$436,$D78,'M&E'!$AB$237:$AB$436,\"<>0\")","v":{"v":0,"d":"0.00"}},null,{"$f":"SUMIFS('M&E'!$T$237:$T$436,'M&E'!$C$237:$C$436,$D78,'M&E'!$AB$237:$AB$436,\"<>0\")","v":{"v":0,"d":"0.00"}},{"$f":"SUMIFS('M&E'!$U$237:$U$436,'M&E'!$C$237:$C$436,$D78,'M&E'!$AB$237:$AB$436,\"<>0\")","v":{"v":0,"d":"0.00"}},"",{"v":0,"d":"0.00"},{"$f":"SUMIFS('M&E'!$BU$237:$BU$436,'M&E'!$C$237:$C$436,$D78,'M&E'!$AB$237:$AB$436,\"<>0\")","v":{"v":0,"d":"0.00"}},null,{"$f":"SUMIFS('M&E'!$X$237:$X$436,'M&E'!$C$237:$C$436,$D78,'M&E'!$AB$237:$AB$436,\"<>0\")","v":{"v":0,"d":"0.00"}},{"$f":"SUMIFS('M&E'!$Y$237:$Y$436,'M&E'!$C$237:$C$436,$D78,'M&E'!$AB$237:$AB$436,\"<>0\")","v":{"v":0,"d":"0.00"}},"",{"v":0,"d":"0.00"},{"$f":"SUMIFS('M&E'!$BV$237:$BV$436,'M&E'!$C$237:$C$436,$D78,'M&E'!$AB$237:$AB$436,\"<>0\")","v":{"v":0,"d":"0.00"}},null,{"v":0,"d":"0.00"},{"v":0,"d":"0.00"},"",{"v":0,"d":"0.00"},{"v":0,"d":"0.00"}]
[{"$nulls":3},{"$f":"Lists!G26","v":" "},{"$f":"Lists!F26","v":0},null,null,{"$f":"SUMIFS('M&E'!$L$237:$L$436,'M&E'!$C$237:$C$436,$D79,'M&E'!$AB$237:$AB$436,\"<>0\")","v":{"v":0,"d":"0.00"}},{"$f":"SUMIFS('M&E'!$M$237:$M$436,'M&E'!$C$237:$C$436,$D79,'M&E'!$AB$237:$AB$436,\"<>0\")","v":{"v":0,"d":"0.00"}},"",{"v":0,"d":"0.00"},{"$f":"SUMIFS('M&E'!$BJ$237:$BJ$436,'M&E'!$C$237:$C$436,$D79,'M&E'!$AB$237:$AB$436,\"<>0\")","v":{"v":0,"d":"0.00"}},null,{"$f":"SUMIFS('M&E'!$P$237:$P$436,'M&E'!$C$237:$C$436,$D79,'M&E'!$AB$237:$AB$436,\"<>0\")","v":{"v":0,"d":"0.00"}},{"$f":"SUMIFS('M&E'!$Q$237:$Q$436,'M&E'!$C$237:$C$436,$D79,'M&E'!$AB$237:$AB$436,\"<>0\")","v":{"v":0,"d":"0.00"}},"",{"v":0,"d":"0.00"},{"$f":"SUMIFS('M&E'!$BT$237:$BT$436,'M&E'!$C$237:$C$436,$D79,'M&E'!$AB$237:$AB$436,\"<>0\")","v":{"v":0,"d":"0.00"}},null,{"$f":"SUMIFS('M&E'!$T$237:$T$436,'M&E'!$C$237:$C$436,$D79,'M&E'!$AB$237:$AB$436,\"<>0\")","v":{"v":0,"d":"0.00"}},{"$f":"SUMIFS('M&E'!$U$237:$U$436,'M&E'!$C$237:$C$436,$D79,'M&E'!$AB$237:$AB$436,\"<>0\")","v":{"v":0,"d":"0.00"}},"",{"v":0,"d":"0.00"},{"$f":"SUMIFS('M&E'!$BU$237:$BU$436,'M&E'!$C$237:$C$436,$D79,'M&E'!$AB$237:$AB$436,\"<>0\")","v":{"v":0,"d":"0.00"}},null,{"$f":"SUMIFS('M&E'!$X$237:$X$436,'M&E'!$C$237:$C$436,$D79,'M&E'!$AB$237:$AB$436,\"<>0\")","v":{"v":0,"d":"0.00"}},{"$f":"SUMIFS('M&E'!$Y$237:$Y$436,'M&E'!$C$237:$C$436,$D79,'M&E'!$AB$237:$AB$436,\"<>0\")","v":{"v":0,"d":"0.00"}},"",{"v":0,"d":"0.00"},{"$f":"SUMIFS('M&E'!$BV$237:$BV$436,'M&E'!$C$237:$C$436,$D79,'M&E'!$AB$237:$AB$436,\"<>0\")","v":{"v":0,"d":"0.00"}},null,{"v":0,"d":"0.00"},{"v":0,"d":"0.00"},"",{"v":0,"d":"0.00"},{"v":0,"d":"0.00"}]
[{"$nulls":3},{"$f":"Lists!G27","v":" "},{"$f":"Lists!F27","v":0},null,null,{"$f":"SUMIFS('M&E'!$L$237:$L$436,'M&E'!$C$237:$C$436,$D80,'M&E'!$AB$237:$AB$436,\"<>0\")","v":{"v":0,"d":"0.00"}},{"$f":"SUMIFS('M&E'!$M$237:$M$436,'M&E'!$C$237:$C$436,$D80,'M&E'!$AB$237:$AB$436,\"<>0\")","v":{"v":0,"d":"0.00"}},"",{"v":0,"d":"0.00"},{"$f":"SUMIFS('M&E'!$BJ$237:$BJ$436,'M&E'!$C$237:$C$436,$D80,'M&E'!$AB$237:$AB$436,\"<>0\")","v":{"v":0,"d":"0.00"}},null,{"$f":"SUMIFS('M&E'!$P$237:$P$436,'M&E'!$C$237:$C$436,$D80,'M&E'!$AB$237:$AB$436,\"<>0\")","v":{"v":0,"d":"0.00"}},{"$f":"SUMIFS('M&E'!$Q$237:$Q$436,'M&E'!$C$237:$C$436,$D80,'M&E'!$AB$237:$AB$436,\"<>0\")","v":{"v":0,"d":"0.00"}},"",{"v":0,"d":"0.00"},{"$f":"SUMIFS('M&E'!$BT$237:$BT$436,'M&E'!$C$237:$C$436,$D80,'M&E'!$AB$237:$AB$436,\"<>0\")","v":{"v":0,"d":"0.00"}},null,{"$f":"SUMIFS('M&E'!$T$237:$T$436,'M&E'!$C$237:$C$436,$D80,'M&E'!$AB$237:$AB$436,\"<>0\")","v":{"v":0,"d":"0.00"}},{"$f":"SUMIFS('M&E'!$U$237:$U$436,'M&E'!$C$237:$C$436,$D80,'M&E'!$AB$237:$AB$436,\"<>0\")","v":{"v":0,"d":"0.00"}},"",{"v":0,"d":"0.00"},{"$f":"SUMIFS('M&E'!$BU$237:$BU$436,'M&E'!$C$237:$C$436,$D80,'M&E'!$AB$237:$AB$436,\"<>0\")","v":{"v":0,"d":"0.00"}},null,{"$f":"SUMIFS('M&E'!$X$237:$X$436,'M&E'!$C$237:$C$436,$D80,'M&E'!$AB$237:$AB$436,\"<>0\")","v":{"v":0,"d":"0.00"}},{"$f":"SUMIFS('M&E'!$Y$237:$Y$436,'M&E'!$C$237:$C$436,$D80,'M&E'!$AB$237:$AB$436,\"<>0\")","v":{"v":0,"d":"0.00"}},"",{"v":0,"d":"0.00"},{"$f":"SUMIFS('M&E'!$BV$237:$BV$436,'M&E'!$C$237:$C$436,$D80,'M&E'!$AB$237:$AB$436,\"<>0\")","v":{"v":0,"d":"0.00"}},null,{"v":0,"d":"0.00"},{"v":0,"d":"0.00"},"",{"v":0,"d":"0.00"},{"v":0,"d":"0.00"}]
[{"$nulls":3},{"$f":"Lists!G28","v":" "},{"$f":"Lists!F28","v":0},null,null,{"$f":"SUMIFS('M&E'!$L$237:$L$436,'M&E'!$C$237:$C$436,$D81,'M&E'!$AB$237:$AB$436,\"<>0\")","v":{"v":0,"d":"0.00"}},{"$f":"SUMIFS('M&E'!$M$237:$M$436,'M&E'!$C$237:$C$436,$D81,'M&E'!$AB$237:$AB$436,\"<>0\")","v":{"v":0,"d":"0.00"}},"",{"v":0,"d":"0.00"},{"$f":"SUMIFS('M&E'!$BJ$237:$BJ$436,'M&E'!$C$237:$C$436,$D81,'M&E'!$AB$237:$AB$436,\"<>0\")","v":{"v":0,"d":"0.00"}},null,{"$f":"SUMIFS('M&E'!$P$237:$P$436,'M&E'!$C$237:$C$436,$D81,'M&E'!$AB$237:$AB$436,\"<>0\")","v":{"v":0,"d":"0.00"}},{"$f":"SUMIFS('M&E'!$Q$237:$Q$436,'M&E'!$C$237:$C$436,$D81,'M&E'!$AB$237:$AB$436,\"<>0\")","v":{"v":0,"d":"0.00"}},"",{"v":0,"d":"0.00"},{"$f":"SUMIFS('M&E'!$BT$237:$BT$436,'M&E'!$C$237:$C$436,$D81,'M&E'!$AB$237:$AB$436,\"<>0\")","v":{"v":0,"d":"0.00"}},null,{"$f":"SUMIFS('M&E'!$T$237:$T$436,'M&E'!$C$237:$C$436,$D81,'M&E'!$AB$237:$AB$436,\"<>0\")","v":{"v":0,"d":"0.00"}},{"$f":"SUMIFS('M&E'!$U$237:$U$436,'M&E'!$C$237:$C$436,$D81,'M&E'!$AB$237:$AB$436,\"<>0\")","v":{"v":0,"d":"0.00"}},"",{"v":0,"d":"0.00"},{"$f":"SUMIFS('M&E'!$BU$237:$BU$436,'M&E'!$C$237:$C$436,$D81,'M&E'!$AB$237:$AB$436,\"<>0\")","v":{"v":0,"d":"0.00"}},null,{"$f":"SUMIFS('M&E'!$X$237:$X$436,'M&E'!$C$237:$C$436,$D81,'M&E'!$AB$237:$AB$436,\"<>0\")","v":{"v":0,"d":"0.00"}},{"$f":"SUMIFS('M&E'!$Y$237:$Y$436,'M&E'!$C$237:$C$436,$D81,'M&E'!$AB$237:$AB$436,\"<>0\")","v":{"v":0,"d":"0.00"}},"",{"v":0,"d":"0.00"},{"$f":"SUMIFS('M&E'!$BV$237:$BV$436,'M&E'!$C$237:$C$436,$D81,'M&E'!$AB$237:$AB$436,\"<>0\")","v":{"v":0,"d":"0.00"}},null,{"v":0,"d":"0.00"},{"v":0,"d":"0.00"},"",{"v":0,"d":"0.00"},{"v":0,"d":"0.00"}]
[{"$nulls":3},{"$f":"Lists!G29","v":" "},{"$f":"Lists!F29","v":0},null,null,{"$f":"SUMIFS('M&E'!$L$237:$L$436,'M&E'!$C$237:$C$436,$D82,'M&E'!$AB$237:$AB$436,\"<>0\")","v":{"v":0,"d":"0.00"}},{"$f":"SUMIFS('M&E'!$M$237:$M$436,'M&E'!$C$237:$C$436,$D82,'M&E'!$AB$237:$AB$436,\"<>0\")","v":{"v":0,"d":"0.00"}},"",{"v":0,"d":"0.00"},{"$f":"SUMIFS('M&E'!$BJ$237:$BJ$436,'M&E'!$C$237:$C$436,$D82,'M&E'!$AB$237:$AB$436,\"<>0\")","v":{"v":0,"d":"0.00"}},null,{"$f":"SUMIFS('M&E'!$P$237:$P$436,'M&E'!$C$237:$C$436,$D82,'M&E'!$AB$237:$AB$436,\"<>0\")","v":{"v":0,"d":"0.00"}},{"$f":"SUMIFS('M&E'!$Q$237:$Q$436,'M&E'!$C$237:$C$436,$D82,'M&E'!$AB$237:$AB$436,\"<>0\")","v":{"v":0,"d":"0.00"}},"",{"v":0,"d":"0.00"},{"$f":"SUMIFS('M&E'!$BT$237:$BT$436,'M&E'!$C$237:$C$436,$D82,'M&E'!$AB$237:$AB$436,\"<>0\")","v":{"v":0,"d":"0.00"}},null,{"$f":"SUMIFS('M&E'!$T$237:$T$436,'M&E'!$C$237:$C$436,$D82,'M&E'!$AB$237:$AB$436,\"<>0\")","v":{"v":0,"d":"0.00"}},{"$f":"SUMIFS('M&E'!$U$237:$U$436,'M&E'!$C$237:$C$436,$D82,'M&E'!$AB$237:$AB$436,\"<>0\")","v":{"v":0,"d":"0.00"}},"",{"v":0,"d":"0.00"},{"$f":"SUMIFS('M&E'!$BU$237:$BU$436,'M&E'!$C$237:$C$436,$D82,'M&E'!$AB$237:$AB$436,\"<>0\")","v":{"v":0,"d":"0.00"}},null,{"$f":"SUMIFS('M&E'!$X$237:$X$436,'M&E'!$C$237:$C$436,$D82,'M&E'!$AB$237:$AB$436,\"<>0\")","v":{"v":0,"d":"0.00"}},{"$f":"SUMIFS('M&E'!$Y$237:$Y$436,'M&E'!$C$237:$C$436,$D82,'M&E'!$AB$237:$AB$436,\"<>0\")","v":{"v":0,"d":"0.00"}},"",{"v":0,"d":"0.00"},{"$f":"SUMIFS('M&E'!$BV$237:$BV$436,'M&E'!$C$237:$C$436,$D82,'M&E'!$AB$237:$AB$436,\"<>0\")","v":{"v":0,"d":"0.00"}},null,{"v":0,"d":"0.00"},{"v":0,"d":"0.00"},"",{"v":0,"d":"0.00"},{"v":0,"d":"0.00"}]
[{"$nulls":3},{"$f":"Lists!G30","v":" "},{"$f":"Lists!F30","v":0},null,null,{"$f":"SUMIFS('M&E'!$L$237:$L$436,'M&E'!$C$237:$C$436,$D83,'M&E'!$AB$237:$AB$436,\"<>0\")","v":{"v":0,"d":"0.00"}},{"$f":"SUMIFS('M&E'!$M$237:$M$436,'M&E'!$C$237:$C$436,$D83,'M&E'!$AB$237:$AB$436,\"<>0\")","v":{"v":0,"d":"0.00"}},"",{"v":0,"d":"0.00"},{"$f":"SUMIFS('M&E'!$BJ$237:$BJ$436,'M&E'!$C$237:$C$436,$D83,'M&E'!$AB$237:$AB$436,\"<>0\")","v":{"v":0,"d":"0.00"}},null,{"$f":"SUMIFS('M&E'!$P$237:$P$436,'M&E'!$C$237:$C$436,$D83,'M&E'!$AB$237:$AB$436,\"<>0\")","v":{"v":0,"d":"0.00"}},{"$f":"SUMIFS('M&E'!$Q$237:$Q$436,'M&E'!$C$237:$C$436,$D83,'M&E'!$AB$237:$AB$436,\"<>0\")","v":{"v":0,"d":"0.00"}},"",{"v":0,"d":"0.00"},{"$f":"SUMIFS('M&E'!$BT$237:$BT$436,'M&E'!$C$237:$C$436,$D83,'M&E'!$AB$237:$AB$436,\"<>0\")","v":{"v":0,"d":"0.00"}},null,{"$f":"SUMIFS('M&E'!$T$237:$T$436,'M&E'!$C$237:$C$436,$D83,'M&E'!$AB$237:$AB$436,\"<>0\")","v":{"v":0,"d":"0.00"}},{"$f":"SUMIFS('M&E'!$U$237:$U$436,'M&E'!$C$237:$C$436,$D83,'M&E'!$AB$237:$AB$436,\"<>0\")","v":{"v":0,"d":"0.00"}},"",{"v":0,"d":"0.00"},{"$f":"SUMIFS('M&E'!$BU$237:$BU$436,'M&E'!$C$237:$C$436,$D83,'M&E'!$AB$237:$AB$436,\"<>0\")","v":{"v":0,"d":"0.00"}},null,{"$f":"SUMIFS('M&E'!$X$237:$X$436,'M&E'!$C$237:$C$436,$D83,'M&E'!$AB$237:$AB$436,\"<>0\")","v":{"v":0,"d":"0.00"}},{"$f":"SUMIFS('M&E'!$Y$237:$Y$436,'M&E'!$C$237:$C$436,$D83,'M&E'!$AB$237:$AB$436,\"<>0\")","v":{"v":0,"d":"0.00"}},"",{"v":0,"d":"0.00"},{"$f":"SUMIFS('M&E'!$BV$237:$BV$436,'M&E'!$C$237:$C$436,$D83,'M&E'!$AB$237:$AB$436,\"<>0\")","v":{"v":0,"d":"0.00"}},null,{"v":0,"d":"0.00"},{"v":0,"d":"0.00"},"",{"v":0,"d":"0.00"},{"v":0,"d":"0.00"}]
[{"$nulls":3},{"$f":"Lists!G31","v":" "},{"$f":"Lists!F31","v":0},null,null,{"$f":"SUMIFS('M&E'!$L$237:$L$436,'M&E'!$C$237:$C$436,$D84,'M&E'!$AB$237:$AB$436,\"<>0\")","v":{"v":0,"d":"0.00"}},{"$f":"SUMIFS('M&E'!$M$237:$M$436,'M&E'!$C$237:$C$436,$D84,'M&E'!$AB$237:$AB$436,\"<>0\")","v":{"v":0,"d":"0.00"}},"",{"v":0,"d":"0.00"},{"$f":"SUMIFS('M&E'!$BJ$237:$BJ$436,'M&E'!$C$237:$C$436,$D84,'M&E'!$AB$237:$AB$436,\"<>0\")","v":{"v":0,"d":"0.00"}},null,{"$f":"SUMIFS('M&E'!$P$237:$P$436,'M&E'!$C$237:$C$436,$D84,'M&E'!$AB$237:$AB$436,\"<>0\")","v":{"v":0,"d":"0.00"}},{"$f":"SUMIFS('M&E'!$Q$237:$Q$436,'M&E'!$C$237:$C$436,$D84,'M&E'!$AB$237:$AB$436,\"<>0\")","v":{"v":0,"d":"0.00"}},"",{"v":0,"d":"0.00"},{"$f":"SUMIFS('M&E'!$BT$237:$BT$436,'M&E'!$C$237:$C$436,$D84,'M&E'!$AB$237:$AB$436,\"<>0\")","v":{"v":0,"d":"0.00"}},null,{"$f":"SUMIFS('M&E'!$T$237:$T$436,'M&E'!$C$237:$C$436,$D84,'M&E'!$AB$237:$AB$436,\"<>0\")","v":{"v":0,"d":"0.00"}},{"$f":"SUMIFS('M&E'!$U$237:$U$436,'M&E'!$C$237:$C$436,$D84,'M&E'!$AB$237:$AB$436,\"<>0\")","v":{"v":0,"d":"0.00"}},"",{"v":0,"d":"0.00"},{"$f":"SUMIFS('M&E'!$BU$237:$BU$436,'M&E'!$C$237:$C$436,$D84,'M&E'!$AB$237:$AB$436,\"<>0\")","v":{"v":0,"d":"0.00"}},null,{"$f":"SUMIFS('M&E'!$X$237:$X$436,'M&E'!$C$237:$C$436,$D84,'M&E'!$AB$237:$AB$436,\"<>0\")","v":{"v":0,"d":"0.00"}},{"$f":"SUMIFS('M&E'!$Y$237:$Y$436,'M&E'!$C$237:$C$436,$D84,'M&E'!$AB$237:$AB$436,\"<>0\")","v":{"v":0,"d":"0.00"}},"",{"v":0,"d":"0.00"},{"$f":"SUMIFS('M&E'!$BV$237:$BV$436,'M&E'!$C$237:$C$436,$D84,'M&E'!$AB$237:$AB$436,\"<>0\")","v":{"v":0,"d":"0.00"}},null,{"v":0,"d":"0.00"},{"v":0,"d":"0.00"},"",{"v":0,"d":"0.00"},{"v":0,"d":"0.00"}]
[{"$nulls":3},{"$f":"Lists!G32","v":" "},{"$f":"Lists!F32","v":0},null,null,{"$f":"SUMIFS('M&E'!$L$237:$L$436,'M&E'!$C$237:$C$436,$D85,'M&E'!$AB$237:$AB$436,\"<>0\")","v":{"v":0,"d":"0.00"}},{"$f":"SUMIFS('M&E'!$M$237:$M$436,'M&E'!$C$237:$C$436,$D85,'M&E'!$AB$237:$AB$436,\"<>0\")","v":{"v":0,"d":"0.00"}},"",{"v":0,"d":"0.00"},{"$f":"SUMIFS('M&E'!$BJ$237:$BJ$436,'M&E'!$C$237:$C$436,$D85,'M&E'!$AB$237:$AB$436,\"<>0\")","v":{"v":0,"d":"0.00"}},null,{"$f":"SUMIFS('M&E'!$P$237:$P$436,'M&E'!$C$237:$C$436,$D85,'M&E'!$AB$237:$AB$436,\"<>0\")","v":{"v":0,"d":"0.00"}},{"$f":"SUMIFS('M&E'!$Q$237:$Q$436,'M&E'!$C$237:$C$436,$D85,'M&E'!$AB$237:$AB$436,\"<>0\")","v":{"v":0,"d":"0.00"}},"",{"v":0,"d":"0.00"},{"$f":"SUMIFS('M&E'!$BT$237:$BT$436,'M&E'!$C$237:$C$436,$D85,'M&E'!$AB$237:$AB$436,\"<>0\")","v":{"v":0,"d":"0.00"}},null,{"$f":"SUMIFS('M&E'!$T$237:$T$436,'M&E'!$C$237:$C$436,$D85,'M&E'!$AB$237:$AB$436,\"<>0\")","v":{"v":0,"d":"0.00"}},{"$f":"SUMIFS('M&E'!$U$237:$U$436,'M&E'!$C$237:$C$436,$D85,'M&E'!$AB$237:$AB$436,\"<>0\")","v":{"v":0,"d":"0.00"}},"",{"v":0,"d":"0.00"},{"$f":"SUMIFS('M&E'!$BU$237:$BU$436,'M&E'!$C$237:$C$436,$D85,'M&E'!$AB$237:$AB$436,\"<>0\")","v":{"v":0,"d":"0.00"}},null,{"$f":"SUMIFS('M&E'!$X$237:$X$436,'M&E'!$C$237:$C$436,$D85,'M&E'!$AB$237:$AB$436,\"<>0\")","v":{"v":0,"d":"0.00"}},{"$f":"SUMIFS('M&E'!$Y$237:$Y$436,'M&E'!$C$237:$C$436,$D85,'M&E'!$AB$237:$AB$436,\"<>0\")","v":{"v":0,"d":"0.00"}},"",{"v":0,"d":"0.00"},{"$f":"SUMIFS('M&E'!$BV$237:$BV$436,'M&E'!$C$237:$C$436,$D85,'M&E'!$AB$237:$AB$436,\"<>0\")","v":{"v":0,"d":"0.00"}},null,{"v":0,"d":"0.00"},{"v":0,"d":"0.00"},"",{"v":0,"d":"0.00"},{"v":0,"d":"0.00"}]
[{"$nulls":3},{"$f":"Lists!G33","v":" "},{"$f":"Lists!F33","v":0},null,null,{"$f":"SUMIFS('M&E'!$L$237:$L$436,'M&E'!$C$237:$C$436,$D86,'M&E'!$AB$237:$AB$436,\"<>0\")","v":{"v":0,"d":"0.00"}},{"$f":"SUMIFS('M&E'!$M$237:$M$436,'M&E'!$C$237:$C$436,$D86,'M&E'!$AB$237:$AB$436,\"<>0\")","v":{"v":0,"d":"0.00"}},"",{"v":0,"d":"0.00"},{"$f":"SUMIFS('M&E'!$BJ$237:$BJ$436,'M&E'!$C$237:$C$436,$D86,'M&E'!$AB$237:$AB$436,\"<>0\")","v":{"v":0,"d":"0.00"}},null,{"$f":"SUMIFS('M&E'!$P$237:$P$436,'M&E'!$C$237:$C$436,$D86,'M&E'!$AB$237:$AB$436,\"<>0\")","v":{"v":0,"d":"0.00"}},{"$f":"SUMIFS('M&E'!$Q$237:$Q$436,'M&E'!$C$237:$C$436,$D86,'M&E'!$AB$237:$AB$436,\"<>0\")","v":{"v":0,"d":"0.00"}},"",{"v":0,"d":"0.00"},{"$f":"SUMIFS('M&E'!$BT$237:$BT$436,'M&E'!$C$237:$C$436,$D86,'M&E'!$AB$237:$AB$436,\"<>0\")","v":{"v":0,"d":"0.00"}},null,{"$f":"SUMIFS('M&E'!$T$237:$T$436,'M&E'!$C$237:$C$436,$D86,'M&E'!$AB$237:$AB$436,\"<>0\")","v":{"v":0,"d":"0.00"}},{"$f":"SUMIFS('M&E'!$U$237:$U$436,'M&E'!$C$237:$C$436,$D86,'M&E'!$AB$237:$AB$436,\"<>0\")","v":{"v":0,"d":"0.00"}},"",{"v":0,"d":"0.00"},{"$f":"SUMIFS('M&E'!$BU$237:$BU$436,'M&E'!$C$237:$C$436,$D86,'M&E'!$AB$237:$AB$436,\"<>0\")","v":{"v":0,"d":"0.00"}},null,{"$f":"SUMIFS('M&E'!$X$237:$X$436,'M&E'!$C$237:$C$436,$D86,'M&E'!$AB$237:$AB$436,\"<>0\")","v":{"v":0,"d":"0.00"}},{"$f":"SUMIFS('M&E'!$Y$237:$Y$436,'M&E'!$C$237:$C$436,$D86,'M&E'!$AB$237:$AB$436,\"<>0\")","v":{"v":0,"d":"0.00"}},"",{"v":0,"d":"0.00"},{"$f":"SUMIFS('M&E'!$BV$237:$BV$436,'M&E'!$C$237:$C$436,$D86,'M&E'!$AB$237:$AB$436,\"<>0\")","v":{"v":0,"d":"0.00"}},null,{"v":0,"d":"0.00"},{"v":0,"d":"0.00"},"",{"v":0,"d":"0.00"},{"v":0,"d":"0.00"}]
[{"$nulls":3},{"$f":"Lists!G34","v":" "},{"$f":"Lists!F34","v":0},null,null,{"$f":"SUMIFS('M&E'!$L$237:$L$436,'M&E'!$C$237:$C$436,$D87,'M&E'!$AB$237:$AB$436,\"<>0\")","v":{"v":0,"d":"0.00"}},{"$f":"SUMIFS('M&E'!$M$237:$M$436,'M&E'!$C$237:$C$436,$D87,'M&E'!$AB$237:$AB$436,\"<>0\")","v":{"v":0,"d":"0.00"}},"",{"v":0,"d":"0.00"},{"$f":"SUMIFS('M&E'!$BJ$237:$BJ$436,'M&E'!$C$237:$C$436,$D87,'M&E'!$AB$237:$AB$436,\"<>0\")","v":{"v":0,"d":"0.00"}},null,{"$f":"SUMIFS('M&E'!$P$237:$P$436,'M&E'!$C$237:$C$436,$D87,'M&E'!$AB$237:$AB$436,\"<>0\")","v":{"v":0,"d":"0.00"}},{"$f":"SUMIFS('M&E'!$Q$237:$Q$436,'M&E'!$C$237:$C$436,$D87,'M&E'!$AB$237:$AB$436,\"<>0\")","v":{"v":0,"d":"0.00"}},"",{"v":0,"d":"0.00"},{"$f":"SUMIFS('M&E'!$BT$237:$BT$436,'M&E'!$C$237:$C$436,$D87,'M&E'!$AB$237:$AB$436,\"<>0\")","v":{"v":0,"d":"0.00"}},null,{"$f":"SUMIFS('M&E'!$T$237:$T$436,'M&E'!$C$237:$C$436,$D87,'M&E'!$AB$237:$AB$436,\"<>0\")","v":{"v":0,"d":"0.00"}},{"$f":"SUMIFS('M&E'!$U$237:$U$436,'M&E'!$C$237:$C$436,$D87,'M&E'!$AB$237:$AB$436,\"<>0\")","v":{"v":0,"d":"0.00"}},"",{"v":0,"d":"0.00"},{"$f":"SUMIFS('M&E'!$BU$237:$BU$436,'M&E'!$C$237:$C$436,$D87,'M&E'!$AB$237:$AB$436,\"<>0\")","v":{"v":0,"d":"0.00"}},null,{"$f":"SUMIFS('M&E'!$X$237:$X$436,'M&E'!$C$237:$C$436,$D87,'M&E'!$AB$237:$AB$436,\"<>0\")","v":{"v":0,"d":"0.00"}},{"$f":"SUMIFS('M&E'!$Y$237:$Y$436,'M&E'!$C$237:$C$436,$D87,'M&E'!$AB$237:$AB$436,\"<>0\")","v":{"v":0,"d":"0.00"}},"",{"v":0,"d":"0.00"},{"$f":"SUMIFS('M&E'!$BV$237:$BV$436,'M&E'!$C$237:$C$436,$D87,'M&E'!$AB$237:$AB$436,\"<>0\")","v":{"v":0,"d":"0.00"}},null,{"v":0,"d":"0.00"},{"v":0,"d":"0.00"},"",{"v":0,"d":"0.00"},{"v":0,"d":"0.00"}]
[{"$nulls":3},{"$f":"Lists!G35","v":" "},{"$f":"Lists!F35","v":0},null,null,{"$f":"SUMIFS('M&E'!$L$237:$L$436,'M&E'!$C$237:$C$436,$D88,'M&E'!$AB$237:$AB$436,\"<>0\")","v":{"v":0,"d":"0.00"}},{"$f":"SUMIFS('M&E'!$M$237:$M$436,'M&E'!$C$237:$C$436,$D88,'M&E'!$AB$237:$AB$436,\"<>0\")","v":{"v":0,"d":"0.00"}},"",{"v":0,"d":"0.00"},{"$f":"SUMIFS('M&E'!$BJ$237:$BJ$436,'M&E'!$C$237:$C$436,$D88,'M&E'!$AB$237:$AB$436,\"<>0\")","v":{"v":0,"d":"0.00"}},null,{"$f":"SUMIFS('M&E'!$P$237:$P$436,'M&E'!$C$237:$C$436,$D88,'M&E'!$AB$237:$AB$436,\"<>0\")","v":{"v":0,"d":"0.00"}},{"$f":"SUMIFS('M&E'!$Q$237:$Q$436,'M&E'!$C$237:$C$436,$D88,'M&E'!$AB$237:$AB$436,\"<>0\")","v":{"v":0,"d":"0.00"}},"",{"v":0,"d":"0.00"},{"$f":"SUMIFS('M&E'!$BT$237:$BT$436,'M&E'!$C$237:$C$436,$D88,'M&E'!$AB$237:$AB$436,\"<>0\")","v":{"v":0,"d":"0.00"}},null,{"$f":"SUMIFS('M&E'!$T$237:$T$436,'M&E'!$C$237:$C$436,$D88,'M&E'!$AB$237:$AB$436,\"<>0\")","v":{"v":0,"d":"0.00"}},{"$f":"SUMIFS('M&E'!$U$237:$U$436,'M&E'!$C$237:$C$436,$D88,'M&E'!$AB$237:$AB$436,\"<>0\")","v":{"v":0,"d":"0.00"}},"",{"v":0,"d":"0.00"},{"$f":"SUMIFS('M&E'!$BU$237:$BU$436,'M&E'!$C$237:$C$436,$D88,'M&E'!$AB$237:$AB$436,\"<>0\")","v":{"v":0,"d":"0.00"}},null,{"$f":"SUMIFS('M&E'!$X$237:$X$436,'M&E'!$C$237:$C$436,$D88,'M&E'!$AB$237:$AB$436,\"<>0\")","v":{"v":0,"d":"0.00"}},{"$f":"SUMIFS('M&E'!$Y$237:$Y$436,'M&E'!$C$237:$C$436,$D88,'M&E'!$AB$237:$AB$436,\"<>0\")","v":{"v":0,"d":"0.00"}},"",{"v":0,"d":"0.00"},{"$f":"SUMIFS('M&E'!$BV$237:$BV$436,'M&E'!$C$237:$C$436,$D88,'M&E'!$AB$237:$AB$436,\"<>0\")","v":{"v":0,"d":"0.00"}},null,{"v":0,"d":"0.00"},{"v":0,"d":"0.00"},"",{"v":0,"d":"0.00"},{"v":0,"d":"0.00"}]
[{"$nulls":3},{"$f":"Lists!G36","v":" "},{"$f":"Lists!F36","v":0},null,null,{"$f":"SUMIFS('M&E'!$L$237:$L$436,'M&E'!$C$237:$C$436,$D89,'M&E'!$AB$237:$AB$436,\"<>0\")","v":{"v":0,"d":"0.00"}},{"$f":"SUMIFS('M&E'!$M$237:$M$436,'M&E'!$C$237:$C$436,$D89,'M&E'!$AB$237:$AB$436,\"<>0\")","v":{"v":0,"d":"0.00"}},"",{"v":0,"d":"0.00"},{"$f":"SUMIFS('M&E'!$BJ$237:$BJ$436,'M&E'!$C$237:$C$436,$D89,'M&E'!$AB$237:$AB$436,\"<>0\")","v":{"v":0,"d":"0.00"}},null,{"$f":"SUMIFS('M&E'!$P$237:$P$436,'M&E'!$C$237:$C$436,$D89,'M&E'!$AB$237:$AB$436,\"<>0\")","v":{"v":0,"d":"0.00"}},{"$f":"SUMIFS('M&E'!$Q$237:$Q$436,'M&E'!$C$237:$C$436,$D89,'M&E'!$AB$237:$AB$436,\"<>0\")","v":{"v":0,"d":"0.00"}},"",{"v":0,"d":"0.00"},{"$f":"SUMIFS('M&E'!$BT$237:$BT$436,'M&E'!$C$237:$C$436,$D89,'M&E'!$AB$237:$AB$436,\"<>0\")","v":{"v":0,"d":"0.00"}},null,{"$f":"SUMIFS('M&E'!$T$237:$T$436,'M&E'!$C$237:$C$436,$D89,'M&E'!$AB$237:$AB$436,\"<>0\")","v":{"v":0,"d":"0.00"}},{"$f":"SUMIFS('M&E'!$U$237:$U$436,'M&E'!$C$237:$C$436,$D89,'M&E'!$AB$237:$AB$436,\"<>0\")","v":{"v":0,"d":"0.00"}},"",{"v":0,"d":"0.00"},{"$f":"SUMIFS('M&E'!$BU$237:$BU$436,'M&E'!$C$237:$C$436,$D89,'M&E'!$AB$237:$AB$436,\"<>0\")","v":{"v":0,"d":"0.00"}},null,{"$f":"SUMIFS('M&E'!$X$237:$X$436,'M&E'!$C$237:$C$436,$D89,'M&E'!$AB$237:$AB$436,\"<>0\")","v":{"v":0,"d":"0.00"}},{"$f":"SUMIFS('M&E'!$Y$237:$Y$436,'M&E'!$C$237:$C$436,$D89,'M&E'!$AB$237:$AB$436,\"<>0\")","v":{"v":0,"d":"0.00"}},"",{"v":0,"d":"0.00"},{"$f":"SUMIFS('M&E'!$BV$237:$BV$436,'M&E'!$C$237:$C$436,$D89,'M&E'!$AB$237:$AB$436,\"<>0\")","v":{"v":0,"d":"0.00"}},null,{"v":0,"d":"0.00"},{"v":0,"d":"0.00"},"",{"v":0,"d":"0.00"},{"v":0,"d":"0.00"}]
[{"$nulls":3},{"$f":"Lists!G37","v":" "},{"$f":"Lists!F37","v":0},null,null,{"$f":"SUMIFS('M&E'!$L$237:$L$436,'M&E'!$C$237:$C$436,$D90,'M&E'!$AB$237:$AB$436,\"<>0\")","v":{"v":0,"d":"0.00"}},{"$f":"SUMIFS('M&E'!$M$237:$M$436,'M&E'!$C$237:$C$436,$D90,'M&E'!$AB$237:$AB$436,\"<>0\")","v":{"v":0,"d":"0.00"}},"",{"v":0,"d":"0.00"},{"$f":"SUMIFS('M&E'!$BJ$237:$BJ$436,'M&E'!$C$237:$C$436,$D90,'M&E'!$AB$237:$AB$436,\"<>0\")","v":{"v":0,"d":"0.00"}},null,{"$f":"SUMIFS('M&E'!$P$237:$P$436,'M&E'!$C$237:$C$436,$D90,'M&E'!$AB$237:$AB$436,\"<>0\")","v":{"v":0,"d":"0.00"}},{"$f":"SUMIFS('M&E'!$Q$237:$Q$436,'M&E'!$C$237:$C$436,$D90,'M&E'!$AB$237:$AB$436,\"<>0\")","v":{"v":0,"d":"0.00"}},"",{"v":0,"d":"0.00"},{"$f":"SUMIFS('M&E'!$BT$237:$BT$436,'M&E'!$C$237:$C$436,$D90,'M&E'!$AB$237:$AB$436,\"<>0\")","v":{"v":0,"d":"0.00"}},null,{"$f":"SUMIFS('M&E'!$T$237:$T$436,'M&E'!$C$237:$C$436,$D90,'M&E'!$AB$237:$AB$436,\"<>0\")","v":{"v":0,"d":"0.00"}},{"$f":"SUMIFS('M&E'!$U$237:$U$436,'M&E'!$C$237:$C$436,$D90,'M&E'!$AB$237:$AB$436,\"<>0\")","v":{"v":0,"d":"0.00"}},"",{"v":0,"d":"0.00"},{"$f":"SUMIFS('M&E'!$BU$237:$BU$436,'M&E'!$C$237:$C$436,$D90,'M&E'!$AB$237:$AB$436,\"<>0\")","v":{"v":0,"d":"0.00"}},null,{"$f":"SUMIFS('M&E'!$X$237:$X$436,'M&E'!$C$237:$C$436,$D90,'M&E'!$AB$237:$AB$436,\"<>0\")","v":{"v":0,"d":"0.00"}},{"$f":"SUMIFS('M&E'!$Y$237:$Y$436,'M&E'!$C$237:$C$436,$D90,'M&E'!$AB$237:$AB$436,\"<>0\")","v":{"v":0,"d":"0.00"}},"",{"v":0,"d":"0.00"},{"$f":"SUMIFS('M&E'!$BV$237:$BV$436,'M&E'!$C$237:$C$436,$D90,'M&E'!$AB$237:$AB$436,\"<>0\")","v":{"v":0,"d":"0.00"}},null,{"v":0,"d":"0.00"},{"v":0,"d":"0.00"},"",{"v":0,"d":"0.00"},{"v":0,"d":"0.00"}]
[{"$nulls":3},{"$f":"Lists!G38","v":" "},{"$f":"Lists!F38","v":0},null,null,{"$f":"SUMIFS('M&E'!$L$237:$L$436,'M&E'!$C$237:$C$436,$D91,'M&E'!$AB$237:$AB$436,\"<>0\")","v":{"v":0,"d":"0.00"}},{"$f":"SUMIFS('M&E'!$M$237:$M$436,'M&E'!$C$237:$C$436,$D91,'M&E'!$AB$237:$AB$436,\"<>0\")","v":{"v":0,"d":"0.00"}},"",{"v":0,"d":"0.00"},{"$f":"SUMIFS('M&E'!$BJ$237:$BJ$436,'M&E'!$C$237:$C$436,$D91,'M&E'!$AB$237:$AB$436,\"<>0\")","v":{"v":0,"d":"0.00"}},null,{"$f":"SUMIFS('M&E'!$P$237:$P$436,'M&E'!$C$237:$C$436,$D91,'M&E'!$AB$237:$AB$436,\"<>0\")","v":{"v":0,"d":"0.00"}},{"$f":"SUMIFS('M&E'!$Q$237:$Q$436,'M&E'!$C$237:$C$436,$D91,'M&E'!$AB$237:$AB$436,\"<>0\")","v":{"v":0,"d":"0.00"}},"",{"v":0,"d":"0.00"},{"$f":"SUMIFS('M&E'!$BT$237:$BT$436,'M&E'!$C$237:$C$436,$D91,'M&E'!$AB$237:$AB$436,\"<>0\")","v":{"v":0,"d":"0.00"}},null,{"$f":"SUMIFS('M&E'!$T$237:$T$436,'M&E'!$C$237:$C$436,$D91,'M&E'!$AB$237:$AB$436,\"<>0\")","v":{"v":0,"d":"0.00"}},{"$f":"SUMIFS('M&E'!$U$237:$U$436,'M&E'!$C$237:$C$436,$D91,'M&E'!$AB$237:$AB$436,\"<>0\")","v":{"v":0,"d":"0.00"}},"",{"v":0,"d":"0.00"},{"$f":"SUMIFS('M&E'!$BU$237:$BU$436,'M&E'!$C$237:$C$436,$D91,'M&E'!$AB$237:$AB$436,\"<>0\")","v":{"v":0,"d":"0.00"}},null,{"$f":"SUMIFS('M&E'!$X$237:$X$436,'M&E'!$C$237:$C$436,$D91,'M&E'!$AB$237:$AB$436,\"<>0\")","v":{"v":0,"d":"0.00"}},{"$f":"SUMIFS('M&E'!$Y$237:$Y$436,'M&E'!$C$237:$C$436,$D91,'M&E'!$AB$237:$AB$436,\"<>0\")","v":{"v":0,"d":"0.00"}},"",{"v":0,"d":"0.00"},{"$f":"SUMIFS('M&E'!$BV$237:$BV$436,'M&E'!$C$237:$C$436,$D91,'M&E'!$AB$237:$AB$436,\"<>0\")","v":{"v":0,"d":"0.00"}},null,{"v":0,"d":"0.00"},{"v":0,"d":"0.00"},"",{"v":0,"d":"0.00"},{"v":0,"d":"0.00"}]
[{"$nulls":3},{"$f":"Lists!G39","v":" "},{"$f":"Lists!F39","v":0},null,null,{"$f":"SUMIFS('M&E'!$L$237:$L$436,'M&E'!$C$237:$C$436,$D92,'M&E'!$AB$237:$AB$436,\"<>0\")","v":{"v":0,"d":"0.00"}},{"$f":"SUMIFS('M&E'!$M$237:$M$436,'M&E'!$C$237:$C$436,$D92,'M&E'!$AB$237:$AB$436,\"<>0\")","v":{"v":0,"d":"0.00"}},"",{"v":0,"d":"0.00"},{"$f":"SUMIFS('M&E'!$BJ$237:$BJ$436,'M&E'!$C$237:$C$436,$D92,'M&E'!$AB$237:$AB$436,\"<>0\")","v":{"v":0,"d":"0.00"}},null,{"$f":"SUMIFS('M&E'!$P$237:$P$436,'M&E'!$C$237:$C$436,$D92,'M&E'!$AB$237:$AB$436,\"<>0\")","v":{"v":0,"d":"0.00"}},{"$f":"SUMIFS('M&E'!$Q$237:$Q$436,'M&E'!$C$237:$C$436,$D92,'M&E'!$AB$237:$AB$436,\"<>0\")","v":{"v":0,"d":"0.00"}},"",{"v":0,"d":"0.00"},{"$f":"SUMIFS('M&E'!$BT$237:$BT$436,'M&E'!$C$237:$C$436,$D92,'M&E'!$AB$237:$AB$436,\"<>0\")","v":{"v":0,"d":"0.00"}},null,{"$f":"SUMIFS('M&E'!$T$237:$T$436,'M&E'!$C$237:$C$436,$D92,'M&E'!$AB$237:$AB$436,\"<>0\")","v":{"v":0,"d":"0.00"}},{"$f":"SUMIFS('M&E'!$U$237:$U$436,'M&E'!$C$237:$C$436,$D92,'M&E'!$AB$237:$AB$436,\"<>0\")","v":{"v":0,"d":"0.00"}},"",{"v":0,"d":"0.00"},{"$f":"SUMIFS('M&E'!$BU$237:$BU$436,'M&E'!$C$237:$C$436,$D92,'M&E'!$AB$237:$AB$436,\"<>0\")","v":{"v":0,"d":"0.00"}},null,{"$f":"SUMIFS('M&E'!$X$237:$X$436,'M&E'!$C$237:$C$436,$D92,'M&E'!$AB$237:$AB$436,\"<>0\")","v":{"v":0,"d":"0.00"}},{"$f":"SUMIFS('M&E'!$Y$237:$Y$436,'M&E'!$C$237:$C$436,$D92,'M&E'!$AB$237:$AB$436,\"<>0\")","v":{"v":0,"d":"0.00"}},"",{"v":0,"d":"0.00"},{"$f":"SUMIFS('M&E'!$BV$237:$BV$436,'M&E'!$C$237:$C$436,$D92,'M&E'!$AB$237:$AB$436,\"<>0\")","v":{"v":0,"d":"0.00"}},null,{"v":0,"d":"0.00"},{"v":0,"d":"0.00"},"",{"v":0,"d":"0.00"},{"v":0,"d":"0.00"}]
[{"$nulls":3},{"$f":"Lists!G40","v":" "},{"$f":"Lists!F40","v":0},null,null,{"$f":"SUMIFS('M&E'!$L$237:$L$436,'M&E'!$C$237:$C$436,$D93,'M&E'!$AB$237:$AB$436,\"<>0\")","v":{"v":0,"d":"0.00"}},{"$f":"SUMIFS('M&E'!$M$237:$M$436,'M&E'!$C$237:$C$436,$D93,'M&E'!$AB$237:$AB$436,\"<>0\")","v":{"v":0,"d":"0.00"}},"",{"v":0,"d":"0.00"},{"$f":"SUMIFS('M&E'!$BJ$237:$BJ$436,'M&E'!$C$237:$C$436,$D93,'M&E'!$AB$237:$AB$436,\"<>0\")","v":{"v":0,"d":"0.00"}},null,{"$f":"SUMIFS('M&E'!$P$237:$P$436,'M&E'!$C$237:$C$436,$D93,'M&E'!$AB$237:$AB$436,\"<>0\")","v":{"v":0,"d":"0.00"}},{"$f":"SUMIFS('M&E'!$Q$237:$Q$436,'M&E'!$C$237:$C$436,$D93,'M&E'!$AB$237:$AB$436,\"<>0\")","v":{"v":0,"d":"0.00"}},"",{"v":0,"d":"0.00"},{"$f":"SUMIFS('M&E'!$BT$237:$BT$436,'M&E'!$C$237:$C$436,$D93,'M&E'!$AB$237:$AB$436,\"<>0\")","v":{"v":0,"d":"0.00"}},null,{"$f":"SUMIFS('M&E'!$T$237:$T$436,'M&E'!$C$237:$C$436,$D93,'M&E'!$AB$237:$AB$436,\"<>0\")","v":{"v":0,"d":"0.00"}},{"$f":"SUMIFS('M&E'!$U$237:$U$436,'M&E'!$C$237:$C$436,$D93,'M&E'!$AB$237:$AB$436,\"<>0\")","v":{"v":0,"d":"0.00"}},"",{"v":0,"d":"0.00"},{"$f":"SUMIFS('M&E'!$BU$237:$BU$436,'M&E'!$C$237:$C$436,$D93,'M&E'!$AB$237:$AB$436,\"<>0\")","v":{"v":0,"d":"0.00"}},null,{"$f":"SUMIFS('M&E'!$X$237:$X$436,'M&E'!$C$237:$C$436,$D93,'M&E'!$AB$237:$AB$436,\"<>0\")","v":{"v":0,"d":"0.00"}},{"$f":"SUMIFS('M&E'!$Y$237:$Y$436,'M&E'!$C$237:$C$436,$D93,'M&E'!$AB$237:$AB$436,\"<>0\")","v":{"v":0,"d":"0.00"}},"",{"v":0,"d":"0.00"},{"$f":"SUMIFS('M&E'!$BV$237:$BV$436,'M&E'!$C$237:$C$436,$D93,'M&E'!$AB$237:$AB$436,\"<>0\")","v":{"v":0,"d":"0.00"}},null,{"v":0,"d":"0.00"},{"v":0,"d":"0.00"},"",{"v":0,"d":"0.00"},{"v":0,"d":"0.00"}]
[{"$nulls":3},{"$f":"Lists!G41","v":" "},{"$f":"Lists!F41","v":0},null,null,{"$f":"SUMIFS('M&E'!$L$237:$L$436,'M&E'!$C$237:$C$436,$D94,'M&E'!$AB$237:$AB$436,\"<>0\")","v":{"v":0,"d":"0.00"}},{"$f":"SUMIFS('M&E'!$M$237:$M$436,'M&E'!$C$237:$C$436,$D94,'M&E'!$AB$237:$AB$436,\"<>0\")","v":{"v":0,"d":"0.00"}},"",{"v":0,"d":"0.00"},{"$f":"SUMIFS('M&E'!$BJ$237:$BJ$436,'M&E'!$C$237:$C$436,$D94,'M&E'!$AB$237:$AB$436,\"<>0\")","v":{"v":0,"d":"0.00"}},null,{"$f":"SUMIFS('M&E'!$P$237:$P$436,'M&E'!$C$237:$C$436,$D94,'M&E'!$AB$237:$AB$436,\"<>0\")","v":{"v":0,"d":"0.00"}},{"$f":"SUMIFS('M&E'!$Q$237:$Q$436,'M&E'!$C$237:$C$436,$D94,'M&E'!$AB$237:$AB$436,\"<>0\")","v":{"v":0,"d":"0.00"}},"",{"v":0,"d":"0.00"},{"$f":"SUMIFS('M&E'!$BT$237:$BT$436,'M&E'!$C$237:$C$436,$D94,'M&E'!$AB$237:$AB$436,\"<>0\")","v":{"v":0,"d":"0.00"}},null,{"$f":"SUMIFS('M&E'!$T$237:$T$436,'M&E'!$C$237:$C$436,$D94,'M&E'!$AB$237:$AB$436,\"<>0\")","v":{"v":0,"d":"0.00"}},{"$f":"SUMIFS('M&E'!$U$237:$U$436,'M&E'!$C$237:$C$436,$D94,'M&E'!$AB$237:$AB$436,\"<>0\")","v":{"v":0,"d":"0.00"}},"",{"v":0,"d":"0.00"},{"$f":"SUMIFS('M&E'!$BU$237:$BU$436,'M&E'!$C$237:$C$436,$D94,'M&E'!$AB$237:$AB$436,\"<>0\")","v":{"v":0,"d":"0.00"}},null,{"$f":"SUMIFS('M&E'!$X$237:$X$436,'M&E'!$C$237:$C$436,$D94,'M&E'!$AB$237:$AB$436,\"<>0\")","v":{"v":0,"d":"0.00"}},{"$f":"SUMIFS('M&E'!$Y$237:$Y$436,'M&E'!$C$237:$C$436,$D94,'M&E'!$AB$237:$AB$436,\"<>0\")","v":{"v":0,"d":"0.00"}},"",{"v":0,"d":"0.00"},{"$f":"SUMIFS('M&E'!$BV$237:$BV$436,'M&E'!$C$237:$C$436,$D94,'M&E'!$AB$237:$AB$436,\"<>0\")","v":{"v":0,"d":"0.00"}},null,{"v":0,"d":"0.00"},{"v":0,"d":"0.00"},"",{"v":0,"d":"0.00"},{"v":0,"d":"0.00"}]
[{"$nulls":3},{"$f":"Lists!G42","v":" "},{"$f":"Lists!F42","v":0},null,null,{"$f":"SUMIFS('M&E'!$L$237:$L$436,'M&E'!$C$237:$C$436,$D95,'M&E'!$AB$237:$AB$436,\"<>0\")","v":{"v":0,"d":"0.00"}},{"$f":"SUMIFS('M&E'!$M$237:$M$436,'M&E'!$C$237:$C$436,$D95,'M&E'!$AB$237:$AB$436,\"<>0\")","v":{"v":0,"d":"0.00"}},"",{"v":0,"d":"0.00"},{"$f":"SUMIFS('M&E'!$BJ$237:$BJ$436,'M&E'!$C$237:$C$436,$D95,'M&E'!$AB$237:$AB$436,\"<>0\")","v":{"v":0,"d":"0.00"}},null,{"$f":"SUMIFS('M&E'!$P$237:$P$436,'M&E'!$C$237:$C$436,$D95,'M&E'!$AB$237:$AB$436,\"<>0\")","v":{"v":0,"d":"0.00"}},{"$f":"SUMIFS('M&E'!$Q$237:$Q$436,'M&E'!$C$237:$C$436,$D95,'M&E'!$AB$237:$AB$436,\"<>0\")","v":{"v":0,"d":"0.00"}},"",{"v":0,"d":"0.00"},{"$f":"SUMIFS('M&E'!$BT$237:$BT$436,'M&E'!$C$237:$C$436,$D95,'M&E'!$AB$237:$AB$436,\"<>0\")","v":{"v":0,"d":"0.00"}},null,{"$f":"SUMIFS('M&E'!$T$237:$T$436,'M&E'!$C$237:$C$436,$D95,'M&E'!$AB$237:$AB$436,\"<>0\")","v":{"v":0,"d":"0.00"}},{"$f":"SUMIFS('M&E'!$U$237:$U$436,'M&E'!$C$237:$C$436,$D95,'M&E'!$AB$237:$AB$436,\"<>0\")","v":{"v":0,"d":"0.00"}},"",{"v":0,"d":"0.00"},{"$f":"SUMIFS('M&E'!$BU$237:$BU$436,'M&E'!$C$237:$C$436,$D95,'M&E'!$AB$237:$AB$436,\"<>0\")","v":{"v":0,"d":"0.00"}},null,{"$f":"SUMIFS('M&E'!$X$237:$X$436,'M&E'!$C$237:$C$436,$D95,'M&E'!$AB$237:$AB$436,\"<>0\")","v":{"v":0,"d":"0.00"}},{"$f":"SUMIFS('M&E'!$Y$237:$Y$436,'M&E'!$C$237:$C$436,$D95,'M&E'!$AB$237:$AB$436,\"<>0\")","v":{"v":0,"d":"0.00"}},"",{"v":0,"d":"0.00"},{"$f":"SUMIFS('M&E'!$BV$237:$BV$436,'M&E'!$C$237:$C$436,$D95,'M&E'!$AB$237:$AB$436,\"<>0\")","v":{"v":0,"d":"0.00"}},null,{"v":0,"d":"0.00"},{"v":0,"d":"0.00"},"",{"v":0,"d":"0.00"},{"v":0,"d":"0.00"}]
[{"$nulls":3},{"$f":"Lists!G43","v":" "},{"$f":"Lists!F43","v":0},null,null,{"$f":"SUMIFS('M&E'!$L$237:$L$436,'M&E'!$C$237:$C$436,$D96,'M&E'!$AB$237:$AB$436,\"<>0\")","v":{"v":0,"d":"0.00"}},{"$f":"SUMIFS('M&E'!$M$237:$M$436,'M&E'!$C$237:$C$436,$D96,'M&E'!$AB$237:$AB$436,\"<>0\")","v":{"v":0,"d":"0.00"}},"",{"v":0,"d":"0.00"},{"$f":"SUMIFS('M&E'!$BJ$237:$BJ$436,'M&E'!$C$237:$C$436,$D96,'M&E'!$AB$237:$AB$436,\"<>0\")","v":{"v":0,"d":"0.00"}},null,{"$f":"SUMIFS('M&E'!$P$237:$P$436,'M&E'!$C$237:$C$436,$D96,'M&E'!$AB$237:$AB$436,\"<>0\")","v":{"v":0,"d":"0.00"}},{"$f":"SUMIFS('M&E'!$Q$237:$Q$436,'M&E'!$C$237:$C$436,$D96,'M&E'!$AB$237:$AB$436,\"<>0\")","v":{"v":0,"d":"0.00"}},"",{"v":0,"d":"0.00"},{"$f":"SUMIFS('M&E'!$BT$237:$BT$436,'M&E'!$C$237:$C$436,$D96,'M&E'!$AB$237:$AB$436,\"<>0\")","v":{"v":0,"d":"0.00"}},null,{"$f":"SUMIFS('M&E'!$T$237:$T$436,'M&E'!$C$237:$C$436,$D96,'M&E'!$AB$237:$AB$436,\"<>0\")","v":{"v":0,"d":"0.00"}},{"$f":"SUMIFS('M&E'!$U$237:$U$436,'M&E'!$C$237:$C$436,$D96,'M&E'!$AB$237:$AB$436,\"<>0\")","v":{"v":0,"d":"0.00"}},"",{"v":0,"d":"0.00"},{"$f":"SUMIFS('M&E'!$BU$237:$BU$436,'M&E'!$C$237:$C$436,$D96,'M&E'!$AB$237:$AB$436,\"<>0\")","v":{"v":0,"d":"0.00"}},null,{"$f":"SUMIFS('M&E'!$X$237:$X$436,'M&E'!$C$237:$C$436,$D96,'M&E'!$AB$237:$AB$436,\"<>0\")","v":{"v":0,"d":"0.00"}},{"$f":"SUMIFS('M&E'!$Y$237:$Y$436,'M&E'!$C$237:$C$436,$D96,'M&E'!$AB$237:$AB$436,\"<>0\")","v":{"v":0,"d":"0.00"}},"",{"v":0,"d":"0.00"},{"$f":"SUMIFS('M&E'!$BV$237:$BV$436,'M&E'!$C$237:$C$436,$D96,'M&E'!$AB$237:$AB$436,\"<>0\")","v":{"v":0,"d":"0.00"}},null,{"v":0,"d":"0.00"},{"v":0,"d":"0.00"},"",{"v":0,"d":"0.00"},{"v":0,"d":"0.00"}]
[{"$nulls":3},{"$f":"Lists!G44","v":" "},{"$f":"Lists!F44","v":0},null,null,{"$f":"SUMIFS('M&E'!$L$237:$L$436,'M&E'!$C$237:$C$436,$D97,'M&E'!$AB$237:$AB$436,\"<>0\")","v":{"v":0,"d":"0.00"}},{"$f":"SUMIFS('M&E'!$M$237:$M$436,'M&E'!$C$237:$C$436,$D97,'M&E'!$AB$237:$AB$436,\"<>0\")","v":{"v":0,"d":"0.00"}},"",{"v":0,"d":"0.00"},{"$f":"SUMIFS('M&E'!$BJ$237:$BJ$436,'M&E'!$C$237:$C$436,$D97,'M&E'!$AB$237:$AB$436,\"<>0\")","v":{"v":0,"d":"0.00"}},null,{"$f":"SUMIFS('M&E'!$P$237:$P$436,'M&E'!$C$237:$C$436,$D97,'M&E'!$AB$237:$AB$436,\"<>0\")","v":{"v":0,"d":"0.00"}},{"$f":"SUMIFS('M&E'!$Q$237:$Q$436,'M&E'!$C$237:$C$436,$D97,'M&E'!$AB$237:$AB$436,\"<>0\")","v":{"v":0,"d":"0.00"}},"",{"v":0,"d":"0.00"},{"$f":"SUMIFS('M&E'!$BT$237:$BT$436,'M&E'!$C$237:$C$436,$D97,'M&E'!$AB$237:$AB$436,\"<>0\")","v":{"v":0,"d":"0.00"}},null,{"$f":"SUMIFS('M&E'!$T$237:$T$436,'M&E'!$C$237:$C$436,$D97,'M&E'!$AB$237:$AB$436,\"<>0\")","v":{"v":0,"d":"0.00"}},{"$f":"SUMIFS('M&E'!$U$237:$U$436,'M&E'!$C$237:$C$436,$D97,'M&E'!$AB$237:$AB$436,\"<>0\")","v":{"v":0,"d":"0.00"}},"",{"v":0,"d":"0.00"},{"$f":"SUMIFS('M&E'!$BU$237:$BU$436,'M&E'!$C$237:$C$436,$D97,'M&E'!$AB$237:$AB$436,\"<>0\")","v":{"v":0,"d":"0.00"}},null,{"$f":"SUMIFS('M&E'!$X$237:$X$436,'M&E'!$C$237:$C$436,$D97,'M&E'!$AB$237:$AB$436,\"<>0\")","v":{"v":0,"d":"0.00"}},{"$f":"SUMIFS('M&E'!$Y$237:$Y$436,'M&E'!$C$237:$C$436,$D97,'M&E'!$AB$237:$AB$436,\"<>0\")","v":{"v":0,"d":"0.00"}},"",{"v":0,"d":"0.00"},{"$f":"SUMIFS('M&E'!$BV$237:$BV$436,'M&E'!$C$237:$C$436,$D97,'M&E'!$AB$237:$AB$436,\"<>0\")","v":{"v":0,"d":"0.00"}},null,{"v":0,"d":"0.00"},{"v":0,"d":"0.00"},"",{"v":0,"d":"0.00"},{"v":0,"d":"0.00"}]
[{"$nulls":3},{"$f":"Lists!G45","v":" "},{"$f":"Lists!F45","v":0},null,null,{"$f":"SUMIFS('M&E'!$L$237:$L$436,'M&E'!$C$237:$C$436,$D98,'M&E'!$AB$237:$AB$436,\"<>0\")","v":{"v":0,"d":"0.00"}},{"$f":"SUMIFS('M&E'!$M$237:$M$436,'M&E'!$C$237:$C$436,$D98,'M&E'!$AB$237:$AB$436,\"<>0\")","v":{"v":0,"d":"0.00"}},"",{"v":0,"d":"0.00"},{"$f":"SUMIFS('M&E'!$BJ$237:$BJ$436,'M&E'!$C$237:$C$436,$D98,'M&E'!$AB$237:$AB$436,\"<>0\")","v":{"v":0,"d":"0.00"}},null,{"$f":"SUMIFS('M&E'!$P$237:$P$436,'M&E'!$C$237:$C$436,$D98,'M&E'!$AB$237:$AB$436,\"<>0\")","v":{"v":0,"d":"0.00"}},{"$f":"SUMIFS('M&E'!$Q$237:$Q$436,'M&E'!$C$237:$C$436,$D98,'M&E'!$AB$237:$AB$436,\"<>0\")","v":{"v":0,"d":"0.00"}},"",{"v":0,"d":"0.00"},{"$f":"SUMIFS('M&E'!$BT$237:$BT$436,'M&E'!$C$237:$C$436,$D98,'M&E'!$AB$237:$AB$436,\"<>0\")","v":{"v":0,"d":"0.00"}},null,{"$f":"SUMIFS('M&E'!$T$237:$T$436,'M&E'!$C$237:$C$436,$D98,'M&E'!$AB$237:$AB$436,\"<>0\")","v":{"v":0,"d":"0.00"}},{"$f":"SUMIFS('M&E'!$U$237:$U$436,'M&E'!$C$237:$C$436,$D98,'M&E'!$AB$237:$AB$436,\"<>0\")","v":{"v":0,"d":"0.00"}},"",{"v":0,"d":"0.00"},{"$f":"SUMIFS('M&E'!$BU$237:$BU$436,'M&E'!$C$237:$C$436,$D98,'M&E'!$AB$237:$AB$436,\"<>0\")","v":{"v":0,"d":"0.00"}},null,{"$f":"SUMIFS('M&E'!$X$237:$X$436,'M&E'!$C$237:$C$436,$D98,'M&E'!$AB$237:$AB$436,\"<>0\")","v":{"v":0,"d":"0.00"}},{"$f":"SUMIFS('M&E'!$Y$237:$Y$436,'M&E'!$C$237:$C$436,$D98,'M&E'!$AB$237:$AB$436,\"<>0\")","v":{"v":0,"d":"0.00"}},"",{"v":0,"d":"0.00"},{"$f":"SUMIFS('M&E'!$BV$237:$BV$436,'M&E'!$C$237:$C$436,$D98,'M&E'!$AB$237:$AB$436,\"<>0\")","v":{"v":0,"d":"0.00"}},null,{"v":0,"d":"0.00"},{"v":0,"d":"0.00"},"",{"v":0,"d":"0.00"},{"v":0,"d":"0.00"}]
[{"$nulls":3},{"$f":"Lists!G46","v":" "},{"$f":"Lists!F46","v":0},null,null,{"$f":"SUMIFS('M&E'!$L$237:$L$436,'M&E'!$C$237:$C$436,$D99,'M&E'!$AB$237:$AB$436,\"<>0\")","v":{"v":0,"d":"0.00"}},{"$f":"SUMIFS('M&E'!$M$237:$M$436,'M&E'!$C$237:$C$436,$D99,'M&E'!$AB$237:$AB$436,\"<>0\")","v":{"v":0,"d":"0.00"}},"",{"v":0,"d":"0.00"},{"$f":"SUMIFS('M&E'!$BJ$237:$BJ$436,'M&E'!$C$237:$C$436,$D99,'M&E'!$AB$237:$AB$436,\"<>0\")","v":{"v":0,"d":"0.00"}},null,{"$f":"SUMIFS('M&E'!$P$237:$P$436,'M&E'!$C$237:$C$436,$D99,'M&E'!$AB$237:$AB$436,\"<>0\")","v":{"v":0,"d":"0.00"}},{"$f":"SUMIFS('M&E'!$Q$237:$Q$436,'M&E'!$C$237:$C$436,$D99,'M&E'!$AB$237:$AB$436,\"<>0\")","v":{"v":0,"d":"0.00"}},"",{"v":0,"d":"0.00"},{"$f":"SUMIFS('M&E'!$BT$237:$BT$436,'M&E'!$C$237:$C$436,$D99,'M&E'!$AB$237:$AB$436,\"<>0\")","v":{"v":0,"d":"0.00"}},null,{"$f":"SUMIFS('M&E'!$T$237:$T$436,'M&E'!$C$237:$C$436,$D99,'M&E'!$AB$237:$AB$436,\"<>0\")","v":{"v":0,"d":"0.00"}},{"$f":"SUMIFS('M&E'!$U$237:$U$436,'M&E'!$C$237:$C$436,$D99,'M&E'!$AB$237:$AB$436,\"<>0\")","v":{"v":0,"d":"0.00"}},"",{"v":0,"d":"0.00"},{"$f":"SUMIFS('M&E'!$BU$237:$BU$436,'M&E'!$C$237:$C$436,$D99,'M&E'!$AB$237:$AB$436,\"<>0\")","v":{"v":0,"d":"0.00"}},null,{"$f":"SUMIFS('M&E'!$X$237:$X$436,'M&E'!$C$237:$C$436,$D99,'M&E'!$AB$237:$AB$436,\"<>0\")","v":{"v":0,"d":"0.00"}},{"$f":"SUMIFS('M&E'!$Y$237:$Y$436,'M&E'!$C$237:$C$436,$D99,'M&E'!$AB$237:$AB$436,\"<>0\")","v":{"v":0,"d":"0.00"}},"",{"v":0,"d":"0.00"},{"$f":"SUMIFS('M&E'!$BV$237:$BV$436,'M&E'!$C$237:$C$436,$D99,'M&E'!$AB$237:$AB$436,\"<>0\")","v":{"v":0,"d":"0.00"}},null,{"v":0,"d":"0.00"},{"v":0,"d":"0.00"},"",{"v":0,"d":"0.00"},{"v":0,"d":"0.00"}]
[{"$nulls":3},{"$f":"Lists!G47","v":" "},{"$f":"Lists!F47","v":0},null,null,{"$f":"SUMIFS('M&E'!$L$237:$L$436,'M&E'!$C$237:$C$436,$D100,'M&E'!$AB$237:$AB$436,\"<>0\")","v":{"v":0,"d":"0.00"}},{"$f":"SUMIFS('M&E'!$M$237:$M$436,'M&E'!$C$237:$C$436,$D100,'M&E'!$AB$237:$AB$436,\"<>0\")","v":{"v":0,"d":"0.00"}},"",{"v":0,"d":"0.00"},{"$f":"SUMIFS('M&E'!$BJ$237:$BJ$436,'M&E'!$C$237:$C$436,$D100,'M&E'!$AB$237:$AB$436,\"<>0\")","v":{"v":0,"d":"0.00"}},null,{"$f":"SUMIFS('M&E'!$P$237:$P$436,'M&E'!$C$237:$C$436,$D100,'M&E'!$AB$237:$AB$436,\"<>0\")","v":{"v":0,"d":"0.00"}},{"$f":"SUMIFS('M&E'!$Q$237:$Q$436,'M&E'!$C$237:$C$436,$D100,'M&E'!$AB$237:$AB$436,\"<>0\")","v":{"v":0,"d":"0.00"}},"",{"v":0,"d":"0.00"},{"$f":"SUMIFS('M&E'!$BT$237:$BT$436,'M&E'!$C$237:$C$436,$D100,'M&E'!$AB$237:$AB$436,\"<>0\")","v":{"v":0,"d":"0.00"}},null,{"$f":"SUMIFS('M&E'!$T$237:$T$436,'M&E'!$C$237:$C$436,$D100,'M&E'!$AB$237:$AB$436,\"<>0\")","v":{"v":0,"d":"0.00"}},{"$f":"SUMIFS('M&E'!$U$237:$U$436,'M&E'!$C$237:$C$436,$D100,'M&E'!$AB$237:$AB$436,\"<>0\")","v":{"v":0,"d":"0.00"}},"",{"v":0,"d":"0.00"},{"$f":"SUMIFS('M&E'!$BU$237:$BU$436,'M&E'!$C$237:$C$436,$D100,'M&E'!$AB$237:$AB$436,\"<>0\")","v":{"v":0,"d":"0.00"}},null,{"$f":"SUMIFS('M&E'!$X$237:$X$436,'M&E'!$C$237:$C$436,$D100,'M&E'!$AB$237:$AB$436,\"<>0\")","v":{"v":0,"d":"0.00"}},{"$f":"SUMIFS('M&E'!$Y$237:$Y$436,'M&E'!$C$237:$C$436,$D100,'M&E'!$AB$237:$AB$436,\"<>0\")","v":{"v":0,"d":"0.00"}},"",{"v":0,"d":"0.00"},{"$f":"SUMIFS('M&E'!$BV$237:$BV$436,'M&E'!$C$237:$C$436,$D100,'M&E'!$AB$237:$AB$436,\"<>0\")","v":{"v":0,"d":"0.00"}},null,{"v":0,"d":"0.00"},{"v":0,"d":"0.00"},"",{"v":0,"d":"0.00"},{"v":0,"d":"0.00"}]
[{"$nulls":3},{"$f":"Lists!G48","v":" "},{"$f":"Lists!F48","v":0},null,null,{"$f":"SUMIFS('M&E'!$L$237:$L$436,'M&E'!$C$237:$C$436,$D101,'M&E'!$AB$237:$AB$436,\"<>0\")","v":{"v":0,"d":"0.00"}},{"$f":"SUMIFS('M&E'!$M$237:$M$436,'M&E'!$C$237:$C$436,$D101,'M&E'!$AB$237:$AB$436,\"<>0\")","v":{"v":0,"d":"0.00"}},"",{"v":0,"d":"0.00"},{"$f":"SUMIFS('M&E'!$BJ$237:$BJ$436,'M&E'!$C$237:$C$436,$D101,'M&E'!$AB$237:$AB$436,\"<>0\")","v":{"v":0,"d":"0.00"}},null,{"$f":"SUMIFS('M&E'!$P$237:$P$436,'M&E'!$C$237:$C$436,$D101,'M&E'!$AB$237:$AB$436,\"<>0\")","v":{"v":0,"d":"0.00"}},{"$f":"SUMIFS('M&E'!$Q$237:$Q$436,'M&E'!$C$237:$C$436,$D101,'M&E'!$AB$237:$AB$436,\"<>0\")","v":{"v":0,"d":"0.00"}},"",{"v":0,"d":"0.00"},{"$f":"SUMIFS('M&E'!$BT$237:$BT$436,'M&E'!$C$237:$C$436,$D101,'M&E'!$AB$237:$AB$436,\"<>0\")","v":{"v":0,"d":"0.00"}},null,{"$f":"SUMIFS('M&E'!$T$237:$T$436,'M&E'!$C$237:$C$436,$D101,'M&E'!$AB$237:$AB$436,\"<>0\")","v":{"v":0,"d":"0.00"}},{"$f":"SUMIFS('M&E'!$U$237:$U$436,'M&E'!$C$237:$C$436,$D101,'M&E'!$AB$237:$AB$436,\"<>0\")","v":{"v":0,"d":"0.00"}},"",{"v":0,"d":"0.00"},{"$f":"SUMIFS('M&E'!$BU$237:$BU$436,'M&E'!$C$237:$C$436,$D101,'M&E'!$AB$237:$AB$436,\"<>0\")","v":{"v":0,"d":"0.00"}},null,{"$f":"SUMIFS('M&E'!$X$237:$X$436,'M&E'!$C$237:$C$436,$D101,'M&E'!$AB$237:$AB$436,\"<>0\")","v":{"v":0,"d":"0.00"}},{"$f":"SUMIFS('M&E'!$Y$237:$Y$436,'M&E'!$C$237:$C$436,$D101,'M&E'!$AB$237:$AB$436,\"<>0\")","v":{"v":0,"d":"0.00"}},"",{"v":0,"d":"0.00"},{"$f":"SUMIFS('M&E'!$BV$237:$BV$436,'M&E'!$C$237:$C$436,$D101,'M&E'!$AB$237:$AB$436,\"<>0\")","v":{"v":0,"d":"0.00"}},null,{"v":0,"d":"0.00"},{"v":0,"d":"0.00"},"",{"v":0,"d":"0.00"},{"v":0,"d":"0.00"}]
[{"$nulls":3},{"$f":"Lists!G49","v":" "},{"$f":"Lists!F49","v":0},null,null,{"$f":"SUMIFS('M&E'!$L$237:$L$436,'M&E'!$C$237:$C$436,$D102,'M&E'!$AB$237:$AB$436,\"<>0\")","v":{"v":0,"d":"0.00"}},{"$f":"SUMIFS('M&E'!$M$237:$M$436,'M&E'!$C$237:$C$436,$D102,'M&E'!$AB$237:$AB$436,\"<>0\")","v":{"v":0,"d":"0.00"}},"",{"v":0,"d":"0.00"},{"$f":"SUMIFS('M&E'!$BJ$237:$BJ$436,'M&E'!$C$237:$C$436,$D102,'M&E'!$AB$237:$AB$436,\"<>0\")","v":{"v":0,"d":"0.00"}},null,{"$f":"SUMIFS('M&E'!$P$237:$P$436,'M&E'!$C$237:$C$436,$D102,'M&E'!$AB$237:$AB$436,\"<>0\")","v":{"v":0,"d":"0.00"}},{"$f":"SUMIFS('M&E'!$Q$237:$Q$436,'M&E'!$C$237:$C$436,$D102,'M&E'!$AB$237:$AB$436,\"<>0\")","v":{"v":0,"d":"0.00"}},"",{"v":0,"d":"0.00"},{"$f":"SUMIFS('M&E'!$BT$237:$BT$436,'M&E'!$C$237:$C$436,$D102,'M&E'!$AB$237:$AB$436,\"<>0\")","v":{"v":0,"d":"0.00"}},null,{"$f":"SUMIFS('M&E'!$T$237:$T$436,'M&E'!$C$237:$C$436,$D102,'M&E'!$AB$237:$AB$436,\"<>0\")","v":{"v":0,"d":"0.00"}},{"$f":"SUMIFS('M&E'!$U$237:$U$436,'M&E'!$C$237:$C$436,$D102,'M&E'!$AB$237:$AB$436,\"<>0\")","v":{"v":0,"d":"0.00"}},"",{"v":0,"d":"0.00"},{"$f":"SUMIFS('M&E'!$BU$237:$BU$436,'M&E'!$C$237:$C$436,$D102,'M&E'!$AB$237:$AB$436,\"<>0\")","v":{"v":0,"d":"0.00"}},null,{"$f":"SUMIFS('M&E'!$X$237:$X$436,'M&E'!$C$237:$C$436,$D102,'M&E'!$AB$237:$AB$436,\"<>0\")","v":{"v":0,"d":"0.00"}},{"$f":"SUMIFS('M&E'!$Y$237:$Y$436,'M&E'!$C$237:$C$436,$D102,'M&E'!$AB$237:$AB$436,\"<>0\")","v":{"v":0,"d":"0.00"}},"",{"v":0,"d":"0.00"},{"$f":"SUMIFS('M&E'!$BV$237:$BV$436,'M&E'!$C$237:$C$436,$D102,'M&E'!$AB$237:$AB$436,\"<>0\")","v":{"v":0,"d":"0.00"}},null,{"v":0,"d":"0.00"},{"v":0,"d":"0.00"},"",{"v":0,"d":"0.00"},{"v":0,"d":"0.00"}]
[{"$nulls":3},{"$f":"Translations!$A$109","v":"Totals"},{"$nulls":3},{"$f":"SUM(H58:H102)","v":{"v":504075,"d":"504,075.00"}},{"$f":"SUM(I58:I102)","v":{"v":494925,"d":"494,925.00"}},{"v":0.9818479392947478,"d":"98.18%"},{"v":9150,"d":"9,150.00"},{"$f":"SUM(L58:L102)","v":{"v":0,"d":"0.00"}},null,{"$f":"SUM(N58:N102)","v":{"v":615300,"d":"615,300.00"}},{"$f":"SUM(O58:O102)","v":{"v":617200,"d":"617,200.00"}},{"v":1.0030879245896311,"d":"100.31%"},{"$f":"SUM(Q58:Q102)","v":{"v":-1900,"d":"-1,900.00"}},{"v":9150,"d":"9,150.00"},null,{"$f":"SUM(T58:T102)","v":{"v":0,"d":"0.00"}},{"$f":"SUM(U58:U102)","v":{"v":0,"d":"0.00"}},"",{"$f":"SUM(W58:W102)","v":{"v":0,"d":"0.00"}},{"v":7250,"d":"7,250.00"},null,{"$f":"SUM(Z58:Z102)","v":{"v":0,"d":"0.00"}},{"$f":"SUM(AA58:AA102)","v":{"v":0,"d":"0.00"}},"",{"$f":"SUM(AC58:AC102)","v":{"v":0,"d":"0.00"}},{"v":7250,"d":"7,250.00"},null,{"$f":"SUM(AF58:AF102)","v":{"v":1119375,"d":"1,119,375.00"}},{"$f":"SUM(AG58:AG102)","v":{"v":1112125,"d":"1,112,125.00"}},{"v":0.9935231714126187,"d":"99.35%"},{"$f":"SUM(AI58:AI102)","v":{"v":7250,"d":"7,250.00"}},{"v":7250,"d":"7,250.00"}]

{"sheet":"Performance","index":6,"n_rows":212,"n_cols":13,"rows_kept":212,"hidden":true,"merged":[[1,4,1,13],[1,14,1,15],[2,4,2,13],[2,14,3,15],[3,4,3,13],[5,9,5,12],[6,0,15,6],[6,9,11,12],[13,14,13,15],[14,14,15,15],[19,0,19,12],[21,0,21,9],[22,0,22,9],[35,0,35,12],[66,0,66,12],[92,0,92,12],[141,0,141,7],[141,9,141,12],[210,0,210,12]]}
[]
["Performance",{"$nulls":3},{"$f":"Translations!A80","v":"SR Management Tool"}]
[{"$nulls":4},{"$f":"Setup!H11","v":"Direct Gender Partnership (DGP)"}]
[{"$nulls":4},{"$f":" Setup!H14 & \"  (\" & Setup!H13 & \")\" & \"  (\" & Setup!H16 & \")\"","v":"DMR-202-G01-H-00  (January  2016 - December 2016)  ($ - USD)"}]
[{"$nulls":12},{"$f":"Translations!A8","v":"Performance"}]
[{"$f":"Setup!G19","v":"Details of programatic indicators"},{"$nulls":8},{"$f":"Setup!G17","v":"Key population"}]
[{"$f":"Setup!H19","v":"# PLHIV that initiated ARV with CD4 count <200\n# new HIV+ enrolled in care services \n# aged 10-24 yrs reached by HIV life skills ed. in school "},{"$nulls":8},{"$f":"Setup!H17","v":"Sex Workers - Migrants - Women"}]
{"$rows_empty":12}
[{"$f":"Translations!A169","v":"Programatic indicadors execution "}]
[]
[{"$f":"Translations!A312","v":"Select the indicator from the list"}]
["[Pr74] # aged 10-24 yrs reached by HIV life skills ed. in school  Target [1. Standard]"]
{"$rows_empty":12}
[{"$f":"Translations!A126","v":"Comparison of programmatic results with expenditures"}]
{"$rows_empty":30}
[{"$f":"Translations!A407","v":"Overview of financial performance"}]
{"$rows_empty":25}
[{"$f":"Translations!A336","v":"Financial ratios (Quarterly)"}]
{"$rows_empty":48}
[{"$f":"Translations!A127","v":"Comparison of programmatic results with expenditures (by activity)"},{"$nulls":8},{"$f":"Translations!A128","v":"Comparison of budget and expenditure (by cost group)"}]
{"$rows_empty":68}
[{"$f":"IF(Lists!V9=1,Translations!A400,Translations!A401)","v":"Cumulative budget and expenditure (by objective)"}]
[{"$f":"IF(Lists!V9=1,Translations!A371,Translations!A372)","v":"Objective list"}]

{"sheet":"Comments","index":7,"n_rows":43,"n_cols":19,"rows_kept":43,"hidden":true,"merged":[[1,7,1,17],[2,7,2,17],[3,7,3,17],[4,7,4,17],[6,12,6,18],[7,0,16,10],[7,12,8,18],[11,12,12,13],[11,15,12,18],[14,11,16,14],[14,15,14,16],[15,15,16,16],[21,0,22,0],[21,3,22,9],[21,10,22,16],[21,17,22,18],[23,3,23,9],[23,10,23,16],[23,17,23,18],[24,3,24,9],[24,10,24,16],[24,17,24,18],[25,3,25,9],[25,10,25,16],[25,17,25,18],[26,3,26,9],[26,10,26,16],[26,17,26,18],[27,3,27,9],[27,10,27,16],[27,17,27,18],[28,3,28,9],[28,10,28,16],[28,17,28,18],[29,3,29,9],[29,10,29,16],[29,17,29,18],[30,3,30,9],[30,10,30,16],[30,17,30,18],[31,3,31,9],[31,10,31,16],[31,17,31,18],[32,3,32,9],[32,10,32,16],[32,17,32,18],[33,3,33,9],[33,10,33,16],[33,17,33,18],[34,3,34,9],[34,10,34,16],[34,17,34,18],[35,3,35,9],[35,10,35,16],[35,17,35,18],[36,3,36,9],[36,10,36,16],[36,17,36,18],[37,3,37,9],[37,10,37,16],[37,17,37,18],[38,3,38,9],[38,10,38,16],[38,17,38,18],[39,3,39,9],[39,10,39,16],[39,17,39,18],[40,3,40,9],[40,10,40,16],[40,17,40,18],[41,3,41,9],[41,10,41,16],[41,17,41,18],[42,3,42,9],[42,10,42,16],[42,17,42,18]]}
[]
["Comments",{"$nulls":6},{"$f":"Translations!A80","v":"SR Management Tool"}]
[{"$nulls":7},{"$f":"Setup!H11","v":"Direct Gender Partnership (DGP)"}]
[{"$nulls":7},{"$f":" Setup!H14 & \"  (\" & Setup!H13 & \")\"& \"  (\" & Setup!H15 & \")\"","v":"DMR-202-G01-H-00  (January  2016 - December 2016)  (HIV / AIDS)"}]
[]
[{"$nulls":18},{"$f":"Translations!A7","v":"PR Dashboard comments"}]
[{"$f":"Setup!G19","v":"Details of programatic indicators"},{"$nulls":11},{"$f":"Setup!G17","v":"Key population"}]
[{"$f":"Setup!H19","v":"# PLHIV that initiated ARV with CD4 count <200\n# new HIV+ enrolled in care services \n# aged 10-24 yrs reached by HIV life skills ed. in school "},{"$nulls":11},{"$f":"Setup!H17","v":"Sex Workers - Migrants - Women"}]
{"$rows_empty":13}
["ID",null,null,{"$f":"Translations!A81","v":"PR Dashboard indicators"},{"$nulls":6},{"$f":"Translations!A82","v":"PR Dashboard comments (max 500 characters)"},{"$nulls":6},{"$f":"Translations!A83","v":"Available characters"}]
[]
[{"$f":"Setup!AN72","v":"Fi3"},null,null,{"$f":"Setup!AP72","v":"Expenditure"},{"$nulls":6},0,{"$nulls":6},{"$f":"500-LEN(K24)","v":499}]
[{"$f":"Setup!AN9","v":"Fi5"},null,null,{"$f":"Setup!AP9","v":"Financial reports overdue"},{"$nulls":6},0,{"$nulls":6},{"$f":"500-LEN(K25)","v":499}]
[{"$f":"Setup!AN18","v":"Ma14"},null,null,{"$f":"Setup!AP18","v":"Programmatic reports past due"},{"$nulls":6},0,{"$nulls":6},499]
[{"$f":"Setup!AN16","v":"Ma12"},null,null,{"$f":"Setup!AP16","v":"Supervision recommendations past due"},{"$nulls":6},0,{"$nulls":6},499]
[{"$f":"Setup!AN60","v":"PS56"},null,null,{"$f":"Setup!AP60","v":0},{"$nulls":13},500]
[{"$f":"Setup!AN74","v":"Pr69"},null,null,{"$f":"Setup!AP74","v":"# PLHIV that initiated ARV wit: Actual"},{"$nulls":6},0,{"$nulls":6},499]
[{"$f":"Setup!AN76","v":"Pr73"},null,null,{"$f":"Setup!AP76","v":"# new HIV+ enrolled in care se: Actual"},{"$nulls":6},0,{"$nulls":6},{"$f":"500-LEN(K30)","v":499}]
[{"$f":"Setup!AN78","v":"Pr75"},null,null,{"$f":"Setup!AP78","v":"# aged 10-24 yrs reached by HI: Actual"},{"$nulls":6},0,{"$nulls":6},499]
[{"$f":"Setup!AN80","v":{"$error":"#VALUE!"}},null,null,{"$f":"Setup!AP80","v":0},{"$nulls":6},0,{"$nulls":6},499]
[{"$f":"Setup!AN82","v":{"$error":"#VALUE!"}},null,null,{"$f":"Setup!AP82","v":0},{"$nulls":6},0,{"$nulls":6},499]
[{"$f":"Setup!AN84","v":{"$error":"#VALUE!"}},null,null,{"$f":"Setup!AP84","v":0},{"$nulls":6},0,{"$nulls":6},499]
[{"$f":"Setup!AN86","v":{"$error":"#VALUE!"}},null,null,{"$f":"Setup!AP86","v":0},{"$nulls":6},0,{"$nulls":6},499]
[{"$f":"Setup!AN88","v":{"$error":"#VALUE!"}},null,null,{"$f":"Setup!AP88","v":0},{"$nulls":13},500]
[{"$f":"Setup!AN90","v":{"$error":"#VALUE!"}},null,null,{"$f":"Setup!AP90","v":0},{"$nulls":13},500]
[{"$f":"Setup!AN92","v":{"$error":"#VALUE!"}},null,null,{"$f":"Setup!AP92","v":0},{"$nulls":13},500]
[{"$f":"Setup!AN94","v":{"$error":"#VALUE!"}},null,null,{"$f":"Setup!AP94","v":0},{"$nulls":13},500]
[{"$f":"Setup!AN96","v":{"$error":"#VALUE!"}},null,null,{"$f":"Setup!AP96","v":0},{"$nulls":13},500]
[{"$f":"Setup!AN98","v":{"$error":"#VALUE!"}},null,null,{"$f":"Setup!AP98","v":0},{"$nulls":13},500]
[{"$f":"Setup!AN100","v":{"$error":"#VALUE!"}},null,null,{"$f":"Setup!AP100","v":0},{"$nulls":13},500]
[{"$f":"Setup!AN102","v":{"$error":"#VALUE!"}},null,null,{"$f":"Setup!AP102","v":0},{"$nulls":13},500]

{"sheet":"ActionPlan","index":8,"n_rows":52,"n_cols":27,"rows_kept":52,"hidden":true,"merged":[[1,4,1,13],[1,14,1,15],[2,4,2,13],[2,14,3,15],[3,4,3,13],[4,4,4,13],[5,9,5,15],[6,0,12,7],[6,9,7,15],[9,9,9,10],[9,12,9,15],[10,9,11,10],[10,12,11,15],[15,0,15,12],[15,14,15,15],[16,0,18,12],[16,14,17,15],[21,6,21,10],[21,11,21,13],[21,15,21,16],[21,17,21,18],[21,19,21,21],[21,22,21,23],[22,0,24,0],[22,3,24,4],[22,6,22,10],[22,11,22,13],[22,14,24,14],[22,15,24,16],[22,17,24,18],[22,19,24,21],[22,22,24,23],[23,6,23,10],[23,11,23,13],[24,6,24,10],[24,11,24,13],[25,0,27,0],[25,3,27,4],[25,6,25,10],[25,11,25,13],[25,14,27,14],[25,15,27,16],[25,17,27,18],[25,19,27,21],[25,22,27,23],[26,6,26,10],[26,11,26,13],[27,6,27,10],[27,11,27,13],[28,0,30,0],[28,3,30,4],[28,6,28,10],[28,11,28,13],[28,14,30,14],[28,15,30,16],[28,17,30,18],[28,19,30,21],[28,22,30,23],[29,6,29,10],[29,11,29,13],[30,6,30,10],[30,11,30,13],[31,0,33,0],[31,3,33,4],[31,6,31,10],[31,11,31,13],[31,14,33,14],[31,15,33,16],[31,17,33,18],[31,19,33,21],[31,22,33,23],[32,6,32,10],[32,11,32,13],[33,6,33,10],[33,11,33,13],[36,0,36,21],[38,13,38,21],[39,3,39,4],[39,6,39,7],[39,8,39,10],[39,11,39,12],[39,15,39,16],[39,20,39,21],[39,22,39,23],[40,3,40,4],[40,6,40,7],[40,8,40,10],[40,11,40,12],[40,15,40,16],[40,20,40,21],[40,22,40,23],[41,3,41,4],[41,6,41,7],[41,8,41,10],[41,11,41,12],[41,15,41,16],[41,20,41,21],[41,22,41,23],[42,3,42,4],[42,6,42,7],[42,8,42,10],[42,11,42,12],[42,15,42,16],[42,20,42,21],[42,22,42,23],[43,3,43,4],[43,6,43,7],[43,8,43,10],[43,11,43,12],[43,15,43,16],[43,20,43,21],[43,22,43,23],[44,3,44,4],[44,6,44,7],[44,8,44,10],[44,11,44,12],[44,15,44,16],[44,20,44,21],[44,22,44,23],[45,3,45,4],[45,6,45,7],[45,8,45,10],[45,11,45,12],[45,15,45,16],[45,20,45,21],[45,22,45,23],[46,3,46,4],[46,6,46,7],[46,8,46,10],[46,11,46,12],[46,15,46,16],[46,20,46,21],[46,22,46,23]]}
[]
["ActionPlan",{"$nulls":3},{"$f":"Translations!A80","v":"SR Management Tool"}]
[{"$nulls":4},{"$f":"Setup!H11","v":"Direct Gender Partnership (DGP)"}]
[{"$nulls":4},{"$f":" Setup!H14 & \"  (\" & Setup!H13 & \")\"& \"  (\" & Setup!H15 & \")\"","v":"DMR-202-G01-H-00  (January  2016 - December 2016)  (HIV / AIDS)"}]
[{"$nulls":4},{"$f":"Translations!A296&\"  (\"&Setup!H16&\")\"","v":"Action plan  ($ - USD)"},{"$nulls":21},"Estados"]
[{"$f":"Setup!G19","v":"Details of programatic indicators"},{"$nulls":8},{"$f":"Setup!G17","v":"Key population"},{"$nulls":16},"En Proceso"]
[{"$f":"Setup!H19","v":"# PLHIV that initiated ARV with CD4 count <200\n# new HIV+ enrolled in care services \n# aged 10-24 yrs reached by HIV life skills ed. in school "},{"$nulls":8},{"$f":"Setup!H17","v":"Sex Workers - Migrants - Women"},{"$nulls":16},"Cumplido"]
[{"$nulls":26},"Aplazado"]
[{"$nulls":26},"No Cumplido"]
[{"$nulls":9},{"$f":"Translations!A261","v":"Report date"},null,null,{"$f":"Translations!A130","v":"Reported by"}]
[]
[]
[]
[]
[]
[{"$f":"Translations!A141","v":"Contextual details"},{"$nulls":13},{"$f":"Translations!A120","v":"Date of verification"}]
[]
[]
[]
[]
[]
[{"$f":"Translations!A88","v":"Item"},null,null,{"$f":"Translations!A263","v":"Improvement actions"},null,null,{"$f":"Translations!A264","v":"Tasks"},{"$nulls":4},{"$f":"Translations!A265","v":"Task responsibles"},null,null,{"$f":"Translations!A266","v":"Start date"},{"$f":"Translations!A267","v":"Final date"},null,{"$f":"Translations!A268","v":"Necessary resources"},null,{"$f":"Translations!A269","v":"Indicator monitoring (deliverable)"},null,null,{"$f":"Translations!A270","v":"Monitoring responsible"}]
[1]
[{"$nulls":6},"b)"]
[{"$nulls":6},"c)"]
[2,{"$nulls":5},"a)"]
[{"$nulls":6},"b)"]
[{"$nulls":6},"c)"]
[3,{"$nulls":5},"a)"]
[{"$nulls":6},"b)"]
[{"$nulls":6},"c)"]
[4,{"$nulls":5},"a)"]
[{"$nulls":6},"b)"]
[{"$nulls":6},"c)"]
[]
[]
[{"$f":"Translations!A271","v":"Implementation plan"}]
[]
[{"$nulls":13},{"$f":"Translations!A280","v":"WEEKS"}]
[{"$f":"Translations!A88","v":"Item"},null,null,{"$f":"Translations!A272","v":"Deliverable"},null,null,{"$f":"Translations!A273","v":"Delivery date"},null,{"$f":"Translations!A270","v":"Monitoring responsible"},null,null,{"$f":"Translations!A16","v":"Status"},null,"04-Jan","11-Jan","18-Jan",null,"25-Jan","01-Feb","08-Feb","15-Feb"]
[{"$f":"A23","v":1},null,null,{"$f":"T23","v":0},null,null,{"$f":"P23","v":"00:00:00"},null,{"$f":"W23","v":0}]
[{"$f":"A26","v":2},null,null,0,null,null,{"$f":"P26","v":"00:00:00"},null,{"$f":"W26","v":0}]
[{"$f":"A29","v":3},null,null,0,null,null,{"$f":"P29","v":"00:00:00"},null,{"$f":"W29","v":0}]
[{"$f":"A32","v":4},null,null,0,null,null,{"$f":"P32","v":"00:00:00"},null,{"$f":"W32","v":0}]
[5,null,null,0,null,null,{"$f":"P33","v":"00:00:00"},null,{"$f":"W33","v":0}]
[6,null,null,0,null,null,{"$f":"P34","v":"00:00:00"},null,{"$f":"W34","v":0}]
[7,null,null,0,null,null,{"$f":"P35","v":"00:00:00"},null,{"$f":"W35","v":0}]
[]
[]
[]
[]
[{"$f":"Translations!A254","v":"PR coordinator signarture"},{"$nulls":13},{"$f":"Translations!A229","v":"SR representative signature"}]

{"sheet":"Translations","index":9,"n_rows":432,"n_cols":5,"rows_kept":432,"hidden":true}
[]
["Translations","Español","English","Francais","Portugues"]
[{"$f":"IF(OFFSET(A3,0,MATCH(Setup!$H$7,Idiomas,0))<>\"\",OFFSET(A3,0,MATCH(Setup!$H$7,Idiomas,0)),B3)","v":"Hello"},"Hola","Hello","Salut","Olá"]
[{"$f":"IF(OFFSET(A4,0,MATCH(Setup!$H$7,Idiomas,0))<>\"\",OFFSET(A4,0,MATCH(Setup!$H$7,Idiomas,0)),B4)","v":"Monthly follow-up reports"},"Informes de seguimiento mensual \n","Monthly follow-up reports"]
[{"$f":"IF(OFFSET(A5,0,MATCH(Setup!$H$7,Idiomas,0))<>\"\",OFFSET(A5,0,MATCH(Setup!$H$7,Idiomas,0)),B5)","v":"SR Management Tool"},"Herramienta de Gestión para Subreceptores","SR Management Tool"]
[{"$f":"IF(OFFSET(A6,0,MATCH(Setup!$H$7,Idiomas,0))<>\"\",OFFSET(A6,0,MATCH(Setup!$H$7,Idiomas,0)),B6)","v":"Comments"},"Comentarios","Comments"]
[{"$f":"IF(OFFSET(A7,0,MATCH(Setup!$H$7,Idiomas,0))<>\"\",OFFSET(A7,0,MATCH(Setup!$H$7,Idiomas,0)),B7)","v":"PR Dashboard comments"},"Comentarios para Tablero del RP","PR Dashboard comments"]
[{"$f":"IF(OFFSET(A8,0,MATCH(Setup!$H$7,Idiomas,0))<>\"\",OFFSET(A8,0,MATCH(Setup!$H$7,Idiomas,0)),B8)","v":"Performance"},"Desempeño","Performance"]
[{"$f":"IF(OFFSET(A9,0,MATCH(Setup!$H$7,Idiomas,0))<>\"\",OFFSET(A9,0,MATCH(Setup!$H$7,Idiomas,0)),B9)","v":"Initial setup"},"Configuración inicial","Initial setup"]
[{"$f":"IF(OFFSET(A10,0,MATCH(Setup!$H$7,Idiomas,0))<>\"\",OFFSET(A10,0,MATCH(Setup!$H$7,Idiomas,0)),B10)","v":"Annex reports"},"Informes anexos","Annex reports"]
[{"$f":"IF(OFFSET(A11,0,MATCH(Setup!$H$7,Idiomas,0))<>\"\",OFFSET(A11,0,MATCH(Setup!$H$7,Idiomas,0)),B11)","v":"Summary information"},"Informaciones consolidadas","Summary information"]
[{"$f":"IF(OFFSET(A12,0,MATCH(Setup!$H$7,Idiomas,0))<>\"\",OFFSET(A12,0,MATCH(Setup!$H$7,Idiomas,0)),B12)","v":"Programmatic & financial"},"Programático & financiero","Programmatic & financial"]
[{"$f":"IF(OFFSET(A13,0,MATCH(Setup!$H$7,Idiomas,0))<>\"\",OFFSET(A13,0,MATCH(Setup!$H$7,Idiomas,0)),B13)","v":"Expenditure"},"Ejecución presupuestaria","Expenditure"]
[{"$f":"IF(OFFSET(A14,0,MATCH(Setup!$H$7,Idiomas,0))<>\"\",OFFSET(A14,0,MATCH(Setup!$H$7,Idiomas,0)),B14)","v":"Hide current sheet"},"Ocultar hoja actual","Hide current sheet"]
[{"$f":"IF(OFFSET(A15,0,MATCH(Setup!$H$7,Idiomas,0))<>\"\",OFFSET(A15,0,MATCH(Setup!$H$7,Idiomas,0)),B15)","v":"Next steps"},"Pasos a seguir","Next steps"]
[{"$f":"IF(OFFSET(A16,0,MATCH(Setup!$H$7,Idiomas,0))<>\"\",OFFSET(A16,0,MATCH(Setup!$H$7,Idiomas,0)),B16)","v":"Status"},"Estado","Status"]
[{"$f":"IF(OFFSET(A17,0,MATCH(Setup!$H$7,Idiomas,0))<>\"\",OFFSET(A17,0,MATCH(Setup!$H$7,Idiomas,0)),B17)","v":"1. Input general data"},"1. Entrada de los datos generales","1. Input general data"]
[{"$f":"IF(OFFSET(A18,0,MATCH(Setup!$H$7,Idiomas,0))<>\"\",OFFSET(A18,0,MATCH(Setup!$H$7,Idiomas,0)),B18)","v":"2. Objectives according to the performance framework"},"2. Objetivos según el marco de desempeño","2. Objectives according to the performance framework"]
[{"$f":"IF(OFFSET(A19,0,MATCH(Setup!$H$7,Idiomas,0))<>\"\",OFFSET(A19,0,MATCH(Setup!$H$7,Idiomas,0)),B19)","v":"3. Insert the SR data entry sheet"},"3. Insertar la hoja de ingreso de datos del SR","3. Insert the SR data entry sheet"]
[{"$f":"IF(OFFSET(A20,0,MATCH(Setup!$H$7,Idiomas,0))<>\"\",OFFSET(A20,0,MATCH(Setup!$H$7,Idiomas,0)),B20)","v":"4. Define additional (non PRDB) programatic indicators"},"4. Definir indicadores programaticos adicionales","4. Define additional (non PRDB) programatic indicators"]
[{"$f":"IF(OFFSET(A21,0,MATCH(Setup!$H$7,Idiomas,0))<>\"\",OFFSET(A21,0,MATCH(Setup!$H$7,Idiomas,0)),B21)","v":"5. Associate indicators with objectives and indicator type"},"5. Asociar indicadores con objetivos y tipo de indicador","5. Associate indicators with objectives and indicator type"]
[{"$f":"IF(OFFSET(A22,0,MATCH(Setup!$H$7,Idiomas,0))<>\"\",OFFSET(A22,0,MATCH(Setup!$H$7,Idiomas,0)),B22)","v":"6. Enter annual planning data"},"6. Entre los datos de la planeación anual","6. Enter annual planning data"]
[{"$f":"IF(OFFSET(A23,0,MATCH(Setup!$H$7,Idiomas,0))<>\"\",OFFSET(A23,0,MATCH(Setup!$H$7,Idiomas,0)),B23)","v":"7. Define thresholds"},"7. Establecer los umbrales","7. Define thresholds"]
[{"$f":"IF(OFFSET(A24,0,MATCH(Setup!$H$7,Idiomas,0))<>\"\",OFFSET(A24,0,MATCH(Setup!$H$7,Idiomas,0)),B24)","v":"8. Link to the PR Dashboard"},"8. Vincular al Tablero de Mando del RP","8. Link to the PR Dashboard"]
[{"$f":"IF(OFFSET(A25,0,MATCH(Setup!$H$7,Idiomas,0))<>\"\",OFFSET(A25,0,MATCH(Setup!$H$7,Idiomas,0)),B25)","v":"Advanced setup"},"Configuración avanzada","Advanced setup"]
[{"$f":"IF(OFFSET(A26,0,MATCH(Setup!$H$7,Idiomas,0))<>\"\",OFFSET(A26,0,MATCH(Setup!$H$7,Idiomas,0)),B26)","v":"9. Change name of buttons"},"9. Cambiar el nombre de los botones","9. Change name of buttons"]
[{"$f":"IF(OFFSET(A27,0,MATCH(Setup!$H$7,Idiomas,0))<>\"\",OFFSET(A27,0,MATCH(Setup!$H$7,Idiomas,0)),B27)","v":"10. Assign months to quarters"},"10. Asignar los meses por trimestre","10. Assign months to quarters"]
[{"$f":"IF(OFFSET(A28,0,MATCH(Setup!$H$7,Idiomas,0))<>\"\",OFFSET(A28,0,MATCH(Setup!$H$7,Idiomas,0)),B28)","v":"11. Define the initial period in the PR Dashboard"},"11. Establecer el período inicial en el Tablero","11. Define the initial period in the PR Dashboard"]
[{"$f":"IF(OFFSET(A29,0,MATCH(Setup!$H$7,Idiomas,0))<>\"\",OFFSET(A29,0,MATCH(Setup!$H$7,Idiomas,0)),B29)","v":"Go"},"Ir","Go","Aller","Ir"]
[{"$f":"IF(OFFSET(A30,0,MATCH(Setup!$H$7,Idiomas,0))<>\"\",OFFSET(A30,0,MATCH(Setup!$H$7,Idiomas,0)),B30)","v":"Language"},"Idioma","Language"]
[{"$f":"IF(OFFSET(A31,0,MATCH(Setup!$H$7,Idiomas,0))<>\"\",OFFSET(A31,0,MATCH(Setup!$H$7,Idiomas,0)),B31)","v":"Principal recepient name"},"Nombre del receptor principal","Principal recepient name"]
[{"$f":"IF(OFFSET(A32,0,MATCH(Setup!$H$7,Idiomas,0))<>\"\",OFFSET(A32,0,MATCH(Setup!$H$7,Idiomas,0)),B32)","v":"Subrecepient name"},"Nombre de subreceptor","Subrecepient name"]
[{"$f":"IF(OFFSET(A33,0,MATCH(Setup!$H$7,Idiomas,0))<>\"\",OFFSET(A33,0,MATCH(Setup!$H$7,Idiomas,0)),B33)","v":"Contract period"},"Período de contrato","Contract period"]
[{"$f":"IF(OFFSET(A34,0,MATCH(Setup!$H$7,Idiomas,0))<>\"\",OFFSET(A34,0,MATCH(Setup!$H$7,Idiomas,0)),B34)","v":"Grant number"},"Número de subvención","Grant number"]
[{"$f":"IF(OFFSET(A35,0,MATCH(Setup!$H$7,Idiomas,0))<>\"\",OFFSET(A35,0,MATCH(Setup!$H$7,Idiomas,0)),B35)","v":"Key population"},"Población meta","Key population"]
[{"$f":"IF(OFFSET(A36,0,MATCH(Setup!$H$7,Idiomas,0))<>\"\",OFFSET(A36,0,MATCH(Setup!$H$7,Idiomas,0)),B36)","v":"Details of programatic indicators"},"Detalle de los indicadores programáticos","Details of programatic indicators"]
[{"$f":"IF(OFFSET(A37,0,MATCH(Setup!$H$7,Idiomas,0))<>\"\",OFFSET(A37,0,MATCH(Setup!$H$7,Idiomas,0)),B37)","v":"Description of objectives"},"Descripción del objetivo","Description of objectives"]
[{"$f":"IF(OFFSET(A38,0,MATCH(Setup!$H$7,Idiomas,0))<>\"\",OFFSET(A38,0,MATCH(Setup!$H$7,Idiomas,0)),B38)","v":"Indicator name"},"Nombre del indicador","Indicator name"]
[{"$f":"IF(OFFSET(A39,0,MATCH(Setup!$H$7,Idiomas,0))<>\"\",OFFSET(A39,0,MATCH(Setup!$H$7,Idiomas,0)),B39)","v":"Associated to objective"},"Asociado al objetivo","Associated to objective"]
[{"$f":"IF(OFFSET(A40,0,MATCH(Setup!$H$7,Idiomas,0))<>\"\",OFFSET(A40,0,MATCH(Setup!$H$7,Idiomas,0)),B40)","v":"PR dashboard programatic indicators"},"Indicadores programáticos del Tablero del RP","PR dashboard programatic indicators"]
[{"$f":"IF(OFFSET(A41,0,MATCH(Setup!$H$7,Idiomas,0))<>\"\",OFFSET(A41,0,MATCH(Setup!$H$7,Idiomas,0)),B41)","v":"Aspect"},"Aspecto","Aspect"]
[{"$f":"IF(OFFSET(A42,0,MATCH(Setup!$H$7,Idiomas,0))<>\"\",OFFSET(A42,0,MATCH(Setup!$H$7,Idiomas,0)),B42)","v":"Red (<)"},"Rojo (<)","Red (<)"]
[{"$f":"IF(OFFSET(A43,0,MATCH(Setup!$H$7,Idiomas,0))<>\"\",OFFSET(A43,0,MATCH(Setup!$H$7,Idiomas,0)),B43)","v":"Green (>=)"},"Verde (>=)","Green (>=)"]
[{"$f":"IF(OFFSET(A44,0,MATCH(Setup!$H$7,Idiomas,0))<>\"\",OFFSET(A44,0,MATCH(Setup!$H$7,Idiomas,0)),B44)","v":"Programmatic"},"Programáticos","Programmatic"]
[{"$f":"IF(OFFSET(A45,0,MATCH(Setup!$H$7,Idiomas,0))<>\"\",OFFSET(A45,0,MATCH(Setup!$H$7,Idiomas,0)),B45)","v":"K"},"K","K"]
[{"$f":"IF(OFFSET(A46,0,MATCH(Setup!$H$7,Idiomas,0))<>\"\",OFFSET(A46,0,MATCH(Setup!$H$7,Idiomas,0)),B46)","v":"Title"},"Título","Title"]
[{"$f":"IF(OFFSET(A47,0,MATCH(Setup!$H$7,Idiomas,0))<>\"\",OFFSET(A47,0,MATCH(Setup!$H$7,Idiomas,0)),B47)","v":"Button"},"Botón","Button"]
[{"$f":"IF(OFFSET(A48,0,MATCH(Setup!$H$7,Idiomas,0))<>\"\",OFFSET(A48,0,MATCH(Setup!$H$7,Idiomas,0)),B48)","v":"1st Quarter"},"Trimestre 1","1st Quarter"]
[{"$f":"IF(OFFSET(A49,0,MATCH(Setup!$H$7,Idiomas,0))<>\"\",OFFSET(A49,0,MATCH(Setup!$H$7,Idiomas,0)),B49)","v":"2nd Quarter"},"Trimestre 2","2nd Quarter"]
[{"$f":"IF(OFFSET(A50,0,MATCH(Setup!$H$7,Idiomas,0))<>\"\",OFFSET(A50,0,MATCH(Setup!$H$7,Idiomas,0)),B50)","v":"3rd Quarter"},"Trimestre 3","3rd Quarter"]
[{"$f":"IF(OFFSET(A51,0,MATCH(Setup!$H$7,Idiomas,0))<>\"\",OFFSET(A51,0,MATCH(Setup!$H$7,Idiomas,0)),B51)","v":"4th Quarter"},"Trimestre 4","4th Quarter"]
[{"$f":"IF(OFFSET(A52,0,MATCH(Setup!$H$7,Idiomas,0))<>\"\",OFFSET(A52,0,MATCH(Setup!$H$7,Idiomas,0)),B52)","v":"Months must be selected without leaving empty spaces, in ascending order. The application will take the last month of every quarter as the closure one."},"Se deben seleccionar los meses sin dejar espacios entre ellos, ordenados ascendentemente. La aplicación tomará el último mes indicado en cada trimestre como el de cierre.","Months must be selected without leaving empty spaces, in ascending order. The application will take the last month of every quarter as the closure one."]
[{"$f":"IF(OFFSET(A53,0,MATCH(Setup!$H$7,Idiomas,0))<>\"\",OFFSET(A53,0,MATCH(Setup!$H$7,Idiomas,0)),B53)","v":"01 - Period 1"},"01 - Período 1","01 - Period 1"]
[{"$f":"IF(OFFSET(A54,0,MATCH(Setup!$H$7,Idiomas,0))<>\"\",OFFSET(A54,0,MATCH(Setup!$H$7,Idiomas,0)),B54)","v":"02 - Period 2"},"02 - Período 2","02 - Period 2"]
[{"$f":"IF(OFFSET(A55,0,MATCH(Setup!$H$7,Idiomas,0))<>\"\",OFFSET(A55,0,MATCH(Setup!$H$7,Idiomas,0)),B55)","v":"03 - Period 3"},"03 - Período 3","03 - Period 3"]
[{"$f":"IF(OFFSET(A56,0,MATCH(Setup!$H$7,Idiomas,0))<>\"\",OFFSET(A56,0,MATCH(Setup!$H$7,Idiomas,0)),B56)","v":"04 - Period 4"},"04 - Período 4","04 - Period 4"]
[{"$f":"IF(OFFSET(A57,0,MATCH(Setup!$H$7,Idiomas,0))<>\"\",OFFSET(A57,0,MATCH(Setup!$H$7,Idiomas,0)),B57)","v":"05 - Period 5"},"05 - Período 5","05 - Period 5"]
[{"$f":"IF(OFFSET(A58,0,MATCH(Setup!$H$7,Idiomas,0))<>\"\",OFFSET(A58,0,MATCH(Setup!$H$7,Idiomas,0)),B58)","v":"06 - Period 6"},"06 - Período 6","06 - Period 6"]
[{"$f":"IF(OFFSET(A59,0,MATCH(Setup!$H$7,Idiomas,0))<>\"\",OFFSET(A59,0,MATCH(Setup!$H$7,Idiomas,0)),B59)","v":"07 - Period 7"},"07 - Período 7","07 - Period 7"]
[{"$f":"IF(OFFSET(A60,0,MATCH(Setup!$H$7,Idiomas,0))<>\"\",OFFSET(A60,0,MATCH(Setup!$H$7,Idiomas,0)),B60)","v":"08 - Period 8"},"08 - Período 8","08 - Period 8"]
[{"$f":"IF(OFFSET(A61,0,MATCH(Setup!$H$7,Idiomas,0))<>\"\",OFFSET(A61,0,MATCH(Setup!$H$7,Idiomas,0)),B61)","v":"09 - Period 9"},"09 - Período 9","09 - Period 9"]
[{"$f":"IF(OFFSET(A62,0,MATCH(Setup!$H$7,Idiomas,0))<>\"\",OFFSET(A62,0,MATCH(Setup!$H$7,Idiomas,0)),B62)","v":"10 - Period 10"},"10 - Período 10","10 - Period 10"]
[{"$f":"IF(OFFSET(A63,0,MATCH(Setup!$H$7,Idiomas,0))<>\"\",OFFSET(A63,0,MATCH(Setup!$H$7,Idiomas,0)),B63)","v":"11 - Period 11"},"11 - Período 11","11 - Period 11"]
[{"$f":"IF(OFFSET(A64,0,MATCH(Setup!$H$7,Idiomas,0))<>\"\",OFFSET(A64,0,MATCH(Setup!$H$7,Idiomas,0)),B64)","v":"12 - Period 12"},"12 - Período 12","12 - Period 12"]
[{"$f":"IF(OFFSET(A65,0,MATCH(Setup!$H$7,Idiomas,0))<>\"\",OFFSET(A65,0,MATCH(Setup!$H$7,Idiomas,0)),B65)","v":"1. Indicator"},"1. Indicador","1. Indicator"]
[{"$f":"IF(OFFSET(A66,0,MATCH(Setup!$H$7,Idiomas,0))<>\"\",OFFSET(A66,0,MATCH(Setup!$H$7,Idiomas,0)),B66)","v":"2. Activity"},"2. Actividad","2. Activity"]
[{"$f":"IF(OFFSET(A67,0,MATCH(Setup!$H$7,Idiomas,0))<>\"\",OFFSET(A67,0,MATCH(Setup!$H$7,Idiomas,0)),B67)","v":"1. Human resources"},"1. Recursos humanos","1. Human resources"]
[{"$f":"IF(OFFSET(A68,0,MATCH(Setup!$H$7,Idiomas,0))<>\"\",OFFSET(A68,0,MATCH(Setup!$H$7,Idiomas,0)),B68)","v":"2. Travel related costs"},"2. Costos asociados a viajes","2. Travel related costs"]
[{"$f":"IF(OFFSET(A69,0,MATCH(Setup!$H$7,Idiomas,0))<>\"\",OFFSET(A69,0,MATCH(Setup!$H$7,Idiomas,0)),B69)","v":"3. External professional services"},"3. Servicios profesionales externos","3. External professional services"]
[{"$f":"IF(OFFSET(A70,0,MATCH(Setup!$H$7,Idiomas,0))<>\"\",OFFSET(A70,0,MATCH(Setup!$H$7,Idiomas,0)),B70)","v":"4. Health products - pharmaceutical products"},"4. Productos salud - productos farmaceúticos","4. Health products - pharmaceutical products"]
[{"$f":"IF(OFFSET(A71,0,MATCH(Setup!$H$7,Idiomas,0))<>\"\",OFFSET(A71,0,MATCH(Setup!$H$7,Idiomas,0)),B71)","v":"5. Health products - non-pharmaceuticals"},"5. Productos salud - productos no farmaceúticos","5. Health products - non-pharmaceuticals"]
[{"$f":"IF(OFFSET(A72,0,MATCH(Setup!$H$7,Idiomas,0))<>\"\",OFFSET(A72,0,MATCH(Setup!$H$7,Idiomas,0)),B72)","v":"6. Health products - equipment"},"6. Productos salud - equipos","6. Health products - equipment"]
[{"$f":"IF(OFFSET(A73,0,MATCH(Setup!$H$7,Idiomas,0))<>\"\",OFFSET(A73,0,MATCH(Setup!$H$7,Idiomas,0)),B73)","v":"7. Procurement and supply-chain management costs"},"7. Costos por gestión, adquisición y cadena de distribución","7. Procurement and supply-chain management costs"]
[{"$f":"IF(OFFSET(A74,0,MATCH(Setup!$H$7,Idiomas,0))<>\"\",OFFSET(A74,0,MATCH(Setup!$H$7,Idiomas,0)),B74)","v":"8. Infrastructure "},"8. Infraestructura","8. Infrastructure "]
[{"$f":"IF(OFFSET(A75,0,MATCH(Setup!$H$7,Idiomas,0))<>\"\",OFFSET(A75,0,MATCH(Setup!$H$7,Idiomas,0)),B75)","v":"9. Non-health equipment "},"9. Equipos que no son de salud","9. Non-health equipment "]
[{"$f":"IF(OFFSET(A76,0,MATCH(Setup!$H$7,Idiomas,0))<>\"\",OFFSET(A76,0,MATCH(Setup!$H$7,Idiomas,0)),B76)","v":"10. Communication material and publications"},"10. Publicaciones y materiales de comunicación","10. Communication material and publications"]
[{"$f":"IF(OFFSET(A77,0,MATCH(Setup!$H$7,Idiomas,0))<>\"\",OFFSET(A77,0,MATCH(Setup!$H$7,Idiomas,0)),B77)","v":"11. Programme administration costs"},"11. Costos de la administración del programa","11. Programme administration costs"]
[{"$f":"IF(OFFSET(A78,0,MATCH(Setup!$H$7,Idiomas,0))<>\"\",OFFSET(A78,0,MATCH(Setup!$H$7,Idiomas,0)),B78)","v":"12. Living support to client/ target population "},"12. Apoyo de vida a las poblaciones meta","12. Living support to client/ target population "]
[{"$f":"IF(OFFSET(A79,0,MATCH(Setup!$H$7,Idiomas,0))<>\"\",OFFSET(A79,0,MATCH(Setup!$H$7,Idiomas,0)),B79)","v":"TGF costs groups"},"Agrupaciones de costos del FM","TGF costs groups"]
[{"$f":"IF(OFFSET(A80,0,MATCH(Setup!$H$7,Idiomas,0))<>\"\",OFFSET(A80,0,MATCH(Setup!$H$7,Idiomas,0)),B80)","v":"SR Management Tool"},"Herramienta de Gestión para Subreceptores","SR Management Tool"]
[{"$f":"IF(OFFSET(A81,0,MATCH(Setup!$H$7,Idiomas,0))<>\"\",OFFSET(A81,0,MATCH(Setup!$H$7,Idiomas,0)),B81)","v":"PR Dashboard indicators"},"Indicadores del Tablero de Mando de RP","PR Dashboard indicators"]
[{"$f":"IF(OFFSET(A82,0,MATCH(Setup!$H$7,Idiomas,0))<>\"\",OFFSET(A82,0,MATCH(Setup!$H$7,Idiomas,0)),B82)","v":"PR Dashboard comments (max 500 characters)"},"Comentarios en el tablero (máximo 500 caracteres)","PR Dashboard comments (max 500 characters)"]
[{"$f":"IF(OFFSET(A83,0,MATCH(Setup!$H$7,Idiomas,0))<>\"\",OFFSET(A83,0,MATCH(Setup!$H$7,Idiomas,0)),B83)","v":"Available characters"},"Caracteres disponibles","Available characters"]
[{"$f":"IF(OFFSET(A84,0,MATCH(Setup!$H$7,Idiomas,0))<>\"\",OFFSET(A84,0,MATCH(Setup!$H$7,Idiomas,0)),B84)","v":"Annual planning data"},"Datos de la planeación anual","Annual planning data"]
[{"$f":"IF(OFFSET(A85,0,MATCH(Setup!$H$7,Idiomas,0))<>\"\",OFFSET(A85,0,MATCH(Setup!$H$7,Idiomas,0)),B85)","v":"Indicator List"},"Lista de indicadores","Indicator List"]
[{"$f":"IF(OFFSET(A86,0,MATCH(Setup!$H$7,Idiomas,0))<>\"\",OFFSET(A86,0,MATCH(Setup!$H$7,Idiomas,0)),B86)","v":"Activate/Hide Lines"},"Activar/Ocultar líneas","Activate/Hide Lines"]
[{"$f":"IF(OFFSET(A87,0,MATCH(Setup!$H$7,Idiomas,0))<>\"\",OFFSET(A87,0,MATCH(Setup!$H$7,Idiomas,0)),B87)","v":"Refresh view"},"Refrescar la pantalla","Refresh view"]
[{"$f":"IF(OFFSET(A88,0,MATCH(Setup!$H$7,Idiomas,0))<>\"\",OFFSET(A88,0,MATCH(Setup!$H$7,Idiomas,0)),B88)","v":"Item"},"Ítem","Item"]
[{"$f":"IF(OFFSET(A89,0,MATCH(Setup!$H$7,Idiomas,0))<>\"\",OFFSET(A89,0,MATCH(Setup!$H$7,Idiomas,0)),B89)","v":"Item type"},"Tipo de ítem","Item type"]
[{"$f":"IF(OFFSET(A90,0,MATCH(Setup!$H$7,Idiomas,0))<>\"\",OFFSET(A90,0,MATCH(Setup!$H$7,Idiomas,0)),B90)","v":"Indicator code group"},"Indicador a agrupar","Indicator code group"]
[{"$f":"IF(OFFSET(A91,0,MATCH(Setup!$H$7,Idiomas,0))<>\"\",OFFSET(A91,0,MATCH(Setup!$H$7,Idiomas,0)),B91)","v":"Activity code"},"Código de actividad","Activity code"]
[{"$f":"IF(OFFSET(A92,0,MATCH(Setup!$H$7,Idiomas,0))<>\"\",OFFSET(A92,0,MATCH(Setup!$H$7,Idiomas,0)),B92)","v":"Indicator / Activity"},"Indicador / Actividad","Indicator / Activity"]
[{"$f":"IF(OFFSET(A93,0,MATCH(Setup!$H$7,Idiomas,0))<>\"\",OFFSET(A93,0,MATCH(Setup!$H$7,Idiomas,0)),B93)","v":"Cost category"},"Categoría de costo","Cost category"]
[{"$f":"IF(OFFSET(A94,0,MATCH(Setup!$H$7,Idiomas,0))<>\"\",OFFSET(A94,0,MATCH(Setup!$H$7,Idiomas,0)),B94)","v":"Target"},"Meta","Target"]
[{"$f":"IF(OFFSET(A95,0,MATCH(Setup!$H$7,Idiomas,0))<>\"\",OFFSET(A95,0,MATCH(Setup!$H$7,Idiomas,0)),B95)","v":"Budget"},"Presupuesto","Budget"]
[{"$f":"IF(OFFSET(A96,0,MATCH(Setup!$H$7,Idiomas,0))<>\"\",OFFSET(A96,0,MATCH(Setup!$H$7,Idiomas,0)),B96)","v":"Financial total"},"Total financiero","Financial total"]
[{"$f":"IF(OFFSET(A97,0,MATCH(Setup!$H$7,Idiomas,0))<>\"\",OFFSET(A97,0,MATCH(Setup!$H$7,Idiomas,0)),B97)","v":"All the programmatic indicators"},"Todos los indicadores programáticos","All the programmatic indicators"]
[{"$f":"IF(OFFSET(A98,0,MATCH(Setup!$H$7,Idiomas,0))<>\"\",OFFSET(A98,0,MATCH(Setup!$H$7,Idiomas,0)),B98)","v":"PR Dashboard periods"},"Períodos del Tablero de Mando del RP","PR Dashboard periods"]
[{"$f":"IF(OFFSET(A99,0,MATCH(Setup!$H$7,Idiomas,0))<>\"\",OFFSET(A99,0,MATCH(Setup!$H$7,Idiomas,0)),B99)","v":"Months sheets"},"Hojas de meses","Months sheets"]
[{"$f":"IF(OFFSET(A100,0,MATCH(Setup!$H$7,Idiomas,0))<>\"\",OFFSET(A100,0,MATCH(Setup!$H$7,Idiomas,0)),B100)","v":"Programmatic & financial summary"},"Consolidado programático & financiero","Programmatic & financial summary"]
[{"$f":"IF(OFFSET(A101,0,MATCH(Setup!$H$7,Idiomas,0))<>\"\",OFFSET(A101,0,MATCH(Setup!$H$7,Idiomas,0)),B101)","v":"Financial summary"},"Consolidado financiero","Financial summary"]
[{"$f":"IF(OFFSET(A102,0,MATCH(Setup!$H$7,Idiomas,0))<>\"\",OFFSET(A102,0,MATCH(Setup!$H$7,Idiomas,0)),B102)","v":"Results "},"Resultados alcanzados","Results "]
[{"$f":"IF(OFFSET(A103,0,MATCH(Setup!$H$7,Idiomas,0))<>\"\",OFFSET(A103,0,MATCH(Setup!$H$7,Idiomas,0)),B103)","v":"Annual"},"Anual","Annual"]
[{"$f":"IF(OFFSET(A104,0,MATCH(Setup!$H$7,Idiomas,0))<>\"\",OFFSET(A104,0,MATCH(Setup!$H$7,Idiomas,0)),B104)","v":"1st Quarter advance"},"Avance del Trimestre 1","1st Quarter advance"]
[{"$f":"IF(OFFSET(A105,0,MATCH(Setup!$H$7,Idiomas,0))<>\"\",OFFSET(A105,0,MATCH(Setup!$H$7,Idiomas,0)),B105)","v":"2nd Quarter advance"},"Avance del Trimestre 2","2nd Quarter advance"]
[{"$f":"IF(OFFSET(A106,0,MATCH(Setup!$H$7,Idiomas,0))<>\"\",OFFSET(A106,0,MATCH(Setup!$H$7,Idiomas,0)),B106)","v":"3rd Quarter advance"},"Avance del Trimestre 3","3rd Quarter advance"]
[{"$f":"IF(OFFSET(A107,0,MATCH(Setup!$H$7,Idiomas,0))<>\"\",OFFSET(A107,0,MATCH(Setup!$H$7,Idiomas,0)),B107)","v":"4th Quarter advance"},"Avance del Trimestre 4","4th Quarter advance"]
[{"$f":"IF(OFFSET(A108,0,MATCH(Setup!$H$7,Idiomas,0))<>\"\",OFFSET(A108,0,MATCH(Setup!$H$7,Idiomas,0)),B108)","v":"Result %"},"% de logro","Result %"]
[{"$f":"IF(OFFSET(A109,0,MATCH(Setup!$H$7,Idiomas,0))<>\"\",OFFSET(A109,0,MATCH(Setup!$H$7,Idiomas,0)),B109)","v":"Totals"},"Totales","Totals"]
[{"$f":"IF(OFFSET(A110,0,MATCH(Setup!$H$7,Idiomas,0))<>\"\",OFFSET(A110,0,MATCH(Setup!$H$7,Idiomas,0)),B110)","v":"PERIOD PROGRAMMATIC SUMMARY"},"CONSOLIDADO PROGRAMÁTICO DEL PERÍODO","PERIOD PROGRAMMATIC SUMMARY"]
[{"$f":"IF(OFFSET(A111,0,MATCH(Setup!$H$7,Idiomas,0))<>\"\",OFFSET(A111,0,MATCH(Setup!$H$7,Idiomas,0)),B111)","v":"PERIOD FINANCIAL SUMMARY"},"CONSOLIDADO FINANCIERO DEL PERÍODO","PERIOD FINANCIAL SUMMARY"]
[{"$f":"IF(OFFSET(A112,0,MATCH(Setup!$H$7,Idiomas,0))<>\"\",OFFSET(A112,0,MATCH(Setup!$H$7,Idiomas,0)),B112)","v":"PERIOD DISBURSEMENTS"},"DESEMBOLSOS DEL PERÍODO","PERIOD DISBURSEMENTS"]
[{"$f":"IF(OFFSET(A113,0,MATCH(Setup!$H$7,Idiomas,0))<>\"\",OFFSET(A113,0,MATCH(Setup!$H$7,Idiomas,0)),B113)","v":"Month summary"},"Resumen mensual","Month summary"]
[{"$f":"IF(OFFSET(A114,0,MATCH(Setup!$H$7,Idiomas,0))<>\"\",OFFSET(A114,0,MATCH(Setup!$H$7,Idiomas,0)),B114)","v":"Months"},"Meses","Months"]
[{"$f":"IF(OFFSET(A115,0,MATCH(Setup!$H$7,Idiomas,0))<>\"\",OFFSET(A115,0,MATCH(Setup!$H$7,Idiomas,0)),B115)","v":"Month nane"},"Nombre del mes","Month nane"]
[{"$f":"IF(OFFSET(A116,0,MATCH(Setup!$H$7,Idiomas,0))<>\"\",OFFSET(A116,0,MATCH(Setup!$H$7,Idiomas,0)),B116)","v":"Follow-up"},"Seguimiento","Follow-up"]
[{"$f":"IF(OFFSET(A117,0,MATCH(Setup!$H$7,Idiomas,0))<>\"\",OFFSET(A117,0,MATCH(Setup!$H$7,Idiomas,0)),B117)","v":"Programmatic results %"},"% Logro programático","Programmatic results %"]
[{"$f":"IF(OFFSET(A118,0,MATCH(Setup!$H$7,Idiomas,0))<>\"\",OFFSET(A118,0,MATCH(Setup!$H$7,Idiomas,0)),B118)","v":"Expenditure %"},"% Presupuesto gastado","Expenditure %"]
[{"$f":"IF(OFFSET(A119,0,MATCH(Setup!$H$7,Idiomas,0))<>\"\",OFFSET(A119,0,MATCH(Setup!$H$7,Idiomas,0)),B119)","v":"Report date"},"Fecha de reporte","Report date"]
[{"$f":"IF(OFFSET(A120,0,MATCH(Setup!$H$7,Idiomas,0))<>\"\",OFFSET(A120,0,MATCH(Setup!$H$7,Idiomas,0)),B120)","v":"Date of verification"},"Fecha de verificación","Date of verification"]
[{"$f":"IF(OFFSET(A121,0,MATCH(Setup!$H$7,Idiomas,0))<>\"\",OFFSET(A121,0,MATCH(Setup!$H$7,Idiomas,0)),B121)","v":"Monitor"},"Monitor/a","Monitor"]
[{"$f":"IF(OFFSET(A122,0,MATCH(Setup!$H$7,Idiomas,0))<>\"\",OFFSET(A122,0,MATCH(Setup!$H$7,Idiomas,0)),B122)","v":"Executed"},"Ejecutado","Executed"]
[{"$f":"IF(OFFSET(A123,0,MATCH(Setup!$H$7,Idiomas,0))<>\"\",OFFSET(A123,0,MATCH(Setup!$H$7,Idiomas,0)),B123)","v":"Variation"},"Variación","Variation"]
[{"$f":"IF(OFFSET(A124,0,MATCH(Setup!$H$7,Idiomas,0))<>\"\",OFFSET(A124,0,MATCH(Setup!$H$7,Idiomas,0)),B124)","v":"Performance framework objectives"},"Objetivos según el marco de desempeño","Performance framework objectives"]
[{"$f":"IF(OFFSET(A125,0,MATCH(Setup!$H$7,Idiomas,0))<>\"\",OFFSET(A125,0,MATCH(Setup!$H$7,Idiomas,0)),B125)","v":"Total budget"},"Presupuesto total","Total budget"]
[{"$f":"IF(OFFSET(A126,0,MATCH(Setup!$H$7,Idiomas,0))<>\"\",OFFSET(A126,0,MATCH(Setup!$H$7,Idiomas,0)),B126)","v":"Comparison of programmatic results with expenditures"},"Comparación de resultados programáticos con el presupuesto gastado","Comparison of programmatic results with expenditures"]
[{"$f":"IF(OFFSET(A127,0,MATCH(Setup!$H$7,Idiomas,0))<>\"\",OFFSET(A127,0,MATCH(Setup!$H$7,Idiomas,0)),B127)","v":"Comparison of programmatic results with expenditures (by activity)"},"Comparación resultados programáticos con lo gastado (por actividad)","Comparison of programmatic results with expenditures (by activity)"]
[{"$f":"IF(OFFSET(A128,0,MATCH(Setup!$H$7,Idiomas,0))<>\"\",OFFSET(A128,0,MATCH(Setup!$H$7,Idiomas,0)),B128)","v":"Comparison of budget and expenditure (by cost group)"},"Comparación presupuesto y gastos (por grupo de costo)","Comparison of budget and expenditure (by cost group)"]
[{"$f":"IF(OFFSET(A129,0,MATCH(Setup!$H$7,Idiomas,0))<>\"\",OFFSET(A129,0,MATCH(Setup!$H$7,Idiomas,0)),B130)","v":"SCORE"},"PUNTUACIÓN","SCORE"]
[{"$f":"IF(OFFSET(A130,0,MATCH(Setup!$H$7,Idiomas,0))<>\"\",OFFSET(A130,0,MATCH(Setup!$H$7,Idiomas,0)),#REF!)","v":"Reported by"},"Informe elaborado por","Reported by"]
[{"$f":"IF(OFFSET(A131,0,MATCH(Setup!$H$7,Idiomas,0))<>\"\",OFFSET(A131,0,MATCH(Setup!$H$7,Idiomas,0)),B131)","v":"Disbursement"},"Desembolso","Disbursement"]
[{"$f":"IF(OFFSET(A132,0,MATCH(Setup!$H$7,Idiomas,0))<>\"\",OFFSET(A132,0,MATCH(Setup!$H$7,Idiomas,0)),B132)","v":"Note: Enter disubursment ammount here if the PR made a disbursment this month. Leave blank if no disbursment was made."},"Nota: Entre el desembolso aquí si el RP realizó un desembolso este mes. Deje en blanco si no se realizó ningún desembolso.","Note: Enter disubursment ammount here if the PR made a disbursment this month. Leave blank if no disbursment was made."]
[{"$f":"IF(OFFSET(A133,0,MATCH(Setup!$H$7,Idiomas,0))<>\"\",OFFSET(A133,0,MATCH(Setup!$H$7,Idiomas,0)),B134)","v":"Programmatic aspects"},"Aspecto programático","Programmatic aspects"]
[{"$f":"IF(OFFSET(A134,0,MATCH(Setup!$H$7,Idiomas,0))<>\"\",OFFSET(A134,0,MATCH(Setup!$H$7,Idiomas,0)),B135)","v":"Financial aspects"},"Aspecto financiero","Financial aspects"]
[{"$f":"IF(OFFSET(A135,0,MATCH(Setup!$H$7,Idiomas,0))<>\"\",OFFSET(A135,0,MATCH(Setup!$H$7,Idiomas,0)),B136)","v":"Monthly target"},"Meta del mes","Monthly target"]
[{"$f":"IF(OFFSET(A136,0,MATCH(Setup!$H$7,Idiomas,0))<>\"\",OFFSET(A136,0,MATCH(Setup!$H$7,Idiomas,0)),B137)","v":"Balance from previous period"},"Balance del período anterior","Balance from previous period"]
[{"$f":"IF(OFFSET(A137,0,MATCH(Setup!$H$7,Idiomas,0))<>\"\",OFFSET(A137,0,MATCH(Setup!$H$7,Idiomas,0)),B138)","v":"Results "},"Alcanzado en el mes","Results "]
[{"$f":"IF(OFFSET(A138,0,MATCH(Setup!$H$7,Idiomas,0))<>\"\",OFFSET(A138,0,MATCH(Setup!$H$7,Idiomas,0)),B139)","v":"Narrative comments from results (to be filled by the Subrecipient)"},"Comentarios narrativos de los resultados (a ser llenado por el Subreceptor)","Narrative comments from results (to be filled by the Subrecipient)"]
[{"$f":"IF(OFFSET(A139,0,MATCH(Setup!$H$7,Idiomas,0))<>\"\",OFFSET(A139,0,MATCH(Setup!$H$7,Idiomas,0)),B140)","v":"This section is filled in exclusively by PR's programmatic and financial monitors."},"Esta sección es de uso exclusivo del RP a ser completada por los/las monitores programtáticos y financieros.","This section is filled in exclusively by PR's programmatic and financial monitors."]
[{"$f":"IF(OFFSET(A140,0,MATCH(Setup!$H$7,Idiomas,0))<>\"\",OFFSET(A140,0,MATCH(Setup!$H$7,Idiomas,0)),B141)","v":"Name of person conducting programmatic verification"},"Nombre de la persona a cargo de la verificación programática","Name of person conducting programmatic verification"]
[{"$f":"IF(OFFSET(A141,0,MATCH(Setup!$H$7,Idiomas,0))<>\"\",OFFSET(A141,0,MATCH(Setup!$H$7,Idiomas,0)),B142)","v":"Contextual details"},"Detalles de contexto","Contextual details"]
[{"$f":"IF(OFFSET(A142,0,MATCH(Setup!$H$7,Idiomas,0))<>\"\",OFFSET(A142,0,MATCH(Setup!$H$7,Idiomas,0)),B143)","v":"Activities revision"},"Revisión de actividades","Activities revision"]
[{"$f":"IF(OFFSET(A143,0,MATCH(Setup!$H$7,Idiomas,0))<>\"\",OFFSET(A143,0,MATCH(Setup!$H$7,Idiomas,0)),B144)","v":"Date"},"Fecha","Date"]
[{"$f":"IF(OFFSET(A144,0,MATCH(Setup!$H$7,Idiomas,0))<>\"\",OFFSET(A144,0,MATCH(Setup!$H$7,Idiomas,0)),B145)","v":"Activity name"},"Nombre de la actividad","Activity name"]
[{"$f":"IF(OFFSET(A145,0,MATCH(Setup!$H$7,Idiomas,0))<>\"\",OFFSET(A145,0,MATCH(Setup!$H$7,Idiomas,0)),B146)","v":"Location"},"Lugar","Location"]
[{"$f":"IF(OFFSET(A146,0,MATCH(Setup!$H$7,Idiomas,0))<>\"\",OFFSET(A146,0,MATCH(Setup!$H$7,Idiomas,0)),B147)","v":"Check #"},"Cheque No.","Check #"]
[{"$f":"IF(OFFSET(A147,0,MATCH(Setup!$H$7,Idiomas,0))<>\"\",OFFSET(A147,0,MATCH(Setup!$H$7,Idiomas,0)),B148)","v":"Verification method"},"Medio de verificación","Verification method"]
[{"$f":"IF(OFFSET(A148,0,MATCH(Setup!$H$7,Idiomas,0))<>\"\",OFFSET(A148,0,MATCH(Setup!$H$7,Idiomas,0)),B149)","v":"People reached"},"Personas alcanzadas","People reached"]
[{"$f":"IF(OFFSET(A149,0,MATCH(Setup!$H$7,Idiomas,0))<>\"\",OFFSET(A149,0,MATCH(Setup!$H$7,Idiomas,0)),B150)","v":"."},".","."]
[{"$f":"IF(OFFSET(A150,0,MATCH(Setup!$H$7,Idiomas,0))<>\"\",OFFSET(A150,0,MATCH(Setup!$H$7,Idiomas,0)),B151)","v":"PROGRAMMATIC"},"PROGRAMÁTICO","PROGRAMMATIC"]
[{"$f":"IF(OFFSET(A151,0,MATCH(Setup!$H$7,Idiomas,0))<>\"\",OFFSET(A151,0,MATCH(Setup!$H$7,Idiomas,0)),B152)","v":"Description of identified problem(s)"},"Descripción de los problemas identificados","Description of identified problem(s)"]
[{"$f":"IF(OFFSET(A152,0,MATCH(Setup!$H$7,Idiomas,0))<>\"\",OFFSET(A152,0,MATCH(Setup!$H$7,Idiomas,0)),B153)","v":"Recommendations and actions to be taken"},"Recomendaciones o medidas a tomar","Recommendations and actions to be taken"]
[{"$f":"IF(OFFSET(A153,0,MATCH(Setup!$H$7,Idiomas,0))<>\"\",OFFSET(A153,0,MATCH(Setup!$H$7,Idiomas,0)),B154)","v":"Name of person conducting financial verification"},"Nombre de la persona a cargo de la verificación financiera","Name of person conducting financial verification"]
[{"$f":"IF(OFFSET(A154,0,MATCH(Setup!$H$7,Idiomas,0))<>\"\",OFFSET(A154,0,MATCH(Setup!$H$7,Idiomas,0)),B155)","v":"FINANCIAL"},"FINANCIERO","FINANCIAL"]
[{"$f":"IF(OFFSET(A155,0,MATCH(Setup!$H$7,Idiomas,0))<>\"\",OFFSET(A155,0,MATCH(Setup!$H$7,Idiomas,0)),B156)","v":"Update quarterly data"},"Actualizar los datos trimestrales","Update quarterly data"]
[{"$f":"IF(OFFSET(A156,0,MATCH(Setup!$H$7,Idiomas,0))<>\"\",OFFSET(A156,0,MATCH(Setup!$H$7,Idiomas,0)),B157)","v":"Set colors for \"Month\" buttons and tabs"},"Colores para los botones y pestañas de \"Meses\"","Set colors for \"Month\" buttons and tabs"]
[{"$f":"IF(OFFSET(A157,0,MATCH(Setup!$H$7,Idiomas,0))<>\"\",OFFSET(A157,0,MATCH(Setup!$H$7,Idiomas,0)),B157)","v":"ERROR: SR data entry sheet already exists"},"Error: ya existe una hoja de ingreso de datos de SR.","ERROR: SR data entry sheet already exists"]
[{"$f":"IF(OFFSET(A158,0,MATCH(Setup!$H$7,Idiomas,0))<>\"\",OFFSET(A158,0,MATCH(Setup!$H$7,Idiomas,0)),B158)","v":"SR data entry sheet was inserted correctly"},"La hoja de ingreso de datos del SR se insertó correctamente.","SR data entry sheet was inserted correctly"]
[{"$f":"IF(OFFSET(A159,0,MATCH(Setup!$H$7,Idiomas,0))<>\"\",OFFSET(A159,0,MATCH(Setup!$H$7,Idiomas,0)),B159)","v":"SR data entry COULD NOT be inserted"},"La hoja de ingreso de datos del SR NO PUDO ser insertada.","SR data entry COULD NOT be inserted"]
[{"$f":"IF(OFFSET(A160,0,MATCH(Setup!$H$7,Idiomas,0))<>\"\",OFFSET(A160,0,MATCH(Setup!$H$7,Idiomas,0)),B160)","v":"Programmatic indicators…"},"Indicadores programáticos...","Programmatic indicators…"]
[{"$f":"IF(OFFSET(A161,0,MATCH(Setup!$H$7,Idiomas,0))<>\"\",OFFSET(A161,0,MATCH(Setup!$H$7,Idiomas,0)),B161)","v":"Exit"},"Salir","Exit"]
[{"$f":"IF(OFFSET(A162,0,MATCH(Setup!$H$7,Idiomas,0))<>\"\",OFFSET(A162,0,MATCH(Setup!$H$7,Idiomas,0)),B162)","v":"This process \"Activate/Hide lines\" could take a while"},"Este proceso \"Activar/Ocultar las líneas\" pudiera demorar un poco.","This process \"Activate/Hide lines\" could take a while"]
[{"$f":"IF(OFFSET(A163,0,MATCH(Setup!$H$7,Idiomas,0))<>\"\",OFFSET(A163,0,MATCH(Setup!$H$7,Idiomas,0)),B163)","v":"The \"Activate/Hide lines \" process has finished."},"El proceso de \"Activar/Ocultar las líneas\" ha terminado.","The \"Activate/Hide lines \" process has finished."]
[{"$f":"IF(OFFSET(A164,0,MATCH(Setup!$H$7,Idiomas,0))<>\"\",OFFSET(A164,0,MATCH(Setup!$H$7,Idiomas,0)),B164)","v":"This process links the SR data entry sheet with the actual data. Do you want to continue?"},"Este proceso vincula la hoja de ingreso de datos del SR con los datos actuales. ¿Desea continuar?","This process links the SR data entry sheet with the actual data. Do you want to continue?"]
[{"$f":"IF(OFFSET(A165,0,MATCH(Setup!$H$7,Idiomas,0))<>\"\",OFFSET(A165,0,MATCH(Setup!$H$7,Idiomas,0)),B165)","v":"The link process has finished successfully"},"El proceso de vinculación ha terminado exitosamente.","The link process has finished successfully"]
[{"$f":"IF(OFFSET(A166,0,MATCH(Setup!$H$7,Idiomas,0))<>\"\",OFFSET(A166,0,MATCH(Setup!$H$7,Idiomas,0)),B166)","v":"An error was detected and the process will be aborted. Contact the tool Administrator."},"Se ha producido un error y el proceso será abortado. Comuníquese con el administrador de la herramienta.","An error was detected and the process will be aborted. Contact the tool Administrator."]
[{"$f":"IF(OFFSET(A167,0,MATCH(Setup!$H$7,Idiomas,0))<>\"\",OFFSET(A167,0,MATCH(Setup!$H$7,Idiomas,0)),B167)","v":"The process has been aborted. First complete the steps 3, 6, 10 and 11."},"El proceso ha sido abortado. Complete primero los pasos 3, 6, 10 y 11","The process has been aborted. First complete the steps 3, 6, 10 and 11."]
[{"$f":"IF(OFFSET(A168,0,MATCH(Setup!$H$7,Idiomas,0))<>\"\",OFFSET(A168,0,MATCH(Setup!$H$7,Idiomas,0)),B168)","v":"Processing…."},"Procesando….","Processing…."]
[{"$f":"IF(OFFSET(A169,0,MATCH(Setup!$H$7,Idiomas,0))<>\"\",OFFSET(A169,0,MATCH(Setup!$H$7,Idiomas,0)),B169)","v":"Programatic indicadors execution "},"Despempeño de los indicadores programáticos","Programatic indicadors execution "]
[{"$f":"IF(OFFSET(A170,0,MATCH(Setup!$H$7,Idiomas,0))<>\"\",OFFSET(A170,0,MATCH(Setup!$H$7,Idiomas,0)),B170)","v":"Activity list"},"Lista de actividades","Activity list"]
[{"$f":"IF(OFFSET(A171,0,MATCH(Setup!$H$7,Idiomas,0))<>\"\",OFFSET(A171,0,MATCH(Setup!$H$7,Idiomas,0)),B171)","v":"All activities description…."},"Descripción de todas las activiades….","All activities description…."]
[{"$f":"IF(OFFSET(A172,0,MATCH(Setup!$H$7,Idiomas,0))<>\"\",OFFSET(A172,0,MATCH(Setup!$H$7,Idiomas,0)),B172)","v":"ERROR: Cannot insert lines. Configured lines could not been found or all posible lines were configured"},"Error: no se pueden insertar lineas. Al parecer aún no se han configurado lineas o ya se configuraron todas las lineas permitidas","ERROR: Cannot insert lines. Configured lines could not been found or all posible lines were configured"]
[{"$f":"IF(OFFSET(A173,0,MATCH(Setup!$H$7,Idiomas,0))<>\"\",OFFSET(A173,0,MATCH(Setup!$H$7,Idiomas,0)),B173)","v":"The line was inserted sucessfully. Remember to complete the process, press \"Activate/Hide Lines\" after the new line is configured."},"La línea fue insertada exitosamente. recuerde ejecutar el proceso para \"Activar/Ocultar líneas\"  justo después de haber configurado la línea insertada.","The line was inserted sucessfully. Remember to complete the process, press \"Activate/Hide Lines\" after the new line is configured."]
[{"$f":"IF(OFFSET(A174,0,MATCH(Setup!$H$7,Idiomas,0))<>\"\",OFFSET(A174,0,MATCH(Setup!$H$7,Idiomas,0)),B174)","v":"You are trying to INSERT a new line in the actual position. Do you want to continue the process?"},"Usted está intentando INSERTAR una nueva línea en la posición actual. ¿Desea continuar con el proceso?","You are trying to INSERT a new line in the actual position. Do you want to continue the process?"]
[{"$f":"IF(OFFSET(A175,0,MATCH(Setup!$H$7,Idiomas,0))<>\"\",OFFSET(A175,0,MATCH(Setup!$H$7,Idiomas,0)),B175)","v":"Enter a numeric value between 9 and 208"},"Entre un valor numérico entre 9 y 208","Enter a numeric value between 9 and 208"]
[{"$f":"IF(OFFSET(A176,0,MATCH(Setup!$H$7,Idiomas,0))<>\"\",OFFSET(A176,0,MATCH(Setup!$H$7,Idiomas,0)),B176)","v":"Inserting lines…"},"Insertando líneas...","Inserting lines…"]
[{"$f":"IF(OFFSET(A177,0,MATCH(Setup!$H$7,Idiomas,0))<>\"\",OFFSET(A177,0,MATCH(Setup!$H$7,Idiomas,0)),B177)","v":"Insert before the line No."},"Insertar antes de la línea No.:","Insert before the line No."]
[{"$f":"IF(OFFSET(A178,0,MATCH(Setup!$H$7,Idiomas,0))<>\"\",OFFSET(A178,0,MATCH(Setup!$H$7,Idiomas,0)),B178)","v":"Insert"},"Insertar","Insert"]
[{"$f":"IF(OFFSET(A179,0,MATCH(Setup!$H$7,Idiomas,0))<>\"\",OFFSET(A179,0,MATCH(Setup!$H$7,Idiomas,0)),B179)","v":"Cancel"},"Cancelar","Cancel"]
[{"$f":"IF(OFFSET(A180,0,MATCH(Setup!$H$7,Idiomas,0))<>\"\",OFFSET(A180,0,MATCH(Setup!$H$7,Idiomas,0)),B180)","v":"Delete"},"Eliminar","Delete"]
[{"$f":"IF(OFFSET(A181,0,MATCH(Setup!$H$7,Idiomas,0))<>\"\",OFFSET(A181,0,MATCH(Setup!$H$7,Idiomas,0)),B181)","v":"Copy"},"Copiar","Copy"]
[{"$f":"IF(OFFSET(A182,0,MATCH(Setup!$H$7,Idiomas,0))<>\"\",OFFSET(A182,0,MATCH(Setup!$H$7,Idiomas,0)),B182)","v":"Modify lines"},"Modificar líneas","Modify lines"]
[{"$f":"IF(OFFSET(A183,0,MATCH(Setup!$H$7,Idiomas,0))<>\"\",OFFSET(A183,0,MATCH(Setup!$H$7,Idiomas,0)),B183)","v":"ERROR: Configured lines not found"},"ERROR: No existen lineas configuradas","ERROR: Configured lines not found"]
[{"$f":"IF(OFFSET(A184,0,MATCH(Setup!$H$7,Idiomas,0))<>\"\",OFFSET(A184,0,MATCH(Setup!$H$7,Idiomas,0)),B184)","v":"The line was deleted sucessfully. Remember to complete the process, press \"Activate/Hide Lines\" after the new line is configured."},"La línea fue eliminada exitosamente. Recuerde ejecutar el proceso para \"Activar/Ocultar líneas\" justo después de finalizar la planeación","The line was deleted sucessfully. Remember to complete the process, press \"Activate/Hide Lines\" after the new line is configured."]
[{"$f":"IF(OFFSET(A185,0,MATCH(Setup!$H$7,Idiomas,0))<>\"\",OFFSET(A185,0,MATCH(Setup!$H$7,Idiomas,0)),B185)","v":"You are trying to DELETE the line in the actual position. Do you want to continue the process?"},"Usted está intentando ELIMINAR la línea en la posición actual. ¿Desea continuar con el proceso?\"","You are trying to DELETE the line in the actual position. Do you want to continue the process?"]
[{"$f":"IF(OFFSET(A186,0,MATCH(Setup!$H$7,Idiomas,0))<>\"\",OFFSET(A186,0,MATCH(Setup!$H$7,Idiomas,0)),B186)","v":"Deleting lines…"},"Eliminando líneas...","Deleting lines…"]
[{"$f":"IF(OFFSET(A187,0,MATCH(Setup!$H$7,Idiomas,0))<>\"\",OFFSET(A187,0,MATCH(Setup!$H$7,Idiomas,0)),B187)","v":"Delete the line No.:"},"Eliminar la línea No.:","Delete the line No.:"]
[{"$f":"IF(OFFSET(A188,0,MATCH(Setup!$H$7,Idiomas,0))<>\"\",OFFSET(A188,0,MATCH(Setup!$H$7,Idiomas,0)),B188)","v":"Action not allowed at this position"},"Acción no permitida en esta posición","Action not allowed at this position"]
[{"$f":"IF(OFFSET(A189,0,MATCH(Setup!$H$7,Idiomas,0))<>\"\",OFFSET(A189,0,MATCH(Setup!$H$7,Idiomas,0)),B189)","v":"Copying lines…"},"Copiando líneas...","Copying lines…"]
[{"$f":"IF(OFFSET(A190,0,MATCH(Setup!$H$7,Idiomas,0))<>\"\",OFFSET(A190,0,MATCH(Setup!$H$7,Idiomas,0)),B190)","v":"Copy from ORIGIN line No.:"},"Copiar desde la línea ORIGEN No.:","Copy from ORIGIN line No.:"]
[{"$f":"IF(OFFSET(A191,0,MATCH(Setup!$H$7,Idiomas,0))<>\"\",OFFSET(A191,0,MATCH(Setup!$H$7,Idiomas,0)),B191)","v":"To TARGET line No.:"},"Hasta la línea DESTINO No.:","To TARGET line No.:"]
[{"$f":"IF(OFFSET(A192,0,MATCH(Setup!$H$7,Idiomas,0))<>\"\",OFFSET(A192,0,MATCH(Setup!$H$7,Idiomas,0)),B192)","v":"Copy"},"Copiar","Copy"]
[{"$f":"IF(OFFSET(A193,0,MATCH(Setup!$H$7,Idiomas,0))<>\"\",OFFSET(A193,0,MATCH(Setup!$H$7,Idiomas,0)),B193)","v":"The ORIGIN line was copied suscessfully. Remember to complete the process, press \"Activate/Hide Lines\" after the new line is configured."},"La línea ORIGEN fue copiada exitosamente. Recuerde ejecutar el proceso para \"Activar/Ocultar lineas\" justo después de finalizar la planeación","The ORIGIN line was copied suscessfully. Remember to complete the process, press \"Activate/Hide Lines\" after the new line is configured."]
[{"$f":"IF(OFFSET(A194,0,MATCH(Setup!$H$7,Idiomas,0))<>\"\",OFFSET(A194,0,MATCH(Setup!$H$7,Idiomas,0)),B194)","v":"You are trying to COPY data from ORIGIN line to TARGET line. Actual data on TARGET line will be permanetly replaced.  Do you want to continue?"},"Usted está intentando COPIAR los datos desde la línea ORIGEN a la línea DESTINO. Los datos actuales en la línea destino serán sustituidos permanentemente ¿Desea continuar con el proceso?","You are trying to COPY data from ORIGIN line to TARGET line. Actual data on TARGET line will be permanetly replaced.  Do you want to continue?"]
[{"$f":"IF(OFFSET(A195,0,MATCH(Setup!$H$7,Idiomas,0))<>\"\",OFFSET(A195,0,MATCH(Setup!$H$7,Idiomas,0)),B195)","v":"TARGET line must be different from ORIGIN line"},"Debe inidicar una linea DESTINO diferente a la ORIGEN donde quiere copiar","TARGET line must be different from ORIGIN line"]
[{"$f":"IF(OFFSET(A196,0,MATCH(Setup!$H$7,Idiomas,0))<>\"\",OFFSET(A196,0,MATCH(Setup!$H$7,Idiomas,0)),B196)","v":"Month 1"},"Mes 1","Month 1"]
[{"$f":"IF(OFFSET(A197,0,MATCH(Setup!$H$7,Idiomas,0))<>\"\",OFFSET(A197,0,MATCH(Setup!$H$7,Idiomas,0)),B197)","v":"Month 2"},"Mes 2","Month 2"]
[{"$f":"IF(OFFSET(A198,0,MATCH(Setup!$H$7,Idiomas,0))<>\"\",OFFSET(A198,0,MATCH(Setup!$H$7,Idiomas,0)),B198)","v":"Month 3"},"Mes 3","Month 3"]
[{"$f":"IF(OFFSET(A199,0,MATCH(Setup!$H$7,Idiomas,0))<>\"\",OFFSET(A199,0,MATCH(Setup!$H$7,Idiomas,0)),B199)","v":"Month 4"},"Mes 4","Month 4"]
[{"$f":"IF(OFFSET(A200,0,MATCH(Setup!$H$7,Idiomas,0))<>\"\",OFFSET(A200,0,MATCH(Setup!$H$7,Idiomas,0)),B200)","v":"Month 5"},"Mes 5","Month 5"]
[{"$f":"IF(OFFSET(A201,0,MATCH(Setup!$H$7,Idiomas,0))<>\"\",OFFSET(A201,0,MATCH(Setup!$H$7,Idiomas,0)),B201)","v":"Month 6"},"Mes 6","Month 6"]
[{"$f":"IF(OFFSET(A202,0,MATCH(Setup!$H$7,Idiomas,0))<>\"\",OFFSET(A202,0,MATCH(Setup!$H$7,Idiomas,0)),B202)","v":"Month 7"},"Mes 7","Month 7"]
[{"$f":"IF(OFFSET(A203,0,MATCH(Setup!$H$7,Idiomas,0))<>\"\",OFFSET(A203,0,MATCH(Setup!$H$7,Idiomas,0)),B203)","v":"Month 8"},"Mes 8","Month 8"]
[{"$f":"IF(OFFSET(A204,0,MATCH(Setup!$H$7,Idiomas,0))<>\"\",OFFSET(A204,0,MATCH(Setup!$H$7,Idiomas,0)),B204)","v":"Month 9"},"Mes 9","Month 9"]
[{"$f":"IF(OFFSET(A205,0,MATCH(Setup!$H$7,Idiomas,0))<>\"\",OFFSET(A205,0,MATCH(Setup!$H$7,Idiomas,0)),B205)","v":"Month 10"},"Mes 10","Month 10"]
[{"$f":"IF(OFFSET(A206,0,MATCH(Setup!$H$7,Idiomas,0))<>\"\",OFFSET(A206,0,MATCH(Setup!$H$7,Idiomas,0)),B206)","v":"Month 11"},"Mes 11","Month 11"]
[{"$f":"IF(OFFSET(A207,0,MATCH(Setup!$H$7,Idiomas,0))<>\"\",OFFSET(A207,0,MATCH(Setup!$H$7,Idiomas,0)),B207)","v":"Month 12"},"Mes 12","Month 12"]
[{"$f":"IF(OFFSET(A208,0,MATCH(Setup!$H$7,Idiomas,0))<>\"\",OFFSET(A208,0,MATCH(Setup!$H$7,Idiomas,0)),B208)","v":"Annex 1"},"Anexo 1","Annex 1"]
[{"$f":"IF(OFFSET(A209,0,MATCH(Setup!$H$7,Idiomas,0))<>\"\",OFFSET(A209,0,MATCH(Setup!$H$7,Idiomas,0)),B209)","v":"Annex 2"},"Anexo 2","Annex 2"]
[{"$f":"IF(OFFSET(A210,0,MATCH(Setup!$H$7,Idiomas,0))<>\"\",OFFSET(A210,0,MATCH(Setup!$H$7,Idiomas,0)),B210)","v":"Annex 3"},"Anexo 3","Annex 3"]
[{"$f":"IF(OFFSET(A211,0,MATCH(Setup!$H$7,Idiomas,0))<>\"\",OFFSET(A211,0,MATCH(Setup!$H$7,Idiomas,0)),B211)","v":"Annex 4"},"Anexo 4","Annex 4"]
[{"$f":"IF(OFFSET(A212,0,MATCH(Setup!$H$7,Idiomas,0))<>\"\",OFFSET(A212,0,MATCH(Setup!$H$7,Idiomas,0)),B212)","v":"Annex 5"},"Anexo 5","Annex 5"]
[{"$f":"IF(OFFSET(A213,0,MATCH(Setup!$H$7,Idiomas,0))<>\"\",OFFSET(A213,0,MATCH(Setup!$H$7,Idiomas,0)),B213)","v":"Annex 6"},"Anexo 6","Annex 6"]
[{"$f":"IF(OFFSET(A214,0,MATCH(Setup!$H$7,Idiomas,0))<>\"\",OFFSET(A214,0,MATCH(Setup!$H$7,Idiomas,0)),B214)","v":"(current sheets per quarter)"},"(hojas actuales por trimestre)","(current sheets per quarter)"]
[{"$f":"IF(OFFSET(A215,0,MATCH(Setup!$H$7,Idiomas,0))<>\"\",OFFSET(A215,0,MATCH(Setup!$H$7,Idiomas,0)),B215)","v":"Actual"},"Alcanzado","Actual"]
[{"$f":"IF(OFFSET(A216,0,MATCH(Setup!$H$7,Idiomas,0))<>\"\",OFFSET(A216,0,MATCH(Setup!$H$7,Idiomas,0)),B216)","v":"Component"},"Componente","Component"]
[{"$f":"IF(OFFSET(A217,0,MATCH(Setup!$H$7,Idiomas,0))<>\"\",OFFSET(A217,0,MATCH(Setup!$H$7,Idiomas,0)),B217)","v":"HIV / AIDS"},"VIH/Sida","HIV / AIDS"]
[{"$f":"IF(OFFSET(A218,0,MATCH(Setup!$H$7,Idiomas,0))<>\"\",OFFSET(A218,0,MATCH(Setup!$H$7,Idiomas,0)),B218)","v":"Malaria"},"Malaria","Malaria"]
[{"$f":"IF(OFFSET(A219,0,MATCH(Setup!$H$7,Idiomas,0))<>\"\",OFFSET(A219,0,MATCH(Setup!$H$7,Idiomas,0)),B219)","v":"TB"},"TB","TB"]
[{"$f":"IF(OFFSET(A220,0,MATCH(Setup!$H$7,Idiomas,0))<>\"\",OFFSET(A220,0,MATCH(Setup!$H$7,Idiomas,0)),B220)","v":"HIVAIDS / TB"},"VIH/Sida / TB","HIVAIDS / TB"]
[{"$f":"IF(OFFSET(A221,0,MATCH(Setup!$H$7,Idiomas,0))<>\"\",OFFSET(A221,0,MATCH(Setup!$H$7,Idiomas,0)),B221)","v":"HSS"},"Sistemas Salud","HSS"]
[{"$f":"IF(OFFSET(A222,0,MATCH(Setup!$H$7,Idiomas,0))<>\"\",OFFSET(A222,0,MATCH(Setup!$H$7,Idiomas,0)),B222)","v":"Currency"},"Moneda","Currency"]
[{"$f":"IF(OFFSET(A223,0,MATCH(Setup!$H$7,Idiomas,0))<>\"\",OFFSET(A223,0,MATCH(Setup!$H$7,Idiomas,0)),B223)","v":"$ - USD"},"$ - USD","$ - USD"]
[{"$f":"IF(OFFSET(A224,0,MATCH(Setup!$H$7,Idiomas,0))<>\"\",OFFSET(A224,0,MATCH(Setup!$H$7,Idiomas,0)),B224)","v":"€ - EUR"},"€ - EUR","€ - EUR"]
[{"$f":"IF(OFFSET(A225,0,MATCH(Setup!$H$7,Idiomas,0))<>\"\",OFFSET(A225,0,MATCH(Setup!$H$7,Idiomas,0)),B225)","v":"# - Local currency"},"# - Moneda local","# - Local currency"]
[{"$f":"IF(OFFSET(A226,0,MATCH(Setup!$H$7,Idiomas,0))<>\"\",OFFSET(A226,0,MATCH(Setup!$H$7,Idiomas,0)),B226)","v":"13. Results-based financing (RBF)"},"13. Financiamiento basado en resultados","13. Results-based financing (RBF)"]
[{"$f":"IF(OFFSET(A227,0,MATCH(Setup!$H$7,Idiomas,0))<>\"\",OFFSET(A227,0,MATCH(Setup!$H$7,Idiomas,0)),B227)","v":"PR progamatic monitor signature"},"Firma del/la monitor/a programático/a del rp","PR progamatic monitor signature"]
[{"$f":"IF(OFFSET(A228,0,MATCH(Setup!$H$7,Idiomas,0))<>\"\",OFFSET(A228,0,MATCH(Setup!$H$7,Idiomas,0)),B228)","v":"PR financial monitor signature"},"Firma del/la monitor/a financiero/a del rp","PR financial monitor signature"]
[{"$f":"IF(OFFSET(A229,0,MATCH(Setup!$H$7,Idiomas,0))<>\"\",OFFSET(A229,0,MATCH(Setup!$H$7,Idiomas,0)),B229)","v":"SR representative signature"},"Firma del/la representate del SR","SR representative signature"]
[{"$f":"IF(OFFSET(A230,0,MATCH(Setup!$H$7,Idiomas,0))<>\"\",OFFSET(A230,0,MATCH(Setup!$H$7,Idiomas,0)),B230)","v":"Recalculate cummulative"},"Recalcular acumulados","Recalculate cummulative"]
[{"$f":"IF(OFFSET(A231,0,MATCH(Setup!$H$7,Idiomas,0))<>\"\",OFFSET(A231,0,MATCH(Setup!$H$7,Idiomas,0)),B231)","v":"Recalculating, please wait …"},"Recalculando, por favor espere…","Recalculating, please wait …"]
[{"$f":"IF(OFFSET(A232,0,MATCH(Setup!$H$7,Idiomas,0))<>\"\",OFFSET(A232,0,MATCH(Setup!$H$7,Idiomas,0)),B232)","v":"Recalculating months sheets, please wait …"},"Recalculando las hojas de meses, por favor espere…","Recalculating months sheets, please wait …"]
[{"$f":"IF(OFFSET(A233,0,MATCH(Setup!$H$7,Idiomas,0))<>\"\",OFFSET(A233,0,MATCH(Setup!$H$7,Idiomas,0)),B233)","v":"Input data in spaces with this color"},"Ingresar datos en los espacios con este color","Input data in spaces with this color"]
[{"$f":"IF(OFFSET(A234,0,MATCH(Setup!$H$7,Idiomas,0))<>\"\",OFFSET(A234,0,MATCH(Setup!$H$7,Idiomas,0)),B234)","v":"Activity: Contributing"},"Actividad: Contribuye","Activity: Contributing"]
[{"$f":"IF(OFFSET(A235,0,MATCH(Setup!$H$7,Idiomas,0))<>\"\",OFFSET(A235,0,MATCH(Setup!$H$7,Idiomas,0)),B235)","v":"1. YES"},"1. SI","1. YES"]
[{"$f":"IF(OFFSET(A236,0,MATCH(Setup!$H$7,Idiomas,0))<>\"\",OFFSET(A236,0,MATCH(Setup!$H$7,Idiomas,0)),B236)","v":"2. NO"},"2. NO","2. NO"]
[{"$f":"IF(OFFSET(A237,0,MATCH(Setup!$H$7,Idiomas,0))<>\"\",OFFSET(A237,0,MATCH(Setup!$H$7,Idiomas,0)),B237)","v":"Setup/Planning  password"},"Contraseña Setup/Planning","Setup/Planning  password"]
[{"$f":"IF(OFFSET(A238,0,MATCH(Setup!$H$7,Idiomas,0))<>\"\",OFFSET(A238,0,MATCH(Setup!$H$7,Idiomas,0)),B238)","v":"Setup access…"},"Acceder a la configuración….","Setup access…"]
[{"$f":"IF(OFFSET(A239,0,MATCH(Setup!$H$7,Idiomas,0))<>\"\",OFFSET(A239,0,MATCH(Setup!$H$7,Idiomas,0)),B239)","v":"Password:"},"Contraseña:","Password:"]
[{"$f":"IF(OFFSET(A240,0,MATCH(Setup!$H$7,Idiomas,0))<>\"\",OFFSET(A240,0,MATCH(Setup!$H$7,Idiomas,0)),B240)","v":"Accept"},"Aceptar","Accept"]
[{"$f":"IF(OFFSET(A241,0,MATCH(Setup!$H$7,Idiomas,0))<>\"\",OFFSET(A241,0,MATCH(Setup!$H$7,Idiomas,0)),B241)","v":"Access denied: Invalid password!!"},"Acesso denegado: Contraseña incorrecta!!","Access denied: Invalid password!!"]
[{"$f":"IF(OFFSET(A242,0,MATCH(Setup!$H$7,Idiomas,0))<>\"\",OFFSET(A242,0,MATCH(Setup!$H$7,Idiomas,0)),B242)","v":"12. Change the setup password"},"12. Cambiar la contraseña de configuración","12. Change the setup password"]
[{"$f":"IF(OFFSET(A243,0,MATCH(Setup!$H$7,Idiomas,0))<>\"\",OFFSET(A243,0,MATCH(Setup!$H$7,Idiomas,0)),B243)","v":"Change the setup pasword…"},"Cambiar la contraseña de configuración….","Change the setup pasword…"]
[{"$f":"IF(OFFSET(A244,0,MATCH(Setup!$H$7,Idiomas,0))<>\"\",OFFSET(A244,0,MATCH(Setup!$H$7,Idiomas,0)),B244)","v":"Current password:"},"Contraseña actual:","Current password:"]
[{"$f":"IF(OFFSET(A245,0,MATCH(Setup!$H$7,Idiomas,0))<>\"\",OFFSET(A245,0,MATCH(Setup!$H$7,Idiomas,0)),B245)","v":"New password:"},"Nueva contraseña:","New password:"]
[{"$f":"IF(OFFSET(A246,0,MATCH(Setup!$H$7,Idiomas,0))<>\"\",OFFSET(A246,0,MATCH(Setup!$H$7,Idiomas,0)),B246)","v":"Repeat new password:"},"Repita la nueva contraseña:","Repeat new password:"]
[{"$f":"IF(OFFSET(A247,0,MATCH(Setup!$H$7,Idiomas,0))<>\"\",OFFSET(A247,0,MATCH(Setup!$H$7,Idiomas,0)),B247)","v":"Error: current setup is Invalid!!"},"Error: Contraseña actual incorrecta!!","Error: current setup is Invalid!!"]
[{"$f":"IF(OFFSET(A248,0,MATCH(Setup!$H$7,Idiomas,0))<>\"\",OFFSET(A248,0,MATCH(Setup!$H$7,Idiomas,0)),B248)","v":"Error: New password and repetition are different"},"Error: Nueva contraseña y su repetición son difeerentes","Error: New password and repetition are different"]
[{"$f":"IF(OFFSET(A249,0,MATCH(Setup!$H$7,Idiomas,0))<>\"\",OFFSET(A249,0,MATCH(Setup!$H$7,Idiomas,0)),B249)","v":"New password was suscessfully changed!!"},"La nueva contraseña fue cambiada exitosamente!!","New password was suscessfully changed!!"]
[{"$f":"IF(OFFSET(A250,0,MATCH(Setup!$H$7,Idiomas,0))<>\"\",OFFSET(A250,0,MATCH(Setup!$H$7,Idiomas,0)),B250)","v":"!! WARNING !! The setup password will be deleted. Do you wish to continue?"},"!! AVISO !! La clave de configuración va a ser eliminada. ¿Desea continuar?","!! WARNING !! The setup password will be deleted. Do you wish to continue?"]
[{"$f":"IF(OFFSET(A251,0,MATCH(Setup!$H$7,Idiomas,0))<>\"\",OFFSET(A251,0,MATCH(Setup!$H$7,Idiomas,0)),B251)","v":"13. Customize colors for indicators, activities and months"},"13. Personalizar colores de indicadores, actividades y meses","13. Customize colors for indicators, activities and months"]
[{"$f":"IF(OFFSET(A252,0,MATCH(Setup!$H$7,Idiomas,0))<>\"\",OFFSET(A252,0,MATCH(Setup!$H$7,Idiomas,0)),B252)","v":"Indicators"},"Indicadores","Indicators"]
[{"$f":"IF(OFFSET(A253,0,MATCH(Setup!$H$7,Idiomas,0))<>\"\",OFFSET(A253,0,MATCH(Setup!$H$7,Idiomas,0)),B253)","v":"Activity: Non-Contributing"},"Actividad: No Contribuye","Activity: Non-Contributing"]
[{"$f":"IF(OFFSET(A254,0,MATCH(Setup!$H$7,Idiomas,0))<>\"\",OFFSET(A254,0,MATCH(Setup!$H$7,Idiomas,0)),B254)","v":"PR coordinator signarture"},"Firma del/la coordinador/a del RP","PR coordinator signarture"]
[{"$f":"IF(OFFSET(A255,0,MATCH(Setup!$H$7,Idiomas,0))<>\"\",OFFSET(A255,0,MATCH(Setup!$H$7,Idiomas,0)),B255)","v":"Note: use \"Alt\" + \"Enter\" keys to divide parragraphs"},"Nota: utilice las teclas \"Alt\" + \"Enter\" para separar párrafos","Note: use \"Alt\" + \"Enter\" keys to divide parragraphs"]
[{"$f":"IF(OFFSET(A256,0,MATCH(Setup!$H$7,Idiomas,0))<>\"\",OFFSET(A256,0,MATCH(Setup!$H$7,Idiomas,0)),B256)","v":"Select the month entry check detail"},"Seleccione el mes de ingreso de detalle de cheque","Select the month entry check detail"]
[{"$f":"IF(OFFSET(A257,0,MATCH(Setup!$H$7,Idiomas,0))<>\"\",OFFSET(A257,0,MATCH(Setup!$H$7,Idiomas,0)),B257)","v":"Issue date "},"Fecha de emisión","Issue date "]
[{"$f":"IF(OFFSET(A258,0,MATCH(Setup!$H$7,Idiomas,0))<>\"\",OFFSET(A258,0,MATCH(Setup!$H$7,Idiomas,0)),B258)","v":"Amount"},"Monto","Amount"]
[{"$f":"IF(OFFSET(A259,0,MATCH(Setup!$H$7,Idiomas,0))<>\"\",OFFSET(A259,0,MATCH(Setup!$H$7,Idiomas,0)),B259)","v":"Beneficiary"},"Beneficiario","Beneficiary"]
[{"$f":"IF(OFFSET(A260,0,MATCH(Setup!$H$7,Idiomas,0))<>\"\",OFFSET(A260,0,MATCH(Setup!$H$7,Idiomas,0)),B260)","v":"Description"},"Descripción","Description"]
[{"$f":"IF(OFFSET(A261,0,MATCH(Setup!$H$7,Idiomas,0))<>\"\",OFFSET(A261,0,MATCH(Setup!$H$7,Idiomas,0)),B261)","v":"Report date"},"Fecha de informe","Report date"]
[{"$f":"IF(OFFSET(A262,0,MATCH(Setup!$H$7,Idiomas,0))<>\"\",OFFSET(A262,0,MATCH(Setup!$H$7,Idiomas,0)),B262)","v":"Report prepared by"},"Informe elaborador por","Report prepared by"]
[{"$f":"IF(OFFSET(A263,0,MATCH(Setup!$H$7,Idiomas,0))<>\"\",OFFSET(A263,0,MATCH(Setup!$H$7,Idiomas,0)),B263)","v":"Improvement actions"},"Acciones de mejoras","Improvement actions"]
[{"$f":"IF(OFFSET(A264,0,MATCH(Setup!$H$7,Idiomas,0))<>\"\",OFFSET(A264,0,MATCH(Setup!$H$7,Idiomas,0)),B264)","v":"Tasks"},"Tareas","Tasks"]
[{"$f":"IF(OFFSET(A265,0,MATCH(Setup!$H$7,Idiomas,0))<>\"\",OFFSET(A265,0,MATCH(Setup!$H$7,Idiomas,0)),B265)","v":"Task responsibles"},"Responsable de las tareas","Task responsibles"]
[{"$f":"IF(OFFSET(A266,0,MATCH(Setup!$H$7,Idiomas,0))<>\"\",OFFSET(A266,0,MATCH(Setup!$H$7,Idiomas,0)),B266)","v":"Start date"},"Fecha inicio","Start date"]
[{"$f":"IF(OFFSET(A267,0,MATCH(Setup!$H$7,Idiomas,0))<>\"\",OFFSET(A267,0,MATCH(Setup!$H$7,Idiomas,0)),B267)","v":"Final date"},"Fecha final","Final date"]
[{"$f":"IF(OFFSET(A268,0,MATCH(Setup!$H$7,Idiomas,0))<>\"\",OFFSET(A268,0,MATCH(Setup!$H$7,Idiomas,0)),B268)","v":"Necessary resources"},"Recursos necesarios","Necessary resources"]
[{"$f":"IF(OFFSET(A269,0,MATCH(Setup!$H$7,Idiomas,0))<>\"\",OFFSET(A269,0,MATCH(Setup!$H$7,Idiomas,0)),B269)","v":"Indicator monitoring (deliverable)"},"Monitorero de indicador (entregable)","Indicator monitoring (deliverable)"]
[{"$f":"IF(OFFSET(A270,0,MATCH(Setup!$H$7,Idiomas,0))<>\"\",OFFSET(A270,0,MATCH(Setup!$H$7,Idiomas,0)),B270)","v":"Monitoring responsible"},"Responsable del seguimiento","Monitoring responsible"]
[{"$f":"IF(OFFSET(A271,0,MATCH(Setup!$H$7,Idiomas,0))<>\"\",OFFSET(A271,0,MATCH(Setup!$H$7,Idiomas,0)),B271)","v":"Implementation plan"},"Plan de implementación","Implementation plan"]
[{"$f":"IF(OFFSET(A272,0,MATCH(Setup!$H$7,Idiomas,0))<>\"\",OFFSET(A272,0,MATCH(Setup!$H$7,Idiomas,0)),B272)","v":"Deliverable"},"Entregable","Deliverable"]
[{"$f":"IF(OFFSET(A273,0,MATCH(Setup!$H$7,Idiomas,0))<>\"\",OFFSET(A273,0,MATCH(Setup!$H$7,Idiomas,0)),B273)","v":"Delivery date"},"Fecha de entrega","Delivery date"]
[{"$f":"IF(OFFSET(A274,0,MATCH(Setup!$H$7,Idiomas,0))<>\"\",OFFSET(A274,0,MATCH(Setup!$H$7,Idiomas,0)),B274)","v":"Responsible for monitoring"},"Responsable del seguimiento","Responsible for monitoring"]
[{"$f":"IF(OFFSET(A275,0,MATCH(Setup!$H$7,Idiomas,0))<>\"\",OFFSET(A275,0,MATCH(Setup!$H$7,Idiomas,0)),B275)","v":"3. Tasks"},"3. Tarea","3. Tasks"]
[{"$f":"IF(OFFSET(A276,0,MATCH(Setup!$H$7,Idiomas,0))<>\"\",OFFSET(A276,0,MATCH(Setup!$H$7,Idiomas,0)),B276)","v":"In process"},"En proceso","In process"]
[{"$f":"IF(OFFSET(A277,0,MATCH(Setup!$H$7,Idiomas,0))<>\"\",OFFSET(A277,0,MATCH(Setup!$H$7,Idiomas,0)),B277)","v":"Done"},"Cumplido","Done"]
[{"$f":"IF(OFFSET(A278,0,MATCH(Setup!$H$7,Idiomas,0))<>\"\",OFFSET(A278,0,MATCH(Setup!$H$7,Idiomas,0)),B278)","v":"Postponed"},"Aplazado","Postponed"]
[{"$f":"IF(OFFSET(A279,0,MATCH(Setup!$H$7,Idiomas,0))<>\"\",OFFSET(A279,0,MATCH(Setup!$H$7,Idiomas,0)),B279)","v":"Not fulfilled"},"No cumplido","Not fulfilled"]
[{"$f":"IF(OFFSET(A280,0,MATCH(Setup!$H$7,Idiomas,0))<>\"\",OFFSET(A280,0,MATCH(Setup!$H$7,Idiomas,0)),B280)","v":"WEEKS"},"SEMANAS","WEEKS"]
[{"$f":"IF(OFFSET(A281,0,MATCH(Setup!$H$7,Idiomas,0))<>\"\",OFFSET(A281,0,MATCH(Setup!$H$7,Idiomas,0)),B281)","v":"Tests on target populations"},"Pruebas realizadas en poblaciones meta","Tests on target populations"]
[{"$f":"IF(OFFSET(A282,0,MATCH(Setup!$H$7,Idiomas,0))<>\"\",OFFSET(A282,0,MATCH(Setup!$H$7,Idiomas,0)),B282)","v":"Result"},"Logro","Result"]
[{"$f":"IF(OFFSET(A283,0,MATCH(Setup!$H$7,Idiomas,0))<>\"\",OFFSET(A283,0,MATCH(Setup!$H$7,Idiomas,0)),B283)","v":"Year total"},"Total del año","Year total"]
[{"$f":"IF(OFFSET(A284,0,MATCH(Setup!$H$7,Idiomas,0))<>\"\",OFFSET(A284,0,MATCH(Setup!$H$7,Idiomas,0)),B284)","v":"Grand total"},"Total general","Grand total"]
[{"$f":"IF(OFFSET(A285,0,MATCH(Setup!$H$7,Idiomas,0))<>\"\",OFFSET(A285,0,MATCH(Setup!$H$7,Idiomas,0)),B285)","v":"Result percentages (%)"},"Porcentajes de logros (%)","Result percentages (%)"]
[{"$f":"IF(OFFSET(A286,0,MATCH(Setup!$H$7,Idiomas,0))<>\"\",OFFSET(A286,0,MATCH(Setup!$H$7,Idiomas,0)),B286)","v":"Results summary "},"Resumen de resultados","Results summary "]
[{"$f":"IF(OFFSET(A287,0,MATCH(Setup!$H$7,Idiomas,0))<>\"\",OFFSET(A287,0,MATCH(Setup!$H$7,Idiomas,0)),B287)","v":"Condoms delivery"},"Entrega de condones","Condoms delivery"]
[{"$f":"IF(OFFSET(A288,0,MATCH(Setup!$H$7,Idiomas,0))<>\"\",OFFSET(A288,0,MATCH(Setup!$H$7,Idiomas,0)),B288)","v":"Check register"},"Registro de cheques","Check register"]
[{"$f":"IF(OFFSET(A289,0,MATCH(Setup!$H$7,Idiomas,0))<>\"\",OFFSET(A289,0,MATCH(Setup!$H$7,Idiomas,0)),B289)","v":"Disbursement request"},"Solicitud de desembolso","Disbursement request"]
[{"$f":"IF(OFFSET(A290,0,MATCH(Setup!$H$7,Idiomas,0))<>\"\",OFFSET(A290,0,MATCH(Setup!$H$7,Idiomas,0)),B290)","v":"Cash balance"},"Disponibilidad financiera acumulada","Cash balance"]
[{"$f":"IF(OFFSET(A291,0,MATCH(Setup!$H$7,Idiomas,0))<>\"\",OFFSET(A291,0,MATCH(Setup!$H$7,Idiomas,0)),B291)","v":"Annual financial performance"},"Desempeño financiero anual","Annual financial performance"]
[{"$f":"IF(OFFSET(A292,0,MATCH(Setup!$H$7,Idiomas,0))<>\"\",OFFSET(A292,0,MATCH(Setup!$H$7,Idiomas,0)),B292)","v":"Charts"},"Gráficos","Charts"]
[{"$f":"IF(OFFSET(A293,0,MATCH(Setup!$H$7,Idiomas,0))<>\"\",OFFSET(A293,0,MATCH(Setup!$H$7,Idiomas,0)),B293)","v":"Summary financial charts"},"Gráficos financieros consolidados","Summary financial charts"]
[{"$f":"IF(OFFSET(A294,0,MATCH(Setup!$H$7,Idiomas,0))<>\"\",OFFSET(A294,0,MATCH(Setup!$H$7,Idiomas,0)),B294)","v":"Summary programmatic charts"},"Gráficos programáticos consolidados","Summary programmatic charts"]
[{"$f":"IF(OFFSET(A295,0,MATCH(Setup!$H$7,Idiomas,0))<>\"\",OFFSET(A295,0,MATCH(Setup!$H$7,Idiomas,0)),B295)","v":"Configuration and data entry"},"Configuración e ingreso de datos","Configuration and data entry"]
[{"$f":"IF(OFFSET(A296,0,MATCH(Setup!$H$7,Idiomas,0))<>\"\",OFFSET(A296,0,MATCH(Setup!$H$7,Idiomas,0)),B296)","v":"Action plan"},"Plan de mejoras","Action plan"]
[{"$f":"IF(OFFSET(A297,0,MATCH(Setup!$H$7,Idiomas,0))<>\"\",OFFSET(A297,0,MATCH(Setup!$H$7,Idiomas,0)),B297)","v":"January"},"Enero","January"]
[{"$f":"IF(OFFSET(A298,0,MATCH(Setup!$H$7,Idiomas,0))<>\"\",OFFSET(A298,0,MATCH(Setup!$H$7,Idiomas,0)),B298)","v":"February"},"Febrero","February"]
[{"$f":"IF(OFFSET(A299,0,MATCH(Setup!$H$7,Idiomas,0))<>\"\",OFFSET(A299,0,MATCH(Setup!$H$7,Idiomas,0)),B299)","v":"March"},"Marzo","March"]
[{"$f":"IF(OFFSET(A300,0,MATCH(Setup!$H$7,Idiomas,0))<>\"\",OFFSET(A300,0,MATCH(Setup!$H$7,Idiomas,0)),B300)","v":"April"},"Abril","April"]
[{"$f":"IF(OFFSET(A301,0,MATCH(Setup!$H$7,Idiomas,0))<>\"\",OFFSET(A301,0,MATCH(Setup!$H$7,Idiomas,0)),B301)","v":"May"},"Mayo","May"]
[{"$f":"IF(OFFSET(A302,0,MATCH(Setup!$H$7,Idiomas,0))<>\"\",OFFSET(A302,0,MATCH(Setup!$H$7,Idiomas,0)),B302)","v":"June"},"Junio","June"]
[{"$f":"IF(OFFSET(A303,0,MATCH(Setup!$H$7,Idiomas,0))<>\"\",OFFSET(A303,0,MATCH(Setup!$H$7,Idiomas,0)),B303)","v":"July"},"Julio","July"]
[{"$f":"IF(OFFSET(A304,0,MATCH(Setup!$H$7,Idiomas,0))<>\"\",OFFSET(A304,0,MATCH(Setup!$H$7,Idiomas,0)),B304)","v":"August"},"Agosto","August"]
[{"$f":"IF(OFFSET(A305,0,MATCH(Setup!$H$7,Idiomas,0))<>\"\",OFFSET(A305,0,MATCH(Setup!$H$7,Idiomas,0)),B305)","v":"September"},"Septiembre","September"]
[{"$f":"IF(OFFSET(A306,0,MATCH(Setup!$H$7,Idiomas,0))<>\"\",OFFSET(A306,0,MATCH(Setup!$H$7,Idiomas,0)),B306)","v":"October"},"Octubre","October"]
[{"$f":"IF(OFFSET(A307,0,MATCH(Setup!$H$7,Idiomas,0))<>\"\",OFFSET(A307,0,MATCH(Setup!$H$7,Idiomas,0)),B307)","v":"November"},"Noviembre","November"]
[{"$f":"IF(OFFSET(A308,0,MATCH(Setup!$H$7,Idiomas,0))<>\"\",OFFSET(A308,0,MATCH(Setup!$H$7,Idiomas,0)),B308)","v":"December"},"Diciembre","December"]
[{"$f":"IF(OFFSET(A309,0,MATCH(Setup!$H$7,Idiomas,0))<>\"\",OFFSET(A309,0,MATCH(Setup!$H$7,Idiomas,0)),B309)","v":"Expenditures"},"Ejecución presupuestaria (gastos)","Expenditures"]
[{"$f":"IF(OFFSET(A310,0,MATCH(Setup!$H$7,Idiomas,0))<>\"\",OFFSET(A310,0,MATCH(Setup!$H$7,Idiomas,0)),B310)","v":"Action plan"},"Plan mejora","Action plan"]
[{"$f":"IF(OFFSET(A311,0,MATCH(Setup!$H$7,Idiomas,0))<>\"\",OFFSET(A311,0,MATCH(Setup!$H$7,Idiomas,0)),B311)","v":"Month details"},"Detalle por mes","Month details"]
[{"$f":"IF(OFFSET(A312,0,MATCH(Setup!$H$7,Idiomas,0))<>\"\",OFFSET(A312,0,MATCH(Setup!$H$7,Idiomas,0)),B312)","v":"Select the indicator from the list"},"Seleccione el indicador de la lista","Select the indicator from the list"]
[{"$f":"IF(OFFSET(A313,0,MATCH(Setup!$H$7,Idiomas,0))<>\"\",OFFSET(A313,0,MATCH(Setup!$H$7,Idiomas,0)),B313)","v":"BACK"},"ATRÁS","BACK"]
[{"$f":"IF(OFFSET(A314,0,MATCH(Setup!$H$7,Idiomas,0))<>\"\",OFFSET(A314,0,MATCH(Setup!$H$7,Idiomas,0)),B314)","v":"2. Activity: Contributing"},"2. Actividad: Contribuye","2. Activity: Contributing"]
[{"$f":"IF(OFFSET(A315,0,MATCH(Setup!$H$7,Idiomas,0))<>\"\",OFFSET(A315,0,MATCH(Setup!$H$7,Idiomas,0)),B315)","v":"3. Activity: Non-Contributing"},"3. Actividad: No Contribuye","3. Activity: Non-Contributing"]
[{"$f":"IF(OFFSET(A316,0,MATCH(Setup!$H$7,Idiomas,0))<>\"\",OFFSET(A316,0,MATCH(Setup!$H$7,Idiomas,0)),B316)","v":"Expenditure vs budget (%)"},"% Gastos vrs presupuesto","Expenditure vs budget (%)"]
[{"$f":"IF(OFFSET(A317,0,MATCH(Setup!$H$7,Idiomas,0))<>\"\",OFFSET(A317,0,MATCH(Setup!$H$7,Idiomas,0)),B317)","v":"Expenditure vs disbursement (%)"},"% Gastos vrs desembolso","Expenditure vs disbursement (%)"]
[{"$f":"IF(OFFSET(A318,0,MATCH(Setup!$H$7,Idiomas,0))<>\"\",OFFSET(A318,0,MATCH(Setup!$H$7,Idiomas,0)),B318)","v":"Disbursement vs budget (%)"},"% Desembolso vrs presupuesto","Disbursement vs budget (%)"]
[{"$f":"IF(OFFSET(A319,0,MATCH(Setup!$H$7,Idiomas,0))<>\"\",OFFSET(A319,0,MATCH(Setup!$H$7,Idiomas,0)),B319)","v":"Cash balance vs budget (%)"},"% Disponibilidad financiera vrs presupuesto","Cash balance vs budget (%)"]
[{"$f":"IF(OFFSET(A320,0,MATCH(Setup!$H$7,Idiomas,0))<>\"\",OFFSET(A320,0,MATCH(Setup!$H$7,Idiomas,0)),B320)","v":"Cash balance vs disbursement (%)"},"% Disponibilidad financiera vrs desembolso","Cash balance vs disbursement (%)"]
[{"$f":"IF(OFFSET(A321,0,MATCH(Setup!$H$7,Idiomas,0))<>\"\",OFFSET(A321,0,MATCH(Setup!$H$7,Idiomas,0)),B321)","v":"To be completed by the PR"},"A ser completado por el RP","To be completed by the PR"]
[{"$f":"IF(OFFSET(A322,0,MATCH(Setup!$H$7,Idiomas,0))<>\"\",OFFSET(A322,0,MATCH(Setup!$H$7,Idiomas,0)),B322)","v":"Position"},"Posición o cargo","Position"]
[{"$f":"IF(OFFSET(A323,0,MATCH(Setup!$H$7,Idiomas,0))<>\"\",OFFSET(A323,0,MATCH(Setup!$H$7,Idiomas,0)),B323)","v":"Signature"},"Firma","Signature"]
[{"$f":"IF(OFFSET(A324,0,MATCH(Setup!$H$7,Idiomas,0))<>\"\",OFFSET(A324,0,MATCH(Setup!$H$7,Idiomas,0)),B324)","v":"To be completed by the SR"},"A ser completado por el SR","To be completed by the SR"]
[{"$f":"IF(OFFSET(A325,0,MATCH(Setup!$H$7,Idiomas,0))<>\"\",OFFSET(A325,0,MATCH(Setup!$H$7,Idiomas,0)),B325)","v":"Cash balance to date"},"Disponibilidad acumulada","Cash balance to date"]
[{"$f":"IF(OFFSET(A326,0,MATCH(Setup!$H$7,Idiomas,0))<>\"\",OFFSET(A326,0,MATCH(Setup!$H$7,Idiomas,0)),B326)","v":"Monthly financial performance"},"Ejecución financiera mensual","Monthly financial performance"]
[{"$f":"IF(OFFSET(A327,0,MATCH(Setup!$H$7,Idiomas,0))<>\"\",OFFSET(A327,0,MATCH(Setup!$H$7,Idiomas,0)),B327)","v":"Quarterly financial performance"},"Ejecución financiera trimestral","Quarterly financial performance"]
[{"$f":"IF(OFFSET(A328,0,MATCH(Setup!$H$7,Idiomas,0))<>\"\",OFFSET(A328,0,MATCH(Setup!$H$7,Idiomas,0)),B328)","v":"HIV test summary"},"Consolidado de pruebas VIH","HIV test summary"]
[{"$f":"IF(OFFSET(A329,0,MATCH(Setup!$H$7,Idiomas,0))<>\"\",OFFSET(A329,0,MATCH(Setup!$H$7,Idiomas,0)),B329)","v":"Condoms and lubricants delivery"},"Entrega de condones y lubricantes","Condoms and lubricants delivery"]
[{"$f":"IF(OFFSET(A330,0,MATCH(Setup!$H$7,Idiomas,0))<>\"\",OFFSET(A330,0,MATCH(Setup!$H$7,Idiomas,0)),B330)","v":"Condoms delivery"},"Entrega de condones","Condoms delivery"]
[{"$f":"IF(OFFSET(A331,0,MATCH(Setup!$H$7,Idiomas,0))<>\"\",OFFSET(A331,0,MATCH(Setup!$H$7,Idiomas,0)),B331)","v":"Lubricants delivery"},"Entrega de lubricantes","Lubricants delivery"]
[{"$f":"IF(OFFSET(A332,0,MATCH(Setup!$H$7,Idiomas,0))<>\"\",OFFSET(A332,0,MATCH(Setup!$H$7,Idiomas,0)),B332)","v":"Activity description"},"Descripción de la actividad","Activity description"]
[{"$f":"IF(OFFSET(A333,0,MATCH(Setup!$H$7,Idiomas,0))<>\"\",OFFSET(A333,0,MATCH(Setup!$H$7,Idiomas,0)),B333)","v":"Location"},"Localidad","Location"]
[{"$f":"IF(OFFSET(A334,0,MATCH(Setup!$H$7,Idiomas,0))<>\"\",OFFSET(A334,0,MATCH(Setup!$H$7,Idiomas,0)),B334)","v":"FINANCIAL RATIOS"},"ÍNDICES FINANCIEROS","FINANCIAL RATIOS"]
[{"$f":"IF(OFFSET(A335,0,MATCH(Setup!$H$7,Idiomas,0))<>\"\",OFFSET(A335,0,MATCH(Setup!$H$7,Idiomas,0)),B335)","v":"Financial ratios (Monthly)"},"Índices financieros (Mensual)","Financial ratios (Monthly)"]
[{"$f":"IF(OFFSET(A336,0,MATCH(Setup!$H$7,Idiomas,0))<>\"\",OFFSET(A336,0,MATCH(Setup!$H$7,Idiomas,0)),B336)","v":"Financial ratios (Quarterly)"},"Índices financieros (Trimestral)","Financial ratios (Quarterly)"]
[{"$f":"IF(OFFSET(A337,0,MATCH(Setup!$H$7,Idiomas,0))<>\"\",OFFSET(A337,0,MATCH(Setup!$H$7,Idiomas,0)),B337)","v":"Summary"},"Consolidados","Summary"]
[{"$f":"IF(OFFSET(A338,0,MATCH(Setup!$H$7,Idiomas,0))<>\"\",OFFSET(A338,0,MATCH(Setup!$H$7,Idiomas,0)),B338)","v":"HIV+"},"VIH+","HIV+"]
[{"$f":"IF(OFFSET(A339,0,MATCH(Setup!$H$7,Idiomas,0))<>\"\",OFFSET(A339,0,MATCH(Setup!$H$7,Idiomas,0)),B339)","v":"HIV-"},"VIH-","HIV-"]
[{"$f":"IF(OFFSET(A340,0,MATCH(Setup!$H$7,Idiomas,0))<>\"\",OFFSET(A340,0,MATCH(Setup!$H$7,Idiomas,0)),B340)","v":"WOMEN"},"MUJERES","WOMEN"]
[{"$f":"IF(OFFSET(A341,0,MATCH(Setup!$H$7,Idiomas,0))<>\"\",OFFSET(A341,0,MATCH(Setup!$H$7,Idiomas,0)),B341)","v":"MEN"},"HOMBRES","MEN"]
[{"$f":"IF(OFFSET(A342,0,MATCH(Setup!$H$7,Idiomas,0))<>\"\",OFFSET(A342,0,MATCH(Setup!$H$7,Idiomas,0)),B342)","v":"Tests summary: Annual"},"Consolidado de pruebas realizadas: Anual","Tests summary: Annual"]
[{"$f":"IF(OFFSET(A343,0,MATCH(Setup!$H$7,Idiomas,0))<>\"\",OFFSET(A343,0,MATCH(Setup!$H$7,Idiomas,0)),B343)","v":"Tests summary: 1st Quarter"},"Consolidado de pruebas realizadas: Trimestre 1","Tests summary: 1st Quarter"]
[{"$f":"IF(OFFSET(A344,0,MATCH(Setup!$H$7,Idiomas,0))<>\"\",OFFSET(A344,0,MATCH(Setup!$H$7,Idiomas,0)),B344)","v":"Tests summary: 2nd Quarter"},"Consolidado de pruebas realizadas: Trimestre 2","Tests summary: 2nd Quarter"]
[{"$f":"IF(OFFSET(A345,0,MATCH(Setup!$H$7,Idiomas,0))<>\"\",OFFSET(A345,0,MATCH(Setup!$H$7,Idiomas,0)),B345)","v":"Tests summary: 3rd Quarter"},"Consolidado de pruebas realizadas: Trimestre 3","Tests summary: 3rd Quarter"]
[{"$f":"IF(OFFSET(A346,0,MATCH(Setup!$H$7,Idiomas,0))<>\"\",OFFSET(A346,0,MATCH(Setup!$H$7,Idiomas,0)),B346)","v":"Tests summary: 4th Quarter"},"Consolidado de pruebas realizadas: Trimestre 4","Tests summary: 4th Quarter"]
[{"$f":"IF(OFFSET(A347,0,MATCH(Setup!$H$7,Idiomas,0))<>\"\",OFFSET(A347,0,MATCH(Setup!$H$7,Idiomas,0)),B347)","v":"Summary HIV tests form"},"Formulario consolidado mensual de pruebas VIH realizadas","Summary HIV tests form"]
[{"$f":"IF(OFFSET(A348,0,MATCH(Setup!$H$7,Idiomas,0))<>\"\",OFFSET(A348,0,MATCH(Setup!$H$7,Idiomas,0)),B348)","v":"Person responsible name"},"Persona responsable","Person responsible name"]
[{"$f":"IF(OFFSET(A349,0,MATCH(Setup!$H$7,Idiomas,0))<>\"\",OFFSET(A349,0,MATCH(Setup!$H$7,Idiomas,0)),B349)","v":"Indicator type"},"Tipo de indicador","Indicator type"]
[{"$f":"IF(OFFSET(A350,0,MATCH(Setup!$H$7,Idiomas,0))<>\"\",OFFSET(A350,0,MATCH(Setup!$H$7,Idiomas,0)),B350)","v":"1. Standard"},"1. Estandar","1. Standard"]
[{"$f":"IF(OFFSET(A351,0,MATCH(Setup!$H$7,Idiomas,0))<>\"\",OFFSET(A351,0,MATCH(Setup!$H$7,Idiomas,0)),B351)","v":"2. Inverse"},"2. Inverso","2. Inverse"]
[{"$f":"IF(OFFSET(A352,0,MATCH(Setup!$H$7,Idiomas,0))<>\"\",OFFSET(A352,0,MATCH(Setup!$H$7,Idiomas,0)),B352)","v":"3. Non-Cumulative"},"3. No Acumula","3. Non-Cumulative"]
[{"$f":"IF(OFFSET(A353,0,MATCH(Setup!$H$7,Idiomas,0))<>\"\",OFFSET(A353,0,MATCH(Setup!$H$7,Idiomas,0)),B353)","v":"Changes on Indicator Type require execute \"Link to the PR Dashboard\" again"},"Cambios en el tipo de indicador require volver a \"Enlazar con el Tablero de Mando del RP\"","Changes on Indicator Type require execute \"Link to the PR Dashboard\" again"]
[{"$f":"IF(OFFSET(A354,0,MATCH(Setup!$H$7,Idiomas,0))<>\"\",OFFSET(A354,0,MATCH(Setup!$H$7,Idiomas,0)),B354)","v":"Select the SR data entry sheet to insert…"},"Selecione la hoja de ingreso de datos del SR a insertar…","Select the SR data entry sheet to insert…"]
[{"$f":"IF(OFFSET(A355,0,MATCH(Setup!$H$7,Idiomas,0))<>\"\",OFFSET(A355,0,MATCH(Setup!$H$7,Idiomas,0)),B355)","v":"Budget & expenditure"},"Ejecución presupuestaria","Budget & expenditure"]
[{"$f":"IF(OFFSET(A356,0,MATCH(Setup!$H$7,Idiomas,0))<>\"\",OFFSET(A356,0,MATCH(Setup!$H$7,Idiomas,0)),B356)","v":"Budget"},"Presupuesto","Budget"]
[{"$f":"IF(OFFSET(A357,0,MATCH(Setup!$H$7,Idiomas,0))<>\"\",OFFSET(A357,0,MATCH(Setup!$H$7,Idiomas,0)),B357)","v":"Expenditure"},"Gastos","Expenditure"]
[{"$f":"IF(OFFSET(A358,0,MATCH(Setup!$H$7,Idiomas,0))<>\"\",OFFSET(A358,0,MATCH(Setup!$H$7,Idiomas,0)),B358)","v":"% of budget spent"},"% Presupuesto gastado","% of budget spent"]
[{"$f":"IF(OFFSET(A359,0,MATCH(Setup!$H$7,Idiomas,0))<>\"\",OFFSET(A359,0,MATCH(Setup!$H$7,Idiomas,0)),B359)","v":"% of programmatic targets achieve"},"% Logros programáticos","% of programmatic targets achieve"]
[{"$f":"IF(OFFSET(A360,0,MATCH(Setup!$H$7,Idiomas,0))<>\"\",OFFSET(A360,0,MATCH(Setup!$H$7,Idiomas,0)),B360)","v":"Monthly budget"},"Presupuesto del mes","Monthly budget"]
[{"$f":"IF(OFFSET(A361,0,MATCH(Setup!$H$7,Idiomas,0))<>\"\",OFFSET(A361,0,MATCH(Setup!$H$7,Idiomas,0)),B361)","v":"Monthly expenditure"},"Gastos del mes","Monthly expenditure"]
[{"$f":"IF(OFFSET(A362,0,MATCH(Setup!$H$7,Idiomas,0))<>\"\",OFFSET(A362,0,MATCH(Setup!$H$7,Idiomas,0)),B362)","v":"Expenditure"},"Gastos","Expenditure"]
[{"$f":"IF(OFFSET(A363,0,MATCH(Setup!$H$7,Idiomas,0))<>\"\",OFFSET(A363,0,MATCH(Setup!$H$7,Idiomas,0)),B363)","v":"Changes on initial period require execute \"Link to the PR Dashboard\" again"},"Cambios en el período inicial require volver a \"Enlazar con el Tablero de Mando del RP\"","Changes on initial period require execute \"Link to the PR Dashboard\" again"]
[{"$f":"IF(OFFSET(A364,0,MATCH(Setup!$H$7,Idiomas,0))<>\"\",OFFSET(A364,0,MATCH(Setup!$H$7,Idiomas,0)),B364)","v":"2. Modules according to the performance framework"},"2. Módulos según el marco de desempeño","2. Modules according to the performance framework"]
[{"$f":"IF(OFFSET(A365,0,MATCH(Setup!$H$7,Idiomas,0))<>\"\",OFFSET(A365,0,MATCH(Setup!$H$7,Idiomas,0)),B365)","v":"5. Associate indicators with modules and indicator type"},"5. Asociar indicadores con módulos y tipo de indicador","5. Associate indicators with modules and indicator type"]
[{"$f":"IF(OFFSET(A366,0,MATCH(Setup!$H$7,Idiomas,0))<>\"\",OFFSET(A366,0,MATCH(Setup!$H$7,Idiomas,0)),B366)","v":"Description of modules"},"Descripción del módulo","Description of modules"]
[{"$f":"IF(OFFSET(A367,0,MATCH(Setup!$H$7,Idiomas,0))<>\"\",OFFSET(A367,0,MATCH(Setup!$H$7,Idiomas,0)),B367)","v":"Associated to module"},"Asociado al módulo","Associated to module"]
[{"$f":"IF(OFFSET(A368,0,MATCH(Setup!$H$7,Idiomas,0))<>\"\",OFFSET(A368,0,MATCH(Setup!$H$7,Idiomas,0)),B368)","v":"Performance framework modules"},"Módulos del marco de desempeño","Performance framework modules"]
[{"$f":"IF(OFFSET(A369,0,MATCH(Setup!$H$7,Idiomas,0))<>\"\",OFFSET(A369,0,MATCH(Setup!$H$7,Idiomas,0)),B369)","v":"Cumulative annual expenditure (% per objectives)"},"Gastos anuales acumulados (% por objetivos)","Cumulative annual expenditure (% per objectives)"]
[{"$f":"IF(OFFSET(A370,0,MATCH(Setup!$H$7,Idiomas,0))<>\"\",OFFSET(A370,0,MATCH(Setup!$H$7,Idiomas,0)),B370)","v":"Cumulative annual expenditure (% per modules)"},"Gastos anuales acumulados (% por módulos)","Cumulative annual expenditure (% per modules)"]
[{"$f":"IF(OFFSET(A371,0,MATCH(Setup!$H$7,Idiomas,0))<>\"\",OFFSET(A371,0,MATCH(Setup!$H$7,Idiomas,0)),B371)","v":"Objective list"},"Lista de Objetivos","Objective list"]
[{"$f":"IF(OFFSET(A372,0,MATCH(Setup!$H$7,Idiomas,0))<>\"\",OFFSET(A372,0,MATCH(Setup!$H$7,Idiomas,0)),B372)","v":"Module list"},"Lista de Módulos","Module list"]
[{"$f":"IF(OFFSET(A373,0,MATCH(Setup!$H$7,Idiomas,0))<>\"\",OFFSET(A373,0,MATCH(Setup!$H$7,Idiomas,0)),B373)","v":"SSR advances liquidation"},"Avance de liquidación a SSR","SSR advances liquidation"]
[{"$f":"IF(OFFSET(A374,0,MATCH(Setup!$H$7,Idiomas,0))<>\"\",OFFSET(A374,0,MATCH(Setup!$H$7,Idiomas,0)),B374)","v":"Balance"},"Saldo","Balance"]
[{"$f":"IF(OFFSET(A375,0,MATCH(Setup!$H$7,Idiomas,0))<>\"\",OFFSET(A375,0,MATCH(Setup!$H$7,Idiomas,0)),B375)","v":"Return"},"Devolución","Return"]
[{"$f":"IF(OFFSET(A376,0,MATCH(Setup!$H$7,Idiomas,0))<>\"\",OFFSET(A376,0,MATCH(Setup!$H$7,Idiomas,0)),B376)","v":"SSR 1: (SSR name)"},"SSR 1: (Nombre del SSR)","SSR 1: (SSR name)"]
[{"$f":"IF(OFFSET(A377,0,MATCH(Setup!$H$7,Idiomas,0))<>\"\",OFFSET(A377,0,MATCH(Setup!$H$7,Idiomas,0)),B377)","v":"SSR 2: (SSR name)"},"SSR 2: (Nombre del SSR)","SSR 2: (SSR name)"]
[{"$f":"IF(OFFSET(A378,0,MATCH(Setup!$H$7,Idiomas,0))<>\"\",OFFSET(A378,0,MATCH(Setup!$H$7,Idiomas,0)),B378)","v":"SSR 3: (SSR name)"},"SSR 3: (Nombre del SSR)","SSR 3: (SSR name)"]
[{"$f":"IF(OFFSET(A379,0,MATCH(Setup!$H$7,Idiomas,0))<>\"\",OFFSET(A379,0,MATCH(Setup!$H$7,Idiomas,0)),B379)","v":"SSR 4: (SSR name)"},"SSR 4: (Nombre del SSR)","SSR 4: (SSR name)"]
[{"$f":"IF(OFFSET(A380,0,MATCH(Setup!$H$7,Idiomas,0))<>\"\",OFFSET(A380,0,MATCH(Setup!$H$7,Idiomas,0)),B380)","v":"SSR 5: (SSR name)"},"SSR 5: (Nombre del SSR)","SSR 5: (SSR name)"]
[{"$f":"IF(OFFSET(A381,0,MATCH(Setup!$H$7,Idiomas,0))<>\"\",OFFSET(A381,0,MATCH(Setup!$H$7,Idiomas,0)),B381)","v":"SSR 6: (SSR name)"},"SSR 6: (Nombre del SSR)","SSR 6: (SSR name)"]
[{"$f":"IF(OFFSET(A382,0,MATCH(Setup!$H$7,Idiomas,0))<>\"\",OFFSET(A382,0,MATCH(Setup!$H$7,Idiomas,0)),B382)","v":"SSR 7: (SSR name)"},"SSR 7: (Nombre del SSR)","SSR 7: (SSR name)"]
[{"$f":"IF(OFFSET(A383,0,MATCH(Setup!$H$7,Idiomas,0))<>\"\",OFFSET(A383,0,MATCH(Setup!$H$7,Idiomas,0)),B383)","v":"SSR 8: (SSR name)"},"SSR 8: (Nombre del SSR)","SSR 8: (SSR name)"]
[{"$f":"IF(OFFSET(A384,0,MATCH(Setup!$H$7,Idiomas,0))<>\"\",OFFSET(A384,0,MATCH(Setup!$H$7,Idiomas,0)),B384)","v":"SSR 9: (SSR name)"},"SSR 9: (Nombre del SSR)","SSR 9: (SSR name)"]
[{"$f":"IF(OFFSET(A385,0,MATCH(Setup!$H$7,Idiomas,0))<>\"\",OFFSET(A385,0,MATCH(Setup!$H$7,Idiomas,0)),B385)","v":"SSR 10: (SSR name)"},"SSR 10: (Nombre del SSR)","SSR 10: (SSR name)"]
[{"$f":"IF(OFFSET(A386,0,MATCH(Setup!$H$7,Idiomas,0))<>\"\",OFFSET(A386,0,MATCH(Setup!$H$7,Idiomas,0)),B386)","v":"SSR 11: (SSR name)"},"SSR 11: (Nombre del SSR)","SSR 11: (SSR name)"]
[{"$f":"IF(OFFSET(A387,0,MATCH(Setup!$H$7,Idiomas,0))<>\"\",OFFSET(A387,0,MATCH(Setup!$H$7,Idiomas,0)),B387)","v":"SSR 12: (SSR name)"},"SSR 12: (Nombre del SSR)","SSR 12: (SSR name)"]
[{"$f":"IF(OFFSET(A388,0,MATCH(Setup!$H$7,Idiomas,0))<>\"\",OFFSET(A388,0,MATCH(Setup!$H$7,Idiomas,0)),B388)","v":"Transfer 1 (MM/DD/YYYY)"},"Transferencia 1 (MM/DD/AAAA)","Transfer 1 (MM/DD/YYYY)"]
[{"$f":"IF(OFFSET(A389,0,MATCH(Setup!$H$7,Idiomas,0))<>\"\",OFFSET(A389,0,MATCH(Setup!$H$7,Idiomas,0)),B389)","v":"Transfer 2 (MM/DD/YYYY)"},"Transferencia 2 (MM/DD/AAAA)","Transfer 2 (MM/DD/YYYY)"]
[{"$f":"IF(OFFSET(A390,0,MATCH(Setup!$H$7,Idiomas,0))<>\"\",OFFSET(A390,0,MATCH(Setup!$H$7,Idiomas,0)),B390)","v":"Transfer 3 (MM/DD/YYYY)"},"Transferencia 3 (MM/DD/AAAA)","Transfer 3 (MM/DD/YYYY)"]
[{"$f":"IF(OFFSET(A391,0,MATCH(Setup!$H$7,Idiomas,0))<>\"\",OFFSET(A391,0,MATCH(Setup!$H$7,Idiomas,0)),B391)","v":"Transfer 4 (MM/DD/YYYY)"},"Transferencia 4 (MM/DD/AAAA)","Transfer 4 (MM/DD/YYYY)"]
[{"$f":"IF(OFFSET(A392,0,MATCH(Setup!$H$7,Idiomas,0))<>\"\",OFFSET(A392,0,MATCH(Setup!$H$7,Idiomas,0)),B392)","v":"Transfer 5 (MM/DD/YYYY)"},"Transferencia 5 (MM/DD/AAAA)","Transfer 5 (MM/DD/YYYY)"]
[{"$f":"IF(OFFSET(A393,0,MATCH(Setup!$H$7,Idiomas,0))<>\"\",OFFSET(A393,0,MATCH(Setup!$H$7,Idiomas,0)),B393)","v":"SSR 13: (SSR name)"},"SSR 13: (Nombre del SSR)","SSR 13: (SSR name)"]
[{"$f":"IF(OFFSET(A394,0,MATCH(Setup!$H$7,Idiomas,0))<>\"\",OFFSET(A394,0,MATCH(Setup!$H$7,Idiomas,0)),B394)","v":"SSR 14: (SSR name)"},"SSR 14: (Nombre del SSR)","SSR 14: (SSR name)"]
[{"$f":"IF(OFFSET(A395,0,MATCH(Setup!$H$7,Idiomas,0))<>\"\",OFFSET(A395,0,MATCH(Setup!$H$7,Idiomas,0)),B395)","v":"SSR 15: (SSR name)"},"SSR 15: (Nombre del SSR)","SSR 15: (SSR name)"]
[{"$f":"IF(OFFSET(A396,0,MATCH(Setup!$H$7,Idiomas,0))<>\"\",OFFSET(A396,0,MATCH(Setup!$H$7,Idiomas,0)),B396)","v":"SSR advances liquidation summary"},"Resumen de avances de liquidación","SSR advances liquidation summary"]
[{"$f":"IF(OFFSET(A397,0,MATCH(Setup!$H$7,Idiomas,0))<>\"\",OFFSET(A397,0,MATCH(Setup!$H$7,Idiomas,0)),B397)","v":"Justified"},"Justificado","Justified"]
[{"$f":"IF(OFFSET(A398,0,MATCH(Setup!$H$7,Idiomas,0))<>\"\",OFFSET(A398,0,MATCH(Setup!$H$7,Idiomas,0)),B398)","v":"Non Justified"},"No Justificado","Non Justified"]
[{"$f":"IF(OFFSET(A399,0,MATCH(Setup!$H$7,Idiomas,0))<>\"\",OFFSET(A399,0,MATCH(Setup!$H$7,Idiomas,0)),B399)","v":"Unit of measurement (target)"},"Unidad de medida (meta)","Unit of measurement (target)"]
[{"$f":"IF(OFFSET(A400,0,MATCH(Setup!$H$7,Idiomas,0))<>\"\",OFFSET(A400,0,MATCH(Setup!$H$7,Idiomas,0)),B400)","v":"Cumulative budget and expenditure (by objective)"},"Presupuesto y gastos acumulados (por objetivo)","Cumulative budget and expenditure (by objective)"]
[{"$f":"IF(OFFSET(A401,0,MATCH(Setup!$H$7,Idiomas,0))<>\"\",OFFSET(A401,0,MATCH(Setup!$H$7,Idiomas,0)),B401)","v":"Cumulative budget and expenditure (by module)"},"Presupuesto y gastos acumulados (por módulo)","Cumulative budget and expenditure (by module)"]
[{"$f":"IF(OFFSET(A402,0,MATCH(Setup!$H$7,Idiomas,0))<>\"\",OFFSET(A402,0,MATCH(Setup!$H$7,Idiomas,0)),B402)","v":"Programmatic results"},"Resultados programáticos","Programmatic results"]
[{"$f":"IF(OFFSET(A403,0,MATCH(Setup!$H$7,Idiomas,0))<>\"\",OFFSET(A403,0,MATCH(Setup!$H$7,Idiomas,0)),B403)","v":"Financial results"},"Resultados financieros","Financial results"]
[{"$f":"IF(OFFSET(A404,0,MATCH(Setup!$H$7,Idiomas,0))<>\"\",OFFSET(A404,0,MATCH(Setup!$H$7,Idiomas,0)),B404)","v":"Period"},"Período","Period"]
[{"$f":"IF(OFFSET(A405,0,MATCH(Setup!$H$7,Idiomas,0))<>\"\",OFFSET(A405,0,MATCH(Setup!$H$7,Idiomas,0)),B405)","v":"Result"},"Resultado","Result"]
[{"$f":"IF(OFFSET(A406,0,MATCH(Setup!$H$7,Idiomas,0))<>\"\",OFFSET(A406,0,MATCH(Setup!$H$7,Idiomas,0)),B406)","v":"Amount"},"Monto","Amount"]
[{"$f":"IF(OFFSET(A407,0,MATCH(Setup!$H$7,Idiomas,0))<>\"\",OFFSET(A407,0,MATCH(Setup!$H$7,Idiomas,0)),B407)","v":"Overview of financial performance"},"Resumen de la ejecución financiera","Overview of financial performance"]
[{"$f":"IF(OFFSET(A408,0,MATCH(Setup!$H$7,Idiomas,0))<>\"\",OFFSET(A408,0,MATCH(Setup!$H$7,Idiomas,0)),B408)","v":"Cumulative financial performance"},"Ejecución financiera acumulada","Cumulative financial performance"]
[{"$f":"IF(OFFSET(A409,0,MATCH(Setup!$H$7,Idiomas,0))<>\"\",OFFSET(A409,0,MATCH(Setup!$H$7,Idiomas,0)),B409)","v":"Year to date"},"Del año a la fecha","Year to date"]
[{"$f":"IF(OFFSET(A410,0,MATCH(Setup!$H$7,Idiomas,0))<>\"\",OFFSET(A410,0,MATCH(Setup!$H$7,Idiomas,0)),B410)","v":"Activities"},"Actividades","Activities"]
[{"$f":"IF(OFFSET(A411,0,MATCH(Setup!$H$7,Idiomas,0))<>\"\",OFFSET(A411,0,MATCH(Setup!$H$7,Idiomas,0)),B411)","v":"Quarter 1"},"Trimestre 1","Quarter 1"]
[{"$f":"IF(OFFSET(A412,0,MATCH(Setup!$H$7,Idiomas,0))<>\"\",OFFSET(A412,0,MATCH(Setup!$H$7,Idiomas,0)),B412)","v":"Quarter 2"},"Trimestre 2","Quarter 2"]
[{"$f":"IF(OFFSET(A413,0,MATCH(Setup!$H$7,Idiomas,0))<>\"\",OFFSET(A413,0,MATCH(Setup!$H$7,Idiomas,0)),B413)","v":"Quarter 3"},"Trimestre 3","Quarter 3"]
[{"$f":"IF(OFFSET(A414,0,MATCH(Setup!$H$7,Idiomas,0))<>\"\",OFFSET(A414,0,MATCH(Setup!$H$7,Idiomas,0)),B414)","v":"Quarter 4"},"Trimestre 4","Quarter 4"]
[{"$f":"IF(OFFSET(A415,0,MATCH(Setup!$H$7,Idiomas,0))<>\"\",OFFSET(A415,0,MATCH(Setup!$H$7,Idiomas,0)),B415)","v":"Quarter 5"},"Trimestre 5","Quarter 5"]
[{"$f":"IF(OFFSET(A416,0,MATCH(Setup!$H$7,Idiomas,0))<>\"\",OFFSET(A416,0,MATCH(Setup!$H$7,Idiomas,0)),B416)","v":"Quarter 6"},"Trimestre 6","Quarter 6"]
[{"$f":"IF(OFFSET(A417,0,MATCH(Setup!$H$7,Idiomas,0))<>\"\",OFFSET(A417,0,MATCH(Setup!$H$7,Idiomas,0)),B417)","v":"Quarter 7"},"Trimestre 7","Quarter 7"]
[{"$f":"IF(OFFSET(A418,0,MATCH(Setup!$H$7,Idiomas,0))<>\"\",OFFSET(A418,0,MATCH(Setup!$H$7,Idiomas,0)),B418)","v":"Quarter 8"},"Trimestre 8","Quarter 8"]
[{"$f":"IF(OFFSET(A419,0,MATCH(Setup!$H$7,Idiomas,0))<>\"\",OFFSET(A419,0,MATCH(Setup!$H$7,Idiomas,0)),B419)","v":"Quarter 9"},"Trimestre 9","Quarter 9"]
[{"$f":"IF(OFFSET(A420,0,MATCH(Setup!$H$7,Idiomas,0))<>\"\",OFFSET(A420,0,MATCH(Setup!$H$7,Idiomas,0)),B420)","v":"Quarter 10"},"Trimestre 10","Quarter 10"]
[{"$f":"IF(OFFSET(A421,0,MATCH(Setup!$H$7,Idiomas,0))<>\"\",OFFSET(A421,0,MATCH(Setup!$H$7,Idiomas,0)),B421)","v":"Quarter 11"},"Trimestre 11","Quarter 11"]
[{"$f":"IF(OFFSET(A422,0,MATCH(Setup!$H$7,Idiomas,0))<>\"\",OFFSET(A422,0,MATCH(Setup!$H$7,Idiomas,0)),B422)","v":"Quarter 12"},"Trimestre 12","Quarter 12"]
[{"$f":"IF(OFFSET(A423,0,MATCH(Setup!$H$7,Idiomas,0))<>\"\",OFFSET(A423,0,MATCH(Setup!$H$7,Idiomas,0)),B423)","v":"SR data consolidation template"},"Plantilla para Consosolidación de datos del SR","SR data consolidation template"]
[{"$f":"IF(OFFSET(A424,0,MATCH(Setup!$H$7,Idiomas,0))<>\"\",OFFSET(A424,0,MATCH(Setup!$H$7,Idiomas,0)),B424)","v":"SR annual plan"},"Plan anual del SR","SR annual plan"]
[{"$f":"IF(OFFSET(A425,0,MATCH(Setup!$H$7,Idiomas,0))<>\"\",OFFSET(A425,0,MATCH(Setup!$H$7,Idiomas,0)),B425)","v":"Execution date"},"Fecha de ejecución","Execution date"]
[{"$f":"IF(OFFSET(A426,0,MATCH(Setup!$H$7,Idiomas,0))<>\"\",OFFSET(A426,0,MATCH(Setup!$H$7,Idiomas,0)),B426)","v":0}]
[{"$f":"IF(OFFSET(A427,0,MATCH(Setup!$H$7,Idiomas,0))<>\"\",OFFSET(A427,0,MATCH(Setup!$H$7,Idiomas,0)),B427)","v":0}]
[{"$f":"IF(OFFSET(A428,0,MATCH(Setup!$H$7,Idiomas,0))<>\"\",OFFSET(A428,0,MATCH(Setup!$H$7,Idiomas,0)),B428)","v":0}]
[{"$f":"IF(OFFSET(A429,0,MATCH(Setup!$H$7,Idiomas,0))<>\"\",OFFSET(A429,0,MATCH(Setup!$H$7,Idiomas,0)),B429)","v":0}]
[{"$f":"IF(OFFSET(A430,0,MATCH(Setup!$H$7,Idiomas,0))<>\"\",OFFSET(A430,0,MATCH(Setup!$H$7,Idiomas,0)),B430)","v":0}]
[{"$f":"IF(OFFSET(A431,0,MATCH(Setup!$H$7,Idiomas,0))<>\"\",OFFSET(A431,0,MATCH(Setup!$H$7,Idiomas,0)),B431)","v":0}]
[{"$f":"IF(OFFSET(A432,0,MATCH(Setup!$H$7,Idiomas,0))<>\"\",OFFSET(A432,0,MATCH(Setup!$H$7,Idiomas,0)),B432)","v":0}]

{"sheet":"Lists","index":10,"n_rows":49,"n_cols":28,"rows_kept":49,"hidden":true,"merged":[[1,12,2,12],[3,24,3,25]]}
[]
["Lists",{"$nulls":11},"NO TRADUCIR ESTA COLUMNA"]
[{"$nulls":4},{"$f":"Setup!R5+Setup!M5","v":4},"Total "]
[{"$f":"Translations!A89","v":"Item type"},null,{"$f":"Translations!A79","v":"TGF costs groups"},null,{"$f":"Translations!A97","v":"All the programmatic indicators"},null,"ID",{"$f":"Translations!A349","v":"Indicator type"},{"$f":"Translations!A98","v":"PR Dashboard periods"},null,{"$f":"Translations!A30","v":"Language"},null,{"$f":"Translations!A99","v":"Months sheets"},{"$f":"Setup!AA7","v":"Button"},{"$f":"Setup!AB7","v":"Title"},null,{"$f":"Translations!A216","v":"Component"},null,{"$f":"Translations!A222","v":"Currency"},null,{"$f":"Translations!A237","v":"Setup/Planning  password"},"ID","Selection list for Step 2 in Setup sheet",null,"All Programmatic Indicators Prorepared for DropDown List in Performance",null,{"$f":"G4","v":"ID"},{"$f":"H4","v":"Indicator type"}]
[{"$f":"Translations!A65","v":"1. Indicator"},null,{"$f":"Translations!A67","v":"1. Human resources"},null,1,{"$f":"IFERROR(INDEX(NombresIndPRDB,ROWS(F$5:$F5)),IFERROR(INDEX(NombresOtrosIndPR,ROWS(F$5:$F5)- TotalIndPrDB ),0))","v":"[Pr68] # PLHIV that initiated ARV with CD4 count <200 Target"},{"$f":"IFERROR(INDEX(CodigosIndPRDB,ROWS($G$5:G5)),IFERROR(INDEX(CodigosOtrosIndPR,ROWS($G$5:G5)- TotalIndPrDB  ),\" \"))","v":"Pr68"},{"$f":"IFERROR(INDEX(CompIndPRDB,ROWS($H$5:H5)),IFERROR(INDEX(CompOtrosIndPR,ROWS($H$5:H5)- TotalIndPrDB  ),\" \"))","v":"2. Inverse"},{"$f":"Translations!A53","v":"01 - Period 1"},null,"Español",null,"Month 1",{"$f":"Setup!AA8","v":"Month 1"},{"$f":"Setup!AB8","v":"January"},null,{"$f":"Translations!A217","v":"HIV / AIDS"},null,{"$f":"Translations!A223","v":"$ - USD"},null,null,1,{"$f":"Translations!A18","v":"2. Objectives according to the performance framework"},null,1,{"$f":"IF(F5<>0,F5&\" [\" &AB5 & \"]\",\"\")","v":"[Pr68] # PLHIV that initiated ARV with CD4 count <200 Target [2. Inverse]"},{"$f":"G5","v":"Pr68"},{"$f":"H5","v":"2. Inverse"}]
[{"$f":"Translations!A314","v":"2. Activity: Contributing"},null,{"$f":"Translations!A68","v":"2. Travel related costs"},null,2,{"$f":"IFERROR(INDEX(NombresIndPRDB,ROWS(F$5:$F6)),IFERROR(INDEX(NombresOtrosIndPR,ROWS(F$5:$F6)- TotalIndPrDB ),0))","v":"[Pr72] # new HIV+ enrolled in care services Target"},{"$f":"IFERROR(INDEX(CodigosIndPRDB,ROWS($G$5:G6)),IFERROR(INDEX(CodigosOtrosIndPR,ROWS($G$5:G6)- TotalIndPrDB  ),\" \"))","v":"Pr72"},{"$f":"IFERROR(INDEX(CompIndPRDB,ROWS($H$5:H6)),IFERROR(INDEX(CompOtrosIndPR,ROWS($H$5:H6)- TotalIndPrDB  ),\" \"))","v":"3. Non-Cumulative"},{"$f":"Translations!A54","v":"02 - Period 2"},null,"English",null,"Month 2",{"$f":"Setup!AA9","v":"Month 2"},{"$f":"Setup!AB9","v":"February"},null,{"$f":"Translations!A218","v":"Malaria"},null,{"$f":"Translations!A224","v":"€ - EUR"},null,null,2,{"$f":"Translations!A364","v":"2. Modules according to the performance framework"},null,2,{"$f":"IF(F6<>0,F6&\" [\" &AB6 & \"]\",\"\")","v":"[Pr72] # new HIV+ enrolled in care services Target [3. Non-Cumulative]"},{"$f":"G6","v":"Pr72"},{"$f":"H6","v":"3. Non-Cumulative"}]
[{"$f":"Translations!A315","v":"3. Activity: Non-Contributing"},null,{"$f":"Translations!A69","v":"3. External professional services"},null,3,{"$f":"IFERROR(INDEX(NombresIndPRDB,ROWS(F$5:$F7)),IFERROR(INDEX(NombresOtrosIndPR,ROWS(F$5:$F7)- TotalIndPrDB ),0))","v":"[Pr74] # aged 10-24 yrs reached by HIV life skills ed. in school  Target"},{"$f":"IFERROR(INDEX(CodigosIndPRDB,ROWS($G$5:G7)),IFERROR(INDEX(CodigosOtrosIndPR,ROWS($G$5:G7)- TotalIndPrDB  ),\" \"))","v":"Pr74"},{"$f":"IFERROR(INDEX(CompIndPRDB,ROWS($H$5:H7)),IFERROR(INDEX(CompOtrosIndPR,ROWS($H$5:H7)- TotalIndPrDB  ),\" \"))","v":"1. Standard"},{"$f":"Translations!A55","v":"03 - Period 3"},null,"Francais",null,"Month 3",{"$f":"Setup!AA10","v":"Month 3"},{"$f":"Setup!AB10","v":"March"},null,{"$f":"Translations!A219","v":"TB"},null,{"$f":"Translations!A225","v":"# - Local currency"},{"$nulls":5},3,"[Pr74] # aged 10-24 yrs reached by HIV life skills ed. in school  Target [1. Standard]","Pr74","1. Standard"]
[null,null,{"$f":"Translations!A70","v":"4. Health products - pharmaceutical products"},null,4,{"$f":"IFERROR(INDEX(NombresIndPRDB,ROWS(F$5:$F8)),IFERROR(INDEX(NombresOtrosIndPR,ROWS(F$5:$F8)- TotalIndPrDB ),0))","v":"[OI01] # of new orphans and vulnerable children (0 - 17 yrs) benefiting from  services provided at OVC centers"},{"$f":"IFERROR(INDEX(CodigosIndPRDB,ROWS($G$5:G8)),IFERROR(INDEX(CodigosOtrosIndPR,ROWS($G$5:G8)- TotalIndPrDB  ),\" \"))","v":"OI01"},{"$f":"IFERROR(INDEX(CompIndPRDB,ROWS($H$5:H8)),IFERROR(INDEX(CompOtrosIndPR,ROWS($H$5:H8)- TotalIndPrDB  ),\" \"))","v":"1. Standard"},{"$f":"Translations!A56","v":"04 - Period 4"},null,"Portugues",null,"Month 4",{"$f":"Setup!AA11","v":"Month 4"},{"$f":"Setup!AB11","v":"April"},null,{"$f":"Translations!A220","v":"HIVAIDS / TB"},{"$nulls":4},"Current Selection",null,null,4,"[OI01] # of new orphans and vulnerable children (0 - 17 yrs) benefiting from  services provided at OVC centers [1. Standard]","OI01","1. Standard"]
[null,null,{"$f":"Translations!A71","v":"5. Health products - non-pharmaceuticals"},null,5,{"$f":"IFERROR(INDEX(NombresIndPRDB,ROWS(F$5:$F9)),IFERROR(INDEX(NombresOtrosIndPR,ROWS(F$5:$F9)- TotalIndPrDB ),0))","v":0},{"$f":"IFERROR(INDEX(CodigosIndPRDB,ROWS($G$5:G9)),IFERROR(INDEX(CodigosOtrosIndPR,ROWS($G$5:G9)- TotalIndPrDB  ),\" \"))","v":" "},{"$f":"IFERROR(INDEX(CompIndPRDB,ROWS($H$5:H9)),IFERROR(INDEX(CompOtrosIndPR,ROWS($H$5:H9)- TotalIndPrDB  ),\" \"))","v":" "},{"$f":"Translations!A57","v":"05 - Period 5"},{"$nulls":3},"Month 5",{"$f":"Setup!AA12","v":"Month 5"},{"$f":"Setup!AB12","v":"May"},null,{"$f":"Translations!A221","v":"HSS"},{"$nulls":4},{"$f":"INDEX(V5:V6,MATCH(Setup!B8,Lists!W5:W6,0),1)","v":1},null,null,5,""," "," "]
[null,null,{"$f":"Translations!A72","v":"6. Health products - equipment"},null,6,{"$f":"IFERROR(INDEX(NombresIndPRDB,ROWS(F$5:$F10)),IFERROR(INDEX(NombresOtrosIndPR,ROWS(F$5:$F10)- TotalIndPrDB ),0))","v":0},{"$f":"IFERROR(INDEX(CodigosIndPRDB,ROWS($G$5:G10)),IFERROR(INDEX(CodigosOtrosIndPR,ROWS($G$5:G10)- TotalIndPrDB  ),\" \"))","v":" "},{"$f":"IFERROR(INDEX(CompIndPRDB,ROWS($H$5:H10)),IFERROR(INDEX(CompOtrosIndPR,ROWS($H$5:H10)- TotalIndPrDB  ),\" \"))","v":" "},{"$f":"Translations!A58","v":"06 - Period 6"},{"$nulls":3},"Month 6",{"$f":"Setup!AA13","v":"Month 6"},{"$f":"Setup!AB13","v":"June"},{"$nulls":9},6,""," "," "]
[null,null,{"$f":"Translations!A73","v":"7. Procurement and supply-chain management costs"},null,7,{"$f":"IFERROR(INDEX(NombresIndPRDB,ROWS(F$5:$F11)),IFERROR(INDEX(NombresOtrosIndPR,ROWS(F$5:$F11)- TotalIndPrDB ),0))","v":0},{"$f":"IFERROR(INDEX(CodigosIndPRDB,ROWS($G$5:G11)),IFERROR(INDEX(CodigosOtrosIndPR,ROWS($G$5:G11)- TotalIndPrDB  ),\" \"))","v":" "},{"$f":"IFERROR(INDEX(CompIndPRDB,ROWS($H$5:H11)),IFERROR(INDEX(CompOtrosIndPR,ROWS($H$5:H11)- TotalIndPrDB  ),\" \"))","v":" "},{"$f":"Translations!A59","v":"07 - Period 7"},{"$nulls":3},"Month 7",{"$f":"Setup!AA14","v":"Month 7"},{"$f":"Setup!AB14","v":"July"},{"$nulls":9},7,""," "," "]
[null,null,{"$f":"Translations!A74","v":"8. Infrastructure "},null,8,{"$f":"IFERROR(INDEX(NombresIndPRDB,ROWS(F$5:$F12)),IFERROR(INDEX(NombresOtrosIndPR,ROWS(F$5:$F12)- TotalIndPrDB ),0))","v":0},{"$f":"IFERROR(INDEX(CodigosIndPRDB,ROWS($G$5:G12)),IFERROR(INDEX(CodigosOtrosIndPR,ROWS($G$5:G12)- TotalIndPrDB  ),\" \"))","v":" "},{"$f":"IFERROR(INDEX(CompIndPRDB,ROWS($H$5:H12)),IFERROR(INDEX(CompOtrosIndPR,ROWS($H$5:H12)- TotalIndPrDB  ),\" \"))","v":" "},{"$f":"Translations!A60","v":"08 - Period 8"},{"$nulls":3},"Month 8",{"$f":"Setup!AA15","v":"Month 8"},{"$f":"Setup!AB15","v":"August"},{"$nulls":9},8,""," "," "]
[null,null,{"$f":"Translations!A75","v":"9. Non-health equipment "},null,9,{"$f":"IFERROR(INDEX(NombresIndPRDB,ROWS(F$5:$F13)),IFERROR(INDEX(NombresOtrosIndPR,ROWS(F$5:$F13)- TotalIndPrDB ),0))","v":0},{"$f":"IFERROR(INDEX(CodigosIndPRDB,ROWS($G$5:G13)),IFERROR(INDEX(CodigosOtrosIndPR,ROWS($G$5:G13)- TotalIndPrDB  ),\" \"))","v":" "},{"$f":"IFERROR(INDEX(CompIndPRDB,ROWS($H$5:H13)),IFERROR(INDEX(CompOtrosIndPR,ROWS($H$5:H13)- TotalIndPrDB  ),\" \"))","v":" "},{"$f":"Translations!A61","v":"09 - Period 9"},{"$nulls":3},"Month 9",{"$f":"Setup!AA16","v":"Month 9"},{"$f":"Setup!AB16","v":"September"},{"$nulls":9},9,""," "," "]
[null,null,{"$f":"Translations!A76","v":"10. Communication material and publications"},null,10,{"$f":"IFERROR(INDEX(NombresIndPRDB,ROWS(F$5:$F14)),IFERROR(INDEX(NombresOtrosIndPR,ROWS(F$5:$F14)- TotalIndPrDB ),0))","v":0},{"$f":"IFERROR(INDEX(CodigosIndPRDB,ROWS($G$5:G14)),IFERROR(INDEX(CodigosOtrosIndPR,ROWS($G$5:G14)- TotalIndPrDB  ),\" \"))","v":" "},{"$f":"IFERROR(INDEX(CompIndPRDB,ROWS($H$5:H14)),IFERROR(INDEX(CompOtrosIndPR,ROWS($H$5:H14)- TotalIndPrDB  ),\" \"))","v":" "},{"$f":"Translations!A62","v":"10 - Period 10"},{"$nulls":3},"Month 10",{"$f":"Setup!AA17","v":"Month 10"},{"$f":"Setup!AB17","v":"October"},{"$nulls":9},10,""," "," "]
[{"$f":"Translations!A234","v":"Activity: Contributing"},null,{"$f":"Translations!A77","v":"11. Programme administration costs"},null,11,{"$f":"IFERROR(INDEX(NombresIndPRDB,ROWS(F$5:$F15)),IFERROR(INDEX(NombresOtrosIndPR,ROWS(F$5:$F15)- TotalIndPrDB ),0))","v":0},{"$f":"IFERROR(INDEX(CodigosIndPRDB,ROWS($G$5:G15)),IFERROR(INDEX(CodigosOtrosIndPR,ROWS($G$5:G15)- TotalIndPrDB  ),\" \"))","v":" "},{"$f":"IFERROR(INDEX(CompIndPRDB,ROWS($H$5:H15)),IFERROR(INDEX(CompOtrosIndPR,ROWS($H$5:H15)- TotalIndPrDB  ),\" \"))","v":" "},{"$f":"Translations!A63","v":"11 - Period 11"},{"$nulls":3},"Month 11",{"$f":"Setup!AA18","v":"Month 11"},{"$f":"Setup!AB18","v":"November"},{"$nulls":9},11,""," "," "]
[{"$f":"Translations!A235","v":"1. YES"},null,{"$f":"Translations!A78","v":"12. Living support to client/ target population "},null,12,{"$f":"IFERROR(INDEX(NombresIndPRDB,ROWS(F$5:$F16)),IFERROR(INDEX(NombresOtrosIndPR,ROWS(F$5:$F16)- TotalIndPrDB ),0))","v":0},{"$f":"IFERROR(INDEX(CodigosIndPRDB,ROWS($G$5:G16)),IFERROR(INDEX(CodigosOtrosIndPR,ROWS($G$5:G16)- TotalIndPrDB  ),\" \"))","v":" "},{"$f":"IFERROR(INDEX(CompIndPRDB,ROWS($H$5:H16)),IFERROR(INDEX(CompOtrosIndPR,ROWS($H$5:H16)- TotalIndPrDB  ),\" \"))","v":" "},{"$f":"Translations!A64","v":"12 - Period 12"},{"$nulls":3},"Month 12",{"$f":"Setup!AA19","v":"Month 12"},{"$f":"Setup!AB19","v":"December"},{"$nulls":9},12,""," "," "]
[{"$f":"Translations!A236","v":"2. NO"},null,{"$f":"Translations!A226","v":"13. Results-based financing (RBF)"},null,13,{"$f":"IFERROR(INDEX(NombresIndPRDB,ROWS(F$5:$F17)),IFERROR(INDEX(NombresOtrosIndPR,ROWS(F$5:$F17)- TotalIndPrDB ),0))","v":0},{"$f":"IFERROR(INDEX(CodigosIndPRDB,ROWS($G$5:G17)),IFERROR(INDEX(CodigosOtrosIndPR,ROWS($G$5:G17)- TotalIndPrDB  ),\" \"))","v":" "},{"$f":"IFERROR(INDEX(CompIndPRDB,ROWS($H$5:H17)),IFERROR(INDEX(CompOtrosIndPR,ROWS($H$5:H17)- TotalIndPrDB  ),\" \"))","v":" "},{"$nulls":16},13,""," "," "]
[{"$nulls":4},14,{"$f":"IFERROR(INDEX(NombresIndPRDB,ROWS(F$5:$F18)),IFERROR(INDEX(NombresOtrosIndPR,ROWS(F$5:$F18)- TotalIndPrDB ),0))","v":0},{"$f":"IFERROR(INDEX(CodigosIndPRDB,ROWS($G$5:G18)),IFERROR(INDEX(CodigosOtrosIndPR,ROWS($G$5:G18)- TotalIndPrDB  ),\" \"))","v":" "},{"$f":"IFERROR(INDEX(CompIndPRDB,ROWS($H$5:H18)),IFERROR(INDEX(CompOtrosIndPR,ROWS($H$5:H18)- TotalIndPrDB  ),\" \"))","v":" "},{"$nulls":16},14,""," "," "]
[{"$nulls":4},15,{"$f":"IFERROR(INDEX(NombresIndPRDB,ROWS(F$5:$F19)),IFERROR(INDEX(NombresOtrosIndPR,ROWS(F$5:$F19)- TotalIndPrDB ),0))","v":0},{"$f":"IFERROR(INDEX(CodigosIndPRDB,ROWS($G$5:G19)),IFERROR(INDEX(CodigosOtrosIndPR,ROWS($G$5:G19)- TotalIndPrDB  ),\" \"))","v":" "},{"$f":"IFERROR(INDEX(CompIndPRDB,ROWS($H$5:H19)),IFERROR(INDEX(CompOtrosIndPR,ROWS($H$5:H19)- TotalIndPrDB  ),\" \"))","v":" "},{"$nulls":6},"Meses Traducidos",{"$nulls":9},15,""," "," "]
[{"$nulls":4},16,{"$f":"IFERROR(INDEX(NombresIndPRDB,ROWS(F$5:$F20)),IFERROR(INDEX(NombresOtrosIndPR,ROWS(F$5:$F20)- TotalIndPrDB ),0))","v":0},{"$f":"IFERROR(INDEX(CodigosIndPRDB,ROWS($G$5:G20)),IFERROR(INDEX(CodigosOtrosIndPR,ROWS($G$5:G20)- TotalIndPrDB  ),\" \"))","v":" "},{"$f":"IFERROR(INDEX(CompIndPRDB,ROWS($H$5:H20)),IFERROR(INDEX(CompOtrosIndPR,ROWS($H$5:H20)- TotalIndPrDB  ),\" \"))","v":" "},{"$nulls":6},{"$f":"Translations!A297","v":"January"},{"$nulls":9},16,""," "," "]
[{"$nulls":4},17,{"$f":"IFERROR(INDEX(NombresIndPRDB,ROWS(F$5:$F21)),IFERROR(INDEX(NombresOtrosIndPR,ROWS(F$5:$F21)- TotalIndPrDB ),0))","v":0},{"$f":"IFERROR(INDEX(CodigosIndPRDB,ROWS($G$5:G21)),IFERROR(INDEX(CodigosOtrosIndPR,ROWS($G$5:G21)- TotalIndPrDB  ),\" \"))","v":" "},{"$f":"IFERROR(INDEX(CompIndPRDB,ROWS($H$5:H21)),IFERROR(INDEX(CompOtrosIndPR,ROWS($H$5:H21)- TotalIndPrDB  ),\" \"))","v":" "},{"$nulls":6},{"$f":"Translations!A298","v":"February"},{"$nulls":9},17,""," "," "]
[{"$nulls":4},18,{"$f":"IFERROR(INDEX(NombresIndPRDB,ROWS(F$5:$F22)),IFERROR(INDEX(NombresOtrosIndPR,ROWS(F$5:$F22)- TotalIndPrDB ),0))","v":0},{"$f":"IFERROR(INDEX(CodigosIndPRDB,ROWS($G$5:G22)),IFERROR(INDEX(CodigosOtrosIndPR,ROWS($G$5:G22)- TotalIndPrDB  ),\" \"))","v":" "},{"$f":"IFERROR(INDEX(CompIndPRDB,ROWS($H$5:H22)),IFERROR(INDEX(CompOtrosIndPR,ROWS($H$5:H22)- TotalIndPrDB  ),\" \"))","v":" "},{"$nulls":6},{"$f":"Translations!A299","v":"March"},{"$nulls":9},18,""," "," "]
[{"$nulls":4},19,{"$f":"IFERROR(INDEX(NombresIndPRDB,ROWS(F$5:$F23)),IFERROR(INDEX(NombresOtrosIndPR,ROWS(F$5:$F23)- TotalIndPrDB ),0))","v":0},{"$f":"IFERROR(INDEX(CodigosIndPRDB,ROWS($G$5:G23)),IFERROR(INDEX(CodigosOtrosIndPR,ROWS($G$5:G23)- TotalIndPrDB  ),\" \"))","v":" "},{"$f":"IFERROR(INDEX(CompIndPRDB,ROWS($H$5:H23)),IFERROR(INDEX(CompOtrosIndPR,ROWS($H$5:H23)- TotalIndPrDB  ),\" \"))","v":" "},{"$nulls":6},{"$f":"Translations!A300","v":"April"},{"$nulls":9},19,""," "," "]
[{"$nulls":4},20,{"$f":"IFERROR(INDEX(NombresIndPRDB,ROWS(F$5:$F24)),IFERROR(INDEX(NombresOtrosIndPR,ROWS(F$5:$F24)- TotalIndPrDB ),0))","v":0},{"$f":"IFERROR(INDEX(CodigosIndPRDB,ROWS($G$5:G24)),IFERROR(INDEX(CodigosOtrosIndPR,ROWS($G$5:G24)- TotalIndPrDB  ),\" \"))","v":" "},{"$f":"IFERROR(INDEX(CompIndPRDB,ROWS($H$5:H24)),IFERROR(INDEX(CompOtrosIndPR,ROWS($H$5:H24)- TotalIndPrDB  ),\" \"))","v":" "},{"$nulls":6},{"$f":"Translations!A301","v":"May"},{"$nulls":9},20,""," "," "]
[{"$nulls":4},21,{"$f":"IFERROR(INDEX(NombresIndPRDB,ROWS(F$5:$F25)),IFERROR(INDEX(NombresOtrosIndPR,ROWS(F$5:$F25)- TotalIndPrDB ),0))","v":0},{"$f":"IFERROR(INDEX(CodigosIndPRDB,ROWS($G$5:G25)),IFERROR(INDEX(CodigosOtrosIndPR,ROWS($G$5:G25)- TotalIndPrDB  ),\" \"))","v":" "},{"$f":"IFERROR(INDEX(CompIndPRDB,ROWS($H$5:H25)),IFERROR(INDEX(CompOtrosIndPR,ROWS($H$5:H25)- TotalIndPrDB  ),\" \"))","v":" "},{"$nulls":6},{"$f":"Translations!A302","v":"June"},{"$nulls":9},21,""," "," "]
["Estados",{"$nulls":3},22,{"$f":"IFERROR(INDEX(NombresIndPRDB,ROWS(F$5:$F26)),IFERROR(INDEX(NombresOtrosIndPR,ROWS(F$5:$F26)- TotalIndPrDB ),0))","v":0},{"$f":"IFERROR(INDEX(CodigosIndPRDB,ROWS($G$5:G26)),IFERROR(INDEX(CodigosOtrosIndPR,ROWS($G$5:G26)- TotalIndPrDB  ),\" \"))","v":" "},{"$f":"IFERROR(INDEX(CompIndPRDB,ROWS($H$5:H26)),IFERROR(INDEX(CompOtrosIndPR,ROWS($H$5:H26)- TotalIndPrDB  ),\" \"))","v":" "},{"$nulls":6},{"$f":"Translations!A303","v":"July"},{"$nulls":9},22,""," "," "]
[{"$f":"Translations!A276","v":"In process"},{"$nulls":3},23,{"$f":"IFERROR(INDEX(NombresIndPRDB,ROWS(F$5:$F27)),IFERROR(INDEX(NombresOtrosIndPR,ROWS(F$5:$F27)- TotalIndPrDB ),0))","v":0},{"$f":"IFERROR(INDEX(CodigosIndPRDB,ROWS($G$5:G27)),IFERROR(INDEX(CodigosOtrosIndPR,ROWS($G$5:G27)- TotalIndPrDB  ),\" \"))","v":" "},{"$f":"IFERROR(INDEX(CompIndPRDB,ROWS($H$5:H27)),IFERROR(INDEX(CompOtrosIndPR,ROWS($H$5:H27)- TotalIndPrDB  ),\" \"))","v":" "},{"$nulls":6},{"$f":"Translations!A304","v":"August"},{"$nulls":9},23,""," "," "]
[{"$f":"Translations!A277","v":"Done"},{"$nulls":3},24,{"$f":"IFERROR(INDEX(NombresIndPRDB,ROWS(F$5:$F28)),IFERROR(INDEX(NombresOtrosIndPR,ROWS(F$5:$F28)- TotalIndPrDB ),0))","v":0},{"$f":"IFERROR(INDEX(CodigosIndPRDB,ROWS($G$5:G28)),IFERROR(INDEX(CodigosOtrosIndPR,ROWS($G$5:G28)- TotalIndPrDB  ),\" \"))","v":" "},{"$f":"IFERROR(INDEX(CompIndPRDB,ROWS($H$5:H28)),IFERROR(INDEX(CompOtrosIndPR,ROWS($H$5:H28)- TotalIndPrDB  ),\" \"))","v":" "},{"$nulls":6},{"$f":"Translations!A305","v":"September"},{"$nulls":9},24,""," "," "]
[{"$f":"Translations!A278","v":"Postponed"},{"$nulls":3},25,{"$f":"IFERROR(INDEX(NombresIndPRDB,ROWS(F$5:$F29)),IFERROR(INDEX(NombresOtrosIndPR,ROWS(F$5:$F29)- TotalIndPrDB ),0))","v":0},{"$f":"IFERROR(INDEX(CodigosIndPRDB,ROWS($G$5:G29)),IFERROR(INDEX(CodigosOtrosIndPR,ROWS($G$5:G29)- TotalIndPrDB  ),\" \"))","v":" "},{"$f":"IFERROR(INDEX(CompIndPRDB,ROWS($H$5:H29)),IFERROR(INDEX(CompOtrosIndPR,ROWS($H$5:H29)- TotalIndPrDB  ),\" \"))","v":" "},{"$nulls":6},{"$f":"Translations!A306","v":"October"},{"$nulls":9},25,""," "," "]
[{"$f":"Translations!A279","v":"Not fulfilled"},{"$nulls":3},26,{"$f":"IFERROR(INDEX(NombresIndPRDB,ROWS(F$5:$F30)),IFERROR(INDEX(NombresOtrosIndPR,ROWS(F$5:$F30)- TotalIndPrDB ),0))","v":0},{"$f":"IFERROR(INDEX(CodigosIndPRDB,ROWS($G$5:G30)),IFERROR(INDEX(CodigosOtrosIndPR,ROWS($G$5:G30)- TotalIndPrDB  ),\" \"))","v":" "},{"$f":"IFERROR(INDEX(CompIndPRDB,ROWS($H$5:H30)),IFERROR(INDEX(CompOtrosIndPR,ROWS($H$5:H30)- TotalIndPrDB  ),\" \"))","v":" "},{"$nulls":6},{"$f":"Translations!A307","v":"November"},{"$nulls":9},26,""," "," "]
[{"$nulls":4},27,{"$f":"IFERROR(INDEX(NombresIndPRDB,ROWS(F$5:$F31)),IFERROR(INDEX(NombresOtrosIndPR,ROWS(F$5:$F31)- TotalIndPrDB ),0))","v":0},{"$f":"IFERROR(INDEX(CodigosIndPRDB,ROWS($G$5:G31)),IFERROR(INDEX(CodigosOtrosIndPR,ROWS($G$5:G31)- TotalIndPrDB  ),\" \"))","v":" "},{"$f":"IFERROR(INDEX(CompIndPRDB,ROWS($H$5:H31)),IFERROR(INDEX(CompOtrosIndPR,ROWS($H$5:H31)- TotalIndPrDB  ),\" \"))","v":" "},{"$nulls":6},{"$f":"Translations!A308","v":"December"},{"$nulls":9},27,""," "," "]
[{"$nulls":4},28,{"$f":"IFERROR(INDEX(NombresIndPRDB,ROWS(F$5:$F32)),IFERROR(INDEX(NombresOtrosIndPR,ROWS(F$5:$F32)- TotalIndPrDB ),0))","v":0},{"$f":"IFERROR(INDEX(CodigosIndPRDB,ROWS($G$5:G32)),IFERROR(INDEX(CodigosOtrosIndPR,ROWS($G$5:G32)- TotalIndPrDB  ),\" \"))","v":" "},{"$f":"IFERROR(INDEX(CompIndPRDB,ROWS($H$5:H32)),IFERROR(INDEX(CompOtrosIndPR,ROWS($H$5:H32)- TotalIndPrDB  ),\" \"))","v":" "},{"$nulls":16},28,""," "," "]
[{"$nulls":4},29,{"$f":"IFERROR(INDEX(NombresIndPRDB,ROWS(F$5:$F33)),IFERROR(INDEX(NombresOtrosIndPR,ROWS(F$5:$F33)- TotalIndPrDB ),0))","v":0},{"$f":"IFERROR(INDEX(CodigosIndPRDB,ROWS($G$5:G33)),IFERROR(INDEX(CodigosOtrosIndPR,ROWS($G$5:G33)- TotalIndPrDB  ),\" \"))","v":" "},{"$f":"IFERROR(INDEX(CompIndPRDB,ROWS($H$5:H33)),IFERROR(INDEX(CompOtrosIndPR,ROWS($H$5:H33)- TotalIndPrDB  ),\" \"))","v":" "},{"$nulls":16},29,""," "," "]
[{"$nulls":4},30,{"$f":"IFERROR(INDEX(NombresIndPRDB,ROWS(F$5:$F34)),IFERROR(INDEX(NombresOtrosIndPR,ROWS(F$5:$F34)- TotalIndPrDB ),0))","v":0},{"$f":"IFERROR(INDEX(CodigosIndPRDB,ROWS($G$5:G34)),IFERROR(INDEX(CodigosOtrosIndPR,ROWS($G$5:G34)- TotalIndPrDB  ),\" \"))","v":" "},{"$f":"IFERROR(INDEX(CompIndPRDB,ROWS($H$5:H34)),IFERROR(INDEX(CompOtrosIndPR,ROWS($H$5:H34)- TotalIndPrDB  ),\" \"))","v":" "},{"$nulls":16},30,""," "," "]
[{"$nulls":4},31,{"$f":"IFERROR(INDEX(NombresIndPRDB,ROWS(F$5:$F35)),IFERROR(INDEX(NombresOtrosIndPR,ROWS(F$5:$F35)- TotalIndPrDB ),0))","v":0},{"$f":"IFERROR(INDEX(CodigosIndPRDB,ROWS($G$5:G35)),IFERROR(INDEX(CodigosOtrosIndPR,ROWS($G$5:G35)- TotalIndPrDB  ),\" \"))","v":" "},{"$f":"IFERROR(INDEX(CompIndPRDB,ROWS($H$5:H35)),IFERROR(INDEX(CompOtrosIndPR,ROWS($H$5:H35)- TotalIndPrDB  ),\" \"))","v":" "},{"$nulls":16},31,""," "," "]
[{"$nulls":4},32,{"$f":"IFERROR(INDEX(NombresIndPRDB,ROWS(F$5:$F36)),IFERROR(INDEX(NombresOtrosIndPR,ROWS(F$5:$F36)- TotalIndPrDB ),0))","v":0},{"$f":"IFERROR(INDEX(CodigosIndPRDB,ROWS($G$5:G36)),IFERROR(INDEX(CodigosOtrosIndPR,ROWS($G$5:G36)- TotalIndPrDB  ),\" \"))","v":" "},{"$f":"IFERROR(INDEX(CompIndPRDB,ROWS($H$5:H36)),IFERROR(INDEX(CompOtrosIndPR,ROWS($H$5:H36)- TotalIndPrDB  ),\" \"))","v":" "},{"$nulls":16},32,""," "," "]
[{"$nulls":4},33,{"$f":"IFERROR(INDEX(NombresIndPRDB,ROWS(F$5:$F37)),IFERROR(INDEX(NombresOtrosIndPR,ROWS(F$5:$F37)- TotalIndPrDB ),0))","v":0},{"$f":"IFERROR(INDEX(CodigosIndPRDB,ROWS($G$5:G37)),IFERROR(INDEX(CodigosOtrosIndPR,ROWS($G$5:G37)- TotalIndPrDB  ),\" \"))","v":" "},{"$f":"IFERROR(INDEX(CompIndPRDB,ROWS($H$5:H37)),IFERROR(INDEX(CompOtrosIndPR,ROWS($H$5:H37)- TotalIndPrDB  ),\" \"))","v":" "},{"$nulls":16},33,""," "," "]
[{"$nulls":4},34,{"$f":"IFERROR(INDEX(NombresIndPRDB,ROWS(F$5:$F38)),IFERROR(INDEX(NombresOtrosIndPR,ROWS(F$5:$F38)- TotalIndPrDB ),0))","v":0},{"$f":"IFERROR(INDEX(CodigosIndPRDB,ROWS($G$5:G38)),IFERROR(INDEX(CodigosOtrosIndPR,ROWS($G$5:G38)- TotalIndPrDB  ),\" \"))","v":" "},{"$f":"IFERROR(INDEX(CompIndPRDB,ROWS($H$5:H38)),IFERROR(INDEX(CompOtrosIndPR,ROWS($H$5:H38)- TotalIndPrDB  ),\" \"))","v":" "},{"$nulls":16},34,""," "," "]
[{"$f":"Translations!A349","v":"Indicator type"},{"$nulls":3},35,{"$f":"IFERROR(INDEX(NombresIndPRDB,ROWS(F$5:$F39)),IFERROR(INDEX(NombresOtrosIndPR,ROWS(F$5:$F39)- TotalIndPrDB ),0))","v":0},{"$f":"IFERROR(INDEX(CodigosIndPRDB,ROWS($G$5:G39)),IFERROR(INDEX(CodigosOtrosIndPR,ROWS($G$5:G39)- TotalIndPrDB  ),\" \"))","v":" "},{"$f":"IFERROR(INDEX(CompIndPRDB,ROWS($H$5:H39)),IFERROR(INDEX(CompOtrosIndPR,ROWS($H$5:H39)- TotalIndPrDB  ),\" \"))","v":" "},{"$nulls":16},35,""," "," "]
[{"$f":"Translations!A350","v":"1. Standard"},{"$nulls":3},36,{"$f":"IFERROR(INDEX(NombresIndPRDB,ROWS(F$5:$F40)),IFERROR(INDEX(NombresOtrosIndPR,ROWS(F$5:$F40)- TotalIndPrDB ),0))","v":0},{"$f":"IFERROR(INDEX(CodigosIndPRDB,ROWS($G$5:G40)),IFERROR(INDEX(CodigosOtrosIndPR,ROWS($G$5:G40)- TotalIndPrDB  ),\" \"))","v":" "},{"$f":"IFERROR(INDEX(CompIndPRDB,ROWS($H$5:H40)),IFERROR(INDEX(CompOtrosIndPR,ROWS($H$5:H40)- TotalIndPrDB  ),\" \"))","v":" "},{"$nulls":16},36,""," "," "]
[{"$f":"Translations!A351","v":"2. Inverse"},{"$nulls":3},37,{"$f":"IFERROR(INDEX(NombresIndPRDB,ROWS(F$5:$F41)),IFERROR(INDEX(NombresOtrosIndPR,ROWS(F$5:$F41)- TotalIndPrDB ),0))","v":0},{"$f":"IFERROR(INDEX(CodigosIndPRDB,ROWS($G$5:G41)),IFERROR(INDEX(CodigosOtrosIndPR,ROWS($G$5:G41)- TotalIndPrDB  ),\" \"))","v":" "},{"$f":"IFERROR(INDEX(CompIndPRDB,ROWS($H$5:H41)),IFERROR(INDEX(CompOtrosIndPR,ROWS($H$5:H41)- TotalIndPrDB  ),\" \"))","v":" "},{"$nulls":16},37,""," "," "]
[{"$f":"Translations!A352","v":"3. Non-Cumulative"},{"$nulls":3},38,{"$f":"IFERROR(INDEX(NombresIndPRDB,ROWS(F$5:$F42)),IFERROR(INDEX(NombresOtrosIndPR,ROWS(F$5:$F42)- TotalIndPrDB ),0))","v":0},{"$f":"IFERROR(INDEX(CodigosIndPRDB,ROWS($G$5:G42)),IFERROR(INDEX(CodigosOtrosIndPR,ROWS($G$5:G42)- TotalIndPrDB  ),\" \"))","v":" "},{"$f":"IFERROR(INDEX(CompIndPRDB,ROWS($H$5:H42)),IFERROR(INDEX(CompOtrosIndPR,ROWS($H$5:H42)- TotalIndPrDB  ),\" \"))","v":" "},{"$nulls":16},38,""," "," "]
[{"$nulls":4},39,{"$f":"IFERROR(INDEX(NombresIndPRDB,ROWS(F$5:$F43)),IFERROR(INDEX(NombresOtrosIndPR,ROWS(F$5:$F43)- TotalIndPrDB ),0))","v":0},{"$f":"IFERROR(INDEX(CodigosIndPRDB,ROWS($G$5:G43)),IFERROR(INDEX(CodigosOtrosIndPR,ROWS($G$5:G43)- TotalIndPrDB  ),\" \"))","v":" "},{"$f":"IFERROR(INDEX(CompIndPRDB,ROWS($H$5:H43)),IFERROR(INDEX(CompOtrosIndPR,ROWS($H$5:H43)- TotalIndPrDB  ),\" \"))","v":" "},{"$nulls":16},39,""," "," "]
[{"$nulls":4},40,{"$f":"IFERROR(INDEX(NombresIndPRDB,ROWS(F$5:$F44)),IFERROR(INDEX(NombresOtrosIndPR,ROWS(F$5:$F44)- TotalIndPrDB ),0))","v":0},{"$f":"IFERROR(INDEX(CodigosIndPRDB,ROWS($G$5:G44)),IFERROR(INDEX(CodigosOtrosIndPR,ROWS($G$5:G44)- TotalIndPrDB  ),\" \"))","v":" "},{"$f":"IFERROR(INDEX(CompIndPRDB,ROWS($H$5:H44)),IFERROR(INDEX(CompOtrosIndPR,ROWS($H$5:H44)- TotalIndPrDB  ),\" \"))","v":" "},{"$nulls":16},40,""," "," "]
[{"$nulls":4},41,{"$f":"IFERROR(INDEX(NombresIndPRDB,ROWS(F$5:$F45)),IFERROR(INDEX(NombresOtrosIndPR,ROWS(F$5:$F45)- TotalIndPrDB ),0))","v":0},{"$f":"IFERROR(INDEX(CodigosIndPRDB,ROWS($G$5:G45)),IFERROR(INDEX(CodigosOtrosIndPR,ROWS($G$5:G45)- TotalIndPrDB  ),\" \"))","v":" "},{"$f":"IFERROR(INDEX(CompIndPRDB,ROWS($H$5:H45)),IFERROR(INDEX(CompOtrosIndPR,ROWS($H$5:H45)- TotalIndPrDB  ),\" \"))","v":" "},{"$nulls":16},41,""," "," "]
[{"$nulls":4},42,{"$f":"IFERROR(INDEX(NombresIndPRDB,ROWS(F$5:$F46)),IFERROR(INDEX(NombresOtrosIndPR,ROWS(F$5:$F46)- TotalIndPrDB ),0))","v":0},{"$f":"IFERROR(INDEX(CodigosIndPRDB,ROWS($G$5:G46)),IFERROR(INDEX(CodigosOtrosIndPR,ROWS($G$5:G46)- TotalIndPrDB  ),\" \"))","v":" "},{"$f":"IFERROR(INDEX(CompIndPRDB,ROWS($H$5:H46)),IFERROR(INDEX(CompOtrosIndPR,ROWS($H$5:H46)- TotalIndPrDB  ),\" \"))","v":" "},{"$nulls":16},42,""," "," "]
[{"$nulls":4},43,{"$f":"IFERROR(INDEX(NombresIndPRDB,ROWS(F$5:$F47)),IFERROR(INDEX(NombresOtrosIndPR,ROWS(F$5:$F47)- TotalIndPrDB ),0))","v":0},{"$f":"IFERROR(INDEX(CodigosIndPRDB,ROWS($G$5:G47)),IFERROR(INDEX(CodigosOtrosIndPR,ROWS($G$5:G47)- TotalIndPrDB  ),\" \"))","v":" "},{"$f":"IFERROR(INDEX(CompIndPRDB,ROWS($H$5:H47)),IFERROR(INDEX(CompOtrosIndPR,ROWS($H$5:H47)- TotalIndPrDB  ),\" \"))","v":" "},{"$nulls":16},43,""," "," "]
[{"$nulls":4},44,{"$f":"IFERROR(INDEX(NombresIndPRDB,ROWS(F$5:$F48)),IFERROR(INDEX(NombresOtrosIndPR,ROWS(F$5:$F48)- TotalIndPrDB ),0))","v":0},{"$f":"IFERROR(INDEX(CodigosIndPRDB,ROWS($G$5:G48)),IFERROR(INDEX(CodigosOtrosIndPR,ROWS($G$5:G48)- TotalIndPrDB  ),\" \"))","v":" "},{"$f":"IFERROR(INDEX(CompIndPRDB,ROWS($H$5:H48)),IFERROR(INDEX(CompOtrosIndPR,ROWS($H$5:H48)- TotalIndPrDB  ),\" \"))","v":" "},{"$nulls":16},44,""," "," "]
[{"$nulls":4},45,{"$f":"IFERROR(INDEX(NombresIndPRDB,ROWS(F$5:$F49)),IFERROR(INDEX(NombresOtrosIndPR,ROWS(F$5:$F49)- TotalIndPrDB ),0))","v":0},{"$f":"IFERROR(INDEX(CodigosIndPRDB,ROWS($G$5:G49)),IFERROR(INDEX(CodigosOtrosIndPR,ROWS($G$5:G49)- TotalIndPrDB  ),\" \"))","v":" "},{"$f":"IFERROR(INDEX(CompIndPRDB,ROWS($H$5:H49)),IFERROR(INDEX(CompOtrosIndPR,ROWS($H$5:H49)- TotalIndPrDB  ),\" \"))","v":" "},{"$nulls":16},45,""," "," "]

{"sheet":"Summary","index":11,"n_rows":55,"n_cols":10,"rows_kept":55,"hidden":true,"merged":[[4,7,5,9],[7,9,18,9]]}
[]
["Summary"]
[]
[]
[{"$f":"INDEX(Lists!AA5:AA49,MATCH(Performance!A23,Lists!Z5:Z49,0),1)","v":"Pr74"},"Indicador Seleccionado en PERFORMANCE",null,"Comportamiento-->",{"$f":"IF($A$5=\"\",\"\",LEFT(INDEX(Lists!$H$5:$H$49,MATCH($A$5,Lists!$G$5:$G$49,0),1),1))","v":"1"},null,null,"Lo pretendía utilizar en caso de calcular automáticamente los Q en el Annex  de Consolidad de Pruebas VIH y no está terminado. Faltan los demás rangos y en la fórmula completar para los 6 posibles meses por Q"]
[]
[null,{"$f":"Translations!$A$402","v":"Programmatic results"},{"$f":"Translations!$A$94","v":"Target"},{"$f":"Translations!$A$102","v":"Results "},{"$f":"Translations!$A$108","v":"Result %"},"As Text",null,"Meses","Rango en Annex 2","Esta formula es solo documentación"]
[{"$f":"\"1\"&$A$5","v":"1Pr74"},{"$f":"B26","v":"1st Quarter (96.84%)"},{"$f":"IFERROR(INDEX(P_MetaQ1,MATCH(A8,P_Coincidir,0)),0)","v":950},{"$f":"IFERROR(INDEX(P_LogroQ1,MATCH(A8,P_Coincidir,0)),0)","v":920},{"$f":"IFERROR(INDEX(P_PLogroQ1,MATCH(A8,P_Coincidir,0)),0)","v":{"v":0.968421052631579,"d":"96.84%"}},{"$f":"FIXED(E8*100,2)","v":"96.84"},1,"Month 1","'Annex 2'!A144:AL153","=SI(Setup!$AG$7<>\"\",INDICE(INDIRECTO(INDICE(Summary!$I$8:$I$19,COINCIDIR(Setup!$AG$7,Summary!$H$8:$H$19,0),1)),$G8,COLUMNA()),0)"]
[{"$f":"\"1\"&$A$5","v":"1Pr74"},{"$f":"B27","v":"2nd Quarter (100.00%)"},{"$f":"IFERROR(INDEX(P_MetaQ2,MATCH(A9,P_Coincidir,0)),0)","v":800},{"$f":"IFERROR(INDEX(P_LogroQ2,MATCH(A9,P_Coincidir,0)),0)","v":800},{"$f":"IFERROR(INDEX(P_PLogroQ2,MATCH(A9,P_Coincidir,0)),0)","v":{"v":1,"d":"100.00%"}},{"$f":"FIXED(E9*100,2)","v":"100.00"},2,"Month 2","'Annex 2'!A165:AL174"]
["1Pr74","3rd Quarter",{"$f":"IFERROR(INDEX(P_MetaQ3,MATCH(A10,P_Coincidir,0)),0)","v":0},{"$f":"IFERROR(INDEX(P_LogroQ3,MATCH(A10,P_Coincidir,0)),0)","v":0},{"$f":"IFERROR(INDEX(P_PLogroQ3,MATCH(A10,P_Coincidir,0)),0)","v":""},{"$error":"#VALUE!"},3,"Month 3","'Annex 2'!A185:AL194"]
["1Pr74","4th Quarter",{"$f":"IFERROR(INDEX(P_MetaQ4,MATCH(A11,P_Coincidir,0)),0)","v":0},{"$f":"IFERROR(INDEX(P_LogroQ4,MATCH(A11,P_Coincidir,0)),0)","v":0},{"$f":"IFERROR(INDEX(P_PLogroQ4,MATCH(A11,P_Coincidir,0)),0)","v":""},{"$error":"#VALUE!"},4,"Month 4","'Annex 2'!A205:AL214"]
[null,"Totals (98.29%)",{"$f":"IF($E$5<>\"3\",SUM(C8:C11),C11)","v":{"v":1750,"d":"1,750"}},{"$f":"IF($E$5<>\"3\",SUM(D8:D11),D11)","v":{"v":1720,"d":"1,720"}},{"$f":"IFERROR(IF(E5<>\"2\",D12/C12,C12/D12),0)","v":{"v":0.9828571428571429,"d":"98.29%"}},"98.29",null,"Month 5"]
[{"$nulls":7},"Month 6"]
[{"$nulls":7},"Month 7"]
[{"$nulls":7},"Month 8"]
[null,{"$f":"Translations!A403","v":"Financial results"},{"$f":"Translations!$A$356","v":"Budget"},{"$f":"Translations!$A$357","v":"Expenditure"},{"$f":"Translations!$A$108","v":"Result %"},"As Text",null,"Month 9"]
[{"$f":"\"1\"&$A$5","v":"1Pr74"},{"$f":"B33","v":"1st Quarter (97.08%)"},{"$f":"IFERROR(INDEX(F_MetaQ1,MATCH(A17,F_Coincidir,0)),0)","v":{"v":213750,"d":"213,750"}},{"$f":"IFERROR(INDEX(F_LogroQ1,MATCH(A17,F_Coincidir,0)),0)","v":{"v":207500,"d":"207,500"}},{"$f":"IFERROR(INDEX(F_PLogroQ1,MATCH(A17,F_Coincidir,0)),0)","v":{"v":0.9707602339181286,"d":"97.08%"}},{"$f":"FIXED(E17*100,2)","v":"97.08"},null,"Month 10"]
[{"$f":"\"1\"&$A$5","v":"1Pr74"},{"$f":"B34","v":"2nd Quarter (100.00%)"},{"$f":"IFERROR(INDEX(F_MetaQ2,MATCH(A18,F_Coincidir,0)),0)","v":{"v":180000,"d":"180,000"}},{"$f":"IFERROR(INDEX(F_LogroQ2,MATCH(A18,F_Coincidir,0)),0)","v":{"v":180000,"d":"180,000"}},{"$f":"IFERROR(INDEX(F_PLogroQ2,MATCH(A18,F_Coincidir,0)),0)","v":{"v":1,"d":"100.00%"}},{"$f":"FIXED(E18*100,2)","v":"100.00"},null,"Month 11"]
["1Pr74","3rd Quarter",{"$f":"IFERROR(INDEX(F_MetaQ3,MATCH(A19,F_Coincidir,0)),0)","v":0},{"$f":"IFERROR(INDEX(F_LogroQ3,MATCH(A19,F_Coincidir,0)),0)","v":0},{"$f":"IFERROR(INDEX(F_PLogroQ3,MATCH(A19,F_Coincidir,0)),0)","v":""},{"$error":"#VALUE!"},null,"Month 12"]
["1Pr74","4th Quarter",{"$f":"IFERROR(INDEX(F_MetaQ4,MATCH(A20,F_Coincidir,0)),0)","v":0},{"$f":"IFERROR(INDEX(F_LogroQ4,MATCH(A20,F_Coincidir,0)),0)","v":0},{"$f":"IFERROR(INDEX(F_PLogroQ4,MATCH(A20,F_Coincidir,0)),0)","v":""},{"$error":"#VALUE!"}]
[null,"Totals (98.41%)",{"$f":"SUM(C17:C20)","v":{"v":393750,"d":"393,750"}},{"$f":"SUM(D17:D20)","v":{"v":387500,"d":"387,500"}},{"$f":"IFERROR(D21/C21,0)","v":{"v":0.9841269841269841,"d":"98.41%"}},"98.41"]
[]
[]
[null,"Text Prepared Without TEXT Function",null,"Programmatic","Financial"]
[null,"Programmatic",null,{"$f":"Translations!A404","v":"Period"},{"$f":"Translations!A404","v":"Period"},{"$f":"Translations!C409","v":"Year to date"}]
[null,{"$f":"IFERROR(Translations!$A48 & \" (\" & F8 & \"%)\",Translations!$A48)","v":"1st Quarter (96.84%)"},null,{"$f":"Translations!A405","v":"Result"},{"$f":"Translations!A406","v":"Amount"},{"$f":"Translations!A406","v":"Amount"}]
[null,{"$f":"IFERROR(Translations!$A49 & \" (\" & F9 & \"%)\",Translations!$A49)","v":"2nd Quarter (100.00%)"}]
[null,{"$f":"IFERROR(Translations!$A50 & \" (\" & F10 & \"%)\",Translations!$A50)","v":"3rd Quarter"}]
[null,{"$f":"IFERROR(Translations!$A51 & \" (\" & F11 & \"%)\",Translations!$A51)","v":"4th Quarter"}]
[null,{"$f":"IFERROR(Translations!$A109 & \" (\" & F12 & \"%)\",Translations!$A109)","v":"Totals (98.29%)"}]
[]
[null,"Financial"]
[null,{"$f":"IFERROR(Translations!$A48 & \" (\" & F17 & \"%)\",Translations!$A48)","v":"1st Quarter (97.08%)"}]
[null,{"$f":"IFERROR(Translations!$A49 & \" (\" & F18 & \"%)\",Translations!$A49)","v":"2nd Quarter (100.00%)"}]
[null,{"$f":"IFERROR(Translations!$A50 & \" (\" & F19 & \"%)\",Translations!$A50)","v":"3rd Quarter"}]
[null,{"$f":"IFERROR(Translations!$A51 & \" (\" & F20 & \"%)\",Translations!$A51)","v":"4th Quarter"}]
[null,{"$f":"IFERROR(Translations!$A109 & \" (\" & F21 & \"%)\",Translations!$A109)","v":"Totals (98.41%)"}]
[]
[]
[{"$f":"\"1\"&A5","v":"1Pr74"},{"$f":" \"AC25:AC224\"","v":"AC25:AC224"},{"$f":"\"H25:H224\"","v":"H25:H224"},{"$f":"\"I25:I224\"","v":"I25:I224"},null,{"$f":"\"J25:J224\"","v":"J25:J224"},{"$f":"\"K25:K224\"","v":"K25:K224"}]
[]
[null,{"$f":"Translations!$A$133","v":"Programmatic aspects"},{"$f":"Translations!$A$94","v":"Target"},"Pendiente","Meta Total",{"$f":"Translations!$A$102","v":"Results "},{"$f":"Translations!$A$108","v":"Result %"},"As Text"]
[{"$f":"\"'Month 1'!\"","v":"'Month 1'!"},{"$f":"IFERROR(Setup!AB8&\" (\"&H43&\"%)\",Setup!AB8)","v":"January (68.00%)"},{"$f":"IFERROR(INDEX(INDIRECT($A43&C$40),MATCH($A$40,INDIRECT($A43&$B$40),0),1),0)","v":250},{"$f":"IFERROR(INDEX(INDIRECT($A43&D$40),MATCH($A$40,INDIRECT($A43&$B$40),0),1),0)","v":0},{"$f":"C43+D43","v":250},{"$f":"IFERROR(INDEX(INDIRECT($A43&F$40),MATCH($A$40,INDIRECT($A43&$B$40),0),1),0)","v":170},{"$f":"IFERROR(INDEX(INDIRECT($A43&G$40),MATCH($A$40,INDIRECT($A43&$B$40),0),1),0)","v":{"v":0.68,"d":"68.00%"}},{"$f":"FIXED(G43*100,2)","v":"68.00"}]
[{"$f":"\"'Month 2'!\"","v":"'Month 2'!"},{"$f":"IFERROR(Setup!AB9&\" (\"&H44&\"%)\",Setup!AB9)","v":"February (78.95%)"},{"$f":"IFERROR(INDEX(INDIRECT($A44&C$40),MATCH($A$40,INDIRECT($A44&$B$40),0),1),0)","v":300},80,{"$f":"C44+D44","v":380},{"$f":"IFERROR(INDEX(INDIRECT($A44&F$40),MATCH($A$40,INDIRECT($A44&$B$40),0),1),0)","v":300},{"v":0.7894736842105263,"d":"78.95%"},{"$f":"FIXED(G44*100,2)","v":"78.95"}]
[{"$f":"\"'Month 3'!\"","v":"'Month 3'!"},{"$f":"IFERROR(Setup!AB10&\" (\"&H45&\"%)\",Setup!AB10)","v":"March (93.75%)"},400,80,480,450,{"v":0.9375,"d":"93.75%"},"93.75"]
[{"$f":"\"'Month 4'!\"","v":"'Month 4'!"},{"$f":"IFERROR(Setup!AB11&\" (\"&H46&\"%)\",Setup!AB11)","v":"April (71.43%)"},250,30,280,200,{"v":0.7142857142857143,"d":"71.43%"},"71.43"]
[{"$f":"\"'Month 5'!\"","v":"'Month 5'!"},{"$f":"IFERROR(Setup!AB12&\" (\"&H47&\"%)\",Setup!AB12)","v":"May (92.11%)"},300,80,380,350,{"v":0.9210526315789473,"d":"92.11%"},"92.11"]
[{"$f":"\"'Month 6'!\"","v":"'Month 6'!"},{"$f":"IFERROR(Setup!AB13&\" (\"&H48&\"%)\",Setup!AB13)","v":"June (89.29%)"},250,30,280,250,{"v":0.8928571428571429,"d":"89.29%"},"89.29"]
[{"$f":"\"'Month 7'!\"","v":"'Month 7'!"},{"$f":"IFERROR(Setup!AB14&\" (\"&H49&\"%)\",Setup!AB14)","v":"July (0.00%)"},0,30,30,0,{"v":0,"d":"0.00%"},"0.00"]
[{"$f":"\"'Month 8'!\"","v":"'Month 8'!"},{"$f":"IFERROR(Setup!AB15&\" (\"&H50&\"%)\",Setup!AB15)","v":"August (0.00%)"},0,30,30,0,{"v":0,"d":"0.00%"},"0.00"]
[{"$f":"\"'Month 9'!\"","v":"'Month 9'!"},{"$f":"IFERROR(Setup!AB16&\" (\"&H51&\"%)\",Setup!AB16)","v":"September (0.00%)"},0,30,30,0,{"v":0,"d":"0.00%"},"0.00"]
[{"$f":"\"'Month 10'!\"","v":"'Month 10'!"},{"$f":"IFERROR(Setup!AB17&\" (\"&H52&\"%)\",Setup!AB17)","v":"October (0.00%)"},0,30,30,0,{"v":0,"d":"0.00%"},"0.00"]
[{"$f":"\"'Month 11'!\"","v":"'Month 11'!"},{"$f":"IFERROR(Setup!AB18&\" (\"&H53&\"%)\",Setup!AB18)","v":"November (0.00%)"},0,30,30,0,{"v":0,"d":"0.00%"},"0.00"]
[{"$f":"\"'Month 12'!\"","v":"'Month 12'!"},{"$f":"IFERROR(Setup!AB19&\" (\"&H54&\"%)\",Setup!AB19)","v":"December (0.00%)"},0,30,30,0,{"v":0,"d":"0.00%"},"0.00"]
[null,{"$f":"IFERROR(Translations!$A109 & \" (\" & H55 & \"%)\",Translations!$A109)","v":"Totals (0.00%)"},{"$f":"SUM(C43:C54)","v":{"v":1750,"d":"1,750"}},{"$f":"SUM(D43:D54)","v":480},{"$f":"SUM(E43:E54)","v":{"v":2230,"d":"2,230"}},{"$f":"SUM(F43:F54)","v":{"v":1720,"d":"1,720"}},null,"0.00"]

{"sheet":"Month 1","index":12,"n_rows":394,"n_cols":31,"rows_kept":394,"hidden":true,"merged":[[1,4,1,13],[1,14,1,15],[2,4,2,13],[2,14,3,15],[3,4,3,13],[4,4,4,13],[4,22,16,26],[5,9,5,15],[6,0,15,7],[6,9,7,15],[9,9,9,10],[9,12,9,15],[10,9,11,10],[10,12,11,15],[13,9,15,13],[13,14,13,15],[14,14,15,15],[16,6,16,7],[17,3,17,4],[17,7,17,8],[17,9,17,10],[17,12,17,13],[17,14,17,15],[18,7,18,10],[18,12,18,15],[18,24,18,26],[19,0,20,0],[19,1,20,1],[19,2,20,2],[19,3,20,3],[19,4,20,4],[19,5,20,5],[19,7,20,7],[19,8,20,8],[19,9,20,9],[19,10,20,10],[19,12,20,12],[19,13,20,13],[19,14,20,14],[19,15,20,15],[19,17,19,18],[19,20,20,20],[19,22,20,22],[19,24,20,24],[19,25,20,25],[19,26,20,26],[19,28,20,28],[19,29,20,29],[226,0,226,7],[227,0,227,6],[228,0,228,6],[229,0,229,6],[230,0,230,6],[231,0,231,6],[232,0,232,6],[233,0,233,6],[234,0,234,6],[235,0,235,6],[236,0,236,6],[237,0,237,6],[238,0,238,6],[239,0,239,6],[240,0,240,6],[241,0,241,6],[242,0,242,6],[243,0,243,6],[244,0,244,6],[245,0,245,6],[246,0,246,6],[247,0,247,6],[248,0,248,6],[249,0,249,6],[250,0,250,6],[251,0,251,6],[252,0,252,6],[253,0,253,6],[254,0,254,6],[255,0,255,6],[256,0,256,6],[257,0,257,6],[258,0,258,6],[259,0,259,6],[260,0,260,6],[261,0,261,6],[262,0,262,6],[263,0,263,6],[264,0,264,6],[265,0,265,6],[266,0,266,6],[267,0,267,6],[268,0,268,6],[269,0,269,6],[270,0,270,6],[271,0,271,6],[272,0,272,6],[273,0,273,6],[274,0,274,6],[275,0,275,6],[276,0,276,6],[277,0,277,6],[278,0,278,6],[279,0,279,6],[280,0,280,6],[281,0,281,6],[282,0,282,6],[283,0,283,6],[284,0,284,6],[285,0,285,6],[286,0,286,6],[287,0,287,6],[288,0,288,6],[291,0,291,15],[292,0,333,15],[335,0,335,15],[337,0,360,0],[337,14,337,15],[338,3,338,4],[338,14,338,15],[341,3,345,15],[348,3,352,15],[355,3,355,15],[356,3,356,15],[357,3,357,15],[358,3,358,15],[359,3,359,15],[363,0,387,0],[363,14,363,15],[364,3,364,4],[364,14,364,15],[367,3,371,15],[375,3,379,15],[382,3,382,15],[383,3,383,15],[384,3,384,15],[385,3,385,15],[386,3,386,15],[392,0,392,4],[392,7,392,12],[393,0,393,3],[393,7,393,8],[393,9,393,12],[394,0,394,3],[394,7,394,8],[394,9,394,12],[395,0,395,3],[395,7,395,8],[395,9,395,12],[396,0,396,3],[396,7,396,8],[396,9,396,12],[397,0,397,3],[397,7,397,8],[397,9,397,12]]}
[]
["Month 1",{"$nulls":3},{"$f":"Translations!A80","v":"SR Management Tool"},{"$nulls":9},{"$f":"Translations!A129","v":"SCORE"}]
[{"$nulls":4},{"$f":"Setup!H11","v":"Direct Gender Partnership (DGP)"},{"$nulls":9},{"$f":"K23","v":{"v":0.8859476485282937,"d":"88.59%"}}]
[{"$nulls":4},{"$f":" Setup!H14 & \"  (\" & Setup!H13 & \")\" & \"  (\" & Setup!H15 & \")\"","v":"DMR-202-G01-H-00  (January  2016 - December 2016)  (HIV / AIDS)"}]
[{"$nulls":4},{"$f":"Setup!AB8 & \"  (\" & Setup!H16 & \")\"","v":"January  ($ - USD)"},{"$nulls":17},"A. Se colocará lo pendiente (Y) en (I) siempre que (W) sea 1. Estandar o que (W) sea diferente de 1. sin embargo la actividad (G) NO contribuya al indicador.\n\nB. En la columna % Logro (K) se colocará siempre el Logro 1. Estandar (Z). Solamente se colocará el Logro 2. Inverso (AA) cuando (W) sea 2 y (G) sea diferente de 2. NO... es decir, el valor inverso va para las actvividades que contribuyan al indicador G = 1. SI y para el Indicador en si G = 0... por eso se pregunta por G diferente de 2. NO.. para incluir los 1. SI y a los 0\n\n"]
[{"$f":"Setup!G19","v":"Details of programatic indicators"},{"$nulls":8},{"$f":"Setup!G17","v":"Key population"}]
[{"$f":"Setup!H19","v":"# PLHIV that initiated ARV with CD4 count <200\n# new HIV+ enrolled in care services \n# aged 10-24 yrs reached by HIV life skills ed. in school "},{"$nulls":8},{"$f":"Setup!H17","v":"Sex Workers - Migrants - Women"}]
[]
[]
[{"$nulls":9},{"$f":"Translations!A119","v":"Report date"},null,null,{"$f":"Translations!A130","v":"Reported by"}]
[{"$nulls":9},"2016-02-15",null,null,"William Brown"]
[]
[]
[{"$nulls":9},{"$f":"Translations!A132","v":"Note: Enter disubursment ammount here if the PR made a disbursment this month. Leave blank if no disbursment was made."},{"$nulls":4},{"$f":"Translations!A131","v":"Disbursement"}]
[{"$nulls":14},{"v":600000,"d":"600,000.00"}]
[]
[]
[{"$nulls":3},{"$f":"Translations!A233","v":"Input data in spaces with this color"},{"$nulls":3},{"$f":"Translations!A120","v":"Date of verification"},null,"2016-02-17",null,null,{"$f":"Translations!A120","v":"Date of verification"},null,"2016-02-17"]
[{"$nulls":7},{"$f":"Translations!A133","v":"Programmatic aspects"},{"$nulls":4},{"$f":"Translations!A134","v":"Financial aspects"},{"$nulls":9},"COMPORTAMIENTO",null,"Sólo en el Aspecto Programático"]
[{"$f":"Translations!A88","v":"Item"},"Tipo de Ítem","ID Enlace",{"$f":"Translations!A91","v":"Activity code"},{"$f":"Translations!A92","v":"Indicator / Activity"},{"$f":"Translations!A79","v":"TGF costs groups"},null,{"$f":"Translations!A135","v":"Monthly target"},{"$f":"Translations!A136","v":"Balance from previous period"},{"$f":"Translations!A137","v":"Results "},{"$f":"Translations!A108","v":"Result %"},null,{"$f":"Translations!$A$360","v":"Monthly budget"},{"$f":"Translations!A136","v":"Balance from previous period"},{"$f":"Translations!$A$361","v":"Monthly expenditure"},{"$f":"Translations!A108","v":"Result %"},null,"Sumatorias Indicadores",null,null,"Indicador =1 Actividad = 2",null,"1. Estandar\n2. Inverso\n3. No Acumula",null,"Pendiente Mes Anterior\n SIN CONDICION","Logro\n1. Estandar","Logro\n2. Inverso",null,"TAG \nPerformance"]
[{"$nulls":17},"PROG","FIN"]
[]
[{"$f":"Translations!A109","v":"Totals"},{"$nulls":6},"-","-","-",{"$f":"IFERROR(AVERAGEIF(L25:L224,\"<> \"),\"\")","v":{"v":0.8859476485282937,"d":"88.59%"}},null,{"$f":"SUMIFS(M25:M224,$G$25:$G$224,\"<>0\")","v":{"v":149875,"d":"149,875.00"}},{"$f":"SUMIFS(N25:N224,$G$25:$G$224,\"<>0\")","v":{"v":0,"d":"0.00"}},{"$f":"SUMIFS(O25:O224,$G$25:$G$224,\"<>0\")","v":{"v":139150,"d":"139,150.00"}},{"$f":"IFERROR(AVERAGEIF(Q25:Q224,\"<> \"),\"\")","v":{"v":0.9203275841148698,"d":"92.03%"}}]
[]
[{"$f":"Planning!A9","v":"I001"},{"$f":"Planning!B9","v":"1. Indicator"},{"$f":"Planning!C9","v":"Pr68"},{"$f":"Planning!D9","v":1},{"$f":"Planning!E9","v":"[Pr68] # PLHIV that initiated ARV with CD4 count <200 Target [2. Inverse]"},{"$f":"IF(Planning!G9<>0,Planning!G9,\"\")","v":""},{"$f":"Planning!H9","v":0},{"$f":"Planning!I9","v":200},{"$f":"IF(OR(W25=\"1\",AND(W25<>\"1\",G25=Lists!$A$17)),Y25,0)","v":0},{"$f":"R25","v":198},{"$f":"IF(AND(W25=\"2\",G25<>Lists!$A$17),IF(AC25=\"SI\",AD25,AA25),Z25)","v":{"v":1.0101010101010102,"d":"101.01%"}},{"$f":"IF($U25=ExcluirDelPLogro,\"\",IF(AND(H25=0,I25=0,J25=0),\"\",K25))","v":1.0101010101010102},{"$f":"Planning!J9","v":{"v":65725,"d":"65,725.00"}},{"v":0,"d":"0.00"},{"$f":"S25","v":{"v":64150,"d":"64,150.00"}},{"$f":"IF(AND(M25=0,N25=0,O25=0),\"\",IF((M25+N25)>0,O25/(M25+N25),O25))","v":{"v":0.9760365157854698,"d":"97.60%"}},{"$f":"IF($U25=ExcluirDelPLogro,\"\",IF(AND(M25=0,N25=0,O25=0),\"\",P25))","v":0.9760365157854698},{"$f":"SUMIFS($J$25:$J$224,$C$25:$C$224,$C25,$G$25:$G$224,Lists!$A$16)","v":198},{"$f":"SUMIFS($O$25:$O$224,$C$25:$C$224,$C25,$G$25:$G$224,\"<>0\")","v":64150},null,{"$f":"IF(B25=0,\"\",IF(LEFT(B25,1)=\"1\",\"1\",\"2\"))","v":"1"},null,{"$f":"IF(C25=0,\"\",LEFT(INDEX(Lists!$H$5:$H$49,MATCH(C25,Lists!$G$5:$G$49,0),1),1))","v":"2"},null,0,{"$f":"IF(AND(H25=0,I25=0,J25=0),\"\",IF((H25+I25)>0,J25/(H25+I25),J25))","v":0.99},{"$f":"IF(AND(H25=0,I25=0,J25=0),\"\",IF(J25>0,H25/J25,0))","v":1.0101010101010102},null,{"$f":"U25&C25","v":"1Pr68"}]
[{"$f":"Planning!A10","v":"I002"},{"$f":"Planning!B10","v":"2. Activity: Contributing"},{"$f":"Planning!C10","v":"Pr68"},{"$f":"Planning!D10","v":1.2},{"$f":"Planning!E10","v":"PLHIV reimbursed for transportation costs to HIV testing and treatment centres\n"},{"$f":"IF(Planning!G10<>0,Planning!G10,\"\")","v":"12. Living support to client/ target population "},{"$f":"Planning!H10","v":"1. YES"},{"$f":"Planning!I10","v":200},{"$f":"IF(OR(W26=\"1\",AND(W26<>\"1\",G26=Lists!$A$17)),Y26,0)","v":0},198,{"$f":"IF(AND(W26=\"2\",G26<>Lists!$A$17),AA26,Z26)","v":{"v":1.0101010101010102,"d":"101.01%"}},"",{"$f":"Planning!J10","v":{"v":45000,"d":"45,000.00"}},{"v":0,"d":"0.00"},{"v":45000,"d":"45,000.00"},{"v":1,"d":"100.00%"},"",{"$f":"SUMIFS($J$25:$J$224,$C$25:$C$224,$C26,$G$25:$G$224,Lists!$A$16)","v":198},{"$f":"SUMIFS($O$25:$O$224,$C$25:$C$224,$C26,$G$25:$G$224,\"<>0\")","v":64150},null,{"$f":"IF(B26=0,\"\",IF(LEFT(B26,1)=\"1\",\"1\",\"2\"))","v":"2"},null,{"$f":"IF(C26=0,\"\",LEFT(INDEX(Lists!$H$5:$H$49,MATCH(C26,Lists!$G$5:$G$49,0),1),1))","v":"2"},null,0,{"$f":"IF(AND(H26=0,I26=0,J26=0),\"\",IF((H26+I26)>0,J26/(H26+I26),J26))","v":0.99},{"$f":"IF(AND(H26=0,I26=0,J26=0),\"\",IF(J26>0,H26/J26,0))","v":1.0101010101010102},null,{"$f":"U26&C26","v":"2Pr68"}]
[{"$f":"Planning!A11","v":"I003"},{"$f":"Planning!B11","v":"3. Activity: Non-Contributing"},{"$f":"Planning!C11","v":"Pr68"},{"$f":"Planning!D11","v":1.3},{"$f":"Planning!E11","v":"Communication materials produced to educate HIV+ patients about HIV treatment (Migrants and Sexual Workers). \n\n"},{"$f":"IF(Planning!G11<>0,Planning!G11,\"\")","v":"10. Communication material and publications"},{"$f":"Planning!H11","v":"2. NO"},{"$f":"Planning!I11","v":25},{"$f":"IF(OR(W27=\"1\",AND(W27<>\"1\",G27=Lists!$A$17)),Y27,0)","v":0},20,{"$f":"IF(AND(W27=\"2\",G27<>Lists!$A$17),AA27,Z27)","v":{"v":0.8,"d":"80.00%"}},"",{"$f":"Planning!J11","v":{"v":700,"d":"700.00"}},{"v":0,"d":"0.00"},{"v":650,"d":"650.00"},{"v":0.9285714285714286,"d":"92.86%"},"",{"$f":"SUMIFS($J$25:$J$224,$C$25:$C$224,$C27,$G$25:$G$224,Lists!$A$16)","v":198},64150,null,"2",null,{"$f":"IF(C27=0,\"\",LEFT(INDEX(Lists!$H$5:$H$49,MATCH(C27,Lists!$G$5:$G$49,0),1),1))","v":"2"},null,0,0.8,1.25,null,"2Pr68"]
[{"$f":"Planning!A12","v":"I004"},{"$f":"Planning!B12","v":"3. Activity: Non-Contributing"},{"$f":"Planning!C12","v":"Pr68"},{"$f":"Planning!D12","v":1.4},{"$f":"Planning!E12","v":"Supervisory visits to verify the appropriate application of testing and treatment protocols at centers. "},{"$f":"IF(Planning!G12<>0,Planning!G12,\"\")","v":"11. Programme administration costs"},{"$f":"Planning!H12","v":"2. NO"},{"$f":"Planning!I12","v":89},{"$f":"IF(OR(W28=\"1\",AND(W28<>\"1\",G28=Lists!$A$17)),Y28,0)","v":0},80,{"$f":"IF(AND(W28=\"2\",G28<>Lists!$A$17),AA28,Z28)","v":{"v":0.898876404494382,"d":"89.89%"}},"",{"$f":"Planning!J12","v":{"v":20025,"d":"20,025.00"}},{"v":0,"d":"0.00"},{"v":18500,"d":"18,500.00"},{"v":0.9238451935081149,"d":"92.38%"},"",{"$f":"SUMIFS($J$25:$J$224,$C$25:$C$224,$C28,$G$25:$G$224,Lists!$A$16)","v":198},64150,null,"2",null,{"$f":"IF(C28=0,\"\",LEFT(INDEX(Lists!$H$5:$H$49,MATCH(C28,Lists!$G$5:$G$49,0),1),1))","v":"2"},null,0,0.898876404494382,1.1125,null,"2Pr68"]
[{"$f":"Planning!A13","v":"I005"},{"$f":"Planning!B13","v":"1. Indicator"},{"$f":"Planning!C13","v":"Pr72"},{"$f":"Planning!D13","v":2},{"$f":"Planning!E13","v":"[Pr72] # new HIV+ enrolled in care services Target [3. Non-Cumulative]"},{"$f":"IF(Planning!G13<>0,Planning!G13,\"\")","v":""},{"$f":"Planning!H13","v":0},{"$f":"Planning!I13","v":124},{"$f":"IF(OR(W29=\"1\",AND(W29<>\"1\",G29=Lists!$A$17)),Y29,0)","v":0},{"$f":"R29","v":120},{"$f":"IF(AND(W29=\"2\",G29<>Lists!$A$17),AA29,Z29)","v":{"v":0.967741935483871,"d":"96.77%"}},0.967741935483871,{"$f":"Planning!J13","v":{"v":27900,"d":"27,900.00"}},{"v":0,"d":"0.00"},{"$f":"S29","v":{"v":25000,"d":"25,000.00"}},{"v":0.8960573476702509,"d":"89.61%"},0.8960573476702509,{"$f":"SUMIFS($J$25:$J$224,$C$25:$C$224,$C29,$G$25:$G$224,Lists!$A$16)","v":120},25000,null,"1",null,{"$f":"IF(C29=0,\"\",LEFT(INDEX(Lists!$H$5:$H$49,MATCH(C29,Lists!$G$5:$G$49,0),1),1))","v":"3"},null,0,0.967741935483871,1.0333333333333334,null,"1Pr72"]
[{"$f":"Planning!A14","v":"I006"},{"$f":"Planning!B14","v":"2. Activity: Contributing"},{"$f":"Planning!C14","v":"Pr72"},{"$f":"Planning!D14","v":2.1},{"$f":"Planning!E14","v":"Enrollment of  newly diagnosed HIV+ patients for home visits to monitor use of ARV."},{"$f":"IF(Planning!G14<>0,Planning!G14,\"\")","v":"12. Living support to client/ target population "},{"$f":"Planning!H14","v":"1. YES"},{"$f":"Planning!I14","v":124},{"$f":"IF(OR(W30=\"1\",AND(W30<>\"1\",G30=Lists!$A$17)),Y30,0)","v":0},120,{"$f":"IF(AND(W30=\"2\",G30<>Lists!$A$17),AA30,Z30)","v":{"v":0.967741935483871,"d":"96.77%"}},"",{"$f":"Planning!J14","v":{"v":27900,"d":"27,900.00"}},{"v":0,"d":"0.00"},{"v":25000,"d":"25,000.00"},{"v":0.8960573476702509,"d":"89.61%"},"",{"$f":"SUMIFS($J$25:$J$224,$C$25:$C$224,$C30,$G$25:$G$224,Lists!$A$16)","v":120},25000,null,"2",null,{"$f":"IF(C30=0,\"\",LEFT(INDEX(Lists!$H$5:$H$49,MATCH(C30,Lists!$G$5:$G$49,0),1),1))","v":"3"},null,0,0.967741935483871,1.0333333333333334,null,"2Pr72"]
[{"$f":"Planning!A15","v":"I007"},{"$f":"Planning!B15","v":"1. Indicator"},{"$f":"Planning!C15","v":"Pr74"},{"$f":"Planning!D15","v":3},{"$f":"Planning!E15","v":"[Pr74] # aged 10-24 yrs reached by HIV life skills ed. in school  Target [1. Standard]"},{"$f":"IF(Planning!G15<>0,Planning!G15,\"\")","v":""},{"$f":"Planning!H15","v":0},{"$f":"Planning!I15","v":250},{"$f":"IF(OR(W31=\"1\",AND(W31<>\"1\",G31=Lists!$A$17)),Y31,0)","v":0},{"$f":"R31","v":170},{"$f":"IF(AND(W31=\"2\",G31<>Lists!$A$17),AA31,Z31)","v":{"v":0.68,"d":"68.00%"}},0.68,{"$f":"Planning!J15","v":{"v":56250,"d":"56,250.00"}},{"v":0,"d":"0.00"},{"$f":"S31","v":{"v":50000,"d":"50,000.00"}},{"v":0.8888888888888888,"d":"88.89%"},0.8888888888888888,{"$f":"SUMIFS($J$25:$J$224,$C$25:$C$224,$C31,$G$25:$G$224,Lists!$A$16)","v":170},50000,null,"1",null,{"$f":"IF(C31=0,\"\",LEFT(INDEX(Lists!$H$5:$H$49,MATCH(C31,Lists!$G$5:$G$49,0),1),1))","v":"1"},null,0,0.68,1.4705882352941178,null,"1Pr74"]
[{"$f":"Planning!A16","v":"I008"},{"$f":"Planning!B16","v":"2. Activity: Contributing"},{"$f":"Planning!C16","v":"Pr74"},{"$f":"Planning!D16","v":3.1},{"$f":"Planning!E16","v":"Transportation of students to meetings and conferences for peer education activities"},{"$f":"IF(Planning!G16<>0,Planning!G16,\"\")","v":"2. Travel related costs"},{"$f":"Planning!H16","v":"1. YES"},{"$f":"Planning!I16","v":250},{"$f":"IF(OR(W32=\"1\",AND(W32<>\"1\",G32=Lists!$A$17)),Y32,0)","v":0},170,{"$f":"IF(AND(W32=\"2\",G32<>Lists!$A$17),AA32,Z32)","v":{"v":0.68,"d":"68.00%"}},"",{"$f":"Planning!J16","v":{"v":56250,"d":"56,250.00"}},{"v":0,"d":"0.00"},{"v":50000,"d":"50,000.00"},{"v":0.8888888888888888,"d":"88.89%"},"",{"$f":"SUMIFS($J$25:$J$224,$C$25:$C$224,$C32,$G$25:$G$224,Lists!$A$16)","v":170},50000,null,"2",null,{"$f":"IF(C32=0,\"\",LEFT(INDEX(Lists!$H$5:$H$49,MATCH(C32,Lists!$G$5:$G$49,0),1),1))","v":"1"},null,0,0.68,1.4705882352941178,null,"2Pr74"]
[{"$f":"Planning!A17","v":"I009"},{"$f":"Planning!B17","v":"1. Indicator"},{"$f":"Planning!C17","v":"OI01"},{"$f":"Planning!D17","v":4},{"$f":"Planning!E17","v":"[OI01] # of new orphans and vulnerable children (0 - 17 yrs) benefiting from  services provided at OVC centers [1. Standard]"},{"$f":"IF(Planning!G17<>0,Planning!G17,\"\")","v":""},{"$f":"Planning!H17","v":0},{"$f":"Planning!I17","v":0},{"$f":"IF(OR(W33=\"1\",AND(W33<>\"1\",G33=Lists!$A$17)),Y33,0)","v":0},{"$f":"R33","v":0},{"$f":"IF(AND(W33=\"2\",G33<>Lists!$A$17),AA33,Z33)","v":""},"",{"$f":"Planning!J17","v":{"v":0,"d":"0.00"}},{"v":0,"d":"0.00"},{"$f":"S33","v":{"v":0,"d":"0.00"}},"","",{"$f":"SUMIFS($J$25:$J$224,$C$25:$C$224,$C33,$G$25:$G$224,Lists!$A$16)","v":0},0,null,"1",null,{"$f":"IF(C33=0,\"\",LEFT(INDEX(Lists!$H$5:$H$49,MATCH(C33,Lists!$G$5:$G$49,0),1),1))","v":"1"},null,0,"","",null,"1OI01"]
[{"$f":"Planning!A18","v":"I010"},{"$f":"Planning!B18","v":"3. Activity: Non-Contributing"},{"$f":"Planning!C18","v":"OI01"},{"$f":"Planning!D18","v":4.1},{"$f":"Planning!E18","v":"# of OVC centers established and fully equipped  "},{"$f":"IF(Planning!G18<>0,Planning!G18,\"\")","v":"8. Infrastructure "},{"$f":"Planning!H18","v":"2. NO"},{"$f":"Planning!I18","v":0},{"$f":"IF(OR(W34=\"1\",AND(W34<>\"1\",G34=Lists!$A$17)),Y34,0)","v":0},0,{"$f":"IF(AND(W34=\"2\",G34<>Lists!$A$17),AA34,Z34)","v":""},"",{"$f":"Planning!J18","v":{"v":0,"d":"0.00"}},{"v":0,"d":"0.00"},{"v":0,"d":"0.00"},"","",{"$f":"SUMIFS($J$25:$J$224,$C$25:$C$224,$C34,$G$25:$G$224,Lists!$A$16)","v":0},0,null,"2",null,{"$f":"IF(C34=0,\"\",LEFT(INDEX(Lists!$H$5:$H$49,MATCH(C34,Lists!$G$5:$G$49,0),1),1))","v":"1"},null,0,"","",null,"2OI01"]
[{"$f":"Planning!A19","v":"I011"},{"$f":"Planning!B19","v":"2. Activity: Contributing"},{"$f":"Planning!C19","v":"OI01"},{"$f":"Planning!D19","v":4.2},{"$f":"Planning!E19","v":"# of OVC registered at centres"},{"$f":"IF(Planning!G19<>0,Planning!G19,\"\")","v":"12. Living support to client/ target population "},{"$f":"Planning!H19","v":"1. YES"},{"$f":"Planning!I19","v":0},{"$f":"IF(OR(W35=\"1\",AND(W35<>\"1\",G35=Lists!$A$17)),Y35,0)","v":0},0,{"$f":"IF(AND(W35=\"2\",G35<>Lists!$A$17),AA35,Z35)","v":""},"",{"$f":"Planning!J19","v":{"v":0,"d":"0.00"}},{"v":0,"d":"0.00"},{"v":0,"d":"0.00"},"","",{"$f":"SUMIFS($J$25:$J$224,$C$25:$C$224,$C35,$G$25:$G$224,Lists!$A$16)","v":0},0,null,"2",null,{"$f":"IF(C35=0,\"\",LEFT(INDEX(Lists!$H$5:$H$49,MATCH(C35,Lists!$G$5:$G$49,0),1),1))","v":"1"},null,0,"","",null,"2OI01"]
[{"$f":"Planning!A20","v":"I012"},{"$f":"Planning!B20","v":"3. Activity: Non-Contributing"},{"$f":"Planning!C20","v":"OI01"},{"$f":"Planning!D20","v":4.3},{"$f":"Planning!E20","v":"# of meals provided at the OVC centers "},{"$f":"IF(Planning!G20<>0,Planning!G20,\"\")","v":"12. Living support to client/ target population "},{"$f":"Planning!H20","v":"2. NO"},{"$f":"Planning!I20","v":0},{"$f":"IF(OR(W36=\"1\",AND(W36<>\"1\",G36=Lists!$A$17)),Y36,0)","v":0},0,{"$f":"IF(AND(W36=\"2\",G36<>Lists!$A$17),AA36,Z36)","v":""},"",{"$f":"Planning!J20","v":{"v":0,"d":"0.00"}},{"v":0,"d":"0.00"},{"v":0,"d":"0.00"},"","",{"$f":"SUMIFS($J$25:$J$224,$C$25:$C$224,$C36,$G$25:$G$224,Lists!$A$16)","v":0},0,null,"2",null,{"$f":"IF(C36=0,\"\",LEFT(INDEX(Lists!$H$5:$H$49,MATCH(C36,Lists!$G$5:$G$49,0),1),1))","v":"1"},null,0,"","",null,"2OI01"]
[{"$f":"Planning!A21","v":"I013"},{"$f":"Planning!B21","v":0},{"$f":"Planning!C21","v":0},{"$f":"Planning!D21","v":0},{"$f":"Planning!E21","v":0},{"$f":"IF(Planning!G21<>0,Planning!G21,\"\")","v":""},{"$f":"Planning!H21","v":0},{"$f":"Planning!I21","v":0},{"$f":"IF(OR(W37=\"1\",AND(W37<>\"1\",G37=Lists!$A$17)),Y37,0)","v":0},null,{"$f":"IF(AND(W37=\"2\",G37<>Lists!$A$17),AA37,Z37)","v":""},"",{"$f":"Planning!J21","v":{"v":0,"d":"0.00"}},{"v":0,"d":"0.00"},null,"","",{"$f":"SUMIFS($J$25:$J$224,$C$25:$C$224,$C37,$G$25:$G$224,Lists!$A$16)","v":0},0,null,"",null,{"$f":"IF(C37=0,\"\",LEFT(INDEX(Lists!$H$5:$H$49,MATCH(C37,Lists!$G$5:$G$49,0),1),1))","v":""},null,0,"","",null,"0"]
[{"$f":"Planning!A22","v":"I014"},{"$f":"Planning!B22","v":0},{"$f":"Planning!C22","v":0},{"$f":"Planning!D22","v":0},{"$f":"Planning!E22","v":0},{"$f":"IF(Planning!G22<>0,Planning!G22,\"\")","v":""},{"$f":"Planning!H22","v":0},{"$f":"Planning!I22","v":0},{"$f":"IF(OR(W38=\"1\",AND(W38<>\"1\",G38=Lists!$A$17)),Y38,0)","v":0},null,{"$f":"IF(AND(W38=\"2\",G38<>Lists!$A$17),AA38,Z38)","v":""},"",{"$f":"Planning!J22","v":{"v":0,"d":"0.00"}},{"v":0,"d":"0.00"},null,"","",{"$f":"SUMIFS($J$25:$J$224,$C$25:$C$224,$C38,$G$25:$G$224,Lists!$A$16)","v":0},0,null,"",null,{"$f":"IF(C38=0,\"\",LEFT(INDEX(Lists!$H$5:$H$49,MATCH(C38,Lists!$G$5:$G$49,0),1),1))","v":""},null,0,"","",null,"0"]
[{"$f":"Planning!A23","v":"I015"},{"$f":"Planning!B23","v":0},{"$f":"Planning!C23","v":0},{"$f":"Planning!D23","v":0},{"$f":"Planning!E23","v":0},{"$f":"IF(Planning!G23<>0,Planning!G23,\"\")","v":""},{"$f":"Planning!H23","v":0},{"$f":"Planning!I23","v":0},{"$f":"IF(OR(W39=\"1\",AND(W39<>\"1\",G39=Lists!$A$17)),Y39,0)","v":0},null,{"$f":"IF(AND(W39=\"2\",G39<>Lists!$A$17),AA39,Z39)","v":""},"",{"$f":"Planning!J23","v":{"v":0,"d":"0.00"}},{"v":0,"d":"0.00"},null,"","",{"$f":"SUMIFS($J$25:$J$224,$C$25:$C$224,$C39,$G$25:$G$224,Lists!$A$16)","v":0},0,null,"",null,{"$f":"IF(C39=0,\"\",LEFT(INDEX(Lists!$H$5:$H$49,MATCH(C39,Lists!$G$5:$G$49,0),1),1))","v":""},null,0,"","",null,"0"]
[{"$f":"Planning!A24","v":"I016"},{"$f":"Planning!B24","v":0},{"$f":"Planning!C24","v":0},{"$f":"Planning!D24","v":0},{"$f":"Planning!E24","v":0},{"$f":"IF(Planning!G24<>0,Planning!G24,\"\")","v":""},{"$f":"Planning!H24","v":0},{"$f":"Planning!I24","v":0},{"$f":"IF(OR(W40=\"1\",AND(W40<>\"1\",G40=Lists!$A$17)),Y40,0)","v":0},null,{"$f":"IF(AND(W40=\"2\",G40<>Lists!$A$17),AA40,Z40)","v":""},"",{"$f":"Planning!J24","v":{"v":0,"d":"0.00"}},{"v":0,"d":"0.00"},null,"","",{"$f":"SUMIFS($J$25:$J$224,$C$25:$C$224,$C40,$G$25:$G$224,Lists!$A$16)","v":0},0,null,"",null,{"$f":"IF(C40=0,\"\",LEFT(INDEX(Lists!$H$5:$H$49,MATCH(C40,Lists!$G$5:$G$49,0),1),1))","v":""},null,0,"","",null,"0"]
[{"$f":"Planning!A25","v":"I017"},{"$f":"Planning!B25","v":0},{"$f":"Planning!C25","v":0},{"$f":"Planning!D25","v":0},{"$f":"Planning!E25","v":0},{"$f":"IF(Planning!G25<>0,Planning!G25,\"\")","v":""},{"$f":"Planning!H25","v":0},{"$f":"Planning!I25","v":0},{"$f":"IF(OR(W41=\"1\",AND(W41<>\"1\",G41=Lists!$A$17)),Y41,0)","v":0},null,{"$f":"IF(AND(W41=\"2\",G41<>Lists!$A$17),AA41,Z41)","v":""},"",{"$f":"Planning!J25","v":{"v":0,"d":"0.00"}},{"v":0,"d":"0.00"},null,"","",{"$f":"SUMIFS($J$25:$J$224,$C$25:$C$224,$C41,$G$25:$G$224,Lists!$A$16)","v":0},0,null,"",null,{"$f":"IF(C41=0,\"\",LEFT(INDEX(Lists!$H$5:$H$49,MATCH(C41,Lists!$G$5:$G$49,0),1),1))","v":""},null,0,"","",null,"0"]
[{"$f":"Planning!A26","v":"I018"},{"$f":"Planning!B26","v":0},{"$f":"Planning!C26","v":0},{"$f":"Planning!D26","v":0},{"$f":"Planning!E26","v":0},{"$f":"IF(Planning!G26<>0,Planning!G26,\"\")","v":""},{"$f":"Planning!H26","v":0},{"$f":"Planning!I26","v":0},{"$f":"IF(OR(W42=\"1\",AND(W42<>\"1\",G42=Lists!$A$17)),Y42,0)","v":0},null,{"$f":"IF(AND(W42=\"2\",G42<>Lists!$A$17),AA42,Z42)","v":""},"",{"$f":"Planning!J26","v":{"v":0,"d":"0.00"}},{"v":0,"d":"0.00"},null,"","",{"$f":"SUMIFS($J$25:$J$224,$C$25:$C$224,$C42,$G$25:$G$224,Lists!$A$16)","v":0},0,null,"",null,{"$f":"IF(C42=0,\"\",LEFT(INDEX(Lists!$H$5:$H$49,MATCH(C42,Lists!$G$5:$G$49,0),1),1))","v":""},null,0,"","",null,"0"]
[{"$f":"Planning!A27","v":"I019"},{"$f":"Planning!B27","v":0},{"$f":"Planning!C27","v":0},{"$f":"Planning!D27","v":0},{"$f":"Planning!E27","v":0},{"$f":"IF(Planning!G27<>0,Planning!G27,\"\")","v":""},{"$f":"Planning!H27","v":0},{"$f":"Planning!I27","v":0},{"$f":"IF(OR(W43=\"1\",AND(W43<>\"1\",G43=Lists!$A$17)),Y43,0)","v":0},null,{"$f":"IF(AND(W43=\"2\",G43<>Lists!$A$17),AA43,Z43)","v":""},"",{"$f":"Planning!J27","v":{"v":0,"d":"0.00"}},{"v":0,"d":"0.00"},null,"","",{"$f":"SUMIFS($J$25:$J$224,$C$25:$C$224,$C43,$G$25:$G$224,Lists!$A$16)","v":0},0,null,"",null,{"$f":"IF(C43=0,\"\",LEFT(INDEX(Lists!$H$5:$H$49,MATCH(C43,Lists!$G$5:$G$49,0),1),1))","v":""},null,0,"","",null,"0"]
[{"$f":"Planning!A28","v":"I020"},{"$f":"Planning!B28","v":0},{"$f":"Planning!C28","v":0},{"$f":"Planning!D28","v":0},{"$f":"Planning!E28","v":0},{"$f":"IF(Planning!G28<>0,Planning!G28,\"\")","v":""},{"$f":"Planning!H28","v":0},{"$f":"Planning!I28","v":0},{"$f":"IF(OR(W44=\"1\",AND(W44<>\"1\",G44=Lists!$A$17)),Y44,0)","v":0},null,{"$f":"IF(AND(W44=\"2\",G44<>Lists!$A$17),AA44,Z44)","v":""},"",{"$f":"Planning!J28","v":{"v":0,"d":"0.00"}},{"v":0,"d":"0.00"},null,"","",{"$f":"SUMIFS($J$25:$J$224,$C$25:$C$224,$C44,$G$25:$G$224,Lists!$A$16)","v":0},0,null,"",null,{"$f":"IF(C44=0,\"\",LEFT(INDEX(Lists!$H$5:$H$49,MATCH(C44,Lists!$G$5:$G$49,0),1),1))","v":""},null,0,"","",null,"0"]
[{"$f":"Planning!A29","v":"I021"},{"$f":"Planning!B29","v":0},{"$f":"Planning!C29","v":0},{"$f":"Planning!D29","v":0},{"$f":"Planning!E29","v":0},{"$f":"IF(Planning!G29<>0,Planning!G29,\"\")","v":""},{"$f":"Planning!H29","v":0},{"$f":"Planning!I29","v":0},{"$f":"IF(OR(W45=\"1\",AND(W45<>\"1\",G45=Lists!$A$17)),Y45,0)","v":0},null,{"$f":"IF(AND(W45=\"2\",G45<>Lists!$A$17),AA45,Z45)","v":""},"",{"$f":"Planning!J29","v":{"v":0,"d":"0.00"}},{"v":0,"d":"0.00"},null,"","",{"$f":"SUMIFS($J$25:$J$224,$C$25:$C$224,$C45,$G$25:$G$224,Lists!$A$16)","v":0},0,null,"",null,{"$f":"IF(C45=0,\"\",LEFT(INDEX(Lists!$H$5:$H$49,MATCH(C45,Lists!$G$5:$G$49,0),1),1))","v":""},null,0,"","",null,"0"]
[{"$f":"Planning!A30","v":"I022"},{"$f":"Planning!B30","v":0},{"$f":"Planning!C30","v":0},{"$f":"Planning!D30","v":0},{"$f":"Planning!E30","v":0},{"$f":"IF(Planning!G30<>0,Planning!G30,\"\")","v":""},{"$f":"Planning!H30","v":0},{"$f":"Planning!I30","v":0},{"$f":"IF(OR(W46=\"1\",AND(W46<>\"1\",G46=Lists!$A$17)),Y46,0)","v":0},null,{"$f":"IF(AND(W46=\"2\",G46<>Lists!$A$17),AA46,Z46)","v":""},"",{"$f":"Planning!J30","v":{"v":0,"d":"0.00"}},{"v":0,"d":"0.00"},null,"","",{"$f":"SUMIFS($J$25:$J$224,$C$25:$C$224,$C46,$G$25:$G$224,Lists!$A$16)","v":0},0,null,"",null,{"$f":"IF(C46=0,\"\",LEFT(INDEX(Lists!$H$5:$H$49,MATCH(C46,Lists!$G$5:$G$49,0),1),1))","v":""},null,0,"","",null,"0"]
[{"$f":"Planning!A31","v":"I023"},{"$f":"Planning!B31","v":0},{"$f":"Planning!C31","v":0},{"$f":"Planning!D31","v":0},{"$f":"Planning!E31","v":0},{"$f":"IF(Planning!G31<>0,Planning!G31,\"\")","v":""},{"$f":"Planning!H31","v":0},{"$f":"Planning!I31","v":0},{"$f":"IF(OR(W47=\"1\",AND(W47<>\"1\",G47=Lists!$A$17)),Y47,0)","v":0},null,{"$f":"IF(AND(W47=\"2\",G47<>Lists!$A$17),AA47,Z47)","v":""},"",{"$f":"Planning!J31","v":{"v":0,"d":"0.00"}},{"v":0,"d":"0.00"},null,"","",{"$f":"SUMIFS($J$25:$J$224,$C$25:$C$224,$C47,$G$25:$G$224,Lists!$A$16)","v":0},0,null,"",null,{"$f":"IF(C47=0,\"\",LEFT(INDEX(Lists!$H$5:$H$49,MATCH(C47,Lists!$G$5:$G$49,0),1),1))","v":""},null,0,"","",null,"0"]
[{"$f":"Planning!A32","v":"I024"},{"$f":"Planning!B32","v":0},{"$f":"Planning!C32","v":0},{"$f":"Planning!D32","v":0},{"$f":"Planning!E32","v":0},{"$f":"IF(Planning!G32<>0,Planning!G32,\"\")","v":""},{"$f":"Planning!H32","v":0},{"$f":"Planning!I32","v":0},{"$f":"IF(OR(W48=\"1\",AND(W48<>\"1\",G48=Lists!$A$17)),Y48,0)","v":0},null,{"$f":"IF(AND(W48=\"2\",G48<>Lists!$A$17),AA48,Z48)","v":""},"",{"$f":"Planning!J32","v":{"v":0,"d":"0.00"}},{"v":0,"d":"0.00"},null,"","",{"$f":"SUMIFS($J$25:$J$224,$C$25:$C$224,$C48,$G$25:$G$224,Lists!$A$16)","v":0},0,null,"",null,{"$f":"IF(C48=0,\"\",LEFT(INDEX(Lists!$H$5:$H$49,MATCH(C48,Lists!$G$5:$G$49,0),1),1))","v":""},null,0,"","",null,"0"]
[{"$f":"Planning!A33","v":"I025"},{"$f":"Planning!B33","v":0},{"$f":"Planning!C33","v":0},{"$f":"Planning!D33","v":0},{"$f":"Planning!E33","v":0},{"$f":"IF(Planning!G33<>0,Planning!G33,\"\")","v":""},{"$f":"Planning!H33","v":0},{"$f":"Planning!I33","v":0},{"$f":"IF(OR(W49=\"1\",AND(W49<>\"1\",G49=Lists!$A$17)),Y49,0)","v":0},null,{"$f":"IF(AND(W49=\"2\",G49<>Lists!$A$17),AA49,Z49)","v":""},"",{"$f":"Planning!J33","v":{"v":0,"d":"0.00"}},{"v":0,"d":"0.00"},null,"","",{"$f":"SUMIFS($J$25:$J$224,$C$25:$C$224,$C49,$G$25:$G$224,Lists!$A$16)","v":0},0,null,"",null,{"$f":"IF(C49=0,\"\",LEFT(INDEX(Lists!$H$5:$H$49,MATCH(C49,Lists!$G$5:$G$49,0),1),1))","v":""},null,0,"","",null,"0"]
[{"$f":"Planning!A34","v":"I026"},{"$f":"Planning!B34","v":0},{"$f":"Planning!C34","v":0},{"$f":"Planning!D34","v":0},{"$f":"Planning!E34","v":0},{"$f":"IF(Planning!G34<>0,Planning!G34,\"\")","v":""},{"$f":"Planning!H34","v":0},{"$f":"Planning!I34","v":0},{"$f":"IF(OR(W50=\"1\",AND(W50<>\"1\",G50=Lists!$A$17)),Y50,0)","v":0},null,{"$f":"IF(AND(W50=\"2\",G50<>Lists!$A$17),AA50,Z50)","v":""},"",{"$f":"Planning!J34","v":{"v":0,"d":"0.00"}},{"v":0,"d":"0.00"},null,"","",{"$f":"SUMIFS($J$25:$J$224,$C$25:$C$224,$C50,$G$25:$G$224,Lists!$A$16)","v":0},0,null,"",null,{"$f":"IF(C50=0,\"\",LEFT(INDEX(Lists!$H$5:$H$49,MATCH(C50,Lists!$G$5:$G$49,0),1),1))","v":""},null,0,"","",null,"0"]
[{"$f":"Planning!A35","v":"I027"},{"$f":"Planning!B35","v":0},{"$f":"Planning!C35","v":0},{"$f":"Planning!D35","v":0},{"$f":"Planning!E35","v":0},{"$f":"IF(Planning!G35<>0,Planning!G35,\"\")","v":""},{"$f":"Planning!H35","v":0},{"$f":"Planning!I35","v":0},{"$f":"IF(OR(W51=\"1\",AND(W51<>\"1\",G51=Lists!$A$17)),Y51,0)","v":0},null,{"$f":"IF(AND(W51=\"2\",G51<>Lists!$A$17),AA51,Z51)","v":""},"",{"$f":"Planning!J35","v":{"v":0,"d":"0.00"}},{"v":0,"d":"0.00"},null,"","",{"$f":"SUMIFS($J$25:$J$224,$C$25:$C$224,$C51,$G$25:$G$224,Lists!$A$16)","v":0},0,null,"",null,{"$f":"IF(C51=0,\"\",LEFT(INDEX(Lists!$H$5:$H$49,MATCH(C51,Lists!$G$5:$G$49,0),1),1))","v":""},null,0,"","",null,"0"]
[{"$f":"Planning!A36","v":"I028"},{"$f":"Planning!B36","v":0},{"$f":"Planning!C36","v":0},{"$f":"Planning!D36","v":0},{"$f":"Planning!E36","v":0},{"$f":"IF(Planning!G36<>0,Planning!G36,\"\")","v":""},{"$f":"Planning!H36","v":0},{"$f":"Planning!I36","v":0},{"$f":"IF(OR(W52=\"1\",AND(W52<>\"1\",G52=Lists!$A$17)),Y52,0)","v":0},null,{"$f":"IF(AND(W52=\"2\",G52<>Lists!$A$17),AA52,Z52)","v":""},"",{"$f":"Planning!J36","v":{"v":0,"d":"0.00"}},{"v":0,"d":"0.00"},null,"","",{"$f":"SUMIFS($J$25:$J$224,$C$25:$C$224,$C52,$G$25:$G$224,Lists!$A$16)","v":0},0,null,"",null,{"$f":"IF(C52=0,\"\",LEFT(INDEX(Lists!$H$5:$H$49,MATCH(C52,Lists!$G$5:$G$49,0),1),1))","v":""},null,0,"","",null,"0"]
[{"$f":"Planning!A37","v":"I029"},{"$f":"Planning!B37","v":0},{"$f":"Planning!C37","v":0},{"$f":"Planning!D37","v":0},{"$f":"Planning!E37","v":0},{"$f":"IF(Planning!G37<>0,Planning!G37,\"\")","v":""},{"$f":"Planning!H37","v":0},{"$f":"Planning!I37","v":0},{"$f":"IF(OR(W53=\"1\",AND(W53<>\"1\",G53=Lists!$A$17)),Y53,0)","v":0},null,{"$f":"IF(AND(W53=\"2\",G53<>Lists!$A$17),AA53,Z53)","v":""},"",{"$f":"Planning!J37","v":{"v":0,"d":"0.00"}},{"v":0,"d":"0.00"},null,"","",{"$f":"SUMIFS($J$25:$J$224,$C$25:$C$224,$C53,$G$25:$G$224,Lists!$A$16)","v":0},0,null,"",null,{"$f":"IF(C53=0,\"\",LEFT(INDEX(Lists!$H$5:$H$49,MATCH(C53,Lists!$G$5:$G$49,0),1),1))","v":""},null,0,"","",null,"0"]
[{"$f":"Planning!A38","v":"I030"},{"$f":"Planning!B38","v":0},{"$f":"Planning!C38","v":0},{"$f":"Planning!D38","v":0},{"$f":"Planning!E38","v":0},{"$f":"IF(Planning!G38<>0,Planning!G38,\"\")","v":""},{"$f":"Planning!H38","v":0},{"$f":"Planning!I38","v":0},{"$f":"IF(OR(W54=\"1\",AND(W54<>\"1\",G54=Lists!$A$17)),Y54,0)","v":0},null,{"$f":"IF(AND(W54=\"2\",G54<>Lists!$A$17),AA54,Z54)","v":""},"",{"$f":"Planning!J38","v":{"v":0,"d":"0.00"}},{"v":0,"d":"0.00"},null,"","",{"$f":"SUMIFS($J$25:$J$224,$C$25:$C$224,$C54,$G$25:$G$224,Lists!$A$16)","v":0},0,null,"",null,{"$f":"IF(C54=0,\"\",LEFT(INDEX(Lists!$H$5:$H$49,MATCH(C54,Lists!$G$5:$G$49,0),1),1))","v":""},null,0,"","",null,"0"]
[{"$f":"Planning!A39","v":"I031"},{"$f":"Planning!B39","v":0},{"$f":"Planning!C39","v":0},{"$f":"Planning!D39","v":0},{"$f":"Planning!E39","v":0},{"$f":"IF(Planning!G39<>0,Planning!G39,\"\")","v":""},{"$f":"Planning!H39","v":0},{"$f":"Planning!I39","v":0},{"$f":"IF(OR(W55=\"1\",AND(W55<>\"1\",G55=Lists!$A$17)),Y55,0)","v":0},null,{"$f":"IF(AND(W55=\"2\",G55<>Lists!$A$17),AA55,Z55)","v":""},"",{"$f":"Planning!J39","v":{"v":0,"d":"0.00"}},{"v":0,"d":"0.00"},null,"","",{"$f":"SUMIFS($J$25:$J$224,$C$25:$C$224,$C55,$G$25:$G$224,Lists!$A$16)","v":0},0,null,"",null,{"$f":"IF(C55=0,\"\",LEFT(INDEX(Lists!$H$5:$H$49,MATCH(C55,Lists!$G$5:$G$49,0),1),1))","v":""},null,0,"","",null,"0"]
[{"$f":"Planning!A40","v":"I032"},{"$f":"Planning!B40","v":0},{"$f":"Planning!C40","v":0},{"$f":"Planning!D40","v":0},{"$f":"Planning!E40","v":0},{"$f":"IF(Planning!G40<>0,Planning!G40,\"\")","v":""},{"$f":"Planning!H40","v":0},{"$f":"Planning!I40","v":0},{"$f":"IF(OR(W56=\"1\",AND(W56<>\"1\",G56=Lists!$A$17)),Y56,0)","v":0},null,{"$f":"IF(AND(W56=\"2\",G56<>Lists!$A$17),AA56,Z56)","v":""},"",{"$f":"Planning!J40","v":{"v":0,"d":"0.00"}},{"v":0,"d":"0.00"},null,"","",{"$f":"SUMIFS($J$25:$J$224,$C$25:$C$224,$C56,$G$25:$G$224,Lists!$A$16)","v":0},0,null,"",null,{"$f":"IF(C56=0,\"\",LEFT(INDEX(Lists!$H$5:$H$49,MATCH(C56,Lists!$G$5:$G$49,0),1),1))","v":""},null,0,"","",null,"0"]
[{"$f":"Planning!A41","v":"I033"},{"$f":"Planning!B41","v":0},{"$f":"Planning!C41","v":0},{"$f":"Planning!D41","v":0},{"$f":"Planning!E41","v":0},{"$f":"IF(Planning!G41<>0,Planning!G41,\"\")","v":""},{"$f":"Planning!H41","v":0},{"$f":"Planning!I41","v":0},{"$f":"IF(OR(W57=\"1\",AND(W57<>\"1\",G57=Lists!$A$17)),Y57,0)","v":0},null,{"$f":"IF(AND(W57=\"2\",G57<>Lists!$A$17),AA57,Z57)","v":""},{"$f":"IF($U57=ExcluirDelPLogro,\"\",IF(AND(H57=0,I57=0,J57=0),\"\",K57))","v":""},{"$f":"Planning!J41","v":{"v":0,"d":"0.00"}},{"v":0,"d":"0.00"},null,"",{"$f":"IF($U57=ExcluirDelPLogro,\"\",IF(AND(M57=0,N57=0,O57=0),\"\",P57))","v":""},{"$f":"SUMIFS($J$25:$J$224,$C$25:$C$224,$C57,$G$25:$G$224,Lists!$A$16)","v":0},0,null,"",null,{"$f":"IF(C57=0,\"\",LEFT(INDEX(Lists!$H$5:$H$49,MATCH(C57,Lists!$G$5:$G$49,0),1),1))","v":""},null,0,"","",null,"0"]
[{"$f":"Planning!A42","v":"I034"},{"$f":"Planning!B42","v":0},{"$f":"Planning!C42","v":0},{"$f":"Planning!D42","v":0},{"$f":"Planning!E42","v":0},{"$f":"IF(Planning!G42<>0,Planning!G42,\"\")","v":""},{"$f":"Planning!H42","v":0},{"$f":"Planning!I42","v":0},{"$f":"IF(OR(W58=\"1\",AND(W58<>\"1\",G58=Lists!$A$17)),Y58,0)","v":0},null,{"$f":"IF(AND(W58=\"2\",G58<>Lists!$A$17),AA58,Z58)","v":""},"",{"$f":"Planning!J42","v":{"v":0,"d":"0.00"}},{"v":0,"d":"0.00"},null,"","",{"$f":"SUMIFS($J$25:$J$224,$C$25:$C$224,$C58,$G$25:$G$224,Lists!$A$16)","v":0},0,null,"",null,{"$f":"IF(C58=0,\"\",LEFT(INDEX(Lists!$H$5:$H$49,MATCH(C58,Lists!$G$5:$G$49,0),1),1))","v":""},null,0,"","",null,"0"]
[{"$f":"Planning!A43","v":"I035"},{"$f":"Planning!B43","v":0},{"$f":"Planning!C43","v":0},{"$f":"Planning!D43","v":0},{"$f":"Planning!E43","v":0},{"$f":"IF(Planning!G43<>0,Planning!G43,\"\")","v":""},{"$f":"Planning!H43","v":0},{"$f":"Planning!I43","v":0},{"$f":"IF(OR(W59=\"1\",AND(W59<>\"1\",G59=Lists!$A$17)),Y59,0)","v":0},null,{"$f":"IF(AND(W59=\"2\",G59<>Lists!$A$17),AA59,Z59)","v":""},"",{"$f":"Planning!J43","v":{"v":0,"d":"0.00"}},{"v":0,"d":"0.00"},null,"","",{"$f":"SUMIFS($J$25:$J$224,$C$25:$C$224,$C59,$G$25:$G$224,Lists!$A$16)","v":0},0,null,"",null,{"$f":"IF(C59=0,\"\",LEFT(INDEX(Lists!$H$5:$H$49,MATCH(C59,Lists!$G$5:$G$49,0),1),1))","v":""},null,0,"","",null,"0"]
[{"$f":"Planning!A44","v":"I036"},{"$f":"Planning!B44","v":0},{"$f":"Planning!C44","v":0},{"$f":"Planning!D44","v":0},{"$f":"Planning!E44","v":0},{"$f":"IF(Planning!G44<>0,Planning!G44,\"\")","v":""},{"$f":"Planning!H44","v":0},{"$f":"Planning!I44","v":0},{"$f":"IF(OR(W60=\"1\",AND(W60<>\"1\",G60=Lists!$A$17)),Y60,0)","v":0},null,{"$f":"IF(AND(W60=\"2\",G60<>Lists!$A$17),AA60,Z60)","v":""},"",{"$f":"Planning!J44","v":{"v":0,"d":"0.00"}},{"v":0,"d":"0.00"},null,"","",{"$f":"SUMIFS($J$25:$J$224,$C$25:$C$224,$C60,$G$25:$G$224,Lists!$A$16)","v":0},0,null,"",null,{"$f":"IF(C60=0,\"\",LEFT(INDEX(Lists!$H$5:$H$49,MATCH(C60,Lists!$G$5:$G$49,0),1),1))","v":""},null,0,"","",null,"0"]
[{"$f":"Planning!A45","v":"I037"},{"$f":"Planning!B45","v":0},{"$f":"Planning!C45","v":0},{"$f":"Planning!D45","v":0},{"$f":"Planning!E45","v":0},{"$f":"IF(Planning!G45<>0,Planning!G45,\"\")","v":""},{"$f":"Planning!H45","v":0},{"$f":"Planning!I45","v":0},{"$f":"IF(OR(W61=\"1\",AND(W61<>\"1\",G61=Lists!$A$17)),Y61,0)","v":0},null,{"$f":"IF(AND(W61=\"2\",G61<>Lists!$A$17),AA61,Z61)","v":""},"",{"$f":"Planning!J45","v":{"v":0,"d":"0.00"}},{"v":0,"d":"0.00"},null,"","",{"$f":"SUMIFS($J$25:$J$224,$C$25:$C$224,$C61,$G$25:$G$224,Lists!$A$16)","v":0},0,null,"",null,{"$f":"IF(C61=0,\"\",LEFT(INDEX(Lists!$H$5:$H$49,MATCH(C61,Lists!$G$5:$G$49,0),1),1))","v":""},null,0,"","",null,"0"]
[{"$f":"Planning!A46","v":"I038"},{"$f":"Planning!B46","v":0},{"$f":"Planning!C46","v":0},{"$f":"Planning!D46","v":0},{"$f":"Planning!E46","v":0},{"$f":"IF(Planning!G46<>0,Planning!G46,\"\")","v":""},{"$f":"Planning!H46","v":0},{"$f":"Planning!I46","v":0},{"$f":"IF(OR(W62=\"1\",AND(W62<>\"1\",G62=Lists!$A$17)),Y62,0)","v":0},null,{"$f":"IF(AND(W62=\"2\",G62<>Lists!$A$17),AA62,Z62)","v":""},"",{"$f":"Planning!J46","v":{"v":0,"d":"0.00"}},{"v":0,"d":"0.00"},null,"","",{"$f":"SUMIFS($J$25:$J$224,$C$25:$C$224,$C62,$G$25:$G$224,Lists!$A$16)","v":0},0,null,"",null,{"$f":"IF(C62=0,\"\",LEFT(INDEX(Lists!$H$5:$H$49,MATCH(C62,Lists!$G$5:$G$49,0),1),1))","v":""},null,0,"","",null,"0"]
[{"$f":"Planning!A47","v":"I039"},{"$f":"Planning!B47","v":0},{"$f":"Planning!C47","v":0},{"$f":"Planning!D47","v":0},{"$f":"Planning!E47","v":0},{"$f":"IF(Planning!G47<>0,Planning!G47,\"\")","v":""},{"$f":"Planning!H47","v":0},{"$f":"Planning!I47","v":0},{"$f":"IF(OR(W63=\"1\",AND(W63<>\"1\",G63=Lists!$A$17)),Y63,0)","v":0},null,{"$f":"IF(AND(W63=\"2\",G63<>Lists!$A$17),AA63,Z63)","v":""},"",{"$f":"Planning!J47","v":{"v":0,"d":"0.00"}},{"v":0,"d":"0.00"},null,"","",{"$f":"SUMIFS($J$25:$J$224,$C$25:$C$224,$C63,$G$25:$G$224,Lists!$A$16)","v":0},0,null,"",null,{"$f":"IF(C63=0,\"\",LEFT(INDEX(Lists!$H$5:$H$49,MATCH(C63,Lists!$G$5:$G$49,0),1),1))","v":""},null,0,"","",null,"0"]
[{"$f":"Planning!A48","v":"I040"},{"$f":"Planning!B48","v":0},{"$f":"Planning!C48","v":0},{"$f":"Planning!D48","v":0},{"$f":"Planning!E48","v":0},{"$f":"IF(Planning!G48<>0,Planning!G48,\"\")","v":""},{"$f":"Planning!H48","v":0},{"$f":"Planning!I48","v":0},{"$f":"IF(OR(W64=\"1\",AND(W64<>\"1\",G64=Lists!$A$17)),Y64,0)","v":0},null,{"$f":"IF(AND(W64=\"2\",G64<>Lists!$A$17),AA64,Z64)","v":""},"",{"$f":"Planning!J48","v":{"v":0,"d":"0.00"}},{"v":0,"d":"0.00"},null,"","",{"$f":"SUMIFS($J$25:$J$224,$C$25:$C$224,$C64,$G$25:$G$224,Lists!$A$16)","v":0},0,null,"",null,{"$f":"IF(C64=0,\"\",LEFT(INDEX(Lists!$H$5:$H$49,MATCH(C64,Lists!$G$5:$G$49,0),1),1))","v":""},null,0,"","",null,"0"]
[{"$f":"Planning!A49","v":"I041"},{"$f":"Planning!B49","v":0},{"$f":"Planning!C49","v":0},{"$f":"Planning!D49","v":0},{"$f":"Planning!E49","v":0},{"$f":"IF(Planning!G49<>0,Planning!G49,\"\")","v":""},{"$f":"Planning!H49","v":0},{"$f":"Planning!I49","v":0},{"$f":"IF(OR(W65=\"1\",AND(W65<>\"1\",G65=Lists!$A$17)),Y65,0)","v":0},null,{"$f":"IF(AND(W65=\"2\",G65<>Lists!$A$17),AA65,Z65)","v":""},"",{"$f":"Planning!J49","v":{"v":0,"d":"0.00"}},{"v":0,"d":"0.00"},null,"","",{"$f":"SUMIFS($J$25:$J$224,$C$25:$C$224,$C65,$G$25:$G$224,Lists!$A$16)","v":0},0,null,"",null,{"$f":"IF(C65=0,\"\",LEFT(INDEX(Lists!$H$5:$H$49,MATCH(C65,Lists!$G$5:$G$49,0),1),1))","v":""},null,0,"","",null,"0"]
[{"$f":"Planning!A50","v":"I042"},{"$f":"Planning!B50","v":0},{"$f":"Planning!C50","v":0},{"$f":"Planning!D50","v":0},{"$f":"Planning!E50","v":0},{"$f":"IF(Planning!G50<>0,Planning!G50,\"\")","v":""},{"$f":"Planning!H50","v":0},{"$f":"Planning!I50","v":0},{"$f":"IF(OR(W66=\"1\",AND(W66<>\"1\",G66=Lists!$A$17)),Y66,0)","v":0},null,{"$f":"IF(AND(W66=\"2\",G66<>Lists!$A$17),AA66,Z66)","v":""},"",{"$f":"Planning!J50","v":{"v":0,"d":"0.00"}},{"v":0,"d":"0.00"},null,"","",{"$f":"SUMIFS($J$25:$J$224,$C$25:$C$224,$C66,$G$25:$G$224,Lists!$A$16)","v":0},0,null,"",null,{"$f":"IF(C66=0,\"\",LEFT(INDEX(Lists!$H$5:$H$49,MATCH(C66,Lists!$G$5:$G$49,0),1),1))","v":""},null,0,"","",null,"0"]
[{"$f":"Planning!A51","v":"I043"},{"$f":"Planning!B51","v":0},{"$f":"Planning!C51","v":0},{"$f":"Planning!D51","v":0},{"$f":"Planning!E51","v":0},{"$f":"IF(Planning!G51<>0,Planning!G51,\"\")","v":""},{"$f":"Planning!H51","v":0},{"$f":"Planning!I51","v":0},{"$f":"IF(OR(W67=\"1\",AND(W67<>\"1\",G67=Lists!$A$17)),Y67,0)","v":0},null,{"$f":"IF(AND(W67=\"2\",G67<>Lists!$A$17),AA67,Z67)","v":""},"",{"$f":"Planning!J51","v":{"v":0,"d":"0.00"}},{"v":0,"d":"0.00"},null,"","",{"$f":"SUMIFS($J$25:$J$224,$C$25:$C$224,$C67,$G$25:$G$224,Lists!$A$16)","v":0},0,null,"",null,{"$f":"IF(C67=0,\"\",LEFT(INDEX(Lists!$H$5:$H$49,MATCH(C67,Lists!$G$5:$G$49,0),1),1))","v":""},null,0,"","",null,"0"]
[{"$f":"Planning!A52","v":"I044"},{"$f":"Planning!B52","v":0},{"$f":"Planning!C52","v":0},{"$f":"Planning!D52","v":0},{"$f":"Planning!E52","v":0},{"$f":"IF(Planning!G52<>0,Planning!G52,\"\")","v":""},{"$f":"Planning!H52","v":0},{"$f":"Planning!I52","v":0},{"$f":"IF(OR(W68=\"1\",AND(W68<>\"1\",G68=Lists!$A$17)),Y68,0)","v":0},null,{"$f":"IF(AND(W68=\"2\",G68<>Lists!$A$17),AA68,Z68)","v":""},"",{"$f":"Planning!J52","v":{"v":0,"d":"0.00"}},{"v":0,"d":"0.00"},null,"","",{"$f":"SUMIFS($J$25:$J$224,$C$25:$C$224,$C68,$G$25:$G$224,Lists!$A$16)","v":0},0,null,"",null,{"$f":"IF(C68=0,\"\",LEFT(INDEX(Lists!$H$5:$H$49,MATCH(C68,Lists!$G$5:$G$49,0),1),1))","v":""},null,0,"","",null,"0"]
[{"$f":"Planning!A53","v":"I045"},{"$f":"Planning!B53","v":0},{"$f":"Planning!C53","v":0},{"$f":"Planning!D53","v":0},{"$f":"Planning!E53","v":0},{"$f":"IF(Planning!G53<>0,Planning!G53,\"\")","v":""},{"$f":"Planning!H53","v":0},{"$f":"Planning!I53","v":0},{"$f":"IF(OR(W69=\"1\",AND(W69<>\"1\",G69=Lists!$A$17)),Y69,0)","v":0},null,{"$f":"IF(AND(W69=\"2\",G69<>Lists!$A$17),AA69,Z69)","v":""},"",{"$f":"Planning!J53","v":{"v":0,"d":"0.00"}},{"v":0,"d":"0.00"},null,"","",{"$f":"SUMIFS($J$25:$J$224,$C$25:$C$224,$C69,$G$25:$G$224,Lists!$A$16)","v":0},0,null,"",null,{"$f":"IF(C69=0,\"\",LEFT(INDEX(Lists!$H$5:$H$49,MATCH(C69,Lists!$G$5:$G$49,0),1),1))","v":""},null,0,"","",null,"0"]
[{"$f":"Planning!A54","v":"I046"},{"$f":"Planning!B54","v":0},{"$f":"Planning!C54","v":0},{"$f":"Planning!D54","v":0},{"$f":"Planning!E54","v":0},{"$f":"IF(Planning!G54<>0,Planning!G54,\"\")","v":""},{"$f":"Planning!H54","v":0},{"$f":"Planning!I54","v":0},{"$f":"IF(OR(W70=\"1\",AND(W70<>\"1\",G70=Lists!$A$17)),Y70,0)","v":0},null,{"$f":"IF(AND(W70=\"2\",G70<>Lists!$A$17),AA70,Z70)","v":""},"",{"$f":"Planning!J54","v":{"v":0,"d":"0.00"}},{"v":0,"d":"0.00"},null,"","",{"$f":"SUMIFS($J$25:$J$224,$C$25:$C$224,$C70,$G$25:$G$224,Lists!$A$16)","v":0},0,null,"",null,{"$f":"IF(C70=0,\"\",LEFT(INDEX(Lists!$H$5:$H$49,MATCH(C70,Lists!$G$5:$G$49,0),1),1))","v":""},null,0,"","",null,"0"]
[{"$f":"Planning!A55","v":"I047"},{"$f":"Planning!B55","v":0},{"$f":"Planning!C55","v":0},{"$f":"Planning!D55","v":0},{"$f":"Planning!E55","v":0},{"$f":"IF(Planning!G55<>0,Planning!G55,\"\")","v":""},{"$f":"Planning!H55","v":0},{"$f":"Planning!I55","v":0},{"$f":"IF(OR(W71=\"1\",AND(W71<>\"1\",G71=Lists!$A$17)),Y71,0)","v":0},null,{"$f":"IF(AND(W71=\"2\",G71<>Lists!$A$17),AA71,Z71)","v":""},"",{"$f":"Planning!J55","v":{"v":0,"d":"0.00"}},{"v":0,"d":"0.00"},null,"","",{"$f":"SUMIFS($J$25:$J$224,$C$25:$C$224,$C71,$G$25:$G$224,Lists!$A$16)","v":0},0,null,"",null,{"$f":"IF(C71=0,\"\",LEFT(INDEX(Lists!$H$5:$H$49,MATCH(C71,Lists!$G$5:$G$49,0),1),1))","v":""},null,0,"","",null,"0"]
[{"$f":"Planning!A56","v":"I048"},{"$f":"Planning!B56","v":0},{"$f":"Planning!C56","v":0},{"$f":"Planning!D56","v":0},{"$f":"Planning!E56","v":0},{"$f":"IF(Planning!G56<>0,Planning!G56,\"\")","v":""},{"$f":"Planning!H56","v":0},{"$f":"Planning!I56","v":0},{"$f":"IF(OR(W72=\"1\",AND(W72<>\"1\",G72=Lists!$A$17)),Y72,0)","v":0},null,{"$f":"IF(AND(W72=\"2\",G72<>Lists!$A$17),AA72,Z72)","v":""},"",{"$f":"Planning!J56","v":{"v":0,"d":"0.00"}},{"v":0,"d":"0.00"},null,"","",{"$f":"SUMIFS($J$25:$J$224,$C$25:$C$224,$C72,$G$25:$G$224,Lists!$A$16)","v":0},0,null,"",null,{"$f":"IF(C72=0,\"\",LEFT(INDEX(Lists!$H$5:$H$49,MATCH(C72,Lists!$G$5:$G$49,0),1),1))","v":""},null,0,"","",null,"0"]
[{"$f":"Planning!A57","v":"I049"},{"$f":"Planning!B57","v":0},{"$f":"Planning!C57","v":0},{"$f":"Planning!D57","v":0},{"$f":"Planning!E57","v":0},{"$f":"IF(Planning!G57<>0,Planning!G57,\"\")","v":""},{"$f":"Planning!H57","v":0},{"$f":"Planning!I57","v":0},{"$f":"IF(OR(W73=\"1\",AND(W73<>\"1\",G73=Lists!$A$17)),Y73,0)","v":0},null,{"$f":"IF(AND(W73=\"2\",G73<>Lists!$A$17),AA73,Z73)","v":""},"",{"$f":"Planning!J57","v":{"v":0,"d":"0.00"}},{"v":0,"d":"0.00"},null,"","",{"$f":"SUMIFS($J$25:$J$224,$C$25:$C$224,$C73,$G$25:$G$224,Lists!$A$16)","v":0},0,null,"",null,{"$f":"IF(C73=0,\"\",LEFT(INDEX(Lists!$H$5:$H$49,MATCH(C73,Lists!$G$5:$G$49,0),1),1))","v":""},null,0,"","",null,"0"]
[{"$f":"Planning!A58","v":"I050"},{"$f":"Planning!B58","v":0},{"$f":"Planning!C58","v":0},{"$f":"Planning!D58","v":0},{"$f":"Planning!E58","v":0},{"$f":"IF(Planning!G58<>0,Planning!G58,\"\")","v":""},{"$f":"Planning!H58","v":0},{"$f":"Planning!I58","v":0},{"$f":"IF(OR(W74=\"1\",AND(W74<>\"1\",G74=Lists!$A$17)),Y74,0)","v":0},null,{"$f":"IF(AND(W74=\"2\",G74<>Lists!$A$17),AA74,Z74)","v":""},"",{"$f":"Planning!J58","v":{"v":0,"d":"0.00"}},{"v":0,"d":"0.00"},null,"","",{"$f":"SUMIFS($J$25:$J$224,$C$25:$C$224,$C74,$G$25:$G$224,Lists!$A$16)","v":0},0,null,"",null,{"$f":"IF(C74=0,\"\",LEFT(INDEX(Lists!$H$5:$H$49,MATCH(C74,Lists!$G$5:$G$49,0),1),1))","v":""},null,0,"","",null,"0"]
[{"$f":"Planning!A59","v":"I051"},{"$f":"Planning!B59","v":0},{"$f":"Planning!C59","v":0},{"$f":"Planning!D59","v":0},{"$f":"Planning!E59","v":0},{"$f":"IF(Planning!G59<>0,Planning!G59,\"\")","v":""},{"$f":"Planning!H59","v":0},{"$f":"Planning!I59","v":0},{"$f":"IF(OR(W75=\"1\",AND(W75<>\"1\",G75=Lists!$A$17)),Y75,0)","v":0},null,{"$f":"IF(AND(W75=\"2\",G75<>Lists!$A$17),AA75,Z75)","v":""},"",{"$f":"Planning!J59","v":{"v":0,"d":"0.00"}},{"v":0,"d":"0.00"},null,"","",{"$f":"SUMIFS($J$25:$J$224,$C$25:$C$224,$C75,$G$25:$G$224,Lists!$A$16)","v":0},0,null,"",null,{"$f":"IF(C75=0,\"\",LEFT(INDEX(Lists!$H$5:$H$49,MATCH(C75,Lists!$G$5:$G$49,0),1),1))","v":""},null,0,"","",null,"0"]
[{"$f":"Planning!A60","v":"I052"},{"$f":"Planning!B60","v":0},{"$f":"Planning!C60","v":0},{"$f":"Planning!D60","v":0},{"$f":"Planning!E60","v":0},{"$f":"IF(Planning!G60<>0,Planning!G60,\"\")","v":""},{"$f":"Planning!H60","v":0},{"$f":"Planning!I60","v":0},{"$f":"IF(OR(W76=\"1\",AND(W76<>\"1\",G76=Lists!$A$17)),Y76,0)","v":0},null,{"$f":"IF(AND(W76=\"2\",G76<>Lists!$A$17),AA76,Z76)","v":""},"",{"$f":"Planning!J60","v":{"v":0,"d":"0.00"}},{"v":0,"d":"0.00"},null,"","",{"$f":"SUMIFS($J$25:$J$224,$C$25:$C$224,$C76,$G$25:$G$224,Lists!$A$16)","v":0},0,null,"",null,{"$f":"IF(C76=0,\"\",LEFT(INDEX(Lists!$H$5:$H$49,MATCH(C76,Lists!$G$5:$G$49,0),1),1))","v":""},null,0,"","",null,"0"]
[{"$f":"Planning!A61","v":"I053"},{"$f":"Planning!B61","v":0},{"$f":"Planning!C61","v":0},{"$f":"Planning!D61","v":0},{"$f":"Planning!E61","v":0},{"$f":"IF(Planning!G61<>0,Planning!G61,\"\")","v":""},{"$f":"Planning!H61","v":0},{"$f":"Planning!I61","v":0},{"$f":"IF(OR(W77=\"1\",AND(W77<>\"1\",G77=Lists!$A$17)),Y77,0)","v":0},null,{"$f":"IF(AND(W77=\"2\",G77<>Lists!$A$17),AA77,Z77)","v":""},"",{"$f":"Planning!J61","v":{"v":0,"d":"0.00"}},{"v":0,"d":"0.00"},null,"","",{"$f":"SUMIFS($J$25:$J$224,$C$25:$C$224,$C77,$G$25:$G$224,Lists!$A$16)","v":0},0,null,"",null,{"$f":"IF(C77=0,\"\",LEFT(INDEX(Lists!$H$5:$H$49,MATCH(C77,Lists!$G$5:$G$49,0),1),1))","v":""},null,0,"","",null,"0"]
[{"$f":"Planning!A62","v":"I054"},{"$f":"Planning!B62","v":0},{"$f":"Planning!C62","v":0},{"$f":"Planning!D62","v":0},{"$f":"Planning!E62","v":0},{"$f":"IF(Planning!G62<>0,Planning!G62,\"\")","v":""},{"$f":"Planning!H62","v":0},{"$f":"Planning!I62","v":0},{"$f":"IF(OR(W78=\"1\",AND(W78<>\"1\",G78=Lists!$A$17)),Y78,0)","v":0},null,{"$f":"IF(AND(W78=\"2\",G78<>Lists!$A$17),AA78,Z78)","v":""},"",{"$f":"Planning!J62","v":{"v":0,"d":"0.00"}},{"v":0,"d":"0.00"},null,"","",{"$f":"SUMIFS($J$25:$J$224,$C$25:$C$224,$C78,$G$25:$G$224,Lists!$A$16)","v":0},0,null,"",null,{"$f":"IF(C78=0,\"\",LEFT(INDEX(Lists!$H$5:$H$49,MATCH(C78,Lists!$G$5:$G$49,0),1),1))","v":""},null,0,"","",null,"0"]
[{"$f":"Planning!A63","v":"I055"},{"$f":"Planning!B63","v":0},{"$f":"Planning!C63","v":0},{"$f":"Planning!D63","v":0},{"$f":"Planning!E63","v":0},{"$f":"IF(Planning!G63<>0,Planning!G63,\"\")","v":""},{"$f":"Planning!H63","v":0},{"$f":"Planning!I63","v":0},{"$f":"IF(OR(W79=\"1\",AND(W79<>\"1\",G79=Lists!$A$17)),Y79,0)","v":0},null,{"$f":"IF(AND(W79=\"2\",G79<>Lists!$A$17),AA79,Z79)","v":""},"",{"$f":"Planning!J63","v":{"v":0,"d":"0.00"}},{"v":0,"d":"0.00"},null,"","",{"$f":"SUMIFS($J$25:$J$224,$C$25:$C$224,$C79,$G$25:$G$224,Lists!$A$16)","v":0},0,null,"",null,{"$f":"IF(C79=0,\"\",LEFT(INDEX(Lists!$H$5:$H$49,MATCH(C79,Lists!$G$5:$G$49,0),1),1))","v":""},null,0,"","",null,"0"]
[{"$f":"Planning!A64","v":"I056"},{"$f":"Planning!B64","v":0},{"$f":"Planning!C64","v":0},{"$f":"Planning!D64","v":0},{"$f":"Planning!E64","v":0},{"$f":"IF(Planning!G64<>0,Planning!G64,\"\")","v":""},{"$f":"Planning!H64","v":0},{"$f":"Planning!I64","v":0},{"$f":"IF(OR(W80=\"1\",AND(W80<>\"1\",G80=Lists!$A$17)),Y80,0)","v":0},null,{"$f":"IF(AND(W80=\"2\",G80<>Lists!$A$17),AA80,Z80)","v":""},"",{"$f":"Planning!J64","v":{"v":0,"d":"0.00"}},{"v":0,"d":"0.00"},null,"","",{"$f":"SUMIFS($J$25:$J$224,$C$25:$C$224,$C80,$G$25:$G$224,Lists!$A$16)","v":0},0,null,"",null,{"$f":"IF(C80=0,\"\",LEFT(INDEX(Lists!$H$5:$H$49,MATCH(C80,Lists!$G$5:$G$49,0),1),1))","v":""},null,0,"","",null,"0"]
[{"$f":"Planning!A65","v":"I057"},{"$f":"Planning!B65","v":0},{"$f":"Planning!C65","v":0},{"$f":"Planning!D65","v":0},{"$f":"Planning!E65","v":0},{"$f":"IF(Planning!G65<>0,Planning!G65,\"\")","v":""},{"$f":"Planning!H65","v":0},{"$f":"Planning!I65","v":0},{"$f":"IF(OR(W81=\"1\",AND(W81<>\"1\",G81=Lists!$A$17)),Y81,0)","v":0},null,{"$f":"IF(AND(W81=\"2\",G81<>Lists!$A$17),AA81,Z81)","v":""},"",{"$f":"Planning!J65","v":{"v":0,"d":"0.00"}},{"v":0,"d":"0.00"},null,"","",{"$f":"SUMIFS($J$25:$J$224,$C$25:$C$224,$C81,$G$25:$G$224,Lists!$A$16)","v":0},0,null,"",null,{"$f":"IF(C81=0,\"\",LEFT(INDEX(Lists!$H$5:$H$49,MATCH(C81,Lists!$G$5:$G$49,0),1),1))","v":""},null,0,"","",null,"0"]
[{"$f":"Planning!A66","v":"I058"},{"$f":"Planning!B66","v":0},{"$f":"Planning!C66","v":0},{"$f":"Planning!D66","v":0},{"$f":"Planning!E66","v":0},{"$f":"IF(Planning!G66<>0,Planning!G66,\"\")","v":""},{"$f":"Planning!H66","v":0},{"$f":"Planning!I66","v":0},{"$f":"IF(OR(W82=\"1\",AND(W82<>\"1\",G82=Lists!$A$17)),Y82,0)","v":0},null,{"$f":"IF(AND(W82=\"2\",G82<>Lists!$A$17),AA82,Z82)","v":""},"",{"$f":"Planning!J66","v":{"v":0,"d":"0.00"}},{"v":0,"d":"0.00"},null,"","",{"$f":"SUMIFS($J$25:$J$224,$C$25:$C$224,$C82,$G$25:$G$224,Lists!$A$16)","v":0},0,null,"",null,{"$f":"IF(C82=0,\"\",LEFT(INDEX(Lists!$H$5:$H$49,MATCH(C82,Lists!$G$5:$G$49,0),1),1))","v":""},null,0,"","",null,"0"]
[{"$f":"Planning!A67","v":"I059"},{"$f":"Planning!B67","v":0},{"$f":"Planning!C67","v":0},{"$f":"Planning!D67","v":0},{"$f":"Planning!E67","v":0},{"$f":"IF(Planning!G67<>0,Planning!G67,\"\")","v":""},{"$f":"Planning!H67","v":0},{"$f":"Planning!I67","v":0},{"$f":"IF(OR(W83=\"1\",AND(W83<>\"1\",G83=Lists!$A$17)),Y83,0)","v":0},null,{"$f":"IF(AND(W83=\"2\",G83<>Lists!$A$17),AA83,Z83)","v":""},"",{"$f":"Planning!J67","v":{"v":0,"d":"0.00"}},{"v":0,"d":"0.00"},null,"","",{"$f":"SUMIFS($J$25:$J$224,$C$25:$C$224,$C83,$G$25:$G$224,Lists!$A$16)","v":0},0,null,"",null,{"$f":"IF(C83=0,\"\",LEFT(INDEX(Lists!$H$5:$H$49,MATCH(C83,Lists!$G$5:$G$49,0),1),1))","v":""},null,0,"","",null,"0"]
[{"$f":"Planning!A68","v":"I060"},{"$f":"Planning!B68","v":0},{"$f":"Planning!C68","v":0},{"$f":"Planning!D68","v":0},{"$f":"Planning!E68","v":0},{"$f":"IF(Planning!G68<>0,Planning!G68,\"\")","v":""},{"$f":"Planning!H68","v":0},{"$f":"Planning!I68","v":0},{"$f":"IF(OR(W84=\"1\",AND(W84<>\"1\",G84=Lists!$A$17)),Y84,0)","v":0},null,{"$f":"IF(AND(W84=\"2\",G84<>Lists!$A$17),AA84,Z84)","v":""},"",{"$f":"Planning!J68","v":{"v":0,"d":"0.00"}},{"v":0,"d":"0.00"},null,"","",{"$f":"SUMIFS($J$25:$J$224,$C$25:$C$224,$C84,$G$25:$G$224,Lists!$A$16)","v":0},0,null,"",null,{"$f":"IF(C84=0,\"\",LEFT(INDEX(Lists!$H$5:$H$49,MATCH(C84,Lists!$G$5:$G$49,0),1),1))","v":""},null,0,"","",null,"0"]
[{"$f":"Planning!A69","v":"I061"},{"$f":"Planning!B69","v":0},{"$f":"Planning!C69","v":0},{"$f":"Planning!D69","v":0},{"$f":"Planning!E69","v":0},{"$f":"IF(Planning!G69<>0,Planning!G69,\"\")","v":""},{"$f":"Planning!H69","v":0},{"$f":"Planning!I69","v":0},{"$f":"IF(OR(W85=\"1\",AND(W85<>\"1\",G85=Lists!$A$17)),Y85,0)","v":0},null,{"$f":"IF(AND(W85=\"2\",G85<>Lists!$A$17),AA85,Z85)","v":""},"",{"$f":"Planning!J69","v":{"v":0,"d":"0.00"}},{"v":0,"d":"0.00"},null,"","",{"$f":"SUMIFS($J$25:$J$224,$C$25:$C$224,$C85,$G$25:$G$224,Lists!$A$16)","v":0},0,null,"",null,{"$f":"IF(C85=0,\"\",LEFT(INDEX(Lists!$H$5:$H$49,MATCH(C85,Lists!$G$5:$G$49,0),1),1))","v":""},null,0,"","",null,"0"]
[{"$f":"Planning!A70","v":"I062"},{"$f":"Planning!B70","v":0},{"$f":"Planning!C70","v":0},{"$f":"Planning!D70","v":0},{"$f":"Planning!E70","v":0},{"$f":"IF(Planning!G70<>0,Planning!G70,\"\")","v":""},{"$f":"Planning!H70","v":0},{"$f":"Planning!I70","v":0},{"$f":"IF(OR(W86=\"1\",AND(W86<>\"1\",G86=Lists!$A$17)),Y86,0)","v":0},null,{"$f":"IF(AND(W86=\"2\",G86<>Lists!$A$17),AA86,Z86)","v":""},"",{"$f":"Planning!J70","v":{"v":0,"d":"0.00"}},{"v":0,"d":"0.00"},null,"","",{"$f":"SUMIFS($J$25:$J$224,$C$25:$C$224,$C86,$G$25:$G$224,Lists!$A$16)","v":0},0,null,"",null,{"$f":"IF(C86=0,\"\",LEFT(INDEX(Lists!$H$5:$H$49,MATCH(C86,Lists!$G$5:$G$49,0),1),1))","v":""},null,0,"","",null,"0"]
[{"$f":"Planning!A71","v":"I063"},{"$f":"Planning!B71","v":0},{"$f":"Planning!C71","v":0},{"$f":"Planning!D71","v":0},{"$f":"Planning!E71","v":0},{"$f":"IF(Planning!G71<>0,Planning!G71,\"\")","v":""},{"$f":"Planning!H71","v":0},{"$f":"Planning!I71","v":0},{"$f":"IF(OR(W87=\"1\",AND(W87<>\"1\",G87=Lists!$A$17)),Y87,0)","v":0},null,{"$f":"IF(AND(W87=\"2\",G87<>Lists!$A$17),AA87,Z87)","v":""},"",{"$f":"Planning!J71","v":{"v":0,"d":"0.00"}},{"v":0,"d":"0.00"},null,"","",{"$f":"SUMIFS($J$25:$J$224,$C$25:$C$224,$C87,$G$25:$G$224,Lists!$A$16)","v":0},0,null,"",null,{"$f":"IF(C87=0,\"\",LEFT(INDEX(Lists!$H$5:$H$49,MATCH(C87,Lists!$G$5:$G$49,0),1),1))","v":""},null,0,"","",null,"0"]
[{"$f":"Planning!A72","v":"I064"},{"$f":"Planning!B72","v":0},{"$f":"Planning!C72","v":0},{"$f":"Planning!D72","v":0},{"$f":"Planning!E72","v":0},{"$f":"IF(Planning!G72<>0,Planning!G72,\"\")","v":""},{"$f":"Planning!H72","v":0},{"$f":"Planning!I72","v":0},{"$f":"IF(OR(W88=\"1\",AND(W88<>\"1\",G88=Lists!$A$17)),Y88,0)","v":0},null,{"$f":"IF(AND(W88=\"2\",G88<>Lists!$A$17),AA88,Z88)","v":""},"",{"$f":"Planning!J72","v":{"v":0,"d":"0.00"}},{"v":0,"d":"0.00"},null,"","",{"$f":"SUMIFS($J$25:$J$224,$C$25:$C$224,$C88,$G$25:$G$224,Lists!$A$16)","v":0},0,null,"",null,{"$f":"IF(C88=0,\"\",LEFT(INDEX(Lists!$H$5:$H$49,MATCH(C88,Lists!$G$5:$G$49,0),1),1))","v":""},null,0,"","",null,"0"]
[{"$f":"Planning!A73","v":"I065"},{"$f":"Planning!B73","v":0},{"$f":"Planning!C73","v":0},{"$f":"Planning!D73","v":0},{"$f":"Planning!E73","v":0},{"$f":"IF(Planning!G73<>0,Planning!G73,\"\")","v":""},{"$f":"Planning!H73","v":0},{"$f":"Planning!I73","v":0},{"$f":"IF(OR(W89=\"1\",AND(W89<>\"1\",G89=Lists!$A$17)),Y89,0)","v":0},null,{"$f":"IF(AND(W89=\"2\",G89<>Lists!$A$17),AA89,Z89)","v":""},{"$f":"IF($U89=ExcluirDelPLogro,\"\",IF(AND(H89=0,I89=0,J89=0),\"\",K89))","v":""},{"$f":"Planning!J73","v":{"v":0,"d":"0.00"}},{"v":0,"d":"0.00"},null,"",{"$f":"IF($U89=ExcluirDelPLogro,\"\",IF(AND(M89=0,N89=0,O89=0),\"\",P89))","v":""},{"$f":"SUMIFS($J$25:$J$224,$C$25:$C$224,$C89,$G$25:$G$224,Lists!$A$16)","v":0},0,null,"",null,{"$f":"IF(C89=0,\"\",LEFT(INDEX(Lists!$H$5:$H$49,MATCH(C89,Lists!$G$5:$G$49,0),1),1))","v":""},null,0,"","",null,"0"]
[{"$f":"Planning!A74","v":"I066"},{"$f":"Planning!B74","v":0},{"$f":"Planning!C74","v":0},{"$f":"Planning!D74","v":0},{"$f":"Planning!E74","v":0},{"$f":"IF(Planning!G74<>0,Planning!G74,\"\")","v":""},{"$f":"Planning!H74","v":0},{"$f":"Planning!I74","v":0},{"$f":"IF(OR(W90=\"1\",AND(W90<>\"1\",G90=Lists!$A$17)),Y90,0)","v":0},null,{"$f":"IF(AND(W90=\"2\",G90<>Lists!$A$17),AA90,Z90)","v":""},"",{"$f":"Planning!J74","v":{"v":0,"d":"0.00"}},{"v":0,"d":"0.00"},null,{"$f":"IF(AND(M90=0,N90=0,O90=0),\"\",IF((M90+N90)>0,O90/(M90+N90),O90))","v":""},"",{"$f":"SUMIFS($J$25:$J$224,$C$25:$C$224,$C90,$G$25:$G$224,Lists!$A$16)","v":0},{"$f":"SUMIFS($O$25:$O$224,$C$25:$C$224,$C90,$G$25:$G$224,\"<>0\")","v":0},null,{"$f":"IF(B90=0,\"\",IF(LEFT(B90,1)=\"1\",\"1\",\"2\"))","v":""},null,{"$f":"IF(C90=0,\"\",LEFT(INDEX(Lists!$H$5:$H$49,MATCH(C90,Lists!$G$5:$G$49,0),1),1))","v":""},null,0,{"$f":"IF(AND(H90=0,I90=0,J90=0),\"\",IF((H90+I90)>0,J90/(H90+I90),J90))","v":""},{"$f":"IF(AND(H90=0,I90=0,J90=0),\"\",IF(J90>0,H90/J90,0))","v":""},null,{"$f":"U90&C90","v":"0"}]
[{"$f":"Planning!A75","v":"I067"},{"$f":"Planning!B75","v":0},{"$f":"Planning!C75","v":0},{"$f":"Planning!D75","v":0},{"$f":"Planning!E75","v":0},{"$f":"IF(Planning!G75<>0,Planning!G75,\"\")","v":""},{"$f":"Planning!H75","v":0},{"$f":"Planning!I75","v":0},{"$f":"IF(OR(W91=\"1\",AND(W91<>\"1\",G91=Lists!$A$17)),Y91,0)","v":0},null,{"$f":"IF(AND(W91=\"2\",G91<>Lists!$A$17),AA91,Z91)","v":""},"",{"$f":"Planning!J75","v":{"v":0,"d":"0.00"}},{"v":0,"d":"0.00"},null,"","",{"$f":"SUMIFS($J$25:$J$224,$C$25:$C$224,$C91,$G$25:$G$224,Lists!$A$16)","v":0},0,null,"",null,{"$f":"IF(C91=0,\"\",LEFT(INDEX(Lists!$H$5:$H$49,MATCH(C91,Lists!$G$5:$G$49,0),1),1))","v":""},null,0,"","",null,"0"]
[{"$f":"Planning!A76","v":"I068"},{"$f":"Planning!B76","v":0},{"$f":"Planning!C76","v":0},{"$f":"Planning!D76","v":0},{"$f":"Planning!E76","v":0},{"$f":"IF(Planning!G76<>0,Planning!G76,\"\")","v":""},{"$f":"Planning!H76","v":0},{"$f":"Planning!I76","v":0},{"$f":"IF(OR(W92=\"1\",AND(W92<>\"1\",G92=Lists!$A$17)),Y92,0)","v":0},null,{"$f":"IF(AND(W92=\"2\",G92<>Lists!$A$17),AA92,Z92)","v":""},"",{"$f":"Planning!J76","v":{"v":0,"d":"0.00"}},{"v":0,"d":"0.00"},null,"","",{"$f":"SUMIFS($J$25:$J$224,$C$25:$C$224,$C92,$G$25:$G$224,Lists!$A$16)","v":0},0,null,"",null,{"$f":"IF(C92=0,\"\",LEFT(INDEX(Lists!$H$5:$H$49,MATCH(C92,Lists!$G$5:$G$49,0),1),1))","v":""},null,0,"","",null,"0"]
[{"$f":"Planning!A77","v":"I069"},{"$f":"Planning!B77","v":0},{"$f":"Planning!C77","v":0},{"$f":"Planning!D77","v":0},{"$f":"Planning!E77","v":0},{"$f":"IF(Planning!G77<>0,Planning!G77,\"\")","v":""},{"$f":"Planning!H77","v":0},{"$f":"Planning!I77","v":0},{"$f":"IF(OR(W93=\"1\",AND(W93<>\"1\",G93=Lists!$A$17)),Y93,0)","v":0},null,{"$f":"IF(AND(W93=\"2\",G93<>Lists!$A$17),AA93,Z93)","v":""},"",{"$f":"Planning!J77","v":{"v":0,"d":"0.00"}},{"v":0,"d":"0.00"},null,"","",{"$f":"SUMIFS($J$25:$J$224,$C$25:$C$224,$C93,$G$25:$G$224,Lists!$A$16)","v":0},0,null,"",null,{"$f":"IF(C93=0,\"\",LEFT(INDEX(Lists!$H$5:$H$49,MATCH(C93,Lists!$G$5:$G$49,0),1),1))","v":""},null,0,"","",null,"0"]
[{"$f":"Planning!A78","v":"I070"},{"$f":"Planning!B78","v":0},{"$f":"Planning!C78","v":0},{"$f":"Planning!D78","v":0},{"$f":"Planning!E78","v":0},{"$f":"IF(Planning!G78<>0,Planning!G78,\"\")","v":""},{"$f":"Planning!H78","v":0},{"$f":"Planning!I78","v":0},{"$f":"IF(OR(W94=\"1\",AND(W94<>\"1\",G94=Lists!$A$17)),Y94,0)","v":0},null,{"$f":"IF(AND(W94=\"2\",G94<>Lists!$A$17),AA94,Z94)","v":""},"",{"$f":"Planning!J78","v":{"v":0,"d":"0.00"}},{"v":0,"d":"0.00"},null,"","",{"$f":"SUMIFS($J$25:$J$224,$C$25:$C$224,$C94,$G$25:$G$224,Lists!$A$16)","v":0},0,null,"",null,{"$f":"IF(C94=0,\"\",LEFT(INDEX(Lists!$H$5:$H$49,MATCH(C94,Lists!$G$5:$G$49,0),1),1))","v":""},null,0,"","",null,"0"]
[{"$f":"Planning!A79","v":"I071"},{"$f":"Planning!B79","v":0},{"$f":"Planning!C79","v":0},{"$f":"Planning!D79","v":0},{"$f":"Planning!E79","v":0},{"$f":"IF(Planning!G79<>0,Planning!G79,\"\")","v":""},{"$f":"Planning!H79","v":0},{"$f":"Planning!I79","v":0},{"$f":"IF(OR(W95=\"1\",AND(W95<>\"1\",G95=Lists!$A$17)),Y95,0)","v":0},null,{"$f":"IF(AND(W95=\"2\",G95<>Lists!$A$17),AA95,Z95)","v":""},"",{"$f":"Planning!J79","v":{"v":0,"d":"0.00"}},{"v":0,"d":"0.00"},null,"","",{"$f":"SUMIFS($J$25:$J$224,$C$25:$C$224,$C95,$G$25:$G$224,Lists!$A$16)","v":0},0,null,"",null,{"$f":"IF(C95=0,\"\",LEFT(INDEX(Lists!$H$5:$H$49,MATCH(C95,Lists!$G$5:$G$49,0),1),1))","v":""},null,0,"","",null,"0"]
[{"$f":"Planning!A80","v":"I072"},{"$f":"Planning!B80","v":0},{"$f":"Planning!C80","v":0},{"$f":"Planning!D80","v":0},{"$f":"Planning!E80","v":0},{"$f":"IF(Planning!G80<>0,Planning!G80,\"\")","v":""},{"$f":"Planning!H80","v":0},{"$f":"Planning!I80","v":0},{"$f":"IF(OR(W96=\"1\",AND(W96<>\"1\",G96=Lists!$A$17)),Y96,0)","v":0},null,{"$f":"IF(AND(W96=\"2\",G96<>Lists!$A$17),AA96,Z96)","v":""},"",{"$f":"Planning!J80","v":{"v":0,"d":"0.00"}},{"v":0,"d":"0.00"},null,"","",{"$f":"SUMIFS($J$25:$J$224,$C$25:$C$224,$C96,$G$25:$G$224,Lists!$A$16)","v":0},0,null,"",null,{"$f":"IF(C96=0,\"\",LEFT(INDEX(Lists!$H$5:$H$49,MATCH(C96,Lists!$G$5:$G$49,0),1),1))","v":""},null,0,"","",null,"0"]
[{"$f":"Planning!A81","v":"I073"},{"$f":"Planning!B81","v":0},{"$f":"Planning!C81","v":0},{"$f":"Planning!D81","v":0},{"$f":"Planning!E81","v":0},{"$f":"IF(Planning!G81<>0,Planning!G81,\"\")","v":""},{"$f":"Planning!H81","v":0},{"$f":"Planning!I81","v":0},{"$f":"IF(OR(W97=\"1\",AND(W97<>\"1\",G97=Lists!$A$17)),Y97,0)","v":0},null,{"$f":"IF(AND(W97=\"2\",G97<>Lists!$A$17),AA97,Z97)","v":""},"",{"$f":"Planning!J81","v":{"v":0,"d":"0.00"}},{"v":0,"d":"0.00"},null,"","",{"$f":"SUMIFS($J$25:$J$224,$C$25:$C$224,$C97,$G$25:$G$224,Lists!$A$16)","v":0},0,null,"",null,{"$f":"IF(C97=0,\"\",LEFT(INDEX(Lists!$H$5:$H$49,MATCH(C97,Lists!$G$5:$G$49,0),1),1))","v":""},null,0,"","",null,"0"]
[{"$f":"Planning!A82","v":"I074"},{"$f":"Planning!B82","v":0},{"$f":"Planning!C82","v":0},{"$f":"Planning!D82","v":0},{"$f":"Planning!E82","v":0},{"$f":"IF(Planning!G82<>0,Planning!G82,\"\")","v":""},{"$f":"Planning!H82","v":0},{"$f":"Planning!I82","v":0},{"$f":"IF(OR(W98=\"1\",AND(W98<>\"1\",G98=Lists!$A$17)),Y98,0)","v":0},null,{"$f":"IF(AND(W98=\"2\",G98<>Lists!$A$17),AA98,Z98)","v":""},"",{"$f":"Planning!J82","v":{"v":0,"d":"0.00"}},{"v":0,"d":"0.00"},null,"","",{"$f":"SUMIFS($J$25:$J$224,$C$25:$C$224,$C98,$G$25:$G$224,Lists!$A$16)","v":0},0,null,"",null,{"$f":"IF(C98=0,\"\",LEFT(INDEX(Lists!$H$5:$H$49,MATCH(C98,Lists!$G$5:$G$49,0),1),1))","v":""},null,0,"","",null,"0"]
[{"$f":"Planning!A83","v":"I075"},{"$f":"Planning!B83","v":0},{"$f":"Planning!C83","v":0},{"$f":"Planning!D83","v":0},{"$f":"Planning!E83","v":0},{"$f":"IF(Planning!G83<>0,Planning!G83,\"\")","v":""},{"$f":"Planning!H83","v":0},{"$f":"Planning!I83","v":0},{"$f":"IF(OR(W99=\"1\",AND(W99<>\"1\",G99=Lists!$A$17)),Y99,0)","v":0},null,{"$f":"IF(AND(W99=\"2\",G99<>Lists!$A$17),AA99,Z99)","v":""},"",{"$f":"Planning!J83","v":{"v":0,"d":"0.00"}},{"v":0,"d":"0.00"},null,"","",{"$f":"SUMIFS($J$25:$J$224,$C$25:$C$224,$C99,$G$25:$G$224,Lists!$A$16)","v":0},0,null,"",null,{"$f":"IF(C99=0,\"\",LEFT(INDEX(Lists!$H$5:$H$49,MATCH(C99,Lists!$G$5:$G$49,0),1),1))","v":""},null,0,"","",null,"0"]
[{"$f":"Planning!A84","v":"I076"},{"$f":"Planning!B84","v":0},{"$f":"Planning!C84","v":0},{"$f":"Planning!D84","v":0},{"$f":"Planning!E84","v":0},{"$f":"IF(Planning!G84<>0,Planning!G84,\"\")","v":""},{"$f":"Planning!H84","v":0},{"$f":"Planning!I84","v":0},{"$f":"IF(OR(W100=\"1\",AND(W100<>\"1\",G100=Lists!$A$17)),Y100,0)","v":0},null,{"$f":"IF(AND(W100=\"2\",G100<>Lists!$A$17),AA100,Z100)","v":""},"",{"$f":"Planning!J84","v":{"v":0,"d":"0.00"}},{"v":0,"d":"0.00"},null,"","",{"$f":"SUMIFS($J$25:$J$224,$C$25:$C$224,$C100,$G$25:$G$224,Lists!$A$16)","v":0},0,null,"",null,{"$f":"IF(C100=0,\"\",LEFT(INDEX(Lists!$H$5:$H$49,MATCH(C100,Lists!$G$5:$G$49,0),1),1))","v":""},null,0,"","",null,"0"]
[{"$f":"Planning!A85","v":"I077"},{"$f":"Planning!B85","v":0},{"$f":"Planning!C85","v":0},{"$f":"Planning!D85","v":0},{"$f":"Planning!E85","v":0},{"$f":"IF(Planning!G85<>0,Planning!G85,\"\")","v":""},{"$f":"Planning!H85","v":0},{"$f":"Planning!I85","v":0},{"$f":"IF(OR(W101=\"1\",AND(W101<>\"1\",G101=Lists!$A$17)),Y101,0)","v":0},null,{"$f":"IF(AND(W101=\"2\",G101<>Lists!$A$17),AA101,Z101)","v":""},"",{"$f":"Planning!J85","v":{"v":0,"d":"0.00"}},{"v":0,"d":"0.00"},null,"","",{"$f":"SUMIFS($J$25:$J$224,$C$25:$C$224,$C101,$G$25:$G$224,Lists!$A$16)","v":0},0,null,"",null,{"$f":"IF(C101=0,\"\",LEFT(INDEX(Lists!$H$5:$H$49,MATCH(C101,Lists!$G$5:$G$49,0),1),1))","v":""},null,0,"","",null,"0"]
[{"$f":"Planning!A86","v":"I078"},{"$f":"Planning!B86","v":0},{"$f":"Planning!C86","v":0},{"$f":"Planning!D86","v":0},{"$f":"Planning!E86","v":0},{"$f":"IF(Planning!G86<>0,Planning!G86,\"\")","v":""},{"$f":"Planning!H86","v":0},{"$f":"Planning!I86","v":0},{"$f":"IF(OR(W102=\"1\",AND(W102<>\"1\",G102=Lists!$A$17)),Y102,0)","v":0},null,{"$f":"IF(AND(W102=\"2\",G102<>Lists!$A$17),AA102,Z102)","v":""},"",{"$f":"Planning!J86","v":{"v":0,"d":"0.00"}},{"v":0,"d":"0.00"},null,"","",{"$f":"SUMIFS($J$25:$J$224,$C$25:$C$224,$C102,$G$25:$G$224,Lists!$A$16)","v":0},0,null,"",null,{"$f":"IF(C102=0,\"\",LEFT(INDEX(Lists!$H$5:$H$49,MATCH(C102,Lists!$G$5:$G$49,0),1),1))","v":""},null,0,"","",null,"0"]
[{"$f":"Planning!A87","v":"I079"},{"$f":"Planning!B87","v":0},{"$f":"Planning!C87","v":0},{"$f":"Planning!D87","v":0},{"$f":"Planning!E87","v":0},{"$f":"IF(Planning!G87<>0,Planning!G87,\"\")","v":""},{"$f":"Planning!H87","v":0},{"$f":"Planning!I87","v":0},{"$f":"IF(OR(W103=\"1\",AND(W103<>\"1\",G103=Lists!$A$17)),Y103,0)","v":0},null,{"$f":"IF(AND(W103=\"2\",G103<>Lists!$A$17),AA103,Z103)","v":""},"",{"$f":"Planning!J87","v":{"v":0,"d":"0.00"}},{"v":0,"d":"0.00"},null,"","",{"$f":"SUMIFS($J$25:$J$224,$C$25:$C$224,$C103,$G$25:$G$224,Lists!$A$16)","v":0},0,null,"",null,{"$f":"IF(C103=0,\"\",LEFT(INDEX(Lists!$H$5:$H$49,MATCH(C103,Lists!$G$5:$G$49,0),1),1))","v":""},null,0,"","",null,"0"]
[{"$f":"Planning!A88","v":"I080"},{"$f":"Planning!B88","v":0},{"$f":"Planning!C88","v":0},{"$f":"Planning!D88","v":0},{"$f":"Planning!E88","v":0},{"$f":"IF(Planning!G88<>0,Planning!G88,\"\")","v":""},{"$f":"Planning!H88","v":0},{"$f":"Planning!I88","v":0},{"$f":"IF(OR(W104=\"1\",AND(W104<>\"1\",G104=Lists!$A$17)),Y104,0)","v":0},null,{"$f":"IF(AND(W104=\"2\",G104<>Lists!$A$17),AA104,Z104)","v":""},"",{"$f":"Planning!J88","v":{"v":0,"d":"0.00"}},{"v":0,"d":"0.00"},null,"","",{"$f":"SUMIFS($J$25:$J$224,$C$25:$C$224,$C104,$G$25:$G$224,Lists!$A$16)","v":0},0,null,"",null,{"$f":"IF(C104=0,\"\",LEFT(INDEX(Lists!$H$5:$H$49,MATCH(C104,Lists!$G$5:$G$49,0),1),1))","v":""},null,0,"","",null,"0"]
[{"$f":"Planning!A89","v":"I081"},{"$f":"Planning!B89","v":0},{"$f":"Planning!C89","v":0},{"$f":"Planning!D89","v":0},{"$f":"Planning!E89","v":0},{"$f":"IF(Planning!G89<>0,Planning!G89,\"\")","v":""},{"$f":"Planning!H89","v":0},{"$f":"Planning!I89","v":0},{"$f":"IF(OR(W105=\"1\",AND(W105<>\"1\",G105=Lists!$A$17)),Y105,0)","v":0},null,{"$f":"IF(AND(W105=\"2\",G105<>Lists!$A$17),AA105,Z105)","v":""},"",{"$f":"Planning!J89","v":{"v":0,"d":"0.00"}},{"v":0,"d":"0.00"},null,"","",{"$f":"SUMIFS($J$25:$J$224,$C$25:$C$224,$C105,$G$25:$G$224,Lists!$A$16)","v":0},0,null,"",null,{"$f":"IF(C105=0,\"\",LEFT(INDEX(Lists!$H$5:$H$49,MATCH(C105,Lists!$G$5:$G$49,0),1),1))","v":""},null,0,"","",null,"0"]
[{"$f":"Planning!A90","v":"I082"},{"$f":"Planning!B90","v":0},{"$f":"Planning!C90","v":0},{"$f":"Planning!D90","v":0},{"$f":"Planning!E90","v":0},{"$f":"IF(Planning!G90<>0,Planning!G90,\"\")","v":""},{"$f":"Planning!H90","v":0},{"$f":"Planning!I90","v":0},{"$f":"IF(OR(W106=\"1\",AND(W106<>\"1\",G106=Lists!$A$17)),Y106,0)","v":0},null,{"$f":"IF(AND(W106=\"2\",G106<>Lists!$A$17),AA106,Z106)","v":""},"",{"$f":"Planning!J90","v":{"v":0,"d":"0.00"}},{"v":0,"d":"0.00"},null,"","",{"$f":"SUMIFS($J$25:$J$224,$C$25:$C$224,$C106,$G$25:$G$224,Lists!$A$16)","v":0},0,null,"",null,{"$f":"IF(C106=0,\"\",LEFT(INDEX(Lists!$H$5:$H$49,MATCH(C106,Lists!$G$5:$G$49,0),1),1))","v":""},null,0,"","",null,"0"]
[{"$f":"Planning!A91","v":"I083"},{"$f":"Planning!B91","v":0},{"$f":"Planning!C91","v":0},{"$f":"Planning!D91","v":0},{"$f":"Planning!E91","v":0},{"$f":"IF(Planning!G91<>0,Planning!G91,\"\")","v":""},{"$f":"Planning!H91","v":0},{"$f":"Planning!I91","v":0},{"$f":"IF(OR(W107=\"1\",AND(W107<>\"1\",G107=Lists!$A$17)),Y107,0)","v":0},null,{"$f":"IF(AND(W107=\"2\",G107<>Lists!$A$17),AA107,Z107)","v":""},"",{"$f":"Planning!J91","v":{"v":0,"d":"0.00"}},{"v":0,"d":"0.00"},null,"","",{"$f":"SUMIFS($J$25:$J$224,$C$25:$C$224,$C107,$G$25:$G$224,Lists!$A$16)","v":0},0,null,"",null,{"$f":"IF(C107=0,\"\",LEFT(INDEX(Lists!$H$5:$H$49,MATCH(C107,Lists!$G$5:$G$49,0),1),1))","v":""},null,0,"","",null,"0"]
[{"$f":"Planning!A92","v":"I084"},{"$f":"Planning!B92","v":0},{"$f":"Planning!C92","v":0},{"$f":"Planning!D92","v":0},{"$f":"Planning!E92","v":0},{"$f":"IF(Planning!G92<>0,Planning!G92,\"\")","v":""},{"$f":"Planning!H92","v":0},{"$f":"Planning!I92","v":0},{"$f":"IF(OR(W108=\"1\",AND(W108<>\"1\",G108=Lists!$A$17)),Y108,0)","v":0},null,{"$f":"IF(AND(W108=\"2\",G108<>Lists!$A$17),AA108,Z108)","v":""},"",{"$f":"Planning!J92","v":{"v":0,"d":"0.00"}},{"v":0,"d":"0.00"},null,"","",{"$f":"SUMIFS($J$25:$J$224,$C$25:$C$224,$C108,$G$25:$G$224,Lists!$A$16)","v":0},0,null,"",null,{"$f":"IF(C108=0,\"\",LEFT(INDEX(Lists!$H$5:$H$49,MATCH(C108,Lists!$G$5:$G$49,0),1),1))","v":""},null,0,"","",null,"0"]
[{"$f":"Planning!A93","v":"I085"},{"$f":"Planning!B93","v":0},{"$f":"Planning!C93","v":0},{"$f":"Planning!D93","v":0},{"$f":"Planning!E93","v":0},{"$f":"IF(Planning!G93<>0,Planning!G93,\"\")","v":""},{"$f":"Planning!H93","v":0},{"$f":"Planning!I93","v":0},{"$f":"IF(OR(W109=\"1\",AND(W109<>\"1\",G109=Lists!$A$17)),Y109,0)","v":0},null,{"$f":"IF(AND(W109=\"2\",G109<>Lists!$A$17),AA109,Z109)","v":""},"",{"$f":"Planning!J93","v":{"v":0,"d":"0.00"}},{"v":0,"d":"0.00"},null,"","",{"$f":"SUMIFS($J$25:$J$224,$C$25:$C$224,$C109,$G$25:$G$224,Lists!$A$16)","v":0},0,null,"",null,{"$f":"IF(C109=0,\"\",LEFT(INDEX(Lists!$H$5:$H$49,MATCH(C109,Lists!$G$5:$G$49,0),1),1))","v":""},null,0,"","",null,"0"]
[{"$f":"Planning!A94","v":"I086"},{"$f":"Planning!B94","v":0},{"$f":"Planning!C94","v":0},{"$f":"Planning!D94","v":0},{"$f":"Planning!E94","v":0},{"$f":"IF(Planning!G94<>0,Planning!G94,\"\")","v":""},{"$f":"Planning!H94","v":0},{"$f":"Planning!I94","v":0},{"$f":"IF(OR(W110=\"1\",AND(W110<>\"1\",G110=Lists!$A$17)),Y110,0)","v":0},null,{"$f":"IF(AND(W110=\"2\",G110<>Lists!$A$17),AA110,Z110)","v":""},"",{"$f":"Planning!J94","v":{"v":0,"d":"0.00"}},{"v":0,"d":"0.00"},null,"","",{"$f":"SUMIFS($J$25:$J$224,$C$25:$C$224,$C110,$G$25:$G$224,Lists!$A$16)","v":0},0,null,"",null,{"$f":"IF(C110=0,\"\",LEFT(INDEX(Lists!$H$5:$H$49,MATCH(C110,Lists!$G$5:$G$49,0),1),1))","v":""},null,0,"","",null,"0"]
[{"$f":"Planning!A95","v":"I087"},{"$f":"Planning!B95","v":0},{"$f":"Planning!C95","v":0},{"$f":"Planning!D95","v":0},{"$f":"Planning!E95","v":0},{"$f":"IF(Planning!G95<>0,Planning!G95,\"\")","v":""},{"$f":"Planning!H95","v":0},{"$f":"Planning!I95","v":0},{"$f":"IF(OR(W111=\"1\",AND(W111<>\"1\",G111=Lists!$A$17)),Y111,0)","v":0},null,{"$f":"IF(AND(W111=\"2\",G111<>Lists!$A$17),AA111,Z111)","v":""},"",{"$f":"Planning!J95","v":{"v":0,"d":"0.00"}},{"v":0,"d":"0.00"},null,"","",{"$f":"SUMIFS($J$25:$J$224,$C$25:$C$224,$C111,$G$25:$G$224,Lists!$A$16)","v":0},0,null,"",null,{"$f":"IF(C111=0,\"\",LEFT(INDEX(Lists!$H$5:$H$49,MATCH(C111,Lists!$G$5:$G$49,0),1),1))","v":""},null,0,"","",null,"0"]
[{"$f":"Planning!A96","v":"I088"},{"$f":"Planning!B96","v":0},{"$f":"Planning!C96","v":0},{"$f":"Planning!D96","v":0},{"$f":"Planning!E96","v":0},{"$f":"IF(Planning!G96<>0,Planning!G96,\"\")","v":""},{"$f":"Planning!H96","v":0},{"$f":"Planning!I96","v":0},{"$f":"IF(OR(W112=\"1\",AND(W112<>\"1\",G112=Lists!$A$17)),Y112,0)","v":0},null,{"$f":"IF(AND(W112=\"2\",G112<>Lists!$A$17),AA112,Z112)","v":""},"",{"$f":"Planning!J96","v":{"v":0,"d":"0.00"}},{"v":0,"d":"0.00"},null,"","",{"$f":"SUMIFS($J$25:$J$224,$C$25:$C$224,$C112,$G$25:$G$224,Lists!$A$16)","v":0},0,null,"",null,{"$f":"IF(C112=0,\"\",LEFT(INDEX(Lists!$H$5:$H$49,MATCH(C112,Lists!$G$5:$G$49,0),1),1))","v":""},null,0,"","",null,"0"]
[{"$f":"Planning!A97","v":"I089"},{"$f":"Planning!B97","v":0},{"$f":"Planning!C97","v":0},{"$f":"Planning!D97","v":0},{"$f":"Planning!E97","v":0},{"$f":"IF(Planning!G97<>0,Planning!G97,\"\")","v":""},{"$f":"Planning!H97","v":0},{"$f":"Planning!I97","v":0},{"$f":"IF(OR(W113=\"1\",AND(W113<>\"1\",G113=Lists!$A$17)),Y113,0)","v":0},null,{"$f":"IF(AND(W113=\"2\",G113<>Lists!$A$17),AA113,Z113)","v":""},"",{"$f":"Planning!J97","v":{"v":0,"d":"0.00"}},{"v":0,"d":"0.00"},null,"","",{"$f":"SUMIFS($J$25:$J$224,$C$25:$C$224,$C113,$G$25:$G$224,Lists!$A$16)","v":0},0,null,"",null,{"$f":"IF(C113=0,\"\",LEFT(INDEX(Lists!$H$5:$H$49,MATCH(C113,Lists!$G$5:$G$49,0),1),1))","v":""},null,0,"","",null,"0"]
[{"$f":"Planning!A98","v":"I090"},{"$f":"Planning!B98","v":0},{"$f":"Planning!C98","v":0},{"$f":"Planning!D98","v":0},{"$f":"Planning!E98","v":0},{"$f":"IF(Planning!G98<>0,Planning!G98,\"\")","v":""},{"$f":"Planning!H98","v":0},{"$f":"Planning!I98","v":0},{"$f":"IF(OR(W114=\"1\",AND(W114<>\"1\",G114=Lists!$A$17)),Y114,0)","v":0},null,{"$f":"IF(AND(W114=\"2\",G114<>Lists!$A$17),AA114,Z114)","v":""},"",{"$f":"Planning!J98","v":{"v":0,"d":"0.00"}},{"v":0,"d":"0.00"},null,"","",{"$f":"SUMIFS($J$25:$J$224,$C$25:$C$224,$C114,$G$25:$G$224,Lists!$A$16)","v":0},0,null,"",null,{"$f":"IF(C114=0,\"\",LEFT(INDEX(Lists!$H$5:$H$49,MATCH(C114,Lists!$G$5:$G$49,0),1),1))","v":""},null,0,"","",null,"0"]
[{"$f":"Planning!A99","v":"I091"},{"$f":"Planning!B99","v":0},{"$f":"Planning!C99","v":0},{"$f":"Planning!D99","v":0},{"$f":"Planning!E99","v":0},{"$f":"IF(Planning!G99<>0,Planning!G99,\"\")","v":""},{"$f":"Planning!H99","v":0},{"$f":"Planning!I99","v":0},{"$f":"IF(OR(W115=\"1\",AND(W115<>\"1\",G115=Lists!$A$17)),Y115,0)","v":0},null,{"$f":"IF(AND(W115=\"2\",G115<>Lists!$A$17),AA115,Z115)","v":""},"",{"$f":"Planning!J99","v":{"v":0,"d":"0.00"}},{"v":0,"d":"0.00"},null,"","",{"$f":"SUMIFS($J$25:$J$224,$C$25:$C$224,$C115,$G$25:$G$224,Lists!$A$16)","v":0},0,null,"",null,{"$f":"IF(C115=0,\"\",LEFT(INDEX(Lists!$H$5:$H$49,MATCH(C115,Lists!$G$5:$G$49,0),1),1))","v":""},null,0,"","",null,"0"]
[{"$f":"Planning!A100","v":"I092"},{"$f":"Planning!B100","v":0},{"$f":"Planning!C100","v":0},{"$f":"Planning!D100","v":0},{"$f":"Planning!E100","v":0},{"$f":"IF(Planning!G100<>0,Planning!G100,\"\")","v":""},{"$f":"Planning!H100","v":0},{"$f":"Planning!I100","v":0},{"$f":"IF(OR(W116=\"1\",AND(W116<>\"1\",G116=Lists!$A$17)),Y116,0)","v":0},null,{"$f":"IF(AND(W116=\"2\",G116<>Lists!$A$17),AA116,Z116)","v":""},"",{"$f":"Planning!J100","v":{"v":0,"d":"0.00"}},{"v":0,"d":"0.00"},null,"","",{"$f":"SUMIFS($J$25:$J$224,$C$25:$C$224,$C116,$G$25:$G$224,Lists!$A$16)","v":0},0,null,"",null,{"$f":"IF(C116=0,\"\",LEFT(INDEX(Lists!$H$5:$H$49,MATCH(C116,Lists!$G$5:$G$49,0),1),1))","v":""},null,0,"","",null,"0"]
[{"$f":"Planning!A101","v":"I093"},{"$f":"Planning!B101","v":0},{"$f":"Planning!C101","v":0},{"$f":"Planning!D101","v":0},{"$f":"Planning!E101","v":0},{"$f":"IF(Planning!G101<>0,Planning!G101,\"\")","v":""},{"$f":"Planning!H101","v":0},{"$f":"Planning!I101","v":0},{"$f":"IF(OR(W117=\"1\",AND(W117<>\"1\",G117=Lists!$A$17)),Y117,0)","v":0},null,{"$f":"IF(AND(W117=\"2\",G117<>Lists!$A$17),AA117,Z117)","v":""},"",{"$f":"Planning!J101","v":{"v":0,"d":"0.00"}},{"v":0,"d":"0.00"},null,"","",{"$f":"SUMIFS($J$25:$J$224,$C$25:$C$224,$C117,$G$25:$G$224,Lists!$A$16)","v":0},0,null,"",null,{"$f":"IF(C117=0,\"\",LEFT(INDEX(Lists!$H$5:$H$49,MATCH(C117,Lists!$G$5:$G$49,0),1),1))","v":""},null,0,"","",null,"0"]
[{"$f":"Planning!A102","v":"I094"},{"$f":"Planning!B102","v":0},{"$f":"Planning!C102","v":0},{"$f":"Planning!D102","v":0},{"$f":"Planning!E102","v":0},{"$f":"IF(Planning!G102<>0,Planning!G102,\"\")","v":""},{"$f":"Planning!H102","v":0},{"$f":"Planning!I102","v":0},{"$f":"IF(OR(W118=\"1\",AND(W118<>\"1\",G118=Lists!$A$17)),Y118,0)","v":0},null,{"$f":"IF(AND(W118=\"2\",G118<>Lists!$A$17),AA118,Z118)","v":""},"",{"$f":"Planning!J102","v":{"v":0,"d":"0.00"}},{"v":0,"d":"0.00"},null,"","",{"$f":"SUMIFS($J$25:$J$224,$C$25:$C$224,$C118,$G$25:$G$224,Lists!$A$16)","v":0},0,null,"",null,{"$f":"IF(C118=0,\"\",LEFT(INDEX(Lists!$H$5:$H$49,MATCH(C118,Lists!$G$5:$G$49,0),1),1))","v":""},null,0,"","",null,"0"]
[{"$f":"Planning!A103","v":"I095"},{"$f":"Planning!B103","v":0},{"$f":"Planning!C103","v":0},{"$f":"Planning!D103","v":0},{"$f":"Planning!E103","v":0},{"$f":"IF(Planning!G103<>0,Planning!G103,\"\")","v":""},{"$f":"Planning!H103","v":0},{"$f":"Planning!I103","v":0},{"$f":"IF(OR(W119=\"1\",AND(W119<>\"1\",G119=Lists!$A$17)),Y119,0)","v":0},null,{"$f":"IF(AND(W119=\"2\",G119<>Lists!$A$17),AA119,Z119)","v":""},"",{"$f":"Planning!J103","v":{"v":0,"d":"0.00"}},{"v":0,"d":"0.00"},null,"","",{"$f":"SUMIFS($J$25:$J$224,$C$25:$C$224,$C119,$G$25:$G$224,Lists!$A$16)","v":0},0,null,"",null,{"$f":"IF(C119=0,\"\",LEFT(INDEX(Lists!$H$5:$H$49,MATCH(C119,Lists!$G$5:$G$49,0),1),1))","v":""},null,0,"","",null,"0"]
[{"$f":"Planning!A104","v":"I096"},{"$f":"Planning!B104","v":0},{"$f":"Planning!C104","v":0},{"$f":"Planning!D104","v":0},{"$f":"Planning!E104","v":0},{"$f":"IF(Planning!G104<>0,Planning!G104,\"\")","v":""},{"$f":"Planning!H104","v":0},{"$f":"Planning!I104","v":0},{"$f":"IF(OR(W120=\"1\",AND(W120<>\"1\",G120=Lists!$A$17)),Y120,0)","v":0},null,{"$f":"IF(AND(W120=\"2\",G120<>Lists!$A$17),AA120,Z120)","v":""},"",{"$f":"Planning!J104","v":{"v":0,"d":"0.00"}},{"v":0,"d":"0.00"},null,"","",{"$f":"SUMIFS($J$25:$J$224,$C$25:$C$224,$C120,$G$25:$G$224,Lists!$A$16)","v":0},0,null,"",null,{"$f":"IF(C120=0,\"\",LEFT(INDEX(Lists!$H$5:$H$49,MATCH(C120,Lists!$G$5:$G$49,0),1),1))","v":""},null,0,"","",null,"0"]
[{"$f":"Planning!A105","v":"I097"},{"$f":"Planning!B105","v":0},{"$f":"Planning!C105","v":0},{"$f":"Planning!D105","v":0},{"$f":"Planning!E105","v":0},{"$f":"IF(Planning!G105<>0,Planning!G105,\"\")","v":""},{"$f":"Planning!H105","v":0},{"$f":"Planning!I105","v":0},{"$f":"IF(OR(W121=\"1\",AND(W121<>\"1\",G121=Lists!$A$17)),Y121,0)","v":0},null,{"$f":"IF(AND(W121=\"2\",G121<>Lists!$A$17),AA121,Z121)","v":""},{"$f":"IF($U121=ExcluirDelPLogro,\"\",IF(AND(H121=0,I121=0,J121=0),\"\",K121))","v":""},{"$f":"Planning!J105","v":{"v":0,"d":"0.00"}},{"v":0,"d":"0.00"},null,"",{"$f":"IF($U121=ExcluirDelPLogro,\"\",IF(AND(M121=0,N121=0,O121=0),\"\",P121))","v":""},{"$f":"SUMIFS($J$25:$J$224,$C$25:$C$224,$C121,$G$25:$G$224,Lists!$A$16)","v":0},0,null,"",null,{"$f":"IF(C121=0,\"\",LEFT(INDEX(Lists!$H$5:$H$49,MATCH(C121,Lists!$G$5:$G$49,0),1),1))","v":""},null,0,"","",null,"0"]
[{"$f":"Planning!A106","v":"I098"},{"$f":"Planning!B106","v":0},{"$f":"Planning!C106","v":0},{"$f":"Planning!D106","v":0},{"$f":"Planning!E106","v":0},{"$f":"IF(Planning!G106<>0,Planning!G106,\"\")","v":""},{"$f":"Planning!H106","v":0},{"$f":"Planning!I106","v":0},{"$f":"IF(OR(W122=\"1\",AND(W122<>\"1\",G122=Lists!$A$17)),Y122,0)","v":0},null,{"$f":"IF(AND(W122=\"2\",G122<>Lists!$A$17),AA122,Z122)","v":""},"",{"$f":"Planning!J106","v":{"v":0,"d":"0.00"}},{"v":0,"d":"0.00"},null,"","",{"$f":"SUMIFS($J$25:$J$224,$C$25:$C$224,$C122,$G$25:$G$224,Lists!$A$16)","v":0},0,null,"",null,{"$f":"IF(C122=0,\"\",LEFT(INDEX(Lists!$H$5:$H$49,MATCH(C122,Lists!$G$5:$G$49,0),1),1))","v":""},null,0,"","",null,"0"]
[{"$f":"Planning!A107","v":"I099"},{"$f":"Planning!B107","v":0},{"$f":"Planning!C107","v":0},{"$f":"Planning!D107","v":0},{"$f":"Planning!E107","v":0},{"$f":"IF(Planning!G107<>0,Planning!G107,\"\")","v":""},{"$f":"Planning!H107","v":0},{"$f":"Planning!I107","v":0},{"$f":"IF(OR(W123=\"1\",AND(W123<>\"1\",G123=Lists!$A$17)),Y123,0)","v":0},null,{"$f":"IF(AND(W123=\"2\",G123<>Lists!$A$17),AA123,Z123)","v":""},"",{"$f":"Planning!J107","v":{"v":0,"d":"0.00"}},{"v":0,"d":"0.00"},null,"","",{"$f":"SUMIFS($J$25:$J$224,$C$25:$C$224,$C123,$G$25:$G$224,Lists!$A$16)","v":0},0,null,"",null,{"$f":"IF(C123=0,\"\",LEFT(INDEX(Lists!$H$5:$H$49,MATCH(C123,Lists!$G$5:$G$49,0),1),1))","v":""},null,0,"","",null,"0"]
[{"$f":"Planning!A108","v":"I100"},{"$f":"Planning!B108","v":0},{"$f":"Planning!C108","v":0},{"$f":"Planning!D108","v":0},{"$f":"Planning!E108","v":0},{"$f":"IF(Planning!G108<>0,Planning!G108,\"\")","v":""},{"$f":"Planning!H108","v":0},{"$f":"Planning!I108","v":0},{"$f":"IF(OR(W124=\"1\",AND(W124<>\"1\",G124=Lists!$A$17)),Y124,0)","v":0},null,{"$f":"IF(AND(W124=\"2\",G124<>Lists!$A$17),AA124,Z124)","v":""},"",{"$f":"Planning!J108","v":{"v":0,"d":"0.00"}},{"v":0,"d":"0.00"},null,"","",{"$f":"SUMIFS($J$25:$J$224,$C$25:$C$224,$C124,$G$25:$G$224,Lists!$A$16)","v":0},0,null,"",null,{"$f":"IF(C124=0,\"\",LEFT(INDEX(Lists!$H$5:$H$49,MATCH(C124,Lists!$G$5:$G$49,0),1),1))","v":""},null,0,"","",null,"0"]
[{"$f":"Planning!A109","v":"I101"},{"$f":"Planning!B109","v":0},{"$f":"Planning!C109","v":0},{"$f":"Planning!D109","v":0},{"$f":"Planning!E109","v":0},{"$f":"IF(Planning!G109<>0,Planning!G109,\"\")","v":""},{"$f":"Planning!H109","v":0},{"$f":"Planning!I109","v":0},{"$f":"IF(OR(W125=\"1\",AND(W125<>\"1\",G125=Lists!$A$17)),Y125,0)","v":0},null,{"$f":"IF(AND(W125=\"2\",G125<>Lists!$A$17),AA125,Z125)","v":""},"",{"$f":"Planning!J109","v":{"v":0,"d":"0.00"}},{"v":0,"d":"0.00"},null,"","",{"$f":"SUMIFS($J$25:$J$224,$C$25:$C$224,$C125,$G$25:$G$224,Lists!$A$16)","v":0},0,null,"",null,{"$f":"IF(C125=0,\"\",LEFT(INDEX(Lists!$H$5:$H$49,MATCH(C125,Lists!$G$5:$G$49,0),1),1))","v":""},null,0,"","",null,"0"]
[{"$f":"Planning!A110","v":"I102"},{"$f":"Planning!B110","v":0},{"$f":"Planning!C110","v":0},{"$f":"Planning!D110","v":0},{"$f":"Planning!E110","v":0},{"$f":"IF(Planning!G110<>0,Planning!G110,\"\")","v":""},{"$f":"Planning!H110","v":0},{"$f":"Planning!I110","v":0},{"$f":"IF(OR(W126=\"1\",AND(W126<>\"1\",G126=Lists!$A$17)),Y126,0)","v":0},null,{"$f":"IF(AND(W126=\"2\",G126<>Lists!$A$17),AA126,Z126)","v":""},"",{"$f":"Planning!J110","v":{"v":0,"d":"0.00"}},{"v":0,"d":"0.00"},null,"","",{"$f":"SUMIFS($J$25:$J$224,$C$25:$C$224,$C126,$G$25:$G$224,Lists!$A$16)","v":0},0,null,"",null,{"$f":"IF(C126=0,\"\",LEFT(INDEX(Lists!$H$5:$H$49,MATCH(C126,Lists!$G$5:$G$49,0),1),1))","v":""},null,0,"","",null,"0"]
[{"$f":"Planning!A111","v":"I103"},{"$f":"Planning!B111","v":0},{"$f":"Planning!C111","v":0},{"$f":"Planning!D111","v":0},{"$f":"Planning!E111","v":0},{"$f":"IF(Planning!G111<>0,Planning!G111,\"\")","v":""},{"$f":"Planning!H111","v":0},{"$f":"Planning!I111","v":0},{"$f":"IF(OR(W127=\"1\",AND(W127<>\"1\",G127=Lists!$A$17)),Y127,0)","v":0},null,{"$f":"IF(AND(W127=\"2\",G127<>Lists!$A$17),AA127,Z127)","v":""},"",{"$f":"Planning!J111","v":{"v":0,"d":"0.00"}},{"v":0,"d":"0.00"},null,"","",{"$f":"SUMIFS($J$25:$J$224,$C$25:$C$224,$C127,$G$25:$G$224,Lists!$A$16)","v":0},0,null,"",null,{"$f":"IF(C127=0,\"\",LEFT(INDEX(Lists!$H$5:$H$49,MATCH(C127,Lists!$G$5:$G$49,0),1),1))","v":""},null,0,"","",null,"0"]
[{"$f":"Planning!A112","v":"I104"},{"$f":"Planning!B112","v":0},{"$f":"Planning!C112","v":0},{"$f":"Planning!D112","v":0},{"$f":"Planning!E112","v":0},{"$f":"IF(Planning!G112<>0,Planning!G112,\"\")","v":""},{"$f":"Planning!H112","v":0},{"$f":"Planning!I112","v":0},{"$f":"IF(OR(W128=\"1\",AND(W128<>\"1\",G128=Lists!$A$17)),Y128,0)","v":0},null,{"$f":"IF(AND(W128=\"2\",G128<>Lists!$A$17),AA128,Z128)","v":""},"",{"$f":"Planning!J112","v":{"v":0,"d":"0.00"}},{"v":0,"d":"0.00"},null,"","",{"$f":"SUMIFS($J$25:$J$224,$C$25:$C$224,$C128,$G$25:$G$224,Lists!$A$16)","v":0},0,null,"",null,{"$f":"IF(C128=0,\"\",LEFT(INDEX(Lists!$H$5:$H$49,MATCH(C128,Lists!$G$5:$G$49,0),1),1))","v":""},null,0,"","",null,"0"]
[{"$f":"Planning!A113","v":"I105"},{"$f":"Planning!B113","v":0},{"$f":"Planning!C113","v":0},{"$f":"Planning!D113","v":0},{"$f":"Planning!E113","v":0},{"$f":"IF(Planning!G113<>0,Planning!G113,\"\")","v":""},{"$f":"Planning!H113","v":0},{"$f":"Planning!I113","v":0},{"$f":"IF(OR(W129=\"1\",AND(W129<>\"1\",G129=Lists!$A$17)),Y129,0)","v":0},null,{"$f":"IF(AND(W129=\"2\",G129<>Lists!$A$17),AA129,Z129)","v":""},"",{"$f":"Planning!J113","v":{"v":0,"d":"0.00"}},{"v":0,"d":"0.00"},null,"","",{"$f":"SUMIFS($J$25:$J$224,$C$25:$C$224,$C129,$G$25:$G$224,Lists!$A$16)","v":0},0,null,"",null,{"$f":"IF(C129=0,\"\",LEFT(INDEX(Lists!$H$5:$H$49,MATCH(C129,Lists!$G$5:$G$49,0),1),1))","v":""},null,0,"","",null,"0"]
[{"$f":"Planning!A114","v":"I106"},{"$f":"Planning!B114","v":0},{"$f":"Planning!C114","v":0},{"$f":"Planning!D114","v":0},{"$f":"Planning!E114","v":0},{"$f":"IF(Planning!G114<>0,Planning!G114,\"\")","v":""},{"$f":"Planning!H114","v":0},{"$f":"Planning!I114","v":0},{"$f":"IF(OR(W130=\"1\",AND(W130<>\"1\",G130=Lists!$A$17)),Y130,0)","v":0},null,{"$f":"IF(AND(W130=\"2\",G130<>Lists!$A$17),AA130,Z130)","v":""},"",{"$f":"Planning!J114","v":{"v":0,"d":"0.00"}},{"v":0,"d":"0.00"},null,"","",{"$f":"SUMIFS($J$25:$J$224,$C$25:$C$224,$C130,$G$25:$G$224,Lists!$A$16)","v":0},0,null,"",null,{"$f":"IF(C130=0,\"\",LEFT(INDEX(Lists!$H$5:$H$49,MATCH(C130,Lists!$G$5:$G$49,0),1),1))","v":""},null,0,"","",null,"0"]
[{"$f":"Planning!A115","v":"I107"},{"$f":"Planning!B115","v":0},{"$f":"Planning!C115","v":0},{"$f":"Planning!D115","v":0},{"$f":"Planning!E115","v":0},{"$f":"IF(Planning!G115<>0,Planning!G115,\"\")","v":""},{"$f":"Planning!H115","v":0},{"$f":"Planning!I115","v":0},{"$f":"IF(OR(W131=\"1\",AND(W131<>\"1\",G131=Lists!$A$17)),Y131,0)","v":0},null,{"$f":"IF(AND(W131=\"2\",G131<>Lists!$A$17),AA131,Z131)","v":""},"",{"$f":"Planning!J115","v":{"v":0,"d":"0.00"}},{"v":0,"d":"0.00"},null,"","",{"$f":"SUMIFS($J$25:$J$224,$C$25:$C$224,$C131,$G$25:$G$224,Lists!$A$16)","v":0},0,null,"",null,{"$f":"IF(C131=0,\"\",LEFT(INDEX(Lists!$H$5:$H$49,MATCH(C131,Lists!$G$5:$G$49,0),1),1))","v":""},null,0,"","",null,"0"]
[{"$f":"Planning!A116","v":"I108"},{"$f":"Planning!B116","v":0},{"$f":"Planning!C116","v":0},{"$f":"Planning!D116","v":0},{"$f":"Planning!E116","v":0},{"$f":"IF(Planning!G116<>0,Planning!G116,\"\")","v":""},{"$f":"Planning!H116","v":0},{"$f":"Planning!I116","v":0},{"$f":"IF(OR(W132=\"1\",AND(W132<>\"1\",G132=Lists!$A$17)),Y132,0)","v":0},null,{"$f":"IF(AND(W132=\"2\",G132<>Lists!$A$17),AA132,Z132)","v":""},"",{"$f":"Planning!J116","v":{"v":0,"d":"0.00"}},{"v":0,"d":"0.00"},null,"","",{"$f":"SUMIFS($J$25:$J$224,$C$25:$C$224,$C132,$G$25:$G$224,Lists!$A$16)","v":0},0,null,"",null,{"$f":"IF(C132=0,\"\",LEFT(INDEX(Lists!$H$5:$H$49,MATCH(C132,Lists!$G$5:$G$49,0),1),1))","v":""},null,0,"","",null,"0"]
[{"$f":"Planning!A117","v":"I109"},{"$f":"Planning!B117","v":0},{"$f":"Planning!C117","v":0},{"$f":"Planning!D117","v":0},{"$f":"Planning!E117","v":0},{"$f":"IF(Planning!G117<>0,Planning!G117,\"\")","v":""},{"$f":"Planning!H117","v":0},{"$f":"Planning!I117","v":0},{"$f":"IF(OR(W133=\"1\",AND(W133<>\"1\",G133=Lists!$A$17)),Y133,0)","v":0},null,{"$f":"IF(AND(W133=\"2\",G133<>Lists!$A$17),AA133,Z133)","v":""},"",{"$f":"Planning!J117","v":{"v":0,"d":"0.00"}},{"v":0,"d":"0.00"},null,"","",{"$f":"SUMIFS($J$25:$J$224,$C$25:$C$224,$C133,$G$25:$G$224,Lists!$A$16)","v":0},0,null,"",null,{"$f":"IF(C133=0,\"\",LEFT(INDEX(Lists!$H$5:$H$49,MATCH(C133,Lists!$G$5:$G$49,0),1),1))","v":""},null,0,"","",null,"0"]
[{"$f":"Planning!A118","v":"I110"},{"$f":"Planning!B118","v":0},{"$f":"Planning!C118","v":0},{"$f":"Planning!D118","v":0},{"$f":"Planning!E118","v":0},{"$f":"IF(Planning!G118<>0,Planning!G118,\"\")","v":""},{"$f":"Planning!H118","v":0},{"$f":"Planning!I118","v":0},{"$f":"IF(OR(W134=\"1\",AND(W134<>\"1\",G134=Lists!$A$17)),Y134,0)","v":0},null,{"$f":"IF(AND(W134=\"2\",G134<>Lists!$A$17),AA134,Z134)","v":""},"",{"$f":"Planning!J118","v":{"v":0,"d":"0.00"}},{"v":0,"d":"0.00"},null,"","",{"$f":"SUMIFS($J$25:$J$224,$C$25:$C$224,$C134,$G$25:$G$224,Lists!$A$16)","v":0},0,null,"",null,{"$f":"IF(C134=0,\"\",LEFT(INDEX(Lists!$H$5:$H$49,MATCH(C134,Lists!$G$5:$G$49,0),1),1))","v":""},null,0,"","",null,"0"]
[{"$f":"Planning!A119","v":"I111"},{"$f":"Planning!B119","v":0},{"$f":"Planning!C119","v":0},{"$f":"Planning!D119","v":0},{"$f":"Planning!E119","v":0},{"$f":"IF(Planning!G119<>0,Planning!G119,\"\")","v":""},{"$f":"Planning!H119","v":0},{"$f":"Planning!I119","v":0},{"$f":"IF(OR(W135=\"1\",AND(W135<>\"1\",G135=Lists!$A$17)),Y135,0)","v":0},null,{"$f":"IF(AND(W135=\"2\",G135<>Lists!$A$17),AA135,Z135)","v":""},"",{"$f":"Planning!J119","v":{"v":0,"d":"0.00"}},{"v":0,"d":"0.00"},null,"","",{"$f":"SUMIFS($J$25:$J$224,$C$25:$C$224,$C135,$G$25:$G$224,Lists!$A$16)","v":0},0,null,"",null,{"$f":"IF(C135=0,\"\",LEFT(INDEX(Lists!$H$5:$H$49,MATCH(C135,Lists!$G$5:$G$49,0),1),1))","v":""},null,0,"","",null,"0"]
[{"$f":"Planning!A120","v":"I112"},{"$f":"Planning!B120","v":0},{"$f":"Planning!C120","v":0},{"$f":"Planning!D120","v":0},{"$f":"Planning!E120","v":0},{"$f":"IF(Planning!G120<>0,Planning!G120,\"\")","v":""},{"$f":"Planning!H120","v":0},{"$f":"Planning!I120","v":0},{"$f":"IF(OR(W136=\"1\",AND(W136<>\"1\",G136=Lists!$A$17)),Y136,0)","v":0},null,{"$f":"IF(AND(W136=\"2\",G136<>Lists!$A$17),AA136,Z136)","v":""},"",{"$f":"Planning!J120","v":{"v":0,"d":"0.00"}},{"v":0,"d":"0.00"},null,"","",{"$f":"SUMIFS($J$25:$J$224,$C$25:$C$224,$C136,$G$25:$G$224,Lists!$A$16)","v":0},0,null,"",null,{"$f":"IF(C136=0,\"\",LEFT(INDEX(Lists!$H$5:$H$49,MATCH(C136,Lists!$G$5:$G$49,0),1),1))","v":""},null,0,"","",null,"0"]
[{"$f":"Planning!A121","v":"I113"},{"$f":"Planning!B121","v":0},{"$f":"Planning!C121","v":0},{"$f":"Planning!D121","v":0},{"$f":"Planning!E121","v":0},{"$f":"IF(Planning!G121<>0,Planning!G121,\"\")","v":""},{"$f":"Planning!H121","v":0},{"$f":"Planning!I121","v":0},{"$f":"IF(OR(W137=\"1\",AND(W137<>\"1\",G137=Lists!$A$17)),Y137,0)","v":0},null,{"$f":"IF(AND(W137=\"2\",G137<>Lists!$A$17),AA137,Z137)","v":""},"",{"$f":"Planning!J121","v":{"v":0,"d":"0.00"}},{"v":0,"d":"0.00"},null,"","",{"$f":"SUMIFS($J$25:$J$224,$C$25:$C$224,$C137,$G$25:$G$224,Lists!$A$16)","v":0},0,null,"",null,{"$f":"IF(C137=0,\"\",LEFT(INDEX(Lists!$H$5:$H$49,MATCH(C137,Lists!$G$5:$G$49,0),1),1))","v":""},null,0,"","",null,"0"]
[{"$f":"Planning!A122","v":"I114"},{"$f":"Planning!B122","v":0},{"$f":"Planning!C122","v":0},{"$f":"Planning!D122","v":0},{"$f":"Planning!E122","v":0},{"$f":"IF(Planning!G122<>0,Planning!G122,\"\")","v":""},{"$f":"Planning!H122","v":0},{"$f":"Planning!I122","v":0},{"$f":"IF(OR(W138=\"1\",AND(W138<>\"1\",G138=Lists!$A$17)),Y138,0)","v":0},null,{"$f":"IF(AND(W138=\"2\",G138<>Lists!$A$17),AA138,Z138)","v":""},"",{"$f":"Planning!J122","v":{"v":0,"d":"0.00"}},{"v":0,"d":"0.00"},null,"","",{"$f":"SUMIFS($J$25:$J$224,$C$25:$C$224,$C138,$G$25:$G$224,Lists!$A$16)","v":0},0,null,"",null,{"$f":"IF(C138=0,\"\",LEFT(INDEX(Lists!$H$5:$H$49,MATCH(C138,Lists!$G$5:$G$49,0),1),1))","v":""},null,0,"","",null,"0"]
[{"$f":"Planning!A123","v":"I115"},{"$f":"Planning!B123","v":0},{"$f":"Planning!C123","v":0},{"$f":"Planning!D123","v":0},{"$f":"Planning!E123","v":0},{"$f":"IF(Planning!G123<>0,Planning!G123,\"\")","v":""},{"$f":"Planning!H123","v":0},{"$f":"Planning!I123","v":0},{"$f":"IF(OR(W139=\"1\",AND(W139<>\"1\",G139=Lists!$A$17)),Y139,0)","v":0},null,{"$f":"IF(AND(W139=\"2\",G139<>Lists!$A$17),AA139,Z139)","v":""},"",{"$f":"Planning!J123","v":{"v":0,"d":"0.00"}},{"v":0,"d":"0.00"},null,"","",{"$f":"SUMIFS($J$25:$J$224,$C$25:$C$224,$C139,$G$25:$G$224,Lists!$A$16)","v":0},0,null,"",null,{"$f":"IF(C139=0,\"\",LEFT(INDEX(Lists!$H$5:$H$49,MATCH(C139,Lists!$G$5:$G$49,0),1),1))","v":""},null,0,"","",null,"0"]
[{"$f":"Planning!A124","v":"I116"},{"$f":"Planning!B124","v":0},{"$f":"Planning!C124","v":0},{"$f":"Planning!D124","v":0},{"$f":"Planning!E124","v":0},{"$f":"IF(Planning!G124<>0,Planning!G124,\"\")","v":""},{"$f":"Planning!H124","v":0},{"$f":"Planning!I124","v":0},{"$f":"IF(OR(W140=\"1\",AND(W140<>\"1\",G140=Lists!$A$17)),Y140,0)","v":0},null,{"$f":"IF(AND(W140=\"2\",G140<>Lists!$A$17),AA140,Z140)","v":""},"",{"$f":"Planning!J124","v":{"v":0,"d":"0.00"}},{"v":0,"d":"0.00"},null,"","",{"$f":"SUMIFS($J$25:$J$224,$C$25:$C$224,$C140,$G$25:$G$224,Lists!$A$16)","v":0},0,null,"",null,{"$f":"IF(C140=0,\"\",LEFT(INDEX(Lists!$H$5:$H$49,MATCH(C140,Lists!$G$5:$G$49,0),1),1))","v":""},null,0,"","",null,"0"]
[{"$f":"Planning!A125","v":"I117"},{"$f":"Planning!B125","v":0},{"$f":"Planning!C125","v":0},{"$f":"Planning!D125","v":0},{"$f":"Planning!E125","v":0},{"$f":"IF(Planning!G125<>0,Planning!G125,\"\")","v":""},{"$f":"Planning!H125","v":0},{"$f":"Planning!I125","v":0},{"$f":"IF(OR(W141=\"1\",AND(W141<>\"1\",G141=Lists!$A$17)),Y141,0)","v":0},null,{"$f":"IF(AND(W141=\"2\",G141<>Lists!$A$17),AA141,Z141)","v":""},"",{"$f":"Planning!J125","v":{"v":0,"d":"0.00"}},{"v":0,"d":"0.00"},null,"","",{"$f":"SUMIFS($J$25:$J$224,$C$25:$C$224,$C141,$G$25:$G$224,Lists!$A$16)","v":0},0,null,"",null,{"$f":"IF(C141=0,\"\",LEFT(INDEX(Lists!$H$5:$H$49,MATCH(C141,Lists!$G$5:$G$49,0),1),1))","v":""},null,0,"","",null,"0"]
[{"$f":"Planning!A126","v":"I118"},{"$f":"Planning!B126","v":0},{"$f":"Planning!C126","v":0},{"$f":"Planning!D126","v":0},{"$f":"Planning!E126","v":0},{"$f":"IF(Planning!G126<>0,Planning!G126,\"\")","v":""},{"$f":"Planning!H126","v":0},{"$f":"Planning!I126","v":0},{"$f":"IF(OR(W142=\"1\",AND(W142<>\"1\",G142=Lists!$A$17)),Y142,0)","v":0},null,{"$f":"IF(AND(W142=\"2\",G142<>Lists!$A$17),AA142,Z142)","v":""},"",{"$f":"Planning!J126","v":{"v":0,"d":"0.00"}},{"v":0,"d":"0.00"},null,"","",{"$f":"SUMIFS($J$25:$J$224,$C$25:$C$224,$C142,$G$25:$G$224,Lists!$A$16)","v":0},0,null,"",null,{"$f":"IF(C142=0,\"\",LEFT(INDEX(Lists!$H$5:$H$49,MATCH(C142,Lists!$G$5:$G$49,0),1),1))","v":""},null,0,"","",null,"0"]
[{"$f":"Planning!A127","v":"I119"},{"$f":"Planning!B127","v":0},{"$f":"Planning!C127","v":0},{"$f":"Planning!D127","v":0},{"$f":"Planning!E127","v":0},{"$f":"IF(Planning!G127<>0,Planning!G127,\"\")","v":""},{"$f":"Planning!H127","v":0},{"$f":"Planning!I127","v":0},{"$f":"IF(OR(W143=\"1\",AND(W143<>\"1\",G143=Lists!$A$17)),Y143,0)","v":0},null,{"$f":"IF(AND(W143=\"2\",G143<>Lists!$A$17),AA143,Z143)","v":""},"",{"$f":"Planning!J127","v":{"v":0,"d":"0.00"}},{"v":0,"d":"0.00"},null,"","",{"$f":"SUMIFS($J$25:$J$224,$C$25:$C$224,$C143,$G$25:$G$224,Lists!$A$16)","v":0},0,null,"",null,{"$f":"IF(C143=0,\"\",LEFT(INDEX(Lists!$H$5:$H$49,MATCH(C143,Lists!$G$5:$G$49,0),1),1))","v":""},null,0,"","",null,"0"]
[{"$f":"Planning!A128","v":"I120"},{"$f":"Planning!B128","v":0},{"$f":"Planning!C128","v":0},{"$f":"Planning!D128","v":0},{"$f":"Planning!E128","v":0},{"$f":"IF(Planning!G128<>0,Planning!G128,\"\")","v":""},{"$f":"Planning!H128","v":0},{"$f":"Planning!I128","v":0},{"$f":"IF(OR(W144=\"1\",AND(W144<>\"1\",G144=Lists!$A$17)),Y144,0)","v":0},null,{"$f":"IF(AND(W144=\"2\",G144<>Lists!$A$17),AA144,Z144)","v":""},"",{"$f":"Planning!J128","v":{"v":0,"d":"0.00"}},{"v":0,"d":"0.00"},null,"","",{"$f":"SUMIFS($J$25:$J$224,$C$25:$C$224,$C144,$G$25:$G$224,Lists!$A$16)","v":0},0,null,"",null,{"$f":"IF(C144=0,\"\",LEFT(INDEX(Lists!$H$5:$H$49,MATCH(C144,Lists!$G$5:$G$49,0),1),1))","v":""},null,0,"","",null,"0"]
[{"$f":"Planning!A129","v":"I121"},{"$f":"Planning!B129","v":0},{"$f":"Planning!C129","v":0},{"$f":"Planning!D129","v":0},{"$f":"Planning!E129","v":0},{"$f":"IF(Planning!G129<>0,Planning!G129,\"\")","v":""},{"$f":"Planning!H129","v":0},{"$f":"Planning!I129","v":0},{"$f":"IF(OR(W145=\"1\",AND(W145<>\"1\",G145=Lists!$A$17)),Y145,0)","v":0},null,{"$f":"IF(AND(W145=\"2\",G145<>Lists!$A$17),AA145,Z145)","v":""},"",{"$f":"Planning!J129","v":{"v":0,"d":"0.00"}},{"v":0,"d":"0.00"},null,"","",{"$f":"SUMIFS($J$25:$J$224,$C$25:$C$224,$C145,$G$25:$G$224,Lists!$A$16)","v":0},0,null,"",null,{"$f":"IF(C145=0,\"\",LEFT(INDEX(Lists!$H$5:$H$49,MATCH(C145,Lists!$G$5:$G$49,0),1),1))","v":""},null,0,"","",null,"0"]
[{"$f":"Planning!A130","v":"I122"},{"$f":"Planning!B130","v":0},{"$f":"Planning!C130","v":0},{"$f":"Planning!D130","v":0},{"$f":"Planning!E130","v":0},{"$f":"IF(Planning!G130<>0,Planning!G130,\"\")","v":""},{"$f":"Planning!H130","v":0},{"$f":"Planning!I130","v":0},{"$f":"IF(OR(W146=\"1\",AND(W146<>\"1\",G146=Lists!$A$17)),Y146,0)","v":0},null,{"$f":"IF(AND(W146=\"2\",G146<>Lists!$A$17),AA146,Z146)","v":""},"",{"$f":"Planning!J130","v":{"v":0,"d":"0.00"}},{"v":0,"d":"0.00"},null,"","",{"$f":"SUMIFS($J$25:$J$224,$C$25:$C$224,$C146,$G$25:$G$224,Lists!$A$16)","v":0},0,null,"",null,{"$f":"IF(C146=0,\"\",LEFT(INDEX(Lists!$H$5:$H$49,MATCH(C146,Lists!$G$5:$G$49,0),1),1))","v":""},null,0,"","",null,"0"]
[{"$f":"Planning!A131","v":"I123"},{"$f":"Planning!B131","v":0},{"$f":"Planning!C131","v":0},{"$f":"Planning!D131","v":0},{"$f":"Planning!E131","v":0},{"$f":"IF(Planning!G131<>0,Planning!G131,\"\")","v":""},{"$f":"Planning!H131","v":0},{"$f":"Planning!I131","v":0},{"$f":"IF(OR(W147=\"1\",AND(W147<>\"1\",G147=Lists!$A$17)),Y147,0)","v":0},null,{"$f":"IF(AND(W147=\"2\",G147<>Lists!$A$17),AA147,Z147)","v":""},"",{"$f":"Planning!J131","v":{"v":0,"d":"0.00"}},{"v":0,"d":"0.00"},null,"","",{"$f":"SUMIFS($J$25:$J$224,$C$25:$C$224,$C147,$G$25:$G$224,Lists!$A$16)","v":0},0,null,"",null,{"$f":"IF(C147=0,\"\",LEFT(INDEX(Lists!$H$5:$H$49,MATCH(C147,Lists!$G$5:$G$49,0),1),1))","v":""},null,0,"","",null,"0"]
[{"$f":"Planning!A132","v":"I124"},{"$f":"Planning!B132","v":0},{"$f":"Planning!C132","v":0},{"$f":"Planning!D132","v":0},{"$f":"Planning!E132","v":0},{"$f":"IF(Planning!G132<>0,Planning!G132,\"\")","v":""},{"$f":"Planning!H132","v":0},{"$f":"Planning!I132","v":0},{"$f":"IF(OR(W148=\"1\",AND(W148<>\"1\",G148=Lists!$A$17)),Y148,0)","v":0},null,{"$f":"IF(AND(W148=\"2\",G148<>Lists!$A$17),AA148,Z148)","v":""},"",{"$f":"Planning!J132","v":{"v":0,"d":"0.00"}},{"v":0,"d":"0.00"},null,"","",{"$f":"SUMIFS($J$25:$J$224,$C$25:$C$224,$C148,$G$25:$G$224,Lists!$A$16)","v":0},0,null,"",null,{"$f":"IF(C148=0,\"\",LEFT(INDEX(Lists!$H$5:$H$49,MATCH(C148,Lists!$G$5:$G$49,0),1),1))","v":""},null,0,"","",null,"0"]
[{"$f":"Planning!A133","v":"I125"},{"$f":"Planning!B133","v":0},{"$f":"Planning!C133","v":0},{"$f":"Planning!D133","v":0},{"$f":"Planning!E133","v":0},{"$f":"IF(Planning!G133<>0,Planning!G133,\"\")","v":""},{"$f":"Planning!H133","v":0},{"$f":"Planning!I133","v":0},{"$f":"IF(OR(W149=\"1\",AND(W149<>\"1\",G149=Lists!$A$17)),Y149,0)","v":0},null,{"$f":"IF(AND(W149=\"2\",G149<>Lists!$A$17),AA149,Z149)","v":""},"",{"$f":"Planning!J133","v":{"v":0,"d":"0.00"}},{"v":0,"d":"0.00"},null,"","",{"$f":"SUMIFS($J$25:$J$224,$C$25:$C$224,$C149,$G$25:$G$224,Lists!$A$16)","v":0},0,null,"",null,{"$f":"IF(C149=0,\"\",LEFT(INDEX(Lists!$H$5:$H$49,MATCH(C149,Lists!$G$5:$G$49,0),1),1))","v":""},null,0,"","",null,"0"]
[{"$f":"Planning!A134","v":"I126"},{"$f":"Planning!B134","v":0},{"$f":"Planning!C134","v":0},{"$f":"Planning!D134","v":0},{"$f":"Planning!E134","v":0},{"$f":"IF(Planning!G134<>0,Planning!G134,\"\")","v":""},{"$f":"Planning!H134","v":0},{"$f":"Planning!I134","v":0},{"$f":"IF(OR(W150=\"1\",AND(W150<>\"1\",G150=Lists!$A$17)),Y150,0)","v":0},null,{"$f":"IF(AND(W150=\"2\",G150<>Lists!$A$17),AA150,Z150)","v":""},"",{"$f":"Planning!J134","v":{"v":0,"d":"0.00"}},{"v":0,"d":"0.00"},null,"","",{"$f":"SUMIFS($J$25:$J$224,$C$25:$C$224,$C150,$G$25:$G$224,Lists!$A$16)","v":0},0,null,"",null,{"$f":"IF(C150=0,\"\",LEFT(INDEX(Lists!$H$5:$H$49,MATCH(C150,Lists!$G$5:$G$49,0),1),1))","v":""},null,0,"","",null,"0"]
[{"$f":"Planning!A135","v":"I127"},{"$f":"Planning!B135","v":0},{"$f":"Planning!C135","v":0},{"$f":"Planning!D135","v":0},{"$f":"Planning!E135","v":0},{"$f":"IF(Planning!G135<>0,Planning!G135,\"\")","v":""},{"$f":"Planning!H135","v":0},{"$f":"Planning!I135","v":0},{"$f":"IF(OR(W151=\"1\",AND(W151<>\"1\",G151=Lists!$A$17)),Y151,0)","v":0},null,{"$f":"IF(AND(W151=\"2\",G151<>Lists!$A$17),AA151,Z151)","v":""},"",{"$f":"Planning!J135","v":{"v":0,"d":"0.00"}},{"v":0,"d":"0.00"},null,"","",{"$f":"SUMIFS($J$25:$J$224,$C$25:$C$224,$C151,$G$25:$G$224,Lists!$A$16)","v":0},0,null,"",null,{"$f":"IF(C151=0,\"\",LEFT(INDEX(Lists!$H$5:$H$49,MATCH(C151,Lists!$G$5:$G$49,0),1),1))","v":""},null,0,"","",null,"0"]
[{"$f":"Planning!A136","v":"I128"},{"$f":"Planning!B136","v":0},{"$f":"Planning!C136","v":0},{"$f":"Planning!D136","v":0},{"$f":"Planning!E136","v":0},{"$f":"IF(Planning!G136<>0,Planning!G136,\"\")","v":""},{"$f":"Planning!H136","v":0},{"$f":"Planning!I136","v":0},{"$f":"IF(OR(W152=\"1\",AND(W152<>\"1\",G152=Lists!$A$17)),Y152,0)","v":0},null,{"$f":"IF(AND(W152=\"2\",G152<>Lists!$A$17),AA152,Z152)","v":""},"",{"$f":"Planning!J136","v":{"v":0,"d":"0.00"}},{"v":0,"d":"0.00"},null,"","",{"$f":"SUMIFS($J$25:$J$224,$C$25:$C$224,$C152,$G$25:$G$224,Lists!$A$16)","v":0},0,null,"",null,{"$f":"IF(C152=0,\"\",LEFT(INDEX(Lists!$H$5:$H$49,MATCH(C152,Lists!$G$5:$G$49,0),1),1))","v":""},null,0,"","",null,"0"]
[{"$f":"Planning!A137","v":"I129"},{"$f":"Planning!B137","v":0},{"$f":"Planning!C137","v":0},{"$f":"Planning!D137","v":0},{"$f":"Planning!E137","v":0},{"$f":"IF(Planning!G137<>0,Planning!G137,\"\")","v":""},{"$f":"Planning!H137","v":0},{"$f":"Planning!I137","v":0},{"$f":"IF(OR(W153=\"1\",AND(W153<>\"1\",G153=Lists!$A$17)),Y153,0)","v":0},null,{"$f":"IF(AND(W153=\"2\",G153<>Lists!$A$17),AA153,Z153)","v":""},{"$f":"IF($U153=ExcluirDelPLogro,\"\",IF(AND(H153=0,I153=0,J153=0),\"\",K153))","v":""},{"$f":"Planning!J137","v":{"v":0,"d":"0.00"}},{"v":0,"d":"0.00"},null,"",{"$f":"IF($U153=ExcluirDelPLogro,\"\",IF(AND(M153=0,N153=0,O153=0),\"\",P153))","v":""},{"$f":"SUMIFS($J$25:$J$224,$C$25:$C$224,$C153,$G$25:$G$224,Lists!$A$16)","v":0},0,null,"",null,{"$f":"IF(C153=0,\"\",LEFT(INDEX(Lists!$H$5:$H$49,MATCH(C153,Lists!$G$5:$G$49,0),1),1))","v":""},null,0,"","",null,"0"]
[{"$f":"Planning!A138","v":"I130"},{"$f":"Planning!B138","v":0},{"$f":"Planning!C138","v":0},{"$f":"Planning!D138","v":0},{"$f":"Planning!E138","v":0},{"$f":"IF(Planning!G138<>0,Planning!G138,\"\")","v":""},{"$f":"Planning!H138","v":0},{"$f":"Planning!I138","v":0},{"$f":"IF(OR(W154=\"1\",AND(W154<>\"1\",G154=Lists!$A$17)),Y154,0)","v":0},null,{"$f":"IF(AND(W154=\"2\",G154<>Lists!$A$17),AA154,Z154)","v":""},"",{"$f":"Planning!J138","v":{"v":0,"d":"0.00"}},{"v":0,"d":"0.00"},null,{"$f":"IF(AND(M154=0,N154=0,O154=0),\"\",IF((M154+N154)>0,O154/(M154+N154),O154))","v":""},"",{"$f":"SUMIFS($J$25:$J$224,$C$25:$C$224,$C154,$G$25:$G$224,Lists!$A$16)","v":0},{"$f":"SUMIFS($O$25:$O$224,$C$25:$C$224,$C154,$G$25:$G$224,\"<>0\")","v":0},null,{"$f":"IF(B154=0,\"\",IF(LEFT(B154,1)=\"1\",\"1\",\"2\"))","v":""},null,{"$f":"IF(C154=0,\"\",LEFT(INDEX(Lists!$H$5:$H$49,MATCH(C154,Lists!$G$5:$G$49,0),1),1))","v":""},null,0,{"$f":"IF(AND(H154=0,I154=0,J154=0),\"\",IF((H154+I154)>0,J154/(H154+I154),J154))","v":""},{"$f":"IF(AND(H154=0,I154=0,J154=0),\"\",IF(J154>0,H154/J154,0))","v":""},null,{"$f":"U154&C154","v":"0"}]
[{"$f":"Planning!A139","v":"I131"},{"$f":"Planning!B139","v":0},{"$f":"Planning!C139","v":0},{"$f":"Planning!D139","v":0},{"$f":"Planning!E139","v":0},{"$f":"IF(Planning!G139<>0,Planning!G139,\"\")","v":""},{"$f":"Planning!H139","v":0},{"$f":"Planning!I139","v":0},{"$f":"IF(OR(W155=\"1\",AND(W155<>\"1\",G155=Lists!$A$17)),Y155,0)","v":0},null,{"$f":"IF(AND(W155=\"2\",G155<>Lists!$A$17),AA155,Z155)","v":""},"",{"$f":"Planning!J139","v":{"v":0,"d":"0.00"}},{"v":0,"d":"0.00"},null,"","",{"$f":"SUMIFS($J$25:$J$224,$C$25:$C$224,$C155,$G$25:$G$224,Lists!$A$16)","v":0},0,null,"",null,{"$f":"IF(C155=0,\"\",LEFT(INDEX(Lists!$H$5:$H$49,MATCH(C155,Lists!$G$5:$G$49,0),1),1))","v":""},null,0,"","",null,"0"]
[{"$f":"Planning!A140","v":"I132"},{"$f":"Planning!B140","v":0},{"$f":"Planning!C140","v":0},{"$f":"Planning!D140","v":0},{"$f":"Planning!E140","v":0},{"$f":"IF(Planning!G140<>0,Planning!G140,\"\")","v":""},{"$f":"Planning!H140","v":0},{"$f":"Planning!I140","v":0},{"$f":"IF(OR(W156=\"1\",AND(W156<>\"1\",G156=Lists!$A$17)),Y156,0)","v":0},null,{"$f":"IF(AND(W156=\"2\",G156<>Lists!$A$17),AA156,Z156)","v":""},"",{"$f":"Planning!J140","v":{"v":0,"d":"0.00"}},{"v":0,"d":"0.00"},null,"","",{"$f":"SUMIFS($J$25:$J$224,$C$25:$C$224,$C156,$G$25:$G$224,Lists!$A$16)","v":0},0,null,"",null,{"$f":"IF(C156=0,\"\",LEFT(INDEX(Lists!$H$5:$H$49,MATCH(C156,Lists!$G$5:$G$49,0),1),1))","v":""},null,0,"","",null,"0"]
[{"$f":"Planning!A141","v":"I133"},{"$f":"Planning!B141","v":0},{"$f":"Planning!C141","v":0},{"$f":"Planning!D141","v":0},{"$f":"Planning!E141","v":0},{"$f":"IF(Planning!G141<>0,Planning!G141,\"\")","v":""},{"$f":"Planning!H141","v":0},{"$f":"Planning!I141","v":0},{"$f":"IF(OR(W157=\"1\",AND(W157<>\"1\",G157=Lists!$A$17)),Y157,0)","v":0},null,{"$f":"IF(AND(W157=\"2\",G157<>Lists!$A$17),AA157,Z157)","v":""},"",{"$f":"Planning!J141","v":{"v":0,"d":"0.00"}},{"v":0,"d":"0.00"},null,"","",{"$f":"SUMIFS($J$25:$J$224,$C$25:$C$224,$C157,$G$25:$G$224,Lists!$A$16)","v":0},0,null,"",null,{"$f":"IF(C157=0,\"\",LEFT(INDEX(Lists!$H$5:$H$49,MATCH(C157,Lists!$G$5:$G$49,0),1),1))","v":""},null,0,"","",null,"0"]
[{"$f":"Planning!A142","v":"I134"},{"$f":"Planning!B142","v":0},{"$f":"Planning!C142","v":0},{"$f":"Planning!D142","v":0},{"$f":"Planning!E142","v":0},{"$f":"IF(Planning!G142<>0,Planning!G142,\"\")","v":""},{"$f":"Planning!H142","v":0},{"$f":"Planning!I142","v":0},{"$f":"IF(OR(W158=\"1\",AND(W158<>\"1\",G158=Lists!$A$17)),Y158,0)","v":0},null,{"$f":"IF(AND(W158=\"2\",G158<>Lists!$A$17),AA158,Z158)","v":""},"",{"$f":"Planning!J142","v":{"v":0,"d":"0.00"}},{"v":0,"d":"0.00"},null,"","",{"$f":"SUMIFS($J$25:$J$224,$C$25:$C$224,$C158,$G$25:$G$224,Lists!$A$16)","v":0},0,null,"",null,{"$f":"IF(C158=0,\"\",LEFT(INDEX(Lists!$H$5:$H$49,MATCH(C158,Lists!$G$5:$G$49,0),1),1))","v":""},null,0,"","",null,"0"]
[{"$f":"Planning!A143","v":"I135"},{"$f":"Planning!B143","v":0},{"$f":"Planning!C143","v":0},{"$f":"Planning!D143","v":0},{"$f":"Planning!E143","v":0},{"$f":"IF(Planning!G143<>0,Planning!G143,\"\")","v":""},{"$f":"Planning!H143","v":0},{"$f":"Planning!I143","v":0},{"$f":"IF(OR(W159=\"1\",AND(W159<>\"1\",G159=Lists!$A$17)),Y159,0)","v":0},null,{"$f":"IF(AND(W159=\"2\",G159<>Lists!$A$17),AA159,Z159)","v":""},"",{"$f":"Planning!J143","v":{"v":0,"d":"0.00"}},{"v":0,"d":"0.00"},null,"","",{"$f":"SUMIFS($J$25:$J$224,$C$25:$C$224,$C159,$G$25:$G$224,Lists!$A$16)","v":0},0,null,"",null,{"$f":"IF(C159=0,\"\",LEFT(INDEX(Lists!$H$5:$H$49,MATCH(C159,Lists!$G$5:$G$49,0),1),1))","v":""},null,0,"","",null,"0"]
[{"$f":"Planning!A144","v":"I136"},{"$f":"Planning!B144","v":0},{"$f":"Planning!C144","v":0},{"$f":"Planning!D144","v":0},{"$f":"Planning!E144","v":0},{"$f":"IF(Planning!G144<>0,Planning!G144,\"\")","v":""},{"$f":"Planning!H144","v":0},{"$f":"Planning!I144","v":0},{"$f":"IF(OR(W160=\"1\",AND(W160<>\"1\",G160=Lists!$A$17)),Y160,0)","v":0},null,{"$f":"IF(AND(W160=\"2\",G160<>Lists!$A$17),AA160,Z160)","v":""},"",{"$f":"Planning!J144","v":{"v":0,"d":"0.00"}},{"v":0,"d":"0.00"},null,"","",{"$f":"SUMIFS($J$25:$J$224,$C$25:$C$224,$C160,$G$25:$G$224,Lists!$A$16)","v":0},0,null,"",null,{"$f":"IF(C160=0,\"\",LEFT(INDEX(Lists!$H$5:$H$49,MATCH(C160,Lists!$G$5:$G$49,0),1),1))","v":""},null,0,"","",null,"0"]
[{"$f":"Planning!A145","v":"I137"},{"$f":"Planning!B145","v":0},{"$f":"Planning!C145","v":0},{"$f":"Planning!D145","v":0},{"$f":"Planning!E145","v":0},{"$f":"IF(Planning!G145<>0,Planning!G145,\"\")","v":""},{"$f":"Planning!H145","v":0},{"$f":"Planning!I145","v":0},{"$f":"IF(OR(W161=\"1\",AND(W161<>\"1\",G161=Lists!$A$17)),Y161,0)","v":0},null,{"$f":"IF(AND(W161=\"2\",G161<>Lists!$A$17),AA161,Z161)","v":""},"",{"$f":"Planning!J145","v":{"v":0,"d":"0.00"}},{"v":0,"d":"0.00"},null,"","",{"$f":"SUMIFS($J$25:$J$224,$C$25:$C$224,$C161,$G$25:$G$224,Lists!$A$16)","v":0},0,null,"",null,{"$f":"IF(C161=0,\"\",LEFT(INDEX(Lists!$H$5:$H$49,MATCH(C161,Lists!$G$5:$G$49,0),1),1))","v":""},null,0,"","",null,"0"]
[{"$f":"Planning!A146","v":"I138"},{"$f":"Planning!B146","v":0},{"$f":"Planning!C146","v":0},{"$f":"Planning!D146","v":0},{"$f":"Planning!E146","v":0},{"$f":"IF(Planning!G146<>0,Planning!G146,\"\")","v":""},{"$f":"Planning!H146","v":0},{"$f":"Planning!I146","v":0},{"$f":"IF(OR(W162=\"1\",AND(W162<>\"1\",G162=Lists!$A$17)),Y162,0)","v":0},null,{"$f":"IF(AND(W162=\"2\",G162<>Lists!$A$17),AA162,Z162)","v":""},"",{"$f":"Planning!J146","v":{"v":0,"d":"0.00"}},{"v":0,"d":"0.00"},null,"","",{"$f":"SUMIFS($J$25:$J$224,$C$25:$C$224,$C162,$G$25:$G$224,Lists!$A$16)","v":0},0,null,"",null,{"$f":"IF(C162=0,\"\",LEFT(INDEX(Lists!$H$5:$H$49,MATCH(C162,Lists!$G$5:$G$49,0),1),1))","v":""},null,0,"","",null,"0"]
[{"$f":"Planning!A147","v":"I139"},{"$f":"Planning!B147","v":0},{"$f":"Planning!C147","v":0},{"$f":"Planning!D147","v":0},{"$f":"Planning!E147","v":0},{"$f":"IF(Planning!G147<>0,Planning!G147,\"\")","v":""},{"$f":"Planning!H147","v":0},{"$f":"Planning!I147","v":0},{"$f":"IF(OR(W163=\"1\",AND(W163<>\"1\",G163=Lists!$A$17)),Y163,0)","v":0},null,{"$f":"IF(AND(W163=\"2\",G163<>Lists!$A$17),AA163,Z163)","v":""},"",{"$f":"Planning!J147","v":{"v":0,"d":"0.00"}},{"v":0,"d":"0.00"},null,"","",{"$f":"SUMIFS($J$25:$J$224,$C$25:$C$224,$C163,$G$25:$G$224,Lists!$A$16)","v":0},0,null,"",null,{"$f":"IF(C163=0,\"\",LEFT(INDEX(Lists!$H$5:$H$49,MATCH(C163,Lists!$G$5:$G$49,0),1),1))","v":""},null,0,"","",null,"0"]
[{"$f":"Planning!A148","v":"I140"},{"$f":"Planning!B148","v":0},{"$f":"Planning!C148","v":0},{"$f":"Planning!D148","v":0},{"$f":"Planning!E148","v":0},{"$f":"IF(Planning!G148<>0,Planning!G148,\"\")","v":""},{"$f":"Planning!H148","v":0},{"$f":"Planning!I148","v":0},{"$f":"IF(OR(W164=\"1\",AND(W164<>\"1\",G164=Lists!$A$17)),Y164,0)","v":0},null,{"$f":"IF(AND(W164=\"2\",G164<>Lists!$A$17),AA164,Z164)","v":""},"",{"$f":"Planning!J148","v":{"v":0,"d":"0.00"}},{"v":0,"d":"0.00"},null,"","",{"$f":"SUMIFS($J$25:$J$224,$C$25:$C$224,$C164,$G$25:$G$224,Lists!$A$16)","v":0},0,null,"",null,{"$f":"IF(C164=0,\"\",LEFT(INDEX(Lists!$H$5:$H$49,MATCH(C164,Lists!$G$5:$G$49,0),1),1))","v":""},null,0,"","",null,"0"]
[{"$f":"Planning!A149","v":"I141"},{"$f":"Planning!B149","v":0},{"$f":"Planning!C149","v":0},{"$f":"Planning!D149","v":0},{"$f":"Planning!E149","v":0},{"$f":"IF(Planning!G149<>0,Planning!G149,\"\")","v":""},{"$f":"Planning!H149","v":0},{"$f":"Planning!I149","v":0},{"$f":"IF(OR(W165=\"1\",AND(W165<>\"1\",G165=Lists!$A$17)),Y165,0)","v":0},null,{"$f":"IF(AND(W165=\"2\",G165<>Lists!$A$17),AA165,Z165)","v":""},"",{"$f":"Planning!J149","v":{"v":0,"d":"0.00"}},{"v":0,"d":"0.00"},null,"","",{"$f":"SUMIFS($J$25:$J$224,$C$25:$C$224,$C165,$G$25:$G$224,Lists!$A$16)","v":0},0,null,"",null,{"$f":"IF(C165=0,\"\",LEFT(INDEX(Lists!$H$5:$H$49,MATCH(C165,Lists!$G$5:$G$49,0),1),1))","v":""},null,0,"","",null,"0"]
[{"$f":"Planning!A150","v":"I142"},{"$f":"Planning!B150","v":0},{"$f":"Planning!C150","v":0},{"$f":"Planning!D150","v":0},{"$f":"Planning!E150","v":0},{"$f":"IF(Planning!G150<>0,Planning!G150,\"\")","v":""},{"$f":"Planning!H150","v":0},{"$f":"Planning!I150","v":0},{"$f":"IF(OR(W166=\"1\",AND(W166<>\"1\",G166=Lists!$A$17)),Y166,0)","v":0},null,{"$f":"IF(AND(W166=\"2\",G166<>Lists!$A$17),AA166,Z166)","v":""},"",{"$f":"Planning!J150","v":{"v":0,"d":"0.00"}},{"v":0,"d":"0.00"},null,"","",{"$f":"SUMIFS($J$25:$J$224,$C$25:$C$224,$C166,$G$25:$G$224,Lists!$A$16)","v":0},0,null,"",null,{"$f":"IF(C166=0,\"\",LEFT(INDEX(Lists!$H$5:$H$49,MATCH(C166,Lists!$G$5:$G$49,0),1),1))","v":""},null,0,"","",null,"0"]
[{"$f":"Planning!A151","v":"I143"},{"$f":"Planning!B151","v":0},{"$f":"Planning!C151","v":0},{"$f":"Planning!D151","v":0},{"$f":"Planning!E151","v":0},{"$f":"IF(Planning!G151<>0,Planning!G151,\"\")","v":""},{"$f":"Planning!H151","v":0},{"$f":"Planning!I151","v":0},{"$f":"IF(OR(W167=\"1\",AND(W167<>\"1\",G167=Lists!$A$17)),Y167,0)","v":0},null,{"$f":"IF(AND(W167=\"2\",G167<>Lists!$A$17),AA167,Z167)","v":""},"",{"$f":"Planning!J151","v":{"v":0,"d":"0.00"}},{"v":0,"d":"0.00"},null,"","",{"$f":"SUMIFS($J$25:$J$224,$C$25:$C$224,$C167,$G$25:$G$224,Lists!$A$16)","v":0},0,null,"",null,{"$f":"IF(C167=0,\"\",LEFT(INDEX(Lists!$H$5:$H$49,MATCH(C167,Lists!$G$5:$G$49,0),1),1))","v":""},null,0,"","",null,"0"]
[{"$f":"Planning!A152","v":"I144"},{"$f":"Planning!B152","v":0},{"$f":"Planning!C152","v":0},{"$f":"Planning!D152","v":0},{"$f":"Planning!E152","v":0},{"$f":"IF(Planning!G152<>0,Planning!G152,\"\")","v":""},{"$f":"Planning!H152","v":0},{"$f":"Planning!I152","v":0},{"$f":"IF(OR(W168=\"1\",AND(W168<>\"1\",G168=Lists!$A$17)),Y168,0)","v":0},null,{"$f":"IF(AND(W168=\"2\",G168<>Lists!$A$17),AA168,Z168)","v":""},"",{"$f":"Planning!J152","v":{"v":0,"d":"0.00"}},{"v":0,"d":"0.00"},null,"","",{"$f":"SUMIFS($J$25:$J$224,$C$25:$C$224,$C168,$G$25:$G$224,Lists!$A$16)","v":0},0,null,"",null,{"$f":"IF(C168=0,\"\",LEFT(INDEX(Lists!$H$5:$H$49,MATCH(C168,Lists!$G$5:$G$49,0),1),1))","v":""},null,0,"","",null,"0"]
[{"$f":"Planning!A153","v":"I145"},{"$f":"Planning!B153","v":0},{"$f":"Planning!C153","v":0},{"$f":"Planning!D153","v":0},{"$f":"Planning!E153","v":0},{"$f":"IF(Planning!G153<>0,Planning!G153,\"\")","v":""},{"$f":"Planning!H153","v":0},{"$f":"Planning!I153","v":0},{"$f":"IF(OR(W169=\"1\",AND(W169<>\"1\",G169=Lists!$A$17)),Y169,0)","v":0},null,{"$f":"IF(AND(W169=\"2\",G169<>Lists!$A$17),AA169,Z169)","v":""},"",{"$f":"Planning!J153","v":{"v":0,"d":"0.00"}},{"v":0,"d":"0.00"},null,"","",{"$f":"SUMIFS($J$25:$J$224,$C$25:$C$224,$C169,$G$25:$G$224,Lists!$A$16)","v":0},0,null,"",null,{"$f":"IF(C169=0,\"\",LEFT(INDEX(Lists!$H$5:$H$49,MATCH(C169,Lists!$G$5:$G$49,0),1),1))","v":""},null,0,"","",null,"0"]
[{"$f":"Planning!A154","v":"I146"},{"$f":"Planning!B154","v":0},{"$f":"Planning!C154","v":0},{"$f":"Planning!D154","v":0},{"$f":"Planning!E154","v":0},{"$f":"IF(Planning!G154<>0,Planning!G154,\"\")","v":""},{"$f":"Planning!H154","v":0},{"$f":"Planning!I154","v":0},{"$f":"IF(OR(W170=\"1\",AND(W170<>\"1\",G170=Lists!$A$17)),Y170,0)","v":0},null,{"$f":"IF(AND(W170=\"2\",G170<>Lists!$A$17),AA170,Z170)","v":""},"",{"$f":"Planning!J154","v":{"v":0,"d":"0.00"}},{"v":0,"d":"0.00"},null,"","",{"$f":"SUMIFS($J$25:$J$224,$C$25:$C$224,$C170,$G$25:$G$224,Lists!$A$16)","v":0},0,null,"",null,{"$f":"IF(C170=0,\"\",LEFT(INDEX(Lists!$H$5:$H$49,MATCH(C170,Lists!$G$5:$G$49,0),1),1))","v":""},null,0,"","",null,"0"]
[{"$f":"Planning!A155","v":"I147"},{"$f":"Planning!B155","v":0},{"$f":"Planning!C155","v":0},{"$f":"Planning!D155","v":0},{"$f":"Planning!E155","v":0},{"$f":"IF(Planning!G155<>0,Planning!G155,\"\")","v":""},{"$f":"Planning!H155","v":0},{"$f":"Planning!I155","v":0},{"$f":"IF(OR(W171=\"1\",AND(W171<>\"1\",G171=Lists!$A$17)),Y171,0)","v":0},null,{"$f":"IF(AND(W171=\"2\",G171<>Lists!$A$17),AA171,Z171)","v":""},"",{"$f":"Planning!J155","v":{"v":0,"d":"0.00"}},{"v":0,"d":"0.00"},null,"","",{"$f":"SUMIFS($J$25:$J$224,$C$25:$C$224,$C171,$G$25:$G$224,Lists!$A$16)","v":0},0,null,"",null,{"$f":"IF(C171=0,\"\",LEFT(INDEX(Lists!$H$5:$H$49,MATCH(C171,Lists!$G$5:$G$49,0),1),1))","v":""},null,0,"","",null,"0"]
[{"$f":"Planning!A156","v":"I148"},{"$f":"Planning!B156","v":0},{"$f":"Planning!C156","v":0},{"$f":"Planning!D156","v":0},{"$f":"Planning!E156","v":0},{"$f":"IF(Planning!G156<>0,Planning!G156,\"\")","v":""},{"$f":"Planning!H156","v":0},{"$f":"Planning!I156","v":0},{"$f":"IF(OR(W172=\"1\",AND(W172<>\"1\",G172=Lists!$A$17)),Y172,0)","v":0},null,{"$f":"IF(AND(W172=\"2\",G172<>Lists!$A$17),AA172,Z172)","v":""},"",{"$f":"Planning!J156","v":{"v":0,"d":"0.00"}},{"v":0,"d":"0.00"},null,"","",{"$f":"SUMIFS($J$25:$J$224,$C$25:$C$224,$C172,$G$25:$G$224,Lists!$A$16)","v":0},0,null,"",null,{"$f":"IF(C172=0,\"\",LEFT(INDEX(Lists!$H$5:$H$49,MATCH(C172,Lists!$G$5:$G$49,0),1),1))","v":""},null,0,"","",null,"0"]
[{"$f":"Planning!A157","v":"I149"},{"$f":"Planning!B157","v":0},{"$f":"Planning!C157","v":0},{"$f":"Planning!D157","v":0},{"$f":"Planning!E157","v":0},{"$f":"IF(Planning!G157<>0,Planning!G157,\"\")","v":""},{"$f":"Planning!H157","v":0},{"$f":"Planning!I157","v":0},{"$f":"IF(OR(W173=\"1\",AND(W173<>\"1\",G173=Lists!$A$17)),Y173,0)","v":0},null,{"$f":"IF(AND(W173=\"2\",G173<>Lists!$A$17),AA173,Z173)","v":""},"",{"$f":"Planning!J157","v":{"v":0,"d":"0.00"}},{"v":0,"d":"0.00"},null,"","",{"$f":"SUMIFS($J$25:$J$224,$C$25:$C$224,$C173,$G$25:$G$224,Lists!$A$16)","v":0},0,null,"",null,{"$f":"IF(C173=0,\"\",LEFT(INDEX(Lists!$H$5:$H$49,MATCH(C173,Lists!$G$5:$G$49,0),1),1))","v":""},null,0,"","",null,"0"]
[{"$f":"Planning!A158","v":"I150"},{"$f":"Planning!B158","v":0},{"$f":"Planning!C158","v":0},{"$f":"Planning!D158","v":0},{"$f":"Planning!E158","v":0},{"$f":"IF(Planning!G158<>0,Planning!G158,\"\")","v":""},{"$f":"Planning!H158","v":0},{"$f":"Planning!I158","v":0},{"$f":"IF(OR(W174=\"1\",AND(W174<>\"1\",G174=Lists!$A$17)),Y174,0)","v":0},null,{"$f":"IF(AND(W174=\"2\",G174<>Lists!$A$17),AA174,Z174)","v":""},"",{"$f":"Planning!J158","v":{"v":0,"d":"0.00"}},{"v":0,"d":"0.00"},null,"","",{"$f":"SUMIFS($J$25:$J$224,$C$25:$C$224,$C174,$G$25:$G$224,Lists!$A$16)","v":0},0,null,"",null,{"$f":"IF(C174=0,\"\",LEFT(INDEX(Lists!$H$5:$H$49,MATCH(C174,Lists!$G$5:$G$49,0),1),1))","v":""},null,0,"","",null,"0"]
[{"$f":"Planning!A159","v":"I151"},{"$f":"Planning!B159","v":0},{"$f":"Planning!C159","v":0},{"$f":"Planning!D159","v":0},{"$f":"Planning!E159","v":0},{"$f":"IF(Planning!G159<>0,Planning!G159,\"\")","v":""},{"$f":"Planning!H159","v":0},{"$f":"Planning!I159","v":0},{"$f":"IF(OR(W175=\"1\",AND(W175<>\"1\",G175=Lists!$A$17)),Y175,0)","v":0},null,{"$f":"IF(AND(W175=\"2\",G175<>Lists!$A$17),AA175,Z175)","v":""},"",{"$f":"Planning!J159","v":{"v":0,"d":"0.00"}},{"v":0,"d":"0.00"},null,"","",{"$f":"SUMIFS($J$25:$J$224,$C$25:$C$224,$C175,$G$25:$G$224,Lists!$A$16)","v":0},0,null,"",null,{"$f":"IF(C175=0,\"\",LEFT(INDEX(Lists!$H$5:$H$49,MATCH(C175,Lists!$G$5:$G$49,0),1),1))","v":""},null,0,"","",null,"0"]
[{"$f":"Planning!A160","v":"I152"},{"$f":"Planning!B160","v":0},{"$f":"Planning!C160","v":0},{"$f":"Planning!D160","v":0},{"$f":"Planning!E160","v":0},{"$f":"IF(Planning!G160<>0,Planning!G160,\"\")","v":""},{"$f":"Planning!H160","v":0},{"$f":"Planning!I160","v":0},{"$f":"IF(OR(W176=\"1\",AND(W176<>\"1\",G176=Lists!$A$17)),Y176,0)","v":0},null,{"$f":"IF(AND(W176=\"2\",G176<>Lists!$A$17),AA176,Z176)","v":""},"",{"$f":"Planning!J160","v":{"v":0,"d":"0.00"}},{"v":0,"d":"0.00"},null,"","",{"$f":"SUMIFS($J$25:$J$224,$C$25:$C$224,$C176,$G$25:$G$224,Lists!$A$16)","v":0},0,null,"",null,{"$f":"IF(C176=0,\"\",LEFT(INDEX(Lists!$H$5:$H$49,MATCH(C176,Lists!$G$5:$G$49,0),1),1))","v":""},null,0,"","",null,"0"]
[{"$f":"Planning!A161","v":"I153"},{"$f":"Planning!B161","v":0},{"$f":"Planning!C161","v":0},{"$f":"Planning!D161","v":0},{"$f":"Planning!E161","v":0},{"$f":"IF(Planning!G161<>0,Planning!G161,\"\")","v":""},{"$f":"Planning!H161","v":0},{"$f":"Planning!I161","v":0},{"$f":"IF(OR(W177=\"1\",AND(W177<>\"1\",G177=Lists!$A$17)),Y177,0)","v":0},null,{"$f":"IF(AND(W177=\"2\",G177<>Lists!$A$17),AA177,Z177)","v":""},"",{"$f":"Planning!J161","v":{"v":0,"d":"0.00"}},{"v":0,"d":"0.00"},null,"","",{"$f":"SUMIFS($J$25:$J$224,$C$25:$C$224,$C177,$G$25:$G$224,Lists!$A$16)","v":0},0,null,"",null,{"$f":"IF(C177=0,\"\",LEFT(INDEX(Lists!$H$5:$H$49,MATCH(C177,Lists!$G$5:$G$49,0),1),1))","v":""},null,0,"","",null,"0"]
[{"$f":"Planning!A162","v":"I154"},{"$f":"Planning!B162","v":0},{"$f":"Planning!C162","v":0},{"$f":"Planning!D162","v":0},{"$f":"Planning!E162","v":0},{"$f":"IF(Planning!G162<>0,Planning!G162,\"\")","v":""},{"$f":"Planning!H162","v":0},{"$f":"Planning!I162","v":0},{"$f":"IF(OR(W178=\"1\",AND(W178<>\"1\",G178=Lists!$A$17)),Y178,0)","v":0},null,{"$f":"IF(AND(W178=\"2\",G178<>Lists!$A$17),AA178,Z178)","v":""},"",{"$f":"Planning!J162","v":{"v":0,"d":"0.00"}},{"v":0,"d":"0.00"},null,"","",{"$f":"SUMIFS($J$25:$J$224,$C$25:$C$224,$C178,$G$25:$G$224,Lists!$A$16)","v":0},0,null,"",null,{"$f":"IF(C178=0,\"\",LEFT(INDEX(Lists!$H$5:$H$49,MATCH(C178,Lists!$G$5:$G$49,0),1),1))","v":""},null,0,"","",null,"0"]
[{"$f":"Planning!A163","v":"I155"},{"$f":"Planning!B163","v":0},{"$f":"Planning!C163","v":0},{"$f":"Planning!D163","v":0},{"$f":"Planning!E163","v":0},{"$f":"IF(Planning!G163<>0,Planning!G163,\"\")","v":""},{"$f":"Planning!H163","v":0},{"$f":"Planning!I163","v":0},{"$f":"IF(OR(W179=\"1\",AND(W179<>\"1\",G179=Lists!$A$17)),Y179,0)","v":0},null,{"$f":"IF(AND(W179=\"2\",G179<>Lists!$A$17),AA179,Z179)","v":""},"",{"$f":"Planning!J163","v":{"v":0,"d":"0.00"}},{"v":0,"d":"0.00"},null,"","",{"$f":"SUMIFS($J$25:$J$224,$C$25:$C$224,$C179,$G$25:$G$224,Lists!$A$16)","v":0},0,null,"",null,{"$f":"IF(C179=0,\"\",LEFT(INDEX(Lists!$H$5:$H$49,MATCH(C179,Lists!$G$5:$G$49,0),1),1))","v":""},null,0,"","",null,"0"]
[{"$f":"Planning!A164","v":"I156"},{"$f":"Planning!B164","v":0},{"$f":"Planning!C164","v":0},{"$f":"Planning!D164","v":0},{"$f":"Planning!E164","v":0},{"$f":"IF(Planning!G164<>0,Planning!G164,\"\")","v":""},{"$f":"Planning!H164","v":0},{"$f":"Planning!I164","v":0},{"$f":"IF(OR(W180=\"1\",AND(W180<>\"1\",G180=Lists!$A$17)),Y180,0)","v":0},null,{"$f":"IF(AND(W180=\"2\",G180<>Lists!$A$17),AA180,Z180)","v":""},"",{"$f":"Planning!J164","v":{"v":0,"d":"0.00"}},{"v":0,"d":"0.00"},null,"","",{"$f":"SUMIFS($J$25:$J$224,$C$25:$C$224,$C180,$G$25:$G$224,Lists!$A$16)","v":0},0,null,"",null,{"$f":"IF(C180=0,\"\",LEFT(INDEX(Lists!$H$5:$H$49,MATCH(C180,Lists!$G$5:$G$49,0),1),1))","v":""},null,0,"","",null,"0"]
[{"$f":"Planning!A165","v":"I157"},{"$f":"Planning!B165","v":0},{"$f":"Planning!C165","v":0},{"$f":"Planning!D165","v":0},{"$f":"Planning!E165","v":0},{"$f":"IF(Planning!G165<>0,Planning!G165,\"\")","v":""},{"$f":"Planning!H165","v":0},{"$f":"Planning!I165","v":0},{"$f":"IF(OR(W181=\"1\",AND(W181<>\"1\",G181=Lists!$A$17)),Y181,0)","v":0},null,{"$f":"IF(AND(W181=\"2\",G181<>Lists!$A$17),AA181,Z181)","v":""},"",{"$f":"Planning!J165","v":{"v":0,"d":"0.00"}},{"v":0,"d":"0.00"},null,"","",{"$f":"SUMIFS($J$25:$J$224,$C$25:$C$224,$C181,$G$25:$G$224,Lists!$A$16)","v":0},0,null,"",null,{"$f":"IF(C181=0,\"\",LEFT(INDEX(Lists!$H$5:$H$49,MATCH(C181,Lists!$G$5:$G$49,0),1),1))","v":""},null,0,"","",null,"0"]
[{"$f":"Planning!A166","v":"I158"},{"$f":"Planning!B166","v":0},{"$f":"Planning!C166","v":0},{"$f":"Planning!D166","v":0},{"$f":"Planning!E166","v":0},{"$f":"IF(Planning!G166<>0,Planning!G166,\"\")","v":""},{"$f":"Planning!H166","v":0},{"$f":"Planning!I166","v":0},{"$f":"IF(OR(W182=\"1\",AND(W182<>\"1\",G182=Lists!$A$17)),Y182,0)","v":0},null,{"$f":"IF(AND(W182=\"2\",G182<>Lists!$A$17),AA182,Z182)","v":""},"",{"$f":"Planning!J166","v":{"v":0,"d":"0.00"}},{"v":0,"d":"0.00"},null,"","",{"$f":"SUMIFS($J$25:$J$224,$C$25:$C$224,$C182,$G$25:$G$224,Lists!$A$16)","v":0},0,null,"",null,{"$f":"IF(C182=0,\"\",LEFT(INDEX(Lists!$H$5:$H$49,MATCH(C182,Lists!$G$5:$G$49,0),1),1))","v":""},null,0,"","",null,"0"]
[{"$f":"Planning!A167","v":"I159"},{"$f":"Planning!B167","v":0},{"$f":"Planning!C167","v":0},{"$f":"Planning!D167","v":0},{"$f":"Planning!E167","v":0},{"$f":"IF(Planning!G167<>0,Planning!G167,\"\")","v":""},{"$f":"Planning!H167","v":0},{"$f":"Planning!I167","v":0},{"$f":"IF(OR(W183=\"1\",AND(W183<>\"1\",G183=Lists!$A$17)),Y183,0)","v":0},null,{"$f":"IF(AND(W183=\"2\",G183<>Lists!$A$17),AA183,Z183)","v":""},"",{"$f":"Planning!J167","v":{"v":0,"d":"0.00"}},{"v":0,"d":"0.00"},null,"","",{"$f":"SUMIFS($J$25:$J$224,$C$25:$C$224,$C183,$G$25:$G$224,Lists!$A$16)","v":0},0,null,"",null,{"$f":"IF(C183=0,\"\",LEFT(INDEX(Lists!$H$5:$H$49,MATCH(C183,Lists!$G$5:$G$49,0),1),1))","v":""},null,0,"","",null,"0"]
[{"$f":"Planning!A168","v":"I160"},{"$f":"Planning!B168","v":0},{"$f":"Planning!C168","v":0},{"$f":"Planning!D168","v":0},{"$f":"Planning!E168","v":0},{"$f":"IF(Planning!G168<>0,Planning!G168,\"\")","v":""},{"$f":"Planning!H168","v":0},{"$f":"Planning!I168","v":0},{"$f":"IF(OR(W184=\"1\",AND(W184<>\"1\",G184=Lists!$A$17)),Y184,0)","v":0},null,{"$f":"IF(AND(W184=\"2\",G184<>Lists!$A$17),AA184,Z184)","v":""},"",{"$f":"Planning!J168","v":{"v":0,"d":"0.00"}},{"v":0,"d":"0.00"},null,"","",{"$f":"SUMIFS($J$25:$J$224,$C$25:$C$224,$C184,$G$25:$G$224,Lists!$A$16)","v":0},0,null,"",null,{"$f":"IF(C184=0,\"\",LEFT(INDEX(Lists!$H$5:$H$49,MATCH(C184,Lists!$G$5:$G$49,0),1),1))","v":""},null,0,"","",null,"0"]
[{"$f":"Planning!A169","v":"I161"},{"$f":"Planning!B169","v":0},{"$f":"Planning!C169","v":0},{"$f":"Planning!D169","v":0},{"$f":"Planning!E169","v":0},{"$f":"IF(Planning!G169<>0,Planning!G169,\"\")","v":""},{"$f":"Planning!H169","v":0},{"$f":"Planning!I169","v":0},{"$f":"IF(OR(W185=\"1\",AND(W185<>\"1\",G185=Lists!$A$17)),Y185,0)","v":0},null,{"$f":"IF(AND(W185=\"2\",G185<>Lists!$A$17),AA185,Z185)","v":""},{"$f":"IF($U185=ExcluirDelPLogro,\"\",IF(AND(H185=0,I185=0,J185=0),\"\",K185))","v":""},{"$f":"Planning!J169","v":{"v":0,"d":"0.00"}},{"v":0,"d":"0.00"},null,"",{"$f":"IF($U185=ExcluirDelPLogro,\"\",IF(AND(M185=0,N185=0,O185=0),\"\",P185))","v":""},{"$f":"SUMIFS($J$25:$J$224,$C$25:$C$224,$C185,$G$25:$G$224,Lists!$A$16)","v":0},0,null,"",null,{"$f":"IF(C185=0,\"\",LEFT(INDEX(Lists!$H$5:$H$49,MATCH(C185,Lists!$G$5:$G$49,0),1),1))","v":""},null,0,"","",null,"0"]
[{"$f":"Planning!A170","v":"I162"},{"$f":"Planning!B170","v":0},{"$f":"Planning!C170","v":0},{"$f":"Planning!D170","v":0},{"$f":"Planning!E170","v":0},{"$f":"IF(Planning!G170<>0,Planning!G170,\"\")","v":""},{"$f":"Planning!H170","v":0},{"$f":"Planning!I170","v":0},{"$f":"IF(OR(W186=\"1\",AND(W186<>\"1\",G186=Lists!$A$17)),Y186,0)","v":0},null,{"$f":"IF(AND(W186=\"2\",G186<>Lists!$A$17),AA186,Z186)","v":""},"",{"$f":"Planning!J170","v":{"v":0,"d":"0.00"}},{"v":0,"d":"0.00"},null,"","",{"$f":"SUMIFS($J$25:$J$224,$C$25:$C$224,$C186,$G$25:$G$224,Lists!$A$16)","v":0},0,null,"",null,{"$f":"IF(C186=0,\"\",LEFT(INDEX(Lists!$H$5:$H$49,MATCH(C186,Lists!$G$5:$G$49,0),1),1))","v":""},null,0,"","",null,"0"]
[{"$f":"Planning!A171","v":"I163"},{"$f":"Planning!B171","v":0},{"$f":"Planning!C171","v":0},{"$f":"Planning!D171","v":0},{"$f":"Planning!E171","v":0},{"$f":"IF(Planning!G171<>0,Planning!G171,\"\")","v":""},{"$f":"Planning!H171","v":0},{"$f":"Planning!I171","v":0},{"$f":"IF(OR(W187=\"1\",AND(W187<>\"1\",G187=Lists!$A$17)),Y187,0)","v":0},null,{"$f":"IF(AND(W187=\"2\",G187<>Lists!$A$17),AA187,Z187)","v":""},"",{"$f":"Planning!J171","v":{"v":0,"d":"0.00"}},{"v":0,"d":"0.00"},null,"","",{"$f":"SUMIFS($J$25:$J$224,$C$25:$C$224,$C187,$G$25:$G$224,Lists!$A$16)","v":0},0,null,"",null,{"$f":"IF(C187=0,\"\",LEFT(INDEX(Lists!$H$5:$H$49,MATCH(C187,Lists!$G$5:$G$49,0),1),1))","v":""},null,0,"","",null,"0"]
[{"$f":"Planning!A172","v":"I164"},{"$f":"Planning!B172","v":0},{"$f":"Planning!C172","v":0},{"$f":"Planning!D172","v":0},{"$f":"Planning!E172","v":0},{"$f":"IF(Planning!G172<>0,Planning!G172,\"\")","v":""},{"$f":"Planning!H172","v":0},{"$f":"Planning!I172","v":0},{"$f":"IF(OR(W188=\"1\",AND(W188<>\"1\",G188=Lists!$A$17)),Y188,0)","v":0},null,{"$f":"IF(AND(W188=\"2\",G188<>Lists!$A$17),AA188,Z188)","v":""},"",{"$f":"Planning!J172","v":{"v":0,"d":"0.00"}},{"v":0,"d":"0.00"},null,"","",{"$f":"SUMIFS($J$25:$J$224,$C$25:$C$224,$C188,$G$25:$G$224,Lists!$A$16)","v":0},0,null,"",null,{"$f":"IF(C188=0,\"\",LEFT(INDEX(Lists!$H$5:$H$49,MATCH(C188,Lists!$G$5:$G$49,0),1),1))","v":""},null,0,"","",null,"0"]
[{"$f":"Planning!A173","v":"I165"},{"$f":"Planning!B173","v":0},{"$f":"Planning!C173","v":0},{"$f":"Planning!D173","v":0},{"$f":"Planning!E173","v":0},{"$f":"IF(Planning!G173<>0,Planning!G173,\"\")","v":""},{"$f":"Planning!H173","v":0},{"$f":"Planning!I173","v":0},{"$f":"IF(OR(W189=\"1\",AND(W189<>\"1\",G189=Lists!$A$17)),Y189,0)","v":0},null,{"$f":"IF(AND(W189=\"2\",G189<>Lists!$A$17),AA189,Z189)","v":""},"",{"$f":"Planning!J173","v":{"v":0,"d":"0.00"}},{"v":0,"d":"0.00"},null,"","",{"$f":"SUMIFS($J$25:$J$224,$C$25:$C$224,$C189,$G$25:$G$224,Lists!$A$16)","v":0},0,null,"",null,{"$f":"IF(C189=0,\"\",LEFT(INDEX(Lists!$H$5:$H$49,MATCH(C189,Lists!$G$5:$G$49,0),1),1))","v":""},null,0,"","",null,"0"]
[{"$f":"Planning!A174","v":"I166"},{"$f":"Planning!B174","v":0},{"$f":"Planning!C174","v":0},{"$f":"Planning!D174","v":0},{"$f":"Planning!E174","v":0},{"$f":"IF(Planning!G174<>0,Planning!G174,\"\")","v":""},{"$f":"Planning!H174","v":0},{"$f":"Planning!I174","v":0},{"$f":"IF(OR(W190=\"1\",AND(W190<>\"1\",G190=Lists!$A$17)),Y190,0)","v":0},null,{"$f":"IF(AND(W190=\"2\",G190<>Lists!$A$17),AA190,Z190)","v":""},"",{"$f":"Planning!J174","v":{"v":0,"d":"0.00"}},{"v":0,"d":"0.00"},null,"","",{"$f":"SUMIFS($J$25:$J$224,$C$25:$C$224,$C190,$G$25:$G$224,Lists!$A$16)","v":0},0,null,"",null,{"$f":"IF(C190=0,\"\",LEFT(INDEX(Lists!$H$5:$H$49,MATCH(C190,Lists!$G$5:$G$49,0),1),1))","v":""},null,0,"","",null,"0"]
[{"$f":"Planning!A175","v":"I167"},{"$f":"Planning!B175","v":0},{"$f":"Planning!C175","v":0},{"$f":"Planning!D175","v":0},{"$f":"Planning!E175","v":0},{"$f":"IF(Planning!G175<>0,Planning!G175,\"\")","v":""},{"$f":"Planning!H175","v":0},{"$f":"Planning!I175","v":0},{"$f":"IF(OR(W191=\"1\",AND(W191<>\"1\",G191=Lists!$A$17)),Y191,0)","v":0},null,{"$f":"IF(AND(W191=\"2\",G191<>Lists!$A$17),AA191,Z191)","v":""},"",{"$f":"Planning!J175","v":{"v":0,"d":"0.00"}},{"v":0,"d":"0.00"},null,"","",{"$f":"SUMIFS($J$25:$J$224,$C$25:$C$224,$C191,$G$25:$G$224,Lists!$A$16)","v":0},0,null,"",null,{"$f":"IF(C191=0,\"\",LEFT(INDEX(Lists!$H$5:$H$49,MATCH(C191,Lists!$G$5:$G$49,0),1),1))","v":""},null,0,"","",null,"0"]
[{"$f":"Planning!A176","v":"I168"},{"$f":"Planning!B176","v":0},{"$f":"Planning!C176","v":0},{"$f":"Planning!D176","v":0},{"$f":"Planning!E176","v":0},{"$f":"IF(Planning!G176<>0,Planning!G176,\"\")","v":""},{"$f":"Planning!H176","v":0},{"$f":"Planning!I176","v":0},{"$f":"IF(OR(W192=\"1\",AND(W192<>\"1\",G192=Lists!$A$17)),Y192,0)","v":0},null,{"$f":"IF(AND(W192=\"2\",G192<>Lists!$A$17),AA192,Z192)","v":""},"",{"$f":"Planning!J176","v":{"v":0,"d":"0.00"}},{"v":0,"d":"0.00"},null,"","",{"$f":"SUMIFS($J$25:$J$224,$C$25:$C$224,$C192,$G$25:$G$224,Lists!$A$16)","v":0},0,null,"",null,{"$f":"IF(C192=0,\"\",LEFT(INDEX(Lists!$H$5:$H$49,MATCH(C192,Lists!$G$5:$G$49,0),1),1))","v":""},null,0,"","",null,"0"]
[{"$f":"Planning!A177","v":"I169"},{"$f":"Planning!B177","v":0},{"$f":"Planning!C177","v":0},{"$f":"Planning!D177","v":0},{"$f":"Planning!E177","v":0},{"$f":"IF(Planning!G177<>0,Planning!G177,\"\")","v":""},{"$f":"Planning!H177","v":0},{"$f":"Planning!I177","v":0},{"$f":"IF(OR(W193=\"1\",AND(W193<>\"1\",G193=Lists!$A$17)),Y193,0)","v":0},null,{"$f":"IF(AND(W193=\"2\",G193<>Lists!$A$17),AA193,Z193)","v":""},"",{"$f":"Planning!J177","v":{"v":0,"d":"0.00"}},{"v":0,"d":"0.00"},null,"","",{"$f":"SUMIFS($J$25:$J$224,$C$25:$C$224,$C193,$G$25:$G$224,Lists!$A$16)","v":0},0,null,"",null,{"$f":"IF(C193=0,\"\",LEFT(INDEX(Lists!$H$5:$H$49,MATCH(C193,Lists!$G$5:$G$49,0),1),1))","v":""},null,0,"","",null,"0"]
[{"$f":"Planning!A178","v":"I170"},{"$f":"Planning!B178","v":0},{"$f":"Planning!C178","v":0},{"$f":"Planning!D178","v":0},{"$f":"Planning!E178","v":0},{"$f":"IF(Planning!G178<>0,Planning!G178,\"\")","v":""},{"$f":"Planning!H178","v":0},{"$f":"Planning!I178","v":0},{"$f":"IF(OR(W194=\"1\",AND(W194<>\"1\",G194=Lists!$A$17)),Y194,0)","v":0},null,{"$f":"IF(AND(W194=\"2\",G194<>Lists!$A$17),AA194,Z194)","v":""},"",{"$f":"Planning!J178","v":{"v":0,"d":"0.00"}},{"v":0,"d":"0.00"},null,"","",{"$f":"SUMIFS($J$25:$J$224,$C$25:$C$224,$C194,$G$25:$G$224,Lists!$A$16)","v":0},0,null,"",null,{"$f":"IF(C194=0,\"\",LEFT(INDEX(Lists!$H$5:$H$49,MATCH(C194,Lists!$G$5:$G$49,0),1),1))","v":""},null,0,"","",null,"0"]
[{"$f":"Planning!A179","v":"I171"},{"$f":"Planning!B179","v":0},{"$f":"Planning!C179","v":0},{"$f":"Planning!D179","v":0},{"$f":"Planning!E179","v":0},{"$f":"IF(Planning!G179<>0,Planning!G179,\"\")","v":""},{"$f":"Planning!H179","v":0},{"$f":"Planning!I179","v":0},{"$f":"IF(OR(W195=\"1\",AND(W195<>\"1\",G195=Lists!$A$17)),Y195,0)","v":0},null,{"$f":"IF(AND(W195=\"2\",G195<>Lists!$A$17),AA195,Z195)","v":""},"",{"$f":"Planning!J179","v":{"v":0,"d":"0.00"}},{"v":0,"d":"0.00"},null,"","",{"$f":"SUMIFS($J$25:$J$224,$C$25:$C$224,$C195,$G$25:$G$224,Lists!$A$16)","v":0},0,null,"",null,{"$f":"IF(C195=0,\"\",LEFT(INDEX(Lists!$H$5:$H$49,MATCH(C195,Lists!$G$5:$G$49,0),1),1))","v":""},null,0,"","",null,"0"]
[{"$f":"Planning!A180","v":"I172"},{"$f":"Planning!B180","v":0},{"$f":"Planning!C180","v":0},{"$f":"Planning!D180","v":0},{"$f":"Planning!E180","v":0},{"$f":"IF(Planning!G180<>0,Planning!G180,\"\")","v":""},{"$f":"Planning!H180","v":0},{"$f":"Planning!I180","v":0},{"$f":"IF(OR(W196=\"1\",AND(W196<>\"1\",G196=Lists!$A$17)),Y196,0)","v":0},null,{"$f":"IF(AND(W196=\"2\",G196<>Lists!$A$17),AA196,Z196)","v":""},"",{"$f":"Planning!J180","v":{"v":0,"d":"0.00"}},{"v":0,"d":"0.00"},null,"","",{"$f":"SUMIFS($J$25:$J$224,$C$25:$C$224,$C196,$G$25:$G$224,Lists!$A$16)","v":0},0,null,"",null,{"$f":"IF(C196=0,\"\",LEFT(INDEX(Lists!$H$5:$H$49,MATCH(C196,Lists!$G$5:$G$49,0),1),1))","v":""},null,0,"","",null,"0"]
[{"$f":"Planning!A181","v":"I173"},{"$f":"Planning!B181","v":0},{"$f":"Planning!C181","v":0},{"$f":"Planning!D181","v":0},{"$f":"Planning!E181","v":0},{"$f":"IF(Planning!G181<>0,Planning!G181,\"\")","v":""},{"$f":"Planning!H181","v":0},{"$f":"Planning!I181","v":0},{"$f":"IF(OR(W197=\"1\",AND(W197<>\"1\",G197=Lists!$A$17)),Y197,0)","v":0},null,{"$f":"IF(AND(W197=\"2\",G197<>Lists!$A$17),AA197,Z197)","v":""},"",{"$f":"Planning!J181","v":{"v":0,"d":"0.00"}},{"v":0,"d":"0.00"},null,"","",{"$f":"SUMIFS($J$25:$J$224,$C$25:$C$224,$C197,$G$25:$G$224,Lists!$A$16)","v":0},0,null,"",null,{"$f":"IF(C197=0,\"\",LEFT(INDEX(Lists!$H$5:$H$49,MATCH(C197,Lists!$G$5:$G$49,0),1),1))","v":""},null,0,"","",null,"0"]
[{"$f":"Planning!A182","v":"I174"},{"$f":"Planning!B182","v":0},{"$f":"Planning!C182","v":0},{"$f":"Planning!D182","v":0},{"$f":"Planning!E182","v":0},{"$f":"IF(Planning!G182<>0,Planning!G182,\"\")","v":""},{"$f":"Planning!H182","v":0},{"$f":"Planning!I182","v":0},{"$f":"IF(OR(W198=\"1\",AND(W198<>\"1\",G198=Lists!$A$17)),Y198,0)","v":0},null,{"$f":"IF(AND(W198=\"2\",G198<>Lists!$A$17),AA198,Z198)","v":""},"",{"$f":"Planning!J182","v":{"v":0,"d":"0.00"}},{"v":0,"d":"0.00"},null,"","",{"$f":"SUMIFS($J$25:$J$224,$C$25:$C$224,$C198,$G$25:$G$224,Lists!$A$16)","v":0},0,null,"",null,{"$f":"IF(C198=0,\"\",LEFT(INDEX(Lists!$H$5:$H$49,MATCH(C198,Lists!$G$5:$G$49,0),1),1))","v":""},null,0,"","",null,"0"]
[{"$f":"Planning!A183","v":"I175"},{"$f":"Planning!B183","v":0},{"$f":"Planning!C183","v":0},{"$f":"Planning!D183","v":0},{"$f":"Planning!E183","v":0},{"$f":"IF(Planning!G183<>0,Planning!G183,\"\")","v":""},{"$f":"Planning!H183","v":0},{"$f":"Planning!I183","v":0},{"$f":"IF(OR(W199=\"1\",AND(W199<>\"1\",G199=Lists!$A$17)),Y199,0)","v":0},null,{"$f":"IF(AND(W199=\"2\",G199<>Lists!$A$17),AA199,Z199)","v":""},"",{"$f":"Planning!J183","v":{"v":0,"d":"0.00"}},{"v":0,"d":"0.00"},null,"","",{"$f":"SUMIFS($J$25:$J$224,$C$25:$C$224,$C199,$G$25:$G$224,Lists!$A$16)","v":0},0,null,"",null,{"$f":"IF(C199=0,\"\",LEFT(INDEX(Lists!$H$5:$H$49,MATCH(C199,Lists!$G$5:$G$49,0),1),1))","v":""},null,0,"","",null,"0"]
[{"$f":"Planning!A184","v":"I176"},{"$f":"Planning!B184","v":0},{"$f":"Planning!C184","v":0},{"$f":"Planning!D184","v":0},{"$f":"Planning!E184","v":0},{"$f":"IF(Planning!G184<>0,Planning!G184,\"\")","v":""},{"$f":"Planning!H184","v":0},{"$f":"Planning!I184","v":0},{"$f":"IF(OR(W200=\"1\",AND(W200<>\"1\",G200=Lists!$A$17)),Y200,0)","v":0},null,{"$f":"IF(AND(W200=\"2\",G200<>Lists!$A$17),AA200,Z200)","v":""},"",{"$f":"Planning!J184","v":{"v":0,"d":"0.00"}},{"v":0,"d":"0.00"},null,"","",{"$f":"SUMIFS($J$25:$J$224,$C$25:$C$224,$C200,$G$25:$G$224,Lists!$A$16)","v":0},0,null,"",null,{"$f":"IF(C200=0,\"\",LEFT(INDEX(Lists!$H$5:$H$49,MATCH(C200,Lists!$G$5:$G$49,0),1),1))","v":""},null,0,"","",null,"0"]
[{"$f":"Planning!A185","v":"I177"},{"$f":"Planning!B185","v":0},{"$f":"Planning!C185","v":0},{"$f":"Planning!D185","v":0},{"$f":"Planning!E185","v":0},{"$f":"IF(Planning!G185<>0,Planning!G185,\"\")","v":""},{"$f":"Planning!H185","v":0},{"$f":"Planning!I185","v":0},{"$f":"IF(OR(W201=\"1\",AND(W201<>\"1\",G201=Lists!$A$17)),Y201,0)","v":0},null,{"$f":"IF(AND(W201=\"2\",G201<>Lists!$A$17),AA201,Z201)","v":""},"",{"$f":"Planning!J185","v":{"v":0,"d":"0.00"}},{"v":0,"d":"0.00"},null,"","",{"$f":"SUMIFS($J$25:$J$224,$C$25:$C$224,$C201,$G$25:$G$224,Lists!$A$16)","v":0},0,null,"",null,{"$f":"IF(C201=0,\"\",LEFT(INDEX(Lists!$H$5:$H$49,MATCH(C201,Lists!$G$5:$G$49,0),1),1))","v":""},null,0,"","",null,"0"]
[{"$f":"Planning!A186","v":"I178"},{"$f":"Planning!B186","v":0},{"$f":"Planning!C186","v":0},{"$f":"Planning!D186","v":0},{"$f":"Planning!E186","v":0},{"$f":"IF(Planning!G186<>0,Planning!G186,\"\")","v":""},{"$f":"Planning!H186","v":0},{"$f":"Planning!I186","v":0},{"$f":"IF(OR(W202=\"1\",AND(W202<>\"1\",G202=Lists!$A$17)),Y202,0)","v":0},null,{"$f":"IF(AND(W202=\"2\",G202<>Lists!$A$17),AA202,Z202)","v":""},"",{"$f":"Planning!J186","v":{"v":0,"d":"0.00"}},{"v":0,"d":"0.00"},null,"","",{"$f":"SUMIFS($J$25:$J$224,$C$25:$C$224,$C202,$G$25:$G$224,Lists!$A$16)","v":0},0,null,"",null,{"$f":"IF(C202=0,\"\",LEFT(INDEX(Lists!$H$5:$H$49,MATCH(C202,Lists!$G$5:$G$49,0),1),1))","v":""},null,0,"","",null,"0"]
[{"$f":"Planning!A187","v":"I179"},{"$f":"Planning!B187","v":0},{"$f":"Planning!C187","v":0},{"$f":"Planning!D187","v":0},{"$f":"Planning!E187","v":0},{"$f":"IF(Planning!G187<>0,Planning!G187,\"\")","v":""},{"$f":"Planning!H187","v":0},{"$f":"Planning!I187","v":0},{"$f":"IF(OR(W203=\"1\",AND(W203<>\"1\",G203=Lists!$A$17)),Y203,0)","v":0},null,{"$f":"IF(AND(W203=\"2\",G203<>Lists!$A$17),AA203,Z203)","v":""},"",{"$f":"Planning!J187","v":{"v":0,"d":"0.00"}},{"v":0,"d":"0.00"},null,"","",{"$f":"SUMIFS($J$25:$J$224,$C$25:$C$224,$C203,$G$25:$G$224,Lists!$A$16)","v":0},0,null,"",null,{"$f":"IF(C203=0,\"\",LEFT(INDEX(Lists!$H$5:$H$49,MATCH(C203,Lists!$G$5:$G$49,0),1),1))","v":""},null,0,"","",null,"0"]
[{"$f":"Planning!A188","v":"I180"},{"$f":"Planning!B188","v":0},{"$f":"Planning!C188","v":0},{"$f":"Planning!D188","v":0},{"$f":"Planning!E188","v":0},{"$f":"IF(Planning!G188<>0,Planning!G188,\"\")","v":""},{"$f":"Planning!H188","v":0},{"$f":"Planning!I188","v":0},{"$f":"IF(OR(W204=\"1\",AND(W204<>\"1\",G204=Lists!$A$17)),Y204,0)","v":0},null,{"$f":"IF(AND(W204=\"2\",G204<>Lists!$A$17),AA204,Z204)","v":""},"",{"$f":"Planning!J188","v":{"v":0,"d":"0.00"}},{"v":0,"d":"0.00"},null,"","",{"$f":"SUMIFS($J$25:$J$224,$C$25:$C$224,$C204,$G$25:$G$224,Lists!$A$16)","v":0},0,null,"",null,{"$f":"IF(C204=0,\"\",LEFT(INDEX(Lists!$H$5:$H$49,MATCH(C204,Lists!$G$5:$G$49,0),1),1))","v":""},null,0,"","",null,"0"]
[{"$f":"Planning!A189","v":"I181"},{"$f":"Planning!B189","v":0},{"$f":"Planning!C189","v":0},{"$f":"Planning!D189","v":0},{"$f":"Planning!E189","v":0},{"$f":"IF(Planning!G189<>0,Planning!G189,\"\")","v":""},{"$f":"Planning!H189","v":0},{"$f":"Planning!I189","v":0},{"$f":"IF(OR(W205=\"1\",AND(W205<>\"1\",G205=Lists!$A$17)),Y205,0)","v":0},null,{"$f":"IF(AND(W205=\"2\",G205<>Lists!$A$17),AA205,Z205)","v":""},"",{"$f":"Planning!J189","v":{"v":0,"d":"0.00"}},{"v":0,"d":"0.00"},null,"","",{"$f":"SUMIFS($J$25:$J$224,$C$25:$C$224,$C205,$G$25:$G$224,Lists!$A$16)","v":0},0,null,"",null,{"$f":"IF(C205=0,\"\",LEFT(INDEX(Lists!$H$5:$H$49,MATCH(C205,Lists!$G$5:$G$49,0),1),1))","v":""},null,0,"","",null,"0"]
[{"$f":"Planning!A190","v":"I182"},{"$f":"Planning!B190","v":0},{"$f":"Planning!C190","v":0},{"$f":"Planning!D190","v":0},{"$f":"Planning!E190","v":0},{"$f":"IF(Planning!G190<>0,Planning!G190,\"\")","v":""},{"$f":"Planning!H190","v":0},{"$f":"Planning!I190","v":0},{"$f":"IF(OR(W206=\"1\",AND(W206<>\"1\",G206=Lists!$A$17)),Y206,0)","v":0},null,{"$f":"IF(AND(W206=\"2\",G206<>Lists!$A$17),AA206,Z206)","v":""},"",{"$f":"Planning!J190","v":{"v":0,"d":"0.00"}},{"v":0,"d":"0.00"},null,"","",{"$f":"SUMIFS($J$25:$J$224,$C$25:$C$224,$C206,$G$25:$G$224,Lists!$A$16)","v":0},0,null,"",null,{"$f":"IF(C206=0,\"\",LEFT(INDEX(Lists!$H$5:$H$49,MATCH(C206,Lists!$G$5:$G$49,0),1),1))","v":""},null,0,"","",null,"0"]
[{"$f":"Planning!A191","v":"I183"},{"$f":"Planning!B191","v":0},{"$f":"Planning!C191","v":0},{"$f":"Planning!D191","v":0},{"$f":"Planning!E191","v":0},{"$f":"IF(Planning!G191<>0,Planning!G191,\"\")","v":""},{"$f":"Planning!H191","v":0},{"$f":"Planning!I191","v":0},{"$f":"IF(OR(W207=\"1\",AND(W207<>\"1\",G207=Lists!$A$17)),Y207,0)","v":0},null,{"$f":"IF(AND(W207=\"2\",G207<>Lists!$A$17),AA207,Z207)","v":""},"",{"$f":"Planning!J191","v":{"v":0,"d":"0.00"}},{"v":0,"d":"0.00"},null,"","",{"$f":"SUMIFS($J$25:$J$224,$C$25:$C$224,$C207,$G$25:$G$224,Lists!$A$16)","v":0},0,null,"",null,{"$f":"IF(C207=0,\"\",LEFT(INDEX(Lists!$H$5:$H$49,MATCH(C207,Lists!$G$5:$G$49,0),1),1))","v":""},null,0,"","",null,"0"]
[{"$f":"Planning!A192","v":"I184"},{"$f":"Planning!B192","v":0},{"$f":"Planning!C192","v":0},{"$f":"Planning!D192","v":0},{"$f":"Planning!E192","v":0},{"$f":"IF(Planning!G192<>0,Planning!G192,\"\")","v":""},{"$f":"Planning!H192","v":0},{"$f":"Planning!I192","v":0},{"$f":"IF(OR(W208=\"1\",AND(W208<>\"1\",G208=Lists!$A$17)),Y208,0)","v":0},null,{"$f":"IF(AND(W208=\"2\",G208<>Lists!$A$17),AA208,Z208)","v":""},"",{"$f":"Planning!J192","v":{"v":0,"d":"0.00"}},{"v":0,"d":"0.00"},null,"","",{"$f":"SUMIFS($J$25:$J$224,$C$25:$C$224,$C208,$G$25:$G$224,Lists!$A$16)","v":0},0,null,"",null,{"$f":"IF(C208=0,\"\",LEFT(INDEX(Lists!$H$5:$H$49,MATCH(C208,Lists!$G$5:$G$49,0),1),1))","v":""},null,0,"","",null,"0"]
[{"$f":"Planning!A193","v":"I185"},{"$f":"Planning!B193","v":0},{"$f":"Planning!C193","v":0},{"$f":"Planning!D193","v":0},{"$f":"Planning!E193","v":0},{"$f":"IF(Planning!G193<>0,Planning!G193,\"\")","v":""},{"$f":"Planning!H193","v":0},{"$f":"Planning!I193","v":0},{"$f":"IF(OR(W209=\"1\",AND(W209<>\"1\",G209=Lists!$A$17)),Y209,0)","v":0},null,{"$f":"IF(AND(W209=\"2\",G209<>Lists!$A$17),AA209,Z209)","v":""},"",{"$f":"Planning!J193","v":{"v":0,"d":"0.00"}},{"v":0,"d":"0.00"},null,"","",{"$f":"SUMIFS($J$25:$J$224,$C$25:$C$224,$C209,$G$25:$G$224,Lists!$A$16)","v":0},0,null,"",null,{"$f":"IF(C209=0,\"\",LEFT(INDEX(Lists!$H$5:$H$49,MATCH(C209,Lists!$G$5:$G$49,0),1),1))","v":""},null,0,"","",null,"0"]
[{"$f":"Planning!A194","v":"I186"},{"$f":"Planning!B194","v":0},{"$f":"Planning!C194","v":0},{"$f":"Planning!D194","v":0},{"$f":"Planning!E194","v":0},{"$f":"IF(Planning!G194<>0,Planning!G194,\"\")","v":""},{"$f":"Planning!H194","v":0},{"$f":"Planning!I194","v":0},{"$f":"IF(OR(W210=\"1\",AND(W210<>\"1\",G210=Lists!$A$17)),Y210,0)","v":0},null,{"$f":"IF(AND(W210=\"2\",G210<>Lists!$A$17),AA210,Z210)","v":""},"",{"$f":"Planning!J194","v":{"v":0,"d":"0.00"}},{"v":0,"d":"0.00"},null,"","",{"$f":"SUMIFS($J$25:$J$224,$C$25:$C$224,$C210,$G$25:$G$224,Lists!$A$16)","v":0},0,null,"",null,{"$f":"IF(C210=0,\"\",LEFT(INDEX(Lists!$H$5:$H$49,MATCH(C210,Lists!$G$5:$G$49,0),1),1))","v":""},null,0,"","",null,"0"]
[{"$f":"Planning!A195","v":"I187"},{"$f":"Planning!B195","v":0},{"$f":"Planning!C195","v":0},{"$f":"Planning!D195","v":0},{"$f":"Planning!E195","v":0},{"$f":"IF(Planning!G195<>0,Planning!G195,\"\")","v":""},{"$f":"Planning!H195","v":0},{"$f":"Planning!I195","v":0},{"$f":"IF(OR(W211=\"1\",AND(W211<>\"1\",G211=Lists!$A$17)),Y211,0)","v":0},null,{"$f":"IF(AND(W211=\"2\",G211<>Lists!$A$17),AA211,Z211)","v":""},"",{"$f":"Planning!J195","v":{"v":0,"d":"0.00"}},{"v":0,"d":"0.00"},null,"","",{"$f":"SUMIFS($J$25:$J$224,$C$25:$C$224,$C211,$G$25:$G$224,Lists!$A$16)","v":0},0,null,"",null,{"$f":"IF(C211=0,\"\",LEFT(INDEX(Lists!$H$5:$H$49,MATCH(C211,Lists!$G$5:$G$49,0),1),1))","v":""},null,0,"","",null,"0"]
[{"$f":"Planning!A196","v":"I188"},{"$f":"Planning!B196","v":0},{"$f":"Planning!C196","v":0},{"$f":"Planning!D196","v":0},{"$f":"Planning!E196","v":0},{"$f":"IF(Planning!G196<>0,Planning!G196,\"\")","v":""},{"$f":"Planning!H196","v":0},{"$f":"Planning!I196","v":0},{"$f":"IF(OR(W212=\"1\",AND(W212<>\"1\",G212=Lists!$A$17)),Y212,0)","v":0},null,{"$f":"IF(AND(W212=\"2\",G212<>Lists!$A$17),AA212,Z212)","v":""},"",{"$f":"Planning!J196","v":{"v":0,"d":"0.00"}},{"v":0,"d":"0.00"},null,"","",{"$f":"SUMIFS($J$25:$J$224,$C$25:$C$224,$C212,$G$25:$G$224,Lists!$A$16)","v":0},0,null,"",null,{"$f":"IF(C212=0,\"\",LEFT(INDEX(Lists!$H$5:$H$49,MATCH(C212,Lists!$G$5:$G$49,0),1),1))","v":""},null,0,"","",null,"0"]
[{"$f":"Planning!A197","v":"I189"},{"$f":"Planning!B197","v":0},{"$f":"Planning!C197","v":0},{"$f":"Planning!D197","v":0},{"$f":"Planning!E197","v":0},{"$f":"IF(Planning!G197<>0,Planning!G197,\"\")","v":""},{"$f":"Planning!H197","v":0},{"$f":"Planning!I197","v":0},{"$f":"IF(OR(W213=\"1\",AND(W213<>\"1\",G213=Lists!$A$17)),Y213,0)","v":0},null,{"$f":"IF(AND(W213=\"2\",G213<>Lists!$A$17),AA213,Z213)","v":""},"",{"$f":"Planning!J197","v":{"v":0,"d":"0.00"}},{"v":0,"d":"0.00"},null,"","",{"$f":"SUMIFS($J$25:$J$224,$C$25:$C$224,$C213,$G$25:$G$224,Lists!$A$16)","v":0},0,null,"",null,{"$f":"IF(C213=0,\"\",LEFT(INDEX(Lists!$H$5:$H$49,MATCH(C213,Lists!$G$5:$G$49,0),1),1))","v":""},null,0,"","",null,"0"]
[{"$f":"Planning!A198","v":"I190"},{"$f":"Planning!B198","v":0},{"$f":"Planning!C198","v":0},{"$f":"Planning!D198","v":0},{"$f":"Planning!E198","v":0},{"$f":"IF(Planning!G198<>0,Planning!G198,\"\")","v":""},{"$f":"Planning!H198","v":0},{"$f":"Planning!I198","v":0},{"$f":"IF(OR(W214=\"1\",AND(W214<>\"1\",G214=Lists!$A$17)),Y214,0)","v":0},null,{"$f":"IF(AND(W214=\"2\",G214<>Lists!$A$17),AA214,Z214)","v":""},"",{"$f":"Planning!J198","v":{"v":0,"d":"0.00"}},{"v":0,"d":"0.00"},null,"","",{"$f":"SUMIFS($J$25:$J$224,$C$25:$C$224,$C214,$G$25:$G$224,Lists!$A$16)","v":0},0,null,"",null,{"$f":"IF(C214=0,\"\",LEFT(INDEX(Lists!$H$5:$H$49,MATCH(C214,Lists!$G$5:$G$49,0),1),1))","v":""},null,0,"","",null,"0"]
[{"$f":"Planning!A199","v":"I191"},{"$f":"Planning!B199","v":0},{"$f":"Planning!C199","v":0},{"$f":"Planning!D199","v":0},{"$f":"Planning!E199","v":0},{"$f":"IF(Planning!G199<>0,Planning!G199,\"\")","v":""},{"$f":"Planning!H199","v":0},{"$f":"Planning!I199","v":0},{"$f":"IF(OR(W215=\"1\",AND(W215<>\"1\",G215=Lists!$A$17)),Y215,0)","v":0},null,{"$f":"IF(AND(W215=\"2\",G215<>Lists!$A$17),AA215,Z215)","v":""},"",{"$f":"Planning!J199","v":{"v":0,"d":"0.00"}},{"v":0,"d":"0.00"},null,"","",{"$f":"SUMIFS($J$25:$J$224,$C$25:$C$224,$C215,$G$25:$G$224,Lists!$A$16)","v":0},0,null,"",null,{"$f":"IF(C215=0,\"\",LEFT(INDEX(Lists!$H$5:$H$49,MATCH(C215,Lists!$G$5:$G$49,0),1),1))","v":""},null,0,"","",null,"0"]
[{"$f":"Planning!A200","v":"I192"},{"$f":"Planning!B200","v":0},{"$f":"Planning!C200","v":0},{"$f":"Planning!D200","v":0},{"$f":"Planning!E200","v":0},{"$f":"IF(Planning!G200<>0,Planning!G200,\"\")","v":""},{"$f":"Planning!H200","v":0},{"$f":"Planning!I200","v":0},{"$f":"IF(OR(W216=\"1\",AND(W216<>\"1\",G216=Lists!$A$17)),Y216,0)","v":0},null,{"$f":"IF(AND(W216=\"2\",G216<>Lists!$A$17),AA216,Z216)","v":""},"",{"$f":"Planning!J200","v":{"v":0,"d":"0.00"}},{"v":0,"d":"0.00"},null,"","",{"$f":"SUMIFS($J$25:$J$224,$C$25:$C$224,$C216,$G$25:$G$224,Lists!$A$16)","v":0},0,null,"",null,{"$f":"IF(C216=0,\"\",LEFT(INDEX(Lists!$H$5:$H$49,MATCH(C216,Lists!$G$5:$G$49,0),1),1))","v":""},null,0,"","",null,"0"]
[{"$f":"Planning!A201","v":"I193"},{"$f":"Planning!B201","v":0},{"$f":"Planning!C201","v":0},{"$f":"Planning!D201","v":0},{"$f":"Planning!E201","v":0},{"$f":"IF(Planning!G201<>0,Planning!G201,\"\")","v":""},{"$f":"Planning!H201","v":0},{"$f":"Planning!I201","v":0},{"$f":"IF(OR(W217=\"1\",AND(W217<>\"1\",G217=Lists!$A$17)),Y217,0)","v":0},null,{"$f":"IF(AND(W217=\"2\",G217<>Lists!$A$17),AA217,Z217)","v":""},{"$f":"IF($U217=ExcluirDelPLogro,\"\",IF(AND(H217=0,I217=0,J217=0),\"\",K217))","v":""},{"$f":"Planning!J201","v":{"v":0,"d":"0.00"}},{"v":0,"d":"0.00"},null,"",{"$f":"IF($U217=ExcluirDelPLogro,\"\",IF(AND(M217=0,N217=0,O217=0),\"\",P217))","v":""},{"$f":"SUMIFS($J$25:$J$224,$C$25:$C$224,$C217,$G$25:$G$224,Lists!$A$16)","v":0},0,null,"",null,{"$f":"IF(C217=0,\"\",LEFT(INDEX(Lists!$H$5:$H$49,MATCH(C217,Lists!$G$5:$G$49,0),1),1))","v":""},null,0,"","",null,"0"]
[{"$f":"Planning!A202","v":"I194"},{"$f":"Planning!B202","v":0},{"$f":"Planning!C202","v":0},{"$f":"Planning!D202","v":0},{"$f":"Planning!E202","v":0},{"$f":"IF(Planning!G202<>0,Planning!G202,\"\")","v":""},{"$f":"Planning!H202","v":0},{"$f":"Planning!I202","v":0},{"$f":"IF(OR(W218=\"1\",AND(W218<>\"1\",G218=Lists!$A$17)),Y218,0)","v":0},null,{"$f":"IF(AND(W218=\"2\",G218<>Lists!$A$17),AA218,Z218)","v":""},"",{"$f":"Planning!J202","v":{"v":0,"d":"0.00"}},{"v":0,"d":"0.00"},null,{"$f":"IF(AND(M218=0,N218=0,O218=0),\"\",IF((M218+N218)>0,O218/(M218+N218),O218))","v":""},"",{"$f":"SUMIFS($J$25:$J$224,$C$25:$C$224,$C218,$G$25:$G$224,Lists!$A$16)","v":0},{"$f":"SUMIFS($O$25:$O$224,$C$25:$C$224,$C218,$G$25:$G$224,\"<>0\")","v":0},null,{"$f":"IF(B218=0,\"\",IF(LEFT(B218,1)=\"1\",\"1\",\"2\"))","v":""},null,{"$f":"IF(C218=0,\"\",LEFT(INDEX(Lists!$H$5:$H$49,MATCH(C218,Lists!$G$5:$G$49,0),1),1))","v":""},null,0,{"$f":"IF(AND(H218=0,I218=0,J218=0),\"\",IF((H218+I218)>0,J218/(H218+I218),J218))","v":""},{"$f":"IF(AND(H218=0,I218=0,J218=0),\"\",IF(J218>0,H218/J218,0))","v":""},null,{"$f":"U218&C218","v":"0"}]
[{"$f":"Planning!A203","v":"I195"},{"$f":"Planning!B203","v":0},{"$f":"Planning!C203","v":0},{"$f":"Planning!D203","v":0},{"$f":"Planning!E203","v":0},{"$f":"IF(Planning!G203<>0,Planning!G203,\"\")","v":""},{"$f":"Planning!H203","v":0},{"$f":"Planning!I203","v":0},{"$f":"IF(OR(W219=\"1\",AND(W219<>\"1\",G219=Lists!$A$17)),Y219,0)","v":0},null,{"$f":"IF(AND(W219=\"2\",G219<>Lists!$A$17),AA219,Z219)","v":""},"",{"$f":"Planning!J203","v":{"v":0,"d":"0.00"}},{"v":0,"d":"0.00"},null,"","",{"$f":"SUMIFS($J$25:$J$224,$C$25:$C$224,$C219,$G$25:$G$224,Lists!$A$16)","v":0},0,null,"",null,{"$f":"IF(C219=0,\"\",LEFT(INDEX(Lists!$H$5:$H$49,MATCH(C219,Lists!$G$5:$G$49,0),1),1))","v":""},null,0,"","",null,"0"]
[{"$f":"Planning!A204","v":"I196"},{"$f":"Planning!B204","v":0},{"$f":"Planning!C204","v":0},{"$f":"Planning!D204","v":0},{"$f":"Planning!E204","v":0},{"$f":"IF(Planning!G204<>0,Planning!G204,\"\")","v":""},{"$f":"Planning!H204","v":0},{"$f":"Planning!I204","v":0},{"$f":"IF(OR(W220=\"1\",AND(W220<>\"1\",G220=Lists!$A$17)),Y220,0)","v":0},null,{"$f":"IF(AND(W220=\"2\",G220<>Lists!$A$17),AA220,Z220)","v":""},"",{"$f":"Planning!J204","v":{"v":0,"d":"0.00"}},{"v":0,"d":"0.00"},null,"","",{"$f":"SUMIFS($J$25:$J$224,$C$25:$C$224,$C220,$G$25:$G$224,Lists!$A$16)","v":0},0,null,"",null,{"$f":"IF(C220=0,\"\",LEFT(INDEX(Lists!$H$5:$H$49,MATCH(C220,Lists!$G$5:$G$49,0),1),1))","v":""},null,0,"","",null,"0"]
[{"$f":"Planning!A205","v":"I197"},{"$f":"Planning!B205","v":0},{"$f":"Planning!C205","v":0},{"$f":"Planning!D205","v":0},{"$f":"Planning!E205","v":0},{"$f":"IF(Planning!G205<>0,Planning!G205,\"\")","v":""},{"$f":"Planning!H205","v":0},{"$f":"Planning!I205","v":0},{"$f":"IF(OR(W221=\"1\",AND(W221<>\"1\",G221=Lists!$A$17)),Y221,0)","v":0},null,{"$f":"IF(AND(W221=\"2\",G221<>Lists!$A$17),AA221,Z221)","v":""},"",{"$f":"Planning!J205","v":{"v":0,"d":"0.00"}},{"v":0,"d":"0.00"},null,"","",{"$f":"SUMIFS($J$25:$J$224,$C$25:$C$224,$C221,$G$25:$G$224,Lists!$A$16)","v":0},0,null,"",null,{"$f":"IF(C221=0,\"\",LEFT(INDEX(Lists!$H$5:$H$49,MATCH(C221,Lists!$G$5:$G$49,0),1),1))","v":""},null,0,"","",null,"0"]
[{"$f":"Planning!A206","v":"I198"},{"$f":"Planning!B206","v":0},{"$f":"Planning!C206","v":0},{"$f":"Planning!D206","v":0},{"$f":"Planning!E206","v":0},{"$f":"IF(Planning!G206<>0,Planning!G206,\"\")","v":""},{"$f":"Planning!H206","v":0},{"$f":"Planning!I206","v":0},{"$f":"IF(OR(W222=\"1\",AND(W222<>\"1\",G222=Lists!$A$17)),Y222,0)","v":0},null,{"$f":"IF(AND(W222=\"2\",G222<>Lists!$A$17),AA222,Z222)","v":""},"",{"$f":"Planning!J206","v":{"v":0,"d":"0.00"}},{"v":0,"d":"0.00"},null,"","",{"$f":"SUMIFS($J$25:$J$224,$C$25:$C$224,$C222,$G$25:$G$224,Lists!$A$16)","v":0},0,null,"",null,{"$f":"IF(C222=0,\"\",LEFT(INDEX(Lists!$H$5:$H$49,MATCH(C222,Lists!$G$5:$G$49,0),1),1))","v":""},null,0,"","",null,"0"]
[{"$f":"Planning!A207","v":"I199"},{"$f":"Planning!B207","v":0},{"$f":"Planning!C207","v":0},{"$f":"Planning!D207","v":0},{"$f":"Planning!E207","v":0},{"$f":"IF(Planning!G207<>0,Planning!G207,\"\")","v":""},{"$f":"Planning!H207","v":0},{"$f":"Planning!I207","v":0},{"$f":"IF(OR(W223=\"1\",AND(W223<>\"1\",G223=Lists!$A$17)),Y223,0)","v":0},null,{"$f":"IF(AND(W223=\"2\",G223<>Lists!$A$17),AA223,Z223)","v":""},"",{"$f":"Planning!J207","v":{"v":0,"d":"0.00"}},{"v":0,"d":"0.00"},null,"","",{"$f":"SUMIFS($J$25:$J$224,$C$25:$C$224,$C223,$G$25:$G$224,Lists!$A$16)","v":0},0,null,"",null,{"$f":"IF(C223=0,\"\",LEFT(INDEX(Lists!$H$5:$H$49,MATCH(C223,Lists!$G$5:$G$49,0),1),1))","v":""},null,0,"","",null,"0"]
[{"$f":"Planning!A208","v":"I200"},{"$f":"Planning!B208","v":0},{"$f":"Planning!C208","v":0},{"$f":"Planning!D208","v":0},{"$f":"Planning!E208","v":0},{"$f":"IF(Planning!G208<>0,Planning!G208,\"\")","v":""},{"$f":"Planning!H208","v":0},{"$f":"Planning!I208","v":0},{"$f":"IF(OR(W224=\"1\",AND(W224<>\"1\",G224=Lists!$A$17)),Y224,0)","v":0},null,{"$f":"IF(AND(W224=\"2\",G224<>Lists!$A$17),AA224,Z224)","v":""},"",{"$f":"Planning!J208","v":{"v":0,"d":"0.00"}},{"v":0,"d":"0.00"},null,"","",{"$f":"SUMIFS($J$25:$J$224,$C$25:$C$224,$C224,$G$25:$G$224,Lists!$A$16)","v":0},0,null,"",null,{"$f":"IF(C224=0,\"\",LEFT(INDEX(Lists!$H$5:$H$49,MATCH(C224,Lists!$G$5:$G$49,0),1),1))","v":""},null,0,"","",null,"0"]
[{"$nulls":20},".",null,".",null,".",".",".",".",".",".","."]
[]
[{"$f":"Setup!AN6","v":"PR Dashboard indicators"}]
[{"$f":"Setup!AP8","v":"Financial reports planned"},{"$nulls":6},1]
[{"$f":"Setup!AP9","v":"Financial reports overdue"},{"$nulls":6},0]
[{"$f":"Setup!AP10","v":0}]
[{"$f":"Setup!AP11","v":0}]
[{"$f":"Setup!AP12","v":0}]
[{"$f":"Setup!AP13","v":0}]
[{"$f":"Setup!AP14","v":0}]
[{"$f":"Setup!AP15","v":"Supervision actions recommended"},{"$nulls":6},2]
[{"$f":"Setup!AP16","v":"Supervision recommendations past due"},{"$nulls":6},1]
[{"$f":"Setup!AP17","v":"Programmatic reports planned"},{"$nulls":6},1]
[{"$f":"Setup!AP18","v":"Programmatic reports past due"},{"$nulls":6},0]
[{"$f":"Setup!AP19","v":0}]
[{"$f":"Setup!AP20","v":0}]
[{"$f":"Setup!AP21","v":0}]
[{"$f":"Setup!AP22","v":0}]
[{"$f":"Setup!AP23","v":0}]
[{"$f":"Setup!AP24","v":0}]
[{"$f":"Setup!AP25","v":0}]
[{"$f":"Setup!AP26","v":0}]
[{"$f":"Setup!AP27","v":0}]
[{"$f":"Setup!AP28","v":0}]
[{"$f":"Setup!AP29","v":0}]
[{"$f":"Setup!AP30","v":0}]
[{"$f":"Setup!AP31","v":0}]
[{"$f":"Setup!AP32","v":0}]
[{"$f":"Setup!AP33","v":0}]
[{"$f":"Setup!AP34","v":0}]
[{"$f":"Setup!AP35","v":0}]
[{"$f":"Setup!AP36","v":0}]
[{"$f":"Setup!AP37","v":0}]
[{"$f":"Setup!AP38","v":0}]
[{"$f":"Setup!AP39","v":"Actual stock level - PS39 - Product 1: Efavirenz, 600 mg, 30 tablets"},{"$nulls":6},3]
[{"$f":"Setup!AP40","v":"Actual stock level - PS40 - Product 2: Efavirenz, 200 mg, 90 capsules"},{"$nulls":6},4]
[{"$f":"Setup!AP41","v":"Actual stock level - PS41 - Product 3: TDF/3TC, 300/300 mg, 30 tablets"},{"$nulls":6},5]
[{"$f":"Setup!AP42","v":"Actual stock level - PS42 - Product 4: 3TC, 10 mg/ml, oral solution 240 ml"},{"$nulls":6},6]
[{"$f":"Setup!AP43","v":0}]
[{"$f":"Setup!AP44","v":0}]
[{"$f":"Setup!AP45","v":0}]
[{"$f":"Setup!AP46","v":0}]
[{"$f":"Setup!AP47","v":0}]
[{"$f":"Setup!AP48","v":0}]
[{"$f":"Setup!AP49","v":0}]
[{"$f":"Setup!AP50","v":0}]
[{"$f":"Setup!AP51","v":0}]
[{"$f":"Setup!AP52","v":0}]
[{"$f":"Setup!AP53","v":0}]
[{"$f":"Setup!AP54","v":0}]
[{"$f":"Setup!AP55","v":0}]
[{"$f":"Setup!AP56","v":0}]
[{"$f":"Setup!AP57","v":0}]
[{"$f":"Setup!AP58","v":0}]
[{"$f":"Setup!AP59","v":0}]
[{"$f":"Setup!AP60","v":0}]
[{"$f":"Setup!AP61","v":0}]
[{"$f":"Setup!AP62","v":0}]
[{"$f":"Setup!AP63","v":0}]
[{"$f":"Setup!AP64","v":0}]
[{"$f":"Setup!AP65","v":0}]
[{"$f":"Setup!AP66","v":0}]
[{"$f":"Setup!AP67","v":0}]
[{"$f":"Setup!AP68","v":0}]
[{"$f":"Setup!AP69","v":0}]
[]
[]
[{"$f":"Translations!A138","v":"Narrative comments from results (to be filled by the Subrecipient)"}]
{"$rows_empty":43}
[{"$f":"Translations!A139","v":"This section is filled in exclusively by PR's programmatic and financial monitors."}]
[]
[{"$f":"Translations!A150","v":"PROGRAMMATIC"},null,null,{"$f":"Translations!A140","v":"Name of person conducting programmatic verification"}]
[]
[]
[{"$nulls":3},{"$f":"Translations!A141","v":"Contextual details"}]
[]
[]
[]
[]
[]
[]
[{"$nulls":3},{"$f":"Translations!A151","v":"Description of identified problem(s)"}]
[]
[]
[]
[]
[]
[]
[{"$nulls":3},{"$f":"Translations!A152","v":"Recommendations and actions to be taken"}]
[{"$nulls":3},"1)"]
[{"$nulls":3},"2)"]
[{"$nulls":3},"3)"]
[{"$nulls":3},"4)"]
[{"$nulls":3},"5)"]
[]
[]
[]
[{"$f":"Translations!A154","v":"FINANCIAL"},null,null,{"$f":"Translations!A153","v":"Name of person conducting financial verification"}]
[]
[]
[{"$nulls":3},{"$f":"Translations!A141","v":"Contextual details"}]
{"$rows_empty":7}
[{"$nulls":3},{"$f":"Translations!A151","v":"Description of identified problem(s)"}]
[]
[]
[]
[]
[]
[]
[{"$nulls":3},{"$f":"Translations!A152","v":"Recommendations and actions to be taken"}]
[{"$nulls":3},"1)"]
[{"$nulls":3},"2)"]
[{"$nulls":3},"3)"]
[{"$nulls":3},"4)"]
[{"$nulls":3},"5)"]
[]
[]
[]
[]
[]
[{"$f":"Translations!A321","v":"To be completed by the PR"},{"$nulls":6},{"$f":"Translations!A324","v":"To be completed by the SR"}]
[{"$f":"Translations!A322","v":"Position"},{"$nulls":3},{"$f":"Translations!A323","v":"Signature"},null,null,{"$f":"Translations!A322","v":"Position"},null,{"$f":"Translations!A323","v":"Signature"}]

{"sheet":"Month 2","index":13,"n_rows":394,"n_cols":29,"rows_kept":394,"hidden":true,"merged":[[1,4,1,13],[1,14,1,15],[2,4,2,13],[2,14,3,15],[3,4,3,13],[4,4,4,13],[4,22,16,26],[5,9,5,15],[6,0,15,7],[6,9,7,15],[9,9,9,10],[9,12,9,15],[10,9,11,10],[10,12,11,15],[13,9,15,13],[13,14,13,15],[14,14,15,15],[16,6,16,7],[17,3,17,4],[17,7,17,8],[17,9,17,10],[17,12,17,13],[17,14,17,15],[18,7,18,10],[18,12,18,15],[18,24,18,26],[19,0,20,0],[19,1,20,1],[19,2,20,2],[19,3,20,3],[19,4,20,4],[19,5,20,5],[19,7,20,7],[19,8,20,8],[19,9,20,9],[19,10,20,10],[19,12,20,12],[19,13,20,13],[19,14,20,14],[19,15,20,15],[19,17,19,18],[19,20,20,20],[19,22,20,22],[19,24,20,24],[19,25,20,25],[19,26,20,26],[19,28,20,28],[226,0,226,7],[227,0,227,6],[228,0,228,6],[229,0,229,6],[230,0,230,6],[231,0,231,6],[232,0,232,6],[233,0,233,6],[234,0,234,6],[235,0,235,6],[236,0,236,6],[237,0,237,6],[238,0,238,6],[239,0,239,6],[240,0,240,6],[241,0,241,6],[242,0,242,6],[243,0,243,6],[244,0,244,6],[245,0,245,6],[246,0,246,6],[247,0,247,6],[248,0,248,6],[249,0,249,6],[250,0,250,6],[251,0,251,6],[252,0,252,6],[253,0,253,6],[254,0,254,6],[255,0,255,6],[256,0,256,6],[257,0,257,6],[258,0,258,6],[259,0,259,6],[260,0,260,6],[261,0,261,6],[262,0,262,6],[263,0,263,6],[264,0,264,6],[265,0,265,6],[266,0,266,6],[267,0,267,6],[268,0,268,6],[269,0,269,6],[270,0,270,6],[271,0,271,6],[272,0,272,6],[273,0,273,6],[274,0,274,6],[275,0,275,6],[276,0,276,6],[277,0,277,6],[278,0,278,6],[279,0,279,6],[280,0,280,6],[281,0,281,6],[282,0,282,6],[283,0,283,6],[284,0,284,6],[285,0,285,6],[286,0,286,6],[287,0,287,6],[288,0,288,6],[291,0,291,15],[292,0,333,15],[335,0,335,15],[337,0,360,0],[337,14,337,15],[338,3,338,4],[338,14,338,15],[341,3,345,15],[348,3,352,15],[355,3,355,15],[356,3,356,15],[357,3,357,15],[358,3,358,15],[359,3,359,15],[363,0,387,0],[363,14,363,15],[364,3,364,4],[364,14,364,15],[367,3,371,15],[375,3,379,15],[382,3,382,15],[383,3,383,15],[384,3,384,15],[385,3,385,15],[386,3,386,15],[392,0,392,4],[392,7,392,12],[393,0,393,3],[393,7,393,8],[393,9,393,12],[394,0,394,3],[394,7,394,8],[394,9,394,12],[395,0,395,3],[395,7,395,8],[395,9,395,12],[396,0,396,3],[396,7,396,8],[396,9,396,12],[397,0,397,3],[397,7,397,8],[397,9,397,12]]}
[]
["Month 2",{"$nulls":3},{"$f":"Translations!A80","v":"SR Management Tool"},{"$nulls":9},{"$f":"Translations!A129","v":"SCORE"}]
[{"$nulls":4},{"$f":"Setup!H11","v":"Direct Gender Partnership (DGP)"},{"$nulls":9},{"$f":"K23","v":{"v":0.9073060548924587,"d":"90.73%"}}]
[{"$nulls":4},{"$f":" Setup!H14 & \"  (\" & Setup!H13 & \")\" & \"  (\" & Setup!H15 & \")\"","v":"DMR-202-G01-H-00  (January  2016 - December 2016)  (HIV / AIDS)"}]
[{"$nulls":4},{"$f":"Setup!AB9 & \"  (\" & Setup!H16 & \")\"","v":"February  ($ - USD)"},{"$nulls":17},"A. Se colocará lo pendiente (Y) en (I) siempre que (W) sea 1. Estandar o que (W) sea diferente de 1. sin embargo la actividad (G) NO contribuya al indicador.\n\nB. En la columna % Logro (K) se colocará siempre el Logro 1. Estandar (Z). Solamente se colocará el Logro 2. Inverso (AA) cuando (W) sea 2 y (G) sea diferente de 2. NO... es decir, el valor inverso va para las actvividades que contribuyan al indicador G = 1. SI y para el Indicador en si G = 0... por eso se pregunta por G diferente de 2. NO.. para incluir los 1. SI y a los 0\n\n"]
[{"$f":"Setup!G19","v":"Details of programatic indicators"},{"$nulls":8},{"$f":"Setup!G17","v":"Key population"}]
[{"$f":"Setup!H19","v":"# PLHIV that initiated ARV with CD4 count <200\n# new HIV+ enrolled in care services \n# aged 10-24 yrs reached by HIV life skills ed. in school "},{"$nulls":8},{"$f":"Setup!H17","v":"Sex Workers - Migrants - Women"}]
[]
[]
[{"$nulls":9},{"$f":"Translations!A119","v":"Report date"},null,null,{"$f":"Translations!A130","v":"Reported by"}]
[{"$nulls":9},"2016-03-13",null,null,"William Brown"]
[]
[]
[{"$nulls":9},{"$f":"Translations!A132","v":"Note: Enter disubursment ammount here if the PR made a disbursment this month. Leave blank if no disbursment was made."},{"$nulls":4},{"$f":"Translations!A131","v":"Disbursement"}]
[{"$nulls":14},{"v":0,"d":"0.00"}]
[]
[]
[{"$nulls":3},{"$f":"Translations!A233","v":"Input data in spaces with this color"},{"$nulls":3},{"$f":"Translations!A120","v":"Date of verification"},null,"2016-03-15",null,null,{"$f":"Translations!A120","v":"Date of verification"},null,"2016-03-15"]
[{"$nulls":7},{"$f":"Translations!A133","v":"Programmatic aspects"},{"$nulls":4},{"$f":"Translations!A134","v":"Financial aspects"},{"$nulls":9},"COMPORTAMIENTO",null,"Sólo en el Aspecto Programático"]
[{"$f":"Translations!A88","v":"Item"},"Tipo de Ítem","ID Enlace",{"$f":"Translations!A91","v":"Activity code"},{"$f":"Translations!A92","v":"Indicator / Activity"},{"$f":"Translations!A79","v":"TGF costs groups"},null,{"$f":"Translations!A135","v":"Monthly target"},{"$f":"Translations!A136","v":"Balance from previous period"},{"$f":"Translations!A137","v":"Results "},{"$f":"Translations!A108","v":"Result %"},null,{"$f":"Translations!$A$360","v":"Monthly budget"},{"$f":"Translations!A136","v":"Balance from previous period"},{"$f":"Translations!$A$361","v":"Monthly expenditure"},{"$f":"Translations!A108","v":"Result %"},null,"Sumatorias Indicadores",null,null,"Indicador =1 Actividad = 2",null,"1. Estandar\n2. Inverso\n3. No Acumula",null,"Pendiente Mes Anterior\n SIN CONDICION","Logro\n1. Estandar","Logro\n2. Inverso",null,"TAG \nPerformance"]
[{"$nulls":17},"PROG","FIN"]
[]
[{"$f":"Translations!A109","v":"Totals"},{"$nulls":6},"-","-","-",{"$f":"IFERROR(AVERAGEIF(L25:L224,\"<> \"),\"\")","v":{"v":0.9073060548924587,"d":"90.73%"}},null,{"$f":"SUMIFS(M25:M224,$G$25:$G$224,\"<>0\")","v":{"v":148600,"d":"148,600.00"}},{"$f":"SUMIFS(N25:N224,$G$25:$G$224,\"<>0\")","v":{"v":10725,"d":"10,725.00"}},{"$f":"SUMIFS(O25:O224,$G$25:$G$224,\"<>0\")","v":{"v":137680,"d":"137,680.00"}},{"$f":"IFERROR(AVERAGEIF(Q25:Q224,\"<> \"),\"\")","v":{"v":0.9055763933301925,"d":"90.56%"}}]
[]
[{"$f":"Planning!A9","v":"I001"},{"$f":"Planning!B9","v":"1. Indicator"},{"$f":"Planning!C9","v":"Pr68"},{"$f":"Planning!D9","v":1},{"$f":"Planning!E9","v":"[Pr68] # PLHIV that initiated ARV with CD4 count <200 Target [2. Inverse]"},{"$f":"IF(Planning!G9<>0,Planning!G9,\"\")","v":""},{"$f":"Planning!H9","v":0},{"$f":"Planning!L9","v":200},{"$f":"IF(OR(W25=\"1\",AND(W25<>\"1\",G25=Lists!$A$17)),Y25,0)","v":0},{"$f":"R25","v":199},{"$f":"IF(AND(W25=\"2\",G25<>Lists!$A$17),AA25,Z25)","v":{"v":1.0050251256281406,"d":"100.50%"}},{"$f":"IF($U25=ExcluirDelPLogro,\"\",IF(AND(H25=0,I25=0,J25=0),\"\",K25))","v":1.0050251256281406},{"$f":"Planning!M9","v":{"v":49200,"d":"49,200.00"}},{"$f":"'Month 1'!M25+'Month 1'!N25-'Month 1'!O25","v":{"v":1575,"d":"1,575.00"}},{"$f":"S25","v":{"v":45680,"d":"45,680.00"}},{"$f":"IF(AND(M25=0,N25=0,O25=0),\"\",IF((M25+N25)>0,O25/(M25+N25),O25))","v":{"v":0.8996553421959625,"d":"89.97%"}},{"$f":"IF($U25=ExcluirDelPLogro,\"\",IF(AND(M25=0,N25=0,O25=0),\"\",P25))","v":0.8996553421959625},{"$f":"SUMIFS($J$25:$J$224,$C$25:$C$224,$C25,$G$25:$G$224,Lists!$A$16)","v":199},{"$f":"SUMIFS($O$25:$O$224,$C$25:$C$224,$C25,$G$25:$G$224,\"<>0\")","v":45680},null,{"$f":"IF(B25=0,\"\",IF(LEFT(B25,1)=\"1\",\"1\",\"2\"))","v":"1"},null,{"$f":"IF(C25=0,\"\",LEFT(INDEX(Lists!$H$5:$H$49,MATCH(C25,Lists!$G$5:$G$49,0),1),1))","v":"2"},null,{"$f":"'Month 1'!H25+'Month 1'!I25-'Month 1'!J25","v":2},{"$f":"IF(AND(H25=0,I25=0,J25=0),\"\",IF((H25+I25)>0,J25/(H25+I25),J25))","v":0.995},{"$f":"IF(AND(H25=0,I25=0,J25=0),\"\",IF(J25>0,H25/J25,0))","v":1.0050251256281406},null,{"$f":"U25&C25","v":"1Pr68"}]
[{"$f":"Planning!A10","v":"I002"},{"$f":"Planning!B10","v":"2. Activity: Contributing"},{"$f":"Planning!C10","v":"Pr68"},{"$f":"Planning!D10","v":1.2},{"$f":"Planning!E10","v":"PLHIV reimbursed for transportation costs to HIV testing and treatment centres\n"},{"$f":"IF(Planning!G10<>0,Planning!G10,\"\")","v":"12. Living support to client/ target population "},{"$f":"Planning!H10","v":"1. YES"},{"$f":"Planning!L10","v":200},{"$f":"IF(OR(W26=\"1\",AND(W26<>\"1\",G26=Lists!$A$17)),Y26,0)","v":0},199,{"$f":"IF(AND(W26=\"2\",G26<>Lists!$A$17),AA26,Z26)","v":{"v":1.0050251256281406,"d":"100.50%"}},"",{"$f":"Planning!M10","v":{"v":35000,"d":"35,000.00"}},{"$f":"'Month 1'!M26+'Month 1'!N26-'Month 1'!O26","v":{"v":0,"d":"0.00"}},{"v":30000,"d":"30,000.00"},{"v":0.8571428571428571,"d":"85.71%"},"",{"$f":"SUMIFS($J$25:$J$224,$C$25:$C$224,$C26,$G$25:$G$224,Lists!$A$16)","v":199},{"$f":"SUMIFS($O$25:$O$224,$C$25:$C$224,$C26,$G$25:$G$224,\"<>0\")","v":45680},null,{"$f":"IF(B26=0,\"\",IF(LEFT(B26,1)=\"1\",\"1\",\"2\"))","v":"2"},null,{"$f":"IF(C26=0,\"\",LEFT(INDEX(Lists!$H$5:$H$49,MATCH(C26,Lists!$G$5:$G$49,0),1),1))","v":"2"},null,{"$f":"'Month 1'!H26+'Month 1'!I26-'Month 1'!J26","v":2},{"$f":"IF(AND(H26=0,I26=0,J26=0),\"\",IF((H26+I26)>0,J26/(H26+I26),J26))","v":0.995},1.0050251256281406,null,{"$f":"U26&C26","v":"2Pr68"}]
[{"$f":"Planning!A11","v":"I003"},{"$f":"Planning!B11","v":"3. Activity: Non-Contributing"},{"$f":"Planning!C11","v":"Pr68"},{"$f":"Planning!D11","v":1.3},{"$f":"Planning!E11","v":"Communication materials produced to educate HIV+ patients about HIV treatment (Migrants and Sexual Workers). \n\n"},{"$f":"IF(Planning!G11<>0,Planning!G11,\"\")","v":"10. Communication material and publications"},{"$f":"Planning!H11","v":"2. NO"},{"$f":"Planning!L11","v":25},{"$f":"IF(OR(W27=\"1\",AND(W27<>\"1\",G27=Lists!$A$17)),Y27,0)","v":5},25,{"$f":"IF(AND(W27=\"2\",G27<>Lists!$A$17),AA27,Z27)","v":{"v":0.8333333333333334,"d":"83.33%"}},"",{"$f":"Planning!M11","v":{"v":700,"d":"700.00"}},{"$f":"'Month 1'!M27+'Month 1'!N27-'Month 1'!O27","v":{"v":50,"d":"50.00"}},{"v":680,"d":"680.00"},{"v":0.9066666666666666,"d":"90.67%"},"",{"$f":"SUMIFS($J$25:$J$224,$C$25:$C$224,$C27,$G$25:$G$224,Lists!$A$16)","v":199},45680,null,"2",null,{"$f":"IF(C27=0,\"\",LEFT(INDEX(Lists!$H$5:$H$49,MATCH(C27,Lists!$G$5:$G$49,0),1),1))","v":"2"},null,{"$f":"'Month 1'!H27+'Month 1'!I27-'Month 1'!J27","v":5},0.8333333333333334,1,null,"2Pr68"]
[{"$f":"Planning!A12","v":"I004"},{"$f":"Planning!B12","v":"3. Activity: Non-Contributing"},{"$f":"Planning!C12","v":"Pr68"},{"$f":"Planning!D12","v":1.4},{"$f":"Planning!E12","v":"Supervisory visits to verify the appropriate application of testing and treatment protocols at centers. "},{"$f":"IF(Planning!G12<>0,Planning!G12,\"\")","v":"11. Programme administration costs"},{"$f":"Planning!H12","v":"2. NO"},{"$f":"Planning!L12","v":60},{"$f":"IF(OR(W28=\"1\",AND(W28<>\"1\",G28=Lists!$A$17)),Y28,0)","v":9},65,{"$f":"IF(AND(W28=\"2\",G28<>Lists!$A$17),AA28,Z28)","v":{"v":0.9420289855072463,"d":"94.20%"}},"",{"$f":"Planning!M12","v":{"v":13500,"d":"13,500.00"}},{"$f":"'Month 1'!M28+'Month 1'!N28-'Month 1'!O28","v":{"v":1525,"d":"1,525.00"}},{"v":15000,"d":"15,000.00"},{"v":0.9983361064891847,"d":"99.83%"},"",{"$f":"SUMIFS($J$25:$J$224,$C$25:$C$224,$C28,$G$25:$G$224,Lists!$A$16)","v":199},45680,null,"2",null,{"$f":"IF(C28=0,\"\",LEFT(INDEX(Lists!$H$5:$H$49,MATCH(C28,Lists!$G$5:$G$49,0),1),1))","v":"2"},null,{"$f":"'Month 1'!H28+'Month 1'!I28-'Month 1'!J28","v":9},0.9420289855072463,0.9230769230769231,null,"2Pr68"]
[{"$f":"Planning!A13","v":"I005"},{"$f":"Planning!B13","v":"1. Indicator"},{"$f":"Planning!C13","v":"Pr72"},{"$f":"Planning!D13","v":2},{"$f":"Planning!E13","v":"[Pr72] # new HIV+ enrolled in care services Target [3. Non-Cumulative]"},{"$f":"IF(Planning!G13<>0,Planning!G13,\"\")","v":""},{"$f":"Planning!H13","v":0},{"$f":"Planning!L13","v":124},{"$f":"IF(OR(W29=\"1\",AND(W29<>\"1\",G29=Lists!$A$17)),Y29,0)","v":0},{"$f":"R29","v":115},{"$f":"IF(AND(W29=\"2\",G29<>Lists!$A$17),AA29,Z29)","v":{"v":0.9274193548387096,"d":"92.74%"}},0.9274193548387096,{"$f":"Planning!M13","v":{"v":27900,"d":"27,900.00"}},{"$f":"'Month 1'!M29+'Month 1'!N29-'Month 1'!O29","v":{"v":2900,"d":"2,900.00"}},{"$f":"S29","v":{"v":28000,"d":"28,000.00"}},{"v":0.9090909090909091,"d":"90.91%"},0.9090909090909091,{"$f":"SUMIFS($J$25:$J$224,$C$25:$C$224,$C29,$G$25:$G$224,Lists!$A$16)","v":115},28000,null,"1",null,{"$f":"IF(C29=0,\"\",LEFT(INDEX(Lists!$H$5:$H$49,MATCH(C29,Lists!$G$5:$G$49,0),1),1))","v":"3"},null,{"$f":"'Month 1'!H29+'Month 1'!I29-'Month 1'!J29","v":4},0.9274193548387096,1.0782608695652174,null,"1Pr72"]
[{"$f":"Planning!A14","v":"I006"},{"$f":"Planning!B14","v":"2. Activity: Contributing"},{"$f":"Planning!C14","v":"Pr72"},{"$f":"Planning!D14","v":2.1},{"$f":"Planning!E14","v":"Enrollment of  newly diagnosed HIV+ patients for home visits to monitor use of ARV."},{"$f":"IF(Planning!G14<>0,Planning!G14,\"\")","v":"12. Living support to client/ target population "},{"$f":"Planning!H14","v":"1. YES"},{"$f":"Planning!L14","v":124},{"$f":"IF(OR(W30=\"1\",AND(W30<>\"1\",G30=Lists!$A$17)),Y30,0)","v":0},115,{"$f":"IF(AND(W30=\"2\",G30<>Lists!$A$17),AA30,Z30)","v":{"v":0.9274193548387096,"d":"92.74%"}},"",{"$f":"Planning!M14","v":{"v":27900,"d":"27,900.00"}},{"$f":"'Month 1'!M30+'Month 1'!N30-'Month 1'!O30","v":{"v":2900,"d":"2,900.00"}},{"v":28000,"d":"28,000.00"},{"v":0.9090909090909091,"d":"90.91%"},"",{"$f":"SUMIFS($J$25:$J$224,$C$25:$C$224,$C30,$G$25:$G$224,Lists!$A$16)","v":115},28000,null,"2",null,{"$f":"IF(C30=0,\"\",LEFT(INDEX(Lists!$H$5:$H$49,MATCH(C30,Lists!$G$5:$G$49,0),1),1))","v":"3"},null,{"$f":"'Month 1'!H30+'Month 1'!I30-'Month 1'!J30","v":4},0.9274193548387096,1.0782608695652174,null,"2Pr72"]
[{"$f":"Planning!A15","v":"I007"},{"$f":"Planning!B15","v":"1. Indicator"},{"$f":"Planning!C15","v":"Pr74"},{"$f":"Planning!D15","v":3},{"$f":"Planning!E15","v":"[Pr74] # aged 10-24 yrs reached by HIV life skills ed. in school  Target [1. Standard]"},{"$f":"IF(Planning!G15<>0,Planning!G15,\"\")","v":""},{"$f":"Planning!H15","v":0},{"$f":"Planning!L15","v":300},{"$f":"IF(OR(W31=\"1\",AND(W31<>\"1\",G31=Lists!$A$17)),Y31,0)","v":80},{"$f":"R31","v":300},{"$f":"IF(AND(W31=\"2\",G31<>Lists!$A$17),AA31,Z31)","v":{"v":0.7894736842105263,"d":"78.95%"}},0.7894736842105263,{"$f":"Planning!M15","v":{"v":67500,"d":"67,500.00"}},{"$f":"'Month 1'!M31+'Month 1'!N31-'Month 1'!O31","v":{"v":6250,"d":"6,250.00"}},{"$f":"S31","v":{"v":60000,"d":"60,000.00"}},{"v":0.8135593220338984,"d":"81.36%"},0.8135593220338984,{"$f":"SUMIFS($J$25:$J$224,$C$25:$C$224,$C31,$G$25:$G$224,Lists!$A$16)","v":300},60000,null,"1",null,{"$f":"IF(C31=0,\"\",LEFT(INDEX(Lists!$H$5:$H$49,MATCH(C31,Lists!$G$5:$G$49,0),1),1))","v":"1"},null,{"$f":"'Month 1'!H31+'Month 1'!I31-'Month 1'!J31","v":80},0.7894736842105263,1,null,"1Pr74"]
[{"$f":"Planning!A16","v":"I008"},{"$f":"Planning!B16","v":"2. Activity: Contributing"},{"$f":"Planning!C16","v":"Pr74"},{"$f":"Planning!D16","v":3.1},{"$f":"Planning!E16","v":"Transportation of students to meetings and conferences for peer education activities"},{"$f":"IF(Planning!G16<>0,Planning!G16,\"\")","v":"2. Travel related costs"},{"$f":"Planning!H16","v":"1. YES"},{"$f":"Planning!L16","v":300},{"$f":"IF(OR(W32=\"1\",AND(W32<>\"1\",G32=Lists!$A$17)),Y32,0)","v":80},300,{"$f":"IF(AND(W32=\"2\",G32<>Lists!$A$17),AA32,Z32)","v":{"v":0.7894736842105263,"d":"78.95%"}},"",{"$f":"Planning!M16","v":{"v":67500,"d":"67,500.00"}},{"$f":"'Month 1'!M32+'Month 1'!N32-'Month 1'!O32","v":{"v":6250,"d":"6,250.00"}},{"v":60000,"d":"60,000.00"},{"v":0.8135593220338984,"d":"81.36%"},"",{"$f":"SUMIFS($J$25:$J$224,$C$25:$C$224,$C32,$G$25:$G$224,Lists!$A$16)","v":300},60000,null,"2",null,{"$f":"IF(C32=0,\"\",LEFT(INDEX(Lists!$H$5:$H$49,MATCH(C32,Lists!$G$5:$G$49,0),1),1))","v":"1"},null,{"$f":"'Month 1'!H32+'Month 1'!I32-'Month 1'!J32","v":80},0.7894736842105263,1,null,"2Pr74"]
[{"$f":"Planning!A17","v":"I009"},{"$f":"Planning!B17","v":"1. Indicator"},{"$f":"Planning!C17","v":"OI01"},{"$f":"Planning!D17","v":4},{"$f":"Planning!E17","v":"[OI01] # of new orphans and vulnerable children (0 - 17 yrs) benefiting from  services provided at OVC centers [1. Standard]"},{"$f":"IF(Planning!G17<>0,Planning!G17,\"\")","v":""},{"$f":"Planning!H17","v":0},{"$f":"Planning!L17","v":0},{"$f":"IF(OR(W33=\"1\",AND(W33<>\"1\",G33=Lists!$A$17)),Y33,0)","v":0},{"$f":"R33","v":0},{"$f":"IF(AND(W33=\"2\",G33<>Lists!$A$17),AA33,Z33)","v":""},"",{"$f":"Planning!M17","v":{"v":4000,"d":"4,000.00"}},{"$f":"'Month 1'!M33+'Month 1'!N33-'Month 1'!O33","v":{"v":0,"d":"0.00"}},{"$f":"S33","v":{"v":4000,"d":"4,000.00"}},{"v":1,"d":"100.00%"},1,{"$f":"SUMIFS($J$25:$J$224,$C$25:$C$224,$C33,$G$25:$G$224,Lists!$A$16)","v":0},4000,null,"1",null,{"$f":"IF(C33=0,\"\",LEFT(INDEX(Lists!$H$5:$H$49,MATCH(C33,Lists!$G$5:$G$49,0),1),1))","v":"1"},null,{"$f":"'Month 1'!H33+'Month 1'!I33-'Month 1'!J33","v":0},"","",null,"1OI01"]
[{"$f":"Planning!A18","v":"I010"},{"$f":"Planning!B18","v":"3. Activity: Non-Contributing"},{"$f":"Planning!C18","v":"OI01"},{"$f":"Planning!D18","v":4.1},{"$f":"Planning!E18","v":"# of OVC centers established and fully equipped  "},{"$f":"IF(Planning!G18<>0,Planning!G18,\"\")","v":"8. Infrastructure "},{"$f":"Planning!H18","v":"2. NO"},{"$f":"Planning!L18","v":1},{"$f":"IF(OR(W34=\"1\",AND(W34<>\"1\",G34=Lists!$A$17)),Y34,0)","v":0},1,{"$f":"IF(AND(W34=\"2\",G34<>Lists!$A$17),AA34,Z34)","v":{"v":1,"d":"100.00%"}},"",{"$f":"Planning!M18","v":{"v":4000,"d":"4,000.00"}},{"$f":"'Month 1'!M34+'Month 1'!N34-'Month 1'!O34","v":{"v":0,"d":"0.00"}},{"v":4000,"d":"4,000.00"},{"v":1,"d":"100.00%"},"",{"$f":"SUMIFS($J$25:$J$224,$C$25:$C$224,$C34,$G$25:$G$224,Lists!$A$16)","v":0},4000,null,"2",null,{"$f":"IF(C34=0,\"\",LEFT(INDEX(Lists!$H$5:$H$49,MATCH(C34,Lists!$G$5:$G$49,0),1),1))","v":"1"},null,{"$f":"'Month 1'!H34+'Month 1'!I34-'Month 1'!J34","v":0},1,1,null,"2OI01"]
[{"$f":"Planning!A19","v":"I011"},{"$f":"Planning!B19","v":"2. Activity: Contributing"},{"$f":"Planning!C19","v":"OI01"},{"$f":"Planning!D19","v":4.2},{"$f":"Planning!E19","v":"# of OVC registered at centres"},{"$f":"IF(Planning!G19<>0,Planning!G19,\"\")","v":"12. Living support to client/ target population "},{"$f":"Planning!H19","v":"1. YES"},{"$f":"Planning!L19","v":0},{"$f":"IF(OR(W35=\"1\",AND(W35<>\"1\",G35=Lists!$A$17)),Y35,0)","v":0},0,{"$f":"IF(AND(W35=\"2\",G35<>Lists!$A$17),AA35,Z35)","v":""},"",{"$f":"Planning!M19","v":{"v":0,"d":"0.00"}},{"$f":"'Month 1'!M35+'Month 1'!N35-'Month 1'!O35","v":{"v":0,"d":"0.00"}},{"v":0,"d":"0.00"},"","",{"$f":"SUMIFS($J$25:$J$224,$C$25:$C$224,$C35,$G$25:$G$224,Lists!$A$16)","v":0},4000,null,"2",null,{"$f":"IF(C35=0,\"\",LEFT(INDEX(Lists!$H$5:$H$49,MATCH(C35,Lists!$G$5:$G$49,0),1),1))","v":"1"},null,{"$f":"'Month 1'!H35+'Month 1'!I35-'Month 1'!J35","v":0},"","",null,"2OI01"]
[{"$f":"Planning!A20","v":"I012"},{"$f":"Planning!B20","v":"3. Activity: Non-Contributing"},{"$f":"Planning!C20","v":"OI01"},{"$f":"Planning!D20","v":4.3},{"$f":"Planning!E20","v":"# of meals provided at the OVC centers "},{"$f":"IF(Planning!G20<>0,Planning!G20,\"\")","v":"12. Living support to client/ target population "},{"$f":"Planning!H20","v":"2. NO"},{"$f":"Planning!L20","v":0},{"$f":"IF(OR(W36=\"1\",AND(W36<>\"1\",G36=Lists!$A$17)),Y36,0)","v":0},0,{"$f":"IF(AND(W36=\"2\",G36<>Lists!$A$17),AA36,Z36)","v":""},"",{"$f":"Planning!M20","v":{"v":0,"d":"0.00"}},{"$f":"'Month 1'!M36+'Month 1'!N36-'Month 1'!O36","v":{"v":0,"d":"0.00"}},{"v":0,"d":"0.00"},"","",{"$f":"SUMIFS($J$25:$J$224,$C$25:$C$224,$C36,$G$25:$G$224,Lists!$A$16)","v":0},4000,null,"2",null,{"$f":"IF(C36=0,\"\",LEFT(INDEX(Lists!$H$5:$H$49,MATCH(C36,Lists!$G$5:$G$49,0),1),1))","v":"1"},null,{"$f":"'Month 1'!H36+'Month 1'!I36-'Month 1'!J36","v":0},"","",null,"2OI01"]
[{"$f":"Planning!A21","v":"I013"},{"$f":"Planning!B21","v":0},{"$f":"Planning!C21","v":0},{"$f":"Planning!D21","v":0},{"$f":"Planning!E21","v":0},{"$f":"IF(Planning!G21<>0,Planning!G21,\"\")","v":""},{"$f":"Planning!H21","v":0},{"$f":"Planning!L21","v":0},{"$f":"IF(OR(W37=\"1\",AND(W37<>\"1\",G37=Lists!$A$17)),Y37,0)","v":0},null,{"$f":"IF(AND(W37=\"2\",G37<>Lists!$A$17),AA37,Z37)","v":""},"",{"$f":"Planning!M21","v":{"v":0,"d":"0.00"}},{"$f":"'Month 1'!M37+'Month 1'!N37-'Month 1'!O37","v":{"v":0,"d":"0.00"}},null,"","",{"$f":"SUMIFS($J$25:$J$224,$C$25:$C$224,$C37,$G$25:$G$224,Lists!$A$16)","v":0},0,null,"",null,{"$f":"IF(C37=0,\"\",LEFT(INDEX(Lists!$H$5:$H$49,MATCH(C37,Lists!$G$5:$G$49,0),1),1))","v":""},null,{"$f":"'Month 1'!H37+'Month 1'!I37-'Month 1'!J37","v":0},"","",null,"0"]
[{"$f":"Planning!A22","v":"I014"},{"$f":"Planning!B22","v":0},{"$f":"Planning!C22","v":0},{"$f":"Planning!D22","v":0},{"$f":"Planning!E22","v":0},{"$f":"IF(Planning!G22<>0,Planning!G22,\"\")","v":""},{"$f":"Planning!H22","v":0},{"$f":"Planning!L22","v":0},{"$f":"IF(OR(W38=\"1\",AND(W38<>\"1\",G38=Lists!$A$17)),Y38,0)","v":0},null,{"$f":"IF(AND(W38=\"2\",G38<>Lists!$A$17),AA38,Z38)","v":""},"",{"$f":"Planning!M22","v":{"v":0,"d":"0.00"}},{"$f":"'Month 1'!M38+'Month 1'!N38-'Month 1'!O38","v":{"v":0,"d":"0.00"}},null,"","",{"$f":"SUMIFS($J$25:$J$224,$C$25:$C$224,$C38,$G$25:$G$224,Lists!$A$16)","v":0},0,null,"",null,{"$f":"IF(C38=0,\"\",LEFT(INDEX(Lists!$H$5:$H$49,MATCH(C38,Lists!$G$5:$G$49,0),1),1))","v":""},null,{"$f":"'Month 1'!H38+'Month 1'!I38-'Month 1'!J38","v":0},"","",null,"0"]
[{"$f":"Planning!A23","v":"I015"},{"$f":"Planning!B23","v":0},{"$f":"Planning!C23","v":0},{"$f":"Planning!D23","v":0},{"$f":"Planning!E23","v":0},{"$f":"IF(Planning!G23<>0,Planning!G23,\"\")","v":""},{"$f":"Planning!H23","v":0},{"$f":"Planning!L23","v":0},{"$f":"IF(OR(W39=\"1\",AND(W39<>\"1\",G39=Lists!$A$17)),Y39,0)","v":0},null,{"$f":"IF(AND(W39=\"2\",G39<>Lists!$A$17),AA39,Z39)","v":""},"",{"$f":"Planning!M23","v":{"v":0,"d":"0.00"}},{"$f":"'Month 1'!M39+'Month 1'!N39-'Month 1'!O39","v":{"v":0,"d":"0.00"}},null,"","",{"$f":"SUMIFS($J$25:$J$224,$C$25:$C$224,$C39,$G$25:$G$224,Lists!$A$16)","v":0},0,null,"",null,{"$f":"IF(C39=0,\"\",LEFT(INDEX(Lists!$H$5:$H$49,MATCH(C39,Lists!$G$5:$G$49,0),1),1))","v":""},null,{"$f":"'Month 1'!H39+'Month 1'!I39-'Month 1'!J39","v":0},"","",null,"0"]
[{"$f":"Planning!A24","v":"I016"},{"$f":"Planning!B24","v":0},{"$f":"Planning!C24","v":0},{"$f":"Planning!D24","v":0},{"$f":"Planning!E24","v":0},{"$f":"IF(Planning!G24<>0,Planning!G24,\"\")","v":""},{"$f":"Planning!H24","v":0},{"$f":"Planning!L24","v":0},{"$f":"IF(OR(W40=\"1\",AND(W40<>\"1\",G40=Lists!$A$17)),Y40,0)","v":0},null,{"$f":"IF(AND(W40=\"2\",G40<>Lists!$A$17),AA40,Z40)","v":""},"",{"$f":"Planning!M24","v":{"v":0,"d":"0.00"}},{"$f":"'Month 1'!M40+'Month 1'!N40-'Month 1'!O40","v":{"v":0,"d":"0.00"}},null,"","",{"$f":"SUMIFS($J$25:$J$224,$C$25:$C$224,$C40,$G$25:$G$224,Lists!$A$16)","v":0},0,null,"",null,{"$f":"IF(C40=0,\"\",LEFT(INDEX(Lists!$H$5:$H$49,MATCH(C40,Lists!$G$5:$G$49,0),1),1))","v":""},null,{"$f":"'Month 1'!H40+'Month 1'!I40-'Month 1'!J40","v":0},"","",null,"0"]
[{"$f":"Planning!A25","v":"I017"},{"$f":"Planning!B25","v":0},{"$f":"Planning!C25","v":0},{"$f":"Planning!D25","v":0},{"$f":"Planning!E25","v":0},{"$f":"IF(Planning!G25<>0,Planning!G25,\"\")","v":""},{"$f":"Planning!H25","v":0},{"$f":"Planning!L25","v":0},{"$f":"IF(OR(W41=\"1\",AND(W41<>\"1\",G41=Lists!$A$17)),Y41,0)","v":0},null,{"$f":"IF(AND(W41=\"2\",G41<>Lists!$A$17),AA41,Z41)","v":""},"",{"$f":"Planning!M25","v":{"v":0,"d":"0.00"}},{"$f":"'Month 1'!M41+'Month 1'!N41-'Month 1'!O41","v":{"v":0,"d":"0.00"}},null,"","",{"$f":"SUMIFS($J$25:$J$224,$C$25:$C$224,$C41,$G$25:$G$224,Lists!$A$16)","v":0},0,null,"",null,{"$f":"IF(C41=0,\"\",LEFT(INDEX(Lists!$H$5:$H$49,MATCH(C41,Lists!$G$5:$G$49,0),1),1))","v":""},null,{"$f":"'Month 1'!H41+'Month 1'!I41-'Month 1'!J41","v":0},"","",null,"0"]
[{"$f":"Planning!A26","v":"I018"},{"$f":"Planning!B26","v":0},{"$f":"Planning!C26","v":0},{"$f":"Planning!D26","v":0},{"$f":"Planning!E26","v":0},{"$f":"IF(Planning!G26<>0,Planning!G26,\"\")","v":""},{"$f":"Planning!H26","v":0},{"$f":"Planning!L26","v":0},{"$f":"IF(OR(W42=\"1\",AND(W42<>\"1\",G42=Lists!$A$17)),Y42,0)","v":0},null,{"$f":"IF(AND(W42=\"2\",G42<>Lists!$A$17),AA42,Z42)","v":""},"",{"$f":"Planning!M26","v":{"v":0,"d":"0.00"}},{"$f":"'Month 1'!M42+'Month 1'!N42-'Month 1'!O42","v":{"v":0,"d":"0.00"}},null,"","",{"$f":"SUMIFS($J$25:$J$224,$C$25:$C$224,$C42,$G$25:$G$224,Lists!$A$16)","v":0},0,null,"",null,{"$f":"IF(C42=0,\"\",LEFT(INDEX(Lists!$H$5:$H$49,MATCH(C42,Lists!$G$5:$G$49,0),1),1))","v":""},null,{"$f":"'Month 1'!H42+'Month 1'!I42-'Month 1'!J42","v":0},"","",null,"0"]
[{"$f":"Planning!A27","v":"I019"},{"$f":"Planning!B27","v":0},{"$f":"Planning!C27","v":0},{"$f":"Planning!D27","v":0},{"$f":"Planning!E27","v":0},{"$f":"IF(Planning!G27<>0,Planning!G27,\"\")","v":""},{"$f":"Planning!H27","v":0},{"$f":"Planning!L27","v":0},{"$f":"IF(OR(W43=\"1\",AND(W43<>\"1\",G43=Lists!$A$17)),Y43,0)","v":0},null,{"$f":"IF(AND(W43=\"2\",G43<>Lists!$A$17),AA43,Z43)","v":""},"",{"$f":"Planning!M27","v":{"v":0,"d":"0.00"}},{"$f":"'Month 1'!M43+'Month 1'!N43-'Month 1'!O43","v":{"v":0,"d":"0.00"}},null,"","",{"$f":"SUMIFS($J$25:$J$224,$C$25:$C$224,$C43,$G$25:$G$224,Lists!$A$16)","v":0},0,null,"",null,{"$f":"IF(C43=0,\"\",LEFT(INDEX(Lists!$H$5:$H$49,MATCH(C43,Lists!$G$5:$G$49,0),1),1))","v":""},null,{"$f":"'Month 1'!H43+'Month 1'!I43-'Month 1'!J43","v":0},"","",null,"0"]
[{"$f":"Planning!A28","v":"I020"},{"$f":"Planning!B28","v":0},{"$f":"Planning!C28","v":0},{"$f":"Planning!D28","v":0},{"$f":"Planning!E28","v":0},{"$f":"IF(Planning!G28<>0,Planning!G28,\"\")","v":""},{"$f":"Planning!H28","v":0},{"$f":"Planning!L28","v":0},{"$f":"IF(OR(W44=\"1\",AND(W44<>\"1\",G44=Lists!$A$17)),Y44,0)","v":0},null,{"$f":"IF(AND(W44=\"2\",G44<>Lists!$A$17),AA44,Z44)","v":""},"",{"$f":"Planning!M28","v":{"v":0,"d":"0.00"}},{"$f":"'Month 1'!M44+'Month 1'!N44-'Month 1'!O44","v":{"v":0,"d":"0.00"}},null,"","",{"$f":"SUMIFS($J$25:$J$224,$C$25:$C$224,$C44,$G$25:$G$224,Lists!$A$16)","v":0},0,null,"",null,{"$f":"IF(C44=0,\"\",LEFT(INDEX(Lists!$H$5:$H$49,MATCH(C44,Lists!$G$5:$G$49,0),1),1))","v":""},null,{"$f":"'Month 1'!H44+'Month 1'!I44-'Month 1'!J44","v":0},"","",null,"0"]
[{"$f":"Planning!A29","v":"I021"},{"$f":"Planning!B29","v":0},{"$f":"Planning!C29","v":0},{"$f":"Planning!D29","v":0},{"$f":"Planning!E29","v":0},{"$f":"IF(Planning!G29<>0,Planning!G29,\"\")","v":""},{"$f":"Planning!H29","v":0},{"$f":"Planning!L29","v":0},{"$f":"IF(OR(W45=\"1\",AND(W45<>\"1\",G45=Lists!$A$17)),Y45,0)","v":0},null,{"$f":"IF(AND(W45=\"2\",G45<>Lists!$A$17),AA45,Z45)","v":""},"",{"$f":"Planning!M29","v":{"v":0,"d":"0.00"}},{"$f":"'Month 1'!M45+'Month 1'!N45-'Month 1'!O45","v":{"v":0,"d":"0.00"}},null,"","",{"$f":"SUMIFS($J$25:$J$224,$C$25:$C$224,$C45,$G$25:$G$224,Lists!$A$16)","v":0},0,null,"",null,{"$f":"IF(C45=0,\"\",LEFT(INDEX(Lists!$H$5:$H$49,MATCH(C45,Lists!$G$5:$G$49,0),1),1))","v":""},null,{"$f":"'Month 1'!H45+'Month 1'!I45-'Month 1'!J45","v":0},"","",null,"0"]
[{"$f":"Planning!A30","v":"I022"},{"$f":"Planning!B30","v":0},{"$f":"Planning!C30","v":0},{"$f":"Planning!D30","v":0},{"$f":"Planning!E30","v":0},{"$f":"IF(Planning!G30<>0,Planning!G30,\"\")","v":""},{"$f":"Planning!H30","v":0},{"$f":"Planning!L30","v":0},{"$f":"IF(OR(W46=\"1\",AND(W46<>\"1\",G46=Lists!$A$17)),Y46,0)","v":0},null,{"$f":"IF(AND(W46=\"2\",G46<>Lists!$A$17),AA46,Z46)","v":""},"",{"$f":"Planning!M30","v":{"v":0,"d":"0.00"}},{"$f":"'Month 1'!M46+'Month 1'!N46-'Month 1'!O46","v":{"v":0,"d":"0.00"}},null,"","",{"$f":"SUMIFS($J$25:$J$224,$C$25:$C$224,$C46,$G$25:$G$224,Lists!$A$16)","v":0},0,null,"",null,{"$f":"IF(C46=0,\"\",LEFT(INDEX(Lists!$H$5:$H$49,MATCH(C46,Lists!$G$5:$G$49,0),1),1))","v":""},null,{"$f":"'Month 1'!H46+'Month 1'!I46-'Month 1'!J46","v":0},"","",null,"0"]
[{"$f":"Planning!A31","v":"I023"},{"$f":"Planning!B31","v":0},{"$f":"Planning!C31","v":0},{"$f":"Planning!D31","v":0},{"$f":"Planning!E31","v":0},{"$f":"IF(Planning!G31<>0,Planning!G31,\"\")","v":""},{"$f":"Planning!H31","v":0},{"$f":"Planning!L31","v":0},{"$f":"IF(OR(W47=\"1\",AND(W47<>\"1\",G47=Lists!$A$17)),Y47,0)","v":0},null,{"$f":"IF(AND(W47=\"2\",G47<>Lists!$A$17),AA47,Z47)","v":""},"",{"$f":"Planning!M31","v":{"v":0,"d":"0.00"}},{"$f":"'Month 1'!M47+'Month 1'!N47-'Month 1'!O47","v":{"v":0,"d":"0.00"}},null,"","",{"$f":"SUMIFS($J$25:$J$224,$C$25:$C$224,$C47,$G$25:$G$224,Lists!$A$16)","v":0},0,null,"",null,{"$f":"IF(C47=0,\"\",LEFT(INDEX(Lists!$H$5:$H$49,MATCH(C47,Lists!$G$5:$G$49,0),1),1))","v":""},null,{"$f":"'Month 1'!H47+'Month 1'!I47-'Month 1'!J47","v":0},"","",null,"0"]
[{"$f":"Planning!A32","v":"I024"},{"$f":"Planning!B32","v":0},{"$f":"Planning!C32","v":0},{"$f":"Planning!D32","v":0},{"$f":"Planning!E32","v":0},{"$f":"IF(Planning!G32<>0,Planning!G32,\"\")","v":""},{"$f":"Planning!H32","v":0},{"$f":"Planning!L32","v":0},{"$f":"IF(OR(W48=\"1\",AND(W48<>\"1\",G48=Lists!$A$17)),Y48,0)","v":0},null,{"$f":"IF(AND(W48=\"2\",G48<>Lists!$A$17),AA48,Z48)","v":""},"",{"$f":"Planning!M32","v":{"v":0,"d":"0.00"}},{"$f":"'Month 1'!M48+'Month 1'!N48-'Month 1'!O48","v":{"v":0,"d":"0.00"}},null,"","",{"$f":"SUMIFS($J$25:$J$224,$C$25:$C$224,$C48,$G$25:$G$224,Lists!$A$16)","v":0},0,null,"",null,{"$f":"IF(C48=0,\"\",LEFT(INDEX(Lists!$H$5:$H$49,MATCH(C48,Lists!$G$5:$G$49,0),1),1))","v":""},null,{"$f":"'Month 1'!H48+'Month 1'!I48-'Month 1'!J48","v":0},"","",null,"0"]
[{"$f":"Planning!A33","v":"I025"},{"$f":"Planning!B33","v":0},{"$f":"Planning!C33","v":0},{"$f":"Planning!D33","v":0},{"$f":"Planning!E33","v":0},{"$f":"IF(Planning!G33<>0,Planning!G33,\"\")","v":""},{"$f":"Planning!H33","v":0},{"$f":"Planning!L33","v":0},{"$f":"IF(OR(W49=\"1\",AND(W49<>\"1\",G49=Lists!$A$17)),Y49,0)","v":0},null,{"$f":"IF(AND(W49=\"2\",G49<>Lists!$A$17),AA49,Z49)","v":""},"",{"$f":"Planning!M33","v":{"v":0,"d":"0.00"}},{"$f":"'Month 1'!M49+'Month 1'!N49-'Month 1'!O49","v":{"v":0,"d":"0.00"}},null,"","",{"$f":"SUMIFS($J$25:$J$224,$C$25:$C$224,$C49,$G$25:$G$224,Lists!$A$16)","v":0},0,null,"",null,{"$f":"IF(C49=0,\"\",LEFT(INDEX(Lists!$H$5:$H$49,MATCH(C49,Lists!$G$5:$G$49,0),1),1))","v":""},null,{"$f":"'Month 1'!H49+'Month 1'!I49-'Month 1'!J49","v":0},"","",null,"0"]
[{"$f":"Planning!A34","v":"I026"},{"$f":"Planning!B34","v":0},{"$f":"Planning!C34","v":0},{"$f":"Planning!D34","v":0},{"$f":"Planning!E34","v":0},{"$f":"IF(Planning!G34<>0,Planning!G34,\"\")","v":""},{"$f":"Planning!H34","v":0},{"$f":"Planning!L34","v":0},{"$f":"IF(OR(W50=\"1\",AND(W50<>\"1\",G50=Lists!$A$17)),Y50,0)","v":0},null,{"$f":"IF(AND(W50=\"2\",G50<>Lists!$A$17),AA50,Z50)","v":""},"",{"$f":"Planning!M34","v":{"v":0,"d":"0.00"}},{"$f":"'Month 1'!M50+'Month 1'!N50-'Month 1'!O50","v":{"v":0,"d":"0.00"}},null,"","",{"$f":"SUMIFS($J$25:$J$224,$C$25:$C$224,$C50,$G$25:$G$224,Lists!$A$16)","v":0},0,null,"",null,{"$f":"IF(C50=0,\"\",LEFT(INDEX(Lists!$H$5:$H$49,MATCH(C50,Lists!$G$5:$G$49,0),1),1))","v":""},null,{"$f":"'Month 1'!H50+'Month 1'!I50-'Month 1'!J50","v":0},"","",null,"0"]
[{"$f":"Planning!A35","v":"I027"},{"$f":"Planning!B35","v":0},{"$f":"Planning!C35","v":0},{"$f":"Planning!D35","v":0},{"$f":"Planning!E35","v":0},{"$f":"IF(Planning!G35<>0,Planning!G35,\"\")","v":""},{"$f":"Planning!H35","v":0},{"$f":"Planning!L35","v":0},{"$f":"IF(OR(W51=\"1\",AND(W51<>\"1\",G51=Lists!$A$17)),Y51,0)","v":0},null,{"$f":"IF(AND(W51=\"2\",G51<>Lists!$A$17),AA51,Z51)","v":""},"",{"$f":"Planning!M35","v":{"v":0,"d":"0.00"}},{"$f":"'Month 1'!M51+'Month 1'!N51-'Month 1'!O51","v":{"v":0,"d":"0.00"}},null,"","",{"$f":"SUMIFS($J$25:$J$224,$C$25:$C$224,$C51,$G$25:$G$224,Lists!$A$16)","v":0},0,null,"",null,{"$f":"IF(C51=0,\"\",LEFT(INDEX(Lists!$H$5:$H$49,MATCH(C51,Lists!$G$5:$G$49,0),1),1))","v":""},null,{"$f":"'Month 1'!H51+'Month 1'!I51-'Month 1'!J51","v":0},"","",null,"0"]
[{"$f":"Planning!A36","v":"I028"},{"$f":"Planning!B36","v":0},{"$f":"Planning!C36","v":0},{"$f":"Planning!D36","v":0},{"$f":"Planning!E36","v":0},{"$f":"IF(Planning!G36<>0,Planning!G36,\"\")","v":""},{"$f":"Planning!H36","v":0},{"$f":"Planning!L36","v":0},{"$f":"IF(OR(W52=\"1\",AND(W52<>\"1\",G52=Lists!$A$17)),Y52,0)","v":0},null,{"$f":"IF(AND(W52=\"2\",G52<>Lists!$A$17),AA52,Z52)","v":""},"",{"$f":"Planning!M36","v":{"v":0,"d":"0.00"}},{"$f":"'Month 1'!M52+'Month 1'!N52-'Month 1'!O52","v":{"v":0,"d":"0.00"}},null,"","",{"$f":"SUMIFS($J$25:$J$224,$C$25:$C$224,$C52,$G$25:$G$224,Lists!$A$16)","v":0},0,null,"",null,{"$f":"IF(C52=0,\"\",LEFT(INDEX(Lists!$H$5:$H$49,MATCH(C52,Lists!$G$5:$G$49,0),1),1))","v":""},null,{"$f":"'Month 1'!H52+'Month 1'!I52-'Month 1'!J52","v":0},"","",null,"0"]
[{"$f":"Planning!A37","v":"I029"},{"$f":"Planning!B37","v":0},{"$f":"Planning!C37","v":0},{"$f":"Planning!D37","v":0},{"$f":"Planning!E37","v":0},{"$f":"IF(Planning!G37<>0,Planning!G37,\"\")","v":""},{"$f":"Planning!H37","v":0},{"$f":"Planning!L37","v":0},{"$f":"IF(OR(W53=\"1\",AND(W53<>\"1\",G53=Lists!$A$17)),Y53,0)","v":0},null,{"$f":"IF(AND(W53=\"2\",G53<>Lists!$A$17),AA53,Z53)","v":""},"",{"$f":"Planning!M37","v":{"v":0,"d":"0.00"}},{"$f":"'Month 1'!M53+'Month 1'!N53-'Month 1'!O53","v":{"v":0,"d":"0.00"}},null,"","",{"$f":"SUMIFS($J$25:$J$224,$C$25:$C$224,$C53,$G$25:$G$224,Lists!$A$16)","v":0},0,null,"",null,{"$f":"IF(C53=0,\"\",LEFT(INDEX(Lists!$H$5:$H$49,MATCH(C53,Lists!$G$5:$G$49,0),1),1))","v":""},null,{"$f":"'Month 1'!H53+'Month 1'!I53-'Month 1'!J53","v":0},"","",null,"0"]
[{"$f":"Planning!A38","v":"I030"},{"$f":"Planning!B38","v":0},{"$f":"Planning!C38","v":0},{"$f":"Planning!D38","v":0},{"$f":"Planning!E38","v":0},{"$f":"IF(Planning!G38<>0,Planning!G38,\"\")","v":""},{"$f":"Planning!H38","v":0},{"$f":"Planning!L38","v":0},{"$f":"IF(OR(W54=\"1\",AND(W54<>\"1\",G54=Lists!$A$17)),Y54,0)","v":0},null,{"$f":"IF(AND(W54=\"2\",G54<>Lists!$A$17),AA54,Z54)","v":""},"",{"$f":"Planning!M38","v":{"v":0,"d":"0.00"}},{"$f":"'Month 1'!M54+'Month 1'!N54-'Month 1'!O54","v":{"v":0,"d":"0.00"}},null,"","",{"$f":"SUMIFS($J$25:$J$224,$C$25:$C$224,$C54,$G$25:$G$224,Lists!$A$16)","v":0},0,null,"",null,{"$f":"IF(C54=0,\"\",LEFT(INDEX(Lists!$H$5:$H$49,MATCH(C54,Lists!$G$5:$G$49,0),1),1))","v":""},null,{"$f":"'Month 1'!H54+'Month 1'!I54-'Month 1'!J54","v":0},"","",null,"0"]
[{"$f":"Planning!A39","v":"I031"},{"$f":"Planning!B39","v":0},{"$f":"Planning!C39","v":0},{"$f":"Planning!D39","v":0},{"$f":"Planning!E39","v":0},{"$f":"IF(Planning!G39<>0,Planning!G39,\"\")","v":""},{"$f":"Planning!H39","v":0},{"$f":"Planning!L39","v":0},{"$f":"IF(OR(W55=\"1\",AND(W55<>\"1\",G55=Lists!$A$17)),Y55,0)","v":0},null,{"$f":"IF(AND(W55=\"2\",G55<>Lists!$A$17),AA55,Z55)","v":""},"",{"$f":"Planning!M39","v":{"v":0,"d":"0.00"}},{"$f":"'Month 1'!M55+'Month 1'!N55-'Month 1'!O55","v":{"v":0,"d":"0.00"}},null,"","",{"$f":"SUMIFS($J$25:$J$224,$C$25:$C$224,$C55,$G$25:$G$224,Lists!$A$16)","v":0},0,null,"",null,{"$f":"IF(C55=0,\"\",LEFT(INDEX(Lists!$H$5:$H$49,MATCH(C55,Lists!$G$5:$G$49,0),1),1))","v":""},null,{"$f":"'Month 1'!H55+'Month 1'!I55-'Month 1'!J55","v":0},"","",null,"0"]
[{"$f":"Planning!A40","v":"I032"},{"$f":"Planning!B40","v":0},{"$f":"Planning!C40","v":0},{"$f":"Planning!D40","v":0},{"$f":"Planning!E40","v":0},{"$f":"IF(Planning!G40<>0,Planning!G40,\"\")","v":""},{"$f":"Planning!H40","v":0},{"$f":"Planning!L40","v":0},{"$f":"IF(OR(W56=\"1\",AND(W56<>\"1\",G56=Lists!$A$17)),Y56,0)","v":0},null,{"$f":"IF(AND(W56=\"2\",G56<>Lists!$A$17),AA56,Z56)","v":""},"",{"$f":"Planning!M40","v":{"v":0,"d":"0.00"}},{"$f":"'Month 1'!M56+'Month 1'!N56-'Month 1'!O56","v":{"v":0,"d":"0.00"}},null,"","",{"$f":"SUMIFS($J$25:$J$224,$C$25:$C$224,$C56,$G$25:$G$224,Lists!$A$16)","v":0},0,null,"",null,{"$f":"IF(C56=0,\"\",LEFT(INDEX(Lists!$H$5:$H$49,MATCH(C56,Lists!$G$5:$G$49,0),1),1))","v":""},null,{"$f":"'Month 1'!H56+'Month 1'!I56-'Month 1'!J56","v":0},"","",null,"0"]
[{"$f":"Planning!A41","v":"I033"},{"$f":"Planning!B41","v":0},{"$f":"Planning!C41","v":0},{"$f":"Planning!D41","v":0},{"$f":"Planning!E41","v":0},{"$f":"IF(Planning!G41<>0,Planning!G41,\"\")","v":""},{"$f":"Planning!H41","v":0},{"$f":"Planning!L41","v":0},{"$f":"IF(OR(W57=\"1\",AND(W57<>\"1\",G57=Lists!$A$17)),Y57,0)","v":0},null,{"$f":"IF(AND(W57=\"2\",G57<>Lists!$A$17),AA57,Z57)","v":""},{"$f":"IF($U57=ExcluirDelPLogro,\"\",IF(AND(H57=0,I57=0,J57=0),\"\",K57))","v":""},{"$f":"Planning!M41","v":{"v":0,"d":"0.00"}},{"$f":"'Month 1'!M57+'Month 1'!N57-'Month 1'!O57","v":{"v":0,"d":"0.00"}},null,"",{"$f":"IF($U57=ExcluirDelPLogro,\"\",IF(AND(M57=0,N57=0,O57=0),\"\",P57))","v":""},{"$f":"SUMIFS($J$25:$J$224,$C$25:$C$224,$C57,$G$25:$G$224,Lists!$A$16)","v":0},0,null,"",null,{"$f":"IF(C57=0,\"\",LEFT(INDEX(Lists!$H$5:$H$49,MATCH(C57,Lists!$G$5:$G$49,0),1),1))","v":""},null,{"$f":"'Month 1'!H57+'Month 1'!I57-'Month 1'!J57","v":0},"",{"$f":"IF(AND(H57=0,I57=0,J57=0),\"\",IF(J57>0,H57/J57,0))","v":""},null,"0"]
[{"$f":"Planning!A42","v":"I034"},{"$f":"Planning!B42","v":0},{"$f":"Planning!C42","v":0},{"$f":"Planning!D42","v":0},{"$f":"Planning!E42","v":0},{"$f":"IF(Planning!G42<>0,Planning!G42,\"\")","v":""},{"$f":"Planning!H42","v":0},{"$f":"Planning!L42","v":0},{"$f":"IF(OR(W58=\"1\",AND(W58<>\"1\",G58=Lists!$A$17)),Y58,0)","v":0},null,{"$f":"IF(AND(W58=\"2\",G58<>Lists!$A$17),AA58,Z58)","v":""},"",{"$f":"Planning!M42","v":{"v":0,"d":"0.00"}},{"$f":"'Month 1'!M58+'Month 1'!N58-'Month 1'!O58","v":{"v":0,"d":"0.00"}},null,"","",{"$f":"SUMIFS($J$25:$J$224,$C$25:$C$224,$C58,$G$25:$G$224,Lists!$A$16)","v":0},0,null,"",null,{"$f":"IF(C58=0,\"\",LEFT(INDEX(Lists!$H$5:$H$49,MATCH(C58,Lists!$G$5:$G$49,0),1),1))","v":""},null,{"$f":"'Month 1'!H58+'Month 1'!I58-'Month 1'!J58","v":0},"","",null,"0"]
[{"$f":"Planning!A43","v":"I035"},{"$f":"Planning!B43","v":0},{"$f":"Planning!C43","v":0},{"$f":"Planning!D43","v":0},{"$f":"Planning!E43","v":0},{"$f":"IF(Planning!G43<>0,Planning!G43,\"\")","v":""},{"$f":"Planning!H43","v":0},{"$f":"Planning!L43","v":0},{"$f":"IF(OR(W59=\"1\",AND(W59<>\"1\",G59=Lists!$A$17)),Y59,0)","v":0},null,{"$f":"IF(AND(W59=\"2\",G59<>Lists!$A$17),AA59,Z59)","v":""},"",{"$f":"Planning!M43","v":{"v":0,"d":"0.00"}},{"$f":"'Month 1'!M59+'Month 1'!N59-'Month 1'!O59","v":{"v":0,"d":"0.00"}},null,"","",{"$f":"SUMIFS($J$25:$J$224,$C$25:$C$224,$C59,$G$25:$G$224,Lists!$A$16)","v":0},0,null,"",null,{"$f":"IF(C59=0,\"\",LEFT(INDEX(Lists!$H$5:$H$49,MATCH(C59,Lists!$G$5:$G$49,0),1),1))","v":""},null,{"$f":"'Month 1'!H59+'Month 1'!I59-'Month 1'!J59","v":0},"","",null,"0"]
[{"$f":"Planning!A44","v":"I036"},{"$f":"Planning!B44","v":0},{"$f":"Planning!C44","v":0},{"$f":"Planning!D44","v":0},{"$f":"Planning!E44","v":0},{"$f":"IF(Planning!G44<>0,Planning!G44,\"\")","v":""},{"$f":"Planning!H44","v":0},{"$f":"Planning!L44","v":0},{"$f":"IF(OR(W60=\"1\",AND(W60<>\"1\",G60=Lists!$A$17)),Y60,0)","v":0},null,{"$f":"IF(AND(W60=\"2\",G60<>Lists!$A$17),AA60,Z60)","v":""},"",{"$f":"Planning!M44","v":{"v":0,"d":"0.00"}},{"$f":"'Month 1'!M60+'Month 1'!N60-'Month 1'!O60","v":{"v":0,"d":"0.00"}},null,"","",{"$f":"SUMIFS($J$25:$J$224,$C$25:$C$224,$C60,$G$25:$G$224,Lists!$A$16)","v":0},0,null,"",null,{"$f":"IF(C60=0,\"\",LEFT(INDEX(Lists!$H$5:$H$49,MATCH(C60,Lists!$G$5:$G$49,0),1),1))","v":""},null,{"$f":"'Month 1'!H60+'Month 1'!I60-'Month 1'!J60","v":0},"","",null,"0"]
[{"$f":"Planning!A45","v":"I037"},{"$f":"Planning!B45","v":0},{"$f":"Planning!C45","v":0},{"$f":"Planning!D45","v":0},{"$f":"Planning!E45","v":0},{"$f":"IF(Planning!G45<>0,Planning!G45,\"\")","v":""},{"$f":"Planning!H45","v":0},{"$f":"Planning!L45","v":0},{"$f":"IF(OR(W61=\"1\",AND(W61<>\"1\",G61=Lists!$A$17)),Y61,0)","v":0},null,{"$f":"IF(AND(W61=\"2\",G61<>Lists!$A$17),AA61,Z61)","v":""},"",{"$f":"Planning!M45","v":{"v":0,"d":"0.00"}},{"$f":"'Month 1'!M61+'Month 1'!N61-'Month 1'!O61","v":{"v":0,"d":"0.00"}},null,"","",{"$f":"SUMIFS($J$25:$J$224,$C$25:$C$224,$C61,$G$25:$G$224,Lists!$A$16)","v":0},0,null,"",null,{"$f":"IF(C61=0,\"\",LEFT(INDEX(Lists!$H$5:$H$49,MATCH(C61,Lists!$G$5:$G$49,0),1),1))","v":""},null,{"$f":"'Month 1'!H61+'Month 1'!I61-'Month 1'!J61","v":0},"","",null,"0"]
[{"$f":"Planning!A46","v":"I038"},{"$f":"Planning!B46","v":0},{"$f":"Planning!C46","v":0},{"$f":"Planning!D46","v":0},{"$f":"Planning!E46","v":0},{"$f":"IF(Planning!G46<>0,Planning!G46,\"\")","v":""},{"$f":"Planning!H46","v":0},{"$f":"Planning!L46","v":0},{"$f":"IF(OR(W62=\"1\",AND(W62<>\"1\",G62=Lists!$A$17)),Y62,0)","v":0},null,{"$f":"IF(AND(W62=\"2\",G62<>Lists!$A$17),AA62,Z62)","v":""},"",{"$f":"Planning!M46","v":{"v":0,"d":"0.00"}},{"$f":"'Month 1'!M62+'Month 1'!N62-'Month 1'!O62","v":{"v":0,"d":"0.00"}},null,"","",{"$f":"SUMIFS($J$25:$J$224,$C$25:$C$224,$C62,$G$25:$G$224,Lists!$A$16)","v":0},0,null,"",null,{"$f":"IF(C62=0,\"\",LEFT(INDEX(Lists!$H$5:$H$49,MATCH(C62,Lists!$G$5:$G$49,0),1),1))","v":""},null,{"$f":"'Month 1'!H62+'Month 1'!I62-'Month 1'!J62","v":0},"","",null,"0"]
[{"$f":"Planning!A47","v":"I039"},{"$f":"Planning!B47","v":0},{"$f":"Planning!C47","v":0},{"$f":"Planning!D47","v":0},{"$f":"Planning!E47","v":0},{"$f":"IF(Planning!G47<>0,Planning!G47,\"\")","v":""},{"$f":"Planning!H47","v":0},{"$f":"Planning!L47","v":0},{"$f":"IF(OR(W63=\"1\",AND(W63<>\"1\",G63=Lists!$A$17)),Y63,0)","v":0},null,{"$f":"IF(AND(W63=\"2\",G63<>Lists!$A$17),AA63,Z63)","v":""},"",{"$f":"Planning!M47","v":{"v":0,"d":"0.00"}},{"$f":"'Month 1'!M63+'Month 1'!N63-'Month 1'!O63","v":{"v":0,"d":"0.00"}},null,"","",{"$f":"SUMIFS($J$25:$J$224,$C$25:$C$224,$C63,$G$25:$G$224,Lists!$A$16)","v":0},0,null,"",null,{"$f":"IF(C63=0,\"\",LEFT(INDEX(Lists!$H$5:$H$49,MATCH(C63,Lists!$G$5:$G$49,0),1),1))","v":""},null,{"$f":"'Month 1'!H63+'Month 1'!I63-'Month 1'!J63","v":0},"","",null,"0"]
[{"$f":"Planning!A48","v":"I040"},{"$f":"Planning!B48","v":0},{"$f":"Planning!C48","v":0},{"$f":"Planning!D48","v":0},{"$f":"Planning!E48","v":0},{"$f":"IF(Planning!G48<>0,Planning!G48,\"\")","v":""},{"$f":"Planning!H48","v":0},{"$f":"Planning!L48","v":0},{"$f":"IF(OR(W64=\"1\",AND(W64<>\"1\",G64=Lists!$A$17)),Y64,0)","v":0},null,{"$f":"IF(AND(W64=\"2\",G64<>Lists!$A$17),AA64,Z64)","v":""},"",{"$f":"Planning!M48","v":{"v":0,"d":"0.00"}},{"$f":"'Month 1'!M64+'Month 1'!N64-'Month 1'!O64","v":{"v":0,"d":"0.00"}},null,"","",{"$f":"SUMIFS($J$25:$J$224,$C$25:$C$224,$C64,$G$25:$G$224,Lists!$A$16)","v":0},0,null,"",null,{"$f":"IF(C64=0,\"\",LEFT(INDEX(Lists!$H$5:$H$49,MATCH(C64,Lists!$G$5:$G$49,0),1),1))","v":""},null,{"$f":"'Month 1'!H64+'Month 1'!I64-'Month 1'!J64","v":0},"","",null,"0"]
[{"$f":"Planning!A49","v":"I041"},{"$f":"Planning!B49","v":0},{"$f":"Planning!C49","v":0},{"$f":"Planning!D49","v":0},{"$f":"Planning!E49","v":0},{"$f":"IF(Planning!G49<>0,Planning!G49,\"\")","v":""},{"$f":"Planning!H49","v":0},{"$f":"Planning!L49","v":0},{"$f":"IF(OR(W65=\"1\",AND(W65<>\"1\",G65=Lists!$A$17)),Y65,0)","v":0},null,{"$f":"IF(AND(W65=\"2\",G65<>Lists!$A$17),AA65,Z65)","v":""},"",{"$f":"Planning!M49","v":{"v":0,"d":"0.00"}},{"$f":"'Month 1'!M65+'Month 1'!N65-'Month 1'!O65","v":{"v":0,"d":"0.00"}},null,"","",{"$f":"SUMIFS($J$25:$J$224,$C$25:$C$224,$C65,$G$25:$G$224,Lists!$A$16)","v":0},0,null,"",null,{"$f":"IF(C65=0,\"\",LEFT(INDEX(Lists!$H$5:$H$49,MATCH(C65,Lists!$G$5:$G$49,0),1),1))","v":""},null,{"$f":"'Month 1'!H65+'Month 1'!I65-'Month 1'!J65","v":0},"","",null,"0"]
[{"$f":"Planning!A50","v":"I042"},{"$f":"Planning!B50","v":0},{"$f":"Planning!C50","v":0},{"$f":"Planning!D50","v":0},{"$f":"Planning!E50","v":0},{"$f":"IF(Planning!G50<>0,Planning!G50,\"\")","v":""},{"$f":"Planning!H50","v":0},{"$f":"Planning!L50","v":0},{"$f":"IF(OR(W66=\"1\",AND(W66<>\"1\",G66=Lists!$A$17)),Y66,0)","v":0},null,{"$f":"IF(AND(W66=\"2\",G66<>Lists!$A$17),AA66,Z66)","v":""},"",{"$f":"Planning!M50","v":{"v":0,"d":"0.00"}},{"$f":"'Month 1'!M66+'Month 1'!N66-'Month 1'!O66","v":{"v":0,"d":"0.00"}},null,"","",{"$f":"SUMIFS($J$25:$J$224,$C$25:$C$224,$C66,$G$25:$G$224,Lists!$A$16)","v":0},0,null,"",null,{"$f":"IF(C66=0,\"\",LEFT(INDEX(Lists!$H$5:$H$49,MATCH(C66,Lists!$G$5:$G$49,0),1),1))","v":""},null,{"$f":"'Month 1'!H66+'Month 1'!I66-'Month 1'!J66","v":0},"","",null,"0"]
[{"$f":"Planning!A51","v":"I043"},{"$f":"Planning!B51","v":0},{"$f":"Planning!C51","v":0},{"$f":"Planning!D51","v":0},{"$f":"Planning!E51","v":0},{"$f":"IF(Planning!G51<>0,Planning!G51,\"\")","v":""},{"$f":"Planning!H51","v":0},{"$f":"Planning!L51","v":0},{"$f":"IF(OR(W67=\"1\",AND(W67<>\"1\",G67=Lists!$A$17)),Y67,0)","v":0},null,{"$f":"IF(AND(W67=\"2\",G67<>Lists!$A$17),AA67,Z67)","v":""},"",{"$f":"Planning!M51","v":{"v":0,"d":"0.00"}},{"$f":"'Month 1'!M67+'Month 1'!N67-'Month 1'!O67","v":{"v":0,"d":"0.00"}},null,"","",{"$f":"SUMIFS($J$25:$J$224,$C$25:$C$224,$C67,$G$25:$G$224,Lists!$A$16)","v":0},0,null,"",null,{"$f":"IF(C67=0,\"\",LEFT(INDEX(Lists!$H$5:$H$49,MATCH(C67,Lists!$G$5:$G$49,0),1),1))","v":""},null,{"$f":"'Month 1'!H67+'Month 1'!I67-'Month 1'!J67","v":0},"","",null,"0"]
[{"$f":"Planning!A52","v":"I044"},{"$f":"Planning!B52","v":0},{"$f":"Planning!C52","v":0},{"$f":"Planning!D52","v":0},{"$f":"Planning!E52","v":0},{"$f":"IF(Planning!G52<>0,Planning!G52,\"\")","v":""},{"$f":"Planning!H52","v":0},{"$f":"Planning!L52","v":0},{"$f":"IF(OR(W68=\"1\",AND(W68<>\"1\",G68=Lists!$A$17)),Y68,0)","v":0},null,{"$f":"IF(AND(W68=\"2\",G68<>Lists!$A$17),AA68,Z68)","v":""},"",{"$f":"Planning!M52","v":{"v":0,"d":"0.00"}},{"$f":"'Month 1'!M68+'Month 1'!N68-'Month 1'!O68","v":{"v":0,"d":"0.00"}},null,"","",{"$f":"SUMIFS($J$25:$J$224,$C$25:$C$224,$C68,$G$25:$G$224,Lists!$A$16)","v":0},0,null,"",null,{"$f":"IF(C68=0,\"\",LEFT(INDEX(Lists!$H$5:$H$49,MATCH(C68,Lists!$G$5:$G$49,0),1),1))","v":""},null,{"$f":"'Month 1'!H68+'Month 1'!I68-'Month 1'!J68","v":0},"","",null,"0"]
[{"$f":"Planning!A53","v":"I045"},{"$f":"Planning!B53","v":0},{"$f":"Planning!C53","v":0},{"$f":"Planning!D53","v":0},{"$f":"Planning!E53","v":0},{"$f":"IF(Planning!G53<>0,Planning!G53,\"\")","v":""},{"$f":"Planning!H53","v":0},{"$f":"Planning!L53","v":0},{"$f":"IF(OR(W69=\"1\",AND(W69<>\"1\",G69=Lists!$A$17)),Y69,0)","v":0},null,{"$f":"IF(AND(W69=\"2\",G69<>Lists!$A$17),AA69,Z69)","v":""},"",{"$f":"Planning!M53","v":{"v":0,"d":"0.00"}},{"$f":"'Month 1'!M69+'Month 1'!N69-'Month 1'!O69","v":{"v":0,"d":"0.00"}},null,"","",{"$f":"SUMIFS($J$25:$J$224,$C$25:$C$224,$C69,$G$25:$G$224,Lists!$A$16)","v":0},0,null,"",null,{"$f":"IF(C69=0,\"\",LEFT(INDEX(Lists!$H$5:$H$49,MATCH(C69,Lists!$G$5:$G$49,0),1),1))","v":""},null,{"$f":"'Month 1'!H69+'Month 1'!I69-'Month 1'!J69","v":0},"","",null,"0"]
[{"$f":"Planning!A54","v":"I046"},{"$f":"Planning!B54","v":0},{"$f":"Planning!C54","v":0},{"$f":"Planning!D54","v":0},{"$f":"Planning!E54","v":0},{"$f":"IF(Planning!G54<>0,Planning!G54,\"\")","v":""},{"$f":"Planning!H54","v":0},{"$f":"Planning!L54","v":0},{"$f":"IF(OR(W70=\"1\",AND(W70<>\"1\",G70=Lists!$A$17)),Y70,0)","v":0},null,{"$f":"IF(AND(W70=\"2\",G70<>Lists!$A$17),AA70,Z70)","v":""},"",{"$f":"Planning!M54","v":{"v":0,"d":"0.00"}},{"$f":"'Month 1'!M70+'Month 1'!N70-'Month 1'!O70","v":{"v":0,"d":"0.00"}},null,"","",{"$f":"SUMIFS($J$25:$J$224,$C$25:$C$224,$C70,$G$25:$G$224,Lists!$A$16)","v":0},0,null,"",null,{"$f":"IF(C70=0,\"\",LEFT(INDEX(Lists!$H$5:$H$49,MATCH(C70,Lists!$G$5:$G$49,0),1),1))","v":""},null,{"$f":"'Month 1'!H70+'Month 1'!I70-'Month 1'!J70","v":0},"","",null,"0"]
[{"$f":"Planning!A55","v":"I047"},{"$f":"Planning!B55","v":0},{"$f":"Planning!C55","v":0},{"$f":"Planning!D55","v":0},{"$f":"Planning!E55","v":0},{"$f":"IF(Planning!G55<>0,Planning!G55,\"\")","v":""},{"$f":"Planning!H55","v":0},{"$f":"Planning!L55","v":0},{"$f":"IF(OR(W71=\"1\",AND(W71<>\"1\",G71=Lists!$A$17)),Y71,0)","v":0},null,{"$f":"IF(AND(W71=\"2\",G71<>Lists!$A$17),AA71,Z71)","v":""},"",{"$f":"Planning!M55","v":{"v":0,"d":"0.00"}},{"$f":"'Month 1'!M71+'Month 1'!N71-'Month 1'!O71","v":{"v":0,"d":"0.00"}},null,"","",{"$f":"SUMIFS($J$25:$J$224,$C$25:$C$224,$C71,$G$25:$G$224,Lists!$A$16)","v":0},0,null,"",null,{"$f":"IF(C71=0,\"\",LEFT(INDEX(Lists!$H$5:$H$49,MATCH(C71,Lists!$G$5:$G$49,0),1),1))","v":""},null,{"$f":"'Month 1'!H71+'Month 1'!I71-'Month 1'!J71","v":0},"","",null,"0"]
[{"$f":"Planning!A56","v":"I048"},{"$f":"Planning!B56","v":0},{"$f":"Planning!C56","v":0},{"$f":"Planning!D56","v":0},{"$f":"Planning!E56","v":0},{"$f":"IF(Planning!G56<>0,Planning!G56,\"\")","v":""},{"$f":"Planning!H56","v":0},{"$f":"Planning!L56","v":0},{"$f":"IF(OR(W72=\"1\",AND(W72<>\"1\",G72=Lists!$A$17)),Y72,0)","v":0},null,{"$f":"IF(AND(W72=\"2\",G72<>Lists!$A$17),AA72,Z72)","v":""},"",{"$f":"Planning!M56","v":{"v":0,"d":"0.00"}},{"$f":"'Month 1'!M72+'Month 1'!N72-'Month 1'!O72","v":{"v":0,"d":"0.00"}},null,"","",{"$f":"SUMIFS($J$25:$J$224,$C$25:$C$224,$C72,$G$25:$G$224,Lists!$A$16)","v":0},0,null,"",null,{"$f":"IF(C72=0,\"\",LEFT(INDEX(Lists!$H$5:$H$49,MATCH(C72,Lists!$G$5:$G$49,0),1),1))","v":""},null,{"$f":"'Month 1'!H72+'Month 1'!I72-'Month 1'!J72","v":0},"","",null,"0"]
[{"$f":"Planning!A57","v":"I049"},{"$f":"Planning!B57","v":0},{"$f":"Planning!C57","v":0},{"$f":"Planning!D57","v":0},{"$f":"Planning!E57","v":0},{"$f":"IF(Planning!G57<>0,Planning!G57,\"\")","v":""},{"$f":"Planning!H57","v":0},{"$f":"Planning!L57","v":0},{"$f":"IF(OR(W73=\"1\",AND(W73<>\"1\",G73=Lists!$A$17)),Y73,0)","v":0},null,{"$f":"IF(AND(W73=\"2\",G73<>Lists!$A$17),AA73,Z73)","v":""},"",{"$f":"Planning!M57","v":{"v":0,"d":"0.00"}},{"$f":"'Month 1'!M73+'Month 1'!N73-'Month 1'!O73","v":{"v":0,"d":"0.00"}},null,"","",{"$f":"SUMIFS($J$25:$J$224,$C$25:$C$224,$C73,$G$25:$G$224,Lists!$A$16)","v":0},0,null,"",null,{"$f":"IF(C73=0,\"\",LEFT(INDEX(Lists!$H$5:$H$49,MATCH(C73,Lists!$G$5:$G$49,0),1),1))","v":""},null,{"$f":"'Month 1'!H73+'Month 1'!I73-'Month 1'!J73","v":0},"","",null,"0"]
[{"$f":"Planning!A58","v":"I050"},{"$f":"Planning!B58","v":0},{"$f":"Planning!C58","v":0},{"$f":"Planning!D58","v":0},{"$f":"Planning!E58","v":0},{"$f":"IF(Planning!G58<>0,Planning!G58,\"\")","v":""},{"$f":"Planning!H58","v":0},{"$f":"Planning!L58","v":0},{"$f":"IF(OR(W74=\"1\",AND(W74<>\"1\",G74=Lists!$A$17)),Y74,0)","v":0},null,{"$f":"IF(AND(W74=\"2\",G74<>Lists!$A$17),AA74,Z74)","v":""},"",{"$f":"Planning!M58","v":{"v":0,"d":"0.00"}},{"$f":"'Month 1'!M74+'Month 1'!N74-'Month 1'!O74","v":{"v":0,"d":"0.00"}},null,"","",{"$f":"SUMIFS($J$25:$J$224,$C$25:$C$224,$C74,$G$25:$G$224,Lists!$A$16)","v":0},0,null,"",null,{"$f":"IF(C74=0,\"\",LEFT(INDEX(Lists!$H$5:$H$49,MATCH(C74,Lists!$G$5:$G$49,0),1),1))","v":""},null,{"$f":"'Month 1'!H74+'Month 1'!I74-'Month 1'!J74","v":0},"","",null,"0"]
[{"$f":"Planning!A59","v":"I051"},{"$f":"Planning!B59","v":0},{"$f":"Planning!C59","v":0},{"$f":"Planning!D59","v":0},{"$f":"Planning!E59","v":0},{"$f":"IF(Planning!G59<>0,Planning!G59,\"\")","v":""},{"$f":"Planning!H59","v":0},{"$f":"Planning!L59","v":0},{"$f":"IF(OR(W75=\"1\",AND(W75<>\"1\",G75=Lists!$A$17)),Y75,0)","v":0},null,{"$f":"IF(AND(W75=\"2\",G75<>Lists!$A$17),AA75,Z75)","v":""},"",{"$f":"Planning!M59","v":{"v":0,"d":"0.00"}},{"$f":"'Month 1'!M75+'Month 1'!N75-'Month 1'!O75","v":{"v":0,"d":"0.00"}},null,"","",{"$f":"SUMIFS($J$25:$J$224,$C$25:$C$224,$C75,$G$25:$G$224,Lists!$A$16)","v":0},0,null,"",null,{"$f":"IF(C75=0,\"\",LEFT(INDEX(Lists!$H$5:$H$49,MATCH(C75,Lists!$G$5:$G$49,0),1),1))","v":""},null,{"$f":"'Month 1'!H75+'Month 1'!I75-'Month 1'!J75","v":0},"","",null,"0"]
[{"$f":"Planning!A60","v":"I052"},{"$f":"Planning!B60","v":0},{"$f":"Planning!C60","v":0},{"$f":"Planning!D60","v":0},{"$f":"Planning!E60","v":0},{"$f":"IF(Planning!G60<>0,Planning!G60,\"\")","v":""},{"$f":"Planning!H60","v":0},{"$f":"Planning!L60","v":0},{"$f":"IF(OR(W76=\"1\",AND(W76<>\"1\",G76=Lists!$A$17)),Y76,0)","v":0},null,{"$f":"IF(AND(W76=\"2\",G76<>Lists!$A$17),AA76,Z76)","v":""},"",{"$f":"Planning!M60","v":{"v":0,"d":"0.00"}},{"$f":"'Month 1'!M76+'Month 1'!N76-'Month 1'!O76","v":{"v":0,"d":"0.00"}},null,"","",{"$f":"SUMIFS($J$25:$J$224,$C$25:$C$224,$C76,$G$25:$G$224,Lists!$A$16)","v":0},0,null,"",null,{"$f":"IF(C76=0,\"\",LEFT(INDEX(Lists!$H$5:$H$49,MATCH(C76,Lists!$G$5:$G$49,0),1),1))","v":""},null,{"$f":"'Month 1'!H76+'Month 1'!I76-'Month 1'!J76","v":0},"","",null,"0"]
[{"$f":"Planning!A61","v":"I053"},{"$f":"Planning!B61","v":0},{"$f":"Planning!C61","v":0},{"$f":"Planning!D61","v":0},{"$f":"Planning!E61","v":0},{"$f":"IF(Planning!G61<>0,Planning!G61,\"\")","v":""},{"$f":"Planning!H61","v":0},{"$f":"Planning!L61","v":0},{"$f":"IF(OR(W77=\"1\",AND(W77<>\"1\",G77=Lists!$A$17)),Y77,0)","v":0},null,{"$f":"IF(AND(W77=\"2\",G77<>Lists!$A$17),AA77,Z77)","v":""},"",{"$f":"Planning!M61","v":{"v":0,"d":"0.00"}},{"$f":"'Month 1'!M77+'Month 1'!N77-'Month 1'!O77","v":{"v":0,"d":"0.00"}},null,"","",{"$f":"SUMIFS($J$25:$J$224,$C$25:$C$224,$C77,$G$25:$G$224,Lists!$A$16)","v":0},0,null,"",null,{"$f":"IF(C77=0,\"\",LEFT(INDEX(Lists!$H$5:$H$49,MATCH(C77,Lists!$G$5:$G$49,0),1),1))","v":""},null,{"$f":"'Month 1'!H77+'Month 1'!I77-'Month 1'!J77","v":0},"","",null,"0"]
[{"$f":"Planning!A62","v":"I054"},{"$f":"Planning!B62","v":0},{"$f":"Planning!C62","v":0},{"$f":"Planning!D62","v":0},{"$f":"Planning!E62","v":0},{"$f":"IF(Planning!G62<>0,Planning!G62,\"\")","v":""},{"$f":"Planning!H62","v":0},{"$f":"Planning!L62","v":0},{"$f":"IF(OR(W78=\"1\",AND(W78<>\"1\",G78=Lists!$A$17)),Y78,0)","v":0},null,{"$f":"IF(AND(W78=\"2\",G78<>Lists!$A$17),AA78,Z78)","v":""},"",{"$f":"Planning!M62","v":{"v":0,"d":"0.00"}},{"$f":"'Month 1'!M78+'Month 1'!N78-'Month 1'!O78","v":{"v":0,"d":"0.00"}},null,"","",{"$f":"SUMIFS($J$25:$J$224,$C$25:$C$224,$C78,$G$25:$G$224,Lists!$A$16)","v":0},0,null,"",null,{"$f":"IF(C78=0,\"\",LEFT(INDEX(Lists!$H$5:$H$49,MATCH(C78,Lists!$G$5:$G$49,0),1),1))","v":""},null,{"$f":"'Month 1'!H78+'Month 1'!I78-'Month 1'!J78","v":0},"","",null,"0"]
[{"$f":"Planning!A63","v":"I055"},{"$f":"Planning!B63","v":0},{"$f":"Planning!C63","v":0},{"$f":"Planning!D63","v":0},{"$f":"Planning!E63","v":0},{"$f":"IF(Planning!G63<>0,Planning!G63,\"\")","v":""},{"$f":"Planning!H63","v":0},{"$f":"Planning!L63","v":0},{"$f":"IF(OR(W79=\"1\",AND(W79<>\"1\",G79=Lists!$A$17)),Y79,0)","v":0},null,{"$f":"IF(AND(W79=\"2\",G79<>Lists!$A$17),AA79,Z79)","v":""},"",{"$f":"Planning!M63","v":{"v":0,"d":"0.00"}},{"$f":"'Month 1'!M79+'Month 1'!N79-'Month 1'!O79","v":{"v":0,"d":"0.00"}},null,"","",{"$f":"SUMIFS($J$25:$J$224,$C$25:$C$224,$C79,$G$25:$G$224,Lists!$A$16)","v":0},0,null,"",null,{"$f":"IF(C79=0,\"\",LEFT(INDEX(Lists!$H$5:$H$49,MATCH(C79,Lists!$G$5:$G$49,0),1),1))","v":""},null,{"$f":"'Month 1'!H79+'Month 1'!I79-'Month 1'!J79","v":0},"","",null,"0"]
[{"$f":"Planning!A64","v":"I056"},{"$f":"Planning!B64","v":0},{"$f":"Planning!C64","v":0},{"$f":"Planning!D64","v":0},{"$f":"Planning!E64","v":0},{"$f":"IF(Planning!G64<>0,Planning!G64,\"\")","v":""},{"$f":"Planning!H64","v":0},{"$f":"Planning!L64","v":0},{"$f":"IF(OR(W80=\"1\",AND(W80<>\"1\",G80=Lists!$A$17)),Y80,0)","v":0},null,{"$f":"IF(AND(W80=\"2\",G80<>Lists!$A$17),AA80,Z80)","v":""},"",{"$f":"Planning!M64","v":{"v":0,"d":"0.00"}},{"$f":"'Month 1'!M80+'Month 1'!N80-'Month 1'!O80","v":{"v":0,"d":"0.00"}},null,"","",{"$f":"SUMIFS($J$25:$J$224,$C$25:$C$224,$C80,$G$25:$G$224,Lists!$A$16)","v":0},0,null,"",null,{"$f":"IF(C80=0,\"\",LEFT(INDEX(Lists!$H$5:$H$49,MATCH(C80,Lists!$G$5:$G$49,0),1),1))","v":""},null,{"$f":"'Month 1'!H80+'Month 1'!I80-'Month 1'!J80","v":0},"","",null,"0"]
[{"$f":"Planning!A65","v":"I057"},{"$f":"Planning!B65","v":0},{"$f":"Planning!C65","v":0},{"$f":"Planning!D65","v":0},{"$f":"Planning!E65","v":0},{"$f":"IF(Planning!G65<>0,Planning!G65,\"\")","v":""},{"$f":"Planning!H65","v":0},{"$f":"Planning!L65","v":0},{"$f":"IF(OR(W81=\"1\",AND(W81<>\"1\",G81=Lists!$A$17)),Y81,0)","v":0},null,{"$f":"IF(AND(W81=\"2\",G81<>Lists!$A$17),AA81,Z81)","v":""},"",{"$f":"Planning!M65","v":{"v":0,"d":"0.00"}},{"$f":"'Month 1'!M81+'Month 1'!N81-'Month 1'!O81","v":{"v":0,"d":"0.00"}},null,"","",{"$f":"SUMIFS($J$25:$J$224,$C$25:$C$224,$C81,$G$25:$G$224,Lists!$A$16)","v":0},0,null,"",null,{"$f":"IF(C81=0,\"\",LEFT(INDEX(Lists!$H$5:$H$49,MATCH(C81,Lists!$G$5:$G$49,0),1),1))","v":""},null,{"$f":"'Month 1'!H81+'Month 1'!I81-'Month 1'!J81","v":0},"","",null,"0"]
[{"$f":"Planning!A66","v":"I058"},{"$f":"Planning!B66","v":0},{"$f":"Planning!C66","v":0},{"$f":"Planning!D66","v":0},{"$f":"Planning!E66","v":0},{"$f":"IF(Planning!G66<>0,Planning!G66,\"\")","v":""},{"$f":"Planning!H66","v":0},{"$f":"Planning!L66","v":0},{"$f":"IF(OR(W82=\"1\",AND(W82<>\"1\",G82=Lists!$A$17)),Y82,0)","v":0},null,{"$f":"IF(AND(W82=\"2\",G82<>Lists!$A$17),AA82,Z82)","v":""},"",{"$f":"Planning!M66","v":{"v":0,"d":"0.00"}},{"$f":"'Month 1'!M82+'Month 1'!N82-'Month 1'!O82","v":{"v":0,"d":"0.00"}},null,"","",{"$f":"SUMIFS($J$25:$J$224,$C$25:$C$224,$C82,$G$25:$G$224,Lists!$A$16)","v":0},0,null,"",null,{"$f":"IF(C82=0,\"\",LEFT(INDEX(Lists!$H$5:$H$49,MATCH(C82,Lists!$G$5:$G$49,0),1),1))","v":""},null,{"$f":"'Month 1'!H82+'Month 1'!I82-'Month 1'!J82","v":0},"","",null,"0"]
[{"$f":"Planning!A67","v":"I059"},{"$f":"Planning!B67","v":0},{"$f":"Planning!C67","v":0},{"$f":"Planning!D67","v":0},{"$f":"Planning!E67","v":0},{"$f":"IF(Planning!G67<>0,Planning!G67,\"\")","v":""},{"$f":"Planning!H67","v":0},{"$f":"Planning!L67","v":0},{"$f":"IF(OR(W83=\"1\",AND(W83<>\"1\",G83=Lists!$A$17)),Y83,0)","v":0},null,{"$f":"IF(AND(W83=\"2\",G83<>Lists!$A$17),AA83,Z83)","v":""},"",{"$f":"Planning!M67","v":{"v":0,"d":"0.00"}},{"$f":"'Month 1'!M83+'Month 1'!N83-'Month 1'!O83","v":{"v":0,"d":"0.00"}},null,"","",{"$f":"SUMIFS($J$25:$J$224,$C$25:$C$224,$C83,$G$25:$G$224,Lists!$A$16)","v":0},0,null,"",null,{"$f":"IF(C83=0,\"\",LEFT(INDEX(Lists!$H$5:$H$49,MATCH(C83,Lists!$G$5:$G$49,0),1),1))","v":""},null,{"$f":"'Month 1'!H83+'Month 1'!I83-'Month 1'!J83","v":0},"","",null,"0"]
[{"$f":"Planning!A68","v":"I060"},{"$f":"Planning!B68","v":0},{"$f":"Planning!C68","v":0},{"$f":"Planning!D68","v":0},{"$f":"Planning!E68","v":0},{"$f":"IF(Planning!G68<>0,Planning!G68,\"\")","v":""},{"$f":"Planning!H68","v":0},{"$f":"Planning!L68","v":0},{"$f":"IF(OR(W84=\"1\",AND(W84<>\"1\",G84=Lists!$A$17)),Y84,0)","v":0},null,{"$f":"IF(AND(W84=\"2\",G84<>Lists!$A$17),AA84,Z84)","v":""},"",{"$f":"Planning!M68","v":{"v":0,"d":"0.00"}},{"$f":"'Month 1'!M84+'Month 1'!N84-'Month 1'!O84","v":{"v":0,"d":"0.00"}},null,"","",{"$f":"SUMIFS($J$25:$J$224,$C$25:$C$224,$C84,$G$25:$G$224,Lists!$A$16)","v":0},0,null,"",null,{"$f":"IF(C84=0,\"\",LEFT(INDEX(Lists!$H$5:$H$49,MATCH(C84,Lists!$G$5:$G$49,0),1),1))","v":""},null,{"$f":"'Month 1'!H84+'Month 1'!I84-'Month 1'!J84","v":0},"","",null,"0"]
[{"$f":"Planning!A69","v":"I061"},{"$f":"Planning!B69","v":0},{"$f":"Planning!C69","v":0},{"$f":"Planning!D69","v":0},{"$f":"Planning!E69","v":0},{"$f":"IF(Planning!G69<>0,Planning!G69,\"\")","v":""},{"$f":"Planning!H69","v":0},{"$f":"Planning!L69","v":0},{"$f":"IF(OR(W85=\"1\",AND(W85<>\"1\",G85=Lists!$A$17)),Y85,0)","v":0},null,{"$f":"IF(AND(W85=\"2\",G85<>Lists!$A$17),AA85,Z85)","v":""},"",{"$f":"Planning!M69","v":{"v":0,"d":"0.00"}},{"$f":"'Month 1'!M85+'Month 1'!N85-'Month 1'!O85","v":{"v":0,"d":"0.00"}},null,"","",{"$f":"SUMIFS($J$25:$J$224,$C$25:$C$224,$C85,$G$25:$G$224,Lists!$A$16)","v":0},0,null,"",null,{"$f":"IF(C85=0,\"\",LEFT(INDEX(Lists!$H$5:$H$49,MATCH(C85,Lists!$G$5:$G$49,0),1),1))","v":""},null,{"$f":"'Month 1'!H85+'Month 1'!I85-'Month 1'!J85","v":0},"","",null,"0"]
[{"$f":"Planning!A70","v":"I062"},{"$f":"Planning!B70","v":0},{"$f":"Planning!C70","v":0},{"$f":"Planning!D70","v":0},{"$f":"Planning!E70","v":0},{"$f":"IF(Planning!G70<>0,Planning!G70,\"\")","v":""},{"$f":"Planning!H70","v":0},{"$f":"Planning!L70","v":0},{"$f":"IF(OR(W86=\"1\",AND(W86<>\"1\",G86=Lists!$A$17)),Y86,0)","v":0},null,{"$f":"IF(AND(W86=\"2\",G86<>Lists!$A$17),AA86,Z86)","v":""},"",{"$f":"Planning!M70","v":{"v":0,"d":"0.00"}},{"$f":"'Month 1'!M86+'Month 1'!N86-'Month 1'!O86","v":{"v":0,"d":"0.00"}},null,"","",{"$f":"SUMIFS($J$25:$J$224,$C$25:$C$224,$C86,$G$25:$G$224,Lists!$A$16)","v":0},0,null,"",null,{"$f":"IF(C86=0,\"\",LEFT(INDEX(Lists!$H$5:$H$49,MATCH(C86,Lists!$G$5:$G$49,0),1),1))","v":""},null,{"$f":"'Month 1'!H86+'Month 1'!I86-'Month 1'!J86","v":0},"","",null,"0"]
[{"$f":"Planning!A71","v":"I063"},{"$f":"Planning!B71","v":0},{"$f":"Planning!C71","v":0},{"$f":"Planning!D71","v":0},{"$f":"Planning!E71","v":0},{"$f":"IF(Planning!G71<>0,Planning!G71,\"\")","v":""},{"$f":"Planning!H71","v":0},{"$f":"Planning!L71","v":0},{"$f":"IF(OR(W87=\"1\",AND(W87<>\"1\",G87=Lists!$A$17)),Y87,0)","v":0},null,{"$f":"IF(AND(W87=\"2\",G87<>Lists!$A$17),AA87,Z87)","v":""},"",{"$f":"Planning!M71","v":{"v":0,"d":"0.00"}},{"$f":"'Month 1'!M87+'Month 1'!N87-'Month 1'!O87","v":{"v":0,"d":"0.00"}},null,"","",{"$f":"SUMIFS($J$25:$J$224,$C$25:$C$224,$C87,$G$25:$G$224,Lists!$A$16)","v":0},0,null,"",null,{"$f":"IF(C87=0,\"\",LEFT(INDEX(Lists!$H$5:$H$49,MATCH(C87,Lists!$G$5:$G$49,0),1),1))","v":""},null,{"$f":"'Month 1'!H87+'Month 1'!I87-'Month 1'!J87","v":0},"","",null,"0"]
[{"$f":"Planning!A72","v":"I064"},{"$f":"Planning!B72","v":0},{"$f":"Planning!C72","v":0},{"$f":"Planning!D72","v":0},{"$f":"Planning!E72","v":0},{"$f":"IF(Planning!G72<>0,Planning!G72,\"\")","v":""},{"$f":"Planning!H72","v":0},{"$f":"Planning!L72","v":0},{"$f":"IF(OR(W88=\"1\",AND(W88<>\"1\",G88=Lists!$A$17)),Y88,0)","v":0},null,{"$f":"IF(AND(W88=\"2\",G88<>Lists!$A$17),AA88,Z88)","v":""},"",{"$f":"Planning!M72","v":{"v":0,"d":"0.00"}},{"$f":"'Month 1'!M88+'Month 1'!N88-'Month 1'!O88","v":{"v":0,"d":"0.00"}},null,"","",{"$f":"SUMIFS($J$25:$J$224,$C$25:$C$224,$C88,$G$25:$G$224,Lists!$A$16)","v":0},0,null,"",null,{"$f":"IF(C88=0,\"\",LEFT(INDEX(Lists!$H$5:$H$49,MATCH(C88,Lists!$G$5:$G$49,0),1),1))","v":""},null,{"$f":"'Month 1'!H88+'Month 1'!I88-'Month 1'!J88","v":0},"","",null,"0"]
[{"$f":"Planning!A73","v":"I065"},{"$f":"Planning!B73","v":0},{"$f":"Planning!C73","v":0},{"$f":"Planning!D73","v":0},{"$f":"Planning!E73","v":0},{"$f":"IF(Planning!G73<>0,Planning!G73,\"\")","v":""},{"$f":"Planning!H73","v":0},{"$f":"Planning!L73","v":0},{"$f":"IF(OR(W89=\"1\",AND(W89<>\"1\",G89=Lists!$A$17)),Y89,0)","v":0},null,{"$f":"IF(AND(W89=\"2\",G89<>Lists!$A$17),AA89,Z89)","v":""},{"$f":"IF($U89=ExcluirDelPLogro,\"\",IF(AND(H89=0,I89=0,J89=0),\"\",K89))","v":""},{"$f":"Planning!M73","v":{"v":0,"d":"0.00"}},{"$f":"'Month 1'!M89+'Month 1'!N89-'Month 1'!O89","v":{"v":0,"d":"0.00"}},null,"",{"$f":"IF($U89=ExcluirDelPLogro,\"\",IF(AND(M89=0,N89=0,O89=0),\"\",P89))","v":""},{"$f":"SUMIFS($J$25:$J$224,$C$25:$C$224,$C89,$G$25:$G$224,Lists!$A$16)","v":0},0,null,"",null,{"$f":"IF(C89=0,\"\",LEFT(INDEX(Lists!$H$5:$H$49,MATCH(C89,Lists!$G$5:$G$49,0),1),1))","v":""},null,{"$f":"'Month 1'!H89+'Month 1'!I89-'Month 1'!J89","v":0},"",{"$f":"IF(AND(H89=0,I89=0,J89=0),\"\",IF(J89>0,H89/J89,0))","v":""},null,"0"]
[{"$f":"Planning!A74","v":"I066"},{"$f":"Planning!B74","v":0},{"$f":"Planning!C74","v":0},{"$f":"Planning!D74","v":0},{"$f":"Planning!E74","v":0},{"$f":"IF(Planning!G74<>0,Planning!G74,\"\")","v":""},{"$f":"Planning!H74","v":0},{"$f":"Planning!L74","v":0},{"$f":"IF(OR(W90=\"1\",AND(W90<>\"1\",G90=Lists!$A$17)),Y90,0)","v":0},null,{"$f":"IF(AND(W90=\"2\",G90<>Lists!$A$17),AA90,Z90)","v":""},"",{"$f":"Planning!M74","v":{"v":0,"d":"0.00"}},{"$f":"'Month 1'!M90+'Month 1'!N90-'Month 1'!O90","v":{"v":0,"d":"0.00"}},null,{"$f":"IF(AND(M90=0,N90=0,O90=0),\"\",IF((M90+N90)>0,O90/(M90+N90),O90))","v":""},"",{"$f":"SUMIFS($J$25:$J$224,$C$25:$C$224,$C90,$G$25:$G$224,Lists!$A$16)","v":0},{"$f":"SUMIFS($O$25:$O$224,$C$25:$C$224,$C90,$G$25:$G$224,\"<>0\")","v":0},null,{"$f":"IF(B90=0,\"\",IF(LEFT(B90,1)=\"1\",\"1\",\"2\"))","v":""},null,{"$f":"IF(C90=0,\"\",LEFT(INDEX(Lists!$H$5:$H$49,MATCH(C90,Lists!$G$5:$G$49,0),1),1))","v":""},null,{"$f":"'Month 1'!H90+'Month 1'!I90-'Month 1'!J90","v":0},{"$f":"IF(AND(H90=0,I90=0,J90=0),\"\",IF((H90+I90)>0,J90/(H90+I90),J90))","v":""},"",null,{"$f":"U90&C90","v":"0"}]
[{"$f":"Planning!A75","v":"I067"},{"$f":"Planning!B75","v":0},{"$f":"Planning!C75","v":0},{"$f":"Planning!D75","v":0},{"$f":"Planning!E75","v":0},{"$f":"IF(Planning!G75<>0,Planning!G75,\"\")","v":""},{"$f":"Planning!H75","v":0},{"$f":"Planning!L75","v":0},{"$f":"IF(OR(W91=\"1\",AND(W91<>\"1\",G91=Lists!$A$17)),Y91,0)","v":0},null,{"$f":"IF(AND(W91=\"2\",G91<>Lists!$A$17),AA91,Z91)","v":""},"",{"$f":"Planning!M75","v":{"v":0,"d":"0.00"}},{"$f":"'Month 1'!M91+'Month 1'!N91-'Month 1'!O91","v":{"v":0,"d":"0.00"}},null,"","",{"$f":"SUMIFS($J$25:$J$224,$C$25:$C$224,$C91,$G$25:$G$224,Lists!$A$16)","v":0},0,null,"",null,{"$f":"IF(C91=0,\"\",LEFT(INDEX(Lists!$H$5:$H$49,MATCH(C91,Lists!$G$5:$G$49,0),1),1))","v":""},null,{"$f":"'Month 1'!H91+'Month 1'!I91-'Month 1'!J91","v":0},"","",null,"0"]
[{"$f":"Planning!A76","v":"I068"},{"$f":"Planning!B76","v":0},{"$f":"Planning!C76","v":0},{"$f":"Planning!D76","v":0},{"$f":"Planning!E76","v":0},{"$f":"IF(Planning!G76<>0,Planning!G76,\"\")","v":""},{"$f":"Planning!H76","v":0},{"$f":"Planning!L76","v":0},{"$f":"IF(OR(W92=\"1\",AND(W92<>\"1\",G92=Lists!$A$17)),Y92,0)","v":0},null,{"$f":"IF(AND(W92=\"2\",G92<>Lists!$A$17),AA92,Z92)","v":""},"",{"$f":"Planning!M76","v":{"v":0,"d":"0.00"}},{"$f":"'Month 1'!M92+'Month 1'!N92-'Month 1'!O92","v":{"v":0,"d":"0.00"}},null,"","",{"$f":"SUMIFS($J$25:$J$224,$C$25:$C$224,$C92,$G$25:$G$224,Lists!$A$16)","v":0},0,null,"",null,{"$f":"IF(C92=0,\"\",LEFT(INDEX(Lists!$H$5:$H$49,MATCH(C92,Lists!$G$5:$G$49,0),1),1))","v":""},null,{"$f":"'Month 1'!H92+'Month 1'!I92-'Month 1'!J92","v":0},"","",null,"0"]
[{"$f":"Planning!A77","v":"I069"},{"$f":"Planning!B77","v":0},{"$f":"Planning!C77","v":0},{"$f":"Planning!D77","v":0},{"$f":"Planning!E77","v":0},{"$f":"IF(Planning!G77<>0,Planning!G77,\"\")","v":""},{"$f":"Planning!H77","v":0},{"$f":"Planning!L77","v":0},{"$f":"IF(OR(W93=\"1\",AND(W93<>\"1\",G93=Lists!$A$17)),Y93,0)","v":0},null,{"$f":"IF(AND(W93=\"2\",G93<>Lists!$A$17),AA93,Z93)","v":""},"",{"$f":"Planning!M77","v":{"v":0,"d":"0.00"}},{"$f":"'Month 1'!M93+'Month 1'!N93-'Month 1'!O93","v":{"v":0,"d":"0.00"}},null,"","",{"$f":"SUMIFS($J$25:$J$224,$C$25:$C$224,$C93,$G$25:$G$224,Lists!$A$16)","v":0},0,null,"",null,{"$f":"IF(C93=0,\"\",LEFT(INDEX(Lists!$H$5:$H$49,MATCH(C93,Lists!$G$5:$G$49,0),1),1))","v":""},null,{"$f":"'Month 1'!H93+'Month 1'!I93-'Month 1'!J93","v":0},"","",null,"0"]
[{"$f":"Planning!A78","v":"I070"},{"$f":"Planning!B78","v":0},{"$f":"Planning!C78","v":0},{"$f":"Planning!D78","v":0},{"$f":"Planning!E78","v":0},{"$f":"IF(Planning!G78<>0,Planning!G78,\"\")","v":""},{"$f":"Planning!H78","v":0},{"$f":"Planning!L78","v":0},{"$f":"IF(OR(W94=\"1\",AND(W94<>\"1\",G94=Lists!$A$17)),Y94,0)","v":0},null,{"$f":"IF(AND(W94=\"2\",G94<>Lists!$A$17),AA94,Z94)","v":""},"",{"$f":"Planning!M78","v":{"v":0,"d":"0.00"}},{"$f":"'Month 1'!M94+'Month 1'!N94-'Month 1'!O94","v":{"v":0,"d":"0.00"}},null,"","",{"$f":"SUMIFS($J$25:$J$224,$C$25:$C$224,$C94,$G$25:$G$224,Lists!$A$16)","v":0},0,null,"",null,{"$f":"IF(C94=0,\"\",LEFT(INDEX(Lists!$H$5:$H$49,MATCH(C94,Lists!$G$5:$G$49,0),1),1))","v":""},null,{"$f":"'Month 1'!H94+'Month 1'!I94-'Month 1'!J94","v":0},"","",null,"0"]
[{"$f":"Planning!A79","v":"I071"},{"$f":"Planning!B79","v":0},{"$f":"Planning!C79","v":0},{"$f":"Planning!D79","v":0},{"$f":"Planning!E79","v":0},{"$f":"IF(Planning!G79<>0,Planning!G79,\"\")","v":""},{"$f":"Planning!H79","v":0},{"$f":"Planning!L79","v":0},{"$f":"IF(OR(W95=\"1\",AND(W95<>\"1\",G95=Lists!$A$17)),Y95,0)","v":0},null,{"$f":"IF(AND(W95=\"2\",G95<>Lists!$A$17),AA95,Z95)","v":""},"",{"$f":"Planning!M79","v":{"v":0,"d":"0.00"}},{"$f":"'Month 1'!M95+'Month 1'!N95-'Month 1'!O95","v":{"v":0,"d":"0.00"}},null,"","",{"$f":"SUMIFS($J$25:$J$224,$C$25:$C$224,$C95,$G$25:$G$224,Lists!$A$16)","v":0},0,null,"",null,{"$f":"IF(C95=0,\"\",LEFT(INDEX(Lists!$H$5:$H$49,MATCH(C95,Lists!$G$5:$G$49,0),1),1))","v":""},null,{"$f":"'Month 1'!H95+'Month 1'!I95-'Month 1'!J95","v":0},"","",null,"0"]
[{"$f":"Planning!A80","v":"I072"},{"$f":"Planning!B80","v":0},{"$f":"Planning!C80","v":0},{"$f":"Planning!D80","v":0},{"$f":"Planning!E80","v":0},{"$f":"IF(Planning!G80<>0,Planning!G80,\"\")","v":""},{"$f":"Planning!H80","v":0},{"$f":"Planning!L80","v":0},{"$f":"IF(OR(W96=\"1\",AND(W96<>\"1\",G96=Lists!$A$17)),Y96,0)","v":0},null,{"$f":"IF(AND(W96=\"2\",G96<>Lists!$A$17),AA96,Z96)","v":""},"",{"$f":"Planning!M80","v":{"v":0,"d":"0.00"}},{"$f":"'Month 1'!M96+'Month 1'!N96-'Month 1'!O96","v":{"v":0,"d":"0.00"}},null,"","",{"$f":"SUMIFS($J$25:$J$224,$C$25:$C$224,$C96,$G$25:$G$224,Lists!$A$16)","v":0},0,null,"",null,{"$f":"IF(C96=0,\"\",LEFT(INDEX(Lists!$H$5:$H$49,MATCH(C96,Lists!$G$5:$G$49,0),1),1))","v":""},null,{"$f":"'Month 1'!H96+'Month 1'!I96-'Month 1'!J96","v":0},"","",null,"0"]
[{"$f":"Planning!A81","v":"I073"},{"$f":"Planning!B81","v":0},{"$f":"Planning!C81","v":0},{"$f":"Planning!D81","v":0},{"$f":"Planning!E81","v":0},{"$f":"IF(Planning!G81<>0,Planning!G81,\"\")","v":""},{"$f":"Planning!H81","v":0},{"$f":"Planning!L81","v":0},{"$f":"IF(OR(W97=\"1\",AND(W97<>\"1\",G97=Lists!$A$17)),Y97,0)","v":0},null,{"$f":"IF(AND(W97=\"2\",G97<>Lists!$A$17),AA97,Z97)","v":""},"",{"$f":"Planning!M81","v":{"v":0,"d":"0.00"}},{"$f":"'Month 1'!M97+'Month 1'!N97-'Month 1'!O97","v":{"v":0,"d":"0.00"}},null,"","",{"$f":"SUMIFS($J$25:$J$224,$C$25:$C$224,$C97,$G$25:$G$224,Lists!$A$16)","v":0},0,null,"",null,{"$f":"IF(C97=0,\"\",LEFT(INDEX(Lists!$H$5:$H$49,MATCH(C97,Lists!$G$5:$G$49,0),1),1))","v":""},null,{"$f":"'Month 1'!H97+'Month 1'!I97-'Month 1'!J97","v":0},"","",null,"0"]
[{"$f":"Planning!A82","v":"I074"},{"$f":"Planning!B82","v":0},{"$f":"Planning!C82","v":0},{"$f":"Planning!D82","v":0},{"$f":"Planning!E82","v":0},{"$f":"IF(Planning!G82<>0,Planning!G82,\"\")","v":""},{"$f":"Planning!H82","v":0},{"$f":"Planning!L82","v":0},{"$f":"IF(OR(W98=\"1\",AND(W98<>\"1\",G98=Lists!$A$17)),Y98,0)","v":0},null,{"$f":"IF(AND(W98=\"2\",G98<>Lists!$A$17),AA98,Z98)","v":""},"",{"$f":"Planning!M82","v":{"v":0,"d":"0.00"}},{"$f":"'Month 1'!M98+'Month 1'!N98-'Month 1'!O98","v":{"v":0,"d":"0.00"}},null,"","",{"$f":"SUMIFS($J$25:$J$224,$C$25:$C$224,$C98,$G$25:$G$224,Lists!$A$16)","v":0},0,null,"",null,{"$f":"IF(C98=0,\"\",LEFT(INDEX(Lists!$H$5:$H$49,MATCH(C98,Lists!$G$5:$G$49,0),1),1))","v":""},null,{"$f":"'Month 1'!H98+'Month 1'!I98-'Month 1'!J98","v":0},"","",null,"0"]
[{"$f":"Planning!A83","v":"I075"},{"$f":"Planning!B83","v":0},{"$f":"Planning!C83","v":0},{"$f":"Planning!D83","v":0},{"$f":"Planning!E83","v":0},{"$f":"IF(Planning!G83<>0,Planning!G83,\"\")","v":""},{"$f":"Planning!H83","v":0},{"$f":"Planning!L83","v":0},{"$f":"IF(OR(W99=\"1\",AND(W99<>\"1\",G99=Lists!$A$17)),Y99,0)","v":0},null,{"$f":"IF(AND(W99=\"2\",G99<>Lists!$A$17),AA99,Z99)","v":""},"",{"$f":"Planning!M83","v":{"v":0,"d":"0.00"}},{"$f":"'Month 1'!M99+'Month 1'!N99-'Month 1'!O99","v":{"v":0,"d":"0.00"}},null,"","",{"$f":"SUMIFS($J$25:$J$224,$C$25:$C$224,$C99,$G$25:$G$224,Lists!$A$16)","v":0},0,null,"",null,{"$f":"IF(C99=0,\"\",LEFT(INDEX(Lists!$H$5:$H$49,MATCH(C99,Lists!$G$5:$G$49,0),1),1))","v":""},null,{"$f":"'Month 1'!H99+'Month 1'!I99-'Month 1'!J99","v":0},"","",null,"0"]
[{"$f":"Planning!A84","v":"I076"},{"$f":"Planning!B84","v":0},{"$f":"Planning!C84","v":0},{"$f":"Planning!D84","v":0},{"$f":"Planning!E84","v":0},{"$f":"IF(Planning!G84<>0,Planning!G84,\"\")","v":""},{"$f":"Planning!H84","v":0},{"$f":"Planning!L84","v":0},{"$f":"IF(OR(W100=\"1\",AND(W100<>\"1\",G100=Lists!$A$17)),Y100,0)","v":0},null,{"$f":"IF(AND(W100=\"2\",G100<>Lists!$A$17),AA100,Z100)","v":""},"",{"$f":"Planning!M84","v":{"v":0,"d":"0.00"}},{"$f":"'Month 1'!M100+'Month 1'!N100-'Month 1'!O100","v":{"v":0,"d":"0.00"}},null,"","",{"$f":"SUMIFS($J$25:$J$224,$C$25:$C$224,$C100,$G$25:$G$224,Lists!$A$16)","v":0},0,null,"",null,{"$f":"IF(C100=0,\"\",LEFT(INDEX(Lists!$H$5:$H$49,MATCH(C100,Lists!$G$5:$G$49,0),1),1))","v":""},null,{"$f":"'Month 1'!H100+'Month 1'!I100-'Month 1'!J100","v":0},"","",null,"0"]
[{"$f":"Planning!A85","v":"I077"},{"$f":"Planning!B85","v":0},{"$f":"Planning!C85","v":0},{"$f":"Planning!D85","v":0},{"$f":"Planning!E85","v":0},{"$f":"IF(Planning!G85<>0,Planning!G85,\"\")","v":""},{"$f":"Planning!H85","v":0},{"$f":"Planning!L85","v":0},{"$f":"IF(OR(W101=\"1\",AND(W101<>\"1\",G101=Lists!$A$17)),Y101,0)","v":0},null,{"$f":"IF(AND(W101=\"2\",G101<>Lists!$A$17),AA101,Z101)","v":""},"",{"$f":"Planning!M85","v":{"v":0,"d":"0.00"}},{"$f":"'Month 1'!M101+'Month 1'!N101-'Month 1'!O101","v":{"v":0,"d":"0.00"}},null,"","",{"$f":"SUMIFS($J$25:$J$224,$C$25:$C$224,$C101,$G$25:$G$224,Lists!$A$16)","v":0},0,null,"",null,{"$f":"IF(C101=0,\"\",LEFT(INDEX(Lists!$H$5:$H$49,MATCH(C101,Lists!$G$5:$G$49,0),1),1))","v":""},null,{"$f":"'Month 1'!H101+'Month 1'!I101-'Month 1'!J101","v":0},"","",null,"0"]
[{"$f":"Planning!A86","v":"I078"},{"$f":"Planning!B86","v":0},{"$f":"Planning!C86","v":0},{"$f":"Planning!D86","v":0},{"$f":"Planning!E86","v":0},{"$f":"IF(Planning!G86<>0,Planning!G86,\"\")","v":""},{"$f":"Planning!H86","v":0},{"$f":"Planning!L86","v":0},{"$f":"IF(OR(W102=\"1\",AND(W102<>\"1\",G102=Lists!$A$17)),Y102,0)","v":0},null,{"$f":"IF(AND(W102=\"2\",G102<>Lists!$A$17),AA102,Z102)","v":""},"",{"$f":"Planning!M86","v":{"v":0,"d":"0.00"}},{"$f":"'Month 1'!M102+'Month 1'!N102-'Month 1'!O102","v":{"v":0,"d":"0.00"}},null,"","",{"$f":"SUMIFS($J$25:$J$224,$C$25:$C$224,$C102,$G$25:$G$224,Lists!$A$16)","v":0},0,null,"",null,{"$f":"IF(C102=0,\"\",LEFT(INDEX(Lists!$H$5:$H$49,MATCH(C102,Lists!$G$5:$G$49,0),1),1))","v":""},null,{"$f":"'Month 1'!H102+'Month 1'!I102-'Month 1'!J102","v":0},"","",null,"0"]
[{"$f":"Planning!A87","v":"I079"},{"$f":"Planning!B87","v":0},{"$f":"Planning!C87","v":0},{"$f":"Planning!D87","v":0},{"$f":"Planning!E87","v":0},{"$f":"IF(Planning!G87<>0,Planning!G87,\"\")","v":""},{"$f":"Planning!H87","v":0},{"$f":"Planning!L87","v":0},{"$f":"IF(OR(W103=\"1\",AND(W103<>\"1\",G103=Lists!$A$17)),Y103,0)","v":0},null,{"$f":"IF(AND(W103=\"2\",G103<>Lists!$A$17),AA103,Z103)","v":""},"",{"$f":"Planning!M87","v":{"v":0,"d":"0.00"}},{"$f":"'Month 1'!M103+'Month 1'!N103-'Month 1'!O103","v":{"v":0,"d":"0.00"}},null,"","",{"$f":"SUMIFS($J$25:$J$224,$C$25:$C$224,$C103,$G$25:$G$224,Lists!$A$16)","v":0},0,null,"",null,{"$f":"IF(C103=0,\"\",LEFT(INDEX(Lists!$H$5:$H$49,MATCH(C103,Lists!$G$5:$G$49,0),1),1))","v":""},null,{"$f":"'Month 1'!H103+'Month 1'!I103-'Month 1'!J103","v":0},"","",null,"0"]
[{"$f":"Planning!A88","v":"I080"},{"$f":"Planning!B88","v":0},{"$f":"Planning!C88","v":0},{"$f":"Planning!D88","v":0},{"$f":"Planning!E88","v":0},{"$f":"IF(Planning!G88<>0,Planning!G88,\"\")","v":""},{"$f":"Planning!H88","v":0},{"$f":"Planning!L88","v":0},{"$f":"IF(OR(W104=\"1\",AND(W104<>\"1\",G104=Lists!$A$17)),Y104,0)","v":0},null,{"$f":"IF(AND(W104=\"2\",G104<>Lists!$A$17),AA104,Z104)","v":""},"",{"$f":"Planning!M88","v":{"v":0,"d":"0.00"}},{"$f":"'Month 1'!M104+'Month 1'!N104-'Month 1'!O104","v":{"v":0,"d":"0.00"}},null,"","",{"$f":"SUMIFS($J$25:$J$224,$C$25:$C$224,$C104,$G$25:$G$224,Lists!$A$16)","v":0},0,null,"",null,{"$f":"IF(C104=0,\"\",LEFT(INDEX(Lists!$H$5:$H$49,MATCH(C104,Lists!$G$5:$G$49,0),1),1))","v":""},null,{"$f":"'Month 1'!H104+'Month 1'!I104-'Month 1'!J104","v":0},"","",null,"0"]
[{"$f":"Planning!A89","v":"I081"},{"$f":"Planning!B89","v":0},{"$f":"Planning!C89","v":0},{"$f":"Planning!D89","v":0},{"$f":"Planning!E89","v":0},{"$f":"IF(Planning!G89<>0,Planning!G89,\"\")","v":""},{"$f":"Planning!H89","v":0},{"$f":"Planning!L89","v":0},{"$f":"IF(OR(W105=\"1\",AND(W105<>\"1\",G105=Lists!$A$17)),Y105,0)","v":0},null,{"$f":"IF(AND(W105=\"2\",G105<>Lists!$A$17),AA105,Z105)","v":""},"",{"$f":"Planning!M89","v":{"v":0,"d":"0.00"}},{"$f":"'Month 1'!M105+'Month 1'!N105-'Month 1'!O105","v":{"v":0,"d":"0.00"}},null,"","",{"$f":"SUMIFS($J$25:$J$224,$C$25:$C$224,$C105,$G$25:$G$224,Lists!$A$16)","v":0},0,null,"",null,{"$f":"IF(C105=0,\"\",LEFT(INDEX(Lists!$H$5:$H$49,MATCH(C105,Lists!$G$5:$G$49,0),1),1))","v":""},null,{"$f":"'Month 1'!H105+'Month 1'!I105-'Month 1'!J105","v":0},"","",null,"0"]
[{"$f":"Planning!A90","v":"I082"},{"$f":"Planning!B90","v":0},{"$f":"Planning!C90","v":0},{"$f":"Planning!D90","v":0},{"$f":"Planning!E90","v":0},{"$f":"IF(Planning!G90<>0,Planning!G90,\"\")","v":""},{"$f":"Planning!H90","v":0},{"$f":"Planning!L90","v":0},{"$f":"IF(OR(W106=\"1\",AND(W106<>\"1\",G106=Lists!$A$17)),Y106,0)","v":0},null,{"$f":"IF(AND(W106=\"2\",G106<>Lists!$A$17),AA106,Z106)","v":""},"",{"$f":"Planning!M90","v":{"v":0,"d":"0.00"}},{"$f":"'Month 1'!M106+'Month 1'!N106-'Month 1'!O106","v":{"v":0,"d":"0.00"}},null,"","",{"$f":"SUMIFS($J$25:$J$224,$C$25:$C$224,$C106,$G$25:$G$224,Lists!$A$16)","v":0},0,null,"",null,{"$f":"IF(C106=0,\"\",LEFT(INDEX(Lists!$H$5:$H$49,MATCH(C106,Lists!$G$5:$G$49,0),1),1))","v":""},null,{"$f":"'Month 1'!H106+'Month 1'!I106-'Month 1'!J106","v":0},"","",null,"0"]
[{"$f":"Planning!A91","v":"I083"},{"$f":"Planning!B91","v":0},{"$f":"Planning!C91","v":0},{"$f":"Planning!D91","v":0},{"$f":"Planning!E91","v":0},{"$f":"IF(Planning!G91<>0,Planning!G91,\"\")","v":""},{"$f":"Planning!H91","v":0},{"$f":"Planning!L91","v":0},{"$f":"IF(OR(W107=\"1\",AND(W107<>\"1\",G107=Lists!$A$17)),Y107,0)","v":0},null,{"$f":"IF(AND(W107=\"2\",G107<>Lists!$A$17),AA107,Z107)","v":""},"",{"$f":"Planning!M91","v":{"v":0,"d":"0.00"}},{"$f":"'Month 1'!M107+'Month 1'!N107-'Month 1'!O107","v":{"v":0,"d":"0.00"}},null,"","",{"$f":"SUMIFS($J$25:$J$224,$C$25:$C$224,$C107,$G$25:$G$224,Lists!$A$16)","v":0},0,null,"",null,{"$f":"IF(C107=0,\"\",LEFT(INDEX(Lists!$H$5:$H$49,MATCH(C107,Lists!$G$5:$G$49,0),1),1))","v":""},null,{"$f":"'Month 1'!H107+'Month 1'!I107-'Month 1'!J107","v":0},"","",null,"0"]
[{"$f":"Planning!A92","v":"I084"},{"$f":"Planning!B92","v":0},{"$f":"Planning!C92","v":0},{"$f":"Planning!D92","v":0},{"$f":"Planning!E92","v":0},{"$f":"IF(Planning!G92<>0,Planning!G92,\"\")","v":""},{"$f":"Planning!H92","v":0},{"$f":"Planning!L92","v":0},{"$f":"IF(OR(W108=\"1\",AND(W108<>\"1\",G108=Lists!$A$17)),Y108,0)","v":0},null,{"$f":"IF(AND(W108=\"2\",G108<>Lists!$A$17),AA108,Z108)","v":""},"",{"$f":"Planning!M92","v":{"v":0,"d":"0.00"}},{"$f":"'Month 1'!M108+'Month 1'!N108-'Month 1'!O108","v":{"v":0,"d":"0.00"}},null,"","",{"$f":"SUMIFS($J$25:$J$224,$C$25:$C$224,$C108,$G$25:$G$224,Lists!$A$16)","v":0},0,null,"",null,{"$f":"IF(C108=0,\"\",LEFT(INDEX(Lists!$H$5:$H$49,MATCH(C108,Lists!$G$5:$G$49,0),1),1))","v":""},null,{"$f":"'Month 1'!H108+'Month 1'!I108-'Month 1'!J108","v":0},"","",null,"0"]
[{"$f":"Planning!A93","v":"I085"},{"$f":"Planning!B93","v":0},{"$f":"Planning!C93","v":0},{"$f":"Planning!D93","v":0},{"$f":"Planning!E93","v":0},{"$f":"IF(Planning!G93<>0,Planning!G93,\"\")","v":""},{"$f":"Planning!H93","v":0},{"$f":"Planning!L93","v":0},{"$f":"IF(OR(W109=\"1\",AND(W109<>\"1\",G109=Lists!$A$17)),Y109,0)","v":0},null,{"$f":"IF(AND(W109=\"2\",G109<>Lists!$A$17),AA109,Z109)","v":""},"",{"$f":"Planning!M93","v":{"v":0,"d":"0.00"}},{"$f":"'Month 1'!M109+'Month 1'!N109-'Month 1'!O109","v":{"v":0,"d":"0.00"}},null,"","",{"$f":"SUMIFS($J$25:$J$224,$C$25:$C$224,$C109,$G$25:$G$224,Lists!$A$16)","v":0},0,null,"",null,{"$f":"IF(C109=0,\"\",LEFT(INDEX(Lists!$H$5:$H$49,MATCH(C109,Lists!$G$5:$G$49,0),1),1))","v":""},null,{"$f":"'Month 1'!H109+'Month 1'!I109-'Month 1'!J109","v":0},"","",null,"0"]
[{"$f":"Planning!A94","v":"I086"},{"$f":"Planning!B94","v":0},{"$f":"Planning!C94","v":0},{"$f":"Planning!D94","v":0},{"$f":"Planning!E94","v":0},{"$f":"IF(Planning!G94<>0,Planning!G94,\"\")","v":""},{"$f":"Planning!H94","v":0},{"$f":"Planning!L94","v":0},{"$f":"IF(OR(W110=\"1\",AND(W110<>\"1\",G110=Lists!$A$17)),Y110,0)","v":0},null,{"$f":"IF(AND(W110=\"2\",G110<>Lists!$A$17),AA110,Z110)","v":""},"",{"$f":"Planning!M94","v":{"v":0,"d":"0.00"}},{"$f":"'Month 1'!M110+'Month 1'!N110-'Month 1'!O110","v":{"v":0,"d":"0.00"}},null,"","",{"$f":"SUMIFS($J$25:$J$224,$C$25:$C$224,$C110,$G$25:$G$224,Lists!$A$16)","v":0},0,null,"",null,{"$f":"IF(C110=0,\"\",LEFT(INDEX(Lists!$H$5:$H$49,MATCH(C110,Lists!$G$5:$G$49,0),1),1))","v":""},null,{"$f":"'Month 1'!H110+'Month 1'!I110-'Month 1'!J110","v":0},"","",null,"0"]
[{"$f":"Planning!A95","v":"I087"},{"$f":"Planning!B95","v":0},{"$f":"Planning!C95","v":0},{"$f":"Planning!D95","v":0},{"$f":"Planning!E95","v":0},{"$f":"IF(Planning!G95<>0,Planning!G95,\"\")","v":""},{"$f":"Planning!H95","v":0},{"$f":"Planning!L95","v":0},{"$f":"IF(OR(W111=\"1\",AND(W111<>\"1\",G111=Lists!$A$17)),Y111,0)","v":0},null,{"$f":"IF(AND(W111=\"2\",G111<>Lists!$A$17),AA111,Z111)","v":""},"",{"$f":"Planning!M95","v":{"v":0,"d":"0.00"}},{"$f":"'Month 1'!M111+'Month 1'!N111-'Month 1'!O111","v":{"v":0,"d":"0.00"}},null,"","",{"$f":"SUMIFS($J$25:$J$224,$C$25:$C$224,$C111,$G$25:$G$224,Lists!$A$16)","v":0},0,null,"",null,{"$f":"IF(C111=0,\"\",LEFT(INDEX(Lists!$H$5:$H$49,MATCH(C111,Lists!$G$5:$G$49,0),1),1))","v":""},null,{"$f":"'Month 1'!H111+'Month 1'!I111-'Month 1'!J111","v":0},"","",null,"0"]
[{"$f":"Planning!A96","v":"I088"},{"$f":"Planning!B96","v":0},{"$f":"Planning!C96","v":0},{"$f":"Planning!D96","v":0},{"$f":"Planning!E96","v":0},{"$f":"IF(Planning!G96<>0,Planning!G96,\"\")","v":""},{"$f":"Planning!H96","v":0},{"$f":"Planning!L96","v":0},{"$f":"IF(OR(W112=\"1\",AND(W112<>\"1\",G112=Lists!$A$17)),Y112,0)","v":0},null,{"$f":"IF(AND(W112=\"2\",G112<>Lists!$A$17),AA112,Z112)","v":""},"",{"$f":"Planning!M96","v":{"v":0,"d":"0.00"}},{"$f":"'Month 1'!M112+'Month 1'!N112-'Month 1'!O112","v":{"v":0,"d":"0.00"}},null,"","",{"$f":"SUMIFS($J$25:$J$224,$C$25:$C$224,$C112,$G$25:$G$224,Lists!$A$16)","v":0},0,null,"",null,{"$f":"IF(C112=0,\"\",LEFT(INDEX(Lists!$H$5:$H$49,MATCH(C112,Lists!$G$5:$G$49,0),1),1))","v":""},null,{"$f":"'Month 1'!H112+'Month 1'!I112-'Month 1'!J112","v":0},"","",null,"0"]
[{"$f":"Planning!A97","v":"I089"},{"$f":"Planning!B97","v":0},{"$f":"Planning!C97","v":0},{"$f":"Planning!D97","v":0},{"$f":"Planning!E97","v":0},{"$f":"IF(Planning!G97<>0,Planning!G97,\"\")","v":""},{"$f":"Planning!H97","v":0},{"$f":"Planning!L97","v":0},{"$f":"IF(OR(W113=\"1\",AND(W113<>\"1\",G113=Lists!$A$17)),Y113,0)","v":0},null,{"$f":"IF(AND(W113=\"2\",G113<>Lists!$A$17),AA113,Z113)","v":""},"",{"$f":"Planning!M97","v":{"v":0,"d":"0.00"}},{"$f":"'Month 1'!M113+'Month 1'!N113-'Month 1'!O113","v":{"v":0,"d":"0.00"}},null,"","",{"$f":"SUMIFS($J$25:$J$224,$C$25:$C$224,$C113,$G$25:$G$224,Lists!$A$16)","v":0},0,null,"",null,{"$f":"IF(C113=0,\"\",LEFT(INDEX(Lists!$H$5:$H$49,MATCH(C113,Lists!$G$5:$G$49,0),1),1))","v":""},null,{"$f":"'Month 1'!H113+'Month 1'!I113-'Month 1'!J113","v":0},"","",null,"0"]
[{"$f":"Planning!A98","v":"I090"},{"$f":"Planning!B98","v":0},{"$f":"Planning!C98","v":0},{"$f":"Planning!D98","v":0},{"$f":"Planning!E98","v":0},{"$f":"IF(Planning!G98<>0,Planning!G98,\"\")","v":""},{"$f":"Planning!H98","v":0},{"$f":"Planning!L98","v":0},{"$f":"IF(OR(W114=\"1\",AND(W114<>\"1\",G114=Lists!$A$17)),Y114,0)","v":0},null,{"$f":"IF(AND(W114=\"2\",G114<>Lists!$A$17),AA114,Z114)","v":""},"",{"$f":"Planning!M98","v":{"v":0,"d":"0.00"}},{"$f":"'Month 1'!M114+'Month 1'!N114-'Month 1'!O114","v":{"v":0,"d":"0.00"}},null,"","",{"$f":"SUMIFS($J$25:$J$224,$C$25:$C$224,$C114,$G$25:$G$224,Lists!$A$16)","v":0},0,null,"",null,{"$f":"IF(C114=0,\"\",LEFT(INDEX(Lists!$H$5:$H$49,MATCH(C114,Lists!$G$5:$G$49,0),1),1))","v":""},null,{"$f":"'Month 1'!H114+'Month 1'!I114-'Month 1'!J114","v":0},"","",null,"0"]
[{"$f":"Planning!A99","v":"I091"},{"$f":"Planning!B99","v":0},{"$f":"Planning!C99","v":0},{"$f":"Planning!D99","v":0},{"$f":"Planning!E99","v":0},{"$f":"IF(Planning!G99<>0,Planning!G99,\"\")","v":""},{"$f":"Planning!H99","v":0},{"$f":"Planning!L99","v":0},{"$f":"IF(OR(W115=\"1\",AND(W115<>\"1\",G115=Lists!$A$17)),Y115,0)","v":0},null,{"$f":"IF(AND(W115=\"2\",G115<>Lists!$A$17),AA115,Z115)","v":""},"",{"$f":"Planning!M99","v":{"v":0,"d":"0.00"}},{"$f":"'Month 1'!M115+'Month 1'!N115-'Month 1'!O115","v":{"v":0,"d":"0.00"}},null,"","",{"$f":"SUMIFS($J$25:$J$224,$C$25:$C$224,$C115,$G$25:$G$224,Lists!$A$16)","v":0},0,null,"",null,{"$f":"IF(C115=0,\"\",LEFT(INDEX(Lists!$H$5:$H$49,MATCH(C115,Lists!$G$5:$G$49,0),1),1))","v":""},null,{"$f":"'Month 1'!H115+'Month 1'!I115-'Month 1'!J115","v":0},"","",null,"0"]
[{"$f":"Planning!A100","v":"I092"},{"$f":"Planning!B100","v":0},{"$f":"Planning!C100","v":0},{"$f":"Planning!D100","v":0},{"$f":"Planning!E100","v":0},{"$f":"IF(Planning!G100<>0,Planning!G100,\"\")","v":""},{"$f":"Planning!H100","v":0},{"$f":"Planning!L100","v":0},{"$f":"IF(OR(W116=\"1\",AND(W116<>\"1\",G116=Lists!$A$17)),Y116,0)","v":0},null,{"$f":"IF(AND(W116=\"2\",G116<>Lists!$A$17),AA116,Z116)","v":""},"",{"$f":"Planning!M100","v":{"v":0,"d":"0.00"}},{"$f":"'Month 1'!M116+'Month 1'!N116-'Month 1'!O116","v":{"v":0,"d":"0.00"}},null,"","",{"$f":"SUMIFS($J$25:$J$224,$C$25:$C$224,$C116,$G$25:$G$224,Lists!$A$16)","v":0},0,null,"",null,{"$f":"IF(C116=0,\"\",LEFT(INDEX(Lists!$H$5:$H$49,MATCH(C116,Lists!$G$5:$G$49,0),1),1))","v":""},null,{"$f":"'Month 1'!H116+'Month 1'!I116-'Month 1'!J116","v":0},"","",null,"0"]
[{"$f":"Planning!A101","v":"I093"},{"$f":"Planning!B101","v":0},{"$f":"Planning!C101","v":0},{"$f":"Planning!D101","v":0},{"$f":"Planning!E101","v":0},{"$f":"IF(Planning!G101<>0,Planning!G101,\"\")","v":""},{"$f":"Planning!H101","v":0},{"$f":"Planning!L101","v":0},{"$f":"IF(OR(W117=\"1\",AND(W117<>\"1\",G117=Lists!$A$17)),Y117,0)","v":0},null,{"$f":"IF(AND(W117=\"2\",G117<>Lists!$A$17),AA117,Z117)","v":""},"",{"$f":"Planning!M101","v":{"v":0,"d":"0.00"}},{"$f":"'Month 1'!M117+'Month 1'!N117-'Month 1'!O117","v":{"v":0,"d":"0.00"}},null,"","",{"$f":"SUMIFS($J$25:$J$224,$C$25:$C$224,$C117,$G$25:$G$224,Lists!$A$16)","v":0},0,null,"",null,{"$f":"IF(C117=0,\"\",LEFT(INDEX(Lists!$H$5:$H$49,MATCH(C117,Lists!$G$5:$G$49,0),1),1))","v":""},null,{"$f":"'Month 1'!H117+'Month 1'!I117-'Month 1'!J117","v":0},"","",null,"0"]
[{"$f":"Planning!A102","v":"I094"},{"$f":"Planning!B102","v":0},{"$f":"Planning!C102","v":0},{"$f":"Planning!D102","v":0},{"$f":"Planning!E102","v":0},{"$f":"IF(Planning!G102<>0,Planning!G102,\"\")","v":""},{"$f":"Planning!H102","v":0},{"$f":"Planning!L102","v":0},{"$f":"IF(OR(W118=\"1\",AND(W118<>\"1\",G118=Lists!$A$17)),Y118,0)","v":0},null,{"$f":"IF(AND(W118=\"2\",G118<>Lists!$A$17),AA118,Z118)","v":""},"",{"$f":"Planning!M102","v":{"v":0,"d":"0.00"}},{"$f":"'Month 1'!M118+'Month 1'!N118-'Month 1'!O118","v":{"v":0,"d":"0.00"}},null,"","",{"$f":"SUMIFS($J$25:$J$224,$C$25:$C$224,$C118,$G$25:$G$224,Lists!$A$16)","v":0},0,null,"",null,{"$f":"IF(C118=0,\"\",LEFT(INDEX(Lists!$H$5:$H$49,MATCH(C118,Lists!$G$5:$G$49,0),1),1))","v":""},null,{"$f":"'Month 1'!H118+'Month 1'!I118-'Month 1'!J118","v":0},"","",null,"0"]
[{"$f":"Planning!A103","v":"I095"},{"$f":"Planning!B103","v":0},{"$f":"Planning!C103","v":0},{"$f":"Planning!D103","v":0},{"$f":"Planning!E103","v":0},{"$f":"IF(Planning!G103<>0,Planning!G103,\"\")","v":""},{"$f":"Planning!H103","v":0},{"$f":"Planning!L103","v":0},{"$f":"IF(OR(W119=\"1\",AND(W119<>\"1\",G119=Lists!$A$17)),Y119,0)","v":0},null,{"$f":"IF(AND(W119=\"2\",G119<>Lists!$A$17),AA119,Z119)","v":""},"",{"$f":"Planning!M103","v":{"v":0,"d":"0.00"}},{"$f":"'Month 1'!M119+'Month 1'!N119-'Month 1'!O119","v":{"v":0,"d":"0.00"}},null,"","",{"$f":"SUMIFS($J$25:$J$224,$C$25:$C$224,$C119,$G$25:$G$224,Lists!$A$16)","v":0},0,null,"",null,{"$f":"IF(C119=0,\"\",LEFT(INDEX(Lists!$H$5:$H$49,MATCH(C119,Lists!$G$5:$G$49,0),1),1))","v":""},null,{"$f":"'Month 1'!H119+'Month 1'!I119-'Month 1'!J119","v":0},"","",null,"0"]
[{"$f":"Planning!A104","v":"I096"},{"$f":"Planning!B104","v":0},{"$f":"Planning!C104","v":0},{"$f":"Planning!D104","v":0},{"$f":"Planning!E104","v":0},{"$f":"IF(Planning!G104<>0,Planning!G104,\"\")","v":""},{"$f":"Planning!H104","v":0},{"$f":"Planning!L104","v":0},{"$f":"IF(OR(W120=\"1\",AND(W120<>\"1\",G120=Lists!$A$17)),Y120,0)","v":0},null,{"$f":"IF(AND(W120=\"2\",G120<>Lists!$A$17),AA120,Z120)","v":""},"",{"$f":"Planning!M104","v":{"v":0,"d":"0.00"}},{"$f":"'Month 1'!M120+'Month 1'!N120-'Month 1'!O120","v":{"v":0,"d":"0.00"}},null,"","",{"$f":"SUMIFS($J$25:$J$224,$C$25:$C$224,$C120,$G$25:$G$224,Lists!$A$16)","v":0},0,null,"",null,{"$f":"IF(C120=0,\"\",LEFT(INDEX(Lists!$H$5:$H$49,MATCH(C120,Lists!$G$5:$G$49,0),1),1))","v":""},null,{"$f":"'Month 1'!H120+'Month 1'!I120-'Month 1'!J120","v":0},"","",null,"0"]
[{"$f":"Planning!A105","v":"I097"},{"$f":"Planning!B105","v":0},{"$f":"Planning!C105","v":0},{"$f":"Planning!D105","v":0},{"$f":"Planning!E105","v":0},{"$f":"IF(Planning!G105<>0,Planning!G105,\"\")","v":""},{"$f":"Planning!H105","v":0},{"$f":"Planning!L105","v":0},{"$f":"IF(OR(W121=\"1\",AND(W121<>\"1\",G121=Lists!$A$17)),Y121,0)","v":0},null,{"$f":"IF(AND(W121=\"2\",G121<>Lists!$A$17),AA121,Z121)","v":""},{"$f":"IF($U121=ExcluirDelPLogro,\"\",IF(AND(H121=0,I121=0,J121=0),\"\",K121))","v":""},{"$f":"Planning!M105","v":{"v":0,"d":"0.00"}},{"$f":"'Month 1'!M121+'Month 1'!N121-'Month 1'!O121","v":{"v":0,"d":"0.00"}},null,"",{"$f":"IF($U121=ExcluirDelPLogro,\"\",IF(AND(M121=0,N121=0,O121=0),\"\",P121))","v":""},{"$f":"SUMIFS($J$25:$J$224,$C$25:$C$224,$C121,$G$25:$G$224,Lists!$A$16)","v":0},0,null,"",null,{"$f":"IF(C121=0,\"\",LEFT(INDEX(Lists!$H$5:$H$49,MATCH(C121,Lists!$G$5:$G$49,0),1),1))","v":""},null,{"$f":"'Month 1'!H121+'Month 1'!I121-'Month 1'!J121","v":0},"",{"$f":"IF(AND(H121=0,I121=0,J121=0),\"\",IF(J121>0,H121/J121,0))","v":""},null,"0"]
[{"$f":"Planning!A106","v":"I098"},{"$f":"Planning!B106","v":0},{"$f":"Planning!C106","v":0},{"$f":"Planning!D106","v":0},{"$f":"Planning!E106","v":0},{"$f":"IF(Planning!G106<>0,Planning!G106,\"\")","v":""},{"$f":"Planning!H106","v":0},{"$f":"Planning!L106","v":0},{"$f":"IF(OR(W122=\"1\",AND(W122<>\"1\",G122=Lists!$A$17)),Y122,0)","v":0},null,{"$f":"IF(AND(W122=\"2\",G122<>Lists!$A$17),AA122,Z122)","v":""},"",{"$f":"Planning!M106","v":{"v":0,"d":"0.00"}},{"$f":"'Month 1'!M122+'Month 1'!N122-'Month 1'!O122","v":{"v":0,"d":"0.00"}},null,"","",{"$f":"SUMIFS($J$25:$J$224,$C$25:$C$224,$C122,$G$25:$G$224,Lists!$A$16)","v":0},0,null,"",null,{"$f":"IF(C122=0,\"\",LEFT(INDEX(Lists!$H$5:$H$49,MATCH(C122,Lists!$G$5:$G$49,0),1),1))","v":""},null,{"$f":"'Month 1'!H122+'Month 1'!I122-'Month 1'!J122","v":0},"","",null,"0"]
[{"$f":"Planning!A107","v":"I099"},{"$f":"Planning!B107","v":0},{"$f":"Planning!C107","v":0},{"$f":"Planning!D107","v":0},{"$f":"Planning!E107","v":0},{"$f":"IF(Planning!G107<>0,Planning!G107,\"\")","v":""},{"$f":"Planning!H107","v":0},{"$f":"Planning!L107","v":0},{"$f":"IF(OR(W123=\"1\",AND(W123<>\"1\",G123=Lists!$A$17)),Y123,0)","v":0},null,{"$f":"IF(AND(W123=\"2\",G123<>Lists!$A$17),AA123,Z123)","v":""},"",{"$f":"Planning!M107","v":{"v":0,"d":"0.00"}},{"$f":"'Month 1'!M123+'Month 1'!N123-'Month 1'!O123","v":{"v":0,"d":"0.00"}},null,"","",{"$f":"SUMIFS($J$25:$J$224,$C$25:$C$224,$C123,$G$25:$G$224,Lists!$A$16)","v":0},0,null,"",null,{"$f":"IF(C123=0,\"\",LEFT(INDEX(Lists!$H$5:$H$49,MATCH(C123,Lists!$G$5:$G$49,0),1),1))","v":""},null,{"$f":"'Month 1'!H123+'Month 1'!I123-'Month 1'!J123","v":0},"","",null,"0"]
[{"$f":"Planning!A108","v":"I100"},{"$f":"Planning!B108","v":0},{"$f":"Planning!C108","v":0},{"$f":"Planning!D108","v":0},{"$f":"Planning!E108","v":0},{"$f":"IF(Planning!G108<>0,Planning!G108,\"\")","v":""},{"$f":"Planning!H108","v":0},{"$f":"Planning!L108","v":0},{"$f":"IF(OR(W124=\"1\",AND(W124<>\"1\",G124=Lists!$A$17)),Y124,0)","v":0},null,{"$f":"IF(AND(W124=\"2\",G124<>Lists!$A$17),AA124,Z124)","v":""},"",{"$f":"Planning!M108","v":{"v":0,"d":"0.00"}},{"$f":"'Month 1'!M124+'Month 1'!N124-'Month 1'!O124","v":{"v":0,"d":"0.00"}},null,"","",{"$f":"SUMIFS($J$25:$J$224,$C$25:$C$224,$C124,$G$25:$G$224,Lists!$A$16)","v":0},0,null,"",null,{"$f":"IF(C124=0,\"\",LEFT(INDEX(Lists!$H$5:$H$49,MATCH(C124,Lists!$G$5:$G$49,0),1),1))","v":""},null,{"$f":"'Month 1'!H124+'Month 1'!I124-'Month 1'!J124","v":0},"","",null,"0"]
[{"$f":"Planning!A109","v":"I101"},{"$f":"Planning!B109","v":0},{"$f":"Planning!C109","v":0},{"$f":"Planning!D109","v":0},{"$f":"Planning!E109","v":0},{"$f":"IF(Planning!G109<>0,Planning!G109,\"\")","v":""},{"$f":"Planning!H109","v":0},{"$f":"Planning!L109","v":0},{"$f":"IF(OR(W125=\"1\",AND(W125<>\"1\",G125=Lists!$A$17)),Y125,0)","v":0},null,{"$f":"IF(AND(W125=\"2\",G125<>Lists!$A$17),AA125,Z125)","v":""},"",{"$f":"Planning!M109","v":{"v":0,"d":"0.00"}},{"$f":"'Month 1'!M125+'Month 1'!N125-'Month 1'!O125","v":{"v":0,"d":"0.00"}},null,"","",{"$f":"SUMIFS($J$25:$J$224,$C$25:$C$224,$C125,$G$25:$G$224,Lists!$A$16)","v":0},0,null,"",null,{"$f":"IF(C125=0,\"\",LEFT(INDEX(Lists!$H$5:$H$49,MATCH(C125,Lists!$G$5:$G$49,0),1),1))","v":""},null,{"$f":"'Month 1'!H125+'Month 1'!I125-'Month 1'!J125","v":0},"","",null,"0"]
[{"$f":"Planning!A110","v":"I102"},{"$f":"Planning!B110","v":0},{"$f":"Planning!C110","v":0},{"$f":"Planning!D110","v":0},{"$f":"Planning!E110","v":0},{"$f":"IF(Planning!G110<>0,Planning!G110,\"\")","v":""},{"$f":"Planning!H110","v":0},{"$f":"Planning!L110","v":0},{"$f":"IF(OR(W126=\"1\",AND(W126<>\"1\",G126=Lists!$A$17)),Y126,0)","v":0},null,{"$f":"IF(AND(W126=\"2\",G126<>Lists!$A$17),AA126,Z126)","v":""},"",{"$f":"Planning!M110","v":{"v":0,"d":"0.00"}},{"$f":"'Month 1'!M126+'Month 1'!N126-'Month 1'!O126","v":{"v":0,"d":"0.00"}},null,"","",{"$f":"SUMIFS($J$25:$J$224,$C$25:$C$224,$C126,$G$25:$G$224,Lists!$A$16)","v":0},0,null,"",null,{"$f":"IF(C126=0,\"\",LEFT(INDEX(Lists!$H$5:$H$49,MATCH(C126,Lists!$G$5:$G$49,0),1),1))","v":""},null,{"$f":"'Month 1'!H126+'Month 1'!I126-'Month 1'!J126","v":0},"","",null,"0"]
[{"$f":"Planning!A111","v":"I103"},{"$f":"Planning!B111","v":0},{"$f":"Planning!C111","v":0},{"$f":"Planning!D111","v":0},{"$f":"Planning!E111","v":0},{"$f":"IF(Planning!G111<>0,Planning!G111,\"\")","v":""},{"$f":"Planning!H111","v":0},{"$f":"Planning!L111","v":0},{"$f":"IF(OR(W127=\"1\",AND(W127<>\"1\",G127=Lists!$A$17)),Y127,0)","v":0},null,{"$f":"IF(AND(W127=\"2\",G127<>Lists!$A$17),AA127,Z127)","v":""},"",{"$f":"Planning!M111","v":{"v":0,"d":"0.00"}},{"$f":"'Month 1'!M127+'Month 1'!N127-'Month 1'!O127","v":{"v":0,"d":"0.00"}},null,"","",{"$f":"SUMIFS($J$25:$J$224,$C$25:$C$224,$C127,$G$25:$G$224,Lists!$A$16)","v":0},0,null,"",null,{"$f":"IF(C127=0,\"\",LEFT(INDEX(Lists!$H$5:$H$49,MATCH(C127,Lists!$G$5:$G$49,0),1),1))","v":""},null,{"$f":"'Month 1'!H127+'Month 1'!I127-'Month 1'!J127","v":0},"","",null,"0"]
[{"$f":"Planning!A112","v":"I104"},{"$f":"Planning!B112","v":0},{"$f":"Planning!C112","v":0},{"$f":"Planning!D112","v":0},{"$f":"Planning!E112","v":0},{"$f":"IF(Planning!G112<>0,Planning!G112,\"\")","v":""},{"$f":"Planning!H112","v":0},{"$f":"Planning!L112","v":0},{"$f":"IF(OR(W128=\"1\",AND(W128<>\"1\",G128=Lists!$A$17)),Y128,0)","v":0},null,{"$f":"IF(AND(W128=\"2\",G128<>Lists!$A$17),AA128,Z128)","v":""},"",{"$f":"Planning!M112","v":{"v":0,"d":"0.00"}},{"$f":"'Month 1'!M128+'Month 1'!N128-'Month 1'!O128","v":{"v":0,"d":"0.00"}},null,"","",{"$f":"SUMIFS($J$25:$J$224,$C$25:$C$224,$C128,$G$25:$G$224,Lists!$A$16)","v":0},0,null,"",null,{"$f":"IF(C128=0,\"\",LEFT(INDEX(Lists!$H$5:$H$49,MATCH(C128,Lists!$G$5:$G$49,0),1),1))","v":""},null,{"$f":"'Month 1'!H128+'Month 1'!I128-'Month 1'!J128","v":0},"","",null,"0"]
[{"$f":"Planning!A113","v":"I105"},{"$f":"Planning!B113","v":0},{"$f":"Planning!C113","v":0},{"$f":"Planning!D113","v":0},{"$f":"Planning!E113","v":0},{"$f":"IF(Planning!G113<>0,Planning!G113,\"\")","v":""},{"$f":"Planning!H113","v":0},{"$f":"Planning!L113","v":0},{"$f":"IF(OR(W129=\"1\",AND(W129<>\"1\",G129=Lists!$A$17)),Y129,0)","v":0},null,{"$f":"IF(AND(W129=\"2\",G129<>Lists!$A$17),AA129,Z129)","v":""},"",{"$f":"Planning!M113","v":{"v":0,"d":"0.00"}},{"$f":"'Month 1'!M129+'Month 1'!N129-'Month 1'!O129","v":{"v":0,"d":"0.00"}},null,"","",{"$f":"SUMIFS($J$25:$J$224,$C$25:$C$224,$C129,$G$25:$G$224,Lists!$A$16)","v":0},0,null,"",null,{"$f":"IF(C129=0,\"\",LEFT(INDEX(Lists!$H$5:$H$49,MATCH(C129,Lists!$G$5:$G$49,0),1),1))","v":""},null,{"$f":"'Month 1'!H129+'Month 1'!I129-'Month 1'!J129","v":0},"","",null,"0"]
[{"$f":"Planning!A114","v":"I106"},{"$f":"Planning!B114","v":0},{"$f":"Planning!C114","v":0},{"$f":"Planning!D114","v":0},{"$f":"Planning!E114","v":0},{"$f":"IF(Planning!G114<>0,Planning!G114,\"\")","v":""},{"$f":"Planning!H114","v":0},{"$f":"Planning!L114","v":0},{"$f":"IF(OR(W130=\"1\",AND(W130<>\"1\",G130=Lists!$A$17)),Y130,0)","v":0},null,{"$f":"IF(AND(W130=\"2\",G130<>Lists!$A$17),AA130,Z130)","v":""},"",{"$f":"Planning!M114","v":{"v":0,"d":"0.00"}},{"$f":"'Month 1'!M130+'Month 1'!N130-'Month 1'!O130","v":{"v":0,"d":"0.00"}},null,"","",{"$f":"SUMIFS($J$25:$J$224,$C$25:$C$224,$C130,$G$25:$G$224,Lists!$A$16)","v":0},0,null,"",null,{"$f":"IF(C130=0,\"\",LEFT(INDEX(Lists!$H$5:$H$49,MATCH(C130,Lists!$G$5:$G$49,0),1),1))","v":""},null,{"$f":"'Month 1'!H130+'Month 1'!I130-'Month 1'!J130","v":0},"","",null,"0"]
[{"$f":"Planning!A115","v":"I107"},{"$f":"Planning!B115","v":0},{"$f":"Planning!C115","v":0},{"$f":"Planning!D115","v":0},{"$f":"Planning!E115","v":0},{"$f":"IF(Planning!G115<>0,Planning!G115,\"\")","v":""},{"$f":"Planning!H115","v":0},{"$f":"Planning!L115","v":0},{"$f":"IF(OR(W131=\"1\",AND(W131<>\"1\",G131=Lists!$A$17)),Y131,0)","v":0},null,{"$f":"IF(AND(W131=\"2\",G131<>Lists!$A$17),AA131,Z131)","v":""},"",{"$f":"Planning!M115","v":{"v":0,"d":"0.00"}},{"$f":"'Month 1'!M131+'Month 1'!N131-'Month 1'!O131","v":{"v":0,"d":"0.00"}},null,"","",{"$f":"SUMIFS($J$25:$J$224,$C$25:$C$224,$C131,$G$25:$G$224,Lists!$A$16)","v":0},0,null,"",null,{"$f":"IF(C131=0,\"\",LEFT(INDEX(Lists!$H$5:$H$49,MATCH(C131,Lists!$G$5:$G$49,0),1),1))","v":""},null,{"$f":"'Month 1'!H131+'Month 1'!I131-'Month 1'!J131","v":0},"","",null,"0"]
[{"$f":"Planning!A116","v":"I108"},{"$f":"Planning!B116","v":0},{"$f":"Planning!C116","v":0},{"$f":"Planning!D116","v":0},{"$f":"Planning!E116","v":0},{"$f":"IF(Planning!G116<>0,Planning!G116,\"\")","v":""},{"$f":"Planning!H116","v":0},{"$f":"Planning!L116","v":0},{"$f":"IF(OR(W132=\"1\",AND(W132<>\"1\",G132=Lists!$A$17)),Y132,0)","v":0},null,{"$f":"IF(AND(W132=\"2\",G132<>Lists!$A$17),AA132,Z132)","v":""},"",{"$f":"Planning!M116","v":{"v":0,"d":"0.00"}},{"$f":"'Month 1'!M132+'Month 1'!N132-'Month 1'!O132","v":{"v":0,"d":"0.00"}},null,"","",{"$f":"SUMIFS($J$25:$J$224,$C$25:$C$224,$C132,$G$25:$G$224,Lists!$A$16)","v":0},0,null,"",null,{"$f":"IF(C132=0,\"\",LEFT(INDEX(Lists!$H$5:$H$49,MATCH(C132,Lists!$G$5:$G$49,0),1),1))","v":""},null,{"$f":"'Month 1'!H132+'Month 1'!I132-'Month 1'!J132","v":0},"","",null,"0"]
[{"$f":"Planning!A117","v":"I109"},{"$f":"Planning!B117","v":0},{"$f":"Planning!C117","v":0},{"$f":"Planning!D117","v":0},{"$f":"Planning!E117","v":0},{"$f":"IF(Planning!G117<>0,Planning!G117,\"\")","v":""},{"$f":"Planning!H117","v":0},{"$f":"Planning!L117","v":0},{"$f":"IF(OR(W133=\"1\",AND(W133<>\"1\",G133=Lists!$A$17)),Y133,0)","v":0},null,{"$f":"IF(AND(W133=\"2\",G133<>Lists!$A$17),AA133,Z133)","v":""},"",{"$f":"Planning!M117","v":{"v":0,"d":"0.00"}},{"$f":"'Month 1'!M133+'Month 1'!N133-'Month 1'!O133","v":{"v":0,"d":"0.00"}},null,"","",{"$f":"SUMIFS($J$25:$J$224,$C$25:$C$224,$C133,$G$25:$G$224,Lists!$A$16)","v":0},0,null,"",null,{"$f":"IF(C133=0,\"\",LEFT(INDEX(Lists!$H$5:$H$49,MATCH(C133,Lists!$G$5:$G$49,0),1),1))","v":""},null,{"$f":"'Month 1'!H133+'Month 1'!I133-'Month 1'!J133","v":0},"","",null,"0"]
[{"$f":"Planning!A118","v":"I110"},{"$f":"Planning!B118","v":0},{"$f":"Planning!C118","v":0},{"$f":"Planning!D118","v":0},{"$f":"Planning!E118","v":0},{"$f":"IF(Planning!G118<>0,Planning!G118,\"\")","v":""},{"$f":"Planning!H118","v":0},{"$f":"Planning!L118","v":0},{"$f":"IF(OR(W134=\"1\",AND(W134<>\"1\",G134=Lists!$A$17)),Y134,0)","v":0},null,{"$f":"IF(AND(W134=\"2\",G134<>Lists!$A$17),AA134,Z134)","v":""},"",{"$f":"Planning!M118","v":{"v":0,"d":"0.00"}},{"$f":"'Month 1'!M134+'Month 1'!N134-'Month 1'!O134","v":{"v":0,"d":"0.00"}},null,"","",{"$f":"SUMIFS($J$25:$J$224,$C$25:$C$224,$C134,$G$25:$G$224,Lists!$A$16)","v":0},0,null,"",null,{"$f":"IF(C134=0,\"\",LEFT(INDEX(Lists!$H$5:$H$49,MATCH(C134,Lists!$G$5:$G$49,0),1),1))","v":""},null,{"$f":"'Month 1'!H134+'Month 1'!I134-'Month 1'!J134","v":0},"","",null,"0"]
[{"$f":"Planning!A119","v":"I111"},{"$f":"Planning!B119","v":0},{"$f":"Planning!C119","v":0},{"$f":"Planning!D119","v":0},{"$f":"Planning!E119","v":0},{"$f":"IF(Planning!G119<>0,Planning!G119,\"\")","v":""},{"$f":"Planning!H119","v":0},{"$f":"Planning!L119","v":0},{"$f":"IF(OR(W135=\"1\",AND(W135<>\"1\",G135=Lists!$A$17)),Y135,0)","v":0},null,{"$f":"IF(AND(W135=\"2\",G135<>Lists!$A$17),AA135,Z135)","v":""},"",{"$f":"Planning!M119","v":{"v":0,"d":"0.00"}},{"$f":"'Month 1'!M135+'Month 1'!N135-'Month 1'!O135","v":{"v":0,"d":"0.00"}},null,"","",{"$f":"SUMIFS($J$25:$J$224,$C$25:$C$224,$C135,$G$25:$G$224,Lists!$A$16)","v":0},0,null,"",null,{"$f":"IF(C135=0,\"\",LEFT(INDEX(Lists!$H$5:$H$49,MATCH(C135,Lists!$G$5:$G$49,0),1),1))","v":""},null,{"$f":"'Month 1'!H135+'Month 1'!I135-'Month 1'!J135","v":0},"","",null,"0"]
[{"$f":"Planning!A120","v":"I112"},{"$f":"Planning!B120","v":0},{"$f":"Planning!C120","v":0},{"$f":"Planning!D120","v":0},{"$f":"Planning!E120","v":0},{"$f":"IF(Planning!G120<>0,Planning!G120,\"\")","v":""},{"$f":"Planning!H120","v":0},{"$f":"Planning!L120","v":0},{"$f":"IF(OR(W136=\"1\",AND(W136<>\"1\",G136=Lists!$A$17)),Y136,0)","v":0},null,{"$f":"IF(AND(W136=\"2\",G136<>Lists!$A$17),AA136,Z136)","v":""},"",{"$f":"Planning!M120","v":{"v":0,"d":"0.00"}},{"$f":"'Month 1'!M136+'Month 1'!N136-'Month 1'!O136","v":{"v":0,"d":"0.00"}},null,"","",{"$f":"SUMIFS($J$25:$J$224,$C$25:$C$224,$C136,$G$25:$G$224,Lists!$A$16)","v":0},0,null,"",null,{"$f":"IF(C136=0,\"\",LEFT(INDEX(Lists!$H$5:$H$49,MATCH(C136,Lists!$G$5:$G$49,0),1),1))","v":""},null,{"$f":"'Month 1'!H136+'Month 1'!I136-'Month 1'!J136","v":0},"","",null,"0"]
[{"$f":"Planning!A121","v":"I113"},{"$f":"Planning!B121","v":0},{"$f":"Planning!C121","v":0},{"$f":"Planning!D121","v":0},{"$f":"Planning!E121","v":0},{"$f":"IF(Planning!G121<>0,Planning!G121,\"\")","v":""},{"$f":"Planning!H121","v":0},{"$f":"Planning!L121","v":0},{"$f":"IF(OR(W137=\"1\",AND(W137<>\"1\",G137=Lists!$A$17)),Y137,0)","v":0},null,{"$f":"IF(AND(W137=\"2\",G137<>Lists!$A$17),AA137,Z137)","v":""},"",{"$f":"Planning!M121","v":{"v":0,"d":"0.00"}},{"$f":"'Month 1'!M137+'Month 1'!N137-'Month 1'!O137","v":{"v":0,"d":"0.00"}},null,"","",{"$f":"SUMIFS($J$25:$J$224,$C$25:$C$224,$C137,$G$25:$G$224,Lists!$A$16)","v":0},0,null,"",null,{"$f":"IF(C137=0,\"\",LEFT(INDEX(Lists!$H$5:$H$49,MATCH(C137,Lists!$G$5:$G$49,0),1),1))","v":""},null,{"$f":"'Month 1'!H137+'Month 1'!I137-'Month 1'!J137","v":0},"","",null,"0"]
[{"$f":"Planning!A122","v":"I114"},{"$f":"Planning!B122","v":0},{"$f":"Planning!C122","v":0},{"$f":"Planning!D122","v":0},{"$f":"Planning!E122","v":0},{"$f":"IF(Planning!G122<>0,Planning!G122,\"\")","v":""},{"$f":"Planning!H122","v":0},{"$f":"Planning!L122","v":0},{"$f":"IF(OR(W138=\"1\",AND(W138<>\"1\",G138=Lists!$A$17)),Y138,0)","v":0},null,{"$f":"IF(AND(W138=\"2\",G138<>Lists!$A$17),AA138,Z138)","v":""},"",{"$f":"Planning!M122","v":{"v":0,"d":"0.00"}},{"$f":"'Month 1'!M138+'Month 1'!N138-'Month 1'!O138","v":{"v":0,"d":"0.00"}},null,"","",{"$f":"SUMIFS($J$25:$J$224,$C$25:$C$224,$C138,$G$25:$G$224,Lists!$A$16)","v":0},0,null,"",null,{"$f":"IF(C138=0,\"\",LEFT(INDEX(Lists!$H$5:$H$49,MATCH(C138,Lists!$G$5:$G$49,0),1),1))","v":""},null,{"$f":"'Month 1'!H138+'Month 1'!I138-'Month 1'!J138","v":0},"","",null,"0"]
[{"$f":"Planning!A123","v":"I115"},{"$f":"Planning!B123","v":0},{"$f":"Planning!C123","v":0},{"$f":"Planning!D123","v":0},{"$f":"Planning!E123","v":0},{"$f":"IF(Planning!G123<>0,Planning!G123,\"\")","v":""},{"$f":"Planning!H123","v":0},{"$f":"Planning!L123","v":0},{"$f":"IF(OR(W139=\"1\",AND(W139<>\"1\",G139=Lists!$A$17)),Y139,0)","v":0},null,{"$f":"IF(AND(W139=\"2\",G139<>Lists!$A$17),AA139,Z139)","v":""},"",{"$f":"Planning!M123","v":{"v":0,"d":"0.00"}},{"$f":"'Month 1'!M139+'Month 1'!N139-'Month 1'!O139","v":{"v":0,"d":"0.00"}},null,"","",{"$f":"SUMIFS($J$25:$J$224,$C$25:$C$224,$C139,$G$25:$G$224,Lists!$A$16)","v":0},0,null,"",null,{"$f":"IF(C139=0,\"\",LEFT(INDEX(Lists!$H$5:$H$49,MATCH(C139,Lists!$G$5:$G$49,0),1),1))","v":""},null,{"$f":"'Month 1'!H139+'Month 1'!I139-'Month 1'!J139","v":0},"","",null,"0"]
[{"$f":"Planning!A124","v":"I116"},{"$f":"Planning!B124","v":0},{"$f":"Planning!C124","v":0},{"$f":"Planning!D124","v":0},{"$f":"Planning!E124","v":0},{"$f":"IF(Planning!G124<>0,Planning!G124,\"\")","v":""},{"$f":"Planning!H124","v":0},{"$f":"Planning!L124","v":0},{"$f":"IF(OR(W140=\"1\",AND(W140<>\"1\",G140=Lists!$A$17)),Y140,0)","v":0},null,{"$f":"IF(AND(W140=\"2\",G140<>Lists!$A$17),AA140,Z140)","v":""},"",{"$f":"Planning!M124","v":{"v":0,"d":"0.00"}},{"$f":"'Month 1'!M140+'Month 1'!N140-'Month 1'!O140","v":{"v":0,"d":"0.00"}},null,"","",{"$f":"SUMIFS($J$25:$J$224,$C$25:$C$224,$C140,$G$25:$G$224,Lists!$A$16)","v":0},0,null,"",null,{"$f":"IF(C140=0,\"\",LEFT(INDEX(Lists!$H$5:$H$49,MATCH(C140,Lists!$G$5:$G$49,0),1),1))","v":""},null,{"$f":"'Month 1'!H140+'Month 1'!I140-'Month 1'!J140","v":0},"","",null,"0"]
[{"$f":"Planning!A125","v":"I117"},{"$f":"Planning!B125","v":0},{"$f":"Planning!C125","v":0},{"$f":"Planning!D125","v":0},{"$f":"Planning!E125","v":0},{"$f":"IF(Planning!G125<>0,Planning!G125,\"\")","v":""},{"$f":"Planning!H125","v":0},{"$f":"Planning!L125","v":0},{"$f":"IF(OR(W141=\"1\",AND(W141<>\"1\",G141=Lists!$A$17)),Y141,0)","v":0},null,{"$f":"IF(AND(W141=\"2\",G141<>Lists!$A$17),AA141,Z141)","v":""},"",{"$f":"Planning!M125","v":{"v":0,"d":"0.00"}},{"$f":"'Month 1'!M141+'Month 1'!N141-'Month 1'!O141","v":{"v":0,"d":"0.00"}},null,"","",{"$f":"SUMIFS($J$25:$J$224,$C$25:$C$224,$C141,$G$25:$G$224,Lists!$A$16)","v":0},0,null,"",null,{"$f":"IF(C141=0,\"\",LEFT(INDEX(Lists!$H$5:$H$49,MATCH(C141,Lists!$G$5:$G$49,0),1),1))","v":""},null,{"$f":"'Month 1'!H141+'Month 1'!I141-'Month 1'!J141","v":0},"","",null,"0"]
[{"$f":"Planning!A126","v":"I118"},{"$f":"Planning!B126","v":0},{"$f":"Planning!C126","v":0},{"$f":"Planning!D126","v":0},{"$f":"Planning!E126","v":0},{"$f":"IF(Planning!G126<>0,Planning!G126,\"\")","v":""},{"$f":"Planning!H126","v":0},{"$f":"Planning!L126","v":0},{"$f":"IF(OR(W142=\"1\",AND(W142<>\"1\",G142=Lists!$A$17)),Y142,0)","v":0},null,{"$f":"IF(AND(W142=\"2\",G142<>Lists!$A$17),AA142,Z142)","v":""},"",{"$f":"Planning!M126","v":{"v":0,"d":"0.00"}},{"$f":"'Month 1'!M142+'Month 1'!N142-'Month 1'!O142","v":{"v":0,"d":"0.00"}},null,"","",{"$f":"SUMIFS($J$25:$J$224,$C$25:$C$224,$C142,$G$25:$G$224,Lists!$A$16)","v":0},0,null,"",null,{"$f":"IF(C142=0,\"\",LEFT(INDEX(Lists!$H$5:$H$49,MATCH(C142,Lists!$G$5:$G$49,0),1),1))","v":""},null,{"$f":"'Month 1'!H142+'Month 1'!I142-'Month 1'!J142","v":0},"","",null,"0"]
[{"$f":"Planning!A127","v":"I119"},{"$f":"Planning!B127","v":0},{"$f":"Planning!C127","v":0},{"$f":"Planning!D127","v":0},{"$f":"Planning!E127","v":0},{"$f":"IF(Planning!G127<>0,Planning!G127,\"\")","v":""},{"$f":"Planning!H127","v":0},{"$f":"Planning!L127","v":0},{"$f":"IF(OR(W143=\"1\",AND(W143<>\"1\",G143=Lists!$A$17)),Y143,0)","v":0},null,{"$f":"IF(AND(W143=\"2\",G143<>Lists!$A$17),AA143,Z143)","v":""},"",{"$f":"Planning!M127","v":{"v":0,"d":"0.00"}},{"$f":"'Month 1'!M143+'Month 1'!N143-'Month 1'!O143","v":{"v":0,"d":"0.00"}},null,"","",{"$f":"SUMIFS($J$25:$J$224,$C$25:$C$224,$C143,$G$25:$G$224,Lists!$A$16)","v":0},0,null,"",null,{"$f":"IF(C143=0,\"\",LEFT(INDEX(Lists!$H$5:$H$49,MATCH(C143,Lists!$G$5:$G$49,0),1),1))","v":""},null,{"$f":"'Month 1'!H143+'Month 1'!I143-'Month 1'!J143","v":0},"","",null,"0"]
[{"$f":"Planning!A128","v":"I120"},{"$f":"Planning!B128","v":0},{"$f":"Planning!C128","v":0},{"$f":"Planning!D128","v":0},{"$f":"Planning!E128","v":0},{"$f":"IF(Planning!G128<>0,Planning!G128,\"\")","v":""},{"$f":"Planning!H128","v":0},{"$f":"Planning!L128","v":0},{"$f":"IF(OR(W144=\"1\",AND(W144<>\"1\",G144=Lists!$A$17)),Y144,0)","v":0},null,{"$f":"IF(AND(W144=\"2\",G144<>Lists!$A$17),AA144,Z144)","v":""},"",{"$f":"Planning!M128","v":{"v":0,"d":"0.00"}},{"$f":"'Month 1'!M144+'Month 1'!N144-'Month 1'!O144","v":{"v":0,"d":"0.00"}},null,"","",{"$f":"SUMIFS($J$25:$J$224,$C$25:$C$224,$C144,$G$25:$G$224,Lists!$A$16)","v":0},0,null,"",null,{"$f":"IF(C144=0,\"\",LEFT(INDEX(Lists!$H$5:$H$49,MATCH(C144,Lists!$G$5:$G$49,0),1),1))","v":""},null,{"$f":"'Month 1'!H144+'Month 1'!I144-'Month 1'!J144","v":0},"","",null,"0"]
[{"$f":"Planning!A129","v":"I121"},{"$f":"Planning!B129","v":0},{"$f":"Planning!C129","v":0},{"$f":"Planning!D129","v":0},{"$f":"Planning!E129","v":0},{"$f":"IF(Planning!G129<>0,Planning!G129,\"\")","v":""},{"$f":"Planning!H129","v":0},{"$f":"Planning!L129","v":0},{"$f":"IF(OR(W145=\"1\",AND(W145<>\"1\",G145=Lists!$A$17)),Y145,0)","v":0},null,{"$f":"IF(AND(W145=\"2\",G145<>Lists!$A$17),AA145,Z145)","v":""},"",{"$f":"Planning!M129","v":{"v":0,"d":"0.00"}},{"$f":"'Month 1'!M145+'Month 1'!N145-'Month 1'!O145","v":{"v":0,"d":"0.00"}},null,"","",{"$f":"SUMIFS($J$25:$J$224,$C$25:$C$224,$C145,$G$25:$G$224,Lists!$A$16)","v":0},0,null,"",null,{"$f":"IF(C145=0,\"\",LEFT(INDEX(Lists!$H$5:$H$49,MATCH(C145,Lists!$G$5:$G$49,0),1),1))","v":""},null,{"$f":"'Month 1'!H145+'Month 1'!I145-'Month 1'!J145","v":0},"","",null,"0"]
[{"$f":"Planning!A130","v":"I122"},{"$f":"Planning!B130","v":0},{"$f":"Planning!C130","v":0},{"$f":"Planning!D130","v":0},{"$f":"Planning!E130","v":0},{"$f":"IF(Planning!G130<>0,Planning!G130,\"\")","v":""},{"$f":"Planning!H130","v":0},{"$f":"Planning!L130","v":0},{"$f":"IF(OR(W146=\"1\",AND(W146<>\"1\",G146=Lists!$A$17)),Y146,0)","v":0},null,{"$f":"IF(AND(W146=\"2\",G146<>Lists!$A$17),AA146,Z146)","v":""},"",{"$f":"Planning!M130","v":{"v":0,"d":"0.00"}},{"$f":"'Month 1'!M146+'Month 1'!N146-'Month 1'!O146","v":{"v":0,"d":"0.00"}},null,"","",{"$f":"SUMIFS($J$25:$J$224,$C$25:$C$224,$C146,$G$25:$G$224,Lists!$A$16)","v":0},0,null,"",null,{"$f":"IF(C146=0,\"\",LEFT(INDEX(Lists!$H$5:$H$49,MATCH(C146,Lists!$G$5:$G$49,0),1),1))","v":""},null,{"$f":"'Month 1'!H146+'Month 1'!I146-'Month 1'!J146","v":0},"","",null,"0"]
[{"$f":"Planning!A131","v":"I123"},{"$f":"Planning!B131","v":0},{"$f":"Planning!C131","v":0},{"$f":"Planning!D131","v":0},{"$f":"Planning!E131","v":0},{"$f":"IF(Planning!G131<>0,Planning!G131,\"\")","v":""},{"$f":"Planning!H131","v":0},{"$f":"Planning!L131","v":0},{"$f":"IF(OR(W147=\"1\",AND(W147<>\"1\",G147=Lists!$A$17)),Y147,0)","v":0},null,{"$f":"IF(AND(W147=\"2\",G147<>Lists!$A$17),AA147,Z147)","v":""},"",{"$f":"Planning!M131","v":{"v":0,"d":"0.00"}},{"$f":"'Month 1'!M147+'Month 1'!N147-'Month 1'!O147","v":{"v":0,"d":"0.00"}},null,"","",{"$f":"SUMIFS($J$25:$J$224,$C$25:$C$224,$C147,$G$25:$G$224,Lists!$A$16)","v":0},0,null,"",null,{"$f":"IF(C147=0,\"\",LEFT(INDEX(Lists!$H$5:$H$49,MATCH(C147,Lists!$G$5:$G$49,0),1),1))","v":""},null,{"$f":"'Month 1'!H147+'Month 1'!I147-'Month 1'!J147","v":0},"","",null,"0"]
[{"$f":"Planning!A132","v":"I124"},{"$f":"Planning!B132","v":0},{"$f":"Planning!C132","v":0},{"$f":"Planning!D132","v":0},{"$f":"Planning!E132","v":0},{"$f":"IF(Planning!G132<>0,Planning!G132,\"\")","v":""},{"$f":"Planning!H132","v":0},{"$f":"Planning!L132","v":0},{"$f":"IF(OR(W148=\"1\",AND(W148<>\"1\",G148=Lists!$A$17)),Y148,0)","v":0},null,{"$f":"IF(AND(W148=\"2\",G148<>Lists!$A$17),AA148,Z148)","v":""},"",{"$f":"Planning!M132","v":{"v":0,"d":"0.00"}},{"$f":"'Month 1'!M148+'Month 1'!N148-'Month 1'!O148","v":{"v":0,"d":"0.00"}},null,"","",{"$f":"SUMIFS($J$25:$J$224,$C$25:$C$224,$C148,$G$25:$G$224,Lists!$A$16)","v":0},0,null,"",null,{"$f":"IF(C148=0,\"\",LEFT(INDEX(Lists!$H$5:$H$49,MATCH(C148,Lists!$G$5:$G$49,0),1),1))","v":""},null,{"$f":"'Month 1'!H148+'Month 1'!I148-'Month 1'!J148","v":0},"","",null,"0"]
[{"$f":"Planning!A133","v":"I125"},{"$f":"Planning!B133","v":0},{"$f":"Planning!C133","v":0},{"$f":"Planning!D133","v":0},{"$f":"Planning!E133","v":0},{"$f":"IF(Planning!G133<>0,Planning!G133,\"\")","v":""},{"$f":"Planning!H133","v":0},{"$f":"Planning!L133","v":0},{"$f":"IF(OR(W149=\"1\",AND(W149<>\"1\",G149=Lists!$A$17)),Y149,0)","v":0},null,{"$f":"IF(AND(W149=\"2\",G149<>Lists!$A$17),AA149,Z149)","v":""},"",{"$f":"Planning!M133","v":{"v":0,"d":"0.00"}},{"$f":"'Month 1'!M149+'Month 1'!N149-'Month 1'!O149","v":{"v":0,"d":"0.00"}},null,"","",{"$f":"SUMIFS($J$25:$J$224,$C$25:$C$224,$C149,$G$25:$G$224,Lists!$A$16)","v":0},0,null,"",null,{"$f":"IF(C149=0,\"\",LEFT(INDEX(Lists!$H$5:$H$49,MATCH(C149,Lists!$G$5:$G$49,0),1),1))","v":""},null,{"$f":"'Month 1'!H149+'Month 1'!I149-'Month 1'!J149","v":0},"","",null,"0"]
[{"$f":"Planning!A134","v":"I126"},{"$f":"Planning!B134","v":0},{"$f":"Planning!C134","v":0},{"$f":"Planning!D134","v":0},{"$f":"Planning!E134","v":0},{"$f":"IF(Planning!G134<>0,Planning!G134,\"\")","v":""},{"$f":"Planning!H134","v":0},{"$f":"Planning!L134","v":0},{"$f":"IF(OR(W150=\"1\",AND(W150<>\"1\",G150=Lists!$A$17)),Y150,0)","v":0},null,{"$f":"IF(AND(W150=\"2\",G150<>Lists!$A$17),AA150,Z150)","v":""},"",{"$f":"Planning!M134","v":{"v":0,"d":"0.00"}},{"$f":"'Month 1'!M150+'Month 1'!N150-'Month 1'!O150","v":{"v":0,"d":"0.00"}},null,"","",{"$f":"SUMIFS($J$25:$J$224,$C$25:$C$224,$C150,$G$25:$G$224,Lists!$A$16)","v":0},0,null,"",null,{"$f":"IF(C150=0,\"\",LEFT(INDEX(Lists!$H$5:$H$49,MATCH(C150,Lists!$G$5:$G$49,0),1),1))","v":""},null,{"$f":"'Month 1'!H150+'Month 1'!I150-'Month 1'!J150","v":0},"","",null,"0"]
[{"$f":"Planning!A135","v":"I127"},{"$f":"Planning!B135","v":0},{"$f":"Planning!C135","v":0},{"$f":"Planning!D135","v":0},{"$f":"Planning!E135","v":0},{"$f":"IF(Planning!G135<>0,Planning!G135,\"\")","v":""},{"$f":"Planning!H135","v":0},{"$f":"Planning!L135","v":0},{"$f":"IF(OR(W151=\"1\",AND(W151<>\"1\",G151=Lists!$A$17)),Y151,0)","v":0},null,{"$f":"IF(AND(W151=\"2\",G151<>Lists!$A$17),AA151,Z151)","v":""},"",{"$f":"Planning!M135","v":{"v":0,"d":"0.00"}},{"$f":"'Month 1'!M151+'Month 1'!N151-'Month 1'!O151","v":{"v":0,"d":"0.00"}},null,"","",{"$f":"SUMIFS($J$25:$J$224,$C$25:$C$224,$C151,$G$25:$G$224,Lists!$A$16)","v":0},0,null,"",null,{"$f":"IF(C151=0,\"\",LEFT(INDEX(Lists!$H$5:$H$49,MATCH(C151,Lists!$G$5:$G$49,0),1),1))","v":""},null,{"$f":"'Month 1'!H151+'Month 1'!I151-'Month 1'!J151","v":0},"","",null,"0"]
[{"$f":"Planning!A136","v":"I128"},{"$f":"Planning!B136","v":0},{"$f":"Planning!C136","v":0},{"$f":"Planning!D136","v":0},{"$f":"Planning!E136","v":0},{"$f":"IF(Planning!G136<>0,Planning!G136,\"\")","v":""},{"$f":"Planning!H136","v":0},{"$f":"Planning!L136","v":0},{"$f":"IF(OR(W152=\"1\",AND(W152<>\"1\",G152=Lists!$A$17)),Y152,0)","v":0},null,{"$f":"IF(AND(W152=\"2\",G152<>Lists!$A$17),AA152,Z152)","v":""},"",{"$f":"Planning!M136","v":{"v":0,"d":"0.00"}},{"$f":"'Month 1'!M152+'Month 1'!N152-'Month 1'!O152","v":{"v":0,"d":"0.00"}},null,"","",{"$f":"SUMIFS($J$25:$J$224,$C$25:$C$224,$C152,$G$25:$G$224,Lists!$A$16)","v":0},0,null,"",null,{"$f":"IF(C152=0,\"\",LEFT(INDEX(Lists!$H$5:$H$49,MATCH(C152,Lists!$G$5:$G$49,0),1),1))","v":""},null,{"$f":"'Month 1'!H152+'Month 1'!I152-'Month 1'!J152","v":0},"","",null,"0"]
[{"$f":"Planning!A137","v":"I129"},{"$f":"Planning!B137","v":0},{"$f":"Planning!C137","v":0},{"$f":"Planning!D137","v":0},{"$f":"Planning!E137","v":0},{"$f":"IF(Planning!G137<>0,Planning!G137,\"\")","v":""},{"$f":"Planning!H137","v":0},{"$f":"Planning!L137","v":0},{"$f":"IF(OR(W153=\"1\",AND(W153<>\"1\",G153=Lists!$A$17)),Y153,0)","v":0},null,{"$f":"IF(AND(W153=\"2\",G153<>Lists!$A$17),AA153,Z153)","v":""},{"$f":"IF($U153=ExcluirDelPLogro,\"\",IF(AND(H153=0,I153=0,J153=0),\"\",K153))","v":""},{"$f":"Planning!M137","v":{"v":0,"d":"0.00"}},{"$f":"'Month 1'!M153+'Month 1'!N153-'Month 1'!O153","v":{"v":0,"d":"0.00"}},null,"",{"$f":"IF($U153=ExcluirDelPLogro,\"\",IF(AND(M153=0,N153=0,O153=0),\"\",P153))","v":""},{"$f":"SUMIFS($J$25:$J$224,$C$25:$C$224,$C153,$G$25:$G$224,Lists!$A$16)","v":0},0,null,"",null,{"$f":"IF(C153=0,\"\",LEFT(INDEX(Lists!$H$5:$H$49,MATCH(C153,Lists!$G$5:$G$49,0),1),1))","v":""},null,{"$f":"'Month 1'!H153+'Month 1'!I153-'Month 1'!J153","v":0},"",{"$f":"IF(AND(H153=0,I153=0,J153=0),\"\",IF(J153>0,H153/J153,0))","v":""},null,"0"]
[{"$f":"Planning!A138","v":"I130"},{"$f":"Planning!B138","v":0},{"$f":"Planning!C138","v":0},{"$f":"Planning!D138","v":0},{"$f":"Planning!E138","v":0},{"$f":"IF(Planning!G138<>0,Planning!G138,\"\")","v":""},{"$f":"Planning!H138","v":0},{"$f":"Planning!L138","v":0},{"$f":"IF(OR(W154=\"1\",AND(W154<>\"1\",G154=Lists!$A$17)),Y154,0)","v":0},null,{"$f":"IF(AND(W154=\"2\",G154<>Lists!$A$17),AA154,Z154)","v":""},"",{"$f":"Planning!M138","v":{"v":0,"d":"0.00"}},{"$f":"'Month 1'!M154+'Month 1'!N154-'Month 1'!O154","v":{"v":0,"d":"0.00"}},null,{"$f":"IF(AND(M154=0,N154=0,O154=0),\"\",IF((M154+N154)>0,O154/(M154+N154),O154))","v":""},"",{"$f":"SUMIFS($J$25:$J$224,$C$25:$C$224,$C154,$G$25:$G$224,Lists!$A$16)","v":0},{"$f":"SUMIFS($O$25:$O$224,$C$25:$C$224,$C154,$G$25:$G$224,\"<>0\")","v":0},null,{"$f":"IF(B154=0,\"\",IF(LEFT(B154,1)=\"1\",\"1\",\"2\"))","v":""},null,{"$f":"IF(C154=0,\"\",LEFT(INDEX(Lists!$H$5:$H$49,MATCH(C154,Lists!$G$5:$G$49,0),1),1))","v":""},null,{"$f":"'Month 1'!H154+'Month 1'!I154-'Month 1'!J154","v":0},{"$f":"IF(AND(H154=0,I154=0,J154=0),\"\",IF((H154+I154)>0,J154/(H154+I154),J154))","v":""},"",null,{"$f":"U154&C154","v":"0"}]
[{"$f":"Planning!A139","v":"I131"},{"$f":"Planning!B139","v":0},{"$f":"Planning!C139","v":0},{"$f":"Planning!D139","v":0},{"$f":"Planning!E139","v":0},{"$f":"IF(Planning!G139<>0,Planning!G139,\"\")","v":""},{"$f":"Planning!H139","v":0},{"$f":"Planning!L139","v":0},{"$f":"IF(OR(W155=\"1\",AND(W155<>\"1\",G155=Lists!$A$17)),Y155,0)","v":0},null,{"$f":"IF(AND(W155=\"2\",G155<>Lists!$A$17),AA155,Z155)","v":""},"",{"$f":"Planning!M139","v":{"v":0,"d":"0.00"}},{"$f":"'Month 1'!M155+'Month 1'!N155-'Month 1'!O155","v":{"v":0,"d":"0.00"}},null,"","",{"$f":"SUMIFS($J$25:$J$224,$C$25:$C$224,$C155,$G$25:$G$224,Lists!$A$16)","v":0},0,null,"",null,{"$f":"IF(C155=0,\"\",LEFT(INDEX(Lists!$H$5:$H$49,MATCH(C155,Lists!$G$5:$G$49,0),1),1))","v":""},null,{"$f":"'Month 1'!H155+'Month 1'!I155-'Month 1'!J155","v":0},"","",null,"0"]
[{"$f":"Planning!A140","v":"I132"},{"$f":"Planning!B140","v":0},{"$f":"Planning!C140","v":0},{"$f":"Planning!D140","v":0},{"$f":"Planning!E140","v":0},{"$f":"IF(Planning!G140<>0,Planning!G140,\"\")","v":""},{"$f":"Planning!H140","v":0},{"$f":"Planning!L140","v":0},{"$f":"IF(OR(W156=\"1\",AND(W156<>\"1\",G156=Lists!$A$17)),Y156,0)","v":0},null,{"$f":"IF(AND(W156=\"2\",G156<>Lists!$A$17),AA156,Z156)","v":""},"",{"$f":"Planning!M140","v":{"v":0,"d":"0.00"}},{"$f":"'Month 1'!M156+'Month 1'!N156-'Month 1'!O156","v":{"v":0,"d":"0.00"}},null,"","",{"$f":"SUMIFS($J$25:$J$224,$C$25:$C$224,$C156,$G$25:$G$224,Lists!$A$16)","v":0},0,null,"",null,{"$f":"IF(C156=0,\"\",LEFT(INDEX(Lists!$H$5:$H$49,MATCH(C156,Lists!$G$5:$G$49,0),1),1))","v":""},null,{"$f":"'Month 1'!H156+'Month 1'!I156-'Month 1'!J156","v":0},"","",null,"0"]
[{"$f":"Planning!A141","v":"I133"},{"$f":"Planning!B141","v":0},{"$f":"Planning!C141","v":0},{"$f":"Planning!D141","v":0},{"$f":"Planning!E141","v":0},{"$f":"IF(Planning!G141<>0,Planning!G141,\"\")","v":""},{"$f":"Planning!H141","v":0},{"$f":"Planning!L141","v":0},{"$f":"IF(OR(W157=\"1\",AND(W157<>\"1\",G157=Lists!$A$17)),Y157,0)","v":0},null,{"$f":"IF(AND(W157=\"2\",G157<>Lists!$A$17),AA157,Z157)","v":""},"",{"$f":"Planning!M141","v":{"v":0,"d":"0.00"}},{"$f":"'Month 1'!M157+'Month 1'!N157-'Month 1'!O157","v":{"v":0,"d":"0.00"}},null,"","",{"$f":"SUMIFS($J$25:$J$224,$C$25:$C$224,$C157,$G$25:$G$224,Lists!$A$16)","v":0},0,null,"",null,{"$f":"IF(C157=0,\"\",LEFT(INDEX(Lists!$H$5:$H$49,MATCH(C157,Lists!$G$5:$G$49,0),1),1))","v":""},null,{"$f":"'Month 1'!H157+'Month 1'!I157-'Month 1'!J157","v":0},"","",null,"0"]
[{"$f":"Planning!A142","v":"I134"},{"$f":"Planning!B142","v":0},{"$f":"Planning!C142","v":0},{"$f":"Planning!D142","v":0},{"$f":"Planning!E142","v":0},{"$f":"IF(Planning!G142<>0,Planning!G142,\"\")","v":""},{"$f":"Planning!H142","v":0},{"$f":"Planning!L142","v":0},{"$f":"IF(OR(W158=\"1\",AND(W158<>\"1\",G158=Lists!$A$17)),Y158,0)","v":0},null,{"$f":"IF(AND(W158=\"2\",G158<>Lists!$A$17),AA158,Z158)","v":""},"",{"$f":"Planning!M142","v":{"v":0,"d":"0.00"}},{"$f":"'Month 1'!M158+'Month 1'!N158-'Month 1'!O158","v":{"v":0,"d":"0.00"}},null,"","",{"$f":"SUMIFS($J$25:$J$224,$C$25:$C$224,$C158,$G$25:$G$224,Lists!$A$16)","v":0},0,null,"",null,{"$f":"IF(C158=0,\"\",LEFT(INDEX(Lists!$H$5:$H$49,MATCH(C158,Lists!$G$5:$G$49,0),1),1))","v":""},null,{"$f":"'Month 1'!H158+'Month 1'!I158-'Month 1'!J158","v":0},"","",null,"0"]
[{"$f":"Planning!A143","v":"I135"},{"$f":"Planning!B143","v":0},{"$f":"Planning!C143","v":0},{"$f":"Planning!D143","v":0},{"$f":"Planning!E143","v":0},{"$f":"IF(Planning!G143<>0,Planning!G143,\"\")","v":""},{"$f":"Planning!H143","v":0},{"$f":"Planning!L143","v":0},{"$f":"IF(OR(W159=\"1\",AND(W159<>\"1\",G159=Lists!$A$17)),Y159,0)","v":0},null,{"$f":"IF(AND(W159=\"2\",G159<>Lists!$A$17),AA159,Z159)","v":""},"",{"$f":"Planning!M143","v":{"v":0,"d":"0.00"}},{"$f":"'Month 1'!M159+'Month 1'!N159-'Month 1'!O159","v":{"v":0,"d":"0.00"}},null,"","",{"$f":"SUMIFS($J$25:$J$224,$C$25:$C$224,$C159,$G$25:$G$224,Lists!$A$16)","v":0},0,null,"",null,{"$f":"IF(C159=0,\"\",LEFT(INDEX(Lists!$H$5:$H$49,MATCH(C159,Lists!$G$5:$G$49,0),1),1))","v":""},null,{"$f":"'Month 1'!H159+'Month 1'!I159-'Month 1'!J159","v":0},"","",null,"0"]
[{"$f":"Planning!A144","v":"I136"},{"$f":"Planning!B144","v":0},{"$f":"Planning!C144","v":0},{"$f":"Planning!D144","v":0},{"$f":"Planning!E144","v":0},{"$f":"IF(Planning!G144<>0,Planning!G144,\"\")","v":""},{"$f":"Planning!H144","v":0},{"$f":"Planning!L144","v":0},{"$f":"IF(OR(W160=\"1\",AND(W160<>\"1\",G160=Lists!$A$17)),Y160,0)","v":0},null,{"$f":"IF(AND(W160=\"2\",G160<>Lists!$A$17),AA160,Z160)","v":""},"",{"$f":"Planning!M144","v":{"v":0,"d":"0.00"}},{"$f":"'Month 1'!M160+'Month 1'!N160-'Month 1'!O160","v":{"v":0,"d":"0.00"}},null,"","",{"$f":"SUMIFS($J$25:$J$224,$C$25:$C$224,$C160,$G$25:$G$224,Lists!$A$16)","v":0},0,null,"",null,{"$f":"IF(C160=0,\"\",LEFT(INDEX(Lists!$H$5:$H$49,MATCH(C160,Lists!$G$5:$G$49,0),1),1))","v":""},null,{"$f":"'Month 1'!H160+'Month 1'!I160-'Month 1'!J160","v":0},"","",null,"0"]
[{"$f":"Planning!A145","v":"I137"},{"$f":"Planning!B145","v":0},{"$f":"Planning!C145","v":0},{"$f":"Planning!D145","v":0},{"$f":"Planning!E145","v":0},{"$f":"IF(Planning!G145<>0,Planning!G145,\"\")","v":""},{"$f":"Planning!H145","v":0},{"$f":"Planning!L145","v":0},{"$f":"IF(OR(W161=\"1\",AND(W161<>\"1\",G161=Lists!$A$17)),Y161,0)","v":0},null,{"$f":"IF(AND(W161=\"2\",G161<>Lists!$A$17),AA161,Z161)","v":""},"",{"$f":"Planning!M145","v":{"v":0,"d":"0.00"}},{"$f":"'Month 1'!M161+'Month 1'!N161-'Month 1'!O161","v":{"v":0,"d":"0.00"}},null,"","",{"$f":"SUMIFS($J$25:$J$224,$C$25:$C$224,$C161,$G$25:$G$224,Lists!$A$16)","v":0},0,null,"",null,{"$f":"IF(C161=0,\"\",LEFT(INDEX(Lists!$H$5:$H$49,MATCH(C161,Lists!$G$5:$G$49,0),1),1))","v":""},null,{"$f":"'Month 1'!H161+'Month 1'!I161-'Month 1'!J161","v":0},"","",null,"0"]
[{"$f":"Planning!A146","v":"I138"},{"$f":"Planning!B146","v":0},{"$f":"Planning!C146","v":0},{"$f":"Planning!D146","v":0},{"$f":"Planning!E146","v":0},{"$f":"IF(Planning!G146<>0,Planning!G146,\"\")","v":""},{"$f":"Planning!H146","v":0},{"$f":"Planning!L146","v":0},{"$f":"IF(OR(W162=\"1\",AND(W162<>\"1\",G162=Lists!$A$17)),Y162,0)","v":0},null,{"$f":"IF(AND(W162=\"2\",G162<>Lists!$A$17),AA162,Z162)","v":""},"",{"$f":"Planning!M146","v":{"v":0,"d":"0.00"}},{"$f":"'Month 1'!M162+'Month 1'!N162-'Month 1'!O162","v":{"v":0,"d":"0.00"}},null,"","",{"$f":"SUMIFS($J$25:$J$224,$C$25:$C$224,$C162,$G$25:$G$224,Lists!$A$16)","v":0},0,null,"",null,{"$f":"IF(C162=0,\"\",LEFT(INDEX(Lists!$H$5:$H$49,MATCH(C162,Lists!$G$5:$G$49,0),1),1))","v":""},null,{"$f":"'Month 1'!H162+'Month 1'!I162-'Month 1'!J162","v":0},"","",null,"0"]
[{"$f":"Planning!A147","v":"I139"},{"$f":"Planning!B147","v":0},{"$f":"Planning!C147","v":0},{"$f":"Planning!D147","v":0},{"$f":"Planning!E147","v":0},{"$f":"IF(Planning!G147<>0,Planning!G147,\"\")","v":""},{"$f":"Planning!H147","v":0},{"$f":"Planning!L147","v":0},{"$f":"IF(OR(W163=\"1\",AND(W163<>\"1\",G163=Lists!$A$17)),Y163,0)","v":0},null,{"$f":"IF(AND(W163=\"2\",G163<>Lists!$A$17),AA163,Z163)","v":""},"",{"$f":"Planning!M147","v":{"v":0,"d":"0.00"}},{"$f":"'Month 1'!M163+'Month 1'!N163-'Month 1'!O163","v":{"v":0,"d":"0.00"}},null,"","",{"$f":"SUMIFS($J$25:$J$224,$C$25:$C$224,$C163,$G$25:$G$224,Lists!$A$16)","v":0},0,null,"",null,{"$f":"IF(C163=0,\"\",LEFT(INDEX(Lists!$H$5:$H$49,MATCH(C163,Lists!$G$5:$G$49,0),1),1))","v":""},null,{"$f":"'Month 1'!H163+'Month 1'!I163-'Month 1'!J163","v":0},"","",null,"0"]
[{"$f":"Planning!A148","v":"I140"},{"$f":"Planning!B148","v":0},{"$f":"Planning!C148","v":0},{"$f":"Planning!D148","v":0},{"$f":"Planning!E148","v":0},{"$f":"IF(Planning!G148<>0,Planning!G148,\"\")","v":""},{"$f":"Planning!H148","v":0},{"$f":"Planning!L148","v":0},{"$f":"IF(OR(W164=\"1\",AND(W164<>\"1\",G164=Lists!$A$17)),Y164,0)","v":0},null,{"$f":"IF(AND(W164=\"2\",G164<>Lists!$A$17),AA164,Z164)","v":""},"",{"$f":"Planning!M148","v":{"v":0,"d":"0.00"}},{"$f":"'Month 1'!M164+'Month 1'!N164-'Month 1'!O164","v":{"v":0,"d":"0.00"}},null,"","",{"$f":"SUMIFS($J$25:$J$224,$C$25:$C$224,$C164,$G$25:$G$224,Lists!$A$16)","v":0},0,null,"",null,{"$f":"IF(C164=0,\"\",LEFT(INDEX(Lists!$H$5:$H$49,MATCH(C164,Lists!$G$5:$G$49,0),1),1))","v":""},null,{"$f":"'Month 1'!H164+'Month 1'!I164-'Month 1'!J164","v":0},"","",null,"0"]
[{"$f":"Planning!A149","v":"I141"},{"$f":"Planning!B149","v":0},{"$f":"Planning!C149","v":0},{"$f":"Planning!D149","v":0},{"$f":"Planning!E149","v":0},{"$f":"IF(Planning!G149<>0,Planning!G149,\"\")","v":""},{"$f":"Planning!H149","v":0},{"$f":"Planning!L149","v":0},{"$f":"IF(OR(W165=\"1\",AND(W165<>\"1\",G165=Lists!$A$17)),Y165,0)","v":0},null,{"$f":"IF(AND(W165=\"2\",G165<>Lists!$A$17),AA165,Z165)","v":""},"",{"$f":"Planning!M149","v":{"v":0,"d":"0.00"}},{"$f":"'Month 1'!M165+'Month 1'!N165-'Month 1'!O165","v":{"v":0,"d":"0.00"}},null,"","",{"$f":"SUMIFS($J$25:$J$224,$C$25:$C$224,$C165,$G$25:$G$224,Lists!$A$16)","v":0},0,null,"",null,{"$f":"IF(C165=0,\"\",LEFT(INDEX(Lists!$H$5:$H$49,MATCH(C165,Lists!$G$5:$G$49,0),1),1))","v":""},null,{"$f":"'Month 1'!H165+'Month 1'!I165-'Month 1'!J165","v":0},"","",null,"0"]
[{"$f":"Planning!A150","v":"I142"},{"$f":"Planning!B150","v":0},{"$f":"Planning!C150","v":0},{"$f":"Planning!D150","v":0},{"$f":"Planning!E150","v":0},{"$f":"IF(Planning!G150<>0,Planning!G150,\"\")","v":""},{"$f":"Planning!H150","v":0},{"$f":"Planning!L150","v":0},{"$f":"IF(OR(W166=\"1\",AND(W166<>\"1\",G166=Lists!$A$17)),Y166,0)","v":0},null,{"$f":"IF(AND(W166=\"2\",G166<>Lists!$A$17),AA166,Z166)","v":""},"",{"$f":"Planning!M150","v":{"v":0,"d":"0.00"}},{"$f":"'Month 1'!M166+'Month 1'!N166-'Month 1'!O166","v":{"v":0,"d":"0.00"}},null,"","",{"$f":"SUMIFS($J$25:$J$224,$C$25:$C$224,$C166,$G$25:$G$224,Lists!$A$16)","v":0},0,null,"",null,{"$f":"IF(C166=0,\"\",LEFT(INDEX(Lists!$H$5:$H$49,MATCH(C166,Lists!$G$5:$G$49,0),1),1))","v":""},null,{"$f":"'Month 1'!H166+'Month 1'!I166-'Month 1'!J166","v":0},"","",null,"0"]
[{"$f":"Planning!A151","v":"I143"},{"$f":"Planning!B151","v":0},{"$f":"Planning!C151","v":0},{"$f":"Planning!D151","v":0},{"$f":"Planning!E151","v":0},{"$f":"IF(Planning!G151<>0,Planning!G151,\"\")","v":""},{"$f":"Planning!H151","v":0},{"$f":"Planning!L151","v":0},{"$f":"IF(OR(W167=\"1\",AND(W167<>\"1\",G167=Lists!$A$17)),Y167,0)","v":0},null,{"$f":"IF(AND(W167=\"2\",G167<>Lists!$A$17),AA167,Z167)","v":""},"",{"$f":"Planning!M151","v":{"v":0,"d":"0.00"}},{"$f":"'Month 1'!M167+'Month 1'!N167-'Month 1'!O167","v":{"v":0,"d":"0.00"}},null,"","",{"$f":"SUMIFS($J$25:$J$224,$C$25:$C$224,$C167,$G$25:$G$224,Lists!$A$16)","v":0},0,null,"",null,{"$f":"IF(C167=0,\"\",LEFT(INDEX(Lists!$H$5:$H$49,MATCH(C167,Lists!$G$5:$G$49,0),1),1))","v":""},null,{"$f":"'Month 1'!H167+'Month 1'!I167-'Month 1'!J167","v":0},"","",null,"0"]
[{"$f":"Planning!A152","v":"I144"},{"$f":"Planning!B152","v":0},{"$f":"Planning!C152","v":0},{"$f":"Planning!D152","v":0},{"$f":"Planning!E152","v":0},{"$f":"IF(Planning!G152<>0,Planning!G152,\"\")","v":""},{"$f":"Planning!H152","v":0},{"$f":"Planning!L152","v":0},{"$f":"IF(OR(W168=\"1\",AND(W168<>\"1\",G168=Lists!$A$17)),Y168,0)","v":0},null,{"$f":"IF(AND(W168=\"2\",G168<>Lists!$A$17),AA168,Z168)","v":""},"",{"$f":"Planning!M152","v":{"v":0,"d":"0.00"}},{"$f":"'Month 1'!M168+'Month 1'!N168-'Month 1'!O168","v":{"v":0,"d":"0.00"}},null,"","",{"$f":"SUMIFS($J$25:$J$224,$C$25:$C$224,$C168,$G$25:$G$224,Lists!$A$16)","v":0},0,null,"",null,{"$f":"IF(C168=0,\"\",LEFT(INDEX(Lists!$H$5:$H$49,MATCH(C168,Lists!$G$5:$G$49,0),1),1))","v":""},null,{"$f":"'Month 1'!H168+'Month 1'!I168-'Month 1'!J168","v":0},"","",null,"0"]
[{"$f":"Planning!A153","v":"I145"},{"$f":"Planning!B153","v":0},{"$f":"Planning!C153","v":0},{"$f":"Planning!D153","v":0},{"$f":"Planning!E153","v":0},{"$f":"IF(Planning!G153<>0,Planning!G153,\"\")","v":""},{"$f":"Planning!H153","v":0},{"$f":"Planning!L153","v":0},{"$f":"IF(OR(W169=\"1\",AND(W169<>\"1\",G169=Lists!$A$17)),Y169,0)","v":0},null,{"$f":"IF(AND(W169=\"2\",G169<>Lists!$A$17),AA169,Z169)","v":""},"",{"$f":"Planning!M153","v":{"v":0,"d":"0.00"}},{"$f":"'Month 1'!M169+'Month 1'!N169-'Month 1'!O169","v":{"v":0,"d":"0.00"}},null,"","",{"$f":"SUMIFS($J$25:$J$224,$C$25:$C$224,$C169,$G$25:$G$224,Lists!$A$16)","v":0},0,null,"",null,{"$f":"IF(C169=0,\"\",LEFT(INDEX(Lists!$H$5:$H$49,MATCH(C169,Lists!$G$5:$G$49,0),1),1))","v":""},null,{"$f":"'Month 1'!H169+'Month 1'!I169-'Month 1'!J169","v":0},"","",null,"0"]
[{"$f":"Planning!A154","v":"I146"},{"$f":"Planning!B154","v":0},{"$f":"Planning!C154","v":0},{"$f":"Planning!D154","v":0},{"$f":"Planning!E154","v":0},{"$f":"IF(Planning!G154<>0,Planning!G154,\"\")","v":""},{"$f":"Planning!H154","v":0},{"$f":"Planning!L154","v":0},{"$f":"IF(OR(W170=\"1\",AND(W170<>\"1\",G170=Lists!$A$17)),Y170,0)","v":0},null,{"$f":"IF(AND(W170=\"2\",G170<>Lists!$A$17),AA170,Z170)","v":""},"",{"$f":"Planning!M154","v":{"v":0,"d":"0.00"}},{"$f":"'Month 1'!M170+'Month 1'!N170-'Month 1'!O170","v":{"v":0,"d":"0.00"}},null,"","",{"$f":"SUMIFS($J$25:$J$224,$C$25:$C$224,$C170,$G$25:$G$224,Lists!$A$16)","v":0},0,null,"",null,{"$f":"IF(C170=0,\"\",LEFT(INDEX(Lists!$H$5:$H$49,MATCH(C170,Lists!$G$5:$G$49,0),1),1))","v":""},null,{"$f":"'Month 1'!H170+'Month 1'!I170-'Month 1'!J170","v":0},"","",null,"0"]
[{"$f":"Planning!A155","v":"I147"},{"$f":"Planning!B155","v":0},{"$f":"Planning!C155","v":0},{"$f":"Planning!D155","v":0},{"$f":"Planning!E155","v":0},{"$f":"IF(Planning!G155<>0,Planning!G155,\"\")","v":""},{"$f":"Planning!H155","v":0},{"$f":"Planning!L155","v":0},{"$f":"IF(OR(W171=\"1\",AND(W171<>\"1\",G171=Lists!$A$17)),Y171,0)","v":0},null,{"$f":"IF(AND(W171=\"2\",G171<>Lists!$A$17),AA171,Z171)","v":""},"",{"$f":"Planning!M155","v":{"v":0,"d":"0.00"}},{"$f":"'Month 1'!M171+'Month 1'!N171-'Month 1'!O171","v":{"v":0,"d":"0.00"}},null,"","",{"$f":"SUMIFS($J$25:$J$224,$C$25:$C$224,$C171,$G$25:$G$224,Lists!$A$16)","v":0},0,null,"",null,{"$f":"IF(C171=0,\"\",LEFT(INDEX(Lists!$H$5:$H$49,MATCH(C171,Lists!$G$5:$G$49,0),1),1))","v":""},null,{"$f":"'Month 1'!H171+'Month 1'!I171-'Month 1'!J171","v":0},"","",null,"0"]
[{"$f":"Planning!A156","v":"I148"},{"$f":"Planning!B156","v":0},{"$f":"Planning!C156","v":0},{"$f":"Planning!D156","v":0},{"$f":"Planning!E156","v":0},{"$f":"IF(Planning!G156<>0,Planning!G156,\"\")","v":""},{"$f":"Planning!H156","v":0},{"$f":"Planning!L156","v":0},{"$f":"IF(OR(W172=\"1\",AND(W172<>\"1\",G172=Lists!$A$17)),Y172,0)","v":0},null,{"$f":"IF(AND(W172=\"2\",G172<>Lists!$A$17),AA172,Z172)","v":""},"",{"$f":"Planning!M156","v":{"v":0,"d":"0.00"}},{"$f":"'Month 1'!M172+'Month 1'!N172-'Month 1'!O172","v":{"v":0,"d":"0.00"}},null,"","",{"$f":"SUMIFS($J$25:$J$224,$C$25:$C$224,$C172,$G$25:$G$224,Lists!$A$16)","v":0},0,null,"",null,{"$f":"IF(C172=0,\"\",LEFT(INDEX(Lists!$H$5:$H$49,MATCH(C172,Lists!$G$5:$G$49,0),1),1))","v":""},null,{"$f":"'Month 1'!H172+'Month 1'!I172-'Month 1'!J172","v":0},"","",null,"0"]
[{"$f":"Planning!A157","v":"I149"},{"$f":"Planning!B157","v":0},{"$f":"Planning!C157","v":0},{"$f":"Planning!D157","v":0},{"$f":"Planning!E157","v":0},{"$f":"IF(Planning!G157<>0,Planning!G157,\"\")","v":""},{"$f":"Planning!H157","v":0},{"$f":"Planning!L157","v":0},{"$f":"IF(OR(W173=\"1\",AND(W173<>\"1\",G173=Lists!$A$17)),Y173,0)","v":0},null,{"$f":"IF(AND(W173=\"2\",G173<>Lists!$A$17),AA173,Z173)","v":""},"",{"$f":"Planning!M157","v":{"v":0,"d":"0.00"}},{"$f":"'Month 1'!M173+'Month 1'!N173-'Month 1'!O173","v":{"v":0,"d":"0.00"}},null,"","",{"$f":"SUMIFS($J$25:$J$224,$C$25:$C$224,$C173,$G$25:$G$224,Lists!$A$16)","v":0},0,null,"",null,{"$f":"IF(C173=0,\"\",LEFT(INDEX(Lists!$H$5:$H$49,MATCH(C173,Lists!$G$5:$G$49,0),1),1))","v":""},null,{"$f":"'Month 1'!H173+'Month 1'!I173-'Month 1'!J173","v":0},"","",null,"0"]
[{"$f":"Planning!A158","v":"I150"},{"$f":"Planning!B158","v":0},{"$f":"Planning!C158","v":0},{"$f":"Planning!D158","v":0},{"$f":"Planning!E158","v":0},{"$f":"IF(Planning!G158<>0,Planning!G158,\"\")","v":""},{"$f":"Planning!H158","v":0},{"$f":"Planning!L158","v":0},{"$f":"IF(OR(W174=\"1\",AND(W174<>\"1\",G174=Lists!$A$17)),Y174,0)","v":0},null,{"$f":"IF(AND(W174=\"2\",G174<>Lists!$A$17),AA174,Z174)","v":""},"",{"$f":"Planning!M158","v":{"v":0,"d":"0.00"}},{"$f":"'Month 1'!M174+'Month 1'!N174-'Month 1'!O174","v":{"v":0,"d":"0.00"}},null,"","",{"$f":"SUMIFS($J$25:$J$224,$C$25:$C$224,$C174,$G$25:$G$224,Lists!$A$16)","v":0},0,null,"",null,{"$f":"IF(C174=0,\"\",LEFT(INDEX(Lists!$H$5:$H$49,MATCH(C174,Lists!$G$5:$G$49,0),1),1))","v":""},null,{"$f":"'Month 1'!H174+'Month 1'!I174-'Month 1'!J174","v":0},"","",null,"0"]
[{"$f":"Planning!A159","v":"I151"},{"$f":"Planning!B159","v":0},{"$f":"Planning!C159","v":0},{"$f":"Planning!D159","v":0},{"$f":"Planning!E159","v":0},{"$f":"IF(Planning!G159<>0,Planning!G159,\"\")","v":""},{"$f":"Planning!H159","v":0},{"$f":"Planning!L159","v":0},{"$f":"IF(OR(W175=\"1\",AND(W175<>\"1\",G175=Lists!$A$17)),Y175,0)","v":0},null,{"$f":"IF(AND(W175=\"2\",G175<>Lists!$A$17),AA175,Z175)","v":""},"",{"$f":"Planning!M159","v":{"v":0,"d":"0.00"}},{"$f":"'Month 1'!M175+'Month 1'!N175-'Month 1'!O175","v":{"v":0,"d":"0.00"}},null,"","",{"$f":"SUMIFS($J$25:$J$224,$C$25:$C$224,$C175,$G$25:$G$224,Lists!$A$16)","v":0},0,null,"",null,{"$f":"IF(C175=0,\"\",LEFT(INDEX(Lists!$H$5:$H$49,MATCH(C175,Lists!$G$5:$G$49,0),1),1))","v":""},null,{"$f":"'Month 1'!H175+'Month 1'!I175-'Month 1'!J175","v":0},"","",null,"0"]
[{"$f":"Planning!A160","v":"I152"},{"$f":"Planning!B160","v":0},{"$f":"Planning!C160","v":0},{"$f":"Planning!D160","v":0},{"$f":"Planning!E160","v":0},{"$f":"IF(Planning!G160<>0,Planning!G160,\"\")","v":""},{"$f":"Planning!H160","v":0},{"$f":"Planning!L160","v":0},{"$f":"IF(OR(W176=\"1\",AND(W176<>\"1\",G176=Lists!$A$17)),Y176,0)","v":0},null,{"$f":"IF(AND(W176=\"2\",G176<>Lists!$A$17),AA176,Z176)","v":""},"",{"$f":"Planning!M160","v":{"v":0,"d":"0.00"}},{"$f":"'Month 1'!M176+'Month 1'!N176-'Month 1'!O176","v":{"v":0,"d":"0.00"}},null,"","",{"$f":"SUMIFS($J$25:$J$224,$C$25:$C$224,$C176,$G$25:$G$224,Lists!$A$16)","v":0},0,null,"",null,{"$f":"IF(C176=0,\"\",LEFT(INDEX(Lists!$H$5:$H$49,MATCH(C176,Lists!$G$5:$G$49,0),1),1))","v":""},null,{"$f":"'Month 1'!H176+'Month 1'!I176-'Month 1'!J176","v":0},"","",null,"0"]
[{"$f":"Planning!A161","v":"I153"},{"$f":"Planning!B161","v":0},{"$f":"Planning!C161","v":0},{"$f":"Planning!D161","v":0},{"$f":"Planning!E161","v":0},{"$f":"IF(Planning!G161<>0,Planning!G161,\"\")","v":""},{"$f":"Planning!H161","v":0},{"$f":"Planning!L161","v":0},{"$f":"IF(OR(W177=\"1\",AND(W177<>\"1\",G177=Lists!$A$17)),Y177,0)","v":0},null,{"$f":"IF(AND(W177=\"2\",G177<>Lists!$A$17),AA177,Z177)","v":""},"",{"$f":"Planning!M161","v":{"v":0,"d":"0.00"}},{"$f":"'Month 1'!M177+'Month 1'!N177-'Month 1'!O177","v":{"v":0,"d":"0.00"}},null,"","",{"$f":"SUMIFS($J$25:$J$224,$C$25:$C$224,$C177,$G$25:$G$224,Lists!$A$16)","v":0},0,null,"",null,{"$f":"IF(C177=0,\"\",LEFT(INDEX(Lists!$H$5:$H$49,MATCH(C177,Lists!$G$5:$G$49,0),1),1))","v":""},null,{"$f":"'Month 1'!H177+'Month 1'!I177-'Month 1'!J177","v":0},"","",null,"0"]
[{"$f":"Planning!A162","v":"I154"},{"$f":"Planning!B162","v":0},{"$f":"Planning!C162","v":0},{"$f":"Planning!D162","v":0},{"$f":"Planning!E162","v":0},{"$f":"IF(Planning!G162<>0,Planning!G162,\"\")","v":""},{"$f":"Planning!H162","v":0},{"$f":"Planning!L162","v":0},{"$f":"IF(OR(W178=\"1\",AND(W178<>\"1\",G178=Lists!$A$17)),Y178,0)","v":0},null,{"$f":"IF(AND(W178=\"2\",G178<>Lists!$A$17),AA178,Z178)","v":""},"",{"$f":"Planning!M162","v":{"v":0,"d":"0.00"}},{"$f":"'Month 1'!M178+'Month 1'!N178-'Month 1'!O178","v":{"v":0,"d":"0.00"}},null,"","",{"$f":"SUMIFS($J$25:$J$224,$C$25:$C$224,$C178,$G$25:$G$224,Lists!$A$16)","v":0},0,null,"",null,{"$f":"IF(C178=0,\"\",LEFT(INDEX(Lists!$H$5:$H$49,MATCH(C178,Lists!$G$5:$G$49,0),1),1))","v":""},null,{"$f":"'Month 1'!H178+'Month 1'!I178-'Month 1'!J178","v":0},"","",null,"0"]
[{"$f":"Planning!A163","v":"I155"},{"$f":"Planning!B163","v":0},{"$f":"Planning!C163","v":0},{"$f":"Planning!D163","v":0},{"$f":"Planning!E163","v":0},{"$f":"IF(Planning!G163<>0,Planning!G163,\"\")","v":""},{"$f":"Planning!H163","v":0},{"$f":"Planning!L163","v":0},{"$f":"IF(OR(W179=\"1\",AND(W179<>\"1\",G179=Lists!$A$17)),Y179,0)","v":0},null,{"$f":"IF(AND(W179=\"2\",G179<>Lists!$A$17),AA179,Z179)","v":""},"",{"$f":"Planning!M163","v":{"v":0,"d":"0.00"}},{"$f":"'Month 1'!M179+'Month 1'!N179-'Month 1'!O179","v":{"v":0,"d":"0.00"}},null,"","",{"$f":"SUMIFS($J$25:$J$224,$C$25:$C$224,$C179,$G$25:$G$224,Lists!$A$16)","v":0},0,null,"",null,{"$f":"IF(C179=0,\"\",LEFT(INDEX(Lists!$H$5:$H$49,MATCH(C179,Lists!$G$5:$G$49,0),1),1))","v":""},null,{"$f":"'Month 1'!H179+'Month 1'!I179-'Month 1'!J179","v":0},"","",null,"0"]
[{"$f":"Planning!A164","v":"I156"},{"$f":"Planning!B164","v":0},{"$f":"Planning!C164","v":0},{"$f":"Planning!D164","v":0},{"$f":"Planning!E164","v":0},{"$f":"IF(Planning!G164<>0,Planning!G164,\"\")","v":""},{"$f":"Planning!H164","v":0},{"$f":"Planning!L164","v":0},{"$f":"IF(OR(W180=\"1\",AND(W180<>\"1\",G180=Lists!$A$17)),Y180,0)","v":0},null,{"$f":"IF(AND(W180=\"2\",G180<>Lists!$A$17),AA180,Z180)","v":""},"",{"$f":"Planning!M164","v":{"v":0,"d":"0.00"}},{"$f":"'Month 1'!M180+'Month 1'!N180-'Month 1'!O180","v":{"v":0,"d":"0.00"}},null,"","",{"$f":"SUMIFS($J$25:$J$224,$C$25:$C$224,$C180,$G$25:$G$224,Lists!$A$16)","v":0},0,null,"",null,{"$f":"IF(C180=0,\"\",LEFT(INDEX(Lists!$H$5:$H$49,MATCH(C180,Lists!$G$5:$G$49,0),1),1))","v":""},null,{"$f":"'Month 1'!H180+'Month 1'!I180-'Month 1'!J180","v":0},"","",null,"0"]
[{"$f":"Planning!A165","v":"I157"},{"$f":"Planning!B165","v":0},{"$f":"Planning!C165","v":0},{"$f":"Planning!D165","v":0},{"$f":"Planning!E165","v":0},{"$f":"IF(Planning!G165<>0,Planning!G165,\"\")","v":""},{"$f":"Planning!H165","v":0},{"$f":"Planning!L165","v":0},{"$f":"IF(OR(W181=\"1\",AND(W181<>\"1\",G181=Lists!$A$17)),Y181,0)","v":0},null,{"$f":"IF(AND(W181=\"2\",G181<>Lists!$A$17),AA181,Z181)","v":""},"",{"$f":"Planning!M165","v":{"v":0,"d":"0.00"}},{"$f":"'Month 1'!M181+'Month 1'!N181-'Month 1'!O181","v":{"v":0,"d":"0.00"}},null,"","",{"$f":"SUMIFS($J$25:$J$224,$C$25:$C$224,$C181,$G$25:$G$224,Lists!$A$16)","v":0},0,null,"",null,{"$f":"IF(C181=0,\"\",LEFT(INDEX(Lists!$H$5:$H$49,MATCH(C181,Lists!$G$5:$G$49,0),1),1))","v":""},null,{"$f":"'Month 1'!H181+'Month 1'!I181-'Month 1'!J181","v":0},"","",null,"0"]
[{"$f":"Planning!A166","v":"I158"},{"$f":"Planning!B166","v":0},{"$f":"Planning!C166","v":0},{"$f":"Planning!D166","v":0},{"$f":"Planning!E166","v":0},{"$f":"IF(Planning!G166<>0,Planning!G166,\"\")","v":""},{"$f":"Planning!H166","v":0},{"$f":"Planning!L166","v":0},{"$f":"IF(OR(W182=\"1\",AND(W182<>\"1\",G182=Lists!$A$17)),Y182,0)","v":0},null,{"$f":"IF(AND(W182=\"2\",G182<>Lists!$A$17),AA182,Z182)","v":""},"",{"$f":"Planning!M166","v":{"v":0,"d":"0.00"}},{"$f":"'Month 1'!M182+'Month 1'!N182-'Month 1'!O182","v":{"v":0,"d":"0.00"}},null,"","",{"$f":"SUMIFS($J$25:$J$224,$C$25:$C$224,$C182,$G$25:$G$224,Lists!$A$16)","v":0},0,null,"",null,{"$f":"IF(C182=0,\"\",LEFT(INDEX(Lists!$H$5:$H$49,MATCH(C182,Lists!$G$5:$G$49,0),1),1))","v":""},null,{"$f":"'Month 1'!H182+'Month 1'!I182-'Month 1'!J182","v":0},"","",null,"0"]
[{"$f":"Planning!A167","v":"I159"},{"$f":"Planning!B167","v":0},{"$f":"Planning!C167","v":0},{"$f":"Planning!D167","v":0},{"$f":"Planning!E167","v":0},{"$f":"IF(Planning!G167<>0,Planning!G167,\"\")","v":""},{"$f":"Planning!H167","v":0},{"$f":"Planning!L167","v":0},{"$f":"IF(OR(W183=\"1\",AND(W183<>\"1\",G183=Lists!$A$17)),Y183,0)","v":0},null,{"$f":"IF(AND(W183=\"2\",G183<>Lists!$A$17),AA183,Z183)","v":""},"",{"$f":"Planning!M167","v":{"v":0,"d":"0.00"}},{"$f":"'Month 1'!M183+'Month 1'!N183-'Month 1'!O183","v":{"v":0,"d":"0.00"}},null,"","",{"$f":"SUMIFS($J$25:$J$224,$C$25:$C$224,$C183,$G$25:$G$224,Lists!$A$16)","v":0},0,null,"",null,{"$f":"IF(C183=0,\"\",LEFT(INDEX(Lists!$H$5:$H$49,MATCH(C183,Lists!$G$5:$G$49,0),1),1))","v":""},null,{"$f":"'Month 1'!H183+'Month 1'!I183-'Month 1'!J183","v":0},"","",null,"0"]
[{"$f":"Planning!A168","v":"I160"},{"$f":"Planning!B168","v":0},{"$f":"Planning!C168","v":0},{"$f":"Planning!D168","v":0},{"$f":"Planning!E168","v":0},{"$f":"IF(Planning!G168<>0,Planning!G168,\"\")","v":""},{"$f":"Planning!H168","v":0},{"$f":"Planning!L168","v":0},{"$f":"IF(OR(W184=\"1\",AND(W184<>\"1\",G184=Lists!$A$17)),Y184,0)","v":0},null,{"$f":"IF(AND(W184=\"2\",G184<>Lists!$A$17),AA184,Z184)","v":""},"",{"$f":"Planning!M168","v":{"v":0,"d":"0.00"}},{"$f":"'Month 1'!M184+'Month 1'!N184-'Month 1'!O184","v":{"v":0,"d":"0.00"}},null,"","",{"$f":"SUMIFS($J$25:$J$224,$C$25:$C$224,$C184,$G$25:$G$224,Lists!$A$16)","v":0},0,null,"",null,{"$f":"IF(C184=0,\"\",LEFT(INDEX(Lists!$H$5:$H$49,MATCH(C184,Lists!$G$5:$G$49,0),1),1))","v":""},null,{"$f":"'Month 1'!H184+'Month 1'!I184-'Month 1'!J184","v":0},"","",null,"0"]
[{"$f":"Planning!A169","v":"I161"},{"$f":"Planning!B169","v":0},{"$f":"Planning!C169","v":0},{"$f":"Planning!D169","v":0},{"$f":"Planning!E169","v":0},{"$f":"IF(Planning!G169<>0,Planning!G169,\"\")","v":""},{"$f":"Planning!H169","v":0},{"$f":"Planning!L169","v":0},{"$f":"IF(OR(W185=\"1\",AND(W185<>\"1\",G185=Lists!$A$17)),Y185,0)","v":0},null,{"$f":"IF(AND(W185=\"2\",G185<>Lists!$A$17),AA185,Z185)","v":""},{"$f":"IF($U185=ExcluirDelPLogro,\"\",IF(AND(H185=0,I185=0,J185=0),\"\",K185))","v":""},{"$f":"Planning!M169","v":{"v":0,"d":"0.00"}},{"$f":"'Month 1'!M185+'Month 1'!N185-'Month 1'!O185","v":{"v":0,"d":"0.00"}},null,"",{"$f":"IF($U185=ExcluirDelPLogro,\"\",IF(AND(M185=0,N185=0,O185=0),\"\",P185))","v":""},{"$f":"SUMIFS($J$25:$J$224,$C$25:$C$224,$C185,$G$25:$G$224,Lists!$A$16)","v":0},0,null,"",null,{"$f":"IF(C185=0,\"\",LEFT(INDEX(Lists!$H$5:$H$49,MATCH(C185,Lists!$G$5:$G$49,0),1),1))","v":""},null,{"$f":"'Month 1'!H185+'Month 1'!I185-'Month 1'!J185","v":0},"",{"$f":"IF(AND(H185=0,I185=0,J185=0),\"\",IF(J185>0,H185/J185,0))","v":""},null,"0"]
[{"$f":"Planning!A170","v":"I162"},{"$f":"Planning!B170","v":0},{"$f":"Planning!C170","v":0},{"$f":"Planning!D170","v":0},{"$f":"Planning!E170","v":0},{"$f":"IF(Planning!G170<>0,Planning!G170,\"\")","v":""},{"$f":"Planning!H170","v":0},{"$f":"Planning!L170","v":0},{"$f":"IF(OR(W186=\"1\",AND(W186<>\"1\",G186=Lists!$A$17)),Y186,0)","v":0},null,{"$f":"IF(AND(W186=\"2\",G186<>Lists!$A$17),AA186,Z186)","v":""},"",{"$f":"Planning!M170","v":{"v":0,"d":"0.00"}},{"$f":"'Month 1'!M186+'Month 1'!N186-'Month 1'!O186","v":{"v":0,"d":"0.00"}},null,"","",{"$f":"SUMIFS($J$25:$J$224,$C$25:$C$224,$C186,$G$25:$G$224,Lists!$A$16)","v":0},0,null,"",null,{"$f":"IF(C186=0,\"\",LEFT(INDEX(Lists!$H$5:$H$49,MATCH(C186,Lists!$G$5:$G$49,0),1),1))","v":""},null,{"$f":"'Month 1'!H186+'Month 1'!I186-'Month 1'!J186","v":0},"","",null,"0"]
[{"$f":"Planning!A171","v":"I163"},{"$f":"Planning!B171","v":0},{"$f":"Planning!C171","v":0},{"$f":"Planning!D171","v":0},{"$f":"Planning!E171","v":0},{"$f":"IF(Planning!G171<>0,Planning!G171,\"\")","v":""},{"$f":"Planning!H171","v":0},{"$f":"Planning!L171","v":0},{"$f":"IF(OR(W187=\"1\",AND(W187<>\"1\",G187=Lists!$A$17)),Y187,0)","v":0},null,{"$f":"IF(AND(W187=\"2\",G187<>Lists!$A$17),AA187,Z187)","v":""},"",{"$f":"Planning!M171","v":{"v":0,"d":"0.00"}},{"$f":"'Month 1'!M187+'Month 1'!N187-'Month 1'!O187","v":{"v":0,"d":"0.00"}},null,"","",{"$f":"SUMIFS($J$25:$J$224,$C$25:$C$224,$C187,$G$25:$G$224,Lists!$A$16)","v":0},0,null,"",null,{"$f":"IF(C187=0,\"\",LEFT(INDEX(Lists!$H$5:$H$49,MATCH(C187,Lists!$G$5:$G$49,0),1),1))","v":""},null,{"$f":"'Month 1'!H187+'Month 1'!I187-'Month 1'!J187","v":0},"","",null,"0"]
[{"$f":"Planning!A172","v":"I164"},{"$f":"Planning!B172","v":0},{"$f":"Planning!C172","v":0},{"$f":"Planning!D172","v":0},{"$f":"Planning!E172","v":0},{"$f":"IF(Planning!G172<>0,Planning!G172,\"\")","v":""},{"$f":"Planning!H172","v":0},{"$f":"Planning!L172","v":0},{"$f":"IF(OR(W188=\"1\",AND(W188<>\"1\",G188=Lists!$A$17)),Y188,0)","v":0},null,{"$f":"IF(AND(W188=\"2\",G188<>Lists!$A$17),AA188,Z188)","v":""},"",{"$f":"Planning!M172","v":{"v":0,"d":"0.00"}},{"$f":"'Month 1'!M188+'Month 1'!N188-'Month 1'!O188","v":{"v":0,"d":"0.00"}},null,"","",{"$f":"SUMIFS($J$25:$J$224,$C$25:$C$224,$C188,$G$25:$G$224,Lists!$A$16)","v":0},0,null,"",null,{"$f":"IF(C188=0,\"\",LEFT(INDEX(Lists!$H$5:$H$49,MATCH(C188,Lists!$G$5:$G$49,0),1),1))","v":""},null,{"$f":"'Month 1'!H188+'Month 1'!I188-'Month 1'!J188","v":0},"","",null,"0"]
[{"$f":"Planning!A173","v":"I165"},{"$f":"Planning!B173","v":0},{"$f":"Planning!C173","v":0},{"$f":"Planning!D173","v":0},{"$f":"Planning!E173","v":0},{"$f":"IF(Planning!G173<>0,Planning!G173,\"\")","v":""},{"$f":"Planning!H173","v":0},{"$f":"Planning!L173","v":0},{"$f":"IF(OR(W189=\"1\",AND(W189<>\"1\",G189=Lists!$A$17)),Y189,0)","v":0},null,{"$f":"IF(AND(W189=\"2\",G189<>Lists!$A$17),AA189,Z189)","v":""},"",{"$f":"Planning!M173","v":{"v":0,"d":"0.00"}},{"$f":"'Month 1'!M189+'Month 1'!N189-'Month 1'!O189","v":{"v":0,"d":"0.00"}},null,"","",{"$f":"SUMIFS($J$25:$J$224,$C$25:$C$224,$C189,$G$25:$G$224,Lists!$A$16)","v":0},0,null,"",null,{"$f":"IF(C189=0,\"\",LEFT(INDEX(Lists!$H$5:$H$49,MATCH(C189,Lists!$G$5:$G$49,0),1),1))","v":""},null,{"$f":"'Month 1'!H189+'Month 1'!I189-'Month 1'!J189","v":0},"","",null,"0"]
[{"$f":"Planning!A174","v":"I166"},{"$f":"Planning!B174","v":0},{"$f":"Planning!C174","v":0},{"$f":"Planning!D174","v":0},{"$f":"Planning!E174","v":0},{"$f":"IF(Planning!G174<>0,Planning!G174,\"\")","v":""},{"$f":"Planning!H174","v":0},{"$f":"Planning!L174","v":0},{"$f":"IF(OR(W190=\"1\",AND(W190<>\"1\",G190=Lists!$A$17)),Y190,0)","v":0},null,{"$f":"IF(AND(W190=\"2\",G190<>Lists!$A$17),AA190,Z190)","v":""},"",{"$f":"Planning!M174","v":{"v":0,"d":"0.00"}},{"$f":"'Month 1'!M190+'Month 1'!N190-'Month 1'!O190","v":{"v":0,"d":"0.00"}},null,"","",{"$f":"SUMIFS($J$25:$J$224,$C$25:$C$224,$C190,$G$25:$G$224,Lists!$A$16)","v":0},0,null,"",null,{"$f":"IF(C190=0,\"\",LEFT(INDEX(Lists!$H$5:$H$49,MATCH(C190,Lists!$G$5:$G$49,0),1),1))","v":""},null,{"$f":"'Month 1'!H190+'Month 1'!I190-'Month 1'!J190","v":0},"","",null,"0"]
[{"$f":"Planning!A175","v":"I167"},{"$f":"Planning!B175","v":0},{"$f":"Planning!C175","v":0},{"$f":"Planning!D175","v":0},{"$f":"Planning!E175","v":0},{"$f":"IF(Planning!G175<>0,Planning!G175,\"\")","v":""},{"$f":"Planning!H175","v":0},{"$f":"Planning!L175","v":0},{"$f":"IF(OR(W191=\"1\",AND(W191<>\"1\",G191=Lists!$A$17)),Y191,0)","v":0},null,{"$f":"IF(AND(W191=\"2\",G191<>Lists!$A$17),AA191,Z191)","v":""},"",{"$f":"Planning!M175","v":{"v":0,"d":"0.00"}},{"$f":"'Month 1'!M191+'Month 1'!N191-'Month 1'!O191","v":{"v":0,"d":"0.00"}},null,"","",{"$f":"SUMIFS($J$25:$J$224,$C$25:$C$224,$C191,$G$25:$G$224,Lists!$A$16)","v":0},0,null,"",null,{"$f":"IF(C191=0,\"\",LEFT(INDEX(Lists!$H$5:$H$49,MATCH(C191,Lists!$G$5:$G$49,0),1),1))","v":""},null,{"$f":"'Month 1'!H191+'Month 1'!I191-'Month 1'!J191","v":0},"","",null,"0"]
[{"$f":"Planning!A176","v":"I168"},{"$f":"Planning!B176","v":0},{"$f":"Planning!C176","v":0},{"$f":"Planning!D176","v":0},{"$f":"Planning!E176","v":0},{"$f":"IF(Planning!G176<>0,Planning!G176,\"\")","v":""},{"$f":"Planning!H176","v":0},{"$f":"Planning!L176","v":0},{"$f":"IF(OR(W192=\"1\",AND(W192<>\"1\",G192=Lists!$A$17)),Y192,0)","v":0},null,{"$f":"IF(AND(W192=\"2\",G192<>Lists!$A$17),AA192,Z192)","v":""},"",{"$f":"Planning!M176","v":{"v":0,"d":"0.00"}},{"$f":"'Month 1'!M192+'Month 1'!N192-'Month 1'!O192","v":{"v":0,"d":"0.00"}},null,"","",{"$f":"SUMIFS($J$25:$J$224,$C$25:$C$224,$C192,$G$25:$G$224,Lists!$A$16)","v":0},0,null,"",null,{"$f":"IF(C192=0,\"\",LEFT(INDEX(Lists!$H$5:$H$49,MATCH(C192,Lists!$G$5:$G$49,0),1),1))","v":""},null,{"$f":"'Month 1'!H192+'Month 1'!I192-'Month 1'!J192","v":0},"","",null,"0"]
[{"$f":"Planning!A177","v":"I169"},{"$f":"Planning!B177","v":0},{"$f":"Planning!C177","v":0},{"$f":"Planning!D177","v":0},{"$f":"Planning!E177","v":0},{"$f":"IF(Planning!G177<>0,Planning!G177,\"\")","v":""},{"$f":"Planning!H177","v":0},{"$f":"Planning!L177","v":0},{"$f":"IF(OR(W193=\"1\",AND(W193<>\"1\",G193=Lists!$A$17)),Y193,0)","v":0},null,{"$f":"IF(AND(W193=\"2\",G193<>Lists!$A$17),AA193,Z193)","v":""},"",{"$f":"Planning!M177","v":{"v":0,"d":"0.00"}},{"$f":"'Month 1'!M193+'Month 1'!N193-'Month 1'!O193","v":{"v":0,"d":"0.00"}},null,"","",{"$f":"SUMIFS($J$25:$J$224,$C$25:$C$224,$C193,$G$25:$G$224,Lists!$A$16)","v":0},0,null,"",null,{"$f":"IF(C193=0,\"\",LEFT(INDEX(Lists!$H$5:$H$49,MATCH(C193,Lists!$G$5:$G$49,0),1),1))","v":""},null,{"$f":"'Month 1'!H193+'Month 1'!I193-'Month 1'!J193","v":0},"","",null,"0"]
[{"$f":"Planning!A178","v":"I170"},{"$f":"Planning!B178","v":0},{"$f":"Planning!C178","v":0},{"$f":"Planning!D178","v":0},{"$f":"Planning!E178","v":0},{"$f":"IF(Planning!G178<>0,Planning!G178,\"\")","v":""},{"$f":"Planning!H178","v":0},{"$f":"Planning!L178","v":0},{"$f":"IF(OR(W194=\"1\",AND(W194<>\"1\",G194=Lists!$A$17)),Y194,0)","v":0},null,{"$f":"IF(AND(W194=\"2\",G194<>Lists!$A$17),AA194,Z194)","v":""},"",{"$f":"Planning!M178","v":{"v":0,"d":"0.00"}},{"$f":"'Month 1'!M194+'Month 1'!N194-'Month 1'!O194","v":{"v":0,"d":"0.00"}},null,"","",{"$f":"SUMIFS($J$25:$J$224,$C$25:$C$224,$C194,$G$25:$G$224,Lists!$A$16)","v":0},0,null,"",null,{"$f":"IF(C194=0,\"\",LEFT(INDEX(Lists!$H$5:$H$49,MATCH(C194,Lists!$G$5:$G$49,0),1),1))","v":""},null,{"$f":"'Month 1'!H194+'Month 1'!I194-'Month 1'!J194","v":0},"","",null,"0"]
[{"$f":"Planning!A179","v":"I171"},{"$f":"Planning!B179","v":0},{"$f":"Planning!C179","v":0},{"$f":"Planning!D179","v":0},{"$f":"Planning!E179","v":0},{"$f":"IF(Planning!G179<>0,Planning!G179,\"\")","v":""},{"$f":"Planning!H179","v":0},{"$f":"Planning!L179","v":0},{"$f":"IF(OR(W195=\"1\",AND(W195<>\"1\",G195=Lists!$A$17)),Y195,0)","v":0},null,{"$f":"IF(AND(W195=\"2\",G195<>Lists!$A$17),AA195,Z195)","v":""},"",{"$f":"Planning!M179","v":{"v":0,"d":"0.00"}},{"$f":"'Month 1'!M195+'Month 1'!N195-'Month 1'!O195","v":{"v":0,"d":"0.00"}},null,"","",{"$f":"SUMIFS($J$25:$J$224,$C$25:$C$224,$C195,$G$25:$G$224,Lists!$A$16)","v":0},0,null,"",null,{"$f":"IF(C195=0,\"\",LEFT(INDEX(Lists!$H$5:$H$49,MATCH(C195,Lists!$G$5:$G$49,0),1),1))","v":""},null,{"$f":"'Month 1'!H195+'Month 1'!I195-'Month 1'!J195","v":0},"","",null,"0"]
[{"$f":"Planning!A180","v":"I172"},{"$f":"Planning!B180","v":0},{"$f":"Planning!C180","v":0},{"$f":"Planning!D180","v":0},{"$f":"Planning!E180","v":0},{"$f":"IF(Planning!G180<>0,Planning!G180,\"\")","v":""},{"$f":"Planning!H180","v":0},{"$f":"Planning!L180","v":0},{"$f":"IF(OR(W196=\"1\",AND(W196<>\"1\",G196=Lists!$A$17)),Y196,0)","v":0},null,{"$f":"IF(AND(W196=\"2\",G196<>Lists!$A$17),AA196,Z196)","v":""},"",{"$f":"Planning!M180","v":{"v":0,"d":"0.00"}},{"$f":"'Month 1'!M196+'Month 1'!N196-'Month 1'!O196","v":{"v":0,"d":"0.00"}},null,"","",{"$f":"SUMIFS($J$25:$J$224,$C$25:$C$224,$C196,$G$25:$G$224,Lists!$A$16)","v":0},0,null,"",null,{"$f":"IF(C196=0,\"\",LEFT(INDEX(Lists!$H$5:$H$49,MATCH(C196,Lists!$G$5:$G$49,0),1),1))","v":""},null,{"$f":"'Month 1'!H196+'Month 1'!I196-'Month 1'!J196","v":0},"","",null,"0"]
[{"$f":"Planning!A181","v":"I173"},{"$f":"Planning!B181","v":0},{"$f":"Planning!C181","v":0},{"$f":"Planning!D181","v":0},{"$f":"Planning!E181","v":0},{"$f":"IF(Planning!G181<>0,Planning!G181,\"\")","v":""},{"$f":"Planning!H181","v":0},{"$f":"Planning!L181","v":0},{"$f":"IF(OR(W197=\"1\",AND(W197<>\"1\",G197=Lists!$A$17)),Y197,0)","v":0},null,{"$f":"IF(AND(W197=\"2\",G197<>Lists!$A$17),AA197,Z197)","v":""},"",{"$f":"Planning!M181","v":{"v":0,"d":"0.00"}},{"$f":"'Month 1'!M197+'Month 1'!N197-'Month 1'!O197","v":{"v":0,"d":"0.00"}},null,"","",{"$f":"SUMIFS($J$25:$J$224,$C$25:$C$224,$C197,$G$25:$G$224,Lists!$A$16)","v":0},0,null,"",null,{"$f":"IF(C197=0,\"\",LEFT(INDEX(Lists!$H$5:$H$49,MATCH(C197,Lists!$G$5:$G$49,0),1),1))","v":""},null,{"$f":"'Month 1'!H197+'Month 1'!I197-'Month 1'!J197","v":0},"","",null,"0"]
[{"$f":"Planning!A182","v":"I174"},{"$f":"Planning!B182","v":0},{"$f":"Planning!C182","v":0},{"$f":"Planning!D182","v":0},{"$f":"Planning!E182","v":0},{"$f":"IF(Planning!G182<>0,Planning!G182,\"\")","v":""},{"$f":"Planning!H182","v":0},{"$f":"Planning!L182","v":0},{"$f":"IF(OR(W198=\"1\",AND(W198<>\"1\",G198=Lists!$A$17)),Y198,0)","v":0},null,{"$f":"IF(AND(W198=\"2\",G198<>Lists!$A$17),AA198,Z198)","v":""},"",{"$f":"Planning!M182","v":{"v":0,"d":"0.00"}},{"$f":"'Month 1'!M198+'Month 1'!N198-'Month 1'!O198","v":{"v":0,"d":"0.00"}},null,"","",{"$f":"SUMIFS($J$25:$J$224,$C$25:$C$224,$C198,$G$25:$G$224,Lists!$A$16)","v":0},0,null,"",null,{"$f":"IF(C198=0,\"\",LEFT(INDEX(Lists!$H$5:$H$49,MATCH(C198,Lists!$G$5:$G$49,0),1),1))","v":""},null,{"$f":"'Month 1'!H198+'Month 1'!I198-'Month 1'!J198","v":0},"","",null,"0"]
[{"$f":"Planning!A183","v":"I175"},{"$f":"Planning!B183","v":0},{"$f":"Planning!C183","v":0},{"$f":"Planning!D183","v":0},{"$f":"Planning!E183","v":0},{"$f":"IF(Planning!G183<>0,Planning!G183,\"\")","v":""},{"$f":"Planning!H183","v":0},{"$f":"Planning!L183","v":0},{"$f":"IF(OR(W199=\"1\",AND(W199<>\"1\",G199=Lists!$A$17)),Y199,0)","v":0},null,{"$f":"IF(AND(W199=\"2\",G199<>Lists!$A$17),AA199,Z199)","v":""},"",{"$f":"Planning!M183","v":{"v":0,"d":"0.00"}},{"$f":"'Month 1'!M199+'Month 1'!N199-'Month 1'!O199","v":{"v":0,"d":"0.00"}},null,"","",{"$f":"SUMIFS($J$25:$J$224,$C$25:$C$224,$C199,$G$25:$G$224,Lists!$A$16)","v":0},0,null,"",null,{"$f":"IF(C199=0,\"\",LEFT(INDEX(Lists!$H$5:$H$49,MATCH(C199,Lists!$G$5:$G$49,0),1),1))","v":""},null,{"$f":"'Month 1'!H199+'Month 1'!I199-'Month 1'!J199","v":0},"","",null,"0"]
[{"$f":"Planning!A184","v":"I176"},{"$f":"Planning!B184","v":0},{"$f":"Planning!C184","v":0},{"$f":"Planning!D184","v":0},{"$f":"Planning!E184","v":0},{"$f":"IF(Planning!G184<>0,Planning!G184,\"\")","v":""},{"$f":"Planning!H184","v":0},{"$f":"Planning!L184","v":0},{"$f":"IF(OR(W200=\"1\",AND(W200<>\"1\",G200=Lists!$A$17)),Y200,0)","v":0},null,{"$f":"IF(AND(W200=\"2\",G200<>Lists!$A$17),AA200,Z200)","v":""},"",{"$f":"Planning!M184","v":{"v":0,"d":"0.00"}},{"$f":"'Month 1'!M200+'Month 1'!N200-'Month 1'!O200","v":{"v":0,"d":"0.00"}},null,"","",{"$f":"SUMIFS($J$25:$J$224,$C$25:$C$224,$C200,$G$25:$G$224,Lists!$A$16)","v":0},0,null,"",null,{"$f":"IF(C200=0,\"\",LEFT(INDEX(Lists!$H$5:$H$49,MATCH(C200,Lists!$G$5:$G$49,0),1),1))","v":""},null,{"$f":"'Month 1'!H200+'Month 1'!I200-'Month 1'!J200","v":0},"","",null,"0"]
[{"$f":"Planning!A185","v":"I177"},{"$f":"Planning!B185","v":0},{"$f":"Planning!C185","v":0},{"$f":"Planning!D185","v":0},{"$f":"Planning!E185","v":0},{"$f":"IF(Planning!G185<>0,Planning!G185,\"\")","v":""},{"$f":"Planning!H185","v":0},{"$f":"Planning!L185","v":0},{"$f":"IF(OR(W201=\"1\",AND(W201<>\"1\",G201=Lists!$A$17)),Y201,0)","v":0},null,{"$f":"IF(AND(W201=\"2\",G201<>Lists!$A$17),AA201,Z201)","v":""},"",{"$f":"Planning!M185","v":{"v":0,"d":"0.00"}},{"$f":"'Month 1'!M201+'Month 1'!N201-'Month 1'!O201","v":{"v":0,"d":"0.00"}},null,"","",{"$f":"SUMIFS($J$25:$J$224,$C$25:$C$224,$C201,$G$25:$G$224,Lists!$A$16)","v":0},0,null,"",null,{"$f":"IF(C201=0,\"\",LEFT(INDEX(Lists!$H$5:$H$49,MATCH(C201,Lists!$G$5:$G$49,0),1),1))","v":""},null,{"$f":"'Month 1'!H201+'Month 1'!I201-'Month 1'!J201","v":0},"","",null,"0"]
[{"$f":"Planning!A186","v":"I178"},{"$f":"Planning!B186","v":0},{"$f":"Planning!C186","v":0},{"$f":"Planning!D186","v":0},{"$f":"Planning!E186","v":0},{"$f":"IF(Planning!G186<>0,Planning!G186,\"\")","v":""},{"$f":"Planning!H186","v":0},{"$f":"Planning!L186","v":0},{"$f":"IF(OR(W202=\"1\",AND(W202<>\"1\",G202=Lists!$A$17)),Y202,0)","v":0},null,{"$f":"IF(AND(W202=\"2\",G202<>Lists!$A$17),AA202,Z202)","v":""},"",{"$f":"Planning!M186","v":{"v":0,"d":"0.00"}},{"$f":"'Month 1'!M202+'Month 1'!N202-'Month 1'!O202","v":{"v":0,"d":"0.00"}},null,"","",{"$f":"SUMIFS($J$25:$J$224,$C$25:$C$224,$C202,$G$25:$G$224,Lists!$A$16)","v":0},0,null,"",null,{"$f":"IF(C202=0,\"\",LEFT(INDEX(Lists!$H$5:$H$49,MATCH(C202,Lists!$G$5:$G$49,0),1),1))","v":""},null,{"$f":"'Month 1'!H202+'Month 1'!I202-'Month 1'!J202","v":0},"","",null,"0"]
[{"$f":"Planning!A187","v":"I179"},{"$f":"Planning!B187","v":0},{"$f":"Planning!C187","v":0},{"$f":"Planning!D187","v":0},{"$f":"Planning!E187","v":0},{"$f":"IF(Planning!G187<>0,Planning!G187,\"\")","v":""},{"$f":"Planning!H187","v":0},{"$f":"Planning!L187","v":0},{"$f":"IF(OR(W203=\"1\",AND(W203<>\"1\",G203=Lists!$A$17)),Y203,0)","v":0},null,{"$f":"IF(AND(W203=\"2\",G203<>Lists!$A$17),AA203,Z203)","v":""},"",{"$f":"Planning!M187","v":{"v":0,"d":"0.00"}},{"$f":"'Month 1'!M203+'Month 1'!N203-'Month 1'!O203","v":{"v":0,"d":"0.00"}},null,"","",{"$f":"SUMIFS($J$25:$J$224,$C$25:$C$224,$C203,$G$25:$G$224,Lists!$A$16)","v":0},0,null,"",null,{"$f":"IF(C203=0,\"\",LEFT(INDEX(Lists!$H$5:$H$49,MATCH(C203,Lists!$G$5:$G$49,0),1),1))","v":""},null,{"$f":"'Month 1'!H203+'Month 1'!I203-'Month 1'!J203","v":0},"","",null,"0"]
[{"$f":"Planning!A188","v":"I180"},{"$f":"Planning!B188","v":0},{"$f":"Planning!C188","v":0},{"$f":"Planning!D188","v":0},{"$f":"Planning!E188","v":0},{"$f":"IF(Planning!G188<>0,Planning!G188,\"\")","v":""},{"$f":"Planning!H188","v":0},{"$f":"Planning!L188","v":0},{"$f":"IF(OR(W204=\"1\",AND(W204<>\"1\",G204=Lists!$A$17)),Y204,0)","v":0},null,{"$f":"IF(AND(W204=\"2\",G204<>Lists!$A$17),AA204,Z204)","v":""},"",{"$f":"Planning!M188","v":{"v":0,"d":"0.00"}},{"$f":"'Month 1'!M204+'Month 1'!N204-'Month 1'!O204","v":{"v":0,"d":"0.00"}},null,"","",{"$f":"SUMIFS($J$25:$J$224,$C$25:$C$224,$C204,$G$25:$G$224,Lists!$A$16)","v":0},0,null,"",null,{"$f":"IF(C204=0,\"\",LEFT(INDEX(Lists!$H$5:$H$49,MATCH(C204,Lists!$G$5:$G$49,0),1),1))","v":""},null,{"$f":"'Month 1'!H204+'Month 1'!I204-'Month 1'!J204","v":0},"","",null,"0"]
[{"$f":"Planning!A189","v":"I181"},{"$f":"Planning!B189","v":0},{"$f":"Planning!C189","v":0},{"$f":"Planning!D189","v":0},{"$f":"Planning!E189","v":0},{"$f":"IF(Planning!G189<>0,Planning!G189,\"\")","v":""},{"$f":"Planning!H189","v":0},{"$f":"Planning!L189","v":0},{"$f":"IF(OR(W205=\"1\",AND(W205<>\"1\",G205=Lists!$A$17)),Y205,0)","v":0},null,{"$f":"IF(AND(W205=\"2\",G205<>Lists!$A$17),AA205,Z205)","v":""},"",{"$f":"Planning!M189","v":{"v":0,"d":"0.00"}},{"$f":"'Month 1'!M205+'Month 1'!N205-'Month 1'!O205","v":{"v":0,"d":"0.00"}},null,"","",{"$f":"SUMIFS($J$25:$J$224,$C$25:$C$224,$C205,$G$25:$G$224,Lists!$A$16)","v":0},0,null,"",null,{"$f":"IF(C205=0,\"\",LEFT(INDEX(Lists!$H$5:$H$49,MATCH(C205,Lists!$G$5:$G$49,0),1),1))","v":""},null,{"$f":"'Month 1'!H205+'Month 1'!I205-'Month 1'!J205","v":0},"","",null,"0"]
[{"$f":"Planning!A190","v":"I182"},{"$f":"Planning!B190","v":0},{"$f":"Planning!C190","v":0},{"$f":"Planning!D190","v":0},{"$f":"Planning!E190","v":0},{"$f":"IF(Planning!G190<>0,Planning!G190,\"\")","v":""},{"$f":"Planning!H190","v":0},{"$f":"Planning!L190","v":0},{"$f":"IF(OR(W206=\"1\",AND(W206<>\"1\",G206=Lists!$A$17)),Y206,0)","v":0},null,{"$f":"IF(AND(W206=\"2\",G206<>Lists!$A$17),AA206,Z206)","v":""},"",{"$f":"Planning!M190","v":{"v":0,"d":"0.00"}},{"$f":"'Month 1'!M206+'Month 1'!N206-'Month 1'!O206","v":{"v":0,"d":"0.00"}},null,"","",{"$f":"SUMIFS($J$25:$J$224,$C$25:$C$224,$C206,$G$25:$G$224,Lists!$A$16)","v":0},0,null,"",null,{"$f":"IF(C206=0,\"\",LEFT(INDEX(Lists!$H$5:$H$49,MATCH(C206,Lists!$G$5:$G$49,0),1),1))","v":""},null,{"$f":"'Month 1'!H206+'Month 1'!I206-'Month 1'!J206","v":0},"","",null,"0"]
[{"$f":"Planning!A191","v":"I183"},{"$f":"Planning!B191","v":0},{"$f":"Planning!C191","v":0},{"$f":"Planning!D191","v":0},{"$f":"Planning!E191","v":0},{"$f":"IF(Planning!G191<>0,Planning!G191,\"\")","v":""},{"$f":"Planning!H191","v":0},{"$f":"Planning!L191","v":0},{"$f":"IF(OR(W207=\"1\",AND(W207<>\"1\",G207=Lists!$A$17)),Y207,0)","v":0},null,{"$f":"IF(AND(W207=\"2\",G207<>Lists!$A$17),AA207,Z207)","v":""},"",{"$f":"Planning!M191","v":{"v":0,"d":"0.00"}},{"$f":"'Month 1'!M207+'Month 1'!N207-'Month 1'!O207","v":{"v":0,"d":"0.00"}},null,"","",{"$f":"SUMIFS($J$25:$J$224,$C$25:$C$224,$C207,$G$25:$G$224,Lists!$A$16)","v":0},0,null,"",null,{"$f":"IF(C207=0,\"\",LEFT(INDEX(Lists!$H$5:$H$49,MATCH(C207,Lists!$G$5:$G$49,0),1),1))","v":""},null,{"$f":"'Month 1'!H207+'Month 1'!I207-'Month 1'!J207","v":0},"","",null,"0"]
[{"$f":"Planning!A192","v":"I184"},{"$f":"Planning!B192","v":0},{"$f":"Planning!C192","v":0},{"$f":"Planning!D192","v":0},{"$f":"Planning!E192","v":0},{"$f":"IF(Planning!G192<>0,Planning!G192,\"\")","v":""},{"$f":"Planning!H192","v":0},{"$f":"Planning!L192","v":0},{"$f":"IF(OR(W208=\"1\",AND(W208<>\"1\",G208=Lists!$A$17)),Y208,0)","v":0},null,{"$f":"IF(AND(W208=\"2\",G208<>Lists!$A$17),AA208,Z208)","v":""},"",{"$f":"Planning!M192","v":{"v":0,"d":"0.00"}},{"$f":"'Month 1'!M208+'Month 1'!N208-'Month 1'!O208","v":{"v":0,"d":"0.00"}},null,"","",{"$f":"SUMIFS($J$25:$J$224,$C$25:$C$224,$C208,$G$25:$G$224,Lists!$A$16)","v":0},0,null,"",null,{"$f":"IF(C208=0,\"\",LEFT(INDEX(Lists!$H$5:$H$49,MATCH(C208,Lists!$G$5:$G$49,0),1),1))","v":""},null,{"$f":"'Month 1'!H208+'Month 1'!I208-'Month 1'!J208","v":0},"","",null,"0"]
[{"$f":"Planning!A193","v":"I185"},{"$f":"Planning!B193","v":0},{"$f":"Planning!C193","v":0},{"$f":"Planning!D193","v":0},{"$f":"Planning!E193","v":0},{"$f":"IF(Planning!G193<>0,Planning!G193,\"\")","v":""},{"$f":"Planning!H193","v":0},{"$f":"Planning!L193","v":0},{"$f":"IF(OR(W209=\"1\",AND(W209<>\"1\",G209=Lists!$A$17)),Y209,0)","v":0},null,{"$f":"IF(AND(W209=\"2\",G209<>Lists!$A$17),AA209,Z209)","v":""},"",{"$f":"Planning!M193","v":{"v":0,"d":"0.00"}},{"$f":"'Month 1'!M209+'Month 1'!N209-'Month 1'!O209","v":{"v":0,"d":"0.00"}},null,"","",{"$f":"SUMIFS($J$25:$J$224,$C$25:$C$224,$C209,$G$25:$G$224,Lists!$A$16)","v":0},0,null,"",null,{"$f":"IF(C209=0,\"\",LEFT(INDEX(Lists!$H$5:$H$49,MATCH(C209,Lists!$G$5:$G$49,0),1),1))","v":""},null,{"$f":"'Month 1'!H209+'Month 1'!I209-'Month 1'!J209","v":0},"","",null,"0"]
[{"$f":"Planning!A194","v":"I186"},{"$f":"Planning!B194","v":0},{"$f":"Planning!C194","v":0},{"$f":"Planning!D194","v":0},{"$f":"Planning!E194","v":0},{"$f":"IF(Planning!G194<>0,Planning!G194,\"\")","v":""},{"$f":"Planning!H194","v":0},{"$f":"Planning!L194","v":0},{"$f":"IF(OR(W210=\"1\",AND(W210<>\"1\",G210=Lists!$A$17)),Y210,0)","v":0},null,{"$f":"IF(AND(W210=\"2\",G210<>Lists!$A$17),AA210,Z210)","v":""},"",{"$f":"Planning!M194","v":{"v":0,"d":"0.00"}},{"$f":"'Month 1'!M210+'Month 1'!N210-'Month 1'!O210","v":{"v":0,"d":"0.00"}},null,"","",{"$f":"SUMIFS($J$25:$J$224,$C$25:$C$224,$C210,$G$25:$G$224,Lists!$A$16)","v":0},0,null,"",null,{"$f":"IF(C210=0,\"\",LEFT(INDEX(Lists!$H$5:$H$49,MATCH(C210,Lists!$G$5:$G$49,0),1),1))","v":""},null,{"$f":"'Month 1'!H210+'Month 1'!I210-'Month 1'!J210","v":0},"","",null,"0"]
[{"$f":"Planning!A195","v":"I187"},{"$f":"Planning!B195","v":0},{"$f":"Planning!C195","v":0},{"$f":"Planning!D195","v":0},{"$f":"Planning!E195","v":0},{"$f":"IF(Planning!G195<>0,Planning!G195,\"\")","v":""},{"$f":"Planning!H195","v":0},{"$f":"Planning!L195","v":0},{"$f":"IF(OR(W211=\"1\",AND(W211<>\"1\",G211=Lists!$A$17)),Y211,0)","v":0},null,{"$f":"IF(AND(W211=\"2\",G211<>Lists!$A$17),AA211,Z211)","v":""},"",{"$f":"Planning!M195","v":{"v":0,"d":"0.00"}},{"$f":"'Month 1'!M211+'Month 1'!N211-'Month 1'!O211","v":{"v":0,"d":"0.00"}},null,"","",{"$f":"SUMIFS($J$25:$J$224,$C$25:$C$224,$C211,$G$25:$G$224,Lists!$A$16)","v":0},0,null,"",null,{"$f":"IF(C211=0,\"\",LEFT(INDEX(Lists!$H$5:$H$49,MATCH(C211,Lists!$G$5:$G$49,0),1),1))","v":""},null,{"$f":"'Month 1'!H211+'Month 1'!I211-'Month 1'!J211","v":0},"","",null,"0"]
[{"$f":"Planning!A196","v":"I188"},{"$f":"Planning!B196","v":0},{"$f":"Planning!C196","v":0},{"$f":"Planning!D196","v":0},{"$f":"Planning!E196","v":0},{"$f":"IF(Planning!G196<>0,Planning!G196,\"\")","v":""},{"$f":"Planning!H196","v":0},{"$f":"Planning!L196","v":0},{"$f":"IF(OR(W212=\"1\",AND(W212<>\"1\",G212=Lists!$A$17)),Y212,0)","v":0},null,{"$f":"IF(AND(W212=\"2\",G212<>Lists!$A$17),AA212,Z212)","v":""},"",{"$f":"Planning!M196","v":{"v":0,"d":"0.00"}},{"$f":"'Month 1'!M212+'Month 1'!N212-'Month 1'!O212","v":{"v":0,"d":"0.00"}},null,"","",{"$f":"SUMIFS($J$25:$J$224,$C$25:$C$224,$C212,$G$25:$G$224,Lists!$A$16)","v":0},0,null,"",null,{"$f":"IF(C212=0,\"\",LEFT(INDEX(Lists!$H$5:$H$49,MATCH(C212,Lists!$G$5:$G$49,0),1),1))","v":""},null,{"$f":"'Month 1'!H212+'Month 1'!I212-'Month 1'!J212","v":0},"","",null,"0"]
[{"$f":"Planning!A197","v":"I189"},{"$f":"Planning!B197","v":0},{"$f":"Planning!C197","v":0},{"$f":"Planning!D197","v":0},{"$f":"Planning!E197","v":0},{"$f":"IF(Planning!G197<>0,Planning!G197,\"\")","v":""},{"$f":"Planning!H197","v":0},{"$f":"Planning!L197","v":0},{"$f":"IF(OR(W213=\"1\",AND(W213<>\"1\",G213=Lists!$A$17)),Y213,0)","v":0},null,{"$f":"IF(AND(W213=\"2\",G213<>Lists!$A$17),AA213,Z213)","v":""},"",{"$f":"Planning!M197","v":{"v":0,"d":"0.00"}},{"$f":"'Month 1'!M213+'Month 1'!N213-'Month 1'!O213","v":{"v":0,"d":"0.00"}},null,"","",{"$f":"SUMIFS($J$25:$J$224,$C$25:$C$224,$C213,$G$25:$G$224,Lists!$A$16)","v":0},0,null,"",null,{"$f":"IF(C213=0,\"\",LEFT(INDEX(Lists!$H$5:$H$49,MATCH(C213,Lists!$G$5:$G$49,0),1),1))","v":""},null,{"$f":"'Month 1'!H213+'Month 1'!I213-'Month 1'!J213","v":0},"","",null,"0"]
[{"$f":"Planning!A198","v":"I190"},{"$f":"Planning!B198","v":0},{"$f":"Planning!C198","v":0},{"$f":"Planning!D198","v":0},{"$f":"Planning!E198","v":0},{"$f":"IF(Planning!G198<>0,Planning!G198,\"\")","v":""},{"$f":"Planning!H198","v":0},{"$f":"Planning!L198","v":0},{"$f":"IF(OR(W214=\"1\",AND(W214<>\"1\",G214=Lists!$A$17)),Y214,0)","v":0},null,{"$f":"IF(AND(W214=\"2\",G214<>Lists!$A$17),AA214,Z214)","v":""},"",{"$f":"Planning!M198","v":{"v":0,"d":"0.00"}},{"$f":"'Month 1'!M214+'Month 1'!N214-'Month 1'!O214","v":{"v":0,"d":"0.00"}},null,"","",{"$f":"SUMIFS($J$25:$J$224,$C$25:$C$224,$C214,$G$25:$G$224,Lists!$A$16)","v":0},0,null,"",null,{"$f":"IF(C214=0,\"\",LEFT(INDEX(Lists!$H$5:$H$49,MATCH(C214,Lists!$G$5:$G$49,0),1),1))","v":""},null,{"$f":"'Month 1'!H214+'Month 1'!I214-'Month 1'!J214","v":0},"","",null,"0"]
[{"$f":"Planning!A199","v":"I191"},{"$f":"Planning!B199","v":0},{"$f":"Planning!C199","v":0},{"$f":"Planning!D199","v":0},{"$f":"Planning!E199","v":0},{"$f":"IF(Planning!G199<>0,Planning!G199,\"\")","v":""},{"$f":"Planning!H199","v":0},{"$f":"Planning!L199","v":0},{"$f":"IF(OR(W215=\"1\",AND(W215<>\"1\",G215=Lists!$A$17)),Y215,0)","v":0},null,{"$f":"IF(AND(W215=\"2\",G215<>Lists!$A$17),AA215,Z215)","v":""},"",{"$f":"Planning!M199","v":{"v":0,"d":"0.00"}},{"$f":"'Month 1'!M215+'Month 1'!N215-'Month 1'!O215","v":{"v":0,"d":"0.00"}},null,"","",{"$f":"SUMIFS($J$25:$J$224,$C$25:$C$224,$C215,$G$25:$G$224,Lists!$A$16)","v":0},0,null,"",null,{"$f":"IF(C215=0,\"\",LEFT(INDEX(Lists!$H$5:$H$49,MATCH(C215,Lists!$G$5:$G$49,0),1),1))","v":""},null,{"$f":"'Month 1'!H215+'Month 1'!I215-'Month 1'!J215","v":0},"","",null,"0"]
[{"$f":"Planning!A200","v":"I192"},{"$f":"Planning!B200","v":0},{"$f":"Planning!C200","v":0},{"$f":"Planning!D200","v":0},{"$f":"Planning!E200","v":0},{"$f":"IF(Planning!G200<>0,Planning!G200,\"\")","v":""},{"$f":"Planning!H200","v":0},{"$f":"Planning!L200","v":0},{"$f":"IF(OR(W216=\"1\",AND(W216<>\"1\",G216=Lists!$A$17)),Y216,0)","v":0},null,{"$f":"IF(AND(W216=\"2\",G216<>Lists!$A$17),AA216,Z216)","v":""},"",{"$f":"Planning!M200","v":{"v":0,"d":"0.00"}},{"$f":"'Month 1'!M216+'Month 1'!N216-'Month 1'!O216","v":{"v":0,"d":"0.00"}},null,"","",{"$f":"SUMIFS($J$25:$J$224,$C$25:$C$224,$C216,$G$25:$G$224,Lists!$A$16)","v":0},0,null,"",null,{"$f":"IF(C216=0,\"\",LEFT(INDEX(Lists!$H$5:$H$49,MATCH(C216,Lists!$G$5:$G$49,0),1),1))","v":""},null,{"$f":"'Month 1'!H216+'Month 1'!I216-'Month 1'!J216","v":0},"","",null,"0"]
[{"$f":"Planning!A201","v":"I193"},{"$f":"Planning!B201","v":0},{"$f":"Planning!C201","v":0},{"$f":"Planning!D201","v":0},{"$f":"Planning!E201","v":0},{"$f":"IF(Planning!G201<>0,Planning!G201,\"\")","v":""},{"$f":"Planning!H201","v":0},{"$f":"Planning!L201","v":0},{"$f":"IF(OR(W217=\"1\",AND(W217<>\"1\",G217=Lists!$A$17)),Y217,0)","v":0},null,{"$f":"IF(AND(W217=\"2\",G217<>Lists!$A$17),AA217,Z217)","v":""},{"$f":"IF($U217=ExcluirDelPLogro,\"\",IF(AND(H217=0,I217=0,J217=0),\"\",K217))","v":""},{"$f":"Planning!M201","v":{"v":0,"d":"0.00"}},{"$f":"'Month 1'!M217+'Month 1'!N217-'Month 1'!O217","v":{"v":0,"d":"0.00"}},null,"",{"$f":"IF($U217=ExcluirDelPLogro,\"\",IF(AND(M217=0,N217=0,O217=0),\"\",P217))","v":""},{"$f":"SUMIFS($J$25:$J$224,$C$25:$C$224,$C217,$G$25:$G$224,Lists!$A$16)","v":0},0,null,"",null,{"$f":"IF(C217=0,\"\",LEFT(INDEX(Lists!$H$5:$H$49,MATCH(C217,Lists!$G$5:$G$49,0),1),1))","v":""},null,{"$f":"'Month 1'!H217+'Month 1'!I217-'Month 1'!J217","v":0},"",{"$f":"IF(AND(H217=0,I217=0,J217=0),\"\",IF(J217>0,H217/J217,0))","v":""},null,"0"]
[{"$f":"Planning!A202","v":"I194"},{"$f":"Planning!B202","v":0},{"$f":"Planning!C202","v":0},{"$f":"Planning!D202","v":0},{"$f":"Planning!E202","v":0},{"$f":"IF(Planning!G202<>0,Planning!G202,\"\")","v":""},{"$f":"Planning!H202","v":0},{"$f":"Planning!L202","v":0},{"$f":"IF(OR(W218=\"1\",AND(W218<>\"1\",G218=Lists!$A$17)),Y218,0)","v":0},null,{"$f":"IF(AND(W218=\"2\",G218<>Lists!$A$17),AA218,Z218)","v":""},"",{"$f":"Planning!M202","v":{"v":0,"d":"0.00"}},{"$f":"'Month 1'!M218+'Month 1'!N218-'Month 1'!O218","v":{"v":0,"d":"0.00"}},null,{"$f":"IF(AND(M218=0,N218=0,O218=0),\"\",IF((M218+N218)>0,O218/(M218+N218),O218))","v":""},"",{"$f":"SUMIFS($J$25:$J$224,$C$25:$C$224,$C218,$G$25:$G$224,Lists!$A$16)","v":0},{"$f":"SUMIFS($O$25:$O$224,$C$25:$C$224,$C218,$G$25:$G$224,\"<>0\")","v":0},null,{"$f":"IF(B218=0,\"\",IF(LEFT(B218,1)=\"1\",\"1\",\"2\"))","v":""},null,{"$f":"IF(C218=0,\"\",LEFT(INDEX(Lists!$H$5:$H$49,MATCH(C218,Lists!$G$5:$G$49,0),1),1))","v":""},null,{"$f":"'Month 1'!H218+'Month 1'!I218-'Month 1'!J218","v":0},{"$f":"IF(AND(H218=0,I218=0,J218=0),\"\",IF((H218+I218)>0,J218/(H218+I218),J218))","v":""},"",null,{"$f":"U218&C218","v":"0"}]
[{"$f":"Planning!A203","v":"I195"},{"$f":"Planning!B203","v":0},{"$f":"Planning!C203","v":0},{"$f":"Planning!D203","v":0},{"$f":"Planning!E203","v":0},{"$f":"IF(Planning!G203<>0,Planning!G203,\"\")","v":""},{"$f":"Planning!H203","v":0},{"$f":"Planning!L203","v":0},{"$f":"IF(OR(W219=\"1\",AND(W219<>\"1\",G219=Lists!$A$17)),Y219,0)","v":0},null,{"$f":"IF(AND(W219=\"2\",G219<>Lists!$A$17),AA219,Z219)","v":""},"",{"$f":"Planning!M203","v":{"v":0,"d":"0.00"}},{"$f":"'Month 1'!M219+'Month 1'!N219-'Month 1'!O219","v":{"v":0,"d":"0.00"}},null,"","",{"$f":"SUMIFS($J$25:$J$224,$C$25:$C$224,$C219,$G$25:$G$224,Lists!$A$16)","v":0},0,null,"",null,{"$f":"IF(C219=0,\"\",LEFT(INDEX(Lists!$H$5:$H$49,MATCH(C219,Lists!$G$5:$G$49,0),1),1))","v":""},null,{"$f":"'Month 1'!H219+'Month 1'!I219-'Month 1'!J219","v":0},"","",null,"0"]
[{"$f":"Planning!A204","v":"I196"},{"$f":"Planning!B204","v":0},{"$f":"Planning!C204","v":0},{"$f":"Planning!D204","v":0},{"$f":"Planning!E204","v":0},{"$f":"IF(Planning!G204<>0,Planning!G204,\"\")","v":""},{"$f":"Planning!H204","v":0},{"$f":"Planning!L204","v":0},{"$f":"IF(OR(W220=\"1\",AND(W220<>\"1\",G220=Lists!$A$17)),Y220,0)","v":0},null,{"$f":"IF(AND(W220=\"2\",G220<>Lists!$A$17),AA220,Z220)","v":""},"",{"$f":"Planning!M204","v":{"v":0,"d":"0.00"}},{"$f":"'Month 1'!M220+'Month 1'!N220-'Month 1'!O220","v":{"v":0,"d":"0.00"}},null,"","",{"$f":"SUMIFS($J$25:$J$224,$C$25:$C$224,$C220,$G$25:$G$224,Lists!$A$16)","v":0},0,null,"",null,{"$f":"IF(C220=0,\"\",LEFT(INDEX(Lists!$H$5:$H$49,MATCH(C220,Lists!$G$5:$G$49,0),1),1))","v":""},null,{"$f":"'Month 1'!H220+'Month 1'!I220-'Month 1'!J220","v":0},"","",null,"0"]
[{"$f":"Planning!A205","v":"I197"},{"$f":"Planning!B205","v":0},{"$f":"Planning!C205","v":0},{"$f":"Planning!D205","v":0},{"$f":"Planning!E205","v":0},{"$f":"IF(Planning!G205<>0,Planning!G205,\"\")","v":""},{"$f":"Planning!H205","v":0},{"$f":"Planning!L205","v":0},{"$f":"IF(OR(W221=\"1\",AND(W221<>\"1\",G221=Lists!$A$17)),Y221,0)","v":0},null,{"$f":"IF(AND(W221=\"2\",G221<>Lists!$A$17),AA221,Z221)","v":""},"",{"$f":"Planning!M205","v":{"v":0,"d":"0.00"}},{"$f":"'Month 1'!M221+'Month 1'!N221-'Month 1'!O221","v":{"v":0,"d":"0.00"}},null,"","",{"$f":"SUMIFS($J$25:$J$224,$C$25:$C$224,$C221,$G$25:$G$224,Lists!$A$16)","v":0},0,null,"",null,{"$f":"IF(C221=0,\"\",LEFT(INDEX(Lists!$H$5:$H$49,MATCH(C221,Lists!$G$5:$G$49,0),1),1))","v":""},null,{"$f":"'Month 1'!H221+'Month 1'!I221-'Month 1'!J221","v":0},"","",null,"0"]
[{"$f":"Planning!A206","v":"I198"},{"$f":"Planning!B206","v":0},{"$f":"Planning!C206","v":0},{"$f":"Planning!D206","v":0},{"$f":"Planning!E206","v":0},{"$f":"IF(Planning!G206<>0,Planning!G206,\"\")","v":""},{"$f":"Planning!H206","v":0},{"$f":"Planning!L206","v":0},{"$f":"IF(OR(W222=\"1\",AND(W222<>\"1\",G222=Lists!$A$17)),Y222,0)","v":0},null,{"$f":"IF(AND(W222=\"2\",G222<>Lists!$A$17),AA222,Z222)","v":""},"",{"$f":"Planning!M206","v":{"v":0,"d":"0.00"}},{"$f":"'Month 1'!M222+'Month 1'!N222-'Month 1'!O222","v":{"v":0,"d":"0.00"}},null,"","",{"$f":"SUMIFS($J$25:$J$224,$C$25:$C$224,$C222,$G$25:$G$224,Lists!$A$16)","v":0},0,null,"",null,{"$f":"IF(C222=0,\"\",LEFT(INDEX(Lists!$H$5:$H$49,MATCH(C222,Lists!$G$5:$G$49,0),1),1))","v":""},null,{"$f":"'Month 1'!H222+'Month 1'!I222-'Month 1'!J222","v":0},"","",null,"0"]
[{"$f":"Planning!A207","v":"I199"},{"$f":"Planning!B207","v":0},{"$f":"Planning!C207","v":0},{"$f":"Planning!D207","v":0},{"$f":"Planning!E207","v":0},{"$f":"IF(Planning!G207<>0,Planning!G207,\"\")","v":""},{"$f":"Planning!H207","v":0},{"$f":"Planning!L207","v":0},{"$f":"IF(OR(W223=\"1\",AND(W223<>\"1\",G223=Lists!$A$17)),Y223,0)","v":0},null,{"$f":"IF(AND(W223=\"2\",G223<>Lists!$A$17),AA223,Z223)","v":""},"",{"$f":"Planning!M207","v":{"v":0,"d":"0.00"}},{"$f":"'Month 1'!M223+'Month 1'!N223-'Month 1'!O223","v":{"v":0,"d":"0.00"}},null,"","",{"$f":"SUMIFS($J$25:$J$224,$C$25:$C$224,$C223,$G$25:$G$224,Lists!$A$16)","v":0},0,null,"",null,{"$f":"IF(C223=0,\"\",LEFT(INDEX(Lists!$H$5:$H$49,MATCH(C223,Lists!$G$5:$G$49,0),1),1))","v":""},null,{"$f":"'Month 1'!H223+'Month 1'!I223-'Month 1'!J223","v":0},"","",null,"0"]
[{"$f":"Planning!A208","v":"I200"},{"$f":"Planning!B208","v":0},{"$f":"Planning!C208","v":0},{"$f":"Planning!D208","v":0},{"$f":"Planning!E208","v":0},{"$f":"IF(Planning!G208<>0,Planning!G208,\"\")","v":""},{"$f":"Planning!H208","v":0},{"$f":"Planning!L208","v":0},{"$f":"IF(OR(W224=\"1\",AND(W224<>\"1\",G224=Lists!$A$17)),Y224,0)","v":0},null,{"$f":"IF(AND(W224=\"2\",G224<>Lists!$A$17),AA224,Z224)","v":""},"",{"$f":"Planning!M208","v":{"v":0,"d":"0.00"}},{"$f":"'Month 1'!M224+'Month 1'!N224-'Month 1'!O224","v":{"v":0,"d":"0.00"}},null,"","",{"$f":"SUMIFS($J$25:$J$224,$C$25:$C$224,$C224,$G$25:$G$224,Lists!$A$16)","v":0},0,null,"",null,{"$f":"IF(C224=0,\"\",LEFT(INDEX(Lists!$H$5:$H$49,MATCH(C224,Lists!$G$5:$G$49,0),1),1))","v":""},null,{"$f":"'Month 1'!H224+'Month 1'!I224-'Month 1'!J224","v":0},"","",null,"0"]
[{"$nulls":20},".",null,".",null,".",".",".",null,"."]
[]
[{"$f":"Setup!AN6","v":"PR Dashboard indicators"}]
[{"$f":"Setup!AP8","v":"Financial reports planned"},{"$nulls":6},1]
[{"$f":"Setup!AP9","v":"Financial reports overdue"},{"$nulls":6},0]
[{"$f":"Setup!AP10","v":0}]
[{"$f":"Setup!AP11","v":0}]
[{"$f":"Setup!AP12","v":0}]
[{"$f":"Setup!AP13","v":0}]
[{"$f":"Setup!AP14","v":0}]
[{"$f":"Setup!AP15","v":"Supervision actions recommended"},{"$nulls":6},0]
[{"$f":"Setup!AP16","v":"Supervision recommendations past due"},{"$nulls":6},0]
[{"$f":"Setup!AP17","v":"Programmatic reports planned"},{"$nulls":6},1]
[{"$f":"Setup!AP18","v":"Programmatic reports past due"},{"$nulls":6},1]
[{"$f":"Setup!AP19","v":0}]
[{"$f":"Setup!AP20","v":0}]
[{"$f":"Setup!AP21","v":0}]
[{"$f":"Setup!AP22","v":0}]
[{"$f":"Setup!AP23","v":0}]
[{"$f":"Setup!AP24","v":0}]
[{"$f":"Setup!AP25","v":0}]
[{"$f":"Setup!AP26","v":0}]
[{"$f":"Setup!AP27","v":0}]
[{"$f":"Setup!AP28","v":0}]
[{"$f":"Setup!AP29","v":0}]
[{"$f":"Setup!AP30","v":0}]
[{"$f":"Setup!AP31","v":0}]
[{"$f":"Setup!AP32","v":0}]
[{"$f":"Setup!AP33","v":0}]
[{"$f":"Setup!AP34","v":0}]
[{"$f":"Setup!AP35","v":0}]
[{"$f":"Setup!AP36","v":0}]
[{"$f":"Setup!AP37","v":0}]
[{"$f":"Setup!AP38","v":0}]
[{"$f":"Setup!AP39","v":"Actual stock level - PS39 - Product 1: Efavirenz, 600 mg, 30 tablets"},{"$nulls":6},7]
[{"$f":"Setup!AP40","v":"Actual stock level - PS40 - Product 2: Efavirenz, 200 mg, 90 capsules"},{"$nulls":6},8]
[{"$f":"Setup!AP41","v":"Actual stock level - PS41 - Product 3: TDF/3TC, 300/300 mg, 30 tablets"},{"$nulls":6},9]
[{"$f":"Setup!AP42","v":"Actual stock level - PS42 - Product 4: 3TC, 10 mg/ml, oral solution 240 ml"},{"$nulls":6},10]
[{"$f":"Setup!AP43","v":0}]
[{"$f":"Setup!AP44","v":0}]
[{"$f":"Setup!AP45","v":0}]
[{"$f":"Setup!AP46","v":0}]
[{"$f":"Setup!AP47","v":0}]
[{"$f":"Setup!AP48","v":0}]
[{"$f":"Setup!AP49","v":0}]
[{"$f":"Setup!AP50","v":0}]
[{"$f":"Setup!AP51","v":0}]
[{"$f":"Setup!AP52","v":0}]
[{"$f":"Setup!AP53","v":0}]
[{"$f":"Setup!AP54","v":0}]
[{"$f":"Setup!AP55","v":0}]
[{"$f":"Setup!AP56","v":0}]
[{"$f":"Setup!AP57","v":0}]
[{"$f":"Setup!AP58","v":0}]
[{"$f":"Setup!AP59","v":0}]
[{"$f":"Setup!AP60","v":0}]
[{"$f":"Setup!AP61","v":0}]
[{"$f":"Setup!AP62","v":0}]
[{"$f":"Setup!AP63","v":0}]
[{"$f":"Setup!AP64","v":0}]
[{"$f":"Setup!AP65","v":0}]
[{"$f":"Setup!AP66","v":0}]
[{"$f":"Setup!AP67","v":0}]
[{"$f":"Setup!AP68","v":0}]
[{"$f":"Setup!AP69","v":0}]
[]
[]
[{"$f":"Translations!A138","v":"Narrative comments from results (to be filled by the Subrecipient)"}]
{"$rows_empty":43}
[{"$f":"Translations!A139","v":"This section is filled in exclusively by PR's programmatic and financial monitors."}]
[]
[{"$f":"Translations!A150","v":"PROGRAMMATIC"},null,null,{"$f":"Translations!A140","v":"Name of person conducting programmatic verification"}]
[]
[]
[{"$nulls":3},{"$f":"Translations!A141","v":"Contextual details"}]
[]
[]
[]
[]
[]
[]
[{"$nulls":3},{"$f":"Translations!A151","v":"Description of identified problem(s)"}]
[]
[]
[]
[]
[]
[]
[{"$nulls":3},{"$f":"Translations!A152","v":"Recommendations and actions to be taken"}]
[{"$nulls":3},"1)"]
[{"$nulls":3},"2)"]
[{"$nulls":3},"3)"]
[{"$nulls":3},"4)"]
[{"$nulls":3},"5)"]
[]
[]
[]
[{"$f":"Translations!A154","v":"FINANCIAL"},null,null,{"$f":"Translations!A153","v":"Name of person conducting financial verification"}]
[]
[]
[{"$nulls":3},{"$f":"Translations!A141","v":"Contextual details"}]
{"$rows_empty":7}
[{"$nulls":3},{"$f":"Translations!A151","v":"Description of identified problem(s)"}]
[]
[]
[]
[]
[]
[]
[{"$nulls":3},{"$f":"Translations!A152","v":"Recommendations and actions to be taken"}]
[{"$nulls":3},"1)"]
[{"$nulls":3},"2)"]
[{"$nulls":3},"3)"]
[{"$nulls":3},"4)"]
[{"$nulls":3},"5)"]
[]
[]
[]
[]
[]
[{"$f":"Translations!A321","v":"To be completed by the PR"},{"$nulls":6},{"$f":"Translations!A324","v":"To be completed by the SR"}]
[{"$f":"Translations!A322","v":"Position"},{"$nulls":3},{"$f":"Translations!A323","v":"Signature"},null,null,{"$f":"Translations!A322","v":"Position"},null,{"$f":"Translations!A323","v":"Signature"}]

{"sheet":"Month 3","index":14,"n_rows":394,"n_cols":29,"rows_kept":394,"hidden":true,"merged":[[1,4,1,13],[1,14,1,15],[2,4,2,13],[2,14,3,15],[3,4,3,13],[4,4,4,13],[4,22,16,26],[5,9,5,15],[6,0,15,7],[6,9,7,15],[9,9,9,10],[9,12,9,15],[10,9,11,10],[10,12,11,15],[13,9,15,13],[13,14,13,15],[14,14,15,15],[16,6,16,7],[17,3,17,4],[17,7,17,8],[17,9,17,10],[17,12,17,13],[17,14,17,15],[18,7,18,10],[18,12,18,15],[18,24,18,26],[19,0,20,0],[19,1,20,1],[19,2,20,2],[19,3,20,3],[19,4,20,4],[19,5,20,5],[19,7,20,7],[19,8,20,8],[19,9,20,9],[19,10,20,10],[19,12,20,12],[19,13,20,13],[19,14,20,14],[19,15,20,15],[19,17,19,18],[19,20,20,20],[19,22,20,22],[19,24,20,24],[19,25,20,25],[19,26,20,26],[19,28,20,28],[226,0,226,7],[227,0,227,6],[228,0,228,6],[229,0,229,6],[230,0,230,6],[231,0,231,6],[232,0,232,6],[233,0,233,6],[234,0,234,6],[235,0,235,6],[236,0,236,6],[237,0,237,6],[238,0,238,6],[239,0,239,6],[240,0,240,6],[241,0,241,6],[242,0,242,6],[243,0,243,6],[244,0,244,6],[245,0,245,6],[246,0,246,6],[247,0,247,6],[248,0,248,6],[249,0,249,6],[250,0,250,6],[251,0,251,6],[252,0,252,6],[253,0,253,6],[254,0,254,6],[255,0,255,6],[256,0,256,6],[257,0,257,6],[258,0,258,6],[259,0,259,6],[260,0,260,6],[261,0,261,6],[262,0,262,6],[263,0,263,6],[264,0,264,6],[265,0,265,6],[266,0,266,6],[267,0,267,6],[268,0,268,6],[269,0,269,6],[270,0,270,6],[271,0,271,6],[272,0,272,6],[273,0,273,6],[274,0,274,6],[275,0,275,6],[276,0,276,6],[277,0,277,6],[278,0,278,6],[279,0,279,6],[280,0,280,6],[281,0,281,6],[282,0,282,6],[283,0,283,6],[284,0,284,6],[285,0,285,6],[286,0,286,6],[287,0,287,6],[288,0,288,6],[291,0,291,15],[292,0,333,15],[335,0,335,15],[337,0,360,0],[337,14,337,15],[338,3,338,4],[338,14,338,15],[341,3,345,15],[348,3,352,15],[355,3,355,15],[356,3,356,15],[357,3,357,15],[358,3,358,15],[359,3,359,15],[363,0,387,0],[363,14,363,15],[364,3,364,4],[364,14,364,15],[367,3,371,15],[375,3,379,15],[382,3,382,15],[383,3,383,15],[384,3,384,15],[385,3,385,15],[386,3,386,15],[392,0,392,4],[392,7,392,12],[393,0,393,3],[393,7,393,8],[393,9,393,12],[394,0,394,3],[394,7,394,8],[394,9,394,12],[395,0,395,3],[395,7,395,8],[395,9,395,12],[396,0,396,3],[396,7,396,8],[396,9,396,12],[397,0,397,3],[397,7,397,8],[397,9,397,12]]}
[]
["Month 3",{"$nulls":3},{"$f":"Translations!A80","v":"SR Management Tool"},{"$nulls":9},{"$f":"Translations!A129","v":"SCORE"}]
[{"$nulls":4},{"$f":"Setup!H11","v":"Direct Gender Partnership (DGP)"},{"$nulls":9},{"$f":"K23","v":{"v":0.9500516325727774,"d":"95.01%"}}]
[{"$nulls":4},{"$f":" Setup!H14 & \"  (\" & Setup!H13 & \")\" & \"  (\" & Setup!H15 & \")\"","v":"DMR-202-G01-H-00  (January  2016 - December 2016)  (HIV / AIDS)"}]
[{"$nulls":4},{"$f":"Setup!AB10 & \"  (\" & Setup!H16 & \")\"","v":"March  ($ - USD)"},{"$nulls":17},"A. Se colocará lo pendiente (Y) en (I) siempre que (W) sea 1. Estandar o que (W) sea diferente de 1. sin embargo la actividad (G) NO contribuya al indicador.\n\nB. En la columna % Logro (K) se colocará siempre el Logro 1. Estandar (Z). Solamente se colocará el Logro 2. Inverso (AA) cuando (W) sea 2 y (G) sea diferente de 2. NO... es decir, el valor inverso va para las actvividades que contribuyan al indicador G = 1. SI y para el Indicador en si G = 0... por eso se pregunta por G diferente de 2. NO.. para incluir los 1. SI y a los 0\n\n"]
[{"$f":"Setup!G19","v":"Details of programatic indicators"},{"$nulls":8},{"$f":"Setup!G17","v":"Key population"}]
[{"$f":"Setup!H19","v":"# PLHIV that initiated ARV with CD4 count <200\n# new HIV+ enrolled in care services \n# aged 10-24 yrs reached by HIV life skills ed. in school "},{"$nulls":8},{"$f":"Setup!H17","v":"Sex Workers - Migrants - Women"}]
[]
[]
[{"$nulls":9},{"$f":"Translations!A119","v":"Report date"},null,null,{"$f":"Translations!A130","v":"Reported by"}]
[{"$nulls":9},"2016-04-13",null,null,"William Brown"]
[]
[]
[{"$nulls":9},{"$f":"Translations!A132","v":"Note: Enter disubursment ammount here if the PR made a disbursment this month. Leave blank if no disbursment was made."},{"$nulls":4},{"$f":"Translations!A131","v":"Disbursement"}]
[{"$nulls":14},{"v":0,"d":"0.00"}]
[]
[]
[{"$nulls":3},{"$f":"Translations!A233","v":"Input data in spaces with this color"},{"$nulls":3},{"$f":"Translations!A120","v":"Date of verification"},null,"2016-04-15",null,null,{"$f":"Translations!A120","v":"Date of verification"},null,"2016-04-15"]
[{"$nulls":7},{"$f":"Translations!A133","v":"Programmatic aspects"},{"$nulls":4},{"$f":"Translations!A134","v":"Financial aspects"},{"$nulls":9},"COMPORTAMIENTO",null,"Sólo en el Aspecto Programático"]
[{"$f":"Translations!A88","v":"Item"},"Tipo de Ítem","ID Enlace",{"$f":"Translations!A91","v":"Activity code"},{"$f":"Translations!A92","v":"Indicator / Activity"},{"$f":"Translations!A79","v":"TGF costs groups"},null,{"$f":"Translations!A135","v":"Monthly target"},{"$f":"Translations!A136","v":"Balance from previous period"},{"$f":"Translations!A137","v":"Results "},{"$f":"Translations!A108","v":"Result %"},null,{"$f":"Translations!$A$360","v":"Monthly budget"},{"$f":"Translations!A136","v":"Balance from previous period"},{"$f":"Translations!$A$361","v":"Monthly expenditure"},{"$f":"Translations!A108","v":"Result %"},null,"Sumatorias Indicadores",null,null,"Indicador =1 Actividad = 2",null,"1. Estandar\n2. Inverso\n3. No Acumula",null,"Pendiente Mes Anterior\n SIN CONDICION","Logro\n1. Estandar","Logro\n2. Inverso",null,"TAG \nPerformance"]
[{"$nulls":17},"PROG","FIN"]
[]
[{"$f":"Translations!A109","v":"Totals"},{"$nulls":6},"-","-","-",{"$f":"IFERROR(AVERAGEIF(L25:L224,\"<> \"),\"\")","v":{"v":0.9500516325727774,"d":"95.01%"}},null,{"$f":"SUMIFS(M25:M224,$G$25:$G$224,\"<>0\")","v":{"v":205600,"d":"205,600.00"}},{"$f":"SUMIFS(N25:N224,$G$25:$G$224,\"<>0\")","v":{"v":21645,"d":"21,645.00"}},{"$f":"SUMIFS(O25:O224,$G$25:$G$224,\"<>0\")","v":{"v":218095,"d":"218,095.00"}},{"$f":"IFERROR(AVERAGEIF(Q25:Q224,\"<> \"),\"\")","v":{"v":0.9693623786189327,"d":"96.94%"}}]
[]
[{"$f":"Planning!A9","v":"I001"},{"$f":"Planning!B9","v":"1. Indicator"},{"$f":"Planning!C9","v":"Pr68"},{"$f":"Planning!D9","v":1},{"$f":"Planning!E9","v":"[Pr68] # PLHIV that initiated ARV with CD4 count <200 Target [2. Inverse]"},{"$f":"IF(Planning!G9<>0,Planning!G9,\"\")","v":""},{"$f":"Planning!H9","v":0},{"$f":"Planning!O9","v":200},{"$f":"IF(OR(W25=\"1\",AND(W25<>\"1\",G25=Lists!$A$17)),Y25,0)","v":0},{"$f":"R25","v":205},{"$f":"IF(AND(W25=\"2\",G25<>Lists!$A$17),AA25,Z25)","v":{"v":0.975609756097561,"d":"97.56%"}},{"$f":"IF($U25=ExcluirDelPLogro,\"\",IF(AND(H25=0,I25=0,J25=0),\"\",K25))","v":0.975609756097561},{"$f":"Planning!P9","v":{"v":54700,"d":"54,700.00"}},{"$f":"'Month 2'!M25+'Month 2'!N25-'Month 2'!O25","v":{"v":5095,"d":"5,095.00"}},{"$f":"S25","v":{"v":57795,"d":"57,795.00"}},{"$f":"IF(AND(M25=0,N25=0,O25=0),\"\",IF((M25+N25)>0,O25/(M25+N25),O25))","v":{"v":0.9665523873233548,"d":"96.66%"}},{"$f":"IF($U25=ExcluirDelPLogro,\"\",IF(AND(M25=0,N25=0,O25=0),\"\",P25))","v":0.9665523873233548},{"$f":"SUMIFS($J$25:$J$224,$C$25:$C$224,$C25,$G$25:$G$224,Lists!$A$16)","v":205},{"$f":"SUMIFS($O$25:$O$224,$C$25:$C$224,$C25,$G$25:$G$224,\"<>0\")","v":57795},null,{"$f":"IF(B25=0,\"\",IF(LEFT(B25,1)=\"1\",\"1\",\"2\"))","v":"1"},null,{"$f":"IF(C25=0,\"\",LEFT(INDEX(Lists!$H$5:$H$49,MATCH(C25,Lists!$G$5:$G$49,0),1),1))","v":"2"},null,{"$f":"'Month 2'!H25+'Month 2'!I25-'Month 2'!J25","v":1},{"$f":"IF(AND(H25=0,I25=0,J25=0),\"\",IF((H25+I25)>0,J25/(H25+I25),J25))","v":1.025},{"$f":"IF(AND(H25=0,I25=0,J25=0),\"\",IF(J25>0,H25/J25,0))","v":0.975609756097561},null,{"$f":"U25&C25","v":"1Pr68"}]
[{"$f":"Planning!A10","v":"I002"},{"$f":"Planning!B10","v":"2. Activity: Contributing"},{"$f":"Planning!C10","v":"Pr68"},{"$f":"Planning!D10","v":1.2},{"$f":"Planning!E10","v":"PLHIV reimbursed for transportation costs to HIV testing and treatment centres\n"},{"$f":"IF(Planning!G10<>0,Planning!G10,\"\")","v":"12. Living support to client/ target population "},{"$f":"Planning!H10","v":"1. YES"},{"$f":"Planning!O10","v":200},{"$f":"IF(OR(W26=\"1\",AND(W26<>\"1\",G26=Lists!$A$17)),Y26,0)","v":0},205,{"$f":"IF(AND(W26=\"2\",G26<>Lists!$A$17),AA26,Z26)","v":{"v":0.975609756097561,"d":"97.56%"}},"",{"$f":"Planning!P10","v":{"v":45000,"d":"45,000.00"}},{"$f":"'Month 2'!M26+'Month 2'!N26-'Month 2'!O26","v":{"v":5000,"d":"5,000.00"}},{"v":48000,"d":"48,000.00"},{"v":0.96,"d":"96.00%"},"",{"$f":"SUMIFS($J$25:$J$224,$C$25:$C$224,$C26,$G$25:$G$224,Lists!$A$16)","v":205},{"$f":"SUMIFS($O$25:$O$224,$C$25:$C$224,$C26,$G$25:$G$224,\"<>0\")","v":57795},null,{"$f":"IF(B26=0,\"\",IF(LEFT(B26,1)=\"1\",\"1\",\"2\"))","v":"2"},null,{"$f":"IF(C26=0,\"\",LEFT(INDEX(Lists!$H$5:$H$49,MATCH(C26,Lists!$G$5:$G$49,0),1),1))","v":"2"},null,{"$f":"'Month 2'!H26+'Month 2'!I26-'Month 2'!J26","v":1},{"$f":"IF(AND(H26=0,I26=0,J26=0),\"\",IF((H26+I26)>0,J26/(H26+I26),J26))","v":1.025},0.975609756097561,null,{"$f":"U26&C26","v":"2Pr68"}]
[{"$f":"Planning!A11","v":"I003"},{"$f":"Planning!B11","v":"3. Activity: Non-Contributing"},{"$f":"Planning!C11","v":"Pr68"},{"$f":"Planning!D11","v":1.3},{"$f":"Planning!E11","v":"Communication materials produced to educate HIV+ patients about HIV treatment (Migrants and Sexual Workers). \n\n"},{"$f":"IF(Planning!G11<>0,Planning!G11,\"\")","v":"10. Communication material and publications"},{"$f":"Planning!H11","v":"2. NO"},{"$f":"Planning!O11","v":25},{"$f":"IF(OR(W27=\"1\",AND(W27<>\"1\",G27=Lists!$A$17)),Y27,0)","v":5},20,{"$f":"IF(AND(W27=\"2\",G27<>Lists!$A$17),AA27,Z27)","v":{"v":0.6666666666666666,"d":"66.67%"}},"",{"$f":"Planning!P11","v":{"v":700,"d":"700.00"}},{"$f":"'Month 2'!M27+'Month 2'!N27-'Month 2'!O27","v":{"v":70,"d":"70.00"}},{"v":770,"d":"770.00"},{"v":1,"d":"100.00%"},"",{"$f":"SUMIFS($J$25:$J$224,$C$25:$C$224,$C27,$G$25:$G$224,Lists!$A$16)","v":205},57795,null,"2",null,{"$f":"IF(C27=0,\"\",LEFT(INDEX(Lists!$H$5:$H$49,MATCH(C27,Lists!$G$5:$G$49,0),1),1))","v":"2"},null,{"$f":"'Month 2'!H27+'Month 2'!I27-'Month 2'!J27","v":5},0.6666666666666666,1.25,null,"2Pr68"]
[{"$f":"Planning!A12","v":"I004"},{"$f":"Planning!B12","v":"3. Activity: Non-Contributing"},{"$f":"Planning!C12","v":"Pr68"},{"$f":"Planning!D12","v":1.4},{"$f":"Planning!E12","v":"Supervisory visits to verify the appropriate application of testing and treatment protocols at centers. "},{"$f":"IF(Planning!G12<>0,Planning!G12,\"\")","v":"11. Programme administration costs"},{"$f":"Planning!H12","v":"2. NO"},{"$f":"Planning!O12","v":40},{"$f":"IF(OR(W28=\"1\",AND(W28<>\"1\",G28=Lists!$A$17)),Y28,0)","v":4},44,{"$f":"IF(AND(W28=\"2\",G28<>Lists!$A$17),AA28,Z28)","v":{"v":1,"d":"100.00%"}},"",{"$f":"Planning!P12","v":{"v":9000,"d":"9,000.00"}},{"$f":"'Month 2'!M28+'Month 2'!N28-'Month 2'!O28","v":{"v":25,"d":"25.00"}},{"v":9025,"d":"9,025.00"},{"v":1,"d":"100.00%"},"",{"$f":"SUMIFS($J$25:$J$224,$C$25:$C$224,$C28,$G$25:$G$224,Lists!$A$16)","v":205},57795,null,"2",null,{"$f":"IF(C28=0,\"\",LEFT(INDEX(Lists!$H$5:$H$49,MATCH(C28,Lists!$G$5:$G$49,0),1),1))","v":"2"},null,{"$f":"'Month 2'!H28+'Month 2'!I28-'Month 2'!J28","v":4},1,0.9090909090909091,null,"2Pr68"]
[{"$f":"Planning!A13","v":"I005"},{"$f":"Planning!B13","v":"1. Indicator"},{"$f":"Planning!C13","v":"Pr72"},{"$f":"Planning!D13","v":2},{"$f":"Planning!E13","v":"[Pr72] # new HIV+ enrolled in care services Target [3. Non-Cumulative]"},{"$f":"IF(Planning!G13<>0,Planning!G13,\"\")","v":""},{"$f":"Planning!H13","v":0},{"$f":"Planning!O13","v":124},{"$f":"IF(OR(W29=\"1\",AND(W29<>\"1\",G29=Lists!$A$17)),Y29,0)","v":0},{"$f":"R29","v":110},{"$f":"IF(AND(W29=\"2\",G29<>Lists!$A$17),AA29,Z29)","v":{"v":0.8870967741935484,"d":"88.71%"}},0.8870967741935484,{"$f":"Planning!P13","v":{"v":27900,"d":"27,900.00"}},{"$f":"'Month 2'!M29+'Month 2'!N29-'Month 2'!O29","v":{"v":2800,"d":"2,800.00"}},{"$f":"S29","v":{"v":30000,"d":"30,000.00"}},{"v":0.9771986970684039,"d":"97.72%"},0.9771986970684039,{"$f":"SUMIFS($J$25:$J$224,$C$25:$C$224,$C29,$G$25:$G$224,Lists!$A$16)","v":110},30000,null,"1",null,{"$f":"IF(C29=0,\"\",LEFT(INDEX(Lists!$H$5:$H$49,MATCH(C29,Lists!$G$5:$G$49,0),1),1))","v":"3"},null,{"$f":"'Month 2'!H29+'Month 2'!I29-'Month 2'!J29","v":9},0.8870967741935484,1.1272727272727272,null,"1Pr72"]
[{"$f":"Planning!A14","v":"I006"},{"$f":"Planning!B14","v":"2. Activity: Contributing"},{"$f":"Planning!C14","v":"Pr72"},{"$f":"Planning!D14","v":2.1},{"$f":"Planning!E14","v":"Enrollment of  newly diagnosed HIV+ patients for home visits to monitor use of ARV."},{"$f":"IF(Planning!G14<>0,Planning!G14,\"\")","v":"12. Living support to client/ target population "},{"$f":"Planning!H14","v":"1. YES"},{"$f":"Planning!O14","v":124},{"$f":"IF(OR(W30=\"1\",AND(W30<>\"1\",G30=Lists!$A$17)),Y30,0)","v":0},110,{"$f":"IF(AND(W30=\"2\",G30<>Lists!$A$17),AA30,Z30)","v":{"v":0.8870967741935484,"d":"88.71%"}},"",{"$f":"Planning!P14","v":{"v":27900,"d":"27,900.00"}},{"$f":"'Month 2'!M30+'Month 2'!N30-'Month 2'!O30","v":{"v":2800,"d":"2,800.00"}},{"v":30000,"d":"30,000.00"},{"v":0.9771986970684039,"d":"97.72%"},"",{"$f":"SUMIFS($J$25:$J$224,$C$25:$C$224,$C30,$G$25:$G$224,Lists!$A$16)","v":110},30000,null,"2",null,{"$f":"IF(C30=0,\"\",LEFT(INDEX(Lists!$H$5:$H$49,MATCH(C30,Lists!$G$5:$G$49,0),1),1))","v":"3"},null,{"$f":"'Month 2'!H30+'Month 2'!I30-'Month 2'!J30","v":9},0.8870967741935484,1.1272727272727272,null,"2Pr72"]
[{"$f":"Planning!A15","v":"I007"},{"$f":"Planning!B15","v":"1. Indicator"},{"$f":"Planning!C15","v":"Pr74"},{"$f":"Planning!D15","v":3},{"$f":"Planning!E15","v":"[Pr74] # aged 10-24 yrs reached by HIV life skills ed. in school  Target [1. Standard]"},{"$f":"IF(Planning!G15<>0,Planning!G15,\"\")","v":""},{"$f":"Planning!H15","v":0},{"$f":"Planning!O15","v":400},{"$f":"IF(OR(W31=\"1\",AND(W31<>\"1\",G31=Lists!$A$17)),Y31,0)","v":80},{"$f":"R31","v":450},{"$f":"IF(AND(W31=\"2\",G31<>Lists!$A$17),AA31,Z31)","v":{"v":0.9375,"d":"93.75%"}},0.9375,{"$f":"Planning!P15","v":{"v":90000,"d":"90,000.00"}},{"$f":"'Month 2'!M31+'Month 2'!N31-'Month 2'!O31","v":{"v":13750,"d":"13,750.00"}},{"$f":"S31","v":{"v":97500,"d":"97,500.00"}},{"v":0.9397590361445783,"d":"93.98%"},0.9397590361445783,{"$f":"SUMIFS($J$25:$J$224,$C$25:$C$224,$C31,$G$25:$G$224,Lists!$A$16)","v":450},97500,null,"1",null,{"$f":"IF(C31=0,\"\",LEFT(INDEX(Lists!$H$5:$H$49,MATCH(C31,Lists!$G$5:$G$49,0),1),1))","v":"1"},null,{"$f":"'Month 2'!H31+'Month 2'!I31-'Month 2'!J31","v":80},0.9375,0.8888888888888888,null,"1Pr74"]
[{"$f":"Planning!A16","v":"I008"},{"$f":"Planning!B16","v":"2. Activity: Contributing"},{"$f":"Planning!C16","v":"Pr74"},{"$f":"Planning!D16","v":3.1},{"$f":"Planning!E16","v":"Transportation of students to meetings and conferences for peer education activities"},{"$f":"IF(Planning!G16<>0,Planning!G16,\"\")","v":"2. Travel related costs"},{"$f":"Planning!H16","v":"1. YES"},{"$f":"Planning!O16","v":400},{"$f":"IF(OR(W32=\"1\",AND(W32<>\"1\",G32=Lists!$A$17)),Y32,0)","v":80},450,{"$f":"IF(AND(W32=\"2\",G32<>Lists!$A$17),AA32,Z32)","v":{"v":0.9375,"d":"93.75%"}},"",{"$f":"Planning!P16","v":{"v":90000,"d":"90,000.00"}},{"$f":"'Month 2'!M32+'Month 2'!N32-'Month 2'!O32","v":{"v":13750,"d":"13,750.00"}},{"v":97500,"d":"97,500.00"},{"v":0.9397590361445783,"d":"93.98%"},"",{"$f":"SUMIFS($J$25:$J$224,$C$25:$C$224,$C32,$G$25:$G$224,Lists!$A$16)","v":450},97500,null,"2",null,{"$f":"IF(C32=0,\"\",LEFT(INDEX(Lists!$H$5:$H$49,MATCH(C32,Lists!$G$5:$G$49,0),1),1))","v":"1"},null,{"$f":"'Month 2'!H32+'Month 2'!I32-'Month 2'!J32","v":80},0.9375,0.8888888888888888,null,"2Pr74"]
[{"$f":"Planning!A17","v":"I009"},{"$f":"Planning!B17","v":"1. Indicator"},{"$f":"Planning!C17","v":"OI01"},{"$f":"Planning!D17","v":4},{"$f":"Planning!E17","v":"[OI01] # of new orphans and vulnerable children (0 - 17 yrs) benefiting from  services provided at OVC centers [1. Standard]"},{"$f":"IF(Planning!G17<>0,Planning!G17,\"\")","v":""},{"$f":"Planning!H17","v":0},{"$f":"Planning!O17","v":250},{"$f":"IF(OR(W33=\"1\",AND(W33<>\"1\",G33=Lists!$A$17)),Y33,0)","v":0},{"$f":"R33","v":250},{"$f":"IF(AND(W33=\"2\",G33<>Lists!$A$17),AA33,Z33)","v":{"v":1,"d":"100.00%"}},1,{"$f":"Planning!P17","v":{"v":33000,"d":"33,000.00"}},{"$f":"'Month 2'!M33+'Month 2'!N33-'Month 2'!O33","v":{"v":0,"d":"0.00"}},{"$f":"S33","v":{"v":32800,"d":"32,800.00"}},{"v":0.9939393939393939,"d":"99.39%"},0.9939393939393939,{"$f":"SUMIFS($J$25:$J$224,$C$25:$C$224,$C33,$G$25:$G$224,Lists!$A$16)","v":250},32800,null,"1",null,{"$f":"IF(C33=0,\"\",LEFT(INDEX(Lists!$H$5:$H$49,MATCH(C33,Lists!$G$5:$G$49,0),1),1))","v":"1"},null,{"$f":"'Month 2'!H33+'Month 2'!I33-'Month 2'!J33","v":0},1,1,null,"1OI01"]
[{"$f":"Planning!A18","v":"I010"},{"$f":"Planning!B18","v":"3. Activity: Non-Contributing"},{"$f":"Planning!C18","v":"OI01"},{"$f":"Planning!D18","v":4.1},{"$f":"Planning!E18","v":"# of OVC centers established and fully equipped  "},{"$f":"IF(Planning!G18<>0,Planning!G18,\"\")","v":"8. Infrastructure "},{"$f":"Planning!H18","v":"2. NO"},{"$f":"Planning!O18","v":1},{"$f":"IF(OR(W34=\"1\",AND(W34<>\"1\",G34=Lists!$A$17)),Y34,0)","v":0},1,{"$f":"IF(AND(W34=\"2\",G34<>Lists!$A$17),AA34,Z34)","v":{"v":1,"d":"100.00%"}},"",{"$f":"Planning!P18","v":{"v":4000,"d":"4,000.00"}},{"$f":"'Month 2'!M34+'Month 2'!N34-'Month 2'!O34","v":{"v":0,"d":"0.00"}},{"v":4000,"d":"4,000.00"},{"v":1,"d":"100.00%"},"",{"$f":"SUMIFS($J$25:$J$224,$C$25:$C$224,$C34,$G$25:$G$224,Lists!$A$16)","v":250},32800,null,"2",null,{"$f":"IF(C34=0,\"\",LEFT(INDEX(Lists!$H$5:$H$49,MATCH(C34,Lists!$G$5:$G$49,0),1),1))","v":"1"},null,{"$f":"'Month 2'!H34+'Month 2'!I34-'Month 2'!J34","v":0},1,1,null,"2OI01"]
[{"$f":"Planning!A19","v":"I011"},{"$f":"Planning!B19","v":"2. Activity: Contributing"},{"$f":"Planning!C19","v":"OI01"},{"$f":"Planning!D19","v":4.2},{"$f":"Planning!E19","v":"# of OVC registered at centres"},{"$f":"IF(Planning!G19<>0,Planning!G19,\"\")","v":"12. Living support to client/ target population "},{"$f":"Planning!H19","v":"1. YES"},{"$f":"Planning!O19","v":250},{"$f":"IF(OR(W35=\"1\",AND(W35<>\"1\",G35=Lists!$A$17)),Y35,0)","v":0},250,{"$f":"IF(AND(W35=\"2\",G35<>Lists!$A$17),AA35,Z35)","v":{"v":1,"d":"100.00%"}},"",{"$f":"Planning!P19","v":{"v":25000,"d":"25,000.00"}},{"$f":"'Month 2'!M35+'Month 2'!N35-'Month 2'!O35","v":{"v":0,"d":"0.00"}},{"v":25000,"d":"25,000.00"},{"v":1,"d":"100.00%"},"",{"$f":"SUMIFS($J$25:$J$224,$C$25:$C$224,$C35,$G$25:$G$224,Lists!$A$16)","v":250},32800,null,"2",null,{"$f":"IF(C35=0,\"\",LEFT(INDEX(Lists!$H$5:$H$49,MATCH(C35,Lists!$G$5:$G$49,0),1),1))","v":"1"},null,{"$f":"'Month 2'!H35+'Month 2'!I35-'Month 2'!J35","v":0},1,1,null,"2OI01"]
[{"$f":"Planning!A20","v":"I012"},{"$f":"Planning!B20","v":"3. Activity: Non-Contributing"},{"$f":"Planning!C20","v":"OI01"},{"$f":"Planning!D20","v":4.3},{"$f":"Planning!E20","v":"# of meals provided at the OVC centers "},{"$f":"IF(Planning!G20<>0,Planning!G20,\"\")","v":"12. Living support to client/ target population "},{"$f":"Planning!H20","v":"2. NO"},{"$f":"Planning!O20","v":{"v":1000,"d":"1,000"}},{"$f":"IF(OR(W36=\"1\",AND(W36<>\"1\",G36=Lists!$A$17)),Y36,0)","v":0},980,{"$f":"IF(AND(W36=\"2\",G36<>Lists!$A$17),AA36,Z36)","v":{"v":0.98,"d":"98.00%"}},"",{"$f":"Planning!P20","v":{"v":4000,"d":"4,000.00"}},{"$f":"'Month 2'!M36+'Month 2'!N36-'Month 2'!O36","v":{"v":0,"d":"0.00"}},{"v":3800,"d":"3,800.00"},{"v":0.95,"d":"95.00%"},"",{"$f":"SUMIFS($J$25:$J$224,$C$25:$C$224,$C36,$G$25:$G$224,Lists!$A$16)","v":250},32800,null,"2",null,{"$f":"IF(C36=0,\"\",LEFT(INDEX(Lists!$H$5:$H$49,MATCH(C36,Lists!$G$5:$G$49,0),1),1))","v":"1"},null,{"$f":"'Month 2'!H36+'Month 2'!I36-'Month 2'!J36","v":0},0.98,1.0204081632653061,null,"2OI01"]
[{"$f":"Planning!A21","v":"I013"},{"$f":"Planning!B21","v":0},{"$f":"Planning!C21","v":0},{"$f":"Planning!D21","v":0},{"$f":"Planning!E21","v":0},{"$f":"IF(Planning!G21<>0,Planning!G21,\"\")","v":""},{"$f":"Planning!H21","v":0},{"$f":"Planning!O21","v":0},{"$f":"IF(OR(W37=\"1\",AND(W37<>\"1\",G37=Lists!$A$17)),Y37,0)","v":0},null,{"$f":"IF(AND(W37=\"2\",G37<>Lists!$A$17),AA37,Z37)","v":""},"",{"$f":"Planning!P21","v":{"v":0,"d":"0.00"}},{"$f":"'Month 2'!M37+'Month 2'!N37-'Month 2'!O37","v":{"v":0,"d":"0.00"}},null,"","",{"$f":"SUMIFS($J$25:$J$224,$C$25:$C$224,$C37,$G$25:$G$224,Lists!$A$16)","v":0},0,null,"",null,{"$f":"IF(C37=0,\"\",LEFT(INDEX(Lists!$H$5:$H$49,MATCH(C37,Lists!$G$5:$G$49,0),1),1))","v":""},null,{"$f":"'Month 2'!H37+'Month 2'!I37-'Month 2'!J37","v":0},"","",null,"0"]
[{"$f":"Planning!A22","v":"I014"},{"$f":"Planning!B22","v":0},{"$f":"Planning!C22","v":0},{"$f":"Planning!D22","v":0},{"$f":"Planning!E22","v":0},{"$f":"IF(Planning!G22<>0,Planning!G22,\"\")","v":""},{"$f":"Planning!H22","v":0},{"$f":"Planning!O22","v":0},{"$f":"IF(OR(W38=\"1\",AND(W38<>\"1\",G38=Lists!$A$17)),Y38,0)","v":0},null,{"$f":"IF(AND(W38=\"2\",G38<>Lists!$A$17),AA38,Z38)","v":""},"",{"$f":"Planning!P22","v":{"v":0,"d":"0.00"}},{"$f":"'Month 2'!M38+'Month 2'!N38-'Month 2'!O38","v":{"v":0,"d":"0.00"}},null,"","",{"$f":"SUMIFS($J$25:$J$224,$C$25:$C$224,$C38,$G$25:$G$224,Lists!$A$16)","v":0},0,null,"",null,{"$f":"IF(C38=0,\"\",LEFT(INDEX(Lists!$H$5:$H$49,MATCH(C38,Lists!$G$5:$G$49,0),1),1))","v":""},null,{"$f":"'Month 2'!H38+'Month 2'!I38-'Month 2'!J38","v":0},"","",null,"0"]
[{"$f":"Planning!A23","v":"I015"},{"$f":"Planning!B23","v":0},{"$f":"Planning!C23","v":0},{"$f":"Planning!D23","v":0},{"$f":"Planning!E23","v":0},{"$f":"IF(Planning!G23<>0,Planning!G23,\"\")","v":""},{"$f":"Planning!H23","v":0},{"$f":"Planning!O23","v":0},{"$f":"IF(OR(W39=\"1\",AND(W39<>\"1\",G39=Lists!$A$17)),Y39,0)","v":0},null,{"$f":"IF(AND(W39=\"2\",G39<>Lists!$A$17),AA39,Z39)","v":""},"",{"$f":"Planning!P23","v":{"v":0,"d":"0.00"}},{"$f":"'Month 2'!M39+'Month 2'!N39-'Month 2'!O39","v":{"v":0,"d":"0.00"}},null,"","",{"$f":"SUMIFS($J$25:$J$224,$C$25:$C$224,$C39,$G$25:$G$224,Lists!$A$16)","v":0},0,null,"",null,{"$f":"IF(C39=0,\"\",LEFT(INDEX(Lists!$H$5:$H$49,MATCH(C39,Lists!$G$5:$G$49,0),1),1))","v":""},null,{"$f":"'Month 2'!H39+'Month 2'!I39-'Month 2'!J39","v":0},"","",null,"0"]
[{"$f":"Planning!A24","v":"I016"},{"$f":"Planning!B24","v":0},{"$f":"Planning!C24","v":0},{"$f":"Planning!D24","v":0},{"$f":"Planning!E24","v":0},{"$f":"IF(Planning!G24<>0,Planning!G24,\"\")","v":""},{"$f":"Planning!H24","v":0},{"$f":"Planning!O24","v":0},{"$f":"IF(OR(W40=\"1\",AND(W40<>\"1\",G40=Lists!$A$17)),Y40,0)","v":0},null,{"$f":"IF(AND(W40=\"2\",G40<>Lists!$A$17),AA40,Z40)","v":""},"",{"$f":"Planning!P24","v":{"v":0,"d":"0.00"}},{"$f":"'Month 2'!M40+'Month 2'!N40-'Month 2'!O40","v":{"v":0,"d":"0.00"}},null,"","",{"$f":"SUMIFS($J$25:$J$224,$C$25:$C$224,$C40,$G$25:$G$224,Lists!$A$16)","v":0},0,null,"",null,{"$f":"IF(C40=0,\"\",LEFT(INDEX(Lists!$H$5:$H$49,MATCH(C40,Lists!$G$5:$G$49,0),1),1))","v":""},null,{"$f":"'Month 2'!H40+'Month 2'!I40-'Month 2'!J40","v":0},"","",null,"0"]
[{"$f":"Planning!A25","v":"I017"},{"$f":"Planning!B25","v":0},{"$f":"Planning!C25","v":0},{"$f":"Planning!D25","v":0},{"$f":"Planning!E25","v":0},{"$f":"IF(Planning!G25<>0,Planning!G25,\"\")","v":""},{"$f":"Planning!H25","v":0},{"$f":"Planning!O25","v":0},{"$f":"IF(OR(W41=\"1\",AND(W41<>\"1\",G41=Lists!$A$17)),Y41,0)","v":0},null,{"$f":"IF(AND(W41=\"2\",G41<>Lists!$A$17),AA41,Z41)","v":""},"",{"$f":"Planning!P25","v":{"v":0,"d":"0.00"}},{"$f":"'Month 2'!M41+'Month 2'!N41-'Month 2'!O41","v":{"v":0,"d":"0.00"}},null,"","",{"$f":"SUMIFS($J$25:$J$224,$C$25:$C$224,$C41,$G$25:$G$224,Lists!$A$16)","v":0},0,null,"",null,{"$f":"IF(C41=0,\"\",LEFT(INDEX(Lists!$H$5:$H$49,MATCH(C41,Lists!$G$5:$G$49,0),1),1))","v":""},null,{"$f":"'Month 2'!H41+'Month 2'!I41-'Month 2'!J41","v":0},"","",null,"0"]
[{"$f":"Planning!A26","v":"I018"},{"$f":"Planning!B26","v":0},{"$f":"Planning!C26","v":0},{"$f":"Planning!D26","v":0},{"$f":"Planning!E26","v":0},{"$f":"IF(Planning!G26<>0,Planning!G26,\"\")","v":""},{"$f":"Planning!H26","v":0},{"$f":"Planning!O26","v":0},{"$f":"IF(OR(W42=\"1\",AND(W42<>\"1\",G42=Lists!$A$17)),Y42,0)","v":0},null,{"$f":"IF(AND(W42=\"2\",G42<>Lists!$A$17),AA42,Z42)","v":""},"",{"$f":"Planning!P26","v":{"v":0,"d":"0.00"}},{"$f":"'Month 2'!M42+'Month 2'!N42-'Month 2'!O42","v":{"v":0,"d":"0.00"}},null,"","",{"$f":"SUMIFS($J$25:$J$224,$C$25:$C$224,$C42,$G$25:$G$224,Lists!$A$16)","v":0},0,null,"",null,{"$f":"IF(C42=0,\"\",LEFT(INDEX(Lists!$H$5:$H$49,MATCH(C42,Lists!$G$5:$G$49,0),1),1))","v":""},null,{"$f":"'Month 2'!H42+'Month 2'!I42-'Month 2'!J42","v":0},"","",null,"0"]
[{"$f":"Planning!A27","v":"I019"},{"$f":"Planning!B27","v":0},{"$f":"Planning!C27","v":0},{"$f":"Planning!D27","v":0},{"$f":"Planning!E27","v":0},{"$f":"IF(Planning!G27<>0,Planning!G27,\"\")","v":""},{"$f":"Planning!H27","v":0},{"$f":"Planning!O27","v":0},{"$f":"IF(OR(W43=\"1\",AND(W43<>\"1\",G43=Lists!$A$17)),Y43,0)","v":0},null,{"$f":"IF(AND(W43=\"2\",G43<>Lists!$A$17),AA43,Z43)","v":""},"",{"$f":"Planning!P27","v":{"v":0,"d":"0.00"}},{"$f":"'Month 2'!M43+'Month 2'!N43-'Month 2'!O43","v":{"v":0,"d":"0.00"}},null,"","",{"$f":"SUMIFS($J$25:$J$224,$C$25:$C$224,$C43,$G$25:$G$224,Lists!$A$16)","v":0},0,null,"",null,{"$f":"IF(C43=0,\"\",LEFT(INDEX(Lists!$H$5:$H$49,MATCH(C43,Lists!$G$5:$G$49,0),1),1))","v":""},null,{"$f":"'Month 2'!H43+'Month 2'!I43-'Month 2'!J43","v":0},"","",null,"0"]
[{"$f":"Planning!A28","v":"I020"},{"$f":"Planning!B28","v":0},{"$f":"Planning!C28","v":0},{"$f":"Planning!D28","v":0},{"$f":"Planning!E28","v":0},{"$f":"IF(Planning!G28<>0,Planning!G28,\"\")","v":""},{"$f":"Planning!H28","v":0},{"$f":"Planning!O28","v":0},{"$f":"IF(OR(W44=\"1\",AND(W44<>\"1\",G44=Lists!$A$17)),Y44,0)","v":0},null,{"$f":"IF(AND(W44=\"2\",G44<>Lists!$A$17),AA44,Z44)","v":""},"",{"$f":"Planning!P28","v":{"v":0,"d":"0.00"}},{"$f":"'Month 2'!M44+'Month 2'!N44-'Month 2'!O44","v":{"v":0,"d":"0.00"}},null,"","",{"$f":"SUMIFS($J$25:$J$224,$C$25:$C$224,$C44,$G$25:$G$224,Lists!$A$16)","v":0},0,null,"",null,{"$f":"IF(C44=0,\"\",LEFT(INDEX(Lists!$H$5:$H$49,MATCH(C44,Lists!$G$5:$G$49,0),1),1))","v":""},null,{"$f":"'Month 2'!H44+'Month 2'!I44-'Month 2'!J44","v":0},"","",null,"0"]
[{"$f":"Planning!A29","v":"I021"},{"$f":"Planning!B29","v":0},{"$f":"Planning!C29","v":0},{"$f":"Planning!D29","v":0},{"$f":"Planning!E29","v":0},{"$f":"IF(Planning!G29<>0,Planning!G29,\"\")","v":""},{"$f":"Planning!H29","v":0},{"$f":"Planning!O29","v":0},{"$f":"IF(OR(W45=\"1\",AND(W45<>\"1\",G45=Lists!$A$17)),Y45,0)","v":0},null,{"$f":"IF(AND(W45=\"2\",G45<>Lists!$A$17),AA45,Z45)","v":""},"",{"$f":"Planning!P29","v":{"v":0,"d":"0.00"}},{"$f":"'Month 2'!M45+'Month 2'!N45-'Month 2'!O45","v":{"v":0,"d":"0.00"}},null,"","",{"$f":"SUMIFS($J$25:$J$224,$C$25:$C$224,$C45,$G$25:$G$224,Lists!$A$16)","v":0},0,null,"",null,{"$f":"IF(C45=0,\"\",LEFT(INDEX(Lists!$H$5:$H$49,MATCH(C45,Lists!$G$5:$G$49,0),1),1))","v":""},null,{"$f":"'Month 2'!H45+'Month 2'!I45-'Month 2'!J45","v":0},"","",null,"0"]
[{"$f":"Planning!A30","v":"I022"},{"$f":"Planning!B30","v":0},{"$f":"Planning!C30","v":0},{"$f":"Planning!D30","v":0},{"$f":"Planning!E30","v":0},{"$f":"IF(Planning!G30<>0,Planning!G30,\"\")","v":""},{"$f":"Planning!H30","v":0},{"$f":"Planning!O30","v":0},{"$f":"IF(OR(W46=\"1\",AND(W46<>\"1\",G46=Lists!$A$17)),Y46,0)","v":0},null,{"$f":"IF(AND(W46=\"2\",G46<>Lists!$A$17),AA46,Z46)","v":""},"",{"$f":"Planning!P30","v":{"v":0,"d":"0.00"}},{"$f":"'Month 2'!M46+'Month 2'!N46-'Month 2'!O46","v":{"v":0,"d":"0.00"}},null,"","",{"$f":"SUMIFS($J$25:$J$224,$C$25:$C$224,$C46,$G$25:$G$224,Lists!$A$16)","v":0},0,null,"",null,{"$f":"IF(C46=0,\"\",LEFT(INDEX(Lists!$H$5:$H$49,MATCH(C46,Lists!$G$5:$G$49,0),1),1))","v":""},null,{"$f":"'Month 2'!H46+'Month 2'!I46-'Month 2'!J46","v":0},"","",null,"0"]
[{"$f":"Planning!A31","v":"I023"},{"$f":"Planning!B31","v":0},{"$f":"Planning!C31","v":0},{"$f":"Planning!D31","v":0},{"$f":"Planning!E31","v":0},{"$f":"IF(Planning!G31<>0,Planning!G31,\"\")","v":""},{"$f":"Planning!H31","v":0},{"$f":"Planning!O31","v":0},{"$f":"IF(OR(W47=\"1\",AND(W47<>\"1\",G47=Lists!$A$17)),Y47,0)","v":0},null,{"$f":"IF(AND(W47=\"2\",G47<>Lists!$A$17),AA47,Z47)","v":""},"",{"$f":"Planning!P31","v":{"v":0,"d":"0.00"}},{"$f":"'Month 2'!M47+'Month 2'!N47-'Month 2'!O47","v":{"v":0,"d":"0.00"}},null,"","",{"$f":"SUMIFS($J$25:$J$224,$C$25:$C$224,$C47,$G$25:$G$224,Lists!$A$16)","v":0},0,null,"",null,{"$f":"IF(C47=0,\"\",LEFT(INDEX(Lists!$H$5:$H$49,MATCH(C47,Lists!$G$5:$G$49,0),1),1))","v":""},null,{"$f":"'Month 2'!H47+'Month 2'!I47-'Month 2'!J47","v":0},"","",null,"0"]
[{"$f":"Planning!A32","v":"I024"},{"$f":"Planning!B32","v":0},{"$f":"Planning!C32","v":0},{"$f":"Planning!D32","v":0},{"$f":"Planning!E32","v":0},{"$f":"IF(Planning!G32<>0,Planning!G32,\"\")","v":""},{"$f":"Planning!H32","v":0},{"$f":"Planning!O32","v":0},{"$f":"IF(OR(W48=\"1\",AND(W48<>\"1\",G48=Lists!$A$17)),Y48,0)","v":0},null,{"$f":"IF(AND(W48=\"2\",G48<>Lists!$A$17),AA48,Z48)","v":""},"",{"$f":"Planning!P32","v":{"v":0,"d":"0.00"}},{"$f":"'Month 2'!M48+'Month 2'!N48-'Month 2'!O48","v":{"v":0,"d":"0.00"}},null,"","",{"$f":"SUMIFS($J$25:$J$224,$C$25:$C$224,$C48,$G$25:$G$224,Lists!$A$16)","v":0},0,null,"",null,{"$f":"IF(C48=0,\"\",LEFT(INDEX(Lists!$H$5:$H$49,MATCH(C48,Lists!$G$5:$G$49,0),1),1))","v":""},null,{"$f":"'Month 2'!H48+'Month 2'!I48-'Month 2'!J48","v":0},"","",null,"0"]
[{"$f":"Planning!A33","v":"I025"},{"$f":"Planning!B33","v":0},{"$f":"Planning!C33","v":0},{"$f":"Planning!D33","v":0},{"$f":"Planning!E33","v":0},{"$f":"IF(Planning!G33<>0,Planning!G33,\"\")","v":""},{"$f":"Planning!H33","v":0},{"$f":"Planning!O33","v":0},{"$f":"IF(OR(W49=\"1\",AND(W49<>\"1\",G49=Lists!$A$17)),Y49,0)","v":0},null,{"$f":"IF(AND(W49=\"2\",G49<>Lists!$A$17),AA49,Z49)","v":""},"",{"$f":"Planning!P33","v":{"v":0,"d":"0.00"}},{"$f":"'Month 2'!M49+'Month 2'!N49-'Month 2'!O49","v":{"v":0,"d":"0.00"}},null,"","",{"$f":"SUMIFS($J$25:$J$224,$C$25:$C$224,$C49,$G$25:$G$224,Lists!$A$16)","v":0},0,null,"",null,{"$f":"IF(C49=0,\"\",LEFT(INDEX(Lists!$H$5:$H$49,MATCH(C49,Lists!$G$5:$G$49,0),1),1))","v":""},null,{"$f":"'Month 2'!H49+'Month 2'!I49-'Month 2'!J49","v":0},"","",null,"0"]
[{"$f":"Planning!A34","v":"I026"},{"$f":"Planning!B34","v":0},{"$f":"Planning!C34","v":0},{"$f":"Planning!D34","v":0},{"$f":"Planning!E34","v":0},{"$f":"IF(Planning!G34<>0,Planning!G34,\"\")","v":""},{"$f":"Planning!H34","v":0},{"$f":"Planning!O34","v":0},{"$f":"IF(OR(W50=\"1\",AND(W50<>\"1\",G50=Lists!$A$17)),Y50,0)","v":0},null,{"$f":"IF(AND(W50=\"2\",G50<>Lists!$A$17),AA50,Z50)","v":""},"",{"$f":"Planning!P34","v":{"v":0,"d":"0.00"}},{"$f":"'Month 2'!M50+'Month 2'!N50-'Month 2'!O50","v":{"v":0,"d":"0.00"}},null,"","",{"$f":"SUMIFS($J$25:$J$224,$C$25:$C$224,$C50,$G$25:$G$224,Lists!$A$16)","v":0},0,null,"",null,{"$f":"IF(C50=0,\"\",LEFT(INDEX(Lists!$H$5:$H$49,MATCH(C50,Lists!$G$5:$G$49,0),1),1))","v":""},null,{"$f":"'Month 2'!H50+'Month 2'!I50-'Month 2'!J50","v":0},"","",null,"0"]
[{"$f":"Planning!A35","v":"I027"},{"$f":"Planning!B35","v":0},{"$f":"Planning!C35","v":0},{"$f":"Planning!D35","v":0},{"$f":"Planning!E35","v":0},{"$f":"IF(Planning!G35<>0,Planning!G35,\"\")","v":""},{"$f":"Planning!H35","v":0},{"$f":"Planning!O35","v":0},{"$f":"IF(OR(W51=\"1\",AND(W51<>\"1\",G51=Lists!$A$17)),Y51,0)","v":0},null,{"$f":"IF(AND(W51=\"2\",G51<>Lists!$A$17),AA51,Z51)","v":""},"",{"$f":"Planning!P35","v":{"v":0,"d":"0.00"}},{"$f":"'Month 2'!M51+'Month 2'!N51-'Month 2'!O51","v":{"v":0,"d":"0.00"}},null,"","",{"$f":"SUMIFS($J$25:$J$224,$C$25:$C$224,$C51,$G$25:$G$224,Lists!$A$16)","v":0},0,null,"",null,{"$f":"IF(C51=0,\"\",LEFT(INDEX(Lists!$H$5:$H$49,MATCH(C51,Lists!$G$5:$G$49,0),1),1))","v":""},null,{"$f":"'Month 2'!H51+'Month 2'!I51-'Month 2'!J51","v":0},"","",null,"0"]
[{"$f":"Planning!A36","v":"I028"},{"$f":"Planning!B36","v":0},{"$f":"Planning!C36","v":0},{"$f":"Planning!D36","v":0},{"$f":"Planning!E36","v":0},{"$f":"IF(Planning!G36<>0,Planning!G36,\"\")","v":""},{"$f":"Planning!H36","v":0},{"$f":"Planning!O36","v":0},{"$f":"IF(OR(W52=\"1\",AND(W52<>\"1\",G52=Lists!$A$17)),Y52,0)","v":0},null,{"$f":"IF(AND(W52=\"2\",G52<>Lists!$A$17),AA52,Z52)","v":""},"",{"$f":"Planning!P36","v":{"v":0,"d":"0.00"}},{"$f":"'Month 2'!M52+'Month 2'!N52-'Month 2'!O52","v":{"v":0,"d":"0.00"}},null,"","",{"$f":"SUMIFS($J$25:$J$224,$C$25:$C$224,$C52,$G$25:$G$224,Lists!$A$16)","v":0},0,null,"",null,{"$f":"IF(C52=0,\"\",LEFT(INDEX(Lists!$H$5:$H$49,MATCH(C52,Lists!$G$5:$G$49,0),1),1))","v":""},null,{"$f":"'Month 2'!H52+'Month 2'!I52-'Month 2'!J52","v":0},"","",null,"0"]
[{"$f":"Planning!A37","v":"I029"},{"$f":"Planning!B37","v":0},{"$f":"Planning!C37","v":0},{"$f":"Planning!D37","v":0},{"$f":"Planning!E37","v":0},{"$f":"IF(Planning!G37<>0,Planning!G37,\"\")","v":""},{"$f":"Planning!H37","v":0},{"$f":"Planning!O37","v":0},{"$f":"IF(OR(W53=\"1\",AND(W53<>\"1\",G53=Lists!$A$17)),Y53,0)","v":0},null,{"$f":"IF(AND(W53=\"2\",G53<>Lists!$A$17),AA53,Z53)","v":""},"",{"$f":"Planning!P37","v":{"v":0,"d":"0.00"}},{"$f":"'Month 2'!M53+'Month 2'!N53-'Month 2'!O53","v":{"v":0,"d":"0.00"}},null,"","",{"$f":"SUMIFS($J$25:$J$224,$C$25:$C$224,$C53,$G$25:$G$224,Lists!$A$16)","v":0},0,null,"",null,{"$f":"IF(C53=0,\"\",LEFT(INDEX(Lists!$H$5:$H$49,MATCH(C53,Lists!$G$5:$G$49,0),1),1))","v":""},null,{"$f":"'Month 2'!H53+'Month 2'!I53-'Month 2'!J53","v":0},"","",null,"0"]
[{"$f":"Planning!A38","v":"I030"},{"$f":"Planning!B38","v":0},{"$f":"Planning!C38","v":0},{"$f":"Planning!D38","v":0},{"$f":"Planning!E38","v":0},{"$f":"IF(Planning!G38<>0,Planning!G38,\"\")","v":""},{"$f":"Planning!H38","v":0},{"$f":"Planning!O38","v":0},{"$f":"IF(OR(W54=\"1\",AND(W54<>\"1\",G54=Lists!$A$17)),Y54,0)","v":0},null,{"$f":"IF(AND(W54=\"2\",G54<>Lists!$A$17),AA54,Z54)","v":""},"",{"$f":"Planning!P38","v":{"v":0,"d":"0.00"}},{"$f":"'Month 2'!M54+'Month 2'!N54-'Month 2'!O54","v":{"v":0,"d":"0.00"}},null,"","",{"$f":"SUMIFS($J$25:$J$224,$C$25:$C$224,$C54,$G$25:$G$224,Lists!$A$16)","v":0},0,null,"",null,{"$f":"IF(C54=0,\"\",LEFT(INDEX(Lists!$H$5:$H$49,MATCH(C54,Lists!$G$5:$G$49,0),1),1))","v":""},null,{"$f":"'Month 2'!H54+'Month 2'!I54-'Month 2'!J54","v":0},"","",null,"0"]
[{"$f":"Planning!A39","v":"I031"},{"$f":"Planning!B39","v":0},{"$f":"Planning!C39","v":0},{"$f":"Planning!D39","v":0},{"$f":"Planning!E39","v":0},{"$f":"IF(Planning!G39<>0,Planning!G39,\"\")","v":""},{"$f":"Planning!H39","v":0},{"$f":"Planning!O39","v":0},{"$f":"IF(OR(W55=\"1\",AND(W55<>\"1\",G55=Lists!$A$17)),Y55,0)","v":0},null,{"$f":"IF(AND(W55=\"2\",G55<>Lists!$A$17),AA55,Z55)","v":""},"",{"$f":"Planning!P39","v":{"v":0,"d":"0.00"}},{"$f":"'Month 2'!M55+'Month 2'!N55-'Month 2'!O55","v":{"v":0,"d":"0.00"}},null,"","",{"$f":"SUMIFS($J$25:$J$224,$C$25:$C$224,$C55,$G$25:$G$224,Lists!$A$16)","v":0},0,null,"",null,{"$f":"IF(C55=0,\"\",LEFT(INDEX(Lists!$H$5:$H$49,MATCH(C55,Lists!$G$5:$G$49,0),1),1))","v":""},null,{"$f":"'Month 2'!H55+'Month 2'!I55-'Month 2'!J55","v":0},"","",null,"0"]
[{"$f":"Planning!A40","v":"I032"},{"$f":"Planning!B40","v":0},{"$f":"Planning!C40","v":0},{"$f":"Planning!D40","v":0},{"$f":"Planning!E40","v":0},{"$f":"IF(Planning!G40<>0,Planning!G40,\"\")","v":""},{"$f":"Planning!H40","v":0},{"$f":"Planning!O40","v":0},{"$f":"IF(OR(W56=\"1\",AND(W56<>\"1\",G56=Lists!$A$17)),Y56,0)","v":0},null,{"$f":"IF(AND(W56=\"2\",G56<>Lists!$A$17),AA56,Z56)","v":""},"",{"$f":"Planning!P40","v":{"v":0,"d":"0.00"}},{"$f":"'Month 2'!M56+'Month 2'!N56-'Month 2'!O56","v":{"v":0,"d":"0.00"}},null,"","",{"$f":"SUMIFS($J$25:$J$224,$C$25:$C$224,$C56,$G$25:$G$224,Lists!$A$16)","v":0},0,null,"",null,{"$f":"IF(C56=0,\"\",LEFT(INDEX(Lists!$H$5:$H$49,MATCH(C56,Lists!$G$5:$G$49,0),1),1))","v":""},null,{"$f":"'Month 2'!H56+'Month 2'!I56-'Month 2'!J56","v":0},"","",null,"0"]
[{"$f":"Planning!A41","v":"I033"},{"$f":"Planning!B41","v":0},{"$f":"Planning!C41","v":0},{"$f":"Planning!D41","v":0},{"$f":"Planning!E41","v":0},{"$f":"IF(Planning!G41<>0,Planning!G41,\"\")","v":""},{"$f":"Planning!H41","v":0},{"$f":"Planning!O41","v":0},{"$f":"IF(OR(W57=\"1\",AND(W57<>\"1\",G57=Lists!$A$17)),Y57,0)","v":0},null,{"$f":"IF(AND(W57=\"2\",G57<>Lists!$A$17),AA57,Z57)","v":""},{"$f":"IF($U57=ExcluirDelPLogro,\"\",IF(AND(H57=0,I57=0,J57=0),\"\",K57))","v":""},{"$f":"Planning!P41","v":{"v":0,"d":"0.00"}},{"$f":"'Month 2'!M57+'Month 2'!N57-'Month 2'!O57","v":{"v":0,"d":"0.00"}},null,"",{"$f":"IF($U57=ExcluirDelPLogro,\"\",IF(AND(M57=0,N57=0,O57=0),\"\",P57))","v":""},{"$f":"SUMIFS($J$25:$J$224,$C$25:$C$224,$C57,$G$25:$G$224,Lists!$A$16)","v":0},0,null,"",null,{"$f":"IF(C57=0,\"\",LEFT(INDEX(Lists!$H$5:$H$49,MATCH(C57,Lists!$G$5:$G$49,0),1),1))","v":""},null,{"$f":"'Month 2'!H57+'Month 2'!I57-'Month 2'!J57","v":0},"",{"$f":"IF(AND(H57=0,I57=0,J57=0),\"\",IF(J57>0,H57/J57,0))","v":""},null,"0"]
[{"$f":"Planning!A42","v":"I034"},{"$f":"Planning!B42","v":0},{"$f":"Planning!C42","v":0},{"$f":"Planning!D42","v":0},{"$f":"Planning!E42","v":0},{"$f":"IF(Planning!G42<>0,Planning!G42,\"\")","v":""},{"$f":"Planning!H42","v":0},{"$f":"Planning!O42","v":0},{"$f":"IF(OR(W58=\"1\",AND(W58<>\"1\",G58=Lists!$A$17)),Y58,0)","v":0},null,{"$f":"IF(AND(W58=\"2\",G58<>Lists!$A$17),AA58,Z58)","v":""},"",{"$f":"Planning!P42","v":{"v":0,"d":"0.00"}},{"$f":"'Month 2'!M58+'Month 2'!N58-'Month 2'!O58","v":{"v":0,"d":"0.00"}},null,"","",{"$f":"SUMIFS($J$25:$J$224,$C$25:$C$224,$C58,$G$25:$G$224,Lists!$A$16)","v":0},0,null,"",null,{"$f":"IF(C58=0,\"\",LEFT(INDEX(Lists!$H$5:$H$49,MATCH(C58,Lists!$G$5:$G$49,0),1),1))","v":""},null,{"$f":"'Month 2'!H58+'Month 2'!I58-'Month 2'!J58","v":0},"","",null,"0"]
[{"$f":"Planning!A43","v":"I035"},{"$f":"Planning!B43","v":0},{"$f":"Planning!C43","v":0},{"$f":"Planning!D43","v":0},{"$f":"Planning!E43","v":0},{"$f":"IF(Planning!G43<>0,Planning!G43,\"\")","v":""},{"$f":"Planning!H43","v":0},{"$f":"Planning!O43","v":0},{"$f":"IF(OR(W59=\"1\",AND(W59<>\"1\",G59=Lists!$A$17)),Y59,0)","v":0},null,{"$f":"IF(AND(W59=\"2\",G59<>Lists!$A$17),AA59,Z59)","v":""},"",{"$f":"Planning!P43","v":{"v":0,"d":"0.00"}},{"$f":"'Month 2'!M59+'Month 2'!N59-'Month 2'!O59","v":{"v":0,"d":"0.00"}},null,"","",{"$f":"SUMIFS($J$25:$J$224,$C$25:$C$224,$C59,$G$25:$G$224,Lists!$A$16)","v":0},0,null,"",null,{"$f":"IF(C59=0,\"\",LEFT(INDEX(Lists!$H$5:$H$49,MATCH(C59,Lists!$G$5:$G$49,0),1),1))","v":""},null,{"$f":"'Month 2'!H59+'Month 2'!I59-'Month 2'!J59","v":0},"","",null,"0"]
[{"$f":"Planning!A44","v":"I036"},{"$f":"Planning!B44","v":0},{"$f":"Planning!C44","v":0},{"$f":"Planning!D44","v":0},{"$f":"Planning!E44","v":0},{"$f":"IF(Planning!G44<>0,Planning!G44,\"\")","v":""},{"$f":"Planning!H44","v":0},{"$f":"Planning!O44","v":0},{"$f":"IF(OR(W60=\"1\",AND(W60<>\"1\",G60=Lists!$A$17)),Y60,0)","v":0},null,{"$f":"IF(AND(W60=\"2\",G60<>Lists!$A$17),AA60,Z60)","v":""},"",{"$f":"Planning!P44","v":{"v":0,"d":"0.00"}},{"$f":"'Month 2'!M60+'Month 2'!N60-'Month 2'!O60","v":{"v":0,"d":"0.00"}},null,"","",{"$f":"SUMIFS($J$25:$J$224,$C$25:$C$224,$C60,$G$25:$G$224,Lists!$A$16)","v":0},0,null,"",null,{"$f":"IF(C60=0,\"\",LEFT(INDEX(Lists!$H$5:$H$49,MATCH(C60,Lists!$G$5:$G$49,0),1),1))","v":""},null,{"$f":"'Month 2'!H60+'Month 2'!I60-'Month 2'!J60","v":0},"","",null,"0"]
[{"$f":"Planning!A45","v":"I037"},{"$f":"Planning!B45","v":0},{"$f":"Planning!C45","v":0},{"$f":"Planning!D45","v":0},{"$f":"Planning!E45","v":0},{"$f":"IF(Planning!G45<>0,Planning!G45,\"\")","v":""},{"$f":"Planning!H45","v":0},{"$f":"Planning!O45","v":0},{"$f":"IF(OR(W61=\"1\",AND(W61<>\"1\",G61=Lists!$A$17)),Y61,0)","v":0},null,{"$f":"IF(AND(W61=\"2\",G61<>Lists!$A$17),AA61,Z61)","v":""},"",{"$f":"Planning!P45","v":{"v":0,"d":"0.00"}},{"$f":"'Month 2'!M61+'Month 2'!N61-'Month 2'!O61","v":{"v":0,"d":"0.00"}},null,"","",{"$f":"SUMIFS($J$25:$J$224,$C$25:$C$224,$C61,$G$25:$G$224,Lists!$A$16)","v":0},0,null,"",null,{"$f":"IF(C61=0,\"\",LEFT(INDEX(Lists!$H$5:$H$49,MATCH(C61,Lists!$G$5:$G$49,0),1),1))","v":""},null,{"$f":"'Month 2'!H61+'Month 2'!I61-'Month 2'!J61","v":0},"","",null,"0"]
[{"$f":"Planning!A46","v":"I038"},{"$f":"Planning!B46","v":0},{"$f":"Planning!C46","v":0},{"$f":"Planning!D46","v":0},{"$f":"Planning!E46","v":0},{"$f":"IF(Planning!G46<>0,Planning!G46,\"\")","v":""},{"$f":"Planning!H46","v":0},{"$f":"Planning!O46","v":0},{"$f":"IF(OR(W62=\"1\",AND(W62<>\"1\",G62=Lists!$A$17)),Y62,0)","v":0},null,{"$f":"IF(AND(W62=\"2\",G62<>Lists!$A$17),AA62,Z62)","v":""},"",{"$f":"Planning!P46","v":{"v":0,"d":"0.00"}},{"$f":"'Month 2'!M62+'Month 2'!N62-'Month 2'!O62","v":{"v":0,"d":"0.00"}},null,"","",{"$f":"SUMIFS($J$25:$J$224,$C$25:$C$224,$C62,$G$25:$G$224,Lists!$A$16)","v":0},0,null,"",null,{"$f":"IF(C62=0,\"\",LEFT(INDEX(Lists!$H$5:$H$49,MATCH(C62,Lists!$G$5:$G$49,0),1),1))","v":""},null,{"$f":"'Month 2'!H62+'Month 2'!I62-'Month 2'!J62","v":0},"","",null,"0"]
[{"$f":"Planning!A47","v":"I039"},{"$f":"Planning!B47","v":0},{"$f":"Planning!C47","v":0},{"$f":"Planning!D47","v":0},{"$f":"Planning!E47","v":0},{"$f":"IF(Planning!G47<>0,Planning!G47,\"\")","v":""},{"$f":"Planning!H47","v":0},{"$f":"Planning!O47","v":0},{"$f":"IF(OR(W63=\"1\",AND(W63<>\"1\",G63=Lists!$A$17)),Y63,0)","v":0},null,{"$f":"IF(AND(W63=\"2\",G63<>Lists!$A$17),AA63,Z63)","v":""},"",{"$f":"Planning!P47","v":{"v":0,"d":"0.00"}},{"$f":"'Month 2'!M63+'Month 2'!N63-'Month 2'!O63","v":{"v":0,"d":"0.00"}},null,"","",{"$f":"SUMIFS($J$25:$J$224,$C$25:$C$224,$C63,$G$25:$G$224,Lists!$A$16)","v":0},0,null,"",null,{"$f":"IF(C63=0,\"\",LEFT(INDEX(Lists!$H$5:$H$49,MATCH(C63,Lists!$G$5:$G$49,0),1),1))","v":""},null,{"$f":"'Month 2'!H63+'Month 2'!I63-'Month 2'!J63","v":0},"","",null,"0"]
[{"$f":"Planning!A48","v":"I040"},{"$f":"Planning!B48","v":0},{"$f":"Planning!C48","v":0},{"$f":"Planning!D48","v":0},{"$f":"Planning!E48","v":0},{"$f":"IF(Planning!G48<>0,Planning!G48,\"\")","v":""},{"$f":"Planning!H48","v":0},{"$f":"Planning!O48","v":0},{"$f":"IF(OR(W64=\"1\",AND(W64<>\"1\",G64=Lists!$A$17)),Y64,0)","v":0},null,{"$f":"IF(AND(W64=\"2\",G64<>Lists!$A$17),AA64,Z64)","v":""},"",{"$f":"Planning!P48","v":{"v":0,"d":"0.00"}},{"$f":"'Month 2'!M64+'Month 2'!N64-'Month 2'!O64","v":{"v":0,"d":"0.00"}},null,"","",{"$f":"SUMIFS($J$25:$J$224,$C$25:$C$224,$C64,$G$25:$G$224,Lists!$A$16)","v":0},0,null,"",null,{"$f":"IF(C64=0,\"\",LEFT(INDEX(Lists!$H$5:$H$49,MATCH(C64,Lists!$G$5:$G$49,0),1),1))","v":""},null,{"$f":"'Month 2'!H64+'Month 2'!I64-'Month 2'!J64","v":0},"","",null,"0"]
[{"$f":"Planning!A49","v":"I041"},{"$f":"Planning!B49","v":0},{"$f":"Planning!C49","v":0},{"$f":"Planning!D49","v":0},{"$f":"Planning!E49","v":0},{"$f":"IF(Planning!G49<>0,Planning!G49,\"\")","v":""},{"$f":"Planning!H49","v":0},{"$f":"Planning!O49","v":0},{"$f":"IF(OR(W65=\"1\",AND(W65<>\"1\",G65=Lists!$A$17)),Y65,0)","v":0},null,{"$f":"IF(AND(W65=\"2\",G65<>Lists!$A$17),AA65,Z65)","v":""},"",{"$f":"Planning!P49","v":{"v":0,"d":"0.00"}},{"$f":"'Month 2'!M65+'Month 2'!N65-'Month 2'!O65","v":{"v":0,"d":"0.00"}},null,"","",{"$f":"SUMIFS($J$25:$J$224,$C$25:$C$224,$C65,$G$25:$G$224,Lists!$A$16)","v":0},0,null,"",null,{"$f":"IF(C65=0,\"\",LEFT(INDEX(Lists!$H$5:$H$49,MATCH(C65,Lists!$G$5:$G$49,0),1),1))","v":""},null,{"$f":"'Month 2'!H65+'Month 2'!I65-'Month 2'!J65","v":0},"","",null,"0"]
[{"$f":"Planning!A50","v":"I042"},{"$f":"Planning!B50","v":0},{"$f":"Planning!C50","v":0},{"$f":"Planning!D50","v":0},{"$f":"Planning!E50","v":0},{"$f":"IF(Planning!G50<>0,Planning!G50,\"\")","v":""},{"$f":"Planning!H50","v":0},{"$f":"Planning!O50","v":0},{"$f":"IF(OR(W66=\"1\",AND(W66<>\"1\",G66=Lists!$A$17)),Y66,0)","v":0},null,{"$f":"IF(AND(W66=\"2\",G66<>Lists!$A$17),AA66,Z66)","v":""},"",{"$f":"Planning!P50","v":{"v":0,"d":"0.00"}},{"$f":"'Month 2'!M66+'Month 2'!N66-'Month 2'!O66","v":{"v":0,"d":"0.00"}},null,"","",{"$f":"SUMIFS($J$25:$J$224,$C$25:$C$224,$C66,$G$25:$G$224,Lists!$A$16)","v":0},0,null,"",null,{"$f":"IF(C66=0,\"\",LEFT(INDEX(Lists!$H$5:$H$49,MATCH(C66,Lists!$G$5:$G$49,0),1),1))","v":""},null,{"$f":"'Month 2'!H66+'Month 2'!I66-'Month 2'!J66","v":0},"","",null,"0"]
[{"$f":"Planning!A51","v":"I043"},{"$f":"Planning!B51","v":0},{"$f":"Planning!C51","v":0},{"$f":"Planning!D51","v":0},{"$f":"Planning!E51","v":0},{"$f":"IF(Planning!G51<>0,Planning!G51,\"\")","v":""},{"$f":"Planning!H51","v":0},{"$f":"Planning!O51","v":0},{"$f":"IF(OR(W67=\"1\",AND(W67<>\"1\",G67=Lists!$A$17)),Y67,0)","v":0},null,{"$f":"IF(AND(W67=\"2\",G67<>Lists!$A$17),AA67,Z67)","v":""},"",{"$f":"Planning!P51","v":{"v":0,"d":"0.00"}},{"$f":"'Month 2'!M67+'Month 2'!N67-'Month 2'!O67","v":{"v":0,"d":"0.00"}},null,"","",{"$f":"SUMIFS($J$25:$J$224,$C$25:$C$224,$C67,$G$25:$G$224,Lists!$A$16)","v":0},0,null,"",null,{"$f":"IF(C67=0,\"\",LEFT(INDEX(Lists!$H$5:$H$49,MATCH(C67,Lists!$G$5:$G$49,0),1),1))","v":""},null,{"$f":"'Month 2'!H67+'Month 2'!I67-'Month 2'!J67","v":0},"","",null,"0"]
[{"$f":"Planning!A52","v":"I044"},{"$f":"Planning!B52","v":0},{"$f":"Planning!C52","v":0},{"$f":"Planning!D52","v":0},{"$f":"Planning!E52","v":0},{"$f":"IF(Planning!G52<>0,Planning!G52,\"\")","v":""},{"$f":"Planning!H52","v":0},{"$f":"Planning!O52","v":0},{"$f":"IF(OR(W68=\"1\",AND(W68<>\"1\",G68=Lists!$A$17)),Y68,0)","v":0},null,{"$f":"IF(AND(W68=\"2\",G68<>Lists!$A$17),AA68,Z68)","v":""},"",{"$f":"Planning!P52","v":{"v":0,"d":"0.00"}},{"$f":"'Month 2'!M68+'Month 2'!N68-'Month 2'!O68","v":{"v":0,"d":"0.00"}},null,"","",{"$f":"SUMIFS($J$25:$J$224,$C$25:$C$224,$C68,$G$25:$G$224,Lists!$A$16)","v":0},0,null,"",null,{"$f":"IF(C68=0,\"\",LEFT(INDEX(Lists!$H$5:$H$49,MATCH(C68,Lists!$G$5:$G$49,0),1),1))","v":""},null,{"$f":"'Month 2'!H68+'Month 2'!I68-'Month 2'!J68","v":0},"","",null,"0"]
[{"$f":"Planning!A53","v":"I045"},{"$f":"Planning!B53","v":0},{"$f":"Planning!C53","v":0},{"$f":"Planning!D53","v":0},{"$f":"Planning!E53","v":0},{"$f":"IF(Planning!G53<>0,Planning!G53,\"\")","v":""},{"$f":"Planning!H53","v":0},{"$f":"Planning!O53","v":0},{"$f":"IF(OR(W69=\"1\",AND(W69<>\"1\",G69=Lists!$A$17)),Y69,0)","v":0},null,{"$f":"IF(AND(W69=\"2\",G69<>Lists!$A$17),AA69,Z69)","v":""},"",{"$f":"Planning!P53","v":{"v":0,"d":"0.00"}},{"$f":"'Month 2'!M69+'Month 2'!N69-'Month 2'!O69","v":{"v":0,"d":"0.00"}},null,"","",{"$f":"SUMIFS($J$25:$J$224,$C$25:$C$224,$C69,$G$25:$G$224,Lists!$A$16)","v":0},0,null,"",null,{"$f":"IF(C69=0,\"\",LEFT(INDEX(Lists!$H$5:$H$49,MATCH(C69,Lists!$G$5:$G$49,0),1),1))","v":""},null,{"$f":"'Month 2'!H69+'Month 2'!I69-'Month 2'!J69","v":0},"","",null,"0"]
[{"$f":"Planning!A54","v":"I046"},{"$f":"Planning!B54","v":0},{"$f":"Planning!C54","v":0},{"$f":"Planning!D54","v":0},{"$f":"Planning!E54","v":0},{"$f":"IF(Planning!G54<>0,Planning!G54,\"\")","v":""},{"$f":"Planning!H54","v":0},{"$f":"Planning!O54","v":0},{"$f":"IF(OR(W70=\"1\",AND(W70<>\"1\",G70=Lists!$A$17)),Y70,0)","v":0},null,{"$f":"IF(AND(W70=\"2\",G70<>Lists!$A$17),AA70,Z70)","v":""},"",{"$f":"Planning!P54","v":{"v":0,"d":"0.00"}},{"$f":"'Month 2'!M70+'Month 2'!N70-'Month 2'!O70","v":{"v":0,"d":"0.00"}},null,"","",{"$f":"SUMIFS($J$25:$J$224,$C$25:$C$224,$C70,$G$25:$G$224,Lists!$A$16)","v":0},0,null,"",null,{"$f":"IF(C70=0,\"\",LEFT(INDEX(Lists!$H$5:$H$49,MATCH(C70,Lists!$G$5:$G$49,0),1),1))","v":""},null,{"$f":"'Month 2'!H70+'Month 2'!I70-'Month 2'!J70","v":0},"","",null,"0"]
[{"$f":"Planning!A55","v":"I047"},{"$f":"Planning!B55","v":0},{"$f":"Planning!C55","v":0},{"$f":"Planning!D55","v":0},{"$f":"Planning!E55","v":0},{"$f":"IF(Planning!G55<>0,Planning!G55,\"\")","v":""},{"$f":"Planning!H55","v":0},{"$f":"Planning!O55","v":0},{"$f":"IF(OR(W71=\"1\",AND(W71<>\"1\",G71=Lists!$A$17)),Y71,0)","v":0},null,{"$f":"IF(AND(W71=\"2\",G71<>Lists!$A$17),AA71,Z71)","v":""},"",{"$f":"Planning!P55","v":{"v":0,"d":"0.00"}},{"$f":"'Month 2'!M71+'Month 2'!N71-'Month 2'!O71","v":{"v":0,"d":"0.00"}},null,"","",{"$f":"SUMIFS($J$25:$J$224,$C$25:$C$224,$C71,$G$25:$G$224,Lists!$A$16)","v":0},0,null,"",null,{"$f":"IF(C71=0,\"\",LEFT(INDEX(Lists!$H$5:$H$49,MATCH(C71,Lists!$G$5:$G$49,0),1),1))","v":""},null,{"$f":"'Month 2'!H71+'Month 2'!I71-'Month 2'!J71","v":0},"","",null,"0"]
[{"$f":"Planning!A56","v":"I048"},{"$f":"Planning!B56","v":0},{"$f":"Planning!C56","v":0},{"$f":"Planning!D56","v":0},{"$f":"Planning!E56","v":0},{"$f":"IF(Planning!G56<>0,Planning!G56,\"\")","v":""},{"$f":"Planning!H56","v":0},{"$f":"Planning!O56","v":0},{"$f":"IF(OR(W72=\"1\",AND(W72<>\"1\",G72=Lists!$A$17)),Y72,0)","v":0},null,{"$f":"IF(AND(W72=\"2\",G72<>Lists!$A$17),AA72,Z72)","v":""},"",{"$f":"Planning!P56","v":{"v":0,"d":"0.00"}},{"$f":"'Month 2'!M72+'Month 2'!N72-'Month 2'!O72","v":{"v":0,"d":"0.00"}},null,"","",{"$f":"SUMIFS($J$25:$J$224,$C$25:$C$224,$C72,$G$25:$G$224,Lists!$A$16)","v":0},0,null,"",null,{"$f":"IF(C72=0,\"\",LEFT(INDEX(Lists!$H$5:$H$49,MATCH(C72,Lists!$G$5:$G$49,0),1),1))","v":""},null,{"$f":"'Month 2'!H72+'Month 2'!I72-'Month 2'!J72","v":0},"","",null,"0"]
[{"$f":"Planning!A57","v":"I049"},{"$f":"Planning!B57","v":0},{"$f":"Planning!C57","v":0},{"$f":"Planning!D57","v":0},{"$f":"Planning!E57","v":0},{"$f":"IF(Planning!G57<>0,Planning!G57,\"\")","v":""},{"$f":"Planning!H57","v":0},{"$f":"Planning!O57","v":0},{"$f":"IF(OR(W73=\"1\",AND(W73<>\"1\",G73=Lists!$A$17)),Y73,0)","v":0},null,{"$f":"IF(AND(W73=\"2\",G73<>Lists!$A$17),AA73,Z73)","v":""},"",{"$f":"Planning!P57","v":{"v":0,"d":"0.00"}},{"$f":"'Month 2'!M73+'Month 2'!N73-'Month 2'!O73","v":{"v":0,"d":"0.00"}},null,"","",{"$f":"SUMIFS($J$25:$J$224,$C$25:$C$224,$C73,$G$25:$G$224,Lists!$A$16)","v":0},0,null,"",null,{"$f":"IF(C73=0,\"\",LEFT(INDEX(Lists!$H$5:$H$49,MATCH(C73,Lists!$G$5:$G$49,0),1),1))","v":""},null,{"$f":"'Month 2'!H73+'Month 2'!I73-'Month 2'!J73","v":0},"","",null,"0"]
[{"$f":"Planning!A58","v":"I050"},{"$f":"Planning!B58","v":0},{"$f":"Planning!C58","v":0},{"$f":"Planning!D58","v":0},{"$f":"Planning!E58","v":0},{"$f":"IF(Planning!G58<>0,Planning!G58,\"\")","v":""},{"$f":"Planning!H58","v":0},{"$f":"Planning!O58","v":0},{"$f":"IF(OR(W74=\"1\",AND(W74<>\"1\",G74=Lists!$A$17)),Y74,0)","v":0},null,{"$f":"IF(AND(W74=\"2\",G74<>Lists!$A$17),AA74,Z74)","v":""},"",{"$f":"Planning!P58","v":{"v":0,"d":"0.00"}},{"$f":"'Month 2'!M74+'Month 2'!N74-'Month 2'!O74","v":{"v":0,"d":"0.00"}},null,"","",{"$f":"SUMIFS($J$25:$J$224,$C$25:$C$224,$C74,$G$25:$G$224,Lists!$A$16)","v":0},0,null,"",null,{"$f":"IF(C74=0,\"\",LEFT(INDEX(Lists!$H$5:$H$49,MATCH(C74,Lists!$G$5:$G$49,0),1),1))","v":""},null,{"$f":"'Month 2'!H74+'Month 2'!I74-'Month 2'!J74","v":0},"","",null,"0"]
[{"$f":"Planning!A59","v":"I051"},{"$f":"Planning!B59","v":0},{"$f":"Planning!C59","v":0},{"$f":"Planning!D59","v":0},{"$f":"Planning!E59","v":0},{"$f":"IF(Planning!G59<>0,Planning!G59,\"\")","v":""},{"$f":"Planning!H59","v":0},{"$f":"Planning!O59","v":0},{"$f":"IF(OR(W75=\"1\",AND(W75<>\"1\",G75=Lists!$A$17)),Y75,0)","v":0},null,{"$f":"IF(AND(W75=\"2\",G75<>Lists!$A$17),AA75,Z75)","v":""},"",{"$f":"Planning!P59","v":{"v":0,"d":"0.00"}},{"$f":"'Month 2'!M75+'Month 2'!N75-'Month 2'!O75","v":{"v":0,"d":"0.00"}},null,"","",{"$f":"SUMIFS($J$25:$J$224,$C$25:$C$224,$C75,$G$25:$G$224,Lists!$A$16)","v":0},0,null,"",null,{"$f":"IF(C75=0,\"\",LEFT(INDEX(Lists!$H$5:$H$49,MATCH(C75,Lists!$G$5:$G$49,0),1),1))","v":""},null,{"$f":"'Month 2'!H75+'Month 2'!I75-'Month 2'!J75","v":0},"","",null,"0"]
[{"$f":"Planning!A60","v":"I052"},{"$f":"Planning!B60","v":0},{"$f":"Planning!C60","v":0},{"$f":"Planning!D60","v":0},{"$f":"Planning!E60","v":0},{"$f":"IF(Planning!G60<>0,Planning!G60,\"\")","v":""},{"$f":"Planning!H60","v":0},{"$f":"Planning!O60","v":0},{"$f":"IF(OR(W76=\"1\",AND(W76<>\"1\",G76=Lists!$A$17)),Y76,0)","v":0},null,{"$f":"IF(AND(W76=\"2\",G76<>Lists!$A$17),AA76,Z76)","v":""},"",{"$f":"Planning!P60","v":{"v":0,"d":"0.00"}},{"$f":"'Month 2'!M76+'Month 2'!N76-'Month 2'!O76","v":{"v":0,"d":"0.00"}},null,"","",{"$f":"SUMIFS($J$25:$J$224,$C$25:$C$224,$C76,$G$25:$G$224,Lists!$A$16)","v":0},0,null,"",null,{"$f":"IF(C76=0,\"\",LEFT(INDEX(Lists!$H$5:$H$49,MATCH(C76,Lists!$G$5:$G$49,0),1),1))","v":""},null,{"$f":"'Month 2'!H76+'Month 2'!I76-'Month 2'!J76","v":0},"","",null,"0"]
[{"$f":"Planning!A61","v":"I053"},{"$f":"Planning!B61","v":0},{"$f":"Planning!C61","v":0},{"$f":"Planning!D61","v":0},{"$f":"Planning!E61","v":0},{"$f":"IF(Planning!G61<>0,Planning!G61,\"\")","v":""},{"$f":"Planning!H61","v":0},{"$f":"Planning!O61","v":0},{"$f":"IF(OR(W77=\"1\",AND(W77<>\"1\",G77=Lists!$A$17)),Y77,0)","v":0},null,{"$f":"IF(AND(W77=\"2\",G77<>Lists!$A$17),AA77,Z77)","v":""},"",{"$f":"Planning!P61","v":{"v":0,"d":"0.00"}},{"$f":"'Month 2'!M77+'Month 2'!N77-'Month 2'!O77","v":{"v":0,"d":"0.00"}},null,"","",{"$f":"SUMIFS($J$25:$J$224,$C$25:$C$224,$C77,$G$25:$G$224,Lists!$A$16)","v":0},0,null,"",null,{"$f":"IF(C77=0,\"\",LEFT(INDEX(Lists!$H$5:$H$49,MATCH(C77,Lists!$G$5:$G$49,0),1),1))","v":""},null,{"$f":"'Month 2'!H77+'Month 2'!I77-'Month 2'!J77","v":0},"","",null,"0"]
[{"$f":"Planning!A62","v":"I054"},{"$f":"Planning!B62","v":0},{"$f":"Planning!C62","v":0},{"$f":"Planning!D62","v":0},{"$f":"Planning!E62","v":0},{"$f":"IF(Planning!G62<>0,Planning!G62,\"\")","v":""},{"$f":"Planning!H62","v":0},{"$f":"Planning!O62","v":0},{"$f":"IF(OR(W78=\"1\",AND(W78<>\"1\",G78=Lists!$A$17)),Y78,0)","v":0},null,{"$f":"IF(AND(W78=\"2\",G78<>Lists!$A$17),AA78,Z78)","v":""},"",{"$f":"Planning!P62","v":{"v":0,"d":"0.00"}},{"$f":"'Month 2'!M78+'Month 2'!N78-'Month 2'!O78","v":{"v":0,"d":"0.00"}},null,"","",{"$f":"SUMIFS($J$25:$J$224,$C$25:$C$224,$C78,$G$25:$G$224,Lists!$A$16)","v":0},0,null,"",null,{"$f":"IF(C78=0,\"\",LEFT(INDEX(Lists!$H$5:$H$49,MATCH(C78,Lists!$G$5:$G$49,0),1),1))","v":""},null,{"$f":"'Month 2'!H78+'Month 2'!I78-'Month 2'!J78","v":0},"","",null,"0"]
[{"$f":"Planning!A63","v":"I055"},{"$f":"Planning!B63","v":0},{"$f":"Planning!C63","v":0},{"$f":"Planning!D63","v":0},{"$f":"Planning!E63","v":0},{"$f":"IF(Planning!G63<>0,Planning!G63,\"\")","v":""},{"$f":"Planning!H63","v":0},{"$f":"Planning!O63","v":0},{"$f":"IF(OR(W79=\"1\",AND(W79<>\"1\",G79=Lists!$A$17)),Y79,0)","v":0},null,{"$f":"IF(AND(W79=\"2\",G79<>Lists!$A$17),AA79,Z79)","v":""},"",{"$f":"Planning!P63","v":{"v":0,"d":"0.00"}},{"$f":"'Month 2'!M79+'Month 2'!N79-'Month 2'!O79","v":{"v":0,"d":"0.00"}},null,"","",{"$f":"SUMIFS($J$25:$J$224,$C$25:$C$224,$C79,$G$25:$G$224,Lists!$A$16)","v":0},0,null,"",null,{"$f":"IF(C79=0,\"\",LEFT(INDEX(Lists!$H$5:$H$49,MATCH(C79,Lists!$G$5:$G$49,0),1),1))","v":""},null,{"$f":"'Month 2'!H79+'Month 2'!I79-'Month 2'!J79","v":0},"","",null,"0"]
[{"$f":"Planning!A64","v":"I056"},{"$f":"Planning!B64","v":0},{"$f":"Planning!C64","v":0},{"$f":"Planning!D64","v":0},{"$f":"Planning!E64","v":0},{"$f":"IF(Planning!G64<>0,Planning!G64,\"\")","v":""},{"$f":"Planning!H64","v":0},{"$f":"Planning!O64","v":0},{"$f":"IF(OR(W80=\"1\",AND(W80<>\"1\",G80=Lists!$A$17)),Y80,0)","v":0},null,{"$f":"IF(AND(W80=\"2\",G80<>Lists!$A$17),AA80,Z80)","v":""},"",{"$f":"Planning!P64","v":{"v":0,"d":"0.00"}},{"$f":"'Month 2'!M80+'Month 2'!N80-'Month 2'!O80","v":{"v":0,"d":"0.00"}},null,"","",{"$f":"SUMIFS($J$25:$J$224,$C$25:$C$224,$C80,$G$25:$G$224,Lists!$A$16)","v":0},0,null,"",null,{"$f":"IF(C80=0,\"\",LEFT(INDEX(Lists!$H$5:$H$49,MATCH(C80,Lists!$G$5:$G$49,0),1),1))","v":""},null,{"$f":"'Month 2'!H80+'Month 2'!I80-'Month 2'!J80","v":0},"","",null,"0"]
[{"$f":"Planning!A65","v":"I057"},{"$f":"Planning!B65","v":0},{"$f":"Planning!C65","v":0},{"$f":"Planning!D65","v":0},{"$f":"Planning!E65","v":0},{"$f":"IF(Planning!G65<>0,Planning!G65,\"\")","v":""},{"$f":"Planning!H65","v":0},{"$f":"Planning!O65","v":0},{"$f":"IF(OR(W81=\"1\",AND(W81<>\"1\",G81=Lists!$A$17)),Y81,0)","v":0},null,{"$f":"IF(AND(W81=\"2\",G81<>Lists!$A$17),AA81,Z81)","v":""},"",{"$f":"Planning!P65","v":{"v":0,"d":"0.00"}},{"$f":"'Month 2'!M81+'Month 2'!N81-'Month 2'!O81","v":{"v":0,"d":"0.00"}},null,"","",{"$f":"SUMIFS($J$25:$J$224,$C$25:$C$224,$C81,$G$25:$G$224,Lists!$A$16)","v":0},0,null,"",null,{"$f":"IF(C81=0,\"\",LEFT(INDEX(Lists!$H$5:$H$49,MATCH(C81,Lists!$G$5:$G$49,0),1),1))","v":""},null,{"$f":"'Month 2'!H81+'Month 2'!I81-'Month 2'!J81","v":0},"","",null,"0"]
[{"$f":"Planning!A66","v":"I058"},{"$f":"Planning!B66","v":0},{"$f":"Planning!C66","v":0},{"$f":"Planning!D66","v":0},{"$f":"Planning!E66","v":0},{"$f":"IF(Planning!G66<>0,Planning!G66,\"\")","v":""},{"$f":"Planning!H66","v":0},{"$f":"Planning!O66","v":0},{"$f":"IF(OR(W82=\"1\",AND(W82<>\"1\",G82=Lists!$A$17)),Y82,0)","v":0},null,{"$f":"IF(AND(W82=\"2\",G82<>Lists!$A$17),AA82,Z82)","v":""},"",{"$f":"Planning!P66","v":{"v":0,"d":"0.00"}},{"$f":"'Month 2'!M82+'Month 2'!N82-'Month 2'!O82","v":{"v":0,"d":"0.00"}},null,"","",{"$f":"SUMIFS($J$25:$J$224,$C$25:$C$224,$C82,$G$25:$G$224,Lists!$A$16)","v":0},0,null,"",null,{"$f":"IF(C82=0,\"\",LEFT(INDEX(Lists!$H$5:$H$49,MATCH(C82,Lists!$G$5:$G$49,0),1),1))","v":""},null,{"$f":"'Month 2'!H82+'Month 2'!I82-'Month 2'!J82","v":0},"","",null,"0"]
[{"$f":"Planning!A67","v":"I059"},{"$f":"Planning!B67","v":0},{"$f":"Planning!C67","v":0},{"$f":"Planning!D67","v":0},{"$f":"Planning!E67","v":0},{"$f":"IF(Planning!G67<>0,Planning!G67,\"\")","v":""},{"$f":"Planning!H67","v":0},{"$f":"Planning!O67","v":0},{"$f":"IF(OR(W83=\"1\",AND(W83<>\"1\",G83=Lists!$A$17)),Y83,0)","v":0},null,{"$f":"IF(AND(W83=\"2\",G83<>Lists!$A$17),AA83,Z83)","v":""},"",{"$f":"Planning!P67","v":{"v":0,"d":"0.00"}},{"$f":"'Month 2'!M83+'Month 2'!N83-'Month 2'!O83","v":{"v":0,"d":"0.00"}},null,"","",{"$f":"SUMIFS($J$25:$J$224,$C$25:$C$224,$C83,$G$25:$G$224,Lists!$A$16)","v":0},0,null,"",null,{"$f":"IF(C83=0,\"\",LEFT(INDEX(Lists!$H$5:$H$49,MATCH(C83,Lists!$G$5:$G$49,0),1),1))","v":""},null,{"$f":"'Month 2'!H83+'Month 2'!I83-'Month 2'!J83","v":0},"","",null,"0"]
[{"$f":"Planning!A68","v":"I060"},{"$f":"Planning!B68","v":0},{"$f":"Planning!C68","v":0},{"$f":"Planning!D68","v":0},{"$f":"Planning!E68","v":0},{"$f":"IF(Planning!G68<>0,Planning!G68,\"\")","v":""},{"$f":"Planning!H68","v":0},{"$f":"Planning!O68","v":0},{"$f":"IF(OR(W84=\"1\",AND(W84<>\"1\",G84=Lists!$A$17)),Y84,0)","v":0},null,{"$f":"IF(AND(W84=\"2\",G84<>Lists!$A$17),AA84,Z84)","v":""},"",{"$f":"Planning!P68","v":{"v":0,"d":"0.00"}},{"$f":"'Month 2'!M84+'Month 2'!N84-'Month 2'!O84","v":{"v":0,"d":"0.00"}},null,"","",{"$f":"SUMIFS($J$25:$J$224,$C$25:$C$224,$C84,$G$25:$G$224,Lists!$A$16)","v":0},0,null,"",null,{"$f":"IF(C84=0,\"\",LEFT(INDEX(Lists!$H$5:$H$49,MATCH(C84,Lists!$G$5:$G$49,0),1),1))","v":""},null,{"$f":"'Month 2'!H84+'Month 2'!I84-'Month 2'!J84","v":0},"","",null,"0"]
[{"$f":"Planning!A69","v":"I061"},{"$f":"Planning!B69","v":0},{"$f":"Planning!C69","v":0},{"$f":"Planning!D69","v":0},{"$f":"Planning!E69","v":0},{"$f":"IF(Planning!G69<>0,Planning!G69,\"\")","v":""},{"$f":"Planning!H69","v":0},{"$f":"Planning!O69","v":0},{"$f":"IF(OR(W85=\"1\",AND(W85<>\"1\",G85=Lists!$A$17)),Y85,0)","v":0},null,{"$f":"IF(AND(W85=\"2\",G85<>Lists!$A$17),AA85,Z85)","v":""},"",{"$f":"Planning!P69","v":{"v":0,"d":"0.00"}},{"$f":"'Month 2'!M85+'Month 2'!N85-'Month 2'!O85","v":{"v":0,"d":"0.00"}},null,"","",{"$f":"SUMIFS($J$25:$J$224,$C$25:$C$224,$C85,$G$25:$G$224,Lists!$A$16)","v":0},0,null,"",null,{"$f":"IF(C85=0,\"\",LEFT(INDEX(Lists!$H$5:$H$49,MATCH(C85,Lists!$G$5:$G$49,0),1),1))","v":""},null,{"$f":"'Month 2'!H85+'Month 2'!I85-'Month 2'!J85","v":0},"","",null,"0"]
[{"$f":"Planning!A70","v":"I062"},{"$f":"Planning!B70","v":0},{"$f":"Planning!C70","v":0},{"$f":"Planning!D70","v":0},{"$f":"Planning!E70","v":0},{"$f":"IF(Planning!G70<>0,Planning!G70,\"\")","v":""},{"$f":"Planning!H70","v":0},{"$f":"Planning!O70","v":0},{"$f":"IF(OR(W86=\"1\",AND(W86<>\"1\",G86=Lists!$A$17)),Y86,0)","v":0},null,{"$f":"IF(AND(W86=\"2\",G86<>Lists!$A$17),AA86,Z86)","v":""},"",{"$f":"Planning!P70","v":{"v":0,"d":"0.00"}},{"$f":"'Month 2'!M86+'Month 2'!N86-'Month 2'!O86","v":{"v":0,"d":"0.00"}},null,"","",{"$f":"SUMIFS($J$25:$J$224,$C$25:$C$224,$C86,$G$25:$G$224,Lists!$A$16)","v":0},0,null,"",null,{"$f":"IF(C86=0,\"\",LEFT(INDEX(Lists!$H$5:$H$49,MATCH(C86,Lists!$G$5:$G$49,0),1),1))","v":""},null,{"$f":"'Month 2'!H86+'Month 2'!I86-'Month 2'!J86","v":0},"","",null,"0"]
[{"$f":"Planning!A71","v":"I063"},{"$f":"Planning!B71","v":0},{"$f":"Planning!C71","v":0},{"$f":"Planning!D71","v":0},{"$f":"Planning!E71","v":0},{"$f":"IF(Planning!G71<>0,Planning!G71,\"\")","v":""},{"$f":"Planning!H71","v":0},{"$f":"Planning!O71","v":0},{"$f":"IF(OR(W87=\"1\",AND(W87<>\"1\",G87=Lists!$A$17)),Y87,0)","v":0},null,{"$f":"IF(AND(W87=\"2\",G87<>Lists!$A$17),AA87,Z87)","v":""},"",{"$f":"Planning!P71","v":{"v":0,"d":"0.00"}},{"$f":"'Month 2'!M87+'Month 2'!N87-'Month 2'!O87","v":{"v":0,"d":"0.00"}},null,"","",{"$f":"SUMIFS($J$25:$J$224,$C$25:$C$224,$C87,$G$25:$G$224,Lists!$A$16)","v":0},0,null,"",null,{"$f":"IF(C87=0,\"\",LEFT(INDEX(Lists!$H$5:$H$49,MATCH(C87,Lists!$G$5:$G$49,0),1),1))","v":""},null,{"$f":"'Month 2'!H87+'Month 2'!I87-'Month 2'!J87","v":0},"","",null,"0"]
[{"$f":"Planning!A72","v":"I064"},{"$f":"Planning!B72","v":0},{"$f":"Planning!C72","v":0},{"$f":"Planning!D72","v":0},{"$f":"Planning!E72","v":0},{"$f":"IF(Planning!G72<>0,Planning!G72,\"\")","v":""},{"$f":"Planning!H72","v":0},{"$f":"Planning!O72","v":0},{"$f":"IF(OR(W88=\"1\",AND(W88<>\"1\",G88=Lists!$A$17)),Y88,0)","v":0},null,{"$f":"IF(AND(W88=\"2\",G88<>Lists!$A$17),AA88,Z88)","v":""},"",{"$f":"Planning!P72","v":{"v":0,"d":"0.00"}},{"$f":"'Month 2'!M88+'Month 2'!N88-'Month 2'!O88","v":{"v":0,"d":"0.00"}},null,"","",{"$f":"SUMIFS($J$25:$J$224,$C$25:$C$224,$C88,$G$25:$G$224,Lists!$A$16)","v":0},0,null,"",null,{"$f":"IF(C88=0,\"\",LEFT(INDEX(Lists!$H$5:$H$49,MATCH(C88,Lists!$G$5:$G$49,0),1),1))","v":""},null,{"$f":"'Month 2'!H88+'Month 2'!I88-'Month 2'!J88","v":0},"","",null,"0"]
[{"$f":"Planning!A73","v":"I065"},{"$f":"Planning!B73","v":0},{"$f":"Planning!C73","v":0},{"$f":"Planning!D73","v":0},{"$f":"Planning!E73","v":0},{"$f":"IF(Planning!G73<>0,Planning!G73,\"\")","v":""},{"$f":"Planning!H73","v":0},{"$f":"Planning!O73","v":0},{"$f":"IF(OR(W89=\"1\",AND(W89<>\"1\",G89=Lists!$A$17)),Y89,0)","v":0},null,{"$f":"IF(AND(W89=\"2\",G89<>Lists!$A$17),AA89,Z89)","v":""},{"$f":"IF($U89=ExcluirDelPLogro,\"\",IF(AND(H89=0,I89=0,J89=0),\"\",K89))","v":""},{"$f":"Planning!P73","v":{"v":0,"d":"0.00"}},{"$f":"'Month 2'!M89+'Month 2'!N89-'Month 2'!O89","v":{"v":0,"d":"0.00"}},null,"",{"$f":"IF($U89=ExcluirDelPLogro,\"\",IF(AND(M89=0,N89=0,O89=0),\"\",P89))","v":""},{"$f":"SUMIFS($J$25:$J$224,$C$25:$C$224,$C89,$G$25:$G$224,Lists!$A$16)","v":0},0,null,"",null,{"$f":"IF(C89=0,\"\",LEFT(INDEX(Lists!$H$5:$H$49,MATCH(C89,Lists!$G$5:$G$49,0),1),1))","v":""},null,{"$f":"'Month 2'!H89+'Month 2'!I89-'Month 2'!J89","v":0},"",{"$f":"IF(AND(H89=0,I89=0,J89=0),\"\",IF(J89>0,H89/J89,0))","v":""},null,"0"]
[{"$f":"Planning!A74","v":"I066"},{"$f":"Planning!B74","v":0},{"$f":"Planning!C74","v":0},{"$f":"Planning!D74","v":0},{"$f":"Planning!E74","v":0},{"$f":"IF(Planning!G74<>0,Planning!G74,\"\")","v":""},{"$f":"Planning!H74","v":0},{"$f":"Planning!O74","v":0},{"$f":"IF(OR(W90=\"1\",AND(W90<>\"1\",G90=Lists!$A$17)),Y90,0)","v":0},null,{"$f":"IF(AND(W90=\"2\",G90<>Lists!$A$17),AA90,Z90)","v":""},"",{"$f":"Planning!P74","v":{"v":0,"d":"0.00"}},{"$f":"'Month 2'!M90+'Month 2'!N90-'Month 2'!O90","v":{"v":0,"d":"0.00"}},null,{"$f":"IF(AND(M90=0,N90=0,O90=0),\"\",IF((M90+N90)>0,O90/(M90+N90),O90))","v":""},"",{"$f":"SUMIFS($J$25:$J$224,$C$25:$C$224,$C90,$G$25:$G$224,Lists!$A$16)","v":0},{"$f":"SUMIFS($O$25:$O$224,$C$25:$C$224,$C90,$G$25:$G$224,\"<>0\")","v":0},null,{"$f":"IF(B90=0,\"\",IF(LEFT(B90,1)=\"1\",\"1\",\"2\"))","v":""},null,{"$f":"IF(C90=0,\"\",LEFT(INDEX(Lists!$H$5:$H$49,MATCH(C90,Lists!$G$5:$G$49,0),1),1))","v":""},null,{"$f":"'Month 2'!H90+'Month 2'!I90-'Month 2'!J90","v":0},{"$f":"IF(AND(H90=0,I90=0,J90=0),\"\",IF((H90+I90)>0,J90/(H90+I90),J90))","v":""},"",null,{"$f":"U90&C90","v":"0"}]
[{"$f":"Planning!A75","v":"I067"},{"$f":"Planning!B75","v":0},{"$f":"Planning!C75","v":0},{"$f":"Planning!D75","v":0},{"$f":"Planning!E75","v":0},{"$f":"IF(Planning!G75<>0,Planning!G75,\"\")","v":""},{"$f":"Planning!H75","v":0},{"$f":"Planning!O75","v":0},{"$f":"IF(OR(W91=\"1\",AND(W91<>\"1\",G91=Lists!$A$17)),Y91,0)","v":0},null,{"$f":"IF(AND(W91=\"2\",G91<>Lists!$A$17),AA91,Z91)","v":""},"",{"$f":"Planning!P75","v":{"v":0,"d":"0.00"}},{"$f":"'Month 2'!M91+'Month 2'!N91-'Month 2'!O91","v":{"v":0,"d":"0.00"}},null,"","",{"$f":"SUMIFS($J$25:$J$224,$C$25:$C$224,$C91,$G$25:$G$224,Lists!$A$16)","v":0},0,null,"",null,{"$f":"IF(C91=0,\"\",LEFT(INDEX(Lists!$H$5:$H$49,MATCH(C91,Lists!$G$5:$G$49,0),1),1))","v":""},null,{"$f":"'Month 2'!H91+'Month 2'!I91-'Month 2'!J91","v":0},"","",null,"0"]
[{"$f":"Planning!A76","v":"I068"},{"$f":"Planning!B76","v":0},{"$f":"Planning!C76","v":0},{"$f":"Planning!D76","v":0},{"$f":"Planning!E76","v":0},{"$f":"IF(Planning!G76<>0,Planning!G76,\"\")","v":""},{"$f":"Planning!H76","v":0},{"$f":"Planning!O76","v":0},{"$f":"IF(OR(W92=\"1\",AND(W92<>\"1\",G92=Lists!$A$17)),Y92,0)","v":0},null,{"$f":"IF(AND(W92=\"2\",G92<>Lists!$A$17),AA92,Z92)","v":""},"",{"$f":"Planning!P76","v":{"v":0,"d":"0.00"}},{"$f":"'Month 2'!M92+'Month 2'!N92-'Month 2'!O92","v":{"v":0,"d":"0.00"}},null,"","",{"$f":"SUMIFS($J$25:$J$224,$C$25:$C$224,$C92,$G$25:$G$224,Lists!$A$16)","v":0},0,null,"",null,{"$f":"IF(C92=0,\"\",LEFT(INDEX(Lists!$H$5:$H$49,MATCH(C92,Lists!$G$5:$G$49,0),1),1))","v":""},null,{"$f":"'Month 2'!H92+'Month 2'!I92-'Month 2'!J92","v":0},"","",null,"0"]
[{"$f":"Planning!A77","v":"I069"},{"$f":"Planning!B77","v":0},{"$f":"Planning!C77","v":0},{"$f":"Planning!D77","v":0},{"$f":"Planning!E77","v":0},{"$f":"IF(Planning!G77<>0,Planning!G77,\"\")","v":""},{"$f":"Planning!H77","v":0},{"$f":"Planning!O77","v":0},{"$f":"IF(OR(W93=\"1\",AND(W93<>\"1\",G93=Lists!$A$17)),Y93,0)","v":0},null,{"$f":"IF(AND(W93=\"2\",G93<>Lists!$A$17),AA93,Z93)","v":""},"",{"$f":"Planning!P77","v":{"v":0,"d":"0.00"}},{"$f":"'Month 2'!M93+'Month 2'!N93-'Month 2'!O93","v":{"v":0,"d":"0.00"}},null,"","",{"$f":"SUMIFS($J$25:$J$224,$C$25:$C$224,$C93,$G$25:$G$224,Lists!$A$16)","v":0},0,null,"",null,{"$f":"IF(C93=0,\"\",LEFT(INDEX(Lists!$H$5:$H$49,MATCH(C93,Lists!$G$5:$G$49,0),1),1))","v":""},null,{"$f":"'Month 2'!H93+'Month 2'!I93-'Month 2'!J93","v":0},"","",null,"0"]
[{"$f":"Planning!A78","v":"I070"},{"$f":"Planning!B78","v":0},{"$f":"Planning!C78","v":0},{"$f":"Planning!D78","v":0},{"$f":"Planning!E78","v":0},{"$f":"IF(Planning!G78<>0,Planning!G78,\"\")","v":""},{"$f":"Planning!H78","v":0},{"$f":"Planning!O78","v":0},{"$f":"IF(OR(W94=\"1\",AND(W94<>\"1\",G94=Lists!$A$17)),Y94,0)","v":0},null,{"$f":"IF(AND(W94=\"2\",G94<>Lists!$A$17),AA94,Z94)","v":""},"",{"$f":"Planning!P78","v":{"v":0,"d":"0.00"}},{"$f":"'Month 2'!M94+'Month 2'!N94-'Month 2'!O94","v":{"v":0,"d":"0.00"}},null,"","",{"$f":"SUMIFS($J$25:$J$224,$C$25:$C$224,$C94,$G$25:$G$224,Lists!$A$16)","v":0},0,null,"",null,{"$f":"IF(C94=0,\"\",LEFT(INDEX(Lists!$H$5:$H$49,MATCH(C94,Lists!$G$5:$G$49,0),1),1))","v":""},null,{"$f":"'Month 2'!H94+'Month 2'!I94-'Month 2'!J94","v":0},"","",null,"0"]
[{"$f":"Planning!A79","v":"I071"},{"$f":"Planning!B79","v":0},{"$f":"Planning!C79","v":0},{"$f":"Planning!D79","v":0},{"$f":"Planning!E79","v":0},{"$f":"IF(Planning!G79<>0,Planning!G79,\"\")","v":""},{"$f":"Planning!H79","v":0},{"$f":"Planning!O79","v":0},{"$f":"IF(OR(W95=\"1\",AND(W95<>\"1\",G95=Lists!$A$17)),Y95,0)","v":0},null,{"$f":"IF(AND(W95=\"2\",G95<>Lists!$A$17),AA95,Z95)","v":""},"",{"$f":"Planning!P79","v":{"v":0,"d":"0.00"}},{"$f":"'Month 2'!M95+'Month 2'!N95-'Month 2'!O95","v":{"v":0,"d":"0.00"}},null,"","",{"$f":"SUMIFS($J$25:$J$224,$C$25:$C$224,$C95,$G$25:$G$224,Lists!$A$16)","v":0},0,null,"",null,{"$f":"IF(C95=0,\"\",LEFT(INDEX(Lists!$H$5:$H$49,MATCH(C95,Lists!$G$5:$G$49,0),1),1))","v":""},null,{"$f":"'Month 2'!H95+'Month 2'!I95-'Month 2'!J95","v":0},"","",null,"0"]
[{"$f":"Planning!A80","v":"I072"},{"$f":"Planning!B80","v":0},{"$f":"Planning!C80","v":0},{"$f":"Planning!D80","v":0},{"$f":"Planning!E80","v":0},{"$f":"IF(Planning!G80<>0,Planning!G80,\"\")","v":""},{"$f":"Planning!H80","v":0},{"$f":"Planning!O80","v":0},{"$f":"IF(OR(W96=\"1\",AND(W96<>\"1\",G96=Lists!$A$17)),Y96,0)","v":0},null,{"$f":"IF(AND(W96=\"2\",G96<>Lists!$A$17),AA96,Z96)","v":""},"",{"$f":"Planning!P80","v":{"v":0,"d":"0.00"}},{"$f":"'Month 2'!M96+'Month 2'!N96-'Month 2'!O96","v":{"v":0,"d":"0.00"}},null,"","",{"$f":"SUMIFS($J$25:$J$224,$C$25:$C$224,$C96,$G$25:$G$224,Lists!$A$16)","v":0},0,null,"",null,{"$f":"IF(C96=0,\"\",LEFT(INDEX(Lists!$H$5:$H$49,MATCH(C96,Lists!$G$5:$G$49,0),1),1))","v":""},null,{"$f":"'Month 2'!H96+'Month 2'!I96-'Month 2'!J96","v":0},"","",null,"0"]
[{"$f":"Planning!A81","v":"I073"},{"$f":"Planning!B81","v":0},{"$f":"Planning!C81","v":0},{"$f":"Planning!D81","v":0},{"$f":"Planning!E81","v":0},{"$f":"IF(Planning!G81<>0,Planning!G81,\"\")","v":""},{"$f":"Planning!H81","v":0},{"$f":"Planning!O81","v":0},{"$f":"IF(OR(W97=\"1\",AND(W97<>\"1\",G97=Lists!$A$17)),Y97,0)","v":0},null,{"$f":"IF(AND(W97=\"2\",G97<>Lists!$A$17),AA97,Z97)","v":""},"",{"$f":"Planning!P81","v":{"v":0,"d":"0.00"}},{"$f":"'Month 2'!M97+'Month 2'!N97-'Month 2'!O97","v":{"v":0,"d":"0.00"}},null,"","",{"$f":"SUMIFS($J$25:$J$224,$C$25:$C$224,$C97,$G$25:$G$224,Lists!$A$16)","v":0},0,null,"",null,{"$f":"IF(C97=0,\"\",LEFT(INDEX(Lists!$H$5:$H$49,MATCH(C97,Lists!$G$5:$G$49,0),1),1))","v":""},null,{"$f":"'Month 2'!H97+'Month 2'!I97-'Month 2'!J97","v":0},"","",null,"0"]
[{"$f":"Planning!A82","v":"I074"},{"$f":"Planning!B82","v":0},{"$f":"Planning!C82","v":0},{"$f":"Planning!D82","v":0},{"$f":"Planning!E82","v":0},{"$f":"IF(Planning!G82<>0,Planning!G82,\"\")","v":""},{"$f":"Planning!H82","v":0},{"$f":"Planning!O82","v":0},{"$f":"IF(OR(W98=\"1\",AND(W98<>\"1\",G98=Lists!$A$17)),Y98,0)","v":0},null,{"$f":"IF(AND(W98=\"2\",G98<>Lists!$A$17),AA98,Z98)","v":""},"",{"$f":"Planning!P82","v":{"v":0,"d":"0.00"}},{"$f":"'Month 2'!M98+'Month 2'!N98-'Month 2'!O98","v":{"v":0,"d":"0.00"}},null,"","",{"$f":"SUMIFS($J$25:$J$224,$C$25:$C$224,$C98,$G$25:$G$224,Lists!$A$16)","v":0},0,null,"",null,{"$f":"IF(C98=0,\"\",LEFT(INDEX(Lists!$H$5:$H$49,MATCH(C98,Lists!$G$5:$G$49,0),1),1))","v":""},null,{"$f":"'Month 2'!H98+'Month 2'!I98-'Month 2'!J98","v":0},"","",null,"0"]
[{"$f":"Planning!A83","v":"I075"},{"$f":"Planning!B83","v":0},{"$f":"Planning!C83","v":0},{"$f":"Planning!D83","v":0},{"$f":"Planning!E83","v":0},{"$f":"IF(Planning!G83<>0,Planning!G83,\"\")","v":""},{"$f":"Planning!H83","v":0},{"$f":"Planning!O83","v":0},{"$f":"IF(OR(W99=\"1\",AND(W99<>\"1\",G99=Lists!$A$17)),Y99,0)","v":0},null,{"$f":"IF(AND(W99=\"2\",G99<>Lists!$A$17),AA99,Z99)","v":""},"",{"$f":"Planning!P83","v":{"v":0,"d":"0.00"}},{"$f":"'Month 2'!M99+'Month 2'!N99-'Month 2'!O99","v":{"v":0,"d":"0.00"}},null,"","",{"$f":"SUMIFS($J$25:$J$224,$C$25:$C$224,$C99,$G$25:$G$224,Lists!$A$16)","v":0},0,null,"",null,{"$f":"IF(C99=0,\"\",LEFT(INDEX(Lists!$H$5:$H$49,MATCH(C99,Lists!$G$5:$G$49,0),1),1))","v":""},null,{"$f":"'Month 2'!H99+'Month 2'!I99-'Month 2'!J99","v":0},"","",null,"0"]
[{"$f":"Planning!A84","v":"I076"},{"$f":"Planning!B84","v":0},{"$f":"Planning!C84","v":0},{"$f":"Planning!D84","v":0},{"$f":"Planning!E84","v":0},{"$f":"IF(Planning!G84<>0,Planning!G84,\"\")","v":""},{"$f":"Planning!H84","v":0},{"$f":"Planning!O84","v":0},{"$f":"IF(OR(W100=\"1\",AND(W100<>\"1\",G100=Lists!$A$17)),Y100,0)","v":0},null,{"$f":"IF(AND(W100=\"2\",G100<>Lists!$A$17),AA100,Z100)","v":""},"",{"$f":"Planning!P84","v":{"v":0,"d":"0.00"}},{"$f":"'Month 2'!M100+'Month 2'!N100-'Month 2'!O100","v":{"v":0,"d":"0.00"}},null,"","",{"$f":"SUMIFS($J$25:$J$224,$C$25:$C$224,$C100,$G$25:$G$224,Lists!$A$16)","v":0},0,null,"",null,{"$f":"IF(C100=0,\"\",LEFT(INDEX(Lists!$H$5:$H$49,MATCH(C100,Lists!$G$5:$G$49,0),1),1))","v":""},null,{"$f":"'Month 2'!H100+'Month 2'!I100-'Month 2'!J100","v":0},"","",null,"0"]
[{"$f":"Planning!A85","v":"I077"},{"$f":"Planning!B85","v":0},{"$f":"Planning!C85","v":0},{"$f":"Planning!D85","v":0},{"$f":"Planning!E85","v":0},{"$f":"IF(Planning!G85<>0,Planning!G85,\"\")","v":""},{"$f":"Planning!H85","v":0},{"$f":"Planning!O85","v":0},{"$f":"IF(OR(W101=\"1\",AND(W101<>\"1\",G101=Lists!$A$17)),Y101,0)","v":0},null,{"$f":"IF(AND(W101=\"2\",G101<>Lists!$A$17),AA101,Z101)","v":""},"",{"$f":"Planning!P85","v":{"v":0,"d":"0.00"}},{"$f":"'Month 2'!M101+'Month 2'!N101-'Month 2'!O101","v":{"v":0,"d":"0.00"}},null,"","",{"$f":"SUMIFS($J$25:$J$224,$C$25:$C$224,$C101,$G$25:$G$224,Lists!$A$16)","v":0},0,null,"",null,{"$f":"IF(C101=0,\"\",LEFT(INDEX(Lists!$H$5:$H$49,MATCH(C101,Lists!$G$5:$G$49,0),1),1))","v":""},null,{"$f":"'Month 2'!H101+'Month 2'!I101-'Month 2'!J101","v":0},"","",null,"0"]
[{"$f":"Planning!A86","v":"I078"},{"$f":"Planning!B86","v":0},{"$f":"Planning!C86","v":0},{"$f":"Planning!D86","v":0},{"$f":"Planning!E86","v":0},{"$f":"IF(Planning!G86<>0,Planning!G86,\"\")","v":""},{"$f":"Planning!H86","v":0},{"$f":"Planning!O86","v":0},{"$f":"IF(OR(W102=\"1\",AND(W102<>\"1\",G102=Lists!$A$17)),Y102,0)","v":0},null,{"$f":"IF(AND(W102=\"2\",G102<>Lists!$A$17),AA102,Z102)","v":""},"",{"$f":"Planning!P86","v":{"v":0,"d":"0.00"}},{"$f":"'Month 2'!M102+'Month 2'!N102-'Month 2'!O102","v":{"v":0,"d":"0.00"}},null,"","",{"$f":"SUMIFS($J$25:$J$224,$C$25:$C$224,$C102,$G$25:$G$224,Lists!$A$16)","v":0},0,null,"",null,{"$f":"IF(C102=0,\"\",LEFT(INDEX(Lists!$H$5:$H$49,MATCH(C102,Lists!$G$5:$G$49,0),1),1))","v":""},null,{"$f":"'Month 2'!H102+'Month 2'!I102-'Month 2'!J102","v":0},"","",null,"0"]
[{"$f":"Planning!A87","v":"I079"},{"$f":"Planning!B87","v":0},{"$f":"Planning!C87","v":0},{"$f":"Planning!D87","v":0},{"$f":"Planning!E87","v":0},{"$f":"IF(Planning!G87<>0,Planning!G87,\"\")","v":""},{"$f":"Planning!H87","v":0},{"$f":"Planning!O87","v":0},{"$f":"IF(OR(W103=\"1\",AND(W103<>\"1\",G103=Lists!$A$17)),Y103,0)","v":0},null,{"$f":"IF(AND(W103=\"2\",G103<>Lists!$A$17),AA103,Z103)","v":""},"",{"$f":"Planning!P87","v":{"v":0,"d":"0.00"}},{"$f":"'Month 2'!M103+'Month 2'!N103-'Month 2'!O103","v":{"v":0,"d":"0.00"}},null,"","",{"$f":"SUMIFS($J$25:$J$224,$C$25:$C$224,$C103,$G$25:$G$224,Lists!$A$16)","v":0},0,null,"",null,{"$f":"IF(C103=0,\"\",LEFT(INDEX(Lists!$H$5:$H$49,MATCH(C103,Lists!$G$5:$G$49,0),1),1))","v":""},null,{"$f":"'Month 2'!H103+'Month 2'!I103-'Month 2'!J103","v":0},"","",null,"0"]
[{"$f":"Planning!A88","v":"I080"},{"$f":"Planning!B88","v":0},{"$f":"Planning!C88","v":0},{"$f":"Planning!D88","v":0},{"$f":"Planning!E88","v":0},{"$f":"IF(Planning!G88<>0,Planning!G88,\"\")","v":""},{"$f":"Planning!H88","v":0},{"$f":"Planning!O88","v":0},{"$f":"IF(OR(W104=\"1\",AND(W104<>\"1\",G104=Lists!$A$17)),Y104,0)","v":0},null,{"$f":"IF(AND(W104=\"2\",G104<>Lists!$A$17),AA104,Z104)","v":""},"",{"$f":"Planning!P88","v":{"v":0,"d":"0.00"}},{"$f":"'Month 2'!M104+'Month 2'!N104-'Month 2'!O104","v":{"v":0,"d":"0.00"}},null,"","",{"$f":"SUMIFS($J$25:$J$224,$C$25:$C$224,$C104,$G$25:$G$224,Lists!$A$16)","v":0},0,null,"",null,{"$f":"IF(C104=0,\"\",LEFT(INDEX(Lists!$H$5:$H$49,MATCH(C104,Lists!$G$5:$G$49,0),1),1))","v":""},null,{"$f":"'Month 2'!H104+'Month 2'!I104-'Month 2'!J104","v":0},"","",null,"0"]
[{"$f":"Planning!A89","v":"I081"},{"$f":"Planning!B89","v":0},{"$f":"Planning!C89","v":0},{"$f":"Planning!D89","v":0},{"$f":"Planning!E89","v":0},{"$f":"IF(Planning!G89<>0,Planning!G89,\"\")","v":""},{"$f":"Planning!H89","v":0},{"$f":"Planning!O89","v":0},{"$f":"IF(OR(W105=\"1\",AND(W105<>\"1\",G105=Lists!$A$17)),Y105,0)","v":0},null,{"$f":"IF(AND(W105=\"2\",G105<>Lists!$A$17),AA105,Z105)","v":""},"",{"$f":"Planning!P89","v":{"v":0,"d":"0.00"}},{"$f":"'Month 2'!M105+'Month 2'!N105-'Month 2'!O105","v":{"v":0,"d":"0.00"}},null,"","",{"$f":"SUMIFS($J$25:$J$224,$C$25:$C$224,$C105,$G$25:$G$224,Lists!$A$16)","v":0},0,null,"",null,{"$f":"IF(C105=0,\"\",LEFT(INDEX(Lists!$H$5:$H$49,MATCH(C105,Lists!$G$5:$G$49,0),1),1))","v":""},null,{"$f":"'Month 2'!H105+'Month 2'!I105-'Month 2'!J105","v":0},"","",null,"0"]
[{"$f":"Planning!A90","v":"I082"},{"$f":"Planning!B90","v":0},{"$f":"Planning!C90","v":0},{"$f":"Planning!D90","v":0},{"$f":"Planning!E90","v":0},{"$f":"IF(Planning!G90<>0,Planning!G90,\"\")","v":""},{"$f":"Planning!H90","v":0},{"$f":"Planning!O90","v":0},{"$f":"IF(OR(W106=\"1\",AND(W106<>\"1\",G106=Lists!$A$17)),Y106,0)","v":0},null,{"$f":"IF(AND(W106=\"2\",G106<>Lists!$A$17),AA106,Z106)","v":""},"",{"$f":"Planning!P90","v":{"v":0,"d":"0.00"}},{"$f":"'Month 2'!M106+'Month 2'!N106-'Month 2'!O106","v":{"v":0,"d":"0.00"}},null,"","",{"$f":"SUMIFS($J$25:$J$224,$C$25:$C$224,$C106,$G$25:$G$224,Lists!$A$16)","v":0},0,null,"",null,{"$f":"IF(C106=0,\"\",LEFT(INDEX(Lists!$H$5:$H$49,MATCH(C106,Lists!$G$5:$G$49,0),1),1))","v":""},null,{"$f":"'Month 2'!H106+'Month 2'!I106-'Month 2'!J106","v":0},"","",null,"0"]
[{"$f":"Planning!A91","v":"I083"},{"$f":"Planning!B91","v":0},{"$f":"Planning!C91","v":0},{"$f":"Planning!D91","v":0},{"$f":"Planning!E91","v":0},{"$f":"IF(Planning!G91<>0,Planning!G91,\"\")","v":""},{"$f":"Planning!H91","v":0},{"$f":"Planning!O91","v":0},{"$f":"IF(OR(W107=\"1\",AND(W107<>\"1\",G107=Lists!$A$17)),Y107,0)","v":0},null,{"$f":"IF(AND(W107=\"2\",G107<>Lists!$A$17),AA107,Z107)","v":""},"",{"$f":"Planning!P91","v":{"v":0,"d":"0.00"}},{"$f":"'Month 2'!M107+'Month 2'!N107-'Month 2'!O107","v":{"v":0,"d":"0.00"}},null,"","",{"$f":"SUMIFS($J$25:$J$224,$C$25:$C$224,$C107,$G$25:$G$224,Lists!$A$16)","v":0},0,null,"",null,{"$f":"IF(C107=0,\"\",LEFT(INDEX(Lists!$H$5:$H$49,MATCH(C107,Lists!$G$5:$G$49,0),1),1))","v":""},null,{"$f":"'Month 2'!H107+'Month 2'!I107-'Month 2'!J107","v":0},"","",null,"0"]
[{"$f":"Planning!A92","v":"I084"},{"$f":"Planning!B92","v":0},{"$f":"Planning!C92","v":0},{"$f":"Planning!D92","v":0},{"$f":"Planning!E92","v":0},{"$f":"IF(Planning!G92<>0,Planning!G92,\"\")","v":""},{"$f":"Planning!H92","v":0},{"$f":"Planning!O92","v":0},{"$f":"IF(OR(W108=\"1\",AND(W108<>\"1\",G108=Lists!$A$17)),Y108,0)","v":0},null,{"$f":"IF(AND(W108=\"2\",G108<>Lists!$A$17),AA108,Z108)","v":""},"",{"$f":"Planning!P92","v":{"v":0,"d":"0.00"}},{"$f":"'Month 2'!M108+'Month 2'!N108-'Month 2'!O108","v":{"v":0,"d":"0.00"}},null,"","",{"$f":"SUMIFS($J$25:$J$224,$C$25:$C$224,$C108,$G$25:$G$224,Lists!$A$16)","v":0},0,null,"",null,{"$f":"IF(C108=0,\"\",LEFT(INDEX(Lists!$H$5:$H$49,MATCH(C108,Lists!$G$5:$G$49,0),1),1))","v":""},null,{"$f":"'Month 2'!H108+'Month 2'!I108-'Month 2'!J108","v":0},"","",null,"0"]
[{"$f":"Planning!A93","v":"I085"},{"$f":"Planning!B93","v":0},{"$f":"Planning!C93","v":0},{"$f":"Planning!D93","v":0},{"$f":"Planning!E93","v":0},{"$f":"IF(Planning!G93<>0,Planning!G93,\"\")","v":""},{"$f":"Planning!H93","v":0},{"$f":"Planning!O93","v":0},{"$f":"IF(OR(W109=\"1\",AND(W109<>\"1\",G109=Lists!$A$17)),Y109,0)","v":0},null,{"$f":"IF(AND(W109=\"2\",G109<>Lists!$A$17),AA109,Z109)","v":""},"",{"$f":"Planning!P93","v":{"v":0,"d":"0.00"}},{"$f":"'Month 2'!M109+'Month 2'!N109-'Month 2'!O109","v":{"v":0,"d":"0.00"}},null,"","",{"$f":"SUMIFS($J$25:$J$224,$C$25:$C$224,$C109,$G$25:$G$224,Lists!$A$16)","v":0},0,null,"",null,{"$f":"IF(C109=0,\"\",LEFT(INDEX(Lists!$H$5:$H$49,MATCH(C109,Lists!$G$5:$G$49,0),1),1))","v":""},null,{"$f":"'Month 2'!H109+'Month 2'!I109-'Month 2'!J109","v":0},"","",null,"0"]
[{"$f":"Planning!A94","v":"I086"},{"$f":"Planning!B94","v":0},{"$f":"Planning!C94","v":0},{"$f":"Planning!D94","v":0},{"$f":"Planning!E94","v":0},{"$f":"IF(Planning!G94<>0,Planning!G94,\"\")","v":""},{"$f":"Planning!H94","v":0},{"$f":"Planning!O94","v":0},{"$f":"IF(OR(W110=\"1\",AND(W110<>\"1\",G110=Lists!$A$17)),Y110,0)","v":0},null,{"$f":"IF(AND(W110=\"2\",G110<>Lists!$A$17),AA110,Z110)","v":""},"",{"$f":"Planning!P94","v":{"v":0,"d":"0.00"}},{"$f":"'Month 2'!M110+'Month 2'!N110-'Month 2'!O110","v":{"v":0,"d":"0.00"}},null,"","",{"$f":"SUMIFS($J$25:$J$224,$C$25:$C$224,$C110,$G$25:$G$224,Lists!$A$16)","v":0},0,null,"",null,{"$f":"IF(C110=0,\"\",LEFT(INDEX(Lists!$H$5:$H$49,MATCH(C110,Lists!$G$5:$G$49,0),1),1))","v":""},null,{"$f":"'Month 2'!H110+'Month 2'!I110-'Month 2'!J110","v":0},"","",null,"0"]
[{"$f":"Planning!A95","v":"I087"},{"$f":"Planning!B95","v":0},{"$f":"Planning!C95","v":0},{"$f":"Planning!D95","v":0},{"$f":"Planning!E95","v":0},{"$f":"IF(Planning!G95<>0,Planning!G95,\"\")","v":""},{"$f":"Planning!H95","v":0},{"$f":"Planning!O95","v":0},{"$f":"IF(OR(W111=\"1\",AND(W111<>\"1\",G111=Lists!$A$17)),Y111,0)","v":0},null,{"$f":"IF(AND(W111=\"2\",G111<>Lists!$A$17),AA111,Z111)","v":""},"",{"$f":"Planning!P95","v":{"v":0,"d":"0.00"}},{"$f":"'Month 2'!M111+'Month 2'!N111-'Month 2'!O111","v":{"v":0,"d":"0.00"}},null,"","",{"$f":"SUMIFS($J$25:$J$224,$C$25:$C$224,$C111,$G$25:$G$224,Lists!$A$16)","v":0},0,null,"",null,{"$f":"IF(C111=0,\"\",LEFT(INDEX(Lists!$H$5:$H$49,MATCH(C111,Lists!$G$5:$G$49,0),1),1))","v":""},null,{"$f":"'Month 2'!H111+'Month 2'!I111-'Month 2'!J111","v":0},"","",null,"0"]
[{"$f":"Planning!A96","v":"I088"},{"$f":"Planning!B96","v":0},{"$f":"Planning!C96","v":0},{"$f":"Planning!D96","v":0},{"$f":"Planning!E96","v":0},{"$f":"IF(Planning!G96<>0,Planning!G96,\"\")","v":""},{"$f":"Planning!H96","v":0},{"$f":"Planning!O96","v":0},{"$f":"IF(OR(W112=\"1\",AND(W112<>\"1\",G112=Lists!$A$17)),Y112,0)","v":0},null,{"$f":"IF(AND(W112=\"2\",G112<>Lists!$A$17),AA112,Z112)","v":""},"",{"$f":"Planning!P96","v":{"v":0,"d":"0.00"}},{"$f":"'Month 2'!M112+'Month 2'!N112-'Month 2'!O112","v":{"v":0,"d":"0.00"}},null,"","",{"$f":"SUMIFS($J$25:$J$224,$C$25:$C$224,$C112,$G$25:$G$224,Lists!$A$16)","v":0},0,null,"",null,{"$f":"IF(C112=0,\"\",LEFT(INDEX(Lists!$H$5:$H$49,MATCH(C112,Lists!$G$5:$G$49,0),1),1))","v":""},null,{"$f":"'Month 2'!H112+'Month 2'!I112-'Month 2'!J112","v":0},"","",null,"0"]
[{"$f":"Planning!A97","v":"I089"},{"$f":"Planning!B97","v":0},{"$f":"Planning!C97","v":0},{"$f":"Planning!D97","v":0},{"$f":"Planning!E97","v":0},{"$f":"IF(Planning!G97<>0,Planning!G97,\"\")","v":""},{"$f":"Planning!H97","v":0},{"$f":"Planning!O97","v":0},{"$f":"IF(OR(W113=\"1\",AND(W113<>\"1\",G113=Lists!$A$17)),Y113,0)","v":0},null,{"$f":"IF(AND(W113=\"2\",G113<>Lists!$A$17),AA113,Z113)","v":""},"",{"$f":"Planning!P97","v":{"v":0,"d":"0.00"}},{"$f":"'Month 2'!M113+'Month 2'!N113-'Month 2'!O113","v":{"v":0,"d":"0.00"}},null,"","",{"$f":"SUMIFS($J$25:$J$224,$C$25:$C$224,$C113,$G$25:$G$224,Lists!$A$16)","v":0},0,null,"",null,{"$f":"IF(C113=0,\"\",LEFT(INDEX(Lists!$H$5:$H$49,MATCH(C113,Lists!$G$5:$G$49,0),1),1))","v":""},null,{"$f":"'Month 2'!H113+'Month 2'!I113-'Month 2'!J113","v":0},"","",null,"0"]
[{"$f":"Planning!A98","v":"I090"},{"$f":"Planning!B98","v":0},{"$f":"Planning!C98","v":0},{"$f":"Planning!D98","v":0},{"$f":"Planning!E98","v":0},{"$f":"IF(Planning!G98<>0,Planning!G98,\"\")","v":""},{"$f":"Planning!H98","v":0},{"$f":"Planning!O98","v":0},{"$f":"IF(OR(W114=\"1\",AND(W114<>\"1\",G114=Lists!$A$17)),Y114,0)","v":0},null,{"$f":"IF(AND(W114=\"2\",G114<>Lists!$A$17),AA114,Z114)","v":""},"",{"$f":"Planning!P98","v":{"v":0,"d":"0.00"}},{"$f":"'Month 2'!M114+'Month 2'!N114-'Month 2'!O114","v":{"v":0,"d":"0.00"}},null,"","",{"$f":"SUMIFS($J$25:$J$224,$C$25:$C$224,$C114,$G$25:$G$224,Lists!$A$16)","v":0},0,null,"",null,{"$f":"IF(C114=0,\"\",LEFT(INDEX(Lists!$H$5:$H$49,MATCH(C114,Lists!$G$5:$G$49,0),1),1))","v":""},null,{"$f":"'Month 2'!H114+'Month 2'!I114-'Month 2'!J114","v":0},"","",null,"0"]
[{"$f":"Planning!A99","v":"I091"},{"$f":"Planning!B99","v":0},{"$f":"Planning!C99","v":0},{"$f":"Planning!D99","v":0},{"$f":"Planning!E99","v":0},{"$f":"IF(Planning!G99<>0,Planning!G99,\"\")","v":""},{"$f":"Planning!H99","v":0},{"$f":"Planning!O99","v":0},{"$f":"IF(OR(W115=\"1\",AND(W115<>\"1\",G115=Lists!$A$17)),Y115,0)","v":0},null,{"$f":"IF(AND(W115=\"2\",G115<>Lists!$A$17),AA115,Z115)","v":""},"",{"$f":"Planning!P99","v":{"v":0,"d":"0.00"}},{"$f":"'Month 2'!M115+'Month 2'!N115-'Month 2'!O115","v":{"v":0,"d":"0.00"}},null,"","",{"$f":"SUMIFS($J$25:$J$224,$C$25:$C$224,$C115,$G$25:$G$224,Lists!$A$16)","v":0},0,null,"",null,{"$f":"IF(C115=0,\"\",LEFT(INDEX(Lists!$H$5:$H$49,MATCH(C115,Lists!$G$5:$G$49,0),1),1))","v":""},null,{"$f":"'Month 2'!H115+'Month 2'!I115-'Month 2'!J115","v":0},"","",null,"0"]
[{"$f":"Planning!A100","v":"I092"},{"$f":"Planning!B100","v":0},{"$f":"Planning!C100","v":0},{"$f":"Planning!D100","v":0},{"$f":"Planning!E100","v":0},{"$f":"IF(Planning!G100<>0,Planning!G100,\"\")","v":""},{"$f":"Planning!H100","v":0},{"$f":"Planning!O100","v":0},{"$f":"IF(OR(W116=\"1\",AND(W116<>\"1\",G116=Lists!$A$17)),Y116,0)","v":0},null,{"$f":"IF(AND(W116=\"2\",G116<>Lists!$A$17),AA116,Z116)","v":""},"",{"$f":"Planning!P100","v":{"v":0,"d":"0.00"}},{"$f":"'Month 2'!M116+'Month 2'!N116-'Month 2'!O116","v":{"v":0,"d":"0.00"}},null,"","",{"$f":"SUMIFS($J$25:$J$224,$C$25:$C$224,$C116,$G$25:$G$224,Lists!$A$16)","v":0},0,null,"",null,{"$f":"IF(C116=0,\"\",LEFT(INDEX(Lists!$H$5:$H$49,MATCH(C116,Lists!$G$5:$G$49,0),1),1))","v":""},null,{"$f":"'Month 2'!H116+'Month 2'!I116-'Month 2'!J116","v":0},"","",null,"0"]
[{"$f":"Planning!A101","v":"I093"},{"$f":"Planning!B101","v":0},{"$f":"Planning!C101","v":0},{"$f":"Planning!D101","v":0},{"$f":"Planning!E101","v":0},{"$f":"IF(Planning!G101<>0,Planning!G101,\"\")","v":""},{"$f":"Planning!H101","v":0},{"$f":"Planning!O101","v":0},{"$f":"IF(OR(W117=\"1\",AND(W117<>\"1\",G117=Lists!$A$17)),Y117,0)","v":0},null,{"$f":"IF(AND(W117=\"2\",G117<>Lists!$A$17),AA117,Z117)","v":""},"",{"$f":"Planning!P101","v":{"v":0,"d":"0.00"}},{"$f":"'Month 2'!M117+'Month 2'!N117-'Month 2'!O117","v":{"v":0,"d":"0.00"}},null,"","",{"$f":"SUMIFS($J$25:$J$224,$C$25:$C$224,$C117,$G$25:$G$224,Lists!$A$16)","v":0},0,null,"",null,{"$f":"IF(C117=0,\"\",LEFT(INDEX(Lists!$H$5:$H$49,MATCH(C117,Lists!$G$5:$G$49,0),1),1))","v":""},null,{"$f":"'Month 2'!H117+'Month 2'!I117-'Month 2'!J117","v":0},"","",null,"0"]
[{"$f":"Planning!A102","v":"I094"},{"$f":"Planning!B102","v":0},{"$f":"Planning!C102","v":0},{"$f":"Planning!D102","v":0},{"$f":"Planning!E102","v":0},{"$f":"IF(Planning!G102<>0,Planning!G102,\"\")","v":""},{"$f":"Planning!H102","v":0},{"$f":"Planning!O102","v":0},{"$f":"IF(OR(W118=\"1\",AND(W118<>\"1\",G118=Lists!$A$17)),Y118,0)","v":0},null,{"$f":"IF(AND(W118=\"2\",G118<>Lists!$A$17),AA118,Z118)","v":""},"",{"$f":"Planning!P102","v":{"v":0,"d":"0.00"}},{"$f":"'Month 2'!M118+'Month 2'!N118-'Month 2'!O118","v":{"v":0,"d":"0.00"}},null,"","",{"$f":"SUMIFS($J$25:$J$224,$C$25:$C$224,$C118,$G$25:$G$224,Lists!$A$16)","v":0},0,null,"",null,{"$f":"IF(C118=0,\"\",LEFT(INDEX(Lists!$H$5:$H$49,MATCH(C118,Lists!$G$5:$G$49,0),1),1))","v":""},null,{"$f":"'Month 2'!H118+'Month 2'!I118-'Month 2'!J118","v":0},"","",null,"0"]
[{"$f":"Planning!A103","v":"I095"},{"$f":"Planning!B103","v":0},{"$f":"Planning!C103","v":0},{"$f":"Planning!D103","v":0},{"$f":"Planning!E103","v":0},{"$f":"IF(Planning!G103<>0,Planning!G103,\"\")","v":""},{"$f":"Planning!H103","v":0},{"$f":"Planning!O103","v":0},{"$f":"IF(OR(W119=\"1\",AND(W119<>\"1\",G119=Lists!$A$17)),Y119,0)","v":0},null,{"$f":"IF(AND(W119=\"2\",G119<>Lists!$A$17),AA119,Z119)","v":""},"",{"$f":"Planning!P103","v":{"v":0,"d":"0.00"}},{"$f":"'Month 2'!M119+'Month 2'!N119-'Month 2'!O119","v":{"v":0,"d":"0.00"}},null,"","",{"$f":"SUMIFS($J$25:$J$224,$C$25:$C$224,$C119,$G$25:$G$224,Lists!$A$16)","v":0},0,null,"",null,{"$f":"IF(C119=0,\"\",LEFT(INDEX(Lists!$H$5:$H$49,MATCH(C119,Lists!$G$5:$G$49,0),1),1))","v":""},null,{"$f":"'Month 2'!H119+'Month 2'!I119-'Month 2'!J119","v":0},"","",null,"0"]
[{"$f":"Planning!A104","v":"I096"},{"$f":"Planning!B104","v":0},{"$f":"Planning!C104","v":0},{"$f":"Planning!D104","v":0},{"$f":"Planning!E104","v":0},{"$f":"IF(Planning!G104<>0,Planning!G104,\"\")","v":""},{"$f":"Planning!H104","v":0},{"$f":"Planning!O104","v":0},{"$f":"IF(OR(W120=\"1\",AND(W120<>\"1\",G120=Lists!$A$17)),Y120,0)","v":0},null,{"$f":"IF(AND(W120=\"2\",G120<>Lists!$A$17),AA120,Z120)","v":""},"",{"$f":"Planning!P104","v":{"v":0,"d":"0.00"}},{"$f":"'Month 2'!M120+'Month 2'!N120-'Month 2'!O120","v":{"v":0,"d":"0.00"}},null,"","",{"$f":"SUMIFS($J$25:$J$224,$C$25:$C$224,$C120,$G$25:$G$224,Lists!$A$16)","v":0},0,null,"",null,{"$f":"IF(C120=0,\"\",LEFT(INDEX(Lists!$H$5:$H$49,MATCH(C120,Lists!$G$5:$G$49,0),1),1))","v":""},null,{"$f":"'Month 2'!H120+'Month 2'!I120-'Month 2'!J120","v":0},"","",null,"0"]
[{"$f":"Planning!A105","v":"I097"},{"$f":"Planning!B105","v":0},{"$f":"Planning!C105","v":0},{"$f":"Planning!D105","v":0},{"$f":"Planning!E105","v":0},{"$f":"IF(Planning!G105<>0,Planning!G105,\"\")","v":""},{"$f":"Planning!H105","v":0},{"$f":"Planning!O105","v":0},{"$f":"IF(OR(W121=\"1\",AND(W121<>\"1\",G121=Lists!$A$17)),Y121,0)","v":0},null,{"$f":"IF(AND(W121=\"2\",G121<>Lists!$A$17),AA121,Z121)","v":""},{"$f":"IF($U121=ExcluirDelPLogro,\"\",IF(AND(H121=0,I121=0,J121=0),\"\",K121))","v":""},{"$f":"Planning!P105","v":{"v":0,"d":"0.00"}},{"$f":"'Month 2'!M121+'Month 2'!N121-'Month 2'!O121","v":{"v":0,"d":"0.00"}},null,"",{"$f":"IF($U121=ExcluirDelPLogro,\"\",IF(AND(M121=0,N121=0,O121=0),\"\",P121))","v":""},{"$f":"SUMIFS($J$25:$J$224,$C$25:$C$224,$C121,$G$25:$G$224,Lists!$A$16)","v":0},0,null,"",null,{"$f":"IF(C121=0,\"\",LEFT(INDEX(Lists!$H$5:$H$49,MATCH(C121,Lists!$G$5:$G$49,0),1),1))","v":""},null,{"$f":"'Month 2'!H121+'Month 2'!I121-'Month 2'!J121","v":0},"",{"$f":"IF(AND(H121=0,I121=0,J121=0),\"\",IF(J121>0,H121/J121,0))","v":""},null,"0"]
[{"$f":"Planning!A106","v":"I098"},{"$f":"Planning!B106","v":0},{"$f":"Planning!C106","v":0},{"$f":"Planning!D106","v":0},{"$f":"Planning!E106","v":0},{"$f":"IF(Planning!G106<>0,Planning!G106,\"\")","v":""},{"$f":"Planning!H106","v":0},{"$f":"Planning!O106","v":0},{"$f":"IF(OR(W122=\"1\",AND(W122<>\"1\",G122=Lists!$A$17)),Y122,0)","v":0},null,{"$f":"IF(AND(W122=\"2\",G122<>Lists!$A$17),AA122,Z122)","v":""},"",{"$f":"Planning!P106","v":{"v":0,"d":"0.00"}},{"$f":"'Month 2'!M122+'Month 2'!N122-'Month 2'!O122","v":{"v":0,"d":"0.00"}},null,"","",{"$f":"SUMIFS($J$25:$J$224,$C$25:$C$224,$C122,$G$25:$G$224,Lists!$A$16)","v":0},0,null,"",null,{"$f":"IF(C122=0,\"\",LEFT(INDEX(Lists!$H$5:$H$49,MATCH(C122,Lists!$G$5:$G$49,0),1),1))","v":""},null,{"$f":"'Month 2'!H122+'Month 2'!I122-'Month 2'!J122","v":0},"","",null,"0"]
[{"$f":"Planning!A107","v":"I099"},{"$f":"Planning!B107","v":0},{"$f":"Planning!C107","v":0},{"$f":"Planning!D107","v":0},{"$f":"Planning!E107","v":0},{"$f":"IF(Planning!G107<>0,Planning!G107,\"\")","v":""},{"$f":"Planning!H107","v":0},{"$f":"Planning!O107","v":0},{"$f":"IF(OR(W123=\"1\",AND(W123<>\"1\",G123=Lists!$A$17)),Y123,0)","v":0},null,{"$f":"IF(AND(W123=\"2\",G123<>Lists!$A$17),AA123,Z123)","v":""},"",{"$f":"Planning!P107","v":{"v":0,"d":"0.00"}},{"$f":"'Month 2'!M123+'Month 2'!N123-'Month 2'!O123","v":{"v":0,"d":"0.00"}},null,"","",{"$f":"SUMIFS($J$25:$J$224,$C$25:$C$224,$C123,$G$25:$G$224,Lists!$A$16)","v":0},0,null,"",null,{"$f":"IF(C123=0,\"\",LEFT(INDEX(Lists!$H$5:$H$49,MATCH(C123,Lists!$G$5:$G$49,0),1),1))","v":""},null,{"$f":"'Month 2'!H123+'Month 2'!I123-'Month 2'!J123","v":0},"","",null,"0"]
[{"$f":"Planning!A108","v":"I100"},{"$f":"Planning!B108","v":0},{"$f":"Planning!C108","v":0},{"$f":"Planning!D108","v":0},{"$f":"Planning!E108","v":0},{"$f":"IF(Planning!G108<>0,Planning!G108,\"\")","v":""},{"$f":"Planning!H108","v":0},{"$f":"Planning!O108","v":0},{"$f":"IF(OR(W124=\"1\",AND(W124<>\"1\",G124=Lists!$A$17)),Y124,0)","v":0},null,{"$f":"IF(AND(W124=\"2\",G124<>Lists!$A$17),AA124,Z124)","v":""},"",{"$f":"Planning!P108","v":{"v":0,"d":"0.00"}},{"$f":"'Month 2'!M124+'Month 2'!N124-'Month 2'!O124","v":{"v":0,"d":"0.00"}},null,"","",{"$f":"SUMIFS($J$25:$J$224,$C$25:$C$224,$C124,$G$25:$G$224,Lists!$A$16)","v":0},0,null,"",null,{"$f":"IF(C124=0,\"\",LEFT(INDEX(Lists!$H$5:$H$49,MATCH(C124,Lists!$G$5:$G$49,0),1),1))","v":""},null,{"$f":"'Month 2'!H124+'Month 2'!I124-'Month 2'!J124","v":0},"","",null,"0"]
[{"$f":"Planning!A109","v":"I101"},{"$f":"Planning!B109","v":0},{"$f":"Planning!C109","v":0},{"$f":"Planning!D109","v":0},{"$f":"Planning!E109","v":0},{"$f":"IF(Planning!G109<>0,Planning!G109,\"\")","v":""},{"$f":"Planning!H109","v":0},{"$f":"Planning!O109","v":0},{"$f":"IF(OR(W125=\"1\",AND(W125<>\"1\",G125=Lists!$A$17)),Y125,0)","v":0},null,{"$f":"IF(AND(W125=\"2\",G125<>Lists!$A$17),AA125,Z125)","v":""},"",{"$f":"Planning!P109","v":{"v":0,"d":"0.00"}},{"$f":"'Month 2'!M125+'Month 2'!N125-'Month 2'!O125","v":{"v":0,"d":"0.00"}},null,"","",{"$f":"SUMIFS($J$25:$J$224,$C$25:$C$224,$C125,$G$25:$G$224,Lists!$A$16)","v":0},0,null,"",null,{"$f":"IF(C125=0,\"\",LEFT(INDEX(Lists!$H$5:$H$49,MATCH(C125,Lists!$G$5:$G$49,0),1),1))","v":""},null,{"$f":"'Month 2'!H125+'Month 2'!I125-'Month 2'!J125","v":0},"","",null,"0"]
[{"$f":"Planning!A110","v":"I102"},{"$f":"Planning!B110","v":0},{"$f":"Planning!C110","v":0},{"$f":"Planning!D110","v":0},{"$f":"Planning!E110","v":0},{"$f":"IF(Planning!G110<>0,Planning!G110,\"\")","v":""},{"$f":"Planning!H110","v":0},{"$f":"Planning!O110","v":0},{"$f":"IF(OR(W126=\"1\",AND(W126<>\"1\",G126=Lists!$A$17)),Y126,0)","v":0},null,{"$f":"IF(AND(W126=\"2\",G126<>Lists!$A$17),AA126,Z126)","v":""},"",{"$f":"Planning!P110","v":{"v":0,"d":"0.00"}},{"$f":"'Month 2'!M126+'Month 2'!N126-'Month 2'!O126","v":{"v":0,"d":"0.00"}},null,"","",{"$f":"SUMIFS($J$25:$J$224,$C$25:$C$224,$C126,$G$25:$G$224,Lists!$A$16)","v":0},0,null,"",null,{"$f":"IF(C126=0,\"\",LEFT(INDEX(Lists!$H$5:$H$49,MATCH(C126,Lists!$G$5:$G$49,0),1),1))","v":""},null,{"$f":"'Month 2'!H126+'Month 2'!I126-'Month 2'!J126","v":0},"","",null,"0"]
[{"$f":"Planning!A111","v":"I103"},{"$f":"Planning!B111","v":0},{"$f":"Planning!C111","v":0},{"$f":"Planning!D111","v":0},{"$f":"Planning!E111","v":0},{"$f":"IF(Planning!G111<>0,Planning!G111,\"\")","v":""},{"$f":"Planning!H111","v":0},{"$f":"Planning!O111","v":0},{"$f":"IF(OR(W127=\"1\",AND(W127<>\"1\",G127=Lists!$A$17)),Y127,0)","v":0},null,{"$f":"IF(AND(W127=\"2\",G127<>Lists!$A$17),AA127,Z127)","v":""},"",{"$f":"Planning!P111","v":{"v":0,"d":"0.00"}},{"$f":"'Month 2'!M127+'Month 2'!N127-'Month 2'!O127","v":{"v":0,"d":"0.00"}},null,"","",{"$f":"SUMIFS($J$25:$J$224,$C$25:$C$224,$C127,$G$25:$G$224,Lists!$A$16)","v":0},0,null,"",null,{"$f":"IF(C127=0,\"\",LEFT(INDEX(Lists!$H$5:$H$49,MATCH(C127,Lists!$G$5:$G$49,0),1),1))","v":""},null,{"$f":"'Month 2'!H127+'Month 2'!I127-'Month 2'!J127","v":0},"","",null,"0"]
[{"$f":"Planning!A112","v":"I104"},{"$f":"Planning!B112","v":0},{"$f":"Planning!C112","v":0},{"$f":"Planning!D112","v":0},{"$f":"Planning!E112","v":0},{"$f":"IF(Planning!G112<>0,Planning!G112,\"\")","v":""},{"$f":"Planning!H112","v":0},{"$f":"Planning!O112","v":0},{"$f":"IF(OR(W128=\"1\",AND(W128<>\"1\",G128=Lists!$A$17)),Y128,0)","v":0},null,{"$f":"IF(AND(W128=\"2\",G128<>Lists!$A$17),AA128,Z128)","v":""},"",{"$f":"Planning!P112","v":{"v":0,"d":"0.00"}},{"$f":"'Month 2'!M128+'Month 2'!N128-'Month 2'!O128","v":{"v":0,"d":"0.00"}},null,"","",{"$f":"SUMIFS($J$25:$J$224,$C$25:$C$224,$C128,$G$25:$G$224,Lists!$A$16)","v":0},0,null,"",null,{"$f":"IF(C128=0,\"\",LEFT(INDEX(Lists!$H$5:$H$49,MATCH(C128,Lists!$G$5:$G$49,0),1),1))","v":""},null,{"$f":"'Month 2'!H128+'Month 2'!I128-'Month 2'!J128","v":0},"","",null,"0"]
[{"$f":"Planning!A113","v":"I105"},{"$f":"Planning!B113","v":0},{"$f":"Planning!C113","v":0},{"$f":"Planning!D113","v":0},{"$f":"Planning!E113","v":0},{"$f":"IF(Planning!G113<>0,Planning!G113,\"\")","v":""},{"$f":"Planning!H113","v":0},{"$f":"Planning!O113","v":0},{"$f":"IF(OR(W129=\"1\",AND(W129<>\"1\",G129=Lists!$A$17)),Y129,0)","v":0},null,{"$f":"IF(AND(W129=\"2\",G129<>Lists!$A$17),AA129,Z129)","v":""},"",{"$f":"Planning!P113","v":{"v":0,"d":"0.00"}},{"$f":"'Month 2'!M129+'Month 2'!N129-'Month 2'!O129","v":{"v":0,"d":"0.00"}},null,"","",{"$f":"SUMIFS($J$25:$J$224,$C$25:$C$224,$C129,$G$25:$G$224,Lists!$A$16)","v":0},0,null,"",null,{"$f":"IF(C129=0,\"\",LEFT(INDEX(Lists!$H$5:$H$49,MATCH(C129,Lists!$G$5:$G$49,0),1),1))","v":""},null,{"$f":"'Month 2'!H129+'Month 2'!I129-'Month 2'!J129","v":0},"","",null,"0"]
[{"$f":"Planning!A114","v":"I106"},{"$f":"Planning!B114","v":0},{"$f":"Planning!C114","v":0},{"$f":"Planning!D114","v":0},{"$f":"Planning!E114","v":0},{"$f":"IF(Planning!G114<>0,Planning!G114,\"\")","v":""},{"$f":"Planning!H114","v":0},{"$f":"Planning!O114","v":0},{"$f":"IF(OR(W130=\"1\",AND(W130<>\"1\",G130=Lists!$A$17)),Y130,0)","v":0},null,{"$f":"IF(AND(W130=\"2\",G130<>Lists!$A$17),AA130,Z130)","v":""},"",{"$f":"Planning!P114","v":{"v":0,"d":"0.00"}},{"$f":"'Month 2'!M130+'Month 2'!N130-'Month 2'!O130","v":{"v":0,"d":"0.00"}},null,"","",{"$f":"SUMIFS($J$25:$J$224,$C$25:$C$224,$C130,$G$25:$G$224,Lists!$A$16)","v":0},0,null,"",null,{"$f":"IF(C130=0,\"\",LEFT(INDEX(Lists!$H$5:$H$49,MATCH(C130,Lists!$G$5:$G$49,0),1),1))","v":""},null,{"$f":"'Month 2'!H130+'Month 2'!I130-'Month 2'!J130","v":0},"","",null,"0"]
[{"$f":"Planning!A115","v":"I107"},{"$f":"Planning!B115","v":0},{"$f":"Planning!C115","v":0},{"$f":"Planning!D115","v":0},{"$f":"Planning!E115","v":0},{"$f":"IF(Planning!G115<>0,Planning!G115,\"\")","v":""},{"$f":"Planning!H115","v":0},{"$f":"Planning!O115","v":0},{"$f":"IF(OR(W131=\"1\",AND(W131<>\"1\",G131=Lists!$A$17)),Y131,0)","v":0},null,{"$f":"IF(AND(W131=\"2\",G131<>Lists!$A$17),AA131,Z131)","v":""},"",{"$f":"Planning!P115","v":{"v":0,"d":"0.00"}},{"$f":"'Month 2'!M131+'Month 2'!N131-'Month 2'!O131","v":{"v":0,"d":"0.00"}},null,"","",{"$f":"SUMIFS($J$25:$J$224,$C$25:$C$224,$C131,$G$25:$G$224,Lists!$A$16)","v":0},0,null,"",null,{"$f":"IF(C131=0,\"\",LEFT(INDEX(Lists!$H$5:$H$49,MATCH(C131,Lists!$G$5:$G$49,0),1),1))","v":""},null,{"$f":"'Month 2'!H131+'Month 2'!I131-'Month 2'!J131","v":0},"","",null,"0"]
[{"$f":"Planning!A116","v":"I108"},{"$f":"Planning!B116","v":0},{"$f":"Planning!C116","v":0},{"$f":"Planning!D116","v":0},{"$f":"Planning!E116","v":0},{"$f":"IF(Planning!G116<>0,Planning!G116,\"\")","v":""},{"$f":"Planning!H116","v":0},{"$f":"Planning!O116","v":0},{"$f":"IF(OR(W132=\"1\",AND(W132<>\"1\",G132=Lists!$A$17)),Y132,0)","v":0},null,{"$f":"IF(AND(W132=\"2\",G132<>Lists!$A$17),AA132,Z132)","v":""},"",{"$f":"Planning!P116","v":{"v":0,"d":"0.00"}},{"$f":"'Month 2'!M132+'Month 2'!N132-'Month 2'!O132","v":{"v":0,"d":"0.00"}},null,"","",{"$f":"SUMIFS($J$25:$J$224,$C$25:$C$224,$C132,$G$25:$G$224,Lists!$A$16)","v":0},0,null,"",null,{"$f":"IF(C132=0,\"\",LEFT(INDEX(Lists!$H$5:$H$49,MATCH(C132,Lists!$G$5:$G$49,0),1),1))","v":""},null,{"$f":"'Month 2'!H132+'Month 2'!I132-'Month 2'!J132","v":0},"","",null,"0"]
[{"$f":"Planning!A117","v":"I109"},{"$f":"Planning!B117","v":0},{"$f":"Planning!C117","v":0},{"$f":"Planning!D117","v":0},{"$f":"Planning!E117","v":0},{"$f":"IF(Planning!G117<>0,Planning!G117,\"\")","v":""},{"$f":"Planning!H117","v":0},{"$f":"Planning!O117","v":0},{"$f":"IF(OR(W133=\"1\",AND(W133<>\"1\",G133=Lists!$A$17)),Y133,0)","v":0},null,{"$f":"IF(AND(W133=\"2\",G133<>Lists!$A$17),AA133,Z133)","v":""},"",{"$f":"Planning!P117","v":{"v":0,"d":"0.00"}},{"$f":"'Month 2'!M133+'Month 2'!N133-'Month 2'!O133","v":{"v":0,"d":"0.00"}},null,"","",{"$f":"SUMIFS($J$25:$J$224,$C$25:$C$224,$C133,$G$25:$G$224,Lists!$A$16)","v":0},0,null,"",null,{"$f":"IF(C133=0,\"\",LEFT(INDEX(Lists!$H$5:$H$49,MATCH(C133,Lists!$G$5:$G$49,0),1),1))","v":""},null,{"$f":"'Month 2'!H133+'Month 2'!I133-'Month 2'!J133","v":0},"","",null,"0"]
[{"$f":"Planning!A118","v":"I110"},{"$f":"Planning!B118","v":0},{"$f":"Planning!C118","v":0},{"$f":"Planning!D118","v":0},{"$f":"Planning!E118","v":0},{"$f":"IF(Planning!G118<>0,Planning!G118,\"\")","v":""},{"$f":"Planning!H118","v":0},{"$f":"Planning!O118","v":0},{"$f":"IF(OR(W134=\"1\",AND(W134<>\"1\",G134=Lists!$A$17)),Y134,0)","v":0},null,{"$f":"IF(AND(W134=\"2\",G134<>Lists!$A$17),AA134,Z134)","v":""},"",{"$f":"Planning!P118","v":{"v":0,"d":"0.00"}},{"$f":"'Month 2'!M134+'Month 2'!N134-'Month 2'!O134","v":{"v":0,"d":"0.00"}},null,"","",{"$f":"SUMIFS($J$25:$J$224,$C$25:$C$224,$C134,$G$25:$G$224,Lists!$A$16)","v":0},0,null,"",null,{"$f":"IF(C134=0,\"\",LEFT(INDEX(Lists!$H$5:$H$49,MATCH(C134,Lists!$G$5:$G$49,0),1),1))","v":""},null,{"$f":"'Month 2'!H134+'Month 2'!I134-'Month 2'!J134","v":0},"","",null,"0"]
[{"$f":"Planning!A119","v":"I111"},{"$f":"Planning!B119","v":0},{"$f":"Planning!C119","v":0},{"$f":"Planning!D119","v":0},{"$f":"Planning!E119","v":0},{"$f":"IF(Planning!G119<>0,Planning!G119,\"\")","v":""},{"$f":"Planning!H119","v":0},{"$f":"Planning!O119","v":0},{"$f":"IF(OR(W135=\"1\",AND(W135<>\"1\",G135=Lists!$A$17)),Y135,0)","v":0},null,{"$f":"IF(AND(W135=\"2\",G135<>Lists!$A$17),AA135,Z135)","v":""},"",{"$f":"Planning!P119","v":{"v":0,"d":"0.00"}},{"$f":"'Month 2'!M135+'Month 2'!N135-'Month 2'!O135","v":{"v":0,"d":"0.00"}},null,"","",{"$f":"SUMIFS($J$25:$J$224,$C$25:$C$224,$C135,$G$25:$G$224,Lists!$A$16)","v":0},0,null,"",null,{"$f":"IF(C135=0,\"\",LEFT(INDEX(Lists!$H$5:$H$49,MATCH(C135,Lists!$G$5:$G$49,0),1),1))","v":""},null,{"$f":"'Month 2'!H135+'Month 2'!I135-'Month 2'!J135","v":0},"","",null,"0"]
[{"$f":"Planning!A120","v":"I112"},{"$f":"Planning!B120","v":0},{"$f":"Planning!C120","v":0},{"$f":"Planning!D120","v":0},{"$f":"Planning!E120","v":0},{"$f":"IF(Planning!G120<>0,Planning!G120,\"\")","v":""},{"$f":"Planning!H120","v":0},{"$f":"Planning!O120","v":0},{"$f":"IF(OR(W136=\"1\",AND(W136<>\"1\",G136=Lists!$A$17)),Y136,0)","v":0},null,{"$f":"IF(AND(W136=\"2\",G136<>Lists!$A$17),AA136,Z136)","v":""},"",{"$f":"Planning!P120","v":{"v":0,"d":"0.00"}},{"$f":"'Month 2'!M136+'Month 2'!N136-'Month 2'!O136","v":{"v":0,"d":"0.00"}},null,"","",{"$f":"SUMIFS($J$25:$J$224,$C$25:$C$224,$C136,$G$25:$G$224,Lists!$A$16)","v":0},0,null,"",null,{"$f":"IF(C136=0,\"\",LEFT(INDEX(Lists!$H$5:$H$49,MATCH(C136,Lists!$G$5:$G$49,0),1),1))","v":""},null,{"$f":"'Month 2'!H136+'Month 2'!I136-'Month 2'!J136","v":0},"","",null,"0"]
[{"$f":"Planning!A121","v":"I113"},{"$f":"Planning!B121","v":0},{"$f":"Planning!C121","v":0},{"$f":"Planning!D121","v":0},{"$f":"Planning!E121","v":0},{"$f":"IF(Planning!G121<>0,Planning!G121,\"\")","v":""},{"$f":"Planning!H121","v":0},{"$f":"Planning!O121","v":0},{"$f":"IF(OR(W137=\"1\",AND(W137<>\"1\",G137=Lists!$A$17)),Y137,0)","v":0},null,{"$f":"IF(AND(W137=\"2\",G137<>Lists!$A$17),AA137,Z137)","v":""},"",{"$f":"Planning!P121","v":{"v":0,"d":"0.00"}},{"$f":"'Month 2'!M137+'Month 2'!N137-'Month 2'!O137","v":{"v":0,"d":"0.00"}},null,"","",{"$f":"SUMIFS($J$25:$J$224,$C$25:$C$224,$C137,$G$25:$G$224,Lists!$A$16)","v":0},0,null,"",null,{"$f":"IF(C137=0,\"\",LEFT(INDEX(Lists!$H$5:$H$49,MATCH(C137,Lists!$G$5:$G$49,0),1),1))","v":""},null,{"$f":"'Month 2'!H137+'Month 2'!I137-'Month 2'!J137","v":0},"","",null,"0"]
[{"$f":"Planning!A122","v":"I114"},{"$f":"Planning!B122","v":0},{"$f":"Planning!C122","v":0},{"$f":"Planning!D122","v":0},{"$f":"Planning!E122","v":0},{"$f":"IF(Planning!G122<>0,Planning!G122,\"\")","v":""},{"$f":"Planning!H122","v":0},{"$f":"Planning!O122","v":0},{"$f":"IF(OR(W138=\"1\",AND(W138<>\"1\",G138=Lists!$A$17)),Y138,0)","v":0},null,{"$f":"IF(AND(W138=\"2\",G138<>Lists!$A$17),AA138,Z138)","v":""},"",{"$f":"Planning!P122","v":{"v":0,"d":"0.00"}},{"$f":"'Month 2'!M138+'Month 2'!N138-'Month 2'!O138","v":{"v":0,"d":"0.00"}},null,"","",{"$f":"SUMIFS($J$25:$J$224,$C$25:$C$224,$C138,$G$25:$G$224,Lists!$A$16)","v":0},0,null,"",null,{"$f":"IF(C138=0,\"\",LEFT(INDEX(Lists!$H$5:$H$49,MATCH(C138,Lists!$G$5:$G$49,0),1),1))","v":""},null,{"$f":"'Month 2'!H138+'Month 2'!I138-'Month 2'!J138","v":0},"","",null,"0"]
[{"$f":"Planning!A123","v":"I115"},{"$f":"Planning!B123","v":0},{"$f":"Planning!C123","v":0},{"$f":"Planning!D123","v":0},{"$f":"Planning!E123","v":0},{"$f":"IF(Planning!G123<>0,Planning!G123,\"\")","v":""},{"$f":"Planning!H123","v":0},{"$f":"Planning!O123","v":0},{"$f":"IF(OR(W139=\"1\",AND(W139<>\"1\",G139=Lists!$A$17)),Y139,0)","v":0},null,{"$f":"IF(AND(W139=\"2\",G139<>Lists!$A$17),AA139,Z139)","v":""},"",{"$f":"Planning!P123","v":{"v":0,"d":"0.00"}},{"$f":"'Month 2'!M139+'Month 2'!N139-'Month 2'!O139","v":{"v":0,"d":"0.00"}},null,"","",{"$f":"SUMIFS($J$25:$J$224,$C$25:$C$224,$C139,$G$25:$G$224,Lists!$A$16)","v":0},0,null,"",null,{"$f":"IF(C139=0,\"\",LEFT(INDEX(Lists!$H$5:$H$49,MATCH(C139,Lists!$G$5:$G$49,0),1),1))","v":""},null,{"$f":"'Month 2'!H139+'Month 2'!I139-'Month 2'!J139","v":0},"","",null,"0"]
[{"$f":"Planning!A124","v":"I116"},{"$f":"Planning!B124","v":0},{"$f":"Planning!C124","v":0},{"$f":"Planning!D124","v":0},{"$f":"Planning!E124","v":0},{"$f":"IF(Planning!G124<>0,Planning!G124,\"\")","v":""},{"$f":"Planning!H124","v":0},{"$f":"Planning!O124","v":0},{"$f":"IF(OR(W140=\"1\",AND(W140<>\"1\",G140=Lists!$A$17)),Y140,0)","v":0},null,{"$f":"IF(AND(W140=\"2\",G140<>Lists!$A$17),AA140,Z140)","v":""},"",{"$f":"Planning!P124","v":{"v":0,"d":"0.00"}},{"$f":"'Month 2'!M140+'Month 2'!N140-'Month 2'!O140","v":{"v":0,"d":"0.00"}},null,"","",{"$f":"SUMIFS($J$25:$J$224,$C$25:$C$224,$C140,$G$25:$G$224,Lists!$A$16)","v":0},0,null,"",null,{"$f":"IF(C140=0,\"\",LEFT(INDEX(Lists!$H$5:$H$49,MATCH(C140,Lists!$G$5:$G$49,0),1),1))","v":""},null,{"$f":"'Month 2'!H140+'Month 2'!I140-'Month 2'!J140","v":0},"","",null,"0"]
[{"$f":"Planning!A125","v":"I117"},{"$f":"Planning!B125","v":0},{"$f":"Planning!C125","v":0},{"$f":"Planning!D125","v":0},{"$f":"Planning!E125","v":0},{"$f":"IF(Planning!G125<>0,Planning!G125,\"\")","v":""},{"$f":"Planning!H125","v":0},{"$f":"Planning!O125","v":0},{"$f":"IF(OR(W141=\"1\",AND(W141<>\"1\",G141=Lists!$A$17)),Y141,0)","v":0},null,{"$f":"IF(AND(W141=\"2\",G141<>Lists!$A$17),AA141,Z141)","v":""},"",{"$f":"Planning!P125","v":{"v":0,"d":"0.00"}},{"$f":"'Month 2'!M141+'Month 2'!N141-'Month 2'!O141","v":{"v":0,"d":"0.00"}},null,"","",{"$f":"SUMIFS($J$25:$J$224,$C$25:$C$224,$C141,$G$25:$G$224,Lists!$A$16)","v":0},0,null,"",null,{"$f":"IF(C141=0,\"\",LEFT(INDEX(Lists!$H$5:$H$49,MATCH(C141,Lists!$G$5:$G$49,0),1),1))","v":""},null,{"$f":"'Month 2'!H141+'Month 2'!I141-'Month 2'!J141","v":0},"","",null,"0"]
[{"$f":"Planning!A126","v":"I118"},{"$f":"Planning!B126","v":0},{"$f":"Planning!C126","v":0},{"$f":"Planning!D126","v":0},{"$f":"Planning!E126","v":0},{"$f":"IF(Planning!G126<>0,Planning!G126,\"\")","v":""},{"$f":"Planning!H126","v":0},{"$f":"Planning!O126","v":0},{"$f":"IF(OR(W142=\"1\",AND(W142<>\"1\",G142=Lists!$A$17)),Y142,0)","v":0},null,{"$f":"IF(AND(W142=\"2\",G142<>Lists!$A$17),AA142,Z142)","v":""},"",{"$f":"Planning!P126","v":{"v":0,"d":"0.00"}},{"$f":"'Month 2'!M142+'Month 2'!N142-'Month 2'!O142","v":{"v":0,"d":"0.00"}},null,"","",{"$f":"SUMIFS($J$25:$J$224,$C$25:$C$224,$C142,$G$25:$G$224,Lists!$A$16)","v":0},0,null,"",null,{"$f":"IF(C142=0,\"\",LEFT(INDEX(Lists!$H$5:$H$49,MATCH(C142,Lists!$G$5:$G$49,0),1),1))","v":""},null,{"$f":"'Month 2'!H142+'Month 2'!I142-'Month 2'!J142","v":0},"","",null,"0"]
[{"$f":"Planning!A127","v":"I119"},{"$f":"Planning!B127","v":0},{"$f":"Planning!C127","v":0},{"$f":"Planning!D127","v":0},{"$f":"Planning!E127","v":0},{"$f":"IF(Planning!G127<>0,Planning!G127,\"\")","v":""},{"$f":"Planning!H127","v":0},{"$f":"Planning!O127","v":0},{"$f":"IF(OR(W143=\"1\",AND(W143<>\"1\",G143=Lists!$A$17)),Y143,0)","v":0},null,{"$f":"IF(AND(W143=\"2\",G143<>Lists!$A$17),AA143,Z143)","v":""},"",{"$f":"Planning!P127","v":{"v":0,"d":"0.00"}},{"$f":"'Month 2'!M143+'Month 2'!N143-'Month 2'!O143","v":{"v":0,"d":"0.00"}},null,"","",{"$f":"SUMIFS($J$25:$J$224,$C$25:$C$224,$C143,$G$25:$G$224,Lists!$A$16)","v":0},0,null,"",null,{"$f":"IF(C143=0,\"\",LEFT(INDEX(Lists!$H$5:$H$49,MATCH(C143,Lists!$G$5:$G$49,0),1),1))","v":""},null,{"$f":"'Month 2'!H143+'Month 2'!I143-'Month 2'!J143","v":0},"","",null,"0"]
[{"$f":"Planning!A128","v":"I120"},{"$f":"Planning!B128","v":0},{"$f":"Planning!C128","v":0},{"$f":"Planning!D128","v":0},{"$f":"Planning!E128","v":0},{"$f":"IF(Planning!G128<>0,Planning!G128,\"\")","v":""},{"$f":"Planning!H128","v":0},{"$f":"Planning!O128","v":0},{"$f":"IF(OR(W144=\"1\",AND(W144<>\"1\",G144=Lists!$A$17)),Y144,0)","v":0},null,{"$f":"IF(AND(W144=\"2\",G144<>Lists!$A$17),AA144,Z144)","v":""},"",{"$f":"Planning!P128","v":{"v":0,"d":"0.00"}},{"$f":"'Month 2'!M144+'Month 2'!N144-'Month 2'!O144","v":{"v":0,"d":"0.00"}},null,"","",{"$f":"SUMIFS($J$25:$J$224,$C$25:$C$224,$C144,$G$25:$G$224,Lists!$A$16)","v":0},0,null,"",null,{"$f":"IF(C144=0,\"\",LEFT(INDEX(Lists!$H$5:$H$49,MATCH(C144,Lists!$G$5:$G$49,0),1),1))","v":""},null,{"$f":"'Month 2'!H144+'Month 2'!I144-'Month 2'!J144","v":0},"","",null,"0"]
[{"$f":"Planning!A129","v":"I121"},{"$f":"Planning!B129","v":0},{"$f":"Planning!C129","v":0},{"$f":"Planning!D129","v":0},{"$f":"Planning!E129","v":0},{"$f":"IF(Planning!G129<>0,Planning!G129,\"\")","v":""},{"$f":"Planning!H129","v":0},{"$f":"Planning!O129","v":0},{"$f":"IF(OR(W145=\"1\",AND(W145<>\"1\",G145=Lists!$A$17)),Y145,0)","v":0},null,{"$f":"IF(AND(W145=\"2\",G145<>Lists!$A$17),AA145,Z145)","v":""},"",{"$f":"Planning!P129","v":{"v":0,"d":"0.00"}},{"$f":"'Month 2'!M145+'Month 2'!N145-'Month 2'!O145","v":{"v":0,"d":"0.00"}},null,"","",{"$f":"SUMIFS($J$25:$J$224,$C$25:$C$224,$C145,$G$25:$G$224,Lists!$A$16)","v":0},0,null,"",null,{"$f":"IF(C145=0,\"\",LEFT(INDEX(Lists!$H$5:$H$49,MATCH(C145,Lists!$G$5:$G$49,0),1),1))","v":""},null,{"$f":"'Month 2'!H145+'Month 2'!I145-'Month 2'!J145","v":0},"","",null,"0"]
[{"$f":"Planning!A130","v":"I122"},{"$f":"Planning!B130","v":0},{"$f":"Planning!C130","v":0},{"$f":"Planning!D130","v":0},{"$f":"Planning!E130","v":0},{"$f":"IF(Planning!G130<>0,Planning!G130,\"\")","v":""},{"$f":"Planning!H130","v":0},{"$f":"Planning!O130","v":0},{"$f":"IF(OR(W146=\"1\",AND(W146<>\"1\",G146=Lists!$A$17)),Y146,0)","v":0},null,{"$f":"IF(AND(W146=\"2\",G146<>Lists!$A$17),AA146,Z146)","v":""},"",{"$f":"Planning!P130","v":{"v":0,"d":"0.00"}},{"$f":"'Month 2'!M146+'Month 2'!N146-'Month 2'!O146","v":{"v":0,"d":"0.00"}},null,"","",{"$f":"SUMIFS($J$25:$J$224,$C$25:$C$224,$C146,$G$25:$G$224,Lists!$A$16)","v":0},0,null,"",null,{"$f":"IF(C146=0,\"\",LEFT(INDEX(Lists!$H$5:$H$49,MATCH(C146,Lists!$G$5:$G$49,0),1),1))","v":""},null,{"$f":"'Month 2'!H146+'Month 2'!I146-'Month 2'!J146","v":0},"","",null,"0"]
[{"$f":"Planning!A131","v":"I123"},{"$f":"Planning!B131","v":0},{"$f":"Planning!C131","v":0},{"$f":"Planning!D131","v":0},{"$f":"Planning!E131","v":0},{"$f":"IF(Planning!G131<>0,Planning!G131,\"\")","v":""},{"$f":"Planning!H131","v":0},{"$f":"Planning!O131","v":0},{"$f":"IF(OR(W147=\"1\",AND(W147<>\"1\",G147=Lists!$A$17)),Y147,0)","v":0},null,{"$f":"IF(AND(W147=\"2\",G147<>Lists!$A$17),AA147,Z147)","v":""},"",{"$f":"Planning!P131","v":{"v":0,"d":"0.00"}},{"$f":"'Month 2'!M147+'Month 2'!N147-'Month 2'!O147","v":{"v":0,"d":"0.00"}},null,"","",{"$f":"SUMIFS($J$25:$J$224,$C$25:$C$224,$C147,$G$25:$G$224,Lists!$A$16)","v":0},0,null,"",null,{"$f":"IF(C147=0,\"\",LEFT(INDEX(Lists!$H$5:$H$49,MATCH(C147,Lists!$G$5:$G$49,0),1),1))","v":""},null,{"$f":"'Month 2'!H147+'Month 2'!I147-'Month 2'!J147","v":0},"","",null,"0"]
[{"$f":"Planning!A132","v":"I124"},{"$f":"Planning!B132","v":0},{"$f":"Planning!C132","v":0},{"$f":"Planning!D132","v":0},{"$f":"Planning!E132","v":0},{"$f":"IF(Planning!G132<>0,Planning!G132,\"\")","v":""},{"$f":"Planning!H132","v":0},{"$f":"Planning!O132","v":0},{"$f":"IF(OR(W148=\"1\",AND(W148<>\"1\",G148=Lists!$A$17)),Y148,0)","v":0},null,{"$f":"IF(AND(W148=\"2\",G148<>Lists!$A$17),AA148,Z148)","v":""},"",{"$f":"Planning!P132","v":{"v":0,"d":"0.00"}},{"$f":"'Month 2'!M148+'Month 2'!N148-'Month 2'!O148","v":{"v":0,"d":"0.00"}},null,"","",{"$f":"SUMIFS($J$25:$J$224,$C$25:$C$224,$C148,$G$25:$G$224,Lists!$A$16)","v":0},0,null,"",null,{"$f":"IF(C148=0,\"\",LEFT(INDEX(Lists!$H$5:$H$49,MATCH(C148,Lists!$G$5:$G$49,0),1),1))","v":""},null,{"$f":"'Month 2'!H148+'Month 2'!I148-'Month 2'!J148","v":0},"","",null,"0"]
[{"$f":"Planning!A133","v":"I125"},{"$f":"Planning!B133","v":0},{"$f":"Planning!C133","v":0},{"$f":"Planning!D133","v":0},{"$f":"Planning!E133","v":0},{"$f":"IF(Planning!G133<>0,Planning!G133,\"\")","v":""},{"$f":"Planning!H133","v":0},{"$f":"Planning!O133","v":0},{"$f":"IF(OR(W149=\"1\",AND(W149<>\"1\",G149=Lists!$A$17)),Y149,0)","v":0},null,{"$f":"IF(AND(W149=\"2\",G149<>Lists!$A$17),AA149,Z149)","v":""},"",{"$f":"Planning!P133","v":{"v":0,"d":"0.00"}},{"$f":"'Month 2'!M149+'Month 2'!N149-'Month 2'!O149","v":{"v":0,"d":"0.00"}},null,"","",{"$f":"SUMIFS($J$25:$J$224,$C$25:$C$224,$C149,$G$25:$G$224,Lists!$A$16)","v":0},0,null,"",null,{"$f":"IF(C149=0,\"\",LEFT(INDEX(Lists!$H$5:$H$49,MATCH(C149,Lists!$G$5:$G$49,0),1),1))","v":""},null,{"$f":"'Month 2'!H149+'Month 2'!I149-'Month 2'!J149","v":0},"","",null,"0"]
[{"$f":"Planning!A134","v":"I126"},{"$f":"Planning!B134","v":0},{"$f":"Planning!C134","v":0},{"$f":"Planning!D134","v":0},{"$f":"Planning!E134","v":0},{"$f":"IF(Planning!G134<>0,Planning!G134,\"\")","v":""},{"$f":"Planning!H134","v":0},{"$f":"Planning!O134","v":0},{"$f":"IF(OR(W150=\"1\",AND(W150<>\"1\",G150=Lists!$A$17)),Y150,0)","v":0},null,{"$f":"IF(AND(W150=\"2\",G150<>Lists!$A$17),AA150,Z150)","v":""},"",{"$f":"Planning!P134","v":{"v":0,"d":"0.00"}},{"$f":"'Month 2'!M150+'Month 2'!N150-'Month 2'!O150","v":{"v":0,"d":"0.00"}},null,"","",{"$f":"SUMIFS($J$25:$J$224,$C$25:$C$224,$C150,$G$25:$G$224,Lists!$A$16)","v":0},0,null,"",null,{"$f":"IF(C150=0,\"\",LEFT(INDEX(Lists!$H$5:$H$49,MATCH(C150,Lists!$G$5:$G$49,0),1),1))","v":""},null,{"$f":"'Month 2'!H150+'Month 2'!I150-'Month 2'!J150","v":0},"","",null,"0"]
[{"$f":"Planning!A135","v":"I127"},{"$f":"Planning!B135","v":0},{"$f":"Planning!C135","v":0},{"$f":"Planning!D135","v":0},{"$f":"Planning!E135","v":0},{"$f":"IF(Planning!G135<>0,Planning!G135,\"\")","v":""},{"$f":"Planning!H135","v":0},{"$f":"Planning!O135","v":0},{"$f":"IF(OR(W151=\"1\",AND(W151<>\"1\",G151=Lists!$A$17)),Y151,0)","v":0},null,{"$f":"IF(AND(W151=\"2\",G151<>Lists!$A$17),AA151,Z151)","v":""},"",{"$f":"Planning!P135","v":{"v":0,"d":"0.00"}},{"$f":"'Month 2'!M151+'Month 2'!N151-'Month 2'!O151","v":{"v":0,"d":"0.00"}},null,"","",{"$f":"SUMIFS($J$25:$J$224,$C$25:$C$224,$C151,$G$25:$G$224,Lists!$A$16)","v":0},0,null,"",null,{"$f":"IF(C151=0,\"\",LEFT(INDEX(Lists!$H$5:$H$49,MATCH(C151,Lists!$G$5:$G$49,0),1),1))","v":""},null,{"$f":"'Month 2'!H151+'Month 2'!I151-'Month 2'!J151","v":0},"","",null,"0"]
[{"$f":"Planning!A136","v":"I128"},{"$f":"Planning!B136","v":0},{"$f":"Planning!C136","v":0},{"$f":"Planning!D136","v":0},{"$f":"Planning!E136","v":0},{"$f":"IF(Planning!G136<>0,Planning!G136,\"\")","v":""},{"$f":"Planning!H136","v":0},{"$f":"Planning!O136","v":0},{"$f":"IF(OR(W152=\"1\",AND(W152<>\"1\",G152=Lists!$A$17)),Y152,0)","v":0},null,{"$f":"IF(AND(W152=\"2\",G152<>Lists!$A$17),AA152,Z152)","v":""},"",{"$f":"Planning!P136","v":{"v":0,"d":"0.00"}},{"$f":"'Month 2'!M152+'Month 2'!N152-'Month 2'!O152","v":{"v":0,"d":"0.00"}},null,"","",{"$f":"SUMIFS($J$25:$J$224,$C$25:$C$224,$C152,$G$25:$G$224,Lists!$A$16)","v":0},0,null,"",null,{"$f":"IF(C152=0,\"\",LEFT(INDEX(Lists!$H$5:$H$49,MATCH(C152,Lists!$G$5:$G$49,0),1),1))","v":""},null,{"$f":"'Month 2'!H152+'Month 2'!I152-'Month 2'!J152","v":0},"","",null,"0"]
[{"$f":"Planning!A137","v":"I129"},{"$f":"Planning!B137","v":0},{"$f":"Planning!C137","v":0},{"$f":"Planning!D137","v":0},{"$f":"Planning!E137","v":0},{"$f":"IF(Planning!G137<>0,Planning!G137,\"\")","v":""},{"$f":"Planning!H137","v":0},{"$f":"Planning!O137","v":0},{"$f":"IF(OR(W153=\"1\",AND(W153<>\"1\",G153=Lists!$A$17)),Y153,0)","v":0},null,{"$f":"IF(AND(W153=\"2\",G153<>Lists!$A$17),AA153,Z153)","v":""},{"$f":"IF($U153=ExcluirDelPLogro,\"\",IF(AND(H153=0,I153=0,J153=0),\"\",K153))","v":""},{"$f":"Planning!P137","v":{"v":0,"d":"0.00"}},{"$f":"'Month 2'!M153+'Month 2'!N153-'Month 2'!O153","v":{"v":0,"d":"0.00"}},null,"",{"$f":"IF($U153=ExcluirDelPLogro,\"\",IF(AND(M153=0,N153=0,O153=0),\"\",P153))","v":""},{"$f":"SUMIFS($J$25:$J$224,$C$25:$C$224,$C153,$G$25:$G$224,Lists!$A$16)","v":0},0,null,"",null,{"$f":"IF(C153=0,\"\",LEFT(INDEX(Lists!$H$5:$H$49,MATCH(C153,Lists!$G$5:$G$49,0),1),1))","v":""},null,{"$f":"'Month 2'!H153+'Month 2'!I153-'Month 2'!J153","v":0},"",{"$f":"IF(AND(H153=0,I153=0,J153=0),\"\",IF(J153>0,H153/J153,0))","v":""},null,"0"]
[{"$f":"Planning!A138","v":"I130"},{"$f":"Planning!B138","v":0},{"$f":"Planning!C138","v":0},{"$f":"Planning!D138","v":0},{"$f":"Planning!E138","v":0},{"$f":"IF(Planning!G138<>0,Planning!G138,\"\")","v":""},{"$f":"Planning!H138","v":0},{"$f":"Planning!O138","v":0},{"$f":"IF(OR(W154=\"1\",AND(W154<>\"1\",G154=Lists!$A$17)),Y154,0)","v":0},null,{"$f":"IF(AND(W154=\"2\",G154<>Lists!$A$17),AA154,Z154)","v":""},"",{"$f":"Planning!P138","v":{"v":0,"d":"0.00"}},{"$f":"'Month 2'!M154+'Month 2'!N154-'Month 2'!O154","v":{"v":0,"d":"0.00"}},null,{"$f":"IF(AND(M154=0,N154=0,O154=0),\"\",IF((M154+N154)>0,O154/(M154+N154),O154))","v":""},"",{"$f":"SUMIFS($J$25:$J$224,$C$25:$C$224,$C154,$G$25:$G$224,Lists!$A$16)","v":0},{"$f":"SUMIFS($O$25:$O$224,$C$25:$C$224,$C154,$G$25:$G$224,\"<>0\")","v":0},null,{"$f":"IF(B154=0,\"\",IF(LEFT(B154,1)=\"1\",\"1\",\"2\"))","v":""},null,{"$f":"IF(C154=0,\"\",LEFT(INDEX(Lists!$H$5:$H$49,MATCH(C154,Lists!$G$5:$G$49,0),1),1))","v":""},null,{"$f":"'Month 2'!H154+'Month 2'!I154-'Month 2'!J154","v":0},{"$f":"IF(AND(H154=0,I154=0,J154=0),\"\",IF((H154+I154)>0,J154/(H154+I154),J154))","v":""},"",null,{"$f":"U154&C154","v":"0"}]
[{"$f":"Planning!A139","v":"I131"},{"$f":"Planning!B139","v":0},{"$f":"Planning!C139","v":0},{"$f":"Planning!D139","v":0},{"$f":"Planning!E139","v":0},{"$f":"IF(Planning!G139<>0,Planning!G139,\"\")","v":""},{"$f":"Planning!H139","v":0},{"$f":"Planning!O139","v":0},{"$f":"IF(OR(W155=\"1\",AND(W155<>\"1\",G155=Lists!$A$17)),Y155,0)","v":0},null,{"$f":"IF(AND(W155=\"2\",G155<>Lists!$A$17),AA155,Z155)","v":""},"",{"$f":"Planning!P139","v":{"v":0,"d":"0.00"}},{"$f":"'Month 2'!M155+'Month 2'!N155-'Month 2'!O155","v":{"v":0,"d":"0.00"}},null,"","",{"$f":"SUMIFS($J$25:$J$224,$C$25:$C$224,$C155,$G$25:$G$224,Lists!$A$16)","v":0},0,null,"",null,{"$f":"IF(C155=0,\"\",LEFT(INDEX(Lists!$H$5:$H$49,MATCH(C155,Lists!$G$5:$G$49,0),1),1))","v":""},null,{"$f":"'Month 2'!H155+'Month 2'!I155-'Month 2'!J155","v":0},"","",null,"0"]
[{"$f":"Planning!A140","v":"I132"},{"$f":"Planning!B140","v":0},{"$f":"Planning!C140","v":0},{"$f":"Planning!D140","v":0},{"$f":"Planning!E140","v":0},{"$f":"IF(Planning!G140<>0,Planning!G140,\"\")","v":""},{"$f":"Planning!H140","v":0},{"$f":"Planning!O140","v":0},{"$f":"IF(OR(W156=\"1\",AND(W156<>\"1\",G156=Lists!$A$17)),Y156,0)","v":0},null,{"$f":"IF(AND(W156=\"2\",G156<>Lists!$A$17),AA156,Z156)","v":""},"",{"$f":"Planning!P140","v":{"v":0,"d":"0.00"}},{"$f":"'Month 2'!M156+'Month 2'!N156-'Month 2'!O156","v":{"v":0,"d":"0.00"}},null,"","",{"$f":"SUMIFS($J$25:$J$224,$C$25:$C$224,$C156,$G$25:$G$224,Lists!$A$16)","v":0},0,null,"",null,{"$f":"IF(C156=0,\"\",LEFT(INDEX(Lists!$H$5:$H$49,MATCH(C156,Lists!$G$5:$G$49,0),1),1))","v":""},null,{"$f":"'Month 2'!H156+'Month 2'!I156-'Month 2'!J156","v":0},"","",null,"0"]
[{"$f":"Planning!A141","v":"I133"},{"$f":"Planning!B141","v":0},{"$f":"Planning!C141","v":0},{"$f":"Planning!D141","v":0},{"$f":"Planning!E141","v":0},{"$f":"IF(Planning!G141<>0,Planning!G141,\"\")","v":""},{"$f":"Planning!H141","v":0},{"$f":"Planning!O141","v":0},{"$f":"IF(OR(W157=\"1\",AND(W157<>\"1\",G157=Lists!$A$17)),Y157,0)","v":0},null,{"$f":"IF(AND(W157=\"2\",G157<>Lists!$A$17),AA157,Z157)","v":""},"",{"$f":"Planning!P141","v":{"v":0,"d":"0.00"}},{"$f":"'Month 2'!M157+'Month 2'!N157-'Month 2'!O157","v":{"v":0,"d":"0.00"}},null,"","",{"$f":"SUMIFS($J$25:$J$224,$C$25:$C$224,$C157,$G$25:$G$224,Lists!$A$16)","v":0},0,null,"",null,{"$f":"IF(C157=0,\"\",LEFT(INDEX(Lists!$H$5:$H$49,MATCH(C157,Lists!$G$5:$G$49,0),1),1))","v":""},null,{"$f":"'Month 2'!H157+'Month 2'!I157-'Month 2'!J157","v":0},"","",null,"0"]
[{"$f":"Planning!A142","v":"I134"},{"$f":"Planning!B142","v":0},{"$f":"Planning!C142","v":0},{"$f":"Planning!D142","v":0},{"$f":"Planning!E142","v":0},{"$f":"IF(Planning!G142<>0,Planning!G142,\"\")","v":""},{"$f":"Planning!H142","v":0},{"$f":"Planning!O142","v":0},{"$f":"IF(OR(W158=\"1\",AND(W158<>\"1\",G158=Lists!$A$17)),Y158,0)","v":0},null,{"$f":"IF(AND(W158=\"2\",G158<>Lists!$A$17),AA158,Z158)","v":""},"",{"$f":"Planning!P142","v":{"v":0,"d":"0.00"}},{"$f":"'Month 2'!M158+'Month 2'!N158-'Month 2'!O158","v":{"v":0,"d":"0.00"}},null,"","",{"$f":"SUMIFS($J$25:$J$224,$C$25:$C$224,$C158,$G$25:$G$224,Lists!$A$16)","v":0},0,null,"",null,{"$f":"IF(C158=0,\"\",LEFT(INDEX(Lists!$H$5:$H$49,MATCH(C158,Lists!$G$5:$G$49,0),1),1))","v":""},null,{"$f":"'Month 2'!H158+'Month 2'!I158-'Month 2'!J158","v":0},"","",null,"0"]
[{"$f":"Planning!A143","v":"I135"},{"$f":"Planning!B143","v":0},{"$f":"Planning!C143","v":0},{"$f":"Planning!D143","v":0},{"$f":"Planning!E143","v":0},{"$f":"IF(Planning!G143<>0,Planning!G143,\"\")","v":""},{"$f":"Planning!H143","v":0},{"$f":"Planning!O143","v":0},{"$f":"IF(OR(W159=\"1\",AND(W159<>\"1\",G159=Lists!$A$17)),Y159,0)","v":0},null,{"$f":"IF(AND(W159=\"2\",G159<>Lists!$A$17),AA159,Z159)","v":""},"",{"$f":"Planning!P143","v":{"v":0,"d":"0.00"}},{"$f":"'Month 2'!M159+'Month 2'!N159-'Month 2'!O159","v":{"v":0,"d":"0.00"}},null,"","",{"$f":"SUMIFS($J$25:$J$224,$C$25:$C$224,$C159,$G$25:$G$224,Lists!$A$16)","v":0},0,null,"",null,{"$f":"IF(C159=0,\"\",LEFT(INDEX(Lists!$H$5:$H$49,MATCH(C159,Lists!$G$5:$G$49,0),1),1))","v":""},null,{"$f":"'Month 2'!H159+'Month 2'!I159-'Month 2'!J159","v":0},"","",null,"0"]
[{"$f":"Planning!A144","v":"I136"},{"$f":"Planning!B144","v":0},{"$f":"Planning!C144","v":0},{"$f":"Planning!D144","v":0},{"$f":"Planning!E144","v":0},{"$f":"IF(Planning!G144<>0,Planning!G144,\"\")","v":""},{"$f":"Planning!H144","v":0},{"$f":"Planning!O144","v":0},{"$f":"IF(OR(W160=\"1\",AND(W160<>\"1\",G160=Lists!$A$17)),Y160,0)","v":0},null,{"$f":"IF(AND(W160=\"2\",G160<>Lists!$A$17),AA160,Z160)","v":""},"",{"$f":"Planning!P144","v":{"v":0,"d":"0.00"}},{"$f":"'Month 2'!M160+'Month 2'!N160-'Month 2'!O160","v":{"v":0,"d":"0.00"}},null,"","",{"$f":"SUMIFS($J$25:$J$224,$C$25:$C$224,$C160,$G$25:$G$224,Lists!$A$16)","v":0},0,null,"",null,{"$f":"IF(C160=0,\"\",LEFT(INDEX(Lists!$H$5:$H$49,MATCH(C160,Lists!$G$5:$G$49,0),1),1))","v":""},null,{"$f":"'Month 2'!H160+'Month 2'!I160-'Month 2'!J160","v":0},"","",null,"0"]
[{"$f":"Planning!A145","v":"I137"},{"$f":"Planning!B145","v":0},{"$f":"Planning!C145","v":0},{"$f":"Planning!D145","v":0},{"$f":"Planning!E145","v":0},{"$f":"IF(Planning!G145<>0,Planning!G145,\"\")","v":""},{"$f":"Planning!H145","v":0},{"$f":"Planning!O145","v":0},{"$f":"IF(OR(W161=\"1\",AND(W161<>\"1\",G161=Lists!$A$17)),Y161,0)","v":0},null,{"$f":"IF(AND(W161=\"2\",G161<>Lists!$A$17),AA161,Z161)","v":""},"",{"$f":"Planning!P145","v":{"v":0,"d":"0.00"}},{"$f":"'Month 2'!M161+'Month 2'!N161-'Month 2'!O161","v":{"v":0,"d":"0.00"}},null,"","",{"$f":"SUMIFS($J$25:$J$224,$C$25:$C$224,$C161,$G$25:$G$224,Lists!$A$16)","v":0},0,null,"",null,{"$f":"IF(C161=0,\"\",LEFT(INDEX(Lists!$H$5:$H$49,MATCH(C161,Lists!$G$5:$G$49,0),1),1))","v":""},null,{"$f":"'Month 2'!H161+'Month 2'!I161-'Month 2'!J161","v":0},"","",null,"0"]
[{"$f":"Planning!A146","v":"I138"},{"$f":"Planning!B146","v":0},{"$f":"Planning!C146","v":0},{"$f":"Planning!D146","v":0},{"$f":"Planning!E146","v":0},{"$f":"IF(Planning!G146<>0,Planning!G146,\"\")","v":""},{"$f":"Planning!H146","v":0},{"$f":"Planning!O146","v":0},{"$f":"IF(OR(W162=\"1\",AND(W162<>\"1\",G162=Lists!$A$17)),Y162,0)","v":0},null,{"$f":"IF(AND(W162=\"2\",G162<>Lists!$A$17),AA162,Z162)","v":""},"",{"$f":"Planning!P146","v":{"v":0,"d":"0.00"}},{"$f":"'Month 2'!M162+'Month 2'!N162-'Month 2'!O162","v":{"v":0,"d":"0.00"}},null,"","",{"$f":"SUMIFS($J$25:$J$224,$C$25:$C$224,$C162,$G$25:$G$224,Lists!$A$16)","v":0},0,null,"",null,{"$f":"IF(C162=0,\"\",LEFT(INDEX(Lists!$H$5:$H$49,MATCH(C162,Lists!$G$5:$G$49,0),1),1))","v":""},null,{"$f":"'Month 2'!H162+'Month 2'!I162-'Month 2'!J162","v":0},"","",null,"0"]
[{"$f":"Planning!A147","v":"I139"},{"$f":"Planning!B147","v":0},{"$f":"Planning!C147","v":0},{"$f":"Planning!D147","v":0},{"$f":"Planning!E147","v":0},{"$f":"IF(Planning!G147<>0,Planning!G147,\"\")","v":""},{"$f":"Planning!H147","v":0},{"$f":"Planning!O147","v":0},{"$f":"IF(OR(W163=\"1\",AND(W163<>\"1\",G163=Lists!$A$17)),Y163,0)","v":0},null,{"$f":"IF(AND(W163=\"2\",G163<>Lists!$A$17),AA163,Z163)","v":""},"",{"$f":"Planning!P147","v":{"v":0,"d":"0.00"}},{"$f":"'Month 2'!M163+'Month 2'!N163-'Month 2'!O163","v":{"v":0,"d":"0.00"}},null,"","",{"$f":"SUMIFS($J$25:$J$224,$C$25:$C$224,$C163,$G$25:$G$224,Lists!$A$16)","v":0},0,null,"",null,{"$f":"IF(C163=0,\"\",LEFT(INDEX(Lists!$H$5:$H$49,MATCH(C163,Lists!$G$5:$G$49,0),1),1))","v":""},null,{"$f":"'Month 2'!H163+'Month 2'!I163-'Month 2'!J163","v":0},"","",null,"0"]
[{"$f":"Planning!A148","v":"I140"},{"$f":"Planning!B148","v":0},{"$f":"Planning!C148","v":0},{"$f":"Planning!D148","v":0},{"$f":"Planning!E148","v":0},{"$f":"IF(Planning!G148<>0,Planning!G148,\"\")","v":""},{"$f":"Planning!H148","v":0},{"$f":"Planning!O148","v":0},{"$f":"IF(OR(W164=\"1\",AND(W164<>\"1\",G164=Lists!$A$17)),Y164,0)","v":0},null,{"$f":"IF(AND(W164=\"2\",G164<>Lists!$A$17),AA164,Z164)","v":""},"",{"$f":"Planning!P148","v":{"v":0,"d":"0.00"}},{"$f":"'Month 2'!M164+'Month 2'!N164-'Month 2'!O164","v":{"v":0,"d":"0.00"}},null,"","",{"$f":"SUMIFS($J$25:$J$224,$C$25:$C$224,$C164,$G$25:$G$224,Lists!$A$16)","v":0},0,null,"",null,{"$f":"IF(C164=0,\"\",LEFT(INDEX(Lists!$H$5:$H$49,MATCH(C164,Lists!$G$5:$G$49,0),1),1))","v":""},null,{"$f":"'Month 2'!H164+'Month 2'!I164-'Month 2'!J164","v":0},"","",null,"0"]
[{"$f":"Planning!A149","v":"I141"},{"$f":"Planning!B149","v":0},{"$f":"Planning!C149","v":0},{"$f":"Planning!D149","v":0},{"$f":"Planning!E149","v":0},{"$f":"IF(Planning!G149<>0,Planning!G149,\"\")","v":""},{"$f":"Planning!H149","v":0},{"$f":"Planning!O149","v":0},{"$f":"IF(OR(W165=\"1\",AND(W165<>\"1\",G165=Lists!$A$17)),Y165,0)","v":0},null,{"$f":"IF(AND(W165=\"2\",G165<>Lists!$A$17),AA165,Z165)","v":""},"",{"$f":"Planning!P149","v":{"v":0,"d":"0.00"}},{"$f":"'Month 2'!M165+'Month 2'!N165-'Month 2'!O165","v":{"v":0,"d":"0.00"}},null,"","",{"$f":"SUMIFS($J$25:$J$224,$C$25:$C$224,$C165,$G$25:$G$224,Lists!$A$16)","v":0},0,null,"",null,{"$f":"IF(C165=0,\"\",LEFT(INDEX(Lists!$H$5:$H$49,MATCH(C165,Lists!$G$5:$G$49,0),1),1))","v":""},null,{"$f":"'Month 2'!H165+'Month 2'!I165-'Month 2'!J165","v":0},"","",null,"0"]
[{"$f":"Planning!A150","v":"I142"},{"$f":"Planning!B150","v":0},{"$f":"Planning!C150","v":0},{"$f":"Planning!D150","v":0},{"$f":"Planning!E150","v":0},{"$f":"IF(Planning!G150<>0,Planning!G150,\"\")","v":""},{"$f":"Planning!H150","v":0},{"$f":"Planning!O150","v":0},{"$f":"IF(OR(W166=\"1\",AND(W166<>\"1\",G166=Lists!$A$17)),Y166,0)","v":0},null,{"$f":"IF(AND(W166=\"2\",G166<>Lists!$A$17),AA166,Z166)","v":""},"",{"$f":"Planning!P150","v":{"v":0,"d":"0.00"}},{"$f":"'Month 2'!M166+'Month 2'!N166-'Month 2'!O166","v":{"v":0,"d":"0.00"}},null,"","",{"$f":"SUMIFS($J$25:$J$224,$C$25:$C$224,$C166,$G$25:$G$224,Lists!$A$16)","v":0},0,null,"",null,{"$f":"IF(C166=0,\"\",LEFT(INDEX(Lists!$H$5:$H$49,MATCH(C166,Lists!$G$5:$G$49,0),1),1))","v":""},null,{"$f":"'Month 2'!H166+'Month 2'!I166-'Month 2'!J166","v":0},"","",null,"0"]
[{"$f":"Planning!A151","v":"I143"},{"$f":"Planning!B151","v":0},{"$f":"Planning!C151","v":0},{"$f":"Planning!D151","v":0},{"$f":"Planning!E151","v":0},{"$f":"IF(Planning!G151<>0,Planning!G151,\"\")","v":""},{"$f":"Planning!H151","v":0},{"$f":"Planning!O151","v":0},{"$f":"IF(OR(W167=\"1\",AND(W167<>\"1\",G167=Lists!$A$17)),Y167,0)","v":0},null,{"$f":"IF(AND(W167=\"2\",G167<>Lists!$A$17),AA167,Z167)","v":""},"",{"$f":"Planning!P151","v":{"v":0,"d":"0.00"}},{"$f":"'Month 2'!M167+'Month 2'!N167-'Month 2'!O167","v":{"v":0,"d":"0.00"}},null,"","",{"$f":"SUMIFS($J$25:$J$224,$C$25:$C$224,$C167,$G$25:$G$224,Lists!$A$16)","v":0},0,null,"",null,{"$f":"IF(C167=0,\"\",LEFT(INDEX(Lists!$H$5:$H$49,MATCH(C167,Lists!$G$5:$G$49,0),1),1))","v":""},null,{"$f":"'Month 2'!H167+'Month 2'!I167-'Month 2'!J167","v":0},"","",null,"0"]
[{"$f":"Planning!A152","v":"I144"},{"$f":"Planning!B152","v":0},{"$f":"Planning!C152","v":0},{"$f":"Planning!D152","v":0},{"$f":"Planning!E152","v":0},{"$f":"IF(Planning!G152<>0,Planning!G152,\"\")","v":""},{"$f":"Planning!H152","v":0},{"$f":"Planning!O152","v":0},{"$f":"IF(OR(W168=\"1\",AND(W168<>\"1\",G168=Lists!$A$17)),Y168,0)","v":0},null,{"$f":"IF(AND(W168=\"2\",G168<>Lists!$A$17),AA168,Z168)","v":""},"",{"$f":"Planning!P152","v":{"v":0,"d":"0.00"}},{"$f":"'Month 2'!M168+'Month 2'!N168-'Month 2'!O168","v":{"v":0,"d":"0.00"}},null,"","",{"$f":"SUMIFS($J$25:$J$224,$C$25:$C$224,$C168,$G$25:$G$224,Lists!$A$16)","v":0},0,null,"",null,{"$f":"IF(C168=0,\"\",LEFT(INDEX(Lists!$H$5:$H$49,MATCH(C168,Lists!$G$5:$G$49,0),1),1))","v":""},null,{"$f":"'Month 2'!H168+'Month 2'!I168-'Month 2'!J168","v":0},"","",null,"0"]
[{"$f":"Planning!A153","v":"I145"},{"$f":"Planning!B153","v":0},{"$f":"Planning!C153","v":0},{"$f":"Planning!D153","v":0},{"$f":"Planning!E153","v":0},{"$f":"IF(Planning!G153<>0,Planning!G153,\"\")","v":""},{"$f":"Planning!H153","v":0},{"$f":"Planning!O153","v":0},{"$f":"IF(OR(W169=\"1\",AND(W169<>\"1\",G169=Lists!$A$17)),Y169,0)","v":0},null,{"$f":"IF(AND(W169=\"2\",G169<>Lists!$A$17),AA169,Z169)","v":""},"",{"$f":"Planning!P153","v":{"v":0,"d":"0.00"}},{"$f":"'Month 2'!M169+'Month 2'!N169-'Month 2'!O169","v":{"v":0,"d":"0.00"}},null,"","",{"$f":"SUMIFS($J$25:$J$224,$C$25:$C$224,$C169,$G$25:$G$224,Lists!$A$16)","v":0},0,null,"",null,{"$f":"IF(C169=0,\"\",LEFT(INDEX(Lists!$H$5:$H$49,MATCH(C169,Lists!$G$5:$G$49,0),1),1))","v":""},null,{"$f":"'Month 2'!H169+'Month 2'!I169-'Month 2'!J169","v":0},"","",null,"0"]
[{"$f":"Planning!A154","v":"I146"},{"$f":"Planning!B154","v":0},{"$f":"Planning!C154","v":0},{"$f":"Planning!D154","v":0},{"$f":"Planning!E154","v":0},{"$f":"IF(Planning!G154<>0,Planning!G154,\"\")","v":""},{"$f":"Planning!H154","v":0},{"$f":"Planning!O154","v":0},{"$f":"IF(OR(W170=\"1\",AND(W170<>\"1\",G170=Lists!$A$17)),Y170,0)","v":0},null,{"$f":"IF(AND(W170=\"2\",G170<>Lists!$A$17),AA170,Z170)","v":""},"",{"$f":"Planning!P154","v":{"v":0,"d":"0.00"}},{"$f":"'Month 2'!M170+'Month 2'!N170-'Month 2'!O170","v":{"v":0,"d":"0.00"}},null,"","",{"$f":"SUMIFS($J$25:$J$224,$C$25:$C$224,$C170,$G$25:$G$224,Lists!$A$16)","v":0},0,null,"",null,{"$f":"IF(C170=0,\"\",LEFT(INDEX(Lists!$H$5:$H$49,MATCH(C170,Lists!$G$5:$G$49,0),1),1))","v":""},null,{"$f":"'Month 2'!H170+'Month 2'!I170-'Month 2'!J170","v":0},"","",null,"0"]
[{"$f":"Planning!A155","v":"I147"},{"$f":"Planning!B155","v":0},{"$f":"Planning!C155","v":0},{"$f":"Planning!D155","v":0},{"$f":"Planning!E155","v":0},{"$f":"IF(Planning!G155<>0,Planning!G155,\"\")","v":""},{"$f":"Planning!H155","v":0},{"$f":"Planning!O155","v":0},{"$f":"IF(OR(W171=\"1\",AND(W171<>\"1\",G171=Lists!$A$17)),Y171,0)","v":0},null,{"$f":"IF(AND(W171=\"2\",G171<>Lists!$A$17),AA171,Z171)","v":""},"",{"$f":"Planning!P155","v":{"v":0,"d":"0.00"}},{"$f":"'Month 2'!M171+'Month 2'!N171-'Month 2'!O171","v":{"v":0,"d":"0.00"}},null,"","",{"$f":"SUMIFS($J$25:$J$224,$C$25:$C$224,$C171,$G$25:$G$224,Lists!$A$16)","v":0},0,null,"",null,{"$f":"IF(C171=0,\"\",LEFT(INDEX(Lists!$H$5:$H$49,MATCH(C171,Lists!$G$5:$G$49,0),1),1))","v":""},null,{"$f":"'Month 2'!H171+'Month 2'!I171-'Month 2'!J171","v":0},"","",null,"0"]
[{"$f":"Planning!A156","v":"I148"},{"$f":"Planning!B156","v":0},{"$f":"Planning!C156","v":0},{"$f":"Planning!D156","v":0},{"$f":"Planning!E156","v":0},{"$f":"IF(Planning!G156<>0,Planning!G156,\"\")","v":""},{"$f":"Planning!H156","v":0},{"$f":"Planning!O156","v":0},{"$f":"IF(OR(W172=\"1\",AND(W172<>\"1\",G172=Lists!$A$17)),Y172,0)","v":0},null,{"$f":"IF(AND(W172=\"2\",G172<>Lists!$A$17),AA172,Z172)","v":""},"",{"$f":"Planning!P156","v":{"v":0,"d":"0.00"}},{"$f":"'Month 2'!M172+'Month 2'!N172-'Month 2'!O172","v":{"v":0,"d":"0.00"}},null,"","",{"$f":"SUMIFS($J$25:$J$224,$C$25:$C$224,$C172,$G$25:$G$224,Lists!$A$16)","v":0},0,null,"",null,{"$f":"IF(C172=0,\"\",LEFT(INDEX(Lists!$H$5:$H$49,MATCH(C172,Lists!$G$5:$G$49,0),1),1))","v":""},null,{"$f":"'Month 2'!H172+'Month 2'!I172-'Month 2'!J172","v":0},"","",null,"0"]
[{"$f":"Planning!A157","v":"I149"},{"$f":"Planning!B157","v":0},{"$f":"Planning!C157","v":0},{"$f":"Planning!D157","v":0},{"$f":"Planning!E157","v":0},{"$f":"IF(Planning!G157<>0,Planning!G157,\"\")","v":""},{"$f":"Planning!H157","v":0},{"$f":"Planning!O157","v":0},{"$f":"IF(OR(W173=\"1\",AND(W173<>\"1\",G173=Lists!$A$17)),Y173,0)","v":0},null,{"$f":"IF(AND(W173=\"2\",G173<>Lists!$A$17),AA173,Z173)","v":""},"",{"$f":"Planning!P157","v":{"v":0,"d":"0.00"}},{"$f":"'Month 2'!M173+'Month 2'!N173-'Month 2'!O173","v":{"v":0,"d":"0.00"}},null,"","",{"$f":"SUMIFS($J$25:$J$224,$C$25:$C$224,$C173,$G$25:$G$224,Lists!$A$16)","v":0},0,null,"",null,{"$f":"IF(C173=0,\"\",LEFT(INDEX(Lists!$H$5:$H$49,MATCH(C173,Lists!$G$5:$G$49,0),1),1))","v":""},null,{"$f":"'Month 2'!H173+'Month 2'!I173-'Month 2'!J173","v":0},"","",null,"0"]
[{"$f":"Planning!A158","v":"I150"},{"$f":"Planning!B158","v":0},{"$f":"Planning!C158","v":0},{"$f":"Planning!D158","v":0},{"$f":"Planning!E158","v":0},{"$f":"IF(Planning!G158<>0,Planning!G158,\"\")","v":""},{"$f":"Planning!H158","v":0},{"$f":"Planning!O158","v":0},{"$f":"IF(OR(W174=\"1\",AND(W174<>\"1\",G174=Lists!$A$17)),Y174,0)","v":0},null,{"$f":"IF(AND(W174=\"2\",G174<>Lists!$A$17),AA174,Z174)","v":""},"",{"$f":"Planning!P158","v":{"v":0,"d":"0.00"}},{"$f":"'Month 2'!M174+'Month 2'!N174-'Month 2'!O174","v":{"v":0,"d":"0.00"}},null,"","",{"$f":"SUMIFS($J$25:$J$224,$C$25:$C$224,$C174,$G$25:$G$224,Lists!$A$16)","v":0},0,null,"",null,{"$f":"IF(C174=0,\"\",LEFT(INDEX(Lists!$H$5:$H$49,MATCH(C174,Lists!$G$5:$G$49,0),1),1))","v":""},null,{"$f":"'Month 2'!H174+'Month 2'!I174-'Month 2'!J174","v":0},"","",null,"0"]
[{"$f":"Planning!A159","v":"I151"},{"$f":"Planning!B159","v":0},{"$f":"Planning!C159","v":0},{"$f":"Planning!D159","v":0},{"$f":"Planning!E159","v":0},{"$f":"IF(Planning!G159<>0,Planning!G159,\"\")","v":""},{"$f":"Planning!H159","v":0},{"$f":"Planning!O159","v":0},{"$f":"IF(OR(W175=\"1\",AND(W175<>\"1\",G175=Lists!$A$17)),Y175,0)","v":0},null,{"$f":"IF(AND(W175=\"2\",G175<>Lists!$A$17),AA175,Z175)","v":""},"",{"$f":"Planning!P159","v":{"v":0,"d":"0.00"}},{"$f":"'Month 2'!M175+'Month 2'!N175-'Month 2'!O175","v":{"v":0,"d":"0.00"}},null,"","",{"$f":"SUMIFS($J$25:$J$224,$C$25:$C$224,$C175,$G$25:$G$224,Lists!$A$16)","v":0},0,null,"",null,{"$f":"IF(C175=0,\"\",LEFT(INDEX(Lists!$H$5:$H$49,MATCH(C175,Lists!$G$5:$G$49,0),1),1))","v":""},null,{"$f":"'Month 2'!H175+'Month 2'!I175-'Month 2'!J175","v":0},"","",null,"0"]
[{"$f":"Planning!A160","v":"I152"},{"$f":"Planning!B160","v":0},{"$f":"Planning!C160","v":0},{"$f":"Planning!D160","v":0},{"$f":"Planning!E160","v":0},{"$f":"IF(Planning!G160<>0,Planning!G160,\"\")","v":""},{"$f":"Planning!H160","v":0},{"$f":"Planning!O160","v":0},{"$f":"IF(OR(W176=\"1\",AND(W176<>\"1\",G176=Lists!$A$17)),Y176,0)","v":0},null,{"$f":"IF(AND(W176=\"2\",G176<>Lists!$A$17),AA176,Z176)","v":""},"",{"$f":"Planning!P160","v":{"v":0,"d":"0.00"}},{"$f":"'Month 2'!M176+'Month 2'!N176-'Month 2'!O176","v":{"v":0,"d":"0.00"}},null,"","",{"$f":"SUMIFS($J$25:$J$224,$C$25:$C$224,$C176,$G$25:$G$224,Lists!$A$16)","v":0},0,null,"",null,{"$f":"IF(C176=0,\"\",LEFT(INDEX(Lists!$H$5:$H$49,MATCH(C176,Lists!$G$5:$G$49,0),1),1))","v":""},null,{"$f":"'Month 2'!H176+'Month 2'!I176-'Month 2'!J176","v":0},"","",null,"0"]
[{"$f":"Planning!A161","v":"I153"},{"$f":"Planning!B161","v":0},{"$f":"Planning!C161","v":0},{"$f":"Planning!D161","v":0},{"$f":"Planning!E161","v":0},{"$f":"IF(Planning!G161<>0,Planning!G161,\"\")","v":""},{"$f":"Planning!H161","v":0},{"$f":"Planning!O161","v":0},{"$f":"IF(OR(W177=\"1\",AND(W177<>\"1\",G177=Lists!$A$17)),Y177,0)","v":0},null,{"$f":"IF(AND(W177=\"2\",G177<>Lists!$A$17),AA177,Z177)","v":""},"",{"$f":"Planning!P161","v":{"v":0,"d":"0.00"}},{"$f":"'Month 2'!M177+'Month 2'!N177-'Month 2'!O177","v":{"v":0,"d":"0.00"}},null,"","",{"$f":"SUMIFS($J$25:$J$224,$C$25:$C$224,$C177,$G$25:$G$224,Lists!$A$16)","v":0},0,null,"",null,{"$f":"IF(C177=0,\"\",LEFT(INDEX(Lists!$H$5:$H$49,MATCH(C177,Lists!$G$5:$G$49,0),1),1))","v":""},null,{"$f":"'Month 2'!H177+'Month 2'!I177-'Month 2'!J177","v":0},"","",null,"0"]
[{"$f":"Planning!A162","v":"I154"},{"$f":"Planning!B162","v":0},{"$f":"Planning!C162","v":0},{"$f":"Planning!D162","v":0},{"$f":"Planning!E162","v":0},{"$f":"IF(Planning!G162<>0,Planning!G162,\"\")","v":""},{"$f":"Planning!H162","v":0},{"$f":"Planning!O162","v":0},{"$f":"IF(OR(W178=\"1\",AND(W178<>\"1\",G178=Lists!$A$17)),Y178,0)","v":0},null,{"$f":"IF(AND(W178=\"2\",G178<>Lists!$A$17),AA178,Z178)","v":""},"",{"$f":"Planning!P162","v":{"v":0,"d":"0.00"}},{"$f":"'Month 2'!M178+'Month 2'!N178-'Month 2'!O178","v":{"v":0,"d":"0.00"}},null,"","",{"$f":"SUMIFS($J$25:$J$224,$C$25:$C$224,$C178,$G$25:$G$224,Lists!$A$16)","v":0},0,null,"",null,{"$f":"IF(C178=0,\"\",LEFT(INDEX(Lists!$H$5:$H$49,MATCH(C178,Lists!$G$5:$G$49,0),1),1))","v":""},null,{"$f":"'Month 2'!H178+'Month 2'!I178-'Month 2'!J178","v":0},"","",null,"0"]
[{"$f":"Planning!A163","v":"I155"},{"$f":"Planning!B163","v":0},{"$f":"Planning!C163","v":0},{"$f":"Planning!D163","v":0},{"$f":"Planning!E163","v":0},{"$f":"IF(Planning!G163<>0,Planning!G163,\"\")","v":""},{"$f":"Planning!H163","v":0},{"$f":"Planning!O163","v":0},{"$f":"IF(OR(W179=\"1\",AND(W179<>\"1\",G179=Lists!$A$17)),Y179,0)","v":0},null,{"$f":"IF(AND(W179=\"2\",G179<>Lists!$A$17),AA179,Z179)","v":""},"",{"$f":"Planning!P163","v":{"v":0,"d":"0.00"}},{"$f":"'Month 2'!M179+'Month 2'!N179-'Month 2'!O179","v":{"v":0,"d":"0.00"}},null,"","",{"$f":"SUMIFS($J$25:$J$224,$C$25:$C$224,$C179,$G$25:$G$224,Lists!$A$16)","v":0},0,null,"",null,{"$f":"IF(C179=0,\"\",LEFT(INDEX(Lists!$H$5:$H$49,MATCH(C179,Lists!$G$5:$G$49,0),1),1))","v":""},null,{"$f":"'Month 2'!H179+'Month 2'!I179-'Month 2'!J179","v":0},"","",null,"0"]
[{"$f":"Planning!A164","v":"I156"},{"$f":"Planning!B164","v":0},{"$f":"Planning!C164","v":0},{"$f":"Planning!D164","v":0},{"$f":"Planning!E164","v":0},{"$f":"IF(Planning!G164<>0,Planning!G164,\"\")","v":""},{"$f":"Planning!H164","v":0},{"$f":"Planning!O164","v":0},{"$f":"IF(OR(W180=\"1\",AND(W180<>\"1\",G180=Lists!$A$17)),Y180,0)","v":0},null,{"$f":"IF(AND(W180=\"2\",G180<>Lists!$A$17),AA180,Z180)","v":""},"",{"$f":"Planning!P164","v":{"v":0,"d":"0.00"}},{"$f":"'Month 2'!M180+'Month 2'!N180-'Month 2'!O180","v":{"v":0,"d":"0.00"}},null,"","",{"$f":"SUMIFS($J$25:$J$224,$C$25:$C$224,$C180,$G$25:$G$224,Lists!$A$16)","v":0},0,null,"",null,{"$f":"IF(C180=0,\"\",LEFT(INDEX(Lists!$H$5:$H$49,MATCH(C180,Lists!$G$5:$G$49,0),1),1))","v":""},null,{"$f":"'Month 2'!H180+'Month 2'!I180-'Month 2'!J180","v":0},"","",null,"0"]
[{"$f":"Planning!A165","v":"I157"},{"$f":"Planning!B165","v":0},{"$f":"Planning!C165","v":0},{"$f":"Planning!D165","v":0},{"$f":"Planning!E165","v":0},{"$f":"IF(Planning!G165<>0,Planning!G165,\"\")","v":""},{"$f":"Planning!H165","v":0},{"$f":"Planning!O165","v":0},{"$f":"IF(OR(W181=\"1\",AND(W181<>\"1\",G181=Lists!$A$17)),Y181,0)","v":0},null,{"$f":"IF(AND(W181=\"2\",G181<>Lists!$A$17),AA181,Z181)","v":""},"",{"$f":"Planning!P165","v":{"v":0,"d":"0.00"}},{"$f":"'Month 2'!M181+'Month 2'!N181-'Month 2'!O181","v":{"v":0,"d":"0.00"}},null,"","",{"$f":"SUMIFS($J$25:$J$224,$C$25:$C$224,$C181,$G$25:$G$224,Lists!$A$16)","v":0},0,null,"",null,{"$f":"IF(C181=0,\"\",LEFT(INDEX(Lists!$H$5:$H$49,MATCH(C181,Lists!$G$5:$G$49,0),1),1))","v":""},null,{"$f":"'Month 2'!H181+'Month 2'!I181-'Month 2'!J181","v":0},"","",null,"0"]
[{"$f":"Planning!A166","v":"I158"},{"$f":"Planning!B166","v":0},{"$f":"Planning!C166","v":0},{"$f":"Planning!D166","v":0},{"$f":"Planning!E166","v":0},{"$f":"IF(Planning!G166<>0,Planning!G166,\"\")","v":""},{"$f":"Planning!H166","v":0},{"$f":"Planning!O166","v":0},{"$f":"IF(OR(W182=\"1\",AND(W182<>\"1\",G182=Lists!$A$17)),Y182,0)","v":0},null,{"$f":"IF(AND(W182=\"2\",G182<>Lists!$A$17),AA182,Z182)","v":""},"",{"$f":"Planning!P166","v":{"v":0,"d":"0.00"}},{"$f":"'Month 2'!M182+'Month 2'!N182-'Month 2'!O182","v":{"v":0,"d":"0.00"}},null,"","",{"$f":"SUMIFS($J$25:$J$224,$C$25:$C$224,$C182,$G$25:$G$224,Lists!$A$16)","v":0},0,null,"",null,{"$f":"IF(C182=0,\"\",LEFT(INDEX(Lists!$H$5:$H$49,MATCH(C182,Lists!$G$5:$G$49,0),1),1))","v":""},null,{"$f":"'Month 2'!H182+'Month 2'!I182-'Month 2'!J182","v":0},"","",null,"0"]
[{"$f":"Planning!A167","v":"I159"},{"$f":"Planning!B167","v":0},{"$f":"Planning!C167","v":0},{"$f":"Planning!D167","v":0},{"$f":"Planning!E167","v":0},{"$f":"IF(Planning!G167<>0,Planning!G167,\"\")","v":""},{"$f":"Planning!H167","v":0},{"$f":"Planning!O167","v":0},{"$f":"IF(OR(W183=\"1\",AND(W183<>\"1\",G183=Lists!$A$17)),Y183,0)","v":0},null,{"$f":"IF(AND(W183=\"2\",G183<>Lists!$A$17),AA183,Z183)","v":""},"",{"$f":"Planning!P167","v":{"v":0,"d":"0.00"}},{"$f":"'Month 2'!M183+'Month 2'!N183-'Month 2'!O183","v":{"v":0,"d":"0.00"}},null,"","",{"$f":"SUMIFS($J$25:$J$224,$C$25:$C$224,$C183,$G$25:$G$224,Lists!$A$16)","v":0},0,null,"",null,{"$f":"IF(C183=0,\"\",LEFT(INDEX(Lists!$H$5:$H$49,MATCH(C183,Lists!$G$5:$G$49,0),1),1))","v":""},null,{"$f":"'Month 2'!H183+'Month 2'!I183-'Month 2'!J183","v":0},"","",null,"0"]
[{"$f":"Planning!A168","v":"I160"},{"$f":"Planning!B168","v":0},{"$f":"Planning!C168","v":0},{"$f":"Planning!D168","v":0},{"$f":"Planning!E168","v":0},{"$f":"IF(Planning!G168<>0,Planning!G168,\"\")","v":""},{"$f":"Planning!H168","v":0},{"$f":"Planning!O168","v":0},{"$f":"IF(OR(W184=\"1\",AND(W184<>\"1\",G184=Lists!$A$17)),Y184,0)","v":0},null,{"$f":"IF(AND(W184=\"2\",G184<>Lists!$A$17),AA184,Z184)","v":""},"",{"$f":"Planning!P168","v":{"v":0,"d":"0.00"}},{"$f":"'Month 2'!M184+'Month 2'!N184-'Month 2'!O184","v":{"v":0,"d":"0.00"}},null,"","",{"$f":"SUMIFS($J$25:$J$224,$C$25:$C$224,$C184,$G$25:$G$224,Lists!$A$16)","v":0},0,null,"",null,{"$f":"IF(C184=0,\"\",LEFT(INDEX(Lists!$H$5:$H$49,MATCH(C184,Lists!$G$5:$G$49,0),1),1))","v":""},null,{"$f":"'Month 2'!H184+'Month 2'!I184-'Month 2'!J184","v":0},"","",null,"0"]
[{"$f":"Planning!A169","v":"I161"},{"$f":"Planning!B169","v":0},{"$f":"Planning!C169","v":0},{"$f":"Planning!D169","v":0},{"$f":"Planning!E169","v":0},{"$f":"IF(Planning!G169<>0,Planning!G169,\"\")","v":""},{"$f":"Planning!H169","v":0},{"$f":"Planning!O169","v":0},{"$f":"IF(OR(W185=\"1\",AND(W185<>\"1\",G185=Lists!$A$17)),Y185,0)","v":0},null,{"$f":"IF(AND(W185=\"2\",G185<>Lists!$A$17),AA185,Z185)","v":""},{"$f":"IF($U185=ExcluirDelPLogro,\"\",IF(AND(H185=0,I185=0,J185=0),\"\",K185))","v":""},{"$f":"Planning!P169","v":{"v":0,"d":"0.00"}},{"$f":"'Month 2'!M185+'Month 2'!N185-'Month 2'!O185","v":{"v":0,"d":"0.00"}},null,"",{"$f":"IF($U185=ExcluirDelPLogro,\"\",IF(AND(M185=0,N185=0,O185=0),\"\",P185))","v":""},{"$f":"SUMIFS($J$25:$J$224,$C$25:$C$224,$C185,$G$25:$G$224,Lists!$A$16)","v":0},0,null,"",null,{"$f":"IF(C185=0,\"\",LEFT(INDEX(Lists!$H$5:$H$49,MATCH(C185,Lists!$G$5:$G$49,0),1),1))","v":""},null,{"$f":"'Month 2'!H185+'Month 2'!I185-'Month 2'!J185","v":0},"",{"$f":"IF(AND(H185=0,I185=0,J185=0),\"\",IF(J185>0,H185/J185,0))","v":""},null,"0"]
[{"$f":"Planning!A170","v":"I162"},{"$f":"Planning!B170","v":0},{"$f":"Planning!C170","v":0},{"$f":"Planning!D170","v":0},{"$f":"Planning!E170","v":0},{"$f":"IF(Planning!G170<>0,Planning!G170,\"\")","v":""},{"$f":"Planning!H170","v":0},{"$f":"Planning!O170","v":0},{"$f":"IF(OR(W186=\"1\",AND(W186<>\"1\",G186=Lists!$A$17)),Y186,0)","v":0},null,{"$f":"IF(AND(W186=\"2\",G186<>Lists!$A$17),AA186,Z186)","v":""},"",{"$f":"Planning!P170","v":{"v":0,"d":"0.00"}},{"$f":"'Month 2'!M186+'Month 2'!N186-'Month 2'!O186","v":{"v":0,"d":"0.00"}},null,"","",{"$f":"SUMIFS($J$25:$J$224,$C$25:$C$224,$C186,$G$25:$G$224,Lists!$A$16)","v":0},0,null,"",null,{"$f":"IF(C186=0,\"\",LEFT(INDEX(Lists!$H$5:$H$49,MATCH(C186,Lists!$G$5:$G$49,0),1),1))","v":""},null,{"$f":"'Month 2'!H186+'Month 2'!I186-'Month 2'!J186","v":0},"","",null,"0"]
[{"$f":"Planning!A171","v":"I163"},{"$f":"Planning!B171","v":0},{"$f":"Planning!C171","v":0},{"$f":"Planning!D171","v":0},{"$f":"Planning!E171","v":0},{"$f":"IF(Planning!G171<>0,Planning!G171,\"\")","v":""},{"$f":"Planning!H171","v":0},{"$f":"Planning!O171","v":0},{"$f":"IF(OR(W187=\"1\",AND(W187<>\"1\",G187=Lists!$A$17)),Y187,0)","v":0},null,{"$f":"IF(AND(W187=\"2\",G187<>Lists!$A$17),AA187,Z187)","v":""},"",{"$f":"Planning!P171","v":{"v":0,"d":"0.00"}},{"$f":"'Month 2'!M187+'Month 2'!N187-'Month 2'!O187","v":{"v":0,"d":"0.00"}},null,"","",{"$f":"SUMIFS($J$25:$J$224,$C$25:$C$224,$C187,$G$25:$G$224,Lists!$A$16)","v":0},0,null,"",null,{"$f":"IF(C187=0,\"\",LEFT(INDEX(Lists!$H$5:$H$49,MATCH(C187,Lists!$G$5:$G$49,0),1),1))","v":""},null,{"$f":"'Month 2'!H187+'Month 2'!I187-'Month 2'!J187","v":0},"","",null,"0"]
[{"$f":"Planning!A172","v":"I164"},{"$f":"Planning!B172","v":0},{"$f":"Planning!C172","v":0},{"$f":"Planning!D172","v":0},{"$f":"Planning!E172","v":0},{"$f":"IF(Planning!G172<>0,Planning!G172,\"\")","v":""},{"$f":"Planning!H172","v":0},{"$f":"Planning!O172","v":0},{"$f":"IF(OR(W188=\"1\",AND(W188<>\"1\",G188=Lists!$A$17)),Y188,0)","v":0},null,{"$f":"IF(AND(W188=\"2\",G188<>Lists!$A$17),AA188,Z188)","v":""},"",{"$f":"Planning!P172","v":{"v":0,"d":"0.00"}},{"$f":"'Month 2'!M188+'Month 2'!N188-'Month 2'!O188","v":{"v":0,"d":"0.00"}},null,"","",{"$f":"SUMIFS($J$25:$J$224,$C$25:$C$224,$C188,$G$25:$G$224,Lists!$A$16)","v":0},0,null,"",null,{"$f":"IF(C188=0,\"\",LEFT(INDEX(Lists!$H$5:$H$49,MATCH(C188,Lists!$G$5:$G$49,0),1),1))","v":""},null,{"$f":"'Month 2'!H188+'Month 2'!I188-'Month 2'!J188","v":0},"","",null,"0"]
[{"$f":"Planning!A173","v":"I165"},{"$f":"Planning!B173","v":0},{"$f":"Planning!C173","v":0},{"$f":"Planning!D173","v":0},{"$f":"Planning!E173","v":0},{"$f":"IF(Planning!G173<>0,Planning!G173,\"\")","v":""},{"$f":"Planning!H173","v":0},{"$f":"Planning!O173","v":0},{"$f":"IF(OR(W189=\"1\",AND(W189<>\"1\",G189=Lists!$A$17)),Y189,0)","v":0},null,{"$f":"IF(AND(W189=\"2\",G189<>Lists!$A$17),AA189,Z189)","v":""},"",{"$f":"Planning!P173","v":{"v":0,"d":"0.00"}},{"$f":"'Month 2'!M189+'Month 2'!N189-'Month 2'!O189","v":{"v":0,"d":"0.00"}},null,"","",{"$f":"SUMIFS($J$25:$J$224,$C$25:$C$224,$C189,$G$25:$G$224,Lists!$A$16)","v":0},0,null,"",null,{"$f":"IF(C189=0,\"\",LEFT(INDEX(Lists!$H$5:$H$49,MATCH(C189,Lists!$G$5:$G$49,0),1),1))","v":""},null,{"$f":"'Month 2'!H189+'Month 2'!I189-'Month 2'!J189","v":0},"","",null,"0"]
[{"$f":"Planning!A174","v":"I166"},{"$f":"Planning!B174","v":0},{"$f":"Planning!C174","v":0},{"$f":"Planning!D174","v":0},{"$f":"Planning!E174","v":0},{"$f":"IF(Planning!G174<>0,Planning!G174,\"\")","v":""},{"$f":"Planning!H174","v":0},{"$f":"Planning!O174","v":0},{"$f":"IF(OR(W190=\"1\",AND(W190<>\"1\",G190=Lists!$A$17)),Y190,0)","v":0},null,{"$f":"IF(AND(W190=\"2\",G190<>Lists!$A$17),AA190,Z190)","v":""},"",{"$f":"Planning!P174","v":{"v":0,"d":"0.00"}},{"$f":"'Month 2'!M190+'Month 2'!N190-'Month 2'!O190","v":{"v":0,"d":"0.00"}},null,"","",{"$f":"SUMIFS($J$25:$J$224,$C$25:$C$224,$C190,$G$25:$G$224,Lists!$A$16)","v":0},0,null,"",null,{"$f":"IF(C190=0,\"\",LEFT(INDEX(Lists!$H$5:$H$49,MATCH(C190,Lists!$G$5:$G$49,0),1),1))","v":""},null,{"$f":"'Month 2'!H190+'Month 2'!I190-'Month 2'!J190","v":0},"","",null,"0"]
[{"$f":"Planning!A175","v":"I167"},{"$f":"Planning!B175","v":0},{"$f":"Planning!C175","v":0},{"$f":"Planning!D175","v":0},{"$f":"Planning!E175","v":0},{"$f":"IF(Planning!G175<>0,Planning!G175,\"\")","v":""},{"$f":"Planning!H175","v":0},{"$f":"Planning!O175","v":0},{"$f":"IF(OR(W191=\"1\",AND(W191<>\"1\",G191=Lists!$A$17)),Y191,0)","v":0},null,{"$f":"IF(AND(W191=\"2\",G191<>Lists!$A$17),AA191,Z191)","v":""},"",{"$f":"Planning!P175","v":{"v":0,"d":"0.00"}},{"$f":"'Month 2'!M191+'Month 2'!N191-'Month 2'!O191","v":{"v":0,"d":"0.00"}},null,"","",{"$f":"SUMIFS($J$25:$J$224,$C$25:$C$224,$C191,$G$25:$G$224,Lists!$A$16)","v":0},0,null,"",null,{"$f":"IF(C191=0,\"\",LEFT(INDEX(Lists!$H$5:$H$49,MATCH(C191,Lists!$G$5:$G$49,0),1),1))","v":""},null,{"$f":"'Month 2'!H191+'Month 2'!I191-'Month 2'!J191","v":0},"","",null,"0"]
[{"$f":"Planning!A176","v":"I168"},{"$f":"Planning!B176","v":0},{"$f":"Planning!C176","v":0},{"$f":"Planning!D176","v":0},{"$f":"Planning!E176","v":0},{"$f":"IF(Planning!G176<>0,Planning!G176,\"\")","v":""},{"$f":"Planning!H176","v":0},{"$f":"Planning!O176","v":0},{"$f":"IF(OR(W192=\"1\",AND(W192<>\"1\",G192=Lists!$A$17)),Y192,0)","v":0},null,{"$f":"IF(AND(W192=\"2\",G192<>Lists!$A$17),AA192,Z192)","v":""},"",{"$f":"Planning!P176","v":{"v":0,"d":"0.00"}},{"$f":"'Month 2'!M192+'Month 2'!N192-'Month 2'!O192","v":{"v":0,"d":"0.00"}},null,"","",{"$f":"SUMIFS($J$25:$J$224,$C$25:$C$224,$C192,$G$25:$G$224,Lists!$A$16)","v":0},0,null,"",null,{"$f":"IF(C192=0,\"\",LEFT(INDEX(Lists!$H$5:$H$49,MATCH(C192,Lists!$G$5:$G$49,0),1),1))","v":""},null,{"$f":"'Month 2'!H192+'Month 2'!I192-'Month 2'!J192","v":0},"","",null,"0"]
[{"$f":"Planning!A177","v":"I169"},{"$f":"Planning!B177","v":0},{"$f":"Planning!C177","v":0},{"$f":"Planning!D177","v":0},{"$f":"Planning!E177","v":0},{"$f":"IF(Planning!G177<>0,Planning!G177,\"\")","v":""},{"$f":"Planning!H177","v":0},{"$f":"Planning!O177","v":0},{"$f":"IF(OR(W193=\"1\",AND(W193<>\"1\",G193=Lists!$A$17)),Y193,0)","v":0},null,{"$f":"IF(AND(W193=\"2\",G193<>Lists!$A$17),AA193,Z193)","v":""},"",{"$f":"Planning!P177","v":{"v":0,"d":"0.00"}},{"$f":"'Month 2'!M193+'Month 2'!N193-'Month 2'!O193","v":{"v":0,"d":"0.00"}},null,"","",{"$f":"SUMIFS($J$25:$J$224,$C$25:$C$224,$C193,$G$25:$G$224,Lists!$A$16)","v":0},0,null,"",null,{"$f":"IF(C193=0,\"\",LEFT(INDEX(Lists!$H$5:$H$49,MATCH(C193,Lists!$G$5:$G$49,0),1),1))","v":""},null,{"$f":"'Month 2'!H193+'Month 2'!I193-'Month 2'!J193","v":0},"","",null,"0"]
[{"$f":"Planning!A178","v":"I170"},{"$f":"Planning!B178","v":0},{"$f":"Planning!C178","v":0},{"$f":"Planning!D178","v":0},{"$f":"Planning!E178","v":0},{"$f":"IF(Planning!G178<>0,Planning!G178,\"\")","v":""},{"$f":"Planning!H178","v":0},{"$f":"Planning!O178","v":0},{"$f":"IF(OR(W194=\"1\",AND(W194<>\"1\",G194=Lists!$A$17)),Y194,0)","v":0},null,{"$f":"IF(AND(W194=\"2\",G194<>Lists!$A$17),AA194,Z194)","v":""},"",{"$f":"Planning!P178","v":{"v":0,"d":"0.00"}},{"$f":"'Month 2'!M194+'Month 2'!N194-'Month 2'!O194","v":{"v":0,"d":"0.00"}},null,"","",{"$f":"SUMIFS($J$25:$J$224,$C$25:$C$224,$C194,$G$25:$G$224,Lists!$A$16)","v":0},0,null,"",null,{"$f":"IF(C194=0,\"\",LEFT(INDEX(Lists!$H$5:$H$49,MATCH(C194,Lists!$G$5:$G$49,0),1),1))","v":""},null,{"$f":"'Month 2'!H194+'Month 2'!I194-'Month 2'!J194","v":0},"","",null,"0"]
[{"$f":"Planning!A179","v":"I171"},{"$f":"Planning!B179","v":0},{"$f":"Planning!C179","v":0},{"$f":"Planning!D179","v":0},{"$f":"Planning!E179","v":0},{"$f":"IF(Planning!G179<>0,Planning!G179,\"\")","v":""},{"$f":"Planning!H179","v":0},{"$f":"Planning!O179","v":0},{"$f":"IF(OR(W195=\"1\",AND(W195<>\"1\",G195=Lists!$A$17)),Y195,0)","v":0},null,{"$f":"IF(AND(W195=\"2\",G195<>Lists!$A$17),AA195,Z195)","v":""},"",{"$f":"Planning!P179","v":{"v":0,"d":"0.00"}},{"$f":"'Month 2'!M195+'Month 2'!N195-'Month 2'!O195","v":{"v":0,"d":"0.00"}},null,"","",{"$f":"SUMIFS($J$25:$J$224,$C$25:$C$224,$C195,$G$25:$G$224,Lists!$A$16)","v":0},0,null,"",null,{"$f":"IF(C195=0,\"\",LEFT(INDEX(Lists!$H$5:$H$49,MATCH(C195,Lists!$G$5:$G$49,0),1),1))","v":""},null,{"$f":"'Month 2'!H195+'Month 2'!I195-'Month 2'!J195","v":0},"","",null,"0"]
[{"$f":"Planning!A180","v":"I172"},{"$f":"Planning!B180","v":0},{"$f":"Planning!C180","v":0},{"$f":"Planning!D180","v":0},{"$f":"Planning!E180","v":0},{"$f":"IF(Planning!G180<>0,Planning!G180,\"\")","v":""},{"$f":"Planning!H180","v":0},{"$f":"Planning!O180","v":0},{"$f":"IF(OR(W196=\"1\",AND(W196<>\"1\",G196=Lists!$A$17)),Y196,0)","v":0},null,{"$f":"IF(AND(W196=\"2\",G196<>Lists!$A$17),AA196,Z196)","v":""},"",{"$f":"Planning!P180","v":{"v":0,"d":"0.00"}},{"$f":"'Month 2'!M196+'Month 2'!N196-'Month 2'!O196","v":{"v":0,"d":"0.00"}},null,"","",{"$f":"SUMIFS($J$25:$J$224,$C$25:$C$224,$C196,$G$25:$G$224,Lists!$A$16)","v":0},0,null,"",null,{"$f":"IF(C196=0,\"\",LEFT(INDEX(Lists!$H$5:$H$49,MATCH(C196,Lists!$G$5:$G$49,0),1),1))","v":""},null,{"$f":"'Month 2'!H196+'Month 2'!I196-'Month 2'!J196","v":0},"","",null,"0"]
[{"$f":"Planning!A181","v":"I173"},{"$f":"Planning!B181","v":0},{"$f":"Planning!C181","v":0},{"$f":"Planning!D181","v":0},{"$f":"Planning!E181","v":0},{"$f":"IF(Planning!G181<>0,Planning!G181,\"\")","v":""},{"$f":"Planning!H181","v":0},{"$f":"Planning!O181","v":0},{"$f":"IF(OR(W197=\"1\",AND(W197<>\"1\",G197=Lists!$A$17)),Y197,0)","v":0},null,{"$f":"IF(AND(W197=\"2\",G197<>Lists!$A$17),AA197,Z197)","v":""},"",{"$f":"Planning!P181","v":{"v":0,"d":"0.00"}},{"$f":"'Month 2'!M197+'Month 2'!N197-'Month 2'!O197","v":{"v":0,"d":"0.00"}},null,"","",{"$f":"SUMIFS($J$25:$J$224,$C$25:$C$224,$C197,$G$25:$G$224,Lists!$A$16)","v":0},0,null,"",null,{"$f":"IF(C197=0,\"\",LEFT(INDEX(Lists!$H$5:$H$49,MATCH(C197,Lists!$G$5:$G$49,0),1),1))","v":""},null,{"$f":"'Month 2'!H197+'Month 2'!I197-'Month 2'!J197","v":0},"","",null,"0"]
[{"$f":"Planning!A182","v":"I174"},{"$f":"Planning!B182","v":0},{"$f":"Planning!C182","v":0},{"$f":"Planning!D182","v":0},{"$f":"Planning!E182","v":0},{"$f":"IF(Planning!G182<>0,Planning!G182,\"\")","v":""},{"$f":"Planning!H182","v":0},{"$f":"Planning!O182","v":0},{"$f":"IF(OR(W198=\"1\",AND(W198<>\"1\",G198=Lists!$A$17)),Y198,0)","v":0},null,{"$f":"IF(AND(W198=\"2\",G198<>Lists!$A$17),AA198,Z198)","v":""},"",{"$f":"Planning!P182","v":{"v":0,"d":"0.00"}},{"$f":"'Month 2'!M198+'Month 2'!N198-'Month 2'!O198","v":{"v":0,"d":"0.00"}},null,"","",{"$f":"SUMIFS($J$25:$J$224,$C$25:$C$224,$C198,$G$25:$G$224,Lists!$A$16)","v":0},0,null,"",null,{"$f":"IF(C198=0,\"\",LEFT(INDEX(Lists!$H$5:$H$49,MATCH(C198,Lists!$G$5:$G$49,0),1),1))","v":""},null,{"$f":"'Month 2'!H198+'Month 2'!I198-'Month 2'!J198","v":0},"","",null,"0"]
[{"$f":"Planning!A183","v":"I175"},{"$f":"Planning!B183","v":0},{"$f":"Planning!C183","v":0},{"$f":"Planning!D183","v":0},{"$f":"Planning!E183","v":0},{"$f":"IF(Planning!G183<>0,Planning!G183,\"\")","v":""},{"$f":"Planning!H183","v":0},{"$f":"Planning!O183","v":0},{"$f":"IF(OR(W199=\"1\",AND(W199<>\"1\",G199=Lists!$A$17)),Y199,0)","v":0},null,{"$f":"IF(AND(W199=\"2\",G199<>Lists!$A$17),AA199,Z199)","v":""},"",{"$f":"Planning!P183","v":{"v":0,"d":"0.00"}},{"$f":"'Month 2'!M199+'Month 2'!N199-'Month 2'!O199","v":{"v":0,"d":"0.00"}},null,"","",{"$f":"SUMIFS($J$25:$J$224,$C$25:$C$224,$C199,$G$25:$G$224,Lists!$A$16)","v":0},0,null,"",null,{"$f":"IF(C199=0,\"\",LEFT(INDEX(Lists!$H$5:$H$49,MATCH(C199,Lists!$G$5:$G$49,0),1),1))","v":""},null,{"$f":"'Month 2'!H199+'Month 2'!I199-'Month 2'!J199","v":0},"","",null,"0"]
[{"$f":"Planning!A184","v":"I176"},{"$f":"Planning!B184","v":0},{"$f":"Planning!C184","v":0},{"$f":"Planning!D184","v":0},{"$f":"Planning!E184","v":0},{"$f":"IF(Planning!G184<>0,Planning!G184,\"\")","v":""},{"$f":"Planning!H184","v":0},{"$f":"Planning!O184","v":0},{"$f":"IF(OR(W200=\"1\",AND(W200<>\"1\",G200=Lists!$A$17)),Y200,0)","v":0},null,{"$f":"IF(AND(W200=\"2\",G200<>Lists!$A$17),AA200,Z200)","v":""},"",{"$f":"Planning!P184","v":{"v":0,"d":"0.00"}},{"$f":"'Month 2'!M200+'Month 2'!N200-'Month 2'!O200","v":{"v":0,"d":"0.00"}},null,"","",{"$f":"SUMIFS($J$25:$J$224,$C$25:$C$224,$C200,$G$25:$G$224,Lists!$A$16)","v":0},0,null,"",null,{"$f":"IF(C200=0,\"\",LEFT(INDEX(Lists!$H$5:$H$49,MATCH(C200,Lists!$G$5:$G$49,0),1),1))","v":""},null,{"$f":"'Month 2'!H200+'Month 2'!I200-'Month 2'!J200","v":0},"","",null,"0"]
[{"$f":"Planning!A185","v":"I177"},{"$f":"Planning!B185","v":0},{"$f":"Planning!C185","v":0},{"$f":"Planning!D185","v":0},{"$f":"Planning!E185","v":0},{"$f":"IF(Planning!G185<>0,Planning!G185,\"\")","v":""},{"$f":"Planning!H185","v":0},{"$f":"Planning!O185","v":0},{"$f":"IF(OR(W201=\"1\",AND(W201<>\"1\",G201=Lists!$A$17)),Y201,0)","v":0},null,{"$f":"IF(AND(W201=\"2\",G201<>Lists!$A$17),AA201,Z201)","v":""},"",{"$f":"Planning!P185","v":{"v":0,"d":"0.00"}},{"$f":"'Month 2'!M201+'Month 2'!N201-'Month 2'!O201","v":{"v":0,"d":"0.00"}},null,"","",{"$f":"SUMIFS($J$25:$J$224,$C$25:$C$224,$C201,$G$25:$G$224,Lists!$A$16)","v":0},0,null,"",null,{"$f":"IF(C201=0,\"\",LEFT(INDEX(Lists!$H$5:$H$49,MATCH(C201,Lists!$G$5:$G$49,0),1),1))","v":""},null,{"$f":"'Month 2'!H201+'Month 2'!I201-'Month 2'!J201","v":0},"","",null,"0"]
[{"$f":"Planning!A186","v":"I178"},{"$f":"Planning!B186","v":0},{"$f":"Planning!C186","v":0},{"$f":"Planning!D186","v":0},{"$f":"Planning!E186","v":0},{"$f":"IF(Planning!G186<>0,Planning!G186,\"\")","v":""},{"$f":"Planning!H186","v":0},{"$f":"Planning!O186","v":0},{"$f":"IF(OR(W202=\"1\",AND(W202<>\"1\",G202=Lists!$A$17)),Y202,0)","v":0},null,{"$f":"IF(AND(W202=\"2\",G202<>Lists!$A$17),AA202,Z202)","v":""},"",{"$f":"Planning!P186","v":{"v":0,"d":"0.00"}},{"$f":"'Month 2'!M202+'Month 2'!N202-'Month 2'!O202","v":{"v":0,"d":"0.00"}},null,"","",{"$f":"SUMIFS($J$25:$J$224,$C$25:$C$224,$C202,$G$25:$G$224,Lists!$A$16)","v":0},0,null,"",null,{"$f":"IF(C202=0,\"\",LEFT(INDEX(Lists!$H$5:$H$49,MATCH(C202,Lists!$G$5:$G$49,0),1),1))","v":""},null,{"$f":"'Month 2'!H202+'Month 2'!I202-'Month 2'!J202","v":0},"","",null,"0"]
[{"$f":"Planning!A187","v":"I179"},{"$f":"Planning!B187","v":0},{"$f":"Planning!C187","v":0},{"$f":"Planning!D187","v":0},{"$f":"Planning!E187","v":0},{"$f":"IF(Planning!G187<>0,Planning!G187,\"\")","v":""},{"$f":"Planning!H187","v":0},{"$f":"Planning!O187","v":0},{"$f":"IF(OR(W203=\"1\",AND(W203<>\"1\",G203=Lists!$A$17)),Y203,0)","v":0},null,{"$f":"IF(AND(W203=\"2\",G203<>Lists!$A$17),AA203,Z203)","v":""},"",{"$f":"Planning!P187","v":{"v":0,"d":"0.00"}},{"$f":"'Month 2'!M203+'Month 2'!N203-'Month 2'!O203","v":{"v":0,"d":"0.00"}},null,"","",{"$f":"SUMIFS($J$25:$J$224,$C$25:$C$224,$C203,$G$25:$G$224,Lists!$A$16)","v":0},0,null,"",null,{"$f":"IF(C203=0,\"\",LEFT(INDEX(Lists!$H$5:$H$49,MATCH(C203,Lists!$G$5:$G$49,0),1),1))","v":""},null,{"$f":"'Month 2'!H203+'Month 2'!I203-'Month 2'!J203","v":0},"","",null,"0"]
[{"$f":"Planning!A188","v":"I180"},{"$f":"Planning!B188","v":0},{"$f":"Planning!C188","v":0},{"$f":"Planning!D188","v":0},{"$f":"Planning!E188","v":0},{"$f":"IF(Planning!G188<>0,Planning!G188,\"\")","v":""},{"$f":"Planning!H188","v":0},{"$f":"Planning!O188","v":0},{"$f":"IF(OR(W204=\"1\",AND(W204<>\"1\",G204=Lists!$A$17)),Y204,0)","v":0},null,{"$f":"IF(AND(W204=\"2\",G204<>Lists!$A$17),AA204,Z204)","v":""},"",{"$f":"Planning!P188","v":{"v":0,"d":"0.00"}},{"$f":"'Month 2'!M204+'Month 2'!N204-'Month 2'!O204","v":{"v":0,"d":"0.00"}},null,"","",{"$f":"SUMIFS($J$25:$J$224,$C$25:$C$224,$C204,$G$25:$G$224,Lists!$A$16)","v":0},0,null,"",null,{"$f":"IF(C204=0,\"\",LEFT(INDEX(Lists!$H$5:$H$49,MATCH(C204,Lists!$G$5:$G$49,0),1),1))","v":""},null,{"$f":"'Month 2'!H204+'Month 2'!I204-'Month 2'!J204","v":0},"","",null,"0"]
[{"$f":"Planning!A189","v":"I181"},{"$f":"Planning!B189","v":0},{"$f":"Planning!C189","v":0},{"$f":"Planning!D189","v":0},{"$f":"Planning!E189","v":0},{"$f":"IF(Planning!G189<>0,Planning!G189,\"\")","v":""},{"$f":"Planning!H189","v":0},{"$f":"Planning!O189","v":0},{"$f":"IF(OR(W205=\"1\",AND(W205<>\"1\",G205=Lists!$A$17)),Y205,0)","v":0},null,{"$f":"IF(AND(W205=\"2\",G205<>Lists!$A$17),AA205,Z205)","v":""},"",{"$f":"Planning!P189","v":{"v":0,"d":"0.00"}},{"$f":"'Month 2'!M205+'Month 2'!N205-'Month 2'!O205","v":{"v":0,"d":"0.00"}},null,"","",{"$f":"SUMIFS($J$25:$J$224,$C$25:$C$224,$C205,$G$25:$G$224,Lists!$A$16)","v":0},0,null,"",null,{"$f":"IF(C205=0,\"\",LEFT(INDEX(Lists!$H$5:$H$49,MATCH(C205,Lists!$G$5:$G$49,0),1),1))","v":""},null,{"$f":"'Month 2'!H205+'Month 2'!I205-'Month 2'!J205","v":0},"","",null,"0"]
[{"$f":"Planning!A190","v":"I182"},{"$f":"Planning!B190","v":0},{"$f":"Planning!C190","v":0},{"$f":"Planning!D190","v":0},{"$f":"Planning!E190","v":0},{"$f":"IF(Planning!G190<>0,Planning!G190,\"\")","v":""},{"$f":"Planning!H190","v":0},{"$f":"Planning!O190","v":0},{"$f":"IF(OR(W206=\"1\",AND(W206<>\"1\",G206=Lists!$A$17)),Y206,0)","v":0},null,{"$f":"IF(AND(W206=\"2\",G206<>Lists!$A$17),AA206,Z206)","v":""},"",{"$f":"Planning!P190","v":{"v":0,"d":"0.00"}},{"$f":"'Month 2'!M206+'Month 2'!N206-'Month 2'!O206","v":{"v":0,"d":"0.00"}},null,"","",{"$f":"SUMIFS($J$25:$J$224,$C$25:$C$224,$C206,$G$25:$G$224,Lists!$A$16)","v":0},0,null,"",null,{"$f":"IF(C206=0,\"\",LEFT(INDEX(Lists!$H$5:$H$49,MATCH(C206,Lists!$G$5:$G$49,0),1),1))","v":""},null,{"$f":"'Month 2'!H206+'Month 2'!I206-'Month 2'!J206","v":0},"","",null,"0"]
[{"$f":"Planning!A191","v":"I183"},{"$f":"Planning!B191","v":0},{"$f":"Planning!C191","v":0},{"$f":"Planning!D191","v":0},{"$f":"Planning!E191","v":0},{"$f":"IF(Planning!G191<>0,Planning!G191,\"\")","v":""},{"$f":"Planning!H191","v":0},{"$f":"Planning!O191","v":0},{"$f":"IF(OR(W207=\"1\",AND(W207<>\"1\",G207=Lists!$A$17)),Y207,0)","v":0},null,{"$f":"IF(AND(W207=\"2\",G207<>Lists!$A$17),AA207,Z207)","v":""},"",{"$f":"Planning!P191","v":{"v":0,"d":"0.00"}},{"$f":"'Month 2'!M207+'Month 2'!N207-'Month 2'!O207","v":{"v":0,"d":"0.00"}},null,"","",{"$f":"SUMIFS($J$25:$J$224,$C$25:$C$224,$C207,$G$25:$G$224,Lists!$A$16)","v":0},0,null,"",null,{"$f":"IF(C207=0,\"\",LEFT(INDEX(Lists!$H$5:$H$49,MATCH(C207,Lists!$G$5:$G$49,0),1),1))","v":""},null,{"$f":"'Month 2'!H207+'Month 2'!I207-'Month 2'!J207","v":0},"","",null,"0"]
[{"$f":"Planning!A192","v":"I184"},{"$f":"Planning!B192","v":0},{"$f":"Planning!C192","v":0},{"$f":"Planning!D192","v":0},{"$f":"Planning!E192","v":0},{"$f":"IF(Planning!G192<>0,Planning!G192,\"\")","v":""},{"$f":"Planning!H192","v":0},{"$f":"Planning!O192","v":0},{"$f":"IF(OR(W208=\"1\",AND(W208<>\"1\",G208=Lists!$A$17)),Y208,0)","v":0},null,{"$f":"IF(AND(W208=\"2\",G208<>Lists!$A$17),AA208,Z208)","v":""},"",{"$f":"Planning!P192","v":{"v":0,"d":"0.00"}},{"$f":"'Month 2'!M208+'Month 2'!N208-'Month 2'!O208","v":{"v":0,"d":"0.00"}},null,"","",{"$f":"SUMIFS($J$25:$J$224,$C$25:$C$224,$C208,$G$25:$G$224,Lists!$A$16)","v":0},0,null,"",null,{"$f":"IF(C208=0,\"\",LEFT(INDEX(Lists!$H$5:$H$49,MATCH(C208,Lists!$G$5:$G$49,0),1),1))","v":""},null,{"$f":"'Month 2'!H208+'Month 2'!I208-'Month 2'!J208","v":0},"","",null,"0"]
[{"$f":"Planning!A193","v":"I185"},{"$f":"Planning!B193","v":0},{"$f":"Planning!C193","v":0},{"$f":"Planning!D193","v":0},{"$f":"Planning!E193","v":0},{"$f":"IF(Planning!G193<>0,Planning!G193,\"\")","v":""},{"$f":"Planning!H193","v":0},{"$f":"Planning!O193","v":0},{"$f":"IF(OR(W209=\"1\",AND(W209<>\"1\",G209=Lists!$A$17)),Y209,0)","v":0},null,{"$f":"IF(AND(W209=\"2\",G209<>Lists!$A$17),AA209,Z209)","v":""},"",{"$f":"Planning!P193","v":{"v":0,"d":"0.00"}},{"$f":"'Month 2'!M209+'Month 2'!N209-'Month 2'!O209","v":{"v":0,"d":"0.00"}},null,"","",{"$f":"SUMIFS($J$25:$J$224,$C$25:$C$224,$C209,$G$25:$G$224,Lists!$A$16)","v":0},0,null,"",null,{"$f":"IF(C209=0,\"\",LEFT(INDEX(Lists!$H$5:$H$49,MATCH(C209,Lists!$G$5:$G$49,0),1),1))","v":""},null,{"$f":"'Month 2'!H209+'Month 2'!I209-'Month 2'!J209","v":0},"","",null,"0"]
[{"$f":"Planning!A194","v":"I186"},{"$f":"Planning!B194","v":0},{"$f":"Planning!C194","v":0},{"$f":"Planning!D194","v":0},{"$f":"Planning!E194","v":0},{"$f":"IF(Planning!G194<>0,Planning!G194,\"\")","v":""},{"$f":"Planning!H194","v":0},{"$f":"Planning!O194","v":0},{"$f":"IF(OR(W210=\"1\",AND(W210<>\"1\",G210=Lists!$A$17)),Y210,0)","v":0},null,{"$f":"IF(AND(W210=\"2\",G210<>Lists!$A$17),AA210,Z210)","v":""},"",{"$f":"Planning!P194","v":{"v":0,"d":"0.00"}},{"$f":"'Month 2'!M210+'Month 2'!N210-'Month 2'!O210","v":{"v":0,"d":"0.00"}},null,"","",{"$f":"SUMIFS($J$25:$J$224,$C$25:$C$224,$C210,$G$25:$G$224,Lists!$A$16)","v":0},0,null,"",null,{"$f":"IF(C210=0,\"\",LEFT(INDEX(Lists!$H$5:$H$49,MATCH(C210,Lists!$G$5:$G$49,0),1),1))","v":""},null,{"$f":"'Month 2'!H210+'Month 2'!I210-'Month 2'!J210","v":0},"","",null,"0"]
[{"$f":"Planning!A195","v":"I187"},{"$f":"Planning!B195","v":0},{"$f":"Planning!C195","v":0},{"$f":"Planning!D195","v":0},{"$f":"Planning!E195","v":0},{"$f":"IF(Planning!G195<>0,Planning!G195,\"\")","v":""},{"$f":"Planning!H195","v":0},{"$f":"Planning!O195","v":0},{"$f":"IF(OR(W211=\"1\",AND(W211<>\"1\",G211=Lists!$A$17)),Y211,0)","v":0},null,{"$f":"IF(AND(W211=\"2\",G211<>Lists!$A$17),AA211,Z211)","v":""},"",{"$f":"Planning!P195","v":{"v":0,"d":"0.00"}},{"$f":"'Month 2'!M211+'Month 2'!N211-'Month 2'!O211","v":{"v":0,"d":"0.00"}},null,"","",{"$f":"SUMIFS($J$25:$J$224,$C$25:$C$224,$C211,$G$25:$G$224,Lists!$A$16)","v":0},0,null,"",null,{"$f":"IF(C211=0,\"\",LEFT(INDEX(Lists!$H$5:$H$49,MATCH(C211,Lists!$G$5:$G$49,0),1),1))","v":""},null,{"$f":"'Month 2'!H211+'Month 2'!I211-'Month 2'!J211","v":0},"","",null,"0"]
[{"$f":"Planning!A196","v":"I188"},{"$f":"Planning!B196","v":0},{"$f":"Planning!C196","v":0},{"$f":"Planning!D196","v":0},{"$f":"Planning!E196","v":0},{"$f":"IF(Planning!G196<>0,Planning!G196,\"\")","v":""},{"$f":"Planning!H196","v":0},{"$f":"Planning!O196","v":0},{"$f":"IF(OR(W212=\"1\",AND(W212<>\"1\",G212=Lists!$A$17)),Y212,0)","v":0},null,{"$f":"IF(AND(W212=\"2\",G212<>Lists!$A$17),AA212,Z212)","v":""},"",{"$f":"Planning!P196","v":{"v":0,"d":"0.00"}},{"$f":"'Month 2'!M212+'Month 2'!N212-'Month 2'!O212","v":{"v":0,"d":"0.00"}},null,"","",{"$f":"SUMIFS($J$25:$J$224,$C$25:$C$224,$C212,$G$25:$G$224,Lists!$A$16)","v":0},0,null,"",null,{"$f":"IF(C212=0,\"\",LEFT(INDEX(Lists!$H$5:$H$49,MATCH(C212,Lists!$G$5:$G$49,0),1),1))","v":""},null,{"$f":"'Month 2'!H212+'Month 2'!I212-'Month 2'!J212","v":0},"","",null,"0"]
[{"$f":"Planning!A197","v":"I189"},{"$f":"Planning!B197","v":0},{"$f":"Planning!C197","v":0},{"$f":"Planning!D197","v":0},{"$f":"Planning!E197","v":0},{"$f":"IF(Planning!G197<>0,Planning!G197,\"\")","v":""},{"$f":"Planning!H197","v":0},{"$f":"Planning!O197","v":0},{"$f":"IF(OR(W213=\"1\",AND(W213<>\"1\",G213=Lists!$A$17)),Y213,0)","v":0},null,{"$f":"IF(AND(W213=\"2\",G213<>Lists!$A$17),AA213,Z213)","v":""},"",{"$f":"Planning!P197","v":{"v":0,"d":"0.00"}},{"$f":"'Month 2'!M213+'Month 2'!N213-'Month 2'!O213","v":{"v":0,"d":"0.00"}},null,"","",{"$f":"SUMIFS($J$25:$J$224,$C$25:$C$224,$C213,$G$25:$G$224,Lists!$A$16)","v":0},0,null,"",null,{"$f":"IF(C213=0,\"\",LEFT(INDEX(Lists!$H$5:$H$49,MATCH(C213,Lists!$G$5:$G$49,0),1),1))","v":""},null,{"$f":"'Month 2'!H213+'Month 2'!I213-'Month 2'!J213","v":0},"","",null,"0"]
[{"$f":"Planning!A198","v":"I190"},{"$f":"Planning!B198","v":0},{"$f":"Planning!C198","v":0},{"$f":"Planning!D198","v":0},{"$f":"Planning!E198","v":0},{"$f":"IF(Planning!G198<>0,Planning!G198,\"\")","v":""},{"$f":"Planning!H198","v":0},{"$f":"Planning!O198","v":0},{"$f":"IF(OR(W214=\"1\",AND(W214<>\"1\",G214=Lists!$A$17)),Y214,0)","v":0},null,{"$f":"IF(AND(W214=\"2\",G214<>Lists!$A$17),AA214,Z214)","v":""},"",{"$f":"Planning!P198","v":{"v":0,"d":"0.00"}},{"$f":"'Month 2'!M214+'Month 2'!N214-'Month 2'!O214","v":{"v":0,"d":"0.00"}},null,"","",{"$f":"SUMIFS($J$25:$J$224,$C$25:$C$224,$C214,$G$25:$G$224,Lists!$A$16)","v":0},0,null,"",null,{"$f":"IF(C214=0,\"\",LEFT(INDEX(Lists!$H$5:$H$49,MATCH(C214,Lists!$G$5:$G$49,0),1),1))","v":""},null,{"$f":"'Month 2'!H214+'Month 2'!I214-'Month 2'!J214","v":0},"","",null,"0"]
[{"$f":"Planning!A199","v":"I191"},{"$f":"Planning!B199","v":0},{"$f":"Planning!C199","v":0},{"$f":"Planning!D199","v":0},{"$f":"Planning!E199","v":0},{"$f":"IF(Planning!G199<>0,Planning!G199,\"\")","v":""},{"$f":"Planning!H199","v":0},{"$f":"Planning!O199","v":0},{"$f":"IF(OR(W215=\"1\",AND(W215<>\"1\",G215=Lists!$A$17)),Y215,0)","v":0},null,{"$f":"IF(AND(W215=\"2\",G215<>Lists!$A$17),AA215,Z215)","v":""},"",{"$f":"Planning!P199","v":{"v":0,"d":"0.00"}},{"$f":"'Month 2'!M215+'Month 2'!N215-'Month 2'!O215","v":{"v":0,"d":"0.00"}},null,"","",{"$f":"SUMIFS($J$25:$J$224,$C$25:$C$224,$C215,$G$25:$G$224,Lists!$A$16)","v":0},0,null,"",null,{"$f":"IF(C215=0,\"\",LEFT(INDEX(Lists!$H$5:$H$49,MATCH(C215,Lists!$G$5:$G$49,0),1),1))","v":""},null,{"$f":"'Month 2'!H215+'Month 2'!I215-'Month 2'!J215","v":0},"","",null,"0"]
[{"$f":"Planning!A200","v":"I192"},{"$f":"Planning!B200","v":0},{"$f":"Planning!C200","v":0},{"$f":"Planning!D200","v":0},{"$f":"Planning!E200","v":0},{"$f":"IF(Planning!G200<>0,Planning!G200,\"\")","v":""},{"$f":"Planning!H200","v":0},{"$f":"Planning!O200","v":0},{"$f":"IF(OR(W216=\"1\",AND(W216<>\"1\",G216=Lists!$A$17)),Y216,0)","v":0},null,{"$f":"IF(AND(W216=\"2\",G216<>Lists!$A$17),AA216,Z216)","v":""},"",{"$f":"Planning!P200","v":{"v":0,"d":"0.00"}},{"$f":"'Month 2'!M216+'Month 2'!N216-'Month 2'!O216","v":{"v":0,"d":"0.00"}},null,"","",{"$f":"SUMIFS($J$25:$J$224,$C$25:$C$224,$C216,$G$25:$G$224,Lists!$A$16)","v":0},0,null,"",null,{"$f":"IF(C216=0,\"\",LEFT(INDEX(Lists!$H$5:$H$49,MATCH(C216,Lists!$G$5:$G$49,0),1),1))","v":""},null,{"$f":"'Month 2'!H216+'Month 2'!I216-'Month 2'!J216","v":0},"","",null,"0"]
[{"$f":"Planning!A201","v":"I193"},{"$f":"Planning!B201","v":0},{"$f":"Planning!C201","v":0},{"$f":"Planning!D201","v":0},{"$f":"Planning!E201","v":0},{"$f":"IF(Planning!G201<>0,Planning!G201,\"\")","v":""},{"$f":"Planning!H201","v":0},{"$f":"Planning!O201","v":0},{"$f":"IF(OR(W217=\"1\",AND(W217<>\"1\",G217=Lists!$A$17)),Y217,0)","v":0},null,{"$f":"IF(AND(W217=\"2\",G217<>Lists!$A$17),AA217,Z217)","v":""},{"$f":"IF($U217=ExcluirDelPLogro,\"\",IF(AND(H217=0,I217=0,J217=0),\"\",K217))","v":""},{"$f":"Planning!P201","v":{"v":0,"d":"0.00"}},{"$f":"'Month 2'!M217+'Month 2'!N217-'Month 2'!O217","v":{"v":0,"d":"0.00"}},null,"",{"$f":"IF($U217=ExcluirDelPLogro,\"\",IF(AND(M217=0,N217=0,O217=0),\"\",P217))","v":""},{"$f":"SUMIFS($J$25:$J$224,$C$25:$C$224,$C217,$G$25:$G$224,Lists!$A$16)","v":0},0,null,"",null,{"$f":"IF(C217=0,\"\",LEFT(INDEX(Lists!$H$5:$H$49,MATCH(C217,Lists!$G$5:$G$49,0),1),1))","v":""},null,{"$f":"'Month 2'!H217+'Month 2'!I217-'Month 2'!J217","v":0},"",{"$f":"IF(AND(H217=0,I217=0,J217=0),\"\",IF(J217>0,H217/J217,0))","v":""},null,"0"]
[{"$f":"Planning!A202","v":"I194"},{"$f":"Planning!B202","v":0},{"$f":"Planning!C202","v":0},{"$f":"Planning!D202","v":0},{"$f":"Planning!E202","v":0},{"$f":"IF(Planning!G202<>0,Planning!G202,\"\")","v":""},{"$f":"Planning!H202","v":0},{"$f":"Planning!O202","v":0},{"$f":"IF(OR(W218=\"1\",AND(W218<>\"1\",G218=Lists!$A$17)),Y218,0)","v":0},null,{"$f":"IF(AND(W218=\"2\",G218<>Lists!$A$17),AA218,Z218)","v":""},"",{"$f":"Planning!P202","v":{"v":0,"d":"0.00"}},{"$f":"'Month 2'!M218+'Month 2'!N218-'Month 2'!O218","v":{"v":0,"d":"0.00"}},null,{"$f":"IF(AND(M218=0,N218=0,O218=0),\"\",IF((M218+N218)>0,O218/(M218+N218),O218))","v":""},"",{"$f":"SUMIFS($J$25:$J$224,$C$25:$C$224,$C218,$G$25:$G$224,Lists!$A$16)","v":0},{"$f":"SUMIFS($O$25:$O$224,$C$25:$C$224,$C218,$G$25:$G$224,\"<>0\")","v":0},null,{"$f":"IF(B218=0,\"\",IF(LEFT(B218,1)=\"1\",\"1\",\"2\"))","v":""},null,{"$f":"IF(C218=0,\"\",LEFT(INDEX(Lists!$H$5:$H$49,MATCH(C218,Lists!$G$5:$G$49,0),1),1))","v":""},null,{"$f":"'Month 2'!H218+'Month 2'!I218-'Month 2'!J218","v":0},{"$f":"IF(AND(H218=0,I218=0,J218=0),\"\",IF((H218+I218)>0,J218/(H218+I218),J218))","v":""},"",null,{"$f":"U218&C218","v":"0"}]
[{"$f":"Planning!A203","v":"I195"},{"$f":"Planning!B203","v":0},{"$f":"Planning!C203","v":0},{"$f":"Planning!D203","v":0},{"$f":"Planning!E203","v":0},{"$f":"IF(Planning!G203<>0,Planning!G203,\"\")","v":""},{"$f":"Planning!H203","v":0},{"$f":"Planning!O203","v":0},{"$f":"IF(OR(W219=\"1\",AND(W219<>\"1\",G219=Lists!$A$17)),Y219,0)","v":0},null,{"$f":"IF(AND(W219=\"2\",G219<>Lists!$A$17),AA219,Z219)","v":""},"",{"$f":"Planning!P203","v":{"v":0,"d":"0.00"}},{"$f":"'Month 2'!M219+'Month 2'!N219-'Month 2'!O219","v":{"v":0,"d":"0.00"}},null,"","",{"$f":"SUMIFS($J$25:$J$224,$C$25:$C$224,$C219,$G$25:$G$224,Lists!$A$16)","v":0},0,null,"",null,{"$f":"IF(C219=0,\"\",LEFT(INDEX(Lists!$H$5:$H$49,MATCH(C219,Lists!$G$5:$G$49,0),1),1))","v":""},null,{"$f":"'Month 2'!H219+'Month 2'!I219-'Month 2'!J219","v":0},"","",null,"0"]
[{"$f":"Planning!A204","v":"I196"},{"$f":"Planning!B204","v":0},{"$f":"Planning!C204","v":0},{"$f":"Planning!D204","v":0},{"$f":"Planning!E204","v":0},{"$f":"IF(Planning!G204<>0,Planning!G204,\"\")","v":""},{"$f":"Planning!H204","v":0},{"$f":"Planning!O204","v":0},{"$f":"IF(OR(W220=\"1\",AND(W220<>\"1\",G220=Lists!$A$17)),Y220,0)","v":0},null,{"$f":"IF(AND(W220=\"2\",G220<>Lists!$A$17),AA220,Z220)","v":""},"",{"$f":"Planning!P204","v":{"v":0,"d":"0.00"}},{"$f":"'Month 2'!M220+'Month 2'!N220-'Month 2'!O220","v":{"v":0,"d":"0.00"}},null,"","",{"$f":"SUMIFS($J$25:$J$224,$C$25:$C$224,$C220,$G$25:$G$224,Lists!$A$16)","v":0},0,null,"",null,{"$f":"IF(C220=0,\"\",LEFT(INDEX(Lists!$H$5:$H$49,MATCH(C220,Lists!$G$5:$G$49,0),1),1))","v":""},null,{"$f":"'Month 2'!H220+'Month 2'!I220-'Month 2'!J220","v":0},"","",null,"0"]
[{"$f":"Planning!A205","v":"I197"},{"$f":"Planning!B205","v":0},{"$f":"Planning!C205","v":0},{"$f":"Planning!D205","v":0},{"$f":"Planning!E205","v":0},{"$f":"IF(Planning!G205<>0,Planning!G205,\"\")","v":""},{"$f":"Planning!H205","v":0},{"$f":"Planning!O205","v":0},{"$f":"IF(OR(W221=\"1\",AND(W221<>\"1\",G221=Lists!$A$17)),Y221,0)","v":0},null,{"$f":"IF(AND(W221=\"2\",G221<>Lists!$A$17),AA221,Z221)","v":""},"",{"$f":"Planning!P205","v":{"v":0,"d":"0.00"}},{"$f":"'Month 2'!M221+'Month 2'!N221-'Month 2'!O221","v":{"v":0,"d":"0.00"}},null,"","",{"$f":"SUMIFS($J$25:$J$224,$C$25:$C$224,$C221,$G$25:$G$224,Lists!$A$16)","v":0},0,null,"",null,{"$f":"IF(C221=0,\"\",LEFT(INDEX(Lists!$H$5:$H$49,MATCH(C221,Lists!$G$5:$G$49,0),1),1))","v":""},null,{"$f":"'Month 2'!H221+'Month 2'!I221-'Month 2'!J221","v":0},"","",null,"0"]
[{"$f":"Planning!A206","v":"I198"},{"$f":"Planning!B206","v":0},{"$f":"Planning!C206","v":0},{"$f":"Planning!D206","v":0},{"$f":"Planning!E206","v":0},{"$f":"IF(Planning!G206<>0,Planning!G206,\"\")","v":""},{"$f":"Planning!H206","v":0},{"$f":"Planning!O206","v":0},{"$f":"IF(OR(W222=\"1\",AND(W222<>\"1\",G222=Lists!$A$17)),Y222,0)","v":0},null,{"$f":"IF(AND(W222=\"2\",G222<>Lists!$A$17),AA222,Z222)","v":""},"",{"$f":"Planning!P206","v":{"v":0,"d":"0.00"}},{"$f":"'Month 2'!M222+'Month 2'!N222-'Month 2'!O222","v":{"v":0,"d":"0.00"}},null,"","",{"$f":"SUMIFS($J$25:$J$224,$C$25:$C$224,$C222,$G$25:$G$224,Lists!$A$16)","v":0},0,null,"",null,{"$f":"IF(C222=0,\"\",LEFT(INDEX(Lists!$H$5:$H$49,MATCH(C222,Lists!$G$5:$G$49,0),1),1))","v":""},null,{"$f":"'Month 2'!H222+'Month 2'!I222-'Month 2'!J222","v":0},"","",null,"0"]
[{"$f":"Planning!A207","v":"I199"},{"$f":"Planning!B207","v":0},{"$f":"Planning!C207","v":0},{"$f":"Planning!D207","v":0},{"$f":"Planning!E207","v":0},{"$f":"IF(Planning!G207<>0,Planning!G207,\"\")","v":""},{"$f":"Planning!H207","v":0},{"$f":"Planning!O207","v":0},{"$f":"IF(OR(W223=\"1\",AND(W223<>\"1\",G223=Lists!$A$17)),Y223,0)","v":0},null,{"$f":"IF(AND(W223=\"2\",G223<>Lists!$A$17),AA223,Z223)","v":""},"",{"$f":"Planning!P207","v":{"v":0,"d":"0.00"}},{"$f":"'Month 2'!M223+'Month 2'!N223-'Month 2'!O223","v":{"v":0,"d":"0.00"}},null,"","",{"$f":"SUMIFS($J$25:$J$224,$C$25:$C$224,$C223,$G$25:$G$224,Lists!$A$16)","v":0},0,null,"",null,{"$f":"IF(C223=0,\"\",LEFT(INDEX(Lists!$H$5:$H$49,MATCH(C223,Lists!$G$5:$G$49,0),1),1))","v":""},null,{"$f":"'Month 2'!H223+'Month 2'!I223-'Month 2'!J223","v":0},"","",null,"0"]
[{"$f":"Planning!A208","v":"I200"},{"$f":"Planning!B208","v":0},{"$f":"Planning!C208","v":0},{"$f":"Planning!D208","v":0},{"$f":"Planning!E208","v":0},{"$f":"IF(Planning!G208<>0,Planning!G208,\"\")","v":""},{"$f":"Planning!H208","v":0},{"$f":"Planning!O208","v":0},{"$f":"IF(OR(W224=\"1\",AND(W224<>\"1\",G224=Lists!$A$17)),Y224,0)","v":0},null,{"$f":"IF(AND(W224=\"2\",G224<>Lists!$A$17),AA224,Z224)","v":""},"",{"$f":"Planning!P208","v":{"v":0,"d":"0.00"}},{"$f":"'Month 2'!M224+'Month 2'!N224-'Month 2'!O224","v":{"v":0,"d":"0.00"}},null,"","",{"$f":"SUMIFS($J$25:$J$224,$C$25:$C$224,$C224,$G$25:$G$224,Lists!$A$16)","v":0},0,null,"",null,{"$f":"IF(C224=0,\"\",LEFT(INDEX(Lists!$H$5:$H$49,MATCH(C224,Lists!$G$5:$G$49,0),1),1))","v":""},null,{"$f":"'Month 2'!H224+'Month 2'!I224-'Month 2'!J224","v":0},"","",null,"0"]
[{"$nulls":20},".",null,".",null,".",".",".",null,"."]
[]
[{"$f":"Setup!AN6","v":"PR Dashboard indicators"}]
[{"$f":"Setup!AP8","v":"Financial reports planned"},{"$nulls":6},2]
[{"$f":"Setup!AP9","v":"Financial reports overdue"},{"$nulls":6},1]
[{"$f":"Setup!AP10","v":0}]
[{"$f":"Setup!AP11","v":0}]
[{"$f":"Setup!AP12","v":0}]
[{"$f":"Setup!AP13","v":0}]
[{"$f":"Setup!AP14","v":0}]
[{"$f":"Setup!AP15","v":"Supervision actions recommended"},{"$nulls":6},5]
[{"$f":"Setup!AP16","v":"Supervision recommendations past due"},{"$nulls":6},1]
[{"$f":"Setup!AP17","v":"Programmatic reports planned"},{"$nulls":6},2]
[{"$f":"Setup!AP18","v":"Programmatic reports past due"},{"$nulls":6},1]
[{"$f":"Setup!AP19","v":0}]
[{"$f":"Setup!AP20","v":0}]
[{"$f":"Setup!AP21","v":0}]
[{"$f":"Setup!AP22","v":0}]
[{"$f":"Setup!AP23","v":0}]
[{"$f":"Setup!AP24","v":0}]
[{"$f":"Setup!AP25","v":0}]
[{"$f":"Setup!AP26","v":0}]
[{"$f":"Setup!AP27","v":0}]
[{"$f":"Setup!AP28","v":0}]
[{"$f":"Setup!AP29","v":0}]
[{"$f":"Setup!AP30","v":0}]
[{"$f":"Setup!AP31","v":0}]
[{"$f":"Setup!AP32","v":0}]
[{"$f":"Setup!AP33","v":0}]
[{"$f":"Setup!AP34","v":0}]
[{"$f":"Setup!AP35","v":0}]
[{"$f":"Setup!AP36","v":0}]
[{"$f":"Setup!AP37","v":0}]
[{"$f":"Setup!AP38","v":0}]
[{"$f":"Setup!AP39","v":"Actual stock level - PS39 - Product 1: Efavirenz, 600 mg, 30 tablets"},{"$nulls":6},11]
[{"$f":"Setup!AP40","v":"Actual stock level - PS40 - Product 2: Efavirenz, 200 mg, 90 capsules"},{"$nulls":6},12]
[{"$f":"Setup!AP41","v":"Actual stock level - PS41 - Product 3: TDF/3TC, 300/300 mg, 30 tablets"},{"$nulls":6},13]
[{"$f":"Setup!AP42","v":"Actual stock level - PS42 - Product 4: 3TC, 10 mg/ml, oral solution 240 ml"},{"$nulls":6},14]
[{"$f":"Setup!AP43","v":0}]
[{"$f":"Setup!AP44","v":0}]
[{"$f":"Setup!AP45","v":0}]
[{"$f":"Setup!AP46","v":0}]
[{"$f":"Setup!AP47","v":0}]
[{"$f":"Setup!AP48","v":0}]
[{"$f":"Setup!AP49","v":0}]
[{"$f":"Setup!AP50","v":0}]
[{"$f":"Setup!AP51","v":0}]
[{"$f":"Setup!AP52","v":0}]
[{"$f":"Setup!AP53","v":0}]
[{"$f":"Setup!AP54","v":0}]
[{"$f":"Setup!AP55","v":0}]
[{"$f":"Setup!AP56","v":0}]
[{"$f":"Setup!AP57","v":0}]
[{"$f":"Setup!AP58","v":0}]
[{"$f":"Setup!AP59","v":0}]
[{"$f":"Setup!AP60","v":0}]
[{"$f":"Setup!AP61","v":0}]
[{"$f":"Setup!AP62","v":0}]
[{"$f":"Setup!AP63","v":0}]
[{"$f":"Setup!AP64","v":0}]
[{"$f":"Setup!AP65","v":0}]
[{"$f":"Setup!AP66","v":0}]
[{"$f":"Setup!AP67","v":0}]
[{"$f":"Setup!AP68","v":0}]
[{"$f":"Setup!AP69","v":0}]
[]
[]
[{"$f":"Translations!A138","v":"Narrative comments from results (to be filled by the Subrecipient)"}]
{"$rows_empty":43}
[{"$f":"Translations!A139","v":"This section is filled in exclusively by PR's programmatic and financial monitors."}]
[]
[{"$f":"Translations!A150","v":"PROGRAMMATIC"},null,null,{"$f":"Translations!A140","v":"Name of person conducting programmatic verification"}]
[]
[]
[{"$nulls":3},{"$f":"Translations!A141","v":"Contextual details"}]
[]
[]
[]
[]
[]
[]
[{"$nulls":3},{"$f":"Translations!A151","v":"Description of identified problem(s)"}]
[]
[]
[]
[]
[]
[]
[{"$nulls":3},{"$f":"Translations!A152","v":"Recommendations and actions to be taken"}]
[{"$nulls":3},"1)"]
[{"$nulls":3},"2)"]
[{"$nulls":3},"3)"]
[{"$nulls":3},"4)"]
[{"$nulls":3},"5)"]
[]
[]
[]
[{"$f":"Translations!A154","v":"FINANCIAL"},null,null,{"$f":"Translations!A153","v":"Name of person conducting financial verification"}]
[]
[]
[{"$nulls":3},{"$f":"Translations!A141","v":"Contextual details"}]
{"$rows_empty":7}
[{"$nulls":3},{"$f":"Translations!A151","v":"Description of identified problem(s)"}]
[]
[]
[]
[]
[]
[]
[{"$nulls":3},{"$f":"Translations!A152","v":"Recommendations and actions to be taken"}]
[{"$nulls":3},"1)"]
[{"$nulls":3},"2)"]
[{"$nulls":3},"3)"]
[{"$nulls":3},"4)"]
[{"$nulls":3},"5)"]
[]
[]
[]
[]
[]
[{"$f":"Translations!A321","v":"To be completed by the PR"},{"$nulls":6},{"$f":"Translations!A324","v":"To be completed by the SR"}]
[{"$f":"Translations!A322","v":"Position"},{"$nulls":3},{"$f":"Translations!A323","v":"Signature"},null,null,{"$f":"Translations!A322","v":"Position"},null,{"$f":"Translations!A323","v":"Signature"}]

{"sheet":"Month 4","index":15,"n_rows":394,"n_cols":29,"rows_kept":394,"hidden":true,"merged":[[1,4,1,13],[1,14,1,15],[2,4,2,13],[2,14,3,15],[3,4,3,13],[4,4,4,13],[4,22,16,26],[5,9,5,15],[6,0,15,7],[6,9,7,15],[9,9,9,10],[9,12,9,15],[10,9,11,10],[10,12,11,15],[13,9,15,13],[13,14,13,15],[14,14,15,15],[16,6,16,7],[17,3,17,4],[17,7,17,8],[17,9,17,10],[17,12,17,13],[17,14,17,15],[18,7,18,10],[18,12,18,15],[18,24,18,26],[19,0,20,0],[19,1,20,1],[19,2,20,2],[19,3,20,3],[19,4,20,4],[19,5,20,5],[19,7,20,7],[19,8,20,8],[19,9,20,9],[19,10,20,10],[19,12,20,12],[19,13,20,13],[19,14,20,14],[19,15,20,15],[19,17,19,18],[19,20,20,20],[19,22,20,22],[19,24,20,24],[19,25,20,25],[19,26,20,26],[19,28,20,28],[226,0,226,7],[227,0,227,6],[228,0,228,6],[229,0,229,6],[230,0,230,6],[231,0,231,6],[232,0,232,6],[233,0,233,6],[234,0,234,6],[235,0,235,6],[236,0,236,6],[237,0,237,6],[238,0,238,6],[239,0,239,6],[240,0,240,6],[241,0,241,6],[242,0,242,6],[243,0,243,6],[244,0,244,6],[245,0,245,6],[246,0,246,6],[247,0,247,6],[248,0,248,6],[249,0,249,6],[250,0,250,6],[251,0,251,6],[252,0,252,6],[253,0,253,6],[254,0,254,6],[255,0,255,6],[256,0,256,6],[257,0,257,6],[258,0,258,6],[259,0,259,6],[260,0,260,6],[261,0,261,6],[262,0,262,6],[263,0,263,6],[264,0,264,6],[265,0,265,6],[266,0,266,6],[267,0,267,6],[268,0,268,6],[269,0,269,6],[270,0,270,6],[271,0,271,6],[272,0,272,6],[273,0,273,6],[274,0,274,6],[275,0,275,6],[276,0,276,6],[277,0,277,6],[278,0,278,6],[279,0,279,6],[280,0,280,6],[281,0,281,6],[282,0,282,6],[283,0,283,6],[284,0,284,6],[285,0,285,6],[286,0,286,6],[287,0,287,6],[288,0,288,6],[291,0,291,15],[292,0,333,15],[335,0,335,15],[337,0,360,0],[337,14,337,15],[338,3,338,4],[338,14,338,15],[341,3,345,15],[348,3,352,15],[355,3,355,15],[356,3,356,15],[357,3,357,15],[358,3,358,15],[359,3,359,15],[363,0,387,0],[363,14,363,15],[364,3,364,4],[364,14,364,15],[367,3,371,15],[375,3,379,15],[382,3,382,15],[383,3,383,15],[384,3,384,15],[385,3,385,15],[386,3,386,15],[392,0,392,4],[392,7,392,12],[393,0,393,3],[393,7,393,8],[393,9,393,12],[394,0,394,3],[394,7,394,8],[394,9,394,12],[395,0,395,3],[395,7,395,8],[395,9,395,12],[396,0,396,3],[396,7,396,8],[396,9,396,12],[397,0,397,3],[397,7,397,8],[397,9,397,12]]}
[]
["Month 4",{"$nulls":3},{"$f":"Translations!A80","v":"SR Management Tool"},{"$nulls":9},{"$f":"Translations!A129","v":"SCORE"}]
[{"$nulls":4},{"$f":"Setup!H11","v":"Direct Gender Partnership (DGP)"},{"$nulls":9},{"$f":"K23","v":{"v":0.8431182795698925,"d":"84.31%"}}]
[{"$nulls":4},{"$f":" Setup!H14 & \"  (\" & Setup!H13 & \")\" & \"  (\" & Setup!H15 & \")\"","v":"DMR-202-G01-H-00  (January  2016 - December 2016)  (HIV / AIDS)"}]
[{"$nulls":4},{"$f":"Setup!AB11 & \"  (\" & Setup!H16 & \")\"","v":"April  ($ - USD)"},{"$nulls":17},"A. Se colocará lo pendiente (Y) en (I) siempre que (W) sea 1. Estandar o que (W) sea diferente de 1. sin embargo la actividad (G) NO contribuya al indicador.\n\nB. En la columna % Logro (K) se colocará siempre el Logro 1. Estandar (Z). Solamente se colocará el Logro 2. Inverso (AA) cuando (W) sea 2 y (G) sea diferente de 2. NO... es decir, el valor inverso va para las actvividades que contribuyan al indicador G = 1. SI y para el Indicador en si G = 0... por eso se pregunta por G diferente de 2. NO.. para incluir los 1. SI y a los 0\n\n"]
[{"$f":"Setup!G19","v":"Details of programatic indicators"},{"$nulls":8},{"$f":"Setup!G17","v":"Key population"}]
[{"$f":"Setup!H19","v":"# PLHIV that initiated ARV with CD4 count <200\n# new HIV+ enrolled in care services \n# aged 10-24 yrs reached by HIV life skills ed. in school "},{"$nulls":8},{"$f":"Setup!H17","v":"Sex Workers - Migrants - Women"}]
[]
[]
[{"$nulls":9},{"$f":"Translations!A119","v":"Report date"},null,null,{"$f":"Translations!A130","v":"Reported by"}]
[{"$nulls":9},"2016-05-13",null,null,"William Brown"]
[]
[]
[{"$nulls":9},{"$f":"Translations!A132","v":"Note: Enter disubursment ammount here if the PR made a disbursment this month. Leave blank if no disbursment was made."},{"$nulls":4},{"$f":"Translations!A131","v":"Disbursement"}]
[{"$nulls":14},{"v":650000,"d":"650,000.00"}]
[]
[]
[{"$nulls":3},{"$f":"Translations!A233","v":"Input data in spaces with this color"},{"$nulls":3},{"$f":"Translations!A120","v":"Date of verification"},null,"2016-05-15",null,null,{"$f":"Translations!A120","v":"Date of verification"},null,"2016-05-15"]
[{"$nulls":7},{"$f":"Translations!A133","v":"Programmatic aspects"},{"$nulls":4},{"$f":"Translations!A134","v":"Financial aspects"},{"$nulls":9},"COMPORTAMIENTO",null,"Sólo en el Aspecto Programático"]
[{"$f":"Translations!A88","v":"Item"},"Tipo de Ítem","ID Enlace",{"$f":"Translations!A91","v":"Activity code"},{"$f":"Translations!A92","v":"Indicator / Activity"},{"$f":"Translations!A79","v":"TGF costs groups"},null,{"$f":"Translations!A135","v":"Monthly target"},{"$f":"Translations!A136","v":"Balance from previous period"},{"$f":"Translations!A137","v":"Results "},{"$f":"Translations!A108","v":"Result %"},null,{"$f":"Translations!$A$360","v":"Monthly budget"},{"$f":"Translations!A136","v":"Balance from previous period"},{"$f":"Translations!$A$361","v":"Monthly expenditure"},{"$f":"Translations!A108","v":"Result %"},null,"Sumatorias Indicadores",null,null,"Indicador =1 Actividad = 2",null,"1. Estandar\n2. Inverso\n3. No Acumula",null,"Pendiente Mes Anterior\n SIN CONDICION","Logro\n1. Estandar","Logro\n2. Inverso",null,"TAG \nPerformance"]
[{"$nulls":17},"PROG","FIN"]
[]
[{"$f":"Translations!A109","v":"Totals"},{"$nulls":6},"-","-","-",{"$f":"IFERROR(AVERAGEIF(L25:L224,\"<> \"),\"\")","v":{"v":0.8431182795698925,"d":"84.31%"}},null,{"$f":"SUMIFS(M25:M224,$G$25:$G$224,\"<>0\")","v":{"v":187850,"d":"187,850.00"}},{"$f":"SUMIFS(N25:N224,$G$25:$G$224,\"<>0\")","v":{"v":9150,"d":"9,150.00"}},{"$f":"SUMIFS(O25:O224,$G$25:$G$224,\"<>0\")","v":{"v":183690,"d":"183,690.00"}},{"$f":"IFERROR(AVERAGEIF(Q25:Q224,\"<> \"),\"\")","v":{"v":0.9438437273245677,"d":"94.38%"}}]
[]
[{"$f":"Planning!A9","v":"I001"},{"$f":"Planning!B9","v":"1. Indicator"},{"$f":"Planning!C9","v":"Pr68"},{"$f":"Planning!D9","v":1},{"$f":"Planning!E9","v":"[Pr68] # PLHIV that initiated ARV with CD4 count <200 Target [2. Inverse]"},{"$f":"IF(Planning!G9<>0,Planning!G9,\"\")","v":""},{"$f":"Planning!H9","v":0},{"$f":"Planning!R9","v":200},{"$f":"IF(OR(W25=\"1\",AND(W25<>\"1\",G25=Lists!$A$17)),Y25,0)","v":0},{"$f":"R25","v":210},{"$f":"IF(AND(W25=\"2\",G25<>Lists!$A$17),AA25,Z25)","v":{"v":0.9523809523809523,"d":"95.24%"}},{"$f":"IF($U25=ExcluirDelPLogro,\"\",IF(AND(H25=0,I25=0,J25=0),\"\",K25))","v":0.9523809523809523},{"$f":"Planning!S9","v":{"v":45700,"d":"45,700.00"}},{"$f":"'Month 3'!M25+'Month 3'!N25-'Month 3'!O25","v":{"v":2000,"d":"2,000.00"}},{"$f":"S25","v":{"v":47690,"d":"47,690.00"}},{"$f":"IF(AND(M25=0,N25=0,O25=0),\"\",IF((M25+N25)>0,O25/(M25+N25),O25))","v":{"v":0.9997903563941299,"d":"99.98%"}},{"$f":"IF($U25=ExcluirDelPLogro,\"\",IF(AND(M25=0,N25=0,O25=0),\"\",P25))","v":0.9997903563941299},{"$f":"SUMIFS($J$25:$J$224,$C$25:$C$224,$C25,$G$25:$G$224,Lists!$A$16)","v":210},{"$f":"SUMIFS($O$25:$O$224,$C$25:$C$224,$C25,$G$25:$G$224,\"<>0\")","v":47690},null,{"$f":"IF(B25=0,\"\",IF(LEFT(B25,1)=\"1\",\"1\",\"2\"))","v":"1"},null,{"$f":"IF(C25=0,\"\",LEFT(INDEX(Lists!$H$5:$H$49,MATCH(C25,Lists!$G$5:$G$49,0),1),1))","v":"2"},null,{"$f":"'Month 3'!H25+'Month 3'!I25-'Month 3'!J25","v":-5},{"$f":"IF(AND(H25=0,I25=0,J25=0),\"\",IF((H25+I25)>0,J25/(H25+I25),J25))","v":1.05},{"$f":"IF(AND(H25=0,I25=0,J25=0),\"\",IF(J25>0,H25/J25,0))","v":0.9523809523809523},null,{"$f":"U25&C25","v":"1Pr68"}]
[{"$f":"Planning!A10","v":"I002"},{"$f":"Planning!B10","v":"2. Activity: Contributing"},{"$f":"Planning!C10","v":"Pr68"},{"$f":"Planning!D10","v":1.2},{"$f":"Planning!E10","v":"PLHIV reimbursed for transportation costs to HIV testing and treatment centres\n"},{"$f":"IF(Planning!G10<>0,Planning!G10,\"\")","v":"12. Living support to client/ target population "},{"$f":"Planning!H10","v":"1. YES"},{"$f":"Planning!R10","v":200},{"$f":"IF(OR(W26=\"1\",AND(W26<>\"1\",G26=Lists!$A$17)),Y26,0)","v":0},210,{"$f":"IF(AND(W26=\"2\",G26<>Lists!$A$17),AA26,Z26)","v":{"v":0.9523809523809523,"d":"95.24%"}},"",{"$f":"Planning!S10","v":{"v":45000,"d":"45,000.00"}},{"$f":"'Month 3'!M26+'Month 3'!N26-'Month 3'!O26","v":{"v":2000,"d":"2,000.00"}},{"v":47000,"d":"47,000.00"},{"v":1,"d":"100.00%"},"",{"$f":"SUMIFS($J$25:$J$224,$C$25:$C$224,$C26,$G$25:$G$224,Lists!$A$16)","v":210},{"$f":"SUMIFS($O$25:$O$224,$C$25:$C$224,$C26,$G$25:$G$224,\"<>0\")","v":47690},null,{"$f":"IF(B26=0,\"\",IF(LEFT(B26,1)=\"1\",\"1\",\"2\"))","v":"2"},null,{"$f":"IF(C26=0,\"\",LEFT(INDEX(Lists!$H$5:$H$49,MATCH(C26,Lists!$G$5:$G$49,0),1),1))","v":"2"},null,{"$f":"'Month 3'!H26+'Month 3'!I26-'Month 3'!J26","v":-5},{"$f":"IF(AND(H26=0,I26=0,J26=0),\"\",IF((H26+I26)>0,J26/(H26+I26),J26))","v":1.05},0.9523809523809523,null,{"$f":"U26&C26","v":"2Pr68"}]
[{"$f":"Planning!A11","v":"I003"},{"$f":"Planning!B11","v":"3. Activity: Non-Contributing"},{"$f":"Planning!C11","v":"Pr68"},{"$f":"Planning!D11","v":1.3},{"$f":"Planning!E11","v":"Communication materials produced to educate HIV+ patients about HIV treatment (Migrants and Sexual Workers). \n\n"},{"$f":"IF(Planning!G11<>0,Planning!G11,\"\")","v":"10. Communication material and publications"},{"$f":"Planning!H11","v":"2. NO"},{"$f":"Planning!R11","v":25},{"$f":"IF(OR(W27=\"1\",AND(W27<>\"1\",G27=Lists!$A$17)),Y27,0)","v":10},35,{"$f":"IF(AND(W27=\"2\",G27<>Lists!$A$17),AA27,Z27)","v":{"v":1,"d":"100.00%"}},"",{"$f":"Planning!S11","v":{"v":700,"d":"700.00"}},{"$f":"'Month 3'!M27+'Month 3'!N27-'Month 3'!O27","v":{"v":0,"d":"0.00"}},{"v":690,"d":"690.00"},{"v":0.9857142857142858,"d":"98.57%"},"",{"$f":"SUMIFS($J$25:$J$224,$C$25:$C$224,$C27,$G$25:$G$224,Lists!$A$16)","v":210},47690,null,"2",null,{"$f":"IF(C27=0,\"\",LEFT(INDEX(Lists!$H$5:$H$49,MATCH(C27,Lists!$G$5:$G$49,0),1),1))","v":"2"},null,{"$f":"'Month 3'!H27+'Month 3'!I27-'Month 3'!J27","v":10},1,0.7142857142857143,null,"2Pr68"]
[{"$f":"Planning!A12","v":"I004"},{"$f":"Planning!B12","v":"3. Activity: Non-Contributing"},{"$f":"Planning!C12","v":"Pr68"},{"$f":"Planning!D12","v":1.4},{"$f":"Planning!E12","v":"Supervisory visits to verify the appropriate application of testing and treatment protocols at centers. "},{"$f":"IF(Planning!G12<>0,Planning!G12,\"\")","v":"11. Programme administration costs"},{"$f":"Planning!H12","v":"2. NO"},{"$f":"Planning!R12","v":0},{"$f":"IF(OR(W28=\"1\",AND(W28<>\"1\",G28=Lists!$A$17)),Y28,0)","v":0},0,{"$f":"IF(AND(W28=\"2\",G28<>Lists!$A$17),AA28,Z28)","v":""},"",{"$f":"Planning!S12","v":{"v":0,"d":"0.00"}},{"$f":"'Month 3'!M28+'Month 3'!N28-'Month 3'!O28","v":{"v":0,"d":"0.00"}},{"v":0,"d":"0.00"},"","",{"$f":"SUMIFS($J$25:$J$224,$C$25:$C$224,$C28,$G$25:$G$224,Lists!$A$16)","v":210},47690,null,"2",null,{"$f":"IF(C28=0,\"\",LEFT(INDEX(Lists!$H$5:$H$49,MATCH(C28,Lists!$G$5:$G$49,0),1),1))","v":"2"},null,{"$f":"'Month 3'!H28+'Month 3'!I28-'Month 3'!J28","v":0},"","",null,"2Pr68"]
[{"$f":"Planning!A13","v":"I005"},{"$f":"Planning!B13","v":"1. Indicator"},{"$f":"Planning!C13","v":"Pr72"},{"$f":"Planning!D13","v":2},{"$f":"Planning!E13","v":"[Pr72] # new HIV+ enrolled in care services Target [3. Non-Cumulative]"},{"$f":"IF(Planning!G13<>0,Planning!G13,\"\")","v":""},{"$f":"Planning!H13","v":0},{"$f":"Planning!R13","v":124},{"$f":"IF(OR(W29=\"1\",AND(W29<>\"1\",G29=Lists!$A$17)),Y29,0)","v":0},{"$f":"R29","v":90},{"$f":"IF(AND(W29=\"2\",G29<>Lists!$A$17),AA29,Z29)","v":{"v":0.7258064516129032,"d":"72.58%"}},0.7258064516129032,{"$f":"Planning!S13","v":{"v":27900,"d":"27,900.00"}},{"$f":"'Month 3'!M29+'Month 3'!N29-'Month 3'!O29","v":{"v":700,"d":"700.00"}},{"$f":"S29","v":{"v":28000,"d":"28,000.00"}},{"v":0.9790209790209791,"d":"97.90%"},0.9790209790209791,{"$f":"SUMIFS($J$25:$J$224,$C$25:$C$224,$C29,$G$25:$G$224,Lists!$A$16)","v":90},28000,null,"1",null,{"$f":"IF(C29=0,\"\",LEFT(INDEX(Lists!$H$5:$H$49,MATCH(C29,Lists!$G$5:$G$49,0),1),1))","v":"3"},null,{"$f":"'Month 3'!H29+'Month 3'!I29-'Month 3'!J29","v":14},0.7258064516129032,1.3777777777777778,null,"1Pr72"]
[{"$f":"Planning!A14","v":"I006"},{"$f":"Planning!B14","v":"2. Activity: Contributing"},{"$f":"Planning!C14","v":"Pr72"},{"$f":"Planning!D14","v":2.1},{"$f":"Planning!E14","v":"Enrollment of  newly diagnosed HIV+ patients for home visits to monitor use of ARV."},{"$f":"IF(Planning!G14<>0,Planning!G14,\"\")","v":"12. Living support to client/ target population "},{"$f":"Planning!H14","v":"1. YES"},{"$f":"Planning!R14","v":124},{"$f":"IF(OR(W30=\"1\",AND(W30<>\"1\",G30=Lists!$A$17)),Y30,0)","v":0},90,{"$f":"IF(AND(W30=\"2\",G30<>Lists!$A$17),AA30,Z30)","v":{"v":0.7258064516129032,"d":"72.58%"}},"",{"$f":"Planning!S14","v":{"v":27900,"d":"27,900.00"}},{"$f":"'Month 3'!M30+'Month 3'!N30-'Month 3'!O30","v":{"v":700,"d":"700.00"}},{"v":28000,"d":"28,000.00"},{"v":0.9790209790209791,"d":"97.90%"},"",{"$f":"SUMIFS($J$25:$J$224,$C$25:$C$224,$C30,$G$25:$G$224,Lists!$A$16)","v":90},28000,null,"2",null,{"$f":"IF(C30=0,\"\",LEFT(INDEX(Lists!$H$5:$H$49,MATCH(C30,Lists!$G$5:$G$49,0),1),1))","v":"3"},null,{"$f":"'Month 3'!H30+'Month 3'!I30-'Month 3'!J30","v":14},0.7258064516129032,1.3777777777777778,null,"2Pr72"]
[{"$f":"Planning!A15","v":"I007"},{"$f":"Planning!B15","v":"1. Indicator"},{"$f":"Planning!C15","v":"Pr74"},{"$f":"Planning!D15","v":3},{"$f":"Planning!E15","v":"[Pr74] # aged 10-24 yrs reached by HIV life skills ed. in school  Target [1. Standard]"},{"$f":"IF(Planning!G15<>0,Planning!G15,\"\")","v":""},{"$f":"Planning!H15","v":0},{"$f":"Planning!R15","v":250},{"$f":"IF(OR(W31=\"1\",AND(W31<>\"1\",G31=Lists!$A$17)),Y31,0)","v":30},{"$f":"R31","v":200},{"$f":"IF(AND(W31=\"2\",G31<>Lists!$A$17),AA31,Z31)","v":{"v":0.7142857142857143,"d":"71.43%"}},0.7142857142857143,{"$f":"Planning!S15","v":{"v":56250,"d":"56,250.00"}},{"$f":"'Month 3'!M31+'Month 3'!N31-'Month 3'!O31","v":{"v":6250,"d":"6,250.00"}},{"$f":"S31","v":{"v":50000,"d":"50,000.00"}},{"v":0.8,"d":"80.00%"},0.8,{"$f":"SUMIFS($J$25:$J$224,$C$25:$C$224,$C31,$G$25:$G$224,Lists!$A$16)","v":200},50000,null,"1",null,{"$f":"IF(C31=0,\"\",LEFT(INDEX(Lists!$H$5:$H$49,MATCH(C31,Lists!$G$5:$G$49,0),1),1))","v":"1"},null,{"$f":"'Month 3'!H31+'Month 3'!I31-'Month 3'!J31","v":30},0.7142857142857143,1.25,null,"1Pr74"]
[{"$f":"Planning!A16","v":"I008"},{"$f":"Planning!B16","v":"2. Activity: Contributing"},{"$f":"Planning!C16","v":"Pr74"},{"$f":"Planning!D16","v":3.1},{"$f":"Planning!E16","v":"Transportation of students to meetings and conferences for peer education activities"},{"$f":"IF(Planning!G16<>0,Planning!G16,\"\")","v":"2. Travel related costs"},{"$f":"Planning!H16","v":"1. YES"},{"$f":"Planning!R16","v":250},{"$f":"IF(OR(W32=\"1\",AND(W32<>\"1\",G32=Lists!$A$17)),Y32,0)","v":30},200,{"$f":"IF(AND(W32=\"2\",G32<>Lists!$A$17),AA32,Z32)","v":{"v":0.7142857142857143,"d":"71.43%"}},"",{"$f":"Planning!S16","v":{"v":56250,"d":"56,250.00"}},{"$f":"'Month 3'!M32+'Month 3'!N32-'Month 3'!O32","v":{"v":6250,"d":"6,250.00"}},{"v":50000,"d":"50,000.00"},{"v":0.8,"d":"80.00%"},"",{"$f":"SUMIFS($J$25:$J$224,$C$25:$C$224,$C32,$G$25:$G$224,Lists!$A$16)","v":200},50000,null,"2",null,{"$f":"IF(C32=0,\"\",LEFT(INDEX(Lists!$H$5:$H$49,MATCH(C32,Lists!$G$5:$G$49,0),1),1))","v":"1"},null,{"$f":"'Month 3'!H32+'Month 3'!I32-'Month 3'!J32","v":30},0.7142857142857143,1.25,null,"2Pr74"]
[{"$f":"Planning!A17","v":"I009"},{"$f":"Planning!B17","v":"1. Indicator"},{"$f":"Planning!C17","v":"OI01"},{"$f":"Planning!D17","v":4},{"$f":"Planning!E17","v":"[OI01] # of new orphans and vulnerable children (0 - 17 yrs) benefiting from  services provided at OVC centers [1. Standard]"},{"$f":"IF(Planning!G17<>0,Planning!G17,\"\")","v":""},{"$f":"Planning!H17","v":0},{"$f":"Planning!R17","v":500},{"$f":"IF(OR(W33=\"1\",AND(W33<>\"1\",G33=Lists!$A$17)),Y33,0)","v":0},{"$f":"R33","v":490},{"$f":"IF(AND(W33=\"2\",G33<>Lists!$A$17),AA33,Z33)","v":{"v":0.98,"d":"98.00%"}},0.98,{"$f":"Planning!S17","v":{"v":58000,"d":"58,000.00"}},{"$f":"'Month 3'!M33+'Month 3'!N33-'Month 3'!O33","v":{"v":200,"d":"200.00"}},{"$f":"S33","v":{"v":58000,"d":"58,000.00"}},{"v":0.9965635738831615,"d":"99.66%"},0.9965635738831615,{"$f":"SUMIFS($J$25:$J$224,$C$25:$C$224,$C33,$G$25:$G$224,Lists!$A$16)","v":490},58000,null,"1",null,{"$f":"IF(C33=0,\"\",LEFT(INDEX(Lists!$H$5:$H$49,MATCH(C33,Lists!$G$5:$G$49,0),1),1))","v":"1"},null,{"$f":"'Month 3'!H33+'Month 3'!I33-'Month 3'!J33","v":0},0.98,1.0204081632653061,null,"1OI01"]
[{"$f":"Planning!A18","v":"I010"},{"$f":"Planning!B18","v":"3. Activity: Non-Contributing"},{"$f":"Planning!C18","v":"OI01"},{"$f":"Planning!D18","v":4.1},{"$f":"Planning!E18","v":"# of OVC centers established and fully equipped  "},{"$f":"IF(Planning!G18<>0,Planning!G18,\"\")","v":"8. Infrastructure "},{"$f":"Planning!H18","v":"2. NO"},{"$f":"Planning!R18","v":0},{"$f":"IF(OR(W34=\"1\",AND(W34<>\"1\",G34=Lists!$A$17)),Y34,0)","v":0},0,{"$f":"IF(AND(W34=\"2\",G34<>Lists!$A$17),AA34,Z34)","v":""},"",{"$f":"Planning!S18","v":{"v":0,"d":"0.00"}},{"$f":"'Month 3'!M34+'Month 3'!N34-'Month 3'!O34","v":{"v":0,"d":"0.00"}},{"v":0,"d":"0.00"},"","",{"$f":"SUMIFS($J$25:$J$224,$C$25:$C$224,$C34,$G$25:$G$224,Lists!$A$16)","v":490},58000,null,"2",null,{"$f":"IF(C34=0,\"\",LEFT(INDEX(Lists!$H$5:$H$49,MATCH(C34,Lists!$G$5:$G$49,0),1),1))","v":"1"},null,{"$f":"'Month 3'!H34+'Month 3'!I34-'Month 3'!J34","v":0},"","",null,"2OI01"]
[{"$f":"Planning!A19","v":"I011"},{"$f":"Planning!B19","v":"2. Activity: Contributing"},{"$f":"Planning!C19","v":"OI01"},{"$f":"Planning!D19","v":4.2},{"$f":"Planning!E19","v":"# of OVC registered at centres"},{"$f":"IF(Planning!G19<>0,Planning!G19,\"\")","v":"12. Living support to client/ target population "},{"$f":"Planning!H19","v":"1. YES"},{"$f":"Planning!R19","v":500},{"$f":"IF(OR(W35=\"1\",AND(W35<>\"1\",G35=Lists!$A$17)),Y35,0)","v":0},490,{"$f":"IF(AND(W35=\"2\",G35<>Lists!$A$17),AA35,Z35)","v":{"v":0.98,"d":"98.00%"}},"",{"$f":"Planning!S19","v":{"v":50000,"d":"50,000.00"}},{"$f":"'Month 3'!M35+'Month 3'!N35-'Month 3'!O35","v":{"v":0,"d":"0.00"}},{"v":50000,"d":"50,000.00"},{"v":1,"d":"100.00%"},"",{"$f":"SUMIFS($J$25:$J$224,$C$25:$C$224,$C35,$G$25:$G$224,Lists!$A$16)","v":490},58000,null,"2",null,{"$f":"IF(C35=0,\"\",LEFT(INDEX(Lists!$H$5:$H$49,MATCH(C35,Lists!$G$5:$G$49,0),1),1))","v":"1"},null,{"$f":"'Month 3'!H35+'Month 3'!I35-'Month 3'!J35","v":0},0.98,1.0204081632653061,null,"2OI01"]
[{"$f":"Planning!A20","v":"I012"},{"$f":"Planning!B20","v":"3. Activity: Non-Contributing"},{"$f":"Planning!C20","v":"OI01"},{"$f":"Planning!D20","v":4.3},{"$f":"Planning!E20","v":"# of meals provided at the OVC centers "},{"$f":"IF(Planning!G20<>0,Planning!G20,\"\")","v":"12. Living support to client/ target population "},{"$f":"Planning!H20","v":"2. NO"},{"$f":"Planning!R20","v":{"v":2000,"d":"2,000"}},{"$f":"IF(OR(W36=\"1\",AND(W36<>\"1\",G36=Lists!$A$17)),Y36,0)","v":20},{"v":1980,"d":"1,980"},{"$f":"IF(AND(W36=\"2\",G36<>Lists!$A$17),AA36,Z36)","v":{"v":0.9801980198019802,"d":"98.02%"}},"",{"$f":"Planning!S20","v":{"v":8000,"d":"8,000.00"}},{"$f":"'Month 3'!M36+'Month 3'!N36-'Month 3'!O36","v":{"v":200,"d":"200.00"}},{"v":8000,"d":"8,000.00"},{"v":0.975609756097561,"d":"97.56%"},"",{"$f":"SUMIFS($J$25:$J$224,$C$25:$C$224,$C36,$G$25:$G$224,Lists!$A$16)","v":490},58000,null,"2",null,{"$f":"IF(C36=0,\"\",LEFT(INDEX(Lists!$H$5:$H$49,MATCH(C36,Lists!$G$5:$G$49,0),1),1))","v":"1"},null,{"$f":"'Month 3'!H36+'Month 3'!I36-'Month 3'!J36","v":20},0.9801980198019802,1.0101010101010102,null,"2OI01"]
[{"$f":"Planning!A21","v":"I013"},{"$f":"Planning!B21","v":0},{"$f":"Planning!C21","v":0},{"$f":"Planning!D21","v":0},{"$f":"Planning!E21","v":0},{"$f":"IF(Planning!G21<>0,Planning!G21,\"\")","v":""},{"$f":"Planning!H21","v":0},{"$f":"Planning!R21","v":0},{"$f":"IF(OR(W37=\"1\",AND(W37<>\"1\",G37=Lists!$A$17)),Y37,0)","v":0},null,{"$f":"IF(AND(W37=\"2\",G37<>Lists!$A$17),AA37,Z37)","v":""},"",{"$f":"Planning!S21","v":{"v":0,"d":"0.00"}},{"$f":"'Month 3'!M37+'Month 3'!N37-'Month 3'!O37","v":{"v":0,"d":"0.00"}},null,"","",{"$f":"SUMIFS($J$25:$J$224,$C$25:$C$224,$C37,$G$25:$G$224,Lists!$A$16)","v":0},0,null,"",null,{"$f":"IF(C37=0,\"\",LEFT(INDEX(Lists!$H$5:$H$49,MATCH(C37,Lists!$G$5:$G$49,0),1),1))","v":""},null,{"$f":"'Month 3'!H37+'Month 3'!I37-'Month 3'!J37","v":0},"","",null,"0"]
[{"$f":"Planning!A22","v":"I014"},{"$f":"Planning!B22","v":0},{"$f":"Planning!C22","v":0},{"$f":"Planning!D22","v":0},{"$f":"Planning!E22","v":0},{"$f":"IF(Planning!G22<>0,Planning!G22,\"\")","v":""},{"$f":"Planning!H22","v":0},{"$f":"Planning!R22","v":0},{"$f":"IF(OR(W38=\"1\",AND(W38<>\"1\",G38=Lists!$A$17)),Y38,0)","v":0},null,{"$f":"IF(AND(W38=\"2\",G38<>Lists!$A$17),AA38,Z38)","v":""},"",{"$f":"Planning!S22","v":{"v":0,"d":"0.00"}},{"$f":"'Month 3'!M38+'Month 3'!N38-'Month 3'!O38","v":{"v":0,"d":"0.00"}},null,"","",{"$f":"SUMIFS($J$25:$J$224,$C$25:$C$224,$C38,$G$25:$G$224,Lists!$A$16)","v":0},0,null,"",null,{"$f":"IF(C38=0,\"\",LEFT(INDEX(Lists!$H$5:$H$49,MATCH(C38,Lists!$G$5:$G$49,0),1),1))","v":""},null,{"$f":"'Month 3'!H38+'Month 3'!I38-'Month 3'!J38","v":0},"","",null,"0"]
[{"$f":"Planning!A23","v":"I015"},{"$f":"Planning!B23","v":0},{"$f":"Planning!C23","v":0},{"$f":"Planning!D23","v":0},{"$f":"Planning!E23","v":0},{"$f":"IF(Planning!G23<>0,Planning!G23,\"\")","v":""},{"$f":"Planning!H23","v":0},{"$f":"Planning!R23","v":0},{"$f":"IF(OR(W39=\"1\",AND(W39<>\"1\",G39=Lists!$A$17)),Y39,0)","v":0},null,{"$f":"IF(AND(W39=\"2\",G39<>Lists!$A$17),AA39,Z39)","v":""},"",{"$f":"Planning!S23","v":{"v":0,"d":"0.00"}},{"$f":"'Month 3'!M39+'Month 3'!N39-'Month 3'!O39","v":{"v":0,"d":"0.00"}},null,"","",{"$f":"SUMIFS($J$25:$J$224,$C$25:$C$224,$C39,$G$25:$G$224,Lists!$A$16)","v":0},0,null,"",null,{"$f":"IF(C39=0,\"\",LEFT(INDEX(Lists!$H$5:$H$49,MATCH(C39,Lists!$G$5:$G$49,0),1),1))","v":""},null,{"$f":"'Month 3'!H39+'Month 3'!I39-'Month 3'!J39","v":0},"","",null,"0"]
[{"$f":"Planning!A24","v":"I016"},{"$f":"Planning!B24","v":0},{"$f":"Planning!C24","v":0},{"$f":"Planning!D24","v":0},{"$f":"Planning!E24","v":0},{"$f":"IF(Planning!G24<>0,Planning!G24,\"\")","v":""},{"$f":"Planning!H24","v":0},{"$f":"Planning!R24","v":0},{"$f":"IF(OR(W40=\"1\",AND(W40<>\"1\",G40=Lists!$A$17)),Y40,0)","v":0},null,{"$f":"IF(AND(W40=\"2\",G40<>Lists!$A$17),AA40,Z40)","v":""},"",{"$f":"Planning!S24","v":{"v":0,"d":"0.00"}},{"$f":"'Month 3'!M40+'Month 3'!N40-'Month 3'!O40","v":{"v":0,"d":"0.00"}},null,"","",{"$f":"SUMIFS($J$25:$J$224,$C$25:$C$224,$C40,$G$25:$G$224,Lists!$A$16)","v":0},0,null,"",null,{"$f":"IF(C40=0,\"\",LEFT(INDEX(Lists!$H$5:$H$49,MATCH(C40,Lists!$G$5:$G$49,0),1),1))","v":""},null,{"$f":"'Month 3'!H40+'Month 3'!I40-'Month 3'!J40","v":0},"","",null,"0"]
[{"$f":"Planning!A25","v":"I017"},{"$f":"Planning!B25","v":0},{"$f":"Planning!C25","v":0},{"$f":"Planning!D25","v":0},{"$f":"Planning!E25","v":0},{"$f":"IF(Planning!G25<>0,Planning!G25,\"\")","v":""},{"$f":"Planning!H25","v":0},{"$f":"Planning!R25","v":0},{"$f":"IF(OR(W41=\"1\",AND(W41<>\"1\",G41=Lists!$A$17)),Y41,0)","v":0},null,{"$f":"IF(AND(W41=\"2\",G41<>Lists!$A$17),AA41,Z41)","v":""},"",{"$f":"Planning!S25","v":{"v":0,"d":"0.00"}},{"$f":"'Month 3'!M41+'Month 3'!N41-'Month 3'!O41","v":{"v":0,"d":"0.00"}},null,"","",{"$f":"SUMIFS($J$25:$J$224,$C$25:$C$224,$C41,$G$25:$G$224,Lists!$A$16)","v":0},0,null,"",null,{"$f":"IF(C41=0,\"\",LEFT(INDEX(Lists!$H$5:$H$49,MATCH(C41,Lists!$G$5:$G$49,0),1),1))","v":""},null,{"$f":"'Month 3'!H41+'Month 3'!I41-'Month 3'!J41","v":0},"","",null,"0"]
[{"$f":"Planning!A26","v":"I018"},{"$f":"Planning!B26","v":0},{"$f":"Planning!C26","v":0},{"$f":"Planning!D26","v":0},{"$f":"Planning!E26","v":0},{"$f":"IF(Planning!G26<>0,Planning!G26,\"\")","v":""},{"$f":"Planning!H26","v":0},{"$f":"Planning!R26","v":0},{"$f":"IF(OR(W42=\"1\",AND(W42<>\"1\",G42=Lists!$A$17)),Y42,0)","v":0},null,{"$f":"IF(AND(W42=\"2\",G42<>Lists!$A$17),AA42,Z42)","v":""},"",{"$f":"Planning!S26","v":{"v":0,"d":"0.00"}},{"$f":"'Month 3'!M42+'Month 3'!N42-'Month 3'!O42","v":{"v":0,"d":"0.00"}},null,"","",{"$f":"SUMIFS($J$25:$J$224,$C$25:$C$224,$C42,$G$25:$G$224,Lists!$A$16)","v":0},0,null,"",null,{"$f":"IF(C42=0,\"\",LEFT(INDEX(Lists!$H$5:$H$49,MATCH(C42,Lists!$G$5:$G$49,0),1),1))","v":""},null,{"$f":"'Month 3'!H42+'Month 3'!I42-'Month 3'!J42","v":0},"","",null,"0"]
[{"$f":"Planning!A27","v":"I019"},{"$f":"Planning!B27","v":0},{"$f":"Planning!C27","v":0},{"$f":"Planning!D27","v":0},{"$f":"Planning!E27","v":0},{"$f":"IF(Planning!G27<>0,Planning!G27,\"\")","v":""},{"$f":"Planning!H27","v":0},{"$f":"Planning!R27","v":0},{"$f":"IF(OR(W43=\"1\",AND(W43<>\"1\",G43=Lists!$A$17)),Y43,0)","v":0},null,{"$f":"IF(AND(W43=\"2\",G43<>Lists!$A$17),AA43,Z43)","v":""},"",{"$f":"Planning!S27","v":{"v":0,"d":"0.00"}},{"$f":"'Month 3'!M43+'Month 3'!N43-'Month 3'!O43","v":{"v":0,"d":"0.00"}},null,"","",{"$f":"SUMIFS($J$25:$J$224,$C$25:$C$224,$C43,$G$25:$G$224,Lists!$A$16)","v":0},0,null,"",null,{"$f":"IF(C43=0,\"\",LEFT(INDEX(Lists!$H$5:$H$49,MATCH(C43,Lists!$G$5:$G$49,0),1),1))","v":""},null,{"$f":"'Month 3'!H43+'Month 3'!I43-'Month 3'!J43","v":0},"","",null,"0"]
[{"$f":"Planning!A28","v":"I020"},{"$f":"Planning!B28","v":0},{"$f":"Planning!C28","v":0},{"$f":"Planning!D28","v":0},{"$f":"Planning!E28","v":0},{"$f":"IF(Planning!G28<>0,Planning!G28,\"\")","v":""},{"$f":"Planning!H28","v":0},{"$f":"Planning!R28","v":0},{"$f":"IF(OR(W44=\"1\",AND(W44<>\"1\",G44=Lists!$A$17)),Y44,0)","v":0},null,{"$f":"IF(AND(W44=\"2\",G44<>Lists!$A$17),AA44,Z44)","v":""},"",{"$f":"Planning!S28","v":{"v":0,"d":"0.00"}},{"$f":"'Month 3'!M44+'Month 3'!N44-'Month 3'!O44","v":{"v":0,"d":"0.00"}},null,"","",{"$f":"SUMIFS($J$25:$J$224,$C$25:$C$224,$C44,$G$25:$G$224,Lists!$A$16)","v":0},0,null,"",null,{"$f":"IF(C44=0,\"\",LEFT(INDEX(Lists!$H$5:$H$49,MATCH(C44,Lists!$G$5:$G$49,0),1),1))","v":""},null,{"$f":"'Month 3'!H44+'Month 3'!I44-'Month 3'!J44","v":0},"","",null,"0"]
[{"$f":"Planning!A29","v":"I021"},{"$f":"Planning!B29","v":0},{"$f":"Planning!C29","v":0},{"$f":"Planning!D29","v":0},{"$f":"Planning!E29","v":0},{"$f":"IF(Planning!G29<>0,Planning!G29,\"\")","v":""},{"$f":"Planning!H29","v":0},{"$f":"Planning!R29","v":0},{"$f":"IF(OR(W45=\"1\",AND(W45<>\"1\",G45=Lists!$A$17)),Y45,0)","v":0},null,{"$f":"IF(AND(W45=\"2\",G45<>Lists!$A$17),AA45,Z45)","v":""},"",{"$f":"Planning!S29","v":{"v":0,"d":"0.00"}},{"$f":"'Month 3'!M45+'Month 3'!N45-'Month 3'!O45","v":{"v":0,"d":"0.00"}},null,"","",{"$f":"SUMIFS($J$25:$J$224,$C$25:$C$224,$C45,$G$25:$G$224,Lists!$A$16)","v":0},0,null,"",null,{"$f":"IF(C45=0,\"\",LEFT(INDEX(Lists!$H$5:$H$49,MATCH(C45,Lists!$G$5:$G$49,0),1),1))","v":""},null,{"$f":"'Month 3'!H45+'Month 3'!I45-'Month 3'!J45","v":0},"","",null,"0"]
[{"$f":"Planning!A30","v":"I022"},{"$f":"Planning!B30","v":0},{"$f":"Planning!C30","v":0},{"$f":"Planning!D30","v":0},{"$f":"Planning!E30","v":0},{"$f":"IF(Planning!G30<>0,Planning!G30,\"\")","v":""},{"$f":"Planning!H30","v":0},{"$f":"Planning!R30","v":0},{"$f":"IF(OR(W46=\"1\",AND(W46<>\"1\",G46=Lists!$A$17)),Y46,0)","v":0},null,{"$f":"IF(AND(W46=\"2\",G46<>Lists!$A$17),AA46,Z46)","v":""},"",{"$f":"Planning!S30","v":{"v":0,"d":"0.00"}},{"$f":"'Month 3'!M46+'Month 3'!N46-'Month 3'!O46","v":{"v":0,"d":"0.00"}},null,"","",{"$f":"SUMIFS($J$25:$J$224,$C$25:$C$224,$C46,$G$25:$G$224,Lists!$A$16)","v":0},0,null,"",null,{"$f":"IF(C46=0,\"\",LEFT(INDEX(Lists!$H$5:$H$49,MATCH(C46,Lists!$G$5:$G$49,0),1),1))","v":""},null,{"$f":"'Month 3'!H46+'Month 3'!I46-'Month 3'!J46","v":0},"","",null,"0"]
[{"$f":"Planning!A31","v":"I023"},{"$f":"Planning!B31","v":0},{"$f":"Planning!C31","v":0},{"$f":"Planning!D31","v":0},{"$f":"Planning!E31","v":0},{"$f":"IF(Planning!G31<>0,Planning!G31,\"\")","v":""},{"$f":"Planning!H31","v":0},{"$f":"Planning!R31","v":0},{"$f":"IF(OR(W47=\"1\",AND(W47<>\"1\",G47=Lists!$A$17)),Y47,0)","v":0},null,{"$f":"IF(AND(W47=\"2\",G47<>Lists!$A$17),AA47,Z47)","v":""},"",{"$f":"Planning!S31","v":{"v":0,"d":"0.00"}},{"$f":"'Month 3'!M47+'Month 3'!N47-'Month 3'!O47","v":{"v":0,"d":"0.00"}},null,"","",{"$f":"SUMIFS($J$25:$J$224,$C$25:$C$224,$C47,$G$25:$G$224,Lists!$A$16)","v":0},0,null,"",null,{"$f":"IF(C47=0,\"\",LEFT(INDEX(Lists!$H$5:$H$49,MATCH(C47,Lists!$G$5:$G$49,0),1),1))","v":""},null,{"$f":"'Month 3'!H47+'Month 3'!I47-'Month 3'!J47","v":0},"","",null,"0"]
[{"$f":"Planning!A32","v":"I024"},{"$f":"Planning!B32","v":0},{"$f":"Planning!C32","v":0},{"$f":"Planning!D32","v":0},{"$f":"Planning!E32","v":0},{"$f":"IF(Planning!G32<>0,Planning!G32,\"\")","v":""},{"$f":"Planning!H32","v":0},{"$f":"Planning!R32","v":0},{"$f":"IF(OR(W48=\"1\",AND(W48<>\"1\",G48=Lists!$A$17)),Y48,0)","v":0},null,{"$f":"IF(AND(W48=\"2\",G48<>Lists!$A$17),AA48,Z48)","v":""},"",{"$f":"Planning!S32","v":{"v":0,"d":"0.00"}},{"$f":"'Month 3'!M48+'Month 3'!N48-'Month 3'!O48","v":{"v":0,"d":"0.00"}},null,"","",{"$f":"SUMIFS($J$25:$J$224,$C$25:$C$224,$C48,$G$25:$G$224,Lists!$A$16)","v":0},0,null,"",null,{"$f":"IF(C48=0,\"\",LEFT(INDEX(Lists!$H$5:$H$49,MATCH(C48,Lists!$G$5:$G$49,0),1),1))","v":""},null,{"$f":"'Month 3'!H48+'Month 3'!I48-'Month 3'!J48","v":0},"","",null,"0"]
[{"$f":"Planning!A33","v":"I025"},{"$f":"Planning!B33","v":0},{"$f":"Planning!C33","v":0},{"$f":"Planning!D33","v":0},{"$f":"Planning!E33","v":0},{"$f":"IF(Planning!G33<>0,Planning!G33,\"\")","v":""},{"$f":"Planning!H33","v":0},{"$f":"Planning!R33","v":0},{"$f":"IF(OR(W49=\"1\",AND(W49<>\"1\",G49=Lists!$A$17)),Y49,0)","v":0},null,{"$f":"IF(AND(W49=\"2\",G49<>Lists!$A$17),AA49,Z49)","v":""},"",{"$f":"Planning!S33","v":{"v":0,"d":"0.00"}},{"$f":"'Month 3'!M49+'Month 3'!N49-'Month 3'!O49","v":{"v":0,"d":"0.00"}},null,"","",{"$f":"SUMIFS($J$25:$J$224,$C$25:$C$224,$C49,$G$25:$G$224,Lists!$A$16)","v":0},0,null,"",null,{"$f":"IF(C49=0,\"\",LEFT(INDEX(Lists!$H$5:$H$49,MATCH(C49,Lists!$G$5:$G$49,0),1),1))","v":""},null,{"$f":"'Month 3'!H49+'Month 3'!I49-'Month 3'!J49","v":0},"","",null,"0"]
[{"$f":"Planning!A34","v":"I026"},{"$f":"Planning!B34","v":0},{"$f":"Planning!C34","v":0},{"$f":"Planning!D34","v":0},{"$f":"Planning!E34","v":0},{"$f":"IF(Planning!G34<>0,Planning!G34,\"\")","v":""},{"$f":"Planning!H34","v":0},{"$f":"Planning!R34","v":0},{"$f":"IF(OR(W50=\"1\",AND(W50<>\"1\",G50=Lists!$A$17)),Y50,0)","v":0},null,{"$f":"IF(AND(W50=\"2\",G50<>Lists!$A$17),AA50,Z50)","v":""},"",{"$f":"Planning!S34","v":{"v":0,"d":"0.00"}},{"$f":"'Month 3'!M50+'Month 3'!N50-'Month 3'!O50","v":{"v":0,"d":"0.00"}},null,"","",{"$f":"SUMIFS($J$25:$J$224,$C$25:$C$224,$C50,$G$25:$G$224,Lists!$A$16)","v":0},0,null,"",null,{"$f":"IF(C50=0,\"\",LEFT(INDEX(Lists!$H$5:$H$49,MATCH(C50,Lists!$G$5:$G$49,0),1),1))","v":""},null,{"$f":"'Month 3'!H50+'Month 3'!I50-'Month 3'!J50","v":0},"","",null,"0"]
[{"$f":"Planning!A35","v":"I027"},{"$f":"Planning!B35","v":0},{"$f":"Planning!C35","v":0},{"$f":"Planning!D35","v":0},{"$f":"Planning!E35","v":0},{"$f":"IF(Planning!G35<>0,Planning!G35,\"\")","v":""},{"$f":"Planning!H35","v":0},{"$f":"Planning!R35","v":0},{"$f":"IF(OR(W51=\"1\",AND(W51<>\"1\",G51=Lists!$A$17)),Y51,0)","v":0},null,{"$f":"IF(AND(W51=\"2\",G51<>Lists!$A$17),AA51,Z51)","v":""},"",{"$f":"Planning!S35","v":{"v":0,"d":"0.00"}},{"$f":"'Month 3'!M51+'Month 3'!N51-'Month 3'!O51","v":{"v":0,"d":"0.00"}},null,"","",{"$f":"SUMIFS($J$25:$J$224,$C$25:$C$224,$C51,$G$25:$G$224,Lists!$A$16)","v":0},0,null,"",null,{"$f":"IF(C51=0,\"\",LEFT(INDEX(Lists!$H$5:$H$49,MATCH(C51,Lists!$G$5:$G$49,0),1),1))","v":""},null,{"$f":"'Month 3'!H51+'Month 3'!I51-'Month 3'!J51","v":0},"","",null,"0"]
[{"$f":"Planning!A36","v":"I028"},{"$f":"Planning!B36","v":0},{"$f":"Planning!C36","v":0},{"$f":"Planning!D36","v":0},{"$f":"Planning!E36","v":0},{"$f":"IF(Planning!G36<>0,Planning!G36,\"\")","v":""},{"$f":"Planning!H36","v":0},{"$f":"Planning!R36","v":0},{"$f":"IF(OR(W52=\"1\",AND(W52<>\"1\",G52=Lists!$A$17)),Y52,0)","v":0},null,{"$f":"IF(AND(W52=\"2\",G52<>Lists!$A$17),AA52,Z52)","v":""},"",{"$f":"Planning!S36","v":{"v":0,"d":"0.00"}},{"$f":"'Month 3'!M52+'Month 3'!N52-'Month 3'!O52","v":{"v":0,"d":"0.00"}},null,"","",{"$f":"SUMIFS($J$25:$J$224,$C$25:$C$224,$C52,$G$25:$G$224,Lists!$A$16)","v":0},0,null,"",null,{"$f":"IF(C52=0,\"\",LEFT(INDEX(Lists!$H$5:$H$49,MATCH(C52,Lists!$G$5:$G$49,0),1),1))","v":""},null,{"$f":"'Month 3'!H52+'Month 3'!I52-'Month 3'!J52","v":0},"","",null,"0"]
[{"$f":"Planning!A37","v":"I029"},{"$f":"Planning!B37","v":0},{"$f":"Planning!C37","v":0},{"$f":"Planning!D37","v":0},{"$f":"Planning!E37","v":0},{"$f":"IF(Planning!G37<>0,Planning!G37,\"\")","v":""},{"$f":"Planning!H37","v":0},{"$f":"Planning!R37","v":0},{"$f":"IF(OR(W53=\"1\",AND(W53<>\"1\",G53=Lists!$A$17)),Y53,0)","v":0},null,{"$f":"IF(AND(W53=\"2\",G53<>Lists!$A$17),AA53,Z53)","v":""},"",{"$f":"Planning!S37","v":{"v":0,"d":"0.00"}},{"$f":"'Month 3'!M53+'Month 3'!N53-'Month 3'!O53","v":{"v":0,"d":"0.00"}},null,"","",{"$f":"SUMIFS($J$25:$J$224,$C$25:$C$224,$C53,$G$25:$G$224,Lists!$A$16)","v":0},0,null,"",null,{"$f":"IF(C53=0,\"\",LEFT(INDEX(Lists!$H$5:$H$49,MATCH(C53,Lists!$G$5:$G$49,0),1),1))","v":""},null,{"$f":"'Month 3'!H53+'Month 3'!I53-'Month 3'!J53","v":0},"","",null,"0"]
[{"$f":"Planning!A38","v":"I030"},{"$f":"Planning!B38","v":0},{"$f":"Planning!C38","v":0},{"$f":"Planning!D38","v":0},{"$f":"Planning!E38","v":0},{"$f":"IF(Planning!G38<>0,Planning!G38,\"\")","v":""},{"$f":"Planning!H38","v":0},{"$f":"Planning!R38","v":0},{"$f":"IF(OR(W54=\"1\",AND(W54<>\"1\",G54=Lists!$A$17)),Y54,0)","v":0},null,{"$f":"IF(AND(W54=\"2\",G54<>Lists!$A$17),AA54,Z54)","v":""},"",{"$f":"Planning!S38","v":{"v":0,"d":"0.00"}},{"$f":"'Month 3'!M54+'Month 3'!N54-'Month 3'!O54","v":{"v":0,"d":"0.00"}},null,"","",{"$f":"SUMIFS($J$25:$J$224,$C$25:$C$224,$C54,$G$25:$G$224,Lists!$A$16)","v":0},0,null,"",null,{"$f":"IF(C54=0,\"\",LEFT(INDEX(Lists!$H$5:$H$49,MATCH(C54,Lists!$G$5:$G$49,0),1),1))","v":""},null,{"$f":"'Month 3'!H54+'Month 3'!I54-'Month 3'!J54","v":0},"","",null,"0"]
[{"$f":"Planning!A39","v":"I031"},{"$f":"Planning!B39","v":0},{"$f":"Planning!C39","v":0},{"$f":"Planning!D39","v":0},{"$f":"Planning!E39","v":0},{"$f":"IF(Planning!G39<>0,Planning!G39,\"\")","v":""},{"$f":"Planning!H39","v":0},{"$f":"Planning!R39","v":0},{"$f":"IF(OR(W55=\"1\",AND(W55<>\"1\",G55=Lists!$A$17)),Y55,0)","v":0},null,{"$f":"IF(AND(W55=\"2\",G55<>Lists!$A$17),AA55,Z55)","v":""},"",{"$f":"Planning!S39","v":{"v":0,"d":"0.00"}},{"$f":"'Month 3'!M55+'Month 3'!N55-'Month 3'!O55","v":{"v":0,"d":"0.00"}},null,"","",{"$f":"SUMIFS($J$25:$J$224,$C$25:$C$224,$C55,$G$25:$G$224,Lists!$A$16)","v":0},0,null,"",null,{"$f":"IF(C55=0,\"\",LEFT(INDEX(Lists!$H$5:$H$49,MATCH(C55,Lists!$G$5:$G$49,0),1),1))","v":""},null,{"$f":"'Month 3'!H55+'Month 3'!I55-'Month 3'!J55","v":0},"","",null,"0"]
[{"$f":"Planning!A40","v":"I032"},{"$f":"Planning!B40","v":0},{"$f":"Planning!C40","v":0},{"$f":"Planning!D40","v":0},{"$f":"Planning!E40","v":0},{"$f":"IF(Planning!G40<>0,Planning!G40,\"\")","v":""},{"$f":"Planning!H40","v":0},{"$f":"Planning!R40","v":0},{"$f":"IF(OR(W56=\"1\",AND(W56<>\"1\",G56=Lists!$A$17)),Y56,0)","v":0},null,{"$f":"IF(AND(W56=\"2\",G56<>Lists!$A$17),AA56,Z56)","v":""},"",{"$f":"Planning!S40","v":{"v":0,"d":"0.00"}},{"$f":"'Month 3'!M56+'Month 3'!N56-'Month 3'!O56","v":{"v":0,"d":"0.00"}},null,"","",{"$f":"SUMIFS($J$25:$J$224,$C$25:$C$224,$C56,$G$25:$G$224,Lists!$A$16)","v":0},0,null,"",null,{"$f":"IF(C56=0,\"\",LEFT(INDEX(Lists!$H$5:$H$49,MATCH(C56,Lists!$G$5:$G$49,0),1),1))","v":""},null,{"$f":"'Month 3'!H56+'Month 3'!I56-'Month 3'!J56","v":0},"","",null,"0"]
[{"$f":"Planning!A41","v":"I033"},{"$f":"Planning!B41","v":0},{"$f":"Planning!C41","v":0},{"$f":"Planning!D41","v":0},{"$f":"Planning!E41","v":0},{"$f":"IF(Planning!G41<>0,Planning!G41,\"\")","v":""},{"$f":"Planning!H41","v":0},{"$f":"Planning!R41","v":0},{"$f":"IF(OR(W57=\"1\",AND(W57<>\"1\",G57=Lists!$A$17)),Y57,0)","v":0},null,{"$f":"IF(AND(W57=\"2\",G57<>Lists!$A$17),AA57,Z57)","v":""},{"$f":"IF($U57=ExcluirDelPLogro,\"\",IF(AND(H57=0,I57=0,J57=0),\"\",K57))","v":""},{"$f":"Planning!S41","v":{"v":0,"d":"0.00"}},{"$f":"'Month 3'!M57+'Month 3'!N57-'Month 3'!O57","v":{"v":0,"d":"0.00"}},null,"",{"$f":"IF($U57=ExcluirDelPLogro,\"\",IF(AND(M57=0,N57=0,O57=0),\"\",P57))","v":""},{"$f":"SUMIFS($J$25:$J$224,$C$25:$C$224,$C57,$G$25:$G$224,Lists!$A$16)","v":0},0,null,"",null,{"$f":"IF(C57=0,\"\",LEFT(INDEX(Lists!$H$5:$H$49,MATCH(C57,Lists!$G$5:$G$49,0),1),1))","v":""},null,{"$f":"'Month 3'!H57+'Month 3'!I57-'Month 3'!J57","v":0},"",{"$f":"IF(AND(H57=0,I57=0,J57=0),\"\",IF(J57>0,H57/J57,0))","v":""},null,"0"]
[{"$f":"Planning!A42","v":"I034"},{"$f":"Planning!B42","v":0},{"$f":"Planning!C42","v":0},{"$f":"Planning!D42","v":0},{"$f":"Planning!E42","v":0},{"$f":"IF(Planning!G42<>0,Planning!G42,\"\")","v":""},{"$f":"Planning!H42","v":0},{"$f":"Planning!R42","v":0},{"$f":"IF(OR(W58=\"1\",AND(W58<>\"1\",G58=Lists!$A$17)),Y58,0)","v":0},null,{"$f":"IF(AND(W58=\"2\",G58<>Lists!$A$17),AA58,Z58)","v":""},"",{"$f":"Planning!S42","v":{"v":0,"d":"0.00"}},{"$f":"'Month 3'!M58+'Month 3'!N58-'Month 3'!O58","v":{"v":0,"d":"0.00"}},null,"","",{"$f":"SUMIFS($J$25:$J$224,$C$25:$C$224,$C58,$G$25:$G$224,Lists!$A$16)","v":0},0,null,"",null,{"$f":"IF(C58=0,\"\",LEFT(INDEX(Lists!$H$5:$H$49,MATCH(C58,Lists!$G$5:$G$49,0),1),1))","v":""},null,{"$f":"'Month 3'!H58+'Month 3'!I58-'Month 3'!J58","v":0},"","",null,"0"]
[{"$f":"Planning!A43","v":"I035"},{"$f":"Planning!B43","v":0},{"$f":"Planning!C43","v":0},{"$f":"Planning!D43","v":0},{"$f":"Planning!E43","v":0},{"$f":"IF(Planning!G43<>0,Planning!G43,\"\")","v":""},{"$f":"Planning!H43","v":0},{"$f":"Planning!R43","v":0},{"$f":"IF(OR(W59=\"1\",AND(W59<>\"1\",G59=Lists!$A$17)),Y59,0)","v":0},null,{"$f":"IF(AND(W59=\"2\",G59<>Lists!$A$17),AA59,Z59)","v":""},"",{"$f":"Planning!S43","v":{"v":0,"d":"0.00"}},{"$f":"'Month 3'!M59+'Month 3'!N59-'Month 3'!O59","v":{"v":0,"d":"0.00"}},null,"","",{"$f":"SUMIFS($J$25:$J$224,$C$25:$C$224,$C59,$G$25:$G$224,Lists!$A$16)","v":0},0,null,"",null,{"$f":"IF(C59=0,\"\",LEFT(INDEX(Lists!$H$5:$H$49,MATCH(C59,Lists!$G$5:$G$49,0),1),1))","v":""},null,{"$f":"'Month 3'!H59+'Month 3'!I59-'Month 3'!J59","v":0},"","",null,"0"]
[{"$f":"Planning!A44","v":"I036"},{"$f":"Planning!B44","v":0},{"$f":"Planning!C44","v":0},{"$f":"Planning!D44","v":0},{"$f":"Planning!E44","v":0},{"$f":"IF(Planning!G44<>0,Planning!G44,\"\")","v":""},{"$f":"Planning!H44","v":0},{"$f":"Planning!R44","v":0},{"$f":"IF(OR(W60=\"1\",AND(W60<>\"1\",G60=Lists!$A$17)),Y60,0)","v":0},null,{"$f":"IF(AND(W60=\"2\",G60<>Lists!$A$17),AA60,Z60)","v":""},"",{"$f":"Planning!S44","v":{"v":0,"d":"0.00"}},{"$f":"'Month 3'!M60+'Month 3'!N60-'Month 3'!O60","v":{"v":0,"d":"0.00"}},null,"","",{"$f":"SUMIFS($J$25:$J$224,$C$25:$C$224,$C60,$G$25:$G$224,Lists!$A$16)","v":0},0,null,"",null,{"$f":"IF(C60=0,\"\",LEFT(INDEX(Lists!$H$5:$H$49,MATCH(C60,Lists!$G$5:$G$49,0),1),1))","v":""},null,{"$f":"'Month 3'!H60+'Month 3'!I60-'Month 3'!J60","v":0},"","",null,"0"]
[{"$f":"Planning!A45","v":"I037"},{"$f":"Planning!B45","v":0},{"$f":"Planning!C45","v":0},{"$f":"Planning!D45","v":0},{"$f":"Planning!E45","v":0},{"$f":"IF(Planning!G45<>0,Planning!G45,\"\")","v":""},{"$f":"Planning!H45","v":0},{"$f":"Planning!R45","v":0},{"$f":"IF(OR(W61=\"1\",AND(W61<>\"1\",G61=Lists!$A$17)),Y61,0)","v":0},null,{"$f":"IF(AND(W61=\"2\",G61<>Lists!$A$17),AA61,Z61)","v":""},"",{"$f":"Planning!S45","v":{"v":0,"d":"0.00"}},{"$f":"'Month 3'!M61+'Month 3'!N61-'Month 3'!O61","v":{"v":0,"d":"0.00"}},null,"","",{"$f":"SUMIFS($J$25:$J$224,$C$25:$C$224,$C61,$G$25:$G$224,Lists!$A$16)","v":0},0,null,"",null,{"$f":"IF(C61=0,\"\",LEFT(INDEX(Lists!$H$5:$H$49,MATCH(C61,Lists!$G$5:$G$49,0),1),1))","v":""},null,{"$f":"'Month 3'!H61+'Month 3'!I61-'Month 3'!J61","v":0},"","",null,"0"]
[{"$f":"Planning!A46","v":"I038"},{"$f":"Planning!B46","v":0},{"$f":"Planning!C46","v":0},{"$f":"Planning!D46","v":0},{"$f":"Planning!E46","v":0},{"$f":"IF(Planning!G46<>0,Planning!G46,\"\")","v":""},{"$f":"Planning!H46","v":0},{"$f":"Planning!R46","v":0},{"$f":"IF(OR(W62=\"1\",AND(W62<>\"1\",G62=Lists!$A$17)),Y62,0)","v":0},null,{"$f":"IF(AND(W62=\"2\",G62<>Lists!$A$17),AA62,Z62)","v":""},"",{"$f":"Planning!S46","v":{"v":0,"d":"0.00"}},{"$f":"'Month 3'!M62+'Month 3'!N62-'Month 3'!O62","v":{"v":0,"d":"0.00"}},null,"","",{"$f":"SUMIFS($J$25:$J$224,$C$25:$C$224,$C62,$G$25:$G$224,Lists!$A$16)","v":0},0,null,"",null,{"$f":"IF(C62=0,\"\",LEFT(INDEX(Lists!$H$5:$H$49,MATCH(C62,Lists!$G$5:$G$49,0),1),1))","v":""},null,{"$f":"'Month 3'!H62+'Month 3'!I62-'Month 3'!J62","v":0},"","",null,"0"]
[{"$f":"Planning!A47","v":"I039"},{"$f":"Planning!B47","v":0},{"$f":"Planning!C47","v":0},{"$f":"Planning!D47","v":0},{"$f":"Planning!E47","v":0},{"$f":"IF(Planning!G47<>0,Planning!G47,\"\")","v":""},{"$f":"Planning!H47","v":0},{"$f":"Planning!R47","v":0},{"$f":"IF(OR(W63=\"1\",AND(W63<>\"1\",G63=Lists!$A$17)),Y63,0)","v":0},null,{"$f":"IF(AND(W63=\"2\",G63<>Lists!$A$17),AA63,Z63)","v":""},"",{"$f":"Planning!S47","v":{"v":0,"d":"0.00"}},{"$f":"'Month 3'!M63+'Month 3'!N63-'Month 3'!O63","v":{"v":0,"d":"0.00"}},null,"","",{"$f":"SUMIFS($J$25:$J$224,$C$25:$C$224,$C63,$G$25:$G$224,Lists!$A$16)","v":0},0,null,"",null,{"$f":"IF(C63=0,\"\",LEFT(INDEX(Lists!$H$5:$H$49,MATCH(C63,Lists!$G$5:$G$49,0),1),1))","v":""},null,{"$f":"'Month 3'!H63+'Month 3'!I63-'Month 3'!J63","v":0},"","",null,"0"]
[{"$f":"Planning!A48","v":"I040"},{"$f":"Planning!B48","v":0},{"$f":"Planning!C48","v":0},{"$f":"Planning!D48","v":0},{"$f":"Planning!E48","v":0},{"$f":"IF(Planning!G48<>0,Planning!G48,\"\")","v":""},{"$f":"Planning!H48","v":0},{"$f":"Planning!R48","v":0},{"$f":"IF(OR(W64=\"1\",AND(W64<>\"1\",G64=Lists!$A$17)),Y64,0)","v":0},null,{"$f":"IF(AND(W64=\"2\",G64<>Lists!$A$17),AA64,Z64)","v":""},"",{"$f":"Planning!S48","v":{"v":0,"d":"0.00"}},{"$f":"'Month 3'!M64+'Month 3'!N64-'Month 3'!O64","v":{"v":0,"d":"0.00"}},null,"","",{"$f":"SUMIFS($J$25:$J$224,$C$25:$C$224,$C64,$G$25:$G$224,Lists!$A$16)","v":0},0,null,"",null,{"$f":"IF(C64=0,\"\",LEFT(INDEX(Lists!$H$5:$H$49,MATCH(C64,Lists!$G$5:$G$49,0),1),1))","v":""},null,{"$f":"'Month 3'!H64+'Month 3'!I64-'Month 3'!J64","v":0},"","",null,"0"]
[{"$f":"Planning!A49","v":"I041"},{"$f":"Planning!B49","v":0},{"$f":"Planning!C49","v":0},{"$f":"Planning!D49","v":0},{"$f":"Planning!E49","v":0},{"$f":"IF(Planning!G49<>0,Planning!G49,\"\")","v":""},{"$f":"Planning!H49","v":0},{"$f":"Planning!R49","v":0},{"$f":"IF(OR(W65=\"1\",AND(W65<>\"1\",G65=Lists!$A$17)),Y65,0)","v":0},null,{"$f":"IF(AND(W65=\"2\",G65<>Lists!$A$17),AA65,Z65)","v":""},"",{"$f":"Planning!S49","v":{"v":0,"d":"0.00"}},{"$f":"'Month 3'!M65+'Month 3'!N65-'Month 3'!O65","v":{"v":0,"d":"0.00"}},null,"","",{"$f":"SUMIFS($J$25:$J$224,$C$25:$C$224,$C65,$G$25:$G$224,Lists!$A$16)","v":0},0,null,"",null,{"$f":"IF(C65=0,\"\",LEFT(INDEX(Lists!$H$5:$H$49,MATCH(C65,Lists!$G$5:$G$49,0),1),1))","v":""},null,{"$f":"'Month 3'!H65+'Month 3'!I65-'Month 3'!J65","v":0},"","",null,"0"]
[{"$f":"Planning!A50","v":"I042"},{"$f":"Planning!B50","v":0},{"$f":"Planning!C50","v":0},{"$f":"Planning!D50","v":0},{"$f":"Planning!E50","v":0},{"$f":"IF(Planning!G50<>0,Planning!G50,\"\")","v":""},{"$f":"Planning!H50","v":0},{"$f":"Planning!R50","v":0},{"$f":"IF(OR(W66=\"1\",AND(W66<>\"1\",G66=Lists!$A$17)),Y66,0)","v":0},null,{"$f":"IF(AND(W66=\"2\",G66<>Lists!$A$17),AA66,Z66)","v":""},"",{"$f":"Planning!S50","v":{"v":0,"d":"0.00"}},{"$f":"'Month 3'!M66+'Month 3'!N66-'Month 3'!O66","v":{"v":0,"d":"0.00"}},null,"","",{"$f":"SUMIFS($J$25:$J$224,$C$25:$C$224,$C66,$G$25:$G$224,Lists!$A$16)","v":0},0,null,"",null,{"$f":"IF(C66=0,\"\",LEFT(INDEX(Lists!$H$5:$H$49,MATCH(C66,Lists!$G$5:$G$49,0),1),1))","v":""},null,{"$f":"'Month 3'!H66+'Month 3'!I66-'Month 3'!J66","v":0},"","",null,"0"]
[{"$f":"Planning!A51","v":"I043"},{"$f":"Planning!B51","v":0},{"$f":"Planning!C51","v":0},{"$f":"Planning!D51","v":0},{"$f":"Planning!E51","v":0},{"$f":"IF(Planning!G51<>0,Planning!G51,\"\")","v":""},{"$f":"Planning!H51","v":0},{"$f":"Planning!R51","v":0},{"$f":"IF(OR(W67=\"1\",AND(W67<>\"1\",G67=Lists!$A$17)),Y67,0)","v":0},null,{"$f":"IF(AND(W67=\"2\",G67<>Lists!$A$17),AA67,Z67)","v":""},"",{"$f":"Planning!S51","v":{"v":0,"d":"0.00"}},{"$f":"'Month 3'!M67+'Month 3'!N67-'Month 3'!O67","v":{"v":0,"d":"0.00"}},null,"","",{"$f":"SUMIFS($J$25:$J$224,$C$25:$C$224,$C67,$G$25:$G$224,Lists!$A$16)","v":0},0,null,"",null,{"$f":"IF(C67=0,\"\",LEFT(INDEX(Lists!$H$5:$H$49,MATCH(C67,Lists!$G$5:$G$49,0),1),1))","v":""},null,{"$f":"'Month 3'!H67+'Month 3'!I67-'Month 3'!J67","v":0},"","",null,"0"]
[{"$f":"Planning!A52","v":"I044"},{"$f":"Planning!B52","v":0},{"$f":"Planning!C52","v":0},{"$f":"Planning!D52","v":0},{"$f":"Planning!E52","v":0},{"$f":"IF(Planning!G52<>0,Planning!G52,\"\")","v":""},{"$f":"Planning!H52","v":0},{"$f":"Planning!R52","v":0},{"$f":"IF(OR(W68=\"1\",AND(W68<>\"1\",G68=Lists!$A$17)),Y68,0)","v":0},null,{"$f":"IF(AND(W68=\"2\",G68<>Lists!$A$17),AA68,Z68)","v":""},"",{"$f":"Planning!S52","v":{"v":0,"d":"0.00"}},{"$f":"'Month 3'!M68+'Month 3'!N68-'Month 3'!O68","v":{"v":0,"d":"0.00"}},null,"","",{"$f":"SUMIFS($J$25:$J$224,$C$25:$C$224,$C68,$G$25:$G$224,Lists!$A$16)","v":0},0,null,"",null,{"$f":"IF(C68=0,\"\",LEFT(INDEX(Lists!$H$5:$H$49,MATCH(C68,Lists!$G$5:$G$49,0),1),1))","v":""},null,{"$f":"'Month 3'!H68+'Month 3'!I68-'Month 3'!J68","v":0},"","",null,"0"]
[{"$f":"Planning!A53","v":"I045"},{"$f":"Planning!B53","v":0},{"$f":"Planning!C53","v":0},{"$f":"Planning!D53","v":0},{"$f":"Planning!E53","v":0},{"$f":"IF(Planning!G53<>0,Planning!G53,\"\")","v":""},{"$f":"Planning!H53","v":0},{"$f":"Planning!R53","v":0},{"$f":"IF(OR(W69=\"1\",AND(W69<>\"1\",G69=Lists!$A$17)),Y69,0)","v":0},null,{"$f":"IF(AND(W69=\"2\",G69<>Lists!$A$17),AA69,Z69)","v":""},"",{"$f":"Planning!S53","v":{"v":0,"d":"0.00"}},{"$f":"'Month 3'!M69+'Month 3'!N69-'Month 3'!O69","v":{"v":0,"d":"0.00"}},null,"","",{"$f":"SUMIFS($J$25:$J$224,$C$25:$C$224,$C69,$G$25:$G$224,Lists!$A$16)","v":0},0,null,"",null,{"$f":"IF(C69=0,\"\",LEFT(INDEX(Lists!$H$5:$H$49,MATCH(C69,Lists!$G$5:$G$49,0),1),1))","v":""},null,{"$f":"'Month 3'!H69+'Month 3'!I69-'Month 3'!J69","v":0},"","",null,"0"]
[{"$f":"Planning!A54","v":"I046"},{"$f":"Planning!B54","v":0},{"$f":"Planning!C54","v":0},{"$f":"Planning!D54","v":0},{"$f":"Planning!E54","v":0},{"$f":"IF(Planning!G54<>0,Planning!G54,\"\")","v":""},{"$f":"Planning!H54","v":0},{"$f":"Planning!R54","v":0},{"$f":"IF(OR(W70=\"1\",AND(W70<>\"1\",G70=Lists!$A$17)),Y70,0)","v":0},null,{"$f":"IF(AND(W70=\"2\",G70<>Lists!$A$17),AA70,Z70)","v":""},"",{"$f":"Planning!S54","v":{"v":0,"d":"0.00"}},{"$f":"'Month 3'!M70+'Month 3'!N70-'Month 3'!O70","v":{"v":0,"d":"0.00"}},null,"","",{"$f":"SUMIFS($J$25:$J$224,$C$25:$C$224,$C70,$G$25:$G$224,Lists!$A$16)","v":0},0,null,"",null,{"$f":"IF(C70=0,\"\",LEFT(INDEX(Lists!$H$5:$H$49,MATCH(C70,Lists!$G$5:$G$49,0),1),1))","v":""},null,{"$f":"'Month 3'!H70+'Month 3'!I70-'Month 3'!J70","v":0},"","",null,"0"]
[{"$f":"Planning!A55","v":"I047"},{"$f":"Planning!B55","v":0},{"$f":"Planning!C55","v":0},{"$f":"Planning!D55","v":0},{"$f":"Planning!E55","v":0},{"$f":"IF(Planning!G55<>0,Planning!G55,\"\")","v":""},{"$f":"Planning!H55","v":0},{"$f":"Planning!R55","v":0},{"$f":"IF(OR(W71=\"1\",AND(W71<>\"1\",G71=Lists!$A$17)),Y71,0)","v":0},null,{"$f":"IF(AND(W71=\"2\",G71<>Lists!$A$17),AA71,Z71)","v":""},"",{"$f":"Planning!S55","v":{"v":0,"d":"0.00"}},{"$f":"'Month 3'!M71+'Month 3'!N71-'Month 3'!O71","v":{"v":0,"d":"0.00"}},null,"","",{"$f":"SUMIFS($J$25:$J$224,$C$25:$C$224,$C71,$G$25:$G$224,Lists!$A$16)","v":0},0,null,"",null,{"$f":"IF(C71=0,\"\",LEFT(INDEX(Lists!$H$5:$H$49,MATCH(C71,Lists!$G$5:$G$49,0),1),1))","v":""},null,{"$f":"'Month 3'!H71+'Month 3'!I71-'Month 3'!J71","v":0},"","",null,"0"]
[{"$f":"Planning!A56","v":"I048"},{"$f":"Planning!B56","v":0},{"$f":"Planning!C56","v":0},{"$f":"Planning!D56","v":0},{"$f":"Planning!E56","v":0},{"$f":"IF(Planning!G56<>0,Planning!G56,\"\")","v":""},{"$f":"Planning!H56","v":0},{"$f":"Planning!R56","v":0},{"$f":"IF(OR(W72=\"1\",AND(W72<>\"1\",G72=Lists!$A$17)),Y72,0)","v":0},null,{"$f":"IF(AND(W72=\"2\",G72<>Lists!$A$17),AA72,Z72)","v":""},"",{"$f":"Planning!S56","v":{"v":0,"d":"0.00"}},{"$f":"'Month 3'!M72+'Month 3'!N72-'Month 3'!O72","v":{"v":0,"d":"0.00"}},null,"","",{"$f":"SUMIFS($J$25:$J$224,$C$25:$C$224,$C72,$G$25:$G$224,Lists!$A$16)","v":0},0,null,"",null,{"$f":"IF(C72=0,\"\",LEFT(INDEX(Lists!$H$5:$H$49,MATCH(C72,Lists!$G$5:$G$49,0),1),1))","v":""},null,{"$f":"'Month 3'!H72+'Month 3'!I72-'Month 3'!J72","v":0},"","",null,"0"]
[{"$f":"Planning!A57","v":"I049"},{"$f":"Planning!B57","v":0},{"$f":"Planning!C57","v":0},{"$f":"Planning!D57","v":0},{"$f":"Planning!E57","v":0},{"$f":"IF(Planning!G57<>0,Planning!G57,\"\")","v":""},{"$f":"Planning!H57","v":0},{"$f":"Planning!R57","v":0},{"$f":"IF(OR(W73=\"1\",AND(W73<>\"1\",G73=Lists!$A$17)),Y73,0)","v":0},null,{"$f":"IF(AND(W73=\"2\",G73<>Lists!$A$17),AA73,Z73)","v":""},"",{"$f":"Planning!S57","v":{"v":0,"d":"0.00"}},{"$f":"'Month 3'!M73+'Month 3'!N73-'Month 3'!O73","v":{"v":0,"d":"0.00"}},null,"","",{"$f":"SUMIFS($J$25:$J$224,$C$25:$C$224,$C73,$G$25:$G$224,Lists!$A$16)","v":0},0,null,"",null,{"$f":"IF(C73=0,\"\",LEFT(INDEX(Lists!$H$5:$H$49,MATCH(C73,Lists!$G$5:$G$49,0),1),1))","v":""},null,{"$f":"'Month 3'!H73+'Month 3'!I73-'Month 3'!J73","v":0},"","",null,"0"]
[{"$f":"Planning!A58","v":"I050"},{"$f":"Planning!B58","v":0},{"$f":"Planning!C58","v":0},{"$f":"Planning!D58","v":0},{"$f":"Planning!E58","v":0},{"$f":"IF(Planning!G58<>0,Planning!G58,\"\")","v":""},{"$f":"Planning!H58","v":0},{"$f":"Planning!R58","v":0},{"$f":"IF(OR(W74=\"1\",AND(W74<>\"1\",G74=Lists!$A$17)),Y74,0)","v":0},null,{"$f":"IF(AND(W74=\"2\",G74<>Lists!$A$17),AA74,Z74)","v":""},"",{"$f":"Planning!S58","v":{"v":0,"d":"0.00"}},{"$f":"'Month 3'!M74+'Month 3'!N74-'Month 3'!O74","v":{"v":0,"d":"0.00"}},null,"","",{"$f":"SUMIFS($J$25:$J$224,$C$25:$C$224,$C74,$G$25:$G$224,Lists!$A$16)","v":0},0,null,"",null,{"$f":"IF(C74=0,\"\",LEFT(INDEX(Lists!$H$5:$H$49,MATCH(C74,Lists!$G$5:$G$49,0),1),1))","v":""},null,{"$f":"'Month 3'!H74+'Month 3'!I74-'Month 3'!J74","v":0},"","",null,"0"]
[{"$f":"Planning!A59","v":"I051"},{"$f":"Planning!B59","v":0},{"$f":"Planning!C59","v":0},{"$f":"Planning!D59","v":0},{"$f":"Planning!E59","v":0},{"$f":"IF(Planning!G59<>0,Planning!G59,\"\")","v":""},{"$f":"Planning!H59","v":0},{"$f":"Planning!R59","v":0},{"$f":"IF(OR(W75=\"1\",AND(W75<>\"1\",G75=Lists!$A$17)),Y75,0)","v":0},null,{"$f":"IF(AND(W75=\"2\",G75<>Lists!$A$17),AA75,Z75)","v":""},"",{"$f":"Planning!S59","v":{"v":0,"d":"0.00"}},{"$f":"'Month 3'!M75+'Month 3'!N75-'Month 3'!O75","v":{"v":0,"d":"0.00"}},null,"","",{"$f":"SUMIFS($J$25:$J$224,$C$25:$C$224,$C75,$G$25:$G$224,Lists!$A$16)","v":0},0,null,"",null,{"$f":"IF(C75=0,\"\",LEFT(INDEX(Lists!$H$5:$H$49,MATCH(C75,Lists!$G$5:$G$49,0),1),1))","v":""},null,{"$f":"'Month 3'!H75+'Month 3'!I75-'Month 3'!J75","v":0},"","",null,"0"]
[{"$f":"Planning!A60","v":"I052"},{"$f":"Planning!B60","v":0},{"$f":"Planning!C60","v":0},{"$f":"Planning!D60","v":0},{"$f":"Planning!E60","v":0},{"$f":"IF(Planning!G60<>0,Planning!G60,\"\")","v":""},{"$f":"Planning!H60","v":0},{"$f":"Planning!R60","v":0},{"$f":"IF(OR(W76=\"1\",AND(W76<>\"1\",G76=Lists!$A$17)),Y76,0)","v":0},null,{"$f":"IF(AND(W76=\"2\",G76<>Lists!$A$17),AA76,Z76)","v":""},"",{"$f":"Planning!S60","v":{"v":0,"d":"0.00"}},{"$f":"'Month 3'!M76+'Month 3'!N76-'Month 3'!O76","v":{"v":0,"d":"0.00"}},null,"","",{"$f":"SUMIFS($J$25:$J$224,$C$25:$C$224,$C76,$G$25:$G$224,Lists!$A$16)","v":0},0,null,"",null,{"$f":"IF(C76=0,\"\",LEFT(INDEX(Lists!$H$5:$H$49,MATCH(C76,Lists!$G$5:$G$49,0),1),1))","v":""},null,{"$f":"'Month 3'!H76+'Month 3'!I76-'Month 3'!J76","v":0},"","",null,"0"]
[{"$f":"Planning!A61","v":"I053"},{"$f":"Planning!B61","v":0},{"$f":"Planning!C61","v":0},{"$f":"Planning!D61","v":0},{"$f":"Planning!E61","v":0},{"$f":"IF(Planning!G61<>0,Planning!G61,\"\")","v":""},{"$f":"Planning!H61","v":0},{"$f":"Planning!R61","v":0},{"$f":"IF(OR(W77=\"1\",AND(W77<>\"1\",G77=Lists!$A$17)),Y77,0)","v":0},null,{"$f":"IF(AND(W77=\"2\",G77<>Lists!$A$17),AA77,Z77)","v":""},"",{"$f":"Planning!S61","v":{"v":0,"d":"0.00"}},{"$f":"'Month 3'!M77+'Month 3'!N77-'Month 3'!O77","v":{"v":0,"d":"0.00"}},null,"","",{"$f":"SUMIFS($J$25:$J$224,$C$25:$C$224,$C77,$G$25:$G$224,Lists!$A$16)","v":0},0,null,"",null,{"$f":"IF(C77=0,\"\",LEFT(INDEX(Lists!$H$5:$H$49,MATCH(C77,Lists!$G$5:$G$49,0),1),1))","v":""},null,{"$f":"'Month 3'!H77+'Month 3'!I77-'Month 3'!J77","v":0},"","",null,"0"]
[{"$f":"Planning!A62","v":"I054"},{"$f":"Planning!B62","v":0},{"$f":"Planning!C62","v":0},{"$f":"Planning!D62","v":0},{"$f":"Planning!E62","v":0},{"$f":"IF(Planning!G62<>0,Planning!G62,\"\")","v":""},{"$f":"Planning!H62","v":0},{"$f":"Planning!R62","v":0},{"$f":"IF(OR(W78=\"1\",AND(W78<>\"1\",G78=Lists!$A$17)),Y78,0)","v":0},null,{"$f":"IF(AND(W78=\"2\",G78<>Lists!$A$17),AA78,Z78)","v":""},"",{"$f":"Planning!S62","v":{"v":0,"d":"0.00"}},{"$f":"'Month 3'!M78+'Month 3'!N78-'Month 3'!O78","v":{"v":0,"d":"0.00"}},null,"","",{"$f":"SUMIFS($J$25:$J$224,$C$25:$C$224,$C78,$G$25:$G$224,Lists!$A$16)","v":0},0,null,"",null,{"$f":"IF(C78=0,\"\",LEFT(INDEX(Lists!$H$5:$H$49,MATCH(C78,Lists!$G$5:$G$49,0),1),1))","v":""},null,{"$f":"'Month 3'!H78+'Month 3'!I78-'Month 3'!J78","v":0},"","",null,"0"]
[{"$f":"Planning!A63","v":"I055"},{"$f":"Planning!B63","v":0},{"$f":"Planning!C63","v":0},{"$f":"Planning!D63","v":0},{"$f":"Planning!E63","v":0},{"$f":"IF(Planning!G63<>0,Planning!G63,\"\")","v":""},{"$f":"Planning!H63","v":0},{"$f":"Planning!R63","v":0},{"$f":"IF(OR(W79=\"1\",AND(W79<>\"1\",G79=Lists!$A$17)),Y79,0)","v":0},null,{"$f":"IF(AND(W79=\"2\",G79<>Lists!$A$17),AA79,Z79)","v":""},"",{"$f":"Planning!S63","v":{"v":0,"d":"0.00"}},{"$f":"'Month 3'!M79+'Month 3'!N79-'Month 3'!O79","v":{"v":0,"d":"0.00"}},null,"","",{"$f":"SUMIFS($J$25:$J$224,$C$25:$C$224,$C79,$G$25:$G$224,Lists!$A$16)","v":0},0,null,"",null,{"$f":"IF(C79=0,\"\",LEFT(INDEX(Lists!$H$5:$H$49,MATCH(C79,Lists!$G$5:$G$49,0),1),1))","v":""},null,{"$f":"'Month 3'!H79+'Month 3'!I79-'Month 3'!J79","v":0},"","",null,"0"]
[{"$f":"Planning!A64","v":"I056"},{"$f":"Planning!B64","v":0},{"$f":"Planning!C64","v":0},{"$f":"Planning!D64","v":0},{"$f":"Planning!E64","v":0},{"$f":"IF(Planning!G64<>0,Planning!G64,\"\")","v":""},{"$f":"Planning!H64","v":0},{"$f":"Planning!R64","v":0},{"$f":"IF(OR(W80=\"1\",AND(W80<>\"1\",G80=Lists!$A$17)),Y80,0)","v":0},null,{"$f":"IF(AND(W80=\"2\",G80<>Lists!$A$17),AA80,Z80)","v":""},"",{"$f":"Planning!S64","v":{"v":0,"d":"0.00"}},{"$f":"'Month 3'!M80+'Month 3'!N80-'Month 3'!O80","v":{"v":0,"d":"0.00"}},null,"","",{"$f":"SUMIFS($J$25:$J$224,$C$25:$C$224,$C80,$G$25:$G$224,Lists!$A$16)","v":0},0,null,"",null,{"$f":"IF(C80=0,\"\",LEFT(INDEX(Lists!$H$5:$H$49,MATCH(C80,Lists!$G$5:$G$49,0),1),1))","v":""},null,{"$f":"'Month 3'!H80+'Month 3'!I80-'Month 3'!J80","v":0},"","",null,"0"]
[{"$f":"Planning!A65","v":"I057"},{"$f":"Planning!B65","v":0},{"$f":"Planning!C65","v":0},{"$f":"Planning!D65","v":0},{"$f":"Planning!E65","v":0},{"$f":"IF(Planning!G65<>0,Planning!G65,\"\")","v":""},{"$f":"Planning!H65","v":0},{"$f":"Planning!R65","v":0},{"$f":"IF(OR(W81=\"1\",AND(W81<>\"1\",G81=Lists!$A$17)),Y81,0)","v":0},null,{"$f":"IF(AND(W81=\"2\",G81<>Lists!$A$17),AA81,Z81)","v":""},"",{"$f":"Planning!S65","v":{"v":0,"d":"0.00"}},{"$f":"'Month 3'!M81+'Month 3'!N81-'Month 3'!O81","v":{"v":0,"d":"0.00"}},null,"","",{"$f":"SUMIFS($J$25:$J$224,$C$25:$C$224,$C81,$G$25:$G$224,Lists!$A$16)","v":0},0,null,"",null,{"$f":"IF(C81=0,\"\",LEFT(INDEX(Lists!$H$5:$H$49,MATCH(C81,Lists!$G$5:$G$49,0),1),1))","v":""},null,{"$f":"'Month 3'!H81+'Month 3'!I81-'Month 3'!J81","v":0},"","",null,"0"]
[{"$f":"Planning!A66","v":"I058"},{"$f":"Planning!B66","v":0},{"$f":"Planning!C66","v":0},{"$f":"Planning!D66","v":0},{"$f":"Planning!E66","v":0},{"$f":"IF(Planning!G66<>0,Planning!G66,\"\")","v":""},{"$f":"Planning!H66","v":0},{"$f":"Planning!R66","v":0},{"$f":"IF(OR(W82=\"1\",AND(W82<>\"1\",G82=Lists!$A$17)),Y82,0)","v":0},null,{"$f":"IF(AND(W82=\"2\",G82<>Lists!$A$17),AA82,Z82)","v":""},"",{"$f":"Planning!S66","v":{"v":0,"d":"0.00"}},{"$f":"'Month 3'!M82+'Month 3'!N82-'Month 3'!O82","v":{"v":0,"d":"0.00"}},null,"","",{"$f":"SUMIFS($J$25:$J$224,$C$25:$C$224,$C82,$G$25:$G$224,Lists!$A$16)","v":0},0,null,"",null,{"$f":"IF(C82=0,\"\",LEFT(INDEX(Lists!$H$5:$H$49,MATCH(C82,Lists!$G$5:$G$49,0),1),1))","v":""},null,{"$f":"'Month 3'!H82+'Month 3'!I82-'Month 3'!J82","v":0},"","",null,"0"]
[{"$f":"Planning!A67","v":"I059"},{"$f":"Planning!B67","v":0},{"$f":"Planning!C67","v":0},{"$f":"Planning!D67","v":0},{"$f":"Planning!E67","v":0},{"$f":"IF(Planning!G67<>0,Planning!G67,\"\")","v":""},{"$f":"Planning!H67","v":0},{"$f":"Planning!R67","v":0},{"$f":"IF(OR(W83=\"1\",AND(W83<>\"1\",G83=Lists!$A$17)),Y83,0)","v":0},null,{"$f":"IF(AND(W83=\"2\",G83<>Lists!$A$17),AA83,Z83)","v":""},"",{"$f":"Planning!S67","v":{"v":0,"d":"0.00"}},{"$f":"'Month 3'!M83+'Month 3'!N83-'Month 3'!O83","v":{"v":0,"d":"0.00"}},null,"","",{"$f":"SUMIFS($J$25:$J$224,$C$25:$C$224,$C83,$G$25:$G$224,Lists!$A$16)","v":0},0,null,"",null,{"$f":"IF(C83=0,\"\",LEFT(INDEX(Lists!$H$5:$H$49,MATCH(C83,Lists!$G$5:$G$49,0),1),1))","v":""},null,{"$f":"'Month 3'!H83+'Month 3'!I83-'Month 3'!J83","v":0},"","",null,"0"]
[{"$f":"Planning!A68","v":"I060"},{"$f":"Planning!B68","v":0},{"$f":"Planning!C68","v":0},{"$f":"Planning!D68","v":0},{"$f":"Planning!E68","v":0},{"$f":"IF(Planning!G68<>0,Planning!G68,\"\")","v":""},{"$f":"Planning!H68","v":0},{"$f":"Planning!R68","v":0},{"$f":"IF(OR(W84=\"1\",AND(W84<>\"1\",G84=Lists!$A$17)),Y84,0)","v":0},null,{"$f":"IF(AND(W84=\"2\",G84<>Lists!$A$17),AA84,Z84)","v":""},"",{"$f":"Planning!S68","v":{"v":0,"d":"0.00"}},{"$f":"'Month 3'!M84+'Month 3'!N84-'Month 3'!O84","v":{"v":0,"d":"0.00"}},null,"","",{"$f":"SUMIFS($J$25:$J$224,$C$25:$C$224,$C84,$G$25:$G$224,Lists!$A$16)","v":0},0,null,"",null,{"$f":"IF(C84=0,\"\",LEFT(INDEX(Lists!$H$5:$H$49,MATCH(C84,Lists!$G$5:$G$49,0),1),1))","v":""},null,{"$f":"'Month 3'!H84+'Month 3'!I84-'Month 3'!J84","v":0},"","",null,"0"]
[{"$f":"Planning!A69","v":"I061"},{"$f":"Planning!B69","v":0},{"$f":"Planning!C69","v":0},{"$f":"Planning!D69","v":0},{"$f":"Planning!E69","v":0},{"$f":"IF(Planning!G69<>0,Planning!G69,\"\")","v":""},{"$f":"Planning!H69","v":0},{"$f":"Planning!R69","v":0},{"$f":"IF(OR(W85=\"1\",AND(W85<>\"1\",G85=Lists!$A$17)),Y85,0)","v":0},null,{"$f":"IF(AND(W85=\"2\",G85<>Lists!$A$17),AA85,Z85)","v":""},"",{"$f":"Planning!S69","v":{"v":0,"d":"0.00"}},{"$f":"'Month 3'!M85+'Month 3'!N85-'Month 3'!O85","v":{"v":0,"d":"0.00"}},null,"","",{"$f":"SUMIFS($J$25:$J$224,$C$25:$C$224,$C85,$G$25:$G$224,Lists!$A$16)","v":0},0,null,"",null,{"$f":"IF(C85=0,\"\",LEFT(INDEX(Lists!$H$5:$H$49,MATCH(C85,Lists!$G$5:$G$49,0),1),1))","v":""},null,{"$f":"'Month 3'!H85+'Month 3'!I85-'Month 3'!J85","v":0},"","",null,"0"]
[{"$f":"Planning!A70","v":"I062"},{"$f":"Planning!B70","v":0},{"$f":"Planning!C70","v":0},{"$f":"Planning!D70","v":0},{"$f":"Planning!E70","v":0},{"$f":"IF(Planning!G70<>0,Planning!G70,\"\")","v":""},{"$f":"Planning!H70","v":0},{"$f":"Planning!R70","v":0},{"$f":"IF(OR(W86=\"1\",AND(W86<>\"1\",G86=Lists!$A$17)),Y86,0)","v":0},null,{"$f":"IF(AND(W86=\"2\",G86<>Lists!$A$17),AA86,Z86)","v":""},"",{"$f":"Planning!S70","v":{"v":0,"d":"0.00"}},{"$f":"'Month 3'!M86+'Month 3'!N86-'Month 3'!O86","v":{"v":0,"d":"0.00"}},null,"","",{"$f":"SUMIFS($J$25:$J$224,$C$25:$C$224,$C86,$G$25:$G$224,Lists!$A$16)","v":0},0,null,"",null,{"$f":"IF(C86=0,\"\",LEFT(INDEX(Lists!$H$5:$H$49,MATCH(C86,Lists!$G$5:$G$49,0),1),1))","v":""},null,{"$f":"'Month 3'!H86+'Month 3'!I86-'Month 3'!J86","v":0},"","",null,"0"]
[{"$f":"Planning!A71","v":"I063"},{"$f":"Planning!B71","v":0},{"$f":"Planning!C71","v":0},{"$f":"Planning!D71","v":0},{"$f":"Planning!E71","v":0},{"$f":"IF(Planning!G71<>0,Planning!G71,\"\")","v":""},{"$f":"Planning!H71","v":0},{"$f":"Planning!R71","v":0},{"$f":"IF(OR(W87=\"1\",AND(W87<>\"1\",G87=Lists!$A$17)),Y87,0)","v":0},null,{"$f":"IF(AND(W87=\"2\",G87<>Lists!$A$17),AA87,Z87)","v":""},"",{"$f":"Planning!S71","v":{"v":0,"d":"0.00"}},{"$f":"'Month 3'!M87+'Month 3'!N87-'Month 3'!O87","v":{"v":0,"d":"0.00"}},null,"","",{"$f":"SUMIFS($J$25:$J$224,$C$25:$C$224,$C87,$G$25:$G$224,Lists!$A$16)","v":0},0,null,"",null,{"$f":"IF(C87=0,\"\",LEFT(INDEX(Lists!$H$5:$H$49,MATCH(C87,Lists!$G$5:$G$49,0),1),1))","v":""},null,{"$f":"'Month 3'!H87+'Month 3'!I87-'Month 3'!J87","v":0},"","",null,"0"]
[{"$f":"Planning!A72","v":"I064"},{"$f":"Planning!B72","v":0},{"$f":"Planning!C72","v":0},{"$f":"Planning!D72","v":0},{"$f":"Planning!E72","v":0},{"$f":"IF(Planning!G72<>0,Planning!G72,\"\")","v":""},{"$f":"Planning!H72","v":0},{"$f":"Planning!R72","v":0},{"$f":"IF(OR(W88=\"1\",AND(W88<>\"1\",G88=Lists!$A$17)),Y88,0)","v":0},null,{"$f":"IF(AND(W88=\"2\",G88<>Lists!$A$17),AA88,Z88)","v":""},"",{"$f":"Planning!S72","v":{"v":0,"d":"0.00"}},{"$f":"'Month 3'!M88+'Month 3'!N88-'Month 3'!O88","v":{"v":0,"d":"0.00"}},null,"","",{"$f":"SUMIFS($J$25:$J$224,$C$25:$C$224,$C88,$G$25:$G$224,Lists!$A$16)","v":0},0,null,"",null,{"$f":"IF(C88=0,\"\",LEFT(INDEX(Lists!$H$5:$H$49,MATCH(C88,Lists!$G$5:$G$49,0),1),1))","v":""},null,{"$f":"'Month 3'!H88+'Month 3'!I88-'Month 3'!J88","v":0},"","",null,"0"]
[{"$f":"Planning!A73","v":"I065"},{"$f":"Planning!B73","v":0},{"$f":"Planning!C73","v":0},{"$f":"Planning!D73","v":0},{"$f":"Planning!E73","v":0},{"$f":"IF(Planning!G73<>0,Planning!G73,\"\")","v":""},{"$f":"Planning!H73","v":0},{"$f":"Planning!R73","v":0},{"$f":"IF(OR(W89=\"1\",AND(W89<>\"1\",G89=Lists!$A$17)),Y89,0)","v":0},null,{"$f":"IF(AND(W89=\"2\",G89<>Lists!$A$17),AA89,Z89)","v":""},{"$f":"IF($U89=ExcluirDelPLogro,\"\",IF(AND(H89=0,I89=0,J89=0),\"\",K89))","v":""},{"$f":"Planning!S73","v":{"v":0,"d":"0.00"}},{"$f":"'Month 3'!M89+'Month 3'!N89-'Month 3'!O89","v":{"v":0,"d":"0.00"}},null,"",{"$f":"IF($U89=ExcluirDelPLogro,\"\",IF(AND(M89=0,N89=0,O89=0),\"\",P89))","v":""},{"$f":"SUMIFS($J$25:$J$224,$C$25:$C$224,$C89,$G$25:$G$224,Lists!$A$16)","v":0},0,null,"",null,{"$f":"IF(C89=0,\"\",LEFT(INDEX(Lists!$H$5:$H$49,MATCH(C89,Lists!$G$5:$G$49,0),1),1))","v":""},null,{"$f":"'Month 3'!H89+'Month 3'!I89-'Month 3'!J89","v":0},"",{"$f":"IF(AND(H89=0,I89=0,J89=0),\"\",IF(J89>0,H89/J89,0))","v":""},null,"0"]
[{"$f":"Planning!A74","v":"I066"},{"$f":"Planning!B74","v":0},{"$f":"Planning!C74","v":0},{"$f":"Planning!D74","v":0},{"$f":"Planning!E74","v":0},{"$f":"IF(Planning!G74<>0,Planning!G74,\"\")","v":""},{"$f":"Planning!H74","v":0},{"$f":"Planning!R74","v":0},{"$f":"IF(OR(W90=\"1\",AND(W90<>\"1\",G90=Lists!$A$17)),Y90,0)","v":0},null,{"$f":"IF(AND(W90=\"2\",G90<>Lists!$A$17),AA90,Z90)","v":""},"",{"$f":"Planning!S74","v":{"v":0,"d":"0.00"}},{"$f":"'Month 3'!M90+'Month 3'!N90-'Month 3'!O90","v":{"v":0,"d":"0.00"}},null,{"$f":"IF(AND(M90=0,N90=0,O90=0),\"\",IF((M90+N90)>0,O90/(M90+N90),O90))","v":""},"",{"$f":"SUMIFS($J$25:$J$224,$C$25:$C$224,$C90,$G$25:$G$224,Lists!$A$16)","v":0},{"$f":"SUMIFS($O$25:$O$224,$C$25:$C$224,$C90,$G$25:$G$224,\"<>0\")","v":0},null,{"$f":"IF(B90=0,\"\",IF(LEFT(B90,1)=\"1\",\"1\",\"2\"))","v":""},null,{"$f":"IF(C90=0,\"\",LEFT(INDEX(Lists!$H$5:$H$49,MATCH(C90,Lists!$G$5:$G$49,0),1),1))","v":""},null,{"$f":"'Month 3'!H90+'Month 3'!I90-'Month 3'!J90","v":0},{"$f":"IF(AND(H90=0,I90=0,J90=0),\"\",IF((H90+I90)>0,J90/(H90+I90),J90))","v":""},"",null,{"$f":"U90&C90","v":"0"}]
[{"$f":"Planning!A75","v":"I067"},{"$f":"Planning!B75","v":0},{"$f":"Planning!C75","v":0},{"$f":"Planning!D75","v":0},{"$f":"Planning!E75","v":0},{"$f":"IF(Planning!G75<>0,Planning!G75,\"\")","v":""},{"$f":"Planning!H75","v":0},{"$f":"Planning!R75","v":0},{"$f":"IF(OR(W91=\"1\",AND(W91<>\"1\",G91=Lists!$A$17)),Y91,0)","v":0},null,{"$f":"IF(AND(W91=\"2\",G91<>Lists!$A$17),AA91,Z91)","v":""},"",{"$f":"Planning!S75","v":{"v":0,"d":"0.00"}},{"$f":"'Month 3'!M91+'Month 3'!N91-'Month 3'!O91","v":{"v":0,"d":"0.00"}},null,"","",{"$f":"SUMIFS($J$25:$J$224,$C$25:$C$224,$C91,$G$25:$G$224,Lists!$A$16)","v":0},0,null,"",null,{"$f":"IF(C91=0,\"\",LEFT(INDEX(Lists!$H$5:$H$49,MATCH(C91,Lists!$G$5:$G$49,0),1),1))","v":""},null,{"$f":"'Month 3'!H91+'Month 3'!I91-'Month 3'!J91","v":0},"","",null,"0"]
[{"$f":"Planning!A76","v":"I068"},{"$f":"Planning!B76","v":0},{"$f":"Planning!C76","v":0},{"$f":"Planning!D76","v":0},{"$f":"Planning!E76","v":0},{"$f":"IF(Planning!G76<>0,Planning!G76,\"\")","v":""},{"$f":"Planning!H76","v":0},{"$f":"Planning!R76","v":0},{"$f":"IF(OR(W92=\"1\",AND(W92<>\"1\",G92=Lists!$A$17)),Y92,0)","v":0},null,{"$f":"IF(AND(W92=\"2\",G92<>Lists!$A$17),AA92,Z92)","v":""},"",{"$f":"Planning!S76","v":{"v":0,"d":"0.00"}},{"$f":"'Month 3'!M92+'Month 3'!N92-'Month 3'!O92","v":{"v":0,"d":"0.00"}},null,"","",{"$f":"SUMIFS($J$25:$J$224,$C$25:$C$224,$C92,$G$25:$G$224,Lists!$A$16)","v":0},0,null,"",null,{"$f":"IF(C92=0,\"\",LEFT(INDEX(Lists!$H$5:$H$49,MATCH(C92,Lists!$G$5:$G$49,0),1),1))","v":""},null,{"$f":"'Month 3'!H92+'Month 3'!I92-'Month 3'!J92","v":0},"","",null,"0"]
[{"$f":"Planning!A77","v":"I069"},{"$f":"Planning!B77","v":0},{"$f":"Planning!C77","v":0},{"$f":"Planning!D77","v":0},{"$f":"Planning!E77","v":0},{"$f":"IF(Planning!G77<>0,Planning!G77,\"\")","v":""},{"$f":"Planning!H77","v":0},{"$f":"Planning!R77","v":0},{"$f":"IF(OR(W93=\"1\",AND(W93<>\"1\",G93=Lists!$A$17)),Y93,0)","v":0},null,{"$f":"IF(AND(W93=\"2\",G93<>Lists!$A$17),AA93,Z93)","v":""},"",{"$f":"Planning!S77","v":{"v":0,"d":"0.00"}},{"$f":"'Month 3'!M93+'Month 3'!N93-'Month 3'!O93","v":{"v":0,"d":"0.00"}},null,"","",{"$f":"SUMIFS($J$25:$J$224,$C$25:$C$224,$C93,$G$25:$G$224,Lists!$A$16)","v":0},0,null,"",null,{"$f":"IF(C93=0,\"\",LEFT(INDEX(Lists!$H$5:$H$49,MATCH(C93,Lists!$G$5:$G$49,0),1),1))","v":""},null,{"$f":"'Month 3'!H93+'Month 3'!I93-'Month 3'!J93","v":0},"","",null,"0"]
[{"$f":"Planning!A78","v":"I070"},{"$f":"Planning!B78","v":0},{"$f":"Planning!C78","v":0},{"$f":"Planning!D78","v":0},{"$f":"Planning!E78","v":0},{"$f":"IF(Planning!G78<>0,Planning!G78,\"\")","v":""},{"$f":"Planning!H78","v":0},{"$f":"Planning!R78","v":0},{"$f":"IF(OR(W94=\"1\",AND(W94<>\"1\",G94=Lists!$A$17)),Y94,0)","v":0},null,{"$f":"IF(AND(W94=\"2\",G94<>Lists!$A$17),AA94,Z94)","v":""},"",{"$f":"Planning!S78","v":{"v":0,"d":"0.00"}},{"$f":"'Month 3'!M94+'Month 3'!N94-'Month 3'!O94","v":{"v":0,"d":"0.00"}},null,"","",{"$f":"SUMIFS($J$25:$J$224,$C$25:$C$224,$C94,$G$25:$G$224,Lists!$A$16)","v":0},0,null,"",null,{"$f":"IF(C94=0,\"\",LEFT(INDEX(Lists!$H$5:$H$49,MATCH(C94,Lists!$G$5:$G$49,0),1),1))","v":""},null,{"$f":"'Month 3'!H94+'Month 3'!I94-'Month 3'!J94","v":0},"","",null,"0"]
[{"$f":"Planning!A79","v":"I071"},{"$f":"Planning!B79","v":0},{"$f":"Planning!C79","v":0},{"$f":"Planning!D79","v":0},{"$f":"Planning!E79","v":0},{"$f":"IF(Planning!G79<>0,Planning!G79,\"\")","v":""},{"$f":"Planning!H79","v":0},{"$f":"Planning!R79","v":0},{"$f":"IF(OR(W95=\"1\",AND(W95<>\"1\",G95=Lists!$A$17)),Y95,0)","v":0},null,{"$f":"IF(AND(W95=\"2\",G95<>Lists!$A$17),AA95,Z95)","v":""},"",{"$f":"Planning!S79","v":{"v":0,"d":"0.00"}},{"$f":"'Month 3'!M95+'Month 3'!N95-'Month 3'!O95","v":{"v":0,"d":"0.00"}},null,"","",{"$f":"SUMIFS($J$25:$J$224,$C$25:$C$224,$C95,$G$25:$G$224,Lists!$A$16)","v":0},0,null,"",null,{"$f":"IF(C95=0,\"\",LEFT(INDEX(Lists!$H$5:$H$49,MATCH(C95,Lists!$G$5:$G$49,0),1),1))","v":""},null,{"$f":"'Month 3'!H95+'Month 3'!I95-'Month 3'!J95","v":0},"","",null,"0"]
[{"$f":"Planning!A80","v":"I072"},{"$f":"Planning!B80","v":0},{"$f":"Planning!C80","v":0},{"$f":"Planning!D80","v":0},{"$f":"Planning!E80","v":0},{"$f":"IF(Planning!G80<>0,Planning!G80,\"\")","v":""},{"$f":"Planning!H80","v":0},{"$f":"Planning!R80","v":0},{"$f":"IF(OR(W96=\"1\",AND(W96<>\"1\",G96=Lists!$A$17)),Y96,0)","v":0},null,{"$f":"IF(AND(W96=\"2\",G96<>Lists!$A$17),AA96,Z96)","v":""},"",{"$f":"Planning!S80","v":{"v":0,"d":"0.00"}},{"$f":"'Month 3'!M96+'Month 3'!N96-'Month 3'!O96","v":{"v":0,"d":"0.00"}},null,"","",{"$f":"SUMIFS($J$25:$J$224,$C$25:$C$224,$C96,$G$25:$G$224,Lists!$A$16)","v":0},0,null,"",null,{"$f":"IF(C96=0,\"\",LEFT(INDEX(Lists!$H$5:$H$49,MATCH(C96,Lists!$G$5:$G$49,0),1),1))","v":""},null,{"$f":"'Month 3'!H96+'Month 3'!I96-'Month 3'!J96","v":0},"","",null,"0"]
[{"$f":"Planning!A81","v":"I073"},{"$f":"Planning!B81","v":0},{"$f":"Planning!C81","v":0},{"$f":"Planning!D81","v":0},{"$f":"Planning!E81","v":0},{"$f":"IF(Planning!G81<>0,Planning!G81,\"\")","v":""},{"$f":"Planning!H81","v":0},{"$f":"Planning!R81","v":0},{"$f":"IF(OR(W97=\"1\",AND(W97<>\"1\",G97=Lists!$A$17)),Y97,0)","v":0},null,{"$f":"IF(AND(W97=\"2\",G97<>Lists!$A$17),AA97,Z97)","v":""},"",{"$f":"Planning!S81","v":{"v":0,"d":"0.00"}},{"$f":"'Month 3'!M97+'Month 3'!N97-'Month 3'!O97","v":{"v":0,"d":"0.00"}},null,"","",{"$f":"SUMIFS($J$25:$J$224,$C$25:$C$224,$C97,$G$25:$G$224,Lists!$A$16)","v":0},0,null,"",null,{"$f":"IF(C97=0,\"\",LEFT(INDEX(Lists!$H$5:$H$49,MATCH(C97,Lists!$G$5:$G$49,0),1),1))","v":""},null,{"$f":"'Month 3'!H97+'Month 3'!I97-'Month 3'!J97","v":0},"","",null,"0"]
[{"$f":"Planning!A82","v":"I074"},{"$f":"Planning!B82","v":0},{"$f":"Planning!C82","v":0},{"$f":"Planning!D82","v":0},{"$f":"Planning!E82","v":0},{"$f":"IF(Planning!G82<>0,Planning!G82,\"\")","v":""},{"$f":"Planning!H82","v":0},{"$f":"Planning!R82","v":0},{"$f":"IF(OR(W98=\"1\",AND(W98<>\"1\",G98=Lists!$A$17)),Y98,0)","v":0},null,{"$f":"IF(AND(W98=\"2\",G98<>Lists!$A$17),AA98,Z98)","v":""},"",{"$f":"Planning!S82","v":{"v":0,"d":"0.00"}},{"$f":"'Month 3'!M98+'Month 3'!N98-'Month 3'!O98","v":{"v":0,"d":"0.00"}},null,"","",{"$f":"SUMIFS($J$25:$J$224,$C$25:$C$224,$C98,$G$25:$G$224,Lists!$A$16)","v":0},0,null,"",null,{"$f":"IF(C98=0,\"\",LEFT(INDEX(Lists!$H$5:$H$49,MATCH(C98,Lists!$G$5:$G$49,0),1),1))","v":""},null,{"$f":"'Month 3'!H98+'Month 3'!I98-'Month 3'!J98","v":0},"","",null,"0"]
[{"$f":"Planning!A83","v":"I075"},{"$f":"Planning!B83","v":0},{"$f":"Planning!C83","v":0},{"$f":"Planning!D83","v":0},{"$f":"Planning!E83","v":0},{"$f":"IF(Planning!G83<>0,Planning!G83,\"\")","v":""},{"$f":"Planning!H83","v":0},{"$f":"Planning!R83","v":0},{"$f":"IF(OR(W99=\"1\",AND(W99<>\"1\",G99=Lists!$A$17)),Y99,0)","v":0},null,{"$f":"IF(AND(W99=\"2\",G99<>Lists!$A$17),AA99,Z99)","v":""},"",{"$f":"Planning!S83","v":{"v":0,"d":"0.00"}},{"$f":"'Month 3'!M99+'Month 3'!N99-'Month 3'!O99","v":{"v":0,"d":"0.00"}},null,"","",{"$f":"SUMIFS($J$25:$J$224,$C$25:$C$224,$C99,$G$25:$G$224,Lists!$A$16)","v":0},0,null,"",null,{"$f":"IF(C99=0,\"\",LEFT(INDEX(Lists!$H$5:$H$49,MATCH(C99,Lists!$G$5:$G$49,0),1),1))","v":""},null,{"$f":"'Month 3'!H99+'Month 3'!I99-'Month 3'!J99","v":0},"","",null,"0"]
[{"$f":"Planning!A84","v":"I076"},{"$f":"Planning!B84","v":0},{"$f":"Planning!C84","v":0},{"$f":"Planning!D84","v":0},{"$f":"Planning!E84","v":0},{"$f":"IF(Planning!G84<>0,Planning!G84,\"\")","v":""},{"$f":"Planning!H84","v":0},{"$f":"Planning!R84","v":0},{"$f":"IF(OR(W100=\"1\",AND(W100<>\"1\",G100=Lists!$A$17)),Y100,0)","v":0},null,{"$f":"IF(AND(W100=\"2\",G100<>Lists!$A$17),AA100,Z100)","v":""},"",{"$f":"Planning!S84","v":{"v":0,"d":"0.00"}},{"$f":"'Month 3'!M100+'Month 3'!N100-'Month 3'!O100","v":{"v":0,"d":"0.00"}},null,"","",{"$f":"SUMIFS($J$25:$J$224,$C$25:$C$224,$C100,$G$25:$G$224,Lists!$A$16)","v":0},0,null,"",null,{"$f":"IF(C100=0,\"\",LEFT(INDEX(Lists!$H$5:$H$49,MATCH(C100,Lists!$G$5:$G$49,0),1),1))","v":""},null,{"$f":"'Month 3'!H100+'Month 3'!I100-'Month 3'!J100","v":0},"","",null,"0"]
[{"$f":"Planning!A85","v":"I077"},{"$f":"Planning!B85","v":0},{"$f":"Planning!C85","v":0},{"$f":"Planning!D85","v":0},{"$f":"Planning!E85","v":0},{"$f":"IF(Planning!G85<>0,Planning!G85,\"\")","v":""},{"$f":"Planning!H85","v":0},{"$f":"Planning!R85","v":0},{"$f":"IF(OR(W101=\"1\",AND(W101<>\"1\",G101=Lists!$A$17)),Y101,0)","v":0},null,{"$f":"IF(AND(W101=\"2\",G101<>Lists!$A$17),AA101,Z101)","v":""},"",{"$f":"Planning!S85","v":{"v":0,"d":"0.00"}},{"$f":"'Month 3'!M101+'Month 3'!N101-'Month 3'!O101","v":{"v":0,"d":"0.00"}},null,"","",{"$f":"SUMIFS($J$25:$J$224,$C$25:$C$224,$C101,$G$25:$G$224,Lists!$A$16)","v":0},0,null,"",null,{"$f":"IF(C101=0,\"\",LEFT(INDEX(Lists!$H$5:$H$49,MATCH(C101,Lists!$G$5:$G$49,0),1),1))","v":""},null,{"$f":"'Month 3'!H101+'Month 3'!I101-'Month 3'!J101","v":0},"","",null,"0"]
[{"$f":"Planning!A86","v":"I078"},{"$f":"Planning!B86","v":0},{"$f":"Planning!C86","v":0},{"$f":"Planning!D86","v":0},{"$f":"Planning!E86","v":0},{"$f":"IF(Planning!G86<>0,Planning!G86,\"\")","v":""},{"$f":"Planning!H86","v":0},{"$f":"Planning!R86","v":0},{"$f":"IF(OR(W102=\"1\",AND(W102<>\"1\",G102=Lists!$A$17)),Y102,0)","v":0},null,{"$f":"IF(AND(W102=\"2\",G102<>Lists!$A$17),AA102,Z102)","v":""},"",{"$f":"Planning!S86","v":{"v":0,"d":"0.00"}},{"$f":"'Month 3'!M102+'Month 3'!N102-'Month 3'!O102","v":{"v":0,"d":"0.00"}},null,"","",{"$f":"SUMIFS($J$25:$J$224,$C$25:$C$224,$C102,$G$25:$G$224,Lists!$A$16)","v":0},0,null,"",null,{"$f":"IF(C102=0,\"\",LEFT(INDEX(Lists!$H$5:$H$49,MATCH(C102,Lists!$G$5:$G$49,0),1),1))","v":""},null,{"$f":"'Month 3'!H102+'Month 3'!I102-'Month 3'!J102","v":0},"","",null,"0"]
[{"$f":"Planning!A87","v":"I079"},{"$f":"Planning!B87","v":0},{"$f":"Planning!C87","v":0},{"$f":"Planning!D87","v":0},{"$f":"Planning!E87","v":0},{"$f":"IF(Planning!G87<>0,Planning!G87,\"\")","v":""},{"$f":"Planning!H87","v":0},{"$f":"Planning!R87","v":0},{"$f":"IF(OR(W103=\"1\",AND(W103<>\"1\",G103=Lists!$A$17)),Y103,0)","v":0},null,{"$f":"IF(AND(W103=\"2\",G103<>Lists!$A$17),AA103,Z103)","v":""},"",{"$f":"Planning!S87","v":{"v":0,"d":"0.00"}},{"$f":"'Month 3'!M103+'Month 3'!N103-'Month 3'!O103","v":{"v":0,"d":"0.00"}},null,"","",{"$f":"SUMIFS($J$25:$J$224,$C$25:$C$224,$C103,$G$25:$G$224,Lists!$A$16)","v":0},0,null,"",null,{"$f":"IF(C103=0,\"\",LEFT(INDEX(Lists!$H$5:$H$49,MATCH(C103,Lists!$G$5:$G$49,0),1),1))","v":""},null,{"$f":"'Month 3'!H103+'Month 3'!I103-'Month 3'!J103","v":0},"","",null,"0"]
[{"$f":"Planning!A88","v":"I080"},{"$f":"Planning!B88","v":0},{"$f":"Planning!C88","v":0},{"$f":"Planning!D88","v":0},{"$f":"Planning!E88","v":0},{"$f":"IF(Planning!G88<>0,Planning!G88,\"\")","v":""},{"$f":"Planning!H88","v":0},{"$f":"Planning!R88","v":0},{"$f":"IF(OR(W104=\"1\",AND(W104<>\"1\",G104=Lists!$A$17)),Y104,0)","v":0},null,{"$f":"IF(AND(W104=\"2\",G104<>Lists!$A$17),AA104,Z104)","v":""},"",{"$f":"Planning!S88","v":{"v":0,"d":"0.00"}},{"$f":"'Month 3'!M104+'Month 3'!N104-'Month 3'!O104","v":{"v":0,"d":"0.00"}},null,"","",{"$f":"SUMIFS($J$25:$J$224,$C$25:$C$224,$C104,$G$25:$G$224,Lists!$A$16)","v":0},0,null,"",null,{"$f":"IF(C104=0,\"\",LEFT(INDEX(Lists!$H$5:$H$49,MATCH(C104,Lists!$G$5:$G$49,0),1),1))","v":""},null,{"$f":"'Month 3'!H104+'Month 3'!I104-'Month 3'!J104","v":0},"","",null,"0"]
[{"$f":"Planning!A89","v":"I081"},{"$f":"Planning!B89","v":0},{"$f":"Planning!C89","v":0},{"$f":"Planning!D89","v":0},{"$f":"Planning!E89","v":0},{"$f":"IF(Planning!G89<>0,Planning!G89,\"\")","v":""},{"$f":"Planning!H89","v":0},{"$f":"Planning!R89","v":0},{"$f":"IF(OR(W105=\"1\",AND(W105<>\"1\",G105=Lists!$A$17)),Y105,0)","v":0},null,{"$f":"IF(AND(W105=\"2\",G105<>Lists!$A$17),AA105,Z105)","v":""},"",{"$f":"Planning!S89","v":{"v":0,"d":"0.00"}},{"$f":"'Month 3'!M105+'Month 3'!N105-'Month 3'!O105","v":{"v":0,"d":"0.00"}},null,"","",{"$f":"SUMIFS($J$25:$J$224,$C$25:$C$224,$C105,$G$25:$G$224,Lists!$A$16)","v":0},0,null,"",null,{"$f":"IF(C105=0,\"\",LEFT(INDEX(Lists!$H$5:$H$49,MATCH(C105,Lists!$G$5:$G$49,0),1),1))","v":""},null,{"$f":"'Month 3'!H105+'Month 3'!I105-'Month 3'!J105","v":0},"","",null,"0"]
[{"$f":"Planning!A90","v":"I082"},{"$f":"Planning!B90","v":0},{"$f":"Planning!C90","v":0},{"$f":"Planning!D90","v":0},{"$f":"Planning!E90","v":0},{"$f":"IF(Planning!G90<>0,Planning!G90,\"\")","v":""},{"$f":"Planning!H90","v":0},{"$f":"Planning!R90","v":0},{"$f":"IF(OR(W106=\"1\",AND(W106<>\"1\",G106=Lists!$A$17)),Y106,0)","v":0},null,{"$f":"IF(AND(W106=\"2\",G106<>Lists!$A$17),AA106,Z106)","v":""},"",{"$f":"Planning!S90","v":{"v":0,"d":"0.00"}},{"$f":"'Month 3'!M106+'Month 3'!N106-'Month 3'!O106","v":{"v":0,"d":"0.00"}},null,"","",{"$f":"SUMIFS($J$25:$J$224,$C$25:$C$224,$C106,$G$25:$G$224,Lists!$A$16)","v":0},0,null,"",null,{"$f":"IF(C106=0,\"\",LEFT(INDEX(Lists!$H$5:$H$49,MATCH(C106,Lists!$G$5:$G$49,0),1),1))","v":""},null,{"$f":"'Month 3'!H106+'Month 3'!I106-'Month 3'!J106","v":0},"","",null,"0"]
[{"$f":"Planning!A91","v":"I083"},{"$f":"Planning!B91","v":0},{"$f":"Planning!C91","v":0},{"$f":"Planning!D91","v":0},{"$f":"Planning!E91","v":0},{"$f":"IF(Planning!G91<>0,Planning!G91,\"\")","v":""},{"$f":"Planning!H91","v":0},{"$f":"Planning!R91","v":0},{"$f":"IF(OR(W107=\"1\",AND(W107<>\"1\",G107=Lists!$A$17)),Y107,0)","v":0},null,{"$f":"IF(AND(W107=\"2\",G107<>Lists!$A$17),AA107,Z107)","v":""},"",{"$f":"Planning!S91","v":{"v":0,"d":"0.00"}},{"$f":"'Month 3'!M107+'Month 3'!N107-'Month 3'!O107","v":{"v":0,"d":"0.00"}},null,"","",{"$f":"SUMIFS($J$25:$J$224,$C$25:$C$224,$C107,$G$25:$G$224,Lists!$A$16)","v":0},0,null,"",null,{"$f":"IF(C107=0,\"\",LEFT(INDEX(Lists!$H$5:$H$49,MATCH(C107,Lists!$G$5:$G$49,0),1),1))","v":""},null,{"$f":"'Month 3'!H107+'Month 3'!I107-'Month 3'!J107","v":0},"","",null,"0"]
[{"$f":"Planning!A92","v":"I084"},{"$f":"Planning!B92","v":0},{"$f":"Planning!C92","v":0},{"$f":"Planning!D92","v":0},{"$f":"Planning!E92","v":0},{"$f":"IF(Planning!G92<>0,Planning!G92,\"\")","v":""},{"$f":"Planning!H92","v":0},{"$f":"Planning!R92","v":0},{"$f":"IF(OR(W108=\"1\",AND(W108<>\"1\",G108=Lists!$A$17)),Y108,0)","v":0},null,{"$f":"IF(AND(W108=\"2\",G108<>Lists!$A$17),AA108,Z108)","v":""},"",{"$f":"Planning!S92","v":{"v":0,"d":"0.00"}},{"$f":"'Month 3'!M108+'Month 3'!N108-'Month 3'!O108","v":{"v":0,"d":"0.00"}},null,"","",{"$f":"SUMIFS($J$25:$J$224,$C$25:$C$224,$C108,$G$25:$G$224,Lists!$A$16)","v":0},0,null,"",null,{"$f":"IF(C108=0,\"\",LEFT(INDEX(Lists!$H$5:$H$49,MATCH(C108,Lists!$G$5:$G$49,0),1),1))","v":""},null,{"$f":"'Month 3'!H108+'Month 3'!I108-'Month 3'!J108","v":0},"","",null,"0"]
[{"$f":"Planning!A93","v":"I085"},{"$f":"Planning!B93","v":0},{"$f":"Planning!C93","v":0},{"$f":"Planning!D93","v":0},{"$f":"Planning!E93","v":0},{"$f":"IF(Planning!G93<>0,Planning!G93,\"\")","v":""},{"$f":"Planning!H93","v":0},{"$f":"Planning!R93","v":0},{"$f":"IF(OR(W109=\"1\",AND(W109<>\"1\",G109=Lists!$A$17)),Y109,0)","v":0},null,{"$f":"IF(AND(W109=\"2\",G109<>Lists!$A$17),AA109,Z109)","v":""},"",{"$f":"Planning!S93","v":{"v":0,"d":"0.00"}},{"$f":"'Month 3'!M109+'Month 3'!N109-'Month 3'!O109","v":{"v":0,"d":"0.00"}},null,"","",{"$f":"SUMIFS($J$25:$J$224,$C$25:$C$224,$C109,$G$25:$G$224,Lists!$A$16)","v":0},0,null,"",null,{"$f":"IF(C109=0,\"\",LEFT(INDEX(Lists!$H$5:$H$49,MATCH(C109,Lists!$G$5:$G$49,0),1),1))","v":""},null,{"$f":"'Month 3'!H109+'Month 3'!I109-'Month 3'!J109","v":0},"","",null,"0"]
[{"$f":"Planning!A94","v":"I086"},{"$f":"Planning!B94","v":0},{"$f":"Planning!C94","v":0},{"$f":"Planning!D94","v":0},{"$f":"Planning!E94","v":0},{"$f":"IF(Planning!G94<>0,Planning!G94,\"\")","v":""},{"$f":"Planning!H94","v":0},{"$f":"Planning!R94","v":0},{"$f":"IF(OR(W110=\"1\",AND(W110<>\"1\",G110=Lists!$A$17)),Y110,0)","v":0},null,{"$f":"IF(AND(W110=\"2\",G110<>Lists!$A$17),AA110,Z110)","v":""},"",{"$f":"Planning!S94","v":{"v":0,"d":"0.00"}},{"$f":"'Month 3'!M110+'Month 3'!N110-'Month 3'!O110","v":{"v":0,"d":"0.00"}},null,"","",{"$f":"SUMIFS($J$25:$J$224,$C$25:$C$224,$C110,$G$25:$G$224,Lists!$A$16)","v":0},0,null,"",null,{"$f":"IF(C110=0,\"\",LEFT(INDEX(Lists!$H$5:$H$49,MATCH(C110,Lists!$G$5:$G$49,0),1),1))","v":""},null,{"$f":"'Month 3'!H110+'Month 3'!I110-'Month 3'!J110","v":0},"","",null,"0"]
[{"$f":"Planning!A95","v":"I087"},{"$f":"Planning!B95","v":0},{"$f":"Planning!C95","v":0},{"$f":"Planning!D95","v":0},{"$f":"Planning!E95","v":0},{"$f":"IF(Planning!G95<>0,Planning!G95,\"\")","v":""},{"$f":"Planning!H95","v":0},{"$f":"Planning!R95","v":0},{"$f":"IF(OR(W111=\"1\",AND(W111<>\"1\",G111=Lists!$A$17)),Y111,0)","v":0},null,{"$f":"IF(AND(W111=\"2\",G111<>Lists!$A$17),AA111,Z111)","v":""},"",{"$f":"Planning!S95","v":{"v":0,"d":"0.00"}},{"$f":"'Month 3'!M111+'Month 3'!N111-'Month 3'!O111","v":{"v":0,"d":"0.00"}},null,"","",{"$f":"SUMIFS($J$25:$J$224,$C$25:$C$224,$C111,$G$25:$G$224,Lists!$A$16)","v":0},0,null,"",null,{"$f":"IF(C111=0,\"\",LEFT(INDEX(Lists!$H$5:$H$49,MATCH(C111,Lists!$G$5:$G$49,0),1),1))","v":""},null,{"$f":"'Month 3'!H111+'Month 3'!I111-'Month 3'!J111","v":0},"","",null,"0"]
[{"$f":"Planning!A96","v":"I088"},{"$f":"Planning!B96","v":0},{"$f":"Planning!C96","v":0},{"$f":"Planning!D96","v":0},{"$f":"Planning!E96","v":0},{"$f":"IF(Planning!G96<>0,Planning!G96,\"\")","v":""},{"$f":"Planning!H96","v":0},{"$f":"Planning!R96","v":0},{"$f":"IF(OR(W112=\"1\",AND(W112<>\"1\",G112=Lists!$A$17)),Y112,0)","v":0},null,{"$f":"IF(AND(W112=\"2\",G112<>Lists!$A$17),AA112,Z112)","v":""},"",{"$f":"Planning!S96","v":{"v":0,"d":"0.00"}},{"$f":"'Month 3'!M112+'Month 3'!N112-'Month 3'!O112","v":{"v":0,"d":"0.00"}},null,"","",{"$f":"SUMIFS($J$25:$J$224,$C$25:$C$224,$C112,$G$25:$G$224,Lists!$A$16)","v":0},0,null,"",null,{"$f":"IF(C112=0,\"\",LEFT(INDEX(Lists!$H$5:$H$49,MATCH(C112,Lists!$G$5:$G$49,0),1),1))","v":""},null,{"$f":"'Month 3'!H112+'Month 3'!I112-'Month 3'!J112","v":0},"","",null,"0"]
[{"$f":"Planning!A97","v":"I089"},{"$f":"Planning!B97","v":0},{"$f":"Planning!C97","v":0},{"$f":"Planning!D97","v":0},{"$f":"Planning!E97","v":0},{"$f":"IF(Planning!G97<>0,Planning!G97,\"\")","v":""},{"$f":"Planning!H97","v":0},{"$f":"Planning!R97","v":0},{"$f":"IF(OR(W113=\"1\",AND(W113<>\"1\",G113=Lists!$A$17)),Y113,0)","v":0},null,{"$f":"IF(AND(W113=\"2\",G113<>Lists!$A$17),AA113,Z113)","v":""},"",{"$f":"Planning!S97","v":{"v":0,"d":"0.00"}},{"$f":"'Month 3'!M113+'Month 3'!N113-'Month 3'!O113","v":{"v":0,"d":"0.00"}},null,"","",{"$f":"SUMIFS($J$25:$J$224,$C$25:$C$224,$C113,$G$25:$G$224,Lists!$A$16)","v":0},0,null,"",null,{"$f":"IF(C113=0,\"\",LEFT(INDEX(Lists!$H$5:$H$49,MATCH(C113,Lists!$G$5:$G$49,0),1),1))","v":""},null,{"$f":"'Month 3'!H113+'Month 3'!I113-'Month 3'!J113","v":0},"","",null,"0"]
[{"$f":"Planning!A98","v":"I090"},{"$f":"Planning!B98","v":0},{"$f":"Planning!C98","v":0},{"$f":"Planning!D98","v":0},{"$f":"Planning!E98","v":0},{"$f":"IF(Planning!G98<>0,Planning!G98,\"\")","v":""},{"$f":"Planning!H98","v":0},{"$f":"Planning!R98","v":0},{"$f":"IF(OR(W114=\"1\",AND(W114<>\"1\",G114=Lists!$A$17)),Y114,0)","v":0},null,{"$f":"IF(AND(W114=\"2\",G114<>Lists!$A$17),AA114,Z114)","v":""},"",{"$f":"Planning!S98","v":{"v":0,"d":"0.00"}},{"$f":"'Month 3'!M114+'Month 3'!N114-'Month 3'!O114","v":{"v":0,"d":"0.00"}},null,"","",{"$f":"SUMIFS($J$25:$J$224,$C$25:$C$224,$C114,$G$25:$G$224,Lists!$A$16)","v":0},0,null,"",null,{"$f":"IF(C114=0,\"\",LEFT(INDEX(Lists!$H$5:$H$49,MATCH(C114,Lists!$G$5:$G$49,0),1),1))","v":""},null,{"$f":"'Month 3'!H114+'Month 3'!I114-'Month 3'!J114","v":0},"","",null,"0"]
[{"$f":"Planning!A99","v":"I091"},{"$f":"Planning!B99","v":0},{"$f":"Planning!C99","v":0},{"$f":"Planning!D99","v":0},{"$f":"Planning!E99","v":0},{"$f":"IF(Planning!G99<>0,Planning!G99,\"\")","v":""},{"$f":"Planning!H99","v":0},{"$f":"Planning!R99","v":0},{"$f":"IF(OR(W115=\"1\",AND(W115<>\"1\",G115=Lists!$A$17)),Y115,0)","v":0},null,{"$f":"IF(AND(W115=\"2\",G115<>Lists!$A$17),AA115,Z115)","v":""},"",{"$f":"Planning!S99","v":{"v":0,"d":"0.00"}},{"$f":"'Month 3'!M115+'Month 3'!N115-'Month 3'!O115","v":{"v":0,"d":"0.00"}},null,"","",{"$f":"SUMIFS($J$25:$J$224,$C$25:$C$224,$C115,$G$25:$G$224,Lists!$A$16)","v":0},0,null,"",null,{"$f":"IF(C115=0,\"\",LEFT(INDEX(Lists!$H$5:$H$49,MATCH(C115,Lists!$G$5:$G$49,0),1),1))","v":""},null,{"$f":"'Month 3'!H115+'Month 3'!I115-'Month 3'!J115","v":0},"","",null,"0"]
[{"$f":"Planning!A100","v":"I092"},{"$f":"Planning!B100","v":0},{"$f":"Planning!C100","v":0},{"$f":"Planning!D100","v":0},{"$f":"Planning!E100","v":0},{"$f":"IF(Planning!G100<>0,Planning!G100,\"\")","v":""},{"$f":"Planning!H100","v":0},{"$f":"Planning!R100","v":0},{"$f":"IF(OR(W116=\"1\",AND(W116<>\"1\",G116=Lists!$A$17)),Y116,0)","v":0},null,{"$f":"IF(AND(W116=\"2\",G116<>Lists!$A$17),AA116,Z116)","v":""},"",{"$f":"Planning!S100","v":{"v":0,"d":"0.00"}},{"$f":"'Month 3'!M116+'Month 3'!N116-'Month 3'!O116","v":{"v":0,"d":"0.00"}},null,"","",{"$f":"SUMIFS($J$25:$J$224,$C$25:$C$224,$C116,$G$25:$G$224,Lists!$A$16)","v":0},0,null,"",null,{"$f":"IF(C116=0,\"\",LEFT(INDEX(Lists!$H$5:$H$49,MATCH(C116,Lists!$G$5:$G$49,0),1),1))","v":""},null,{"$f":"'Month 3'!H116+'Month 3'!I116-'Month 3'!J116","v":0},"","",null,"0"]
[{"$f":"Planning!A101","v":"I093"},{"$f":"Planning!B101","v":0},{"$f":"Planning!C101","v":0},{"$f":"Planning!D101","v":0},{"$f":"Planning!E101","v":0},{"$f":"IF(Planning!G101<>0,Planning!G101,\"\")","v":""},{"$f":"Planning!H101","v":0},{"$f":"Planning!R101","v":0},{"$f":"IF(OR(W117=\"1\",AND(W117<>\"1\",G117=Lists!$A$17)),Y117,0)","v":0},null,{"$f":"IF(AND(W117=\"2\",G117<>Lists!$A$17),AA117,Z117)","v":""},"",{"$f":"Planning!S101","v":{"v":0,"d":"0.00"}},{"$f":"'Month 3'!M117+'Month 3'!N117-'Month 3'!O117","v":{"v":0,"d":"0.00"}},null,"","",{"$f":"SUMIFS($J$25:$J$224,$C$25:$C$224,$C117,$G$25:$G$224,Lists!$A$16)","v":0},0,null,"",null,{"$f":"IF(C117=0,\"\",LEFT(INDEX(Lists!$H$5:$H$49,MATCH(C117,Lists!$G$5:$G$49,0),1),1))","v":""},null,{"$f":"'Month 3'!H117+'Month 3'!I117-'Month 3'!J117","v":0},"","",null,"0"]
[{"$f":"Planning!A102","v":"I094"},{"$f":"Planning!B102","v":0},{"$f":"Planning!C102","v":0},{"$f":"Planning!D102","v":0},{"$f":"Planning!E102","v":0},{"$f":"IF(Planning!G102<>0,Planning!G102,\"\")","v":""},{"$f":"Planning!H102","v":0},{"$f":"Planning!R102","v":0},{"$f":"IF(OR(W118=\"1\",AND(W118<>\"1\",G118=Lists!$A$17)),Y118,0)","v":0},null,{"$f":"IF(AND(W118=\"2\",G118<>Lists!$A$17),AA118,Z118)","v":""},"",{"$f":"Planning!S102","v":{"v":0,"d":"0.00"}},{"$f":"'Month 3'!M118+'Month 3'!N118-'Month 3'!O118","v":{"v":0,"d":"0.00"}},null,"","",{"$f":"SUMIFS($J$25:$J$224,$C$25:$C$224,$C118,$G$25:$G$224,Lists!$A$16)","v":0},0,null,"",null,{"$f":"IF(C118=0,\"\",LEFT(INDEX(Lists!$H$5:$H$49,MATCH(C118,Lists!$G$5:$G$49,0),1),1))","v":""},null,{"$f":"'Month 3'!H118+'Month 3'!I118-'Month 3'!J118","v":0},"","",null,"0"]
[{"$f":"Planning!A103","v":"I095"},{"$f":"Planning!B103","v":0},{"$f":"Planning!C103","v":0},{"$f":"Planning!D103","v":0},{"$f":"Planning!E103","v":0},{"$f":"IF(Planning!G103<>0,Planning!G103,\"\")","v":""},{"$f":"Planning!H103","v":0},{"$f":"Planning!R103","v":0},{"$f":"IF(OR(W119=\"1\",AND(W119<>\"1\",G119=Lists!$A$17)),Y119,0)","v":0},null,{"$f":"IF(AND(W119=\"2\",G119<>Lists!$A$17),AA119,Z119)","v":""},"",{"$f":"Planning!S103","v":{"v":0,"d":"0.00"}},{"$f":"'Month 3'!M119+'Month 3'!N119-'Month 3'!O119","v":{"v":0,"d":"0.00"}},null,"","",{"$f":"SUMIFS($J$25:$J$224,$C$25:$C$224,$C119,$G$25:$G$224,Lists!$A$16)","v":0},0,null,"",null,{"$f":"IF(C119=0,\"\",LEFT(INDEX(Lists!$H$5:$H$49,MATCH(C119,Lists!$G$5:$G$49,0),1),1))","v":""},null,{"$f":"'Month 3'!H119+'Month 3'!I119-'Month 3'!J119","v":0},"","",null,"0"]
[{"$f":"Planning!A104","v":"I096"},{"$f":"Planning!B104","v":0},{"$f":"Planning!C104","v":0},{"$f":"Planning!D104","v":0},{"$f":"Planning!E104","v":0},{"$f":"IF(Planning!G104<>0,Planning!G104,\"\")","v":""},{"$f":"Planning!H104","v":0},{"$f":"Planning!R104","v":0},{"$f":"IF(OR(W120=\"1\",AND(W120<>\"1\",G120=Lists!$A$17)),Y120,0)","v":0},null,{"$f":"IF(AND(W120=\"2\",G120<>Lists!$A$17),AA120,Z120)","v":""},"",{"$f":"Planning!S104","v":{"v":0,"d":"0.00"}},{"$f":"'Month 3'!M120+'Month 3'!N120-'Month 3'!O120","v":{"v":0,"d":"0.00"}},null,"","",{"$f":"SUMIFS($J$25:$J$224,$C$25:$C$224,$C120,$G$25:$G$224,Lists!$A$16)","v":0},0,null,"",null,{"$f":"IF(C120=0,\"\",LEFT(INDEX(Lists!$H$5:$H$49,MATCH(C120,Lists!$G$5:$G$49,0),1),1))","v":""},null,{"$f":"'Month 3'!H120+'Month 3'!I120-'Month 3'!J120","v":0},"","",null,"0"]
[{"$f":"Planning!A105","v":"I097"},{"$f":"Planning!B105","v":0},{"$f":"Planning!C105","v":0},{"$f":"Planning!D105","v":0},{"$f":"Planning!E105","v":0},{"$f":"IF(Planning!G105<>0,Planning!G105,\"\")","v":""},{"$f":"Planning!H105","v":0},{"$f":"Planning!R105","v":0},{"$f":"IF(OR(W121=\"1\",AND(W121<>\"1\",G121=Lists!$A$17)),Y121,0)","v":0},null,{"$f":"IF(AND(W121=\"2\",G121<>Lists!$A$17),AA121,Z121)","v":""},{"$f":"IF($U121=ExcluirDelPLogro,\"\",IF(AND(H121=0,I121=0,J121=0),\"\",K121))","v":""},{"$f":"Planning!S105","v":{"v":0,"d":"0.00"}},{"$f":"'Month 3'!M121+'Month 3'!N121-'Month 3'!O121","v":{"v":0,"d":"0.00"}},null,"",{"$f":"IF($U121=ExcluirDelPLogro,\"\",IF(AND(M121=0,N121=0,O121=0),\"\",P121))","v":""},{"$f":"SUMIFS($J$25:$J$224,$C$25:$C$224,$C121,$G$25:$G$224,Lists!$A$16)","v":0},0,null,"",null,{"$f":"IF(C121=0,\"\",LEFT(INDEX(Lists!$H$5:$H$49,MATCH(C121,Lists!$G$5:$G$49,0),1),1))","v":""},null,{"$f":"'Month 3'!H121+'Month 3'!I121-'Month 3'!J121","v":0},"",{"$f":"IF(AND(H121=0,I121=0,J121=0),\"\",IF(J121>0,H121/J121,0))","v":""},null,"0"]
[{"$f":"Planning!A106","v":"I098"},{"$f":"Planning!B106","v":0},{"$f":"Planning!C106","v":0},{"$f":"Planning!D106","v":0},{"$f":"Planning!E106","v":0},{"$f":"IF(Planning!G106<>0,Planning!G106,\"\")","v":""},{"$f":"Planning!H106","v":0},{"$f":"Planning!R106","v":0},{"$f":"IF(OR(W122=\"1\",AND(W122<>\"1\",G122=Lists!$A$17)),Y122,0)","v":0},null,{"$f":"IF(AND(W122=\"2\",G122<>Lists!$A$17),AA122,Z122)","v":""},"",{"$f":"Planning!S106","v":{"v":0,"d":"0.00"}},{"$f":"'Month 3'!M122+'Month 3'!N122-'Month 3'!O122","v":{"v":0,"d":"0.00"}},null,"","",{"$f":"SUMIFS($J$25:$J$224,$C$25:$C$224,$C122,$G$25:$G$224,Lists!$A$16)","v":0},0,null,"",null,{"$f":"IF(C122=0,\"\",LEFT(INDEX(Lists!$H$5:$H$49,MATCH(C122,Lists!$G$5:$G$49,0),1),1))","v":""},null,{"$f":"'Month 3'!H122+'Month 3'!I122-'Month 3'!J122","v":0},"","",null,"0"]
[{"$f":"Planning!A107","v":"I099"},{"$f":"Planning!B107","v":0},{"$f":"Planning!C107","v":0},{"$f":"Planning!D107","v":0},{"$f":"Planning!E107","v":0},{"$f":"IF(Planning!G107<>0,Planning!G107,\"\")","v":""},{"$f":"Planning!H107","v":0},{"$f":"Planning!R107","v":0},{"$f":"IF(OR(W123=\"1\",AND(W123<>\"1\",G123=Lists!$A$17)),Y123,0)","v":0},null,{"$f":"IF(AND(W123=\"2\",G123<>Lists!$A$17),AA123,Z123)","v":""},"",{"$f":"Planning!S107","v":{"v":0,"d":"0.00"}},{"$f":"'Month 3'!M123+'Month 3'!N123-'Month 3'!O123","v":{"v":0,"d":"0.00"}},null,"","",{"$f":"SUMIFS($J$25:$J$224,$C$25:$C$224,$C123,$G$25:$G$224,Lists!$A$16)","v":0},0,null,"",null,{"$f":"IF(C123=0,\"\",LEFT(INDEX(Lists!$H$5:$H$49,MATCH(C123,Lists!$G$5:$G$49,0),1),1))","v":""},null,{"$f":"'Month 3'!H123+'Month 3'!I123-'Month 3'!J123","v":0},"","",null,"0"]
[{"$f":"Planning!A108","v":"I100"},{"$f":"Planning!B108","v":0},{"$f":"Planning!C108","v":0},{"$f":"Planning!D108","v":0},{"$f":"Planning!E108","v":0},{"$f":"IF(Planning!G108<>0,Planning!G108,\"\")","v":""},{"$f":"Planning!H108","v":0},{"$f":"Planning!R108","v":0},{"$f":"IF(OR(W124=\"1\",AND(W124<>\"1\",G124=Lists!$A$17)),Y124,0)","v":0},null,{"$f":"IF(AND(W124=\"2\",G124<>Lists!$A$17),AA124,Z124)","v":""},"",{"$f":"Planning!S108","v":{"v":0,"d":"0.00"}},{"$f":"'Month 3'!M124+'Month 3'!N124-'Month 3'!O124","v":{"v":0,"d":"0.00"}},null,"","",{"$f":"SUMIFS($J$25:$J$224,$C$25:$C$224,$C124,$G$25:$G$224,Lists!$A$16)","v":0},0,null,"",null,{"$f":"IF(C124=0,\"\",LEFT(INDEX(Lists!$H$5:$H$49,MATCH(C124,Lists!$G$5:$G$49,0),1),1))","v":""},null,{"$f":"'Month 3'!H124+'Month 3'!I124-'Month 3'!J124","v":0},"","",null,"0"]
[{"$f":"Planning!A109","v":"I101"},{"$f":"Planning!B109","v":0},{"$f":"Planning!C109","v":0},{"$f":"Planning!D109","v":0},{"$f":"Planning!E109","v":0},{"$f":"IF(Planning!G109<>0,Planning!G109,\"\")","v":""},{"$f":"Planning!H109","v":0},{"$f":"Planning!R109","v":0},{"$f":"IF(OR(W125=\"1\",AND(W125<>\"1\",G125=Lists!$A$17)),Y125,0)","v":0},null,{"$f":"IF(AND(W125=\"2\",G125<>Lists!$A$17),AA125,Z125)","v":""},"",{"$f":"Planning!S109","v":{"v":0,"d":"0.00"}},{"$f":"'Month 3'!M125+'Month 3'!N125-'Month 3'!O125","v":{"v":0,"d":"0.00"}},null,"","",{"$f":"SUMIFS($J$25:$J$224,$C$25:$C$224,$C125,$G$25:$G$224,Lists!$A$16)","v":0},0,null,"",null,{"$f":"IF(C125=0,\"\",LEFT(INDEX(Lists!$H$5:$H$49,MATCH(C125,Lists!$G$5:$G$49,0),1),1))","v":""},null,{"$f":"'Month 3'!H125+'Month 3'!I125-'Month 3'!J125","v":0},"","",null,"0"]
[{"$f":"Planning!A110","v":"I102"},{"$f":"Planning!B110","v":0},{"$f":"Planning!C110","v":0},{"$f":"Planning!D110","v":0},{"$f":"Planning!E110","v":0},{"$f":"IF(Planning!G110<>0,Planning!G110,\"\")","v":""},{"$f":"Planning!H110","v":0},{"$f":"Planning!R110","v":0},{"$f":"IF(OR(W126=\"1\",AND(W126<>\"1\",G126=Lists!$A$17)),Y126,0)","v":0},null,{"$f":"IF(AND(W126=\"2\",G126<>Lists!$A$17),AA126,Z126)","v":""},"",{"$f":"Planning!S110","v":{"v":0,"d":"0.00"}},{"$f":"'Month 3'!M126+'Month 3'!N126-'Month 3'!O126","v":{"v":0,"d":"0.00"}},null,"","",{"$f":"SUMIFS($J$25:$J$224,$C$25:$C$224,$C126,$G$25:$G$224,Lists!$A$16)","v":0},0,null,"",null,{"$f":"IF(C126=0,\"\",LEFT(INDEX(Lists!$H$5:$H$49,MATCH(C126,Lists!$G$5:$G$49,0),1),1))","v":""},null,{"$f":"'Month 3'!H126+'Month 3'!I126-'Month 3'!J126","v":0},"","",null,"0"]
[{"$f":"Planning!A111","v":"I103"},{"$f":"Planning!B111","v":0},{"$f":"Planning!C111","v":0},{"$f":"Planning!D111","v":0},{"$f":"Planning!E111","v":0},{"$f":"IF(Planning!G111<>0,Planning!G111,\"\")","v":""},{"$f":"Planning!H111","v":0},{"$f":"Planning!R111","v":0},{"$f":"IF(OR(W127=\"1\",AND(W127<>\"1\",G127=Lists!$A$17)),Y127,0)","v":0},null,{"$f":"IF(AND(W127=\"2\",G127<>Lists!$A$17),AA127,Z127)","v":""},"",{"$f":"Planning!S111","v":{"v":0,"d":"0.00"}},{"$f":"'Month 3'!M127+'Month 3'!N127-'Month 3'!O127","v":{"v":0,"d":"0.00"}},null,"","",{"$f":"SUMIFS($J$25:$J$224,$C$25:$C$224,$C127,$G$25:$G$224,Lists!$A$16)","v":0},0,null,"",null,{"$f":"IF(C127=0,\"\",LEFT(INDEX(Lists!$H$5:$H$49,MATCH(C127,Lists!$G$5:$G$49,0),1),1))","v":""},null,{"$f":"'Month 3'!H127+'Month 3'!I127-'Month 3'!J127","v":0},"","",null,"0"]
[{"$f":"Planning!A112","v":"I104"},{"$f":"Planning!B112","v":0},{"$f":"Planning!C112","v":0},{"$f":"Planning!D112","v":0},{"$f":"Planning!E112","v":0},{"$f":"IF(Planning!G112<>0,Planning!G112,\"\")","v":""},{"$f":"Planning!H112","v":0},{"$f":"Planning!R112","v":0},{"$f":"IF(OR(W128=\"1\",AND(W128<>\"1\",G128=Lists!$A$17)),Y128,0)","v":0},null,{"$f":"IF(AND(W128=\"2\",G128<>Lists!$A$17),AA128,Z128)","v":""},"",{"$f":"Planning!S112","v":{"v":0,"d":"0.00"}},{"$f":"'Month 3'!M128+'Month 3'!N128-'Month 3'!O128","v":{"v":0,"d":"0.00"}},null,"","",{"$f":"SUMIFS($J$25:$J$224,$C$25:$C$224,$C128,$G$25:$G$224,Lists!$A$16)","v":0},0,null,"",null,{"$f":"IF(C128=0,\"\",LEFT(INDEX(Lists!$H$5:$H$49,MATCH(C128,Lists!$G$5:$G$49,0),1),1))","v":""},null,{"$f":"'Month 3'!H128+'Month 3'!I128-'Month 3'!J128","v":0},"","",null,"0"]
[{"$f":"Planning!A113","v":"I105"},{"$f":"Planning!B113","v":0},{"$f":"Planning!C113","v":0},{"$f":"Planning!D113","v":0},{"$f":"Planning!E113","v":0},{"$f":"IF(Planning!G113<>0,Planning!G113,\"\")","v":""},{"$f":"Planning!H113","v":0},{"$f":"Planning!R113","v":0},{"$f":"IF(OR(W129=\"1\",AND(W129<>\"1\",G129=Lists!$A$17)),Y129,0)","v":0},null,{"$f":"IF(AND(W129=\"2\",G129<>Lists!$A$17),AA129,Z129)","v":""},"",{"$f":"Planning!S113","v":{"v":0,"d":"0.00"}},{"$f":"'Month 3'!M129+'Month 3'!N129-'Month 3'!O129","v":{"v":0,"d":"0.00"}},null,"","",{"$f":"SUMIFS($J$25:$J$224,$C$25:$C$224,$C129,$G$25:$G$224,Lists!$A$16)","v":0},0,null,"",null,{"$f":"IF(C129=0,\"\",LEFT(INDEX(Lists!$H$5:$H$49,MATCH(C129,Lists!$G$5:$G$49,0),1),1))","v":""},null,{"$f":"'Month 3'!H129+'Month 3'!I129-'Month 3'!J129","v":0},"","",null,"0"]
[{"$f":"Planning!A114","v":"I106"},{"$f":"Planning!B114","v":0},{"$f":"Planning!C114","v":0},{"$f":"Planning!D114","v":0},{"$f":"Planning!E114","v":0},{"$f":"IF(Planning!G114<>0,Planning!G114,\"\")","v":""},{"$f":"Planning!H114","v":0},{"$f":"Planning!R114","v":0},{"$f":"IF(OR(W130=\"1\",AND(W130<>\"1\",G130=Lists!$A$17)),Y130,0)","v":0},null,{"$f":"IF(AND(W130=\"2\",G130<>Lists!$A$17),AA130,Z130)","v":""},"",{"$f":"Planning!S114","v":{"v":0,"d":"0.00"}},{"$f":"'Month 3'!M130+'Month 3'!N130-'Month 3'!O130","v":{"v":0,"d":"0.00"}},null,"","",{"$f":"SUMIFS($J$25:$J$224,$C$25:$C$224,$C130,$G$25:$G$224,Lists!$A$16)","v":0},0,null,"",null,{"$f":"IF(C130=0,\"\",LEFT(INDEX(Lists!$H$5:$H$49,MATCH(C130,Lists!$G$5:$G$49,0),1),1))","v":""},null,{"$f":"'Month 3'!H130+'Month 3'!I130-'Month 3'!J130","v":0},"","",null,"0"]
[{"$f":"Planning!A115","v":"I107"},{"$f":"Planning!B115","v":0},{"$f":"Planning!C115","v":0},{"$f":"Planning!D115","v":0},{"$f":"Planning!E115","v":0},{"$f":"IF(Planning!G115<>0,Planning!G115,\"\")","v":""},{"$f":"Planning!H115","v":0},{"$f":"Planning!R115","v":0},{"$f":"IF(OR(W131=\"1\",AND(W131<>\"1\",G131=Lists!$A$17)),Y131,0)","v":0},null,{"$f":"IF(AND(W131=\"2\",G131<>Lists!$A$17),AA131,Z131)","v":""},"",{"$f":"Planning!S115","v":{"v":0,"d":"0.00"}},{"$f":"'Month 3'!M131+'Month 3'!N131-'Month 3'!O131","v":{"v":0,"d":"0.00"}},null,"","",{"$f":"SUMIFS($J$25:$J$224,$C$25:$C$224,$C131,$G$25:$G$224,Lists!$A$16)","v":0},0,null,"",null,{"$f":"IF(C131=0,\"\",LEFT(INDEX(Lists!$H$5:$H$49,MATCH(C131,Lists!$G$5:$G$49,0),1),1))","v":""},null,{"$f":"'Month 3'!H131+'Month 3'!I131-'Month 3'!J131","v":0},"","",null,"0"]
[{"$f":"Planning!A116","v":"I108"},{"$f":"Planning!B116","v":0},{"$f":"Planning!C116","v":0},{"$f":"Planning!D116","v":0},{"$f":"Planning!E116","v":0},{"$f":"IF(Planning!G116<>0,Planning!G116,\"\")","v":""},{"$f":"Planning!H116","v":0},{"$f":"Planning!R116","v":0},{"$f":"IF(OR(W132=\"1\",AND(W132<>\"1\",G132=Lists!$A$17)),Y132,0)","v":0},null,{"$f":"IF(AND(W132=\"2\",G132<>Lists!$A$17),AA132,Z132)","v":""},"",{"$f":"Planning!S116","v":{"v":0,"d":"0.00"}},{"$f":"'Month 3'!M132+'Month 3'!N132-'Month 3'!O132","v":{"v":0,"d":"0.00"}},null,"","",{"$f":"SUMIFS($J$25:$J$224,$C$25:$C$224,$C132,$G$25:$G$224,Lists!$A$16)","v":0},0,null,"",null,{"$f":"IF(C132=0,\"\",LEFT(INDEX(Lists!$H$5:$H$49,MATCH(C132,Lists!$G$5:$G$49,0),1),1))","v":""},null,{"$f":"'Month 3'!H132+'Month 3'!I132-'Month 3'!J132","v":0},"","",null,"0"]
[{"$f":"Planning!A117","v":"I109"},{"$f":"Planning!B117","v":0},{"$f":"Planning!C117","v":0},{"$f":"Planning!D117","v":0},{"$f":"Planning!E117","v":0},{"$f":"IF(Planning!G117<>0,Planning!G117,\"\")","v":""},{"$f":"Planning!H117","v":0},{"$f":"Planning!R117","v":0},{"$f":"IF(OR(W133=\"1\",AND(W133<>\"1\",G133=Lists!$A$17)),Y133,0)","v":0},null,{"$f":"IF(AND(W133=\"2\",G133<>Lists!$A$17),AA133,Z133)","v":""},"",{"$f":"Planning!S117","v":{"v":0,"d":"0.00"}},{"$f":"'Month 3'!M133+'Month 3'!N133-'Month 3'!O133","v":{"v":0,"d":"0.00"}},null,"","",{"$f":"SUMIFS($J$25:$J$224,$C$25:$C$224,$C133,$G$25:$G$224,Lists!$A$16)","v":0},0,null,"",null,{"$f":"IF(C133=0,\"\",LEFT(INDEX(Lists!$H$5:$H$49,MATCH(C133,Lists!$G$5:$G$49,0),1),1))","v":""},null,{"$f":"'Month 3'!H133+'Month 3'!I133-'Month 3'!J133","v":0},"","",null,"0"]
[{"$f":"Planning!A118","v":"I110"},{"$f":"Planning!B118","v":0},{"$f":"Planning!C118","v":0},{"$f":"Planning!D118","v":0},{"$f":"Planning!E118","v":0},{"$f":"IF(Planning!G118<>0,Planning!G118,\"\")","v":""},{"$f":"Planning!H118","v":0},{"$f":"Planning!R118","v":0},{"$f":"IF(OR(W134=\"1\",AND(W134<>\"1\",G134=Lists!$A$17)),Y134,0)","v":0},null,{"$f":"IF(AND(W134=\"2\",G134<>Lists!$A$17),AA134,Z134)","v":""},"",{"$f":"Planning!S118","v":{"v":0,"d":"0.00"}},{"$f":"'Month 3'!M134+'Month 3'!N134-'Month 3'!O134","v":{"v":0,"d":"0.00"}},null,"","",{"$f":"SUMIFS($J$25:$J$224,$C$25:$C$224,$C134,$G$25:$G$224,Lists!$A$16)","v":0},0,null,"",null,{"$f":"IF(C134=0,\"\",LEFT(INDEX(Lists!$H$5:$H$49,MATCH(C134,Lists!$G$5:$G$49,0),1),1))","v":""},null,{"$f":"'Month 3'!H134+'Month 3'!I134-'Month 3'!J134","v":0},"","",null,"0"]
[{"$f":"Planning!A119","v":"I111"},{"$f":"Planning!B119","v":0},{"$f":"Planning!C119","v":0},{"$f":"Planning!D119","v":0},{"$f":"Planning!E119","v":0},{"$f":"IF(Planning!G119<>0,Planning!G119,\"\")","v":""},{"$f":"Planning!H119","v":0},{"$f":"Planning!R119","v":0},{"$f":"IF(OR(W135=\"1\",AND(W135<>\"1\",G135=Lists!$A$17)),Y135,0)","v":0},null,{"$f":"IF(AND(W135=\"2\",G135<>Lists!$A$17),AA135,Z135)","v":""},"",{"$f":"Planning!S119","v":{"v":0,"d":"0.00"}},{"$f":"'Month 3'!M135+'Month 3'!N135-'Month 3'!O135","v":{"v":0,"d":"0.00"}},null,"","",{"$f":"SUMIFS($J$25:$J$224,$C$25:$C$224,$C135,$G$25:$G$224,Lists!$A$16)","v":0},0,null,"",null,{"$f":"IF(C135=0,\"\",LEFT(INDEX(Lists!$H$5:$H$49,MATCH(C135,Lists!$G$5:$G$49,0),1),1))","v":""},null,{"$f":"'Month 3'!H135+'Month 3'!I135-'Month 3'!J135","v":0},"","",null,"0"]
[{"$f":"Planning!A120","v":"I112"},{"$f":"Planning!B120","v":0},{"$f":"Planning!C120","v":0},{"$f":"Planning!D120","v":0},{"$f":"Planning!E120","v":0},{"$f":"IF(Planning!G120<>0,Planning!G120,\"\")","v":""},{"$f":"Planning!H120","v":0},{"$f":"Planning!R120","v":0},{"$f":"IF(OR(W136=\"1\",AND(W136<>\"1\",G136=Lists!$A$17)),Y136,0)","v":0},null,{"$f":"IF(AND(W136=\"2\",G136<>Lists!$A$17),AA136,Z136)","v":""},"",{"$f":"Planning!S120","v":{"v":0,"d":"0.00"}},{"$f":"'Month 3'!M136+'Month 3'!N136-'Month 3'!O136","v":{"v":0,"d":"0.00"}},null,"","",{"$f":"SUMIFS($J$25:$J$224,$C$25:$C$224,$C136,$G$25:$G$224,Lists!$A$16)","v":0},0,null,"",null,{"$f":"IF(C136=0,\"\",LEFT(INDEX(Lists!$H$5:$H$49,MATCH(C136,Lists!$G$5:$G$49,0),1),1))","v":""},null,{"$f":"'Month 3'!H136+'Month 3'!I136-'Month 3'!J136","v":0},"","",null,"0"]
[{"$f":"Planning!A121","v":"I113"},{"$f":"Planning!B121","v":0},{"$f":"Planning!C121","v":0},{"$f":"Planning!D121","v":0},{"$f":"Planning!E121","v":0},{"$f":"IF(Planning!G121<>0,Planning!G121,\"\")","v":""},{"$f":"Planning!H121","v":0},{"$f":"Planning!R121","v":0},{"$f":"IF(OR(W137=\"1\",AND(W137<>\"1\",G137=Lists!$A$17)),Y137,0)","v":0},null,{"$f":"IF(AND(W137=\"2\",G137<>Lists!$A$17),AA137,Z137)","v":""},"",{"$f":"Planning!S121","v":{"v":0,"d":"0.00"}},{"$f":"'Month 3'!M137+'Month 3'!N137-'Month 3'!O137","v":{"v":0,"d":"0.00"}},null,"","",{"$f":"SUMIFS($J$25:$J$224,$C$25:$C$224,$C137,$G$25:$G$224,Lists!$A$16)","v":0},0,null,"",null,{"$f":"IF(C137=0,\"\",LEFT(INDEX(Lists!$H$5:$H$49,MATCH(C137,Lists!$G$5:$G$49,0),1),1))","v":""},null,{"$f":"'Month 3'!H137+'Month 3'!I137-'Month 3'!J137","v":0},"","",null,"0"]
[{"$f":"Planning!A122","v":"I114"},{"$f":"Planning!B122","v":0},{"$f":"Planning!C122","v":0},{"$f":"Planning!D122","v":0},{"$f":"Planning!E122","v":0},{"$f":"IF(Planning!G122<>0,Planning!G122,\"\")","v":""},{"$f":"Planning!H122","v":0},{"$f":"Planning!R122","v":0},{"$f":"IF(OR(W138=\"1\",AND(W138<>\"1\",G138=Lists!$A$17)),Y138,0)","v":0},null,{"$f":"IF(AND(W138=\"2\",G138<>Lists!$A$17),AA138,Z138)","v":""},"",{"$f":"Planning!S122","v":{"v":0,"d":"0.00"}},{"$f":"'Month 3'!M138+'Month 3'!N138-'Month 3'!O138","v":{"v":0,"d":"0.00"}},null,"","",{"$f":"SUMIFS($J$25:$J$224,$C$25:$C$224,$C138,$G$25:$G$224,Lists!$A$16)","v":0},0,null,"",null,{"$f":"IF(C138=0,\"\",LEFT(INDEX(Lists!$H$5:$H$49,MATCH(C138,Lists!$G$5:$G$49,0),1),1))","v":""},null,{"$f":"'Month 3'!H138+'Month 3'!I138-'Month 3'!J138","v":0},"","",null,"0"]
[{"$f":"Planning!A123","v":"I115"},{"$f":"Planning!B123","v":0},{"$f":"Planning!C123","v":0},{"$f":"Planning!D123","v":0},{"$f":"Planning!E123","v":0},{"$f":"IF(Planning!G123<>0,Planning!G123,\"\")","v":""},{"$f":"Planning!H123","v":0},{"$f":"Planning!R123","v":0},{"$f":"IF(OR(W139=\"1\",AND(W139<>\"1\",G139=Lists!$A$17)),Y139,0)","v":0},null,{"$f":"IF(AND(W139=\"2\",G139<>Lists!$A$17),AA139,Z139)","v":""},"",{"$f":"Planning!S123","v":{"v":0,"d":"0.00"}},{"$f":"'Month 3'!M139+'Month 3'!N139-'Month 3'!O139","v":{"v":0,"d":"0.00"}},null,"","",{"$f":"SUMIFS($J$25:$J$224,$C$25:$C$224,$C139,$G$25:$G$224,Lists!$A$16)","v":0},0,null,"",null,{"$f":"IF(C139=0,\"\",LEFT(INDEX(Lists!$H$5:$H$49,MATCH(C139,Lists!$G$5:$G$49,0),1),1))","v":""},null,{"$f":"'Month 3'!H139+'Month 3'!I139-'Month 3'!J139","v":0},"","",null,"0"]
[{"$f":"Planning!A124","v":"I116"},{"$f":"Planning!B124","v":0},{"$f":"Planning!C124","v":0},{"$f":"Planning!D124","v":0},{"$f":"Planning!E124","v":0},{"$f":"IF(Planning!G124<>0,Planning!G124,\"\")","v":""},{"$f":"Planning!H124","v":0},{"$f":"Planning!R124","v":0},{"$f":"IF(OR(W140=\"1\",AND(W140<>\"1\",G140=Lists!$A$17)),Y140,0)","v":0},null,{"$f":"IF(AND(W140=\"2\",G140<>Lists!$A$17),AA140,Z140)","v":""},"",{"$f":"Planning!S124","v":{"v":0,"d":"0.00"}},{"$f":"'Month 3'!M140+'Month 3'!N140-'Month 3'!O140","v":{"v":0,"d":"0.00"}},null,"","",{"$f":"SUMIFS($J$25:$J$224,$C$25:$C$224,$C140,$G$25:$G$224,Lists!$A$16)","v":0},0,null,"",null,{"$f":"IF(C140=0,\"\",LEFT(INDEX(Lists!$H$5:$H$49,MATCH(C140,Lists!$G$5:$G$49,0),1),1))","v":""},null,{"$f":"'Month 3'!H140+'Month 3'!I140-'Month 3'!J140","v":0},"","",null,"0"]
[{"$f":"Planning!A125","v":"I117"},{"$f":"Planning!B125","v":0},{"$f":"Planning!C125","v":0},{"$f":"Planning!D125","v":0},{"$f":"Planning!E125","v":0},{"$f":"IF(Planning!G125<>0,Planning!G125,\"\")","v":""},{"$f":"Planning!H125","v":0},{"$f":"Planning!R125","v":0},{"$f":"IF(OR(W141=\"1\",AND(W141<>\"1\",G141=Lists!$A$17)),Y141,0)","v":0},null,{"$f":"IF(AND(W141=\"2\",G141<>Lists!$A$17),AA141,Z141)","v":""},"",{"$f":"Planning!S125","v":{"v":0,"d":"0.00"}},{"$f":"'Month 3'!M141+'Month 3'!N141-'Month 3'!O141","v":{"v":0,"d":"0.00"}},null,"","",{"$f":"SUMIFS($J$25:$J$224,$C$25:$C$224,$C141,$G$25:$G$224,Lists!$A$16)","v":0},0,null,"",null,{"$f":"IF(C141=0,\"\",LEFT(INDEX(Lists!$H$5:$H$49,MATCH(C141,Lists!$G$5:$G$49,0),1),1))","v":""},null,{"$f":"'Month 3'!H141+'Month 3'!I141-'Month 3'!J141","v":0},"","",null,"0"]
[{"$f":"Planning!A126","v":"I118"},{"$f":"Planning!B126","v":0},{"$f":"Planning!C126","v":0},{"$f":"Planning!D126","v":0},{"$f":"Planning!E126","v":0},{"$f":"IF(Planning!G126<>0,Planning!G126,\"\")","v":""},{"$f":"Planning!H126","v":0},{"$f":"Planning!R126","v":0},{"$f":"IF(OR(W142=\"1\",AND(W142<>\"1\",G142=Lists!$A$17)),Y142,0)","v":0},null,{"$f":"IF(AND(W142=\"2\",G142<>Lists!$A$17),AA142,Z142)","v":""},"",{"$f":"Planning!S126","v":{"v":0,"d":"0.00"}},{"$f":"'Month 3'!M142+'Month 3'!N142-'Month 3'!O142","v":{"v":0,"d":"0.00"}},null,"","",{"$f":"SUMIFS($J$25:$J$224,$C$25:$C$224,$C142,$G$25:$G$224,Lists!$A$16)","v":0},0,null,"",null,{"$f":"IF(C142=0,\"\",LEFT(INDEX(Lists!$H$5:$H$49,MATCH(C142,Lists!$G$5:$G$49,0),1),1))","v":""},null,{"$f":"'Month 3'!H142+'Month 3'!I142-'Month 3'!J142","v":0},"","",null,"0"]
[{"$f":"Planning!A127","v":"I119"},{"$f":"Planning!B127","v":0},{"$f":"Planning!C127","v":0},{"$f":"Planning!D127","v":0},{"$f":"Planning!E127","v":0},{"$f":"IF(Planning!G127<>0,Planning!G127,\"\")","v":""},{"$f":"Planning!H127","v":0},{"$f":"Planning!R127","v":0},{"$f":"IF(OR(W143=\"1\",AND(W143<>\"1\",G143=Lists!$A$17)),Y143,0)","v":0},null,{"$f":"IF(AND(W143=\"2\",G143<>Lists!$A$17),AA143,Z143)","v":""},"",{"$f":"Planning!S127","v":{"v":0,"d":"0.00"}},{"$f":"'Month 3'!M143+'Month 3'!N143-'Month 3'!O143","v":{"v":0,"d":"0.00"}},null,"","",{"$f":"SUMIFS($J$25:$J$224,$C$25:$C$224,$C143,$G$25:$G$224,Lists!$A$16)","v":0},0,null,"",null,{"$f":"IF(C143=0,\"\",LEFT(INDEX(Lists!$H$5:$H$49,MATCH(C143,Lists!$G$5:$G$49,0),1),1))","v":""},null,{"$f":"'Month 3'!H143+'Month 3'!I143-'Month 3'!J143","v":0},"","",null,"0"]
[{"$f":"Planning!A128","v":"I120"},{"$f":"Planning!B128","v":0},{"$f":"Planning!C128","v":0},{"$f":"Planning!D128","v":0},{"$f":"Planning!E128","v":0},{"$f":"IF(Planning!G128<>0,Planning!G128,\"\")","v":""},{"$f":"Planning!H128","v":0},{"$f":"Planning!R128","v":0},{"$f":"IF(OR(W144=\"1\",AND(W144<>\"1\",G144=Lists!$A$17)),Y144,0)","v":0},null,{"$f":"IF(AND(W144=\"2\",G144<>Lists!$A$17),AA144,Z144)","v":""},"",{"$f":"Planning!S128","v":{"v":0,"d":"0.00"}},{"$f":"'Month 3'!M144+'Month 3'!N144-'Month 3'!O144","v":{"v":0,"d":"0.00"}},null,"","",{"$f":"SUMIFS($J$25:$J$224,$C$25:$C$224,$C144,$G$25:$G$224,Lists!$A$16)","v":0},0,null,"",null,{"$f":"IF(C144=0,\"\",LEFT(INDEX(Lists!$H$5:$H$49,MATCH(C144,Lists!$G$5:$G$49,0),1),1))","v":""},null,{"$f":"'Month 3'!H144+'Month 3'!I144-'Month 3'!J144","v":0},"","",null,"0"]
[{"$f":"Planning!A129","v":"I121"},{"$f":"Planning!B129","v":0},{"$f":"Planning!C129","v":0},{"$f":"Planning!D129","v":0},{"$f":"Planning!E129","v":0},{"$f":"IF(Planning!G129<>0,Planning!G129,\"\")","v":""},{"$f":"Planning!H129","v":0},{"$f":"Planning!R129","v":0},{"$f":"IF(OR(W145=\"1\",AND(W145<>\"1\",G145=Lists!$A$17)),Y145,0)","v":0},null,{"$f":"IF(AND(W145=\"2\",G145<>Lists!$A$17),AA145,Z145)","v":""},"",{"$f":"Planning!S129","v":{"v":0,"d":"0.00"}},{"$f":"'Month 3'!M145+'Month 3'!N145-'Month 3'!O145","v":{"v":0,"d":"0.00"}},null,"","",{"$f":"SUMIFS($J$25:$J$224,$C$25:$C$224,$C145,$G$25:$G$224,Lists!$A$16)","v":0},0,null,"",null,{"$f":"IF(C145=0,\"\",LEFT(INDEX(Lists!$H$5:$H$49,MATCH(C145,Lists!$G$5:$G$49,0),1),1))","v":""},null,{"$f":"'Month 3'!H145+'Month 3'!I145-'Month 3'!J145","v":0},"","",null,"0"]
[{"$f":"Planning!A130","v":"I122"},{"$f":"Planning!B130","v":0},{"$f":"Planning!C130","v":0},{"$f":"Planning!D130","v":0},{"$f":"Planning!E130","v":0},{"$f":"IF(Planning!G130<>0,Planning!G130,\"\")","v":""},{"$f":"Planning!H130","v":0},{"$f":"Planning!R130","v":0},{"$f":"IF(OR(W146=\"1\",AND(W146<>\"1\",G146=Lists!$A$17)),Y146,0)","v":0},null,{"$f":"IF(AND(W146=\"2\",G146<>Lists!$A$17),AA146,Z146)","v":""},"",{"$f":"Planning!S130","v":{"v":0,"d":"0.00"}},{"$f":"'Month 3'!M146+'Month 3'!N146-'Month 3'!O146","v":{"v":0,"d":"0.00"}},null,"","",{"$f":"SUMIFS($J$25:$J$224,$C$25:$C$224,$C146,$G$25:$G$224,Lists!$A$16)","v":0},0,null,"",null,{"$f":"IF(C146=0,\"\",LEFT(INDEX(Lists!$H$5:$H$49,MATCH(C146,Lists!$G$5:$G$49,0),1),1))","v":""},null,{"$f":"'Month 3'!H146+'Month 3'!I146-'Month 3'!J146","v":0},"","",null,"0"]
[{"$f":"Planning!A131","v":"I123"},{"$f":"Planning!B131","v":0},{"$f":"Planning!C131","v":0},{"$f":"Planning!D131","v":0},{"$f":"Planning!E131","v":0},{"$f":"IF(Planning!G131<>0,Planning!G131,\"\")","v":""},{"$f":"Planning!H131","v":0},{"$f":"Planning!R131","v":0},{"$f":"IF(OR(W147=\"1\",AND(W147<>\"1\",G147=Lists!$A$17)),Y147,0)","v":0},null,{"$f":"IF(AND(W147=\"2\",G147<>Lists!$A$17),AA147,Z147)","v":""},"",{"$f":"Planning!S131","v":{"v":0,"d":"0.00"}},{"$f":"'Month 3'!M147+'Month 3'!N147-'Month 3'!O147","v":{"v":0,"d":"0.00"}},null,"","",{"$f":"SUMIFS($J$25:$J$224,$C$25:$C$224,$C147,$G$25:$G$224,Lists!$A$16)","v":0},0,null,"",null,{"$f":"IF(C147=0,\"\",LEFT(INDEX(Lists!$H$5:$H$49,MATCH(C147,Lists!$G$5:$G$49,0),1),1))","v":""},null,{"$f":"'Month 3'!H147+'Month 3'!I147-'Month 3'!J147","v":0},"","",null,"0"]
[{"$f":"Planning!A132","v":"I124"},{"$f":"Planning!B132","v":0},{"$f":"Planning!C132","v":0},{"$f":"Planning!D132","v":0},{"$f":"Planning!E132","v":0},{"$f":"IF(Planning!G132<>0,Planning!G132,\"\")","v":""},{"$f":"Planning!H132","v":0},{"$f":"Planning!R132","v":0},{"$f":"IF(OR(W148=\"1\",AND(W148<>\"1\",G148=Lists!$A$17)),Y148,0)","v":0},null,{"$f":"IF(AND(W148=\"2\",G148<>Lists!$A$17),AA148,Z148)","v":""},"",{"$f":"Planning!S132","v":{"v":0,"d":"0.00"}},{"$f":"'Month 3'!M148+'Month 3'!N148-'Month 3'!O148","v":{"v":0,"d":"0.00"}},null,"","",{"$f":"SUMIFS($J$25:$J$224,$C$25:$C$224,$C148,$G$25:$G$224,Lists!$A$16)","v":0},0,null,"",null,{"$f":"IF(C148=0,\"\",LEFT(INDEX(Lists!$H$5:$H$49,MATCH(C148,Lists!$G$5:$G$49,0),1),1))","v":""},null,{"$f":"'Month 3'!H148+'Month 3'!I148-'Month 3'!J148","v":0},"","",null,"0"]
[{"$f":"Planning!A133","v":"I125"},{"$f":"Planning!B133","v":0},{"$f":"Planning!C133","v":0},{"$f":"Planning!D133","v":0},{"$f":"Planning!E133","v":0},{"$f":"IF(Planning!G133<>0,Planning!G133,\"\")","v":""},{"$f":"Planning!H133","v":0},{"$f":"Planning!R133","v":0},{"$f":"IF(OR(W149=\"1\",AND(W149<>\"1\",G149=Lists!$A$17)),Y149,0)","v":0},null,{"$f":"IF(AND(W149=\"2\",G149<>Lists!$A$17),AA149,Z149)","v":""},"",{"$f":"Planning!S133","v":{"v":0,"d":"0.00"}},{"$f":"'Month 3'!M149+'Month 3'!N149-'Month 3'!O149","v":{"v":0,"d":"0.00"}},null,"","",{"$f":"SUMIFS($J$25:$J$224,$C$25:$C$224,$C149,$G$25:$G$224,Lists!$A$16)","v":0},0,null,"",null,{"$f":"IF(C149=0,\"\",LEFT(INDEX(Lists!$H$5:$H$49,MATCH(C149,Lists!$G$5:$G$49,0),1),1))","v":""},null,{"$f":"'Month 3'!H149+'Month 3'!I149-'Month 3'!J149","v":0},"","",null,"0"]
[{"$f":"Planning!A134","v":"I126"},{"$f":"Planning!B134","v":0},{"$f":"Planning!C134","v":0},{"$f":"Planning!D134","v":0},{"$f":"Planning!E134","v":0},{"$f":"IF(Planning!G134<>0,Planning!G134,\"\")","v":""},{"$f":"Planning!H134","v":0},{"$f":"Planning!R134","v":0},{"$f":"IF(OR(W150=\"1\",AND(W150<>\"1\",G150=Lists!$A$17)),Y150,0)","v":0},null,{"$f":"IF(AND(W150=\"2\",G150<>Lists!$A$17),AA150,Z150)","v":""},"",{"$f":"Planning!S134","v":{"v":0,"d":"0.00"}},{"$f":"'Month 3'!M150+'Month 3'!N150-'Month 3'!O150","v":{"v":0,"d":"0.00"}},null,"","",{"$f":"SUMIFS($J$25:$J$224,$C$25:$C$224,$C150,$G$25:$G$224,Lists!$A$16)","v":0},0,null,"",null,{"$f":"IF(C150=0,\"\",LEFT(INDEX(Lists!$H$5:$H$49,MATCH(C150,Lists!$G$5:$G$49,0),1),1))","v":""},null,{"$f":"'Month 3'!H150+'Month 3'!I150-'Month 3'!J150","v":0},"","",null,"0"]
[{"$f":"Planning!A135","v":"I127"},{"$f":"Planning!B135","v":0},{"$f":"Planning!C135","v":0},{"$f":"Planning!D135","v":0},{"$f":"Planning!E135","v":0},{"$f":"IF(Planning!G135<>0,Planning!G135,\"\")","v":""},{"$f":"Planning!H135","v":0},{"$f":"Planning!R135","v":0},{"$f":"IF(OR(W151=\"1\",AND(W151<>\"1\",G151=Lists!$A$17)),Y151,0)","v":0},null,{"$f":"IF(AND(W151=\"2\",G151<>Lists!$A$17),AA151,Z151)","v":""},"",{"$f":"Planning!S135","v":{"v":0,"d":"0.00"}},{"$f":"'Month 3'!M151+'Month 3'!N151-'Month 3'!O151","v":{"v":0,"d":"0.00"}},null,"","",{"$f":"SUMIFS($J$25:$J$224,$C$25:$C$224,$C151,$G$25:$G$224,Lists!$A$16)","v":0},0,null,"",null,{"$f":"IF(C151=0,\"\",LEFT(INDEX(Lists!$H$5:$H$49,MATCH(C151,Lists!$G$5:$G$49,0),1),1))","v":""},null,{"$f":"'Month 3'!H151+'Month 3'!I151-'Month 3'!J151","v":0},"","",null,"0"]
[{"$f":"Planning!A136","v":"I128"},{"$f":"Planning!B136","v":0},{"$f":"Planning!C136","v":0},{"$f":"Planning!D136","v":0},{"$f":"Planning!E136","v":0},{"$f":"IF(Planning!G136<>0,Planning!G136,\"\")","v":""},{"$f":"Planning!H136","v":0},{"$f":"Planning!R136","v":0},{"$f":"IF(OR(W152=\"1\",AND(W152<>\"1\",G152=Lists!$A$17)),Y152,0)","v":0},null,{"$f":"IF(AND(W152=\"2\",G152<>Lists!$A$17),AA152,Z152)","v":""},"",{"$f":"Planning!S136","v":{"v":0,"d":"0.00"}},{"$f":"'Month 3'!M152+'Month 3'!N152-'Month 3'!O152","v":{"v":0,"d":"0.00"}},null,"","",{"$f":"SUMIFS($J$25:$J$224,$C$25:$C$224,$C152,$G$25:$G$224,Lists!$A$16)","v":0},0,null,"",null,{"$f":"IF(C152=0,\"\",LEFT(INDEX(Lists!$H$5:$H$49,MATCH(C152,Lists!$G$5:$G$49,0),1),1))","v":""},null,{"$f":"'Month 3'!H152+'Month 3'!I152-'Month 3'!J152","v":0},"","",null,"0"]
[{"$f":"Planning!A137","v":"I129"},{"$f":"Planning!B137","v":0},{"$f":"Planning!C137","v":0},{"$f":"Planning!D137","v":0},{"$f":"Planning!E137","v":0},{"$f":"IF(Planning!G137<>0,Planning!G137,\"\")","v":""},{"$f":"Planning!H137","v":0},{"$f":"Planning!R137","v":0},{"$f":"IF(OR(W153=\"1\",AND(W153<>\"1\",G153=Lists!$A$17)),Y153,0)","v":0},null,{"$f":"IF(AND(W153=\"2\",G153<>Lists!$A$17),AA153,Z153)","v":""},{"$f":"IF($U153=ExcluirDelPLogro,\"\",IF(AND(H153=0,I153=0,J153=0),\"\",K153))","v":""},{"$f":"Planning!S137","v":{"v":0,"d":"0.00"}},{"$f":"'Month 3'!M153+'Month 3'!N153-'Month 3'!O153","v":{"v":0,"d":"0.00"}},null,"",{"$f":"IF($U153=ExcluirDelPLogro,\"\",IF(AND(M153=0,N153=0,O153=0),\"\",P153))","v":""},{"$f":"SUMIFS($J$25:$J$224,$C$25:$C$224,$C153,$G$25:$G$224,Lists!$A$16)","v":0},0,null,"",null,{"$f":"IF(C153=0,\"\",LEFT(INDEX(Lists!$H$5:$H$49,MATCH(C153,Lists!$G$5:$G$49,0),1),1))","v":""},null,{"$f":"'Month 3'!H153+'Month 3'!I153-'Month 3'!J153","v":0},"",{"$f":"IF(AND(H153=0,I153=0,J153=0),\"\",IF(J153>0,H153/J153,0))","v":""},null,"0"]
[{"$f":"Planning!A138","v":"I130"},{"$f":"Planning!B138","v":0},{"$f":"Planning!C138","v":0},{"$f":"Planning!D138","v":0},{"$f":"Planning!E138","v":0},{"$f":"IF(Planning!G138<>0,Planning!G138,\"\")","v":""},{"$f":"Planning!H138","v":0},{"$f":"Planning!R138","v":0},{"$f":"IF(OR(W154=\"1\",AND(W154<>\"1\",G154=Lists!$A$17)),Y154,0)","v":0},null,{"$f":"IF(AND(W154=\"2\",G154<>Lists!$A$17),AA154,Z154)","v":""},"",{"$f":"Planning!S138","v":{"v":0,"d":"0.00"}},{"$f":"'Month 3'!M154+'Month 3'!N154-'Month 3'!O154","v":{"v":0,"d":"0.00"}},null,{"$f":"IF(AND(M154=0,N154=0,O154=0),\"\",IF((M154+N154)>0,O154/(M154+N154),O154))","v":""},"",{"$f":"SUMIFS($J$25:$J$224,$C$25:$C$224,$C154,$G$25:$G$224,Lists!$A$16)","v":0},{"$f":"SUMIFS($O$25:$O$224,$C$25:$C$224,$C154,$G$25:$G$224,\"<>0\")","v":0},null,{"$f":"IF(B154=0,\"\",IF(LEFT(B154,1)=\"1\",\"1\",\"2\"))","v":""},null,{"$f":"IF(C154=0,\"\",LEFT(INDEX(Lists!$H$5:$H$49,MATCH(C154,Lists!$G$5:$G$49,0),1),1))","v":""},null,{"$f":"'Month 3'!H154+'Month 3'!I154-'Month 3'!J154","v":0},{"$f":"IF(AND(H154=0,I154=0,J154=0),\"\",IF((H154+I154)>0,J154/(H154+I154),J154))","v":""},"",null,{"$f":"U154&C154","v":"0"}]
[{"$f":"Planning!A139","v":"I131"},{"$f":"Planning!B139","v":0},{"$f":"Planning!C139","v":0},{"$f":"Planning!D139","v":0},{"$f":"Planning!E139","v":0},{"$f":"IF(Planning!G139<>0,Planning!G139,\"\")","v":""},{"$f":"Planning!H139","v":0},{"$f":"Planning!R139","v":0},{"$f":"IF(OR(W155=\"1\",AND(W155<>\"1\",G155=Lists!$A$17)),Y155,0)","v":0},null,{"$f":"IF(AND(W155=\"2\",G155<>Lists!$A$17),AA155,Z155)","v":""},"",{"$f":"Planning!S139","v":{"v":0,"d":"0.00"}},{"$f":"'Month 3'!M155+'Month 3'!N155-'Month 3'!O155","v":{"v":0,"d":"0.00"}},null,"","",{"$f":"SUMIFS($J$25:$J$224,$C$25:$C$224,$C155,$G$25:$G$224,Lists!$A$16)","v":0},0,null,"",null,{"$f":"IF(C155=0,\"\",LEFT(INDEX(Lists!$H$5:$H$49,MATCH(C155,Lists!$G$5:$G$49,0),1),1))","v":""},null,{"$f":"'Month 3'!H155+'Month 3'!I155-'Month 3'!J155","v":0},"","",null,"0"]
[{"$f":"Planning!A140","v":"I132"},{"$f":"Planning!B140","v":0},{"$f":"Planning!C140","v":0},{"$f":"Planning!D140","v":0},{"$f":"Planning!E140","v":0},{"$f":"IF(Planning!G140<>0,Planning!G140,\"\")","v":""},{"$f":"Planning!H140","v":0},{"$f":"Planning!R140","v":0},{"$f":"IF(OR(W156=\"1\",AND(W156<>\"1\",G156=Lists!$A$17)),Y156,0)","v":0},null,{"$f":"IF(AND(W156=\"2\",G156<>Lists!$A$17),AA156,Z156)","v":""},"",{"$f":"Planning!S140","v":{"v":0,"d":"0.00"}},{"$f":"'Month 3'!M156+'Month 3'!N156-'Month 3'!O156","v":{"v":0,"d":"0.00"}},null,"","",{"$f":"SUMIFS($J$25:$J$224,$C$25:$C$224,$C156,$G$25:$G$224,Lists!$A$16)","v":0},0,null,"",null,{"$f":"IF(C156=0,\"\",LEFT(INDEX(Lists!$H$5:$H$49,MATCH(C156,Lists!$G$5:$G$49,0),1),1))","v":""},null,{"$f":"'Month 3'!H156+'Month 3'!I156-'Month 3'!J156","v":0},"","",null,"0"]
[{"$f":"Planning!A141","v":"I133"},{"$f":"Planning!B141","v":0},{"$f":"Planning!C141","v":0},{"$f":"Planning!D141","v":0},{"$f":"Planning!E141","v":0},{"$f":"IF(Planning!G141<>0,Planning!G141,\"\")","v":""},{"$f":"Planning!H141","v":0},{"$f":"Planning!R141","v":0},{"$f":"IF(OR(W157=\"1\",AND(W157<>\"1\",G157=Lists!$A$17)),Y157,0)","v":0},null,{"$f":"IF(AND(W157=\"2\",G157<>Lists!$A$17),AA157,Z157)","v":""},"",{"$f":"Planning!S141","v":{"v":0,"d":"0.00"}},{"$f":"'Month 3'!M157+'Month 3'!N157-'Month 3'!O157","v":{"v":0,"d":"0.00"}},null,"","",{"$f":"SUMIFS($J$25:$J$224,$C$25:$C$224,$C157,$G$25:$G$224,Lists!$A$16)","v":0},0,null,"",null,{"$f":"IF(C157=0,\"\",LEFT(INDEX(Lists!$H$5:$H$49,MATCH(C157,Lists!$G$5:$G$49,0),1),1))","v":""},null,{"$f":"'Month 3'!H157+'Month 3'!I157-'Month 3'!J157","v":0},"","",null,"0"]
[{"$f":"Planning!A142","v":"I134"},{"$f":"Planning!B142","v":0},{"$f":"Planning!C142","v":0},{"$f":"Planning!D142","v":0},{"$f":"Planning!E142","v":0},{"$f":"IF(Planning!G142<>0,Planning!G142,\"\")","v":""},{"$f":"Planning!H142","v":0},{"$f":"Planning!R142","v":0},{"$f":"IF(OR(W158=\"1\",AND(W158<>\"1\",G158=Lists!$A$17)),Y158,0)","v":0},null,{"$f":"IF(AND(W158=\"2\",G158<>Lists!$A$17),AA158,Z158)","v":""},"",{"$f":"Planning!S142","v":{"v":0,"d":"0.00"}},{"$f":"'Month 3'!M158+'Month 3'!N158-'Month 3'!O158","v":{"v":0,"d":"0.00"}},null,"","",{"$f":"SUMIFS($J$25:$J$224,$C$25:$C$224,$C158,$G$25:$G$224,Lists!$A$16)","v":0},0,null,"",null,{"$f":"IF(C158=0,\"\",LEFT(INDEX(Lists!$H$5:$H$49,MATCH(C158,Lists!$G$5:$G$49,0),1),1))","v":""},null,{"$f":"'Month 3'!H158+'Month 3'!I158-'Month 3'!J158","v":0},"","",null,"0"]
[{"$f":"Planning!A143","v":"I135"},{"$f":"Planning!B143","v":0},{"$f":"Planning!C143","v":0},{"$f":"Planning!D143","v":0},{"$f":"Planning!E143","v":0},{"$f":"IF(Planning!G143<>0,Planning!G143,\"\")","v":""},{"$f":"Planning!H143","v":0},{"$f":"Planning!R143","v":0},{"$f":"IF(OR(W159=\"1\",AND(W159<>\"1\",G159=Lists!$A$17)),Y159,0)","v":0},null,{"$f":"IF(AND(W159=\"2\",G159<>Lists!$A$17),AA159,Z159)","v":""},"",{"$f":"Planning!S143","v":{"v":0,"d":"0.00"}},{"$f":"'Month 3'!M159+'Month 3'!N159-'Month 3'!O159","v":{"v":0,"d":"0.00"}},null,"","",{"$f":"SUMIFS($J$25:$J$224,$C$25:$C$224,$C159,$G$25:$G$224,Lists!$A$16)","v":0},0,null,"",null,{"$f":"IF(C159=0,\"\",LEFT(INDEX(Lists!$H$5:$H$49,MATCH(C159,Lists!$G$5:$G$49,0),1),1))","v":""},null,{"$f":"'Month 3'!H159+'Month 3'!I159-'Month 3'!J159","v":0},"","",null,"0"]
[{"$f":"Planning!A144","v":"I136"},{"$f":"Planning!B144","v":0},{"$f":"Planning!C144","v":0},{"$f":"Planning!D144","v":0},{"$f":"Planning!E144","v":0},{"$f":"IF(Planning!G144<>0,Planning!G144,\"\")","v":""},{"$f":"Planning!H144","v":0},{"$f":"Planning!R144","v":0},{"$f":"IF(OR(W160=\"1\",AND(W160<>\"1\",G160=Lists!$A$17)),Y160,0)","v":0},null,{"$f":"IF(AND(W160=\"2\",G160<>Lists!$A$17),AA160,Z160)","v":""},"",{"$f":"Planning!S144","v":{"v":0,"d":"0.00"}},{"$f":"'Month 3'!M160+'Month 3'!N160-'Month 3'!O160","v":{"v":0,"d":"0.00"}},null,"","",{"$f":"SUMIFS($J$25:$J$224,$C$25:$C$224,$C160,$G$25:$G$224,Lists!$A$16)","v":0},0,null,"",null,{"$f":"IF(C160=0,\"\",LEFT(INDEX(Lists!$H$5:$H$49,MATCH(C160,Lists!$G$5:$G$49,0),1),1))","v":""},null,{"$f":"'Month 3'!H160+'Month 3'!I160-'Month 3'!J160","v":0},"","",null,"0"]
[{"$f":"Planning!A145","v":"I137"},{"$f":"Planning!B145","v":0},{"$f":"Planning!C145","v":0},{"$f":"Planning!D145","v":0},{"$f":"Planning!E145","v":0},{"$f":"IF(Planning!G145<>0,Planning!G145,\"\")","v":""},{"$f":"Planning!H145","v":0},{"$f":"Planning!R145","v":0},{"$f":"IF(OR(W161=\"1\",AND(W161<>\"1\",G161=Lists!$A$17)),Y161,0)","v":0},null,{"$f":"IF(AND(W161=\"2\",G161<>Lists!$A$17),AA161,Z161)","v":""},"",{"$f":"Planning!S145","v":{"v":0,"d":"0.00"}},{"$f":"'Month 3'!M161+'Month 3'!N161-'Month 3'!O161","v":{"v":0,"d":"0.00"}},null,"","",{"$f":"SUMIFS($J$25:$J$224,$C$25:$C$224,$C161,$G$25:$G$224,Lists!$A$16)","v":0},0,null,"",null,{"$f":"IF(C161=0,\"\",LEFT(INDEX(Lists!$H$5:$H$49,MATCH(C161,Lists!$G$5:$G$49,0),1),1))","v":""},null,{"$f":"'Month 3'!H161+'Month 3'!I161-'Month 3'!J161","v":0},"","",null,"0"]
[{"$f":"Planning!A146","v":"I138"},{"$f":"Planning!B146","v":0},{"$f":"Planning!C146","v":0},{"$f":"Planning!D146","v":0},{"$f":"Planning!E146","v":0},{"$f":"IF(Planning!G146<>0,Planning!G146,\"\")","v":""},{"$f":"Planning!H146","v":0},{"$f":"Planning!R146","v":0},{"$f":"IF(OR(W162=\"1\",AND(W162<>\"1\",G162=Lists!$A$17)),Y162,0)","v":0},null,{"$f":"IF(AND(W162=\"2\",G162<>Lists!$A$17),AA162,Z162)","v":""},"",{"$f":"Planning!S146","v":{"v":0,"d":"0.00"}},{"$f":"'Month 3'!M162+'Month 3'!N162-'Month 3'!O162","v":{"v":0,"d":"0.00"}},null,"","",{"$f":"SUMIFS($J$25:$J$224,$C$25:$C$224,$C162,$G$25:$G$224,Lists!$A$16)","v":0},0,null,"",null,{"$f":"IF(C162=0,\"\",LEFT(INDEX(Lists!$H$5:$H$49,MATCH(C162,Lists!$G$5:$G$49,0),1),1))","v":""},null,{"$f":"'Month 3'!H162+'Month 3'!I162-'Month 3'!J162","v":0},"","",null,"0"]
[{"$f":"Planning!A147","v":"I139"},{"$f":"Planning!B147","v":0},{"$f":"Planning!C147","v":0},{"$f":"Planning!D147","v":0},{"$f":"Planning!E147","v":0},{"$f":"IF(Planning!G147<>0,Planning!G147,\"\")","v":""},{"$f":"Planning!H147","v":0},{"$f":"Planning!R147","v":0},{"$f":"IF(OR(W163=\"1\",AND(W163<>\"1\",G163=Lists!$A$17)),Y163,0)","v":0},null,{"$f":"IF(AND(W163=\"2\",G163<>Lists!$A$17),AA163,Z163)","v":""},"",{"$f":"Planning!S147","v":{"v":0,"d":"0.00"}},{"$f":"'Month 3'!M163+'Month 3'!N163-'Month 3'!O163","v":{"v":0,"d":"0.00"}},null,"","",{"$f":"SUMIFS($J$25:$J$224,$C$25:$C$224,$C163,$G$25:$G$224,Lists!$A$16)","v":0},0,null,"",null,{"$f":"IF(C163=0,\"\",LEFT(INDEX(Lists!$H$5:$H$49,MATCH(C163,Lists!$G$5:$G$49,0),1),1))","v":""},null,{"$f":"'Month 3'!H163+'Month 3'!I163-'Month 3'!J163","v":0},"","",null,"0"]
[{"$f":"Planning!A148","v":"I140"},{"$f":"Planning!B148","v":0},{"$f":"Planning!C148","v":0},{"$f":"Planning!D148","v":0},{"$f":"Planning!E148","v":0},{"$f":"IF(Planning!G148<>0,Planning!G148,\"\")","v":""},{"$f":"Planning!H148","v":0},{"$f":"Planning!R148","v":0},{"$f":"IF(OR(W164=\"1\",AND(W164<>\"1\",G164=Lists!$A$17)),Y164,0)","v":0},null,{"$f":"IF(AND(W164=\"2\",G164<>Lists!$A$17),AA164,Z164)","v":""},"",{"$f":"Planning!S148","v":{"v":0,"d":"0.00"}},{"$f":"'Month 3'!M164+'Month 3'!N164-'Month 3'!O164","v":{"v":0,"d":"0.00"}},null,"","",{"$f":"SUMIFS($J$25:$J$224,$C$25:$C$224,$C164,$G$25:$G$224,Lists!$A$16)","v":0},0,null,"",null,{"$f":"IF(C164=0,\"\",LEFT(INDEX(Lists!$H$5:$H$49,MATCH(C164,Lists!$G$5:$G$49,0),1),1))","v":""},null,{"$f":"'Month 3'!H164+'Month 3'!I164-'Month 3'!J164","v":0},"","",null,"0"]
[{"$f":"Planning!A149","v":"I141"},{"$f":"Planning!B149","v":0},{"$f":"Planning!C149","v":0},{"$f":"Planning!D149","v":0},{"$f":"Planning!E149","v":0},{"$f":"IF(Planning!G149<>0,Planning!G149,\"\")","v":""},{"$f":"Planning!H149","v":0},{"$f":"Planning!R149","v":0},{"$f":"IF(OR(W165=\"1\",AND(W165<>\"1\",G165=Lists!$A$17)),Y165,0)","v":0},null,{"$f":"IF(AND(W165=\"2\",G165<>Lists!$A$17),AA165,Z165)","v":""},"",{"$f":"Planning!S149","v":{"v":0,"d":"0.00"}},{"$f":"'Month 3'!M165+'Month 3'!N165-'Month 3'!O165","v":{"v":0,"d":"0.00"}},null,"","",{"$f":"SUMIFS($J$25:$J$224,$C$25:$C$224,$C165,$G$25:$G$224,Lists!$A$16)","v":0},0,null,"",null,{"$f":"IF(C165=0,\"\",LEFT(INDEX(Lists!$H$5:$H$49,MATCH(C165,Lists!$G$5:$G$49,0),1),1))","v":""},null,{"$f":"'Month 3'!H165+'Month 3'!I165-'Month 3'!J165","v":0},"","",null,"0"]
[{"$f":"Planning!A150","v":"I142"},{"$f":"Planning!B150","v":0},{"$f":"Planning!C150","v":0},{"$f":"Planning!D150","v":0},{"$f":"Planning!E150","v":0},{"$f":"IF(Planning!G150<>0,Planning!G150,\"\")","v":""},{"$f":"Planning!H150","v":0},{"$f":"Planning!R150","v":0},{"$f":"IF(OR(W166=\"1\",AND(W166<>\"1\",G166=Lists!$A$17)),Y166,0)","v":0},null,{"$f":"IF(AND(W166=\"2\",G166<>Lists!$A$17),AA166,Z166)","v":""},"",{"$f":"Planning!S150","v":{"v":0,"d":"0.00"}},{"$f":"'Month 3'!M166+'Month 3'!N166-'Month 3'!O166","v":{"v":0,"d":"0.00"}},null,"","",{"$f":"SUMIFS($J$25:$J$224,$C$25:$C$224,$C166,$G$25:$G$224,Lists!$A$16)","v":0},0,null,"",null,{"$f":"IF(C166=0,\"\",LEFT(INDEX(Lists!$H$5:$H$49,MATCH(C166,Lists!$G$5:$G$49,0),1),1))","v":""},null,{"$f":"'Month 3'!H166+'Month 3'!I166-'Month 3'!J166","v":0},"","",null,"0"]
[{"$f":"Planning!A151","v":"I143"},{"$f":"Planning!B151","v":0},{"$f":"Planning!C151","v":0},{"$f":"Planning!D151","v":0},{"$f":"Planning!E151","v":0},{"$f":"IF(Planning!G151<>0,Planning!G151,\"\")","v":""},{"$f":"Planning!H151","v":0},{"$f":"Planning!R151","v":0},{"$f":"IF(OR(W167=\"1\",AND(W167<>\"1\",G167=Lists!$A$17)),Y167,0)","v":0},null,{"$f":"IF(AND(W167=\"2\",G167<>Lists!$A$17),AA167,Z167)","v":""},"",{"$f":"Planning!S151","v":{"v":0,"d":"0.00"}},{"$f":"'Month 3'!M167+'Month 3'!N167-'Month 3'!O167","v":{"v":0,"d":"0.00"}},null,"","",{"$f":"SUMIFS($J$25:$J$224,$C$25:$C$224,$C167,$G$25:$G$224,Lists!$A$16)","v":0},0,null,"",null,{"$f":"IF(C167=0,\"\",LEFT(INDEX(Lists!$H$5:$H$49,MATCH(C167,Lists!$G$5:$G$49,0),1),1))","v":""},null,{"$f":"'Month 3'!H167+'Month 3'!I167-'Month 3'!J167","v":0},"","",null,"0"]
[{"$f":"Planning!A152","v":"I144"},{"$f":"Planning!B152","v":0},{"$f":"Planning!C152","v":0},{"$f":"Planning!D152","v":0},{"$f":"Planning!E152","v":0},{"$f":"IF(Planning!G152<>0,Planning!G152,\"\")","v":""},{"$f":"Planning!H152","v":0},{"$f":"Planning!R152","v":0},{"$f":"IF(OR(W168=\"1\",AND(W168<>\"1\",G168=Lists!$A$17)),Y168,0)","v":0},null,{"$f":"IF(AND(W168=\"2\",G168<>Lists!$A$17),AA168,Z168)","v":""},"",{"$f":"Planning!S152","v":{"v":0,"d":"0.00"}},{"$f":"'Month 3'!M168+'Month 3'!N168-'Month 3'!O168","v":{"v":0,"d":"0.00"}},null,"","",{"$f":"SUMIFS($J$25:$J$224,$C$25:$C$224,$C168,$G$25:$G$224,Lists!$A$16)","v":0},0,null,"",null,{"$f":"IF(C168=0,\"\",LEFT(INDEX(Lists!$H$5:$H$49,MATCH(C168,Lists!$G$5:$G$49,0),1),1))","v":""},null,{"$f":"'Month 3'!H168+'Month 3'!I168-'Month 3'!J168","v":0},"","",null,"0"]
[{"$f":"Planning!A153","v":"I145"},{"$f":"Planning!B153","v":0},{"$f":"Planning!C153","v":0},{"$f":"Planning!D153","v":0},{"$f":"Planning!E153","v":0},{"$f":"IF(Planning!G153<>0,Planning!G153,\"\")","v":""},{"$f":"Planning!H153","v":0},{"$f":"Planning!R153","v":0},{"$f":"IF(OR(W169=\"1\",AND(W169<>\"1\",G169=Lists!$A$17)),Y169,0)","v":0},null,{"$f":"IF(AND(W169=\"2\",G169<>Lists!$A$17),AA169,Z169)","v":""},"",{"$f":"Planning!S153","v":{"v":0,"d":"0.00"}},{"$f":"'Month 3'!M169+'Month 3'!N169-'Month 3'!O169","v":{"v":0,"d":"0.00"}},null,"","",{"$f":"SUMIFS($J$25:$J$224,$C$25:$C$224,$C169,$G$25:$G$224,Lists!$A$16)","v":0},0,null,"",null,{"$f":"IF(C169=0,\"\",LEFT(INDEX(Lists!$H$5:$H$49,MATCH(C169,Lists!$G$5:$G$49,0),1),1))","v":""},null,{"$f":"'Month 3'!H169+'Month 3'!I169-'Month 3'!J169","v":0},"","",null,"0"]
[{"$f":"Planning!A154","v":"I146"},{"$f":"Planning!B154","v":0},{"$f":"Planning!C154","v":0},{"$f":"Planning!D154","v":0},{"$f":"Planning!E154","v":0},{"$f":"IF(Planning!G154<>0,Planning!G154,\"\")","v":""},{"$f":"Planning!H154","v":0},{"$f":"Planning!R154","v":0},{"$f":"IF(OR(W170=\"1\",AND(W170<>\"1\",G170=Lists!$A$17)),Y170,0)","v":0},null,{"$f":"IF(AND(W170=\"2\",G170<>Lists!$A$17),AA170,Z170)","v":""},"",{"$f":"Planning!S154","v":{"v":0,"d":"0.00"}},{"$f":"'Month 3'!M170+'Month 3'!N170-'Month 3'!O170","v":{"v":0,"d":"0.00"}},null,"","",{"$f":"SUMIFS($J$25:$J$224,$C$25:$C$224,$C170,$G$25:$G$224,Lists!$A$16)","v":0},0,null,"",null,{"$f":"IF(C170=0,\"\",LEFT(INDEX(Lists!$H$5:$H$49,MATCH(C170,Lists!$G$5:$G$49,0),1),1))","v":""},null,{"$f":"'Month 3'!H170+'Month 3'!I170-'Month 3'!J170","v":0},"","",null,"0"]
[{"$f":"Planning!A155","v":"I147"},{"$f":"Planning!B155","v":0},{"$f":"Planning!C155","v":0},{"$f":"Planning!D155","v":0},{"$f":"Planning!E155","v":0},{"$f":"IF(Planning!G155<>0,Planning!G155,\"\")","v":""},{"$f":"Planning!H155","v":0},{"$f":"Planning!R155","v":0},{"$f":"IF(OR(W171=\"1\",AND(W171<>\"1\",G171=Lists!$A$17)),Y171,0)","v":0},null,{"$f":"IF(AND(W171=\"2\",G171<>Lists!$A$17),AA171,Z171)","v":""},"",{"$f":"Planning!S155","v":{"v":0,"d":"0.00"}},{"$f":"'Month 3'!M171+'Month 3'!N171-'Month 3'!O171","v":{"v":0,"d":"0.00"}},null,"","",{"$f":"SUMIFS($J$25:$J$224,$C$25:$C$224,$C171,$G$25:$G$224,Lists!$A$16)","v":0},0,null,"",null,{"$f":"IF(C171=0,\"\",LEFT(INDEX(Lists!$H$5:$H$49,MATCH(C171,Lists!$G$5:$G$49,0),1),1))","v":""},null,{"$f":"'Month 3'!H171+'Month 3'!I171-'Month 3'!J171","v":0},"","",null,"0"]
[{"$f":"Planning!A156","v":"I148"},{"$f":"Planning!B156","v":0},{"$f":"Planning!C156","v":0},{"$f":"Planning!D156","v":0},{"$f":"Planning!E156","v":0},{"$f":"IF(Planning!G156<>0,Planning!G156,\"\")","v":""},{"$f":"Planning!H156","v":0},{"$f":"Planning!R156","v":0},{"$f":"IF(OR(W172=\"1\",AND(W172<>\"1\",G172=Lists!$A$17)),Y172,0)","v":0},null,{"$f":"IF(AND(W172=\"2\",G172<>Lists!$A$17),AA172,Z172)","v":""},"",{"$f":"Planning!S156","v":{"v":0,"d":"0.00"}},{"$f":"'Month 3'!M172+'Month 3'!N172-'Month 3'!O172","v":{"v":0,"d":"0.00"}},null,"","",{"$f":"SUMIFS($J$25:$J$224,$C$25:$C$224,$C172,$G$25:$G$224,Lists!$A$16)","v":0},0,null,"",null,{"$f":"IF(C172=0,\"\",LEFT(INDEX(Lists!$H$5:$H$49,MATCH(C172,Lists!$G$5:$G$49,0),1),1))","v":""},null,{"$f":"'Month 3'!H172+'Month 3'!I172-'Month 3'!J172","v":0},"","",null,"0"]
[{"$f":"Planning!A157","v":"I149"},{"$f":"Planning!B157","v":0},{"$f":"Planning!C157","v":0},{"$f":"Planning!D157","v":0},{"$f":"Planning!E157","v":0},{"$f":"IF(Planning!G157<>0,Planning!G157,\"\")","v":""},{"$f":"Planning!H157","v":0},{"$f":"Planning!R157","v":0},{"$f":"IF(OR(W173=\"1\",AND(W173<>\"1\",G173=Lists!$A$17)),Y173,0)","v":0},null,{"$f":"IF(AND(W173=\"2\",G173<>Lists!$A$17),AA173,Z173)","v":""},"",{"$f":"Planning!S157","v":{"v":0,"d":"0.00"}},{"$f":"'Month 3'!M173+'Month 3'!N173-'Month 3'!O173","v":{"v":0,"d":"0.00"}},null,"","",{"$f":"SUMIFS($J$25:$J$224,$C$25:$C$224,$C173,$G$25:$G$224,Lists!$A$16)","v":0},0,null,"",null,{"$f":"IF(C173=0,\"\",LEFT(INDEX(Lists!$H$5:$H$49,MATCH(C173,Lists!$G$5:$G$49,0),1),1))","v":""},null,{"$f":"'Month 3'!H173+'Month 3'!I173-'Month 3'!J173","v":0},"","",null,"0"]
[{"$f":"Planning!A158","v":"I150"},{"$f":"Planning!B158","v":0},{"$f":"Planning!C158","v":0},{"$f":"Planning!D158","v":0},{"$f":"Planning!E158","v":0},{"$f":"IF(Planning!G158<>0,Planning!G158,\"\")","v":""},{"$f":"Planning!H158","v":0},{"$f":"Planning!R158","v":0},{"$f":"IF(OR(W174=\"1\",AND(W174<>\"1\",G174=Lists!$A$17)),Y174,0)","v":0},null,{"$f":"IF(AND(W174=\"2\",G174<>Lists!$A$17),AA174,Z174)","v":""},"",{"$f":"Planning!S158","v":{"v":0,"d":"0.00"}},{"$f":"'Month 3'!M174+'Month 3'!N174-'Month 3'!O174","v":{"v":0,"d":"0.00"}},null,"","",{"$f":"SUMIFS($J$25:$J$224,$C$25:$C$224,$C174,$G$25:$G$224,Lists!$A$16)","v":0},0,null,"",null,{"$f":"IF(C174=0,\"\",LEFT(INDEX(Lists!$H$5:$H$49,MATCH(C174,Lists!$G$5:$G$49,0),1),1))","v":""},null,{"$f":"'Month 3'!H174+'Month 3'!I174-'Month 3'!J174","v":0},"","",null,"0"]
[{"$f":"Planning!A159","v":"I151"},{"$f":"Planning!B159","v":0},{"$f":"Planning!C159","v":0},{"$f":"Planning!D159","v":0},{"$f":"Planning!E159","v":0},{"$f":"IF(Planning!G159<>0,Planning!G159,\"\")","v":""},{"$f":"Planning!H159","v":0},{"$f":"Planning!R159","v":0},{"$f":"IF(OR(W175=\"1\",AND(W175<>\"1\",G175=Lists!$A$17)),Y175,0)","v":0},null,{"$f":"IF(AND(W175=\"2\",G175<>Lists!$A$17),AA175,Z175)","v":""},"",{"$f":"Planning!S159","v":{"v":0,"d":"0.00"}},{"$f":"'Month 3'!M175+'Month 3'!N175-'Month 3'!O175","v":{"v":0,"d":"0.00"}},null,"","",{"$f":"SUMIFS($J$25:$J$224,$C$25:$C$224,$C175,$G$25:$G$224,Lists!$A$16)","v":0},0,null,"",null,{"$f":"IF(C175=0,\"\",LEFT(INDEX(Lists!$H$5:$H$49,MATCH(C175,Lists!$G$5:$G$49,0),1),1))","v":""},null,{"$f":"'Month 3'!H175+'Month 3'!I175-'Month 3'!J175","v":0},"","",null,"0"]
[{"$f":"Planning!A160","v":"I152"},{"$f":"Planning!B160","v":0},{"$f":"Planning!C160","v":0},{"$f":"Planning!D160","v":0},{"$f":"Planning!E160","v":0},{"$f":"IF(Planning!G160<>0,Planning!G160,\"\")","v":""},{"$f":"Planning!H160","v":0},{"$f":"Planning!R160","v":0},{"$f":"IF(OR(W176=\"1\",AND(W176<>\"1\",G176=Lists!$A$17)),Y176,0)","v":0},null,{"$f":"IF(AND(W176=\"2\",G176<>Lists!$A$17),AA176,Z176)","v":""},"",{"$f":"Planning!S160","v":{"v":0,"d":"0.00"}},{"$f":"'Month 3'!M176+'Month 3'!N176-'Month 3'!O176","v":{"v":0,"d":"0.00"}},null,"","",{"$f":"SUMIFS($J$25:$J$224,$C$25:$C$224,$C176,$G$25:$G$224,Lists!$A$16)","v":0},0,null,"",null,{"$f":"IF(C176=0,\"\",LEFT(INDEX(Lists!$H$5:$H$49,MATCH(C176,Lists!$G$5:$G$49,0),1),1))","v":""},null,{"$f":"'Month 3'!H176+'Month 3'!I176-'Month 3'!J176","v":0},"","",null,"0"]
[{"$f":"Planning!A161","v":"I153"},{"$f":"Planning!B161","v":0},{"$f":"Planning!C161","v":0},{"$f":"Planning!D161","v":0},{"$f":"Planning!E161","v":0},{"$f":"IF(Planning!G161<>0,Planning!G161,\"\")","v":""},{"$f":"Planning!H161","v":0},{"$f":"Planning!R161","v":0},{"$f":"IF(OR(W177=\"1\",AND(W177<>\"1\",G177=Lists!$A$17)),Y177,0)","v":0},null,{"$f":"IF(AND(W177=\"2\",G177<>Lists!$A$17),AA177,Z177)","v":""},"",{"$f":"Planning!S161","v":{"v":0,"d":"0.00"}},{"$f":"'Month 3'!M177+'Month 3'!N177-'Month 3'!O177","v":{"v":0,"d":"0.00"}},null,"","",{"$f":"SUMIFS($J$25:$J$224,$C$25:$C$224,$C177,$G$25:$G$224,Lists!$A$16)","v":0},0,null,"",null,{"$f":"IF(C177=0,\"\",LEFT(INDEX(Lists!$H$5:$H$49,MATCH(C177,Lists!$G$5:$G$49,0),1),1))","v":""},null,{"$f":"'Month 3'!H177+'Month 3'!I177-'Month 3'!J177","v":0},"","",null,"0"]
[{"$f":"Planning!A162","v":"I154"},{"$f":"Planning!B162","v":0},{"$f":"Planning!C162","v":0},{"$f":"Planning!D162","v":0},{"$f":"Planning!E162","v":0},{"$f":"IF(Planning!G162<>0,Planning!G162,\"\")","v":""},{"$f":"Planning!H162","v":0},{"$f":"Planning!R162","v":0},{"$f":"IF(OR(W178=\"1\",AND(W178<>\"1\",G178=Lists!$A$17)),Y178,0)","v":0},null,{"$f":"IF(AND(W178=\"2\",G178<>Lists!$A$17),AA178,Z178)","v":""},"",{"$f":"Planning!S162","v":{"v":0,"d":"0.00"}},{"$f":"'Month 3'!M178+'Month 3'!N178-'Month 3'!O178","v":{"v":0,"d":"0.00"}},null,"","",{"$f":"SUMIFS($J$25:$J$224,$C$25:$C$224,$C178,$G$25:$G$224,Lists!$A$16)","v":0},0,null,"",null,{"$f":"IF(C178=0,\"\",LEFT(INDEX(Lists!$H$5:$H$49,MATCH(C178,Lists!$G$5:$G$49,0),1),1))","v":""},null,{"$f":"'Month 3'!H178+'Month 3'!I178-'Month 3'!J178","v":0},"","",null,"0"]
[{"$f":"Planning!A163","v":"I155"},{"$f":"Planning!B163","v":0},{"$f":"Planning!C163","v":0},{"$f":"Planning!D163","v":0},{"$f":"Planning!E163","v":0},{"$f":"IF(Planning!G163<>0,Planning!G163,\"\")","v":""},{"$f":"Planning!H163","v":0},{"$f":"Planning!R163","v":0},{"$f":"IF(OR(W179=\"1\",AND(W179<>\"1\",G179=Lists!$A$17)),Y179,0)","v":0},null,{"$f":"IF(AND(W179=\"2\",G179<>Lists!$A$17),AA179,Z179)","v":""},"",{"$f":"Planning!S163","v":{"v":0,"d":"0.00"}},{"$f":"'Month 3'!M179+'Month 3'!N179-'Month 3'!O179","v":{"v":0,"d":"0.00"}},null,"","",{"$f":"SUMIFS($J$25:$J$224,$C$25:$C$224,$C179,$G$25:$G$224,Lists!$A$16)","v":0},0,null,"",null,{"$f":"IF(C179=0,\"\",LEFT(INDEX(Lists!$H$5:$H$49,MATCH(C179,Lists!$G$5:$G$49,0),1),1))","v":""},null,{"$f":"'Month 3'!H179+'Month 3'!I179-'Month 3'!J179","v":0},"","",null,"0"]
[{"$f":"Planning!A164","v":"I156"},{"$f":"Planning!B164","v":0},{"$f":"Planning!C164","v":0},{"$f":"Planning!D164","v":0},{"$f":"Planning!E164","v":0},{"$f":"IF(Planning!G164<>0,Planning!G164,\"\")","v":""},{"$f":"Planning!H164","v":0},{"$f":"Planning!R164","v":0},{"$f":"IF(OR(W180=\"1\",AND(W180<>\"1\",G180=Lists!$A$17)),Y180,0)","v":0},null,{"$f":"IF(AND(W180=\"2\",G180<>Lists!$A$17),AA180,Z180)","v":""},"",{"$f":"Planning!S164","v":{"v":0,"d":"0.00"}},{"$f":"'Month 3'!M180+'Month 3'!N180-'Month 3'!O180","v":{"v":0,"d":"0.00"}},null,"","",{"$f":"SUMIFS($J$25:$J$224,$C$25:$C$224,$C180,$G$25:$G$224,Lists!$A$16)","v":0},0,null,"",null,{"$f":"IF(C180=0,\"\",LEFT(INDEX(Lists!$H$5:$H$49,MATCH(C180,Lists!$G$5:$G$49,0),1),1))","v":""},null,{"$f":"'Month 3'!H180+'Month 3'!I180-'Month 3'!J180","v":0},"","",null,"0"]
[{"$f":"Planning!A165","v":"I157"},{"$f":"Planning!B165","v":0},{"$f":"Planning!C165","v":0},{"$f":"Planning!D165","v":0},{"$f":"Planning!E165","v":0},{"$f":"IF(Planning!G165<>0,Planning!G165,\"\")","v":""},{"$f":"Planning!H165","v":0},{"$f":"Planning!R165","v":0},{"$f":"IF(OR(W181=\"1\",AND(W181<>\"1\",G181=Lists!$A$17)),Y181,0)","v":0},null,{"$f":"IF(AND(W181=\"2\",G181<>Lists!$A$17),AA181,Z181)","v":""},"",{"$f":"Planning!S165","v":{"v":0,"d":"0.00"}},{"$f":"'Month 3'!M181+'Month 3'!N181-'Month 3'!O181","v":{"v":0,"d":"0.00"}},null,"","",{"$f":"SUMIFS($J$25:$J$224,$C$25:$C$224,$C181,$G$25:$G$224,Lists!$A$16)","v":0},0,null,"",null,{"$f":"IF(C181=0,\"\",LEFT(INDEX(Lists!$H$5:$H$49,MATCH(C181,Lists!$G$5:$G$49,0),1),1))","v":""},null,{"$f":"'Month 3'!H181+'Month 3'!I181-'Month 3'!J181","v":0},"","",null,"0"]
[{"$f":"Planning!A166","v":"I158"},{"$f":"Planning!B166","v":0},{"$f":"Planning!C166","v":0},{"$f":"Planning!D166","v":0},{"$f":"Planning!E166","v":0},{"$f":"IF(Planning!G166<>0,Planning!G166,\"\")","v":""},{"$f":"Planning!H166","v":0},{"$f":"Planning!R166","v":0},{"$f":"IF(OR(W182=\"1\",AND(W182<>\"1\",G182=Lists!$A$17)),Y182,0)","v":0},null,{"$f":"IF(AND(W182=\"2\",G182<>Lists!$A$17),AA182,Z182)","v":""},"",{"$f":"Planning!S166","v":{"v":0,"d":"0.00"}},{"$f":"'Month 3'!M182+'Month 3'!N182-'Month 3'!O182","v":{"v":0,"d":"0.00"}},null,"","",{"$f":"SUMIFS($J$25:$J$224,$C$25:$C$224,$C182,$G$25:$G$224,Lists!$A$16)","v":0},0,null,"",null,{"$f":"IF(C182=0,\"\",LEFT(INDEX(Lists!$H$5:$H$49,MATCH(C182,Lists!$G$5:$G$49,0),1),1))","v":""},null,{"$f":"'Month 3'!H182+'Month 3'!I182-'Month 3'!J182","v":0},"","",null,"0"]
[{"$f":"Planning!A167","v":"I159"},{"$f":"Planning!B167","v":0},{"$f":"Planning!C167","v":0},{"$f":"Planning!D167","v":0},{"$f":"Planning!E167","v":0},{"$f":"IF(Planning!G167<>0,Planning!G167,\"\")","v":""},{"$f":"Planning!H167","v":0},{"$f":"Planning!R167","v":0},{"$f":"IF(OR(W183=\"1\",AND(W183<>\"1\",G183=Lists!$A$17)),Y183,0)","v":0},null,{"$f":"IF(AND(W183=\"2\",G183<>Lists!$A$17),AA183,Z183)","v":""},"",{"$f":"Planning!S167","v":{"v":0,"d":"0.00"}},{"$f":"'Month 3'!M183+'Month 3'!N183-'Month 3'!O183","v":{"v":0,"d":"0.00"}},null,"","",{"$f":"SUMIFS($J$25:$J$224,$C$25:$C$224,$C183,$G$25:$G$224,Lists!$A$16)","v":0},0,null,"",null,{"$f":"IF(C183=0,\"\",LEFT(INDEX(Lists!$H$5:$H$49,MATCH(C183,Lists!$G$5:$G$49,0),1),1))","v":""},null,{"$f":"'Month 3'!H183+'Month 3'!I183-'Month 3'!J183","v":0},"","",null,"0"]
[{"$f":"Planning!A168","v":"I160"},{"$f":"Planning!B168","v":0},{"$f":"Planning!C168","v":0},{"$f":"Planning!D168","v":0},{"$f":"Planning!E168","v":0},{"$f":"IF(Planning!G168<>0,Planning!G168,\"\")","v":""},{"$f":"Planning!H168","v":0},{"$f":"Planning!R168","v":0},{"$f":"IF(OR(W184=\"1\",AND(W184<>\"1\",G184=Lists!$A$17)),Y184,0)","v":0},null,{"$f":"IF(AND(W184=\"2\",G184<>Lists!$A$17),AA184,Z184)","v":""},"",{"$f":"Planning!S168","v":{"v":0,"d":"0.00"}},{"$f":"'Month 3'!M184+'Month 3'!N184-'Month 3'!O184","v":{"v":0,"d":"0.00"}},null,"","",{"$f":"SUMIFS($J$25:$J$224,$C$25:$C$224,$C184,$G$25:$G$224,Lists!$A$16)","v":0},0,null,"",null,{"$f":"IF(C184=0,\"\",LEFT(INDEX(Lists!$H$5:$H$49,MATCH(C184,Lists!$G$5:$G$49,0),1),1))","v":""},null,{"$f":"'Month 3'!H184+'Month 3'!I184-'Month 3'!J184","v":0},"","",null,"0"]
[{"$f":"Planning!A169","v":"I161"},{"$f":"Planning!B169","v":0},{"$f":"Planning!C169","v":0},{"$f":"Planning!D169","v":0},{"$f":"Planning!E169","v":0},{"$f":"IF(Planning!G169<>0,Planning!G169,\"\")","v":""},{"$f":"Planning!H169","v":0},{"$f":"Planning!R169","v":0},{"$f":"IF(OR(W185=\"1\",AND(W185<>\"1\",G185=Lists!$A$17)),Y185,0)","v":0},null,{"$f":"IF(AND(W185=\"2\",G185<>Lists!$A$17),AA185,Z185)","v":""},{"$f":"IF($U185=ExcluirDelPLogro,\"\",IF(AND(H185=0,I185=0,J185=0),\"\",K185))","v":""},{"$f":"Planning!S169","v":{"v":0,"d":"0.00"}},{"$f":"'Month 3'!M185+'Month 3'!N185-'Month 3'!O185","v":{"v":0,"d":"0.00"}},null,"",{"$f":"IF($U185=ExcluirDelPLogro,\"\",IF(AND(M185=0,N185=0,O185=0),\"\",P185))","v":""},{"$f":"SUMIFS($J$25:$J$224,$C$25:$C$224,$C185,$G$25:$G$224,Lists!$A$16)","v":0},0,null,"",null,{"$f":"IF(C185=0,\"\",LEFT(INDEX(Lists!$H$5:$H$49,MATCH(C185,Lists!$G$5:$G$49,0),1),1))","v":""},null,{"$f":"'Month 3'!H185+'Month 3'!I185-'Month 3'!J185","v":0},"",{"$f":"IF(AND(H185=0,I185=0,J185=0),\"\",IF(J185>0,H185/J185,0))","v":""},null,"0"]
[{"$f":"Planning!A170","v":"I162"},{"$f":"Planning!B170","v":0},{"$f":"Planning!C170","v":0},{"$f":"Planning!D170","v":0},{"$f":"Planning!E170","v":0},{"$f":"IF(Planning!G170<>0,Planning!G170,\"\")","v":""},{"$f":"Planning!H170","v":0},{"$f":"Planning!R170","v":0},{"$f":"IF(OR(W186=\"1\",AND(W186<>\"1\",G186=Lists!$A$17)),Y186,0)","v":0},null,{"$f":"IF(AND(W186=\"2\",G186<>Lists!$A$17),AA186,Z186)","v":""},"",{"$f":"Planning!S170","v":{"v":0,"d":"0.00"}},{"$f":"'Month 3'!M186+'Month 3'!N186-'Month 3'!O186","v":{"v":0,"d":"0.00"}},null,"","",{"$f":"SUMIFS($J$25:$J$224,$C$25:$C$224,$C186,$G$25:$G$224,Lists!$A$16)","v":0},0,null,"",null,{"$f":"IF(C186=0,\"\",LEFT(INDEX(Lists!$H$5:$H$49,MATCH(C186,Lists!$G$5:$G$49,0),1),1))","v":""},null,{"$f":"'Month 3'!H186+'Month 3'!I186-'Month 3'!J186","v":0},"","",null,"0"]
[{"$f":"Planning!A171","v":"I163"},{"$f":"Planning!B171","v":0},{"$f":"Planning!C171","v":0},{"$f":"Planning!D171","v":0},{"$f":"Planning!E171","v":0},{"$f":"IF(Planning!G171<>0,Planning!G171,\"\")","v":""},{"$f":"Planning!H171","v":0},{"$f":"Planning!R171","v":0},{"$f":"IF(OR(W187=\"1\",AND(W187<>\"1\",G187=Lists!$A$17)),Y187,0)","v":0},null,{"$f":"IF(AND(W187=\"2\",G187<>Lists!$A$17),AA187,Z187)","v":""},"",{"$f":"Planning!S171","v":{"v":0,"d":"0.00"}},{"$f":"'Month 3'!M187+'Month 3'!N187-'Month 3'!O187","v":{"v":0,"d":"0.00"}},null,"","",{"$f":"SUMIFS($J$25:$J$224,$C$25:$C$224,$C187,$G$25:$G$224,Lists!$A$16)","v":0},0,null,"",null,{"$f":"IF(C187=0,\"\",LEFT(INDEX(Lists!$H$5:$H$49,MATCH(C187,Lists!$G$5:$G$49,0),1),1))","v":""},null,{"$f":"'Month 3'!H187+'Month 3'!I187-'Month 3'!J187","v":0},"","",null,"0"]
[{"$f":"Planning!A172","v":"I164"},{"$f":"Planning!B172","v":0},{"$f":"Planning!C172","v":0},{"$f":"Planning!D172","v":0},{"$f":"Planning!E172","v":0},{"$f":"IF(Planning!G172<>0,Planning!G172,\"\")","v":""},{"$f":"Planning!H172","v":0},{"$f":"Planning!R172","v":0},{"$f":"IF(OR(W188=\"1\",AND(W188<>\"1\",G188=Lists!$A$17)),Y188,0)","v":0},null,{"$f":"IF(AND(W188=\"2\",G188<>Lists!$A$17),AA188,Z188)","v":""},"",{"$f":"Planning!S172","v":{"v":0,"d":"0.00"}},{"$f":"'Month 3'!M188+'Month 3'!N188-'Month 3'!O188","v":{"v":0,"d":"0.00"}},null,"","",{"$f":"SUMIFS($J$25:$J$224,$C$25:$C$224,$C188,$G$25:$G$224,Lists!$A$16)","v":0},0,null,"",null,{"$f":"IF(C188=0,\"\",LEFT(INDEX(Lists!$H$5:$H$49,MATCH(C188,Lists!$G$5:$G$49,0),1),1))","v":""},null,{"$f":"'Month 3'!H188+'Month 3'!I188-'Month 3'!J188","v":0},"","",null,"0"]
[{"$f":"Planning!A173","v":"I165"},{"$f":"Planning!B173","v":0},{"$f":"Planning!C173","v":0},{"$f":"Planning!D173","v":0},{"$f":"Planning!E173","v":0},{"$f":"IF(Planning!G173<>0,Planning!G173,\"\")","v":""},{"$f":"Planning!H173","v":0},{"$f":"Planning!R173","v":0},{"$f":"IF(OR(W189=\"1\",AND(W189<>\"1\",G189=Lists!$A$17)),Y189,0)","v":0},null,{"$f":"IF(AND(W189=\"2\",G189<>Lists!$A$17),AA189,Z189)","v":""},"",{"$f":"Planning!S173","v":{"v":0,"d":"0.00"}},{"$f":"'Month 3'!M189+'Month 3'!N189-'Month 3'!O189","v":{"v":0,"d":"0.00"}},null,"","",{"$f":"SUMIFS($J$25:$J$224,$C$25:$C$224,$C189,$G$25:$G$224,Lists!$A$16)","v":0},0,null,"",null,{"$f":"IF(C189=0,\"\",LEFT(INDEX(Lists!$H$5:$H$49,MATCH(C189,Lists!$G$5:$G$49,0),1),1))","v":""},null,{"$f":"'Month 3'!H189+'Month 3'!I189-'Month 3'!J189","v":0},"","",null,"0"]
[{"$f":"Planning!A174","v":"I166"},{"$f":"Planning!B174","v":0},{"$f":"Planning!C174","v":0},{"$f":"Planning!D174","v":0},{"$f":"Planning!E174","v":0},{"$f":"IF(Planning!G174<>0,Planning!G174,\"\")","v":""},{"$f":"Planning!H174","v":0},{"$f":"Planning!R174","v":0},{"$f":"IF(OR(W190=\"1\",AND(W190<>\"1\",G190=Lists!$A$17)),Y190,0)","v":0},null,{"$f":"IF(AND(W190=\"2\",G190<>Lists!$A$17),AA190,Z190)","v":""},"",{"$f":"Planning!S174","v":{"v":0,"d":"0.00"}},{"$f":"'Month 3'!M190+'Month 3'!N190-'Month 3'!O190","v":{"v":0,"d":"0.00"}},null,"","",{"$f":"SUMIFS($J$25:$J$224,$C$25:$C$224,$C190,$G$25:$G$224,Lists!$A$16)","v":0},0,null,"",null,{"$f":"IF(C190=0,\"\",LEFT(INDEX(Lists!$H$5:$H$49,MATCH(C190,Lists!$G$5:$G$49,0),1),1))","v":""},null,{"$f":"'Month 3'!H190+'Month 3'!I190-'Month 3'!J190","v":0},"","",null,"0"]
[{"$f":"Planning!A175","v":"I167"},{"$f":"Planning!B175","v":0},{"$f":"Planning!C175","v":0},{"$f":"Planning!D175","v":0},{"$f":"Planning!E175","v":0},{"$f":"IF(Planning!G175<>0,Planning!G175,\"\")","v":""},{"$f":"Planning!H175","v":0},{"$f":"Planning!R175","v":0},{"$f":"IF(OR(W191=\"1\",AND(W191<>\"1\",G191=Lists!$A$17)),Y191,0)","v":0},null,{"$f":"IF(AND(W191=\"2\",G191<>Lists!$A$17),AA191,Z191)","v":""},"",{"$f":"Planning!S175","v":{"v":0,"d":"0.00"}},{"$f":"'Month 3'!M191+'Month 3'!N191-'Month 3'!O191","v":{"v":0,"d":"0.00"}},null,"","",{"$f":"SUMIFS($J$25:$J$224,$C$25:$C$224,$C191,$G$25:$G$224,Lists!$A$16)","v":0},0,null,"",null,{"$f":"IF(C191=0,\"\",LEFT(INDEX(Lists!$H$5:$H$49,MATCH(C191,Lists!$G$5:$G$49,0),1),1))","v":""},null,{"$f":"'Month 3'!H191+'Month 3'!I191-'Month 3'!J191","v":0},"","",null,"0"]
[{"$f":"Planning!A176","v":"I168"},{"$f":"Planning!B176","v":0},{"$f":"Planning!C176","v":0},{"$f":"Planning!D176","v":0},{"$f":"Planning!E176","v":0},{"$f":"IF(Planning!G176<>0,Planning!G176,\"\")","v":""},{"$f":"Planning!H176","v":0},{"$f":"Planning!R176","v":0},{"$f":"IF(OR(W192=\"1\",AND(W192<>\"1\",G192=Lists!$A$17)),Y192,0)","v":0},null,{"$f":"IF(AND(W192=\"2\",G192<>Lists!$A$17),AA192,Z192)","v":""},"",{"$f":"Planning!S176","v":{"v":0,"d":"0.00"}},{"$f":"'Month 3'!M192+'Month 3'!N192-'Month 3'!O192","v":{"v":0,"d":"0.00"}},null,"","",{"$f":"SUMIFS($J$25:$J$224,$C$25:$C$224,$C192,$G$25:$G$224,Lists!$A$16)","v":0},0,null,"",null,{"$f":"IF(C192=0,\"\",LEFT(INDEX(Lists!$H$5:$H$49,MATCH(C192,Lists!$G$5:$G$49,0),1),1))","v":""},null,{"$f":"'Month 3'!H192+'Month 3'!I192-'Month 3'!J192","v":0},"","",null,"0"]
[{"$f":"Planning!A177","v":"I169"},{"$f":"Planning!B177","v":0},{"$f":"Planning!C177","v":0},{"$f":"Planning!D177","v":0},{"$f":"Planning!E177","v":0},{"$f":"IF(Planning!G177<>0,Planning!G177,\"\")","v":""},{"$f":"Planning!H177","v":0},{"$f":"Planning!R177","v":0},{"$f":"IF(OR(W193=\"1\",AND(W193<>\"1\",G193=Lists!$A$17)),Y193,0)","v":0},null,{"$f":"IF(AND(W193=\"2\",G193<>Lists!$A$17),AA193,Z193)","v":""},"",{"$f":"Planning!S177","v":{"v":0,"d":"0.00"}},{"$f":"'Month 3'!M193+'Month 3'!N193-'Month 3'!O193","v":{"v":0,"d":"0.00"}},null,"","",{"$f":"SUMIFS($J$25:$J$224,$C$25:$C$224,$C193,$G$25:$G$224,Lists!$A$16)","v":0},0,null,"",null,{"$f":"IF(C193=0,\"\",LEFT(INDEX(Lists!$H$5:$H$49,MATCH(C193,Lists!$G$5:$G$49,0),1),1))","v":""},null,{"$f":"'Month 3'!H193+'Month 3'!I193-'Month 3'!J193","v":0},"","",null,"0"]
[{"$f":"Planning!A178","v":"I170"},{"$f":"Planning!B178","v":0},{"$f":"Planning!C178","v":0},{"$f":"Planning!D178","v":0},{"$f":"Planning!E178","v":0},{"$f":"IF(Planning!G178<>0,Planning!G178,\"\")","v":""},{"$f":"Planning!H178","v":0},{"$f":"Planning!R178","v":0},{"$f":"IF(OR(W194=\"1\",AND(W194<>\"1\",G194=Lists!$A$17)),Y194,0)","v":0},null,{"$f":"IF(AND(W194=\"2\",G194<>Lists!$A$17),AA194,Z194)","v":""},"",{"$f":"Planning!S178","v":{"v":0,"d":"0.00"}},{"$f":"'Month 3'!M194+'Month 3'!N194-'Month 3'!O194","v":{"v":0,"d":"0.00"}},null,"","",{"$f":"SUMIFS($J$25:$J$224,$C$25:$C$224,$C194,$G$25:$G$224,Lists!$A$16)","v":0},0,null,"",null,{"$f":"IF(C194=0,\"\",LEFT(INDEX(Lists!$H$5:$H$49,MATCH(C194,Lists!$G$5:$G$49,0),1),1))","v":""},null,{"$f":"'Month 3'!H194+'Month 3'!I194-'Month 3'!J194","v":0},"","",null,"0"]
[{"$f":"Planning!A179","v":"I171"},{"$f":"Planning!B179","v":0},{"$f":"Planning!C179","v":0},{"$f":"Planning!D179","v":0},{"$f":"Planning!E179","v":0},{"$f":"IF(Planning!G179<>0,Planning!G179,\"\")","v":""},{"$f":"Planning!H179","v":0},{"$f":"Planning!R179","v":0},{"$f":"IF(OR(W195=\"1\",AND(W195<>\"1\",G195=Lists!$A$17)),Y195,0)","v":0},null,{"$f":"IF(AND(W195=\"2\",G195<>Lists!$A$17),AA195,Z195)","v":""},"",{"$f":"Planning!S179","v":{"v":0,"d":"0.00"}},{"$f":"'Month 3'!M195+'Month 3'!N195-'Month 3'!O195","v":{"v":0,"d":"0.00"}},null,"","",{"$f":"SUMIFS($J$25:$J$224,$C$25:$C$224,$C195,$G$25:$G$224,Lists!$A$16)","v":0},0,null,"",null,{"$f":"IF(C195=0,\"\",LEFT(INDEX(Lists!$H$5:$H$49,MATCH(C195,Lists!$G$5:$G$49,0),1),1))","v":""},null,{"$f":"'Month 3'!H195+'Month 3'!I195-'Month 3'!J195","v":0},"","",null,"0"]
[{"$f":"Planning!A180","v":"I172"},{"$f":"Planning!B180","v":0},{"$f":"Planning!C180","v":0},{"$f":"Planning!D180","v":0},{"$f":"Planning!E180","v":0},{"$f":"IF(Planning!G180<>0,Planning!G180,\"\")","v":""},{"$f":"Planning!H180","v":0},{"$f":"Planning!R180","v":0},{"$f":"IF(OR(W196=\"1\",AND(W196<>\"1\",G196=Lists!$A$17)),Y196,0)","v":0},null,{"$f":"IF(AND(W196=\"2\",G196<>Lists!$A$17),AA196,Z196)","v":""},"",{"$f":"Planning!S180","v":{"v":0,"d":"0.00"}},{"$f":"'Month 3'!M196+'Month 3'!N196-'Month 3'!O196","v":{"v":0,"d":"0.00"}},null,"","",{"$f":"SUMIFS($J$25:$J$224,$C$25:$C$224,$C196,$G$25:$G$224,Lists!$A$16)","v":0},0,null,"",null,{"$f":"IF(C196=0,\"\",LEFT(INDEX(Lists!$H$5:$H$49,MATCH(C196,Lists!$G$5:$G$49,0),1),1))","v":""},null,{"$f":"'Month 3'!H196+'Month 3'!I196-'Month 3'!J196","v":0},"","",null,"0"]
[{"$f":"Planning!A181","v":"I173"},{"$f":"Planning!B181","v":0},{"$f":"Planning!C181","v":0},{"$f":"Planning!D181","v":0},{"$f":"Planning!E181","v":0},{"$f":"IF(Planning!G181<>0,Planning!G181,\"\")","v":""},{"$f":"Planning!H181","v":0},{"$f":"Planning!R181","v":0},{"$f":"IF(OR(W197=\"1\",AND(W197<>\"1\",G197=Lists!$A$17)),Y197,0)","v":0},null,{"$f":"IF(AND(W197=\"2\",G197<>Lists!$A$17),AA197,Z197)","v":""},"",{"$f":"Planning!S181","v":{"v":0,"d":"0.00"}},{"$f":"'Month 3'!M197+'Month 3'!N197-'Month 3'!O197","v":{"v":0,"d":"0.00"}},null,"","",{"$f":"SUMIFS($J$25:$J$224,$C$25:$C$224,$C197,$G$25:$G$224,Lists!$A$16)","v":0},0,null,"",null,{"$f":"IF(C197=0,\"\",LEFT(INDEX(Lists!$H$5:$H$49,MATCH(C197,Lists!$G$5:$G$49,0),1),1))","v":""},null,{"$f":"'Month 3'!H197+'Month 3'!I197-'Month 3'!J197","v":0},"","",null,"0"]
[{"$f":"Planning!A182","v":"I174"},{"$f":"Planning!B182","v":0},{"$f":"Planning!C182","v":0},{"$f":"Planning!D182","v":0},{"$f":"Planning!E182","v":0},{"$f":"IF(Planning!G182<>0,Planning!G182,\"\")","v":""},{"$f":"Planning!H182","v":0},{"$f":"Planning!R182","v":0},{"$f":"IF(OR(W198=\"1\",AND(W198<>\"1\",G198=Lists!$A$17)),Y198,0)","v":0},null,{"$f":"IF(AND(W198=\"2\",G198<>Lists!$A$17),AA198,Z198)","v":""},"",{"$f":"Planning!S182","v":{"v":0,"d":"0.00"}},{"$f":"'Month 3'!M198+'Month 3'!N198-'Month 3'!O198","v":{"v":0,"d":"0.00"}},null,"","",{"$f":"SUMIFS($J$25:$J$224,$C$25:$C$224,$C198,$G$25:$G$224,Lists!$A$16)","v":0},0,null,"",null,{"$f":"IF(C198=0,\"\",LEFT(INDEX(Lists!$H$5:$H$49,MATCH(C198,Lists!$G$5:$G$49,0),1),1))","v":""},null,{"$f":"'Month 3'!H198+'Month 3'!I198-'Month 3'!J198","v":0},"","",null,"0"]
[{"$f":"Planning!A183","v":"I175"},{"$f":"Planning!B183","v":0},{"$f":"Planning!C183","v":0},{"$f":"Planning!D183","v":0},{"$f":"Planning!E183","v":0},{"$f":"IF(Planning!G183<>0,Planning!G183,\"\")","v":""},{"$f":"Planning!H183","v":0},{"$f":"Planning!R183","v":0},{"$f":"IF(OR(W199=\"1\",AND(W199<>\"1\",G199=Lists!$A$17)),Y199,0)","v":0},null,{"$f":"IF(AND(W199=\"2\",G199<>Lists!$A$17),AA199,Z199)","v":""},"",{"$f":"Planning!S183","v":{"v":0,"d":"0.00"}},{"$f":"'Month 3'!M199+'Month 3'!N199-'Month 3'!O199","v":{"v":0,"d":"0.00"}},null,"","",{"$f":"SUMIFS($J$25:$J$224,$C$25:$C$224,$C199,$G$25:$G$224,Lists!$A$16)","v":0},0,null,"",null,{"$f":"IF(C199=0,\"\",LEFT(INDEX(Lists!$H$5:$H$49,MATCH(C199,Lists!$G$5:$G$49,0),1),1))","v":""},null,{"$f":"'Month 3'!H199+'Month 3'!I199-'Month 3'!J199","v":0},"","",null,"0"]
[{"$f":"Planning!A184","v":"I176"},{"$f":"Planning!B184","v":0},{"$f":"Planning!C184","v":0},{"$f":"Planning!D184","v":0},{"$f":"Planning!E184","v":0},{"$f":"IF(Planning!G184<>0,Planning!G184,\"\")","v":""},{"$f":"Planning!H184","v":0},{"$f":"Planning!R184","v":0},{"$f":"IF(OR(W200=\"1\",AND(W200<>\"1\",G200=Lists!$A$17)),Y200,0)","v":0},null,{"$f":"IF(AND(W200=\"2\",G200<>Lists!$A$17),AA200,Z200)","v":""},"",{"$f":"Planning!S184","v":{"v":0,"d":"0.00"}},{"$f":"'Month 3'!M200+'Month 3'!N200-'Month 3'!O200","v":{"v":0,"d":"0.00"}},null,"","",{"$f":"SUMIFS($J$25:$J$224,$C$25:$C$224,$C200,$G$25:$G$224,Lists!$A$16)","v":0},0,null,"",null,{"$f":"IF(C200=0,\"\",LEFT(INDEX(Lists!$H$5:$H$49,MATCH(C200,Lists!$G$5:$G$49,0),1),1))","v":""},null,{"$f":"'Month 3'!H200+'Month 3'!I200-'Month 3'!J200","v":0},"","",null,"0"]
[{"$f":"Planning!A185","v":"I177"},{"$f":"Planning!B185","v":0},{"$f":"Planning!C185","v":0},{"$f":"Planning!D185","v":0},{"$f":"Planning!E185","v":0},{"$f":"IF(Planning!G185<>0,Planning!G185,\"\")","v":""},{"$f":"Planning!H185","v":0},{"$f":"Planning!R185","v":0},{"$f":"IF(OR(W201=\"1\",AND(W201<>\"1\",G201=Lists!$A$17)),Y201,0)","v":0},null,{"$f":"IF(AND(W201=\"2\",G201<>Lists!$A$17),AA201,Z201)","v":""},"",{"$f":"Planning!S185","v":{"v":0,"d":"0.00"}},{"$f":"'Month 3'!M201+'Month 3'!N201-'Month 3'!O201","v":{"v":0,"d":"0.00"}},null,"","",{"$f":"SUMIFS($J$25:$J$224,$C$25:$C$224,$C201,$G$25:$G$224,Lists!$A$16)","v":0},0,null,"",null,{"$f":"IF(C201=0,\"\",LEFT(INDEX(Lists!$H$5:$H$49,MATCH(C201,Lists!$G$5:$G$49,0),1),1))","v":""},null,{"$f":"'Month 3'!H201+'Month 3'!I201-'Month 3'!J201","v":0},"","",null,"0"]
[{"$f":"Planning!A186","v":"I178"},{"$f":"Planning!B186","v":0},{"$f":"Planning!C186","v":0},{"$f":"Planning!D186","v":0},{"$f":"Planning!E186","v":0},{"$f":"IF(Planning!G186<>0,Planning!G186,\"\")","v":""},{"$f":"Planning!H186","v":0},{"$f":"Planning!R186","v":0},{"$f":"IF(OR(W202=\"1\",AND(W202<>\"1\",G202=Lists!$A$17)),Y202,0)","v":0},null,{"$f":"IF(AND(W202=\"2\",G202<>Lists!$A$17),AA202,Z202)","v":""},"",{"$f":"Planning!S186","v":{"v":0,"d":"0.00"}},{"$f":"'Month 3'!M202+'Month 3'!N202-'Month 3'!O202","v":{"v":0,"d":"0.00"}},null,"","",{"$f":"SUMIFS($J$25:$J$224,$C$25:$C$224,$C202,$G$25:$G$224,Lists!$A$16)","v":0},0,null,"",null,{"$f":"IF(C202=0,\"\",LEFT(INDEX(Lists!$H$5:$H$49,MATCH(C202,Lists!$G$5:$G$49,0),1),1))","v":""},null,{"$f":"'Month 3'!H202+'Month 3'!I202-'Month 3'!J202","v":0},"","",null,"0"]
[{"$f":"Planning!A187","v":"I179"},{"$f":"Planning!B187","v":0},{"$f":"Planning!C187","v":0},{"$f":"Planning!D187","v":0},{"$f":"Planning!E187","v":0},{"$f":"IF(Planning!G187<>0,Planning!G187,\"\")","v":""},{"$f":"Planning!H187","v":0},{"$f":"Planning!R187","v":0},{"$f":"IF(OR(W203=\"1\",AND(W203<>\"1\",G203=Lists!$A$17)),Y203,0)","v":0},null,{"$f":"IF(AND(W203=\"2\",G203<>Lists!$A$17),AA203,Z203)","v":""},"",{"$f":"Planning!S187","v":{"v":0,"d":"0.00"}},{"$f":"'Month 3'!M203+'Month 3'!N203-'Month 3'!O203","v":{"v":0,"d":"0.00"}},null,"","",{"$f":"SUMIFS($J$25:$J$224,$C$25:$C$224,$C203,$G$25:$G$224,Lists!$A$16)","v":0},0,null,"",null,{"$f":"IF(C203=0,\"\",LEFT(INDEX(Lists!$H$5:$H$49,MATCH(C203,Lists!$G$5:$G$49,0),1),1))","v":""},null,{"$f":"'Month 3'!H203+'Month 3'!I203-'Month 3'!J203","v":0},"","",null,"0"]
[{"$f":"Planning!A188","v":"I180"},{"$f":"Planning!B188","v":0},{"$f":"Planning!C188","v":0},{"$f":"Planning!D188","v":0},{"$f":"Planning!E188","v":0},{"$f":"IF(Planning!G188<>0,Planning!G188,\"\")","v":""},{"$f":"Planning!H188","v":0},{"$f":"Planning!R188","v":0},{"$f":"IF(OR(W204=\"1\",AND(W204<>\"1\",G204=Lists!$A$17)),Y204,0)","v":0},null,{"$f":"IF(AND(W204=\"2\",G204<>Lists!$A$17),AA204,Z204)","v":""},"",{"$f":"Planning!S188","v":{"v":0,"d":"0.00"}},{"$f":"'Month 3'!M204+'Month 3'!N204-'Month 3'!O204","v":{"v":0,"d":"0.00"}},null,"","",{"$f":"SUMIFS($J$25:$J$224,$C$25:$C$224,$C204,$G$25:$G$224,Lists!$A$16)","v":0},0,null,"",null,{"$f":"IF(C204=0,\"\",LEFT(INDEX(Lists!$H$5:$H$49,MATCH(C204,Lists!$G$5:$G$49,0),1),1))","v":""},null,{"$f":"'Month 3'!H204+'Month 3'!I204-'Month 3'!J204","v":0},"","",null,"0"]
[{"$f":"Planning!A189","v":"I181"},{"$f":"Planning!B189","v":0},{"$f":"Planning!C189","v":0},{"$f":"Planning!D189","v":0},{"$f":"Planning!E189","v":0},{"$f":"IF(Planning!G189<>0,Planning!G189,\"\")","v":""},{"$f":"Planning!H189","v":0},{"$f":"Planning!R189","v":0},{"$f":"IF(OR(W205=\"1\",AND(W205<>\"1\",G205=Lists!$A$17)),Y205,0)","v":0},null,{"$f":"IF(AND(W205=\"2\",G205<>Lists!$A$17),AA205,Z205)","v":""},"",{"$f":"Planning!S189","v":{"v":0,"d":"0.00"}},{"$f":"'Month 3'!M205+'Month 3'!N205-'Month 3'!O205","v":{"v":0,"d":"0.00"}},null,"","",{"$f":"SUMIFS($J$25:$J$224,$C$25:$C$224,$C205,$G$25:$G$224,Lists!$A$16)","v":0},0,null,"",null,{"$f":"IF(C205=0,\"\",LEFT(INDEX(Lists!$H$5:$H$49,MATCH(C205,Lists!$G$5:$G$49,0),1),1))","v":""},null,{"$f":"'Month 3'!H205+'Month 3'!I205-'Month 3'!J205","v":0},"","",null,"0"]
[{"$f":"Planning!A190","v":"I182"},{"$f":"Planning!B190","v":0},{"$f":"Planning!C190","v":0},{"$f":"Planning!D190","v":0},{"$f":"Planning!E190","v":0},{"$f":"IF(Planning!G190<>0,Planning!G190,\"\")","v":""},{"$f":"Planning!H190","v":0},{"$f":"Planning!R190","v":0},{"$f":"IF(OR(W206=\"1\",AND(W206<>\"1\",G206=Lists!$A$17)),Y206,0)","v":0},null,{"$f":"IF(AND(W206=\"2\",G206<>Lists!$A$17),AA206,Z206)","v":""},"",{"$f":"Planning!S190","v":{"v":0,"d":"0.00"}},{"$f":"'Month 3'!M206+'Month 3'!N206-'Month 3'!O206","v":{"v":0,"d":"0.00"}},null,"","",{"$f":"SUMIFS($J$25:$J$224,$C$25:$C$224,$C206,$G$25:$G$224,Lists!$A$16)","v":0},0,null,"",null,{"$f":"IF(C206=0,\"\",LEFT(INDEX(Lists!$H$5:$H$49,MATCH(C206,Lists!$G$5:$G$49,0),1),1))","v":""},null,{"$f":"'Month 3'!H206+'Month 3'!I206-'Month 3'!J206","v":0},"","",null,"0"]
[{"$f":"Planning!A191","v":"I183"},{"$f":"Planning!B191","v":0},{"$f":"Planning!C191","v":0},{"$f":"Planning!D191","v":0},{"$f":"Planning!E191","v":0},{"$f":"IF(Planning!G191<>0,Planning!G191,\"\")","v":""},{"$f":"Planning!H191","v":0},{"$f":"Planning!R191","v":0},{"$f":"IF(OR(W207=\"1\",AND(W207<>\"1\",G207=Lists!$A$17)),Y207,0)","v":0},null,{"$f":"IF(AND(W207=\"2\",G207<>Lists!$A$17),AA207,Z207)","v":""},"",{"$f":"Planning!S191","v":{"v":0,"d":"0.00"}},{"$f":"'Month 3'!M207+'Month 3'!N207-'Month 3'!O207","v":{"v":0,"d":"0.00"}},null,"","",{"$f":"SUMIFS($J$25:$J$224,$C$25:$C$224,$C207,$G$25:$G$224,Lists!$A$16)","v":0},0,null,"",null,{"$f":"IF(C207=0,\"\",LEFT(INDEX(Lists!$H$5:$H$49,MATCH(C207,Lists!$G$5:$G$49,0),1),1))","v":""},null,{"$f":"'Month 3'!H207+'Month 3'!I207-'Month 3'!J207","v":0},"","",null,"0"]
[{"$f":"Planning!A192","v":"I184"},{"$f":"Planning!B192","v":0},{"$f":"Planning!C192","v":0},{"$f":"Planning!D192","v":0},{"$f":"Planning!E192","v":0},{"$f":"IF(Planning!G192<>0,Planning!G192,\"\")","v":""},{"$f":"Planning!H192","v":0},{"$f":"Planning!R192","v":0},{"$f":"IF(OR(W208=\"1\",AND(W208<>\"1\",G208=Lists!$A$17)),Y208,0)","v":0},null,{"$f":"IF(AND(W208=\"2\",G208<>Lists!$A$17),AA208,Z208)","v":""},"",{"$f":"Planning!S192","v":{"v":0,"d":"0.00"}},{"$f":"'Month 3'!M208+'Month 3'!N208-'Month 3'!O208","v":{"v":0,"d":"0.00"}},null,"","",{"$f":"SUMIFS($J$25:$J$224,$C$25:$C$224,$C208,$G$25:$G$224,Lists!$A$16)","v":0},0,null,"",null,{"$f":"IF(C208=0,\"\",LEFT(INDEX(Lists!$H$5:$H$49,MATCH(C208,Lists!$G$5:$G$49,0),1),1))","v":""},null,{"$f":"'Month 3'!H208+'Month 3'!I208-'Month 3'!J208","v":0},"","",null,"0"]
[{"$f":"Planning!A193","v":"I185"},{"$f":"Planning!B193","v":0},{"$f":"Planning!C193","v":0},{"$f":"Planning!D193","v":0},{"$f":"Planning!E193","v":0},{"$f":"IF(Planning!G193<>0,Planning!G193,\"\")","v":""},{"$f":"Planning!H193","v":0},{"$f":"Planning!R193","v":0},{"$f":"IF(OR(W209=\"1\",AND(W209<>\"1\",G209=Lists!$A$17)),Y209,0)","v":0},null,{"$f":"IF(AND(W209=\"2\",G209<>Lists!$A$17),AA209,Z209)","v":""},"",{"$f":"Planning!S193","v":{"v":0,"d":"0.00"}},{"$f":"'Month 3'!M209+'Month 3'!N209-'Month 3'!O209","v":{"v":0,"d":"0.00"}},null,"","",{"$f":"SUMIFS($J$25:$J$224,$C$25:$C$224,$C209,$G$25:$G$224,Lists!$A$16)","v":0},0,null,"",null,{"$f":"IF(C209=0,\"\",LEFT(INDEX(Lists!$H$5:$H$49,MATCH(C209,Lists!$G$5:$G$49,0),1),1))","v":""},null,{"$f":"'Month 3'!H209+'Month 3'!I209-'Month 3'!J209","v":0},"","",null,"0"]
[{"$f":"Planning!A194","v":"I186"},{"$f":"Planning!B194","v":0},{"$f":"Planning!C194","v":0},{"$f":"Planning!D194","v":0},{"$f":"Planning!E194","v":0},{"$f":"IF(Planning!G194<>0,Planning!G194,\"\")","v":""},{"$f":"Planning!H194","v":0},{"$f":"Planning!R194","v":0},{"$f":"IF(OR(W210=\"1\",AND(W210<>\"1\",G210=Lists!$A$17)),Y210,0)","v":0},null,{"$f":"IF(AND(W210=\"2\",G210<>Lists!$A$17),AA210,Z210)","v":""},"",{"$f":"Planning!S194","v":{"v":0,"d":"0.00"}},{"$f":"'Month 3'!M210+'Month 3'!N210-'Month 3'!O210","v":{"v":0,"d":"0.00"}},null,"","",{"$f":"SUMIFS($J$25:$J$224,$C$25:$C$224,$C210,$G$25:$G$224,Lists!$A$16)","v":0},0,null,"",null,{"$f":"IF(C210=0,\"\",LEFT(INDEX(Lists!$H$5:$H$49,MATCH(C210,Lists!$G$5:$G$49,0),1),1))","v":""},null,{"$f":"'Month 3'!H210+'Month 3'!I210-'Month 3'!J210","v":0},"","",null,"0"]
[{"$f":"Planning!A195","v":"I187"},{"$f":"Planning!B195","v":0},{"$f":"Planning!C195","v":0},{"$f":"Planning!D195","v":0},{"$f":"Planning!E195","v":0},{"$f":"IF(Planning!G195<>0,Planning!G195,\"\")","v":""},{"$f":"Planning!H195","v":0},{"$f":"Planning!R195","v":0},{"$f":"IF(OR(W211=\"1\",AND(W211<>\"1\",G211=Lists!$A$17)),Y211,0)","v":0},null,{"$f":"IF(AND(W211=\"2\",G211<>Lists!$A$17),AA211,Z211)","v":""},"",{"$f":"Planning!S195","v":{"v":0,"d":"0.00"}},{"$f":"'Month 3'!M211+'Month 3'!N211-'Month 3'!O211","v":{"v":0,"d":"0.00"}},null,"","",{"$f":"SUMIFS($J$25:$J$224,$C$25:$C$224,$C211,$G$25:$G$224,Lists!$A$16)","v":0},0,null,"",null,{"$f":"IF(C211=0,\"\",LEFT(INDEX(Lists!$H$5:$H$49,MATCH(C211,Lists!$G$5:$G$49,0),1),1))","v":""},null,{"$f":"'Month 3'!H211+'Month 3'!I211-'Month 3'!J211","v":0},"","",null,"0"]
[{"$f":"Planning!A196","v":"I188"},{"$f":"Planning!B196","v":0},{"$f":"Planning!C196","v":0},{"$f":"Planning!D196","v":0},{"$f":"Planning!E196","v":0},{"$f":"IF(Planning!G196<>0,Planning!G196,\"\")","v":""},{"$f":"Planning!H196","v":0},{"$f":"Planning!R196","v":0},{"$f":"IF(OR(W212=\"1\",AND(W212<>\"1\",G212=Lists!$A$17)),Y212,0)","v":0},null,{"$f":"IF(AND(W212=\"2\",G212<>Lists!$A$17),AA212,Z212)","v":""},"",{"$f":"Planning!S196","v":{"v":0,"d":"0.00"}},{"$f":"'Month 3'!M212+'Month 3'!N212-'Month 3'!O212","v":{"v":0,"d":"0.00"}},null,"","",{"$f":"SUMIFS($J$25:$J$224,$C$25:$C$224,$C212,$G$25:$G$224,Lists!$A$16)","v":0},0,null,"",null,{"$f":"IF(C212=0,\"\",LEFT(INDEX(Lists!$H$5:$H$49,MATCH(C212,Lists!$G$5:$G$49,0),1),1))","v":""},null,{"$f":"'Month 3'!H212+'Month 3'!I212-'Month 3'!J212","v":0},"","",null,"0"]
[{"$f":"Planning!A197","v":"I189"},{"$f":"Planning!B197","v":0},{"$f":"Planning!C197","v":0},{"$f":"Planning!D197","v":0},{"$f":"Planning!E197","v":0},{"$f":"IF(Planning!G197<>0,Planning!G197,\"\")","v":""},{"$f":"Planning!H197","v":0},{"$f":"Planning!R197","v":0},{"$f":"IF(OR(W213=\"1\",AND(W213<>\"1\",G213=Lists!$A$17)),Y213,0)","v":0},null,{"$f":"IF(AND(W213=\"2\",G213<>Lists!$A$17),AA213,Z213)","v":""},"",{"$f":"Planning!S197","v":{"v":0,"d":"0.00"}},{"$f":"'Month 3'!M213+'Month 3'!N213-'Month 3'!O213","v":{"v":0,"d":"0.00"}},null,"","",{"$f":"SUMIFS($J$25:$J$224,$C$25:$C$224,$C213,$G$25:$G$224,Lists!$A$16)","v":0},0,null,"",null,{"$f":"IF(C213=0,\"\",LEFT(INDEX(Lists!$H$5:$H$49,MATCH(C213,Lists!$G$5:$G$49,0),1),1))","v":""},null,{"$f":"'Month 3'!H213+'Month 3'!I213-'Month 3'!J213","v":0},"","",null,"0"]
[{"$f":"Planning!A198","v":"I190"},{"$f":"Planning!B198","v":0},{"$f":"Planning!C198","v":0},{"$f":"Planning!D198","v":0},{"$f":"Planning!E198","v":0},{"$f":"IF(Planning!G198<>0,Planning!G198,\"\")","v":""},{"$f":"Planning!H198","v":0},{"$f":"Planning!R198","v":0},{"$f":"IF(OR(W214=\"1\",AND(W214<>\"1\",G214=Lists!$A$17)),Y214,0)","v":0},null,{"$f":"IF(AND(W214=\"2\",G214<>Lists!$A$17),AA214,Z214)","v":""},"",{"$f":"Planning!S198","v":{"v":0,"d":"0.00"}},{"$f":"'Month 3'!M214+'Month 3'!N214-'Month 3'!O214","v":{"v":0,"d":"0.00"}},null,"","",{"$f":"SUMIFS($J$25:$J$224,$C$25:$C$224,$C214,$G$25:$G$224,Lists!$A$16)","v":0},0,null,"",null,{"$f":"IF(C214=0,\"\",LEFT(INDEX(Lists!$H$5:$H$49,MATCH(C214,Lists!$G$5:$G$49,0),1),1))","v":""},null,{"$f":"'Month 3'!H214+'Month 3'!I214-'Month 3'!J214","v":0},"","",null,"0"]
[{"$f":"Planning!A199","v":"I191"},{"$f":"Planning!B199","v":0},{"$f":"Planning!C199","v":0},{"$f":"Planning!D199","v":0},{"$f":"Planning!E199","v":0},{"$f":"IF(Planning!G199<>0,Planning!G199,\"\")","v":""},{"$f":"Planning!H199","v":0},{"$f":"Planning!R199","v":0},{"$f":"IF(OR(W215=\"1\",AND(W215<>\"1\",G215=Lists!$A$17)),Y215,0)","v":0},null,{"$f":"IF(AND(W215=\"2\",G215<>Lists!$A$17),AA215,Z215)","v":""},"",{"$f":"Planning!S199","v":{"v":0,"d":"0.00"}},{"$f":"'Month 3'!M215+'Month 3'!N215-'Month 3'!O215","v":{"v":0,"d":"0.00"}},null,"","",{"$f":"SUMIFS($J$25:$J$224,$C$25:$C$224,$C215,$G$25:$G$224,Lists!$A$16)","v":0},0,null,"",null,{"$f":"IF(C215=0,\"\",LEFT(INDEX(Lists!$H$5:$H$49,MATCH(C215,Lists!$G$5:$G$49,0),1),1))","v":""},null,{"$f":"'Month 3'!H215+'Month 3'!I215-'Month 3'!J215","v":0},"","",null,"0"]
[{"$f":"Planning!A200","v":"I192"},{"$f":"Planning!B200","v":0},{"$f":"Planning!C200","v":0},{"$f":"Planning!D200","v":0},{"$f":"Planning!E200","v":0},{"$f":"IF(Planning!G200<>0,Planning!G200,\"\")","v":""},{"$f":"Planning!H200","v":0},{"$f":"Planning!R200","v":0},{"$f":"IF(OR(W216=\"1\",AND(W216<>\"1\",G216=Lists!$A$17)),Y216,0)","v":0},null,{"$f":"IF(AND(W216=\"2\",G216<>Lists!$A$17),AA216,Z216)","v":""},"",{"$f":"Planning!S200","v":{"v":0,"d":"0.00"}},{"$f":"'Month 3'!M216+'Month 3'!N216-'Month 3'!O216","v":{"v":0,"d":"0.00"}},null,"","",{"$f":"SUMIFS($J$25:$J$224,$C$25:$C$224,$C216,$G$25:$G$224,Lists!$A$16)","v":0},0,null,"",null,{"$f":"IF(C216=0,\"\",LEFT(INDEX(Lists!$H$5:$H$49,MATCH(C216,Lists!$G$5:$G$49,0),1),1))","v":""},null,{"$f":"'Month 3'!H216+'Month 3'!I216-'Month 3'!J216","v":0},"","",null,"0"]
[{"$f":"Planning!A201","v":"I193"},{"$f":"Planning!B201","v":0},{"$f":"Planning!C201","v":0},{"$f":"Planning!D201","v":0},{"$f":"Planning!E201","v":0},{"$f":"IF(Planning!G201<>0,Planning!G201,\"\")","v":""},{"$f":"Planning!H201","v":0},{"$f":"Planning!R201","v":0},{"$f":"IF(OR(W217=\"1\",AND(W217<>\"1\",G217=Lists!$A$17)),Y217,0)","v":0},null,{"$f":"IF(AND(W217=\"2\",G217<>Lists!$A$17),AA217,Z217)","v":""},{"$f":"IF($U217=ExcluirDelPLogro,\"\",IF(AND(H217=0,I217=0,J217=0),\"\",K217))","v":""},{"$f":"Planning!S201","v":{"v":0,"d":"0.00"}},{"$f":"'Month 3'!M217+'Month 3'!N217-'Month 3'!O217","v":{"v":0,"d":"0.00"}},null,"",{"$f":"IF($U217=ExcluirDelPLogro,\"\",IF(AND(M217=0,N217=0,O217=0),\"\",P217))","v":""},{"$f":"SUMIFS($J$25:$J$224,$C$25:$C$224,$C217,$G$25:$G$224,Lists!$A$16)","v":0},0,null,"",null,{"$f":"IF(C217=0,\"\",LEFT(INDEX(Lists!$H$5:$H$49,MATCH(C217,Lists!$G$5:$G$49,0),1),1))","v":""},null,{"$f":"'Month 3'!H217+'Month 3'!I217-'Month 3'!J217","v":0},"",{"$f":"IF(AND(H217=0,I217=0,J217=0),\"\",IF(J217>0,H217/J217,0))","v":""},null,"0"]
[{"$f":"Planning!A202","v":"I194"},{"$f":"Planning!B202","v":0},{"$f":"Planning!C202","v":0},{"$f":"Planning!D202","v":0},{"$f":"Planning!E202","v":0},{"$f":"IF(Planning!G202<>0,Planning!G202,\"\")","v":""},{"$f":"Planning!H202","v":0},{"$f":"Planning!R202","v":0},{"$f":"IF(OR(W218=\"1\",AND(W218<>\"1\",G218=Lists!$A$17)),Y218,0)","v":0},null,{"$f":"IF(AND(W218=\"2\",G218<>Lists!$A$17),AA218,Z218)","v":""},"",{"$f":"Planning!S202","v":{"v":0,"d":"0.00"}},{"$f":"'Month 3'!M218+'Month 3'!N218-'Month 3'!O218","v":{"v":0,"d":"0.00"}},null,{"$f":"IF(AND(M218=0,N218=0,O218=0),\"\",IF((M218+N218)>0,O218/(M218+N218),O218))","v":""},"",{"$f":"SUMIFS($J$25:$J$224,$C$25:$C$224,$C218,$G$25:$G$224,Lists!$A$16)","v":0},{"$f":"SUMIFS($O$25:$O$224,$C$25:$C$224,$C218,$G$25:$G$224,\"<>0\")","v":0},null,{"$f":"IF(B218=0,\"\",IF(LEFT(B218,1)=\"1\",\"1\",\"2\"))","v":""},null,{"$f":"IF(C218=0,\"\",LEFT(INDEX(Lists!$H$5:$H$49,MATCH(C218,Lists!$G$5:$G$49,0),1),1))","v":""},null,{"$f":"'Month 3'!H218+'Month 3'!I218-'Month 3'!J218","v":0},{"$f":"IF(AND(H218=0,I218=0,J218=0),\"\",IF((H218+I218)>0,J218/(H218+I218),J218))","v":""},"",null,{"$f":"U218&C218","v":"0"}]
[{"$f":"Planning!A203","v":"I195"},{"$f":"Planning!B203","v":0},{"$f":"Planning!C203","v":0},{"$f":"Planning!D203","v":0},{"$f":"Planning!E203","v":0},{"$f":"IF(Planning!G203<>0,Planning!G203,\"\")","v":""},{"$f":"Planning!H203","v":0},{"$f":"Planning!R203","v":0},{"$f":"IF(OR(W219=\"1\",AND(W219<>\"1\",G219=Lists!$A$17)),Y219,0)","v":0},null,{"$f":"IF(AND(W219=\"2\",G219<>Lists!$A$17),AA219,Z219)","v":""},"",{"$f":"Planning!S203","v":{"v":0,"d":"0.00"}},{"$f":"'Month 3'!M219+'Month 3'!N219-'Month 3'!O219","v":{"v":0,"d":"0.00"}},null,"","",{"$f":"SUMIFS($J$25:$J$224,$C$25:$C$224,$C219,$G$25:$G$224,Lists!$A$16)","v":0},0,null,"",null,{"$f":"IF(C219=0,\"\",LEFT(INDEX(Lists!$H$5:$H$49,MATCH(C219,Lists!$G$5:$G$49,0),1),1))","v":""},null,{"$f":"'Month 3'!H219+'Month 3'!I219-'Month 3'!J219","v":0},"","",null,"0"]
[{"$f":"Planning!A204","v":"I196"},{"$f":"Planning!B204","v":0},{"$f":"Planning!C204","v":0},{"$f":"Planning!D204","v":0},{"$f":"Planning!E204","v":0},{"$f":"IF(Planning!G204<>0,Planning!G204,\"\")","v":""},{"$f":"Planning!H204","v":0},{"$f":"Planning!R204","v":0},{"$f":"IF(OR(W220=\"1\",AND(W220<>\"1\",G220=Lists!$A$17)),Y220,0)","v":0},null,{"$f":"IF(AND(W220=\"2\",G220<>Lists!$A$17),AA220,Z220)","v":""},"",{"$f":"Planning!S204","v":{"v":0,"d":"0.00"}},{"$f":"'Month 3'!M220+'Month 3'!N220-'Month 3'!O220","v":{"v":0,"d":"0.00"}},null,"","",{"$f":"SUMIFS($J$25:$J$224,$C$25:$C$224,$C220,$G$25:$G$224,Lists!$A$16)","v":0},0,null,"",null,{"$f":"IF(C220=0,\"\",LEFT(INDEX(Lists!$H$5:$H$49,MATCH(C220,Lists!$G$5:$G$49,0),1),1))","v":""},null,{"$f":"'Month 3'!H220+'Month 3'!I220-'Month 3'!J220","v":0},"","",null,"0"]
[{"$f":"Planning!A205","v":"I197"},{"$f":"Planning!B205","v":0},{"$f":"Planning!C205","v":0},{"$f":"Planning!D205","v":0},{"$f":"Planning!E205","v":0},{"$f":"IF(Planning!G205<>0,Planning!G205,\"\")","v":""},{"$f":"Planning!H205","v":0},{"$f":"Planning!R205","v":0},{"$f":"IF(OR(W221=\"1\",AND(W221<>\"1\",G221=Lists!$A$17)),Y221,0)","v":0},null,{"$f":"IF(AND(W221=\"2\",G221<>Lists!$A$17),AA221,Z221)","v":""},"",{"$f":"Planning!S205","v":{"v":0,"d":"0.00"}},{"$f":"'Month 3'!M221+'Month 3'!N221-'Month 3'!O221","v":{"v":0,"d":"0.00"}},null,"","",{"$f":"SUMIFS($J$25:$J$224,$C$25:$C$224,$C221,$G$25:$G$224,Lists!$A$16)","v":0},0,null,"",null,{"$f":"IF(C221=0,\"\",LEFT(INDEX(Lists!$H$5:$H$49,MATCH(C221,Lists!$G$5:$G$49,0),1),1))","v":""},null,{"$f":"'Month 3'!H221+'Month 3'!I221-'Month 3'!J221","v":0},"","",null,"0"]
[{"$f":"Planning!A206","v":"I198"},{"$f":"Planning!B206","v":0},{"$f":"Planning!C206","v":0},{"$f":"Planning!D206","v":0},{"$f":"Planning!E206","v":0},{"$f":"IF(Planning!G206<>0,Planning!G206,\"\")","v":""},{"$f":"Planning!H206","v":0},{"$f":"Planning!R206","v":0},{"$f":"IF(OR(W222=\"1\",AND(W222<>\"1\",G222=Lists!$A$17)),Y222,0)","v":0},null,{"$f":"IF(AND(W222=\"2\",G222<>Lists!$A$17),AA222,Z222)","v":""},"",{"$f":"Planning!S206","v":{"v":0,"d":"0.00"}},{"$f":"'Month 3'!M222+'Month 3'!N222-'Month 3'!O222","v":{"v":0,"d":"0.00"}},null,"","",{"$f":"SUMIFS($J$25:$J$224,$C$25:$C$224,$C222,$G$25:$G$224,Lists!$A$16)","v":0},0,null,"",null,{"$f":"IF(C222=0,\"\",LEFT(INDEX(Lists!$H$5:$H$49,MATCH(C222,Lists!$G$5:$G$49,0),1),1))","v":""},null,{"$f":"'Month 3'!H222+'Month 3'!I222-'Month 3'!J222","v":0},"","",null,"0"]
[{"$f":"Planning!A207","v":"I199"},{"$f":"Planning!B207","v":0},{"$f":"Planning!C207","v":0},{"$f":"Planning!D207","v":0},{"$f":"Planning!E207","v":0},{"$f":"IF(Planning!G207<>0,Planning!G207,\"\")","v":""},{"$f":"Planning!H207","v":0},{"$f":"Planning!R207","v":0},{"$f":"IF(OR(W223=\"1\",AND(W223<>\"1\",G223=Lists!$A$17)),Y223,0)","v":0},null,{"$f":"IF(AND(W223=\"2\",G223<>Lists!$A$17),AA223,Z223)","v":""},"",{"$f":"Planning!S207","v":{"v":0,"d":"0.00"}},{"$f":"'Month 3'!M223+'Month 3'!N223-'Month 3'!O223","v":{"v":0,"d":"0.00"}},null,"","",{"$f":"SUMIFS($J$25:$J$224,$C$25:$C$224,$C223,$G$25:$G$224,Lists!$A$16)","v":0},0,null,"",null,{"$f":"IF(C223=0,\"\",LEFT(INDEX(Lists!$H$5:$H$49,MATCH(C223,Lists!$G$5:$G$49,0),1),1))","v":""},null,{"$f":"'Month 3'!H223+'Month 3'!I223-'Month 3'!J223","v":0},"","",null,"0"]
[{"$f":"Planning!A208","v":"I200"},{"$f":"Planning!B208","v":0},{"$f":"Planning!C208","v":0},{"$f":"Planning!D208","v":0},{"$f":"Planning!E208","v":0},{"$f":"IF(Planning!G208<>0,Planning!G208,\"\")","v":""},{"$f":"Planning!H208","v":0},{"$f":"Planning!R208","v":0},{"$f":"IF(OR(W224=\"1\",AND(W224<>\"1\",G224=Lists!$A$17)),Y224,0)","v":0},null,{"$f":"IF(AND(W224=\"2\",G224<>Lists!$A$17),AA224,Z224)","v":""},"",{"$f":"Planning!S208","v":{"v":0,"d":"0.00"}},{"$f":"'Month 3'!M224+'Month 3'!N224-'Month 3'!O224","v":{"v":0,"d":"0.00"}},null,"","",{"$f":"SUMIFS($J$25:$J$224,$C$25:$C$224,$C224,$G$25:$G$224,Lists!$A$16)","v":0},0,null,"",null,{"$f":"IF(C224=0,\"\",LEFT(INDEX(Lists!$H$5:$H$49,MATCH(C224,Lists!$G$5:$G$49,0),1),1))","v":""},null,{"$f":"'Month 3'!H224+'Month 3'!I224-'Month 3'!J224","v":0},"","",null,"0"]
[{"$nulls":20},".",null,".",null,".",".",".",null,"."]
[]
[{"$f":"Setup!AN6","v":"PR Dashboard indicators"}]
[{"$f":"Setup!AP8","v":"Financial reports planned"},{"$nulls":6},2]
[{"$f":"Setup!AP9","v":"Financial reports overdue"},{"$nulls":6},0]
[{"$f":"Setup!AP10","v":0}]
[{"$f":"Setup!AP11","v":0}]
[{"$f":"Setup!AP12","v":0}]
[{"$f":"Setup!AP13","v":0}]
[{"$f":"Setup!AP14","v":0}]
[{"$f":"Setup!AP15","v":"Supervision actions recommended"},{"$nulls":6},0]
[{"$f":"Setup!AP16","v":"Supervision recommendations past due"},{"$nulls":6},0]
[{"$f":"Setup!AP17","v":"Programmatic reports planned"},{"$nulls":6},1]
[{"$f":"Setup!AP18","v":"Programmatic reports past due"},{"$nulls":6},1]
[{"$f":"Setup!AP19","v":0}]
[{"$f":"Setup!AP20","v":0}]
[{"$f":"Setup!AP21","v":0}]
[{"$f":"Setup!AP22","v":0}]
[{"$f":"Setup!AP23","v":0}]
[{"$f":"Setup!AP24","v":0}]
[{"$f":"Setup!AP25","v":0}]
[{"$f":"Setup!AP26","v":0}]
[{"$f":"Setup!AP27","v":0}]
[{"$f":"Setup!AP28","v":0}]
[{"$f":"Setup!AP29","v":0}]
[{"$f":"Setup!AP30","v":0}]
[{"$f":"Setup!AP31","v":0}]
[{"$f":"Setup!AP32","v":0}]
[{"$f":"Setup!AP33","v":0}]
[{"$f":"Setup!AP34","v":0}]
[{"$f":"Setup!AP35","v":0}]
[{"$f":"Setup!AP36","v":0}]
[{"$f":"Setup!AP37","v":0}]
[{"$f":"Setup!AP38","v":0}]
[{"$f":"Setup!AP39","v":"Actual stock level - PS39 - Product 1: Efavirenz, 600 mg, 30 tablets"},{"$nulls":6},3]
[{"$f":"Setup!AP40","v":"Actual stock level - PS40 - Product 2: Efavirenz, 200 mg, 90 capsules"},{"$nulls":6},4]
[{"$f":"Setup!AP41","v":"Actual stock level - PS41 - Product 3: TDF/3TC, 300/300 mg, 30 tablets"},{"$nulls":6},5]
[{"$f":"Setup!AP42","v":"Actual stock level - PS42 - Product 4: 3TC, 10 mg/ml, oral solution 240 ml"},{"$nulls":6},6]
[{"$f":"Setup!AP43","v":0}]
[{"$f":"Setup!AP44","v":0}]
[{"$f":"Setup!AP45","v":0}]
[{"$f":"Setup!AP46","v":0}]
[{"$f":"Setup!AP47","v":0}]
[{"$f":"Setup!AP48","v":0}]
[{"$f":"Setup!AP49","v":0}]
[{"$f":"Setup!AP50","v":0}]
[{"$f":"Setup!AP51","v":0}]
[{"$f":"Setup!AP52","v":0}]
[{"$f":"Setup!AP53","v":0}]
[{"$f":"Setup!AP54","v":0}]
[{"$f":"Setup!AP55","v":0}]
[{"$f":"Setup!AP56","v":0}]
[{"$f":"Setup!AP57","v":0}]
[{"$f":"Setup!AP58","v":0}]
[{"$f":"Setup!AP59","v":0}]
[{"$f":"Setup!AP60","v":0}]
[{"$f":"Setup!AP61","v":0}]
[{"$f":"Setup!AP62","v":0}]
[{"$f":"Setup!AP63","v":0}]
[{"$f":"Setup!AP64","v":0}]
[{"$f":"Setup!AP65","v":0}]
[{"$f":"Setup!AP66","v":0}]
[{"$f":"Setup!AP67","v":0}]
[{"$f":"Setup!AP68","v":0}]
[{"$f":"Setup!AP69","v":0}]
[]
[]
[{"$f":"Translations!A138","v":"Narrative comments from results (to be filled by the Subrecipient)"}]
{"$rows_empty":43}
[{"$f":"Translations!A139","v":"This section is filled in exclusively by PR's programmatic and financial monitors."}]
[]
[{"$f":"Translations!A150","v":"PROGRAMMATIC"},null,null,{"$f":"Translations!A140","v":"Name of person conducting programmatic verification"}]
[]
[]
[{"$nulls":3},{"$f":"Translations!A141","v":"Contextual details"}]
[]
[]
[]
[]
[]
[]
[{"$nulls":3},{"$f":"Translations!A151","v":"Description of identified problem(s)"}]
[]
[]
[]
[]
[]
[]
[{"$nulls":3},{"$f":"Translations!A152","v":"Recommendations and actions to be taken"}]
[{"$nulls":3},"1)"]
[{"$nulls":3},"2)"]
[{"$nulls":3},"3)"]
[{"$nulls":3},"4)"]
[{"$nulls":3},"5)"]
[]
[]
[]
[{"$f":"Translations!A154","v":"FINANCIAL"},null,null,{"$f":"Translations!A153","v":"Name of person conducting financial verification"}]
[]
[]
[{"$nulls":3},{"$f":"Translations!A141","v":"Contextual details"}]
{"$rows_empty":7}
[{"$nulls":3},{"$f":"Translations!A151","v":"Description of identified problem(s)"}]
[]
[]
[]
[]
[]
[]
[{"$nulls":3},{"$f":"Translations!A152","v":"Recommendations and actions to be taken"}]
[{"$nulls":3},"1)"]
[{"$nulls":3},"2)"]
[{"$nulls":3},"3)"]
[{"$nulls":3},"4)"]
[{"$nulls":3},"5)"]
[]
[]
[]
[]
[]
[{"$f":"Translations!A321","v":"To be completed by the PR"},{"$nulls":6},{"$f":"Translations!A324","v":"To be completed by the SR"}]
[{"$f":"Translations!A322","v":"Position"},{"$nulls":3},{"$f":"Translations!A323","v":"Signature"},null,null,{"$f":"Translations!A322","v":"Position"},null,{"$f":"Translations!A323","v":"Signature"}]

{"sheet":"Month 5","index":16,"n_rows":394,"n_cols":29,"rows_kept":394,"hidden":true,"merged":[[1,4,1,13],[1,14,1,15],[2,4,2,13],[2,14,3,15],[3,4,3,13],[4,4,4,13],[4,22,16,26],[5,9,5,15],[6,0,15,7],[6,9,7,15],[9,9,9,10],[9,12,9,15],[10,9,11,10],[10,12,11,15],[13,9,15,13],[13,14,13,15],[14,14,15,15],[16,6,16,7],[17,3,17,4],[17,7,17,8],[17,9,17,10],[17,12,17,13],[17,14,17,15],[18,7,18,10],[18,12,18,15],[18,24,18,26],[19,0,20,0],[19,1,20,1],[19,2,20,2],[19,3,20,3],[19,4,20,4],[19,5,20,5],[19,7,20,7],[19,8,20,8],[19,9,20,9],[19,10,20,10],[19,12,20,12],[19,13,20,13],[19,14,20,14],[19,15,20,15],[19,17,19,18],[19,20,20,20],[19,22,20,22],[19,24,20,24],[19,25,20,25],[19,26,20,26],[19,28,20,28],[226,0,226,7],[227,0,227,6],[228,0,228,6],[229,0,229,6],[230,0,230,6],[231,0,231,6],[232,0,232,6],[233,0,233,6],[234,0,234,6],[235,0,235,6],[236,0,236,6],[237,0,237,6],[238,0,238,6],[239,0,239,6],[240,0,240,6],[241,0,241,6],[242,0,242,6],[243,0,243,6],[244,0,244,6],[245,0,245,6],[246,0,246,6],[247,0,247,6],[248,0,248,6],[249,0,249,6],[250,0,250,6],[251,0,251,6],[252,0,252,6],[253,0,253,6],[254,0,254,6],[255,0,255,6],[256,0,256,6],[257,0,257,6],[258,0,258,6],[259,0,259,6],[260,0,260,6],[261,0,261,6],[262,0,262,6],[263,0,263,6],[264,0,264,6],[265,0,265,6],[266,0,266,6],[267,0,267,6],[268,0,268,6],[269,0,269,6],[270,0,270,6],[271,0,271,6],[272,0,272,6],[273,0,273,6],[274,0,274,6],[275,0,275,6],[276,0,276,6],[277,0,277,6],[278,0,278,6],[279,0,279,6],[280,0,280,6],[281,0,281,6],[282,0,282,6],[283,0,283,6],[284,0,284,6],[285,0,285,6],[286,0,286,6],[287,0,287,6],[288,0,288,6],[291,0,291,15],[292,0,333,15],[335,0,335,15],[337,0,360,0],[337,14,337,15],[338,3,338,4],[338,14,338,15],[341,3,345,15],[348,3,352,15],[355,3,355,15],[356,3,356,15],[357,3,357,15],[358,3,358,15],[359,3,359,15],[363,0,387,0],[363,14,363,15],[364,3,364,4],[364,14,364,15],[367,3,371,15],[375,3,379,15],[382,3,382,15],[383,3,383,15],[384,3,384,15],[385,3,385,15],[386,3,386,15],[392,0,392,4],[392,7,392,12],[393,0,393,3],[393,7,393,8],[393,9,393,12],[394,0,394,3],[394,7,394,8],[394,9,394,12],[395,0,395,3],[395,7,395,8],[395,9,395,12],[396,0,396,3],[396,7,396,8],[396,9,396,12],[397,0,397,3],[397,7,397,8],[397,9,397,12]]}
[]
["Month 5",{"$nulls":3},{"$f":"Translations!A80","v":"SR Management Tool"},{"$nulls":9},{"$f":"Translations!A129","v":"SCORE"}]
[{"$nulls":4},{"$f":"Setup!H11","v":"Direct Gender Partnership (DGP)"},{"$nulls":9},{"$f":"K23","v":{"v":0.8839369930201848,"d":"88.39%"}}]
[{"$nulls":4},{"$f":" Setup!H14 & \"  (\" & Setup!H13 & \")\" & \"  (\" & Setup!H15 & \")\"","v":"DMR-202-G01-H-00  (January  2016 - December 2016)  (HIV / AIDS)"}]
[{"$nulls":4},{"$f":"Setup!AB12 & \"  (\" & Setup!H16 & \")\"","v":"May  ($ - USD)"},{"$nulls":17},"A. Se colocará lo pendiente (Y) en (I) siempre que (W) sea 1. Estandar o que (W) sea diferente de 1. sin embargo la actividad (G) NO contribuya al indicador.\n\nB. En la columna % Logro (K) se colocará siempre el Logro 1. Estandar (Z). Solamente se colocará el Logro 2. Inverso (AA) cuando (W) sea 2 y (G) sea diferente de 2. NO... es decir, el valor inverso va para las actvividades que contribuyan al indicador G = 1. SI y para el Indicador en si G = 0... por eso se pregunta por G diferente de 2. NO.. para incluir los 1. SI y a los 0\n\n"]
[{"$f":"Setup!G19","v":"Details of programatic indicators"},{"$nulls":8},{"$f":"Setup!G17","v":"Key population"}]
[{"$f":"Setup!H19","v":"# PLHIV that initiated ARV with CD4 count <200\n# new HIV+ enrolled in care services \n# aged 10-24 yrs reached by HIV life skills ed. in school "},{"$nulls":8},{"$f":"Setup!H17","v":"Sex Workers - Migrants - Women"}]
[]
[]
[{"$nulls":9},{"$f":"Translations!A119","v":"Report date"},null,null,{"$f":"Translations!A130","v":"Reported by"}]
[{"$nulls":9},"2016-06-13",null,null,"William Brown"]
[]
[]
[{"$nulls":9},{"$f":"Translations!A132","v":"Note: Enter disubursment ammount here if the PR made a disbursment this month. Leave blank if no disbursment was made."},{"$nulls":4},{"$f":"Translations!A131","v":"Disbursement"}]
[{"$nulls":14},{"v":0,"d":"0.00"}]
[]
[]
[{"$nulls":3},{"$f":"Translations!A233","v":"Input data in spaces with this color"},{"$nulls":3},{"$f":"Translations!A120","v":"Date of verification"},null,"2016-06-15",null,null,{"$f":"Translations!A120","v":"Date of verification"},null,"2016-06-15"]
[{"$nulls":7},{"$f":"Translations!A133","v":"Programmatic aspects"},{"$nulls":4},{"$f":"Translations!A134","v":"Financial aspects"},{"$nulls":9},"COMPORTAMIENTO",null,"Sólo en el Aspecto Programático"]
[{"$f":"Translations!A88","v":"Item"},"Tipo de Ítem","ID Enlace",{"$f":"Translations!A91","v":"Activity code"},{"$f":"Translations!A92","v":"Indicator / Activity"},{"$f":"Translations!A79","v":"TGF costs groups"},null,{"$f":"Translations!A135","v":"Monthly target"},{"$f":"Translations!A136","v":"Balance from previous period"},{"$f":"Translations!A137","v":"Results "},{"$f":"Translations!A108","v":"Result %"},null,{"$f":"Translations!$A$360","v":"Monthly budget"},{"$f":"Translations!A136","v":"Balance from previous period"},{"$f":"Translations!$A$361","v":"Monthly expenditure"},{"$f":"Translations!A108","v":"Result %"},null,"Sumatorias Indicadores",null,null,"Indicador =1 Actividad = 2",null,"1. Estandar\n2. Inverso\n3. No Acumula",null,"Pendiente Mes Anterior\n SIN CONDICION","Logro\n1. Estandar","Logro\n2. Inverso",null,"TAG \nPerformance"]
[{"$nulls":17},"PROG","FIN"]
[]
[{"$f":"Translations!A109","v":"Totals"},{"$nulls":6},"-","-","-",{"$f":"IFERROR(AVERAGEIF(L25:L224,\"<> \"),\"\")","v":{"v":0.8839369930201848,"d":"88.39%"}},null,{"$f":"SUMIFS(M25:M224,$G$25:$G$224,\"<>0\")","v":{"v":206600,"d":"206,600.00"}},{"$f":"SUMIFS(N25:N224,$G$25:$G$224,\"<>0\")","v":{"v":13310,"d":"13,310.00"}},{"$f":"SUMIFS(O25:O224,$G$25:$G$224,\"<>0\")","v":{"v":209410,"d":"209,410.00"}},{"$f":"IFERROR(AVERAGEIF(Q25:Q224,\"<> \"),\"\")","v":{"v":0.9474232456140351,"d":"94.74%"}}]
[]
[{"$f":"Planning!A9","v":"I001"},{"$f":"Planning!B9","v":"1. Indicator"},{"$f":"Planning!C9","v":"Pr68"},{"$f":"Planning!D9","v":1},{"$f":"Planning!E9","v":"[Pr68] # PLHIV that initiated ARV with CD4 count <200 Target [2. Inverse]"},{"$f":"IF(Planning!G9<>0,Planning!G9,\"\")","v":""},{"$f":"Planning!H9","v":0},{"$f":"Planning!U9","v":200},{"$f":"IF(OR(W25=\"1\",AND(W25<>\"1\",G25=Lists!$A$17)),Y25,0)","v":0},{"$f":"R25","v":225},{"$f":"IF(AND(W25=\"2\",G25<>Lists!$A$17),AA25,Z25)","v":{"v":0.8888888888888888,"d":"88.89%"}},{"$f":"IF($U25=ExcluirDelPLogro,\"\",IF(AND(H25=0,I25=0,J25=0),\"\",K25))","v":0.8888888888888888},{"$f":"Planning!V9","v":{"v":49200,"d":"49,200.00"}},{"$f":"'Month 4'!M25+'Month 4'!N25-'Month 4'!O25","v":{"v":10,"d":"10.00"}},{"$f":"S25","v":{"v":49210,"d":"49,210.00"}},{"$f":"IF(AND(M25=0,N25=0,O25=0),\"\",IF((M25+N25)>0,O25/(M25+N25),O25))","v":{"v":1,"d":"100.00%"}},{"$f":"IF($U25=ExcluirDelPLogro,\"\",IF(AND(M25=0,N25=0,O25=0),\"\",P25))","v":1},{"$f":"SUMIFS($J$25:$J$224,$C$25:$C$224,$C25,$G$25:$G$224,Lists!$A$16)","v":225},{"$f":"SUMIFS($O$25:$O$224,$C$25:$C$224,$C25,$G$25:$G$224,\"<>0\")","v":49210},null,{"$f":"IF(B25=0,\"\",IF(LEFT(B25,1)=\"1\",\"1\",\"2\"))","v":"1"},null,{"$f":"IF(C25=0,\"\",LEFT(INDEX(Lists!$H$5:$H$49,MATCH(C25,Lists!$G$5:$G$49,0),1),1))","v":"2"},null,{"$f":"'Month 4'!H25+'Month 4'!I25-'Month 4'!J25","v":-10},{"$f":"IF(AND(H25=0,I25=0,J25=0),\"\",IF((H25+I25)>0,J25/(H25+I25),J25))","v":1.125},{"$f":"IF(AND(H25=0,I25=0,J25=0),\"\",IF(J25>0,H25/J25,0))","v":0.8888888888888888},null,{"$f":"U25&C25","v":"1Pr68"}]
[{"$f":"Planning!A10","v":"I002"},{"$f":"Planning!B10","v":"2. Activity: Contributing"},{"$f":"Planning!C10","v":"Pr68"},{"$f":"Planning!D10","v":1.2},{"$f":"Planning!E10","v":"PLHIV reimbursed for transportation costs to HIV testing and treatment centres\n"},{"$f":"IF(Planning!G10<>0,Planning!G10,\"\")","v":"12. Living support to client/ target population "},{"$f":"Planning!H10","v":"1. YES"},{"$f":"Planning!U10","v":200},{"$f":"IF(OR(W26=\"1\",AND(W26<>\"1\",G26=Lists!$A$17)),Y26,0)","v":0},225,{"$f":"IF(AND(W26=\"2\",G26<>Lists!$A$17),AA26,Z26)","v":{"v":0.8888888888888888,"d":"88.89%"}},"",{"$f":"Planning!V10","v":{"v":35000,"d":"35,000.00"}},{"$f":"'Month 4'!M26+'Month 4'!N26-'Month 4'!O26","v":{"v":0,"d":"0.00"}},{"v":35000,"d":"35,000.00"},{"v":1,"d":"100.00%"},"",{"$f":"SUMIFS($J$25:$J$224,$C$25:$C$224,$C26,$G$25:$G$224,Lists!$A$16)","v":225},{"$f":"SUMIFS($O$25:$O$224,$C$25:$C$224,$C26,$G$25:$G$224,\"<>0\")","v":49210},null,{"$f":"IF(B26=0,\"\",IF(LEFT(B26,1)=\"1\",\"1\",\"2\"))","v":"2"},null,{"$f":"IF(C26=0,\"\",LEFT(INDEX(Lists!$H$5:$H$49,MATCH(C26,Lists!$G$5:$G$49,0),1),1))","v":"2"},null,{"$f":"'Month 4'!H26+'Month 4'!I26-'Month 4'!J26","v":-10},{"$f":"IF(AND(H26=0,I26=0,J26=0),\"\",IF((H26+I26)>0,J26/(H26+I26),J26))","v":1.125},0.8888888888888888,null,{"$f":"U26&C26","v":"2Pr68"}]
[{"$f":"Planning!A11","v":"I003"},{"$f":"Planning!B11","v":"3. Activity: Non-Contributing"},{"$f":"Planning!C11","v":"Pr68"},{"$f":"Planning!D11","v":1.3},{"$f":"Planning!E11","v":"Communication materials produced to educate HIV+ patients about HIV treatment (Migrants and Sexual Workers). \n\n"},{"$f":"IF(Planning!G11<>0,Planning!G11,\"\")","v":"10. Communication material and publications"},{"$f":"Planning!H11","v":"2. NO"},{"$f":"Planning!U11","v":25},{"$f":"IF(OR(W27=\"1\",AND(W27<>\"1\",G27=Lists!$A$17)),Y27,0)","v":0},24,{"$f":"IF(AND(W27=\"2\",G27<>Lists!$A$17),AA27,Z27)","v":{"v":0.96,"d":"96.00%"}},"",{"$f":"Planning!V11","v":{"v":700,"d":"700.00"}},{"$f":"'Month 4'!M27+'Month 4'!N27-'Month 4'!O27","v":{"v":10,"d":"10.00"}},{"v":710,"d":"710.00"},{"v":1,"d":"100.00%"},"",{"$f":"SUMIFS($J$25:$J$224,$C$25:$C$224,$C27,$G$25:$G$224,Lists!$A$16)","v":225},49210,null,"2",null,{"$f":"IF(C27=0,\"\",LEFT(INDEX(Lists!$H$5:$H$49,MATCH(C27,Lists!$G$5:$G$49,0),1),1))","v":"2"},null,{"$f":"'Month 4'!H27+'Month 4'!I27-'Month 4'!J27","v":0},0.96,1.0416666666666667,null,"2Pr68"]
[{"$f":"Planning!A12","v":"I004"},{"$f":"Planning!B12","v":"3. Activity: Non-Contributing"},{"$f":"Planning!C12","v":"Pr68"},{"$f":"Planning!D12","v":1.4},{"$f":"Planning!E12","v":"Supervisory visits to verify the appropriate application of testing and treatment protocols at centers. "},{"$f":"IF(Planning!G12<>0,Planning!G12,\"\")","v":"11. Programme administration costs"},{"$f":"Planning!H12","v":"2. NO"},{"$f":"Planning!U12","v":60},{"$f":"IF(OR(W28=\"1\",AND(W28<>\"1\",G28=Lists!$A$17)),Y28,0)","v":0},60,{"$f":"IF(AND(W28=\"2\",G28<>Lists!$A$17),AA28,Z28)","v":{"v":1,"d":"100.00%"}},"",{"$f":"Planning!V12","v":{"v":13500,"d":"13,500.00"}},{"$f":"'Month 4'!M28+'Month 4'!N28-'Month 4'!O28","v":{"v":0,"d":"0.00"}},{"v":13500,"d":"13,500.00"},{"v":1,"d":"100.00%"},"",{"$f":"SUMIFS($J$25:$J$224,$C$25:$C$224,$C28,$G$25:$G$224,Lists!$A$16)","v":225},49210,null,"2",null,{"$f":"IF(C28=0,\"\",LEFT(INDEX(Lists!$H$5:$H$49,MATCH(C28,Lists!$G$5:$G$49,0),1),1))","v":"2"},null,{"$f":"'Month 4'!H28+'Month 4'!I28-'Month 4'!J28","v":0},1,1,null,"2Pr68"]
[{"$f":"Planning!A13","v":"I005"},{"$f":"Planning!B13","v":"1. Indicator"},{"$f":"Planning!C13","v":"Pr72"},{"$f":"Planning!D13","v":2},{"$f":"Planning!E13","v":"[Pr72] # new HIV+ enrolled in care services Target [3. Non-Cumulative]"},{"$f":"IF(Planning!G13<>0,Planning!G13,\"\")","v":""},{"$f":"Planning!H13","v":0},{"$f":"Planning!U13","v":124},{"$f":"IF(OR(W29=\"1\",AND(W29<>\"1\",G29=Lists!$A$17)),Y29,0)","v":0},{"$f":"R29","v":90},{"$f":"IF(AND(W29=\"2\",G29<>Lists!$A$17),AA29,Z29)","v":{"v":0.7258064516129032,"d":"72.58%"}},0.7258064516129032,{"$f":"Planning!V13","v":{"v":27900,"d":"27,900.00"}},{"$f":"'Month 4'!M29+'Month 4'!N29-'Month 4'!O29","v":{"v":600,"d":"600.00"}},{"$f":"S29","v":{"v":25000,"d":"25,000.00"}},{"v":0.8771929824561403,"d":"87.72%"},0.8771929824561403,{"$f":"SUMIFS($J$25:$J$224,$C$25:$C$224,$C29,$G$25:$G$224,Lists!$A$16)","v":90},25000,null,"1",null,{"$f":"IF(C29=0,\"\",LEFT(INDEX(Lists!$H$5:$H$49,MATCH(C29,Lists!$G$5:$G$49,0),1),1))","v":"3"},null,{"$f":"'Month 4'!H29+'Month 4'!I29-'Month 4'!J29","v":34},0.7258064516129032,1.3777777777777778,null,"1Pr72"]
[{"$f":"Planning!A14","v":"I006"},{"$f":"Planning!B14","v":"2. Activity: Contributing"},{"$f":"Planning!C14","v":"Pr72"},{"$f":"Planning!D14","v":2.1},{"$f":"Planning!E14","v":"Enrollment of  newly diagnosed HIV+ patients for home visits to monitor use of ARV."},{"$f":"IF(Planning!G14<>0,Planning!G14,\"\")","v":"12. Living support to client/ target population "},{"$f":"Planning!H14","v":"1. YES"},{"$f":"Planning!U14","v":124},{"$f":"IF(OR(W30=\"1\",AND(W30<>\"1\",G30=Lists!$A$17)),Y30,0)","v":0},90,{"$f":"IF(AND(W30=\"2\",G30<>Lists!$A$17),AA30,Z30)","v":{"v":0.7258064516129032,"d":"72.58%"}},"",{"$f":"Planning!V14","v":{"v":27900,"d":"27,900.00"}},{"$f":"'Month 4'!M30+'Month 4'!N30-'Month 4'!O30","v":{"v":600,"d":"600.00"}},{"v":25000,"d":"25,000.00"},{"v":0.8771929824561403,"d":"87.72%"},"",{"$f":"SUMIFS($J$25:$J$224,$C$25:$C$224,$C30,$G$25:$G$224,Lists!$A$16)","v":90},25000,null,"2",null,{"$f":"IF(C30=0,\"\",LEFT(INDEX(Lists!$H$5:$H$49,MATCH(C30,Lists!$G$5:$G$49,0),1),1))","v":"3"},null,{"$f":"'Month 4'!H30+'Month 4'!I30-'Month 4'!J30","v":34},0.7258064516129032,1.3777777777777778,null,"2Pr72"]
[{"$f":"Planning!A15","v":"I007"},{"$f":"Planning!B15","v":"1. Indicator"},{"$f":"Planning!C15","v":"Pr74"},{"$f":"Planning!D15","v":3},{"$f":"Planning!E15","v":"[Pr74] # aged 10-24 yrs reached by HIV life skills ed. in school  Target [1. Standard]"},{"$f":"IF(Planning!G15<>0,Planning!G15,\"\")","v":""},{"$f":"Planning!H15","v":0},{"$f":"Planning!U15","v":300},{"$f":"IF(OR(W31=\"1\",AND(W31<>\"1\",G31=Lists!$A$17)),Y31,0)","v":80},{"$f":"R31","v":350},{"$f":"IF(AND(W31=\"2\",G31<>Lists!$A$17),AA31,Z31)","v":{"v":0.9210526315789473,"d":"92.11%"}},0.9210526315789473,{"$f":"Planning!V15","v":{"v":67500,"d":"67,500.00"}},{"$f":"'Month 4'!M31+'Month 4'!N31-'Month 4'!O31","v":{"v":12500,"d":"12,500.00"}},{"$f":"S31","v":{"v":73000,"d":"73,000.00"}},{"v":0.9125,"d":"91.25%"},0.9125,{"$f":"SUMIFS($J$25:$J$224,$C$25:$C$224,$C31,$G$25:$G$224,Lists!$A$16)","v":350},73000,null,"1",null,{"$f":"IF(C31=0,\"\",LEFT(INDEX(Lists!$H$5:$H$49,MATCH(C31,Lists!$G$5:$G$49,0),1),1))","v":"1"},null,{"$f":"'Month 4'!H31+'Month 4'!I31-'Month 4'!J31","v":80},0.9210526315789473,0.8571428571428571,null,"1Pr74"]
[{"$f":"Planning!A16","v":"I008"},{"$f":"Planning!B16","v":"2. Activity: Contributing"},{"$f":"Planning!C16","v":"Pr74"},{"$f":"Planning!D16","v":3.1},{"$f":"Planning!E16","v":"Transportation of students to meetings and conferences for peer education activities"},{"$f":"IF(Planning!G16<>0,Planning!G16,\"\")","v":"2. Travel related costs"},{"$f":"Planning!H16","v":"1. YES"},{"$f":"Planning!U16","v":300},{"$f":"IF(OR(W32=\"1\",AND(W32<>\"1\",G32=Lists!$A$17)),Y32,0)","v":80},350,{"$f":"IF(AND(W32=\"2\",G32<>Lists!$A$17),AA32,Z32)","v":{"v":0.9210526315789473,"d":"92.11%"}},"",{"$f":"Planning!V16","v":{"v":67500,"d":"67,500.00"}},{"$f":"'Month 4'!M32+'Month 4'!N32-'Month 4'!O32","v":{"v":12500,"d":"12,500.00"}},{"v":73000,"d":"73,000.00"},{"v":0.9125,"d":"91.25%"},"",{"$f":"SUMIFS($J$25:$J$224,$C$25:$C$224,$C32,$G$25:$G$224,Lists!$A$16)","v":350},73000,null,"2",null,{"$f":"IF(C32=0,\"\",LEFT(INDEX(Lists!$H$5:$H$49,MATCH(C32,Lists!$G$5:$G$49,0),1),1))","v":"1"},null,{"$f":"'Month 4'!H32+'Month 4'!I32-'Month 4'!J32","v":80},0.9210526315789473,0.8571428571428571,null,"2Pr74"]
[{"$f":"Planning!A17","v":"I009"},{"$f":"Planning!B17","v":"1. Indicator"},{"$f":"Planning!C17","v":"OI01"},{"$f":"Planning!D17","v":4},{"$f":"Planning!E17","v":"[OI01] # of new orphans and vulnerable children (0 - 17 yrs) benefiting from  services provided at OVC centers [1. Standard]"},{"$f":"IF(Planning!G17<>0,Planning!G17,\"\")","v":""},{"$f":"Planning!H17","v":0},{"$f":"Planning!U17","v":500},{"$f":"IF(OR(W33=\"1\",AND(W33<>\"1\",G33=Lists!$A$17)),Y33,0)","v":10},{"$f":"R33","v":510},{"$f":"IF(AND(W33=\"2\",G33<>Lists!$A$17),AA33,Z33)","v":{"v":1,"d":"100.00%"}},1,{"$f":"Planning!V17","v":{"v":62000,"d":"62,000.00"}},{"$f":"'Month 4'!M33+'Month 4'!N33-'Month 4'!O33","v":{"v":200,"d":"200.00"}},{"$f":"S33","v":{"v":62200,"d":"62,200.00"}},{"v":1,"d":"100.00%"},1,{"$f":"SUMIFS($J$25:$J$224,$C$25:$C$224,$C33,$G$25:$G$224,Lists!$A$16)","v":510},62200,null,"1",null,{"$f":"IF(C33=0,\"\",LEFT(INDEX(Lists!$H$5:$H$49,MATCH(C33,Lists!$G$5:$G$49,0),1),1))","v":"1"},null,{"$f":"'Month 4'!H33+'Month 4'!I33-'Month 4'!J33","v":10},1,0.9803921568627451,null,"1OI01"]
[{"$f":"Planning!A18","v":"I010"},{"$f":"Planning!B18","v":"3. Activity: Non-Contributing"},{"$f":"Planning!C18","v":"OI01"},{"$f":"Planning!D18","v":4.1},{"$f":"Planning!E18","v":"# of OVC centers established and fully equipped  "},{"$f":"IF(Planning!G18<>0,Planning!G18,\"\")","v":"8. Infrastructure "},{"$f":"Planning!H18","v":"2. NO"},{"$f":"Planning!U18","v":1},{"$f":"IF(OR(W34=\"1\",AND(W34<>\"1\",G34=Lists!$A$17)),Y34,0)","v":0},1,{"$f":"IF(AND(W34=\"2\",G34<>Lists!$A$17),AA34,Z34)","v":{"v":1,"d":"100.00%"}},"",{"$f":"Planning!V18","v":{"v":4000,"d":"4,000.00"}},{"$f":"'Month 4'!M34+'Month 4'!N34-'Month 4'!O34","v":{"v":0,"d":"0.00"}},{"v":4000,"d":"4,000.00"},{"v":1,"d":"100.00%"},"",{"$f":"SUMIFS($J$25:$J$224,$C$25:$C$224,$C34,$G$25:$G$224,Lists!$A$16)","v":510},62200,null,"2",null,{"$f":"IF(C34=0,\"\",LEFT(INDEX(Lists!$H$5:$H$49,MATCH(C34,Lists!$G$5:$G$49,0),1),1))","v":"1"},null,{"$f":"'Month 4'!H34+'Month 4'!I34-'Month 4'!J34","v":0},1,1,null,"2OI01"]
[{"$f":"Planning!A19","v":"I011"},{"$f":"Planning!B19","v":"2. Activity: Contributing"},{"$f":"Planning!C19","v":"OI01"},{"$f":"Planning!D19","v":4.2},{"$f":"Planning!E19","v":"# of OVC registered at centres"},{"$f":"IF(Planning!G19<>0,Planning!G19,\"\")","v":"12. Living support to client/ target population "},{"$f":"Planning!H19","v":"1. YES"},{"$f":"Planning!U19","v":500},{"$f":"IF(OR(W35=\"1\",AND(W35<>\"1\",G35=Lists!$A$17)),Y35,0)","v":10},510,{"$f":"IF(AND(W35=\"2\",G35<>Lists!$A$17),AA35,Z35)","v":{"v":1,"d":"100.00%"}},"",{"$f":"Planning!V19","v":{"v":50000,"d":"50,000.00"}},{"$f":"'Month 4'!M35+'Month 4'!N35-'Month 4'!O35","v":{"v":0,"d":"0.00"}},{"v":50000,"d":"50,000.00"},{"v":1,"d":"100.00%"},"",{"$f":"SUMIFS($J$25:$J$224,$C$25:$C$224,$C35,$G$25:$G$224,Lists!$A$16)","v":510},62200,null,"2",null,{"$f":"IF(C35=0,\"\",LEFT(INDEX(Lists!$H$5:$H$49,MATCH(C35,Lists!$G$5:$G$49,0),1),1))","v":"1"},null,{"$f":"'Month 4'!H35+'Month 4'!I35-'Month 4'!J35","v":10},1,0.9803921568627451,null,"2OI01"]
[{"$f":"Planning!A20","v":"I012"},{"$f":"Planning!B20","v":"3. Activity: Non-Contributing"},{"$f":"Planning!C20","v":"OI01"},{"$f":"Planning!D20","v":4.3},{"$f":"Planning!E20","v":"# of meals provided at the OVC centers "},{"$f":"IF(Planning!G20<>0,Planning!G20,\"\")","v":"12. Living support to client/ target population "},{"$f":"Planning!H20","v":"2. NO"},{"$f":"Planning!U20","v":{"v":2000,"d":"2,000"}},{"$f":"IF(OR(W36=\"1\",AND(W36<>\"1\",G36=Lists!$A$17)),Y36,0)","v":40},{"v":2040,"d":"2,040"},{"$f":"IF(AND(W36=\"2\",G36<>Lists!$A$17),AA36,Z36)","v":{"v":1,"d":"100.00%"}},"",{"$f":"Planning!V20","v":{"v":8000,"d":"8,000.00"}},{"$f":"'Month 4'!M36+'Month 4'!N36-'Month 4'!O36","v":{"v":200,"d":"200.00"}},{"v":8200,"d":"8,200.00"},{"v":1,"d":"100.00%"},"",{"$f":"SUMIFS($J$25:$J$224,$C$25:$C$224,$C36,$G$25:$G$224,Lists!$A$16)","v":510},62200,null,"2",null,{"$f":"IF(C36=0,\"\",LEFT(INDEX(Lists!$H$5:$H$49,MATCH(C36,Lists!$G$5:$G$49,0),1),1))","v":"1"},null,{"$f":"'Month 4'!H36+'Month 4'!I36-'Month 4'!J36","v":40},1,0.9803921568627451,null,"2OI01"]
[{"$f":"Planning!A21","v":"I013"},{"$f":"Planning!B21","v":0},{"$f":"Planning!C21","v":0},{"$f":"Planning!D21","v":0},{"$f":"Planning!E21","v":0},{"$f":"IF(Planning!G21<>0,Planning!G21,\"\")","v":""},{"$f":"Planning!H21","v":0},{"$f":"Planning!U21","v":0},{"$f":"IF(OR(W37=\"1\",AND(W37<>\"1\",G37=Lists!$A$17)),Y37,0)","v":0},null,{"$f":"IF(AND(W37=\"2\",G37<>Lists!$A$17),AA37,Z37)","v":""},"",{"$f":"Planning!V21","v":{"v":0,"d":"0.00"}},{"$f":"'Month 4'!M37+'Month 4'!N37-'Month 4'!O37","v":{"v":0,"d":"0.00"}},null,"","",{"$f":"SUMIFS($J$25:$J$224,$C$25:$C$224,$C37,$G$25:$G$224,Lists!$A$16)","v":0},0,null,"",null,{"$f":"IF(C37=0,\"\",LEFT(INDEX(Lists!$H$5:$H$49,MATCH(C37,Lists!$G$5:$G$49,0),1),1))","v":""},null,{"$f":"'Month 4'!H37+'Month 4'!I37-'Month 4'!J37","v":0},"","",null,"0"]
[{"$f":"Planning!A22","v":"I014"},{"$f":"Planning!B22","v":0},{"$f":"Planning!C22","v":0},{"$f":"Planning!D22","v":0},{"$f":"Planning!E22","v":0},{"$f":"IF(Planning!G22<>0,Planning!G22,\"\")","v":""},{"$f":"Planning!H22","v":0},{"$f":"Planning!U22","v":0},{"$f":"IF(OR(W38=\"1\",AND(W38<>\"1\",G38=Lists!$A$17)),Y38,0)","v":0},null,{"$f":"IF(AND(W38=\"2\",G38<>Lists!$A$17),AA38,Z38)","v":""},"",{"$f":"Planning!V22","v":{"v":0,"d":"0.00"}},{"$f":"'Month 4'!M38+'Month 4'!N38-'Month 4'!O38","v":{"v":0,"d":"0.00"}},null,"","",{"$f":"SUMIFS($J$25:$J$224,$C$25:$C$224,$C38,$G$25:$G$224,Lists!$A$16)","v":0},0,null,"",null,{"$f":"IF(C38=0,\"\",LEFT(INDEX(Lists!$H$5:$H$49,MATCH(C38,Lists!$G$5:$G$49,0),1),1))","v":""},null,{"$f":"'Month 4'!H38+'Month 4'!I38-'Month 4'!J38","v":0},"","",null,"0"]
[{"$f":"Planning!A23","v":"I015"},{"$f":"Planning!B23","v":0},{"$f":"Planning!C23","v":0},{"$f":"Planning!D23","v":0},{"$f":"Planning!E23","v":0},{"$f":"IF(Planning!G23<>0,Planning!G23,\"\")","v":""},{"$f":"Planning!H23","v":0},{"$f":"Planning!U23","v":0},{"$f":"IF(OR(W39=\"1\",AND(W39<>\"1\",G39=Lists!$A$17)),Y39,0)","v":0},null,{"$f":"IF(AND(W39=\"2\",G39<>Lists!$A$17),AA39,Z39)","v":""},"",{"$f":"Planning!V23","v":{"v":0,"d":"0.00"}},{"$f":"'Month 4'!M39+'Month 4'!N39-'Month 4'!O39","v":{"v":0,"d":"0.00"}},null,"","",{"$f":"SUMIFS($J$25:$J$224,$C$25:$C$224,$C39,$G$25:$G$224,Lists!$A$16)","v":0},0,null,"",null,{"$f":"IF(C39=0,\"\",LEFT(INDEX(Lists!$H$5:$H$49,MATCH(C39,Lists!$G$5:$G$49,0),1),1))","v":""},null,{"$f":"'Month 4'!H39+'Month 4'!I39-'Month 4'!J39","v":0},"","",null,"0"]
[{"$f":"Planning!A24","v":"I016"},{"$f":"Planning!B24","v":0},{"$f":"Planning!C24","v":0},{"$f":"Planning!D24","v":0},{"$f":"Planning!E24","v":0},{"$f":"IF(Planning!G24<>0,Planning!G24,\"\")","v":""},{"$f":"Planning!H24","v":0},{"$f":"Planning!U24","v":0},{"$f":"IF(OR(W40=\"1\",AND(W40<>\"1\",G40=Lists!$A$17)),Y40,0)","v":0},null,{"$f":"IF(AND(W40=\"2\",G40<>Lists!$A$17),AA40,Z40)","v":""},"",{"$f":"Planning!V24","v":{"v":0,"d":"0.00"}},{"$f":"'Month 4'!M40+'Month 4'!N40-'Month 4'!O40","v":{"v":0,"d":"0.00"}},null,"","",{"$f":"SUMIFS($J$25:$J$224,$C$25:$C$224,$C40,$G$25:$G$224,Lists!$A$16)","v":0},0,null,"",null,{"$f":"IF(C40=0,\"\",LEFT(INDEX(Lists!$H$5:$H$49,MATCH(C40,Lists!$G$5:$G$49,0),1),1))","v":""},null,{"$f":"'Month 4'!H40+'Month 4'!I40-'Month 4'!J40","v":0},"","",null,"0"]
[{"$f":"Planning!A25","v":"I017"},{"$f":"Planning!B25","v":0},{"$f":"Planning!C25","v":0},{"$f":"Planning!D25","v":0},{"$f":"Planning!E25","v":0},{"$f":"IF(Planning!G25<>0,Planning!G25,\"\")","v":""},{"$f":"Planning!H25","v":0},{"$f":"Planning!U25","v":0},{"$f":"IF(OR(W41=\"1\",AND(W41<>\"1\",G41=Lists!$A$17)),Y41,0)","v":0},null,{"$f":"IF(AND(W41=\"2\",G41<>Lists!$A$17),AA41,Z41)","v":""},"",{"$f":"Planning!V25","v":{"v":0,"d":"0.00"}},{"$f":"'Month 4'!M41+'Month 4'!N41-'Month 4'!O41","v":{"v":0,"d":"0.00"}},null,"","",{"$f":"SUMIFS($J$25:$J$224,$C$25:$C$224,$C41,$G$25:$G$224,Lists!$A$16)","v":0},0,null,"",null,{"$f":"IF(C41=0,\"\",LEFT(INDEX(Lists!$H$5:$H$49,MATCH(C41,Lists!$G$5:$G$49,0),1),1))","v":""},null,{"$f":"'Month 4'!H41+'Month 4'!I41-'Month 4'!J41","v":0},"","",null,"0"]
[{"$f":"Planning!A26","v":"I018"},{"$f":"Planning!B26","v":0},{"$f":"Planning!C26","v":0},{"$f":"Planning!D26","v":0},{"$f":"Planning!E26","v":0},{"$f":"IF(Planning!G26<>0,Planning!G26,\"\")","v":""},{"$f":"Planning!H26","v":0},{"$f":"Planning!U26","v":0},{"$f":"IF(OR(W42=\"1\",AND(W42<>\"1\",G42=Lists!$A$17)),Y42,0)","v":0},null,{"$f":"IF(AND(W42=\"2\",G42<>Lists!$A$17),AA42,Z42)","v":""},"",{"$f":"Planning!V26","v":{"v":0,"d":"0.00"}},{"$f":"'Month 4'!M42+'Month 4'!N42-'Month 4'!O42","v":{"v":0,"d":"0.00"}},null,"","",{"$f":"SUMIFS($J$25:$J$224,$C$25:$C$224,$C42,$G$25:$G$224,Lists!$A$16)","v":0},0,null,"",null,{"$f":"IF(C42=0,\"\",LEFT(INDEX(Lists!$H$5:$H$49,MATCH(C42,Lists!$G$5:$G$49,0),1),1))","v":""},null,{"$f":"'Month 4'!H42+'Month 4'!I42-'Month 4'!J42","v":0},"","",null,"0"]
[{"$f":"Planning!A27","v":"I019"},{"$f":"Planning!B27","v":0},{"$f":"Planning!C27","v":0},{"$f":"Planning!D27","v":0},{"$f":"Planning!E27","v":0},{"$f":"IF(Planning!G27<>0,Planning!G27,\"\")","v":""},{"$f":"Planning!H27","v":0},{"$f":"Planning!U27","v":0},{"$f":"IF(OR(W43=\"1\",AND(W43<>\"1\",G43=Lists!$A$17)),Y43,0)","v":0},null,{"$f":"IF(AND(W43=\"2\",G43<>Lists!$A$17),AA43,Z43)","v":""},"",{"$f":"Planning!V27","v":{"v":0,"d":"0.00"}},{"$f":"'Month 4'!M43+'Month 4'!N43-'Month 4'!O43","v":{"v":0,"d":"0.00"}},null,"","",{"$f":"SUMIFS($J$25:$J$224,$C$25:$C$224,$C43,$G$25:$G$224,Lists!$A$16)","v":0},0,null,"",null,{"$f":"IF(C43=0,\"\",LEFT(INDEX(Lists!$H$5:$H$49,MATCH(C43,Lists!$G$5:$G$49,0),1),1))","v":""},null,{"$f":"'Month 4'!H43+'Month 4'!I43-'Month 4'!J43","v":0},"","",null,"0"]
[{"$f":"Planning!A28","v":"I020"},{"$f":"Planning!B28","v":0},{"$f":"Planning!C28","v":0},{"$f":"Planning!D28","v":0},{"$f":"Planning!E28","v":0},{"$f":"IF(Planning!G28<>0,Planning!G28,\"\")","v":""},{"$f":"Planning!H28","v":0},{"$f":"Planning!U28","v":0},{"$f":"IF(OR(W44=\"1\",AND(W44<>\"1\",G44=Lists!$A$17)),Y44,0)","v":0},null,{"$f":"IF(AND(W44=\"2\",G44<>Lists!$A$17),AA44,Z44)","v":""},"",{"$f":"Planning!V28","v":{"v":0,"d":"0.00"}},{"$f":"'Month 4'!M44+'Month 4'!N44-'Month 4'!O44","v":{"v":0,"d":"0.00"}},null,"","",{"$f":"SUMIFS($J$25:$J$224,$C$25:$C$224,$C44,$G$25:$G$224,Lists!$A$16)","v":0},0,null,"",null,{"$f":"IF(C44=0,\"\",LEFT(INDEX(Lists!$H$5:$H$49,MATCH(C44,Lists!$G$5:$G$49,0),1),1))","v":""},null,{"$f":"'Month 4'!H44+'Month 4'!I44-'Month 4'!J44","v":0},"","",null,"0"]
[{"$f":"Planning!A29","v":"I021"},{"$f":"Planning!B29","v":0},{"$f":"Planning!C29","v":0},{"$f":"Planning!D29","v":0},{"$f":"Planning!E29","v":0},{"$f":"IF(Planning!G29<>0,Planning!G29,\"\")","v":""},{"$f":"Planning!H29","v":0},{"$f":"Planning!U29","v":0},{"$f":"IF(OR(W45=\"1\",AND(W45<>\"1\",G45=Lists!$A$17)),Y45,0)","v":0},null,{"$f":"IF(AND(W45=\"2\",G45<>Lists!$A$17),AA45,Z45)","v":""},"",{"$f":"Planning!V29","v":{"v":0,"d":"0.00"}},{"$f":"'Month 4'!M45+'Month 4'!N45-'Month 4'!O45","v":{"v":0,"d":"0.00"}},null,"","",{"$f":"SUMIFS($J$25:$J$224,$C$25:$C$224,$C45,$G$25:$G$224,Lists!$A$16)","v":0},0,null,"",null,{"$f":"IF(C45=0,\"\",LEFT(INDEX(Lists!$H$5:$H$49,MATCH(C45,Lists!$G$5:$G$49,0),1),1))","v":""},null,{"$f":"'Month 4'!H45+'Month 4'!I45-'Month 4'!J45","v":0},"","",null,"0"]
[{"$f":"Planning!A30","v":"I022"},{"$f":"Planning!B30","v":0},{"$f":"Planning!C30","v":0},{"$f":"Planning!D30","v":0},{"$f":"Planning!E30","v":0},{"$f":"IF(Planning!G30<>0,Planning!G30,\"\")","v":""},{"$f":"Planning!H30","v":0},{"$f":"Planning!U30","v":0},{"$f":"IF(OR(W46=\"1\",AND(W46<>\"1\",G46=Lists!$A$17)),Y46,0)","v":0},null,{"$f":"IF(AND(W46=\"2\",G46<>Lists!$A$17),AA46,Z46)","v":""},"",{"$f":"Planning!V30","v":{"v":0,"d":"0.00"}},{"$f":"'Month 4'!M46+'Month 4'!N46-'Month 4'!O46","v":{"v":0,"d":"0.00"}},null,"","",{"$f":"SUMIFS($J$25:$J$224,$C$25:$C$224,$C46,$G$25:$G$224,Lists!$A$16)","v":0},0,null,"",null,{"$f":"IF(C46=0,\"\",LEFT(INDEX(Lists!$H$5:$H$49,MATCH(C46,Lists!$G$5:$G$49,0),1),1))","v":""},null,{"$f":"'Month 4'!H46+'Month 4'!I46-'Month 4'!J46","v":0},"","",null,"0"]
[{"$f":"Planning!A31","v":"I023"},{"$f":"Planning!B31","v":0},{"$f":"Planning!C31","v":0},{"$f":"Planning!D31","v":0},{"$f":"Planning!E31","v":0},{"$f":"IF(Planning!G31<>0,Planning!G31,\"\")","v":""},{"$f":"Planning!H31","v":0},{"$f":"Planning!U31","v":0},{"$f":"IF(OR(W47=\"1\",AND(W47<>\"1\",G47=Lists!$A$17)),Y47,0)","v":0},null,{"$f":"IF(AND(W47=\"2\",G47<>Lists!$A$17),AA47,Z47)","v":""},"",{"$f":"Planning!V31","v":{"v":0,"d":"0.00"}},{"$f":"'Month 4'!M47+'Month 4'!N47-'Month 4'!O47","v":{"v":0,"d":"0.00"}},null,"","",{"$f":"SUMIFS($J$25:$J$224,$C$25:$C$224,$C47,$G$25:$G$224,Lists!$A$16)","v":0},0,null,"",null,{"$f":"IF(C47=0,\"\",LEFT(INDEX(Lists!$H$5:$H$49,MATCH(C47,Lists!$G$5:$G$49,0),1),1))","v":""},null,{"$f":"'Month 4'!H47+'Month 4'!I47-'Month 4'!J47","v":0},"","",null,"0"]
[{"$f":"Planning!A32","v":"I024"},{"$f":"Planning!B32","v":0},{"$f":"Planning!C32","v":0},{"$f":"Planning!D32","v":0},{"$f":"Planning!E32","v":0},{"$f":"IF(Planning!G32<>0,Planning!G32,\"\")","v":""},{"$f":"Planning!H32","v":0},{"$f":"Planning!U32","v":0},{"$f":"IF(OR(W48=\"1\",AND(W48<>\"1\",G48=Lists!$A$17)),Y48,0)","v":0},null,{"$f":"IF(AND(W48=\"2\",G48<>Lists!$A$17),AA48,Z48)","v":""},"",{"$f":"Planning!V32","v":{"v":0,"d":"0.00"}},{"$f":"'Month 4'!M48+'Month 4'!N48-'Month 4'!O48","v":{"v":0,"d":"0.00"}},null,"","",{"$f":"SUMIFS($J$25:$J$224,$C$25:$C$224,$C48,$G$25:$G$224,Lists!$A$16)","v":0},0,null,"",null,{"$f":"IF(C48=0,\"\",LEFT(INDEX(Lists!$H$5:$H$49,MATCH(C48,Lists!$G$5:$G$49,0),1),1))","v":""},null,{"$f":"'Month 4'!H48+'Month 4'!I48-'Month 4'!J48","v":0},"","",null,"0"]
[{"$f":"Planning!A33","v":"I025"},{"$f":"Planning!B33","v":0},{"$f":"Planning!C33","v":0},{"$f":"Planning!D33","v":0},{"$f":"Planning!E33","v":0},{"$f":"IF(Planning!G33<>0,Planning!G33,\"\")","v":""},{"$f":"Planning!H33","v":0},{"$f":"Planning!U33","v":0},{"$f":"IF(OR(W49=\"1\",AND(W49<>\"1\",G49=Lists!$A$17)),Y49,0)","v":0},null,{"$f":"IF(AND(W49=\"2\",G49<>Lists!$A$17),AA49,Z49)","v":""},"",{"$f":"Planning!V33","v":{"v":0,"d":"0.00"}},{"$f":"'Month 4'!M49+'Month 4'!N49-'Month 4'!O49","v":{"v":0,"d":"0.00"}},null,"","",{"$f":"SUMIFS($J$25:$J$224,$C$25:$C$224,$C49,$G$25:$G$224,Lists!$A$16)","v":0},0,null,"",null,{"$f":"IF(C49=0,\"\",LEFT(INDEX(Lists!$H$5:$H$49,MATCH(C49,Lists!$G$5:$G$49,0),1),1))","v":""},null,{"$f":"'Month 4'!H49+'Month 4'!I49-'Month 4'!J49","v":0},"","",null,"0"]
[{"$f":"Planning!A34","v":"I026"},{"$f":"Planning!B34","v":0},{"$f":"Planning!C34","v":0},{"$f":"Planning!D34","v":0},{"$f":"Planning!E34","v":0},{"$f":"IF(Planning!G34<>0,Planning!G34,\"\")","v":""},{"$f":"Planning!H34","v":0},{"$f":"Planning!U34","v":0},{"$f":"IF(OR(W50=\"1\",AND(W50<>\"1\",G50=Lists!$A$17)),Y50,0)","v":0},null,{"$f":"IF(AND(W50=\"2\",G50<>Lists!$A$17),AA50,Z50)","v":""},"",{"$f":"Planning!V34","v":{"v":0,"d":"0.00"}},{"$f":"'Month 4'!M50+'Month 4'!N50-'Month 4'!O50","v":{"v":0,"d":"0.00"}},null,"","",{"$f":"SUMIFS($J$25:$J$224,$C$25:$C$224,$C50,$G$25:$G$224,Lists!$A$16)","v":0},0,null,"",null,{"$f":"IF(C50=0,\"\",LEFT(INDEX(Lists!$H$5:$H$49,MATCH(C50,Lists!$G$5:$G$49,0),1),1))","v":""},null,{"$f":"'Month 4'!H50+'Month 4'!I50-'Month 4'!J50","v":0},"","",null,"0"]
[{"$f":"Planning!A35","v":"I027"},{"$f":"Planning!B35","v":0},{"$f":"Planning!C35","v":0},{"$f":"Planning!D35","v":0},{"$f":"Planning!E35","v":0},{"$f":"IF(Planning!G35<>0,Planning!G35,\"\")","v":""},{"$f":"Planning!H35","v":0},{"$f":"Planning!U35","v":0},{"$f":"IF(OR(W51=\"1\",AND(W51<>\"1\",G51=Lists!$A$17)),Y51,0)","v":0},null,{"$f":"IF(AND(W51=\"2\",G51<>Lists!$A$17),AA51,Z51)","v":""},"",{"$f":"Planning!V35","v":{"v":0,"d":"0.00"}},{"$f":"'Month 4'!M51+'Month 4'!N51-'Month 4'!O51","v":{"v":0,"d":"0.00"}},null,"","",{"$f":"SUMIFS($J$25:$J$224,$C$25:$C$224,$C51,$G$25:$G$224,Lists!$A$16)","v":0},0,null,"",null,{"$f":"IF(C51=0,\"\",LEFT(INDEX(Lists!$H$5:$H$49,MATCH(C51,Lists!$G$5:$G$49,0),1),1))","v":""},null,{"$f":"'Month 4'!H51+'Month 4'!I51-'Month 4'!J51","v":0},"","",null,"0"]
[{"$f":"Planning!A36","v":"I028"},{"$f":"Planning!B36","v":0},{"$f":"Planning!C36","v":0},{"$f":"Planning!D36","v":0},{"$f":"Planning!E36","v":0},{"$f":"IF(Planning!G36<>0,Planning!G36,\"\")","v":""},{"$f":"Planning!H36","v":0},{"$f":"Planning!U36","v":0},{"$f":"IF(OR(W52=\"1\",AND(W52<>\"1\",G52=Lists!$A$17)),Y52,0)","v":0},null,{"$f":"IF(AND(W52=\"2\",G52<>Lists!$A$17),AA52,Z52)","v":""},"",{"$f":"Planning!V36","v":{"v":0,"d":"0.00"}},{"$f":"'Month 4'!M52+'Month 4'!N52-'Month 4'!O52","v":{"v":0,"d":"0.00"}},null,"","",{"$f":"SUMIFS($J$25:$J$224,$C$25:$C$224,$C52,$G$25:$G$224,Lists!$A$16)","v":0},0,null,"",null,{"$f":"IF(C52=0,\"\",LEFT(INDEX(Lists!$H$5:$H$49,MATCH(C52,Lists!$G$5:$G$49,0),1),1))","v":""},null,{"$f":"'Month 4'!H52+'Month 4'!I52-'Month 4'!J52","v":0},"","",null,"0"]
[{"$f":"Planning!A37","v":"I029"},{"$f":"Planning!B37","v":0},{"$f":"Planning!C37","v":0},{"$f":"Planning!D37","v":0},{"$f":"Planning!E37","v":0},{"$f":"IF(Planning!G37<>0,Planning!G37,\"\")","v":""},{"$f":"Planning!H37","v":0},{"$f":"Planning!U37","v":0},{"$f":"IF(OR(W53=\"1\",AND(W53<>\"1\",G53=Lists!$A$17)),Y53,0)","v":0},null,{"$f":"IF(AND(W53=\"2\",G53<>Lists!$A$17),AA53,Z53)","v":""},"",{"$f":"Planning!V37","v":{"v":0,"d":"0.00"}},{"$f":"'Month 4'!M53+'Month 4'!N53-'Month 4'!O53","v":{"v":0,"d":"0.00"}},null,"","",{"$f":"SUMIFS($J$25:$J$224,$C$25:$C$224,$C53,$G$25:$G$224,Lists!$A$16)","v":0},0,null,"",null,{"$f":"IF(C53=0,\"\",LEFT(INDEX(Lists!$H$5:$H$49,MATCH(C53,Lists!$G$5:$G$49,0),1),1))","v":""},null,{"$f":"'Month 4'!H53+'Month 4'!I53-'Month 4'!J53","v":0},"","",null,"0"]
[{"$f":"Planning!A38","v":"I030"},{"$f":"Planning!B38","v":0},{"$f":"Planning!C38","v":0},{"$f":"Planning!D38","v":0},{"$f":"Planning!E38","v":0},{"$f":"IF(Planning!G38<>0,Planning!G38,\"\")","v":""},{"$f":"Planning!H38","v":0},{"$f":"Planning!U38","v":0},{"$f":"IF(OR(W54=\"1\",AND(W54<>\"1\",G54=Lists!$A$17)),Y54,0)","v":0},null,{"$f":"IF(AND(W54=\"2\",G54<>Lists!$A$17),AA54,Z54)","v":""},"",{"$f":"Planning!V38","v":{"v":0,"d":"0.00"}},{"$f":"'Month 4'!M54+'Month 4'!N54-'Month 4'!O54","v":{"v":0,"d":"0.00"}},null,"","",{"$f":"SUMIFS($J$25:$J$224,$C$25:$C$224,$C54,$G$25:$G$224,Lists!$A$16)","v":0},0,null,"",null,{"$f":"IF(C54=0,\"\",LEFT(INDEX(Lists!$H$5:$H$49,MATCH(C54,Lists!$G$5:$G$49,0),1),1))","v":""},null,{"$f":"'Month 4'!H54+'Month 4'!I54-'Month 4'!J54","v":0},"","",null,"0"]
[{"$f":"Planning!A39","v":"I031"},{"$f":"Planning!B39","v":0},{"$f":"Planning!C39","v":0},{"$f":"Planning!D39","v":0},{"$f":"Planning!E39","v":0},{"$f":"IF(Planning!G39<>0,Planning!G39,\"\")","v":""},{"$f":"Planning!H39","v":0},{"$f":"Planning!U39","v":0},{"$f":"IF(OR(W55=\"1\",AND(W55<>\"1\",G55=Lists!$A$17)),Y55,0)","v":0},null,{"$f":"IF(AND(W55=\"2\",G55<>Lists!$A$17),AA55,Z55)","v":""},"",{"$f":"Planning!V39","v":{"v":0,"d":"0.00"}},{"$f":"'Month 4'!M55+'Month 4'!N55-'Month 4'!O55","v":{"v":0,"d":"0.00"}},null,"","",{"$f":"SUMIFS($J$25:$J$224,$C$25:$C$224,$C55,$G$25:$G$224,Lists!$A$16)","v":0},0,null,"",null,{"$f":"IF(C55=0,\"\",LEFT(INDEX(Lists!$H$5:$H$49,MATCH(C55,Lists!$G$5:$G$49,0),1),1))","v":""},null,{"$f":"'Month 4'!H55+'Month 4'!I55-'Month 4'!J55","v":0},"","",null,"0"]
[{"$f":"Planning!A40","v":"I032"},{"$f":"Planning!B40","v":0},{"$f":"Planning!C40","v":0},{"$f":"Planning!D40","v":0},{"$f":"Planning!E40","v":0},{"$f":"IF(Planning!G40<>0,Planning!G40,\"\")","v":""},{"$f":"Planning!H40","v":0},{"$f":"Planning!U40","v":0},{"$f":"IF(OR(W56=\"1\",AND(W56<>\"1\",G56=Lists!$A$17)),Y56,0)","v":0},null,{"$f":"IF(AND(W56=\"2\",G56<>Lists!$A$17),AA56,Z56)","v":""},"",{"$f":"Planning!V40","v":{"v":0,"d":"0.00"}},{"$f":"'Month 4'!M56+'Month 4'!N56-'Month 4'!O56","v":{"v":0,"d":"0.00"}},null,"","",{"$f":"SUMIFS($J$25:$J$224,$C$25:$C$224,$C56,$G$25:$G$224,Lists!$A$16)","v":0},0,null,"",null,{"$f":"IF(C56=0,\"\",LEFT(INDEX(Lists!$H$5:$H$49,MATCH(C56,Lists!$G$5:$G$49,0),1),1))","v":""},null,{"$f":"'Month 4'!H56+'Month 4'!I56-'Month 4'!J56","v":0},"","",null,"0"]
[{"$f":"Planning!A41","v":"I033"},{"$f":"Planning!B41","v":0},{"$f":"Planning!C41","v":0},{"$f":"Planning!D41","v":0},{"$f":"Planning!E41","v":0},{"$f":"IF(Planning!G41<>0,Planning!G41,\"\")","v":""},{"$f":"Planning!H41","v":0},{"$f":"Planning!U41","v":0},{"$f":"IF(OR(W57=\"1\",AND(W57<>\"1\",G57=Lists!$A$17)),Y57,0)","v":0},null,{"$f":"IF(AND(W57=\"2\",G57<>Lists!$A$17),AA57,Z57)","v":""},{"$f":"IF($U57=ExcluirDelPLogro,\"\",IF(AND(H57=0,I57=0,J57=0),\"\",K57))","v":""},{"$f":"Planning!V41","v":{"v":0,"d":"0.00"}},{"$f":"'Month 4'!M57+'Month 4'!N57-'Month 4'!O57","v":{"v":0,"d":"0.00"}},null,"",{"$f":"IF($U57=ExcluirDelPLogro,\"\",IF(AND(M57=0,N57=0,O57=0),\"\",P57))","v":""},{"$f":"SUMIFS($J$25:$J$224,$C$25:$C$224,$C57,$G$25:$G$224,Lists!$A$16)","v":0},0,null,"",null,{"$f":"IF(C57=0,\"\",LEFT(INDEX(Lists!$H$5:$H$49,MATCH(C57,Lists!$G$5:$G$49,0),1),1))","v":""},null,{"$f":"'Month 4'!H57+'Month 4'!I57-'Month 4'!J57","v":0},"",{"$f":"IF(AND(H57=0,I57=0,J57=0),\"\",IF(J57>0,H57/J57,0))","v":""},null,"0"]
[{"$f":"Planning!A42","v":"I034"},{"$f":"Planning!B42","v":0},{"$f":"Planning!C42","v":0},{"$f":"Planning!D42","v":0},{"$f":"Planning!E42","v":0},{"$f":"IF(Planning!G42<>0,Planning!G42,\"\")","v":""},{"$f":"Planning!H42","v":0},{"$f":"Planning!U42","v":0},{"$f":"IF(OR(W58=\"1\",AND(W58<>\"1\",G58=Lists!$A$17)),Y58,0)","v":0},null,{"$f":"IF(AND(W58=\"2\",G58<>Lists!$A$17),AA58,Z58)","v":""},"",{"$f":"Planning!V42","v":{"v":0,"d":"0.00"}},{"$f":"'Month 4'!M58+'Month 4'!N58-'Month 4'!O58","v":{"v":0,"d":"0.00"}},null,"","",{"$f":"SUMIFS($J$25:$J$224,$C$25:$C$224,$C58,$G$25:$G$224,Lists!$A$16)","v":0},0,null,"",null,{"$f":"IF(C58=0,\"\",LEFT(INDEX(Lists!$H$5:$H$49,MATCH(C58,Lists!$G$5:$G$49,0),1),1))","v":""},null,{"$f":"'Month 4'!H58+'Month 4'!I58-'Month 4'!J58","v":0},"","",null,"0"]
[{"$f":"Planning!A43","v":"I035"},{"$f":"Planning!B43","v":0},{"$f":"Planning!C43","v":0},{"$f":"Planning!D43","v":0},{"$f":"Planning!E43","v":0},{"$f":"IF(Planning!G43<>0,Planning!G43,\"\")","v":""},{"$f":"Planning!H43","v":0},{"$f":"Planning!U43","v":0},{"$f":"IF(OR(W59=\"1\",AND(W59<>\"1\",G59=Lists!$A$17)),Y59,0)","v":0},null,{"$f":"IF(AND(W59=\"2\",G59<>Lists!$A$17),AA59,Z59)","v":""},"",{"$f":"Planning!V43","v":{"v":0,"d":"0.00"}},{"$f":"'Month 4'!M59+'Month 4'!N59-'Month 4'!O59","v":{"v":0,"d":"0.00"}},null,"","",{"$f":"SUMIFS($J$25:$J$224,$C$25:$C$224,$C59,$G$25:$G$224,Lists!$A$16)","v":0},0,null,"",null,{"$f":"IF(C59=0,\"\",LEFT(INDEX(Lists!$H$5:$H$49,MATCH(C59,Lists!$G$5:$G$49,0),1),1))","v":""},null,{"$f":"'Month 4'!H59+'Month 4'!I59-'Month 4'!J59","v":0},"","",null,"0"]
[{"$f":"Planning!A44","v":"I036"},{"$f":"Planning!B44","v":0},{"$f":"Planning!C44","v":0},{"$f":"Planning!D44","v":0},{"$f":"Planning!E44","v":0},{"$f":"IF(Planning!G44<>0,Planning!G44,\"\")","v":""},{"$f":"Planning!H44","v":0},{"$f":"Planning!U44","v":0},{"$f":"IF(OR(W60=\"1\",AND(W60<>\"1\",G60=Lists!$A$17)),Y60,0)","v":0},null,{"$f":"IF(AND(W60=\"2\",G60<>Lists!$A$17),AA60,Z60)","v":""},"",{"$f":"Planning!V44","v":{"v":0,"d":"0.00"}},{"$f":"'Month 4'!M60+'Month 4'!N60-'Month 4'!O60","v":{"v":0,"d":"0.00"}},null,"","",{"$f":"SUMIFS($J$25:$J$224,$C$25:$C$224,$C60,$G$25:$G$224,Lists!$A$16)","v":0},0,null,"",null,{"$f":"IF(C60=0,\"\",LEFT(INDEX(Lists!$H$5:$H$49,MATCH(C60,Lists!$G$5:$G$49,0),1),1))","v":""},null,{"$f":"'Month 4'!H60+'Month 4'!I60-'Month 4'!J60","v":0},"","",null,"0"]
[{"$f":"Planning!A45","v":"I037"},{"$f":"Planning!B45","v":0},{"$f":"Planning!C45","v":0},{"$f":"Planning!D45","v":0},{"$f":"Planning!E45","v":0},{"$f":"IF(Planning!G45<>0,Planning!G45,\"\")","v":""},{"$f":"Planning!H45","v":0},{"$f":"Planning!U45","v":0},{"$f":"IF(OR(W61=\"1\",AND(W61<>\"1\",G61=Lists!$A$17)),Y61,0)","v":0},null,{"$f":"IF(AND(W61=\"2\",G61<>Lists!$A$17),AA61,Z61)","v":""},"",{"$f":"Planning!V45","v":{"v":0,"d":"0.00"}},{"$f":"'Month 4'!M61+'Month 4'!N61-'Month 4'!O61","v":{"v":0,"d":"0.00"}},null,"","",{"$f":"SUMIFS($J$25:$J$224,$C$25:$C$224,$C61,$G$25:$G$224,Lists!$A$16)","v":0},0,null,"",null,{"$f":"IF(C61=0,\"\",LEFT(INDEX(Lists!$H$5:$H$49,MATCH(C61,Lists!$G$5:$G$49,0),1),1))","v":""},null,{"$f":"'Month 4'!H61+'Month 4'!I61-'Month 4'!J61","v":0},"","",null,"0"]
[{"$f":"Planning!A46","v":"I038"},{"$f":"Planning!B46","v":0},{"$f":"Planning!C46","v":0},{"$f":"Planning!D46","v":0},{"$f":"Planning!E46","v":0},{"$f":"IF(Planning!G46<>0,Planning!G46,\"\")","v":""},{"$f":"Planning!H46","v":0},{"$f":"Planning!U46","v":0},{"$f":"IF(OR(W62=\"1\",AND(W62<>\"1\",G62=Lists!$A$17)),Y62,0)","v":0},null,{"$f":"IF(AND(W62=\"2\",G62<>Lists!$A$17),AA62,Z62)","v":""},"",{"$f":"Planning!V46","v":{"v":0,"d":"0.00"}},{"$f":"'Month 4'!M62+'Month 4'!N62-'Month 4'!O62","v":{"v":0,"d":"0.00"}},null,"","",{"$f":"SUMIFS($J$25:$J$224,$C$25:$C$224,$C62,$G$25:$G$224,Lists!$A$16)","v":0},0,null,"",null,{"$f":"IF(C62=0,\"\",LEFT(INDEX(Lists!$H$5:$H$49,MATCH(C62,Lists!$G$5:$G$49,0),1),1))","v":""},null,{"$f":"'Month 4'!H62+'Month 4'!I62-'Month 4'!J62","v":0},"","",null,"0"]
[{"$f":"Planning!A47","v":"I039"},{"$f":"Planning!B47","v":0},{"$f":"Planning!C47","v":0},{"$f":"Planning!D47","v":0},{"$f":"Planning!E47","v":0},{"$f":"IF(Planning!G47<>0,Planning!G47,\"\")","v":""},{"$f":"Planning!H47","v":0},{"$f":"Planning!U47","v":0},{"$f":"IF(OR(W63=\"1\",AND(W63<>\"1\",G63=Lists!$A$17)),Y63,0)","v":0},null,{"$f":"IF(AND(W63=\"2\",G63<>Lists!$A$17),AA63,Z63)","v":""},"",{"$f":"Planning!V47","v":{"v":0,"d":"0.00"}},{"$f":"'Month 4'!M63+'Month 4'!N63-'Month 4'!O63","v":{"v":0,"d":"0.00"}},null,"","",{"$f":"SUMIFS($J$25:$J$224,$C$25:$C$224,$C63,$G$25:$G$224,Lists!$A$16)","v":0},0,null,"",null,{"$f":"IF(C63=0,\"\",LEFT(INDEX(Lists!$H$5:$H$49,MATCH(C63,Lists!$G$5:$G$49,0),1),1))","v":""},null,{"$f":"'Month 4'!H63+'Month 4'!I63-'Month 4'!J63","v":0},"","",null,"0"]
[{"$f":"Planning!A48","v":"I040"},{"$f":"Planning!B48","v":0},{"$f":"Planning!C48","v":0},{"$f":"Planning!D48","v":0},{"$f":"Planning!E48","v":0},{"$f":"IF(Planning!G48<>0,Planning!G48,\"\")","v":""},{"$f":"Planning!H48","v":0},{"$f":"Planning!U48","v":0},{"$f":"IF(OR(W64=\"1\",AND(W64<>\"1\",G64=Lists!$A$17)),Y64,0)","v":0},null,{"$f":"IF(AND(W64=\"2\",G64<>Lists!$A$17),AA64,Z64)","v":""},"",{"$f":"Planning!V48","v":{"v":0,"d":"0.00"}},{"$f":"'Month 4'!M64+'Month 4'!N64-'Month 4'!O64","v":{"v":0,"d":"0.00"}},null,"","",{"$f":"SUMIFS($J$25:$J$224,$C$25:$C$224,$C64,$G$25:$G$224,Lists!$A$16)","v":0},0,null,"",null,{"$f":"IF(C64=0,\"\",LEFT(INDEX(Lists!$H$5:$H$49,MATCH(C64,Lists!$G$5:$G$49,0),1),1))","v":""},null,{"$f":"'Month 4'!H64+'Month 4'!I64-'Month 4'!J64","v":0},"","",null,"0"]
[{"$f":"Planning!A49","v":"I041"},{"$f":"Planning!B49","v":0},{"$f":"Planning!C49","v":0},{"$f":"Planning!D49","v":0},{"$f":"Planning!E49","v":0},{"$f":"IF(Planning!G49<>0,Planning!G49,\"\")","v":""},{"$f":"Planning!H49","v":0},{"$f":"Planning!U49","v":0},{"$f":"IF(OR(W65=\"1\",AND(W65<>\"1\",G65=Lists!$A$17)),Y65,0)","v":0},null,{"$f":"IF(AND(W65=\"2\",G65<>Lists!$A$17),AA65,Z65)","v":""},"",{"$f":"Planning!V49","v":{"v":0,"d":"0.00"}},{"$f":"'Month 4'!M65+'Month 4'!N65-'Month 4'!O65","v":{"v":0,"d":"0.00"}},null,"","",{"$f":"SUMIFS($J$25:$J$224,$C$25:$C$224,$C65,$G$25:$G$224,Lists!$A$16)","v":0},0,null,"",null,{"$f":"IF(C65=0,\"\",LEFT(INDEX(Lists!$H$5:$H$49,MATCH(C65,Lists!$G$5:$G$49,0),1),1))","v":""},null,{"$f":"'Month 4'!H65+'Month 4'!I65-'Month 4'!J65","v":0},"","",null,"0"]
[{"$f":"Planning!A50","v":"I042"},{"$f":"Planning!B50","v":0},{"$f":"Planning!C50","v":0},{"$f":"Planning!D50","v":0},{"$f":"Planning!E50","v":0},{"$f":"IF(Planning!G50<>0,Planning!G50,\"\")","v":""},{"$f":"Planning!H50","v":0},{"$f":"Planning!U50","v":0},{"$f":"IF(OR(W66=\"1\",AND(W66<>\"1\",G66=Lists!$A$17)),Y66,0)","v":0},null,{"$f":"IF(AND(W66=\"2\",G66<>Lists!$A$17),AA66,Z66)","v":""},"",{"$f":"Planning!V50","v":{"v":0,"d":"0.00"}},{"$f":"'Month 4'!M66+'Month 4'!N66-'Month 4'!O66","v":{"v":0,"d":"0.00"}},null,"","",{"$f":"SUMIFS($J$25:$J$224,$C$25:$C$224,$C66,$G$25:$G$224,Lists!$A$16)","v":0},0,null,"",null,{"$f":"IF(C66=0,\"\",LEFT(INDEX(Lists!$H$5:$H$49,MATCH(C66,Lists!$G$5:$G$49,0),1),1))","v":""},null,{"$f":"'Month 4'!H66+'Month 4'!I66-'Month 4'!J66","v":0},"","",null,"0"]
[{"$f":"Planning!A51","v":"I043"},{"$f":"Planning!B51","v":0},{"$f":"Planning!C51","v":0},{"$f":"Planning!D51","v":0},{"$f":"Planning!E51","v":0},{"$f":"IF(Planning!G51<>0,Planning!G51,\"\")","v":""},{"$f":"Planning!H51","v":0},{"$f":"Planning!U51","v":0},{"$f":"IF(OR(W67=\"1\",AND(W67<>\"1\",G67=Lists!$A$17)),Y67,0)","v":0},null,{"$f":"IF(AND(W67=\"2\",G67<>Lists!$A$17),AA67,Z67)","v":""},"",{"$f":"Planning!V51","v":{"v":0,"d":"0.00"}},{"$f":"'Month 4'!M67+'Month 4'!N67-'Month 4'!O67","v":{"v":0,"d":"0.00"}},null,"","",{"$f":"SUMIFS($J$25:$J$224,$C$25:$C$224,$C67,$G$25:$G$224,Lists!$A$16)","v":0},0,null,"",null,{"$f":"IF(C67=0,\"\",LEFT(INDEX(Lists!$H$5:$H$49,MATCH(C67,Lists!$G$5:$G$49,0),1),1))","v":""},null,{"$f":"'Month 4'!H67+'Month 4'!I67-'Month 4'!J67","v":0},"","",null,"0"]
[{"$f":"Planning!A52","v":"I044"},{"$f":"Planning!B52","v":0},{"$f":"Planning!C52","v":0},{"$f":"Planning!D52","v":0},{"$f":"Planning!E52","v":0},{"$f":"IF(Planning!G52<>0,Planning!G52,\"\")","v":""},{"$f":"Planning!H52","v":0},{"$f":"Planning!U52","v":0},{"$f":"IF(OR(W68=\"1\",AND(W68<>\"1\",G68=Lists!$A$17)),Y68,0)","v":0},null,{"$f":"IF(AND(W68=\"2\",G68<>Lists!$A$17),AA68,Z68)","v":""},"",{"$f":"Planning!V52","v":{"v":0,"d":"0.00"}},{"$f":"'Month 4'!M68+'Month 4'!N68-'Month 4'!O68","v":{"v":0,"d":"0.00"}},null,"","",{"$f":"SUMIFS($J$25:$J$224,$C$25:$C$224,$C68,$G$25:$G$224,Lists!$A$16)","v":0},0,null,"",null,{"$f":"IF(C68=0,\"\",LEFT(INDEX(Lists!$H$5:$H$49,MATCH(C68,Lists!$G$5:$G$49,0),1),1))","v":""},null,{"$f":"'Month 4'!H68+'Month 4'!I68-'Month 4'!J68","v":0},"","",null,"0"]
[{"$f":"Planning!A53","v":"I045"},{"$f":"Planning!B53","v":0},{"$f":"Planning!C53","v":0},{"$f":"Planning!D53","v":0},{"$f":"Planning!E53","v":0},{"$f":"IF(Planning!G53<>0,Planning!G53,\"\")","v":""},{"$f":"Planning!H53","v":0},{"$f":"Planning!U53","v":0},{"$f":"IF(OR(W69=\"1\",AND(W69<>\"1\",G69=Lists!$A$17)),Y69,0)","v":0},null,{"$f":"IF(AND(W69=\"2\",G69<>Lists!$A$17),AA69,Z69)","v":""},"",{"$f":"Planning!V53","v":{"v":0,"d":"0.00"}},{"$f":"'Month 4'!M69+'Month 4'!N69-'Month 4'!O69","v":{"v":0,"d":"0.00"}},null,"","",{"$f":"SUMIFS($J$25:$J$224,$C$25:$C$224,$C69,$G$25:$G$224,Lists!$A$16)","v":0},0,null,"",null,{"$f":"IF(C69=0,\"\",LEFT(INDEX(Lists!$H$5:$H$49,MATCH(C69,Lists!$G$5:$G$49,0),1),1))","v":""},null,{"$f":"'Month 4'!H69+'Month 4'!I69-'Month 4'!J69","v":0},"","",null,"0"]
[{"$f":"Planning!A54","v":"I046"},{"$f":"Planning!B54","v":0},{"$f":"Planning!C54","v":0},{"$f":"Planning!D54","v":0},{"$f":"Planning!E54","v":0},{"$f":"IF(Planning!G54<>0,Planning!G54,\"\")","v":""},{"$f":"Planning!H54","v":0},{"$f":"Planning!U54","v":0},{"$f":"IF(OR(W70=\"1\",AND(W70<>\"1\",G70=Lists!$A$17)),Y70,0)","v":0},null,{"$f":"IF(AND(W70=\"2\",G70<>Lists!$A$17),AA70,Z70)","v":""},"",{"$f":"Planning!V54","v":{"v":0,"d":"0.00"}},{"$f":"'Month 4'!M70+'Month 4'!N70-'Month 4'!O70","v":{"v":0,"d":"0.00"}},null,"","",{"$f":"SUMIFS($J$25:$J$224,$C$25:$C$224,$C70,$G$25:$G$224,Lists!$A$16)","v":0},0,null,"",null,{"$f":"IF(C70=0,\"\",LEFT(INDEX(Lists!$H$5:$H$49,MATCH(C70,Lists!$G$5:$G$49,0),1),1))","v":""},null,{"$f":"'Month 4'!H70+'Month 4'!I70-'Month 4'!J70","v":0},"","",null,"0"]
[{"$f":"Planning!A55","v":"I047"},{"$f":"Planning!B55","v":0},{"$f":"Planning!C55","v":0},{"$f":"Planning!D55","v":0},{"$f":"Planning!E55","v":0},{"$f":"IF(Planning!G55<>0,Planning!G55,\"\")","v":""},{"$f":"Planning!H55","v":0},{"$f":"Planning!U55","v":0},{"$f":"IF(OR(W71=\"1\",AND(W71<>\"1\",G71=Lists!$A$17)),Y71,0)","v":0},null,{"$f":"IF(AND(W71=\"2\",G71<>Lists!$A$17),AA71,Z71)","v":""},"",{"$f":"Planning!V55","v":{"v":0,"d":"0.00"}},{"$f":"'Month 4'!M71+'Month 4'!N71-'Month 4'!O71","v":{"v":0,"d":"0.00"}},null,"","",{"$f":"SUMIFS($J$25:$J$224,$C$25:$C$224,$C71,$G$25:$G$224,Lists!$A$16)","v":0},0,null,"",null,{"$f":"IF(C71=0,\"\",LEFT(INDEX(Lists!$H$5:$H$49,MATCH(C71,Lists!$G$5:$G$49,0),1),1))","v":""},null,{"$f":"'Month 4'!H71+'Month 4'!I71-'Month 4'!J71","v":0},"","",null,"0"]
[{"$f":"Planning!A56","v":"I048"},{"$f":"Planning!B56","v":0},{"$f":"Planning!C56","v":0},{"$f":"Planning!D56","v":0},{"$f":"Planning!E56","v":0},{"$f":"IF(Planning!G56<>0,Planning!G56,\"\")","v":""},{"$f":"Planning!H56","v":0},{"$f":"Planning!U56","v":0},{"$f":"IF(OR(W72=\"1\",AND(W72<>\"1\",G72=Lists!$A$17)),Y72,0)","v":0},null,{"$f":"IF(AND(W72=\"2\",G72<>Lists!$A$17),AA72,Z72)","v":""},"",{"$f":"Planning!V56","v":{"v":0,"d":"0.00"}},{"$f":"'Month 4'!M72+'Month 4'!N72-'Month 4'!O72","v":{"v":0,"d":"0.00"}},null,"","",{"$f":"SUMIFS($J$25:$J$224,$C$25:$C$224,$C72,$G$25:$G$224,Lists!$A$16)","v":0},0,null,"",null,{"$f":"IF(C72=0,\"\",LEFT(INDEX(Lists!$H$5:$H$49,MATCH(C72,Lists!$G$5:$G$49,0),1),1))","v":""},null,{"$f":"'Month 4'!H72+'Month 4'!I72-'Month 4'!J72","v":0},"","",null,"0"]
[{"$f":"Planning!A57","v":"I049"},{"$f":"Planning!B57","v":0},{"$f":"Planning!C57","v":0},{"$f":"Planning!D57","v":0},{"$f":"Planning!E57","v":0},{"$f":"IF(Planning!G57<>0,Planning!G57,\"\")","v":""},{"$f":"Planning!H57","v":0},{"$f":"Planning!U57","v":0},{"$f":"IF(OR(W73=\"1\",AND(W73<>\"1\",G73=Lists!$A$17)),Y73,0)","v":0},null,{"$f":"IF(AND(W73=\"2\",G73<>Lists!$A$17),AA73,Z73)","v":""},"",{"$f":"Planning!V57","v":{"v":0,"d":"0.00"}},{"$f":"'Month 4'!M73+'Month 4'!N73-'Month 4'!O73","v":{"v":0,"d":"0.00"}},null,"","",{"$f":"SUMIFS($J$25:$J$224,$C$25:$C$224,$C73,$G$25:$G$224,Lists!$A$16)","v":0},0,null,"",null,{"$f":"IF(C73=0,\"\",LEFT(INDEX(Lists!$H$5:$H$49,MATCH(C73,Lists!$G$5:$G$49,0),1),1))","v":""},null,{"$f":"'Month 4'!H73+'Month 4'!I73-'Month 4'!J73","v":0},"","",null,"0"]
[{"$f":"Planning!A58","v":"I050"},{"$f":"Planning!B58","v":0},{"$f":"Planning!C58","v":0},{"$f":"Planning!D58","v":0},{"$f":"Planning!E58","v":0},{"$f":"IF(Planning!G58<>0,Planning!G58,\"\")","v":""},{"$f":"Planning!H58","v":0},{"$f":"Planning!U58","v":0},{"$f":"IF(OR(W74=\"1\",AND(W74<>\"1\",G74=Lists!$A$17)),Y74,0)","v":0},null,{"$f":"IF(AND(W74=\"2\",G74<>Lists!$A$17),AA74,Z74)","v":""},"",{"$f":"Planning!V58","v":{"v":0,"d":"0.00"}},{"$f":"'Month 4'!M74+'Month 4'!N74-'Month 4'!O74","v":{"v":0,"d":"0.00"}},null,"","",{"$f":"SUMIFS($J$25:$J$224,$C$25:$C$224,$C74,$G$25:$G$224,Lists!$A$16)","v":0},0,null,"",null,{"$f":"IF(C74=0,\"\",LEFT(INDEX(Lists!$H$5:$H$49,MATCH(C74,Lists!$G$5:$G$49,0),1),1))","v":""},null,{"$f":"'Month 4'!H74+'Month 4'!I74-'Month 4'!J74","v":0},"","",null,"0"]
[{"$f":"Planning!A59","v":"I051"},{"$f":"Planning!B59","v":0},{"$f":"Planning!C59","v":0},{"$f":"Planning!D59","v":0},{"$f":"Planning!E59","v":0},{"$f":"IF(Planning!G59<>0,Planning!G59,\"\")","v":""},{"$f":"Planning!H59","v":0},{"$f":"Planning!U59","v":0},{"$f":"IF(OR(W75=\"1\",AND(W75<>\"1\",G75=Lists!$A$17)),Y75,0)","v":0},null,{"$f":"IF(AND(W75=\"2\",G75<>Lists!$A$17),AA75,Z75)","v":""},"",{"$f":"Planning!V59","v":{"v":0,"d":"0.00"}},{"$f":"'Month 4'!M75+'Month 4'!N75-'Month 4'!O75","v":{"v":0,"d":"0.00"}},null,"","",{"$f":"SUMIFS($J$25:$J$224,$C$25:$C$224,$C75,$G$25:$G$224,Lists!$A$16)","v":0},0,null,"",null,{"$f":"IF(C75=0,\"\",LEFT(INDEX(Lists!$H$5:$H$49,MATCH(C75,Lists!$G$5:$G$49,0),1),1))","v":""},null,{"$f":"'Month 4'!H75+'Month 4'!I75-'Month 4'!J75","v":0},"","",null,"0"]
[{"$f":"Planning!A60","v":"I052"},{"$f":"Planning!B60","v":0},{"$f":"Planning!C60","v":0},{"$f":"Planning!D60","v":0},{"$f":"Planning!E60","v":0},{"$f":"IF(Planning!G60<>0,Planning!G60,\"\")","v":""},{"$f":"Planning!H60","v":0},{"$f":"Planning!U60","v":0},{"$f":"IF(OR(W76=\"1\",AND(W76<>\"1\",G76=Lists!$A$17)),Y76,0)","v":0},null,{"$f":"IF(AND(W76=\"2\",G76<>Lists!$A$17),AA76,Z76)","v":""},"",{"$f":"Planning!V60","v":{"v":0,"d":"0.00"}},{"$f":"'Month 4'!M76+'Month 4'!N76-'Month 4'!O76","v":{"v":0,"d":"0.00"}},null,"","",{"$f":"SUMIFS($J$25:$J$224,$C$25:$C$224,$C76,$G$25:$G$224,Lists!$A$16)","v":0},0,null,"",null,{"$f":"IF(C76=0,\"\",LEFT(INDEX(Lists!$H$5:$H$49,MATCH(C76,Lists!$G$5:$G$49,0),1),1))","v":""},null,{"$f":"'Month 4'!H76+'Month 4'!I76-'Month 4'!J76","v":0},"","",null,"0"]
[{"$f":"Planning!A61","v":"I053"},{"$f":"Planning!B61","v":0},{"$f":"Planning!C61","v":0},{"$f":"Planning!D61","v":0},{"$f":"Planning!E61","v":0},{"$f":"IF(Planning!G61<>0,Planning!G61,\"\")","v":""},{"$f":"Planning!H61","v":0},{"$f":"Planning!U61","v":0},{"$f":"IF(OR(W77=\"1\",AND(W77<>\"1\",G77=Lists!$A$17)),Y77,0)","v":0},null,{"$f":"IF(AND(W77=\"2\",G77<>Lists!$A$17),AA77,Z77)","v":""},"",{"$f":"Planning!V61","v":{"v":0,"d":"0.00"}},{"$f":"'Month 4'!M77+'Month 4'!N77-'Month 4'!O77","v":{"v":0,"d":"0.00"}},null,"","",{"$f":"SUMIFS($J$25:$J$224,$C$25:$C$224,$C77,$G$25:$G$224,Lists!$A$16)","v":0},0,null,"",null,{"$f":"IF(C77=0,\"\",LEFT(INDEX(Lists!$H$5:$H$49,MATCH(C77,Lists!$G$5:$G$49,0),1),1))","v":""},null,{"$f":"'Month 4'!H77+'Month 4'!I77-'Month 4'!J77","v":0},"","",null,"0"]
[{"$f":"Planning!A62","v":"I054"},{"$f":"Planning!B62","v":0},{"$f":"Planning!C62","v":0},{"$f":"Planning!D62","v":0},{"$f":"Planning!E62","v":0},{"$f":"IF(Planning!G62<>0,Planning!G62,\"\")","v":""},{"$f":"Planning!H62","v":0},{"$f":"Planning!U62","v":0},{"$f":"IF(OR(W78=\"1\",AND(W78<>\"1\",G78=Lists!$A$17)),Y78,0)","v":0},null,{"$f":"IF(AND(W78=\"2\",G78<>Lists!$A$17),AA78,Z78)","v":""},"",{"$f":"Planning!V62","v":{"v":0,"d":"0.00"}},{"$f":"'Month 4'!M78+'Month 4'!N78-'Month 4'!O78","v":{"v":0,"d":"0.00"}},null,"","",{"$f":"SUMIFS($J$25:$J$224,$C$25:$C$224,$C78,$G$25:$G$224,Lists!$A$16)","v":0},0,null,"",null,{"$f":"IF(C78=0,\"\",LEFT(INDEX(Lists!$H$5:$H$49,MATCH(C78,Lists!$G$5:$G$49,0),1),1))","v":""},null,{"$f":"'Month 4'!H78+'Month 4'!I78-'Month 4'!J78","v":0},"","",null,"0"]
[{"$f":"Planning!A63","v":"I055"},{"$f":"Planning!B63","v":0},{"$f":"Planning!C63","v":0},{"$f":"Planning!D63","v":0},{"$f":"Planning!E63","v":0},{"$f":"IF(Planning!G63<>0,Planning!G63,\"\")","v":""},{"$f":"Planning!H63","v":0},{"$f":"Planning!U63","v":0},{"$f":"IF(OR(W79=\"1\",AND(W79<>\"1\",G79=Lists!$A$17)),Y79,0)","v":0},null,{"$f":"IF(AND(W79=\"2\",G79<>Lists!$A$17),AA79,Z79)","v":""},"",{"$f":"Planning!V63","v":{"v":0,"d":"0.00"}},{"$f":"'Month 4'!M79+'Month 4'!N79-'Month 4'!O79","v":{"v":0,"d":"0.00"}},null,"","",{"$f":"SUMIFS($J$25:$J$224,$C$25:$C$224,$C79,$G$25:$G$224,Lists!$A$16)","v":0},0,null,"",null,{"$f":"IF(C79=0,\"\",LEFT(INDEX(Lists!$H$5:$H$49,MATCH(C79,Lists!$G$5:$G$49,0),1),1))","v":""},null,{"$f":"'Month 4'!H79+'Month 4'!I79-'Month 4'!J79","v":0},"","",null,"0"]
[{"$f":"Planning!A64","v":"I056"},{"$f":"Planning!B64","v":0},{"$f":"Planning!C64","v":0},{"$f":"Planning!D64","v":0},{"$f":"Planning!E64","v":0},{"$f":"IF(Planning!G64<>0,Planning!G64,\"\")","v":""},{"$f":"Planning!H64","v":0},{"$f":"Planning!U64","v":0},{"$f":"IF(OR(W80=\"1\",AND(W80<>\"1\",G80=Lists!$A$17)),Y80,0)","v":0},null,{"$f":"IF(AND(W80=\"2\",G80<>Lists!$A$17),AA80,Z80)","v":""},"",{"$f":"Planning!V64","v":{"v":0,"d":"0.00"}},{"$f":"'Month 4'!M80+'Month 4'!N80-'Month 4'!O80","v":{"v":0,"d":"0.00"}},null,"","",{"$f":"SUMIFS($J$25:$J$224,$C$25:$C$224,$C80,$G$25:$G$224,Lists!$A$16)","v":0},0,null,"",null,{"$f":"IF(C80=0,\"\",LEFT(INDEX(Lists!$H$5:$H$49,MATCH(C80,Lists!$G$5:$G$49,0),1),1))","v":""},null,{"$f":"'Month 4'!H80+'Month 4'!I80-'Month 4'!J80","v":0},"","",null,"0"]
[{"$f":"Planning!A65","v":"I057"},{"$f":"Planning!B65","v":0},{"$f":"Planning!C65","v":0},{"$f":"Planning!D65","v":0},{"$f":"Planning!E65","v":0},{"$f":"IF(Planning!G65<>0,Planning!G65,\"\")","v":""},{"$f":"Planning!H65","v":0},{"$f":"Planning!U65","v":0},{"$f":"IF(OR(W81=\"1\",AND(W81<>\"1\",G81=Lists!$A$17)),Y81,0)","v":0},null,{"$f":"IF(AND(W81=\"2\",G81<>Lists!$A$17),AA81,Z81)","v":""},"",{"$f":"Planning!V65","v":{"v":0,"d":"0.00"}},{"$f":"'Month 4'!M81+'Month 4'!N81-'Month 4'!O81","v":{"v":0,"d":"0.00"}},null,"","",{"$f":"SUMIFS($J$25:$J$224,$C$25:$C$224,$C81,$G$25:$G$224,Lists!$A$16)","v":0},0,null,"",null,{"$f":"IF(C81=0,\"\",LEFT(INDEX(Lists!$H$5:$H$49,MATCH(C81,Lists!$G$5:$G$49,0),1),1))","v":""},null,{"$f":"'Month 4'!H81+'Month 4'!I81-'Month 4'!J81","v":0},"","",null,"0"]
[{"$f":"Planning!A66","v":"I058"},{"$f":"Planning!B66","v":0},{"$f":"Planning!C66","v":0},{"$f":"Planning!D66","v":0},{"$f":"Planning!E66","v":0},{"$f":"IF(Planning!G66<>0,Planning!G66,\"\")","v":""},{"$f":"Planning!H66","v":0},{"$f":"Planning!U66","v":0},{"$f":"IF(OR(W82=\"1\",AND(W82<>\"1\",G82=Lists!$A$17)),Y82,0)","v":0},null,{"$f":"IF(AND(W82=\"2\",G82<>Lists!$A$17),AA82,Z82)","v":""},"",{"$f":"Planning!V66","v":{"v":0,"d":"0.00"}},{"$f":"'Month 4'!M82+'Month 4'!N82-'Month 4'!O82","v":{"v":0,"d":"0.00"}},null,"","",{"$f":"SUMIFS($J$25:$J$224,$C$25:$C$224,$C82,$G$25:$G$224,Lists!$A$16)","v":0},0,null,"",null,{"$f":"IF(C82=0,\"\",LEFT(INDEX(Lists!$H$5:$H$49,MATCH(C82,Lists!$G$5:$G$49,0),1),1))","v":""},null,{"$f":"'Month 4'!H82+'Month 4'!I82-'Month 4'!J82","v":0},"","",null,"0"]
[{"$f":"Planning!A67","v":"I059"},{"$f":"Planning!B67","v":0},{"$f":"Planning!C67","v":0},{"$f":"Planning!D67","v":0},{"$f":"Planning!E67","v":0},{"$f":"IF(Planning!G67<>0,Planning!G67,\"\")","v":""},{"$f":"Planning!H67","v":0},{"$f":"Planning!U67","v":0},{"$f":"IF(OR(W83=\"1\",AND(W83<>\"1\",G83=Lists!$A$17)),Y83,0)","v":0},null,{"$f":"IF(AND(W83=\"2\",G83<>Lists!$A$17),AA83,Z83)","v":""},"",{"$f":"Planning!V67","v":{"v":0,"d":"0.00"}},{"$f":"'Month 4'!M83+'Month 4'!N83-'Month 4'!O83","v":{"v":0,"d":"0.00"}},null,"","",{"$f":"SUMIFS($J$25:$J$224,$C$25:$C$224,$C83,$G$25:$G$224,Lists!$A$16)","v":0},0,null,"",null,{"$f":"IF(C83=0,\"\",LEFT(INDEX(Lists!$H$5:$H$49,MATCH(C83,Lists!$G$5:$G$49,0),1),1))","v":""},null,{"$f":"'Month 4'!H83+'Month 4'!I83-'Month 4'!J83","v":0},"","",null,"0"]
[{"$f":"Planning!A68","v":"I060"},{"$f":"Planning!B68","v":0},{"$f":"Planning!C68","v":0},{"$f":"Planning!D68","v":0},{"$f":"Planning!E68","v":0},{"$f":"IF(Planning!G68<>0,Planning!G68,\"\")","v":""},{"$f":"Planning!H68","v":0},{"$f":"Planning!U68","v":0},{"$f":"IF(OR(W84=\"1\",AND(W84<>\"1\",G84=Lists!$A$17)),Y84,0)","v":0},null,{"$f":"IF(AND(W84=\"2\",G84<>Lists!$A$17),AA84,Z84)","v":""},"",{"$f":"Planning!V68","v":{"v":0,"d":"0.00"}},{"$f":"'Month 4'!M84+'Month 4'!N84-'Month 4'!O84","v":{"v":0,"d":"0.00"}},null,"","",{"$f":"SUMIFS($J$25:$J$224,$C$25:$C$224,$C84,$G$25:$G$224,Lists!$A$16)","v":0},0,null,"",null,{"$f":"IF(C84=0,\"\",LEFT(INDEX(Lists!$H$5:$H$49,MATCH(C84,Lists!$G$5:$G$49,0),1),1))","v":""},null,{"$f":"'Month 4'!H84+'Month 4'!I84-'Month 4'!J84","v":0},"","",null,"0"]
[{"$f":"Planning!A69","v":"I061"},{"$f":"Planning!B69","v":0},{"$f":"Planning!C69","v":0},{"$f":"Planning!D69","v":0},{"$f":"Planning!E69","v":0},{"$f":"IF(Planning!G69<>0,Planning!G69,\"\")","v":""},{"$f":"Planning!H69","v":0},{"$f":"Planning!U69","v":0},{"$f":"IF(OR(W85=\"1\",AND(W85<>\"1\",G85=Lists!$A$17)),Y85,0)","v":0},null,{"$f":"IF(AND(W85=\"2\",G85<>Lists!$A$17),AA85,Z85)","v":""},"",{"$f":"Planning!V69","v":{"v":0,"d":"0.00"}},{"$f":"'Month 4'!M85+'Month 4'!N85-'Month 4'!O85","v":{"v":0,"d":"0.00"}},null,"","",{"$f":"SUMIFS($J$25:$J$224,$C$25:$C$224,$C85,$G$25:$G$224,Lists!$A$16)","v":0},0,null,"",null,{"$f":"IF(C85=0,\"\",LEFT(INDEX(Lists!$H$5:$H$49,MATCH(C85,Lists!$G$5:$G$49,0),1),1))","v":""},null,{"$f":"'Month 4'!H85+'Month 4'!I85-'Month 4'!J85","v":0},"","",null,"0"]
[{"$f":"Planning!A70","v":"I062"},{"$f":"Planning!B70","v":0},{"$f":"Planning!C70","v":0},{"$f":"Planning!D70","v":0},{"$f":"Planning!E70","v":0},{"$f":"IF(Planning!G70<>0,Planning!G70,\"\")","v":""},{"$f":"Planning!H70","v":0},{"$f":"Planning!U70","v":0},{"$f":"IF(OR(W86=\"1\",AND(W86<>\"1\",G86=Lists!$A$17)),Y86,0)","v":0},null,{"$f":"IF(AND(W86=\"2\",G86<>Lists!$A$17),AA86,Z86)","v":""},"",{"$f":"Planning!V70","v":{"v":0,"d":"0.00"}},{"$f":"'Month 4'!M86+'Month 4'!N86-'Month 4'!O86","v":{"v":0,"d":"0.00"}},null,"","",{"$f":"SUMIFS($J$25:$J$224,$C$25:$C$224,$C86,$G$25:$G$224,Lists!$A$16)","v":0},0,null,"",null,{"$f":"IF(C86=0,\"\",LEFT(INDEX(Lists!$H$5:$H$49,MATCH(C86,Lists!$G$5:$G$49,0),1),1))","v":""},null,{"$f":"'Month 4'!H86+'Month 4'!I86-'Month 4'!J86","v":0},"","",null,"0"]
[{"$f":"Planning!A71","v":"I063"},{"$f":"Planning!B71","v":0},{"$f":"Planning!C71","v":0},{"$f":"Planning!D71","v":0},{"$f":"Planning!E71","v":0},{"$f":"IF(Planning!G71<>0,Planning!G71,\"\")","v":""},{"$f":"Planning!H71","v":0},{"$f":"Planning!U71","v":0},{"$f":"IF(OR(W87=\"1\",AND(W87<>\"1\",G87=Lists!$A$17)),Y87,0)","v":0},null,{"$f":"IF(AND(W87=\"2\",G87<>Lists!$A$17),AA87,Z87)","v":""},"",{"$f":"Planning!V71","v":{"v":0,"d":"0.00"}},{"$f":"'Month 4'!M87+'Month 4'!N87-'Month 4'!O87","v":{"v":0,"d":"0.00"}},null,"","",{"$f":"SUMIFS($J$25:$J$224,$C$25:$C$224,$C87,$G$25:$G$224,Lists!$A$16)","v":0},0,null,"",null,{"$f":"IF(C87=0,\"\",LEFT(INDEX(Lists!$H$5:$H$49,MATCH(C87,Lists!$G$5:$G$49,0),1),1))","v":""},null,{"$f":"'Month 4'!H87+'Month 4'!I87-'Month 4'!J87","v":0},"","",null,"0"]
[{"$f":"Planning!A72","v":"I064"},{"$f":"Planning!B72","v":0},{"$f":"Planning!C72","v":0},{"$f":"Planning!D72","v":0},{"$f":"Planning!E72","v":0},{"$f":"IF(Planning!G72<>0,Planning!G72,\"\")","v":""},{"$f":"Planning!H72","v":0},{"$f":"Planning!U72","v":0},{"$f":"IF(OR(W88=\"1\",AND(W88<>\"1\",G88=Lists!$A$17)),Y88,0)","v":0},null,{"$f":"IF(AND(W88=\"2\",G88<>Lists!$A$17),AA88,Z88)","v":""},"",{"$f":"Planning!V72","v":{"v":0,"d":"0.00"}},{"$f":"'Month 4'!M88+'Month 4'!N88-'Month 4'!O88","v":{"v":0,"d":"0.00"}},null,"","",{"$f":"SUMIFS($J$25:$J$224,$C$25:$C$224,$C88,$G$25:$G$224,Lists!$A$16)","v":0},0,null,"",null,{"$f":"IF(C88=0,\"\",LEFT(INDEX(Lists!$H$5:$H$49,MATCH(C88,Lists!$G$5:$G$49,0),1),1))","v":""},null,{"$f":"'Month 4'!H88+'Month 4'!I88-'Month 4'!J88","v":0},"","",null,"0"]
[{"$f":"Planning!A73","v":"I065"},{"$f":"Planning!B73","v":0},{"$f":"Planning!C73","v":0},{"$f":"Planning!D73","v":0},{"$f":"Planning!E73","v":0},{"$f":"IF(Planning!G73<>0,Planning!G73,\"\")","v":""},{"$f":"Planning!H73","v":0},{"$f":"Planning!U73","v":0},{"$f":"IF(OR(W89=\"1\",AND(W89<>\"1\",G89=Lists!$A$17)),Y89,0)","v":0},null,{"$f":"IF(AND(W89=\"2\",G89<>Lists!$A$17),AA89,Z89)","v":""},{"$f":"IF($U89=ExcluirDelPLogro,\"\",IF(AND(H89=0,I89=0,J89=0),\"\",K89))","v":""},{"$f":"Planning!V73","v":{"v":0,"d":"0.00"}},{"$f":"'Month 4'!M89+'Month 4'!N89-'Month 4'!O89","v":{"v":0,"d":"0.00"}},null,"",{"$f":"IF($U89=ExcluirDelPLogro,\"\",IF(AND(M89=0,N89=0,O89=0),\"\",P89))","v":""},{"$f":"SUMIFS($J$25:$J$224,$C$25:$C$224,$C89,$G$25:$G$224,Lists!$A$16)","v":0},0,null,"",null,{"$f":"IF(C89=0,\"\",LEFT(INDEX(Lists!$H$5:$H$49,MATCH(C89,Lists!$G$5:$G$49,0),1),1))","v":""},null,{"$f":"'Month 4'!H89+'Month 4'!I89-'Month 4'!J89","v":0},"",{"$f":"IF(AND(H89=0,I89=0,J89=0),\"\",IF(J89>0,H89/J89,0))","v":""},null,"0"]
[{"$f":"Planning!A74","v":"I066"},{"$f":"Planning!B74","v":0},{"$f":"Planning!C74","v":0},{"$f":"Planning!D74","v":0},{"$f":"Planning!E74","v":0},{"$f":"IF(Planning!G74<>0,Planning!G74,\"\")","v":""},{"$f":"Planning!H74","v":0},{"$f":"Planning!U74","v":0},{"$f":"IF(OR(W90=\"1\",AND(W90<>\"1\",G90=Lists!$A$17)),Y90,0)","v":0},null,{"$f":"IF(AND(W90=\"2\",G90<>Lists!$A$17),AA90,Z90)","v":""},"",{"$f":"Planning!V74","v":{"v":0,"d":"0.00"}},{"$f":"'Month 4'!M90+'Month 4'!N90-'Month 4'!O90","v":{"v":0,"d":"0.00"}},null,{"$f":"IF(AND(M90=0,N90=0,O90=0),\"\",IF((M90+N90)>0,O90/(M90+N90),O90))","v":""},"",{"$f":"SUMIFS($J$25:$J$224,$C$25:$C$224,$C90,$G$25:$G$224,Lists!$A$16)","v":0},{"$f":"SUMIFS($O$25:$O$224,$C$25:$C$224,$C90,$G$25:$G$224,\"<>0\")","v":0},null,{"$f":"IF(B90=0,\"\",IF(LEFT(B90,1)=\"1\",\"1\",\"2\"))","v":""},null,{"$f":"IF(C90=0,\"\",LEFT(INDEX(Lists!$H$5:$H$49,MATCH(C90,Lists!$G$5:$G$49,0),1),1))","v":""},null,{"$f":"'Month 4'!H90+'Month 4'!I90-'Month 4'!J90","v":0},{"$f":"IF(AND(H90=0,I90=0,J90=0),\"\",IF((H90+I90)>0,J90/(H90+I90),J90))","v":""},"",null,{"$f":"U90&C90","v":"0"}]
[{"$f":"Planning!A75","v":"I067"},{"$f":"Planning!B75","v":0},{"$f":"Planning!C75","v":0},{"$f":"Planning!D75","v":0},{"$f":"Planning!E75","v":0},{"$f":"IF(Planning!G75<>0,Planning!G75,\"\")","v":""},{"$f":"Planning!H75","v":0},{"$f":"Planning!U75","v":0},{"$f":"IF(OR(W91=\"1\",AND(W91<>\"1\",G91=Lists!$A$17)),Y91,0)","v":0},null,{"$f":"IF(AND(W91=\"2\",G91<>Lists!$A$17),AA91,Z91)","v":""},"",{"$f":"Planning!V75","v":{"v":0,"d":"0.00"}},{"$f":"'Month 4'!M91+'Month 4'!N91-'Month 4'!O91","v":{"v":0,"d":"0.00"}},null,"","",{"$f":"SUMIFS($J$25:$J$224,$C$25:$C$224,$C91,$G$25:$G$224,Lists!$A$16)","v":0},0,null,"",null,{"$f":"IF(C91=0,\"\",LEFT(INDEX(Lists!$H$5:$H$49,MATCH(C91,Lists!$G$5:$G$49,0),1),1))","v":""},null,{"$f":"'Month 4'!H91+'Month 4'!I91-'Month 4'!J91","v":0},"","",null,"0"]
[{"$f":"Planning!A76","v":"I068"},{"$f":"Planning!B76","v":0},{"$f":"Planning!C76","v":0},{"$f":"Planning!D76","v":0},{"$f":"Planning!E76","v":0},{"$f":"IF(Planning!G76<>0,Planning!G76,\"\")","v":""},{"$f":"Planning!H76","v":0},{"$f":"Planning!U76","v":0},{"$f":"IF(OR(W92=\"1\",AND(W92<>\"1\",G92=Lists!$A$17)),Y92,0)","v":0},null,{"$f":"IF(AND(W92=\"2\",G92<>Lists!$A$17),AA92,Z92)","v":""},"",{"$f":"Planning!V76","v":{"v":0,"d":"0.00"}},{"$f":"'Month 4'!M92+'Month 4'!N92-'Month 4'!O92","v":{"v":0,"d":"0.00"}},null,"","",{"$f":"SUMIFS($J$25:$J$224,$C$25:$C$224,$C92,$G$25:$G$224,Lists!$A$16)","v":0},0,null,"",null,{"$f":"IF(C92=0,\"\",LEFT(INDEX(Lists!$H$5:$H$49,MATCH(C92,Lists!$G$5:$G$49,0),1),1))","v":""},null,{"$f":"'Month 4'!H92+'Month 4'!I92-'Month 4'!J92","v":0},"","",null,"0"]
[{"$f":"Planning!A77","v":"I069"},{"$f":"Planning!B77","v":0},{"$f":"Planning!C77","v":0},{"$f":"Planning!D77","v":0},{"$f":"Planning!E77","v":0},{"$f":"IF(Planning!G77<>0,Planning!G77,\"\")","v":""},{"$f":"Planning!H77","v":0},{"$f":"Planning!U77","v":0},{"$f":"IF(OR(W93=\"1\",AND(W93<>\"1\",G93=Lists!$A$17)),Y93,0)","v":0},null,{"$f":"IF(AND(W93=\"2\",G93<>Lists!$A$17),AA93,Z93)","v":""},"",{"$f":"Planning!V77","v":{"v":0,"d":"0.00"}},{"$f":"'Month 4'!M93+'Month 4'!N93-'Month 4'!O93","v":{"v":0,"d":"0.00"}},null,"","",{"$f":"SUMIFS($J$25:$J$224,$C$25:$C$224,$C93,$G$25:$G$224,Lists!$A$16)","v":0},0,null,"",null,{"$f":"IF(C93=0,\"\",LEFT(INDEX(Lists!$H$5:$H$49,MATCH(C93,Lists!$G$5:$G$49,0),1),1))","v":""},null,{"$f":"'Month 4'!H93+'Month 4'!I93-'Month 4'!J93","v":0},"","",null,"0"]
[{"$f":"Planning!A78","v":"I070"},{"$f":"Planning!B78","v":0},{"$f":"Planning!C78","v":0},{"$f":"Planning!D78","v":0},{"$f":"Planning!E78","v":0},{"$f":"IF(Planning!G78<>0,Planning!G78,\"\")","v":""},{"$f":"Planning!H78","v":0},{"$f":"Planning!U78","v":0},{"$f":"IF(OR(W94=\"1\",AND(W94<>\"1\",G94=Lists!$A$17)),Y94,0)","v":0},null,{"$f":"IF(AND(W94=\"2\",G94<>Lists!$A$17),AA94,Z94)","v":""},"",{"$f":"Planning!V78","v":{"v":0,"d":"0.00"}},{"$f":"'Month 4'!M94+'Month 4'!N94-'Month 4'!O94","v":{"v":0,"d":"0.00"}},null,"","",{"$f":"SUMIFS($J$25:$J$224,$C$25:$C$224,$C94,$G$25:$G$224,Lists!$A$16)","v":0},0,null,"",null,{"$f":"IF(C94=0,\"\",LEFT(INDEX(Lists!$H$5:$H$49,MATCH(C94,Lists!$G$5:$G$49,0),1),1))","v":""},null,{"$f":"'Month 4'!H94+'Month 4'!I94-'Month 4'!J94","v":0},"","",null,"0"]
[{"$f":"Planning!A79","v":"I071"},{"$f":"Planning!B79","v":0},{"$f":"Planning!C79","v":0},{"$f":"Planning!D79","v":0},{"$f":"Planning!E79","v":0},{"$f":"IF(Planning!G79<>0,Planning!G79,\"\")","v":""},{"$f":"Planning!H79","v":0},{"$f":"Planning!U79","v":0},{"$f":"IF(OR(W95=\"1\",AND(W95<>\"1\",G95=Lists!$A$17)),Y95,0)","v":0},null,{"$f":"IF(AND(W95=\"2\",G95<>Lists!$A$17),AA95,Z95)","v":""},"",{"$f":"Planning!V79","v":{"v":0,"d":"0.00"}},{"$f":"'Month 4'!M95+'Month 4'!N95-'Month 4'!O95","v":{"v":0,"d":"0.00"}},null,"","",{"$f":"SUMIFS($J$25:$J$224,$C$25:$C$224,$C95,$G$25:$G$224,Lists!$A$16)","v":0},0,null,"",null,{"$f":"IF(C95=0,\"\",LEFT(INDEX(Lists!$H$5:$H$49,MATCH(C95,Lists!$G$5:$G$49,0),1),1))","v":""},null,{"$f":"'Month 4'!H95+'Month 4'!I95-'Month 4'!J95","v":0},"","",null,"0"]
[{"$f":"Planning!A80","v":"I072"},{"$f":"Planning!B80","v":0},{"$f":"Planning!C80","v":0},{"$f":"Planning!D80","v":0},{"$f":"Planning!E80","v":0},{"$f":"IF(Planning!G80<>0,Planning!G80,\"\")","v":""},{"$f":"Planning!H80","v":0},{"$f":"Planning!U80","v":0},{"$f":"IF(OR(W96=\"1\",AND(W96<>\"1\",G96=Lists!$A$17)),Y96,0)","v":0},null,{"$f":"IF(AND(W96=\"2\",G96<>Lists!$A$17),AA96,Z96)","v":""},"",{"$f":"Planning!V80","v":{"v":0,"d":"0.00"}},{"$f":"'Month 4'!M96+'Month 4'!N96-'Month 4'!O96","v":{"v":0,"d":"0.00"}},null,"","",{"$f":"SUMIFS($J$25:$J$224,$C$25:$C$224,$C96,$G$25:$G$224,Lists!$A$16)","v":0},0,null,"",null,{"$f":"IF(C96=0,\"\",LEFT(INDEX(Lists!$H$5:$H$49,MATCH(C96,Lists!$G$5:$G$49,0),1),1))","v":""},null,{"$f":"'Month 4'!H96+'Month 4'!I96-'Month 4'!J96","v":0},"","",null,"0"]
[{"$f":"Planning!A81","v":"I073"},{"$f":"Planning!B81","v":0},{"$f":"Planning!C81","v":0},{"$f":"Planning!D81","v":0},{"$f":"Planning!E81","v":0},{"$f":"IF(Planning!G81<>0,Planning!G81,\"\")","v":""},{"$f":"Planning!H81","v":0},{"$f":"Planning!U81","v":0},{"$f":"IF(OR(W97=\"1\",AND(W97<>\"1\",G97=Lists!$A$17)),Y97,0)","v":0},null,{"$f":"IF(AND(W97=\"2\",G97<>Lists!$A$17),AA97,Z97)","v":""},"",{"$f":"Planning!V81","v":{"v":0,"d":"0.00"}},{"$f":"'Month 4'!M97+'Month 4'!N97-'Month 4'!O97","v":{"v":0,"d":"0.00"}},null,"","",{"$f":"SUMIFS($J$25:$J$224,$C$25:$C$224,$C97,$G$25:$G$224,Lists!$A$16)","v":0},0,null,"",null,{"$f":"IF(C97=0,\"\",LEFT(INDEX(Lists!$H$5:$H$49,MATCH(C97,Lists!$G$5:$G$49,0),1),1))","v":""},null,{"$f":"'Month 4'!H97+'Month 4'!I97-'Month 4'!J97","v":0},"","",null,"0"]
[{"$f":"Planning!A82","v":"I074"},{"$f":"Planning!B82","v":0},{"$f":"Planning!C82","v":0},{"$f":"Planning!D82","v":0},{"$f":"Planning!E82","v":0},{"$f":"IF(Planning!G82<>0,Planning!G82,\"\")","v":""},{"$f":"Planning!H82","v":0},{"$f":"Planning!U82","v":0},{"$f":"IF(OR(W98=\"1\",AND(W98<>\"1\",G98=Lists!$A$17)),Y98,0)","v":0},null,{"$f":"IF(AND(W98=\"2\",G98<>Lists!$A$17),AA98,Z98)","v":""},"",{"$f":"Planning!V82","v":{"v":0,"d":"0.00"}},{"$f":"'Month 4'!M98+'Month 4'!N98-'Month 4'!O98","v":{"v":0,"d":"0.00"}},null,"","",{"$f":"SUMIFS($J$25:$J$224,$C$25:$C$224,$C98,$G$25:$G$224,Lists!$A$16)","v":0},0,null,"",null,{"$f":"IF(C98=0,\"\",LEFT(INDEX(Lists!$H$5:$H$49,MATCH(C98,Lists!$G$5:$G$49,0),1),1))","v":""},null,{"$f":"'Month 4'!H98+'Month 4'!I98-'Month 4'!J98","v":0},"","",null,"0"]
[{"$f":"Planning!A83","v":"I075"},{"$f":"Planning!B83","v":0},{"$f":"Planning!C83","v":0},{"$f":"Planning!D83","v":0},{"$f":"Planning!E83","v":0},{"$f":"IF(Planning!G83<>0,Planning!G83,\"\")","v":""},{"$f":"Planning!H83","v":0},{"$f":"Planning!U83","v":0},{"$f":"IF(OR(W99=\"1\",AND(W99<>\"1\",G99=Lists!$A$17)),Y99,0)","v":0},null,{"$f":"IF(AND(W99=\"2\",G99<>Lists!$A$17),AA99,Z99)","v":""},"",{"$f":"Planning!V83","v":{"v":0,"d":"0.00"}},{"$f":"'Month 4'!M99+'Month 4'!N99-'Month 4'!O99","v":{"v":0,"d":"0.00"}},null,"","",{"$f":"SUMIFS($J$25:$J$224,$C$25:$C$224,$C99,$G$25:$G$224,Lists!$A$16)","v":0},0,null,"",null,{"$f":"IF(C99=0,\"\",LEFT(INDEX(Lists!$H$5:$H$49,MATCH(C99,Lists!$G$5:$G$49,0),1),1))","v":""},null,{"$f":"'Month 4'!H99+'Month 4'!I99-'Month 4'!J99","v":0},"","",null,"0"]
[{"$f":"Planning!A84","v":"I076"},{"$f":"Planning!B84","v":0},{"$f":"Planning!C84","v":0},{"$f":"Planning!D84","v":0},{"$f":"Planning!E84","v":0},{"$f":"IF(Planning!G84<>0,Planning!G84,\"\")","v":""},{"$f":"Planning!H84","v":0},{"$f":"Planning!U84","v":0},{"$f":"IF(OR(W100=\"1\",AND(W100<>\"1\",G100=Lists!$A$17)),Y100,0)","v":0},null,{"$f":"IF(AND(W100=\"2\",G100<>Lists!$A$17),AA100,Z100)","v":""},"",{"$f":"Planning!V84","v":{"v":0,"d":"0.00"}},{"$f":"'Month 4'!M100+'Month 4'!N100-'Month 4'!O100","v":{"v":0,"d":"0.00"}},null,"","",{"$f":"SUMIFS($J$25:$J$224,$C$25:$C$224,$C100,$G$25:$G$224,Lists!$A$16)","v":0},0,null,"",null,{"$f":"IF(C100=0,\"\",LEFT(INDEX(Lists!$H$5:$H$49,MATCH(C100,Lists!$G$5:$G$49,0),1),1))","v":""},null,{"$f":"'Month 4'!H100+'Month 4'!I100-'Month 4'!J100","v":0},"","",null,"0"]
[{"$f":"Planning!A85","v":"I077"},{"$f":"Planning!B85","v":0},{"$f":"Planning!C85","v":0},{"$f":"Planning!D85","v":0},{"$f":"Planning!E85","v":0},{"$f":"IF(Planning!G85<>0,Planning!G85,\"\")","v":""},{"$f":"Planning!H85","v":0},{"$f":"Planning!U85","v":0},{"$f":"IF(OR(W101=\"1\",AND(W101<>\"1\",G101=Lists!$A$17)),Y101,0)","v":0},null,{"$f":"IF(AND(W101=\"2\",G101<>Lists!$A$17),AA101,Z101)","v":""},"",{"$f":"Planning!V85","v":{"v":0,"d":"0.00"}},{"$f":"'Month 4'!M101+'Month 4'!N101-'Month 4'!O101","v":{"v":0,"d":"0.00"}},null,"","",{"$f":"SUMIFS($J$25:$J$224,$C$25:$C$224,$C101,$G$25:$G$224,Lists!$A$16)","v":0},0,null,"",null,{"$f":"IF(C101=0,\"\",LEFT(INDEX(Lists!$H$5:$H$49,MATCH(C101,Lists!$G$5:$G$49,0),1),1))","v":""},null,{"$f":"'Month 4'!H101+'Month 4'!I101-'Month 4'!J101","v":0},"","",null,"0"]
[{"$f":"Planning!A86","v":"I078"},{"$f":"Planning!B86","v":0},{"$f":"Planning!C86","v":0},{"$f":"Planning!D86","v":0},{"$f":"Planning!E86","v":0},{"$f":"IF(Planning!G86<>0,Planning!G86,\"\")","v":""},{"$f":"Planning!H86","v":0},{"$f":"Planning!U86","v":0},{"$f":"IF(OR(W102=\"1\",AND(W102<>\"1\",G102=Lists!$A$17)),Y102,0)","v":0},null,{"$f":"IF(AND(W102=\"2\",G102<>Lists!$A$17),AA102,Z102)","v":""},"",{"$f":"Planning!V86","v":{"v":0,"d":"0.00"}},{"$f":"'Month 4'!M102+'Month 4'!N102-'Month 4'!O102","v":{"v":0,"d":"0.00"}},null,"","",{"$f":"SUMIFS($J$25:$J$224,$C$25:$C$224,$C102,$G$25:$G$224,Lists!$A$16)","v":0},0,null,"",null,{"$f":"IF(C102=0,\"\",LEFT(INDEX(Lists!$H$5:$H$49,MATCH(C102,Lists!$G$5:$G$49,0),1),1))","v":""},null,{"$f":"'Month 4'!H102+'Month 4'!I102-'Month 4'!J102","v":0},"","",null,"0"]
[{"$f":"Planning!A87","v":"I079"},{"$f":"Planning!B87","v":0},{"$f":"Planning!C87","v":0},{"$f":"Planning!D87","v":0},{"$f":"Planning!E87","v":0},{"$f":"IF(Planning!G87<>0,Planning!G87,\"\")","v":""},{"$f":"Planning!H87","v":0},{"$f":"Planning!U87","v":0},{"$f":"IF(OR(W103=\"1\",AND(W103<>\"1\",G103=Lists!$A$17)),Y103,0)","v":0},null,{"$f":"IF(AND(W103=\"2\",G103<>Lists!$A$17),AA103,Z103)","v":""},"",{"$f":"Planning!V87","v":{"v":0,"d":"0.00"}},{"$f":"'Month 4'!M103+'Month 4'!N103-'Month 4'!O103","v":{"v":0,"d":"0.00"}},null,"","",{"$f":"SUMIFS($J$25:$J$224,$C$25:$C$224,$C103,$G$25:$G$224,Lists!$A$16)","v":0},0,null,"",null,{"$f":"IF(C103=0,\"\",LEFT(INDEX(Lists!$H$5:$H$49,MATCH(C103,Lists!$G$5:$G$49,0),1),1))","v":""},null,{"$f":"'Month 4'!H103+'Month 4'!I103-'Month 4'!J103","v":0},"","",null,"0"]
[{"$f":"Planning!A88","v":"I080"},{"$f":"Planning!B88","v":0},{"$f":"Planning!C88","v":0},{"$f":"Planning!D88","v":0},{"$f":"Planning!E88","v":0},{"$f":"IF(Planning!G88<>0,Planning!G88,\"\")","v":""},{"$f":"Planning!H88","v":0},{"$f":"Planning!U88","v":0},{"$f":"IF(OR(W104=\"1\",AND(W104<>\"1\",G104=Lists!$A$17)),Y104,0)","v":0},null,{"$f":"IF(AND(W104=\"2\",G104<>Lists!$A$17),AA104,Z104)","v":""},"",{"$f":"Planning!V88","v":{"v":0,"d":"0.00"}},{"$f":"'Month 4'!M104+'Month 4'!N104-'Month 4'!O104","v":{"v":0,"d":"0.00"}},null,"","",{"$f":"SUMIFS($J$25:$J$224,$C$25:$C$224,$C104,$G$25:$G$224,Lists!$A$16)","v":0},0,null,"",null,{"$f":"IF(C104=0,\"\",LEFT(INDEX(Lists!$H$5:$H$49,MATCH(C104,Lists!$G$5:$G$49,0),1),1))","v":""},null,{"$f":"'Month 4'!H104+'Month 4'!I104-'Month 4'!J104","v":0},"","",null,"0"]
[{"$f":"Planning!A89","v":"I081"},{"$f":"Planning!B89","v":0},{"$f":"Planning!C89","v":0},{"$f":"Planning!D89","v":0},{"$f":"Planning!E89","v":0},{"$f":"IF(Planning!G89<>0,Planning!G89,\"\")","v":""},{"$f":"Planning!H89","v":0},{"$f":"Planning!U89","v":0},{"$f":"IF(OR(W105=\"1\",AND(W105<>\"1\",G105=Lists!$A$17)),Y105,0)","v":0},null,{"$f":"IF(AND(W105=\"2\",G105<>Lists!$A$17),AA105,Z105)","v":""},"",{"$f":"Planning!V89","v":{"v":0,"d":"0.00"}},{"$f":"'Month 4'!M105+'Month 4'!N105-'Month 4'!O105","v":{"v":0,"d":"0.00"}},null,"","",{"$f":"SUMIFS($J$25:$J$224,$C$25:$C$224,$C105,$G$25:$G$224,Lists!$A$16)","v":0},0,null,"",null,{"$f":"IF(C105=0,\"\",LEFT(INDEX(Lists!$H$5:$H$49,MATCH(C105,Lists!$G$5:$G$49,0),1),1))","v":""},null,{"$f":"'Month 4'!H105+'Month 4'!I105-'Month 4'!J105","v":0},"","",null,"0"]
[{"$f":"Planning!A90","v":"I082"},{"$f":"Planning!B90","v":0},{"$f":"Planning!C90","v":0},{"$f":"Planning!D90","v":0},{"$f":"Planning!E90","v":0},{"$f":"IF(Planning!G90<>0,Planning!G90,\"\")","v":""},{"$f":"Planning!H90","v":0},{"$f":"Planning!U90","v":0},{"$f":"IF(OR(W106=\"1\",AND(W106<>\"1\",G106=Lists!$A$17)),Y106,0)","v":0},null,{"$f":"IF(AND(W106=\"2\",G106<>Lists!$A$17),AA106,Z106)","v":""},"",{"$f":"Planning!V90","v":{"v":0,"d":"0.00"}},{"$f":"'Month 4'!M106+'Month 4'!N106-'Month 4'!O106","v":{"v":0,"d":"0.00"}},null,"","",{"$f":"SUMIFS($J$25:$J$224,$C$25:$C$224,$C106,$G$25:$G$224,Lists!$A$16)","v":0},0,null,"",null,{"$f":"IF(C106=0,\"\",LEFT(INDEX(Lists!$H$5:$H$49,MATCH(C106,Lists!$G$5:$G$49,0),1),1))","v":""},null,{"$f":"'Month 4'!H106+'Month 4'!I106-'Month 4'!J106","v":0},"","",null,"0"]
[{"$f":"Planning!A91","v":"I083"},{"$f":"Planning!B91","v":0},{"$f":"Planning!C91","v":0},{"$f":"Planning!D91","v":0},{"$f":"Planning!E91","v":0},{"$f":"IF(Planning!G91<>0,Planning!G91,\"\")","v":""},{"$f":"Planning!H91","v":0},{"$f":"Planning!U91","v":0},{"$f":"IF(OR(W107=\"1\",AND(W107<>\"1\",G107=Lists!$A$17)),Y107,0)","v":0},null,{"$f":"IF(AND(W107=\"2\",G107<>Lists!$A$17),AA107,Z107)","v":""},"",{"$f":"Planning!V91","v":{"v":0,"d":"0.00"}},{"$f":"'Month 4'!M107+'Month 4'!N107-'Month 4'!O107","v":{"v":0,"d":"0.00"}},null,"","",{"$f":"SUMIFS($J$25:$J$224,$C$25:$C$224,$C107,$G$25:$G$224,Lists!$A$16)","v":0},0,null,"",null,{"$f":"IF(C107=0,\"\",LEFT(INDEX(Lists!$H$5:$H$49,MATCH(C107,Lists!$G$5:$G$49,0),1),1))","v":""},null,{"$f":"'Month 4'!H107+'Month 4'!I107-'Month 4'!J107","v":0},"","",null,"0"]
[{"$f":"Planning!A92","v":"I084"},{"$f":"Planning!B92","v":0},{"$f":"Planning!C92","v":0},{"$f":"Planning!D92","v":0},{"$f":"Planning!E92","v":0},{"$f":"IF(Planning!G92<>0,Planning!G92,\"\")","v":""},{"$f":"Planning!H92","v":0},{"$f":"Planning!U92","v":0},{"$f":"IF(OR(W108=\"1\",AND(W108<>\"1\",G108=Lists!$A$17)),Y108,0)","v":0},null,{"$f":"IF(AND(W108=\"2\",G108<>Lists!$A$17),AA108,Z108)","v":""},"",{"$f":"Planning!V92","v":{"v":0,"d":"0.00"}},{"$f":"'Month 4'!M108+'Month 4'!N108-'Month 4'!O108","v":{"v":0,"d":"0.00"}},null,"","",{"$f":"SUMIFS($J$25:$J$224,$C$25:$C$224,$C108,$G$25:$G$224,Lists!$A$16)","v":0},0,null,"",null,{"$f":"IF(C108=0,\"\",LEFT(INDEX(Lists!$H$5:$H$49,MATCH(C108,Lists!$G$5:$G$49,0),1),1))","v":""},null,{"$f":"'Month 4'!H108+'Month 4'!I108-'Month 4'!J108","v":0},"","",null,"0"]
[{"$f":"Planning!A93","v":"I085"},{"$f":"Planning!B93","v":0},{"$f":"Planning!C93","v":0},{"$f":"Planning!D93","v":0},{"$f":"Planning!E93","v":0},{"$f":"IF(Planning!G93<>0,Planning!G93,\"\")","v":""},{"$f":"Planning!H93","v":0},{"$f":"Planning!U93","v":0},{"$f":"IF(OR(W109=\"1\",AND(W109<>\"1\",G109=Lists!$A$17)),Y109,0)","v":0},null,{"$f":"IF(AND(W109=\"2\",G109<>Lists!$A$17),AA109,Z109)","v":""},"",{"$f":"Planning!V93","v":{"v":0,"d":"0.00"}},{"$f":"'Month 4'!M109+'Month 4'!N109-'Month 4'!O109","v":{"v":0,"d":"0.00"}},null,"","",{"$f":"SUMIFS($J$25:$J$224,$C$25:$C$224,$C109,$G$25:$G$224,Lists!$A$16)","v":0},0,null,"",null,{"$f":"IF(C109=0,\"\",LEFT(INDEX(Lists!$H$5:$H$49,MATCH(C109,Lists!$G$5:$G$49,0),1),1))","v":""},null,{"$f":"'Month 4'!H109+'Month 4'!I109-'Month 4'!J109","v":0},"","",null,"0"]
[{"$f":"Planning!A94","v":"I086"},{"$f":"Planning!B94","v":0},{"$f":"Planning!C94","v":0},{"$f":"Planning!D94","v":0},{"$f":"Planning!E94","v":0},{"$f":"IF(Planning!G94<>0,Planning!G94,\"\")","v":""},{"$f":"Planning!H94","v":0},{"$f":"Planning!U94","v":0},{"$f":"IF(OR(W110=\"1\",AND(W110<>\"1\",G110=Lists!$A$17)),Y110,0)","v":0},null,{"$f":"IF(AND(W110=\"2\",G110<>Lists!$A$17),AA110,Z110)","v":""},"",{"$f":"Planning!V94","v":{"v":0,"d":"0.00"}},{"$f":"'Month 4'!M110+'Month 4'!N110-'Month 4'!O110","v":{"v":0,"d":"0.00"}},null,"","",{"$f":"SUMIFS($J$25:$J$224,$C$25:$C$224,$C110,$G$25:$G$224,Lists!$A$16)","v":0},0,null,"",null,{"$f":"IF(C110=0,\"\",LEFT(INDEX(Lists!$H$5:$H$49,MATCH(C110,Lists!$G$5:$G$49,0),1),1))","v":""},null,{"$f":"'Month 4'!H110+'Month 4'!I110-'Month 4'!J110","v":0},"","",null,"0"]
[{"$f":"Planning!A95","v":"I087"},{"$f":"Planning!B95","v":0},{"$f":"Planning!C95","v":0},{"$f":"Planning!D95","v":0},{"$f":"Planning!E95","v":0},{"$f":"IF(Planning!G95<>0,Planning!G95,\"\")","v":""},{"$f":"Planning!H95","v":0},{"$f":"Planning!U95","v":0},{"$f":"IF(OR(W111=\"1\",AND(W111<>\"1\",G111=Lists!$A$17)),Y111,0)","v":0},null,{"$f":"IF(AND(W111=\"2\",G111<>Lists!$A$17),AA111,Z111)","v":""},"",{"$f":"Planning!V95","v":{"v":0,"d":"0.00"}},{"$f":"'Month 4'!M111+'Month 4'!N111-'Month 4'!O111","v":{"v":0,"d":"0.00"}},null,"","",{"$f":"SUMIFS($J$25:$J$224,$C$25:$C$224,$C111,$G$25:$G$224,Lists!$A$16)","v":0},0,null,"",null,{"$f":"IF(C111=0,\"\",LEFT(INDEX(Lists!$H$5:$H$49,MATCH(C111,Lists!$G$5:$G$49,0),1),1))","v":""},null,{"$f":"'Month 4'!H111+'Month 4'!I111-'Month 4'!J111","v":0},"","",null,"0"]
[{"$f":"Planning!A96","v":"I088"},{"$f":"Planning!B96","v":0},{"$f":"Planning!C96","v":0},{"$f":"Planning!D96","v":0},{"$f":"Planning!E96","v":0},{"$f":"IF(Planning!G96<>0,Planning!G96,\"\")","v":""},{"$f":"Planning!H96","v":0},{"$f":"Planning!U96","v":0},{"$f":"IF(OR(W112=\"1\",AND(W112<>\"1\",G112=Lists!$A$17)),Y112,0)","v":0},null,{"$f":"IF(AND(W112=\"2\",G112<>Lists!$A$17),AA112,Z112)","v":""},"",{"$f":"Planning!V96","v":{"v":0,"d":"0.00"}},{"$f":"'Month 4'!M112+'Month 4'!N112-'Month 4'!O112","v":{"v":0,"d":"0.00"}},null,"","",{"$f":"SUMIFS($J$25:$J$224,$C$25:$C$224,$C112,$G$25:$G$224,Lists!$A$16)","v":0},0,null,"",null,{"$f":"IF(C112=0,\"\",LEFT(INDEX(Lists!$H$5:$H$49,MATCH(C112,Lists!$G$5:$G$49,0),1),1))","v":""},null,{"$f":"'Month 4'!H112+'Month 4'!I112-'Month 4'!J112","v":0},"","",null,"0"]
[{"$f":"Planning!A97","v":"I089"},{"$f":"Planning!B97","v":0},{"$f":"Planning!C97","v":0},{"$f":"Planning!D97","v":0},{"$f":"Planning!E97","v":0},{"$f":"IF(Planning!G97<>0,Planning!G97,\"\")","v":""},{"$f":"Planning!H97","v":0},{"$f":"Planning!U97","v":0},{"$f":"IF(OR(W113=\"1\",AND(W113<>\"1\",G113=Lists!$A$17)),Y113,0)","v":0},null,{"$f":"IF(AND(W113=\"2\",G113<>Lists!$A$17),AA113,Z113)","v":""},"",{"$f":"Planning!V97","v":{"v":0,"d":"0.00"}},{"$f":"'Month 4'!M113+'Month 4'!N113-'Month 4'!O113","v":{"v":0,"d":"0.00"}},null,"","",{"$f":"SUMIFS($J$25:$J$224,$C$25:$C$224,$C113,$G$25:$G$224,Lists!$A$16)","v":0},0,null,"",null,{"$f":"IF(C113=0,\"\",LEFT(INDEX(Lists!$H$5:$H$49,MATCH(C113,Lists!$G$5:$G$49,0),1),1))","v":""},null,{"$f":"'Month 4'!H113+'Month 4'!I113-'Month 4'!J113","v":0},"","",null,"0"]
[{"$f":"Planning!A98","v":"I090"},{"$f":"Planning!B98","v":0},{"$f":"Planning!C98","v":0},{"$f":"Planning!D98","v":0},{"$f":"Planning!E98","v":0},{"$f":"IF(Planning!G98<>0,Planning!G98,\"\")","v":""},{"$f":"Planning!H98","v":0},{"$f":"Planning!U98","v":0},{"$f":"IF(OR(W114=\"1\",AND(W114<>\"1\",G114=Lists!$A$17)),Y114,0)","v":0},null,{"$f":"IF(AND(W114=\"2\",G114<>Lists!$A$17),AA114,Z114)","v":""},"",{"$f":"Planning!V98","v":{"v":0,"d":"0.00"}},{"$f":"'Month 4'!M114+'Month 4'!N114-'Month 4'!O114","v":{"v":0,"d":"0.00"}},null,"","",{"$f":"SUMIFS($J$25:$J$224,$C$25:$C$224,$C114,$G$25:$G$224,Lists!$A$16)","v":0},0,null,"",null,{"$f":"IF(C114=0,\"\",LEFT(INDEX(Lists!$H$5:$H$49,MATCH(C114,Lists!$G$5:$G$49,0),1),1))","v":""},null,{"$f":"'Month 4'!H114+'Month 4'!I114-'Month 4'!J114","v":0},"","",null,"0"]
[{"$f":"Planning!A99","v":"I091"},{"$f":"Planning!B99","v":0},{"$f":"Planning!C99","v":0},{"$f":"Planning!D99","v":0},{"$f":"Planning!E99","v":0},{"$f":"IF(Planning!G99<>0,Planning!G99,\"\")","v":""},{"$f":"Planning!H99","v":0},{"$f":"Planning!U99","v":0},{"$f":"IF(OR(W115=\"1\",AND(W115<>\"1\",G115=Lists!$A$17)),Y115,0)","v":0},null,{"$f":"IF(AND(W115=\"2\",G115<>Lists!$A$17),AA115,Z115)","v":""},"",{"$f":"Planning!V99","v":{"v":0,"d":"0.00"}},{"$f":"'Month 4'!M115+'Month 4'!N115-'Month 4'!O115","v":{"v":0,"d":"0.00"}},null,"","",{"$f":"SUMIFS($J$25:$J$224,$C$25:$C$224,$C115,$G$25:$G$224,Lists!$A$16)","v":0},0,null,"",null,{"$f":"IF(C115=0,\"\",LEFT(INDEX(Lists!$H$5:$H$49,MATCH(C115,Lists!$G$5:$G$49,0),1),1))","v":""},null,{"$f":"'Month 4'!H115+'Month 4'!I115-'Month 4'!J115","v":0},"","",null,"0"]
[{"$f":"Planning!A100","v":"I092"},{"$f":"Planning!B100","v":0},{"$f":"Planning!C100","v":0},{"$f":"Planning!D100","v":0},{"$f":"Planning!E100","v":0},{"$f":"IF(Planning!G100<>0,Planning!G100,\"\")","v":""},{"$f":"Planning!H100","v":0},{"$f":"Planning!U100","v":0},{"$f":"IF(OR(W116=\"1\",AND(W116<>\"1\",G116=Lists!$A$17)),Y116,0)","v":0},null,{"$f":"IF(AND(W116=\"2\",G116<>Lists!$A$17),AA116,Z116)","v":""},"",{"$f":"Planning!V100","v":{"v":0,"d":"0.00"}},{"$f":"'Month 4'!M116+'Month 4'!N116-'Month 4'!O116","v":{"v":0,"d":"0.00"}},null,"","",{"$f":"SUMIFS($J$25:$J$224,$C$25:$C$224,$C116,$G$25:$G$224,Lists!$A$16)","v":0},0,null,"",null,{"$f":"IF(C116=0,\"\",LEFT(INDEX(Lists!$H$5:$H$49,MATCH(C116,Lists!$G$5:$G$49,0),1),1))","v":""},null,{"$f":"'Month 4'!H116+'Month 4'!I116-'Month 4'!J116","v":0},"","",null,"0"]
[{"$f":"Planning!A101","v":"I093"},{"$f":"Planning!B101","v":0},{"$f":"Planning!C101","v":0},{"$f":"Planning!D101","v":0},{"$f":"Planning!E101","v":0},{"$f":"IF(Planning!G101<>0,Planning!G101,\"\")","v":""},{"$f":"Planning!H101","v":0},{"$f":"Planning!U101","v":0},{"$f":"IF(OR(W117=\"1\",AND(W117<>\"1\",G117=Lists!$A$17)),Y117,0)","v":0},null,{"$f":"IF(AND(W117=\"2\",G117<>Lists!$A$17),AA117,Z117)","v":""},"",{"$f":"Planning!V101","v":{"v":0,"d":"0.00"}},{"$f":"'Month 4'!M117+'Month 4'!N117-'Month 4'!O117","v":{"v":0,"d":"0.00"}},null,"","",{"$f":"SUMIFS($J$25:$J$224,$C$25:$C$224,$C117,$G$25:$G$224,Lists!$A$16)","v":0},0,null,"",null,{"$f":"IF(C117=0,\"\",LEFT(INDEX(Lists!$H$5:$H$49,MATCH(C117,Lists!$G$5:$G$49,0),1),1))","v":""},null,{"$f":"'Month 4'!H117+'Month 4'!I117-'Month 4'!J117","v":0},"","",null,"0"]
[{"$f":"Planning!A102","v":"I094"},{"$f":"Planning!B102","v":0},{"$f":"Planning!C102","v":0},{"$f":"Planning!D102","v":0},{"$f":"Planning!E102","v":0},{"$f":"IF(Planning!G102<>0,Planning!G102,\"\")","v":""},{"$f":"Planning!H102","v":0},{"$f":"Planning!U102","v":0},{"$f":"IF(OR(W118=\"1\",AND(W118<>\"1\",G118=Lists!$A$17)),Y118,0)","v":0},null,{"$f":"IF(AND(W118=\"2\",G118<>Lists!$A$17),AA118,Z118)","v":""},"",{"$f":"Planning!V102","v":{"v":0,"d":"0.00"}},{"$f":"'Month 4'!M118+'Month 4'!N118-'Month 4'!O118","v":{"v":0,"d":"0.00"}},null,"","",{"$f":"SUMIFS($J$25:$J$224,$C$25:$C$224,$C118,$G$25:$G$224,Lists!$A$16)","v":0},0,null,"",null,{"$f":"IF(C118=0,\"\",LEFT(INDEX(Lists!$H$5:$H$49,MATCH(C118,Lists!$G$5:$G$49,0),1),1))","v":""},null,{"$f":"'Month 4'!H118+'Month 4'!I118-'Month 4'!J118","v":0},"","",null,"0"]
[{"$f":"Planning!A103","v":"I095"},{"$f":"Planning!B103","v":0},{"$f":"Planning!C103","v":0},{"$f":"Planning!D103","v":0},{"$f":"Planning!E103","v":0},{"$f":"IF(Planning!G103<>0,Planning!G103,\"\")","v":""},{"$f":"Planning!H103","v":0},{"$f":"Planning!U103","v":0},{"$f":"IF(OR(W119=\"1\",AND(W119<>\"1\",G119=Lists!$A$17)),Y119,0)","v":0},null,{"$f":"IF(AND(W119=\"2\",G119<>Lists!$A$17),AA119,Z119)","v":""},"",{"$f":"Planning!V103","v":{"v":0,"d":"0.00"}},{"$f":"'Month 4'!M119+'Month 4'!N119-'Month 4'!O119","v":{"v":0,"d":"0.00"}},null,"","",{"$f":"SUMIFS($J$25:$J$224,$C$25:$C$224,$C119,$G$25:$G$224,Lists!$A$16)","v":0},0,null,"",null,{"$f":"IF(C119=0,\"\",LEFT(INDEX(Lists!$H$5:$H$49,MATCH(C119,Lists!$G$5:$G$49,0),1),1))","v":""},null,{"$f":"'Month 4'!H119+'Month 4'!I119-'Month 4'!J119","v":0},"","",null,"0"]
[{"$f":"Planning!A104","v":"I096"},{"$f":"Planning!B104","v":0},{"$f":"Planning!C104","v":0},{"$f":"Planning!D104","v":0},{"$f":"Planning!E104","v":0},{"$f":"IF(Planning!G104<>0,Planning!G104,\"\")","v":""},{"$f":"Planning!H104","v":0},{"$f":"Planning!U104","v":0},{"$f":"IF(OR(W120=\"1\",AND(W120<>\"1\",G120=Lists!$A$17)),Y120,0)","v":0},null,{"$f":"IF(AND(W120=\"2\",G120<>Lists!$A$17),AA120,Z120)","v":""},"",{"$f":"Planning!V104","v":{"v":0,"d":"0.00"}},{"$f":"'Month 4'!M120+'Month 4'!N120-'Month 4'!O120","v":{"v":0,"d":"0.00"}},null,"","",{"$f":"SUMIFS($J$25:$J$224,$C$25:$C$224,$C120,$G$25:$G$224,Lists!$A$16)","v":0},0,null,"",null,{"$f":"IF(C120=0,\"\",LEFT(INDEX(Lists!$H$5:$H$49,MATCH(C120,Lists!$G$5:$G$49,0),1),1))","v":""},null,{"$f":"'Month 4'!H120+'Month 4'!I120-'Month 4'!J120","v":0},"","",null,"0"]
[{"$f":"Planning!A105","v":"I097"},{"$f":"Planning!B105","v":0},{"$f":"Planning!C105","v":0},{"$f":"Planning!D105","v":0},{"$f":"Planning!E105","v":0},{"$f":"IF(Planning!G105<>0,Planning!G105,\"\")","v":""},{"$f":"Planning!H105","v":0},{"$f":"Planning!U105","v":0},{"$f":"IF(OR(W121=\"1\",AND(W121<>\"1\",G121=Lists!$A$17)),Y121,0)","v":0},null,{"$f":"IF(AND(W121=\"2\",G121<>Lists!$A$17),AA121,Z121)","v":""},{"$f":"IF($U121=ExcluirDelPLogro,\"\",IF(AND(H121=0,I121=0,J121=0),\"\",K121))","v":""},{"$f":"Planning!V105","v":{"v":0,"d":"0.00"}},{"$f":"'Month 4'!M121+'Month 4'!N121-'Month 4'!O121","v":{"v":0,"d":"0.00"}},null,"",{"$f":"IF($U121=ExcluirDelPLogro,\"\",IF(AND(M121=0,N121=0,O121=0),\"\",P121))","v":""},{"$f":"SUMIFS($J$25:$J$224,$C$25:$C$224,$C121,$G$25:$G$224,Lists!$A$16)","v":0},0,null,"",null,{"$f":"IF(C121=0,\"\",LEFT(INDEX(Lists!$H$5:$H$49,MATCH(C121,Lists!$G$5:$G$49,0),1),1))","v":""},null,{"$f":"'Month 4'!H121+'Month 4'!I121-'Month 4'!J121","v":0},"",{"$f":"IF(AND(H121=0,I121=0,J121=0),\"\",IF(J121>0,H121/J121,0))","v":""},null,"0"]
[{"$f":"Planning!A106","v":"I098"},{"$f":"Planning!B106","v":0},{"$f":"Planning!C106","v":0},{"$f":"Planning!D106","v":0},{"$f":"Planning!E106","v":0},{"$f":"IF(Planning!G106<>0,Planning!G106,\"\")","v":""},{"$f":"Planning!H106","v":0},{"$f":"Planning!U106","v":0},{"$f":"IF(OR(W122=\"1\",AND(W122<>\"1\",G122=Lists!$A$17)),Y122,0)","v":0},null,{"$f":"IF(AND(W122=\"2\",G122<>Lists!$A$17),AA122,Z122)","v":""},"",{"$f":"Planning!V106","v":{"v":0,"d":"0.00"}},{"$f":"'Month 4'!M122+'Month 4'!N122-'Month 4'!O122","v":{"v":0,"d":"0.00"}},null,"","",{"$f":"SUMIFS($J$25:$J$224,$C$25:$C$224,$C122,$G$25:$G$224,Lists!$A$16)","v":0},0,null,"",null,{"$f":"IF(C122=0,\"\",LEFT(INDEX(Lists!$H$5:$H$49,MATCH(C122,Lists!$G$5:$G$49,0),1),1))","v":""},null,{"$f":"'Month 4'!H122+'Month 4'!I122-'Month 4'!J122","v":0},"","",null,"0"]
[{"$f":"Planning!A107","v":"I099"},{"$f":"Planning!B107","v":0},{"$f":"Planning!C107","v":0},{"$f":"Planning!D107","v":0},{"$f":"Planning!E107","v":0},{"$f":"IF(Planning!G107<>0,Planning!G107,\"\")","v":""},{"$f":"Planning!H107","v":0},{"$f":"Planning!U107","v":0},{"$f":"IF(OR(W123=\"1\",AND(W123<>\"1\",G123=Lists!$A$17)),Y123,0)","v":0},null,{"$f":"IF(AND(W123=\"2\",G123<>Lists!$A$17),AA123,Z123)","v":""},"",{"$f":"Planning!V107","v":{"v":0,"d":"0.00"}},{"$f":"'Month 4'!M123+'Month 4'!N123-'Month 4'!O123","v":{"v":0,"d":"0.00"}},null,"","",{"$f":"SUMIFS($J$25:$J$224,$C$25:$C$224,$C123,$G$25:$G$224,Lists!$A$16)","v":0},0,null,"",null,{"$f":"IF(C123=0,\"\",LEFT(INDEX(Lists!$H$5:$H$49,MATCH(C123,Lists!$G$5:$G$49,0),1),1))","v":""},null,{"$f":"'Month 4'!H123+'Month 4'!I123-'Month 4'!J123","v":0},"","",null,"0"]
[{"$f":"Planning!A108","v":"I100"},{"$f":"Planning!B108","v":0},{"$f":"Planning!C108","v":0},{"$f":"Planning!D108","v":0},{"$f":"Planning!E108","v":0},{"$f":"IF(Planning!G108<>0,Planning!G108,\"\")","v":""},{"$f":"Planning!H108","v":0},{"$f":"Planning!U108","v":0},{"$f":"IF(OR(W124=\"1\",AND(W124<>\"1\",G124=Lists!$A$17)),Y124,0)","v":0},null,{"$f":"IF(AND(W124=\"2\",G124<>Lists!$A$17),AA124,Z124)","v":""},"",{"$f":"Planning!V108","v":{"v":0,"d":"0.00"}},{"$f":"'Month 4'!M124+'Month 4'!N124-'Month 4'!O124","v":{"v":0,"d":"0.00"}},null,"","",{"$f":"SUMIFS($J$25:$J$224,$C$25:$C$224,$C124,$G$25:$G$224,Lists!$A$16)","v":0},0,null,"",null,{"$f":"IF(C124=0,\"\",LEFT(INDEX(Lists!$H$5:$H$49,MATCH(C124,Lists!$G$5:$G$49,0),1),1))","v":""},null,{"$f":"'Month 4'!H124+'Month 4'!I124-'Month 4'!J124","v":0},"","",null,"0"]
[{"$f":"Planning!A109","v":"I101"},{"$f":"Planning!B109","v":0},{"$f":"Planning!C109","v":0},{"$f":"Planning!D109","v":0},{"$f":"Planning!E109","v":0},{"$f":"IF(Planning!G109<>0,Planning!G109,\"\")","v":""},{"$f":"Planning!H109","v":0},{"$f":"Planning!U109","v":0},{"$f":"IF(OR(W125=\"1\",AND(W125<>\"1\",G125=Lists!$A$17)),Y125,0)","v":0},null,{"$f":"IF(AND(W125=\"2\",G125<>Lists!$A$17),AA125,Z125)","v":""},"",{"$f":"Planning!V109","v":{"v":0,"d":"0.00"}},{"$f":"'Month 4'!M125+'Month 4'!N125-'Month 4'!O125","v":{"v":0,"d":"0.00"}},null,"","",{"$f":"SUMIFS($J$25:$J$224,$C$25:$C$224,$C125,$G$25:$G$224,Lists!$A$16)","v":0},0,null,"",null,{"$f":"IF(C125=0,\"\",LEFT(INDEX(Lists!$H$5:$H$49,MATCH(C125,Lists!$G$5:$G$49,0),1),1))","v":""},null,{"$f":"'Month 4'!H125+'Month 4'!I125-'Month 4'!J125","v":0},"","",null,"0"]
[{"$f":"Planning!A110","v":"I102"},{"$f":"Planning!B110","v":0},{"$f":"Planning!C110","v":0},{"$f":"Planning!D110","v":0},{"$f":"Planning!E110","v":0},{"$f":"IF(Planning!G110<>0,Planning!G110,\"\")","v":""},{"$f":"Planning!H110","v":0},{"$f":"Planning!U110","v":0},{"$f":"IF(OR(W126=\"1\",AND(W126<>\"1\",G126=Lists!$A$17)),Y126,0)","v":0},null,{"$f":"IF(AND(W126=\"2\",G126<>Lists!$A$17),AA126,Z126)","v":""},"",{"$f":"Planning!V110","v":{"v":0,"d":"0.00"}},{"$f":"'Month 4'!M126+'Month 4'!N126-'Month 4'!O126","v":{"v":0,"d":"0.00"}},null,"","",{"$f":"SUMIFS($J$25:$J$224,$C$25:$C$224,$C126,$G$25:$G$224,Lists!$A$16)","v":0},0,null,"",null,{"$f":"IF(C126=0,\"\",LEFT(INDEX(Lists!$H$5:$H$49,MATCH(C126,Lists!$G$5:$G$49,0),1),1))","v":""},null,{"$f":"'Month 4'!H126+'Month 4'!I126-'Month 4'!J126","v":0},"","",null,"0"]
[{"$f":"Planning!A111","v":"I103"},{"$f":"Planning!B111","v":0},{"$f":"Planning!C111","v":0},{"$f":"Planning!D111","v":0},{"$f":"Planning!E111","v":0},{"$f":"IF(Planning!G111<>0,Planning!G111,\"\")","v":""},{"$f":"Planning!H111","v":0},{"$f":"Planning!U111","v":0},{"$f":"IF(OR(W127=\"1\",AND(W127<>\"1\",G127=Lists!$A$17)),Y127,0)","v":0},null,{"$f":"IF(AND(W127=\"2\",G127<>Lists!$A$17),AA127,Z127)","v":""},"",{"$f":"Planning!V111","v":{"v":0,"d":"0.00"}},{"$f":"'Month 4'!M127+'Month 4'!N127-'Month 4'!O127","v":{"v":0,"d":"0.00"}},null,"","",{"$f":"SUMIFS($J$25:$J$224,$C$25:$C$224,$C127,$G$25:$G$224,Lists!$A$16)","v":0},0,null,"",null,{"$f":"IF(C127=0,\"\",LEFT(INDEX(Lists!$H$5:$H$49,MATCH(C127,Lists!$G$5:$G$49,0),1),1))","v":""},null,{"$f":"'Month 4'!H127+'Month 4'!I127-'Month 4'!J127","v":0},"","",null,"0"]
[{"$f":"Planning!A112","v":"I104"},{"$f":"Planning!B112","v":0},{"$f":"Planning!C112","v":0},{"$f":"Planning!D112","v":0},{"$f":"Planning!E112","v":0},{"$f":"IF(Planning!G112<>0,Planning!G112,\"\")","v":""},{"$f":"Planning!H112","v":0},{"$f":"Planning!U112","v":0},{"$f":"IF(OR(W128=\"1\",AND(W128<>\"1\",G128=Lists!$A$17)),Y128,0)","v":0},null,{"$f":"IF(AND(W128=\"2\",G128<>Lists!$A$17),AA128,Z128)","v":""},"",{"$f":"Planning!V112","v":{"v":0,"d":"0.00"}},{"$f":"'Month 4'!M128+'Month 4'!N128-'Month 4'!O128","v":{"v":0,"d":"0.00"}},null,"","",{"$f":"SUMIFS($J$25:$J$224,$C$25:$C$224,$C128,$G$25:$G$224,Lists!$A$16)","v":0},0,null,"",null,{"$f":"IF(C128=0,\"\",LEFT(INDEX(Lists!$H$5:$H$49,MATCH(C128,Lists!$G$5:$G$49,0),1),1))","v":""},null,{"$f":"'Month 4'!H128+'Month 4'!I128-'Month 4'!J128","v":0},"","",null,"0"]
[{"$f":"Planning!A113","v":"I105"},{"$f":"Planning!B113","v":0},{"$f":"Planning!C113","v":0},{"$f":"Planning!D113","v":0},{"$f":"Planning!E113","v":0},{"$f":"IF(Planning!G113<>0,Planning!G113,\"\")","v":""},{"$f":"Planning!H113","v":0},{"$f":"Planning!U113","v":0},{"$f":"IF(OR(W129=\"1\",AND(W129<>\"1\",G129=Lists!$A$17)),Y129,0)","v":0},null,{"$f":"IF(AND(W129=\"2\",G129<>Lists!$A$17),AA129,Z129)","v":""},"",{"$f":"Planning!V113","v":{"v":0,"d":"0.00"}},{"$f":"'Month 4'!M129+'Month 4'!N129-'Month 4'!O129","v":{"v":0,"d":"0.00"}},null,"","",{"$f":"SUMIFS($J$25:$J$224,$C$25:$C$224,$C129,$G$25:$G$224,Lists!$A$16)","v":0},0,null,"",null,{"$f":"IF(C129=0,\"\",LEFT(INDEX(Lists!$H$5:$H$49,MATCH(C129,Lists!$G$5:$G$49,0),1),1))","v":""},null,{"$f":"'Month 4'!H129+'Month 4'!I129-'Month 4'!J129","v":0},"","",null,"0"]
[{"$f":"Planning!A114","v":"I106"},{"$f":"Planning!B114","v":0},{"$f":"Planning!C114","v":0},{"$f":"Planning!D114","v":0},{"$f":"Planning!E114","v":0},{"$f":"IF(Planning!G114<>0,Planning!G114,\"\")","v":""},{"$f":"Planning!H114","v":0},{"$f":"Planning!U114","v":0},{"$f":"IF(OR(W130=\"1\",AND(W130<>\"1\",G130=Lists!$A$17)),Y130,0)","v":0},null,{"$f":"IF(AND(W130=\"2\",G130<>Lists!$A$17),AA130,Z130)","v":""},"",{"$f":"Planning!V114","v":{"v":0,"d":"0.00"}},{"$f":"'Month 4'!M130+'Month 4'!N130-'Month 4'!O130","v":{"v":0,"d":"0.00"}},null,"","",{"$f":"SUMIFS($J$25:$J$224,$C$25:$C$224,$C130,$G$25:$G$224,Lists!$A$16)","v":0},0,null,"",null,{"$f":"IF(C130=0,\"\",LEFT(INDEX(Lists!$H$5:$H$49,MATCH(C130,Lists!$G$5:$G$49,0),1),1))","v":""},null,{"$f":"'Month 4'!H130+'Month 4'!I130-'Month 4'!J130","v":0},"","",null,"0"]
[{"$f":"Planning!A115","v":"I107"},{"$f":"Planning!B115","v":0},{"$f":"Planning!C115","v":0},{"$f":"Planning!D115","v":0},{"$f":"Planning!E115","v":0},{"$f":"IF(Planning!G115<>0,Planning!G115,\"\")","v":""},{"$f":"Planning!H115","v":0},{"$f":"Planning!U115","v":0},{"$f":"IF(OR(W131=\"1\",AND(W131<>\"1\",G131=Lists!$A$17)),Y131,0)","v":0},null,{"$f":"IF(AND(W131=\"2\",G131<>Lists!$A$17),AA131,Z131)","v":""},"",{"$f":"Planning!V115","v":{"v":0,"d":"0.00"}},{"$f":"'Month 4'!M131+'Month 4'!N131-'Month 4'!O131","v":{"v":0,"d":"0.00"}},null,"","",{"$f":"SUMIFS($J$25:$J$224,$C$25:$C$224,$C131,$G$25:$G$224,Lists!$A$16)","v":0},0,null,"",null,{"$f":"IF(C131=0,\"\",LEFT(INDEX(Lists!$H$5:$H$49,MATCH(C131,Lists!$G$5:$G$49,0),1),1))","v":""},null,{"$f":"'Month 4'!H131+'Month 4'!I131-'Month 4'!J131","v":0},"","",null,"0"]
[{"$f":"Planning!A116","v":"I108"},{"$f":"Planning!B116","v":0},{"$f":"Planning!C116","v":0},{"$f":"Planning!D116","v":0},{"$f":"Planning!E116","v":0},{"$f":"IF(Planning!G116<>0,Planning!G116,\"\")","v":""},{"$f":"Planning!H116","v":0},{"$f":"Planning!U116","v":0},{"$f":"IF(OR(W132=\"1\",AND(W132<>\"1\",G132=Lists!$A$17)),Y132,0)","v":0},null,{"$f":"IF(AND(W132=\"2\",G132<>Lists!$A$17),AA132,Z132)","v":""},"",{"$f":"Planning!V116","v":{"v":0,"d":"0.00"}},{"$f":"'Month 4'!M132+'Month 4'!N132-'Month 4'!O132","v":{"v":0,"d":"0.00"}},null,"","",{"$f":"SUMIFS($J$25:$J$224,$C$25:$C$224,$C132,$G$25:$G$224,Lists!$A$16)","v":0},0,null,"",null,{"$f":"IF(C132=0,\"\",LEFT(INDEX(Lists!$H$5:$H$49,MATCH(C132,Lists!$G$5:$G$49,0),1),1))","v":""},null,{"$f":"'Month 4'!H132+'Month 4'!I132-'Month 4'!J132","v":0},"","",null,"0"]
[{"$f":"Planning!A117","v":"I109"},{"$f":"Planning!B117","v":0},{"$f":"Planning!C117","v":0},{"$f":"Planning!D117","v":0},{"$f":"Planning!E117","v":0},{"$f":"IF(Planning!G117<>0,Planning!G117,\"\")","v":""},{"$f":"Planning!H117","v":0},{"$f":"Planning!U117","v":0},{"$f":"IF(OR(W133=\"1\",AND(W133<>\"1\",G133=Lists!$A$17)),Y133,0)","v":0},null,{"$f":"IF(AND(W133=\"2\",G133<>Lists!$A$17),AA133,Z133)","v":""},"",{"$f":"Planning!V117","v":{"v":0,"d":"0.00"}},{"$f":"'Month 4'!M133+'Month 4'!N133-'Month 4'!O133","v":{"v":0,"d":"0.00"}},null,"","",{"$f":"SUMIFS($J$25:$J$224,$C$25:$C$224,$C133,$G$25:$G$224,Lists!$A$16)","v":0},0,null,"",null,{"$f":"IF(C133=0,\"\",LEFT(INDEX(Lists!$H$5:$H$49,MATCH(C133,Lists!$G$5:$G$49,0),1),1))","v":""},null,{"$f":"'Month 4'!H133+'Month 4'!I133-'Month 4'!J133","v":0},"","",null,"0"]
[{"$f":"Planning!A118","v":"I110"},{"$f":"Planning!B118","v":0},{"$f":"Planning!C118","v":0},{"$f":"Planning!D118","v":0},{"$f":"Planning!E118","v":0},{"$f":"IF(Planning!G118<>0,Planning!G118,\"\")","v":""},{"$f":"Planning!H118","v":0},{"$f":"Planning!U118","v":0},{"$f":"IF(OR(W134=\"1\",AND(W134<>\"1\",G134=Lists!$A$17)),Y134,0)","v":0},null,{"$f":"IF(AND(W134=\"2\",G134<>Lists!$A$17),AA134,Z134)","v":""},"",{"$f":"Planning!V118","v":{"v":0,"d":"0.00"}},{"$f":"'Month 4'!M134+'Month 4'!N134-'Month 4'!O134","v":{"v":0,"d":"0.00"}},null,"","",{"$f":"SUMIFS($J$25:$J$224,$C$25:$C$224,$C134,$G$25:$G$224,Lists!$A$16)","v":0},0,null,"",null,{"$f":"IF(C134=0,\"\",LEFT(INDEX(Lists!$H$5:$H$49,MATCH(C134,Lists!$G$5:$G$49,0),1),1))","v":""},null,{"$f":"'Month 4'!H134+'Month 4'!I134-'Month 4'!J134","v":0},"","",null,"0"]
[{"$f":"Planning!A119","v":"I111"},{"$f":"Planning!B119","v":0},{"$f":"Planning!C119","v":0},{"$f":"Planning!D119","v":0},{"$f":"Planning!E119","v":0},{"$f":"IF(Planning!G119<>0,Planning!G119,\"\")","v":""},{"$f":"Planning!H119","v":0},{"$f":"Planning!U119","v":0},{"$f":"IF(OR(W135=\"1\",AND(W135<>\"1\",G135=Lists!$A$17)),Y135,0)","v":0},null,{"$f":"IF(AND(W135=\"2\",G135<>Lists!$A$17),AA135,Z135)","v":""},"",{"$f":"Planning!V119","v":{"v":0,"d":"0.00"}},{"$f":"'Month 4'!M135+'Month 4'!N135-'Month 4'!O135","v":{"v":0,"d":"0.00"}},null,"","",{"$f":"SUMIFS($J$25:$J$224,$C$25:$C$224,$C135,$G$25:$G$224,Lists!$A$16)","v":0},0,null,"",null,{"$f":"IF(C135=0,\"\",LEFT(INDEX(Lists!$H$5:$H$49,MATCH(C135,Lists!$G$5:$G$49,0),1),1))","v":""},null,{"$f":"'Month 4'!H135+'Month 4'!I135-'Month 4'!J135","v":0},"","",null,"0"]
[{"$f":"Planning!A120","v":"I112"},{"$f":"Planning!B120","v":0},{"$f":"Planning!C120","v":0},{"$f":"Planning!D120","v":0},{"$f":"Planning!E120","v":0},{"$f":"IF(Planning!G120<>0,Planning!G120,\"\")","v":""},{"$f":"Planning!H120","v":0},{"$f":"Planning!U120","v":0},{"$f":"IF(OR(W136=\"1\",AND(W136<>\"1\",G136=Lists!$A$17)),Y136,0)","v":0},null,{"$f":"IF(AND(W136=\"2\",G136<>Lists!$A$17),AA136,Z136)","v":""},"",{"$f":"Planning!V120","v":{"v":0,"d":"0.00"}},{"$f":"'Month 4'!M136+'Month 4'!N136-'Month 4'!O136","v":{"v":0,"d":"0.00"}},null,"","",{"$f":"SUMIFS($J$25:$J$224,$C$25:$C$224,$C136,$G$25:$G$224,Lists!$A$16)","v":0},0,null,"",null,{"$f":"IF(C136=0,\"\",LEFT(INDEX(Lists!$H$5:$H$49,MATCH(C136,Lists!$G$5:$G$49,0),1),1))","v":""},null,{"$f":"'Month 4'!H136+'Month 4'!I136-'Month 4'!J136","v":0},"","",null,"0"]
[{"$f":"Planning!A121","v":"I113"},{"$f":"Planning!B121","v":0},{"$f":"Planning!C121","v":0},{"$f":"Planning!D121","v":0},{"$f":"Planning!E121","v":0},{"$f":"IF(Planning!G121<>0,Planning!G121,\"\")","v":""},{"$f":"Planning!H121","v":0},{"$f":"Planning!U121","v":0},{"$f":"IF(OR(W137=\"1\",AND(W137<>\"1\",G137=Lists!$A$17)),Y137,0)","v":0},null,{"$f":"IF(AND(W137=\"2\",G137<>Lists!$A$17),AA137,Z137)","v":""},"",{"$f":"Planning!V121","v":{"v":0,"d":"0.00"}},{"$f":"'Month 4'!M137+'Month 4'!N137-'Month 4'!O137","v":{"v":0,"d":"0.00"}},null,"","",{"$f":"SUMIFS($J$25:$J$224,$C$25:$C$224,$C137,$G$25:$G$224,Lists!$A$16)","v":0},0,null,"",null,{"$f":"IF(C137=0,\"\",LEFT(INDEX(Lists!$H$5:$H$49,MATCH(C137,Lists!$G$5:$G$49,0),1),1))","v":""},null,{"$f":"'Month 4'!H137+'Month 4'!I137-'Month 4'!J137","v":0},"","",null,"0"]
[{"$f":"Planning!A122","v":"I114"},{"$f":"Planning!B122","v":0},{"$f":"Planning!C122","v":0},{"$f":"Planning!D122","v":0},{"$f":"Planning!E122","v":0},{"$f":"IF(Planning!G122<>0,Planning!G122,\"\")","v":""},{"$f":"Planning!H122","v":0},{"$f":"Planning!U122","v":0},{"$f":"IF(OR(W138=\"1\",AND(W138<>\"1\",G138=Lists!$A$17)),Y138,0)","v":0},null,{"$f":"IF(AND(W138=\"2\",G138<>Lists!$A$17),AA138,Z138)","v":""},"",{"$f":"Planning!V122","v":{"v":0,"d":"0.00"}},{"$f":"'Month 4'!M138+'Month 4'!N138-'Month 4'!O138","v":{"v":0,"d":"0.00"}},null,"","",{"$f":"SUMIFS($J$25:$J$224,$C$25:$C$224,$C138,$G$25:$G$224,Lists!$A$16)","v":0},0,null,"",null,{"$f":"IF(C138=0,\"\",LEFT(INDEX(Lists!$H$5:$H$49,MATCH(C138,Lists!$G$5:$G$49,0),1),1))","v":""},null,{"$f":"'Month 4'!H138+'Month 4'!I138-'Month 4'!J138","v":0},"","",null,"0"]
[{"$f":"Planning!A123","v":"I115"},{"$f":"Planning!B123","v":0},{"$f":"Planning!C123","v":0},{"$f":"Planning!D123","v":0},{"$f":"Planning!E123","v":0},{"$f":"IF(Planning!G123<>0,Planning!G123,\"\")","v":""},{"$f":"Planning!H123","v":0},{"$f":"Planning!U123","v":0},{"$f":"IF(OR(W139=\"1\",AND(W139<>\"1\",G139=Lists!$A$17)),Y139,0)","v":0},null,{"$f":"IF(AND(W139=\"2\",G139<>Lists!$A$17),AA139,Z139)","v":""},"",{"$f":"Planning!V123","v":{"v":0,"d":"0.00"}},{"$f":"'Month 4'!M139+'Month 4'!N139-'Month 4'!O139","v":{"v":0,"d":"0.00"}},null,"","",{"$f":"SUMIFS($J$25:$J$224,$C$25:$C$224,$C139,$G$25:$G$224,Lists!$A$16)","v":0},0,null,"",null,{"$f":"IF(C139=0,\"\",LEFT(INDEX(Lists!$H$5:$H$49,MATCH(C139,Lists!$G$5:$G$49,0),1),1))","v":""},null,{"$f":"'Month 4'!H139+'Month 4'!I139-'Month 4'!J139","v":0},"","",null,"0"]
[{"$f":"Planning!A124","v":"I116"},{"$f":"Planning!B124","v":0},{"$f":"Planning!C124","v":0},{"$f":"Planning!D124","v":0},{"$f":"Planning!E124","v":0},{"$f":"IF(Planning!G124<>0,Planning!G124,\"\")","v":""},{"$f":"Planning!H124","v":0},{"$f":"Planning!U124","v":0},{"$f":"IF(OR(W140=\"1\",AND(W140<>\"1\",G140=Lists!$A$17)),Y140,0)","v":0},null,{"$f":"IF(AND(W140=\"2\",G140<>Lists!$A$17),AA140,Z140)","v":""},"",{"$f":"Planning!V124","v":{"v":0,"d":"0.00"}},{"$f":"'Month 4'!M140+'Month 4'!N140-'Month 4'!O140","v":{"v":0,"d":"0.00"}},null,"","",{"$f":"SUMIFS($J$25:$J$224,$C$25:$C$224,$C140,$G$25:$G$224,Lists!$A$16)","v":0},0,null,"",null,{"$f":"IF(C140=0,\"\",LEFT(INDEX(Lists!$H$5:$H$49,MATCH(C140,Lists!$G$5:$G$49,0),1),1))","v":""},null,{"$f":"'Month 4'!H140+'Month 4'!I140-'Month 4'!J140","v":0},"","",null,"0"]
[{"$f":"Planning!A125","v":"I117"},{"$f":"Planning!B125","v":0},{"$f":"Planning!C125","v":0},{"$f":"Planning!D125","v":0},{"$f":"Planning!E125","v":0},{"$f":"IF(Planning!G125<>0,Planning!G125,\"\")","v":""},{"$f":"Planning!H125","v":0},{"$f":"Planning!U125","v":0},{"$f":"IF(OR(W141=\"1\",AND(W141<>\"1\",G141=Lists!$A$17)),Y141,0)","v":0},null,{"$f":"IF(AND(W141=\"2\",G141<>Lists!$A$17),AA141,Z141)","v":""},"",{"$f":"Planning!V125","v":{"v":0,"d":"0.00"}},{"$f":"'Month 4'!M141+'Month 4'!N141-'Month 4'!O141","v":{"v":0,"d":"0.00"}},null,"","",{"$f":"SUMIFS($J$25:$J$224,$C$25:$C$224,$C141,$G$25:$G$224,Lists!$A$16)","v":0},0,null,"",null,{"$f":"IF(C141=0,\"\",LEFT(INDEX(Lists!$H$5:$H$49,MATCH(C141,Lists!$G$5:$G$49,0),1),1))","v":""},null,{"$f":"'Month 4'!H141+'Month 4'!I141-'Month 4'!J141","v":0},"","",null,"0"]
[{"$f":"Planning!A126","v":"I118"},{"$f":"Planning!B126","v":0},{"$f":"Planning!C126","v":0},{"$f":"Planning!D126","v":0},{"$f":"Planning!E126","v":0},{"$f":"IF(Planning!G126<>0,Planning!G126,\"\")","v":""},{"$f":"Planning!H126","v":0},{"$f":"Planning!U126","v":0},{"$f":"IF(OR(W142=\"1\",AND(W142<>\"1\",G142=Lists!$A$17)),Y142,0)","v":0},null,{"$f":"IF(AND(W142=\"2\",G142<>Lists!$A$17),AA142,Z142)","v":""},"",{"$f":"Planning!V126","v":{"v":0,"d":"0.00"}},{"$f":"'Month 4'!M142+'Month 4'!N142-'Month 4'!O142","v":{"v":0,"d":"0.00"}},null,"","",{"$f":"SUMIFS($J$25:$J$224,$C$25:$C$224,$C142,$G$25:$G$224,Lists!$A$16)","v":0},0,null,"",null,{"$f":"IF(C142=0,\"\",LEFT(INDEX(Lists!$H$5:$H$49,MATCH(C142,Lists!$G$5:$G$49,0),1),1))","v":""},null,{"$f":"'Month 4'!H142+'Month 4'!I142-'Month 4'!J142","v":0},"","",null,"0"]
[{"$f":"Planning!A127","v":"I119"},{"$f":"Planning!B127","v":0},{"$f":"Planning!C127","v":0},{"$f":"Planning!D127","v":0},{"$f":"Planning!E127","v":0},{"$f":"IF(Planning!G127<>0,Planning!G127,\"\")","v":""},{"$f":"Planning!H127","v":0},{"$f":"Planning!U127","v":0},{"$f":"IF(OR(W143=\"1\",AND(W143<>\"1\",G143=Lists!$A$17)),Y143,0)","v":0},null,{"$f":"IF(AND(W143=\"2\",G143<>Lists!$A$17),AA143,Z143)","v":""},"",{"$f":"Planning!V127","v":{"v":0,"d":"0.00"}},{"$f":"'Month 4'!M143+'Month 4'!N143-'Month 4'!O143","v":{"v":0,"d":"0.00"}},null,"","",{"$f":"SUMIFS($J$25:$J$224,$C$25:$C$224,$C143,$G$25:$G$224,Lists!$A$16)","v":0},0,null,"",null,{"$f":"IF(C143=0,\"\",LEFT(INDEX(Lists!$H$5:$H$49,MATCH(C143,Lists!$G$5:$G$49,0),1),1))","v":""},null,{"$f":"'Month 4'!H143+'Month 4'!I143-'Month 4'!J143","v":0},"","",null,"0"]
[{"$f":"Planning!A128","v":"I120"},{"$f":"Planning!B128","v":0},{"$f":"Planning!C128","v":0},{"$f":"Planning!D128","v":0},{"$f":"Planning!E128","v":0},{"$f":"IF(Planning!G128<>0,Planning!G128,\"\")","v":""},{"$f":"Planning!H128","v":0},{"$f":"Planning!U128","v":0},{"$f":"IF(OR(W144=\"1\",AND(W144<>\"1\",G144=Lists!$A$17)),Y144,0)","v":0},null,{"$f":"IF(AND(W144=\"2\",G144<>Lists!$A$17),AA144,Z144)","v":""},"",{"$f":"Planning!V128","v":{"v":0,"d":"0.00"}},{"$f":"'Month 4'!M144+'Month 4'!N144-'Month 4'!O144","v":{"v":0,"d":"0.00"}},null,"","",{"$f":"SUMIFS($J$25:$J$224,$C$25:$C$224,$C144,$G$25:$G$224,Lists!$A$16)","v":0},0,null,"",null,{"$f":"IF(C144=0,\"\",LEFT(INDEX(Lists!$H$5:$H$49,MATCH(C144,Lists!$G$5:$G$49,0),1),1))","v":""},null,{"$f":"'Month 4'!H144+'Month 4'!I144-'Month 4'!J144","v":0},"","",null,"0"]
[{"$f":"Planning!A129","v":"I121"},{"$f":"Planning!B129","v":0},{"$f":"Planning!C129","v":0},{"$f":"Planning!D129","v":0},{"$f":"Planning!E129","v":0},{"$f":"IF(Planning!G129<>0,Planning!G129,\"\")","v":""},{"$f":"Planning!H129","v":0},{"$f":"Planning!U129","v":0},{"$f":"IF(OR(W145=\"1\",AND(W145<>\"1\",G145=Lists!$A$17)),Y145,0)","v":0},null,{"$f":"IF(AND(W145=\"2\",G145<>Lists!$A$17),AA145,Z145)","v":""},"",{"$f":"Planning!V129","v":{"v":0,"d":"0.00"}},{"$f":"'Month 4'!M145+'Month 4'!N145-'Month 4'!O145","v":{"v":0,"d":"0.00"}},null,"","",{"$f":"SUMIFS($J$25:$J$224,$C$25:$C$224,$C145,$G$25:$G$224,Lists!$A$16)","v":0},0,null,"",null,{"$f":"IF(C145=0,\"\",LEFT(INDEX(Lists!$H$5:$H$49,MATCH(C145,Lists!$G$5:$G$49,0),1),1))","v":""},null,{"$f":"'Month 4'!H145+'Month 4'!I145-'Month 4'!J145","v":0},"","",null,"0"]
[{"$f":"Planning!A130","v":"I122"},{"$f":"Planning!B130","v":0},{"$f":"Planning!C130","v":0},{"$f":"Planning!D130","v":0},{"$f":"Planning!E130","v":0},{"$f":"IF(Planning!G130<>0,Planning!G130,\"\")","v":""},{"$f":"Planning!H130","v":0},{"$f":"Planning!U130","v":0},{"$f":"IF(OR(W146=\"1\",AND(W146<>\"1\",G146=Lists!$A$17)),Y146,0)","v":0},null,{"$f":"IF(AND(W146=\"2\",G146<>Lists!$A$17),AA146,Z146)","v":""},"",{"$f":"Planning!V130","v":{"v":0,"d":"0.00"}},{"$f":"'Month 4'!M146+'Month 4'!N146-'Month 4'!O146","v":{"v":0,"d":"0.00"}},null,"","",{"$f":"SUMIFS($J$25:$J$224,$C$25:$C$224,$C146,$G$25:$G$224,Lists!$A$16)","v":0},0,null,"",null,{"$f":"IF(C146=0,\"\",LEFT(INDEX(Lists!$H$5:$H$49,MATCH(C146,Lists!$G$5:$G$49,0),1),1))","v":""},null,{"$f":"'Month 4'!H146+'Month 4'!I146-'Month 4'!J146","v":0},"","",null,"0"]
[{"$f":"Planning!A131","v":"I123"},{"$f":"Planning!B131","v":0},{"$f":"Planning!C131","v":0},{"$f":"Planning!D131","v":0},{"$f":"Planning!E131","v":0},{"$f":"IF(Planning!G131<>0,Planning!G131,\"\")","v":""},{"$f":"Planning!H131","v":0},{"$f":"Planning!U131","v":0},{"$f":"IF(OR(W147=\"1\",AND(W147<>\"1\",G147=Lists!$A$17)),Y147,0)","v":0},null,{"$f":"IF(AND(W147=\"2\",G147<>Lists!$A$17),AA147,Z147)","v":""},"",{"$f":"Planning!V131","v":{"v":0,"d":"0.00"}},{"$f":"'Month 4'!M147+'Month 4'!N147-'Month 4'!O147","v":{"v":0,"d":"0.00"}},null,"","",{"$f":"SUMIFS($J$25:$J$224,$C$25:$C$224,$C147,$G$25:$G$224,Lists!$A$16)","v":0},0,null,"",null,{"$f":"IF(C147=0,\"\",LEFT(INDEX(Lists!$H$5:$H$49,MATCH(C147,Lists!$G$5:$G$49,0),1),1))","v":""},null,{"$f":"'Month 4'!H147+'Month 4'!I147-'Month 4'!J147","v":0},"","",null,"0"]
[{"$f":"Planning!A132","v":"I124"},{"$f":"Planning!B132","v":0},{"$f":"Planning!C132","v":0},{"$f":"Planning!D132","v":0},{"$f":"Planning!E132","v":0},{"$f":"IF(Planning!G132<>0,Planning!G132,\"\")","v":""},{"$f":"Planning!H132","v":0},{"$f":"Planning!U132","v":0},{"$f":"IF(OR(W148=\"1\",AND(W148<>\"1\",G148=Lists!$A$17)),Y148,0)","v":0},null,{"$f":"IF(AND(W148=\"2\",G148<>Lists!$A$17),AA148,Z148)","v":""},"",{"$f":"Planning!V132","v":{"v":0,"d":"0.00"}},{"$f":"'Month 4'!M148+'Month 4'!N148-'Month 4'!O148","v":{"v":0,"d":"0.00"}},null,"","",{"$f":"SUMIFS($J$25:$J$224,$C$25:$C$224,$C148,$G$25:$G$224,Lists!$A$16)","v":0},0,null,"",null,{"$f":"IF(C148=0,\"\",LEFT(INDEX(Lists!$H$5:$H$49,MATCH(C148,Lists!$G$5:$G$49,0),1),1))","v":""},null,{"$f":"'Month 4'!H148+'Month 4'!I148-'Month 4'!J148","v":0},"","",null,"0"]
[{"$f":"Planning!A133","v":"I125"},{"$f":"Planning!B133","v":0},{"$f":"Planning!C133","v":0},{"$f":"Planning!D133","v":0},{"$f":"Planning!E133","v":0},{"$f":"IF(Planning!G133<>0,Planning!G133,\"\")","v":""},{"$f":"Planning!H133","v":0},{"$f":"Planning!U133","v":0},{"$f":"IF(OR(W149=\"1\",AND(W149<>\"1\",G149=Lists!$A$17)),Y149,0)","v":0},null,{"$f":"IF(AND(W149=\"2\",G149<>Lists!$A$17),AA149,Z149)","v":""},"",{"$f":"Planning!V133","v":{"v":0,"d":"0.00"}},{"$f":"'Month 4'!M149+'Month 4'!N149-'Month 4'!O149","v":{"v":0,"d":"0.00"}},null,"","",{"$f":"SUMIFS($J$25:$J$224,$C$25:$C$224,$C149,$G$25:$G$224,Lists!$A$16)","v":0},0,null,"",null,{"$f":"IF(C149=0,\"\",LEFT(INDEX(Lists!$H$5:$H$49,MATCH(C149,Lists!$G$5:$G$49,0),1),1))","v":""},null,{"$f":"'Month 4'!H149+'Month 4'!I149-'Month 4'!J149","v":0},"","",null,"0"]
[{"$f":"Planning!A134","v":"I126"},{"$f":"Planning!B134","v":0},{"$f":"Planning!C134","v":0},{"$f":"Planning!D134","v":0},{"$f":"Planning!E134","v":0},{"$f":"IF(Planning!G134<>0,Planning!G134,\"\")","v":""},{"$f":"Planning!H134","v":0},{"$f":"Planning!U134","v":0},{"$f":"IF(OR(W150=\"1\",AND(W150<>\"1\",G150=Lists!$A$17)),Y150,0)","v":0},null,{"$f":"IF(AND(W150=\"2\",G150<>Lists!$A$17),AA150,Z150)","v":""},"",{"$f":"Planning!V134","v":{"v":0,"d":"0.00"}},{"$f":"'Month 4'!M150+'Month 4'!N150-'Month 4'!O150","v":{"v":0,"d":"0.00"}},null,"","",{"$f":"SUMIFS($J$25:$J$224,$C$25:$C$224,$C150,$G$25:$G$224,Lists!$A$16)","v":0},0,null,"",null,{"$f":"IF(C150=0,\"\",LEFT(INDEX(Lists!$H$5:$H$49,MATCH(C150,Lists!$G$5:$G$49,0),1),1))","v":""},null,{"$f":"'Month 4'!H150+'Month 4'!I150-'Month 4'!J150","v":0},"","",null,"0"]
[{"$f":"Planning!A135","v":"I127"},{"$f":"Planning!B135","v":0},{"$f":"Planning!C135","v":0},{"$f":"Planning!D135","v":0},{"$f":"Planning!E135","v":0},{"$f":"IF(Planning!G135<>0,Planning!G135,\"\")","v":""},{"$f":"Planning!H135","v":0},{"$f":"Planning!U135","v":0},{"$f":"IF(OR(W151=\"1\",AND(W151<>\"1\",G151=Lists!$A$17)),Y151,0)","v":0},null,{"$f":"IF(AND(W151=\"2\",G151<>Lists!$A$17),AA151,Z151)","v":""},"",{"$f":"Planning!V135","v":{"v":0,"d":"0.00"}},{"$f":"'Month 4'!M151+'Month 4'!N151-'Month 4'!O151","v":{"v":0,"d":"0.00"}},null,"","",{"$f":"SUMIFS($J$25:$J$224,$C$25:$C$224,$C151,$G$25:$G$224,Lists!$A$16)","v":0},0,null,"",null,{"$f":"IF(C151=0,\"\",LEFT(INDEX(Lists!$H$5:$H$49,MATCH(C151,Lists!$G$5:$G$49,0),1),1))","v":""},null,{"$f":"'Month 4'!H151+'Month 4'!I151-'Month 4'!J151","v":0},"","",null,"0"]
[{"$f":"Planning!A136","v":"I128"},{"$f":"Planning!B136","v":0},{"$f":"Planning!C136","v":0},{"$f":"Planning!D136","v":0},{"$f":"Planning!E136","v":0},{"$f":"IF(Planning!G136<>0,Planning!G136,\"\")","v":""},{"$f":"Planning!H136","v":0},{"$f":"Planning!U136","v":0},{"$f":"IF(OR(W152=\"1\",AND(W152<>\"1\",G152=Lists!$A$17)),Y152,0)","v":0},null,{"$f":"IF(AND(W152=\"2\",G152<>Lists!$A$17),AA152,Z152)","v":""},"",{"$f":"Planning!V136","v":{"v":0,"d":"0.00"}},{"$f":"'Month 4'!M152+'Month 4'!N152-'Month 4'!O152","v":{"v":0,"d":"0.00"}},null,"","",{"$f":"SUMIFS($J$25:$J$224,$C$25:$C$224,$C152,$G$25:$G$224,Lists!$A$16)","v":0},0,null,"",null,{"$f":"IF(C152=0,\"\",LEFT(INDEX(Lists!$H$5:$H$49,MATCH(C152,Lists!$G$5:$G$49,0),1),1))","v":""},null,{"$f":"'Month 4'!H152+'Month 4'!I152-'Month 4'!J152","v":0},"","",null,"0"]
[{"$f":"Planning!A137","v":"I129"},{"$f":"Planning!B137","v":0},{"$f":"Planning!C137","v":0},{"$f":"Planning!D137","v":0},{"$f":"Planning!E137","v":0},{"$f":"IF(Planning!G137<>0,Planning!G137,\"\")","v":""},{"$f":"Planning!H137","v":0},{"$f":"Planning!U137","v":0},{"$f":"IF(OR(W153=\"1\",AND(W153<>\"1\",G153=Lists!$A$17)),Y153,0)","v":0},null,{"$f":"IF(AND(W153=\"2\",G153<>Lists!$A$17),AA153,Z153)","v":""},{"$f":"IF($U153=ExcluirDelPLogro,\"\",IF(AND(H153=0,I153=0,J153=0),\"\",K153))","v":""},{"$f":"Planning!V137","v":{"v":0,"d":"0.00"}},{"$f":"'Month 4'!M153+'Month 4'!N153-'Month 4'!O153","v":{"v":0,"d":"0.00"}},null,"",{"$f":"IF($U153=ExcluirDelPLogro,\"\",IF(AND(M153=0,N153=0,O153=0),\"\",P153))","v":""},{"$f":"SUMIFS($J$25:$J$224,$C$25:$C$224,$C153,$G$25:$G$224,Lists!$A$16)","v":0},0,null,"",null,{"$f":"IF(C153=0,\"\",LEFT(INDEX(Lists!$H$5:$H$49,MATCH(C153,Lists!$G$5:$G$49,0),1),1))","v":""},null,{"$f":"'Month 4'!H153+'Month 4'!I153-'Month 4'!J153","v":0},"",{"$f":"IF(AND(H153=0,I153=0,J153=0),\"\",IF(J153>0,H153/J153,0))","v":""},null,"0"]
[{"$f":"Planning!A138","v":"I130"},{"$f":"Planning!B138","v":0},{"$f":"Planning!C138","v":0},{"$f":"Planning!D138","v":0},{"$f":"Planning!E138","v":0},{"$f":"IF(Planning!G138<>0,Planning!G138,\"\")","v":""},{"$f":"Planning!H138","v":0},{"$f":"Planning!U138","v":0},{"$f":"IF(OR(W154=\"1\",AND(W154<>\"1\",G154=Lists!$A$17)),Y154,0)","v":0},null,{"$f":"IF(AND(W154=\"2\",G154<>Lists!$A$17),AA154,Z154)","v":""},"",{"$f":"Planning!V138","v":{"v":0,"d":"0.00"}},{"$f":"'Month 4'!M154+'Month 4'!N154-'Month 4'!O154","v":{"v":0,"d":"0.00"}},null,{"$f":"IF(AND(M154=0,N154=0,O154=0),\"\",IF((M154+N154)>0,O154/(M154+N154),O154))","v":""},"",{"$f":"SUMIFS($J$25:$J$224,$C$25:$C$224,$C154,$G$25:$G$224,Lists!$A$16)","v":0},{"$f":"SUMIFS($O$25:$O$224,$C$25:$C$224,$C154,$G$25:$G$224,\"<>0\")","v":0},null,{"$f":"IF(B154=0,\"\",IF(LEFT(B154,1)=\"1\",\"1\",\"2\"))","v":""},null,{"$f":"IF(C154=0,\"\",LEFT(INDEX(Lists!$H$5:$H$49,MATCH(C154,Lists!$G$5:$G$49,0),1),1))","v":""},null,{"$f":"'Month 4'!H154+'Month 4'!I154-'Month 4'!J154","v":0},{"$f":"IF(AND(H154=0,I154=0,J154=0),\"\",IF((H154+I154)>0,J154/(H154+I154),J154))","v":""},"",null,{"$f":"U154&C154","v":"0"}]
[{"$f":"Planning!A139","v":"I131"},{"$f":"Planning!B139","v":0},{"$f":"Planning!C139","v":0},{"$f":"Planning!D139","v":0},{"$f":"Planning!E139","v":0},{"$f":"IF(Planning!G139<>0,Planning!G139,\"\")","v":""},{"$f":"Planning!H139","v":0},{"$f":"Planning!U139","v":0},{"$f":"IF(OR(W155=\"1\",AND(W155<>\"1\",G155=Lists!$A$17)),Y155,0)","v":0},null,{"$f":"IF(AND(W155=\"2\",G155<>Lists!$A$17),AA155,Z155)","v":""},"",{"$f":"Planning!V139","v":{"v":0,"d":"0.00"}},{"$f":"'Month 4'!M155+'Month 4'!N155-'Month 4'!O155","v":{"v":0,"d":"0.00"}},null,"","",{"$f":"SUMIFS($J$25:$J$224,$C$25:$C$224,$C155,$G$25:$G$224,Lists!$A$16)","v":0},0,null,"",null,{"$f":"IF(C155=0,\"\",LEFT(INDEX(Lists!$H$5:$H$49,MATCH(C155,Lists!$G$5:$G$49,0),1),1))","v":""},null,{"$f":"'Month 4'!H155+'Month 4'!I155-'Month 4'!J155","v":0},"","",null,"0"]
[{"$f":"Planning!A140","v":"I132"},{"$f":"Planning!B140","v":0},{"$f":"Planning!C140","v":0},{"$f":"Planning!D140","v":0},{"$f":"Planning!E140","v":0},{"$f":"IF(Planning!G140<>0,Planning!G140,\"\")","v":""},{"$f":"Planning!H140","v":0},{"$f":"Planning!U140","v":0},{"$f":"IF(OR(W156=\"1\",AND(W156<>\"1\",G156=Lists!$A$17)),Y156,0)","v":0},null,{"$f":"IF(AND(W156=\"2\",G156<>Lists!$A$17),AA156,Z156)","v":""},"",{"$f":"Planning!V140","v":{"v":0,"d":"0.00"}},{"$f":"'Month 4'!M156+'Month 4'!N156-'Month 4'!O156","v":{"v":0,"d":"0.00"}},null,"","",{"$f":"SUMIFS($J$25:$J$224,$C$25:$C$224,$C156,$G$25:$G$224,Lists!$A$16)","v":0},0,null,"",null,{"$f":"IF(C156=0,\"\",LEFT(INDEX(Lists!$H$5:$H$49,MATCH(C156,Lists!$G$5:$G$49,0),1),1))","v":""},null,{"$f":"'Month 4'!H156+'Month 4'!I156-'Month 4'!J156","v":0},"","",null,"0"]
[{"$f":"Planning!A141","v":"I133"},{"$f":"Planning!B141","v":0},{"$f":"Planning!C141","v":0},{"$f":"Planning!D141","v":0},{"$f":"Planning!E141","v":0},{"$f":"IF(Planning!G141<>0,Planning!G141,\"\")","v":""},{"$f":"Planning!H141","v":0},{"$f":"Planning!U141","v":0},{"$f":"IF(OR(W157=\"1\",AND(W157<>\"1\",G157=Lists!$A$17)),Y157,0)","v":0},null,{"$f":"IF(AND(W157=\"2\",G157<>Lists!$A$17),AA157,Z157)","v":""},"",{"$f":"Planning!V141","v":{"v":0,"d":"0.00"}},{"$f":"'Month 4'!M157+'Month 4'!N157-'Month 4'!O157","v":{"v":0,"d":"0.00"}},null,"","",{"$f":"SUMIFS($J$25:$J$224,$C$25:$C$224,$C157,$G$25:$G$224,Lists!$A$16)","v":0},0,null,"",null,{"$f":"IF(C157=0,\"\",LEFT(INDEX(Lists!$H$5:$H$49,MATCH(C157,Lists!$G$5:$G$49,0),1),1))","v":""},null,{"$f":"'Month 4'!H157+'Month 4'!I157-'Month 4'!J157","v":0},"","",null,"0"]
[{"$f":"Planning!A142","v":"I134"},{"$f":"Planning!B142","v":0},{"$f":"Planning!C142","v":0},{"$f":"Planning!D142","v":0},{"$f":"Planning!E142","v":0},{"$f":"IF(Planning!G142<>0,Planning!G142,\"\")","v":""},{"$f":"Planning!H142","v":0},{"$f":"Planning!U142","v":0},{"$f":"IF(OR(W158=\"1\",AND(W158<>\"1\",G158=Lists!$A$17)),Y158,0)","v":0},null,{"$f":"IF(AND(W158=\"2\",G158<>Lists!$A$17),AA158,Z158)","v":""},"",{"$f":"Planning!V142","v":{"v":0,"d":"0.00"}},{"$f":"'Month 4'!M158+'Month 4'!N158-'Month 4'!O158","v":{"v":0,"d":"0.00"}},null,"","",{"$f":"SUMIFS($J$25:$J$224,$C$25:$C$224,$C158,$G$25:$G$224,Lists!$A$16)","v":0},0,null,"",null,{"$f":"IF(C158=0,\"\",LEFT(INDEX(Lists!$H$5:$H$49,MATCH(C158,Lists!$G$5:$G$49,0),1),1))","v":""},null,{"$f":"'Month 4'!H158+'Month 4'!I158-'Month 4'!J158","v":0},"","",null,"0"]
[{"$f":"Planning!A143","v":"I135"},{"$f":"Planning!B143","v":0},{"$f":"Planning!C143","v":0},{"$f":"Planning!D143","v":0},{"$f":"Planning!E143","v":0},{"$f":"IF(Planning!G143<>0,Planning!G143,\"\")","v":""},{"$f":"Planning!H143","v":0},{"$f":"Planning!U143","v":0},{"$f":"IF(OR(W159=\"1\",AND(W159<>\"1\",G159=Lists!$A$17)),Y159,0)","v":0},null,{"$f":"IF(AND(W159=\"2\",G159<>Lists!$A$17),AA159,Z159)","v":""},"",{"$f":"Planning!V143","v":{"v":0,"d":"0.00"}},{"$f":"'Month 4'!M159+'Month 4'!N159-'Month 4'!O159","v":{"v":0,"d":"0.00"}},null,"","",{"$f":"SUMIFS($J$25:$J$224,$C$25:$C$224,$C159,$G$25:$G$224,Lists!$A$16)","v":0},0,null,"",null,{"$f":"IF(C159=0,\"\",LEFT(INDEX(Lists!$H$5:$H$49,MATCH(C159,Lists!$G$5:$G$49,0),1),1))","v":""},null,{"$f":"'Month 4'!H159+'Month 4'!I159-'Month 4'!J159","v":0},"","",null,"0"]
[{"$f":"Planning!A144","v":"I136"},{"$f":"Planning!B144","v":0},{"$f":"Planning!C144","v":0},{"$f":"Planning!D144","v":0},{"$f":"Planning!E144","v":0},{"$f":"IF(Planning!G144<>0,Planning!G144,\"\")","v":""},{"$f":"Planning!H144","v":0},{"$f":"Planning!U144","v":0},{"$f":"IF(OR(W160=\"1\",AND(W160<>\"1\",G160=Lists!$A$17)),Y160,0)","v":0},null,{"$f":"IF(AND(W160=\"2\",G160<>Lists!$A$17),AA160,Z160)","v":""},"",{"$f":"Planning!V144","v":{"v":0,"d":"0.00"}},{"$f":"'Month 4'!M160+'Month 4'!N160-'Month 4'!O160","v":{"v":0,"d":"0.00"}},null,"","",{"$f":"SUMIFS($J$25:$J$224,$C$25:$C$224,$C160,$G$25:$G$224,Lists!$A$16)","v":0},0,null,"",null,{"$f":"IF(C160=0,\"\",LEFT(INDEX(Lists!$H$5:$H$49,MATCH(C160,Lists!$G$5:$G$49,0),1),1))","v":""},null,{"$f":"'Month 4'!H160+'Month 4'!I160-'Month 4'!J160","v":0},"","",null,"0"]
[{"$f":"Planning!A145","v":"I137"},{"$f":"Planning!B145","v":0},{"$f":"Planning!C145","v":0},{"$f":"Planning!D145","v":0},{"$f":"Planning!E145","v":0},{"$f":"IF(Planning!G145<>0,Planning!G145,\"\")","v":""},{"$f":"Planning!H145","v":0},{"$f":"Planning!U145","v":0},{"$f":"IF(OR(W161=\"1\",AND(W161<>\"1\",G161=Lists!$A$17)),Y161,0)","v":0},null,{"$f":"IF(AND(W161=\"2\",G161<>Lists!$A$17),AA161,Z161)","v":""},"",{"$f":"Planning!V145","v":{"v":0,"d":"0.00"}},{"$f":"'Month 4'!M161+'Month 4'!N161-'Month 4'!O161","v":{"v":0,"d":"0.00"}},null,"","",{"$f":"SUMIFS($J$25:$J$224,$C$25:$C$224,$C161,$G$25:$G$224,Lists!$A$16)","v":0},0,null,"",null,{"$f":"IF(C161=0,\"\",LEFT(INDEX(Lists!$H$5:$H$49,MATCH(C161,Lists!$G$5:$G$49,0),1),1))","v":""},null,{"$f":"'Month 4'!H161+'Month 4'!I161-'Month 4'!J161","v":0},"","",null,"0"]
[{"$f":"Planning!A146","v":"I138"},{"$f":"Planning!B146","v":0},{"$f":"Planning!C146","v":0},{"$f":"Planning!D146","v":0},{"$f":"Planning!E146","v":0},{"$f":"IF(Planning!G146<>0,Planning!G146,\"\")","v":""},{"$f":"Planning!H146","v":0},{"$f":"Planning!U146","v":0},{"$f":"IF(OR(W162=\"1\",AND(W162<>\"1\",G162=Lists!$A$17)),Y162,0)","v":0},null,{"$f":"IF(AND(W162=\"2\",G162<>Lists!$A$17),AA162,Z162)","v":""},"",{"$f":"Planning!V146","v":{"v":0,"d":"0.00"}},{"$f":"'Month 4'!M162+'Month 4'!N162-'Month 4'!O162","v":{"v":0,"d":"0.00"}},null,"","",{"$f":"SUMIFS($J$25:$J$224,$C$25:$C$224,$C162,$G$25:$G$224,Lists!$A$16)","v":0},0,null,"",null,{"$f":"IF(C162=0,\"\",LEFT(INDEX(Lists!$H$5:$H$49,MATCH(C162,Lists!$G$5:$G$49,0),1),1))","v":""},null,{"$f":"'Month 4'!H162+'Month 4'!I162-'Month 4'!J162","v":0},"","",null,"0"]
[{"$f":"Planning!A147","v":"I139"},{"$f":"Planning!B147","v":0},{"$f":"Planning!C147","v":0},{"$f":"Planning!D147","v":0},{"$f":"Planning!E147","v":0},{"$f":"IF(Planning!G147<>0,Planning!G147,\"\")","v":""},{"$f":"Planning!H147","v":0},{"$f":"Planning!U147","v":0},{"$f":"IF(OR(W163=\"1\",AND(W163<>\"1\",G163=Lists!$A$17)),Y163,0)","v":0},null,{"$f":"IF(AND(W163=\"2\",G163<>Lists!$A$17),AA163,Z163)","v":""},"",{"$f":"Planning!V147","v":{"v":0,"d":"0.00"}},{"$f":"'Month 4'!M163+'Month 4'!N163-'Month 4'!O163","v":{"v":0,"d":"0.00"}},null,"","",{"$f":"SUMIFS($J$25:$J$224,$C$25:$C$224,$C163,$G$25:$G$224,Lists!$A$16)","v":0},0,null,"",null,{"$f":"IF(C163=0,\"\",LEFT(INDEX(Lists!$H$5:$H$49,MATCH(C163,Lists!$G$5:$G$49,0),1),1))","v":""},null,{"$f":"'Month 4'!H163+'Month 4'!I163-'Month 4'!J163","v":0},"","",null,"0"]
[{"$f":"Planning!A148","v":"I140"},{"$f":"Planning!B148","v":0},{"$f":"Planning!C148","v":0},{"$f":"Planning!D148","v":0},{"$f":"Planning!E148","v":0},{"$f":"IF(Planning!G148<>0,Planning!G148,\"\")","v":""},{"$f":"Planning!H148","v":0},{"$f":"Planning!U148","v":0},{"$f":"IF(OR(W164=\"1\",AND(W164<>\"1\",G164=Lists!$A$17)),Y164,0)","v":0},null,{"$f":"IF(AND(W164=\"2\",G164<>Lists!$A$17),AA164,Z164)","v":""},"",{"$f":"Planning!V148","v":{"v":0,"d":"0.00"}},{"$f":"'Month 4'!M164+'Month 4'!N164-'Month 4'!O164","v":{"v":0,"d":"0.00"}},null,"","",{"$f":"SUMIFS($J$25:$J$224,$C$25:$C$224,$C164,$G$25:$G$224,Lists!$A$16)","v":0},0,null,"",null,{"$f":"IF(C164=0,\"\",LEFT(INDEX(Lists!$H$5:$H$49,MATCH(C164,Lists!$G$5:$G$49,0),1),1))","v":""},null,{"$f":"'Month 4'!H164+'Month 4'!I164-'Month 4'!J164","v":0},"","",null,"0"]
[{"$f":"Planning!A149","v":"I141"},{"$f":"Planning!B149","v":0},{"$f":"Planning!C149","v":0},{"$f":"Planning!D149","v":0},{"$f":"Planning!E149","v":0},{"$f":"IF(Planning!G149<>0,Planning!G149,\"\")","v":""},{"$f":"Planning!H149","v":0},{"$f":"Planning!U149","v":0},{"$f":"IF(OR(W165=\"1\",AND(W165<>\"1\",G165=Lists!$A$17)),Y165,0)","v":0},null,{"$f":"IF(AND(W165=\"2\",G165<>Lists!$A$17),AA165,Z165)","v":""},"",{"$f":"Planning!V149","v":{"v":0,"d":"0.00"}},{"$f":"'Month 4'!M165+'Month 4'!N165-'Month 4'!O165","v":{"v":0,"d":"0.00"}},null,"","",{"$f":"SUMIFS($J$25:$J$224,$C$25:$C$224,$C165,$G$25:$G$224,Lists!$A$16)","v":0},0,null,"",null,{"$f":"IF(C165=0,\"\",LEFT(INDEX(Lists!$H$5:$H$49,MATCH(C165,Lists!$G$5:$G$49,0),1),1))","v":""},null,{"$f":"'Month 4'!H165+'Month 4'!I165-'Month 4'!J165","v":0},"","",null,"0"]
[{"$f":"Planning!A150","v":"I142"},{"$f":"Planning!B150","v":0},{"$f":"Planning!C150","v":0},{"$f":"Planning!D150","v":0},{"$f":"Planning!E150","v":0},{"$f":"IF(Planning!G150<>0,Planning!G150,\"\")","v":""},{"$f":"Planning!H150","v":0},{"$f":"Planning!U150","v":0},{"$f":"IF(OR(W166=\"1\",AND(W166<>\"1\",G166=Lists!$A$17)),Y166,0)","v":0},null,{"$f":"IF(AND(W166=\"2\",G166<>Lists!$A$17),AA166,Z166)","v":""},"",{"$f":"Planning!V150","v":{"v":0,"d":"0.00"}},{"$f":"'Month 4'!M166+'Month 4'!N166-'Month 4'!O166","v":{"v":0,"d":"0.00"}},null,"","",{"$f":"SUMIFS($J$25:$J$224,$C$25:$C$224,$C166,$G$25:$G$224,Lists!$A$16)","v":0},0,null,"",null,{"$f":"IF(C166=0,\"\",LEFT(INDEX(Lists!$H$5:$H$49,MATCH(C166,Lists!$G$5:$G$49,0),1),1))","v":""},null,{"$f":"'Month 4'!H166+'Month 4'!I166-'Month 4'!J166","v":0},"","",null,"0"]
[{"$f":"Planning!A151","v":"I143"},{"$f":"Planning!B151","v":0},{"$f":"Planning!C151","v":0},{"$f":"Planning!D151","v":0},{"$f":"Planning!E151","v":0},{"$f":"IF(Planning!G151<>0,Planning!G151,\"\")","v":""},{"$f":"Planning!H151","v":0},{"$f":"Planning!U151","v":0},{"$f":"IF(OR(W167=\"1\",AND(W167<>\"1\",G167=Lists!$A$17)),Y167,0)","v":0},null,{"$f":"IF(AND(W167=\"2\",G167<>Lists!$A$17),AA167,Z167)","v":""},"",{"$f":"Planning!V151","v":{"v":0,"d":"0.00"}},{"$f":"'Month 4'!M167+'Month 4'!N167-'Month 4'!O167","v":{"v":0,"d":"0.00"}},null,"","",{"$f":"SUMIFS($J$25:$J$224,$C$25:$C$224,$C167,$G$25:$G$224,Lists!$A$16)","v":0},0,null,"",null,{"$f":"IF(C167=0,\"\",LEFT(INDEX(Lists!$H$5:$H$49,MATCH(C167,Lists!$G$5:$G$49,0),1),1))","v":""},null,{"$f":"'Month 4'!H167+'Month 4'!I167-'Month 4'!J167","v":0},"","",null,"0"]
[{"$f":"Planning!A152","v":"I144"},{"$f":"Planning!B152","v":0},{"$f":"Planning!C152","v":0},{"$f":"Planning!D152","v":0},{"$f":"Planning!E152","v":0},{"$f":"IF(Planning!G152<>0,Planning!G152,\"\")","v":""},{"$f":"Planning!H152","v":0},{"$f":"Planning!U152","v":0},{"$f":"IF(OR(W168=\"1\",AND(W168<>\"1\",G168=Lists!$A$17)),Y168,0)","v":0},null,{"$f":"IF(AND(W168=\"2\",G168<>Lists!$A$17),AA168,Z168)","v":""},"",{"$f":"Planning!V152","v":{"v":0,"d":"0.00"}},{"$f":"'Month 4'!M168+'Month 4'!N168-'Month 4'!O168","v":{"v":0,"d":"0.00"}},null,"","",{"$f":"SUMIFS($J$25:$J$224,$C$25:$C$224,$C168,$G$25:$G$224,Lists!$A$16)","v":0},0,null,"",null,{"$f":"IF(C168=0,\"\",LEFT(INDEX(Lists!$H$5:$H$49,MATCH(C168,Lists!$G$5:$G$49,0),1),1))","v":""},null,{"$f":"'Month 4'!H168+'Month 4'!I168-'Month 4'!J168","v":0},"","",null,"0"]
[{"$f":"Planning!A153","v":"I145"},{"$f":"Planning!B153","v":0},{"$f":"Planning!C153","v":0},{"$f":"Planning!D153","v":0},{"$f":"Planning!E153","v":0},{"$f":"IF(Planning!G153<>0,Planning!G153,\"\")","v":""},{"$f":"Planning!H153","v":0},{"$f":"Planning!U153","v":0},{"$f":"IF(OR(W169=\"1\",AND(W169<>\"1\",G169=Lists!$A$17)),Y169,0)","v":0},null,{"$f":"IF(AND(W169=\"2\",G169<>Lists!$A$17),AA169,Z169)","v":""},"",{"$f":"Planning!V153","v":{"v":0,"d":"0.00"}},{"$f":"'Month 4'!M169+'Month 4'!N169-'Month 4'!O169","v":{"v":0,"d":"0.00"}},null,"","",{"$f":"SUMIFS($J$25:$J$224,$C$25:$C$224,$C169,$G$25:$G$224,Lists!$A$16)","v":0},0,null,"",null,{"$f":"IF(C169=0,\"\",LEFT(INDEX(Lists!$H$5:$H$49,MATCH(C169,Lists!$G$5:$G$49,0),1),1))","v":""},null,{"$f":"'Month 4'!H169+'Month 4'!I169-'Month 4'!J169","v":0},"","",null,"0"]
[{"$f":"Planning!A154","v":"I146"},{"$f":"Planning!B154","v":0},{"$f":"Planning!C154","v":0},{"$f":"Planning!D154","v":0},{"$f":"Planning!E154","v":0},{"$f":"IF(Planning!G154<>0,Planning!G154,\"\")","v":""},{"$f":"Planning!H154","v":0},{"$f":"Planning!U154","v":0},{"$f":"IF(OR(W170=\"1\",AND(W170<>\"1\",G170=Lists!$A$17)),Y170,0)","v":0},null,{"$f":"IF(AND(W170=\"2\",G170<>Lists!$A$17),AA170,Z170)","v":""},"",{"$f":"Planning!V154","v":{"v":0,"d":"0.00"}},{"$f":"'Month 4'!M170+'Month 4'!N170-'Month 4'!O170","v":{"v":0,"d":"0.00"}},null,"","",{"$f":"SUMIFS($J$25:$J$224,$C$25:$C$224,$C170,$G$25:$G$224,Lists!$A$16)","v":0},0,null,"",null,{"$f":"IF(C170=0,\"\",LEFT(INDEX(Lists!$H$5:$H$49,MATCH(C170,Lists!$G$5:$G$49,0),1),1))","v":""},null,{"$f":"'Month 4'!H170+'Month 4'!I170-'Month 4'!J170","v":0},"","",null,"0"]
[{"$f":"Planning!A155","v":"I147"},{"$f":"Planning!B155","v":0},{"$f":"Planning!C155","v":0},{"$f":"Planning!D155","v":0},{"$f":"Planning!E155","v":0},{"$f":"IF(Planning!G155<>0,Planning!G155,\"\")","v":""},{"$f":"Planning!H155","v":0},{"$f":"Planning!U155","v":0},{"$f":"IF(OR(W171=\"1\",AND(W171<>\"1\",G171=Lists!$A$17)),Y171,0)","v":0},null,{"$f":"IF(AND(W171=\"2\",G171<>Lists!$A$17),AA171,Z171)","v":""},"",{"$f":"Planning!V155","v":{"v":0,"d":"0.00"}},{"$f":"'Month 4'!M171+'Month 4'!N171-'Month 4'!O171","v":{"v":0,"d":"0.00"}},null,"","",{"$f":"SUMIFS($J$25:$J$224,$C$25:$C$224,$C171,$G$25:$G$224,Lists!$A$16)","v":0},0,null,"",null,{"$f":"IF(C171=0,\"\",LEFT(INDEX(Lists!$H$5:$H$49,MATCH(C171,Lists!$G$5:$G$49,0),1),1))","v":""},null,{"$f":"'Month 4'!H171+'Month 4'!I171-'Month 4'!J171","v":0},"","",null,"0"]
[{"$f":"Planning!A156","v":"I148"},{"$f":"Planning!B156","v":0},{"$f":"Planning!C156","v":0},{"$f":"Planning!D156","v":0},{"$f":"Planning!E156","v":0},{"$f":"IF(Planning!G156<>0,Planning!G156,\"\")","v":""},{"$f":"Planning!H156","v":0},{"$f":"Planning!U156","v":0},{"$f":"IF(OR(W172=\"1\",AND(W172<>\"1\",G172=Lists!$A$17)),Y172,0)","v":0},null,{"$f":"IF(AND(W172=\"2\",G172<>Lists!$A$17),AA172,Z172)","v":""},"",{"$f":"Planning!V156","v":{"v":0,"d":"0.00"}},{"$f":"'Month 4'!M172+'Month 4'!N172-'Month 4'!O172","v":{"v":0,"d":"0.00"}},null,"","",{"$f":"SUMIFS($J$25:$J$224,$C$25:$C$224,$C172,$G$25:$G$224,Lists!$A$16)","v":0},0,null,"",null,{"$f":"IF(C172=0,\"\",LEFT(INDEX(Lists!$H$5:$H$49,MATCH(C172,Lists!$G$5:$G$49,0),1),1))","v":""},null,{"$f":"'Month 4'!H172+'Month 4'!I172-'Month 4'!J172","v":0},"","",null,"0"]
[{"$f":"Planning!A157","v":"I149"},{"$f":"Planning!B157","v":0},{"$f":"Planning!C157","v":0},{"$f":"Planning!D157","v":0},{"$f":"Planning!E157","v":0},{"$f":"IF(Planning!G157<>0,Planning!G157,\"\")","v":""},{"$f":"Planning!H157","v":0},{"$f":"Planning!U157","v":0},{"$f":"IF(OR(W173=\"1\",AND(W173<>\"1\",G173=Lists!$A$17)),Y173,0)","v":0},null,{"$f":"IF(AND(W173=\"2\",G173<>Lists!$A$17),AA173,Z173)","v":""},"",{"$f":"Planning!V157","v":{"v":0,"d":"0.00"}},{"$f":"'Month 4'!M173+'Month 4'!N173-'Month 4'!O173","v":{"v":0,"d":"0.00"}},null,"","",{"$f":"SUMIFS($J$25:$J$224,$C$25:$C$224,$C173,$G$25:$G$224,Lists!$A$16)","v":0},0,null,"",null,{"$f":"IF(C173=0,\"\",LEFT(INDEX(Lists!$H$5:$H$49,MATCH(C173,Lists!$G$5:$G$49,0),1),1))","v":""},null,{"$f":"'Month 4'!H173+'Month 4'!I173-'Month 4'!J173","v":0},"","",null,"0"]
[{"$f":"Planning!A158","v":"I150"},{"$f":"Planning!B158","v":0},{"$f":"Planning!C158","v":0},{"$f":"Planning!D158","v":0},{"$f":"Planning!E158","v":0},{"$f":"IF(Planning!G158<>0,Planning!G158,\"\")","v":""},{"$f":"Planning!H158","v":0},{"$f":"Planning!U158","v":0},{"$f":"IF(OR(W174=\"1\",AND(W174<>\"1\",G174=Lists!$A$17)),Y174,0)","v":0},null,{"$f":"IF(AND(W174=\"2\",G174<>Lists!$A$17),AA174,Z174)","v":""},"",{"$f":"Planning!V158","v":{"v":0,"d":"0.00"}},{"$f":"'Month 4'!M174+'Month 4'!N174-'Month 4'!O174","v":{"v":0,"d":"0.00"}},null,"","",{"$f":"SUMIFS($J$25:$J$224,$C$25:$C$224,$C174,$G$25:$G$224,Lists!$A$16)","v":0},0,null,"",null,{"$f":"IF(C174=0,\"\",LEFT(INDEX(Lists!$H$5:$H$49,MATCH(C174,Lists!$G$5:$G$49,0),1),1))","v":""},null,{"$f":"'Month 4'!H174+'Month 4'!I174-'Month 4'!J174","v":0},"","",null,"0"]
[{"$f":"Planning!A159","v":"I151"},{"$f":"Planning!B159","v":0},{"$f":"Planning!C159","v":0},{"$f":"Planning!D159","v":0},{"$f":"Planning!E159","v":0},{"$f":"IF(Planning!G159<>0,Planning!G159,\"\")","v":""},{"$f":"Planning!H159","v":0},{"$f":"Planning!U159","v":0},{"$f":"IF(OR(W175=\"1\",AND(W175<>\"1\",G175=Lists!$A$17)),Y175,0)","v":0},null,{"$f":"IF(AND(W175=\"2\",G175<>Lists!$A$17),AA175,Z175)","v":""},"",{"$f":"Planning!V159","v":{"v":0,"d":"0.00"}},{"$f":"'Month 4'!M175+'Month 4'!N175-'Month 4'!O175","v":{"v":0,"d":"0.00"}},null,"","",{"$f":"SUMIFS($J$25:$J$224,$C$25:$C$224,$C175,$G$25:$G$224,Lists!$A$16)","v":0},0,null,"",null,{"$f":"IF(C175=0,\"\",LEFT(INDEX(Lists!$H$5:$H$49,MATCH(C175,Lists!$G$5:$G$49,0),1),1))","v":""},null,{"$f":"'Month 4'!H175+'Month 4'!I175-'Month 4'!J175","v":0},"","",null,"0"]
[{"$f":"Planning!A160","v":"I152"},{"$f":"Planning!B160","v":0},{"$f":"Planning!C160","v":0},{"$f":"Planning!D160","v":0},{"$f":"Planning!E160","v":0},{"$f":"IF(Planning!G160<>0,Planning!G160,\"\")","v":""},{"$f":"Planning!H160","v":0},{"$f":"Planning!U160","v":0},{"$f":"IF(OR(W176=\"1\",AND(W176<>\"1\",G176=Lists!$A$17)),Y176,0)","v":0},null,{"$f":"IF(AND(W176=\"2\",G176<>Lists!$A$17),AA176,Z176)","v":""},"",{"$f":"Planning!V160","v":{"v":0,"d":"0.00"}},{"$f":"'Month 4'!M176+'Month 4'!N176-'Month 4'!O176","v":{"v":0,"d":"0.00"}},null,"","",{"$f":"SUMIFS($J$25:$J$224,$C$25:$C$224,$C176,$G$25:$G$224,Lists!$A$16)","v":0},0,null,"",null,{"$f":"IF(C176=0,\"\",LEFT(INDEX(Lists!$H$5:$H$49,MATCH(C176,Lists!$G$5:$G$49,0),1),1))","v":""},null,{"$f":"'Month 4'!H176+'Month 4'!I176-'Month 4'!J176","v":0},"","",null,"0"]
[{"$f":"Planning!A161","v":"I153"},{"$f":"Planning!B161","v":0},{"$f":"Planning!C161","v":0},{"$f":"Planning!D161","v":0},{"$f":"Planning!E161","v":0},{"$f":"IF(Planning!G161<>0,Planning!G161,\"\")","v":""},{"$f":"Planning!H161","v":0},{"$f":"Planning!U161","v":0},{"$f":"IF(OR(W177=\"1\",AND(W177<>\"1\",G177=Lists!$A$17)),Y177,0)","v":0},null,{"$f":"IF(AND(W177=\"2\",G177<>Lists!$A$17),AA177,Z177)","v":""},"",{"$f":"Planning!V161","v":{"v":0,"d":"0.00"}},{"$f":"'Month 4'!M177+'Month 4'!N177-'Month 4'!O177","v":{"v":0,"d":"0.00"}},null,"","",{"$f":"SUMIFS($J$25:$J$224,$C$25:$C$224,$C177,$G$25:$G$224,Lists!$A$16)","v":0},0,null,"",null,{"$f":"IF(C177=0,\"\",LEFT(INDEX(Lists!$H$5:$H$49,MATCH(C177,Lists!$G$5:$G$49,0),1),1))","v":""},null,{"$f":"'Month 4'!H177+'Month 4'!I177-'Month 4'!J177","v":0},"","",null,"0"]
[{"$f":"Planning!A162","v":"I154"},{"$f":"Planning!B162","v":0},{"$f":"Planning!C162","v":0},{"$f":"Planning!D162","v":0},{"$f":"Planning!E162","v":0},{"$f":"IF(Planning!G162<>0,Planning!G162,\"\")","v":""},{"$f":"Planning!H162","v":0},{"$f":"Planning!U162","v":0},{"$f":"IF(OR(W178=\"1\",AND(W178<>\"1\",G178=Lists!$A$17)),Y178,0)","v":0},null,{"$f":"IF(AND(W178=\"2\",G178<>Lists!$A$17),AA178,Z178)","v":""},"",{"$f":"Planning!V162","v":{"v":0,"d":"0.00"}},{"$f":"'Month 4'!M178+'Month 4'!N178-'Month 4'!O178","v":{"v":0,"d":"0.00"}},null,"","",{"$f":"SUMIFS($J$25:$J$224,$C$25:$C$224,$C178,$G$25:$G$224,Lists!$A$16)","v":0},0,null,"",null,{"$f":"IF(C178=0,\"\",LEFT(INDEX(Lists!$H$5:$H$49,MATCH(C178,Lists!$G$5:$G$49,0),1),1))","v":""},null,{"$f":"'Month 4'!H178+'Month 4'!I178-'Month 4'!J178","v":0},"","",null,"0"]
[{"$f":"Planning!A163","v":"I155"},{"$f":"Planning!B163","v":0},{"$f":"Planning!C163","v":0},{"$f":"Planning!D163","v":0},{"$f":"Planning!E163","v":0},{"$f":"IF(Planning!G163<>0,Planning!G163,\"\")","v":""},{"$f":"Planning!H163","v":0},{"$f":"Planning!U163","v":0},{"$f":"IF(OR(W179=\"1\",AND(W179<>\"1\",G179=Lists!$A$17)),Y179,0)","v":0},null,{"$f":"IF(AND(W179=\"2\",G179<>Lists!$A$17),AA179,Z179)","v":""},"",{"$f":"Planning!V163","v":{"v":0,"d":"0.00"}},{"$f":"'Month 4'!M179+'Month 4'!N179-'Month 4'!O179","v":{"v":0,"d":"0.00"}},null,"","",{"$f":"SUMIFS($J$25:$J$224,$C$25:$C$224,$C179,$G$25:$G$224,Lists!$A$16)","v":0},0,null,"",null,{"$f":"IF(C179=0,\"\",LEFT(INDEX(Lists!$H$5:$H$49,MATCH(C179,Lists!$G$5:$G$49,0),1),1))","v":""},null,{"$f":"'Month 4'!H179+'Month 4'!I179-'Month 4'!J179","v":0},"","",null,"0"]
[{"$f":"Planning!A164","v":"I156"},{"$f":"Planning!B164","v":0},{"$f":"Planning!C164","v":0},{"$f":"Planning!D164","v":0},{"$f":"Planning!E164","v":0},{"$f":"IF(Planning!G164<>0,Planning!G164,\"\")","v":""},{"$f":"Planning!H164","v":0},{"$f":"Planning!U164","v":0},{"$f":"IF(OR(W180=\"1\",AND(W180<>\"1\",G180=Lists!$A$17)),Y180,0)","v":0},null,{"$f":"IF(AND(W180=\"2\",G180<>Lists!$A$17),AA180,Z180)","v":""},"",{"$f":"Planning!V164","v":{"v":0,"d":"0.00"}},{"$f":"'Month 4'!M180+'Month 4'!N180-'Month 4'!O180","v":{"v":0,"d":"0.00"}},null,"","",{"$f":"SUMIFS($J$25:$J$224,$C$25:$C$224,$C180,$G$25:$G$224,Lists!$A$16)","v":0},0,null,"",null,{"$f":"IF(C180=0,\"\",LEFT(INDEX(Lists!$H$5:$H$49,MATCH(C180,Lists!$G$5:$G$49,0),1),1))","v":""},null,{"$f":"'Month 4'!H180+'Month 4'!I180-'Month 4'!J180","v":0},"","",null,"0"]
[{"$f":"Planning!A165","v":"I157"},{"$f":"Planning!B165","v":0},{"$f":"Planning!C165","v":0},{"$f":"Planning!D165","v":0},{"$f":"Planning!E165","v":0},{"$f":"IF(Planning!G165<>0,Planning!G165,\"\")","v":""},{"$f":"Planning!H165","v":0},{"$f":"Planning!U165","v":0},{"$f":"IF(OR(W181=\"1\",AND(W181<>\"1\",G181=Lists!$A$17)),Y181,0)","v":0},null,{"$f":"IF(AND(W181=\"2\",G181<>Lists!$A$17),AA181,Z181)","v":""},"",{"$f":"Planning!V165","v":{"v":0,"d":"0.00"}},{"$f":"'Month 4'!M181+'Month 4'!N181-'Month 4'!O181","v":{"v":0,"d":"0.00"}},null,"","",{"$f":"SUMIFS($J$25:$J$224,$C$25:$C$224,$C181,$G$25:$G$224,Lists!$A$16)","v":0},0,null,"",null,{"$f":"IF(C181=0,\"\",LEFT(INDEX(Lists!$H$5:$H$49,MATCH(C181,Lists!$G$5:$G$49,0),1),1))","v":""},null,{"$f":"'Month 4'!H181+'Month 4'!I181-'Month 4'!J181","v":0},"","",null,"0"]
[{"$f":"Planning!A166","v":"I158"},{"$f":"Planning!B166","v":0},{"$f":"Planning!C166","v":0},{"$f":"Planning!D166","v":0},{"$f":"Planning!E166","v":0},{"$f":"IF(Planning!G166<>0,Planning!G166,\"\")","v":""},{"$f":"Planning!H166","v":0},{"$f":"Planning!U166","v":0},{"$f":"IF(OR(W182=\"1\",AND(W182<>\"1\",G182=Lists!$A$17)),Y182,0)","v":0},null,{"$f":"IF(AND(W182=\"2\",G182<>Lists!$A$17),AA182,Z182)","v":""},"",{"$f":"Planning!V166","v":{"v":0,"d":"0.00"}},{"$f":"'Month 4'!M182+'Month 4'!N182-'Month 4'!O182","v":{"v":0,"d":"0.00"}},null,"","",{"$f":"SUMIFS($J$25:$J$224,$C$25:$C$224,$C182,$G$25:$G$224,Lists!$A$16)","v":0},0,null,"",null,{"$f":"IF(C182=0,\"\",LEFT(INDEX(Lists!$H$5:$H$49,MATCH(C182,Lists!$G$5:$G$49,0),1),1))","v":""},null,{"$f":"'Month 4'!H182+'Month 4'!I182-'Month 4'!J182","v":0},"","",null,"0"]
[{"$f":"Planning!A167","v":"I159"},{"$f":"Planning!B167","v":0},{"$f":"Planning!C167","v":0},{"$f":"Planning!D167","v":0},{"$f":"Planning!E167","v":0},{"$f":"IF(Planning!G167<>0,Planning!G167,\"\")","v":""},{"$f":"Planning!H167","v":0},{"$f":"Planning!U167","v":0},{"$f":"IF(OR(W183=\"1\",AND(W183<>\"1\",G183=Lists!$A$17)),Y183,0)","v":0},null,{"$f":"IF(AND(W183=\"2\",G183<>Lists!$A$17),AA183,Z183)","v":""},"",{"$f":"Planning!V167","v":{"v":0,"d":"0.00"}},{"$f":"'Month 4'!M183+'Month 4'!N183-'Month 4'!O183","v":{"v":0,"d":"0.00"}},null,"","",{"$f":"SUMIFS($J$25:$J$224,$C$25:$C$224,$C183,$G$25:$G$224,Lists!$A$16)","v":0},0,null,"",null,{"$f":"IF(C183=0,\"\",LEFT(INDEX(Lists!$H$5:$H$49,MATCH(C183,Lists!$G$5:$G$49,0),1),1))","v":""},null,{"$f":"'Month 4'!H183+'Month 4'!I183-'Month 4'!J183","v":0},"","",null,"0"]
[{"$f":"Planning!A168","v":"I160"},{"$f":"Planning!B168","v":0},{"$f":"Planning!C168","v":0},{"$f":"Planning!D168","v":0},{"$f":"Planning!E168","v":0},{"$f":"IF(Planning!G168<>0,Planning!G168,\"\")","v":""},{"$f":"Planning!H168","v":0},{"$f":"Planning!U168","v":0},{"$f":"IF(OR(W184=\"1\",AND(W184<>\"1\",G184=Lists!$A$17)),Y184,0)","v":0},null,{"$f":"IF(AND(W184=\"2\",G184<>Lists!$A$17),AA184,Z184)","v":""},"",{"$f":"Planning!V168","v":{"v":0,"d":"0.00"}},{"$f":"'Month 4'!M184+'Month 4'!N184-'Month 4'!O184","v":{"v":0,"d":"0.00"}},null,"","",{"$f":"SUMIFS($J$25:$J$224,$C$25:$C$224,$C184,$G$25:$G$224,Lists!$A$16)","v":0},0,null,"",null,{"$f":"IF(C184=0,\"\",LEFT(INDEX(Lists!$H$5:$H$49,MATCH(C184,Lists!$G$5:$G$49,0),1),1))","v":""},null,{"$f":"'Month 4'!H184+'Month 4'!I184-'Month 4'!J184","v":0},"","",null,"0"]
[{"$f":"Planning!A169","v":"I161"},{"$f":"Planning!B169","v":0},{"$f":"Planning!C169","v":0},{"$f":"Planning!D169","v":0},{"$f":"Planning!E169","v":0},{"$f":"IF(Planning!G169<>0,Planning!G169,\"\")","v":""},{"$f":"Planning!H169","v":0},{"$f":"Planning!U169","v":0},{"$f":"IF(OR(W185=\"1\",AND(W185<>\"1\",G185=Lists!$A$17)),Y185,0)","v":0},null,{"$f":"IF(AND(W185=\"2\",G185<>Lists!$A$17),AA185,Z185)","v":""},{"$f":"IF($U185=ExcluirDelPLogro,\"\",IF(AND(H185=0,I185=0,J185=0),\"\",K185))","v":""},{"$f":"Planning!V169","v":{"v":0,"d":"0.00"}},{"$f":"'Month 4'!M185+'Month 4'!N185-'Month 4'!O185","v":{"v":0,"d":"0.00"}},null,"",{"$f":"IF($U185=ExcluirDelPLogro,\"\",IF(AND(M185=0,N185=0,O185=0),\"\",P185))","v":""},{"$f":"SUMIFS($J$25:$J$224,$C$25:$C$224,$C185,$G$25:$G$224,Lists!$A$16)","v":0},0,null,"",null,{"$f":"IF(C185=0,\"\",LEFT(INDEX(Lists!$H$5:$H$49,MATCH(C185,Lists!$G$5:$G$49,0),1),1))","v":""},null,{"$f":"'Month 4'!H185+'Month 4'!I185-'Month 4'!J185","v":0},"",{"$f":"IF(AND(H185=0,I185=0,J185=0),\"\",IF(J185>0,H185/J185,0))","v":""},null,"0"]
[{"$f":"Planning!A170","v":"I162"},{"$f":"Planning!B170","v":0},{"$f":"Planning!C170","v":0},{"$f":"Planning!D170","v":0},{"$f":"Planning!E170","v":0},{"$f":"IF(Planning!G170<>0,Planning!G170,\"\")","v":""},{"$f":"Planning!H170","v":0},{"$f":"Planning!U170","v":0},{"$f":"IF(OR(W186=\"1\",AND(W186<>\"1\",G186=Lists!$A$17)),Y186,0)","v":0},null,{"$f":"IF(AND(W186=\"2\",G186<>Lists!$A$17),AA186,Z186)","v":""},"",{"$f":"Planning!V170","v":{"v":0,"d":"0.00"}},{"$f":"'Month 4'!M186+'Month 4'!N186-'Month 4'!O186","v":{"v":0,"d":"0.00"}},null,"","",{"$f":"SUMIFS($J$25:$J$224,$C$25:$C$224,$C186,$G$25:$G$224,Lists!$A$16)","v":0},0,null,"",null,{"$f":"IF(C186=0,\"\",LEFT(INDEX(Lists!$H$5:$H$49,MATCH(C186,Lists!$G$5:$G$49,0),1),1))","v":""},null,{"$f":"'Month 4'!H186+'Month 4'!I186-'Month 4'!J186","v":0},"","",null,"0"]
[{"$f":"Planning!A171","v":"I163"},{"$f":"Planning!B171","v":0},{"$f":"Planning!C171","v":0},{"$f":"Planning!D171","v":0},{"$f":"Planning!E171","v":0},{"$f":"IF(Planning!G171<>0,Planning!G171,\"\")","v":""},{"$f":"Planning!H171","v":0},{"$f":"Planning!U171","v":0},{"$f":"IF(OR(W187=\"1\",AND(W187<>\"1\",G187=Lists!$A$17)),Y187,0)","v":0},null,{"$f":"IF(AND(W187=\"2\",G187<>Lists!$A$17),AA187,Z187)","v":""},"",{"$f":"Planning!V171","v":{"v":0,"d":"0.00"}},{"$f":"'Month 4'!M187+'Month 4'!N187-'Month 4'!O187","v":{"v":0,"d":"0.00"}},null,"","",{"$f":"SUMIFS($J$25:$J$224,$C$25:$C$224,$C187,$G$25:$G$224,Lists!$A$16)","v":0},0,null,"",null,{"$f":"IF(C187=0,\"\",LEFT(INDEX(Lists!$H$5:$H$49,MATCH(C187,Lists!$G$5:$G$49,0),1),1))","v":""},null,{"$f":"'Month 4'!H187+'Month 4'!I187-'Month 4'!J187","v":0},"","",null,"0"]
[{"$f":"Planning!A172","v":"I164"},{"$f":"Planning!B172","v":0},{"$f":"Planning!C172","v":0},{"$f":"Planning!D172","v":0},{"$f":"Planning!E172","v":0},{"$f":"IF(Planning!G172<>0,Planning!G172,\"\")","v":""},{"$f":"Planning!H172","v":0},{"$f":"Planning!U172","v":0},{"$f":"IF(OR(W188=\"1\",AND(W188<>\"1\",G188=Lists!$A$17)),Y188,0)","v":0},null,{"$f":"IF(AND(W188=\"2\",G188<>Lists!$A$17),AA188,Z188)","v":""},"",{"$f":"Planning!V172","v":{"v":0,"d":"0.00"}},{"$f":"'Month 4'!M188+'Month 4'!N188-'Month 4'!O188","v":{"v":0,"d":"0.00"}},null,"","",{"$f":"SUMIFS($J$25:$J$224,$C$25:$C$224,$C188,$G$25:$G$224,Lists!$A$16)","v":0},0,null,"",null,{"$f":"IF(C188=0,\"\",LEFT(INDEX(Lists!$H$5:$H$49,MATCH(C188,Lists!$G$5:$G$49,0),1),1))","v":""},null,{"$f":"'Month 4'!H188+'Month 4'!I188-'Month 4'!J188","v":0},"","",null,"0"]
[{"$f":"Planning!A173","v":"I165"},{"$f":"Planning!B173","v":0},{"$f":"Planning!C173","v":0},{"$f":"Planning!D173","v":0},{"$f":"Planning!E173","v":0},{"$f":"IF(Planning!G173<>0,Planning!G173,\"\")","v":""},{"$f":"Planning!H173","v":0},{"$f":"Planning!U173","v":0},{"$f":"IF(OR(W189=\"1\",AND(W189<>\"1\",G189=Lists!$A$17)),Y189,0)","v":0},null,{"$f":"IF(AND(W189=\"2\",G189<>Lists!$A$17),AA189,Z189)","v":""},"",{"$f":"Planning!V173","v":{"v":0,"d":"0.00"}},{"$f":"'Month 4'!M189+'Month 4'!N189-'Month 4'!O189","v":{"v":0,"d":"0.00"}},null,"","",{"$f":"SUMIFS($J$25:$J$224,$C$25:$C$224,$C189,$G$25:$G$224,Lists!$A$16)","v":0},0,null,"",null,{"$f":"IF(C189=0,\"\",LEFT(INDEX(Lists!$H$5:$H$49,MATCH(C189,Lists!$G$5:$G$49,0),1),1))","v":""},null,{"$f":"'Month 4'!H189+'Month 4'!I189-'Month 4'!J189","v":0},"","",null,"0"]
[{"$f":"Planning!A174","v":"I166"},{"$f":"Planning!B174","v":0},{"$f":"Planning!C174","v":0},{"$f":"Planning!D174","v":0},{"$f":"Planning!E174","v":0},{"$f":"IF(Planning!G174<>0,Planning!G174,\"\")","v":""},{"$f":"Planning!H174","v":0},{"$f":"Planning!U174","v":0},{"$f":"IF(OR(W190=\"1\",AND(W190<>\"1\",G190=Lists!$A$17)),Y190,0)","v":0},null,{"$f":"IF(AND(W190=\"2\",G190<>Lists!$A$17),AA190,Z190)","v":""},"",{"$f":"Planning!V174","v":{"v":0,"d":"0.00"}},{"$f":"'Month 4'!M190+'Month 4'!N190-'Month 4'!O190","v":{"v":0,"d":"0.00"}},null,"","",{"$f":"SUMIFS($J$25:$J$224,$C$25:$C$224,$C190,$G$25:$G$224,Lists!$A$16)","v":0},0,null,"",null,{"$f":"IF(C190=0,\"\",LEFT(INDEX(Lists!$H$5:$H$49,MATCH(C190,Lists!$G$5:$G$49,0),1),1))","v":""},null,{"$f":"'Month 4'!H190+'Month 4'!I190-'Month 4'!J190","v":0},"","",null,"0"]
[{"$f":"Planning!A175","v":"I167"},{"$f":"Planning!B175","v":0},{"$f":"Planning!C175","v":0},{"$f":"Planning!D175","v":0},{"$f":"Planning!E175","v":0},{"$f":"IF(Planning!G175<>0,Planning!G175,\"\")","v":""},{"$f":"Planning!H175","v":0},{"$f":"Planning!U175","v":0},{"$f":"IF(OR(W191=\"1\",AND(W191<>\"1\",G191=Lists!$A$17)),Y191,0)","v":0},null,{"$f":"IF(AND(W191=\"2\",G191<>Lists!$A$17),AA191,Z191)","v":""},"",{"$f":"Planning!V175","v":{"v":0,"d":"0.00"}},{"$f":"'Month 4'!M191+'Month 4'!N191-'Month 4'!O191","v":{"v":0,"d":"0.00"}},null,"","",{"$f":"SUMIFS($J$25:$J$224,$C$25:$C$224,$C191,$G$25:$G$224,Lists!$A$16)","v":0},0,null,"",null,{"$f":"IF(C191=0,\"\",LEFT(INDEX(Lists!$H$5:$H$49,MATCH(C191,Lists!$G$5:$G$49,0),1),1))","v":""},null,{"$f":"'Month 4'!H191+'Month 4'!I191-'Month 4'!J191","v":0},"","",null,"0"]
[{"$f":"Planning!A176","v":"I168"},{"$f":"Planning!B176","v":0},{"$f":"Planning!C176","v":0},{"$f":"Planning!D176","v":0},{"$f":"Planning!E176","v":0},{"$f":"IF(Planning!G176<>0,Planning!G176,\"\")","v":""},{"$f":"Planning!H176","v":0},{"$f":"Planning!U176","v":0},{"$f":"IF(OR(W192=\"1\",AND(W192<>\"1\",G192=Lists!$A$17)),Y192,0)","v":0},null,{"$f":"IF(AND(W192=\"2\",G192<>Lists!$A$17),AA192,Z192)","v":""},"",{"$f":"Planning!V176","v":{"v":0,"d":"0.00"}},{"$f":"'Month 4'!M192+'Month 4'!N192-'Month 4'!O192","v":{"v":0,"d":"0.00"}},null,"","",{"$f":"SUMIFS($J$25:$J$224,$C$25:$C$224,$C192,$G$25:$G$224,Lists!$A$16)","v":0},0,null,"",null,{"$f":"IF(C192=0,\"\",LEFT(INDEX(Lists!$H$5:$H$49,MATCH(C192,Lists!$G$5:$G$49,0),1),1))","v":""},null,{"$f":"'Month 4'!H192+'Month 4'!I192-'Month 4'!J192","v":0},"","",null,"0"]
[{"$f":"Planning!A177","v":"I169"},{"$f":"Planning!B177","v":0},{"$f":"Planning!C177","v":0},{"$f":"Planning!D177","v":0},{"$f":"Planning!E177","v":0},{"$f":"IF(Planning!G177<>0,Planning!G177,\"\")","v":""},{"$f":"Planning!H177","v":0},{"$f":"Planning!U177","v":0},{"$f":"IF(OR(W193=\"1\",AND(W193<>\"1\",G193=Lists!$A$17)),Y193,0)","v":0},null,{"$f":"IF(AND(W193=\"2\",G193<>Lists!$A$17),AA193,Z193)","v":""},"",{"$f":"Planning!V177","v":{"v":0,"d":"0.00"}},{"$f":"'Month 4'!M193+'Month 4'!N193-'Month 4'!O193","v":{"v":0,"d":"0.00"}},null,"","",{"$f":"SUMIFS($J$25:$J$224,$C$25:$C$224,$C193,$G$25:$G$224,Lists!$A$16)","v":0},0,null,"",null,{"$f":"IF(C193=0,\"\",LEFT(INDEX(Lists!$H$5:$H$49,MATCH(C193,Lists!$G$5:$G$49,0),1),1))","v":""},null,{"$f":"'Month 4'!H193+'Month 4'!I193-'Month 4'!J193","v":0},"","",null,"0"]
[{"$f":"Planning!A178","v":"I170"},{"$f":"Planning!B178","v":0},{"$f":"Planning!C178","v":0},{"$f":"Planning!D178","v":0},{"$f":"Planning!E178","v":0},{"$f":"IF(Planning!G178<>0,Planning!G178,\"\")","v":""},{"$f":"Planning!H178","v":0},{"$f":"Planning!U178","v":0},{"$f":"IF(OR(W194=\"1\",AND(W194<>\"1\",G194=Lists!$A$17)),Y194,0)","v":0},null,{"$f":"IF(AND(W194=\"2\",G194<>Lists!$A$17),AA194,Z194)","v":""},"",{"$f":"Planning!V178","v":{"v":0,"d":"0.00"}},{"$f":"'Month 4'!M194+'Month 4'!N194-'Month 4'!O194","v":{"v":0,"d":"0.00"}},null,"","",{"$f":"SUMIFS($J$25:$J$224,$C$25:$C$224,$C194,$G$25:$G$224,Lists!$A$16)","v":0},0,null,"",null,{"$f":"IF(C194=0,\"\",LEFT(INDEX(Lists!$H$5:$H$49,MATCH(C194,Lists!$G$5:$G$49,0),1),1))","v":""},null,{"$f":"'Month 4'!H194+'Month 4'!I194-'Month 4'!J194","v":0},"","",null,"0"]
[{"$f":"Planning!A179","v":"I171"},{"$f":"Planning!B179","v":0},{"$f":"Planning!C179","v":0},{"$f":"Planning!D179","v":0},{"$f":"Planning!E179","v":0},{"$f":"IF(Planning!G179<>0,Planning!G179,\"\")","v":""},{"$f":"Planning!H179","v":0},{"$f":"Planning!U179","v":0},{"$f":"IF(OR(W195=\"1\",AND(W195<>\"1\",G195=Lists!$A$17)),Y195,0)","v":0},null,{"$f":"IF(AND(W195=\"2\",G195<>Lists!$A$17),AA195,Z195)","v":""},"",{"$f":"Planning!V179","v":{"v":0,"d":"0.00"}},{"$f":"'Month 4'!M195+'Month 4'!N195-'Month 4'!O195","v":{"v":0,"d":"0.00"}},null,"","",{"$f":"SUMIFS($J$25:$J$224,$C$25:$C$224,$C195,$G$25:$G$224,Lists!$A$16)","v":0},0,null,"",null,{"$f":"IF(C195=0,\"\",LEFT(INDEX(Lists!$H$5:$H$49,MATCH(C195,Lists!$G$5:$G$49,0),1),1))","v":""},null,{"$f":"'Month 4'!H195+'Month 4'!I195-'Month 4'!J195","v":0},"","",null,"0"]
[{"$f":"Planning!A180","v":"I172"},{"$f":"Planning!B180","v":0},{"$f":"Planning!C180","v":0},{"$f":"Planning!D180","v":0},{"$f":"Planning!E180","v":0},{"$f":"IF(Planning!G180<>0,Planning!G180,\"\")","v":""},{"$f":"Planning!H180","v":0},{"$f":"Planning!U180","v":0},{"$f":"IF(OR(W196=\"1\",AND(W196<>\"1\",G196=Lists!$A$17)),Y196,0)","v":0},null,{"$f":"IF(AND(W196=\"2\",G196<>Lists!$A$17),AA196,Z196)","v":""},"",{"$f":"Planning!V180","v":{"v":0,"d":"0.00"}},{"$f":"'Month 4'!M196+'Month 4'!N196-'Month 4'!O196","v":{"v":0,"d":"0.00"}},null,"","",{"$f":"SUMIFS($J$25:$J$224,$C$25:$C$224,$C196,$G$25:$G$224,Lists!$A$16)","v":0},0,null,"",null,{"$f":"IF(C196=0,\"\",LEFT(INDEX(Lists!$H$5:$H$49,MATCH(C196,Lists!$G$5:$G$49,0),1),1))","v":""},null,{"$f":"'Month 4'!H196+'Month 4'!I196-'Month 4'!J196","v":0},"","",null,"0"]
[{"$f":"Planning!A181","v":"I173"},{"$f":"Planning!B181","v":0},{"$f":"Planning!C181","v":0},{"$f":"Planning!D181","v":0},{"$f":"Planning!E181","v":0},{"$f":"IF(Planning!G181<>0,Planning!G181,\"\")","v":""},{"$f":"Planning!H181","v":0},{"$f":"Planning!U181","v":0},{"$f":"IF(OR(W197=\"1\",AND(W197<>\"1\",G197=Lists!$A$17)),Y197,0)","v":0},null,{"$f":"IF(AND(W197=\"2\",G197<>Lists!$A$17),AA197,Z197)","v":""},"",{"$f":"Planning!V181","v":{"v":0,"d":"0.00"}},{"$f":"'Month 4'!M197+'Month 4'!N197-'Month 4'!O197","v":{"v":0,"d":"0.00"}},null,"","",{"$f":"SUMIFS($J$25:$J$224,$C$25:$C$224,$C197,$G$25:$G$224,Lists!$A$16)","v":0},0,null,"",null,{"$f":"IF(C197=0,\"\",LEFT(INDEX(Lists!$H$5:$H$49,MATCH(C197,Lists!$G$5:$G$49,0),1),1))","v":""},null,{"$f":"'Month 4'!H197+'Month 4'!I197-'Month 4'!J197","v":0},"","",null,"0"]
[{"$f":"Planning!A182","v":"I174"},{"$f":"Planning!B182","v":0},{"$f":"Planning!C182","v":0},{"$f":"Planning!D182","v":0},{"$f":"Planning!E182","v":0},{"$f":"IF(Planning!G182<>0,Planning!G182,\"\")","v":""},{"$f":"Planning!H182","v":0},{"$f":"Planning!U182","v":0},{"$f":"IF(OR(W198=\"1\",AND(W198<>\"1\",G198=Lists!$A$17)),Y198,0)","v":0},null,{"$f":"IF(AND(W198=\"2\",G198<>Lists!$A$17),AA198,Z198)","v":""},"",{"$f":"Planning!V182","v":{"v":0,"d":"0.00"}},{"$f":"'Month 4'!M198+'Month 4'!N198-'Month 4'!O198","v":{"v":0,"d":"0.00"}},null,"","",{"$f":"SUMIFS($J$25:$J$224,$C$25:$C$224,$C198,$G$25:$G$224,Lists!$A$16)","v":0},0,null,"",null,{"$f":"IF(C198=0,\"\",LEFT(INDEX(Lists!$H$5:$H$49,MATCH(C198,Lists!$G$5:$G$49,0),1),1))","v":""},null,{"$f":"'Month 4'!H198+'Month 4'!I198-'Month 4'!J198","v":0},"","",null,"0"]
[{"$f":"Planning!A183","v":"I175"},{"$f":"Planning!B183","v":0},{"$f":"Planning!C183","v":0},{"$f":"Planning!D183","v":0},{"$f":"Planning!E183","v":0},{"$f":"IF(Planning!G183<>0,Planning!G183,\"\")","v":""},{"$f":"Planning!H183","v":0},{"$f":"Planning!U183","v":0},{"$f":"IF(OR(W199=\"1\",AND(W199<>\"1\",G199=Lists!$A$17)),Y199,0)","v":0},null,{"$f":"IF(AND(W199=\"2\",G199<>Lists!$A$17),AA199,Z199)","v":""},"",{"$f":"Planning!V183","v":{"v":0,"d":"0.00"}},{"$f":"'Month 4'!M199+'Month 4'!N199-'Month 4'!O199","v":{"v":0,"d":"0.00"}},null,"","",{"$f":"SUMIFS($J$25:$J$224,$C$25:$C$224,$C199,$G$25:$G$224,Lists!$A$16)","v":0},0,null,"",null,{"$f":"IF(C199=0,\"\",LEFT(INDEX(Lists!$H$5:$H$49,MATCH(C199,Lists!$G$5:$G$49,0),1),1))","v":""},null,{"$f":"'Month 4'!H199+'Month 4'!I199-'Month 4'!J199","v":0},"","",null,"0"]
[{"$f":"Planning!A184","v":"I176"},{"$f":"Planning!B184","v":0},{"$f":"Planning!C184","v":0},{"$f":"Planning!D184","v":0},{"$f":"Planning!E184","v":0},{"$f":"IF(Planning!G184<>0,Planning!G184,\"\")","v":""},{"$f":"Planning!H184","v":0},{"$f":"Planning!U184","v":0},{"$f":"IF(OR(W200=\"1\",AND(W200<>\"1\",G200=Lists!$A$17)),Y200,0)","v":0},null,{"$f":"IF(AND(W200=\"2\",G200<>Lists!$A$17),AA200,Z200)","v":""},"",{"$f":"Planning!V184","v":{"v":0,"d":"0.00"}},{"$f":"'Month 4'!M200+'Month 4'!N200-'Month 4'!O200","v":{"v":0,"d":"0.00"}},null,"","",{"$f":"SUMIFS($J$25:$J$224,$C$25:$C$224,$C200,$G$25:$G$224,Lists!$A$16)","v":0},0,null,"",null,{"$f":"IF(C200=0,\"\",LEFT(INDEX(Lists!$H$5:$H$49,MATCH(C200,Lists!$G$5:$G$49,0),1),1))","v":""},null,{"$f":"'Month 4'!H200+'Month 4'!I200-'Month 4'!J200","v":0},"","",null,"0"]
[{"$f":"Planning!A185","v":"I177"},{"$f":"Planning!B185","v":0},{"$f":"Planning!C185","v":0},{"$f":"Planning!D185","v":0},{"$f":"Planning!E185","v":0},{"$f":"IF(Planning!G185<>0,Planning!G185,\"\")","v":""},{"$f":"Planning!H185","v":0},{"$f":"Planning!U185","v":0},{"$f":"IF(OR(W201=\"1\",AND(W201<>\"1\",G201=Lists!$A$17)),Y201,0)","v":0},null,{"$f":"IF(AND(W201=\"2\",G201<>Lists!$A$17),AA201,Z201)","v":""},"",{"$f":"Planning!V185","v":{"v":0,"d":"0.00"}},{"$f":"'Month 4'!M201+'Month 4'!N201-'Month 4'!O201","v":{"v":0,"d":"0.00"}},null,"","",{"$f":"SUMIFS($J$25:$J$224,$C$25:$C$224,$C201,$G$25:$G$224,Lists!$A$16)","v":0},0,null,"",null,{"$f":"IF(C201=0,\"\",LEFT(INDEX(Lists!$H$5:$H$49,MATCH(C201,Lists!$G$5:$G$49,0),1),1))","v":""},null,{"$f":"'Month 4'!H201+'Month 4'!I201-'Month 4'!J201","v":0},"","",null,"0"]
[{"$f":"Planning!A186","v":"I178"},{"$f":"Planning!B186","v":0},{"$f":"Planning!C186","v":0},{"$f":"Planning!D186","v":0},{"$f":"Planning!E186","v":0},{"$f":"IF(Planning!G186<>0,Planning!G186,\"\")","v":""},{"$f":"Planning!H186","v":0},{"$f":"Planning!U186","v":0},{"$f":"IF(OR(W202=\"1\",AND(W202<>\"1\",G202=Lists!$A$17)),Y202,0)","v":0},null,{"$f":"IF(AND(W202=\"2\",G202<>Lists!$A$17),AA202,Z202)","v":""},"",{"$f":"Planning!V186","v":{"v":0,"d":"0.00"}},{"$f":"'Month 4'!M202+'Month 4'!N202-'Month 4'!O202","v":{"v":0,"d":"0.00"}},null,"","",{"$f":"SUMIFS($J$25:$J$224,$C$25:$C$224,$C202,$G$25:$G$224,Lists!$A$16)","v":0},0,null,"",null,{"$f":"IF(C202=0,\"\",LEFT(INDEX(Lists!$H$5:$H$49,MATCH(C202,Lists!$G$5:$G$49,0),1),1))","v":""},null,{"$f":"'Month 4'!H202+'Month 4'!I202-'Month 4'!J202","v":0},"","",null,"0"]
[{"$f":"Planning!A187","v":"I179"},{"$f":"Planning!B187","v":0},{"$f":"Planning!C187","v":0},{"$f":"Planning!D187","v":0},{"$f":"Planning!E187","v":0},{"$f":"IF(Planning!G187<>0,Planning!G187,\"\")","v":""},{"$f":"Planning!H187","v":0},{"$f":"Planning!U187","v":0},{"$f":"IF(OR(W203=\"1\",AND(W203<>\"1\",G203=Lists!$A$17)),Y203,0)","v":0},null,{"$f":"IF(AND(W203=\"2\",G203<>Lists!$A$17),AA203,Z203)","v":""},"",{"$f":"Planning!V187","v":{"v":0,"d":"0.00"}},{"$f":"'Month 4'!M203+'Month 4'!N203-'Month 4'!O203","v":{"v":0,"d":"0.00"}},null,"","",{"$f":"SUMIFS($J$25:$J$224,$C$25:$C$224,$C203,$G$25:$G$224,Lists!$A$16)","v":0},0,null,"",null,{"$f":"IF(C203=0,\"\",LEFT(INDEX(Lists!$H$5:$H$49,MATCH(C203,Lists!$G$5:$G$49,0),1),1))","v":""},null,{"$f":"'Month 4'!H203+'Month 4'!I203-'Month 4'!J203","v":0},"","",null,"0"]
[{"$f":"Planning!A188","v":"I180"},{"$f":"Planning!B188","v":0},{"$f":"Planning!C188","v":0},{"$f":"Planning!D188","v":0},{"$f":"Planning!E188","v":0},{"$f":"IF(Planning!G188<>0,Planning!G188,\"\")","v":""},{"$f":"Planning!H188","v":0},{"$f":"Planning!U188","v":0},{"$f":"IF(OR(W204=\"1\",AND(W204<>\"1\",G204=Lists!$A$17)),Y204,0)","v":0},null,{"$f":"IF(AND(W204=\"2\",G204<>Lists!$A$17),AA204,Z204)","v":""},"",{"$f":"Planning!V188","v":{"v":0,"d":"0.00"}},{"$f":"'Month 4'!M204+'Month 4'!N204-'Month 4'!O204","v":{"v":0,"d":"0.00"}},null,"","",{"$f":"SUMIFS($J$25:$J$224,$C$25:$C$224,$C204,$G$25:$G$224,Lists!$A$16)","v":0},0,null,"",null,{"$f":"IF(C204=0,\"\",LEFT(INDEX(Lists!$H$5:$H$49,MATCH(C204,Lists!$G$5:$G$49,0),1),1))","v":""},null,{"$f":"'Month 4'!H204+'Month 4'!I204-'Month 4'!J204","v":0},"","",null,"0"]
[{"$f":"Planning!A189","v":"I181"},{"$f":"Planning!B189","v":0},{"$f":"Planning!C189","v":0},{"$f":"Planning!D189","v":0},{"$f":"Planning!E189","v":0},{"$f":"IF(Planning!G189<>0,Planning!G189,\"\")","v":""},{"$f":"Planning!H189","v":0},{"$f":"Planning!U189","v":0},{"$f":"IF(OR(W205=\"1\",AND(W205<>\"1\",G205=Lists!$A$17)),Y205,0)","v":0},null,{"$f":"IF(AND(W205=\"2\",G205<>Lists!$A$17),AA205,Z205)","v":""},"",{"$f":"Planning!V189","v":{"v":0,"d":"0.00"}},{"$f":"'Month 4'!M205+'Month 4'!N205-'Month 4'!O205","v":{"v":0,"d":"0.00"}},null,"","",{"$f":"SUMIFS($J$25:$J$224,$C$25:$C$224,$C205,$G$25:$G$224,Lists!$A$16)","v":0},0,null,"",null,{"$f":"IF(C205=0,\"\",LEFT(INDEX(Lists!$H$5:$H$49,MATCH(C205,Lists!$G$5:$G$49,0),1),1))","v":""},null,{"$f":"'Month 4'!H205+'Month 4'!I205-'Month 4'!J205","v":0},"","",null,"0"]
[{"$f":"Planning!A190","v":"I182"},{"$f":"Planning!B190","v":0},{"$f":"Planning!C190","v":0},{"$f":"Planning!D190","v":0},{"$f":"Planning!E190","v":0},{"$f":"IF(Planning!G190<>0,Planning!G190,\"\")","v":""},{"$f":"Planning!H190","v":0},{"$f":"Planning!U190","v":0},{"$f":"IF(OR(W206=\"1\",AND(W206<>\"1\",G206=Lists!$A$17)),Y206,0)","v":0},null,{"$f":"IF(AND(W206=\"2\",G206<>Lists!$A$17),AA206,Z206)","v":""},"",{"$f":"Planning!V190","v":{"v":0,"d":"0.00"}},{"$f":"'Month 4'!M206+'Month 4'!N206-'Month 4'!O206","v":{"v":0,"d":"0.00"}},null,"","",{"$f":"SUMIFS($J$25:$J$224,$C$25:$C$224,$C206,$G$25:$G$224,Lists!$A$16)","v":0},0,null,"",null,{"$f":"IF(C206=0,\"\",LEFT(INDEX(Lists!$H$5:$H$49,MATCH(C206,Lists!$G$5:$G$49,0),1),1))","v":""},null,{"$f":"'Month 4'!H206+'Month 4'!I206-'Month 4'!J206","v":0},"","",null,"0"]
[{"$f":"Planning!A191","v":"I183"},{"$f":"Planning!B191","v":0},{"$f":"Planning!C191","v":0},{"$f":"Planning!D191","v":0},{"$f":"Planning!E191","v":0},{"$f":"IF(Planning!G191<>0,Planning!G191,\"\")","v":""},{"$f":"Planning!H191","v":0},{"$f":"Planning!U191","v":0},{"$f":"IF(OR(W207=\"1\",AND(W207<>\"1\",G207=Lists!$A$17)),Y207,0)","v":0},null,{"$f":"IF(AND(W207=\"2\",G207<>Lists!$A$17),AA207,Z207)","v":""},"",{"$f":"Planning!V191","v":{"v":0,"d":"0.00"}},{"$f":"'Month 4'!M207+'Month 4'!N207-'Month 4'!O207","v":{"v":0,"d":"0.00"}},null,"","",{"$f":"SUMIFS($J$25:$J$224,$C$25:$C$224,$C207,$G$25:$G$224,Lists!$A$16)","v":0},0,null,"",null,{"$f":"IF(C207=0,\"\",LEFT(INDEX(Lists!$H$5:$H$49,MATCH(C207,Lists!$G$5:$G$49,0),1),1))","v":""},null,{"$f":"'Month 4'!H207+'Month 4'!I207-'Month 4'!J207","v":0},"","",null,"0"]
[{"$f":"Planning!A192","v":"I184"},{"$f":"Planning!B192","v":0},{"$f":"Planning!C192","v":0},{"$f":"Planning!D192","v":0},{"$f":"Planning!E192","v":0},{"$f":"IF(Planning!G192<>0,Planning!G192,\"\")","v":""},{"$f":"Planning!H192","v":0},{"$f":"Planning!U192","v":0},{"$f":"IF(OR(W208=\"1\",AND(W208<>\"1\",G208=Lists!$A$17)),Y208,0)","v":0},null,{"$f":"IF(AND(W208=\"2\",G208<>Lists!$A$17),AA208,Z208)","v":""},"",{"$f":"Planning!V192","v":{"v":0,"d":"0.00"}},{"$f":"'Month 4'!M208+'Month 4'!N208-'Month 4'!O208","v":{"v":0,"d":"0.00"}},null,"","",{"$f":"SUMIFS($J$25:$J$224,$C$25:$C$224,$C208,$G$25:$G$224,Lists!$A$16)","v":0},0,null,"",null,{"$f":"IF(C208=0,\"\",LEFT(INDEX(Lists!$H$5:$H$49,MATCH(C208,Lists!$G$5:$G$49,0),1),1))","v":""},null,{"$f":"'Month 4'!H208+'Month 4'!I208-'Month 4'!J208","v":0},"","",null,"0"]
[{"$f":"Planning!A193","v":"I185"},{"$f":"Planning!B193","v":0},{"$f":"Planning!C193","v":0},{"$f":"Planning!D193","v":0},{"$f":"Planning!E193","v":0},{"$f":"IF(Planning!G193<>0,Planning!G193,\"\")","v":""},{"$f":"Planning!H193","v":0},{"$f":"Planning!U193","v":0},{"$f":"IF(OR(W209=\"1\",AND(W209<>\"1\",G209=Lists!$A$17)),Y209,0)","v":0},null,{"$f":"IF(AND(W209=\"2\",G209<>Lists!$A$17),AA209,Z209)","v":""},"",{"$f":"Planning!V193","v":{"v":0,"d":"0.00"}},{"$f":"'Month 4'!M209+'Month 4'!N209-'Month 4'!O209","v":{"v":0,"d":"0.00"}},null,"","",{"$f":"SUMIFS($J$25:$J$224,$C$25:$C$224,$C209,$G$25:$G$224,Lists!$A$16)","v":0},0,null,"",null,{"$f":"IF(C209=0,\"\",LEFT(INDEX(Lists!$H$5:$H$49,MATCH(C209,Lists!$G$5:$G$49,0),1),1))","v":""},null,{"$f":"'Month 4'!H209+'Month 4'!I209-'Month 4'!J209","v":0},"","",null,"0"]
[{"$f":"Planning!A194","v":"I186"},{"$f":"Planning!B194","v":0},{"$f":"Planning!C194","v":0},{"$f":"Planning!D194","v":0},{"$f":"Planning!E194","v":0},{"$f":"IF(Planning!G194<>0,Planning!G194,\"\")","v":""},{"$f":"Planning!H194","v":0},{"$f":"Planning!U194","v":0},{"$f":"IF(OR(W210=\"1\",AND(W210<>\"1\",G210=Lists!$A$17)),Y210,0)","v":0},null,{"$f":"IF(AND(W210=\"2\",G210<>Lists!$A$17),AA210,Z210)","v":""},"",{"$f":"Planning!V194","v":{"v":0,"d":"0.00"}},{"$f":"'Month 4'!M210+'Month 4'!N210-'Month 4'!O210","v":{"v":0,"d":"0.00"}},null,"","",{"$f":"SUMIFS($J$25:$J$224,$C$25:$C$224,$C210,$G$25:$G$224,Lists!$A$16)","v":0},0,null,"",null,{"$f":"IF(C210=0,\"\",LEFT(INDEX(Lists!$H$5:$H$49,MATCH(C210,Lists!$G$5:$G$49,0),1),1))","v":""},null,{"$f":"'Month 4'!H210+'Month 4'!I210-'Month 4'!J210","v":0},"","",null,"0"]
[{"$f":"Planning!A195","v":"I187"},{"$f":"Planning!B195","v":0},{"$f":"Planning!C195","v":0},{"$f":"Planning!D195","v":0},{"$f":"Planning!E195","v":0},{"$f":"IF(Planning!G195<>0,Planning!G195,\"\")","v":""},{"$f":"Planning!H195","v":0},{"$f":"Planning!U195","v":0},{"$f":"IF(OR(W211=\"1\",AND(W211<>\"1\",G211=Lists!$A$17)),Y211,0)","v":0},null,{"$f":"IF(AND(W211=\"2\",G211<>Lists!$A$17),AA211,Z211)","v":""},"",{"$f":"Planning!V195","v":{"v":0,"d":"0.00"}},{"$f":"'Month 4'!M211+'Month 4'!N211-'Month 4'!O211","v":{"v":0,"d":"0.00"}},null,"","",{"$f":"SUMIFS($J$25:$J$224,$C$25:$C$224,$C211,$G$25:$G$224,Lists!$A$16)","v":0},0,null,"",null,{"$f":"IF(C211=0,\"\",LEFT(INDEX(Lists!$H$5:$H$49,MATCH(C211,Lists!$G$5:$G$49,0),1),1))","v":""},null,{"$f":"'Month 4'!H211+'Month 4'!I211-'Month 4'!J211","v":0},"","",null,"0"]
[{"$f":"Planning!A196","v":"I188"},{"$f":"Planning!B196","v":0},{"$f":"Planning!C196","v":0},{"$f":"Planning!D196","v":0},{"$f":"Planning!E196","v":0},{"$f":"IF(Planning!G196<>0,Planning!G196,\"\")","v":""},{"$f":"Planning!H196","v":0},{"$f":"Planning!U196","v":0},{"$f":"IF(OR(W212=\"1\",AND(W212<>\"1\",G212=Lists!$A$17)),Y212,0)","v":0},null,{"$f":"IF(AND(W212=\"2\",G212<>Lists!$A$17),AA212,Z212)","v":""},"",{"$f":"Planning!V196","v":{"v":0,"d":"0.00"}},{"$f":"'Month 4'!M212+'Month 4'!N212-'Month 4'!O212","v":{"v":0,"d":"0.00"}},null,"","",{"$f":"SUMIFS($J$25:$J$224,$C$25:$C$224,$C212,$G$25:$G$224,Lists!$A$16)","v":0},0,null,"",null,{"$f":"IF(C212=0,\"\",LEFT(INDEX(Lists!$H$5:$H$49,MATCH(C212,Lists!$G$5:$G$49,0),1),1))","v":""},null,{"$f":"'Month 4'!H212+'Month 4'!I212-'Month 4'!J212","v":0},"","",null,"0"]
[{"$f":"Planning!A197","v":"I189"},{"$f":"Planning!B197","v":0},{"$f":"Planning!C197","v":0},{"$f":"Planning!D197","v":0},{"$f":"Planning!E197","v":0},{"$f":"IF(Planning!G197<>0,Planning!G197,\"\")","v":""},{"$f":"Planning!H197","v":0},{"$f":"Planning!U197","v":0},{"$f":"IF(OR(W213=\"1\",AND(W213<>\"1\",G213=Lists!$A$17)),Y213,0)","v":0},null,{"$f":"IF(AND(W213=\"2\",G213<>Lists!$A$17),AA213,Z213)","v":""},"",{"$f":"Planning!V197","v":{"v":0,"d":"0.00"}},{"$f":"'Month 4'!M213+'Month 4'!N213-'Month 4'!O213","v":{"v":0,"d":"0.00"}},null,"","",{"$f":"SUMIFS($J$25:$J$224,$C$25:$C$224,$C213,$G$25:$G$224,Lists!$A$16)","v":0},0,null,"",null,{"$f":"IF(C213=0,\"\",LEFT(INDEX(Lists!$H$5:$H$49,MATCH(C213,Lists!$G$5:$G$49,0),1),1))","v":""},null,{"$f":"'Month 4'!H213+'Month 4'!I213-'Month 4'!J213","v":0},"","",null,"0"]
[{"$f":"Planning!A198","v":"I190"},{"$f":"Planning!B198","v":0},{"$f":"Planning!C198","v":0},{"$f":"Planning!D198","v":0},{"$f":"Planning!E198","v":0},{"$f":"IF(Planning!G198<>0,Planning!G198,\"\")","v":""},{"$f":"Planning!H198","v":0},{"$f":"Planning!U198","v":0},{"$f":"IF(OR(W214=\"1\",AND(W214<>\"1\",G214=Lists!$A$17)),Y214,0)","v":0},null,{"$f":"IF(AND(W214=\"2\",G214<>Lists!$A$17),AA214,Z214)","v":""},"",{"$f":"Planning!V198","v":{"v":0,"d":"0.00"}},{"$f":"'Month 4'!M214+'Month 4'!N214-'Month 4'!O214","v":{"v":0,"d":"0.00"}},null,"","",{"$f":"SUMIFS($J$25:$J$224,$C$25:$C$224,$C214,$G$25:$G$224,Lists!$A$16)","v":0},0,null,"",null,{"$f":"IF(C214=0,\"\",LEFT(INDEX(Lists!$H$5:$H$49,MATCH(C214,Lists!$G$5:$G$49,0),1),1))","v":""},null,{"$f":"'Month 4'!H214+'Month 4'!I214-'Month 4'!J214","v":0},"","",null,"0"]
[{"$f":"Planning!A199","v":"I191"},{"$f":"Planning!B199","v":0},{"$f":"Planning!C199","v":0},{"$f":"Planning!D199","v":0},{"$f":"Planning!E199","v":0},{"$f":"IF(Planning!G199<>0,Planning!G199,\"\")","v":""},{"$f":"Planning!H199","v":0},{"$f":"Planning!U199","v":0},{"$f":"IF(OR(W215=\"1\",AND(W215<>\"1\",G215=Lists!$A$17)),Y215,0)","v":0},null,{"$f":"IF(AND(W215=\"2\",G215<>Lists!$A$17),AA215,Z215)","v":""},"",{"$f":"Planning!V199","v":{"v":0,"d":"0.00"}},{"$f":"'Month 4'!M215+'Month 4'!N215-'Month 4'!O215","v":{"v":0,"d":"0.00"}},null,"","",{"$f":"SUMIFS($J$25:$J$224,$C$25:$C$224,$C215,$G$25:$G$224,Lists!$A$16)","v":0},0,null,"",null,{"$f":"IF(C215=0,\"\",LEFT(INDEX(Lists!$H$5:$H$49,MATCH(C215,Lists!$G$5:$G$49,0),1),1))","v":""},null,{"$f":"'Month 4'!H215+'Month 4'!I215-'Month 4'!J215","v":0},"","",null,"0"]
[{"$f":"Planning!A200","v":"I192"},{"$f":"Planning!B200","v":0},{"$f":"Planning!C200","v":0},{"$f":"Planning!D200","v":0},{"$f":"Planning!E200","v":0},{"$f":"IF(Planning!G200<>0,Planning!G200,\"\")","v":""},{"$f":"Planning!H200","v":0},{"$f":"Planning!U200","v":0},{"$f":"IF(OR(W216=\"1\",AND(W216<>\"1\",G216=Lists!$A$17)),Y216,0)","v":0},null,{"$f":"IF(AND(W216=\"2\",G216<>Lists!$A$17),AA216,Z216)","v":""},"",{"$f":"Planning!V200","v":{"v":0,"d":"0.00"}},{"$f":"'Month 4'!M216+'Month 4'!N216-'Month 4'!O216","v":{"v":0,"d":"0.00"}},null,"","",{"$f":"SUMIFS($J$25:$J$224,$C$25:$C$224,$C216,$G$25:$G$224,Lists!$A$16)","v":0},0,null,"",null,{"$f":"IF(C216=0,\"\",LEFT(INDEX(Lists!$H$5:$H$49,MATCH(C216,Lists!$G$5:$G$49,0),1),1))","v":""},null,{"$f":"'Month 4'!H216+'Month 4'!I216-'Month 4'!J216","v":0},"","",null,"0"]
[{"$f":"Planning!A201","v":"I193"},{"$f":"Planning!B201","v":0},{"$f":"Planning!C201","v":0},{"$f":"Planning!D201","v":0},{"$f":"Planning!E201","v":0},{"$f":"IF(Planning!G201<>0,Planning!G201,\"\")","v":""},{"$f":"Planning!H201","v":0},{"$f":"Planning!U201","v":0},{"$f":"IF(OR(W217=\"1\",AND(W217<>\"1\",G217=Lists!$A$17)),Y217,0)","v":0},null,{"$f":"IF(AND(W217=\"2\",G217<>Lists!$A$17),AA217,Z217)","v":""},{"$f":"IF($U217=ExcluirDelPLogro,\"\",IF(AND(H217=0,I217=0,J217=0),\"\",K217))","v":""},{"$f":"Planning!V201","v":{"v":0,"d":"0.00"}},{"$f":"'Month 4'!M217+'Month 4'!N217-'Month 4'!O217","v":{"v":0,"d":"0.00"}},null,"",{"$f":"IF($U217=ExcluirDelPLogro,\"\",IF(AND(M217=0,N217=0,O217=0),\"\",P217))","v":""},{"$f":"SUMIFS($J$25:$J$224,$C$25:$C$224,$C217,$G$25:$G$224,Lists!$A$16)","v":0},0,null,"",null,{"$f":"IF(C217=0,\"\",LEFT(INDEX(Lists!$H$5:$H$49,MATCH(C217,Lists!$G$5:$G$49,0),1),1))","v":""},null,{"$f":"'Month 4'!H217+'Month 4'!I217-'Month 4'!J217","v":0},"",{"$f":"IF(AND(H217=0,I217=0,J217=0),\"\",IF(J217>0,H217/J217,0))","v":""},null,"0"]
[{"$f":"Planning!A202","v":"I194"},{"$f":"Planning!B202","v":0},{"$f":"Planning!C202","v":0},{"$f":"Planning!D202","v":0},{"$f":"Planning!E202","v":0},{"$f":"IF(Planning!G202<>0,Planning!G202,\"\")","v":""},{"$f":"Planning!H202","v":0},{"$f":"Planning!U202","v":0},{"$f":"IF(OR(W218=\"1\",AND(W218<>\"1\",G218=Lists!$A$17)),Y218,0)","v":0},null,{"$f":"IF(AND(W218=\"2\",G218<>Lists!$A$17),AA218,Z218)","v":""},"",{"$f":"Planning!V202","v":{"v":0,"d":"0.00"}},{"$f":"'Month 4'!M218+'Month 4'!N218-'Month 4'!O218","v":{"v":0,"d":"0.00"}},null,{"$f":"IF(AND(M218=0,N218=0,O218=0),\"\",IF((M218+N218)>0,O218/(M218+N218),O218))","v":""},"",{"$f":"SUMIFS($J$25:$J$224,$C$25:$C$224,$C218,$G$25:$G$224,Lists!$A$16)","v":0},{"$f":"SUMIFS($O$25:$O$224,$C$25:$C$224,$C218,$G$25:$G$224,\"<>0\")","v":0},null,{"$f":"IF(B218=0,\"\",IF(LEFT(B218,1)=\"1\",\"1\",\"2\"))","v":""},null,{"$f":"IF(C218=0,\"\",LEFT(INDEX(Lists!$H$5:$H$49,MATCH(C218,Lists!$G$5:$G$49,0),1),1))","v":""},null,{"$f":"'Month 4'!H218+'Month 4'!I218-'Month 4'!J218","v":0},{"$f":"IF(AND(H218=0,I218=0,J218=0),\"\",IF((H218+I218)>0,J218/(H218+I218),J218))","v":""},"",null,{"$f":"U218&C218","v":"0"}]
[{"$f":"Planning!A203","v":"I195"},{"$f":"Planning!B203","v":0},{"$f":"Planning!C203","v":0},{"$f":"Planning!D203","v":0},{"$f":"Planning!E203","v":0},{"$f":"IF(Planning!G203<>0,Planning!G203,\"\")","v":""},{"$f":"Planning!H203","v":0},{"$f":"Planning!U203","v":0},{"$f":"IF(OR(W219=\"1\",AND(W219<>\"1\",G219=Lists!$A$17)),Y219,0)","v":0},null,{"$f":"IF(AND(W219=\"2\",G219<>Lists!$A$17),AA219,Z219)","v":""},"",{"$f":"Planning!V203","v":{"v":0,"d":"0.00"}},{"$f":"'Month 4'!M219+'Month 4'!N219-'Month 4'!O219","v":{"v":0,"d":"0.00"}},null,"","",{"$f":"SUMIFS($J$25:$J$224,$C$25:$C$224,$C219,$G$25:$G$224,Lists!$A$16)","v":0},0,null,"",null,{"$f":"IF(C219=0,\"\",LEFT(INDEX(Lists!$H$5:$H$49,MATCH(C219,Lists!$G$5:$G$49,0),1),1))","v":""},null,{"$f":"'Month 4'!H219+'Month 4'!I219-'Month 4'!J219","v":0},"","",null,"0"]
[{"$f":"Planning!A204","v":"I196"},{"$f":"Planning!B204","v":0},{"$f":"Planning!C204","v":0},{"$f":"Planning!D204","v":0},{"$f":"Planning!E204","v":0},{"$f":"IF(Planning!G204<>0,Planning!G204,\"\")","v":""},{"$f":"Planning!H204","v":0},{"$f":"Planning!U204","v":0},{"$f":"IF(OR(W220=\"1\",AND(W220<>\"1\",G220=Lists!$A$17)),Y220,0)","v":0},null,{"$f":"IF(AND(W220=\"2\",G220<>Lists!$A$17),AA220,Z220)","v":""},"",{"$f":"Planning!V204","v":{"v":0,"d":"0.00"}},{"$f":"'Month 4'!M220+'Month 4'!N220-'Month 4'!O220","v":{"v":0,"d":"0.00"}},null,"","",{"$f":"SUMIFS($J$25:$J$224,$C$25:$C$224,$C220,$G$25:$G$224,Lists!$A$16)","v":0},0,null,"",null,{"$f":"IF(C220=0,\"\",LEFT(INDEX(Lists!$H$5:$H$49,MATCH(C220,Lists!$G$5:$G$49,0),1),1))","v":""},null,{"$f":"'Month 4'!H220+'Month 4'!I220-'Month 4'!J220","v":0},"","",null,"0"]
[{"$f":"Planning!A205","v":"I197"},{"$f":"Planning!B205","v":0},{"$f":"Planning!C205","v":0},{"$f":"Planning!D205","v":0},{"$f":"Planning!E205","v":0},{"$f":"IF(Planning!G205<>0,Planning!G205,\"\")","v":""},{"$f":"Planning!H205","v":0},{"$f":"Planning!U205","v":0},{"$f":"IF(OR(W221=\"1\",AND(W221<>\"1\",G221=Lists!$A$17)),Y221,0)","v":0},null,{"$f":"IF(AND(W221=\"2\",G221<>Lists!$A$17),AA221,Z221)","v":""},"",{"$f":"Planning!V205","v":{"v":0,"d":"0.00"}},{"$f":"'Month 4'!M221+'Month 4'!N221-'Month 4'!O221","v":{"v":0,"d":"0.00"}},null,"","",{"$f":"SUMIFS($J$25:$J$224,$C$25:$C$224,$C221,$G$25:$G$224,Lists!$A$16)","v":0},0,null,"",null,{"$f":"IF(C221=0,\"\",LEFT(INDEX(Lists!$H$5:$H$49,MATCH(C221,Lists!$G$5:$G$49,0),1),1))","v":""},null,{"$f":"'Month 4'!H221+'Month 4'!I221-'Month 4'!J221","v":0},"","",null,"0"]
[{"$f":"Planning!A206","v":"I198"},{"$f":"Planning!B206","v":0},{"$f":"Planning!C206","v":0},{"$f":"Planning!D206","v":0},{"$f":"Planning!E206","v":0},{"$f":"IF(Planning!G206<>0,Planning!G206,\"\")","v":""},{"$f":"Planning!H206","v":0},{"$f":"Planning!U206","v":0},{"$f":"IF(OR(W222=\"1\",AND(W222<>\"1\",G222=Lists!$A$17)),Y222,0)","v":0},null,{"$f":"IF(AND(W222=\"2\",G222<>Lists!$A$17),AA222,Z222)","v":""},"",{"$f":"Planning!V206","v":{"v":0,"d":"0.00"}},{"$f":"'Month 4'!M222+'Month 4'!N222-'Month 4'!O222","v":{"v":0,"d":"0.00"}},null,"","",{"$f":"SUMIFS($J$25:$J$224,$C$25:$C$224,$C222,$G$25:$G$224,Lists!$A$16)","v":0},0,null,"",null,{"$f":"IF(C222=0,\"\",LEFT(INDEX(Lists!$H$5:$H$49,MATCH(C222,Lists!$G$5:$G$49,0),1),1))","v":""},null,{"$f":"'Month 4'!H222+'Month 4'!I222-'Month 4'!J222","v":0},"","",null,"0"]
[{"$f":"Planning!A207","v":"I199"},{"$f":"Planning!B207","v":0},{"$f":"Planning!C207","v":0},{"$f":"Planning!D207","v":0},{"$f":"Planning!E207","v":0},{"$f":"IF(Planning!G207<>0,Planning!G207,\"\")","v":""},{"$f":"Planning!H207","v":0},{"$f":"Planning!U207","v":0},{"$f":"IF(OR(W223=\"1\",AND(W223<>\"1\",G223=Lists!$A$17)),Y223,0)","v":0},null,{"$f":"IF(AND(W223=\"2\",G223<>Lists!$A$17),AA223,Z223)","v":""},"",{"$f":"Planning!V207","v":{"v":0,"d":"0.00"}},{"$f":"'Month 4'!M223+'Month 4'!N223-'Month 4'!O223","v":{"v":0,"d":"0.00"}},null,"","",{"$f":"SUMIFS($J$25:$J$224,$C$25:$C$224,$C223,$G$25:$G$224,Lists!$A$16)","v":0},0,null,"",null,{"$f":"IF(C223=0,\"\",LEFT(INDEX(Lists!$H$5:$H$49,MATCH(C223,Lists!$G$5:$G$49,0),1),1))","v":""},null,{"$f":"'Month 4'!H223+'Month 4'!I223-'Month 4'!J223","v":0},"","",null,"0"]
[{"$f":"Planning!A208","v":"I200"},{"$f":"Planning!B208","v":0},{"$f":"Planning!C208","v":0},{"$f":"Planning!D208","v":0},{"$f":"Planning!E208","v":0},{"$f":"IF(Planning!G208<>0,Planning!G208,\"\")","v":""},{"$f":"Planning!H208","v":0},{"$f":"Planning!U208","v":0},{"$f":"IF(OR(W224=\"1\",AND(W224<>\"1\",G224=Lists!$A$17)),Y224,0)","v":0},null,{"$f":"IF(AND(W224=\"2\",G224<>Lists!$A$17),AA224,Z224)","v":""},"",{"$f":"Planning!V208","v":{"v":0,"d":"0.00"}},{"$f":"'Month 4'!M224+'Month 4'!N224-'Month 4'!O224","v":{"v":0,"d":"0.00"}},null,"","",{"$f":"SUMIFS($J$25:$J$224,$C$25:$C$224,$C224,$G$25:$G$224,Lists!$A$16)","v":0},0,null,"",null,{"$f":"IF(C224=0,\"\",LEFT(INDEX(Lists!$H$5:$H$49,MATCH(C224,Lists!$G$5:$G$49,0),1),1))","v":""},null,{"$f":"'Month 4'!H224+'Month 4'!I224-'Month 4'!J224","v":0},"","",null,"0"]
[{"$nulls":20},".",null,".",null,".",".",".",null,"."]
[]
[{"$f":"Setup!AN6","v":"PR Dashboard indicators"}]
[{"$f":"Setup!AP8","v":"Financial reports planned"},{"$nulls":6},1]
[{"$f":"Setup!AP9","v":"Financial reports overdue"},{"$nulls":6},1]
[{"$f":"Setup!AP10","v":0}]
[{"$f":"Setup!AP11","v":0}]
[{"$f":"Setup!AP12","v":0}]
[{"$f":"Setup!AP13","v":0}]
[{"$f":"Setup!AP14","v":0}]
[{"$f":"Setup!AP15","v":"Supervision actions recommended"},{"$nulls":6},2]
[{"$f":"Setup!AP16","v":"Supervision recommendations past due"},{"$nulls":6},2]
[{"$f":"Setup!AP17","v":"Programmatic reports planned"},{"$nulls":6},3]
[{"$f":"Setup!AP18","v":"Programmatic reports past due"},{"$nulls":6},3]
[{"$f":"Setup!AP19","v":0}]
[{"$f":"Setup!AP20","v":0}]
[{"$f":"Setup!AP21","v":0}]
[{"$f":"Setup!AP22","v":0}]
[{"$f":"Setup!AP23","v":0}]
[{"$f":"Setup!AP24","v":0}]
[{"$f":"Setup!AP25","v":0}]
[{"$f":"Setup!AP26","v":0}]
[{"$f":"Setup!AP27","v":0}]
[{"$f":"Setup!AP28","v":0}]
[{"$f":"Setup!AP29","v":0}]
[{"$f":"Setup!AP30","v":0}]
[{"$f":"Setup!AP31","v":0}]
[{"$f":"Setup!AP32","v":0}]
[{"$f":"Setup!AP33","v":0}]
[{"$f":"Setup!AP34","v":0}]
[{"$f":"Setup!AP35","v":0}]
[{"$f":"Setup!AP36","v":0}]
[{"$f":"Setup!AP37","v":0}]
[{"$f":"Setup!AP38","v":0}]
[{"$f":"Setup!AP39","v":"Actual stock level - PS39 - Product 1: Efavirenz, 600 mg, 30 tablets"},{"$nulls":6},8]
[{"$f":"Setup!AP40","v":"Actual stock level - PS40 - Product 2: Efavirenz, 200 mg, 90 capsules"},{"$nulls":6},9]
[{"$f":"Setup!AP41","v":"Actual stock level - PS41 - Product 3: TDF/3TC, 300/300 mg, 30 tablets"},{"$nulls":6},10]
[{"$f":"Setup!AP42","v":"Actual stock level - PS42 - Product 4: 3TC, 10 mg/ml, oral solution 240 ml"},{"$nulls":6},11]
[{"$f":"Setup!AP43","v":0}]
[{"$f":"Setup!AP44","v":0}]
[{"$f":"Setup!AP45","v":0}]
[{"$f":"Setup!AP46","v":0}]
[{"$f":"Setup!AP47","v":0}]
[{"$f":"Setup!AP48","v":0}]
[{"$f":"Setup!AP49","v":0}]
[{"$f":"Setup!AP50","v":0}]
[{"$f":"Setup!AP51","v":0}]
[{"$f":"Setup!AP52","v":0}]
[{"$f":"Setup!AP53","v":0}]
[{"$f":"Setup!AP54","v":0}]
[{"$f":"Setup!AP55","v":0}]
[{"$f":"Setup!AP56","v":0}]
[{"$f":"Setup!AP57","v":0}]
[{"$f":"Setup!AP58","v":0}]
[{"$f":"Setup!AP59","v":0}]
[{"$f":"Setup!AP60","v":0}]
[{"$f":"Setup!AP61","v":0}]
[{"$f":"Setup!AP62","v":0}]
[{"$f":"Setup!AP63","v":0}]
[{"$f":"Setup!AP64","v":0}]
[{"$f":"Setup!AP65","v":0}]
[{"$f":"Setup!AP66","v":0}]
[{"$f":"Setup!AP67","v":0}]
[{"$f":"Setup!AP68","v":0}]
[{"$f":"Setup!AP69","v":0}]
[]
[]
[{"$f":"Translations!A138","v":"Narrative comments from results (to be filled by the Subrecipient)"}]
{"$rows_empty":43}
[{"$f":"Translations!A139","v":"This section is filled in exclusively by PR's programmatic and financial monitors."}]
[]
[{"$f":"Translations!A150","v":"PROGRAMMATIC"},null,null,{"$f":"Translations!A140","v":"Name of person conducting programmatic verification"}]
[]
[]
[{"$nulls":3},{"$f":"Translations!A141","v":"Contextual details"}]
[]
[]
[]
[]
[]
[]
[{"$nulls":3},{"$f":"Translations!A151","v":"Description of identified problem(s)"}]
[]
[]
[]
[]
[]
[]
[{"$nulls":3},{"$f":"Translations!A152","v":"Recommendations and actions to be taken"}]
[{"$nulls":3},"1)"]
[{"$nulls":3},"2)"]
[{"$nulls":3},"3)"]
[{"$nulls":3},"4)"]
[{"$nulls":3},"5)"]
[]
[]
[]
[{"$f":"Translations!A154","v":"FINANCIAL"},null,null,{"$f":"Translations!A153","v":"Name of person conducting financial verification"}]
[]
[]
[{"$nulls":3},{"$f":"Translations!A141","v":"Contextual details"}]
{"$rows_empty":7}
[{"$nulls":3},{"$f":"Translations!A151","v":"Description of identified problem(s)"}]
[]
[]
[]
[]
[]
[]
[{"$nulls":3},{"$f":"Translations!A152","v":"Recommendations and actions to be taken"}]
[{"$nulls":3},"1)"]
[{"$nulls":3},"2)"]
[{"$nulls":3},"3)"]
[{"$nulls":3},"4)"]
[{"$nulls":3},"5)"]
[]
[]
[]
[]
[]
[{"$f":"Translations!A321","v":"To be completed by the PR"},{"$nulls":6},{"$f":"Translations!A324","v":"To be completed by the SR"}]
[{"$f":"Translations!A322","v":"Position"},{"$nulls":3},{"$f":"Translations!A323","v":"Signature"},null,null,{"$f":"Translations!A322","v":"Position"},null,{"$f":"Translations!A323","v":"Signature"}]

{"sheet":"Month 6","index":17,"n_rows":394,"n_cols":29,"rows_kept":394,"hidden":true,"merged":[[1,4,1,13],[1,14,1,15],[2,4,2,13],[2,14,3,15],[3,4,3,13],[4,4,4,13],[4,22,16,26],[5,9,5,15],[6,0,15,7],[6,9,7,15],[9,9,9,10],[9,12,9,15],[10,9,11,10],[10,12,11,15],[13,9,15,13],[13,14,13,15],[14,14,15,15],[16,6,16,7],[17,3,17,4],[17,7,17,8],[17,9,17,10],[17,12,17,13],[17,14,17,15],[18,7,18,10],[18,12,18,15],[18,24,18,26],[19,0,20,0],[19,1,20,1],[19,2,20,2],[19,3,20,3],[19,4,20,4],[19,5,20,5],[19,7,20,7],[19,8,20,8],[19,9,20,9],[19,10,20,10],[19,12,20,12],[19,13,20,13],[19,14,20,14],[19,15,20,15],[19,17,19,18],[19,20,20,20],[19,22,20,22],[19,24,20,24],[19,25,20,25],[19,26,20,26],[19,28,20,28],[226,0,226,7],[227,0,227,6],[228,0,228,6],[229,0,229,6],[230,0,230,6],[231,0,231,6],[232,0,232,6],[233,0,233,6],[234,0,234,6],[235,0,235,6],[236,0,236,6],[237,0,237,6],[238,0,238,6],[239,0,239,6],[240,0,240,6],[241,0,241,6],[242,0,242,6],[243,0,243,6],[244,0,244,6],[245,0,245,6],[246,0,246,6],[247,0,247,6],[248,0,248,6],[249,0,249,6],[250,0,250,6],[251,0,251,6],[252,0,252,6],[253,0,253,6],[254,0,254,6],[255,0,255,6],[256,0,256,6],[257,0,257,6],[258,0,258,6],[259,0,259,6],[260,0,260,6],[261,0,261,6],[262,0,262,6],[263,0,263,6],[264,0,264,6],[265,0,265,6],[266,0,266,6],[267,0,267,6],[268,0,268,6],[269,0,269,6],[270,0,270,6],[271,0,271,6],[272,0,272,6],[273,0,273,6],[274,0,274,6],[275,0,275,6],[276,0,276,6],[277,0,277,6],[278,0,278,6],[279,0,279,6],[280,0,280,6],[281,0,281,6],[282,0,282,6],[283,0,283,6],[284,0,284,6],[285,0,285,6],[286,0,286,6],[287,0,287,6],[288,0,288,6],[291,0,291,15],[292,0,333,15],[335,0,335,15],[337,0,360,0],[337,14,337,15],[338,3,338,4],[338,14,338,15],[341,3,345,15],[348,3,352,15],[355,3,355,15],[356,3,356,15],[357,3,357,15],[358,3,358,15],[359,3,359,15],[363,0,387,0],[363,14,363,15],[364,3,364,4],[364,14,364,15],[367,3,371,15],[375,3,379,15],[382,3,382,15],[383,3,383,15],[384,3,384,15],[385,3,385,15],[386,3,386,15],[392,0,392,4],[392,7,392,12],[393,0,393,3],[393,7,393,8],[393,9,393,12],[394,0,394,3],[394,7,394,8],[394,9,394,12],[395,0,395,3],[395,7,395,8],[395,9,395,12],[396,0,396,3],[396,7,396,8],[396,9,396,12],[397,0,397,3],[397,7,397,8],[397,9,397,12]]}
[]
["Month 6",{"$nulls":3},{"$f":"Translations!A80","v":"SR Management Tool"},{"$nulls":9},{"$f":"Translations!A129","v":"SCORE"}]
[{"$nulls":4},{"$f":"Setup!H11","v":"Direct Gender Partnership (DGP)"},{"$nulls":9},{"$f":"K23","v":{"v":0.9796245421245421,"d":"97.96%"}}]
[{"$nulls":4},{"$f":" Setup!H14 & \"  (\" & Setup!H13 & \")\" & \"  (\" & Setup!H15 & \")\"","v":"DMR-202-G01-H-00  (January  2016 - December 2016)  (HIV / AIDS)"}]
[{"$nulls":4},{"$f":"Setup!AB13 & \"  (\" & Setup!H16 & \")\"","v":"June  ($ - USD)"},{"$nulls":17},"A. Se colocará lo pendiente (Y) en (I) siempre que (W) sea 1. Estandar o que (W) sea diferente de 1. sin embargo la actividad (G) NO contribuya al indicador.\n\nB. En la columna % Logro (K) se colocará siempre el Logro 1. Estandar (Z). Solamente se colocará el Logro 2. Inverso (AA) cuando (W) sea 2 y (G) sea diferente de 2. NO... es decir, el valor inverso va para las actvividades que contribuyan al indicador G = 1. SI y para el Indicador en si G = 0... por eso se pregunta por G diferente de 2. NO.. para incluir los 1. SI y a los 0\n\n"]
[{"$f":"Setup!G19","v":"Details of programatic indicators"},{"$nulls":8},{"$f":"Setup!G17","v":"Key population"}]
[{"$f":"Setup!H19","v":"# PLHIV that initiated ARV with CD4 count <200\n# new HIV+ enrolled in care services \n# aged 10-24 yrs reached by HIV life skills ed. in school "},{"$nulls":8},{"$f":"Setup!H17","v":"Sex Workers - Migrants - Women"}]
[]
[]
[{"$nulls":9},{"$f":"Translations!A119","v":"Report date"},null,null,{"$f":"Translations!A130","v":"Reported by"}]
[{"$nulls":9},"2016-07-13",null,null,"William Brown"]
[]
[]
[{"$nulls":9},{"$f":"Translations!A132","v":"Note: Enter disubursment ammount here if the PR made a disbursment this month. Leave blank if no disbursment was made."},{"$nulls":4},{"$f":"Translations!A131","v":"Disbursement"}]
[{"$nulls":14},{"v":0,"d":"0.00"}]
[]
[]
[{"$nulls":3},{"$f":"Translations!A233","v":"Input data in spaces with this color"},{"$nulls":3},{"$f":"Translations!A120","v":"Date of verification"},null,"2016-07-15",null,null,{"$f":"Translations!A120","v":"Date of verification"},null,"2016-07-15"]
[{"$nulls":7},{"$f":"Translations!A133","v":"Programmatic aspects"},{"$nulls":4},{"$f":"Translations!A134","v":"Financial aspects"},{"$nulls":9},"COMPORTAMIENTO",null,"Sólo en el Aspecto Programático"]
[{"$f":"Translations!A88","v":"Item"},"Tipo de Ítem","ID Enlace",{"$f":"Translations!A91","v":"Activity code"},{"$f":"Translations!A92","v":"Indicator / Activity"},{"$f":"Translations!A79","v":"TGF costs groups"},null,{"$f":"Translations!A135","v":"Monthly target"},{"$f":"Translations!A136","v":"Balance from previous period"},{"$f":"Translations!A137","v":"Results "},{"$f":"Translations!A108","v":"Result %"},null,{"$f":"Translations!$A$360","v":"Monthly budget"},{"$f":"Translations!A136","v":"Balance from previous period"},{"$f":"Translations!$A$361","v":"Monthly expenditure"},{"$f":"Translations!A108","v":"Result %"},null,"Sumatorias Indicadores",null,null,"Indicador =1 Actividad = 2",null,"1. Estandar\n2. Inverso\n3. No Acumula",null,"Pendiente Mes Anterior\n SIN CONDICION","Logro\n1. Estandar","Logro\n2. Inverso",null,"TAG \nPerformance"]
[{"$nulls":17},"PROG","FIN"]
[]
[{"$f":"Translations!A109","v":"Totals"},{"$nulls":6},"-","-","-",{"$f":"IFERROR(AVERAGEIF(L25:L224,\"<> \"),\"\")","v":{"v":0.9796245421245421,"d":"97.96%"}},null,{"$f":"SUMIFS(M25:M224,$G$25:$G$224,\"<>0\")","v":{"v":220850,"d":"220,850.00"}},{"$f":"SUMIFS(N25:N224,$G$25:$G$224,\"<>0\")","v":{"v":10500,"d":"10,500.00"}},{"$f":"SUMIFS(O25:O224,$G$25:$G$224,\"<>0\")","v":{"v":224100,"d":"224,100.00"}},{"$f":"IFERROR(AVERAGEIF(Q25:Q224,\"<> \"),\"\")","v":{"v":0.9725491899404943,"d":"97.25%"}}]
[]
[{"$f":"Planning!A9","v":"I001"},{"$f":"Planning!B9","v":"1. Indicator"},{"$f":"Planning!C9","v":"Pr68"},{"$f":"Planning!D9","v":1},{"$f":"Planning!E9","v":"[Pr68] # PLHIV that initiated ARV with CD4 count <200 Target [2. Inverse]"},{"$f":"IF(Planning!G9<>0,Planning!G9,\"\")","v":""},{"$f":"Planning!H9","v":0},{"$f":"Planning!X9","v":200},{"$f":"IF(OR(W25=\"1\",AND(W25<>\"1\",G25=Lists!$A$17)),Y25,0)","v":0},{"$f":"R25","v":195},{"$f":"IF(AND(W25=\"2\",G25<>Lists!$A$17),AA25,Z25)","v":{"v":1.0256410256410255,"d":"102.56%"}},{"$f":"IF($U25=ExcluirDelPLogro,\"\",IF(AND(H25=0,I25=0,J25=0),\"\",K25))","v":1.0256410256410255},{"$f":"Planning!Y9","v":{"v":45700,"d":"45,700.00"}},{"$f":"'Month 5'!M25+'Month 5'!N25-'Month 5'!O25","v":{"v":0,"d":"0.00"}},{"$f":"S25","v":{"v":45700,"d":"45,700.00"}},{"$f":"IF(AND(M25=0,N25=0,O25=0),\"\",IF((M25+N25)>0,O25/(M25+N25),O25))","v":{"v":1,"d":"100.00%"}},{"$f":"IF($U25=ExcluirDelPLogro,\"\",IF(AND(M25=0,N25=0,O25=0),\"\",P25))","v":1},{"$f":"SUMIFS($J$25:$J$224,$C$25:$C$224,$C25,$G$25:$G$224,Lists!$A$16)","v":195},{"$f":"SUMIFS($O$25:$O$224,$C$25:$C$224,$C25,$G$25:$G$224,\"<>0\")","v":45700},null,{"$f":"IF(B25=0,\"\",IF(LEFT(B25,1)=\"1\",\"1\",\"2\"))","v":"1"},null,{"$f":"IF(C25=0,\"\",LEFT(INDEX(Lists!$H$5:$H$49,MATCH(C25,Lists!$G$5:$G$49,0),1),1))","v":"2"},null,{"$f":"'Month 5'!H25+'Month 5'!I25-'Month 5'!J25","v":-25},{"$f":"IF(AND(H25=0,I25=0,J25=0),\"\",IF((H25+I25)>0,J25/(H25+I25),J25))","v":0.975},{"$f":"IF(AND(H25=0,I25=0,J25=0),\"\",IF(J25>0,H25/J25,0))","v":1.0256410256410255},null,{"$f":"U25&C25","v":"1Pr68"}]
[{"$f":"Planning!A10","v":"I002"},{"$f":"Planning!B10","v":"2. Activity: Contributing"},{"$f":"Planning!C10","v":"Pr68"},{"$f":"Planning!D10","v":1.2},{"$f":"Planning!E10","v":"PLHIV reimbursed for transportation costs to HIV testing and treatment centres\n"},{"$f":"IF(Planning!G10<>0,Planning!G10,\"\")","v":"12. Living support to client/ target population "},{"$f":"Planning!H10","v":"1. YES"},{"$f":"Planning!X10","v":200},{"$f":"IF(OR(W26=\"1\",AND(W26<>\"1\",G26=Lists!$A$17)),Y26,0)","v":0},195,{"$f":"IF(AND(W26=\"2\",G26<>Lists!$A$17),AA26,Z26)","v":{"v":1.0256410256410255,"d":"102.56%"}},"",{"$f":"Planning!Y10","v":{"v":45000,"d":"45,000.00"}},{"$f":"'Month 5'!M26+'Month 5'!N26-'Month 5'!O26","v":{"v":0,"d":"0.00"}},{"v":45000,"d":"45,000.00"},{"v":1,"d":"100.00%"},"",{"$f":"SUMIFS($J$25:$J$224,$C$25:$C$224,$C26,$G$25:$G$224,Lists!$A$16)","v":195},{"$f":"SUMIFS($O$25:$O$224,$C$25:$C$224,$C26,$G$25:$G$224,\"<>0\")","v":45700},null,{"$f":"IF(B26=0,\"\",IF(LEFT(B26,1)=\"1\",\"1\",\"2\"))","v":"2"},null,{"$f":"IF(C26=0,\"\",LEFT(INDEX(Lists!$H$5:$H$49,MATCH(C26,Lists!$G$5:$G$49,0),1),1))","v":"2"},null,{"$f":"'Month 5'!H26+'Month 5'!I26-'Month 5'!J26","v":-25},{"$f":"IF(AND(H26=0,I26=0,J26=0),\"\",IF((H26+I26)>0,J26/(H26+I26),J26))","v":0.975},1.0256410256410255,null,{"$f":"U26&C26","v":"2Pr68"}]
[{"$f":"Planning!A11","v":"I003"},{"$f":"Planning!B11","v":"3. Activity: Non-Contributing"},{"$f":"Planning!C11","v":"Pr68"},{"$f":"Planning!D11","v":1.3},{"$f":"Planning!E11","v":"Communication materials produced to educate HIV+ patients about HIV treatment (Migrants and Sexual Workers). \n\n"},{"$f":"IF(Planning!G11<>0,Planning!G11,\"\")","v":"10. Communication material and publications"},{"$f":"Planning!H11","v":"2. NO"},{"$f":"Planning!X11","v":25},{"$f":"IF(OR(W27=\"1\",AND(W27<>\"1\",G27=Lists!$A$17)),Y27,0)","v":1},25,{"$f":"IF(AND(W27=\"2\",G27<>Lists!$A$17),AA27,Z27)","v":{"v":0.9615384615384616,"d":"96.15%"}},"",{"$f":"Planning!Y11","v":{"v":700,"d":"700.00"}},{"$f":"'Month 5'!M27+'Month 5'!N27-'Month 5'!O27","v":{"v":0,"d":"0.00"}},{"v":700,"d":"700.00"},{"v":1,"d":"100.00%"},"",{"$f":"SUMIFS($J$25:$J$224,$C$25:$C$224,$C27,$G$25:$G$224,Lists!$A$16)","v":195},45700,null,"2",null,{"$f":"IF(C27=0,\"\",LEFT(INDEX(Lists!$H$5:$H$49,MATCH(C27,Lists!$G$5:$G$49,0),1),1))","v":"2"},null,{"$f":"'Month 5'!H27+'Month 5'!I27-'Month 5'!J27","v":1},0.9615384615384616,1,null,"2Pr68"]
[{"$f":"Planning!A12","v":"I004"},{"$f":"Planning!B12","v":"3. Activity: Non-Contributing"},{"$f":"Planning!C12","v":"Pr68"},{"$f":"Planning!D12","v":1.4},{"$f":"Planning!E12","v":"Supervisory visits to verify the appropriate application of testing and treatment protocols at centers. "},{"$f":"IF(Planning!G12<>0,Planning!G12,\"\")","v":"11. Programme administration costs"},{"$f":"Planning!H12","v":"2. NO"},{"$f":"Planning!X12","v":0},{"$f":"IF(OR(W28=\"1\",AND(W28<>\"1\",G28=Lists!$A$17)),Y28,0)","v":0},0,{"$f":"IF(AND(W28=\"2\",G28<>Lists!$A$17),AA28,Z28)","v":""},"",{"$f":"Planning!Y12","v":{"v":0,"d":"0.00"}},{"$f":"'Month 5'!M28+'Month 5'!N28-'Month 5'!O28","v":{"v":0,"d":"0.00"}},{"v":0,"d":"0.00"},"","",{"$f":"SUMIFS($J$25:$J$224,$C$25:$C$224,$C28,$G$25:$G$224,Lists!$A$16)","v":195},45700,null,"2",null,{"$f":"IF(C28=0,\"\",LEFT(INDEX(Lists!$H$5:$H$49,MATCH(C28,Lists!$G$5:$G$49,0),1),1))","v":"2"},null,{"$f":"'Month 5'!H28+'Month 5'!I28-'Month 5'!J28","v":0},"","",null,"2Pr68"]
[{"$f":"Planning!A13","v":"I005"},{"$f":"Planning!B13","v":"1. Indicator"},{"$f":"Planning!C13","v":"Pr72"},{"$f":"Planning!D13","v":2},{"$f":"Planning!E13","v":"[Pr72] # new HIV+ enrolled in care services Target [3. Non-Cumulative]"},{"$f":"IF(Planning!G13<>0,Planning!G13,\"\")","v":""},{"$f":"Planning!H13","v":0},{"$f":"Planning!X13","v":124},{"$f":"IF(OR(W29=\"1\",AND(W29<>\"1\",G29=Lists!$A$17)),Y29,0)","v":0},{"$f":"R29","v":124},{"$f":"IF(AND(W29=\"2\",G29<>Lists!$A$17),AA29,Z29)","v":{"v":1,"d":"100.00%"}},1,{"$f":"Planning!Y13","v":{"v":27900,"d":"27,900.00"}},{"$f":"'Month 5'!M29+'Month 5'!N29-'Month 5'!O29","v":{"v":3500,"d":"3,500.00"}},{"$f":"S29","v":{"v":31400,"d":"31,400.00"}},{"v":1,"d":"100.00%"},1,{"$f":"SUMIFS($J$25:$J$224,$C$25:$C$224,$C29,$G$25:$G$224,Lists!$A$16)","v":124},31400,null,"1",null,{"$f":"IF(C29=0,\"\",LEFT(INDEX(Lists!$H$5:$H$49,MATCH(C29,Lists!$G$5:$G$49,0),1),1))","v":"3"},null,{"$f":"'Month 5'!H29+'Month 5'!I29-'Month 5'!J29","v":34},1,1,null,"1Pr72"]
[{"$f":"Planning!A14","v":"I006"},{"$f":"Planning!B14","v":"2. Activity: Contributing"},{"$f":"Planning!C14","v":"Pr72"},{"$f":"Planning!D14","v":2.1},{"$f":"Planning!E14","v":"Enrollment of  newly diagnosed HIV+ patients for home visits to monitor use of ARV."},{"$f":"IF(Planning!G14<>0,Planning!G14,\"\")","v":"12. Living support to client/ target population "},{"$f":"Planning!H14","v":"1. YES"},{"$f":"Planning!X14","v":124},{"$f":"IF(OR(W30=\"1\",AND(W30<>\"1\",G30=Lists!$A$17)),Y30,0)","v":0},124,{"$f":"IF(AND(W30=\"2\",G30<>Lists!$A$17),AA30,Z30)","v":{"v":1,"d":"100.00%"}},"",{"$f":"Planning!Y14","v":{"v":27900,"d":"27,900.00"}},{"$f":"'Month 5'!M30+'Month 5'!N30-'Month 5'!O30","v":{"v":3500,"d":"3,500.00"}},{"v":31400,"d":"31,400.00"},{"v":1,"d":"100.00%"},"",{"$f":"SUMIFS($J$25:$J$224,$C$25:$C$224,$C30,$G$25:$G$224,Lists!$A$16)","v":124},31400,null,"2",null,{"$f":"IF(C30=0,\"\",LEFT(INDEX(Lists!$H$5:$H$49,MATCH(C30,Lists!$G$5:$G$49,0),1),1))","v":"3"},null,{"$f":"'Month 5'!H30+'Month 5'!I30-'Month 5'!J30","v":34},1,1,null,"2Pr72"]
[{"$f":"Planning!A15","v":"I007"},{"$f":"Planning!B15","v":"1. Indicator"},{"$f":"Planning!C15","v":"Pr74"},{"$f":"Planning!D15","v":3},{"$f":"Planning!E15","v":"[Pr74] # aged 10-24 yrs reached by HIV life skills ed. in school  Target [1. Standard]"},{"$f":"IF(Planning!G15<>0,Planning!G15,\"\")","v":""},{"$f":"Planning!H15","v":0},{"$f":"Planning!X15","v":250},{"$f":"IF(OR(W31=\"1\",AND(W31<>\"1\",G31=Lists!$A$17)),Y31,0)","v":30},{"$f":"R31","v":250},{"$f":"IF(AND(W31=\"2\",G31<>Lists!$A$17),AA31,Z31)","v":{"v":0.8928571428571429,"d":"89.29%"}},0.8928571428571429,{"$f":"Planning!Y15","v":{"v":56250,"d":"56,250.00"}},{"$f":"'Month 5'!M31+'Month 5'!N31-'Month 5'!O31","v":{"v":7000,"d":"7,000.00"}},{"$f":"S31","v":{"v":57000,"d":"57,000.00"}},{"v":0.9011857707509882,"d":"90.12%"},0.9011857707509882,{"$f":"SUMIFS($J$25:$J$224,$C$25:$C$224,$C31,$G$25:$G$224,Lists!$A$16)","v":250},57000,null,"1",null,{"$f":"IF(C31=0,\"\",LEFT(INDEX(Lists!$H$5:$H$49,MATCH(C31,Lists!$G$5:$G$49,0),1),1))","v":"1"},null,{"$f":"'Month 5'!H31+'Month 5'!I31-'Month 5'!J31","v":30},0.8928571428571429,1,null,"1Pr74"]
[{"$f":"Planning!A16","v":"I008"},{"$f":"Planning!B16","v":"2. Activity: Contributing"},{"$f":"Planning!C16","v":"Pr74"},{"$f":"Planning!D16","v":3.1},{"$f":"Planning!E16","v":"Transportation of students to meetings and conferences for peer education activities"},{"$f":"IF(Planning!G16<>0,Planning!G16,\"\")","v":"2. Travel related costs"},{"$f":"Planning!H16","v":"1. YES"},{"$f":"Planning!X16","v":250},{"$f":"IF(OR(W32=\"1\",AND(W32<>\"1\",G32=Lists!$A$17)),Y32,0)","v":30},250,{"$f":"IF(AND(W32=\"2\",G32<>Lists!$A$17),AA32,Z32)","v":{"v":0.8928571428571429,"d":"89.29%"}},"",{"$f":"Planning!Y16","v":{"v":56250,"d":"56,250.00"}},{"$f":"'Month 5'!M32+'Month 5'!N32-'Month 5'!O32","v":{"v":7000,"d":"7,000.00"}},{"v":57000,"d":"57,000.00"},{"v":0.9011857707509882,"d":"90.12%"},"",{"$f":"SUMIFS($J$25:$J$224,$C$25:$C$224,$C32,$G$25:$G$224,Lists!$A$16)","v":250},57000,null,"2",null,{"$f":"IF(C32=0,\"\",LEFT(INDEX(Lists!$H$5:$H$49,MATCH(C32,Lists!$G$5:$G$49,0),1),1))","v":"1"},null,{"$f":"'Month 5'!H32+'Month 5'!I32-'Month 5'!J32","v":30},0.8928571428571429,1,null,"2Pr74"]
[{"$f":"Planning!A17","v":"I009"},{"$f":"Planning!B17","v":"1. Indicator"},{"$f":"Planning!C17","v":"OI01"},{"$f":"Planning!D17","v":4},{"$f":"Planning!E17","v":"[OI01] # of new orphans and vulnerable children (0 - 17 yrs) benefiting from  services provided at OVC centers [1. Standard]"},{"$f":"IF(Planning!G17<>0,Planning!G17,\"\")","v":""},{"$f":"Planning!H17","v":0},{"$f":"Planning!X17","v":750},{"$f":"IF(OR(W33=\"1\",AND(W33<>\"1\",G33=Lists!$A$17)),Y33,0)","v":0},{"$f":"R33","v":750},{"$f":"IF(AND(W33=\"2\",G33<>Lists!$A$17),AA33,Z33)","v":{"v":1,"d":"100.00%"}},1,{"$f":"Planning!Y17","v":{"v":91000,"d":"91,000.00"}},{"$f":"'Month 5'!M33+'Month 5'!N33-'Month 5'!O33","v":{"v":0,"d":"0.00"}},{"$f":"S33","v":{"v":90000,"d":"90,000.00"}},{"v":0.989010989010989,"d":"98.90%"},0.989010989010989,{"$f":"SUMIFS($J$25:$J$224,$C$25:$C$224,$C33,$G$25:$G$224,Lists!$A$16)","v":750},90000,null,"1",null,{"$f":"IF(C33=0,\"\",LEFT(INDEX(Lists!$H$5:$H$49,MATCH(C33,Lists!$G$5:$G$49,0),1),1))","v":"1"},null,{"$f":"'Month 5'!H33+'Month 5'!I33-'Month 5'!J33","v":0},1,1,null,"1OI01"]
[{"$f":"Planning!A18","v":"I010"},{"$f":"Planning!B18","v":"3. Activity: Non-Contributing"},{"$f":"Planning!C18","v":"OI01"},{"$f":"Planning!D18","v":4.1},{"$f":"Planning!E18","v":"# of OVC centers established and fully equipped  "},{"$f":"IF(Planning!G18<>0,Planning!G18,\"\")","v":"8. Infrastructure "},{"$f":"Planning!H18","v":"2. NO"},{"$f":"Planning!X18","v":1},{"$f":"IF(OR(W34=\"1\",AND(W34<>\"1\",G34=Lists!$A$17)),Y34,0)","v":0},1,{"$f":"IF(AND(W34=\"2\",G34<>Lists!$A$17),AA34,Z34)","v":{"v":1,"d":"100.00%"}},"",{"$f":"Planning!Y18","v":{"v":4000,"d":"4,000.00"}},{"$f":"'Month 5'!M34+'Month 5'!N34-'Month 5'!O34","v":{"v":0,"d":"0.00"}},{"v":4000,"d":"4,000.00"},{"v":1,"d":"100.00%"},"",{"$f":"SUMIFS($J$25:$J$224,$C$25:$C$224,$C34,$G$25:$G$224,Lists!$A$16)","v":750},90000,null,"2",null,{"$f":"IF(C34=0,\"\",LEFT(INDEX(Lists!$H$5:$H$49,MATCH(C34,Lists!$G$5:$G$49,0),1),1))","v":"1"},null,{"$f":"'Month 5'!H34+'Month 5'!I34-'Month 5'!J34","v":0},1,1,null,"2OI01"]
[{"$f":"Planning!A19","v":"I011"},{"$f":"Planning!B19","v":"2. Activity: Contributing"},{"$f":"Planning!C19","v":"OI01"},{"$f":"Planning!D19","v":4.2},{"$f":"Planning!E19","v":"# of OVC registered at centres"},{"$f":"IF(Planning!G19<>0,Planning!G19,\"\")","v":"12. Living support to client/ target population "},{"$f":"Planning!H19","v":"1. YES"},{"$f":"Planning!X19","v":750},{"$f":"IF(OR(W35=\"1\",AND(W35<>\"1\",G35=Lists!$A$17)),Y35,0)","v":0},750,{"$f":"IF(AND(W35=\"2\",G35<>Lists!$A$17),AA35,Z35)","v":{"v":1,"d":"100.00%"}},"",{"$f":"Planning!Y19","v":{"v":75000,"d":"75,000.00"}},{"$f":"'Month 5'!M35+'Month 5'!N35-'Month 5'!O35","v":{"v":0,"d":"0.00"}},{"v":75000,"d":"75,000.00"},{"v":1,"d":"100.00%"},"",{"$f":"SUMIFS($J$25:$J$224,$C$25:$C$224,$C35,$G$25:$G$224,Lists!$A$16)","v":750},90000,null,"2",null,{"$f":"IF(C35=0,\"\",LEFT(INDEX(Lists!$H$5:$H$49,MATCH(C35,Lists!$G$5:$G$49,0),1),1))","v":"1"},null,{"$f":"'Month 5'!H35+'Month 5'!I35-'Month 5'!J35","v":0},1,1,null,"2OI01"]
[{"$f":"Planning!A20","v":"I012"},{"$f":"Planning!B20","v":"3. Activity: Non-Contributing"},{"$f":"Planning!C20","v":"OI01"},{"$f":"Planning!D20","v":4.3},{"$f":"Planning!E20","v":"# of meals provided at the OVC centers "},{"$f":"IF(Planning!G20<>0,Planning!G20,\"\")","v":"12. Living support to client/ target population "},{"$f":"Planning!H20","v":"2. NO"},{"$f":"Planning!X20","v":{"v":3000,"d":"3,000"}},{"$f":"IF(OR(W36=\"1\",AND(W36<>\"1\",G36=Lists!$A$17)),Y36,0)","v":0},{"v":2900,"d":"2,900"},{"$f":"IF(AND(W36=\"2\",G36<>Lists!$A$17),AA36,Z36)","v":{"v":0.9666666666666667,"d":"96.67%"}},"",{"$f":"Planning!Y20","v":{"v":12000,"d":"12,000.00"}},{"$f":"'Month 5'!M36+'Month 5'!N36-'Month 5'!O36","v":{"v":0,"d":"0.00"}},{"v":11000,"d":"11,000.00"},{"v":0.9166666666666666,"d":"91.67%"},"",{"$f":"SUMIFS($J$25:$J$224,$C$25:$C$224,$C36,$G$25:$G$224,Lists!$A$16)","v":750},90000,null,"2",null,{"$f":"IF(C36=0,\"\",LEFT(INDEX(Lists!$H$5:$H$49,MATCH(C36,Lists!$G$5:$G$49,0),1),1))","v":"1"},null,{"$f":"'Month 5'!H36+'Month 5'!I36-'Month 5'!J36","v":0},0.9666666666666667,1.0344827586206897,null,"2OI01"]
[{"$f":"Planning!A21","v":"I013"},{"$f":"Planning!B21","v":0},{"$f":"Planning!C21","v":0},{"$f":"Planning!D21","v":0},{"$f":"Planning!E21","v":0},{"$f":"IF(Planning!G21<>0,Planning!G21,\"\")","v":""},{"$f":"Planning!H21","v":0},{"$f":"Planning!X21","v":0},{"$f":"IF(OR(W37=\"1\",AND(W37<>\"1\",G37=Lists!$A$17)),Y37,0)","v":0},null,{"$f":"IF(AND(W37=\"2\",G37<>Lists!$A$17),AA37,Z37)","v":""},"",{"$f":"Planning!Y21","v":{"v":0,"d":"0.00"}},{"$f":"'Month 5'!M37+'Month 5'!N37-'Month 5'!O37","v":{"v":0,"d":"0.00"}},null,"","",{"$f":"SUMIFS($J$25:$J$224,$C$25:$C$224,$C37,$G$25:$G$224,Lists!$A$16)","v":0},0,null,"",null,{"$f":"IF(C37=0,\"\",LEFT(INDEX(Lists!$H$5:$H$49,MATCH(C37,Lists!$G$5:$G$49,0),1),1))","v":""},null,{"$f":"'Month 5'!H37+'Month 5'!I37-'Month 5'!J37","v":0},"","",null,"0"]
[{"$f":"Planning!A22","v":"I014"},{"$f":"Planning!B22","v":0},{"$f":"Planning!C22","v":0},{"$f":"Planning!D22","v":0},{"$f":"Planning!E22","v":0},{"$f":"IF(Planning!G22<>0,Planning!G22,\"\")","v":""},{"$f":"Planning!H22","v":0},{"$f":"Planning!X22","v":0},{"$f":"IF(OR(W38=\"1\",AND(W38<>\"1\",G38=Lists!$A$17)),Y38,0)","v":0},null,{"$f":"IF(AND(W38=\"2\",G38<>Lists!$A$17),AA38,Z38)","v":""},"",{"$f":"Planning!Y22","v":{"v":0,"d":"0.00"}},{"$f":"'Month 5'!M38+'Month 5'!N38-'Month 5'!O38","v":{"v":0,"d":"0.00"}},null,"","",{"$f":"SUMIFS($J$25:$J$224,$C$25:$C$224,$C38,$G$25:$G$224,Lists!$A$16)","v":0},0,null,"",null,{"$f":"IF(C38=0,\"\",LEFT(INDEX(Lists!$H$5:$H$49,MATCH(C38,Lists!$G$5:$G$49,0),1),1))","v":""},null,{"$f":"'Month 5'!H38+'Month 5'!I38-'Month 5'!J38","v":0},"","",null,"0"]
[{"$f":"Planning!A23","v":"I015"},{"$f":"Planning!B23","v":0},{"$f":"Planning!C23","v":0},{"$f":"Planning!D23","v":0},{"$f":"Planning!E23","v":0},{"$f":"IF(Planning!G23<>0,Planning!G23,\"\")","v":""},{"$f":"Planning!H23","v":0},{"$f":"Planning!X23","v":0},{"$f":"IF(OR(W39=\"1\",AND(W39<>\"1\",G39=Lists!$A$17)),Y39,0)","v":0},null,{"$f":"IF(AND(W39=\"2\",G39<>Lists!$A$17),AA39,Z39)","v":""},"",{"$f":"Planning!Y23","v":{"v":0,"d":"0.00"}},{"$f":"'Month 5'!M39+'Month 5'!N39-'Month 5'!O39","v":{"v":0,"d":"0.00"}},null,"","",{"$f":"SUMIFS($J$25:$J$224,$C$25:$C$224,$C39,$G$25:$G$224,Lists!$A$16)","v":0},0,null,"",null,{"$f":"IF(C39=0,\"\",LEFT(INDEX(Lists!$H$5:$H$49,MATCH(C39,Lists!$G$5:$G$49,0),1),1))","v":""},null,{"$f":"'Month 5'!H39+'Month 5'!I39-'Month 5'!J39","v":0},"","",null,"0"]
[{"$f":"Planning!A24","v":"I016"},{"$f":"Planning!B24","v":0},{"$f":"Planning!C24","v":0},{"$f":"Planning!D24","v":0},{"$f":"Planning!E24","v":0},{"$f":"IF(Planning!G24<>0,Planning!G24,\"\")","v":""},{"$f":"Planning!H24","v":0},{"$f":"Planning!X24","v":0},{"$f":"IF(OR(W40=\"1\",AND(W40<>\"1\",G40=Lists!$A$17)),Y40,0)","v":0},null,{"$f":"IF(AND(W40=\"2\",G40<>Lists!$A$17),AA40,Z40)","v":""},"",{"$f":"Planning!Y24","v":{"v":0,"d":"0.00"}},{"$f":"'Month 5'!M40+'Month 5'!N40-'Month 5'!O40","v":{"v":0,"d":"0.00"}},null,"","",{"$f":"SUMIFS($J$25:$J$224,$C$25:$C$224,$C40,$G$25:$G$224,Lists!$A$16)","v":0},0,null,"",null,{"$f":"IF(C40=0,\"\",LEFT(INDEX(Lists!$H$5:$H$49,MATCH(C40,Lists!$G$5:$G$49,0),1),1))","v":""},null,{"$f":"'Month 5'!H40+'Month 5'!I40-'Month 5'!J40","v":0},"","",null,"0"]
[{"$f":"Planning!A25","v":"I017"},{"$f":"Planning!B25","v":0},{"$f":"Planning!C25","v":0},{"$f":"Planning!D25","v":0},{"$f":"Planning!E25","v":0},{"$f":"IF(Planning!G25<>0,Planning!G25,\"\")","v":""},{"$f":"Planning!H25","v":0},{"$f":"Planning!X25","v":0},{"$f":"IF(OR(W41=\"1\",AND(W41<>\"1\",G41=Lists!$A$17)),Y41,0)","v":0},null,{"$f":"IF(AND(W41=\"2\",G41<>Lists!$A$17),AA41,Z41)","v":""},"",{"$f":"Planning!Y25","v":{"v":0,"d":"0.00"}},{"$f":"'Month 5'!M41+'Month 5'!N41-'Month 5'!O41","v":{"v":0,"d":"0.00"}},null,"","",{"$f":"SUMIFS($J$25:$J$224,$C$25:$C$224,$C41,$G$25:$G$224,Lists!$A$16)","v":0},0,null,"",null,{"$f":"IF(C41=0,\"\",LEFT(INDEX(Lists!$H$5:$H$49,MATCH(C41,Lists!$G$5:$G$49,0),1),1))","v":""},null,{"$f":"'Month 5'!H41+'Month 5'!I41-'Month 5'!J41","v":0},"","",null,"0"]
[{"$f":"Planning!A26","v":"I018"},{"$f":"Planning!B26","v":0},{"$f":"Planning!C26","v":0},{"$f":"Planning!D26","v":0},{"$f":"Planning!E26","v":0},{"$f":"IF(Planning!G26<>0,Planning!G26,\"\")","v":""},{"$f":"Planning!H26","v":0},{"$f":"Planning!X26","v":0},{"$f":"IF(OR(W42=\"1\",AND(W42<>\"1\",G42=Lists!$A$17)),Y42,0)","v":0},null,{"$f":"IF(AND(W42=\"2\",G42<>Lists!$A$17),AA42,Z42)","v":""},"",{"$f":"Planning!Y26","v":{"v":0,"d":"0.00"}},{"$f":"'Month 5'!M42+'Month 5'!N42-'Month 5'!O42","v":{"v":0,"d":"0.00"}},null,"","",{"$f":"SUMIFS($J$25:$J$224,$C$25:$C$224,$C42,$G$25:$G$224,Lists!$A$16)","v":0},0,null,"",null,{"$f":"IF(C42=0,\"\",LEFT(INDEX(Lists!$H$5:$H$49,MATCH(C42,Lists!$G$5:$G$49,0),1),1))","v":""},null,{"$f":"'Month 5'!H42+'Month 5'!I42-'Month 5'!J42","v":0},"","",null,"0"]
[{"$f":"Planning!A27","v":"I019"},{"$f":"Planning!B27","v":0},{"$f":"Planning!C27","v":0},{"$f":"Planning!D27","v":0},{"$f":"Planning!E27","v":0},{"$f":"IF(Planning!G27<>0,Planning!G27,\"\")","v":""},{"$f":"Planning!H27","v":0},{"$f":"Planning!X27","v":0},{"$f":"IF(OR(W43=\"1\",AND(W43<>\"1\",G43=Lists!$A$17)),Y43,0)","v":0},null,{"$f":"IF(AND(W43=\"2\",G43<>Lists!$A$17),AA43,Z43)","v":""},"",{"$f":"Planning!Y27","v":{"v":0,"d":"0.00"}},{"$f":"'Month 5'!M43+'Month 5'!N43-'Month 5'!O43","v":{"v":0,"d":"0.00"}},null,"","",{"$f":"SUMIFS($J$25:$J$224,$C$25:$C$224,$C43,$G$25:$G$224,Lists!$A$16)","v":0},0,null,"",null,{"$f":"IF(C43=0,\"\",LEFT(INDEX(Lists!$H$5:$H$49,MATCH(C43,Lists!$G$5:$G$49,0),1),1))","v":""},null,{"$f":"'Month 5'!H43+'Month 5'!I43-'Month 5'!J43","v":0},"","",null,"0"]
[{"$f":"Planning!A28","v":"I020"},{"$f":"Planning!B28","v":0},{"$f":"Planning!C28","v":0},{"$f":"Planning!D28","v":0},{"$f":"Planning!E28","v":0},{"$f":"IF(Planning!G28<>0,Planning!G28,\"\")","v":""},{"$f":"Planning!H28","v":0},{"$f":"Planning!X28","v":0},{"$f":"IF(OR(W44=\"1\",AND(W44<>\"1\",G44=Lists!$A$17)),Y44,0)","v":0},null,{"$f":"IF(AND(W44=\"2\",G44<>Lists!$A$17),AA44,Z44)","v":""},"",{"$f":"Planning!Y28","v":{"v":0,"d":"0.00"}},{"$f":"'Month 5'!M44+'Month 5'!N44-'Month 5'!O44","v":{"v":0,"d":"0.00"}},null,"","",{"$f":"SUMIFS($J$25:$J$224,$C$25:$C$224,$C44,$G$25:$G$224,Lists!$A$16)","v":0},0,null,"",null,{"$f":"IF(C44=0,\"\",LEFT(INDEX(Lists!$H$5:$H$49,MATCH(C44,Lists!$G$5:$G$49,0),1),1))","v":""},null,{"$f":"'Month 5'!H44+'Month 5'!I44-'Month 5'!J44","v":0},"","",null,"0"]
[{"$f":"Planning!A29","v":"I021"},{"$f":"Planning!B29","v":0},{"$f":"Planning!C29","v":0},{"$f":"Planning!D29","v":0},{"$f":"Planning!E29","v":0},{"$f":"IF(Planning!G29<>0,Planning!G29,\"\")","v":""},{"$f":"Planning!H29","v":0},{"$f":"Planning!X29","v":0},{"$f":"IF(OR(W45=\"1\",AND(W45<>\"1\",G45=Lists!$A$17)),Y45,0)","v":0},null,{"$f":"IF(AND(W45=\"2\",G45<>Lists!$A$17),AA45,Z45)","v":""},"",{"$f":"Planning!Y29","v":{"v":0,"d":"0.00"}},{"$f":"'Month 5'!M45+'Month 5'!N45-'Month 5'!O45","v":{"v":0,"d":"0.00"}},null,"","",{"$f":"SUMIFS($J$25:$J$224,$C$25:$C$224,$C45,$G$25:$G$224,Lists!$A$16)","v":0},0,null,"",null,{"$f":"IF(C45=0,\"\",LEFT(INDEX(Lists!$H$5:$H$49,MATCH(C45,Lists!$G$5:$G$49,0),1),1))","v":""},null,{"$f":"'Month 5'!H45+'Month 5'!I45-'Month 5'!J45","v":0},"","",null,"0"]
[{"$f":"Planning!A30","v":"I022"},{"$f":"Planning!B30","v":0},{"$f":"Planning!C30","v":0},{"$f":"Planning!D30","v":0},{"$f":"Planning!E30","v":0},{"$f":"IF(Planning!G30<>0,Planning!G30,\"\")","v":""},{"$f":"Planning!H30","v":0},{"$f":"Planning!X30","v":0},{"$f":"IF(OR(W46=\"1\",AND(W46<>\"1\",G46=Lists!$A$17)),Y46,0)","v":0},null,{"$f":"IF(AND(W46=\"2\",G46<>Lists!$A$17),AA46,Z46)","v":""},"",{"$f":"Planning!Y30","v":{"v":0,"d":"0.00"}},{"$f":"'Month 5'!M46+'Month 5'!N46-'Month 5'!O46","v":{"v":0,"d":"0.00"}},null,"","",{"$f":"SUMIFS($J$25:$J$224,$C$25:$C$224,$C46,$G$25:$G$224,Lists!$A$16)","v":0},0,null,"",null,{"$f":"IF(C46=0,\"\",LEFT(INDEX(Lists!$H$5:$H$49,MATCH(C46,Lists!$G$5:$G$49,0),1),1))","v":""},null,{"$f":"'Month 5'!H46+'Month 5'!I46-'Month 5'!J46","v":0},"","",null,"0"]
[{"$f":"Planning!A31","v":"I023"},{"$f":"Planning!B31","v":0},{"$f":"Planning!C31","v":0},{"$f":"Planning!D31","v":0},{"$f":"Planning!E31","v":0},{"$f":"IF(Planning!G31<>0,Planning!G31,\"\")","v":""},{"$f":"Planning!H31","v":0},{"$f":"Planning!X31","v":0},{"$f":"IF(OR(W47=\"1\",AND(W47<>\"1\",G47=Lists!$A$17)),Y47,0)","v":0},null,{"$f":"IF(AND(W47=\"2\",G47<>Lists!$A$17),AA47,Z47)","v":""},"",{"$f":"Planning!Y31","v":{"v":0,"d":"0.00"}},{"$f":"'Month 5'!M47+'Month 5'!N47-'Month 5'!O47","v":{"v":0,"d":"0.00"}},null,"","",{"$f":"SUMIFS($J$25:$J$224,$C$25:$C$224,$C47,$G$25:$G$224,Lists!$A$16)","v":0},0,null,"",null,{"$f":"IF(C47=0,\"\",LEFT(INDEX(Lists!$H$5:$H$49,MATCH(C47,Lists!$G$5:$G$49,0),1),1))","v":""},null,{"$f":"'Month 5'!H47+'Month 5'!I47-'Month 5'!J47","v":0},"","",null,"0"]
[{"$f":"Planning!A32","v":"I024"},{"$f":"Planning!B32","v":0},{"$f":"Planning!C32","v":0},{"$f":"Planning!D32","v":0},{"$f":"Planning!E32","v":0},{"$f":"IF(Planning!G32<>0,Planning!G32,\"\")","v":""},{"$f":"Planning!H32","v":0},{"$f":"Planning!X32","v":0},{"$f":"IF(OR(W48=\"1\",AND(W48<>\"1\",G48=Lists!$A$17)),Y48,0)","v":0},null,{"$f":"IF(AND(W48=\"2\",G48<>Lists!$A$17),AA48,Z48)","v":""},"",{"$f":"Planning!Y32","v":{"v":0,"d":"0.00"}},{"$f":"'Month 5'!M48+'Month 5'!N48-'Month 5'!O48","v":{"v":0,"d":"0.00"}},null,"","",{"$f":"SUMIFS($J$25:$J$224,$C$25:$C$224,$C48,$G$25:$G$224,Lists!$A$16)","v":0},0,null,"",null,{"$f":"IF(C48=0,\"\",LEFT(INDEX(Lists!$H$5:$H$49,MATCH(C48,Lists!$G$5:$G$49,0),1),1))","v":""},null,{"$f":"'Month 5'!H48+'Month 5'!I48-'Month 5'!J48","v":0},"","",null,"0"]
[{"$f":"Planning!A33","v":"I025"},{"$f":"Planning!B33","v":0},{"$f":"Planning!C33","v":0},{"$f":"Planning!D33","v":0},{"$f":"Planning!E33","v":0},{"$f":"IF(Planning!G33<>0,Planning!G33,\"\")","v":""},{"$f":"Planning!H33","v":0},{"$f":"Planning!X33","v":0},{"$f":"IF(OR(W49=\"1\",AND(W49<>\"1\",G49=Lists!$A$17)),Y49,0)","v":0},null,{"$f":"IF(AND(W49=\"2\",G49<>Lists!$A$17),AA49,Z49)","v":""},"",{"$f":"Planning!Y33","v":{"v":0,"d":"0.00"}},{"$f":"'Month 5'!M49+'Month 5'!N49-'Month 5'!O49","v":{"v":0,"d":"0.00"}},null,"","",{"$f":"SUMIFS($J$25:$J$224,$C$25:$C$224,$C49,$G$25:$G$224,Lists!$A$16)","v":0},0,null,"",null,{"$f":"IF(C49=0,\"\",LEFT(INDEX(Lists!$H$5:$H$49,MATCH(C49,Lists!$G$5:$G$49,0),1),1))","v":""},null,{"$f":"'Month 5'!H49+'Month 5'!I49-'Month 5'!J49","v":0},"","",null,"0"]
[{"$f":"Planning!A34","v":"I026"},{"$f":"Planning!B34","v":0},{"$f":"Planning!C34","v":0},{"$f":"Planning!D34","v":0},{"$f":"Planning!E34","v":0},{"$f":"IF(Planning!G34<>0,Planning!G34,\"\")","v":""},{"$f":"Planning!H34","v":0},{"$f":"Planning!X34","v":0},{"$f":"IF(OR(W50=\"1\",AND(W50<>\"1\",G50=Lists!$A$17)),Y50,0)","v":0},null,{"$f":"IF(AND(W50=\"2\",G50<>Lists!$A$17),AA50,Z50)","v":""},"",{"$f":"Planning!Y34","v":{"v":0,"d":"0.00"}},{"$f":"'Month 5'!M50+'Month 5'!N50-'Month 5'!O50","v":{"v":0,"d":"0.00"}},null,"","",{"$f":"SUMIFS($J$25:$J$224,$C$25:$C$224,$C50,$G$25:$G$224,Lists!$A$16)","v":0},0,null,"",null,{"$f":"IF(C50=0,\"\",LEFT(INDEX(Lists!$H$5:$H$49,MATCH(C50,Lists!$G$5:$G$49,0),1),1))","v":""},null,{"$f":"'Month 5'!H50+'Month 5'!I50-'Month 5'!J50","v":0},"","",null,"0"]
[{"$f":"Planning!A35","v":"I027"},{"$f":"Planning!B35","v":0},{"$f":"Planning!C35","v":0},{"$f":"Planning!D35","v":0},{"$f":"Planning!E35","v":0},{"$f":"IF(Planning!G35<>0,Planning!G35,\"\")","v":""},{"$f":"Planning!H35","v":0},{"$f":"Planning!X35","v":0},{"$f":"IF(OR(W51=\"1\",AND(W51<>\"1\",G51=Lists!$A$17)),Y51,0)","v":0},null,{"$f":"IF(AND(W51=\"2\",G51<>Lists!$A$17),AA51,Z51)","v":""},"",{"$f":"Planning!Y35","v":{"v":0,"d":"0.00"}},{"$f":"'Month 5'!M51+'Month 5'!N51-'Month 5'!O51","v":{"v":0,"d":"0.00"}},null,"","",{"$f":"SUMIFS($J$25:$J$224,$C$25:$C$224,$C51,$G$25:$G$224,Lists!$A$16)","v":0},0,null,"",null,{"$f":"IF(C51=0,\"\",LEFT(INDEX(Lists!$H$5:$H$49,MATCH(C51,Lists!$G$5:$G$49,0),1),1))","v":""},null,{"$f":"'Month 5'!H51+'Month 5'!I51-'Month 5'!J51","v":0},"","",null,"0"]
[{"$f":"Planning!A36","v":"I028"},{"$f":"Planning!B36","v":0},{"$f":"Planning!C36","v":0},{"$f":"Planning!D36","v":0},{"$f":"Planning!E36","v":0},{"$f":"IF(Planning!G36<>0,Planning!G36,\"\")","v":""},{"$f":"Planning!H36","v":0},{"$f":"Planning!X36","v":0},{"$f":"IF(OR(W52=\"1\",AND(W52<>\"1\",G52=Lists!$A$17)),Y52,0)","v":0},null,{"$f":"IF(AND(W52=\"2\",G52<>Lists!$A$17),AA52,Z52)","v":""},"",{"$f":"Planning!Y36","v":{"v":0,"d":"0.00"}},{"$f":"'Month 5'!M52+'Month 5'!N52-'Month 5'!O52","v":{"v":0,"d":"0.00"}},null,"","",{"$f":"SUMIFS($J$25:$J$224,$C$25:$C$224,$C52,$G$25:$G$224,Lists!$A$16)","v":0},0,null,"",null,{"$f":"IF(C52=0,\"\",LEFT(INDEX(Lists!$H$5:$H$49,MATCH(C52,Lists!$G$5:$G$49,0),1),1))","v":""},null,{"$f":"'Month 5'!H52+'Month 5'!I52-'Month 5'!J52","v":0},"","",null,"0"]
[{"$f":"Planning!A37","v":"I029"},{"$f":"Planning!B37","v":0},{"$f":"Planning!C37","v":0},{"$f":"Planning!D37","v":0},{"$f":"Planning!E37","v":0},{"$f":"IF(Planning!G37<>0,Planning!G37,\"\")","v":""},{"$f":"Planning!H37","v":0},{"$f":"Planning!X37","v":0},{"$f":"IF(OR(W53=\"1\",AND(W53<>\"1\",G53=Lists!$A$17)),Y53,0)","v":0},null,{"$f":"IF(AND(W53=\"2\",G53<>Lists!$A$17),AA53,Z53)","v":""},"",{"$f":"Planning!Y37","v":{"v":0,"d":"0.00"}},{"$f":"'Month 5'!M53+'Month 5'!N53-'Month 5'!O53","v":{"v":0,"d":"0.00"}},null,"","",{"$f":"SUMIFS($J$25:$J$224,$C$25:$C$224,$C53,$G$25:$G$224,Lists!$A$16)","v":0},0,null,"",null,{"$f":"IF(C53=0,\"\",LEFT(INDEX(Lists!$H$5:$H$49,MATCH(C53,Lists!$G$5:$G$49,0),1),1))","v":""},null,{"$f":"'Month 5'!H53+'Month 5'!I53-'Month 5'!J53","v":0},"","",null,"0"]
[{"$f":"Planning!A38","v":"I030"},{"$f":"Planning!B38","v":0},{"$f":"Planning!C38","v":0},{"$f":"Planning!D38","v":0},{"$f":"Planning!E38","v":0},{"$f":"IF(Planning!G38<>0,Planning!G38,\"\")","v":""},{"$f":"Planning!H38","v":0},{"$f":"Planning!X38","v":0},{"$f":"IF(OR(W54=\"1\",AND(W54<>\"1\",G54=Lists!$A$17)),Y54,0)","v":0},null,{"$f":"IF(AND(W54=\"2\",G54<>Lists!$A$17),AA54,Z54)","v":""},"",{"$f":"Planning!Y38","v":{"v":0,"d":"0.00"}},{"$f":"'Month 5'!M54+'Month 5'!N54-'Month 5'!O54","v":{"v":0,"d":"0.00"}},null,"","",{"$f":"SUMIFS($J$25:$J$224,$C$25:$C$224,$C54,$G$25:$G$224,Lists!$A$16)","v":0},0,null,"",null,{"$f":"IF(C54=0,\"\",LEFT(INDEX(Lists!$H$5:$H$49,MATCH(C54,Lists!$G$5:$G$49,0),1),1))","v":""},null,{"$f":"'Month 5'!H54+'Month 5'!I54-'Month 5'!J54","v":0},"","",null,"0"]
[{"$f":"Planning!A39","v":"I031"},{"$f":"Planning!B39","v":0},{"$f":"Planning!C39","v":0},{"$f":"Planning!D39","v":0},{"$f":"Planning!E39","v":0},{"$f":"IF(Planning!G39<>0,Planning!G39,\"\")","v":""},{"$f":"Planning!H39","v":0},{"$f":"Planning!X39","v":0},{"$f":"IF(OR(W55=\"1\",AND(W55<>\"1\",G55=Lists!$A$17)),Y55,0)","v":0},null,{"$f":"IF(AND(W55=\"2\",G55<>Lists!$A$17),AA55,Z55)","v":""},"",{"$f":"Planning!Y39","v":{"v":0,"d":"0.00"}},{"$f":"'Month 5'!M55+'Month 5'!N55-'Month 5'!O55","v":{"v":0,"d":"0.00"}},null,"","",{"$f":"SUMIFS($J$25:$J$224,$C$25:$C$224,$C55,$G$25:$G$224,Lists!$A$16)","v":0},0,null,"",null,{"$f":"IF(C55=0,\"\",LEFT(INDEX(Lists!$H$5:$H$49,MATCH(C55,Lists!$G$5:$G$49,0),1),1))","v":""},null,{"$f":"'Month 5'!H55+'Month 5'!I55-'Month 5'!J55","v":0},"","",null,"0"]
[{"$f":"Planning!A40","v":"I032"},{"$f":"Planning!B40","v":0},{"$f":"Planning!C40","v":0},{"$f":"Planning!D40","v":0},{"$f":"Planning!E40","v":0},{"$f":"IF(Planning!G40<>0,Planning!G40,\"\")","v":""},{"$f":"Planning!H40","v":0},{"$f":"Planning!X40","v":0},{"$f":"IF(OR(W56=\"1\",AND(W56<>\"1\",G56=Lists!$A$17)),Y56,0)","v":0},null,{"$f":"IF(AND(W56=\"2\",G56<>Lists!$A$17),AA56,Z56)","v":""},"",{"$f":"Planning!Y40","v":{"v":0,"d":"0.00"}},{"$f":"'Month 5'!M56+'Month 5'!N56-'Month 5'!O56","v":{"v":0,"d":"0.00"}},null,"","",{"$f":"SUMIFS($J$25:$J$224,$C$25:$C$224,$C56,$G$25:$G$224,Lists!$A$16)","v":0},0,null,"",null,{"$f":"IF(C56=0,\"\",LEFT(INDEX(Lists!$H$5:$H$49,MATCH(C56,Lists!$G$5:$G$49,0),1),1))","v":""},null,{"$f":"'Month 5'!H56+'Month 5'!I56-'Month 5'!J56","v":0},"","",null,"0"]
[{"$f":"Planning!A41","v":"I033"},{"$f":"Planning!B41","v":0},{"$f":"Planning!C41","v":0},{"$f":"Planning!D41","v":0},{"$f":"Planning!E41","v":0},{"$f":"IF(Planning!G41<>0,Planning!G41,\"\")","v":""},{"$f":"Planning!H41","v":0},{"$f":"Planning!X41","v":0},{"$f":"IF(OR(W57=\"1\",AND(W57<>\"1\",G57=Lists!$A$17)),Y57,0)","v":0},null,{"$f":"IF(AND(W57=\"2\",G57<>Lists!$A$17),AA57,Z57)","v":""},{"$f":"IF($U57=ExcluirDelPLogro,\"\",IF(AND(H57=0,I57=0,J57=0),\"\",K57))","v":""},{"$f":"Planning!Y41","v":{"v":0,"d":"0.00"}},{"$f":"'Month 5'!M57+'Month 5'!N57-'Month 5'!O57","v":{"v":0,"d":"0.00"}},null,"",{"$f":"IF($U57=ExcluirDelPLogro,\"\",IF(AND(M57=0,N57=0,O57=0),\"\",P57))","v":""},{"$f":"SUMIFS($J$25:$J$224,$C$25:$C$224,$C57,$G$25:$G$224,Lists!$A$16)","v":0},0,null,"",null,{"$f":"IF(C57=0,\"\",LEFT(INDEX(Lists!$H$5:$H$49,MATCH(C57,Lists!$G$5:$G$49,0),1),1))","v":""},null,{"$f":"'Month 5'!H57+'Month 5'!I57-'Month 5'!J57","v":0},"",{"$f":"IF(AND(H57=0,I57=0,J57=0),\"\",IF(J57>0,H57/J57,0))","v":""},null,"0"]
[{"$f":"Planning!A42","v":"I034"},{"$f":"Planning!B42","v":0},{"$f":"Planning!C42","v":0},{"$f":"Planning!D42","v":0},{"$f":"Planning!E42","v":0},{"$f":"IF(Planning!G42<>0,Planning!G42,\"\")","v":""},{"$f":"Planning!H42","v":0},{"$f":"Planning!X42","v":0},{"$f":"IF(OR(W58=\"1\",AND(W58<>\"1\",G58=Lists!$A$17)),Y58,0)","v":0},null,{"$f":"IF(AND(W58=\"2\",G58<>Lists!$A$17),AA58,Z58)","v":""},"",{"$f":"Planning!Y42","v":{"v":0,"d":"0.00"}},{"$f":"'Month 5'!M58+'Month 5'!N58-'Month 5'!O58","v":{"v":0,"d":"0.00"}},null,"","",{"$f":"SUMIFS($J$25:$J$224,$C$25:$C$224,$C58,$G$25:$G$224,Lists!$A$16)","v":0},0,null,"",null,{"$f":"IF(C58=0,\"\",LEFT(INDEX(Lists!$H$5:$H$49,MATCH(C58,Lists!$G$5:$G$49,0),1),1))","v":""},null,{"$f":"'Month 5'!H58+'Month 5'!I58-'Month 5'!J58","v":0},"","",null,"0"]
[{"$f":"Planning!A43","v":"I035"},{"$f":"Planning!B43","v":0},{"$f":"Planning!C43","v":0},{"$f":"Planning!D43","v":0},{"$f":"Planning!E43","v":0},{"$f":"IF(Planning!G43<>0,Planning!G43,\"\")","v":""},{"$f":"Planning!H43","v":0},{"$f":"Planning!X43","v":0},{"$f":"IF(OR(W59=\"1\",AND(W59<>\"1\",G59=Lists!$A$17)),Y59,0)","v":0},null,{"$f":"IF(AND(W59=\"2\",G59<>Lists!$A$17),AA59,Z59)","v":""},"",{"$f":"Planning!Y43","v":{"v":0,"d":"0.00"}},{"$f":"'Month 5'!M59+'Month 5'!N59-'Month 5'!O59","v":{"v":0,"d":"0.00"}},null,"","",{"$f":"SUMIFS($J$25:$J$224,$C$25:$C$224,$C59,$G$25:$G$224,Lists!$A$16)","v":0},0,null,"",null,{"$f":"IF(C59=0,\"\",LEFT(INDEX(Lists!$H$5:$H$49,MATCH(C59,Lists!$G$5:$G$49,0),1),1))","v":""},null,{"$f":"'Month 5'!H59+'Month 5'!I59-'Month 5'!J59","v":0},"","",null,"0"]
[{"$f":"Planning!A44","v":"I036"},{"$f":"Planning!B44","v":0},{"$f":"Planning!C44","v":0},{"$f":"Planning!D44","v":0},{"$f":"Planning!E44","v":0},{"$f":"IF(Planning!G44<>0,Planning!G44,\"\")","v":""},{"$f":"Planning!H44","v":0},{"$f":"Planning!X44","v":0},{"$f":"IF(OR(W60=\"1\",AND(W60<>\"1\",G60=Lists!$A$17)),Y60,0)","v":0},null,{"$f":"IF(AND(W60=\"2\",G60<>Lists!$A$17),AA60,Z60)","v":""},"",{"$f":"Planning!Y44","v":{"v":0,"d":"0.00"}},{"$f":"'Month 5'!M60+'Month 5'!N60-'Month 5'!O60","v":{"v":0,"d":"0.00"}},null,"","",{"$f":"SUMIFS($J$25:$J$224,$C$25:$C$224,$C60,$G$25:$G$224,Lists!$A$16)","v":0},0,null,"",null,{"$f":"IF(C60=0,\"\",LEFT(INDEX(Lists!$H$5:$H$49,MATCH(C60,Lists!$G$5:$G$49,0),1),1))","v":""},null,{"$f":"'Month 5'!H60+'Month 5'!I60-'Month 5'!J60","v":0},"","",null,"0"]
[{"$f":"Planning!A45","v":"I037"},{"$f":"Planning!B45","v":0},{"$f":"Planning!C45","v":0},{"$f":"Planning!D45","v":0},{"$f":"Planning!E45","v":0},{"$f":"IF(Planning!G45<>0,Planning!G45,\"\")","v":""},{"$f":"Planning!H45","v":0},{"$f":"Planning!X45","v":0},{"$f":"IF(OR(W61=\"1\",AND(W61<>\"1\",G61=Lists!$A$17)),Y61,0)","v":0},null,{"$f":"IF(AND(W61=\"2\",G61<>Lists!$A$17),AA61,Z61)","v":""},"",{"$f":"Planning!Y45","v":{"v":0,"d":"0.00"}},{"$f":"'Month 5'!M61+'Month 5'!N61-'Month 5'!O61","v":{"v":0,"d":"0.00"}},null,"","",{"$f":"SUMIFS($J$25:$J$224,$C$25:$C$224,$C61,$G$25:$G$224,Lists!$A$16)","v":0},0,null,"",null,{"$f":"IF(C61=0,\"\",LEFT(INDEX(Lists!$H$5:$H$49,MATCH(C61,Lists!$G$5:$G$49,0),1),1))","v":""},null,{"$f":"'Month 5'!H61+'Month 5'!I61-'Month 5'!J61","v":0},"","",null,"0"]
[{"$f":"Planning!A46","v":"I038"},{"$f":"Planning!B46","v":0},{"$f":"Planning!C46","v":0},{"$f":"Planning!D46","v":0},{"$f":"Planning!E46","v":0},{"$f":"IF(Planning!G46<>0,Planning!G46,\"\")","v":""},{"$f":"Planning!H46","v":0},{"$f":"Planning!X46","v":0},{"$f":"IF(OR(W62=\"1\",AND(W62<>\"1\",G62=Lists!$A$17)),Y62,0)","v":0},null,{"$f":"IF(AND(W62=\"2\",G62<>Lists!$A$17),AA62,Z62)","v":""},"",{"$f":"Planning!Y46","v":{"v":0,"d":"0.00"}},{"$f":"'Month 5'!M62+'Month 5'!N62-'Month 5'!O62","v":{"v":0,"d":"0.00"}},null,"","",{"$f":"SUMIFS($J$25:$J$224,$C$25:$C$224,$C62,$G$25:$G$224,Lists!$A$16)","v":0},0,null,"",null,{"$f":"IF(C62=0,\"\",LEFT(INDEX(Lists!$H$5:$H$49,MATCH(C62,Lists!$G$5:$G$49,0),1),1))","v":""},null,{"$f":"'Month 5'!H62+'Month 5'!I62-'Month 5'!J62","v":0},"","",null,"0"]
[{"$f":"Planning!A47","v":"I039"},{"$f":"Planning!B47","v":0},{"$f":"Planning!C47","v":0},{"$f":"Planning!D47","v":0},{"$f":"Planning!E47","v":0},{"$f":"IF(Planning!G47<>0,Planning!G47,\"\")","v":""},{"$f":"Planning!H47","v":0},{"$f":"Planning!X47","v":0},{"$f":"IF(OR(W63=\"1\",AND(W63<>\"1\",G63=Lists!$A$17)),Y63,0)","v":0},null,{"$f":"IF(AND(W63=\"2\",G63<>Lists!$A$17),AA63,Z63)","v":""},"",{"$f":"Planning!Y47","v":{"v":0,"d":"0.00"}},{"$f":"'Month 5'!M63+'Month 5'!N63-'Month 5'!O63","v":{"v":0,"d":"0.00"}},null,"","",{"$f":"SUMIFS($J$25:$J$224,$C$25:$C$224,$C63,$G$25:$G$224,Lists!$A$16)","v":0},0,null,"",null,{"$f":"IF(C63=0,\"\",LEFT(INDEX(Lists!$H$5:$H$49,MATCH(C63,Lists!$G$5:$G$49,0),1),1))","v":""},null,{"$f":"'Month 5'!H63+'Month 5'!I63-'Month 5'!J63","v":0},"","",null,"0"]
[{"$f":"Planning!A48","v":"I040"},{"$f":"Planning!B48","v":0},{"$f":"Planning!C48","v":0},{"$f":"Planning!D48","v":0},{"$f":"Planning!E48","v":0},{"$f":"IF(Planning!G48<>0,Planning!G48,\"\")","v":""},{"$f":"Planning!H48","v":0},{"$f":"Planning!X48","v":0},{"$f":"IF(OR(W64=\"1\",AND(W64<>\"1\",G64=Lists!$A$17)),Y64,0)","v":0},null,{"$f":"IF(AND(W64=\"2\",G64<>Lists!$A$17),AA64,Z64)","v":""},"",{"$f":"Planning!Y48","v":{"v":0,"d":"0.00"}},{"$f":"'Month 5'!M64+'Month 5'!N64-'Month 5'!O64","v":{"v":0,"d":"0.00"}},null,"","",{"$f":"SUMIFS($J$25:$J$224,$C$25:$C$224,$C64,$G$25:$G$224,Lists!$A$16)","v":0},0,null,"",null,{"$f":"IF(C64=0,\"\",LEFT(INDEX(Lists!$H$5:$H$49,MATCH(C64,Lists!$G$5:$G$49,0),1),1))","v":""},null,{"$f":"'Month 5'!H64+'Month 5'!I64-'Month 5'!J64","v":0},"","",null,"0"]
[{"$f":"Planning!A49","v":"I041"},{"$f":"Planning!B49","v":0},{"$f":"Planning!C49","v":0},{"$f":"Planning!D49","v":0},{"$f":"Planning!E49","v":0},{"$f":"IF(Planning!G49<>0,Planning!G49,\"\")","v":""},{"$f":"Planning!H49","v":0},{"$f":"Planning!X49","v":0},{"$f":"IF(OR(W65=\"1\",AND(W65<>\"1\",G65=Lists!$A$17)),Y65,0)","v":0},null,{"$f":"IF(AND(W65=\"2\",G65<>Lists!$A$17),AA65,Z65)","v":""},"",{"$f":"Planning!Y49","v":{"v":0,"d":"0.00"}},{"$f":"'Month 5'!M65+'Month 5'!N65-'Month 5'!O65","v":{"v":0,"d":"0.00"}},null,"","",{"$f":"SUMIFS($J$25:$J$224,$C$25:$C$224,$C65,$G$25:$G$224,Lists!$A$16)","v":0},0,null,"",null,{"$f":"IF(C65=0,\"\",LEFT(INDEX(Lists!$H$5:$H$49,MATCH(C65,Lists!$G$5:$G$49,0),1),1))","v":""},null,{"$f":"'Month 5'!H65+'Month 5'!I65-'Month 5'!J65","v":0},"","",null,"0"]
[{"$f":"Planning!A50","v":"I042"},{"$f":"Planning!B50","v":0},{"$f":"Planning!C50","v":0},{"$f":"Planning!D50","v":0},{"$f":"Planning!E50","v":0},{"$f":"IF(Planning!G50<>0,Planning!G50,\"\")","v":""},{"$f":"Planning!H50","v":0},{"$f":"Planning!X50","v":0},{"$f":"IF(OR(W66=\"1\",AND(W66<>\"1\",G66=Lists!$A$17)),Y66,0)","v":0},null,{"$f":"IF(AND(W66=\"2\",G66<>Lists!$A$17),AA66,Z66)","v":""},"",{"$f":"Planning!Y50","v":{"v":0,"d":"0.00"}},{"$f":"'Month 5'!M66+'Month 5'!N66-'Month 5'!O66","v":{"v":0,"d":"0.00"}},null,"","",{"$f":"SUMIFS($J$25:$J$224,$C$25:$C$224,$C66,$G$25:$G$224,Lists!$A$16)","v":0},0,null,"",null,{"$f":"IF(C66=0,\"\",LEFT(INDEX(Lists!$H$5:$H$49,MATCH(C66,Lists!$G$5:$G$49,0),1),1))","v":""},null,{"$f":"'Month 5'!H66+'Month 5'!I66-'Month 5'!J66","v":0},"","",null,"0"]
[{"$f":"Planning!A51","v":"I043"},{"$f":"Planning!B51","v":0},{"$f":"Planning!C51","v":0},{"$f":"Planning!D51","v":0},{"$f":"Planning!E51","v":0},{"$f":"IF(Planning!G51<>0,Planning!G51,\"\")","v":""},{"$f":"Planning!H51","v":0},{"$f":"Planning!X51","v":0},{"$f":"IF(OR(W67=\"1\",AND(W67<>\"1\",G67=Lists!$A$17)),Y67,0)","v":0},null,{"$f":"IF(AND(W67=\"2\",G67<>Lists!$A$17),AA67,Z67)","v":""},"",{"$f":"Planning!Y51","v":{"v":0,"d":"0.00"}},{"$f":"'Month 5'!M67+'Month 5'!N67-'Month 5'!O67","v":{"v":0,"d":"0.00"}},null,"","",{"$f":"SUMIFS($J$25:$J$224,$C$25:$C$224,$C67,$G$25:$G$224,Lists!$A$16)","v":0},0,null,"",null,{"$f":"IF(C67=0,\"\",LEFT(INDEX(Lists!$H$5:$H$49,MATCH(C67,Lists!$G$5:$G$49,0),1),1))","v":""},null,{"$f":"'Month 5'!H67+'Month 5'!I67-'Month 5'!J67","v":0},"","",null,"0"]
[{"$f":"Planning!A52","v":"I044"},{"$f":"Planning!B52","v":0},{"$f":"Planning!C52","v":0},{"$f":"Planning!D52","v":0},{"$f":"Planning!E52","v":0},{"$f":"IF(Planning!G52<>0,Planning!G52,\"\")","v":""},{"$f":"Planning!H52","v":0},{"$f":"Planning!X52","v":0},{"$f":"IF(OR(W68=\"1\",AND(W68<>\"1\",G68=Lists!$A$17)),Y68,0)","v":0},null,{"$f":"IF(AND(W68=\"2\",G68<>Lists!$A$17),AA68,Z68)","v":""},"",{"$f":"Planning!Y52","v":{"v":0,"d":"0.00"}},{"$f":"'Month 5'!M68+'Month 5'!N68-'Month 5'!O68","v":{"v":0,"d":"0.00"}},null,"","",{"$f":"SUMIFS($J$25:$J$224,$C$25:$C$224,$C68,$G$25:$G$224,Lists!$A$16)","v":0},0,null,"",null,{"$f":"IF(C68=0,\"\",LEFT(INDEX(Lists!$H$5:$H$49,MATCH(C68,Lists!$G$5:$G$49,0),1),1))","v":""},null,{"$f":"'Month 5'!H68+'Month 5'!I68-'Month 5'!J68","v":0},"","",null,"0"]
[{"$f":"Planning!A53","v":"I045"},{"$f":"Planning!B53","v":0},{"$f":"Planning!C53","v":0},{"$f":"Planning!D53","v":0},{"$f":"Planning!E53","v":0},{"$f":"IF(Planning!G53<>0,Planning!G53,\"\")","v":""},{"$f":"Planning!H53","v":0},{"$f":"Planning!X53","v":0},{"$f":"IF(OR(W69=\"1\",AND(W69<>\"1\",G69=Lists!$A$17)),Y69,0)","v":0},null,{"$f":"IF(AND(W69=\"2\",G69<>Lists!$A$17),AA69,Z69)","v":""},"",{"$f":"Planning!Y53","v":{"v":0,"d":"0.00"}},{"$f":"'Month 5'!M69+'Month 5'!N69-'Month 5'!O69","v":{"v":0,"d":"0.00"}},null,"","",{"$f":"SUMIFS($J$25:$J$224,$C$25:$C$224,$C69,$G$25:$G$224,Lists!$A$16)","v":0},0,null,"",null,{"$f":"IF(C69=0,\"\",LEFT(INDEX(Lists!$H$5:$H$49,MATCH(C69,Lists!$G$5:$G$49,0),1),1))","v":""},null,{"$f":"'Month 5'!H69+'Month 5'!I69-'Month 5'!J69","v":0},"","",null,"0"]
[{"$f":"Planning!A54","v":"I046"},{"$f":"Planning!B54","v":0},{"$f":"Planning!C54","v":0},{"$f":"Planning!D54","v":0},{"$f":"Planning!E54","v":0},{"$f":"IF(Planning!G54<>0,Planning!G54,\"\")","v":""},{"$f":"Planning!H54","v":0},{"$f":"Planning!X54","v":0},{"$f":"IF(OR(W70=\"1\",AND(W70<>\"1\",G70=Lists!$A$17)),Y70,0)","v":0},null,{"$f":"IF(AND(W70=\"2\",G70<>Lists!$A$17),AA70,Z70)","v":""},"",{"$f":"Planning!Y54","v":{"v":0,"d":"0.00"}},{"$f":"'Month 5'!M70+'Month 5'!N70-'Month 5'!O70","v":{"v":0,"d":"0.00"}},null,"","",{"$f":"SUMIFS($J$25:$J$224,$C$25:$C$224,$C70,$G$25:$G$224,Lists!$A$16)","v":0},0,null,"",null,{"$f":"IF(C70=0,\"\",LEFT(INDEX(Lists!$H$5:$H$49,MATCH(C70,Lists!$G$5:$G$49,0),1),1))","v":""},null,{"$f":"'Month 5'!H70+'Month 5'!I70-'Month 5'!J70","v":0},"","",null,"0"]
[{"$f":"Planning!A55","v":"I047"},{"$f":"Planning!B55","v":0},{"$f":"Planning!C55","v":0},{"$f":"Planning!D55","v":0},{"$f":"Planning!E55","v":0},{"$f":"IF(Planning!G55<>0,Planning!G55,\"\")","v":""},{"$f":"Planning!H55","v":0},{"$f":"Planning!X55","v":0},{"$f":"IF(OR(W71=\"1\",AND(W71<>\"1\",G71=Lists!$A$17)),Y71,0)","v":0},null,{"$f":"IF(AND(W71=\"2\",G71<>Lists!$A$17),AA71,Z71)","v":""},"",{"$f":"Planning!Y55","v":{"v":0,"d":"0.00"}},{"$f":"'Month 5'!M71+'Month 5'!N71-'Month 5'!O71","v":{"v":0,"d":"0.00"}},null,"","",{"$f":"SUMIFS($J$25:$J$224,$C$25:$C$224,$C71,$G$25:$G$224,Lists!$A$16)","v":0},0,null,"",null,{"$f":"IF(C71=0,\"\",LEFT(INDEX(Lists!$H$5:$H$49,MATCH(C71,Lists!$G$5:$G$49,0),1),1))","v":""},null,{"$f":"'Month 5'!H71+'Month 5'!I71-'Month 5'!J71","v":0},"","",null,"0"]
[{"$f":"Planning!A56","v":"I048"},{"$f":"Planning!B56","v":0},{"$f":"Planning!C56","v":0},{"$f":"Planning!D56","v":0},{"$f":"Planning!E56","v":0},{"$f":"IF(Planning!G56<>0,Planning!G56,\"\")","v":""},{"$f":"Planning!H56","v":0},{"$f":"Planning!X56","v":0},{"$f":"IF(OR(W72=\"1\",AND(W72<>\"1\",G72=Lists!$A$17)),Y72,0)","v":0},null,{"$f":"IF(AND(W72=\"2\",G72<>Lists!$A$17),AA72,Z72)","v":""},"",{"$f":"Planning!Y56","v":{"v":0,"d":"0.00"}},{"$f":"'Month 5'!M72+'Month 5'!N72-'Month 5'!O72","v":{"v":0,"d":"0.00"}},null,"","",{"$f":"SUMIFS($J$25:$J$224,$C$25:$C$224,$C72,$G$25:$G$224,Lists!$A$16)","v":0},0,null,"",null,{"$f":"IF(C72=0,\"\",LEFT(INDEX(Lists!$H$5:$H$49,MATCH(C72,Lists!$G$5:$G$49,0),1),1))","v":""},null,{"$f":"'Month 5'!H72+'Month 5'!I72-'Month 5'!J72","v":0},"","",null,"0"]
[{"$f":"Planning!A57","v":"I049"},{"$f":"Planning!B57","v":0},{"$f":"Planning!C57","v":0},{"$f":"Planning!D57","v":0},{"$f":"Planning!E57","v":0},{"$f":"IF(Planning!G57<>0,Planning!G57,\"\")","v":""},{"$f":"Planning!H57","v":0},{"$f":"Planning!X57","v":0},{"$f":"IF(OR(W73=\"1\",AND(W73<>\"1\",G73=Lists!$A$17)),Y73,0)","v":0},null,{"$f":"IF(AND(W73=\"2\",G73<>Lists!$A$17),AA73,Z73)","v":""},"",{"$f":"Planning!Y57","v":{"v":0,"d":"0.00"}},{"$f":"'Month 5'!M73+'Month 5'!N73-'Month 5'!O73","v":{"v":0,"d":"0.00"}},null,"","",{"$f":"SUMIFS($J$25:$J$224,$C$25:$C$224,$C73,$G$25:$G$224,Lists!$A$16)","v":0},0,null,"",null,{"$f":"IF(C73=0,\"\",LEFT(INDEX(Lists!$H$5:$H$49,MATCH(C73,Lists!$G$5:$G$49,0),1),1))","v":""},null,{"$f":"'Month 5'!H73+'Month 5'!I73-'Month 5'!J73","v":0},"","",null,"0"]
[{"$f":"Planning!A58","v":"I050"},{"$f":"Planning!B58","v":0},{"$f":"Planning!C58","v":0},{"$f":"Planning!D58","v":0},{"$f":"Planning!E58","v":0},{"$f":"IF(Planning!G58<>0,Planning!G58,\"\")","v":""},{"$f":"Planning!H58","v":0},{"$f":"Planning!X58","v":0},{"$f":"IF(OR(W74=\"1\",AND(W74<>\"1\",G74=Lists!$A$17)),Y74,0)","v":0},null,{"$f":"IF(AND(W74=\"2\",G74<>Lists!$A$17),AA74,Z74)","v":""},"",{"$f":"Planning!Y58","v":{"v":0,"d":"0.00"}},{"$f":"'Month 5'!M74+'Month 5'!N74-'Month 5'!O74","v":{"v":0,"d":"0.00"}},null,"","",{"$f":"SUMIFS($J$25:$J$224,$C$25:$C$224,$C74,$G$25:$G$224,Lists!$A$16)","v":0},0,null,"",null,{"$f":"IF(C74=0,\"\",LEFT(INDEX(Lists!$H$5:$H$49,MATCH(C74,Lists!$G$5:$G$49,0),1),1))","v":""},null,{"$f":"'Month 5'!H74+'Month 5'!I74-'Month 5'!J74","v":0},"","",null,"0"]
[{"$f":"Planning!A59","v":"I051"},{"$f":"Planning!B59","v":0},{"$f":"Planning!C59","v":0},{"$f":"Planning!D59","v":0},{"$f":"Planning!E59","v":0},{"$f":"IF(Planning!G59<>0,Planning!G59,\"\")","v":""},{"$f":"Planning!H59","v":0},{"$f":"Planning!X59","v":0},{"$f":"IF(OR(W75=\"1\",AND(W75<>\"1\",G75=Lists!$A$17)),Y75,0)","v":0},null,{"$f":"IF(AND(W75=\"2\",G75<>Lists!$A$17),AA75,Z75)","v":""},"",{"$f":"Planning!Y59","v":{"v":0,"d":"0.00"}},{"$f":"'Month 5'!M75+'Month 5'!N75-'Month 5'!O75","v":{"v":0,"d":"0.00"}},null,"","",{"$f":"SUMIFS($J$25:$J$224,$C$25:$C$224,$C75,$G$25:$G$224,Lists!$A$16)","v":0},0,null,"",null,{"$f":"IF(C75=0,\"\",LEFT(INDEX(Lists!$H$5:$H$49,MATCH(C75,Lists!$G$5:$G$49,0),1),1))","v":""},null,{"$f":"'Month 5'!H75+'Month 5'!I75-'Month 5'!J75","v":0},"","",null,"0"]
[{"$f":"Planning!A60","v":"I052"},{"$f":"Planning!B60","v":0},{"$f":"Planning!C60","v":0},{"$f":"Planning!D60","v":0},{"$f":"Planning!E60","v":0},{"$f":"IF(Planning!G60<>0,Planning!G60,\"\")","v":""},{"$f":"Planning!H60","v":0},{"$f":"Planning!X60","v":0},{"$f":"IF(OR(W76=\"1\",AND(W76<>\"1\",G76=Lists!$A$17)),Y76,0)","v":0},null,{"$f":"IF(AND(W76=\"2\",G76<>Lists!$A$17),AA76,Z76)","v":""},"",{"$f":"Planning!Y60","v":{"v":0,"d":"0.00"}},{"$f":"'Month 5'!M76+'Month 5'!N76-'Month 5'!O76","v":{"v":0,"d":"0.00"}},null,"","",{"$f":"SUMIFS($J$25:$J$224,$C$25:$C$224,$C76,$G$25:$G$224,Lists!$A$16)","v":0},0,null,"",null,{"$f":"IF(C76=0,\"\",LEFT(INDEX(Lists!$H$5:$H$49,MATCH(C76,Lists!$G$5:$G$49,0),1),1))","v":""},null,{"$f":"'Month 5'!H76+'Month 5'!I76-'Month 5'!J76","v":0},"","",null,"0"]
[{"$f":"Planning!A61","v":"I053"},{"$f":"Planning!B61","v":0},{"$f":"Planning!C61","v":0},{"$f":"Planning!D61","v":0},{"$f":"Planning!E61","v":0},{"$f":"IF(Planning!G61<>0,Planning!G61,\"\")","v":""},{"$f":"Planning!H61","v":0},{"$f":"Planning!X61","v":0},{"$f":"IF(OR(W77=\"1\",AND(W77<>\"1\",G77=Lists!$A$17)),Y77,0)","v":0},null,{"$f":"IF(AND(W77=\"2\",G77<>Lists!$A$17),AA77,Z77)","v":""},"",{"$f":"Planning!Y61","v":{"v":0,"d":"0.00"}},{"$f":"'Month 5'!M77+'Month 5'!N77-'Month 5'!O77","v":{"v":0,"d":"0.00"}},null,"","",{"$f":"SUMIFS($J$25:$J$224,$C$25:$C$224,$C77,$G$25:$G$224,Lists!$A$16)","v":0},0,null,"",null,{"$f":"IF(C77=0,\"\",LEFT(INDEX(Lists!$H$5:$H$49,MATCH(C77,Lists!$G$5:$G$49,0),1),1))","v":""},null,{"$f":"'Month 5'!H77+'Month 5'!I77-'Month 5'!J77","v":0},"","",null,"0"]
[{"$f":"Planning!A62","v":"I054"},{"$f":"Planning!B62","v":0},{"$f":"Planning!C62","v":0},{"$f":"Planning!D62","v":0},{"$f":"Planning!E62","v":0},{"$f":"IF(Planning!G62<>0,Planning!G62,\"\")","v":""},{"$f":"Planning!H62","v":0},{"$f":"Planning!X62","v":0},{"$f":"IF(OR(W78=\"1\",AND(W78<>\"1\",G78=Lists!$A$17)),Y78,0)","v":0},null,{"$f":"IF(AND(W78=\"2\",G78<>Lists!$A$17),AA78,Z78)","v":""},"",{"$f":"Planning!Y62","v":{"v":0,"d":"0.00"}},{"$f":"'Month 5'!M78+'Month 5'!N78-'Month 5'!O78","v":{"v":0,"d":"0.00"}},null,"","",{"$f":"SUMIFS($J$25:$J$224,$C$25:$C$224,$C78,$G$25:$G$224,Lists!$A$16)","v":0},0,null,"",null,{"$f":"IF(C78=0,\"\",LEFT(INDEX(Lists!$H$5:$H$49,MATCH(C78,Lists!$G$5:$G$49,0),1),1))","v":""},null,{"$f":"'Month 5'!H78+'Month 5'!I78-'Month 5'!J78","v":0},"","",null,"0"]
[{"$f":"Planning!A63","v":"I055"},{"$f":"Planning!B63","v":0},{"$f":"Planning!C63","v":0},{"$f":"Planning!D63","v":0},{"$f":"Planning!E63","v":0},{"$f":"IF(Planning!G63<>0,Planning!G63,\"\")","v":""},{"$f":"Planning!H63","v":0},{"$f":"Planning!X63","v":0},{"$f":"IF(OR(W79=\"1\",AND(W79<>\"1\",G79=Lists!$A$17)),Y79,0)","v":0},null,{"$f":"IF(AND(W79=\"2\",G79<>Lists!$A$17),AA79,Z79)","v":""},"",{"$f":"Planning!Y63","v":{"v":0,"d":"0.00"}},{"$f":"'Month 5'!M79+'Month 5'!N79-'Month 5'!O79","v":{"v":0,"d":"0.00"}},null,"","",{"$f":"SUMIFS($J$25:$J$224,$C$25:$C$224,$C79,$G$25:$G$224,Lists!$A$16)","v":0},0,null,"",null,{"$f":"IF(C79=0,\"\",LEFT(INDEX(Lists!$H$5:$H$49,MATCH(C79,Lists!$G$5:$G$49,0),1),1))","v":""},null,{"$f":"'Month 5'!H79+'Month 5'!I79-'Month 5'!J79","v":0},"","",null,"0"]
[{"$f":"Planning!A64","v":"I056"},{"$f":"Planning!B64","v":0},{"$f":"Planning!C64","v":0},{"$f":"Planning!D64","v":0},{"$f":"Planning!E64","v":0},{"$f":"IF(Planning!G64<>0,Planning!G64,\"\")","v":""},{"$f":"Planning!H64","v":0},{"$f":"Planning!X64","v":0},{"$f":"IF(OR(W80=\"1\",AND(W80<>\"1\",G80=Lists!$A$17)),Y80,0)","v":0},null,{"$f":"IF(AND(W80=\"2\",G80<>Lists!$A$17),AA80,Z80)","v":""},"",{"$f":"Planning!Y64","v":{"v":0,"d":"0.00"}},{"$f":"'Month 5'!M80+'Month 5'!N80-'Month 5'!O80","v":{"v":0,"d":"0.00"}},null,"","",{"$f":"SUMIFS($J$25:$J$224,$C$25:$C$224,$C80,$G$25:$G$224,Lists!$A$16)","v":0},0,null,"",null,{"$f":"IF(C80=0,\"\",LEFT(INDEX(Lists!$H$5:$H$49,MATCH(C80,Lists!$G$5:$G$49,0),1),1))","v":""},null,{"$f":"'Month 5'!H80+'Month 5'!I80-'Month 5'!J80","v":0},"","",null,"0"]
[{"$f":"Planning!A65","v":"I057"},{"$f":"Planning!B65","v":0},{"$f":"Planning!C65","v":0},{"$f":"Planning!D65","v":0},{"$f":"Planning!E65","v":0},{"$f":"IF(Planning!G65<>0,Planning!G65,\"\")","v":""},{"$f":"Planning!H65","v":0},{"$f":"Planning!X65","v":0},{"$f":"IF(OR(W81=\"1\",AND(W81<>\"1\",G81=Lists!$A$17)),Y81,0)","v":0},null,{"$f":"IF(AND(W81=\"2\",G81<>Lists!$A$17),AA81,Z81)","v":""},"",{"$f":"Planning!Y65","v":{"v":0,"d":"0.00"}},{"$f":"'Month 5'!M81+'Month 5'!N81-'Month 5'!O81","v":{"v":0,"d":"0.00"}},null,"","",{"$f":"SUMIFS($J$25:$J$224,$C$25:$C$224,$C81,$G$25:$G$224,Lists!$A$16)","v":0},0,null,"",null,{"$f":"IF(C81=0,\"\",LEFT(INDEX(Lists!$H$5:$H$49,MATCH(C81,Lists!$G$5:$G$49,0),1),1))","v":""},null,{"$f":"'Month 5'!H81+'Month 5'!I81-'Month 5'!J81","v":0},"","",null,"0"]
[{"$f":"Planning!A66","v":"I058"},{"$f":"Planning!B66","v":0},{"$f":"Planning!C66","v":0},{"$f":"Planning!D66","v":0},{"$f":"Planning!E66","v":0},{"$f":"IF(Planning!G66<>0,Planning!G66,\"\")","v":""},{"$f":"Planning!H66","v":0},{"$f":"Planning!X66","v":0},{"$f":"IF(OR(W82=\"1\",AND(W82<>\"1\",G82=Lists!$A$17)),Y82,0)","v":0},null,{"$f":"IF(AND(W82=\"2\",G82<>Lists!$A$17),AA82,Z82)","v":""},"",{"$f":"Planning!Y66","v":{"v":0,"d":"0.00"}},{"$f":"'Month 5'!M82+'Month 5'!N82-'Month 5'!O82","v":{"v":0,"d":"0.00"}},null,"","",{"$f":"SUMIFS($J$25:$J$224,$C$25:$C$224,$C82,$G$25:$G$224,Lists!$A$16)","v":0},0,null,"",null,{"$f":"IF(C82=0,\"\",LEFT(INDEX(Lists!$H$5:$H$49,MATCH(C82,Lists!$G$5:$G$49,0),1),1))","v":""},null,{"$f":"'Month 5'!H82+'Month 5'!I82-'Month 5'!J82","v":0},"","",null,"0"]
[{"$f":"Planning!A67","v":"I059"},{"$f":"Planning!B67","v":0},{"$f":"Planning!C67","v":0},{"$f":"Planning!D67","v":0},{"$f":"Planning!E67","v":0},{"$f":"IF(Planning!G67<>0,Planning!G67,\"\")","v":""},{"$f":"Planning!H67","v":0},{"$f":"Planning!X67","v":0},{"$f":"IF(OR(W83=\"1\",AND(W83<>\"1\",G83=Lists!$A$17)),Y83,0)","v":0},null,{"$f":"IF(AND(W83=\"2\",G83<>Lists!$A$17),AA83,Z83)","v":""},"",{"$f":"Planning!Y67","v":{"v":0,"d":"0.00"}},{"$f":"'Month 5'!M83+'Month 5'!N83-'Month 5'!O83","v":{"v":0,"d":"0.00"}},null,"","",{"$f":"SUMIFS($J$25:$J$224,$C$25:$C$224,$C83,$G$25:$G$224,Lists!$A$16)","v":0},0,null,"",null,{"$f":"IF(C83=0,\"\",LEFT(INDEX(Lists!$H$5:$H$49,MATCH(C83,Lists!$G$5:$G$49,0),1),1))","v":""},null,{"$f":"'Month 5'!H83+'Month 5'!I83-'Month 5'!J83","v":0},"","",null,"0"]
[{"$f":"Planning!A68","v":"I060"},{"$f":"Planning!B68","v":0},{"$f":"Planning!C68","v":0},{"$f":"Planning!D68","v":0},{"$f":"Planning!E68","v":0},{"$f":"IF(Planning!G68<>0,Planning!G68,\"\")","v":""},{"$f":"Planning!H68","v":0},{"$f":"Planning!X68","v":0},{"$f":"IF(OR(W84=\"1\",AND(W84<>\"1\",G84=Lists!$A$17)),Y84,0)","v":0},null,{"$f":"IF(AND(W84=\"2\",G84<>Lists!$A$17),AA84,Z84)","v":""},"",{"$f":"Planning!Y68","v":{"v":0,"d":"0.00"}},{"$f":"'Month 5'!M84+'Month 5'!N84-'Month 5'!O84","v":{"v":0,"d":"0.00"}},null,"","",{"$f":"SUMIFS($J$25:$J$224,$C$25:$C$224,$C84,$G$25:$G$224,Lists!$A$16)","v":0},0,null,"",null,{"$f":"IF(C84=0,\"\",LEFT(INDEX(Lists!$H$5:$H$49,MATCH(C84,Lists!$G$5:$G$49,0),1),1))","v":""},null,{"$f":"'Month 5'!H84+'Month 5'!I84-'Month 5'!J84","v":0},"","",null,"0"]
[{"$f":"Planning!A69","v":"I061"},{"$f":"Planning!B69","v":0},{"$f":"Planning!C69","v":0},{"$f":"Planning!D69","v":0},{"$f":"Planning!E69","v":0},{"$f":"IF(Planning!G69<>0,Planning!G69,\"\")","v":""},{"$f":"Planning!H69","v":0},{"$f":"Planning!X69","v":0},{"$f":"IF(OR(W85=\"1\",AND(W85<>\"1\",G85=Lists!$A$17)),Y85,0)","v":0},null,{"$f":"IF(AND(W85=\"2\",G85<>Lists!$A$17),AA85,Z85)","v":""},"",{"$f":"Planning!Y69","v":{"v":0,"d":"0.00"}},{"$f":"'Month 5'!M85+'Month 5'!N85-'Month 5'!O85","v":{"v":0,"d":"0.00"}},null,"","",{"$f":"SUMIFS($J$25:$J$224,$C$25:$C$224,$C85,$G$25:$G$224,Lists!$A$16)","v":0},0,null,"",null,{"$f":"IF(C85=0,\"\",LEFT(INDEX(Lists!$H$5:$H$49,MATCH(C85,Lists!$G$5:$G$49,0),1),1))","v":""},null,{"$f":"'Month 5'!H85+'Month 5'!I85-'Month 5'!J85","v":0},"","",null,"0"]
[{"$f":"Planning!A70","v":"I062"},{"$f":"Planning!B70","v":0},{"$f":"Planning!C70","v":0},{"$f":"Planning!D70","v":0},{"$f":"Planning!E70","v":0},{"$f":"IF(Planning!G70<>0,Planning!G70,\"\")","v":""},{"$f":"Planning!H70","v":0},{"$f":"Planning!X70","v":0},{"$f":"IF(OR(W86=\"1\",AND(W86<>\"1\",G86=Lists!$A$17)),Y86,0)","v":0},null,{"$f":"IF(AND(W86=\"2\",G86<>Lists!$A$17),AA86,Z86)","v":""},"",{"$f":"Planning!Y70","v":{"v":0,"d":"0.00"}},{"$f":"'Month 5'!M86+'Month 5'!N86-'Month 5'!O86","v":{"v":0,"d":"0.00"}},null,"","",{"$f":"SUMIFS($J$25:$J$224,$C$25:$C$224,$C86,$G$25:$G$224,Lists!$A$16)","v":0},0,null,"",null,{"$f":"IF(C86=0,\"\",LEFT(INDEX(Lists!$H$5:$H$49,MATCH(C86,Lists!$G$5:$G$49,0),1),1))","v":""},null,{"$f":"'Month 5'!H86+'Month 5'!I86-'Month 5'!J86","v":0},"","",null,"0"]
[{"$f":"Planning!A71","v":"I063"},{"$f":"Planning!B71","v":0},{"$f":"Planning!C71","v":0},{"$f":"Planning!D71","v":0},{"$f":"Planning!E71","v":0},{"$f":"IF(Planning!G71<>0,Planning!G71,\"\")","v":""},{"$f":"Planning!H71","v":0},{"$f":"Planning!X71","v":0},{"$f":"IF(OR(W87=\"1\",AND(W87<>\"1\",G87=Lists!$A$17)),Y87,0)","v":0},null,{"$f":"IF(AND(W87=\"2\",G87<>Lists!$A$17),AA87,Z87)","v":""},"",{"$f":"Planning!Y71","v":{"v":0,"d":"0.00"}},{"$f":"'Month 5'!M87+'Month 5'!N87-'Month 5'!O87","v":{"v":0,"d":"0.00"}},null,"","",{"$f":"SUMIFS($J$25:$J$224,$C$25:$C$224,$C87,$G$25:$G$224,Lists!$A$16)","v":0},0,null,"",null,{"$f":"IF(C87=0,\"\",LEFT(INDEX(Lists!$H$5:$H$49,MATCH(C87,Lists!$G$5:$G$49,0),1),1))","v":""},null,{"$f":"'Month 5'!H87+'Month 5'!I87-'Month 5'!J87","v":0},"","",null,"0"]
[{"$f":"Planning!A72","v":"I064"},{"$f":"Planning!B72","v":0},{"$f":"Planning!C72","v":0},{"$f":"Planning!D72","v":0},{"$f":"Planning!E72","v":0},{"$f":"IF(Planning!G72<>0,Planning!G72,\"\")","v":""},{"$f":"Planning!H72","v":0},{"$f":"Planning!X72","v":0},{"$f":"IF(OR(W88=\"1\",AND(W88<>\"1\",G88=Lists!$A$17)),Y88,0)","v":0},null,{"$f":"IF(AND(W88=\"2\",G88<>Lists!$A$17),AA88,Z88)","v":""},"",{"$f":"Planning!Y72","v":{"v":0,"d":"0.00"}},{"$f":"'Month 5'!M88+'Month 5'!N88-'Month 5'!O88","v":{"v":0,"d":"0.00"}},null,"","",{"$f":"SUMIFS($J$25:$J$224,$C$25:$C$224,$C88,$G$25:$G$224,Lists!$A$16)","v":0},0,null,"",null,{"$f":"IF(C88=0,\"\",LEFT(INDEX(Lists!$H$5:$H$49,MATCH(C88,Lists!$G$5:$G$49,0),1),1))","v":""},null,{"$f":"'Month 5'!H88+'Month 5'!I88-'Month 5'!J88","v":0},"","",null,"0"]
[{"$f":"Planning!A73","v":"I065"},{"$f":"Planning!B73","v":0},{"$f":"Planning!C73","v":0},{"$f":"Planning!D73","v":0},{"$f":"Planning!E73","v":0},{"$f":"IF(Planning!G73<>0,Planning!G73,\"\")","v":""},{"$f":"Planning!H73","v":0},{"$f":"Planning!X73","v":0},{"$f":"IF(OR(W89=\"1\",AND(W89<>\"1\",G89=Lists!$A$17)),Y89,0)","v":0},null,{"$f":"IF(AND(W89=\"2\",G89<>Lists!$A$17),AA89,Z89)","v":""},{"$f":"IF($U89=ExcluirDelPLogro,\"\",IF(AND(H89=0,I89=0,J89=0),\"\",K89))","v":""},{"$f":"Planning!Y73","v":{"v":0,"d":"0.00"}},{"$f":"'Month 5'!M89+'Month 5'!N89-'Month 5'!O89","v":{"v":0,"d":"0.00"}},null,"",{"$f":"IF($U89=ExcluirDelPLogro,\"\",IF(AND(M89=0,N89=0,O89=0),\"\",P89))","v":""},{"$f":"SUMIFS($J$25:$J$224,$C$25:$C$224,$C89,$G$25:$G$224,Lists!$A$16)","v":0},0,null,"",null,{"$f":"IF(C89=0,\"\",LEFT(INDEX(Lists!$H$5:$H$49,MATCH(C89,Lists!$G$5:$G$49,0),1),1))","v":""},null,{"$f":"'Month 5'!H89+'Month 5'!I89-'Month 5'!J89","v":0},"",{"$f":"IF(AND(H89=0,I89=0,J89=0),\"\",IF(J89>0,H89/J89,0))","v":""},null,"0"]
[{"$f":"Planning!A74","v":"I066"},{"$f":"Planning!B74","v":0},{"$f":"Planning!C74","v":0},{"$f":"Planning!D74","v":0},{"$f":"Planning!E74","v":0},{"$f":"IF(Planning!G74<>0,Planning!G74,\"\")","v":""},{"$f":"Planning!H74","v":0},{"$f":"Planning!X74","v":0},{"$f":"IF(OR(W90=\"1\",AND(W90<>\"1\",G90=Lists!$A$17)),Y90,0)","v":0},null,{"$f":"IF(AND(W90=\"2\",G90<>Lists!$A$17),AA90,Z90)","v":""},"",{"$f":"Planning!Y74","v":{"v":0,"d":"0.00"}},{"$f":"'Month 5'!M90+'Month 5'!N90-'Month 5'!O90","v":{"v":0,"d":"0.00"}},null,{"$f":"IF(AND(M90=0,N90=0,O90=0),\"\",IF((M90+N90)>0,O90/(M90+N90),O90))","v":""},"",{"$f":"SUMIFS($J$25:$J$224,$C$25:$C$224,$C90,$G$25:$G$224,Lists!$A$16)","v":0},{"$f":"SUMIFS($O$25:$O$224,$C$25:$C$224,$C90,$G$25:$G$224,\"<>0\")","v":0},null,{"$f":"IF(B90=0,\"\",IF(LEFT(B90,1)=\"1\",\"1\",\"2\"))","v":""},null,{"$f":"IF(C90=0,\"\",LEFT(INDEX(Lists!$H$5:$H$49,MATCH(C90,Lists!$G$5:$G$49,0),1),1))","v":""},null,{"$f":"'Month 5'!H90+'Month 5'!I90-'Month 5'!J90","v":0},{"$f":"IF(AND(H90=0,I90=0,J90=0),\"\",IF((H90+I90)>0,J90/(H90+I90),J90))","v":""},"",null,{"$f":"U90&C90","v":"0"}]
[{"$f":"Planning!A75","v":"I067"},{"$f":"Planning!B75","v":0},{"$f":"Planning!C75","v":0},{"$f":"Planning!D75","v":0},{"$f":"Planning!E75","v":0},{"$f":"IF(Planning!G75<>0,Planning!G75,\"\")","v":""},{"$f":"Planning!H75","v":0},{"$f":"Planning!X75","v":0},{"$f":"IF(OR(W91=\"1\",AND(W91<>\"1\",G91=Lists!$A$17)),Y91,0)","v":0},null,{"$f":"IF(AND(W91=\"2\",G91<>Lists!$A$17),AA91,Z91)","v":""},"",{"$f":"Planning!Y75","v":{"v":0,"d":"0.00"}},{"$f":"'Month 5'!M91+'Month 5'!N91-'Month 5'!O91","v":{"v":0,"d":"0.00"}},null,"","",{"$f":"SUMIFS($J$25:$J$224,$C$25:$C$224,$C91,$G$25:$G$224,Lists!$A$16)","v":0},0,null,"",null,{"$f":"IF(C91=0,\"\",LEFT(INDEX(Lists!$H$5:$H$49,MATCH(C91,Lists!$G$5:$G$49,0),1),1))","v":""},null,{"$f":"'Month 5'!H91+'Month 5'!I91-'Month 5'!J91","v":0},"","",null,"0"]
[{"$f":"Planning!A76","v":"I068"},{"$f":"Planning!B76","v":0},{"$f":"Planning!C76","v":0},{"$f":"Planning!D76","v":0},{"$f":"Planning!E76","v":0},{"$f":"IF(Planning!G76<>0,Planning!G76,\"\")","v":""},{"$f":"Planning!H76","v":0},{"$f":"Planning!X76","v":0},{"$f":"IF(OR(W92=\"1\",AND(W92<>\"1\",G92=Lists!$A$17)),Y92,0)","v":0},null,{"$f":"IF(AND(W92=\"2\",G92<>Lists!$A$17),AA92,Z92)","v":""},"",{"$f":"Planning!Y76","v":{"v":0,"d":"0.00"}},{"$f":"'Month 5'!M92+'Month 5'!N92-'Month 5'!O92","v":{"v":0,"d":"0.00"}},null,"","",{"$f":"SUMIFS($J$25:$J$224,$C$25:$C$224,$C92,$G$25:$G$224,Lists!$A$16)","v":0},0,null,"",null,{"$f":"IF(C92=0,\"\",LEFT(INDEX(Lists!$H$5:$H$49,MATCH(C92,Lists!$G$5:$G$49,0),1),1))","v":""},null,{"$f":"'Month 5'!H92+'Month 5'!I92-'Month 5'!J92","v":0},"","",null,"0"]
[{"$f":"Planning!A77","v":"I069"},{"$f":"Planning!B77","v":0},{"$f":"Planning!C77","v":0},{"$f":"Planning!D77","v":0},{"$f":"Planning!E77","v":0},{"$f":"IF(Planning!G77<>0,Planning!G77,\"\")","v":""},{"$f":"Planning!H77","v":0},{"$f":"Planning!X77","v":0},{"$f":"IF(OR(W93=\"1\",AND(W93<>\"1\",G93=Lists!$A$17)),Y93,0)","v":0},null,{"$f":"IF(AND(W93=\"2\",G93<>Lists!$A$17),AA93,Z93)","v":""},"",{"$f":"Planning!Y77","v":{"v":0,"d":"0.00"}},{"$f":"'Month 5'!M93+'Month 5'!N93-'Month 5'!O93","v":{"v":0,"d":"0.00"}},null,"","",{"$f":"SUMIFS($J$25:$J$224,$C$25:$C$224,$C93,$G$25:$G$224,Lists!$A$16)","v":0},0,null,"",null,{"$f":"IF(C93=0,\"\",LEFT(INDEX(Lists!$H$5:$H$49,MATCH(C93,Lists!$G$5:$G$49,0),1),1))","v":""},null,{"$f":"'Month 5'!H93+'Month 5'!I93-'Month 5'!J93","v":0},"","",null,"0"]
[{"$f":"Planning!A78","v":"I070"},{"$f":"Planning!B78","v":0},{"$f":"Planning!C78","v":0},{"$f":"Planning!D78","v":0},{"$f":"Planning!E78","v":0},{"$f":"IF(Planning!G78<>0,Planning!G78,\"\")","v":""},{"$f":"Planning!H78","v":0},{"$f":"Planning!X78","v":0},{"$f":"IF(OR(W94=\"1\",AND(W94<>\"1\",G94=Lists!$A$17)),Y94,0)","v":0},null,{"$f":"IF(AND(W94=\"2\",G94<>Lists!$A$17),AA94,Z94)","v":""},"",{"$f":"Planning!Y78","v":{"v":0,"d":"0.00"}},{"$f":"'Month 5'!M94+'Month 5'!N94-'Month 5'!O94","v":{"v":0,"d":"0.00"}},null,"","",{"$f":"SUMIFS($J$25:$J$224,$C$25:$C$224,$C94,$G$25:$G$224,Lists!$A$16)","v":0},0,null,"",null,{"$f":"IF(C94=0,\"\",LEFT(INDEX(Lists!$H$5:$H$49,MATCH(C94,Lists!$G$5:$G$49,0),1),1))","v":""},null,{"$f":"'Month 5'!H94+'Month 5'!I94-'Month 5'!J94","v":0},"","",null,"0"]
[{"$f":"Planning!A79","v":"I071"},{"$f":"Planning!B79","v":0},{"$f":"Planning!C79","v":0},{"$f":"Planning!D79","v":0},{"$f":"Planning!E79","v":0},{"$f":"IF(Planning!G79<>0,Planning!G79,\"\")","v":""},{"$f":"Planning!H79","v":0},{"$f":"Planning!X79","v":0},{"$f":"IF(OR(W95=\"1\",AND(W95<>\"1\",G95=Lists!$A$17)),Y95,0)","v":0},null,{"$f":"IF(AND(W95=\"2\",G95<>Lists!$A$17),AA95,Z95)","v":""},"",{"$f":"Planning!Y79","v":{"v":0,"d":"0.00"}},{"$f":"'Month 5'!M95+'Month 5'!N95-'Month 5'!O95","v":{"v":0,"d":"0.00"}},null,"","",{"$f":"SUMIFS($J$25:$J$224,$C$25:$C$224,$C95,$G$25:$G$224,Lists!$A$16)","v":0},0,null,"",null,{"$f":"IF(C95=0,\"\",LEFT(INDEX(Lists!$H$5:$H$49,MATCH(C95,Lists!$G$5:$G$49,0),1),1))","v":""},null,{"$f":"'Month 5'!H95+'Month 5'!I95-'Month 5'!J95","v":0},"","",null,"0"]
[{"$f":"Planning!A80","v":"I072"},{"$f":"Planning!B80","v":0},{"$f":"Planning!C80","v":0},{"$f":"Planning!D80","v":0},{"$f":"Planning!E80","v":0},{"$f":"IF(Planning!G80<>0,Planning!G80,\"\")","v":""},{"$f":"Planning!H80","v":0},{"$f":"Planning!X80","v":0},{"$f":"IF(OR(W96=\"1\",AND(W96<>\"1\",G96=Lists!$A$17)),Y96,0)","v":0},null,{"$f":"IF(AND(W96=\"2\",G96<>Lists!$A$17),AA96,Z96)","v":""},"",{"$f":"Planning!Y80","v":{"v":0,"d":"0.00"}},{"$f":"'Month 5'!M96+'Month 5'!N96-'Month 5'!O96","v":{"v":0,"d":"0.00"}},null,"","",{"$f":"SUMIFS($J$25:$J$224,$C$25:$C$224,$C96,$G$25:$G$224,Lists!$A$16)","v":0},0,null,"",null,{"$f":"IF(C96=0,\"\",LEFT(INDEX(Lists!$H$5:$H$49,MATCH(C96,Lists!$G$5:$G$49,0),1),1))","v":""},null,{"$f":"'Month 5'!H96+'Month 5'!I96-'Month 5'!J96","v":0},"","",null,"0"]
[{"$f":"Planning!A81","v":"I073"},{"$f":"Planning!B81","v":0},{"$f":"Planning!C81","v":0},{"$f":"Planning!D81","v":0},{"$f":"Planning!E81","v":0},{"$f":"IF(Planning!G81<>0,Planning!G81,\"\")","v":""},{"$f":"Planning!H81","v":0},{"$f":"Planning!X81","v":0},{"$f":"IF(OR(W97=\"1\",AND(W97<>\"1\",G97=Lists!$A$17)),Y97,0)","v":0},null,{"$f":"IF(AND(W97=\"2\",G97<>Lists!$A$17),AA97,Z97)","v":""},"",{"$f":"Planning!Y81","v":{"v":0,"d":"0.00"}},{"$f":"'Month 5'!M97+'Month 5'!N97-'Month 5'!O97","v":{"v":0,"d":"0.00"}},null,"","",{"$f":"SUMIFS($J$25:$J$224,$C$25:$C$224,$C97,$G$25:$G$224,Lists!$A$16)","v":0},0,null,"",null,{"$f":"IF(C97=0,\"\",LEFT(INDEX(Lists!$H$5:$H$49,MATCH(C97,Lists!$G$5:$G$49,0),1),1))","v":""},null,{"$f":"'Month 5'!H97+'Month 5'!I97-'Month 5'!J97","v":0},"","",null,"0"]
[{"$f":"Planning!A82","v":"I074"},{"$f":"Planning!B82","v":0},{"$f":"Planning!C82","v":0},{"$f":"Planning!D82","v":0},{"$f":"Planning!E82","v":0},{"$f":"IF(Planning!G82<>0,Planning!G82,\"\")","v":""},{"$f":"Planning!H82","v":0},{"$f":"Planning!X82","v":0},{"$f":"IF(OR(W98=\"1\",AND(W98<>\"1\",G98=Lists!$A$17)),Y98,0)","v":0},null,{"$f":"IF(AND(W98=\"2\",G98<>Lists!$A$17),AA98,Z98)","v":""},"",{"$f":"Planning!Y82","v":{"v":0,"d":"0.00"}},{"$f":"'Month 5'!M98+'Month 5'!N98-'Month 5'!O98","v":{"v":0,"d":"0.00"}},null,"","",{"$f":"SUMIFS($J$25:$J$224,$C$25:$C$224,$C98,$G$25:$G$224,Lists!$A$16)","v":0},0,null,"",null,{"$f":"IF(C98=0,\"\",LEFT(INDEX(Lists!$H$5:$H$49,MATCH(C98,Lists!$G$5:$G$49,0),1),1))","v":""},null,{"$f":"'Month 5'!H98+'Month 5'!I98-'Month 5'!J98","v":0},"","",null,"0"]
[{"$f":"Planning!A83","v":"I075"},{"$f":"Planning!B83","v":0},{"$f":"Planning!C83","v":0},{"$f":"Planning!D83","v":0},{"$f":"Planning!E83","v":0},{"$f":"IF(Planning!G83<>0,Planning!G83,\"\")","v":""},{"$f":"Planning!H83","v":0},{"$f":"Planning!X83","v":0},{"$f":"IF(OR(W99=\"1\",AND(W99<>\"1\",G99=Lists!$A$17)),Y99,0)","v":0},null,{"$f":"IF(AND(W99=\"2\",G99<>Lists!$A$17),AA99,Z99)","v":""},"",{"$f":"Planning!Y83","v":{"v":0,"d":"0.00"}},{"$f":"'Month 5'!M99+'Month 5'!N99-'Month 5'!O99","v":{"v":0,"d":"0.00"}},null,"","",{"$f":"SUMIFS($J$25:$J$224,$C$25:$C$224,$C99,$G$25:$G$224,Lists!$A$16)","v":0},0,null,"",null,{"$f":"IF(C99=0,\"\",LEFT(INDEX(Lists!$H$5:$H$49,MATCH(C99,Lists!$G$5:$G$49,0),1),1))","v":""},null,{"$f":"'Month 5'!H99+'Month 5'!I99-'Month 5'!J99","v":0},"","",null,"0"]
[{"$f":"Planning!A84","v":"I076"},{"$f":"Planning!B84","v":0},{"$f":"Planning!C84","v":0},{"$f":"Planning!D84","v":0},{"$f":"Planning!E84","v":0},{"$f":"IF(Planning!G84<>0,Planning!G84,\"\")","v":""},{"$f":"Planning!H84","v":0},{"$f":"Planning!X84","v":0},{"$f":"IF(OR(W100=\"1\",AND(W100<>\"1\",G100=Lists!$A$17)),Y100,0)","v":0},null,{"$f":"IF(AND(W100=\"2\",G100<>Lists!$A$17),AA100,Z100)","v":""},"",{"$f":"Planning!Y84","v":{"v":0,"d":"0.00"}},{"$f":"'Month 5'!M100+'Month 5'!N100-'Month 5'!O100","v":{"v":0,"d":"0.00"}},null,"","",{"$f":"SUMIFS($J$25:$J$224,$C$25:$C$224,$C100,$G$25:$G$224,Lists!$A$16)","v":0},0,null,"",null,{"$f":"IF(C100=0,\"\",LEFT(INDEX(Lists!$H$5:$H$49,MATCH(C100,Lists!$G$5:$G$49,0),1),1))","v":""},null,{"$f":"'Month 5'!H100+'Month 5'!I100-'Month 5'!J100","v":0},"","",null,"0"]
[{"$f":"Planning!A85","v":"I077"},{"$f":"Planning!B85","v":0},{"$f":"Planning!C85","v":0},{"$f":"Planning!D85","v":0},{"$f":"Planning!E85","v":0},{"$f":"IF(Planning!G85<>0,Planning!G85,\"\")","v":""},{"$f":"Planning!H85","v":0},{"$f":"Planning!X85","v":0},{"$f":"IF(OR(W101=\"1\",AND(W101<>\"1\",G101=Lists!$A$17)),Y101,0)","v":0},null,{"$f":"IF(AND(W101=\"2\",G101<>Lists!$A$17),AA101,Z101)","v":""},"",{"$f":"Planning!Y85","v":{"v":0,"d":"0.00"}},{"$f":"'Month 5'!M101+'Month 5'!N101-'Month 5'!O101","v":{"v":0,"d":"0.00"}},null,"","",{"$f":"SUMIFS($J$25:$J$224,$C$25:$C$224,$C101,$G$25:$G$224,Lists!$A$16)","v":0},0,null,"",null,{"$f":"IF(C101=0,\"\",LEFT(INDEX(Lists!$H$5:$H$49,MATCH(C101,Lists!$G$5:$G$49,0),1),1))","v":""},null,{"$f":"'Month 5'!H101+'Month 5'!I101-'Month 5'!J101","v":0},"","",null,"0"]
[{"$f":"Planning!A86","v":"I078"},{"$f":"Planning!B86","v":0},{"$f":"Planning!C86","v":0},{"$f":"Planning!D86","v":0},{"$f":"Planning!E86","v":0},{"$f":"IF(Planning!G86<>0,Planning!G86,\"\")","v":""},{"$f":"Planning!H86","v":0},{"$f":"Planning!X86","v":0},{"$f":"IF(OR(W102=\"1\",AND(W102<>\"1\",G102=Lists!$A$17)),Y102,0)","v":0},null,{"$f":"IF(AND(W102=\"2\",G102<>Lists!$A$17),AA102,Z102)","v":""},"",{"$f":"Planning!Y86","v":{"v":0,"d":"0.00"}},{"$f":"'Month 5'!M102+'Month 5'!N102-'Month 5'!O102","v":{"v":0,"d":"0.00"}},null,"","",{"$f":"SUMIFS($J$25:$J$224,$C$25:$C$224,$C102,$G$25:$G$224,Lists!$A$16)","v":0},0,null,"",null,{"$f":"IF(C102=0,\"\",LEFT(INDEX(Lists!$H$5:$H$49,MATCH(C102,Lists!$G$5:$G$49,0),1),1))","v":""},null,{"$f":"'Month 5'!H102+'Month 5'!I102-'Month 5'!J102","v":0},"","",null,"0"]
[{"$f":"Planning!A87","v":"I079"},{"$f":"Planning!B87","v":0},{"$f":"Planning!C87","v":0},{"$f":"Planning!D87","v":0},{"$f":"Planning!E87","v":0},{"$f":"IF(Planning!G87<>0,Planning!G87,\"\")","v":""},{"$f":"Planning!H87","v":0},{"$f":"Planning!X87","v":0},{"$f":"IF(OR(W103=\"1\",AND(W103<>\"1\",G103=Lists!$A$17)),Y103,0)","v":0},null,{"$f":"IF(AND(W103=\"2\",G103<>Lists!$A$17),AA103,Z103)","v":""},"",{"$f":"Planning!Y87","v":{"v":0,"d":"0.00"}},{"$f":"'Month 5'!M103+'Month 5'!N103-'Month 5'!O103","v":{"v":0,"d":"0.00"}},null,"","",{"$f":"SUMIFS($J$25:$J$224,$C$25:$C$224,$C103,$G$25:$G$224,Lists!$A$16)","v":0},0,null,"",null,{"$f":"IF(C103=0,\"\",LEFT(INDEX(Lists!$H$5:$H$49,MATCH(C103,Lists!$G$5:$G$49,0),1),1))","v":""},null,{"$f":"'Month 5'!H103+'Month 5'!I103-'Month 5'!J103","v":0},"","",null,"0"]
[{"$f":"Planning!A88","v":"I080"},{"$f":"Planning!B88","v":0},{"$f":"Planning!C88","v":0},{"$f":"Planning!D88","v":0},{"$f":"Planning!E88","v":0},{"$f":"IF(Planning!G88<>0,Planning!G88,\"\")","v":""},{"$f":"Planning!H88","v":0},{"$f":"Planning!X88","v":0},{"$f":"IF(OR(W104=\"1\",AND(W104<>\"1\",G104=Lists!$A$17)),Y104,0)","v":0},null,{"$f":"IF(AND(W104=\"2\",G104<>Lists!$A$17),AA104,Z104)","v":""},"",{"$f":"Planning!Y88","v":{"v":0,"d":"0.00"}},{"$f":"'Month 5'!M104+'Month 5'!N104-'Month 5'!O104","v":{"v":0,"d":"0.00"}},null,"","",{"$f":"SUMIFS($J$25:$J$224,$C$25:$C$224,$C104,$G$25:$G$224,Lists!$A$16)","v":0},0,null,"",null,{"$f":"IF(C104=0,\"\",LEFT(INDEX(Lists!$H$5:$H$49,MATCH(C104,Lists!$G$5:$G$49,0),1),1))","v":""},null,{"$f":"'Month 5'!H104+'Month 5'!I104-'Month 5'!J104","v":0},"","",null,"0"]
[{"$f":"Planning!A89","v":"I081"},{"$f":"Planning!B89","v":0},{"$f":"Planning!C89","v":0},{"$f":"Planning!D89","v":0},{"$f":"Planning!E89","v":0},{"$f":"IF(Planning!G89<>0,Planning!G89,\"\")","v":""},{"$f":"Planning!H89","v":0},{"$f":"Planning!X89","v":0},{"$f":"IF(OR(W105=\"1\",AND(W105<>\"1\",G105=Lists!$A$17)),Y105,0)","v":0},null,{"$f":"IF(AND(W105=\"2\",G105<>Lists!$A$17),AA105,Z105)","v":""},"",{"$f":"Planning!Y89","v":{"v":0,"d":"0.00"}},{"$f":"'Month 5'!M105+'Month 5'!N105-'Month 5'!O105","v":{"v":0,"d":"0.00"}},null,"","",{"$f":"SUMIFS($J$25:$J$224,$C$25:$C$224,$C105,$G$25:$G$224,Lists!$A$16)","v":0},0,null,"",null,{"$f":"IF(C105=0,\"\",LEFT(INDEX(Lists!$H$5:$H$49,MATCH(C105,Lists!$G$5:$G$49,0),1),1))","v":""},null,{"$f":"'Month 5'!H105+'Month 5'!I105-'Month 5'!J105","v":0},"","",null,"0"]
[{"$f":"Planning!A90","v":"I082"},{"$f":"Planning!B90","v":0},{"$f":"Planning!C90","v":0},{"$f":"Planning!D90","v":0},{"$f":"Planning!E90","v":0},{"$f":"IF(Planning!G90<>0,Planning!G90,\"\")","v":""},{"$f":"Planning!H90","v":0},{"$f":"Planning!X90","v":0},{"$f":"IF(OR(W106=\"1\",AND(W106<>\"1\",G106=Lists!$A$17)),Y106,0)","v":0},null,{"$f":"IF(AND(W106=\"2\",G106<>Lists!$A$17),AA106,Z106)","v":""},"",{"$f":"Planning!Y90","v":{"v":0,"d":"0.00"}},{"$f":"'Month 5'!M106+'Month 5'!N106-'Month 5'!O106","v":{"v":0,"d":"0.00"}},null,"","",{"$f":"SUMIFS($J$25:$J$224,$C$25:$C$224,$C106,$G$25:$G$224,Lists!$A$16)","v":0},0,null,"",null,{"$f":"IF(C106=0,\"\",LEFT(INDEX(Lists!$H$5:$H$49,MATCH(C106,Lists!$G$5:$G$49,0),1),1))","v":""},null,{"$f":"'Month 5'!H106+'Month 5'!I106-'Month 5'!J106","v":0},"","",null,"0"]
[{"$f":"Planning!A91","v":"I083"},{"$f":"Planning!B91","v":0},{"$f":"Planning!C91","v":0},{"$f":"Planning!D91","v":0},{"$f":"Planning!E91","v":0},{"$f":"IF(Planning!G91<>0,Planning!G91,\"\")","v":""},{"$f":"Planning!H91","v":0},{"$f":"Planning!X91","v":0},{"$f":"IF(OR(W107=\"1\",AND(W107<>\"1\",G107=Lists!$A$17)),Y107,0)","v":0},null,{"$f":"IF(AND(W107=\"2\",G107<>Lists!$A$17),AA107,Z107)","v":""},"",{"$f":"Planning!Y91","v":{"v":0,"d":"0.00"}},{"$f":"'Month 5'!M107+'Month 5'!N107-'Month 5'!O107","v":{"v":0,"d":"0.00"}},null,"","",{"$f":"SUMIFS($J$25:$J$224,$C$25:$C$224,$C107,$G$25:$G$224,Lists!$A$16)","v":0},0,null,"",null,{"$f":"IF(C107=0,\"\",LEFT(INDEX(Lists!$H$5:$H$49,MATCH(C107,Lists!$G$5:$G$49,0),1),1))","v":""},null,{"$f":"'Month 5'!H107+'Month 5'!I107-'Month 5'!J107","v":0},"","",null,"0"]
[{"$f":"Planning!A92","v":"I084"},{"$f":"Planning!B92","v":0},{"$f":"Planning!C92","v":0},{"$f":"Planning!D92","v":0},{"$f":"Planning!E92","v":0},{"$f":"IF(Planning!G92<>0,Planning!G92,\"\")","v":""},{"$f":"Planning!H92","v":0},{"$f":"Planning!X92","v":0},{"$f":"IF(OR(W108=\"1\",AND(W108<>\"1\",G108=Lists!$A$17)),Y108,0)","v":0},null,{"$f":"IF(AND(W108=\"2\",G108<>Lists!$A$17),AA108,Z108)","v":""},"",{"$f":"Planning!Y92","v":{"v":0,"d":"0.00"}},{"$f":"'Month 5'!M108+'Month 5'!N108-'Month 5'!O108","v":{"v":0,"d":"0.00"}},null,"","",{"$f":"SUMIFS($J$25:$J$224,$C$25:$C$224,$C108,$G$25:$G$224,Lists!$A$16)","v":0},0,null,"",null,{"$f":"IF(C108=0,\"\",LEFT(INDEX(Lists!$H$5:$H$49,MATCH(C108,Lists!$G$5:$G$49,0),1),1))","v":""},null,{"$f":"'Month 5'!H108+'Month 5'!I108-'Month 5'!J108","v":0},"","",null,"0"]
[{"$f":"Planning!A93","v":"I085"},{"$f":"Planning!B93","v":0},{"$f":"Planning!C93","v":0},{"$f":"Planning!D93","v":0},{"$f":"Planning!E93","v":0},{"$f":"IF(Planning!G93<>0,Planning!G93,\"\")","v":""},{"$f":"Planning!H93","v":0},{"$f":"Planning!X93","v":0},{"$f":"IF(OR(W109=\"1\",AND(W109<>\"1\",G109=Lists!$A$17)),Y109,0)","v":0},null,{"$f":"IF(AND(W109=\"2\",G109<>Lists!$A$17),AA109,Z109)","v":""},"",{"$f":"Planning!Y93","v":{"v":0,"d":"0.00"}},{"$f":"'Month 5'!M109+'Month 5'!N109-'Month 5'!O109","v":{"v":0,"d":"0.00"}},null,"","",{"$f":"SUMIFS($J$25:$J$224,$C$25:$C$224,$C109,$G$25:$G$224,Lists!$A$16)","v":0},0,null,"",null,{"$f":"IF(C109=0,\"\",LEFT(INDEX(Lists!$H$5:$H$49,MATCH(C109,Lists!$G$5:$G$49,0),1),1))","v":""},null,{"$f":"'Month 5'!H109+'Month 5'!I109-'Month 5'!J109","v":0},"","",null,"0"]
[{"$f":"Planning!A94","v":"I086"},{"$f":"Planning!B94","v":0},{"$f":"Planning!C94","v":0},{"$f":"Planning!D94","v":0},{"$f":"Planning!E94","v":0},{"$f":"IF(Planning!G94<>0,Planning!G94,\"\")","v":""},{"$f":"Planning!H94","v":0},{"$f":"Planning!X94","v":0},{"$f":"IF(OR(W110=\"1\",AND(W110<>\"1\",G110=Lists!$A$17)),Y110,0)","v":0},null,{"$f":"IF(AND(W110=\"2\",G110<>Lists!$A$17),AA110,Z110)","v":""},"",{"$f":"Planning!Y94","v":{"v":0,"d":"0.00"}},{"$f":"'Month 5'!M110+'Month 5'!N110-'Month 5'!O110","v":{"v":0,"d":"0.00"}},null,"","",{"$f":"SUMIFS($J$25:$J$224,$C$25:$C$224,$C110,$G$25:$G$224,Lists!$A$16)","v":0},0,null,"",null,{"$f":"IF(C110=0,\"\",LEFT(INDEX(Lists!$H$5:$H$49,MATCH(C110,Lists!$G$5:$G$49,0),1),1))","v":""},null,{"$f":"'Month 5'!H110+'Month 5'!I110-'Month 5'!J110","v":0},"","",null,"0"]
[{"$f":"Planning!A95","v":"I087"},{"$f":"Planning!B95","v":0},{"$f":"Planning!C95","v":0},{"$f":"Planning!D95","v":0},{"$f":"Planning!E95","v":0},{"$f":"IF(Planning!G95<>0,Planning!G95,\"\")","v":""},{"$f":"Planning!H95","v":0},{"$f":"Planning!X95","v":0},{"$f":"IF(OR(W111=\"1\",AND(W111<>\"1\",G111=Lists!$A$17)),Y111,0)","v":0},null,{"$f":"IF(AND(W111=\"2\",G111<>Lists!$A$17),AA111,Z111)","v":""},"",{"$f":"Planning!Y95","v":{"v":0,"d":"0.00"}},{"$f":"'Month 5'!M111+'Month 5'!N111-'Month 5'!O111","v":{"v":0,"d":"0.00"}},null,"","",{"$f":"SUMIFS($J$25:$J$224,$C$25:$C$224,$C111,$G$25:$G$224,Lists!$A$16)","v":0},0,null,"",null,{"$f":"IF(C111=0,\"\",LEFT(INDEX(Lists!$H$5:$H$49,MATCH(C111,Lists!$G$5:$G$49,0),1),1))","v":""},null,{"$f":"'Month 5'!H111+'Month 5'!I111-'Month 5'!J111","v":0},"","",null,"0"]
[{"$f":"Planning!A96","v":"I088"},{"$f":"Planning!B96","v":0},{"$f":"Planning!C96","v":0},{"$f":"Planning!D96","v":0},{"$f":"Planning!E96","v":0},{"$f":"IF(Planning!G96<>0,Planning!G96,\"\")","v":""},{"$f":"Planning!H96","v":0},{"$f":"Planning!X96","v":0},{"$f":"IF(OR(W112=\"1\",AND(W112<>\"1\",G112=Lists!$A$17)),Y112,0)","v":0},null,{"$f":"IF(AND(W112=\"2\",G112<>Lists!$A$17),AA112,Z112)","v":""},"",{"$f":"Planning!Y96","v":{"v":0,"d":"0.00"}},{"$f":"'Month 5'!M112+'Month 5'!N112-'Month 5'!O112","v":{"v":0,"d":"0.00"}},null,"","",{"$f":"SUMIFS($J$25:$J$224,$C$25:$C$224,$C112,$G$25:$G$224,Lists!$A$16)","v":0},0,null,"",null,{"$f":"IF(C112=0,\"\",LEFT(INDEX(Lists!$H$5:$H$49,MATCH(C112,Lists!$G$5:$G$49,0),1),1))","v":""},null,{"$f":"'Month 5'!H112+'Month 5'!I112-'Month 5'!J112","v":0},"","",null,"0"]
[{"$f":"Planning!A97","v":"I089"},{"$f":"Planning!B97","v":0},{"$f":"Planning!C97","v":0},{"$f":"Planning!D97","v":0},{"$f":"Planning!E97","v":0},{"$f":"IF(Planning!G97<>0,Planning!G97,\"\")","v":""},{"$f":"Planning!H97","v":0},{"$f":"Planning!X97","v":0},{"$f":"IF(OR(W113=\"1\",AND(W113<>\"1\",G113=Lists!$A$17)),Y113,0)","v":0},null,{"$f":"IF(AND(W113=\"2\",G113<>Lists!$A$17),AA113,Z113)","v":""},"",{"$f":"Planning!Y97","v":{"v":0,"d":"0.00"}},{"$f":"'Month 5'!M113+'Month 5'!N113-'Month 5'!O113","v":{"v":0,"d":"0.00"}},null,"","",{"$f":"SUMIFS($J$25:$J$224,$C$25:$C$224,$C113,$G$25:$G$224,Lists!$A$16)","v":0},0,null,"",null,{"$f":"IF(C113=0,\"\",LEFT(INDEX(Lists!$H$5:$H$49,MATCH(C113,Lists!$G$5:$G$49,0),1),1))","v":""},null,{"$f":"'Month 5'!H113+'Month 5'!I113-'Month 5'!J113","v":0},"","",null,"0"]
[{"$f":"Planning!A98","v":"I090"},{"$f":"Planning!B98","v":0},{"$f":"Planning!C98","v":0},{"$f":"Planning!D98","v":0},{"$f":"Planning!E98","v":0},{"$f":"IF(Planning!G98<>0,Planning!G98,\"\")","v":""},{"$f":"Planning!H98","v":0},{"$f":"Planning!X98","v":0},{"$f":"IF(OR(W114=\"1\",AND(W114<>\"1\",G114=Lists!$A$17)),Y114,0)","v":0},null,{"$f":"IF(AND(W114=\"2\",G114<>Lists!$A$17),AA114,Z114)","v":""},"",{"$f":"Planning!Y98","v":{"v":0,"d":"0.00"}},{"$f":"'Month 5'!M114+'Month 5'!N114-'Month 5'!O114","v":{"v":0,"d":"0.00"}},null,"","",{"$f":"SUMIFS($J$25:$J$224,$C$25:$C$224,$C114,$G$25:$G$224,Lists!$A$16)","v":0},0,null,"",null,{"$f":"IF(C114=0,\"\",LEFT(INDEX(Lists!$H$5:$H$49,MATCH(C114,Lists!$G$5:$G$49,0),1),1))","v":""},null,{"$f":"'Month 5'!H114+'Month 5'!I114-'Month 5'!J114","v":0},"","",null,"0"]
[{"$f":"Planning!A99","v":"I091"},{"$f":"Planning!B99","v":0},{"$f":"Planning!C99","v":0},{"$f":"Planning!D99","v":0},{"$f":"Planning!E99","v":0},{"$f":"IF(Planning!G99<>0,Planning!G99,\"\")","v":""},{"$f":"Planning!H99","v":0},{"$f":"Planning!X99","v":0},{"$f":"IF(OR(W115=\"1\",AND(W115<>\"1\",G115=Lists!$A$17)),Y115,0)","v":0},null,{"$f":"IF(AND(W115=\"2\",G115<>Lists!$A$17),AA115,Z115)","v":""},"",{"$f":"Planning!Y99","v":{"v":0,"d":"0.00"}},{"$f":"'Month 5'!M115+'Month 5'!N115-'Month 5'!O115","v":{"v":0,"d":"0.00"}},null,"","",{"$f":"SUMIFS($J$25:$J$224,$C$25:$C$224,$C115,$G$25:$G$224,Lists!$A$16)","v":0},0,null,"",null,{"$f":"IF(C115=0,\"\",LEFT(INDEX(Lists!$H$5:$H$49,MATCH(C115,Lists!$G$5:$G$49,0),1),1))","v":""},null,{"$f":"'Month 5'!H115+'Month 5'!I115-'Month 5'!J115","v":0},"","",null,"0"]
[{"$f":"Planning!A100","v":"I092"},{"$f":"Planning!B100","v":0},{"$f":"Planning!C100","v":0},{"$f":"Planning!D100","v":0},{"$f":"Planning!E100","v":0},{"$f":"IF(Planning!G100<>0,Planning!G100,\"\")","v":""},{"$f":"Planning!H100","v":0},{"$f":"Planning!X100","v":0},{"$f":"IF(OR(W116=\"1\",AND(W116<>\"1\",G116=Lists!$A$17)),Y116,0)","v":0},null,{"$f":"IF(AND(W116=\"2\",G116<>Lists!$A$17),AA116,Z116)","v":""},"",{"$f":"Planning!Y100","v":{"v":0,"d":"0.00"}},{"$f":"'Month 5'!M116+'Month 5'!N116-'Month 5'!O116","v":{"v":0,"d":"0.00"}},null,"","",{"$f":"SUMIFS($J$25:$J$224,$C$25:$C$224,$C116,$G$25:$G$224,Lists!$A$16)","v":0},0,null,"",null,{"$f":"IF(C116=0,\"\",LEFT(INDEX(Lists!$H$5:$H$49,MATCH(C116,Lists!$G$5:$G$49,0),1),1))","v":""},null,{"$f":"'Month 5'!H116+'Month 5'!I116-'Month 5'!J116","v":0},"","",null,"0"]
[{"$f":"Planning!A101","v":"I093"},{"$f":"Planning!B101","v":0},{"$f":"Planning!C101","v":0},{"$f":"Planning!D101","v":0},{"$f":"Planning!E101","v":0},{"$f":"IF(Planning!G101<>0,Planning!G101,\"\")","v":""},{"$f":"Planning!H101","v":0},{"$f":"Planning!X101","v":0},{"$f":"IF(OR(W117=\"1\",AND(W117<>\"1\",G117=Lists!$A$17)),Y117,0)","v":0},null,{"$f":"IF(AND(W117=\"2\",G117<>Lists!$A$17),AA117,Z117)","v":""},"",{"$f":"Planning!Y101","v":{"v":0,"d":"0.00"}},{"$f":"'Month 5'!M117+'Month 5'!N117-'Month 5'!O117","v":{"v":0,"d":"0.00"}},null,"","",{"$f":"SUMIFS($J$25:$J$224,$C$25:$C$224,$C117,$G$25:$G$224,Lists!$A$16)","v":0},0,null,"",null,{"$f":"IF(C117=0,\"\",LEFT(INDEX(Lists!$H$5:$H$49,MATCH(C117,Lists!$G$5:$G$49,0),1),1))","v":""},null,{"$f":"'Month 5'!H117+'Month 5'!I117-'Month 5'!J117","v":0},"","",null,"0"]
[{"$f":"Planning!A102","v":"I094"},{"$f":"Planning!B102","v":0},{"$f":"Planning!C102","v":0},{"$f":"Planning!D102","v":0},{"$f":"Planning!E102","v":0},{"$f":"IF(Planning!G102<>0,Planning!G102,\"\")","v":""},{"$f":"Planning!H102","v":0},{"$f":"Planning!X102","v":0},{"$f":"IF(OR(W118=\"1\",AND(W118<>\"1\",G118=Lists!$A$17)),Y118,0)","v":0},null,{"$f":"IF(AND(W118=\"2\",G118<>Lists!$A$17),AA118,Z118)","v":""},"",{"$f":"Planning!Y102","v":{"v":0,"d":"0.00"}},{"$f":"'Month 5'!M118+'Month 5'!N118-'Month 5'!O118","v":{"v":0,"d":"0.00"}},null,"","",{"$f":"SUMIFS($J$25:$J$224,$C$25:$C$224,$C118,$G$25:$G$224,Lists!$A$16)","v":0},0,null,"",null,{"$f":"IF(C118=0,\"\",LEFT(INDEX(Lists!$H$5:$H$49,MATCH(C118,Lists!$G$5:$G$49,0),1),1))","v":""},null,{"$f":"'Month 5'!H118+'Month 5'!I118-'Month 5'!J118","v":0},"","",null,"0"]
[{"$f":"Planning!A103","v":"I095"},{"$f":"Planning!B103","v":0},{"$f":"Planning!C103","v":0},{"$f":"Planning!D103","v":0},{"$f":"Planning!E103","v":0},{"$f":"IF(Planning!G103<>0,Planning!G103,\"\")","v":""},{"$f":"Planning!H103","v":0},{"$f":"Planning!X103","v":0},{"$f":"IF(OR(W119=\"1\",AND(W119<>\"1\",G119=Lists!$A$17)),Y119,0)","v":0},null,{"$f":"IF(AND(W119=\"2\",G119<>Lists!$A$17),AA119,Z119)","v":""},"",{"$f":"Planning!Y103","v":{"v":0,"d":"0.00"}},{"$f":"'Month 5'!M119+'Month 5'!N119-'Month 5'!O119","v":{"v":0,"d":"0.00"}},null,"","",{"$f":"SUMIFS($J$25:$J$224,$C$25:$C$224,$C119,$G$25:$G$224,Lists!$A$16)","v":0},0,null,"",null,{"$f":"IF(C119=0,\"\",LEFT(INDEX(Lists!$H$5:$H$49,MATCH(C119,Lists!$G$5:$G$49,0),1),1))","v":""},null,{"$f":"'Month 5'!H119+'Month 5'!I119-'Month 5'!J119","v":0},"","",null,"0"]
[{"$f":"Planning!A104","v":"I096"},{"$f":"Planning!B104","v":0},{"$f":"Planning!C104","v":0},{"$f":"Planning!D104","v":0},{"$f":"Planning!E104","v":0},{"$f":"IF(Planning!G104<>0,Planning!G104,\"\")","v":""},{"$f":"Planning!H104","v":0},{"$f":"Planning!X104","v":0},{"$f":"IF(OR(W120=\"1\",AND(W120<>\"1\",G120=Lists!$A$17)),Y120,0)","v":0},null,{"$f":"IF(AND(W120=\"2\",G120<>Lists!$A$17),AA120,Z120)","v":""},"",{"$f":"Planning!Y104","v":{"v":0,"d":"0.00"}},{"$f":"'Month 5'!M120+'Month 5'!N120-'Month 5'!O120","v":{"v":0,"d":"0.00"}},null,"","",{"$f":"SUMIFS($J$25:$J$224,$C$25:$C$224,$C120,$G$25:$G$224,Lists!$A$16)","v":0},0,null,"",null,{"$f":"IF(C120=0,\"\",LEFT(INDEX(Lists!$H$5:$H$49,MATCH(C120,Lists!$G$5:$G$49,0),1),1))","v":""},null,{"$f":"'Month 5'!H120+'Month 5'!I120-'Month 5'!J120","v":0},"","",null,"0"]
[{"$f":"Planning!A105","v":"I097"},{"$f":"Planning!B105","v":0},{"$f":"Planning!C105","v":0},{"$f":"Planning!D105","v":0},{"$f":"Planning!E105","v":0},{"$f":"IF(Planning!G105<>0,Planning!G105,\"\")","v":""},{"$f":"Planning!H105","v":0},{"$f":"Planning!X105","v":0},{"$f":"IF(OR(W121=\"1\",AND(W121<>\"1\",G121=Lists!$A$17)),Y121,0)","v":0},null,{"$f":"IF(AND(W121=\"2\",G121<>Lists!$A$17),AA121,Z121)","v":""},{"$f":"IF($U121=ExcluirDelPLogro,\"\",IF(AND(H121=0,I121=0,J121=0),\"\",K121))","v":""},{"$f":"Planning!Y105","v":{"v":0,"d":"0.00"}},{"$f":"'Month 5'!M121+'Month 5'!N121-'Month 5'!O121","v":{"v":0,"d":"0.00"}},null,"",{"$f":"IF($U121=ExcluirDelPLogro,\"\",IF(AND(M121=0,N121=0,O121=0),\"\",P121))","v":""},{"$f":"SUMIFS($J$25:$J$224,$C$25:$C$224,$C121,$G$25:$G$224,Lists!$A$16)","v":0},0,null,"",null,{"$f":"IF(C121=0,\"\",LEFT(INDEX(Lists!$H$5:$H$49,MATCH(C121,Lists!$G$5:$G$49,0),1),1))","v":""},null,{"$f":"'Month 5'!H121+'Month 5'!I121-'Month 5'!J121","v":0},"",{"$f":"IF(AND(H121=0,I121=0,J121=0),\"\",IF(J121>0,H121/J121,0))","v":""},null,"0"]
[{"$f":"Planning!A106","v":"I098"},{"$f":"Planning!B106","v":0},{"$f":"Planning!C106","v":0},{"$f":"Planning!D106","v":0},{"$f":"Planning!E106","v":0},{"$f":"IF(Planning!G106<>0,Planning!G106,\"\")","v":""},{"$f":"Planning!H106","v":0},{"$f":"Planning!X106","v":0},{"$f":"IF(OR(W122=\"1\",AND(W122<>\"1\",G122=Lists!$A$17)),Y122,0)","v":0},null,{"$f":"IF(AND(W122=\"2\",G122<>Lists!$A$17),AA122,Z122)","v":""},"",{"$f":"Planning!Y106","v":{"v":0,"d":"0.00"}},{"$f":"'Month 5'!M122+'Month 5'!N122-'Month 5'!O122","v":{"v":0,"d":"0.00"}},null,"","",{"$f":"SUMIFS($J$25:$J$224,$C$25:$C$224,$C122,$G$25:$G$224,Lists!$A$16)","v":0},0,null,"",null,{"$f":"IF(C122=0,\"\",LEFT(INDEX(Lists!$H$5:$H$49,MATCH(C122,Lists!$G$5:$G$49,0),1),1))","v":""},null,{"$f":"'Month 5'!H122+'Month 5'!I122-'Month 5'!J122","v":0},"","",null,"0"]
[{"$f":"Planning!A107","v":"I099"},{"$f":"Planning!B107","v":0},{"$f":"Planning!C107","v":0},{"$f":"Planning!D107","v":0},{"$f":"Planning!E107","v":0},{"$f":"IF(Planning!G107<>0,Planning!G107,\"\")","v":""},{"$f":"Planning!H107","v":0},{"$f":"Planning!X107","v":0},{"$f":"IF(OR(W123=\"1\",AND(W123<>\"1\",G123=Lists!$A$17)),Y123,0)","v":0},null,{"$f":"IF(AND(W123=\"2\",G123<>Lists!$A$17),AA123,Z123)","v":""},"",{"$f":"Planning!Y107","v":{"v":0,"d":"0.00"}},{"$f":"'Month 5'!M123+'Month 5'!N123-'Month 5'!O123","v":{"v":0,"d":"0.00"}},null,"","",{"$f":"SUMIFS($J$25:$J$224,$C$25:$C$224,$C123,$G$25:$G$224,Lists!$A$16)","v":0},0,null,"",null,{"$f":"IF(C123=0,\"\",LEFT(INDEX(Lists!$H$5:$H$49,MATCH(C123,Lists!$G$5:$G$49,0),1),1))","v":""},null,{"$f":"'Month 5'!H123+'Month 5'!I123-'Month 5'!J123","v":0},"","",null,"0"]
[{"$f":"Planning!A108","v":"I100"},{"$f":"Planning!B108","v":0},{"$f":"Planning!C108","v":0},{"$f":"Planning!D108","v":0},{"$f":"Planning!E108","v":0},{"$f":"IF(Planning!G108<>0,Planning!G108,\"\")","v":""},{"$f":"Planning!H108","v":0},{"$f":"Planning!X108","v":0},{"$f":"IF(OR(W124=\"1\",AND(W124<>\"1\",G124=Lists!$A$17)),Y124,0)","v":0},null,{"$f":"IF(AND(W124=\"2\",G124<>Lists!$A$17),AA124,Z124)","v":""},"",{"$f":"Planning!Y108","v":{"v":0,"d":"0.00"}},{"$f":"'Month 5'!M124+'Month 5'!N124-'Month 5'!O124","v":{"v":0,"d":"0.00"}},null,"","",{"$f":"SUMIFS($J$25:$J$224,$C$25:$C$224,$C124,$G$25:$G$224,Lists!$A$16)","v":0},0,null,"",null,{"$f":"IF(C124=0,\"\",LEFT(INDEX(Lists!$H$5:$H$49,MATCH(C124,Lists!$G$5:$G$49,0),1),1))","v":""},null,{"$f":"'Month 5'!H124+'Month 5'!I124-'Month 5'!J124","v":0},"","",null,"0"]
[{"$f":"Planning!A109","v":"I101"},{"$f":"Planning!B109","v":0},{"$f":"Planning!C109","v":0},{"$f":"Planning!D109","v":0},{"$f":"Planning!E109","v":0},{"$f":"IF(Planning!G109<>0,Planning!G109,\"\")","v":""},{"$f":"Planning!H109","v":0},{"$f":"Planning!X109","v":0},{"$f":"IF(OR(W125=\"1\",AND(W125<>\"1\",G125=Lists!$A$17)),Y125,0)","v":0},null,{"$f":"IF(AND(W125=\"2\",G125<>Lists!$A$17),AA125,Z125)","v":""},"",{"$f":"Planning!Y109","v":{"v":0,"d":"0.00"}},{"$f":"'Month 5'!M125+'Month 5'!N125-'Month 5'!O125","v":{"v":0,"d":"0.00"}},null,"","",{"$f":"SUMIFS($J$25:$J$224,$C$25:$C$224,$C125,$G$25:$G$224,Lists!$A$16)","v":0},0,null,"",null,{"$f":"IF(C125=0,\"\",LEFT(INDEX(Lists!$H$5:$H$49,MATCH(C125,Lists!$G$5:$G$49,0),1),1))","v":""},null,{"$f":"'Month 5'!H125+'Month 5'!I125-'Month 5'!J125","v":0},"","",null,"0"]
[{"$f":"Planning!A110","v":"I102"},{"$f":"Planning!B110","v":0},{"$f":"Planning!C110","v":0},{"$f":"Planning!D110","v":0},{"$f":"Planning!E110","v":0},{"$f":"IF(Planning!G110<>0,Planning!G110,\"\")","v":""},{"$f":"Planning!H110","v":0},{"$f":"Planning!X110","v":0},{"$f":"IF(OR(W126=\"1\",AND(W126<>\"1\",G126=Lists!$A$17)),Y126,0)","v":0},null,{"$f":"IF(AND(W126=\"2\",G126<>Lists!$A$17),AA126,Z126)","v":""},"",{"$f":"Planning!Y110","v":{"v":0,"d":"0.00"}},{"$f":"'Month 5'!M126+'Month 5'!N126-'Month 5'!O126","v":{"v":0,"d":"0.00"}},null,"","",{"$f":"SUMIFS($J$25:$J$224,$C$25:$C$224,$C126,$G$25:$G$224,Lists!$A$16)","v":0},0,null,"",null,{"$f":"IF(C126=0,\"\",LEFT(INDEX(Lists!$H$5:$H$49,MATCH(C126,Lists!$G$5:$G$49,0),1),1))","v":""},null,{"$f":"'Month 5'!H126+'Month 5'!I126-'Month 5'!J126","v":0},"","",null,"0"]
[{"$f":"Planning!A111","v":"I103"},{"$f":"Planning!B111","v":0},{"$f":"Planning!C111","v":0},{"$f":"Planning!D111","v":0},{"$f":"Planning!E111","v":0},{"$f":"IF(Planning!G111<>0,Planning!G111,\"\")","v":""},{"$f":"Planning!H111","v":0},{"$f":"Planning!X111","v":0},{"$f":"IF(OR(W127=\"1\",AND(W127<>\"1\",G127=Lists!$A$17)),Y127,0)","v":0},null,{"$f":"IF(AND(W127=\"2\",G127<>Lists!$A$17),AA127,Z127)","v":""},"",{"$f":"Planning!Y111","v":{"v":0,"d":"0.00"}},{"$f":"'Month 5'!M127+'Month 5'!N127-'Month 5'!O127","v":{"v":0,"d":"0.00"}},null,"","",{"$f":"SUMIFS($J$25:$J$224,$C$25:$C$224,$C127,$G$25:$G$224,Lists!$A$16)","v":0},0,null,"",null,{"$f":"IF(C127=0,\"\",LEFT(INDEX(Lists!$H$5:$H$49,MATCH(C127,Lists!$G$5:$G$49,0),1),1))","v":""},null,{"$f":"'Month 5'!H127+'Month 5'!I127-'Month 5'!J127","v":0},"","",null,"0"]
[{"$f":"Planning!A112","v":"I104"},{"$f":"Planning!B112","v":0},{"$f":"Planning!C112","v":0},{"$f":"Planning!D112","v":0},{"$f":"Planning!E112","v":0},{"$f":"IF(Planning!G112<>0,Planning!G112,\"\")","v":""},{"$f":"Planning!H112","v":0},{"$f":"Planning!X112","v":0},{"$f":"IF(OR(W128=\"1\",AND(W128<>\"1\",G128=Lists!$A$17)),Y128,0)","v":0},null,{"$f":"IF(AND(W128=\"2\",G128<>Lists!$A$17),AA128,Z128)","v":""},"",{"$f":"Planning!Y112","v":{"v":0,"d":"0.00"}},{"$f":"'Month 5'!M128+'Month 5'!N128-'Month 5'!O128","v":{"v":0,"d":"0.00"}},null,"","",{"$f":"SUMIFS($J$25:$J$224,$C$25:$C$224,$C128,$G$25:$G$224,Lists!$A$16)","v":0},0,null,"",null,{"$f":"IF(C128=0,\"\",LEFT(INDEX(Lists!$H$5:$H$49,MATCH(C128,Lists!$G$5:$G$49,0),1),1))","v":""},null,{"$f":"'Month 5'!H128+'Month 5'!I128-'Month 5'!J128","v":0},"","",null,"0"]
[{"$f":"Planning!A113","v":"I105"},{"$f":"Planning!B113","v":0},{"$f":"Planning!C113","v":0},{"$f":"Planning!D113","v":0},{"$f":"Planning!E113","v":0},{"$f":"IF(Planning!G113<>0,Planning!G113,\"\")","v":""},{"$f":"Planning!H113","v":0},{"$f":"Planning!X113","v":0},{"$f":"IF(OR(W129=\"1\",AND(W129<>\"1\",G129=Lists!$A$17)),Y129,0)","v":0},null,{"$f":"IF(AND(W129=\"2\",G129<>Lists!$A$17),AA129,Z129)","v":""},"",{"$f":"Planning!Y113","v":{"v":0,"d":"0.00"}},{"$f":"'Month 5'!M129+'Month 5'!N129-'Month 5'!O129","v":{"v":0,"d":"0.00"}},null,"","",{"$f":"SUMIFS($J$25:$J$224,$C$25:$C$224,$C129,$G$25:$G$224,Lists!$A$16)","v":0},0,null,"",null,{"$f":"IF(C129=0,\"\",LEFT(INDEX(Lists!$H$5:$H$49,MATCH(C129,Lists!$G$5:$G$49,0),1),1))","v":""},null,{"$f":"'Month 5'!H129+'Month 5'!I129-'Month 5'!J129","v":0},"","",null,"0"]
[{"$f":"Planning!A114","v":"I106"},{"$f":"Planning!B114","v":0},{"$f":"Planning!C114","v":0},{"$f":"Planning!D114","v":0},{"$f":"Planning!E114","v":0},{"$f":"IF(Planning!G114<>0,Planning!G114,\"\")","v":""},{"$f":"Planning!H114","v":0},{"$f":"Planning!X114","v":0},{"$f":"IF(OR(W130=\"1\",AND(W130<>\"1\",G130=Lists!$A$17)),Y130,0)","v":0},null,{"$f":"IF(AND(W130=\"2\",G130<>Lists!$A$17),AA130,Z130)","v":""},"",{"$f":"Planning!Y114","v":{"v":0,"d":"0.00"}},{"$f":"'Month 5'!M130+'Month 5'!N130-'Month 5'!O130","v":{"v":0,"d":"0.00"}},null,"","",{"$f":"SUMIFS($J$25:$J$224,$C$25:$C$224,$C130,$G$25:$G$224,Lists!$A$16)","v":0},0,null,"",null,{"$f":"IF(C130=0,\"\",LEFT(INDEX(Lists!$H$5:$H$49,MATCH(C130,Lists!$G$5:$G$49,0),1),1))","v":""},null,{"$f":"'Month 5'!H130+'Month 5'!I130-'Month 5'!J130","v":0},"","",null,"0"]
[{"$f":"Planning!A115","v":"I107"},{"$f":"Planning!B115","v":0},{"$f":"Planning!C115","v":0},{"$f":"Planning!D115","v":0},{"$f":"Planning!E115","v":0},{"$f":"IF(Planning!G115<>0,Planning!G115,\"\")","v":""},{"$f":"Planning!H115","v":0},{"$f":"Planning!X115","v":0},{"$f":"IF(OR(W131=\"1\",AND(W131<>\"1\",G131=Lists!$A$17)),Y131,0)","v":0},null,{"$f":"IF(AND(W131=\"2\",G131<>Lists!$A$17),AA131,Z131)","v":""},"",{"$f":"Planning!Y115","v":{"v":0,"d":"0.00"}},{"$f":"'Month 5'!M131+'Month 5'!N131-'Month 5'!O131","v":{"v":0,"d":"0.00"}},null,"","",{"$f":"SUMIFS($J$25:$J$224,$C$25:$C$224,$C131,$G$25:$G$224,Lists!$A$16)","v":0},0,null,"",null,{"$f":"IF(C131=0,\"\",LEFT(INDEX(Lists!$H$5:$H$49,MATCH(C131,Lists!$G$5:$G$49,0),1),1))","v":""},null,{"$f":"'Month 5'!H131+'Month 5'!I131-'Month 5'!J131","v":0},"","",null,"0"]
[{"$f":"Planning!A116","v":"I108"},{"$f":"Planning!B116","v":0},{"$f":"Planning!C116","v":0},{"$f":"Planning!D116","v":0},{"$f":"Planning!E116","v":0},{"$f":"IF(Planning!G116<>0,Planning!G116,\"\")","v":""},{"$f":"Planning!H116","v":0},{"$f":"Planning!X116","v":0},{"$f":"IF(OR(W132=\"1\",AND(W132<>\"1\",G132=Lists!$A$17)),Y132,0)","v":0},null,{"$f":"IF(AND(W132=\"2\",G132<>Lists!$A$17),AA132,Z132)","v":""},"",{"$f":"Planning!Y116","v":{"v":0,"d":"0.00"}},{"$f":"'Month 5'!M132+'Month 5'!N132-'Month 5'!O132","v":{"v":0,"d":"0.00"}},null,"","",{"$f":"SUMIFS($J$25:$J$224,$C$25:$C$224,$C132,$G$25:$G$224,Lists!$A$16)","v":0},0,null,"",null,{"$f":"IF(C132=0,\"\",LEFT(INDEX(Lists!$H$5:$H$49,MATCH(C132,Lists!$G$5:$G$49,0),1),1))","v":""},null,{"$f":"'Month 5'!H132+'Month 5'!I132-'Month 5'!J132","v":0},"","",null,"0"]
[{"$f":"Planning!A117","v":"I109"},{"$f":"Planning!B117","v":0},{"$f":"Planning!C117","v":0},{"$f":"Planning!D117","v":0},{"$f":"Planning!E117","v":0},{"$f":"IF(Planning!G117<>0,Planning!G117,\"\")","v":""},{"$f":"Planning!H117","v":0},{"$f":"Planning!X117","v":0},{"$f":"IF(OR(W133=\"1\",AND(W133<>\"1\",G133=Lists!$A$17)),Y133,0)","v":0},null,{"$f":"IF(AND(W133=\"2\",G133<>Lists!$A$17),AA133,Z133)","v":""},"",{"$f":"Planning!Y117","v":{"v":0,"d":"0.00"}},{"$f":"'Month 5'!M133+'Month 5'!N133-'Month 5'!O133","v":{"v":0,"d":"0.00"}},null,"","",{"$f":"SUMIFS($J$25:$J$224,$C$25:$C$224,$C133,$G$25:$G$224,Lists!$A$16)","v":0},0,null,"",null,{"$f":"IF(C133=0,\"\",LEFT(INDEX(Lists!$H$5:$H$49,MATCH(C133,Lists!$G$5:$G$49,0),1),1))","v":""},null,{"$f":"'Month 5'!H133+'Month 5'!I133-'Month 5'!J133","v":0},"","",null,"0"]
[{"$f":"Planning!A118","v":"I110"},{"$f":"Planning!B118","v":0},{"$f":"Planning!C118","v":0},{"$f":"Planning!D118","v":0},{"$f":"Planning!E118","v":0},{"$f":"IF(Planning!G118<>0,Planning!G118,\"\")","v":""},{"$f":"Planning!H118","v":0},{"$f":"Planning!X118","v":0},{"$f":"IF(OR(W134=\"1\",AND(W134<>\"1\",G134=Lists!$A$17)),Y134,0)","v":0},null,{"$f":"IF(AND(W134=\"2\",G134<>Lists!$A$17),AA134,Z134)","v":""},"",{"$f":"Planning!Y118","v":{"v":0,"d":"0.00"}},{"$f":"'Month 5'!M134+'Month 5'!N134-'Month 5'!O134","v":{"v":0,"d":"0.00"}},null,"","",{"$f":"SUMIFS($J$25:$J$224,$C$25:$C$224,$C134,$G$25:$G$224,Lists!$A$16)","v":0},0,null,"",null,{"$f":"IF(C134=0,\"\",LEFT(INDEX(Lists!$H$5:$H$49,MATCH(C134,Lists!$G$5:$G$49,0),1),1))","v":""},null,{"$f":"'Month 5'!H134+'Month 5'!I134-'Month 5'!J134","v":0},"","",null,"0"]
[{"$f":"Planning!A119","v":"I111"},{"$f":"Planning!B119","v":0},{"$f":"Planning!C119","v":0},{"$f":"Planning!D119","v":0},{"$f":"Planning!E119","v":0},{"$f":"IF(Planning!G119<>0,Planning!G119,\"\")","v":""},{"$f":"Planning!H119","v":0},{"$f":"Planning!X119","v":0},{"$f":"IF(OR(W135=\"1\",AND(W135<>\"1\",G135=Lists!$A$17)),Y135,0)","v":0},null,{"$f":"IF(AND(W135=\"2\",G135<>Lists!$A$17),AA135,Z135)","v":""},"",{"$f":"Planning!Y119","v":{"v":0,"d":"0.00"}},{"$f":"'Month 5'!M135+'Month 5'!N135-'Month 5'!O135","v":{"v":0,"d":"0.00"}},null,"","",{"$f":"SUMIFS($J$25:$J$224,$C$25:$C$224,$C135,$G$25:$G$224,Lists!$A$16)","v":0},0,null,"",null,{"$f":"IF(C135=0,\"\",LEFT(INDEX(Lists!$H$5:$H$49,MATCH(C135,Lists!$G$5:$G$49,0),1),1))","v":""},null,{"$f":"'Month 5'!H135+'Month 5'!I135-'Month 5'!J135","v":0},"","",null,"0"]
[{"$f":"Planning!A120","v":"I112"},{"$f":"Planning!B120","v":0},{"$f":"Planning!C120","v":0},{"$f":"Planning!D120","v":0},{"$f":"Planning!E120","v":0},{"$f":"IF(Planning!G120<>0,Planning!G120,\"\")","v":""},{"$f":"Planning!H120","v":0},{"$f":"Planning!X120","v":0},{"$f":"IF(OR(W136=\"1\",AND(W136<>\"1\",G136=Lists!$A$17)),Y136,0)","v":0},null,{"$f":"IF(AND(W136=\"2\",G136<>Lists!$A$17),AA136,Z136)","v":""},"",{"$f":"Planning!Y120","v":{"v":0,"d":"0.00"}},{"$f":"'Month 5'!M136+'Month 5'!N136-'Month 5'!O136","v":{"v":0,"d":"0.00"}},null,"","",{"$f":"SUMIFS($J$25:$J$224,$C$25:$C$224,$C136,$G$25:$G$224,Lists!$A$16)","v":0},0,null,"",null,{"$f":"IF(C136=0,\"\",LEFT(INDEX(Lists!$H$5:$H$49,MATCH(C136,Lists!$G$5:$G$49,0),1),1))","v":""},null,{"$f":"'Month 5'!H136+'Month 5'!I136-'Month 5'!J136","v":0},"","",null,"0"]
[{"$f":"Planning!A121","v":"I113"},{"$f":"Planning!B121","v":0},{"$f":"Planning!C121","v":0},{"$f":"Planning!D121","v":0},{"$f":"Planning!E121","v":0},{"$f":"IF(Planning!G121<>0,Planning!G121,\"\")","v":""},{"$f":"Planning!H121","v":0},{"$f":"Planning!X121","v":0},{"$f":"IF(OR(W137=\"1\",AND(W137<>\"1\",G137=Lists!$A$17)),Y137,0)","v":0},null,{"$f":"IF(AND(W137=\"2\",G137<>Lists!$A$17),AA137,Z137)","v":""},"",{"$f":"Planning!Y121","v":{"v":0,"d":"0.00"}},{"$f":"'Month 5'!M137+'Month 5'!N137-'Month 5'!O137","v":{"v":0,"d":"0.00"}},null,"","",{"$f":"SUMIFS($J$25:$J$224,$C$25:$C$224,$C137,$G$25:$G$224,Lists!$A$16)","v":0},0,null,"",null,{"$f":"IF(C137=0,\"\",LEFT(INDEX(Lists!$H$5:$H$49,MATCH(C137,Lists!$G$5:$G$49,0),1),1))","v":""},null,{"$f":"'Month 5'!H137+'Month 5'!I137-'Month 5'!J137","v":0},"","",null,"0"]
[{"$f":"Planning!A122","v":"I114"},{"$f":"Planning!B122","v":0},{"$f":"Planning!C122","v":0},{"$f":"Planning!D122","v":0},{"$f":"Planning!E122","v":0},{"$f":"IF(Planning!G122<>0,Planning!G122,\"\")","v":""},{"$f":"Planning!H122","v":0},{"$f":"Planning!X122","v":0},{"$f":"IF(OR(W138=\"1\",AND(W138<>\"1\",G138=Lists!$A$17)),Y138,0)","v":0},null,{"$f":"IF(AND(W138=\"2\",G138<>Lists!$A$17),AA138,Z138)","v":""},"",{"$f":"Planning!Y122","v":{"v":0,"d":"0.00"}},{"$f":"'Month 5'!M138+'Month 5'!N138-'Month 5'!O138","v":{"v":0,"d":"0.00"}},null,"","",{"$f":"SUMIFS($J$25:$J$224,$C$25:$C$224,$C138,$G$25:$G$224,Lists!$A$16)","v":0},0,null,"",null,{"$f":"IF(C138=0,\"\",LEFT(INDEX(Lists!$H$5:$H$49,MATCH(C138,Lists!$G$5:$G$49,0),1),1))","v":""},null,{"$f":"'Month 5'!H138+'Month 5'!I138-'Month 5'!J138","v":0},"","",null,"0"]
[{"$f":"Planning!A123","v":"I115"},{"$f":"Planning!B123","v":0},{"$f":"Planning!C123","v":0},{"$f":"Planning!D123","v":0},{"$f":"Planning!E123","v":0},{"$f":"IF(Planning!G123<>0,Planning!G123,\"\")","v":""},{"$f":"Planning!H123","v":0},{"$f":"Planning!X123","v":0},{"$f":"IF(OR(W139=\"1\",AND(W139<>\"1\",G139=Lists!$A$17)),Y139,0)","v":0},null,{"$f":"IF(AND(W139=\"2\",G139<>Lists!$A$17),AA139,Z139)","v":""},"",{"$f":"Planning!Y123","v":{"v":0,"d":"0.00"}},{"$f":"'Month 5'!M139+'Month 5'!N139-'Month 5'!O139","v":{"v":0,"d":"0.00"}},null,"","",{"$f":"SUMIFS($J$25:$J$224,$C$25:$C$224,$C139,$G$25:$G$224,Lists!$A$16)","v":0},0,null,"",null,{"$f":"IF(C139=0,\"\",LEFT(INDEX(Lists!$H$5:$H$49,MATCH(C139,Lists!$G$5:$G$49,0),1),1))","v":""},null,{"$f":"'Month 5'!H139+'Month 5'!I139-'Month 5'!J139","v":0},"","",null,"0"]
[{"$f":"Planning!A124","v":"I116"},{"$f":"Planning!B124","v":0},{"$f":"Planning!C124","v":0},{"$f":"Planning!D124","v":0},{"$f":"Planning!E124","v":0},{"$f":"IF(Planning!G124<>0,Planning!G124,\"\")","v":""},{"$f":"Planning!H124","v":0},{"$f":"Planning!X124","v":0},{"$f":"IF(OR(W140=\"1\",AND(W140<>\"1\",G140=Lists!$A$17)),Y140,0)","v":0},null,{"$f":"IF(AND(W140=\"2\",G140<>Lists!$A$17),AA140,Z140)","v":""},"",{"$f":"Planning!Y124","v":{"v":0,"d":"0.00"}},{"$f":"'Month 5'!M140+'Month 5'!N140-'Month 5'!O140","v":{"v":0,"d":"0.00"}},null,"","",{"$f":"SUMIFS($J$25:$J$224,$C$25:$C$224,$C140,$G$25:$G$224,Lists!$A$16)","v":0},0,null,"",null,{"$f":"IF(C140=0,\"\",LEFT(INDEX(Lists!$H$5:$H$49,MATCH(C140,Lists!$G$5:$G$49,0),1),1))","v":""},null,{"$f":"'Month 5'!H140+'Month 5'!I140-'Month 5'!J140","v":0},"","",null,"0"]
[{"$f":"Planning!A125","v":"I117"},{"$f":"Planning!B125","v":0},{"$f":"Planning!C125","v":0},{"$f":"Planning!D125","v":0},{"$f":"Planning!E125","v":0},{"$f":"IF(Planning!G125<>0,Planning!G125,\"\")","v":""},{"$f":"Planning!H125","v":0},{"$f":"Planning!X125","v":0},{"$f":"IF(OR(W141=\"1\",AND(W141<>\"1\",G141=Lists!$A$17)),Y141,0)","v":0},null,{"$f":"IF(AND(W141=\"2\",G141<>Lists!$A$17),AA141,Z141)","v":""},"",{"$f":"Planning!Y125","v":{"v":0,"d":"0.00"}},{"$f":"'Month 5'!M141+'Month 5'!N141-'Month 5'!O141","v":{"v":0,"d":"0.00"}},null,"","",{"$f":"SUMIFS($J$25:$J$224,$C$25:$C$224,$C141,$G$25:$G$224,Lists!$A$16)","v":0},0,null,"",null,{"$f":"IF(C141=0,\"\",LEFT(INDEX(Lists!$H$5:$H$49,MATCH(C141,Lists!$G$5:$G$49,0),1),1))","v":""},null,{"$f":"'Month 5'!H141+'Month 5'!I141-'Month 5'!J141","v":0},"","",null,"0"]
[{"$f":"Planning!A126","v":"I118"},{"$f":"Planning!B126","v":0},{"$f":"Planning!C126","v":0},{"$f":"Planning!D126","v":0},{"$f":"Planning!E126","v":0},{"$f":"IF(Planning!G126<>0,Planning!G126,\"\")","v":""},{"$f":"Planning!H126","v":0},{"$f":"Planning!X126","v":0},{"$f":"IF(OR(W142=\"1\",AND(W142<>\"1\",G142=Lists!$A$17)),Y142,0)","v":0},null,{"$f":"IF(AND(W142=\"2\",G142<>Lists!$A$17),AA142,Z142)","v":""},"",{"$f":"Planning!Y126","v":{"v":0,"d":"0.00"}},{"$f":"'Month 5'!M142+'Month 5'!N142-'Month 5'!O142","v":{"v":0,"d":"0.00"}},null,"","",{"$f":"SUMIFS($J$25:$J$224,$C$25:$C$224,$C142,$G$25:$G$224,Lists!$A$16)","v":0},0,null,"",null,{"$f":"IF(C142=0,\"\",LEFT(INDEX(Lists!$H$5:$H$49,MATCH(C142,Lists!$G$5:$G$49,0),1),1))","v":""},null,{"$f":"'Month 5'!H142+'Month 5'!I142-'Month 5'!J142","v":0},"","",null,"0"]
[{"$f":"Planning!A127","v":"I119"},{"$f":"Planning!B127","v":0},{"$f":"Planning!C127","v":0},{"$f":"Planning!D127","v":0},{"$f":"Planning!E127","v":0},{"$f":"IF(Planning!G127<>0,Planning!G127,\"\")","v":""},{"$f":"Planning!H127","v":0},{"$f":"Planning!X127","v":0},{"$f":"IF(OR(W143=\"1\",AND(W143<>\"1\",G143=Lists!$A$17)),Y143,0)","v":0},null,{"$f":"IF(AND(W143=\"2\",G143<>Lists!$A$17),AA143,Z143)","v":""},"",{"$f":"Planning!Y127","v":{"v":0,"d":"0.00"}},{"$f":"'Month 5'!M143+'Month 5'!N143-'Month 5'!O143","v":{"v":0,"d":"0.00"}},null,"","",{"$f":"SUMIFS($J$25:$J$224,$C$25:$C$224,$C143,$G$25:$G$224,Lists!$A$16)","v":0},0,null,"",null,{"$f":"IF(C143=0,\"\",LEFT(INDEX(Lists!$H$5:$H$49,MATCH(C143,Lists!$G$5:$G$49,0),1),1))","v":""},null,{"$f":"'Month 5'!H143+'Month 5'!I143-'Month 5'!J143","v":0},"","",null,"0"]
[{"$f":"Planning!A128","v":"I120"},{"$f":"Planning!B128","v":0},{"$f":"Planning!C128","v":0},{"$f":"Planning!D128","v":0},{"$f":"Planning!E128","v":0},{"$f":"IF(Planning!G128<>0,Planning!G128,\"\")","v":""},{"$f":"Planning!H128","v":0},{"$f":"Planning!X128","v":0},{"$f":"IF(OR(W144=\"1\",AND(W144<>\"1\",G144=Lists!$A$17)),Y144,0)","v":0},null,{"$f":"IF(AND(W144=\"2\",G144<>Lists!$A$17),AA144,Z144)","v":""},"",{"$f":"Planning!Y128","v":{"v":0,"d":"0.00"}},{"$f":"'Month 5'!M144+'Month 5'!N144-'Month 5'!O144","v":{"v":0,"d":"0.00"}},null,"","",{"$f":"SUMIFS($J$25:$J$224,$C$25:$C$224,$C144,$G$25:$G$224,Lists!$A$16)","v":0},0,null,"",null,{"$f":"IF(C144=0,\"\",LEFT(INDEX(Lists!$H$5:$H$49,MATCH(C144,Lists!$G$5:$G$49,0),1),1))","v":""},null,{"$f":"'Month 5'!H144+'Month 5'!I144-'Month 5'!J144","v":0},"","",null,"0"]
[{"$f":"Planning!A129","v":"I121"},{"$f":"Planning!B129","v":0},{"$f":"Planning!C129","v":0},{"$f":"Planning!D129","v":0},{"$f":"Planning!E129","v":0},{"$f":"IF(Planning!G129<>0,Planning!G129,\"\")","v":""},{"$f":"Planning!H129","v":0},{"$f":"Planning!X129","v":0},{"$f":"IF(OR(W145=\"1\",AND(W145<>\"1\",G145=Lists!$A$17)),Y145,0)","v":0},null,{"$f":"IF(AND(W145=\"2\",G145<>Lists!$A$17),AA145,Z145)","v":""},"",{"$f":"Planning!Y129","v":{"v":0,"d":"0.00"}},{"$f":"'Month 5'!M145+'Month 5'!N145-'Month 5'!O145","v":{"v":0,"d":"0.00"}},null,"","",{"$f":"SUMIFS($J$25:$J$224,$C$25:$C$224,$C145,$G$25:$G$224,Lists!$A$16)","v":0},0,null,"",null,{"$f":"IF(C145=0,\"\",LEFT(INDEX(Lists!$H$5:$H$49,MATCH(C145,Lists!$G$5:$G$49,0),1),1))","v":""},null,{"$f":"'Month 5'!H145+'Month 5'!I145-'Month 5'!J145","v":0},"","",null,"0"]
[{"$f":"Planning!A130","v":"I122"},{"$f":"Planning!B130","v":0},{"$f":"Planning!C130","v":0},{"$f":"Planning!D130","v":0},{"$f":"Planning!E130","v":0},{"$f":"IF(Planning!G130<>0,Planning!G130,\"\")","v":""},{"$f":"Planning!H130","v":0},{"$f":"Planning!X130","v":0},{"$f":"IF(OR(W146=\"1\",AND(W146<>\"1\",G146=Lists!$A$17)),Y146,0)","v":0},null,{"$f":"IF(AND(W146=\"2\",G146<>Lists!$A$17),AA146,Z146)","v":""},"",{"$f":"Planning!Y130","v":{"v":0,"d":"0.00"}},{"$f":"'Month 5'!M146+'Month 5'!N146-'Month 5'!O146","v":{"v":0,"d":"0.00"}},null,"","",{"$f":"SUMIFS($J$25:$J$224,$C$25:$C$224,$C146,$G$25:$G$224,Lists!$A$16)","v":0},0,null,"",null,{"$f":"IF(C146=0,\"\",LEFT(INDEX(Lists!$H$5:$H$49,MATCH(C146,Lists!$G$5:$G$49,0),1),1))","v":""},null,{"$f":"'Month 5'!H146+'Month 5'!I146-'Month 5'!J146","v":0},"","",null,"0"]
[{"$f":"Planning!A131","v":"I123"},{"$f":"Planning!B131","v":0},{"$f":"Planning!C131","v":0},{"$f":"Planning!D131","v":0},{"$f":"Planning!E131","v":0},{"$f":"IF(Planning!G131<>0,Planning!G131,\"\")","v":""},{"$f":"Planning!H131","v":0},{"$f":"Planning!X131","v":0},{"$f":"IF(OR(W147=\"1\",AND(W147<>\"1\",G147=Lists!$A$17)),Y147,0)","v":0},null,{"$f":"IF(AND(W147=\"2\",G147<>Lists!$A$17),AA147,Z147)","v":""},"",{"$f":"Planning!Y131","v":{"v":0,"d":"0.00"}},{"$f":"'Month 5'!M147+'Month 5'!N147-'Month 5'!O147","v":{"v":0,"d":"0.00"}},null,"","",{"$f":"SUMIFS($J$25:$J$224,$C$25:$C$224,$C147,$G$25:$G$224,Lists!$A$16)","v":0},0,null,"",null,{"$f":"IF(C147=0,\"\",LEFT(INDEX(Lists!$H$5:$H$49,MATCH(C147,Lists!$G$5:$G$49,0),1),1))","v":""},null,{"$f":"'Month 5'!H147+'Month 5'!I147-'Month 5'!J147","v":0},"","",null,"0"]
[{"$f":"Planning!A132","v":"I124"},{"$f":"Planning!B132","v":0},{"$f":"Planning!C132","v":0},{"$f":"Planning!D132","v":0},{"$f":"Planning!E132","v":0},{"$f":"IF(Planning!G132<>0,Planning!G132,\"\")","v":""},{"$f":"Planning!H132","v":0},{"$f":"Planning!X132","v":0},{"$f":"IF(OR(W148=\"1\",AND(W148<>\"1\",G148=Lists!$A$17)),Y148,0)","v":0},null,{"$f":"IF(AND(W148=\"2\",G148<>Lists!$A$17),AA148,Z148)","v":""},"",{"$f":"Planning!Y132","v":{"v":0,"d":"0.00"}},{"$f":"'Month 5'!M148+'Month 5'!N148-'Month 5'!O148","v":{"v":0,"d":"0.00"}},null,"","",{"$f":"SUMIFS($J$25:$J$224,$C$25:$C$224,$C148,$G$25:$G$224,Lists!$A$16)","v":0},0,null,"",null,{"$f":"IF(C148=0,\"\",LEFT(INDEX(Lists!$H$5:$H$49,MATCH(C148,Lists!$G$5:$G$49,0),1),1))","v":""},null,{"$f":"'Month 5'!H148+'Month 5'!I148-'Month 5'!J148","v":0},"","",null,"0"]
[{"$f":"Planning!A133","v":"I125"},{"$f":"Planning!B133","v":0},{"$f":"Planning!C133","v":0},{"$f":"Planning!D133","v":0},{"$f":"Planning!E133","v":0},{"$f":"IF(Planning!G133<>0,Planning!G133,\"\")","v":""},{"$f":"Planning!H133","v":0},{"$f":"Planning!X133","v":0},{"$f":"IF(OR(W149=\"1\",AND(W149<>\"1\",G149=Lists!$A$17)),Y149,0)","v":0},null,{"$f":"IF(AND(W149=\"2\",G149<>Lists!$A$17),AA149,Z149)","v":""},"",{"$f":"Planning!Y133","v":{"v":0,"d":"0.00"}},{"$f":"'Month 5'!M149+'Month 5'!N149-'Month 5'!O149","v":{"v":0,"d":"0.00"}},null,"","",{"$f":"SUMIFS($J$25:$J$224,$C$25:$C$224,$C149,$G$25:$G$224,Lists!$A$16)","v":0},0,null,"",null,{"$f":"IF(C149=0,\"\",LEFT(INDEX(Lists!$H$5:$H$49,MATCH(C149,Lists!$G$5:$G$49,0),1),1))","v":""},null,{"$f":"'Month 5'!H149+'Month 5'!I149-'Month 5'!J149","v":0},"","",null,"0"]
[{"$f":"Planning!A134","v":"I126"},{"$f":"Planning!B134","v":0},{"$f":"Planning!C134","v":0},{"$f":"Planning!D134","v":0},{"$f":"Planning!E134","v":0},{"$f":"IF(Planning!G134<>0,Planning!G134,\"\")","v":""},{"$f":"Planning!H134","v":0},{"$f":"Planning!X134","v":0},{"$f":"IF(OR(W150=\"1\",AND(W150<>\"1\",G150=Lists!$A$17)),Y150,0)","v":0},null,{"$f":"IF(AND(W150=\"2\",G150<>Lists!$A$17),AA150,Z150)","v":""},"",{"$f":"Planning!Y134","v":{"v":0,"d":"0.00"}},{"$f":"'Month 5'!M150+'Month 5'!N150-'Month 5'!O150","v":{"v":0,"d":"0.00"}},null,"","",{"$f":"SUMIFS($J$25:$J$224,$C$25:$C$224,$C150,$G$25:$G$224,Lists!$A$16)","v":0},0,null,"",null,{"$f":"IF(C150=0,\"\",LEFT(INDEX(Lists!$H$5:$H$49,MATCH(C150,Lists!$G$5:$G$49,0),1),1))","v":""},null,{"$f":"'Month 5'!H150+'Month 5'!I150-'Month 5'!J150","v":0},"","",null,"0"]
[{"$f":"Planning!A135","v":"I127"},{"$f":"Planning!B135","v":0},{"$f":"Planning!C135","v":0},{"$f":"Planning!D135","v":0},{"$f":"Planning!E135","v":0},{"$f":"IF(Planning!G135<>0,Planning!G135,\"\")","v":""},{"$f":"Planning!H135","v":0},{"$f":"Planning!X135","v":0},{"$f":"IF(OR(W151=\"1\",AND(W151<>\"1\",G151=Lists!$A$17)),Y151,0)","v":0},null,{"$f":"IF(AND(W151=\"2\",G151<>Lists!$A$17),AA151,Z151)","v":""},"",{"$f":"Planning!Y135","v":{"v":0,"d":"0.00"}},{"$f":"'Month 5'!M151+'Month 5'!N151-'Month 5'!O151","v":{"v":0,"d":"0.00"}},null,"","",{"$f":"SUMIFS($J$25:$J$224,$C$25:$C$224,$C151,$G$25:$G$224,Lists!$A$16)","v":0},0,null,"",null,{"$f":"IF(C151=0,\"\",LEFT(INDEX(Lists!$H$5:$H$49,MATCH(C151,Lists!$G$5:$G$49,0),1),1))","v":""},null,{"$f":"'Month 5'!H151+'Month 5'!I151-'Month 5'!J151","v":0},"","",null,"0"]
[{"$f":"Planning!A136","v":"I128"},{"$f":"Planning!B136","v":0},{"$f":"Planning!C136","v":0},{"$f":"Planning!D136","v":0},{"$f":"Planning!E136","v":0},{"$f":"IF(Planning!G136<>0,Planning!G136,\"\")","v":""},{"$f":"Planning!H136","v":0},{"$f":"Planning!X136","v":0},{"$f":"IF(OR(W152=\"1\",AND(W152<>\"1\",G152=Lists!$A$17)),Y152,0)","v":0},null,{"$f":"IF(AND(W152=\"2\",G152<>Lists!$A$17),AA152,Z152)","v":""},"",{"$f":"Planning!Y136","v":{"v":0,"d":"0.00"}},{"$f":"'Month 5'!M152+'Month 5'!N152-'Month 5'!O152","v":{"v":0,"d":"0.00"}},null,"","",{"$f":"SUMIFS($J$25:$J$224,$C$25:$C$224,$C152,$G$25:$G$224,Lists!$A$16)","v":0},0,null,"",null,{"$f":"IF(C152=0,\"\",LEFT(INDEX(Lists!$H$5:$H$49,MATCH(C152,Lists!$G$5:$G$49,0),1),1))","v":""},null,{"$f":"'Month 5'!H152+'Month 5'!I152-'Month 5'!J152","v":0},"","",null,"0"]
[{"$f":"Planning!A137","v":"I129"},{"$f":"Planning!B137","v":0},{"$f":"Planning!C137","v":0},{"$f":"Planning!D137","v":0},{"$f":"Planning!E137","v":0},{"$f":"IF(Planning!G137<>0,Planning!G137,\"\")","v":""},{"$f":"Planning!H137","v":0},{"$f":"Planning!X137","v":0},{"$f":"IF(OR(W153=\"1\",AND(W153<>\"1\",G153=Lists!$A$17)),Y153,0)","v":0},null,{"$f":"IF(AND(W153=\"2\",G153<>Lists!$A$17),AA153,Z153)","v":""},{"$f":"IF($U153=ExcluirDelPLogro,\"\",IF(AND(H153=0,I153=0,J153=0),\"\",K153))","v":""},{"$f":"Planning!Y137","v":{"v":0,"d":"0.00"}},{"$f":"'Month 5'!M153+'Month 5'!N153-'Month 5'!O153","v":{"v":0,"d":"0.00"}},null,"",{"$f":"IF($U153=ExcluirDelPLogro,\"\",IF(AND(M153=0,N153=0,O153=0),\"\",P153))","v":""},{"$f":"SUMIFS($J$25:$J$224,$C$25:$C$224,$C153,$G$25:$G$224,Lists!$A$16)","v":0},0,null,"",null,{"$f":"IF(C153=0,\"\",LEFT(INDEX(Lists!$H$5:$H$49,MATCH(C153,Lists!$G$5:$G$49,0),1),1))","v":""},null,{"$f":"'Month 5'!H153+'Month 5'!I153-'Month 5'!J153","v":0},"",{"$f":"IF(AND(H153=0,I153=0,J153=0),\"\",IF(J153>0,H153/J153,0))","v":""},null,"0"]
[{"$f":"Planning!A138","v":"I130"},{"$f":"Planning!B138","v":0},{"$f":"Planning!C138","v":0},{"$f":"Planning!D138","v":0},{"$f":"Planning!E138","v":0},{"$f":"IF(Planning!G138<>0,Planning!G138,\"\")","v":""},{"$f":"Planning!H138","v":0},{"$f":"Planning!X138","v":0},{"$f":"IF(OR(W154=\"1\",AND(W154<>\"1\",G154=Lists!$A$17)),Y154,0)","v":0},null,{"$f":"IF(AND(W154=\"2\",G154<>Lists!$A$17),AA154,Z154)","v":""},"",{"$f":"Planning!Y138","v":{"v":0,"d":"0.00"}},{"$f":"'Month 5'!M154+'Month 5'!N154-'Month 5'!O154","v":{"v":0,"d":"0.00"}},null,{"$f":"IF(AND(M154=0,N154=0,O154=0),\"\",IF((M154+N154)>0,O154/(M154+N154),O154))","v":""},"",{"$f":"SUMIFS($J$25:$J$224,$C$25:$C$224,$C154,$G$25:$G$224,Lists!$A$16)","v":0},{"$f":"SUMIFS($O$25:$O$224,$C$25:$C$224,$C154,$G$25:$G$224,\"<>0\")","v":0},null,{"$f":"IF(B154=0,\"\",IF(LEFT(B154,1)=\"1\",\"1\",\"2\"))","v":""},null,{"$f":"IF(C154=0,\"\",LEFT(INDEX(Lists!$H$5:$H$49,MATCH(C154,Lists!$G$5:$G$49,0),1),1))","v":""},null,{"$f":"'Month 5'!H154+'Month 5'!I154-'Month 5'!J154","v":0},{"$f":"IF(AND(H154=0,I154=0,J154=0),\"\",IF((H154+I154)>0,J154/(H154+I154),J154))","v":""},"",null,{"$f":"U154&C154","v":"0"}]
[{"$f":"Planning!A139","v":"I131"},{"$f":"Planning!B139","v":0},{"$f":"Planning!C139","v":0},{"$f":"Planning!D139","v":0},{"$f":"Planning!E139","v":0},{"$f":"IF(Planning!G139<>0,Planning!G139,\"\")","v":""},{"$f":"Planning!H139","v":0},{"$f":"Planning!X139","v":0},{"$f":"IF(OR(W155=\"1\",AND(W155<>\"1\",G155=Lists!$A$17)),Y155,0)","v":0},null,{"$f":"IF(AND(W155=\"2\",G155<>Lists!$A$17),AA155,Z155)","v":""},"",{"$f":"Planning!Y139","v":{"v":0,"d":"0.00"}},{"$f":"'Month 5'!M155+'Month 5'!N155-'Month 5'!O155","v":{"v":0,"d":"0.00"}},null,"","",{"$f":"SUMIFS($J$25:$J$224,$C$25:$C$224,$C155,$G$25:$G$224,Lists!$A$16)","v":0},0,null,"",null,{"$f":"IF(C155=0,\"\",LEFT(INDEX(Lists!$H$5:$H$49,MATCH(C155,Lists!$G$5:$G$49,0),1),1))","v":""},null,{"$f":"'Month 5'!H155+'Month 5'!I155-'Month 5'!J155","v":0},"","",null,"0"]
[{"$f":"Planning!A140","v":"I132"},{"$f":"Planning!B140","v":0},{"$f":"Planning!C140","v":0},{"$f":"Planning!D140","v":0},{"$f":"Planning!E140","v":0},{"$f":"IF(Planning!G140<>0,Planning!G140,\"\")","v":""},{"$f":"Planning!H140","v":0},{"$f":"Planning!X140","v":0},{"$f":"IF(OR(W156=\"1\",AND(W156<>\"1\",G156=Lists!$A$17)),Y156,0)","v":0},null,{"$f":"IF(AND(W156=\"2\",G156<>Lists!$A$17),AA156,Z156)","v":""},"",{"$f":"Planning!Y140","v":{"v":0,"d":"0.00"}},{"$f":"'Month 5'!M156+'Month 5'!N156-'Month 5'!O156","v":{"v":0,"d":"0.00"}},null,"","",{"$f":"SUMIFS($J$25:$J$224,$C$25:$C$224,$C156,$G$25:$G$224,Lists!$A$16)","v":0},0,null,"",null,{"$f":"IF(C156=0,\"\",LEFT(INDEX(Lists!$H$5:$H$49,MATCH(C156,Lists!$G$5:$G$49,0),1),1))","v":""},null,{"$f":"'Month 5'!H156+'Month 5'!I156-'Month 5'!J156","v":0},"","",null,"0"]
[{"$f":"Planning!A141","v":"I133"},{"$f":"Planning!B141","v":0},{"$f":"Planning!C141","v":0},{"$f":"Planning!D141","v":0},{"$f":"Planning!E141","v":0},{"$f":"IF(Planning!G141<>0,Planning!G141,\"\")","v":""},{"$f":"Planning!H141","v":0},{"$f":"Planning!X141","v":0},{"$f":"IF(OR(W157=\"1\",AND(W157<>\"1\",G157=Lists!$A$17)),Y157,0)","v":0},null,{"$f":"IF(AND(W157=\"2\",G157<>Lists!$A$17),AA157,Z157)","v":""},"",{"$f":"Planning!Y141","v":{"v":0,"d":"0.00"}},{"$f":"'Month 5'!M157+'Month 5'!N157-'Month 5'!O157","v":{"v":0,"d":"0.00"}},null,"","",{"$f":"SUMIFS($J$25:$J$224,$C$25:$C$224,$C157,$G$25:$G$224,Lists!$A$16)","v":0},0,null,"",null,{"$f":"IF(C157=0,\"\",LEFT(INDEX(Lists!$H$5:$H$49,MATCH(C157,Lists!$G$5:$G$49,0),1),1))","v":""},null,{"$f":"'Month 5'!H157+'Month 5'!I157-'Month 5'!J157","v":0},"","",null,"0"]
[{"$f":"Planning!A142","v":"I134"},{"$f":"Planning!B142","v":0},{"$f":"Planning!C142","v":0},{"$f":"Planning!D142","v":0},{"$f":"Planning!E142","v":0},{"$f":"IF(Planning!G142<>0,Planning!G142,\"\")","v":""},{"$f":"Planning!H142","v":0},{"$f":"Planning!X142","v":0},{"$f":"IF(OR(W158=\"1\",AND(W158<>\"1\",G158=Lists!$A$17)),Y158,0)","v":0},null,{"$f":"IF(AND(W158=\"2\",G158<>Lists!$A$17),AA158,Z158)","v":""},"",{"$f":"Planning!Y142","v":{"v":0,"d":"0.00"}},{"$f":"'Month 5'!M158+'Month 5'!N158-'Month 5'!O158","v":{"v":0,"d":"0.00"}},null,"","",{"$f":"SUMIFS($J$25:$J$224,$C$25:$C$224,$C158,$G$25:$G$224,Lists!$A$16)","v":0},0,null,"",null,{"$f":"IF(C158=0,\"\",LEFT(INDEX(Lists!$H$5:$H$49,MATCH(C158,Lists!$G$5:$G$49,0),1),1))","v":""},null,{"$f":"'Month 5'!H158+'Month 5'!I158-'Month 5'!J158","v":0},"","",null,"0"]
[{"$f":"Planning!A143","v":"I135"},{"$f":"Planning!B143","v":0},{"$f":"Planning!C143","v":0},{"$f":"Planning!D143","v":0},{"$f":"Planning!E143","v":0},{"$f":"IF(Planning!G143<>0,Planning!G143,\"\")","v":""},{"$f":"Planning!H143","v":0},{"$f":"Planning!X143","v":0},{"$f":"IF(OR(W159=\"1\",AND(W159<>\"1\",G159=Lists!$A$17)),Y159,0)","v":0},null,{"$f":"IF(AND(W159=\"2\",G159<>Lists!$A$17),AA159,Z159)","v":""},"",{"$f":"Planning!Y143","v":{"v":0,"d":"0.00"}},{"$f":"'Month 5'!M159+'Month 5'!N159-'Month 5'!O159","v":{"v":0,"d":"0.00"}},null,"","",{"$f":"SUMIFS($J$25:$J$224,$C$25:$C$224,$C159,$G$25:$G$224,Lists!$A$16)","v":0},0,null,"",null,{"$f":"IF(C159=0,\"\",LEFT(INDEX(Lists!$H$5:$H$49,MATCH(C159,Lists!$G$5:$G$49,0),1),1))","v":""},null,{"$f":"'Month 5'!H159+'Month 5'!I159-'Month 5'!J159","v":0},"","",null,"0"]
[{"$f":"Planning!A144","v":"I136"},{"$f":"Planning!B144","v":0},{"$f":"Planning!C144","v":0},{"$f":"Planning!D144","v":0},{"$f":"Planning!E144","v":0},{"$f":"IF(Planning!G144<>0,Planning!G144,\"\")","v":""},{"$f":"Planning!H144","v":0},{"$f":"Planning!X144","v":0},{"$f":"IF(OR(W160=\"1\",AND(W160<>\"1\",G160=Lists!$A$17)),Y160,0)","v":0},null,{"$f":"IF(AND(W160=\"2\",G160<>Lists!$A$17),AA160,Z160)","v":""},"",{"$f":"Planning!Y144","v":{"v":0,"d":"0.00"}},{"$f":"'Month 5'!M160+'Month 5'!N160-'Month 5'!O160","v":{"v":0,"d":"0.00"}},null,"","",{"$f":"SUMIFS($J$25:$J$224,$C$25:$C$224,$C160,$G$25:$G$224,Lists!$A$16)","v":0},0,null,"",null,{"$f":"IF(C160=0,\"\",LEFT(INDEX(Lists!$H$5:$H$49,MATCH(C160,Lists!$G$5:$G$49,0),1),1))","v":""},null,{"$f":"'Month 5'!H160+'Month 5'!I160-'Month 5'!J160","v":0},"","",null,"0"]
[{"$f":"Planning!A145","v":"I137"},{"$f":"Planning!B145","v":0},{"$f":"Planning!C145","v":0},{"$f":"Planning!D145","v":0},{"$f":"Planning!E145","v":0},{"$f":"IF(Planning!G145<>0,Planning!G145,\"\")","v":""},{"$f":"Planning!H145","v":0},{"$f":"Planning!X145","v":0},{"$f":"IF(OR(W161=\"1\",AND(W161<>\"1\",G161=Lists!$A$17)),Y161,0)","v":0},null,{"$f":"IF(AND(W161=\"2\",G161<>Lists!$A$17),AA161,Z161)","v":""},"",{"$f":"Planning!Y145","v":{"v":0,"d":"0.00"}},{"$f":"'Month 5'!M161+'Month 5'!N161-'Month 5'!O161","v":{"v":0,"d":"0.00"}},null,"","",{"$f":"SUMIFS($J$25:$J$224,$C$25:$C$224,$C161,$G$25:$G$224,Lists!$A$16)","v":0},0,null,"",null,{"$f":"IF(C161=0,\"\",LEFT(INDEX(Lists!$H$5:$H$49,MATCH(C161,Lists!$G$5:$G$49,0),1),1))","v":""},null,{"$f":"'Month 5'!H161+'Month 5'!I161-'Month 5'!J161","v":0},"","",null,"0"]
[{"$f":"Planning!A146","v":"I138"},{"$f":"Planning!B146","v":0},{"$f":"Planning!C146","v":0},{"$f":"Planning!D146","v":0},{"$f":"Planning!E146","v":0},{"$f":"IF(Planning!G146<>0,Planning!G146,\"\")","v":""},{"$f":"Planning!H146","v":0},{"$f":"Planning!X146","v":0},{"$f":"IF(OR(W162=\"1\",AND(W162<>\"1\",G162=Lists!$A$17)),Y162,0)","v":0},null,{"$f":"IF(AND(W162=\"2\",G162<>Lists!$A$17),AA162,Z162)","v":""},"",{"$f":"Planning!Y146","v":{"v":0,"d":"0.00"}},{"$f":"'Month 5'!M162+'Month 5'!N162-'Month 5'!O162","v":{"v":0,"d":"0.00"}},null,"","",{"$f":"SUMIFS($J$25:$J$224,$C$25:$C$224,$C162,$G$25:$G$224,Lists!$A$16)","v":0},0,null,"",null,{"$f":"IF(C162=0,\"\",LEFT(INDEX(Lists!$H$5:$H$49,MATCH(C162,Lists!$G$5:$G$49,0),1),1))","v":""},null,{"$f":"'Month 5'!H162+'Month 5'!I162-'Month 5'!J162","v":0},"","",null,"0"]
[{"$f":"Planning!A147","v":"I139"},{"$f":"Planning!B147","v":0},{"$f":"Planning!C147","v":0},{"$f":"Planning!D147","v":0},{"$f":"Planning!E147","v":0},{"$f":"IF(Planning!G147<>0,Planning!G147,\"\")","v":""},{"$f":"Planning!H147","v":0},{"$f":"Planning!X147","v":0},{"$f":"IF(OR(W163=\"1\",AND(W163<>\"1\",G163=Lists!$A$17)),Y163,0)","v":0},null,{"$f":"IF(AND(W163=\"2\",G163<>Lists!$A$17),AA163,Z163)","v":""},"",{"$f":"Planning!Y147","v":{"v":0,"d":"0.00"}},{"$f":"'Month 5'!M163+'Month 5'!N163-'Month 5'!O163","v":{"v":0,"d":"0.00"}},null,"","",{"$f":"SUMIFS($J$25:$J$224,$C$25:$C$224,$C163,$G$25:$G$224,Lists!$A$16)","v":0},0,null,"",null,{"$f":"IF(C163=0,\"\",LEFT(INDEX(Lists!$H$5:$H$49,MATCH(C163,Lists!$G$5:$G$49,0),1),1))","v":""},null,{"$f":"'Month 5'!H163+'Month 5'!I163-'Month 5'!J163","v":0},"","",null,"0"]
[{"$f":"Planning!A148","v":"I140"},{"$f":"Planning!B148","v":0},{"$f":"Planning!C148","v":0},{"$f":"Planning!D148","v":0},{"$f":"Planning!E148","v":0},{"$f":"IF(Planning!G148<>0,Planning!G148,\"\")","v":""},{"$f":"Planning!H148","v":0},{"$f":"Planning!X148","v":0},{"$f":"IF(OR(W164=\"1\",AND(W164<>\"1\",G164=Lists!$A$17)),Y164,0)","v":0},null,{"$f":"IF(AND(W164=\"2\",G164<>Lists!$A$17),AA164,Z164)","v":""},"",{"$f":"Planning!Y148","v":{"v":0,"d":"0.00"}},{"$f":"'Month 5'!M164+'Month 5'!N164-'Month 5'!O164","v":{"v":0,"d":"0.00"}},null,"","",{"$f":"SUMIFS($J$25:$J$224,$C$25:$C$224,$C164,$G$25:$G$224,Lists!$A$16)","v":0},0,null,"",null,{"$f":"IF(C164=0,\"\",LEFT(INDEX(Lists!$H$5:$H$49,MATCH(C164,Lists!$G$5:$G$49,0),1),1))","v":""},null,{"$f":"'Month 5'!H164+'Month 5'!I164-'Month 5'!J164","v":0},"","",null,"0"]
[{"$f":"Planning!A149","v":"I141"},{"$f":"Planning!B149","v":0},{"$f":"Planning!C149","v":0},{"$f":"Planning!D149","v":0},{"$f":"Planning!E149","v":0},{"$f":"IF(Planning!G149<>0,Planning!G149,\"\")","v":""},{"$f":"Planning!H149","v":0},{"$f":"Planning!X149","v":0},{"$f":"IF(OR(W165=\"1\",AND(W165<>\"1\",G165=Lists!$A$17)),Y165,0)","v":0},null,{"$f":"IF(AND(W165=\"2\",G165<>Lists!$A$17),AA165,Z165)","v":""},"",{"$f":"Planning!Y149","v":{"v":0,"d":"0.00"}},{"$f":"'Month 5'!M165+'Month 5'!N165-'Month 5'!O165","v":{"v":0,"d":"0.00"}},null,"","",{"$f":"SUMIFS($J$25:$J$224,$C$25:$C$224,$C165,$G$25:$G$224,Lists!$A$16)","v":0},0,null,"",null,{"$f":"IF(C165=0,\"\",LEFT(INDEX(Lists!$H$5:$H$49,MATCH(C165,Lists!$G$5:$G$49,0),1),1))","v":""},null,{"$f":"'Month 5'!H165+'Month 5'!I165-'Month 5'!J165","v":0},"","",null,"0"]
[{"$f":"Planning!A150","v":"I142"},{"$f":"Planning!B150","v":0},{"$f":"Planning!C150","v":0},{"$f":"Planning!D150","v":0},{"$f":"Planning!E150","v":0},{"$f":"IF(Planning!G150<>0,Planning!G150,\"\")","v":""},{"$f":"Planning!H150","v":0},{"$f":"Planning!X150","v":0},{"$f":"IF(OR(W166=\"1\",AND(W166<>\"1\",G166=Lists!$A$17)),Y166,0)","v":0},null,{"$f":"IF(AND(W166=\"2\",G166<>Lists!$A$17),AA166,Z166)","v":""},"",{"$f":"Planning!Y150","v":{"v":0,"d":"0.00"}},{"$f":"'Month 5'!M166+'Month 5'!N166-'Month 5'!O166","v":{"v":0,"d":"0.00"}},null,"","",{"$f":"SUMIFS($J$25:$J$224,$C$25:$C$224,$C166,$G$25:$G$224,Lists!$A$16)","v":0},0,null,"",null,{"$f":"IF(C166=0,\"\",LEFT(INDEX(Lists!$H$5:$H$49,MATCH(C166,Lists!$G$5:$G$49,0),1),1))","v":""},null,{"$f":"'Month 5'!H166+'Month 5'!I166-'Month 5'!J166","v":0},"","",null,"0"]
[{"$f":"Planning!A151","v":"I143"},{"$f":"Planning!B151","v":0},{"$f":"Planning!C151","v":0},{"$f":"Planning!D151","v":0},{"$f":"Planning!E151","v":0},{"$f":"IF(Planning!G151<>0,Planning!G151,\"\")","v":""},{"$f":"Planning!H151","v":0},{"$f":"Planning!X151","v":0},{"$f":"IF(OR(W167=\"1\",AND(W167<>\"1\",G167=Lists!$A$17)),Y167,0)","v":0},null,{"$f":"IF(AND(W167=\"2\",G167<>Lists!$A$17),AA167,Z167)","v":""},"",{"$f":"Planning!Y151","v":{"v":0,"d":"0.00"}},{"$f":"'Month 5'!M167+'Month 5'!N167-'Month 5'!O167","v":{"v":0,"d":"0.00"}},null,"","",{"$f":"SUMIFS($J$25:$J$224,$C$25:$C$224,$C167,$G$25:$G$224,Lists!$A$16)","v":0},0,null,"",null,{"$f":"IF(C167=0,\"\",LEFT(INDEX(Lists!$H$5:$H$49,MATCH(C167,Lists!$G$5:$G$49,0),1),1))","v":""},null,{"$f":"'Month 5'!H167+'Month 5'!I167-'Month 5'!J167","v":0},"","",null,"0"]
[{"$f":"Planning!A152","v":"I144"},{"$f":"Planning!B152","v":0},{"$f":"Planning!C152","v":0},{"$f":"Planning!D152","v":0},{"$f":"Planning!E152","v":0},{"$f":"IF(Planning!G152<>0,Planning!G152,\"\")","v":""},{"$f":"Planning!H152","v":0},{"$f":"Planning!X152","v":0},{"$f":"IF(OR(W168=\"1\",AND(W168<>\"1\",G168=Lists!$A$17)),Y168,0)","v":0},null,{"$f":"IF(AND(W168=\"2\",G168<>Lists!$A$17),AA168,Z168)","v":""},"",{"$f":"Planning!Y152","v":{"v":0,"d":"0.00"}},{"$f":"'Month 5'!M168+'Month 5'!N168-'Month 5'!O168","v":{"v":0,"d":"0.00"}},null,"","",{"$f":"SUMIFS($J$25:$J$224,$C$25:$C$224,$C168,$G$25:$G$224,Lists!$A$16)","v":0},0,null,"",null,{"$f":"IF(C168=0,\"\",LEFT(INDEX(Lists!$H$5:$H$49,MATCH(C168,Lists!$G$5:$G$49,0),1),1))","v":""},null,{"$f":"'Month 5'!H168+'Month 5'!I168-'Month 5'!J168","v":0},"","",null,"0"]
[{"$f":"Planning!A153","v":"I145"},{"$f":"Planning!B153","v":0},{"$f":"Planning!C153","v":0},{"$f":"Planning!D153","v":0},{"$f":"Planning!E153","v":0},{"$f":"IF(Planning!G153<>0,Planning!G153,\"\")","v":""},{"$f":"Planning!H153","v":0},{"$f":"Planning!X153","v":0},{"$f":"IF(OR(W169=\"1\",AND(W169<>\"1\",G169=Lists!$A$17)),Y169,0)","v":0},null,{"$f":"IF(AND(W169=\"2\",G169<>Lists!$A$17),AA169,Z169)","v":""},"",{"$f":"Planning!Y153","v":{"v":0,"d":"0.00"}},{"$f":"'Month 5'!M169+'Month 5'!N169-'Month 5'!O169","v":{"v":0,"d":"0.00"}},null,"","",{"$f":"SUMIFS($J$25:$J$224,$C$25:$C$224,$C169,$G$25:$G$224,Lists!$A$16)","v":0},0,null,"",null,{"$f":"IF(C169=0,\"\",LEFT(INDEX(Lists!$H$5:$H$49,MATCH(C169,Lists!$G$5:$G$49,0),1),1))","v":""},null,{"$f":"'Month 5'!H169+'Month 5'!I169-'Month 5'!J169","v":0},"","",null,"0"]
[{"$f":"Planning!A154","v":"I146"},{"$f":"Planning!B154","v":0},{"$f":"Planning!C154","v":0},{"$f":"Planning!D154","v":0},{"$f":"Planning!E154","v":0},{"$f":"IF(Planning!G154<>0,Planning!G154,\"\")","v":""},{"$f":"Planning!H154","v":0},{"$f":"Planning!X154","v":0},{"$f":"IF(OR(W170=\"1\",AND(W170<>\"1\",G170=Lists!$A$17)),Y170,0)","v":0},null,{"$f":"IF(AND(W170=\"2\",G170<>Lists!$A$17),AA170,Z170)","v":""},"",{"$f":"Planning!Y154","v":{"v":0,"d":"0.00"}},{"$f":"'Month 5'!M170+'Month 5'!N170-'Month 5'!O170","v":{"v":0,"d":"0.00"}},null,"","",{"$f":"SUMIFS($J$25:$J$224,$C$25:$C$224,$C170,$G$25:$G$224,Lists!$A$16)","v":0},0,null,"",null,{"$f":"IF(C170=0,\"\",LEFT(INDEX(Lists!$H$5:$H$49,MATCH(C170,Lists!$G$5:$G$49,0),1),1))","v":""},null,{"$f":"'Month 5'!H170+'Month 5'!I170-'Month 5'!J170","v":0},"","",null,"0"]
[{"$f":"Planning!A155","v":"I147"},{"$f":"Planning!B155","v":0},{"$f":"Planning!C155","v":0},{"$f":"Planning!D155","v":0},{"$f":"Planning!E155","v":0},{"$f":"IF(Planning!G155<>0,Planning!G155,\"\")","v":""},{"$f":"Planning!H155","v":0},{"$f":"Planning!X155","v":0},{"$f":"IF(OR(W171=\"1\",AND(W171<>\"1\",G171=Lists!$A$17)),Y171,0)","v":0},null,{"$f":"IF(AND(W171=\"2\",G171<>Lists!$A$17),AA171,Z171)","v":""},"",{"$f":"Planning!Y155","v":{"v":0,"d":"0.00"}},{"$f":"'Month 5'!M171+'Month 5'!N171-'Month 5'!O171","v":{"v":0,"d":"0.00"}},null,"","",{"$f":"SUMIFS($J$25:$J$224,$C$25:$C$224,$C171,$G$25:$G$224,Lists!$A$16)","v":0},0,null,"",null,{"$f":"IF(C171=0,\"\",LEFT(INDEX(Lists!$H$5:$H$49,MATCH(C171,Lists!$G$5:$G$49,0),1),1))","v":""},null,{"$f":"'Month 5'!H171+'Month 5'!I171-'Month 5'!J171","v":0},"","",null,"0"]
[{"$f":"Planning!A156","v":"I148"},{"$f":"Planning!B156","v":0},{"$f":"Planning!C156","v":0},{"$f":"Planning!D156","v":0},{"$f":"Planning!E156","v":0},{"$f":"IF(Planning!G156<>0,Planning!G156,\"\")","v":""},{"$f":"Planning!H156","v":0},{"$f":"Planning!X156","v":0},{"$f":"IF(OR(W172=\"1\",AND(W172<>\"1\",G172=Lists!$A$17)),Y172,0)","v":0},null,{"$f":"IF(AND(W172=\"2\",G172<>Lists!$A$17),AA172,Z172)","v":""},"",{"$f":"Planning!Y156","v":{"v":0,"d":"0.00"}},{"$f":"'Month 5'!M172+'Month 5'!N172-'Month 5'!O172","v":{"v":0,"d":"0.00"}},null,"","",{"$f":"SUMIFS($J$25:$J$224,$C$25:$C$224,$C172,$G$25:$G$224,Lists!$A$16)","v":0},0,null,"",null,{"$f":"IF(C172=0,\"\",LEFT(INDEX(Lists!$H$5:$H$49,MATCH(C172,Lists!$G$5:$G$49,0),1),1))","v":""},null,{"$f":"'Month 5'!H172+'Month 5'!I172-'Month 5'!J172","v":0},"","",null,"0"]
[{"$f":"Planning!A157","v":"I149"},{"$f":"Planning!B157","v":0},{"$f":"Planning!C157","v":0},{"$f":"Planning!D157","v":0},{"$f":"Planning!E157","v":0},{"$f":"IF(Planning!G157<>0,Planning!G157,\"\")","v":""},{"$f":"Planning!H157","v":0},{"$f":"Planning!X157","v":0},{"$f":"IF(OR(W173=\"1\",AND(W173<>\"1\",G173=Lists!$A$17)),Y173,0)","v":0},null,{"$f":"IF(AND(W173=\"2\",G173<>Lists!$A$17),AA173,Z173)","v":""},"",{"$f":"Planning!Y157","v":{"v":0,"d":"0.00"}},{"$f":"'Month 5'!M173+'Month 5'!N173-'Month 5'!O173","v":{"v":0,"d":"0.00"}},null,"","",{"$f":"SUMIFS($J$25:$J$224,$C$25:$C$224,$C173,$G$25:$G$224,Lists!$A$16)","v":0},0,null,"",null,{"$f":"IF(C173=0,\"\",LEFT(INDEX(Lists!$H$5:$H$49,MATCH(C173,Lists!$G$5:$G$49,0),1),1))","v":""},null,{"$f":"'Month 5'!H173+'Month 5'!I173-'Month 5'!J173","v":0},"","",null,"0"]
[{"$f":"Planning!A158","v":"I150"},{"$f":"Planning!B158","v":0},{"$f":"Planning!C158","v":0},{"$f":"Planning!D158","v":0},{"$f":"Planning!E158","v":0},{"$f":"IF(Planning!G158<>0,Planning!G158,\"\")","v":""},{"$f":"Planning!H158","v":0},{"$f":"Planning!X158","v":0},{"$f":"IF(OR(W174=\"1\",AND(W174<>\"1\",G174=Lists!$A$17)),Y174,0)","v":0},null,{"$f":"IF(AND(W174=\"2\",G174<>Lists!$A$17),AA174,Z174)","v":""},"",{"$f":"Planning!Y158","v":{"v":0,"d":"0.00"}},{"$f":"'Month 5'!M174+'Month 5'!N174-'Month 5'!O174","v":{"v":0,"d":"0.00"}},null,"","",{"$f":"SUMIFS($J$25:$J$224,$C$25:$C$224,$C174,$G$25:$G$224,Lists!$A$16)","v":0},0,null,"",null,{"$f":"IF(C174=0,\"\",LEFT(INDEX(Lists!$H$5:$H$49,MATCH(C174,Lists!$G$5:$G$49,0),1),1))","v":""},null,{"$f":"'Month 5'!H174+'Month 5'!I174-'Month 5'!J174","v":0},"","",null,"0"]
[{"$f":"Planning!A159","v":"I151"},{"$f":"Planning!B159","v":0},{"$f":"Planning!C159","v":0},{"$f":"Planning!D159","v":0},{"$f":"Planning!E159","v":0},{"$f":"IF(Planning!G159<>0,Planning!G159,\"\")","v":""},{"$f":"Planning!H159","v":0},{"$f":"Planning!X159","v":0},{"$f":"IF(OR(W175=\"1\",AND(W175<>\"1\",G175=Lists!$A$17)),Y175,0)","v":0},null,{"$f":"IF(AND(W175=\"2\",G175<>Lists!$A$17),AA175,Z175)","v":""},"",{"$f":"Planning!Y159","v":{"v":0,"d":"0.00"}},{"$f":"'Month 5'!M175+'Month 5'!N175-'Month 5'!O175","v":{"v":0,"d":"0.00"}},null,"","",{"$f":"SUMIFS($J$25:$J$224,$C$25:$C$224,$C175,$G$25:$G$224,Lists!$A$16)","v":0},0,null,"",null,{"$f":"IF(C175=0,\"\",LEFT(INDEX(Lists!$H$5:$H$49,MATCH(C175,Lists!$G$5:$G$49,0),1),1))","v":""},null,{"$f":"'Month 5'!H175+'Month 5'!I175-'Month 5'!J175","v":0},"","",null,"0"]
[{"$f":"Planning!A160","v":"I152"},{"$f":"Planning!B160","v":0},{"$f":"Planning!C160","v":0},{"$f":"Planning!D160","v":0},{"$f":"Planning!E160","v":0},{"$f":"IF(Planning!G160<>0,Planning!G160,\"\")","v":""},{"$f":"Planning!H160","v":0},{"$f":"Planning!X160","v":0},{"$f":"IF(OR(W176=\"1\",AND(W176<>\"1\",G176=Lists!$A$17)),Y176,0)","v":0},null,{"$f":"IF(AND(W176=\"2\",G176<>Lists!$A$17),AA176,Z176)","v":""},"",{"$f":"Planning!Y160","v":{"v":0,"d":"0.00"}},{"$f":"'Month 5'!M176+'Month 5'!N176-'Month 5'!O176","v":{"v":0,"d":"0.00"}},null,"","",{"$f":"SUMIFS($J$25:$J$224,$C$25:$C$224,$C176,$G$25:$G$224,Lists!$A$16)","v":0},0,null,"",null,{"$f":"IF(C176=0,\"\",LEFT(INDEX(Lists!$H$5:$H$49,MATCH(C176,Lists!$G$5:$G$49,0),1),1))","v":""},null,{"$f":"'Month 5'!H176+'Month 5'!I176-'Month 5'!J176","v":0},"","",null,"0"]
[{"$f":"Planning!A161","v":"I153"},{"$f":"Planning!B161","v":0},{"$f":"Planning!C161","v":0},{"$f":"Planning!D161","v":0},{"$f":"Planning!E161","v":0},{"$f":"IF(Planning!G161<>0,Planning!G161,\"\")","v":""},{"$f":"Planning!H161","v":0},{"$f":"Planning!X161","v":0},{"$f":"IF(OR(W177=\"1\",AND(W177<>\"1\",G177=Lists!$A$17)),Y177,0)","v":0},null,{"$f":"IF(AND(W177=\"2\",G177<>Lists!$A$17),AA177,Z177)","v":""},"",{"$f":"Planning!Y161","v":{"v":0,"d":"0.00"}},{"$f":"'Month 5'!M177+'Month 5'!N177-'Month 5'!O177","v":{"v":0,"d":"0.00"}},null,"","",{"$f":"SUMIFS($J$25:$J$224,$C$25:$C$224,$C177,$G$25:$G$224,Lists!$A$16)","v":0},0,null,"",null,{"$f":"IF(C177=0,\"\",LEFT(INDEX(Lists!$H$5:$H$49,MATCH(C177,Lists!$G$5:$G$49,0),1),1))","v":""},null,{"$f":"'Month 5'!H177+'Month 5'!I177-'Month 5'!J177","v":0},"","",null,"0"]
[{"$f":"Planning!A162","v":"I154"},{"$f":"Planning!B162","v":0},{"$f":"Planning!C162","v":0},{"$f":"Planning!D162","v":0},{"$f":"Planning!E162","v":0},{"$f":"IF(Planning!G162<>0,Planning!G162,\"\")","v":""},{"$f":"Planning!H162","v":0},{"$f":"Planning!X162","v":0},{"$f":"IF(OR(W178=\"1\",AND(W178<>\"1\",G178=Lists!$A$17)),Y178,0)","v":0},null,{"$f":"IF(AND(W178=\"2\",G178<>Lists!$A$17),AA178,Z178)","v":""},"",{"$f":"Planning!Y162","v":{"v":0,"d":"0.00"}},{"$f":"'Month 5'!M178+'Month 5'!N178-'Month 5'!O178","v":{"v":0,"d":"0.00"}},null,"","",{"$f":"SUMIFS($J$25:$J$224,$C$25:$C$224,$C178,$G$25:$G$224,Lists!$A$16)","v":0},0,null,"",null,{"$f":"IF(C178=0,\"\",LEFT(INDEX(Lists!$H$5:$H$49,MATCH(C178,Lists!$G$5:$G$49,0),1),1))","v":""},null,{"$f":"'Month 5'!H178+'Month 5'!I178-'Month 5'!J178","v":0},"","",null,"0"]
[{"$f":"Planning!A163","v":"I155"},{"$f":"Planning!B163","v":0},{"$f":"Planning!C163","v":0},{"$f":"Planning!D163","v":0},{"$f":"Planning!E163","v":0},{"$f":"IF(Planning!G163<>0,Planning!G163,\"\")","v":""},{"$f":"Planning!H163","v":0},{"$f":"Planning!X163","v":0},{"$f":"IF(OR(W179=\"1\",AND(W179<>\"1\",G179=Lists!$A$17)),Y179,0)","v":0},null,{"$f":"IF(AND(W179=\"2\",G179<>Lists!$A$17),AA179,Z179)","v":""},"",{"$f":"Planning!Y163","v":{"v":0,"d":"0.00"}},{"$f":"'Month 5'!M179+'Month 5'!N179-'Month 5'!O179","v":{"v":0,"d":"0.00"}},null,"","",{"$f":"SUMIFS($J$25:$J$224,$C$25:$C$224,$C179,$G$25:$G$224,Lists!$A$16)","v":0},0,null,"",null,{"$f":"IF(C179=0,\"\",LEFT(INDEX(Lists!$H$5:$H$49,MATCH(C179,Lists!$G$5:$G$49,0),1),1))","v":""},null,{"$f":"'Month 5'!H179+'Month 5'!I179-'Month 5'!J179","v":0},"","",null,"0"]
[{"$f":"Planning!A164","v":"I156"},{"$f":"Planning!B164","v":0},{"$f":"Planning!C164","v":0},{"$f":"Planning!D164","v":0},{"$f":"Planning!E164","v":0},{"$f":"IF(Planning!G164<>0,Planning!G164,\"\")","v":""},{"$f":"Planning!H164","v":0},{"$f":"Planning!X164","v":0},{"$f":"IF(OR(W180=\"1\",AND(W180<>\"1\",G180=Lists!$A$17)),Y180,0)","v":0},null,{"$f":"IF(AND(W180=\"2\",G180<>Lists!$A$17),AA180,Z180)","v":""},"",{"$f":"Planning!Y164","v":{"v":0,"d":"0.00"}},{"$f":"'Month 5'!M180+'Month 5'!N180-'Month 5'!O180","v":{"v":0,"d":"0.00"}},null,"","",{"$f":"SUMIFS($J$25:$J$224,$C$25:$C$224,$C180,$G$25:$G$224,Lists!$A$16)","v":0},0,null,"",null,{"$f":"IF(C180=0,\"\",LEFT(INDEX(Lists!$H$5:$H$49,MATCH(C180,Lists!$G$5:$G$49,0),1),1))","v":""},null,{"$f":"'Month 5'!H180+'Month 5'!I180-'Month 5'!J180","v":0},"","",null,"0"]
[{"$f":"Planning!A165","v":"I157"},{"$f":"Planning!B165","v":0},{"$f":"Planning!C165","v":0},{"$f":"Planning!D165","v":0},{"$f":"Planning!E165","v":0},{"$f":"IF(Planning!G165<>0,Planning!G165,\"\")","v":""},{"$f":"Planning!H165","v":0},{"$f":"Planning!X165","v":0},{"$f":"IF(OR(W181=\"1\",AND(W181<>\"1\",G181=Lists!$A$17)),Y181,0)","v":0},null,{"$f":"IF(AND(W181=\"2\",G181<>Lists!$A$17),AA181,Z181)","v":""},"",{"$f":"Planning!Y165","v":{"v":0,"d":"0.00"}},{"$f":"'Month 5'!M181+'Month 5'!N181-'Month 5'!O181","v":{"v":0,"d":"0.00"}},null,"","",{"$f":"SUMIFS($J$25:$J$224,$C$25:$C$224,$C181,$G$25:$G$224,Lists!$A$16)","v":0},0,null,"",null,{"$f":"IF(C181=0,\"\",LEFT(INDEX(Lists!$H$5:$H$49,MATCH(C181,Lists!$G$5:$G$49,0),1),1))","v":""},null,{"$f":"'Month 5'!H181+'Month 5'!I181-'Month 5'!J181","v":0},"","",null,"0"]
[{"$f":"Planning!A166","v":"I158"},{"$f":"Planning!B166","v":0},{"$f":"Planning!C166","v":0},{"$f":"Planning!D166","v":0},{"$f":"Planning!E166","v":0},{"$f":"IF(Planning!G166<>0,Planning!G166,\"\")","v":""},{"$f":"Planning!H166","v":0},{"$f":"Planning!X166","v":0},{"$f":"IF(OR(W182=\"1\",AND(W182<>\"1\",G182=Lists!$A$17)),Y182,0)","v":0},null,{"$f":"IF(AND(W182=\"2\",G182<>Lists!$A$17),AA182,Z182)","v":""},"",{"$f":"Planning!Y166","v":{"v":0,"d":"0.00"}},{"$f":"'Month 5'!M182+'Month 5'!N182-'Month 5'!O182","v":{"v":0,"d":"0.00"}},null,"","",{"$f":"SUMIFS($J$25:$J$224,$C$25:$C$224,$C182,$G$25:$G$224,Lists!$A$16)","v":0},0,null,"",null,{"$f":"IF(C182=0,\"\",LEFT(INDEX(Lists!$H$5:$H$49,MATCH(C182,Lists!$G$5:$G$49,0),1),1))","v":""},null,{"$f":"'Month 5'!H182+'Month 5'!I182-'Month 5'!J182","v":0},"","",null,"0"]
[{"$f":"Planning!A167","v":"I159"},{"$f":"Planning!B167","v":0},{"$f":"Planning!C167","v":0},{"$f":"Planning!D167","v":0},{"$f":"Planning!E167","v":0},{"$f":"IF(Planning!G167<>0,Planning!G167,\"\")","v":""},{"$f":"Planning!H167","v":0},{"$f":"Planning!X167","v":0},{"$f":"IF(OR(W183=\"1\",AND(W183<>\"1\",G183=Lists!$A$17)),Y183,0)","v":0},null,{"$f":"IF(AND(W183=\"2\",G183<>Lists!$A$17),AA183,Z183)","v":""},"",{"$f":"Planning!Y167","v":{"v":0,"d":"0.00"}},{"$f":"'Month 5'!M183+'Month 5'!N183-'Month 5'!O183","v":{"v":0,"d":"0.00"}},null,"","",{"$f":"SUMIFS($J$25:$J$224,$C$25:$C$224,$C183,$G$25:$G$224,Lists!$A$16)","v":0},0,null,"",null,{"$f":"IF(C183=0,\"\",LEFT(INDEX(Lists!$H$5:$H$49,MATCH(C183,Lists!$G$5:$G$49,0),1),1))","v":""},null,{"$f":"'Month 5'!H183+'Month 5'!I183-'Month 5'!J183","v":0},"","",null,"0"]
[{"$f":"Planning!A168","v":"I160"},{"$f":"Planning!B168","v":0},{"$f":"Planning!C168","v":0},{"$f":"Planning!D168","v":0},{"$f":"Planning!E168","v":0},{"$f":"IF(Planning!G168<>0,Planning!G168,\"\")","v":""},{"$f":"Planning!H168","v":0},{"$f":"Planning!X168","v":0},{"$f":"IF(OR(W184=\"1\",AND(W184<>\"1\",G184=Lists!$A$17)),Y184,0)","v":0},null,{"$f":"IF(AND(W184=\"2\",G184<>Lists!$A$17),AA184,Z184)","v":""},"",{"$f":"Planning!Y168","v":{"v":0,"d":"0.00"}},{"$f":"'Month 5'!M184+'Month 5'!N184-'Month 5'!O184","v":{"v":0,"d":"0.00"}},null,"","",{"$f":"SUMIFS($J$25:$J$224,$C$25:$C$224,$C184,$G$25:$G$224,Lists!$A$16)","v":0},0,null,"",null,{"$f":"IF(C184=0,\"\",LEFT(INDEX(Lists!$H$5:$H$49,MATCH(C184,Lists!$G$5:$G$49,0),1),1))","v":""},null,{"$f":"'Month 5'!H184+'Month 5'!I184-'Month 5'!J184","v":0},"","",null,"0"]
[{"$f":"Planning!A169","v":"I161"},{"$f":"Planning!B169","v":0},{"$f":"Planning!C169","v":0},{"$f":"Planning!D169","v":0},{"$f":"Planning!E169","v":0},{"$f":"IF(Planning!G169<>0,Planning!G169,\"\")","v":""},{"$f":"Planning!H169","v":0},{"$f":"Planning!X169","v":0},{"$f":"IF(OR(W185=\"1\",AND(W185<>\"1\",G185=Lists!$A$17)),Y185,0)","v":0},null,{"$f":"IF(AND(W185=\"2\",G185<>Lists!$A$17),AA185,Z185)","v":""},{"$f":"IF($U185=ExcluirDelPLogro,\"\",IF(AND(H185=0,I185=0,J185=0),\"\",K185))","v":""},{"$f":"Planning!Y169","v":{"v":0,"d":"0.00"}},{"$f":"'Month 5'!M185+'Month 5'!N185-'Month 5'!O185","v":{"v":0,"d":"0.00"}},null,"",{"$f":"IF($U185=ExcluirDelPLogro,\"\",IF(AND(M185=0,N185=0,O185=0),\"\",P185))","v":""},{"$f":"SUMIFS($J$25:$J$224,$C$25:$C$224,$C185,$G$25:$G$224,Lists!$A$16)","v":0},0,null,"",null,{"$f":"IF(C185=0,\"\",LEFT(INDEX(Lists!$H$5:$H$49,MATCH(C185,Lists!$G$5:$G$49,0),1),1))","v":""},null,{"$f":"'Month 5'!H185+'Month 5'!I185-'Month 5'!J185","v":0},"",{"$f":"IF(AND(H185=0,I185=0,J185=0),\"\",IF(J185>0,H185/J185,0))","v":""},null,"0"]
[{"$f":"Planning!A170","v":"I162"},{"$f":"Planning!B170","v":0},{"$f":"Planning!C170","v":0},{"$f":"Planning!D170","v":0},{"$f":"Planning!E170","v":0},{"$f":"IF(Planning!G170<>0,Planning!G170,\"\")","v":""},{"$f":"Planning!H170","v":0},{"$f":"Planning!X170","v":0},{"$f":"IF(OR(W186=\"1\",AND(W186<>\"1\",G186=Lists!$A$17)),Y186,0)","v":0},null,{"$f":"IF(AND(W186=\"2\",G186<>Lists!$A$17),AA186,Z186)","v":""},"",{"$f":"Planning!Y170","v":{"v":0,"d":"0.00"}},{"$f":"'Month 5'!M186+'Month 5'!N186-'Month 5'!O186","v":{"v":0,"d":"0.00"}},null,"","",{"$f":"SUMIFS($J$25:$J$224,$C$25:$C$224,$C186,$G$25:$G$224,Lists!$A$16)","v":0},0,null,"",null,{"$f":"IF(C186=0,\"\",LEFT(INDEX(Lists!$H$5:$H$49,MATCH(C186,Lists!$G$5:$G$49,0),1),1))","v":""},null,{"$f":"'Month 5'!H186+'Month 5'!I186-'Month 5'!J186","v":0},"","",null,"0"]
[{"$f":"Planning!A171","v":"I163"},{"$f":"Planning!B171","v":0},{"$f":"Planning!C171","v":0},{"$f":"Planning!D171","v":0},{"$f":"Planning!E171","v":0},{"$f":"IF(Planning!G171<>0,Planning!G171,\"\")","v":""},{"$f":"Planning!H171","v":0},{"$f":"Planning!X171","v":0},{"$f":"IF(OR(W187=\"1\",AND(W187<>\"1\",G187=Lists!$A$17)),Y187,0)","v":0},null,{"$f":"IF(AND(W187=\"2\",G187<>Lists!$A$17),AA187,Z187)","v":""},"",{"$f":"Planning!Y171","v":{"v":0,"d":"0.00"}},{"$f":"'Month 5'!M187+'Month 5'!N187-'Month 5'!O187","v":{"v":0,"d":"0.00"}},null,"","",{"$f":"SUMIFS($J$25:$J$224,$C$25:$C$224,$C187,$G$25:$G$224,Lists!$A$16)","v":0},0,null,"",null,{"$f":"IF(C187=0,\"\",LEFT(INDEX(Lists!$H$5:$H$49,MATCH(C187,Lists!$G$5:$G$49,0),1),1))","v":""},null,{"$f":"'Month 5'!H187+'Month 5'!I187-'Month 5'!J187","v":0},"","",null,"0"]
[{"$f":"Planning!A172","v":"I164"},{"$f":"Planning!B172","v":0},{"$f":"Planning!C172","v":0},{"$f":"Planning!D172","v":0},{"$f":"Planning!E172","v":0},{"$f":"IF(Planning!G172<>0,Planning!G172,\"\")","v":""},{"$f":"Planning!H172","v":0},{"$f":"Planning!X172","v":0},{"$f":"IF(OR(W188=\"1\",AND(W188<>\"1\",G188=Lists!$A$17)),Y188,0)","v":0},null,{"$f":"IF(AND(W188=\"2\",G188<>Lists!$A$17),AA188,Z188)","v":""},"",{"$f":"Planning!Y172","v":{"v":0,"d":"0.00"}},{"$f":"'Month 5'!M188+'Month 5'!N188-'Month 5'!O188","v":{"v":0,"d":"0.00"}},null,"","",{"$f":"SUMIFS($J$25:$J$224,$C$25:$C$224,$C188,$G$25:$G$224,Lists!$A$16)","v":0},0,null,"",null,{"$f":"IF(C188=0,\"\",LEFT(INDEX(Lists!$H$5:$H$49,MATCH(C188,Lists!$G$5:$G$49,0),1),1))","v":""},null,{"$f":"'Month 5'!H188+'Month 5'!I188-'Month 5'!J188","v":0},"","",null,"0"]
[{"$f":"Planning!A173","v":"I165"},{"$f":"Planning!B173","v":0},{"$f":"Planning!C173","v":0},{"$f":"Planning!D173","v":0},{"$f":"Planning!E173","v":0},{"$f":"IF(Planning!G173<>0,Planning!G173,\"\")","v":""},{"$f":"Planning!H173","v":0},{"$f":"Planning!X173","v":0},{"$f":"IF(OR(W189=\"1\",AND(W189<>\"1\",G189=Lists!$A$17)),Y189,0)","v":0},null,{"$f":"IF(AND(W189=\"2\",G189<>Lists!$A$17),AA189,Z189)","v":""},"",{"$f":"Planning!Y173","v":{"v":0,"d":"0.00"}},{"$f":"'Month 5'!M189+'Month 5'!N189-'Month 5'!O189","v":{"v":0,"d":"0.00"}},null,"","",{"$f":"SUMIFS($J$25:$J$224,$C$25:$C$224,$C189,$G$25:$G$224,Lists!$A$16)","v":0},0,null,"",null,{"$f":"IF(C189=0,\"\",LEFT(INDEX(Lists!$H$5:$H$49,MATCH(C189,Lists!$G$5:$G$49,0),1),1))","v":""},null,{"$f":"'Month 5'!H189+'Month 5'!I189-'Month 5'!J189","v":0},"","",null,"0"]
[{"$f":"Planning!A174","v":"I166"},{"$f":"Planning!B174","v":0},{"$f":"Planning!C174","v":0},{"$f":"Planning!D174","v":0},{"$f":"Planning!E174","v":0},{"$f":"IF(Planning!G174<>0,Planning!G174,\"\")","v":""},{"$f":"Planning!H174","v":0},{"$f":"Planning!X174","v":0},{"$f":"IF(OR(W190=\"1\",AND(W190<>\"1\",G190=Lists!$A$17)),Y190,0)","v":0},null,{"$f":"IF(AND(W190=\"2\",G190<>Lists!$A$17),AA190,Z190)","v":""},"",{"$f":"Planning!Y174","v":{"v":0,"d":"0.00"}},{"$f":"'Month 5'!M190+'Month 5'!N190-'Month 5'!O190","v":{"v":0,"d":"0.00"}},null,"","",{"$f":"SUMIFS($J$25:$J$224,$C$25:$C$224,$C190,$G$25:$G$224,Lists!$A$16)","v":0},0,null,"",null,{"$f":"IF(C190=0,\"\",LEFT(INDEX(Lists!$H$5:$H$49,MATCH(C190,Lists!$G$5:$G$49,0),1),1))","v":""},null,{"$f":"'Month 5'!H190+'Month 5'!I190-'Month 5'!J190","v":0},"","",null,"0"]
[{"$f":"Planning!A175","v":"I167"},{"$f":"Planning!B175","v":0},{"$f":"Planning!C175","v":0},{"$f":"Planning!D175","v":0},{"$f":"Planning!E175","v":0},{"$f":"IF(Planning!G175<>0,Planning!G175,\"\")","v":""},{"$f":"Planning!H175","v":0},{"$f":"Planning!X175","v":0},{"$f":"IF(OR(W191=\"1\",AND(W191<>\"1\",G191=Lists!$A$17)),Y191,0)","v":0},null,{"$f":"IF(AND(W191=\"2\",G191<>Lists!$A$17),AA191,Z191)","v":""},"",{"$f":"Planning!Y175","v":{"v":0,"d":"0.00"}},{"$f":"'Month 5'!M191+'Month 5'!N191-'Month 5'!O191","v":{"v":0,"d":"0.00"}},null,"","",{"$f":"SUMIFS($J$25:$J$224,$C$25:$C$224,$C191,$G$25:$G$224,Lists!$A$16)","v":0},0,null,"",null,{"$f":"IF(C191=0,\"\",LEFT(INDEX(Lists!$H$5:$H$49,MATCH(C191,Lists!$G$5:$G$49,0),1),1))","v":""},null,{"$f":"'Month 5'!H191+'Month 5'!I191-'Month 5'!J191","v":0},"","",null,"0"]
[{"$f":"Planning!A176","v":"I168"},{"$f":"Planning!B176","v":0},{"$f":"Planning!C176","v":0},{"$f":"Planning!D176","v":0},{"$f":"Planning!E176","v":0},{"$f":"IF(Planning!G176<>0,Planning!G176,\"\")","v":""},{"$f":"Planning!H176","v":0},{"$f":"Planning!X176","v":0},{"$f":"IF(OR(W192=\"1\",AND(W192<>\"1\",G192=Lists!$A$17)),Y192,0)","v":0},null,{"$f":"IF(AND(W192=\"2\",G192<>Lists!$A$17),AA192,Z192)","v":""},"",{"$f":"Planning!Y176","v":{"v":0,"d":"0.00"}},{"$f":"'Month 5'!M192+'Month 5'!N192-'Month 5'!O192","v":{"v":0,"d":"0.00"}},null,"","",{"$f":"SUMIFS($J$25:$J$224,$C$25:$C$224,$C192,$G$25:$G$224,Lists!$A$16)","v":0},0,null,"",null,{"$f":"IF(C192=0,\"\",LEFT(INDEX(Lists!$H$5:$H$49,MATCH(C192,Lists!$G$5:$G$49,0),1),1))","v":""},null,{"$f":"'Month 5'!H192+'Month 5'!I192-'Month 5'!J192","v":0},"","",null,"0"]
[{"$f":"Planning!A177","v":"I169"},{"$f":"Planning!B177","v":0},{"$f":"Planning!C177","v":0},{"$f":"Planning!D177","v":0},{"$f":"Planning!E177","v":0},{"$f":"IF(Planning!G177<>0,Planning!G177,\"\")","v":""},{"$f":"Planning!H177","v":0},{"$f":"Planning!X177","v":0},{"$f":"IF(OR(W193=\"1\",AND(W193<>\"1\",G193=Lists!$A$17)),Y193,0)","v":0},null,{"$f":"IF(AND(W193=\"2\",G193<>Lists!$A$17),AA193,Z193)","v":""},"",{"$f":"Planning!Y177","v":{"v":0,"d":"0.00"}},{"$f":"'Month 5'!M193+'Month 5'!N193-'Month 5'!O193","v":{"v":0,"d":"0.00"}},null,"","",{"$f":"SUMIFS($J$25:$J$224,$C$25:$C$224,$C193,$G$25:$G$224,Lists!$A$16)","v":0},0,null,"",null,{"$f":"IF(C193=0,\"\",LEFT(INDEX(Lists!$H$5:$H$49,MATCH(C193,Lists!$G$5:$G$49,0),1),1))","v":""},null,{"$f":"'Month 5'!H193+'Month 5'!I193-'Month 5'!J193","v":0},"","",null,"0"]
[{"$f":"Planning!A178","v":"I170"},{"$f":"Planning!B178","v":0},{"$f":"Planning!C178","v":0},{"$f":"Planning!D178","v":0},{"$f":"Planning!E178","v":0},{"$f":"IF(Planning!G178<>0,Planning!G178,\"\")","v":""},{"$f":"Planning!H178","v":0},{"$f":"Planning!X178","v":0},{"$f":"IF(OR(W194=\"1\",AND(W194<>\"1\",G194=Lists!$A$17)),Y194,0)","v":0},null,{"$f":"IF(AND(W194=\"2\",G194<>Lists!$A$17),AA194,Z194)","v":""},"",{"$f":"Planning!Y178","v":{"v":0,"d":"0.00"}},{"$f":"'Month 5'!M194+'Month 5'!N194-'Month 5'!O194","v":{"v":0,"d":"0.00"}},null,"","",{"$f":"SUMIFS($J$25:$J$224,$C$25:$C$224,$C194,$G$25:$G$224,Lists!$A$16)","v":0},0,null,"",null,{"$f":"IF(C194=0,\"\",LEFT(INDEX(Lists!$H$5:$H$49,MATCH(C194,Lists!$G$5:$G$49,0),1),1))","v":""},null,{"$f":"'Month 5'!H194+'Month 5'!I194-'Month 5'!J194","v":0},"","",null,"0"]
[{"$f":"Planning!A179","v":"I171"},{"$f":"Planning!B179","v":0},{"$f":"Planning!C179","v":0},{"$f":"Planning!D179","v":0},{"$f":"Planning!E179","v":0},{"$f":"IF(Planning!G179<>0,Planning!G179,\"\")","v":""},{"$f":"Planning!H179","v":0},{"$f":"Planning!X179","v":0},{"$f":"IF(OR(W195=\"1\",AND(W195<>\"1\",G195=Lists!$A$17)),Y195,0)","v":0},null,{"$f":"IF(AND(W195=\"2\",G195<>Lists!$A$17),AA195,Z195)","v":""},"",{"$f":"Planning!Y179","v":{"v":0,"d":"0.00"}},{"$f":"'Month 5'!M195+'Month 5'!N195-'Month 5'!O195","v":{"v":0,"d":"0.00"}},null,"","",{"$f":"SUMIFS($J$25:$J$224,$C$25:$C$224,$C195,$G$25:$G$224,Lists!$A$16)","v":0},0,null,"",null,{"$f":"IF(C195=0,\"\",LEFT(INDEX(Lists!$H$5:$H$49,MATCH(C195,Lists!$G$5:$G$49,0),1),1))","v":""},null,{"$f":"'Month 5'!H195+'Month 5'!I195-'Month 5'!J195","v":0},"","",null,"0"]
[{"$f":"Planning!A180","v":"I172"},{"$f":"Planning!B180","v":0},{"$f":"Planning!C180","v":0},{"$f":"Planning!D180","v":0},{"$f":"Planning!E180","v":0},{"$f":"IF(Planning!G180<>0,Planning!G180,\"\")","v":""},{"$f":"Planning!H180","v":0},{"$f":"Planning!X180","v":0},{"$f":"IF(OR(W196=\"1\",AND(W196<>\"1\",G196=Lists!$A$17)),Y196,0)","v":0},null,{"$f":"IF(AND(W196=\"2\",G196<>Lists!$A$17),AA196,Z196)","v":""},"",{"$f":"Planning!Y180","v":{"v":0,"d":"0.00"}},{"$f":"'Month 5'!M196+'Month 5'!N196-'Month 5'!O196","v":{"v":0,"d":"0.00"}},null,"","",{"$f":"SUMIFS($J$25:$J$224,$C$25:$C$224,$C196,$G$25:$G$224,Lists!$A$16)","v":0},0,null,"",null,{"$f":"IF(C196=0,\"\",LEFT(INDEX(Lists!$H$5:$H$49,MATCH(C196,Lists!$G$5:$G$49,0),1),1))","v":""},null,{"$f":"'Month 5'!H196+'Month 5'!I196-'Month 5'!J196","v":0},"","",null,"0"]
[{"$f":"Planning!A181","v":"I173"},{"$f":"Planning!B181","v":0},{"$f":"Planning!C181","v":0},{"$f":"Planning!D181","v":0},{"$f":"Planning!E181","v":0},{"$f":"IF(Planning!G181<>0,Planning!G181,\"\")","v":""},{"$f":"Planning!H181","v":0},{"$f":"Planning!X181","v":0},{"$f":"IF(OR(W197=\"1\",AND(W197<>\"1\",G197=Lists!$A$17)),Y197,0)","v":0},null,{"$f":"IF(AND(W197=\"2\",G197<>Lists!$A$17),AA197,Z197)","v":""},"",{"$f":"Planning!Y181","v":{"v":0,"d":"0.00"}},{"$f":"'Month 5'!M197+'Month 5'!N197-'Month 5'!O197","v":{"v":0,"d":"0.00"}},null,"","",{"$f":"SUMIFS($J$25:$J$224,$C$25:$C$224,$C197,$G$25:$G$224,Lists!$A$16)","v":0},0,null,"",null,{"$f":"IF(C197=0,\"\",LEFT(INDEX(Lists!$H$5:$H$49,MATCH(C197,Lists!$G$5:$G$49,0),1),1))","v":""},null,{"$f":"'Month 5'!H197+'Month 5'!I197-'Month 5'!J197","v":0},"","",null,"0"]
[{"$f":"Planning!A182","v":"I174"},{"$f":"Planning!B182","v":0},{"$f":"Planning!C182","v":0},{"$f":"Planning!D182","v":0},{"$f":"Planning!E182","v":0},{"$f":"IF(Planning!G182<>0,Planning!G182,\"\")","v":""},{"$f":"Planning!H182","v":0},{"$f":"Planning!X182","v":0},{"$f":"IF(OR(W198=\"1\",AND(W198<>\"1\",G198=Lists!$A$17)),Y198,0)","v":0},null,{"$f":"IF(AND(W198=\"2\",G198<>Lists!$A$17),AA198,Z198)","v":""},"",{"$f":"Planning!Y182","v":{"v":0,"d":"0.00"}},{"$f":"'Month 5'!M198+'Month 5'!N198-'Month 5'!O198","v":{"v":0,"d":"0.00"}},null,"","",{"$f":"SUMIFS($J$25:$J$224,$C$25:$C$224,$C198,$G$25:$G$224,Lists!$A$16)","v":0},0,null,"",null,{"$f":"IF(C198=0,\"\",LEFT(INDEX(Lists!$H$5:$H$49,MATCH(C198,Lists!$G$5:$G$49,0),1),1))","v":""},null,{"$f":"'Month 5'!H198+'Month 5'!I198-'Month 5'!J198","v":0},"","",null,"0"]
[{"$f":"Planning!A183","v":"I175"},{"$f":"Planning!B183","v":0},{"$f":"Planning!C183","v":0},{"$f":"Planning!D183","v":0},{"$f":"Planning!E183","v":0},{"$f":"IF(Planning!G183<>0,Planning!G183,\"\")","v":""},{"$f":"Planning!H183","v":0},{"$f":"Planning!X183","v":0},{"$f":"IF(OR(W199=\"1\",AND(W199<>\"1\",G199=Lists!$A$17)),Y199,0)","v":0},null,{"$f":"IF(AND(W199=\"2\",G199<>Lists!$A$17),AA199,Z199)","v":""},"",{"$f":"Planning!Y183","v":{"v":0,"d":"0.00"}},{"$f":"'Month 5'!M199+'Month 5'!N199-'Month 5'!O199","v":{"v":0,"d":"0.00"}},null,"","",{"$f":"SUMIFS($J$25:$J$224,$C$25:$C$224,$C199,$G$25:$G$224,Lists!$A$16)","v":0},0,null,"",null,{"$f":"IF(C199=0,\"\",LEFT(INDEX(Lists!$H$5:$H$49,MATCH(C199,Lists!$G$5:$G$49,0),1),1))","v":""},null,{"$f":"'Month 5'!H199+'Month 5'!I199-'Month 5'!J199","v":0},"","",null,"0"]
[{"$f":"Planning!A184","v":"I176"},{"$f":"Planning!B184","v":0},{"$f":"Planning!C184","v":0},{"$f":"Planning!D184","v":0},{"$f":"Planning!E184","v":0},{"$f":"IF(Planning!G184<>0,Planning!G184,\"\")","v":""},{"$f":"Planning!H184","v":0},{"$f":"Planning!X184","v":0},{"$f":"IF(OR(W200=\"1\",AND(W200<>\"1\",G200=Lists!$A$17)),Y200,0)","v":0},null,{"$f":"IF(AND(W200=\"2\",G200<>Lists!$A$17),AA200,Z200)","v":""},"",{"$f":"Planning!Y184","v":{"v":0,"d":"0.00"}},{"$f":"'Month 5'!M200+'Month 5'!N200-'Month 5'!O200","v":{"v":0,"d":"0.00"}},null,"","",{"$f":"SUMIFS($J$25:$J$224,$C$25:$C$224,$C200,$G$25:$G$224,Lists!$A$16)","v":0},0,null,"",null,{"$f":"IF(C200=0,\"\",LEFT(INDEX(Lists!$H$5:$H$49,MATCH(C200,Lists!$G$5:$G$49,0),1),1))","v":""},null,{"$f":"'Month 5'!H200+'Month 5'!I200-'Month 5'!J200","v":0},"","",null,"0"]
[{"$f":"Planning!A185","v":"I177"},{"$f":"Planning!B185","v":0},{"$f":"Planning!C185","v":0},{"$f":"Planning!D185","v":0},{"$f":"Planning!E185","v":0},{"$f":"IF(Planning!G185<>0,Planning!G185,\"\")","v":""},{"$f":"Planning!H185","v":0},{"$f":"Planning!X185","v":0},{"$f":"IF(OR(W201=\"1\",AND(W201<>\"1\",G201=Lists!$A$17)),Y201,0)","v":0},null,{"$f":"IF(AND(W201=\"2\",G201<>Lists!$A$17),AA201,Z201)","v":""},"",{"$f":"Planning!Y185","v":{"v":0,"d":"0.00"}},{"$f":"'Month 5'!M201+'Month 5'!N201-'Month 5'!O201","v":{"v":0,"d":"0.00"}},null,"","",{"$f":"SUMIFS($J$25:$J$224,$C$25:$C$224,$C201,$G$25:$G$224,Lists!$A$16)","v":0},0,null,"",null,{"$f":"IF(C201=0,\"\",LEFT(INDEX(Lists!$H$5:$H$49,MATCH(C201,Lists!$G$5:$G$49,0),1),1))","v":""},null,{"$f":"'Month 5'!H201+'Month 5'!I201-'Month 5'!J201","v":0},"","",null,"0"]
[{"$f":"Planning!A186","v":"I178"},{"$f":"Planning!B186","v":0},{"$f":"Planning!C186","v":0},{"$f":"Planning!D186","v":0},{"$f":"Planning!E186","v":0},{"$f":"IF(Planning!G186<>0,Planning!G186,\"\")","v":""},{"$f":"Planning!H186","v":0},{"$f":"Planning!X186","v":0},{"$f":"IF(OR(W202=\"1\",AND(W202<>\"1\",G202=Lists!$A$17)),Y202,0)","v":0},null,{"$f":"IF(AND(W202=\"2\",G202<>Lists!$A$17),AA202,Z202)","v":""},"",{"$f":"Planning!Y186","v":{"v":0,"d":"0.00"}},{"$f":"'Month 5'!M202+'Month 5'!N202-'Month 5'!O202","v":{"v":0,"d":"0.00"}},null,"","",{"$f":"SUMIFS($J$25:$J$224,$C$25:$C$224,$C202,$G$25:$G$224,Lists!$A$16)","v":0},0,null,"",null,{"$f":"IF(C202=0,\"\",LEFT(INDEX(Lists!$H$5:$H$49,MATCH(C202,Lists!$G$5:$G$49,0),1),1))","v":""},null,{"$f":"'Month 5'!H202+'Month 5'!I202-'Month 5'!J202","v":0},"","",null,"0"]
[{"$f":"Planning!A187","v":"I179"},{"$f":"Planning!B187","v":0},{"$f":"Planning!C187","v":0},{"$f":"Planning!D187","v":0},{"$f":"Planning!E187","v":0},{"$f":"IF(Planning!G187<>0,Planning!G187,\"\")","v":""},{"$f":"Planning!H187","v":0},{"$f":"Planning!X187","v":0},{"$f":"IF(OR(W203=\"1\",AND(W203<>\"1\",G203=Lists!$A$17)),Y203,0)","v":0},null,{"$f":"IF(AND(W203=\"2\",G203<>Lists!$A$17),AA203,Z203)","v":""},"",{"$f":"Planning!Y187","v":{"v":0,"d":"0.00"}},{"$f":"'Month 5'!M203+'Month 5'!N203-'Month 5'!O203","v":{"v":0,"d":"0.00"}},null,"","",{"$f":"SUMIFS($J$25:$J$224,$C$25:$C$224,$C203,$G$25:$G$224,Lists!$A$16)","v":0},0,null,"",null,{"$f":"IF(C203=0,\"\",LEFT(INDEX(Lists!$H$5:$H$49,MATCH(C203,Lists!$G$5:$G$49,0),1),1))","v":""},null,{"$f":"'Month 5'!H203+'Month 5'!I203-'Month 5'!J203","v":0},"","",null,"0"]
[{"$f":"Planning!A188","v":"I180"},{"$f":"Planning!B188","v":0},{"$f":"Planning!C188","v":0},{"$f":"Planning!D188","v":0},{"$f":"Planning!E188","v":0},{"$f":"IF(Planning!G188<>0,Planning!G188,\"\")","v":""},{"$f":"Planning!H188","v":0},{"$f":"Planning!X188","v":0},{"$f":"IF(OR(W204=\"1\",AND(W204<>\"1\",G204=Lists!$A$17)),Y204,0)","v":0},null,{"$f":"IF(AND(W204=\"2\",G204<>Lists!$A$17),AA204,Z204)","v":""},"",{"$f":"Planning!Y188","v":{"v":0,"d":"0.00"}},{"$f":"'Month 5'!M204+'Month 5'!N204-'Month 5'!O204","v":{"v":0,"d":"0.00"}},null,"","",{"$f":"SUMIFS($J$25:$J$224,$C$25:$C$224,$C204,$G$25:$G$224,Lists!$A$16)","v":0},0,null,"",null,{"$f":"IF(C204=0,\"\",LEFT(INDEX(Lists!$H$5:$H$49,MATCH(C204,Lists!$G$5:$G$49,0),1),1))","v":""},null,{"$f":"'Month 5'!H204+'Month 5'!I204-'Month 5'!J204","v":0},"","",null,"0"]
[{"$f":"Planning!A189","v":"I181"},{"$f":"Planning!B189","v":0},{"$f":"Planning!C189","v":0},{"$f":"Planning!D189","v":0},{"$f":"Planning!E189","v":0},{"$f":"IF(Planning!G189<>0,Planning!G189,\"\")","v":""},{"$f":"Planning!H189","v":0},{"$f":"Planning!X189","v":0},{"$f":"IF(OR(W205=\"1\",AND(W205<>\"1\",G205=Lists!$A$17)),Y205,0)","v":0},null,{"$f":"IF(AND(W205=\"2\",G205<>Lists!$A$17),AA205,Z205)","v":""},"",{"$f":"Planning!Y189","v":{"v":0,"d":"0.00"}},{"$f":"'Month 5'!M205+'Month 5'!N205-'Month 5'!O205","v":{"v":0,"d":"0.00"}},null,"","",{"$f":"SUMIFS($J$25:$J$224,$C$25:$C$224,$C205,$G$25:$G$224,Lists!$A$16)","v":0},0,null,"",null,{"$f":"IF(C205=0,\"\",LEFT(INDEX(Lists!$H$5:$H$49,MATCH(C205,Lists!$G$5:$G$49,0),1),1))","v":""},null,{"$f":"'Month 5'!H205+'Month 5'!I205-'Month 5'!J205","v":0},"","",null,"0"]
[{"$f":"Planning!A190","v":"I182"},{"$f":"Planning!B190","v":0},{"$f":"Planning!C190","v":0},{"$f":"Planning!D190","v":0},{"$f":"Planning!E190","v":0},{"$f":"IF(Planning!G190<>0,Planning!G190,\"\")","v":""},{"$f":"Planning!H190","v":0},{"$f":"Planning!X190","v":0},{"$f":"IF(OR(W206=\"1\",AND(W206<>\"1\",G206=Lists!$A$17)),Y206,0)","v":0},null,{"$f":"IF(AND(W206=\"2\",G206<>Lists!$A$17),AA206,Z206)","v":""},"",{"$f":"Planning!Y190","v":{"v":0,"d":"0.00"}},{"$f":"'Month 5'!M206+'Month 5'!N206-'Month 5'!O206","v":{"v":0,"d":"0.00"}},null,"","",{"$f":"SUMIFS($J$25:$J$224,$C$25:$C$224,$C206,$G$25:$G$224,Lists!$A$16)","v":0},0,null,"",null,{"$f":"IF(C206=0,\"\",LEFT(INDEX(Lists!$H$5:$H$49,MATCH(C206,Lists!$G$5:$G$49,0),1),1))","v":""},null,{"$f":"'Month 5'!H206+'Month 5'!I206-'Month 5'!J206","v":0},"","",null,"0"]
[{"$f":"Planning!A191","v":"I183"},{"$f":"Planning!B191","v":0},{"$f":"Planning!C191","v":0},{"$f":"Planning!D191","v":0},{"$f":"Planning!E191","v":0},{"$f":"IF(Planning!G191<>0,Planning!G191,\"\")","v":""},{"$f":"Planning!H191","v":0},{"$f":"Planning!X191","v":0},{"$f":"IF(OR(W207=\"1\",AND(W207<>\"1\",G207=Lists!$A$17)),Y207,0)","v":0},null,{"$f":"IF(AND(W207=\"2\",G207<>Lists!$A$17),AA207,Z207)","v":""},"",{"$f":"Planning!Y191","v":{"v":0,"d":"0.00"}},{"$f":"'Month 5'!M207+'Month 5'!N207-'Month 5'!O207","v":{"v":0,"d":"0.00"}},null,"","",{"$f":"SUMIFS($J$25:$J$224,$C$25:$C$224,$C207,$G$25:$G$224,Lists!$A$16)","v":0},0,null,"",null,{"$f":"IF(C207=0,\"\",LEFT(INDEX(Lists!$H$5:$H$49,MATCH(C207,Lists!$G$5:$G$49,0),1),1))","v":""},null,{"$f":"'Month 5'!H207+'Month 5'!I207-'Month 5'!J207","v":0},"","",null,"0"]
[{"$f":"Planning!A192","v":"I184"},{"$f":"Planning!B192","v":0},{"$f":"Planning!C192","v":0},{"$f":"Planning!D192","v":0},{"$f":"Planning!E192","v":0},{"$f":"IF(Planning!G192<>0,Planning!G192,\"\")","v":""},{"$f":"Planning!H192","v":0},{"$f":"Planning!X192","v":0},{"$f":"IF(OR(W208=\"1\",AND(W208<>\"1\",G208=Lists!$A$17)),Y208,0)","v":0},null,{"$f":"IF(AND(W208=\"2\",G208<>Lists!$A$17),AA208,Z208)","v":""},"",{"$f":"Planning!Y192","v":{"v":0,"d":"0.00"}},{"$f":"'Month 5'!M208+'Month 5'!N208-'Month 5'!O208","v":{"v":0,"d":"0.00"}},null,"","",{"$f":"SUMIFS($J$25:$J$224,$C$25:$C$224,$C208,$G$25:$G$224,Lists!$A$16)","v":0},0,null,"",null,{"$f":"IF(C208=0,\"\",LEFT(INDEX(Lists!$H$5:$H$49,MATCH(C208,Lists!$G$5:$G$49,0),1),1))","v":""},null,{"$f":"'Month 5'!H208+'Month 5'!I208-'Month 5'!J208","v":0},"","",null,"0"]
[{"$f":"Planning!A193","v":"I185"},{"$f":"Planning!B193","v":0},{"$f":"Planning!C193","v":0},{"$f":"Planning!D193","v":0},{"$f":"Planning!E193","v":0},{"$f":"IF(Planning!G193<>0,Planning!G193,\"\")","v":""},{"$f":"Planning!H193","v":0},{"$f":"Planning!X193","v":0},{"$f":"IF(OR(W209=\"1\",AND(W209<>\"1\",G209=Lists!$A$17)),Y209,0)","v":0},null,{"$f":"IF(AND(W209=\"2\",G209<>Lists!$A$17),AA209,Z209)","v":""},"",{"$f":"Planning!Y193","v":{"v":0,"d":"0.00"}},{"$f":"'Month 5'!M209+'Month 5'!N209-'Month 5'!O209","v":{"v":0,"d":"0.00"}},null,"","",{"$f":"SUMIFS($J$25:$J$224,$C$25:$C$224,$C209,$G$25:$G$224,Lists!$A$16)","v":0},0,null,"",null,{"$f":"IF(C209=0,\"\",LEFT(INDEX(Lists!$H$5:$H$49,MATCH(C209,Lists!$G$5:$G$49,0),1),1))","v":""},null,{"$f":"'Month 5'!H209+'Month 5'!I209-'Month 5'!J209","v":0},"","",null,"0"]
[{"$f":"Planning!A194","v":"I186"},{"$f":"Planning!B194","v":0},{"$f":"Planning!C194","v":0},{"$f":"Planning!D194","v":0},{"$f":"Planning!E194","v":0},{"$f":"IF(Planning!G194<>0,Planning!G194,\"\")","v":""},{"$f":"Planning!H194","v":0},{"$f":"Planning!X194","v":0},{"$f":"IF(OR(W210=\"1\",AND(W210<>\"1\",G210=Lists!$A$17)),Y210,0)","v":0},null,{"$f":"IF(AND(W210=\"2\",G210<>Lists!$A$17),AA210,Z210)","v":""},"",{"$f":"Planning!Y194","v":{"v":0,"d":"0.00"}},{"$f":"'Month 5'!M210+'Month 5'!N210-'Month 5'!O210","v":{"v":0,"d":"0.00"}},null,"","",{"$f":"SUMIFS($J$25:$J$224,$C$25:$C$224,$C210,$G$25:$G$224,Lists!$A$16)","v":0},0,null,"",null,{"$f":"IF(C210=0,\"\",LEFT(INDEX(Lists!$H$5:$H$49,MATCH(C210,Lists!$G$5:$G$49,0),1),1))","v":""},null,{"$f":"'Month 5'!H210+'Month 5'!I210-'Month 5'!J210","v":0},"","",null,"0"]
[{"$f":"Planning!A195","v":"I187"},{"$f":"Planning!B195","v":0},{"$f":"Planning!C195","v":0},{"$f":"Planning!D195","v":0},{"$f":"Planning!E195","v":0},{"$f":"IF(Planning!G195<>0,Planning!G195,\"\")","v":""},{"$f":"Planning!H195","v":0},{"$f":"Planning!X195","v":0},{"$f":"IF(OR(W211=\"1\",AND(W211<>\"1\",G211=Lists!$A$17)),Y211,0)","v":0},null,{"$f":"IF(AND(W211=\"2\",G211<>Lists!$A$17),AA211,Z211)","v":""},"",{"$f":"Planning!Y195","v":{"v":0,"d":"0.00"}},{"$f":"'Month 5'!M211+'Month 5'!N211-'Month 5'!O211","v":{"v":0,"d":"0.00"}},null,"","",{"$f":"SUMIFS($J$25:$J$224,$C$25:$C$224,$C211,$G$25:$G$224,Lists!$A$16)","v":0},0,null,"",null,{"$f":"IF(C211=0,\"\",LEFT(INDEX(Lists!$H$5:$H$49,MATCH(C211,Lists!$G$5:$G$49,0),1),1))","v":""},null,{"$f":"'Month 5'!H211+'Month 5'!I211-'Month 5'!J211","v":0},"","",null,"0"]
[{"$f":"Planning!A196","v":"I188"},{"$f":"Planning!B196","v":0},{"$f":"Planning!C196","v":0},{"$f":"Planning!D196","v":0},{"$f":"Planning!E196","v":0},{"$f":"IF(Planning!G196<>0,Planning!G196,\"\")","v":""},{"$f":"Planning!H196","v":0},{"$f":"Planning!X196","v":0},{"$f":"IF(OR(W212=\"1\",AND(W212<>\"1\",G212=Lists!$A$17)),Y212,0)","v":0},null,{"$f":"IF(AND(W212=\"2\",G212<>Lists!$A$17),AA212,Z212)","v":""},"",{"$f":"Planning!Y196","v":{"v":0,"d":"0.00"}},{"$f":"'Month 5'!M212+'Month 5'!N212-'Month 5'!O212","v":{"v":0,"d":"0.00"}},null,"","",{"$f":"SUMIFS($J$25:$J$224,$C$25:$C$224,$C212,$G$25:$G$224,Lists!$A$16)","v":0},0,null,"",null,{"$f":"IF(C212=0,\"\",LEFT(INDEX(Lists!$H$5:$H$49,MATCH(C212,Lists!$G$5:$G$49,0),1),1))","v":""},null,{"$f":"'Month 5'!H212+'Month 5'!I212-'Month 5'!J212","v":0},"","",null,"0"]
[{"$f":"Planning!A197","v":"I189"},{"$f":"Planning!B197","v":0},{"$f":"Planning!C197","v":0},{"$f":"Planning!D197","v":0},{"$f":"Planning!E197","v":0},{"$f":"IF(Planning!G197<>0,Planning!G197,\"\")","v":""},{"$f":"Planning!H197","v":0},{"$f":"Planning!X197","v":0},{"$f":"IF(OR(W213=\"1\",AND(W213<>\"1\",G213=Lists!$A$17)),Y213,0)","v":0},null,{"$f":"IF(AND(W213=\"2\",G213<>Lists!$A$17),AA213,Z213)","v":""},"",{"$f":"Planning!Y197","v":{"v":0,"d":"0.00"}},{"$f":"'Month 5'!M213+'Month 5'!N213-'Month 5'!O213","v":{"v":0,"d":"0.00"}},null,"","",{"$f":"SUMIFS($J$25:$J$224,$C$25:$C$224,$C213,$G$25:$G$224,Lists!$A$16)","v":0},0,null,"",null,{"$f":"IF(C213=0,\"\",LEFT(INDEX(Lists!$H$5:$H$49,MATCH(C213,Lists!$G$5:$G$49,0),1),1))","v":""},null,{"$f":"'Month 5'!H213+'Month 5'!I213-'Month 5'!J213","v":0},"","",null,"0"]
[{"$f":"Planning!A198","v":"I190"},{"$f":"Planning!B198","v":0},{"$f":"Planning!C198","v":0},{"$f":"Planning!D198","v":0},{"$f":"Planning!E198","v":0},{"$f":"IF(Planning!G198<>0,Planning!G198,\"\")","v":""},{"$f":"Planning!H198","v":0},{"$f":"Planning!X198","v":0},{"$f":"IF(OR(W214=\"1\",AND(W214<>\"1\",G214=Lists!$A$17)),Y214,0)","v":0},null,{"$f":"IF(AND(W214=\"2\",G214<>Lists!$A$17),AA214,Z214)","v":""},"",{"$f":"Planning!Y198","v":{"v":0,"d":"0.00"}},{"$f":"'Month 5'!M214+'Month 5'!N214-'Month 5'!O214","v":{"v":0,"d":"0.00"}},null,"","",{"$f":"SUMIFS($J$25:$J$224,$C$25:$C$224,$C214,$G$25:$G$224,Lists!$A$16)","v":0},0,null,"",null,{"$f":"IF(C214=0,\"\",LEFT(INDEX(Lists!$H$5:$H$49,MATCH(C214,Lists!$G$5:$G$49,0),1),1))","v":""},null,{"$f":"'Month 5'!H214+'Month 5'!I214-'Month 5'!J214","v":0},"","",null,"0"]
[{"$f":"Planning!A199","v":"I191"},{"$f":"Planning!B199","v":0},{"$f":"Planning!C199","v":0},{"$f":"Planning!D199","v":0},{"$f":"Planning!E199","v":0},{"$f":"IF(Planning!G199<>0,Planning!G199,\"\")","v":""},{"$f":"Planning!H199","v":0},{"$f":"Planning!X199","v":0},{"$f":"IF(OR(W215=\"1\",AND(W215<>\"1\",G215=Lists!$A$17)),Y215,0)","v":0},null,{"$f":"IF(AND(W215=\"2\",G215<>Lists!$A$17),AA215,Z215)","v":""},"",{"$f":"Planning!Y199","v":{"v":0,"d":"0.00"}},{"$f":"'Month 5'!M215+'Month 5'!N215-'Month 5'!O215","v":{"v":0,"d":"0.00"}},null,"","",{"$f":"SUMIFS($J$25:$J$224,$C$25:$C$224,$C215,$G$25:$G$224,Lists!$A$16)","v":0},0,null,"",null,{"$f":"IF(C215=0,\"\",LEFT(INDEX(Lists!$H$5:$H$49,MATCH(C215,Lists!$G$5:$G$49,0),1),1))","v":""},null,{"$f":"'Month 5'!H215+'Month 5'!I215-'Month 5'!J215","v":0},"","",null,"0"]
[{"$f":"Planning!A200","v":"I192"},{"$f":"Planning!B200","v":0},{"$f":"Planning!C200","v":0},{"$f":"Planning!D200","v":0},{"$f":"Planning!E200","v":0},{"$f":"IF(Planning!G200<>0,Planning!G200,\"\")","v":""},{"$f":"Planning!H200","v":0},{"$f":"Planning!X200","v":0},{"$f":"IF(OR(W216=\"1\",AND(W216<>\"1\",G216=Lists!$A$17)),Y216,0)","v":0},null,{"$f":"IF(AND(W216=\"2\",G216<>Lists!$A$17),AA216,Z216)","v":""},"",{"$f":"Planning!Y200","v":{"v":0,"d":"0.00"}},{"$f":"'Month 5'!M216+'Month 5'!N216-'Month 5'!O216","v":{"v":0,"d":"0.00"}},null,"","",{"$f":"SUMIFS($J$25:$J$224,$C$25:$C$224,$C216,$G$25:$G$224,Lists!$A$16)","v":0},0,null,"",null,{"$f":"IF(C216=0,\"\",LEFT(INDEX(Lists!$H$5:$H$49,MATCH(C216,Lists!$G$5:$G$49,0),1),1))","v":""},null,{"$f":"'Month 5'!H216+'Month 5'!I216-'Month 5'!J216","v":0},"","",null,"0"]
[{"$f":"Planning!A201","v":"I193"},{"$f":"Planning!B201","v":0},{"$f":"Planning!C201","v":0},{"$f":"Planning!D201","v":0},{"$f":"Planning!E201","v":0},{"$f":"IF(Planning!G201<>0,Planning!G201,\"\")","v":""},{"$f":"Planning!H201","v":0},{"$f":"Planning!X201","v":0},{"$f":"IF(OR(W217=\"1\",AND(W217<>\"1\",G217=Lists!$A$17)),Y217,0)","v":0},null,{"$f":"IF(AND(W217=\"2\",G217<>Lists!$A$17),AA217,Z217)","v":""},{"$f":"IF($U217=ExcluirDelPLogro,\"\",IF(AND(H217=0,I217=0,J217=0),\"\",K217))","v":""},{"$f":"Planning!Y201","v":{"v":0,"d":"0.00"}},{"$f":"'Month 5'!M217+'Month 5'!N217-'Month 5'!O217","v":{"v":0,"d":"0.00"}},null,"",{"$f":"IF($U217=ExcluirDelPLogro,\"\",IF(AND(M217=0,N217=0,O217=0),\"\",P217))","v":""},{"$f":"SUMIFS($J$25:$J$224,$C$25:$C$224,$C217,$G$25:$G$224,Lists!$A$16)","v":0},0,null,"",null,{"$f":"IF(C217=0,\"\",LEFT(INDEX(Lists!$H$5:$H$49,MATCH(C217,Lists!$G$5:$G$49,0),1),1))","v":""},null,{"$f":"'Month 5'!H217+'Month 5'!I217-'Month 5'!J217","v":0},"",{"$f":"IF(AND(H217=0,I217=0,J217=0),\"\",IF(J217>0,H217/J217,0))","v":""},null,"0"]
[{"$f":"Planning!A202","v":"I194"},{"$f":"Planning!B202","v":0},{"$f":"Planning!C202","v":0},{"$f":"Planning!D202","v":0},{"$f":"Planning!E202","v":0},{"$f":"IF(Planning!G202<>0,Planning!G202,\"\")","v":""},{"$f":"Planning!H202","v":0},{"$f":"Planning!X202","v":0},{"$f":"IF(OR(W218=\"1\",AND(W218<>\"1\",G218=Lists!$A$17)),Y218,0)","v":0},null,{"$f":"IF(AND(W218=\"2\",G218<>Lists!$A$17),AA218,Z218)","v":""},"",{"$f":"Planning!Y202","v":{"v":0,"d":"0.00"}},{"$f":"'Month 5'!M218+'Month 5'!N218-'Month 5'!O218","v":{"v":0,"d":"0.00"}},null,{"$f":"IF(AND(M218=0,N218=0,O218=0),\"\",IF((M218+N218)>0,O218/(M218+N218),O218))","v":""},"",{"$f":"SUMIFS($J$25:$J$224,$C$25:$C$224,$C218,$G$25:$G$224,Lists!$A$16)","v":0},{"$f":"SUMIFS($O$25:$O$224,$C$25:$C$224,$C218,$G$25:$G$224,\"<>0\")","v":0},null,{"$f":"IF(B218=0,\"\",IF(LEFT(B218,1)=\"1\",\"1\",\"2\"))","v":""},null,{"$f":"IF(C218=0,\"\",LEFT(INDEX(Lists!$H$5:$H$49,MATCH(C218,Lists!$G$5:$G$49,0),1),1))","v":""},null,{"$f":"'Month 5'!H218+'Month 5'!I218-'Month 5'!J218","v":0},{"$f":"IF(AND(H218=0,I218=0,J218=0),\"\",IF((H218+I218)>0,J218/(H218+I218),J218))","v":""},"",null,{"$f":"U218&C218","v":"0"}]
[{"$f":"Planning!A203","v":"I195"},{"$f":"Planning!B203","v":0},{"$f":"Planning!C203","v":0},{"$f":"Planning!D203","v":0},{"$f":"Planning!E203","v":0},{"$f":"IF(Planning!G203<>0,Planning!G203,\"\")","v":""},{"$f":"Planning!H203","v":0},{"$f":"Planning!X203","v":0},{"$f":"IF(OR(W219=\"1\",AND(W219<>\"1\",G219=Lists!$A$17)),Y219,0)","v":0},null,{"$f":"IF(AND(W219=\"2\",G219<>Lists!$A$17),AA219,Z219)","v":""},"",{"$f":"Planning!Y203","v":{"v":0,"d":"0.00"}},{"$f":"'Month 5'!M219+'Month 5'!N219-'Month 5'!O219","v":{"v":0,"d":"0.00"}},null,"","",{"$f":"SUMIFS($J$25:$J$224,$C$25:$C$224,$C219,$G$25:$G$224,Lists!$A$16)","v":0},0,null,"",null,{"$f":"IF(C219=0,\"\",LEFT(INDEX(Lists!$H$5:$H$49,MATCH(C219,Lists!$G$5:$G$49,0),1),1))","v":""},null,{"$f":"'Month 5'!H219+'Month 5'!I219-'Month 5'!J219","v":0},"","",null,"0"]
[{"$f":"Planning!A204","v":"I196"},{"$f":"Planning!B204","v":0},{"$f":"Planning!C204","v":0},{"$f":"Planning!D204","v":0},{"$f":"Planning!E204","v":0},{"$f":"IF(Planning!G204<>0,Planning!G204,\"\")","v":""},{"$f":"Planning!H204","v":0},{"$f":"Planning!X204","v":0},{"$f":"IF(OR(W220=\"1\",AND(W220<>\"1\",G220=Lists!$A$17)),Y220,0)","v":0},null,{"$f":"IF(AND(W220=\"2\",G220<>Lists!$A$17),AA220,Z220)","v":""},"",{"$f":"Planning!Y204","v":{"v":0,"d":"0.00"}},{"$f":"'Month 5'!M220+'Month 5'!N220-'Month 5'!O220","v":{"v":0,"d":"0.00"}},null,"","",{"$f":"SUMIFS($J$25:$J$224,$C$25:$C$224,$C220,$G$25:$G$224,Lists!$A$16)","v":0},0,null,"",null,{"$f":"IF(C220=0,\"\",LEFT(INDEX(Lists!$H$5:$H$49,MATCH(C220,Lists!$G$5:$G$49,0),1),1))","v":""},null,{"$f":"'Month 5'!H220+'Month 5'!I220-'Month 5'!J220","v":0},"","",null,"0"]
[{"$f":"Planning!A205","v":"I197"},{"$f":"Planning!B205","v":0},{"$f":"Planning!C205","v":0},{"$f":"Planning!D205","v":0},{"$f":"Planning!E205","v":0},{"$f":"IF(Planning!G205<>0,Planning!G205,\"\")","v":""},{"$f":"Planning!H205","v":0},{"$f":"Planning!X205","v":0},{"$f":"IF(OR(W221=\"1\",AND(W221<>\"1\",G221=Lists!$A$17)),Y221,0)","v":0},null,{"$f":"IF(AND(W221=\"2\",G221<>Lists!$A$17),AA221,Z221)","v":""},"",{"$f":"Planning!Y205","v":{"v":0,"d":"0.00"}},{"$f":"'Month 5'!M221+'Month 5'!N221-'Month 5'!O221","v":{"v":0,"d":"0.00"}},null,"","",{"$f":"SUMIFS($J$25:$J$224,$C$25:$C$224,$C221,$G$25:$G$224,Lists!$A$16)","v":0},0,null,"",null,{"$f":"IF(C221=0,\"\",LEFT(INDEX(Lists!$H$5:$H$49,MATCH(C221,Lists!$G$5:$G$49,0),1),1))","v":""},null,{"$f":"'Month 5'!H221+'Month 5'!I221-'Month 5'!J221","v":0},"","",null,"0"]
[{"$f":"Planning!A206","v":"I198"},{"$f":"Planning!B206","v":0},{"$f":"Planning!C206","v":0},{"$f":"Planning!D206","v":0},{"$f":"Planning!E206","v":0},{"$f":"IF(Planning!G206<>0,Planning!G206,\"\")","v":""},{"$f":"Planning!H206","v":0},{"$f":"Planning!X206","v":0},{"$f":"IF(OR(W222=\"1\",AND(W222<>\"1\",G222=Lists!$A$17)),Y222,0)","v":0},null,{"$f":"IF(AND(W222=\"2\",G222<>Lists!$A$17),AA222,Z222)","v":""},"",{"$f":"Planning!Y206","v":{"v":0,"d":"0.00"}},{"$f":"'Month 5'!M222+'Month 5'!N222-'Month 5'!O222","v":{"v":0,"d":"0.00"}},null,"","",{"$f":"SUMIFS($J$25:$J$224,$C$25:$C$224,$C222,$G$25:$G$224,Lists!$A$16)","v":0},0,null,"",null,{"$f":"IF(C222=0,\"\",LEFT(INDEX(Lists!$H$5:$H$49,MATCH(C222,Lists!$G$5:$G$49,0),1),1))","v":""},null,{"$f":"'Month 5'!H222+'Month 5'!I222-'Month 5'!J222","v":0},"","",null,"0"]
[{"$f":"Planning!A207","v":"I199"},{"$f":"Planning!B207","v":0},{"$f":"Planning!C207","v":0},{"$f":"Planning!D207","v":0},{"$f":"Planning!E207","v":0},{"$f":"IF(Planning!G207<>0,Planning!G207,\"\")","v":""},{"$f":"Planning!H207","v":0},{"$f":"Planning!X207","v":0},{"$f":"IF(OR(W223=\"1\",AND(W223<>\"1\",G223=Lists!$A$17)),Y223,0)","v":0},null,{"$f":"IF(AND(W223=\"2\",G223<>Lists!$A$17),AA223,Z223)","v":""},"",{"$f":"Planning!Y207","v":{"v":0,"d":"0.00"}},{"$f":"'Month 5'!M223+'Month 5'!N223-'Month 5'!O223","v":{"v":0,"d":"0.00"}},null,"","",{"$f":"SUMIFS($J$25:$J$224,$C$25:$C$224,$C223,$G$25:$G$224,Lists!$A$16)","v":0},0,null,"",null,{"$f":"IF(C223=0,\"\",LEFT(INDEX(Lists!$H$5:$H$49,MATCH(C223,Lists!$G$5:$G$49,0),1),1))","v":""},null,{"$f":"'Month 5'!H223+'Month 5'!I223-'Month 5'!J223","v":0},"","",null,"0"]
[{"$f":"Planning!A208","v":"I200"},{"$f":"Planning!B208","v":0},{"$f":"Planning!C208","v":0},{"$f":"Planning!D208","v":0},{"$f":"Planning!E208","v":0},{"$f":"IF(Planning!G208<>0,Planning!G208,\"\")","v":""},{"$f":"Planning!H208","v":0},{"$f":"Planning!X208","v":0},{"$f":"IF(OR(W224=\"1\",AND(W224<>\"1\",G224=Lists!$A$17)),Y224,0)","v":0},null,{"$f":"IF(AND(W224=\"2\",G224<>Lists!$A$17),AA224,Z224)","v":""},"",{"$f":"Planning!Y208","v":{"v":0,"d":"0.00"}},{"$f":"'Month 5'!M224+'Month 5'!N224-'Month 5'!O224","v":{"v":0,"d":"0.00"}},null,"","",{"$f":"SUMIFS($J$25:$J$224,$C$25:$C$224,$C224,$G$25:$G$224,Lists!$A$16)","v":0},0,null,"",null,{"$f":"IF(C224=0,\"\",LEFT(INDEX(Lists!$H$5:$H$49,MATCH(C224,Lists!$G$5:$G$49,0),1),1))","v":""},null,{"$f":"'Month 5'!H224+'Month 5'!I224-'Month 5'!J224","v":0},"","",null,"0"]
[{"$nulls":20},".",null,".",null,".",".",".",null,"."]
[]
[{"$f":"Setup!AN6","v":"PR Dashboard indicators"}]
[{"$f":"Setup!AP8","v":"Financial reports planned"},{"$nulls":6},1]
[{"$f":"Setup!AP9","v":"Financial reports overdue"},{"$nulls":6},0]
[{"$f":"Setup!AP10","v":0}]
[{"$f":"Setup!AP11","v":0}]
[{"$f":"Setup!AP12","v":0}]
[{"$f":"Setup!AP13","v":0}]
[{"$f":"Setup!AP14","v":0}]
[{"$f":"Setup!AP15","v":"Supervision actions recommended"},{"$nulls":6},1]
[{"$f":"Setup!AP16","v":"Supervision recommendations past due"},{"$nulls":6},0]
[{"$f":"Setup!AP17","v":"Programmatic reports planned"},{"$nulls":6},1]
[{"$f":"Setup!AP18","v":"Programmatic reports past due"},{"$nulls":6},0]
[{"$f":"Setup!AP19","v":0}]
[{"$f":"Setup!AP20","v":0}]
[{"$f":"Setup!AP21","v":0}]
[{"$f":"Setup!AP22","v":0}]
[{"$f":"Setup!AP23","v":0}]
[{"$f":"Setup!AP24","v":0}]
[{"$f":"Setup!AP25","v":0}]
[{"$f":"Setup!AP26","v":0}]
[{"$f":"Setup!AP27","v":0}]
[{"$f":"Setup!AP28","v":0}]
[{"$f":"Setup!AP29","v":0}]
[{"$f":"Setup!AP30","v":0}]
[{"$f":"Setup!AP31","v":0}]
[{"$f":"Setup!AP32","v":0}]
[{"$f":"Setup!AP33","v":0}]
[{"$f":"Setup!AP34","v":0}]
[{"$f":"Setup!AP35","v":0}]
[{"$f":"Setup!AP36","v":0}]
[{"$f":"Setup!AP37","v":0}]
[{"$f":"Setup!AP38","v":0}]
[{"$f":"Setup!AP39","v":"Actual stock level - PS39 - Product 1: Efavirenz, 600 mg, 30 tablets"},{"$nulls":6},9]
[{"$f":"Setup!AP40","v":"Actual stock level - PS40 - Product 2: Efavirenz, 200 mg, 90 capsules"},{"$nulls":6},8]
[{"$f":"Setup!AP41","v":"Actual stock level - PS41 - Product 3: TDF/3TC, 300/300 mg, 30 tablets"},{"$nulls":6},7]
[{"$f":"Setup!AP42","v":"Actual stock level - PS42 - Product 4: 3TC, 10 mg/ml, oral solution 240 ml"},{"$nulls":6},6]
[{"$f":"Setup!AP43","v":0}]
[{"$f":"Setup!AP44","v":0}]
[{"$f":"Setup!AP45","v":0}]
[{"$f":"Setup!AP46","v":0}]
[{"$f":"Setup!AP47","v":0}]
[{"$f":"Setup!AP48","v":0}]
[{"$f":"Setup!AP49","v":0}]
[{"$f":"Setup!AP50","v":0}]
[{"$f":"Setup!AP51","v":0}]
[{"$f":"Setup!AP52","v":0}]
[{"$f":"Setup!AP53","v":0}]
[{"$f":"Setup!AP54","v":0}]
[{"$f":"Setup!AP55","v":0}]
[{"$f":"Setup!AP56","v":0}]
[{"$f":"Setup!AP57","v":0}]
[{"$f":"Setup!AP58","v":0}]
[{"$f":"Setup!AP59","v":0}]
[{"$f":"Setup!AP60","v":0}]
[{"$f":"Setup!AP61","v":0}]
[{"$f":"Setup!AP62","v":0}]
[{"$f":"Setup!AP63","v":0}]
[{"$f":"Setup!AP64","v":0}]
[{"$f":"Setup!AP65","v":0}]
[{"$f":"Setup!AP66","v":0}]
[{"$f":"Setup!AP67","v":0}]
[{"$f":"Setup!AP68","v":0}]
[{"$f":"Setup!AP69","v":0}]
[]
[]
[{"$f":"Translations!A138","v":"Narrative comments from results (to be filled by the Subrecipient)"}]
{"$rows_empty":43}
[{"$f":"Translations!A139","v":"This section is filled in exclusively by PR's programmatic and financial monitors."}]
[]
[{"$f":"Translations!A150","v":"PROGRAMMATIC"},null,null,{"$f":"Translations!A140","v":"Name of person conducting programmatic verification"}]
[]
[]
[{"$nulls":3},{"$f":"Translations!A141","v":"Contextual details"}]
[]
[]
[]
[]
[]
[]
[{"$nulls":3},{"$f":"Translations!A151","v":"Description of identified problem(s)"}]
[]
[]
[]
[]
[]
[]
[{"$nulls":3},{"$f":"Translations!A152","v":"Recommendations and actions to be taken"}]
[{"$nulls":3},"1)"]
[{"$nulls":3},"2)"]
[{"$nulls":3},"3)"]
[{"$nulls":3},"4)"]
[{"$nulls":3},"5)"]
[]
[]
[]
[{"$f":"Translations!A154","v":"FINANCIAL"},null,null,{"$f":"Translations!A153","v":"Name of person conducting financial verification"}]
[]
[]
[{"$nulls":3},{"$f":"Translations!A141","v":"Contextual details"}]
{"$rows_empty":7}
[{"$nulls":3},{"$f":"Translations!A151","v":"Description of identified problem(s)"}]
[]
[]
[]
[]
[]
[]
[{"$nulls":3},{"$f":"Translations!A152","v":"Recommendations and actions to be taken"}]
[{"$nulls":3},"1)"]
[{"$nulls":3},"2)"]
[{"$nulls":3},"3)"]
[{"$nulls":3},"4)"]
[{"$nulls":3},"5)"]
[]
[]
[]
[]
[]
[{"$f":"Translations!A321","v":"To be completed by the PR"},{"$nulls":6},{"$f":"Translations!A324","v":"To be completed by the SR"}]
[{"$f":"Translations!A322","v":"Position"},{"$nulls":3},{"$f":"Translations!A323","v":"Signature"},null,null,{"$f":"Translations!A322","v":"Position"},null,{"$f":"Translations!A323","v":"Signature"}]

{"sheet":"Month 7","index":18,"n_rows":394,"n_cols":29,"rows_kept":394,"hidden":true,"merged":[[1,4,1,13],[1,14,1,15],[2,4,2,13],[2,14,3,15],[3,4,3,13],[4,4,4,13],[4,22,16,26],[5,9,5,15],[6,0,15,7],[6,9,7,15],[9,9,9,10],[9,12,9,15],[10,9,11,10],[10,12,11,15],[13,9,15,13],[13,14,13,15],[14,14,15,15],[16,6,16,7],[17,3,17,4],[17,7,17,8],[17,9,17,10],[17,12,17,13],[17,14,17,15],[18,7,18,10],[18,12,18,15],[18,24,18,26],[19,0,20,0],[19,1,20,1],[19,2,20,2],[19,3,20,3],[19,4,20,4],[19,5,20,5],[19,7,20,7],[19,8,20,8],[19,9,20,9],[19,10,20,10],[19,12,20,12],[19,13,20,13],[19,14,20,14],[19,15,20,15],[19,17,19,18],[19,20,20,20],[19,22,20,22],[19,24,20,24],[19,25,20,25],[19,26,20,26],[19,28,20,28],[226,0,226,7],[227,0,227,6],[228,0,228,6],[229,0,229,6],[230,0,230,6],[231,0,231,6],[232,0,232,6],[233,0,233,6],[234,0,234,6],[235,0,235,6],[236,0,236,6],[237,0,237,6],[238,0,238,6],[239,0,239,6],[240,0,240,6],[241,0,241,6],[242,0,242,6],[243,0,243,6],[244,0,244,6],[245,0,245,6],[246,0,246,6],[247,0,247,6],[248,0,248,6],[249,0,249,6],[250,0,250,6],[251,0,251,6],[252,0,252,6],[253,0,253,6],[254,0,254,6],[255,0,255,6],[256,0,256,6],[257,0,257,6],[258,0,258,6],[259,0,259,6],[260,0,260,6],[261,0,261,6],[262,0,262,6],[263,0,263,6],[264,0,264,6],[265,0,265,6],[266,0,266,6],[267,0,267,6],[268,0,268,6],[269,0,269,6],[270,0,270,6],[271,0,271,6],[272,0,272,6],[273,0,273,6],[274,0,274,6],[275,0,275,6],[276,0,276,6],[277,0,277,6],[278,0,278,6],[279,0,279,6],[280,0,280,6],[281,0,281,6],[282,0,282,6],[283,0,283,6],[284,0,284,6],[285,0,285,6],[286,0,286,6],[287,0,287,6],[288,0,288,6],[291,0,291,15],[292,0,333,15],[335,0,335,15],[337,0,360,0],[337,14,337,15],[338,3,338,4],[338,14,338,15],[341,3,345,15],[348,3,352,15],[355,3,355,15],[356,3,356,15],[357,3,357,15],[358,3,358,15],[359,3,359,15],[363,0,387,0],[363,14,363,15],[364,3,364,4],[364,14,364,15],[367,3,371,15],[375,3,379,15],[382,3,382,15],[383,3,383,15],[384,3,384,15],[385,3,385,15],[386,3,386,15],[392,0,392,4],[392,7,392,12],[393,0,393,3],[393,7,393,8],[393,9,393,12],[394,0,394,3],[394,7,394,8],[394,9,394,12],[395,0,395,3],[395,7,395,8],[395,9,395,12],[396,0,396,3],[396,7,396,8],[396,9,396,12],[397,0,397,3],[397,7,397,8],[397,9,397,12]]}
[]
["Month 7",{"$nulls":3},{"$f":"Translations!A80","v":"SR Management Tool"},{"$nulls":9},{"$f":"Translations!A129","v":"SCORE"}]
[{"$nulls":4},{"$f":"Setup!H11","v":"Direct Gender Partnership (DGP)"},{"$nulls":9},{"$f":"K23","v":{"v":0,"d":"0.00%"}}]
[{"$nulls":4},{"$f":" Setup!H14 & \"  (\" & Setup!H13 & \")\" & \"  (\" & Setup!H15 & \")\"","v":"DMR-202-G01-H-00  (January  2016 - December 2016)  (HIV / AIDS)"}]
[{"$nulls":4},{"$f":"Setup!AB14 & \"  (\" & Setup!H16 & \")\"","v":"July  ($ - USD)"},{"$nulls":17},"A. Se colocará lo pendiente (Y) en (I) siempre que (W) sea 1. Estandar o que (W) sea diferente de 1. sin embargo la actividad (G) NO contribuya al indicador.\n\nB. En la columna % Logro (K) se colocará siempre el Logro 1. Estandar (Z). Solamente se colocará el Logro 2. Inverso (AA) cuando (W) sea 2 y (G) sea diferente de 2. NO... es decir, el valor inverso va para las actvividades que contribuyan al indicador G = 1. SI y para el Indicador en si G = 0... por eso se pregunta por G diferente de 2. NO.. para incluir los 1. SI y a los 0\n\n"]
[{"$f":"Setup!G19","v":"Details of programatic indicators"},{"$nulls":8},{"$f":"Setup!G17","v":"Key population"}]
[{"$f":"Setup!H19","v":"# PLHIV that initiated ARV with CD4 count <200\n# new HIV+ enrolled in care services \n# aged 10-24 yrs reached by HIV life skills ed. in school "},{"$nulls":8},{"$f":"Setup!H17","v":"Sex Workers - Migrants - Women"}]
[]
[]
[{"$nulls":9},{"$f":"Translations!A119","v":"Report date"},null,null,{"$f":"Translations!A130","v":"Reported by"}]
[]
[]
[]
[{"$nulls":9},{"$f":"Translations!A132","v":"Note: Enter disubursment ammount here if the PR made a disbursment this month. Leave blank if no disbursment was made."},{"$nulls":4},{"$f":"Translations!A131","v":"Disbursement"}]
[]
[]
[]
[{"$nulls":3},{"$f":"Translations!A233","v":"Input data in spaces with this color"},{"$nulls":3},{"$f":"Translations!A120","v":"Date of verification"},{"$nulls":4},{"$f":"Translations!A120","v":"Date of verification"}]
[{"$nulls":7},{"$f":"Translations!A133","v":"Programmatic aspects"},{"$nulls":4},{"$f":"Translations!A134","v":"Financial aspects"},{"$nulls":9},"COMPORTAMIENTO",null,"Sólo en el Aspecto Programático"]
[{"$f":"Translations!A88","v":"Item"},"Tipo de Ítem","ID Enlace",{"$f":"Translations!A91","v":"Activity code"},{"$f":"Translations!A92","v":"Indicator / Activity"},{"$f":"Translations!A79","v":"TGF costs groups"},null,{"$f":"Translations!A135","v":"Monthly target"},{"$f":"Translations!A136","v":"Balance from previous period"},{"$f":"Translations!A137","v":"Results "},{"$f":"Translations!A108","v":"Result %"},null,{"$f":"Translations!$A$360","v":"Monthly budget"},{"$f":"Translations!A136","v":"Balance from previous period"},{"$f":"Translations!$A$361","v":"Monthly expenditure"},{"$f":"Translations!A108","v":"Result %"},null,"Sumatorias Indicadores",null,null,"Indicador =1 Actividad = 2",null,"1. Estandar\n2. Inverso\n3. No Acumula",null,"Pendiente Mes Anterior\n SIN CONDICION","Logro\n1. Estandar","Logro\n2. Inverso",null,"TAG \nPerformance"]
[{"$nulls":17},"PROG","FIN"]
[]
[{"$f":"Translations!A109","v":"Totals"},{"$nulls":6},"-","-","-",{"$f":"IFERROR(AVERAGEIF(L25:L224,\"<> \"),\"\")","v":{"v":0,"d":"0.00%"}},null,{"$f":"SUMIFS(M25:M224,$G$25:$G$224,\"<>0\")","v":{"v":0,"d":"0.00"}},{"$f":"SUMIFS(N25:N224,$G$25:$G$224,\"<>0\")","v":{"v":7250,"d":"7,250.00"}},{"$f":"SUMIFS(O25:O224,$G$25:$G$224,\"<>0\")","v":{"v":0,"d":"0.00"}},{"$f":"IFERROR(AVERAGEIF(Q25:Q224,\"<> \"),\"\")","v":{"v":0,"d":"0.00%"}}]
[]
[{"$f":"Planning!A9","v":"I001"},{"$f":"Planning!B9","v":"1. Indicator"},{"$f":"Planning!C9","v":"Pr68"},{"$f":"Planning!D9","v":1},{"$f":"Planning!E9","v":"[Pr68] # PLHIV that initiated ARV with CD4 count <200 Target [2. Inverse]"},{"$f":"IF(Planning!G9<>0,Planning!G9,\"\")","v":""},{"$f":"Planning!H9","v":0},{"$f":"Planning!AA9","v":0},{"$f":"IF(OR(W25=\"1\",AND(W25<>\"1\",G25=Lists!$A$17)),Y25,0)","v":0},{"$f":"R25","v":0},{"$f":"IF(AND(W25=\"2\",G25<>Lists!$A$17),AA25,Z25)","v":""},{"$f":"IF($U25=ExcluirDelPLogro,\"\",IF(AND(H25=0,I25=0,J25=0),\"\",K25))","v":""},{"$f":"Planning!AB9","v":{"v":0,"d":"0.00"}},{"$f":"'Month 6'!M25+'Month 6'!N25-'Month 6'!O25","v":{"v":0,"d":"0.00"}},{"$f":"S25","v":{"v":0,"d":"0.00"}},{"$f":"IF(AND(M25=0,N25=0,O25=0),\"\",IF((M25+N25)>0,O25/(M25+N25),O25))","v":""},{"$f":"IF($U25=ExcluirDelPLogro,\"\",IF(AND(M25=0,N25=0,O25=0),\"\",P25))","v":""},{"$f":"SUMIFS($J$25:$J$224,$C$25:$C$224,$C25,$G$25:$G$224,Lists!$A$16)","v":0},{"$f":"SUMIFS($O$25:$O$224,$C$25:$C$224,$C25,$G$25:$G$224,\"<>0\")","v":0},null,{"$f":"IF(B25=0,\"\",IF(LEFT(B25,1)=\"1\",\"1\",\"2\"))","v":"1"},null,{"$f":"IF(C25=0,\"\",LEFT(INDEX(Lists!$H$5:$H$49,MATCH(C25,Lists!$G$5:$G$49,0),1),1))","v":"2"},null,{"$f":"'Month 6'!H25+'Month 6'!I25-'Month 6'!J25","v":5},{"$f":"IF(AND(H25=0,I25=0,J25=0),\"\",IF((H25+I25)>0,J25/(H25+I25),J25))","v":""},{"$f":"IF(AND(H25=0,I25=0,J25=0),\"\",IF(J25>0,H25/J25,0))","v":""},null,{"$f":"U25&C25","v":"1Pr68"}]
[{"$f":"Planning!A10","v":"I002"},{"$f":"Planning!B10","v":"2. Activity: Contributing"},{"$f":"Planning!C10","v":"Pr68"},{"$f":"Planning!D10","v":1.2},{"$f":"Planning!E10","v":"PLHIV reimbursed for transportation costs to HIV testing and treatment centres\n"},{"$f":"IF(Planning!G10<>0,Planning!G10,\"\")","v":"12. Living support to client/ target population "},{"$f":"Planning!H10","v":"1. YES"},{"$f":"Planning!AA10","v":0},{"$f":"IF(OR(W26=\"1\",AND(W26<>\"1\",G26=Lists!$A$17)),Y26,0)","v":0},0,{"$f":"IF(AND(W26=\"2\",G26<>Lists!$A$17),AA26,Z26)","v":""},"",{"$f":"Planning!AB10","v":{"v":0,"d":"0.00"}},{"$f":"'Month 6'!M26+'Month 6'!N26-'Month 6'!O26","v":{"v":0,"d":"0.00"}},{"v":0,"d":"0.00"},"","",{"$f":"SUMIFS($J$25:$J$224,$C$25:$C$224,$C26,$G$25:$G$224,Lists!$A$16)","v":0},{"$f":"SUMIFS($O$25:$O$224,$C$25:$C$224,$C26,$G$25:$G$224,\"<>0\")","v":0},null,{"$f":"IF(B26=0,\"\",IF(LEFT(B26,1)=\"1\",\"1\",\"2\"))","v":"2"},null,{"$f":"IF(C26=0,\"\",LEFT(INDEX(Lists!$H$5:$H$49,MATCH(C26,Lists!$G$5:$G$49,0),1),1))","v":"2"},null,{"$f":"'Month 6'!H26+'Month 6'!I26-'Month 6'!J26","v":5},{"$f":"IF(AND(H26=0,I26=0,J26=0),\"\",IF((H26+I26)>0,J26/(H26+I26),J26))","v":""},"",null,{"$f":"U26&C26","v":"2Pr68"}]
[{"$f":"Planning!A11","v":"I003"},{"$f":"Planning!B11","v":"3. Activity: Non-Contributing"},{"$f":"Planning!C11","v":"Pr68"},{"$f":"Planning!D11","v":1.3},{"$f":"Planning!E11","v":"Communication materials produced to educate HIV+ patients about HIV treatment (Migrants and Sexual Workers). \n\n"},{"$f":"IF(Planning!G11<>0,Planning!G11,\"\")","v":"10. Communication material and publications"},{"$f":"Planning!H11","v":"2. NO"},{"$f":"Planning!AA11","v":0},{"$f":"IF(OR(W27=\"1\",AND(W27<>\"1\",G27=Lists!$A$17)),Y27,0)","v":1},0,{"$f":"IF(AND(W27=\"2\",G27<>Lists!$A$17),AA27,Z27)","v":{"v":0,"d":"0.00%"}},"",{"$f":"Planning!AB11","v":{"v":0,"d":"0.00"}},{"$f":"'Month 6'!M27+'Month 6'!N27-'Month 6'!O27","v":{"v":0,"d":"0.00"}},{"v":0,"d":"0.00"},"","",{"$f":"SUMIFS($J$25:$J$224,$C$25:$C$224,$C27,$G$25:$G$224,Lists!$A$16)","v":0},0,null,"2",null,{"$f":"IF(C27=0,\"\",LEFT(INDEX(Lists!$H$5:$H$49,MATCH(C27,Lists!$G$5:$G$49,0),1),1))","v":"2"},null,{"$f":"'Month 6'!H27+'Month 6'!I27-'Month 6'!J27","v":1},0,0,null,"2Pr68"]
[{"$f":"Planning!A12","v":"I004"},{"$f":"Planning!B12","v":"3. Activity: Non-Contributing"},{"$f":"Planning!C12","v":"Pr68"},{"$f":"Planning!D12","v":1.4},{"$f":"Planning!E12","v":"Supervisory visits to verify the appropriate application of testing and treatment protocols at centers. "},{"$f":"IF(Planning!G12<>0,Planning!G12,\"\")","v":"11. Programme administration costs"},{"$f":"Planning!H12","v":"2. NO"},{"$f":"Planning!AA12","v":0},{"$f":"IF(OR(W28=\"1\",AND(W28<>\"1\",G28=Lists!$A$17)),Y28,0)","v":0},0,{"$f":"IF(AND(W28=\"2\",G28<>Lists!$A$17),AA28,Z28)","v":""},"",{"$f":"Planning!AB12","v":{"v":0,"d":"0.00"}},{"$f":"'Month 6'!M28+'Month 6'!N28-'Month 6'!O28","v":{"v":0,"d":"0.00"}},{"v":0,"d":"0.00"},"","",{"$f":"SUMIFS($J$25:$J$224,$C$25:$C$224,$C28,$G$25:$G$224,Lists!$A$16)","v":0},0,null,"2",null,{"$f":"IF(C28=0,\"\",LEFT(INDEX(Lists!$H$5:$H$49,MATCH(C28,Lists!$G$5:$G$49,0),1),1))","v":"2"},null,{"$f":"'Month 6'!H28+'Month 6'!I28-'Month 6'!J28","v":0},"","",null,"2Pr68"]
[{"$f":"Planning!A13","v":"I005"},{"$f":"Planning!B13","v":"1. Indicator"},{"$f":"Planning!C13","v":"Pr72"},{"$f":"Planning!D13","v":2},{"$f":"Planning!E13","v":"[Pr72] # new HIV+ enrolled in care services Target [3. Non-Cumulative]"},{"$f":"IF(Planning!G13<>0,Planning!G13,\"\")","v":""},{"$f":"Planning!H13","v":0},{"$f":"Planning!AA13","v":0},{"$f":"IF(OR(W29=\"1\",AND(W29<>\"1\",G29=Lists!$A$17)),Y29,0)","v":0},{"$f":"R29","v":0},{"$f":"IF(AND(W29=\"2\",G29<>Lists!$A$17),AA29,Z29)","v":""},"",{"$f":"Planning!AB13","v":{"v":0,"d":"0.00"}},{"$f":"'Month 6'!M29+'Month 6'!N29-'Month 6'!O29","v":{"v":0,"d":"0.00"}},{"$f":"S29","v":{"v":0,"d":"0.00"}},"","",{"$f":"SUMIFS($J$25:$J$224,$C$25:$C$224,$C29,$G$25:$G$224,Lists!$A$16)","v":0},0,null,"1",null,{"$f":"IF(C29=0,\"\",LEFT(INDEX(Lists!$H$5:$H$49,MATCH(C29,Lists!$G$5:$G$49,0),1),1))","v":"3"},null,{"$f":"'Month 6'!H29+'Month 6'!I29-'Month 6'!J29","v":0},"","",null,"1Pr72"]
[{"$f":"Planning!A14","v":"I006"},{"$f":"Planning!B14","v":"2. Activity: Contributing"},{"$f":"Planning!C14","v":"Pr72"},{"$f":"Planning!D14","v":2.1},{"$f":"Planning!E14","v":"Enrollment of  newly diagnosed HIV+ patients for home visits to monitor use of ARV."},{"$f":"IF(Planning!G14<>0,Planning!G14,\"\")","v":"12. Living support to client/ target population "},{"$f":"Planning!H14","v":"1. YES"},{"$f":"Planning!AA14","v":0},{"$f":"IF(OR(W30=\"1\",AND(W30<>\"1\",G30=Lists!$A$17)),Y30,0)","v":0},0,{"$f":"IF(AND(W30=\"2\",G30<>Lists!$A$17),AA30,Z30)","v":""},"",{"$f":"Planning!AB14","v":{"v":0,"d":"0.00"}},{"$f":"'Month 6'!M30+'Month 6'!N30-'Month 6'!O30","v":{"v":0,"d":"0.00"}},{"v":0,"d":"0.00"},"","",{"$f":"SUMIFS($J$25:$J$224,$C$25:$C$224,$C30,$G$25:$G$224,Lists!$A$16)","v":0},0,null,"2",null,{"$f":"IF(C30=0,\"\",LEFT(INDEX(Lists!$H$5:$H$49,MATCH(C30,Lists!$G$5:$G$49,0),1),1))","v":"3"},null,{"$f":"'Month 6'!H30+'Month 6'!I30-'Month 6'!J30","v":0},"","",null,"2Pr72"]
[{"$f":"Planning!A15","v":"I007"},{"$f":"Planning!B15","v":"1. Indicator"},{"$f":"Planning!C15","v":"Pr74"},{"$f":"Planning!D15","v":3},{"$f":"Planning!E15","v":"[Pr74] # aged 10-24 yrs reached by HIV life skills ed. in school  Target [1. Standard]"},{"$f":"IF(Planning!G15<>0,Planning!G15,\"\")","v":""},{"$f":"Planning!H15","v":0},{"$f":"Planning!AA15","v":0},{"$f":"IF(OR(W31=\"1\",AND(W31<>\"1\",G31=Lists!$A$17)),Y31,0)","v":30},{"$f":"R31","v":0},{"$f":"IF(AND(W31=\"2\",G31<>Lists!$A$17),AA31,Z31)","v":{"v":0,"d":"0.00%"}},0,{"$f":"Planning!AB15","v":{"v":0,"d":"0.00"}},{"$f":"'Month 6'!M31+'Month 6'!N31-'Month 6'!O31","v":{"v":6250,"d":"6,250.00"}},{"$f":"S31","v":{"v":0,"d":"0.00"}},{"v":0,"d":"0.00%"},0,{"$f":"SUMIFS($J$25:$J$224,$C$25:$C$224,$C31,$G$25:$G$224,Lists!$A$16)","v":0},0,null,"1",null,{"$f":"IF(C31=0,\"\",LEFT(INDEX(Lists!$H$5:$H$49,MATCH(C31,Lists!$G$5:$G$49,0),1),1))","v":"1"},null,{"$f":"'Month 6'!H31+'Month 6'!I31-'Month 6'!J31","v":30},0,0,null,"1Pr74"]
[{"$f":"Planning!A16","v":"I008"},{"$f":"Planning!B16","v":"2. Activity: Contributing"},{"$f":"Planning!C16","v":"Pr74"},{"$f":"Planning!D16","v":3.1},{"$f":"Planning!E16","v":"Transportation of students to meetings and conferences for peer education activities"},{"$f":"IF(Planning!G16<>0,Planning!G16,\"\")","v":"2. Travel related costs"},{"$f":"Planning!H16","v":"1. YES"},{"$f":"Planning!AA16","v":0},{"$f":"IF(OR(W32=\"1\",AND(W32<>\"1\",G32=Lists!$A$17)),Y32,0)","v":30},0,{"$f":"IF(AND(W32=\"2\",G32<>Lists!$A$17),AA32,Z32)","v":{"v":0,"d":"0.00%"}},"",{"$f":"Planning!AB16","v":{"v":0,"d":"0.00"}},{"$f":"'Month 6'!M32+'Month 6'!N32-'Month 6'!O32","v":{"v":6250,"d":"6,250.00"}},{"v":0,"d":"0.00"},{"v":0,"d":"0.00%"},"",{"$f":"SUMIFS($J$25:$J$224,$C$25:$C$224,$C32,$G$25:$G$224,Lists!$A$16)","v":0},0,null,"2",null,{"$f":"IF(C32=0,\"\",LEFT(INDEX(Lists!$H$5:$H$49,MATCH(C32,Lists!$G$5:$G$49,0),1),1))","v":"1"},null,{"$f":"'Month 6'!H32+'Month 6'!I32-'Month 6'!J32","v":30},0,0,null,"2Pr74"]
[{"$f":"Planning!A17","v":"I009"},{"$f":"Planning!B17","v":"1. Indicator"},{"$f":"Planning!C17","v":"OI01"},{"$f":"Planning!D17","v":4},{"$f":"Planning!E17","v":"[OI01] # of new orphans and vulnerable children (0 - 17 yrs) benefiting from  services provided at OVC centers [1. Standard]"},{"$f":"IF(Planning!G17<>0,Planning!G17,\"\")","v":""},{"$f":"Planning!H17","v":0},{"$f":"Planning!AA17","v":0},{"$f":"IF(OR(W33=\"1\",AND(W33<>\"1\",G33=Lists!$A$17)),Y33,0)","v":0},{"$f":"R33","v":0},{"$f":"IF(AND(W33=\"2\",G33<>Lists!$A$17),AA33,Z33)","v":""},"",{"$f":"Planning!AB17","v":{"v":0,"d":"0.00"}},{"$f":"'Month 6'!M33+'Month 6'!N33-'Month 6'!O33","v":{"v":1000,"d":"1,000.00"}},{"$f":"S33","v":{"v":0,"d":"0.00"}},{"v":0,"d":"0.00%"},0,{"$f":"SUMIFS($J$25:$J$224,$C$25:$C$224,$C33,$G$25:$G$224,Lists!$A$16)","v":0},0,null,"1",null,{"$f":"IF(C33=0,\"\",LEFT(INDEX(Lists!$H$5:$H$49,MATCH(C33,Lists!$G$5:$G$49,0),1),1))","v":"1"},null,{"$f":"'Month 6'!H33+'Month 6'!I33-'Month 6'!J33","v":0},"","",null,"1OI01"]
[{"$f":"Planning!A18","v":"I010"},{"$f":"Planning!B18","v":"3. Activity: Non-Contributing"},{"$f":"Planning!C18","v":"OI01"},{"$f":"Planning!D18","v":4.1},{"$f":"Planning!E18","v":"# of OVC centers established and fully equipped  "},{"$f":"IF(Planning!G18<>0,Planning!G18,\"\")","v":"8. Infrastructure "},{"$f":"Planning!H18","v":"2. NO"},{"$f":"Planning!AA18","v":0},{"$f":"IF(OR(W34=\"1\",AND(W34<>\"1\",G34=Lists!$A$17)),Y34,0)","v":0},0,{"$f":"IF(AND(W34=\"2\",G34<>Lists!$A$17),AA34,Z34)","v":""},"",{"$f":"Planning!AB18","v":{"v":0,"d":"0.00"}},{"$f":"'Month 6'!M34+'Month 6'!N34-'Month 6'!O34","v":{"v":0,"d":"0.00"}},{"v":0,"d":"0.00"},"","",{"$f":"SUMIFS($J$25:$J$224,$C$25:$C$224,$C34,$G$25:$G$224,Lists!$A$16)","v":0},0,null,"2",null,{"$f":"IF(C34=0,\"\",LEFT(INDEX(Lists!$H$5:$H$49,MATCH(C34,Lists!$G$5:$G$49,0),1),1))","v":"1"},null,{"$f":"'Month 6'!H34+'Month 6'!I34-'Month 6'!J34","v":0},"","",null,"2OI01"]
[{"$f":"Planning!A19","v":"I011"},{"$f":"Planning!B19","v":"2. Activity: Contributing"},{"$f":"Planning!C19","v":"OI01"},{"$f":"Planning!D19","v":4.2},{"$f":"Planning!E19","v":"# of OVC registered at centres"},{"$f":"IF(Planning!G19<>0,Planning!G19,\"\")","v":"12. Living support to client/ target population "},{"$f":"Planning!H19","v":"1. YES"},{"$f":"Planning!AA19","v":0},{"$f":"IF(OR(W35=\"1\",AND(W35<>\"1\",G35=Lists!$A$17)),Y35,0)","v":0},0,{"$f":"IF(AND(W35=\"2\",G35<>Lists!$A$17),AA35,Z35)","v":""},"",{"$f":"Planning!AB19","v":{"v":0,"d":"0.00"}},{"$f":"'Month 6'!M35+'Month 6'!N35-'Month 6'!O35","v":{"v":0,"d":"0.00"}},{"v":0,"d":"0.00"},"","",{"$f":"SUMIFS($J$25:$J$224,$C$25:$C$224,$C35,$G$25:$G$224,Lists!$A$16)","v":0},0,null,"2",null,{"$f":"IF(C35=0,\"\",LEFT(INDEX(Lists!$H$5:$H$49,MATCH(C35,Lists!$G$5:$G$49,0),1),1))","v":"1"},null,{"$f":"'Month 6'!H35+'Month 6'!I35-'Month 6'!J35","v":0},"","",null,"2OI01"]
[{"$f":"Planning!A20","v":"I012"},{"$f":"Planning!B20","v":"3. Activity: Non-Contributing"},{"$f":"Planning!C20","v":"OI01"},{"$f":"Planning!D20","v":4.3},{"$f":"Planning!E20","v":"# of meals provided at the OVC centers "},{"$f":"IF(Planning!G20<>0,Planning!G20,\"\")","v":"12. Living support to client/ target population "},{"$f":"Planning!H20","v":"2. NO"},{"$f":"Planning!AA20","v":0},{"$f":"IF(OR(W36=\"1\",AND(W36<>\"1\",G36=Lists!$A$17)),Y36,0)","v":100},0,{"$f":"IF(AND(W36=\"2\",G36<>Lists!$A$17),AA36,Z36)","v":{"v":0,"d":"0.00%"}},"",{"$f":"Planning!AB20","v":{"v":0,"d":"0.00"}},{"$f":"'Month 6'!M36+'Month 6'!N36-'Month 6'!O36","v":{"v":1000,"d":"1,000.00"}},{"v":0,"d":"0.00"},{"v":0,"d":"0.00%"},"",{"$f":"SUMIFS($J$25:$J$224,$C$25:$C$224,$C36,$G$25:$G$224,Lists!$A$16)","v":0},0,null,"2",null,{"$f":"IF(C36=0,\"\",LEFT(INDEX(Lists!$H$5:$H$49,MATCH(C36,Lists!$G$5:$G$49,0),1),1))","v":"1"},null,{"$f":"'Month 6'!H36+'Month 6'!I36-'Month 6'!J36","v":100},0,0,null,"2OI01"]
[{"$f":"Planning!A21","v":"I013"},{"$f":"Planning!B21","v":0},{"$f":"Planning!C21","v":0},{"$f":"Planning!D21","v":0},{"$f":"Planning!E21","v":0},{"$f":"IF(Planning!G21<>0,Planning!G21,\"\")","v":""},{"$f":"Planning!H21","v":0},{"$f":"Planning!AA21","v":0},{"$f":"IF(OR(W37=\"1\",AND(W37<>\"1\",G37=Lists!$A$17)),Y37,0)","v":0},null,{"$f":"IF(AND(W37=\"2\",G37<>Lists!$A$17),AA37,Z37)","v":""},"",{"$f":"Planning!AB21","v":{"v":0,"d":"0.00"}},{"$f":"'Month 6'!M37+'Month 6'!N37-'Month 6'!O37","v":{"v":0,"d":"0.00"}},null,"","",{"$f":"SUMIFS($J$25:$J$224,$C$25:$C$224,$C37,$G$25:$G$224,Lists!$A$16)","v":0},0,null,"",null,{"$f":"IF(C37=0,\"\",LEFT(INDEX(Lists!$H$5:$H$49,MATCH(C37,Lists!$G$5:$G$49,0),1),1))","v":""},null,{"$f":"'Month 6'!H37+'Month 6'!I37-'Month 6'!J37","v":0},"","",null,"0"]
[{"$f":"Planning!A22","v":"I014"},{"$f":"Planning!B22","v":0},{"$f":"Planning!C22","v":0},{"$f":"Planning!D22","v":0},{"$f":"Planning!E22","v":0},{"$f":"IF(Planning!G22<>0,Planning!G22,\"\")","v":""},{"$f":"Planning!H22","v":0},{"$f":"Planning!AA22","v":0},{"$f":"IF(OR(W38=\"1\",AND(W38<>\"1\",G38=Lists!$A$17)),Y38,0)","v":0},null,{"$f":"IF(AND(W38=\"2\",G38<>Lists!$A$17),AA38,Z38)","v":""},"",{"$f":"Planning!AB22","v":{"v":0,"d":"0.00"}},{"$f":"'Month 6'!M38+'Month 6'!N38-'Month 6'!O38","v":{"v":0,"d":"0.00"}},null,"","",{"$f":"SUMIFS($J$25:$J$224,$C$25:$C$224,$C38,$G$25:$G$224,Lists!$A$16)","v":0},0,null,"",null,{"$f":"IF(C38=0,\"\",LEFT(INDEX(Lists!$H$5:$H$49,MATCH(C38,Lists!$G$5:$G$49,0),1),1))","v":""},null,{"$f":"'Month 6'!H38+'Month 6'!I38-'Month 6'!J38","v":0},"","",null,"0"]
[{"$f":"Planning!A23","v":"I015"},{"$f":"Planning!B23","v":0},{"$f":"Planning!C23","v":0},{"$f":"Planning!D23","v":0},{"$f":"Planning!E23","v":0},{"$f":"IF(Planning!G23<>0,Planning!G23,\"\")","v":""},{"$f":"Planning!H23","v":0},{"$f":"Planning!AA23","v":0},{"$f":"IF(OR(W39=\"1\",AND(W39<>\"1\",G39=Lists!$A$17)),Y39,0)","v":0},null,{"$f":"IF(AND(W39=\"2\",G39<>Lists!$A$17),AA39,Z39)","v":""},"",{"$f":"Planning!AB23","v":{"v":0,"d":"0.00"}},{"$f":"'Month 6'!M39+'Month 6'!N39-'Month 6'!O39","v":{"v":0,"d":"0.00"}},null,"","",{"$f":"SUMIFS($J$25:$J$224,$C$25:$C$224,$C39,$G$25:$G$224,Lists!$A$16)","v":0},0,null,"",null,{"$f":"IF(C39=0,\"\",LEFT(INDEX(Lists!$H$5:$H$49,MATCH(C39,Lists!$G$5:$G$49,0),1),1))","v":""},null,{"$f":"'Month 6'!H39+'Month 6'!I39-'Month 6'!J39","v":0},"","",null,"0"]
[{"$f":"Planning!A24","v":"I016"},{"$f":"Planning!B24","v":0},{"$f":"Planning!C24","v":0},{"$f":"Planning!D24","v":0},{"$f":"Planning!E24","v":0},{"$f":"IF(Planning!G24<>0,Planning!G24,\"\")","v":""},{"$f":"Planning!H24","v":0},{"$f":"Planning!AA24","v":0},{"$f":"IF(OR(W40=\"1\",AND(W40<>\"1\",G40=Lists!$A$17)),Y40,0)","v":0},null,{"$f":"IF(AND(W40=\"2\",G40<>Lists!$A$17),AA40,Z40)","v":""},"",{"$f":"Planning!AB24","v":{"v":0,"d":"0.00"}},{"$f":"'Month 6'!M40+'Month 6'!N40-'Month 6'!O40","v":{"v":0,"d":"0.00"}},null,"","",{"$f":"SUMIFS($J$25:$J$224,$C$25:$C$224,$C40,$G$25:$G$224,Lists!$A$16)","v":0},0,null,"",null,{"$f":"IF(C40=0,\"\",LEFT(INDEX(Lists!$H$5:$H$49,MATCH(C40,Lists!$G$5:$G$49,0),1),1))","v":""},null,{"$f":"'Month 6'!H40+'Month 6'!I40-'Month 6'!J40","v":0},"","",null,"0"]
[{"$f":"Planning!A25","v":"I017"},{"$f":"Planning!B25","v":0},{"$f":"Planning!C25","v":0},{"$f":"Planning!D25","v":0},{"$f":"Planning!E25","v":0},{"$f":"IF(Planning!G25<>0,Planning!G25,\"\")","v":""},{"$f":"Planning!H25","v":0},{"$f":"Planning!AA25","v":0},{"$f":"IF(OR(W41=\"1\",AND(W41<>\"1\",G41=Lists!$A$17)),Y41,0)","v":0},null,{"$f":"IF(AND(W41=\"2\",G41<>Lists!$A$17),AA41,Z41)","v":""},"",{"$f":"Planning!AB25","v":{"v":0,"d":"0.00"}},{"$f":"'Month 6'!M41+'Month 6'!N41-'Month 6'!O41","v":{"v":0,"d":"0.00"}},null,"","",{"$f":"SUMIFS($J$25:$J$224,$C$25:$C$224,$C41,$G$25:$G$224,Lists!$A$16)","v":0},0,null,"",null,{"$f":"IF(C41=0,\"\",LEFT(INDEX(Lists!$H$5:$H$49,MATCH(C41,Lists!$G$5:$G$49,0),1),1))","v":""},null,{"$f":"'Month 6'!H41+'Month 6'!I41-'Month 6'!J41","v":0},"","",null,"0"]
[{"$f":"Planning!A26","v":"I018"},{"$f":"Planning!B26","v":0},{"$f":"Planning!C26","v":0},{"$f":"Planning!D26","v":0},{"$f":"Planning!E26","v":0},{"$f":"IF(Planning!G26<>0,Planning!G26,\"\")","v":""},{"$f":"Planning!H26","v":0},{"$f":"Planning!AA26","v":0},{"$f":"IF(OR(W42=\"1\",AND(W42<>\"1\",G42=Lists!$A$17)),Y42,0)","v":0},null,{"$f":"IF(AND(W42=\"2\",G42<>Lists!$A$17),AA42,Z42)","v":""},"",{"$f":"Planning!AB26","v":{"v":0,"d":"0.00"}},{"$f":"'Month 6'!M42+'Month 6'!N42-'Month 6'!O42","v":{"v":0,"d":"0.00"}},null,"","",{"$f":"SUMIFS($J$25:$J$224,$C$25:$C$224,$C42,$G$25:$G$224,Lists!$A$16)","v":0},0,null,"",null,{"$f":"IF(C42=0,\"\",LEFT(INDEX(Lists!$H$5:$H$49,MATCH(C42,Lists!$G$5:$G$49,0),1),1))","v":""},null,{"$f":"'Month 6'!H42+'Month 6'!I42-'Month 6'!J42","v":0},"","",null,"0"]
[{"$f":"Planning!A27","v":"I019"},{"$f":"Planning!B27","v":0},{"$f":"Planning!C27","v":0},{"$f":"Planning!D27","v":0},{"$f":"Planning!E27","v":0},{"$f":"IF(Planning!G27<>0,Planning!G27,\"\")","v":""},{"$f":"Planning!H27","v":0},{"$f":"Planning!AA27","v":0},{"$f":"IF(OR(W43=\"1\",AND(W43<>\"1\",G43=Lists!$A$17)),Y43,0)","v":0},null,{"$f":"IF(AND(W43=\"2\",G43<>Lists!$A$17),AA43,Z43)","v":""},"",{"$f":"Planning!AB27","v":{"v":0,"d":"0.00"}},{"$f":"'Month 6'!M43+'Month 6'!N43-'Month 6'!O43","v":{"v":0,"d":"0.00"}},null,"","",{"$f":"SUMIFS($J$25:$J$224,$C$25:$C$224,$C43,$G$25:$G$224,Lists!$A$16)","v":0},0,null,"",null,{"$f":"IF(C43=0,\"\",LEFT(INDEX(Lists!$H$5:$H$49,MATCH(C43,Lists!$G$5:$G$49,0),1),1))","v":""},null,{"$f":"'Month 6'!H43+'Month 6'!I43-'Month 6'!J43","v":0},"","",null,"0"]
[{"$f":"Planning!A28","v":"I020"},{"$f":"Planning!B28","v":0},{"$f":"Planning!C28","v":0},{"$f":"Planning!D28","v":0},{"$f":"Planning!E28","v":0},{"$f":"IF(Planning!G28<>0,Planning!G28,\"\")","v":""},{"$f":"Planning!H28","v":0},{"$f":"Planning!AA28","v":0},{"$f":"IF(OR(W44=\"1\",AND(W44<>\"1\",G44=Lists!$A$17)),Y44,0)","v":0},null,{"$f":"IF(AND(W44=\"2\",G44<>Lists!$A$17),AA44,Z44)","v":""},"",{"$f":"Planning!AB28","v":{"v":0,"d":"0.00"}},{"$f":"'Month 6'!M44+'Month 6'!N44-'Month 6'!O44","v":{"v":0,"d":"0.00"}},null,"","",{"$f":"SUMIFS($J$25:$J$224,$C$25:$C$224,$C44,$G$25:$G$224,Lists!$A$16)","v":0},0,null,"",null,{"$f":"IF(C44=0,\"\",LEFT(INDEX(Lists!$H$5:$H$49,MATCH(C44,Lists!$G$5:$G$49,0),1),1))","v":""},null,{"$f":"'Month 6'!H44+'Month 6'!I44-'Month 6'!J44","v":0},"","",null,"0"]
[{"$f":"Planning!A29","v":"I021"},{"$f":"Planning!B29","v":0},{"$f":"Planning!C29","v":0},{"$f":"Planning!D29","v":0},{"$f":"Planning!E29","v":0},{"$f":"IF(Planning!G29<>0,Planning!G29,\"\")","v":""},{"$f":"Planning!H29","v":0},{"$f":"Planning!AA29","v":0},{"$f":"IF(OR(W45=\"1\",AND(W45<>\"1\",G45=Lists!$A$17)),Y45,0)","v":0},null,{"$f":"IF(AND(W45=\"2\",G45<>Lists!$A$17),AA45,Z45)","v":""},"",{"$f":"Planning!AB29","v":{"v":0,"d":"0.00"}},{"$f":"'Month 6'!M45+'Month 6'!N45-'Month 6'!O45","v":{"v":0,"d":"0.00"}},null,"","",{"$f":"SUMIFS($J$25:$J$224,$C$25:$C$224,$C45,$G$25:$G$224,Lists!$A$16)","v":0},0,null,"",null,{"$f":"IF(C45=0,\"\",LEFT(INDEX(Lists!$H$5:$H$49,MATCH(C45,Lists!$G$5:$G$49,0),1),1))","v":""},null,{"$f":"'Month 6'!H45+'Month 6'!I45-'Month 6'!J45","v":0},"","",null,"0"]
[{"$f":"Planning!A30","v":"I022"},{"$f":"Planning!B30","v":0},{"$f":"Planning!C30","v":0},{"$f":"Planning!D30","v":0},{"$f":"Planning!E30","v":0},{"$f":"IF(Planning!G30<>0,Planning!G30,\"\")","v":""},{"$f":"Planning!H30","v":0},{"$f":"Planning!AA30","v":0},{"$f":"IF(OR(W46=\"1\",AND(W46<>\"1\",G46=Lists!$A$17)),Y46,0)","v":0},null,{"$f":"IF(AND(W46=\"2\",G46<>Lists!$A$17),AA46,Z46)","v":""},"",{"$f":"Planning!AB30","v":{"v":0,"d":"0.00"}},{"$f":"'Month 6'!M46+'Month 6'!N46-'Month 6'!O46","v":{"v":0,"d":"0.00"}},null,"","",{"$f":"SUMIFS($J$25:$J$224,$C$25:$C$224,$C46,$G$25:$G$224,Lists!$A$16)","v":0},0,null,"",null,{"$f":"IF(C46=0,\"\",LEFT(INDEX(Lists!$H$5:$H$49,MATCH(C46,Lists!$G$5:$G$49,0),1),1))","v":""},null,{"$f":"'Month 6'!H46+'Month 6'!I46-'Month 6'!J46","v":0},"","",null,"0"]
[{"$f":"Planning!A31","v":"I023"},{"$f":"Planning!B31","v":0},{"$f":"Planning!C31","v":0},{"$f":"Planning!D31","v":0},{"$f":"Planning!E31","v":0},{"$f":"IF(Planning!G31<>0,Planning!G31,\"\")","v":""},{"$f":"Planning!H31","v":0},{"$f":"Planning!AA31","v":0},{"$f":"IF(OR(W47=\"1\",AND(W47<>\"1\",G47=Lists!$A$17)),Y47,0)","v":0},null,{"$f":"IF(AND(W47=\"2\",G47<>Lists!$A$17),AA47,Z47)","v":""},"",{"$f":"Planning!AB31","v":{"v":0,"d":"0.00"}},{"$f":"'Month 6'!M47+'Month 6'!N47-'Month 6'!O47","v":{"v":0,"d":"0.00"}},null,"","",{"$f":"SUMIFS($J$25:$J$224,$C$25:$C$224,$C47,$G$25:$G$224,Lists!$A$16)","v":0},0,null,"",null,{"$f":"IF(C47=0,\"\",LEFT(INDEX(Lists!$H$5:$H$49,MATCH(C47,Lists!$G$5:$G$49,0),1),1))","v":""},null,{"$f":"'Month 6'!H47+'Month 6'!I47-'Month 6'!J47","v":0},"","",null,"0"]
[{"$f":"Planning!A32","v":"I024"},{"$f":"Planning!B32","v":0},{"$f":"Planning!C32","v":0},{"$f":"Planning!D32","v":0},{"$f":"Planning!E32","v":0},{"$f":"IF(Planning!G32<>0,Planning!G32,\"\")","v":""},{"$f":"Planning!H32","v":0},{"$f":"Planning!AA32","v":0},{"$f":"IF(OR(W48=\"1\",AND(W48<>\"1\",G48=Lists!$A$17)),Y48,0)","v":0},null,{"$f":"IF(AND(W48=\"2\",G48<>Lists!$A$17),AA48,Z48)","v":""},"",{"$f":"Planning!AB32","v":{"v":0,"d":"0.00"}},{"$f":"'Month 6'!M48+'Month 6'!N48-'Month 6'!O48","v":{"v":0,"d":"0.00"}},null,"","",{"$f":"SUMIFS($J$25:$J$224,$C$25:$C$224,$C48,$G$25:$G$224,Lists!$A$16)","v":0},0,null,"",null,{"$f":"IF(C48=0,\"\",LEFT(INDEX(Lists!$H$5:$H$49,MATCH(C48,Lists!$G$5:$G$49,0),1),1))","v":""},null,{"$f":"'Month 6'!H48+'Month 6'!I48-'Month 6'!J48","v":0},"","",null,"0"]
[{"$f":"Planning!A33","v":"I025"},{"$f":"Planning!B33","v":0},{"$f":"Planning!C33","v":0},{"$f":"Planning!D33","v":0},{"$f":"Planning!E33","v":0},{"$f":"IF(Planning!G33<>0,Planning!G33,\"\")","v":""},{"$f":"Planning!H33","v":0},{"$f":"Planning!AA33","v":0},{"$f":"IF(OR(W49=\"1\",AND(W49<>\"1\",G49=Lists!$A$17)),Y49,0)","v":0},null,{"$f":"IF(AND(W49=\"2\",G49<>Lists!$A$17),AA49,Z49)","v":""},"",{"$f":"Planning!AB33","v":{"v":0,"d":"0.00"}},{"$f":"'Month 6'!M49+'Month 6'!N49-'Month 6'!O49","v":{"v":0,"d":"0.00"}},null,"","",{"$f":"SUMIFS($J$25:$J$224,$C$25:$C$224,$C49,$G$25:$G$224,Lists!$A$16)","v":0},0,null,"",null,{"$f":"IF(C49=0,\"\",LEFT(INDEX(Lists!$H$5:$H$49,MATCH(C49,Lists!$G$5:$G$49,0),1),1))","v":""},null,{"$f":"'Month 6'!H49+'Month 6'!I49-'Month 6'!J49","v":0},"","",null,"0"]
[{"$f":"Planning!A34","v":"I026"},{"$f":"Planning!B34","v":0},{"$f":"Planning!C34","v":0},{"$f":"Planning!D34","v":0},{"$f":"Planning!E34","v":0},{"$f":"IF(Planning!G34<>0,Planning!G34,\"\")","v":""},{"$f":"Planning!H34","v":0},{"$f":"Planning!AA34","v":0},{"$f":"IF(OR(W50=\"1\",AND(W50<>\"1\",G50=Lists!$A$17)),Y50,0)","v":0},null,{"$f":"IF(AND(W50=\"2\",G50<>Lists!$A$17),AA50,Z50)","v":""},"",{"$f":"Planning!AB34","v":{"v":0,"d":"0.00"}},{"$f":"'Month 6'!M50+'Month 6'!N50-'Month 6'!O50","v":{"v":0,"d":"0.00"}},null,"","",{"$f":"SUMIFS($J$25:$J$224,$C$25:$C$224,$C50,$G$25:$G$224,Lists!$A$16)","v":0},0,null,"",null,{"$f":"IF(C50=0,\"\",LEFT(INDEX(Lists!$H$5:$H$49,MATCH(C50,Lists!$G$5:$G$49,0),1),1))","v":""},null,{"$f":"'Month 6'!H50+'Month 6'!I50-'Month 6'!J50","v":0},"","",null,"0"]
[{"$f":"Planning!A35","v":"I027"},{"$f":"Planning!B35","v":0},{"$f":"Planning!C35","v":0},{"$f":"Planning!D35","v":0},{"$f":"Planning!E35","v":0},{"$f":"IF(Planning!G35<>0,Planning!G35,\"\")","v":""},{"$f":"Planning!H35","v":0},{"$f":"Planning!AA35","v":0},{"$f":"IF(OR(W51=\"1\",AND(W51<>\"1\",G51=Lists!$A$17)),Y51,0)","v":0},null,{"$f":"IF(AND(W51=\"2\",G51<>Lists!$A$17),AA51,Z51)","v":""},"",{"$f":"Planning!AB35","v":{"v":0,"d":"0.00"}},{"$f":"'Month 6'!M51+'Month 6'!N51-'Month 6'!O51","v":{"v":0,"d":"0.00"}},null,"","",{"$f":"SUMIFS($J$25:$J$224,$C$25:$C$224,$C51,$G$25:$G$224,Lists!$A$16)","v":0},0,null,"",null,{"$f":"IF(C51=0,\"\",LEFT(INDEX(Lists!$H$5:$H$49,MATCH(C51,Lists!$G$5:$G$49,0),1),1))","v":""},null,{"$f":"'Month 6'!H51+'Month 6'!I51-'Month 6'!J51","v":0},"","",null,"0"]
[{"$f":"Planning!A36","v":"I028"},{"$f":"Planning!B36","v":0},{"$f":"Planning!C36","v":0},{"$f":"Planning!D36","v":0},{"$f":"Planning!E36","v":0},{"$f":"IF(Planning!G36<>0,Planning!G36,\"\")","v":""},{"$f":"Planning!H36","v":0},{"$f":"Planning!AA36","v":0},{"$f":"IF(OR(W52=\"1\",AND(W52<>\"1\",G52=Lists!$A$17)),Y52,0)","v":0},null,{"$f":"IF(AND(W52=\"2\",G52<>Lists!$A$17),AA52,Z52)","v":""},"",{"$f":"Planning!AB36","v":{"v":0,"d":"0.00"}},{"$f":"'Month 6'!M52+'Month 6'!N52-'Month 6'!O52","v":{"v":0,"d":"0.00"}},null,"","",{"$f":"SUMIFS($J$25:$J$224,$C$25:$C$224,$C52,$G$25:$G$224,Lists!$A$16)","v":0},0,null,"",null,{"$f":"IF(C52=0,\"\",LEFT(INDEX(Lists!$H$5:$H$49,MATCH(C52,Lists!$G$5:$G$49,0),1),1))","v":""},null,{"$f":"'Month 6'!H52+'Month 6'!I52-'Month 6'!J52","v":0},"","",null,"0"]
[{"$f":"Planning!A37","v":"I029"},{"$f":"Planning!B37","v":0},{"$f":"Planning!C37","v":0},{"$f":"Planning!D37","v":0},{"$f":"Planning!E37","v":0},{"$f":"IF(Planning!G37<>0,Planning!G37,\"\")","v":""},{"$f":"Planning!H37","v":0},{"$f":"Planning!AA37","v":0},{"$f":"IF(OR(W53=\"1\",AND(W53<>\"1\",G53=Lists!$A$17)),Y53,0)","v":0},null,{"$f":"IF(AND(W53=\"2\",G53<>Lists!$A$17),AA53,Z53)","v":""},"",{"$f":"Planning!AB37","v":{"v":0,"d":"0.00"}},{"$f":"'Month 6'!M53+'Month 6'!N53-'Month 6'!O53","v":{"v":0,"d":"0.00"}},null,"","",{"$f":"SUMIFS($J$25:$J$224,$C$25:$C$224,$C53,$G$25:$G$224,Lists!$A$16)","v":0},0,null,"",null,{"$f":"IF(C53=0,\"\",LEFT(INDEX(Lists!$H$5:$H$49,MATCH(C53,Lists!$G$5:$G$49,0),1),1))","v":""},null,{"$f":"'Month 6'!H53+'Month 6'!I53-'Month 6'!J53","v":0},"","",null,"0"]
[{"$f":"Planning!A38","v":"I030"},{"$f":"Planning!B38","v":0},{"$f":"Planning!C38","v":0},{"$f":"Planning!D38","v":0},{"$f":"Planning!E38","v":0},{"$f":"IF(Planning!G38<>0,Planning!G38,\"\")","v":""},{"$f":"Planning!H38","v":0},{"$f":"Planning!AA38","v":0},{"$f":"IF(OR(W54=\"1\",AND(W54<>\"1\",G54=Lists!$A$17)),Y54,0)","v":0},null,{"$f":"IF(AND(W54=\"2\",G54<>Lists!$A$17),AA54,Z54)","v":""},"",{"$f":"Planning!AB38","v":{"v":0,"d":"0.00"}},{"$f":"'Month 6'!M54+'Month 6'!N54-'Month 6'!O54","v":{"v":0,"d":"0.00"}},null,"","",{"$f":"SUMIFS($J$25:$J$224,$C$25:$C$224,$C54,$G$25:$G$224,Lists!$A$16)","v":0},0,null,"",null,{"$f":"IF(C54=0,\"\",LEFT(INDEX(Lists!$H$5:$H$49,MATCH(C54,Lists!$G$5:$G$49,0),1),1))","v":""},null,{"$f":"'Month 6'!H54+'Month 6'!I54-'Month 6'!J54","v":0},"","",null,"0"]
[{"$f":"Planning!A39","v":"I031"},{"$f":"Planning!B39","v":0},{"$f":"Planning!C39","v":0},{"$f":"Planning!D39","v":0},{"$f":"Planning!E39","v":0},{"$f":"IF(Planning!G39<>0,Planning!G39,\"\")","v":""},{"$f":"Planning!H39","v":0},{"$f":"Planning!AA39","v":0},{"$f":"IF(OR(W55=\"1\",AND(W55<>\"1\",G55=Lists!$A$17)),Y55,0)","v":0},null,{"$f":"IF(AND(W55=\"2\",G55<>Lists!$A$17),AA55,Z55)","v":""},"",{"$f":"Planning!AB39","v":{"v":0,"d":"0.00"}},{"$f":"'Month 6'!M55+'Month 6'!N55-'Month 6'!O55","v":{"v":0,"d":"0.00"}},null,"","",{"$f":"SUMIFS($J$25:$J$224,$C$25:$C$224,$C55,$G$25:$G$224,Lists!$A$16)","v":0},0,null,"",null,{"$f":"IF(C55=0,\"\",LEFT(INDEX(Lists!$H$5:$H$49,MATCH(C55,Lists!$G$5:$G$49,0),1),1))","v":""},null,{"$f":"'Month 6'!H55+'Month 6'!I55-'Month 6'!J55","v":0},"","",null,"0"]
[{"$f":"Planning!A40","v":"I032"},{"$f":"Planning!B40","v":0},{"$f":"Planning!C40","v":0},{"$f":"Planning!D40","v":0},{"$f":"Planning!E40","v":0},{"$f":"IF(Planning!G40<>0,Planning!G40,\"\")","v":""},{"$f":"Planning!H40","v":0},{"$f":"Planning!AA40","v":0},{"$f":"IF(OR(W56=\"1\",AND(W56<>\"1\",G56=Lists!$A$17)),Y56,0)","v":0},null,{"$f":"IF(AND(W56=\"2\",G56<>Lists!$A$17),AA56,Z56)","v":""},"",{"$f":"Planning!AB40","v":{"v":0,"d":"0.00"}},{"$f":"'Month 6'!M56+'Month 6'!N56-'Month 6'!O56","v":{"v":0,"d":"0.00"}},null,"","",{"$f":"SUMIFS($J$25:$J$224,$C$25:$C$224,$C56,$G$25:$G$224,Lists!$A$16)","v":0},0,null,"",null,{"$f":"IF(C56=0,\"\",LEFT(INDEX(Lists!$H$5:$H$49,MATCH(C56,Lists!$G$5:$G$49,0),1),1))","v":""},null,{"$f":"'Month 6'!H56+'Month 6'!I56-'Month 6'!J56","v":0},"","",null,"0"]
[{"$f":"Planning!A41","v":"I033"},{"$f":"Planning!B41","v":0},{"$f":"Planning!C41","v":0},{"$f":"Planning!D41","v":0},{"$f":"Planning!E41","v":0},{"$f":"IF(Planning!G41<>0,Planning!G41,\"\")","v":""},{"$f":"Planning!H41","v":0},{"$f":"Planning!AA41","v":0},{"$f":"IF(OR(W57=\"1\",AND(W57<>\"1\",G57=Lists!$A$17)),Y57,0)","v":0},null,{"$f":"IF(AND(W57=\"2\",G57<>Lists!$A$17),AA57,Z57)","v":""},{"$f":"IF($U57=ExcluirDelPLogro,\"\",IF(AND(H57=0,I57=0,J57=0),\"\",K57))","v":""},{"$f":"Planning!AB41","v":{"v":0,"d":"0.00"}},{"$f":"'Month 6'!M57+'Month 6'!N57-'Month 6'!O57","v":{"v":0,"d":"0.00"}},null,"",{"$f":"IF($U57=ExcluirDelPLogro,\"\",IF(AND(M57=0,N57=0,O57=0),\"\",P57))","v":""},{"$f":"SUMIFS($J$25:$J$224,$C$25:$C$224,$C57,$G$25:$G$224,Lists!$A$16)","v":0},0,null,"",null,{"$f":"IF(C57=0,\"\",LEFT(INDEX(Lists!$H$5:$H$49,MATCH(C57,Lists!$G$5:$G$49,0),1),1))","v":""},null,{"$f":"'Month 6'!H57+'Month 6'!I57-'Month 6'!J57","v":0},"",{"$f":"IF(AND(H57=0,I57=0,J57=0),\"\",IF(J57>0,H57/J57,0))","v":""},null,"0"]
[{"$f":"Planning!A42","v":"I034"},{"$f":"Planning!B42","v":0},{"$f":"Planning!C42","v":0},{"$f":"Planning!D42","v":0},{"$f":"Planning!E42","v":0},{"$f":"IF(Planning!G42<>0,Planning!G42,\"\")","v":""},{"$f":"Planning!H42","v":0},{"$f":"Planning!AA42","v":0},{"$f":"IF(OR(W58=\"1\",AND(W58<>\"1\",G58=Lists!$A$17)),Y58,0)","v":0},null,{"$f":"IF(AND(W58=\"2\",G58<>Lists!$A$17),AA58,Z58)","v":""},"",{"$f":"Planning!AB42","v":{"v":0,"d":"0.00"}},{"$f":"'Month 6'!M58+'Month 6'!N58-'Month 6'!O58","v":{"v":0,"d":"0.00"}},null,"","",{"$f":"SUMIFS($J$25:$J$224,$C$25:$C$224,$C58,$G$25:$G$224,Lists!$A$16)","v":0},0,null,"",null,{"$f":"IF(C58=0,\"\",LEFT(INDEX(Lists!$H$5:$H$49,MATCH(C58,Lists!$G$5:$G$49,0),1),1))","v":""},null,{"$f":"'Month 6'!H58+'Month 6'!I58-'Month 6'!J58","v":0},"","",null,"0"]
[{"$f":"Planning!A43","v":"I035"},{"$f":"Planning!B43","v":0},{"$f":"Planning!C43","v":0},{"$f":"Planning!D43","v":0},{"$f":"Planning!E43","v":0},{"$f":"IF(Planning!G43<>0,Planning!G43,\"\")","v":""},{"$f":"Planning!H43","v":0},{"$f":"Planning!AA43","v":0},{"$f":"IF(OR(W59=\"1\",AND(W59<>\"1\",G59=Lists!$A$17)),Y59,0)","v":0},null,{"$f":"IF(AND(W59=\"2\",G59<>Lists!$A$17),AA59,Z59)","v":""},"",{"$f":"Planning!AB43","v":{"v":0,"d":"0.00"}},{"$f":"'Month 6'!M59+'Month 6'!N59-'Month 6'!O59","v":{"v":0,"d":"0.00"}},null,"","",{"$f":"SUMIFS($J$25:$J$224,$C$25:$C$224,$C59,$G$25:$G$224,Lists!$A$16)","v":0},0,null,"",null,{"$f":"IF(C59=0,\"\",LEFT(INDEX(Lists!$H$5:$H$49,MATCH(C59,Lists!$G$5:$G$49,0),1),1))","v":""},null,{"$f":"'Month 6'!H59+'Month 6'!I59-'Month 6'!J59","v":0},"","",null,"0"]
[{"$f":"Planning!A44","v":"I036"},{"$f":"Planning!B44","v":0},{"$f":"Planning!C44","v":0},{"$f":"Planning!D44","v":0},{"$f":"Planning!E44","v":0},{"$f":"IF(Planning!G44<>0,Planning!G44,\"\")","v":""},{"$f":"Planning!H44","v":0},{"$f":"Planning!AA44","v":0},{"$f":"IF(OR(W60=\"1\",AND(W60<>\"1\",G60=Lists!$A$17)),Y60,0)","v":0},null,{"$f":"IF(AND(W60=\"2\",G60<>Lists!$A$17),AA60,Z60)","v":""},"",{"$f":"Planning!AB44","v":{"v":0,"d":"0.00"}},{"$f":"'Month 6'!M60+'Month 6'!N60-'Month 6'!O60","v":{"v":0,"d":"0.00"}},null,"","",{"$f":"SUMIFS($J$25:$J$224,$C$25:$C$224,$C60,$G$25:$G$224,Lists!$A$16)","v":0},0,null,"",null,{"$f":"IF(C60=0,\"\",LEFT(INDEX(Lists!$H$5:$H$49,MATCH(C60,Lists!$G$5:$G$49,0),1),1))","v":""},null,{"$f":"'Month 6'!H60+'Month 6'!I60-'Month 6'!J60","v":0},"","",null,"0"]
[{"$f":"Planning!A45","v":"I037"},{"$f":"Planning!B45","v":0},{"$f":"Planning!C45","v":0},{"$f":"Planning!D45","v":0},{"$f":"Planning!E45","v":0},{"$f":"IF(Planning!G45<>0,Planning!G45,\"\")","v":""},{"$f":"Planning!H45","v":0},{"$f":"Planning!AA45","v":0},{"$f":"IF(OR(W61=\"1\",AND(W61<>\"1\",G61=Lists!$A$17)),Y61,0)","v":0},null,{"$f":"IF(AND(W61=\"2\",G61<>Lists!$A$17),AA61,Z61)","v":""},"",{"$f":"Planning!AB45","v":{"v":0,"d":"0.00"}},{"$f":"'Month 6'!M61+'Month 6'!N61-'Month 6'!O61","v":{"v":0,"d":"0.00"}},null,"","",{"$f":"SUMIFS($J$25:$J$224,$C$25:$C$224,$C61,$G$25:$G$224,Lists!$A$16)","v":0},0,null,"",null,{"$f":"IF(C61=0,\"\",LEFT(INDEX(Lists!$H$5:$H$49,MATCH(C61,Lists!$G$5:$G$49,0),1),1))","v":""},null,{"$f":"'Month 6'!H61+'Month 6'!I61-'Month 6'!J61","v":0},"","",null,"0"]
[{"$f":"Planning!A46","v":"I038"},{"$f":"Planning!B46","v":0},{"$f":"Planning!C46","v":0},{"$f":"Planning!D46","v":0},{"$f":"Planning!E46","v":0},{"$f":"IF(Planning!G46<>0,Planning!G46,\"\")","v":""},{"$f":"Planning!H46","v":0},{"$f":"Planning!AA46","v":0},{"$f":"IF(OR(W62=\"1\",AND(W62<>\"1\",G62=Lists!$A$17)),Y62,0)","v":0},null,{"$f":"IF(AND(W62=\"2\",G62<>Lists!$A$17),AA62,Z62)","v":""},"",{"$f":"Planning!AB46","v":{"v":0,"d":"0.00"}},{"$f":"'Month 6'!M62+'Month 6'!N62-'Month 6'!O62","v":{"v":0,"d":"0.00"}},null,"","",{"$f":"SUMIFS($J$25:$J$224,$C$25:$C$224,$C62,$G$25:$G$224,Lists!$A$16)","v":0},0,null,"",null,{"$f":"IF(C62=0,\"\",LEFT(INDEX(Lists!$H$5:$H$49,MATCH(C62,Lists!$G$5:$G$49,0),1),1))","v":""},null,{"$f":"'Month 6'!H62+'Month 6'!I62-'Month 6'!J62","v":0},"","",null,"0"]
[{"$f":"Planning!A47","v":"I039"},{"$f":"Planning!B47","v":0},{"$f":"Planning!C47","v":0},{"$f":"Planning!D47","v":0},{"$f":"Planning!E47","v":0},{"$f":"IF(Planning!G47<>0,Planning!G47,\"\")","v":""},{"$f":"Planning!H47","v":0},{"$f":"Planning!AA47","v":0},{"$f":"IF(OR(W63=\"1\",AND(W63<>\"1\",G63=Lists!$A$17)),Y63,0)","v":0},null,{"$f":"IF(AND(W63=\"2\",G63<>Lists!$A$17),AA63,Z63)","v":""},"",{"$f":"Planning!AB47","v":{"v":0,"d":"0.00"}},{"$f":"'Month 6'!M63+'Month 6'!N63-'Month 6'!O63","v":{"v":0,"d":"0.00"}},null,"","",{"$f":"SUMIFS($J$25:$J$224,$C$25:$C$224,$C63,$G$25:$G$224,Lists!$A$16)","v":0},0,null,"",null,{"$f":"IF(C63=0,\"\",LEFT(INDEX(Lists!$H$5:$H$49,MATCH(C63,Lists!$G$5:$G$49,0),1),1))","v":""},null,{"$f":"'Month 6'!H63+'Month 6'!I63-'Month 6'!J63","v":0},"","",null,"0"]
[{"$f":"Planning!A48","v":"I040"},{"$f":"Planning!B48","v":0},{"$f":"Planning!C48","v":0},{"$f":"Planning!D48","v":0},{"$f":"Planning!E48","v":0},{"$f":"IF(Planning!G48<>0,Planning!G48,\"\")","v":""},{"$f":"Planning!H48","v":0},{"$f":"Planning!AA48","v":0},{"$f":"IF(OR(W64=\"1\",AND(W64<>\"1\",G64=Lists!$A$17)),Y64,0)","v":0},null,{"$f":"IF(AND(W64=\"2\",G64<>Lists!$A$17),AA64,Z64)","v":""},"",{"$f":"Planning!AB48","v":{"v":0,"d":"0.00"}},{"$f":"'Month 6'!M64+'Month 6'!N64-'Month 6'!O64","v":{"v":0,"d":"0.00"}},null,"","",{"$f":"SUMIFS($J$25:$J$224,$C$25:$C$224,$C64,$G$25:$G$224,Lists!$A$16)","v":0},0,null,"",null,{"$f":"IF(C64=0,\"\",LEFT(INDEX(Lists!$H$5:$H$49,MATCH(C64,Lists!$G$5:$G$49,0),1),1))","v":""},null,{"$f":"'Month 6'!H64+'Month 6'!I64-'Month 6'!J64","v":0},"","",null,"0"]
[{"$f":"Planning!A49","v":"I041"},{"$f":"Planning!B49","v":0},{"$f":"Planning!C49","v":0},{"$f":"Planning!D49","v":0},{"$f":"Planning!E49","v":0},{"$f":"IF(Planning!G49<>0,Planning!G49,\"\")","v":""},{"$f":"Planning!H49","v":0},{"$f":"Planning!AA49","v":0},{"$f":"IF(OR(W65=\"1\",AND(W65<>\"1\",G65=Lists!$A$17)),Y65,0)","v":0},null,{"$f":"IF(AND(W65=\"2\",G65<>Lists!$A$17),AA65,Z65)","v":""},"",{"$f":"Planning!AB49","v":{"v":0,"d":"0.00"}},{"$f":"'Month 6'!M65+'Month 6'!N65-'Month 6'!O65","v":{"v":0,"d":"0.00"}},null,"","",{"$f":"SUMIFS($J$25:$J$224,$C$25:$C$224,$C65,$G$25:$G$224,Lists!$A$16)","v":0},0,null,"",null,{"$f":"IF(C65=0,\"\",LEFT(INDEX(Lists!$H$5:$H$49,MATCH(C65,Lists!$G$5:$G$49,0),1),1))","v":""},null,{"$f":"'Month 6'!H65+'Month 6'!I65-'Month 6'!J65","v":0},"","",null,"0"]
[{"$f":"Planning!A50","v":"I042"},{"$f":"Planning!B50","v":0},{"$f":"Planning!C50","v":0},{"$f":"Planning!D50","v":0},{"$f":"Planning!E50","v":0},{"$f":"IF(Planning!G50<>0,Planning!G50,\"\")","v":""},{"$f":"Planning!H50","v":0},{"$f":"Planning!AA50","v":0},{"$f":"IF(OR(W66=\"1\",AND(W66<>\"1\",G66=Lists!$A$17)),Y66,0)","v":0},null,{"$f":"IF(AND(W66=\"2\",G66<>Lists!$A$17),AA66,Z66)","v":""},"",{"$f":"Planning!AB50","v":{"v":0,"d":"0.00"}},{"$f":"'Month 6'!M66+'Month 6'!N66-'Month 6'!O66","v":{"v":0,"d":"0.00"}},null,"","",{"$f":"SUMIFS($J$25:$J$224,$C$25:$C$224,$C66,$G$25:$G$224,Lists!$A$16)","v":0},0,null,"",null,{"$f":"IF(C66=0,\"\",LEFT(INDEX(Lists!$H$5:$H$49,MATCH(C66,Lists!$G$5:$G$49,0),1),1))","v":""},null,{"$f":"'Month 6'!H66+'Month 6'!I66-'Month 6'!J66","v":0},"","",null,"0"]
[{"$f":"Planning!A51","v":"I043"},{"$f":"Planning!B51","v":0},{"$f":"Planning!C51","v":0},{"$f":"Planning!D51","v":0},{"$f":"Planning!E51","v":0},{"$f":"IF(Planning!G51<>0,Planning!G51,\"\")","v":""},{"$f":"Planning!H51","v":0},{"$f":"Planning!AA51","v":0},{"$f":"IF(OR(W67=\"1\",AND(W67<>\"1\",G67=Lists!$A$17)),Y67,0)","v":0},null,{"$f":"IF(AND(W67=\"2\",G67<>Lists!$A$17),AA67,Z67)","v":""},"",{"$f":"Planning!AB51","v":{"v":0,"d":"0.00"}},{"$f":"'Month 6'!M67+'Month 6'!N67-'Month 6'!O67","v":{"v":0,"d":"0.00"}},null,"","",{"$f":"SUMIFS($J$25:$J$224,$C$25:$C$224,$C67,$G$25:$G$224,Lists!$A$16)","v":0},0,null,"",null,{"$f":"IF(C67=0,\"\",LEFT(INDEX(Lists!$H$5:$H$49,MATCH(C67,Lists!$G$5:$G$49,0),1),1))","v":""},null,{"$f":"'Month 6'!H67+'Month 6'!I67-'Month 6'!J67","v":0},"","",null,"0"]
[{"$f":"Planning!A52","v":"I044"},{"$f":"Planning!B52","v":0},{"$f":"Planning!C52","v":0},{"$f":"Planning!D52","v":0},{"$f":"Planning!E52","v":0},{"$f":"IF(Planning!G52<>0,Planning!G52,\"\")","v":""},{"$f":"Planning!H52","v":0},{"$f":"Planning!AA52","v":0},{"$f":"IF(OR(W68=\"1\",AND(W68<>\"1\",G68=Lists!$A$17)),Y68,0)","v":0},null,{"$f":"IF(AND(W68=\"2\",G68<>Lists!$A$17),AA68,Z68)","v":""},"",{"$f":"Planning!AB52","v":{"v":0,"d":"0.00"}},{"$f":"'Month 6'!M68+'Month 6'!N68-'Month 6'!O68","v":{"v":0,"d":"0.00"}},null,"","",{"$f":"SUMIFS($J$25:$J$224,$C$25:$C$224,$C68,$G$25:$G$224,Lists!$A$16)","v":0},0,null,"",null,{"$f":"IF(C68=0,\"\",LEFT(INDEX(Lists!$H$5:$H$49,MATCH(C68,Lists!$G$5:$G$49,0),1),1))","v":""},null,{"$f":"'Month 6'!H68+'Month 6'!I68-'Month 6'!J68","v":0},"","",null,"0"]
[{"$f":"Planning!A53","v":"I045"},{"$f":"Planning!B53","v":0},{"$f":"Planning!C53","v":0},{"$f":"Planning!D53","v":0},{"$f":"Planning!E53","v":0},{"$f":"IF(Planning!G53<>0,Planning!G53,\"\")","v":""},{"$f":"Planning!H53","v":0},{"$f":"Planning!AA53","v":0},{"$f":"IF(OR(W69=\"1\",AND(W69<>\"1\",G69=Lists!$A$17)),Y69,0)","v":0},null,{"$f":"IF(AND(W69=\"2\",G69<>Lists!$A$17),AA69,Z69)","v":""},"",{"$f":"Planning!AB53","v":{"v":0,"d":"0.00"}},{"$f":"'Month 6'!M69+'Month 6'!N69-'Month 6'!O69","v":{"v":0,"d":"0.00"}},null,"","",{"$f":"SUMIFS($J$25:$J$224,$C$25:$C$224,$C69,$G$25:$G$224,Lists!$A$16)","v":0},0,null,"",null,{"$f":"IF(C69=0,\"\",LEFT(INDEX(Lists!$H$5:$H$49,MATCH(C69,Lists!$G$5:$G$49,0),1),1))","v":""},null,{"$f":"'Month 6'!H69+'Month 6'!I69-'Month 6'!J69","v":0},"","",null,"0"]
[{"$f":"Planning!A54","v":"I046"},{"$f":"Planning!B54","v":0},{"$f":"Planning!C54","v":0},{"$f":"Planning!D54","v":0},{"$f":"Planning!E54","v":0},{"$f":"IF(Planning!G54<>0,Planning!G54,\"\")","v":""},{"$f":"Planning!H54","v":0},{"$f":"Planning!AA54","v":0},{"$f":"IF(OR(W70=\"1\",AND(W70<>\"1\",G70=Lists!$A$17)),Y70,0)","v":0},null,{"$f":"IF(AND(W70=\"2\",G70<>Lists!$A$17),AA70,Z70)","v":""},"",{"$f":"Planning!AB54","v":{"v":0,"d":"0.00"}},{"$f":"'Month 6'!M70+'Month 6'!N70-'Month 6'!O70","v":{"v":0,"d":"0.00"}},null,"","",{"$f":"SUMIFS($J$25:$J$224,$C$25:$C$224,$C70,$G$25:$G$224,Lists!$A$16)","v":0},0,null,"",null,{"$f":"IF(C70=0,\"\",LEFT(INDEX(Lists!$H$5:$H$49,MATCH(C70,Lists!$G$5:$G$49,0),1),1))","v":""},null,{"$f":"'Month 6'!H70+'Month 6'!I70-'Month 6'!J70","v":0},"","",null,"0"]
[{"$f":"Planning!A55","v":"I047"},{"$f":"Planning!B55","v":0},{"$f":"Planning!C55","v":0},{"$f":"Planning!D55","v":0},{"$f":"Planning!E55","v":0},{"$f":"IF(Planning!G55<>0,Planning!G55,\"\")","v":""},{"$f":"Planning!H55","v":0},{"$f":"Planning!AA55","v":0},{"$f":"IF(OR(W71=\"1\",AND(W71<>\"1\",G71=Lists!$A$17)),Y71,0)","v":0},null,{"$f":"IF(AND(W71=\"2\",G71<>Lists!$A$17),AA71,Z71)","v":""},"",{"$f":"Planning!AB55","v":{"v":0,"d":"0.00"}},{"$f":"'Month 6'!M71+'Month 6'!N71-'Month 6'!O71","v":{"v":0,"d":"0.00"}},null,"","",{"$f":"SUMIFS($J$25:$J$224,$C$25:$C$224,$C71,$G$25:$G$224,Lists!$A$16)","v":0},0,null,"",null,{"$f":"IF(C71=0,\"\",LEFT(INDEX(Lists!$H$5:$H$49,MATCH(C71,Lists!$G$5:$G$49,0),1),1))","v":""},null,{"$f":"'Month 6'!H71+'Month 6'!I71-'Month 6'!J71","v":0},"","",null,"0"]
[{"$f":"Planning!A56","v":"I048"},{"$f":"Planning!B56","v":0},{"$f":"Planning!C56","v":0},{"$f":"Planning!D56","v":0},{"$f":"Planning!E56","v":0},{"$f":"IF(Planning!G56<>0,Planning!G56,\"\")","v":""},{"$f":"Planning!H56","v":0},{"$f":"Planning!AA56","v":0},{"$f":"IF(OR(W72=\"1\",AND(W72<>\"1\",G72=Lists!$A$17)),Y72,0)","v":0},null,{"$f":"IF(AND(W72=\"2\",G72<>Lists!$A$17),AA72,Z72)","v":""},"",{"$f":"Planning!AB56","v":{"v":0,"d":"0.00"}},{"$f":"'Month 6'!M72+'Month 6'!N72-'Month 6'!O72","v":{"v":0,"d":"0.00"}},null,"","",{"$f":"SUMIFS($J$25:$J$224,$C$25:$C$224,$C72,$G$25:$G$224,Lists!$A$16)","v":0},0,null,"",null,{"$f":"IF(C72=0,\"\",LEFT(INDEX(Lists!$H$5:$H$49,MATCH(C72,Lists!$G$5:$G$49,0),1),1))","v":""},null,{"$f":"'Month 6'!H72+'Month 6'!I72-'Month 6'!J72","v":0},"","",null,"0"]
[{"$f":"Planning!A57","v":"I049"},{"$f":"Planning!B57","v":0},{"$f":"Planning!C57","v":0},{"$f":"Planning!D57","v":0},{"$f":"Planning!E57","v":0},{"$f":"IF(Planning!G57<>0,Planning!G57,\"\")","v":""},{"$f":"Planning!H57","v":0},{"$f":"Planning!AA57","v":0},{"$f":"IF(OR(W73=\"1\",AND(W73<>\"1\",G73=Lists!$A$17)),Y73,0)","v":0},null,{"$f":"IF(AND(W73=\"2\",G73<>Lists!$A$17),AA73,Z73)","v":""},"",{"$f":"Planning!AB57","v":{"v":0,"d":"0.00"}},{"$f":"'Month 6'!M73+'Month 6'!N73-'Month 6'!O73","v":{"v":0,"d":"0.00"}},null,"","",{"$f":"SUMIFS($J$25:$J$224,$C$25:$C$224,$C73,$G$25:$G$224,Lists!$A$16)","v":0},0,null,"",null,{"$f":"IF(C73=0,\"\",LEFT(INDEX(Lists!$H$5:$H$49,MATCH(C73,Lists!$G$5:$G$49,0),1),1))","v":""},null,{"$f":"'Month 6'!H73+'Month 6'!I73-'Month 6'!J73","v":0},"","",null,"0"]
[{"$f":"Planning!A58","v":"I050"},{"$f":"Planning!B58","v":0},{"$f":"Planning!C58","v":0},{"$f":"Planning!D58","v":0},{"$f":"Planning!E58","v":0},{"$f":"IF(Planning!G58<>0,Planning!G58,\"\")","v":""},{"$f":"Planning!H58","v":0},{"$f":"Planning!AA58","v":0},{"$f":"IF(OR(W74=\"1\",AND(W74<>\"1\",G74=Lists!$A$17)),Y74,0)","v":0},null,{"$f":"IF(AND(W74=\"2\",G74<>Lists!$A$17),AA74,Z74)","v":""},"",{"$f":"Planning!AB58","v":{"v":0,"d":"0.00"}},{"$f":"'Month 6'!M74+'Month 6'!N74-'Month 6'!O74","v":{"v":0,"d":"0.00"}},null,"","",{"$f":"SUMIFS($J$25:$J$224,$C$25:$C$224,$C74,$G$25:$G$224,Lists!$A$16)","v":0},0,null,"",null,{"$f":"IF(C74=0,\"\",LEFT(INDEX(Lists!$H$5:$H$49,MATCH(C74,Lists!$G$5:$G$49,0),1),1))","v":""},null,{"$f":"'Month 6'!H74+'Month 6'!I74-'Month 6'!J74","v":0},"","",null,"0"]
[{"$f":"Planning!A59","v":"I051"},{"$f":"Planning!B59","v":0},{"$f":"Planning!C59","v":0},{"$f":"Planning!D59","v":0},{"$f":"Planning!E59","v":0},{"$f":"IF(Planning!G59<>0,Planning!G59,\"\")","v":""},{"$f":"Planning!H59","v":0},{"$f":"Planning!AA59","v":0},{"$f":"IF(OR(W75=\"1\",AND(W75<>\"1\",G75=Lists!$A$17)),Y75,0)","v":0},null,{"$f":"IF(AND(W75=\"2\",G75<>Lists!$A$17),AA75,Z75)","v":""},"",{"$f":"Planning!AB59","v":{"v":0,"d":"0.00"}},{"$f":"'Month 6'!M75+'Month 6'!N75-'Month 6'!O75","v":{"v":0,"d":"0.00"}},null,"","",{"$f":"SUMIFS($J$25:$J$224,$C$25:$C$224,$C75,$G$25:$G$224,Lists!$A$16)","v":0},0,null,"",null,{"$f":"IF(C75=0,\"\",LEFT(INDEX(Lists!$H$5:$H$49,MATCH(C75,Lists!$G$5:$G$49,0),1),1))","v":""},null,{"$f":"'Month 6'!H75+'Month 6'!I75-'Month 6'!J75","v":0},"","",null,"0"]
[{"$f":"Planning!A60","v":"I052"},{"$f":"Planning!B60","v":0},{"$f":"Planning!C60","v":0},{"$f":"Planning!D60","v":0},{"$f":"Planning!E60","v":0},{"$f":"IF(Planning!G60<>0,Planning!G60,\"\")","v":""},{"$f":"Planning!H60","v":0},{"$f":"Planning!AA60","v":0},{"$f":"IF(OR(W76=\"1\",AND(W76<>\"1\",G76=Lists!$A$17)),Y76,0)","v":0},null,{"$f":"IF(AND(W76=\"2\",G76<>Lists!$A$17),AA76,Z76)","v":""},"",{"$f":"Planning!AB60","v":{"v":0,"d":"0.00"}},{"$f":"'Month 6'!M76+'Month 6'!N76-'Month 6'!O76","v":{"v":0,"d":"0.00"}},null,"","",{"$f":"SUMIFS($J$25:$J$224,$C$25:$C$224,$C76,$G$25:$G$224,Lists!$A$16)","v":0},0,null,"",null,{"$f":"IF(C76=0,\"\",LEFT(INDEX(Lists!$H$5:$H$49,MATCH(C76,Lists!$G$5:$G$49,0),1),1))","v":""},null,{"$f":"'Month 6'!H76+'Month 6'!I76-'Month 6'!J76","v":0},"","",null,"0"]
[{"$f":"Planning!A61","v":"I053"},{"$f":"Planning!B61","v":0},{"$f":"Planning!C61","v":0},{"$f":"Planning!D61","v":0},{"$f":"Planning!E61","v":0},{"$f":"IF(Planning!G61<>0,Planning!G61,\"\")","v":""},{"$f":"Planning!H61","v":0},{"$f":"Planning!AA61","v":0},{"$f":"IF(OR(W77=\"1\",AND(W77<>\"1\",G77=Lists!$A$17)),Y77,0)","v":0},null,{"$f":"IF(AND(W77=\"2\",G77<>Lists!$A$17),AA77,Z77)","v":""},"",{"$f":"Planning!AB61","v":{"v":0,"d":"0.00"}},{"$f":"'Month 6'!M77+'Month 6'!N77-'Month 6'!O77","v":{"v":0,"d":"0.00"}},null,"","",{"$f":"SUMIFS($J$25:$J$224,$C$25:$C$224,$C77,$G$25:$G$224,Lists!$A$16)","v":0},0,null,"",null,{"$f":"IF(C77=0,\"\",LEFT(INDEX(Lists!$H$5:$H$49,MATCH(C77,Lists!$G$5:$G$49,0),1),1))","v":""},null,{"$f":"'Month 6'!H77+'Month 6'!I77-'Month 6'!J77","v":0},"","",null,"0"]
[{"$f":"Planning!A62","v":"I054"},{"$f":"Planning!B62","v":0},{"$f":"Planning!C62","v":0},{"$f":"Planning!D62","v":0},{"$f":"Planning!E62","v":0},{"$f":"IF(Planning!G62<>0,Planning!G62,\"\")","v":""},{"$f":"Planning!H62","v":0},{"$f":"Planning!AA62","v":0},{"$f":"IF(OR(W78=\"1\",AND(W78<>\"1\",G78=Lists!$A$17)),Y78,0)","v":0},null,{"$f":"IF(AND(W78=\"2\",G78<>Lists!$A$17),AA78,Z78)","v":""},"",{"$f":"Planning!AB62","v":{"v":0,"d":"0.00"}},{"$f":"'Month 6'!M78+'Month 6'!N78-'Month 6'!O78","v":{"v":0,"d":"0.00"}},null,"","",{"$f":"SUMIFS($J$25:$J$224,$C$25:$C$224,$C78,$G$25:$G$224,Lists!$A$16)","v":0},0,null,"",null,{"$f":"IF(C78=0,\"\",LEFT(INDEX(Lists!$H$5:$H$49,MATCH(C78,Lists!$G$5:$G$49,0),1),1))","v":""},null,{"$f":"'Month 6'!H78+'Month 6'!I78-'Month 6'!J78","v":0},"","",null,"0"]
[{"$f":"Planning!A63","v":"I055"},{"$f":"Planning!B63","v":0},{"$f":"Planning!C63","v":0},{"$f":"Planning!D63","v":0},{"$f":"Planning!E63","v":0},{"$f":"IF(Planning!G63<>0,Planning!G63,\"\")","v":""},{"$f":"Planning!H63","v":0},{"$f":"Planning!AA63","v":0},{"$f":"IF(OR(W79=\"1\",AND(W79<>\"1\",G79=Lists!$A$17)),Y79,0)","v":0},null,{"$f":"IF(AND(W79=\"2\",G79<>Lists!$A$17),AA79,Z79)","v":""},"",{"$f":"Planning!AB63","v":{"v":0,"d":"0.00"}},{"$f":"'Month 6'!M79+'Month 6'!N79-'Month 6'!O79","v":{"v":0,"d":"0.00"}},null,"","",{"$f":"SUMIFS($J$25:$J$224,$C$25:$C$224,$C79,$G$25:$G$224,Lists!$A$16)","v":0},0,null,"",null,{"$f":"IF(C79=0,\"\",LEFT(INDEX(Lists!$H$5:$H$49,MATCH(C79,Lists!$G$5:$G$49,0),1),1))","v":""},null,{"$f":"'Month 6'!H79+'Month 6'!I79-'Month 6'!J79","v":0},"","",null,"0"]
[{"$f":"Planning!A64","v":"I056"},{"$f":"Planning!B64","v":0},{"$f":"Planning!C64","v":0},{"$f":"Planning!D64","v":0},{"$f":"Planning!E64","v":0},{"$f":"IF(Planning!G64<>0,Planning!G64,\"\")","v":""},{"$f":"Planning!H64","v":0},{"$f":"Planning!AA64","v":0},{"$f":"IF(OR(W80=\"1\",AND(W80<>\"1\",G80=Lists!$A$17)),Y80,0)","v":0},null,{"$f":"IF(AND(W80=\"2\",G80<>Lists!$A$17),AA80,Z80)","v":""},"",{"$f":"Planning!AB64","v":{"v":0,"d":"0.00"}},{"$f":"'Month 6'!M80+'Month 6'!N80-'Month 6'!O80","v":{"v":0,"d":"0.00"}},null,"","",{"$f":"SUMIFS($J$25:$J$224,$C$25:$C$224,$C80,$G$25:$G$224,Lists!$A$16)","v":0},0,null,"",null,{"$f":"IF(C80=0,\"\",LEFT(INDEX(Lists!$H$5:$H$49,MATCH(C80,Lists!$G$5:$G$49,0),1),1))","v":""},null,{"$f":"'Month 6'!H80+'Month 6'!I80-'Month 6'!J80","v":0},"","",null,"0"]
[{"$f":"Planning!A65","v":"I057"},{"$f":"Planning!B65","v":0},{"$f":"Planning!C65","v":0},{"$f":"Planning!D65","v":0},{"$f":"Planning!E65","v":0},{"$f":"IF(Planning!G65<>0,Planning!G65,\"\")","v":""},{"$f":"Planning!H65","v":0},{"$f":"Planning!AA65","v":0},{"$f":"IF(OR(W81=\"1\",AND(W81<>\"1\",G81=Lists!$A$17)),Y81,0)","v":0},null,{"$f":"IF(AND(W81=\"2\",G81<>Lists!$A$17),AA81,Z81)","v":""},"",{"$f":"Planning!AB65","v":{"v":0,"d":"0.00"}},{"$f":"'Month 6'!M81+'Month 6'!N81-'Month 6'!O81","v":{"v":0,"d":"0.00"}},null,"","",{"$f":"SUMIFS($J$25:$J$224,$C$25:$C$224,$C81,$G$25:$G$224,Lists!$A$16)","v":0},0,null,"",null,{"$f":"IF(C81=0,\"\",LEFT(INDEX(Lists!$H$5:$H$49,MATCH(C81,Lists!$G$5:$G$49,0),1),1))","v":""},null,{"$f":"'Month 6'!H81+'Month 6'!I81-'Month 6'!J81","v":0},"","",null,"0"]
[{"$f":"Planning!A66","v":"I058"},{"$f":"Planning!B66","v":0},{"$f":"Planning!C66","v":0},{"$f":"Planning!D66","v":0},{"$f":"Planning!E66","v":0},{"$f":"IF(Planning!G66<>0,Planning!G66,\"\")","v":""},{"$f":"Planning!H66","v":0},{"$f":"Planning!AA66","v":0},{"$f":"IF(OR(W82=\"1\",AND(W82<>\"1\",G82=Lists!$A$17)),Y82,0)","v":0},null,{"$f":"IF(AND(W82=\"2\",G82<>Lists!$A$17),AA82,Z82)","v":""},"",{"$f":"Planning!AB66","v":{"v":0,"d":"0.00"}},{"$f":"'Month 6'!M82+'Month 6'!N82-'Month 6'!O82","v":{"v":0,"d":"0.00"}},null,"","",{"$f":"SUMIFS($J$25:$J$224,$C$25:$C$224,$C82,$G$25:$G$224,Lists!$A$16)","v":0},0,null,"",null,{"$f":"IF(C82=0,\"\",LEFT(INDEX(Lists!$H$5:$H$49,MATCH(C82,Lists!$G$5:$G$49,0),1),1))","v":""},null,{"$f":"'Month 6'!H82+'Month 6'!I82-'Month 6'!J82","v":0},"","",null,"0"]
[{"$f":"Planning!A67","v":"I059"},{"$f":"Planning!B67","v":0},{"$f":"Planning!C67","v":0},{"$f":"Planning!D67","v":0},{"$f":"Planning!E67","v":0},{"$f":"IF(Planning!G67<>0,Planning!G67,\"\")","v":""},{"$f":"Planning!H67","v":0},{"$f":"Planning!AA67","v":0},{"$f":"IF(OR(W83=\"1\",AND(W83<>\"1\",G83=Lists!$A$17)),Y83,0)","v":0},null,{"$f":"IF(AND(W83=\"2\",G83<>Lists!$A$17),AA83,Z83)","v":""},"",{"$f":"Planning!AB67","v":{"v":0,"d":"0.00"}},{"$f":"'Month 6'!M83+'Month 6'!N83-'Month 6'!O83","v":{"v":0,"d":"0.00"}},null,"","",{"$f":"SUMIFS($J$25:$J$224,$C$25:$C$224,$C83,$G$25:$G$224,Lists!$A$16)","v":0},0,null,"",null,{"$f":"IF(C83=0,\"\",LEFT(INDEX(Lists!$H$5:$H$49,MATCH(C83,Lists!$G$5:$G$49,0),1),1))","v":""},null,{"$f":"'Month 6'!H83+'Month 6'!I83-'Month 6'!J83","v":0},"","",null,"0"]
[{"$f":"Planning!A68","v":"I060"},{"$f":"Planning!B68","v":0},{"$f":"Planning!C68","v":0},{"$f":"Planning!D68","v":0},{"$f":"Planning!E68","v":0},{"$f":"IF(Planning!G68<>0,Planning!G68,\"\")","v":""},{"$f":"Planning!H68","v":0},{"$f":"Planning!AA68","v":0},{"$f":"IF(OR(W84=\"1\",AND(W84<>\"1\",G84=Lists!$A$17)),Y84,0)","v":0},null,{"$f":"IF(AND(W84=\"2\",G84<>Lists!$A$17),AA84,Z84)","v":""},"",{"$f":"Planning!AB68","v":{"v":0,"d":"0.00"}},{"$f":"'Month 6'!M84+'Month 6'!N84-'Month 6'!O84","v":{"v":0,"d":"0.00"}},null,"","",{"$f":"SUMIFS($J$25:$J$224,$C$25:$C$224,$C84,$G$25:$G$224,Lists!$A$16)","v":0},0,null,"",null,{"$f":"IF(C84=0,\"\",LEFT(INDEX(Lists!$H$5:$H$49,MATCH(C84,Lists!$G$5:$G$49,0),1),1))","v":""},null,{"$f":"'Month 6'!H84+'Month 6'!I84-'Month 6'!J84","v":0},"","",null,"0"]
[{"$f":"Planning!A69","v":"I061"},{"$f":"Planning!B69","v":0},{"$f":"Planning!C69","v":0},{"$f":"Planning!D69","v":0},{"$f":"Planning!E69","v":0},{"$f":"IF(Planning!G69<>0,Planning!G69,\"\")","v":""},{"$f":"Planning!H69","v":0},{"$f":"Planning!AA69","v":0},{"$f":"IF(OR(W85=\"1\",AND(W85<>\"1\",G85=Lists!$A$17)),Y85,0)","v":0},null,{"$f":"IF(AND(W85=\"2\",G85<>Lists!$A$17),AA85,Z85)","v":""},"",{"$f":"Planning!AB69","v":{"v":0,"d":"0.00"}},{"$f":"'Month 6'!M85+'Month 6'!N85-'Month 6'!O85","v":{"v":0,"d":"0.00"}},null,"","",{"$f":"SUMIFS($J$25:$J$224,$C$25:$C$224,$C85,$G$25:$G$224,Lists!$A$16)","v":0},0,null,"",null,{"$f":"IF(C85=0,\"\",LEFT(INDEX(Lists!$H$5:$H$49,MATCH(C85,Lists!$G$5:$G$49,0),1),1))","v":""},null,{"$f":"'Month 6'!H85+'Month 6'!I85-'Month 6'!J85","v":0},"","",null,"0"]
[{"$f":"Planning!A70","v":"I062"},{"$f":"Planning!B70","v":0},{"$f":"Planning!C70","v":0},{"$f":"Planning!D70","v":0},{"$f":"Planning!E70","v":0},{"$f":"IF(Planning!G70<>0,Planning!G70,\"\")","v":""},{"$f":"Planning!H70","v":0},{"$f":"Planning!AA70","v":0},{"$f":"IF(OR(W86=\"1\",AND(W86<>\"1\",G86=Lists!$A$17)),Y86,0)","v":0},null,{"$f":"IF(AND(W86=\"2\",G86<>Lists!$A$17),AA86,Z86)","v":""},"",{"$f":"Planning!AB70","v":{"v":0,"d":"0.00"}},{"$f":"'Month 6'!M86+'Month 6'!N86-'Month 6'!O86","v":{"v":0,"d":"0.00"}},null,"","",{"$f":"SUMIFS($J$25:$J$224,$C$25:$C$224,$C86,$G$25:$G$224,Lists!$A$16)","v":0},0,null,"",null,{"$f":"IF(C86=0,\"\",LEFT(INDEX(Lists!$H$5:$H$49,MATCH(C86,Lists!$G$5:$G$49,0),1),1))","v":""},null,{"$f":"'Month 6'!H86+'Month 6'!I86-'Month 6'!J86","v":0},"","",null,"0"]
[{"$f":"Planning!A71","v":"I063"},{"$f":"Planning!B71","v":0},{"$f":"Planning!C71","v":0},{"$f":"Planning!D71","v":0},{"$f":"Planning!E71","v":0},{"$f":"IF(Planning!G71<>0,Planning!G71,\"\")","v":""},{"$f":"Planning!H71","v":0},{"$f":"Planning!AA71","v":0},{"$f":"IF(OR(W87=\"1\",AND(W87<>\"1\",G87=Lists!$A$17)),Y87,0)","v":0},null,{"$f":"IF(AND(W87=\"2\",G87<>Lists!$A$17),AA87,Z87)","v":""},"",{"$f":"Planning!AB71","v":{"v":0,"d":"0.00"}},{"$f":"'Month 6'!M87+'Month 6'!N87-'Month 6'!O87","v":{"v":0,"d":"0.00"}},null,"","",{"$f":"SUMIFS($J$25:$J$224,$C$25:$C$224,$C87,$G$25:$G$224,Lists!$A$16)","v":0},0,null,"",null,{"$f":"IF(C87=0,\"\",LEFT(INDEX(Lists!$H$5:$H$49,MATCH(C87,Lists!$G$5:$G$49,0),1),1))","v":""},null,{"$f":"'Month 6'!H87+'Month 6'!I87-'Month 6'!J87","v":0},"","",null,"0"]
[{"$f":"Planning!A72","v":"I064"},{"$f":"Planning!B72","v":0},{"$f":"Planning!C72","v":0},{"$f":"Planning!D72","v":0},{"$f":"Planning!E72","v":0},{"$f":"IF(Planning!G72<>0,Planning!G72,\"\")","v":""},{"$f":"Planning!H72","v":0},{"$f":"Planning!AA72","v":0},{"$f":"IF(OR(W88=\"1\",AND(W88<>\"1\",G88=Lists!$A$17)),Y88,0)","v":0},null,{"$f":"IF(AND(W88=\"2\",G88<>Lists!$A$17),AA88,Z88)","v":""},"",{"$f":"Planning!AB72","v":{"v":0,"d":"0.00"}},{"$f":"'Month 6'!M88+'Month 6'!N88-'Month 6'!O88","v":{"v":0,"d":"0.00"}},null,"","",{"$f":"SUMIFS($J$25:$J$224,$C$25:$C$224,$C88,$G$25:$G$224,Lists!$A$16)","v":0},0,null,"",null,{"$f":"IF(C88=0,\"\",LEFT(INDEX(Lists!$H$5:$H$49,MATCH(C88,Lists!$G$5:$G$49,0),1),1))","v":""},null,{"$f":"'Month 6'!H88+'Month 6'!I88-'Month 6'!J88","v":0},"","",null,"0"]
[{"$f":"Planning!A73","v":"I065"},{"$f":"Planning!B73","v":0},{"$f":"Planning!C73","v":0},{"$f":"Planning!D73","v":0},{"$f":"Planning!E73","v":0},{"$f":"IF(Planning!G73<>0,Planning!G73,\"\")","v":""},{"$f":"Planning!H73","v":0},{"$f":"Planning!AA73","v":0},{"$f":"IF(OR(W89=\"1\",AND(W89<>\"1\",G89=Lists!$A$17)),Y89,0)","v":0},null,{"$f":"IF(AND(W89=\"2\",G89<>Lists!$A$17),AA89,Z89)","v":""},{"$f":"IF($U89=ExcluirDelPLogro,\"\",IF(AND(H89=0,I89=0,J89=0),\"\",K89))","v":""},{"$f":"Planning!AB73","v":{"v":0,"d":"0.00"}},{"$f":"'Month 6'!M89+'Month 6'!N89-'Month 6'!O89","v":{"v":0,"d":"0.00"}},null,"",{"$f":"IF($U89=ExcluirDelPLogro,\"\",IF(AND(M89=0,N89=0,O89=0),\"\",P89))","v":""},{"$f":"SUMIFS($J$25:$J$224,$C$25:$C$224,$C89,$G$25:$G$224,Lists!$A$16)","v":0},0,null,"",null,{"$f":"IF(C89=0,\"\",LEFT(INDEX(Lists!$H$5:$H$49,MATCH(C89,Lists!$G$5:$G$49,0),1),1))","v":""},null,{"$f":"'Month 6'!H89+'Month 6'!I89-'Month 6'!J89","v":0},"",{"$f":"IF(AND(H89=0,I89=0,J89=0),\"\",IF(J89>0,H89/J89,0))","v":""},null,"0"]
[{"$f":"Planning!A74","v":"I066"},{"$f":"Planning!B74","v":0},{"$f":"Planning!C74","v":0},{"$f":"Planning!D74","v":0},{"$f":"Planning!E74","v":0},{"$f":"IF(Planning!G74<>0,Planning!G74,\"\")","v":""},{"$f":"Planning!H74","v":0},{"$f":"Planning!AA74","v":0},{"$f":"IF(OR(W90=\"1\",AND(W90<>\"1\",G90=Lists!$A$17)),Y90,0)","v":0},null,{"$f":"IF(AND(W90=\"2\",G90<>Lists!$A$17),AA90,Z90)","v":""},"",{"$f":"Planning!AB74","v":{"v":0,"d":"0.00"}},{"$f":"'Month 6'!M90+'Month 6'!N90-'Month 6'!O90","v":{"v":0,"d":"0.00"}},null,{"$f":"IF(AND(M90=0,N90=0,O90=0),\"\",IF((M90+N90)>0,O90/(M90+N90),O90))","v":""},"",{"$f":"SUMIFS($J$25:$J$224,$C$25:$C$224,$C90,$G$25:$G$224,Lists!$A$16)","v":0},{"$f":"SUMIFS($O$25:$O$224,$C$25:$C$224,$C90,$G$25:$G$224,\"<>0\")","v":0},null,{"$f":"IF(B90=0,\"\",IF(LEFT(B90,1)=\"1\",\"1\",\"2\"))","v":""},null,{"$f":"IF(C90=0,\"\",LEFT(INDEX(Lists!$H$5:$H$49,MATCH(C90,Lists!$G$5:$G$49,0),1),1))","v":""},null,{"$f":"'Month 6'!H90+'Month 6'!I90-'Month 6'!J90","v":0},{"$f":"IF(AND(H90=0,I90=0,J90=0),\"\",IF((H90+I90)>0,J90/(H90+I90),J90))","v":""},"",null,{"$f":"U90&C90","v":"0"}]
[{"$f":"Planning!A75","v":"I067"},{"$f":"Planning!B75","v":0},{"$f":"Planning!C75","v":0},{"$f":"Planning!D75","v":0},{"$f":"Planning!E75","v":0},{"$f":"IF(Planning!G75<>0,Planning!G75,\"\")","v":""},{"$f":"Planning!H75","v":0},{"$f":"Planning!AA75","v":0},{"$f":"IF(OR(W91=\"1\",AND(W91<>\"1\",G91=Lists!$A$17)),Y91,0)","v":0},null,{"$f":"IF(AND(W91=\"2\",G91<>Lists!$A$17),AA91,Z91)","v":""},"",{"$f":"Planning!AB75","v":{"v":0,"d":"0.00"}},{"$f":"'Month 6'!M91+'Month 6'!N91-'Month 6'!O91","v":{"v":0,"d":"0.00"}},null,"","",{"$f":"SUMIFS($J$25:$J$224,$C$25:$C$224,$C91,$G$25:$G$224,Lists!$A$16)","v":0},0,null,"",null,{"$f":"IF(C91=0,\"\",LEFT(INDEX(Lists!$H$5:$H$49,MATCH(C91,Lists!$G$5:$G$49,0),1),1))","v":""},null,{"$f":"'Month 6'!H91+'Month 6'!I91-'Month 6'!J91","v":0},"","",null,"0"]
[{"$f":"Planning!A76","v":"I068"},{"$f":"Planning!B76","v":0},{"$f":"Planning!C76","v":0},{"$f":"Planning!D76","v":0},{"$f":"Planning!E76","v":0},{"$f":"IF(Planning!G76<>0,Planning!G76,\"\")","v":""},{"$f":"Planning!H76","v":0},{"$f":"Planning!AA76","v":0},{"$f":"IF(OR(W92=\"1\",AND(W92<>\"1\",G92=Lists!$A$17)),Y92,0)","v":0},null,{"$f":"IF(AND(W92=\"2\",G92<>Lists!$A$17),AA92,Z92)","v":""},"",{"$f":"Planning!AB76","v":{"v":0,"d":"0.00"}},{"$f":"'Month 6'!M92+'Month 6'!N92-'Month 6'!O92","v":{"v":0,"d":"0.00"}},null,"","",{"$f":"SUMIFS($J$25:$J$224,$C$25:$C$224,$C92,$G$25:$G$224,Lists!$A$16)","v":0},0,null,"",null,{"$f":"IF(C92=0,\"\",LEFT(INDEX(Lists!$H$5:$H$49,MATCH(C92,Lists!$G$5:$G$49,0),1),1))","v":""},null,{"$f":"'Month 6'!H92+'Month 6'!I92-'Month 6'!J92","v":0},"","",null,"0"]
[{"$f":"Planning!A77","v":"I069"},{"$f":"Planning!B77","v":0},{"$f":"Planning!C77","v":0},{"$f":"Planning!D77","v":0},{"$f":"Planning!E77","v":0},{"$f":"IF(Planning!G77<>0,Planning!G77,\"\")","v":""},{"$f":"Planning!H77","v":0},{"$f":"Planning!AA77","v":0},{"$f":"IF(OR(W93=\"1\",AND(W93<>\"1\",G93=Lists!$A$17)),Y93,0)","v":0},null,{"$f":"IF(AND(W93=\"2\",G93<>Lists!$A$17),AA93,Z93)","v":""},"",{"$f":"Planning!AB77","v":{"v":0,"d":"0.00"}},{"$f":"'Month 6'!M93+'Month 6'!N93-'Month 6'!O93","v":{"v":0,"d":"0.00"}},null,"","",{"$f":"SUMIFS($J$25:$J$224,$C$25:$C$224,$C93,$G$25:$G$224,Lists!$A$16)","v":0},0,null,"",null,{"$f":"IF(C93=0,\"\",LEFT(INDEX(Lists!$H$5:$H$49,MATCH(C93,Lists!$G$5:$G$49,0),1),1))","v":""},null,{"$f":"'Month 6'!H93+'Month 6'!I93-'Month 6'!J93","v":0},"","",null,"0"]
[{"$f":"Planning!A78","v":"I070"},{"$f":"Planning!B78","v":0},{"$f":"Planning!C78","v":0},{"$f":"Planning!D78","v":0},{"$f":"Planning!E78","v":0},{"$f":"IF(Planning!G78<>0,Planning!G78,\"\")","v":""},{"$f":"Planning!H78","v":0},{"$f":"Planning!AA78","v":0},{"$f":"IF(OR(W94=\"1\",AND(W94<>\"1\",G94=Lists!$A$17)),Y94,0)","v":0},null,{"$f":"IF(AND(W94=\"2\",G94<>Lists!$A$17),AA94,Z94)","v":""},"",{"$f":"Planning!AB78","v":{"v":0,"d":"0.00"}},{"$f":"'Month 6'!M94+'Month 6'!N94-'Month 6'!O94","v":{"v":0,"d":"0.00"}},null,"","",{"$f":"SUMIFS($J$25:$J$224,$C$25:$C$224,$C94,$G$25:$G$224,Lists!$A$16)","v":0},0,null,"",null,{"$f":"IF(C94=0,\"\",LEFT(INDEX(Lists!$H$5:$H$49,MATCH(C94,Lists!$G$5:$G$49,0),1),1))","v":""},null,{"$f":"'Month 6'!H94+'Month 6'!I94-'Month 6'!J94","v":0},"","",null,"0"]
[{"$f":"Planning!A79","v":"I071"},{"$f":"Planning!B79","v":0},{"$f":"Planning!C79","v":0},{"$f":"Planning!D79","v":0},{"$f":"Planning!E79","v":0},{"$f":"IF(Planning!G79<>0,Planning!G79,\"\")","v":""},{"$f":"Planning!H79","v":0},{"$f":"Planning!AA79","v":0},{"$f":"IF(OR(W95=\"1\",AND(W95<>\"1\",G95=Lists!$A$17)),Y95,0)","v":0},null,{"$f":"IF(AND(W95=\"2\",G95<>Lists!$A$17),AA95,Z95)","v":""},"",{"$f":"Planning!AB79","v":{"v":0,"d":"0.00"}},{"$f":"'Month 6'!M95+'Month 6'!N95-'Month 6'!O95","v":{"v":0,"d":"0.00"}},null,"","",{"$f":"SUMIFS($J$25:$J$224,$C$25:$C$224,$C95,$G$25:$G$224,Lists!$A$16)","v":0},0,null,"",null,{"$f":"IF(C95=0,\"\",LEFT(INDEX(Lists!$H$5:$H$49,MATCH(C95,Lists!$G$5:$G$49,0),1),1))","v":""},null,{"$f":"'Month 6'!H95+'Month 6'!I95-'Month 6'!J95","v":0},"","",null,"0"]
[{"$f":"Planning!A80","v":"I072"},{"$f":"Planning!B80","v":0},{"$f":"Planning!C80","v":0},{"$f":"Planning!D80","v":0},{"$f":"Planning!E80","v":0},{"$f":"IF(Planning!G80<>0,Planning!G80,\"\")","v":""},{"$f":"Planning!H80","v":0},{"$f":"Planning!AA80","v":0},{"$f":"IF(OR(W96=\"1\",AND(W96<>\"1\",G96=Lists!$A$17)),Y96,0)","v":0},null,{"$f":"IF(AND(W96=\"2\",G96<>Lists!$A$17),AA96,Z96)","v":""},"",{"$f":"Planning!AB80","v":{"v":0,"d":"0.00"}},{"$f":"'Month 6'!M96+'Month 6'!N96-'Month 6'!O96","v":{"v":0,"d":"0.00"}},null,"","",{"$f":"SUMIFS($J$25:$J$224,$C$25:$C$224,$C96,$G$25:$G$224,Lists!$A$16)","v":0},0,null,"",null,{"$f":"IF(C96=0,\"\",LEFT(INDEX(Lists!$H$5:$H$49,MATCH(C96,Lists!$G$5:$G$49,0),1),1))","v":""},null,{"$f":"'Month 6'!H96+'Month 6'!I96-'Month 6'!J96","v":0},"","",null,"0"]
[{"$f":"Planning!A81","v":"I073"},{"$f":"Planning!B81","v":0},{"$f":"Planning!C81","v":0},{"$f":"Planning!D81","v":0},{"$f":"Planning!E81","v":0},{"$f":"IF(Planning!G81<>0,Planning!G81,\"\")","v":""},{"$f":"Planning!H81","v":0},{"$f":"Planning!AA81","v":0},{"$f":"IF(OR(W97=\"1\",AND(W97<>\"1\",G97=Lists!$A$17)),Y97,0)","v":0},null,{"$f":"IF(AND(W97=\"2\",G97<>Lists!$A$17),AA97,Z97)","v":""},"",{"$f":"Planning!AB81","v":{"v":0,"d":"0.00"}},{"$f":"'Month 6'!M97+'Month 6'!N97-'Month 6'!O97","v":{"v":0,"d":"0.00"}},null,"","",{"$f":"SUMIFS($J$25:$J$224,$C$25:$C$224,$C97,$G$25:$G$224,Lists!$A$16)","v":0},0,null,"",null,{"$f":"IF(C97=0,\"\",LEFT(INDEX(Lists!$H$5:$H$49,MATCH(C97,Lists!$G$5:$G$49,0),1),1))","v":""},null,{"$f":"'Month 6'!H97+'Month 6'!I97-'Month 6'!J97","v":0},"","",null,"0"]
[{"$f":"Planning!A82","v":"I074"},{"$f":"Planning!B82","v":0},{"$f":"Planning!C82","v":0},{"$f":"Planning!D82","v":0},{"$f":"Planning!E82","v":0},{"$f":"IF(Planning!G82<>0,Planning!G82,\"\")","v":""},{"$f":"Planning!H82","v":0},{"$f":"Planning!AA82","v":0},{"$f":"IF(OR(W98=\"1\",AND(W98<>\"1\",G98=Lists!$A$17)),Y98,0)","v":0},null,{"$f":"IF(AND(W98=\"2\",G98<>Lists!$A$17),AA98,Z98)","v":""},"",{"$f":"Planning!AB82","v":{"v":0,"d":"0.00"}},{"$f":"'Month 6'!M98+'Month 6'!N98-'Month 6'!O98","v":{"v":0,"d":"0.00"}},null,"","",{"$f":"SUMIFS($J$25:$J$224,$C$25:$C$224,$C98,$G$25:$G$224,Lists!$A$16)","v":0},0,null,"",null,{"$f":"IF(C98=0,\"\",LEFT(INDEX(Lists!$H$5:$H$49,MATCH(C98,Lists!$G$5:$G$49,0),1),1))","v":""},null,{"$f":"'Month 6'!H98+'Month 6'!I98-'Month 6'!J98","v":0},"","",null,"0"]
[{"$f":"Planning!A83","v":"I075"},{"$f":"Planning!B83","v":0},{"$f":"Planning!C83","v":0},{"$f":"Planning!D83","v":0},{"$f":"Planning!E83","v":0},{"$f":"IF(Planning!G83<>0,Planning!G83,\"\")","v":""},{"$f":"Planning!H83","v":0},{"$f":"Planning!AA83","v":0},{"$f":"IF(OR(W99=\"1\",AND(W99<>\"1\",G99=Lists!$A$17)),Y99,0)","v":0},null,{"$f":"IF(AND(W99=\"2\",G99<>Lists!$A$17),AA99,Z99)","v":""},"",{"$f":"Planning!AB83","v":{"v":0,"d":"0.00"}},{"$f":"'Month 6'!M99+'Month 6'!N99-'Month 6'!O99","v":{"v":0,"d":"0.00"}},null,"","",{"$f":"SUMIFS($J$25:$J$224,$C$25:$C$224,$C99,$G$25:$G$224,Lists!$A$16)","v":0},0,null,"",null,{"$f":"IF(C99=0,\"\",LEFT(INDEX(Lists!$H$5:$H$49,MATCH(C99,Lists!$G$5:$G$49,0),1),1))","v":""},null,{"$f":"'Month 6'!H99+'Month 6'!I99-'Month 6'!J99","v":0},"","",null,"0"]
[{"$f":"Planning!A84","v":"I076"},{"$f":"Planning!B84","v":0},{"$f":"Planning!C84","v":0},{"$f":"Planning!D84","v":0},{"$f":"Planning!E84","v":0},{"$f":"IF(Planning!G84<>0,Planning!G84,\"\")","v":""},{"$f":"Planning!H84","v":0},{"$f":"Planning!AA84","v":0},{"$f":"IF(OR(W100=\"1\",AND(W100<>\"1\",G100=Lists!$A$17)),Y100,0)","v":0},null,{"$f":"IF(AND(W100=\"2\",G100<>Lists!$A$17),AA100,Z100)","v":""},"",{"$f":"Planning!AB84","v":{"v":0,"d":"0.00"}},{"$f":"'Month 6'!M100+'Month 6'!N100-'Month 6'!O100","v":{"v":0,"d":"0.00"}},null,"","",{"$f":"SUMIFS($J$25:$J$224,$C$25:$C$224,$C100,$G$25:$G$224,Lists!$A$16)","v":0},0,null,"",null,{"$f":"IF(C100=0,\"\",LEFT(INDEX(Lists!$H$5:$H$49,MATCH(C100,Lists!$G$5:$G$49,0),1),1))","v":""},null,{"$f":"'Month 6'!H100+'Month 6'!I100-'Month 6'!J100","v":0},"","",null,"0"]
[{"$f":"Planning!A85","v":"I077"},{"$f":"Planning!B85","v":0},{"$f":"Planning!C85","v":0},{"$f":"Planning!D85","v":0},{"$f":"Planning!E85","v":0},{"$f":"IF(Planning!G85<>0,Planning!G85,\"\")","v":""},{"$f":"Planning!H85","v":0},{"$f":"Planning!AA85","v":0},{"$f":"IF(OR(W101=\"1\",AND(W101<>\"1\",G101=Lists!$A$17)),Y101,0)","v":0},null,{"$f":"IF(AND(W101=\"2\",G101<>Lists!$A$17),AA101,Z101)","v":""},"",{"$f":"Planning!AB85","v":{"v":0,"d":"0.00"}},{"$f":"'Month 6'!M101+'Month 6'!N101-'Month 6'!O101","v":{"v":0,"d":"0.00"}},null,"","",{"$f":"SUMIFS($J$25:$J$224,$C$25:$C$224,$C101,$G$25:$G$224,Lists!$A$16)","v":0},0,null,"",null,{"$f":"IF(C101=0,\"\",LEFT(INDEX(Lists!$H$5:$H$49,MATCH(C101,Lists!$G$5:$G$49,0),1),1))","v":""},null,{"$f":"'Month 6'!H101+'Month 6'!I101-'Month 6'!J101","v":0},"","",null,"0"]
[{"$f":"Planning!A86","v":"I078"},{"$f":"Planning!B86","v":0},{"$f":"Planning!C86","v":0},{"$f":"Planning!D86","v":0},{"$f":"Planning!E86","v":0},{"$f":"IF(Planning!G86<>0,Planning!G86,\"\")","v":""},{"$f":"Planning!H86","v":0},{"$f":"Planning!AA86","v":0},{"$f":"IF(OR(W102=\"1\",AND(W102<>\"1\",G102=Lists!$A$17)),Y102,0)","v":0},null,{"$f":"IF(AND(W102=\"2\",G102<>Lists!$A$17),AA102,Z102)","v":""},"",{"$f":"Planning!AB86","v":{"v":0,"d":"0.00"}},{"$f":"'Month 6'!M102+'Month 6'!N102-'Month 6'!O102","v":{"v":0,"d":"0.00"}},null,"","",{"$f":"SUMIFS($J$25:$J$224,$C$25:$C$224,$C102,$G$25:$G$224,Lists!$A$16)","v":0},0,null,"",null,{"$f":"IF(C102=0,\"\",LEFT(INDEX(Lists!$H$5:$H$49,MATCH(C102,Lists!$G$5:$G$49,0),1),1))","v":""},null,{"$f":"'Month 6'!H102+'Month 6'!I102-'Month 6'!J102","v":0},"","",null,"0"]
[{"$f":"Planning!A87","v":"I079"},{"$f":"Planning!B87","v":0},{"$f":"Planning!C87","v":0},{"$f":"Planning!D87","v":0},{"$f":"Planning!E87","v":0},{"$f":"IF(Planning!G87<>0,Planning!G87,\"\")","v":""},{"$f":"Planning!H87","v":0},{"$f":"Planning!AA87","v":0},{"$f":"IF(OR(W103=\"1\",AND(W103<>\"1\",G103=Lists!$A$17)),Y103,0)","v":0},null,{"$f":"IF(AND(W103=\"2\",G103<>Lists!$A$17),AA103,Z103)","v":""},"",{"$f":"Planning!AB87","v":{"v":0,"d":"0.00"}},{"$f":"'Month 6'!M103+'Month 6'!N103-'Month 6'!O103","v":{"v":0,"d":"0.00"}},null,"","",{"$f":"SUMIFS($J$25:$J$224,$C$25:$C$224,$C103,$G$25:$G$224,Lists!$A$16)","v":0},0,null,"",null,{"$f":"IF(C103=0,\"\",LEFT(INDEX(Lists!$H$5:$H$49,MATCH(C103,Lists!$G$5:$G$49,0),1),1))","v":""},null,{"$f":"'Month 6'!H103+'Month 6'!I103-'Month 6'!J103","v":0},"","",null,"0"]
[{"$f":"Planning!A88","v":"I080"},{"$f":"Planning!B88","v":0},{"$f":"Planning!C88","v":0},{"$f":"Planning!D88","v":0},{"$f":"Planning!E88","v":0},{"$f":"IF(Planning!G88<>0,Planning!G88,\"\")","v":""},{"$f":"Planning!H88","v":0},{"$f":"Planning!AA88","v":0},{"$f":"IF(OR(W104=\"1\",AND(W104<>\"1\",G104=Lists!$A$17)),Y104,0)","v":0},null,{"$f":"IF(AND(W104=\"2\",G104<>Lists!$A$17),AA104,Z104)","v":""},"",{"$f":"Planning!AB88","v":{"v":0,"d":"0.00"}},{"$f":"'Month 6'!M104+'Month 6'!N104-'Month 6'!O104","v":{"v":0,"d":"0.00"}},null,"","",{"$f":"SUMIFS($J$25:$J$224,$C$25:$C$224,$C104,$G$25:$G$224,Lists!$A$16)","v":0},0,null,"",null,{"$f":"IF(C104=0,\"\",LEFT(INDEX(Lists!$H$5:$H$49,MATCH(C104,Lists!$G$5:$G$49,0),1),1))","v":""},null,{"$f":"'Month 6'!H104+'Month 6'!I104-'Month 6'!J104","v":0},"","",null,"0"]
[{"$f":"Planning!A89","v":"I081"},{"$f":"Planning!B89","v":0},{"$f":"Planning!C89","v":0},{"$f":"Planning!D89","v":0},{"$f":"Planning!E89","v":0},{"$f":"IF(Planning!G89<>0,Planning!G89,\"\")","v":""},{"$f":"Planning!H89","v":0},{"$f":"Planning!AA89","v":0},{"$f":"IF(OR(W105=\"1\",AND(W105<>\"1\",G105=Lists!$A$17)),Y105,0)","v":0},null,{"$f":"IF(AND(W105=\"2\",G105<>Lists!$A$17),AA105,Z105)","v":""},"",{"$f":"Planning!AB89","v":{"v":0,"d":"0.00"}},{"$f":"'Month 6'!M105+'Month 6'!N105-'Month 6'!O105","v":{"v":0,"d":"0.00"}},null,"","",{"$f":"SUMIFS($J$25:$J$224,$C$25:$C$224,$C105,$G$25:$G$224,Lists!$A$16)","v":0},0,null,"",null,{"$f":"IF(C105=0,\"\",LEFT(INDEX(Lists!$H$5:$H$49,MATCH(C105,Lists!$G$5:$G$49,0),1),1))","v":""},null,{"$f":"'Month 6'!H105+'Month 6'!I105-'Month 6'!J105","v":0},"","",null,"0"]
[{"$f":"Planning!A90","v":"I082"},{"$f":"Planning!B90","v":0},{"$f":"Planning!C90","v":0},{"$f":"Planning!D90","v":0},{"$f":"Planning!E90","v":0},{"$f":"IF(Planning!G90<>0,Planning!G90,\"\")","v":""},{"$f":"Planning!H90","v":0},{"$f":"Planning!AA90","v":0},{"$f":"IF(OR(W106=\"1\",AND(W106<>\"1\",G106=Lists!$A$17)),Y106,0)","v":0},null,{"$f":"IF(AND(W106=\"2\",G106<>Lists!$A$17),AA106,Z106)","v":""},"",{"$f":"Planning!AB90","v":{"v":0,"d":"0.00"}},{"$f":"'Month 6'!M106+'Month 6'!N106-'Month 6'!O106","v":{"v":0,"d":"0.00"}},null,"","",{"$f":"SUMIFS($J$25:$J$224,$C$25:$C$224,$C106,$G$25:$G$224,Lists!$A$16)","v":0},0,null,"",null,{"$f":"IF(C106=0,\"\",LEFT(INDEX(Lists!$H$5:$H$49,MATCH(C106,Lists!$G$5:$G$49,0),1),1))","v":""},null,{"$f":"'Month 6'!H106+'Month 6'!I106-'Month 6'!J106","v":0},"","",null,"0"]
[{"$f":"Planning!A91","v":"I083"},{"$f":"Planning!B91","v":0},{"$f":"Planning!C91","v":0},{"$f":"Planning!D91","v":0},{"$f":"Planning!E91","v":0},{"$f":"IF(Planning!G91<>0,Planning!G91,\"\")","v":""},{"$f":"Planning!H91","v":0},{"$f":"Planning!AA91","v":0},{"$f":"IF(OR(W107=\"1\",AND(W107<>\"1\",G107=Lists!$A$17)),Y107,0)","v":0},null,{"$f":"IF(AND(W107=\"2\",G107<>Lists!$A$17),AA107,Z107)","v":""},"",{"$f":"Planning!AB91","v":{"v":0,"d":"0.00"}},{"$f":"'Month 6'!M107+'Month 6'!N107-'Month 6'!O107","v":{"v":0,"d":"0.00"}},null,"","",{"$f":"SUMIFS($J$25:$J$224,$C$25:$C$224,$C107,$G$25:$G$224,Lists!$A$16)","v":0},0,null,"",null,{"$f":"IF(C107=0,\"\",LEFT(INDEX(Lists!$H$5:$H$49,MATCH(C107,Lists!$G$5:$G$49,0),1),1))","v":""},null,{"$f":"'Month 6'!H107+'Month 6'!I107-'Month 6'!J107","v":0},"","",null,"0"]
[{"$f":"Planning!A92","v":"I084"},{"$f":"Planning!B92","v":0},{"$f":"Planning!C92","v":0},{"$f":"Planning!D92","v":0},{"$f":"Planning!E92","v":0},{"$f":"IF(Planning!G92<>0,Planning!G92,\"\")","v":""},{"$f":"Planning!H92","v":0},{"$f":"Planning!AA92","v":0},{"$f":"IF(OR(W108=\"1\",AND(W108<>\"1\",G108=Lists!$A$17)),Y108,0)","v":0},null,{"$f":"IF(AND(W108=\"2\",G108<>Lists!$A$17),AA108,Z108)","v":""},"",{"$f":"Planning!AB92","v":{"v":0,"d":"0.00"}},{"$f":"'Month 6'!M108+'Month 6'!N108-'Month 6'!O108","v":{"v":0,"d":"0.00"}},null,"","",{"$f":"SUMIFS($J$25:$J$224,$C$25:$C$224,$C108,$G$25:$G$224,Lists!$A$16)","v":0},0,null,"",null,{"$f":"IF(C108=0,\"\",LEFT(INDEX(Lists!$H$5:$H$49,MATCH(C108,Lists!$G$5:$G$49,0),1),1))","v":""},null,{"$f":"'Month 6'!H108+'Month 6'!I108-'Month 6'!J108","v":0},"","",null,"0"]
[{"$f":"Planning!A93","v":"I085"},{"$f":"Planning!B93","v":0},{"$f":"Planning!C93","v":0},{"$f":"Planning!D93","v":0},{"$f":"Planning!E93","v":0},{"$f":"IF(Planning!G93<>0,Planning!G93,\"\")","v":""},{"$f":"Planning!H93","v":0},{"$f":"Planning!AA93","v":0},{"$f":"IF(OR(W109=\"1\",AND(W109<>\"1\",G109=Lists!$A$17)),Y109,0)","v":0},null,{"$f":"IF(AND(W109=\"2\",G109<>Lists!$A$17),AA109,Z109)","v":""},"",{"$f":"Planning!AB93","v":{"v":0,"d":"0.00"}},{"$f":"'Month 6'!M109+'Month 6'!N109-'Month 6'!O109","v":{"v":0,"d":"0.00"}},null,"","",{"$f":"SUMIFS($J$25:$J$224,$C$25:$C$224,$C109,$G$25:$G$224,Lists!$A$16)","v":0},0,null,"",null,{"$f":"IF(C109=0,\"\",LEFT(INDEX(Lists!$H$5:$H$49,MATCH(C109,Lists!$G$5:$G$49,0),1),1))","v":""},null,{"$f":"'Month 6'!H109+'Month 6'!I109-'Month 6'!J109","v":0},"","",null,"0"]
[{"$f":"Planning!A94","v":"I086"},{"$f":"Planning!B94","v":0},{"$f":"Planning!C94","v":0},{"$f":"Planning!D94","v":0},{"$f":"Planning!E94","v":0},{"$f":"IF(Planning!G94<>0,Planning!G94,\"\")","v":""},{"$f":"Planning!H94","v":0},{"$f":"Planning!AA94","v":0},{"$f":"IF(OR(W110=\"1\",AND(W110<>\"1\",G110=Lists!$A$17)),Y110,0)","v":0},null,{"$f":"IF(AND(W110=\"2\",G110<>Lists!$A$17),AA110,Z110)","v":""},"",{"$f":"Planning!AB94","v":{"v":0,"d":"0.00"}},{"$f":"'Month 6'!M110+'Month 6'!N110-'Month 6'!O110","v":{"v":0,"d":"0.00"}},null,"","",{"$f":"SUMIFS($J$25:$J$224,$C$25:$C$224,$C110,$G$25:$G$224,Lists!$A$16)","v":0},0,null,"",null,{"$f":"IF(C110=0,\"\",LEFT(INDEX(Lists!$H$5:$H$49,MATCH(C110,Lists!$G$5:$G$49,0),1),1))","v":""},null,{"$f":"'Month 6'!H110+'Month 6'!I110-'Month 6'!J110","v":0},"","",null,"0"]
[{"$f":"Planning!A95","v":"I087"},{"$f":"Planning!B95","v":0},{"$f":"Planning!C95","v":0},{"$f":"Planning!D95","v":0},{"$f":"Planning!E95","v":0},{"$f":"IF(Planning!G95<>0,Planning!G95,\"\")","v":""},{"$f":"Planning!H95","v":0},{"$f":"Planning!AA95","v":0},{"$f":"IF(OR(W111=\"1\",AND(W111<>\"1\",G111=Lists!$A$17)),Y111,0)","v":0},null,{"$f":"IF(AND(W111=\"2\",G111<>Lists!$A$17),AA111,Z111)","v":""},"",{"$f":"Planning!AB95","v":{"v":0,"d":"0.00"}},{"$f":"'Month 6'!M111+'Month 6'!N111-'Month 6'!O111","v":{"v":0,"d":"0.00"}},null,"","",{"$f":"SUMIFS($J$25:$J$224,$C$25:$C$224,$C111,$G$25:$G$224,Lists!$A$16)","v":0},0,null,"",null,{"$f":"IF(C111=0,\"\",LEFT(INDEX(Lists!$H$5:$H$49,MATCH(C111,Lists!$G$5:$G$49,0),1),1))","v":""},null,{"$f":"'Month 6'!H111+'Month 6'!I111-'Month 6'!J111","v":0},"","",null,"0"]
[{"$f":"Planning!A96","v":"I088"},{"$f":"Planning!B96","v":0},{"$f":"Planning!C96","v":0},{"$f":"Planning!D96","v":0},{"$f":"Planning!E96","v":0},{"$f":"IF(Planning!G96<>0,Planning!G96,\"\")","v":""},{"$f":"Planning!H96","v":0},{"$f":"Planning!AA96","v":0},{"$f":"IF(OR(W112=\"1\",AND(W112<>\"1\",G112=Lists!$A$17)),Y112,0)","v":0},null,{"$f":"IF(AND(W112=\"2\",G112<>Lists!$A$17),AA112,Z112)","v":""},"",{"$f":"Planning!AB96","v":{"v":0,"d":"0.00"}},{"$f":"'Month 6'!M112+'Month 6'!N112-'Month 6'!O112","v":{"v":0,"d":"0.00"}},null,"","",{"$f":"SUMIFS($J$25:$J$224,$C$25:$C$224,$C112,$G$25:$G$224,Lists!$A$16)","v":0},0,null,"",null,{"$f":"IF(C112=0,\"\",LEFT(INDEX(Lists!$H$5:$H$49,MATCH(C112,Lists!$G$5:$G$49,0),1),1))","v":""},null,{"$f":"'Month 6'!H112+'Month 6'!I112-'Month 6'!J112","v":0},"","",null,"0"]
[{"$f":"Planning!A97","v":"I089"},{"$f":"Planning!B97","v":0},{"$f":"Planning!C97","v":0},{"$f":"Planning!D97","v":0},{"$f":"Planning!E97","v":0},{"$f":"IF(Planning!G97<>0,Planning!G97,\"\")","v":""},{"$f":"Planning!H97","v":0},{"$f":"Planning!AA97","v":0},{"$f":"IF(OR(W113=\"1\",AND(W113<>\"1\",G113=Lists!$A$17)),Y113,0)","v":0},null,{"$f":"IF(AND(W113=\"2\",G113<>Lists!$A$17),AA113,Z113)","v":""},"",{"$f":"Planning!AB97","v":{"v":0,"d":"0.00"}},{"$f":"'Month 6'!M113+'Month 6'!N113-'Month 6'!O113","v":{"v":0,"d":"0.00"}},null,"","",{"$f":"SUMIFS($J$25:$J$224,$C$25:$C$224,$C113,$G$25:$G$224,Lists!$A$16)","v":0},0,null,"",null,{"$f":"IF(C113=0,\"\",LEFT(INDEX(Lists!$H$5:$H$49,MATCH(C113,Lists!$G$5:$G$49,0),1),1))","v":""},null,{"$f":"'Month 6'!H113+'Month 6'!I113-'Month 6'!J113","v":0},"","",null,"0"]
[{"$f":"Planning!A98","v":"I090"},{"$f":"Planning!B98","v":0},{"$f":"Planning!C98","v":0},{"$f":"Planning!D98","v":0},{"$f":"Planning!E98","v":0},{"$f":"IF(Planning!G98<>0,Planning!G98,\"\")","v":""},{"$f":"Planning!H98","v":0},{"$f":"Planning!AA98","v":0},{"$f":"IF(OR(W114=\"1\",AND(W114<>\"1\",G114=Lists!$A$17)),Y114,0)","v":0},null,{"$f":"IF(AND(W114=\"2\",G114<>Lists!$A$17),AA114,Z114)","v":""},"",{"$f":"Planning!AB98","v":{"v":0,"d":"0.00"}},{"$f":"'Month 6'!M114+'Month 6'!N114-'Month 6'!O114","v":{"v":0,"d":"0.00"}},null,"","",{"$f":"SUMIFS($J$25:$J$224,$C$25:$C$224,$C114,$G$25:$G$224,Lists!$A$16)","v":0},0,null,"",null,{"$f":"IF(C114=0,\"\",LEFT(INDEX(Lists!$H$5:$H$49,MATCH(C114,Lists!$G$5:$G$49,0),1),1))","v":""},null,{"$f":"'Month 6'!H114+'Month 6'!I114-'Month 6'!J114","v":0},"","",null,"0"]
[{"$f":"Planning!A99","v":"I091"},{"$f":"Planning!B99","v":0},{"$f":"Planning!C99","v":0},{"$f":"Planning!D99","v":0},{"$f":"Planning!E99","v":0},{"$f":"IF(Planning!G99<>0,Planning!G99,\"\")","v":""},{"$f":"Planning!H99","v":0},{"$f":"Planning!AA99","v":0},{"$f":"IF(OR(W115=\"1\",AND(W115<>\"1\",G115=Lists!$A$17)),Y115,0)","v":0},null,{"$f":"IF(AND(W115=\"2\",G115<>Lists!$A$17),AA115,Z115)","v":""},"",{"$f":"Planning!AB99","v":{"v":0,"d":"0.00"}},{"$f":"'Month 6'!M115+'Month 6'!N115-'Month 6'!O115","v":{"v":0,"d":"0.00"}},null,"","",{"$f":"SUMIFS($J$25:$J$224,$C$25:$C$224,$C115,$G$25:$G$224,Lists!$A$16)","v":0},0,null,"",null,{"$f":"IF(C115=0,\"\",LEFT(INDEX(Lists!$H$5:$H$49,MATCH(C115,Lists!$G$5:$G$49,0),1),1))","v":""},null,{"$f":"'Month 6'!H115+'Month 6'!I115-'Month 6'!J115","v":0},"","",null,"0"]
[{"$f":"Planning!A100","v":"I092"},{"$f":"Planning!B100","v":0},{"$f":"Planning!C100","v":0},{"$f":"Planning!D100","v":0},{"$f":"Planning!E100","v":0},{"$f":"IF(Planning!G100<>0,Planning!G100,\"\")","v":""},{"$f":"Planning!H100","v":0},{"$f":"Planning!AA100","v":0},{"$f":"IF(OR(W116=\"1\",AND(W116<>\"1\",G116=Lists!$A$17)),Y116,0)","v":0},null,{"$f":"IF(AND(W116=\"2\",G116<>Lists!$A$17),AA116,Z116)","v":""},"",{"$f":"Planning!AB100","v":{"v":0,"d":"0.00"}},{"$f":"'Month 6'!M116+'Month 6'!N116-'Month 6'!O116","v":{"v":0,"d":"0.00"}},null,"","",{"$f":"SUMIFS($J$25:$J$224,$C$25:$C$224,$C116,$G$25:$G$224,Lists!$A$16)","v":0},0,null,"",null,{"$f":"IF(C116=0,\"\",LEFT(INDEX(Lists!$H$5:$H$49,MATCH(C116,Lists!$G$5:$G$49,0),1),1))","v":""},null,{"$f":"'Month 6'!H116+'Month 6'!I116-'Month 6'!J116","v":0},"","",null,"0"]
[{"$f":"Planning!A101","v":"I093"},{"$f":"Planning!B101","v":0},{"$f":"Planning!C101","v":0},{"$f":"Planning!D101","v":0},{"$f":"Planning!E101","v":0},{"$f":"IF(Planning!G101<>0,Planning!G101,\"\")","v":""},{"$f":"Planning!H101","v":0},{"$f":"Planning!AA101","v":0},{"$f":"IF(OR(W117=\"1\",AND(W117<>\"1\",G117=Lists!$A$17)),Y117,0)","v":0},null,{"$f":"IF(AND(W117=\"2\",G117<>Lists!$A$17),AA117,Z117)","v":""},"",{"$f":"Planning!AB101","v":{"v":0,"d":"0.00"}},{"$f":"'Month 6'!M117+'Month 6'!N117-'Month 6'!O117","v":{"v":0,"d":"0.00"}},null,"","",{"$f":"SUMIFS($J$25:$J$224,$C$25:$C$224,$C117,$G$25:$G$224,Lists!$A$16)","v":0},0,null,"",null,{"$f":"IF(C117=0,\"\",LEFT(INDEX(Lists!$H$5:$H$49,MATCH(C117,Lists!$G$5:$G$49,0),1),1))","v":""},null,{"$f":"'Month 6'!H117+'Month 6'!I117-'Month 6'!J117","v":0},"","",null,"0"]
[{"$f":"Planning!A102","v":"I094"},{"$f":"Planning!B102","v":0},{"$f":"Planning!C102","v":0},{"$f":"Planning!D102","v":0},{"$f":"Planning!E102","v":0},{"$f":"IF(Planning!G102<>0,Planning!G102,\"\")","v":""},{"$f":"Planning!H102","v":0},{"$f":"Planning!AA102","v":0},{"$f":"IF(OR(W118=\"1\",AND(W118<>\"1\",G118=Lists!$A$17)),Y118,0)","v":0},null,{"$f":"IF(AND(W118=\"2\",G118<>Lists!$A$17),AA118,Z118)","v":""},"",{"$f":"Planning!AB102","v":{"v":0,"d":"0.00"}},{"$f":"'Month 6'!M118+'Month 6'!N118-'Month 6'!O118","v":{"v":0,"d":"0.00"}},null,"","",{"$f":"SUMIFS($J$25:$J$224,$C$25:$C$224,$C118,$G$25:$G$224,Lists!$A$16)","v":0},0,null,"",null,{"$f":"IF(C118=0,\"\",LEFT(INDEX(Lists!$H$5:$H$49,MATCH(C118,Lists!$G$5:$G$49,0),1),1))","v":""},null,{"$f":"'Month 6'!H118+'Month 6'!I118-'Month 6'!J118","v":0},"","",null,"0"]
[{"$f":"Planning!A103","v":"I095"},{"$f":"Planning!B103","v":0},{"$f":"Planning!C103","v":0},{"$f":"Planning!D103","v":0},{"$f":"Planning!E103","v":0},{"$f":"IF(Planning!G103<>0,Planning!G103,\"\")","v":""},{"$f":"Planning!H103","v":0},{"$f":"Planning!AA103","v":0},{"$f":"IF(OR(W119=\"1\",AND(W119<>\"1\",G119=Lists!$A$17)),Y119,0)","v":0},null,{"$f":"IF(AND(W119=\"2\",G119<>Lists!$A$17),AA119,Z119)","v":""},"",{"$f":"Planning!AB103","v":{"v":0,"d":"0.00"}},{"$f":"'Month 6'!M119+'Month 6'!N119-'Month 6'!O119","v":{"v":0,"d":"0.00"}},null,"","",{"$f":"SUMIFS($J$25:$J$224,$C$25:$C$224,$C119,$G$25:$G$224,Lists!$A$16)","v":0},0,null,"",null,{"$f":"IF(C119=0,\"\",LEFT(INDEX(Lists!$H$5:$H$49,MATCH(C119,Lists!$G$5:$G$49,0),1),1))","v":""},null,{"$f":"'Month 6'!H119+'Month 6'!I119-'Month 6'!J119","v":0},"","",null,"0"]
[{"$f":"Planning!A104","v":"I096"},{"$f":"Planning!B104","v":0},{"$f":"Planning!C104","v":0},{"$f":"Planning!D104","v":0},{"$f":"Planning!E104","v":0},{"$f":"IF(Planning!G104<>0,Planning!G104,\"\")","v":""},{"$f":"Planning!H104","v":0},{"$f":"Planning!AA104","v":0},{"$f":"IF(OR(W120=\"1\",AND(W120<>\"1\",G120=Lists!$A$17)),Y120,0)","v":0},null,{"$f":"IF(AND(W120=\"2\",G120<>Lists!$A$17),AA120,Z120)","v":""},"",{"$f":"Planning!AB104","v":{"v":0,"d":"0.00"}},{"$f":"'Month 6'!M120+'Month 6'!N120-'Month 6'!O120","v":{"v":0,"d":"0.00"}},null,"","",{"$f":"SUMIFS($J$25:$J$224,$C$25:$C$224,$C120,$G$25:$G$224,Lists!$A$16)","v":0},0,null,"",null,{"$f":"IF(C120=0,\"\",LEFT(INDEX(Lists!$H$5:$H$49,MATCH(C120,Lists!$G$5:$G$49,0),1),1))","v":""},null,{"$f":"'Month 6'!H120+'Month 6'!I120-'Month 6'!J120","v":0},"","",null,"0"]
[{"$f":"Planning!A105","v":"I097"},{"$f":"Planning!B105","v":0},{"$f":"Planning!C105","v":0},{"$f":"Planning!D105","v":0},{"$f":"Planning!E105","v":0},{"$f":"IF(Planning!G105<>0,Planning!G105,\"\")","v":""},{"$f":"Planning!H105","v":0},{"$f":"Planning!AA105","v":0},{"$f":"IF(OR(W121=\"1\",AND(W121<>\"1\",G121=Lists!$A$17)),Y121,0)","v":0},null,{"$f":"IF(AND(W121=\"2\",G121<>Lists!$A$17),AA121,Z121)","v":""},{"$f":"IF($U121=ExcluirDelPLogro,\"\",IF(AND(H121=0,I121=0,J121=0),\"\",K121))","v":""},{"$f":"Planning!AB105","v":{"v":0,"d":"0.00"}},{"$f":"'Month 6'!M121+'Month 6'!N121-'Month 6'!O121","v":{"v":0,"d":"0.00"}},null,"",{"$f":"IF($U121=ExcluirDelPLogro,\"\",IF(AND(M121=0,N121=0,O121=0),\"\",P121))","v":""},{"$f":"SUMIFS($J$25:$J$224,$C$25:$C$224,$C121,$G$25:$G$224,Lists!$A$16)","v":0},0,null,"",null,{"$f":"IF(C121=0,\"\",LEFT(INDEX(Lists!$H$5:$H$49,MATCH(C121,Lists!$G$5:$G$49,0),1),1))","v":""},null,{"$f":"'Month 6'!H121+'Month 6'!I121-'Month 6'!J121","v":0},"",{"$f":"IF(AND(H121=0,I121=0,J121=0),\"\",IF(J121>0,H121/J121,0))","v":""},null,"0"]
[{"$f":"Planning!A106","v":"I098"},{"$f":"Planning!B106","v":0},{"$f":"Planning!C106","v":0},{"$f":"Planning!D106","v":0},{"$f":"Planning!E106","v":0},{"$f":"IF(Planning!G106<>0,Planning!G106,\"\")","v":""},{"$f":"Planning!H106","v":0},{"$f":"Planning!AA106","v":0},{"$f":"IF(OR(W122=\"1\",AND(W122<>\"1\",G122=Lists!$A$17)),Y122,0)","v":0},null,{"$f":"IF(AND(W122=\"2\",G122<>Lists!$A$17),AA122,Z122)","v":""},"",{"$f":"Planning!AB106","v":{"v":0,"d":"0.00"}},{"$f":"'Month 6'!M122+'Month 6'!N122-'Month 6'!O122","v":{"v":0,"d":"0.00"}},null,"","",{"$f":"SUMIFS($J$25:$J$224,$C$25:$C$224,$C122,$G$25:$G$224,Lists!$A$16)","v":0},0,null,"",null,{"$f":"IF(C122=0,\"\",LEFT(INDEX(Lists!$H$5:$H$49,MATCH(C122,Lists!$G$5:$G$49,0),1),1))","v":""},null,{"$f":"'Month 6'!H122+'Month 6'!I122-'Month 6'!J122","v":0},"","",null,"0"]
[{"$f":"Planning!A107","v":"I099"},{"$f":"Planning!B107","v":0},{"$f":"Planning!C107","v":0},{"$f":"Planning!D107","v":0},{"$f":"Planning!E107","v":0},{"$f":"IF(Planning!G107<>0,Planning!G107,\"\")","v":""},{"$f":"Planning!H107","v":0},{"$f":"Planning!AA107","v":0},{"$f":"IF(OR(W123=\"1\",AND(W123<>\"1\",G123=Lists!$A$17)),Y123,0)","v":0},null,{"$f":"IF(AND(W123=\"2\",G123<>Lists!$A$17),AA123,Z123)","v":""},"",{"$f":"Planning!AB107","v":{"v":0,"d":"0.00"}},{"$f":"'Month 6'!M123+'Month 6'!N123-'Month 6'!O123","v":{"v":0,"d":"0.00"}},null,"","",{"$f":"SUMIFS($J$25:$J$224,$C$25:$C$224,$C123,$G$25:$G$224,Lists!$A$16)","v":0},0,null,"",null,{"$f":"IF(C123=0,\"\",LEFT(INDEX(Lists!$H$5:$H$49,MATCH(C123,Lists!$G$5:$G$49,0),1),1))","v":""},null,{"$f":"'Month 6'!H123+'Month 6'!I123-'Month 6'!J123","v":0},"","",null,"0"]
[{"$f":"Planning!A108","v":"I100"},{"$f":"Planning!B108","v":0},{"$f":"Planning!C108","v":0},{"$f":"Planning!D108","v":0},{"$f":"Planning!E108","v":0},{"$f":"IF(Planning!G108<>0,Planning!G108,\"\")","v":""},{"$f":"Planning!H108","v":0},{"$f":"Planning!AA108","v":0},{"$f":"IF(OR(W124=\"1\",AND(W124<>\"1\",G124=Lists!$A$17)),Y124,0)","v":0},null,{"$f":"IF(AND(W124=\"2\",G124<>Lists!$A$17),AA124,Z124)","v":""},"",{"$f":"Planning!AB108","v":{"v":0,"d":"0.00"}},{"$f":"'Month 6'!M124+'Month 6'!N124-'Month 6'!O124","v":{"v":0,"d":"0.00"}},null,"","",{"$f":"SUMIFS($J$25:$J$224,$C$25:$C$224,$C124,$G$25:$G$224,Lists!$A$16)","v":0},0,null,"",null,{"$f":"IF(C124=0,\"\",LEFT(INDEX(Lists!$H$5:$H$49,MATCH(C124,Lists!$G$5:$G$49,0),1),1))","v":""},null,{"$f":"'Month 6'!H124+'Month 6'!I124-'Month 6'!J124","v":0},"","",null,"0"]
[{"$f":"Planning!A109","v":"I101"},{"$f":"Planning!B109","v":0},{"$f":"Planning!C109","v":0},{"$f":"Planning!D109","v":0},{"$f":"Planning!E109","v":0},{"$f":"IF(Planning!G109<>0,Planning!G109,\"\")","v":""},{"$f":"Planning!H109","v":0},{"$f":"Planning!AA109","v":0},{"$f":"IF(OR(W125=\"1\",AND(W125<>\"1\",G125=Lists!$A$17)),Y125,0)","v":0},null,{"$f":"IF(AND(W125=\"2\",G125<>Lists!$A$17),AA125,Z125)","v":""},"",{"$f":"Planning!AB109","v":{"v":0,"d":"0.00"}},{"$f":"'Month 6'!M125+'Month 6'!N125-'Month 6'!O125","v":{"v":0,"d":"0.00"}},null,"","",{"$f":"SUMIFS($J$25:$J$224,$C$25:$C$224,$C125,$G$25:$G$224,Lists!$A$16)","v":0},0,null,"",null,{"$f":"IF(C125=0,\"\",LEFT(INDEX(Lists!$H$5:$H$49,MATCH(C125,Lists!$G$5:$G$49,0),1),1))","v":""},null,{"$f":"'Month 6'!H125+'Month 6'!I125-'Month 6'!J125","v":0},"","",null,"0"]
[{"$f":"Planning!A110","v":"I102"},{"$f":"Planning!B110","v":0},{"$f":"Planning!C110","v":0},{"$f":"Planning!D110","v":0},{"$f":"Planning!E110","v":0},{"$f":"IF(Planning!G110<>0,Planning!G110,\"\")","v":""},{"$f":"Planning!H110","v":0},{"$f":"Planning!AA110","v":0},{"$f":"IF(OR(W126=\"1\",AND(W126<>\"1\",G126=Lists!$A$17)),Y126,0)","v":0},null,{"$f":"IF(AND(W126=\"2\",G126<>Lists!$A$17),AA126,Z126)","v":""},"",{"$f":"Planning!AB110","v":{"v":0,"d":"0.00"}},{"$f":"'Month 6'!M126+'Month 6'!N126-'Month 6'!O126","v":{"v":0,"d":"0.00"}},null,"","",{"$f":"SUMIFS($J$25:$J$224,$C$25:$C$224,$C126,$G$25:$G$224,Lists!$A$16)","v":0},0,null,"",null,{"$f":"IF(C126=0,\"\",LEFT(INDEX(Lists!$H$5:$H$49,MATCH(C126,Lists!$G$5:$G$49,0),1),1))","v":""},null,{"$f":"'Month 6'!H126+'Month 6'!I126-'Month 6'!J126","v":0},"","",null,"0"]
[{"$f":"Planning!A111","v":"I103"},{"$f":"Planning!B111","v":0},{"$f":"Planning!C111","v":0},{"$f":"Planning!D111","v":0},{"$f":"Planning!E111","v":0},{"$f":"IF(Planning!G111<>0,Planning!G111,\"\")","v":""},{"$f":"Planning!H111","v":0},{"$f":"Planning!AA111","v":0},{"$f":"IF(OR(W127=\"1\",AND(W127<>\"1\",G127=Lists!$A$17)),Y127,0)","v":0},null,{"$f":"IF(AND(W127=\"2\",G127<>Lists!$A$17),AA127,Z127)","v":""},"",{"$f":"Planning!AB111","v":{"v":0,"d":"0.00"}},{"$f":"'Month 6'!M127+'Month 6'!N127-'Month 6'!O127","v":{"v":0,"d":"0.00"}},null,"","",{"$f":"SUMIFS($J$25:$J$224,$C$25:$C$224,$C127,$G$25:$G$224,Lists!$A$16)","v":0},0,null,"",null,{"$f":"IF(C127=0,\"\",LEFT(INDEX(Lists!$H$5:$H$49,MATCH(C127,Lists!$G$5:$G$49,0),1),1))","v":""},null,{"$f":"'Month 6'!H127+'Month 6'!I127-'Month 6'!J127","v":0},"","",null,"0"]
[{"$f":"Planning!A112","v":"I104"},{"$f":"Planning!B112","v":0},{"$f":"Planning!C112","v":0},{"$f":"Planning!D112","v":0},{"$f":"Planning!E112","v":0},{"$f":"IF(Planning!G112<>0,Planning!G112,\"\")","v":""},{"$f":"Planning!H112","v":0},{"$f":"Planning!AA112","v":0},{"$f":"IF(OR(W128=\"1\",AND(W128<>\"1\",G128=Lists!$A$17)),Y128,0)","v":0},null,{"$f":"IF(AND(W128=\"2\",G128<>Lists!$A$17),AA128,Z128)","v":""},"",{"$f":"Planning!AB112","v":{"v":0,"d":"0.00"}},{"$f":"'Month 6'!M128+'Month 6'!N128-'Month 6'!O128","v":{"v":0,"d":"0.00"}},null,"","",{"$f":"SUMIFS($J$25:$J$224,$C$25:$C$224,$C128,$G$25:$G$224,Lists!$A$16)","v":0},0,null,"",null,{"$f":"IF(C128=0,\"\",LEFT(INDEX(Lists!$H$5:$H$49,MATCH(C128,Lists!$G$5:$G$49,0),1),1))","v":""},null,{"$f":"'Month 6'!H128+'Month 6'!I128-'Month 6'!J128","v":0},"","",null,"0"]
[{"$f":"Planning!A113","v":"I105"},{"$f":"Planning!B113","v":0},{"$f":"Planning!C113","v":0},{"$f":"Planning!D113","v":0},{"$f":"Planning!E113","v":0},{"$f":"IF(Planning!G113<>0,Planning!G113,\"\")","v":""},{"$f":"Planning!H113","v":0},{"$f":"Planning!AA113","v":0},{"$f":"IF(OR(W129=\"1\",AND(W129<>\"1\",G129=Lists!$A$17)),Y129,0)","v":0},null,{"$f":"IF(AND(W129=\"2\",G129<>Lists!$A$17),AA129,Z129)","v":""},"",{"$f":"Planning!AB113","v":{"v":0,"d":"0.00"}},{"$f":"'Month 6'!M129+'Month 6'!N129-'Month 6'!O129","v":{"v":0,"d":"0.00"}},null,"","",{"$f":"SUMIFS($J$25:$J$224,$C$25:$C$224,$C129,$G$25:$G$224,Lists!$A$16)","v":0},0,null,"",null,{"$f":"IF(C129=0,\"\",LEFT(INDEX(Lists!$H$5:$H$49,MATCH(C129,Lists!$G$5:$G$49,0),1),1))","v":""},null,{"$f":"'Month 6'!H129+'Month 6'!I129-'Month 6'!J129","v":0},"","",null,"0"]
[{"$f":"Planning!A114","v":"I106"},{"$f":"Planning!B114","v":0},{"$f":"Planning!C114","v":0},{"$f":"Planning!D114","v":0},{"$f":"Planning!E114","v":0},{"$f":"IF(Planning!G114<>0,Planning!G114,\"\")","v":""},{"$f":"Planning!H114","v":0},{"$f":"Planning!AA114","v":0},{"$f":"IF(OR(W130=\"1\",AND(W130<>\"1\",G130=Lists!$A$17)),Y130,0)","v":0},null,{"$f":"IF(AND(W130=\"2\",G130<>Lists!$A$17),AA130,Z130)","v":""},"",{"$f":"Planning!AB114","v":{"v":0,"d":"0.00"}},{"$f":"'Month 6'!M130+'Month 6'!N130-'Month 6'!O130","v":{"v":0,"d":"0.00"}},null,"","",{"$f":"SUMIFS($J$25:$J$224,$C$25:$C$224,$C130,$G$25:$G$224,Lists!$A$16)","v":0},0,null,"",null,{"$f":"IF(C130=0,\"\",LEFT(INDEX(Lists!$H$5:$H$49,MATCH(C130,Lists!$G$5:$G$49,0),1),1))","v":""},null,{"$f":"'Month 6'!H130+'Month 6'!I130-'Month 6'!J130","v":0},"","",null,"0"]
[{"$f":"Planning!A115","v":"I107"},{"$f":"Planning!B115","v":0},{"$f":"Planning!C115","v":0},{"$f":"Planning!D115","v":0},{"$f":"Planning!E115","v":0},{"$f":"IF(Planning!G115<>0,Planning!G115,\"\")","v":""},{"$f":"Planning!H115","v":0},{"$f":"Planning!AA115","v":0},{"$f":"IF(OR(W131=\"1\",AND(W131<>\"1\",G131=Lists!$A$17)),Y131,0)","v":0},null,{"$f":"IF(AND(W131=\"2\",G131<>Lists!$A$17),AA131,Z131)","v":""},"",{"$f":"Planning!AB115","v":{"v":0,"d":"0.00"}},{"$f":"'Month 6'!M131+'Month 6'!N131-'Month 6'!O131","v":{"v":0,"d":"0.00"}},null,"","",{"$f":"SUMIFS($J$25:$J$224,$C$25:$C$224,$C131,$G$25:$G$224,Lists!$A$16)","v":0},0,null,"",null,{"$f":"IF(C131=0,\"\",LEFT(INDEX(Lists!$H$5:$H$49,MATCH(C131,Lists!$G$5:$G$49,0),1),1))","v":""},null,{"$f":"'Month 6'!H131+'Month 6'!I131-'Month 6'!J131","v":0},"","",null,"0"]
[{"$f":"Planning!A116","v":"I108"},{"$f":"Planning!B116","v":0},{"$f":"Planning!C116","v":0},{"$f":"Planning!D116","v":0},{"$f":"Planning!E116","v":0},{"$f":"IF(Planning!G116<>0,Planning!G116,\"\")","v":""},{"$f":"Planning!H116","v":0},{"$f":"Planning!AA116","v":0},{"$f":"IF(OR(W132=\"1\",AND(W132<>\"1\",G132=Lists!$A$17)),Y132,0)","v":0},null,{"$f":"IF(AND(W132=\"2\",G132<>Lists!$A$17),AA132,Z132)","v":""},"",{"$f":"Planning!AB116","v":{"v":0,"d":"0.00"}},{"$f":"'Month 6'!M132+'Month 6'!N132-'Month 6'!O132","v":{"v":0,"d":"0.00"}},null,"","",{"$f":"SUMIFS($J$25:$J$224,$C$25:$C$224,$C132,$G$25:$G$224,Lists!$A$16)","v":0},0,null,"",null,{"$f":"IF(C132=0,\"\",LEFT(INDEX(Lists!$H$5:$H$49,MATCH(C132,Lists!$G$5:$G$49,0),1),1))","v":""},null,{"$f":"'Month 6'!H132+'Month 6'!I132-'Month 6'!J132","v":0},"","",null,"0"]
[{"$f":"Planning!A117","v":"I109"},{"$f":"Planning!B117","v":0},{"$f":"Planning!C117","v":0},{"$f":"Planning!D117","v":0},{"$f":"Planning!E117","v":0},{"$f":"IF(Planning!G117<>0,Planning!G117,\"\")","v":""},{"$f":"Planning!H117","v":0},{"$f":"Planning!AA117","v":0},{"$f":"IF(OR(W133=\"1\",AND(W133<>\"1\",G133=Lists!$A$17)),Y133,0)","v":0},null,{"$f":"IF(AND(W133=\"2\",G133<>Lists!$A$17),AA133,Z133)","v":""},"",{"$f":"Planning!AB117","v":{"v":0,"d":"0.00"}},{"$f":"'Month 6'!M133+'Month 6'!N133-'Month 6'!O133","v":{"v":0,"d":"0.00"}},null,"","",{"$f":"SUMIFS($J$25:$J$224,$C$25:$C$224,$C133,$G$25:$G$224,Lists!$A$16)","v":0},0,null,"",null,{"$f":"IF(C133=0,\"\",LEFT(INDEX(Lists!$H$5:$H$49,MATCH(C133,Lists!$G$5:$G$49,0),1),1))","v":""},null,{"$f":"'Month 6'!H133+'Month 6'!I133-'Month 6'!J133","v":0},"","",null,"0"]
[{"$f":"Planning!A118","v":"I110"},{"$f":"Planning!B118","v":0},{"$f":"Planning!C118","v":0},{"$f":"Planning!D118","v":0},{"$f":"Planning!E118","v":0},{"$f":"IF(Planning!G118<>0,Planning!G118,\"\")","v":""},{"$f":"Planning!H118","v":0},{"$f":"Planning!AA118","v":0},{"$f":"IF(OR(W134=\"1\",AND(W134<>\"1\",G134=Lists!$A$17)),Y134,0)","v":0},null,{"$f":"IF(AND(W134=\"2\",G134<>Lists!$A$17),AA134,Z134)","v":""},"",{"$f":"Planning!AB118","v":{"v":0,"d":"0.00"}},{"$f":"'Month 6'!M134+'Month 6'!N134-'Month 6'!O134","v":{"v":0,"d":"0.00"}},null,"","",{"$f":"SUMIFS($J$25:$J$224,$C$25:$C$224,$C134,$G$25:$G$224,Lists!$A$16)","v":0},0,null,"",null,{"$f":"IF(C134=0,\"\",LEFT(INDEX(Lists!$H$5:$H$49,MATCH(C134,Lists!$G$5:$G$49,0),1),1))","v":""},null,{"$f":"'Month 6'!H134+'Month 6'!I134-'Month 6'!J134","v":0},"","",null,"0"]
[{"$f":"Planning!A119","v":"I111"},{"$f":"Planning!B119","v":0},{"$f":"Planning!C119","v":0},{"$f":"Planning!D119","v":0},{"$f":"Planning!E119","v":0},{"$f":"IF(Planning!G119<>0,Planning!G119,\"\")","v":""},{"$f":"Planning!H119","v":0},{"$f":"Planning!AA119","v":0},{"$f":"IF(OR(W135=\"1\",AND(W135<>\"1\",G135=Lists!$A$17)),Y135,0)","v":0},null,{"$f":"IF(AND(W135=\"2\",G135<>Lists!$A$17),AA135,Z135)","v":""},"",{"$f":"Planning!AB119","v":{"v":0,"d":"0.00"}},{"$f":"'Month 6'!M135+'Month 6'!N135-'Month 6'!O135","v":{"v":0,"d":"0.00"}},null,"","",{"$f":"SUMIFS($J$25:$J$224,$C$25:$C$224,$C135,$G$25:$G$224,Lists!$A$16)","v":0},0,null,"",null,{"$f":"IF(C135=0,\"\",LEFT(INDEX(Lists!$H$5:$H$49,MATCH(C135,Lists!$G$5:$G$49,0),1),1))","v":""},null,{"$f":"'Month 6'!H135+'Month 6'!I135-'Month 6'!J135","v":0},"","",null,"0"]
[{"$f":"Planning!A120","v":"I112"},{"$f":"Planning!B120","v":0},{"$f":"Planning!C120","v":0},{"$f":"Planning!D120","v":0},{"$f":"Planning!E120","v":0},{"$f":"IF(Planning!G120<>0,Planning!G120,\"\")","v":""},{"$f":"Planning!H120","v":0},{"$f":"Planning!AA120","v":0},{"$f":"IF(OR(W136=\"1\",AND(W136<>\"1\",G136=Lists!$A$17)),Y136,0)","v":0},null,{"$f":"IF(AND(W136=\"2\",G136<>Lists!$A$17),AA136,Z136)","v":""},"",{"$f":"Planning!AB120","v":{"v":0,"d":"0.00"}},{"$f":"'Month 6'!M136+'Month 6'!N136-'Month 6'!O136","v":{"v":0,"d":"0.00"}},null,"","",{"$f":"SUMIFS($J$25:$J$224,$C$25:$C$224,$C136,$G$25:$G$224,Lists!$A$16)","v":0},0,null,"",null,{"$f":"IF(C136=0,\"\",LEFT(INDEX(Lists!$H$5:$H$49,MATCH(C136,Lists!$G$5:$G$49,0),1),1))","v":""},null,{"$f":"'Month 6'!H136+'Month 6'!I136-'Month 6'!J136","v":0},"","",null,"0"]
[{"$f":"Planning!A121","v":"I113"},{"$f":"Planning!B121","v":0},{"$f":"Planning!C121","v":0},{"$f":"Planning!D121","v":0},{"$f":"Planning!E121","v":0},{"$f":"IF(Planning!G121<>0,Planning!G121,\"\")","v":""},{"$f":"Planning!H121","v":0},{"$f":"Planning!AA121","v":0},{"$f":"IF(OR(W137=\"1\",AND(W137<>\"1\",G137=Lists!$A$17)),Y137,0)","v":0},null,{"$f":"IF(AND(W137=\"2\",G137<>Lists!$A$17),AA137,Z137)","v":""},"",{"$f":"Planning!AB121","v":{"v":0,"d":"0.00"}},{"$f":"'Month 6'!M137+'Month 6'!N137-'Month 6'!O137","v":{"v":0,"d":"0.00"}},null,"","",{"$f":"SUMIFS($J$25:$J$224,$C$25:$C$224,$C137,$G$25:$G$224,Lists!$A$16)","v":0},0,null,"",null,{"$f":"IF(C137=0,\"\",LEFT(INDEX(Lists!$H$5:$H$49,MATCH(C137,Lists!$G$5:$G$49,0),1),1))","v":""},null,{"$f":"'Month 6'!H137+'Month 6'!I137-'Month 6'!J137","v":0},"","",null,"0"]
[{"$f":"Planning!A122","v":"I114"},{"$f":"Planning!B122","v":0},{"$f":"Planning!C122","v":0},{"$f":"Planning!D122","v":0},{"$f":"Planning!E122","v":0},{"$f":"IF(Planning!G122<>0,Planning!G122,\"\")","v":""},{"$f":"Planning!H122","v":0},{"$f":"Planning!AA122","v":0},{"$f":"IF(OR(W138=\"1\",AND(W138<>\"1\",G138=Lists!$A$17)),Y138,0)","v":0},null,{"$f":"IF(AND(W138=\"2\",G138<>Lists!$A$17),AA138,Z138)","v":""},"",{"$f":"Planning!AB122","v":{"v":0,"d":"0.00"}},{"$f":"'Month 6'!M138+'Month 6'!N138-'Month 6'!O138","v":{"v":0,"d":"0.00"}},null,"","",{"$f":"SUMIFS($J$25:$J$224,$C$25:$C$224,$C138,$G$25:$G$224,Lists!$A$16)","v":0},0,null,"",null,{"$f":"IF(C138=0,\"\",LEFT(INDEX(Lists!$H$5:$H$49,MATCH(C138,Lists!$G$5:$G$49,0),1),1))","v":""},null,{"$f":"'Month 6'!H138+'Month 6'!I138-'Month 6'!J138","v":0},"","",null,"0"]
[{"$f":"Planning!A123","v":"I115"},{"$f":"Planning!B123","v":0},{"$f":"Planning!C123","v":0},{"$f":"Planning!D123","v":0},{"$f":"Planning!E123","v":0},{"$f":"IF(Planning!G123<>0,Planning!G123,\"\")","v":""},{"$f":"Planning!H123","v":0},{"$f":"Planning!AA123","v":0},{"$f":"IF(OR(W139=\"1\",AND(W139<>\"1\",G139=Lists!$A$17)),Y139,0)","v":0},null,{"$f":"IF(AND(W139=\"2\",G139<>Lists!$A$17),AA139,Z139)","v":""},"",{"$f":"Planning!AB123","v":{"v":0,"d":"0.00"}},{"$f":"'Month 6'!M139+'Month 6'!N139-'Month 6'!O139","v":{"v":0,"d":"0.00"}},null,"","",{"$f":"SUMIFS($J$25:$J$224,$C$25:$C$224,$C139,$G$25:$G$224,Lists!$A$16)","v":0},0,null,"",null,{"$f":"IF(C139=0,\"\",LEFT(INDEX(Lists!$H$5:$H$49,MATCH(C139,Lists!$G$5:$G$49,0),1),1))","v":""},null,{"$f":"'Month 6'!H139+'Month 6'!I139-'Month 6'!J139","v":0},"","",null,"0"]
[{"$f":"Planning!A124","v":"I116"},{"$f":"Planning!B124","v":0},{"$f":"Planning!C124","v":0},{"$f":"Planning!D124","v":0},{"$f":"Planning!E124","v":0},{"$f":"IF(Planning!G124<>0,Planning!G124,\"\")","v":""},{"$f":"Planning!H124","v":0},{"$f":"Planning!AA124","v":0},{"$f":"IF(OR(W140=\"1\",AND(W140<>\"1\",G140=Lists!$A$17)),Y140,0)","v":0},null,{"$f":"IF(AND(W140=\"2\",G140<>Lists!$A$17),AA140,Z140)","v":""},"",{"$f":"Planning!AB124","v":{"v":0,"d":"0.00"}},{"$f":"'Month 6'!M140+'Month 6'!N140-'Month 6'!O140","v":{"v":0,"d":"0.00"}},null,"","",{"$f":"SUMIFS($J$25:$J$224,$C$25:$C$224,$C140,$G$25:$G$224,Lists!$A$16)","v":0},0,null,"",null,{"$f":"IF(C140=0,\"\",LEFT(INDEX(Lists!$H$5:$H$49,MATCH(C140,Lists!$G$5:$G$49,0),1),1))","v":""},null,{"$f":"'Month 6'!H140+'Month 6'!I140-'Month 6'!J140","v":0},"","",null,"0"]
[{"$f":"Planning!A125","v":"I117"},{"$f":"Planning!B125","v":0},{"$f":"Planning!C125","v":0},{"$f":"Planning!D125","v":0},{"$f":"Planning!E125","v":0},{"$f":"IF(Planning!G125<>0,Planning!G125,\"\")","v":""},{"$f":"Planning!H125","v":0},{"$f":"Planning!AA125","v":0},{"$f":"IF(OR(W141=\"1\",AND(W141<>\"1\",G141=Lists!$A$17)),Y141,0)","v":0},null,{"$f":"IF(AND(W141=\"2\",G141<>Lists!$A$17),AA141,Z141)","v":""},"",{"$f":"Planning!AB125","v":{"v":0,"d":"0.00"}},{"$f":"'Month 6'!M141+'Month 6'!N141-'Month 6'!O141","v":{"v":0,"d":"0.00"}},null,"","",{"$f":"SUMIFS($J$25:$J$224,$C$25:$C$224,$C141,$G$25:$G$224,Lists!$A$16)","v":0},0,null,"",null,{"$f":"IF(C141=0,\"\",LEFT(INDEX(Lists!$H$5:$H$49,MATCH(C141,Lists!$G$5:$G$49,0),1),1))","v":""},null,{"$f":"'Month 6'!H141+'Month 6'!I141-'Month 6'!J141","v":0},"","",null,"0"]
[{"$f":"Planning!A126","v":"I118"},{"$f":"Planning!B126","v":0},{"$f":"Planning!C126","v":0},{"$f":"Planning!D126","v":0},{"$f":"Planning!E126","v":0},{"$f":"IF(Planning!G126<>0,Planning!G126,\"\")","v":""},{"$f":"Planning!H126","v":0},{"$f":"Planning!AA126","v":0},{"$f":"IF(OR(W142=\"1\",AND(W142<>\"1\",G142=Lists!$A$17)),Y142,0)","v":0},null,{"$f":"IF(AND(W142=\"2\",G142<>Lists!$A$17),AA142,Z142)","v":""},"",{"$f":"Planning!AB126","v":{"v":0,"d":"0.00"}},{"$f":"'Month 6'!M142+'Month 6'!N142-'Month 6'!O142","v":{"v":0,"d":"0.00"}},null,"","",{"$f":"SUMIFS($J$25:$J$224,$C$25:$C$224,$C142,$G$25:$G$224,Lists!$A$16)","v":0},0,null,"",null,{"$f":"IF(C142=0,\"\",LEFT(INDEX(Lists!$H$5:$H$49,MATCH(C142,Lists!$G$5:$G$49,0),1),1))","v":""},null,{"$f":"'Month 6'!H142+'Month 6'!I142-'Month 6'!J142","v":0},"","",null,"0"]
[{"$f":"Planning!A127","v":"I119"},{"$f":"Planning!B127","v":0},{"$f":"Planning!C127","v":0},{"$f":"Planning!D127","v":0},{"$f":"Planning!E127","v":0},{"$f":"IF(Planning!G127<>0,Planning!G127,\"\")","v":""},{"$f":"Planning!H127","v":0},{"$f":"Planning!AA127","v":0},{"$f":"IF(OR(W143=\"1\",AND(W143<>\"1\",G143=Lists!$A$17)),Y143,0)","v":0},null,{"$f":"IF(AND(W143=\"2\",G143<>Lists!$A$17),AA143,Z143)","v":""},"",{"$f":"Planning!AB127","v":{"v":0,"d":"0.00"}},{"$f":"'Month 6'!M143+'Month 6'!N143-'Month 6'!O143","v":{"v":0,"d":"0.00"}},null,"","",{"$f":"SUMIFS($J$25:$J$224,$C$25:$C$224,$C143,$G$25:$G$224,Lists!$A$16)","v":0},0,null,"",null,{"$f":"IF(C143=0,\"\",LEFT(INDEX(Lists!$H$5:$H$49,MATCH(C143,Lists!$G$5:$G$49,0),1),1))","v":""},null,{"$f":"'Month 6'!H143+'Month 6'!I143-'Month 6'!J143","v":0},"","",null,"0"]
[{"$f":"Planning!A128","v":"I120"},{"$f":"Planning!B128","v":0},{"$f":"Planning!C128","v":0},{"$f":"Planning!D128","v":0},{"$f":"Planning!E128","v":0},{"$f":"IF(Planning!G128<>0,Planning!G128,\"\")","v":""},{"$f":"Planning!H128","v":0},{"$f":"Planning!AA128","v":0},{"$f":"IF(OR(W144=\"1\",AND(W144<>\"1\",G144=Lists!$A$17)),Y144,0)","v":0},null,{"$f":"IF(AND(W144=\"2\",G144<>Lists!$A$17),AA144,Z144)","v":""},"",{"$f":"Planning!AB128","v":{"v":0,"d":"0.00"}},{"$f":"'Month 6'!M144+'Month 6'!N144-'Month 6'!O144","v":{"v":0,"d":"0.00"}},null,"","",{"$f":"SUMIFS($J$25:$J$224,$C$25:$C$224,$C144,$G$25:$G$224,Lists!$A$16)","v":0},0,null,"",null,{"$f":"IF(C144=0,\"\",LEFT(INDEX(Lists!$H$5:$H$49,MATCH(C144,Lists!$G$5:$G$49,0),1),1))","v":""},null,{"$f":"'Month 6'!H144+'Month 6'!I144-'Month 6'!J144","v":0},"","",null,"0"]
[{"$f":"Planning!A129","v":"I121"},{"$f":"Planning!B129","v":0},{"$f":"Planning!C129","v":0},{"$f":"Planning!D129","v":0},{"$f":"Planning!E129","v":0},{"$f":"IF(Planning!G129<>0,Planning!G129,\"\")","v":""},{"$f":"Planning!H129","v":0},{"$f":"Planning!AA129","v":0},{"$f":"IF(OR(W145=\"1\",AND(W145<>\"1\",G145=Lists!$A$17)),Y145,0)","v":0},null,{"$f":"IF(AND(W145=\"2\",G145<>Lists!$A$17),AA145,Z145)","v":""},"",{"$f":"Planning!AB129","v":{"v":0,"d":"0.00"}},{"$f":"'Month 6'!M145+'Month 6'!N145-'Month 6'!O145","v":{"v":0,"d":"0.00"}},null,"","",{"$f":"SUMIFS($J$25:$J$224,$C$25:$C$224,$C145,$G$25:$G$224,Lists!$A$16)","v":0},0,null,"",null,{"$f":"IF(C145=0,\"\",LEFT(INDEX(Lists!$H$5:$H$49,MATCH(C145,Lists!$G$5:$G$49,0),1),1))","v":""},null,{"$f":"'Month 6'!H145+'Month 6'!I145-'Month 6'!J145","v":0},"","",null,"0"]
[{"$f":"Planning!A130","v":"I122"},{"$f":"Planning!B130","v":0},{"$f":"Planning!C130","v":0},{"$f":"Planning!D130","v":0},{"$f":"Planning!E130","v":0},{"$f":"IF(Planning!G130<>0,Planning!G130,\"\")","v":""},{"$f":"Planning!H130","v":0},{"$f":"Planning!AA130","v":0},{"$f":"IF(OR(W146=\"1\",AND(W146<>\"1\",G146=Lists!$A$17)),Y146,0)","v":0},null,{"$f":"IF(AND(W146=\"2\",G146<>Lists!$A$17),AA146,Z146)","v":""},"",{"$f":"Planning!AB130","v":{"v":0,"d":"0.00"}},{"$f":"'Month 6'!M146+'Month 6'!N146-'Month 6'!O146","v":{"v":0,"d":"0.00"}},null,"","",{"$f":"SUMIFS($J$25:$J$224,$C$25:$C$224,$C146,$G$25:$G$224,Lists!$A$16)","v":0},0,null,"",null,{"$f":"IF(C146=0,\"\",LEFT(INDEX(Lists!$H$5:$H$49,MATCH(C146,Lists!$G$5:$G$49,0),1),1))","v":""},null,{"$f":"'Month 6'!H146+'Month 6'!I146-'Month 6'!J146","v":0},"","",null,"0"]
[{"$f":"Planning!A131","v":"I123"},{"$f":"Planning!B131","v":0},{"$f":"Planning!C131","v":0},{"$f":"Planning!D131","v":0},{"$f":"Planning!E131","v":0},{"$f":"IF(Planning!G131<>0,Planning!G131,\"\")","v":""},{"$f":"Planning!H131","v":0},{"$f":"Planning!AA131","v":0},{"$f":"IF(OR(W147=\"1\",AND(W147<>\"1\",G147=Lists!$A$17)),Y147,0)","v":0},null,{"$f":"IF(AND(W147=\"2\",G147<>Lists!$A$17),AA147,Z147)","v":""},"",{"$f":"Planning!AB131","v":{"v":0,"d":"0.00"}},{"$f":"'Month 6'!M147+'Month 6'!N147-'Month 6'!O147","v":{"v":0,"d":"0.00"}},null,"","",{"$f":"SUMIFS($J$25:$J$224,$C$25:$C$224,$C147,$G$25:$G$224,Lists!$A$16)","v":0},0,null,"",null,{"$f":"IF(C147=0,\"\",LEFT(INDEX(Lists!$H$5:$H$49,MATCH(C147,Lists!$G$5:$G$49,0),1),1))","v":""},null,{"$f":"'Month 6'!H147+'Month 6'!I147-'Month 6'!J147","v":0},"","",null,"0"]
[{"$f":"Planning!A132","v":"I124"},{"$f":"Planning!B132","v":0},{"$f":"Planning!C132","v":0},{"$f":"Planning!D132","v":0},{"$f":"Planning!E132","v":0},{"$f":"IF(Planning!G132<>0,Planning!G132,\"\")","v":""},{"$f":"Planning!H132","v":0},{"$f":"Planning!AA132","v":0},{"$f":"IF(OR(W148=\"1\",AND(W148<>\"1\",G148=Lists!$A$17)),Y148,0)","v":0},null,{"$f":"IF(AND(W148=\"2\",G148<>Lists!$A$17),AA148,Z148)","v":""},"",{"$f":"Planning!AB132","v":{"v":0,"d":"0.00"}},{"$f":"'Month 6'!M148+'Month 6'!N148-'Month 6'!O148","v":{"v":0,"d":"0.00"}},null,"","",{"$f":"SUMIFS($J$25:$J$224,$C$25:$C$224,$C148,$G$25:$G$224,Lists!$A$16)","v":0},0,null,"",null,{"$f":"IF(C148=0,\"\",LEFT(INDEX(Lists!$H$5:$H$49,MATCH(C148,Lists!$G$5:$G$49,0),1),1))","v":""},null,{"$f":"'Month 6'!H148+'Month 6'!I148-'Month 6'!J148","v":0},"","",null,"0"]
[{"$f":"Planning!A133","v":"I125"},{"$f":"Planning!B133","v":0},{"$f":"Planning!C133","v":0},{"$f":"Planning!D133","v":0},{"$f":"Planning!E133","v":0},{"$f":"IF(Planning!G133<>0,Planning!G133,\"\")","v":""},{"$f":"Planning!H133","v":0},{"$f":"Planning!AA133","v":0},{"$f":"IF(OR(W149=\"1\",AND(W149<>\"1\",G149=Lists!$A$17)),Y149,0)","v":0},null,{"$f":"IF(AND(W149=\"2\",G149<>Lists!$A$17),AA149,Z149)","v":""},"",{"$f":"Planning!AB133","v":{"v":0,"d":"0.00"}},{"$f":"'Month 6'!M149+'Month 6'!N149-'Month 6'!O149","v":{"v":0,"d":"0.00"}},null,"","",{"$f":"SUMIFS($J$25:$J$224,$C$25:$C$224,$C149,$G$25:$G$224,Lists!$A$16)","v":0},0,null,"",null,{"$f":"IF(C149=0,\"\",LEFT(INDEX(Lists!$H$5:$H$49,MATCH(C149,Lists!$G$5:$G$49,0),1),1))","v":""},null,{"$f":"'Month 6'!H149+'Month 6'!I149-'Month 6'!J149","v":0},"","",null,"0"]
[{"$f":"Planning!A134","v":"I126"},{"$f":"Planning!B134","v":0},{"$f":"Planning!C134","v":0},{"$f":"Planning!D134","v":0},{"$f":"Planning!E134","v":0},{"$f":"IF(Planning!G134<>0,Planning!G134,\"\")","v":""},{"$f":"Planning!H134","v":0},{"$f":"Planning!AA134","v":0},{"$f":"IF(OR(W150=\"1\",AND(W150<>\"1\",G150=Lists!$A$17)),Y150,0)","v":0},null,{"$f":"IF(AND(W150=\"2\",G150<>Lists!$A$17),AA150,Z150)","v":""},"",{"$f":"Planning!AB134","v":{"v":0,"d":"0.00"}},{"$f":"'Month 6'!M150+'Month 6'!N150-'Month 6'!O150","v":{"v":0,"d":"0.00"}},null,"","",{"$f":"SUMIFS($J$25:$J$224,$C$25:$C$224,$C150,$G$25:$G$224,Lists!$A$16)","v":0},0,null,"",null,{"$f":"IF(C150=0,\"\",LEFT(INDEX(Lists!$H$5:$H$49,MATCH(C150,Lists!$G$5:$G$49,0),1),1))","v":""},null,{"$f":"'Month 6'!H150+'Month 6'!I150-'Month 6'!J150","v":0},"","",null,"0"]
[{"$f":"Planning!A135","v":"I127"},{"$f":"Planning!B135","v":0},{"$f":"Planning!C135","v":0},{"$f":"Planning!D135","v":0},{"$f":"Planning!E135","v":0},{"$f":"IF(Planning!G135<>0,Planning!G135,\"\")","v":""},{"$f":"Planning!H135","v":0},{"$f":"Planning!AA135","v":0},{"$f":"IF(OR(W151=\"1\",AND(W151<>\"1\",G151=Lists!$A$17)),Y151,0)","v":0},null,{"$f":"IF(AND(W151=\"2\",G151<>Lists!$A$17),AA151,Z151)","v":""},"",{"$f":"Planning!AB135","v":{"v":0,"d":"0.00"}},{"$f":"'Month 6'!M151+'Month 6'!N151-'Month 6'!O151","v":{"v":0,"d":"0.00"}},null,"","",{"$f":"SUMIFS($J$25:$J$224,$C$25:$C$224,$C151,$G$25:$G$224,Lists!$A$16)","v":0},0,null,"",null,{"$f":"IF(C151=0,\"\",LEFT(INDEX(Lists!$H$5:$H$49,MATCH(C151,Lists!$G$5:$G$49,0),1),1))","v":""},null,{"$f":"'Month 6'!H151+'Month 6'!I151-'Month 6'!J151","v":0},"","",null,"0"]
[{"$f":"Planning!A136","v":"I128"},{"$f":"Planning!B136","v":0},{"$f":"Planning!C136","v":0},{"$f":"Planning!D136","v":0},{"$f":"Planning!E136","v":0},{"$f":"IF(Planning!G136<>0,Planning!G136,\"\")","v":""},{"$f":"Planning!H136","v":0},{"$f":"Planning!AA136","v":0},{"$f":"IF(OR(W152=\"1\",AND(W152<>\"1\",G152=Lists!$A$17)),Y152,0)","v":0},null,{"$f":"IF(AND(W152=\"2\",G152<>Lists!$A$17),AA152,Z152)","v":""},"",{"$f":"Planning!AB136","v":{"v":0,"d":"0.00"}},{"$f":"'Month 6'!M152+'Month 6'!N152-'Month 6'!O152","v":{"v":0,"d":"0.00"}},null,"","",{"$f":"SUMIFS($J$25:$J$224,$C$25:$C$224,$C152,$G$25:$G$224,Lists!$A$16)","v":0},0,null,"",null,{"$f":"IF(C152=0,\"\",LEFT(INDEX(Lists!$H$5:$H$49,MATCH(C152,Lists!$G$5:$G$49,0),1),1))","v":""},null,{"$f":"'Month 6'!H152+'Month 6'!I152-'Month 6'!J152","v":0},"","",null,"0"]
[{"$f":"Planning!A137","v":"I129"},{"$f":"Planning!B137","v":0},{"$f":"Planning!C137","v":0},{"$f":"Planning!D137","v":0},{"$f":"Planning!E137","v":0},{"$f":"IF(Planning!G137<>0,Planning!G137,\"\")","v":""},{"$f":"Planning!H137","v":0},{"$f":"Planning!AA137","v":0},{"$f":"IF(OR(W153=\"1\",AND(W153<>\"1\",G153=Lists!$A$17)),Y153,0)","v":0},null,{"$f":"IF(AND(W153=\"2\",G153<>Lists!$A$17),AA153,Z153)","v":""},{"$f":"IF($U153=ExcluirDelPLogro,\"\",IF(AND(H153=0,I153=0,J153=0),\"\",K153))","v":""},{"$f":"Planning!AB137","v":{"v":0,"d":"0.00"}},{"$f":"'Month 6'!M153+'Month 6'!N153-'Month 6'!O153","v":{"v":0,"d":"0.00"}},null,"",{"$f":"IF($U153=ExcluirDelPLogro,\"\",IF(AND(M153=0,N153=0,O153=0),\"\",P153))","v":""},{"$f":"SUMIFS($J$25:$J$224,$C$25:$C$224,$C153,$G$25:$G$224,Lists!$A$16)","v":0},0,null,"",null,{"$f":"IF(C153=0,\"\",LEFT(INDEX(Lists!$H$5:$H$49,MATCH(C153,Lists!$G$5:$G$49,0),1),1))","v":""},null,{"$f":"'Month 6'!H153+'Month 6'!I153-'Month 6'!J153","v":0},"",{"$f":"IF(AND(H153=0,I153=0,J153=0),\"\",IF(J153>0,H153/J153,0))","v":""},null,"0"]
[{"$f":"Planning!A138","v":"I130"},{"$f":"Planning!B138","v":0},{"$f":"Planning!C138","v":0},{"$f":"Planning!D138","v":0},{"$f":"Planning!E138","v":0},{"$f":"IF(Planning!G138<>0,Planning!G138,\"\")","v":""},{"$f":"Planning!H138","v":0},{"$f":"Planning!AA138","v":0},{"$f":"IF(OR(W154=\"1\",AND(W154<>\"1\",G154=Lists!$A$17)),Y154,0)","v":0},null,{"$f":"IF(AND(W154=\"2\",G154<>Lists!$A$17),AA154,Z154)","v":""},"",{"$f":"Planning!AB138","v":{"v":0,"d":"0.00"}},{"$f":"'Month 6'!M154+'Month 6'!N154-'Month 6'!O154","v":{"v":0,"d":"0.00"}},null,{"$f":"IF(AND(M154=0,N154=0,O154=0),\"\",IF((M154+N154)>0,O154/(M154+N154),O154))","v":""},"",{"$f":"SUMIFS($J$25:$J$224,$C$25:$C$224,$C154,$G$25:$G$224,Lists!$A$16)","v":0},{"$f":"SUMIFS($O$25:$O$224,$C$25:$C$224,$C154,$G$25:$G$224,\"<>0\")","v":0},null,{"$f":"IF(B154=0,\"\",IF(LEFT(B154,1)=\"1\",\"1\",\"2\"))","v":""},null,{"$f":"IF(C154=0,\"\",LEFT(INDEX(Lists!$H$5:$H$49,MATCH(C154,Lists!$G$5:$G$49,0),1),1))","v":""},null,{"$f":"'Month 6'!H154+'Month 6'!I154-'Month 6'!J154","v":0},{"$f":"IF(AND(H154=0,I154=0,J154=0),\"\",IF((H154+I154)>0,J154/(H154+I154),J154))","v":""},"",null,{"$f":"U154&C154","v":"0"}]
[{"$f":"Planning!A139","v":"I131"},{"$f":"Planning!B139","v":0},{"$f":"Planning!C139","v":0},{"$f":"Planning!D139","v":0},{"$f":"Planning!E139","v":0},{"$f":"IF(Planning!G139<>0,Planning!G139,\"\")","v":""},{"$f":"Planning!H139","v":0},{"$f":"Planning!AA139","v":0},{"$f":"IF(OR(W155=\"1\",AND(W155<>\"1\",G155=Lists!$A$17)),Y155,0)","v":0},null,{"$f":"IF(AND(W155=\"2\",G155<>Lists!$A$17),AA155,Z155)","v":""},"",{"$f":"Planning!AB139","v":{"v":0,"d":"0.00"}},{"$f":"'Month 6'!M155+'Month 6'!N155-'Month 6'!O155","v":{"v":0,"d":"0.00"}},null,"","",{"$f":"SUMIFS($J$25:$J$224,$C$25:$C$224,$C155,$G$25:$G$224,Lists!$A$16)","v":0},0,null,"",null,{"$f":"IF(C155=0,\"\",LEFT(INDEX(Lists!$H$5:$H$49,MATCH(C155,Lists!$G$5:$G$49,0),1),1))","v":""},null,{"$f":"'Month 6'!H155+'Month 6'!I155-'Month 6'!J155","v":0},"","",null,"0"]
[{"$f":"Planning!A140","v":"I132"},{"$f":"Planning!B140","v":0},{"$f":"Planning!C140","v":0},{"$f":"Planning!D140","v":0},{"$f":"Planning!E140","v":0},{"$f":"IF(Planning!G140<>0,Planning!G140,\"\")","v":""},{"$f":"Planning!H140","v":0},{"$f":"Planning!AA140","v":0},{"$f":"IF(OR(W156=\"1\",AND(W156<>\"1\",G156=Lists!$A$17)),Y156,0)","v":0},null,{"$f":"IF(AND(W156=\"2\",G156<>Lists!$A$17),AA156,Z156)","v":""},"",{"$f":"Planning!AB140","v":{"v":0,"d":"0.00"}},{"$f":"'Month 6'!M156+'Month 6'!N156-'Month 6'!O156","v":{"v":0,"d":"0.00"}},null,"","",{"$f":"SUMIFS($J$25:$J$224,$C$25:$C$224,$C156,$G$25:$G$224,Lists!$A$16)","v":0},0,null,"",null,{"$f":"IF(C156=0,\"\",LEFT(INDEX(Lists!$H$5:$H$49,MATCH(C156,Lists!$G$5:$G$49,0),1),1))","v":""},null,{"$f":"'Month 6'!H156+'Month 6'!I156-'Month 6'!J156","v":0},"","",null,"0"]
[{"$f":"Planning!A141","v":"I133"},{"$f":"Planning!B141","v":0},{"$f":"Planning!C141","v":0},{"$f":"Planning!D141","v":0},{"$f":"Planning!E141","v":0},{"$f":"IF(Planning!G141<>0,Planning!G141,\"\")","v":""},{"$f":"Planning!H141","v":0},{"$f":"Planning!AA141","v":0},{"$f":"IF(OR(W157=\"1\",AND(W157<>\"1\",G157=Lists!$A$17)),Y157,0)","v":0},null,{"$f":"IF(AND(W157=\"2\",G157<>Lists!$A$17),AA157,Z157)","v":""},"",{"$f":"Planning!AB141","v":{"v":0,"d":"0.00"}},{"$f":"'Month 6'!M157+'Month 6'!N157-'Month 6'!O157","v":{"v":0,"d":"0.00"}},null,"","",{"$f":"SUMIFS($J$25:$J$224,$C$25:$C$224,$C157,$G$25:$G$224,Lists!$A$16)","v":0},0,null,"",null,{"$f":"IF(C157=0,\"\",LEFT(INDEX(Lists!$H$5:$H$49,MATCH(C157,Lists!$G$5:$G$49,0),1),1))","v":""},null,{"$f":"'Month 6'!H157+'Month 6'!I157-'Month 6'!J157","v":0},"","",null,"0"]
[{"$f":"Planning!A142","v":"I134"},{"$f":"Planning!B142","v":0},{"$f":"Planning!C142","v":0},{"$f":"Planning!D142","v":0},{"$f":"Planning!E142","v":0},{"$f":"IF(Planning!G142<>0,Planning!G142,\"\")","v":""},{"$f":"Planning!H142","v":0},{"$f":"Planning!AA142","v":0},{"$f":"IF(OR(W158=\"1\",AND(W158<>\"1\",G158=Lists!$A$17)),Y158,0)","v":0},null,{"$f":"IF(AND(W158=\"2\",G158<>Lists!$A$17),AA158,Z158)","v":""},"",{"$f":"Planning!AB142","v":{"v":0,"d":"0.00"}},{"$f":"'Month 6'!M158+'Month 6'!N158-'Month 6'!O158","v":{"v":0,"d":"0.00"}},null,"","",{"$f":"SUMIFS($J$25:$J$224,$C$25:$C$224,$C158,$G$25:$G$224,Lists!$A$16)","v":0},0,null,"",null,{"$f":"IF(C158=0,\"\",LEFT(INDEX(Lists!$H$5:$H$49,MATCH(C158,Lists!$G$5:$G$49,0),1),1))","v":""},null,{"$f":"'Month 6'!H158+'Month 6'!I158-'Month 6'!J158","v":0},"","",null,"0"]
[{"$f":"Planning!A143","v":"I135"},{"$f":"Planning!B143","v":0},{"$f":"Planning!C143","v":0},{"$f":"Planning!D143","v":0},{"$f":"Planning!E143","v":0},{"$f":"IF(Planning!G143<>0,Planning!G143,\"\")","v":""},{"$f":"Planning!H143","v":0},{"$f":"Planning!AA143","v":0},{"$f":"IF(OR(W159=\"1\",AND(W159<>\"1\",G159=Lists!$A$17)),Y159,0)","v":0},null,{"$f":"IF(AND(W159=\"2\",G159<>Lists!$A$17),AA159,Z159)","v":""},"",{"$f":"Planning!AB143","v":{"v":0,"d":"0.00"}},{"$f":"'Month 6'!M159+'Month 6'!N159-'Month 6'!O159","v":{"v":0,"d":"0.00"}},null,"","",{"$f":"SUMIFS($J$25:$J$224,$C$25:$C$224,$C159,$G$25:$G$224,Lists!$A$16)","v":0},0,null,"",null,{"$f":"IF(C159=0,\"\",LEFT(INDEX(Lists!$H$5:$H$49,MATCH(C159,Lists!$G$5:$G$49,0),1),1))","v":""},null,{"$f":"'Month 6'!H159+'Month 6'!I159-'Month 6'!J159","v":0},"","",null,"0"]
[{"$f":"Planning!A144","v":"I136"},{"$f":"Planning!B144","v":0},{"$f":"Planning!C144","v":0},{"$f":"Planning!D144","v":0},{"$f":"Planning!E144","v":0},{"$f":"IF(Planning!G144<>0,Planning!G144,\"\")","v":""},{"$f":"Planning!H144","v":0},{"$f":"Planning!AA144","v":0},{"$f":"IF(OR(W160=\"1\",AND(W160<>\"1\",G160=Lists!$A$17)),Y160,0)","v":0},null,{"$f":"IF(AND(W160=\"2\",G160<>Lists!$A$17),AA160,Z160)","v":""},"",{"$f":"Planning!AB144","v":{"v":0,"d":"0.00"}},{"$f":"'Month 6'!M160+'Month 6'!N160-'Month 6'!O160","v":{"v":0,"d":"0.00"}},null,"","",{"$f":"SUMIFS($J$25:$J$224,$C$25:$C$224,$C160,$G$25:$G$224,Lists!$A$16)","v":0},0,null,"",null,{"$f":"IF(C160=0,\"\",LEFT(INDEX(Lists!$H$5:$H$49,MATCH(C160,Lists!$G$5:$G$49,0),1),1))","v":""},null,{"$f":"'Month 6'!H160+'Month 6'!I160-'Month 6'!J160","v":0},"","",null,"0"]
[{"$f":"Planning!A145","v":"I137"},{"$f":"Planning!B145","v":0},{"$f":"Planning!C145","v":0},{"$f":"Planning!D145","v":0},{"$f":"Planning!E145","v":0},{"$f":"IF(Planning!G145<>0,Planning!G145,\"\")","v":""},{"$f":"Planning!H145","v":0},{"$f":"Planning!AA145","v":0},{"$f":"IF(OR(W161=\"1\",AND(W161<>\"1\",G161=Lists!$A$17)),Y161,0)","v":0},null,{"$f":"IF(AND(W161=\"2\",G161<>Lists!$A$17),AA161,Z161)","v":""},"",{"$f":"Planning!AB145","v":{"v":0,"d":"0.00"}},{"$f":"'Month 6'!M161+'Month 6'!N161-'Month 6'!O161","v":{"v":0,"d":"0.00"}},null,"","",{"$f":"SUMIFS($J$25:$J$224,$C$25:$C$224,$C161,$G$25:$G$224,Lists!$A$16)","v":0},0,null,"",null,{"$f":"IF(C161=0,\"\",LEFT(INDEX(Lists!$H$5:$H$49,MATCH(C161,Lists!$G$5:$G$49,0),1),1))","v":""},null,{"$f":"'Month 6'!H161+'Month 6'!I161-'Month 6'!J161","v":0},"","",null,"0"]
[{"$f":"Planning!A146","v":"I138"},{"$f":"Planning!B146","v":0},{"$f":"Planning!C146","v":0},{"$f":"Planning!D146","v":0},{"$f":"Planning!E146","v":0},{"$f":"IF(Planning!G146<>0,Planning!G146,\"\")","v":""},{"$f":"Planning!H146","v":0},{"$f":"Planning!AA146","v":0},{"$f":"IF(OR(W162=\"1\",AND(W162<>\"1\",G162=Lists!$A$17)),Y162,0)","v":0},null,{"$f":"IF(AND(W162=\"2\",G162<>Lists!$A$17),AA162,Z162)","v":""},"",{"$f":"Planning!AB146","v":{"v":0,"d":"0.00"}},{"$f":"'Month 6'!M162+'Month 6'!N162-'Month 6'!O162","v":{"v":0,"d":"0.00"}},null,"","",{"$f":"SUMIFS($J$25:$J$224,$C$25:$C$224,$C162,$G$25:$G$224,Lists!$A$16)","v":0},0,null,"",null,{"$f":"IF(C162=0,\"\",LEFT(INDEX(Lists!$H$5:$H$49,MATCH(C162,Lists!$G$5:$G$49,0),1),1))","v":""},null,{"$f":"'Month 6'!H162+'Month 6'!I162-'Month 6'!J162","v":0},"","",null,"0"]
[{"$f":"Planning!A147","v":"I139"},{"$f":"Planning!B147","v":0},{"$f":"Planning!C147","v":0},{"$f":"Planning!D147","v":0},{"$f":"Planning!E147","v":0},{"$f":"IF(Planning!G147<>0,Planning!G147,\"\")","v":""},{"$f":"Planning!H147","v":0},{"$f":"Planning!AA147","v":0},{"$f":"IF(OR(W163=\"1\",AND(W163<>\"1\",G163=Lists!$A$17)),Y163,0)","v":0},null,{"$f":"IF(AND(W163=\"2\",G163<>Lists!$A$17),AA163,Z163)","v":""},"",{"$f":"Planning!AB147","v":{"v":0,"d":"0.00"}},{"$f":"'Month 6'!M163+'Month 6'!N163-'Month 6'!O163","v":{"v":0,"d":"0.00"}},null,"","",{"$f":"SUMIFS($J$25:$J$224,$C$25:$C$224,$C163,$G$25:$G$224,Lists!$A$16)","v":0},0,null,"",null,{"$f":"IF(C163=0,\"\",LEFT(INDEX(Lists!$H$5:$H$49,MATCH(C163,Lists!$G$5:$G$49,0),1),1))","v":""},null,{"$f":"'Month 6'!H163+'Month 6'!I163-'Month 6'!J163","v":0},"","",null,"0"]
[{"$f":"Planning!A148","v":"I140"},{"$f":"Planning!B148","v":0},{"$f":"Planning!C148","v":0},{"$f":"Planning!D148","v":0},{"$f":"Planning!E148","v":0},{"$f":"IF(Planning!G148<>0,Planning!G148,\"\")","v":""},{"$f":"Planning!H148","v":0},{"$f":"Planning!AA148","v":0},{"$f":"IF(OR(W164=\"1\",AND(W164<>\"1\",G164=Lists!$A$17)),Y164,0)","v":0},null,{"$f":"IF(AND(W164=\"2\",G164<>Lists!$A$17),AA164,Z164)","v":""},"",{"$f":"Planning!AB148","v":{"v":0,"d":"0.00"}},{"$f":"'Month 6'!M164+'Month 6'!N164-'Month 6'!O164","v":{"v":0,"d":"0.00"}},null,"","",{"$f":"SUMIFS($J$25:$J$224,$C$25:$C$224,$C164,$G$25:$G$224,Lists!$A$16)","v":0},0,null,"",null,{"$f":"IF(C164=0,\"\",LEFT(INDEX(Lists!$H$5:$H$49,MATCH(C164,Lists!$G$5:$G$49,0),1),1))","v":""},null,{"$f":"'Month 6'!H164+'Month 6'!I164-'Month 6'!J164","v":0},"","",null,"0"]
[{"$f":"Planning!A149","v":"I141"},{"$f":"Planning!B149","v":0},{"$f":"Planning!C149","v":0},{"$f":"Planning!D149","v":0},{"$f":"Planning!E149","v":0},{"$f":"IF(Planning!G149<>0,Planning!G149,\"\")","v":""},{"$f":"Planning!H149","v":0},{"$f":"Planning!AA149","v":0},{"$f":"IF(OR(W165=\"1\",AND(W165<>\"1\",G165=Lists!$A$17)),Y165,0)","v":0},null,{"$f":"IF(AND(W165=\"2\",G165<>Lists!$A$17),AA165,Z165)","v":""},"",{"$f":"Planning!AB149","v":{"v":0,"d":"0.00"}},{"$f":"'Month 6'!M165+'Month 6'!N165-'Month 6'!O165","v":{"v":0,"d":"0.00"}},null,"","",{"$f":"SUMIFS($J$25:$J$224,$C$25:$C$224,$C165,$G$25:$G$224,Lists!$A$16)","v":0},0,null,"",null,{"$f":"IF(C165=0,\"\",LEFT(INDEX(Lists!$H$5:$H$49,MATCH(C165,Lists!$G$5:$G$49,0),1),1))","v":""},null,{"$f":"'Month 6'!H165+'Month 6'!I165-'Month 6'!J165","v":0},"","",null,"0"]
[{"$f":"Planning!A150","v":"I142"},{"$f":"Planning!B150","v":0},{"$f":"Planning!C150","v":0},{"$f":"Planning!D150","v":0},{"$f":"Planning!E150","v":0},{"$f":"IF(Planning!G150<>0,Planning!G150,\"\")","v":""},{"$f":"Planning!H150","v":0},{"$f":"Planning!AA150","v":0},{"$f":"IF(OR(W166=\"1\",AND(W166<>\"1\",G166=Lists!$A$17)),Y166,0)","v":0},null,{"$f":"IF(AND(W166=\"2\",G166<>Lists!$A$17),AA166,Z166)","v":""},"",{"$f":"Planning!AB150","v":{"v":0,"d":"0.00"}},{"$f":"'Month 6'!M166+'Month 6'!N166-'Month 6'!O166","v":{"v":0,"d":"0.00"}},null,"","",{"$f":"SUMIFS($J$25:$J$224,$C$25:$C$224,$C166,$G$25:$G$224,Lists!$A$16)","v":0},0,null,"",null,{"$f":"IF(C166=0,\"\",LEFT(INDEX(Lists!$H$5:$H$49,MATCH(C166,Lists!$G$5:$G$49,0),1),1))","v":""},null,{"$f":"'Month 6'!H166+'Month 6'!I166-'Month 6'!J166","v":0},"","",null,"0"]
[{"$f":"Planning!A151","v":"I143"},{"$f":"Planning!B151","v":0},{"$f":"Planning!C151","v":0},{"$f":"Planning!D151","v":0},{"$f":"Planning!E151","v":0},{"$f":"IF(Planning!G151<>0,Planning!G151,\"\")","v":""},{"$f":"Planning!H151","v":0},{"$f":"Planning!AA151","v":0},{"$f":"IF(OR(W167=\"1\",AND(W167<>\"1\",G167=Lists!$A$17)),Y167,0)","v":0},null,{"$f":"IF(AND(W167=\"2\",G167<>Lists!$A$17),AA167,Z167)","v":""},"",{"$f":"Planning!AB151","v":{"v":0,"d":"0.00"}},{"$f":"'Month 6'!M167+'Month 6'!N167-'Month 6'!O167","v":{"v":0,"d":"0.00"}},null,"","",{"$f":"SUMIFS($J$25:$J$224,$C$25:$C$224,$C167,$G$25:$G$224,Lists!$A$16)","v":0},0,null,"",null,{"$f":"IF(C167=0,\"\",LEFT(INDEX(Lists!$H$5:$H$49,MATCH(C167,Lists!$G$5:$G$49,0),1),1))","v":""},null,{"$f":"'Month 6'!H167+'Month 6'!I167-'Month 6'!J167","v":0},"","",null,"0"]
[{"$f":"Planning!A152","v":"I144"},{"$f":"Planning!B152","v":0},{"$f":"Planning!C152","v":0},{"$f":"Planning!D152","v":0},{"$f":"Planning!E152","v":0},{"$f":"IF(Planning!G152<>0,Planning!G152,\"\")","v":""},{"$f":"Planning!H152","v":0},{"$f":"Planning!AA152","v":0},{"$f":"IF(OR(W168=\"1\",AND(W168<>\"1\",G168=Lists!$A$17)),Y168,0)","v":0},null,{"$f":"IF(AND(W168=\"2\",G168<>Lists!$A$17),AA168,Z168)","v":""},"",{"$f":"Planning!AB152","v":{"v":0,"d":"0.00"}},{"$f":"'Month 6'!M168+'Month 6'!N168-'Month 6'!O168","v":{"v":0,"d":"0.00"}},null,"","",{"$f":"SUMIFS($J$25:$J$224,$C$25:$C$224,$C168,$G$25:$G$224,Lists!$A$16)","v":0},0,null,"",null,{"$f":"IF(C168=0,\"\",LEFT(INDEX(Lists!$H$5:$H$49,MATCH(C168,Lists!$G$5:$G$49,0),1),1))","v":""},null,{"$f":"'Month 6'!H168+'Month 6'!I168-'Month 6'!J168","v":0},"","",null,"0"]
[{"$f":"Planning!A153","v":"I145"},{"$f":"Planning!B153","v":0},{"$f":"Planning!C153","v":0},{"$f":"Planning!D153","v":0},{"$f":"Planning!E153","v":0},{"$f":"IF(Planning!G153<>0,Planning!G153,\"\")","v":""},{"$f":"Planning!H153","v":0},{"$f":"Planning!AA153","v":0},{"$f":"IF(OR(W169=\"1\",AND(W169<>\"1\",G169=Lists!$A$17)),Y169,0)","v":0},null,{"$f":"IF(AND(W169=\"2\",G169<>Lists!$A$17),AA169,Z169)","v":""},"",{"$f":"Planning!AB153","v":{"v":0,"d":"0.00"}},{"$f":"'Month 6'!M169+'Month 6'!N169-'Month 6'!O169","v":{"v":0,"d":"0.00"}},null,"","",{"$f":"SUMIFS($J$25:$J$224,$C$25:$C$224,$C169,$G$25:$G$224,Lists!$A$16)","v":0},0,null,"",null,{"$f":"IF(C169=0,\"\",LEFT(INDEX(Lists!$H$5:$H$49,MATCH(C169,Lists!$G$5:$G$49,0),1),1))","v":""},null,{"$f":"'Month 6'!H169+'Month 6'!I169-'Month 6'!J169","v":0},"","",null,"0"]
[{"$f":"Planning!A154","v":"I146"},{"$f":"Planning!B154","v":0},{"$f":"Planning!C154","v":0},{"$f":"Planning!D154","v":0},{"$f":"Planning!E154","v":0},{"$f":"IF(Planning!G154<>0,Planning!G154,\"\")","v":""},{"$f":"Planning!H154","v":0},{"$f":"Planning!AA154","v":0},{"$f":"IF(OR(W170=\"1\",AND(W170<>\"1\",G170=Lists!$A$17)),Y170,0)","v":0},null,{"$f":"IF(AND(W170=\"2\",G170<>Lists!$A$17),AA170,Z170)","v":""},"",{"$f":"Planning!AB154","v":{"v":0,"d":"0.00"}},{"$f":"'Month 6'!M170+'Month 6'!N170-'Month 6'!O170","v":{"v":0,"d":"0.00"}},null,"","",{"$f":"SUMIFS($J$25:$J$224,$C$25:$C$224,$C170,$G$25:$G$224,Lists!$A$16)","v":0},0,null,"",null,{"$f":"IF(C170=0,\"\",LEFT(INDEX(Lists!$H$5:$H$49,MATCH(C170,Lists!$G$5:$G$49,0),1),1))","v":""},null,{"$f":"'Month 6'!H170+'Month 6'!I170-'Month 6'!J170","v":0},"","",null,"0"]
[{"$f":"Planning!A155","v":"I147"},{"$f":"Planning!B155","v":0},{"$f":"Planning!C155","v":0},{"$f":"Planning!D155","v":0},{"$f":"Planning!E155","v":0},{"$f":"IF(Planning!G155<>0,Planning!G155,\"\")","v":""},{"$f":"Planning!H155","v":0},{"$f":"Planning!AA155","v":0},{"$f":"IF(OR(W171=\"1\",AND(W171<>\"1\",G171=Lists!$A$17)),Y171,0)","v":0},null,{"$f":"IF(AND(W171=\"2\",G171<>Lists!$A$17),AA171,Z171)","v":""},"",{"$f":"Planning!AB155","v":{"v":0,"d":"0.00"}},{"$f":"'Month 6'!M171+'Month 6'!N171-'Month 6'!O171","v":{"v":0,"d":"0.00"}},null,"","",{"$f":"SUMIFS($J$25:$J$224,$C$25:$C$224,$C171,$G$25:$G$224,Lists!$A$16)","v":0},0,null,"",null,{"$f":"IF(C171=0,\"\",LEFT(INDEX(Lists!$H$5:$H$49,MATCH(C171,Lists!$G$5:$G$49,0),1),1))","v":""},null,{"$f":"'Month 6'!H171+'Month 6'!I171-'Month 6'!J171","v":0},"","",null,"0"]
[{"$f":"Planning!A156","v":"I148"},{"$f":"Planning!B156","v":0},{"$f":"Planning!C156","v":0},{"$f":"Planning!D156","v":0},{"$f":"Planning!E156","v":0},{"$f":"IF(Planning!G156<>0,Planning!G156,\"\")","v":""},{"$f":"Planning!H156","v":0},{"$f":"Planning!AA156","v":0},{"$f":"IF(OR(W172=\"1\",AND(W172<>\"1\",G172=Lists!$A$17)),Y172,0)","v":0},null,{"$f":"IF(AND(W172=\"2\",G172<>Lists!$A$17),AA172,Z172)","v":""},"",{"$f":"Planning!AB156","v":{"v":0,"d":"0.00"}},{"$f":"'Month 6'!M172+'Month 6'!N172-'Month 6'!O172","v":{"v":0,"d":"0.00"}},null,"","",{"$f":"SUMIFS($J$25:$J$224,$C$25:$C$224,$C172,$G$25:$G$224,Lists!$A$16)","v":0},0,null,"",null,{"$f":"IF(C172=0,\"\",LEFT(INDEX(Lists!$H$5:$H$49,MATCH(C172,Lists!$G$5:$G$49,0),1),1))","v":""},null,{"$f":"'Month 6'!H172+'Month 6'!I172-'Month 6'!J172","v":0},"","",null,"0"]
[{"$f":"Planning!A157","v":"I149"},{"$f":"Planning!B157","v":0},{"$f":"Planning!C157","v":0},{"$f":"Planning!D157","v":0},{"$f":"Planning!E157","v":0},{"$f":"IF(Planning!G157<>0,Planning!G157,\"\")","v":""},{"$f":"Planning!H157","v":0},{"$f":"Planning!AA157","v":0},{"$f":"IF(OR(W173=\"1\",AND(W173<>\"1\",G173=Lists!$A$17)),Y173,0)","v":0},null,{"$f":"IF(AND(W173=\"2\",G173<>Lists!$A$17),AA173,Z173)","v":""},"",{"$f":"Planning!AB157","v":{"v":0,"d":"0.00"}},{"$f":"'Month 6'!M173+'Month 6'!N173-'Month 6'!O173","v":{"v":0,"d":"0.00"}},null,"","",{"$f":"SUMIFS($J$25:$J$224,$C$25:$C$224,$C173,$G$25:$G$224,Lists!$A$16)","v":0},0,null,"",null,{"$f":"IF(C173=0,\"\",LEFT(INDEX(Lists!$H$5:$H$49,MATCH(C173,Lists!$G$5:$G$49,0),1),1))","v":""},null,{"$f":"'Month 6'!H173+'Month 6'!I173-'Month 6'!J173","v":0},"","",null,"0"]
[{"$f":"Planning!A158","v":"I150"},{"$f":"Planning!B158","v":0},{"$f":"Planning!C158","v":0},{"$f":"Planning!D158","v":0},{"$f":"Planning!E158","v":0},{"$f":"IF(Planning!G158<>0,Planning!G158,\"\")","v":""},{"$f":"Planning!H158","v":0},{"$f":"Planning!AA158","v":0},{"$f":"IF(OR(W174=\"1\",AND(W174<>\"1\",G174=Lists!$A$17)),Y174,0)","v":0},null,{"$f":"IF(AND(W174=\"2\",G174<>Lists!$A$17),AA174,Z174)","v":""},"",{"$f":"Planning!AB158","v":{"v":0,"d":"0.00"}},{"$f":"'Month 6'!M174+'Month 6'!N174-'Month 6'!O174","v":{"v":0,"d":"0.00"}},null,"","",{"$f":"SUMIFS($J$25:$J$224,$C$25:$C$224,$C174,$G$25:$G$224,Lists!$A$16)","v":0},0,null,"",null,{"$f":"IF(C174=0,\"\",LEFT(INDEX(Lists!$H$5:$H$49,MATCH(C174,Lists!$G$5:$G$49,0),1),1))","v":""},null,{"$f":"'Month 6'!H174+'Month 6'!I174-'Month 6'!J174","v":0},"","",null,"0"]
[{"$f":"Planning!A159","v":"I151"},{"$f":"Planning!B159","v":0},{"$f":"Planning!C159","v":0},{"$f":"Planning!D159","v":0},{"$f":"Planning!E159","v":0},{"$f":"IF(Planning!G159<>0,Planning!G159,\"\")","v":""},{"$f":"Planning!H159","v":0},{"$f":"Planning!AA159","v":0},{"$f":"IF(OR(W175=\"1\",AND(W175<>\"1\",G175=Lists!$A$17)),Y175,0)","v":0},null,{"$f":"IF(AND(W175=\"2\",G175<>Lists!$A$17),AA175,Z175)","v":""},"",{"$f":"Planning!AB159","v":{"v":0,"d":"0.00"}},{"$f":"'Month 6'!M175+'Month 6'!N175-'Month 6'!O175","v":{"v":0,"d":"0.00"}},null,"","",{"$f":"SUMIFS($J$25:$J$224,$C$25:$C$224,$C175,$G$25:$G$224,Lists!$A$16)","v":0},0,null,"",null,{"$f":"IF(C175=0,\"\",LEFT(INDEX(Lists!$H$5:$H$49,MATCH(C175,Lists!$G$5:$G$49,0),1),1))","v":""},null,{"$f":"'Month 6'!H175+'Month 6'!I175-'Month 6'!J175","v":0},"","",null,"0"]
[{"$f":"Planning!A160","v":"I152"},{"$f":"Planning!B160","v":0},{"$f":"Planning!C160","v":0},{"$f":"Planning!D160","v":0},{"$f":"Planning!E160","v":0},{"$f":"IF(Planning!G160<>0,Planning!G160,\"\")","v":""},{"$f":"Planning!H160","v":0},{"$f":"Planning!AA160","v":0},{"$f":"IF(OR(W176=\"1\",AND(W176<>\"1\",G176=Lists!$A$17)),Y176,0)","v":0},null,{"$f":"IF(AND(W176=\"2\",G176<>Lists!$A$17),AA176,Z176)","v":""},"",{"$f":"Planning!AB160","v":{"v":0,"d":"0.00"}},{"$f":"'Month 6'!M176+'Month 6'!N176-'Month 6'!O176","v":{"v":0,"d":"0.00"}},null,"","",{"$f":"SUMIFS($J$25:$J$224,$C$25:$C$224,$C176,$G$25:$G$224,Lists!$A$16)","v":0},0,null,"",null,{"$f":"IF(C176=0,\"\",LEFT(INDEX(Lists!$H$5:$H$49,MATCH(C176,Lists!$G$5:$G$49,0),1),1))","v":""},null,{"$f":"'Month 6'!H176+'Month 6'!I176-'Month 6'!J176","v":0},"","",null,"0"]
[{"$f":"Planning!A161","v":"I153"},{"$f":"Planning!B161","v":0},{"$f":"Planning!C161","v":0},{"$f":"Planning!D161","v":0},{"$f":"Planning!E161","v":0},{"$f":"IF(Planning!G161<>0,Planning!G161,\"\")","v":""},{"$f":"Planning!H161","v":0},{"$f":"Planning!AA161","v":0},{"$f":"IF(OR(W177=\"1\",AND(W177<>\"1\",G177=Lists!$A$17)),Y177,0)","v":0},null,{"$f":"IF(AND(W177=\"2\",G177<>Lists!$A$17),AA177,Z177)","v":""},"",{"$f":"Planning!AB161","v":{"v":0,"d":"0.00"}},{"$f":"'Month 6'!M177+'Month 6'!N177-'Month 6'!O177","v":{"v":0,"d":"0.00"}},null,"","",{"$f":"SUMIFS($J$25:$J$224,$C$25:$C$224,$C177,$G$25:$G$224,Lists!$A$16)","v":0},0,null,"",null,{"$f":"IF(C177=0,\"\",LEFT(INDEX(Lists!$H$5:$H$49,MATCH(C177,Lists!$G$5:$G$49,0),1),1))","v":""},null,{"$f":"'Month 6'!H177+'Month 6'!I177-'Month 6'!J177","v":0},"","",null,"0"]
[{"$f":"Planning!A162","v":"I154"},{"$f":"Planning!B162","v":0},{"$f":"Planning!C162","v":0},{"$f":"Planning!D162","v":0},{"$f":"Planning!E162","v":0},{"$f":"IF(Planning!G162<>0,Planning!G162,\"\")","v":""},{"$f":"Planning!H162","v":0},{"$f":"Planning!AA162","v":0},{"$f":"IF(OR(W178=\"1\",AND(W178<>\"1\",G178=Lists!$A$17)),Y178,0)","v":0},null,{"$f":"IF(AND(W178=\"2\",G178<>Lists!$A$17),AA178,Z178)","v":""},"",{"$f":"Planning!AB162","v":{"v":0,"d":"0.00"}},{"$f":"'Month 6'!M178+'Month 6'!N178-'Month 6'!O178","v":{"v":0,"d":"0.00"}},null,"","",{"$f":"SUMIFS($J$25:$J$224,$C$25:$C$224,$C178,$G$25:$G$224,Lists!$A$16)","v":0},0,null,"",null,{"$f":"IF(C178=0,\"\",LEFT(INDEX(Lists!$H$5:$H$49,MATCH(C178,Lists!$G$5:$G$49,0),1),1))","v":""},null,{"$f":"'Month 6'!H178+'Month 6'!I178-'Month 6'!J178","v":0},"","",null,"0"]
[{"$f":"Planning!A163","v":"I155"},{"$f":"Planning!B163","v":0},{"$f":"Planning!C163","v":0},{"$f":"Planning!D163","v":0},{"$f":"Planning!E163","v":0},{"$f":"IF(Planning!G163<>0,Planning!G163,\"\")","v":""},{"$f":"Planning!H163","v":0},{"$f":"Planning!AA163","v":0},{"$f":"IF(OR(W179=\"1\",AND(W179<>\"1\",G179=Lists!$A$17)),Y179,0)","v":0},null,{"$f":"IF(AND(W179=\"2\",G179<>Lists!$A$17),AA179,Z179)","v":""},"",{"$f":"Planning!AB163","v":{"v":0,"d":"0.00"}},{"$f":"'Month 6'!M179+'Month 6'!N179-'Month 6'!O179","v":{"v":0,"d":"0.00"}},null,"","",{"$f":"SUMIFS($J$25:$J$224,$C$25:$C$224,$C179,$G$25:$G$224,Lists!$A$16)","v":0},0,null,"",null,{"$f":"IF(C179=0,\"\",LEFT(INDEX(Lists!$H$5:$H$49,MATCH(C179,Lists!$G$5:$G$49,0),1),1))","v":""},null,{"$f":"'Month 6'!H179+'Month 6'!I179-'Month 6'!J179","v":0},"","",null,"0"]
[{"$f":"Planning!A164","v":"I156"},{"$f":"Planning!B164","v":0},{"$f":"Planning!C164","v":0},{"$f":"Planning!D164","v":0},{"$f":"Planning!E164","v":0},{"$f":"IF(Planning!G164<>0,Planning!G164,\"\")","v":""},{"$f":"Planning!H164","v":0},{"$f":"Planning!AA164","v":0},{"$f":"IF(OR(W180=\"1\",AND(W180<>\"1\",G180=Lists!$A$17)),Y180,0)","v":0},null,{"$f":"IF(AND(W180=\"2\",G180<>Lists!$A$17),AA180,Z180)","v":""},"",{"$f":"Planning!AB164","v":{"v":0,"d":"0.00"}},{"$f":"'Month 6'!M180+'Month 6'!N180-'Month 6'!O180","v":{"v":0,"d":"0.00"}},null,"","",{"$f":"SUMIFS($J$25:$J$224,$C$25:$C$224,$C180,$G$25:$G$224,Lists!$A$16)","v":0},0,null,"",null,{"$f":"IF(C180=0,\"\",LEFT(INDEX(Lists!$H$5:$H$49,MATCH(C180,Lists!$G$5:$G$49,0),1),1))","v":""},null,{"$f":"'Month 6'!H180+'Month 6'!I180-'Month 6'!J180","v":0},"","",null,"0"]
[{"$f":"Planning!A165","v":"I157"},{"$f":"Planning!B165","v":0},{"$f":"Planning!C165","v":0},{"$f":"Planning!D165","v":0},{"$f":"Planning!E165","v":0},{"$f":"IF(Planning!G165<>0,Planning!G165,\"\")","v":""},{"$f":"Planning!H165","v":0},{"$f":"Planning!AA165","v":0},{"$f":"IF(OR(W181=\"1\",AND(W181<>\"1\",G181=Lists!$A$17)),Y181,0)","v":0},null,{"$f":"IF(AND(W181=\"2\",G181<>Lists!$A$17),AA181,Z181)","v":""},"",{"$f":"Planning!AB165","v":{"v":0,"d":"0.00"}},{"$f":"'Month 6'!M181+'Month 6'!N181-'Month 6'!O181","v":{"v":0,"d":"0.00"}},null,"","",{"$f":"SUMIFS($J$25:$J$224,$C$25:$C$224,$C181,$G$25:$G$224,Lists!$A$16)","v":0},0,null,"",null,{"$f":"IF(C181=0,\"\",LEFT(INDEX(Lists!$H$5:$H$49,MATCH(C181,Lists!$G$5:$G$49,0),1),1))","v":""},null,{"$f":"'Month 6'!H181+'Month 6'!I181-'Month 6'!J181","v":0},"","",null,"0"]
[{"$f":"Planning!A166","v":"I158"},{"$f":"Planning!B166","v":0},{"$f":"Planning!C166","v":0},{"$f":"Planning!D166","v":0},{"$f":"Planning!E166","v":0},{"$f":"IF(Planning!G166<>0,Planning!G166,\"\")","v":""},{"$f":"Planning!H166","v":0},{"$f":"Planning!AA166","v":0},{"$f":"IF(OR(W182=\"1\",AND(W182<>\"1\",G182=Lists!$A$17)),Y182,0)","v":0},null,{"$f":"IF(AND(W182=\"2\",G182<>Lists!$A$17),AA182,Z182)","v":""},"",{"$f":"Planning!AB166","v":{"v":0,"d":"0.00"}},{"$f":"'Month 6'!M182+'Month 6'!N182-'Month 6'!O182","v":{"v":0,"d":"0.00"}},null,"","",{"$f":"SUMIFS($J$25:$J$224,$C$25:$C$224,$C182,$G$25:$G$224,Lists!$A$16)","v":0},0,null,"",null,{"$f":"IF(C182=0,\"\",LEFT(INDEX(Lists!$H$5:$H$49,MATCH(C182,Lists!$G$5:$G$49,0),1),1))","v":""},null,{"$f":"'Month 6'!H182+'Month 6'!I182-'Month 6'!J182","v":0},"","",null,"0"]
[{"$f":"Planning!A167","v":"I159"},{"$f":"Planning!B167","v":0},{"$f":"Planning!C167","v":0},{"$f":"Planning!D167","v":0},{"$f":"Planning!E167","v":0},{"$f":"IF(Planning!G167<>0,Planning!G167,\"\")","v":""},{"$f":"Planning!H167","v":0},{"$f":"Planning!AA167","v":0},{"$f":"IF(OR(W183=\"1\",AND(W183<>\"1\",G183=Lists!$A$17)),Y183,0)","v":0},null,{"$f":"IF(AND(W183=\"2\",G183<>Lists!$A$17),AA183,Z183)","v":""},"",{"$f":"Planning!AB167","v":{"v":0,"d":"0.00"}},{"$f":"'Month 6'!M183+'Month 6'!N183-'Month 6'!O183","v":{"v":0,"d":"0.00"}},null,"","",{"$f":"SUMIFS($J$25:$J$224,$C$25:$C$224,$C183,$G$25:$G$224,Lists!$A$16)","v":0},0,null,"",null,{"$f":"IF(C183=0,\"\",LEFT(INDEX(Lists!$H$5:$H$49,MATCH(C183,Lists!$G$5:$G$49,0),1),1))","v":""},null,{"$f":"'Month 6'!H183+'Month 6'!I183-'Month 6'!J183","v":0},"","",null,"0"]
[{"$f":"Planning!A168","v":"I160"},{"$f":"Planning!B168","v":0},{"$f":"Planning!C168","v":0},{"$f":"Planning!D168","v":0},{"$f":"Planning!E168","v":0},{"$f":"IF(Planning!G168<>0,Planning!G168,\"\")","v":""},{"$f":"Planning!H168","v":0},{"$f":"Planning!AA168","v":0},{"$f":"IF(OR(W184=\"1\",AND(W184<>\"1\",G184=Lists!$A$17)),Y184,0)","v":0},null,{"$f":"IF(AND(W184=\"2\",G184<>Lists!$A$17),AA184,Z184)","v":""},"",{"$f":"Planning!AB168","v":{"v":0,"d":"0.00"}},{"$f":"'Month 6'!M184+'Month 6'!N184-'Month 6'!O184","v":{"v":0,"d":"0.00"}},null,"","",{"$f":"SUMIFS($J$25:$J$224,$C$25:$C$224,$C184,$G$25:$G$224,Lists!$A$16)","v":0},0,null,"",null,{"$f":"IF(C184=0,\"\",LEFT(INDEX(Lists!$H$5:$H$49,MATCH(C184,Lists!$G$5:$G$49,0),1),1))","v":""},null,{"$f":"'Month 6'!H184+'Month 6'!I184-'Month 6'!J184","v":0},"","",null,"0"]
[{"$f":"Planning!A169","v":"I161"},{"$f":"Planning!B169","v":0},{"$f":"Planning!C169","v":0},{"$f":"Planning!D169","v":0},{"$f":"Planning!E169","v":0},{"$f":"IF(Planning!G169<>0,Planning!G169,\"\")","v":""},{"$f":"Planning!H169","v":0},{"$f":"Planning!AA169","v":0},{"$f":"IF(OR(W185=\"1\",AND(W185<>\"1\",G185=Lists!$A$17)),Y185,0)","v":0},null,{"$f":"IF(AND(W185=\"2\",G185<>Lists!$A$17),AA185,Z185)","v":""},{"$f":"IF($U185=ExcluirDelPLogro,\"\",IF(AND(H185=0,I185=0,J185=0),\"\",K185))","v":""},{"$f":"Planning!AB169","v":{"v":0,"d":"0.00"}},{"$f":"'Month 6'!M185+'Month 6'!N185-'Month 6'!O185","v":{"v":0,"d":"0.00"}},null,"",{"$f":"IF($U185=ExcluirDelPLogro,\"\",IF(AND(M185=0,N185=0,O185=0),\"\",P185))","v":""},{"$f":"SUMIFS($J$25:$J$224,$C$25:$C$224,$C185,$G$25:$G$224,Lists!$A$16)","v":0},0,null,"",null,{"$f":"IF(C185=0,\"\",LEFT(INDEX(Lists!$H$5:$H$49,MATCH(C185,Lists!$G$5:$G$49,0),1),1))","v":""},null,{"$f":"'Month 6'!H185+'Month 6'!I185-'Month 6'!J185","v":0},"",{"$f":"IF(AND(H185=0,I185=0,J185=0),\"\",IF(J185>0,H185/J185,0))","v":""},null,"0"]
[{"$f":"Planning!A170","v":"I162"},{"$f":"Planning!B170","v":0},{"$f":"Planning!C170","v":0},{"$f":"Planning!D170","v":0},{"$f":"Planning!E170","v":0},{"$f":"IF(Planning!G170<>0,Planning!G170,\"\")","v":""},{"$f":"Planning!H170","v":0},{"$f":"Planning!AA170","v":0},{"$f":"IF(OR(W186=\"1\",AND(W186<>\"1\",G186=Lists!$A$17)),Y186,0)","v":0},null,{"$f":"IF(AND(W186=\"2\",G186<>Lists!$A$17),AA186,Z186)","v":""},"",{"$f":"Planning!AB170","v":{"v":0,"d":"0.00"}},{"$f":"'Month 6'!M186+'Month 6'!N186-'Month 6'!O186","v":{"v":0,"d":"0.00"}},null,"","",{"$f":"SUMIFS($J$25:$J$224,$C$25:$C$224,$C186,$G$25:$G$224,Lists!$A$16)","v":0},0,null,"",null,{"$f":"IF(C186=0,\"\",LEFT(INDEX(Lists!$H$5:$H$49,MATCH(C186,Lists!$G$5:$G$49,0),1),1))","v":""},null,{"$f":"'Month 6'!H186+'Month 6'!I186-'Month 6'!J186","v":0},"","",null,"0"]
[{"$f":"Planning!A171","v":"I163"},{"$f":"Planning!B171","v":0},{"$f":"Planning!C171","v":0},{"$f":"Planning!D171","v":0},{"$f":"Planning!E171","v":0},{"$f":"IF(Planning!G171<>0,Planning!G171,\"\")","v":""},{"$f":"Planning!H171","v":0},{"$f":"Planning!AA171","v":0},{"$f":"IF(OR(W187=\"1\",AND(W187<>\"1\",G187=Lists!$A$17)),Y187,0)","v":0},null,{"$f":"IF(AND(W187=\"2\",G187<>Lists!$A$17),AA187,Z187)","v":""},"",{"$f":"Planning!AB171","v":{"v":0,"d":"0.00"}},{"$f":"'Month 6'!M187+'Month 6'!N187-'Month 6'!O187","v":{"v":0,"d":"0.00"}},null,"","",{"$f":"SUMIFS($J$25:$J$224,$C$25:$C$224,$C187,$G$25:$G$224,Lists!$A$16)","v":0},0,null,"",null,{"$f":"IF(C187=0,\"\",LEFT(INDEX(Lists!$H$5:$H$49,MATCH(C187,Lists!$G$5:$G$49,0),1),1))","v":""},null,{"$f":"'Month 6'!H187+'Month 6'!I187-'Month 6'!J187","v":0},"","",null,"0"]
[{"$f":"Planning!A172","v":"I164"},{"$f":"Planning!B172","v":0},{"$f":"Planning!C172","v":0},{"$f":"Planning!D172","v":0},{"$f":"Planning!E172","v":0},{"$f":"IF(Planning!G172<>0,Planning!G172,\"\")","v":""},{"$f":"Planning!H172","v":0},{"$f":"Planning!AA172","v":0},{"$f":"IF(OR(W188=\"1\",AND(W188<>\"1\",G188=Lists!$A$17)),Y188,0)","v":0},null,{"$f":"IF(AND(W188=\"2\",G188<>Lists!$A$17),AA188,Z188)","v":""},"",{"$f":"Planning!AB172","v":{"v":0,"d":"0.00"}},{"$f":"'Month 6'!M188+'Month 6'!N188-'Month 6'!O188","v":{"v":0,"d":"0.00"}},null,"","",{"$f":"SUMIFS($J$25:$J$224,$C$25:$C$224,$C188,$G$25:$G$224,Lists!$A$16)","v":0},0,null,"",null,{"$f":"IF(C188=0,\"\",LEFT(INDEX(Lists!$H$5:$H$49,MATCH(C188,Lists!$G$5:$G$49,0),1),1))","v":""},null,{"$f":"'Month 6'!H188+'Month 6'!I188-'Month 6'!J188","v":0},"","",null,"0"]
[{"$f":"Planning!A173","v":"I165"},{"$f":"Planning!B173","v":0},{"$f":"Planning!C173","v":0},{"$f":"Planning!D173","v":0},{"$f":"Planning!E173","v":0},{"$f":"IF(Planning!G173<>0,Planning!G173,\"\")","v":""},{"$f":"Planning!H173","v":0},{"$f":"Planning!AA173","v":0},{"$f":"IF(OR(W189=\"1\",AND(W189<>\"1\",G189=Lists!$A$17)),Y189,0)","v":0},null,{"$f":"IF(AND(W189=\"2\",G189<>Lists!$A$17),AA189,Z189)","v":""},"",{"$f":"Planning!AB173","v":{"v":0,"d":"0.00"}},{"$f":"'Month 6'!M189+'Month 6'!N189-'Month 6'!O189","v":{"v":0,"d":"0.00"}},null,"","",{"$f":"SUMIFS($J$25:$J$224,$C$25:$C$224,$C189,$G$25:$G$224,Lists!$A$16)","v":0},0,null,"",null,{"$f":"IF(C189=0,\"\",LEFT(INDEX(Lists!$H$5:$H$49,MATCH(C189,Lists!$G$5:$G$49,0),1),1))","v":""},null,{"$f":"'Month 6'!H189+'Month 6'!I189-'Month 6'!J189","v":0},"","",null,"0"]
[{"$f":"Planning!A174","v":"I166"},{"$f":"Planning!B174","v":0},{"$f":"Planning!C174","v":0},{"$f":"Planning!D174","v":0},{"$f":"Planning!E174","v":0},{"$f":"IF(Planning!G174<>0,Planning!G174,\"\")","v":""},{"$f":"Planning!H174","v":0},{"$f":"Planning!AA174","v":0},{"$f":"IF(OR(W190=\"1\",AND(W190<>\"1\",G190=Lists!$A$17)),Y190,0)","v":0},null,{"$f":"IF(AND(W190=\"2\",G190<>Lists!$A$17),AA190,Z190)","v":""},"",{"$f":"Planning!AB174","v":{"v":0,"d":"0.00"}},{"$f":"'Month 6'!M190+'Month 6'!N190-'Month 6'!O190","v":{"v":0,"d":"0.00"}},null,"","",{"$f":"SUMIFS($J$25:$J$224,$C$25:$C$224,$C190,$G$25:$G$224,Lists!$A$16)","v":0},0,null,"",null,{"$f":"IF(C190=0,\"\",LEFT(INDEX(Lists!$H$5:$H$49,MATCH(C190,Lists!$G$5:$G$49,0),1),1))","v":""},null,{"$f":"'Month 6'!H190+'Month 6'!I190-'Month 6'!J190","v":0},"","",null,"0"]
[{"$f":"Planning!A175","v":"I167"},{"$f":"Planning!B175","v":0},{"$f":"Planning!C175","v":0},{"$f":"Planning!D175","v":0},{"$f":"Planning!E175","v":0},{"$f":"IF(Planning!G175<>0,Planning!G175,\"\")","v":""},{"$f":"Planning!H175","v":0},{"$f":"Planning!AA175","v":0},{"$f":"IF(OR(W191=\"1\",AND(W191<>\"1\",G191=Lists!$A$17)),Y191,0)","v":0},null,{"$f":"IF(AND(W191=\"2\",G191<>Lists!$A$17),AA191,Z191)","v":""},"",{"$f":"Planning!AB175","v":{"v":0,"d":"0.00"}},{"$f":"'Month 6'!M191+'Month 6'!N191-'Month 6'!O191","v":{"v":0,"d":"0.00"}},null,"","",{"$f":"SUMIFS($J$25:$J$224,$C$25:$C$224,$C191,$G$25:$G$224,Lists!$A$16)","v":0},0,null,"",null,{"$f":"IF(C191=0,\"\",LEFT(INDEX(Lists!$H$5:$H$49,MATCH(C191,Lists!$G$5:$G$49,0),1),1))","v":""},null,{"$f":"'Month 6'!H191+'Month 6'!I191-'Month 6'!J191","v":0},"","",null,"0"]
[{"$f":"Planning!A176","v":"I168"},{"$f":"Planning!B176","v":0},{"$f":"Planning!C176","v":0},{"$f":"Planning!D176","v":0},{"$f":"Planning!E176","v":0},{"$f":"IF(Planning!G176<>0,Planning!G176,\"\")","v":""},{"$f":"Planning!H176","v":0},{"$f":"Planning!AA176","v":0},{"$f":"IF(OR(W192=\"1\",AND(W192<>\"1\",G192=Lists!$A$17)),Y192,0)","v":0},null,{"$f":"IF(AND(W192=\"2\",G192<>Lists!$A$17),AA192,Z192)","v":""},"",{"$f":"Planning!AB176","v":{"v":0,"d":"0.00"}},{"$f":"'Month 6'!M192+'Month 6'!N192-'Month 6'!O192","v":{"v":0,"d":"0.00"}},null,"","",{"$f":"SUMIFS($J$25:$J$224,$C$25:$C$224,$C192,$G$25:$G$224,Lists!$A$16)","v":0},0,null,"",null,{"$f":"IF(C192=0,\"\",LEFT(INDEX(Lists!$H$5:$H$49,MATCH(C192,Lists!$G$5:$G$49,0),1),1))","v":""},null,{"$f":"'Month 6'!H192+'Month 6'!I192-'Month 6'!J192","v":0},"","",null,"0"]
[{"$f":"Planning!A177","v":"I169"},{"$f":"Planning!B177","v":0},{"$f":"Planning!C177","v":0},{"$f":"Planning!D177","v":0},{"$f":"Planning!E177","v":0},{"$f":"IF(Planning!G177<>0,Planning!G177,\"\")","v":""},{"$f":"Planning!H177","v":0},{"$f":"Planning!AA177","v":0},{"$f":"IF(OR(W193=\"1\",AND(W193<>\"1\",G193=Lists!$A$17)),Y193,0)","v":0},null,{"$f":"IF(AND(W193=\"2\",G193<>Lists!$A$17),AA193,Z193)","v":""},"",{"$f":"Planning!AB177","v":{"v":0,"d":"0.00"}},{"$f":"'Month 6'!M193+'Month 6'!N193-'Month 6'!O193","v":{"v":0,"d":"0.00"}},null,"","",{"$f":"SUMIFS($J$25:$J$224,$C$25:$C$224,$C193,$G$25:$G$224,Lists!$A$16)","v":0},0,null,"",null,{"$f":"IF(C193=0,\"\",LEFT(INDEX(Lists!$H$5:$H$49,MATCH(C193,Lists!$G$5:$G$49,0),1),1))","v":""},null,{"$f":"'Month 6'!H193+'Month 6'!I193-'Month 6'!J193","v":0},"","",null,"0"]
[{"$f":"Planning!A178","v":"I170"},{"$f":"Planning!B178","v":0},{"$f":"Planning!C178","v":0},{"$f":"Planning!D178","v":0},{"$f":"Planning!E178","v":0},{"$f":"IF(Planning!G178<>0,Planning!G178,\"\")","v":""},{"$f":"Planning!H178","v":0},{"$f":"Planning!AA178","v":0},{"$f":"IF(OR(W194=\"1\",AND(W194<>\"1\",G194=Lists!$A$17)),Y194,0)","v":0},null,{"$f":"IF(AND(W194=\"2\",G194<>Lists!$A$17),AA194,Z194)","v":""},"",{"$f":"Planning!AB178","v":{"v":0,"d":"0.00"}},{"$f":"'Month 6'!M194+'Month 6'!N194-'Month 6'!O194","v":{"v":0,"d":"0.00"}},null,"","",{"$f":"SUMIFS($J$25:$J$224,$C$25:$C$224,$C194,$G$25:$G$224,Lists!$A$16)","v":0},0,null,"",null,{"$f":"IF(C194=0,\"\",LEFT(INDEX(Lists!$H$5:$H$49,MATCH(C194,Lists!$G$5:$G$49,0),1),1))","v":""},null,{"$f":"'Month 6'!H194+'Month 6'!I194-'Month 6'!J194","v":0},"","",null,"0"]
[{"$f":"Planning!A179","v":"I171"},{"$f":"Planning!B179","v":0},{"$f":"Planning!C179","v":0},{"$f":"Planning!D179","v":0},{"$f":"Planning!E179","v":0},{"$f":"IF(Planning!G179<>0,Planning!G179,\"\")","v":""},{"$f":"Planning!H179","v":0},{"$f":"Planning!AA179","v":0},{"$f":"IF(OR(W195=\"1\",AND(W195<>\"1\",G195=Lists!$A$17)),Y195,0)","v":0},null,{"$f":"IF(AND(W195=\"2\",G195<>Lists!$A$17),AA195,Z195)","v":""},"",{"$f":"Planning!AB179","v":{"v":0,"d":"0.00"}},{"$f":"'Month 6'!M195+'Month 6'!N195-'Month 6'!O195","v":{"v":0,"d":"0.00"}},null,"","",{"$f":"SUMIFS($J$25:$J$224,$C$25:$C$224,$C195,$G$25:$G$224,Lists!$A$16)","v":0},0,null,"",null,{"$f":"IF(C195=0,\"\",LEFT(INDEX(Lists!$H$5:$H$49,MATCH(C195,Lists!$G$5:$G$49,0),1),1))","v":""},null,{"$f":"'Month 6'!H195+'Month 6'!I195-'Month 6'!J195","v":0},"","",null,"0"]
[{"$f":"Planning!A180","v":"I172"},{"$f":"Planning!B180","v":0},{"$f":"Planning!C180","v":0},{"$f":"Planning!D180","v":0},{"$f":"Planning!E180","v":0},{"$f":"IF(Planning!G180<>0,Planning!G180,\"\")","v":""},{"$f":"Planning!H180","v":0},{"$f":"Planning!AA180","v":0},{"$f":"IF(OR(W196=\"1\",AND(W196<>\"1\",G196=Lists!$A$17)),Y196,0)","v":0},null,{"$f":"IF(AND(W196=\"2\",G196<>Lists!$A$17),AA196,Z196)","v":""},"",{"$f":"Planning!AB180","v":{"v":0,"d":"0.00"}},{"$f":"'Month 6'!M196+'Month 6'!N196-'Month 6'!O196","v":{"v":0,"d":"0.00"}},null,"","",{"$f":"SUMIFS($J$25:$J$224,$C$25:$C$224,$C196,$G$25:$G$224,Lists!$A$16)","v":0},0,null,"",null,{"$f":"IF(C196=0,\"\",LEFT(INDEX(Lists!$H$5:$H$49,MATCH(C196,Lists!$G$5:$G$49,0),1),1))","v":""},null,{"$f":"'Month 6'!H196+'Month 6'!I196-'Month 6'!J196","v":0},"","",null,"0"]
[{"$f":"Planning!A181","v":"I173"},{"$f":"Planning!B181","v":0},{"$f":"Planning!C181","v":0},{"$f":"Planning!D181","v":0},{"$f":"Planning!E181","v":0},{"$f":"IF(Planning!G181<>0,Planning!G181,\"\")","v":""},{"$f":"Planning!H181","v":0},{"$f":"Planning!AA181","v":0},{"$f":"IF(OR(W197=\"1\",AND(W197<>\"1\",G197=Lists!$A$17)),Y197,0)","v":0},null,{"$f":"IF(AND(W197=\"2\",G197<>Lists!$A$17),AA197,Z197)","v":""},"",{"$f":"Planning!AB181","v":{"v":0,"d":"0.00"}},{"$f":"'Month 6'!M197+'Month 6'!N197-'Month 6'!O197","v":{"v":0,"d":"0.00"}},null,"","",{"$f":"SUMIFS($J$25:$J$224,$C$25:$C$224,$C197,$G$25:$G$224,Lists!$A$16)","v":0},0,null,"",null,{"$f":"IF(C197=0,\"\",LEFT(INDEX(Lists!$H$5:$H$49,MATCH(C197,Lists!$G$5:$G$49,0),1),1))","v":""},null,{"$f":"'Month 6'!H197+'Month 6'!I197-'Month 6'!J197","v":0},"","",null,"0"]
[{"$f":"Planning!A182","v":"I174"},{"$f":"Planning!B182","v":0},{"$f":"Planning!C182","v":0},{"$f":"Planning!D182","v":0},{"$f":"Planning!E182","v":0},{"$f":"IF(Planning!G182<>0,Planning!G182,\"\")","v":""},{"$f":"Planning!H182","v":0},{"$f":"Planning!AA182","v":0},{"$f":"IF(OR(W198=\"1\",AND(W198<>\"1\",G198=Lists!$A$17)),Y198,0)","v":0},null,{"$f":"IF(AND(W198=\"2\",G198<>Lists!$A$17),AA198,Z198)","v":""},"",{"$f":"Planning!AB182","v":{"v":0,"d":"0.00"}},{"$f":"'Month 6'!M198+'Month 6'!N198-'Month 6'!O198","v":{"v":0,"d":"0.00"}},null,"","",{"$f":"SUMIFS($J$25:$J$224,$C$25:$C$224,$C198,$G$25:$G$224,Lists!$A$16)","v":0},0,null,"",null,{"$f":"IF(C198=0,\"\",LEFT(INDEX(Lists!$H$5:$H$49,MATCH(C198,Lists!$G$5:$G$49,0),1),1))","v":""},null,{"$f":"'Month 6'!H198+'Month 6'!I198-'Month 6'!J198","v":0},"","",null,"0"]
[{"$f":"Planning!A183","v":"I175"},{"$f":"Planning!B183","v":0},{"$f":"Planning!C183","v":0},{"$f":"Planning!D183","v":0},{"$f":"Planning!E183","v":0},{"$f":"IF(Planning!G183<>0,Planning!G183,\"\")","v":""},{"$f":"Planning!H183","v":0},{"$f":"Planning!AA183","v":0},{"$f":"IF(OR(W199=\"1\",AND(W199<>\"1\",G199=Lists!$A$17)),Y199,0)","v":0},null,{"$f":"IF(AND(W199=\"2\",G199<>Lists!$A$17),AA199,Z199)","v":""},"",{"$f":"Planning!AB183","v":{"v":0,"d":"0.00"}},{"$f":"'Month 6'!M199+'Month 6'!N199-'Month 6'!O199","v":{"v":0,"d":"0.00"}},null,"","",{"$f":"SUMIFS($J$25:$J$224,$C$25:$C$224,$C199,$G$25:$G$224,Lists!$A$16)","v":0},0,null,"",null,{"$f":"IF(C199=0,\"\",LEFT(INDEX(Lists!$H$5:$H$49,MATCH(C199,Lists!$G$5:$G$49,0),1),1))","v":""},null,{"$f":"'Month 6'!H199+'Month 6'!I199-'Month 6'!J199","v":0},"","",null,"0"]
[{"$f":"Planning!A184","v":"I176"},{"$f":"Planning!B184","v":0},{"$f":"Planning!C184","v":0},{"$f":"Planning!D184","v":0},{"$f":"Planning!E184","v":0},{"$f":"IF(Planning!G184<>0,Planning!G184,\"\")","v":""},{"$f":"Planning!H184","v":0},{"$f":"Planning!AA184","v":0},{"$f":"IF(OR(W200=\"1\",AND(W200<>\"1\",G200=Lists!$A$17)),Y200,0)","v":0},null,{"$f":"IF(AND(W200=\"2\",G200<>Lists!$A$17),AA200,Z200)","v":""},"",{"$f":"Planning!AB184","v":{"v":0,"d":"0.00"}},{"$f":"'Month 6'!M200+'Month 6'!N200-'Month 6'!O200","v":{"v":0,"d":"0.00"}},null,"","",{"$f":"SUMIFS($J$25:$J$224,$C$25:$C$224,$C200,$G$25:$G$224,Lists!$A$16)","v":0},0,null,"",null,{"$f":"IF(C200=0,\"\",LEFT(INDEX(Lists!$H$5:$H$49,MATCH(C200,Lists!$G$5:$G$49,0),1),1))","v":""},null,{"$f":"'Month 6'!H200+'Month 6'!I200-'Month 6'!J200","v":0},"","",null,"0"]
[{"$f":"Planning!A185","v":"I177"},{"$f":"Planning!B185","v":0},{"$f":"Planning!C185","v":0},{"$f":"Planning!D185","v":0},{"$f":"Planning!E185","v":0},{"$f":"IF(Planning!G185<>0,Planning!G185,\"\")","v":""},{"$f":"Planning!H185","v":0},{"$f":"Planning!AA185","v":0},{"$f":"IF(OR(W201=\"1\",AND(W201<>\"1\",G201=Lists!$A$17)),Y201,0)","v":0},null,{"$f":"IF(AND(W201=\"2\",G201<>Lists!$A$17),AA201,Z201)","v":""},"",{"$f":"Planning!AB185","v":{"v":0,"d":"0.00"}},{"$f":"'Month 6'!M201+'Month 6'!N201-'Month 6'!O201","v":{"v":0,"d":"0.00"}},null,"","",{"$f":"SUMIFS($J$25:$J$224,$C$25:$C$224,$C201,$G$25:$G$224,Lists!$A$16)","v":0},0,null,"",null,{"$f":"IF(C201=0,\"\",LEFT(INDEX(Lists!$H$5:$H$49,MATCH(C201,Lists!$G$5:$G$49,0),1),1))","v":""},null,{"$f":"'Month 6'!H201+'Month 6'!I201-'Month 6'!J201","v":0},"","",null,"0"]
[{"$f":"Planning!A186","v":"I178"},{"$f":"Planning!B186","v":0},{"$f":"Planning!C186","v":0},{"$f":"Planning!D186","v":0},{"$f":"Planning!E186","v":0},{"$f":"IF(Planning!G186<>0,Planning!G186,\"\")","v":""},{"$f":"Planning!H186","v":0},{"$f":"Planning!AA186","v":0},{"$f":"IF(OR(W202=\"1\",AND(W202<>\"1\",G202=Lists!$A$17)),Y202,0)","v":0},null,{"$f":"IF(AND(W202=\"2\",G202<>Lists!$A$17),AA202,Z202)","v":""},"",{"$f":"Planning!AB186","v":{"v":0,"d":"0.00"}},{"$f":"'Month 6'!M202+'Month 6'!N202-'Month 6'!O202","v":{"v":0,"d":"0.00"}},null,"","",{"$f":"SUMIFS($J$25:$J$224,$C$25:$C$224,$C202,$G$25:$G$224,Lists!$A$16)","v":0},0,null,"",null,{"$f":"IF(C202=0,\"\",LEFT(INDEX(Lists!$H$5:$H$49,MATCH(C202,Lists!$G$5:$G$49,0),1),1))","v":""},null,{"$f":"'Month 6'!H202+'Month 6'!I202-'Month 6'!J202","v":0},"","",null,"0"]
[{"$f":"Planning!A187","v":"I179"},{"$f":"Planning!B187","v":0},{"$f":"Planning!C187","v":0},{"$f":"Planning!D187","v":0},{"$f":"Planning!E187","v":0},{"$f":"IF(Planning!G187<>0,Planning!G187,\"\")","v":""},{"$f":"Planning!H187","v":0},{"$f":"Planning!AA187","v":0},{"$f":"IF(OR(W203=\"1\",AND(W203<>\"1\",G203=Lists!$A$17)),Y203,0)","v":0},null,{"$f":"IF(AND(W203=\"2\",G203<>Lists!$A$17),AA203,Z203)","v":""},"",{"$f":"Planning!AB187","v":{"v":0,"d":"0.00"}},{"$f":"'Month 6'!M203+'Month 6'!N203-'Month 6'!O203","v":{"v":0,"d":"0.00"}},null,"","",{"$f":"SUMIFS($J$25:$J$224,$C$25:$C$224,$C203,$G$25:$G$224,Lists!$A$16)","v":0},0,null,"",null,{"$f":"IF(C203=0,\"\",LEFT(INDEX(Lists!$H$5:$H$49,MATCH(C203,Lists!$G$5:$G$49,0),1),1))","v":""},null,{"$f":"'Month 6'!H203+'Month 6'!I203-'Month 6'!J203","v":0},"","",null,"0"]
[{"$f":"Planning!A188","v":"I180"},{"$f":"Planning!B188","v":0},{"$f":"Planning!C188","v":0},{"$f":"Planning!D188","v":0},{"$f":"Planning!E188","v":0},{"$f":"IF(Planning!G188<>0,Planning!G188,\"\")","v":""},{"$f":"Planning!H188","v":0},{"$f":"Planning!AA188","v":0},{"$f":"IF(OR(W204=\"1\",AND(W204<>\"1\",G204=Lists!$A$17)),Y204,0)","v":0},null,{"$f":"IF(AND(W204=\"2\",G204<>Lists!$A$17),AA204,Z204)","v":""},"",{"$f":"Planning!AB188","v":{"v":0,"d":"0.00"}},{"$f":"'Month 6'!M204+'Month 6'!N204-'Month 6'!O204","v":{"v":0,"d":"0.00"}},null,"","",{"$f":"SUMIFS($J$25:$J$224,$C$25:$C$224,$C204,$G$25:$G$224,Lists!$A$16)","v":0},0,null,"",null,{"$f":"IF(C204=0,\"\",LEFT(INDEX(Lists!$H$5:$H$49,MATCH(C204,Lists!$G$5:$G$49,0),1),1))","v":""},null,{"$f":"'Month 6'!H204+'Month 6'!I204-'Month 6'!J204","v":0},"","",null,"0"]
[{"$f":"Planning!A189","v":"I181"},{"$f":"Planning!B189","v":0},{"$f":"Planning!C189","v":0},{"$f":"Planning!D189","v":0},{"$f":"Planning!E189","v":0},{"$f":"IF(Planning!G189<>0,Planning!G189,\"\")","v":""},{"$f":"Planning!H189","v":0},{"$f":"Planning!AA189","v":0},{"$f":"IF(OR(W205=\"1\",AND(W205<>\"1\",G205=Lists!$A$17)),Y205,0)","v":0},null,{"$f":"IF(AND(W205=\"2\",G205<>Lists!$A$17),AA205,Z205)","v":""},"",{"$f":"Planning!AB189","v":{"v":0,"d":"0.00"}},{"$f":"'Month 6'!M205+'Month 6'!N205-'Month 6'!O205","v":{"v":0,"d":"0.00"}},null,"","",{"$f":"SUMIFS($J$25:$J$224,$C$25:$C$224,$C205,$G$25:$G$224,Lists!$A$16)","v":0},0,null,"",null,{"$f":"IF(C205=0,\"\",LEFT(INDEX(Lists!$H$5:$H$49,MATCH(C205,Lists!$G$5:$G$49,0),1),1))","v":""},null,{"$f":"'Month 6'!H205+'Month 6'!I205-'Month 6'!J205","v":0},"","",null,"0"]
[{"$f":"Planning!A190","v":"I182"},{"$f":"Planning!B190","v":0},{"$f":"Planning!C190","v":0},{"$f":"Planning!D190","v":0},{"$f":"Planning!E190","v":0},{"$f":"IF(Planning!G190<>0,Planning!G190,\"\")","v":""},{"$f":"Planning!H190","v":0},{"$f":"Planning!AA190","v":0},{"$f":"IF(OR(W206=\"1\",AND(W206<>\"1\",G206=Lists!$A$17)),Y206,0)","v":0},null,{"$f":"IF(AND(W206=\"2\",G206<>Lists!$A$17),AA206,Z206)","v":""},"",{"$f":"Planning!AB190","v":{"v":0,"d":"0.00"}},{"$f":"'Month 6'!M206+'Month 6'!N206-'Month 6'!O206","v":{"v":0,"d":"0.00"}},null,"","",{"$f":"SUMIFS($J$25:$J$224,$C$25:$C$224,$C206,$G$25:$G$224,Lists!$A$16)","v":0},0,null,"",null,{"$f":"IF(C206=0,\"\",LEFT(INDEX(Lists!$H$5:$H$49,MATCH(C206,Lists!$G$5:$G$49,0),1),1))","v":""},null,{"$f":"'Month 6'!H206+'Month 6'!I206-'Month 6'!J206","v":0},"","",null,"0"]
[{"$f":"Planning!A191","v":"I183"},{"$f":"Planning!B191","v":0},{"$f":"Planning!C191","v":0},{"$f":"Planning!D191","v":0},{"$f":"Planning!E191","v":0},{"$f":"IF(Planning!G191<>0,Planning!G191,\"\")","v":""},{"$f":"Planning!H191","v":0},{"$f":"Planning!AA191","v":0},{"$f":"IF(OR(W207=\"1\",AND(W207<>\"1\",G207=Lists!$A$17)),Y207,0)","v":0},null,{"$f":"IF(AND(W207=\"2\",G207<>Lists!$A$17),AA207,Z207)","v":""},"",{"$f":"Planning!AB191","v":{"v":0,"d":"0.00"}},{"$f":"'Month 6'!M207+'Month 6'!N207-'Month 6'!O207","v":{"v":0,"d":"0.00"}},null,"","",{"$f":"SUMIFS($J$25:$J$224,$C$25:$C$224,$C207,$G$25:$G$224,Lists!$A$16)","v":0},0,null,"",null,{"$f":"IF(C207=0,\"\",LEFT(INDEX(Lists!$H$5:$H$49,MATCH(C207,Lists!$G$5:$G$49,0),1),1))","v":""},null,{"$f":"'Month 6'!H207+'Month 6'!I207-'Month 6'!J207","v":0},"","",null,"0"]
[{"$f":"Planning!A192","v":"I184"},{"$f":"Planning!B192","v":0},{"$f":"Planning!C192","v":0},{"$f":"Planning!D192","v":0},{"$f":"Planning!E192","v":0},{"$f":"IF(Planning!G192<>0,Planning!G192,\"\")","v":""},{"$f":"Planning!H192","v":0},{"$f":"Planning!AA192","v":0},{"$f":"IF(OR(W208=\"1\",AND(W208<>\"1\",G208=Lists!$A$17)),Y208,0)","v":0},null,{"$f":"IF(AND(W208=\"2\",G208<>Lists!$A$17),AA208,Z208)","v":""},"",{"$f":"Planning!AB192","v":{"v":0,"d":"0.00"}},{"$f":"'Month 6'!M208+'Month 6'!N208-'Month 6'!O208","v":{"v":0,"d":"0.00"}},null,"","",{"$f":"SUMIFS($J$25:$J$224,$C$25:$C$224,$C208,$G$25:$G$224,Lists!$A$16)","v":0},0,null,"",null,{"$f":"IF(C208=0,\"\",LEFT(INDEX(Lists!$H$5:$H$49,MATCH(C208,Lists!$G$5:$G$49,0),1),1))","v":""},null,{"$f":"'Month 6'!H208+'Month 6'!I208-'Month 6'!J208","v":0},"","",null,"0"]
[{"$f":"Planning!A193","v":"I185"},{"$f":"Planning!B193","v":0},{"$f":"Planning!C193","v":0},{"$f":"Planning!D193","v":0},{"$f":"Planning!E193","v":0},{"$f":"IF(Planning!G193<>0,Planning!G193,\"\")","v":""},{"$f":"Planning!H193","v":0},{"$f":"Planning!AA193","v":0},{"$f":"IF(OR(W209=\"1\",AND(W209<>\"1\",G209=Lists!$A$17)),Y209,0)","v":0},null,{"$f":"IF(AND(W209=\"2\",G209<>Lists!$A$17),AA209,Z209)","v":""},"",{"$f":"Planning!AB193","v":{"v":0,"d":"0.00"}},{"$f":"'Month 6'!M209+'Month 6'!N209-'Month 6'!O209","v":{"v":0,"d":"0.00"}},null,"","",{"$f":"SUMIFS($J$25:$J$224,$C$25:$C$224,$C209,$G$25:$G$224,Lists!$A$16)","v":0},0,null,"",null,{"$f":"IF(C209=0,\"\",LEFT(INDEX(Lists!$H$5:$H$49,MATCH(C209,Lists!$G$5:$G$49,0),1),1))","v":""},null,{"$f":"'Month 6'!H209+'Month 6'!I209-'Month 6'!J209","v":0},"","",null,"0"]
[{"$f":"Planning!A194","v":"I186"},{"$f":"Planning!B194","v":0},{"$f":"Planning!C194","v":0},{"$f":"Planning!D194","v":0},{"$f":"Planning!E194","v":0},{"$f":"IF(Planning!G194<>0,Planning!G194,\"\")","v":""},{"$f":"Planning!H194","v":0},{"$f":"Planning!AA194","v":0},{"$f":"IF(OR(W210=\"1\",AND(W210<>\"1\",G210=Lists!$A$17)),Y210,0)","v":0},null,{"$f":"IF(AND(W210=\"2\",G210<>Lists!$A$17),AA210,Z210)","v":""},"",{"$f":"Planning!AB194","v":{"v":0,"d":"0.00"}},{"$f":"'Month 6'!M210+'Month 6'!N210-'Month 6'!O210","v":{"v":0,"d":"0.00"}},null,"","",{"$f":"SUMIFS($J$25:$J$224,$C$25:$C$224,$C210,$G$25:$G$224,Lists!$A$16)","v":0},0,null,"",null,{"$f":"IF(C210=0,\"\",LEFT(INDEX(Lists!$H$5:$H$49,MATCH(C210,Lists!$G$5:$G$49,0),1),1))","v":""},null,{"$f":"'Month 6'!H210+'Month 6'!I210-'Month 6'!J210","v":0},"","",null,"0"]
[{"$f":"Planning!A195","v":"I187"},{"$f":"Planning!B195","v":0},{"$f":"Planning!C195","v":0},{"$f":"Planning!D195","v":0},{"$f":"Planning!E195","v":0},{"$f":"IF(Planning!G195<>0,Planning!G195,\"\")","v":""},{"$f":"Planning!H195","v":0},{"$f":"Planning!AA195","v":0},{"$f":"IF(OR(W211=\"1\",AND(W211<>\"1\",G211=Lists!$A$17)),Y211,0)","v":0},null,{"$f":"IF(AND(W211=\"2\",G211<>Lists!$A$17),AA211,Z211)","v":""},"",{"$f":"Planning!AB195","v":{"v":0,"d":"0.00"}},{"$f":"'Month 6'!M211+'Month 6'!N211-'Month 6'!O211","v":{"v":0,"d":"0.00"}},null,"","",{"$f":"SUMIFS($J$25:$J$224,$C$25:$C$224,$C211,$G$25:$G$224,Lists!$A$16)","v":0},0,null,"",null,{"$f":"IF(C211=0,\"\",LEFT(INDEX(Lists!$H$5:$H$49,MATCH(C211,Lists!$G$5:$G$49,0),1),1))","v":""},null,{"$f":"'Month 6'!H211+'Month 6'!I211-'Month 6'!J211","v":0},"","",null,"0"]
[{"$f":"Planning!A196","v":"I188"},{"$f":"Planning!B196","v":0},{"$f":"Planning!C196","v":0},{"$f":"Planning!D196","v":0},{"$f":"Planning!E196","v":0},{"$f":"IF(Planning!G196<>0,Planning!G196,\"\")","v":""},{"$f":"Planning!H196","v":0},{"$f":"Planning!AA196","v":0},{"$f":"IF(OR(W212=\"1\",AND(W212<>\"1\",G212=Lists!$A$17)),Y212,0)","v":0},null,{"$f":"IF(AND(W212=\"2\",G212<>Lists!$A$17),AA212,Z212)","v":""},"",{"$f":"Planning!AB196","v":{"v":0,"d":"0.00"}},{"$f":"'Month 6'!M212+'Month 6'!N212-'Month 6'!O212","v":{"v":0,"d":"0.00"}},null,"","",{"$f":"SUMIFS($J$25:$J$224,$C$25:$C$224,$C212,$G$25:$G$224,Lists!$A$16)","v":0},0,null,"",null,{"$f":"IF(C212=0,\"\",LEFT(INDEX(Lists!$H$5:$H$49,MATCH(C212,Lists!$G$5:$G$49,0),1),1))","v":""},null,{"$f":"'Month 6'!H212+'Month 6'!I212-'Month 6'!J212","v":0},"","",null,"0"]
[{"$f":"Planning!A197","v":"I189"},{"$f":"Planning!B197","v":0},{"$f":"Planning!C197","v":0},{"$f":"Planning!D197","v":0},{"$f":"Planning!E197","v":0},{"$f":"IF(Planning!G197<>0,Planning!G197,\"\")","v":""},{"$f":"Planning!H197","v":0},{"$f":"Planning!AA197","v":0},{"$f":"IF(OR(W213=\"1\",AND(W213<>\"1\",G213=Lists!$A$17)),Y213,0)","v":0},null,{"$f":"IF(AND(W213=\"2\",G213<>Lists!$A$17),AA213,Z213)","v":""},"",{"$f":"Planning!AB197","v":{"v":0,"d":"0.00"}},{"$f":"'Month 6'!M213+'Month 6'!N213-'Month 6'!O213","v":{"v":0,"d":"0.00"}},null,"","",{"$f":"SUMIFS($J$25:$J$224,$C$25:$C$224,$C213,$G$25:$G$224,Lists!$A$16)","v":0},0,null,"",null,{"$f":"IF(C213=0,\"\",LEFT(INDEX(Lists!$H$5:$H$49,MATCH(C213,Lists!$G$5:$G$49,0),1),1))","v":""},null,{"$f":"'Month 6'!H213+'Month 6'!I213-'Month 6'!J213","v":0},"","",null,"0"]
[{"$f":"Planning!A198","v":"I190"},{"$f":"Planning!B198","v":0},{"$f":"Planning!C198","v":0},{"$f":"Planning!D198","v":0},{"$f":"Planning!E198","v":0},{"$f":"IF(Planning!G198<>0,Planning!G198,\"\")","v":""},{"$f":"Planning!H198","v":0},{"$f":"Planning!AA198","v":0},{"$f":"IF(OR(W214=\"1\",AND(W214<>\"1\",G214=Lists!$A$17)),Y214,0)","v":0},null,{"$f":"IF(AND(W214=\"2\",G214<>Lists!$A$17),AA214,Z214)","v":""},"",{"$f":"Planning!AB198","v":{"v":0,"d":"0.00"}},{"$f":"'Month 6'!M214+'Month 6'!N214-'Month 6'!O214","v":{"v":0,"d":"0.00"}},null,"","",{"$f":"SUMIFS($J$25:$J$224,$C$25:$C$224,$C214,$G$25:$G$224,Lists!$A$16)","v":0},0,null,"",null,{"$f":"IF(C214=0,\"\",LEFT(INDEX(Lists!$H$5:$H$49,MATCH(C214,Lists!$G$5:$G$49,0),1),1))","v":""},null,{"$f":"'Month 6'!H214+'Month 6'!I214-'Month 6'!J214","v":0},"","",null,"0"]
[{"$f":"Planning!A199","v":"I191"},{"$f":"Planning!B199","v":0},{"$f":"Planning!C199","v":0},{"$f":"Planning!D199","v":0},{"$f":"Planning!E199","v":0},{"$f":"IF(Planning!G199<>0,Planning!G199,\"\")","v":""},{"$f":"Planning!H199","v":0},{"$f":"Planning!AA199","v":0},{"$f":"IF(OR(W215=\"1\",AND(W215<>\"1\",G215=Lists!$A$17)),Y215,0)","v":0},null,{"$f":"IF(AND(W215=\"2\",G215<>Lists!$A$17),AA215,Z215)","v":""},"",{"$f":"Planning!AB199","v":{"v":0,"d":"0.00"}},{"$f":"'Month 6'!M215+'Month 6'!N215-'Month 6'!O215","v":{"v":0,"d":"0.00"}},null,"","",{"$f":"SUMIFS($J$25:$J$224,$C$25:$C$224,$C215,$G$25:$G$224,Lists!$A$16)","v":0},0,null,"",null,{"$f":"IF(C215=0,\"\",LEFT(INDEX(Lists!$H$5:$H$49,MATCH(C215,Lists!$G$5:$G$49,0),1),1))","v":""},null,{"$f":"'Month 6'!H215+'Month 6'!I215-'Month 6'!J215","v":0},"","",null,"0"]
[{"$f":"Planning!A200","v":"I192"},{"$f":"Planning!B200","v":0},{"$f":"Planning!C200","v":0},{"$f":"Planning!D200","v":0},{"$f":"Planning!E200","v":0},{"$f":"IF(Planning!G200<>0,Planning!G200,\"\")","v":""},{"$f":"Planning!H200","v":0},{"$f":"Planning!AA200","v":0},{"$f":"IF(OR(W216=\"1\",AND(W216<>\"1\",G216=Lists!$A$17)),Y216,0)","v":0},null,{"$f":"IF(AND(W216=\"2\",G216<>Lists!$A$17),AA216,Z216)","v":""},"",{"$f":"Planning!AB200","v":{"v":0,"d":"0.00"}},{"$f":"'Month 6'!M216+'Month 6'!N216-'Month 6'!O216","v":{"v":0,"d":"0.00"}},null,"","",{"$f":"SUMIFS($J$25:$J$224,$C$25:$C$224,$C216,$G$25:$G$224,Lists!$A$16)","v":0},0,null,"",null,{"$f":"IF(C216=0,\"\",LEFT(INDEX(Lists!$H$5:$H$49,MATCH(C216,Lists!$G$5:$G$49,0),1),1))","v":""},null,{"$f":"'Month 6'!H216+'Month 6'!I216-'Month 6'!J216","v":0},"","",null,"0"]
[{"$f":"Planning!A201","v":"I193"},{"$f":"Planning!B201","v":0},{"$f":"Planning!C201","v":0},{"$f":"Planning!D201","v":0},{"$f":"Planning!E201","v":0},{"$f":"IF(Planning!G201<>0,Planning!G201,\"\")","v":""},{"$f":"Planning!H201","v":0},{"$f":"Planning!AA201","v":0},{"$f":"IF(OR(W217=\"1\",AND(W217<>\"1\",G217=Lists!$A$17)),Y217,0)","v":0},null,{"$f":"IF(AND(W217=\"2\",G217<>Lists!$A$17),AA217,Z217)","v":""},{"$f":"IF($U217=ExcluirDelPLogro,\"\",IF(AND(H217=0,I217=0,J217=0),\"\",K217))","v":""},{"$f":"Planning!AB201","v":{"v":0,"d":"0.00"}},{"$f":"'Month 6'!M217+'Month 6'!N217-'Month 6'!O217","v":{"v":0,"d":"0.00"}},null,"",{"$f":"IF($U217=ExcluirDelPLogro,\"\",IF(AND(M217=0,N217=0,O217=0),\"\",P217))","v":""},{"$f":"SUMIFS($J$25:$J$224,$C$25:$C$224,$C217,$G$25:$G$224,Lists!$A$16)","v":0},0,null,"",null,{"$f":"IF(C217=0,\"\",LEFT(INDEX(Lists!$H$5:$H$49,MATCH(C217,Lists!$G$5:$G$49,0),1),1))","v":""},null,{"$f":"'Month 6'!H217+'Month 6'!I217-'Month 6'!J217","v":0},"",{"$f":"IF(AND(H217=0,I217=0,J217=0),\"\",IF(J217>0,H217/J217,0))","v":""},null,"0"]
[{"$f":"Planning!A202","v":"I194"},{"$f":"Planning!B202","v":0},{"$f":"Planning!C202","v":0},{"$f":"Planning!D202","v":0},{"$f":"Planning!E202","v":0},{"$f":"IF(Planning!G202<>0,Planning!G202,\"\")","v":""},{"$f":"Planning!H202","v":0},{"$f":"Planning!AA202","v":0},{"$f":"IF(OR(W218=\"1\",AND(W218<>\"1\",G218=Lists!$A$17)),Y218,0)","v":0},null,{"$f":"IF(AND(W218=\"2\",G218<>Lists!$A$17),AA218,Z218)","v":""},"",{"$f":"Planning!AB202","v":{"v":0,"d":"0.00"}},{"$f":"'Month 6'!M218+'Month 6'!N218-'Month 6'!O218","v":{"v":0,"d":"0.00"}},null,{"$f":"IF(AND(M218=0,N218=0,O218=0),\"\",IF((M218+N218)>0,O218/(M218+N218),O218))","v":""},"",{"$f":"SUMIFS($J$25:$J$224,$C$25:$C$224,$C218,$G$25:$G$224,Lists!$A$16)","v":0},{"$f":"SUMIFS($O$25:$O$224,$C$25:$C$224,$C218,$G$25:$G$224,\"<>0\")","v":0},null,{"$f":"IF(B218=0,\"\",IF(LEFT(B218,1)=\"1\",\"1\",\"2\"))","v":""},null,{"$f":"IF(C218=0,\"\",LEFT(INDEX(Lists!$H$5:$H$49,MATCH(C218,Lists!$G$5:$G$49,0),1),1))","v":""},null,{"$f":"'Month 6'!H218+'Month 6'!I218-'Month 6'!J218","v":0},{"$f":"IF(AND(H218=0,I218=0,J218=0),\"\",IF((H218+I218)>0,J218/(H218+I218),J218))","v":""},"",null,{"$f":"U218&C218","v":"0"}]
[{"$f":"Planning!A203","v":"I195"},{"$f":"Planning!B203","v":0},{"$f":"Planning!C203","v":0},{"$f":"Planning!D203","v":0},{"$f":"Planning!E203","v":0},{"$f":"IF(Planning!G203<>0,Planning!G203,\"\")","v":""},{"$f":"Planning!H203","v":0},{"$f":"Planning!AA203","v":0},{"$f":"IF(OR(W219=\"1\",AND(W219<>\"1\",G219=Lists!$A$17)),Y219,0)","v":0},null,{"$f":"IF(AND(W219=\"2\",G219<>Lists!$A$17),AA219,Z219)","v":""},"",{"$f":"Planning!AB203","v":{"v":0,"d":"0.00"}},{"$f":"'Month 6'!M219+'Month 6'!N219-'Month 6'!O219","v":{"v":0,"d":"0.00"}},null,"","",{"$f":"SUMIFS($J$25:$J$224,$C$25:$C$224,$C219,$G$25:$G$224,Lists!$A$16)","v":0},0,null,"",null,{"$f":"IF(C219=0,\"\",LEFT(INDEX(Lists!$H$5:$H$49,MATCH(C219,Lists!$G$5:$G$49,0),1),1))","v":""},null,{"$f":"'Month 6'!H219+'Month 6'!I219-'Month 6'!J219","v":0},"","",null,"0"]
[{"$f":"Planning!A204","v":"I196"},{"$f":"Planning!B204","v":0},{"$f":"Planning!C204","v":0},{"$f":"Planning!D204","v":0},{"$f":"Planning!E204","v":0},{"$f":"IF(Planning!G204<>0,Planning!G204,\"\")","v":""},{"$f":"Planning!H204","v":0},{"$f":"Planning!AA204","v":0},{"$f":"IF(OR(W220=\"1\",AND(W220<>\"1\",G220=Lists!$A$17)),Y220,0)","v":0},null,{"$f":"IF(AND(W220=\"2\",G220<>Lists!$A$17),AA220,Z220)","v":""},"",{"$f":"Planning!AB204","v":{"v":0,"d":"0.00"}},{"$f":"'Month 6'!M220+'Month 6'!N220-'Month 6'!O220","v":{"v":0,"d":"0.00"}},null,"","",{"$f":"SUMIFS($J$25:$J$224,$C$25:$C$224,$C220,$G$25:$G$224,Lists!$A$16)","v":0},0,null,"",null,{"$f":"IF(C220=0,\"\",LEFT(INDEX(Lists!$H$5:$H$49,MATCH(C220,Lists!$G$5:$G$49,0),1),1))","v":""},null,{"$f":"'Month 6'!H220+'Month 6'!I220-'Month 6'!J220","v":0},"","",null,"0"]
[{"$f":"Planning!A205","v":"I197"},{"$f":"Planning!B205","v":0},{"$f":"Planning!C205","v":0},{"$f":"Planning!D205","v":0},{"$f":"Planning!E205","v":0},{"$f":"IF(Planning!G205<>0,Planning!G205,\"\")","v":""},{"$f":"Planning!H205","v":0},{"$f":"Planning!AA205","v":0},{"$f":"IF(OR(W221=\"1\",AND(W221<>\"1\",G221=Lists!$A$17)),Y221,0)","v":0},null,{"$f":"IF(AND(W221=\"2\",G221<>Lists!$A$17),AA221,Z221)","v":""},"",{"$f":"Planning!AB205","v":{"v":0,"d":"0.00"}},{"$f":"'Month 6'!M221+'Month 6'!N221-'Month 6'!O221","v":{"v":0,"d":"0.00"}},null,"","",{"$f":"SUMIFS($J$25:$J$224,$C$25:$C$224,$C221,$G$25:$G$224,Lists!$A$16)","v":0},0,null,"",null,{"$f":"IF(C221=0,\"\",LEFT(INDEX(Lists!$H$5:$H$49,MATCH(C221,Lists!$G$5:$G$49,0),1),1))","v":""},null,{"$f":"'Month 6'!H221+'Month 6'!I221-'Month 6'!J221","v":0},"","",null,"0"]
[{"$f":"Planning!A206","v":"I198"},{"$f":"Planning!B206","v":0},{"$f":"Planning!C206","v":0},{"$f":"Planning!D206","v":0},{"$f":"Planning!E206","v":0},{"$f":"IF(Planning!G206<>0,Planning!G206,\"\")","v":""},{"$f":"Planning!H206","v":0},{"$f":"Planning!AA206","v":0},{"$f":"IF(OR(W222=\"1\",AND(W222<>\"1\",G222=Lists!$A$17)),Y222,0)","v":0},null,{"$f":"IF(AND(W222=\"2\",G222<>Lists!$A$17),AA222,Z222)","v":""},"",{"$f":"Planning!AB206","v":{"v":0,"d":"0.00"}},{"$f":"'Month 6'!M222+'Month 6'!N222-'Month 6'!O222","v":{"v":0,"d":"0.00"}},null,"","",{"$f":"SUMIFS($J$25:$J$224,$C$25:$C$224,$C222,$G$25:$G$224,Lists!$A$16)","v":0},0,null,"",null,{"$f":"IF(C222=0,\"\",LEFT(INDEX(Lists!$H$5:$H$49,MATCH(C222,Lists!$G$5:$G$49,0),1),1))","v":""},null,{"$f":"'Month 6'!H222+'Month 6'!I222-'Month 6'!J222","v":0},"","",null,"0"]
[{"$f":"Planning!A207","v":"I199"},{"$f":"Planning!B207","v":0},{"$f":"Planning!C207","v":0},{"$f":"Planning!D207","v":0},{"$f":"Planning!E207","v":0},{"$f":"IF(Planning!G207<>0,Planning!G207,\"\")","v":""},{"$f":"Planning!H207","v":0},{"$f":"Planning!AA207","v":0},{"$f":"IF(OR(W223=\"1\",AND(W223<>\"1\",G223=Lists!$A$17)),Y223,0)","v":0},null,{"$f":"IF(AND(W223=\"2\",G223<>Lists!$A$17),AA223,Z223)","v":""},"",{"$f":"Planning!AB207","v":{"v":0,"d":"0.00"}},{"$f":"'Month 6'!M223+'Month 6'!N223-'Month 6'!O223","v":{"v":0,"d":"0.00"}},null,"","",{"$f":"SUMIFS($J$25:$J$224,$C$25:$C$224,$C223,$G$25:$G$224,Lists!$A$16)","v":0},0,null,"",null,{"$f":"IF(C223=0,\"\",LEFT(INDEX(Lists!$H$5:$H$49,MATCH(C223,Lists!$G$5:$G$49,0),1),1))","v":""},null,{"$f":"'Month 6'!H223+'Month 6'!I223-'Month 6'!J223","v":0},"","",null,"0"]
[{"$f":"Planning!A208","v":"I200"},{"$f":"Planning!B208","v":0},{"$f":"Planning!C208","v":0},{"$f":"Planning!D208","v":0},{"$f":"Planning!E208","v":0},{"$f":"IF(Planning!G208<>0,Planning!G208,\"\")","v":""},{"$f":"Planning!H208","v":0},{"$f":"Planning!AA208","v":0},{"$f":"IF(OR(W224=\"1\",AND(W224<>\"1\",G224=Lists!$A$17)),Y224,0)","v":0},null,{"$f":"IF(AND(W224=\"2\",G224<>Lists!$A$17),AA224,Z224)","v":""},"",{"$f":"Planning!AB208","v":{"v":0,"d":"0.00"}},{"$f":"'Month 6'!M224+'Month 6'!N224-'Month 6'!O224","v":{"v":0,"d":"0.00"}},null,"","",{"$f":"SUMIFS($J$25:$J$224,$C$25:$C$224,$C224,$G$25:$G$224,Lists!$A$16)","v":0},0,null,"",null,{"$f":"IF(C224=0,\"\",LEFT(INDEX(Lists!$H$5:$H$49,MATCH(C224,Lists!$G$5:$G$49,0),1),1))","v":""},null,{"$f":"'Month 6'!H224+'Month 6'!I224-'Month 6'!J224","v":0},"","",null,"0"]
[{"$nulls":20},".",null,".",null,".",".",".",null,"."]
[]
[{"$f":"Setup!AN6","v":"PR Dashboard indicators"}]
[{"$f":"Setup!AP8","v":"Financial reports planned"}]
[{"$f":"Setup!AP9","v":"Financial reports overdue"}]
[{"$f":"Setup!AP10","v":0}]
[{"$f":"Setup!AP11","v":0}]
[{"$f":"Setup!AP12","v":0}]
[{"$f":"Setup!AP13","v":0}]
[{"$f":"Setup!AP14","v":0}]
[{"$f":"Setup!AP15","v":"Supervision actions recommended"}]
[{"$f":"Setup!AP16","v":"Supervision recommendations past due"}]
[{"$f":"Setup!AP17","v":"Programmatic reports planned"}]
[{"$f":"Setup!AP18","v":"Programmatic reports past due"}]
[{"$f":"Setup!AP19","v":0}]
[{"$f":"Setup!AP20","v":0}]
[{"$f":"Setup!AP21","v":0}]
[{"$f":"Setup!AP22","v":0}]
[{"$f":"Setup!AP23","v":0}]
[{"$f":"Setup!AP24","v":0}]
[{"$f":"Setup!AP25","v":0}]
[{"$f":"Setup!AP26","v":0}]
[{"$f":"Setup!AP27","v":0}]
[{"$f":"Setup!AP28","v":0}]
[{"$f":"Setup!AP29","v":0}]
[{"$f":"Setup!AP30","v":0}]
[{"$f":"Setup!AP31","v":0}]
[{"$f":"Setup!AP32","v":0}]
[{"$f":"Setup!AP33","v":0}]
[{"$f":"Setup!AP34","v":0}]
[{"$f":"Setup!AP35","v":0}]
[{"$f":"Setup!AP36","v":0}]
[{"$f":"Setup!AP37","v":0}]
[{"$f":"Setup!AP38","v":0}]
[{"$f":"Setup!AP39","v":"Actual stock level - PS39 - Product 1: Efavirenz, 600 mg, 30 tablets"}]
[{"$f":"Setup!AP40","v":"Actual stock level - PS40 - Product 2: Efavirenz, 200 mg, 90 capsules"}]
[{"$f":"Setup!AP41","v":"Actual stock level - PS41 - Product 3: TDF/3TC, 300/300 mg, 30 tablets"}]
[{"$f":"Setup!AP42","v":"Actual stock level - PS42 - Product 4: 3TC, 10 mg/ml, oral solution 240 ml"}]
[{"$f":"Setup!AP43","v":0}]
[{"$f":"Setup!AP44","v":0}]
[{"$f":"Setup!AP45","v":0}]
[{"$f":"Setup!AP46","v":0}]
[{"$f":"Setup!AP47","v":0}]
[{"$f":"Setup!AP48","v":0}]
[{"$f":"Setup!AP49","v":0}]
[{"$f":"Setup!AP50","v":0}]
[{"$f":"Setup!AP51","v":0}]
[{"$f":"Setup!AP52","v":0}]
[{"$f":"Setup!AP53","v":0}]
[{"$f":"Setup!AP54","v":0}]
[{"$f":"Setup!AP55","v":0}]
[{"$f":"Setup!AP56","v":0}]
[{"$f":"Setup!AP57","v":0}]
[{"$f":"Setup!AP58","v":0}]
[{"$f":"Setup!AP59","v":0}]
[{"$f":"Setup!AP60","v":0}]
[{"$f":"Setup!AP61","v":0}]
[{"$f":"Setup!AP62","v":0}]
[{"$f":"Setup!AP63","v":0}]
[{"$f":"Setup!AP64","v":0}]
[{"$f":"Setup!AP65","v":0}]
[{"$f":"Setup!AP66","v":0}]
[{"$f":"Setup!AP67","v":0}]
[{"$f":"Setup!AP68","v":0}]
[{"$f":"Setup!AP69","v":0}]
[]
[]
[{"$f":"Translations!A138","v":"Narrative comments from results (to be filled by the Subrecipient)"}]
{"$rows_empty":43}
[{"$f":"Translations!A139","v":"This section is filled in exclusively by PR's programmatic and financial monitors."}]
[]
[{"$f":"Translations!A150","v":"PROGRAMMATIC"},null,null,{"$f":"Translations!A140","v":"Name of person conducting programmatic verification"}]
[]
[]
[{"$nulls":3},{"$f":"Translations!A141","v":"Contextual details"}]
[]
[]
[]
[]
[]
[]
[{"$nulls":3},{"$f":"Translations!A151","v":"Description of identified problem(s)"}]
[]
[]
[]
[]
[]
[]
[{"$nulls":3},{"$f":"Translations!A152","v":"Recommendations and actions to be taken"}]
[{"$nulls":3},"1)"]
[{"$nulls":3},"2)"]
[{"$nulls":3},"3)"]
[{"$nulls":3},"4)"]
[{"$nulls":3},"5)"]
[]
[]
[]
[{"$f":"Translations!A154","v":"FINANCIAL"},null,null,{"$f":"Translations!A153","v":"Name of person conducting financial verification"}]
[]
[]
[{"$nulls":3},{"$f":"Translations!A141","v":"Contextual details"}]
{"$rows_empty":7}
[{"$nulls":3},{"$f":"Translations!A151","v":"Description of identified problem(s)"}]
[]
[]
[]
[]
[]
[]
[{"$nulls":3},{"$f":"Translations!A152","v":"Recommendations and actions to be taken"}]
[{"$nulls":3},"1)"]
[{"$nulls":3},"2)"]
[{"$nulls":3},"3)"]
[{"$nulls":3},"4)"]
[{"$nulls":3},"5)"]
[]
[]
[]
[]
[]
[{"$f":"Translations!A321","v":"To be completed by the PR"},{"$nulls":6},{"$f":"Translations!A324","v":"To be completed by the SR"}]
[{"$f":"Translations!A322","v":"Position"},{"$nulls":3},{"$f":"Translations!A323","v":"Signature"},null,null,{"$f":"Translations!A322","v":"Position"},null,{"$f":"Translations!A323","v":"Signature"}]

{"sheet":"Month 8","index":19,"n_rows":394,"n_cols":29,"rows_kept":394,"hidden":true,"merged":[[1,4,1,13],[1,14,1,15],[2,4,2,13],[2,14,3,15],[3,4,3,13],[4,4,4,13],[4,22,16,26],[5,9,5,15],[6,0,15,7],[6,9,7,15],[9,9,9,10],[9,12,9,15],[10,9,11,10],[10,12,11,15],[13,9,15,13],[13,14,13,15],[14,14,15,15],[16,6,16,7],[17,3,17,4],[17,7,17,8],[17,9,17,10],[17,12,17,13],[17,14,17,15],[18,7,18,10],[18,12,18,15],[18,24,18,26],[19,0,20,0],[19,1,20,1],[19,2,20,2],[19,3,20,3],[19,4,20,4],[19,5,20,5],[19,7,20,7],[19,8,20,8],[19,9,20,9],[19,10,20,10],[19,12,20,12],[19,13,20,13],[19,14,20,14],[19,15,20,15],[19,17,19,18],[19,20,20,20],[19,22,20,22],[19,24,20,24],[19,25,20,25],[19,26,20,26],[19,28,20,28],[226,0,226,7],[227,0,227,6],[228,0,228,6],[229,0,229,6],[230,0,230,6],[231,0,231,6],[232,0,232,6],[233,0,233,6],[234,0,234,6],[235,0,235,6],[236,0,236,6],[237,0,237,6],[238,0,238,6],[239,0,239,6],[240,0,240,6],[241,0,241,6],[242,0,242,6],[243,0,243,6],[244,0,244,6],[245,0,245,6],[246,0,246,6],[247,0,247,6],[248,0,248,6],[249,0,249,6],[250,0,250,6],[251,0,251,6],[252,0,252,6],[253,0,253,6],[254,0,254,6],[255,0,255,6],[256,0,256,6],[257,0,257,6],[258,0,258,6],[259,0,259,6],[260,0,260,6],[261,0,261,6],[262,0,262,6],[263,0,263,6],[264,0,264,6],[265,0,265,6],[266,0,266,6],[267,0,267,6],[268,0,268,6],[269,0,269,6],[270,0,270,6],[271,0,271,6],[272,0,272,6],[273,0,273,6],[274,0,274,6],[275,0,275,6],[276,0,276,6],[277,0,277,6],[278,0,278,6],[279,0,279,6],[280,0,280,6],[281,0,281,6],[282,0,282,6],[283,0,283,6],[284,0,284,6],[285,0,285,6],[286,0,286,6],[287,0,287,6],[288,0,288,6],[291,0,291,15],[292,0,333,15],[335,0,335,15],[337,0,360,0],[337,14,337,15],[338,3,338,4],[338,14,338,15],[341,3,345,15],[348,3,352,15],[355,3,355,15],[356,3,356,15],[357,3,357,15],[358,3,358,15],[359,3,359,15],[363,0,387,0],[363,14,363,15],[364,3,364,4],[364,14,364,15],[367,3,371,15],[375,3,379,15],[382,3,382,15],[383,3,383,15],[384,3,384,15],[385,3,385,15],[386,3,386,15],[392,0,392,4],[392,7,392,12],[393,0,393,3],[393,7,393,8],[393,9,393,12],[394,0,394,3],[394,7,394,8],[394,9,394,12],[395,0,395,3],[395,7,395,8],[395,9,395,12],[396,0,396,3],[396,7,396,8],[396,9,396,12],[397,0,397,3],[397,7,397,8],[397,9,397,12]]}
[]
["Month 8",{"$nulls":3},{"$f":"Translations!A80","v":"SR Management Tool"},{"$nulls":9},{"$f":"Translations!A129","v":"SCORE"}]
[{"$nulls":4},{"$f":"Setup!H11","v":"Direct Gender Partnership (DGP)"},{"$nulls":9},{"$f":"K23","v":{"v":0,"d":"0.00%"}}]
[{"$nulls":4},{"$f":" Setup!H14 & \"  (\" & Setup!H13 & \")\" & \"  (\" & Setup!H15 & \")\"","v":"DMR-202-G01-H-00  (January  2016 - December 2016)  (HIV / AIDS)"}]
[{"$nulls":4},{"$f":"Setup!AB15 & \"  (\" & Setup!H16 & \")\"","v":"August  ($ - USD)"},{"$nulls":17},"A. Se colocará lo pendiente (Y) en (I) siempre que (W) sea 1. Estandar o que (W) sea diferente de 1. sin embargo la actividad (G) NO contribuya al indicador.\n\nB. En la columna % Logro (K) se colocará siempre el Logro 1. Estandar (Z). Solamente se colocará el Logro 2. Inverso (AA) cuando (W) sea 2 y (G) sea diferente de 2. NO... es decir, el valor inverso va para las actvividades que contribuyan al indicador G = 1. SI y para el Indicador en si G = 0... por eso se pregunta por G diferente de 2. NO.. para incluir los 1. SI y a los 0\n\n"]
[{"$f":"Setup!G19","v":"Details of programatic indicators"},{"$nulls":8},{"$f":"Setup!G17","v":"Key population"}]
[{"$f":"Setup!H19","v":"# PLHIV that initiated ARV with CD4 count <200\n# new HIV+ enrolled in care services \n# aged 10-24 yrs reached by HIV life skills ed. in school "},{"$nulls":8},{"$f":"Setup!H17","v":"Sex Workers - Migrants - Women"}]
[]
[]
[{"$nulls":9},{"$f":"Translations!A119","v":"Report date"},null,null,{"$f":"Translations!A130","v":"Reported by"}]
[]
[]
[]
[{"$nulls":9},{"$f":"Translations!A132","v":"Note: Enter disubursment ammount here if the PR made a disbursment this month. Leave blank if no disbursment was made."},{"$nulls":4},{"$f":"Translations!A131","v":"Disbursement"}]
[]
[]
[]
[{"$nulls":3},{"$f":"Translations!A233","v":"Input data in spaces with this color"},{"$nulls":3},{"$f":"Translations!A120","v":"Date of verification"},{"$nulls":4},{"$f":"Translations!A120","v":"Date of verification"}]
[{"$nulls":7},{"$f":"Translations!A133","v":"Programmatic aspects"},{"$nulls":4},{"$f":"Translations!A134","v":"Financial aspects"},{"$nulls":9},"COMPORTAMIENTO",null,"Sólo en el Aspecto Programático"]
[{"$f":"Translations!A88","v":"Item"},"Tipo de Ítem","ID Enlace",{"$f":"Translations!A91","v":"Activity code"},{"$f":"Translations!A92","v":"Indicator / Activity"},{"$f":"Translations!A79","v":"TGF costs groups"},null,{"$f":"Translations!A135","v":"Monthly target"},{"$f":"Translations!A136","v":"Balance from previous period"},{"$f":"Translations!A137","v":"Results "},{"$f":"Translations!A108","v":"Result %"},null,{"$f":"Translations!$A$360","v":"Monthly budget"},{"$f":"Translations!A136","v":"Balance from previous period"},{"$f":"Translations!$A$361","v":"Monthly expenditure"},{"$f":"Translations!A108","v":"Result %"},null,"Sumatorias Indicadores",null,null,"Indicador =1 Actividad = 2",null,"1. Estandar\n2. Inverso\n3. No Acumula",null,"Pendiente Mes Anterior\n SIN CONDICION","Logro\n1. Estandar","Logro\n2. Inverso",null,"TAG \nPerformance"]
[{"$nulls":17},"PROG","FIN"]
[]
[{"$f":"Translations!A109","v":"Totals"},{"$nulls":6},"-","-","-",{"$f":"IFERROR(AVERAGEIF(L25:L224,\"<> \"),\"\")","v":{"v":0,"d":"0.00%"}},null,{"$f":"SUMIFS(M25:M224,$G$25:$G$224,\"<>0\")","v":{"v":0,"d":"0.00"}},{"$f":"SUMIFS(N25:N224,$G$25:$G$224,\"<>0\")","v":{"v":7250,"d":"7,250.00"}},{"$f":"SUMIFS(O25:O224,$G$25:$G$224,\"<>0\")","v":{"v":0,"d":"0.00"}},{"$f":"IFERROR(AVERAGEIF(Q25:Q224,\"<> \"),\"\")","v":{"v":0,"d":"0.00%"}}]
[]
[{"$f":"Planning!A9","v":"I001"},{"$f":"Planning!B9","v":"1. Indicator"},{"$f":"Planning!C9","v":"Pr68"},{"$f":"Planning!D9","v":1},{"$f":"Planning!E9","v":"[Pr68] # PLHIV that initiated ARV with CD4 count <200 Target [2. Inverse]"},{"$f":"IF(Planning!G9<>0,Planning!G9,\"\")","v":""},{"$f":"Planning!H9","v":0},{"$f":"Planning!AD9","v":0},{"$f":"IF(OR(W25=\"1\",AND(W25<>\"1\",G25=Lists!$A$17)),Y25,0)","v":0},{"$f":"R25","v":0},{"$f":"IF(AND(W25=\"2\",G25<>Lists!$A$17),AA25,Z25)","v":""},{"$f":"IF($U25=ExcluirDelPLogro,\"\",IF(AND(H25=0,I25=0,J25=0),\"\",K25))","v":""},{"$f":"Planning!AE9","v":{"v":0,"d":"0.00"}},{"$f":"'Month 7'!M25+'Month 7'!N25-'Month 7'!O25","v":{"v":0,"d":"0.00"}},{"$f":"S25","v":{"v":0,"d":"0.00"}},{"$f":"IF(AND(M25=0,N25=0,O25=0),\"\",IF((M25+N25)>0,O25/(M25+N25),O25))","v":""},{"$f":"IF($U25=ExcluirDelPLogro,\"\",IF(AND(M25=0,N25=0,O25=0),\"\",P25))","v":""},{"$f":"SUMIFS($J$25:$J$224,$C$25:$C$224,$C25,$G$25:$G$224,Lists!$A$16)","v":0},{"$f":"SUMIFS($O$25:$O$224,$C$25:$C$224,$C25,$G$25:$G$224,\"<>0\")","v":0},null,{"$f":"IF(B25=0,\"\",IF(LEFT(B25,1)=\"1\",\"1\",\"2\"))","v":"1"},null,{"$f":"IF(C25=0,\"\",LEFT(INDEX(Lists!$H$5:$H$49,MATCH(C25,Lists!$G$5:$G$49,0),1),1))","v":"2"},null,{"$f":"'Month 7'!H25+'Month 7'!I25-'Month 7'!J25","v":0},{"$f":"IF(AND(H25=0,I25=0,J25=0),\"\",IF((H25+I25)>0,J25/(H25+I25),J25))","v":""},{"$f":"IF(AND(H25=0,I25=0,J25=0),\"\",IF(J25>0,H25/J25,0))","v":""},null,{"$f":"U25&C25","v":"1Pr68"}]
[{"$f":"Planning!A10","v":"I002"},{"$f":"Planning!B10","v":"2. Activity: Contributing"},{"$f":"Planning!C10","v":"Pr68"},{"$f":"Planning!D10","v":1.2},{"$f":"Planning!E10","v":"PLHIV reimbursed for transportation costs to HIV testing and treatment centres\n"},{"$f":"IF(Planning!G10<>0,Planning!G10,\"\")","v":"12. Living support to client/ target population "},{"$f":"Planning!H10","v":"1. YES"},{"$f":"Planning!AD10","v":0},{"$f":"IF(OR(W26=\"1\",AND(W26<>\"1\",G26=Lists!$A$17)),Y26,0)","v":0},0,{"$f":"IF(AND(W26=\"2\",G26<>Lists!$A$17),AA26,Z26)","v":""},"",{"$f":"Planning!AE10","v":{"v":0,"d":"0.00"}},{"$f":"'Month 7'!M26+'Month 7'!N26-'Month 7'!O26","v":{"v":0,"d":"0.00"}},{"v":0,"d":"0.00"},"","",{"$f":"SUMIFS($J$25:$J$224,$C$25:$C$224,$C26,$G$25:$G$224,Lists!$A$16)","v":0},{"$f":"SUMIFS($O$25:$O$224,$C$25:$C$224,$C26,$G$25:$G$224,\"<>0\")","v":0},null,{"$f":"IF(B26=0,\"\",IF(LEFT(B26,1)=\"1\",\"1\",\"2\"))","v":"2"},null,{"$f":"IF(C26=0,\"\",LEFT(INDEX(Lists!$H$5:$H$49,MATCH(C26,Lists!$G$5:$G$49,0),1),1))","v":"2"},null,{"$f":"'Month 7'!H26+'Month 7'!I26-'Month 7'!J26","v":0},{"$f":"IF(AND(H26=0,I26=0,J26=0),\"\",IF((H26+I26)>0,J26/(H26+I26),J26))","v":""},"",null,{"$f":"U26&C26","v":"2Pr68"}]
[{"$f":"Planning!A11","v":"I003"},{"$f":"Planning!B11","v":"3. Activity: Non-Contributing"},{"$f":"Planning!C11","v":"Pr68"},{"$f":"Planning!D11","v":1.3},{"$f":"Planning!E11","v":"Communication materials produced to educate HIV+ patients about HIV treatment (Migrants and Sexual Workers). \n\n"},{"$f":"IF(Planning!G11<>0,Planning!G11,\"\")","v":"10. Communication material and publications"},{"$f":"Planning!H11","v":"2. NO"},{"$f":"Planning!AD11","v":0},{"$f":"IF(OR(W27=\"1\",AND(W27<>\"1\",G27=Lists!$A$17)),Y27,0)","v":1},0,{"$f":"IF(AND(W27=\"2\",G27<>Lists!$A$17),AA27,Z27)","v":{"v":0,"d":"0.00%"}},"",{"$f":"Planning!AE11","v":{"v":0,"d":"0.00"}},{"$f":"'Month 7'!M27+'Month 7'!N27-'Month 7'!O27","v":{"v":0,"d":"0.00"}},{"v":0,"d":"0.00"},"","",{"$f":"SUMIFS($J$25:$J$224,$C$25:$C$224,$C27,$G$25:$G$224,Lists!$A$16)","v":0},0,null,"2",null,{"$f":"IF(C27=0,\"\",LEFT(INDEX(Lists!$H$5:$H$49,MATCH(C27,Lists!$G$5:$G$49,0),1),1))","v":"2"},null,{"$f":"'Month 7'!H27+'Month 7'!I27-'Month 7'!J27","v":1},0,0,null,"2Pr68"]
[{"$f":"Planning!A12","v":"I004"},{"$f":"Planning!B12","v":"3. Activity: Non-Contributing"},{"$f":"Planning!C12","v":"Pr68"},{"$f":"Planning!D12","v":1.4},{"$f":"Planning!E12","v":"Supervisory visits to verify the appropriate application of testing and treatment protocols at centers. "},{"$f":"IF(Planning!G12<>0,Planning!G12,\"\")","v":"11. Programme administration costs"},{"$f":"Planning!H12","v":"2. NO"},{"$f":"Planning!AD12","v":0},{"$f":"IF(OR(W28=\"1\",AND(W28<>\"1\",G28=Lists!$A$17)),Y28,0)","v":0},0,{"$f":"IF(AND(W28=\"2\",G28<>Lists!$A$17),AA28,Z28)","v":""},"",{"$f":"Planning!AE12","v":{"v":0,"d":"0.00"}},{"$f":"'Month 7'!M28+'Month 7'!N28-'Month 7'!O28","v":{"v":0,"d":"0.00"}},{"v":0,"d":"0.00"},"","",{"$f":"SUMIFS($J$25:$J$224,$C$25:$C$224,$C28,$G$25:$G$224,Lists!$A$16)","v":0},0,null,"2",null,{"$f":"IF(C28=0,\"\",LEFT(INDEX(Lists!$H$5:$H$49,MATCH(C28,Lists!$G$5:$G$49,0),1),1))","v":"2"},null,{"$f":"'Month 7'!H28+'Month 7'!I28-'Month 7'!J28","v":0},"","",null,"2Pr68"]
[{"$f":"Planning!A13","v":"I005"},{"$f":"Planning!B13","v":"1. Indicator"},{"$f":"Planning!C13","v":"Pr72"},{"$f":"Planning!D13","v":2},{"$f":"Planning!E13","v":"[Pr72] # new HIV+ enrolled in care services Target [3. Non-Cumulative]"},{"$f":"IF(Planning!G13<>0,Planning!G13,\"\")","v":""},{"$f":"Planning!H13","v":0},{"$f":"Planning!AD13","v":0},{"$f":"IF(OR(W29=\"1\",AND(W29<>\"1\",G29=Lists!$A$17)),Y29,0)","v":0},{"$f":"R29","v":0},{"$f":"IF(AND(W29=\"2\",G29<>Lists!$A$17),AA29,Z29)","v":""},"",{"$f":"Planning!AE13","v":{"v":0,"d":"0.00"}},{"$f":"'Month 7'!M29+'Month 7'!N29-'Month 7'!O29","v":{"v":0,"d":"0.00"}},{"$f":"S29","v":{"v":0,"d":"0.00"}},"","",{"$f":"SUMIFS($J$25:$J$224,$C$25:$C$224,$C29,$G$25:$G$224,Lists!$A$16)","v":0},0,null,"1",null,{"$f":"IF(C29=0,\"\",LEFT(INDEX(Lists!$H$5:$H$49,MATCH(C29,Lists!$G$5:$G$49,0),1),1))","v":"3"},null,{"$f":"'Month 7'!H29+'Month 7'!I29-'Month 7'!J29","v":0},"","",null,"1Pr72"]
[{"$f":"Planning!A14","v":"I006"},{"$f":"Planning!B14","v":"2. Activity: Contributing"},{"$f":"Planning!C14","v":"Pr72"},{"$f":"Planning!D14","v":2.1},{"$f":"Planning!E14","v":"Enrollment of  newly diagnosed HIV+ patients for home visits to monitor use of ARV."},{"$f":"IF(Planning!G14<>0,Planning!G14,\"\")","v":"12. Living support to client/ target population "},{"$f":"Planning!H14","v":"1. YES"},{"$f":"Planning!AD14","v":0},{"$f":"IF(OR(W30=\"1\",AND(W30<>\"1\",G30=Lists!$A$17)),Y30,0)","v":0},0,{"$f":"IF(AND(W30=\"2\",G30<>Lists!$A$17),AA30,Z30)","v":""},"",{"$f":"Planning!AE14","v":{"v":0,"d":"0.00"}},{"$f":"'Month 7'!M30+'Month 7'!N30-'Month 7'!O30","v":{"v":0,"d":"0.00"}},{"v":0,"d":"0.00"},"","",{"$f":"SUMIFS($J$25:$J$224,$C$25:$C$224,$C30,$G$25:$G$224,Lists!$A$16)","v":0},0,null,"2",null,{"$f":"IF(C30=0,\"\",LEFT(INDEX(Lists!$H$5:$H$49,MATCH(C30,Lists!$G$5:$G$49,0),1),1))","v":"3"},null,{"$f":"'Month 7'!H30+'Month 7'!I30-'Month 7'!J30","v":0},"","",null,"2Pr72"]
[{"$f":"Planning!A15","v":"I007"},{"$f":"Planning!B15","v":"1. Indicator"},{"$f":"Planning!C15","v":"Pr74"},{"$f":"Planning!D15","v":3},{"$f":"Planning!E15","v":"[Pr74] # aged 10-24 yrs reached by HIV life skills ed. in school  Target [1. Standard]"},{"$f":"IF(Planning!G15<>0,Planning!G15,\"\")","v":""},{"$f":"Planning!H15","v":0},{"$f":"Planning!AD15","v":0},{"$f":"IF(OR(W31=\"1\",AND(W31<>\"1\",G31=Lists!$A$17)),Y31,0)","v":30},{"$f":"R31","v":0},{"$f":"IF(AND(W31=\"2\",G31<>Lists!$A$17),AA31,Z31)","v":{"v":0,"d":"0.00%"}},0,{"$f":"Planning!AE15","v":{"v":0,"d":"0.00"}},{"$f":"'Month 7'!M31+'Month 7'!N31-'Month 7'!O31","v":{"v":6250,"d":"6,250.00"}},{"$f":"S31","v":{"v":0,"d":"0.00"}},{"v":0,"d":"0.00%"},0,{"$f":"SUMIFS($J$25:$J$224,$C$25:$C$224,$C31,$G$25:$G$224,Lists!$A$16)","v":0},0,null,"1",null,{"$f":"IF(C31=0,\"\",LEFT(INDEX(Lists!$H$5:$H$49,MATCH(C31,Lists!$G$5:$G$49,0),1),1))","v":"1"},null,{"$f":"'Month 7'!H31+'Month 7'!I31-'Month 7'!J31","v":30},0,0,null,"1Pr74"]
[{"$f":"Planning!A16","v":"I008"},{"$f":"Planning!B16","v":"2. Activity: Contributing"},{"$f":"Planning!C16","v":"Pr74"},{"$f":"Planning!D16","v":3.1},{"$f":"Planning!E16","v":"Transportation of students to meetings and conferences for peer education activities"},{"$f":"IF(Planning!G16<>0,Planning!G16,\"\")","v":"2. Travel related costs"},{"$f":"Planning!H16","v":"1. YES"},{"$f":"Planning!AD16","v":0},{"$f":"IF(OR(W32=\"1\",AND(W32<>\"1\",G32=Lists!$A$17)),Y32,0)","v":30},0,{"$f":"IF(AND(W32=\"2\",G32<>Lists!$A$17),AA32,Z32)","v":{"v":0,"d":"0.00%"}},"",{"$f":"Planning!AE16","v":{"v":0,"d":"0.00"}},{"$f":"'Month 7'!M32+'Month 7'!N32-'Month 7'!O32","v":{"v":6250,"d":"6,250.00"}},{"v":0,"d":"0.00"},{"v":0,"d":"0.00%"},"",{"$f":"SUMIFS($J$25:$J$224,$C$25:$C$224,$C32,$G$25:$G$224,Lists!$A$16)","v":0},0,null,"2",null,{"$f":"IF(C32=0,\"\",LEFT(INDEX(Lists!$H$5:$H$49,MATCH(C32,Lists!$G$5:$G$49,0),1),1))","v":"1"},null,{"$f":"'Month 7'!H32+'Month 7'!I32-'Month 7'!J32","v":30},0,0,null,"2Pr74"]
[{"$f":"Planning!A17","v":"I009"},{"$f":"Planning!B17","v":"1. Indicator"},{"$f":"Planning!C17","v":"OI01"},{"$f":"Planning!D17","v":4},{"$f":"Planning!E17","v":"[OI01] # of new orphans and vulnerable children (0 - 17 yrs) benefiting from  services provided at OVC centers [1. Standard]"},{"$f":"IF(Planning!G17<>0,Planning!G17,\"\")","v":""},{"$f":"Planning!H17","v":0},{"$f":"Planning!AD17","v":0},{"$f":"IF(OR(W33=\"1\",AND(W33<>\"1\",G33=Lists!$A$17)),Y33,0)","v":0},{"$f":"R33","v":0},{"$f":"IF(AND(W33=\"2\",G33<>Lists!$A$17),AA33,Z33)","v":""},"",{"$f":"Planning!AE17","v":{"v":0,"d":"0.00"}},{"$f":"'Month 7'!M33+'Month 7'!N33-'Month 7'!O33","v":{"v":1000,"d":"1,000.00"}},{"$f":"S33","v":{"v":0,"d":"0.00"}},{"v":0,"d":"0.00%"},0,{"$f":"SUMIFS($J$25:$J$224,$C$25:$C$224,$C33,$G$25:$G$224,Lists!$A$16)","v":0},0,null,"1",null,{"$f":"IF(C33=0,\"\",LEFT(INDEX(Lists!$H$5:$H$49,MATCH(C33,Lists!$G$5:$G$49,0),1),1))","v":"1"},null,{"$f":"'Month 7'!H33+'Month 7'!I33-'Month 7'!J33","v":0},"","",null,"1OI01"]
[{"$f":"Planning!A18","v":"I010"},{"$f":"Planning!B18","v":"3. Activity: Non-Contributing"},{"$f":"Planning!C18","v":"OI01"},{"$f":"Planning!D18","v":4.1},{"$f":"Planning!E18","v":"# of OVC centers established and fully equipped  "},{"$f":"IF(Planning!G18<>0,Planning!G18,\"\")","v":"8. Infrastructure "},{"$f":"Planning!H18","v":"2. NO"},{"$f":"Planning!AD18","v":0},{"$f":"IF(OR(W34=\"1\",AND(W34<>\"1\",G34=Lists!$A$17)),Y34,0)","v":0},0,{"$f":"IF(AND(W34=\"2\",G34<>Lists!$A$17),AA34,Z34)","v":""},"",{"$f":"Planning!AE18","v":{"v":0,"d":"0.00"}},{"$f":"'Month 7'!M34+'Month 7'!N34-'Month 7'!O34","v":{"v":0,"d":"0.00"}},{"v":0,"d":"0.00"},"","",{"$f":"SUMIFS($J$25:$J$224,$C$25:$C$224,$C34,$G$25:$G$224,Lists!$A$16)","v":0},0,null,"2",null,{"$f":"IF(C34=0,\"\",LEFT(INDEX(Lists!$H$5:$H$49,MATCH(C34,Lists!$G$5:$G$49,0),1),1))","v":"1"},null,{"$f":"'Month 7'!H34+'Month 7'!I34-'Month 7'!J34","v":0},"","",null,"2OI01"]
[{"$f":"Planning!A19","v":"I011"},{"$f":"Planning!B19","v":"2. Activity: Contributing"},{"$f":"Planning!C19","v":"OI01"},{"$f":"Planning!D19","v":4.2},{"$f":"Planning!E19","v":"# of OVC registered at centres"},{"$f":"IF(Planning!G19<>0,Planning!G19,\"\")","v":"12. Living support to client/ target population "},{"$f":"Planning!H19","v":"1. YES"},{"$f":"Planning!AD19","v":0},{"$f":"IF(OR(W35=\"1\",AND(W35<>\"1\",G35=Lists!$A$17)),Y35,0)","v":0},0,{"$f":"IF(AND(W35=\"2\",G35<>Lists!$A$17),AA35,Z35)","v":""},"",{"$f":"Planning!AE19","v":{"v":0,"d":"0.00"}},{"$f":"'Month 7'!M35+'Month 7'!N35-'Month 7'!O35","v":{"v":0,"d":"0.00"}},{"v":0,"d":"0.00"},"","",{"$f":"SUMIFS($J$25:$J$224,$C$25:$C$224,$C35,$G$25:$G$224,Lists!$A$16)","v":0},0,null,"2",null,{"$f":"IF(C35=0,\"\",LEFT(INDEX(Lists!$H$5:$H$49,MATCH(C35,Lists!$G$5:$G$49,0),1),1))","v":"1"},null,{"$f":"'Month 7'!H35+'Month 7'!I35-'Month 7'!J35","v":0},"","",null,"2OI01"]
[{"$f":"Planning!A20","v":"I012"},{"$f":"Planning!B20","v":"3. Activity: Non-Contributing"},{"$f":"Planning!C20","v":"OI01"},{"$f":"Planning!D20","v":4.3},{"$f":"Planning!E20","v":"# of meals provided at the OVC centers "},{"$f":"IF(Planning!G20<>0,Planning!G20,\"\")","v":"12. Living support to client/ target population "},{"$f":"Planning!H20","v":"2. NO"},{"$f":"Planning!AD20","v":0},{"$f":"IF(OR(W36=\"1\",AND(W36<>\"1\",G36=Lists!$A$17)),Y36,0)","v":100},0,{"$f":"IF(AND(W36=\"2\",G36<>Lists!$A$17),AA36,Z36)","v":{"v":0,"d":"0.00%"}},"",{"$f":"Planning!AE20","v":{"v":0,"d":"0.00"}},{"$f":"'Month 7'!M36+'Month 7'!N36-'Month 7'!O36","v":{"v":1000,"d":"1,000.00"}},{"v":0,"d":"0.00"},{"v":0,"d":"0.00%"},"",{"$f":"SUMIFS($J$25:$J$224,$C$25:$C$224,$C36,$G$25:$G$224,Lists!$A$16)","v":0},0,null,"2",null,{"$f":"IF(C36=0,\"\",LEFT(INDEX(Lists!$H$5:$H$49,MATCH(C36,Lists!$G$5:$G$49,0),1),1))","v":"1"},null,{"$f":"'Month 7'!H36+'Month 7'!I36-'Month 7'!J36","v":100},0,0,null,"2OI01"]
[{"$f":"Planning!A21","v":"I013"},{"$f":"Planning!B21","v":0},{"$f":"Planning!C21","v":0},{"$f":"Planning!D21","v":0},{"$f":"Planning!E21","v":0},{"$f":"IF(Planning!G21<>0,Planning!G21,\"\")","v":""},{"$f":"Planning!H21","v":0},{"$f":"Planning!AD21","v":0},{"$f":"IF(OR(W37=\"1\",AND(W37<>\"1\",G37=Lists!$A$17)),Y37,0)","v":0},null,{"$f":"IF(AND(W37=\"2\",G37<>Lists!$A$17),AA37,Z37)","v":""},"",{"$f":"Planning!AE21","v":{"v":0,"d":"0.00"}},{"$f":"'Month 7'!M37+'Month 7'!N37-'Month 7'!O37","v":{"v":0,"d":"0.00"}},null,"","",{"$f":"SUMIFS($J$25:$J$224,$C$25:$C$224,$C37,$G$25:$G$224,Lists!$A$16)","v":0},0,null,"",null,{"$f":"IF(C37=0,\"\",LEFT(INDEX(Lists!$H$5:$H$49,MATCH(C37,Lists!$G$5:$G$49,0),1),1))","v":""},null,{"$f":"'Month 7'!H37+'Month 7'!I37-'Month 7'!J37","v":0},"","",null,"0"]
[{"$f":"Planning!A22","v":"I014"},{"$f":"Planning!B22","v":0},{"$f":"Planning!C22","v":0},{"$f":"Planning!D22","v":0},{"$f":"Planning!E22","v":0},{"$f":"IF(Planning!G22<>0,Planning!G22,\"\")","v":""},{"$f":"Planning!H22","v":0},{"$f":"Planning!AD22","v":0},{"$f":"IF(OR(W38=\"1\",AND(W38<>\"1\",G38=Lists!$A$17)),Y38,0)","v":0},null,{"$f":"IF(AND(W38=\"2\",G38<>Lists!$A$17),AA38,Z38)","v":""},"",{"$f":"Planning!AE22","v":{"v":0,"d":"0.00"}},{"$f":"'Month 7'!M38+'Month 7'!N38-'Month 7'!O38","v":{"v":0,"d":"0.00"}},null,"","",{"$f":"SUMIFS($J$25:$J$224,$C$25:$C$224,$C38,$G$25:$G$224,Lists!$A$16)","v":0},0,null,"",null,{"$f":"IF(C38=0,\"\",LEFT(INDEX(Lists!$H$5:$H$49,MATCH(C38,Lists!$G$5:$G$49,0),1),1))","v":""},null,{"$f":"'Month 7'!H38+'Month 7'!I38-'Month 7'!J38","v":0},"","",null,"0"]
[{"$f":"Planning!A23","v":"I015"},{"$f":"Planning!B23","v":0},{"$f":"Planning!C23","v":0},{"$f":"Planning!D23","v":0},{"$f":"Planning!E23","v":0},{"$f":"IF(Planning!G23<>0,Planning!G23,\"\")","v":""},{"$f":"Planning!H23","v":0},{"$f":"Planning!AD23","v":0},{"$f":"IF(OR(W39=\"1\",AND(W39<>\"1\",G39=Lists!$A$17)),Y39,0)","v":0},null,{"$f":"IF(AND(W39=\"2\",G39<>Lists!$A$17),AA39,Z39)","v":""},"",{"$f":"Planning!AE23","v":{"v":0,"d":"0.00"}},{"$f":"'Month 7'!M39+'Month 7'!N39-'Month 7'!O39","v":{"v":0,"d":"0.00"}},null,"","",{"$f":"SUMIFS($J$25:$J$224,$C$25:$C$224,$C39,$G$25:$G$224,Lists!$A$16)","v":0},0,null,"",null,{"$f":"IF(C39=0,\"\",LEFT(INDEX(Lists!$H$5:$H$49,MATCH(C39,Lists!$G$5:$G$49,0),1),1))","v":""},null,{"$f":"'Month 7'!H39+'Month 7'!I39-'Month 7'!J39","v":0},"","",null,"0"]
[{"$f":"Planning!A24","v":"I016"},{"$f":"Planning!B24","v":0},{"$f":"Planning!C24","v":0},{"$f":"Planning!D24","v":0},{"$f":"Planning!E24","v":0},{"$f":"IF(Planning!G24<>0,Planning!G24,\"\")","v":""},{"$f":"Planning!H24","v":0},{"$f":"Planning!AD24","v":0},{"$f":"IF(OR(W40=\"1\",AND(W40<>\"1\",G40=Lists!$A$17)),Y40,0)","v":0},null,{"$f":"IF(AND(W40=\"2\",G40<>Lists!$A$17),AA40,Z40)","v":""},"",{"$f":"Planning!AE24","v":{"v":0,"d":"0.00"}},{"$f":"'Month 7'!M40+'Month 7'!N40-'Month 7'!O40","v":{"v":0,"d":"0.00"}},null,"","",{"$f":"SUMIFS($J$25:$J$224,$C$25:$C$224,$C40,$G$25:$G$224,Lists!$A$16)","v":0},0,null,"",null,{"$f":"IF(C40=0,\"\",LEFT(INDEX(Lists!$H$5:$H$49,MATCH(C40,Lists!$G$5:$G$49,0),1),1))","v":""},null,{"$f":"'Month 7'!H40+'Month 7'!I40-'Month 7'!J40","v":0},"","",null,"0"]
[{"$f":"Planning!A25","v":"I017"},{"$f":"Planning!B25","v":0},{"$f":"Planning!C25","v":0},{"$f":"Planning!D25","v":0},{"$f":"Planning!E25","v":0},{"$f":"IF(Planning!G25<>0,Planning!G25,\"\")","v":""},{"$f":"Planning!H25","v":0},{"$f":"Planning!AD25","v":0},{"$f":"IF(OR(W41=\"1\",AND(W41<>\"1\",G41=Lists!$A$17)),Y41,0)","v":0},null,{"$f":"IF(AND(W41=\"2\",G41<>Lists!$A$17),AA41,Z41)","v":""},"",{"$f":"Planning!AE25","v":{"v":0,"d":"0.00"}},{"$f":"'Month 7'!M41+'Month 7'!N41-'Month 7'!O41","v":{"v":0,"d":"0.00"}},null,"","",{"$f":"SUMIFS($J$25:$J$224,$C$25:$C$224,$C41,$G$25:$G$224,Lists!$A$16)","v":0},0,null,"",null,{"$f":"IF(C41=0,\"\",LEFT(INDEX(Lists!$H$5:$H$49,MATCH(C41,Lists!$G$5:$G$49,0),1),1))","v":""},null,{"$f":"'Month 7'!H41+'Month 7'!I41-'Month 7'!J41","v":0},"","",null,"0"]
[{"$f":"Planning!A26","v":"I018"},{"$f":"Planning!B26","v":0},{"$f":"Planning!C26","v":0},{"$f":"Planning!D26","v":0},{"$f":"Planning!E26","v":0},{"$f":"IF(Planning!G26<>0,Planning!G26,\"\")","v":""},{"$f":"Planning!H26","v":0},{"$f":"Planning!AD26","v":0},{"$f":"IF(OR(W42=\"1\",AND(W42<>\"1\",G42=Lists!$A$17)),Y42,0)","v":0},null,{"$f":"IF(AND(W42=\"2\",G42<>Lists!$A$17),AA42,Z42)","v":""},"",{"$f":"Planning!AE26","v":{"v":0,"d":"0.00"}},{"$f":"'Month 7'!M42+'Month 7'!N42-'Month 7'!O42","v":{"v":0,"d":"0.00"}},null,"","",{"$f":"SUMIFS($J$25:$J$224,$C$25:$C$224,$C42,$G$25:$G$224,Lists!$A$16)","v":0},0,null,"",null,{"$f":"IF(C42=0,\"\",LEFT(INDEX(Lists!$H$5:$H$49,MATCH(C42,Lists!$G$5:$G$49,0),1),1))","v":""},null,{"$f":"'Month 7'!H42+'Month 7'!I42-'Month 7'!J42","v":0},"","",null,"0"]
[{"$f":"Planning!A27","v":"I019"},{"$f":"Planning!B27","v":0},{"$f":"Planning!C27","v":0},{"$f":"Planning!D27","v":0},{"$f":"Planning!E27","v":0},{"$f":"IF(Planning!G27<>0,Planning!G27,\"\")","v":""},{"$f":"Planning!H27","v":0},{"$f":"Planning!AD27","v":0},{"$f":"IF(OR(W43=\"1\",AND(W43<>\"1\",G43=Lists!$A$17)),Y43,0)","v":0},null,{"$f":"IF(AND(W43=\"2\",G43<>Lists!$A$17),AA43,Z43)","v":""},"",{"$f":"Planning!AE27","v":{"v":0,"d":"0.00"}},{"$f":"'Month 7'!M43+'Month 7'!N43-'Month 7'!O43","v":{"v":0,"d":"0.00"}},null,"","",{"$f":"SUMIFS($J$25:$J$224,$C$25:$C$224,$C43,$G$25:$G$224,Lists!$A$16)","v":0},0,null,"",null,{"$f":"IF(C43=0,\"\",LEFT(INDEX(Lists!$H$5:$H$49,MATCH(C43,Lists!$G$5:$G$49,0),1),1))","v":""},null,{"$f":"'Month 7'!H43+'Month 7'!I43-'Month 7'!J43","v":0},"","",null,"0"]
[{"$f":"Planning!A28","v":"I020"},{"$f":"Planning!B28","v":0},{"$f":"Planning!C28","v":0},{"$f":"Planning!D28","v":0},{"$f":"Planning!E28","v":0},{"$f":"IF(Planning!G28<>0,Planning!G28,\"\")","v":""},{"$f":"Planning!H28","v":0},{"$f":"Planning!AD28","v":0},{"$f":"IF(OR(W44=\"1\",AND(W44<>\"1\",G44=Lists!$A$17)),Y44,0)","v":0},null,{"$f":"IF(AND(W44=\"2\",G44<>Lists!$A$17),AA44,Z44)","v":""},"",{"$f":"Planning!AE28","v":{"v":0,"d":"0.00"}},{"$f":"'Month 7'!M44+'Month 7'!N44-'Month 7'!O44","v":{"v":0,"d":"0.00"}},null,"","",{"$f":"SUMIFS($J$25:$J$224,$C$25:$C$224,$C44,$G$25:$G$224,Lists!$A$16)","v":0},0,null,"",null,{"$f":"IF(C44=0,\"\",LEFT(INDEX(Lists!$H$5:$H$49,MATCH(C44,Lists!$G$5:$G$49,0),1),1))","v":""},null,{"$f":"'Month 7'!H44+'Month 7'!I44-'Month 7'!J44","v":0},"","",null,"0"]
[{"$f":"Planning!A29","v":"I021"},{"$f":"Planning!B29","v":0},{"$f":"Planning!C29","v":0},{"$f":"Planning!D29","v":0},{"$f":"Planning!E29","v":0},{"$f":"IF(Planning!G29<>0,Planning!G29,\"\")","v":""},{"$f":"Planning!H29","v":0},{"$f":"Planning!AD29","v":0},{"$f":"IF(OR(W45=\"1\",AND(W45<>\"1\",G45=Lists!$A$17)),Y45,0)","v":0},null,{"$f":"IF(AND(W45=\"2\",G45<>Lists!$A$17),AA45,Z45)","v":""},"",{"$f":"Planning!AE29","v":{"v":0,"d":"0.00"}},{"$f":"'Month 7'!M45+'Month 7'!N45-'Month 7'!O45","v":{"v":0,"d":"0.00"}},null,"","",{"$f":"SUMIFS($J$25:$J$224,$C$25:$C$224,$C45,$G$25:$G$224,Lists!$A$16)","v":0},0,null,"",null,{"$f":"IF(C45=0,\"\",LEFT(INDEX(Lists!$H$5:$H$49,MATCH(C45,Lists!$G$5:$G$49,0),1),1))","v":""},null,{"$f":"'Month 7'!H45+'Month 7'!I45-'Month 7'!J45","v":0},"","",null,"0"]
[{"$f":"Planning!A30","v":"I022"},{"$f":"Planning!B30","v":0},{"$f":"Planning!C30","v":0},{"$f":"Planning!D30","v":0},{"$f":"Planning!E30","v":0},{"$f":"IF(Planning!G30<>0,Planning!G30,\"\")","v":""},{"$f":"Planning!H30","v":0},{"$f":"Planning!AD30","v":0},{"$f":"IF(OR(W46=\"1\",AND(W46<>\"1\",G46=Lists!$A$17)),Y46,0)","v":0},null,{"$f":"IF(AND(W46=\"2\",G46<>Lists!$A$17),AA46,Z46)","v":""},"",{"$f":"Planning!AE30","v":{"v":0,"d":"0.00"}},{"$f":"'Month 7'!M46+'Month 7'!N46-'Month 7'!O46","v":{"v":0,"d":"0.00"}},null,"","",{"$f":"SUMIFS($J$25:$J$224,$C$25:$C$224,$C46,$G$25:$G$224,Lists!$A$16)","v":0},0,null,"",null,{"$f":"IF(C46=0,\"\",LEFT(INDEX(Lists!$H$5:$H$49,MATCH(C46,Lists!$G$5:$G$49,0),1),1))","v":""},null,{"$f":"'Month 7'!H46+'Month 7'!I46-'Month 7'!J46","v":0},"","",null,"0"]
[{"$f":"Planning!A31","v":"I023"},{"$f":"Planning!B31","v":0},{"$f":"Planning!C31","v":0},{"$f":"Planning!D31","v":0},{"$f":"Planning!E31","v":0},{"$f":"IF(Planning!G31<>0,Planning!G31,\"\")","v":""},{"$f":"Planning!H31","v":0},{"$f":"Planning!AD31","v":0},{"$f":"IF(OR(W47=\"1\",AND(W47<>\"1\",G47=Lists!$A$17)),Y47,0)","v":0},null,{"$f":"IF(AND(W47=\"2\",G47<>Lists!$A$17),AA47,Z47)","v":""},"",{"$f":"Planning!AE31","v":{"v":0,"d":"0.00"}},{"$f":"'Month 7'!M47+'Month 7'!N47-'Month 7'!O47","v":{"v":0,"d":"0.00"}},null,"","",{"$f":"SUMIFS($J$25:$J$224,$C$25:$C$224,$C47,$G$25:$G$224,Lists!$A$16)","v":0},0,null,"",null,{"$f":"IF(C47=0,\"\",LEFT(INDEX(Lists!$H$5:$H$49,MATCH(C47,Lists!$G$5:$G$49,0),1),1))","v":""},null,{"$f":"'Month 7'!H47+'Month 7'!I47-'Month 7'!J47","v":0},"","",null,"0"]
[{"$f":"Planning!A32","v":"I024"},{"$f":"Planning!B32","v":0},{"$f":"Planning!C32","v":0},{"$f":"Planning!D32","v":0},{"$f":"Planning!E32","v":0},{"$f":"IF(Planning!G32<>0,Planning!G32,\"\")","v":""},{"$f":"Planning!H32","v":0},{"$f":"Planning!AD32","v":0},{"$f":"IF(OR(W48=\"1\",AND(W48<>\"1\",G48=Lists!$A$17)),Y48,0)","v":0},null,{"$f":"IF(AND(W48=\"2\",G48<>Lists!$A$17),AA48,Z48)","v":""},"",{"$f":"Planning!AE32","v":{"v":0,"d":"0.00"}},{"$f":"'Month 7'!M48+'Month 7'!N48-'Month 7'!O48","v":{"v":0,"d":"0.00"}},null,"","",{"$f":"SUMIFS($J$25:$J$224,$C$25:$C$224,$C48,$G$25:$G$224,Lists!$A$16)","v":0},0,null,"",null,{"$f":"IF(C48=0,\"\",LEFT(INDEX(Lists!$H$5:$H$49,MATCH(C48,Lists!$G$5:$G$49,0),1),1))","v":""},null,{"$f":"'Month 7'!H48+'Month 7'!I48-'Month 7'!J48","v":0},"","",null,"0"]
[{"$f":"Planning!A33","v":"I025"},{"$f":"Planning!B33","v":0},{"$f":"Planning!C33","v":0},{"$f":"Planning!D33","v":0},{"$f":"Planning!E33","v":0},{"$f":"IF(Planning!G33<>0,Planning!G33,\"\")","v":""},{"$f":"Planning!H33","v":0},{"$f":"Planning!AD33","v":0},{"$f":"IF(OR(W49=\"1\",AND(W49<>\"1\",G49=Lists!$A$17)),Y49,0)","v":0},null,{"$f":"IF(AND(W49=\"2\",G49<>Lists!$A$17),AA49,Z49)","v":""},"",{"$f":"Planning!AE33","v":{"v":0,"d":"0.00"}},{"$f":"'Month 7'!M49+'Month 7'!N49-'Month 7'!O49","v":{"v":0,"d":"0.00"}},null,"","",{"$f":"SUMIFS($J$25:$J$224,$C$25:$C$224,$C49,$G$25:$G$224,Lists!$A$16)","v":0},0,null,"",null,{"$f":"IF(C49=0,\"\",LEFT(INDEX(Lists!$H$5:$H$49,MATCH(C49,Lists!$G$5:$G$49,0),1),1))","v":""},null,{"$f":"'Month 7'!H49+'Month 7'!I49-'Month 7'!J49","v":0},"","",null,"0"]
[{"$f":"Planning!A34","v":"I026"},{"$f":"Planning!B34","v":0},{"$f":"Planning!C34","v":0},{"$f":"Planning!D34","v":0},{"$f":"Planning!E34","v":0},{"$f":"IF(Planning!G34<>0,Planning!G34,\"\")","v":""},{"$f":"Planning!H34","v":0},{"$f":"Planning!AD34","v":0},{"$f":"IF(OR(W50=\"1\",AND(W50<>\"1\",G50=Lists!$A$17)),Y50,0)","v":0},null,{"$f":"IF(AND(W50=\"2\",G50<>Lists!$A$17),AA50,Z50)","v":""},"",{"$f":"Planning!AE34","v":{"v":0,"d":"0.00"}},{"$f":"'Month 7'!M50+'Month 7'!N50-'Month 7'!O50","v":{"v":0,"d":"0.00"}},null,"","",{"$f":"SUMIFS($J$25:$J$224,$C$25:$C$224,$C50,$G$25:$G$224,Lists!$A$16)","v":0},0,null,"",null,{"$f":"IF(C50=0,\"\",LEFT(INDEX(Lists!$H$5:$H$49,MATCH(C50,Lists!$G$5:$G$49,0),1),1))","v":""},null,{"$f":"'Month 7'!H50+'Month 7'!I50-'Month 7'!J50","v":0},"","",null,"0"]
[{"$f":"Planning!A35","v":"I027"},{"$f":"Planning!B35","v":0},{"$f":"Planning!C35","v":0},{"$f":"Planning!D35","v":0},{"$f":"Planning!E35","v":0},{"$f":"IF(Planning!G35<>0,Planning!G35,\"\")","v":""},{"$f":"Planning!H35","v":0},{"$f":"Planning!AD35","v":0},{"$f":"IF(OR(W51=\"1\",AND(W51<>\"1\",G51=Lists!$A$17)),Y51,0)","v":0},null,{"$f":"IF(AND(W51=\"2\",G51<>Lists!$A$17),AA51,Z51)","v":""},"",{"$f":"Planning!AE35","v":{"v":0,"d":"0.00"}},{"$f":"'Month 7'!M51+'Month 7'!N51-'Month 7'!O51","v":{"v":0,"d":"0.00"}},null,"","",{"$f":"SUMIFS($J$25:$J$224,$C$25:$C$224,$C51,$G$25:$G$224,Lists!$A$16)","v":0},0,null,"",null,{"$f":"IF(C51=0,\"\",LEFT(INDEX(Lists!$H$5:$H$49,MATCH(C51,Lists!$G$5:$G$49,0),1),1))","v":""},null,{"$f":"'Month 7'!H51+'Month 7'!I51-'Month 7'!J51","v":0},"","",null,"0"]
[{"$f":"Planning!A36","v":"I028"},{"$f":"Planning!B36","v":0},{"$f":"Planning!C36","v":0},{"$f":"Planning!D36","v":0},{"$f":"Planning!E36","v":0},{"$f":"IF(Planning!G36<>0,Planning!G36,\"\")","v":""},{"$f":"Planning!H36","v":0},{"$f":"Planning!AD36","v":0},{"$f":"IF(OR(W52=\"1\",AND(W52<>\"1\",G52=Lists!$A$17)),Y52,0)","v":0},null,{"$f":"IF(AND(W52=\"2\",G52<>Lists!$A$17),AA52,Z52)","v":""},"",{"$f":"Planning!AE36","v":{"v":0,"d":"0.00"}},{"$f":"'Month 7'!M52+'Month 7'!N52-'Month 7'!O52","v":{"v":0,"d":"0.00"}},null,"","",{"$f":"SUMIFS($J$25:$J$224,$C$25:$C$224,$C52,$G$25:$G$224,Lists!$A$16)","v":0},0,null,"",null,{"$f":"IF(C52=0,\"\",LEFT(INDEX(Lists!$H$5:$H$49,MATCH(C52,Lists!$G$5:$G$49,0),1),1))","v":""},null,{"$f":"'Month 7'!H52+'Month 7'!I52-'Month 7'!J52","v":0},"","",null,"0"]
[{"$f":"Planning!A37","v":"I029"},{"$f":"Planning!B37","v":0},{"$f":"Planning!C37","v":0},{"$f":"Planning!D37","v":0},{"$f":"Planning!E37","v":0},{"$f":"IF(Planning!G37<>0,Planning!G37,\"\")","v":""},{"$f":"Planning!H37","v":0},{"$f":"Planning!AD37","v":0},{"$f":"IF(OR(W53=\"1\",AND(W53<>\"1\",G53=Lists!$A$17)),Y53,0)","v":0},null,{"$f":"IF(AND(W53=\"2\",G53<>Lists!$A$17),AA53,Z53)","v":""},"",{"$f":"Planning!AE37","v":{"v":0,"d":"0.00"}},{"$f":"'Month 7'!M53+'Month 7'!N53-'Month 7'!O53","v":{"v":0,"d":"0.00"}},null,"","",{"$f":"SUMIFS($J$25:$J$224,$C$25:$C$224,$C53,$G$25:$G$224,Lists!$A$16)","v":0},0,null,"",null,{"$f":"IF(C53=0,\"\",LEFT(INDEX(Lists!$H$5:$H$49,MATCH(C53,Lists!$G$5:$G$49,0),1),1))","v":""},null,{"$f":"'Month 7'!H53+'Month 7'!I53-'Month 7'!J53","v":0},"","",null,"0"]
[{"$f":"Planning!A38","v":"I030"},{"$f":"Planning!B38","v":0},{"$f":"Planning!C38","v":0},{"$f":"Planning!D38","v":0},{"$f":"Planning!E38","v":0},{"$f":"IF(Planning!G38<>0,Planning!G38,\"\")","v":""},{"$f":"Planning!H38","v":0},{"$f":"Planning!AD38","v":0},{"$f":"IF(OR(W54=\"1\",AND(W54<>\"1\",G54=Lists!$A$17)),Y54,0)","v":0},null,{"$f":"IF(AND(W54=\"2\",G54<>Lists!$A$17),AA54,Z54)","v":""},"",{"$f":"Planning!AE38","v":{"v":0,"d":"0.00"}},{"$f":"'Month 7'!M54+'Month 7'!N54-'Month 7'!O54","v":{"v":0,"d":"0.00"}},null,"","",{"$f":"SUMIFS($J$25:$J$224,$C$25:$C$224,$C54,$G$25:$G$224,Lists!$A$16)","v":0},0,null,"",null,{"$f":"IF(C54=0,\"\",LEFT(INDEX(Lists!$H$5:$H$49,MATCH(C54,Lists!$G$5:$G$49,0),1),1))","v":""},null,{"$f":"'Month 7'!H54+'Month 7'!I54-'Month 7'!J54","v":0},"","",null,"0"]
[{"$f":"Planning!A39","v":"I031"},{"$f":"Planning!B39","v":0},{"$f":"Planning!C39","v":0},{"$f":"Planning!D39","v":0},{"$f":"Planning!E39","v":0},{"$f":"IF(Planning!G39<>0,Planning!G39,\"\")","v":""},{"$f":"Planning!H39","v":0},{"$f":"Planning!AD39","v":0},{"$f":"IF(OR(W55=\"1\",AND(W55<>\"1\",G55=Lists!$A$17)),Y55,0)","v":0},null,{"$f":"IF(AND(W55=\"2\",G55<>Lists!$A$17),AA55,Z55)","v":""},"",{"$f":"Planning!AE39","v":{"v":0,"d":"0.00"}},{"$f":"'Month 7'!M55+'Month 7'!N55-'Month 7'!O55","v":{"v":0,"d":"0.00"}},null,"","",{"$f":"SUMIFS($J$25:$J$224,$C$25:$C$224,$C55,$G$25:$G$224,Lists!$A$16)","v":0},0,null,"",null,{"$f":"IF(C55=0,\"\",LEFT(INDEX(Lists!$H$5:$H$49,MATCH(C55,Lists!$G$5:$G$49,0),1),1))","v":""},null,{"$f":"'Month 7'!H55+'Month 7'!I55-'Month 7'!J55","v":0},"","",null,"0"]
[{"$f":"Planning!A40","v":"I032"},{"$f":"Planning!B40","v":0},{"$f":"Planning!C40","v":0},{"$f":"Planning!D40","v":0},{"$f":"Planning!E40","v":0},{"$f":"IF(Planning!G40<>0,Planning!G40,\"\")","v":""},{"$f":"Planning!H40","v":0},{"$f":"Planning!AD40","v":0},{"$f":"IF(OR(W56=\"1\",AND(W56<>\"1\",G56=Lists!$A$17)),Y56,0)","v":0},null,{"$f":"IF(AND(W56=\"2\",G56<>Lists!$A$17),AA56,Z56)","v":""},"",{"$f":"Planning!AE40","v":{"v":0,"d":"0.00"}},{"$f":"'Month 7'!M56+'Month 7'!N56-'Month 7'!O56","v":{"v":0,"d":"0.00"}},null,"","",{"$f":"SUMIFS($J$25:$J$224,$C$25:$C$224,$C56,$G$25:$G$224,Lists!$A$16)","v":0},0,null,"",null,{"$f":"IF(C56=0,\"\",LEFT(INDEX(Lists!$H$5:$H$49,MATCH(C56,Lists!$G$5:$G$49,0),1),1))","v":""},null,{"$f":"'Month 7'!H56+'Month 7'!I56-'Month 7'!J56","v":0},"","",null,"0"]
[{"$f":"Planning!A41","v":"I033"},{"$f":"Planning!B41","v":0},{"$f":"Planning!C41","v":0},{"$f":"Planning!D41","v":0},{"$f":"Planning!E41","v":0},{"$f":"IF(Planning!G41<>0,Planning!G41,\"\")","v":""},{"$f":"Planning!H41","v":0},{"$f":"Planning!AD41","v":0},{"$f":"IF(OR(W57=\"1\",AND(W57<>\"1\",G57=Lists!$A$17)),Y57,0)","v":0},null,{"$f":"IF(AND(W57=\"2\",G57<>Lists!$A$17),AA57,Z57)","v":""},{"$f":"IF($U57=ExcluirDelPLogro,\"\",IF(AND(H57=0,I57=0,J57=0),\"\",K57))","v":""},{"$f":"Planning!AE41","v":{"v":0,"d":"0.00"}},{"$f":"'Month 7'!M57+'Month 7'!N57-'Month 7'!O57","v":{"v":0,"d":"0.00"}},null,"",{"$f":"IF($U57=ExcluirDelPLogro,\"\",IF(AND(M57=0,N57=0,O57=0),\"\",P57))","v":""},{"$f":"SUMIFS($J$25:$J$224,$C$25:$C$224,$C57,$G$25:$G$224,Lists!$A$16)","v":0},0,null,"",null,{"$f":"IF(C57=0,\"\",LEFT(INDEX(Lists!$H$5:$H$49,MATCH(C57,Lists!$G$5:$G$49,0),1),1))","v":""},null,{"$f":"'Month 7'!H57+'Month 7'!I57-'Month 7'!J57","v":0},"",{"$f":"IF(AND(H57=0,I57=0,J57=0),\"\",IF(J57>0,H57/J57,0))","v":""},null,"0"]
[{"$f":"Planning!A42","v":"I034"},{"$f":"Planning!B42","v":0},{"$f":"Planning!C42","v":0},{"$f":"Planning!D42","v":0},{"$f":"Planning!E42","v":0},{"$f":"IF(Planning!G42<>0,Planning!G42,\"\")","v":""},{"$f":"Planning!H42","v":0},{"$f":"Planning!AD42","v":0},{"$f":"IF(OR(W58=\"1\",AND(W58<>\"1\",G58=Lists!$A$17)),Y58,0)","v":0},null,{"$f":"IF(AND(W58=\"2\",G58<>Lists!$A$17),AA58,Z58)","v":""},"",{"$f":"Planning!AE42","v":{"v":0,"d":"0.00"}},{"$f":"'Month 7'!M58+'Month 7'!N58-'Month 7'!O58","v":{"v":0,"d":"0.00"}},null,"","",{"$f":"SUMIFS($J$25:$J$224,$C$25:$C$224,$C58,$G$25:$G$224,Lists!$A$16)","v":0},0,null,"",null,{"$f":"IF(C58=0,\"\",LEFT(INDEX(Lists!$H$5:$H$49,MATCH(C58,Lists!$G$5:$G$49,0),1),1))","v":""},null,{"$f":"'Month 7'!H58+'Month 7'!I58-'Month 7'!J58","v":0},"","",null,"0"]
[{"$f":"Planning!A43","v":"I035"},{"$f":"Planning!B43","v":0},{"$f":"Planning!C43","v":0},{"$f":"Planning!D43","v":0},{"$f":"Planning!E43","v":0},{"$f":"IF(Planning!G43<>0,Planning!G43,\"\")","v":""},{"$f":"Planning!H43","v":0},{"$f":"Planning!AD43","v":0},{"$f":"IF(OR(W59=\"1\",AND(W59<>\"1\",G59=Lists!$A$17)),Y59,0)","v":0},null,{"$f":"IF(AND(W59=\"2\",G59<>Lists!$A$17),AA59,Z59)","v":""},"",{"$f":"Planning!AE43","v":{"v":0,"d":"0.00"}},{"$f":"'Month 7'!M59+'Month 7'!N59-'Month 7'!O59","v":{"v":0,"d":"0.00"}},null,"","",{"$f":"SUMIFS($J$25:$J$224,$C$25:$C$224,$C59,$G$25:$G$224,Lists!$A$16)","v":0},0,null,"",null,{"$f":"IF(C59=0,\"\",LEFT(INDEX(Lists!$H$5:$H$49,MATCH(C59,Lists!$G$5:$G$49,0),1),1))","v":""},null,{"$f":"'Month 7'!H59+'Month 7'!I59-'Month 7'!J59","v":0},"","",null,"0"]
[{"$f":"Planning!A44","v":"I036"},{"$f":"Planning!B44","v":0},{"$f":"Planning!C44","v":0},{"$f":"Planning!D44","v":0},{"$f":"Planning!E44","v":0},{"$f":"IF(Planning!G44<>0,Planning!G44,\"\")","v":""},{"$f":"Planning!H44","v":0},{"$f":"Planning!AD44","v":0},{"$f":"IF(OR(W60=\"1\",AND(W60<>\"1\",G60=Lists!$A$17)),Y60,0)","v":0},null,{"$f":"IF(AND(W60=\"2\",G60<>Lists!$A$17),AA60,Z60)","v":""},"",{"$f":"Planning!AE44","v":{"v":0,"d":"0.00"}},{"$f":"'Month 7'!M60+'Month 7'!N60-'Month 7'!O60","v":{"v":0,"d":"0.00"}},null,"","",{"$f":"SUMIFS($J$25:$J$224,$C$25:$C$224,$C60,$G$25:$G$224,Lists!$A$16)","v":0},0,null,"",null,{"$f":"IF(C60=0,\"\",LEFT(INDEX(Lists!$H$5:$H$49,MATCH(C60,Lists!$G$5:$G$49,0),1),1))","v":""},null,{"$f":"'Month 7'!H60+'Month 7'!I60-'Month 7'!J60","v":0},"","",null,"0"]
[{"$f":"Planning!A45","v":"I037"},{"$f":"Planning!B45","v":0},{"$f":"Planning!C45","v":0},{"$f":"Planning!D45","v":0},{"$f":"Planning!E45","v":0},{"$f":"IF(Planning!G45<>0,Planning!G45,\"\")","v":""},{"$f":"Planning!H45","v":0},{"$f":"Planning!AD45","v":0},{"$f":"IF(OR(W61=\"1\",AND(W61<>\"1\",G61=Lists!$A$17)),Y61,0)","v":0},null,{"$f":"IF(AND(W61=\"2\",G61<>Lists!$A$17),AA61,Z61)","v":""},"",{"$f":"Planning!AE45","v":{"v":0,"d":"0.00"}},{"$f":"'Month 7'!M61+'Month 7'!N61-'Month 7'!O61","v":{"v":0,"d":"0.00"}},null,"","",{"$f":"SUMIFS($J$25:$J$224,$C$25:$C$224,$C61,$G$25:$G$224,Lists!$A$16)","v":0},0,null,"",null,{"$f":"IF(C61=0,\"\",LEFT(INDEX(Lists!$H$5:$H$49,MATCH(C61,Lists!$G$5:$G$49,0),1),1))","v":""},null,{"$f":"'Month 7'!H61+'Month 7'!I61-'Month 7'!J61","v":0},"","",null,"0"]
[{"$f":"Planning!A46","v":"I038"},{"$f":"Planning!B46","v":0},{"$f":"Planning!C46","v":0},{"$f":"Planning!D46","v":0},{"$f":"Planning!E46","v":0},{"$f":"IF(Planning!G46<>0,Planning!G46,\"\")","v":""},{"$f":"Planning!H46","v":0},{"$f":"Planning!AD46","v":0},{"$f":"IF(OR(W62=\"1\",AND(W62<>\"1\",G62=Lists!$A$17)),Y62,0)","v":0},null,{"$f":"IF(AND(W62=\"2\",G62<>Lists!$A$17),AA62,Z62)","v":""},"",{"$f":"Planning!AE46","v":{"v":0,"d":"0.00"}},{"$f":"'Month 7'!M62+'Month 7'!N62-'Month 7'!O62","v":{"v":0,"d":"0.00"}},null,"","",{"$f":"SUMIFS($J$25:$J$224,$C$25:$C$224,$C62,$G$25:$G$224,Lists!$A$16)","v":0},0,null,"",null,{"$f":"IF(C62=0,\"\",LEFT(INDEX(Lists!$H$5:$H$49,MATCH(C62,Lists!$G$5:$G$49,0),1),1))","v":""},null,{"$f":"'Month 7'!H62+'Month 7'!I62-'Month 7'!J62","v":0},"","",null,"0"]
[{"$f":"Planning!A47","v":"I039"},{"$f":"Planning!B47","v":0},{"$f":"Planning!C47","v":0},{"$f":"Planning!D47","v":0},{"$f":"Planning!E47","v":0},{"$f":"IF(Planning!G47<>0,Planning!G47,\"\")","v":""},{"$f":"Planning!H47","v":0},{"$f":"Planning!AD47","v":0},{"$f":"IF(OR(W63=\"1\",AND(W63<>\"1\",G63=Lists!$A$17)),Y63,0)","v":0},null,{"$f":"IF(AND(W63=\"2\",G63<>Lists!$A$17),AA63,Z63)","v":""},"",{"$f":"Planning!AE47","v":{"v":0,"d":"0.00"}},{"$f":"'Month 7'!M63+'Month 7'!N63-'Month 7'!O63","v":{"v":0,"d":"0.00"}},null,"","",{"$f":"SUMIFS($J$25:$J$224,$C$25:$C$224,$C63,$G$25:$G$224,Lists!$A$16)","v":0},0,null,"",null,{"$f":"IF(C63=0,\"\",LEFT(INDEX(Lists!$H$5:$H$49,MATCH(C63,Lists!$G$5:$G$49,0),1),1))","v":""},null,{"$f":"'Month 7'!H63+'Month 7'!I63-'Month 7'!J63","v":0},"","",null,"0"]
[{"$f":"Planning!A48","v":"I040"},{"$f":"Planning!B48","v":0},{"$f":"Planning!C48","v":0},{"$f":"Planning!D48","v":0},{"$f":"Planning!E48","v":0},{"$f":"IF(Planning!G48<>0,Planning!G48,\"\")","v":""},{"$f":"Planning!H48","v":0},{"$f":"Planning!AD48","v":0},{"$f":"IF(OR(W64=\"1\",AND(W64<>\"1\",G64=Lists!$A$17)),Y64,0)","v":0},null,{"$f":"IF(AND(W64=\"2\",G64<>Lists!$A$17),AA64,Z64)","v":""},"",{"$f":"Planning!AE48","v":{"v":0,"d":"0.00"}},{"$f":"'Month 7'!M64+'Month 7'!N64-'Month 7'!O64","v":{"v":0,"d":"0.00"}},null,"","",{"$f":"SUMIFS($J$25:$J$224,$C$25:$C$224,$C64,$G$25:$G$224,Lists!$A$16)","v":0},0,null,"",null,{"$f":"IF(C64=0,\"\",LEFT(INDEX(Lists!$H$5:$H$49,MATCH(C64,Lists!$G$5:$G$49,0),1),1))","v":""},null,{"$f":"'Month 7'!H64+'Month 7'!I64-'Month 7'!J64","v":0},"","",null,"0"]
[{"$f":"Planning!A49","v":"I041"},{"$f":"Planning!B49","v":0},{"$f":"Planning!C49","v":0},{"$f":"Planning!D49","v":0},{"$f":"Planning!E49","v":0},{"$f":"IF(Planning!G49<>0,Planning!G49,\"\")","v":""},{"$f":"Planning!H49","v":0},{"$f":"Planning!AD49","v":0},{"$f":"IF(OR(W65=\"1\",AND(W65<>\"1\",G65=Lists!$A$17)),Y65,0)","v":0},null,{"$f":"IF(AND(W65=\"2\",G65<>Lists!$A$17),AA65,Z65)","v":""},"",{"$f":"Planning!AE49","v":{"v":0,"d":"0.00"}},{"$f":"'Month 7'!M65+'Month 7'!N65-'Month 7'!O65","v":{"v":0,"d":"0.00"}},null,"","",{"$f":"SUMIFS($J$25:$J$224,$C$25:$C$224,$C65,$G$25:$G$224,Lists!$A$16)","v":0},0,null,"",null,{"$f":"IF(C65=0,\"\",LEFT(INDEX(Lists!$H$5:$H$49,MATCH(C65,Lists!$G$5:$G$49,0),1),1))","v":""},null,{"$f":"'Month 7'!H65+'Month 7'!I65-'Month 7'!J65","v":0},"","",null,"0"]
[{"$f":"Planning!A50","v":"I042"},{"$f":"Planning!B50","v":0},{"$f":"Planning!C50","v":0},{"$f":"Planning!D50","v":0},{"$f":"Planning!E50","v":0},{"$f":"IF(Planning!G50<>0,Planning!G50,\"\")","v":""},{"$f":"Planning!H50","v":0},{"$f":"Planning!AD50","v":0},{"$f":"IF(OR(W66=\"1\",AND(W66<>\"1\",G66=Lists!$A$17)),Y66,0)","v":0},null,{"$f":"IF(AND(W66=\"2\",G66<>Lists!$A$17),AA66,Z66)","v":""},"",{"$f":"Planning!AE50","v":{"v":0,"d":"0.00"}},{"$f":"'Month 7'!M66+'Month 7'!N66-'Month 7'!O66","v":{"v":0,"d":"0.00"}},null,"","",{"$f":"SUMIFS($J$25:$J$224,$C$25:$C$224,$C66,$G$25:$G$224,Lists!$A$16)","v":0},0,null,"",null,{"$f":"IF(C66=0,\"\",LEFT(INDEX(Lists!$H$5:$H$49,MATCH(C66,Lists!$G$5:$G$49,0),1),1))","v":""},null,{"$f":"'Month 7'!H66+'Month 7'!I66-'Month 7'!J66","v":0},"","",null,"0"]
[{"$f":"Planning!A51","v":"I043"},{"$f":"Planning!B51","v":0},{"$f":"Planning!C51","v":0},{"$f":"Planning!D51","v":0},{"$f":"Planning!E51","v":0},{"$f":"IF(Planning!G51<>0,Planning!G51,\"\")","v":""},{"$f":"Planning!H51","v":0},{"$f":"Planning!AD51","v":0},{"$f":"IF(OR(W67=\"1\",AND(W67<>\"1\",G67=Lists!$A$17)),Y67,0)","v":0},null,{"$f":"IF(AND(W67=\"2\",G67<>Lists!$A$17),AA67,Z67)","v":""},"",{"$f":"Planning!AE51","v":{"v":0,"d":"0.00"}},{"$f":"'Month 7'!M67+'Month 7'!N67-'Month 7'!O67","v":{"v":0,"d":"0.00"}},null,"","",{"$f":"SUMIFS($J$25:$J$224,$C$25:$C$224,$C67,$G$25:$G$224,Lists!$A$16)","v":0},0,null,"",null,{"$f":"IF(C67=0,\"\",LEFT(INDEX(Lists!$H$5:$H$49,MATCH(C67,Lists!$G$5:$G$49,0),1),1))","v":""},null,{"$f":"'Month 7'!H67+'Month 7'!I67-'Month 7'!J67","v":0},"","",null,"0"]
[{"$f":"Planning!A52","v":"I044"},{"$f":"Planning!B52","v":0},{"$f":"Planning!C52","v":0},{"$f":"Planning!D52","v":0},{"$f":"Planning!E52","v":0},{"$f":"IF(Planning!G52<>0,Planning!G52,\"\")","v":""},{"$f":"Planning!H52","v":0},{"$f":"Planning!AD52","v":0},{"$f":"IF(OR(W68=\"1\",AND(W68<>\"1\",G68=Lists!$A$17)),Y68,0)","v":0},null,{"$f":"IF(AND(W68=\"2\",G68<>Lists!$A$17),AA68,Z68)","v":""},"",{"$f":"Planning!AE52","v":{"v":0,"d":"0.00"}},{"$f":"'Month 7'!M68+'Month 7'!N68-'Month 7'!O68","v":{"v":0,"d":"0.00"}},null,"","",{"$f":"SUMIFS($J$25:$J$224,$C$25:$C$224,$C68,$G$25:$G$224,Lists!$A$16)","v":0},0,null,"",null,{"$f":"IF(C68=0,\"\",LEFT(INDEX(Lists!$H$5:$H$49,MATCH(C68,Lists!$G$5:$G$49,0),1),1))","v":""},null,{"$f":"'Month 7'!H68+'Month 7'!I68-'Month 7'!J68","v":0},"","",null,"0"]
[{"$f":"Planning!A53","v":"I045"},{"$f":"Planning!B53","v":0},{"$f":"Planning!C53","v":0},{"$f":"Planning!D53","v":0},{"$f":"Planning!E53","v":0},{"$f":"IF(Planning!G53<>0,Planning!G53,\"\")","v":""},{"$f":"Planning!H53","v":0},{"$f":"Planning!AD53","v":0},{"$f":"IF(OR(W69=\"1\",AND(W69<>\"1\",G69=Lists!$A$17)),Y69,0)","v":0},null,{"$f":"IF(AND(W69=\"2\",G69<>Lists!$A$17),AA69,Z69)","v":""},"",{"$f":"Planning!AE53","v":{"v":0,"d":"0.00"}},{"$f":"'Month 7'!M69+'Month 7'!N69-'Month 7'!O69","v":{"v":0,"d":"0.00"}},null,"","",{"$f":"SUMIFS($J$25:$J$224,$C$25:$C$224,$C69,$G$25:$G$224,Lists!$A$16)","v":0},0,null,"",null,{"$f":"IF(C69=0,\"\",LEFT(INDEX(Lists!$H$5:$H$49,MATCH(C69,Lists!$G$5:$G$49,0),1),1))","v":""},null,{"$f":"'Month 7'!H69+'Month 7'!I69-'Month 7'!J69","v":0},"","",null,"0"]
[{"$f":"Planning!A54","v":"I046"},{"$f":"Planning!B54","v":0},{"$f":"Planning!C54","v":0},{"$f":"Planning!D54","v":0},{"$f":"Planning!E54","v":0},{"$f":"IF(Planning!G54<>0,Planning!G54,\"\")","v":""},{"$f":"Planning!H54","v":0},{"$f":"Planning!AD54","v":0},{"$f":"IF(OR(W70=\"1\",AND(W70<>\"1\",G70=Lists!$A$17)),Y70,0)","v":0},null,{"$f":"IF(AND(W70=\"2\",G70<>Lists!$A$17),AA70,Z70)","v":""},"",{"$f":"Planning!AE54","v":{"v":0,"d":"0.00"}},{"$f":"'Month 7'!M70+'Month 7'!N70-'Month 7'!O70","v":{"v":0,"d":"0.00"}},null,"","",{"$f":"SUMIFS($J$25:$J$224,$C$25:$C$224,$C70,$G$25:$G$224,Lists!$A$16)","v":0},0,null,"",null,{"$f":"IF(C70=0,\"\",LEFT(INDEX(Lists!$H$5:$H$49,MATCH(C70,Lists!$G$5:$G$49,0),1),1))","v":""},null,{"$f":"'Month 7'!H70+'Month 7'!I70-'Month 7'!J70","v":0},"","",null,"0"]
[{"$f":"Planning!A55","v":"I047"},{"$f":"Planning!B55","v":0},{"$f":"Planning!C55","v":0},{"$f":"Planning!D55","v":0},{"$f":"Planning!E55","v":0},{"$f":"IF(Planning!G55<>0,Planning!G55,\"\")","v":""},{"$f":"Planning!H55","v":0},{"$f":"Planning!AD55","v":0},{"$f":"IF(OR(W71=\"1\",AND(W71<>\"1\",G71=Lists!$A$17)),Y71,0)","v":0},null,{"$f":"IF(AND(W71=\"2\",G71<>Lists!$A$17),AA71,Z71)","v":""},"",{"$f":"Planning!AE55","v":{"v":0,"d":"0.00"}},{"$f":"'Month 7'!M71+'Month 7'!N71-'Month 7'!O71","v":{"v":0,"d":"0.00"}},null,"","",{"$f":"SUMIFS($J$25:$J$224,$C$25:$C$224,$C71,$G$25:$G$224,Lists!$A$16)","v":0},0,null,"",null,{"$f":"IF(C71=0,\"\",LEFT(INDEX(Lists!$H$5:$H$49,MATCH(C71,Lists!$G$5:$G$49,0),1),1))","v":""},null,{"$f":"'Month 7'!H71+'Month 7'!I71-'Month 7'!J71","v":0},"","",null,"0"]
[{"$f":"Planning!A56","v":"I048"},{"$f":"Planning!B56","v":0},{"$f":"Planning!C56","v":0},{"$f":"Planning!D56","v":0},{"$f":"Planning!E56","v":0},{"$f":"IF(Planning!G56<>0,Planning!G56,\"\")","v":""},{"$f":"Planning!H56","v":0},{"$f":"Planning!AD56","v":0},{"$f":"IF(OR(W72=\"1\",AND(W72<>\"1\",G72=Lists!$A$17)),Y72,0)","v":0},null,{"$f":"IF(AND(W72=\"2\",G72<>Lists!$A$17),AA72,Z72)","v":""},"",{"$f":"Planning!AE56","v":{"v":0,"d":"0.00"}},{"$f":"'Month 7'!M72+'Month 7'!N72-'Month 7'!O72","v":{"v":0,"d":"0.00"}},null,"","",{"$f":"SUMIFS($J$25:$J$224,$C$25:$C$224,$C72,$G$25:$G$224,Lists!$A$16)","v":0},0,null,"",null,{"$f":"IF(C72=0,\"\",LEFT(INDEX(Lists!$H$5:$H$49,MATCH(C72,Lists!$G$5:$G$49,0),1),1))","v":""},null,{"$f":"'Month 7'!H72+'Month 7'!I72-'Month 7'!J72","v":0},"","",null,"0"]
[{"$f":"Planning!A57","v":"I049"},{"$f":"Planning!B57","v":0},{"$f":"Planning!C57","v":0},{"$f":"Planning!D57","v":0},{"$f":"Planning!E57","v":0},{"$f":"IF(Planning!G57<>0,Planning!G57,\"\")","v":""},{"$f":"Planning!H57","v":0},{"$f":"Planning!AD57","v":0},{"$f":"IF(OR(W73=\"1\",AND(W73<>\"1\",G73=Lists!$A$17)),Y73,0)","v":0},null,{"$f":"IF(AND(W73=\"2\",G73<>Lists!$A$17),AA73,Z73)","v":""},"",{"$f":"Planning!AE57","v":{"v":0,"d":"0.00"}},{"$f":"'Month 7'!M73+'Month 7'!N73-'Month 7'!O73","v":{"v":0,"d":"0.00"}},null,"","",{"$f":"SUMIFS($J$25:$J$224,$C$25:$C$224,$C73,$G$25:$G$224,Lists!$A$16)","v":0},0,null,"",null,{"$f":"IF(C73=0,\"\",LEFT(INDEX(Lists!$H$5:$H$49,MATCH(C73,Lists!$G$5:$G$49,0),1),1))","v":""},null,{"$f":"'Month 7'!H73+'Month 7'!I73-'Month 7'!J73","v":0},"","",null,"0"]
[{"$f":"Planning!A58","v":"I050"},{"$f":"Planning!B58","v":0},{"$f":"Planning!C58","v":0},{"$f":"Planning!D58","v":0},{"$f":"Planning!E58","v":0},{"$f":"IF(Planning!G58<>0,Planning!G58,\"\")","v":""},{"$f":"Planning!H58","v":0},{"$f":"Planning!AD58","v":0},{"$f":"IF(OR(W74=\"1\",AND(W74<>\"1\",G74=Lists!$A$17)),Y74,0)","v":0},null,{"$f":"IF(AND(W74=\"2\",G74<>Lists!$A$17),AA74,Z74)","v":""},"",{"$f":"Planning!AE58","v":{"v":0,"d":"0.00"}},{"$f":"'Month 7'!M74+'Month 7'!N74-'Month 7'!O74","v":{"v":0,"d":"0.00"}},null,"","",{"$f":"SUMIFS($J$25:$J$224,$C$25:$C$224,$C74,$G$25:$G$224,Lists!$A$16)","v":0},0,null,"",null,{"$f":"IF(C74=0,\"\",LEFT(INDEX(Lists!$H$5:$H$49,MATCH(C74,Lists!$G$5:$G$49,0),1),1))","v":""},null,{"$f":"'Month 7'!H74+'Month 7'!I74-'Month 7'!J74","v":0},"","",null,"0"]
[{"$f":"Planning!A59","v":"I051"},{"$f":"Planning!B59","v":0},{"$f":"Planning!C59","v":0},{"$f":"Planning!D59","v":0},{"$f":"Planning!E59","v":0},{"$f":"IF(Planning!G59<>0,Planning!G59,\"\")","v":""},{"$f":"Planning!H59","v":0},{"$f":"Planning!AD59","v":0},{"$f":"IF(OR(W75=\"1\",AND(W75<>\"1\",G75=Lists!$A$17)),Y75,0)","v":0},null,{"$f":"IF(AND(W75=\"2\",G75<>Lists!$A$17),AA75,Z75)","v":""},"",{"$f":"Planning!AE59","v":{"v":0,"d":"0.00"}},{"$f":"'Month 7'!M75+'Month 7'!N75-'Month 7'!O75","v":{"v":0,"d":"0.00"}},null,"","",{"$f":"SUMIFS($J$25:$J$224,$C$25:$C$224,$C75,$G$25:$G$224,Lists!$A$16)","v":0},0,null,"",null,{"$f":"IF(C75=0,\"\",LEFT(INDEX(Lists!$H$5:$H$49,MATCH(C75,Lists!$G$5:$G$49,0),1),1))","v":""},null,{"$f":"'Month 7'!H75+'Month 7'!I75-'Month 7'!J75","v":0},"","",null,"0"]
[{"$f":"Planning!A60","v":"I052"},{"$f":"Planning!B60","v":0},{"$f":"Planning!C60","v":0},{"$f":"Planning!D60","v":0},{"$f":"Planning!E60","v":0},{"$f":"IF(Planning!G60<>0,Planning!G60,\"\")","v":""},{"$f":"Planning!H60","v":0},{"$f":"Planning!AD60","v":0},{"$f":"IF(OR(W76=\"1\",AND(W76<>\"1\",G76=Lists!$A$17)),Y76,0)","v":0},null,{"$f":"IF(AND(W76=\"2\",G76<>Lists!$A$17),AA76,Z76)","v":""},"",{"$f":"Planning!AE60","v":{"v":0,"d":"0.00"}},{"$f":"'Month 7'!M76+'Month 7'!N76-'Month 7'!O76","v":{"v":0,"d":"0.00"}},null,"","",{"$f":"SUMIFS($J$25:$J$224,$C$25:$C$224,$C76,$G$25:$G$224,Lists!$A$16)","v":0},0,null,"",null,{"$f":"IF(C76=0,\"\",LEFT(INDEX(Lists!$H$5:$H$49,MATCH(C76,Lists!$G$5:$G$49,0),1),1))","v":""},null,{"$f":"'Month 7'!H76+'Month 7'!I76-'Month 7'!J76","v":0},"","",null,"0"]
[{"$f":"Planning!A61","v":"I053"},{"$f":"Planning!B61","v":0},{"$f":"Planning!C61","v":0},{"$f":"Planning!D61","v":0},{"$f":"Planning!E61","v":0},{"$f":"IF(Planning!G61<>0,Planning!G61,\"\")","v":""},{"$f":"Planning!H61","v":0},{"$f":"Planning!AD61","v":0},{"$f":"IF(OR(W77=\"1\",AND(W77<>\"1\",G77=Lists!$A$17)),Y77,0)","v":0},null,{"$f":"IF(AND(W77=\"2\",G77<>Lists!$A$17),AA77,Z77)","v":""},"",{"$f":"Planning!AE61","v":{"v":0,"d":"0.00"}},{"$f":"'Month 7'!M77+'Month 7'!N77-'Month 7'!O77","v":{"v":0,"d":"0.00"}},null,"","",{"$f":"SUMIFS($J$25:$J$224,$C$25:$C$224,$C77,$G$25:$G$224,Lists!$A$16)","v":0},0,null,"",null,{"$f":"IF(C77=0,\"\",LEFT(INDEX(Lists!$H$5:$H$49,MATCH(C77,Lists!$G$5:$G$49,0),1),1))","v":""},null,{"$f":"'Month 7'!H77+'Month 7'!I77-'Month 7'!J77","v":0},"","",null,"0"]
[{"$f":"Planning!A62","v":"I054"},{"$f":"Planning!B62","v":0},{"$f":"Planning!C62","v":0},{"$f":"Planning!D62","v":0},{"$f":"Planning!E62","v":0},{"$f":"IF(Planning!G62<>0,Planning!G62,\"\")","v":""},{"$f":"Planning!H62","v":0},{"$f":"Planning!AD62","v":0},{"$f":"IF(OR(W78=\"1\",AND(W78<>\"1\",G78=Lists!$A$17)),Y78,0)","v":0},null,{"$f":"IF(AND(W78=\"2\",G78<>Lists!$A$17),AA78,Z78)","v":""},"",{"$f":"Planning!AE62","v":{"v":0,"d":"0.00"}},{"$f":"'Month 7'!M78+'Month 7'!N78-'Month 7'!O78","v":{"v":0,"d":"0.00"}},null,"","",{"$f":"SUMIFS($J$25:$J$224,$C$25:$C$224,$C78,$G$25:$G$224,Lists!$A$16)","v":0},0,null,"",null,{"$f":"IF(C78=0,\"\",LEFT(INDEX(Lists!$H$5:$H$49,MATCH(C78,Lists!$G$5:$G$49,0),1),1))","v":""},null,{"$f":"'Month 7'!H78+'Month 7'!I78-'Month 7'!J78","v":0},"","",null,"0"]
[{"$f":"Planning!A63","v":"I055"},{"$f":"Planning!B63","v":0},{"$f":"Planning!C63","v":0},{"$f":"Planning!D63","v":0},{"$f":"Planning!E63","v":0},{"$f":"IF(Planning!G63<>0,Planning!G63,\"\")","v":""},{"$f":"Planning!H63","v":0},{"$f":"Planning!AD63","v":0},{"$f":"IF(OR(W79=\"1\",AND(W79<>\"1\",G79=Lists!$A$17)),Y79,0)","v":0},null,{"$f":"IF(AND(W79=\"2\",G79<>Lists!$A$17),AA79,Z79)","v":""},"",{"$f":"Planning!AE63","v":{"v":0,"d":"0.00"}},{"$f":"'Month 7'!M79+'Month 7'!N79-'Month 7'!O79","v":{"v":0,"d":"0.00"}},null,"","",{"$f":"SUMIFS($J$25:$J$224,$C$25:$C$224,$C79,$G$25:$G$224,Lists!$A$16)","v":0},0,null,"",null,{"$f":"IF(C79=0,\"\",LEFT(INDEX(Lists!$H$5:$H$49,MATCH(C79,Lists!$G$5:$G$49,0),1),1))","v":""},null,{"$f":"'Month 7'!H79+'Month 7'!I79-'Month 7'!J79","v":0},"","",null,"0"]
[{"$f":"Planning!A64","v":"I056"},{"$f":"Planning!B64","v":0},{"$f":"Planning!C64","v":0},{"$f":"Planning!D64","v":0},{"$f":"Planning!E64","v":0},{"$f":"IF(Planning!G64<>0,Planning!G64,\"\")","v":""},{"$f":"Planning!H64","v":0},{"$f":"Planning!AD64","v":0},{"$f":"IF(OR(W80=\"1\",AND(W80<>\"1\",G80=Lists!$A$17)),Y80,0)","v":0},null,{"$f":"IF(AND(W80=\"2\",G80<>Lists!$A$17),AA80,Z80)","v":""},"",{"$f":"Planning!AE64","v":{"v":0,"d":"0.00"}},{"$f":"'Month 7'!M80+'Month 7'!N80-'Month 7'!O80","v":{"v":0,"d":"0.00"}},null,"","",{"$f":"SUMIFS($J$25:$J$224,$C$25:$C$224,$C80,$G$25:$G$224,Lists!$A$16)","v":0},0,null,"",null,{"$f":"IF(C80=0,\"\",LEFT(INDEX(Lists!$H$5:$H$49,MATCH(C80,Lists!$G$5:$G$49,0),1),1))","v":""},null,{"$f":"'Month 7'!H80+'Month 7'!I80-'Month 7'!J80","v":0},"","",null,"0"]
[{"$f":"Planning!A65","v":"I057"},{"$f":"Planning!B65","v":0},{"$f":"Planning!C65","v":0},{"$f":"Planning!D65","v":0},{"$f":"Planning!E65","v":0},{"$f":"IF(Planning!G65<>0,Planning!G65,\"\")","v":""},{"$f":"Planning!H65","v":0},{"$f":"Planning!AD65","v":0},{"$f":"IF(OR(W81=\"1\",AND(W81<>\"1\",G81=Lists!$A$17)),Y81,0)","v":0},null,{"$f":"IF(AND(W81=\"2\",G81<>Lists!$A$17),AA81,Z81)","v":""},"",{"$f":"Planning!AE65","v":{"v":0,"d":"0.00"}},{"$f":"'Month 7'!M81+'Month 7'!N81-'Month 7'!O81","v":{"v":0,"d":"0.00"}},null,"","",{"$f":"SUMIFS($J$25:$J$224,$C$25:$C$224,$C81,$G$25:$G$224,Lists!$A$16)","v":0},0,null,"",null,{"$f":"IF(C81=0,\"\",LEFT(INDEX(Lists!$H$5:$H$49,MATCH(C81,Lists!$G$5:$G$49,0),1),1))","v":""},null,{"$f":"'Month 7'!H81+'Month 7'!I81-'Month 7'!J81","v":0},"","",null,"0"]
[{"$f":"Planning!A66","v":"I058"},{"$f":"Planning!B66","v":0},{"$f":"Planning!C66","v":0},{"$f":"Planning!D66","v":0},{"$f":"Planning!E66","v":0},{"$f":"IF(Planning!G66<>0,Planning!G66,\"\")","v":""},{"$f":"Planning!H66","v":0},{"$f":"Planning!AD66","v":0},{"$f":"IF(OR(W82=\"1\",AND(W82<>\"1\",G82=Lists!$A$17)),Y82,0)","v":0},null,{"$f":"IF(AND(W82=\"2\",G82<>Lists!$A$17),AA82,Z82)","v":""},"",{"$f":"Planning!AE66","v":{"v":0,"d":"0.00"}},{"$f":"'Month 7'!M82+'Month 7'!N82-'Month 7'!O82","v":{"v":0,"d":"0.00"}},null,"","",{"$f":"SUMIFS($J$25:$J$224,$C$25:$C$224,$C82,$G$25:$G$224,Lists!$A$16)","v":0},0,null,"",null,{"$f":"IF(C82=0,\"\",LEFT(INDEX(Lists!$H$5:$H$49,MATCH(C82,Lists!$G$5:$G$49,0),1),1))","v":""},null,{"$f":"'Month 7'!H82+'Month 7'!I82-'Month 7'!J82","v":0},"","",null,"0"]
[{"$f":"Planning!A67","v":"I059"},{"$f":"Planning!B67","v":0},{"$f":"Planning!C67","v":0},{"$f":"Planning!D67","v":0},{"$f":"Planning!E67","v":0},{"$f":"IF(Planning!G67<>0,Planning!G67,\"\")","v":""},{"$f":"Planning!H67","v":0},{"$f":"Planning!AD67","v":0},{"$f":"IF(OR(W83=\"1\",AND(W83<>\"1\",G83=Lists!$A$17)),Y83,0)","v":0},null,{"$f":"IF(AND(W83=\"2\",G83<>Lists!$A$17),AA83,Z83)","v":""},"",{"$f":"Planning!AE67","v":{"v":0,"d":"0.00"}},{"$f":"'Month 7'!M83+'Month 7'!N83-'Month 7'!O83","v":{"v":0,"d":"0.00"}},null,"","",{"$f":"SUMIFS($J$25:$J$224,$C$25:$C$224,$C83,$G$25:$G$224,Lists!$A$16)","v":0},0,null,"",null,{"$f":"IF(C83=0,\"\",LEFT(INDEX(Lists!$H$5:$H$49,MATCH(C83,Lists!$G$5:$G$49,0),1),1))","v":""},null,{"$f":"'Month 7'!H83+'Month 7'!I83-'Month 7'!J83","v":0},"","",null,"0"]
[{"$f":"Planning!A68","v":"I060"},{"$f":"Planning!B68","v":0},{"$f":"Planning!C68","v":0},{"$f":"Planning!D68","v":0},{"$f":"Planning!E68","v":0},{"$f":"IF(Planning!G68<>0,Planning!G68,\"\")","v":""},{"$f":"Planning!H68","v":0},{"$f":"Planning!AD68","v":0},{"$f":"IF(OR(W84=\"1\",AND(W84<>\"1\",G84=Lists!$A$17)),Y84,0)","v":0},null,{"$f":"IF(AND(W84=\"2\",G84<>Lists!$A$17),AA84,Z84)","v":""},"",{"$f":"Planning!AE68","v":{"v":0,"d":"0.00"}},{"$f":"'Month 7'!M84+'Month 7'!N84-'Month 7'!O84","v":{"v":0,"d":"0.00"}},null,"","",{"$f":"SUMIFS($J$25:$J$224,$C$25:$C$224,$C84,$G$25:$G$224,Lists!$A$16)","v":0},0,null,"",null,{"$f":"IF(C84=0,\"\",LEFT(INDEX(Lists!$H$5:$H$49,MATCH(C84,Lists!$G$5:$G$49,0),1),1))","v":""},null,{"$f":"'Month 7'!H84+'Month 7'!I84-'Month 7'!J84","v":0},"","",null,"0"]
[{"$f":"Planning!A69","v":"I061"},{"$f":"Planning!B69","v":0},{"$f":"Planning!C69","v":0},{"$f":"Planning!D69","v":0},{"$f":"Planning!E69","v":0},{"$f":"IF(Planning!G69<>0,Planning!G69,\"\")","v":""},{"$f":"Planning!H69","v":0},{"$f":"Planning!AD69","v":0},{"$f":"IF(OR(W85=\"1\",AND(W85<>\"1\",G85=Lists!$A$17)),Y85,0)","v":0},null,{"$f":"IF(AND(W85=\"2\",G85<>Lists!$A$17),AA85,Z85)","v":""},"",{"$f":"Planning!AE69","v":{"v":0,"d":"0.00"}},{"$f":"'Month 7'!M85+'Month 7'!N85-'Month 7'!O85","v":{"v":0,"d":"0.00"}},null,"","",{"$f":"SUMIFS($J$25:$J$224,$C$25:$C$224,$C85,$G$25:$G$224,Lists!$A$16)","v":0},0,null,"",null,{"$f":"IF(C85=0,\"\",LEFT(INDEX(Lists!$H$5:$H$49,MATCH(C85,Lists!$G$5:$G$49,0),1),1))","v":""},null,{"$f":"'Month 7'!H85+'Month 7'!I85-'Month 7'!J85","v":0},"","",null,"0"]
[{"$f":"Planning!A70","v":"I062"},{"$f":"Planning!B70","v":0},{"$f":"Planning!C70","v":0},{"$f":"Planning!D70","v":0},{"$f":"Planning!E70","v":0},{"$f":"IF(Planning!G70<>0,Planning!G70,\"\")","v":""},{"$f":"Planning!H70","v":0},{"$f":"Planning!AD70","v":0},{"$f":"IF(OR(W86=\"1\",AND(W86<>\"1\",G86=Lists!$A$17)),Y86,0)","v":0},null,{"$f":"IF(AND(W86=\"2\",G86<>Lists!$A$17),AA86,Z86)","v":""},"",{"$f":"Planning!AE70","v":{"v":0,"d":"0.00"}},{"$f":"'Month 7'!M86+'Month 7'!N86-'Month 7'!O86","v":{"v":0,"d":"0.00"}},null,"","",{"$f":"SUMIFS($J$25:$J$224,$C$25:$C$224,$C86,$G$25:$G$224,Lists!$A$16)","v":0},0,null,"",null,{"$f":"IF(C86=0,\"\",LEFT(INDEX(Lists!$H$5:$H$49,MATCH(C86,Lists!$G$5:$G$49,0),1),1))","v":""},null,{"$f":"'Month 7'!H86+'Month 7'!I86-'Month 7'!J86","v":0},"","",null,"0"]
[{"$f":"Planning!A71","v":"I063"},{"$f":"Planning!B71","v":0},{"$f":"Planning!C71","v":0},{"$f":"Planning!D71","v":0},{"$f":"Planning!E71","v":0},{"$f":"IF(Planning!G71<>0,Planning!G71,\"\")","v":""},{"$f":"Planning!H71","v":0},{"$f":"Planning!AD71","v":0},{"$f":"IF(OR(W87=\"1\",AND(W87<>\"1\",G87=Lists!$A$17)),Y87,0)","v":0},null,{"$f":"IF(AND(W87=\"2\",G87<>Lists!$A$17),AA87,Z87)","v":""},"",{"$f":"Planning!AE71","v":{"v":0,"d":"0.00"}},{"$f":"'Month 7'!M87+'Month 7'!N87-'Month 7'!O87","v":{"v":0,"d":"0.00"}},null,"","",{"$f":"SUMIFS($J$25:$J$224,$C$25:$C$224,$C87,$G$25:$G$224,Lists!$A$16)","v":0},0,null,"",null,{"$f":"IF(C87=0,\"\",LEFT(INDEX(Lists!$H$5:$H$49,MATCH(C87,Lists!$G$5:$G$49,0),1),1))","v":""},null,{"$f":"'Month 7'!H87+'Month 7'!I87-'Month 7'!J87","v":0},"","",null,"0"]
[{"$f":"Planning!A72","v":"I064"},{"$f":"Planning!B72","v":0},{"$f":"Planning!C72","v":0},{"$f":"Planning!D72","v":0},{"$f":"Planning!E72","v":0},{"$f":"IF(Planning!G72<>0,Planning!G72,\"\")","v":""},{"$f":"Planning!H72","v":0},{"$f":"Planning!AD72","v":0},{"$f":"IF(OR(W88=\"1\",AND(W88<>\"1\",G88=Lists!$A$17)),Y88,0)","v":0},null,{"$f":"IF(AND(W88=\"2\",G88<>Lists!$A$17),AA88,Z88)","v":""},"",{"$f":"Planning!AE72","v":{"v":0,"d":"0.00"}},{"$f":"'Month 7'!M88+'Month 7'!N88-'Month 7'!O88","v":{"v":0,"d":"0.00"}},null,"","",{"$f":"SUMIFS($J$25:$J$224,$C$25:$C$224,$C88,$G$25:$G$224,Lists!$A$16)","v":0},0,null,"",null,{"$f":"IF(C88=0,\"\",LEFT(INDEX(Lists!$H$5:$H$49,MATCH(C88,Lists!$G$5:$G$49,0),1),1))","v":""},null,{"$f":"'Month 7'!H88+'Month 7'!I88-'Month 7'!J88","v":0},"","",null,"0"]
[{"$f":"Planning!A73","v":"I065"},{"$f":"Planning!B73","v":0},{"$f":"Planning!C73","v":0},{"$f":"Planning!D73","v":0},{"$f":"Planning!E73","v":0},{"$f":"IF(Planning!G73<>0,Planning!G73,\"\")","v":""},{"$f":"Planning!H73","v":0},{"$f":"Planning!AD73","v":0},{"$f":"IF(OR(W89=\"1\",AND(W89<>\"1\",G89=Lists!$A$17)),Y89,0)","v":0},null,{"$f":"IF(AND(W89=\"2\",G89<>Lists!$A$17),AA89,Z89)","v":""},{"$f":"IF($U89=ExcluirDelPLogro,\"\",IF(AND(H89=0,I89=0,J89=0),\"\",K89))","v":""},{"$f":"Planning!AE73","v":{"v":0,"d":"0.00"}},{"$f":"'Month 7'!M89+'Month 7'!N89-'Month 7'!O89","v":{"v":0,"d":"0.00"}},null,"",{"$f":"IF($U89=ExcluirDelPLogro,\"\",IF(AND(M89=0,N89=0,O89=0),\"\",P89))","v":""},{"$f":"SUMIFS($J$25:$J$224,$C$25:$C$224,$C89,$G$25:$G$224,Lists!$A$16)","v":0},0,null,"",null,{"$f":"IF(C89=0,\"\",LEFT(INDEX(Lists!$H$5:$H$49,MATCH(C89,Lists!$G$5:$G$49,0),1),1))","v":""},null,{"$f":"'Month 7'!H89+'Month 7'!I89-'Month 7'!J89","v":0},"",{"$f":"IF(AND(H89=0,I89=0,J89=0),\"\",IF(J89>0,H89/J89,0))","v":""},null,"0"]
[{"$f":"Planning!A74","v":"I066"},{"$f":"Planning!B74","v":0},{"$f":"Planning!C74","v":0},{"$f":"Planning!D74","v":0},{"$f":"Planning!E74","v":0},{"$f":"IF(Planning!G74<>0,Planning!G74,\"\")","v":""},{"$f":"Planning!H74","v":0},{"$f":"Planning!AD74","v":0},{"$f":"IF(OR(W90=\"1\",AND(W90<>\"1\",G90=Lists!$A$17)),Y90,0)","v":0},null,{"$f":"IF(AND(W90=\"2\",G90<>Lists!$A$17),AA90,Z90)","v":""},"",{"$f":"Planning!AE74","v":{"v":0,"d":"0.00"}},{"$f":"'Month 7'!M90+'Month 7'!N90-'Month 7'!O90","v":{"v":0,"d":"0.00"}},null,{"$f":"IF(AND(M90=0,N90=0,O90=0),\"\",IF((M90+N90)>0,O90/(M90+N90),O90))","v":""},"",{"$f":"SUMIFS($J$25:$J$224,$C$25:$C$224,$C90,$G$25:$G$224,Lists!$A$16)","v":0},{"$f":"SUMIFS($O$25:$O$224,$C$25:$C$224,$C90,$G$25:$G$224,\"<>0\")","v":0},null,{"$f":"IF(B90=0,\"\",IF(LEFT(B90,1)=\"1\",\"1\",\"2\"))","v":""},null,{"$f":"IF(C90=0,\"\",LEFT(INDEX(Lists!$H$5:$H$49,MATCH(C90,Lists!$G$5:$G$49,0),1),1))","v":""},null,{"$f":"'Month 7'!H90+'Month 7'!I90-'Month 7'!J90","v":0},{"$f":"IF(AND(H90=0,I90=0,J90=0),\"\",IF((H90+I90)>0,J90/(H90+I90),J90))","v":""},"",null,{"$f":"U90&C90","v":"0"}]
[{"$f":"Planning!A75","v":"I067"},{"$f":"Planning!B75","v":0},{"$f":"Planning!C75","v":0},{"$f":"Planning!D75","v":0},{"$f":"Planning!E75","v":0},{"$f":"IF(Planning!G75<>0,Planning!G75,\"\")","v":""},{"$f":"Planning!H75","v":0},{"$f":"Planning!AD75","v":0},{"$f":"IF(OR(W91=\"1\",AND(W91<>\"1\",G91=Lists!$A$17)),Y91,0)","v":0},null,{"$f":"IF(AND(W91=\"2\",G91<>Lists!$A$17),AA91,Z91)","v":""},"",{"$f":"Planning!AE75","v":{"v":0,"d":"0.00"}},{"$f":"'Month 7'!M91+'Month 7'!N91-'Month 7'!O91","v":{"v":0,"d":"0.00"}},null,"","",{"$f":"SUMIFS($J$25:$J$224,$C$25:$C$224,$C91,$G$25:$G$224,Lists!$A$16)","v":0},0,null,"",null,{"$f":"IF(C91=0,\"\",LEFT(INDEX(Lists!$H$5:$H$49,MATCH(C91,Lists!$G$5:$G$49,0),1),1))","v":""},null,{"$f":"'Month 7'!H91+'Month 7'!I91-'Month 7'!J91","v":0},"","",null,"0"]
[{"$f":"Planning!A76","v":"I068"},{"$f":"Planning!B76","v":0},{"$f":"Planning!C76","v":0},{"$f":"Planning!D76","v":0},{"$f":"Planning!E76","v":0},{"$f":"IF(Planning!G76<>0,Planning!G76,\"\")","v":""},{"$f":"Planning!H76","v":0},{"$f":"Planning!AD76","v":0},{"$f":"IF(OR(W92=\"1\",AND(W92<>\"1\",G92=Lists!$A$17)),Y92,0)","v":0},null,{"$f":"IF(AND(W92=\"2\",G92<>Lists!$A$17),AA92,Z92)","v":""},"",{"$f":"Planning!AE76","v":{"v":0,"d":"0.00"}},{"$f":"'Month 7'!M92+'Month 7'!N92-'Month 7'!O92","v":{"v":0,"d":"0.00"}},null,"","",{"$f":"SUMIFS($J$25:$J$224,$C$25:$C$224,$C92,$G$25:$G$224,Lists!$A$16)","v":0},0,null,"",null,{"$f":"IF(C92=0,\"\",LEFT(INDEX(Lists!$H$5:$H$49,MATCH(C92,Lists!$G$5:$G$49,0),1),1))","v":""},null,{"$f":"'Month 7'!H92+'Month 7'!I92-'Month 7'!J92","v":0},"","",null,"0"]
[{"$f":"Planning!A77","v":"I069"},{"$f":"Planning!B77","v":0},{"$f":"Planning!C77","v":0},{"$f":"Planning!D77","v":0},{"$f":"Planning!E77","v":0},{"$f":"IF(Planning!G77<>0,Planning!G77,\"\")","v":""},{"$f":"Planning!H77","v":0},{"$f":"Planning!AD77","v":0},{"$f":"IF(OR(W93=\"1\",AND(W93<>\"1\",G93=Lists!$A$17)),Y93,0)","v":0},null,{"$f":"IF(AND(W93=\"2\",G93<>Lists!$A$17),AA93,Z93)","v":""},"",{"$f":"Planning!AE77","v":{"v":0,"d":"0.00"}},{"$f":"'Month 7'!M93+'Month 7'!N93-'Month 7'!O93","v":{"v":0,"d":"0.00"}},null,"","",{"$f":"SUMIFS($J$25:$J$224,$C$25:$C$224,$C93,$G$25:$G$224,Lists!$A$16)","v":0},0,null,"",null,{"$f":"IF(C93=0,\"\",LEFT(INDEX(Lists!$H$5:$H$49,MATCH(C93,Lists!$G$5:$G$49,0),1),1))","v":""},null,{"$f":"'Month 7'!H93+'Month 7'!I93-'Month 7'!J93","v":0},"","",null,"0"]
[{"$f":"Planning!A78","v":"I070"},{"$f":"Planning!B78","v":0},{"$f":"Planning!C78","v":0},{"$f":"Planning!D78","v":0},{"$f":"Planning!E78","v":0},{"$f":"IF(Planning!G78<>0,Planning!G78,\"\")","v":""},{"$f":"Planning!H78","v":0},{"$f":"Planning!AD78","v":0},{"$f":"IF(OR(W94=\"1\",AND(W94<>\"1\",G94=Lists!$A$17)),Y94,0)","v":0},null,{"$f":"IF(AND(W94=\"2\",G94<>Lists!$A$17),AA94,Z94)","v":""},"",{"$f":"Planning!AE78","v":{"v":0,"d":"0.00"}},{"$f":"'Month 7'!M94+'Month 7'!N94-'Month 7'!O94","v":{"v":0,"d":"0.00"}},null,"","",{"$f":"SUMIFS($J$25:$J$224,$C$25:$C$224,$C94,$G$25:$G$224,Lists!$A$16)","v":0},0,null,"",null,{"$f":"IF(C94=0,\"\",LEFT(INDEX(Lists!$H$5:$H$49,MATCH(C94,Lists!$G$5:$G$49,0),1),1))","v":""},null,{"$f":"'Month 7'!H94+'Month 7'!I94-'Month 7'!J94","v":0},"","",null,"0"]
[{"$f":"Planning!A79","v":"I071"},{"$f":"Planning!B79","v":0},{"$f":"Planning!C79","v":0},{"$f":"Planning!D79","v":0},{"$f":"Planning!E79","v":0},{"$f":"IF(Planning!G79<>0,Planning!G79,\"\")","v":""},{"$f":"Planning!H79","v":0},{"$f":"Planning!AD79","v":0},{"$f":"IF(OR(W95=\"1\",AND(W95<>\"1\",G95=Lists!$A$17)),Y95,0)","v":0},null,{"$f":"IF(AND(W95=\"2\",G95<>Lists!$A$17),AA95,Z95)","v":""},"",{"$f":"Planning!AE79","v":{"v":0,"d":"0.00"}},{"$f":"'Month 7'!M95+'Month 7'!N95-'Month 7'!O95","v":{"v":0,"d":"0.00"}},null,"","",{"$f":"SUMIFS($J$25:$J$224,$C$25:$C$224,$C95,$G$25:$G$224,Lists!$A$16)","v":0},0,null,"",null,{"$f":"IF(C95=0,\"\",LEFT(INDEX(Lists!$H$5:$H$49,MATCH(C95,Lists!$G$5:$G$49,0),1),1))","v":""},null,{"$f":"'Month 7'!H95+'Month 7'!I95-'Month 7'!J95","v":0},"","",null,"0"]
[{"$f":"Planning!A80","v":"I072"},{"$f":"Planning!B80","v":0},{"$f":"Planning!C80","v":0},{"$f":"Planning!D80","v":0},{"$f":"Planning!E80","v":0},{"$f":"IF(Planning!G80<>0,Planning!G80,\"\")","v":""},{"$f":"Planning!H80","v":0},{"$f":"Planning!AD80","v":0},{"$f":"IF(OR(W96=\"1\",AND(W96<>\"1\",G96=Lists!$A$17)),Y96,0)","v":0},null,{"$f":"IF(AND(W96=\"2\",G96<>Lists!$A$17),AA96,Z96)","v":""},"",{"$f":"Planning!AE80","v":{"v":0,"d":"0.00"}},{"$f":"'Month 7'!M96+'Month 7'!N96-'Month 7'!O96","v":{"v":0,"d":"0.00"}},null,"","",{"$f":"SUMIFS($J$25:$J$224,$C$25:$C$224,$C96,$G$25:$G$224,Lists!$A$16)","v":0},0,null,"",null,{"$f":"IF(C96=0,\"\",LEFT(INDEX(Lists!$H$5:$H$49,MATCH(C96,Lists!$G$5:$G$49,0),1),1))","v":""},null,{"$f":"'Month 7'!H96+'Month 7'!I96-'Month 7'!J96","v":0},"","",null,"0"]
[{"$f":"Planning!A81","v":"I073"},{"$f":"Planning!B81","v":0},{"$f":"Planning!C81","v":0},{"$f":"Planning!D81","v":0},{"$f":"Planning!E81","v":0},{"$f":"IF(Planning!G81<>0,Planning!G81,\"\")","v":""},{"$f":"Planning!H81","v":0},{"$f":"Planning!AD81","v":0},{"$f":"IF(OR(W97=\"1\",AND(W97<>\"1\",G97=Lists!$A$17)),Y97,0)","v":0},null,{"$f":"IF(AND(W97=\"2\",G97<>Lists!$A$17),AA97,Z97)","v":""},"",{"$f":"Planning!AE81","v":{"v":0,"d":"0.00"}},{"$f":"'Month 7'!M97+'Month 7'!N97-'Month 7'!O97","v":{"v":0,"d":"0.00"}},null,"","",{"$f":"SUMIFS($J$25:$J$224,$C$25:$C$224,$C97,$G$25:$G$224,Lists!$A$16)","v":0},0,null,"",null,{"$f":"IF(C97=0,\"\",LEFT(INDEX(Lists!$H$5:$H$49,MATCH(C97,Lists!$G$5:$G$49,0),1),1))","v":""},null,{"$f":"'Month 7'!H97+'Month 7'!I97-'Month 7'!J97","v":0},"","",null,"0"]
[{"$f":"Planning!A82","v":"I074"},{"$f":"Planning!B82","v":0},{"$f":"Planning!C82","v":0},{"$f":"Planning!D82","v":0},{"$f":"Planning!E82","v":0},{"$f":"IF(Planning!G82<>0,Planning!G82,\"\")","v":""},{"$f":"Planning!H82","v":0},{"$f":"Planning!AD82","v":0},{"$f":"IF(OR(W98=\"1\",AND(W98<>\"1\",G98=Lists!$A$17)),Y98,0)","v":0},null,{"$f":"IF(AND(W98=\"2\",G98<>Lists!$A$17),AA98,Z98)","v":""},"",{"$f":"Planning!AE82","v":{"v":0,"d":"0.00"}},{"$f":"'Month 7'!M98+'Month 7'!N98-'Month 7'!O98","v":{"v":0,"d":"0.00"}},null,"","",{"$f":"SUMIFS($J$25:$J$224,$C$25:$C$224,$C98,$G$25:$G$224,Lists!$A$16)","v":0},0,null,"",null,{"$f":"IF(C98=0,\"\",LEFT(INDEX(Lists!$H$5:$H$49,MATCH(C98,Lists!$G$5:$G$49,0),1),1))","v":""},null,{"$f":"'Month 7'!H98+'Month 7'!I98-'Month 7'!J98","v":0},"","",null,"0"]
[{"$f":"Planning!A83","v":"I075"},{"$f":"Planning!B83","v":0},{"$f":"Planning!C83","v":0},{"$f":"Planning!D83","v":0},{"$f":"Planning!E83","v":0},{"$f":"IF(Planning!G83<>0,Planning!G83,\"\")","v":""},{"$f":"Planning!H83","v":0},{"$f":"Planning!AD83","v":0},{"$f":"IF(OR(W99=\"1\",AND(W99<>\"1\",G99=Lists!$A$17)),Y99,0)","v":0},null,{"$f":"IF(AND(W99=\"2\",G99<>Lists!$A$17),AA99,Z99)","v":""},"",{"$f":"Planning!AE83","v":{"v":0,"d":"0.00"}},{"$f":"'Month 7'!M99+'Month 7'!N99-'Month 7'!O99","v":{"v":0,"d":"0.00"}},null,"","",{"$f":"SUMIFS($J$25:$J$224,$C$25:$C$224,$C99,$G$25:$G$224,Lists!$A$16)","v":0},0,null,"",null,{"$f":"IF(C99=0,\"\",LEFT(INDEX(Lists!$H$5:$H$49,MATCH(C99,Lists!$G$5:$G$49,0),1),1))","v":""},null,{"$f":"'Month 7'!H99+'Month 7'!I99-'Month 7'!J99","v":0},"","",null,"0"]
[{"$f":"Planning!A84","v":"I076"},{"$f":"Planning!B84","v":0},{"$f":"Planning!C84","v":0},{"$f":"Planning!D84","v":0},{"$f":"Planning!E84","v":0},{"$f":"IF(Planning!G84<>0,Planning!G84,\"\")","v":""},{"$f":"Planning!H84","v":0},{"$f":"Planning!AD84","v":0},{"$f":"IF(OR(W100=\"1\",AND(W100<>\"1\",G100=Lists!$A$17)),Y100,0)","v":0},null,{"$f":"IF(AND(W100=\"2\",G100<>Lists!$A$17),AA100,Z100)","v":""},"",{"$f":"Planning!AE84","v":{"v":0,"d":"0.00"}},{"$f":"'Month 7'!M100+'Month 7'!N100-'Month 7'!O100","v":{"v":0,"d":"0.00"}},null,"","",{"$f":"SUMIFS($J$25:$J$224,$C$25:$C$224,$C100,$G$25:$G$224,Lists!$A$16)","v":0},0,null,"",null,{"$f":"IF(C100=0,\"\",LEFT(INDEX(Lists!$H$5:$H$49,MATCH(C100,Lists!$G$5:$G$49,0),1),1))","v":""},null,{"$f":"'Month 7'!H100+'Month 7'!I100-'Month 7'!J100","v":0},"","",null,"0"]
[{"$f":"Planning!A85","v":"I077"},{"$f":"Planning!B85","v":0},{"$f":"Planning!C85","v":0},{"$f":"Planning!D85","v":0},{"$f":"Planning!E85","v":0},{"$f":"IF(Planning!G85<>0,Planning!G85,\"\")","v":""},{"$f":"Planning!H85","v":0},{"$f":"Planning!AD85","v":0},{"$f":"IF(OR(W101=\"1\",AND(W101<>\"1\",G101=Lists!$A$17)),Y101,0)","v":0},null,{"$f":"IF(AND(W101=\"2\",G101<>Lists!$A$17),AA101,Z101)","v":""},"",{"$f":"Planning!AE85","v":{"v":0,"d":"0.00"}},{"$f":"'Month 7'!M101+'Month 7'!N101-'Month 7'!O101","v":{"v":0,"d":"0.00"}},null,"","",{"$f":"SUMIFS($J$25:$J$224,$C$25:$C$224,$C101,$G$25:$G$224,Lists!$A$16)","v":0},0,null,"",null,{"$f":"IF(C101=0,\"\",LEFT(INDEX(Lists!$H$5:$H$49,MATCH(C101,Lists!$G$5:$G$49,0),1),1))","v":""},null,{"$f":"'Month 7'!H101+'Month 7'!I101-'Month 7'!J101","v":0},"","",null,"0"]
[{"$f":"Planning!A86","v":"I078"},{"$f":"Planning!B86","v":0},{"$f":"Planning!C86","v":0},{"$f":"Planning!D86","v":0},{"$f":"Planning!E86","v":0},{"$f":"IF(Planning!G86<>0,Planning!G86,\"\")","v":""},{"$f":"Planning!H86","v":0},{"$f":"Planning!AD86","v":0},{"$f":"IF(OR(W102=\"1\",AND(W102<>\"1\",G102=Lists!$A$17)),Y102,0)","v":0},null,{"$f":"IF(AND(W102=\"2\",G102<>Lists!$A$17),AA102,Z102)","v":""},"",{"$f":"Planning!AE86","v":{"v":0,"d":"0.00"}},{"$f":"'Month 7'!M102+'Month 7'!N102-'Month 7'!O102","v":{"v":0,"d":"0.00"}},null,"","",{"$f":"SUMIFS($J$25:$J$224,$C$25:$C$224,$C102,$G$25:$G$224,Lists!$A$16)","v":0},0,null,"",null,{"$f":"IF(C102=0,\"\",LEFT(INDEX(Lists!$H$5:$H$49,MATCH(C102,Lists!$G$5:$G$49,0),1),1))","v":""},null,{"$f":"'Month 7'!H102+'Month 7'!I102-'Month 7'!J102","v":0},"","",null,"0"]
[{"$f":"Planning!A87","v":"I079"},{"$f":"Planning!B87","v":0},{"$f":"Planning!C87","v":0},{"$f":"Planning!D87","v":0},{"$f":"Planning!E87","v":0},{"$f":"IF(Planning!G87<>0,Planning!G87,\"\")","v":""},{"$f":"Planning!H87","v":0},{"$f":"Planning!AD87","v":0},{"$f":"IF(OR(W103=\"1\",AND(W103<>\"1\",G103=Lists!$A$17)),Y103,0)","v":0},null,{"$f":"IF(AND(W103=\"2\",G103<>Lists!$A$17),AA103,Z103)","v":""},"",{"$f":"Planning!AE87","v":{"v":0,"d":"0.00"}},{"$f":"'Month 7'!M103+'Month 7'!N103-'Month 7'!O103","v":{"v":0,"d":"0.00"}},null,"","",{"$f":"SUMIFS($J$25:$J$224,$C$25:$C$224,$C103,$G$25:$G$224,Lists!$A$16)","v":0},0,null,"",null,{"$f":"IF(C103=0,\"\",LEFT(INDEX(Lists!$H$5:$H$49,MATCH(C103,Lists!$G$5:$G$49,0),1),1))","v":""},null,{"$f":"'Month 7'!H103+'Month 7'!I103-'Month 7'!J103","v":0},"","",null,"0"]
[{"$f":"Planning!A88","v":"I080"},{"$f":"Planning!B88","v":0},{"$f":"Planning!C88","v":0},{"$f":"Planning!D88","v":0},{"$f":"Planning!E88","v":0},{"$f":"IF(Planning!G88<>0,Planning!G88,\"\")","v":""},{"$f":"Planning!H88","v":0},{"$f":"Planning!AD88","v":0},{"$f":"IF(OR(W104=\"1\",AND(W104<>\"1\",G104=Lists!$A$17)),Y104,0)","v":0},null,{"$f":"IF(AND(W104=\"2\",G104<>Lists!$A$17),AA104,Z104)","v":""},"",{"$f":"Planning!AE88","v":{"v":0,"d":"0.00"}},{"$f":"'Month 7'!M104+'Month 7'!N104-'Month 7'!O104","v":{"v":0,"d":"0.00"}},null,"","",{"$f":"SUMIFS($J$25:$J$224,$C$25:$C$224,$C104,$G$25:$G$224,Lists!$A$16)","v":0},0,null,"",null,{"$f":"IF(C104=0,\"\",LEFT(INDEX(Lists!$H$5:$H$49,MATCH(C104,Lists!$G$5:$G$49,0),1),1))","v":""},null,{"$f":"'Month 7'!H104+'Month 7'!I104-'Month 7'!J104","v":0},"","",null,"0"]
[{"$f":"Planning!A89","v":"I081"},{"$f":"Planning!B89","v":0},{"$f":"Planning!C89","v":0},{"$f":"Planning!D89","v":0},{"$f":"Planning!E89","v":0},{"$f":"IF(Planning!G89<>0,Planning!G89,\"\")","v":""},{"$f":"Planning!H89","v":0},{"$f":"Planning!AD89","v":0},{"$f":"IF(OR(W105=\"1\",AND(W105<>\"1\",G105=Lists!$A$17)),Y105,0)","v":0},null,{"$f":"IF(AND(W105=\"2\",G105<>Lists!$A$17),AA105,Z105)","v":""},"",{"$f":"Planning!AE89","v":{"v":0,"d":"0.00"}},{"$f":"'Month 7'!M105+'Month 7'!N105-'Month 7'!O105","v":{"v":0,"d":"0.00"}},null,"","",{"$f":"SUMIFS($J$25:$J$224,$C$25:$C$224,$C105,$G$25:$G$224,Lists!$A$16)","v":0},0,null,"",null,{"$f":"IF(C105=0,\"\",LEFT(INDEX(Lists!$H$5:$H$49,MATCH(C105,Lists!$G$5:$G$49,0),1),1))","v":""},null,{"$f":"'Month 7'!H105+'Month 7'!I105-'Month 7'!J105","v":0},"","",null,"0"]
[{"$f":"Planning!A90","v":"I082"},{"$f":"Planning!B90","v":0},{"$f":"Planning!C90","v":0},{"$f":"Planning!D90","v":0},{"$f":"Planning!E90","v":0},{"$f":"IF(Planning!G90<>0,Planning!G90,\"\")","v":""},{"$f":"Planning!H90","v":0},{"$f":"Planning!AD90","v":0},{"$f":"IF(OR(W106=\"1\",AND(W106<>\"1\",G106=Lists!$A$17)),Y106,0)","v":0},null,{"$f":"IF(AND(W106=\"2\",G106<>Lists!$A$17),AA106,Z106)","v":""},"",{"$f":"Planning!AE90","v":{"v":0,"d":"0.00"}},{"$f":"'Month 7'!M106+'Month 7'!N106-'Month 7'!O106","v":{"v":0,"d":"0.00"}},null,"","",{"$f":"SUMIFS($J$25:$J$224,$C$25:$C$224,$C106,$G$25:$G$224,Lists!$A$16)","v":0},0,null,"",null,{"$f":"IF(C106=0,\"\",LEFT(INDEX(Lists!$H$5:$H$49,MATCH(C106,Lists!$G$5:$G$49,0),1),1))","v":""},null,{"$f":"'Month 7'!H106+'Month 7'!I106-'Month 7'!J106","v":0},"","",null,"0"]
[{"$f":"Planning!A91","v":"I083"},{"$f":"Planning!B91","v":0},{"$f":"Planning!C91","v":0},{"$f":"Planning!D91","v":0},{"$f":"Planning!E91","v":0},{"$f":"IF(Planning!G91<>0,Planning!G91,\"\")","v":""},{"$f":"Planning!H91","v":0},{"$f":"Planning!AD91","v":0},{"$f":"IF(OR(W107=\"1\",AND(W107<>\"1\",G107=Lists!$A$17)),Y107,0)","v":0},null,{"$f":"IF(AND(W107=\"2\",G107<>Lists!$A$17),AA107,Z107)","v":""},"",{"$f":"Planning!AE91","v":{"v":0,"d":"0.00"}},{"$f":"'Month 7'!M107+'Month 7'!N107-'Month 7'!O107","v":{"v":0,"d":"0.00"}},null,"","",{"$f":"SUMIFS($J$25:$J$224,$C$25:$C$224,$C107,$G$25:$G$224,Lists!$A$16)","v":0},0,null,"",null,{"$f":"IF(C107=0,\"\",LEFT(INDEX(Lists!$H$5:$H$49,MATCH(C107,Lists!$G$5:$G$49,0),1),1))","v":""},null,{"$f":"'Month 7'!H107+'Month 7'!I107-'Month 7'!J107","v":0},"","",null,"0"]
[{"$f":"Planning!A92","v":"I084"},{"$f":"Planning!B92","v":0},{"$f":"Planning!C92","v":0},{"$f":"Planning!D92","v":0},{"$f":"Planning!E92","v":0},{"$f":"IF(Planning!G92<>0,Planning!G92,\"\")","v":""},{"$f":"Planning!H92","v":0},{"$f":"Planning!AD92","v":0},{"$f":"IF(OR(W108=\"1\",AND(W108<>\"1\",G108=Lists!$A$17)),Y108,0)","v":0},null,{"$f":"IF(AND(W108=\"2\",G108<>Lists!$A$17),AA108,Z108)","v":""},"",{"$f":"Planning!AE92","v":{"v":0,"d":"0.00"}},{"$f":"'Month 7'!M108+'Month 7'!N108-'Month 7'!O108","v":{"v":0,"d":"0.00"}},null,"","",{"$f":"SUMIFS($J$25:$J$224,$C$25:$C$224,$C108,$G$25:$G$224,Lists!$A$16)","v":0},0,null,"",null,{"$f":"IF(C108=0,\"\",LEFT(INDEX(Lists!$H$5:$H$49,MATCH(C108,Lists!$G$5:$G$49,0),1),1))","v":""},null,{"$f":"'Month 7'!H108+'Month 7'!I108-'Month 7'!J108","v":0},"","",null,"0"]
[{"$f":"Planning!A93","v":"I085"},{"$f":"Planning!B93","v":0},{"$f":"Planning!C93","v":0},{"$f":"Planning!D93","v":0},{"$f":"Planning!E93","v":0},{"$f":"IF(Planning!G93<>0,Planning!G93,\"\")","v":""},{"$f":"Planning!H93","v":0},{"$f":"Planning!AD93","v":0},{"$f":"IF(OR(W109=\"1\",AND(W109<>\"1\",G109=Lists!$A$17)),Y109,0)","v":0},null,{"$f":"IF(AND(W109=\"2\",G109<>Lists!$A$17),AA109,Z109)","v":""},"",{"$f":"Planning!AE93","v":{"v":0,"d":"0.00"}},{"$f":"'Month 7'!M109+'Month 7'!N109-'Month 7'!O109","v":{"v":0,"d":"0.00"}},null,"","",{"$f":"SUMIFS($J$25:$J$224,$C$25:$C$224,$C109,$G$25:$G$224,Lists!$A$16)","v":0},0,null,"",null,{"$f":"IF(C109=0,\"\",LEFT(INDEX(Lists!$H$5:$H$49,MATCH(C109,Lists!$G$5:$G$49,0),1),1))","v":""},null,{"$f":"'Month 7'!H109+'Month 7'!I109-'Month 7'!J109","v":0},"","",null,"0"]
[{"$f":"Planning!A94","v":"I086"},{"$f":"Planning!B94","v":0},{"$f":"Planning!C94","v":0},{"$f":"Planning!D94","v":0},{"$f":"Planning!E94","v":0},{"$f":"IF(Planning!G94<>0,Planning!G94,\"\")","v":""},{"$f":"Planning!H94","v":0},{"$f":"Planning!AD94","v":0},{"$f":"IF(OR(W110=\"1\",AND(W110<>\"1\",G110=Lists!$A$17)),Y110,0)","v":0},null,{"$f":"IF(AND(W110=\"2\",G110<>Lists!$A$17),AA110,Z110)","v":""},"",{"$f":"Planning!AE94","v":{"v":0,"d":"0.00"}},{"$f":"'Month 7'!M110+'Month 7'!N110-'Month 7'!O110","v":{"v":0,"d":"0.00"}},null,"","",{"$f":"SUMIFS($J$25:$J$224,$C$25:$C$224,$C110,$G$25:$G$224,Lists!$A$16)","v":0},0,null,"",null,{"$f":"IF(C110=0,\"\",LEFT(INDEX(Lists!$H$5:$H$49,MATCH(C110,Lists!$G$5:$G$49,0),1),1))","v":""},null,{"$f":"'Month 7'!H110+'Month 7'!I110-'Month 7'!J110","v":0},"","",null,"0"]
[{"$f":"Planning!A95","v":"I087"},{"$f":"Planning!B95","v":0},{"$f":"Planning!C95","v":0},{"$f":"Planning!D95","v":0},{"$f":"Planning!E95","v":0},{"$f":"IF(Planning!G95<>0,Planning!G95,\"\")","v":""},{"$f":"Planning!H95","v":0},{"$f":"Planning!AD95","v":0},{"$f":"IF(OR(W111=\"1\",AND(W111<>\"1\",G111=Lists!$A$17)),Y111,0)","v":0},null,{"$f":"IF(AND(W111=\"2\",G111<>Lists!$A$17),AA111,Z111)","v":""},"",{"$f":"Planning!AE95","v":{"v":0,"d":"0.00"}},{"$f":"'Month 7'!M111+'Month 7'!N111-'Month 7'!O111","v":{"v":0,"d":"0.00"}},null,"","",{"$f":"SUMIFS($J$25:$J$224,$C$25:$C$224,$C111,$G$25:$G$224,Lists!$A$16)","v":0},0,null,"",null,{"$f":"IF(C111=0,\"\",LEFT(INDEX(Lists!$H$5:$H$49,MATCH(C111,Lists!$G$5:$G$49,0),1),1))","v":""},null,{"$f":"'Month 7'!H111+'Month 7'!I111-'Month 7'!J111","v":0},"","",null,"0"]
[{"$f":"Planning!A96","v":"I088"},{"$f":"Planning!B96","v":0},{"$f":"Planning!C96","v":0},{"$f":"Planning!D96","v":0},{"$f":"Planning!E96","v":0},{"$f":"IF(Planning!G96<>0,Planning!G96,\"\")","v":""},{"$f":"Planning!H96","v":0},{"$f":"Planning!AD96","v":0},{"$f":"IF(OR(W112=\"1\",AND(W112<>\"1\",G112=Lists!$A$17)),Y112,0)","v":0},null,{"$f":"IF(AND(W112=\"2\",G112<>Lists!$A$17),AA112,Z112)","v":""},"",{"$f":"Planning!AE96","v":{"v":0,"d":"0.00"}},{"$f":"'Month 7'!M112+'Month 7'!N112-'Month 7'!O112","v":{"v":0,"d":"0.00"}},null,"","",{"$f":"SUMIFS($J$25:$J$224,$C$25:$C$224,$C112,$G$25:$G$224,Lists!$A$16)","v":0},0,null,"",null,{"$f":"IF(C112=0,\"\",LEFT(INDEX(Lists!$H$5:$H$49,MATCH(C112,Lists!$G$5:$G$49,0),1),1))","v":""},null,{"$f":"'Month 7'!H112+'Month 7'!I112-'Month 7'!J112","v":0},"","",null,"0"]
[{"$f":"Planning!A97","v":"I089"},{"$f":"Planning!B97","v":0},{"$f":"Planning!C97","v":0},{"$f":"Planning!D97","v":0},{"$f":"Planning!E97","v":0},{"$f":"IF(Planning!G97<>0,Planning!G97,\"\")","v":""},{"$f":"Planning!H97","v":0},{"$f":"Planning!AD97","v":0},{"$f":"IF(OR(W113=\"1\",AND(W113<>\"1\",G113=Lists!$A$17)),Y113,0)","v":0},null,{"$f":"IF(AND(W113=\"2\",G113<>Lists!$A$17),AA113,Z113)","v":""},"",{"$f":"Planning!AE97","v":{"v":0,"d":"0.00"}},{"$f":"'Month 7'!M113+'Month 7'!N113-'Month 7'!O113","v":{"v":0,"d":"0.00"}},null,"","",{"$f":"SUMIFS($J$25:$J$224,$C$25:$C$224,$C113,$G$25:$G$224,Lists!$A$16)","v":0},0,null,"",null,{"$f":"IF(C113=0,\"\",LEFT(INDEX(Lists!$H$5:$H$49,MATCH(C113,Lists!$G$5:$G$49,0),1),1))","v":""},null,{"$f":"'Month 7'!H113+'Month 7'!I113-'Month 7'!J113","v":0},"","",null,"0"]
[{"$f":"Planning!A98","v":"I090"},{"$f":"Planning!B98","v":0},{"$f":"Planning!C98","v":0},{"$f":"Planning!D98","v":0},{"$f":"Planning!E98","v":0},{"$f":"IF(Planning!G98<>0,Planning!G98,\"\")","v":""},{"$f":"Planning!H98","v":0},{"$f":"Planning!AD98","v":0},{"$f":"IF(OR(W114=\"1\",AND(W114<>\"1\",G114=Lists!$A$17)),Y114,0)","v":0},null,{"$f":"IF(AND(W114=\"2\",G114<>Lists!$A$17),AA114,Z114)","v":""},"",{"$f":"Planning!AE98","v":{"v":0,"d":"0.00"}},{"$f":"'Month 7'!M114+'Month 7'!N114-'Month 7'!O114","v":{"v":0,"d":"0.00"}},null,"","",{"$f":"SUMIFS($J$25:$J$224,$C$25:$C$224,$C114,$G$25:$G$224,Lists!$A$16)","v":0},0,null,"",null,{"$f":"IF(C114=0,\"\",LEFT(INDEX(Lists!$H$5:$H$49,MATCH(C114,Lists!$G$5:$G$49,0),1),1))","v":""},null,{"$f":"'Month 7'!H114+'Month 7'!I114-'Month 7'!J114","v":0},"","",null,"0"]
[{"$f":"Planning!A99","v":"I091"},{"$f":"Planning!B99","v":0},{"$f":"Planning!C99","v":0},{"$f":"Planning!D99","v":0},{"$f":"Planning!E99","v":0},{"$f":"IF(Planning!G99<>0,Planning!G99,\"\")","v":""},{"$f":"Planning!H99","v":0},{"$f":"Planning!AD99","v":0},{"$f":"IF(OR(W115=\"1\",AND(W115<>\"1\",G115=Lists!$A$17)),Y115,0)","v":0},null,{"$f":"IF(AND(W115=\"2\",G115<>Lists!$A$17),AA115,Z115)","v":""},"",{"$f":"Planning!AE99","v":{"v":0,"d":"0.00"}},{"$f":"'Month 7'!M115+'Month 7'!N115-'Month 7'!O115","v":{"v":0,"d":"0.00"}},null,"","",{"$f":"SUMIFS($J$25:$J$224,$C$25:$C$224,$C115,$G$25:$G$224,Lists!$A$16)","v":0},0,null,"",null,{"$f":"IF(C115=0,\"\",LEFT(INDEX(Lists!$H$5:$H$49,MATCH(C115,Lists!$G$5:$G$49,0),1),1))","v":""},null,{"$f":"'Month 7'!H115+'Month 7'!I115-'Month 7'!J115","v":0},"","",null,"0"]
[{"$f":"Planning!A100","v":"I092"},{"$f":"Planning!B100","v":0},{"$f":"Planning!C100","v":0},{"$f":"Planning!D100","v":0},{"$f":"Planning!E100","v":0},{"$f":"IF(Planning!G100<>0,Planning!G100,\"\")","v":""},{"$f":"Planning!H100","v":0},{"$f":"Planning!AD100","v":0},{"$f":"IF(OR(W116=\"1\",AND(W116<>\"1\",G116=Lists!$A$17)),Y116,0)","v":0},null,{"$f":"IF(AND(W116=\"2\",G116<>Lists!$A$17),AA116,Z116)","v":""},"",{"$f":"Planning!AE100","v":{"v":0,"d":"0.00"}},{"$f":"'Month 7'!M116+'Month 7'!N116-'Month 7'!O116","v":{"v":0,"d":"0.00"}},null,"","",{"$f":"SUMIFS($J$25:$J$224,$C$25:$C$224,$C116,$G$25:$G$224,Lists!$A$16)","v":0},0,null,"",null,{"$f":"IF(C116=0,\"\",LEFT(INDEX(Lists!$H$5:$H$49,MATCH(C116,Lists!$G$5:$G$49,0),1),1))","v":""},null,{"$f":"'Month 7'!H116+'Month 7'!I116-'Month 7'!J116","v":0},"","",null,"0"]
[{"$f":"Planning!A101","v":"I093"},{"$f":"Planning!B101","v":0},{"$f":"Planning!C101","v":0},{"$f":"Planning!D101","v":0},{"$f":"Planning!E101","v":0},{"$f":"IF(Planning!G101<>0,Planning!G101,\"\")","v":""},{"$f":"Planning!H101","v":0},{"$f":"Planning!AD101","v":0},{"$f":"IF(OR(W117=\"1\",AND(W117<>\"1\",G117=Lists!$A$17)),Y117,0)","v":0},null,{"$f":"IF(AND(W117=\"2\",G117<>Lists!$A$17),AA117,Z117)","v":""},"",{"$f":"Planning!AE101","v":{"v":0,"d":"0.00"}},{"$f":"'Month 7'!M117+'Month 7'!N117-'Month 7'!O117","v":{"v":0,"d":"0.00"}},null,"","",{"$f":"SUMIFS($J$25:$J$224,$C$25:$C$224,$C117,$G$25:$G$224,Lists!$A$16)","v":0},0,null,"",null,{"$f":"IF(C117=0,\"\",LEFT(INDEX(Lists!$H$5:$H$49,MATCH(C117,Lists!$G$5:$G$49,0),1),1))","v":""},null,{"$f":"'Month 7'!H117+'Month 7'!I117-'Month 7'!J117","v":0},"","",null,"0"]
[{"$f":"Planning!A102","v":"I094"},{"$f":"Planning!B102","v":0},{"$f":"Planning!C102","v":0},{"$f":"Planning!D102","v":0},{"$f":"Planning!E102","v":0},{"$f":"IF(Planning!G102<>0,Planning!G102,\"\")","v":""},{"$f":"Planning!H102","v":0},{"$f":"Planning!AD102","v":0},{"$f":"IF(OR(W118=\"1\",AND(W118<>\"1\",G118=Lists!$A$17)),Y118,0)","v":0},null,{"$f":"IF(AND(W118=\"2\",G118<>Lists!$A$17),AA118,Z118)","v":""},"",{"$f":"Planning!AE102","v":{"v":0,"d":"0.00"}},{"$f":"'Month 7'!M118+'Month 7'!N118-'Month 7'!O118","v":{"v":0,"d":"0.00"}},null,"","",{"$f":"SUMIFS($J$25:$J$224,$C$25:$C$224,$C118,$G$25:$G$224,Lists!$A$16)","v":0},0,null,"",null,{"$f":"IF(C118=0,\"\",LEFT(INDEX(Lists!$H$5:$H$49,MATCH(C118,Lists!$G$5:$G$49,0),1),1))","v":""},null,{"$f":"'Month 7'!H118+'Month 7'!I118-'Month 7'!J118","v":0},"","",null,"0"]
[{"$f":"Planning!A103","v":"I095"},{"$f":"Planning!B103","v":0},{"$f":"Planning!C103","v":0},{"$f":"Planning!D103","v":0},{"$f":"Planning!E103","v":0},{"$f":"IF(Planning!G103<>0,Planning!G103,\"\")","v":""},{"$f":"Planning!H103","v":0},{"$f":"Planning!AD103","v":0},{"$f":"IF(OR(W119=\"1\",AND(W119<>\"1\",G119=Lists!$A$17)),Y119,0)","v":0},null,{"$f":"IF(AND(W119=\"2\",G119<>Lists!$A$17),AA119,Z119)","v":""},"",{"$f":"Planning!AE103","v":{"v":0,"d":"0.00"}},{"$f":"'Month 7'!M119+'Month 7'!N119-'Month 7'!O119","v":{"v":0,"d":"0.00"}},null,"","",{"$f":"SUMIFS($J$25:$J$224,$C$25:$C$224,$C119,$G$25:$G$224,Lists!$A$16)","v":0},0,null,"",null,{"$f":"IF(C119=0,\"\",LEFT(INDEX(Lists!$H$5:$H$49,MATCH(C119,Lists!$G$5:$G$49,0),1),1))","v":""},null,{"$f":"'Month 7'!H119+'Month 7'!I119-'Month 7'!J119","v":0},"","",null,"0"]
[{"$f":"Planning!A104","v":"I096"},{"$f":"Planning!B104","v":0},{"$f":"Planning!C104","v":0},{"$f":"Planning!D104","v":0},{"$f":"Planning!E104","v":0},{"$f":"IF(Planning!G104<>0,Planning!G104,\"\")","v":""},{"$f":"Planning!H104","v":0},{"$f":"Planning!AD104","v":0},{"$f":"IF(OR(W120=\"1\",AND(W120<>\"1\",G120=Lists!$A$17)),Y120,0)","v":0},null,{"$f":"IF(AND(W120=\"2\",G120<>Lists!$A$17),AA120,Z120)","v":""},"",{"$f":"Planning!AE104","v":{"v":0,"d":"0.00"}},{"$f":"'Month 7'!M120+'Month 7'!N120-'Month 7'!O120","v":{"v":0,"d":"0.00"}},null,"","",{"$f":"SUMIFS($J$25:$J$224,$C$25:$C$224,$C120,$G$25:$G$224,Lists!$A$16)","v":0},0,null,"",null,{"$f":"IF(C120=0,\"\",LEFT(INDEX(Lists!$H$5:$H$49,MATCH(C120,Lists!$G$5:$G$49,0),1),1))","v":""},null,{"$f":"'Month 7'!H120+'Month 7'!I120-'Month 7'!J120","v":0},"","",null,"0"]
[{"$f":"Planning!A105","v":"I097"},{"$f":"Planning!B105","v":0},{"$f":"Planning!C105","v":0},{"$f":"Planning!D105","v":0},{"$f":"Planning!E105","v":0},{"$f":"IF(Planning!G105<>0,Planning!G105,\"\")","v":""},{"$f":"Planning!H105","v":0},{"$f":"Planning!AD105","v":0},{"$f":"IF(OR(W121=\"1\",AND(W121<>\"1\",G121=Lists!$A$17)),Y121,0)","v":0},null,{"$f":"IF(AND(W121=\"2\",G121<>Lists!$A$17),AA121,Z121)","v":""},{"$f":"IF($U121=ExcluirDelPLogro,\"\",IF(AND(H121=0,I121=0,J121=0),\"\",K121))","v":""},{"$f":"Planning!AE105","v":{"v":0,"d":"0.00"}},{"$f":"'Month 7'!M121+'Month 7'!N121-'Month 7'!O121","v":{"v":0,"d":"0.00"}},null,"",{"$f":"IF($U121=ExcluirDelPLogro,\"\",IF(AND(M121=0,N121=0,O121=0),\"\",P121))","v":""},{"$f":"SUMIFS($J$25:$J$224,$C$25:$C$224,$C121,$G$25:$G$224,Lists!$A$16)","v":0},0,null,"",null,{"$f":"IF(C121=0,\"\",LEFT(INDEX(Lists!$H$5:$H$49,MATCH(C121,Lists!$G$5:$G$49,0),1),1))","v":""},null,{"$f":"'Month 7'!H121+'Month 7'!I121-'Month 7'!J121","v":0},"",{"$f":"IF(AND(H121=0,I121=0,J121=0),\"\",IF(J121>0,H121/J121,0))","v":""},null,"0"]
[{"$f":"Planning!A106","v":"I098"},{"$f":"Planning!B106","v":0},{"$f":"Planning!C106","v":0},{"$f":"Planning!D106","v":0},{"$f":"Planning!E106","v":0},{"$f":"IF(Planning!G106<>0,Planning!G106,\"\")","v":""},{"$f":"Planning!H106","v":0},{"$f":"Planning!AD106","v":0},{"$f":"IF(OR(W122=\"1\",AND(W122<>\"1\",G122=Lists!$A$17)),Y122,0)","v":0},null,{"$f":"IF(AND(W122=\"2\",G122<>Lists!$A$17),AA122,Z122)","v":""},"",{"$f":"Planning!AE106","v":{"v":0,"d":"0.00"}},{"$f":"'Month 7'!M122+'Month 7'!N122-'Month 7'!O122","v":{"v":0,"d":"0.00"}},null,"","",{"$f":"SUMIFS($J$25:$J$224,$C$25:$C$224,$C122,$G$25:$G$224,Lists!$A$16)","v":0},0,null,"",null,{"$f":"IF(C122=0,\"\",LEFT(INDEX(Lists!$H$5:$H$49,MATCH(C122,Lists!$G$5:$G$49,0),1),1))","v":""},null,{"$f":"'Month 7'!H122+'Month 7'!I122-'Month 7'!J122","v":0},"","",null,"0"]
[{"$f":"Planning!A107","v":"I099"},{"$f":"Planning!B107","v":0},{"$f":"Planning!C107","v":0},{"$f":"Planning!D107","v":0},{"$f":"Planning!E107","v":0},{"$f":"IF(Planning!G107<>0,Planning!G107,\"\")","v":""},{"$f":"Planning!H107","v":0},{"$f":"Planning!AD107","v":0},{"$f":"IF(OR(W123=\"1\",AND(W123<>\"1\",G123=Lists!$A$17)),Y123,0)","v":0},null,{"$f":"IF(AND(W123=\"2\",G123<>Lists!$A$17),AA123,Z123)","v":""},"",{"$f":"Planning!AE107","v":{"v":0,"d":"0.00"}},{"$f":"'Month 7'!M123+'Month 7'!N123-'Month 7'!O123","v":{"v":0,"d":"0.00"}},null,"","",{"$f":"SUMIFS($J$25:$J$224,$C$25:$C$224,$C123,$G$25:$G$224,Lists!$A$16)","v":0},0,null,"",null,{"$f":"IF(C123=0,\"\",LEFT(INDEX(Lists!$H$5:$H$49,MATCH(C123,Lists!$G$5:$G$49,0),1),1))","v":""},null,{"$f":"'Month 7'!H123+'Month 7'!I123-'Month 7'!J123","v":0},"","",null,"0"]
[{"$f":"Planning!A108","v":"I100"},{"$f":"Planning!B108","v":0},{"$f":"Planning!C108","v":0},{"$f":"Planning!D108","v":0},{"$f":"Planning!E108","v":0},{"$f":"IF(Planning!G108<>0,Planning!G108,\"\")","v":""},{"$f":"Planning!H108","v":0},{"$f":"Planning!AD108","v":0},{"$f":"IF(OR(W124=\"1\",AND(W124<>\"1\",G124=Lists!$A$17)),Y124,0)","v":0},null,{"$f":"IF(AND(W124=\"2\",G124<>Lists!$A$17),AA124,Z124)","v":""},"",{"$f":"Planning!AE108","v":{"v":0,"d":"0.00"}},{"$f":"'Month 7'!M124+'Month 7'!N124-'Month 7'!O124","v":{"v":0,"d":"0.00"}},null,"","",{"$f":"SUMIFS($J$25:$J$224,$C$25:$C$224,$C124,$G$25:$G$224,Lists!$A$16)","v":0},0,null,"",null,{"$f":"IF(C124=0,\"\",LEFT(INDEX(Lists!$H$5:$H$49,MATCH(C124,Lists!$G$5:$G$49,0),1),1))","v":""},null,{"$f":"'Month 7'!H124+'Month 7'!I124-'Month 7'!J124","v":0},"","",null,"0"]
[{"$f":"Planning!A109","v":"I101"},{"$f":"Planning!B109","v":0},{"$f":"Planning!C109","v":0},{"$f":"Planning!D109","v":0},{"$f":"Planning!E109","v":0},{"$f":"IF(Planning!G109<>0,Planning!G109,\"\")","v":""},{"$f":"Planning!H109","v":0},{"$f":"Planning!AD109","v":0},{"$f":"IF(OR(W125=\"1\",AND(W125<>\"1\",G125=Lists!$A$17)),Y125,0)","v":0},null,{"$f":"IF(AND(W125=\"2\",G125<>Lists!$A$17),AA125,Z125)","v":""},"",{"$f":"Planning!AE109","v":{"v":0,"d":"0.00"}},{"$f":"'Month 7'!M125+'Month 7'!N125-'Month 7'!O125","v":{"v":0,"d":"0.00"}},null,"","",{"$f":"SUMIFS($J$25:$J$224,$C$25:$C$224,$C125,$G$25:$G$224,Lists!$A$16)","v":0},0,null,"",null,{"$f":"IF(C125=0,\"\",LEFT(INDEX(Lists!$H$5:$H$49,MATCH(C125,Lists!$G$5:$G$49,0),1),1))","v":""},null,{"$f":"'Month 7'!H125+'Month 7'!I125-'Month 7'!J125","v":0},"","",null,"0"]
[{"$f":"Planning!A110","v":"I102"},{"$f":"Planning!B110","v":0},{"$f":"Planning!C110","v":0},{"$f":"Planning!D110","v":0},{"$f":"Planning!E110","v":0},{"$f":"IF(Planning!G110<>0,Planning!G110,\"\")","v":""},{"$f":"Planning!H110","v":0},{"$f":"Planning!AD110","v":0},{"$f":"IF(OR(W126=\"1\",AND(W126<>\"1\",G126=Lists!$A$17)),Y126,0)","v":0},null,{"$f":"IF(AND(W126=\"2\",G126<>Lists!$A$17),AA126,Z126)","v":""},"",{"$f":"Planning!AE110","v":{"v":0,"d":"0.00"}},{"$f":"'Month 7'!M126+'Month 7'!N126-'Month 7'!O126","v":{"v":0,"d":"0.00"}},null,"","",{"$f":"SUMIFS($J$25:$J$224,$C$25:$C$224,$C126,$G$25:$G$224,Lists!$A$16)","v":0},0,null,"",null,{"$f":"IF(C126=0,\"\",LEFT(INDEX(Lists!$H$5:$H$49,MATCH(C126,Lists!$G$5:$G$49,0),1),1))","v":""},null,{"$f":"'Month 7'!H126+'Month 7'!I126-'Month 7'!J126","v":0},"","",null,"0"]
[{"$f":"Planning!A111","v":"I103"},{"$f":"Planning!B111","v":0},{"$f":"Planning!C111","v":0},{"$f":"Planning!D111","v":0},{"$f":"Planning!E111","v":0},{"$f":"IF(Planning!G111<>0,Planning!G111,\"\")","v":""},{"$f":"Planning!H111","v":0},{"$f":"Planning!AD111","v":0},{"$f":"IF(OR(W127=\"1\",AND(W127<>\"1\",G127=Lists!$A$17)),Y127,0)","v":0},null,{"$f":"IF(AND(W127=\"2\",G127<>Lists!$A$17),AA127,Z127)","v":""},"",{"$f":"Planning!AE111","v":{"v":0,"d":"0.00"}},{"$f":"'Month 7'!M127+'Month 7'!N127-'Month 7'!O127","v":{"v":0,"d":"0.00"}},null,"","",{"$f":"SUMIFS($J$25:$J$224,$C$25:$C$224,$C127,$G$25:$G$224,Lists!$A$16)","v":0},0,null,"",null,{"$f":"IF(C127=0,\"\",LEFT(INDEX(Lists!$H$5:$H$49,MATCH(C127,Lists!$G$5:$G$49,0),1),1))","v":""},null,{"$f":"'Month 7'!H127+'Month 7'!I127-'Month 7'!J127","v":0},"","",null,"0"]
[{"$f":"Planning!A112","v":"I104"},{"$f":"Planning!B112","v":0},{"$f":"Planning!C112","v":0},{"$f":"Planning!D112","v":0},{"$f":"Planning!E112","v":0},{"$f":"IF(Planning!G112<>0,Planning!G112,\"\")","v":""},{"$f":"Planning!H112","v":0},{"$f":"Planning!AD112","v":0},{"$f":"IF(OR(W128=\"1\",AND(W128<>\"1\",G128=Lists!$A$17)),Y128,0)","v":0},null,{"$f":"IF(AND(W128=\"2\",G128<>Lists!$A$17),AA128,Z128)","v":""},"",{"$f":"Planning!AE112","v":{"v":0,"d":"0.00"}},{"$f":"'Month 7'!M128+'Month 7'!N128-'Month 7'!O128","v":{"v":0,"d":"0.00"}},null,"","",{"$f":"SUMIFS($J$25:$J$224,$C$25:$C$224,$C128,$G$25:$G$224,Lists!$A$16)","v":0},0,null,"",null,{"$f":"IF(C128=0,\"\",LEFT(INDEX(Lists!$H$5:$H$49,MATCH(C128,Lists!$G$5:$G$49,0),1),1))","v":""},null,{"$f":"'Month 7'!H128+'Month 7'!I128-'Month 7'!J128","v":0},"","",null,"0"]
[{"$f":"Planning!A113","v":"I105"},{"$f":"Planning!B113","v":0},{"$f":"Planning!C113","v":0},{"$f":"Planning!D113","v":0},{"$f":"Planning!E113","v":0},{"$f":"IF(Planning!G113<>0,Planning!G113,\"\")","v":""},{"$f":"Planning!H113","v":0},{"$f":"Planning!AD113","v":0},{"$f":"IF(OR(W129=\"1\",AND(W129<>\"1\",G129=Lists!$A$17)),Y129,0)","v":0},null,{"$f":"IF(AND(W129=\"2\",G129<>Lists!$A$17),AA129,Z129)","v":""},"",{"$f":"Planning!AE113","v":{"v":0,"d":"0.00"}},{"$f":"'Month 7'!M129+'Month 7'!N129-'Month 7'!O129","v":{"v":0,"d":"0.00"}},null,"","",{"$f":"SUMIFS($J$25:$J$224,$C$25:$C$224,$C129,$G$25:$G$224,Lists!$A$16)","v":0},0,null,"",null,{"$f":"IF(C129=0,\"\",LEFT(INDEX(Lists!$H$5:$H$49,MATCH(C129,Lists!$G$5:$G$49,0),1),1))","v":""},null,{"$f":"'Month 7'!H129+'Month 7'!I129-'Month 7'!J129","v":0},"","",null,"0"]
[{"$f":"Planning!A114","v":"I106"},{"$f":"Planning!B114","v":0},{"$f":"Planning!C114","v":0},{"$f":"Planning!D114","v":0},{"$f":"Planning!E114","v":0},{"$f":"IF(Planning!G114<>0,Planning!G114,\"\")","v":""},{"$f":"Planning!H114","v":0},{"$f":"Planning!AD114","v":0},{"$f":"IF(OR(W130=\"1\",AND(W130<>\"1\",G130=Lists!$A$17)),Y130,0)","v":0},null,{"$f":"IF(AND(W130=\"2\",G130<>Lists!$A$17),AA130,Z130)","v":""},"",{"$f":"Planning!AE114","v":{"v":0,"d":"0.00"}},{"$f":"'Month 7'!M130+'Month 7'!N130-'Month 7'!O130","v":{"v":0,"d":"0.00"}},null,"","",{"$f":"SUMIFS($J$25:$J$224,$C$25:$C$224,$C130,$G$25:$G$224,Lists!$A$16)","v":0},0,null,"",null,{"$f":"IF(C130=0,\"\",LEFT(INDEX(Lists!$H$5:$H$49,MATCH(C130,Lists!$G$5:$G$49,0),1),1))","v":""},null,{"$f":"'Month 7'!H130+'Month 7'!I130-'Month 7'!J130","v":0},"","",null,"0"]
[{"$f":"Planning!A115","v":"I107"},{"$f":"Planning!B115","v":0},{"$f":"Planning!C115","v":0},{"$f":"Planning!D115","v":0},{"$f":"Planning!E115","v":0},{"$f":"IF(Planning!G115<>0,Planning!G115,\"\")","v":""},{"$f":"Planning!H115","v":0},{"$f":"Planning!AD115","v":0},{"$f":"IF(OR(W131=\"1\",AND(W131<>\"1\",G131=Lists!$A$17)),Y131,0)","v":0},null,{"$f":"IF(AND(W131=\"2\",G131<>Lists!$A$17),AA131,Z131)","v":""},"",{"$f":"Planning!AE115","v":{"v":0,"d":"0.00"}},{"$f":"'Month 7'!M131+'Month 7'!N131-'Month 7'!O131","v":{"v":0,"d":"0.00"}},null,"","",{"$f":"SUMIFS($J$25:$J$224,$C$25:$C$224,$C131,$G$25:$G$224,Lists!$A$16)","v":0},0,null,"",null,{"$f":"IF(C131=0,\"\",LEFT(INDEX(Lists!$H$5:$H$49,MATCH(C131,Lists!$G$5:$G$49,0),1),1))","v":""},null,{"$f":"'Month 7'!H131+'Month 7'!I131-'Month 7'!J131","v":0},"","",null,"0"]
[{"$f":"Planning!A116","v":"I108"},{"$f":"Planning!B116","v":0},{"$f":"Planning!C116","v":0},{"$f":"Planning!D116","v":0},{"$f":"Planning!E116","v":0},{"$f":"IF(Planning!G116<>0,Planning!G116,\"\")","v":""},{"$f":"Planning!H116","v":0},{"$f":"Planning!AD116","v":0},{"$f":"IF(OR(W132=\"1\",AND(W132<>\"1\",G132=Lists!$A$17)),Y132,0)","v":0},null,{"$f":"IF(AND(W132=\"2\",G132<>Lists!$A$17),AA132,Z132)","v":""},"",{"$f":"Planning!AE116","v":{"v":0,"d":"0.00"}},{"$f":"'Month 7'!M132+'Month 7'!N132-'Month 7'!O132","v":{"v":0,"d":"0.00"}},null,"","",{"$f":"SUMIFS($J$25:$J$224,$C$25:$C$224,$C132,$G$25:$G$224,Lists!$A$16)","v":0},0,null,"",null,{"$f":"IF(C132=0,\"\",LEFT(INDEX(Lists!$H$5:$H$49,MATCH(C132,Lists!$G$5:$G$49,0),1),1))","v":""},null,{"$f":"'Month 7'!H132+'Month 7'!I132-'Month 7'!J132","v":0},"","",null,"0"]
[{"$f":"Planning!A117","v":"I109"},{"$f":"Planning!B117","v":0},{"$f":"Planning!C117","v":0},{"$f":"Planning!D117","v":0},{"$f":"Planning!E117","v":0},{"$f":"IF(Planning!G117<>0,Planning!G117,\"\")","v":""},{"$f":"Planning!H117","v":0},{"$f":"Planning!AD117","v":0},{"$f":"IF(OR(W133=\"1\",AND(W133<>\"1\",G133=Lists!$A$17)),Y133,0)","v":0},null,{"$f":"IF(AND(W133=\"2\",G133<>Lists!$A$17),AA133,Z133)","v":""},"",{"$f":"Planning!AE117","v":{"v":0,"d":"0.00"}},{"$f":"'Month 7'!M133+'Month 7'!N133-'Month 7'!O133","v":{"v":0,"d":"0.00"}},null,"","",{"$f":"SUMIFS($J$25:$J$224,$C$25:$C$224,$C133,$G$25:$G$224,Lists!$A$16)","v":0},0,null,"",null,{"$f":"IF(C133=0,\"\",LEFT(INDEX(Lists!$H$5:$H$49,MATCH(C133,Lists!$G$5:$G$49,0),1),1))","v":""},null,{"$f":"'Month 7'!H133+'Month 7'!I133-'Month 7'!J133","v":0},"","",null,"0"]
[{"$f":"Planning!A118","v":"I110"},{"$f":"Planning!B118","v":0},{"$f":"Planning!C118","v":0},{"$f":"Planning!D118","v":0},{"$f":"Planning!E118","v":0},{"$f":"IF(Planning!G118<>0,Planning!G118,\"\")","v":""},{"$f":"Planning!H118","v":0},{"$f":"Planning!AD118","v":0},{"$f":"IF(OR(W134=\"1\",AND(W134<>\"1\",G134=Lists!$A$17)),Y134,0)","v":0},null,{"$f":"IF(AND(W134=\"2\",G134<>Lists!$A$17),AA134,Z134)","v":""},"",{"$f":"Planning!AE118","v":{"v":0,"d":"0.00"}},{"$f":"'Month 7'!M134+'Month 7'!N134-'Month 7'!O134","v":{"v":0,"d":"0.00"}},null,"","",{"$f":"SUMIFS($J$25:$J$224,$C$25:$C$224,$C134,$G$25:$G$224,Lists!$A$16)","v":0},0,null,"",null,{"$f":"IF(C134=0,\"\",LEFT(INDEX(Lists!$H$5:$H$49,MATCH(C134,Lists!$G$5:$G$49,0),1),1))","v":""},null,{"$f":"'Month 7'!H134+'Month 7'!I134-'Month 7'!J134","v":0},"","",null,"0"]
[{"$f":"Planning!A119","v":"I111"},{"$f":"Planning!B119","v":0},{"$f":"Planning!C119","v":0},{"$f":"Planning!D119","v":0},{"$f":"Planning!E119","v":0},{"$f":"IF(Planning!G119<>0,Planning!G119,\"\")","v":""},{"$f":"Planning!H119","v":0},{"$f":"Planning!AD119","v":0},{"$f":"IF(OR(W135=\"1\",AND(W135<>\"1\",G135=Lists!$A$17)),Y135,0)","v":0},null,{"$f":"IF(AND(W135=\"2\",G135<>Lists!$A$17),AA135,Z135)","v":""},"",{"$f":"Planning!AE119","v":{"v":0,"d":"0.00"}},{"$f":"'Month 7'!M135+'Month 7'!N135-'Month 7'!O135","v":{"v":0,"d":"0.00"}},null,"","",{"$f":"SUMIFS($J$25:$J$224,$C$25:$C$224,$C135,$G$25:$G$224,Lists!$A$16)","v":0},0,null,"",null,{"$f":"IF(C135=0,\"\",LEFT(INDEX(Lists!$H$5:$H$49,MATCH(C135,Lists!$G$5:$G$49,0),1),1))","v":""},null,{"$f":"'Month 7'!H135+'Month 7'!I135-'Month 7'!J135","v":0},"","",null,"0"]
[{"$f":"Planning!A120","v":"I112"},{"$f":"Planning!B120","v":0},{"$f":"Planning!C120","v":0},{"$f":"Planning!D120","v":0},{"$f":"Planning!E120","v":0},{"$f":"IF(Planning!G120<>0,Planning!G120,\"\")","v":""},{"$f":"Planning!H120","v":0},{"$f":"Planning!AD120","v":0},{"$f":"IF(OR(W136=\"1\",AND(W136<>\"1\",G136=Lists!$A$17)),Y136,0)","v":0},null,{"$f":"IF(AND(W136=\"2\",G136<>Lists!$A$17),AA136,Z136)","v":""},"",{"$f":"Planning!AE120","v":{"v":0,"d":"0.00"}},{"$f":"'Month 7'!M136+'Month 7'!N136-'Month 7'!O136","v":{"v":0,"d":"0.00"}},null,"","",{"$f":"SUMIFS($J$25:$J$224,$C$25:$C$224,$C136,$G$25:$G$224,Lists!$A$16)","v":0},0,null,"",null,{"$f":"IF(C136=0,\"\",LEFT(INDEX(Lists!$H$5:$H$49,MATCH(C136,Lists!$G$5:$G$49,0),1),1))","v":""},null,{"$f":"'Month 7'!H136+'Month 7'!I136-'Month 7'!J136","v":0},"","",null,"0"]
[{"$f":"Planning!A121","v":"I113"},{"$f":"Planning!B121","v":0},{"$f":"Planning!C121","v":0},{"$f":"Planning!D121","v":0},{"$f":"Planning!E121","v":0},{"$f":"IF(Planning!G121<>0,Planning!G121,\"\")","v":""},{"$f":"Planning!H121","v":0},{"$f":"Planning!AD121","v":0},{"$f":"IF(OR(W137=\"1\",AND(W137<>\"1\",G137=Lists!$A$17)),Y137,0)","v":0},null,{"$f":"IF(AND(W137=\"2\",G137<>Lists!$A$17),AA137,Z137)","v":""},"",{"$f":"Planning!AE121","v":{"v":0,"d":"0.00"}},{"$f":"'Month 7'!M137+'Month 7'!N137-'Month 7'!O137","v":{"v":0,"d":"0.00"}},null,"","",{"$f":"SUMIFS($J$25:$J$224,$C$25:$C$224,$C137,$G$25:$G$224,Lists!$A$16)","v":0},0,null,"",null,{"$f":"IF(C137=0,\"\",LEFT(INDEX(Lists!$H$5:$H$49,MATCH(C137,Lists!$G$5:$G$49,0),1),1))","v":""},null,{"$f":"'Month 7'!H137+'Month 7'!I137-'Month 7'!J137","v":0},"","",null,"0"]
[{"$f":"Planning!A122","v":"I114"},{"$f":"Planning!B122","v":0},{"$f":"Planning!C122","v":0},{"$f":"Planning!D122","v":0},{"$f":"Planning!E122","v":0},{"$f":"IF(Planning!G122<>0,Planning!G122,\"\")","v":""},{"$f":"Planning!H122","v":0},{"$f":"Planning!AD122","v":0},{"$f":"IF(OR(W138=\"1\",AND(W138<>\"1\",G138=Lists!$A$17)),Y138,0)","v":0},null,{"$f":"IF(AND(W138=\"2\",G138<>Lists!$A$17),AA138,Z138)","v":""},"",{"$f":"Planning!AE122","v":{"v":0,"d":"0.00"}},{"$f":"'Month 7'!M138+'Month 7'!N138-'Month 7'!O138","v":{"v":0,"d":"0.00"}},null,"","",{"$f":"SUMIFS($J$25:$J$224,$C$25:$C$224,$C138,$G$25:$G$224,Lists!$A$16)","v":0},0,null,"",null,{"$f":"IF(C138=0,\"\",LEFT(INDEX(Lists!$H$5:$H$49,MATCH(C138,Lists!$G$5:$G$49,0),1),1))","v":""},null,{"$f":"'Month 7'!H138+'Month 7'!I138-'Month 7'!J138","v":0},"","",null,"0"]
[{"$f":"Planning!A123","v":"I115"},{"$f":"Planning!B123","v":0},{"$f":"Planning!C123","v":0},{"$f":"Planning!D123","v":0},{"$f":"Planning!E123","v":0},{"$f":"IF(Planning!G123<>0,Planning!G123,\"\")","v":""},{"$f":"Planning!H123","v":0},{"$f":"Planning!AD123","v":0},{"$f":"IF(OR(W139=\"1\",AND(W139<>\"1\",G139=Lists!$A$17)),Y139,0)","v":0},null,{"$f":"IF(AND(W139=\"2\",G139<>Lists!$A$17),AA139,Z139)","v":""},"",{"$f":"Planning!AE123","v":{"v":0,"d":"0.00"}},{"$f":"'Month 7'!M139+'Month 7'!N139-'Month 7'!O139","v":{"v":0,"d":"0.00"}},null,"","",{"$f":"SUMIFS($J$25:$J$224,$C$25:$C$224,$C139,$G$25:$G$224,Lists!$A$16)","v":0},0,null,"",null,{"$f":"IF(C139=0,\"\",LEFT(INDEX(Lists!$H$5:$H$49,MATCH(C139,Lists!$G$5:$G$49,0),1),1))","v":""},null,{"$f":"'Month 7'!H139+'Month 7'!I139-'Month 7'!J139","v":0},"","",null,"0"]
[{"$f":"Planning!A124","v":"I116"},{"$f":"Planning!B124","v":0},{"$f":"Planning!C124","v":0},{"$f":"Planning!D124","v":0},{"$f":"Planning!E124","v":0},{"$f":"IF(Planning!G124<>0,Planning!G124,\"\")","v":""},{"$f":"Planning!H124","v":0},{"$f":"Planning!AD124","v":0},{"$f":"IF(OR(W140=\"1\",AND(W140<>\"1\",G140=Lists!$A$17)),Y140,0)","v":0},null,{"$f":"IF(AND(W140=\"2\",G140<>Lists!$A$17),AA140,Z140)","v":""},"",{"$f":"Planning!AE124","v":{"v":0,"d":"0.00"}},{"$f":"'Month 7'!M140+'Month 7'!N140-'Month 7'!O140","v":{"v":0,"d":"0.00"}},null,"","",{"$f":"SUMIFS($J$25:$J$224,$C$25:$C$224,$C140,$G$25:$G$224,Lists!$A$16)","v":0},0,null,"",null,{"$f":"IF(C140=0,\"\",LEFT(INDEX(Lists!$H$5:$H$49,MATCH(C140,Lists!$G$5:$G$49,0),1),1))","v":""},null,{"$f":"'Month 7'!H140+'Month 7'!I140-'Month 7'!J140","v":0},"","",null,"0"]
[{"$f":"Planning!A125","v":"I117"},{"$f":"Planning!B125","v":0},{"$f":"Planning!C125","v":0},{"$f":"Planning!D125","v":0},{"$f":"Planning!E125","v":0},{"$f":"IF(Planning!G125<>0,Planning!G125,\"\")","v":""},{"$f":"Planning!H125","v":0},{"$f":"Planning!AD125","v":0},{"$f":"IF(OR(W141=\"1\",AND(W141<>\"1\",G141=Lists!$A$17)),Y141,0)","v":0},null,{"$f":"IF(AND(W141=\"2\",G141<>Lists!$A$17),AA141,Z141)","v":""},"",{"$f":"Planning!AE125","v":{"v":0,"d":"0.00"}},{"$f":"'Month 7'!M141+'Month 7'!N141-'Month 7'!O141","v":{"v":0,"d":"0.00"}},null,"","",{"$f":"SUMIFS($J$25:$J$224,$C$25:$C$224,$C141,$G$25:$G$224,Lists!$A$16)","v":0},0,null,"",null,{"$f":"IF(C141=0,\"\",LEFT(INDEX(Lists!$H$5:$H$49,MATCH(C141,Lists!$G$5:$G$49,0),1),1))","v":""},null,{"$f":"'Month 7'!H141+'Month 7'!I141-'Month 7'!J141","v":0},"","",null,"0"]
[{"$f":"Planning!A126","v":"I118"},{"$f":"Planning!B126","v":0},{"$f":"Planning!C126","v":0},{"$f":"Planning!D126","v":0},{"$f":"Planning!E126","v":0},{"$f":"IF(Planning!G126<>0,Planning!G126,\"\")","v":""},{"$f":"Planning!H126","v":0},{"$f":"Planning!AD126","v":0},{"$f":"IF(OR(W142=\"1\",AND(W142<>\"1\",G142=Lists!$A$17)),Y142,0)","v":0},null,{"$f":"IF(AND(W142=\"2\",G142<>Lists!$A$17),AA142,Z142)","v":""},"",{"$f":"Planning!AE126","v":{"v":0,"d":"0.00"}},{"$f":"'Month 7'!M142+'Month 7'!N142-'Month 7'!O142","v":{"v":0,"d":"0.00"}},null,"","",{"$f":"SUMIFS($J$25:$J$224,$C$25:$C$224,$C142,$G$25:$G$224,Lists!$A$16)","v":0},0,null,"",null,{"$f":"IF(C142=0,\"\",LEFT(INDEX(Lists!$H$5:$H$49,MATCH(C142,Lists!$G$5:$G$49,0),1),1))","v":""},null,{"$f":"'Month 7'!H142+'Month 7'!I142-'Month 7'!J142","v":0},"","",null,"0"]
[{"$f":"Planning!A127","v":"I119"},{"$f":"Planning!B127","v":0},{"$f":"Planning!C127","v":0},{"$f":"Planning!D127","v":0},{"$f":"Planning!E127","v":0},{"$f":"IF(Planning!G127<>0,Planning!G127,\"\")","v":""},{"$f":"Planning!H127","v":0},{"$f":"Planning!AD127","v":0},{"$f":"IF(OR(W143=\"1\",AND(W143<>\"1\",G143=Lists!$A$17)),Y143,0)","v":0},null,{"$f":"IF(AND(W143=\"2\",G143<>Lists!$A$17),AA143,Z143)","v":""},"",{"$f":"Planning!AE127","v":{"v":0,"d":"0.00"}},{"$f":"'Month 7'!M143+'Month 7'!N143-'Month 7'!O143","v":{"v":0,"d":"0.00"}},null,"","",{"$f":"SUMIFS($J$25:$J$224,$C$25:$C$224,$C143,$G$25:$G$224,Lists!$A$16)","v":0},0,null,"",null,{"$f":"IF(C143=0,\"\",LEFT(INDEX(Lists!$H$5:$H$49,MATCH(C143,Lists!$G$5:$G$49,0),1),1))","v":""},null,{"$f":"'Month 7'!H143+'Month 7'!I143-'Month 7'!J143","v":0},"","",null,"0"]
[{"$f":"Planning!A128","v":"I120"},{"$f":"Planning!B128","v":0},{"$f":"Planning!C128","v":0},{"$f":"Planning!D128","v":0},{"$f":"Planning!E128","v":0},{"$f":"IF(Planning!G128<>0,Planning!G128,\"\")","v":""},{"$f":"Planning!H128","v":0},{"$f":"Planning!AD128","v":0},{"$f":"IF(OR(W144=\"1\",AND(W144<>\"1\",G144=Lists!$A$17)),Y144,0)","v":0},null,{"$f":"IF(AND(W144=\"2\",G144<>Lists!$A$17),AA144,Z144)","v":""},"",{"$f":"Planning!AE128","v":{"v":0,"d":"0.00"}},{"$f":"'Month 7'!M144+'Month 7'!N144-'Month 7'!O144","v":{"v":0,"d":"0.00"}},null,"","",{"$f":"SUMIFS($J$25:$J$224,$C$25:$C$224,$C144,$G$25:$G$224,Lists!$A$16)","v":0},0,null,"",null,{"$f":"IF(C144=0,\"\",LEFT(INDEX(Lists!$H$5:$H$49,MATCH(C144,Lists!$G$5:$G$49,0),1),1))","v":""},null,{"$f":"'Month 7'!H144+'Month 7'!I144-'Month 7'!J144","v":0},"","",null,"0"]
[{"$f":"Planning!A129","v":"I121"},{"$f":"Planning!B129","v":0},{"$f":"Planning!C129","v":0},{"$f":"Planning!D129","v":0},{"$f":"Planning!E129","v":0},{"$f":"IF(Planning!G129<>0,Planning!G129,\"\")","v":""},{"$f":"Planning!H129","v":0},{"$f":"Planning!AD129","v":0},{"$f":"IF(OR(W145=\"1\",AND(W145<>\"1\",G145=Lists!$A$17)),Y145,0)","v":0},null,{"$f":"IF(AND(W145=\"2\",G145<>Lists!$A$17),AA145,Z145)","v":""},"",{"$f":"Planning!AE129","v":{"v":0,"d":"0.00"}},{"$f":"'Month 7'!M145+'Month 7'!N145-'Month 7'!O145","v":{"v":0,"d":"0.00"}},null,"","",{"$f":"SUMIFS($J$25:$J$224,$C$25:$C$224,$C145,$G$25:$G$224,Lists!$A$16)","v":0},0,null,"",null,{"$f":"IF(C145=0,\"\",LEFT(INDEX(Lists!$H$5:$H$49,MATCH(C145,Lists!$G$5:$G$49,0),1),1))","v":""},null,{"$f":"'Month 7'!H145+'Month 7'!I145-'Month 7'!J145","v":0},"","",null,"0"]
[{"$f":"Planning!A130","v":"I122"},{"$f":"Planning!B130","v":0},{"$f":"Planning!C130","v":0},{"$f":"Planning!D130","v":0},{"$f":"Planning!E130","v":0},{"$f":"IF(Planning!G130<>0,Planning!G130,\"\")","v":""},{"$f":"Planning!H130","v":0},{"$f":"Planning!AD130","v":0},{"$f":"IF(OR(W146=\"1\",AND(W146<>\"1\",G146=Lists!$A$17)),Y146,0)","v":0},null,{"$f":"IF(AND(W146=\"2\",G146<>Lists!$A$17),AA146,Z146)","v":""},"",{"$f":"Planning!AE130","v":{"v":0,"d":"0.00"}},{"$f":"'Month 7'!M146+'Month 7'!N146-'Month 7'!O146","v":{"v":0,"d":"0.00"}},null,"","",{"$f":"SUMIFS($J$25:$J$224,$C$25:$C$224,$C146,$G$25:$G$224,Lists!$A$16)","v":0},0,null,"",null,{"$f":"IF(C146=0,\"\",LEFT(INDEX(Lists!$H$5:$H$49,MATCH(C146,Lists!$G$5:$G$49,0),1),1))","v":""},null,{"$f":"'Month 7'!H146+'Month 7'!I146-'Month 7'!J146","v":0},"","",null,"0"]
[{"$f":"Planning!A131","v":"I123"},{"$f":"Planning!B131","v":0},{"$f":"Planning!C131","v":0},{"$f":"Planning!D131","v":0},{"$f":"Planning!E131","v":0},{"$f":"IF(Planning!G131<>0,Planning!G131,\"\")","v":""},{"$f":"Planning!H131","v":0},{"$f":"Planning!AD131","v":0},{"$f":"IF(OR(W147=\"1\",AND(W147<>\"1\",G147=Lists!$A$17)),Y147,0)","v":0},null,{"$f":"IF(AND(W147=\"2\",G147<>Lists!$A$17),AA147,Z147)","v":""},"",{"$f":"Planning!AE131","v":{"v":0,"d":"0.00"}},{"$f":"'Month 7'!M147+'Month 7'!N147-'Month 7'!O147","v":{"v":0,"d":"0.00"}},null,"","",{"$f":"SUMIFS($J$25:$J$224,$C$25:$C$224,$C147,$G$25:$G$224,Lists!$A$16)","v":0},0,null,"",null,{"$f":"IF(C147=0,\"\",LEFT(INDEX(Lists!$H$5:$H$49,MATCH(C147,Lists!$G$5:$G$49,0),1),1))","v":""},null,{"$f":"'Month 7'!H147+'Month 7'!I147-'Month 7'!J147","v":0},"","",null,"0"]
[{"$f":"Planning!A132","v":"I124"},{"$f":"Planning!B132","v":0},{"$f":"Planning!C132","v":0},{"$f":"Planning!D132","v":0},{"$f":"Planning!E132","v":0},{"$f":"IF(Planning!G132<>0,Planning!G132,\"\")","v":""},{"$f":"Planning!H132","v":0},{"$f":"Planning!AD132","v":0},{"$f":"IF(OR(W148=\"1\",AND(W148<>\"1\",G148=Lists!$A$17)),Y148,0)","v":0},null,{"$f":"IF(AND(W148=\"2\",G148<>Lists!$A$17),AA148,Z148)","v":""},"",{"$f":"Planning!AE132","v":{"v":0,"d":"0.00"}},{"$f":"'Month 7'!M148+'Month 7'!N148-'Month 7'!O148","v":{"v":0,"d":"0.00"}},null,"","",{"$f":"SUMIFS($J$25:$J$224,$C$25:$C$224,$C148,$G$25:$G$224,Lists!$A$16)","v":0},0,null,"",null,{"$f":"IF(C148=0,\"\",LEFT(INDEX(Lists!$H$5:$H$49,MATCH(C148,Lists!$G$5:$G$49,0),1),1))","v":""},null,{"$f":"'Month 7'!H148+'Month 7'!I148-'Month 7'!J148","v":0},"","",null,"0"]
[{"$f":"Planning!A133","v":"I125"},{"$f":"Planning!B133","v":0},{"$f":"Planning!C133","v":0},{"$f":"Planning!D133","v":0},{"$f":"Planning!E133","v":0},{"$f":"IF(Planning!G133<>0,Planning!G133,\"\")","v":""},{"$f":"Planning!H133","v":0},{"$f":"Planning!AD133","v":0},{"$f":"IF(OR(W149=\"1\",AND(W149<>\"1\",G149=Lists!$A$17)),Y149,0)","v":0},null,{"$f":"IF(AND(W149=\"2\",G149<>Lists!$A$17),AA149,Z149)","v":""},"",{"$f":"Planning!AE133","v":{"v":0,"d":"0.00"}},{"$f":"'Month 7'!M149+'Month 7'!N149-'Month 7'!O149","v":{"v":0,"d":"0.00"}},null,"","",{"$f":"SUMIFS($J$25:$J$224,$C$25:$C$224,$C149,$G$25:$G$224,Lists!$A$16)","v":0},0,null,"",null,{"$f":"IF(C149=0,\"\",LEFT(INDEX(Lists!$H$5:$H$49,MATCH(C149,Lists!$G$5:$G$49,0),1),1))","v":""},null,{"$f":"'Month 7'!H149+'Month 7'!I149-'Month 7'!J149","v":0},"","",null,"0"]
[{"$f":"Planning!A134","v":"I126"},{"$f":"Planning!B134","v":0},{"$f":"Planning!C134","v":0},{"$f":"Planning!D134","v":0},{"$f":"Planning!E134","v":0},{"$f":"IF(Planning!G134<>0,Planning!G134,\"\")","v":""},{"$f":"Planning!H134","v":0},{"$f":"Planning!AD134","v":0},{"$f":"IF(OR(W150=\"1\",AND(W150<>\"1\",G150=Lists!$A$17)),Y150,0)","v":0},null,{"$f":"IF(AND(W150=\"2\",G150<>Lists!$A$17),AA150,Z150)","v":""},"",{"$f":"Planning!AE134","v":{"v":0,"d":"0.00"}},{"$f":"'Month 7'!M150+'Month 7'!N150-'Month 7'!O150","v":{"v":0,"d":"0.00"}},null,"","",{"$f":"SUMIFS($J$25:$J$224,$C$25:$C$224,$C150,$G$25:$G$224,Lists!$A$16)","v":0},0,null,"",null,{"$f":"IF(C150=0,\"\",LEFT(INDEX(Lists!$H$5:$H$49,MATCH(C150,Lists!$G$5:$G$49,0),1),1))","v":""},null,{"$f":"'Month 7'!H150+'Month 7'!I150-'Month 7'!J150","v":0},"","",null,"0"]
[{"$f":"Planning!A135","v":"I127"},{"$f":"Planning!B135","v":0},{"$f":"Planning!C135","v":0},{"$f":"Planning!D135","v":0},{"$f":"Planning!E135","v":0},{"$f":"IF(Planning!G135<>0,Planning!G135,\"\")","v":""},{"$f":"Planning!H135","v":0},{"$f":"Planning!AD135","v":0},{"$f":"IF(OR(W151=\"1\",AND(W151<>\"1\",G151=Lists!$A$17)),Y151,0)","v":0},null,{"$f":"IF(AND(W151=\"2\",G151<>Lists!$A$17),AA151,Z151)","v":""},"",{"$f":"Planning!AE135","v":{"v":0,"d":"0.00"}},{"$f":"'Month 7'!M151+'Month 7'!N151-'Month 7'!O151","v":{"v":0,"d":"0.00"}},null,"","",{"$f":"SUMIFS($J$25:$J$224,$C$25:$C$224,$C151,$G$25:$G$224,Lists!$A$16)","v":0},0,null,"",null,{"$f":"IF(C151=0,\"\",LEFT(INDEX(Lists!$H$5:$H$49,MATCH(C151,Lists!$G$5:$G$49,0),1),1))","v":""},null,{"$f":"'Month 7'!H151+'Month 7'!I151-'Month 7'!J151","v":0},"","",null,"0"]
[{"$f":"Planning!A136","v":"I128"},{"$f":"Planning!B136","v":0},{"$f":"Planning!C136","v":0},{"$f":"Planning!D136","v":0},{"$f":"Planning!E136","v":0},{"$f":"IF(Planning!G136<>0,Planning!G136,\"\")","v":""},{"$f":"Planning!H136","v":0},{"$f":"Planning!AD136","v":0},{"$f":"IF(OR(W152=\"1\",AND(W152<>\"1\",G152=Lists!$A$17)),Y152,0)","v":0},null,{"$f":"IF(AND(W152=\"2\",G152<>Lists!$A$17),AA152,Z152)","v":""},"",{"$f":"Planning!AE136","v":{"v":0,"d":"0.00"}},{"$f":"'Month 7'!M152+'Month 7'!N152-'Month 7'!O152","v":{"v":0,"d":"0.00"}},null,"","",{"$f":"SUMIFS($J$25:$J$224,$C$25:$C$224,$C152,$G$25:$G$224,Lists!$A$16)","v":0},0,null,"",null,{"$f":"IF(C152=0,\"\",LEFT(INDEX(Lists!$H$5:$H$49,MATCH(C152,Lists!$G$5:$G$49,0),1),1))","v":""},null,{"$f":"'Month 7'!H152+'Month 7'!I152-'Month 7'!J152","v":0},"","",null,"0"]
[{"$f":"Planning!A137","v":"I129"},{"$f":"Planning!B137","v":0},{"$f":"Planning!C137","v":0},{"$f":"Planning!D137","v":0},{"$f":"Planning!E137","v":0},{"$f":"IF(Planning!G137<>0,Planning!G137,\"\")","v":""},{"$f":"Planning!H137","v":0},{"$f":"Planning!AD137","v":0},{"$f":"IF(OR(W153=\"1\",AND(W153<>\"1\",G153=Lists!$A$17)),Y153,0)","v":0},null,{"$f":"IF(AND(W153=\"2\",G153<>Lists!$A$17),AA153,Z153)","v":""},{"$f":"IF($U153=ExcluirDelPLogro,\"\",IF(AND(H153=0,I153=0,J153=0),\"\",K153))","v":""},{"$f":"Planning!AE137","v":{"v":0,"d":"0.00"}},{"$f":"'Month 7'!M153+'Month 7'!N153-'Month 7'!O153","v":{"v":0,"d":"0.00"}},null,"",{"$f":"IF($U153=ExcluirDelPLogro,\"\",IF(AND(M153=0,N153=0,O153=0),\"\",P153))","v":""},{"$f":"SUMIFS($J$25:$J$224,$C$25:$C$224,$C153,$G$25:$G$224,Lists!$A$16)","v":0},0,null,"",null,{"$f":"IF(C153=0,\"\",LEFT(INDEX(Lists!$H$5:$H$49,MATCH(C153,Lists!$G$5:$G$49,0),1),1))","v":""},null,{"$f":"'Month 7'!H153+'Month 7'!I153-'Month 7'!J153","v":0},"",{"$f":"IF(AND(H153=0,I153=0,J153=0),\"\",IF(J153>0,H153/J153,0))","v":""},null,"0"]
[{"$f":"Planning!A138","v":"I130"},{"$f":"Planning!B138","v":0},{"$f":"Planning!C138","v":0},{"$f":"Planning!D138","v":0},{"$f":"Planning!E138","v":0},{"$f":"IF(Planning!G138<>0,Planning!G138,\"\")","v":""},{"$f":"Planning!H138","v":0},{"$f":"Planning!AD138","v":0},{"$f":"IF(OR(W154=\"1\",AND(W154<>\"1\",G154=Lists!$A$17)),Y154,0)","v":0},null,{"$f":"IF(AND(W154=\"2\",G154<>Lists!$A$17),AA154,Z154)","v":""},"",{"$f":"Planning!AE138","v":{"v":0,"d":"0.00"}},{"$f":"'Month 7'!M154+'Month 7'!N154-'Month 7'!O154","v":{"v":0,"d":"0.00"}},null,{"$f":"IF(AND(M154=0,N154=0,O154=0),\"\",IF((M154+N154)>0,O154/(M154+N154),O154))","v":""},"",{"$f":"SUMIFS($J$25:$J$224,$C$25:$C$224,$C154,$G$25:$G$224,Lists!$A$16)","v":0},{"$f":"SUMIFS($O$25:$O$224,$C$25:$C$224,$C154,$G$25:$G$224,\"<>0\")","v":0},null,{"$f":"IF(B154=0,\"\",IF(LEFT(B154,1)=\"1\",\"1\",\"2\"))","v":""},null,{"$f":"IF(C154=0,\"\",LEFT(INDEX(Lists!$H$5:$H$49,MATCH(C154,Lists!$G$5:$G$49,0),1),1))","v":""},null,{"$f":"'Month 7'!H154+'Month 7'!I154-'Month 7'!J154","v":0},{"$f":"IF(AND(H154=0,I154=0,J154=0),\"\",IF((H154+I154)>0,J154/(H154+I154),J154))","v":""},"",null,{"$f":"U154&C154","v":"0"}]
[{"$f":"Planning!A139","v":"I131"},{"$f":"Planning!B139","v":0},{"$f":"Planning!C139","v":0},{"$f":"Planning!D139","v":0},{"$f":"Planning!E139","v":0},{"$f":"IF(Planning!G139<>0,Planning!G139,\"\")","v":""},{"$f":"Planning!H139","v":0},{"$f":"Planning!AD139","v":0},{"$f":"IF(OR(W155=\"1\",AND(W155<>\"1\",G155=Lists!$A$17)),Y155,0)","v":0},null,{"$f":"IF(AND(W155=\"2\",G155<>Lists!$A$17),AA155,Z155)","v":""},"",{"$f":"Planning!AE139","v":{"v":0,"d":"0.00"}},{"$f":"'Month 7'!M155+'Month 7'!N155-'Month 7'!O155","v":{"v":0,"d":"0.00"}},null,"","",{"$f":"SUMIFS($J$25:$J$224,$C$25:$C$224,$C155,$G$25:$G$224,Lists!$A$16)","v":0},0,null,"",null,{"$f":"IF(C155=0,\"\",LEFT(INDEX(Lists!$H$5:$H$49,MATCH(C155,Lists!$G$5:$G$49,0),1),1))","v":""},null,{"$f":"'Month 7'!H155+'Month 7'!I155-'Month 7'!J155","v":0},"","",null,"0"]
[{"$f":"Planning!A140","v":"I132"},{"$f":"Planning!B140","v":0},{"$f":"Planning!C140","v":0},{"$f":"Planning!D140","v":0},{"$f":"Planning!E140","v":0},{"$f":"IF(Planning!G140<>0,Planning!G140,\"\")","v":""},{"$f":"Planning!H140","v":0},{"$f":"Planning!AD140","v":0},{"$f":"IF(OR(W156=\"1\",AND(W156<>\"1\",G156=Lists!$A$17)),Y156,0)","v":0},null,{"$f":"IF(AND(W156=\"2\",G156<>Lists!$A$17),AA156,Z156)","v":""},"",{"$f":"Planning!AE140","v":{"v":0,"d":"0.00"}},{"$f":"'Month 7'!M156+'Month 7'!N156-'Month 7'!O156","v":{"v":0,"d":"0.00"}},null,"","",{"$f":"SUMIFS($J$25:$J$224,$C$25:$C$224,$C156,$G$25:$G$224,Lists!$A$16)","v":0},0,null,"",null,{"$f":"IF(C156=0,\"\",LEFT(INDEX(Lists!$H$5:$H$49,MATCH(C156,Lists!$G$5:$G$49,0),1),1))","v":""},null,{"$f":"'Month 7'!H156+'Month 7'!I156-'Month 7'!J156","v":0},"","",null,"0"]
[{"$f":"Planning!A141","v":"I133"},{"$f":"Planning!B141","v":0},{"$f":"Planning!C141","v":0},{"$f":"Planning!D141","v":0},{"$f":"Planning!E141","v":0},{"$f":"IF(Planning!G141<>0,Planning!G141,\"\")","v":""},{"$f":"Planning!H141","v":0},{"$f":"Planning!AD141","v":0},{"$f":"IF(OR(W157=\"1\",AND(W157<>\"1\",G157=Lists!$A$17)),Y157,0)","v":0},null,{"$f":"IF(AND(W157=\"2\",G157<>Lists!$A$17),AA157,Z157)","v":""},"",{"$f":"Planning!AE141","v":{"v":0,"d":"0.00"}},{"$f":"'Month 7'!M157+'Month 7'!N157-'Month 7'!O157","v":{"v":0,"d":"0.00"}},null,"","",{"$f":"SUMIFS($J$25:$J$224,$C$25:$C$224,$C157,$G$25:$G$224,Lists!$A$16)","v":0},0,null,"",null,{"$f":"IF(C157=0,\"\",LEFT(INDEX(Lists!$H$5:$H$49,MATCH(C157,Lists!$G$5:$G$49,0),1),1))","v":""},null,{"$f":"'Month 7'!H157+'Month 7'!I157-'Month 7'!J157","v":0},"","",null,"0"]
[{"$f":"Planning!A142","v":"I134"},{"$f":"Planning!B142","v":0},{"$f":"Planning!C142","v":0},{"$f":"Planning!D142","v":0},{"$f":"Planning!E142","v":0},{"$f":"IF(Planning!G142<>0,Planning!G142,\"\")","v":""},{"$f":"Planning!H142","v":0},{"$f":"Planning!AD142","v":0},{"$f":"IF(OR(W158=\"1\",AND(W158<>\"1\",G158=Lists!$A$17)),Y158,0)","v":0},null,{"$f":"IF(AND(W158=\"2\",G158<>Lists!$A$17),AA158,Z158)","v":""},"",{"$f":"Planning!AE142","v":{"v":0,"d":"0.00"}},{"$f":"'Month 7'!M158+'Month 7'!N158-'Month 7'!O158","v":{"v":0,"d":"0.00"}},null,"","",{"$f":"SUMIFS($J$25:$J$224,$C$25:$C$224,$C158,$G$25:$G$224,Lists!$A$16)","v":0},0,null,"",null,{"$f":"IF(C158=0,\"\",LEFT(INDEX(Lists!$H$5:$H$49,MATCH(C158,Lists!$G$5:$G$49,0),1),1))","v":""},null,{"$f":"'Month 7'!H158+'Month 7'!I158-'Month 7'!J158","v":0},"","",null,"0"]
[{"$f":"Planning!A143","v":"I135"},{"$f":"Planning!B143","v":0},{"$f":"Planning!C143","v":0},{"$f":"Planning!D143","v":0},{"$f":"Planning!E143","v":0},{"$f":"IF(Planning!G143<>0,Planning!G143,\"\")","v":""},{"$f":"Planning!H143","v":0},{"$f":"Planning!AD143","v":0},{"$f":"IF(OR(W159=\"1\",AND(W159<>\"1\",G159=Lists!$A$17)),Y159,0)","v":0},null,{"$f":"IF(AND(W159=\"2\",G159<>Lists!$A$17),AA159,Z159)","v":""},"",{"$f":"Planning!AE143","v":{"v":0,"d":"0.00"}},{"$f":"'Month 7'!M159+'Month 7'!N159-'Month 7'!O159","v":{"v":0,"d":"0.00"}},null,"","",{"$f":"SUMIFS($J$25:$J$224,$C$25:$C$224,$C159,$G$25:$G$224,Lists!$A$16)","v":0},0,null,"",null,{"$f":"IF(C159=0,\"\",LEFT(INDEX(Lists!$H$5:$H$49,MATCH(C159,Lists!$G$5:$G$49,0),1),1))","v":""},null,{"$f":"'Month 7'!H159+'Month 7'!I159-'Month 7'!J159","v":0},"","",null,"0"]
[{"$f":"Planning!A144","v":"I136"},{"$f":"Planning!B144","v":0},{"$f":"Planning!C144","v":0},{"$f":"Planning!D144","v":0},{"$f":"Planning!E144","v":0},{"$f":"IF(Planning!G144<>0,Planning!G144,\"\")","v":""},{"$f":"Planning!H144","v":0},{"$f":"Planning!AD144","v":0},{"$f":"IF(OR(W160=\"1\",AND(W160<>\"1\",G160=Lists!$A$17)),Y160,0)","v":0},null,{"$f":"IF(AND(W160=\"2\",G160<>Lists!$A$17),AA160,Z160)","v":""},"",{"$f":"Planning!AE144","v":{"v":0,"d":"0.00"}},{"$f":"'Month 7'!M160+'Month 7'!N160-'Month 7'!O160","v":{"v":0,"d":"0.00"}},null,"","",{"$f":"SUMIFS($J$25:$J$224,$C$25:$C$224,$C160,$G$25:$G$224,Lists!$A$16)","v":0},0,null,"",null,{"$f":"IF(C160=0,\"\",LEFT(INDEX(Lists!$H$5:$H$49,MATCH(C160,Lists!$G$5:$G$49,0),1),1))","v":""},null,{"$f":"'Month 7'!H160+'Month 7'!I160-'Month 7'!J160","v":0},"","",null,"0"]
[{"$f":"Planning!A145","v":"I137"},{"$f":"Planning!B145","v":0},{"$f":"Planning!C145","v":0},{"$f":"Planning!D145","v":0},{"$f":"Planning!E145","v":0},{"$f":"IF(Planning!G145<>0,Planning!G145,\"\")","v":""},{"$f":"Planning!H145","v":0},{"$f":"Planning!AD145","v":0},{"$f":"IF(OR(W161=\"1\",AND(W161<>\"1\",G161=Lists!$A$17)),Y161,0)","v":0},null,{"$f":"IF(AND(W161=\"2\",G161<>Lists!$A$17),AA161,Z161)","v":""},"",{"$f":"Planning!AE145","v":{"v":0,"d":"0.00"}},{"$f":"'Month 7'!M161+'Month 7'!N161-'Month 7'!O161","v":{"v":0,"d":"0.00"}},null,"","",{"$f":"SUMIFS($J$25:$J$224,$C$25:$C$224,$C161,$G$25:$G$224,Lists!$A$16)","v":0},0,null,"",null,{"$f":"IF(C161=0,\"\",LEFT(INDEX(Lists!$H$5:$H$49,MATCH(C161,Lists!$G$5:$G$49,0),1),1))","v":""},null,{"$f":"'Month 7'!H161+'Month 7'!I161-'Month 7'!J161","v":0},"","",null,"0"]
[{"$f":"Planning!A146","v":"I138"},{"$f":"Planning!B146","v":0},{"$f":"Planning!C146","v":0},{"$f":"Planning!D146","v":0},{"$f":"Planning!E146","v":0},{"$f":"IF(Planning!G146<>0,Planning!G146,\"\")","v":""},{"$f":"Planning!H146","v":0},{"$f":"Planning!AD146","v":0},{"$f":"IF(OR(W162=\"1\",AND(W162<>\"1\",G162=Lists!$A$17)),Y162,0)","v":0},null,{"$f":"IF(AND(W162=\"2\",G162<>Lists!$A$17),AA162,Z162)","v":""},"",{"$f":"Planning!AE146","v":{"v":0,"d":"0.00"}},{"$f":"'Month 7'!M162+'Month 7'!N162-'Month 7'!O162","v":{"v":0,"d":"0.00"}},null,"","",{"$f":"SUMIFS($J$25:$J$224,$C$25:$C$224,$C162,$G$25:$G$224,Lists!$A$16)","v":0},0,null,"",null,{"$f":"IF(C162=0,\"\",LEFT(INDEX(Lists!$H$5:$H$49,MATCH(C162,Lists!$G$5:$G$49,0),1),1))","v":""},null,{"$f":"'Month 7'!H162+'Month 7'!I162-'Month 7'!J162","v":0},"","",null,"0"]
[{"$f":"Planning!A147","v":"I139"},{"$f":"Planning!B147","v":0},{"$f":"Planning!C147","v":0},{"$f":"Planning!D147","v":0},{"$f":"Planning!E147","v":0},{"$f":"IF(Planning!G147<>0,Planning!G147,\"\")","v":""},{"$f":"Planning!H147","v":0},{"$f":"Planning!AD147","v":0},{"$f":"IF(OR(W163=\"1\",AND(W163<>\"1\",G163=Lists!$A$17)),Y163,0)","v":0},null,{"$f":"IF(AND(W163=\"2\",G163<>Lists!$A$17),AA163,Z163)","v":""},"",{"$f":"Planning!AE147","v":{"v":0,"d":"0.00"}},{"$f":"'Month 7'!M163+'Month 7'!N163-'Month 7'!O163","v":{"v":0,"d":"0.00"}},null,"","",{"$f":"SUMIFS($J$25:$J$224,$C$25:$C$224,$C163,$G$25:$G$224,Lists!$A$16)","v":0},0,null,"",null,{"$f":"IF(C163=0,\"\",LEFT(INDEX(Lists!$H$5:$H$49,MATCH(C163,Lists!$G$5:$G$49,0),1),1))","v":""},null,{"$f":"'Month 7'!H163+'Month 7'!I163-'Month 7'!J163","v":0},"","",null,"0"]
[{"$f":"Planning!A148","v":"I140"},{"$f":"Planning!B148","v":0},{"$f":"Planning!C148","v":0},{"$f":"Planning!D148","v":0},{"$f":"Planning!E148","v":0},{"$f":"IF(Planning!G148<>0,Planning!G148,\"\")","v":""},{"$f":"Planning!H148","v":0},{"$f":"Planning!AD148","v":0},{"$f":"IF(OR(W164=\"1\",AND(W164<>\"1\",G164=Lists!$A$17)),Y164,0)","v":0},null,{"$f":"IF(AND(W164=\"2\",G164<>Lists!$A$17),AA164,Z164)","v":""},"",{"$f":"Planning!AE148","v":{"v":0,"d":"0.00"}},{"$f":"'Month 7'!M164+'Month 7'!N164-'Month 7'!O164","v":{"v":0,"d":"0.00"}},null,"","",{"$f":"SUMIFS($J$25:$J$224,$C$25:$C$224,$C164,$G$25:$G$224,Lists!$A$16)","v":0},0,null,"",null,{"$f":"IF(C164=0,\"\",LEFT(INDEX(Lists!$H$5:$H$49,MATCH(C164,Lists!$G$5:$G$49,0),1),1))","v":""},null,{"$f":"'Month 7'!H164+'Month 7'!I164-'Month 7'!J164","v":0},"","",null,"0"]
[{"$f":"Planning!A149","v":"I141"},{"$f":"Planning!B149","v":0},{"$f":"Planning!C149","v":0},{"$f":"Planning!D149","v":0},{"$f":"Planning!E149","v":0},{"$f":"IF(Planning!G149<>0,Planning!G149,\"\")","v":""},{"$f":"Planning!H149","v":0},{"$f":"Planning!AD149","v":0},{"$f":"IF(OR(W165=\"1\",AND(W165<>\"1\",G165=Lists!$A$17)),Y165,0)","v":0},null,{"$f":"IF(AND(W165=\"2\",G165<>Lists!$A$17),AA165,Z165)","v":""},"",{"$f":"Planning!AE149","v":{"v":0,"d":"0.00"}},{"$f":"'Month 7'!M165+'Month 7'!N165-'Month 7'!O165","v":{"v":0,"d":"0.00"}},null,"","",{"$f":"SUMIFS($J$25:$J$224,$C$25:$C$224,$C165,$G$25:$G$224,Lists!$A$16)","v":0},0,null,"",null,{"$f":"IF(C165=0,\"\",LEFT(INDEX(Lists!$H$5:$H$49,MATCH(C165,Lists!$G$5:$G$49,0),1),1))","v":""},null,{"$f":"'Month 7'!H165+'Month 7'!I165-'Month 7'!J165","v":0},"","",null,"0"]
[{"$f":"Planning!A150","v":"I142"},{"$f":"Planning!B150","v":0},{"$f":"Planning!C150","v":0},{"$f":"Planning!D150","v":0},{"$f":"Planning!E150","v":0},{"$f":"IF(Planning!G150<>0,Planning!G150,\"\")","v":""},{"$f":"Planning!H150","v":0},{"$f":"Planning!AD150","v":0},{"$f":"IF(OR(W166=\"1\",AND(W166<>\"1\",G166=Lists!$A$17)),Y166,0)","v":0},null,{"$f":"IF(AND(W166=\"2\",G166<>Lists!$A$17),AA166,Z166)","v":""},"",{"$f":"Planning!AE150","v":{"v":0,"d":"0.00"}},{"$f":"'Month 7'!M166+'Month 7'!N166-'Month 7'!O166","v":{"v":0,"d":"0.00"}},null,"","",{"$f":"SUMIFS($J$25:$J$224,$C$25:$C$224,$C166,$G$25:$G$224,Lists!$A$16)","v":0},0,null,"",null,{"$f":"IF(C166=0,\"\",LEFT(INDEX(Lists!$H$5:$H$49,MATCH(C166,Lists!$G$5:$G$49,0),1),1))","v":""},null,{"$f":"'Month 7'!H166+'Month 7'!I166-'Month 7'!J166","v":0},"","",null,"0"]
[{"$f":"Planning!A151","v":"I143"},{"$f":"Planning!B151","v":0},{"$f":"Planning!C151","v":0},{"$f":"Planning!D151","v":0},{"$f":"Planning!E151","v":0},{"$f":"IF(Planning!G151<>0,Planning!G151,\"\")","v":""},{"$f":"Planning!H151","v":0},{"$f":"Planning!AD151","v":0},{"$f":"IF(OR(W167=\"1\",AND(W167<>\"1\",G167=Lists!$A$17)),Y167,0)","v":0},null,{"$f":"IF(AND(W167=\"2\",G167<>Lists!$A$17),AA167,Z167)","v":""},"",{"$f":"Planning!AE151","v":{"v":0,"d":"0.00"}},{"$f":"'Month 7'!M167+'Month 7'!N167-'Month 7'!O167","v":{"v":0,"d":"0.00"}},null,"","",{"$f":"SUMIFS($J$25:$J$224,$C$25:$C$224,$C167,$G$25:$G$224,Lists!$A$16)","v":0},0,null,"",null,{"$f":"IF(C167=0,\"\",LEFT(INDEX(Lists!$H$5:$H$49,MATCH(C167,Lists!$G$5:$G$49,0),1),1))","v":""},null,{"$f":"'Month 7'!H167+'Month 7'!I167-'Month 7'!J167","v":0},"","",null,"0"]
[{"$f":"Planning!A152","v":"I144"},{"$f":"Planning!B152","v":0},{"$f":"Planning!C152","v":0},{"$f":"Planning!D152","v":0},{"$f":"Planning!E152","v":0},{"$f":"IF(Planning!G152<>0,Planning!G152,\"\")","v":""},{"$f":"Planning!H152","v":0},{"$f":"Planning!AD152","v":0},{"$f":"IF(OR(W168=\"1\",AND(W168<>\"1\",G168=Lists!$A$17)),Y168,0)","v":0},null,{"$f":"IF(AND(W168=\"2\",G168<>Lists!$A$17),AA168,Z168)","v":""},"",{"$f":"Planning!AE152","v":{"v":0,"d":"0.00"}},{"$f":"'Month 7'!M168+'Month 7'!N168-'Month 7'!O168","v":{"v":0,"d":"0.00"}},null,"","",{"$f":"SUMIFS($J$25:$J$224,$C$25:$C$224,$C168,$G$25:$G$224,Lists!$A$16)","v":0},0,null,"",null,{"$f":"IF(C168=0,\"\",LEFT(INDEX(Lists!$H$5:$H$49,MATCH(C168,Lists!$G$5:$G$49,0),1),1))","v":""},null,{"$f":"'Month 7'!H168+'Month 7'!I168-'Month 7'!J168","v":0},"","",null,"0"]
[{"$f":"Planning!A153","v":"I145"},{"$f":"Planning!B153","v":0},{"$f":"Planning!C153","v":0},{"$f":"Planning!D153","v":0},{"$f":"Planning!E153","v":0},{"$f":"IF(Planning!G153<>0,Planning!G153,\"\")","v":""},{"$f":"Planning!H153","v":0},{"$f":"Planning!AD153","v":0},{"$f":"IF(OR(W169=\"1\",AND(W169<>\"1\",G169=Lists!$A$17)),Y169,0)","v":0},null,{"$f":"IF(AND(W169=\"2\",G169<>Lists!$A$17),AA169,Z169)","v":""},"",{"$f":"Planning!AE153","v":{"v":0,"d":"0.00"}},{"$f":"'Month 7'!M169+'Month 7'!N169-'Month 7'!O169","v":{"v":0,"d":"0.00"}},null,"","",{"$f":"SUMIFS($J$25:$J$224,$C$25:$C$224,$C169,$G$25:$G$224,Lists!$A$16)","v":0},0,null,"",null,{"$f":"IF(C169=0,\"\",LEFT(INDEX(Lists!$H$5:$H$49,MATCH(C169,Lists!$G$5:$G$49,0),1),1))","v":""},null,{"$f":"'Month 7'!H169+'Month 7'!I169-'Month 7'!J169","v":0},"","",null,"0"]
[{"$f":"Planning!A154","v":"I146"},{"$f":"Planning!B154","v":0},{"$f":"Planning!C154","v":0},{"$f":"Planning!D154","v":0},{"$f":"Planning!E154","v":0},{"$f":"IF(Planning!G154<>0,Planning!G154,\"\")","v":""},{"$f":"Planning!H154","v":0},{"$f":"Planning!AD154","v":0},{"$f":"IF(OR(W170=\"1\",AND(W170<>\"1\",G170=Lists!$A$17)),Y170,0)","v":0},null,{"$f":"IF(AND(W170=\"2\",G170<>Lists!$A$17),AA170,Z170)","v":""},"",{"$f":"Planning!AE154","v":{"v":0,"d":"0.00"}},{"$f":"'Month 7'!M170+'Month 7'!N170-'Month 7'!O170","v":{"v":0,"d":"0.00"}},null,"","",{"$f":"SUMIFS($J$25:$J$224,$C$25:$C$224,$C170,$G$25:$G$224,Lists!$A$16)","v":0},0,null,"",null,{"$f":"IF(C170=0,\"\",LEFT(INDEX(Lists!$H$5:$H$49,MATCH(C170,Lists!$G$5:$G$49,0),1),1))","v":""},null,{"$f":"'Month 7'!H170+'Month 7'!I170-'Month 7'!J170","v":0},"","",null,"0"]
[{"$f":"Planning!A155","v":"I147"},{"$f":"Planning!B155","v":0},{"$f":"Planning!C155","v":0},{"$f":"Planning!D155","v":0},{"$f":"Planning!E155","v":0},{"$f":"IF(Planning!G155<>0,Planning!G155,\"\")","v":""},{"$f":"Planning!H155","v":0},{"$f":"Planning!AD155","v":0},{"$f":"IF(OR(W171=\"1\",AND(W171<>\"1\",G171=Lists!$A$17)),Y171,0)","v":0},null,{"$f":"IF(AND(W171=\"2\",G171<>Lists!$A$17),AA171,Z171)","v":""},"",{"$f":"Planning!AE155","v":{"v":0,"d":"0.00"}},{"$f":"'Month 7'!M171+'Month 7'!N171-'Month 7'!O171","v":{"v":0,"d":"0.00"}},null,"","",{"$f":"SUMIFS($J$25:$J$224,$C$25:$C$224,$C171,$G$25:$G$224,Lists!$A$16)","v":0},0,null,"",null,{"$f":"IF(C171=0,\"\",LEFT(INDEX(Lists!$H$5:$H$49,MATCH(C171,Lists!$G$5:$G$49,0),1),1))","v":""},null,{"$f":"'Month 7'!H171+'Month 7'!I171-'Month 7'!J171","v":0},"","",null,"0"]
[{"$f":"Planning!A156","v":"I148"},{"$f":"Planning!B156","v":0},{"$f":"Planning!C156","v":0},{"$f":"Planning!D156","v":0},{"$f":"Planning!E156","v":0},{"$f":"IF(Planning!G156<>0,Planning!G156,\"\")","v":""},{"$f":"Planning!H156","v":0},{"$f":"Planning!AD156","v":0},{"$f":"IF(OR(W172=\"1\",AND(W172<>\"1\",G172=Lists!$A$17)),Y172,0)","v":0},null,{"$f":"IF(AND(W172=\"2\",G172<>Lists!$A$17),AA172,Z172)","v":""},"",{"$f":"Planning!AE156","v":{"v":0,"d":"0.00"}},{"$f":"'Month 7'!M172+'Month 7'!N172-'Month 7'!O172","v":{"v":0,"d":"0.00"}},null,"","",{"$f":"SUMIFS($J$25:$J$224,$C$25:$C$224,$C172,$G$25:$G$224,Lists!$A$16)","v":0},0,null,"",null,{"$f":"IF(C172=0,\"\",LEFT(INDEX(Lists!$H$5:$H$49,MATCH(C172,Lists!$G$5:$G$49,0),1),1))","v":""},null,{"$f":"'Month 7'!H172+'Month 7'!I172-'Month 7'!J172","v":0},"","",null,"0"]
[{"$f":"Planning!A157","v":"I149"},{"$f":"Planning!B157","v":0},{"$f":"Planning!C157","v":0},{"$f":"Planning!D157","v":0},{"$f":"Planning!E157","v":0},{"$f":"IF(Planning!G157<>0,Planning!G157,\"\")","v":""},{"$f":"Planning!H157","v":0},{"$f":"Planning!AD157","v":0},{"$f":"IF(OR(W173=\"1\",AND(W173<>\"1\",G173=Lists!$A$17)),Y173,0)","v":0},null,{"$f":"IF(AND(W173=\"2\",G173<>Lists!$A$17),AA173,Z173)","v":""},"",{"$f":"Planning!AE157","v":{"v":0,"d":"0.00"}},{"$f":"'Month 7'!M173+'Month 7'!N173-'Month 7'!O173","v":{"v":0,"d":"0.00"}},null,"","",{"$f":"SUMIFS($J$25:$J$224,$C$25:$C$224,$C173,$G$25:$G$224,Lists!$A$16)","v":0},0,null,"",null,{"$f":"IF(C173=0,\"\",LEFT(INDEX(Lists!$H$5:$H$49,MATCH(C173,Lists!$G$5:$G$49,0),1),1))","v":""},null,{"$f":"'Month 7'!H173+'Month 7'!I173-'Month 7'!J173","v":0},"","",null,"0"]
[{"$f":"Planning!A158","v":"I150"},{"$f":"Planning!B158","v":0},{"$f":"Planning!C158","v":0},{"$f":"Planning!D158","v":0},{"$f":"Planning!E158","v":0},{"$f":"IF(Planning!G158<>0,Planning!G158,\"\")","v":""},{"$f":"Planning!H158","v":0},{"$f":"Planning!AD158","v":0},{"$f":"IF(OR(W174=\"1\",AND(W174<>\"1\",G174=Lists!$A$17)),Y174,0)","v":0},null,{"$f":"IF(AND(W174=\"2\",G174<>Lists!$A$17),AA174,Z174)","v":""},"",{"$f":"Planning!AE158","v":{"v":0,"d":"0.00"}},{"$f":"'Month 7'!M174+'Month 7'!N174-'Month 7'!O174","v":{"v":0,"d":"0.00"}},null,"","",{"$f":"SUMIFS($J$25:$J$224,$C$25:$C$224,$C174,$G$25:$G$224,Lists!$A$16)","v":0},0,null,"",null,{"$f":"IF(C174=0,\"\",LEFT(INDEX(Lists!$H$5:$H$49,MATCH(C174,Lists!$G$5:$G$49,0),1),1))","v":""},null,{"$f":"'Month 7'!H174+'Month 7'!I174-'Month 7'!J174","v":0},"","",null,"0"]
[{"$f":"Planning!A159","v":"I151"},{"$f":"Planning!B159","v":0},{"$f":"Planning!C159","v":0},{"$f":"Planning!D159","v":0},{"$f":"Planning!E159","v":0},{"$f":"IF(Planning!G159<>0,Planning!G159,\"\")","v":""},{"$f":"Planning!H159","v":0},{"$f":"Planning!AD159","v":0},{"$f":"IF(OR(W175=\"1\",AND(W175<>\"1\",G175=Lists!$A$17)),Y175,0)","v":0},null,{"$f":"IF(AND(W175=\"2\",G175<>Lists!$A$17),AA175,Z175)","v":""},"",{"$f":"Planning!AE159","v":{"v":0,"d":"0.00"}},{"$f":"'Month 7'!M175+'Month 7'!N175-'Month 7'!O175","v":{"v":0,"d":"0.00"}},null,"","",{"$f":"SUMIFS($J$25:$J$224,$C$25:$C$224,$C175,$G$25:$G$224,Lists!$A$16)","v":0},0,null,"",null,{"$f":"IF(C175=0,\"\",LEFT(INDEX(Lists!$H$5:$H$49,MATCH(C175,Lists!$G$5:$G$49,0),1),1))","v":""},null,{"$f":"'Month 7'!H175+'Month 7'!I175-'Month 7'!J175","v":0},"","",null,"0"]
[{"$f":"Planning!A160","v":"I152"},{"$f":"Planning!B160","v":0},{"$f":"Planning!C160","v":0},{"$f":"Planning!D160","v":0},{"$f":"Planning!E160","v":0},{"$f":"IF(Planning!G160<>0,Planning!G160,\"\")","v":""},{"$f":"Planning!H160","v":0},{"$f":"Planning!AD160","v":0},{"$f":"IF(OR(W176=\"1\",AND(W176<>\"1\",G176=Lists!$A$17)),Y176,0)","v":0},null,{"$f":"IF(AND(W176=\"2\",G176<>Lists!$A$17),AA176,Z176)","v":""},"",{"$f":"Planning!AE160","v":{"v":0,"d":"0.00"}},{"$f":"'Month 7'!M176+'Month 7'!N176-'Month 7'!O176","v":{"v":0,"d":"0.00"}},null,"","",{"$f":"SUMIFS($J$25:$J$224,$C$25:$C$224,$C176,$G$25:$G$224,Lists!$A$16)","v":0},0,null,"",null,{"$f":"IF(C176=0,\"\",LEFT(INDEX(Lists!$H$5:$H$49,MATCH(C176,Lists!$G$5:$G$49,0),1),1))","v":""},null,{"$f":"'Month 7'!H176+'Month 7'!I176-'Month 7'!J176","v":0},"","",null,"0"]
[{"$f":"Planning!A161","v":"I153"},{"$f":"Planning!B161","v":0},{"$f":"Planning!C161","v":0},{"$f":"Planning!D161","v":0},{"$f":"Planning!E161","v":0},{"$f":"IF(Planning!G161<>0,Planning!G161,\"\")","v":""},{"$f":"Planning!H161","v":0},{"$f":"Planning!AD161","v":0},{"$f":"IF(OR(W177=\"1\",AND(W177<>\"1\",G177=Lists!$A$17)),Y177,0)","v":0},null,{"$f":"IF(AND(W177=\"2\",G177<>Lists!$A$17),AA177,Z177)","v":""},"",{"$f":"Planning!AE161","v":{"v":0,"d":"0.00"}},{"$f":"'Month 7'!M177+'Month 7'!N177-'Month 7'!O177","v":{"v":0,"d":"0.00"}},null,"","",{"$f":"SUMIFS($J$25:$J$224,$C$25:$C$224,$C177,$G$25:$G$224,Lists!$A$16)","v":0},0,null,"",null,{"$f":"IF(C177=0,\"\",LEFT(INDEX(Lists!$H$5:$H$49,MATCH(C177,Lists!$G$5:$G$49,0),1),1))","v":""},null,{"$f":"'Month 7'!H177+'Month 7'!I177-'Month 7'!J177","v":0},"","",null,"0"]
[{"$f":"Planning!A162","v":"I154"},{"$f":"Planning!B162","v":0},{"$f":"Planning!C162","v":0},{"$f":"Planning!D162","v":0},{"$f":"Planning!E162","v":0},{"$f":"IF(Planning!G162<>0,Planning!G162,\"\")","v":""},{"$f":"Planning!H162","v":0},{"$f":"Planning!AD162","v":0},{"$f":"IF(OR(W178=\"1\",AND(W178<>\"1\",G178=Lists!$A$17)),Y178,0)","v":0},null,{"$f":"IF(AND(W178=\"2\",G178<>Lists!$A$17),AA178,Z178)","v":""},"",{"$f":"Planning!AE162","v":{"v":0,"d":"0.00"}},{"$f":"'Month 7'!M178+'Month 7'!N178-'Month 7'!O178","v":{"v":0,"d":"0.00"}},null,"","",{"$f":"SUMIFS($J$25:$J$224,$C$25:$C$224,$C178,$G$25:$G$224,Lists!$A$16)","v":0},0,null,"",null,{"$f":"IF(C178=0,\"\",LEFT(INDEX(Lists!$H$5:$H$49,MATCH(C178,Lists!$G$5:$G$49,0),1),1))","v":""},null,{"$f":"'Month 7'!H178+'Month 7'!I178-'Month 7'!J178","v":0},"","",null,"0"]
[{"$f":"Planning!A163","v":"I155"},{"$f":"Planning!B163","v":0},{"$f":"Planning!C163","v":0},{"$f":"Planning!D163","v":0},{"$f":"Planning!E163","v":0},{"$f":"IF(Planning!G163<>0,Planning!G163,\"\")","v":""},{"$f":"Planning!H163","v":0},{"$f":"Planning!AD163","v":0},{"$f":"IF(OR(W179=\"1\",AND(W179<>\"1\",G179=Lists!$A$17)),Y179,0)","v":0},null,{"$f":"IF(AND(W179=\"2\",G179<>Lists!$A$17),AA179,Z179)","v":""},"",{"$f":"Planning!AE163","v":{"v":0,"d":"0.00"}},{"$f":"'Month 7'!M179+'Month 7'!N179-'Month 7'!O179","v":{"v":0,"d":"0.00"}},null,"","",{"$f":"SUMIFS($J$25:$J$224,$C$25:$C$224,$C179,$G$25:$G$224,Lists!$A$16)","v":0},0,null,"",null,{"$f":"IF(C179=0,\"\",LEFT(INDEX(Lists!$H$5:$H$49,MATCH(C179,Lists!$G$5:$G$49,0),1),1))","v":""},null,{"$f":"'Month 7'!H179+'Month 7'!I179-'Month 7'!J179","v":0},"","",null,"0"]
[{"$f":"Planning!A164","v":"I156"},{"$f":"Planning!B164","v":0},{"$f":"Planning!C164","v":0},{"$f":"Planning!D164","v":0},{"$f":"Planning!E164","v":0},{"$f":"IF(Planning!G164<>0,Planning!G164,\"\")","v":""},{"$f":"Planning!H164","v":0},{"$f":"Planning!AD164","v":0},{"$f":"IF(OR(W180=\"1\",AND(W180<>\"1\",G180=Lists!$A$17)),Y180,0)","v":0},null,{"$f":"IF(AND(W180=\"2\",G180<>Lists!$A$17),AA180,Z180)","v":""},"",{"$f":"Planning!AE164","v":{"v":0,"d":"0.00"}},{"$f":"'Month 7'!M180+'Month 7'!N180-'Month 7'!O180","v":{"v":0,"d":"0.00"}},null,"","",{"$f":"SUMIFS($J$25:$J$224,$C$25:$C$224,$C180,$G$25:$G$224,Lists!$A$16)","v":0},0,null,"",null,{"$f":"IF(C180=0,\"\",LEFT(INDEX(Lists!$H$5:$H$49,MATCH(C180,Lists!$G$5:$G$49,0),1),1))","v":""},null,{"$f":"'Month 7'!H180+'Month 7'!I180-'Month 7'!J180","v":0},"","",null,"0"]
[{"$f":"Planning!A165","v":"I157"},{"$f":"Planning!B165","v":0},{"$f":"Planning!C165","v":0},{"$f":"Planning!D165","v":0},{"$f":"Planning!E165","v":0},{"$f":"IF(Planning!G165<>0,Planning!G165,\"\")","v":""},{"$f":"Planning!H165","v":0},{"$f":"Planning!AD165","v":0},{"$f":"IF(OR(W181=\"1\",AND(W181<>\"1\",G181=Lists!$A$17)),Y181,0)","v":0},null,{"$f":"IF(AND(W181=\"2\",G181<>Lists!$A$17),AA181,Z181)","v":""},"",{"$f":"Planning!AE165","v":{"v":0,"d":"0.00"}},{"$f":"'Month 7'!M181+'Month 7'!N181-'Month 7'!O181","v":{"v":0,"d":"0.00"}},null,"","",{"$f":"SUMIFS($J$25:$J$224,$C$25:$C$224,$C181,$G$25:$G$224,Lists!$A$16)","v":0},0,null,"",null,{"$f":"IF(C181=0,\"\",LEFT(INDEX(Lists!$H$5:$H$49,MATCH(C181,Lists!$G$5:$G$49,0),1),1))","v":""},null,{"$f":"'Month 7'!H181+'Month 7'!I181-'Month 7'!J181","v":0},"","",null,"0"]
[{"$f":"Planning!A166","v":"I158"},{"$f":"Planning!B166","v":0},{"$f":"Planning!C166","v":0},{"$f":"Planning!D166","v":0},{"$f":"Planning!E166","v":0},{"$f":"IF(Planning!G166<>0,Planning!G166,\"\")","v":""},{"$f":"Planning!H166","v":0},{"$f":"Planning!AD166","v":0},{"$f":"IF(OR(W182=\"1\",AND(W182<>\"1\",G182=Lists!$A$17)),Y182,0)","v":0},null,{"$f":"IF(AND(W182=\"2\",G182<>Lists!$A$17),AA182,Z182)","v":""},"",{"$f":"Planning!AE166","v":{"v":0,"d":"0.00"}},{"$f":"'Month 7'!M182+'Month 7'!N182-'Month 7'!O182","v":{"v":0,"d":"0.00"}},null,"","",{"$f":"SUMIFS($J$25:$J$224,$C$25:$C$224,$C182,$G$25:$G$224,Lists!$A$16)","v":0},0,null,"",null,{"$f":"IF(C182=0,\"\",LEFT(INDEX(Lists!$H$5:$H$49,MATCH(C182,Lists!$G$5:$G$49,0),1),1))","v":""},null,{"$f":"'Month 7'!H182+'Month 7'!I182-'Month 7'!J182","v":0},"","",null,"0"]
[{"$f":"Planning!A167","v":"I159"},{"$f":"Planning!B167","v":0},{"$f":"Planning!C167","v":0},{"$f":"Planning!D167","v":0},{"$f":"Planning!E167","v":0},{"$f":"IF(Planning!G167<>0,Planning!G167,\"\")","v":""},{"$f":"Planning!H167","v":0},{"$f":"Planning!AD167","v":0},{"$f":"IF(OR(W183=\"1\",AND(W183<>\"1\",G183=Lists!$A$17)),Y183,0)","v":0},null,{"$f":"IF(AND(W183=\"2\",G183<>Lists!$A$17),AA183,Z183)","v":""},"",{"$f":"Planning!AE167","v":{"v":0,"d":"0.00"}},{"$f":"'Month 7'!M183+'Month 7'!N183-'Month 7'!O183","v":{"v":0,"d":"0.00"}},null,"","",{"$f":"SUMIFS($J$25:$J$224,$C$25:$C$224,$C183,$G$25:$G$224,Lists!$A$16)","v":0},0,null,"",null,{"$f":"IF(C183=0,\"\",LEFT(INDEX(Lists!$H$5:$H$49,MATCH(C183,Lists!$G$5:$G$49,0),1),1))","v":""},null,{"$f":"'Month 7'!H183+'Month 7'!I183-'Month 7'!J183","v":0},"","",null,"0"]
[{"$f":"Planning!A168","v":"I160"},{"$f":"Planning!B168","v":0},{"$f":"Planning!C168","v":0},{"$f":"Planning!D168","v":0},{"$f":"Planning!E168","v":0},{"$f":"IF(Planning!G168<>0,Planning!G168,\"\")","v":""},{"$f":"Planning!H168","v":0},{"$f":"Planning!AD168","v":0},{"$f":"IF(OR(W184=\"1\",AND(W184<>\"1\",G184=Lists!$A$17)),Y184,0)","v":0},null,{"$f":"IF(AND(W184=\"2\",G184<>Lists!$A$17),AA184,Z184)","v":""},"",{"$f":"Planning!AE168","v":{"v":0,"d":"0.00"}},{"$f":"'Month 7'!M184+'Month 7'!N184-'Month 7'!O184","v":{"v":0,"d":"0.00"}},null,"","",{"$f":"SUMIFS($J$25:$J$224,$C$25:$C$224,$C184,$G$25:$G$224,Lists!$A$16)","v":0},0,null,"",null,{"$f":"IF(C184=0,\"\",LEFT(INDEX(Lists!$H$5:$H$49,MATCH(C184,Lists!$G$5:$G$49,0),1),1))","v":""},null,{"$f":"'Month 7'!H184+'Month 7'!I184-'Month 7'!J184","v":0},"","",null,"0"]
[{"$f":"Planning!A169","v":"I161"},{"$f":"Planning!B169","v":0},{"$f":"Planning!C169","v":0},{"$f":"Planning!D169","v":0},{"$f":"Planning!E169","v":0},{"$f":"IF(Planning!G169<>0,Planning!G169,\"\")","v":""},{"$f":"Planning!H169","v":0},{"$f":"Planning!AD169","v":0},{"$f":"IF(OR(W185=\"1\",AND(W185<>\"1\",G185=Lists!$A$17)),Y185,0)","v":0},null,{"$f":"IF(AND(W185=\"2\",G185<>Lists!$A$17),AA185,Z185)","v":""},{"$f":"IF($U185=ExcluirDelPLogro,\"\",IF(AND(H185=0,I185=0,J185=0),\"\",K185))","v":""},{"$f":"Planning!AE169","v":{"v":0,"d":"0.00"}},{"$f":"'Month 7'!M185+'Month 7'!N185-'Month 7'!O185","v":{"v":0,"d":"0.00"}},null,"",{"$f":"IF($U185=ExcluirDelPLogro,\"\",IF(AND(M185=0,N185=0,O185=0),\"\",P185))","v":""},{"$f":"SUMIFS($J$25:$J$224,$C$25:$C$224,$C185,$G$25:$G$224,Lists!$A$16)","v":0},0,null,"",null,{"$f":"IF(C185=0,\"\",LEFT(INDEX(Lists!$H$5:$H$49,MATCH(C185,Lists!$G$5:$G$49,0),1),1))","v":""},null,{"$f":"'Month 7'!H185+'Month 7'!I185-'Month 7'!J185","v":0},"",{"$f":"IF(AND(H185=0,I185=0,J185=0),\"\",IF(J185>0,H185/J185,0))","v":""},null,"0"]
[{"$f":"Planning!A170","v":"I162"},{"$f":"Planning!B170","v":0},{"$f":"Planning!C170","v":0},{"$f":"Planning!D170","v":0},{"$f":"Planning!E170","v":0},{"$f":"IF(Planning!G170<>0,Planning!G170,\"\")","v":""},{"$f":"Planning!H170","v":0},{"$f":"Planning!AD170","v":0},{"$f":"IF(OR(W186=\"1\",AND(W186<>\"1\",G186=Lists!$A$17)),Y186,0)","v":0},null,{"$f":"IF(AND(W186=\"2\",G186<>Lists!$A$17),AA186,Z186)","v":""},"",{"$f":"Planning!AE170","v":{"v":0,"d":"0.00"}},{"$f":"'Month 7'!M186+'Month 7'!N186-'Month 7'!O186","v":{"v":0,"d":"0.00"}},null,"","",{"$f":"SUMIFS($J$25:$J$224,$C$25:$C$224,$C186,$G$25:$G$224,Lists!$A$16)","v":0},0,null,"",null,{"$f":"IF(C186=0,\"\",LEFT(INDEX(Lists!$H$5:$H$49,MATCH(C186,Lists!$G$5:$G$49,0),1),1))","v":""},null,{"$f":"'Month 7'!H186+'Month 7'!I186-'Month 7'!J186","v":0},"","",null,"0"]
[{"$f":"Planning!A171","v":"I163"},{"$f":"Planning!B171","v":0},{"$f":"Planning!C171","v":0},{"$f":"Planning!D171","v":0},{"$f":"Planning!E171","v":0},{"$f":"IF(Planning!G171<>0,Planning!G171,\"\")","v":""},{"$f":"Planning!H171","v":0},{"$f":"Planning!AD171","v":0},{"$f":"IF(OR(W187=\"1\",AND(W187<>\"1\",G187=Lists!$A$17)),Y187,0)","v":0},null,{"$f":"IF(AND(W187=\"2\",G187<>Lists!$A$17),AA187,Z187)","v":""},"",{"$f":"Planning!AE171","v":{"v":0,"d":"0.00"}},{"$f":"'Month 7'!M187+'Month 7'!N187-'Month 7'!O187","v":{"v":0,"d":"0.00"}},null,"","",{"$f":"SUMIFS($J$25:$J$224,$C$25:$C$224,$C187,$G$25:$G$224,Lists!$A$16)","v":0},0,null,"",null,{"$f":"IF(C187=0,\"\",LEFT(INDEX(Lists!$H$5:$H$49,MATCH(C187,Lists!$G$5:$G$49,0),1),1))","v":""},null,{"$f":"'Month 7'!H187+'Month 7'!I187-'Month 7'!J187","v":0},"","",null,"0"]
[{"$f":"Planning!A172","v":"I164"},{"$f":"Planning!B172","v":0},{"$f":"Planning!C172","v":0},{"$f":"Planning!D172","v":0},{"$f":"Planning!E172","v":0},{"$f":"IF(Planning!G172<>0,Planning!G172,\"\")","v":""},{"$f":"Planning!H172","v":0},{"$f":"Planning!AD172","v":0},{"$f":"IF(OR(W188=\"1\",AND(W188<>\"1\",G188=Lists!$A$17)),Y188,0)","v":0},null,{"$f":"IF(AND(W188=\"2\",G188<>Lists!$A$17),AA188,Z188)","v":""},"",{"$f":"Planning!AE172","v":{"v":0,"d":"0.00"}},{"$f":"'Month 7'!M188+'Month 7'!N188-'Month 7'!O188","v":{"v":0,"d":"0.00"}},null,"","",{"$f":"SUMIFS($J$25:$J$224,$C$25:$C$224,$C188,$G$25:$G$224,Lists!$A$16)","v":0},0,null,"",null,{"$f":"IF(C188=0,\"\",LEFT(INDEX(Lists!$H$5:$H$49,MATCH(C188,Lists!$G$5:$G$49,0),1),1))","v":""},null,{"$f":"'Month 7'!H188+'Month 7'!I188-'Month 7'!J188","v":0},"","",null,"0"]
[{"$f":"Planning!A173","v":"I165"},{"$f":"Planning!B173","v":0},{"$f":"Planning!C173","v":0},{"$f":"Planning!D173","v":0},{"$f":"Planning!E173","v":0},{"$f":"IF(Planning!G173<>0,Planning!G173,\"\")","v":""},{"$f":"Planning!H173","v":0},{"$f":"Planning!AD173","v":0},{"$f":"IF(OR(W189=\"1\",AND(W189<>\"1\",G189=Lists!$A$17)),Y189,0)","v":0},null,{"$f":"IF(AND(W189=\"2\",G189<>Lists!$A$17),AA189,Z189)","v":""},"",{"$f":"Planning!AE173","v":{"v":0,"d":"0.00"}},{"$f":"'Month 7'!M189+'Month 7'!N189-'Month 7'!O189","v":{"v":0,"d":"0.00"}},null,"","",{"$f":"SUMIFS($J$25:$J$224,$C$25:$C$224,$C189,$G$25:$G$224,Lists!$A$16)","v":0},0,null,"",null,{"$f":"IF(C189=0,\"\",LEFT(INDEX(Lists!$H$5:$H$49,MATCH(C189,Lists!$G$5:$G$49,0),1),1))","v":""},null,{"$f":"'Month 7'!H189+'Month 7'!I189-'Month 7'!J189","v":0},"","",null,"0"]
[{"$f":"Planning!A174","v":"I166"},{"$f":"Planning!B174","v":0},{"$f":"Planning!C174","v":0},{"$f":"Planning!D174","v":0},{"$f":"Planning!E174","v":0},{"$f":"IF(Planning!G174<>0,Planning!G174,\"\")","v":""},{"$f":"Planning!H174","v":0},{"$f":"Planning!AD174","v":0},{"$f":"IF(OR(W190=\"1\",AND(W190<>\"1\",G190=Lists!$A$17)),Y190,0)","v":0},null,{"$f":"IF(AND(W190=\"2\",G190<>Lists!$A$17),AA190,Z190)","v":""},"",{"$f":"Planning!AE174","v":{"v":0,"d":"0.00"}},{"$f":"'Month 7'!M190+'Month 7'!N190-'Month 7'!O190","v":{"v":0,"d":"0.00"}},null,"","",{"$f":"SUMIFS($J$25:$J$224,$C$25:$C$224,$C190,$G$25:$G$224,Lists!$A$16)","v":0},0,null,"",null,{"$f":"IF(C190=0,\"\",LEFT(INDEX(Lists!$H$5:$H$49,MATCH(C190,Lists!$G$5:$G$49,0),1),1))","v":""},null,{"$f":"'Month 7'!H190+'Month 7'!I190-'Month 7'!J190","v":0},"","",null,"0"]
[{"$f":"Planning!A175","v":"I167"},{"$f":"Planning!B175","v":0},{"$f":"Planning!C175","v":0},{"$f":"Planning!D175","v":0},{"$f":"Planning!E175","v":0},{"$f":"IF(Planning!G175<>0,Planning!G175,\"\")","v":""},{"$f":"Planning!H175","v":0},{"$f":"Planning!AD175","v":0},{"$f":"IF(OR(W191=\"1\",AND(W191<>\"1\",G191=Lists!$A$17)),Y191,0)","v":0},null,{"$f":"IF(AND(W191=\"2\",G191<>Lists!$A$17),AA191,Z191)","v":""},"",{"$f":"Planning!AE175","v":{"v":0,"d":"0.00"}},{"$f":"'Month 7'!M191+'Month 7'!N191-'Month 7'!O191","v":{"v":0,"d":"0.00"}},null,"","",{"$f":"SUMIFS($J$25:$J$224,$C$25:$C$224,$C191,$G$25:$G$224,Lists!$A$16)","v":0},0,null,"",null,{"$f":"IF(C191=0,\"\",LEFT(INDEX(Lists!$H$5:$H$49,MATCH(C191,Lists!$G$5:$G$49,0),1),1))","v":""},null,{"$f":"'Month 7'!H191+'Month 7'!I191-'Month 7'!J191","v":0},"","",null,"0"]
[{"$f":"Planning!A176","v":"I168"},{"$f":"Planning!B176","v":0},{"$f":"Planning!C176","v":0},{"$f":"Planning!D176","v":0},{"$f":"Planning!E176","v":0},{"$f":"IF(Planning!G176<>0,Planning!G176,\"\")","v":""},{"$f":"Planning!H176","v":0},{"$f":"Planning!AD176","v":0},{"$f":"IF(OR(W192=\"1\",AND(W192<>\"1\",G192=Lists!$A$17)),Y192,0)","v":0},null,{"$f":"IF(AND(W192=\"2\",G192<>Lists!$A$17),AA192,Z192)","v":""},"",{"$f":"Planning!AE176","v":{"v":0,"d":"0.00"}},{"$f":"'Month 7'!M192+'Month 7'!N192-'Month 7'!O192","v":{"v":0,"d":"0.00"}},null,"","",{"$f":"SUMIFS($J$25:$J$224,$C$25:$C$224,$C192,$G$25:$G$224,Lists!$A$16)","v":0},0,null,"",null,{"$f":"IF(C192=0,\"\",LEFT(INDEX(Lists!$H$5:$H$49,MATCH(C192,Lists!$G$5:$G$49,0),1),1))","v":""},null,{"$f":"'Month 7'!H192+'Month 7'!I192-'Month 7'!J192","v":0},"","",null,"0"]
[{"$f":"Planning!A177","v":"I169"},{"$f":"Planning!B177","v":0},{"$f":"Planning!C177","v":0},{"$f":"Planning!D177","v":0},{"$f":"Planning!E177","v":0},{"$f":"IF(Planning!G177<>0,Planning!G177,\"\")","v":""},{"$f":"Planning!H177","v":0},{"$f":"Planning!AD177","v":0},{"$f":"IF(OR(W193=\"1\",AND(W193<>\"1\",G193=Lists!$A$17)),Y193,0)","v":0},null,{"$f":"IF(AND(W193=\"2\",G193<>Lists!$A$17),AA193,Z193)","v":""},"",{"$f":"Planning!AE177","v":{"v":0,"d":"0.00"}},{"$f":"'Month 7'!M193+'Month 7'!N193-'Month 7'!O193","v":{"v":0,"d":"0.00"}},null,"","",{"$f":"SUMIFS($J$25:$J$224,$C$25:$C$224,$C193,$G$25:$G$224,Lists!$A$16)","v":0},0,null,"",null,{"$f":"IF(C193=0,\"\",LEFT(INDEX(Lists!$H$5:$H$49,MATCH(C193,Lists!$G$5:$G$49,0),1),1))","v":""},null,{"$f":"'Month 7'!H193+'Month 7'!I193-'Month 7'!J193","v":0},"","",null,"0"]
[{"$f":"Planning!A178","v":"I170"},{"$f":"Planning!B178","v":0},{"$f":"Planning!C178","v":0},{"$f":"Planning!D178","v":0},{"$f":"Planning!E178","v":0},{"$f":"IF(Planning!G178<>0,Planning!G178,\"\")","v":""},{"$f":"Planning!H178","v":0},{"$f":"Planning!AD178","v":0},{"$f":"IF(OR(W194=\"1\",AND(W194<>\"1\",G194=Lists!$A$17)),Y194,0)","v":0},null,{"$f":"IF(AND(W194=\"2\",G194<>Lists!$A$17),AA194,Z194)","v":""},"",{"$f":"Planning!AE178","v":{"v":0,"d":"0.00"}},{"$f":"'Month 7'!M194+'Month 7'!N194-'Month 7'!O194","v":{"v":0,"d":"0.00"}},null,"","",{"$f":"SUMIFS($J$25:$J$224,$C$25:$C$224,$C194,$G$25:$G$224,Lists!$A$16)","v":0},0,null,"",null,{"$f":"IF(C194=0,\"\",LEFT(INDEX(Lists!$H$5:$H$49,MATCH(C194,Lists!$G$5:$G$49,0),1),1))","v":""},null,{"$f":"'Month 7'!H194+'Month 7'!I194-'Month 7'!J194","v":0},"","",null,"0"]
[{"$f":"Planning!A179","v":"I171"},{"$f":"Planning!B179","v":0},{"$f":"Planning!C179","v":0},{"$f":"Planning!D179","v":0},{"$f":"Planning!E179","v":0},{"$f":"IF(Planning!G179<>0,Planning!G179,\"\")","v":""},{"$f":"Planning!H179","v":0},{"$f":"Planning!AD179","v":0},{"$f":"IF(OR(W195=\"1\",AND(W195<>\"1\",G195=Lists!$A$17)),Y195,0)","v":0},null,{"$f":"IF(AND(W195=\"2\",G195<>Lists!$A$17),AA195,Z195)","v":""},"",{"$f":"Planning!AE179","v":{"v":0,"d":"0.00"}},{"$f":"'Month 7'!M195+'Month 7'!N195-'Month 7'!O195","v":{"v":0,"d":"0.00"}},null,"","",{"$f":"SUMIFS($J$25:$J$224,$C$25:$C$224,$C195,$G$25:$G$224,Lists!$A$16)","v":0},0,null,"",null,{"$f":"IF(C195=0,\"\",LEFT(INDEX(Lists!$H$5:$H$49,MATCH(C195,Lists!$G$5:$G$49,0),1),1))","v":""},null,{"$f":"'Month 7'!H195+'Month 7'!I195-'Month 7'!J195","v":0},"","",null,"0"]
[{"$f":"Planning!A180","v":"I172"},{"$f":"Planning!B180","v":0},{"$f":"Planning!C180","v":0},{"$f":"Planning!D180","v":0},{"$f":"Planning!E180","v":0},{"$f":"IF(Planning!G180<>0,Planning!G180,\"\")","v":""},{"$f":"Planning!H180","v":0},{"$f":"Planning!AD180","v":0},{"$f":"IF(OR(W196=\"1\",AND(W196<>\"1\",G196=Lists!$A$17)),Y196,0)","v":0},null,{"$f":"IF(AND(W196=\"2\",G196<>Lists!$A$17),AA196,Z196)","v":""},"",{"$f":"Planning!AE180","v":{"v":0,"d":"0.00"}},{"$f":"'Month 7'!M196+'Month 7'!N196-'Month 7'!O196","v":{"v":0,"d":"0.00"}},null,"","",{"$f":"SUMIFS($J$25:$J$224,$C$25:$C$224,$C196,$G$25:$G$224,Lists!$A$16)","v":0},0,null,"",null,{"$f":"IF(C196=0,\"\",LEFT(INDEX(Lists!$H$5:$H$49,MATCH(C196,Lists!$G$5:$G$49,0),1),1))","v":""},null,{"$f":"'Month 7'!H196+'Month 7'!I196-'Month 7'!J196","v":0},"","",null,"0"]
[{"$f":"Planning!A181","v":"I173"},{"$f":"Planning!B181","v":0},{"$f":"Planning!C181","v":0},{"$f":"Planning!D181","v":0},{"$f":"Planning!E181","v":0},{"$f":"IF(Planning!G181<>0,Planning!G181,\"\")","v":""},{"$f":"Planning!H181","v":0},{"$f":"Planning!AD181","v":0},{"$f":"IF(OR(W197=\"1\",AND(W197<>\"1\",G197=Lists!$A$17)),Y197,0)","v":0},null,{"$f":"IF(AND(W197=\"2\",G197<>Lists!$A$17),AA197,Z197)","v":""},"",{"$f":"Planning!AE181","v":{"v":0,"d":"0.00"}},{"$f":"'Month 7'!M197+'Month 7'!N197-'Month 7'!O197","v":{"v":0,"d":"0.00"}},null,"","",{"$f":"SUMIFS($J$25:$J$224,$C$25:$C$224,$C197,$G$25:$G$224,Lists!$A$16)","v":0},0,null,"",null,{"$f":"IF(C197=0,\"\",LEFT(INDEX(Lists!$H$5:$H$49,MATCH(C197,Lists!$G$5:$G$49,0),1),1))","v":""},null,{"$f":"'Month 7'!H197+'Month 7'!I197-'Month 7'!J197","v":0},"","",null,"0"]
[{"$f":"Planning!A182","v":"I174"},{"$f":"Planning!B182","v":0},{"$f":"Planning!C182","v":0},{"$f":"Planning!D182","v":0},{"$f":"Planning!E182","v":0},{"$f":"IF(Planning!G182<>0,Planning!G182,\"\")","v":""},{"$f":"Planning!H182","v":0},{"$f":"Planning!AD182","v":0},{"$f":"IF(OR(W198=\"1\",AND(W198<>\"1\",G198=Lists!$A$17)),Y198,0)","v":0},null,{"$f":"IF(AND(W198=\"2\",G198<>Lists!$A$17),AA198,Z198)","v":""},"",{"$f":"Planning!AE182","v":{"v":0,"d":"0.00"}},{"$f":"'Month 7'!M198+'Month 7'!N198-'Month 7'!O198","v":{"v":0,"d":"0.00"}},null,"","",{"$f":"SUMIFS($J$25:$J$224,$C$25:$C$224,$C198,$G$25:$G$224,Lists!$A$16)","v":0},0,null,"",null,{"$f":"IF(C198=0,\"\",LEFT(INDEX(Lists!$H$5:$H$49,MATCH(C198,Lists!$G$5:$G$49,0),1),1))","v":""},null,{"$f":"'Month 7'!H198+'Month 7'!I198-'Month 7'!J198","v":0},"","",null,"0"]
[{"$f":"Planning!A183","v":"I175"},{"$f":"Planning!B183","v":0},{"$f":"Planning!C183","v":0},{"$f":"Planning!D183","v":0},{"$f":"Planning!E183","v":0},{"$f":"IF(Planning!G183<>0,Planning!G183,\"\")","v":""},{"$f":"Planning!H183","v":0},{"$f":"Planning!AD183","v":0},{"$f":"IF(OR(W199=\"1\",AND(W199<>\"1\",G199=Lists!$A$17)),Y199,0)","v":0},null,{"$f":"IF(AND(W199=\"2\",G199<>Lists!$A$17),AA199,Z199)","v":""},"",{"$f":"Planning!AE183","v":{"v":0,"d":"0.00"}},{"$f":"'Month 7'!M199+'Month 7'!N199-'Month 7'!O199","v":{"v":0,"d":"0.00"}},null,"","",{"$f":"SUMIFS($J$25:$J$224,$C$25:$C$224,$C199,$G$25:$G$224,Lists!$A$16)","v":0},0,null,"",null,{"$f":"IF(C199=0,\"\",LEFT(INDEX(Lists!$H$5:$H$49,MATCH(C199,Lists!$G$5:$G$49,0),1),1))","v":""},null,{"$f":"'Month 7'!H199+'Month 7'!I199-'Month 7'!J199","v":0},"","",null,"0"]
[{"$f":"Planning!A184","v":"I176"},{"$f":"Planning!B184","v":0},{"$f":"Planning!C184","v":0},{"$f":"Planning!D184","v":0},{"$f":"Planning!E184","v":0},{"$f":"IF(Planning!G184<>0,Planning!G184,\"\")","v":""},{"$f":"Planning!H184","v":0},{"$f":"Planning!AD184","v":0},{"$f":"IF(OR(W200=\"1\",AND(W200<>\"1\",G200=Lists!$A$17)),Y200,0)","v":0},null,{"$f":"IF(AND(W200=\"2\",G200<>Lists!$A$17),AA200,Z200)","v":""},"",{"$f":"Planning!AE184","v":{"v":0,"d":"0.00"}},{"$f":"'Month 7'!M200+'Month 7'!N200-'Month 7'!O200","v":{"v":0,"d":"0.00"}},null,"","",{"$f":"SUMIFS($J$25:$J$224,$C$25:$C$224,$C200,$G$25:$G$224,Lists!$A$16)","v":0},0,null,"",null,{"$f":"IF(C200=0,\"\",LEFT(INDEX(Lists!$H$5:$H$49,MATCH(C200,Lists!$G$5:$G$49,0),1),1))","v":""},null,{"$f":"'Month 7'!H200+'Month 7'!I200-'Month 7'!J200","v":0},"","",null,"0"]
[{"$f":"Planning!A185","v":"I177"},{"$f":"Planning!B185","v":0},{"$f":"Planning!C185","v":0},{"$f":"Planning!D185","v":0},{"$f":"Planning!E185","v":0},{"$f":"IF(Planning!G185<>0,Planning!G185,\"\")","v":""},{"$f":"Planning!H185","v":0},{"$f":"Planning!AD185","v":0},{"$f":"IF(OR(W201=\"1\",AND(W201<>\"1\",G201=Lists!$A$17)),Y201,0)","v":0},null,{"$f":"IF(AND(W201=\"2\",G201<>Lists!$A$17),AA201,Z201)","v":""},"",{"$f":"Planning!AE185","v":{"v":0,"d":"0.00"}},{"$f":"'Month 7'!M201+'Month 7'!N201-'Month 7'!O201","v":{"v":0,"d":"0.00"}},null,"","",{"$f":"SUMIFS($J$25:$J$224,$C$25:$C$224,$C201,$G$25:$G$224,Lists!$A$16)","v":0},0,null,"",null,{"$f":"IF(C201=0,\"\",LEFT(INDEX(Lists!$H$5:$H$49,MATCH(C201,Lists!$G$5:$G$49,0),1),1))","v":""},null,{"$f":"'Month 7'!H201+'Month 7'!I201-'Month 7'!J201","v":0},"","",null,"0"]
[{"$f":"Planning!A186","v":"I178"},{"$f":"Planning!B186","v":0},{"$f":"Planning!C186","v":0},{"$f":"Planning!D186","v":0},{"$f":"Planning!E186","v":0},{"$f":"IF(Planning!G186<>0,Planning!G186,\"\")","v":""},{"$f":"Planning!H186","v":0},{"$f":"Planning!AD186","v":0},{"$f":"IF(OR(W202=\"1\",AND(W202<>\"1\",G202=Lists!$A$17)),Y202,0)","v":0},null,{"$f":"IF(AND(W202=\"2\",G202<>Lists!$A$17),AA202,Z202)","v":""},"",{"$f":"Planning!AE186","v":{"v":0,"d":"0.00"}},{"$f":"'Month 7'!M202+'Month 7'!N202-'Month 7'!O202","v":{"v":0,"d":"0.00"}},null,"","",{"$f":"SUMIFS($J$25:$J$224,$C$25:$C$224,$C202,$G$25:$G$224,Lists!$A$16)","v":0},0,null,"",null,{"$f":"IF(C202=0,\"\",LEFT(INDEX(Lists!$H$5:$H$49,MATCH(C202,Lists!$G$5:$G$49,0),1),1))","v":""},null,{"$f":"'Month 7'!H202+'Month 7'!I202-'Month 7'!J202","v":0},"","",null,"0"]
[{"$f":"Planning!A187","v":"I179"},{"$f":"Planning!B187","v":0},{"$f":"Planning!C187","v":0},{"$f":"Planning!D187","v":0},{"$f":"Planning!E187","v":0},{"$f":"IF(Planning!G187<>0,Planning!G187,\"\")","v":""},{"$f":"Planning!H187","v":0},{"$f":"Planning!AD187","v":0},{"$f":"IF(OR(W203=\"1\",AND(W203<>\"1\",G203=Lists!$A$17)),Y203,0)","v":0},null,{"$f":"IF(AND(W203=\"2\",G203<>Lists!$A$17),AA203,Z203)","v":""},"",{"$f":"Planning!AE187","v":{"v":0,"d":"0.00"}},{"$f":"'Month 7'!M203+'Month 7'!N203-'Month 7'!O203","v":{"v":0,"d":"0.00"}},null,"","",{"$f":"SUMIFS($J$25:$J$224,$C$25:$C$224,$C203,$G$25:$G$224,Lists!$A$16)","v":0},0,null,"",null,{"$f":"IF(C203=0,\"\",LEFT(INDEX(Lists!$H$5:$H$49,MATCH(C203,Lists!$G$5:$G$49,0),1),1))","v":""},null,{"$f":"'Month 7'!H203+'Month 7'!I203-'Month 7'!J203","v":0},"","",null,"0"]
[{"$f":"Planning!A188","v":"I180"},{"$f":"Planning!B188","v":0},{"$f":"Planning!C188","v":0},{"$f":"Planning!D188","v":0},{"$f":"Planning!E188","v":0},{"$f":"IF(Planning!G188<>0,Planning!G188,\"\")","v":""},{"$f":"Planning!H188","v":0},{"$f":"Planning!AD188","v":0},{"$f":"IF(OR(W204=\"1\",AND(W204<>\"1\",G204=Lists!$A$17)),Y204,0)","v":0},null,{"$f":"IF(AND(W204=\"2\",G204<>Lists!$A$17),AA204,Z204)","v":""},"",{"$f":"Planning!AE188","v":{"v":0,"d":"0.00"}},{"$f":"'Month 7'!M204+'Month 7'!N204-'Month 7'!O204","v":{"v":0,"d":"0.00"}},null,"","",{"$f":"SUMIFS($J$25:$J$224,$C$25:$C$224,$C204,$G$25:$G$224,Lists!$A$16)","v":0},0,null,"",null,{"$f":"IF(C204=0,\"\",LEFT(INDEX(Lists!$H$5:$H$49,MATCH(C204,Lists!$G$5:$G$49,0),1),1))","v":""},null,{"$f":"'Month 7'!H204+'Month 7'!I204-'Month 7'!J204","v":0},"","",null,"0"]
[{"$f":"Planning!A189","v":"I181"},{"$f":"Planning!B189","v":0},{"$f":"Planning!C189","v":0},{"$f":"Planning!D189","v":0},{"$f":"Planning!E189","v":0},{"$f":"IF(Planning!G189<>0,Planning!G189,\"\")","v":""},{"$f":"Planning!H189","v":0},{"$f":"Planning!AD189","v":0},{"$f":"IF(OR(W205=\"1\",AND(W205<>\"1\",G205=Lists!$A$17)),Y205,0)","v":0},null,{"$f":"IF(AND(W205=\"2\",G205<>Lists!$A$17),AA205,Z205)","v":""},"",{"$f":"Planning!AE189","v":{"v":0,"d":"0.00"}},{"$f":"'Month 7'!M205+'Month 7'!N205-'Month 7'!O205","v":{"v":0,"d":"0.00"}},null,"","",{"$f":"SUMIFS($J$25:$J$224,$C$25:$C$224,$C205,$G$25:$G$224,Lists!$A$16)","v":0},0,null,"",null,{"$f":"IF(C205=0,\"\",LEFT(INDEX(Lists!$H$5:$H$49,MATCH(C205,Lists!$G$5:$G$49,0),1),1))","v":""},null,{"$f":"'Month 7'!H205+'Month 7'!I205-'Month 7'!J205","v":0},"","",null,"0"]
[{"$f":"Planning!A190","v":"I182"},{"$f":"Planning!B190","v":0},{"$f":"Planning!C190","v":0},{"$f":"Planning!D190","v":0},{"$f":"Planning!E190","v":0},{"$f":"IF(Planning!G190<>0,Planning!G190,\"\")","v":""},{"$f":"Planning!H190","v":0},{"$f":"Planning!AD190","v":0},{"$f":"IF(OR(W206=\"1\",AND(W206<>\"1\",G206=Lists!$A$17)),Y206,0)","v":0},null,{"$f":"IF(AND(W206=\"2\",G206<>Lists!$A$17),AA206,Z206)","v":""},"",{"$f":"Planning!AE190","v":{"v":0,"d":"0.00"}},{"$f":"'Month 7'!M206+'Month 7'!N206-'Month 7'!O206","v":{"v":0,"d":"0.00"}},null,"","",{"$f":"SUMIFS($J$25:$J$224,$C$25:$C$224,$C206,$G$25:$G$224,Lists!$A$16)","v":0},0,null,"",null,{"$f":"IF(C206=0,\"\",LEFT(INDEX(Lists!$H$5:$H$49,MATCH(C206,Lists!$G$5:$G$49,0),1),1))","v":""},null,{"$f":"'Month 7'!H206+'Month 7'!I206-'Month 7'!J206","v":0},"","",null,"0"]
[{"$f":"Planning!A191","v":"I183"},{"$f":"Planning!B191","v":0},{"$f":"Planning!C191","v":0},{"$f":"Planning!D191","v":0},{"$f":"Planning!E191","v":0},{"$f":"IF(Planning!G191<>0,Planning!G191,\"\")","v":""},{"$f":"Planning!H191","v":0},{"$f":"Planning!AD191","v":0},{"$f":"IF(OR(W207=\"1\",AND(W207<>\"1\",G207=Lists!$A$17)),Y207,0)","v":0},null,{"$f":"IF(AND(W207=\"2\",G207<>Lists!$A$17),AA207,Z207)","v":""},"",{"$f":"Planning!AE191","v":{"v":0,"d":"0.00"}},{"$f":"'Month 7'!M207+'Month 7'!N207-'Month 7'!O207","v":{"v":0,"d":"0.00"}},null,"","",{"$f":"SUMIFS($J$25:$J$224,$C$25:$C$224,$C207,$G$25:$G$224,Lists!$A$16)","v":0},0,null,"",null,{"$f":"IF(C207=0,\"\",LEFT(INDEX(Lists!$H$5:$H$49,MATCH(C207,Lists!$G$5:$G$49,0),1),1))","v":""},null,{"$f":"'Month 7'!H207+'Month 7'!I207-'Month 7'!J207","v":0},"","",null,"0"]
[{"$f":"Planning!A192","v":"I184"},{"$f":"Planning!B192","v":0},{"$f":"Planning!C192","v":0},{"$f":"Planning!D192","v":0},{"$f":"Planning!E192","v":0},{"$f":"IF(Planning!G192<>0,Planning!G192,\"\")","v":""},{"$f":"Planning!H192","v":0},{"$f":"Planning!AD192","v":0},{"$f":"IF(OR(W208=\"1\",AND(W208<>\"1\",G208=Lists!$A$17)),Y208,0)","v":0},null,{"$f":"IF(AND(W208=\"2\",G208<>Lists!$A$17),AA208,Z208)","v":""},"",{"$f":"Planning!AE192","v":{"v":0,"d":"0.00"}},{"$f":"'Month 7'!M208+'Month 7'!N208-'Month 7'!O208","v":{"v":0,"d":"0.00"}},null,"","",{"$f":"SUMIFS($J$25:$J$224,$C$25:$C$224,$C208,$G$25:$G$224,Lists!$A$16)","v":0},0,null,"",null,{"$f":"IF(C208=0,\"\",LEFT(INDEX(Lists!$H$5:$H$49,MATCH(C208,Lists!$G$5:$G$49,0),1),1))","v":""},null,{"$f":"'Month 7'!H208+'Month 7'!I208-'Month 7'!J208","v":0},"","",null,"0"]
[{"$f":"Planning!A193","v":"I185"},{"$f":"Planning!B193","v":0},{"$f":"Planning!C193","v":0},{"$f":"Planning!D193","v":0},{"$f":"Planning!E193","v":0},{"$f":"IF(Planning!G193<>0,Planning!G193,\"\")","v":""},{"$f":"Planning!H193","v":0},{"$f":"Planning!AD193","v":0},{"$f":"IF(OR(W209=\"1\",AND(W209<>\"1\",G209=Lists!$A$17)),Y209,0)","v":0},null,{"$f":"IF(AND(W209=\"2\",G209<>Lists!$A$17),AA209,Z209)","v":""},"",{"$f":"Planning!AE193","v":{"v":0,"d":"0.00"}},{"$f":"'Month 7'!M209+'Month 7'!N209-'Month 7'!O209","v":{"v":0,"d":"0.00"}},null,"","",{"$f":"SUMIFS($J$25:$J$224,$C$25:$C$224,$C209,$G$25:$G$224,Lists!$A$16)","v":0},0,null,"",null,{"$f":"IF(C209=0,\"\",LEFT(INDEX(Lists!$H$5:$H$49,MATCH(C209,Lists!$G$5:$G$49,0),1),1))","v":""},null,{"$f":"'Month 7'!H209+'Month 7'!I209-'Month 7'!J209","v":0},"","",null,"0"]
[{"$f":"Planning!A194","v":"I186"},{"$f":"Planning!B194","v":0},{"$f":"Planning!C194","v":0},{"$f":"Planning!D194","v":0},{"$f":"Planning!E194","v":0},{"$f":"IF(Planning!G194<>0,Planning!G194,\"\")","v":""},{"$f":"Planning!H194","v":0},{"$f":"Planning!AD194","v":0},{"$f":"IF(OR(W210=\"1\",AND(W210<>\"1\",G210=Lists!$A$17)),Y210,0)","v":0},null,{"$f":"IF(AND(W210=\"2\",G210<>Lists!$A$17),AA210,Z210)","v":""},"",{"$f":"Planning!AE194","v":{"v":0,"d":"0.00"}},{"$f":"'Month 7'!M210+'Month 7'!N210-'Month 7'!O210","v":{"v":0,"d":"0.00"}},null,"","",{"$f":"SUMIFS($J$25:$J$224,$C$25:$C$224,$C210,$G$25:$G$224,Lists!$A$16)","v":0},0,null,"",null,{"$f":"IF(C210=0,\"\",LEFT(INDEX(Lists!$H$5:$H$49,MATCH(C210,Lists!$G$5:$G$49,0),1),1))","v":""},null,{"$f":"'Month 7'!H210+'Month 7'!I210-'Month 7'!J210","v":0},"","",null,"0"]
[{"$f":"Planning!A195","v":"I187"},{"$f":"Planning!B195","v":0},{"$f":"Planning!C195","v":0},{"$f":"Planning!D195","v":0},{"$f":"Planning!E195","v":0},{"$f":"IF(Planning!G195<>0,Planning!G195,\"\")","v":""},{"$f":"Planning!H195","v":0},{"$f":"Planning!AD195","v":0},{"$f":"IF(OR(W211=\"1\",AND(W211<>\"1\",G211=Lists!$A$17)),Y211,0)","v":0},null,{"$f":"IF(AND(W211=\"2\",G211<>Lists!$A$17),AA211,Z211)","v":""},"",{"$f":"Planning!AE195","v":{"v":0,"d":"0.00"}},{"$f":"'Month 7'!M211+'Month 7'!N211-'Month 7'!O211","v":{"v":0,"d":"0.00"}},null,"","",{"$f":"SUMIFS($J$25:$J$224,$C$25:$C$224,$C211,$G$25:$G$224,Lists!$A$16)","v":0},0,null,"",null,{"$f":"IF(C211=0,\"\",LEFT(INDEX(Lists!$H$5:$H$49,MATCH(C211,Lists!$G$5:$G$49,0),1),1))","v":""},null,{"$f":"'Month 7'!H211+'Month 7'!I211-'Month 7'!J211","v":0},"","",null,"0"]
[{"$f":"Planning!A196","v":"I188"},{"$f":"Planning!B196","v":0},{"$f":"Planning!C196","v":0},{"$f":"Planning!D196","v":0},{"$f":"Planning!E196","v":0},{"$f":"IF(Planning!G196<>0,Planning!G196,\"\")","v":""},{"$f":"Planning!H196","v":0},{"$f":"Planning!AD196","v":0},{"$f":"IF(OR(W212=\"1\",AND(W212<>\"1\",G212=Lists!$A$17)),Y212,0)","v":0},null,{"$f":"IF(AND(W212=\"2\",G212<>Lists!$A$17),AA212,Z212)","v":""},"",{"$f":"Planning!AE196","v":{"v":0,"d":"0.00"}},{"$f":"'Month 7'!M212+'Month 7'!N212-'Month 7'!O212","v":{"v":0,"d":"0.00"}},null,"","",{"$f":"SUMIFS($J$25:$J$224,$C$25:$C$224,$C212,$G$25:$G$224,Lists!$A$16)","v":0},0,null,"",null,{"$f":"IF(C212=0,\"\",LEFT(INDEX(Lists!$H$5:$H$49,MATCH(C212,Lists!$G$5:$G$49,0),1),1))","v":""},null,{"$f":"'Month 7'!H212+'Month 7'!I212-'Month 7'!J212","v":0},"","",null,"0"]
[{"$f":"Planning!A197","v":"I189"},{"$f":"Planning!B197","v":0},{"$f":"Planning!C197","v":0},{"$f":"Planning!D197","v":0},{"$f":"Planning!E197","v":0},{"$f":"IF(Planning!G197<>0,Planning!G197,\"\")","v":""},{"$f":"Planning!H197","v":0},{"$f":"Planning!AD197","v":0},{"$f":"IF(OR(W213=\"1\",AND(W213<>\"1\",G213=Lists!$A$17)),Y213,0)","v":0},null,{"$f":"IF(AND(W213=\"2\",G213<>Lists!$A$17),AA213,Z213)","v":""},"",{"$f":"Planning!AE197","v":{"v":0,"d":"0.00"}},{"$f":"'Month 7'!M213+'Month 7'!N213-'Month 7'!O213","v":{"v":0,"d":"0.00"}},null,"","",{"$f":"SUMIFS($J$25:$J$224,$C$25:$C$224,$C213,$G$25:$G$224,Lists!$A$16)","v":0},0,null,"",null,{"$f":"IF(C213=0,\"\",LEFT(INDEX(Lists!$H$5:$H$49,MATCH(C213,Lists!$G$5:$G$49,0),1),1))","v":""},null,{"$f":"'Month 7'!H213+'Month 7'!I213-'Month 7'!J213","v":0},"","",null,"0"]
[{"$f":"Planning!A198","v":"I190"},{"$f":"Planning!B198","v":0},{"$f":"Planning!C198","v":0},{"$f":"Planning!D198","v":0},{"$f":"Planning!E198","v":0},{"$f":"IF(Planning!G198<>0,Planning!G198,\"\")","v":""},{"$f":"Planning!H198","v":0},{"$f":"Planning!AD198","v":0},{"$f":"IF(OR(W214=\"1\",AND(W214<>\"1\",G214=Lists!$A$17)),Y214,0)","v":0},null,{"$f":"IF(AND(W214=\"2\",G214<>Lists!$A$17),AA214,Z214)","v":""},"",{"$f":"Planning!AE198","v":{"v":0,"d":"0.00"}},{"$f":"'Month 7'!M214+'Month 7'!N214-'Month 7'!O214","v":{"v":0,"d":"0.00"}},null,"","",{"$f":"SUMIFS($J$25:$J$224,$C$25:$C$224,$C214,$G$25:$G$224,Lists!$A$16)","v":0},0,null,"",null,{"$f":"IF(C214=0,\"\",LEFT(INDEX(Lists!$H$5:$H$49,MATCH(C214,Lists!$G$5:$G$49,0),1),1))","v":""},null,{"$f":"'Month 7'!H214+'Month 7'!I214-'Month 7'!J214","v":0},"","",null,"0"]
[{"$f":"Planning!A199","v":"I191"},{"$f":"Planning!B199","v":0},{"$f":"Planning!C199","v":0},{"$f":"Planning!D199","v":0},{"$f":"Planning!E199","v":0},{"$f":"IF(Planning!G199<>0,Planning!G199,\"\")","v":""},{"$f":"Planning!H199","v":0},{"$f":"Planning!AD199","v":0},{"$f":"IF(OR(W215=\"1\",AND(W215<>\"1\",G215=Lists!$A$17)),Y215,0)","v":0},null,{"$f":"IF(AND(W215=\"2\",G215<>Lists!$A$17),AA215,Z215)","v":""},"",{"$f":"Planning!AE199","v":{"v":0,"d":"0.00"}},{"$f":"'Month 7'!M215+'Month 7'!N215-'Month 7'!O215","v":{"v":0,"d":"0.00"}},null,"","",{"$f":"SUMIFS($J$25:$J$224,$C$25:$C$224,$C215,$G$25:$G$224,Lists!$A$16)","v":0},0,null,"",null,{"$f":"IF(C215=0,\"\",LEFT(INDEX(Lists!$H$5:$H$49,MATCH(C215,Lists!$G$5:$G$49,0),1),1))","v":""},null,{"$f":"'Month 7'!H215+'Month 7'!I215-'Month 7'!J215","v":0},"","",null,"0"]
[{"$f":"Planning!A200","v":"I192"},{"$f":"Planning!B200","v":0},{"$f":"Planning!C200","v":0},{"$f":"Planning!D200","v":0},{"$f":"Planning!E200","v":0},{"$f":"IF(Planning!G200<>0,Planning!G200,\"\")","v":""},{"$f":"Planning!H200","v":0},{"$f":"Planning!AD200","v":0},{"$f":"IF(OR(W216=\"1\",AND(W216<>\"1\",G216=Lists!$A$17)),Y216,0)","v":0},null,{"$f":"IF(AND(W216=\"2\",G216<>Lists!$A$17),AA216,Z216)","v":""},"",{"$f":"Planning!AE200","v":{"v":0,"d":"0.00"}},{"$f":"'Month 7'!M216+'Month 7'!N216-'Month 7'!O216","v":{"v":0,"d":"0.00"}},null,"","",{"$f":"SUMIFS($J$25:$J$224,$C$25:$C$224,$C216,$G$25:$G$224,Lists!$A$16)","v":0},0,null,"",null,{"$f":"IF(C216=0,\"\",LEFT(INDEX(Lists!$H$5:$H$49,MATCH(C216,Lists!$G$5:$G$49,0),1),1))","v":""},null,{"$f":"'Month 7'!H216+'Month 7'!I216-'Month 7'!J216","v":0},"","",null,"0"]
[{"$f":"Planning!A201","v":"I193"},{"$f":"Planning!B201","v":0},{"$f":"Planning!C201","v":0},{"$f":"Planning!D201","v":0},{"$f":"Planning!E201","v":0},{"$f":"IF(Planning!G201<>0,Planning!G201,\"\")","v":""},{"$f":"Planning!H201","v":0},{"$f":"Planning!AD201","v":0},{"$f":"IF(OR(W217=\"1\",AND(W217<>\"1\",G217=Lists!$A$17)),Y217,0)","v":0},null,{"$f":"IF(AND(W217=\"2\",G217<>Lists!$A$17),AA217,Z217)","v":""},{"$f":"IF($U217=ExcluirDelPLogro,\"\",IF(AND(H217=0,I217=0,J217=0),\"\",K217))","v":""},{"$f":"Planning!AE201","v":{"v":0,"d":"0.00"}},{"$f":"'Month 7'!M217+'Month 7'!N217-'Month 7'!O217","v":{"v":0,"d":"0.00"}},null,"",{"$f":"IF($U217=ExcluirDelPLogro,\"\",IF(AND(M217=0,N217=0,O217=0),\"\",P217))","v":""},{"$f":"SUMIFS($J$25:$J$224,$C$25:$C$224,$C217,$G$25:$G$224,Lists!$A$16)","v":0},0,null,"",null,{"$f":"IF(C217=0,\"\",LEFT(INDEX(Lists!$H$5:$H$49,MATCH(C217,Lists!$G$5:$G$49,0),1),1))","v":""},null,{"$f":"'Month 7'!H217+'Month 7'!I217-'Month 7'!J217","v":0},"",{"$f":"IF(AND(H217=0,I217=0,J217=0),\"\",IF(J217>0,H217/J217,0))","v":""},null,"0"]
[{"$f":"Planning!A202","v":"I194"},{"$f":"Planning!B202","v":0},{"$f":"Planning!C202","v":0},{"$f":"Planning!D202","v":0},{"$f":"Planning!E202","v":0},{"$f":"IF(Planning!G202<>0,Planning!G202,\"\")","v":""},{"$f":"Planning!H202","v":0},{"$f":"Planning!AD202","v":0},{"$f":"IF(OR(W218=\"1\",AND(W218<>\"1\",G218=Lists!$A$17)),Y218,0)","v":0},null,{"$f":"IF(AND(W218=\"2\",G218<>Lists!$A$17),AA218,Z218)","v":""},"",{"$f":"Planning!AE202","v":{"v":0,"d":"0.00"}},{"$f":"'Month 7'!M218+'Month 7'!N218-'Month 7'!O218","v":{"v":0,"d":"0.00"}},null,{"$f":"IF(AND(M218=0,N218=0,O218=0),\"\",IF((M218+N218)>0,O218/(M218+N218),O218))","v":""},"",{"$f":"SUMIFS($J$25:$J$224,$C$25:$C$224,$C218,$G$25:$G$224,Lists!$A$16)","v":0},{"$f":"SUMIFS($O$25:$O$224,$C$25:$C$224,$C218,$G$25:$G$224,\"<>0\")","v":0},null,{"$f":"IF(B218=0,\"\",IF(LEFT(B218,1)=\"1\",\"1\",\"2\"))","v":""},null,{"$f":"IF(C218=0,\"\",LEFT(INDEX(Lists!$H$5:$H$49,MATCH(C218,Lists!$G$5:$G$49,0),1),1))","v":""},null,{"$f":"'Month 7'!H218+'Month 7'!I218-'Month 7'!J218","v":0},{"$f":"IF(AND(H218=0,I218=0,J218=0),\"\",IF((H218+I218)>0,J218/(H218+I218),J218))","v":""},"",null,{"$f":"U218&C218","v":"0"}]
[{"$f":"Planning!A203","v":"I195"},{"$f":"Planning!B203","v":0},{"$f":"Planning!C203","v":0},{"$f":"Planning!D203","v":0},{"$f":"Planning!E203","v":0},{"$f":"IF(Planning!G203<>0,Planning!G203,\"\")","v":""},{"$f":"Planning!H203","v":0},{"$f":"Planning!AD203","v":0},{"$f":"IF(OR(W219=\"1\",AND(W219<>\"1\",G219=Lists!$A$17)),Y219,0)","v":0},null,{"$f":"IF(AND(W219=\"2\",G219<>Lists!$A$17),AA219,Z219)","v":""},"",{"$f":"Planning!AE203","v":{"v":0,"d":"0.00"}},{"$f":"'Month 7'!M219+'Month 7'!N219-'Month 7'!O219","v":{"v":0,"d":"0.00"}},null,"","",{"$f":"SUMIFS($J$25:$J$224,$C$25:$C$224,$C219,$G$25:$G$224,Lists!$A$16)","v":0},0,null,"",null,{"$f":"IF(C219=0,\"\",LEFT(INDEX(Lists!$H$5:$H$49,MATCH(C219,Lists!$G$5:$G$49,0),1),1))","v":""},null,{"$f":"'Month 7'!H219+'Month 7'!I219-'Month 7'!J219","v":0},"","",null,"0"]
[{"$f":"Planning!A204","v":"I196"},{"$f":"Planning!B204","v":0},{"$f":"Planning!C204","v":0},{"$f":"Planning!D204","v":0},{"$f":"Planning!E204","v":0},{"$f":"IF(Planning!G204<>0,Planning!G204,\"\")","v":""},{"$f":"Planning!H204","v":0},{"$f":"Planning!AD204","v":0},{"$f":"IF(OR(W220=\"1\",AND(W220<>\"1\",G220=Lists!$A$17)),Y220,0)","v":0},null,{"$f":"IF(AND(W220=\"2\",G220<>Lists!$A$17),AA220,Z220)","v":""},"",{"$f":"Planning!AE204","v":{"v":0,"d":"0.00"}},{"$f":"'Month 7'!M220+'Month 7'!N220-'Month 7'!O220","v":{"v":0,"d":"0.00"}},null,"","",{"$f":"SUMIFS($J$25:$J$224,$C$25:$C$224,$C220,$G$25:$G$224,Lists!$A$16)","v":0},0,null,"",null,{"$f":"IF(C220=0,\"\",LEFT(INDEX(Lists!$H$5:$H$49,MATCH(C220,Lists!$G$5:$G$49,0),1),1))","v":""},null,{"$f":"'Month 7'!H220+'Month 7'!I220-'Month 7'!J220","v":0},"","",null,"0"]
[{"$f":"Planning!A205","v":"I197"},{"$f":"Planning!B205","v":0},{"$f":"Planning!C205","v":0},{"$f":"Planning!D205","v":0},{"$f":"Planning!E205","v":0},{"$f":"IF(Planning!G205<>0,Planning!G205,\"\")","v":""},{"$f":"Planning!H205","v":0},{"$f":"Planning!AD205","v":0},{"$f":"IF(OR(W221=\"1\",AND(W221<>\"1\",G221=Lists!$A$17)),Y221,0)","v":0},null,{"$f":"IF(AND(W221=\"2\",G221<>Lists!$A$17),AA221,Z221)","v":""},"",{"$f":"Planning!AE205","v":{"v":0,"d":"0.00"}},{"$f":"'Month 7'!M221+'Month 7'!N221-'Month 7'!O221","v":{"v":0,"d":"0.00"}},null,"","",{"$f":"SUMIFS($J$25:$J$224,$C$25:$C$224,$C221,$G$25:$G$224,Lists!$A$16)","v":0},0,null,"",null,{"$f":"IF(C221=0,\"\",LEFT(INDEX(Lists!$H$5:$H$49,MATCH(C221,Lists!$G$5:$G$49,0),1),1))","v":""},null,{"$f":"'Month 7'!H221+'Month 7'!I221-'Month 7'!J221","v":0},"","",null,"0"]
[{"$f":"Planning!A206","v":"I198"},{"$f":"Planning!B206","v":0},{"$f":"Planning!C206","v":0},{"$f":"Planning!D206","v":0},{"$f":"Planning!E206","v":0},{"$f":"IF(Planning!G206<>0,Planning!G206,\"\")","v":""},{"$f":"Planning!H206","v":0},{"$f":"Planning!AD206","v":0},{"$f":"IF(OR(W222=\"1\",AND(W222<>\"1\",G222=Lists!$A$17)),Y222,0)","v":0},null,{"$f":"IF(AND(W222=\"2\",G222<>Lists!$A$17),AA222,Z222)","v":""},"",{"$f":"Planning!AE206","v":{"v":0,"d":"0.00"}},{"$f":"'Month 7'!M222+'Month 7'!N222-'Month 7'!O222","v":{"v":0,"d":"0.00"}},null,"","",{"$f":"SUMIFS($J$25:$J$224,$C$25:$C$224,$C222,$G$25:$G$224,Lists!$A$16)","v":0},0,null,"",null,{"$f":"IF(C222=0,\"\",LEFT(INDEX(Lists!$H$5:$H$49,MATCH(C222,Lists!$G$5:$G$49,0),1),1))","v":""},null,{"$f":"'Month 7'!H222+'Month 7'!I222-'Month 7'!J222","v":0},"","",null,"0"]
[{"$f":"Planning!A207","v":"I199"},{"$f":"Planning!B207","v":0},{"$f":"Planning!C207","v":0},{"$f":"Planning!D207","v":0},{"$f":"Planning!E207","v":0},{"$f":"IF(Planning!G207<>0,Planning!G207,\"\")","v":""},{"$f":"Planning!H207","v":0},{"$f":"Planning!AD207","v":0},{"$f":"IF(OR(W223=\"1\",AND(W223<>\"1\",G223=Lists!$A$17)),Y223,0)","v":0},null,{"$f":"IF(AND(W223=\"2\",G223<>Lists!$A$17),AA223,Z223)","v":""},"",{"$f":"Planning!AE207","v":{"v":0,"d":"0.00"}},{"$f":"'Month 7'!M223+'Month 7'!N223-'Month 7'!O223","v":{"v":0,"d":"0.00"}},null,"","",{"$f":"SUMIFS($J$25:$J$224,$C$25:$C$224,$C223,$G$25:$G$224,Lists!$A$16)","v":0},0,null,"",null,{"$f":"IF(C223=0,\"\",LEFT(INDEX(Lists!$H$5:$H$49,MATCH(C223,Lists!$G$5:$G$49,0),1),1))","v":""},null,{"$f":"'Month 7'!H223+'Month 7'!I223-'Month 7'!J223","v":0},"","",null,"0"]
[{"$f":"Planning!A208","v":"I200"},{"$f":"Planning!B208","v":0},{"$f":"Planning!C208","v":0},{"$f":"Planning!D208","v":0},{"$f":"Planning!E208","v":0},{"$f":"IF(Planning!G208<>0,Planning!G208,\"\")","v":""},{"$f":"Planning!H208","v":0},{"$f":"Planning!AD208","v":0},{"$f":"IF(OR(W224=\"1\",AND(W224<>\"1\",G224=Lists!$A$17)),Y224,0)","v":0},null,{"$f":"IF(AND(W224=\"2\",G224<>Lists!$A$17),AA224,Z224)","v":""},"",{"$f":"Planning!AE208","v":{"v":0,"d":"0.00"}},{"$f":"'Month 7'!M224+'Month 7'!N224-'Month 7'!O224","v":{"v":0,"d":"0.00"}},null,"","",{"$f":"SUMIFS($J$25:$J$224,$C$25:$C$224,$C224,$G$25:$G$224,Lists!$A$16)","v":0},0,null,"",null,{"$f":"IF(C224=0,\"\",LEFT(INDEX(Lists!$H$5:$H$49,MATCH(C224,Lists!$G$5:$G$49,0),1),1))","v":""},null,{"$f":"'Month 7'!H224+'Month 7'!I224-'Month 7'!J224","v":0},"","",null,"0"]
[{"$nulls":20},".",null,".",null,".",".",".",null,"."]
[]
[{"$f":"Setup!AN6","v":"PR Dashboard indicators"}]
[{"$f":"Setup!AP8","v":"Financial reports planned"}]
[{"$f":"Setup!AP9","v":"Financial reports overdue"}]
[{"$f":"Setup!AP10","v":0}]
[{"$f":"Setup!AP11","v":0}]
[{"$f":"Setup!AP12","v":0}]
[{"$f":"Setup!AP13","v":0}]
[{"$f":"Setup!AP14","v":0}]
[{"$f":"Setup!AP15","v":"Supervision actions recommended"}]
[{"$f":"Setup!AP16","v":"Supervision recommendations past due"}]
[{"$f":"Setup!AP17","v":"Programmatic reports planned"}]
[{"$f":"Setup!AP18","v":"Programmatic reports past due"}]
[{"$f":"Setup!AP19","v":0}]
[{"$f":"Setup!AP20","v":0}]
[{"$f":"Setup!AP21","v":0}]
[{"$f":"Setup!AP22","v":0}]
[{"$f":"Setup!AP23","v":0}]
[{"$f":"Setup!AP24","v":0}]
[{"$f":"Setup!AP25","v":0}]
[{"$f":"Setup!AP26","v":0}]
[{"$f":"Setup!AP27","v":0}]
[{"$f":"Setup!AP28","v":0}]
[{"$f":"Setup!AP29","v":0}]
[{"$f":"Setup!AP30","v":0}]
[{"$f":"Setup!AP31","v":0}]
[{"$f":"Setup!AP32","v":0}]
[{"$f":"Setup!AP33","v":0}]
[{"$f":"Setup!AP34","v":0}]
[{"$f":"Setup!AP35","v":0}]
[{"$f":"Setup!AP36","v":0}]
[{"$f":"Setup!AP37","v":0}]
[{"$f":"Setup!AP38","v":0}]
[{"$f":"Setup!AP39","v":"Actual stock level - PS39 - Product 1: Efavirenz, 600 mg, 30 tablets"}]
[{"$f":"Setup!AP40","v":"Actual stock level - PS40 - Product 2: Efavirenz, 200 mg, 90 capsules"}]
[{"$f":"Setup!AP41","v":"Actual stock level - PS41 - Product 3: TDF/3TC, 300/300 mg, 30 tablets"}]
[{"$f":"Setup!AP42","v":"Actual stock level - PS42 - Product 4: 3TC, 10 mg/ml, oral solution 240 ml"}]
[{"$f":"Setup!AP43","v":0}]
[{"$f":"Setup!AP44","v":0}]
[{"$f":"Setup!AP45","v":0}]
[{"$f":"Setup!AP46","v":0}]
[{"$f":"Setup!AP47","v":0}]
[{"$f":"Setup!AP48","v":0}]
[{"$f":"Setup!AP49","v":0}]
[{"$f":"Setup!AP50","v":0}]
[{"$f":"Setup!AP51","v":0}]
[{"$f":"Setup!AP52","v":0}]
[{"$f":"Setup!AP53","v":0}]
[{"$f":"Setup!AP54","v":0}]
[{"$f":"Setup!AP55","v":0}]
[{"$f":"Setup!AP56","v":0}]
[{"$f":"Setup!AP57","v":0}]
[{"$f":"Setup!AP58","v":0}]
[{"$f":"Setup!AP59","v":0}]
[{"$f":"Setup!AP60","v":0}]
[{"$f":"Setup!AP61","v":0}]
[{"$f":"Setup!AP62","v":0}]
[{"$f":"Setup!AP63","v":0}]
[{"$f":"Setup!AP64","v":0}]
[{"$f":"Setup!AP65","v":0}]
[{"$f":"Setup!AP66","v":0}]
[{"$f":"Setup!AP67","v":0}]
[{"$f":"Setup!AP68","v":0}]
[{"$f":"Setup!AP69","v":0}]
[]
[]
[{"$f":"Translations!A138","v":"Narrative comments from results (to be filled by the Subrecipient)"}]
{"$rows_empty":43}
[{"$f":"Translations!A139","v":"This section is filled in exclusively by PR's programmatic and financial monitors."}]
[]
[{"$f":"Translations!A150","v":"PROGRAMMATIC"},null,null,{"$f":"Translations!A140","v":"Name of person conducting programmatic verification"}]
[]
[]
[{"$nulls":3},{"$f":"Translations!A141","v":"Contextual details"}]
[]
[]
[]
[]
[]
[]
[{"$nulls":3},{"$f":"Translations!A151","v":"Description of identified problem(s)"}]
[]
[]
[]
[]
[]
[]
[{"$nulls":3},{"$f":"Translations!A152","v":"Recommendations and actions to be taken"}]
[{"$nulls":3},"1)"]
[{"$nulls":3},"2)"]
[{"$nulls":3},"3)"]
[{"$nulls":3},"4)"]
[{"$nulls":3},"5)"]
[]
[]
[]
[{"$f":"Translations!A154","v":"FINANCIAL"},null,null,{"$f":"Translations!A153","v":"Name of person conducting financial verification"}]
[]
[]
[{"$nulls":3},{"$f":"Translations!A141","v":"Contextual details"}]
{"$rows_empty":7}
[{"$nulls":3},{"$f":"Translations!A151","v":"Description of identified problem(s)"}]
[]
[]
[]
[]
[]
[]
[{"$nulls":3},{"$f":"Translations!A152","v":"Recommendations and actions to be taken"}]
[{"$nulls":3},"1)"]
[{"$nulls":3},"2)"]
[{"$nulls":3},"3)"]
[{"$nulls":3},"4)"]
[{"$nulls":3},"5)"]
[]
[]
[]
[]
[]
[{"$f":"Translations!A321","v":"To be completed by the PR"},{"$nulls":6},{"$f":"Translations!A324","v":"To be completed by the SR"}]
[{"$f":"Translations!A322","v":"Position"},{"$nulls":3},{"$f":"Translations!A323","v":"Signature"},null,null,{"$f":"Translations!A322","v":"Position"},null,{"$f":"Translations!A323","v":"Signature"}]

{"sheet":"Month 9","index":20,"n_rows":394,"n_cols":29,"rows_kept":394,"hidden":true,"merged":[[1,4,1,13],[1,14,1,15],[2,4,2,13],[2,14,3,15],[3,4,3,13],[4,4,4,13],[4,22,16,26],[5,9,5,15],[6,0,15,7],[6,9,7,15],[9,9,9,10],[9,12,9,15],[10,9,11,10],[10,12,11,15],[13,9,15,13],[13,14,13,15],[14,14,15,15],[16,6,16,7],[17,3,17,4],[17,7,17,8],[17,9,17,10],[17,12,17,13],[17,14,17,15],[18,7,18,10],[18,12,18,15],[18,24,18,26],[19,0,20,0],[19,1,20,1],[19,2,20,2],[19,3,20,3],[19,4,20,4],[19,5,20,5],[19,7,20,7],[19,8,20,8],[19,9,20,9],[19,10,20,10],[19,12,20,12],[19,13,20,13],[19,14,20,14],[19,15,20,15],[19,17,19,18],[19,20,20,20],[19,22,20,22],[19,24,20,24],[19,25,20,25],[19,26,20,26],[19,28,20,28],[226,0,226,7],[227,0,227,6],[228,0,228,6],[229,0,229,6],[230,0,230,6],[231,0,231,6],[232,0,232,6],[233,0,233,6],[234,0,234,6],[235,0,235,6],[236,0,236,6],[237,0,237,6],[238,0,238,6],[239,0,239,6],[240,0,240,6],[241,0,241,6],[242,0,242,6],[243,0,243,6],[244,0,244,6],[245,0,245,6],[246,0,246,6],[247,0,247,6],[248,0,248,6],[249,0,249,6],[250,0,250,6],[251,0,251,6],[252,0,252,6],[253,0,253,6],[254,0,254,6],[255,0,255,6],[256,0,256,6],[257,0,257,6],[258,0,258,6],[259,0,259,6],[260,0,260,6],[261,0,261,6],[262,0,262,6],[263,0,263,6],[264,0,264,6],[265,0,265,6],[266,0,266,6],[267,0,267,6],[268,0,268,6],[269,0,269,6],[270,0,270,6],[271,0,271,6],[272,0,272,6],[273,0,273,6],[274,0,274,6],[275,0,275,6],[276,0,276,6],[277,0,277,6],[278,0,278,6],[279,0,279,6],[280,0,280,6],[281,0,281,6],[282,0,282,6],[283,0,283,6],[284,0,284,6],[285,0,285,6],[286,0,286,6],[287,0,287,6],[288,0,288,6],[291,0,291,15],[292,0,333,15],[335,0,335,15],[337,0,360,0],[337,14,337,15],[338,3,338,4],[338,14,338,15],[341,3,345,15],[348,3,352,15],[355,3,355,15],[356,3,356,15],[357,3,357,15],[358,3,358,15],[359,3,359,15],[363,0,387,0],[363,14,363,15],[364,3,364,4],[364,14,364,15],[367,3,371,15],[375,3,379,15],[382,3,382,15],[383,3,383,15],[384,3,384,15],[385,3,385,15],[386,3,386,15],[392,0,392,4],[392,7,392,12],[393,0,393,3],[393,7,393,8],[393,9,393,12],[394,0,394,3],[394,7,394,8],[394,9,394,12],[395,0,395,3],[395,7,395,8],[395,9,395,12],[396,0,396,3],[396,7,396,8],[396,9,396,12],[397,0,397,3],[397,7,397,8],[397,9,397,12]]}
[]
["Month 9",{"$nulls":3},{"$f":"Translations!A80","v":"SR Management Tool"},{"$nulls":9},{"$f":"Translations!A129","v":"SCORE"}]
[{"$nulls":4},{"$f":"Setup!H11","v":"Direct Gender Partnership (DGP)"},{"$nulls":9},{"$f":"K23","v":{"v":0,"d":"0.00%"}}]
[{"$nulls":4},{"$f":" Setup!H14 & \"  (\" & Setup!H13 & \")\" & \"  (\" & Setup!H15 & \")\"","v":"DMR-202-G01-H-00  (January  2016 - December 2016)  (HIV / AIDS)"}]
[{"$nulls":4},{"$f":"Setup!AB16 & \"  (\" & Setup!H16 & \")\"","v":"September  ($ - USD)"},{"$nulls":17},"A. Se colocará lo pendiente (Y) en (I) siempre que (W) sea 1. Estandar o que (W) sea diferente de 1. sin embargo la actividad (G) NO contribuya al indicador.\n\nB. En la columna % Logro (K) se colocará siempre el Logro 1. Estandar (Z). Solamente se colocará el Logro 2. Inverso (AA) cuando (W) sea 2 y (G) sea diferente de 2. NO... es decir, el valor inverso va para las actvividades que contribuyan al indicador G = 1. SI y para el Indicador en si G = 0... por eso se pregunta por G diferente de 2. NO.. para incluir los 1. SI y a los 0\n\n"]
[{"$f":"Setup!G19","v":"Details of programatic indicators"},{"$nulls":8},{"$f":"Setup!G17","v":"Key population"}]
[{"$f":"Setup!H19","v":"# PLHIV that initiated ARV with CD4 count <200\n# new HIV+ enrolled in care services \n# aged 10-24 yrs reached by HIV life skills ed. in school "},{"$nulls":8},{"$f":"Setup!H17","v":"Sex Workers - Migrants - Women"}]
[]
[]
[{"$nulls":9},{"$f":"Translations!A119","v":"Report date"},null,null,{"$f":"Translations!A130","v":"Reported by"}]
[]
[]
[]
[{"$nulls":9},{"$f":"Translations!A132","v":"Note: Enter disubursment ammount here if the PR made a disbursment this month. Leave blank if no disbursment was made."},{"$nulls":4},{"$f":"Translations!A131","v":"Disbursement"}]
[]
[]
[]
[{"$nulls":3},{"$f":"Translations!A233","v":"Input data in spaces with this color"},{"$nulls":3},{"$f":"Translations!A120","v":"Date of verification"},{"$nulls":4},{"$f":"Translations!A120","v":"Date of verification"}]
[{"$nulls":7},{"$f":"Translations!A133","v":"Programmatic aspects"},{"$nulls":4},{"$f":"Translations!A134","v":"Financial aspects"},{"$nulls":9},"COMPORTAMIENTO",null,"Sólo en el Aspecto Programático"]
[{"$f":"Translations!A88","v":"Item"},"Tipo de Ítem","ID Enlace",{"$f":"Translations!A91","v":"Activity code"},{"$f":"Translations!A92","v":"Indicator / Activity"},{"$f":"Translations!A79","v":"TGF costs groups"},null,{"$f":"Translations!A135","v":"Monthly target"},{"$f":"Translations!A136","v":"Balance from previous period"},{"$f":"Translations!A137","v":"Results "},{"$f":"Translations!A108","v":"Result %"},null,{"$f":"Translations!$A$360","v":"Monthly budget"},{"$f":"Translations!A136","v":"Balance from previous period"},{"$f":"Translations!$A$361","v":"Monthly expenditure"},{"$f":"Translations!A108","v":"Result %"},null,"Sumatorias Indicadores",null,null,"Indicador =1 Actividad = 2",null,"1. Estandar\n2. Inverso\n3. No Acumula",null,"Pendiente Mes Anterior\n SIN CONDICION","Logro\n1. Estandar","Logro\n2. Inverso",null,"TAG \nPerformance"]
[{"$nulls":17},"PROG","FIN"]
[]
[{"$f":"Translations!A109","v":"Totals"},{"$nulls":6},"-","-","-",{"$f":"IFERROR(AVERAGEIF(L25:L224,\"<> \"),\"\")","v":{"v":0,"d":"0.00%"}},null,{"$f":"SUMIFS(M25:M224,$G$25:$G$224,\"<>0\")","v":{"v":0,"d":"0.00"}},{"$f":"SUMIFS(N25:N224,$G$25:$G$224,\"<>0\")","v":{"v":7250,"d":"7,250.00"}},{"$f":"SUMIFS(O25:O224,$G$25:$G$224,\"<>0\")","v":{"v":0,"d":"0.00"}},{"$f":"IFERROR(AVERAGEIF(Q25:Q224,\"<> \"),\"\")","v":{"v":0,"d":"0.00%"}}]
[]
[{"$f":"Planning!A9","v":"I001"},{"$f":"Planning!B9","v":"1. Indicator"},{"$f":"Planning!C9","v":"Pr68"},{"$f":"Planning!D9","v":1},{"$f":"Planning!E9","v":"[Pr68] # PLHIV that initiated ARV with CD4 count <200 Target [2. Inverse]"},{"$f":"IF(Planning!G9<>0,Planning!G9,\"\")","v":""},{"$f":"Planning!H9","v":0},{"$f":"Planning!AG9","v":0},{"$f":"IF(OR(W25=\"1\",AND(W25<>\"1\",G25=Lists!$A$17)),Y25,0)","v":0},{"$f":"R25","v":0},{"$f":"IF(AND(W25=\"2\",G25<>Lists!$A$17),AA25,Z25)","v":""},{"$f":"IF($U25=ExcluirDelPLogro,\"\",IF(AND(H25=0,I25=0,J25=0),\"\",K25))","v":""},{"$f":"Planning!AH9","v":{"v":0,"d":"0.00"}},{"$f":"'Month 8'!M25+'Month 8'!N25-'Month 8'!O25","v":{"v":0,"d":"0.00"}},{"$f":"S25","v":{"v":0,"d":"0.00"}},{"$f":"IF(AND(M25=0,N25=0,O25=0),\"\",IF((M25+N25)>0,O25/(M25+N25),O25))","v":""},{"$f":"IF($U25=ExcluirDelPLogro,\"\",IF(AND(M25=0,N25=0,O25=0),\"\",P25))","v":""},{"$f":"SUMIFS($J$25:$J$224,$C$25:$C$224,$C25,$G$25:$G$224,Lists!$A$16)","v":0},{"$f":"SUMIFS($O$25:$O$224,$C$25:$C$224,$C25,$G$25:$G$224,\"<>0\")","v":0},null,{"$f":"IF(B25=0,\"\",IF(LEFT(B25,1)=\"1\",\"1\",\"2\"))","v":"1"},null,{"$f":"IF(C25=0,\"\",LEFT(INDEX(Lists!$H$5:$H$49,MATCH(C25,Lists!$G$5:$G$49,0),1),1))","v":"2"},null,{"$f":"'Month 8'!H25+'Month 8'!I25-'Month 8'!J25","v":0},{"$f":"IF(AND(H25=0,I25=0,J25=0),\"\",IF((H25+I25)>0,J25/(H25+I25),J25))","v":""},{"$f":"IF(AND(H25=0,I25=0,J25=0),\"\",IF(J25>0,H25/J25,0))","v":""},null,{"$f":"U25&C25","v":"1Pr68"}]
[{"$f":"Planning!A10","v":"I002"},{"$f":"Planning!B10","v":"2. Activity: Contributing"},{"$f":"Planning!C10","v":"Pr68"},{"$f":"Planning!D10","v":1.2},{"$f":"Planning!E10","v":"PLHIV reimbursed for transportation costs to HIV testing and treatment centres\n"},{"$f":"IF(Planning!G10<>0,Planning!G10,\"\")","v":"12. Living support to client/ target population "},{"$f":"Planning!H10","v":"1. YES"},{"$f":"Planning!AG10","v":0},{"$f":"IF(OR(W26=\"1\",AND(W26<>\"1\",G26=Lists!$A$17)),Y26,0)","v":0},0,{"$f":"IF(AND(W26=\"2\",G26<>Lists!$A$17),AA26,Z26)","v":""},"",{"$f":"Planning!AH10","v":{"v":0,"d":"0.00"}},{"$f":"'Month 8'!M26+'Month 8'!N26-'Month 8'!O26","v":{"v":0,"d":"0.00"}},{"v":0,"d":"0.00"},"","",{"$f":"SUMIFS($J$25:$J$224,$C$25:$C$224,$C26,$G$25:$G$224,Lists!$A$16)","v":0},{"$f":"SUMIFS($O$25:$O$224,$C$25:$C$224,$C26,$G$25:$G$224,\"<>0\")","v":0},null,{"$f":"IF(B26=0,\"\",IF(LEFT(B26,1)=\"1\",\"1\",\"2\"))","v":"2"},null,{"$f":"IF(C26=0,\"\",LEFT(INDEX(Lists!$H$5:$H$49,MATCH(C26,Lists!$G$5:$G$49,0),1),1))","v":"2"},null,{"$f":"'Month 8'!H26+'Month 8'!I26-'Month 8'!J26","v":0},{"$f":"IF(AND(H26=0,I26=0,J26=0),\"\",IF((H26+I26)>0,J26/(H26+I26),J26))","v":""},"",null,{"$f":"U26&C26","v":"2Pr68"}]
[{"$f":"Planning!A11","v":"I003"},{"$f":"Planning!B11","v":"3. Activity: Non-Contributing"},{"$f":"Planning!C11","v":"Pr68"},{"$f":"Planning!D11","v":1.3},{"$f":"Planning!E11","v":"Communication materials produced to educate HIV+ patients about HIV treatment (Migrants and Sexual Workers). \n\n"},{"$f":"IF(Planning!G11<>0,Planning!G11,\"\")","v":"10. Communication material and publications"},{"$f":"Planning!H11","v":"2. NO"},{"$f":"Planning!AG11","v":0},{"$f":"IF(OR(W27=\"1\",AND(W27<>\"1\",G27=Lists!$A$17)),Y27,0)","v":1},0,{"$f":"IF(AND(W27=\"2\",G27<>Lists!$A$17),AA27,Z27)","v":{"v":0,"d":"0.00%"}},"",{"$f":"Planning!AH11","v":{"v":0,"d":"0.00"}},{"$f":"'Month 8'!M27+'Month 8'!N27-'Month 8'!O27","v":{"v":0,"d":"0.00"}},{"v":0,"d":"0.00"},"","",{"$f":"SUMIFS($J$25:$J$224,$C$25:$C$224,$C27,$G$25:$G$224,Lists!$A$16)","v":0},0,null,"2",null,{"$f":"IF(C27=0,\"\",LEFT(INDEX(Lists!$H$5:$H$49,MATCH(C27,Lists!$G$5:$G$49,0),1),1))","v":"2"},null,{"$f":"'Month 8'!H27+'Month 8'!I27-'Month 8'!J27","v":1},0,0,null,"2Pr68"]
[{"$f":"Planning!A12","v":"I004"},{"$f":"Planning!B12","v":"3. Activity: Non-Contributing"},{"$f":"Planning!C12","v":"Pr68"},{"$f":"Planning!D12","v":1.4},{"$f":"Planning!E12","v":"Supervisory visits to verify the appropriate application of testing and treatment protocols at centers. "},{"$f":"IF(Planning!G12<>0,Planning!G12,\"\")","v":"11. Programme administration costs"},{"$f":"Planning!H12","v":"2. NO"},{"$f":"Planning!AG12","v":0},{"$f":"IF(OR(W28=\"1\",AND(W28<>\"1\",G28=Lists!$A$17)),Y28,0)","v":0},0,{"$f":"IF(AND(W28=\"2\",G28<>Lists!$A$17),AA28,Z28)","v":""},"",{"$f":"Planning!AH12","v":{"v":0,"d":"0.00"}},{"$f":"'Month 8'!M28+'Month 8'!N28-'Month 8'!O28","v":{"v":0,"d":"0.00"}},{"v":0,"d":"0.00"},"","",{"$f":"SUMIFS($J$25:$J$224,$C$25:$C$224,$C28,$G$25:$G$224,Lists!$A$16)","v":0},0,null,"2",null,{"$f":"IF(C28=0,\"\",LEFT(INDEX(Lists!$H$5:$H$49,MATCH(C28,Lists!$G$5:$G$49,0),1),1))","v":"2"},null,{"$f":"'Month 8'!H28+'Month 8'!I28-'Month 8'!J28","v":0},"","",null,"2Pr68"]
[{"$f":"Planning!A13","v":"I005"},{"$f":"Planning!B13","v":"1. Indicator"},{"$f":"Planning!C13","v":"Pr72"},{"$f":"Planning!D13","v":2},{"$f":"Planning!E13","v":"[Pr72] # new HIV+ enrolled in care services Target [3. Non-Cumulative]"},{"$f":"IF(Planning!G13<>0,Planning!G13,\"\")","v":""},{"$f":"Planning!H13","v":0},{"$f":"Planning!AG13","v":0},{"$f":"IF(OR(W29=\"1\",AND(W29<>\"1\",G29=Lists!$A$17)),Y29,0)","v":0},{"$f":"R29","v":0},{"$f":"IF(AND(W29=\"2\",G29<>Lists!$A$17),AA29,Z29)","v":""},"",{"$f":"Planning!AH13","v":{"v":0,"d":"0.00"}},{"$f":"'Month 8'!M29+'Month 8'!N29-'Month 8'!O29","v":{"v":0,"d":"0.00"}},{"$f":"S29","v":{"v":0,"d":"0.00"}},"","",{"$f":"SUMIFS($J$25:$J$224,$C$25:$C$224,$C29,$G$25:$G$224,Lists!$A$16)","v":0},0,null,"1",null,{"$f":"IF(C29=0,\"\",LEFT(INDEX(Lists!$H$5:$H$49,MATCH(C29,Lists!$G$5:$G$49,0),1),1))","v":"3"},null,{"$f":"'Month 8'!H29+'Month 8'!I29-'Month 8'!J29","v":0},"","",null,"1Pr72"]
[{"$f":"Planning!A14","v":"I006"},{"$f":"Planning!B14","v":"2. Activity: Contributing"},{"$f":"Planning!C14","v":"Pr72"},{"$f":"Planning!D14","v":2.1},{"$f":"Planning!E14","v":"Enrollment of  newly diagnosed HIV+ patients for home visits to monitor use of ARV."},{"$f":"IF(Planning!G14<>0,Planning!G14,\"\")","v":"12. Living support to client/ target population "},{"$f":"Planning!H14","v":"1. YES"},{"$f":"Planning!AG14","v":0},{"$f":"IF(OR(W30=\"1\",AND(W30<>\"1\",G30=Lists!$A$17)),Y30,0)","v":0},0,{"$f":"IF(AND(W30=\"2\",G30<>Lists!$A$17),AA30,Z30)","v":""},"",{"$f":"Planning!AH14","v":{"v":0,"d":"0.00"}},{"$f":"'Month 8'!M30+'Month 8'!N30-'Month 8'!O30","v":{"v":0,"d":"0.00"}},{"v":0,"d":"0.00"},"","",{"$f":"SUMIFS($J$25:$J$224,$C$25:$C$224,$C30,$G$25:$G$224,Lists!$A$16)","v":0},0,null,"2",null,{"$f":"IF(C30=0,\"\",LEFT(INDEX(Lists!$H$5:$H$49,MATCH(C30,Lists!$G$5:$G$49,0),1),1))","v":"3"},null,{"$f":"'Month 8'!H30+'Month 8'!I30-'Month 8'!J30","v":0},"","",null,"2Pr72"]
[{"$f":"Planning!A15","v":"I007"},{"$f":"Planning!B15","v":"1. Indicator"},{"$f":"Planning!C15","v":"Pr74"},{"$f":"Planning!D15","v":3},{"$f":"Planning!E15","v":"[Pr74] # aged 10-24 yrs reached by HIV life skills ed. in school  Target [1. Standard]"},{"$f":"IF(Planning!G15<>0,Planning!G15,\"\")","v":""},{"$f":"Planning!H15","v":0},{"$f":"Planning!AG15","v":0},{"$f":"IF(OR(W31=\"1\",AND(W31<>\"1\",G31=Lists!$A$17)),Y31,0)","v":30},{"$f":"R31","v":0},{"$f":"IF(AND(W31=\"2\",G31<>Lists!$A$17),AA31,Z31)","v":{"v":0,"d":"0.00%"}},0,{"$f":"Planning!AH15","v":{"v":0,"d":"0.00"}},{"$f":"'Month 8'!M31+'Month 8'!N31-'Month 8'!O31","v":{"v":6250,"d":"6,250.00"}},{"$f":"S31","v":{"v":0,"d":"0.00"}},{"v":0,"d":"0.00%"},0,{"$f":"SUMIFS($J$25:$J$224,$C$25:$C$224,$C31,$G$25:$G$224,Lists!$A$16)","v":0},0,null,"1",null,{"$f":"IF(C31=0,\"\",LEFT(INDEX(Lists!$H$5:$H$49,MATCH(C31,Lists!$G$5:$G$49,0),1),1))","v":"1"},null,{"$f":"'Month 8'!H31+'Month 8'!I31-'Month 8'!J31","v":30},0,0,null,"1Pr74"]
[{"$f":"Planning!A16","v":"I008"},{"$f":"Planning!B16","v":"2. Activity: Contributing"},{"$f":"Planning!C16","v":"Pr74"},{"$f":"Planning!D16","v":3.1},{"$f":"Planning!E16","v":"Transportation of students to meetings and conferences for peer education activities"},{"$f":"IF(Planning!G16<>0,Planning!G16,\"\")","v":"2. Travel related costs"},{"$f":"Planning!H16","v":"1. YES"},{"$f":"Planning!AG16","v":0},{"$f":"IF(OR(W32=\"1\",AND(W32<>\"1\",G32=Lists!$A$17)),Y32,0)","v":30},0,{"$f":"IF(AND(W32=\"2\",G32<>Lists!$A$17),AA32,Z32)","v":{"v":0,"d":"0.00%"}},"",{"$f":"Planning!AH16","v":{"v":0,"d":"0.00"}},{"$f":"'Month 8'!M32+'Month 8'!N32-'Month 8'!O32","v":{"v":6250,"d":"6,250.00"}},{"v":0,"d":"0.00"},{"v":0,"d":"0.00%"},"",{"$f":"SUMIFS($J$25:$J$224,$C$25:$C$224,$C32,$G$25:$G$224,Lists!$A$16)","v":0},0,null,"2",null,{"$f":"IF(C32=0,\"\",LEFT(INDEX(Lists!$H$5:$H$49,MATCH(C32,Lists!$G$5:$G$49,0),1),1))","v":"1"},null,{"$f":"'Month 8'!H32+'Month 8'!I32-'Month 8'!J32","v":30},0,0,null,"2Pr74"]
[{"$f":"Planning!A17","v":"I009"},{"$f":"Planning!B17","v":"1. Indicator"},{"$f":"Planning!C17","v":"OI01"},{"$f":"Planning!D17","v":4},{"$f":"Planning!E17","v":"[OI01] # of new orphans and vulnerable children (0 - 17 yrs) benefiting from  services provided at OVC centers [1. Standard]"},{"$f":"IF(Planning!G17<>0,Planning!G17,\"\")","v":""},{"$f":"Planning!H17","v":0},{"$f":"Planning!AG17","v":0},{"$f":"IF(OR(W33=\"1\",AND(W33<>\"1\",G33=Lists!$A$17)),Y33,0)","v":0},{"$f":"R33","v":0},{"$f":"IF(AND(W33=\"2\",G33<>Lists!$A$17),AA33,Z33)","v":""},"",{"$f":"Planning!AH17","v":{"v":0,"d":"0.00"}},{"$f":"'Month 8'!M33+'Month 8'!N33-'Month 8'!O33","v":{"v":1000,"d":"1,000.00"}},{"$f":"S33","v":{"v":0,"d":"0.00"}},{"v":0,"d":"0.00%"},0,{"$f":"SUMIFS($J$25:$J$224,$C$25:$C$224,$C33,$G$25:$G$224,Lists!$A$16)","v":0},0,null,"1",null,{"$f":"IF(C33=0,\"\",LEFT(INDEX(Lists!$H$5:$H$49,MATCH(C33,Lists!$G$5:$G$49,0),1),1))","v":"1"},null,{"$f":"'Month 8'!H33+'Month 8'!I33-'Month 8'!J33","v":0},"","",null,"1OI01"]
[{"$f":"Planning!A18","v":"I010"},{"$f":"Planning!B18","v":"3. Activity: Non-Contributing"},{"$f":"Planning!C18","v":"OI01"},{"$f":"Planning!D18","v":4.1},{"$f":"Planning!E18","v":"# of OVC centers established and fully equipped  "},{"$f":"IF(Planning!G18<>0,Planning!G18,\"\")","v":"8. Infrastructure "},{"$f":"Planning!H18","v":"2. NO"},{"$f":"Planning!AG18","v":0},{"$f":"IF(OR(W34=\"1\",AND(W34<>\"1\",G34=Lists!$A$17)),Y34,0)","v":0},0,{"$f":"IF(AND(W34=\"2\",G34<>Lists!$A$17),AA34,Z34)","v":""},"",{"$f":"Planning!AH18","v":{"v":0,"d":"0.00"}},{"$f":"'Month 8'!M34+'Month 8'!N34-'Month 8'!O34","v":{"v":0,"d":"0.00"}},{"v":0,"d":"0.00"},"","",{"$f":"SUMIFS($J$25:$J$224,$C$25:$C$224,$C34,$G$25:$G$224,Lists!$A$16)","v":0},0,null,"2",null,{"$f":"IF(C34=0,\"\",LEFT(INDEX(Lists!$H$5:$H$49,MATCH(C34,Lists!$G$5:$G$49,0),1),1))","v":"1"},null,{"$f":"'Month 8'!H34+'Month 8'!I34-'Month 8'!J34","v":0},"","",null,"2OI01"]
[{"$f":"Planning!A19","v":"I011"},{"$f":"Planning!B19","v":"2. Activity: Contributing"},{"$f":"Planning!C19","v":"OI01"},{"$f":"Planning!D19","v":4.2},{"$f":"Planning!E19","v":"# of OVC registered at centres"},{"$f":"IF(Planning!G19<>0,Planning!G19,\"\")","v":"12. Living support to client/ target population "},{"$f":"Planning!H19","v":"1. YES"},{"$f":"Planning!AG19","v":0},{"$f":"IF(OR(W35=\"1\",AND(W35<>\"1\",G35=Lists!$A$17)),Y35,0)","v":0},0,{"$f":"IF(AND(W35=\"2\",G35<>Lists!$A$17),AA35,Z35)","v":""},"",{"$f":"Planning!AH19","v":{"v":0,"d":"0.00"}},{"$f":"'Month 8'!M35+'Month 8'!N35-'Month 8'!O35","v":{"v":0,"d":"0.00"}},{"v":0,"d":"0.00"},"","",{"$f":"SUMIFS($J$25:$J$224,$C$25:$C$224,$C35,$G$25:$G$224,Lists!$A$16)","v":0},0,null,"2",null,{"$f":"IF(C35=0,\"\",LEFT(INDEX(Lists!$H$5:$H$49,MATCH(C35,Lists!$G$5:$G$49,0),1),1))","v":"1"},null,{"$f":"'Month 8'!H35+'Month 8'!I35-'Month 8'!J35","v":0},"","",null,"2OI01"]
[{"$f":"Planning!A20","v":"I012"},{"$f":"Planning!B20","v":"3. Activity: Non-Contributing"},{"$f":"Planning!C20","v":"OI01"},{"$f":"Planning!D20","v":4.3},{"$f":"Planning!E20","v":"# of meals provided at the OVC centers "},{"$f":"IF(Planning!G20<>0,Planning!G20,\"\")","v":"12. Living support to client/ target population "},{"$f":"Planning!H20","v":"2. NO"},{"$f":"Planning!AG20","v":0},{"$f":"IF(OR(W36=\"1\",AND(W36<>\"1\",G36=Lists!$A$17)),Y36,0)","v":100},0,{"$f":"IF(AND(W36=\"2\",G36<>Lists!$A$17),AA36,Z36)","v":{"v":0,"d":"0.00%"}},"",{"$f":"Planning!AH20","v":{"v":0,"d":"0.00"}},{"$f":"'Month 8'!M36+'Month 8'!N36-'Month 8'!O36","v":{"v":1000,"d":"1,000.00"}},{"v":0,"d":"0.00"},{"v":0,"d":"0.00%"},"",{"$f":"SUMIFS($J$25:$J$224,$C$25:$C$224,$C36,$G$25:$G$224,Lists!$A$16)","v":0},0,null,"2",null,{"$f":"IF(C36=0,\"\",LEFT(INDEX(Lists!$H$5:$H$49,MATCH(C36,Lists!$G$5:$G$49,0),1),1))","v":"1"},null,{"$f":"'Month 8'!H36+'Month 8'!I36-'Month 8'!J36","v":100},0,0,null,"2OI01"]
[{"$f":"Planning!A21","v":"I013"},{"$f":"Planning!B21","v":0},{"$f":"Planning!C21","v":0},{"$f":"Planning!D21","v":0},{"$f":"Planning!E21","v":0},{"$f":"IF(Planning!G21<>0,Planning!G21,\"\")","v":""},{"$f":"Planning!H21","v":0},{"$f":"Planning!AG21","v":0},{"$f":"IF(OR(W37=\"1\",AND(W37<>\"1\",G37=Lists!$A$17)),Y37,0)","v":0},null,{"$f":"IF(AND(W37=\"2\",G37<>Lists!$A$17),AA37,Z37)","v":""},"",{"$f":"Planning!AH21","v":{"v":0,"d":"0.00"}},{"$f":"'Month 8'!M37+'Month 8'!N37-'Month 8'!O37","v":{"v":0,"d":"0.00"}},null,"","",{"$f":"SUMIFS($J$25:$J$224,$C$25:$C$224,$C37,$G$25:$G$224,Lists!$A$16)","v":0},0,null,"",null,{"$f":"IF(C37=0,\"\",LEFT(INDEX(Lists!$H$5:$H$49,MATCH(C37,Lists!$G$5:$G$49,0),1),1))","v":""},null,{"$f":"'Month 8'!H37+'Month 8'!I37-'Month 8'!J37","v":0},"","",null,"0"]
[{"$f":"Planning!A22","v":"I014"},{"$f":"Planning!B22","v":0},{"$f":"Planning!C22","v":0},{"$f":"Planning!D22","v":0},{"$f":"Planning!E22","v":0},{"$f":"IF(Planning!G22<>0,Planning!G22,\"\")","v":""},{"$f":"Planning!H22","v":0},{"$f":"Planning!AG22","v":0},{"$f":"IF(OR(W38=\"1\",AND(W38<>\"1\",G38=Lists!$A$17)),Y38,0)","v":0},null,{"$f":"IF(AND(W38=\"2\",G38<>Lists!$A$17),AA38,Z38)","v":""},"",{"$f":"Planning!AH22","v":{"v":0,"d":"0.00"}},{"$f":"'Month 8'!M38+'Month 8'!N38-'Month 8'!O38","v":{"v":0,"d":"0.00"}},null,"","",{"$f":"SUMIFS($J$25:$J$224,$C$25:$C$224,$C38,$G$25:$G$224,Lists!$A$16)","v":0},0,null,"",null,{"$f":"IF(C38=0,\"\",LEFT(INDEX(Lists!$H$5:$H$49,MATCH(C38,Lists!$G$5:$G$49,0),1),1))","v":""},null,{"$f":"'Month 8'!H38+'Month 8'!I38-'Month 8'!J38","v":0},"","",null,"0"]
[{"$f":"Planning!A23","v":"I015"},{"$f":"Planning!B23","v":0},{"$f":"Planning!C23","v":0},{"$f":"Planning!D23","v":0},{"$f":"Planning!E23","v":0},{"$f":"IF(Planning!G23<>0,Planning!G23,\"\")","v":""},{"$f":"Planning!H23","v":0},{"$f":"Planning!AG23","v":0},{"$f":"IF(OR(W39=\"1\",AND(W39<>\"1\",G39=Lists!$A$17)),Y39,0)","v":0},null,{"$f":"IF(AND(W39=\"2\",G39<>Lists!$A$17),AA39,Z39)","v":""},"",{"$f":"Planning!AH23","v":{"v":0,"d":"0.00"}},{"$f":"'Month 8'!M39+'Month 8'!N39-'Month 8'!O39","v":{"v":0,"d":"0.00"}},null,"","",{"$f":"SUMIFS($J$25:$J$224,$C$25:$C$224,$C39,$G$25:$G$224,Lists!$A$16)","v":0},0,null,"",null,{"$f":"IF(C39=0,\"\",LEFT(INDEX(Lists!$H$5:$H$49,MATCH(C39,Lists!$G$5:$G$49,0),1),1))","v":""},null,{"$f":"'Month 8'!H39+'Month 8'!I39-'Month 8'!J39","v":0},"","",null,"0"]
[{"$f":"Planning!A24","v":"I016"},{"$f":"Planning!B24","v":0},{"$f":"Planning!C24","v":0},{"$f":"Planning!D24","v":0},{"$f":"Planning!E24","v":0},{"$f":"IF(Planning!G24<>0,Planning!G24,\"\")","v":""},{"$f":"Planning!H24","v":0},{"$f":"Planning!AG24","v":0},{"$f":"IF(OR(W40=\"1\",AND(W40<>\"1\",G40=Lists!$A$17)),Y40,0)","v":0},null,{"$f":"IF(AND(W40=\"2\",G40<>Lists!$A$17),AA40,Z40)","v":""},"",{"$f":"Planning!AH24","v":{"v":0,"d":"0.00"}},{"$f":"'Month 8'!M40+'Month 8'!N40-'Month 8'!O40","v":{"v":0,"d":"0.00"}},null,"","",{"$f":"SUMIFS($J$25:$J$224,$C$25:$C$224,$C40,$G$25:$G$224,Lists!$A$16)","v":0},0,null,"",null,{"$f":"IF(C40=0,\"\",LEFT(INDEX(Lists!$H$5:$H$49,MATCH(C40,Lists!$G$5:$G$49,0),1),1))","v":""},null,{"$f":"'Month 8'!H40+'Month 8'!I40-'Month 8'!J40","v":0},"","",null,"0"]
[{"$f":"Planning!A25","v":"I017"},{"$f":"Planning!B25","v":0},{"$f":"Planning!C25","v":0},{"$f":"Planning!D25","v":0},{"$f":"Planning!E25","v":0},{"$f":"IF(Planning!G25<>0,Planning!G25,\"\")","v":""},{"$f":"Planning!H25","v":0},{"$f":"Planning!AG25","v":0},{"$f":"IF(OR(W41=\"1\",AND(W41<>\"1\",G41=Lists!$A$17)),Y41,0)","v":0},null,{"$f":"IF(AND(W41=\"2\",G41<>Lists!$A$17),AA41,Z41)","v":""},"",{"$f":"Planning!AH25","v":{"v":0,"d":"0.00"}},{"$f":"'Month 8'!M41+'Month 8'!N41-'Month 8'!O41","v":{"v":0,"d":"0.00"}},null,"","",{"$f":"SUMIFS($J$25:$J$224,$C$25:$C$224,$C41,$G$25:$G$224,Lists!$A$16)","v":0},0,null,"",null,{"$f":"IF(C41=0,\"\",LEFT(INDEX(Lists!$H$5:$H$49,MATCH(C41,Lists!$G$5:$G$49,0),1),1))","v":""},null,{"$f":"'Month 8'!H41+'Month 8'!I41-'Month 8'!J41","v":0},"","",null,"0"]
[{"$f":"Planning!A26","v":"I018"},{"$f":"Planning!B26","v":0},{"$f":"Planning!C26","v":0},{"$f":"Planning!D26","v":0},{"$f":"Planning!E26","v":0},{"$f":"IF(Planning!G26<>0,Planning!G26,\"\")","v":""},{"$f":"Planning!H26","v":0},{"$f":"Planning!AG26","v":0},{"$f":"IF(OR(W42=\"1\",AND(W42<>\"1\",G42=Lists!$A$17)),Y42,0)","v":0},null,{"$f":"IF(AND(W42=\"2\",G42<>Lists!$A$17),AA42,Z42)","v":""},"",{"$f":"Planning!AH26","v":{"v":0,"d":"0.00"}},{"$f":"'Month 8'!M42+'Month 8'!N42-'Month 8'!O42","v":{"v":0,"d":"0.00"}},null,"","",{"$f":"SUMIFS($J$25:$J$224,$C$25:$C$224,$C42,$G$25:$G$224,Lists!$A$16)","v":0},0,null,"",null,{"$f":"IF(C42=0,\"\",LEFT(INDEX(Lists!$H$5:$H$49,MATCH(C42,Lists!$G$5:$G$49,0),1),1))","v":""},null,{"$f":"'Month 8'!H42+'Month 8'!I42-'Month 8'!J42","v":0},"","",null,"0"]
[{"$f":"Planning!A27","v":"I019"},{"$f":"Planning!B27","v":0},{"$f":"Planning!C27","v":0},{"$f":"Planning!D27","v":0},{"$f":"Planning!E27","v":0},{"$f":"IF(Planning!G27<>0,Planning!G27,\"\")","v":""},{"$f":"Planning!H27","v":0},{"$f":"Planning!AG27","v":0},{"$f":"IF(OR(W43=\"1\",AND(W43<>\"1\",G43=Lists!$A$17)),Y43,0)","v":0},null,{"$f":"IF(AND(W43=\"2\",G43<>Lists!$A$17),AA43,Z43)","v":""},"",{"$f":"Planning!AH27","v":{"v":0,"d":"0.00"}},{"$f":"'Month 8'!M43+'Month 8'!N43-'Month 8'!O43","v":{"v":0,"d":"0.00"}},null,"","",{"$f":"SUMIFS($J$25:$J$224,$C$25:$C$224,$C43,$G$25:$G$224,Lists!$A$16)","v":0},0,null,"",null,{"$f":"IF(C43=0,\"\",LEFT(INDEX(Lists!$H$5:$H$49,MATCH(C43,Lists!$G$5:$G$49,0),1),1))","v":""},null,{"$f":"'Month 8'!H43+'Month 8'!I43-'Month 8'!J43","v":0},"","",null,"0"]
[{"$f":"Planning!A28","v":"I020"},{"$f":"Planning!B28","v":0},{"$f":"Planning!C28","v":0},{"$f":"Planning!D28","v":0},{"$f":"Planning!E28","v":0},{"$f":"IF(Planning!G28<>0,Planning!G28,\"\")","v":""},{"$f":"Planning!H28","v":0},{"$f":"Planning!AG28","v":0},{"$f":"IF(OR(W44=\"1\",AND(W44<>\"1\",G44=Lists!$A$17)),Y44,0)","v":0},null,{"$f":"IF(AND(W44=\"2\",G44<>Lists!$A$17),AA44,Z44)","v":""},"",{"$f":"Planning!AH28","v":{"v":0,"d":"0.00"}},{"$f":"'Month 8'!M44+'Month 8'!N44-'Month 8'!O44","v":{"v":0,"d":"0.00"}},null,"","",{"$f":"SUMIFS($J$25:$J$224,$C$25:$C$224,$C44,$G$25:$G$224,Lists!$A$16)","v":0},0,null,"",null,{"$f":"IF(C44=0,\"\",LEFT(INDEX(Lists!$H$5:$H$49,MATCH(C44,Lists!$G$5:$G$49,0),1),1))","v":""},null,{"$f":"'Month 8'!H44+'Month 8'!I44-'Month 8'!J44","v":0},"","",null,"0"]
[{"$f":"Planning!A29","v":"I021"},{"$f":"Planning!B29","v":0},{"$f":"Planning!C29","v":0},{"$f":"Planning!D29","v":0},{"$f":"Planning!E29","v":0},{"$f":"IF(Planning!G29<>0,Planning!G29,\"\")","v":""},{"$f":"Planning!H29","v":0},{"$f":"Planning!AG29","v":0},{"$f":"IF(OR(W45=\"1\",AND(W45<>\"1\",G45=Lists!$A$17)),Y45,0)","v":0},null,{"$f":"IF(AND(W45=\"2\",G45<>Lists!$A$17),AA45,Z45)","v":""},"",{"$f":"Planning!AH29","v":{"v":0,"d":"0.00"}},{"$f":"'Month 8'!M45+'Month 8'!N45-'Month 8'!O45","v":{"v":0,"d":"0.00"}},null,"","",{"$f":"SUMIFS($J$25:$J$224,$C$25:$C$224,$C45,$G$25:$G$224,Lists!$A$16)","v":0},0,null,"",null,{"$f":"IF(C45=0,\"\",LEFT(INDEX(Lists!$H$5:$H$49,MATCH(C45,Lists!$G$5:$G$49,0),1),1))","v":""},null,{"$f":"'Month 8'!H45+'Month 8'!I45-'Month 8'!J45","v":0},"","",null,"0"]
[{"$f":"Planning!A30","v":"I022"},{"$f":"Planning!B30","v":0},{"$f":"Planning!C30","v":0},{"$f":"Planning!D30","v":0},{"$f":"Planning!E30","v":0},{"$f":"IF(Planning!G30<>0,Planning!G30,\"\")","v":""},{"$f":"Planning!H30","v":0},{"$f":"Planning!AG30","v":0},{"$f":"IF(OR(W46=\"1\",AND(W46<>\"1\",G46=Lists!$A$17)),Y46,0)","v":0},null,{"$f":"IF(AND(W46=\"2\",G46<>Lists!$A$17),AA46,Z46)","v":""},"",{"$f":"Planning!AH30","v":{"v":0,"d":"0.00"}},{"$f":"'Month 8'!M46+'Month 8'!N46-'Month 8'!O46","v":{"v":0,"d":"0.00"}},null,"","",{"$f":"SUMIFS($J$25:$J$224,$C$25:$C$224,$C46,$G$25:$G$224,Lists!$A$16)","v":0},0,null,"",null,{"$f":"IF(C46=0,\"\",LEFT(INDEX(Lists!$H$5:$H$49,MATCH(C46,Lists!$G$5:$G$49,0),1),1))","v":""},null,{"$f":"'Month 8'!H46+'Month 8'!I46-'Month 8'!J46","v":0},"","",null,"0"]
[{"$f":"Planning!A31","v":"I023"},{"$f":"Planning!B31","v":0},{"$f":"Planning!C31","v":0},{"$f":"Planning!D31","v":0},{"$f":"Planning!E31","v":0},{"$f":"IF(Planning!G31<>0,Planning!G31,\"\")","v":""},{"$f":"Planning!H31","v":0},{"$f":"Planning!AG31","v":0},{"$f":"IF(OR(W47=\"1\",AND(W47<>\"1\",G47=Lists!$A$17)),Y47,0)","v":0},null,{"$f":"IF(AND(W47=\"2\",G47<>Lists!$A$17),AA47,Z47)","v":""},"",{"$f":"Planning!AH31","v":{"v":0,"d":"0.00"}},{"$f":"'Month 8'!M47+'Month 8'!N47-'Month 8'!O47","v":{"v":0,"d":"0.00"}},null,"","",{"$f":"SUMIFS($J$25:$J$224,$C$25:$C$224,$C47,$G$25:$G$224,Lists!$A$16)","v":0},0,null,"",null,{"$f":"IF(C47=0,\"\",LEFT(INDEX(Lists!$H$5:$H$49,MATCH(C47,Lists!$G$5:$G$49,0),1),1))","v":""},null,{"$f":"'Month 8'!H47+'Month 8'!I47-'Month 8'!J47","v":0},"","",null,"0"]
[{"$f":"Planning!A32","v":"I024"},{"$f":"Planning!B32","v":0},{"$f":"Planning!C32","v":0},{"$f":"Planning!D32","v":0},{"$f":"Planning!E32","v":0},{"$f":"IF(Planning!G32<>0,Planning!G32,\"\")","v":""},{"$f":"Planning!H32","v":0},{"$f":"Planning!AG32","v":0},{"$f":"IF(OR(W48=\"1\",AND(W48<>\"1\",G48=Lists!$A$17)),Y48,0)","v":0},null,{"$f":"IF(AND(W48=\"2\",G48<>Lists!$A$17),AA48,Z48)","v":""},"",{"$f":"Planning!AH32","v":{"v":0,"d":"0.00"}},{"$f":"'Month 8'!M48+'Month 8'!N48-'Month 8'!O48","v":{"v":0,"d":"0.00"}},null,"","",{"$f":"SUMIFS($J$25:$J$224,$C$25:$C$224,$C48,$G$25:$G$224,Lists!$A$16)","v":0},0,null,"",null,{"$f":"IF(C48=0,\"\",LEFT(INDEX(Lists!$H$5:$H$49,MATCH(C48,Lists!$G$5:$G$49,0),1),1))","v":""},null,{"$f":"'Month 8'!H48+'Month 8'!I48-'Month 8'!J48","v":0},"","",null,"0"]
[{"$f":"Planning!A33","v":"I025"},{"$f":"Planning!B33","v":0},{"$f":"Planning!C33","v":0},{"$f":"Planning!D33","v":0},{"$f":"Planning!E33","v":0},{"$f":"IF(Planning!G33<>0,Planning!G33,\"\")","v":""},{"$f":"Planning!H33","v":0},{"$f":"Planning!AG33","v":0},{"$f":"IF(OR(W49=\"1\",AND(W49<>\"1\",G49=Lists!$A$17)),Y49,0)","v":0},null,{"$f":"IF(AND(W49=\"2\",G49<>Lists!$A$17),AA49,Z49)","v":""},"",{"$f":"Planning!AH33","v":{"v":0,"d":"0.00"}},{"$f":"'Month 8'!M49+'Month 8'!N49-'Month 8'!O49","v":{"v":0,"d":"0.00"}},null,"","",{"$f":"SUMIFS($J$25:$J$224,$C$25:$C$224,$C49,$G$25:$G$224,Lists!$A$16)","v":0},0,null,"",null,{"$f":"IF(C49=0,\"\",LEFT(INDEX(Lists!$H$5:$H$49,MATCH(C49,Lists!$G$5:$G$49,0),1),1))","v":""},null,{"$f":"'Month 8'!H49+'Month 8'!I49-'Month 8'!J49","v":0},"","",null,"0"]
[{"$f":"Planning!A34","v":"I026"},{"$f":"Planning!B34","v":0},{"$f":"Planning!C34","v":0},{"$f":"Planning!D34","v":0},{"$f":"Planning!E34","v":0},{"$f":"IF(Planning!G34<>0,Planning!G34,\"\")","v":""},{"$f":"Planning!H34","v":0},{"$f":"Planning!AG34","v":0},{"$f":"IF(OR(W50=\"1\",AND(W50<>\"1\",G50=Lists!$A$17)),Y50,0)","v":0},null,{"$f":"IF(AND(W50=\"2\",G50<>Lists!$A$17),AA50,Z50)","v":""},"",{"$f":"Planning!AH34","v":{"v":0,"d":"0.00"}},{"$f":"'Month 8'!M50+'Month 8'!N50-'Month 8'!O50","v":{"v":0,"d":"0.00"}},null,"","",{"$f":"SUMIFS($J$25:$J$224,$C$25:$C$224,$C50,$G$25:$G$224,Lists!$A$16)","v":0},0,null,"",null,{"$f":"IF(C50=0,\"\",LEFT(INDEX(Lists!$H$5:$H$49,MATCH(C50,Lists!$G$5:$G$49,0),1),1))","v":""},null,{"$f":"'Month 8'!H50+'Month 8'!I50-'Month 8'!J50","v":0},"","",null,"0"]
[{"$f":"Planning!A35","v":"I027"},{"$f":"Planning!B35","v":0},{"$f":"Planning!C35","v":0},{"$f":"Planning!D35","v":0},{"$f":"Planning!E35","v":0},{"$f":"IF(Planning!G35<>0,Planning!G35,\"\")","v":""},{"$f":"Planning!H35","v":0},{"$f":"Planning!AG35","v":0},{"$f":"IF(OR(W51=\"1\",AND(W51<>\"1\",G51=Lists!$A$17)),Y51,0)","v":0},null,{"$f":"IF(AND(W51=\"2\",G51<>Lists!$A$17),AA51,Z51)","v":""},"",{"$f":"Planning!AH35","v":{"v":0,"d":"0.00"}},{"$f":"'Month 8'!M51+'Month 8'!N51-'Month 8'!O51","v":{"v":0,"d":"0.00"}},null,"","",{"$f":"SUMIFS($J$25:$J$224,$C$25:$C$224,$C51,$G$25:$G$224,Lists!$A$16)","v":0},0,null,"",null,{"$f":"IF(C51=0,\"\",LEFT(INDEX(Lists!$H$5:$H$49,MATCH(C51,Lists!$G$5:$G$49,0),1),1))","v":""},null,{"$f":"'Month 8'!H51+'Month 8'!I51-'Month 8'!J51","v":0},"","",null,"0"]
[{"$f":"Planning!A36","v":"I028"},{"$f":"Planning!B36","v":0},{"$f":"Planning!C36","v":0},{"$f":"Planning!D36","v":0},{"$f":"Planning!E36","v":0},{"$f":"IF(Planning!G36<>0,Planning!G36,\"\")","v":""},{"$f":"Planning!H36","v":0},{"$f":"Planning!AG36","v":0},{"$f":"IF(OR(W52=\"1\",AND(W52<>\"1\",G52=Lists!$A$17)),Y52,0)","v":0},null,{"$f":"IF(AND(W52=\"2\",G52<>Lists!$A$17),AA52,Z52)","v":""},"",{"$f":"Planning!AH36","v":{"v":0,"d":"0.00"}},{"$f":"'Month 8'!M52+'Month 8'!N52-'Month 8'!O52","v":{"v":0,"d":"0.00"}},null,"","",{"$f":"SUMIFS($J$25:$J$224,$C$25:$C$224,$C52,$G$25:$G$224,Lists!$A$16)","v":0},0,null,"",null,{"$f":"IF(C52=0,\"\",LEFT(INDEX(Lists!$H$5:$H$49,MATCH(C52,Lists!$G$5:$G$49,0),1),1))","v":""},null,{"$f":"'Month 8'!H52+'Month 8'!I52-'Month 8'!J52","v":0},"","",null,"0"]
[{"$f":"Planning!A37","v":"I029"},{"$f":"Planning!B37","v":0},{"$f":"Planning!C37","v":0},{"$f":"Planning!D37","v":0},{"$f":"Planning!E37","v":0},{"$f":"IF(Planning!G37<>0,Planning!G37,\"\")","v":""},{"$f":"Planning!H37","v":0},{"$f":"Planning!AG37","v":0},{"$f":"IF(OR(W53=\"1\",AND(W53<>\"1\",G53=Lists!$A$17)),Y53,0)","v":0},null,{"$f":"IF(AND(W53=\"2\",G53<>Lists!$A$17),AA53,Z53)","v":""},"",{"$f":"Planning!AH37","v":{"v":0,"d":"0.00"}},{"$f":"'Month 8'!M53+'Month 8'!N53-'Month 8'!O53","v":{"v":0,"d":"0.00"}},null,"","",{"$f":"SUMIFS($J$25:$J$224,$C$25:$C$224,$C53,$G$25:$G$224,Lists!$A$16)","v":0},0,null,"",null,{"$f":"IF(C53=0,\"\",LEFT(INDEX(Lists!$H$5:$H$49,MATCH(C53,Lists!$G$5:$G$49,0),1),1))","v":""},null,{"$f":"'Month 8'!H53+'Month 8'!I53-'Month 8'!J53","v":0},"","",null,"0"]
[{"$f":"Planning!A38","v":"I030"},{"$f":"Planning!B38","v":0},{"$f":"Planning!C38","v":0},{"$f":"Planning!D38","v":0},{"$f":"Planning!E38","v":0},{"$f":"IF(Planning!G38<>0,Planning!G38,\"\")","v":""},{"$f":"Planning!H38","v":0},{"$f":"Planning!AG38","v":0},{"$f":"IF(OR(W54=\"1\",AND(W54<>\"1\",G54=Lists!$A$17)),Y54,0)","v":0},null,{"$f":"IF(AND(W54=\"2\",G54<>Lists!$A$17),AA54,Z54)","v":""},"",{"$f":"Planning!AH38","v":{"v":0,"d":"0.00"}},{"$f":"'Month 8'!M54+'Month 8'!N54-'Month 8'!O54","v":{"v":0,"d":"0.00"}},null,"","",{"$f":"SUMIFS($J$25:$J$224,$C$25:$C$224,$C54,$G$25:$G$224,Lists!$A$16)","v":0},0,null,"",null,{"$f":"IF(C54=0,\"\",LEFT(INDEX(Lists!$H$5:$H$49,MATCH(C54,Lists!$G$5:$G$49,0),1),1))","v":""},null,{"$f":"'Month 8'!H54+'Month 8'!I54-'Month 8'!J54","v":0},"","",null,"0"]
[{"$f":"Planning!A39","v":"I031"},{"$f":"Planning!B39","v":0},{"$f":"Planning!C39","v":0},{"$f":"Planning!D39","v":0},{"$f":"Planning!E39","v":0},{"$f":"IF(Planning!G39<>0,Planning!G39,\"\")","v":""},{"$f":"Planning!H39","v":0},{"$f":"Planning!AG39","v":0},{"$f":"IF(OR(W55=\"1\",AND(W55<>\"1\",G55=Lists!$A$17)),Y55,0)","v":0},null,{"$f":"IF(AND(W55=\"2\",G55<>Lists!$A$17),AA55,Z55)","v":""},"",{"$f":"Planning!AH39","v":{"v":0,"d":"0.00"}},{"$f":"'Month 8'!M55+'Month 8'!N55-'Month 8'!O55","v":{"v":0,"d":"0.00"}},null,"","",{"$f":"SUMIFS($J$25:$J$224,$C$25:$C$224,$C55,$G$25:$G$224,Lists!$A$16)","v":0},0,null,"",null,{"$f":"IF(C55=0,\"\",LEFT(INDEX(Lists!$H$5:$H$49,MATCH(C55,Lists!$G$5:$G$49,0),1),1))","v":""},null,{"$f":"'Month 8'!H55+'Month 8'!I55-'Month 8'!J55","v":0},"","",null,"0"]
[{"$f":"Planning!A40","v":"I032"},{"$f":"Planning!B40","v":0},{"$f":"Planning!C40","v":0},{"$f":"Planning!D40","v":0},{"$f":"Planning!E40","v":0},{"$f":"IF(Planning!G40<>0,Planning!G40,\"\")","v":""},{"$f":"Planning!H40","v":0},{"$f":"Planning!AG40","v":0},{"$f":"IF(OR(W56=\"1\",AND(W56<>\"1\",G56=Lists!$A$17)),Y56,0)","v":0},null,{"$f":"IF(AND(W56=\"2\",G56<>Lists!$A$17),AA56,Z56)","v":""},"",{"$f":"Planning!AH40","v":{"v":0,"d":"0.00"}},{"$f":"'Month 8'!M56+'Month 8'!N56-'Month 8'!O56","v":{"v":0,"d":"0.00"}},null,"","",{"$f":"SUMIFS($J$25:$J$224,$C$25:$C$224,$C56,$G$25:$G$224,Lists!$A$16)","v":0},0,null,"",null,{"$f":"IF(C56=0,\"\",LEFT(INDEX(Lists!$H$5:$H$49,MATCH(C56,Lists!$G$5:$G$49,0),1),1))","v":""},null,{"$f":"'Month 8'!H56+'Month 8'!I56-'Month 8'!J56","v":0},"","",null,"0"]
[{"$f":"Planning!A41","v":"I033"},{"$f":"Planning!B41","v":0},{"$f":"Planning!C41","v":0},{"$f":"Planning!D41","v":0},{"$f":"Planning!E41","v":0},{"$f":"IF(Planning!G41<>0,Planning!G41,\"\")","v":""},{"$f":"Planning!H41","v":0},{"$f":"Planning!AG41","v":0},{"$f":"IF(OR(W57=\"1\",AND(W57<>\"1\",G57=Lists!$A$17)),Y57,0)","v":0},null,{"$f":"IF(AND(W57=\"2\",G57<>Lists!$A$17),AA57,Z57)","v":""},{"$f":"IF($U57=ExcluirDelPLogro,\"\",IF(AND(H57=0,I57=0,J57=0),\"\",K57))","v":""},{"$f":"Planning!AH41","v":{"v":0,"d":"0.00"}},{"$f":"'Month 8'!M57+'Month 8'!N57-'Month 8'!O57","v":{"v":0,"d":"0.00"}},null,"",{"$f":"IF($U57=ExcluirDelPLogro,\"\",IF(AND(M57=0,N57=0,O57=0),\"\",P57))","v":""},{"$f":"SUMIFS($J$25:$J$224,$C$25:$C$224,$C57,$G$25:$G$224,Lists!$A$16)","v":0},0,null,"",null,{"$f":"IF(C57=0,\"\",LEFT(INDEX(Lists!$H$5:$H$49,MATCH(C57,Lists!$G$5:$G$49,0),1),1))","v":""},null,{"$f":"'Month 8'!H57+'Month 8'!I57-'Month 8'!J57","v":0},"",{"$f":"IF(AND(H57=0,I57=0,J57=0),\"\",IF(J57>0,H57/J57,0))","v":""},null,"0"]
[{"$f":"Planning!A42","v":"I034"},{"$f":"Planning!B42","v":0},{"$f":"Planning!C42","v":0},{"$f":"Planning!D42","v":0},{"$f":"Planning!E42","v":0},{"$f":"IF(Planning!G42<>0,Planning!G42,\"\")","v":""},{"$f":"Planning!H42","v":0},{"$f":"Planning!AG42","v":0},{"$f":"IF(OR(W58=\"1\",AND(W58<>\"1\",G58=Lists!$A$17)),Y58,0)","v":0},null,{"$f":"IF(AND(W58=\"2\",G58<>Lists!$A$17),AA58,Z58)","v":""},"",{"$f":"Planning!AH42","v":{"v":0,"d":"0.00"}},{"$f":"'Month 8'!M58+'Month 8'!N58-'Month 8'!O58","v":{"v":0,"d":"0.00"}},null,"","",{"$f":"SUMIFS($J$25:$J$224,$C$25:$C$224,$C58,$G$25:$G$224,Lists!$A$16)","v":0},0,null,"",null,{"$f":"IF(C58=0,\"\",LEFT(INDEX(Lists!$H$5:$H$49,MATCH(C58,Lists!$G$5:$G$49,0),1),1))","v":""},null,{"$f":"'Month 8'!H58+'Month 8'!I58-'Month 8'!J58","v":0},"","",null,"0"]
[{"$f":"Planning!A43","v":"I035"},{"$f":"Planning!B43","v":0},{"$f":"Planning!C43","v":0},{"$f":"Planning!D43","v":0},{"$f":"Planning!E43","v":0},{"$f":"IF(Planning!G43<>0,Planning!G43,\"\")","v":""},{"$f":"Planning!H43","v":0},{"$f":"Planning!AG43","v":0},{"$f":"IF(OR(W59=\"1\",AND(W59<>\"1\",G59=Lists!$A$17)),Y59,0)","v":0},null,{"$f":"IF(AND(W59=\"2\",G59<>Lists!$A$17),AA59,Z59)","v":""},"",{"$f":"Planning!AH43","v":{"v":0,"d":"0.00"}},{"$f":"'Month 8'!M59+'Month 8'!N59-'Month 8'!O59","v":{"v":0,"d":"0.00"}},null,"","",{"$f":"SUMIFS($J$25:$J$224,$C$25:$C$224,$C59,$G$25:$G$224,Lists!$A$16)","v":0},0,null,"",null,{"$f":"IF(C59=0,\"\",LEFT(INDEX(Lists!$H$5:$H$49,MATCH(C59,Lists!$G$5:$G$49,0),1),1))","v":""},null,{"$f":"'Month 8'!H59+'Month 8'!I59-'Month 8'!J59","v":0},"","",null,"0"]
[{"$f":"Planning!A44","v":"I036"},{"$f":"Planning!B44","v":0},{"$f":"Planning!C44","v":0},{"$f":"Planning!D44","v":0},{"$f":"Planning!E44","v":0},{"$f":"IF(Planning!G44<>0,Planning!G44,\"\")","v":""},{"$f":"Planning!H44","v":0},{"$f":"Planning!AG44","v":0},{"$f":"IF(OR(W60=\"1\",AND(W60<>\"1\",G60=Lists!$A$17)),Y60,0)","v":0},null,{"$f":"IF(AND(W60=\"2\",G60<>Lists!$A$17),AA60,Z60)","v":""},"",{"$f":"Planning!AH44","v":{"v":0,"d":"0.00"}},{"$f":"'Month 8'!M60+'Month 8'!N60-'Month 8'!O60","v":{"v":0,"d":"0.00"}},null,"","",{"$f":"SUMIFS($J$25:$J$224,$C$25:$C$224,$C60,$G$25:$G$224,Lists!$A$16)","v":0},0,null,"",null,{"$f":"IF(C60=0,\"\",LEFT(INDEX(Lists!$H$5:$H$49,MATCH(C60,Lists!$G$5:$G$49,0),1),1))","v":""},null,{"$f":"'Month 8'!H60+'Month 8'!I60-'Month 8'!J60","v":0},"","",null,"0"]
[{"$f":"Planning!A45","v":"I037"},{"$f":"Planning!B45","v":0},{"$f":"Planning!C45","v":0},{"$f":"Planning!D45","v":0},{"$f":"Planning!E45","v":0},{"$f":"IF(Planning!G45<>0,Planning!G45,\"\")","v":""},{"$f":"Planning!H45","v":0},{"$f":"Planning!AG45","v":0},{"$f":"IF(OR(W61=\"1\",AND(W61<>\"1\",G61=Lists!$A$17)),Y61,0)","v":0},null,{"$f":"IF(AND(W61=\"2\",G61<>Lists!$A$17),AA61,Z61)","v":""},"",{"$f":"Planning!AH45","v":{"v":0,"d":"0.00"}},{"$f":"'Month 8'!M61+'Month 8'!N61-'Month 8'!O61","v":{"v":0,"d":"0.00"}},null,"","",{"$f":"SUMIFS($J$25:$J$224,$C$25:$C$224,$C61,$G$25:$G$224,Lists!$A$16)","v":0},0,null,"",null,{"$f":"IF(C61=0,\"\",LEFT(INDEX(Lists!$H$5:$H$49,MATCH(C61,Lists!$G$5:$G$49,0),1),1))","v":""},null,{"$f":"'Month 8'!H61+'Month 8'!I61-'Month 8'!J61","v":0},"","",null,"0"]
[{"$f":"Planning!A46","v":"I038"},{"$f":"Planning!B46","v":0},{"$f":"Planning!C46","v":0},{"$f":"Planning!D46","v":0},{"$f":"Planning!E46","v":0},{"$f":"IF(Planning!G46<>0,Planning!G46,\"\")","v":""},{"$f":"Planning!H46","v":0},{"$f":"Planning!AG46","v":0},{"$f":"IF(OR(W62=\"1\",AND(W62<>\"1\",G62=Lists!$A$17)),Y62,0)","v":0},null,{"$f":"IF(AND(W62=\"2\",G62<>Lists!$A$17),AA62,Z62)","v":""},"",{"$f":"Planning!AH46","v":{"v":0,"d":"0.00"}},{"$f":"'Month 8'!M62+'Month 8'!N62-'Month 8'!O62","v":{"v":0,"d":"0.00"}},null,"","",{"$f":"SUMIFS($J$25:$J$224,$C$25:$C$224,$C62,$G$25:$G$224,Lists!$A$16)","v":0},0,null,"",null,{"$f":"IF(C62=0,\"\",LEFT(INDEX(Lists!$H$5:$H$49,MATCH(C62,Lists!$G$5:$G$49,0),1),1))","v":""},null,{"$f":"'Month 8'!H62+'Month 8'!I62-'Month 8'!J62","v":0},"","",null,"0"]
[{"$f":"Planning!A47","v":"I039"},{"$f":"Planning!B47","v":0},{"$f":"Planning!C47","v":0},{"$f":"Planning!D47","v":0},{"$f":"Planning!E47","v":0},{"$f":"IF(Planning!G47<>0,Planning!G47,\"\")","v":""},{"$f":"Planning!H47","v":0},{"$f":"Planning!AG47","v":0},{"$f":"IF(OR(W63=\"1\",AND(W63<>\"1\",G63=Lists!$A$17)),Y63,0)","v":0},null,{"$f":"IF(AND(W63=\"2\",G63<>Lists!$A$17),AA63,Z63)","v":""},"",{"$f":"Planning!AH47","v":{"v":0,"d":"0.00"}},{"$f":"'Month 8'!M63+'Month 8'!N63-'Month 8'!O63","v":{"v":0,"d":"0.00"}},null,"","",{"$f":"SUMIFS($J$25:$J$224,$C$25:$C$224,$C63,$G$25:$G$224,Lists!$A$16)","v":0},0,null,"",null,{"$f":"IF(C63=0,\"\",LEFT(INDEX(Lists!$H$5:$H$49,MATCH(C63,Lists!$G$5:$G$49,0),1),1))","v":""},null,{"$f":"'Month 8'!H63+'Month 8'!I63-'Month 8'!J63","v":0},"","",null,"0"]
[{"$f":"Planning!A48","v":"I040"},{"$f":"Planning!B48","v":0},{"$f":"Planning!C48","v":0},{"$f":"Planning!D48","v":0},{"$f":"Planning!E48","v":0},{"$f":"IF(Planning!G48<>0,Planning!G48,\"\")","v":""},{"$f":"Planning!H48","v":0},{"$f":"Planning!AG48","v":0},{"$f":"IF(OR(W64=\"1\",AND(W64<>\"1\",G64=Lists!$A$17)),Y64,0)","v":0},null,{"$f":"IF(AND(W64=\"2\",G64<>Lists!$A$17),AA64,Z64)","v":""},"",{"$f":"Planning!AH48","v":{"v":0,"d":"0.00"}},{"$f":"'Month 8'!M64+'Month 8'!N64-'Month 8'!O64","v":{"v":0,"d":"0.00"}},null,"","",{"$f":"SUMIFS($J$25:$J$224,$C$25:$C$224,$C64,$G$25:$G$224,Lists!$A$16)","v":0},0,null,"",null,{"$f":"IF(C64=0,\"\",LEFT(INDEX(Lists!$H$5:$H$49,MATCH(C64,Lists!$G$5:$G$49,0),1),1))","v":""},null,{"$f":"'Month 8'!H64+'Month 8'!I64-'Month 8'!J64","v":0},"","",null,"0"]
[{"$f":"Planning!A49","v":"I041"},{"$f":"Planning!B49","v":0},{"$f":"Planning!C49","v":0},{"$f":"Planning!D49","v":0},{"$f":"Planning!E49","v":0},{"$f":"IF(Planning!G49<>0,Planning!G49,\"\")","v":""},{"$f":"Planning!H49","v":0},{"$f":"Planning!AG49","v":0},{"$f":"IF(OR(W65=\"1\",AND(W65<>\"1\",G65=Lists!$A$17)),Y65,0)","v":0},null,{"$f":"IF(AND(W65=\"2\",G65<>Lists!$A$17),AA65,Z65)","v":""},"",{"$f":"Planning!AH49","v":{"v":0,"d":"0.00"}},{"$f":"'Month 8'!M65+'Month 8'!N65-'Month 8'!O65","v":{"v":0,"d":"0.00"}},null,"","",{"$f":"SUMIFS($J$25:$J$224,$C$25:$C$224,$C65,$G$25:$G$224,Lists!$A$16)","v":0},0,null,"",null,{"$f":"IF(C65=0,\"\",LEFT(INDEX(Lists!$H$5:$H$49,MATCH(C65,Lists!$G$5:$G$49,0),1),1))","v":""},null,{"$f":"'Month 8'!H65+'Month 8'!I65-'Month 8'!J65","v":0},"","",null,"0"]
[{"$f":"Planning!A50","v":"I042"},{"$f":"Planning!B50","v":0},{"$f":"Planning!C50","v":0},{"$f":"Planning!D50","v":0},{"$f":"Planning!E50","v":0},{"$f":"IF(Planning!G50<>0,Planning!G50,\"\")","v":""},{"$f":"Planning!H50","v":0},{"$f":"Planning!AG50","v":0},{"$f":"IF(OR(W66=\"1\",AND(W66<>\"1\",G66=Lists!$A$17)),Y66,0)","v":0},null,{"$f":"IF(AND(W66=\"2\",G66<>Lists!$A$17),AA66,Z66)","v":""},"",{"$f":"Planning!AH50","v":{"v":0,"d":"0.00"}},{"$f":"'Month 8'!M66+'Month 8'!N66-'Month 8'!O66","v":{"v":0,"d":"0.00"}},null,"","",{"$f":"SUMIFS($J$25:$J$224,$C$25:$C$224,$C66,$G$25:$G$224,Lists!$A$16)","v":0},0,null,"",null,{"$f":"IF(C66=0,\"\",LEFT(INDEX(Lists!$H$5:$H$49,MATCH(C66,Lists!$G$5:$G$49,0),1),1))","v":""},null,{"$f":"'Month 8'!H66+'Month 8'!I66-'Month 8'!J66","v":0},"","",null,"0"]
[{"$f":"Planning!A51","v":"I043"},{"$f":"Planning!B51","v":0},{"$f":"Planning!C51","v":0},{"$f":"Planning!D51","v":0},{"$f":"Planning!E51","v":0},{"$f":"IF(Planning!G51<>0,Planning!G51,\"\")","v":""},{"$f":"Planning!H51","v":0},{"$f":"Planning!AG51","v":0},{"$f":"IF(OR(W67=\"1\",AND(W67<>\"1\",G67=Lists!$A$17)),Y67,0)","v":0},null,{"$f":"IF(AND(W67=\"2\",G67<>Lists!$A$17),AA67,Z67)","v":""},"",{"$f":"Planning!AH51","v":{"v":0,"d":"0.00"}},{"$f":"'Month 8'!M67+'Month 8'!N67-'Month 8'!O67","v":{"v":0,"d":"0.00"}},null,"","",{"$f":"SUMIFS($J$25:$J$224,$C$25:$C$224,$C67,$G$25:$G$224,Lists!$A$16)","v":0},0,null,"",null,{"$f":"IF(C67=0,\"\",LEFT(INDEX(Lists!$H$5:$H$49,MATCH(C67,Lists!$G$5:$G$49,0),1),1))","v":""},null,{"$f":"'Month 8'!H67+'Month 8'!I67-'Month 8'!J67","v":0},"","",null,"0"]
[{"$f":"Planning!A52","v":"I044"},{"$f":"Planning!B52","v":0},{"$f":"Planning!C52","v":0},{"$f":"Planning!D52","v":0},{"$f":"Planning!E52","v":0},{"$f":"IF(Planning!G52<>0,Planning!G52,\"\")","v":""},{"$f":"Planning!H52","v":0},{"$f":"Planning!AG52","v":0},{"$f":"IF(OR(W68=\"1\",AND(W68<>\"1\",G68=Lists!$A$17)),Y68,0)","v":0},null,{"$f":"IF(AND(W68=\"2\",G68<>Lists!$A$17),AA68,Z68)","v":""},"",{"$f":"Planning!AH52","v":{"v":0,"d":"0.00"}},{"$f":"'Month 8'!M68+'Month 8'!N68-'Month 8'!O68","v":{"v":0,"d":"0.00"}},null,"","",{"$f":"SUMIFS($J$25:$J$224,$C$25:$C$224,$C68,$G$25:$G$224,Lists!$A$16)","v":0},0,null,"",null,{"$f":"IF(C68=0,\"\",LEFT(INDEX(Lists!$H$5:$H$49,MATCH(C68,Lists!$G$5:$G$49,0),1),1))","v":""},null,{"$f":"'Month 8'!H68+'Month 8'!I68-'Month 8'!J68","v":0},"","",null,"0"]
[{"$f":"Planning!A53","v":"I045"},{"$f":"Planning!B53","v":0},{"$f":"Planning!C53","v":0},{"$f":"Planning!D53","v":0},{"$f":"Planning!E53","v":0},{"$f":"IF(Planning!G53<>0,Planning!G53,\"\")","v":""},{"$f":"Planning!H53","v":0},{"$f":"Planning!AG53","v":0},{"$f":"IF(OR(W69=\"1\",AND(W69<>\"1\",G69=Lists!$A$17)),Y69,0)","v":0},null,{"$f":"IF(AND(W69=\"2\",G69<>Lists!$A$17),AA69,Z69)","v":""},"",{"$f":"Planning!AH53","v":{"v":0,"d":"0.00"}},{"$f":"'Month 8'!M69+'Month 8'!N69-'Month 8'!O69","v":{"v":0,"d":"0.00"}},null,"","",{"$f":"SUMIFS($J$25:$J$224,$C$25:$C$224,$C69,$G$25:$G$224,Lists!$A$16)","v":0},0,null,"",null,{"$f":"IF(C69=0,\"\",LEFT(INDEX(Lists!$H$5:$H$49,MATCH(C69,Lists!$G$5:$G$49,0),1),1))","v":""},null,{"$f":"'Month 8'!H69+'Month 8'!I69-'Month 8'!J69","v":0},"","",null,"0"]
[{"$f":"Planning!A54","v":"I046"},{"$f":"Planning!B54","v":0},{"$f":"Planning!C54","v":0},{"$f":"Planning!D54","v":0},{"$f":"Planning!E54","v":0},{"$f":"IF(Planning!G54<>0,Planning!G54,\"\")","v":""},{"$f":"Planning!H54","v":0},{"$f":"Planning!AG54","v":0},{"$f":"IF(OR(W70=\"1\",AND(W70<>\"1\",G70=Lists!$A$17)),Y70,0)","v":0},null,{"$f":"IF(AND(W70=\"2\",G70<>Lists!$A$17),AA70,Z70)","v":""},"",{"$f":"Planning!AH54","v":{"v":0,"d":"0.00"}},{"$f":"'Month 8'!M70+'Month 8'!N70-'Month 8'!O70","v":{"v":0,"d":"0.00"}},null,"","",{"$f":"SUMIFS($J$25:$J$224,$C$25:$C$224,$C70,$G$25:$G$224,Lists!$A$16)","v":0},0,null,"",null,{"$f":"IF(C70=0,\"\",LEFT(INDEX(Lists!$H$5:$H$49,MATCH(C70,Lists!$G$5:$G$49,0),1),1))","v":""},null,{"$f":"'Month 8'!H70+'Month 8'!I70-'Month 8'!J70","v":0},"","",null,"0"]
[{"$f":"Planning!A55","v":"I047"},{"$f":"Planning!B55","v":0},{"$f":"Planning!C55","v":0},{"$f":"Planning!D55","v":0},{"$f":"Planning!E55","v":0},{"$f":"IF(Planning!G55<>0,Planning!G55,\"\")","v":""},{"$f":"Planning!H55","v":0},{"$f":"Planning!AG55","v":0},{"$f":"IF(OR(W71=\"1\",AND(W71<>\"1\",G71=Lists!$A$17)),Y71,0)","v":0},null,{"$f":"IF(AND(W71=\"2\",G71<>Lists!$A$17),AA71,Z71)","v":""},"",{"$f":"Planning!AH55","v":{"v":0,"d":"0.00"}},{"$f":"'Month 8'!M71+'Month 8'!N71-'Month 8'!O71","v":{"v":0,"d":"0.00"}},null,"","",{"$f":"SUMIFS($J$25:$J$224,$C$25:$C$224,$C71,$G$25:$G$224,Lists!$A$16)","v":0},0,null,"",null,{"$f":"IF(C71=0,\"\",LEFT(INDEX(Lists!$H$5:$H$49,MATCH(C71,Lists!$G$5:$G$49,0),1),1))","v":""},null,{"$f":"'Month 8'!H71+'Month 8'!I71-'Month 8'!J71","v":0},"","",null,"0"]
[{"$f":"Planning!A56","v":"I048"},{"$f":"Planning!B56","v":0},{"$f":"Planning!C56","v":0},{"$f":"Planning!D56","v":0},{"$f":"Planning!E56","v":0},{"$f":"IF(Planning!G56<>0,Planning!G56,\"\")","v":""},{"$f":"Planning!H56","v":0},{"$f":"Planning!AG56","v":0},{"$f":"IF(OR(W72=\"1\",AND(W72<>\"1\",G72=Lists!$A$17)),Y72,0)","v":0},null,{"$f":"IF(AND(W72=\"2\",G72<>Lists!$A$17),AA72,Z72)","v":""},"",{"$f":"Planning!AH56","v":{"v":0,"d":"0.00"}},{"$f":"'Month 8'!M72+'Month 8'!N72-'Month 8'!O72","v":{"v":0,"d":"0.00"}},null,"","",{"$f":"SUMIFS($J$25:$J$224,$C$25:$C$224,$C72,$G$25:$G$224,Lists!$A$16)","v":0},0,null,"",null,{"$f":"IF(C72=0,\"\",LEFT(INDEX(Lists!$H$5:$H$49,MATCH(C72,Lists!$G$5:$G$49,0),1),1))","v":""},null,{"$f":"'Month 8'!H72+'Month 8'!I72-'Month 8'!J72","v":0},"","",null,"0"]
[{"$f":"Planning!A57","v":"I049"},{"$f":"Planning!B57","v":0},{"$f":"Planning!C57","v":0},{"$f":"Planning!D57","v":0},{"$f":"Planning!E57","v":0},{"$f":"IF(Planning!G57<>0,Planning!G57,\"\")","v":""},{"$f":"Planning!H57","v":0},{"$f":"Planning!AG57","v":0},{"$f":"IF(OR(W73=\"1\",AND(W73<>\"1\",G73=Lists!$A$17)),Y73,0)","v":0},null,{"$f":"IF(AND(W73=\"2\",G73<>Lists!$A$17),AA73,Z73)","v":""},"",{"$f":"Planning!AH57","v":{"v":0,"d":"0.00"}},{"$f":"'Month 8'!M73+'Month 8'!N73-'Month 8'!O73","v":{"v":0,"d":"0.00"}},null,"","",{"$f":"SUMIFS($J$25:$J$224,$C$25:$C$224,$C73,$G$25:$G$224,Lists!$A$16)","v":0},0,null,"",null,{"$f":"IF(C73=0,\"\",LEFT(INDEX(Lists!$H$5:$H$49,MATCH(C73,Lists!$G$5:$G$49,0),1),1))","v":""},null,{"$f":"'Month 8'!H73+'Month 8'!I73-'Month 8'!J73","v":0},"","",null,"0"]
[{"$f":"Planning!A58","v":"I050"},{"$f":"Planning!B58","v":0},{"$f":"Planning!C58","v":0},{"$f":"Planning!D58","v":0},{"$f":"Planning!E58","v":0},{"$f":"IF(Planning!G58<>0,Planning!G58,\"\")","v":""},{"$f":"Planning!H58","v":0},{"$f":"Planning!AG58","v":0},{"$f":"IF(OR(W74=\"1\",AND(W74<>\"1\",G74=Lists!$A$17)),Y74,0)","v":0},null,{"$f":"IF(AND(W74=\"2\",G74<>Lists!$A$17),AA74,Z74)","v":""},"",{"$f":"Planning!AH58","v":{"v":0,"d":"0.00"}},{"$f":"'Month 8'!M74+'Month 8'!N74-'Month 8'!O74","v":{"v":0,"d":"0.00"}},null,"","",{"$f":"SUMIFS($J$25:$J$224,$C$25:$C$224,$C74,$G$25:$G$224,Lists!$A$16)","v":0},0,null,"",null,{"$f":"IF(C74=0,\"\",LEFT(INDEX(Lists!$H$5:$H$49,MATCH(C74,Lists!$G$5:$G$49,0),1),1))","v":""},null,{"$f":"'Month 8'!H74+'Month 8'!I74-'Month 8'!J74","v":0},"","",null,"0"]
[{"$f":"Planning!A59","v":"I051"},{"$f":"Planning!B59","v":0},{"$f":"Planning!C59","v":0},{"$f":"Planning!D59","v":0},{"$f":"Planning!E59","v":0},{"$f":"IF(Planning!G59<>0,Planning!G59,\"\")","v":""},{"$f":"Planning!H59","v":0},{"$f":"Planning!AG59","v":0},{"$f":"IF(OR(W75=\"1\",AND(W75<>\"1\",G75=Lists!$A$17)),Y75,0)","v":0},null,{"$f":"IF(AND(W75=\"2\",G75<>Lists!$A$17),AA75,Z75)","v":""},"",{"$f":"Planning!AH59","v":{"v":0,"d":"0.00"}},{"$f":"'Month 8'!M75+'Month 8'!N75-'Month 8'!O75","v":{"v":0,"d":"0.00"}},null,"","",{"$f":"SUMIFS($J$25:$J$224,$C$25:$C$224,$C75,$G$25:$G$224,Lists!$A$16)","v":0},0,null,"",null,{"$f":"IF(C75=0,\"\",LEFT(INDEX(Lists!$H$5:$H$49,MATCH(C75,Lists!$G$5:$G$49,0),1),1))","v":""},null,{"$f":"'Month 8'!H75+'Month 8'!I75-'Month 8'!J75","v":0},"","",null,"0"]
[{"$f":"Planning!A60","v":"I052"},{"$f":"Planning!B60","v":0},{"$f":"Planning!C60","v":0},{"$f":"Planning!D60","v":0},{"$f":"Planning!E60","v":0},{"$f":"IF(Planning!G60<>0,Planning!G60,\"\")","v":""},{"$f":"Planning!H60","v":0},{"$f":"Planning!AG60","v":0},{"$f":"IF(OR(W76=\"1\",AND(W76<>\"1\",G76=Lists!$A$17)),Y76,0)","v":0},null,{"$f":"IF(AND(W76=\"2\",G76<>Lists!$A$17),AA76,Z76)","v":""},"",{"$f":"Planning!AH60","v":{"v":0,"d":"0.00"}},{"$f":"'Month 8'!M76+'Month 8'!N76-'Month 8'!O76","v":{"v":0,"d":"0.00"}},null,"","",{"$f":"SUMIFS($J$25:$J$224,$C$25:$C$224,$C76,$G$25:$G$224,Lists!$A$16)","v":0},0,null,"",null,{"$f":"IF(C76=0,\"\",LEFT(INDEX(Lists!$H$5:$H$49,MATCH(C76,Lists!$G$5:$G$49,0),1),1))","v":""},null,{"$f":"'Month 8'!H76+'Month 8'!I76-'Month 8'!J76","v":0},"","",null,"0"]
[{"$f":"Planning!A61","v":"I053"},{"$f":"Planning!B61","v":0},{"$f":"Planning!C61","v":0},{"$f":"Planning!D61","v":0},{"$f":"Planning!E61","v":0},{"$f":"IF(Planning!G61<>0,Planning!G61,\"\")","v":""},{"$f":"Planning!H61","v":0},{"$f":"Planning!AG61","v":0},{"$f":"IF(OR(W77=\"1\",AND(W77<>\"1\",G77=Lists!$A$17)),Y77,0)","v":0},null,{"$f":"IF(AND(W77=\"2\",G77<>Lists!$A$17),AA77,Z77)","v":""},"",{"$f":"Planning!AH61","v":{"v":0,"d":"0.00"}},{"$f":"'Month 8'!M77+'Month 8'!N77-'Month 8'!O77","v":{"v":0,"d":"0.00"}},null,"","",{"$f":"SUMIFS($J$25:$J$224,$C$25:$C$224,$C77,$G$25:$G$224,Lists!$A$16)","v":0},0,null,"",null,{"$f":"IF(C77=0,\"\",LEFT(INDEX(Lists!$H$5:$H$49,MATCH(C77,Lists!$G$5:$G$49,0),1),1))","v":""},null,{"$f":"'Month 8'!H77+'Month 8'!I77-'Month 8'!J77","v":0},"","",null,"0"]
[{"$f":"Planning!A62","v":"I054"},{"$f":"Planning!B62","v":0},{"$f":"Planning!C62","v":0},{"$f":"Planning!D62","v":0},{"$f":"Planning!E62","v":0},{"$f":"IF(Planning!G62<>0,Planning!G62,\"\")","v":""},{"$f":"Planning!H62","v":0},{"$f":"Planning!AG62","v":0},{"$f":"IF(OR(W78=\"1\",AND(W78<>\"1\",G78=Lists!$A$17)),Y78,0)","v":0},null,{"$f":"IF(AND(W78=\"2\",G78<>Lists!$A$17),AA78,Z78)","v":""},"",{"$f":"Planning!AH62","v":{"v":0,"d":"0.00"}},{"$f":"'Month 8'!M78+'Month 8'!N78-'Month 8'!O78","v":{"v":0,"d":"0.00"}},null,"","",{"$f":"SUMIFS($J$25:$J$224,$C$25:$C$224,$C78,$G$25:$G$224,Lists!$A$16)","v":0},0,null,"",null,{"$f":"IF(C78=0,\"\",LEFT(INDEX(Lists!$H$5:$H$49,MATCH(C78,Lists!$G$5:$G$49,0),1),1))","v":""},null,{"$f":"'Month 8'!H78+'Month 8'!I78-'Month 8'!J78","v":0},"","",null,"0"]
[{"$f":"Planning!A63","v":"I055"},{"$f":"Planning!B63","v":0},{"$f":"Planning!C63","v":0},{"$f":"Planning!D63","v":0},{"$f":"Planning!E63","v":0},{"$f":"IF(Planning!G63<>0,Planning!G63,\"\")","v":""},{"$f":"Planning!H63","v":0},{"$f":"Planning!AG63","v":0},{"$f":"IF(OR(W79=\"1\",AND(W79<>\"1\",G79=Lists!$A$17)),Y79,0)","v":0},null,{"$f":"IF(AND(W79=\"2\",G79<>Lists!$A$17),AA79,Z79)","v":""},"",{"$f":"Planning!AH63","v":{"v":0,"d":"0.00"}},{"$f":"'Month 8'!M79+'Month 8'!N79-'Month 8'!O79","v":{"v":0,"d":"0.00"}},null,"","",{"$f":"SUMIFS($J$25:$J$224,$C$25:$C$224,$C79,$G$25:$G$224,Lists!$A$16)","v":0},0,null,"",null,{"$f":"IF(C79=0,\"\",LEFT(INDEX(Lists!$H$5:$H$49,MATCH(C79,Lists!$G$5:$G$49,0),1),1))","v":""},null,{"$f":"'Month 8'!H79+'Month 8'!I79-'Month 8'!J79","v":0},"","",null,"0"]
[{"$f":"Planning!A64","v":"I056"},{"$f":"Planning!B64","v":0},{"$f":"Planning!C64","v":0},{"$f":"Planning!D64","v":0},{"$f":"Planning!E64","v":0},{"$f":"IF(Planning!G64<>0,Planning!G64,\"\")","v":""},{"$f":"Planning!H64","v":0},{"$f":"Planning!AG64","v":0},{"$f":"IF(OR(W80=\"1\",AND(W80<>\"1\",G80=Lists!$A$17)),Y80,0)","v":0},null,{"$f":"IF(AND(W80=\"2\",G80<>Lists!$A$17),AA80,Z80)","v":""},"",{"$f":"Planning!AH64","v":{"v":0,"d":"0.00"}},{"$f":"'Month 8'!M80+'Month 8'!N80-'Month 8'!O80","v":{"v":0,"d":"0.00"}},null,"","",{"$f":"SUMIFS($J$25:$J$224,$C$25:$C$224,$C80,$G$25:$G$224,Lists!$A$16)","v":0},0,null,"",null,{"$f":"IF(C80=0,\"\",LEFT(INDEX(Lists!$H$5:$H$49,MATCH(C80,Lists!$G$5:$G$49,0),1),1))","v":""},null,{"$f":"'Month 8'!H80+'Month 8'!I80-'Month 8'!J80","v":0},"","",null,"0"]
[{"$f":"Planning!A65","v":"I057"},{"$f":"Planning!B65","v":0},{"$f":"Planning!C65","v":0},{"$f":"Planning!D65","v":0},{"$f":"Planning!E65","v":0},{"$f":"IF(Planning!G65<>0,Planning!G65,\"\")","v":""},{"$f":"Planning!H65","v":0},{"$f":"Planning!AG65","v":0},{"$f":"IF(OR(W81=\"1\",AND(W81<>\"1\",G81=Lists!$A$17)),Y81,0)","v":0},null,{"$f":"IF(AND(W81=\"2\",G81<>Lists!$A$17),AA81,Z81)","v":""},"",{"$f":"Planning!AH65","v":{"v":0,"d":"0.00"}},{"$f":"'Month 8'!M81+'Month 8'!N81-'Month 8'!O81","v":{"v":0,"d":"0.00"}},null,"","",{"$f":"SUMIFS($J$25:$J$224,$C$25:$C$224,$C81,$G$25:$G$224,Lists!$A$16)","v":0},0,null,"",null,{"$f":"IF(C81=0,\"\",LEFT(INDEX(Lists!$H$5:$H$49,MATCH(C81,Lists!$G$5:$G$49,0),1),1))","v":""},null,{"$f":"'Month 8'!H81+'Month 8'!I81-'Month 8'!J81","v":0},"","",null,"0"]
[{"$f":"Planning!A66","v":"I058"},{"$f":"Planning!B66","v":0},{"$f":"Planning!C66","v":0},{"$f":"Planning!D66","v":0},{"$f":"Planning!E66","v":0},{"$f":"IF(Planning!G66<>0,Planning!G66,\"\")","v":""},{"$f":"Planning!H66","v":0},{"$f":"Planning!AG66","v":0},{"$f":"IF(OR(W82=\"1\",AND(W82<>\"1\",G82=Lists!$A$17)),Y82,0)","v":0},null,{"$f":"IF(AND(W82=\"2\",G82<>Lists!$A$17),AA82,Z82)","v":""},"",{"$f":"Planning!AH66","v":{"v":0,"d":"0.00"}},{"$f":"'Month 8'!M82+'Month 8'!N82-'Month 8'!O82","v":{"v":0,"d":"0.00"}},null,"","",{"$f":"SUMIFS($J$25:$J$224,$C$25:$C$224,$C82,$G$25:$G$224,Lists!$A$16)","v":0},0,null,"",null,{"$f":"IF(C82=0,\"\",LEFT(INDEX(Lists!$H$5:$H$49,MATCH(C82,Lists!$G$5:$G$49,0),1),1))","v":""},null,{"$f":"'Month 8'!H82+'Month 8'!I82-'Month 8'!J82","v":0},"","",null,"0"]
[{"$f":"Planning!A67","v":"I059"},{"$f":"Planning!B67","v":0},{"$f":"Planning!C67","v":0},{"$f":"Planning!D67","v":0},{"$f":"Planning!E67","v":0},{"$f":"IF(Planning!G67<>0,Planning!G67,\"\")","v":""},{"$f":"Planning!H67","v":0},{"$f":"Planning!AG67","v":0},{"$f":"IF(OR(W83=\"1\",AND(W83<>\"1\",G83=Lists!$A$17)),Y83,0)","v":0},null,{"$f":"IF(AND(W83=\"2\",G83<>Lists!$A$17),AA83,Z83)","v":""},"",{"$f":"Planning!AH67","v":{"v":0,"d":"0.00"}},{"$f":"'Month 8'!M83+'Month 8'!N83-'Month 8'!O83","v":{"v":0,"d":"0.00"}},null,"","",{"$f":"SUMIFS($J$25:$J$224,$C$25:$C$224,$C83,$G$25:$G$224,Lists!$A$16)","v":0},0,null,"",null,{"$f":"IF(C83=0,\"\",LEFT(INDEX(Lists!$H$5:$H$49,MATCH(C83,Lists!$G$5:$G$49,0),1),1))","v":""},null,{"$f":"'Month 8'!H83+'Month 8'!I83-'Month 8'!J83","v":0},"","",null,"0"]
[{"$f":"Planning!A68","v":"I060"},{"$f":"Planning!B68","v":0},{"$f":"Planning!C68","v":0},{"$f":"Planning!D68","v":0},{"$f":"Planning!E68","v":0},{"$f":"IF(Planning!G68<>0,Planning!G68,\"\")","v":""},{"$f":"Planning!H68","v":0},{"$f":"Planning!AG68","v":0},{"$f":"IF(OR(W84=\"1\",AND(W84<>\"1\",G84=Lists!$A$17)),Y84,0)","v":0},null,{"$f":"IF(AND(W84=\"2\",G84<>Lists!$A$17),AA84,Z84)","v":""},"",{"$f":"Planning!AH68","v":{"v":0,"d":"0.00"}},{"$f":"'Month 8'!M84+'Month 8'!N84-'Month 8'!O84","v":{"v":0,"d":"0.00"}},null,"","",{"$f":"SUMIFS($J$25:$J$224,$C$25:$C$224,$C84,$G$25:$G$224,Lists!$A$16)","v":0},0,null,"",null,{"$f":"IF(C84=0,\"\",LEFT(INDEX(Lists!$H$5:$H$49,MATCH(C84,Lists!$G$5:$G$49,0),1),1))","v":""},null,{"$f":"'Month 8'!H84+'Month 8'!I84-'Month 8'!J84","v":0},"","",null,"0"]
[{"$f":"Planning!A69","v":"I061"},{"$f":"Planning!B69","v":0},{"$f":"Planning!C69","v":0},{"$f":"Planning!D69","v":0},{"$f":"Planning!E69","v":0},{"$f":"IF(Planning!G69<>0,Planning!G69,\"\")","v":""},{"$f":"Planning!H69","v":0},{"$f":"Planning!AG69","v":0},{"$f":"IF(OR(W85=\"1\",AND(W85<>\"1\",G85=Lists!$A$17)),Y85,0)","v":0},null,{"$f":"IF(AND(W85=\"2\",G85<>Lists!$A$17),AA85,Z85)","v":""},"",{"$f":"Planning!AH69","v":{"v":0,"d":"0.00"}},{"$f":"'Month 8'!M85+'Month 8'!N85-'Month 8'!O85","v":{"v":0,"d":"0.00"}},null,"","",{"$f":"SUMIFS($J$25:$J$224,$C$25:$C$224,$C85,$G$25:$G$224,Lists!$A$16)","v":0},0,null,"",null,{"$f":"IF(C85=0,\"\",LEFT(INDEX(Lists!$H$5:$H$49,MATCH(C85,Lists!$G$5:$G$49,0),1),1))","v":""},null,{"$f":"'Month 8'!H85+'Month 8'!I85-'Month 8'!J85","v":0},"","",null,"0"]
[{"$f":"Planning!A70","v":"I062"},{"$f":"Planning!B70","v":0},{"$f":"Planning!C70","v":0},{"$f":"Planning!D70","v":0},{"$f":"Planning!E70","v":0},{"$f":"IF(Planning!G70<>0,Planning!G70,\"\")","v":""},{"$f":"Planning!H70","v":0},{"$f":"Planning!AG70","v":0},{"$f":"IF(OR(W86=\"1\",AND(W86<>\"1\",G86=Lists!$A$17)),Y86,0)","v":0},null,{"$f":"IF(AND(W86=\"2\",G86<>Lists!$A$17),AA86,Z86)","v":""},"",{"$f":"Planning!AH70","v":{"v":0,"d":"0.00"}},{"$f":"'Month 8'!M86+'Month 8'!N86-'Month 8'!O86","v":{"v":0,"d":"0.00"}},null,"","",{"$f":"SUMIFS($J$25:$J$224,$C$25:$C$224,$C86,$G$25:$G$224,Lists!$A$16)","v":0},0,null,"",null,{"$f":"IF(C86=0,\"\",LEFT(INDEX(Lists!$H$5:$H$49,MATCH(C86,Lists!$G$5:$G$49,0),1),1))","v":""},null,{"$f":"'Month 8'!H86+'Month 8'!I86-'Month 8'!J86","v":0},"","",null,"0"]
[{"$f":"Planning!A71","v":"I063"},{"$f":"Planning!B71","v":0},{"$f":"Planning!C71","v":0},{"$f":"Planning!D71","v":0},{"$f":"Planning!E71","v":0},{"$f":"IF(Planning!G71<>0,Planning!G71,\"\")","v":""},{"$f":"Planning!H71","v":0},{"$f":"Planning!AG71","v":0},{"$f":"IF(OR(W87=\"1\",AND(W87<>\"1\",G87=Lists!$A$17)),Y87,0)","v":0},null,{"$f":"IF(AND(W87=\"2\",G87<>Lists!$A$17),AA87,Z87)","v":""},"",{"$f":"Planning!AH71","v":{"v":0,"d":"0.00"}},{"$f":"'Month 8'!M87+'Month 8'!N87-'Month 8'!O87","v":{"v":0,"d":"0.00"}},null,"","",{"$f":"SUMIFS($J$25:$J$224,$C$25:$C$224,$C87,$G$25:$G$224,Lists!$A$16)","v":0},0,null,"",null,{"$f":"IF(C87=0,\"\",LEFT(INDEX(Lists!$H$5:$H$49,MATCH(C87,Lists!$G$5:$G$49,0),1),1))","v":""},null,{"$f":"'Month 8'!H87+'Month 8'!I87-'Month 8'!J87","v":0},"","",null,"0"]
[{"$f":"Planning!A72","v":"I064"},{"$f":"Planning!B72","v":0},{"$f":"Planning!C72","v":0},{"$f":"Planning!D72","v":0},{"$f":"Planning!E72","v":0},{"$f":"IF(Planning!G72<>0,Planning!G72,\"\")","v":""},{"$f":"Planning!H72","v":0},{"$f":"Planning!AG72","v":0},{"$f":"IF(OR(W88=\"1\",AND(W88<>\"1\",G88=Lists!$A$17)),Y88,0)","v":0},null,{"$f":"IF(AND(W88=\"2\",G88<>Lists!$A$17),AA88,Z88)","v":""},"",{"$f":"Planning!AH72","v":{"v":0,"d":"0.00"}},{"$f":"'Month 8'!M88+'Month 8'!N88-'Month 8'!O88","v":{"v":0,"d":"0.00"}},null,"","",{"$f":"SUMIFS($J$25:$J$224,$C$25:$C$224,$C88,$G$25:$G$224,Lists!$A$16)","v":0},0,null,"",null,{"$f":"IF(C88=0,\"\",LEFT(INDEX(Lists!$H$5:$H$49,MATCH(C88,Lists!$G$5:$G$49,0),1),1))","v":""},null,{"$f":"'Month 8'!H88+'Month 8'!I88-'Month 8'!J88","v":0},"","",null,"0"]
[{"$f":"Planning!A73","v":"I065"},{"$f":"Planning!B73","v":0},{"$f":"Planning!C73","v":0},{"$f":"Planning!D73","v":0},{"$f":"Planning!E73","v":0},{"$f":"IF(Planning!G73<>0,Planning!G73,\"\")","v":""},{"$f":"Planning!H73","v":0},{"$f":"Planning!AG73","v":0},{"$f":"IF(OR(W89=\"1\",AND(W89<>\"1\",G89=Lists!$A$17)),Y89,0)","v":0},null,{"$f":"IF(AND(W89=\"2\",G89<>Lists!$A$17),AA89,Z89)","v":""},{"$f":"IF($U89=ExcluirDelPLogro,\"\",IF(AND(H89=0,I89=0,J89=0),\"\",K89))","v":""},{"$f":"Planning!AH73","v":{"v":0,"d":"0.00"}},{"$f":"'Month 8'!M89+'Month 8'!N89-'Month 8'!O89","v":{"v":0,"d":"0.00"}},null,"",{"$f":"IF($U89=ExcluirDelPLogro,\"\",IF(AND(M89=0,N89=0,O89=0),\"\",P89))","v":""},{"$f":"SUMIFS($J$25:$J$224,$C$25:$C$224,$C89,$G$25:$G$224,Lists!$A$16)","v":0},0,null,"",null,{"$f":"IF(C89=0,\"\",LEFT(INDEX(Lists!$H$5:$H$49,MATCH(C89,Lists!$G$5:$G$49,0),1),1))","v":""},null,{"$f":"'Month 8'!H89+'Month 8'!I89-'Month 8'!J89","v":0},"",{"$f":"IF(AND(H89=0,I89=0,J89=0),\"\",IF(J89>0,H89/J89,0))","v":""},null,"0"]
[{"$f":"Planning!A74","v":"I066"},{"$f":"Planning!B74","v":0},{"$f":"Planning!C74","v":0},{"$f":"Planning!D74","v":0},{"$f":"Planning!E74","v":0},{"$f":"IF(Planning!G74<>0,Planning!G74,\"\")","v":""},{"$f":"Planning!H74","v":0},{"$f":"Planning!AG74","v":0},{"$f":"IF(OR(W90=\"1\",AND(W90<>\"1\",G90=Lists!$A$17)),Y90,0)","v":0},null,{"$f":"IF(AND(W90=\"2\",G90<>Lists!$A$17),AA90,Z90)","v":""},"",{"$f":"Planning!AH74","v":{"v":0,"d":"0.00"}},{"$f":"'Month 8'!M90+'Month 8'!N90-'Month 8'!O90","v":{"v":0,"d":"0.00"}},null,{"$f":"IF(AND(M90=0,N90=0,O90=0),\"\",IF((M90+N90)>0,O90/(M90+N90),O90))","v":""},"",{"$f":"SUMIFS($J$25:$J$224,$C$25:$C$224,$C90,$G$25:$G$224,Lists!$A$16)","v":0},{"$f":"SUMIFS($O$25:$O$224,$C$25:$C$224,$C90,$G$25:$G$224,\"<>0\")","v":0},null,{"$f":"IF(B90=0,\"\",IF(LEFT(B90,1)=\"1\",\"1\",\"2\"))","v":""},null,{"$f":"IF(C90=0,\"\",LEFT(INDEX(Lists!$H$5:$H$49,MATCH(C90,Lists!$G$5:$G$49,0),1),1))","v":""},null,{"$f":"'Month 8'!H90+'Month 8'!I90-'Month 8'!J90","v":0},{"$f":"IF(AND(H90=0,I90=0,J90=0),\"\",IF((H90+I90)>0,J90/(H90+I90),J90))","v":""},"",null,{"$f":"U90&C90","v":"0"}]
[{"$f":"Planning!A75","v":"I067"},{"$f":"Planning!B75","v":0},{"$f":"Planning!C75","v":0},{"$f":"Planning!D75","v":0},{"$f":"Planning!E75","v":0},{"$f":"IF(Planning!G75<>0,Planning!G75,\"\")","v":""},{"$f":"Planning!H75","v":0},{"$f":"Planning!AG75","v":0},{"$f":"IF(OR(W91=\"1\",AND(W91<>\"1\",G91=Lists!$A$17)),Y91,0)","v":0},null,{"$f":"IF(AND(W91=\"2\",G91<>Lists!$A$17),AA91,Z91)","v":""},"",{"$f":"Planning!AH75","v":{"v":0,"d":"0.00"}},{"$f":"'Month 8'!M91+'Month 8'!N91-'Month 8'!O91","v":{"v":0,"d":"0.00"}},null,"","",{"$f":"SUMIFS($J$25:$J$224,$C$25:$C$224,$C91,$G$25:$G$224,Lists!$A$16)","v":0},0,null,"",null,{"$f":"IF(C91=0,\"\",LEFT(INDEX(Lists!$H$5:$H$49,MATCH(C91,Lists!$G$5:$G$49,0),1),1))","v":""},null,{"$f":"'Month 8'!H91+'Month 8'!I91-'Month 8'!J91","v":0},"","",null,"0"]
[{"$f":"Planning!A76","v":"I068"},{"$f":"Planning!B76","v":0},{"$f":"Planning!C76","v":0},{"$f":"Planning!D76","v":0},{"$f":"Planning!E76","v":0},{"$f":"IF(Planning!G76<>0,Planning!G76,\"\")","v":""},{"$f":"Planning!H76","v":0},{"$f":"Planning!AG76","v":0},{"$f":"IF(OR(W92=\"1\",AND(W92<>\"1\",G92=Lists!$A$17)),Y92,0)","v":0},null,{"$f":"IF(AND(W92=\"2\",G92<>Lists!$A$17),AA92,Z92)","v":""},"",{"$f":"Planning!AH76","v":{"v":0,"d":"0.00"}},{"$f":"'Month 8'!M92+'Month 8'!N92-'Month 8'!O92","v":{"v":0,"d":"0.00"}},null,"","",{"$f":"SUMIFS($J$25:$J$224,$C$25:$C$224,$C92,$G$25:$G$224,Lists!$A$16)","v":0},0,null,"",null,{"$f":"IF(C92=0,\"\",LEFT(INDEX(Lists!$H$5:$H$49,MATCH(C92,Lists!$G$5:$G$49,0),1),1))","v":""},null,{"$f":"'Month 8'!H92+'Month 8'!I92-'Month 8'!J92","v":0},"","",null,"0"]
[{"$f":"Planning!A77","v":"I069"},{"$f":"Planning!B77","v":0},{"$f":"Planning!C77","v":0},{"$f":"Planning!D77","v":0},{"$f":"Planning!E77","v":0},{"$f":"IF(Planning!G77<>0,Planning!G77,\"\")","v":""},{"$f":"Planning!H77","v":0},{"$f":"Planning!AG77","v":0},{"$f":"IF(OR(W93=\"1\",AND(W93<>\"1\",G93=Lists!$A$17)),Y93,0)","v":0},null,{"$f":"IF(AND(W93=\"2\",G93<>Lists!$A$17),AA93,Z93)","v":""},"",{"$f":"Planning!AH77","v":{"v":0,"d":"0.00"}},{"$f":"'Month 8'!M93+'Month 8'!N93-'Month 8'!O93","v":{"v":0,"d":"0.00"}},null,"","",{"$f":"SUMIFS($J$25:$J$224,$C$25:$C$224,$C93,$G$25:$G$224,Lists!$A$16)","v":0},0,null,"",null,{"$f":"IF(C93=0,\"\",LEFT(INDEX(Lists!$H$5:$H$49,MATCH(C93,Lists!$G$5:$G$49,0),1),1))","v":""},null,{"$f":"'Month 8'!H93+'Month 8'!I93-'Month 8'!J93","v":0},"","",null,"0"]
[{"$f":"Planning!A78","v":"I070"},{"$f":"Planning!B78","v":0},{"$f":"Planning!C78","v":0},{"$f":"Planning!D78","v":0},{"$f":"Planning!E78","v":0},{"$f":"IF(Planning!G78<>0,Planning!G78,\"\")","v":""},{"$f":"Planning!H78","v":0},{"$f":"Planning!AG78","v":0},{"$f":"IF(OR(W94=\"1\",AND(W94<>\"1\",G94=Lists!$A$17)),Y94,0)","v":0},null,{"$f":"IF(AND(W94=\"2\",G94<>Lists!$A$17),AA94,Z94)","v":""},"",{"$f":"Planning!AH78","v":{"v":0,"d":"0.00"}},{"$f":"'Month 8'!M94+'Month 8'!N94-'Month 8'!O94","v":{"v":0,"d":"0.00"}},null,"","",{"$f":"SUMIFS($J$25:$J$224,$C$25:$C$224,$C94,$G$25:$G$224,Lists!$A$16)","v":0},0,null,"",null,{"$f":"IF(C94=0,\"\",LEFT(INDEX(Lists!$H$5:$H$49,MATCH(C94,Lists!$G$5:$G$49,0),1),1))","v":""},null,{"$f":"'Month 8'!H94+'Month 8'!I94-'Month 8'!J94","v":0},"","",null,"0"]
[{"$f":"Planning!A79","v":"I071"},{"$f":"Planning!B79","v":0},{"$f":"Planning!C79","v":0},{"$f":"Planning!D79","v":0},{"$f":"Planning!E79","v":0},{"$f":"IF(Planning!G79<>0,Planning!G79,\"\")","v":""},{"$f":"Planning!H79","v":0},{"$f":"Planning!AG79","v":0},{"$f":"IF(OR(W95=\"1\",AND(W95<>\"1\",G95=Lists!$A$17)),Y95,0)","v":0},null,{"$f":"IF(AND(W95=\"2\",G95<>Lists!$A$17),AA95,Z95)","v":""},"",{"$f":"Planning!AH79","v":{"v":0,"d":"0.00"}},{"$f":"'Month 8'!M95+'Month 8'!N95-'Month 8'!O95","v":{"v":0,"d":"0.00"}},null,"","",{"$f":"SUMIFS($J$25:$J$224,$C$25:$C$224,$C95,$G$25:$G$224,Lists!$A$16)","v":0},0,null,"",null,{"$f":"IF(C95=0,\"\",LEFT(INDEX(Lists!$H$5:$H$49,MATCH(C95,Lists!$G$5:$G$49,0),1),1))","v":""},null,{"$f":"'Month 8'!H95+'Month 8'!I95-'Month 8'!J95","v":0},"","",null,"0"]
[{"$f":"Planning!A80","v":"I072"},{"$f":"Planning!B80","v":0},{"$f":"Planning!C80","v":0},{"$f":"Planning!D80","v":0},{"$f":"Planning!E80","v":0},{"$f":"IF(Planning!G80<>0,Planning!G80,\"\")","v":""},{"$f":"Planning!H80","v":0},{"$f":"Planning!AG80","v":0},{"$f":"IF(OR(W96=\"1\",AND(W96<>\"1\",G96=Lists!$A$17)),Y96,0)","v":0},null,{"$f":"IF(AND(W96=\"2\",G96<>Lists!$A$17),AA96,Z96)","v":""},"",{"$f":"Planning!AH80","v":{"v":0,"d":"0.00"}},{"$f":"'Month 8'!M96+'Month 8'!N96-'Month 8'!O96","v":{"v":0,"d":"0.00"}},null,"","",{"$f":"SUMIFS($J$25:$J$224,$C$25:$C$224,$C96,$G$25:$G$224,Lists!$A$16)","v":0},0,null,"",null,{"$f":"IF(C96=0,\"\",LEFT(INDEX(Lists!$H$5:$H$49,MATCH(C96,Lists!$G$5:$G$49,0),1),1))","v":""},null,{"$f":"'Month 8'!H96+'Month 8'!I96-'Month 8'!J96","v":0},"","",null,"0"]
[{"$f":"Planning!A81","v":"I073"},{"$f":"Planning!B81","v":0},{"$f":"Planning!C81","v":0},{"$f":"Planning!D81","v":0},{"$f":"Planning!E81","v":0},{"$f":"IF(Planning!G81<>0,Planning!G81,\"\")","v":""},{"$f":"Planning!H81","v":0},{"$f":"Planning!AG81","v":0},{"$f":"IF(OR(W97=\"1\",AND(W97<>\"1\",G97=Lists!$A$17)),Y97,0)","v":0},null,{"$f":"IF(AND(W97=\"2\",G97<>Lists!$A$17),AA97,Z97)","v":""},"",{"$f":"Planning!AH81","v":{"v":0,"d":"0.00"}},{"$f":"'Month 8'!M97+'Month 8'!N97-'Month 8'!O97","v":{"v":0,"d":"0.00"}},null,"","",{"$f":"SUMIFS($J$25:$J$224,$C$25:$C$224,$C97,$G$25:$G$224,Lists!$A$16)","v":0},0,null,"",null,{"$f":"IF(C97=0,\"\",LEFT(INDEX(Lists!$H$5:$H$49,MATCH(C97,Lists!$G$5:$G$49,0),1),1))","v":""},null,{"$f":"'Month 8'!H97+'Month 8'!I97-'Month 8'!J97","v":0},"","",null,"0"]
[{"$f":"Planning!A82","v":"I074"},{"$f":"Planning!B82","v":0},{"$f":"Planning!C82","v":0},{"$f":"Planning!D82","v":0},{"$f":"Planning!E82","v":0},{"$f":"IF(Planning!G82<>0,Planning!G82,\"\")","v":""},{"$f":"Planning!H82","v":0},{"$f":"Planning!AG82","v":0},{"$f":"IF(OR(W98=\"1\",AND(W98<>\"1\",G98=Lists!$A$17)),Y98,0)","v":0},null,{"$f":"IF(AND(W98=\"2\",G98<>Lists!$A$17),AA98,Z98)","v":""},"",{"$f":"Planning!AH82","v":{"v":0,"d":"0.00"}},{"$f":"'Month 8'!M98+'Month 8'!N98-'Month 8'!O98","v":{"v":0,"d":"0.00"}},null,"","",{"$f":"SUMIFS($J$25:$J$224,$C$25:$C$224,$C98,$G$25:$G$224,Lists!$A$16)","v":0},0,null,"",null,{"$f":"IF(C98=0,\"\",LEFT(INDEX(Lists!$H$5:$H$49,MATCH(C98,Lists!$G$5:$G$49,0),1),1))","v":""},null,{"$f":"'Month 8'!H98+'Month 8'!I98-'Month 8'!J98","v":0},"","",null,"0"]
[{"$f":"Planning!A83","v":"I075"},{"$f":"Planning!B83","v":0},{"$f":"Planning!C83","v":0},{"$f":"Planning!D83","v":0},{"$f":"Planning!E83","v":0},{"$f":"IF(Planning!G83<>0,Planning!G83,\"\")","v":""},{"$f":"Planning!H83","v":0},{"$f":"Planning!AG83","v":0},{"$f":"IF(OR(W99=\"1\",AND(W99<>\"1\",G99=Lists!$A$17)),Y99,0)","v":0},null,{"$f":"IF(AND(W99=\"2\",G99<>Lists!$A$17),AA99,Z99)","v":""},"",{"$f":"Planning!AH83","v":{"v":0,"d":"0.00"}},{"$f":"'Month 8'!M99+'Month 8'!N99-'Month 8'!O99","v":{"v":0,"d":"0.00"}},null,"","",{"$f":"SUMIFS($J$25:$J$224,$C$25:$C$224,$C99,$G$25:$G$224,Lists!$A$16)","v":0},0,null,"",null,{"$f":"IF(C99=0,\"\",LEFT(INDEX(Lists!$H$5:$H$49,MATCH(C99,Lists!$G$5:$G$49,0),1),1))","v":""},null,{"$f":"'Month 8'!H99+'Month 8'!I99-'Month 8'!J99","v":0},"","",null,"0"]
[{"$f":"Planning!A84","v":"I076"},{"$f":"Planning!B84","v":0},{"$f":"Planning!C84","v":0},{"$f":"Planning!D84","v":0},{"$f":"Planning!E84","v":0},{"$f":"IF(Planning!G84<>0,Planning!G84,\"\")","v":""},{"$f":"Planning!H84","v":0},{"$f":"Planning!AG84","v":0},{"$f":"IF(OR(W100=\"1\",AND(W100<>\"1\",G100=Lists!$A$17)),Y100,0)","v":0},null,{"$f":"IF(AND(W100=\"2\",G100<>Lists!$A$17),AA100,Z100)","v":""},"",{"$f":"Planning!AH84","v":{"v":0,"d":"0.00"}},{"$f":"'Month 8'!M100+'Month 8'!N100-'Month 8'!O100","v":{"v":0,"d":"0.00"}},null,"","",{"$f":"SUMIFS($J$25:$J$224,$C$25:$C$224,$C100,$G$25:$G$224,Lists!$A$16)","v":0},0,null,"",null,{"$f":"IF(C100=0,\"\",LEFT(INDEX(Lists!$H$5:$H$49,MATCH(C100,Lists!$G$5:$G$49,0),1),1))","v":""},null,{"$f":"'Month 8'!H100+'Month 8'!I100-'Month 8'!J100","v":0},"","",null,"0"]
[{"$f":"Planning!A85","v":"I077"},{"$f":"Planning!B85","v":0},{"$f":"Planning!C85","v":0},{"$f":"Planning!D85","v":0},{"$f":"Planning!E85","v":0},{"$f":"IF(Planning!G85<>0,Planning!G85,\"\")","v":""},{"$f":"Planning!H85","v":0},{"$f":"Planning!AG85","v":0},{"$f":"IF(OR(W101=\"1\",AND(W101<>\"1\",G101=Lists!$A$17)),Y101,0)","v":0},null,{"$f":"IF(AND(W101=\"2\",G101<>Lists!$A$17),AA101,Z101)","v":""},"",{"$f":"Planning!AH85","v":{"v":0,"d":"0.00"}},{"$f":"'Month 8'!M101+'Month 8'!N101-'Month 8'!O101","v":{"v":0,"d":"0.00"}},null,"","",{"$f":"SUMIFS($J$25:$J$224,$C$25:$C$224,$C101,$G$25:$G$224,Lists!$A$16)","v":0},0,null,"",null,{"$f":"IF(C101=0,\"\",LEFT(INDEX(Lists!$H$5:$H$49,MATCH(C101,Lists!$G$5:$G$49,0),1),1))","v":""},null,{"$f":"'Month 8'!H101+'Month 8'!I101-'Month 8'!J101","v":0},"","",null,"0"]
[{"$f":"Planning!A86","v":"I078"},{"$f":"Planning!B86","v":0},{"$f":"Planning!C86","v":0},{"$f":"Planning!D86","v":0},{"$f":"Planning!E86","v":0},{"$f":"IF(Planning!G86<>0,Planning!G86,\"\")","v":""},{"$f":"Planning!H86","v":0},{"$f":"Planning!AG86","v":0},{"$f":"IF(OR(W102=\"1\",AND(W102<>\"1\",G102=Lists!$A$17)),Y102,0)","v":0},null,{"$f":"IF(AND(W102=\"2\",G102<>Lists!$A$17),AA102,Z102)","v":""},"",{"$f":"Planning!AH86","v":{"v":0,"d":"0.00"}},{"$f":"'Month 8'!M102+'Month 8'!N102-'Month 8'!O102","v":{"v":0,"d":"0.00"}},null,"","",{"$f":"SUMIFS($J$25:$J$224,$C$25:$C$224,$C102,$G$25:$G$224,Lists!$A$16)","v":0},0,null,"",null,{"$f":"IF(C102=0,\"\",LEFT(INDEX(Lists!$H$5:$H$49,MATCH(C102,Lists!$G$5:$G$49,0),1),1))","v":""},null,{"$f":"'Month 8'!H102+'Month 8'!I102-'Month 8'!J102","v":0},"","",null,"0"]
[{"$f":"Planning!A87","v":"I079"},{"$f":"Planning!B87","v":0},{"$f":"Planning!C87","v":0},{"$f":"Planning!D87","v":0},{"$f":"Planning!E87","v":0},{"$f":"IF(Planning!G87<>0,Planning!G87,\"\")","v":""},{"$f":"Planning!H87","v":0},{"$f":"Planning!AG87","v":0},{"$f":"IF(OR(W103=\"1\",AND(W103<>\"1\",G103=Lists!$A$17)),Y103,0)","v":0},null,{"$f":"IF(AND(W103=\"2\",G103<>Lists!$A$17),AA103,Z103)","v":""},"",{"$f":"Planning!AH87","v":{"v":0,"d":"0.00"}},{"$f":"'Month 8'!M103+'Month 8'!N103-'Month 8'!O103","v":{"v":0,"d":"0.00"}},null,"","",{"$f":"SUMIFS($J$25:$J$224,$C$25:$C$224,$C103,$G$25:$G$224,Lists!$A$16)","v":0},0,null,"",null,{"$f":"IF(C103=0,\"\",LEFT(INDEX(Lists!$H$5:$H$49,MATCH(C103,Lists!$G$5:$G$49,0),1),1))","v":""},null,{"$f":"'Month 8'!H103+'Month 8'!I103-'Month 8'!J103","v":0},"","",null,"0"]
[{"$f":"Planning!A88","v":"I080"},{"$f":"Planning!B88","v":0},{"$f":"Planning!C88","v":0},{"$f":"Planning!D88","v":0},{"$f":"Planning!E88","v":0},{"$f":"IF(Planning!G88<>0,Planning!G88,\"\")","v":""},{"$f":"Planning!H88","v":0},{"$f":"Planning!AG88","v":0},{"$f":"IF(OR(W104=\"1\",AND(W104<>\"1\",G104=Lists!$A$17)),Y104,0)","v":0},null,{"$f":"IF(AND(W104=\"2\",G104<>Lists!$A$17),AA104,Z104)","v":""},"",{"$f":"Planning!AH88","v":{"v":0,"d":"0.00"}},{"$f":"'Month 8'!M104+'Month 8'!N104-'Month 8'!O104","v":{"v":0,"d":"0.00"}},null,"","",{"$f":"SUMIFS($J$25:$J$224,$C$25:$C$224,$C104,$G$25:$G$224,Lists!$A$16)","v":0},0,null,"",null,{"$f":"IF(C104=0,\"\",LEFT(INDEX(Lists!$H$5:$H$49,MATCH(C104,Lists!$G$5:$G$49,0),1),1))","v":""},null,{"$f":"'Month 8'!H104+'Month 8'!I104-'Month 8'!J104","v":0},"","",null,"0"]
[{"$f":"Planning!A89","v":"I081"},{"$f":"Planning!B89","v":0},{"$f":"Planning!C89","v":0},{"$f":"Planning!D89","v":0},{"$f":"Planning!E89","v":0},{"$f":"IF(Planning!G89<>0,Planning!G89,\"\")","v":""},{"$f":"Planning!H89","v":0},{"$f":"Planning!AG89","v":0},{"$f":"IF(OR(W105=\"1\",AND(W105<>\"1\",G105=Lists!$A$17)),Y105,0)","v":0},null,{"$f":"IF(AND(W105=\"2\",G105<>Lists!$A$17),AA105,Z105)","v":""},"",{"$f":"Planning!AH89","v":{"v":0,"d":"0.00"}},{"$f":"'Month 8'!M105+'Month 8'!N105-'Month 8'!O105","v":{"v":0,"d":"0.00"}},null,"","",{"$f":"SUMIFS($J$25:$J$224,$C$25:$C$224,$C105,$G$25:$G$224,Lists!$A$16)","v":0},0,null,"",null,{"$f":"IF(C105=0,\"\",LEFT(INDEX(Lists!$H$5:$H$49,MATCH(C105,Lists!$G$5:$G$49,0),1),1))","v":""},null,{"$f":"'Month 8'!H105+'Month 8'!I105-'Month 8'!J105","v":0},"","",null,"0"]
[{"$f":"Planning!A90","v":"I082"},{"$f":"Planning!B90","v":0},{"$f":"Planning!C90","v":0},{"$f":"Planning!D90","v":0},{"$f":"Planning!E90","v":0},{"$f":"IF(Planning!G90<>0,Planning!G90,\"\")","v":""},{"$f":"Planning!H90","v":0},{"$f":"Planning!AG90","v":0},{"$f":"IF(OR(W106=\"1\",AND(W106<>\"1\",G106=Lists!$A$17)),Y106,0)","v":0},null,{"$f":"IF(AND(W106=\"2\",G106<>Lists!$A$17),AA106,Z106)","v":""},"",{"$f":"Planning!AH90","v":{"v":0,"d":"0.00"}},{"$f":"'Month 8'!M106+'Month 8'!N106-'Month 8'!O106","v":{"v":0,"d":"0.00"}},null,"","",{"$f":"SUMIFS($J$25:$J$224,$C$25:$C$224,$C106,$G$25:$G$224,Lists!$A$16)","v":0},0,null,"",null,{"$f":"IF(C106=0,\"\",LEFT(INDEX(Lists!$H$5:$H$49,MATCH(C106,Lists!$G$5:$G$49,0),1),1))","v":""},null,{"$f":"'Month 8'!H106+'Month 8'!I106-'Month 8'!J106","v":0},"","",null,"0"]
[{"$f":"Planning!A91","v":"I083"},{"$f":"Planning!B91","v":0},{"$f":"Planning!C91","v":0},{"$f":"Planning!D91","v":0},{"$f":"Planning!E91","v":0},{"$f":"IF(Planning!G91<>0,Planning!G91,\"\")","v":""},{"$f":"Planning!H91","v":0},{"$f":"Planning!AG91","v":0},{"$f":"IF(OR(W107=\"1\",AND(W107<>\"1\",G107=Lists!$A$17)),Y107,0)","v":0},null,{"$f":"IF(AND(W107=\"2\",G107<>Lists!$A$17),AA107,Z107)","v":""},"",{"$f":"Planning!AH91","v":{"v":0,"d":"0.00"}},{"$f":"'Month 8'!M107+'Month 8'!N107-'Month 8'!O107","v":{"v":0,"d":"0.00"}},null,"","",{"$f":"SUMIFS($J$25:$J$224,$C$25:$C$224,$C107,$G$25:$G$224,Lists!$A$16)","v":0},0,null,"",null,{"$f":"IF(C107=0,\"\",LEFT(INDEX(Lists!$H$5:$H$49,MATCH(C107,Lists!$G$5:$G$49,0),1),1))","v":""},null,{"$f":"'Month 8'!H107+'Month 8'!I107-'Month 8'!J107","v":0},"","",null,"0"]
[{"$f":"Planning!A92","v":"I084"},{"$f":"Planning!B92","v":0},{"$f":"Planning!C92","v":0},{"$f":"Planning!D92","v":0},{"$f":"Planning!E92","v":0},{"$f":"IF(Planning!G92<>0,Planning!G92,\"\")","v":""},{"$f":"Planning!H92","v":0},{"$f":"Planning!AG92","v":0},{"$f":"IF(OR(W108=\"1\",AND(W108<>\"1\",G108=Lists!$A$17)),Y108,0)","v":0},null,{"$f":"IF(AND(W108=\"2\",G108<>Lists!$A$17),AA108,Z108)","v":""},"",{"$f":"Planning!AH92","v":{"v":0,"d":"0.00"}},{"$f":"'Month 8'!M108+'Month 8'!N108-'Month 8'!O108","v":{"v":0,"d":"0.00"}},null,"","",{"$f":"SUMIFS($J$25:$J$224,$C$25:$C$224,$C108,$G$25:$G$224,Lists!$A$16)","v":0},0,null,"",null,{"$f":"IF(C108=0,\"\",LEFT(INDEX(Lists!$H$5:$H$49,MATCH(C108,Lists!$G$5:$G$49,0),1),1))","v":""},null,{"$f":"'Month 8'!H108+'Month 8'!I108-'Month 8'!J108","v":0},"","",null,"0"]
[{"$f":"Planning!A93","v":"I085"},{"$f":"Planning!B93","v":0},{"$f":"Planning!C93","v":0},{"$f":"Planning!D93","v":0},{"$f":"Planning!E93","v":0},{"$f":"IF(Planning!G93<>0,Planning!G93,\"\")","v":""},{"$f":"Planning!H93","v":0},{"$f":"Planning!AG93","v":0},{"$f":"IF(OR(W109=\"1\",AND(W109<>\"1\",G109=Lists!$A$17)),Y109,0)","v":0},null,{"$f":"IF(AND(W109=\"2\",G109<>Lists!$A$17),AA109,Z109)","v":""},"",{"$f":"Planning!AH93","v":{"v":0,"d":"0.00"}},{"$f":"'Month 8'!M109+'Month 8'!N109-'Month 8'!O109","v":{"v":0,"d":"0.00"}},null,"","",{"$f":"SUMIFS($J$25:$J$224,$C$25:$C$224,$C109,$G$25:$G$224,Lists!$A$16)","v":0},0,null,"",null,{"$f":"IF(C109=0,\"\",LEFT(INDEX(Lists!$H$5:$H$49,MATCH(C109,Lists!$G$5:$G$49,0),1),1))","v":""},null,{"$f":"'Month 8'!H109+'Month 8'!I109-'Month 8'!J109","v":0},"","",null,"0"]
[{"$f":"Planning!A94","v":"I086"},{"$f":"Planning!B94","v":0},{"$f":"Planning!C94","v":0},{"$f":"Planning!D94","v":0},{"$f":"Planning!E94","v":0},{"$f":"IF(Planning!G94<>0,Planning!G94,\"\")","v":""},{"$f":"Planning!H94","v":0},{"$f":"Planning!AG94","v":0},{"$f":"IF(OR(W110=\"1\",AND(W110<>\"1\",G110=Lists!$A$17)),Y110,0)","v":0},null,{"$f":"IF(AND(W110=\"2\",G110<>Lists!$A$17),AA110,Z110)","v":""},"",{"$f":"Planning!AH94","v":{"v":0,"d":"0.00"}},{"$f":"'Month 8'!M110+'Month 8'!N110-'Month 8'!O110","v":{"v":0,"d":"0.00"}},null,"","",{"$f":"SUMIFS($J$25:$J$224,$C$25:$C$224,$C110,$G$25:$G$224,Lists!$A$16)","v":0},0,null,"",null,{"$f":"IF(C110=0,\"\",LEFT(INDEX(Lists!$H$5:$H$49,MATCH(C110,Lists!$G$5:$G$49,0),1),1))","v":""},null,{"$f":"'Month 8'!H110+'Month 8'!I110-'Month 8'!J110","v":0},"","",null,"0"]
[{"$f":"Planning!A95","v":"I087"},{"$f":"Planning!B95","v":0},{"$f":"Planning!C95","v":0},{"$f":"Planning!D95","v":0},{"$f":"Planning!E95","v":0},{"$f":"IF(Planning!G95<>0,Planning!G95,\"\")","v":""},{"$f":"Planning!H95","v":0},{"$f":"Planning!AG95","v":0},{"$f":"IF(OR(W111=\"1\",AND(W111<>\"1\",G111=Lists!$A$17)),Y111,0)","v":0},null,{"$f":"IF(AND(W111=\"2\",G111<>Lists!$A$17),AA111,Z111)","v":""},"",{"$f":"Planning!AH95","v":{"v":0,"d":"0.00"}},{"$f":"'Month 8'!M111+'Month 8'!N111-'Month 8'!O111","v":{"v":0,"d":"0.00"}},null,"","",{"$f":"SUMIFS($J$25:$J$224,$C$25:$C$224,$C111,$G$25:$G$224,Lists!$A$16)","v":0},0,null,"",null,{"$f":"IF(C111=0,\"\",LEFT(INDEX(Lists!$H$5:$H$49,MATCH(C111,Lists!$G$5:$G$49,0),1),1))","v":""},null,{"$f":"'Month 8'!H111+'Month 8'!I111-'Month 8'!J111","v":0},"","",null,"0"]
[{"$f":"Planning!A96","v":"I088"},{"$f":"Planning!B96","v":0},{"$f":"Planning!C96","v":0},{"$f":"Planning!D96","v":0},{"$f":"Planning!E96","v":0},{"$f":"IF(Planning!G96<>0,Planning!G96,\"\")","v":""},{"$f":"Planning!H96","v":0},{"$f":"Planning!AG96","v":0},{"$f":"IF(OR(W112=\"1\",AND(W112<>\"1\",G112=Lists!$A$17)),Y112,0)","v":0},null,{"$f":"IF(AND(W112=\"2\",G112<>Lists!$A$17),AA112,Z112)","v":""},"",{"$f":"Planning!AH96","v":{"v":0,"d":"0.00"}},{"$f":"'Month 8'!M112+'Month 8'!N112-'Month 8'!O112","v":{"v":0,"d":"0.00"}},null,"","",{"$f":"SUMIFS($J$25:$J$224,$C$25:$C$224,$C112,$G$25:$G$224,Lists!$A$16)","v":0},0,null,"",null,{"$f":"IF(C112=0,\"\",LEFT(INDEX(Lists!$H$5:$H$49,MATCH(C112,Lists!$G$5:$G$49,0),1),1))","v":""},null,{"$f":"'Month 8'!H112+'Month 8'!I112-'Month 8'!J112","v":0},"","",null,"0"]
[{"$f":"Planning!A97","v":"I089"},{"$f":"Planning!B97","v":0},{"$f":"Planning!C97","v":0},{"$f":"Planning!D97","v":0},{"$f":"Planning!E97","v":0},{"$f":"IF(Planning!G97<>0,Planning!G97,\"\")","v":""},{"$f":"Planning!H97","v":0},{"$f":"Planning!AG97","v":0},{"$f":"IF(OR(W113=\"1\",AND(W113<>\"1\",G113=Lists!$A$17)),Y113,0)","v":0},null,{"$f":"IF(AND(W113=\"2\",G113<>Lists!$A$17),AA113,Z113)","v":""},"",{"$f":"Planning!AH97","v":{"v":0,"d":"0.00"}},{"$f":"'Month 8'!M113+'Month 8'!N113-'Month 8'!O113","v":{"v":0,"d":"0.00"}},null,"","",{"$f":"SUMIFS($J$25:$J$224,$C$25:$C$224,$C113,$G$25:$G$224,Lists!$A$16)","v":0},0,null,"",null,{"$f":"IF(C113=0,\"\",LEFT(INDEX(Lists!$H$5:$H$49,MATCH(C113,Lists!$G$5:$G$49,0),1),1))","v":""},null,{"$f":"'Month 8'!H113+'Month 8'!I113-'Month 8'!J113","v":0},"","",null,"0"]
[{"$f":"Planning!A98","v":"I090"},{"$f":"Planning!B98","v":0},{"$f":"Planning!C98","v":0},{"$f":"Planning!D98","v":0},{"$f":"Planning!E98","v":0},{"$f":"IF(Planning!G98<>0,Planning!G98,\"\")","v":""},{"$f":"Planning!H98","v":0},{"$f":"Planning!AG98","v":0},{"$f":"IF(OR(W114=\"1\",AND(W114<>\"1\",G114=Lists!$A$17)),Y114,0)","v":0},null,{"$f":"IF(AND(W114=\"2\",G114<>Lists!$A$17),AA114,Z114)","v":""},"",{"$f":"Planning!AH98","v":{"v":0,"d":"0.00"}},{"$f":"'Month 8'!M114+'Month 8'!N114-'Month 8'!O114","v":{"v":0,"d":"0.00"}},null,"","",{"$f":"SUMIFS($J$25:$J$224,$C$25:$C$224,$C114,$G$25:$G$224,Lists!$A$16)","v":0},0,null,"",null,{"$f":"IF(C114=0,\"\",LEFT(INDEX(Lists!$H$5:$H$49,MATCH(C114,Lists!$G$5:$G$49,0),1),1))","v":""},null,{"$f":"'Month 8'!H114+'Month 8'!I114-'Month 8'!J114","v":0},"","",null,"0"]
[{"$f":"Planning!A99","v":"I091"},{"$f":"Planning!B99","v":0},{"$f":"Planning!C99","v":0},{"$f":"Planning!D99","v":0},{"$f":"Planning!E99","v":0},{"$f":"IF(Planning!G99<>0,Planning!G99,\"\")","v":""},{"$f":"Planning!H99","v":0},{"$f":"Planning!AG99","v":0},{"$f":"IF(OR(W115=\"1\",AND(W115<>\"1\",G115=Lists!$A$17)),Y115,0)","v":0},null,{"$f":"IF(AND(W115=\"2\",G115<>Lists!$A$17),AA115,Z115)","v":""},"",{"$f":"Planning!AH99","v":{"v":0,"d":"0.00"}},{"$f":"'Month 8'!M115+'Month 8'!N115-'Month 8'!O115","v":{"v":0,"d":"0.00"}},null,"","",{"$f":"SUMIFS($J$25:$J$224,$C$25:$C$224,$C115,$G$25:$G$224,Lists!$A$16)","v":0},0,null,"",null,{"$f":"IF(C115=0,\"\",LEFT(INDEX(Lists!$H$5:$H$49,MATCH(C115,Lists!$G$5:$G$49,0),1),1))","v":""},null,{"$f":"'Month 8'!H115+'Month 8'!I115-'Month 8'!J115","v":0},"","",null,"0"]
[{"$f":"Planning!A100","v":"I092"},{"$f":"Planning!B100","v":0},{"$f":"Planning!C100","v":0},{"$f":"Planning!D100","v":0},{"$f":"Planning!E100","v":0},{"$f":"IF(Planning!G100<>0,Planning!G100,\"\")","v":""},{"$f":"Planning!H100","v":0},{"$f":"Planning!AG100","v":0},{"$f":"IF(OR(W116=\"1\",AND(W116<>\"1\",G116=Lists!$A$17)),Y116,0)","v":0},null,{"$f":"IF(AND(W116=\"2\",G116<>Lists!$A$17),AA116,Z116)","v":""},"",{"$f":"Planning!AH100","v":{"v":0,"d":"0.00"}},{"$f":"'Month 8'!M116+'Month 8'!N116-'Month 8'!O116","v":{"v":0,"d":"0.00"}},null,"","",{"$f":"SUMIFS($J$25:$J$224,$C$25:$C$224,$C116,$G$25:$G$224,Lists!$A$16)","v":0},0,null,"",null,{"$f":"IF(C116=0,\"\",LEFT(INDEX(Lists!$H$5:$H$49,MATCH(C116,Lists!$G$5:$G$49,0),1),1))","v":""},null,{"$f":"'Month 8'!H116+'Month 8'!I116-'Month 8'!J116","v":0},"","",null,"0"]
[{"$f":"Planning!A101","v":"I093"},{"$f":"Planning!B101","v":0},{"$f":"Planning!C101","v":0},{"$f":"Planning!D101","v":0},{"$f":"Planning!E101","v":0},{"$f":"IF(Planning!G101<>0,Planning!G101,\"\")","v":""},{"$f":"Planning!H101","v":0},{"$f":"Planning!AG101","v":0},{"$f":"IF(OR(W117=\"1\",AND(W117<>\"1\",G117=Lists!$A$17)),Y117,0)","v":0},null,{"$f":"IF(AND(W117=\"2\",G117<>Lists!$A$17),AA117,Z117)","v":""},"",{"$f":"Planning!AH101","v":{"v":0,"d":"0.00"}},{"$f":"'Month 8'!M117+'Month 8'!N117-'Month 8'!O117","v":{"v":0,"d":"0.00"}},null,"","",{"$f":"SUMIFS($J$25:$J$224,$C$25:$C$224,$C117,$G$25:$G$224,Lists!$A$16)","v":0},0,null,"",null,{"$f":"IF(C117=0,\"\",LEFT(INDEX(Lists!$H$5:$H$49,MATCH(C117,Lists!$G$5:$G$49,0),1),1))","v":""},null,{"$f":"'Month 8'!H117+'Month 8'!I117-'Month 8'!J117","v":0},"","",null,"0"]
[{"$f":"Planning!A102","v":"I094"},{"$f":"Planning!B102","v":0},{"$f":"Planning!C102","v":0},{"$f":"Planning!D102","v":0},{"$f":"Planning!E102","v":0},{"$f":"IF(Planning!G102<>0,Planning!G102,\"\")","v":""},{"$f":"Planning!H102","v":0},{"$f":"Planning!AG102","v":0},{"$f":"IF(OR(W118=\"1\",AND(W118<>\"1\",G118=Lists!$A$17)),Y118,0)","v":0},null,{"$f":"IF(AND(W118=\"2\",G118<>Lists!$A$17),AA118,Z118)","v":""},"",{"$f":"Planning!AH102","v":{"v":0,"d":"0.00"}},{"$f":"'Month 8'!M118+'Month 8'!N118-'Month 8'!O118","v":{"v":0,"d":"0.00"}},null,"","",{"$f":"SUMIFS($J$25:$J$224,$C$25:$C$224,$C118,$G$25:$G$224,Lists!$A$16)","v":0},0,null,"",null,{"$f":"IF(C118=0,\"\",LEFT(INDEX(Lists!$H$5:$H$49,MATCH(C118,Lists!$G$5:$G$49,0),1),1))","v":""},null,{"$f":"'Month 8'!H118+'Month 8'!I118-'Month 8'!J118","v":0},"","",null,"0"]
[{"$f":"Planning!A103","v":"I095"},{"$f":"Planning!B103","v":0},{"$f":"Planning!C103","v":0},{"$f":"Planning!D103","v":0},{"$f":"Planning!E103","v":0},{"$f":"IF(Planning!G103<>0,Planning!G103,\"\")","v":""},{"$f":"Planning!H103","v":0},{"$f":"Planning!AG103","v":0},{"$f":"IF(OR(W119=\"1\",AND(W119<>\"1\",G119=Lists!$A$17)),Y119,0)","v":0},null,{"$f":"IF(AND(W119=\"2\",G119<>Lists!$A$17),AA119,Z119)","v":""},"",{"$f":"Planning!AH103","v":{"v":0,"d":"0.00"}},{"$f":"'Month 8'!M119+'Month 8'!N119-'Month 8'!O119","v":{"v":0,"d":"0.00"}},null,"","",{"$f":"SUMIFS($J$25:$J$224,$C$25:$C$224,$C119,$G$25:$G$224,Lists!$A$16)","v":0},0,null,"",null,{"$f":"IF(C119=0,\"\",LEFT(INDEX(Lists!$H$5:$H$49,MATCH(C119,Lists!$G$5:$G$49,0),1),1))","v":""},null,{"$f":"'Month 8'!H119+'Month 8'!I119-'Month 8'!J119","v":0},"","",null,"0"]
[{"$f":"Planning!A104","v":"I096"},{"$f":"Planning!B104","v":0},{"$f":"Planning!C104","v":0},{"$f":"Planning!D104","v":0},{"$f":"Planning!E104","v":0},{"$f":"IF(Planning!G104<>0,Planning!G104,\"\")","v":""},{"$f":"Planning!H104","v":0},{"$f":"Planning!AG104","v":0},{"$f":"IF(OR(W120=\"1\",AND(W120<>\"1\",G120=Lists!$A$17)),Y120,0)","v":0},null,{"$f":"IF(AND(W120=\"2\",G120<>Lists!$A$17),AA120,Z120)","v":""},"",{"$f":"Planning!AH104","v":{"v":0,"d":"0.00"}},{"$f":"'Month 8'!M120+'Month 8'!N120-'Month 8'!O120","v":{"v":0,"d":"0.00"}},null,"","",{"$f":"SUMIFS($J$25:$J$224,$C$25:$C$224,$C120,$G$25:$G$224,Lists!$A$16)","v":0},0,null,"",null,{"$f":"IF(C120=0,\"\",LEFT(INDEX(Lists!$H$5:$H$49,MATCH(C120,Lists!$G$5:$G$49,0),1),1))","v":""},null,{"$f":"'Month 8'!H120+'Month 8'!I120-'Month 8'!J120","v":0},"","",null,"0"]
[{"$f":"Planning!A105","v":"I097"},{"$f":"Planning!B105","v":0},{"$f":"Planning!C105","v":0},{"$f":"Planning!D105","v":0},{"$f":"Planning!E105","v":0},{"$f":"IF(Planning!G105<>0,Planning!G105,\"\")","v":""},{"$f":"Planning!H105","v":0},{"$f":"Planning!AG105","v":0},{"$f":"IF(OR(W121=\"1\",AND(W121<>\"1\",G121=Lists!$A$17)),Y121,0)","v":0},null,{"$f":"IF(AND(W121=\"2\",G121<>Lists!$A$17),AA121,Z121)","v":""},{"$f":"IF($U121=ExcluirDelPLogro,\"\",IF(AND(H121=0,I121=0,J121=0),\"\",K121))","v":""},{"$f":"Planning!AH105","v":{"v":0,"d":"0.00"}},{"$f":"'Month 8'!M121+'Month 8'!N121-'Month 8'!O121","v":{"v":0,"d":"0.00"}},null,"",{"$f":"IF($U121=ExcluirDelPLogro,\"\",IF(AND(M121=0,N121=0,O121=0),\"\",P121))","v":""},{"$f":"SUMIFS($J$25:$J$224,$C$25:$C$224,$C121,$G$25:$G$224,Lists!$A$16)","v":0},0,null,"",null,{"$f":"IF(C121=0,\"\",LEFT(INDEX(Lists!$H$5:$H$49,MATCH(C121,Lists!$G$5:$G$49,0),1),1))","v":""},null,{"$f":"'Month 8'!H121+'Month 8'!I121-'Month 8'!J121","v":0},"",{"$f":"IF(AND(H121=0,I121=0,J121=0),\"\",IF(J121>0,H121/J121,0))","v":""},null,"0"]
[{"$f":"Planning!A106","v":"I098"},{"$f":"Planning!B106","v":0},{"$f":"Planning!C106","v":0},{"$f":"Planning!D106","v":0},{"$f":"Planning!E106","v":0},{"$f":"IF(Planning!G106<>0,Planning!G106,\"\")","v":""},{"$f":"Planning!H106","v":0},{"$f":"Planning!AG106","v":0},{"$f":"IF(OR(W122=\"1\",AND(W122<>\"1\",G122=Lists!$A$17)),Y122,0)","v":0},null,{"$f":"IF(AND(W122=\"2\",G122<>Lists!$A$17),AA122,Z122)","v":""},"",{"$f":"Planning!AH106","v":{"v":0,"d":"0.00"}},{"$f":"'Month 8'!M122+'Month 8'!N122-'Month 8'!O122","v":{"v":0,"d":"0.00"}},null,"","",{"$f":"SUMIFS($J$25:$J$224,$C$25:$C$224,$C122,$G$25:$G$224,Lists!$A$16)","v":0},0,null,"",null,{"$f":"IF(C122=0,\"\",LEFT(INDEX(Lists!$H$5:$H$49,MATCH(C122,Lists!$G$5:$G$49,0),1),1))","v":""},null,{"$f":"'Month 8'!H122+'Month 8'!I122-'Month 8'!J122","v":0},"","",null,"0"]
[{"$f":"Planning!A107","v":"I099"},{"$f":"Planning!B107","v":0},{"$f":"Planning!C107","v":0},{"$f":"Planning!D107","v":0},{"$f":"Planning!E107","v":0},{"$f":"IF(Planning!G107<>0,Planning!G107,\"\")","v":""},{"$f":"Planning!H107","v":0},{"$f":"Planning!AG107","v":0},{"$f":"IF(OR(W123=\"1\",AND(W123<>\"1\",G123=Lists!$A$17)),Y123,0)","v":0},null,{"$f":"IF(AND(W123=\"2\",G123<>Lists!$A$17),AA123,Z123)","v":""},"",{"$f":"Planning!AH107","v":{"v":0,"d":"0.00"}},{"$f":"'Month 8'!M123+'Month 8'!N123-'Month 8'!O123","v":{"v":0,"d":"0.00"}},null,"","",{"$f":"SUMIFS($J$25:$J$224,$C$25:$C$224,$C123,$G$25:$G$224,Lists!$A$16)","v":0},0,null,"",null,{"$f":"IF(C123=0,\"\",LEFT(INDEX(Lists!$H$5:$H$49,MATCH(C123,Lists!$G$5:$G$49,0),1),1))","v":""},null,{"$f":"'Month 8'!H123+'Month 8'!I123-'Month 8'!J123","v":0},"","",null,"0"]
[{"$f":"Planning!A108","v":"I100"},{"$f":"Planning!B108","v":0},{"$f":"Planning!C108","v":0},{"$f":"Planning!D108","v":0},{"$f":"Planning!E108","v":0},{"$f":"IF(Planning!G108<>0,Planning!G108,\"\")","v":""},{"$f":"Planning!H108","v":0},{"$f":"Planning!AG108","v":0},{"$f":"IF(OR(W124=\"1\",AND(W124<>\"1\",G124=Lists!$A$17)),Y124,0)","v":0},null,{"$f":"IF(AND(W124=\"2\",G124<>Lists!$A$17),AA124,Z124)","v":""},"",{"$f":"Planning!AH108","v":{"v":0,"d":"0.00"}},{"$f":"'Month 8'!M124+'Month 8'!N124-'Month 8'!O124","v":{"v":0,"d":"0.00"}},null,"","",{"$f":"SUMIFS($J$25:$J$224,$C$25:$C$224,$C124,$G$25:$G$224,Lists!$A$16)","v":0},0,null,"",null,{"$f":"IF(C124=0,\"\",LEFT(INDEX(Lists!$H$5:$H$49,MATCH(C124,Lists!$G$5:$G$49,0),1),1))","v":""},null,{"$f":"'Month 8'!H124+'Month 8'!I124-'Month 8'!J124","v":0},"","",null,"0"]
[{"$f":"Planning!A109","v":"I101"},{"$f":"Planning!B109","v":0},{"$f":"Planning!C109","v":0},{"$f":"Planning!D109","v":0},{"$f":"Planning!E109","v":0},{"$f":"IF(Planning!G109<>0,Planning!G109,\"\")","v":""},{"$f":"Planning!H109","v":0},{"$f":"Planning!AG109","v":0},{"$f":"IF(OR(W125=\"1\",AND(W125<>\"1\",G125=Lists!$A$17)),Y125,0)","v":0},null,{"$f":"IF(AND(W125=\"2\",G125<>Lists!$A$17),AA125,Z125)","v":""},"",{"$f":"Planning!AH109","v":{"v":0,"d":"0.00"}},{"$f":"'Month 8'!M125+'Month 8'!N125-'Month 8'!O125","v":{"v":0,"d":"0.00"}},null,"","",{"$f":"SUMIFS($J$25:$J$224,$C$25:$C$224,$C125,$G$25:$G$224,Lists!$A$16)","v":0},0,null,"",null,{"$f":"IF(C125=0,\"\",LEFT(INDEX(Lists!$H$5:$H$49,MATCH(C125,Lists!$G$5:$G$49,0),1),1))","v":""},null,{"$f":"'Month 8'!H125+'Month 8'!I125-'Month 8'!J125","v":0},"","",null,"0"]
[{"$f":"Planning!A110","v":"I102"},{"$f":"Planning!B110","v":0},{"$f":"Planning!C110","v":0},{"$f":"Planning!D110","v":0},{"$f":"Planning!E110","v":0},{"$f":"IF(Planning!G110<>0,Planning!G110,\"\")","v":""},{"$f":"Planning!H110","v":0},{"$f":"Planning!AG110","v":0},{"$f":"IF(OR(W126=\"1\",AND(W126<>\"1\",G126=Lists!$A$17)),Y126,0)","v":0},null,{"$f":"IF(AND(W126=\"2\",G126<>Lists!$A$17),AA126,Z126)","v":""},"",{"$f":"Planning!AH110","v":{"v":0,"d":"0.00"}},{"$f":"'Month 8'!M126+'Month 8'!N126-'Month 8'!O126","v":{"v":0,"d":"0.00"}},null,"","",{"$f":"SUMIFS($J$25:$J$224,$C$25:$C$224,$C126,$G$25:$G$224,Lists!$A$16)","v":0},0,null,"",null,{"$f":"IF(C126=0,\"\",LEFT(INDEX(Lists!$H$5:$H$49,MATCH(C126,Lists!$G$5:$G$49,0),1),1))","v":""},null,{"$f":"'Month 8'!H126+'Month 8'!I126-'Month 8'!J126","v":0},"","",null,"0"]
[{"$f":"Planning!A111","v":"I103"},{"$f":"Planning!B111","v":0},{"$f":"Planning!C111","v":0},{"$f":"Planning!D111","v":0},{"$f":"Planning!E111","v":0},{"$f":"IF(Planning!G111<>0,Planning!G111,\"\")","v":""},{"$f":"Planning!H111","v":0},{"$f":"Planning!AG111","v":0},{"$f":"IF(OR(W127=\"1\",AND(W127<>\"1\",G127=Lists!$A$17)),Y127,0)","v":0},null,{"$f":"IF(AND(W127=\"2\",G127<>Lists!$A$17),AA127,Z127)","v":""},"",{"$f":"Planning!AH111","v":{"v":0,"d":"0.00"}},{"$f":"'Month 8'!M127+'Month 8'!N127-'Month 8'!O127","v":{"v":0,"d":"0.00"}},null,"","",{"$f":"SUMIFS($J$25:$J$224,$C$25:$C$224,$C127,$G$25:$G$224,Lists!$A$16)","v":0},0,null,"",null,{"$f":"IF(C127=0,\"\",LEFT(INDEX(Lists!$H$5:$H$49,MATCH(C127,Lists!$G$5:$G$49,0),1),1))","v":""},null,{"$f":"'Month 8'!H127+'Month 8'!I127-'Month 8'!J127","v":0},"","",null,"0"]
[{"$f":"Planning!A112","v":"I104"},{"$f":"Planning!B112","v":0},{"$f":"Planning!C112","v":0},{"$f":"Planning!D112","v":0},{"$f":"Planning!E112","v":0},{"$f":"IF(Planning!G112<>0,Planning!G112,\"\")","v":""},{"$f":"Planning!H112","v":0},{"$f":"Planning!AG112","v":0},{"$f":"IF(OR(W128=\"1\",AND(W128<>\"1\",G128=Lists!$A$17)),Y128,0)","v":0},null,{"$f":"IF(AND(W128=\"2\",G128<>Lists!$A$17),AA128,Z128)","v":""},"",{"$f":"Planning!AH112","v":{"v":0,"d":"0.00"}},{"$f":"'Month 8'!M128+'Month 8'!N128-'Month 8'!O128","v":{"v":0,"d":"0.00"}},null,"","",{"$f":"SUMIFS($J$25:$J$224,$C$25:$C$224,$C128,$G$25:$G$224,Lists!$A$16)","v":0},0,null,"",null,{"$f":"IF(C128=0,\"\",LEFT(INDEX(Lists!$H$5:$H$49,MATCH(C128,Lists!$G$5:$G$49,0),1),1))","v":""},null,{"$f":"'Month 8'!H128+'Month 8'!I128-'Month 8'!J128","v":0},"","",null,"0"]
[{"$f":"Planning!A113","v":"I105"},{"$f":"Planning!B113","v":0},{"$f":"Planning!C113","v":0},{"$f":"Planning!D113","v":0},{"$f":"Planning!E113","v":0},{"$f":"IF(Planning!G113<>0,Planning!G113,\"\")","v":""},{"$f":"Planning!H113","v":0},{"$f":"Planning!AG113","v":0},{"$f":"IF(OR(W129=\"1\",AND(W129<>\"1\",G129=Lists!$A$17)),Y129,0)","v":0},null,{"$f":"IF(AND(W129=\"2\",G129<>Lists!$A$17),AA129,Z129)","v":""},"",{"$f":"Planning!AH113","v":{"v":0,"d":"0.00"}},{"$f":"'Month 8'!M129+'Month 8'!N129-'Month 8'!O129","v":{"v":0,"d":"0.00"}},null,"","",{"$f":"SUMIFS($J$25:$J$224,$C$25:$C$224,$C129,$G$25:$G$224,Lists!$A$16)","v":0},0,null,"",null,{"$f":"IF(C129=0,\"\",LEFT(INDEX(Lists!$H$5:$H$49,MATCH(C129,Lists!$G$5:$G$49,0),1),1))","v":""},null,{"$f":"'Month 8'!H129+'Month 8'!I129-'Month 8'!J129","v":0},"","",null,"0"]
[{"$f":"Planning!A114","v":"I106"},{"$f":"Planning!B114","v":0},{"$f":"Planning!C114","v":0},{"$f":"Planning!D114","v":0},{"$f":"Planning!E114","v":0},{"$f":"IF(Planning!G114<>0,Planning!G114,\"\")","v":""},{"$f":"Planning!H114","v":0},{"$f":"Planning!AG114","v":0},{"$f":"IF(OR(W130=\"1\",AND(W130<>\"1\",G130=Lists!$A$17)),Y130,0)","v":0},null,{"$f":"IF(AND(W130=\"2\",G130<>Lists!$A$17),AA130,Z130)","v":""},"",{"$f":"Planning!AH114","v":{"v":0,"d":"0.00"}},{"$f":"'Month 8'!M130+'Month 8'!N130-'Month 8'!O130","v":{"v":0,"d":"0.00"}},null,"","",{"$f":"SUMIFS($J$25:$J$224,$C$25:$C$224,$C130,$G$25:$G$224,Lists!$A$16)","v":0},0,null,"",null,{"$f":"IF(C130=0,\"\",LEFT(INDEX(Lists!$H$5:$H$49,MATCH(C130,Lists!$G$5:$G$49,0),1),1))","v":""},null,{"$f":"'Month 8'!H130+'Month 8'!I130-'Month 8'!J130","v":0},"","",null,"0"]
[{"$f":"Planning!A115","v":"I107"},{"$f":"Planning!B115","v":0},{"$f":"Planning!C115","v":0},{"$f":"Planning!D115","v":0},{"$f":"Planning!E115","v":0},{"$f":"IF(Planning!G115<>0,Planning!G115,\"\")","v":""},{"$f":"Planning!H115","v":0},{"$f":"Planning!AG115","v":0},{"$f":"IF(OR(W131=\"1\",AND(W131<>\"1\",G131=Lists!$A$17)),Y131,0)","v":0},null,{"$f":"IF(AND(W131=\"2\",G131<>Lists!$A$17),AA131,Z131)","v":""},"",{"$f":"Planning!AH115","v":{"v":0,"d":"0.00"}},{"$f":"'Month 8'!M131+'Month 8'!N131-'Month 8'!O131","v":{"v":0,"d":"0.00"}},null,"","",{"$f":"SUMIFS($J$25:$J$224,$C$25:$C$224,$C131,$G$25:$G$224,Lists!$A$16)","v":0},0,null,"",null,{"$f":"IF(C131=0,\"\",LEFT(INDEX(Lists!$H$5:$H$49,MATCH(C131,Lists!$G$5:$G$49,0),1),1))","v":""},null,{"$f":"'Month 8'!H131+'Month 8'!I131-'Month 8'!J131","v":0},"","",null,"0"]
[{"$f":"Planning!A116","v":"I108"},{"$f":"Planning!B116","v":0},{"$f":"Planning!C116","v":0},{"$f":"Planning!D116","v":0},{"$f":"Planning!E116","v":0},{"$f":"IF(Planning!G116<>0,Planning!G116,\"\")","v":""},{"$f":"Planning!H116","v":0},{"$f":"Planning!AG116","v":0},{"$f":"IF(OR(W132=\"1\",AND(W132<>\"1\",G132=Lists!$A$17)),Y132,0)","v":0},null,{"$f":"IF(AND(W132=\"2\",G132<>Lists!$A$17),AA132,Z132)","v":""},"",{"$f":"Planning!AH116","v":{"v":0,"d":"0.00"}},{"$f":"'Month 8'!M132+'Month 8'!N132-'Month 8'!O132","v":{"v":0,"d":"0.00"}},null,"","",{"$f":"SUMIFS($J$25:$J$224,$C$25:$C$224,$C132,$G$25:$G$224,Lists!$A$16)","v":0},0,null,"",null,{"$f":"IF(C132=0,\"\",LEFT(INDEX(Lists!$H$5:$H$49,MATCH(C132,Lists!$G$5:$G$49,0),1),1))","v":""},null,{"$f":"'Month 8'!H132+'Month 8'!I132-'Month 8'!J132","v":0},"","",null,"0"]
[{"$f":"Planning!A117","v":"I109"},{"$f":"Planning!B117","v":0},{"$f":"Planning!C117","v":0},{"$f":"Planning!D117","v":0},{"$f":"Planning!E117","v":0},{"$f":"IF(Planning!G117<>0,Planning!G117,\"\")","v":""},{"$f":"Planning!H117","v":0},{"$f":"Planning!AG117","v":0},{"$f":"IF(OR(W133=\"1\",AND(W133<>\"1\",G133=Lists!$A$17)),Y133,0)","v":0},null,{"$f":"IF(AND(W133=\"2\",G133<>Lists!$A$17),AA133,Z133)","v":""},"",{"$f":"Planning!AH117","v":{"v":0,"d":"0.00"}},{"$f":"'Month 8'!M133+'Month 8'!N133-'Month 8'!O133","v":{"v":0,"d":"0.00"}},null,"","",{"$f":"SUMIFS($J$25:$J$224,$C$25:$C$224,$C133,$G$25:$G$224,Lists!$A$16)","v":0},0,null,"",null,{"$f":"IF(C133=0,\"\",LEFT(INDEX(Lists!$H$5:$H$49,MATCH(C133,Lists!$G$5:$G$49,0),1),1))","v":""},null,{"$f":"'Month 8'!H133+'Month 8'!I133-'Month 8'!J133","v":0},"","",null,"0"]
[{"$f":"Planning!A118","v":"I110"},{"$f":"Planning!B118","v":0},{"$f":"Planning!C118","v":0},{"$f":"Planning!D118","v":0},{"$f":"Planning!E118","v":0},{"$f":"IF(Planning!G118<>0,Planning!G118,\"\")","v":""},{"$f":"Planning!H118","v":0},{"$f":"Planning!AG118","v":0},{"$f":"IF(OR(W134=\"1\",AND(W134<>\"1\",G134=Lists!$A$17)),Y134,0)","v":0},null,{"$f":"IF(AND(W134=\"2\",G134<>Lists!$A$17),AA134,Z134)","v":""},"",{"$f":"Planning!AH118","v":{"v":0,"d":"0.00"}},{"$f":"'Month 8'!M134+'Month 8'!N134-'Month 8'!O134","v":{"v":0,"d":"0.00"}},null,"","",{"$f":"SUMIFS($J$25:$J$224,$C$25:$C$224,$C134,$G$25:$G$224,Lists!$A$16)","v":0},0,null,"",null,{"$f":"IF(C134=0,\"\",LEFT(INDEX(Lists!$H$5:$H$49,MATCH(C134,Lists!$G$5:$G$49,0),1),1))","v":""},null,{"$f":"'Month 8'!H134+'Month 8'!I134-'Month 8'!J134","v":0},"","",null,"0"]
[{"$f":"Planning!A119","v":"I111"},{"$f":"Planning!B119","v":0},{"$f":"Planning!C119","v":0},{"$f":"Planning!D119","v":0},{"$f":"Planning!E119","v":0},{"$f":"IF(Planning!G119<>0,Planning!G119,\"\")","v":""},{"$f":"Planning!H119","v":0},{"$f":"Planning!AG119","v":0},{"$f":"IF(OR(W135=\"1\",AND(W135<>\"1\",G135=Lists!$A$17)),Y135,0)","v":0},null,{"$f":"IF(AND(W135=\"2\",G135<>Lists!$A$17),AA135,Z135)","v":""},"",{"$f":"Planning!AH119","v":{"v":0,"d":"0.00"}},{"$f":"'Month 8'!M135+'Month 8'!N135-'Month 8'!O135","v":{"v":0,"d":"0.00"}},null,"","",{"$f":"SUMIFS($J$25:$J$224,$C$25:$C$224,$C135,$G$25:$G$224,Lists!$A$16)","v":0},0,null,"",null,{"$f":"IF(C135=0,\"\",LEFT(INDEX(Lists!$H$5:$H$49,MATCH(C135,Lists!$G$5:$G$49,0),1),1))","v":""},null,{"$f":"'Month 8'!H135+'Month 8'!I135-'Month 8'!J135","v":0},"","",null,"0"]
[{"$f":"Planning!A120","v":"I112"},{"$f":"Planning!B120","v":0},{"$f":"Planning!C120","v":0},{"$f":"Planning!D120","v":0},{"$f":"Planning!E120","v":0},{"$f":"IF(Planning!G120<>0,Planning!G120,\"\")","v":""},{"$f":"Planning!H120","v":0},{"$f":"Planning!AG120","v":0},{"$f":"IF(OR(W136=\"1\",AND(W136<>\"1\",G136=Lists!$A$17)),Y136,0)","v":0},null,{"$f":"IF(AND(W136=\"2\",G136<>Lists!$A$17),AA136,Z136)","v":""},"",{"$f":"Planning!AH120","v":{"v":0,"d":"0.00"}},{"$f":"'Month 8'!M136+'Month 8'!N136-'Month 8'!O136","v":{"v":0,"d":"0.00"}},null,"","",{"$f":"SUMIFS($J$25:$J$224,$C$25:$C$224,$C136,$G$25:$G$224,Lists!$A$16)","v":0},0,null,"",null,{"$f":"IF(C136=0,\"\",LEFT(INDEX(Lists!$H$5:$H$49,MATCH(C136,Lists!$G$5:$G$49,0),1),1))","v":""},null,{"$f":"'Month 8'!H136+'Month 8'!I136-'Month 8'!J136","v":0},"","",null,"0"]
[{"$f":"Planning!A121","v":"I113"},{"$f":"Planning!B121","v":0},{"$f":"Planning!C121","v":0},{"$f":"Planning!D121","v":0},{"$f":"Planning!E121","v":0},{"$f":"IF(Planning!G121<>0,Planning!G121,\"\")","v":""},{"$f":"Planning!H121","v":0},{"$f":"Planning!AG121","v":0},{"$f":"IF(OR(W137=\"1\",AND(W137<>\"1\",G137=Lists!$A$17)),Y137,0)","v":0},null,{"$f":"IF(AND(W137=\"2\",G137<>Lists!$A$17),AA137,Z137)","v":""},"",{"$f":"Planning!AH121","v":{"v":0,"d":"0.00"}},{"$f":"'Month 8'!M137+'Month 8'!N137-'Month 8'!O137","v":{"v":0,"d":"0.00"}},null,"","",{"$f":"SUMIFS($J$25:$J$224,$C$25:$C$224,$C137,$G$25:$G$224,Lists!$A$16)","v":0},0,null,"",null,{"$f":"IF(C137=0,\"\",LEFT(INDEX(Lists!$H$5:$H$49,MATCH(C137,Lists!$G$5:$G$49,0),1),1))","v":""},null,{"$f":"'Month 8'!H137+'Month 8'!I137-'Month 8'!J137","v":0},"","",null,"0"]
[{"$f":"Planning!A122","v":"I114"},{"$f":"Planning!B122","v":0},{"$f":"Planning!C122","v":0},{"$f":"Planning!D122","v":0},{"$f":"Planning!E122","v":0},{"$f":"IF(Planning!G122<>0,Planning!G122,\"\")","v":""},{"$f":"Planning!H122","v":0},{"$f":"Planning!AG122","v":0},{"$f":"IF(OR(W138=\"1\",AND(W138<>\"1\",G138=Lists!$A$17)),Y138,0)","v":0},null,{"$f":"IF(AND(W138=\"2\",G138<>Lists!$A$17),AA138,Z138)","v":""},"",{"$f":"Planning!AH122","v":{"v":0,"d":"0.00"}},{"$f":"'Month 8'!M138+'Month 8'!N138-'Month 8'!O138","v":{"v":0,"d":"0.00"}},null,"","",{"$f":"SUMIFS($J$25:$J$224,$C$25:$C$224,$C138,$G$25:$G$224,Lists!$A$16)","v":0},0,null,"",null,{"$f":"IF(C138=0,\"\",LEFT(INDEX(Lists!$H$5:$H$49,MATCH(C138,Lists!$G$5:$G$49,0),1),1))","v":""},null,{"$f":"'Month 8'!H138+'Month 8'!I138-'Month 8'!J138","v":0},"","",null,"0"]
[{"$f":"Planning!A123","v":"I115"},{"$f":"Planning!B123","v":0},{"$f":"Planning!C123","v":0},{"$f":"Planning!D123","v":0},{"$f":"Planning!E123","v":0},{"$f":"IF(Planning!G123<>0,Planning!G123,\"\")","v":""},{"$f":"Planning!H123","v":0},{"$f":"Planning!AG123","v":0},{"$f":"IF(OR(W139=\"1\",AND(W139<>\"1\",G139=Lists!$A$17)),Y139,0)","v":0},null,{"$f":"IF(AND(W139=\"2\",G139<>Lists!$A$17),AA139,Z139)","v":""},"",{"$f":"Planning!AH123","v":{"v":0,"d":"0.00"}},{"$f":"'Month 8'!M139+'Month 8'!N139-'Month 8'!O139","v":{"v":0,"d":"0.00"}},null,"","",{"$f":"SUMIFS($J$25:$J$224,$C$25:$C$224,$C139,$G$25:$G$224,Lists!$A$16)","v":0},0,null,"",null,{"$f":"IF(C139=0,\"\",LEFT(INDEX(Lists!$H$5:$H$49,MATCH(C139,Lists!$G$5:$G$49,0),1),1))","v":""},null,{"$f":"'Month 8'!H139+'Month 8'!I139-'Month 8'!J139","v":0},"","",null,"0"]
[{"$f":"Planning!A124","v":"I116"},{"$f":"Planning!B124","v":0},{"$f":"Planning!C124","v":0},{"$f":"Planning!D124","v":0},{"$f":"Planning!E124","v":0},{"$f":"IF(Planning!G124<>0,Planning!G124,\"\")","v":""},{"$f":"Planning!H124","v":0},{"$f":"Planning!AG124","v":0},{"$f":"IF(OR(W140=\"1\",AND(W140<>\"1\",G140=Lists!$A$17)),Y140,0)","v":0},null,{"$f":"IF(AND(W140=\"2\",G140<>Lists!$A$17),AA140,Z140)","v":""},"",{"$f":"Planning!AH124","v":{"v":0,"d":"0.00"}},{"$f":"'Month 8'!M140+'Month 8'!N140-'Month 8'!O140","v":{"v":0,"d":"0.00"}},null,"","",{"$f":"SUMIFS($J$25:$J$224,$C$25:$C$224,$C140,$G$25:$G$224,Lists!$A$16)","v":0},0,null,"",null,{"$f":"IF(C140=0,\"\",LEFT(INDEX(Lists!$H$5:$H$49,MATCH(C140,Lists!$G$5:$G$49,0),1),1))","v":""},null,{"$f":"'Month 8'!H140+'Month 8'!I140-'Month 8'!J140","v":0},"","",null,"0"]
[{"$f":"Planning!A125","v":"I117"},{"$f":"Planning!B125","v":0},{"$f":"Planning!C125","v":0},{"$f":"Planning!D125","v":0},{"$f":"Planning!E125","v":0},{"$f":"IF(Planning!G125<>0,Planning!G125,\"\")","v":""},{"$f":"Planning!H125","v":0},{"$f":"Planning!AG125","v":0},{"$f":"IF(OR(W141=\"1\",AND(W141<>\"1\",G141=Lists!$A$17)),Y141,0)","v":0},null,{"$f":"IF(AND(W141=\"2\",G141<>Lists!$A$17),AA141,Z141)","v":""},"",{"$f":"Planning!AH125","v":{"v":0,"d":"0.00"}},{"$f":"'Month 8'!M141+'Month 8'!N141-'Month 8'!O141","v":{"v":0,"d":"0.00"}},null,"","",{"$f":"SUMIFS($J$25:$J$224,$C$25:$C$224,$C141,$G$25:$G$224,Lists!$A$16)","v":0},0,null,"",null,{"$f":"IF(C141=0,\"\",LEFT(INDEX(Lists!$H$5:$H$49,MATCH(C141,Lists!$G$5:$G$49,0),1),1))","v":""},null,{"$f":"'Month 8'!H141+'Month 8'!I141-'Month 8'!J141","v":0},"","",null,"0"]
[{"$f":"Planning!A126","v":"I118"},{"$f":"Planning!B126","v":0},{"$f":"Planning!C126","v":0},{"$f":"Planning!D126","v":0},{"$f":"Planning!E126","v":0},{"$f":"IF(Planning!G126<>0,Planning!G126,\"\")","v":""},{"$f":"Planning!H126","v":0},{"$f":"Planning!AG126","v":0},{"$f":"IF(OR(W142=\"1\",AND(W142<>\"1\",G142=Lists!$A$17)),Y142,0)","v":0},null,{"$f":"IF(AND(W142=\"2\",G142<>Lists!$A$17),AA142,Z142)","v":""},"",{"$f":"Planning!AH126","v":{"v":0,"d":"0.00"}},{"$f":"'Month 8'!M142+'Month 8'!N142-'Month 8'!O142","v":{"v":0,"d":"0.00"}},null,"","",{"$f":"SUMIFS($J$25:$J$224,$C$25:$C$224,$C142,$G$25:$G$224,Lists!$A$16)","v":0},0,null,"",null,{"$f":"IF(C142=0,\"\",LEFT(INDEX(Lists!$H$5:$H$49,MATCH(C142,Lists!$G$5:$G$49,0),1),1))","v":""},null,{"$f":"'Month 8'!H142+'Month 8'!I142-'Month 8'!J142","v":0},"","",null,"0"]
[{"$f":"Planning!A127","v":"I119"},{"$f":"Planning!B127","v":0},{"$f":"Planning!C127","v":0},{"$f":"Planning!D127","v":0},{"$f":"Planning!E127","v":0},{"$f":"IF(Planning!G127<>0,Planning!G127,\"\")","v":""},{"$f":"Planning!H127","v":0},{"$f":"Planning!AG127","v":0},{"$f":"IF(OR(W143=\"1\",AND(W143<>\"1\",G143=Lists!$A$17)),Y143,0)","v":0},null,{"$f":"IF(AND(W143=\"2\",G143<>Lists!$A$17),AA143,Z143)","v":""},"",{"$f":"Planning!AH127","v":{"v":0,"d":"0.00"}},{"$f":"'Month 8'!M143+'Month 8'!N143-'Month 8'!O143","v":{"v":0,"d":"0.00"}},null,"","",{"$f":"SUMIFS($J$25:$J$224,$C$25:$C$224,$C143,$G$25:$G$224,Lists!$A$16)","v":0},0,null,"",null,{"$f":"IF(C143=0,\"\",LEFT(INDEX(Lists!$H$5:$H$49,MATCH(C143,Lists!$G$5:$G$49,0),1),1))","v":""},null,{"$f":"'Month 8'!H143+'Month 8'!I143-'Month 8'!J143","v":0},"","",null,"0"]
[{"$f":"Planning!A128","v":"I120"},{"$f":"Planning!B128","v":0},{"$f":"Planning!C128","v":0},{"$f":"Planning!D128","v":0},{"$f":"Planning!E128","v":0},{"$f":"IF(Planning!G128<>0,Planning!G128,\"\")","v":""},{"$f":"Planning!H128","v":0},{"$f":"Planning!AG128","v":0},{"$f":"IF(OR(W144=\"1\",AND(W144<>\"1\",G144=Lists!$A$17)),Y144,0)","v":0},null,{"$f":"IF(AND(W144=\"2\",G144<>Lists!$A$17),AA144,Z144)","v":""},"",{"$f":"Planning!AH128","v":{"v":0,"d":"0.00"}},{"$f":"'Month 8'!M144+'Month 8'!N144-'Month 8'!O144","v":{"v":0,"d":"0.00"}},null,"","",{"$f":"SUMIFS($J$25:$J$224,$C$25:$C$224,$C144,$G$25:$G$224,Lists!$A$16)","v":0},0,null,"",null,{"$f":"IF(C144=0,\"\",LEFT(INDEX(Lists!$H$5:$H$49,MATCH(C144,Lists!$G$5:$G$49,0),1),1))","v":""},null,{"$f":"'Month 8'!H144+'Month 8'!I144-'Month 8'!J144","v":0},"","",null,"0"]
[{"$f":"Planning!A129","v":"I121"},{"$f":"Planning!B129","v":0},{"$f":"Planning!C129","v":0},{"$f":"Planning!D129","v":0},{"$f":"Planning!E129","v":0},{"$f":"IF(Planning!G129<>0,Planning!G129,\"\")","v":""},{"$f":"Planning!H129","v":0},{"$f":"Planning!AG129","v":0},{"$f":"IF(OR(W145=\"1\",AND(W145<>\"1\",G145=Lists!$A$17)),Y145,0)","v":0},null,{"$f":"IF(AND(W145=\"2\",G145<>Lists!$A$17),AA145,Z145)","v":""},"",{"$f":"Planning!AH129","v":{"v":0,"d":"0.00"}},{"$f":"'Month 8'!M145+'Month 8'!N145-'Month 8'!O145","v":{"v":0,"d":"0.00"}},null,"","",{"$f":"SUMIFS($J$25:$J$224,$C$25:$C$224,$C145,$G$25:$G$224,Lists!$A$16)","v":0},0,null,"",null,{"$f":"IF(C145=0,\"\",LEFT(INDEX(Lists!$H$5:$H$49,MATCH(C145,Lists!$G$5:$G$49,0),1),1))","v":""},null,{"$f":"'Month 8'!H145+'Month 8'!I145-'Month 8'!J145","v":0},"","",null,"0"]
[{"$f":"Planning!A130","v":"I122"},{"$f":"Planning!B130","v":0},{"$f":"Planning!C130","v":0},{"$f":"Planning!D130","v":0},{"$f":"Planning!E130","v":0},{"$f":"IF(Planning!G130<>0,Planning!G130,\"\")","v":""},{"$f":"Planning!H130","v":0},{"$f":"Planning!AG130","v":0},{"$f":"IF(OR(W146=\"1\",AND(W146<>\"1\",G146=Lists!$A$17)),Y146,0)","v":0},null,{"$f":"IF(AND(W146=\"2\",G146<>Lists!$A$17),AA146,Z146)","v":""},"",{"$f":"Planning!AH130","v":{"v":0,"d":"0.00"}},{"$f":"'Month 8'!M146+'Month 8'!N146-'Month 8'!O146","v":{"v":0,"d":"0.00"}},null,"","",{"$f":"SUMIFS($J$25:$J$224,$C$25:$C$224,$C146,$G$25:$G$224,Lists!$A$16)","v":0},0,null,"",null,{"$f":"IF(C146=0,\"\",LEFT(INDEX(Lists!$H$5:$H$49,MATCH(C146,Lists!$G$5:$G$49,0),1),1))","v":""},null,{"$f":"'Month 8'!H146+'Month 8'!I146-'Month 8'!J146","v":0},"","",null,"0"]
[{"$f":"Planning!A131","v":"I123"},{"$f":"Planning!B131","v":0},{"$f":"Planning!C131","v":0},{"$f":"Planning!D131","v":0},{"$f":"Planning!E131","v":0},{"$f":"IF(Planning!G131<>0,Planning!G131,\"\")","v":""},{"$f":"Planning!H131","v":0},{"$f":"Planning!AG131","v":0},{"$f":"IF(OR(W147=\"1\",AND(W147<>\"1\",G147=Lists!$A$17)),Y147,0)","v":0},null,{"$f":"IF(AND(W147=\"2\",G147<>Lists!$A$17),AA147,Z147)","v":""},"",{"$f":"Planning!AH131","v":{"v":0,"d":"0.00"}},{"$f":"'Month 8'!M147+'Month 8'!N147-'Month 8'!O147","v":{"v":0,"d":"0.00"}},null,"","",{"$f":"SUMIFS($J$25:$J$224,$C$25:$C$224,$C147,$G$25:$G$224,Lists!$A$16)","v":0},0,null,"",null,{"$f":"IF(C147=0,\"\",LEFT(INDEX(Lists!$H$5:$H$49,MATCH(C147,Lists!$G$5:$G$49,0),1),1))","v":""},null,{"$f":"'Month 8'!H147+'Month 8'!I147-'Month 8'!J147","v":0},"","",null,"0"]
[{"$f":"Planning!A132","v":"I124"},{"$f":"Planning!B132","v":0},{"$f":"Planning!C132","v":0},{"$f":"Planning!D132","v":0},{"$f":"Planning!E132","v":0},{"$f":"IF(Planning!G132<>0,Planning!G132,\"\")","v":""},{"$f":"Planning!H132","v":0},{"$f":"Planning!AG132","v":0},{"$f":"IF(OR(W148=\"1\",AND(W148<>\"1\",G148=Lists!$A$17)),Y148,0)","v":0},null,{"$f":"IF(AND(W148=\"2\",G148<>Lists!$A$17),AA148,Z148)","v":""},"",{"$f":"Planning!AH132","v":{"v":0,"d":"0.00"}},{"$f":"'Month 8'!M148+'Month 8'!N148-'Month 8'!O148","v":{"v":0,"d":"0.00"}},null,"","",{"$f":"SUMIFS($J$25:$J$224,$C$25:$C$224,$C148,$G$25:$G$224,Lists!$A$16)","v":0},0,null,"",null,{"$f":"IF(C148=0,\"\",LEFT(INDEX(Lists!$H$5:$H$49,MATCH(C148,Lists!$G$5:$G$49,0),1),1))","v":""},null,{"$f":"'Month 8'!H148+'Month 8'!I148-'Month 8'!J148","v":0},"","",null,"0"]
[{"$f":"Planning!A133","v":"I125"},{"$f":"Planning!B133","v":0},{"$f":"Planning!C133","v":0},{"$f":"Planning!D133","v":0},{"$f":"Planning!E133","v":0},{"$f":"IF(Planning!G133<>0,Planning!G133,\"\")","v":""},{"$f":"Planning!H133","v":0},{"$f":"Planning!AG133","v":0},{"$f":"IF(OR(W149=\"1\",AND(W149<>\"1\",G149=Lists!$A$17)),Y149,0)","v":0},null,{"$f":"IF(AND(W149=\"2\",G149<>Lists!$A$17),AA149,Z149)","v":""},"",{"$f":"Planning!AH133","v":{"v":0,"d":"0.00"}},{"$f":"'Month 8'!M149+'Month 8'!N149-'Month 8'!O149","v":{"v":0,"d":"0.00"}},null,"","",{"$f":"SUMIFS($J$25:$J$224,$C$25:$C$224,$C149,$G$25:$G$224,Lists!$A$16)","v":0},0,null,"",null,{"$f":"IF(C149=0,\"\",LEFT(INDEX(Lists!$H$5:$H$49,MATCH(C149,Lists!$G$5:$G$49,0),1),1))","v":""},null,{"$f":"'Month 8'!H149+'Month 8'!I149-'Month 8'!J149","v":0},"","",null,"0"]
[{"$f":"Planning!A134","v":"I126"},{"$f":"Planning!B134","v":0},{"$f":"Planning!C134","v":0},{"$f":"Planning!D134","v":0},{"$f":"Planning!E134","v":0},{"$f":"IF(Planning!G134<>0,Planning!G134,\"\")","v":""},{"$f":"Planning!H134","v":0},{"$f":"Planning!AG134","v":0},{"$f":"IF(OR(W150=\"1\",AND(W150<>\"1\",G150=Lists!$A$17)),Y150,0)","v":0},null,{"$f":"IF(AND(W150=\"2\",G150<>Lists!$A$17),AA150,Z150)","v":""},"",{"$f":"Planning!AH134","v":{"v":0,"d":"0.00"}},{"$f":"'Month 8'!M150+'Month 8'!N150-'Month 8'!O150","v":{"v":0,"d":"0.00"}},null,"","",{"$f":"SUMIFS($J$25:$J$224,$C$25:$C$224,$C150,$G$25:$G$224,Lists!$A$16)","v":0},0,null,"",null,{"$f":"IF(C150=0,\"\",LEFT(INDEX(Lists!$H$5:$H$49,MATCH(C150,Lists!$G$5:$G$49,0),1),1))","v":""},null,{"$f":"'Month 8'!H150+'Month 8'!I150-'Month 8'!J150","v":0},"","",null,"0"]
[{"$f":"Planning!A135","v":"I127"},{"$f":"Planning!B135","v":0},{"$f":"Planning!C135","v":0},{"$f":"Planning!D135","v":0},{"$f":"Planning!E135","v":0},{"$f":"IF(Planning!G135<>0,Planning!G135,\"\")","v":""},{"$f":"Planning!H135","v":0},{"$f":"Planning!AG135","v":0},{"$f":"IF(OR(W151=\"1\",AND(W151<>\"1\",G151=Lists!$A$17)),Y151,0)","v":0},null,{"$f":"IF(AND(W151=\"2\",G151<>Lists!$A$17),AA151,Z151)","v":""},"",{"$f":"Planning!AH135","v":{"v":0,"d":"0.00"}},{"$f":"'Month 8'!M151+'Month 8'!N151-'Month 8'!O151","v":{"v":0,"d":"0.00"}},null,"","",{"$f":"SUMIFS($J$25:$J$224,$C$25:$C$224,$C151,$G$25:$G$224,Lists!$A$16)","v":0},0,null,"",null,{"$f":"IF(C151=0,\"\",LEFT(INDEX(Lists!$H$5:$H$49,MATCH(C151,Lists!$G$5:$G$49,0),1),1))","v":""},null,{"$f":"'Month 8'!H151+'Month 8'!I151-'Month 8'!J151","v":0},"","",null,"0"]
[{"$f":"Planning!A136","v":"I128"},{"$f":"Planning!B136","v":0},{"$f":"Planning!C136","v":0},{"$f":"Planning!D136","v":0},{"$f":"Planning!E136","v":0},{"$f":"IF(Planning!G136<>0,Planning!G136,\"\")","v":""},{"$f":"Planning!H136","v":0},{"$f":"Planning!AG136","v":0},{"$f":"IF(OR(W152=\"1\",AND(W152<>\"1\",G152=Lists!$A$17)),Y152,0)","v":0},null,{"$f":"IF(AND(W152=\"2\",G152<>Lists!$A$17),AA152,Z152)","v":""},"",{"$f":"Planning!AH136","v":{"v":0,"d":"0.00"}},{"$f":"'Month 8'!M152+'Month 8'!N152-'Month 8'!O152","v":{"v":0,"d":"0.00"}},null,"","",{"$f":"SUMIFS($J$25:$J$224,$C$25:$C$224,$C152,$G$25:$G$224,Lists!$A$16)","v":0},0,null,"",null,{"$f":"IF(C152=0,\"\",LEFT(INDEX(Lists!$H$5:$H$49,MATCH(C152,Lists!$G$5:$G$49,0),1),1))","v":""},null,{"$f":"'Month 8'!H152+'Month 8'!I152-'Month 8'!J152","v":0},"","",null,"0"]
[{"$f":"Planning!A137","v":"I129"},{"$f":"Planning!B137","v":0},{"$f":"Planning!C137","v":0},{"$f":"Planning!D137","v":0},{"$f":"Planning!E137","v":0},{"$f":"IF(Planning!G137<>0,Planning!G137,\"\")","v":""},{"$f":"Planning!H137","v":0},{"$f":"Planning!AG137","v":0},{"$f":"IF(OR(W153=\"1\",AND(W153<>\"1\",G153=Lists!$A$17)),Y153,0)","v":0},null,{"$f":"IF(AND(W153=\"2\",G153<>Lists!$A$17),AA153,Z153)","v":""},{"$f":"IF($U153=ExcluirDelPLogro,\"\",IF(AND(H153=0,I153=0,J153=0),\"\",K153))","v":""},{"$f":"Planning!AH137","v":{"v":0,"d":"0.00"}},{"$f":"'Month 8'!M153+'Month 8'!N153-'Month 8'!O153","v":{"v":0,"d":"0.00"}},null,"",{"$f":"IF($U153=ExcluirDelPLogro,\"\",IF(AND(M153=0,N153=0,O153=0),\"\",P153))","v":""},{"$f":"SUMIFS($J$25:$J$224,$C$25:$C$224,$C153,$G$25:$G$224,Lists!$A$16)","v":0},0,null,"",null,{"$f":"IF(C153=0,\"\",LEFT(INDEX(Lists!$H$5:$H$49,MATCH(C153,Lists!$G$5:$G$49,0),1),1))","v":""},null,{"$f":"'Month 8'!H153+'Month 8'!I153-'Month 8'!J153","v":0},"",{"$f":"IF(AND(H153=0,I153=0,J153=0),\"\",IF(J153>0,H153/J153,0))","v":""},null,"0"]
[{"$f":"Planning!A138","v":"I130"},{"$f":"Planning!B138","v":0},{"$f":"Planning!C138","v":0},{"$f":"Planning!D138","v":0},{"$f":"Planning!E138","v":0},{"$f":"IF(Planning!G138<>0,Planning!G138,\"\")","v":""},{"$f":"Planning!H138","v":0},{"$f":"Planning!AG138","v":0},{"$f":"IF(OR(W154=\"1\",AND(W154<>\"1\",G154=Lists!$A$17)),Y154,0)","v":0},null,{"$f":"IF(AND(W154=\"2\",G154<>Lists!$A$17),AA154,Z154)","v":""},"",{"$f":"Planning!AH138","v":{"v":0,"d":"0.00"}},{"$f":"'Month 8'!M154+'Month 8'!N154-'Month 8'!O154","v":{"v":0,"d":"0.00"}},null,{"$f":"IF(AND(M154=0,N154=0,O154=0),\"\",IF((M154+N154)>0,O154/(M154+N154),O154))","v":""},"",{"$f":"SUMIFS($J$25:$J$224,$C$25:$C$224,$C154,$G$25:$G$224,Lists!$A$16)","v":0},{"$f":"SUMIFS($O$25:$O$224,$C$25:$C$224,$C154,$G$25:$G$224,\"<>0\")","v":0},null,{"$f":"IF(B154=0,\"\",IF(LEFT(B154,1)=\"1\",\"1\",\"2\"))","v":""},null,{"$f":"IF(C154=0,\"\",LEFT(INDEX(Lists!$H$5:$H$49,MATCH(C154,Lists!$G$5:$G$49,0),1),1))","v":""},null,{"$f":"'Month 8'!H154+'Month 8'!I154-'Month 8'!J154","v":0},{"$f":"IF(AND(H154=0,I154=0,J154=0),\"\",IF((H154+I154)>0,J154/(H154+I154),J154))","v":""},"",null,{"$f":"U154&C154","v":"0"}]
[{"$f":"Planning!A139","v":"I131"},{"$f":"Planning!B139","v":0},{"$f":"Planning!C139","v":0},{"$f":"Planning!D139","v":0},{"$f":"Planning!E139","v":0},{"$f":"IF(Planning!G139<>0,Planning!G139,\"\")","v":""},{"$f":"Planning!H139","v":0},{"$f":"Planning!AG139","v":0},{"$f":"IF(OR(W155=\"1\",AND(W155<>\"1\",G155=Lists!$A$17)),Y155,0)","v":0},null,{"$f":"IF(AND(W155=\"2\",G155<>Lists!$A$17),AA155,Z155)","v":""},"",{"$f":"Planning!AH139","v":{"v":0,"d":"0.00"}},{"$f":"'Month 8'!M155+'Month 8'!N155-'Month 8'!O155","v":{"v":0,"d":"0.00"}},null,"","",{"$f":"SUMIFS($J$25:$J$224,$C$25:$C$224,$C155,$G$25:$G$224,Lists!$A$16)","v":0},0,null,"",null,{"$f":"IF(C155=0,\"\",LEFT(INDEX(Lists!$H$5:$H$49,MATCH(C155,Lists!$G$5:$G$49,0),1),1))","v":""},null,{"$f":"'Month 8'!H155+'Month 8'!I155-'Month 8'!J155","v":0},"","",null,"0"]
[{"$f":"Planning!A140","v":"I132"},{"$f":"Planning!B140","v":0},{"$f":"Planning!C140","v":0},{"$f":"Planning!D140","v":0},{"$f":"Planning!E140","v":0},{"$f":"IF(Planning!G140<>0,Planning!G140,\"\")","v":""},{"$f":"Planning!H140","v":0},{"$f":"Planning!AG140","v":0},{"$f":"IF(OR(W156=\"1\",AND(W156<>\"1\",G156=Lists!$A$17)),Y156,0)","v":0},null,{"$f":"IF(AND(W156=\"2\",G156<>Lists!$A$17),AA156,Z156)","v":""},"",{"$f":"Planning!AH140","v":{"v":0,"d":"0.00"}},{"$f":"'Month 8'!M156+'Month 8'!N156-'Month 8'!O156","v":{"v":0,"d":"0.00"}},null,"","",{"$f":"SUMIFS($J$25:$J$224,$C$25:$C$224,$C156,$G$25:$G$224,Lists!$A$16)","v":0},0,null,"",null,{"$f":"IF(C156=0,\"\",LEFT(INDEX(Lists!$H$5:$H$49,MATCH(C156,Lists!$G$5:$G$49,0),1),1))","v":""},null,{"$f":"'Month 8'!H156+'Month 8'!I156-'Month 8'!J156","v":0},"","",null,"0"]
[{"$f":"Planning!A141","v":"I133"},{"$f":"Planning!B141","v":0},{"$f":"Planning!C141","v":0},{"$f":"Planning!D141","v":0},{"$f":"Planning!E141","v":0},{"$f":"IF(Planning!G141<>0,Planning!G141,\"\")","v":""},{"$f":"Planning!H141","v":0},{"$f":"Planning!AG141","v":0},{"$f":"IF(OR(W157=\"1\",AND(W157<>\"1\",G157=Lists!$A$17)),Y157,0)","v":0},null,{"$f":"IF(AND(W157=\"2\",G157<>Lists!$A$17),AA157,Z157)","v":""},"",{"$f":"Planning!AH141","v":{"v":0,"d":"0.00"}},{"$f":"'Month 8'!M157+'Month 8'!N157-'Month 8'!O157","v":{"v":0,"d":"0.00"}},null,"","",{"$f":"SUMIFS($J$25:$J$224,$C$25:$C$224,$C157,$G$25:$G$224,Lists!$A$16)","v":0},0,null,"",null,{"$f":"IF(C157=0,\"\",LEFT(INDEX(Lists!$H$5:$H$49,MATCH(C157,Lists!$G$5:$G$49,0),1),1))","v":""},null,{"$f":"'Month 8'!H157+'Month 8'!I157-'Month 8'!J157","v":0},"","",null,"0"]
[{"$f":"Planning!A142","v":"I134"},{"$f":"Planning!B142","v":0},{"$f":"Planning!C142","v":0},{"$f":"Planning!D142","v":0},{"$f":"Planning!E142","v":0},{"$f":"IF(Planning!G142<>0,Planning!G142,\"\")","v":""},{"$f":"Planning!H142","v":0},{"$f":"Planning!AG142","v":0},{"$f":"IF(OR(W158=\"1\",AND(W158<>\"1\",G158=Lists!$A$17)),Y158,0)","v":0},null,{"$f":"IF(AND(W158=\"2\",G158<>Lists!$A$17),AA158,Z158)","v":""},"",{"$f":"Planning!AH142","v":{"v":0,"d":"0.00"}},{"$f":"'Month 8'!M158+'Month 8'!N158-'Month 8'!O158","v":{"v":0,"d":"0.00"}},null,"","",{"$f":"SUMIFS($J$25:$J$224,$C$25:$C$224,$C158,$G$25:$G$224,Lists!$A$16)","v":0},0,null,"",null,{"$f":"IF(C158=0,\"\",LEFT(INDEX(Lists!$H$5:$H$49,MATCH(C158,Lists!$G$5:$G$49,0),1),1))","v":""},null,{"$f":"'Month 8'!H158+'Month 8'!I158-'Month 8'!J158","v":0},"","",null,"0"]
[{"$f":"Planning!A143","v":"I135"},{"$f":"Planning!B143","v":0},{"$f":"Planning!C143","v":0},{"$f":"Planning!D143","v":0},{"$f":"Planning!E143","v":0},{"$f":"IF(Planning!G143<>0,Planning!G143,\"\")","v":""},{"$f":"Planning!H143","v":0},{"$f":"Planning!AG143","v":0},{"$f":"IF(OR(W159=\"1\",AND(W159<>\"1\",G159=Lists!$A$17)),Y159,0)","v":0},null,{"$f":"IF(AND(W159=\"2\",G159<>Lists!$A$17),AA159,Z159)","v":""},"",{"$f":"Planning!AH143","v":{"v":0,"d":"0.00"}},{"$f":"'Month 8'!M159+'Month 8'!N159-'Month 8'!O159","v":{"v":0,"d":"0.00"}},null,"","",{"$f":"SUMIFS($J$25:$J$224,$C$25:$C$224,$C159,$G$25:$G$224,Lists!$A$16)","v":0},0,null,"",null,{"$f":"IF(C159=0,\"\",LEFT(INDEX(Lists!$H$5:$H$49,MATCH(C159,Lists!$G$5:$G$49,0),1),1))","v":""},null,{"$f":"'Month 8'!H159+'Month 8'!I159-'Month 8'!J159","v":0},"","",null,"0"]
[{"$f":"Planning!A144","v":"I136"},{"$f":"Planning!B144","v":0},{"$f":"Planning!C144","v":0},{"$f":"Planning!D144","v":0},{"$f":"Planning!E144","v":0},{"$f":"IF(Planning!G144<>0,Planning!G144,\"\")","v":""},{"$f":"Planning!H144","v":0},{"$f":"Planning!AG144","v":0},{"$f":"IF(OR(W160=\"1\",AND(W160<>\"1\",G160=Lists!$A$17)),Y160,0)","v":0},null,{"$f":"IF(AND(W160=\"2\",G160<>Lists!$A$17),AA160,Z160)","v":""},"",{"$f":"Planning!AH144","v":{"v":0,"d":"0.00"}},{"$f":"'Month 8'!M160+'Month 8'!N160-'Month 8'!O160","v":{"v":0,"d":"0.00"}},null,"","",{"$f":"SUMIFS($J$25:$J$224,$C$25:$C$224,$C160,$G$25:$G$224,Lists!$A$16)","v":0},0,null,"",null,{"$f":"IF(C160=0,\"\",LEFT(INDEX(Lists!$H$5:$H$49,MATCH(C160,Lists!$G$5:$G$49,0),1),1))","v":""},null,{"$f":"'Month 8'!H160+'Month 8'!I160-'Month 8'!J160","v":0},"","",null,"0"]
[{"$f":"Planning!A145","v":"I137"},{"$f":"Planning!B145","v":0},{"$f":"Planning!C145","v":0},{"$f":"Planning!D145","v":0},{"$f":"Planning!E145","v":0},{"$f":"IF(Planning!G145<>0,Planning!G145,\"\")","v":""},{"$f":"Planning!H145","v":0},{"$f":"Planning!AG145","v":0},{"$f":"IF(OR(W161=\"1\",AND(W161<>\"1\",G161=Lists!$A$17)),Y161,0)","v":0},null,{"$f":"IF(AND(W161=\"2\",G161<>Lists!$A$17),AA161,Z161)","v":""},"",{"$f":"Planning!AH145","v":{"v":0,"d":"0.00"}},{"$f":"'Month 8'!M161+'Month 8'!N161-'Month 8'!O161","v":{"v":0,"d":"0.00"}},null,"","",{"$f":"SUMIFS($J$25:$J$224,$C$25:$C$224,$C161,$G$25:$G$224,Lists!$A$16)","v":0},0,null,"",null,{"$f":"IF(C161=0,\"\",LEFT(INDEX(Lists!$H$5:$H$49,MATCH(C161,Lists!$G$5:$G$49,0),1),1))","v":""},null,{"$f":"'Month 8'!H161+'Month 8'!I161-'Month 8'!J161","v":0},"","",null,"0"]
[{"$f":"Planning!A146","v":"I138"},{"$f":"Planning!B146","v":0},{"$f":"Planning!C146","v":0},{"$f":"Planning!D146","v":0},{"$f":"Planning!E146","v":0},{"$f":"IF(Planning!G146<>0,Planning!G146,\"\")","v":""},{"$f":"Planning!H146","v":0},{"$f":"Planning!AG146","v":0},{"$f":"IF(OR(W162=\"1\",AND(W162<>\"1\",G162=Lists!$A$17)),Y162,0)","v":0},null,{"$f":"IF(AND(W162=\"2\",G162<>Lists!$A$17),AA162,Z162)","v":""},"",{"$f":"Planning!AH146","v":{"v":0,"d":"0.00"}},{"$f":"'Month 8'!M162+'Month 8'!N162-'Month 8'!O162","v":{"v":0,"d":"0.00"}},null,"","",{"$f":"SUMIFS($J$25:$J$224,$C$25:$C$224,$C162,$G$25:$G$224,Lists!$A$16)","v":0},0,null,"",null,{"$f":"IF(C162=0,\"\",LEFT(INDEX(Lists!$H$5:$H$49,MATCH(C162,Lists!$G$5:$G$49,0),1),1))","v":""},null,{"$f":"'Month 8'!H162+'Month 8'!I162-'Month 8'!J162","v":0},"","",null,"0"]
[{"$f":"Planning!A147","v":"I139"},{"$f":"Planning!B147","v":0},{"$f":"Planning!C147","v":0},{"$f":"Planning!D147","v":0},{"$f":"Planning!E147","v":0},{"$f":"IF(Planning!G147<>0,Planning!G147,\"\")","v":""},{"$f":"Planning!H147","v":0},{"$f":"Planning!AG147","v":0},{"$f":"IF(OR(W163=\"1\",AND(W163<>\"1\",G163=Lists!$A$17)),Y163,0)","v":0},null,{"$f":"IF(AND(W163=\"2\",G163<>Lists!$A$17),AA163,Z163)","v":""},"",{"$f":"Planning!AH147","v":{"v":0,"d":"0.00"}},{"$f":"'Month 8'!M163+'Month 8'!N163-'Month 8'!O163","v":{"v":0,"d":"0.00"}},null,"","",{"$f":"SUMIFS($J$25:$J$224,$C$25:$C$224,$C163,$G$25:$G$224,Lists!$A$16)","v":0},0,null,"",null,{"$f":"IF(C163=0,\"\",LEFT(INDEX(Lists!$H$5:$H$49,MATCH(C163,Lists!$G$5:$G$49,0),1),1))","v":""},null,{"$f":"'Month 8'!H163+'Month 8'!I163-'Month 8'!J163","v":0},"","",null,"0"]
[{"$f":"Planning!A148","v":"I140"},{"$f":"Planning!B148","v":0},{"$f":"Planning!C148","v":0},{"$f":"Planning!D148","v":0},{"$f":"Planning!E148","v":0},{"$f":"IF(Planning!G148<>0,Planning!G148,\"\")","v":""},{"$f":"Planning!H148","v":0},{"$f":"Planning!AG148","v":0},{"$f":"IF(OR(W164=\"1\",AND(W164<>\"1\",G164=Lists!$A$17)),Y164,0)","v":0},null,{"$f":"IF(AND(W164=\"2\",G164<>Lists!$A$17),AA164,Z164)","v":""},"",{"$f":"Planning!AH148","v":{"v":0,"d":"0.00"}},{"$f":"'Month 8'!M164+'Month 8'!N164-'Month 8'!O164","v":{"v":0,"d":"0.00"}},null,"","",{"$f":"SUMIFS($J$25:$J$224,$C$25:$C$224,$C164,$G$25:$G$224,Lists!$A$16)","v":0},0,null,"",null,{"$f":"IF(C164=0,\"\",LEFT(INDEX(Lists!$H$5:$H$49,MATCH(C164,Lists!$G$5:$G$49,0),1),1))","v":""},null,{"$f":"'Month 8'!H164+'Month 8'!I164-'Month 8'!J164","v":0},"","",null,"0"]
[{"$f":"Planning!A149","v":"I141"},{"$f":"Planning!B149","v":0},{"$f":"Planning!C149","v":0},{"$f":"Planning!D149","v":0},{"$f":"Planning!E149","v":0},{"$f":"IF(Planning!G149<>0,Planning!G149,\"\")","v":""},{"$f":"Planning!H149","v":0},{"$f":"Planning!AG149","v":0},{"$f":"IF(OR(W165=\"1\",AND(W165<>\"1\",G165=Lists!$A$17)),Y165,0)","v":0},null,{"$f":"IF(AND(W165=\"2\",G165<>Lists!$A$17),AA165,Z165)","v":""},"",{"$f":"Planning!AH149","v":{"v":0,"d":"0.00"}},{"$f":"'Month 8'!M165+'Month 8'!N165-'Month 8'!O165","v":{"v":0,"d":"0.00"}},null,"","",{"$f":"SUMIFS($J$25:$J$224,$C$25:$C$224,$C165,$G$25:$G$224,Lists!$A$16)","v":0},0,null,"",null,{"$f":"IF(C165=0,\"\",LEFT(INDEX(Lists!$H$5:$H$49,MATCH(C165,Lists!$G$5:$G$49,0),1),1))","v":""},null,{"$f":"'Month 8'!H165+'Month 8'!I165-'Month 8'!J165","v":0},"","",null,"0"]
[{"$f":"Planning!A150","v":"I142"},{"$f":"Planning!B150","v":0},{"$f":"Planning!C150","v":0},{"$f":"Planning!D150","v":0},{"$f":"Planning!E150","v":0},{"$f":"IF(Planning!G150<>0,Planning!G150,\"\")","v":""},{"$f":"Planning!H150","v":0},{"$f":"Planning!AG150","v":0},{"$f":"IF(OR(W166=\"1\",AND(W166<>\"1\",G166=Lists!$A$17)),Y166,0)","v":0},null,{"$f":"IF(AND(W166=\"2\",G166<>Lists!$A$17),AA166,Z166)","v":""},"",{"$f":"Planning!AH150","v":{"v":0,"d":"0.00"}},{"$f":"'Month 8'!M166+'Month 8'!N166-'Month 8'!O166","v":{"v":0,"d":"0.00"}},null,"","",{"$f":"SUMIFS($J$25:$J$224,$C$25:$C$224,$C166,$G$25:$G$224,Lists!$A$16)","v":0},0,null,"",null,{"$f":"IF(C166=0,\"\",LEFT(INDEX(Lists!$H$5:$H$49,MATCH(C166,Lists!$G$5:$G$49,0),1),1))","v":""},null,{"$f":"'Month 8'!H166+'Month 8'!I166-'Month 8'!J166","v":0},"","",null,"0"]
[{"$f":"Planning!A151","v":"I143"},{"$f":"Planning!B151","v":0},{"$f":"Planning!C151","v":0},{"$f":"Planning!D151","v":0},{"$f":"Planning!E151","v":0},{"$f":"IF(Planning!G151<>0,Planning!G151,\"\")","v":""},{"$f":"Planning!H151","v":0},{"$f":"Planning!AG151","v":0},{"$f":"IF(OR(W167=\"1\",AND(W167<>\"1\",G167=Lists!$A$17)),Y167,0)","v":0},null,{"$f":"IF(AND(W167=\"2\",G167<>Lists!$A$17),AA167,Z167)","v":""},"",{"$f":"Planning!AH151","v":{"v":0,"d":"0.00"}},{"$f":"'Month 8'!M167+'Month 8'!N167-'Month 8'!O167","v":{"v":0,"d":"0.00"}},null,"","",{"$f":"SUMIFS($J$25:$J$224,$C$25:$C$224,$C167,$G$25:$G$224,Lists!$A$16)","v":0},0,null,"",null,{"$f":"IF(C167=0,\"\",LEFT(INDEX(Lists!$H$5:$H$49,MATCH(C167,Lists!$G$5:$G$49,0),1),1))","v":""},null,{"$f":"'Month 8'!H167+'Month 8'!I167-'Month 8'!J167","v":0},"","",null,"0"]
[{"$f":"Planning!A152","v":"I144"},{"$f":"Planning!B152","v":0},{"$f":"Planning!C152","v":0},{"$f":"Planning!D152","v":0},{"$f":"Planning!E152","v":0},{"$f":"IF(Planning!G152<>0,Planning!G152,\"\")","v":""},{"$f":"Planning!H152","v":0},{"$f":"Planning!AG152","v":0},{"$f":"IF(OR(W168=\"1\",AND(W168<>\"1\",G168=Lists!$A$17)),Y168,0)","v":0},null,{"$f":"IF(AND(W168=\"2\",G168<>Lists!$A$17),AA168,Z168)","v":""},"",{"$f":"Planning!AH152","v":{"v":0,"d":"0.00"}},{"$f":"'Month 8'!M168+'Month 8'!N168-'Month 8'!O168","v":{"v":0,"d":"0.00"}},null,"","",{"$f":"SUMIFS($J$25:$J$224,$C$25:$C$224,$C168,$G$25:$G$224,Lists!$A$16)","v":0},0,null,"",null,{"$f":"IF(C168=0,\"\",LEFT(INDEX(Lists!$H$5:$H$49,MATCH(C168,Lists!$G$5:$G$49,0),1),1))","v":""},null,{"$f":"'Month 8'!H168+'Month 8'!I168-'Month 8'!J168","v":0},"","",null,"0"]
[{"$f":"Planning!A153","v":"I145"},{"$f":"Planning!B153","v":0},{"$f":"Planning!C153","v":0},{"$f":"Planning!D153","v":0},{"$f":"Planning!E153","v":0},{"$f":"IF(Planning!G153<>0,Planning!G153,\"\")","v":""},{"$f":"Planning!H153","v":0},{"$f":"Planning!AG153","v":0},{"$f":"IF(OR(W169=\"1\",AND(W169<>\"1\",G169=Lists!$A$17)),Y169,0)","v":0},null,{"$f":"IF(AND(W169=\"2\",G169<>Lists!$A$17),AA169,Z169)","v":""},"",{"$f":"Planning!AH153","v":{"v":0,"d":"0.00"}},{"$f":"'Month 8'!M169+'Month 8'!N169-'Month 8'!O169","v":{"v":0,"d":"0.00"}},null,"","",{"$f":"SUMIFS($J$25:$J$224,$C$25:$C$224,$C169,$G$25:$G$224,Lists!$A$16)","v":0},0,null,"",null,{"$f":"IF(C169=0,\"\",LEFT(INDEX(Lists!$H$5:$H$49,MATCH(C169,Lists!$G$5:$G$49,0),1),1))","v":""},null,{"$f":"'Month 8'!H169+'Month 8'!I169-'Month 8'!J169","v":0},"","",null,"0"]
[{"$f":"Planning!A154","v":"I146"},{"$f":"Planning!B154","v":0},{"$f":"Planning!C154","v":0},{"$f":"Planning!D154","v":0},{"$f":"Planning!E154","v":0},{"$f":"IF(Planning!G154<>0,Planning!G154,\"\")","v":""},{"$f":"Planning!H154","v":0},{"$f":"Planning!AG154","v":0},{"$f":"IF(OR(W170=\"1\",AND(W170<>\"1\",G170=Lists!$A$17)),Y170,0)","v":0},null,{"$f":"IF(AND(W170=\"2\",G170<>Lists!$A$17),AA170,Z170)","v":""},"",{"$f":"Planning!AH154","v":{"v":0,"d":"0.00"}},{"$f":"'Month 8'!M170+'Month 8'!N170-'Month 8'!O170","v":{"v":0,"d":"0.00"}},null,"","",{"$f":"SUMIFS($J$25:$J$224,$C$25:$C$224,$C170,$G$25:$G$224,Lists!$A$16)","v":0},0,null,"",null,{"$f":"IF(C170=0,\"\",LEFT(INDEX(Lists!$H$5:$H$49,MATCH(C170,Lists!$G$5:$G$49,0),1),1))","v":""},null,{"$f":"'Month 8'!H170+'Month 8'!I170-'Month 8'!J170","v":0},"","",null,"0"]
[{"$f":"Planning!A155","v":"I147"},{"$f":"Planning!B155","v":0},{"$f":"Planning!C155","v":0},{"$f":"Planning!D155","v":0},{"$f":"Planning!E155","v":0},{"$f":"IF(Planning!G155<>0,Planning!G155,\"\")","v":""},{"$f":"Planning!H155","v":0},{"$f":"Planning!AG155","v":0},{"$f":"IF(OR(W171=\"1\",AND(W171<>\"1\",G171=Lists!$A$17)),Y171,0)","v":0},null,{"$f":"IF(AND(W171=\"2\",G171<>Lists!$A$17),AA171,Z171)","v":""},"",{"$f":"Planning!AH155","v":{"v":0,"d":"0.00"}},{"$f":"'Month 8'!M171+'Month 8'!N171-'Month 8'!O171","v":{"v":0,"d":"0.00"}},null,"","",{"$f":"SUMIFS($J$25:$J$224,$C$25:$C$224,$C171,$G$25:$G$224,Lists!$A$16)","v":0},0,null,"",null,{"$f":"IF(C171=0,\"\",LEFT(INDEX(Lists!$H$5:$H$49,MATCH(C171,Lists!$G$5:$G$49,0),1),1))","v":""},null,{"$f":"'Month 8'!H171+'Month 8'!I171-'Month 8'!J171","v":0},"","",null,"0"]
[{"$f":"Planning!A156","v":"I148"},{"$f":"Planning!B156","v":0},{"$f":"Planning!C156","v":0},{"$f":"Planning!D156","v":0},{"$f":"Planning!E156","v":0},{"$f":"IF(Planning!G156<>0,Planning!G156,\"\")","v":""},{"$f":"Planning!H156","v":0},{"$f":"Planning!AG156","v":0},{"$f":"IF(OR(W172=\"1\",AND(W172<>\"1\",G172=Lists!$A$17)),Y172,0)","v":0},null,{"$f":"IF(AND(W172=\"2\",G172<>Lists!$A$17),AA172,Z172)","v":""},"",{"$f":"Planning!AH156","v":{"v":0,"d":"0.00"}},{"$f":"'Month 8'!M172+'Month 8'!N172-'Month 8'!O172","v":{"v":0,"d":"0.00"}},null,"","",{"$f":"SUMIFS($J$25:$J$224,$C$25:$C$224,$C172,$G$25:$G$224,Lists!$A$16)","v":0},0,null,"",null,{"$f":"IF(C172=0,\"\",LEFT(INDEX(Lists!$H$5:$H$49,MATCH(C172,Lists!$G$5:$G$49,0),1),1))","v":""},null,{"$f":"'Month 8'!H172+'Month 8'!I172-'Month 8'!J172","v":0},"","",null,"0"]
[{"$f":"Planning!A157","v":"I149"},{"$f":"Planning!B157","v":0},{"$f":"Planning!C157","v":0},{"$f":"Planning!D157","v":0},{"$f":"Planning!E157","v":0},{"$f":"IF(Planning!G157<>0,Planning!G157,\"\")","v":""},{"$f":"Planning!H157","v":0},{"$f":"Planning!AG157","v":0},{"$f":"IF(OR(W173=\"1\",AND(W173<>\"1\",G173=Lists!$A$17)),Y173,0)","v":0},null,{"$f":"IF(AND(W173=\"2\",G173<>Lists!$A$17),AA173,Z173)","v":""},"",{"$f":"Planning!AH157","v":{"v":0,"d":"0.00"}},{"$f":"'Month 8'!M173+'Month 8'!N173-'Month 8'!O173","v":{"v":0,"d":"0.00"}},null,"","",{"$f":"SUMIFS($J$25:$J$224,$C$25:$C$224,$C173,$G$25:$G$224,Lists!$A$16)","v":0},0,null,"",null,{"$f":"IF(C173=0,\"\",LEFT(INDEX(Lists!$H$5:$H$49,MATCH(C173,Lists!$G$5:$G$49,0),1),1))","v":""},null,{"$f":"'Month 8'!H173+'Month 8'!I173-'Month 8'!J173","v":0},"","",null,"0"]
[{"$f":"Planning!A158","v":"I150"},{"$f":"Planning!B158","v":0},{"$f":"Planning!C158","v":0},{"$f":"Planning!D158","v":0},{"$f":"Planning!E158","v":0},{"$f":"IF(Planning!G158<>0,Planning!G158,\"\")","v":""},{"$f":"Planning!H158","v":0},{"$f":"Planning!AG158","v":0},{"$f":"IF(OR(W174=\"1\",AND(W174<>\"1\",G174=Lists!$A$17)),Y174,0)","v":0},null,{"$f":"IF(AND(W174=\"2\",G174<>Lists!$A$17),AA174,Z174)","v":""},"",{"$f":"Planning!AH158","v":{"v":0,"d":"0.00"}},{"$f":"'Month 8'!M174+'Month 8'!N174-'Month 8'!O174","v":{"v":0,"d":"0.00"}},null,"","",{"$f":"SUMIFS($J$25:$J$224,$C$25:$C$224,$C174,$G$25:$G$224,Lists!$A$16)","v":0},0,null,"",null,{"$f":"IF(C174=0,\"\",LEFT(INDEX(Lists!$H$5:$H$49,MATCH(C174,Lists!$G$5:$G$49,0),1),1))","v":""},null,{"$f":"'Month 8'!H174+'Month 8'!I174-'Month 8'!J174","v":0},"","",null,"0"]
[{"$f":"Planning!A159","v":"I151"},{"$f":"Planning!B159","v":0},{"$f":"Planning!C159","v":0},{"$f":"Planning!D159","v":0},{"$f":"Planning!E159","v":0},{"$f":"IF(Planning!G159<>0,Planning!G159,\"\")","v":""},{"$f":"Planning!H159","v":0},{"$f":"Planning!AG159","v":0},{"$f":"IF(OR(W175=\"1\",AND(W175<>\"1\",G175=Lists!$A$17)),Y175,0)","v":0},null,{"$f":"IF(AND(W175=\"2\",G175<>Lists!$A$17),AA175,Z175)","v":""},"",{"$f":"Planning!AH159","v":{"v":0,"d":"0.00"}},{"$f":"'Month 8'!M175+'Month 8'!N175-'Month 8'!O175","v":{"v":0,"d":"0.00"}},null,"","",{"$f":"SUMIFS($J$25:$J$224,$C$25:$C$224,$C175,$G$25:$G$224,Lists!$A$16)","v":0},0,null,"",null,{"$f":"IF(C175=0,\"\",LEFT(INDEX(Lists!$H$5:$H$49,MATCH(C175,Lists!$G$5:$G$49,0),1),1))","v":""},null,{"$f":"'Month 8'!H175+'Month 8'!I175-'Month 8'!J175","v":0},"","",null,"0"]
[{"$f":"Planning!A160","v":"I152"},{"$f":"Planning!B160","v":0},{"$f":"Planning!C160","v":0},{"$f":"Planning!D160","v":0},{"$f":"Planning!E160","v":0},{"$f":"IF(Planning!G160<>0,Planning!G160,\"\")","v":""},{"$f":"Planning!H160","v":0},{"$f":"Planning!AG160","v":0},{"$f":"IF(OR(W176=\"1\",AND(W176<>\"1\",G176=Lists!$A$17)),Y176,0)","v":0},null,{"$f":"IF(AND(W176=\"2\",G176<>Lists!$A$17),AA176,Z176)","v":""},"",{"$f":"Planning!AH160","v":{"v":0,"d":"0.00"}},{"$f":"'Month 8'!M176+'Month 8'!N176-'Month 8'!O176","v":{"v":0,"d":"0.00"}},null,"","",{"$f":"SUMIFS($J$25:$J$224,$C$25:$C$224,$C176,$G$25:$G$224,Lists!$A$16)","v":0},0,null,"",null,{"$f":"IF(C176=0,\"\",LEFT(INDEX(Lists!$H$5:$H$49,MATCH(C176,Lists!$G$5:$G$49,0),1),1))","v":""},null,{"$f":"'Month 8'!H176+'Month 8'!I176-'Month 8'!J176","v":0},"","",null,"0"]
[{"$f":"Planning!A161","v":"I153"},{"$f":"Planning!B161","v":0},{"$f":"Planning!C161","v":0},{"$f":"Planning!D161","v":0},{"$f":"Planning!E161","v":0},{"$f":"IF(Planning!G161<>0,Planning!G161,\"\")","v":""},{"$f":"Planning!H161","v":0},{"$f":"Planning!AG161","v":0},{"$f":"IF(OR(W177=\"1\",AND(W177<>\"1\",G177=Lists!$A$17)),Y177,0)","v":0},null,{"$f":"IF(AND(W177=\"2\",G177<>Lists!$A$17),AA177,Z177)","v":""},"",{"$f":"Planning!AH161","v":{"v":0,"d":"0.00"}},{"$f":"'Month 8'!M177+'Month 8'!N177-'Month 8'!O177","v":{"v":0,"d":"0.00"}},null,"","",{"$f":"SUMIFS($J$25:$J$224,$C$25:$C$224,$C177,$G$25:$G$224,Lists!$A$16)","v":0},0,null,"",null,{"$f":"IF(C177=0,\"\",LEFT(INDEX(Lists!$H$5:$H$49,MATCH(C177,Lists!$G$5:$G$49,0),1),1))","v":""},null,{"$f":"'Month 8'!H177+'Month 8'!I177-'Month 8'!J177","v":0},"","",null,"0"]
[{"$f":"Planning!A162","v":"I154"},{"$f":"Planning!B162","v":0},{"$f":"Planning!C162","v":0},{"$f":"Planning!D162","v":0},{"$f":"Planning!E162","v":0},{"$f":"IF(Planning!G162<>0,Planning!G162,\"\")","v":""},{"$f":"Planning!H162","v":0},{"$f":"Planning!AG162","v":0},{"$f":"IF(OR(W178=\"1\",AND(W178<>\"1\",G178=Lists!$A$17)),Y178,0)","v":0},null,{"$f":"IF(AND(W178=\"2\",G178<>Lists!$A$17),AA178,Z178)","v":""},"",{"$f":"Planning!AH162","v":{"v":0,"d":"0.00"}},{"$f":"'Month 8'!M178+'Month 8'!N178-'Month 8'!O178","v":{"v":0,"d":"0.00"}},null,"","",{"$f":"SUMIFS($J$25:$J$224,$C$25:$C$224,$C178,$G$25:$G$224,Lists!$A$16)","v":0},0,null,"",null,{"$f":"IF(C178=0,\"\",LEFT(INDEX(Lists!$H$5:$H$49,MATCH(C178,Lists!$G$5:$G$49,0),1),1))","v":""},null,{"$f":"'Month 8'!H178+'Month 8'!I178-'Month 8'!J178","v":0},"","",null,"0"]
[{"$f":"Planning!A163","v":"I155"},{"$f":"Planning!B163","v":0},{"$f":"Planning!C163","v":0},{"$f":"Planning!D163","v":0},{"$f":"Planning!E163","v":0},{"$f":"IF(Planning!G163<>0,Planning!G163,\"\")","v":""},{"$f":"Planning!H163","v":0},{"$f":"Planning!AG163","v":0},{"$f":"IF(OR(W179=\"1\",AND(W179<>\"1\",G179=Lists!$A$17)),Y179,0)","v":0},null,{"$f":"IF(AND(W179=\"2\",G179<>Lists!$A$17),AA179,Z179)","v":""},"",{"$f":"Planning!AH163","v":{"v":0,"d":"0.00"}},{"$f":"'Month 8'!M179+'Month 8'!N179-'Month 8'!O179","v":{"v":0,"d":"0.00"}},null,"","",{"$f":"SUMIFS($J$25:$J$224,$C$25:$C$224,$C179,$G$25:$G$224,Lists!$A$16)","v":0},0,null,"",null,{"$f":"IF(C179=0,\"\",LEFT(INDEX(Lists!$H$5:$H$49,MATCH(C179,Lists!$G$5:$G$49,0),1),1))","v":""},null,{"$f":"'Month 8'!H179+'Month 8'!I179-'Month 8'!J179","v":0},"","",null,"0"]
[{"$f":"Planning!A164","v":"I156"},{"$f":"Planning!B164","v":0},{"$f":"Planning!C164","v":0},{"$f":"Planning!D164","v":0},{"$f":"Planning!E164","v":0},{"$f":"IF(Planning!G164<>0,Planning!G164,\"\")","v":""},{"$f":"Planning!H164","v":0},{"$f":"Planning!AG164","v":0},{"$f":"IF(OR(W180=\"1\",AND(W180<>\"1\",G180=Lists!$A$17)),Y180,0)","v":0},null,{"$f":"IF(AND(W180=\"2\",G180<>Lists!$A$17),AA180,Z180)","v":""},"",{"$f":"Planning!AH164","v":{"v":0,"d":"0.00"}},{"$f":"'Month 8'!M180+'Month 8'!N180-'Month 8'!O180","v":{"v":0,"d":"0.00"}},null,"","",{"$f":"SUMIFS($J$25:$J$224,$C$25:$C$224,$C180,$G$25:$G$224,Lists!$A$16)","v":0},0,null,"",null,{"$f":"IF(C180=0,\"\",LEFT(INDEX(Lists!$H$5:$H$49,MATCH(C180,Lists!$G$5:$G$49,0),1),1))","v":""},null,{"$f":"'Month 8'!H180+'Month 8'!I180-'Month 8'!J180","v":0},"","",null,"0"]
[{"$f":"Planning!A165","v":"I157"},{"$f":"Planning!B165","v":0},{"$f":"Planning!C165","v":0},{"$f":"Planning!D165","v":0},{"$f":"Planning!E165","v":0},{"$f":"IF(Planning!G165<>0,Planning!G165,\"\")","v":""},{"$f":"Planning!H165","v":0},{"$f":"Planning!AG165","v":0},{"$f":"IF(OR(W181=\"1\",AND(W181<>\"1\",G181=Lists!$A$17)),Y181,0)","v":0},null,{"$f":"IF(AND(W181=\"2\",G181<>Lists!$A$17),AA181,Z181)","v":""},"",{"$f":"Planning!AH165","v":{"v":0,"d":"0.00"}},{"$f":"'Month 8'!M181+'Month 8'!N181-'Month 8'!O181","v":{"v":0,"d":"0.00"}},null,"","",{"$f":"SUMIFS($J$25:$J$224,$C$25:$C$224,$C181,$G$25:$G$224,Lists!$A$16)","v":0},0,null,"",null,{"$f":"IF(C181=0,\"\",LEFT(INDEX(Lists!$H$5:$H$49,MATCH(C181,Lists!$G$5:$G$49,0),1),1))","v":""},null,{"$f":"'Month 8'!H181+'Month 8'!I181-'Month 8'!J181","v":0},"","",null,"0"]
[{"$f":"Planning!A166","v":"I158"},{"$f":"Planning!B166","v":0},{"$f":"Planning!C166","v":0},{"$f":"Planning!D166","v":0},{"$f":"Planning!E166","v":0},{"$f":"IF(Planning!G166<>0,Planning!G166,\"\")","v":""},{"$f":"Planning!H166","v":0},{"$f":"Planning!AG166","v":0},{"$f":"IF(OR(W182=\"1\",AND(W182<>\"1\",G182=Lists!$A$17)),Y182,0)","v":0},null,{"$f":"IF(AND(W182=\"2\",G182<>Lists!$A$17),AA182,Z182)","v":""},"",{"$f":"Planning!AH166","v":{"v":0,"d":"0.00"}},{"$f":"'Month 8'!M182+'Month 8'!N182-'Month 8'!O182","v":{"v":0,"d":"0.00"}},null,"","",{"$f":"SUMIFS($J$25:$J$224,$C$25:$C$224,$C182,$G$25:$G$224,Lists!$A$16)","v":0},0,null,"",null,{"$f":"IF(C182=0,\"\",LEFT(INDEX(Lists!$H$5:$H$49,MATCH(C182,Lists!$G$5:$G$49,0),1),1))","v":""},null,{"$f":"'Month 8'!H182+'Month 8'!I182-'Month 8'!J182","v":0},"","",null,"0"]
[{"$f":"Planning!A167","v":"I159"},{"$f":"Planning!B167","v":0},{"$f":"Planning!C167","v":0},{"$f":"Planning!D167","v":0},{"$f":"Planning!E167","v":0},{"$f":"IF(Planning!G167<>0,Planning!G167,\"\")","v":""},{"$f":"Planning!H167","v":0},{"$f":"Planning!AG167","v":0},{"$f":"IF(OR(W183=\"1\",AND(W183<>\"1\",G183=Lists!$A$17)),Y183,0)","v":0},null,{"$f":"IF(AND(W183=\"2\",G183<>Lists!$A$17),AA183,Z183)","v":""},"",{"$f":"Planning!AH167","v":{"v":0,"d":"0.00"}},{"$f":"'Month 8'!M183+'Month 8'!N183-'Month 8'!O183","v":{"v":0,"d":"0.00"}},null,"","",{"$f":"SUMIFS($J$25:$J$224,$C$25:$C$224,$C183,$G$25:$G$224,Lists!$A$16)","v":0},0,null,"",null,{"$f":"IF(C183=0,\"\",LEFT(INDEX(Lists!$H$5:$H$49,MATCH(C183,Lists!$G$5:$G$49,0),1),1))","v":""},null,{"$f":"'Month 8'!H183+'Month 8'!I183-'Month 8'!J183","v":0},"","",null,"0"]
[{"$f":"Planning!A168","v":"I160"},{"$f":"Planning!B168","v":0},{"$f":"Planning!C168","v":0},{"$f":"Planning!D168","v":0},{"$f":"Planning!E168","v":0},{"$f":"IF(Planning!G168<>0,Planning!G168,\"\")","v":""},{"$f":"Planning!H168","v":0},{"$f":"Planning!AG168","v":0},{"$f":"IF(OR(W184=\"1\",AND(W184<>\"1\",G184=Lists!$A$17)),Y184,0)","v":0},null,{"$f":"IF(AND(W184=\"2\",G184<>Lists!$A$17),AA184,Z184)","v":""},"",{"$f":"Planning!AH168","v":{"v":0,"d":"0.00"}},{"$f":"'Month 8'!M184+'Month 8'!N184-'Month 8'!O184","v":{"v":0,"d":"0.00"}},null,"","",{"$f":"SUMIFS($J$25:$J$224,$C$25:$C$224,$C184,$G$25:$G$224,Lists!$A$16)","v":0},0,null,"",null,{"$f":"IF(C184=0,\"\",LEFT(INDEX(Lists!$H$5:$H$49,MATCH(C184,Lists!$G$5:$G$49,0),1),1))","v":""},null,{"$f":"'Month 8'!H184+'Month 8'!I184-'Month 8'!J184","v":0},"","",null,"0"]
[{"$f":"Planning!A169","v":"I161"},{"$f":"Planning!B169","v":0},{"$f":"Planning!C169","v":0},{"$f":"Planning!D169","v":0},{"$f":"Planning!E169","v":0},{"$f":"IF(Planning!G169<>0,Planning!G169,\"\")","v":""},{"$f":"Planning!H169","v":0},{"$f":"Planning!AG169","v":0},{"$f":"IF(OR(W185=\"1\",AND(W185<>\"1\",G185=Lists!$A$17)),Y185,0)","v":0},null,{"$f":"IF(AND(W185=\"2\",G185<>Lists!$A$17),AA185,Z185)","v":""},{"$f":"IF($U185=ExcluirDelPLogro,\"\",IF(AND(H185=0,I185=0,J185=0),\"\",K185))","v":""},{"$f":"Planning!AH169","v":{"v":0,"d":"0.00"}},{"$f":"'Month 8'!M185+'Month 8'!N185-'Month 8'!O185","v":{"v":0,"d":"0.00"}},null,"",{"$f":"IF($U185=ExcluirDelPLogro,\"\",IF(AND(M185=0,N185=0,O185=0),\"\",P185))","v":""},{"$f":"SUMIFS($J$25:$J$224,$C$25:$C$224,$C185,$G$25:$G$224,Lists!$A$16)","v":0},0,null,"",null,{"$f":"IF(C185=0,\"\",LEFT(INDEX(Lists!$H$5:$H$49,MATCH(C185,Lists!$G$5:$G$49,0),1),1))","v":""},null,{"$f":"'Month 8'!H185+'Month 8'!I185-'Month 8'!J185","v":0},"",{"$f":"IF(AND(H185=0,I185=0,J185=0),\"\",IF(J185>0,H185/J185,0))","v":""},null,"0"]
[{"$f":"Planning!A170","v":"I162"},{"$f":"Planning!B170","v":0},{"$f":"Planning!C170","v":0},{"$f":"Planning!D170","v":0},{"$f":"Planning!E170","v":0},{"$f":"IF(Planning!G170<>0,Planning!G170,\"\")","v":""},{"$f":"Planning!H170","v":0},{"$f":"Planning!AG170","v":0},{"$f":"IF(OR(W186=\"1\",AND(W186<>\"1\",G186=Lists!$A$17)),Y186,0)","v":0},null,{"$f":"IF(AND(W186=\"2\",G186<>Lists!$A$17),AA186,Z186)","v":""},"",{"$f":"Planning!AH170","v":{"v":0,"d":"0.00"}},{"$f":"'Month 8'!M186+'Month 8'!N186-'Month 8'!O186","v":{"v":0,"d":"0.00"}},null,"","",{"$f":"SUMIFS($J$25:$J$224,$C$25:$C$224,$C186,$G$25:$G$224,Lists!$A$16)","v":0},0,null,"",null,{"$f":"IF(C186=0,\"\",LEFT(INDEX(Lists!$H$5:$H$49,MATCH(C186,Lists!$G$5:$G$49,0),1),1))","v":""},null,{"$f":"'Month 8'!H186+'Month 8'!I186-'Month 8'!J186","v":0},"","",null,"0"]
[{"$f":"Planning!A171","v":"I163"},{"$f":"Planning!B171","v":0},{"$f":"Planning!C171","v":0},{"$f":"Planning!D171","v":0},{"$f":"Planning!E171","v":0},{"$f":"IF(Planning!G171<>0,Planning!G171,\"\")","v":""},{"$f":"Planning!H171","v":0},{"$f":"Planning!AG171","v":0},{"$f":"IF(OR(W187=\"1\",AND(W187<>\"1\",G187=Lists!$A$17)),Y187,0)","v":0},null,{"$f":"IF(AND(W187=\"2\",G187<>Lists!$A$17),AA187,Z187)","v":""},"",{"$f":"Planning!AH171","v":{"v":0,"d":"0.00"}},{"$f":"'Month 8'!M187+'Month 8'!N187-'Month 8'!O187","v":{"v":0,"d":"0.00"}},null,"","",{"$f":"SUMIFS($J$25:$J$224,$C$25:$C$224,$C187,$G$25:$G$224,Lists!$A$16)","v":0},0,null,"",null,{"$f":"IF(C187=0,\"\",LEFT(INDEX(Lists!$H$5:$H$49,MATCH(C187,Lists!$G$5:$G$49,0),1),1))","v":""},null,{"$f":"'Month 8'!H187+'Month 8'!I187-'Month 8'!J187","v":0},"","",null,"0"]
[{"$f":"Planning!A172","v":"I164"},{"$f":"Planning!B172","v":0},{"$f":"Planning!C172","v":0},{"$f":"Planning!D172","v":0},{"$f":"Planning!E172","v":0},{"$f":"IF(Planning!G172<>0,Planning!G172,\"\")","v":""},{"$f":"Planning!H172","v":0},{"$f":"Planning!AG172","v":0},{"$f":"IF(OR(W188=\"1\",AND(W188<>\"1\",G188=Lists!$A$17)),Y188,0)","v":0},null,{"$f":"IF(AND(W188=\"2\",G188<>Lists!$A$17),AA188,Z188)","v":""},"",{"$f":"Planning!AH172","v":{"v":0,"d":"0.00"}},{"$f":"'Month 8'!M188+'Month 8'!N188-'Month 8'!O188","v":{"v":0,"d":"0.00"}},null,"","",{"$f":"SUMIFS($J$25:$J$224,$C$25:$C$224,$C188,$G$25:$G$224,Lists!$A$16)","v":0},0,null,"",null,{"$f":"IF(C188=0,\"\",LEFT(INDEX(Lists!$H$5:$H$49,MATCH(C188,Lists!$G$5:$G$49,0),1),1))","v":""},null,{"$f":"'Month 8'!H188+'Month 8'!I188-'Month 8'!J188","v":0},"","",null,"0"]
[{"$f":"Planning!A173","v":"I165"},{"$f":"Planning!B173","v":0},{"$f":"Planning!C173","v":0},{"$f":"Planning!D173","v":0},{"$f":"Planning!E173","v":0},{"$f":"IF(Planning!G173<>0,Planning!G173,\"\")","v":""},{"$f":"Planning!H173","v":0},{"$f":"Planning!AG173","v":0},{"$f":"IF(OR(W189=\"1\",AND(W189<>\"1\",G189=Lists!$A$17)),Y189,0)","v":0},null,{"$f":"IF(AND(W189=\"2\",G189<>Lists!$A$17),AA189,Z189)","v":""},"",{"$f":"Planning!AH173","v":{"v":0,"d":"0.00"}},{"$f":"'Month 8'!M189+'Month 8'!N189-'Month 8'!O189","v":{"v":0,"d":"0.00"}},null,"","",{"$f":"SUMIFS($J$25:$J$224,$C$25:$C$224,$C189,$G$25:$G$224,Lists!$A$16)","v":0},0,null,"",null,{"$f":"IF(C189=0,\"\",LEFT(INDEX(Lists!$H$5:$H$49,MATCH(C189,Lists!$G$5:$G$49,0),1),1))","v":""},null,{"$f":"'Month 8'!H189+'Month 8'!I189-'Month 8'!J189","v":0},"","",null,"0"]
[{"$f":"Planning!A174","v":"I166"},{"$f":"Planning!B174","v":0},{"$f":"Planning!C174","v":0},{"$f":"Planning!D174","v":0},{"$f":"Planning!E174","v":0},{"$f":"IF(Planning!G174<>0,Planning!G174,\"\")","v":""},{"$f":"Planning!H174","v":0},{"$f":"Planning!AG174","v":0},{"$f":"IF(OR(W190=\"1\",AND(W190<>\"1\",G190=Lists!$A$17)),Y190,0)","v":0},null,{"$f":"IF(AND(W190=\"2\",G190<>Lists!$A$17),AA190,Z190)","v":""},"",{"$f":"Planning!AH174","v":{"v":0,"d":"0.00"}},{"$f":"'Month 8'!M190+'Month 8'!N190-'Month 8'!O190","v":{"v":0,"d":"0.00"}},null,"","",{"$f":"SUMIFS($J$25:$J$224,$C$25:$C$224,$C190,$G$25:$G$224,Lists!$A$16)","v":0},0,null,"",null,{"$f":"IF(C190=0,\"\",LEFT(INDEX(Lists!$H$5:$H$49,MATCH(C190,Lists!$G$5:$G$49,0),1),1))","v":""},null,{"$f":"'Month 8'!H190+'Month 8'!I190-'Month 8'!J190","v":0},"","",null,"0"]
[{"$f":"Planning!A175","v":"I167"},{"$f":"Planning!B175","v":0},{"$f":"Planning!C175","v":0},{"$f":"Planning!D175","v":0},{"$f":"Planning!E175","v":0},{"$f":"IF(Planning!G175<>0,Planning!G175,\"\")","v":""},{"$f":"Planning!H175","v":0},{"$f":"Planning!AG175","v":0},{"$f":"IF(OR(W191=\"1\",AND(W191<>\"1\",G191=Lists!$A$17)),Y191,0)","v":0},null,{"$f":"IF(AND(W191=\"2\",G191<>Lists!$A$17),AA191,Z191)","v":""},"",{"$f":"Planning!AH175","v":{"v":0,"d":"0.00"}},{"$f":"'Month 8'!M191+'Month 8'!N191-'Month 8'!O191","v":{"v":0,"d":"0.00"}},null,"","",{"$f":"SUMIFS($J$25:$J$224,$C$25:$C$224,$C191,$G$25:$G$224,Lists!$A$16)","v":0},0,null,"",null,{"$f":"IF(C191=0,\"\",LEFT(INDEX(Lists!$H$5:$H$49,MATCH(C191,Lists!$G$5:$G$49,0),1),1))","v":""},null,{"$f":"'Month 8'!H191+'Month 8'!I191-'Month 8'!J191","v":0},"","",null,"0"]
[{"$f":"Planning!A176","v":"I168"},{"$f":"Planning!B176","v":0},{"$f":"Planning!C176","v":0},{"$f":"Planning!D176","v":0},{"$f":"Planning!E176","v":0},{"$f":"IF(Planning!G176<>0,Planning!G176,\"\")","v":""},{"$f":"Planning!H176","v":0},{"$f":"Planning!AG176","v":0},{"$f":"IF(OR(W192=\"1\",AND(W192<>\"1\",G192=Lists!$A$17)),Y192,0)","v":0},null,{"$f":"IF(AND(W192=\"2\",G192<>Lists!$A$17),AA192,Z192)","v":""},"",{"$f":"Planning!AH176","v":{"v":0,"d":"0.00"}},{"$f":"'Month 8'!M192+'Month 8'!N192-'Month 8'!O192","v":{"v":0,"d":"0.00"}},null,"","",{"$f":"SUMIFS($J$25:$J$224,$C$25:$C$224,$C192,$G$25:$G$224,Lists!$A$16)","v":0},0,null,"",null,{"$f":"IF(C192=0,\"\",LEFT(INDEX(Lists!$H$5:$H$49,MATCH(C192,Lists!$G$5:$G$49,0),1),1))","v":""},null,{"$f":"'Month 8'!H192+'Month 8'!I192-'Month 8'!J192","v":0},"","",null,"0"]
[{"$f":"Planning!A177","v":"I169"},{"$f":"Planning!B177","v":0},{"$f":"Planning!C177","v":0},{"$f":"Planning!D177","v":0},{"$f":"Planning!E177","v":0},{"$f":"IF(Planning!G177<>0,Planning!G177,\"\")","v":""},{"$f":"Planning!H177","v":0},{"$f":"Planning!AG177","v":0},{"$f":"IF(OR(W193=\"1\",AND(W193<>\"1\",G193=Lists!$A$17)),Y193,0)","v":0},null,{"$f":"IF(AND(W193=\"2\",G193<>Lists!$A$17),AA193,Z193)","v":""},"",{"$f":"Planning!AH177","v":{"v":0,"d":"0.00"}},{"$f":"'Month 8'!M193+'Month 8'!N193-'Month 8'!O193","v":{"v":0,"d":"0.00"}},null,"","",{"$f":"SUMIFS($J$25:$J$224,$C$25:$C$224,$C193,$G$25:$G$224,Lists!$A$16)","v":0},0,null,"",null,{"$f":"IF(C193=0,\"\",LEFT(INDEX(Lists!$H$5:$H$49,MATCH(C193,Lists!$G$5:$G$49,0),1),1))","v":""},null,{"$f":"'Month 8'!H193+'Month 8'!I193-'Month 8'!J193","v":0},"","",null,"0"]
[{"$f":"Planning!A178","v":"I170"},{"$f":"Planning!B178","v":0},{"$f":"Planning!C178","v":0},{"$f":"Planning!D178","v":0},{"$f":"Planning!E178","v":0},{"$f":"IF(Planning!G178<>0,Planning!G178,\"\")","v":""},{"$f":"Planning!H178","v":0},{"$f":"Planning!AG178","v":0},{"$f":"IF(OR(W194=\"1\",AND(W194<>\"1\",G194=Lists!$A$17)),Y194,0)","v":0},null,{"$f":"IF(AND(W194=\"2\",G194<>Lists!$A$17),AA194,Z194)","v":""},"",{"$f":"Planning!AH178","v":{"v":0,"d":"0.00"}},{"$f":"'Month 8'!M194+'Month 8'!N194-'Month 8'!O194","v":{"v":0,"d":"0.00"}},null,"","",{"$f":"SUMIFS($J$25:$J$224,$C$25:$C$224,$C194,$G$25:$G$224,Lists!$A$16)","v":0},0,null,"",null,{"$f":"IF(C194=0,\"\",LEFT(INDEX(Lists!$H$5:$H$49,MATCH(C194,Lists!$G$5:$G$49,0),1),1))","v":""},null,{"$f":"'Month 8'!H194+'Month 8'!I194-'Month 8'!J194","v":0},"","",null,"0"]
[{"$f":"Planning!A179","v":"I171"},{"$f":"Planning!B179","v":0},{"$f":"Planning!C179","v":0},{"$f":"Planning!D179","v":0},{"$f":"Planning!E179","v":0},{"$f":"IF(Planning!G179<>0,Planning!G179,\"\")","v":""},{"$f":"Planning!H179","v":0},{"$f":"Planning!AG179","v":0},{"$f":"IF(OR(W195=\"1\",AND(W195<>\"1\",G195=Lists!$A$17)),Y195,0)","v":0},null,{"$f":"IF(AND(W195=\"2\",G195<>Lists!$A$17),AA195,Z195)","v":""},"",{"$f":"Planning!AH179","v":{"v":0,"d":"0.00"}},{"$f":"'Month 8'!M195+'Month 8'!N195-'Month 8'!O195","v":{"v":0,"d":"0.00"}},null,"","",{"$f":"SUMIFS($J$25:$J$224,$C$25:$C$224,$C195,$G$25:$G$224,Lists!$A$16)","v":0},0,null,"",null,{"$f":"IF(C195=0,\"\",LEFT(INDEX(Lists!$H$5:$H$49,MATCH(C195,Lists!$G$5:$G$49,0),1),1))","v":""},null,{"$f":"'Month 8'!H195+'Month 8'!I195-'Month 8'!J195","v":0},"","",null,"0"]
[{"$f":"Planning!A180","v":"I172"},{"$f":"Planning!B180","v":0},{"$f":"Planning!C180","v":0},{"$f":"Planning!D180","v":0},{"$f":"Planning!E180","v":0},{"$f":"IF(Planning!G180<>0,Planning!G180,\"\")","v":""},{"$f":"Planning!H180","v":0},{"$f":"Planning!AG180","v":0},{"$f":"IF(OR(W196=\"1\",AND(W196<>\"1\",G196=Lists!$A$17)),Y196,0)","v":0},null,{"$f":"IF(AND(W196=\"2\",G196<>Lists!$A$17),AA196,Z196)","v":""},"",{"$f":"Planning!AH180","v":{"v":0,"d":"0.00"}},{"$f":"'Month 8'!M196+'Month 8'!N196-'Month 8'!O196","v":{"v":0,"d":"0.00"}},null,"","",{"$f":"SUMIFS($J$25:$J$224,$C$25:$C$224,$C196,$G$25:$G$224,Lists!$A$16)","v":0},0,null,"",null,{"$f":"IF(C196=0,\"\",LEFT(INDEX(Lists!$H$5:$H$49,MATCH(C196,Lists!$G$5:$G$49,0),1),1))","v":""},null,{"$f":"'Month 8'!H196+'Month 8'!I196-'Month 8'!J196","v":0},"","",null,"0"]
[{"$f":"Planning!A181","v":"I173"},{"$f":"Planning!B181","v":0},{"$f":"Planning!C181","v":0},{"$f":"Planning!D181","v":0},{"$f":"Planning!E181","v":0},{"$f":"IF(Planning!G181<>0,Planning!G181,\"\")","v":""},{"$f":"Planning!H181","v":0},{"$f":"Planning!AG181","v":0},{"$f":"IF(OR(W197=\"1\",AND(W197<>\"1\",G197=Lists!$A$17)),Y197,0)","v":0},null,{"$f":"IF(AND(W197=\"2\",G197<>Lists!$A$17),AA197,Z197)","v":""},"",{"$f":"Planning!AH181","v":{"v":0,"d":"0.00"}},{"$f":"'Month 8'!M197+'Month 8'!N197-'Month 8'!O197","v":{"v":0,"d":"0.00"}},null,"","",{"$f":"SUMIFS($J$25:$J$224,$C$25:$C$224,$C197,$G$25:$G$224,Lists!$A$16)","v":0},0,null,"",null,{"$f":"IF(C197=0,\"\",LEFT(INDEX(Lists!$H$5:$H$49,MATCH(C197,Lists!$G$5:$G$49,0),1),1))","v":""},null,{"$f":"'Month 8'!H197+'Month 8'!I197-'Month 8'!J197","v":0},"","",null,"0"]
[{"$f":"Planning!A182","v":"I174"},{"$f":"Planning!B182","v":0},{"$f":"Planning!C182","v":0},{"$f":"Planning!D182","v":0},{"$f":"Planning!E182","v":0},{"$f":"IF(Planning!G182<>0,Planning!G182,\"\")","v":""},{"$f":"Planning!H182","v":0},{"$f":"Planning!AG182","v":0},{"$f":"IF(OR(W198=\"1\",AND(W198<>\"1\",G198=Lists!$A$17)),Y198,0)","v":0},null,{"$f":"IF(AND(W198=\"2\",G198<>Lists!$A$17),AA198,Z198)","v":""},"",{"$f":"Planning!AH182","v":{"v":0,"d":"0.00"}},{"$f":"'Month 8'!M198+'Month 8'!N198-'Month 8'!O198","v":{"v":0,"d":"0.00"}},null,"","",{"$f":"SUMIFS($J$25:$J$224,$C$25:$C$224,$C198,$G$25:$G$224,Lists!$A$16)","v":0},0,null,"",null,{"$f":"IF(C198=0,\"\",LEFT(INDEX(Lists!$H$5:$H$49,MATCH(C198,Lists!$G$5:$G$49,0),1),1))","v":""},null,{"$f":"'Month 8'!H198+'Month 8'!I198-'Month 8'!J198","v":0},"","",null,"0"]
[{"$f":"Planning!A183","v":"I175"},{"$f":"Planning!B183","v":0},{"$f":"Planning!C183","v":0},{"$f":"Planning!D183","v":0},{"$f":"Planning!E183","v":0},{"$f":"IF(Planning!G183<>0,Planning!G183,\"\")","v":""},{"$f":"Planning!H183","v":0},{"$f":"Planning!AG183","v":0},{"$f":"IF(OR(W199=\"1\",AND(W199<>\"1\",G199=Lists!$A$17)),Y199,0)","v":0},null,{"$f":"IF(AND(W199=\"2\",G199<>Lists!$A$17),AA199,Z199)","v":""},"",{"$f":"Planning!AH183","v":{"v":0,"d":"0.00"}},{"$f":"'Month 8'!M199+'Month 8'!N199-'Month 8'!O199","v":{"v":0,"d":"0.00"}},null,"","",{"$f":"SUMIFS($J$25:$J$224,$C$25:$C$224,$C199,$G$25:$G$224,Lists!$A$16)","v":0},0,null,"",null,{"$f":"IF(C199=0,\"\",LEFT(INDEX(Lists!$H$5:$H$49,MATCH(C199,Lists!$G$5:$G$49,0),1),1))","v":""},null,{"$f":"'Month 8'!H199+'Month 8'!I199-'Month 8'!J199","v":0},"","",null,"0"]
[{"$f":"Planning!A184","v":"I176"},{"$f":"Planning!B184","v":0},{"$f":"Planning!C184","v":0},{"$f":"Planning!D184","v":0},{"$f":"Planning!E184","v":0},{"$f":"IF(Planning!G184<>0,Planning!G184,\"\")","v":""},{"$f":"Planning!H184","v":0},{"$f":"Planning!AG184","v":0},{"$f":"IF(OR(W200=\"1\",AND(W200<>\"1\",G200=Lists!$A$17)),Y200,0)","v":0},null,{"$f":"IF(AND(W200=\"2\",G200<>Lists!$A$17),AA200,Z200)","v":""},"",{"$f":"Planning!AH184","v":{"v":0,"d":"0.00"}},{"$f":"'Month 8'!M200+'Month 8'!N200-'Month 8'!O200","v":{"v":0,"d":"0.00"}},null,"","",{"$f":"SUMIFS($J$25:$J$224,$C$25:$C$224,$C200,$G$25:$G$224,Lists!$A$16)","v":0},0,null,"",null,{"$f":"IF(C200=0,\"\",LEFT(INDEX(Lists!$H$5:$H$49,MATCH(C200,Lists!$G$5:$G$49,0),1),1))","v":""},null,{"$f":"'Month 8'!H200+'Month 8'!I200-'Month 8'!J200","v":0},"","",null,"0"]
[{"$f":"Planning!A185","v":"I177"},{"$f":"Planning!B185","v":0},{"$f":"Planning!C185","v":0},{"$f":"Planning!D185","v":0},{"$f":"Planning!E185","v":0},{"$f":"IF(Planning!G185<>0,Planning!G185,\"\")","v":""},{"$f":"Planning!H185","v":0},{"$f":"Planning!AG185","v":0},{"$f":"IF(OR(W201=\"1\",AND(W201<>\"1\",G201=Lists!$A$17)),Y201,0)","v":0},null,{"$f":"IF(AND(W201=\"2\",G201<>Lists!$A$17),AA201,Z201)","v":""},"",{"$f":"Planning!AH185","v":{"v":0,"d":"0.00"}},{"$f":"'Month 8'!M201+'Month 8'!N201-'Month 8'!O201","v":{"v":0,"d":"0.00"}},null,"","",{"$f":"SUMIFS($J$25:$J$224,$C$25:$C$224,$C201,$G$25:$G$224,Lists!$A$16)","v":0},0,null,"",null,{"$f":"IF(C201=0,\"\",LEFT(INDEX(Lists!$H$5:$H$49,MATCH(C201,Lists!$G$5:$G$49,0),1),1))","v":""},null,{"$f":"'Month 8'!H201+'Month 8'!I201-'Month 8'!J201","v":0},"","",null,"0"]
[{"$f":"Planning!A186","v":"I178"},{"$f":"Planning!B186","v":0},{"$f":"Planning!C186","v":0},{"$f":"Planning!D186","v":0},{"$f":"Planning!E186","v":0},{"$f":"IF(Planning!G186<>0,Planning!G186,\"\")","v":""},{"$f":"Planning!H186","v":0},{"$f":"Planning!AG186","v":0},{"$f":"IF(OR(W202=\"1\",AND(W202<>\"1\",G202=Lists!$A$17)),Y202,0)","v":0},null,{"$f":"IF(AND(W202=\"2\",G202<>Lists!$A$17),AA202,Z202)","v":""},"",{"$f":"Planning!AH186","v":{"v":0,"d":"0.00"}},{"$f":"'Month 8'!M202+'Month 8'!N202-'Month 8'!O202","v":{"v":0,"d":"0.00"}},null,"","",{"$f":"SUMIFS($J$25:$J$224,$C$25:$C$224,$C202,$G$25:$G$224,Lists!$A$16)","v":0},0,null,"",null,{"$f":"IF(C202=0,\"\",LEFT(INDEX(Lists!$H$5:$H$49,MATCH(C202,Lists!$G$5:$G$49,0),1),1))","v":""},null,{"$f":"'Month 8'!H202+'Month 8'!I202-'Month 8'!J202","v":0},"","",null,"0"]
[{"$f":"Planning!A187","v":"I179"},{"$f":"Planning!B187","v":0},{"$f":"Planning!C187","v":0},{"$f":"Planning!D187","v":0},{"$f":"Planning!E187","v":0},{"$f":"IF(Planning!G187<>0,Planning!G187,\"\")","v":""},{"$f":"Planning!H187","v":0},{"$f":"Planning!AG187","v":0},{"$f":"IF(OR(W203=\"1\",AND(W203<>\"1\",G203=Lists!$A$17)),Y203,0)","v":0},null,{"$f":"IF(AND(W203=\"2\",G203<>Lists!$A$17),AA203,Z203)","v":""},"",{"$f":"Planning!AH187","v":{"v":0,"d":"0.00"}},{"$f":"'Month 8'!M203+'Month 8'!N203-'Month 8'!O203","v":{"v":0,"d":"0.00"}},null,"","",{"$f":"SUMIFS($J$25:$J$224,$C$25:$C$224,$C203,$G$25:$G$224,Lists!$A$16)","v":0},0,null,"",null,{"$f":"IF(C203=0,\"\",LEFT(INDEX(Lists!$H$5:$H$49,MATCH(C203,Lists!$G$5:$G$49,0),1),1))","v":""},null,{"$f":"'Month 8'!H203+'Month 8'!I203-'Month 8'!J203","v":0},"","",null,"0"]
[{"$f":"Planning!A188","v":"I180"},{"$f":"Planning!B188","v":0},{"$f":"Planning!C188","v":0},{"$f":"Planning!D188","v":0},{"$f":"Planning!E188","v":0},{"$f":"IF(Planning!G188<>0,Planning!G188,\"\")","v":""},{"$f":"Planning!H188","v":0},{"$f":"Planning!AG188","v":0},{"$f":"IF(OR(W204=\"1\",AND(W204<>\"1\",G204=Lists!$A$17)),Y204,0)","v":0},null,{"$f":"IF(AND(W204=\"2\",G204<>Lists!$A$17),AA204,Z204)","v":""},"",{"$f":"Planning!AH188","v":{"v":0,"d":"0.00"}},{"$f":"'Month 8'!M204+'Month 8'!N204-'Month 8'!O204","v":{"v":0,"d":"0.00"}},null,"","",{"$f":"SUMIFS($J$25:$J$224,$C$25:$C$224,$C204,$G$25:$G$224,Lists!$A$16)","v":0},0,null,"",null,{"$f":"IF(C204=0,\"\",LEFT(INDEX(Lists!$H$5:$H$49,MATCH(C204,Lists!$G$5:$G$49,0),1),1))","v":""},null,{"$f":"'Month 8'!H204+'Month 8'!I204-'Month 8'!J204","v":0},"","",null,"0"]
[{"$f":"Planning!A189","v":"I181"},{"$f":"Planning!B189","v":0},{"$f":"Planning!C189","v":0},{"$f":"Planning!D189","v":0},{"$f":"Planning!E189","v":0},{"$f":"IF(Planning!G189<>0,Planning!G189,\"\")","v":""},{"$f":"Planning!H189","v":0},{"$f":"Planning!AG189","v":0},{"$f":"IF(OR(W205=\"1\",AND(W205<>\"1\",G205=Lists!$A$17)),Y205,0)","v":0},null,{"$f":"IF(AND(W205=\"2\",G205<>Lists!$A$17),AA205,Z205)","v":""},"",{"$f":"Planning!AH189","v":{"v":0,"d":"0.00"}},{"$f":"'Month 8'!M205+'Month 8'!N205-'Month 8'!O205","v":{"v":0,"d":"0.00"}},null,"","",{"$f":"SUMIFS($J$25:$J$224,$C$25:$C$224,$C205,$G$25:$G$224,Lists!$A$16)","v":0},0,null,"",null,{"$f":"IF(C205=0,\"\",LEFT(INDEX(Lists!$H$5:$H$49,MATCH(C205,Lists!$G$5:$G$49,0),1),1))","v":""},null,{"$f":"'Month 8'!H205+'Month 8'!I205-'Month 8'!J205","v":0},"","",null,"0"]
[{"$f":"Planning!A190","v":"I182"},{"$f":"Planning!B190","v":0},{"$f":"Planning!C190","v":0},{"$f":"Planning!D190","v":0},{"$f":"Planning!E190","v":0},{"$f":"IF(Planning!G190<>0,Planning!G190,\"\")","v":""},{"$f":"Planning!H190","v":0},{"$f":"Planning!AG190","v":0},{"$f":"IF(OR(W206=\"1\",AND(W206<>\"1\",G206=Lists!$A$17)),Y206,0)","v":0},null,{"$f":"IF(AND(W206=\"2\",G206<>Lists!$A$17),AA206,Z206)","v":""},"",{"$f":"Planning!AH190","v":{"v":0,"d":"0.00"}},{"$f":"'Month 8'!M206+'Month 8'!N206-'Month 8'!O206","v":{"v":0,"d":"0.00"}},null,"","",{"$f":"SUMIFS($J$25:$J$224,$C$25:$C$224,$C206,$G$25:$G$224,Lists!$A$16)","v":0},0,null,"",null,{"$f":"IF(C206=0,\"\",LEFT(INDEX(Lists!$H$5:$H$49,MATCH(C206,Lists!$G$5:$G$49,0),1),1))","v":""},null,{"$f":"'Month 8'!H206+'Month 8'!I206-'Month 8'!J206","v":0},"","",null,"0"]
[{"$f":"Planning!A191","v":"I183"},{"$f":"Planning!B191","v":0},{"$f":"Planning!C191","v":0},{"$f":"Planning!D191","v":0},{"$f":"Planning!E191","v":0},{"$f":"IF(Planning!G191<>0,Planning!G191,\"\")","v":""},{"$f":"Planning!H191","v":0},{"$f":"Planning!AG191","v":0},{"$f":"IF(OR(W207=\"1\",AND(W207<>\"1\",G207=Lists!$A$17)),Y207,0)","v":0},null,{"$f":"IF(AND(W207=\"2\",G207<>Lists!$A$17),AA207,Z207)","v":""},"",{"$f":"Planning!AH191","v":{"v":0,"d":"0.00"}},{"$f":"'Month 8'!M207+'Month 8'!N207-'Month 8'!O207","v":{"v":0,"d":"0.00"}},null,"","",{"$f":"SUMIFS($J$25:$J$224,$C$25:$C$224,$C207,$G$25:$G$224,Lists!$A$16)","v":0},0,null,"",null,{"$f":"IF(C207=0,\"\",LEFT(INDEX(Lists!$H$5:$H$49,MATCH(C207,Lists!$G$5:$G$49,0),1),1))","v":""},null,{"$f":"'Month 8'!H207+'Month 8'!I207-'Month 8'!J207","v":0},"","",null,"0"]
[{"$f":"Planning!A192","v":"I184"},{"$f":"Planning!B192","v":0},{"$f":"Planning!C192","v":0},{"$f":"Planning!D192","v":0},{"$f":"Planning!E192","v":0},{"$f":"IF(Planning!G192<>0,Planning!G192,\"\")","v":""},{"$f":"Planning!H192","v":0},{"$f":"Planning!AG192","v":0},{"$f":"IF(OR(W208=\"1\",AND(W208<>\"1\",G208=Lists!$A$17)),Y208,0)","v":0},null,{"$f":"IF(AND(W208=\"2\",G208<>Lists!$A$17),AA208,Z208)","v":""},"",{"$f":"Planning!AH192","v":{"v":0,"d":"0.00"}},{"$f":"'Month 8'!M208+'Month 8'!N208-'Month 8'!O208","v":{"v":0,"d":"0.00"}},null,"","",{"$f":"SUMIFS($J$25:$J$224,$C$25:$C$224,$C208,$G$25:$G$224,Lists!$A$16)","v":0},0,null,"",null,{"$f":"IF(C208=0,\"\",LEFT(INDEX(Lists!$H$5:$H$49,MATCH(C208,Lists!$G$5:$G$49,0),1),1))","v":""},null,{"$f":"'Month 8'!H208+'Month 8'!I208-'Month 8'!J208","v":0},"","",null,"0"]
[{"$f":"Planning!A193","v":"I185"},{"$f":"Planning!B193","v":0},{"$f":"Planning!C193","v":0},{"$f":"Planning!D193","v":0},{"$f":"Planning!E193","v":0},{"$f":"IF(Planning!G193<>0,Planning!G193,\"\")","v":""},{"$f":"Planning!H193","v":0},{"$f":"Planning!AG193","v":0},{"$f":"IF(OR(W209=\"1\",AND(W209<>\"1\",G209=Lists!$A$17)),Y209,0)","v":0},null,{"$f":"IF(AND(W209=\"2\",G209<>Lists!$A$17),AA209,Z209)","v":""},"",{"$f":"Planning!AH193","v":{"v":0,"d":"0.00"}},{"$f":"'Month 8'!M209+'Month 8'!N209-'Month 8'!O209","v":{"v":0,"d":"0.00"}},null,"","",{"$f":"SUMIFS($J$25:$J$224,$C$25:$C$224,$C209,$G$25:$G$224,Lists!$A$16)","v":0},0,null,"",null,{"$f":"IF(C209=0,\"\",LEFT(INDEX(Lists!$H$5:$H$49,MATCH(C209,Lists!$G$5:$G$49,0),1),1))","v":""},null,{"$f":"'Month 8'!H209+'Month 8'!I209-'Month 8'!J209","v":0},"","",null,"0"]
[{"$f":"Planning!A194","v":"I186"},{"$f":"Planning!B194","v":0},{"$f":"Planning!C194","v":0},{"$f":"Planning!D194","v":0},{"$f":"Planning!E194","v":0},{"$f":"IF(Planning!G194<>0,Planning!G194,\"\")","v":""},{"$f":"Planning!H194","v":0},{"$f":"Planning!AG194","v":0},{"$f":"IF(OR(W210=\"1\",AND(W210<>\"1\",G210=Lists!$A$17)),Y210,0)","v":0},null,{"$f":"IF(AND(W210=\"2\",G210<>Lists!$A$17),AA210,Z210)","v":""},"",{"$f":"Planning!AH194","v":{"v":0,"d":"0.00"}},{"$f":"'Month 8'!M210+'Month 8'!N210-'Month 8'!O210","v":{"v":0,"d":"0.00"}},null,"","",{"$f":"SUMIFS($J$25:$J$224,$C$25:$C$224,$C210,$G$25:$G$224,Lists!$A$16)","v":0},0,null,"",null,{"$f":"IF(C210=0,\"\",LEFT(INDEX(Lists!$H$5:$H$49,MATCH(C210,Lists!$G$5:$G$49,0),1),1))","v":""},null,{"$f":"'Month 8'!H210+'Month 8'!I210-'Month 8'!J210","v":0},"","",null,"0"]
[{"$f":"Planning!A195","v":"I187"},{"$f":"Planning!B195","v":0},{"$f":"Planning!C195","v":0},{"$f":"Planning!D195","v":0},{"$f":"Planning!E195","v":0},{"$f":"IF(Planning!G195<>0,Planning!G195,\"\")","v":""},{"$f":"Planning!H195","v":0},{"$f":"Planning!AG195","v":0},{"$f":"IF(OR(W211=\"1\",AND(W211<>\"1\",G211=Lists!$A$17)),Y211,0)","v":0},null,{"$f":"IF(AND(W211=\"2\",G211<>Lists!$A$17),AA211,Z211)","v":""},"",{"$f":"Planning!AH195","v":{"v":0,"d":"0.00"}},{"$f":"'Month 8'!M211+'Month 8'!N211-'Month 8'!O211","v":{"v":0,"d":"0.00"}},null,"","",{"$f":"SUMIFS($J$25:$J$224,$C$25:$C$224,$C211,$G$25:$G$224,Lists!$A$16)","v":0},0,null,"",null,{"$f":"IF(C211=0,\"\",LEFT(INDEX(Lists!$H$5:$H$49,MATCH(C211,Lists!$G$5:$G$49,0),1),1))","v":""},null,{"$f":"'Month 8'!H211+'Month 8'!I211-'Month 8'!J211","v":0},"","",null,"0"]
[{"$f":"Planning!A196","v":"I188"},{"$f":"Planning!B196","v":0},{"$f":"Planning!C196","v":0},{"$f":"Planning!D196","v":0},{"$f":"Planning!E196","v":0},{"$f":"IF(Planning!G196<>0,Planning!G196,\"\")","v":""},{"$f":"Planning!H196","v":0},{"$f":"Planning!AG196","v":0},{"$f":"IF(OR(W212=\"1\",AND(W212<>\"1\",G212=Lists!$A$17)),Y212,0)","v":0},null,{"$f":"IF(AND(W212=\"2\",G212<>Lists!$A$17),AA212,Z212)","v":""},"",{"$f":"Planning!AH196","v":{"v":0,"d":"0.00"}},{"$f":"'Month 8'!M212+'Month 8'!N212-'Month 8'!O212","v":{"v":0,"d":"0.00"}},null,"","",{"$f":"SUMIFS($J$25:$J$224,$C$25:$C$224,$C212,$G$25:$G$224,Lists!$A$16)","v":0},0,null,"",null,{"$f":"IF(C212=0,\"\",LEFT(INDEX(Lists!$H$5:$H$49,MATCH(C212,Lists!$G$5:$G$49,0),1),1))","v":""},null,{"$f":"'Month 8'!H212+'Month 8'!I212-'Month 8'!J212","v":0},"","",null,"0"]
[{"$f":"Planning!A197","v":"I189"},{"$f":"Planning!B197","v":0},{"$f":"Planning!C197","v":0},{"$f":"Planning!D197","v":0},{"$f":"Planning!E197","v":0},{"$f":"IF(Planning!G197<>0,Planning!G197,\"\")","v":""},{"$f":"Planning!H197","v":0},{"$f":"Planning!AG197","v":0},{"$f":"IF(OR(W213=\"1\",AND(W213<>\"1\",G213=Lists!$A$17)),Y213,0)","v":0},null,{"$f":"IF(AND(W213=\"2\",G213<>Lists!$A$17),AA213,Z213)","v":""},"",{"$f":"Planning!AH197","v":{"v":0,"d":"0.00"}},{"$f":"'Month 8'!M213+'Month 8'!N213-'Month 8'!O213","v":{"v":0,"d":"0.00"}},null,"","",{"$f":"SUMIFS($J$25:$J$224,$C$25:$C$224,$C213,$G$25:$G$224,Lists!$A$16)","v":0},0,null,"",null,{"$f":"IF(C213=0,\"\",LEFT(INDEX(Lists!$H$5:$H$49,MATCH(C213,Lists!$G$5:$G$49,0),1),1))","v":""},null,{"$f":"'Month 8'!H213+'Month 8'!I213-'Month 8'!J213","v":0},"","",null,"0"]
[{"$f":"Planning!A198","v":"I190"},{"$f":"Planning!B198","v":0},{"$f":"Planning!C198","v":0},{"$f":"Planning!D198","v":0},{"$f":"Planning!E198","v":0},{"$f":"IF(Planning!G198<>0,Planning!G198,\"\")","v":""},{"$f":"Planning!H198","v":0},{"$f":"Planning!AG198","v":0},{"$f":"IF(OR(W214=\"1\",AND(W214<>\"1\",G214=Lists!$A$17)),Y214,0)","v":0},null,{"$f":"IF(AND(W214=\"2\",G214<>Lists!$A$17),AA214,Z214)","v":""},"",{"$f":"Planning!AH198","v":{"v":0,"d":"0.00"}},{"$f":"'Month 8'!M214+'Month 8'!N214-'Month 8'!O214","v":{"v":0,"d":"0.00"}},null,"","",{"$f":"SUMIFS($J$25:$J$224,$C$25:$C$224,$C214,$G$25:$G$224,Lists!$A$16)","v":0},0,null,"",null,{"$f":"IF(C214=0,\"\",LEFT(INDEX(Lists!$H$5:$H$49,MATCH(C214,Lists!$G$5:$G$49,0),1),1))","v":""},null,{"$f":"'Month 8'!H214+'Month 8'!I214-'Month 8'!J214","v":0},"","",null,"0"]
[{"$f":"Planning!A199","v":"I191"},{"$f":"Planning!B199","v":0},{"$f":"Planning!C199","v":0},{"$f":"Planning!D199","v":0},{"$f":"Planning!E199","v":0},{"$f":"IF(Planning!G199<>0,Planning!G199,\"\")","v":""},{"$f":"Planning!H199","v":0},{"$f":"Planning!AG199","v":0},{"$f":"IF(OR(W215=\"1\",AND(W215<>\"1\",G215=Lists!$A$17)),Y215,0)","v":0},null,{"$f":"IF(AND(W215=\"2\",G215<>Lists!$A$17),AA215,Z215)","v":""},"",{"$f":"Planning!AH199","v":{"v":0,"d":"0.00"}},{"$f":"'Month 8'!M215+'Month 8'!N215-'Month 8'!O215","v":{"v":0,"d":"0.00"}},null,"","",{"$f":"SUMIFS($J$25:$J$224,$C$25:$C$224,$C215,$G$25:$G$224,Lists!$A$16)","v":0},0,null,"",null,{"$f":"IF(C215=0,\"\",LEFT(INDEX(Lists!$H$5:$H$49,MATCH(C215,Lists!$G$5:$G$49,0),1),1))","v":""},null,{"$f":"'Month 8'!H215+'Month 8'!I215-'Month 8'!J215","v":0},"","",null,"0"]
[{"$f":"Planning!A200","v":"I192"},{"$f":"Planning!B200","v":0},{"$f":"Planning!C200","v":0},{"$f":"Planning!D200","v":0},{"$f":"Planning!E200","v":0},{"$f":"IF(Planning!G200<>0,Planning!G200,\"\")","v":""},{"$f":"Planning!H200","v":0},{"$f":"Planning!AG200","v":0},{"$f":"IF(OR(W216=\"1\",AND(W216<>\"1\",G216=Lists!$A$17)),Y216,0)","v":0},null,{"$f":"IF(AND(W216=\"2\",G216<>Lists!$A$17),AA216,Z216)","v":""},"",{"$f":"Planning!AH200","v":{"v":0,"d":"0.00"}},{"$f":"'Month 8'!M216+'Month 8'!N216-'Month 8'!O216","v":{"v":0,"d":"0.00"}},null,"","",{"$f":"SUMIFS($J$25:$J$224,$C$25:$C$224,$C216,$G$25:$G$224,Lists!$A$16)","v":0},0,null,"",null,{"$f":"IF(C216=0,\"\",LEFT(INDEX(Lists!$H$5:$H$49,MATCH(C216,Lists!$G$5:$G$49,0),1),1))","v":""},null,{"$f":"'Month 8'!H216+'Month 8'!I216-'Month 8'!J216","v":0},"","",null,"0"]
[{"$f":"Planning!A201","v":"I193"},{"$f":"Planning!B201","v":0},{"$f":"Planning!C201","v":0},{"$f":"Planning!D201","v":0},{"$f":"Planning!E201","v":0},{"$f":"IF(Planning!G201<>0,Planning!G201,\"\")","v":""},{"$f":"Planning!H201","v":0},{"$f":"Planning!AG201","v":0},{"$f":"IF(OR(W217=\"1\",AND(W217<>\"1\",G217=Lists!$A$17)),Y217,0)","v":0},null,{"$f":"IF(AND(W217=\"2\",G217<>Lists!$A$17),AA217,Z217)","v":""},{"$f":"IF($U217=ExcluirDelPLogro,\"\",IF(AND(H217=0,I217=0,J217=0),\"\",K217))","v":""},{"$f":"Planning!AH201","v":{"v":0,"d":"0.00"}},{"$f":"'Month 8'!M217+'Month 8'!N217-'Month 8'!O217","v":{"v":0,"d":"0.00"}},null,"",{"$f":"IF($U217=ExcluirDelPLogro,\"\",IF(AND(M217=0,N217=0,O217=0),\"\",P217))","v":""},{"$f":"SUMIFS($J$25:$J$224,$C$25:$C$224,$C217,$G$25:$G$224,Lists!$A$16)","v":0},0,null,"",null,{"$f":"IF(C217=0,\"\",LEFT(INDEX(Lists!$H$5:$H$49,MATCH(C217,Lists!$G$5:$G$49,0),1),1))","v":""},null,{"$f":"'Month 8'!H217+'Month 8'!I217-'Month 8'!J217","v":0},"",{"$f":"IF(AND(H217=0,I217=0,J217=0),\"\",IF(J217>0,H217/J217,0))","v":""},null,"0"]
[{"$f":"Planning!A202","v":"I194"},{"$f":"Planning!B202","v":0},{"$f":"Planning!C202","v":0},{"$f":"Planning!D202","v":0},{"$f":"Planning!E202","v":0},{"$f":"IF(Planning!G202<>0,Planning!G202,\"\")","v":""},{"$f":"Planning!H202","v":0},{"$f":"Planning!AG202","v":0},{"$f":"IF(OR(W218=\"1\",AND(W218<>\"1\",G218=Lists!$A$17)),Y218,0)","v":0},null,{"$f":"IF(AND(W218=\"2\",G218<>Lists!$A$17),AA218,Z218)","v":""},"",{"$f":"Planning!AH202","v":{"v":0,"d":"0.00"}},{"$f":"'Month 8'!M218+'Month 8'!N218-'Month 8'!O218","v":{"v":0,"d":"0.00"}},null,{"$f":"IF(AND(M218=0,N218=0,O218=0),\"\",IF((M218+N218)>0,O218/(M218+N218),O218))","v":""},"",{"$f":"SUMIFS($J$25:$J$224,$C$25:$C$224,$C218,$G$25:$G$224,Lists!$A$16)","v":0},{"$f":"SUMIFS($O$25:$O$224,$C$25:$C$224,$C218,$G$25:$G$224,\"<>0\")","v":0},null,{"$f":"IF(B218=0,\"\",IF(LEFT(B218,1)=\"1\",\"1\",\"2\"))","v":""},null,{"$f":"IF(C218=0,\"\",LEFT(INDEX(Lists!$H$5:$H$49,MATCH(C218,Lists!$G$5:$G$49,0),1),1))","v":""},null,{"$f":"'Month 8'!H218+'Month 8'!I218-'Month 8'!J218","v":0},{"$f":"IF(AND(H218=0,I218=0,J218=0),\"\",IF((H218+I218)>0,J218/(H218+I218),J218))","v":""},"",null,{"$f":"U218&C218","v":"0"}]
[{"$f":"Planning!A203","v":"I195"},{"$f":"Planning!B203","v":0},{"$f":"Planning!C203","v":0},{"$f":"Planning!D203","v":0},{"$f":"Planning!E203","v":0},{"$f":"IF(Planning!G203<>0,Planning!G203,\"\")","v":""},{"$f":"Planning!H203","v":0},{"$f":"Planning!AG203","v":0},{"$f":"IF(OR(W219=\"1\",AND(W219<>\"1\",G219=Lists!$A$17)),Y219,0)","v":0},null,{"$f":"IF(AND(W219=\"2\",G219<>Lists!$A$17),AA219,Z219)","v":""},"",{"$f":"Planning!AH203","v":{"v":0,"d":"0.00"}},{"$f":"'Month 8'!M219+'Month 8'!N219-'Month 8'!O219","v":{"v":0,"d":"0.00"}},null,"","",{"$f":"SUMIFS($J$25:$J$224,$C$25:$C$224,$C219,$G$25:$G$224,Lists!$A$16)","v":0},0,null,"",null,{"$f":"IF(C219=0,\"\",LEFT(INDEX(Lists!$H$5:$H$49,MATCH(C219,Lists!$G$5:$G$49,0),1),1))","v":""},null,{"$f":"'Month 8'!H219+'Month 8'!I219-'Month 8'!J219","v":0},"","",null,"0"]
[{"$f":"Planning!A204","v":"I196"},{"$f":"Planning!B204","v":0},{"$f":"Planning!C204","v":0},{"$f":"Planning!D204","v":0},{"$f":"Planning!E204","v":0},{"$f":"IF(Planning!G204<>0,Planning!G204,\"\")","v":""},{"$f":"Planning!H204","v":0},{"$f":"Planning!AG204","v":0},{"$f":"IF(OR(W220=\"1\",AND(W220<>\"1\",G220=Lists!$A$17)),Y220,0)","v":0},null,{"$f":"IF(AND(W220=\"2\",G220<>Lists!$A$17),AA220,Z220)","v":""},"",{"$f":"Planning!AH204","v":{"v":0,"d":"0.00"}},{"$f":"'Month 8'!M220+'Month 8'!N220-'Month 8'!O220","v":{"v":0,"d":"0.00"}},null,"","",{"$f":"SUMIFS($J$25:$J$224,$C$25:$C$224,$C220,$G$25:$G$224,Lists!$A$16)","v":0},0,null,"",null,{"$f":"IF(C220=0,\"\",LEFT(INDEX(Lists!$H$5:$H$49,MATCH(C220,Lists!$G$5:$G$49,0),1),1))","v":""},null,{"$f":"'Month 8'!H220+'Month 8'!I220-'Month 8'!J220","v":0},"","",null,"0"]
[{"$f":"Planning!A205","v":"I197"},{"$f":"Planning!B205","v":0},{"$f":"Planning!C205","v":0},{"$f":"Planning!D205","v":0},{"$f":"Planning!E205","v":0},{"$f":"IF(Planning!G205<>0,Planning!G205,\"\")","v":""},{"$f":"Planning!H205","v":0},{"$f":"Planning!AG205","v":0},{"$f":"IF(OR(W221=\"1\",AND(W221<>\"1\",G221=Lists!$A$17)),Y221,0)","v":0},null,{"$f":"IF(AND(W221=\"2\",G221<>Lists!$A$17),AA221,Z221)","v":""},"",{"$f":"Planning!AH205","v":{"v":0,"d":"0.00"}},{"$f":"'Month 8'!M221+'Month 8'!N221-'Month 8'!O221","v":{"v":0,"d":"0.00"}},null,"","",{"$f":"SUMIFS($J$25:$J$224,$C$25:$C$224,$C221,$G$25:$G$224,Lists!$A$16)","v":0},0,null,"",null,{"$f":"IF(C221=0,\"\",LEFT(INDEX(Lists!$H$5:$H$49,MATCH(C221,Lists!$G$5:$G$49,0),1),1))","v":""},null,{"$f":"'Month 8'!H221+'Month 8'!I221-'Month 8'!J221","v":0},"","",null,"0"]
[{"$f":"Planning!A206","v":"I198"},{"$f":"Planning!B206","v":0},{"$f":"Planning!C206","v":0},{"$f":"Planning!D206","v":0},{"$f":"Planning!E206","v":0},{"$f":"IF(Planning!G206<>0,Planning!G206,\"\")","v":""},{"$f":"Planning!H206","v":0},{"$f":"Planning!AG206","v":0},{"$f":"IF(OR(W222=\"1\",AND(W222<>\"1\",G222=Lists!$A$17)),Y222,0)","v":0},null,{"$f":"IF(AND(W222=\"2\",G222<>Lists!$A$17),AA222,Z222)","v":""},"",{"$f":"Planning!AH206","v":{"v":0,"d":"0.00"}},{"$f":"'Month 8'!M222+'Month 8'!N222-'Month 8'!O222","v":{"v":0,"d":"0.00"}},null,"","",{"$f":"SUMIFS($J$25:$J$224,$C$25:$C$224,$C222,$G$25:$G$224,Lists!$A$16)","v":0},0,null,"",null,{"$f":"IF(C222=0,\"\",LEFT(INDEX(Lists!$H$5:$H$49,MATCH(C222,Lists!$G$5:$G$49,0),1),1))","v":""},null,{"$f":"'Month 8'!H222+'Month 8'!I222-'Month 8'!J222","v":0},"","",null,"0"]
[{"$f":"Planning!A207","v":"I199"},{"$f":"Planning!B207","v":0},{"$f":"Planning!C207","v":0},{"$f":"Planning!D207","v":0},{"$f":"Planning!E207","v":0},{"$f":"IF(Planning!G207<>0,Planning!G207,\"\")","v":""},{"$f":"Planning!H207","v":0},{"$f":"Planning!AG207","v":0},{"$f":"IF(OR(W223=\"1\",AND(W223<>\"1\",G223=Lists!$A$17)),Y223,0)","v":0},null,{"$f":"IF(AND(W223=\"2\",G223<>Lists!$A$17),AA223,Z223)","v":""},"",{"$f":"Planning!AH207","v":{"v":0,"d":"0.00"}},{"$f":"'Month 8'!M223+'Month 8'!N223-'Month 8'!O223","v":{"v":0,"d":"0.00"}},null,"","",{"$f":"SUMIFS($J$25:$J$224,$C$25:$C$224,$C223,$G$25:$G$224,Lists!$A$16)","v":0},0,null,"",null,{"$f":"IF(C223=0,\"\",LEFT(INDEX(Lists!$H$5:$H$49,MATCH(C223,Lists!$G$5:$G$49,0),1),1))","v":""},null,{"$f":"'Month 8'!H223+'Month 8'!I223-'Month 8'!J223","v":0},"","",null,"0"]
[{"$f":"Planning!A208","v":"I200"},{"$f":"Planning!B208","v":0},{"$f":"Planning!C208","v":0},{"$f":"Planning!D208","v":0},{"$f":"Planning!E208","v":0},{"$f":"IF(Planning!G208<>0,Planning!G208,\"\")","v":""},{"$f":"Planning!H208","v":0},{"$f":"Planning!AG208","v":0},{"$f":"IF(OR(W224=\"1\",AND(W224<>\"1\",G224=Lists!$A$17)),Y224,0)","v":0},null,{"$f":"IF(AND(W224=\"2\",G224<>Lists!$A$17),AA224,Z224)","v":""},"",{"$f":"Planning!AH208","v":{"v":0,"d":"0.00"}},{"$f":"'Month 8'!M224+'Month 8'!N224-'Month 8'!O224","v":{"v":0,"d":"0.00"}},null,"","",{"$f":"SUMIFS($J$25:$J$224,$C$25:$C$224,$C224,$G$25:$G$224,Lists!$A$16)","v":0},0,null,"",null,{"$f":"IF(C224=0,\"\",LEFT(INDEX(Lists!$H$5:$H$49,MATCH(C224,Lists!$G$5:$G$49,0),1),1))","v":""},null,{"$f":"'Month 8'!H224+'Month 8'!I224-'Month 8'!J224","v":0},"","",null,"0"]
[{"$nulls":20},".",null,".",null,".",".",".",null,"."]
[]
[{"$f":"Setup!AN6","v":"PR Dashboard indicators"}]
[{"$f":"Setup!AP8","v":"Financial reports planned"}]
[{"$f":"Setup!AP9","v":"Financial reports overdue"}]
[{"$f":"Setup!AP10","v":0}]
[{"$f":"Setup!AP11","v":0}]
[{"$f":"Setup!AP12","v":0}]
[{"$f":"Setup!AP13","v":0}]
[{"$f":"Setup!AP14","v":0}]
[{"$f":"Setup!AP15","v":"Supervision actions recommended"}]
[{"$f":"Setup!AP16","v":"Supervision recommendations past due"}]
[{"$f":"Setup!AP17","v":"Programmatic reports planned"}]
[{"$f":"Setup!AP18","v":"Programmatic reports past due"}]
[{"$f":"Setup!AP19","v":0}]
[{"$f":"Setup!AP20","v":0}]
[{"$f":"Setup!AP21","v":0}]
[{"$f":"Setup!AP22","v":0}]
[{"$f":"Setup!AP23","v":0}]
[{"$f":"Setup!AP24","v":0}]
[{"$f":"Setup!AP25","v":0}]
[{"$f":"Setup!AP26","v":0}]
[{"$f":"Setup!AP27","v":0}]
[{"$f":"Setup!AP28","v":0}]
[{"$f":"Setup!AP29","v":0}]
[{"$f":"Setup!AP30","v":0}]
[{"$f":"Setup!AP31","v":0}]
[{"$f":"Setup!AP32","v":0}]
[{"$f":"Setup!AP33","v":0}]
[{"$f":"Setup!AP34","v":0}]
[{"$f":"Setup!AP35","v":0}]
[{"$f":"Setup!AP36","v":0}]
[{"$f":"Setup!AP37","v":0}]
[{"$f":"Setup!AP38","v":0}]
[{"$f":"Setup!AP39","v":"Actual stock level - PS39 - Product 1: Efavirenz, 600 mg, 30 tablets"}]
[{"$f":"Setup!AP40","v":"Actual stock level - PS40 - Product 2: Efavirenz, 200 mg, 90 capsules"}]
[{"$f":"Setup!AP41","v":"Actual stock level - PS41 - Product 3: TDF/3TC, 300/300 mg, 30 tablets"}]
[{"$f":"Setup!AP42","v":"Actual stock level - PS42 - Product 4: 3TC, 10 mg/ml, oral solution 240 ml"}]
[{"$f":"Setup!AP43","v":0}]
[{"$f":"Setup!AP44","v":0}]
[{"$f":"Setup!AP45","v":0}]
[{"$f":"Setup!AP46","v":0}]
[{"$f":"Setup!AP47","v":0}]
[{"$f":"Setup!AP48","v":0}]
[{"$f":"Setup!AP49","v":0}]
[{"$f":"Setup!AP50","v":0}]
[{"$f":"Setup!AP51","v":0}]
[{"$f":"Setup!AP52","v":0}]
[{"$f":"Setup!AP53","v":0}]
[{"$f":"Setup!AP54","v":0}]
[{"$f":"Setup!AP55","v":0}]
[{"$f":"Setup!AP56","v":0}]
[{"$f":"Setup!AP57","v":0}]
[{"$f":"Setup!AP58","v":0}]
[{"$f":"Setup!AP59","v":0}]
[{"$f":"Setup!AP60","v":0}]
[{"$f":"Setup!AP61","v":0}]
[{"$f":"Setup!AP62","v":0}]
[{"$f":"Setup!AP63","v":0}]
[{"$f":"Setup!AP64","v":0}]
[{"$f":"Setup!AP65","v":0}]
[{"$f":"Setup!AP66","v":0}]
[{"$f":"Setup!AP67","v":0}]
[{"$f":"Setup!AP68","v":0}]
[{"$f":"Setup!AP69","v":0}]
[]
[]
[{"$f":"Translations!A138","v":"Narrative comments from results (to be filled by the Subrecipient)"}]
{"$rows_empty":43}
[{"$f":"Translations!A139","v":"This section is filled in exclusively by PR's programmatic and financial monitors."}]
[]
[{"$f":"Translations!A150","v":"PROGRAMMATIC"},null,null,{"$f":"Translations!A140","v":"Name of person conducting programmatic verification"}]
[]
[]
[{"$nulls":3},{"$f":"Translations!A141","v":"Contextual details"}]
[]
[]
[]
[]
[]
[]
[{"$nulls":3},{"$f":"Translations!A151","v":"Description of identified problem(s)"}]
[]
[]
[]
[]
[]
[]
[{"$nulls":3},{"$f":"Translations!A152","v":"Recommendations and actions to be taken"}]
[{"$nulls":3},"1)"]
[{"$nulls":3},"2)"]
[{"$nulls":3},"3)"]
[{"$nulls":3},"4)"]
[{"$nulls":3},"5)"]
[]
[]
[]
[{"$f":"Translations!A154","v":"FINANCIAL"},null,null,{"$f":"Translations!A153","v":"Name of person conducting financial verification"}]
[]
[]
[{"$nulls":3},{"$f":"Translations!A141","v":"Contextual details"}]
{"$rows_empty":7}
[{"$nulls":3},{"$f":"Translations!A151","v":"Description of identified problem(s)"}]
[]
[]
[]
[]
[]
[]
[{"$nulls":3},{"$f":"Translations!A152","v":"Recommendations and actions to be taken"}]
[{"$nulls":3},"1)"]
[{"$nulls":3},"2)"]
[{"$nulls":3},"3)"]
[{"$nulls":3},"4)"]
[{"$nulls":3},"5)"]
[]
[]
[]
[]
[]
[{"$f":"Translations!A321","v":"To be completed by the PR"},{"$nulls":6},{"$f":"Translations!A324","v":"To be completed by the SR"}]
[{"$f":"Translations!A322","v":"Position"},{"$nulls":3},{"$f":"Translations!A323","v":"Signature"},null,null,{"$f":"Translations!A322","v":"Position"},null,{"$f":"Translations!A323","v":"Signature"}]

{"sheet":"Month 10","index":21,"n_rows":394,"n_cols":29,"rows_kept":394,"hidden":true,"merged":[[1,4,1,13],[1,14,1,15],[2,4,2,13],[2,14,3,15],[3,4,3,13],[4,4,4,13],[4,22,16,26],[5,9,5,15],[6,0,15,7],[6,9,7,15],[9,9,9,10],[9,12,9,15],[10,9,11,10],[10,12,11,15],[13,9,15,13],[13,14,13,15],[14,14,15,15],[16,6,16,7],[17,3,17,4],[17,7,17,8],[17,9,17,10],[17,12,17,13],[17,14,17,15],[18,7,18,10],[18,12,18,15],[18,24,18,26],[19,0,20,0],[19,1,20,1],[19,2,20,2],[19,3,20,3],[19,4,20,4],[19,5,20,5],[19,7,20,7],[19,8,20,8],[19,9,20,9],[19,10,20,10],[19,12,20,12],[19,13,20,13],[19,14,20,14],[19,15,20,15],[19,17,19,18],[19,20,20,20],[19,22,20,22],[19,24,20,24],[19,25,20,25],[19,26,20,26],[19,28,20,28],[226,0,226,7],[227,0,227,6],[228,0,228,6],[229,0,229,6],[230,0,230,6],[231,0,231,6],[232,0,232,6],[233,0,233,6],[234,0,234,6],[235,0,235,6],[236,0,236,6],[237,0,237,6],[238,0,238,6],[239,0,239,6],[240,0,240,6],[241,0,241,6],[242,0,242,6],[243,0,243,6],[244,0,244,6],[245,0,245,6],[246,0,246,6],[247,0,247,6],[248,0,248,6],[249,0,249,6],[250,0,250,6],[251,0,251,6],[252,0,252,6],[253,0,253,6],[254,0,254,6],[255,0,255,6],[256,0,256,6],[257,0,257,6],[258,0,258,6],[259,0,259,6],[260,0,260,6],[261,0,261,6],[262,0,262,6],[263,0,263,6],[264,0,264,6],[265,0,265,6],[266,0,266,6],[267,0,267,6],[268,0,268,6],[269,0,269,6],[270,0,270,6],[271,0,271,6],[272,0,272,6],[273,0,273,6],[274,0,274,6],[275,0,275,6],[276,0,276,6],[277,0,277,6],[278,0,278,6],[279,0,279,6],[280,0,280,6],[281,0,281,6],[282,0,282,6],[283,0,283,6],[284,0,284,6],[285,0,285,6],[286,0,286,6],[287,0,287,6],[288,0,288,6],[291,0,291,15],[292,0,333,15],[335,0,335,15],[337,0,360,0],[337,14,337,15],[338,3,338,4],[338,14,338,15],[341,3,345,15],[348,3,352,15],[355,3,355,15],[356,3,356,15],[357,3,357,15],[358,3,358,15],[359,3,359,15],[363,0,387,0],[363,14,363,15],[364,3,364,4],[364,14,364,15],[367,3,371,15],[375,3,379,15],[382,3,382,15],[383,3,383,15],[384,3,384,15],[385,3,385,15],[386,3,386,15],[392,0,392,4],[392,7,392,12],[393,0,393,3],[393,7,393,8],[393,9,393,12],[394,0,394,3],[394,7,394,8],[394,9,394,12],[395,0,395,3],[395,7,395,8],[395,9,395,12],[396,0,396,3],[396,7,396,8],[396,9,396,12],[397,0,397,3],[397,7,397,8],[397,9,397,12]]}
[]
["Month 10",{"$nulls":3},{"$f":"Translations!A80","v":"SR Management Tool"},{"$nulls":9},{"$f":"Translations!A129","v":"SCORE"}]
[{"$nulls":4},{"$f":"Setup!H11","v":"Direct Gender Partnership (DGP)"},{"$nulls":9},{"$f":"K23","v":{"v":0,"d":"0.00%"}}]
[{"$nulls":4},{"$f":" Setup!H14 & \"  (\" & Setup!H13 & \")\" & \"  (\" & Setup!H15 & \")\"","v":"DMR-202-G01-H-00  (January  2016 - December 2016)  (HIV / AIDS)"}]
[{"$nulls":4},{"$f":"Setup!AB17 & \"  (\" & Setup!H16 & \")\"","v":"October  ($ - USD)"},{"$nulls":17},"A. Se colocará lo pendiente (Y) en (I) siempre que (W) sea 1. Estandar o que (W) sea diferente de 1. sin embargo la actividad (G) NO contribuya al indicador.\n\nB. En la columna % Logro (K) se colocará siempre el Logro 1. Estandar (Z). Solamente se colocará el Logro 2. Inverso (AA) cuando (W) sea 2 y (G) sea diferente de 2. NO... es decir, el valor inverso va para las actvividades que contribuyan al indicador G = 1. SI y para el Indicador en si G = 0... por eso se pregunta por G diferente de 2. NO.. para incluir los 1. SI y a los 0\n\n"]
[{"$f":"Setup!G19","v":"Details of programatic indicators"},{"$nulls":8},{"$f":"Setup!G17","v":"Key population"}]
[{"$f":"Setup!H19","v":"# PLHIV that initiated ARV with CD4 count <200\n# new HIV+ enrolled in care services \n# aged 10-24 yrs reached by HIV life skills ed. in school "},{"$nulls":8},{"$f":"Setup!H17","v":"Sex Workers - Migrants - Women"}]
[]
[]
[{"$nulls":9},{"$f":"Translations!A119","v":"Report date"},null,null,{"$f":"Translations!A130","v":"Reported by"}]
[]
[]
[]
[{"$nulls":9},{"$f":"Translations!A132","v":"Note: Enter disubursment ammount here if the PR made a disbursment this month. Leave blank if no disbursment was made."},{"$nulls":4},{"$f":"Translations!A131","v":"Disbursement"}]
[]
[]
[]
[{"$nulls":3},{"$f":"Translations!A233","v":"Input data in spaces with this color"},{"$nulls":3},{"$f":"Translations!A120","v":"Date of verification"},{"$nulls":4},{"$f":"Translations!A120","v":"Date of verification"}]
[{"$nulls":7},{"$f":"Translations!A133","v":"Programmatic aspects"},{"$nulls":4},{"$f":"Translations!A134","v":"Financial aspects"},{"$nulls":9},"COMPORTAMIENTO",null,"Sólo en el Aspecto Programático"]
[{"$f":"Translations!A88","v":"Item"},"Tipo de Ítem","ID Enlace",{"$f":"Translations!A91","v":"Activity code"},{"$f":"Translations!A92","v":"Indicator / Activity"},{"$f":"Translations!A79","v":"TGF costs groups"},null,{"$f":"Translations!A135","v":"Monthly target"},{"$f":"Translations!A136","v":"Balance from previous period"},{"$f":"Translations!A137","v":"Results "},{"$f":"Translations!A108","v":"Result %"},null,{"$f":"Translations!$A$360","v":"Monthly budget"},{"$f":"Translations!A136","v":"Balance from previous period"},{"$f":"Translations!$A$361","v":"Monthly expenditure"},{"$f":"Translations!A108","v":"Result %"},null,"Sumatorias Indicadores",null,null,"Indicador =1 Actividad = 2",null,"1. Estandar\n2. Inverso\n3. No Acumula",null,"Pendiente Mes Anterior\n SIN CONDICION","Logro\n1. Estandar","Logro\n2. Inverso",null,"TAG \nPerformance"]
[{"$nulls":17},"PROG","FIN"]
[]
[{"$f":"Translations!A109","v":"Totals"},{"$nulls":6},"-","-","-",{"$f":"IFERROR(AVERAGEIF(L25:L224,\"<> \"),\"\")","v":{"v":0,"d":"0.00%"}},null,{"$f":"SUMIFS(M25:M224,$G$25:$G$224,\"<>0\")","v":{"v":0,"d":"0.00"}},{"$f":"SUMIFS(N25:N224,$G$25:$G$224,\"<>0\")","v":{"v":7250,"d":"7,250.00"}},{"$f":"SUMIFS(O25:O224,$G$25:$G$224,\"<>0\")","v":{"v":0,"d":"0.00"}},{"$f":"IFERROR(AVERAGEIF(Q25:Q224,\"<> \"),\"\")","v":{"v":0,"d":"0.00%"}}]
[]
[{"$f":"Planning!A9","v":"I001"},{"$f":"Planning!B9","v":"1. Indicator"},{"$f":"Planning!C9","v":"Pr68"},{"$f":"Planning!D9","v":1},{"$f":"Planning!E9","v":"[Pr68] # PLHIV that initiated ARV with CD4 count <200 Target [2. Inverse]"},{"$f":"IF(Planning!G9<>0,Planning!G9,\"\")","v":""},{"$f":"Planning!H9","v":0},{"$f":"Planning!AJ9","v":0},{"$f":"IF(OR(W25=\"1\",AND(W25<>\"1\",G25=Lists!$A$17)),Y25,0)","v":0},{"$f":"R25","v":0},{"$f":"IF(AND(W25=\"2\",G25<>Lists!$A$17),AA25,Z25)","v":""},{"$f":"IF($U25=ExcluirDelPLogro,\"\",IF(AND(H25=0,I25=0,J25=0),\"\",K25))","v":""},{"$f":"Planning!AK9","v":{"v":0,"d":"0.00"}},{"$f":"'Month 9'!M25+'Month 9'!N25-'Month 9'!O25","v":{"v":0,"d":"0.00"}},{"$f":"S25","v":{"v":0,"d":"0.00"}},{"$f":"IF(AND(M25=0,N25=0,O25=0),\"\",IF((M25+N25)>0,O25/(M25+N25),O25))","v":""},{"$f":"IF($U25=ExcluirDelPLogro,\"\",IF(AND(M25=0,N25=0,O25=0),\"\",P25))","v":""},{"$f":"SUMIFS($J$25:$J$224,$C$25:$C$224,$C25,$G$25:$G$224,Lists!$A$16)","v":0},{"$f":"SUMIFS($O$25:$O$224,$C$25:$C$224,$C25,$G$25:$G$224,\"<>0\")","v":0},null,{"$f":"IF(B25=0,\"\",IF(LEFT(B25,1)=\"1\",\"1\",\"2\"))","v":"1"},null,{"$f":"IF(C25=0,\"\",LEFT(INDEX(Lists!$H$5:$H$49,MATCH(C25,Lists!$G$5:$G$49,0),1),1))","v":"2"},null,{"$f":"'Month 9'!H25+'Month 9'!I25-'Month 9'!J25","v":0},{"$f":"IF(AND(H25=0,I25=0,J25=0),\"\",IF((H25+I25)>0,J25/(H25+I25),J25))","v":""},{"$f":"IF(AND(H25=0,I25=0,J25=0),\"\",IF(J25>0,H25/J25,0))","v":""},null,{"$f":"U25&C25","v":"1Pr68"}]
[{"$f":"Planning!A10","v":"I002"},{"$f":"Planning!B10","v":"2. Activity: Contributing"},{"$f":"Planning!C10","v":"Pr68"},{"$f":"Planning!D10","v":1.2},{"$f":"Planning!E10","v":"PLHIV reimbursed for transportation costs to HIV testing and treatment centres\n"},{"$f":"IF(Planning!G10<>0,Planning!G10,\"\")","v":"12. Living support to client/ target population "},{"$f":"Planning!H10","v":"1. YES"},{"$f":"Planning!AJ10","v":0},{"$f":"IF(OR(W26=\"1\",AND(W26<>\"1\",G26=Lists!$A$17)),Y26,0)","v":0},0,{"$f":"IF(AND(W26=\"2\",G26<>Lists!$A$17),AA26,Z26)","v":""},"",{"$f":"Planning!AK10","v":{"v":0,"d":"0.00"}},{"$f":"'Month 9'!M26+'Month 9'!N26-'Month 9'!O26","v":{"v":0,"d":"0.00"}},{"v":0,"d":"0.00"},"","",{"$f":"SUMIFS($J$25:$J$224,$C$25:$C$224,$C26,$G$25:$G$224,Lists!$A$16)","v":0},{"$f":"SUMIFS($O$25:$O$224,$C$25:$C$224,$C26,$G$25:$G$224,\"<>0\")","v":0},null,{"$f":"IF(B26=0,\"\",IF(LEFT(B26,1)=\"1\",\"1\",\"2\"))","v":"2"},null,{"$f":"IF(C26=0,\"\",LEFT(INDEX(Lists!$H$5:$H$49,MATCH(C26,Lists!$G$5:$G$49,0),1),1))","v":"2"},null,{"$f":"'Month 9'!H26+'Month 9'!I26-'Month 9'!J26","v":0},{"$f":"IF(AND(H26=0,I26=0,J26=0),\"\",IF((H26+I26)>0,J26/(H26+I26),J26))","v":""},"",null,{"$f":"U26&C26","v":"2Pr68"}]
[{"$f":"Planning!A11","v":"I003"},{"$f":"Planning!B11","v":"3. Activity: Non-Contributing"},{"$f":"Planning!C11","v":"Pr68"},{"$f":"Planning!D11","v":1.3},{"$f":"Planning!E11","v":"Communication materials produced to educate HIV+ patients about HIV treatment (Migrants and Sexual Workers). \n\n"},{"$f":"IF(Planning!G11<>0,Planning!G11,\"\")","v":"10. Communication material and publications"},{"$f":"Planning!H11","v":"2. NO"},{"$f":"Planning!AJ11","v":0},{"$f":"IF(OR(W27=\"1\",AND(W27<>\"1\",G27=Lists!$A$17)),Y27,0)","v":1},0,{"$f":"IF(AND(W27=\"2\",G27<>Lists!$A$17),AA27,Z27)","v":{"v":0,"d":"0.00%"}},"",{"$f":"Planning!AK11","v":{"v":0,"d":"0.00"}},{"$f":"'Month 9'!M27+'Month 9'!N27-'Month 9'!O27","v":{"v":0,"d":"0.00"}},{"v":0,"d":"0.00"},"","",{"$f":"SUMIFS($J$25:$J$224,$C$25:$C$224,$C27,$G$25:$G$224,Lists!$A$16)","v":0},0,null,"2",null,{"$f":"IF(C27=0,\"\",LEFT(INDEX(Lists!$H$5:$H$49,MATCH(C27,Lists!$G$5:$G$49,0),1),1))","v":"2"},null,{"$f":"'Month 9'!H27+'Month 9'!I27-'Month 9'!J27","v":1},0,0,null,"2Pr68"]
[{"$f":"Planning!A12","v":"I004"},{"$f":"Planning!B12","v":"3. Activity: Non-Contributing"},{"$f":"Planning!C12","v":"Pr68"},{"$f":"Planning!D12","v":1.4},{"$f":"Planning!E12","v":"Supervisory visits to verify the appropriate application of testing and treatment protocols at centers. "},{"$f":"IF(Planning!G12<>0,Planning!G12,\"\")","v":"11. Programme administration costs"},{"$f":"Planning!H12","v":"2. NO"},{"$f":"Planning!AJ12","v":0},{"$f":"IF(OR(W28=\"1\",AND(W28<>\"1\",G28=Lists!$A$17)),Y28,0)","v":0},0,{"$f":"IF(AND(W28=\"2\",G28<>Lists!$A$17),AA28,Z28)","v":""},"",{"$f":"Planning!AK12","v":{"v":0,"d":"0.00"}},{"$f":"'Month 9'!M28+'Month 9'!N28-'Month 9'!O28","v":{"v":0,"d":"0.00"}},{"v":0,"d":"0.00"},"","",{"$f":"SUMIFS($J$25:$J$224,$C$25:$C$224,$C28,$G$25:$G$224,Lists!$A$16)","v":0},0,null,"2",null,{"$f":"IF(C28=0,\"\",LEFT(INDEX(Lists!$H$5:$H$49,MATCH(C28,Lists!$G$5:$G$49,0),1),1))","v":"2"},null,{"$f":"'Month 9'!H28+'Month 9'!I28-'Month 9'!J28","v":0},"","",null,"2Pr68"]
[{"$f":"Planning!A13","v":"I005"},{"$f":"Planning!B13","v":"1. Indicator"},{"$f":"Planning!C13","v":"Pr72"},{"$f":"Planning!D13","v":2},{"$f":"Planning!E13","v":"[Pr72] # new HIV+ enrolled in care services Target [3. Non-Cumulative]"},{"$f":"IF(Planning!G13<>0,Planning!G13,\"\")","v":""},{"$f":"Planning!H13","v":0},{"$f":"Planning!AJ13","v":0},{"$f":"IF(OR(W29=\"1\",AND(W29<>\"1\",G29=Lists!$A$17)),Y29,0)","v":0},{"$f":"R29","v":0},{"$f":"IF(AND(W29=\"2\",G29<>Lists!$A$17),AA29,Z29)","v":""},"",{"$f":"Planning!AK13","v":{"v":0,"d":"0.00"}},{"$f":"'Month 9'!M29+'Month 9'!N29-'Month 9'!O29","v":{"v":0,"d":"0.00"}},{"$f":"S29","v":{"v":0,"d":"0.00"}},"","",{"$f":"SUMIFS($J$25:$J$224,$C$25:$C$224,$C29,$G$25:$G$224,Lists!$A$16)","v":0},0,null,"1",null,{"$f":"IF(C29=0,\"\",LEFT(INDEX(Lists!$H$5:$H$49,MATCH(C29,Lists!$G$5:$G$49,0),1),1))","v":"3"},null,{"$f":"'Month 9'!H29+'Month 9'!I29-'Month 9'!J29","v":0},"","",null,"1Pr72"]
[{"$f":"Planning!A14","v":"I006"},{"$f":"Planning!B14","v":"2. Activity: Contributing"},{"$f":"Planning!C14","v":"Pr72"},{"$f":"Planning!D14","v":2.1},{"$f":"Planning!E14","v":"Enrollment of  newly diagnosed HIV+ patients for home visits to monitor use of ARV."},{"$f":"IF(Planning!G14<>0,Planning!G14,\"\")","v":"12. Living support to client/ target population "},{"$f":"Planning!H14","v":"1. YES"},{"$f":"Planning!AJ14","v":0},{"$f":"IF(OR(W30=\"1\",AND(W30<>\"1\",G30=Lists!$A$17)),Y30,0)","v":0},0,{"$f":"IF(AND(W30=\"2\",G30<>Lists!$A$17),AA30,Z30)","v":""},"",{"$f":"Planning!AK14","v":{"v":0,"d":"0.00"}},{"$f":"'Month 9'!M30+'Month 9'!N30-'Month 9'!O30","v":{"v":0,"d":"0.00"}},{"v":0,"d":"0.00"},"","",{"$f":"SUMIFS($J$25:$J$224,$C$25:$C$224,$C30,$G$25:$G$224,Lists!$A$16)","v":0},0,null,"2",null,{"$f":"IF(C30=0,\"\",LEFT(INDEX(Lists!$H$5:$H$49,MATCH(C30,Lists!$G$5:$G$49,0),1),1))","v":"3"},null,{"$f":"'Month 9'!H30+'Month 9'!I30-'Month 9'!J30","v":0},"","",null,"2Pr72"]
[{"$f":"Planning!A15","v":"I007"},{"$f":"Planning!B15","v":"1. Indicator"},{"$f":"Planning!C15","v":"Pr74"},{"$f":"Planning!D15","v":3},{"$f":"Planning!E15","v":"[Pr74] # aged 10-24 yrs reached by HIV life skills ed. in school  Target [1. Standard]"},{"$f":"IF(Planning!G15<>0,Planning!G15,\"\")","v":""},{"$f":"Planning!H15","v":0},{"$f":"Planning!AJ15","v":0},{"$f":"IF(OR(W31=\"1\",AND(W31<>\"1\",G31=Lists!$A$17)),Y31,0)","v":30},{"$f":"R31","v":0},{"$f":"IF(AND(W31=\"2\",G31<>Lists!$A$17),AA31,Z31)","v":{"v":0,"d":"0.00%"}},0,{"$f":"Planning!AK15","v":{"v":0,"d":"0.00"}},{"$f":"'Month 9'!M31+'Month 9'!N31-'Month 9'!O31","v":{"v":6250,"d":"6,250.00"}},{"$f":"S31","v":{"v":0,"d":"0.00"}},{"v":0,"d":"0.00%"},0,{"$f":"SUMIFS($J$25:$J$224,$C$25:$C$224,$C31,$G$25:$G$224,Lists!$A$16)","v":0},0,null,"1",null,{"$f":"IF(C31=0,\"\",LEFT(INDEX(Lists!$H$5:$H$49,MATCH(C31,Lists!$G$5:$G$49,0),1),1))","v":"1"},null,{"$f":"'Month 9'!H31+'Month 9'!I31-'Month 9'!J31","v":30},0,0,null,"1Pr74"]
[{"$f":"Planning!A16","v":"I008"},{"$f":"Planning!B16","v":"2. Activity: Contributing"},{"$f":"Planning!C16","v":"Pr74"},{"$f":"Planning!D16","v":3.1},{"$f":"Planning!E16","v":"Transportation of students to meetings and conferences for peer education activities"},{"$f":"IF(Planning!G16<>0,Planning!G16,\"\")","v":"2. Travel related costs"},{"$f":"Planning!H16","v":"1. YES"},{"$f":"Planning!AJ16","v":0},{"$f":"IF(OR(W32=\"1\",AND(W32<>\"1\",G32=Lists!$A$17)),Y32,0)","v":30},0,{"$f":"IF(AND(W32=\"2\",G32<>Lists!$A$17),AA32,Z32)","v":{"v":0,"d":"0.00%"}},"",{"$f":"Planning!AK16","v":{"v":0,"d":"0.00"}},{"$f":"'Month 9'!M32+'Month 9'!N32-'Month 9'!O32","v":{"v":6250,"d":"6,250.00"}},{"v":0,"d":"0.00"},{"v":0,"d":"0.00%"},"",{"$f":"SUMIFS($J$25:$J$224,$C$25:$C$224,$C32,$G$25:$G$224,Lists!$A$16)","v":0},0,null,"2",null,{"$f":"IF(C32=0,\"\",LEFT(INDEX(Lists!$H$5:$H$49,MATCH(C32,Lists!$G$5:$G$49,0),1),1))","v":"1"},null,{"$f":"'Month 9'!H32+'Month 9'!I32-'Month 9'!J32","v":30},0,0,null,"2Pr74"]
[{"$f":"Planning!A17","v":"I009"},{"$f":"Planning!B17","v":"1. Indicator"},{"$f":"Planning!C17","v":"OI01"},{"$f":"Planning!D17","v":4},{"$f":"Planning!E17","v":"[OI01] # of new orphans and vulnerable children (0 - 17 yrs) benefiting from  services provided at OVC centers [1. Standard]"},{"$f":"IF(Planning!G17<>0,Planning!G17,\"\")","v":""},{"$f":"Planning!H17","v":0},{"$f":"Planning!AJ17","v":0},{"$f":"IF(OR(W33=\"1\",AND(W33<>\"1\",G33=Lists!$A$17)),Y33,0)","v":0},{"$f":"R33","v":0},{"$f":"IF(AND(W33=\"2\",G33<>Lists!$A$17),AA33,Z33)","v":""},"",{"$f":"Planning!AK17","v":{"v":0,"d":"0.00"}},{"$f":"'Month 9'!M33+'Month 9'!N33-'Month 9'!O33","v":{"v":1000,"d":"1,000.00"}},{"$f":"S33","v":{"v":0,"d":"0.00"}},{"v":0,"d":"0.00%"},0,{"$f":"SUMIFS($J$25:$J$224,$C$25:$C$224,$C33,$G$25:$G$224,Lists!$A$16)","v":0},0,null,"1",null,{"$f":"IF(C33=0,\"\",LEFT(INDEX(Lists!$H$5:$H$49,MATCH(C33,Lists!$G$5:$G$49,0),1),1))","v":"1"},null,{"$f":"'Month 9'!H33+'Month 9'!I33-'Month 9'!J33","v":0},"","",null,"1OI01"]
[{"$f":"Planning!A18","v":"I010"},{"$f":"Planning!B18","v":"3. Activity: Non-Contributing"},{"$f":"Planning!C18","v":"OI01"},{"$f":"Planning!D18","v":4.1},{"$f":"Planning!E18","v":"# of OVC centers established and fully equipped  "},{"$f":"IF(Planning!G18<>0,Planning!G18,\"\")","v":"8. Infrastructure "},{"$f":"Planning!H18","v":"2. NO"},{"$f":"Planning!AJ18","v":0},{"$f":"IF(OR(W34=\"1\",AND(W34<>\"1\",G34=Lists!$A$17)),Y34,0)","v":0},0,{"$f":"IF(AND(W34=\"2\",G34<>Lists!$A$17),AA34,Z34)","v":""},"",{"$f":"Planning!AK18","v":{"v":0,"d":"0.00"}},{"$f":"'Month 9'!M34+'Month 9'!N34-'Month 9'!O34","v":{"v":0,"d":"0.00"}},{"v":0,"d":"0.00"},"","",{"$f":"SUMIFS($J$25:$J$224,$C$25:$C$224,$C34,$G$25:$G$224,Lists!$A$16)","v":0},0,null,"2",null,{"$f":"IF(C34=0,\"\",LEFT(INDEX(Lists!$H$5:$H$49,MATCH(C34,Lists!$G$5:$G$49,0),1),1))","v":"1"},null,{"$f":"'Month 9'!H34+'Month 9'!I34-'Month 9'!J34","v":0},"","",null,"2OI01"]
[{"$f":"Planning!A19","v":"I011"},{"$f":"Planning!B19","v":"2. Activity: Contributing"},{"$f":"Planning!C19","v":"OI01"},{"$f":"Planning!D19","v":4.2},{"$f":"Planning!E19","v":"# of OVC registered at centres"},{"$f":"IF(Planning!G19<>0,Planning!G19,\"\")","v":"12. Living support to client/ target population "},{"$f":"Planning!H19","v":"1. YES"},{"$f":"Planning!AJ19","v":0},{"$f":"IF(OR(W35=\"1\",AND(W35<>\"1\",G35=Lists!$A$17)),Y35,0)","v":0},0,{"$f":"IF(AND(W35=\"2\",G35<>Lists!$A$17),AA35,Z35)","v":""},"",{"$f":"Planning!AK19","v":{"v":0,"d":"0.00"}},{"$f":"'Month 9'!M35+'Month 9'!N35-'Month 9'!O35","v":{"v":0,"d":"0.00"}},{"v":0,"d":"0.00"},"","",{"$f":"SUMIFS($J$25:$J$224,$C$25:$C$224,$C35,$G$25:$G$224,Lists!$A$16)","v":0},0,null,"2",null,{"$f":"IF(C35=0,\"\",LEFT(INDEX(Lists!$H$5:$H$49,MATCH(C35,Lists!$G$5:$G$49,0),1),1))","v":"1"},null,{"$f":"'Month 9'!H35+'Month 9'!I35-'Month 9'!J35","v":0},"","",null,"2OI01"]
[{"$f":"Planning!A20","v":"I012"},{"$f":"Planning!B20","v":"3. Activity: Non-Contributing"},{"$f":"Planning!C20","v":"OI01"},{"$f":"Planning!D20","v":4.3},{"$f":"Planning!E20","v":"# of meals provided at the OVC centers "},{"$f":"IF(Planning!G20<>0,Planning!G20,\"\")","v":"12. Living support to client/ target population "},{"$f":"Planning!H20","v":"2. NO"},{"$f":"Planning!AJ20","v":0},{"$f":"IF(OR(W36=\"1\",AND(W36<>\"1\",G36=Lists!$A$17)),Y36,0)","v":100},0,{"$f":"IF(AND(W36=\"2\",G36<>Lists!$A$17),AA36,Z36)","v":{"v":0,"d":"0.00%"}},"",{"$f":"Planning!AK20","v":{"v":0,"d":"0.00"}},{"$f":"'Month 9'!M36+'Month 9'!N36-'Month 9'!O36","v":{"v":1000,"d":"1,000.00"}},{"v":0,"d":"0.00"},{"v":0,"d":"0.00%"},"",{"$f":"SUMIFS($J$25:$J$224,$C$25:$C$224,$C36,$G$25:$G$224,Lists!$A$16)","v":0},0,null,"2",null,{"$f":"IF(C36=0,\"\",LEFT(INDEX(Lists!$H$5:$H$49,MATCH(C36,Lists!$G$5:$G$49,0),1),1))","v":"1"},null,{"$f":"'Month 9'!H36+'Month 9'!I36-'Month 9'!J36","v":100},0,0,null,"2OI01"]
[{"$f":"Planning!A21","v":"I013"},{"$f":"Planning!B21","v":0},{"$f":"Planning!C21","v":0},{"$f":"Planning!D21","v":0},{"$f":"Planning!E21","v":0},{"$f":"IF(Planning!G21<>0,Planning!G21,\"\")","v":""},{"$f":"Planning!H21","v":0},{"$f":"Planning!AJ21","v":0},{"$f":"IF(OR(W37=\"1\",AND(W37<>\"1\",G37=Lists!$A$17)),Y37,0)","v":0},null,{"$f":"IF(AND(W37=\"2\",G37<>Lists!$A$17),AA37,Z37)","v":""},"",{"$f":"Planning!AK21","v":{"v":0,"d":"0.00"}},{"$f":"'Month 9'!M37+'Month 9'!N37-'Month 9'!O37","v":{"v":0,"d":"0.00"}},null,"","",{"$f":"SUMIFS($J$25:$J$224,$C$25:$C$224,$C37,$G$25:$G$224,Lists!$A$16)","v":0},0,null,"",null,{"$f":"IF(C37=0,\"\",LEFT(INDEX(Lists!$H$5:$H$49,MATCH(C37,Lists!$G$5:$G$49,0),1),1))","v":""},null,{"$f":"'Month 9'!H37+'Month 9'!I37-'Month 9'!J37","v":0},"","",null,"0"]
[{"$f":"Planning!A22","v":"I014"},{"$f":"Planning!B22","v":0},{"$f":"Planning!C22","v":0},{"$f":"Planning!D22","v":0},{"$f":"Planning!E22","v":0},{"$f":"IF(Planning!G22<>0,Planning!G22,\"\")","v":""},{"$f":"Planning!H22","v":0},{"$f":"Planning!AJ22","v":0},{"$f":"IF(OR(W38=\"1\",AND(W38<>\"1\",G38=Lists!$A$17)),Y38,0)","v":0},null,{"$f":"IF(AND(W38=\"2\",G38<>Lists!$A$17),AA38,Z38)","v":""},"",{"$f":"Planning!AK22","v":{"v":0,"d":"0.00"}},{"$f":"'Month 9'!M38+'Month 9'!N38-'Month 9'!O38","v":{"v":0,"d":"0.00"}},null,"","",{"$f":"SUMIFS($J$25:$J$224,$C$25:$C$224,$C38,$G$25:$G$224,Lists!$A$16)","v":0},0,null,"",null,{"$f":"IF(C38=0,\"\",LEFT(INDEX(Lists!$H$5:$H$49,MATCH(C38,Lists!$G$5:$G$49,0),1),1))","v":""},null,{"$f":"'Month 9'!H38+'Month 9'!I38-'Month 9'!J38","v":0},"","",null,"0"]
[{"$f":"Planning!A23","v":"I015"},{"$f":"Planning!B23","v":0},{"$f":"Planning!C23","v":0},{"$f":"Planning!D23","v":0},{"$f":"Planning!E23","v":0},{"$f":"IF(Planning!G23<>0,Planning!G23,\"\")","v":""},{"$f":"Planning!H23","v":0},{"$f":"Planning!AJ23","v":0},{"$f":"IF(OR(W39=\"1\",AND(W39<>\"1\",G39=Lists!$A$17)),Y39,0)","v":0},null,{"$f":"IF(AND(W39=\"2\",G39<>Lists!$A$17),AA39,Z39)","v":""},"",{"$f":"Planning!AK23","v":{"v":0,"d":"0.00"}},{"$f":"'Month 9'!M39+'Month 9'!N39-'Month 9'!O39","v":{"v":0,"d":"0.00"}},null,"","",{"$f":"SUMIFS($J$25:$J$224,$C$25:$C$224,$C39,$G$25:$G$224,Lists!$A$16)","v":0},0,null,"",null,{"$f":"IF(C39=0,\"\",LEFT(INDEX(Lists!$H$5:$H$49,MATCH(C39,Lists!$G$5:$G$49,0),1),1))","v":""},null,{"$f":"'Month 9'!H39+'Month 9'!I39-'Month 9'!J39","v":0},"","",null,"0"]
[{"$f":"Planning!A24","v":"I016"},{"$f":"Planning!B24","v":0},{"$f":"Planning!C24","v":0},{"$f":"Planning!D24","v":0},{"$f":"Planning!E24","v":0},{"$f":"IF(Planning!G24<>0,Planning!G24,\"\")","v":""},{"$f":"Planning!H24","v":0},{"$f":"Planning!AJ24","v":0},{"$f":"IF(OR(W40=\"1\",AND(W40<>\"1\",G40=Lists!$A$17)),Y40,0)","v":0},null,{"$f":"IF(AND(W40=\"2\",G40<>Lists!$A$17),AA40,Z40)","v":""},"",{"$f":"Planning!AK24","v":{"v":0,"d":"0.00"}},{"$f":"'Month 9'!M40+'Month 9'!N40-'Month 9'!O40","v":{"v":0,"d":"0.00"}},null,"","",{"$f":"SUMIFS($J$25:$J$224,$C$25:$C$224,$C40,$G$25:$G$224,Lists!$A$16)","v":0},0,null,"",null,{"$f":"IF(C40=0,\"\",LEFT(INDEX(Lists!$H$5:$H$49,MATCH(C40,Lists!$G$5:$G$49,0),1),1))","v":""},null,{"$f":"'Month 9'!H40+'Month 9'!I40-'Month 9'!J40","v":0},"","",null,"0"]
[{"$f":"Planning!A25","v":"I017"},{"$f":"Planning!B25","v":0},{"$f":"Planning!C25","v":0},{"$f":"Planning!D25","v":0},{"$f":"Planning!E25","v":0},{"$f":"IF(Planning!G25<>0,Planning!G25,\"\")","v":""},{"$f":"Planning!H25","v":0},{"$f":"Planning!AJ25","v":0},{"$f":"IF(OR(W41=\"1\",AND(W41<>\"1\",G41=Lists!$A$17)),Y41,0)","v":0},null,{"$f":"IF(AND(W41=\"2\",G41<>Lists!$A$17),AA41,Z41)","v":""},"",{"$f":"Planning!AK25","v":{"v":0,"d":"0.00"}},{"$f":"'Month 9'!M41+'Month 9'!N41-'Month 9'!O41","v":{"v":0,"d":"0.00"}},null,"","",{"$f":"SUMIFS($J$25:$J$224,$C$25:$C$224,$C41,$G$25:$G$224,Lists!$A$16)","v":0},0,null,"",null,{"$f":"IF(C41=0,\"\",LEFT(INDEX(Lists!$H$5:$H$49,MATCH(C41,Lists!$G$5:$G$49,0),1),1))","v":""},null,{"$f":"'Month 9'!H41+'Month 9'!I41-'Month 9'!J41","v":0},"","",null,"0"]
[{"$f":"Planning!A26","v":"I018"},{"$f":"Planning!B26","v":0},{"$f":"Planning!C26","v":0},{"$f":"Planning!D26","v":0},{"$f":"Planning!E26","v":0},{"$f":"IF(Planning!G26<>0,Planning!G26,\"\")","v":""},{"$f":"Planning!H26","v":0},{"$f":"Planning!AJ26","v":0},{"$f":"IF(OR(W42=\"1\",AND(W42<>\"1\",G42=Lists!$A$17)),Y42,0)","v":0},null,{"$f":"IF(AND(W42=\"2\",G42<>Lists!$A$17),AA42,Z42)","v":""},"",{"$f":"Planning!AK26","v":{"v":0,"d":"0.00"}},{"$f":"'Month 9'!M42+'Month 9'!N42-'Month 9'!O42","v":{"v":0,"d":"0.00"}},null,"","",{"$f":"SUMIFS($J$25:$J$224,$C$25:$C$224,$C42,$G$25:$G$224,Lists!$A$16)","v":0},0,null,"",null,{"$f":"IF(C42=0,\"\",LEFT(INDEX(Lists!$H$5:$H$49,MATCH(C42,Lists!$G$5:$G$49,0),1),1))","v":""},null,{"$f":"'Month 9'!H42+'Month 9'!I42-'Month 9'!J42","v":0},"","",null,"0"]
[{"$f":"Planning!A27","v":"I019"},{"$f":"Planning!B27","v":0},{"$f":"Planning!C27","v":0},{"$f":"Planning!D27","v":0},{"$f":"Planning!E27","v":0},{"$f":"IF(Planning!G27<>0,Planning!G27,\"\")","v":""},{"$f":"Planning!H27","v":0},{"$f":"Planning!AJ27","v":0},{"$f":"IF(OR(W43=\"1\",AND(W43<>\"1\",G43=Lists!$A$17)),Y43,0)","v":0},null,{"$f":"IF(AND(W43=\"2\",G43<>Lists!$A$17),AA43,Z43)","v":""},"",{"$f":"Planning!AK27","v":{"v":0,"d":"0.00"}},{"$f":"'Month 9'!M43+'Month 9'!N43-'Month 9'!O43","v":{"v":0,"d":"0.00"}},null,"","",{"$f":"SUMIFS($J$25:$J$224,$C$25:$C$224,$C43,$G$25:$G$224,Lists!$A$16)","v":0},0,null,"",null,{"$f":"IF(C43=0,\"\",LEFT(INDEX(Lists!$H$5:$H$49,MATCH(C43,Lists!$G$5:$G$49,0),1),1))","v":""},null,{"$f":"'Month 9'!H43+'Month 9'!I43-'Month 9'!J43","v":0},"","",null,"0"]
[{"$f":"Planning!A28","v":"I020"},{"$f":"Planning!B28","v":0},{"$f":"Planning!C28","v":0},{"$f":"Planning!D28","v":0},{"$f":"Planning!E28","v":0},{"$f":"IF(Planning!G28<>0,Planning!G28,\"\")","v":""},{"$f":"Planning!H28","v":0},{"$f":"Planning!AJ28","v":0},{"$f":"IF(OR(W44=\"1\",AND(W44<>\"1\",G44=Lists!$A$17)),Y44,0)","v":0},null,{"$f":"IF(AND(W44=\"2\",G44<>Lists!$A$17),AA44,Z44)","v":""},"",{"$f":"Planning!AK28","v":{"v":0,"d":"0.00"}},{"$f":"'Month 9'!M44+'Month 9'!N44-'Month 9'!O44","v":{"v":0,"d":"0.00"}},null,"","",{"$f":"SUMIFS($J$25:$J$224,$C$25:$C$224,$C44,$G$25:$G$224,Lists!$A$16)","v":0},0,null,"",null,{"$f":"IF(C44=0,\"\",LEFT(INDEX(Lists!$H$5:$H$49,MATCH(C44,Lists!$G$5:$G$49,0),1),1))","v":""},null,{"$f":"'Month 9'!H44+'Month 9'!I44-'Month 9'!J44","v":0},"","",null,"0"]
[{"$f":"Planning!A29","v":"I021"},{"$f":"Planning!B29","v":0},{"$f":"Planning!C29","v":0},{"$f":"Planning!D29","v":0},{"$f":"Planning!E29","v":0},{"$f":"IF(Planning!G29<>0,Planning!G29,\"\")","v":""},{"$f":"Planning!H29","v":0},{"$f":"Planning!AJ29","v":0},{"$f":"IF(OR(W45=\"1\",AND(W45<>\"1\",G45=Lists!$A$17)),Y45,0)","v":0},null,{"$f":"IF(AND(W45=\"2\",G45<>Lists!$A$17),AA45,Z45)","v":""},"",{"$f":"Planning!AK29","v":{"v":0,"d":"0.00"}},{"$f":"'Month 9'!M45+'Month 9'!N45-'Month 9'!O45","v":{"v":0,"d":"0.00"}},null,"","",{"$f":"SUMIFS($J$25:$J$224,$C$25:$C$224,$C45,$G$25:$G$224,Lists!$A$16)","v":0},0,null,"",null,{"$f":"IF(C45=0,\"\",LEFT(INDEX(Lists!$H$5:$H$49,MATCH(C45,Lists!$G$5:$G$49,0),1),1))","v":""},null,{"$f":"'Month 9'!H45+'Month 9'!I45-'Month 9'!J45","v":0},"","",null,"0"]
[{"$f":"Planning!A30","v":"I022"},{"$f":"Planning!B30","v":0},{"$f":"Planning!C30","v":0},{"$f":"Planning!D30","v":0},{"$f":"Planning!E30","v":0},{"$f":"IF(Planning!G30<>0,Planning!G30,\"\")","v":""},{"$f":"Planning!H30","v":0},{"$f":"Planning!AJ30","v":0},{"$f":"IF(OR(W46=\"1\",AND(W46<>\"1\",G46=Lists!$A$17)),Y46,0)","v":0},null,{"$f":"IF(AND(W46=\"2\",G46<>Lists!$A$17),AA46,Z46)","v":""},"",{"$f":"Planning!AK30","v":{"v":0,"d":"0.00"}},{"$f":"'Month 9'!M46+'Month 9'!N46-'Month 9'!O46","v":{"v":0,"d":"0.00"}},null,"","",{"$f":"SUMIFS($J$25:$J$224,$C$25:$C$224,$C46,$G$25:$G$224,Lists!$A$16)","v":0},0,null,"",null,{"$f":"IF(C46=0,\"\",LEFT(INDEX(Lists!$H$5:$H$49,MATCH(C46,Lists!$G$5:$G$49,0),1),1))","v":""},null,{"$f":"'Month 9'!H46+'Month 9'!I46-'Month 9'!J46","v":0},"","",null,"0"]
[{"$f":"Planning!A31","v":"I023"},{"$f":"Planning!B31","v":0},{"$f":"Planning!C31","v":0},{"$f":"Planning!D31","v":0},{"$f":"Planning!E31","v":0},{"$f":"IF(Planning!G31<>0,Planning!G31,\"\")","v":""},{"$f":"Planning!H31","v":0},{"$f":"Planning!AJ31","v":0},{"$f":"IF(OR(W47=\"1\",AND(W47<>\"1\",G47=Lists!$A$17)),Y47,0)","v":0},null,{"$f":"IF(AND(W47=\"2\",G47<>Lists!$A$17),AA47,Z47)","v":""},"",{"$f":"Planning!AK31","v":{"v":0,"d":"0.00"}},{"$f":"'Month 9'!M47+'Month 9'!N47-'Month 9'!O47","v":{"v":0,"d":"0.00"}},null,"","",{"$f":"SUMIFS($J$25:$J$224,$C$25:$C$224,$C47,$G$25:$G$224,Lists!$A$16)","v":0},0,null,"",null,{"$f":"IF(C47=0,\"\",LEFT(INDEX(Lists!$H$5:$H$49,MATCH(C47,Lists!$G$5:$G$49,0),1),1))","v":""},null,{"$f":"'Month 9'!H47+'Month 9'!I47-'Month 9'!J47","v":0},"","",null,"0"]
[{"$f":"Planning!A32","v":"I024"},{"$f":"Planning!B32","v":0},{"$f":"Planning!C32","v":0},{"$f":"Planning!D32","v":0},{"$f":"Planning!E32","v":0},{"$f":"IF(Planning!G32<>0,Planning!G32,\"\")","v":""},{"$f":"Planning!H32","v":0},{"$f":"Planning!AJ32","v":0},{"$f":"IF(OR(W48=\"1\",AND(W48<>\"1\",G48=Lists!$A$17)),Y48,0)","v":0},null,{"$f":"IF(AND(W48=\"2\",G48<>Lists!$A$17),AA48,Z48)","v":""},"",{"$f":"Planning!AK32","v":{"v":0,"d":"0.00"}},{"$f":"'Month 9'!M48+'Month 9'!N48-'Month 9'!O48","v":{"v":0,"d":"0.00"}},null,"","",{"$f":"SUMIFS($J$25:$J$224,$C$25:$C$224,$C48,$G$25:$G$224,Lists!$A$16)","v":0},0,null,"",null,{"$f":"IF(C48=0,\"\",LEFT(INDEX(Lists!$H$5:$H$49,MATCH(C48,Lists!$G$5:$G$49,0),1),1))","v":""},null,{"$f":"'Month 9'!H48+'Month 9'!I48-'Month 9'!J48","v":0},"","",null,"0"]
[{"$f":"Planning!A33","v":"I025"},{"$f":"Planning!B33","v":0},{"$f":"Planning!C33","v":0},{"$f":"Planning!D33","v":0},{"$f":"Planning!E33","v":0},{"$f":"IF(Planning!G33<>0,Planning!G33,\"\")","v":""},{"$f":"Planning!H33","v":0},{"$f":"Planning!AJ33","v":0},{"$f":"IF(OR(W49=\"1\",AND(W49<>\"1\",G49=Lists!$A$17)),Y49,0)","v":0},null,{"$f":"IF(AND(W49=\"2\",G49<>Lists!$A$17),AA49,Z49)","v":""},"",{"$f":"Planning!AK33","v":{"v":0,"d":"0.00"}},{"$f":"'Month 9'!M49+'Month 9'!N49-'Month 9'!O49","v":{"v":0,"d":"0.00"}},null,"","",{"$f":"SUMIFS($J$25:$J$224,$C$25:$C$224,$C49,$G$25:$G$224,Lists!$A$16)","v":0},0,null,"",null,{"$f":"IF(C49=0,\"\",LEFT(INDEX(Lists!$H$5:$H$49,MATCH(C49,Lists!$G$5:$G$49,0),1),1))","v":""},null,{"$f":"'Month 9'!H49+'Month 9'!I49-'Month 9'!J49","v":0},"","",null,"0"]
[{"$f":"Planning!A34","v":"I026"},{"$f":"Planning!B34","v":0},{"$f":"Planning!C34","v":0},{"$f":"Planning!D34","v":0},{"$f":"Planning!E34","v":0},{"$f":"IF(Planning!G34<>0,Planning!G34,\"\")","v":""},{"$f":"Planning!H34","v":0},{"$f":"Planning!AJ34","v":0},{"$f":"IF(OR(W50=\"1\",AND(W50<>\"1\",G50=Lists!$A$17)),Y50,0)","v":0},null,{"$f":"IF(AND(W50=\"2\",G50<>Lists!$A$17),AA50,Z50)","v":""},"",{"$f":"Planning!AK34","v":{"v":0,"d":"0.00"}},{"$f":"'Month 9'!M50+'Month 9'!N50-'Month 9'!O50","v":{"v":0,"d":"0.00"}},null,"","",{"$f":"SUMIFS($J$25:$J$224,$C$25:$C$224,$C50,$G$25:$G$224,Lists!$A$16)","v":0},0,null,"",null,{"$f":"IF(C50=0,\"\",LEFT(INDEX(Lists!$H$5:$H$49,MATCH(C50,Lists!$G$5:$G$49,0),1),1))","v":""},null,{"$f":"'Month 9'!H50+'Month 9'!I50-'Month 9'!J50","v":0},"","",null,"0"]
[{"$f":"Planning!A35","v":"I027"},{"$f":"Planning!B35","v":0},{"$f":"Planning!C35","v":0},{"$f":"Planning!D35","v":0},{"$f":"Planning!E35","v":0},{"$f":"IF(Planning!G35<>0,Planning!G35,\"\")","v":""},{"$f":"Planning!H35","v":0},{"$f":"Planning!AJ35","v":0},{"$f":"IF(OR(W51=\"1\",AND(W51<>\"1\",G51=Lists!$A$17)),Y51,0)","v":0},null,{"$f":"IF(AND(W51=\"2\",G51<>Lists!$A$17),AA51,Z51)","v":""},"",{"$f":"Planning!AK35","v":{"v":0,"d":"0.00"}},{"$f":"'Month 9'!M51+'Month 9'!N51-'Month 9'!O51","v":{"v":0,"d":"0.00"}},null,"","",{"$f":"SUMIFS($J$25:$J$224,$C$25:$C$224,$C51,$G$25:$G$224,Lists!$A$16)","v":0},0,null,"",null,{"$f":"IF(C51=0,\"\",LEFT(INDEX(Lists!$H$5:$H$49,MATCH(C51,Lists!$G$5:$G$49,0),1),1))","v":""},null,{"$f":"'Month 9'!H51+'Month 9'!I51-'Month 9'!J51","v":0},"","",null,"0"]
[{"$f":"Planning!A36","v":"I028"},{"$f":"Planning!B36","v":0},{"$f":"Planning!C36","v":0},{"$f":"Planning!D36","v":0},{"$f":"Planning!E36","v":0},{"$f":"IF(Planning!G36<>0,Planning!G36,\"\")","v":""},{"$f":"Planning!H36","v":0},{"$f":"Planning!AJ36","v":0},{"$f":"IF(OR(W52=\"1\",AND(W52<>\"1\",G52=Lists!$A$17)),Y52,0)","v":0},null,{"$f":"IF(AND(W52=\"2\",G52<>Lists!$A$17),AA52,Z52)","v":""},"",{"$f":"Planning!AK36","v":{"v":0,"d":"0.00"}},{"$f":"'Month 9'!M52+'Month 9'!N52-'Month 9'!O52","v":{"v":0,"d":"0.00"}},null,"","",{"$f":"SUMIFS($J$25:$J$224,$C$25:$C$224,$C52,$G$25:$G$224,Lists!$A$16)","v":0},0,null,"",null,{"$f":"IF(C52=0,\"\",LEFT(INDEX(Lists!$H$5:$H$49,MATCH(C52,Lists!$G$5:$G$49,0),1),1))","v":""},null,{"$f":"'Month 9'!H52+'Month 9'!I52-'Month 9'!J52","v":0},"","",null,"0"]
[{"$f":"Planning!A37","v":"I029"},{"$f":"Planning!B37","v":0},{"$f":"Planning!C37","v":0},{"$f":"Planning!D37","v":0},{"$f":"Planning!E37","v":0},{"$f":"IF(Planning!G37<>0,Planning!G37,\"\")","v":""},{"$f":"Planning!H37","v":0},{"$f":"Planning!AJ37","v":0},{"$f":"IF(OR(W53=\"1\",AND(W53<>\"1\",G53=Lists!$A$17)),Y53,0)","v":0},null,{"$f":"IF(AND(W53=\"2\",G53<>Lists!$A$17),AA53,Z53)","v":""},"",{"$f":"Planning!AK37","v":{"v":0,"d":"0.00"}},{"$f":"'Month 9'!M53+'Month 9'!N53-'Month 9'!O53","v":{"v":0,"d":"0.00"}},null,"","",{"$f":"SUMIFS($J$25:$J$224,$C$25:$C$224,$C53,$G$25:$G$224,Lists!$A$16)","v":0},0,null,"",null,{"$f":"IF(C53=0,\"\",LEFT(INDEX(Lists!$H$5:$H$49,MATCH(C53,Lists!$G$5:$G$49,0),1),1))","v":""},null,{"$f":"'Month 9'!H53+'Month 9'!I53-'Month 9'!J53","v":0},"","",null,"0"]
[{"$f":"Planning!A38","v":"I030"},{"$f":"Planning!B38","v":0},{"$f":"Planning!C38","v":0},{"$f":"Planning!D38","v":0},{"$f":"Planning!E38","v":0},{"$f":"IF(Planning!G38<>0,Planning!G38,\"\")","v":""},{"$f":"Planning!H38","v":0},{"$f":"Planning!AJ38","v":0},{"$f":"IF(OR(W54=\"1\",AND(W54<>\"1\",G54=Lists!$A$17)),Y54,0)","v":0},null,{"$f":"IF(AND(W54=\"2\",G54<>Lists!$A$17),AA54,Z54)","v":""},"",{"$f":"Planning!AK38","v":{"v":0,"d":"0.00"}},{"$f":"'Month 9'!M54+'Month 9'!N54-'Month 9'!O54","v":{"v":0,"d":"0.00"}},null,"","",{"$f":"SUMIFS($J$25:$J$224,$C$25:$C$224,$C54,$G$25:$G$224,Lists!$A$16)","v":0},0,null,"",null,{"$f":"IF(C54=0,\"\",LEFT(INDEX(Lists!$H$5:$H$49,MATCH(C54,Lists!$G$5:$G$49,0),1),1))","v":""},null,{"$f":"'Month 9'!H54+'Month 9'!I54-'Month 9'!J54","v":0},"","",null,"0"]
[{"$f":"Planning!A39","v":"I031"},{"$f":"Planning!B39","v":0},{"$f":"Planning!C39","v":0},{"$f":"Planning!D39","v":0},{"$f":"Planning!E39","v":0},{"$f":"IF(Planning!G39<>0,Planning!G39,\"\")","v":""},{"$f":"Planning!H39","v":0},{"$f":"Planning!AJ39","v":0},{"$f":"IF(OR(W55=\"1\",AND(W55<>\"1\",G55=Lists!$A$17)),Y55,0)","v":0},null,{"$f":"IF(AND(W55=\"2\",G55<>Lists!$A$17),AA55,Z55)","v":""},"",{"$f":"Planning!AK39","v":{"v":0,"d":"0.00"}},{"$f":"'Month 9'!M55+'Month 9'!N55-'Month 9'!O55","v":{"v":0,"d":"0.00"}},null,"","",{"$f":"SUMIFS($J$25:$J$224,$C$25:$C$224,$C55,$G$25:$G$224,Lists!$A$16)","v":0},0,null,"",null,{"$f":"IF(C55=0,\"\",LEFT(INDEX(Lists!$H$5:$H$49,MATCH(C55,Lists!$G$5:$G$49,0),1),1))","v":""},null,{"$f":"'Month 9'!H55+'Month 9'!I55-'Month 9'!J55","v":0},"","",null,"0"]
[{"$f":"Planning!A40","v":"I032"},{"$f":"Planning!B40","v":0},{"$f":"Planning!C40","v":0},{"$f":"Planning!D40","v":0},{"$f":"Planning!E40","v":0},{"$f":"IF(Planning!G40<>0,Planning!G40,\"\")","v":""},{"$f":"Planning!H40","v":0},{"$f":"Planning!AJ40","v":0},{"$f":"IF(OR(W56=\"1\",AND(W56<>\"1\",G56=Lists!$A$17)),Y56,0)","v":0},null,{"$f":"IF(AND(W56=\"2\",G56<>Lists!$A$17),AA56,Z56)","v":""},"",{"$f":"Planning!AK40","v":{"v":0,"d":"0.00"}},{"$f":"'Month 9'!M56+'Month 9'!N56-'Month 9'!O56","v":{"v":0,"d":"0.00"}},null,"","",{"$f":"SUMIFS($J$25:$J$224,$C$25:$C$224,$C56,$G$25:$G$224,Lists!$A$16)","v":0},0,null,"",null,{"$f":"IF(C56=0,\"\",LEFT(INDEX(Lists!$H$5:$H$49,MATCH(C56,Lists!$G$5:$G$49,0),1),1))","v":""},null,{"$f":"'Month 9'!H56+'Month 9'!I56-'Month 9'!J56","v":0},"","",null,"0"]
[{"$f":"Planning!A41","v":"I033"},{"$f":"Planning!B41","v":0},{"$f":"Planning!C41","v":0},{"$f":"Planning!D41","v":0},{"$f":"Planning!E41","v":0},{"$f":"IF(Planning!G41<>0,Planning!G41,\"\")","v":""},{"$f":"Planning!H41","v":0},{"$f":"Planning!AJ41","v":0},{"$f":"IF(OR(W57=\"1\",AND(W57<>\"1\",G57=Lists!$A$17)),Y57,0)","v":0},null,{"$f":"IF(AND(W57=\"2\",G57<>Lists!$A$17),AA57,Z57)","v":""},{"$f":"IF($U57=ExcluirDelPLogro,\"\",IF(AND(H57=0,I57=0,J57=0),\"\",K57))","v":""},{"$f":"Planning!AK41","v":{"v":0,"d":"0.00"}},{"$f":"'Month 9'!M57+'Month 9'!N57-'Month 9'!O57","v":{"v":0,"d":"0.00"}},null,"",{"$f":"IF($U57=ExcluirDelPLogro,\"\",IF(AND(M57=0,N57=0,O57=0),\"\",P57))","v":""},{"$f":"SUMIFS($J$25:$J$224,$C$25:$C$224,$C57,$G$25:$G$224,Lists!$A$16)","v":0},0,null,"",null,{"$f":"IF(C57=0,\"\",LEFT(INDEX(Lists!$H$5:$H$49,MATCH(C57,Lists!$G$5:$G$49,0),1),1))","v":""},null,{"$f":"'Month 9'!H57+'Month 9'!I57-'Month 9'!J57","v":0},"",{"$f":"IF(AND(H57=0,I57=0,J57=0),\"\",IF(J57>0,H57/J57,0))","v":""},null,"0"]
[{"$f":"Planning!A42","v":"I034"},{"$f":"Planning!B42","v":0},{"$f":"Planning!C42","v":0},{"$f":"Planning!D42","v":0},{"$f":"Planning!E42","v":0},{"$f":"IF(Planning!G42<>0,Planning!G42,\"\")","v":""},{"$f":"Planning!H42","v":0},{"$f":"Planning!AJ42","v":0},{"$f":"IF(OR(W58=\"1\",AND(W58<>\"1\",G58=Lists!$A$17)),Y58,0)","v":0},null,{"$f":"IF(AND(W58=\"2\",G58<>Lists!$A$17),AA58,Z58)","v":""},"",{"$f":"Planning!AK42","v":{"v":0,"d":"0.00"}},{"$f":"'Month 9'!M58+'Month 9'!N58-'Month 9'!O58","v":{"v":0,"d":"0.00"}},null,"","",{"$f":"SUMIFS($J$25:$J$224,$C$25:$C$224,$C58,$G$25:$G$224,Lists!$A$16)","v":0},0,null,"",null,{"$f":"IF(C58=0,\"\",LEFT(INDEX(Lists!$H$5:$H$49,MATCH(C58,Lists!$G$5:$G$49,0),1),1))","v":""},null,{"$f":"'Month 9'!H58+'Month 9'!I58-'Month 9'!J58","v":0},"","",null,"0"]
[{"$f":"Planning!A43","v":"I035"},{"$f":"Planning!B43","v":0},{"$f":"Planning!C43","v":0},{"$f":"Planning!D43","v":0},{"$f":"Planning!E43","v":0},{"$f":"IF(Planning!G43<>0,Planning!G43,\"\")","v":""},{"$f":"Planning!H43","v":0},{"$f":"Planning!AJ43","v":0},{"$f":"IF(OR(W59=\"1\",AND(W59<>\"1\",G59=Lists!$A$17)),Y59,0)","v":0},null,{"$f":"IF(AND(W59=\"2\",G59<>Lists!$A$17),AA59,Z59)","v":""},"",{"$f":"Planning!AK43","v":{"v":0,"d":"0.00"}},{"$f":"'Month 9'!M59+'Month 9'!N59-'Month 9'!O59","v":{"v":0,"d":"0.00"}},null,"","",{"$f":"SUMIFS($J$25:$J$224,$C$25:$C$224,$C59,$G$25:$G$224,Lists!$A$16)","v":0},0,null,"",null,{"$f":"IF(C59=0,\"\",LEFT(INDEX(Lists!$H$5:$H$49,MATCH(C59,Lists!$G$5:$G$49,0),1),1))","v":""},null,{"$f":"'Month 9'!H59+'Month 9'!I59-'Month 9'!J59","v":0},"","",null,"0"]
[{"$f":"Planning!A44","v":"I036"},{"$f":"Planning!B44","v":0},{"$f":"Planning!C44","v":0},{"$f":"Planning!D44","v":0},{"$f":"Planning!E44","v":0},{"$f":"IF(Planning!G44<>0,Planning!G44,\"\")","v":""},{"$f":"Planning!H44","v":0},{"$f":"Planning!AJ44","v":0},{"$f":"IF(OR(W60=\"1\",AND(W60<>\"1\",G60=Lists!$A$17)),Y60,0)","v":0},null,{"$f":"IF(AND(W60=\"2\",G60<>Lists!$A$17),AA60,Z60)","v":""},"",{"$f":"Planning!AK44","v":{"v":0,"d":"0.00"}},{"$f":"'Month 9'!M60+'Month 9'!N60-'Month 9'!O60","v":{"v":0,"d":"0.00"}},null,"","",{"$f":"SUMIFS($J$25:$J$224,$C$25:$C$224,$C60,$G$25:$G$224,Lists!$A$16)","v":0},0,null,"",null,{"$f":"IF(C60=0,\"\",LEFT(INDEX(Lists!$H$5:$H$49,MATCH(C60,Lists!$G$5:$G$49,0),1),1))","v":""},null,{"$f":"'Month 9'!H60+'Month 9'!I60-'Month 9'!J60","v":0},"","",null,"0"]
[{"$f":"Planning!A45","v":"I037"},{"$f":"Planning!B45","v":0},{"$f":"Planning!C45","v":0},{"$f":"Planning!D45","v":0},{"$f":"Planning!E45","v":0},{"$f":"IF(Planning!G45<>0,Planning!G45,\"\")","v":""},{"$f":"Planning!H45","v":0},{"$f":"Planning!AJ45","v":0},{"$f":"IF(OR(W61=\"1\",AND(W61<>\"1\",G61=Lists!$A$17)),Y61,0)","v":0},null,{"$f":"IF(AND(W61=\"2\",G61<>Lists!$A$17),AA61,Z61)","v":""},"",{"$f":"Planning!AK45","v":{"v":0,"d":"0.00"}},{"$f":"'Month 9'!M61+'Month 9'!N61-'Month 9'!O61","v":{"v":0,"d":"0.00"}},null,"","",{"$f":"SUMIFS($J$25:$J$224,$C$25:$C$224,$C61,$G$25:$G$224,Lists!$A$16)","v":0},0,null,"",null,{"$f":"IF(C61=0,\"\",LEFT(INDEX(Lists!$H$5:$H$49,MATCH(C61,Lists!$G$5:$G$49,0),1),1))","v":""},null,{"$f":"'Month 9'!H61+'Month 9'!I61-'Month 9'!J61","v":0},"","",null,"0"]
[{"$f":"Planning!A46","v":"I038"},{"$f":"Planning!B46","v":0},{"$f":"Planning!C46","v":0},{"$f":"Planning!D46","v":0},{"$f":"Planning!E46","v":0},{"$f":"IF(Planning!G46<>0,Planning!G46,\"\")","v":""},{"$f":"Planning!H46","v":0},{"$f":"Planning!AJ46","v":0},{"$f":"IF(OR(W62=\"1\",AND(W62<>\"1\",G62=Lists!$A$17)),Y62,0)","v":0},null,{"$f":"IF(AND(W62=\"2\",G62<>Lists!$A$17),AA62,Z62)","v":""},"",{"$f":"Planning!AK46","v":{"v":0,"d":"0.00"}},{"$f":"'Month 9'!M62+'Month 9'!N62-'Month 9'!O62","v":{"v":0,"d":"0.00"}},null,"","",{"$f":"SUMIFS($J$25:$J$224,$C$25:$C$224,$C62,$G$25:$G$224,Lists!$A$16)","v":0},0,null,"",null,{"$f":"IF(C62=0,\"\",LEFT(INDEX(Lists!$H$5:$H$49,MATCH(C62,Lists!$G$5:$G$49,0),1),1))","v":""},null,{"$f":"'Month 9'!H62+'Month 9'!I62-'Month 9'!J62","v":0},"","",null,"0"]
[{"$f":"Planning!A47","v":"I039"},{"$f":"Planning!B47","v":0},{"$f":"Planning!C47","v":0},{"$f":"Planning!D47","v":0},{"$f":"Planning!E47","v":0},{"$f":"IF(Planning!G47<>0,Planning!G47,\"\")","v":""},{"$f":"Planning!H47","v":0},{"$f":"Planning!AJ47","v":0},{"$f":"IF(OR(W63=\"1\",AND(W63<>\"1\",G63=Lists!$A$17)),Y63,0)","v":0},null,{"$f":"IF(AND(W63=\"2\",G63<>Lists!$A$17),AA63,Z63)","v":""},"",{"$f":"Planning!AK47","v":{"v":0,"d":"0.00"}},{"$f":"'Month 9'!M63+'Month 9'!N63-'Month 9'!O63","v":{"v":0,"d":"0.00"}},null,"","",{"$f":"SUMIFS($J$25:$J$224,$C$25:$C$224,$C63,$G$25:$G$224,Lists!$A$16)","v":0},0,null,"",null,{"$f":"IF(C63=0,\"\",LEFT(INDEX(Lists!$H$5:$H$49,MATCH(C63,Lists!$G$5:$G$49,0),1),1))","v":""},null,{"$f":"'Month 9'!H63+'Month 9'!I63-'Month 9'!J63","v":0},"","",null,"0"]
[{"$f":"Planning!A48","v":"I040"},{"$f":"Planning!B48","v":0},{"$f":"Planning!C48","v":0},{"$f":"Planning!D48","v":0},{"$f":"Planning!E48","v":0},{"$f":"IF(Planning!G48<>0,Planning!G48,\"\")","v":""},{"$f":"Planning!H48","v":0},{"$f":"Planning!AJ48","v":0},{"$f":"IF(OR(W64=\"1\",AND(W64<>\"1\",G64=Lists!$A$17)),Y64,0)","v":0},null,{"$f":"IF(AND(W64=\"2\",G64<>Lists!$A$17),AA64,Z64)","v":""},"",{"$f":"Planning!AK48","v":{"v":0,"d":"0.00"}},{"$f":"'Month 9'!M64+'Month 9'!N64-'Month 9'!O64","v":{"v":0,"d":"0.00"}},null,"","",{"$f":"SUMIFS($J$25:$J$224,$C$25:$C$224,$C64,$G$25:$G$224,Lists!$A$16)","v":0},0,null,"",null,{"$f":"IF(C64=0,\"\",LEFT(INDEX(Lists!$H$5:$H$49,MATCH(C64,Lists!$G$5:$G$49,0),1),1))","v":""},null,{"$f":"'Month 9'!H64+'Month 9'!I64-'Month 9'!J64","v":0},"","",null,"0"]
[{"$f":"Planning!A49","v":"I041"},{"$f":"Planning!B49","v":0},{"$f":"Planning!C49","v":0},{"$f":"Planning!D49","v":0},{"$f":"Planning!E49","v":0},{"$f":"IF(Planning!G49<>0,Planning!G49,\"\")","v":""},{"$f":"Planning!H49","v":0},{"$f":"Planning!AJ49","v":0},{"$f":"IF(OR(W65=\"1\",AND(W65<>\"1\",G65=Lists!$A$17)),Y65,0)","v":0},null,{"$f":"IF(AND(W65=\"2\",G65<>Lists!$A$17),AA65,Z65)","v":""},"",{"$f":"Planning!AK49","v":{"v":0,"d":"0.00"}},{"$f":"'Month 9'!M65+'Month 9'!N65-'Month 9'!O65","v":{"v":0,"d":"0.00"}},null,"","",{"$f":"SUMIFS($J$25:$J$224,$C$25:$C$224,$C65,$G$25:$G$224,Lists!$A$16)","v":0},0,null,"",null,{"$f":"IF(C65=0,\"\",LEFT(INDEX(Lists!$H$5:$H$49,MATCH(C65,Lists!$G$5:$G$49,0),1),1))","v":""},null,{"$f":"'Month 9'!H65+'Month 9'!I65-'Month 9'!J65","v":0},"","",null,"0"]
[{"$f":"Planning!A50","v":"I042"},{"$f":"Planning!B50","v":0},{"$f":"Planning!C50","v":0},{"$f":"Planning!D50","v":0},{"$f":"Planning!E50","v":0},{"$f":"IF(Planning!G50<>0,Planning!G50,\"\")","v":""},{"$f":"Planning!H50","v":0},{"$f":"Planning!AJ50","v":0},{"$f":"IF(OR(W66=\"1\",AND(W66<>\"1\",G66=Lists!$A$17)),Y66,0)","v":0},null,{"$f":"IF(AND(W66=\"2\",G66<>Lists!$A$17),AA66,Z66)","v":""},"",{"$f":"Planning!AK50","v":{"v":0,"d":"0.00"}},{"$f":"'Month 9'!M66+'Month 9'!N66-'Month 9'!O66","v":{"v":0,"d":"0.00"}},null,"","",{"$f":"SUMIFS($J$25:$J$224,$C$25:$C$224,$C66,$G$25:$G$224,Lists!$A$16)","v":0},0,null,"",null,{"$f":"IF(C66=0,\"\",LEFT(INDEX(Lists!$H$5:$H$49,MATCH(C66,Lists!$G$5:$G$49,0),1),1))","v":""},null,{"$f":"'Month 9'!H66+'Month 9'!I66-'Month 9'!J66","v":0},"","",null,"0"]
[{"$f":"Planning!A51","v":"I043"},{"$f":"Planning!B51","v":0},{"$f":"Planning!C51","v":0},{"$f":"Planning!D51","v":0},{"$f":"Planning!E51","v":0},{"$f":"IF(Planning!G51<>0,Planning!G51,\"\")","v":""},{"$f":"Planning!H51","v":0},{"$f":"Planning!AJ51","v":0},{"$f":"IF(OR(W67=\"1\",AND(W67<>\"1\",G67=Lists!$A$17)),Y67,0)","v":0},null,{"$f":"IF(AND(W67=\"2\",G67<>Lists!$A$17),AA67,Z67)","v":""},"",{"$f":"Planning!AK51","v":{"v":0,"d":"0.00"}},{"$f":"'Month 9'!M67+'Month 9'!N67-'Month 9'!O67","v":{"v":0,"d":"0.00"}},null,"","",{"$f":"SUMIFS($J$25:$J$224,$C$25:$C$224,$C67,$G$25:$G$224,Lists!$A$16)","v":0},0,null,"",null,{"$f":"IF(C67=0,\"\",LEFT(INDEX(Lists!$H$5:$H$49,MATCH(C67,Lists!$G$5:$G$49,0),1),1))","v":""},null,{"$f":"'Month 9'!H67+'Month 9'!I67-'Month 9'!J67","v":0},"","",null,"0"]
[{"$f":"Planning!A52","v":"I044"},{"$f":"Planning!B52","v":0},{"$f":"Planning!C52","v":0},{"$f":"Planning!D52","v":0},{"$f":"Planning!E52","v":0},{"$f":"IF(Planning!G52<>0,Planning!G52,\"\")","v":""},{"$f":"Planning!H52","v":0},{"$f":"Planning!AJ52","v":0},{"$f":"IF(OR(W68=\"1\",AND(W68<>\"1\",G68=Lists!$A$17)),Y68,0)","v":0},null,{"$f":"IF(AND(W68=\"2\",G68<>Lists!$A$17),AA68,Z68)","v":""},"",{"$f":"Planning!AK52","v":{"v":0,"d":"0.00"}},{"$f":"'Month 9'!M68+'Month 9'!N68-'Month 9'!O68","v":{"v":0,"d":"0.00"}},null,"","",{"$f":"SUMIFS($J$25:$J$224,$C$25:$C$224,$C68,$G$25:$G$224,Lists!$A$16)","v":0},0,null,"",null,{"$f":"IF(C68=0,\"\",LEFT(INDEX(Lists!$H$5:$H$49,MATCH(C68,Lists!$G$5:$G$49,0),1),1))","v":""},null,{"$f":"'Month 9'!H68+'Month 9'!I68-'Month 9'!J68","v":0},"","",null,"0"]
[{"$f":"Planning!A53","v":"I045"},{"$f":"Planning!B53","v":0},{"$f":"Planning!C53","v":0},{"$f":"Planning!D53","v":0},{"$f":"Planning!E53","v":0},{"$f":"IF(Planning!G53<>0,Planning!G53,\"\")","v":""},{"$f":"Planning!H53","v":0},{"$f":"Planning!AJ53","v":0},{"$f":"IF(OR(W69=\"1\",AND(W69<>\"1\",G69=Lists!$A$17)),Y69,0)","v":0},null,{"$f":"IF(AND(W69=\"2\",G69<>Lists!$A$17),AA69,Z69)","v":""},"",{"$f":"Planning!AK53","v":{"v":0,"d":"0.00"}},{"$f":"'Month 9'!M69+'Month 9'!N69-'Month 9'!O69","v":{"v":0,"d":"0.00"}},null,"","",{"$f":"SUMIFS($J$25:$J$224,$C$25:$C$224,$C69,$G$25:$G$224,Lists!$A$16)","v":0},0,null,"",null,{"$f":"IF(C69=0,\"\",LEFT(INDEX(Lists!$H$5:$H$49,MATCH(C69,Lists!$G$5:$G$49,0),1),1))","v":""},null,{"$f":"'Month 9'!H69+'Month 9'!I69-'Month 9'!J69","v":0},"","",null,"0"]
[{"$f":"Planning!A54","v":"I046"},{"$f":"Planning!B54","v":0},{"$f":"Planning!C54","v":0},{"$f":"Planning!D54","v":0},{"$f":"Planning!E54","v":0},{"$f":"IF(Planning!G54<>0,Planning!G54,\"\")","v":""},{"$f":"Planning!H54","v":0},{"$f":"Planning!AJ54","v":0},{"$f":"IF(OR(W70=\"1\",AND(W70<>\"1\",G70=Lists!$A$17)),Y70,0)","v":0},null,{"$f":"IF(AND(W70=\"2\",G70<>Lists!$A$17),AA70,Z70)","v":""},"",{"$f":"Planning!AK54","v":{"v":0,"d":"0.00"}},{"$f":"'Month 9'!M70+'Month 9'!N70-'Month 9'!O70","v":{"v":0,"d":"0.00"}},null,"","",{"$f":"SUMIFS($J$25:$J$224,$C$25:$C$224,$C70,$G$25:$G$224,Lists!$A$16)","v":0},0,null,"",null,{"$f":"IF(C70=0,\"\",LEFT(INDEX(Lists!$H$5:$H$49,MATCH(C70,Lists!$G$5:$G$49,0),1),1))","v":""},null,{"$f":"'Month 9'!H70+'Month 9'!I70-'Month 9'!J70","v":0},"","",null,"0"]
[{"$f":"Planning!A55","v":"I047"},{"$f":"Planning!B55","v":0},{"$f":"Planning!C55","v":0},{"$f":"Planning!D55","v":0},{"$f":"Planning!E55","v":0},{"$f":"IF(Planning!G55<>0,Planning!G55,\"\")","v":""},{"$f":"Planning!H55","v":0},{"$f":"Planning!AJ55","v":0},{"$f":"IF(OR(W71=\"1\",AND(W71<>\"1\",G71=Lists!$A$17)),Y71,0)","v":0},null,{"$f":"IF(AND(W71=\"2\",G71<>Lists!$A$17),AA71,Z71)","v":""},"",{"$f":"Planning!AK55","v":{"v":0,"d":"0.00"}},{"$f":"'Month 9'!M71+'Month 9'!N71-'Month 9'!O71","v":{"v":0,"d":"0.00"}},null,"","",{"$f":"SUMIFS($J$25:$J$224,$C$25:$C$224,$C71,$G$25:$G$224,Lists!$A$16)","v":0},0,null,"",null,{"$f":"IF(C71=0,\"\",LEFT(INDEX(Lists!$H$5:$H$49,MATCH(C71,Lists!$G$5:$G$49,0),1),1))","v":""},null,{"$f":"'Month 9'!H71+'Month 9'!I71-'Month 9'!J71","v":0},"","",null,"0"]
[{"$f":"Planning!A56","v":"I048"},{"$f":"Planning!B56","v":0},{"$f":"Planning!C56","v":0},{"$f":"Planning!D56","v":0},{"$f":"Planning!E56","v":0},{"$f":"IF(Planning!G56<>0,Planning!G56,\"\")","v":""},{"$f":"Planning!H56","v":0},{"$f":"Planning!AJ56","v":0},{"$f":"IF(OR(W72=\"1\",AND(W72<>\"1\",G72=Lists!$A$17)),Y72,0)","v":0},null,{"$f":"IF(AND(W72=\"2\",G72<>Lists!$A$17),AA72,Z72)","v":""},"",{"$f":"Planning!AK56","v":{"v":0,"d":"0.00"}},{"$f":"'Month 9'!M72+'Month 9'!N72-'Month 9'!O72","v":{"v":0,"d":"0.00"}},null,"","",{"$f":"SUMIFS($J$25:$J$224,$C$25:$C$224,$C72,$G$25:$G$224,Lists!$A$16)","v":0},0,null,"",null,{"$f":"IF(C72=0,\"\",LEFT(INDEX(Lists!$H$5:$H$49,MATCH(C72,Lists!$G$5:$G$49,0),1),1))","v":""},null,{"$f":"'Month 9'!H72+'Month 9'!I72-'Month 9'!J72","v":0},"","",null,"0"]
[{"$f":"Planning!A57","v":"I049"},{"$f":"Planning!B57","v":0},{"$f":"Planning!C57","v":0},{"$f":"Planning!D57","v":0},{"$f":"Planning!E57","v":0},{"$f":"IF(Planning!G57<>0,Planning!G57,\"\")","v":""},{"$f":"Planning!H57","v":0},{"$f":"Planning!AJ57","v":0},{"$f":"IF(OR(W73=\"1\",AND(W73<>\"1\",G73=Lists!$A$17)),Y73,0)","v":0},null,{"$f":"IF(AND(W73=\"2\",G73<>Lists!$A$17),AA73,Z73)","v":""},"",{"$f":"Planning!AK57","v":{"v":0,"d":"0.00"}},{"$f":"'Month 9'!M73+'Month 9'!N73-'Month 9'!O73","v":{"v":0,"d":"0.00"}},null,"","",{"$f":"SUMIFS($J$25:$J$224,$C$25:$C$224,$C73,$G$25:$G$224,Lists!$A$16)","v":0},0,null,"",null,{"$f":"IF(C73=0,\"\",LEFT(INDEX(Lists!$H$5:$H$49,MATCH(C73,Lists!$G$5:$G$49,0),1),1))","v":""},null,{"$f":"'Month 9'!H73+'Month 9'!I73-'Month 9'!J73","v":0},"","",null,"0"]
[{"$f":"Planning!A58","v":"I050"},{"$f":"Planning!B58","v":0},{"$f":"Planning!C58","v":0},{"$f":"Planning!D58","v":0},{"$f":"Planning!E58","v":0},{"$f":"IF(Planning!G58<>0,Planning!G58,\"\")","v":""},{"$f":"Planning!H58","v":0},{"$f":"Planning!AJ58","v":0},{"$f":"IF(OR(W74=\"1\",AND(W74<>\"1\",G74=Lists!$A$17)),Y74,0)","v":0},null,{"$f":"IF(AND(W74=\"2\",G74<>Lists!$A$17),AA74,Z74)","v":""},"",{"$f":"Planning!AK58","v":{"v":0,"d":"0.00"}},{"$f":"'Month 9'!M74+'Month 9'!N74-'Month 9'!O74","v":{"v":0,"d":"0.00"}},null,"","",{"$f":"SUMIFS($J$25:$J$224,$C$25:$C$224,$C74,$G$25:$G$224,Lists!$A$16)","v":0},0,null,"",null,{"$f":"IF(C74=0,\"\",LEFT(INDEX(Lists!$H$5:$H$49,MATCH(C74,Lists!$G$5:$G$49,0),1),1))","v":""},null,{"$f":"'Month 9'!H74+'Month 9'!I74-'Month 9'!J74","v":0},"","",null,"0"]
[{"$f":"Planning!A59","v":"I051"},{"$f":"Planning!B59","v":0},{"$f":"Planning!C59","v":0},{"$f":"Planning!D59","v":0},{"$f":"Planning!E59","v":0},{"$f":"IF(Planning!G59<>0,Planning!G59,\"\")","v":""},{"$f":"Planning!H59","v":0},{"$f":"Planning!AJ59","v":0},{"$f":"IF(OR(W75=\"1\",AND(W75<>\"1\",G75=Lists!$A$17)),Y75,0)","v":0},null,{"$f":"IF(AND(W75=\"2\",G75<>Lists!$A$17),AA75,Z75)","v":""},"",{"$f":"Planning!AK59","v":{"v":0,"d":"0.00"}},{"$f":"'Month 9'!M75+'Month 9'!N75-'Month 9'!O75","v":{"v":0,"d":"0.00"}},null,"","",{"$f":"SUMIFS($J$25:$J$224,$C$25:$C$224,$C75,$G$25:$G$224,Lists!$A$16)","v":0},0,null,"",null,{"$f":"IF(C75=0,\"\",LEFT(INDEX(Lists!$H$5:$H$49,MATCH(C75,Lists!$G$5:$G$49,0),1),1))","v":""},null,{"$f":"'Month 9'!H75+'Month 9'!I75-'Month 9'!J75","v":0},"","",null,"0"]
[{"$f":"Planning!A60","v":"I052"},{"$f":"Planning!B60","v":0},{"$f":"Planning!C60","v":0},{"$f":"Planning!D60","v":0},{"$f":"Planning!E60","v":0},{"$f":"IF(Planning!G60<>0,Planning!G60,\"\")","v":""},{"$f":"Planning!H60","v":0},{"$f":"Planning!AJ60","v":0},{"$f":"IF(OR(W76=\"1\",AND(W76<>\"1\",G76=Lists!$A$17)),Y76,0)","v":0},null,{"$f":"IF(AND(W76=\"2\",G76<>Lists!$A$17),AA76,Z76)","v":""},"",{"$f":"Planning!AK60","v":{"v":0,"d":"0.00"}},{"$f":"'Month 9'!M76+'Month 9'!N76-'Month 9'!O76","v":{"v":0,"d":"0.00"}},null,"","",{"$f":"SUMIFS($J$25:$J$224,$C$25:$C$224,$C76,$G$25:$G$224,Lists!$A$16)","v":0},0,null,"",null,{"$f":"IF(C76=0,\"\",LEFT(INDEX(Lists!$H$5:$H$49,MATCH(C76,Lists!$G$5:$G$49,0),1),1))","v":""},null,{"$f":"'Month 9'!H76+'Month 9'!I76-'Month 9'!J76","v":0},"","",null,"0"]
[{"$f":"Planning!A61","v":"I053"},{"$f":"Planning!B61","v":0},{"$f":"Planning!C61","v":0},{"$f":"Planning!D61","v":0},{"$f":"Planning!E61","v":0},{"$f":"IF(Planning!G61<>0,Planning!G61,\"\")","v":""},{"$f":"Planning!H61","v":0},{"$f":"Planning!AJ61","v":0},{"$f":"IF(OR(W77=\"1\",AND(W77<>\"1\",G77=Lists!$A$17)),Y77,0)","v":0},null,{"$f":"IF(AND(W77=\"2\",G77<>Lists!$A$17),AA77,Z77)","v":""},"",{"$f":"Planning!AK61","v":{"v":0,"d":"0.00"}},{"$f":"'Month 9'!M77+'Month 9'!N77-'Month 9'!O77","v":{"v":0,"d":"0.00"}},null,"","",{"$f":"SUMIFS($J$25:$J$224,$C$25:$C$224,$C77,$G$25:$G$224,Lists!$A$16)","v":0},0,null,"",null,{"$f":"IF(C77=0,\"\",LEFT(INDEX(Lists!$H$5:$H$49,MATCH(C77,Lists!$G$5:$G$49,0),1),1))","v":""},null,{"$f":"'Month 9'!H77+'Month 9'!I77-'Month 9'!J77","v":0},"","",null,"0"]
[{"$f":"Planning!A62","v":"I054"},{"$f":"Planning!B62","v":0},{"$f":"Planning!C62","v":0},{"$f":"Planning!D62","v":0},{"$f":"Planning!E62","v":0},{"$f":"IF(Planning!G62<>0,Planning!G62,\"\")","v":""},{"$f":"Planning!H62","v":0},{"$f":"Planning!AJ62","v":0},{"$f":"IF(OR(W78=\"1\",AND(W78<>\"1\",G78=Lists!$A$17)),Y78,0)","v":0},null,{"$f":"IF(AND(W78=\"2\",G78<>Lists!$A$17),AA78,Z78)","v":""},"",{"$f":"Planning!AK62","v":{"v":0,"d":"0.00"}},{"$f":"'Month 9'!M78+'Month 9'!N78-'Month 9'!O78","v":{"v":0,"d":"0.00"}},null,"","",{"$f":"SUMIFS($J$25:$J$224,$C$25:$C$224,$C78,$G$25:$G$224,Lists!$A$16)","v":0},0,null,"",null,{"$f":"IF(C78=0,\"\",LEFT(INDEX(Lists!$H$5:$H$49,MATCH(C78,Lists!$G$5:$G$49,0),1),1))","v":""},null,{"$f":"'Month 9'!H78+'Month 9'!I78-'Month 9'!J78","v":0},"","",null,"0"]
[{"$f":"Planning!A63","v":"I055"},{"$f":"Planning!B63","v":0},{"$f":"Planning!C63","v":0},{"$f":"Planning!D63","v":0},{"$f":"Planning!E63","v":0},{"$f":"IF(Planning!G63<>0,Planning!G63,\"\")","v":""},{"$f":"Planning!H63","v":0},{"$f":"Planning!AJ63","v":0},{"$f":"IF(OR(W79=\"1\",AND(W79<>\"1\",G79=Lists!$A$17)),Y79,0)","v":0},null,{"$f":"IF(AND(W79=\"2\",G79<>Lists!$A$17),AA79,Z79)","v":""},"",{"$f":"Planning!AK63","v":{"v":0,"d":"0.00"}},{"$f":"'Month 9'!M79+'Month 9'!N79-'Month 9'!O79","v":{"v":0,"d":"0.00"}},null,"","",{"$f":"SUMIFS($J$25:$J$224,$C$25:$C$224,$C79,$G$25:$G$224,Lists!$A$16)","v":0},0,null,"",null,{"$f":"IF(C79=0,\"\",LEFT(INDEX(Lists!$H$5:$H$49,MATCH(C79,Lists!$G$5:$G$49,0),1),1))","v":""},null,{"$f":"'Month 9'!H79+'Month 9'!I79-'Month 9'!J79","v":0},"","",null,"0"]
[{"$f":"Planning!A64","v":"I056"},{"$f":"Planning!B64","v":0},{"$f":"Planning!C64","v":0},{"$f":"Planning!D64","v":0},{"$f":"Planning!E64","v":0},{"$f":"IF(Planning!G64<>0,Planning!G64,\"\")","v":""},{"$f":"Planning!H64","v":0},{"$f":"Planning!AJ64","v":0},{"$f":"IF(OR(W80=\"1\",AND(W80<>\"1\",G80=Lists!$A$17)),Y80,0)","v":0},null,{"$f":"IF(AND(W80=\"2\",G80<>Lists!$A$17),AA80,Z80)","v":""},"",{"$f":"Planning!AK64","v":{"v":0,"d":"0.00"}},{"$f":"'Month 9'!M80+'Month 9'!N80-'Month 9'!O80","v":{"v":0,"d":"0.00"}},null,"","",{"$f":"SUMIFS($J$25:$J$224,$C$25:$C$224,$C80,$G$25:$G$224,Lists!$A$16)","v":0},0,null,"",null,{"$f":"IF(C80=0,\"\",LEFT(INDEX(Lists!$H$5:$H$49,MATCH(C80,Lists!$G$5:$G$49,0),1),1))","v":""},null,{"$f":"'Month 9'!H80+'Month 9'!I80-'Month 9'!J80","v":0},"","",null,"0"]
[{"$f":"Planning!A65","v":"I057"},{"$f":"Planning!B65","v":0},{"$f":"Planning!C65","v":0},{"$f":"Planning!D65","v":0},{"$f":"Planning!E65","v":0},{"$f":"IF(Planning!G65<>0,Planning!G65,\"\")","v":""},{"$f":"Planning!H65","v":0},{"$f":"Planning!AJ65","v":0},{"$f":"IF(OR(W81=\"1\",AND(W81<>\"1\",G81=Lists!$A$17)),Y81,0)","v":0},null,{"$f":"IF(AND(W81=\"2\",G81<>Lists!$A$17),AA81,Z81)","v":""},"",{"$f":"Planning!AK65","v":{"v":0,"d":"0.00"}},{"$f":"'Month 9'!M81+'Month 9'!N81-'Month 9'!O81","v":{"v":0,"d":"0.00"}},null,"","",{"$f":"SUMIFS($J$25:$J$224,$C$25:$C$224,$C81,$G$25:$G$224,Lists!$A$16)","v":0},0,null,"",null,{"$f":"IF(C81=0,\"\",LEFT(INDEX(Lists!$H$5:$H$49,MATCH(C81,Lists!$G$5:$G$49,0),1),1))","v":""},null,{"$f":"'Month 9'!H81+'Month 9'!I81-'Month 9'!J81","v":0},"","",null,"0"]
[{"$f":"Planning!A66","v":"I058"},{"$f":"Planning!B66","v":0},{"$f":"Planning!C66","v":0},{"$f":"Planning!D66","v":0},{"$f":"Planning!E66","v":0},{"$f":"IF(Planning!G66<>0,Planning!G66,\"\")","v":""},{"$f":"Planning!H66","v":0},{"$f":"Planning!AJ66","v":0},{"$f":"IF(OR(W82=\"1\",AND(W82<>\"1\",G82=Lists!$A$17)),Y82,0)","v":0},null,{"$f":"IF(AND(W82=\"2\",G82<>Lists!$A$17),AA82,Z82)","v":""},"",{"$f":"Planning!AK66","v":{"v":0,"d":"0.00"}},{"$f":"'Month 9'!M82+'Month 9'!N82-'Month 9'!O82","v":{"v":0,"d":"0.00"}},null,"","",{"$f":"SUMIFS($J$25:$J$224,$C$25:$C$224,$C82,$G$25:$G$224,Lists!$A$16)","v":0},0,null,"",null,{"$f":"IF(C82=0,\"\",LEFT(INDEX(Lists!$H$5:$H$49,MATCH(C82,Lists!$G$5:$G$49,0),1),1))","v":""},null,{"$f":"'Month 9'!H82+'Month 9'!I82-'Month 9'!J82","v":0},"","",null,"0"]
[{"$f":"Planning!A67","v":"I059"},{"$f":"Planning!B67","v":0},{"$f":"Planning!C67","v":0},{"$f":"Planning!D67","v":0},{"$f":"Planning!E67","v":0},{"$f":"IF(Planning!G67<>0,Planning!G67,\"\")","v":""},{"$f":"Planning!H67","v":0},{"$f":"Planning!AJ67","v":0},{"$f":"IF(OR(W83=\"1\",AND(W83<>\"1\",G83=Lists!$A$17)),Y83,0)","v":0},null,{"$f":"IF(AND(W83=\"2\",G83<>Lists!$A$17),AA83,Z83)","v":""},"",{"$f":"Planning!AK67","v":{"v":0,"d":"0.00"}},{"$f":"'Month 9'!M83+'Month 9'!N83-'Month 9'!O83","v":{"v":0,"d":"0.00"}},null,"","",{"$f":"SUMIFS($J$25:$J$224,$C$25:$C$224,$C83,$G$25:$G$224,Lists!$A$16)","v":0},0,null,"",null,{"$f":"IF(C83=0,\"\",LEFT(INDEX(Lists!$H$5:$H$49,MATCH(C83,Lists!$G$5:$G$49,0),1),1))","v":""},null,{"$f":"'Month 9'!H83+'Month 9'!I83-'Month 9'!J83","v":0},"","",null,"0"]
[{"$f":"Planning!A68","v":"I060"},{"$f":"Planning!B68","v":0},{"$f":"Planning!C68","v":0},{"$f":"Planning!D68","v":0},{"$f":"Planning!E68","v":0},{"$f":"IF(Planning!G68<>0,Planning!G68,\"\")","v":""},{"$f":"Planning!H68","v":0},{"$f":"Planning!AJ68","v":0},{"$f":"IF(OR(W84=\"1\",AND(W84<>\"1\",G84=Lists!$A$17)),Y84,0)","v":0},null,{"$f":"IF(AND(W84=\"2\",G84<>Lists!$A$17),AA84,Z84)","v":""},"",{"$f":"Planning!AK68","v":{"v":0,"d":"0.00"}},{"$f":"'Month 9'!M84+'Month 9'!N84-'Month 9'!O84","v":{"v":0,"d":"0.00"}},null,"","",{"$f":"SUMIFS($J$25:$J$224,$C$25:$C$224,$C84,$G$25:$G$224,Lists!$A$16)","v":0},0,null,"",null,{"$f":"IF(C84=0,\"\",LEFT(INDEX(Lists!$H$5:$H$49,MATCH(C84,Lists!$G$5:$G$49,0),1),1))","v":""},null,{"$f":"'Month 9'!H84+'Month 9'!I84-'Month 9'!J84","v":0},"","",null,"0"]
[{"$f":"Planning!A69","v":"I061"},{"$f":"Planning!B69","v":0},{"$f":"Planning!C69","v":0},{"$f":"Planning!D69","v":0},{"$f":"Planning!E69","v":0},{"$f":"IF(Planning!G69<>0,Planning!G69,\"\")","v":""},{"$f":"Planning!H69","v":0},{"$f":"Planning!AJ69","v":0},{"$f":"IF(OR(W85=\"1\",AND(W85<>\"1\",G85=Lists!$A$17)),Y85,0)","v":0},null,{"$f":"IF(AND(W85=\"2\",G85<>Lists!$A$17),AA85,Z85)","v":""},"",{"$f":"Planning!AK69","v":{"v":0,"d":"0.00"}},{"$f":"'Month 9'!M85+'Month 9'!N85-'Month 9'!O85","v":{"v":0,"d":"0.00"}},null,"","",{"$f":"SUMIFS($J$25:$J$224,$C$25:$C$224,$C85,$G$25:$G$224,Lists!$A$16)","v":0},0,null,"",null,{"$f":"IF(C85=0,\"\",LEFT(INDEX(Lists!$H$5:$H$49,MATCH(C85,Lists!$G$5:$G$49,0),1),1))","v":""},null,{"$f":"'Month 9'!H85+'Month 9'!I85-'Month 9'!J85","v":0},"","",null,"0"]
[{"$f":"Planning!A70","v":"I062"},{"$f":"Planning!B70","v":0},{"$f":"Planning!C70","v":0},{"$f":"Planning!D70","v":0},{"$f":"Planning!E70","v":0},{"$f":"IF(Planning!G70<>0,Planning!G70,\"\")","v":""},{"$f":"Planning!H70","v":0},{"$f":"Planning!AJ70","v":0},{"$f":"IF(OR(W86=\"1\",AND(W86<>\"1\",G86=Lists!$A$17)),Y86,0)","v":0},null,{"$f":"IF(AND(W86=\"2\",G86<>Lists!$A$17),AA86,Z86)","v":""},"",{"$f":"Planning!AK70","v":{"v":0,"d":"0.00"}},{"$f":"'Month 9'!M86+'Month 9'!N86-'Month 9'!O86","v":{"v":0,"d":"0.00"}},null,"","",{"$f":"SUMIFS($J$25:$J$224,$C$25:$C$224,$C86,$G$25:$G$224,Lists!$A$16)","v":0},0,null,"",null,{"$f":"IF(C86=0,\"\",LEFT(INDEX(Lists!$H$5:$H$49,MATCH(C86,Lists!$G$5:$G$49,0),1),1))","v":""},null,{"$f":"'Month 9'!H86+'Month 9'!I86-'Month 9'!J86","v":0},"","",null,"0"]
[{"$f":"Planning!A71","v":"I063"},{"$f":"Planning!B71","v":0},{"$f":"Planning!C71","v":0},{"$f":"Planning!D71","v":0},{"$f":"Planning!E71","v":0},{"$f":"IF(Planning!G71<>0,Planning!G71,\"\")","v":""},{"$f":"Planning!H71","v":0},{"$f":"Planning!AJ71","v":0},{"$f":"IF(OR(W87=\"1\",AND(W87<>\"1\",G87=Lists!$A$17)),Y87,0)","v":0},null,{"$f":"IF(AND(W87=\"2\",G87<>Lists!$A$17),AA87,Z87)","v":""},"",{"$f":"Planning!AK71","v":{"v":0,"d":"0.00"}},{"$f":"'Month 9'!M87+'Month 9'!N87-'Month 9'!O87","v":{"v":0,"d":"0.00"}},null,"","",{"$f":"SUMIFS($J$25:$J$224,$C$25:$C$224,$C87,$G$25:$G$224,Lists!$A$16)","v":0},0,null,"",null,{"$f":"IF(C87=0,\"\",LEFT(INDEX(Lists!$H$5:$H$49,MATCH(C87,Lists!$G$5:$G$49,0),1),1))","v":""},null,{"$f":"'Month 9'!H87+'Month 9'!I87-'Month 9'!J87","v":0},"","",null,"0"]
[{"$f":"Planning!A72","v":"I064"},{"$f":"Planning!B72","v":0},{"$f":"Planning!C72","v":0},{"$f":"Planning!D72","v":0},{"$f":"Planning!E72","v":0},{"$f":"IF(Planning!G72<>0,Planning!G72,\"\")","v":""},{"$f":"Planning!H72","v":0},{"$f":"Planning!AJ72","v":0},{"$f":"IF(OR(W88=\"1\",AND(W88<>\"1\",G88=Lists!$A$17)),Y88,0)","v":0},null,{"$f":"IF(AND(W88=\"2\",G88<>Lists!$A$17),AA88,Z88)","v":""},"",{"$f":"Planning!AK72","v":{"v":0,"d":"0.00"}},{"$f":"'Month 9'!M88+'Month 9'!N88-'Month 9'!O88","v":{"v":0,"d":"0.00"}},null,"","",{"$f":"SUMIFS($J$25:$J$224,$C$25:$C$224,$C88,$G$25:$G$224,Lists!$A$16)","v":0},0,null,"",null,{"$f":"IF(C88=0,\"\",LEFT(INDEX(Lists!$H$5:$H$49,MATCH(C88,Lists!$G$5:$G$49,0),1),1))","v":""},null,{"$f":"'Month 9'!H88+'Month 9'!I88-'Month 9'!J88","v":0},"","",null,"0"]
[{"$f":"Planning!A73","v":"I065"},{"$f":"Planning!B73","v":0},{"$f":"Planning!C73","v":0},{"$f":"Planning!D73","v":0},{"$f":"Planning!E73","v":0},{"$f":"IF(Planning!G73<>0,Planning!G73,\"\")","v":""},{"$f":"Planning!H73","v":0},{"$f":"Planning!AJ73","v":0},{"$f":"IF(OR(W89=\"1\",AND(W89<>\"1\",G89=Lists!$A$17)),Y89,0)","v":0},null,{"$f":"IF(AND(W89=\"2\",G89<>Lists!$A$17),AA89,Z89)","v":""},{"$f":"IF($U89=ExcluirDelPLogro,\"\",IF(AND(H89=0,I89=0,J89=0),\"\",K89))","v":""},{"$f":"Planning!AK73","v":{"v":0,"d":"0.00"}},{"$f":"'Month 9'!M89+'Month 9'!N89-'Month 9'!O89","v":{"v":0,"d":"0.00"}},null,"",{"$f":"IF($U89=ExcluirDelPLogro,\"\",IF(AND(M89=0,N89=0,O89=0),\"\",P89))","v":""},{"$f":"SUMIFS($J$25:$J$224,$C$25:$C$224,$C89,$G$25:$G$224,Lists!$A$16)","v":0},0,null,"",null,{"$f":"IF(C89=0,\"\",LEFT(INDEX(Lists!$H$5:$H$49,MATCH(C89,Lists!$G$5:$G$49,0),1),1))","v":""},null,{"$f":"'Month 9'!H89+'Month 9'!I89-'Month 9'!J89","v":0},"",{"$f":"IF(AND(H89=0,I89=0,J89=0),\"\",IF(J89>0,H89/J89,0))","v":""},null,"0"]
[{"$f":"Planning!A74","v":"I066"},{"$f":"Planning!B74","v":0},{"$f":"Planning!C74","v":0},{"$f":"Planning!D74","v":0},{"$f":"Planning!E74","v":0},{"$f":"IF(Planning!G74<>0,Planning!G74,\"\")","v":""},{"$f":"Planning!H74","v":0},{"$f":"Planning!AJ74","v":0},{"$f":"IF(OR(W90=\"1\",AND(W90<>\"1\",G90=Lists!$A$17)),Y90,0)","v":0},null,{"$f":"IF(AND(W90=\"2\",G90<>Lists!$A$17),AA90,Z90)","v":""},"",{"$f":"Planning!AK74","v":{"v":0,"d":"0.00"}},{"$f":"'Month 9'!M90+'Month 9'!N90-'Month 9'!O90","v":{"v":0,"d":"0.00"}},null,{"$f":"IF(AND(M90=0,N90=0,O90=0),\"\",IF((M90+N90)>0,O90/(M90+N90),O90))","v":""},"",{"$f":"SUMIFS($J$25:$J$224,$C$25:$C$224,$C90,$G$25:$G$224,Lists!$A$16)","v":0},{"$f":"SUMIFS($O$25:$O$224,$C$25:$C$224,$C90,$G$25:$G$224,\"<>0\")","v":0},null,{"$f":"IF(B90=0,\"\",IF(LEFT(B90,1)=\"1\",\"1\",\"2\"))","v":""},null,{"$f":"IF(C90=0,\"\",LEFT(INDEX(Lists!$H$5:$H$49,MATCH(C90,Lists!$G$5:$G$49,0),1),1))","v":""},null,{"$f":"'Month 9'!H90+'Month 9'!I90-'Month 9'!J90","v":0},{"$f":"IF(AND(H90=0,I90=0,J90=0),\"\",IF((H90+I90)>0,J90/(H90+I90),J90))","v":""},"",null,{"$f":"U90&C90","v":"0"}]
[{"$f":"Planning!A75","v":"I067"},{"$f":"Planning!B75","v":0},{"$f":"Planning!C75","v":0},{"$f":"Planning!D75","v":0},{"$f":"Planning!E75","v":0},{"$f":"IF(Planning!G75<>0,Planning!G75,\"\")","v":""},{"$f":"Planning!H75","v":0},{"$f":"Planning!AJ75","v":0},{"$f":"IF(OR(W91=\"1\",AND(W91<>\"1\",G91=Lists!$A$17)),Y91,0)","v":0},null,{"$f":"IF(AND(W91=\"2\",G91<>Lists!$A$17),AA91,Z91)","v":""},"",{"$f":"Planning!AK75","v":{"v":0,"d":"0.00"}},{"$f":"'Month 9'!M91+'Month 9'!N91-'Month 9'!O91","v":{"v":0,"d":"0.00"}},null,"","",{"$f":"SUMIFS($J$25:$J$224,$C$25:$C$224,$C91,$G$25:$G$224,Lists!$A$16)","v":0},0,null,"",null,{"$f":"IF(C91=0,\"\",LEFT(INDEX(Lists!$H$5:$H$49,MATCH(C91,Lists!$G$5:$G$49,0),1),1))","v":""},null,{"$f":"'Month 9'!H91+'Month 9'!I91-'Month 9'!J91","v":0},"","",null,"0"]
[{"$f":"Planning!A76","v":"I068"},{"$f":"Planning!B76","v":0},{"$f":"Planning!C76","v":0},{"$f":"Planning!D76","v":0},{"$f":"Planning!E76","v":0},{"$f":"IF(Planning!G76<>0,Planning!G76,\"\")","v":""},{"$f":"Planning!H76","v":0},{"$f":"Planning!AJ76","v":0},{"$f":"IF(OR(W92=\"1\",AND(W92<>\"1\",G92=Lists!$A$17)),Y92,0)","v":0},null,{"$f":"IF(AND(W92=\"2\",G92<>Lists!$A$17),AA92,Z92)","v":""},"",{"$f":"Planning!AK76","v":{"v":0,"d":"0.00"}},{"$f":"'Month 9'!M92+'Month 9'!N92-'Month 9'!O92","v":{"v":0,"d":"0.00"}},null,"","",{"$f":"SUMIFS($J$25:$J$224,$C$25:$C$224,$C92,$G$25:$G$224,Lists!$A$16)","v":0},0,null,"",null,{"$f":"IF(C92=0,\"\",LEFT(INDEX(Lists!$H$5:$H$49,MATCH(C92,Lists!$G$5:$G$49,0),1),1))","v":""},null,{"$f":"'Month 9'!H92+'Month 9'!I92-'Month 9'!J92","v":0},"","",null,"0"]
[{"$f":"Planning!A77","v":"I069"},{"$f":"Planning!B77","v":0},{"$f":"Planning!C77","v":0},{"$f":"Planning!D77","v":0},{"$f":"Planning!E77","v":0},{"$f":"IF(Planning!G77<>0,Planning!G77,\"\")","v":""},{"$f":"Planning!H77","v":0},{"$f":"Planning!AJ77","v":0},{"$f":"IF(OR(W93=\"1\",AND(W93<>\"1\",G93=Lists!$A$17)),Y93,0)","v":0},null,{"$f":"IF(AND(W93=\"2\",G93<>Lists!$A$17),AA93,Z93)","v":""},"",{"$f":"Planning!AK77","v":{"v":0,"d":"0.00"}},{"$f":"'Month 9'!M93+'Month 9'!N93-'Month 9'!O93","v":{"v":0,"d":"0.00"}},null,"","",{"$f":"SUMIFS($J$25:$J$224,$C$25:$C$224,$C93,$G$25:$G$224,Lists!$A$16)","v":0},0,null,"",null,{"$f":"IF(C93=0,\"\",LEFT(INDEX(Lists!$H$5:$H$49,MATCH(C93,Lists!$G$5:$G$49,0),1),1))","v":""},null,{"$f":"'Month 9'!H93+'Month 9'!I93-'Month 9'!J93","v":0},"","",null,"0"]
[{"$f":"Planning!A78","v":"I070"},{"$f":"Planning!B78","v":0},{"$f":"Planning!C78","v":0},{"$f":"Planning!D78","v":0},{"$f":"Planning!E78","v":0},{"$f":"IF(Planning!G78<>0,Planning!G78,\"\")","v":""},{"$f":"Planning!H78","v":0},{"$f":"Planning!AJ78","v":0},{"$f":"IF(OR(W94=\"1\",AND(W94<>\"1\",G94=Lists!$A$17)),Y94,0)","v":0},null,{"$f":"IF(AND(W94=\"2\",G94<>Lists!$A$17),AA94,Z94)","v":""},"",{"$f":"Planning!AK78","v":{"v":0,"d":"0.00"}},{"$f":"'Month 9'!M94+'Month 9'!N94-'Month 9'!O94","v":{"v":0,"d":"0.00"}},null,"","",{"$f":"SUMIFS($J$25:$J$224,$C$25:$C$224,$C94,$G$25:$G$224,Lists!$A$16)","v":0},0,null,"",null,{"$f":"IF(C94=0,\"\",LEFT(INDEX(Lists!$H$5:$H$49,MATCH(C94,Lists!$G$5:$G$49,0),1),1))","v":""},null,{"$f":"'Month 9'!H94+'Month 9'!I94-'Month 9'!J94","v":0},"","",null,"0"]
[{"$f":"Planning!A79","v":"I071"},{"$f":"Planning!B79","v":0},{"$f":"Planning!C79","v":0},{"$f":"Planning!D79","v":0},{"$f":"Planning!E79","v":0},{"$f":"IF(Planning!G79<>0,Planning!G79,\"\")","v":""},{"$f":"Planning!H79","v":0},{"$f":"Planning!AJ79","v":0},{"$f":"IF(OR(W95=\"1\",AND(W95<>\"1\",G95=Lists!$A$17)),Y95,0)","v":0},null,{"$f":"IF(AND(W95=\"2\",G95<>Lists!$A$17),AA95,Z95)","v":""},"",{"$f":"Planning!AK79","v":{"v":0,"d":"0.00"}},{"$f":"'Month 9'!M95+'Month 9'!N95-'Month 9'!O95","v":{"v":0,"d":"0.00"}},null,"","",{"$f":"SUMIFS($J$25:$J$224,$C$25:$C$224,$C95,$G$25:$G$224,Lists!$A$16)","v":0},0,null,"",null,{"$f":"IF(C95=0,\"\",LEFT(INDEX(Lists!$H$5:$H$49,MATCH(C95,Lists!$G$5:$G$49,0),1),1))","v":""},null,{"$f":"'Month 9'!H95+'Month 9'!I95-'Month 9'!J95","v":0},"","",null,"0"]
[{"$f":"Planning!A80","v":"I072"},{"$f":"Planning!B80","v":0},{"$f":"Planning!C80","v":0},{"$f":"Planning!D80","v":0},{"$f":"Planning!E80","v":0},{"$f":"IF(Planning!G80<>0,Planning!G80,\"\")","v":""},{"$f":"Planning!H80","v":0},{"$f":"Planning!AJ80","v":0},{"$f":"IF(OR(W96=\"1\",AND(W96<>\"1\",G96=Lists!$A$17)),Y96,0)","v":0},null,{"$f":"IF(AND(W96=\"2\",G96<>Lists!$A$17),AA96,Z96)","v":""},"",{"$f":"Planning!AK80","v":{"v":0,"d":"0.00"}},{"$f":"'Month 9'!M96+'Month 9'!N96-'Month 9'!O96","v":{"v":0,"d":"0.00"}},null,"","",{"$f":"SUMIFS($J$25:$J$224,$C$25:$C$224,$C96,$G$25:$G$224,Lists!$A$16)","v":0},0,null,"",null,{"$f":"IF(C96=0,\"\",LEFT(INDEX(Lists!$H$5:$H$49,MATCH(C96,Lists!$G$5:$G$49,0),1),1))","v":""},null,{"$f":"'Month 9'!H96+'Month 9'!I96-'Month 9'!J96","v":0},"","",null,"0"]
[{"$f":"Planning!A81","v":"I073"},{"$f":"Planning!B81","v":0},{"$f":"Planning!C81","v":0},{"$f":"Planning!D81","v":0},{"$f":"Planning!E81","v":0},{"$f":"IF(Planning!G81<>0,Planning!G81,\"\")","v":""},{"$f":"Planning!H81","v":0},{"$f":"Planning!AJ81","v":0},{"$f":"IF(OR(W97=\"1\",AND(W97<>\"1\",G97=Lists!$A$17)),Y97,0)","v":0},null,{"$f":"IF(AND(W97=\"2\",G97<>Lists!$A$17),AA97,Z97)","v":""},"",{"$f":"Planning!AK81","v":{"v":0,"d":"0.00"}},{"$f":"'Month 9'!M97+'Month 9'!N97-'Month 9'!O97","v":{"v":0,"d":"0.00"}},null,"","",{"$f":"SUMIFS($J$25:$J$224,$C$25:$C$224,$C97,$G$25:$G$224,Lists!$A$16)","v":0},0,null,"",null,{"$f":"IF(C97=0,\"\",LEFT(INDEX(Lists!$H$5:$H$49,MATCH(C97,Lists!$G$5:$G$49,0),1),1))","v":""},null,{"$f":"'Month 9'!H97+'Month 9'!I97-'Month 9'!J97","v":0},"","",null,"0"]
[{"$f":"Planning!A82","v":"I074"},{"$f":"Planning!B82","v":0},{"$f":"Planning!C82","v":0},{"$f":"Planning!D82","v":0},{"$f":"Planning!E82","v":0},{"$f":"IF(Planning!G82<>0,Planning!G82,\"\")","v":""},{"$f":"Planning!H82","v":0},{"$f":"Planning!AJ82","v":0},{"$f":"IF(OR(W98=\"1\",AND(W98<>\"1\",G98=Lists!$A$17)),Y98,0)","v":0},null,{"$f":"IF(AND(W98=\"2\",G98<>Lists!$A$17),AA98,Z98)","v":""},"",{"$f":"Planning!AK82","v":{"v":0,"d":"0.00"}},{"$f":"'Month 9'!M98+'Month 9'!N98-'Month 9'!O98","v":{"v":0,"d":"0.00"}},null,"","",{"$f":"SUMIFS($J$25:$J$224,$C$25:$C$224,$C98,$G$25:$G$224,Lists!$A$16)","v":0},0,null,"",null,{"$f":"IF(C98=0,\"\",LEFT(INDEX(Lists!$H$5:$H$49,MATCH(C98,Lists!$G$5:$G$49,0),1),1))","v":""},null,{"$f":"'Month 9'!H98+'Month 9'!I98-'Month 9'!J98","v":0},"","",null,"0"]
[{"$f":"Planning!A83","v":"I075"},{"$f":"Planning!B83","v":0},{"$f":"Planning!C83","v":0},{"$f":"Planning!D83","v":0},{"$f":"Planning!E83","v":0},{"$f":"IF(Planning!G83<>0,Planning!G83,\"\")","v":""},{"$f":"Planning!H83","v":0},{"$f":"Planning!AJ83","v":0},{"$f":"IF(OR(W99=\"1\",AND(W99<>\"1\",G99=Lists!$A$17)),Y99,0)","v":0},null,{"$f":"IF(AND(W99=\"2\",G99<>Lists!$A$17),AA99,Z99)","v":""},"",{"$f":"Planning!AK83","v":{"v":0,"d":"0.00"}},{"$f":"'Month 9'!M99+'Month 9'!N99-'Month 9'!O99","v":{"v":0,"d":"0.00"}},null,"","",{"$f":"SUMIFS($J$25:$J$224,$C$25:$C$224,$C99,$G$25:$G$224,Lists!$A$16)","v":0},0,null,"",null,{"$f":"IF(C99=0,\"\",LEFT(INDEX(Lists!$H$5:$H$49,MATCH(C99,Lists!$G$5:$G$49,0),1),1))","v":""},null,{"$f":"'Month 9'!H99+'Month 9'!I99-'Month 9'!J99","v":0},"","",null,"0"]
[{"$f":"Planning!A84","v":"I076"},{"$f":"Planning!B84","v":0},{"$f":"Planning!C84","v":0},{"$f":"Planning!D84","v":0},{"$f":"Planning!E84","v":0},{"$f":"IF(Planning!G84<>0,Planning!G84,\"\")","v":""},{"$f":"Planning!H84","v":0},{"$f":"Planning!AJ84","v":0},{"$f":"IF(OR(W100=\"1\",AND(W100<>\"1\",G100=Lists!$A$17)),Y100,0)","v":0},null,{"$f":"IF(AND(W100=\"2\",G100<>Lists!$A$17),AA100,Z100)","v":""},"",{"$f":"Planning!AK84","v":{"v":0,"d":"0.00"}},{"$f":"'Month 9'!M100+'Month 9'!N100-'Month 9'!O100","v":{"v":0,"d":"0.00"}},null,"","",{"$f":"SUMIFS($J$25:$J$224,$C$25:$C$224,$C100,$G$25:$G$224,Lists!$A$16)","v":0},0,null,"",null,{"$f":"IF(C100=0,\"\",LEFT(INDEX(Lists!$H$5:$H$49,MATCH(C100,Lists!$G$5:$G$49,0),1),1))","v":""},null,{"$f":"'Month 9'!H100+'Month 9'!I100-'Month 9'!J100","v":0},"","",null,"0"]
[{"$f":"Planning!A85","v":"I077"},{"$f":"Planning!B85","v":0},{"$f":"Planning!C85","v":0},{"$f":"Planning!D85","v":0},{"$f":"Planning!E85","v":0},{"$f":"IF(Planning!G85<>0,Planning!G85,\"\")","v":""},{"$f":"Planning!H85","v":0},{"$f":"Planning!AJ85","v":0},{"$f":"IF(OR(W101=\"1\",AND(W101<>\"1\",G101=Lists!$A$17)),Y101,0)","v":0},null,{"$f":"IF(AND(W101=\"2\",G101<>Lists!$A$17),AA101,Z101)","v":""},"",{"$f":"Planning!AK85","v":{"v":0,"d":"0.00"}},{"$f":"'Month 9'!M101+'Month 9'!N101-'Month 9'!O101","v":{"v":0,"d":"0.00"}},null,"","",{"$f":"SUMIFS($J$25:$J$224,$C$25:$C$224,$C101,$G$25:$G$224,Lists!$A$16)","v":0},0,null,"",null,{"$f":"IF(C101=0,\"\",LEFT(INDEX(Lists!$H$5:$H$49,MATCH(C101,Lists!$G$5:$G$49,0),1),1))","v":""},null,{"$f":"'Month 9'!H101+'Month 9'!I101-'Month 9'!J101","v":0},"","",null,"0"]
[{"$f":"Planning!A86","v":"I078"},{"$f":"Planning!B86","v":0},{"$f":"Planning!C86","v":0},{"$f":"Planning!D86","v":0},{"$f":"Planning!E86","v":0},{"$f":"IF(Planning!G86<>0,Planning!G86,\"\")","v":""},{"$f":"Planning!H86","v":0},{"$f":"Planning!AJ86","v":0},{"$f":"IF(OR(W102=\"1\",AND(W102<>\"1\",G102=Lists!$A$17)),Y102,0)","v":0},null,{"$f":"IF(AND(W102=\"2\",G102<>Lists!$A$17),AA102,Z102)","v":""},"",{"$f":"Planning!AK86","v":{"v":0,"d":"0.00"}},{"$f":"'Month 9'!M102+'Month 9'!N102-'Month 9'!O102","v":{"v":0,"d":"0.00"}},null,"","",{"$f":"SUMIFS($J$25:$J$224,$C$25:$C$224,$C102,$G$25:$G$224,Lists!$A$16)","v":0},0,null,"",null,{"$f":"IF(C102=0,\"\",LEFT(INDEX(Lists!$H$5:$H$49,MATCH(C102,Lists!$G$5:$G$49,0),1),1))","v":""},null,{"$f":"'Month 9'!H102+'Month 9'!I102-'Month 9'!J102","v":0},"","",null,"0"]
[{"$f":"Planning!A87","v":"I079"},{"$f":"Planning!B87","v":0},{"$f":"Planning!C87","v":0},{"$f":"Planning!D87","v":0},{"$f":"Planning!E87","v":0},{"$f":"IF(Planning!G87<>0,Planning!G87,\"\")","v":""},{"$f":"Planning!H87","v":0},{"$f":"Planning!AJ87","v":0},{"$f":"IF(OR(W103=\"1\",AND(W103<>\"1\",G103=Lists!$A$17)),Y103,0)","v":0},null,{"$f":"IF(AND(W103=\"2\",G103<>Lists!$A$17),AA103,Z103)","v":""},"",{"$f":"Planning!AK87","v":{"v":0,"d":"0.00"}},{"$f":"'Month 9'!M103+'Month 9'!N103-'Month 9'!O103","v":{"v":0,"d":"0.00"}},null,"","",{"$f":"SUMIFS($J$25:$J$224,$C$25:$C$224,$C103,$G$25:$G$224,Lists!$A$16)","v":0},0,null,"",null,{"$f":"IF(C103=0,\"\",LEFT(INDEX(Lists!$H$5:$H$49,MATCH(C103,Lists!$G$5:$G$49,0),1),1))","v":""},null,{"$f":"'Month 9'!H103+'Month 9'!I103-'Month 9'!J103","v":0},"","",null,"0"]
[{"$f":"Planning!A88","v":"I080"},{"$f":"Planning!B88","v":0},{"$f":"Planning!C88","v":0},{"$f":"Planning!D88","v":0},{"$f":"Planning!E88","v":0},{"$f":"IF(Planning!G88<>0,Planning!G88,\"\")","v":""},{"$f":"Planning!H88","v":0},{"$f":"Planning!AJ88","v":0},{"$f":"IF(OR(W104=\"1\",AND(W104<>\"1\",G104=Lists!$A$17)),Y104,0)","v":0},null,{"$f":"IF(AND(W104=\"2\",G104<>Lists!$A$17),AA104,Z104)","v":""},"",{"$f":"Planning!AK88","v":{"v":0,"d":"0.00"}},{"$f":"'Month 9'!M104+'Month 9'!N104-'Month 9'!O104","v":{"v":0,"d":"0.00"}},null,"","",{"$f":"SUMIFS($J$25:$J$224,$C$25:$C$224,$C104,$G$25:$G$224,Lists!$A$16)","v":0},0,null,"",null,{"$f":"IF(C104=0,\"\",LEFT(INDEX(Lists!$H$5:$H$49,MATCH(C104,Lists!$G$5:$G$49,0),1),1))","v":""},null,{"$f":"'Month 9'!H104+'Month 9'!I104-'Month 9'!J104","v":0},"","",null,"0"]
[{"$f":"Planning!A89","v":"I081"},{"$f":"Planning!B89","v":0},{"$f":"Planning!C89","v":0},{"$f":"Planning!D89","v":0},{"$f":"Planning!E89","v":0},{"$f":"IF(Planning!G89<>0,Planning!G89,\"\")","v":""},{"$f":"Planning!H89","v":0},{"$f":"Planning!AJ89","v":0},{"$f":"IF(OR(W105=\"1\",AND(W105<>\"1\",G105=Lists!$A$17)),Y105,0)","v":0},null,{"$f":"IF(AND(W105=\"2\",G105<>Lists!$A$17),AA105,Z105)","v":""},"",{"$f":"Planning!AK89","v":{"v":0,"d":"0.00"}},{"$f":"'Month 9'!M105+'Month 9'!N105-'Month 9'!O105","v":{"v":0,"d":"0.00"}},null,"","",{"$f":"SUMIFS($J$25:$J$224,$C$25:$C$224,$C105,$G$25:$G$224,Lists!$A$16)","v":0},0,null,"",null,{"$f":"IF(C105=0,\"\",LEFT(INDEX(Lists!$H$5:$H$49,MATCH(C105,Lists!$G$5:$G$49,0),1),1))","v":""},null,{"$f":"'Month 9'!H105+'Month 9'!I105-'Month 9'!J105","v":0},"","",null,"0"]
[{"$f":"Planning!A90","v":"I082"},{"$f":"Planning!B90","v":0},{"$f":"Planning!C90","v":0},{"$f":"Planning!D90","v":0},{"$f":"Planning!E90","v":0},{"$f":"IF(Planning!G90<>0,Planning!G90,\"\")","v":""},{"$f":"Planning!H90","v":0},{"$f":"Planning!AJ90","v":0},{"$f":"IF(OR(W106=\"1\",AND(W106<>\"1\",G106=Lists!$A$17)),Y106,0)","v":0},null,{"$f":"IF(AND(W106=\"2\",G106<>Lists!$A$17),AA106,Z106)","v":""},"",{"$f":"Planning!AK90","v":{"v":0,"d":"0.00"}},{"$f":"'Month 9'!M106+'Month 9'!N106-'Month 9'!O106","v":{"v":0,"d":"0.00"}},null,"","",{"$f":"SUMIFS($J$25:$J$224,$C$25:$C$224,$C106,$G$25:$G$224,Lists!$A$16)","v":0},0,null,"",null,{"$f":"IF(C106=0,\"\",LEFT(INDEX(Lists!$H$5:$H$49,MATCH(C106,Lists!$G$5:$G$49,0),1),1))","v":""},null,{"$f":"'Month 9'!H106+'Month 9'!I106-'Month 9'!J106","v":0},"","",null,"0"]
[{"$f":"Planning!A91","v":"I083"},{"$f":"Planning!B91","v":0},{"$f":"Planning!C91","v":0},{"$f":"Planning!D91","v":0},{"$f":"Planning!E91","v":0},{"$f":"IF(Planning!G91<>0,Planning!G91,\"\")","v":""},{"$f":"Planning!H91","v":0},{"$f":"Planning!AJ91","v":0},{"$f":"IF(OR(W107=\"1\",AND(W107<>\"1\",G107=Lists!$A$17)),Y107,0)","v":0},null,{"$f":"IF(AND(W107=\"2\",G107<>Lists!$A$17),AA107,Z107)","v":""},"",{"$f":"Planning!AK91","v":{"v":0,"d":"0.00"}},{"$f":"'Month 9'!M107+'Month 9'!N107-'Month 9'!O107","v":{"v":0,"d":"0.00"}},null,"","",{"$f":"SUMIFS($J$25:$J$224,$C$25:$C$224,$C107,$G$25:$G$224,Lists!$A$16)","v":0},0,null,"",null,{"$f":"IF(C107=0,\"\",LEFT(INDEX(Lists!$H$5:$H$49,MATCH(C107,Lists!$G$5:$G$49,0),1),1))","v":""},null,{"$f":"'Month 9'!H107+'Month 9'!I107-'Month 9'!J107","v":0},"","",null,"0"]
[{"$f":"Planning!A92","v":"I084"},{"$f":"Planning!B92","v":0},{"$f":"Planning!C92","v":0},{"$f":"Planning!D92","v":0},{"$f":"Planning!E92","v":0},{"$f":"IF(Planning!G92<>0,Planning!G92,\"\")","v":""},{"$f":"Planning!H92","v":0},{"$f":"Planning!AJ92","v":0},{"$f":"IF(OR(W108=\"1\",AND(W108<>\"1\",G108=Lists!$A$17)),Y108,0)","v":0},null,{"$f":"IF(AND(W108=\"2\",G108<>Lists!$A$17),AA108,Z108)","v":""},"",{"$f":"Planning!AK92","v":{"v":0,"d":"0.00"}},{"$f":"'Month 9'!M108+'Month 9'!N108-'Month 9'!O108","v":{"v":0,"d":"0.00"}},null,"","",{"$f":"SUMIFS($J$25:$J$224,$C$25:$C$224,$C108,$G$25:$G$224,Lists!$A$16)","v":0},0,null,"",null,{"$f":"IF(C108=0,\"\",LEFT(INDEX(Lists!$H$5:$H$49,MATCH(C108,Lists!$G$5:$G$49,0),1),1))","v":""},null,{"$f":"'Month 9'!H108+'Month 9'!I108-'Month 9'!J108","v":0},"","",null,"0"]
[{"$f":"Planning!A93","v":"I085"},{"$f":"Planning!B93","v":0},{"$f":"Planning!C93","v":0},{"$f":"Planning!D93","v":0},{"$f":"Planning!E93","v":0},{"$f":"IF(Planning!G93<>0,Planning!G93,\"\")","v":""},{"$f":"Planning!H93","v":0},{"$f":"Planning!AJ93","v":0},{"$f":"IF(OR(W109=\"1\",AND(W109<>\"1\",G109=Lists!$A$17)),Y109,0)","v":0},null,{"$f":"IF(AND(W109=\"2\",G109<>Lists!$A$17),AA109,Z109)","v":""},"",{"$f":"Planning!AK93","v":{"v":0,"d":"0.00"}},{"$f":"'Month 9'!M109+'Month 9'!N109-'Month 9'!O109","v":{"v":0,"d":"0.00"}},null,"","",{"$f":"SUMIFS($J$25:$J$224,$C$25:$C$224,$C109,$G$25:$G$224,Lists!$A$16)","v":0},0,null,"",null,{"$f":"IF(C109=0,\"\",LEFT(INDEX(Lists!$H$5:$H$49,MATCH(C109,Lists!$G$5:$G$49,0),1),1))","v":""},null,{"$f":"'Month 9'!H109+'Month 9'!I109-'Month 9'!J109","v":0},"","",null,"0"]
[{"$f":"Planning!A94","v":"I086"},{"$f":"Planning!B94","v":0},{"$f":"Planning!C94","v":0},{"$f":"Planning!D94","v":0},{"$f":"Planning!E94","v":0},{"$f":"IF(Planning!G94<>0,Planning!G94,\"\")","v":""},{"$f":"Planning!H94","v":0},{"$f":"Planning!AJ94","v":0},{"$f":"IF(OR(W110=\"1\",AND(W110<>\"1\",G110=Lists!$A$17)),Y110,0)","v":0},null,{"$f":"IF(AND(W110=\"2\",G110<>Lists!$A$17),AA110,Z110)","v":""},"",{"$f":"Planning!AK94","v":{"v":0,"d":"0.00"}},{"$f":"'Month 9'!M110+'Month 9'!N110-'Month 9'!O110","v":{"v":0,"d":"0.00"}},null,"","",{"$f":"SUMIFS($J$25:$J$224,$C$25:$C$224,$C110,$G$25:$G$224,Lists!$A$16)","v":0},0,null,"",null,{"$f":"IF(C110=0,\"\",LEFT(INDEX(Lists!$H$5:$H$49,MATCH(C110,Lists!$G$5:$G$49,0),1),1))","v":""},null,{"$f":"'Month 9'!H110+'Month 9'!I110-'Month 9'!J110","v":0},"","",null,"0"]
[{"$f":"Planning!A95","v":"I087"},{"$f":"Planning!B95","v":0},{"$f":"Planning!C95","v":0},{"$f":"Planning!D95","v":0},{"$f":"Planning!E95","v":0},{"$f":"IF(Planning!G95<>0,Planning!G95,\"\")","v":""},{"$f":"Planning!H95","v":0},{"$f":"Planning!AJ95","v":0},{"$f":"IF(OR(W111=\"1\",AND(W111<>\"1\",G111=Lists!$A$17)),Y111,0)","v":0},null,{"$f":"IF(AND(W111=\"2\",G111<>Lists!$A$17),AA111,Z111)","v":""},"",{"$f":"Planning!AK95","v":{"v":0,"d":"0.00"}},{"$f":"'Month 9'!M111+'Month 9'!N111-'Month 9'!O111","v":{"v":0,"d":"0.00"}},null,"","",{"$f":"SUMIFS($J$25:$J$224,$C$25:$C$224,$C111,$G$25:$G$224,Lists!$A$16)","v":0},0,null,"",null,{"$f":"IF(C111=0,\"\",LEFT(INDEX(Lists!$H$5:$H$49,MATCH(C111,Lists!$G$5:$G$49,0),1),1))","v":""},null,{"$f":"'Month 9'!H111+'Month 9'!I111-'Month 9'!J111","v":0},"","",null,"0"]
[{"$f":"Planning!A96","v":"I088"},{"$f":"Planning!B96","v":0},{"$f":"Planning!C96","v":0},{"$f":"Planning!D96","v":0},{"$f":"Planning!E96","v":0},{"$f":"IF(Planning!G96<>0,Planning!G96,\"\")","v":""},{"$f":"Planning!H96","v":0},{"$f":"Planning!AJ96","v":0},{"$f":"IF(OR(W112=\"1\",AND(W112<>\"1\",G112=Lists!$A$17)),Y112,0)","v":0},null,{"$f":"IF(AND(W112=\"2\",G112<>Lists!$A$17),AA112,Z112)","v":""},"",{"$f":"Planning!AK96","v":{"v":0,"d":"0.00"}},{"$f":"'Month 9'!M112+'Month 9'!N112-'Month 9'!O112","v":{"v":0,"d":"0.00"}},null,"","",{"$f":"SUMIFS($J$25:$J$224,$C$25:$C$224,$C112,$G$25:$G$224,Lists!$A$16)","v":0},0,null,"",null,{"$f":"IF(C112=0,\"\",LEFT(INDEX(Lists!$H$5:$H$49,MATCH(C112,Lists!$G$5:$G$49,0),1),1))","v":""},null,{"$f":"'Month 9'!H112+'Month 9'!I112-'Month 9'!J112","v":0},"","",null,"0"]
[{"$f":"Planning!A97","v":"I089"},{"$f":"Planning!B97","v":0},{"$f":"Planning!C97","v":0},{"$f":"Planning!D97","v":0},{"$f":"Planning!E97","v":0},{"$f":"IF(Planning!G97<>0,Planning!G97,\"\")","v":""},{"$f":"Planning!H97","v":0},{"$f":"Planning!AJ97","v":0},{"$f":"IF(OR(W113=\"1\",AND(W113<>\"1\",G113=Lists!$A$17)),Y113,0)","v":0},null,{"$f":"IF(AND(W113=\"2\",G113<>Lists!$A$17),AA113,Z113)","v":""},"",{"$f":"Planning!AK97","v":{"v":0,"d":"0.00"}},{"$f":"'Month 9'!M113+'Month 9'!N113-'Month 9'!O113","v":{"v":0,"d":"0.00"}},null,"","",{"$f":"SUMIFS($J$25:$J$224,$C$25:$C$224,$C113,$G$25:$G$224,Lists!$A$16)","v":0},0,null,"",null,{"$f":"IF(C113=0,\"\",LEFT(INDEX(Lists!$H$5:$H$49,MATCH(C113,Lists!$G$5:$G$49,0),1),1))","v":""},null,{"$f":"'Month 9'!H113+'Month 9'!I113-'Month 9'!J113","v":0},"","",null,"0"]
[{"$f":"Planning!A98","v":"I090"},{"$f":"Planning!B98","v":0},{"$f":"Planning!C98","v":0},{"$f":"Planning!D98","v":0},{"$f":"Planning!E98","v":0},{"$f":"IF(Planning!G98<>0,Planning!G98,\"\")","v":""},{"$f":"Planning!H98","v":0},{"$f":"Planning!AJ98","v":0},{"$f":"IF(OR(W114=\"1\",AND(W114<>\"1\",G114=Lists!$A$17)),Y114,0)","v":0},null,{"$f":"IF(AND(W114=\"2\",G114<>Lists!$A$17),AA114,Z114)","v":""},"",{"$f":"Planning!AK98","v":{"v":0,"d":"0.00"}},{"$f":"'Month 9'!M114+'Month 9'!N114-'Month 9'!O114","v":{"v":0,"d":"0.00"}},null,"","",{"$f":"SUMIFS($J$25:$J$224,$C$25:$C$224,$C114,$G$25:$G$224,Lists!$A$16)","v":0},0,null,"",null,{"$f":"IF(C114=0,\"\",LEFT(INDEX(Lists!$H$5:$H$49,MATCH(C114,Lists!$G$5:$G$49,0),1),1))","v":""},null,{"$f":"'Month 9'!H114+'Month 9'!I114-'Month 9'!J114","v":0},"","",null,"0"]
[{"$f":"Planning!A99","v":"I091"},{"$f":"Planning!B99","v":0},{"$f":"Planning!C99","v":0},{"$f":"Planning!D99","v":0},{"$f":"Planning!E99","v":0},{"$f":"IF(Planning!G99<>0,Planning!G99,\"\")","v":""},{"$f":"Planning!H99","v":0},{"$f":"Planning!AJ99","v":0},{"$f":"IF(OR(W115=\"1\",AND(W115<>\"1\",G115=Lists!$A$17)),Y115,0)","v":0},null,{"$f":"IF(AND(W115=\"2\",G115<>Lists!$A$17),AA115,Z115)","v":""},"",{"$f":"Planning!AK99","v":{"v":0,"d":"0.00"}},{"$f":"'Month 9'!M115+'Month 9'!N115-'Month 9'!O115","v":{"v":0,"d":"0.00"}},null,"","",{"$f":"SUMIFS($J$25:$J$224,$C$25:$C$224,$C115,$G$25:$G$224,Lists!$A$16)","v":0},0,null,"",null,{"$f":"IF(C115=0,\"\",LEFT(INDEX(Lists!$H$5:$H$49,MATCH(C115,Lists!$G$5:$G$49,0),1),1))","v":""},null,{"$f":"'Month 9'!H115+'Month 9'!I115-'Month 9'!J115","v":0},"","",null,"0"]
[{"$f":"Planning!A100","v":"I092"},{"$f":"Planning!B100","v":0},{"$f":"Planning!C100","v":0},{"$f":"Planning!D100","v":0},{"$f":"Planning!E100","v":0},{"$f":"IF(Planning!G100<>0,Planning!G100,\"\")","v":""},{"$f":"Planning!H100","v":0},{"$f":"Planning!AJ100","v":0},{"$f":"IF(OR(W116=\"1\",AND(W116<>\"1\",G116=Lists!$A$17)),Y116,0)","v":0},null,{"$f":"IF(AND(W116=\"2\",G116<>Lists!$A$17),AA116,Z116)","v":""},"",{"$f":"Planning!AK100","v":{"v":0,"d":"0.00"}},{"$f":"'Month 9'!M116+'Month 9'!N116-'Month 9'!O116","v":{"v":0,"d":"0.00"}},null,"","",{"$f":"SUMIFS($J$25:$J$224,$C$25:$C$224,$C116,$G$25:$G$224,Lists!$A$16)","v":0},0,null,"",null,{"$f":"IF(C116=0,\"\",LEFT(INDEX(Lists!$H$5:$H$49,MATCH(C116,Lists!$G$5:$G$49,0),1),1))","v":""},null,{"$f":"'Month 9'!H116+'Month 9'!I116-'Month 9'!J116","v":0},"","",null,"0"]
[{"$f":"Planning!A101","v":"I093"},{"$f":"Planning!B101","v":0},{"$f":"Planning!C101","v":0},{"$f":"Planning!D101","v":0},{"$f":"Planning!E101","v":0},{"$f":"IF(Planning!G101<>0,Planning!G101,\"\")","v":""},{"$f":"Planning!H101","v":0},{"$f":"Planning!AJ101","v":0},{"$f":"IF(OR(W117=\"1\",AND(W117<>\"1\",G117=Lists!$A$17)),Y117,0)","v":0},null,{"$f":"IF(AND(W117=\"2\",G117<>Lists!$A$17),AA117,Z117)","v":""},"",{"$f":"Planning!AK101","v":{"v":0,"d":"0.00"}},{"$f":"'Month 9'!M117+'Month 9'!N117-'Month 9'!O117","v":{"v":0,"d":"0.00"}},null,"","",{"$f":"SUMIFS($J$25:$J$224,$C$25:$C$224,$C117,$G$25:$G$224,Lists!$A$16)","v":0},0,null,"",null,{"$f":"IF(C117=0,\"\",LEFT(INDEX(Lists!$H$5:$H$49,MATCH(C117,Lists!$G$5:$G$49,0),1),1))","v":""},null,{"$f":"'Month 9'!H117+'Month 9'!I117-'Month 9'!J117","v":0},"","",null,"0"]
[{"$f":"Planning!A102","v":"I094"},{"$f":"Planning!B102","v":0},{"$f":"Planning!C102","v":0},{"$f":"Planning!D102","v":0},{"$f":"Planning!E102","v":0},{"$f":"IF(Planning!G102<>0,Planning!G102,\"\")","v":""},{"$f":"Planning!H102","v":0},{"$f":"Planning!AJ102","v":0},{"$f":"IF(OR(W118=\"1\",AND(W118<>\"1\",G118=Lists!$A$17)),Y118,0)","v":0},null,{"$f":"IF(AND(W118=\"2\",G118<>Lists!$A$17),AA118,Z118)","v":""},"",{"$f":"Planning!AK102","v":{"v":0,"d":"0.00"}},{"$f":"'Month 9'!M118+'Month 9'!N118-'Month 9'!O118","v":{"v":0,"d":"0.00"}},null,"","",{"$f":"SUMIFS($J$25:$J$224,$C$25:$C$224,$C118,$G$25:$G$224,Lists!$A$16)","v":0},0,null,"",null,{"$f":"IF(C118=0,\"\",LEFT(INDEX(Lists!$H$5:$H$49,MATCH(C118,Lists!$G$5:$G$49,0),1),1))","v":""},null,{"$f":"'Month 9'!H118+'Month 9'!I118-'Month 9'!J118","v":0},"","",null,"0"]
[{"$f":"Planning!A103","v":"I095"},{"$f":"Planning!B103","v":0},{"$f":"Planning!C103","v":0},{"$f":"Planning!D103","v":0},{"$f":"Planning!E103","v":0},{"$f":"IF(Planning!G103<>0,Planning!G103,\"\")","v":""},{"$f":"Planning!H103","v":0},{"$f":"Planning!AJ103","v":0},{"$f":"IF(OR(W119=\"1\",AND(W119<>\"1\",G119=Lists!$A$17)),Y119,0)","v":0},null,{"$f":"IF(AND(W119=\"2\",G119<>Lists!$A$17),AA119,Z119)","v":""},"",{"$f":"Planning!AK103","v":{"v":0,"d":"0.00"}},{"$f":"'Month 9'!M119+'Month 9'!N119-'Month 9'!O119","v":{"v":0,"d":"0.00"}},null,"","",{"$f":"SUMIFS($J$25:$J$224,$C$25:$C$224,$C119,$G$25:$G$224,Lists!$A$16)","v":0},0,null,"",null,{"$f":"IF(C119=0,\"\",LEFT(INDEX(Lists!$H$5:$H$49,MATCH(C119,Lists!$G$5:$G$49,0),1),1))","v":""},null,{"$f":"'Month 9'!H119+'Month 9'!I119-'Month 9'!J119","v":0},"","",null,"0"]
[{"$f":"Planning!A104","v":"I096"},{"$f":"Planning!B104","v":0},{"$f":"Planning!C104","v":0},{"$f":"Planning!D104","v":0},{"$f":"Planning!E104","v":0},{"$f":"IF(Planning!G104<>0,Planning!G104,\"\")","v":""},{"$f":"Planning!H104","v":0},{"$f":"Planning!AJ104","v":0},{"$f":"IF(OR(W120=\"1\",AND(W120<>\"1\",G120=Lists!$A$17)),Y120,0)","v":0},null,{"$f":"IF(AND(W120=\"2\",G120<>Lists!$A$17),AA120,Z120)","v":""},"",{"$f":"Planning!AK104","v":{"v":0,"d":"0.00"}},{"$f":"'Month 9'!M120+'Month 9'!N120-'Month 9'!O120","v":{"v":0,"d":"0.00"}},null,"","",{"$f":"SUMIFS($J$25:$J$224,$C$25:$C$224,$C120,$G$25:$G$224,Lists!$A$16)","v":0},0,null,"",null,{"$f":"IF(C120=0,\"\",LEFT(INDEX(Lists!$H$5:$H$49,MATCH(C120,Lists!$G$5:$G$49,0),1),1))","v":""},null,{"$f":"'Month 9'!H120+'Month 9'!I120-'Month 9'!J120","v":0},"","",null,"0"]
[{"$f":"Planning!A105","v":"I097"},{"$f":"Planning!B105","v":0},{"$f":"Planning!C105","v":0},{"$f":"Planning!D105","v":0},{"$f":"Planning!E105","v":0},{"$f":"IF(Planning!G105<>0,Planning!G105,\"\")","v":""},{"$f":"Planning!H105","v":0},{"$f":"Planning!AJ105","v":0},{"$f":"IF(OR(W121=\"1\",AND(W121<>\"1\",G121=Lists!$A$17)),Y121,0)","v":0},null,{"$f":"IF(AND(W121=\"2\",G121<>Lists!$A$17),AA121,Z121)","v":""},{"$f":"IF($U121=ExcluirDelPLogro,\"\",IF(AND(H121=0,I121=0,J121=0),\"\",K121))","v":""},{"$f":"Planning!AK105","v":{"v":0,"d":"0.00"}},{"$f":"'Month 9'!M121+'Month 9'!N121-'Month 9'!O121","v":{"v":0,"d":"0.00"}},null,"",{"$f":"IF($U121=ExcluirDelPLogro,\"\",IF(AND(M121=0,N121=0,O121=0),\"\",P121))","v":""},{"$f":"SUMIFS($J$25:$J$224,$C$25:$C$224,$C121,$G$25:$G$224,Lists!$A$16)","v":0},0,null,"",null,{"$f":"IF(C121=0,\"\",LEFT(INDEX(Lists!$H$5:$H$49,MATCH(C121,Lists!$G$5:$G$49,0),1),1))","v":""},null,{"$f":"'Month 9'!H121+'Month 9'!I121-'Month 9'!J121","v":0},"",{"$f":"IF(AND(H121=0,I121=0,J121=0),\"\",IF(J121>0,H121/J121,0))","v":""},null,"0"]
[{"$f":"Planning!A106","v":"I098"},{"$f":"Planning!B106","v":0},{"$f":"Planning!C106","v":0},{"$f":"Planning!D106","v":0},{"$f":"Planning!E106","v":0},{"$f":"IF(Planning!G106<>0,Planning!G106,\"\")","v":""},{"$f":"Planning!H106","v":0},{"$f":"Planning!AJ106","v":0},{"$f":"IF(OR(W122=\"1\",AND(W122<>\"1\",G122=Lists!$A$17)),Y122,0)","v":0},null,{"$f":"IF(AND(W122=\"2\",G122<>Lists!$A$17),AA122,Z122)","v":""},"",{"$f":"Planning!AK106","v":{"v":0,"d":"0.00"}},{"$f":"'Month 9'!M122+'Month 9'!N122-'Month 9'!O122","v":{"v":0,"d":"0.00"}},null,"","",{"$f":"SUMIFS($J$25:$J$224,$C$25:$C$224,$C122,$G$25:$G$224,Lists!$A$16)","v":0},0,null,"",null,{"$f":"IF(C122=0,\"\",LEFT(INDEX(Lists!$H$5:$H$49,MATCH(C122,Lists!$G$5:$G$49,0),1),1))","v":""},null,{"$f":"'Month 9'!H122+'Month 9'!I122-'Month 9'!J122","v":0},"","",null,"0"]
[{"$f":"Planning!A107","v":"I099"},{"$f":"Planning!B107","v":0},{"$f":"Planning!C107","v":0},{"$f":"Planning!D107","v":0},{"$f":"Planning!E107","v":0},{"$f":"IF(Planning!G107<>0,Planning!G107,\"\")","v":""},{"$f":"Planning!H107","v":0},{"$f":"Planning!AJ107","v":0},{"$f":"IF(OR(W123=\"1\",AND(W123<>\"1\",G123=Lists!$A$17)),Y123,0)","v":0},null,{"$f":"IF(AND(W123=\"2\",G123<>Lists!$A$17),AA123,Z123)","v":""},"",{"$f":"Planning!AK107","v":{"v":0,"d":"0.00"}},{"$f":"'Month 9'!M123+'Month 9'!N123-'Month 9'!O123","v":{"v":0,"d":"0.00"}},null,"","",{"$f":"SUMIFS($J$25:$J$224,$C$25:$C$224,$C123,$G$25:$G$224,Lists!$A$16)","v":0},0,null,"",null,{"$f":"IF(C123=0,\"\",LEFT(INDEX(Lists!$H$5:$H$49,MATCH(C123,Lists!$G$5:$G$49,0),1),1))","v":""},null,{"$f":"'Month 9'!H123+'Month 9'!I123-'Month 9'!J123","v":0},"","",null,"0"]
[{"$f":"Planning!A108","v":"I100"},{"$f":"Planning!B108","v":0},{"$f":"Planning!C108","v":0},{"$f":"Planning!D108","v":0},{"$f":"Planning!E108","v":0},{"$f":"IF(Planning!G108<>0,Planning!G108,\"\")","v":""},{"$f":"Planning!H108","v":0},{"$f":"Planning!AJ108","v":0},{"$f":"IF(OR(W124=\"1\",AND(W124<>\"1\",G124=Lists!$A$17)),Y124,0)","v":0},null,{"$f":"IF(AND(W124=\"2\",G124<>Lists!$A$17),AA124,Z124)","v":""},"",{"$f":"Planning!AK108","v":{"v":0,"d":"0.00"}},{"$f":"'Month 9'!M124+'Month 9'!N124-'Month 9'!O124","v":{"v":0,"d":"0.00"}},null,"","",{"$f":"SUMIFS($J$25:$J$224,$C$25:$C$224,$C124,$G$25:$G$224,Lists!$A$16)","v":0},0,null,"",null,{"$f":"IF(C124=0,\"\",LEFT(INDEX(Lists!$H$5:$H$49,MATCH(C124,Lists!$G$5:$G$49,0),1),1))","v":""},null,{"$f":"'Month 9'!H124+'Month 9'!I124-'Month 9'!J124","v":0},"","",null,"0"]
[{"$f":"Planning!A109","v":"I101"},{"$f":"Planning!B109","v":0},{"$f":"Planning!C109","v":0},{"$f":"Planning!D109","v":0},{"$f":"Planning!E109","v":0},{"$f":"IF(Planning!G109<>0,Planning!G109,\"\")","v":""},{"$f":"Planning!H109","v":0},{"$f":"Planning!AJ109","v":0},{"$f":"IF(OR(W125=\"1\",AND(W125<>\"1\",G125=Lists!$A$17)),Y125,0)","v":0},null,{"$f":"IF(AND(W125=\"2\",G125<>Lists!$A$17),AA125,Z125)","v":""},"",{"$f":"Planning!AK109","v":{"v":0,"d":"0.00"}},{"$f":"'Month 9'!M125+'Month 9'!N125-'Month 9'!O125","v":{"v":0,"d":"0.00"}},null,"","",{"$f":"SUMIFS($J$25:$J$224,$C$25:$C$224,$C125,$G$25:$G$224,Lists!$A$16)","v":0},0,null,"",null,{"$f":"IF(C125=0,\"\",LEFT(INDEX(Lists!$H$5:$H$49,MATCH(C125,Lists!$G$5:$G$49,0),1),1))","v":""},null,{"$f":"'Month 9'!H125+'Month 9'!I125-'Month 9'!J125","v":0},"","",null,"0"]
[{"$f":"Planning!A110","v":"I102"},{"$f":"Planning!B110","v":0},{"$f":"Planning!C110","v":0},{"$f":"Planning!D110","v":0},{"$f":"Planning!E110","v":0},{"$f":"IF(Planning!G110<>0,Planning!G110,\"\")","v":""},{"$f":"Planning!H110","v":0},{"$f":"Planning!AJ110","v":0},{"$f":"IF(OR(W126=\"1\",AND(W126<>\"1\",G126=Lists!$A$17)),Y126,0)","v":0},null,{"$f":"IF(AND(W126=\"2\",G126<>Lists!$A$17),AA126,Z126)","v":""},"",{"$f":"Planning!AK110","v":{"v":0,"d":"0.00"}},{"$f":"'Month 9'!M126+'Month 9'!N126-'Month 9'!O126","v":{"v":0,"d":"0.00"}},null,"","",{"$f":"SUMIFS($J$25:$J$224,$C$25:$C$224,$C126,$G$25:$G$224,Lists!$A$16)","v":0},0,null,"",null,{"$f":"IF(C126=0,\"\",LEFT(INDEX(Lists!$H$5:$H$49,MATCH(C126,Lists!$G$5:$G$49,0),1),1))","v":""},null,{"$f":"'Month 9'!H126+'Month 9'!I126-'Month 9'!J126","v":0},"","",null,"0"]
[{"$f":"Planning!A111","v":"I103"},{"$f":"Planning!B111","v":0},{"$f":"Planning!C111","v":0},{"$f":"Planning!D111","v":0},{"$f":"Planning!E111","v":0},{"$f":"IF(Planning!G111<>0,Planning!G111,\"\")","v":""},{"$f":"Planning!H111","v":0},{"$f":"Planning!AJ111","v":0},{"$f":"IF(OR(W127=\"1\",AND(W127<>\"1\",G127=Lists!$A$17)),Y127,0)","v":0},null,{"$f":"IF(AND(W127=\"2\",G127<>Lists!$A$17),AA127,Z127)","v":""},"",{"$f":"Planning!AK111","v":{"v":0,"d":"0.00"}},{"$f":"'Month 9'!M127+'Month 9'!N127-'Month 9'!O127","v":{"v":0,"d":"0.00"}},null,"","",{"$f":"SUMIFS($J$25:$J$224,$C$25:$C$224,$C127,$G$25:$G$224,Lists!$A$16)","v":0},0,null,"",null,{"$f":"IF(C127=0,\"\",LEFT(INDEX(Lists!$H$5:$H$49,MATCH(C127,Lists!$G$5:$G$49,0),1),1))","v":""},null,{"$f":"'Month 9'!H127+'Month 9'!I127-'Month 9'!J127","v":0},"","",null,"0"]
[{"$f":"Planning!A112","v":"I104"},{"$f":"Planning!B112","v":0},{"$f":"Planning!C112","v":0},{"$f":"Planning!D112","v":0},{"$f":"Planning!E112","v":0},{"$f":"IF(Planning!G112<>0,Planning!G112,\"\")","v":""},{"$f":"Planning!H112","v":0},{"$f":"Planning!AJ112","v":0},{"$f":"IF(OR(W128=\"1\",AND(W128<>\"1\",G128=Lists!$A$17)),Y128,0)","v":0},null,{"$f":"IF(AND(W128=\"2\",G128<>Lists!$A$17),AA128,Z128)","v":""},"",{"$f":"Planning!AK112","v":{"v":0,"d":"0.00"}},{"$f":"'Month 9'!M128+'Month 9'!N128-'Month 9'!O128","v":{"v":0,"d":"0.00"}},null,"","",{"$f":"SUMIFS($J$25:$J$224,$C$25:$C$224,$C128,$G$25:$G$224,Lists!$A$16)","v":0},0,null,"",null,{"$f":"IF(C128=0,\"\",LEFT(INDEX(Lists!$H$5:$H$49,MATCH(C128,Lists!$G$5:$G$49,0),1),1))","v":""},null,{"$f":"'Month 9'!H128+'Month 9'!I128-'Month 9'!J128","v":0},"","",null,"0"]
[{"$f":"Planning!A113","v":"I105"},{"$f":"Planning!B113","v":0},{"$f":"Planning!C113","v":0},{"$f":"Planning!D113","v":0},{"$f":"Planning!E113","v":0},{"$f":"IF(Planning!G113<>0,Planning!G113,\"\")","v":""},{"$f":"Planning!H113","v":0},{"$f":"Planning!AJ113","v":0},{"$f":"IF(OR(W129=\"1\",AND(W129<>\"1\",G129=Lists!$A$17)),Y129,0)","v":0},null,{"$f":"IF(AND(W129=\"2\",G129<>Lists!$A$17),AA129,Z129)","v":""},"",{"$f":"Planning!AK113","v":{"v":0,"d":"0.00"}},{"$f":"'Month 9'!M129+'Month 9'!N129-'Month 9'!O129","v":{"v":0,"d":"0.00"}},null,"","",{"$f":"SUMIFS($J$25:$J$224,$C$25:$C$224,$C129,$G$25:$G$224,Lists!$A$16)","v":0},0,null,"",null,{"$f":"IF(C129=0,\"\",LEFT(INDEX(Lists!$H$5:$H$49,MATCH(C129,Lists!$G$5:$G$49,0),1),1))","v":""},null,{"$f":"'Month 9'!H129+'Month 9'!I129-'Month 9'!J129","v":0},"","",null,"0"]
[{"$f":"Planning!A114","v":"I106"},{"$f":"Planning!B114","v":0},{"$f":"Planning!C114","v":0},{"$f":"Planning!D114","v":0},{"$f":"Planning!E114","v":0},{"$f":"IF(Planning!G114<>0,Planning!G114,\"\")","v":""},{"$f":"Planning!H114","v":0},{"$f":"Planning!AJ114","v":0},{"$f":"IF(OR(W130=\"1\",AND(W130<>\"1\",G130=Lists!$A$17)),Y130,0)","v":0},null,{"$f":"IF(AND(W130=\"2\",G130<>Lists!$A$17),AA130,Z130)","v":""},"",{"$f":"Planning!AK114","v":{"v":0,"d":"0.00"}},{"$f":"'Month 9'!M130+'Month 9'!N130-'Month 9'!O130","v":{"v":0,"d":"0.00"}},null,"","",{"$f":"SUMIFS($J$25:$J$224,$C$25:$C$224,$C130,$G$25:$G$224,Lists!$A$16)","v":0},0,null,"",null,{"$f":"IF(C130=0,\"\",LEFT(INDEX(Lists!$H$5:$H$49,MATCH(C130,Lists!$G$5:$G$49,0),1),1))","v":""},null,{"$f":"'Month 9'!H130+'Month 9'!I130-'Month 9'!J130","v":0},"","",null,"0"]
[{"$f":"Planning!A115","v":"I107"},{"$f":"Planning!B115","v":0},{"$f":"Planning!C115","v":0},{"$f":"Planning!D115","v":0},{"$f":"Planning!E115","v":0},{"$f":"IF(Planning!G115<>0,Planning!G115,\"\")","v":""},{"$f":"Planning!H115","v":0},{"$f":"Planning!AJ115","v":0},{"$f":"IF(OR(W131=\"1\",AND(W131<>\"1\",G131=Lists!$A$17)),Y131,0)","v":0},null,{"$f":"IF(AND(W131=\"2\",G131<>Lists!$A$17),AA131,Z131)","v":""},"",{"$f":"Planning!AK115","v":{"v":0,"d":"0.00"}},{"$f":"'Month 9'!M131+'Month 9'!N131-'Month 9'!O131","v":{"v":0,"d":"0.00"}},null,"","",{"$f":"SUMIFS($J$25:$J$224,$C$25:$C$224,$C131,$G$25:$G$224,Lists!$A$16)","v":0},0,null,"",null,{"$f":"IF(C131=0,\"\",LEFT(INDEX(Lists!$H$5:$H$49,MATCH(C131,Lists!$G$5:$G$49,0),1),1))","v":""},null,{"$f":"'Month 9'!H131+'Month 9'!I131-'Month 9'!J131","v":0},"","",null,"0"]
[{"$f":"Planning!A116","v":"I108"},{"$f":"Planning!B116","v":0},{"$f":"Planning!C116","v":0},{"$f":"Planning!D116","v":0},{"$f":"Planning!E116","v":0},{"$f":"IF(Planning!G116<>0,Planning!G116,\"\")","v":""},{"$f":"Planning!H116","v":0},{"$f":"Planning!AJ116","v":0},{"$f":"IF(OR(W132=\"1\",AND(W132<>\"1\",G132=Lists!$A$17)),Y132,0)","v":0},null,{"$f":"IF(AND(W132=\"2\",G132<>Lists!$A$17),AA132,Z132)","v":""},"",{"$f":"Planning!AK116","v":{"v":0,"d":"0.00"}},{"$f":"'Month 9'!M132+'Month 9'!N132-'Month 9'!O132","v":{"v":0,"d":"0.00"}},null,"","",{"$f":"SUMIFS($J$25:$J$224,$C$25:$C$224,$C132,$G$25:$G$224,Lists!$A$16)","v":0},0,null,"",null,{"$f":"IF(C132=0,\"\",LEFT(INDEX(Lists!$H$5:$H$49,MATCH(C132,Lists!$G$5:$G$49,0),1),1))","v":""},null,{"$f":"'Month 9'!H132+'Month 9'!I132-'Month 9'!J132","v":0},"","",null,"0"]
[{"$f":"Planning!A117","v":"I109"},{"$f":"Planning!B117","v":0},{"$f":"Planning!C117","v":0},{"$f":"Planning!D117","v":0},{"$f":"Planning!E117","v":0},{"$f":"IF(Planning!G117<>0,Planning!G117,\"\")","v":""},{"$f":"Planning!H117","v":0},{"$f":"Planning!AJ117","v":0},{"$f":"IF(OR(W133=\"1\",AND(W133<>\"1\",G133=Lists!$A$17)),Y133,0)","v":0},null,{"$f":"IF(AND(W133=\"2\",G133<>Lists!$A$17),AA133,Z133)","v":""},"",{"$f":"Planning!AK117","v":{"v":0,"d":"0.00"}},{"$f":"'Month 9'!M133+'Month 9'!N133-'Month 9'!O133","v":{"v":0,"d":"0.00"}},null,"","",{"$f":"SUMIFS($J$25:$J$224,$C$25:$C$224,$C133,$G$25:$G$224,Lists!$A$16)","v":0},0,null,"",null,{"$f":"IF(C133=0,\"\",LEFT(INDEX(Lists!$H$5:$H$49,MATCH(C133,Lists!$G$5:$G$49,0),1),1))","v":""},null,{"$f":"'Month 9'!H133+'Month 9'!I133-'Month 9'!J133","v":0},"","",null,"0"]
[{"$f":"Planning!A118","v":"I110"},{"$f":"Planning!B118","v":0},{"$f":"Planning!C118","v":0},{"$f":"Planning!D118","v":0},{"$f":"Planning!E118","v":0},{"$f":"IF(Planning!G118<>0,Planning!G118,\"\")","v":""},{"$f":"Planning!H118","v":0},{"$f":"Planning!AJ118","v":0},{"$f":"IF(OR(W134=\"1\",AND(W134<>\"1\",G134=Lists!$A$17)),Y134,0)","v":0},null,{"$f":"IF(AND(W134=\"2\",G134<>Lists!$A$17),AA134,Z134)","v":""},"",{"$f":"Planning!AK118","v":{"v":0,"d":"0.00"}},{"$f":"'Month 9'!M134+'Month 9'!N134-'Month 9'!O134","v":{"v":0,"d":"0.00"}},null,"","",{"$f":"SUMIFS($J$25:$J$224,$C$25:$C$224,$C134,$G$25:$G$224,Lists!$A$16)","v":0},0,null,"",null,{"$f":"IF(C134=0,\"\",LEFT(INDEX(Lists!$H$5:$H$49,MATCH(C134,Lists!$G$5:$G$49,0),1),1))","v":""},null,{"$f":"'Month 9'!H134+'Month 9'!I134-'Month 9'!J134","v":0},"","",null,"0"]
[{"$f":"Planning!A119","v":"I111"},{"$f":"Planning!B119","v":0},{"$f":"Planning!C119","v":0},{"$f":"Planning!D119","v":0},{"$f":"Planning!E119","v":0},{"$f":"IF(Planning!G119<>0,Planning!G119,\"\")","v":""},{"$f":"Planning!H119","v":0},{"$f":"Planning!AJ119","v":0},{"$f":"IF(OR(W135=\"1\",AND(W135<>\"1\",G135=Lists!$A$17)),Y135,0)","v":0},null,{"$f":"IF(AND(W135=\"2\",G135<>Lists!$A$17),AA135,Z135)","v":""},"",{"$f":"Planning!AK119","v":{"v":0,"d":"0.00"}},{"$f":"'Month 9'!M135+'Month 9'!N135-'Month 9'!O135","v":{"v":0,"d":"0.00"}},null,"","",{"$f":"SUMIFS($J$25:$J$224,$C$25:$C$224,$C135,$G$25:$G$224,Lists!$A$16)","v":0},0,null,"",null,{"$f":"IF(C135=0,\"\",LEFT(INDEX(Lists!$H$5:$H$49,MATCH(C135,Lists!$G$5:$G$49,0),1),1))","v":""},null,{"$f":"'Month 9'!H135+'Month 9'!I135-'Month 9'!J135","v":0},"","",null,"0"]
[{"$f":"Planning!A120","v":"I112"},{"$f":"Planning!B120","v":0},{"$f":"Planning!C120","v":0},{"$f":"Planning!D120","v":0},{"$f":"Planning!E120","v":0},{"$f":"IF(Planning!G120<>0,Planning!G120,\"\")","v":""},{"$f":"Planning!H120","v":0},{"$f":"Planning!AJ120","v":0},{"$f":"IF(OR(W136=\"1\",AND(W136<>\"1\",G136=Lists!$A$17)),Y136,0)","v":0},null,{"$f":"IF(AND(W136=\"2\",G136<>Lists!$A$17),AA136,Z136)","v":""},"",{"$f":"Planning!AK120","v":{"v":0,"d":"0.00"}},{"$f":"'Month 9'!M136+'Month 9'!N136-'Month 9'!O136","v":{"v":0,"d":"0.00"}},null,"","",{"$f":"SUMIFS($J$25:$J$224,$C$25:$C$224,$C136,$G$25:$G$224,Lists!$A$16)","v":0},0,null,"",null,{"$f":"IF(C136=0,\"\",LEFT(INDEX(Lists!$H$5:$H$49,MATCH(C136,Lists!$G$5:$G$49,0),1),1))","v":""},null,{"$f":"'Month 9'!H136+'Month 9'!I136-'Month 9'!J136","v":0},"","",null,"0"]
[{"$f":"Planning!A121","v":"I113"},{"$f":"Planning!B121","v":0},{"$f":"Planning!C121","v":0},{"$f":"Planning!D121","v":0},{"$f":"Planning!E121","v":0},{"$f":"IF(Planning!G121<>0,Planning!G121,\"\")","v":""},{"$f":"Planning!H121","v":0},{"$f":"Planning!AJ121","v":0},{"$f":"IF(OR(W137=\"1\",AND(W137<>\"1\",G137=Lists!$A$17)),Y137,0)","v":0},null,{"$f":"IF(AND(W137=\"2\",G137<>Lists!$A$17),AA137,Z137)","v":""},"",{"$f":"Planning!AK121","v":{"v":0,"d":"0.00"}},{"$f":"'Month 9'!M137+'Month 9'!N137-'Month 9'!O137","v":{"v":0,"d":"0.00"}},null,"","",{"$f":"SUMIFS($J$25:$J$224,$C$25:$C$224,$C137,$G$25:$G$224,Lists!$A$16)","v":0},0,null,"",null,{"$f":"IF(C137=0,\"\",LEFT(INDEX(Lists!$H$5:$H$49,MATCH(C137,Lists!$G$5:$G$49,0),1),1))","v":""},null,{"$f":"'Month 9'!H137+'Month 9'!I137-'Month 9'!J137","v":0},"","",null,"0"]
[{"$f":"Planning!A122","v":"I114"},{"$f":"Planning!B122","v":0},{"$f":"Planning!C122","v":0},{"$f":"Planning!D122","v":0},{"$f":"Planning!E122","v":0},{"$f":"IF(Planning!G122<>0,Planning!G122,\"\")","v":""},{"$f":"Planning!H122","v":0},{"$f":"Planning!AJ122","v":0},{"$f":"IF(OR(W138=\"1\",AND(W138<>\"1\",G138=Lists!$A$17)),Y138,0)","v":0},null,{"$f":"IF(AND(W138=\"2\",G138<>Lists!$A$17),AA138,Z138)","v":""},"",{"$f":"Planning!AK122","v":{"v":0,"d":"0.00"}},{"$f":"'Month 9'!M138+'Month 9'!N138-'Month 9'!O138","v":{"v":0,"d":"0.00"}},null,"","",{"$f":"SUMIFS($J$25:$J$224,$C$25:$C$224,$C138,$G$25:$G$224,Lists!$A$16)","v":0},0,null,"",null,{"$f":"IF(C138=0,\"\",LEFT(INDEX(Lists!$H$5:$H$49,MATCH(C138,Lists!$G$5:$G$49,0),1),1))","v":""},null,{"$f":"'Month 9'!H138+'Month 9'!I138-'Month 9'!J138","v":0},"","",null,"0"]
[{"$f":"Planning!A123","v":"I115"},{"$f":"Planning!B123","v":0},{"$f":"Planning!C123","v":0},{"$f":"Planning!D123","v":0},{"$f":"Planning!E123","v":0},{"$f":"IF(Planning!G123<>0,Planning!G123,\"\")","v":""},{"$f":"Planning!H123","v":0},{"$f":"Planning!AJ123","v":0},{"$f":"IF(OR(W139=\"1\",AND(W139<>\"1\",G139=Lists!$A$17)),Y139,0)","v":0},null,{"$f":"IF(AND(W139=\"2\",G139<>Lists!$A$17),AA139,Z139)","v":""},"",{"$f":"Planning!AK123","v":{"v":0,"d":"0.00"}},{"$f":"'Month 9'!M139+'Month 9'!N139-'Month 9'!O139","v":{"v":0,"d":"0.00"}},null,"","",{"$f":"SUMIFS($J$25:$J$224,$C$25:$C$224,$C139,$G$25:$G$224,Lists!$A$16)","v":0},0,null,"",null,{"$f":"IF(C139=0,\"\",LEFT(INDEX(Lists!$H$5:$H$49,MATCH(C139,Lists!$G$5:$G$49,0),1),1))","v":""},null,{"$f":"'Month 9'!H139+'Month 9'!I139-'Month 9'!J139","v":0},"","",null,"0"]
[{"$f":"Planning!A124","v":"I116"},{"$f":"Planning!B124","v":0},{"$f":"Planning!C124","v":0},{"$f":"Planning!D124","v":0},{"$f":"Planning!E124","v":0},{"$f":"IF(Planning!G124<>0,Planning!G124,\"\")","v":""},{"$f":"Planning!H124","v":0},{"$f":"Planning!AJ124","v":0},{"$f":"IF(OR(W140=\"1\",AND(W140<>\"1\",G140=Lists!$A$17)),Y140,0)","v":0},null,{"$f":"IF(AND(W140=\"2\",G140<>Lists!$A$17),AA140,Z140)","v":""},"",{"$f":"Planning!AK124","v":{"v":0,"d":"0.00"}},{"$f":"'Month 9'!M140+'Month 9'!N140-'Month 9'!O140","v":{"v":0,"d":"0.00"}},null,"","",{"$f":"SUMIFS($J$25:$J$224,$C$25:$C$224,$C140,$G$25:$G$224,Lists!$A$16)","v":0},0,null,"",null,{"$f":"IF(C140=0,\"\",LEFT(INDEX(Lists!$H$5:$H$49,MATCH(C140,Lists!$G$5:$G$49,0),1),1))","v":""},null,{"$f":"'Month 9'!H140+'Month 9'!I140-'Month 9'!J140","v":0},"","",null,"0"]
[{"$f":"Planning!A125","v":"I117"},{"$f":"Planning!B125","v":0},{"$f":"Planning!C125","v":0},{"$f":"Planning!D125","v":0},{"$f":"Planning!E125","v":0},{"$f":"IF(Planning!G125<>0,Planning!G125,\"\")","v":""},{"$f":"Planning!H125","v":0},{"$f":"Planning!AJ125","v":0},{"$f":"IF(OR(W141=\"1\",AND(W141<>\"1\",G141=Lists!$A$17)),Y141,0)","v":0},null,{"$f":"IF(AND(W141=\"2\",G141<>Lists!$A$17),AA141,Z141)","v":""},"",{"$f":"Planning!AK125","v":{"v":0,"d":"0.00"}},{"$f":"'Month 9'!M141+'Month 9'!N141-'Month 9'!O141","v":{"v":0,"d":"0.00"}},null,"","",{"$f":"SUMIFS($J$25:$J$224,$C$25:$C$224,$C141,$G$25:$G$224,Lists!$A$16)","v":0},0,null,"",null,{"$f":"IF(C141=0,\"\",LEFT(INDEX(Lists!$H$5:$H$49,MATCH(C141,Lists!$G$5:$G$49,0),1),1))","v":""},null,{"$f":"'Month 9'!H141+'Month 9'!I141-'Month 9'!J141","v":0},"","",null,"0"]
[{"$f":"Planning!A126","v":"I118"},{"$f":"Planning!B126","v":0},{"$f":"Planning!C126","v":0},{"$f":"Planning!D126","v":0},{"$f":"Planning!E126","v":0},{"$f":"IF(Planning!G126<>0,Planning!G126,\"\")","v":""},{"$f":"Planning!H126","v":0},{"$f":"Planning!AJ126","v":0},{"$f":"IF(OR(W142=\"1\",AND(W142<>\"1\",G142=Lists!$A$17)),Y142,0)","v":0},null,{"$f":"IF(AND(W142=\"2\",G142<>Lists!$A$17),AA142,Z142)","v":""},"",{"$f":"Planning!AK126","v":{"v":0,"d":"0.00"}},{"$f":"'Month 9'!M142+'Month 9'!N142-'Month 9'!O142","v":{"v":0,"d":"0.00"}},null,"","",{"$f":"SUMIFS($J$25:$J$224,$C$25:$C$224,$C142,$G$25:$G$224,Lists!$A$16)","v":0},0,null,"",null,{"$f":"IF(C142=0,\"\",LEFT(INDEX(Lists!$H$5:$H$49,MATCH(C142,Lists!$G$5:$G$49,0),1),1))","v":""},null,{"$f":"'Month 9'!H142+'Month 9'!I142-'Month 9'!J142","v":0},"","",null,"0"]
[{"$f":"Planning!A127","v":"I119"},{"$f":"Planning!B127","v":0},{"$f":"Planning!C127","v":0},{"$f":"Planning!D127","v":0},{"$f":"Planning!E127","v":0},{"$f":"IF(Planning!G127<>0,Planning!G127,\"\")","v":""},{"$f":"Planning!H127","v":0},{"$f":"Planning!AJ127","v":0},{"$f":"IF(OR(W143=\"1\",AND(W143<>\"1\",G143=Lists!$A$17)),Y143,0)","v":0},null,{"$f":"IF(AND(W143=\"2\",G143<>Lists!$A$17),AA143,Z143)","v":""},"",{"$f":"Planning!AK127","v":{"v":0,"d":"0.00"}},{"$f":"'Month 9'!M143+'Month 9'!N143-'Month 9'!O143","v":{"v":0,"d":"0.00"}},null,"","",{"$f":"SUMIFS($J$25:$J$224,$C$25:$C$224,$C143,$G$25:$G$224,Lists!$A$16)","v":0},0,null,"",null,{"$f":"IF(C143=0,\"\",LEFT(INDEX(Lists!$H$5:$H$49,MATCH(C143,Lists!$G$5:$G$49,0),1),1))","v":""},null,{"$f":"'Month 9'!H143+'Month 9'!I143-'Month 9'!J143","v":0},"","",null,"0"]
[{"$f":"Planning!A128","v":"I120"},{"$f":"Planning!B128","v":0},{"$f":"Planning!C128","v":0},{"$f":"Planning!D128","v":0},{"$f":"Planning!E128","v":0},{"$f":"IF(Planning!G128<>0,Planning!G128,\"\")","v":""},{"$f":"Planning!H128","v":0},{"$f":"Planning!AJ128","v":0},{"$f":"IF(OR(W144=\"1\",AND(W144<>\"1\",G144=Lists!$A$17)),Y144,0)","v":0},null,{"$f":"IF(AND(W144=\"2\",G144<>Lists!$A$17),AA144,Z144)","v":""},"",{"$f":"Planning!AK128","v":{"v":0,"d":"0.00"}},{"$f":"'Month 9'!M144+'Month 9'!N144-'Month 9'!O144","v":{"v":0,"d":"0.00"}},null,"","",{"$f":"SUMIFS($J$25:$J$224,$C$25:$C$224,$C144,$G$25:$G$224,Lists!$A$16)","v":0},0,null,"",null,{"$f":"IF(C144=0,\"\",LEFT(INDEX(Lists!$H$5:$H$49,MATCH(C144,Lists!$G$5:$G$49,0),1),1))","v":""},null,{"$f":"'Month 9'!H144+'Month 9'!I144-'Month 9'!J144","v":0},"","",null,"0"]
[{"$f":"Planning!A129","v":"I121"},{"$f":"Planning!B129","v":0},{"$f":"Planning!C129","v":0},{"$f":"Planning!D129","v":0},{"$f":"Planning!E129","v":0},{"$f":"IF(Planning!G129<>0,Planning!G129,\"\")","v":""},{"$f":"Planning!H129","v":0},{"$f":"Planning!AJ129","v":0},{"$f":"IF(OR(W145=\"1\",AND(W145<>\"1\",G145=Lists!$A$17)),Y145,0)","v":0},null,{"$f":"IF(AND(W145=\"2\",G145<>Lists!$A$17),AA145,Z145)","v":""},"",{"$f":"Planning!AK129","v":{"v":0,"d":"0.00"}},{"$f":"'Month 9'!M145+'Month 9'!N145-'Month 9'!O145","v":{"v":0,"d":"0.00"}},null,"","",{"$f":"SUMIFS($J$25:$J$224,$C$25:$C$224,$C145,$G$25:$G$224,Lists!$A$16)","v":0},0,null,"",null,{"$f":"IF(C145=0,\"\",LEFT(INDEX(Lists!$H$5:$H$49,MATCH(C145,Lists!$G$5:$G$49,0),1),1))","v":""},null,{"$f":"'Month 9'!H145+'Month 9'!I145-'Month 9'!J145","v":0},"","",null,"0"]
[{"$f":"Planning!A130","v":"I122"},{"$f":"Planning!B130","v":0},{"$f":"Planning!C130","v":0},{"$f":"Planning!D130","v":0},{"$f":"Planning!E130","v":0},{"$f":"IF(Planning!G130<>0,Planning!G130,\"\")","v":""},{"$f":"Planning!H130","v":0},{"$f":"Planning!AJ130","v":0},{"$f":"IF(OR(W146=\"1\",AND(W146<>\"1\",G146=Lists!$A$17)),Y146,0)","v":0},null,{"$f":"IF(AND(W146=\"2\",G146<>Lists!$A$17),AA146,Z146)","v":""},"",{"$f":"Planning!AK130","v":{"v":0,"d":"0.00"}},{"$f":"'Month 9'!M146+'Month 9'!N146-'Month 9'!O146","v":{"v":0,"d":"0.00"}},null,"","",{"$f":"SUMIFS($J$25:$J$224,$C$25:$C$224,$C146,$G$25:$G$224,Lists!$A$16)","v":0},0,null,"",null,{"$f":"IF(C146=0,\"\",LEFT(INDEX(Lists!$H$5:$H$49,MATCH(C146,Lists!$G$5:$G$49,0),1),1))","v":""},null,{"$f":"'Month 9'!H146+'Month 9'!I146-'Month 9'!J146","v":0},"","",null,"0"]
[{"$f":"Planning!A131","v":"I123"},{"$f":"Planning!B131","v":0},{"$f":"Planning!C131","v":0},{"$f":"Planning!D131","v":0},{"$f":"Planning!E131","v":0},{"$f":"IF(Planning!G131<>0,Planning!G131,\"\")","v":""},{"$f":"Planning!H131","v":0},{"$f":"Planning!AJ131","v":0},{"$f":"IF(OR(W147=\"1\",AND(W147<>\"1\",G147=Lists!$A$17)),Y147,0)","v":0},null,{"$f":"IF(AND(W147=\"2\",G147<>Lists!$A$17),AA147,Z147)","v":""},"",{"$f":"Planning!AK131","v":{"v":0,"d":"0.00"}},{"$f":"'Month 9'!M147+'Month 9'!N147-'Month 9'!O147","v":{"v":0,"d":"0.00"}},null,"","",{"$f":"SUMIFS($J$25:$J$224,$C$25:$C$224,$C147,$G$25:$G$224,Lists!$A$16)","v":0},0,null,"",null,{"$f":"IF(C147=0,\"\",LEFT(INDEX(Lists!$H$5:$H$49,MATCH(C147,Lists!$G$5:$G$49,0),1),1))","v":""},null,{"$f":"'Month 9'!H147+'Month 9'!I147-'Month 9'!J147","v":0},"","",null,"0"]
[{"$f":"Planning!A132","v":"I124"},{"$f":"Planning!B132","v":0},{"$f":"Planning!C132","v":0},{"$f":"Planning!D132","v":0},{"$f":"Planning!E132","v":0},{"$f":"IF(Planning!G132<>0,Planning!G132,\"\")","v":""},{"$f":"Planning!H132","v":0},{"$f":"Planning!AJ132","v":0},{"$f":"IF(OR(W148=\"1\",AND(W148<>\"1\",G148=Lists!$A$17)),Y148,0)","v":0},null,{"$f":"IF(AND(W148=\"2\",G148<>Lists!$A$17),AA148,Z148)","v":""},"",{"$f":"Planning!AK132","v":{"v":0,"d":"0.00"}},{"$f":"'Month 9'!M148+'Month 9'!N148-'Month 9'!O148","v":{"v":0,"d":"0.00"}},null,"","",{"$f":"SUMIFS($J$25:$J$224,$C$25:$C$224,$C148,$G$25:$G$224,Lists!$A$16)","v":0},0,null,"",null,{"$f":"IF(C148=0,\"\",LEFT(INDEX(Lists!$H$5:$H$49,MATCH(C148,Lists!$G$5:$G$49,0),1),1))","v":""},null,{"$f":"'Month 9'!H148+'Month 9'!I148-'Month 9'!J148","v":0},"","",null,"0"]
[{"$f":"Planning!A133","v":"I125"},{"$f":"Planning!B133","v":0},{"$f":"Planning!C133","v":0},{"$f":"Planning!D133","v":0},{"$f":"Planning!E133","v":0},{"$f":"IF(Planning!G133<>0,Planning!G133,\"\")","v":""},{"$f":"Planning!H133","v":0},{"$f":"Planning!AJ133","v":0},{"$f":"IF(OR(W149=\"1\",AND(W149<>\"1\",G149=Lists!$A$17)),Y149,0)","v":0},null,{"$f":"IF(AND(W149=\"2\",G149<>Lists!$A$17),AA149,Z149)","v":""},"",{"$f":"Planning!AK133","v":{"v":0,"d":"0.00"}},{"$f":"'Month 9'!M149+'Month 9'!N149-'Month 9'!O149","v":{"v":0,"d":"0.00"}},null,"","",{"$f":"SUMIFS($J$25:$J$224,$C$25:$C$224,$C149,$G$25:$G$224,Lists!$A$16)","v":0},0,null,"",null,{"$f":"IF(C149=0,\"\",LEFT(INDEX(Lists!$H$5:$H$49,MATCH(C149,Lists!$G$5:$G$49,0),1),1))","v":""},null,{"$f":"'Month 9'!H149+'Month 9'!I149-'Month 9'!J149","v":0},"","",null,"0"]
[{"$f":"Planning!A134","v":"I126"},{"$f":"Planning!B134","v":0},{"$f":"Planning!C134","v":0},{"$f":"Planning!D134","v":0},{"$f":"Planning!E134","v":0},{"$f":"IF(Planning!G134<>0,Planning!G134,\"\")","v":""},{"$f":"Planning!H134","v":0},{"$f":"Planning!AJ134","v":0},{"$f":"IF(OR(W150=\"1\",AND(W150<>\"1\",G150=Lists!$A$17)),Y150,0)","v":0},null,{"$f":"IF(AND(W150=\"2\",G150<>Lists!$A$17),AA150,Z150)","v":""},"",{"$f":"Planning!AK134","v":{"v":0,"d":"0.00"}},{"$f":"'Month 9'!M150+'Month 9'!N150-'Month 9'!O150","v":{"v":0,"d":"0.00"}},null,"","",{"$f":"SUMIFS($J$25:$J$224,$C$25:$C$224,$C150,$G$25:$G$224,Lists!$A$16)","v":0},0,null,"",null,{"$f":"IF(C150=0,\"\",LEFT(INDEX(Lists!$H$5:$H$49,MATCH(C150,Lists!$G$5:$G$49,0),1),1))","v":""},null,{"$f":"'Month 9'!H150+'Month 9'!I150-'Month 9'!J150","v":0},"","",null,"0"]
[{"$f":"Planning!A135","v":"I127"},{"$f":"Planning!B135","v":0},{"$f":"Planning!C135","v":0},{"$f":"Planning!D135","v":0},{"$f":"Planning!E135","v":0},{"$f":"IF(Planning!G135<>0,Planning!G135,\"\")","v":""},{"$f":"Planning!H135","v":0},{"$f":"Planning!AJ135","v":0},{"$f":"IF(OR(W151=\"1\",AND(W151<>\"1\",G151=Lists!$A$17)),Y151,0)","v":0},null,{"$f":"IF(AND(W151=\"2\",G151<>Lists!$A$17),AA151,Z151)","v":""},"",{"$f":"Planning!AK135","v":{"v":0,"d":"0.00"}},{"$f":"'Month 9'!M151+'Month 9'!N151-'Month 9'!O151","v":{"v":0,"d":"0.00"}},null,"","",{"$f":"SUMIFS($J$25:$J$224,$C$25:$C$224,$C151,$G$25:$G$224,Lists!$A$16)","v":0},0,null,"",null,{"$f":"IF(C151=0,\"\",LEFT(INDEX(Lists!$H$5:$H$49,MATCH(C151,Lists!$G$5:$G$49,0),1),1))","v":""},null,{"$f":"'Month 9'!H151+'Month 9'!I151-'Month 9'!J151","v":0},"","",null,"0"]
[{"$f":"Planning!A136","v":"I128"},{"$f":"Planning!B136","v":0},{"$f":"Planning!C136","v":0},{"$f":"Planning!D136","v":0},{"$f":"Planning!E136","v":0},{"$f":"IF(Planning!G136<>0,Planning!G136,\"\")","v":""},{"$f":"Planning!H136","v":0},{"$f":"Planning!AJ136","v":0},{"$f":"IF(OR(W152=\"1\",AND(W152<>\"1\",G152=Lists!$A$17)),Y152,0)","v":0},null,{"$f":"IF(AND(W152=\"2\",G152<>Lists!$A$17),AA152,Z152)","v":""},"",{"$f":"Planning!AK136","v":{"v":0,"d":"0.00"}},{"$f":"'Month 9'!M152+'Month 9'!N152-'Month 9'!O152","v":{"v":0,"d":"0.00"}},null,"","",{"$f":"SUMIFS($J$25:$J$224,$C$25:$C$224,$C152,$G$25:$G$224,Lists!$A$16)","v":0},0,null,"",null,{"$f":"IF(C152=0,\"\",LEFT(INDEX(Lists!$H$5:$H$49,MATCH(C152,Lists!$G$5:$G$49,0),1),1))","v":""},null,{"$f":"'Month 9'!H152+'Month 9'!I152-'Month 9'!J152","v":0},"","",null,"0"]
[{"$f":"Planning!A137","v":"I129"},{"$f":"Planning!B137","v":0},{"$f":"Planning!C137","v":0},{"$f":"Planning!D137","v":0},{"$f":"Planning!E137","v":0},{"$f":"IF(Planning!G137<>0,Planning!G137,\"\")","v":""},{"$f":"Planning!H137","v":0},{"$f":"Planning!AJ137","v":0},{"$f":"IF(OR(W153=\"1\",AND(W153<>\"1\",G153=Lists!$A$17)),Y153,0)","v":0},null,{"$f":"IF(AND(W153=\"2\",G153<>Lists!$A$17),AA153,Z153)","v":""},{"$f":"IF($U153=ExcluirDelPLogro,\"\",IF(AND(H153=0,I153=0,J153=0),\"\",K153))","v":""},{"$f":"Planning!AK137","v":{"v":0,"d":"0.00"}},{"$f":"'Month 9'!M153+'Month 9'!N153-'Month 9'!O153","v":{"v":0,"d":"0.00"}},null,"",{"$f":"IF($U153=ExcluirDelPLogro,\"\",IF(AND(M153=0,N153=0,O153=0),\"\",P153))","v":""},{"$f":"SUMIFS($J$25:$J$224,$C$25:$C$224,$C153,$G$25:$G$224,Lists!$A$16)","v":0},0,null,"",null,{"$f":"IF(C153=0,\"\",LEFT(INDEX(Lists!$H$5:$H$49,MATCH(C153,Lists!$G$5:$G$49,0),1),1))","v":""},null,{"$f":"'Month 9'!H153+'Month 9'!I153-'Month 9'!J153","v":0},"",{"$f":"IF(AND(H153=0,I153=0,J153=0),\"\",IF(J153>0,H153/J153,0))","v":""},null,"0"]
[{"$f":"Planning!A138","v":"I130"},{"$f":"Planning!B138","v":0},{"$f":"Planning!C138","v":0},{"$f":"Planning!D138","v":0},{"$f":"Planning!E138","v":0},{"$f":"IF(Planning!G138<>0,Planning!G138,\"\")","v":""},{"$f":"Planning!H138","v":0},{"$f":"Planning!AJ138","v":0},{"$f":"IF(OR(W154=\"1\",AND(W154<>\"1\",G154=Lists!$A$17)),Y154,0)","v":0},null,{"$f":"IF(AND(W154=\"2\",G154<>Lists!$A$17),AA154,Z154)","v":""},"",{"$f":"Planning!AK138","v":{"v":0,"d":"0.00"}},{"$f":"'Month 9'!M154+'Month 9'!N154-'Month 9'!O154","v":{"v":0,"d":"0.00"}},null,{"$f":"IF(AND(M154=0,N154=0,O154=0),\"\",IF((M154+N154)>0,O154/(M154+N154),O154))","v":""},"",{"$f":"SUMIFS($J$25:$J$224,$C$25:$C$224,$C154,$G$25:$G$224,Lists!$A$16)","v":0},{"$f":"SUMIFS($O$25:$O$224,$C$25:$C$224,$C154,$G$25:$G$224,\"<>0\")","v":0},null,{"$f":"IF(B154=0,\"\",IF(LEFT(B154,1)=\"1\",\"1\",\"2\"))","v":""},null,{"$f":"IF(C154=0,\"\",LEFT(INDEX(Lists!$H$5:$H$49,MATCH(C154,Lists!$G$5:$G$49,0),1),1))","v":""},null,{"$f":"'Month 9'!H154+'Month 9'!I154-'Month 9'!J154","v":0},{"$f":"IF(AND(H154=0,I154=0,J154=0),\"\",IF((H154+I154)>0,J154/(H154+I154),J154))","v":""},"",null,{"$f":"U154&C154","v":"0"}]
[{"$f":"Planning!A139","v":"I131"},{"$f":"Planning!B139","v":0},{"$f":"Planning!C139","v":0},{"$f":"Planning!D139","v":0},{"$f":"Planning!E139","v":0},{"$f":"IF(Planning!G139<>0,Planning!G139,\"\")","v":""},{"$f":"Planning!H139","v":0},{"$f":"Planning!AJ139","v":0},{"$f":"IF(OR(W155=\"1\",AND(W155<>\"1\",G155=Lists!$A$17)),Y155,0)","v":0},null,{"$f":"IF(AND(W155=\"2\",G155<>Lists!$A$17),AA155,Z155)","v":""},"",{"$f":"Planning!AK139","v":{"v":0,"d":"0.00"}},{"$f":"'Month 9'!M155+'Month 9'!N155-'Month 9'!O155","v":{"v":0,"d":"0.00"}},null,"","",{"$f":"SUMIFS($J$25:$J$224,$C$25:$C$224,$C155,$G$25:$G$224,Lists!$A$16)","v":0},0,null,"",null,{"$f":"IF(C155=0,\"\",LEFT(INDEX(Lists!$H$5:$H$49,MATCH(C155,Lists!$G$5:$G$49,0),1),1))","v":""},null,{"$f":"'Month 9'!H155+'Month 9'!I155-'Month 9'!J155","v":0},"","",null,"0"]
[{"$f":"Planning!A140","v":"I132"},{"$f":"Planning!B140","v":0},{"$f":"Planning!C140","v":0},{"$f":"Planning!D140","v":0},{"$f":"Planning!E140","v":0},{"$f":"IF(Planning!G140<>0,Planning!G140,\"\")","v":""},{"$f":"Planning!H140","v":0},{"$f":"Planning!AJ140","v":0},{"$f":"IF(OR(W156=\"1\",AND(W156<>\"1\",G156=Lists!$A$17)),Y156,0)","v":0},null,{"$f":"IF(AND(W156=\"2\",G156<>Lists!$A$17),AA156,Z156)","v":""},"",{"$f":"Planning!AK140","v":{"v":0,"d":"0.00"}},{"$f":"'Month 9'!M156+'Month 9'!N156-'Month 9'!O156","v":{"v":0,"d":"0.00"}},null,"","",{"$f":"SUMIFS($J$25:$J$224,$C$25:$C$224,$C156,$G$25:$G$224,Lists!$A$16)","v":0},0,null,"",null,{"$f":"IF(C156=0,\"\",LEFT(INDEX(Lists!$H$5:$H$49,MATCH(C156,Lists!$G$5:$G$49,0),1),1))","v":""},null,{"$f":"'Month 9'!H156+'Month 9'!I156-'Month 9'!J156","v":0},"","",null,"0"]
[{"$f":"Planning!A141","v":"I133"},{"$f":"Planning!B141","v":0},{"$f":"Planning!C141","v":0},{"$f":"Planning!D141","v":0},{"$f":"Planning!E141","v":0},{"$f":"IF(Planning!G141<>0,Planning!G141,\"\")","v":""},{"$f":"Planning!H141","v":0},{"$f":"Planning!AJ141","v":0},{"$f":"IF(OR(W157=\"1\",AND(W157<>\"1\",G157=Lists!$A$17)),Y157,0)","v":0},null,{"$f":"IF(AND(W157=\"2\",G157<>Lists!$A$17),AA157,Z157)","v":""},"",{"$f":"Planning!AK141","v":{"v":0,"d":"0.00"}},{"$f":"'Month 9'!M157+'Month 9'!N157-'Month 9'!O157","v":{"v":0,"d":"0.00"}},null,"","",{"$f":"SUMIFS($J$25:$J$224,$C$25:$C$224,$C157,$G$25:$G$224,Lists!$A$16)","v":0},0,null,"",null,{"$f":"IF(C157=0,\"\",LEFT(INDEX(Lists!$H$5:$H$49,MATCH(C157,Lists!$G$5:$G$49,0),1),1))","v":""},null,{"$f":"'Month 9'!H157+'Month 9'!I157-'Month 9'!J157","v":0},"","",null,"0"]
[{"$f":"Planning!A142","v":"I134"},{"$f":"Planning!B142","v":0},{"$f":"Planning!C142","v":0},{"$f":"Planning!D142","v":0},{"$f":"Planning!E142","v":0},{"$f":"IF(Planning!G142<>0,Planning!G142,\"\")","v":""},{"$f":"Planning!H142","v":0},{"$f":"Planning!AJ142","v":0},{"$f":"IF(OR(W158=\"1\",AND(W158<>\"1\",G158=Lists!$A$17)),Y158,0)","v":0},null,{"$f":"IF(AND(W158=\"2\",G158<>Lists!$A$17),AA158,Z158)","v":""},"",{"$f":"Planning!AK142","v":{"v":0,"d":"0.00"}},{"$f":"'Month 9'!M158+'Month 9'!N158-'Month 9'!O158","v":{"v":0,"d":"0.00"}},null,"","",{"$f":"SUMIFS($J$25:$J$224,$C$25:$C$224,$C158,$G$25:$G$224,Lists!$A$16)","v":0},0,null,"",null,{"$f":"IF(C158=0,\"\",LEFT(INDEX(Lists!$H$5:$H$49,MATCH(C158,Lists!$G$5:$G$49,0),1),1))","v":""},null,{"$f":"'Month 9'!H158+'Month 9'!I158-'Month 9'!J158","v":0},"","",null,"0"]
[{"$f":"Planning!A143","v":"I135"},{"$f":"Planning!B143","v":0},{"$f":"Planning!C143","v":0},{"$f":"Planning!D143","v":0},{"$f":"Planning!E143","v":0},{"$f":"IF(Planning!G143<>0,Planning!G143,\"\")","v":""},{"$f":"Planning!H143","v":0},{"$f":"Planning!AJ143","v":0},{"$f":"IF(OR(W159=\"1\",AND(W159<>\"1\",G159=Lists!$A$17)),Y159,0)","v":0},null,{"$f":"IF(AND(W159=\"2\",G159<>Lists!$A$17),AA159,Z159)","v":""},"",{"$f":"Planning!AK143","v":{"v":0,"d":"0.00"}},{"$f":"'Month 9'!M159+'Month 9'!N159-'Month 9'!O159","v":{"v":0,"d":"0.00"}},null,"","",{"$f":"SUMIFS($J$25:$J$224,$C$25:$C$224,$C159,$G$25:$G$224,Lists!$A$16)","v":0},0,null,"",null,{"$f":"IF(C159=0,\"\",LEFT(INDEX(Lists!$H$5:$H$49,MATCH(C159,Lists!$G$5:$G$49,0),1),1))","v":""},null,{"$f":"'Month 9'!H159+'Month 9'!I159-'Month 9'!J159","v":0},"","",null,"0"]
[{"$f":"Planning!A144","v":"I136"},{"$f":"Planning!B144","v":0},{"$f":"Planning!C144","v":0},{"$f":"Planning!D144","v":0},{"$f":"Planning!E144","v":0},{"$f":"IF(Planning!G144<>0,Planning!G144,\"\")","v":""},{"$f":"Planning!H144","v":0},{"$f":"Planning!AJ144","v":0},{"$f":"IF(OR(W160=\"1\",AND(W160<>\"1\",G160=Lists!$A$17)),Y160,0)","v":0},null,{"$f":"IF(AND(W160=\"2\",G160<>Lists!$A$17),AA160,Z160)","v":""},"",{"$f":"Planning!AK144","v":{"v":0,"d":"0.00"}},{"$f":"'Month 9'!M160+'Month 9'!N160-'Month 9'!O160","v":{"v":0,"d":"0.00"}},null,"","",{"$f":"SUMIFS($J$25:$J$224,$C$25:$C$224,$C160,$G$25:$G$224,Lists!$A$16)","v":0},0,null,"",null,{"$f":"IF(C160=0,\"\",LEFT(INDEX(Lists!$H$5:$H$49,MATCH(C160,Lists!$G$5:$G$49,0),1),1))","v":""},null,{"$f":"'Month 9'!H160+'Month 9'!I160-'Month 9'!J160","v":0},"","",null,"0"]
[{"$f":"Planning!A145","v":"I137"},{"$f":"Planning!B145","v":0},{"$f":"Planning!C145","v":0},{"$f":"Planning!D145","v":0},{"$f":"Planning!E145","v":0},{"$f":"IF(Planning!G145<>0,Planning!G145,\"\")","v":""},{"$f":"Planning!H145","v":0},{"$f":"Planning!AJ145","v":0},{"$f":"IF(OR(W161=\"1\",AND(W161<>\"1\",G161=Lists!$A$17)),Y161,0)","v":0},null,{"$f":"IF(AND(W161=\"2\",G161<>Lists!$A$17),AA161,Z161)","v":""},"",{"$f":"Planning!AK145","v":{"v":0,"d":"0.00"}},{"$f":"'Month 9'!M161+'Month 9'!N161-'Month 9'!O161","v":{"v":0,"d":"0.00"}},null,"","",{"$f":"SUMIFS($J$25:$J$224,$C$25:$C$224,$C161,$G$25:$G$224,Lists!$A$16)","v":0},0,null,"",null,{"$f":"IF(C161=0,\"\",LEFT(INDEX(Lists!$H$5:$H$49,MATCH(C161,Lists!$G$5:$G$49,0),1),1))","v":""},null,{"$f":"'Month 9'!H161+'Month 9'!I161-'Month 9'!J161","v":0},"","",null,"0"]
[{"$f":"Planning!A146","v":"I138"},{"$f":"Planning!B146","v":0},{"$f":"Planning!C146","v":0},{"$f":"Planning!D146","v":0},{"$f":"Planning!E146","v":0},{"$f":"IF(Planning!G146<>0,Planning!G146,\"\")","v":""},{"$f":"Planning!H146","v":0},{"$f":"Planning!AJ146","v":0},{"$f":"IF(OR(W162=\"1\",AND(W162<>\"1\",G162=Lists!$A$17)),Y162,0)","v":0},null,{"$f":"IF(AND(W162=\"2\",G162<>Lists!$A$17),AA162,Z162)","v":""},"",{"$f":"Planning!AK146","v":{"v":0,"d":"0.00"}},{"$f":"'Month 9'!M162+'Month 9'!N162-'Month 9'!O162","v":{"v":0,"d":"0.00"}},null,"","",{"$f":"SUMIFS($J$25:$J$224,$C$25:$C$224,$C162,$G$25:$G$224,Lists!$A$16)","v":0},0,null,"",null,{"$f":"IF(C162=0,\"\",LEFT(INDEX(Lists!$H$5:$H$49,MATCH(C162,Lists!$G$5:$G$49,0),1),1))","v":""},null,{"$f":"'Month 9'!H162+'Month 9'!I162-'Month 9'!J162","v":0},"","",null,"0"]
[{"$f":"Planning!A147","v":"I139"},{"$f":"Planning!B147","v":0},{"$f":"Planning!C147","v":0},{"$f":"Planning!D147","v":0},{"$f":"Planning!E147","v":0},{"$f":"IF(Planning!G147<>0,Planning!G147,\"\")","v":""},{"$f":"Planning!H147","v":0},{"$f":"Planning!AJ147","v":0},{"$f":"IF(OR(W163=\"1\",AND(W163<>\"1\",G163=Lists!$A$17)),Y163,0)","v":0},null,{"$f":"IF(AND(W163=\"2\",G163<>Lists!$A$17),AA163,Z163)","v":""},"",{"$f":"Planning!AK147","v":{"v":0,"d":"0.00"}},{"$f":"'Month 9'!M163+'Month 9'!N163-'Month 9'!O163","v":{"v":0,"d":"0.00"}},null,"","",{"$f":"SUMIFS($J$25:$J$224,$C$25:$C$224,$C163,$G$25:$G$224,Lists!$A$16)","v":0},0,null,"",null,{"$f":"IF(C163=0,\"\",LEFT(INDEX(Lists!$H$5:$H$49,MATCH(C163,Lists!$G$5:$G$49,0),1),1))","v":""},null,{"$f":"'Month 9'!H163+'Month 9'!I163-'Month 9'!J163","v":0},"","",null,"0"]
[{"$f":"Planning!A148","v":"I140"},{"$f":"Planning!B148","v":0},{"$f":"Planning!C148","v":0},{"$f":"Planning!D148","v":0},{"$f":"Planning!E148","v":0},{"$f":"IF(Planning!G148<>0,Planning!G148,\"\")","v":""},{"$f":"Planning!H148","v":0},{"$f":"Planning!AJ148","v":0},{"$f":"IF(OR(W164=\"1\",AND(W164<>\"1\",G164=Lists!$A$17)),Y164,0)","v":0},null,{"$f":"IF(AND(W164=\"2\",G164<>Lists!$A$17),AA164,Z164)","v":""},"",{"$f":"Planning!AK148","v":{"v":0,"d":"0.00"}},{"$f":"'Month 9'!M164+'Month 9'!N164-'Month 9'!O164","v":{"v":0,"d":"0.00"}},null,"","",{"$f":"SUMIFS($J$25:$J$224,$C$25:$C$224,$C164,$G$25:$G$224,Lists!$A$16)","v":0},0,null,"",null,{"$f":"IF(C164=0,\"\",LEFT(INDEX(Lists!$H$5:$H$49,MATCH(C164,Lists!$G$5:$G$49,0),1),1))","v":""},null,{"$f":"'Month 9'!H164+'Month 9'!I164-'Month 9'!J164","v":0},"","",null,"0"]
[{"$f":"Planning!A149","v":"I141"},{"$f":"Planning!B149","v":0},{"$f":"Planning!C149","v":0},{"$f":"Planning!D149","v":0},{"$f":"Planning!E149","v":0},{"$f":"IF(Planning!G149<>0,Planning!G149,\"\")","v":""},{"$f":"Planning!H149","v":0},{"$f":"Planning!AJ149","v":0},{"$f":"IF(OR(W165=\"1\",AND(W165<>\"1\",G165=Lists!$A$17)),Y165,0)","v":0},null,{"$f":"IF(AND(W165=\"2\",G165<>Lists!$A$17),AA165,Z165)","v":""},"",{"$f":"Planning!AK149","v":{"v":0,"d":"0.00"}},{"$f":"'Month 9'!M165+'Month 9'!N165-'Month 9'!O165","v":{"v":0,"d":"0.00"}},null,"","",{"$f":"SUMIFS($J$25:$J$224,$C$25:$C$224,$C165,$G$25:$G$224,Lists!$A$16)","v":0},0,null,"",null,{"$f":"IF(C165=0,\"\",LEFT(INDEX(Lists!$H$5:$H$49,MATCH(C165,Lists!$G$5:$G$49,0),1),1))","v":""},null,{"$f":"'Month 9'!H165+'Month 9'!I165-'Month 9'!J165","v":0},"","",null,"0"]
[{"$f":"Planning!A150","v":"I142"},{"$f":"Planning!B150","v":0},{"$f":"Planning!C150","v":0},{"$f":"Planning!D150","v":0},{"$f":"Planning!E150","v":0},{"$f":"IF(Planning!G150<>0,Planning!G150,\"\")","v":""},{"$f":"Planning!H150","v":0},{"$f":"Planning!AJ150","v":0},{"$f":"IF(OR(W166=\"1\",AND(W166<>\"1\",G166=Lists!$A$17)),Y166,0)","v":0},null,{"$f":"IF(AND(W166=\"2\",G166<>Lists!$A$17),AA166,Z166)","v":""},"",{"$f":"Planning!AK150","v":{"v":0,"d":"0.00"}},{"$f":"'Month 9'!M166+'Month 9'!N166-'Month 9'!O166","v":{"v":0,"d":"0.00"}},null,"","",{"$f":"SUMIFS($J$25:$J$224,$C$25:$C$224,$C166,$G$25:$G$224,Lists!$A$16)","v":0},0,null,"",null,{"$f":"IF(C166=0,\"\",LEFT(INDEX(Lists!$H$5:$H$49,MATCH(C166,Lists!$G$5:$G$49,0),1),1))","v":""},null,{"$f":"'Month 9'!H166+'Month 9'!I166-'Month 9'!J166","v":0},"","",null,"0"]
[{"$f":"Planning!A151","v":"I143"},{"$f":"Planning!B151","v":0},{"$f":"Planning!C151","v":0},{"$f":"Planning!D151","v":0},{"$f":"Planning!E151","v":0},{"$f":"IF(Planning!G151<>0,Planning!G151,\"\")","v":""},{"$f":"Planning!H151","v":0},{"$f":"Planning!AJ151","v":0},{"$f":"IF(OR(W167=\"1\",AND(W167<>\"1\",G167=Lists!$A$17)),Y167,0)","v":0},null,{"$f":"IF(AND(W167=\"2\",G167<>Lists!$A$17),AA167,Z167)","v":""},"",{"$f":"Planning!AK151","v":{"v":0,"d":"0.00"}},{"$f":"'Month 9'!M167+'Month 9'!N167-'Month 9'!O167","v":{"v":0,"d":"0.00"}},null,"","",{"$f":"SUMIFS($J$25:$J$224,$C$25:$C$224,$C167,$G$25:$G$224,Lists!$A$16)","v":0},0,null,"",null,{"$f":"IF(C167=0,\"\",LEFT(INDEX(Lists!$H$5:$H$49,MATCH(C167,Lists!$G$5:$G$49,0),1),1))","v":""},null,{"$f":"'Month 9'!H167+'Month 9'!I167-'Month 9'!J167","v":0},"","",null,"0"]
[{"$f":"Planning!A152","v":"I144"},{"$f":"Planning!B152","v":0},{"$f":"Planning!C152","v":0},{"$f":"Planning!D152","v":0},{"$f":"Planning!E152","v":0},{"$f":"IF(Planning!G152<>0,Planning!G152,\"\")","v":""},{"$f":"Planning!H152","v":0},{"$f":"Planning!AJ152","v":0},{"$f":"IF(OR(W168=\"1\",AND(W168<>\"1\",G168=Lists!$A$17)),Y168,0)","v":0},null,{"$f":"IF(AND(W168=\"2\",G168<>Lists!$A$17),AA168,Z168)","v":""},"",{"$f":"Planning!AK152","v":{"v":0,"d":"0.00"}},{"$f":"'Month 9'!M168+'Month 9'!N168-'Month 9'!O168","v":{"v":0,"d":"0.00"}},null,"","",{"$f":"SUMIFS($J$25:$J$224,$C$25:$C$224,$C168,$G$25:$G$224,Lists!$A$16)","v":0},0,null,"",null,{"$f":"IF(C168=0,\"\",LEFT(INDEX(Lists!$H$5:$H$49,MATCH(C168,Lists!$G$5:$G$49,0),1),1))","v":""},null,{"$f":"'Month 9'!H168+'Month 9'!I168-'Month 9'!J168","v":0},"","",null,"0"]
[{"$f":"Planning!A153","v":"I145"},{"$f":"Planning!B153","v":0},{"$f":"Planning!C153","v":0},{"$f":"Planning!D153","v":0},{"$f":"Planning!E153","v":0},{"$f":"IF(Planning!G153<>0,Planning!G153,\"\")","v":""},{"$f":"Planning!H153","v":0},{"$f":"Planning!AJ153","v":0},{"$f":"IF(OR(W169=\"1\",AND(W169<>\"1\",G169=Lists!$A$17)),Y169,0)","v":0},null,{"$f":"IF(AND(W169=\"2\",G169<>Lists!$A$17),AA169,Z169)","v":""},"",{"$f":"Planning!AK153","v":{"v":0,"d":"0.00"}},{"$f":"'Month 9'!M169+'Month 9'!N169-'Month 9'!O169","v":{"v":0,"d":"0.00"}},null,"","",{"$f":"SUMIFS($J$25:$J$224,$C$25:$C$224,$C169,$G$25:$G$224,Lists!$A$16)","v":0},0,null,"",null,{"$f":"IF(C169=0,\"\",LEFT(INDEX(Lists!$H$5:$H$49,MATCH(C169,Lists!$G$5:$G$49,0),1),1))","v":""},null,{"$f":"'Month 9'!H169+'Month 9'!I169-'Month 9'!J169","v":0},"","",null,"0"]
[{"$f":"Planning!A154","v":"I146"},{"$f":"Planning!B154","v":0},{"$f":"Planning!C154","v":0},{"$f":"Planning!D154","v":0},{"$f":"Planning!E154","v":0},{"$f":"IF(Planning!G154<>0,Planning!G154,\"\")","v":""},{"$f":"Planning!H154","v":0},{"$f":"Planning!AJ154","v":0},{"$f":"IF(OR(W170=\"1\",AND(W170<>\"1\",G170=Lists!$A$17)),Y170,0)","v":0},null,{"$f":"IF(AND(W170=\"2\",G170<>Lists!$A$17),AA170,Z170)","v":""},"",{"$f":"Planning!AK154","v":{"v":0,"d":"0.00"}},{"$f":"'Month 9'!M170+'Month 9'!N170-'Month 9'!O170","v":{"v":0,"d":"0.00"}},null,"","",{"$f":"SUMIFS($J$25:$J$224,$C$25:$C$224,$C170,$G$25:$G$224,Lists!$A$16)","v":0},0,null,"",null,{"$f":"IF(C170=0,\"\",LEFT(INDEX(Lists!$H$5:$H$49,MATCH(C170,Lists!$G$5:$G$49,0),1),1))","v":""},null,{"$f":"'Month 9'!H170+'Month 9'!I170-'Month 9'!J170","v":0},"","",null,"0"]
[{"$f":"Planning!A155","v":"I147"},{"$f":"Planning!B155","v":0},{"$f":"Planning!C155","v":0},{"$f":"Planning!D155","v":0},{"$f":"Planning!E155","v":0},{"$f":"IF(Planning!G155<>0,Planning!G155,\"\")","v":""},{"$f":"Planning!H155","v":0},{"$f":"Planning!AJ155","v":0},{"$f":"IF(OR(W171=\"1\",AND(W171<>\"1\",G171=Lists!$A$17)),Y171,0)","v":0},null,{"$f":"IF(AND(W171=\"2\",G171<>Lists!$A$17),AA171,Z171)","v":""},"",{"$f":"Planning!AK155","v":{"v":0,"d":"0.00"}},{"$f":"'Month 9'!M171+'Month 9'!N171-'Month 9'!O171","v":{"v":0,"d":"0.00"}},null,"","",{"$f":"SUMIFS($J$25:$J$224,$C$25:$C$224,$C171,$G$25:$G$224,Lists!$A$16)","v":0},0,null,"",null,{"$f":"IF(C171=0,\"\",LEFT(INDEX(Lists!$H$5:$H$49,MATCH(C171,Lists!$G$5:$G$49,0),1),1))","v":""},null,{"$f":"'Month 9'!H171+'Month 9'!I171-'Month 9'!J171","v":0},"","",null,"0"]
[{"$f":"Planning!A156","v":"I148"},{"$f":"Planning!B156","v":0},{"$f":"Planning!C156","v":0},{"$f":"Planning!D156","v":0},{"$f":"Planning!E156","v":0},{"$f":"IF(Planning!G156<>0,Planning!G156,\"\")","v":""},{"$f":"Planning!H156","v":0},{"$f":"Planning!AJ156","v":0},{"$f":"IF(OR(W172=\"1\",AND(W172<>\"1\",G172=Lists!$A$17)),Y172,0)","v":0},null,{"$f":"IF(AND(W172=\"2\",G172<>Lists!$A$17),AA172,Z172)","v":""},"",{"$f":"Planning!AK156","v":{"v":0,"d":"0.00"}},{"$f":"'Month 9'!M172+'Month 9'!N172-'Month 9'!O172","v":{"v":0,"d":"0.00"}},null,"","",{"$f":"SUMIFS($J$25:$J$224,$C$25:$C$224,$C172,$G$25:$G$224,Lists!$A$16)","v":0},0,null,"",null,{"$f":"IF(C172=0,\"\",LEFT(INDEX(Lists!$H$5:$H$49,MATCH(C172,Lists!$G$5:$G$49,0),1),1))","v":""},null,{"$f":"'Month 9'!H172+'Month 9'!I172-'Month 9'!J172","v":0},"","",null,"0"]
[{"$f":"Planning!A157","v":"I149"},{"$f":"Planning!B157","v":0},{"$f":"Planning!C157","v":0},{"$f":"Planning!D157","v":0},{"$f":"Planning!E157","v":0},{"$f":"IF(Planning!G157<>0,Planning!G157,\"\")","v":""},{"$f":"Planning!H157","v":0},{"$f":"Planning!AJ157","v":0},{"$f":"IF(OR(W173=\"1\",AND(W173<>\"1\",G173=Lists!$A$17)),Y173,0)","v":0},null,{"$f":"IF(AND(W173=\"2\",G173<>Lists!$A$17),AA173,Z173)","v":""},"",{"$f":"Planning!AK157","v":{"v":0,"d":"0.00"}},{"$f":"'Month 9'!M173+'Month 9'!N173-'Month 9'!O173","v":{"v":0,"d":"0.00"}},null,"","",{"$f":"SUMIFS($J$25:$J$224,$C$25:$C$224,$C173,$G$25:$G$224,Lists!$A$16)","v":0},0,null,"",null,{"$f":"IF(C173=0,\"\",LEFT(INDEX(Lists!$H$5:$H$49,MATCH(C173,Lists!$G$5:$G$49,0),1),1))","v":""},null,{"$f":"'Month 9'!H173+'Month 9'!I173-'Month 9'!J173","v":0},"","",null,"0"]
[{"$f":"Planning!A158","v":"I150"},{"$f":"Planning!B158","v":0},{"$f":"Planning!C158","v":0},{"$f":"Planning!D158","v":0},{"$f":"Planning!E158","v":0},{"$f":"IF(Planning!G158<>0,Planning!G158,\"\")","v":""},{"$f":"Planning!H158","v":0},{"$f":"Planning!AJ158","v":0},{"$f":"IF(OR(W174=\"1\",AND(W174<>\"1\",G174=Lists!$A$17)),Y174,0)","v":0},null,{"$f":"IF(AND(W174=\"2\",G174<>Lists!$A$17),AA174,Z174)","v":""},"",{"$f":"Planning!AK158","v":{"v":0,"d":"0.00"}},{"$f":"'Month 9'!M174+'Month 9'!N174-'Month 9'!O174","v":{"v":0,"d":"0.00"}},null,"","",{"$f":"SUMIFS($J$25:$J$224,$C$25:$C$224,$C174,$G$25:$G$224,Lists!$A$16)","v":0},0,null,"",null,{"$f":"IF(C174=0,\"\",LEFT(INDEX(Lists!$H$5:$H$49,MATCH(C174,Lists!$G$5:$G$49,0),1),1))","v":""},null,{"$f":"'Month 9'!H174+'Month 9'!I174-'Month 9'!J174","v":0},"","",null,"0"]
[{"$f":"Planning!A159","v":"I151"},{"$f":"Planning!B159","v":0},{"$f":"Planning!C159","v":0},{"$f":"Planning!D159","v":0},{"$f":"Planning!E159","v":0},{"$f":"IF(Planning!G159<>0,Planning!G159,\"\")","v":""},{"$f":"Planning!H159","v":0},{"$f":"Planning!AJ159","v":0},{"$f":"IF(OR(W175=\"1\",AND(W175<>\"1\",G175=Lists!$A$17)),Y175,0)","v":0},null,{"$f":"IF(AND(W175=\"2\",G175<>Lists!$A$17),AA175,Z175)","v":""},"",{"$f":"Planning!AK159","v":{"v":0,"d":"0.00"}},{"$f":"'Month 9'!M175+'Month 9'!N175-'Month 9'!O175","v":{"v":0,"d":"0.00"}},null,"","",{"$f":"SUMIFS($J$25:$J$224,$C$25:$C$224,$C175,$G$25:$G$224,Lists!$A$16)","v":0},0,null,"",null,{"$f":"IF(C175=0,\"\",LEFT(INDEX(Lists!$H$5:$H$49,MATCH(C175,Lists!$G$5:$G$49,0),1),1))","v":""},null,{"$f":"'Month 9'!H175+'Month 9'!I175-'Month 9'!J175","v":0},"","",null,"0"]
[{"$f":"Planning!A160","v":"I152"},{"$f":"Planning!B160","v":0},{"$f":"Planning!C160","v":0},{"$f":"Planning!D160","v":0},{"$f":"Planning!E160","v":0},{"$f":"IF(Planning!G160<>0,Planning!G160,\"\")","v":""},{"$f":"Planning!H160","v":0},{"$f":"Planning!AJ160","v":0},{"$f":"IF(OR(W176=\"1\",AND(W176<>\"1\",G176=Lists!$A$17)),Y176,0)","v":0},null,{"$f":"IF(AND(W176=\"2\",G176<>Lists!$A$17),AA176,Z176)","v":""},"",{"$f":"Planning!AK160","v":{"v":0,"d":"0.00"}},{"$f":"'Month 9'!M176+'Month 9'!N176-'Month 9'!O176","v":{"v":0,"d":"0.00"}},null,"","",{"$f":"SUMIFS($J$25:$J$224,$C$25:$C$224,$C176,$G$25:$G$224,Lists!$A$16)","v":0},0,null,"",null,{"$f":"IF(C176=0,\"\",LEFT(INDEX(Lists!$H$5:$H$49,MATCH(C176,Lists!$G$5:$G$49,0),1),1))","v":""},null,{"$f":"'Month 9'!H176+'Month 9'!I176-'Month 9'!J176","v":0},"","",null,"0"]
[{"$f":"Planning!A161","v":"I153"},{"$f":"Planning!B161","v":0},{"$f":"Planning!C161","v":0},{"$f":"Planning!D161","v":0},{"$f":"Planning!E161","v":0},{"$f":"IF(Planning!G161<>0,Planning!G161,\"\")","v":""},{"$f":"Planning!H161","v":0},{"$f":"Planning!AJ161","v":0},{"$f":"IF(OR(W177=\"1\",AND(W177<>\"1\",G177=Lists!$A$17)),Y177,0)","v":0},null,{"$f":"IF(AND(W177=\"2\",G177<>Lists!$A$17),AA177,Z177)","v":""},"",{"$f":"Planning!AK161","v":{"v":0,"d":"0.00"}},{"$f":"'Month 9'!M177+'Month 9'!N177-'Month 9'!O177","v":{"v":0,"d":"0.00"}},null,"","",{"$f":"SUMIFS($J$25:$J$224,$C$25:$C$224,$C177,$G$25:$G$224,Lists!$A$16)","v":0},0,null,"",null,{"$f":"IF(C177=0,\"\",LEFT(INDEX(Lists!$H$5:$H$49,MATCH(C177,Lists!$G$5:$G$49,0),1),1))","v":""},null,{"$f":"'Month 9'!H177+'Month 9'!I177-'Month 9'!J177","v":0},"","",null,"0"]
[{"$f":"Planning!A162","v":"I154"},{"$f":"Planning!B162","v":0},{"$f":"Planning!C162","v":0},{"$f":"Planning!D162","v":0},{"$f":"Planning!E162","v":0},{"$f":"IF(Planning!G162<>0,Planning!G162,\"\")","v":""},{"$f":"Planning!H162","v":0},{"$f":"Planning!AJ162","v":0},{"$f":"IF(OR(W178=\"1\",AND(W178<>\"1\",G178=Lists!$A$17)),Y178,0)","v":0},null,{"$f":"IF(AND(W178=\"2\",G178<>Lists!$A$17),AA178,Z178)","v":""},"",{"$f":"Planning!AK162","v":{"v":0,"d":"0.00"}},{"$f":"'Month 9'!M178+'Month 9'!N178-'Month 9'!O178","v":{"v":0,"d":"0.00"}},null,"","",{"$f":"SUMIFS($J$25:$J$224,$C$25:$C$224,$C178,$G$25:$G$224,Lists!$A$16)","v":0},0,null,"",null,{"$f":"IF(C178=0,\"\",LEFT(INDEX(Lists!$H$5:$H$49,MATCH(C178,Lists!$G$5:$G$49,0),1),1))","v":""},null,{"$f":"'Month 9'!H178+'Month 9'!I178-'Month 9'!J178","v":0},"","",null,"0"]
[{"$f":"Planning!A163","v":"I155"},{"$f":"Planning!B163","v":0},{"$f":"Planning!C163","v":0},{"$f":"Planning!D163","v":0},{"$f":"Planning!E163","v":0},{"$f":"IF(Planning!G163<>0,Planning!G163,\"\")","v":""},{"$f":"Planning!H163","v":0},{"$f":"Planning!AJ163","v":0},{"$f":"IF(OR(W179=\"1\",AND(W179<>\"1\",G179=Lists!$A$17)),Y179,0)","v":0},null,{"$f":"IF(AND(W179=\"2\",G179<>Lists!$A$17),AA179,Z179)","v":""},"",{"$f":"Planning!AK163","v":{"v":0,"d":"0.00"}},{"$f":"'Month 9'!M179+'Month 9'!N179-'Month 9'!O179","v":{"v":0,"d":"0.00"}},null,"","",{"$f":"SUMIFS($J$25:$J$224,$C$25:$C$224,$C179,$G$25:$G$224,Lists!$A$16)","v":0},0,null,"",null,{"$f":"IF(C179=0,\"\",LEFT(INDEX(Lists!$H$5:$H$49,MATCH(C179,Lists!$G$5:$G$49,0),1),1))","v":""},null,{"$f":"'Month 9'!H179+'Month 9'!I179-'Month 9'!J179","v":0},"","",null,"0"]
[{"$f":"Planning!A164","v":"I156"},{"$f":"Planning!B164","v":0},{"$f":"Planning!C164","v":0},{"$f":"Planning!D164","v":0},{"$f":"Planning!E164","v":0},{"$f":"IF(Planning!G164<>0,Planning!G164,\"\")","v":""},{"$f":"Planning!H164","v":0},{"$f":"Planning!AJ164","v":0},{"$f":"IF(OR(W180=\"1\",AND(W180<>\"1\",G180=Lists!$A$17)),Y180,0)","v":0},null,{"$f":"IF(AND(W180=\"2\",G180<>Lists!$A$17),AA180,Z180)","v":""},"",{"$f":"Planning!AK164","v":{"v":0,"d":"0.00"}},{"$f":"'Month 9'!M180+'Month 9'!N180-'Month 9'!O180","v":{"v":0,"d":"0.00"}},null,"","",{"$f":"SUMIFS($J$25:$J$224,$C$25:$C$224,$C180,$G$25:$G$224,Lists!$A$16)","v":0},0,null,"",null,{"$f":"IF(C180=0,\"\",LEFT(INDEX(Lists!$H$5:$H$49,MATCH(C180,Lists!$G$5:$G$49,0),1),1))","v":""},null,{"$f":"'Month 9'!H180+'Month 9'!I180-'Month 9'!J180","v":0},"","",null,"0"]
[{"$f":"Planning!A165","v":"I157"},{"$f":"Planning!B165","v":0},{"$f":"Planning!C165","v":0},{"$f":"Planning!D165","v":0},{"$f":"Planning!E165","v":0},{"$f":"IF(Planning!G165<>0,Planning!G165,\"\")","v":""},{"$f":"Planning!H165","v":0},{"$f":"Planning!AJ165","v":0},{"$f":"IF(OR(W181=\"1\",AND(W181<>\"1\",G181=Lists!$A$17)),Y181,0)","v":0},null,{"$f":"IF(AND(W181=\"2\",G181<>Lists!$A$17),AA181,Z181)","v":""},"",{"$f":"Planning!AK165","v":{"v":0,"d":"0.00"}},{"$f":"'Month 9'!M181+'Month 9'!N181-'Month 9'!O181","v":{"v":0,"d":"0.00"}},null,"","",{"$f":"SUMIFS($J$25:$J$224,$C$25:$C$224,$C181,$G$25:$G$224,Lists!$A$16)","v":0},0,null,"",null,{"$f":"IF(C181=0,\"\",LEFT(INDEX(Lists!$H$5:$H$49,MATCH(C181,Lists!$G$5:$G$49,0),1),1))","v":""},null,{"$f":"'Month 9'!H181+'Month 9'!I181-'Month 9'!J181","v":0},"","",null,"0"]
[{"$f":"Planning!A166","v":"I158"},{"$f":"Planning!B166","v":0},{"$f":"Planning!C166","v":0},{"$f":"Planning!D166","v":0},{"$f":"Planning!E166","v":0},{"$f":"IF(Planning!G166<>0,Planning!G166,\"\")","v":""},{"$f":"Planning!H166","v":0},{"$f":"Planning!AJ166","v":0},{"$f":"IF(OR(W182=\"1\",AND(W182<>\"1\",G182=Lists!$A$17)),Y182,0)","v":0},null,{"$f":"IF(AND(W182=\"2\",G182<>Lists!$A$17),AA182,Z182)","v":""},"",{"$f":"Planning!AK166","v":{"v":0,"d":"0.00"}},{"$f":"'Month 9'!M182+'Month 9'!N182-'Month 9'!O182","v":{"v":0,"d":"0.00"}},null,"","",{"$f":"SUMIFS($J$25:$J$224,$C$25:$C$224,$C182,$G$25:$G$224,Lists!$A$16)","v":0},0,null,"",null,{"$f":"IF(C182=0,\"\",LEFT(INDEX(Lists!$H$5:$H$49,MATCH(C182,Lists!$G$5:$G$49,0),1),1))","v":""},null,{"$f":"'Month 9'!H182+'Month 9'!I182-'Month 9'!J182","v":0},"","",null,"0"]
[{"$f":"Planning!A167","v":"I159"},{"$f":"Planning!B167","v":0},{"$f":"Planning!C167","v":0},{"$f":"Planning!D167","v":0},{"$f":"Planning!E167","v":0},{"$f":"IF(Planning!G167<>0,Planning!G167,\"\")","v":""},{"$f":"Planning!H167","v":0},{"$f":"Planning!AJ167","v":0},{"$f":"IF(OR(W183=\"1\",AND(W183<>\"1\",G183=Lists!$A$17)),Y183,0)","v":0},null,{"$f":"IF(AND(W183=\"2\",G183<>Lists!$A$17),AA183,Z183)","v":""},"",{"$f":"Planning!AK167","v":{"v":0,"d":"0.00"}},{"$f":"'Month 9'!M183+'Month 9'!N183-'Month 9'!O183","v":{"v":0,"d":"0.00"}},null,"","",{"$f":"SUMIFS($J$25:$J$224,$C$25:$C$224,$C183,$G$25:$G$224,Lists!$A$16)","v":0},0,null,"",null,{"$f":"IF(C183=0,\"\",LEFT(INDEX(Lists!$H$5:$H$49,MATCH(C183,Lists!$G$5:$G$49,0),1),1))","v":""},null,{"$f":"'Month 9'!H183+'Month 9'!I183-'Month 9'!J183","v":0},"","",null,"0"]
[{"$f":"Planning!A168","v":"I160"},{"$f":"Planning!B168","v":0},{"$f":"Planning!C168","v":0},{"$f":"Planning!D168","v":0},{"$f":"Planning!E168","v":0},{"$f":"IF(Planning!G168<>0,Planning!G168,\"\")","v":""},{"$f":"Planning!H168","v":0},{"$f":"Planning!AJ168","v":0},{"$f":"IF(OR(W184=\"1\",AND(W184<>\"1\",G184=Lists!$A$17)),Y184,0)","v":0},null,{"$f":"IF(AND(W184=\"2\",G184<>Lists!$A$17),AA184,Z184)","v":""},"",{"$f":"Planning!AK168","v":{"v":0,"d":"0.00"}},{"$f":"'Month 9'!M184+'Month 9'!N184-'Month 9'!O184","v":{"v":0,"d":"0.00"}},null,"","",{"$f":"SUMIFS($J$25:$J$224,$C$25:$C$224,$C184,$G$25:$G$224,Lists!$A$16)","v":0},0,null,"",null,{"$f":"IF(C184=0,\"\",LEFT(INDEX(Lists!$H$5:$H$49,MATCH(C184,Lists!$G$5:$G$49,0),1),1))","v":""},null,{"$f":"'Month 9'!H184+'Month 9'!I184-'Month 9'!J184","v":0},"","",null,"0"]
[{"$f":"Planning!A169","v":"I161"},{"$f":"Planning!B169","v":0},{"$f":"Planning!C169","v":0},{"$f":"Planning!D169","v":0},{"$f":"Planning!E169","v":0},{"$f":"IF(Planning!G169<>0,Planning!G169,\"\")","v":""},{"$f":"Planning!H169","v":0},{"$f":"Planning!AJ169","v":0},{"$f":"IF(OR(W185=\"1\",AND(W185<>\"1\",G185=Lists!$A$17)),Y185,0)","v":0},null,{"$f":"IF(AND(W185=\"2\",G185<>Lists!$A$17),AA185,Z185)","v":""},{"$f":"IF($U185=ExcluirDelPLogro,\"\",IF(AND(H185=0,I185=0,J185=0),\"\",K185))","v":""},{"$f":"Planning!AK169","v":{"v":0,"d":"0.00"}},{"$f":"'Month 9'!M185+'Month 9'!N185-'Month 9'!O185","v":{"v":0,"d":"0.00"}},null,"",{"$f":"IF($U185=ExcluirDelPLogro,\"\",IF(AND(M185=0,N185=0,O185=0),\"\",P185))","v":""},{"$f":"SUMIFS($J$25:$J$224,$C$25:$C$224,$C185,$G$25:$G$224,Lists!$A$16)","v":0},0,null,"",null,{"$f":"IF(C185=0,\"\",LEFT(INDEX(Lists!$H$5:$H$49,MATCH(C185,Lists!$G$5:$G$49,0),1),1))","v":""},null,{"$f":"'Month 9'!H185+'Month 9'!I185-'Month 9'!J185","v":0},"",{"$f":"IF(AND(H185=0,I185=0,J185=0),\"\",IF(J185>0,H185/J185,0))","v":""},null,"0"]
[{"$f":"Planning!A170","v":"I162"},{"$f":"Planning!B170","v":0},{"$f":"Planning!C170","v":0},{"$f":"Planning!D170","v":0},{"$f":"Planning!E170","v":0},{"$f":"IF(Planning!G170<>0,Planning!G170,\"\")","v":""},{"$f":"Planning!H170","v":0},{"$f":"Planning!AJ170","v":0},{"$f":"IF(OR(W186=\"1\",AND(W186<>\"1\",G186=Lists!$A$17)),Y186,0)","v":0},null,{"$f":"IF(AND(W186=\"2\",G186<>Lists!$A$17),AA186,Z186)","v":""},"",{"$f":"Planning!AK170","v":{"v":0,"d":"0.00"}},{"$f":"'Month 9'!M186+'Month 9'!N186-'Month 9'!O186","v":{"v":0,"d":"0.00"}},null,"","",{"$f":"SUMIFS($J$25:$J$224,$C$25:$C$224,$C186,$G$25:$G$224,Lists!$A$16)","v":0},0,null,"",null,{"$f":"IF(C186=0,\"\",LEFT(INDEX(Lists!$H$5:$H$49,MATCH(C186,Lists!$G$5:$G$49,0),1),1))","v":""},null,{"$f":"'Month 9'!H186+'Month 9'!I186-'Month 9'!J186","v":0},"","",null,"0"]
[{"$f":"Planning!A171","v":"I163"},{"$f":"Planning!B171","v":0},{"$f":"Planning!C171","v":0},{"$f":"Planning!D171","v":0},{"$f":"Planning!E171","v":0},{"$f":"IF(Planning!G171<>0,Planning!G171,\"\")","v":""},{"$f":"Planning!H171","v":0},{"$f":"Planning!AJ171","v":0},{"$f":"IF(OR(W187=\"1\",AND(W187<>\"1\",G187=Lists!$A$17)),Y187,0)","v":0},null,{"$f":"IF(AND(W187=\"2\",G187<>Lists!$A$17),AA187,Z187)","v":""},"",{"$f":"Planning!AK171","v":{"v":0,"d":"0.00"}},{"$f":"'Month 9'!M187+'Month 9'!N187-'Month 9'!O187","v":{"v":0,"d":"0.00"}},null,"","",{"$f":"SUMIFS($J$25:$J$224,$C$25:$C$224,$C187,$G$25:$G$224,Lists!$A$16)","v":0},0,null,"",null,{"$f":"IF(C187=0,\"\",LEFT(INDEX(Lists!$H$5:$H$49,MATCH(C187,Lists!$G$5:$G$49,0),1),1))","v":""},null,{"$f":"'Month 9'!H187+'Month 9'!I187-'Month 9'!J187","v":0},"","",null,"0"]
[{"$f":"Planning!A172","v":"I164"},{"$f":"Planning!B172","v":0},{"$f":"Planning!C172","v":0},{"$f":"Planning!D172","v":0},{"$f":"Planning!E172","v":0},{"$f":"IF(Planning!G172<>0,Planning!G172,\"\")","v":""},{"$f":"Planning!H172","v":0},{"$f":"Planning!AJ172","v":0},{"$f":"IF(OR(W188=\"1\",AND(W188<>\"1\",G188=Lists!$A$17)),Y188,0)","v":0},null,{"$f":"IF(AND(W188=\"2\",G188<>Lists!$A$17),AA188,Z188)","v":""},"",{"$f":"Planning!AK172","v":{"v":0,"d":"0.00"}},{"$f":"'Month 9'!M188+'Month 9'!N188-'Month 9'!O188","v":{"v":0,"d":"0.00"}},null,"","",{"$f":"SUMIFS($J$25:$J$224,$C$25:$C$224,$C188,$G$25:$G$224,Lists!$A$16)","v":0},0,null,"",null,{"$f":"IF(C188=0,\"\",LEFT(INDEX(Lists!$H$5:$H$49,MATCH(C188,Lists!$G$5:$G$49,0),1),1))","v":""},null,{"$f":"'Month 9'!H188+'Month 9'!I188-'Month 9'!J188","v":0},"","",null,"0"]
[{"$f":"Planning!A173","v":"I165"},{"$f":"Planning!B173","v":0},{"$f":"Planning!C173","v":0},{"$f":"Planning!D173","v":0},{"$f":"Planning!E173","v":0},{"$f":"IF(Planning!G173<>0,Planning!G173,\"\")","v":""},{"$f":"Planning!H173","v":0},{"$f":"Planning!AJ173","v":0},{"$f":"IF(OR(W189=\"1\",AND(W189<>\"1\",G189=Lists!$A$17)),Y189,0)","v":0},null,{"$f":"IF(AND(W189=\"2\",G189<>Lists!$A$17),AA189,Z189)","v":""},"",{"$f":"Planning!AK173","v":{"v":0,"d":"0.00"}},{"$f":"'Month 9'!M189+'Month 9'!N189-'Month 9'!O189","v":{"v":0,"d":"0.00"}},null,"","",{"$f":"SUMIFS($J$25:$J$224,$C$25:$C$224,$C189,$G$25:$G$224,Lists!$A$16)","v":0},0,null,"",null,{"$f":"IF(C189=0,\"\",LEFT(INDEX(Lists!$H$5:$H$49,MATCH(C189,Lists!$G$5:$G$49,0),1),1))","v":""},null,{"$f":"'Month 9'!H189+'Month 9'!I189-'Month 9'!J189","v":0},"","",null,"0"]
[{"$f":"Planning!A174","v":"I166"},{"$f":"Planning!B174","v":0},{"$f":"Planning!C174","v":0},{"$f":"Planning!D174","v":0},{"$f":"Planning!E174","v":0},{"$f":"IF(Planning!G174<>0,Planning!G174,\"\")","v":""},{"$f":"Planning!H174","v":0},{"$f":"Planning!AJ174","v":0},{"$f":"IF(OR(W190=\"1\",AND(W190<>\"1\",G190=Lists!$A$17)),Y190,0)","v":0},null,{"$f":"IF(AND(W190=\"2\",G190<>Lists!$A$17),AA190,Z190)","v":""},"",{"$f":"Planning!AK174","v":{"v":0,"d":"0.00"}},{"$f":"'Month 9'!M190+'Month 9'!N190-'Month 9'!O190","v":{"v":0,"d":"0.00"}},null,"","",{"$f":"SUMIFS($J$25:$J$224,$C$25:$C$224,$C190,$G$25:$G$224,Lists!$A$16)","v":0},0,null,"",null,{"$f":"IF(C190=0,\"\",LEFT(INDEX(Lists!$H$5:$H$49,MATCH(C190,Lists!$G$5:$G$49,0),1),1))","v":""},null,{"$f":"'Month 9'!H190+'Month 9'!I190-'Month 9'!J190","v":0},"","",null,"0"]
[{"$f":"Planning!A175","v":"I167"},{"$f":"Planning!B175","v":0},{"$f":"Planning!C175","v":0},{"$f":"Planning!D175","v":0},{"$f":"Planning!E175","v":0},{"$f":"IF(Planning!G175<>0,Planning!G175,\"\")","v":""},{"$f":"Planning!H175","v":0},{"$f":"Planning!AJ175","v":0},{"$f":"IF(OR(W191=\"1\",AND(W191<>\"1\",G191=Lists!$A$17)),Y191,0)","v":0},null,{"$f":"IF(AND(W191=\"2\",G191<>Lists!$A$17),AA191,Z191)","v":""},"",{"$f":"Planning!AK175","v":{"v":0,"d":"0.00"}},{"$f":"'Month 9'!M191+'Month 9'!N191-'Month 9'!O191","v":{"v":0,"d":"0.00"}},null,"","",{"$f":"SUMIFS($J$25:$J$224,$C$25:$C$224,$C191,$G$25:$G$224,Lists!$A$16)","v":0},0,null,"",null,{"$f":"IF(C191=0,\"\",LEFT(INDEX(Lists!$H$5:$H$49,MATCH(C191,Lists!$G$5:$G$49,0),1),1))","v":""},null,{"$f":"'Month 9'!H191+'Month 9'!I191-'Month 9'!J191","v":0},"","",null,"0"]
[{"$f":"Planning!A176","v":"I168"},{"$f":"Planning!B176","v":0},{"$f":"Planning!C176","v":0},{"$f":"Planning!D176","v":0},{"$f":"Planning!E176","v":0},{"$f":"IF(Planning!G176<>0,Planning!G176,\"\")","v":""},{"$f":"Planning!H176","v":0},{"$f":"Planning!AJ176","v":0},{"$f":"IF(OR(W192=\"1\",AND(W192<>\"1\",G192=Lists!$A$17)),Y192,0)","v":0},null,{"$f":"IF(AND(W192=\"2\",G192<>Lists!$A$17),AA192,Z192)","v":""},"",{"$f":"Planning!AK176","v":{"v":0,"d":"0.00"}},{"$f":"'Month 9'!M192+'Month 9'!N192-'Month 9'!O192","v":{"v":0,"d":"0.00"}},null,"","",{"$f":"SUMIFS($J$25:$J$224,$C$25:$C$224,$C192,$G$25:$G$224,Lists!$A$16)","v":0},0,null,"",null,{"$f":"IF(C192=0,\"\",LEFT(INDEX(Lists!$H$5:$H$49,MATCH(C192,Lists!$G$5:$G$49,0),1),1))","v":""},null,{"$f":"'Month 9'!H192+'Month 9'!I192-'Month 9'!J192","v":0},"","",null,"0"]
[{"$f":"Planning!A177","v":"I169"},{"$f":"Planning!B177","v":0},{"$f":"Planning!C177","v":0},{"$f":"Planning!D177","v":0},{"$f":"Planning!E177","v":0},{"$f":"IF(Planning!G177<>0,Planning!G177,\"\")","v":""},{"$f":"Planning!H177","v":0},{"$f":"Planning!AJ177","v":0},{"$f":"IF(OR(W193=\"1\",AND(W193<>\"1\",G193=Lists!$A$17)),Y193,0)","v":0},null,{"$f":"IF(AND(W193=\"2\",G193<>Lists!$A$17),AA193,Z193)","v":""},"",{"$f":"Planning!AK177","v":{"v":0,"d":"0.00"}},{"$f":"'Month 9'!M193+'Month 9'!N193-'Month 9'!O193","v":{"v":0,"d":"0.00"}},null,"","",{"$f":"SUMIFS($J$25:$J$224,$C$25:$C$224,$C193,$G$25:$G$224,Lists!$A$16)","v":0},0,null,"",null,{"$f":"IF(C193=0,\"\",LEFT(INDEX(Lists!$H$5:$H$49,MATCH(C193,Lists!$G$5:$G$49,0),1),1))","v":""},null,{"$f":"'Month 9'!H193+'Month 9'!I193-'Month 9'!J193","v":0},"","",null,"0"]
[{"$f":"Planning!A178","v":"I170"},{"$f":"Planning!B178","v":0},{"$f":"Planning!C178","v":0},{"$f":"Planning!D178","v":0},{"$f":"Planning!E178","v":0},{"$f":"IF(Planning!G178<>0,Planning!G178,\"\")","v":""},{"$f":"Planning!H178","v":0},{"$f":"Planning!AJ178","v":0},{"$f":"IF(OR(W194=\"1\",AND(W194<>\"1\",G194=Lists!$A$17)),Y194,0)","v":0},null,{"$f":"IF(AND(W194=\"2\",G194<>Lists!$A$17),AA194,Z194)","v":""},"",{"$f":"Planning!AK178","v":{"v":0,"d":"0.00"}},{"$f":"'Month 9'!M194+'Month 9'!N194-'Month 9'!O194","v":{"v":0,"d":"0.00"}},null,"","",{"$f":"SUMIFS($J$25:$J$224,$C$25:$C$224,$C194,$G$25:$G$224,Lists!$A$16)","v":0},0,null,"",null,{"$f":"IF(C194=0,\"\",LEFT(INDEX(Lists!$H$5:$H$49,MATCH(C194,Lists!$G$5:$G$49,0),1),1))","v":""},null,{"$f":"'Month 9'!H194+'Month 9'!I194-'Month 9'!J194","v":0},"","",null,"0"]
[{"$f":"Planning!A179","v":"I171"},{"$f":"Planning!B179","v":0},{"$f":"Planning!C179","v":0},{"$f":"Planning!D179","v":0},{"$f":"Planning!E179","v":0},{"$f":"IF(Planning!G179<>0,Planning!G179,\"\")","v":""},{"$f":"Planning!H179","v":0},{"$f":"Planning!AJ179","v":0},{"$f":"IF(OR(W195=\"1\",AND(W195<>\"1\",G195=Lists!$A$17)),Y195,0)","v":0},null,{"$f":"IF(AND(W195=\"2\",G195<>Lists!$A$17),AA195,Z195)","v":""},"",{"$f":"Planning!AK179","v":{"v":0,"d":"0.00"}},{"$f":"'Month 9'!M195+'Month 9'!N195-'Month 9'!O195","v":{"v":0,"d":"0.00"}},null,"","",{"$f":"SUMIFS($J$25:$J$224,$C$25:$C$224,$C195,$G$25:$G$224,Lists!$A$16)","v":0},0,null,"",null,{"$f":"IF(C195=0,\"\",LEFT(INDEX(Lists!$H$5:$H$49,MATCH(C195,Lists!$G$5:$G$49,0),1),1))","v":""},null,{"$f":"'Month 9'!H195+'Month 9'!I195-'Month 9'!J195","v":0},"","",null,"0"]
[{"$f":"Planning!A180","v":"I172"},{"$f":"Planning!B180","v":0},{"$f":"Planning!C180","v":0},{"$f":"Planning!D180","v":0},{"$f":"Planning!E180","v":0},{"$f":"IF(Planning!G180<>0,Planning!G180,\"\")","v":""},{"$f":"Planning!H180","v":0},{"$f":"Planning!AJ180","v":0},{"$f":"IF(OR(W196=\"1\",AND(W196<>\"1\",G196=Lists!$A$17)),Y196,0)","v":0},null,{"$f":"IF(AND(W196=\"2\",G196<>Lists!$A$17),AA196,Z196)","v":""},"",{"$f":"Planning!AK180","v":{"v":0,"d":"0.00"}},{"$f":"'Month 9'!M196+'Month 9'!N196-'Month 9'!O196","v":{"v":0,"d":"0.00"}},null,"","",{"$f":"SUMIFS($J$25:$J$224,$C$25:$C$224,$C196,$G$25:$G$224,Lists!$A$16)","v":0},0,null,"",null,{"$f":"IF(C196=0,\"\",LEFT(INDEX(Lists!$H$5:$H$49,MATCH(C196,Lists!$G$5:$G$49,0),1),1))","v":""},null,{"$f":"'Month 9'!H196+'Month 9'!I196-'Month 9'!J196","v":0},"","",null,"0"]
[{"$f":"Planning!A181","v":"I173"},{"$f":"Planning!B181","v":0},{"$f":"Planning!C181","v":0},{"$f":"Planning!D181","v":0},{"$f":"Planning!E181","v":0},{"$f":"IF(Planning!G181<>0,Planning!G181,\"\")","v":""},{"$f":"Planning!H181","v":0},{"$f":"Planning!AJ181","v":0},{"$f":"IF(OR(W197=\"1\",AND(W197<>\"1\",G197=Lists!$A$17)),Y197,0)","v":0},null,{"$f":"IF(AND(W197=\"2\",G197<>Lists!$A$17),AA197,Z197)","v":""},"",{"$f":"Planning!AK181","v":{"v":0,"d":"0.00"}},{"$f":"'Month 9'!M197+'Month 9'!N197-'Month 9'!O197","v":{"v":0,"d":"0.00"}},null,"","",{"$f":"SUMIFS($J$25:$J$224,$C$25:$C$224,$C197,$G$25:$G$224,Lists!$A$16)","v":0},0,null,"",null,{"$f":"IF(C197=0,\"\",LEFT(INDEX(Lists!$H$5:$H$49,MATCH(C197,Lists!$G$5:$G$49,0),1),1))","v":""},null,{"$f":"'Month 9'!H197+'Month 9'!I197-'Month 9'!J197","v":0},"","",null,"0"]
[{"$f":"Planning!A182","v":"I174"},{"$f":"Planning!B182","v":0},{"$f":"Planning!C182","v":0},{"$f":"Planning!D182","v":0},{"$f":"Planning!E182","v":0},{"$f":"IF(Planning!G182<>0,Planning!G182,\"\")","v":""},{"$f":"Planning!H182","v":0},{"$f":"Planning!AJ182","v":0},{"$f":"IF(OR(W198=\"1\",AND(W198<>\"1\",G198=Lists!$A$17)),Y198,0)","v":0},null,{"$f":"IF(AND(W198=\"2\",G198<>Lists!$A$17),AA198,Z198)","v":""},"",{"$f":"Planning!AK182","v":{"v":0,"d":"0.00"}},{"$f":"'Month 9'!M198+'Month 9'!N198-'Month 9'!O198","v":{"v":0,"d":"0.00"}},null,"","",{"$f":"SUMIFS($J$25:$J$224,$C$25:$C$224,$C198,$G$25:$G$224,Lists!$A$16)","v":0},0,null,"",null,{"$f":"IF(C198=0,\"\",LEFT(INDEX(Lists!$H$5:$H$49,MATCH(C198,Lists!$G$5:$G$49,0),1),1))","v":""},null,{"$f":"'Month 9'!H198+'Month 9'!I198-'Month 9'!J198","v":0},"","",null,"0"]
[{"$f":"Planning!A183","v":"I175"},{"$f":"Planning!B183","v":0},{"$f":"Planning!C183","v":0},{"$f":"Planning!D183","v":0},{"$f":"Planning!E183","v":0},{"$f":"IF(Planning!G183<>0,Planning!G183,\"\")","v":""},{"$f":"Planning!H183","v":0},{"$f":"Planning!AJ183","v":0},{"$f":"IF(OR(W199=\"1\",AND(W199<>\"1\",G199=Lists!$A$17)),Y199,0)","v":0},null,{"$f":"IF(AND(W199=\"2\",G199<>Lists!$A$17),AA199,Z199)","v":""},"",{"$f":"Planning!AK183","v":{"v":0,"d":"0.00"}},{"$f":"'Month 9'!M199+'Month 9'!N199-'Month 9'!O199","v":{"v":0,"d":"0.00"}},null,"","",{"$f":"SUMIFS($J$25:$J$224,$C$25:$C$224,$C199,$G$25:$G$224,Lists!$A$16)","v":0},0,null,"",null,{"$f":"IF(C199=0,\"\",LEFT(INDEX(Lists!$H$5:$H$49,MATCH(C199,Lists!$G$5:$G$49,0),1),1))","v":""},null,{"$f":"'Month 9'!H199+'Month 9'!I199-'Month 9'!J199","v":0},"","",null,"0"]
[{"$f":"Planning!A184","v":"I176"},{"$f":"Planning!B184","v":0},{"$f":"Planning!C184","v":0},{"$f":"Planning!D184","v":0},{"$f":"Planning!E184","v":0},{"$f":"IF(Planning!G184<>0,Planning!G184,\"\")","v":""},{"$f":"Planning!H184","v":0},{"$f":"Planning!AJ184","v":0},{"$f":"IF(OR(W200=\"1\",AND(W200<>\"1\",G200=Lists!$A$17)),Y200,0)","v":0},null,{"$f":"IF(AND(W200=\"2\",G200<>Lists!$A$17),AA200,Z200)","v":""},"",{"$f":"Planning!AK184","v":{"v":0,"d":"0.00"}},{"$f":"'Month 9'!M200+'Month 9'!N200-'Month 9'!O200","v":{"v":0,"d":"0.00"}},null,"","",{"$f":"SUMIFS($J$25:$J$224,$C$25:$C$224,$C200,$G$25:$G$224,Lists!$A$16)","v":0},0,null,"",null,{"$f":"IF(C200=0,\"\",LEFT(INDEX(Lists!$H$5:$H$49,MATCH(C200,Lists!$G$5:$G$49,0),1),1))","v":""},null,{"$f":"'Month 9'!H200+'Month 9'!I200-'Month 9'!J200","v":0},"","",null,"0"]
[{"$f":"Planning!A185","v":"I177"},{"$f":"Planning!B185","v":0},{"$f":"Planning!C185","v":0},{"$f":"Planning!D185","v":0},{"$f":"Planning!E185","v":0},{"$f":"IF(Planning!G185<>0,Planning!G185,\"\")","v":""},{"$f":"Planning!H185","v":0},{"$f":"Planning!AJ185","v":0},{"$f":"IF(OR(W201=\"1\",AND(W201<>\"1\",G201=Lists!$A$17)),Y201,0)","v":0},null,{"$f":"IF(AND(W201=\"2\",G201<>Lists!$A$17),AA201,Z201)","v":""},"",{"$f":"Planning!AK185","v":{"v":0,"d":"0.00"}},{"$f":"'Month 9'!M201+'Month 9'!N201-'Month 9'!O201","v":{"v":0,"d":"0.00"}},null,"","",{"$f":"SUMIFS($J$25:$J$224,$C$25:$C$224,$C201,$G$25:$G$224,Lists!$A$16)","v":0},0,null,"",null,{"$f":"IF(C201=0,\"\",LEFT(INDEX(Lists!$H$5:$H$49,MATCH(C201,Lists!$G$5:$G$49,0),1),1))","v":""},null,{"$f":"'Month 9'!H201+'Month 9'!I201-'Month 9'!J201","v":0},"","",null,"0"]
[{"$f":"Planning!A186","v":"I178"},{"$f":"Planning!B186","v":0},{"$f":"Planning!C186","v":0},{"$f":"Planning!D186","v":0},{"$f":"Planning!E186","v":0},{"$f":"IF(Planning!G186<>0,Planning!G186,\"\")","v":""},{"$f":"Planning!H186","v":0},{"$f":"Planning!AJ186","v":0},{"$f":"IF(OR(W202=\"1\",AND(W202<>\"1\",G202=Lists!$A$17)),Y202,0)","v":0},null,{"$f":"IF(AND(W202=\"2\",G202<>Lists!$A$17),AA202,Z202)","v":""},"",{"$f":"Planning!AK186","v":{"v":0,"d":"0.00"}},{"$f":"'Month 9'!M202+'Month 9'!N202-'Month 9'!O202","v":{"v":0,"d":"0.00"}},null,"","",{"$f":"SUMIFS($J$25:$J$224,$C$25:$C$224,$C202,$G$25:$G$224,Lists!$A$16)","v":0},0,null,"",null,{"$f":"IF(C202=0,\"\",LEFT(INDEX(Lists!$H$5:$H$49,MATCH(C202,Lists!$G$5:$G$49,0),1),1))","v":""},null,{"$f":"'Month 9'!H202+'Month 9'!I202-'Month 9'!J202","v":0},"","",null,"0"]
[{"$f":"Planning!A187","v":"I179"},{"$f":"Planning!B187","v":0},{"$f":"Planning!C187","v":0},{"$f":"Planning!D187","v":0},{"$f":"Planning!E187","v":0},{"$f":"IF(Planning!G187<>0,Planning!G187,\"\")","v":""},{"$f":"Planning!H187","v":0},{"$f":"Planning!AJ187","v":0},{"$f":"IF(OR(W203=\"1\",AND(W203<>\"1\",G203=Lists!$A$17)),Y203,0)","v":0},null,{"$f":"IF(AND(W203=\"2\",G203<>Lists!$A$17),AA203,Z203)","v":""},"",{"$f":"Planning!AK187","v":{"v":0,"d":"0.00"}},{"$f":"'Month 9'!M203+'Month 9'!N203-'Month 9'!O203","v":{"v":0,"d":"0.00"}},null,"","",{"$f":"SUMIFS($J$25:$J$224,$C$25:$C$224,$C203,$G$25:$G$224,Lists!$A$16)","v":0},0,null,"",null,{"$f":"IF(C203=0,\"\",LEFT(INDEX(Lists!$H$5:$H$49,MATCH(C203,Lists!$G$5:$G$49,0),1),1))","v":""},null,{"$f":"'Month 9'!H203+'Month 9'!I203-'Month 9'!J203","v":0},"","",null,"0"]
[{"$f":"Planning!A188","v":"I180"},{"$f":"Planning!B188","v":0},{"$f":"Planning!C188","v":0},{"$f":"Planning!D188","v":0},{"$f":"Planning!E188","v":0},{"$f":"IF(Planning!G188<>0,Planning!G188,\"\")","v":""},{"$f":"Planning!H188","v":0},{"$f":"Planning!AJ188","v":0},{"$f":"IF(OR(W204=\"1\",AND(W204<>\"1\",G204=Lists!$A$17)),Y204,0)","v":0},null,{"$f":"IF(AND(W204=\"2\",G204<>Lists!$A$17),AA204,Z204)","v":""},"",{"$f":"Planning!AK188","v":{"v":0,"d":"0.00"}},{"$f":"'Month 9'!M204+'Month 9'!N204-'Month 9'!O204","v":{"v":0,"d":"0.00"}},null,"","",{"$f":"SUMIFS($J$25:$J$224,$C$25:$C$224,$C204,$G$25:$G$224,Lists!$A$16)","v":0},0,null,"",null,{"$f":"IF(C204=0,\"\",LEFT(INDEX(Lists!$H$5:$H$49,MATCH(C204,Lists!$G$5:$G$49,0),1),1))","v":""},null,{"$f":"'Month 9'!H204+'Month 9'!I204-'Month 9'!J204","v":0},"","",null,"0"]
[{"$f":"Planning!A189","v":"I181"},{"$f":"Planning!B189","v":0},{"$f":"Planning!C189","v":0},{"$f":"Planning!D189","v":0},{"$f":"Planning!E189","v":0},{"$f":"IF(Planning!G189<>0,Planning!G189,\"\")","v":""},{"$f":"Planning!H189","v":0},{"$f":"Planning!AJ189","v":0},{"$f":"IF(OR(W205=\"1\",AND(W205<>\"1\",G205=Lists!$A$17)),Y205,0)","v":0},null,{"$f":"IF(AND(W205=\"2\",G205<>Lists!$A$17),AA205,Z205)","v":""},"",{"$f":"Planning!AK189","v":{"v":0,"d":"0.00"}},{"$f":"'Month 9'!M205+'Month 9'!N205-'Month 9'!O205","v":{"v":0,"d":"0.00"}},null,"","",{"$f":"SUMIFS($J$25:$J$224,$C$25:$C$224,$C205,$G$25:$G$224,Lists!$A$16)","v":0},0,null,"",null,{"$f":"IF(C205=0,\"\",LEFT(INDEX(Lists!$H$5:$H$49,MATCH(C205,Lists!$G$5:$G$49,0),1),1))","v":""},null,{"$f":"'Month 9'!H205+'Month 9'!I205-'Month 9'!J205","v":0},"","",null,"0"]
[{"$f":"Planning!A190","v":"I182"},{"$f":"Planning!B190","v":0},{"$f":"Planning!C190","v":0},{"$f":"Planning!D190","v":0},{"$f":"Planning!E190","v":0},{"$f":"IF(Planning!G190<>0,Planning!G190,\"\")","v":""},{"$f":"Planning!H190","v":0},{"$f":"Planning!AJ190","v":0},{"$f":"IF(OR(W206=\"1\",AND(W206<>\"1\",G206=Lists!$A$17)),Y206,0)","v":0},null,{"$f":"IF(AND(W206=\"2\",G206<>Lists!$A$17),AA206,Z206)","v":""},"",{"$f":"Planning!AK190","v":{"v":0,"d":"0.00"}},{"$f":"'Month 9'!M206+'Month 9'!N206-'Month 9'!O206","v":{"v":0,"d":"0.00"}},null,"","",{"$f":"SUMIFS($J$25:$J$224,$C$25:$C$224,$C206,$G$25:$G$224,Lists!$A$16)","v":0},0,null,"",null,{"$f":"IF(C206=0,\"\",LEFT(INDEX(Lists!$H$5:$H$49,MATCH(C206,Lists!$G$5:$G$49,0),1),1))","v":""},null,{"$f":"'Month 9'!H206+'Month 9'!I206-'Month 9'!J206","v":0},"","",null,"0"]
[{"$f":"Planning!A191","v":"I183"},{"$f":"Planning!B191","v":0},{"$f":"Planning!C191","v":0},{"$f":"Planning!D191","v":0},{"$f":"Planning!E191","v":0},{"$f":"IF(Planning!G191<>0,Planning!G191,\"\")","v":""},{"$f":"Planning!H191","v":0},{"$f":"Planning!AJ191","v":0},{"$f":"IF(OR(W207=\"1\",AND(W207<>\"1\",G207=Lists!$A$17)),Y207,0)","v":0},null,{"$f":"IF(AND(W207=\"2\",G207<>Lists!$A$17),AA207,Z207)","v":""},"",{"$f":"Planning!AK191","v":{"v":0,"d":"0.00"}},{"$f":"'Month 9'!M207+'Month 9'!N207-'Month 9'!O207","v":{"v":0,"d":"0.00"}},null,"","",{"$f":"SUMIFS($J$25:$J$224,$C$25:$C$224,$C207,$G$25:$G$224,Lists!$A$16)","v":0},0,null,"",null,{"$f":"IF(C207=0,\"\",LEFT(INDEX(Lists!$H$5:$H$49,MATCH(C207,Lists!$G$5:$G$49,0),1),1))","v":""},null,{"$f":"'Month 9'!H207+'Month 9'!I207-'Month 9'!J207","v":0},"","",null,"0"]
[{"$f":"Planning!A192","v":"I184"},{"$f":"Planning!B192","v":0},{"$f":"Planning!C192","v":0},{"$f":"Planning!D192","v":0},{"$f":"Planning!E192","v":0},{"$f":"IF(Planning!G192<>0,Planning!G192,\"\")","v":""},{"$f":"Planning!H192","v":0},{"$f":"Planning!AJ192","v":0},{"$f":"IF(OR(W208=\"1\",AND(W208<>\"1\",G208=Lists!$A$17)),Y208,0)","v":0},null,{"$f":"IF(AND(W208=\"2\",G208<>Lists!$A$17),AA208,Z208)","v":""},"",{"$f":"Planning!AK192","v":{"v":0,"d":"0.00"}},{"$f":"'Month 9'!M208+'Month 9'!N208-'Month 9'!O208","v":{"v":0,"d":"0.00"}},null,"","",{"$f":"SUMIFS($J$25:$J$224,$C$25:$C$224,$C208,$G$25:$G$224,Lists!$A$16)","v":0},0,null,"",null,{"$f":"IF(C208=0,\"\",LEFT(INDEX(Lists!$H$5:$H$49,MATCH(C208,Lists!$G$5:$G$49,0),1),1))","v":""},null,{"$f":"'Month 9'!H208+'Month 9'!I208-'Month 9'!J208","v":0},"","",null,"0"]
[{"$f":"Planning!A193","v":"I185"},{"$f":"Planning!B193","v":0},{"$f":"Planning!C193","v":0},{"$f":"Planning!D193","v":0},{"$f":"Planning!E193","v":0},{"$f":"IF(Planning!G193<>0,Planning!G193,\"\")","v":""},{"$f":"Planning!H193","v":0},{"$f":"Planning!AJ193","v":0},{"$f":"IF(OR(W209=\"1\",AND(W209<>\"1\",G209=Lists!$A$17)),Y209,0)","v":0},null,{"$f":"IF(AND(W209=\"2\",G209<>Lists!$A$17),AA209,Z209)","v":""},"",{"$f":"Planning!AK193","v":{"v":0,"d":"0.00"}},{"$f":"'Month 9'!M209+'Month 9'!N209-'Month 9'!O209","v":{"v":0,"d":"0.00"}},null,"","",{"$f":"SUMIFS($J$25:$J$224,$C$25:$C$224,$C209,$G$25:$G$224,Lists!$A$16)","v":0},0,null,"",null,{"$f":"IF(C209=0,\"\",LEFT(INDEX(Lists!$H$5:$H$49,MATCH(C209,Lists!$G$5:$G$49,0),1),1))","v":""},null,{"$f":"'Month 9'!H209+'Month 9'!I209-'Month 9'!J209","v":0},"","",null,"0"]
[{"$f":"Planning!A194","v":"I186"},{"$f":"Planning!B194","v":0},{"$f":"Planning!C194","v":0},{"$f":"Planning!D194","v":0},{"$f":"Planning!E194","v":0},{"$f":"IF(Planning!G194<>0,Planning!G194,\"\")","v":""},{"$f":"Planning!H194","v":0},{"$f":"Planning!AJ194","v":0},{"$f":"IF(OR(W210=\"1\",AND(W210<>\"1\",G210=Lists!$A$17)),Y210,0)","v":0},null,{"$f":"IF(AND(W210=\"2\",G210<>Lists!$A$17),AA210,Z210)","v":""},"",{"$f":"Planning!AK194","v":{"v":0,"d":"0.00"}},{"$f":"'Month 9'!M210+'Month 9'!N210-'Month 9'!O210","v":{"v":0,"d":"0.00"}},null,"","",{"$f":"SUMIFS($J$25:$J$224,$C$25:$C$224,$C210,$G$25:$G$224,Lists!$A$16)","v":0},0,null,"",null,{"$f":"IF(C210=0,\"\",LEFT(INDEX(Lists!$H$5:$H$49,MATCH(C210,Lists!$G$5:$G$49,0),1),1))","v":""},null,{"$f":"'Month 9'!H210+'Month 9'!I210-'Month 9'!J210","v":0},"","",null,"0"]
[{"$f":"Planning!A195","v":"I187"},{"$f":"Planning!B195","v":0},{"$f":"Planning!C195","v":0},{"$f":"Planning!D195","v":0},{"$f":"Planning!E195","v":0},{"$f":"IF(Planning!G195<>0,Planning!G195,\"\")","v":""},{"$f":"Planning!H195","v":0},{"$f":"Planning!AJ195","v":0},{"$f":"IF(OR(W211=\"1\",AND(W211<>\"1\",G211=Lists!$A$17)),Y211,0)","v":0},null,{"$f":"IF(AND(W211=\"2\",G211<>Lists!$A$17),AA211,Z211)","v":""},"",{"$f":"Planning!AK195","v":{"v":0,"d":"0.00"}},{"$f":"'Month 9'!M211+'Month 9'!N211-'Month 9'!O211","v":{"v":0,"d":"0.00"}},null,"","",{"$f":"SUMIFS($J$25:$J$224,$C$25:$C$224,$C211,$G$25:$G$224,Lists!$A$16)","v":0},0,null,"",null,{"$f":"IF(C211=0,\"\",LEFT(INDEX(Lists!$H$5:$H$49,MATCH(C211,Lists!$G$5:$G$49,0),1),1))","v":""},null,{"$f":"'Month 9'!H211+'Month 9'!I211-'Month 9'!J211","v":0},"","",null,"0"]
[{"$f":"Planning!A196","v":"I188"},{"$f":"Planning!B196","v":0},{"$f":"Planning!C196","v":0},{"$f":"Planning!D196","v":0},{"$f":"Planning!E196","v":0},{"$f":"IF(Planning!G196<>0,Planning!G196,\"\")","v":""},{"$f":"Planning!H196","v":0},{"$f":"Planning!AJ196","v":0},{"$f":"IF(OR(W212=\"1\",AND(W212<>\"1\",G212=Lists!$A$17)),Y212,0)","v":0},null,{"$f":"IF(AND(W212=\"2\",G212<>Lists!$A$17),AA212,Z212)","v":""},"",{"$f":"Planning!AK196","v":{"v":0,"d":"0.00"}},{"$f":"'Month 9'!M212+'Month 9'!N212-'Month 9'!O212","v":{"v":0,"d":"0.00"}},null,"","",{"$f":"SUMIFS($J$25:$J$224,$C$25:$C$224,$C212,$G$25:$G$224,Lists!$A$16)","v":0},0,null,"",null,{"$f":"IF(C212=0,\"\",LEFT(INDEX(Lists!$H$5:$H$49,MATCH(C212,Lists!$G$5:$G$49,0),1),1))","v":""},null,{"$f":"'Month 9'!H212+'Month 9'!I212-'Month 9'!J212","v":0},"","",null,"0"]
[{"$f":"Planning!A197","v":"I189"},{"$f":"Planning!B197","v":0},{"$f":"Planning!C197","v":0},{"$f":"Planning!D197","v":0},{"$f":"Planning!E197","v":0},{"$f":"IF(Planning!G197<>0,Planning!G197,\"\")","v":""},{"$f":"Planning!H197","v":0},{"$f":"Planning!AJ197","v":0},{"$f":"IF(OR(W213=\"1\",AND(W213<>\"1\",G213=Lists!$A$17)),Y213,0)","v":0},null,{"$f":"IF(AND(W213=\"2\",G213<>Lists!$A$17),AA213,Z213)","v":""},"",{"$f":"Planning!AK197","v":{"v":0,"d":"0.00"}},{"$f":"'Month 9'!M213+'Month 9'!N213-'Month 9'!O213","v":{"v":0,"d":"0.00"}},null,"","",{"$f":"SUMIFS($J$25:$J$224,$C$25:$C$224,$C213,$G$25:$G$224,Lists!$A$16)","v":0},0,null,"",null,{"$f":"IF(C213=0,\"\",LEFT(INDEX(Lists!$H$5:$H$49,MATCH(C213,Lists!$G$5:$G$49,0),1),1))","v":""},null,{"$f":"'Month 9'!H213+'Month 9'!I213-'Month 9'!J213","v":0},"","",null,"0"]
[{"$f":"Planning!A198","v":"I190"},{"$f":"Planning!B198","v":0},{"$f":"Planning!C198","v":0},{"$f":"Planning!D198","v":0},{"$f":"Planning!E198","v":0},{"$f":"IF(Planning!G198<>0,Planning!G198,\"\")","v":""},{"$f":"Planning!H198","v":0},{"$f":"Planning!AJ198","v":0},{"$f":"IF(OR(W214=\"1\",AND(W214<>\"1\",G214=Lists!$A$17)),Y214,0)","v":0},null,{"$f":"IF(AND(W214=\"2\",G214<>Lists!$A$17),AA214,Z214)","v":""},"",{"$f":"Planning!AK198","v":{"v":0,"d":"0.00"}},{"$f":"'Month 9'!M214+'Month 9'!N214-'Month 9'!O214","v":{"v":0,"d":"0.00"}},null,"","",{"$f":"SUMIFS($J$25:$J$224,$C$25:$C$224,$C214,$G$25:$G$224,Lists!$A$16)","v":0},0,null,"",null,{"$f":"IF(C214=0,\"\",LEFT(INDEX(Lists!$H$5:$H$49,MATCH(C214,Lists!$G$5:$G$49,0),1),1))","v":""},null,{"$f":"'Month 9'!H214+'Month 9'!I214-'Month 9'!J214","v":0},"","",null,"0"]
[{"$f":"Planning!A199","v":"I191"},{"$f":"Planning!B199","v":0},{"$f":"Planning!C199","v":0},{"$f":"Planning!D199","v":0},{"$f":"Planning!E199","v":0},{"$f":"IF(Planning!G199<>0,Planning!G199,\"\")","v":""},{"$f":"Planning!H199","v":0},{"$f":"Planning!AJ199","v":0},{"$f":"IF(OR(W215=\"1\",AND(W215<>\"1\",G215=Lists!$A$17)),Y215,0)","v":0},null,{"$f":"IF(AND(W215=\"2\",G215<>Lists!$A$17),AA215,Z215)","v":""},"",{"$f":"Planning!AK199","v":{"v":0,"d":"0.00"}},{"$f":"'Month 9'!M215+'Month 9'!N215-'Month 9'!O215","v":{"v":0,"d":"0.00"}},null,"","",{"$f":"SUMIFS($J$25:$J$224,$C$25:$C$224,$C215,$G$25:$G$224,Lists!$A$16)","v":0},0,null,"",null,{"$f":"IF(C215=0,\"\",LEFT(INDEX(Lists!$H$5:$H$49,MATCH(C215,Lists!$G$5:$G$49,0),1),1))","v":""},null,{"$f":"'Month 9'!H215+'Month 9'!I215-'Month 9'!J215","v":0},"","",null,"0"]
[{"$f":"Planning!A200","v":"I192"},{"$f":"Planning!B200","v":0},{"$f":"Planning!C200","v":0},{"$f":"Planning!D200","v":0},{"$f":"Planning!E200","v":0},{"$f":"IF(Planning!G200<>0,Planning!G200,\"\")","v":""},{"$f":"Planning!H200","v":0},{"$f":"Planning!AJ200","v":0},{"$f":"IF(OR(W216=\"1\",AND(W216<>\"1\",G216=Lists!$A$17)),Y216,0)","v":0},null,{"$f":"IF(AND(W216=\"2\",G216<>Lists!$A$17),AA216,Z216)","v":""},"",{"$f":"Planning!AK200","v":{"v":0,"d":"0.00"}},{"$f":"'Month 9'!M216+'Month 9'!N216-'Month 9'!O216","v":{"v":0,"d":"0.00"}},null,"","",{"$f":"SUMIFS($J$25:$J$224,$C$25:$C$224,$C216,$G$25:$G$224,Lists!$A$16)","v":0},0,null,"",null,{"$f":"IF(C216=0,\"\",LEFT(INDEX(Lists!$H$5:$H$49,MATCH(C216,Lists!$G$5:$G$49,0),1),1))","v":""},null,{"$f":"'Month 9'!H216+'Month 9'!I216-'Month 9'!J216","v":0},"","",null,"0"]
[{"$f":"Planning!A201","v":"I193"},{"$f":"Planning!B201","v":0},{"$f":"Planning!C201","v":0},{"$f":"Planning!D201","v":0},{"$f":"Planning!E201","v":0},{"$f":"IF(Planning!G201<>0,Planning!G201,\"\")","v":""},{"$f":"Planning!H201","v":0},{"$f":"Planning!AJ201","v":0},{"$f":"IF(OR(W217=\"1\",AND(W217<>\"1\",G217=Lists!$A$17)),Y217,0)","v":0},null,{"$f":"IF(AND(W217=\"2\",G217<>Lists!$A$17),AA217,Z217)","v":""},{"$f":"IF($U217=ExcluirDelPLogro,\"\",IF(AND(H217=0,I217=0,J217=0),\"\",K217))","v":""},{"$f":"Planning!AK201","v":{"v":0,"d":"0.00"}},{"$f":"'Month 9'!M217+'Month 9'!N217-'Month 9'!O217","v":{"v":0,"d":"0.00"}},null,"",{"$f":"IF($U217=ExcluirDelPLogro,\"\",IF(AND(M217=0,N217=0,O217=0),\"\",P217))","v":""},{"$f":"SUMIFS($J$25:$J$224,$C$25:$C$224,$C217,$G$25:$G$224,Lists!$A$16)","v":0},0,null,"",null,{"$f":"IF(C217=0,\"\",LEFT(INDEX(Lists!$H$5:$H$49,MATCH(C217,Lists!$G$5:$G$49,0),1),1))","v":""},null,{"$f":"'Month 9'!H217+'Month 9'!I217-'Month 9'!J217","v":0},"",{"$f":"IF(AND(H217=0,I217=0,J217=0),\"\",IF(J217>0,H217/J217,0))","v":""},null,"0"]
[{"$f":"Planning!A202","v":"I194"},{"$f":"Planning!B202","v":0},{"$f":"Planning!C202","v":0},{"$f":"Planning!D202","v":0},{"$f":"Planning!E202","v":0},{"$f":"IF(Planning!G202<>0,Planning!G202,\"\")","v":""},{"$f":"Planning!H202","v":0},{"$f":"Planning!AJ202","v":0},{"$f":"IF(OR(W218=\"1\",AND(W218<>\"1\",G218=Lists!$A$17)),Y218,0)","v":0},null,{"$f":"IF(AND(W218=\"2\",G218<>Lists!$A$17),AA218,Z218)","v":""},"",{"$f":"Planning!AK202","v":{"v":0,"d":"0.00"}},{"$f":"'Month 9'!M218+'Month 9'!N218-'Month 9'!O218","v":{"v":0,"d":"0.00"}},null,{"$f":"IF(AND(M218=0,N218=0,O218=0),\"\",IF((M218+N218)>0,O218/(M218+N218),O218))","v":""},"",{"$f":"SUMIFS($J$25:$J$224,$C$25:$C$224,$C218,$G$25:$G$224,Lists!$A$16)","v":0},{"$f":"SUMIFS($O$25:$O$224,$C$25:$C$224,$C218,$G$25:$G$224,\"<>0\")","v":0},null,{"$f":"IF(B218=0,\"\",IF(LEFT(B218,1)=\"1\",\"1\",\"2\"))","v":""},null,{"$f":"IF(C218=0,\"\",LEFT(INDEX(Lists!$H$5:$H$49,MATCH(C218,Lists!$G$5:$G$49,0),1),1))","v":""},null,{"$f":"'Month 9'!H218+'Month 9'!I218-'Month 9'!J218","v":0},{"$f":"IF(AND(H218=0,I218=0,J218=0),\"\",IF((H218+I218)>0,J218/(H218+I218),J218))","v":""},"",null,{"$f":"U218&C218","v":"0"}]
[{"$f":"Planning!A203","v":"I195"},{"$f":"Planning!B203","v":0},{"$f":"Planning!C203","v":0},{"$f":"Planning!D203","v":0},{"$f":"Planning!E203","v":0},{"$f":"IF(Planning!G203<>0,Planning!G203,\"\")","v":""},{"$f":"Planning!H203","v":0},{"$f":"Planning!AJ203","v":0},{"$f":"IF(OR(W219=\"1\",AND(W219<>\"1\",G219=Lists!$A$17)),Y219,0)","v":0},null,{"$f":"IF(AND(W219=\"2\",G219<>Lists!$A$17),AA219,Z219)","v":""},"",{"$f":"Planning!AK203","v":{"v":0,"d":"0.00"}},{"$f":"'Month 9'!M219+'Month 9'!N219-'Month 9'!O219","v":{"v":0,"d":"0.00"}},null,"","",{"$f":"SUMIFS($J$25:$J$224,$C$25:$C$224,$C219,$G$25:$G$224,Lists!$A$16)","v":0},0,null,"",null,{"$f":"IF(C219=0,\"\",LEFT(INDEX(Lists!$H$5:$H$49,MATCH(C219,Lists!$G$5:$G$49,0),1),1))","v":""},null,{"$f":"'Month 9'!H219+'Month 9'!I219-'Month 9'!J219","v":0},"","",null,"0"]
[{"$f":"Planning!A204","v":"I196"},{"$f":"Planning!B204","v":0},{"$f":"Planning!C204","v":0},{"$f":"Planning!D204","v":0},{"$f":"Planning!E204","v":0},{"$f":"IF(Planning!G204<>0,Planning!G204,\"\")","v":""},{"$f":"Planning!H204","v":0},{"$f":"Planning!AJ204","v":0},{"$f":"IF(OR(W220=\"1\",AND(W220<>\"1\",G220=Lists!$A$17)),Y220,0)","v":0},null,{"$f":"IF(AND(W220=\"2\",G220<>Lists!$A$17),AA220,Z220)","v":""},"",{"$f":"Planning!AK204","v":{"v":0,"d":"0.00"}},{"$f":"'Month 9'!M220+'Month 9'!N220-'Month 9'!O220","v":{"v":0,"d":"0.00"}},null,"","",{"$f":"SUMIFS($J$25:$J$224,$C$25:$C$224,$C220,$G$25:$G$224,Lists!$A$16)","v":0},0,null,"",null,{"$f":"IF(C220=0,\"\",LEFT(INDEX(Lists!$H$5:$H$49,MATCH(C220,Lists!$G$5:$G$49,0),1),1))","v":""},null,{"$f":"'Month 9'!H220+'Month 9'!I220-'Month 9'!J220","v":0},"","",null,"0"]
[{"$f":"Planning!A205","v":"I197"},{"$f":"Planning!B205","v":0},{"$f":"Planning!C205","v":0},{"$f":"Planning!D205","v":0},{"$f":"Planning!E205","v":0},{"$f":"IF(Planning!G205<>0,Planning!G205,\"\")","v":""},{"$f":"Planning!H205","v":0},{"$f":"Planning!AJ205","v":0},{"$f":"IF(OR(W221=\"1\",AND(W221<>\"1\",G221=Lists!$A$17)),Y221,0)","v":0},null,{"$f":"IF(AND(W221=\"2\",G221<>Lists!$A$17),AA221,Z221)","v":""},"",{"$f":"Planning!AK205","v":{"v":0,"d":"0.00"}},{"$f":"'Month 9'!M221+'Month 9'!N221-'Month 9'!O221","v":{"v":0,"d":"0.00"}},null,"","",{"$f":"SUMIFS($J$25:$J$224,$C$25:$C$224,$C221,$G$25:$G$224,Lists!$A$16)","v":0},0,null,"",null,{"$f":"IF(C221=0,\"\",LEFT(INDEX(Lists!$H$5:$H$49,MATCH(C221,Lists!$G$5:$G$49,0),1),1))","v":""},null,{"$f":"'Month 9'!H221+'Month 9'!I221-'Month 9'!J221","v":0},"","",null,"0"]
[{"$f":"Planning!A206","v":"I198"},{"$f":"Planning!B206","v":0},{"$f":"Planning!C206","v":0},{"$f":"Planning!D206","v":0},{"$f":"Planning!E206","v":0},{"$f":"IF(Planning!G206<>0,Planning!G206,\"\")","v":""},{"$f":"Planning!H206","v":0},{"$f":"Planning!AJ206","v":0},{"$f":"IF(OR(W222=\"1\",AND(W222<>\"1\",G222=Lists!$A$17)),Y222,0)","v":0},null,{"$f":"IF(AND(W222=\"2\",G222<>Lists!$A$17),AA222,Z222)","v":""},"",{"$f":"Planning!AK206","v":{"v":0,"d":"0.00"}},{"$f":"'Month 9'!M222+'Month 9'!N222-'Month 9'!O222","v":{"v":0,"d":"0.00"}},null,"","",{"$f":"SUMIFS($J$25:$J$224,$C$25:$C$224,$C222,$G$25:$G$224,Lists!$A$16)","v":0},0,null,"",null,{"$f":"IF(C222=0,\"\",LEFT(INDEX(Lists!$H$5:$H$49,MATCH(C222,Lists!$G$5:$G$49,0),1),1))","v":""},null,{"$f":"'Month 9'!H222+'Month 9'!I222-'Month 9'!J222","v":0},"","",null,"0"]
[{"$f":"Planning!A207","v":"I199"},{"$f":"Planning!B207","v":0},{"$f":"Planning!C207","v":0},{"$f":"Planning!D207","v":0},{"$f":"Planning!E207","v":0},{"$f":"IF(Planning!G207<>0,Planning!G207,\"\")","v":""},{"$f":"Planning!H207","v":0},{"$f":"Planning!AJ207","v":0},{"$f":"IF(OR(W223=\"1\",AND(W223<>\"1\",G223=Lists!$A$17)),Y223,0)","v":0},null,{"$f":"IF(AND(W223=\"2\",G223<>Lists!$A$17),AA223,Z223)","v":""},"",{"$f":"Planning!AK207","v":{"v":0,"d":"0.00"}},{"$f":"'Month 9'!M223+'Month 9'!N223-'Month 9'!O223","v":{"v":0,"d":"0.00"}},null,"","",{"$f":"SUMIFS($J$25:$J$224,$C$25:$C$224,$C223,$G$25:$G$224,Lists!$A$16)","v":0},0,null,"",null,{"$f":"IF(C223=0,\"\",LEFT(INDEX(Lists!$H$5:$H$49,MATCH(C223,Lists!$G$5:$G$49,0),1),1))","v":""},null,{"$f":"'Month 9'!H223+'Month 9'!I223-'Month 9'!J223","v":0},"","",null,"0"]
[{"$f":"Planning!A208","v":"I200"},{"$f":"Planning!B208","v":0},{"$f":"Planning!C208","v":0},{"$f":"Planning!D208","v":0},{"$f":"Planning!E208","v":0},{"$f":"IF(Planning!G208<>0,Planning!G208,\"\")","v":""},{"$f":"Planning!H208","v":0},{"$f":"Planning!AJ208","v":0},{"$f":"IF(OR(W224=\"1\",AND(W224<>\"1\",G224=Lists!$A$17)),Y224,0)","v":0},null,{"$f":"IF(AND(W224=\"2\",G224<>Lists!$A$17),AA224,Z224)","v":""},"",{"$f":"Planning!AK208","v":{"v":0,"d":"0.00"}},{"$f":"'Month 9'!M224+'Month 9'!N224-'Month 9'!O224","v":{"v":0,"d":"0.00"}},null,"","",{"$f":"SUMIFS($J$25:$J$224,$C$25:$C$224,$C224,$G$25:$G$224,Lists!$A$16)","v":0},0,null,"",null,{"$f":"IF(C224=0,\"\",LEFT(INDEX(Lists!$H$5:$H$49,MATCH(C224,Lists!$G$5:$G$49,0),1),1))","v":""},null,{"$f":"'Month 9'!H224+'Month 9'!I224-'Month 9'!J224","v":0},"","",null,"0"]
[{"$nulls":20},".",null,".",null,".",".",".",null,"."]
[]
[{"$f":"Setup!AN6","v":"PR Dashboard indicators"}]
[{"$f":"Setup!AP8","v":"Financial reports planned"}]
[{"$f":"Setup!AP9","v":"Financial reports overdue"}]
[{"$f":"Setup!AP10","v":0}]
[{"$f":"Setup!AP11","v":0}]
[{"$f":"Setup!AP12","v":0}]
[{"$f":"Setup!AP13","v":0}]
[{"$f":"Setup!AP14","v":0}]
[{"$f":"Setup!AP15","v":"Supervision actions recommended"}]
[{"$f":"Setup!AP16","v":"Supervision recommendations past due"}]
[{"$f":"Setup!AP17","v":"Programmatic reports planned"}]
[{"$f":"Setup!AP18","v":"Programmatic reports past due"}]
[{"$f":"Setup!AP19","v":0}]
[{"$f":"Setup!AP20","v":0}]
[{"$f":"Setup!AP21","v":0}]
[{"$f":"Setup!AP22","v":0}]
[{"$f":"Setup!AP23","v":0}]
[{"$f":"Setup!AP24","v":0}]
[{"$f":"Setup!AP25","v":0}]
[{"$f":"Setup!AP26","v":0}]
[{"$f":"Setup!AP27","v":0}]
[{"$f":"Setup!AP28","v":0}]
[{"$f":"Setup!AP29","v":0}]
[{"$f":"Setup!AP30","v":0}]
[{"$f":"Setup!AP31","v":0}]
[{"$f":"Setup!AP32","v":0}]
[{"$f":"Setup!AP33","v":0}]
[{"$f":"Setup!AP34","v":0}]
[{"$f":"Setup!AP35","v":0}]
[{"$f":"Setup!AP36","v":0}]
[{"$f":"Setup!AP37","v":0}]
[{"$f":"Setup!AP38","v":0}]
[{"$f":"Setup!AP39","v":"Actual stock level - PS39 - Product 1: Efavirenz, 600 mg, 30 tablets"}]
[{"$f":"Setup!AP40","v":"Actual stock level - PS40 - Product 2: Efavirenz, 200 mg, 90 capsules"}]
[{"$f":"Setup!AP41","v":"Actual stock level - PS41 - Product 3: TDF/3TC, 300/300 mg, 30 tablets"}]
[{"$f":"Setup!AP42","v":"Actual stock level - PS42 - Product 4: 3TC, 10 mg/ml, oral solution 240 ml"}]
[{"$f":"Setup!AP43","v":0}]
[{"$f":"Setup!AP44","v":0}]
[{"$f":"Setup!AP45","v":0}]
[{"$f":"Setup!AP46","v":0}]
[{"$f":"Setup!AP47","v":0}]
[{"$f":"Setup!AP48","v":0}]
[{"$f":"Setup!AP49","v":0}]
[{"$f":"Setup!AP50","v":0}]
[{"$f":"Setup!AP51","v":0}]
[{"$f":"Setup!AP52","v":0}]
[{"$f":"Setup!AP53","v":0}]
[{"$f":"Setup!AP54","v":0}]
[{"$f":"Setup!AP55","v":0}]
[{"$f":"Setup!AP56","v":0}]
[{"$f":"Setup!AP57","v":0}]
[{"$f":"Setup!AP58","v":0}]
[{"$f":"Setup!AP59","v":0}]
[{"$f":"Setup!AP60","v":0}]
[{"$f":"Setup!AP61","v":0}]
[{"$f":"Setup!AP62","v":0}]
[{"$f":"Setup!AP63","v":0}]
[{"$f":"Setup!AP64","v":0}]
[{"$f":"Setup!AP65","v":0}]
[{"$f":"Setup!AP66","v":0}]
[{"$f":"Setup!AP67","v":0}]
[{"$f":"Setup!AP68","v":0}]
[{"$f":"Setup!AP69","v":0}]
[]
[]
[{"$f":"Translations!A138","v":"Narrative comments from results (to be filled by the Subrecipient)"}]
{"$rows_empty":43}
[{"$f":"Translations!A139","v":"This section is filled in exclusively by PR's programmatic and financial monitors."}]
[]
[{"$f":"Translations!A150","v":"PROGRAMMATIC"},null,null,{"$f":"Translations!A140","v":"Name of person conducting programmatic verification"}]
[]
[]
[{"$nulls":3},{"$f":"Translations!A141","v":"Contextual details"}]
[]
[]
[]
[]
[]
[]
[{"$nulls":3},{"$f":"Translations!A151","v":"Description of identified problem(s)"}]
[]
[]
[]
[]
[]
[]
[{"$nulls":3},{"$f":"Translations!A152","v":"Recommendations and actions to be taken"}]
[{"$nulls":3},"1)"]
[{"$nulls":3},"2)"]
[{"$nulls":3},"3)"]
[{"$nulls":3},"4)"]
[{"$nulls":3},"5)"]
[]
[]
[]
[{"$f":"Translations!A154","v":"FINANCIAL"},null,null,{"$f":"Translations!A153","v":"Name of person conducting financial verification"}]
[]
[]
[{"$nulls":3},{"$f":"Translations!A141","v":"Contextual details"}]
{"$rows_empty":7}
[{"$nulls":3},{"$f":"Translations!A151","v":"Description of identified problem(s)"}]
[]
[]
[]
[]
[]
[]
[{"$nulls":3},{"$f":"Translations!A152","v":"Recommendations and actions to be taken"}]
[{"$nulls":3},"1)"]
[{"$nulls":3},"2)"]
[{"$nulls":3},"3)"]
[{"$nulls":3},"4)"]
[{"$nulls":3},"5)"]
[]
[]
[]
[]
[]
[{"$f":"Translations!A321","v":"To be completed by the PR"},{"$nulls":6},{"$f":"Translations!A324","v":"To be completed by the SR"}]
[{"$f":"Translations!A322","v":"Position"},{"$nulls":3},{"$f":"Translations!A323","v":"Signature"},null,null,{"$f":"Translations!A322","v":"Position"},null,{"$f":"Translations!A323","v":"Signature"}]

{"sheet":"Month 11","index":22,"n_rows":394,"n_cols":29,"rows_kept":394,"hidden":true,"merged":[[1,4,1,13],[1,14,1,15],[2,4,2,13],[2,14,3,15],[3,4,3,13],[4,4,4,13],[4,22,16,26],[5,9,5,15],[6,0,15,7],[6,9,7,15],[9,9,9,10],[9,12,9,15],[10,9,11,10],[10,12,11,15],[13,9,15,13],[13,14,13,15],[14,14,15,15],[16,6,16,7],[17,3,17,4],[17,7,17,8],[17,9,17,10],[17,12,17,13],[17,14,17,15],[18,7,18,10],[18,12,18,15],[18,24,18,26],[19,0,20,0],[19,1,20,1],[19,2,20,2],[19,3,20,3],[19,4,20,4],[19,5,20,5],[19,7,20,7],[19,8,20,8],[19,9,20,9],[19,10,20,10],[19,12,20,12],[19,13,20,13],[19,14,20,14],[19,15,20,15],[19,17,19,18],[19,20,20,20],[19,22,20,22],[19,24,20,24],[19,25,20,25],[19,26,20,26],[19,28,20,28],[226,0,226,7],[227,0,227,6],[228,0,228,6],[229,0,229,6],[230,0,230,6],[231,0,231,6],[232,0,232,6],[233,0,233,6],[234,0,234,6],[235,0,235,6],[236,0,236,6],[237,0,237,6],[238,0,238,6],[239,0,239,6],[240,0,240,6],[241,0,241,6],[242,0,242,6],[243,0,243,6],[244,0,244,6],[245,0,245,6],[246,0,246,6],[247,0,247,6],[248,0,248,6],[249,0,249,6],[250,0,250,6],[251,0,251,6],[252,0,252,6],[253,0,253,6],[254,0,254,6],[255,0,255,6],[256,0,256,6],[257,0,257,6],[258,0,258,6],[259,0,259,6],[260,0,260,6],[261,0,261,6],[262,0,262,6],[263,0,263,6],[264,0,264,6],[265,0,265,6],[266,0,266,6],[267,0,267,6],[268,0,268,6],[269,0,269,6],[270,0,270,6],[271,0,271,6],[272,0,272,6],[273,0,273,6],[274,0,274,6],[275,0,275,6],[276,0,276,6],[277,0,277,6],[278,0,278,6],[279,0,279,6],[280,0,280,6],[281,0,281,6],[282,0,282,6],[283,0,283,6],[284,0,284,6],[285,0,285,6],[286,0,286,6],[287,0,287,6],[288,0,288,6],[291,0,291,15],[292,0,333,15],[335,0,335,15],[337,0,360,0],[337,14,337,15],[338,3,338,4],[338,14,338,15],[341,3,345,15],[348,3,352,15],[355,3,355,15],[356,3,356,15],[357,3,357,15],[358,3,358,15],[359,3,359,15],[363,0,387,0],[363,14,363,15],[364,3,364,4],[364,14,364,15],[367,3,371,15],[375,3,379,15],[382,3,382,15],[383,3,383,15],[384,3,384,15],[385,3,385,15],[386,3,386,15],[392,0,392,4],[392,7,392,12],[393,0,393,3],[393,7,393,8],[393,9,393,12],[394,0,394,3],[394,7,394,8],[394,9,394,12],[395,0,395,3],[395,7,395,8],[395,9,395,12],[396,0,396,3],[396,7,396,8],[396,9,396,12],[397,0,397,3],[397,7,397,8],[397,9,397,12]]}
[]
["Month 11",{"$nulls":3},{"$f":"Translations!A80","v":"SR Management Tool"},{"$nulls":9},{"$f":"Translations!A129","v":"SCORE"}]
[{"$nulls":4},{"$f":"Setup!H11","v":"Direct Gender Partnership (DGP)"},{"$nulls":9},{"$f":"K23","v":{"v":0,"d":"0.00%"}}]
[{"$nulls":4},{"$f":" Setup!H14 & \"  (\" & Setup!H13 & \")\" & \"  (\" & Setup!H15 & \")\"","v":"DMR-202-G01-H-00  (January  2016 - December 2016)  (HIV / AIDS)"}]
[{"$nulls":4},{"$f":"Setup!AB18 & \"  (\" & Setup!H16 & \")\"","v":"November  ($ - USD)"},{"$nulls":17},"A. Se colocará lo pendiente (Y) en (I) siempre que (W) sea 1. Estandar o que (W) sea diferente de 1. sin embargo la actividad (G) NO contribuya al indicador.\n\nB. En la columna % Logro (K) se colocará siempre el Logro 1. Estandar (Z). Solamente se colocará el Logro 2. Inverso (AA) cuando (W) sea 2 y (G) sea diferente de 2. NO... es decir, el valor inverso va para las actvividades que contribuyan al indicador G = 1. SI y para el Indicador en si G = 0... por eso se pregunta por G diferente de 2. NO.. para incluir los 1. SI y a los 0\n\n"]
[{"$f":"Setup!G19","v":"Details of programatic indicators"},{"$nulls":8},{"$f":"Setup!G17","v":"Key population"}]
[{"$f":"Setup!H19","v":"# PLHIV that initiated ARV with CD4 count <200\n# new HIV+ enrolled in care services \n# aged 10-24 yrs reached by HIV life skills ed. in school "},{"$nulls":8},{"$f":"Setup!H17","v":"Sex Workers - Migrants - Women"}]
[]
[]
[{"$nulls":9},{"$f":"Translations!A119","v":"Report date"},null,null,{"$f":"Translations!A130","v":"Reported by"}]
[]
[]
[]
[{"$nulls":9},{"$f":"Translations!A132","v":"Note: Enter disubursment ammount here if the PR made a disbursment this month. Leave blank if no disbursment was made."},{"$nulls":4},{"$f":"Translations!A131","v":"Disbursement"}]
[]
[]
[]
[{"$nulls":3},{"$f":"Translations!A233","v":"Input data in spaces with this color"},{"$nulls":3},{"$f":"Translations!A120","v":"Date of verification"},{"$nulls":4},{"$f":"Translations!A120","v":"Date of verification"}]
[{"$nulls":7},{"$f":"Translations!A133","v":"Programmatic aspects"},{"$nulls":4},{"$f":"Translations!A134","v":"Financial aspects"},{"$nulls":9},"COMPORTAMIENTO",null,"Sólo en el Aspecto Programático"]
[{"$f":"Translations!A88","v":"Item"},"Tipo de Ítem","ID Enlace",{"$f":"Translations!A91","v":"Activity code"},{"$f":"Translations!A92","v":"Indicator / Activity"},{"$f":"Translations!A79","v":"TGF costs groups"},null,{"$f":"Translations!A135","v":"Monthly target"},{"$f":"Translations!A136","v":"Balance from previous period"},{"$f":"Translations!A137","v":"Results "},{"$f":"Translations!A108","v":"Result %"},null,{"$f":"Translations!$A$360","v":"Monthly budget"},{"$f":"Translations!A136","v":"Balance from previous period"},{"$f":"Translations!$A$361","v":"Monthly expenditure"},{"$f":"Translations!A108","v":"Result %"},null,"Sumatorias Indicadores",null,null,"Indicador =1 Actividad = 2",null,"1. Estandar\n2. Inverso\n3. No Acumula",null,"Pendiente Mes Anterior\n SIN CONDICION","Logro\n1. Estandar","Logro\n2. Inverso",null,"TAG \nPerformance"]
[{"$nulls":17},"PROG","FIN"]
[]
[{"$f":"Translations!A109","v":"Totals"},{"$nulls":6},"-","-","-",{"$f":"IFERROR(AVERAGEIF(L25:L224,\"<> \"),\"\")","v":{"v":0,"d":"0.00%"}},null,{"$f":"SUMIFS(M25:M224,$G$25:$G$224,\"<>0\")","v":{"v":0,"d":"0.00"}},{"$f":"SUMIFS(N25:N224,$G$25:$G$224,\"<>0\")","v":{"v":7250,"d":"7,250.00"}},{"$f":"SUMIFS(O25:O224,$G$25:$G$224,\"<>0\")","v":{"v":0,"d":"0.00"}},{"$f":"IFERROR(AVERAGEIF(Q25:Q224,\"<> \"),\"\")","v":{"v":0,"d":"0.00%"}}]
[]
[{"$f":"Planning!A9","v":"I001"},{"$f":"Planning!B9","v":"1. Indicator"},{"$f":"Planning!C9","v":"Pr68"},{"$f":"Planning!D9","v":1},{"$f":"Planning!E9","v":"[Pr68] # PLHIV that initiated ARV with CD4 count <200 Target [2. Inverse]"},{"$f":"IF(Planning!G9<>0,Planning!G9,\"\")","v":""},{"$f":"Planning!H9","v":0},{"$f":"Planning!AM9","v":0},{"$f":"IF(OR(W25=\"1\",AND(W25<>\"1\",G25=Lists!$A$17)),Y25,0)","v":0},{"$f":"R25","v":0},{"$f":"IF(AND(W25=\"2\",G25<>Lists!$A$17),AA25,Z25)","v":""},{"$f":"IF($U25=ExcluirDelPLogro,\"\",IF(AND(H25=0,I25=0,J25=0),\"\",K25))","v":""},{"$f":"Planning!AN9","v":{"v":0,"d":"0.00"}},{"$f":"'Month 10'!M25+'Month 10'!N25-'Month 10'!O25","v":{"v":0,"d":"0.00"}},{"$f":"S25","v":{"v":0,"d":"0.00"}},{"$f":"IF(AND(M25=0,N25=0,O25=0),\"\",IF((M25+N25)>0,O25/(M25+N25),O25))","v":""},{"$f":"IF($U25=ExcluirDelPLogro,\"\",IF(AND(M25=0,N25=0,O25=0),\"\",P25))","v":""},{"$f":"SUMIFS($J$25:$J$224,$C$25:$C$224,$C25,$G$25:$G$224,Lists!$A$16)","v":0},{"$f":"SUMIFS($O$25:$O$224,$C$25:$C$224,$C25,$G$25:$G$224,\"<>0\")","v":0},null,{"$f":"IF(B25=0,\"\",IF(LEFT(B25,1)=\"1\",\"1\",\"2\"))","v":"1"},null,{"$f":"IF(C25=0,\"\",LEFT(INDEX(Lists!$H$5:$H$49,MATCH(C25,Lists!$G$5:$G$49,0),1),1))","v":"2"},null,{"$f":"'Month 10'!H25+'Month 10'!I25-'Month 10'!J25","v":0},{"$f":"IF(AND(H25=0,I25=0,J25=0),\"\",IF((H25+I25)>0,J25/(H25+I25),J25))","v":""},{"$f":"IF(AND(H25=0,I25=0,J25=0),\"\",IF(J25>0,H25/J25,0))","v":""},null,{"$f":"U25&C25","v":"1Pr68"}]
[{"$f":"Planning!A10","v":"I002"},{"$f":"Planning!B10","v":"2. Activity: Contributing"},{"$f":"Planning!C10","v":"Pr68"},{"$f":"Planning!D10","v":1.2},{"$f":"Planning!E10","v":"PLHIV reimbursed for transportation costs to HIV testing and treatment centres\n"},{"$f":"IF(Planning!G10<>0,Planning!G10,\"\")","v":"12. Living support to client/ target population "},{"$f":"Planning!H10","v":"1. YES"},{"$f":"Planning!AM10","v":0},{"$f":"IF(OR(W26=\"1\",AND(W26<>\"1\",G26=Lists!$A$17)),Y26,0)","v":0},0,{"$f":"IF(AND(W26=\"2\",G26<>Lists!$A$17),AA26,Z26)","v":""},"",{"$f":"Planning!AN10","v":{"v":0,"d":"0.00"}},{"$f":"'Month 10'!M26+'Month 10'!N26-'Month 10'!O26","v":{"v":0,"d":"0.00"}},{"v":0,"d":"0.00"},"","",{"$f":"SUMIFS($J$25:$J$224,$C$25:$C$224,$C26,$G$25:$G$224,Lists!$A$16)","v":0},{"$f":"SUMIFS($O$25:$O$224,$C$25:$C$224,$C26,$G$25:$G$224,\"<>0\")","v":0},null,{"$f":"IF(B26=0,\"\",IF(LEFT(B26,1)=\"1\",\"1\",\"2\"))","v":"2"},null,{"$f":"IF(C26=0,\"\",LEFT(INDEX(Lists!$H$5:$H$49,MATCH(C26,Lists!$G$5:$G$49,0),1),1))","v":"2"},null,{"$f":"'Month 10'!H26+'Month 10'!I26-'Month 10'!J26","v":0},{"$f":"IF(AND(H26=0,I26=0,J26=0),\"\",IF((H26+I26)>0,J26/(H26+I26),J26))","v":""},"",null,{"$f":"U26&C26","v":"2Pr68"}]
[{"$f":"Planning!A11","v":"I003"},{"$f":"Planning!B11","v":"3. Activity: Non-Contributing"},{"$f":"Planning!C11","v":"Pr68"},{"$f":"Planning!D11","v":1.3},{"$f":"Planning!E11","v":"Communication materials produced to educate HIV+ patients about HIV treatment (Migrants and Sexual Workers). \n\n"},{"$f":"IF(Planning!G11<>0,Planning!G11,\"\")","v":"10. Communication material and publications"},{"$f":"Planning!H11","v":"2. NO"},{"$f":"Planning!AM11","v":0},{"$f":"IF(OR(W27=\"1\",AND(W27<>\"1\",G27=Lists!$A$17)),Y27,0)","v":1},0,{"$f":"IF(AND(W27=\"2\",G27<>Lists!$A$17),AA27,Z27)","v":{"v":0,"d":"0.00%"}},"",{"$f":"Planning!AN11","v":{"v":0,"d":"0.00"}},{"$f":"'Month 10'!M27+'Month 10'!N27-'Month 10'!O27","v":{"v":0,"d":"0.00"}},{"v":0,"d":"0.00"},"","",{"$f":"SUMIFS($J$25:$J$224,$C$25:$C$224,$C27,$G$25:$G$224,Lists!$A$16)","v":0},0,null,"2",null,{"$f":"IF(C27=0,\"\",LEFT(INDEX(Lists!$H$5:$H$49,MATCH(C27,Lists!$G$5:$G$49,0),1),1))","v":"2"},null,{"$f":"'Month 10'!H27+'Month 10'!I27-'Month 10'!J27","v":1},0,0,null,"2Pr68"]
[{"$f":"Planning!A12","v":"I004"},{"$f":"Planning!B12","v":"3. Activity: Non-Contributing"},{"$f":"Planning!C12","v":"Pr68"},{"$f":"Planning!D12","v":1.4},{"$f":"Planning!E12","v":"Supervisory visits to verify the appropriate application of testing and treatment protocols at centers. "},{"$f":"IF(Planning!G12<>0,Planning!G12,\"\")","v":"11. Programme administration costs"},{"$f":"Planning!H12","v":"2. NO"},{"$f":"Planning!AM12","v":0},{"$f":"IF(OR(W28=\"1\",AND(W28<>\"1\",G28=Lists!$A$17)),Y28,0)","v":0},0,{"$f":"IF(AND(W28=\"2\",G28<>Lists!$A$17),AA28,Z28)","v":""},"",{"$f":"Planning!AN12","v":{"v":0,"d":"0.00"}},{"$f":"'Month 10'!M28+'Month 10'!N28-'Month 10'!O28","v":{"v":0,"d":"0.00"}},{"v":0,"d":"0.00"},"","",{"$f":"SUMIFS($J$25:$J$224,$C$25:$C$224,$C28,$G$25:$G$224,Lists!$A$16)","v":0},0,null,"2",null,{"$f":"IF(C28=0,\"\",LEFT(INDEX(Lists!$H$5:$H$49,MATCH(C28,Lists!$G$5:$G$49,0),1),1))","v":"2"},null,{"$f":"'Month 10'!H28+'Month 10'!I28-'Month 10'!J28","v":0},"","",null,"2Pr68"]
[{"$f":"Planning!A13","v":"I005"},{"$f":"Planning!B13","v":"1. Indicator"},{"$f":"Planning!C13","v":"Pr72"},{"$f":"Planning!D13","v":2},{"$f":"Planning!E13","v":"[Pr72] # new HIV+ enrolled in care services Target [3. Non-Cumulative]"},{"$f":"IF(Planning!G13<>0,Planning!G13,\"\")","v":""},{"$f":"Planning!H13","v":0},{"$f":"Planning!AM13","v":0},{"$f":"IF(OR(W29=\"1\",AND(W29<>\"1\",G29=Lists!$A$17)),Y29,0)","v":0},{"$f":"R29","v":0},{"$f":"IF(AND(W29=\"2\",G29<>Lists!$A$17),AA29,Z29)","v":""},"",{"$f":"Planning!AN13","v":{"v":0,"d":"0.00"}},{"$f":"'Month 10'!M29+'Month 10'!N29-'Month 10'!O29","v":{"v":0,"d":"0.00"}},{"$f":"S29","v":{"v":0,"d":"0.00"}},"","",{"$f":"SUMIFS($J$25:$J$224,$C$25:$C$224,$C29,$G$25:$G$224,Lists!$A$16)","v":0},0,null,"1",null,{"$f":"IF(C29=0,\"\",LEFT(INDEX(Lists!$H$5:$H$49,MATCH(C29,Lists!$G$5:$G$49,0),1),1))","v":"3"},null,{"$f":"'Month 10'!H29+'Month 10'!I29-'Month 10'!J29","v":0},"","",null,"1Pr72"]
[{"$f":"Planning!A14","v":"I006"},{"$f":"Planning!B14","v":"2. Activity: Contributing"},{"$f":"Planning!C14","v":"Pr72"},{"$f":"Planning!D14","v":2.1},{"$f":"Planning!E14","v":"Enrollment of  newly diagnosed HIV+ patients for home visits to monitor use of ARV."},{"$f":"IF(Planning!G14<>0,Planning!G14,\"\")","v":"12. Living support to client/ target population "},{"$f":"Planning!H14","v":"1. YES"},{"$f":"Planning!AM14","v":0},{"$f":"IF(OR(W30=\"1\",AND(W30<>\"1\",G30=Lists!$A$17)),Y30,0)","v":0},0,{"$f":"IF(AND(W30=\"2\",G30<>Lists!$A$17),AA30,Z30)","v":""},"",{"$f":"Planning!AN14","v":{"v":0,"d":"0.00"}},{"$f":"'Month 10'!M30+'Month 10'!N30-'Month 10'!O30","v":{"v":0,"d":"0.00"}},{"v":0,"d":"0.00"},"","",{"$f":"SUMIFS($J$25:$J$224,$C$25:$C$224,$C30,$G$25:$G$224,Lists!$A$16)","v":0},0,null,"2",null,{"$f":"IF(C30=0,\"\",LEFT(INDEX(Lists!$H$5:$H$49,MATCH(C30,Lists!$G$5:$G$49,0),1),1))","v":"3"},null,{"$f":"'Month 10'!H30+'Month 10'!I30-'Month 10'!J30","v":0},"","",null,"2Pr72"]
[{"$f":"Planning!A15","v":"I007"},{"$f":"Planning!B15","v":"1. Indicator"},{"$f":"Planning!C15","v":"Pr74"},{"$f":"Planning!D15","v":3},{"$f":"Planning!E15","v":"[Pr74] # aged 10-24 yrs reached by HIV life skills ed. in school  Target [1. Standard]"},{"$f":"IF(Planning!G15<>0,Planning!G15,\"\")","v":""},{"$f":"Planning!H15","v":0},{"$f":"Planning!AM15","v":0},{"$f":"IF(OR(W31=\"1\",AND(W31<>\"1\",G31=Lists!$A$17)),Y31,0)","v":30},{"$f":"R31","v":0},{"$f":"IF(AND(W31=\"2\",G31<>Lists!$A$17),AA31,Z31)","v":{"v":0,"d":"0.00%"}},0,{"$f":"Planning!AN15","v":{"v":0,"d":"0.00"}},{"$f":"'Month 10'!M31+'Month 10'!N31-'Month 10'!O31","v":{"v":6250,"d":"6,250.00"}},{"$f":"S31","v":{"v":0,"d":"0.00"}},{"v":0,"d":"0.00%"},0,{"$f":"SUMIFS($J$25:$J$224,$C$25:$C$224,$C31,$G$25:$G$224,Lists!$A$16)","v":0},0,null,"1",null,{"$f":"IF(C31=0,\"\",LEFT(INDEX(Lists!$H$5:$H$49,MATCH(C31,Lists!$G$5:$G$49,0),1),1))","v":"1"},null,{"$f":"'Month 10'!H31+'Month 10'!I31-'Month 10'!J31","v":30},0,0,null,"1Pr74"]
[{"$f":"Planning!A16","v":"I008"},{"$f":"Planning!B16","v":"2. Activity: Contributing"},{"$f":"Planning!C16","v":"Pr74"},{"$f":"Planning!D16","v":3.1},{"$f":"Planning!E16","v":"Transportation of students to meetings and conferences for peer education activities"},{"$f":"IF(Planning!G16<>0,Planning!G16,\"\")","v":"2. Travel related costs"},{"$f":"Planning!H16","v":"1. YES"},{"$f":"Planning!AM16","v":0},{"$f":"IF(OR(W32=\"1\",AND(W32<>\"1\",G32=Lists!$A$17)),Y32,0)","v":30},0,{"$f":"IF(AND(W32=\"2\",G32<>Lists!$A$17),AA32,Z32)","v":{"v":0,"d":"0.00%"}},"",{"$f":"Planning!AN16","v":{"v":0,"d":"0.00"}},{"$f":"'Month 10'!M32+'Month 10'!N32-'Month 10'!O32","v":{"v":6250,"d":"6,250.00"}},{"v":0,"d":"0.00"},{"v":0,"d":"0.00%"},"",{"$f":"SUMIFS($J$25:$J$224,$C$25:$C$224,$C32,$G$25:$G$224,Lists!$A$16)","v":0},0,null,"2",null,{"$f":"IF(C32=0,\"\",LEFT(INDEX(Lists!$H$5:$H$49,MATCH(C32,Lists!$G$5:$G$49,0),1),1))","v":"1"},null,{"$f":"'Month 10'!H32+'Month 10'!I32-'Month 10'!J32","v":30},0,0,null,"2Pr74"]
[{"$f":"Planning!A17","v":"I009"},{"$f":"Planning!B17","v":"1. Indicator"},{"$f":"Planning!C17","v":"OI01"},{"$f":"Planning!D17","v":4},{"$f":"Planning!E17","v":"[OI01] # of new orphans and vulnerable children (0 - 17 yrs) benefiting from  services provided at OVC centers [1. Standard]"},{"$f":"IF(Planning!G17<>0,Planning!G17,\"\")","v":""},{"$f":"Planning!H17","v":0},{"$f":"Planning!AM17","v":0},{"$f":"IF(OR(W33=\"1\",AND(W33<>\"1\",G33=Lists!$A$17)),Y33,0)","v":0},{"$f":"R33","v":0},{"$f":"IF(AND(W33=\"2\",G33<>Lists!$A$17),AA33,Z33)","v":""},"",{"$f":"Planning!AN17","v":{"v":0,"d":"0.00"}},{"$f":"'Month 10'!M33+'Month 10'!N33-'Month 10'!O33","v":{"v":1000,"d":"1,000.00"}},{"$f":"S33","v":{"v":0,"d":"0.00"}},{"v":0,"d":"0.00%"},0,{"$f":"SUMIFS($J$25:$J$224,$C$25:$C$224,$C33,$G$25:$G$224,Lists!$A$16)","v":0},0,null,"1",null,{"$f":"IF(C33=0,\"\",LEFT(INDEX(Lists!$H$5:$H$49,MATCH(C33,Lists!$G$5:$G$49,0),1),1))","v":"1"},null,{"$f":"'Month 10'!H33+'Month 10'!I33-'Month 10'!J33","v":0},"","",null,"1OI01"]
[{"$f":"Planning!A18","v":"I010"},{"$f":"Planning!B18","v":"3. Activity: Non-Contributing"},{"$f":"Planning!C18","v":"OI01"},{"$f":"Planning!D18","v":4.1},{"$f":"Planning!E18","v":"# of OVC centers established and fully equipped  "},{"$f":"IF(Planning!G18<>0,Planning!G18,\"\")","v":"8. Infrastructure "},{"$f":"Planning!H18","v":"2. NO"},{"$f":"Planning!AM18","v":0},{"$f":"IF(OR(W34=\"1\",AND(W34<>\"1\",G34=Lists!$A$17)),Y34,0)","v":0},0,{"$f":"IF(AND(W34=\"2\",G34<>Lists!$A$17),AA34,Z34)","v":""},"",{"$f":"Planning!AN18","v":{"v":0,"d":"0.00"}},{"$f":"'Month 10'!M34+'Month 10'!N34-'Month 10'!O34","v":{"v":0,"d":"0.00"}},{"v":0,"d":"0.00"},"","",{"$f":"SUMIFS($J$25:$J$224,$C$25:$C$224,$C34,$G$25:$G$224,Lists!$A$16)","v":0},0,null,"2",null,{"$f":"IF(C34=0,\"\",LEFT(INDEX(Lists!$H$5:$H$49,MATCH(C34,Lists!$G$5:$G$49,0),1),1))","v":"1"},null,{"$f":"'Month 10'!H34+'Month 10'!I34-'Month 10'!J34","v":0},"","",null,"2OI01"]
[{"$f":"Planning!A19","v":"I011"},{"$f":"Planning!B19","v":"2. Activity: Contributing"},{"$f":"Planning!C19","v":"OI01"},{"$f":"Planning!D19","v":4.2},{"$f":"Planning!E19","v":"# of OVC registered at centres"},{"$f":"IF(Planning!G19<>0,Planning!G19,\"\")","v":"12. Living support to client/ target population "},{"$f":"Planning!H19","v":"1. YES"},{"$f":"Planning!AM19","v":0},{"$f":"IF(OR(W35=\"1\",AND(W35<>\"1\",G35=Lists!$A$17)),Y35,0)","v":0},0,{"$f":"IF(AND(W35=\"2\",G35<>Lists!$A$17),AA35,Z35)","v":""},"",{"$f":"Planning!AN19","v":{"v":0,"d":"0.00"}},{"$f":"'Month 10'!M35+'Month 10'!N35-'Month 10'!O35","v":{"v":0,"d":"0.00"}},{"v":0,"d":"0.00"},"","",{"$f":"SUMIFS($J$25:$J$224,$C$25:$C$224,$C35,$G$25:$G$224,Lists!$A$16)","v":0},0,null,"2",null,{"$f":"IF(C35=0,\"\",LEFT(INDEX(Lists!$H$5:$H$49,MATCH(C35,Lists!$G$5:$G$49,0),1),1))","v":"1"},null,{"$f":"'Month 10'!H35+'Month 10'!I35-'Month 10'!J35","v":0},"","",null,"2OI01"]
[{"$f":"Planning!A20","v":"I012"},{"$f":"Planning!B20","v":"3. Activity: Non-Contributing"},{"$f":"Planning!C20","v":"OI01"},{"$f":"Planning!D20","v":4.3},{"$f":"Planning!E20","v":"# of meals provided at the OVC centers "},{"$f":"IF(Planning!G20<>0,Planning!G20,\"\")","v":"12. Living support to client/ target population "},{"$f":"Planning!H20","v":"2. NO"},{"$f":"Planning!AM20","v":0},{"$f":"IF(OR(W36=\"1\",AND(W36<>\"1\",G36=Lists!$A$17)),Y36,0)","v":100},0,{"$f":"IF(AND(W36=\"2\",G36<>Lists!$A$17),AA36,Z36)","v":{"v":0,"d":"0.00%"}},"",{"$f":"Planning!AN20","v":{"v":0,"d":"0.00"}},{"$f":"'Month 10'!M36+'Month 10'!N36-'Month 10'!O36","v":{"v":1000,"d":"1,000.00"}},{"v":0,"d":"0.00"},{"v":0,"d":"0.00%"},"",{"$f":"SUMIFS($J$25:$J$224,$C$25:$C$224,$C36,$G$25:$G$224,Lists!$A$16)","v":0},0,null,"2",null,{"$f":"IF(C36=0,\"\",LEFT(INDEX(Lists!$H$5:$H$49,MATCH(C36,Lists!$G$5:$G$49,0),1),1))","v":"1"},null,{"$f":"'Month 10'!H36+'Month 10'!I36-'Month 10'!J36","v":100},0,0,null,"2OI01"]
[{"$f":"Planning!A21","v":"I013"},{"$f":"Planning!B21","v":0},{"$f":"Planning!C21","v":0},{"$f":"Planning!D21","v":0},{"$f":"Planning!E21","v":0},{"$f":"IF(Planning!G21<>0,Planning!G21,\"\")","v":""},{"$f":"Planning!H21","v":0},{"$f":"Planning!AM21","v":0},{"$f":"IF(OR(W37=\"1\",AND(W37<>\"1\",G37=Lists!$A$17)),Y37,0)","v":0},null,{"$f":"IF(AND(W37=\"2\",G37<>Lists!$A$17),AA37,Z37)","v":""},"",{"$f":"Planning!AN21","v":{"v":0,"d":"0.00"}},{"$f":"'Month 10'!M37+'Month 10'!N37-'Month 10'!O37","v":{"v":0,"d":"0.00"}},null,"","",{"$f":"SUMIFS($J$25:$J$224,$C$25:$C$224,$C37,$G$25:$G$224,Lists!$A$16)","v":0},0,null,"",null,{"$f":"IF(C37=0,\"\",LEFT(INDEX(Lists!$H$5:$H$49,MATCH(C37,Lists!$G$5:$G$49,0),1),1))","v":""},null,{"$f":"'Month 10'!H37+'Month 10'!I37-'Month 10'!J37","v":0},"","",null,"0"]
[{"$f":"Planning!A22","v":"I014"},{"$f":"Planning!B22","v":0},{"$f":"Planning!C22","v":0},{"$f":"Planning!D22","v":0},{"$f":"Planning!E22","v":0},{"$f":"IF(Planning!G22<>0,Planning!G22,\"\")","v":""},{"$f":"Planning!H22","v":0},{"$f":"Planning!AM22","v":0},{"$f":"IF(OR(W38=\"1\",AND(W38<>\"1\",G38=Lists!$A$17)),Y38,0)","v":0},null,{"$f":"IF(AND(W38=\"2\",G38<>Lists!$A$17),AA38,Z38)","v":""},"",{"$f":"Planning!AN22","v":{"v":0,"d":"0.00"}},{"$f":"'Month 10'!M38+'Month 10'!N38-'Month 10'!O38","v":{"v":0,"d":"0.00"}},null,"","",{"$f":"SUMIFS($J$25:$J$224,$C$25:$C$224,$C38,$G$25:$G$224,Lists!$A$16)","v":0},0,null,"",null,{"$f":"IF(C38=0,\"\",LEFT(INDEX(Lists!$H$5:$H$49,MATCH(C38,Lists!$G$5:$G$49,0),1),1))","v":""},null,{"$f":"'Month 10'!H38+'Month 10'!I38-'Month 10'!J38","v":0},"","",null,"0"]
[{"$f":"Planning!A23","v":"I015"},{"$f":"Planning!B23","v":0},{"$f":"Planning!C23","v":0},{"$f":"Planning!D23","v":0},{"$f":"Planning!E23","v":0},{"$f":"IF(Planning!G23<>0,Planning!G23,\"\")","v":""},{"$f":"Planning!H23","v":0},{"$f":"Planning!AM23","v":0},{"$f":"IF(OR(W39=\"1\",AND(W39<>\"1\",G39=Lists!$A$17)),Y39,0)","v":0},null,{"$f":"IF(AND(W39=\"2\",G39<>Lists!$A$17),AA39,Z39)","v":""},"",{"$f":"Planning!AN23","v":{"v":0,"d":"0.00"}},{"$f":"'Month 10'!M39+'Month 10'!N39-'Month 10'!O39","v":{"v":0,"d":"0.00"}},null,"","",{"$f":"SUMIFS($J$25:$J$224,$C$25:$C$224,$C39,$G$25:$G$224,Lists!$A$16)","v":0},0,null,"",null,{"$f":"IF(C39=0,\"\",LEFT(INDEX(Lists!$H$5:$H$49,MATCH(C39,Lists!$G$5:$G$49,0),1),1))","v":""},null,{"$f":"'Month 10'!H39+'Month 10'!I39-'Month 10'!J39","v":0},"","",null,"0"]
[{"$f":"Planning!A24","v":"I016"},{"$f":"Planning!B24","v":0},{"$f":"Planning!C24","v":0},{"$f":"Planning!D24","v":0},{"$f":"Planning!E24","v":0},{"$f":"IF(Planning!G24<>0,Planning!G24,\"\")","v":""},{"$f":"Planning!H24","v":0},{"$f":"Planning!AM24","v":0},{"$f":"IF(OR(W40=\"1\",AND(W40<>\"1\",G40=Lists!$A$17)),Y40,0)","v":0},null,{"$f":"IF(AND(W40=\"2\",G40<>Lists!$A$17),AA40,Z40)","v":""},"",{"$f":"Planning!AN24","v":{"v":0,"d":"0.00"}},{"$f":"'Month 10'!M40+'Month 10'!N40-'Month 10'!O40","v":{"v":0,"d":"0.00"}},null,"","",{"$f":"SUMIFS($J$25:$J$224,$C$25:$C$224,$C40,$G$25:$G$224,Lists!$A$16)","v":0},0,null,"",null,{"$f":"IF(C40=0,\"\",LEFT(INDEX(Lists!$H$5:$H$49,MATCH(C40,Lists!$G$5:$G$49,0),1),1))","v":""},null,{"$f":"'Month 10'!H40+'Month 10'!I40-'Month 10'!J40","v":0},"","",null,"0"]
[{"$f":"Planning!A25","v":"I017"},{"$f":"Planning!B25","v":0},{"$f":"Planning!C25","v":0},{"$f":"Planning!D25","v":0},{"$f":"Planning!E25","v":0},{"$f":"IF(Planning!G25<>0,Planning!G25,\"\")","v":""},{"$f":"Planning!H25","v":0},{"$f":"Planning!AM25","v":0},{"$f":"IF(OR(W41=\"1\",AND(W41<>\"1\",G41=Lists!$A$17)),Y41,0)","v":0},null,{"$f":"IF(AND(W41=\"2\",G41<>Lists!$A$17),AA41,Z41)","v":""},"",{"$f":"Planning!AN25","v":{"v":0,"d":"0.00"}},{"$f":"'Month 10'!M41+'Month 10'!N41-'Month 10'!O41","v":{"v":0,"d":"0.00"}},null,"","",{"$f":"SUMIFS($J$25:$J$224,$C$25:$C$224,$C41,$G$25:$G$224,Lists!$A$16)","v":0},0,null,"",null,{"$f":"IF(C41=0,\"\",LEFT(INDEX(Lists!$H$5:$H$49,MATCH(C41,Lists!$G$5:$G$49,0),1),1))","v":""},null,{"$f":"'Month 10'!H41+'Month 10'!I41-'Month 10'!J41","v":0},"","",null,"0"]
[{"$f":"Planning!A26","v":"I018"},{"$f":"Planning!B26","v":0},{"$f":"Planning!C26","v":0},{"$f":"Planning!D26","v":0},{"$f":"Planning!E26","v":0},{"$f":"IF(Planning!G26<>0,Planning!G26,\"\")","v":""},{"$f":"Planning!H26","v":0},{"$f":"Planning!AM26","v":0},{"$f":"IF(OR(W42=\"1\",AND(W42<>\"1\",G42=Lists!$A$17)),Y42,0)","v":0},null,{"$f":"IF(AND(W42=\"2\",G42<>Lists!$A$17),AA42,Z42)","v":""},"",{"$f":"Planning!AN26","v":{"v":0,"d":"0.00"}},{"$f":"'Month 10'!M42+'Month 10'!N42-'Month 10'!O42","v":{"v":0,"d":"0.00"}},null,"","",{"$f":"SUMIFS($J$25:$J$224,$C$25:$C$224,$C42,$G$25:$G$224,Lists!$A$16)","v":0},0,null,"",null,{"$f":"IF(C42=0,\"\",LEFT(INDEX(Lists!$H$5:$H$49,MATCH(C42,Lists!$G$5:$G$49,0),1),1))","v":""},null,{"$f":"'Month 10'!H42+'Month 10'!I42-'Month 10'!J42","v":0},"","",null,"0"]
[{"$f":"Planning!A27","v":"I019"},{"$f":"Planning!B27","v":0},{"$f":"Planning!C27","v":0},{"$f":"Planning!D27","v":0},{"$f":"Planning!E27","v":0},{"$f":"IF(Planning!G27<>0,Planning!G27,\"\")","v":""},{"$f":"Planning!H27","v":0},{"$f":"Planning!AM27","v":0},{"$f":"IF(OR(W43=\"1\",AND(W43<>\"1\",G43=Lists!$A$17)),Y43,0)","v":0},null,{"$f":"IF(AND(W43=\"2\",G43<>Lists!$A$17),AA43,Z43)","v":""},"",{"$f":"Planning!AN27","v":{"v":0,"d":"0.00"}},{"$f":"'Month 10'!M43+'Month 10'!N43-'Month 10'!O43","v":{"v":0,"d":"0.00"}},null,"","",{"$f":"SUMIFS($J$25:$J$224,$C$25:$C$224,$C43,$G$25:$G$224,Lists!$A$16)","v":0},0,null,"",null,{"$f":"IF(C43=0,\"\",LEFT(INDEX(Lists!$H$5:$H$49,MATCH(C43,Lists!$G$5:$G$49,0),1),1))","v":""},null,{"$f":"'Month 10'!H43+'Month 10'!I43-'Month 10'!J43","v":0},"","",null,"0"]
[{"$f":"Planning!A28","v":"I020"},{"$f":"Planning!B28","v":0},{"$f":"Planning!C28","v":0},{"$f":"Planning!D28","v":0},{"$f":"Planning!E28","v":0},{"$f":"IF(Planning!G28<>0,Planning!G28,\"\")","v":""},{"$f":"Planning!H28","v":0},{"$f":"Planning!AM28","v":0},{"$f":"IF(OR(W44=\"1\",AND(W44<>\"1\",G44=Lists!$A$17)),Y44,0)","v":0},null,{"$f":"IF(AND(W44=\"2\",G44<>Lists!$A$17),AA44,Z44)","v":""},"",{"$f":"Planning!AN28","v":{"v":0,"d":"0.00"}},{"$f":"'Month 10'!M44+'Month 10'!N44-'Month 10'!O44","v":{"v":0,"d":"0.00"}},null,"","",{"$f":"SUMIFS($J$25:$J$224,$C$25:$C$224,$C44,$G$25:$G$224,Lists!$A$16)","v":0},0,null,"",null,{"$f":"IF(C44=0,\"\",LEFT(INDEX(Lists!$H$5:$H$49,MATCH(C44,Lists!$G$5:$G$49,0),1),1))","v":""},null,{"$f":"'Month 10'!H44+'Month 10'!I44-'Month 10'!J44","v":0},"","",null,"0"]
[{"$f":"Planning!A29","v":"I021"},{"$f":"Planning!B29","v":0},{"$f":"Planning!C29","v":0},{"$f":"Planning!D29","v":0},{"$f":"Planning!E29","v":0},{"$f":"IF(Planning!G29<>0,Planning!G29,\"\")","v":""},{"$f":"Planning!H29","v":0},{"$f":"Planning!AM29","v":0},{"$f":"IF(OR(W45=\"1\",AND(W45<>\"1\",G45=Lists!$A$17)),Y45,0)","v":0},null,{"$f":"IF(AND(W45=\"2\",G45<>Lists!$A$17),AA45,Z45)","v":""},"",{"$f":"Planning!AN29","v":{"v":0,"d":"0.00"}},{"$f":"'Month 10'!M45+'Month 10'!N45-'Month 10'!O45","v":{"v":0,"d":"0.00"}},null,"","",{"$f":"SUMIFS($J$25:$J$224,$C$25:$C$224,$C45,$G$25:$G$224,Lists!$A$16)","v":0},0,null,"",null,{"$f":"IF(C45=0,\"\",LEFT(INDEX(Lists!$H$5:$H$49,MATCH(C45,Lists!$G$5:$G$49,0),1),1))","v":""},null,{"$f":"'Month 10'!H45+'Month 10'!I45-'Month 10'!J45","v":0},"","",null,"0"]
[{"$f":"Planning!A30","v":"I022"},{"$f":"Planning!B30","v":0},{"$f":"Planning!C30","v":0},{"$f":"Planning!D30","v":0},{"$f":"Planning!E30","v":0},{"$f":"IF(Planning!G30<>0,Planning!G30,\"\")","v":""},{"$f":"Planning!H30","v":0},{"$f":"Planning!AM30","v":0},{"$f":"IF(OR(W46=\"1\",AND(W46<>\"1\",G46=Lists!$A$17)),Y46,0)","v":0},null,{"$f":"IF(AND(W46=\"2\",G46<>Lists!$A$17),AA46,Z46)","v":""},"",{"$f":"Planning!AN30","v":{"v":0,"d":"0.00"}},{"$f":"'Month 10'!M46+'Month 10'!N46-'Month 10'!O46","v":{"v":0,"d":"0.00"}},null,"","",{"$f":"SUMIFS($J$25:$J$224,$C$25:$C$224,$C46,$G$25:$G$224,Lists!$A$16)","v":0},0,null,"",null,{"$f":"IF(C46=0,\"\",LEFT(INDEX(Lists!$H$5:$H$49,MATCH(C46,Lists!$G$5:$G$49,0),1),1))","v":""},null,{"$f":"'Month 10'!H46+'Month 10'!I46-'Month 10'!J46","v":0},"","",null,"0"]
[{"$f":"Planning!A31","v":"I023"},{"$f":"Planning!B31","v":0},{"$f":"Planning!C31","v":0},{"$f":"Planning!D31","v":0},{"$f":"Planning!E31","v":0},{"$f":"IF(Planning!G31<>0,Planning!G31,\"\")","v":""},{"$f":"Planning!H31","v":0},{"$f":"Planning!AM31","v":0},{"$f":"IF(OR(W47=\"1\",AND(W47<>\"1\",G47=Lists!$A$17)),Y47,0)","v":0},null,{"$f":"IF(AND(W47=\"2\",G47<>Lists!$A$17),AA47,Z47)","v":""},"",{"$f":"Planning!AN31","v":{"v":0,"d":"0.00"}},{"$f":"'Month 10'!M47+'Month 10'!N47-'Month 10'!O47","v":{"v":0,"d":"0.00"}},null,"","",{"$f":"SUMIFS($J$25:$J$224,$C$25:$C$224,$C47,$G$25:$G$224,Lists!$A$16)","v":0},0,null,"",null,{"$f":"IF(C47=0,\"\",LEFT(INDEX(Lists!$H$5:$H$49,MATCH(C47,Lists!$G$5:$G$49,0),1),1))","v":""},null,{"$f":"'Month 10'!H47+'Month 10'!I47-'Month 10'!J47","v":0},"","",null,"0"]
[{"$f":"Planning!A32","v":"I024"},{"$f":"Planning!B32","v":0},{"$f":"Planning!C32","v":0},{"$f":"Planning!D32","v":0},{"$f":"Planning!E32","v":0},{"$f":"IF(Planning!G32<>0,Planning!G32,\"\")","v":""},{"$f":"Planning!H32","v":0},{"$f":"Planning!AM32","v":0},{"$f":"IF(OR(W48=\"1\",AND(W48<>\"1\",G48=Lists!$A$17)),Y48,0)","v":0},null,{"$f":"IF(AND(W48=\"2\",G48<>Lists!$A$17),AA48,Z48)","v":""},"",{"$f":"Planning!AN32","v":{"v":0,"d":"0.00"}},{"$f":"'Month 10'!M48+'Month 10'!N48-'Month 10'!O48","v":{"v":0,"d":"0.00"}},null,"","",{"$f":"SUMIFS($J$25:$J$224,$C$25:$C$224,$C48,$G$25:$G$224,Lists!$A$16)","v":0},0,null,"",null,{"$f":"IF(C48=0,\"\",LEFT(INDEX(Lists!$H$5:$H$49,MATCH(C48,Lists!$G$5:$G$49,0),1),1))","v":""},null,{"$f":"'Month 10'!H48+'Month 10'!I48-'Month 10'!J48","v":0},"","",null,"0"]
[{"$f":"Planning!A33","v":"I025"},{"$f":"Planning!B33","v":0},{"$f":"Planning!C33","v":0},{"$f":"Planning!D33","v":0},{"$f":"Planning!E33","v":0},{"$f":"IF(Planning!G33<>0,Planning!G33,\"\")","v":""},{"$f":"Planning!H33","v":0},{"$f":"Planning!AM33","v":0},{"$f":"IF(OR(W49=\"1\",AND(W49<>\"1\",G49=Lists!$A$17)),Y49,0)","v":0},null,{"$f":"IF(AND(W49=\"2\",G49<>Lists!$A$17),AA49,Z49)","v":""},"",{"$f":"Planning!AN33","v":{"v":0,"d":"0.00"}},{"$f":"'Month 10'!M49+'Month 10'!N49-'Month 10'!O49","v":{"v":0,"d":"0.00"}},null,"","",{"$f":"SUMIFS($J$25:$J$224,$C$25:$C$224,$C49,$G$25:$G$224,Lists!$A$16)","v":0},0,null,"",null,{"$f":"IF(C49=0,\"\",LEFT(INDEX(Lists!$H$5:$H$49,MATCH(C49,Lists!$G$5:$G$49,0),1),1))","v":""},null,{"$f":"'Month 10'!H49+'Month 10'!I49-'Month 10'!J49","v":0},"","",null,"0"]
[{"$f":"Planning!A34","v":"I026"},{"$f":"Planning!B34","v":0},{"$f":"Planning!C34","v":0},{"$f":"Planning!D34","v":0},{"$f":"Planning!E34","v":0},{"$f":"IF(Planning!G34<>0,Planning!G34,\"\")","v":""},{"$f":"Planning!H34","v":0},{"$f":"Planning!AM34","v":0},{"$f":"IF(OR(W50=\"1\",AND(W50<>\"1\",G50=Lists!$A$17)),Y50,0)","v":0},null,{"$f":"IF(AND(W50=\"2\",G50<>Lists!$A$17),AA50,Z50)","v":""},"",{"$f":"Planning!AN34","v":{"v":0,"d":"0.00"}},{"$f":"'Month 10'!M50+'Month 10'!N50-'Month 10'!O50","v":{"v":0,"d":"0.00"}},null,"","",{"$f":"SUMIFS($J$25:$J$224,$C$25:$C$224,$C50,$G$25:$G$224,Lists!$A$16)","v":0},0,null,"",null,{"$f":"IF(C50=0,\"\",LEFT(INDEX(Lists!$H$5:$H$49,MATCH(C50,Lists!$G$5:$G$49,0),1),1))","v":""},null,{"$f":"'Month 10'!H50+'Month 10'!I50-'Month 10'!J50","v":0},"","",null,"0"]
[{"$f":"Planning!A35","v":"I027"},{"$f":"Planning!B35","v":0},{"$f":"Planning!C35","v":0},{"$f":"Planning!D35","v":0},{"$f":"Planning!E35","v":0},{"$f":"IF(Planning!G35<>0,Planning!G35,\"\")","v":""},{"$f":"Planning!H35","v":0},{"$f":"Planning!AM35","v":0},{"$f":"IF(OR(W51=\"1\",AND(W51<>\"1\",G51=Lists!$A$17)),Y51,0)","v":0},null,{"$f":"IF(AND(W51=\"2\",G51<>Lists!$A$17),AA51,Z51)","v":""},"",{"$f":"Planning!AN35","v":{"v":0,"d":"0.00"}},{"$f":"'Month 10'!M51+'Month 10'!N51-'Month 10'!O51","v":{"v":0,"d":"0.00"}},null,"","",{"$f":"SUMIFS($J$25:$J$224,$C$25:$C$224,$C51,$G$25:$G$224,Lists!$A$16)","v":0},0,null,"",null,{"$f":"IF(C51=0,\"\",LEFT(INDEX(Lists!$H$5:$H$49,MATCH(C51,Lists!$G$5:$G$49,0),1),1))","v":""},null,{"$f":"'Month 10'!H51+'Month 10'!I51-'Month 10'!J51","v":0},"","",null,"0"]
[{"$f":"Planning!A36","v":"I028"},{"$f":"Planning!B36","v":0},{"$f":"Planning!C36","v":0},{"$f":"Planning!D36","v":0},{"$f":"Planning!E36","v":0},{"$f":"IF(Planning!G36<>0,Planning!G36,\"\")","v":""},{"$f":"Planning!H36","v":0},{"$f":"Planning!AM36","v":0},{"$f":"IF(OR(W52=\"1\",AND(W52<>\"1\",G52=Lists!$A$17)),Y52,0)","v":0},null,{"$f":"IF(AND(W52=\"2\",G52<>Lists!$A$17),AA52,Z52)","v":""},"",{"$f":"Planning!AN36","v":{"v":0,"d":"0.00"}},{"$f":"'Month 10'!M52+'Month 10'!N52-'Month 10'!O52","v":{"v":0,"d":"0.00"}},null,"","",{"$f":"SUMIFS($J$25:$J$224,$C$25:$C$224,$C52,$G$25:$G$224,Lists!$A$16)","v":0},0,null,"",null,{"$f":"IF(C52=0,\"\",LEFT(INDEX(Lists!$H$5:$H$49,MATCH(C52,Lists!$G$5:$G$49,0),1),1))","v":""},null,{"$f":"'Month 10'!H52+'Month 10'!I52-'Month 10'!J52","v":0},"","",null,"0"]
[{"$f":"Planning!A37","v":"I029"},{"$f":"Planning!B37","v":0},{"$f":"Planning!C37","v":0},{"$f":"Planning!D37","v":0},{"$f":"Planning!E37","v":0},{"$f":"IF(Planning!G37<>0,Planning!G37,\"\")","v":""},{"$f":"Planning!H37","v":0},{"$f":"Planning!AM37","v":0},{"$f":"IF(OR(W53=\"1\",AND(W53<>\"1\",G53=Lists!$A$17)),Y53,0)","v":0},null,{"$f":"IF(AND(W53=\"2\",G53<>Lists!$A$17),AA53,Z53)","v":""},"",{"$f":"Planning!AN37","v":{"v":0,"d":"0.00"}},{"$f":"'Month 10'!M53+'Month 10'!N53-'Month 10'!O53","v":{"v":0,"d":"0.00"}},null,"","",{"$f":"SUMIFS($J$25:$J$224,$C$25:$C$224,$C53,$G$25:$G$224,Lists!$A$16)","v":0},0,null,"",null,{"$f":"IF(C53=0,\"\",LEFT(INDEX(Lists!$H$5:$H$49,MATCH(C53,Lists!$G$5:$G$49,0),1),1))","v":""},null,{"$f":"'Month 10'!H53+'Month 10'!I53-'Month 10'!J53","v":0},"","",null,"0"]
[{"$f":"Planning!A38","v":"I030"},{"$f":"Planning!B38","v":0},{"$f":"Planning!C38","v":0},{"$f":"Planning!D38","v":0},{"$f":"Planning!E38","v":0},{"$f":"IF(Planning!G38<>0,Planning!G38,\"\")","v":""},{"$f":"Planning!H38","v":0},{"$f":"Planning!AM38","v":0},{"$f":"IF(OR(W54=\"1\",AND(W54<>\"1\",G54=Lists!$A$17)),Y54,0)","v":0},null,{"$f":"IF(AND(W54=\"2\",G54<>Lists!$A$17),AA54,Z54)","v":""},"",{"$f":"Planning!AN38","v":{"v":0,"d":"0.00"}},{"$f":"'Month 10'!M54+'Month 10'!N54-'Month 10'!O54","v":{"v":0,"d":"0.00"}},null,"","",{"$f":"SUMIFS($J$25:$J$224,$C$25:$C$224,$C54,$G$25:$G$224,Lists!$A$16)","v":0},0,null,"",null,{"$f":"IF(C54=0,\"\",LEFT(INDEX(Lists!$H$5:$H$49,MATCH(C54,Lists!$G$5:$G$49,0),1),1))","v":""},null,{"$f":"'Month 10'!H54+'Month 10'!I54-'Month 10'!J54","v":0},"","",null,"0"]
[{"$f":"Planning!A39","v":"I031"},{"$f":"Planning!B39","v":0},{"$f":"Planning!C39","v":0},{"$f":"Planning!D39","v":0},{"$f":"Planning!E39","v":0},{"$f":"IF(Planning!G39<>0,Planning!G39,\"\")","v":""},{"$f":"Planning!H39","v":0},{"$f":"Planning!AM39","v":0},{"$f":"IF(OR(W55=\"1\",AND(W55<>\"1\",G55=Lists!$A$17)),Y55,0)","v":0},null,{"$f":"IF(AND(W55=\"2\",G55<>Lists!$A$17),AA55,Z55)","v":""},"",{"$f":"Planning!AN39","v":{"v":0,"d":"0.00"}},{"$f":"'Month 10'!M55+'Month 10'!N55-'Month 10'!O55","v":{"v":0,"d":"0.00"}},null,"","",{"$f":"SUMIFS($J$25:$J$224,$C$25:$C$224,$C55,$G$25:$G$224,Lists!$A$16)","v":0},0,null,"",null,{"$f":"IF(C55=0,\"\",LEFT(INDEX(Lists!$H$5:$H$49,MATCH(C55,Lists!$G$5:$G$49,0),1),1))","v":""},null,{"$f":"'Month 10'!H55+'Month 10'!I55-'Month 10'!J55","v":0},"","",null,"0"]
[{"$f":"Planning!A40","v":"I032"},{"$f":"Planning!B40","v":0},{"$f":"Planning!C40","v":0},{"$f":"Planning!D40","v":0},{"$f":"Planning!E40","v":0},{"$f":"IF(Planning!G40<>0,Planning!G40,\"\")","v":""},{"$f":"Planning!H40","v":0},{"$f":"Planning!AM40","v":0},{"$f":"IF(OR(W56=\"1\",AND(W56<>\"1\",G56=Lists!$A$17)),Y56,0)","v":0},null,{"$f":"IF(AND(W56=\"2\",G56<>Lists!$A$17),AA56,Z56)","v":""},"",{"$f":"Planning!AN40","v":{"v":0,"d":"0.00"}},{"$f":"'Month 10'!M56+'Month 10'!N56-'Month 10'!O56","v":{"v":0,"d":"0.00"}},null,"","",{"$f":"SUMIFS($J$25:$J$224,$C$25:$C$224,$C56,$G$25:$G$224,Lists!$A$16)","v":0},0,null,"",null,{"$f":"IF(C56=0,\"\",LEFT(INDEX(Lists!$H$5:$H$49,MATCH(C56,Lists!$G$5:$G$49,0),1),1))","v":""},null,{"$f":"'Month 10'!H56+'Month 10'!I56-'Month 10'!J56","v":0},"","",null,"0"]
[{"$f":"Planning!A41","v":"I033"},{"$f":"Planning!B41","v":0},{"$f":"Planning!C41","v":0},{"$f":"Planning!D41","v":0},{"$f":"Planning!E41","v":0},{"$f":"IF(Planning!G41<>0,Planning!G41,\"\")","v":""},{"$f":"Planning!H41","v":0},{"$f":"Planning!AM41","v":0},{"$f":"IF(OR(W57=\"1\",AND(W57<>\"1\",G57=Lists!$A$17)),Y57,0)","v":0},null,{"$f":"IF(AND(W57=\"2\",G57<>Lists!$A$17),AA57,Z57)","v":""},{"$f":"IF($U57=ExcluirDelPLogro,\"\",IF(AND(H57=0,I57=0,J57=0),\"\",K57))","v":""},{"$f":"Planning!AN41","v":{"v":0,"d":"0.00"}},{"$f":"'Month 10'!M57+'Month 10'!N57-'Month 10'!O57","v":{"v":0,"d":"0.00"}},null,"",{"$f":"IF($U57=ExcluirDelPLogro,\"\",IF(AND(M57=0,N57=0,O57=0),\"\",P57))","v":""},{"$f":"SUMIFS($J$25:$J$224,$C$25:$C$224,$C57,$G$25:$G$224,Lists!$A$16)","v":0},0,null,"",null,{"$f":"IF(C57=0,\"\",LEFT(INDEX(Lists!$H$5:$H$49,MATCH(C57,Lists!$G$5:$G$49,0),1),1))","v":""},null,{"$f":"'Month 10'!H57+'Month 10'!I57-'Month 10'!J57","v":0},"",{"$f":"IF(AND(H57=0,I57=0,J57=0),\"\",IF(J57>0,H57/J57,0))","v":""},null,"0"]
[{"$f":"Planning!A42","v":"I034"},{"$f":"Planning!B42","v":0},{"$f":"Planning!C42","v":0},{"$f":"Planning!D42","v":0},{"$f":"Planning!E42","v":0},{"$f":"IF(Planning!G42<>0,Planning!G42,\"\")","v":""},{"$f":"Planning!H42","v":0},{"$f":"Planning!AM42","v":0},{"$f":"IF(OR(W58=\"1\",AND(W58<>\"1\",G58=Lists!$A$17)),Y58,0)","v":0},null,{"$f":"IF(AND(W58=\"2\",G58<>Lists!$A$17),AA58,Z58)","v":""},"",{"$f":"Planning!AN42","v":{"v":0,"d":"0.00"}},{"$f":"'Month 10'!M58+'Month 10'!N58-'Month 10'!O58","v":{"v":0,"d":"0.00"}},null,"","",{"$f":"SUMIFS($J$25:$J$224,$C$25:$C$224,$C58,$G$25:$G$224,Lists!$A$16)","v":0},0,null,"",null,{"$f":"IF(C58=0,\"\",LEFT(INDEX(Lists!$H$5:$H$49,MATCH(C58,Lists!$G$5:$G$49,0),1),1))","v":""},null,{"$f":"'Month 10'!H58+'Month 10'!I58-'Month 10'!J58","v":0},"","",null,"0"]
[{"$f":"Planning!A43","v":"I035"},{"$f":"Planning!B43","v":0},{"$f":"Planning!C43","v":0},{"$f":"Planning!D43","v":0},{"$f":"Planning!E43","v":0},{"$f":"IF(Planning!G43<>0,Planning!G43,\"\")","v":""},{"$f":"Planning!H43","v":0},{"$f":"Planning!AM43","v":0},{"$f":"IF(OR(W59=\"1\",AND(W59<>\"1\",G59=Lists!$A$17)),Y59,0)","v":0},null,{"$f":"IF(AND(W59=\"2\",G59<>Lists!$A$17),AA59,Z59)","v":""},"",{"$f":"Planning!AN43","v":{"v":0,"d":"0.00"}},{"$f":"'Month 10'!M59+'Month 10'!N59-'Month 10'!O59","v":{"v":0,"d":"0.00"}},null,"","",{"$f":"SUMIFS($J$25:$J$224,$C$25:$C$224,$C59,$G$25:$G$224,Lists!$A$16)","v":0},0,null,"",null,{"$f":"IF(C59=0,\"\",LEFT(INDEX(Lists!$H$5:$H$49,MATCH(C59,Lists!$G$5:$G$49,0),1),1))","v":""},null,{"$f":"'Month 10'!H59+'Month 10'!I59-'Month 10'!J59","v":0},"","",null,"0"]
[{"$f":"Planning!A44","v":"I036"},{"$f":"Planning!B44","v":0},{"$f":"Planning!C44","v":0},{"$f":"Planning!D44","v":0},{"$f":"Planning!E44","v":0},{"$f":"IF(Planning!G44<>0,Planning!G44,\"\")","v":""},{"$f":"Planning!H44","v":0},{"$f":"Planning!AM44","v":0},{"$f":"IF(OR(W60=\"1\",AND(W60<>\"1\",G60=Lists!$A$17)),Y60,0)","v":0},null,{"$f":"IF(AND(W60=\"2\",G60<>Lists!$A$17),AA60,Z60)","v":""},"",{"$f":"Planning!AN44","v":{"v":0,"d":"0.00"}},{"$f":"'Month 10'!M60+'Month 10'!N60-'Month 10'!O60","v":{"v":0,"d":"0.00"}},null,"","",{"$f":"SUMIFS($J$25:$J$224,$C$25:$C$224,$C60,$G$25:$G$224,Lists!$A$16)","v":0},0,null,"",null,{"$f":"IF(C60=0,\"\",LEFT(INDEX(Lists!$H$5:$H$49,MATCH(C60,Lists!$G$5:$G$49,0),1),1))","v":""},null,{"$f":"'Month 10'!H60+'Month 10'!I60-'Month 10'!J60","v":0},"","",null,"0"]
[{"$f":"Planning!A45","v":"I037"},{"$f":"Planning!B45","v":0},{"$f":"Planning!C45","v":0},{"$f":"Planning!D45","v":0},{"$f":"Planning!E45","v":0},{"$f":"IF(Planning!G45<>0,Planning!G45,\"\")","v":""},{"$f":"Planning!H45","v":0},{"$f":"Planning!AM45","v":0},{"$f":"IF(OR(W61=\"1\",AND(W61<>\"1\",G61=Lists!$A$17)),Y61,0)","v":0},null,{"$f":"IF(AND(W61=\"2\",G61<>Lists!$A$17),AA61,Z61)","v":""},"",{"$f":"Planning!AN45","v":{"v":0,"d":"0.00"}},{"$f":"'Month 10'!M61+'Month 10'!N61-'Month 10'!O61","v":{"v":0,"d":"0.00"}},null,"","",{"$f":"SUMIFS($J$25:$J$224,$C$25:$C$224,$C61,$G$25:$G$224,Lists!$A$16)","v":0},0,null,"",null,{"$f":"IF(C61=0,\"\",LEFT(INDEX(Lists!$H$5:$H$49,MATCH(C61,Lists!$G$5:$G$49,0),1),1))","v":""},null,{"$f":"'Month 10'!H61+'Month 10'!I61-'Month 10'!J61","v":0},"","",null,"0"]
[{"$f":"Planning!A46","v":"I038"},{"$f":"Planning!B46","v":0},{"$f":"Planning!C46","v":0},{"$f":"Planning!D46","v":0},{"$f":"Planning!E46","v":0},{"$f":"IF(Planning!G46<>0,Planning!G46,\"\")","v":""},{"$f":"Planning!H46","v":0},{"$f":"Planning!AM46","v":0},{"$f":"IF(OR(W62=\"1\",AND(W62<>\"1\",G62=Lists!$A$17)),Y62,0)","v":0},null,{"$f":"IF(AND(W62=\"2\",G62<>Lists!$A$17),AA62,Z62)","v":""},"",{"$f":"Planning!AN46","v":{"v":0,"d":"0.00"}},{"$f":"'Month 10'!M62+'Month 10'!N62-'Month 10'!O62","v":{"v":0,"d":"0.00"}},null,"","",{"$f":"SUMIFS($J$25:$J$224,$C$25:$C$224,$C62,$G$25:$G$224,Lists!$A$16)","v":0},0,null,"",null,{"$f":"IF(C62=0,\"\",LEFT(INDEX(Lists!$H$5:$H$49,MATCH(C62,Lists!$G$5:$G$49,0),1),1))","v":""},null,{"$f":"'Month 10'!H62+'Month 10'!I62-'Month 10'!J62","v":0},"","",null,"0"]
[{"$f":"Planning!A47","v":"I039"},{"$f":"Planning!B47","v":0},{"$f":"Planning!C47","v":0},{"$f":"Planning!D47","v":0},{"$f":"Planning!E47","v":0},{"$f":"IF(Planning!G47<>0,Planning!G47,\"\")","v":""},{"$f":"Planning!H47","v":0},{"$f":"Planning!AM47","v":0},{"$f":"IF(OR(W63=\"1\",AND(W63<>\"1\",G63=Lists!$A$17)),Y63,0)","v":0},null,{"$f":"IF(AND(W63=\"2\",G63<>Lists!$A$17),AA63,Z63)","v":""},"",{"$f":"Planning!AN47","v":{"v":0,"d":"0.00"}},{"$f":"'Month 10'!M63+'Month 10'!N63-'Month 10'!O63","v":{"v":0,"d":"0.00"}},null,"","",{"$f":"SUMIFS($J$25:$J$224,$C$25:$C$224,$C63,$G$25:$G$224,Lists!$A$16)","v":0},0,null,"",null,{"$f":"IF(C63=0,\"\",LEFT(INDEX(Lists!$H$5:$H$49,MATCH(C63,Lists!$G$5:$G$49,0),1),1))","v":""},null,{"$f":"'Month 10'!H63+'Month 10'!I63-'Month 10'!J63","v":0},"","",null,"0"]
[{"$f":"Planning!A48","v":"I040"},{"$f":"Planning!B48","v":0},{"$f":"Planning!C48","v":0},{"$f":"Planning!D48","v":0},{"$f":"Planning!E48","v":0},{"$f":"IF(Planning!G48<>0,Planning!G48,\"\")","v":""},{"$f":"Planning!H48","v":0},{"$f":"Planning!AM48","v":0},{"$f":"IF(OR(W64=\"1\",AND(W64<>\"1\",G64=Lists!$A$17)),Y64,0)","v":0},null,{"$f":"IF(AND(W64=\"2\",G64<>Lists!$A$17),AA64,Z64)","v":""},"",{"$f":"Planning!AN48","v":{"v":0,"d":"0.00"}},{"$f":"'Month 10'!M64+'Month 10'!N64-'Month 10'!O64","v":{"v":0,"d":"0.00"}},null,"","",{"$f":"SUMIFS($J$25:$J$224,$C$25:$C$224,$C64,$G$25:$G$224,Lists!$A$16)","v":0},0,null,"",null,{"$f":"IF(C64=0,\"\",LEFT(INDEX(Lists!$H$5:$H$49,MATCH(C64,Lists!$G$5:$G$49,0),1),1))","v":""},null,{"$f":"'Month 10'!H64+'Month 10'!I64-'Month 10'!J64","v":0},"","",null,"0"]
[{"$f":"Planning!A49","v":"I041"},{"$f":"Planning!B49","v":0},{"$f":"Planning!C49","v":0},{"$f":"Planning!D49","v":0},{"$f":"Planning!E49","v":0},{"$f":"IF(Planning!G49<>0,Planning!G49,\"\")","v":""},{"$f":"Planning!H49","v":0},{"$f":"Planning!AM49","v":0},{"$f":"IF(OR(W65=\"1\",AND(W65<>\"1\",G65=Lists!$A$17)),Y65,0)","v":0},null,{"$f":"IF(AND(W65=\"2\",G65<>Lists!$A$17),AA65,Z65)","v":""},"",{"$f":"Planning!AN49","v":{"v":0,"d":"0.00"}},{"$f":"'Month 10'!M65+'Month 10'!N65-'Month 10'!O65","v":{"v":0,"d":"0.00"}},null,"","",{"$f":"SUMIFS($J$25:$J$224,$C$25:$C$224,$C65,$G$25:$G$224,Lists!$A$16)","v":0},0,null,"",null,{"$f":"IF(C65=0,\"\",LEFT(INDEX(Lists!$H$5:$H$49,MATCH(C65,Lists!$G$5:$G$49,0),1),1))","v":""},null,{"$f":"'Month 10'!H65+'Month 10'!I65-'Month 10'!J65","v":0},"","",null,"0"]
[{"$f":"Planning!A50","v":"I042"},{"$f":"Planning!B50","v":0},{"$f":"Planning!C50","v":0},{"$f":"Planning!D50","v":0},{"$f":"Planning!E50","v":0},{"$f":"IF(Planning!G50<>0,Planning!G50,\"\")","v":""},{"$f":"Planning!H50","v":0},{"$f":"Planning!AM50","v":0},{"$f":"IF(OR(W66=\"1\",AND(W66<>\"1\",G66=Lists!$A$17)),Y66,0)","v":0},null,{"$f":"IF(AND(W66=\"2\",G66<>Lists!$A$17),AA66,Z66)","v":""},"",{"$f":"Planning!AN50","v":{"v":0,"d":"0.00"}},{"$f":"'Month 10'!M66+'Month 10'!N66-'Month 10'!O66","v":{"v":0,"d":"0.00"}},null,"","",{"$f":"SUMIFS($J$25:$J$224,$C$25:$C$224,$C66,$G$25:$G$224,Lists!$A$16)","v":0},0,null,"",null,{"$f":"IF(C66=0,\"\",LEFT(INDEX(Lists!$H$5:$H$49,MATCH(C66,Lists!$G$5:$G$49,0),1),1))","v":""},null,{"$f":"'Month 10'!H66+'Month 10'!I66-'Month 10'!J66","v":0},"","",null,"0"]
[{"$f":"Planning!A51","v":"I043"},{"$f":"Planning!B51","v":0},{"$f":"Planning!C51","v":0},{"$f":"Planning!D51","v":0},{"$f":"Planning!E51","v":0},{"$f":"IF(Planning!G51<>0,Planning!G51,\"\")","v":""},{"$f":"Planning!H51","v":0},{"$f":"Planning!AM51","v":0},{"$f":"IF(OR(W67=\"1\",AND(W67<>\"1\",G67=Lists!$A$17)),Y67,0)","v":0},null,{"$f":"IF(AND(W67=\"2\",G67<>Lists!$A$17),AA67,Z67)","v":""},"",{"$f":"Planning!AN51","v":{"v":0,"d":"0.00"}},{"$f":"'Month 10'!M67+'Month 10'!N67-'Month 10'!O67","v":{"v":0,"d":"0.00"}},null,"","",{"$f":"SUMIFS($J$25:$J$224,$C$25:$C$224,$C67,$G$25:$G$224,Lists!$A$16)","v":0},0,null,"",null,{"$f":"IF(C67=0,\"\",LEFT(INDEX(Lists!$H$5:$H$49,MATCH(C67,Lists!$G$5:$G$49,0),1),1))","v":""},null,{"$f":"'Month 10'!H67+'Month 10'!I67-'Month 10'!J67","v":0},"","",null,"0"]
[{"$f":"Planning!A52","v":"I044"},{"$f":"Planning!B52","v":0},{"$f":"Planning!C52","v":0},{"$f":"Planning!D52","v":0},{"$f":"Planning!E52","v":0},{"$f":"IF(Planning!G52<>0,Planning!G52,\"\")","v":""},{"$f":"Planning!H52","v":0},{"$f":"Planning!AM52","v":0},{"$f":"IF(OR(W68=\"1\",AND(W68<>\"1\",G68=Lists!$A$17)),Y68,0)","v":0},null,{"$f":"IF(AND(W68=\"2\",G68<>Lists!$A$17),AA68,Z68)","v":""},"",{"$f":"Planning!AN52","v":{"v":0,"d":"0.00"}},{"$f":"'Month 10'!M68+'Month 10'!N68-'Month 10'!O68","v":{"v":0,"d":"0.00"}},null,"","",{"$f":"SUMIFS($J$25:$J$224,$C$25:$C$224,$C68,$G$25:$G$224,Lists!$A$16)","v":0},0,null,"",null,{"$f":"IF(C68=0,\"\",LEFT(INDEX(Lists!$H$5:$H$49,MATCH(C68,Lists!$G$5:$G$49,0),1),1))","v":""},null,{"$f":"'Month 10'!H68+'Month 10'!I68-'Month 10'!J68","v":0},"","",null,"0"]
[{"$f":"Planning!A53","v":"I045"},{"$f":"Planning!B53","v":0},{"$f":"Planning!C53","v":0},{"$f":"Planning!D53","v":0},{"$f":"Planning!E53","v":0},{"$f":"IF(Planning!G53<>0,Planning!G53,\"\")","v":""},{"$f":"Planning!H53","v":0},{"$f":"Planning!AM53","v":0},{"$f":"IF(OR(W69=\"1\",AND(W69<>\"1\",G69=Lists!$A$17)),Y69,0)","v":0},null,{"$f":"IF(AND(W69=\"2\",G69<>Lists!$A$17),AA69,Z69)","v":""},"",{"$f":"Planning!AN53","v":{"v":0,"d":"0.00"}},{"$f":"'Month 10'!M69+'Month 10'!N69-'Month 10'!O69","v":{"v":0,"d":"0.00"}},null,"","",{"$f":"SUMIFS($J$25:$J$224,$C$25:$C$224,$C69,$G$25:$G$224,Lists!$A$16)","v":0},0,null,"",null,{"$f":"IF(C69=0,\"\",LEFT(INDEX(Lists!$H$5:$H$49,MATCH(C69,Lists!$G$5:$G$49,0),1),1))","v":""},null,{"$f":"'Month 10'!H69+'Month 10'!I69-'Month 10'!J69","v":0},"","",null,"0"]
[{"$f":"Planning!A54","v":"I046"},{"$f":"Planning!B54","v":0},{"$f":"Planning!C54","v":0},{"$f":"Planning!D54","v":0},{"$f":"Planning!E54","v":0},{"$f":"IF(Planning!G54<>0,Planning!G54,\"\")","v":""},{"$f":"Planning!H54","v":0},{"$f":"Planning!AM54","v":0},{"$f":"IF(OR(W70=\"1\",AND(W70<>\"1\",G70=Lists!$A$17)),Y70,0)","v":0},null,{"$f":"IF(AND(W70=\"2\",G70<>Lists!$A$17),AA70,Z70)","v":""},"",{"$f":"Planning!AN54","v":{"v":0,"d":"0.00"}},{"$f":"'Month 10'!M70+'Month 10'!N70-'Month 10'!O70","v":{"v":0,"d":"0.00"}},null,"","",{"$f":"SUMIFS($J$25:$J$224,$C$25:$C$224,$C70,$G$25:$G$224,Lists!$A$16)","v":0},0,null,"",null,{"$f":"IF(C70=0,\"\",LEFT(INDEX(Lists!$H$5:$H$49,MATCH(C70,Lists!$G$5:$G$49,0),1),1))","v":""},null,{"$f":"'Month 10'!H70+'Month 10'!I70-'Month 10'!J70","v":0},"","",null,"0"]
[{"$f":"Planning!A55","v":"I047"},{"$f":"Planning!B55","v":0},{"$f":"Planning!C55","v":0},{"$f":"Planning!D55","v":0},{"$f":"Planning!E55","v":0},{"$f":"IF(Planning!G55<>0,Planning!G55,\"\")","v":""},{"$f":"Planning!H55","v":0},{"$f":"Planning!AM55","v":0},{"$f":"IF(OR(W71=\"1\",AND(W71<>\"1\",G71=Lists!$A$17)),Y71,0)","v":0},null,{"$f":"IF(AND(W71=\"2\",G71<>Lists!$A$17),AA71,Z71)","v":""},"",{"$f":"Planning!AN55","v":{"v":0,"d":"0.00"}},{"$f":"'Month 10'!M71+'Month 10'!N71-'Month 10'!O71","v":{"v":0,"d":"0.00"}},null,"","",{"$f":"SUMIFS($J$25:$J$224,$C$25:$C$224,$C71,$G$25:$G$224,Lists!$A$16)","v":0},0,null,"",null,{"$f":"IF(C71=0,\"\",LEFT(INDEX(Lists!$H$5:$H$49,MATCH(C71,Lists!$G$5:$G$49,0),1),1))","v":""},null,{"$f":"'Month 10'!H71+'Month 10'!I71-'Month 10'!J71","v":0},"","",null,"0"]
[{"$f":"Planning!A56","v":"I048"},{"$f":"Planning!B56","v":0},{"$f":"Planning!C56","v":0},{"$f":"Planning!D56","v":0},{"$f":"Planning!E56","v":0},{"$f":"IF(Planning!G56<>0,Planning!G56,\"\")","v":""},{"$f":"Planning!H56","v":0},{"$f":"Planning!AM56","v":0},{"$f":"IF(OR(W72=\"1\",AND(W72<>\"1\",G72=Lists!$A$17)),Y72,0)","v":0},null,{"$f":"IF(AND(W72=\"2\",G72<>Lists!$A$17),AA72,Z72)","v":""},"",{"$f":"Planning!AN56","v":{"v":0,"d":"0.00"}},{"$f":"'Month 10'!M72+'Month 10'!N72-'Month 10'!O72","v":{"v":0,"d":"0.00"}},null,"","",{"$f":"SUMIFS($J$25:$J$224,$C$25:$C$224,$C72,$G$25:$G$224,Lists!$A$16)","v":0},0,null,"",null,{"$f":"IF(C72=0,\"\",LEFT(INDEX(Lists!$H$5:$H$49,MATCH(C72,Lists!$G$5:$G$49,0),1),1))","v":""},null,{"$f":"'Month 10'!H72+'Month 10'!I72-'Month 10'!J72","v":0},"","",null,"0"]
[{"$f":"Planning!A57","v":"I049"},{"$f":"Planning!B57","v":0},{"$f":"Planning!C57","v":0},{"$f":"Planning!D57","v":0},{"$f":"Planning!E57","v":0},{"$f":"IF(Planning!G57<>0,Planning!G57,\"\")","v":""},{"$f":"Planning!H57","v":0},{"$f":"Planning!AM57","v":0},{"$f":"IF(OR(W73=\"1\",AND(W73<>\"1\",G73=Lists!$A$17)),Y73,0)","v":0},null,{"$f":"IF(AND(W73=\"2\",G73<>Lists!$A$17),AA73,Z73)","v":""},"",{"$f":"Planning!AN57","v":{"v":0,"d":"0.00"}},{"$f":"'Month 10'!M73+'Month 10'!N73-'Month 10'!O73","v":{"v":0,"d":"0.00"}},null,"","",{"$f":"SUMIFS($J$25:$J$224,$C$25:$C$224,$C73,$G$25:$G$224,Lists!$A$16)","v":0},0,null,"",null,{"$f":"IF(C73=0,\"\",LEFT(INDEX(Lists!$H$5:$H$49,MATCH(C73,Lists!$G$5:$G$49,0),1),1))","v":""},null,{"$f":"'Month 10'!H73+'Month 10'!I73-'Month 10'!J73","v":0},"","",null,"0"]
[{"$f":"Planning!A58","v":"I050"},{"$f":"Planning!B58","v":0},{"$f":"Planning!C58","v":0},{"$f":"Planning!D58","v":0},{"$f":"Planning!E58","v":0},{"$f":"IF(Planning!G58<>0,Planning!G58,\"\")","v":""},{"$f":"Planning!H58","v":0},{"$f":"Planning!AM58","v":0},{"$f":"IF(OR(W74=\"1\",AND(W74<>\"1\",G74=Lists!$A$17)),Y74,0)","v":0},null,{"$f":"IF(AND(W74=\"2\",G74<>Lists!$A$17),AA74,Z74)","v":""},"",{"$f":"Planning!AN58","v":{"v":0,"d":"0.00"}},{"$f":"'Month 10'!M74+'Month 10'!N74-'Month 10'!O74","v":{"v":0,"d":"0.00"}},null,"","",{"$f":"SUMIFS($J$25:$J$224,$C$25:$C$224,$C74,$G$25:$G$224,Lists!$A$16)","v":0},0,null,"",null,{"$f":"IF(C74=0,\"\",LEFT(INDEX(Lists!$H$5:$H$49,MATCH(C74,Lists!$G$5:$G$49,0),1),1))","v":""},null,{"$f":"'Month 10'!H74+'Month 10'!I74-'Month 10'!J74","v":0},"","",null,"0"]
[{"$f":"Planning!A59","v":"I051"},{"$f":"Planning!B59","v":0},{"$f":"Planning!C59","v":0},{"$f":"Planning!D59","v":0},{"$f":"Planning!E59","v":0},{"$f":"IF(Planning!G59<>0,Planning!G59,\"\")","v":""},{"$f":"Planning!H59","v":0},{"$f":"Planning!AM59","v":0},{"$f":"IF(OR(W75=\"1\",AND(W75<>\"1\",G75=Lists!$A$17)),Y75,0)","v":0},null,{"$f":"IF(AND(W75=\"2\",G75<>Lists!$A$17),AA75,Z75)","v":""},"",{"$f":"Planning!AN59","v":{"v":0,"d":"0.00"}},{"$f":"'Month 10'!M75+'Month 10'!N75-'Month 10'!O75","v":{"v":0,"d":"0.00"}},null,"","",{"$f":"SUMIFS($J$25:$J$224,$C$25:$C$224,$C75,$G$25:$G$224,Lists!$A$16)","v":0},0,null,"",null,{"$f":"IF(C75=0,\"\",LEFT(INDEX(Lists!$H$5:$H$49,MATCH(C75,Lists!$G$5:$G$49,0),1),1))","v":""},null,{"$f":"'Month 10'!H75+'Month 10'!I75-'Month 10'!J75","v":0},"","",null,"0"]
[{"$f":"Planning!A60","v":"I052"},{"$f":"Planning!B60","v":0},{"$f":"Planning!C60","v":0},{"$f":"Planning!D60","v":0},{"$f":"Planning!E60","v":0},{"$f":"IF(Planning!G60<>0,Planning!G60,\"\")","v":""},{"$f":"Planning!H60","v":0},{"$f":"Planning!AM60","v":0},{"$f":"IF(OR(W76=\"1\",AND(W76<>\"1\",G76=Lists!$A$17)),Y76,0)","v":0},null,{"$f":"IF(AND(W76=\"2\",G76<>Lists!$A$17),AA76,Z76)","v":""},"",{"$f":"Planning!AN60","v":{"v":0,"d":"0.00"}},{"$f":"'Month 10'!M76+'Month 10'!N76-'Month 10'!O76","v":{"v":0,"d":"0.00"}},null,"","",{"$f":"SUMIFS($J$25:$J$224,$C$25:$C$224,$C76,$G$25:$G$224,Lists!$A$16)","v":0},0,null,"",null,{"$f":"IF(C76=0,\"\",LEFT(INDEX(Lists!$H$5:$H$49,MATCH(C76,Lists!$G$5:$G$49,0),1),1))","v":""},null,{"$f":"'Month 10'!H76+'Month 10'!I76-'Month 10'!J76","v":0},"","",null,"0"]
[{"$f":"Planning!A61","v":"I053"},{"$f":"Planning!B61","v":0},{"$f":"Planning!C61","v":0},{"$f":"Planning!D61","v":0},{"$f":"Planning!E61","v":0},{"$f":"IF(Planning!G61<>0,Planning!G61,\"\")","v":""},{"$f":"Planning!H61","v":0},{"$f":"Planning!AM61","v":0},{"$f":"IF(OR(W77=\"1\",AND(W77<>\"1\",G77=Lists!$A$17)),Y77,0)","v":0},null,{"$f":"IF(AND(W77=\"2\",G77<>Lists!$A$17),AA77,Z77)","v":""},"",{"$f":"Planning!AN61","v":{"v":0,"d":"0.00"}},{"$f":"'Month 10'!M77+'Month 10'!N77-'Month 10'!O77","v":{"v":0,"d":"0.00"}},null,"","",{"$f":"SUMIFS($J$25:$J$224,$C$25:$C$224,$C77,$G$25:$G$224,Lists!$A$16)","v":0},0,null,"",null,{"$f":"IF(C77=0,\"\",LEFT(INDEX(Lists!$H$5:$H$49,MATCH(C77,Lists!$G$5:$G$49,0),1),1))","v":""},null,{"$f":"'Month 10'!H77+'Month 10'!I77-'Month 10'!J77","v":0},"","",null,"0"]
[{"$f":"Planning!A62","v":"I054"},{"$f":"Planning!B62","v":0},{"$f":"Planning!C62","v":0},{"$f":"Planning!D62","v":0},{"$f":"Planning!E62","v":0},{"$f":"IF(Planning!G62<>0,Planning!G62,\"\")","v":""},{"$f":"Planning!H62","v":0},{"$f":"Planning!AM62","v":0},{"$f":"IF(OR(W78=\"1\",AND(W78<>\"1\",G78=Lists!$A$17)),Y78,0)","v":0},null,{"$f":"IF(AND(W78=\"2\",G78<>Lists!$A$17),AA78,Z78)","v":""},"",{"$f":"Planning!AN62","v":{"v":0,"d":"0.00"}},{"$f":"'Month 10'!M78+'Month 10'!N78-'Month 10'!O78","v":{"v":0,"d":"0.00"}},null,"","",{"$f":"SUMIFS($J$25:$J$224,$C$25:$C$224,$C78,$G$25:$G$224,Lists!$A$16)","v":0},0,null,"",null,{"$f":"IF(C78=0,\"\",LEFT(INDEX(Lists!$H$5:$H$49,MATCH(C78,Lists!$G$5:$G$49,0),1),1))","v":""},null,{"$f":"'Month 10'!H78+'Month 10'!I78-'Month 10'!J78","v":0},"","",null,"0"]
[{"$f":"Planning!A63","v":"I055"},{"$f":"Planning!B63","v":0},{"$f":"Planning!C63","v":0},{"$f":"Planning!D63","v":0},{"$f":"Planning!E63","v":0},{"$f":"IF(Planning!G63<>0,Planning!G63,\"\")","v":""},{"$f":"Planning!H63","v":0},{"$f":"Planning!AM63","v":0},{"$f":"IF(OR(W79=\"1\",AND(W79<>\"1\",G79=Lists!$A$17)),Y79,0)","v":0},null,{"$f":"IF(AND(W79=\"2\",G79<>Lists!$A$17),AA79,Z79)","v":""},"",{"$f":"Planning!AN63","v":{"v":0,"d":"0.00"}},{"$f":"'Month 10'!M79+'Month 10'!N79-'Month 10'!O79","v":{"v":0,"d":"0.00"}},null,"","",{"$f":"SUMIFS($J$25:$J$224,$C$25:$C$224,$C79,$G$25:$G$224,Lists!$A$16)","v":0},0,null,"",null,{"$f":"IF(C79=0,\"\",LEFT(INDEX(Lists!$H$5:$H$49,MATCH(C79,Lists!$G$5:$G$49,0),1),1))","v":""},null,{"$f":"'Month 10'!H79+'Month 10'!I79-'Month 10'!J79","v":0},"","",null,"0"]
[{"$f":"Planning!A64","v":"I056"},{"$f":"Planning!B64","v":0},{"$f":"Planning!C64","v":0},{"$f":"Planning!D64","v":0},{"$f":"Planning!E64","v":0},{"$f":"IF(Planning!G64<>0,Planning!G64,\"\")","v":""},{"$f":"Planning!H64","v":0},{"$f":"Planning!AM64","v":0},{"$f":"IF(OR(W80=\"1\",AND(W80<>\"1\",G80=Lists!$A$17)),Y80,0)","v":0},null,{"$f":"IF(AND(W80=\"2\",G80<>Lists!$A$17),AA80,Z80)","v":""},"",{"$f":"Planning!AN64","v":{"v":0,"d":"0.00"}},{"$f":"'Month 10'!M80+'Month 10'!N80-'Month 10'!O80","v":{"v":0,"d":"0.00"}},null,"","",{"$f":"SUMIFS($J$25:$J$224,$C$25:$C$224,$C80,$G$25:$G$224,Lists!$A$16)","v":0},0,null,"",null,{"$f":"IF(C80=0,\"\",LEFT(INDEX(Lists!$H$5:$H$49,MATCH(C80,Lists!$G$5:$G$49,0),1),1))","v":""},null,{"$f":"'Month 10'!H80+'Month 10'!I80-'Month 10'!J80","v":0},"","",null,"0"]
[{"$f":"Planning!A65","v":"I057"},{"$f":"Planning!B65","v":0},{"$f":"Planning!C65","v":0},{"$f":"Planning!D65","v":0},{"$f":"Planning!E65","v":0},{"$f":"IF(Planning!G65<>0,Planning!G65,\"\")","v":""},{"$f":"Planning!H65","v":0},{"$f":"Planning!AM65","v":0},{"$f":"IF(OR(W81=\"1\",AND(W81<>\"1\",G81=Lists!$A$17)),Y81,0)","v":0},null,{"$f":"IF(AND(W81=\"2\",G81<>Lists!$A$17),AA81,Z81)","v":""},"",{"$f":"Planning!AN65","v":{"v":0,"d":"0.00"}},{"$f":"'Month 10'!M81+'Month 10'!N81-'Month 10'!O81","v":{"v":0,"d":"0.00"}},null,"","",{"$f":"SUMIFS($J$25:$J$224,$C$25:$C$224,$C81,$G$25:$G$224,Lists!$A$16)","v":0},0,null,"",null,{"$f":"IF(C81=0,\"\",LEFT(INDEX(Lists!$H$5:$H$49,MATCH(C81,Lists!$G$5:$G$49,0),1),1))","v":""},null,{"$f":"'Month 10'!H81+'Month 10'!I81-'Month 10'!J81","v":0},"","",null,"0"]
[{"$f":"Planning!A66","v":"I058"},{"$f":"Planning!B66","v":0},{"$f":"Planning!C66","v":0},{"$f":"Planning!D66","v":0},{"$f":"Planning!E66","v":0},{"$f":"IF(Planning!G66<>0,Planning!G66,\"\")","v":""},{"$f":"Planning!H66","v":0},{"$f":"Planning!AM66","v":0},{"$f":"IF(OR(W82=\"1\",AND(W82<>\"1\",G82=Lists!$A$17)),Y82,0)","v":0},null,{"$f":"IF(AND(W82=\"2\",G82<>Lists!$A$17),AA82,Z82)","v":""},"",{"$f":"Planning!AN66","v":{"v":0,"d":"0.00"}},{"$f":"'Month 10'!M82+'Month 10'!N82-'Month 10'!O82","v":{"v":0,"d":"0.00"}},null,"","",{"$f":"SUMIFS($J$25:$J$224,$C$25:$C$224,$C82,$G$25:$G$224,Lists!$A$16)","v":0},0,null,"",null,{"$f":"IF(C82=0,\"\",LEFT(INDEX(Lists!$H$5:$H$49,MATCH(C82,Lists!$G$5:$G$49,0),1),1))","v":""},null,{"$f":"'Month 10'!H82+'Month 10'!I82-'Month 10'!J82","v":0},"","",null,"0"]
[{"$f":"Planning!A67","v":"I059"},{"$f":"Planning!B67","v":0},{"$f":"Planning!C67","v":0},{"$f":"Planning!D67","v":0},{"$f":"Planning!E67","v":0},{"$f":"IF(Planning!G67<>0,Planning!G67,\"\")","v":""},{"$f":"Planning!H67","v":0},{"$f":"Planning!AM67","v":0},{"$f":"IF(OR(W83=\"1\",AND(W83<>\"1\",G83=Lists!$A$17)),Y83,0)","v":0},null,{"$f":"IF(AND(W83=\"2\",G83<>Lists!$A$17),AA83,Z83)","v":""},"",{"$f":"Planning!AN67","v":{"v":0,"d":"0.00"}},{"$f":"'Month 10'!M83+'Month 10'!N83-'Month 10'!O83","v":{"v":0,"d":"0.00"}},null,"","",{"$f":"SUMIFS($J$25:$J$224,$C$25:$C$224,$C83,$G$25:$G$224,Lists!$A$16)","v":0},0,null,"",null,{"$f":"IF(C83=0,\"\",LEFT(INDEX(Lists!$H$5:$H$49,MATCH(C83,Lists!$G$5:$G$49,0),1),1))","v":""},null,{"$f":"'Month 10'!H83+'Month 10'!I83-'Month 10'!J83","v":0},"","",null,"0"]
[{"$f":"Planning!A68","v":"I060"},{"$f":"Planning!B68","v":0},{"$f":"Planning!C68","v":0},{"$f":"Planning!D68","v":0},{"$f":"Planning!E68","v":0},{"$f":"IF(Planning!G68<>0,Planning!G68,\"\")","v":""},{"$f":"Planning!H68","v":0},{"$f":"Planning!AM68","v":0},{"$f":"IF(OR(W84=\"1\",AND(W84<>\"1\",G84=Lists!$A$17)),Y84,0)","v":0},null,{"$f":"IF(AND(W84=\"2\",G84<>Lists!$A$17),AA84,Z84)","v":""},"",{"$f":"Planning!AN68","v":{"v":0,"d":"0.00"}},{"$f":"'Month 10'!M84+'Month 10'!N84-'Month 10'!O84","v":{"v":0,"d":"0.00"}},null,"","",{"$f":"SUMIFS($J$25:$J$224,$C$25:$C$224,$C84,$G$25:$G$224,Lists!$A$16)","v":0},0,null,"",null,{"$f":"IF(C84=0,\"\",LEFT(INDEX(Lists!$H$5:$H$49,MATCH(C84,Lists!$G$5:$G$49,0),1),1))","v":""},null,{"$f":"'Month 10'!H84+'Month 10'!I84-'Month 10'!J84","v":0},"","",null,"0"]
[{"$f":"Planning!A69","v":"I061"},{"$f":"Planning!B69","v":0},{"$f":"Planning!C69","v":0},{"$f":"Planning!D69","v":0},{"$f":"Planning!E69","v":0},{"$f":"IF(Planning!G69<>0,Planning!G69,\"\")","v":""},{"$f":"Planning!H69","v":0},{"$f":"Planning!AM69","v":0},{"$f":"IF(OR(W85=\"1\",AND(W85<>\"1\",G85=Lists!$A$17)),Y85,0)","v":0},null,{"$f":"IF(AND(W85=\"2\",G85<>Lists!$A$17),AA85,Z85)","v":""},"",{"$f":"Planning!AN69","v":{"v":0,"d":"0.00"}},{"$f":"'Month 10'!M85+'Month 10'!N85-'Month 10'!O85","v":{"v":0,"d":"0.00"}},null,"","",{"$f":"SUMIFS($J$25:$J$224,$C$25:$C$224,$C85,$G$25:$G$224,Lists!$A$16)","v":0},0,null,"",null,{"$f":"IF(C85=0,\"\",LEFT(INDEX(Lists!$H$5:$H$49,MATCH(C85,Lists!$G$5:$G$49,0),1),1))","v":""},null,{"$f":"'Month 10'!H85+'Month 10'!I85-'Month 10'!J85","v":0},"","",null,"0"]
[{"$f":"Planning!A70","v":"I062"},{"$f":"Planning!B70","v":0},{"$f":"Planning!C70","v":0},{"$f":"Planning!D70","v":0},{"$f":"Planning!E70","v":0},{"$f":"IF(Planning!G70<>0,Planning!G70,\"\")","v":""},{"$f":"Planning!H70","v":0},{"$f":"Planning!AM70","v":0},{"$f":"IF(OR(W86=\"1\",AND(W86<>\"1\",G86=Lists!$A$17)),Y86,0)","v":0},null,{"$f":"IF(AND(W86=\"2\",G86<>Lists!$A$17),AA86,Z86)","v":""},"",{"$f":"Planning!AN70","v":{"v":0,"d":"0.00"}},{"$f":"'Month 10'!M86+'Month 10'!N86-'Month 10'!O86","v":{"v":0,"d":"0.00"}},null,"","",{"$f":"SUMIFS($J$25:$J$224,$C$25:$C$224,$C86,$G$25:$G$224,Lists!$A$16)","v":0},0,null,"",null,{"$f":"IF(C86=0,\"\",LEFT(INDEX(Lists!$H$5:$H$49,MATCH(C86,Lists!$G$5:$G$49,0),1),1))","v":""},null,{"$f":"'Month 10'!H86+'Month 10'!I86-'Month 10'!J86","v":0},"","",null,"0"]
[{"$f":"Planning!A71","v":"I063"},{"$f":"Planning!B71","v":0},{"$f":"Planning!C71","v":0},{"$f":"Planning!D71","v":0},{"$f":"Planning!E71","v":0},{"$f":"IF(Planning!G71<>0,Planning!G71,\"\")","v":""},{"$f":"Planning!H71","v":0},{"$f":"Planning!AM71","v":0},{"$f":"IF(OR(W87=\"1\",AND(W87<>\"1\",G87=Lists!$A$17)),Y87,0)","v":0},null,{"$f":"IF(AND(W87=\"2\",G87<>Lists!$A$17),AA87,Z87)","v":""},"",{"$f":"Planning!AN71","v":{"v":0,"d":"0.00"}},{"$f":"'Month 10'!M87+'Month 10'!N87-'Month 10'!O87","v":{"v":0,"d":"0.00"}},null,"","",{"$f":"SUMIFS($J$25:$J$224,$C$25:$C$224,$C87,$G$25:$G$224,Lists!$A$16)","v":0},0,null,"",null,{"$f":"IF(C87=0,\"\",LEFT(INDEX(Lists!$H$5:$H$49,MATCH(C87,Lists!$G$5:$G$49,0),1),1))","v":""},null,{"$f":"'Month 10'!H87+'Month 10'!I87-'Month 10'!J87","v":0},"","",null,"0"]
[{"$f":"Planning!A72","v":"I064"},{"$f":"Planning!B72","v":0},{"$f":"Planning!C72","v":0},{"$f":"Planning!D72","v":0},{"$f":"Planning!E72","v":0},{"$f":"IF(Planning!G72<>0,Planning!G72,\"\")","v":""},{"$f":"Planning!H72","v":0},{"$f":"Planning!AM72","v":0},{"$f":"IF(OR(W88=\"1\",AND(W88<>\"1\",G88=Lists!$A$17)),Y88,0)","v":0},null,{"$f":"IF(AND(W88=\"2\",G88<>Lists!$A$17),AA88,Z88)","v":""},"",{"$f":"Planning!AN72","v":{"v":0,"d":"0.00"}},{"$f":"'Month 10'!M88+'Month 10'!N88-'Month 10'!O88","v":{"v":0,"d":"0.00"}},null,"","",{"$f":"SUMIFS($J$25:$J$224,$C$25:$C$224,$C88,$G$25:$G$224,Lists!$A$16)","v":0},0,null,"",null,{"$f":"IF(C88=0,\"\",LEFT(INDEX(Lists!$H$5:$H$49,MATCH(C88,Lists!$G$5:$G$49,0),1),1))","v":""},null,{"$f":"'Month 10'!H88+'Month 10'!I88-'Month 10'!J88","v":0},"","",null,"0"]
[{"$f":"Planning!A73","v":"I065"},{"$f":"Planning!B73","v":0},{"$f":"Planning!C73","v":0},{"$f":"Planning!D73","v":0},{"$f":"Planning!E73","v":0},{"$f":"IF(Planning!G73<>0,Planning!G73,\"\")","v":""},{"$f":"Planning!H73","v":0},{"$f":"Planning!AM73","v":0},{"$f":"IF(OR(W89=\"1\",AND(W89<>\"1\",G89=Lists!$A$17)),Y89,0)","v":0},null,{"$f":"IF(AND(W89=\"2\",G89<>Lists!$A$17),AA89,Z89)","v":""},{"$f":"IF($U89=ExcluirDelPLogro,\"\",IF(AND(H89=0,I89=0,J89=0),\"\",K89))","v":""},{"$f":"Planning!AN73","v":{"v":0,"d":"0.00"}},{"$f":"'Month 10'!M89+'Month 10'!N89-'Month 10'!O89","v":{"v":0,"d":"0.00"}},null,"",{"$f":"IF($U89=ExcluirDelPLogro,\"\",IF(AND(M89=0,N89=0,O89=0),\"\",P89))","v":""},{"$f":"SUMIFS($J$25:$J$224,$C$25:$C$224,$C89,$G$25:$G$224,Lists!$A$16)","v":0},0,null,"",null,{"$f":"IF(C89=0,\"\",LEFT(INDEX(Lists!$H$5:$H$49,MATCH(C89,Lists!$G$5:$G$49,0),1),1))","v":""},null,{"$f":"'Month 10'!H89+'Month 10'!I89-'Month 10'!J89","v":0},"",{"$f":"IF(AND(H89=0,I89=0,J89=0),\"\",IF(J89>0,H89/J89,0))","v":""},null,"0"]
[{"$f":"Planning!A74","v":"I066"},{"$f":"Planning!B74","v":0},{"$f":"Planning!C74","v":0},{"$f":"Planning!D74","v":0},{"$f":"Planning!E74","v":0},{"$f":"IF(Planning!G74<>0,Planning!G74,\"\")","v":""},{"$f":"Planning!H74","v":0},{"$f":"Planning!AM74","v":0},{"$f":"IF(OR(W90=\"1\",AND(W90<>\"1\",G90=Lists!$A$17)),Y90,0)","v":0},null,{"$f":"IF(AND(W90=\"2\",G90<>Lists!$A$17),AA90,Z90)","v":""},"",{"$f":"Planning!AN74","v":{"v":0,"d":"0.00"}},{"$f":"'Month 10'!M90+'Month 10'!N90-'Month 10'!O90","v":{"v":0,"d":"0.00"}},null,{"$f":"IF(AND(M90=0,N90=0,O90=0),\"\",IF((M90+N90)>0,O90/(M90+N90),O90))","v":""},"",{"$f":"SUMIFS($J$25:$J$224,$C$25:$C$224,$C90,$G$25:$G$224,Lists!$A$16)","v":0},{"$f":"SUMIFS($O$25:$O$224,$C$25:$C$224,$C90,$G$25:$G$224,\"<>0\")","v":0},null,{"$f":"IF(B90=0,\"\",IF(LEFT(B90,1)=\"1\",\"1\",\"2\"))","v":""},null,{"$f":"IF(C90=0,\"\",LEFT(INDEX(Lists!$H$5:$H$49,MATCH(C90,Lists!$G$5:$G$49,0),1),1))","v":""},null,{"$f":"'Month 10'!H90+'Month 10'!I90-'Month 10'!J90","v":0},{"$f":"IF(AND(H90=0,I90=0,J90=0),\"\",IF((H90+I90)>0,J90/(H90+I90),J90))","v":""},"",null,{"$f":"U90&C90","v":"0"}]
[{"$f":"Planning!A75","v":"I067"},{"$f":"Planning!B75","v":0},{"$f":"Planning!C75","v":0},{"$f":"Planning!D75","v":0},{"$f":"Planning!E75","v":0},{"$f":"IF(Planning!G75<>0,Planning!G75,\"\")","v":""},{"$f":"Planning!H75","v":0},{"$f":"Planning!AM75","v":0},{"$f":"IF(OR(W91=\"1\",AND(W91<>\"1\",G91=Lists!$A$17)),Y91,0)","v":0},null,{"$f":"IF(AND(W91=\"2\",G91<>Lists!$A$17),AA91,Z91)","v":""},"",{"$f":"Planning!AN75","v":{"v":0,"d":"0.00"}},{"$f":"'Month 10'!M91+'Month 10'!N91-'Month 10'!O91","v":{"v":0,"d":"0.00"}},null,"","",{"$f":"SUMIFS($J$25:$J$224,$C$25:$C$224,$C91,$G$25:$G$224,Lists!$A$16)","v":0},0,null,"",null,{"$f":"IF(C91=0,\"\",LEFT(INDEX(Lists!$H$5:$H$49,MATCH(C91,Lists!$G$5:$G$49,0),1),1))","v":""},null,{"$f":"'Month 10'!H91+'Month 10'!I91-'Month 10'!J91","v":0},"","",null,"0"]
[{"$f":"Planning!A76","v":"I068"},{"$f":"Planning!B76","v":0},{"$f":"Planning!C76","v":0},{"$f":"Planning!D76","v":0},{"$f":"Planning!E76","v":0},{"$f":"IF(Planning!G76<>0,Planning!G76,\"\")","v":""},{"$f":"Planning!H76","v":0},{"$f":"Planning!AM76","v":0},{"$f":"IF(OR(W92=\"1\",AND(W92<>\"1\",G92=Lists!$A$17)),Y92,0)","v":0},null,{"$f":"IF(AND(W92=\"2\",G92<>Lists!$A$17),AA92,Z92)","v":""},"",{"$f":"Planning!AN76","v":{"v":0,"d":"0.00"}},{"$f":"'Month 10'!M92+'Month 10'!N92-'Month 10'!O92","v":{"v":0,"d":"0.00"}},null,"","",{"$f":"SUMIFS($J$25:$J$224,$C$25:$C$224,$C92,$G$25:$G$224,Lists!$A$16)","v":0},0,null,"",null,{"$f":"IF(C92=0,\"\",LEFT(INDEX(Lists!$H$5:$H$49,MATCH(C92,Lists!$G$5:$G$49,0),1),1))","v":""},null,{"$f":"'Month 10'!H92+'Month 10'!I92-'Month 10'!J92","v":0},"","",null,"0"]
[{"$f":"Planning!A77","v":"I069"},{"$f":"Planning!B77","v":0},{"$f":"Planning!C77","v":0},{"$f":"Planning!D77","v":0},{"$f":"Planning!E77","v":0},{"$f":"IF(Planning!G77<>0,Planning!G77,\"\")","v":""},{"$f":"Planning!H77","v":0},{"$f":"Planning!AM77","v":0},{"$f":"IF(OR(W93=\"1\",AND(W93<>\"1\",G93=Lists!$A$17)),Y93,0)","v":0},null,{"$f":"IF(AND(W93=\"2\",G93<>Lists!$A$17),AA93,Z93)","v":""},"",{"$f":"Planning!AN77","v":{"v":0,"d":"0.00"}},{"$f":"'Month 10'!M93+'Month 10'!N93-'Month 10'!O93","v":{"v":0,"d":"0.00"}},null,"","",{"$f":"SUMIFS($J$25:$J$224,$C$25:$C$224,$C93,$G$25:$G$224,Lists!$A$16)","v":0},0,null,"",null,{"$f":"IF(C93=0,\"\",LEFT(INDEX(Lists!$H$5:$H$49,MATCH(C93,Lists!$G$5:$G$49,0),1),1))","v":""},null,{"$f":"'Month 10'!H93+'Month 10'!I93-'Month 10'!J93","v":0},"","",null,"0"]
[{"$f":"Planning!A78","v":"I070"},{"$f":"Planning!B78","v":0},{"$f":"Planning!C78","v":0},{"$f":"Planning!D78","v":0},{"$f":"Planning!E78","v":0},{"$f":"IF(Planning!G78<>0,Planning!G78,\"\")","v":""},{"$f":"Planning!H78","v":0},{"$f":"Planning!AM78","v":0},{"$f":"IF(OR(W94=\"1\",AND(W94<>\"1\",G94=Lists!$A$17)),Y94,0)","v":0},null,{"$f":"IF(AND(W94=\"2\",G94<>Lists!$A$17),AA94,Z94)","v":""},"",{"$f":"Planning!AN78","v":{"v":0,"d":"0.00"}},{"$f":"'Month 10'!M94+'Month 10'!N94-'Month 10'!O94","v":{"v":0,"d":"0.00"}},null,"","",{"$f":"SUMIFS($J$25:$J$224,$C$25:$C$224,$C94,$G$25:$G$224,Lists!$A$16)","v":0},0,null,"",null,{"$f":"IF(C94=0,\"\",LEFT(INDEX(Lists!$H$5:$H$49,MATCH(C94,Lists!$G$5:$G$49,0),1),1))","v":""},null,{"$f":"'Month 10'!H94+'Month 10'!I94-'Month 10'!J94","v":0},"","",null,"0"]
[{"$f":"Planning!A79","v":"I071"},{"$f":"Planning!B79","v":0},{"$f":"Planning!C79","v":0},{"$f":"Planning!D79","v":0},{"$f":"Planning!E79","v":0},{"$f":"IF(Planning!G79<>0,Planning!G79,\"\")","v":""},{"$f":"Planning!H79","v":0},{"$f":"Planning!AM79","v":0},{"$f":"IF(OR(W95=\"1\",AND(W95<>\"1\",G95=Lists!$A$17)),Y95,0)","v":0},null,{"$f":"IF(AND(W95=\"2\",G95<>Lists!$A$17),AA95,Z95)","v":""},"",{"$f":"Planning!AN79","v":{"v":0,"d":"0.00"}},{"$f":"'Month 10'!M95+'Month 10'!N95-'Month 10'!O95","v":{"v":0,"d":"0.00"}},null,"","",{"$f":"SUMIFS($J$25:$J$224,$C$25:$C$224,$C95,$G$25:$G$224,Lists!$A$16)","v":0},0,null,"",null,{"$f":"IF(C95=0,\"\",LEFT(INDEX(Lists!$H$5:$H$49,MATCH(C95,Lists!$G$5:$G$49,0),1),1))","v":""},null,{"$f":"'Month 10'!H95+'Month 10'!I95-'Month 10'!J95","v":0},"","",null,"0"]
[{"$f":"Planning!A80","v":"I072"},{"$f":"Planning!B80","v":0},{"$f":"Planning!C80","v":0},{"$f":"Planning!D80","v":0},{"$f":"Planning!E80","v":0},{"$f":"IF(Planning!G80<>0,Planning!G80,\"\")","v":""},{"$f":"Planning!H80","v":0},{"$f":"Planning!AM80","v":0},{"$f":"IF(OR(W96=\"1\",AND(W96<>\"1\",G96=Lists!$A$17)),Y96,0)","v":0},null,{"$f":"IF(AND(W96=\"2\",G96<>Lists!$A$17),AA96,Z96)","v":""},"",{"$f":"Planning!AN80","v":{"v":0,"d":"0.00"}},{"$f":"'Month 10'!M96+'Month 10'!N96-'Month 10'!O96","v":{"v":0,"d":"0.00"}},null,"","",{"$f":"SUMIFS($J$25:$J$224,$C$25:$C$224,$C96,$G$25:$G$224,Lists!$A$16)","v":0},0,null,"",null,{"$f":"IF(C96=0,\"\",LEFT(INDEX(Lists!$H$5:$H$49,MATCH(C96,Lists!$G$5:$G$49,0),1),1))","v":""},null,{"$f":"'Month 10'!H96+'Month 10'!I96-'Month 10'!J96","v":0},"","",null,"0"]
[{"$f":"Planning!A81","v":"I073"},{"$f":"Planning!B81","v":0},{"$f":"Planning!C81","v":0},{"$f":"Planning!D81","v":0},{"$f":"Planning!E81","v":0},{"$f":"IF(Planning!G81<>0,Planning!G81,\"\")","v":""},{"$f":"Planning!H81","v":0},{"$f":"Planning!AM81","v":0},{"$f":"IF(OR(W97=\"1\",AND(W97<>\"1\",G97=Lists!$A$17)),Y97,0)","v":0},null,{"$f":"IF(AND(W97=\"2\",G97<>Lists!$A$17),AA97,Z97)","v":""},"",{"$f":"Planning!AN81","v":{"v":0,"d":"0.00"}},{"$f":"'Month 10'!M97+'Month 10'!N97-'Month 10'!O97","v":{"v":0,"d":"0.00"}},null,"","",{"$f":"SUMIFS($J$25:$J$224,$C$25:$C$224,$C97,$G$25:$G$224,Lists!$A$16)","v":0},0,null,"",null,{"$f":"IF(C97=0,\"\",LEFT(INDEX(Lists!$H$5:$H$49,MATCH(C97,Lists!$G$5:$G$49,0),1),1))","v":""},null,{"$f":"'Month 10'!H97+'Month 10'!I97-'Month 10'!J97","v":0},"","",null,"0"]
[{"$f":"Planning!A82","v":"I074"},{"$f":"Planning!B82","v":0},{"$f":"Planning!C82","v":0},{"$f":"Planning!D82","v":0},{"$f":"Planning!E82","v":0},{"$f":"IF(Planning!G82<>0,Planning!G82,\"\")","v":""},{"$f":"Planning!H82","v":0},{"$f":"Planning!AM82","v":0},{"$f":"IF(OR(W98=\"1\",AND(W98<>\"1\",G98=Lists!$A$17)),Y98,0)","v":0},null,{"$f":"IF(AND(W98=\"2\",G98<>Lists!$A$17),AA98,Z98)","v":""},"",{"$f":"Planning!AN82","v":{"v":0,"d":"0.00"}},{"$f":"'Month 10'!M98+'Month 10'!N98-'Month 10'!O98","v":{"v":0,"d":"0.00"}},null,"","",{"$f":"SUMIFS($J$25:$J$224,$C$25:$C$224,$C98,$G$25:$G$224,Lists!$A$16)","v":0},0,null,"",null,{"$f":"IF(C98=0,\"\",LEFT(INDEX(Lists!$H$5:$H$49,MATCH(C98,Lists!$G$5:$G$49,0),1),1))","v":""},null,{"$f":"'Month 10'!H98+'Month 10'!I98-'Month 10'!J98","v":0},"","",null,"0"]
[{"$f":"Planning!A83","v":"I075"},{"$f":"Planning!B83","v":0},{"$f":"Planning!C83","v":0},{"$f":"Planning!D83","v":0},{"$f":"Planning!E83","v":0},{"$f":"IF(Planning!G83<>0,Planning!G83,\"\")","v":""},{"$f":"Planning!H83","v":0},{"$f":"Planning!AM83","v":0},{"$f":"IF(OR(W99=\"1\",AND(W99<>\"1\",G99=Lists!$A$17)),Y99,0)","v":0},null,{"$f":"IF(AND(W99=\"2\",G99<>Lists!$A$17),AA99,Z99)","v":""},"",{"$f":"Planning!AN83","v":{"v":0,"d":"0.00"}},{"$f":"'Month 10'!M99+'Month 10'!N99-'Month 10'!O99","v":{"v":0,"d":"0.00"}},null,"","",{"$f":"SUMIFS($J$25:$J$224,$C$25:$C$224,$C99,$G$25:$G$224,Lists!$A$16)","v":0},0,null,"",null,{"$f":"IF(C99=0,\"\",LEFT(INDEX(Lists!$H$5:$H$49,MATCH(C99,Lists!$G$5:$G$49,0),1),1))","v":""},null,{"$f":"'Month 10'!H99+'Month 10'!I99-'Month 10'!J99","v":0},"","",null,"0"]
[{"$f":"Planning!A84","v":"I076"},{"$f":"Planning!B84","v":0},{"$f":"Planning!C84","v":0},{"$f":"Planning!D84","v":0},{"$f":"Planning!E84","v":0},{"$f":"IF(Planning!G84<>0,Planning!G84,\"\")","v":""},{"$f":"Planning!H84","v":0},{"$f":"Planning!AM84","v":0},{"$f":"IF(OR(W100=\"1\",AND(W100<>\"1\",G100=Lists!$A$17)),Y100,0)","v":0},null,{"$f":"IF(AND(W100=\"2\",G100<>Lists!$A$17),AA100,Z100)","v":""},"",{"$f":"Planning!AN84","v":{"v":0,"d":"0.00"}},{"$f":"'Month 10'!M100+'Month 10'!N100-'Month 10'!O100","v":{"v":0,"d":"0.00"}},null,"","",{"$f":"SUMIFS($J$25:$J$224,$C$25:$C$224,$C100,$G$25:$G$224,Lists!$A$16)","v":0},0,null,"",null,{"$f":"IF(C100=0,\"\",LEFT(INDEX(Lists!$H$5:$H$49,MATCH(C100,Lists!$G$5:$G$49,0),1),1))","v":""},null,{"$f":"'Month 10'!H100+'Month 10'!I100-'Month 10'!J100","v":0},"","",null,"0"]
[{"$f":"Planning!A85","v":"I077"},{"$f":"Planning!B85","v":0},{"$f":"Planning!C85","v":0},{"$f":"Planning!D85","v":0},{"$f":"Planning!E85","v":0},{"$f":"IF(Planning!G85<>0,Planning!G85,\"\")","v":""},{"$f":"Planning!H85","v":0},{"$f":"Planning!AM85","v":0},{"$f":"IF(OR(W101=\"1\",AND(W101<>\"1\",G101=Lists!$A$17)),Y101,0)","v":0},null,{"$f":"IF(AND(W101=\"2\",G101<>Lists!$A$17),AA101,Z101)","v":""},"",{"$f":"Planning!AN85","v":{"v":0,"d":"0.00"}},{"$f":"'Month 10'!M101+'Month 10'!N101-'Month 10'!O101","v":{"v":0,"d":"0.00"}},null,"","",{"$f":"SUMIFS($J$25:$J$224,$C$25:$C$224,$C101,$G$25:$G$224,Lists!$A$16)","v":0},0,null,"",null,{"$f":"IF(C101=0,\"\",LEFT(INDEX(Lists!$H$5:$H$49,MATCH(C101,Lists!$G$5:$G$49,0),1),1))","v":""},null,{"$f":"'Month 10'!H101+'Month 10'!I101-'Month 10'!J101","v":0},"","",null,"0"]
[{"$f":"Planning!A86","v":"I078"},{"$f":"Planning!B86","v":0},{"$f":"Planning!C86","v":0},{"$f":"Planning!D86","v":0},{"$f":"Planning!E86","v":0},{"$f":"IF(Planning!G86<>0,Planning!G86,\"\")","v":""},{"$f":"Planning!H86","v":0},{"$f":"Planning!AM86","v":0},{"$f":"IF(OR(W102=\"1\",AND(W102<>\"1\",G102=Lists!$A$17)),Y102,0)","v":0},null,{"$f":"IF(AND(W102=\"2\",G102<>Lists!$A$17),AA102,Z102)","v":""},"",{"$f":"Planning!AN86","v":{"v":0,"d":"0.00"}},{"$f":"'Month 10'!M102+'Month 10'!N102-'Month 10'!O102","v":{"v":0,"d":"0.00"}},null,"","",{"$f":"SUMIFS($J$25:$J$224,$C$25:$C$224,$C102,$G$25:$G$224,Lists!$A$16)","v":0},0,null,"",null,{"$f":"IF(C102=0,\"\",LEFT(INDEX(Lists!$H$5:$H$49,MATCH(C102,Lists!$G$5:$G$49,0),1),1))","v":""},null,{"$f":"'Month 10'!H102+'Month 10'!I102-'Month 10'!J102","v":0},"","",null,"0"]
[{"$f":"Planning!A87","v":"I079"},{"$f":"Planning!B87","v":0},{"$f":"Planning!C87","v":0},{"$f":"Planning!D87","v":0},{"$f":"Planning!E87","v":0},{"$f":"IF(Planning!G87<>0,Planning!G87,\"\")","v":""},{"$f":"Planning!H87","v":0},{"$f":"Planning!AM87","v":0},{"$f":"IF(OR(W103=\"1\",AND(W103<>\"1\",G103=Lists!$A$17)),Y103,0)","v":0},null,{"$f":"IF(AND(W103=\"2\",G103<>Lists!$A$17),AA103,Z103)","v":""},"",{"$f":"Planning!AN87","v":{"v":0,"d":"0.00"}},{"$f":"'Month 10'!M103+'Month 10'!N103-'Month 10'!O103","v":{"v":0,"d":"0.00"}},null,"","",{"$f":"SUMIFS($J$25:$J$224,$C$25:$C$224,$C103,$G$25:$G$224,Lists!$A$16)","v":0},0,null,"",null,{"$f":"IF(C103=0,\"\",LEFT(INDEX(Lists!$H$5:$H$49,MATCH(C103,Lists!$G$5:$G$49,0),1),1))","v":""},null,{"$f":"'Month 10'!H103+'Month 10'!I103-'Month 10'!J103","v":0},"","",null,"0"]
[{"$f":"Planning!A88","v":"I080"},{"$f":"Planning!B88","v":0},{"$f":"Planning!C88","v":0},{"$f":"Planning!D88","v":0},{"$f":"Planning!E88","v":0},{"$f":"IF(Planning!G88<>0,Planning!G88,\"\")","v":""},{"$f":"Planning!H88","v":0},{"$f":"Planning!AM88","v":0},{"$f":"IF(OR(W104=\"1\",AND(W104<>\"1\",G104=Lists!$A$17)),Y104,0)","v":0},null,{"$f":"IF(AND(W104=\"2\",G104<>Lists!$A$17),AA104,Z104)","v":""},"",{"$f":"Planning!AN88","v":{"v":0,"d":"0.00"}},{"$f":"'Month 10'!M104+'Month 10'!N104-'Month 10'!O104","v":{"v":0,"d":"0.00"}},null,"","",{"$f":"SUMIFS($J$25:$J$224,$C$25:$C$224,$C104,$G$25:$G$224,Lists!$A$16)","v":0},0,null,"",null,{"$f":"IF(C104=0,\"\",LEFT(INDEX(Lists!$H$5:$H$49,MATCH(C104,Lists!$G$5:$G$49,0),1),1))","v":""},null,{"$f":"'Month 10'!H104+'Month 10'!I104-'Month 10'!J104","v":0},"","",null,"0"]
[{"$f":"Planning!A89","v":"I081"},{"$f":"Planning!B89","v":0},{"$f":"Planning!C89","v":0},{"$f":"Planning!D89","v":0},{"$f":"Planning!E89","v":0},{"$f":"IF(Planning!G89<>0,Planning!G89,\"\")","v":""},{"$f":"Planning!H89","v":0},{"$f":"Planning!AM89","v":0},{"$f":"IF(OR(W105=\"1\",AND(W105<>\"1\",G105=Lists!$A$17)),Y105,0)","v":0},null,{"$f":"IF(AND(W105=\"2\",G105<>Lists!$A$17),AA105,Z105)","v":""},"",{"$f":"Planning!AN89","v":{"v":0,"d":"0.00"}},{"$f":"'Month 10'!M105+'Month 10'!N105-'Month 10'!O105","v":{"v":0,"d":"0.00"}},null,"","",{"$f":"SUMIFS($J$25:$J$224,$C$25:$C$224,$C105,$G$25:$G$224,Lists!$A$16)","v":0},0,null,"",null,{"$f":"IF(C105=0,\"\",LEFT(INDEX(Lists!$H$5:$H$49,MATCH(C105,Lists!$G$5:$G$49,0),1),1))","v":""},null,{"$f":"'Month 10'!H105+'Month 10'!I105-'Month 10'!J105","v":0},"","",null,"0"]
[{"$f":"Planning!A90","v":"I082"},{"$f":"Planning!B90","v":0},{"$f":"Planning!C90","v":0},{"$f":"Planning!D90","v":0},{"$f":"Planning!E90","v":0},{"$f":"IF(Planning!G90<>0,Planning!G90,\"\")","v":""},{"$f":"Planning!H90","v":0},{"$f":"Planning!AM90","v":0},{"$f":"IF(OR(W106=\"1\",AND(W106<>\"1\",G106=Lists!$A$17)),Y106,0)","v":0},null,{"$f":"IF(AND(W106=\"2\",G106<>Lists!$A$17),AA106,Z106)","v":""},"",{"$f":"Planning!AN90","v":{"v":0,"d":"0.00"}},{"$f":"'Month 10'!M106+'Month 10'!N106-'Month 10'!O106","v":{"v":0,"d":"0.00"}},null,"","",{"$f":"SUMIFS($J$25:$J$224,$C$25:$C$224,$C106,$G$25:$G$224,Lists!$A$16)","v":0},0,null,"",null,{"$f":"IF(C106=0,\"\",LEFT(INDEX(Lists!$H$5:$H$49,MATCH(C106,Lists!$G$5:$G$49,0),1),1))","v":""},null,{"$f":"'Month 10'!H106+'Month 10'!I106-'Month 10'!J106","v":0},"","",null,"0"]
[{"$f":"Planning!A91","v":"I083"},{"$f":"Planning!B91","v":0},{"$f":"Planning!C91","v":0},{"$f":"Planning!D91","v":0},{"$f":"Planning!E91","v":0},{"$f":"IF(Planning!G91<>0,Planning!G91,\"\")","v":""},{"$f":"Planning!H91","v":0},{"$f":"Planning!AM91","v":0},{"$f":"IF(OR(W107=\"1\",AND(W107<>\"1\",G107=Lists!$A$17)),Y107,0)","v":0},null,{"$f":"IF(AND(W107=\"2\",G107<>Lists!$A$17),AA107,Z107)","v":""},"",{"$f":"Planning!AN91","v":{"v":0,"d":"0.00"}},{"$f":"'Month 10'!M107+'Month 10'!N107-'Month 10'!O107","v":{"v":0,"d":"0.00"}},null,"","",{"$f":"SUMIFS($J$25:$J$224,$C$25:$C$224,$C107,$G$25:$G$224,Lists!$A$16)","v":0},0,null,"",null,{"$f":"IF(C107=0,\"\",LEFT(INDEX(Lists!$H$5:$H$49,MATCH(C107,Lists!$G$5:$G$49,0),1),1))","v":""},null,{"$f":"'Month 10'!H107+'Month 10'!I107-'Month 10'!J107","v":0},"","",null,"0"]
[{"$f":"Planning!A92","v":"I084"},{"$f":"Planning!B92","v":0},{"$f":"Planning!C92","v":0},{"$f":"Planning!D92","v":0},{"$f":"Planning!E92","v":0},{"$f":"IF(Planning!G92<>0,Planning!G92,\"\")","v":""},{"$f":"Planning!H92","v":0},{"$f":"Planning!AM92","v":0},{"$f":"IF(OR(W108=\"1\",AND(W108<>\"1\",G108=Lists!$A$17)),Y108,0)","v":0},null,{"$f":"IF(AND(W108=\"2\",G108<>Lists!$A$17),AA108,Z108)","v":""},"",{"$f":"Planning!AN92","v":{"v":0,"d":"0.00"}},{"$f":"'Month 10'!M108+'Month 10'!N108-'Month 10'!O108","v":{"v":0,"d":"0.00"}},null,"","",{"$f":"SUMIFS($J$25:$J$224,$C$25:$C$224,$C108,$G$25:$G$224,Lists!$A$16)","v":0},0,null,"",null,{"$f":"IF(C108=0,\"\",LEFT(INDEX(Lists!$H$5:$H$49,MATCH(C108,Lists!$G$5:$G$49,0),1),1))","v":""},null,{"$f":"'Month 10'!H108+'Month 10'!I108-'Month 10'!J108","v":0},"","",null,"0"]
[{"$f":"Planning!A93","v":"I085"},{"$f":"Planning!B93","v":0},{"$f":"Planning!C93","v":0},{"$f":"Planning!D93","v":0},{"$f":"Planning!E93","v":0},{"$f":"IF(Planning!G93<>0,Planning!G93,\"\")","v":""},{"$f":"Planning!H93","v":0},{"$f":"Planning!AM93","v":0},{"$f":"IF(OR(W109=\"1\",AND(W109<>\"1\",G109=Lists!$A$17)),Y109,0)","v":0},null,{"$f":"IF(AND(W109=\"2\",G109<>Lists!$A$17),AA109,Z109)","v":""},"",{"$f":"Planning!AN93","v":{"v":0,"d":"0.00"}},{"$f":"'Month 10'!M109+'Month 10'!N109-'Month 10'!O109","v":{"v":0,"d":"0.00"}},null,"","",{"$f":"SUMIFS($J$25:$J$224,$C$25:$C$224,$C109,$G$25:$G$224,Lists!$A$16)","v":0},0,null,"",null,{"$f":"IF(C109=0,\"\",LEFT(INDEX(Lists!$H$5:$H$49,MATCH(C109,Lists!$G$5:$G$49,0),1),1))","v":""},null,{"$f":"'Month 10'!H109+'Month 10'!I109-'Month 10'!J109","v":0},"","",null,"0"]
[{"$f":"Planning!A94","v":"I086"},{"$f":"Planning!B94","v":0},{"$f":"Planning!C94","v":0},{"$f":"Planning!D94","v":0},{"$f":"Planning!E94","v":0},{"$f":"IF(Planning!G94<>0,Planning!G94,\"\")","v":""},{"$f":"Planning!H94","v":0},{"$f":"Planning!AM94","v":0},{"$f":"IF(OR(W110=\"1\",AND(W110<>\"1\",G110=Lists!$A$17)),Y110,0)","v":0},null,{"$f":"IF(AND(W110=\"2\",G110<>Lists!$A$17),AA110,Z110)","v":""},"",{"$f":"Planning!AN94","v":{"v":0,"d":"0.00"}},{"$f":"'Month 10'!M110+'Month 10'!N110-'Month 10'!O110","v":{"v":0,"d":"0.00"}},null,"","",{"$f":"SUMIFS($J$25:$J$224,$C$25:$C$224,$C110,$G$25:$G$224,Lists!$A$16)","v":0},0,null,"",null,{"$f":"IF(C110=0,\"\",LEFT(INDEX(Lists!$H$5:$H$49,MATCH(C110,Lists!$G$5:$G$49,0),1),1))","v":""},null,{"$f":"'Month 10'!H110+'Month 10'!I110-'Month 10'!J110","v":0},"","",null,"0"]
[{"$f":"Planning!A95","v":"I087"},{"$f":"Planning!B95","v":0},{"$f":"Planning!C95","v":0},{"$f":"Planning!D95","v":0},{"$f":"Planning!E95","v":0},{"$f":"IF(Planning!G95<>0,Planning!G95,\"\")","v":""},{"$f":"Planning!H95","v":0},{"$f":"Planning!AM95","v":0},{"$f":"IF(OR(W111=\"1\",AND(W111<>\"1\",G111=Lists!$A$17)),Y111,0)","v":0},null,{"$f":"IF(AND(W111=\"2\",G111<>Lists!$A$17),AA111,Z111)","v":""},"",{"$f":"Planning!AN95","v":{"v":0,"d":"0.00"}},{"$f":"'Month 10'!M111+'Month 10'!N111-'Month 10'!O111","v":{"v":0,"d":"0.00"}},null,"","",{"$f":"SUMIFS($J$25:$J$224,$C$25:$C$224,$C111,$G$25:$G$224,Lists!$A$16)","v":0},0,null,"",null,{"$f":"IF(C111=0,\"\",LEFT(INDEX(Lists!$H$5:$H$49,MATCH(C111,Lists!$G$5:$G$49,0),1),1))","v":""},null,{"$f":"'Month 10'!H111+'Month 10'!I111-'Month 10'!J111","v":0},"","",null,"0"]
[{"$f":"Planning!A96","v":"I088"},{"$f":"Planning!B96","v":0},{"$f":"Planning!C96","v":0},{"$f":"Planning!D96","v":0},{"$f":"Planning!E96","v":0},{"$f":"IF(Planning!G96<>0,Planning!G96,\"\")","v":""},{"$f":"Planning!H96","v":0},{"$f":"Planning!AM96","v":0},{"$f":"IF(OR(W112=\"1\",AND(W112<>\"1\",G112=Lists!$A$17)),Y112,0)","v":0},null,{"$f":"IF(AND(W112=\"2\",G112<>Lists!$A$17),AA112,Z112)","v":""},"",{"$f":"Planning!AN96","v":{"v":0,"d":"0.00"}},{"$f":"'Month 10'!M112+'Month 10'!N112-'Month 10'!O112","v":{"v":0,"d":"0.00"}},null,"","",{"$f":"SUMIFS($J$25:$J$224,$C$25:$C$224,$C112,$G$25:$G$224,Lists!$A$16)","v":0},0,null,"",null,{"$f":"IF(C112=0,\"\",LEFT(INDEX(Lists!$H$5:$H$49,MATCH(C112,Lists!$G$5:$G$49,0),1),1))","v":""},null,{"$f":"'Month 10'!H112+'Month 10'!I112-'Month 10'!J112","v":0},"","",null,"0"]
[{"$f":"Planning!A97","v":"I089"},{"$f":"Planning!B97","v":0},{"$f":"Planning!C97","v":0},{"$f":"Planning!D97","v":0},{"$f":"Planning!E97","v":0},{"$f":"IF(Planning!G97<>0,Planning!G97,\"\")","v":""},{"$f":"Planning!H97","v":0},{"$f":"Planning!AM97","v":0},{"$f":"IF(OR(W113=\"1\",AND(W113<>\"1\",G113=Lists!$A$17)),Y113,0)","v":0},null,{"$f":"IF(AND(W113=\"2\",G113<>Lists!$A$17),AA113,Z113)","v":""},"",{"$f":"Planning!AN97","v":{"v":0,"d":"0.00"}},{"$f":"'Month 10'!M113+'Month 10'!N113-'Month 10'!O113","v":{"v":0,"d":"0.00"}},null,"","",{"$f":"SUMIFS($J$25:$J$224,$C$25:$C$224,$C113,$G$25:$G$224,Lists!$A$16)","v":0},0,null,"",null,{"$f":"IF(C113=0,\"\",LEFT(INDEX(Lists!$H$5:$H$49,MATCH(C113,Lists!$G$5:$G$49,0),1),1))","v":""},null,{"$f":"'Month 10'!H113+'Month 10'!I113-'Month 10'!J113","v":0},"","",null,"0"]
[{"$f":"Planning!A98","v":"I090"},{"$f":"Planning!B98","v":0},{"$f":"Planning!C98","v":0},{"$f":"Planning!D98","v":0},{"$f":"Planning!E98","v":0},{"$f":"IF(Planning!G98<>0,Planning!G98,\"\")","v":""},{"$f":"Planning!H98","v":0},{"$f":"Planning!AM98","v":0},{"$f":"IF(OR(W114=\"1\",AND(W114<>\"1\",G114=Lists!$A$17)),Y114,0)","v":0},null,{"$f":"IF(AND(W114=\"2\",G114<>Lists!$A$17),AA114,Z114)","v":""},"",{"$f":"Planning!AN98","v":{"v":0,"d":"0.00"}},{"$f":"'Month 10'!M114+'Month 10'!N114-'Month 10'!O114","v":{"v":0,"d":"0.00"}},null,"","",{"$f":"SUMIFS($J$25:$J$224,$C$25:$C$224,$C114,$G$25:$G$224,Lists!$A$16)","v":0},0,null,"",null,{"$f":"IF(C114=0,\"\",LEFT(INDEX(Lists!$H$5:$H$49,MATCH(C114,Lists!$G$5:$G$49,0),1),1))","v":""},null,{"$f":"'Month 10'!H114+'Month 10'!I114-'Month 10'!J114","v":0},"","",null,"0"]
[{"$f":"Planning!A99","v":"I091"},{"$f":"Planning!B99","v":0},{"$f":"Planning!C99","v":0},{"$f":"Planning!D99","v":0},{"$f":"Planning!E99","v":0},{"$f":"IF(Planning!G99<>0,Planning!G99,\"\")","v":""},{"$f":"Planning!H99","v":0},{"$f":"Planning!AM99","v":0},{"$f":"IF(OR(W115=\"1\",AND(W115<>\"1\",G115=Lists!$A$17)),Y115,0)","v":0},null,{"$f":"IF(AND(W115=\"2\",G115<>Lists!$A$17),AA115,Z115)","v":""},"",{"$f":"Planning!AN99","v":{"v":0,"d":"0.00"}},{"$f":"'Month 10'!M115+'Month 10'!N115-'Month 10'!O115","v":{"v":0,"d":"0.00"}},null,"","",{"$f":"SUMIFS($J$25:$J$224,$C$25:$C$224,$C115,$G$25:$G$224,Lists!$A$16)","v":0},0,null,"",null,{"$f":"IF(C115=0,\"\",LEFT(INDEX(Lists!$H$5:$H$49,MATCH(C115,Lists!$G$5:$G$49,0),1),1))","v":""},null,{"$f":"'Month 10'!H115+'Month 10'!I115-'Month 10'!J115","v":0},"","",null,"0"]
[{"$f":"Planning!A100","v":"I092"},{"$f":"Planning!B100","v":0},{"$f":"Planning!C100","v":0},{"$f":"Planning!D100","v":0},{"$f":"Planning!E100","v":0},{"$f":"IF(Planning!G100<>0,Planning!G100,\"\")","v":""},{"$f":"Planning!H100","v":0},{"$f":"Planning!AM100","v":0},{"$f":"IF(OR(W116=\"1\",AND(W116<>\"1\",G116=Lists!$A$17)),Y116,0)","v":0},null,{"$f":"IF(AND(W116=\"2\",G116<>Lists!$A$17),AA116,Z116)","v":""},"",{"$f":"Planning!AN100","v":{"v":0,"d":"0.00"}},{"$f":"'Month 10'!M116+'Month 10'!N116-'Month 10'!O116","v":{"v":0,"d":"0.00"}},null,"","",{"$f":"SUMIFS($J$25:$J$224,$C$25:$C$224,$C116,$G$25:$G$224,Lists!$A$16)","v":0},0,null,"",null,{"$f":"IF(C116=0,\"\",LEFT(INDEX(Lists!$H$5:$H$49,MATCH(C116,Lists!$G$5:$G$49,0),1),1))","v":""},null,{"$f":"'Month 10'!H116+'Month 10'!I116-'Month 10'!J116","v":0},"","",null,"0"]
[{"$f":"Planning!A101","v":"I093"},{"$f":"Planning!B101","v":0},{"$f":"Planning!C101","v":0},{"$f":"Planning!D101","v":0},{"$f":"Planning!E101","v":0},{"$f":"IF(Planning!G101<>0,Planning!G101,\"\")","v":""},{"$f":"Planning!H101","v":0},{"$f":"Planning!AM101","v":0},{"$f":"IF(OR(W117=\"1\",AND(W117<>\"1\",G117=Lists!$A$17)),Y117,0)","v":0},null,{"$f":"IF(AND(W117=\"2\",G117<>Lists!$A$17),AA117,Z117)","v":""},"",{"$f":"Planning!AN101","v":{"v":0,"d":"0.00"}},{"$f":"'Month 10'!M117+'Month 10'!N117-'Month 10'!O117","v":{"v":0,"d":"0.00"}},null,"","",{"$f":"SUMIFS($J$25:$J$224,$C$25:$C$224,$C117,$G$25:$G$224,Lists!$A$16)","v":0},0,null,"",null,{"$f":"IF(C117=0,\"\",LEFT(INDEX(Lists!$H$5:$H$49,MATCH(C117,Lists!$G$5:$G$49,0),1),1))","v":""},null,{"$f":"'Month 10'!H117+'Month 10'!I117-'Month 10'!J117","v":0},"","",null,"0"]
[{"$f":"Planning!A102","v":"I094"},{"$f":"Planning!B102","v":0},{"$f":"Planning!C102","v":0},{"$f":"Planning!D102","v":0},{"$f":"Planning!E102","v":0},{"$f":"IF(Planning!G102<>0,Planning!G102,\"\")","v":""},{"$f":"Planning!H102","v":0},{"$f":"Planning!AM102","v":0},{"$f":"IF(OR(W118=\"1\",AND(W118<>\"1\",G118=Lists!$A$17)),Y118,0)","v":0},null,{"$f":"IF(AND(W118=\"2\",G118<>Lists!$A$17),AA118,Z118)","v":""},"",{"$f":"Planning!AN102","v":{"v":0,"d":"0.00"}},{"$f":"'Month 10'!M118+'Month 10'!N118-'Month 10'!O118","v":{"v":0,"d":"0.00"}},null,"","",{"$f":"SUMIFS($J$25:$J$224,$C$25:$C$224,$C118,$G$25:$G$224,Lists!$A$16)","v":0},0,null,"",null,{"$f":"IF(C118=0,\"\",LEFT(INDEX(Lists!$H$5:$H$49,MATCH(C118,Lists!$G$5:$G$49,0),1),1))","v":""},null,{"$f":"'Month 10'!H118+'Month 10'!I118-'Month 10'!J118","v":0},"","",null,"0"]
[{"$f":"Planning!A103","v":"I095"},{"$f":"Planning!B103","v":0},{"$f":"Planning!C103","v":0},{"$f":"Planning!D103","v":0},{"$f":"Planning!E103","v":0},{"$f":"IF(Planning!G103<>0,Planning!G103,\"\")","v":""},{"$f":"Planning!H103","v":0},{"$f":"Planning!AM103","v":0},{"$f":"IF(OR(W119=\"1\",AND(W119<>\"1\",G119=Lists!$A$17)),Y119,0)","v":0},null,{"$f":"IF(AND(W119=\"2\",G119<>Lists!$A$17),AA119,Z119)","v":""},"",{"$f":"Planning!AN103","v":{"v":0,"d":"0.00"}},{"$f":"'Month 10'!M119+'Month 10'!N119-'Month 10'!O119","v":{"v":0,"d":"0.00"}},null,"","",{"$f":"SUMIFS($J$25:$J$224,$C$25:$C$224,$C119,$G$25:$G$224,Lists!$A$16)","v":0},0,null,"",null,{"$f":"IF(C119=0,\"\",LEFT(INDEX(Lists!$H$5:$H$49,MATCH(C119,Lists!$G$5:$G$49,0),1),1))","v":""},null,{"$f":"'Month 10'!H119+'Month 10'!I119-'Month 10'!J119","v":0},"","",null,"0"]
[{"$f":"Planning!A104","v":"I096"},{"$f":"Planning!B104","v":0},{"$f":"Planning!C104","v":0},{"$f":"Planning!D104","v":0},{"$f":"Planning!E104","v":0},{"$f":"IF(Planning!G104<>0,Planning!G104,\"\")","v":""},{"$f":"Planning!H104","v":0},{"$f":"Planning!AM104","v":0},{"$f":"IF(OR(W120=\"1\",AND(W120<>\"1\",G120=Lists!$A$17)),Y120,0)","v":0},null,{"$f":"IF(AND(W120=\"2\",G120<>Lists!$A$17),AA120,Z120)","v":""},"",{"$f":"Planning!AN104","v":{"v":0,"d":"0.00"}},{"$f":"'Month 10'!M120+'Month 10'!N120-'Month 10'!O120","v":{"v":0,"d":"0.00"}},null,"","",{"$f":"SUMIFS($J$25:$J$224,$C$25:$C$224,$C120,$G$25:$G$224,Lists!$A$16)","v":0},0,null,"",null,{"$f":"IF(C120=0,\"\",LEFT(INDEX(Lists!$H$5:$H$49,MATCH(C120,Lists!$G$5:$G$49,0),1),1))","v":""},null,{"$f":"'Month 10'!H120+'Month 10'!I120-'Month 10'!J120","v":0},"","",null,"0"]
[{"$f":"Planning!A105","v":"I097"},{"$f":"Planning!B105","v":0},{"$f":"Planning!C105","v":0},{"$f":"Planning!D105","v":0},{"$f":"Planning!E105","v":0},{"$f":"IF(Planning!G105<>0,Planning!G105,\"\")","v":""},{"$f":"Planning!H105","v":0},{"$f":"Planning!AM105","v":0},{"$f":"IF(OR(W121=\"1\",AND(W121<>\"1\",G121=Lists!$A$17)),Y121,0)","v":0},null,{"$f":"IF(AND(W121=\"2\",G121<>Lists!$A$17),AA121,Z121)","v":""},{"$f":"IF($U121=ExcluirDelPLogro,\"\",IF(AND(H121=0,I121=0,J121=0),\"\",K121))","v":""},{"$f":"Planning!AN105","v":{"v":0,"d":"0.00"}},{"$f":"'Month 10'!M121+'Month 10'!N121-'Month 10'!O121","v":{"v":0,"d":"0.00"}},null,"",{"$f":"IF($U121=ExcluirDelPLogro,\"\",IF(AND(M121=0,N121=0,O121=0),\"\",P121))","v":""},{"$f":"SUMIFS($J$25:$J$224,$C$25:$C$224,$C121,$G$25:$G$224,Lists!$A$16)","v":0},0,null,"",null,{"$f":"IF(C121=0,\"\",LEFT(INDEX(Lists!$H$5:$H$49,MATCH(C121,Lists!$G$5:$G$49,0),1),1))","v":""},null,{"$f":"'Month 10'!H121+'Month 10'!I121-'Month 10'!J121","v":0},"",{"$f":"IF(AND(H121=0,I121=0,J121=0),\"\",IF(J121>0,H121/J121,0))","v":""},null,"0"]
[{"$f":"Planning!A106","v":"I098"},{"$f":"Planning!B106","v":0},{"$f":"Planning!C106","v":0},{"$f":"Planning!D106","v":0},{"$f":"Planning!E106","v":0},{"$f":"IF(Planning!G106<>0,Planning!G106,\"\")","v":""},{"$f":"Planning!H106","v":0},{"$f":"Planning!AM106","v":0},{"$f":"IF(OR(W122=\"1\",AND(W122<>\"1\",G122=Lists!$A$17)),Y122,0)","v":0},null,{"$f":"IF(AND(W122=\"2\",G122<>Lists!$A$17),AA122,Z122)","v":""},"",{"$f":"Planning!AN106","v":{"v":0,"d":"0.00"}},{"$f":"'Month 10'!M122+'Month 10'!N122-'Month 10'!O122","v":{"v":0,"d":"0.00"}},null,"","",{"$f":"SUMIFS($J$25:$J$224,$C$25:$C$224,$C122,$G$25:$G$224,Lists!$A$16)","v":0},0,null,"",null,{"$f":"IF(C122=0,\"\",LEFT(INDEX(Lists!$H$5:$H$49,MATCH(C122,Lists!$G$5:$G$49,0),1),1))","v":""},null,{"$f":"'Month 10'!H122+'Month 10'!I122-'Month 10'!J122","v":0},"","",null,"0"]
[{"$f":"Planning!A107","v":"I099"},{"$f":"Planning!B107","v":0},{"$f":"Planning!C107","v":0},{"$f":"Planning!D107","v":0},{"$f":"Planning!E107","v":0},{"$f":"IF(Planning!G107<>0,Planning!G107,\"\")","v":""},{"$f":"Planning!H107","v":0},{"$f":"Planning!AM107","v":0},{"$f":"IF(OR(W123=\"1\",AND(W123<>\"1\",G123=Lists!$A$17)),Y123,0)","v":0},null,{"$f":"IF(AND(W123=\"2\",G123<>Lists!$A$17),AA123,Z123)","v":""},"",{"$f":"Planning!AN107","v":{"v":0,"d":"0.00"}},{"$f":"'Month 10'!M123+'Month 10'!N123-'Month 10'!O123","v":{"v":0,"d":"0.00"}},null,"","",{"$f":"SUMIFS($J$25:$J$224,$C$25:$C$224,$C123,$G$25:$G$224,Lists!$A$16)","v":0},0,null,"",null,{"$f":"IF(C123=0,\"\",LEFT(INDEX(Lists!$H$5:$H$49,MATCH(C123,Lists!$G$5:$G$49,0),1),1))","v":""},null,{"$f":"'Month 10'!H123+'Month 10'!I123-'Month 10'!J123","v":0},"","",null,"0"]
[{"$f":"Planning!A108","v":"I100"},{"$f":"Planning!B108","v":0},{"$f":"Planning!C108","v":0},{"$f":"Planning!D108","v":0},{"$f":"Planning!E108","v":0},{"$f":"IF(Planning!G108<>0,Planning!G108,\"\")","v":""},{"$f":"Planning!H108","v":0},{"$f":"Planning!AM108","v":0},{"$f":"IF(OR(W124=\"1\",AND(W124<>\"1\",G124=Lists!$A$17)),Y124,0)","v":0},null,{"$f":"IF(AND(W124=\"2\",G124<>Lists!$A$17),AA124,Z124)","v":""},"",{"$f":"Planning!AN108","v":{"v":0,"d":"0.00"}},{"$f":"'Month 10'!M124+'Month 10'!N124-'Month 10'!O124","v":{"v":0,"d":"0.00"}},null,"","",{"$f":"SUMIFS($J$25:$J$224,$C$25:$C$224,$C124,$G$25:$G$224,Lists!$A$16)","v":0},0,null,"",null,{"$f":"IF(C124=0,\"\",LEFT(INDEX(Lists!$H$5:$H$49,MATCH(C124,Lists!$G$5:$G$49,0),1),1))","v":""},null,{"$f":"'Month 10'!H124+'Month 10'!I124-'Month 10'!J124","v":0},"","",null,"0"]
[{"$f":"Planning!A109","v":"I101"},{"$f":"Planning!B109","v":0},{"$f":"Planning!C109","v":0},{"$f":"Planning!D109","v":0},{"$f":"Planning!E109","v":0},{"$f":"IF(Planning!G109<>0,Planning!G109,\"\")","v":""},{"$f":"Planning!H109","v":0},{"$f":"Planning!AM109","v":0},{"$f":"IF(OR(W125=\"1\",AND(W125<>\"1\",G125=Lists!$A$17)),Y125,0)","v":0},null,{"$f":"IF(AND(W125=\"2\",G125<>Lists!$A$17),AA125,Z125)","v":""},"",{"$f":"Planning!AN109","v":{"v":0,"d":"0.00"}},{"$f":"'Month 10'!M125+'Month 10'!N125-'Month 10'!O125","v":{"v":0,"d":"0.00"}},null,"","",{"$f":"SUMIFS($J$25:$J$224,$C$25:$C$224,$C125,$G$25:$G$224,Lists!$A$16)","v":0},0,null,"",null,{"$f":"IF(C125=0,\"\",LEFT(INDEX(Lists!$H$5:$H$49,MATCH(C125,Lists!$G$5:$G$49,0),1),1))","v":""},null,{"$f":"'Month 10'!H125+'Month 10'!I125-'Month 10'!J125","v":0},"","",null,"0"]
[{"$f":"Planning!A110","v":"I102"},{"$f":"Planning!B110","v":0},{"$f":"Planning!C110","v":0},{"$f":"Planning!D110","v":0},{"$f":"Planning!E110","v":0},{"$f":"IF(Planning!G110<>0,Planning!G110,\"\")","v":""},{"$f":"Planning!H110","v":0},{"$f":"Planning!AM110","v":0},{"$f":"IF(OR(W126=\"1\",AND(W126<>\"1\",G126=Lists!$A$17)),Y126,0)","v":0},null,{"$f":"IF(AND(W126=\"2\",G126<>Lists!$A$17),AA126,Z126)","v":""},"",{"$f":"Planning!AN110","v":{"v":0,"d":"0.00"}},{"$f":"'Month 10'!M126+'Month 10'!N126-'Month 10'!O126","v":{"v":0,"d":"0.00"}},null,"","",{"$f":"SUMIFS($J$25:$J$224,$C$25:$C$224,$C126,$G$25:$G$224,Lists!$A$16)","v":0},0,null,"",null,{"$f":"IF(C126=0,\"\",LEFT(INDEX(Lists!$H$5:$H$49,MATCH(C126,Lists!$G$5:$G$49,0),1),1))","v":""},null,{"$f":"'Month 10'!H126+'Month 10'!I126-'Month 10'!J126","v":0},"","",null,"0"]
[{"$f":"Planning!A111","v":"I103"},{"$f":"Planning!B111","v":0},{"$f":"Planning!C111","v":0},{"$f":"Planning!D111","v":0},{"$f":"Planning!E111","v":0},{"$f":"IF(Planning!G111<>0,Planning!G111,\"\")","v":""},{"$f":"Planning!H111","v":0},{"$f":"Planning!AM111","v":0},{"$f":"IF(OR(W127=\"1\",AND(W127<>\"1\",G127=Lists!$A$17)),Y127,0)","v":0},null,{"$f":"IF(AND(W127=\"2\",G127<>Lists!$A$17),AA127,Z127)","v":""},"",{"$f":"Planning!AN111","v":{"v":0,"d":"0.00"}},{"$f":"'Month 10'!M127+'Month 10'!N127-'Month 10'!O127","v":{"v":0,"d":"0.00"}},null,"","",{"$f":"SUMIFS($J$25:$J$224,$C$25:$C$224,$C127,$G$25:$G$224,Lists!$A$16)","v":0},0,null,"",null,{"$f":"IF(C127=0,\"\",LEFT(INDEX(Lists!$H$5:$H$49,MATCH(C127,Lists!$G$5:$G$49,0),1),1))","v":""},null,{"$f":"'Month 10'!H127+'Month 10'!I127-'Month 10'!J127","v":0},"","",null,"0"]
[{"$f":"Planning!A112","v":"I104"},{"$f":"Planning!B112","v":0},{"$f":"Planning!C112","v":0},{"$f":"Planning!D112","v":0},{"$f":"Planning!E112","v":0},{"$f":"IF(Planning!G112<>0,Planning!G112,\"\")","v":""},{"$f":"Planning!H112","v":0},{"$f":"Planning!AM112","v":0},{"$f":"IF(OR(W128=\"1\",AND(W128<>\"1\",G128=Lists!$A$17)),Y128,0)","v":0},null,{"$f":"IF(AND(W128=\"2\",G128<>Lists!$A$17),AA128,Z128)","v":""},"",{"$f":"Planning!AN112","v":{"v":0,"d":"0.00"}},{"$f":"'Month 10'!M128+'Month 10'!N128-'Month 10'!O128","v":{"v":0,"d":"0.00"}},null,"","",{"$f":"SUMIFS($J$25:$J$224,$C$25:$C$224,$C128,$G$25:$G$224,Lists!$A$16)","v":0},0,null,"",null,{"$f":"IF(C128=0,\"\",LEFT(INDEX(Lists!$H$5:$H$49,MATCH(C128,Lists!$G$5:$G$49,0),1),1))","v":""},null,{"$f":"'Month 10'!H128+'Month 10'!I128-'Month 10'!J128","v":0},"","",null,"0"]
[{"$f":"Planning!A113","v":"I105"},{"$f":"Planning!B113","v":0},{"$f":"Planning!C113","v":0},{"$f":"Planning!D113","v":0},{"$f":"Planning!E113","v":0},{"$f":"IF(Planning!G113<>0,Planning!G113,\"\")","v":""},{"$f":"Planning!H113","v":0},{"$f":"Planning!AM113","v":0},{"$f":"IF(OR(W129=\"1\",AND(W129<>\"1\",G129=Lists!$A$17)),Y129,0)","v":0},null,{"$f":"IF(AND(W129=\"2\",G129<>Lists!$A$17),AA129,Z129)","v":""},"",{"$f":"Planning!AN113","v":{"v":0,"d":"0.00"}},{"$f":"'Month 10'!M129+'Month 10'!N129-'Month 10'!O129","v":{"v":0,"d":"0.00"}},null,"","",{"$f":"SUMIFS($J$25:$J$224,$C$25:$C$224,$C129,$G$25:$G$224,Lists!$A$16)","v":0},0,null,"",null,{"$f":"IF(C129=0,\"\",LEFT(INDEX(Lists!$H$5:$H$49,MATCH(C129,Lists!$G$5:$G$49,0),1),1))","v":""},null,{"$f":"'Month 10'!H129+'Month 10'!I129-'Month 10'!J129","v":0},"","",null,"0"]
[{"$f":"Planning!A114","v":"I106"},{"$f":"Planning!B114","v":0},{"$f":"Planning!C114","v":0},{"$f":"Planning!D114","v":0},{"$f":"Planning!E114","v":0},{"$f":"IF(Planning!G114<>0,Planning!G114,\"\")","v":""},{"$f":"Planning!H114","v":0},{"$f":"Planning!AM114","v":0},{"$f":"IF(OR(W130=\"1\",AND(W130<>\"1\",G130=Lists!$A$17)),Y130,0)","v":0},null,{"$f":"IF(AND(W130=\"2\",G130<>Lists!$A$17),AA130,Z130)","v":""},"",{"$f":"Planning!AN114","v":{"v":0,"d":"0.00"}},{"$f":"'Month 10'!M130+'Month 10'!N130-'Month 10'!O130","v":{"v":0,"d":"0.00"}},null,"","",{"$f":"SUMIFS($J$25:$J$224,$C$25:$C$224,$C130,$G$25:$G$224,Lists!$A$16)","v":0},0,null,"",null,{"$f":"IF(C130=0,\"\",LEFT(INDEX(Lists!$H$5:$H$49,MATCH(C130,Lists!$G$5:$G$49,0),1),1))","v":""},null,{"$f":"'Month 10'!H130+'Month 10'!I130-'Month 10'!J130","v":0},"","",null,"0"]
[{"$f":"Planning!A115","v":"I107"},{"$f":"Planning!B115","v":0},{"$f":"Planning!C115","v":0},{"$f":"Planning!D115","v":0},{"$f":"Planning!E115","v":0},{"$f":"IF(Planning!G115<>0,Planning!G115,\"\")","v":""},{"$f":"Planning!H115","v":0},{"$f":"Planning!AM115","v":0},{"$f":"IF(OR(W131=\"1\",AND(W131<>\"1\",G131=Lists!$A$17)),Y131,0)","v":0},null,{"$f":"IF(AND(W131=\"2\",G131<>Lists!$A$17),AA131,Z131)","v":""},"",{"$f":"Planning!AN115","v":{"v":0,"d":"0.00"}},{"$f":"'Month 10'!M131+'Month 10'!N131-'Month 10'!O131","v":{"v":0,"d":"0.00"}},null,"","",{"$f":"SUMIFS($J$25:$J$224,$C$25:$C$224,$C131,$G$25:$G$224,Lists!$A$16)","v":0},0,null,"",null,{"$f":"IF(C131=0,\"\",LEFT(INDEX(Lists!$H$5:$H$49,MATCH(C131,Lists!$G$5:$G$49,0),1),1))","v":""},null,{"$f":"'Month 10'!H131+'Month 10'!I131-'Month 10'!J131","v":0},"","",null,"0"]
[{"$f":"Planning!A116","v":"I108"},{"$f":"Planning!B116","v":0},{"$f":"Planning!C116","v":0},{"$f":"Planning!D116","v":0},{"$f":"Planning!E116","v":0},{"$f":"IF(Planning!G116<>0,Planning!G116,\"\")","v":""},{"$f":"Planning!H116","v":0},{"$f":"Planning!AM116","v":0},{"$f":"IF(OR(W132=\"1\",AND(W132<>\"1\",G132=Lists!$A$17)),Y132,0)","v":0},null,{"$f":"IF(AND(W132=\"2\",G132<>Lists!$A$17),AA132,Z132)","v":""},"",{"$f":"Planning!AN116","v":{"v":0,"d":"0.00"}},{"$f":"'Month 10'!M132+'Month 10'!N132-'Month 10'!O132","v":{"v":0,"d":"0.00"}},null,"","",{"$f":"SUMIFS($J$25:$J$224,$C$25:$C$224,$C132,$G$25:$G$224,Lists!$A$16)","v":0},0,null,"",null,{"$f":"IF(C132=0,\"\",LEFT(INDEX(Lists!$H$5:$H$49,MATCH(C132,Lists!$G$5:$G$49,0),1),1))","v":""},null,{"$f":"'Month 10'!H132+'Month 10'!I132-'Month 10'!J132","v":0},"","",null,"0"]
[{"$f":"Planning!A117","v":"I109"},{"$f":"Planning!B117","v":0},{"$f":"Planning!C117","v":0},{"$f":"Planning!D117","v":0},{"$f":"Planning!E117","v":0},{"$f":"IF(Planning!G117<>0,Planning!G117,\"\")","v":""},{"$f":"Planning!H117","v":0},{"$f":"Planning!AM117","v":0},{"$f":"IF(OR(W133=\"1\",AND(W133<>\"1\",G133=Lists!$A$17)),Y133,0)","v":0},null,{"$f":"IF(AND(W133=\"2\",G133<>Lists!$A$17),AA133,Z133)","v":""},"",{"$f":"Planning!AN117","v":{"v":0,"d":"0.00"}},{"$f":"'Month 10'!M133+'Month 10'!N133-'Month 10'!O133","v":{"v":0,"d":"0.00"}},null,"","",{"$f":"SUMIFS($J$25:$J$224,$C$25:$C$224,$C133,$G$25:$G$224,Lists!$A$16)","v":0},0,null,"",null,{"$f":"IF(C133=0,\"\",LEFT(INDEX(Lists!$H$5:$H$49,MATCH(C133,Lists!$G$5:$G$49,0),1),1))","v":""},null,{"$f":"'Month 10'!H133+'Month 10'!I133-'Month 10'!J133","v":0},"","",null,"0"]
[{"$f":"Planning!A118","v":"I110"},{"$f":"Planning!B118","v":0},{"$f":"Planning!C118","v":0},{"$f":"Planning!D118","v":0},{"$f":"Planning!E118","v":0},{"$f":"IF(Planning!G118<>0,Planning!G118,\"\")","v":""},{"$f":"Planning!H118","v":0},{"$f":"Planning!AM118","v":0},{"$f":"IF(OR(W134=\"1\",AND(W134<>\"1\",G134=Lists!$A$17)),Y134,0)","v":0},null,{"$f":"IF(AND(W134=\"2\",G134<>Lists!$A$17),AA134,Z134)","v":""},"",{"$f":"Planning!AN118","v":{"v":0,"d":"0.00"}},{"$f":"'Month 10'!M134+'Month 10'!N134-'Month 10'!O134","v":{"v":0,"d":"0.00"}},null,"","",{"$f":"SUMIFS($J$25:$J$224,$C$25:$C$224,$C134,$G$25:$G$224,Lists!$A$16)","v":0},0,null,"",null,{"$f":"IF(C134=0,\"\",LEFT(INDEX(Lists!$H$5:$H$49,MATCH(C134,Lists!$G$5:$G$49,0),1),1))","v":""},null,{"$f":"'Month 10'!H134+'Month 10'!I134-'Month 10'!J134","v":0},"","",null,"0"]
[{"$f":"Planning!A119","v":"I111"},{"$f":"Planning!B119","v":0},{"$f":"Planning!C119","v":0},{"$f":"Planning!D119","v":0},{"$f":"Planning!E119","v":0},{"$f":"IF(Planning!G119<>0,Planning!G119,\"\")","v":""},{"$f":"Planning!H119","v":0},{"$f":"Planning!AM119","v":0},{"$f":"IF(OR(W135=\"1\",AND(W135<>\"1\",G135=Lists!$A$17)),Y135,0)","v":0},null,{"$f":"IF(AND(W135=\"2\",G135<>Lists!$A$17),AA135,Z135)","v":""},"",{"$f":"Planning!AN119","v":{"v":0,"d":"0.00"}},{"$f":"'Month 10'!M135+'Month 10'!N135-'Month 10'!O135","v":{"v":0,"d":"0.00"}},null,"","",{"$f":"SUMIFS($J$25:$J$224,$C$25:$C$224,$C135,$G$25:$G$224,Lists!$A$16)","v":0},0,null,"",null,{"$f":"IF(C135=0,\"\",LEFT(INDEX(Lists!$H$5:$H$49,MATCH(C135,Lists!$G$5:$G$49,0),1),1))","v":""},null,{"$f":"'Month 10'!H135+'Month 10'!I135-'Month 10'!J135","v":0},"","",null,"0"]
[{"$f":"Planning!A120","v":"I112"},{"$f":"Planning!B120","v":0},{"$f":"Planning!C120","v":0},{"$f":"Planning!D120","v":0},{"$f":"Planning!E120","v":0},{"$f":"IF(Planning!G120<>0,Planning!G120,\"\")","v":""},{"$f":"Planning!H120","v":0},{"$f":"Planning!AM120","v":0},{"$f":"IF(OR(W136=\"1\",AND(W136<>\"1\",G136=Lists!$A$17)),Y136,0)","v":0},null,{"$f":"IF(AND(W136=\"2\",G136<>Lists!$A$17),AA136,Z136)","v":""},"",{"$f":"Planning!AN120","v":{"v":0,"d":"0.00"}},{"$f":"'Month 10'!M136+'Month 10'!N136-'Month 10'!O136","v":{"v":0,"d":"0.00"}},null,"","",{"$f":"SUMIFS($J$25:$J$224,$C$25:$C$224,$C136,$G$25:$G$224,Lists!$A$16)","v":0},0,null,"",null,{"$f":"IF(C136=0,\"\",LEFT(INDEX(Lists!$H$5:$H$49,MATCH(C136,Lists!$G$5:$G$49,0),1),1))","v":""},null,{"$f":"'Month 10'!H136+'Month 10'!I136-'Month 10'!J136","v":0},"","",null,"0"]
[{"$f":"Planning!A121","v":"I113"},{"$f":"Planning!B121","v":0},{"$f":"Planning!C121","v":0},{"$f":"Planning!D121","v":0},{"$f":"Planning!E121","v":0},{"$f":"IF(Planning!G121<>0,Planning!G121,\"\")","v":""},{"$f":"Planning!H121","v":0},{"$f":"Planning!AM121","v":0},{"$f":"IF(OR(W137=\"1\",AND(W137<>\"1\",G137=Lists!$A$17)),Y137,0)","v":0},null,{"$f":"IF(AND(W137=\"2\",G137<>Lists!$A$17),AA137,Z137)","v":""},"",{"$f":"Planning!AN121","v":{"v":0,"d":"0.00"}},{"$f":"'Month 10'!M137+'Month 10'!N137-'Month 10'!O137","v":{"v":0,"d":"0.00"}},null,"","",{"$f":"SUMIFS($J$25:$J$224,$C$25:$C$224,$C137,$G$25:$G$224,Lists!$A$16)","v":0},0,null,"",null,{"$f":"IF(C137=0,\"\",LEFT(INDEX(Lists!$H$5:$H$49,MATCH(C137,Lists!$G$5:$G$49,0),1),1))","v":""},null,{"$f":"'Month 10'!H137+'Month 10'!I137-'Month 10'!J137","v":0},"","",null,"0"]
[{"$f":"Planning!A122","v":"I114"},{"$f":"Planning!B122","v":0},{"$f":"Planning!C122","v":0},{"$f":"Planning!D122","v":0},{"$f":"Planning!E122","v":0},{"$f":"IF(Planning!G122<>0,Planning!G122,\"\")","v":""},{"$f":"Planning!H122","v":0},{"$f":"Planning!AM122","v":0},{"$f":"IF(OR(W138=\"1\",AND(W138<>\"1\",G138=Lists!$A$17)),Y138,0)","v":0},null,{"$f":"IF(AND(W138=\"2\",G138<>Lists!$A$17),AA138,Z138)","v":""},"",{"$f":"Planning!AN122","v":{"v":0,"d":"0.00"}},{"$f":"'Month 10'!M138+'Month 10'!N138-'Month 10'!O138","v":{"v":0,"d":"0.00"}},null,"","",{"$f":"SUMIFS($J$25:$J$224,$C$25:$C$224,$C138,$G$25:$G$224,Lists!$A$16)","v":0},0,null,"",null,{"$f":"IF(C138=0,\"\",LEFT(INDEX(Lists!$H$5:$H$49,MATCH(C138,Lists!$G$5:$G$49,0),1),1))","v":""},null,{"$f":"'Month 10'!H138+'Month 10'!I138-'Month 10'!J138","v":0},"","",null,"0"]
[{"$f":"Planning!A123","v":"I115"},{"$f":"Planning!B123","v":0},{"$f":"Planning!C123","v":0},{"$f":"Planning!D123","v":0},{"$f":"Planning!E123","v":0},{"$f":"IF(Planning!G123<>0,Planning!G123,\"\")","v":""},{"$f":"Planning!H123","v":0},{"$f":"Planning!AM123","v":0},{"$f":"IF(OR(W139=\"1\",AND(W139<>\"1\",G139=Lists!$A$17)),Y139,0)","v":0},null,{"$f":"IF(AND(W139=\"2\",G139<>Lists!$A$17),AA139,Z139)","v":""},"",{"$f":"Planning!AN123","v":{"v":0,"d":"0.00"}},{"$f":"'Month 10'!M139+'Month 10'!N139-'Month 10'!O139","v":{"v":0,"d":"0.00"}},null,"","",{"$f":"SUMIFS($J$25:$J$224,$C$25:$C$224,$C139,$G$25:$G$224,Lists!$A$16)","v":0},0,null,"",null,{"$f":"IF(C139=0,\"\",LEFT(INDEX(Lists!$H$5:$H$49,MATCH(C139,Lists!$G$5:$G$49,0),1),1))","v":""},null,{"$f":"'Month 10'!H139+'Month 10'!I139-'Month 10'!J139","v":0},"","",null,"0"]
[{"$f":"Planning!A124","v":"I116"},{"$f":"Planning!B124","v":0},{"$f":"Planning!C124","v":0},{"$f":"Planning!D124","v":0},{"$f":"Planning!E124","v":0},{"$f":"IF(Planning!G124<>0,Planning!G124,\"\")","v":""},{"$f":"Planning!H124","v":0},{"$f":"Planning!AM124","v":0},{"$f":"IF(OR(W140=\"1\",AND(W140<>\"1\",G140=Lists!$A$17)),Y140,0)","v":0},null,{"$f":"IF(AND(W140=\"2\",G140<>Lists!$A$17),AA140,Z140)","v":""},"",{"$f":"Planning!AN124","v":{"v":0,"d":"0.00"}},{"$f":"'Month 10'!M140+'Month 10'!N140-'Month 10'!O140","v":{"v":0,"d":"0.00"}},null,"","",{"$f":"SUMIFS($J$25:$J$224,$C$25:$C$224,$C140,$G$25:$G$224,Lists!$A$16)","v":0},0,null,"",null,{"$f":"IF(C140=0,\"\",LEFT(INDEX(Lists!$H$5:$H$49,MATCH(C140,Lists!$G$5:$G$49,0),1),1))","v":""},null,{"$f":"'Month 10'!H140+'Month 10'!I140-'Month 10'!J140","v":0},"","",null,"0"]
[{"$f":"Planning!A125","v":"I117"},{"$f":"Planning!B125","v":0},{"$f":"Planning!C125","v":0},{"$f":"Planning!D125","v":0},{"$f":"Planning!E125","v":0},{"$f":"IF(Planning!G125<>0,Planning!G125,\"\")","v":""},{"$f":"Planning!H125","v":0},{"$f":"Planning!AM125","v":0},{"$f":"IF(OR(W141=\"1\",AND(W141<>\"1\",G141=Lists!$A$17)),Y141,0)","v":0},null,{"$f":"IF(AND(W141=\"2\",G141<>Lists!$A$17),AA141,Z141)","v":""},"",{"$f":"Planning!AN125","v":{"v":0,"d":"0.00"}},{"$f":"'Month 10'!M141+'Month 10'!N141-'Month 10'!O141","v":{"v":0,"d":"0.00"}},null,"","",{"$f":"SUMIFS($J$25:$J$224,$C$25:$C$224,$C141,$G$25:$G$224,Lists!$A$16)","v":0},0,null,"",null,{"$f":"IF(C141=0,\"\",LEFT(INDEX(Lists!$H$5:$H$49,MATCH(C141,Lists!$G$5:$G$49,0),1),1))","v":""},null,{"$f":"'Month 10'!H141+'Month 10'!I141-'Month 10'!J141","v":0},"","",null,"0"]
[{"$f":"Planning!A126","v":"I118"},{"$f":"Planning!B126","v":0},{"$f":"Planning!C126","v":0},{"$f":"Planning!D126","v":0},{"$f":"Planning!E126","v":0},{"$f":"IF(Planning!G126<>0,Planning!G126,\"\")","v":""},{"$f":"Planning!H126","v":0},{"$f":"Planning!AM126","v":0},{"$f":"IF(OR(W142=\"1\",AND(W142<>\"1\",G142=Lists!$A$17)),Y142,0)","v":0},null,{"$f":"IF(AND(W142=\"2\",G142<>Lists!$A$17),AA142,Z142)","v":""},"",{"$f":"Planning!AN126","v":{"v":0,"d":"0.00"}},{"$f":"'Month 10'!M142+'Month 10'!N142-'Month 10'!O142","v":{"v":0,"d":"0.00"}},null,"","",{"$f":"SUMIFS($J$25:$J$224,$C$25:$C$224,$C142,$G$25:$G$224,Lists!$A$16)","v":0},0,null,"",null,{"$f":"IF(C142=0,\"\",LEFT(INDEX(Lists!$H$5:$H$49,MATCH(C142,Lists!$G$5:$G$49,0),1),1))","v":""},null,{"$f":"'Month 10'!H142+'Month 10'!I142-'Month 10'!J142","v":0},"","",null,"0"]
[{"$f":"Planning!A127","v":"I119"},{"$f":"Planning!B127","v":0},{"$f":"Planning!C127","v":0},{"$f":"Planning!D127","v":0},{"$f":"Planning!E127","v":0},{"$f":"IF(Planning!G127<>0,Planning!G127,\"\")","v":""},{"$f":"Planning!H127","v":0},{"$f":"Planning!AM127","v":0},{"$f":"IF(OR(W143=\"1\",AND(W143<>\"1\",G143=Lists!$A$17)),Y143,0)","v":0},null,{"$f":"IF(AND(W143=\"2\",G143<>Lists!$A$17),AA143,Z143)","v":""},"",{"$f":"Planning!AN127","v":{"v":0,"d":"0.00"}},{"$f":"'Month 10'!M143+'Month 10'!N143-'Month 10'!O143","v":{"v":0,"d":"0.00"}},null,"","",{"$f":"SUMIFS($J$25:$J$224,$C$25:$C$224,$C143,$G$25:$G$224,Lists!$A$16)","v":0},0,null,"",null,{"$f":"IF(C143=0,\"\",LEFT(INDEX(Lists!$H$5:$H$49,MATCH(C143,Lists!$G$5:$G$49,0),1),1))","v":""},null,{"$f":"'Month 10'!H143+'Month 10'!I143-'Month 10'!J143","v":0},"","",null,"0"]
[{"$f":"Planning!A128","v":"I120"},{"$f":"Planning!B128","v":0},{"$f":"Planning!C128","v":0},{"$f":"Planning!D128","v":0},{"$f":"Planning!E128","v":0},{"$f":"IF(Planning!G128<>0,Planning!G128,\"\")","v":""},{"$f":"Planning!H128","v":0},{"$f":"Planning!AM128","v":0},{"$f":"IF(OR(W144=\"1\",AND(W144<>\"1\",G144=Lists!$A$17)),Y144,0)","v":0},null,{"$f":"IF(AND(W144=\"2\",G144<>Lists!$A$17),AA144,Z144)","v":""},"",{"$f":"Planning!AN128","v":{"v":0,"d":"0.00"}},{"$f":"'Month 10'!M144+'Month 10'!N144-'Month 10'!O144","v":{"v":0,"d":"0.00"}},null,"","",{"$f":"SUMIFS($J$25:$J$224,$C$25:$C$224,$C144,$G$25:$G$224,Lists!$A$16)","v":0},0,null,"",null,{"$f":"IF(C144=0,\"\",LEFT(INDEX(Lists!$H$5:$H$49,MATCH(C144,Lists!$G$5:$G$49,0),1),1))","v":""},null,{"$f":"'Month 10'!H144+'Month 10'!I144-'Month 10'!J144","v":0},"","",null,"0"]
[{"$f":"Planning!A129","v":"I121"},{"$f":"Planning!B129","v":0},{"$f":"Planning!C129","v":0},{"$f":"Planning!D129","v":0},{"$f":"Planning!E129","v":0},{"$f":"IF(Planning!G129<>0,Planning!G129,\"\")","v":""},{"$f":"Planning!H129","v":0},{"$f":"Planning!AM129","v":0},{"$f":"IF(OR(W145=\"1\",AND(W145<>\"1\",G145=Lists!$A$17)),Y145,0)","v":0},null,{"$f":"IF(AND(W145=\"2\",G145<>Lists!$A$17),AA145,Z145)","v":""},"",{"$f":"Planning!AN129","v":{"v":0,"d":"0.00"}},{"$f":"'Month 10'!M145+'Month 10'!N145-'Month 10'!O145","v":{"v":0,"d":"0.00"}},null,"","",{"$f":"SUMIFS($J$25:$J$224,$C$25:$C$224,$C145,$G$25:$G$224,Lists!$A$16)","v":0},0,null,"",null,{"$f":"IF(C145=0,\"\",LEFT(INDEX(Lists!$H$5:$H$49,MATCH(C145,Lists!$G$5:$G$49,0),1),1))","v":""},null,{"$f":"'Month 10'!H145+'Month 10'!I145-'Month 10'!J145","v":0},"","",null,"0"]
[{"$f":"Planning!A130","v":"I122"},{"$f":"Planning!B130","v":0},{"$f":"Planning!C130","v":0},{"$f":"Planning!D130","v":0},{"$f":"Planning!E130","v":0},{"$f":"IF(Planning!G130<>0,Planning!G130,\"\")","v":""},{"$f":"Planning!H130","v":0},{"$f":"Planning!AM130","v":0},{"$f":"IF(OR(W146=\"1\",AND(W146<>\"1\",G146=Lists!$A$17)),Y146,0)","v":0},null,{"$f":"IF(AND(W146=\"2\",G146<>Lists!$A$17),AA146,Z146)","v":""},"",{"$f":"Planning!AN130","v":{"v":0,"d":"0.00"}},{"$f":"'Month 10'!M146+'Month 10'!N146-'Month 10'!O146","v":{"v":0,"d":"0.00"}},null,"","",{"$f":"SUMIFS($J$25:$J$224,$C$25:$C$224,$C146,$G$25:$G$224,Lists!$A$16)","v":0},0,null,"",null,{"$f":"IF(C146=0,\"\",LEFT(INDEX(Lists!$H$5:$H$49,MATCH(C146,Lists!$G$5:$G$49,0),1),1))","v":""},null,{"$f":"'Month 10'!H146+'Month 10'!I146-'Month 10'!J146","v":0},"","",null,"0"]
[{"$f":"Planning!A131","v":"I123"},{"$f":"Planning!B131","v":0},{"$f":"Planning!C131","v":0},{"$f":"Planning!D131","v":0},{"$f":"Planning!E131","v":0},{"$f":"IF(Planning!G131<>0,Planning!G131,\"\")","v":""},{"$f":"Planning!H131","v":0},{"$f":"Planning!AM131","v":0},{"$f":"IF(OR(W147=\"1\",AND(W147<>\"1\",G147=Lists!$A$17)),Y147,0)","v":0},null,{"$f":"IF(AND(W147=\"2\",G147<>Lists!$A$17),AA147,Z147)","v":""},"",{"$f":"Planning!AN131","v":{"v":0,"d":"0.00"}},{"$f":"'Month 10'!M147+'Month 10'!N147-'Month 10'!O147","v":{"v":0,"d":"0.00"}},null,"","",{"$f":"SUMIFS($J$25:$J$224,$C$25:$C$224,$C147,$G$25:$G$224,Lists!$A$16)","v":0},0,null,"",null,{"$f":"IF(C147=0,\"\",LEFT(INDEX(Lists!$H$5:$H$49,MATCH(C147,Lists!$G$5:$G$49,0),1),1))","v":""},null,{"$f":"'Month 10'!H147+'Month 10'!I147-'Month 10'!J147","v":0},"","",null,"0"]
[{"$f":"Planning!A132","v":"I124"},{"$f":"Planning!B132","v":0},{"$f":"Planning!C132","v":0},{"$f":"Planning!D132","v":0},{"$f":"Planning!E132","v":0},{"$f":"IF(Planning!G132<>0,Planning!G132,\"\")","v":""},{"$f":"Planning!H132","v":0},{"$f":"Planning!AM132","v":0},{"$f":"IF(OR(W148=\"1\",AND(W148<>\"1\",G148=Lists!$A$17)),Y148,0)","v":0},null,{"$f":"IF(AND(W148=\"2\",G148<>Lists!$A$17),AA148,Z148)","v":""},"",{"$f":"Planning!AN132","v":{"v":0,"d":"0.00"}},{"$f":"'Month 10'!M148+'Month 10'!N148-'Month 10'!O148","v":{"v":0,"d":"0.00"}},null,"","",{"$f":"SUMIFS($J$25:$J$224,$C$25:$C$224,$C148,$G$25:$G$224,Lists!$A$16)","v":0},0,null,"",null,{"$f":"IF(C148=0,\"\",LEFT(INDEX(Lists!$H$5:$H$49,MATCH(C148,Lists!$G$5:$G$49,0),1),1))","v":""},null,{"$f":"'Month 10'!H148+'Month 10'!I148-'Month 10'!J148","v":0},"","",null,"0"]
[{"$f":"Planning!A133","v":"I125"},{"$f":"Planning!B133","v":0},{"$f":"Planning!C133","v":0},{"$f":"Planning!D133","v":0},{"$f":"Planning!E133","v":0},{"$f":"IF(Planning!G133<>0,Planning!G133,\"\")","v":""},{"$f":"Planning!H133","v":0},{"$f":"Planning!AM133","v":0},{"$f":"IF(OR(W149=\"1\",AND(W149<>\"1\",G149=Lists!$A$17)),Y149,0)","v":0},null,{"$f":"IF(AND(W149=\"2\",G149<>Lists!$A$17),AA149,Z149)","v":""},"",{"$f":"Planning!AN133","v":{"v":0,"d":"0.00"}},{"$f":"'Month 10'!M149+'Month 10'!N149-'Month 10'!O149","v":{"v":0,"d":"0.00"}},null,"","",{"$f":"SUMIFS($J$25:$J$224,$C$25:$C$224,$C149,$G$25:$G$224,Lists!$A$16)","v":0},0,null,"",null,{"$f":"IF(C149=0,\"\",LEFT(INDEX(Lists!$H$5:$H$49,MATCH(C149,Lists!$G$5:$G$49,0),1),1))","v":""},null,{"$f":"'Month 10'!H149+'Month 10'!I149-'Month 10'!J149","v":0},"","",null,"0"]
[{"$f":"Planning!A134","v":"I126"},{"$f":"Planning!B134","v":0},{"$f":"Planning!C134","v":0},{"$f":"Planning!D134","v":0},{"$f":"Planning!E134","v":0},{"$f":"IF(Planning!G134<>0,Planning!G134,\"\")","v":""},{"$f":"Planning!H134","v":0},{"$f":"Planning!AM134","v":0},{"$f":"IF(OR(W150=\"1\",AND(W150<>\"1\",G150=Lists!$A$17)),Y150,0)","v":0},null,{"$f":"IF(AND(W150=\"2\",G150<>Lists!$A$17),AA150,Z150)","v":""},"",{"$f":"Planning!AN134","v":{"v":0,"d":"0.00"}},{"$f":"'Month 10'!M150+'Month 10'!N150-'Month 10'!O150","v":{"v":0,"d":"0.00"}},null,"","",{"$f":"SUMIFS($J$25:$J$224,$C$25:$C$224,$C150,$G$25:$G$224,Lists!$A$16)","v":0},0,null,"",null,{"$f":"IF(C150=0,\"\",LEFT(INDEX(Lists!$H$5:$H$49,MATCH(C150,Lists!$G$5:$G$49,0),1),1))","v":""},null,{"$f":"'Month 10'!H150+'Month 10'!I150-'Month 10'!J150","v":0},"","",null,"0"]
[{"$f":"Planning!A135","v":"I127"},{"$f":"Planning!B135","v":0},{"$f":"Planning!C135","v":0},{"$f":"Planning!D135","v":0},{"$f":"Planning!E135","v":0},{"$f":"IF(Planning!G135<>0,Planning!G135,\"\")","v":""},{"$f":"Planning!H135","v":0},{"$f":"Planning!AM135","v":0},{"$f":"IF(OR(W151=\"1\",AND(W151<>\"1\",G151=Lists!$A$17)),Y151,0)","v":0},null,{"$f":"IF(AND(W151=\"2\",G151<>Lists!$A$17),AA151,Z151)","v":""},"",{"$f":"Planning!AN135","v":{"v":0,"d":"0.00"}},{"$f":"'Month 10'!M151+'Month 10'!N151-'Month 10'!O151","v":{"v":0,"d":"0.00"}},null,"","",{"$f":"SUMIFS($J$25:$J$224,$C$25:$C$224,$C151,$G$25:$G$224,Lists!$A$16)","v":0},0,null,"",null,{"$f":"IF(C151=0,\"\",LEFT(INDEX(Lists!$H$5:$H$49,MATCH(C151,Lists!$G$5:$G$49,0),1),1))","v":""},null,{"$f":"'Month 10'!H151+'Month 10'!I151-'Month 10'!J151","v":0},"","",null,"0"]
[{"$f":"Planning!A136","v":"I128"},{"$f":"Planning!B136","v":0},{"$f":"Planning!C136","v":0},{"$f":"Planning!D136","v":0},{"$f":"Planning!E136","v":0},{"$f":"IF(Planning!G136<>0,Planning!G136,\"\")","v":""},{"$f":"Planning!H136","v":0},{"$f":"Planning!AM136","v":0},{"$f":"IF(OR(W152=\"1\",AND(W152<>\"1\",G152=Lists!$A$17)),Y152,0)","v":0},null,{"$f":"IF(AND(W152=\"2\",G152<>Lists!$A$17),AA152,Z152)","v":""},"",{"$f":"Planning!AN136","v":{"v":0,"d":"0.00"}},{"$f":"'Month 10'!M152+'Month 10'!N152-'Month 10'!O152","v":{"v":0,"d":"0.00"}},null,"","",{"$f":"SUMIFS($J$25:$J$224,$C$25:$C$224,$C152,$G$25:$G$224,Lists!$A$16)","v":0},0,null,"",null,{"$f":"IF(C152=0,\"\",LEFT(INDEX(Lists!$H$5:$H$49,MATCH(C152,Lists!$G$5:$G$49,0),1),1))","v":""},null,{"$f":"'Month 10'!H152+'Month 10'!I152-'Month 10'!J152","v":0},"","",null,"0"]
[{"$f":"Planning!A137","v":"I129"},{"$f":"Planning!B137","v":0},{"$f":"Planning!C137","v":0},{"$f":"Planning!D137","v":0},{"$f":"Planning!E137","v":0},{"$f":"IF(Planning!G137<>0,Planning!G137,\"\")","v":""},{"$f":"Planning!H137","v":0},{"$f":"Planning!AM137","v":0},{"$f":"IF(OR(W153=\"1\",AND(W153<>\"1\",G153=Lists!$A$17)),Y153,0)","v":0},null,{"$f":"IF(AND(W153=\"2\",G153<>Lists!$A$17),AA153,Z153)","v":""},{"$f":"IF($U153=ExcluirDelPLogro,\"\",IF(AND(H153=0,I153=0,J153=0),\"\",K153))","v":""},{"$f":"Planning!AN137","v":{"v":0,"d":"0.00"}},{"$f":"'Month 10'!M153+'Month 10'!N153-'Month 10'!O153","v":{"v":0,"d":"0.00"}},null,"",{"$f":"IF($U153=ExcluirDelPLogro,\"\",IF(AND(M153=0,N153=0,O153=0),\"\",P153))","v":""},{"$f":"SUMIFS($J$25:$J$224,$C$25:$C$224,$C153,$G$25:$G$224,Lists!$A$16)","v":0},0,null,"",null,{"$f":"IF(C153=0,\"\",LEFT(INDEX(Lists!$H$5:$H$49,MATCH(C153,Lists!$G$5:$G$49,0),1),1))","v":""},null,{"$f":"'Month 10'!H153+'Month 10'!I153-'Month 10'!J153","v":0},"",{"$f":"IF(AND(H153=0,I153=0,J153=0),\"\",IF(J153>0,H153/J153,0))","v":""},null,"0"]
[{"$f":"Planning!A138","v":"I130"},{"$f":"Planning!B138","v":0},{"$f":"Planning!C138","v":0},{"$f":"Planning!D138","v":0},{"$f":"Planning!E138","v":0},{"$f":"IF(Planning!G138<>0,Planning!G138,\"\")","v":""},{"$f":"Planning!H138","v":0},{"$f":"Planning!AM138","v":0},{"$f":"IF(OR(W154=\"1\",AND(W154<>\"1\",G154=Lists!$A$17)),Y154,0)","v":0},null,{"$f":"IF(AND(W154=\"2\",G154<>Lists!$A$17),AA154,Z154)","v":""},"",{"$f":"Planning!AN138","v":{"v":0,"d":"0.00"}},{"$f":"'Month 10'!M154+'Month 10'!N154-'Month 10'!O154","v":{"v":0,"d":"0.00"}},null,{"$f":"IF(AND(M154=0,N154=0,O154=0),\"\",IF((M154+N154)>0,O154/(M154+N154),O154))","v":""},"",{"$f":"SUMIFS($J$25:$J$224,$C$25:$C$224,$C154,$G$25:$G$224,Lists!$A$16)","v":0},{"$f":"SUMIFS($O$25:$O$224,$C$25:$C$224,$C154,$G$25:$G$224,\"<>0\")","v":0},null,{"$f":"IF(B154=0,\"\",IF(LEFT(B154,1)=\"1\",\"1\",\"2\"))","v":""},null,{"$f":"IF(C154=0,\"\",LEFT(INDEX(Lists!$H$5:$H$49,MATCH(C154,Lists!$G$5:$G$49,0),1),1))","v":""},null,{"$f":"'Month 10'!H154+'Month 10'!I154-'Month 10'!J154","v":0},{"$f":"IF(AND(H154=0,I154=0,J154=0),\"\",IF((H154+I154)>0,J154/(H154+I154),J154))","v":""},"",null,{"$f":"U154&C154","v":"0"}]
[{"$f":"Planning!A139","v":"I131"},{"$f":"Planning!B139","v":0},{"$f":"Planning!C139","v":0},{"$f":"Planning!D139","v":0},{"$f":"Planning!E139","v":0},{"$f":"IF(Planning!G139<>0,Planning!G139,\"\")","v":""},{"$f":"Planning!H139","v":0},{"$f":"Planning!AM139","v":0},{"$f":"IF(OR(W155=\"1\",AND(W155<>\"1\",G155=Lists!$A$17)),Y155,0)","v":0},null,{"$f":"IF(AND(W155=\"2\",G155<>Lists!$A$17),AA155,Z155)","v":""},"",{"$f":"Planning!AN139","v":{"v":0,"d":"0.00"}},{"$f":"'Month 10'!M155+'Month 10'!N155-'Month 10'!O155","v":{"v":0,"d":"0.00"}},null,"","",{"$f":"SUMIFS($J$25:$J$224,$C$25:$C$224,$C155,$G$25:$G$224,Lists!$A$16)","v":0},0,null,"",null,{"$f":"IF(C155=0,\"\",LEFT(INDEX(Lists!$H$5:$H$49,MATCH(C155,Lists!$G$5:$G$49,0),1),1))","v":""},null,{"$f":"'Month 10'!H155+'Month 10'!I155-'Month 10'!J155","v":0},"","",null,"0"]
[{"$f":"Planning!A140","v":"I132"},{"$f":"Planning!B140","v":0},{"$f":"Planning!C140","v":0},{"$f":"Planning!D140","v":0},{"$f":"Planning!E140","v":0},{"$f":"IF(Planning!G140<>0,Planning!G140,\"\")","v":""},{"$f":"Planning!H140","v":0},{"$f":"Planning!AM140","v":0},{"$f":"IF(OR(W156=\"1\",AND(W156<>\"1\",G156=Lists!$A$17)),Y156,0)","v":0},null,{"$f":"IF(AND(W156=\"2\",G156<>Lists!$A$17),AA156,Z156)","v":""},"",{"$f":"Planning!AN140","v":{"v":0,"d":"0.00"}},{"$f":"'Month 10'!M156+'Month 10'!N156-'Month 10'!O156","v":{"v":0,"d":"0.00"}},null,"","",{"$f":"SUMIFS($J$25:$J$224,$C$25:$C$224,$C156,$G$25:$G$224,Lists!$A$16)","v":0},0,null,"",null,{"$f":"IF(C156=0,\"\",LEFT(INDEX(Lists!$H$5:$H$49,MATCH(C156,Lists!$G$5:$G$49,0),1),1))","v":""},null,{"$f":"'Month 10'!H156+'Month 10'!I156-'Month 10'!J156","v":0},"","",null,"0"]
[{"$f":"Planning!A141","v":"I133"},{"$f":"Planning!B141","v":0},{"$f":"Planning!C141","v":0},{"$f":"Planning!D141","v":0},{"$f":"Planning!E141","v":0},{"$f":"IF(Planning!G141<>0,Planning!G141,\"\")","v":""},{"$f":"Planning!H141","v":0},{"$f":"Planning!AM141","v":0},{"$f":"IF(OR(W157=\"1\",AND(W157<>\"1\",G157=Lists!$A$17)),Y157,0)","v":0},null,{"$f":"IF(AND(W157=\"2\",G157<>Lists!$A$17),AA157,Z157)","v":""},"",{"$f":"Planning!AN141","v":{"v":0,"d":"0.00"}},{"$f":"'Month 10'!M157+'Month 10'!N157-'Month 10'!O157","v":{"v":0,"d":"0.00"}},null,"","",{"$f":"SUMIFS($J$25:$J$224,$C$25:$C$224,$C157,$G$25:$G$224,Lists!$A$16)","v":0},0,null,"",null,{"$f":"IF(C157=0,\"\",LEFT(INDEX(Lists!$H$5:$H$49,MATCH(C157,Lists!$G$5:$G$49,0),1),1))","v":""},null,{"$f":"'Month 10'!H157+'Month 10'!I157-'Month 10'!J157","v":0},"","",null,"0"]
[{"$f":"Planning!A142","v":"I134"},{"$f":"Planning!B142","v":0},{"$f":"Planning!C142","v":0},{"$f":"Planning!D142","v":0},{"$f":"Planning!E142","v":0},{"$f":"IF(Planning!G142<>0,Planning!G142,\"\")","v":""},{"$f":"Planning!H142","v":0},{"$f":"Planning!AM142","v":0},{"$f":"IF(OR(W158=\"1\",AND(W158<>\"1\",G158=Lists!$A$17)),Y158,0)","v":0},null,{"$f":"IF(AND(W158=\"2\",G158<>Lists!$A$17),AA158,Z158)","v":""},"",{"$f":"Planning!AN142","v":{"v":0,"d":"0.00"}},{"$f":"'Month 10'!M158+'Month 10'!N158-'Month 10'!O158","v":{"v":0,"d":"0.00"}},null,"","",{"$f":"SUMIFS($J$25:$J$224,$C$25:$C$224,$C158,$G$25:$G$224,Lists!$A$16)","v":0},0,null,"",null,{"$f":"IF(C158=0,\"\",LEFT(INDEX(Lists!$H$5:$H$49,MATCH(C158,Lists!$G$5:$G$49,0),1),1))","v":""},null,{"$f":"'Month 10'!H158+'Month 10'!I158-'Month 10'!J158","v":0},"","",null,"0"]
[{"$f":"Planning!A143","v":"I135"},{"$f":"Planning!B143","v":0},{"$f":"Planning!C143","v":0},{"$f":"Planning!D143","v":0},{"$f":"Planning!E143","v":0},{"$f":"IF(Planning!G143<>0,Planning!G143,\"\")","v":""},{"$f":"Planning!H143","v":0},{"$f":"Planning!AM143","v":0},{"$f":"IF(OR(W159=\"1\",AND(W159<>\"1\",G159=Lists!$A$17)),Y159,0)","v":0},null,{"$f":"IF(AND(W159=\"2\",G159<>Lists!$A$17),AA159,Z159)","v":""},"",{"$f":"Planning!AN143","v":{"v":0,"d":"0.00"}},{"$f":"'Month 10'!M159+'Month 10'!N159-'Month 10'!O159","v":{"v":0,"d":"0.00"}},null,"","",{"$f":"SUMIFS($J$25:$J$224,$C$25:$C$224,$C159,$G$25:$G$224,Lists!$A$16)","v":0},0,null,"",null,{"$f":"IF(C159=0,\"\",LEFT(INDEX(Lists!$H$5:$H$49,MATCH(C159,Lists!$G$5:$G$49,0),1),1))","v":""},null,{"$f":"'Month 10'!H159+'Month 10'!I159-'Month 10'!J159","v":0},"","",null,"0"]
[{"$f":"Planning!A144","v":"I136"},{"$f":"Planning!B144","v":0},{"$f":"Planning!C144","v":0},{"$f":"Planning!D144","v":0},{"$f":"Planning!E144","v":0},{"$f":"IF(Planning!G144<>0,Planning!G144,\"\")","v":""},{"$f":"Planning!H144","v":0},{"$f":"Planning!AM144","v":0},{"$f":"IF(OR(W160=\"1\",AND(W160<>\"1\",G160=Lists!$A$17)),Y160,0)","v":0},null,{"$f":"IF(AND(W160=\"2\",G160<>Lists!$A$17),AA160,Z160)","v":""},"",{"$f":"Planning!AN144","v":{"v":0,"d":"0.00"}},{"$f":"'Month 10'!M160+'Month 10'!N160-'Month 10'!O160","v":{"v":0,"d":"0.00"}},null,"","",{"$f":"SUMIFS($J$25:$J$224,$C$25:$C$224,$C160,$G$25:$G$224,Lists!$A$16)","v":0},0,null,"",null,{"$f":"IF(C160=0,\"\",LEFT(INDEX(Lists!$H$5:$H$49,MATCH(C160,Lists!$G$5:$G$49,0),1),1))","v":""},null,{"$f":"'Month 10'!H160+'Month 10'!I160-'Month 10'!J160","v":0},"","",null,"0"]
[{"$f":"Planning!A145","v":"I137"},{"$f":"Planning!B145","v":0},{"$f":"Planning!C145","v":0},{"$f":"Planning!D145","v":0},{"$f":"Planning!E145","v":0},{"$f":"IF(Planning!G145<>0,Planning!G145,\"\")","v":""},{"$f":"Planning!H145","v":0},{"$f":"Planning!AM145","v":0},{"$f":"IF(OR(W161=\"1\",AND(W161<>\"1\",G161=Lists!$A$17)),Y161,0)","v":0},null,{"$f":"IF(AND(W161=\"2\",G161<>Lists!$A$17),AA161,Z161)","v":""},"",{"$f":"Planning!AN145","v":{"v":0,"d":"0.00"}},{"$f":"'Month 10'!M161+'Month 10'!N161-'Month 10'!O161","v":{"v":0,"d":"0.00"}},null,"","",{"$f":"SUMIFS($J$25:$J$224,$C$25:$C$224,$C161,$G$25:$G$224,Lists!$A$16)","v":0},0,null,"",null,{"$f":"IF(C161=0,\"\",LEFT(INDEX(Lists!$H$5:$H$49,MATCH(C161,Lists!$G$5:$G$49,0),1),1))","v":""},null,{"$f":"'Month 10'!H161+'Month 10'!I161-'Month 10'!J161","v":0},"","",null,"0"]
[{"$f":"Planning!A146","v":"I138"},{"$f":"Planning!B146","v":0},{"$f":"Planning!C146","v":0},{"$f":"Planning!D146","v":0},{"$f":"Planning!E146","v":0},{"$f":"IF(Planning!G146<>0,Planning!G146,\"\")","v":""},{"$f":"Planning!H146","v":0},{"$f":"Planning!AM146","v":0},{"$f":"IF(OR(W162=\"1\",AND(W162<>\"1\",G162=Lists!$A$17)),Y162,0)","v":0},null,{"$f":"IF(AND(W162=\"2\",G162<>Lists!$A$17),AA162,Z162)","v":""},"",{"$f":"Planning!AN146","v":{"v":0,"d":"0.00"}},{"$f":"'Month 10'!M162+'Month 10'!N162-'Month 10'!O162","v":{"v":0,"d":"0.00"}},null,"","",{"$f":"SUMIFS($J$25:$J$224,$C$25:$C$224,$C162,$G$25:$G$224,Lists!$A$16)","v":0},0,null,"",null,{"$f":"IF(C162=0,\"\",LEFT(INDEX(Lists!$H$5:$H$49,MATCH(C162,Lists!$G$5:$G$49,0),1),1))","v":""},null,{"$f":"'Month 10'!H162+'Month 10'!I162-'Month 10'!J162","v":0},"","",null,"0"]
[{"$f":"Planning!A147","v":"I139"},{"$f":"Planning!B147","v":0},{"$f":"Planning!C147","v":0},{"$f":"Planning!D147","v":0},{"$f":"Planning!E147","v":0},{"$f":"IF(Planning!G147<>0,Planning!G147,\"\")","v":""},{"$f":"Planning!H147","v":0},{"$f":"Planning!AM147","v":0},{"$f":"IF(OR(W163=\"1\",AND(W163<>\"1\",G163=Lists!$A$17)),Y163,0)","v":0},null,{"$f":"IF(AND(W163=\"2\",G163<>Lists!$A$17),AA163,Z163)","v":""},"",{"$f":"Planning!AN147","v":{"v":0,"d":"0.00"}},{"$f":"'Month 10'!M163+'Month 10'!N163-'Month 10'!O163","v":{"v":0,"d":"0.00"}},null,"","",{"$f":"SUMIFS($J$25:$J$224,$C$25:$C$224,$C163,$G$25:$G$224,Lists!$A$16)","v":0},0,null,"",null,{"$f":"IF(C163=0,\"\",LEFT(INDEX(Lists!$H$5:$H$49,MATCH(C163,Lists!$G$5:$G$49,0),1),1))","v":""},null,{"$f":"'Month 10'!H163+'Month 10'!I163-'Month 10'!J163","v":0},"","",null,"0"]
[{"$f":"Planning!A148","v":"I140"},{"$f":"Planning!B148","v":0},{"$f":"Planning!C148","v":0},{"$f":"Planning!D148","v":0},{"$f":"Planning!E148","v":0},{"$f":"IF(Planning!G148<>0,Planning!G148,\"\")","v":""},{"$f":"Planning!H148","v":0},{"$f":"Planning!AM148","v":0},{"$f":"IF(OR(W164=\"1\",AND(W164<>\"1\",G164=Lists!$A$17)),Y164,0)","v":0},null,{"$f":"IF(AND(W164=\"2\",G164<>Lists!$A$17),AA164,Z164)","v":""},"",{"$f":"Planning!AN148","v":{"v":0,"d":"0.00"}},{"$f":"'Month 10'!M164+'Month 10'!N164-'Month 10'!O164","v":{"v":0,"d":"0.00"}},null,"","",{"$f":"SUMIFS($J$25:$J$224,$C$25:$C$224,$C164,$G$25:$G$224,Lists!$A$16)","v":0},0,null,"",null,{"$f":"IF(C164=0,\"\",LEFT(INDEX(Lists!$H$5:$H$49,MATCH(C164,Lists!$G$5:$G$49,0),1),1))","v":""},null,{"$f":"'Month 10'!H164+'Month 10'!I164-'Month 10'!J164","v":0},"","",null,"0"]
[{"$f":"Planning!A149","v":"I141"},{"$f":"Planning!B149","v":0},{"$f":"Planning!C149","v":0},{"$f":"Planning!D149","v":0},{"$f":"Planning!E149","v":0},{"$f":"IF(Planning!G149<>0,Planning!G149,\"\")","v":""},{"$f":"Planning!H149","v":0},{"$f":"Planning!AM149","v":0},{"$f":"IF(OR(W165=\"1\",AND(W165<>\"1\",G165=Lists!$A$17)),Y165,0)","v":0},null,{"$f":"IF(AND(W165=\"2\",G165<>Lists!$A$17),AA165,Z165)","v":""},"",{"$f":"Planning!AN149","v":{"v":0,"d":"0.00"}},{"$f":"'Month 10'!M165+'Month 10'!N165-'Month 10'!O165","v":{"v":0,"d":"0.00"}},null,"","",{"$f":"SUMIFS($J$25:$J$224,$C$25:$C$224,$C165,$G$25:$G$224,Lists!$A$16)","v":0},0,null,"",null,{"$f":"IF(C165=0,\"\",LEFT(INDEX(Lists!$H$5:$H$49,MATCH(C165,Lists!$G$5:$G$49,0),1),1))","v":""},null,{"$f":"'Month 10'!H165+'Month 10'!I165-'Month 10'!J165","v":0},"","",null,"0"]
[{"$f":"Planning!A150","v":"I142"},{"$f":"Planning!B150","v":0},{"$f":"Planning!C150","v":0},{"$f":"Planning!D150","v":0},{"$f":"Planning!E150","v":0},{"$f":"IF(Planning!G150<>0,Planning!G150,\"\")","v":""},{"$f":"Planning!H150","v":0},{"$f":"Planning!AM150","v":0},{"$f":"IF(OR(W166=\"1\",AND(W166<>\"1\",G166=Lists!$A$17)),Y166,0)","v":0},null,{"$f":"IF(AND(W166=\"2\",G166<>Lists!$A$17),AA166,Z166)","v":""},"",{"$f":"Planning!AN150","v":{"v":0,"d":"0.00"}},{"$f":"'Month 10'!M166+'Month 10'!N166-'Month 10'!O166","v":{"v":0,"d":"0.00"}},null,"","",{"$f":"SUMIFS($J$25:$J$224,$C$25:$C$224,$C166,$G$25:$G$224,Lists!$A$16)","v":0},0,null,"",null,{"$f":"IF(C166=0,\"\",LEFT(INDEX(Lists!$H$5:$H$49,MATCH(C166,Lists!$G$5:$G$49,0),1),1))","v":""},null,{"$f":"'Month 10'!H166+'Month 10'!I166-'Month 10'!J166","v":0},"","",null,"0"]
[{"$f":"Planning!A151","v":"I143"},{"$f":"Planning!B151","v":0},{"$f":"Planning!C151","v":0},{"$f":"Planning!D151","v":0},{"$f":"Planning!E151","v":0},{"$f":"IF(Planning!G151<>0,Planning!G151,\"\")","v":""},{"$f":"Planning!H151","v":0},{"$f":"Planning!AM151","v":0},{"$f":"IF(OR(W167=\"1\",AND(W167<>\"1\",G167=Lists!$A$17)),Y167,0)","v":0},null,{"$f":"IF(AND(W167=\"2\",G167<>Lists!$A$17),AA167,Z167)","v":""},"",{"$f":"Planning!AN151","v":{"v":0,"d":"0.00"}},{"$f":"'Month 10'!M167+'Month 10'!N167-'Month 10'!O167","v":{"v":0,"d":"0.00"}},null,"","",{"$f":"SUMIFS($J$25:$J$224,$C$25:$C$224,$C167,$G$25:$G$224,Lists!$A$16)","v":0},0,null,"",null,{"$f":"IF(C167=0,\"\",LEFT(INDEX(Lists!$H$5:$H$49,MATCH(C167,Lists!$G$5:$G$49,0),1),1))","v":""},null,{"$f":"'Month 10'!H167+'Month 10'!I167-'Month 10'!J167","v":0},"","",null,"0"]
[{"$f":"Planning!A152","v":"I144"},{"$f":"Planning!B152","v":0},{"$f":"Planning!C152","v":0},{"$f":"Planning!D152","v":0},{"$f":"Planning!E152","v":0},{"$f":"IF(Planning!G152<>0,Planning!G152,\"\")","v":""},{"$f":"Planning!H152","v":0},{"$f":"Planning!AM152","v":0},{"$f":"IF(OR(W168=\"1\",AND(W168<>\"1\",G168=Lists!$A$17)),Y168,0)","v":0},null,{"$f":"IF(AND(W168=\"2\",G168<>Lists!$A$17),AA168,Z168)","v":""},"",{"$f":"Planning!AN152","v":{"v":0,"d":"0.00"}},{"$f":"'Month 10'!M168+'Month 10'!N168-'Month 10'!O168","v":{"v":0,"d":"0.00"}},null,"","",{"$f":"SUMIFS($J$25:$J$224,$C$25:$C$224,$C168,$G$25:$G$224,Lists!$A$16)","v":0},0,null,"",null,{"$f":"IF(C168=0,\"\",LEFT(INDEX(Lists!$H$5:$H$49,MATCH(C168,Lists!$G$5:$G$49,0),1),1))","v":""},null,{"$f":"'Month 10'!H168+'Month 10'!I168-'Month 10'!J168","v":0},"","",null,"0"]
[{"$f":"Planning!A153","v":"I145"},{"$f":"Planning!B153","v":0},{"$f":"Planning!C153","v":0},{"$f":"Planning!D153","v":0},{"$f":"Planning!E153","v":0},{"$f":"IF(Planning!G153<>0,Planning!G153,\"\")","v":""},{"$f":"Planning!H153","v":0},{"$f":"Planning!AM153","v":0},{"$f":"IF(OR(W169=\"1\",AND(W169<>\"1\",G169=Lists!$A$17)),Y169,0)","v":0},null,{"$f":"IF(AND(W169=\"2\",G169<>Lists!$A$17),AA169,Z169)","v":""},"",{"$f":"Planning!AN153","v":{"v":0,"d":"0.00"}},{"$f":"'Month 10'!M169+'Month 10'!N169-'Month 10'!O169","v":{"v":0,"d":"0.00"}},null,"","",{"$f":"SUMIFS($J$25:$J$224,$C$25:$C$224,$C169,$G$25:$G$224,Lists!$A$16)","v":0},0,null,"",null,{"$f":"IF(C169=0,\"\",LEFT(INDEX(Lists!$H$5:$H$49,MATCH(C169,Lists!$G$5:$G$49,0),1),1))","v":""},null,{"$f":"'Month 10'!H169+'Month 10'!I169-'Month 10'!J169","v":0},"","",null,"0"]
[{"$f":"Planning!A154","v":"I146"},{"$f":"Planning!B154","v":0},{"$f":"Planning!C154","v":0},{"$f":"Planning!D154","v":0},{"$f":"Planning!E154","v":0},{"$f":"IF(Planning!G154<>0,Planning!G154,\"\")","v":""},{"$f":"Planning!H154","v":0},{"$f":"Planning!AM154","v":0},{"$f":"IF(OR(W170=\"1\",AND(W170<>\"1\",G170=Lists!$A$17)),Y170,0)","v":0},null,{"$f":"IF(AND(W170=\"2\",G170<>Lists!$A$17),AA170,Z170)","v":""},"",{"$f":"Planning!AN154","v":{"v":0,"d":"0.00"}},{"$f":"'Month 10'!M170+'Month 10'!N170-'Month 10'!O170","v":{"v":0,"d":"0.00"}},null,"","",{"$f":"SUMIFS($J$25:$J$224,$C$25:$C$224,$C170,$G$25:$G$224,Lists!$A$16)","v":0},0,null,"",null,{"$f":"IF(C170=0,\"\",LEFT(INDEX(Lists!$H$5:$H$49,MATCH(C170,Lists!$G$5:$G$49,0),1),1))","v":""},null,{"$f":"'Month 10'!H170+'Month 10'!I170-'Month 10'!J170","v":0},"","",null,"0"]
[{"$f":"Planning!A155","v":"I147"},{"$f":"Planning!B155","v":0},{"$f":"Planning!C155","v":0},{"$f":"Planning!D155","v":0},{"$f":"Planning!E155","v":0},{"$f":"IF(Planning!G155<>0,Planning!G155,\"\")","v":""},{"$f":"Planning!H155","v":0},{"$f":"Planning!AM155","v":0},{"$f":"IF(OR(W171=\"1\",AND(W171<>\"1\",G171=Lists!$A$17)),Y171,0)","v":0},null,{"$f":"IF(AND(W171=\"2\",G171<>Lists!$A$17),AA171,Z171)","v":""},"",{"$f":"Planning!AN155","v":{"v":0,"d":"0.00"}},{"$f":"'Month 10'!M171+'Month 10'!N171-'Month 10'!O171","v":{"v":0,"d":"0.00"}},null,"","",{"$f":"SUMIFS($J$25:$J$224,$C$25:$C$224,$C171,$G$25:$G$224,Lists!$A$16)","v":0},0,null,"",null,{"$f":"IF(C171=0,\"\",LEFT(INDEX(Lists!$H$5:$H$49,MATCH(C171,Lists!$G$5:$G$49,0),1),1))","v":""},null,{"$f":"'Month 10'!H171+'Month 10'!I171-'Month 10'!J171","v":0},"","",null,"0"]
[{"$f":"Planning!A156","v":"I148"},{"$f":"Planning!B156","v":0},{"$f":"Planning!C156","v":0},{"$f":"Planning!D156","v":0},{"$f":"Planning!E156","v":0},{"$f":"IF(Planning!G156<>0,Planning!G156,\"\")","v":""},{"$f":"Planning!H156","v":0},{"$f":"Planning!AM156","v":0},{"$f":"IF(OR(W172=\"1\",AND(W172<>\"1\",G172=Lists!$A$17)),Y172,0)","v":0},null,{"$f":"IF(AND(W172=\"2\",G172<>Lists!$A$17),AA172,Z172)","v":""},"",{"$f":"Planning!AN156","v":{"v":0,"d":"0.00"}},{"$f":"'Month 10'!M172+'Month 10'!N172-'Month 10'!O172","v":{"v":0,"d":"0.00"}},null,"","",{"$f":"SUMIFS($J$25:$J$224,$C$25:$C$224,$C172,$G$25:$G$224,Lists!$A$16)","v":0},0,null,"",null,{"$f":"IF(C172=0,\"\",LEFT(INDEX(Lists!$H$5:$H$49,MATCH(C172,Lists!$G$5:$G$49,0),1),1))","v":""},null,{"$f":"'Month 10'!H172+'Month 10'!I172-'Month 10'!J172","v":0},"","",null,"0"]
[{"$f":"Planning!A157","v":"I149"},{"$f":"Planning!B157","v":0},{"$f":"Planning!C157","v":0},{"$f":"Planning!D157","v":0},{"$f":"Planning!E157","v":0},{"$f":"IF(Planning!G157<>0,Planning!G157,\"\")","v":""},{"$f":"Planning!H157","v":0},{"$f":"Planning!AM157","v":0},{"$f":"IF(OR(W173=\"1\",AND(W173<>\"1\",G173=Lists!$A$17)),Y173,0)","v":0},null,{"$f":"IF(AND(W173=\"2\",G173<>Lists!$A$17),AA173,Z173)","v":""},"",{"$f":"Planning!AN157","v":{"v":0,"d":"0.00"}},{"$f":"'Month 10'!M173+'Month 10'!N173-'Month 10'!O173","v":{"v":0,"d":"0.00"}},null,"","",{"$f":"SUMIFS($J$25:$J$224,$C$25:$C$224,$C173,$G$25:$G$224,Lists!$A$16)","v":0},0,null,"",null,{"$f":"IF(C173=0,\"\",LEFT(INDEX(Lists!$H$5:$H$49,MATCH(C173,Lists!$G$5:$G$49,0),1),1))","v":""},null,{"$f":"'Month 10'!H173+'Month 10'!I173-'Month 10'!J173","v":0},"","",null,"0"]
[{"$f":"Planning!A158","v":"I150"},{"$f":"Planning!B158","v":0},{"$f":"Planning!C158","v":0},{"$f":"Planning!D158","v":0},{"$f":"Planning!E158","v":0},{"$f":"IF(Planning!G158<>0,Planning!G158,\"\")","v":""},{"$f":"Planning!H158","v":0},{"$f":"Planning!AM158","v":0},{"$f":"IF(OR(W174=\"1\",AND(W174<>\"1\",G174=Lists!$A$17)),Y174,0)","v":0},null,{"$f":"IF(AND(W174=\"2\",G174<>Lists!$A$17),AA174,Z174)","v":""},"",{"$f":"Planning!AN158","v":{"v":0,"d":"0.00"}},{"$f":"'Month 10'!M174+'Month 10'!N174-'Month 10'!O174","v":{"v":0,"d":"0.00"}},null,"","",{"$f":"SUMIFS($J$25:$J$224,$C$25:$C$224,$C174,$G$25:$G$224,Lists!$A$16)","v":0},0,null,"",null,{"$f":"IF(C174=0,\"\",LEFT(INDEX(Lists!$H$5:$H$49,MATCH(C174,Lists!$G$5:$G$49,0),1),1))","v":""},null,{"$f":"'Month 10'!H174+'Month 10'!I174-'Month 10'!J174","v":0},"","",null,"0"]
[{"$f":"Planning!A159","v":"I151"},{"$f":"Planning!B159","v":0},{"$f":"Planning!C159","v":0},{"$f":"Planning!D159","v":0},{"$f":"Planning!E159","v":0},{"$f":"IF(Planning!G159<>0,Planning!G159,\"\")","v":""},{"$f":"Planning!H159","v":0},{"$f":"Planning!AM159","v":0},{"$f":"IF(OR(W175=\"1\",AND(W175<>\"1\",G175=Lists!$A$17)),Y175,0)","v":0},null,{"$f":"IF(AND(W175=\"2\",G175<>Lists!$A$17),AA175,Z175)","v":""},"",{"$f":"Planning!AN159","v":{"v":0,"d":"0.00"}},{"$f":"'Month 10'!M175+'Month 10'!N175-'Month 10'!O175","v":{"v":0,"d":"0.00"}},null,"","",{"$f":"SUMIFS($J$25:$J$224,$C$25:$C$224,$C175,$G$25:$G$224,Lists!$A$16)","v":0},0,null,"",null,{"$f":"IF(C175=0,\"\",LEFT(INDEX(Lists!$H$5:$H$49,MATCH(C175,Lists!$G$5:$G$49,0),1),1))","v":""},null,{"$f":"'Month 10'!H175+'Month 10'!I175-'Month 10'!J175","v":0},"","",null,"0"]
[{"$f":"Planning!A160","v":"I152"},{"$f":"Planning!B160","v":0},{"$f":"Planning!C160","v":0},{"$f":"Planning!D160","v":0},{"$f":"Planning!E160","v":0},{"$f":"IF(Planning!G160<>0,Planning!G160,\"\")","v":""},{"$f":"Planning!H160","v":0},{"$f":"Planning!AM160","v":0},{"$f":"IF(OR(W176=\"1\",AND(W176<>\"1\",G176=Lists!$A$17)),Y176,0)","v":0},null,{"$f":"IF(AND(W176=\"2\",G176<>Lists!$A$17),AA176,Z176)","v":""},"",{"$f":"Planning!AN160","v":{"v":0,"d":"0.00"}},{"$f":"'Month 10'!M176+'Month 10'!N176-'Month 10'!O176","v":{"v":0,"d":"0.00"}},null,"","",{"$f":"SUMIFS($J$25:$J$224,$C$25:$C$224,$C176,$G$25:$G$224,Lists!$A$16)","v":0},0,null,"",null,{"$f":"IF(C176=0,\"\",LEFT(INDEX(Lists!$H$5:$H$49,MATCH(C176,Lists!$G$5:$G$49,0),1),1))","v":""},null,{"$f":"'Month 10'!H176+'Month 10'!I176-'Month 10'!J176","v":0},"","",null,"0"]
[{"$f":"Planning!A161","v":"I153"},{"$f":"Planning!B161","v":0},{"$f":"Planning!C161","v":0},{"$f":"Planning!D161","v":0},{"$f":"Planning!E161","v":0},{"$f":"IF(Planning!G161<>0,Planning!G161,\"\")","v":""},{"$f":"Planning!H161","v":0},{"$f":"Planning!AM161","v":0},{"$f":"IF(OR(W177=\"1\",AND(W177<>\"1\",G177=Lists!$A$17)),Y177,0)","v":0},null,{"$f":"IF(AND(W177=\"2\",G177<>Lists!$A$17),AA177,Z177)","v":""},"",{"$f":"Planning!AN161","v":{"v":0,"d":"0.00"}},{"$f":"'Month 10'!M177+'Month 10'!N177-'Month 10'!O177","v":{"v":0,"d":"0.00"}},null,"","",{"$f":"SUMIFS($J$25:$J$224,$C$25:$C$224,$C177,$G$25:$G$224,Lists!$A$16)","v":0},0,null,"",null,{"$f":"IF(C177=0,\"\",LEFT(INDEX(Lists!$H$5:$H$49,MATCH(C177,Lists!$G$5:$G$49,0),1),1))","v":""},null,{"$f":"'Month 10'!H177+'Month 10'!I177-'Month 10'!J177","v":0},"","",null,"0"]
[{"$f":"Planning!A162","v":"I154"},{"$f":"Planning!B162","v":0},{"$f":"Planning!C162","v":0},{"$f":"Planning!D162","v":0},{"$f":"Planning!E162","v":0},{"$f":"IF(Planning!G162<>0,Planning!G162,\"\")","v":""},{"$f":"Planning!H162","v":0},{"$f":"Planning!AM162","v":0},{"$f":"IF(OR(W178=\"1\",AND(W178<>\"1\",G178=Lists!$A$17)),Y178,0)","v":0},null,{"$f":"IF(AND(W178=\"2\",G178<>Lists!$A$17),AA178,Z178)","v":""},"",{"$f":"Planning!AN162","v":{"v":0,"d":"0.00"}},{"$f":"'Month 10'!M178+'Month 10'!N178-'Month 10'!O178","v":{"v":0,"d":"0.00"}},null,"","",{"$f":"SUMIFS($J$25:$J$224,$C$25:$C$224,$C178,$G$25:$G$224,Lists!$A$16)","v":0},0,null,"",null,{"$f":"IF(C178=0,\"\",LEFT(INDEX(Lists!$H$5:$H$49,MATCH(C178,Lists!$G$5:$G$49,0),1),1))","v":""},null,{"$f":"'Month 10'!H178+'Month 10'!I178-'Month 10'!J178","v":0},"","",null,"0"]
[{"$f":"Planning!A163","v":"I155"},{"$f":"Planning!B163","v":0},{"$f":"Planning!C163","v":0},{"$f":"Planning!D163","v":0},{"$f":"Planning!E163","v":0},{"$f":"IF(Planning!G163<>0,Planning!G163,\"\")","v":""},{"$f":"Planning!H163","v":0},{"$f":"Planning!AM163","v":0},{"$f":"IF(OR(W179=\"1\",AND(W179<>\"1\",G179=Lists!$A$17)),Y179,0)","v":0},null,{"$f":"IF(AND(W179=\"2\",G179<>Lists!$A$17),AA179,Z179)","v":""},"",{"$f":"Planning!AN163","v":{"v":0,"d":"0.00"}},{"$f":"'Month 10'!M179+'Month 10'!N179-'Month 10'!O179","v":{"v":0,"d":"0.00"}},null,"","",{"$f":"SUMIFS($J$25:$J$224,$C$25:$C$224,$C179,$G$25:$G$224,Lists!$A$16)","v":0},0,null,"",null,{"$f":"IF(C179=0,\"\",LEFT(INDEX(Lists!$H$5:$H$49,MATCH(C179,Lists!$G$5:$G$49,0),1),1))","v":""},null,{"$f":"'Month 10'!H179+'Month 10'!I179-'Month 10'!J179","v":0},"","",null,"0"]
[{"$f":"Planning!A164","v":"I156"},{"$f":"Planning!B164","v":0},{"$f":"Planning!C164","v":0},{"$f":"Planning!D164","v":0},{"$f":"Planning!E164","v":0},{"$f":"IF(Planning!G164<>0,Planning!G164,\"\")","v":""},{"$f":"Planning!H164","v":0},{"$f":"Planning!AM164","v":0},{"$f":"IF(OR(W180=\"1\",AND(W180<>\"1\",G180=Lists!$A$17)),Y180,0)","v":0},null,{"$f":"IF(AND(W180=\"2\",G180<>Lists!$A$17),AA180,Z180)","v":""},"",{"$f":"Planning!AN164","v":{"v":0,"d":"0.00"}},{"$f":"'Month 10'!M180+'Month 10'!N180-'Month 10'!O180","v":{"v":0,"d":"0.00"}},null,"","",{"$f":"SUMIFS($J$25:$J$224,$C$25:$C$224,$C180,$G$25:$G$224,Lists!$A$16)","v":0},0,null,"",null,{"$f":"IF(C180=0,\"\",LEFT(INDEX(Lists!$H$5:$H$49,MATCH(C180,Lists!$G$5:$G$49,0),1),1))","v":""},null,{"$f":"'Month 10'!H180+'Month 10'!I180-'Month 10'!J180","v":0},"","",null,"0"]
[{"$f":"Planning!A165","v":"I157"},{"$f":"Planning!B165","v":0},{"$f":"Planning!C165","v":0},{"$f":"Planning!D165","v":0},{"$f":"Planning!E165","v":0},{"$f":"IF(Planning!G165<>0,Planning!G165,\"\")","v":""},{"$f":"Planning!H165","v":0},{"$f":"Planning!AM165","v":0},{"$f":"IF(OR(W181=\"1\",AND(W181<>\"1\",G181=Lists!$A$17)),Y181,0)","v":0},null,{"$f":"IF(AND(W181=\"2\",G181<>Lists!$A$17),AA181,Z181)","v":""},"",{"$f":"Planning!AN165","v":{"v":0,"d":"0.00"}},{"$f":"'Month 10'!M181+'Month 10'!N181-'Month 10'!O181","v":{"v":0,"d":"0.00"}},null,"","",{"$f":"SUMIFS($J$25:$J$224,$C$25:$C$224,$C181,$G$25:$G$224,Lists!$A$16)","v":0},0,null,"",null,{"$f":"IF(C181=0,\"\",LEFT(INDEX(Lists!$H$5:$H$49,MATCH(C181,Lists!$G$5:$G$49,0),1),1))","v":""},null,{"$f":"'Month 10'!H181+'Month 10'!I181-'Month 10'!J181","v":0},"","",null,"0"]
[{"$f":"Planning!A166","v":"I158"},{"$f":"Planning!B166","v":0},{"$f":"Planning!C166","v":0},{"$f":"Planning!D166","v":0},{"$f":"Planning!E166","v":0},{"$f":"IF(Planning!G166<>0,Planning!G166,\"\")","v":""},{"$f":"Planning!H166","v":0},{"$f":"Planning!AM166","v":0},{"$f":"IF(OR(W182=\"1\",AND(W182<>\"1\",G182=Lists!$A$17)),Y182,0)","v":0},null,{"$f":"IF(AND(W182=\"2\",G182<>Lists!$A$17),AA182,Z182)","v":""},"",{"$f":"Planning!AN166","v":{"v":0,"d":"0.00"}},{"$f":"'Month 10'!M182+'Month 10'!N182-'Month 10'!O182","v":{"v":0,"d":"0.00"}},null,"","",{"$f":"SUMIFS($J$25:$J$224,$C$25:$C$224,$C182,$G$25:$G$224,Lists!$A$16)","v":0},0,null,"",null,{"$f":"IF(C182=0,\"\",LEFT(INDEX(Lists!$H$5:$H$49,MATCH(C182,Lists!$G$5:$G$49,0),1),1))","v":""},null,{"$f":"'Month 10'!H182+'Month 10'!I182-'Month 10'!J182","v":0},"","",null,"0"]
[{"$f":"Planning!A167","v":"I159"},{"$f":"Planning!B167","v":0},{"$f":"Planning!C167","v":0},{"$f":"Planning!D167","v":0},{"$f":"Planning!E167","v":0},{"$f":"IF(Planning!G167<>0,Planning!G167,\"\")","v":""},{"$f":"Planning!H167","v":0},{"$f":"Planning!AM167","v":0},{"$f":"IF(OR(W183=\"1\",AND(W183<>\"1\",G183=Lists!$A$17)),Y183,0)","v":0},null,{"$f":"IF(AND(W183=\"2\",G183<>Lists!$A$17),AA183,Z183)","v":""},"",{"$f":"Planning!AN167","v":{"v":0,"d":"0.00"}},{"$f":"'Month 10'!M183+'Month 10'!N183-'Month 10'!O183","v":{"v":0,"d":"0.00"}},null,"","",{"$f":"SUMIFS($J$25:$J$224,$C$25:$C$224,$C183,$G$25:$G$224,Lists!$A$16)","v":0},0,null,"",null,{"$f":"IF(C183=0,\"\",LEFT(INDEX(Lists!$H$5:$H$49,MATCH(C183,Lists!$G$5:$G$49,0),1),1))","v":""},null,{"$f":"'Month 10'!H183+'Month 10'!I183-'Month 10'!J183","v":0},"","",null,"0"]
[{"$f":"Planning!A168","v":"I160"},{"$f":"Planning!B168","v":0},{"$f":"Planning!C168","v":0},{"$f":"Planning!D168","v":0},{"$f":"Planning!E168","v":0},{"$f":"IF(Planning!G168<>0,Planning!G168,\"\")","v":""},{"$f":"Planning!H168","v":0},{"$f":"Planning!AM168","v":0},{"$f":"IF(OR(W184=\"1\",AND(W184<>\"1\",G184=Lists!$A$17)),Y184,0)","v":0},null,{"$f":"IF(AND(W184=\"2\",G184<>Lists!$A$17),AA184,Z184)","v":""},"",{"$f":"Planning!AN168","v":{"v":0,"d":"0.00"}},{"$f":"'Month 10'!M184+'Month 10'!N184-'Month 10'!O184","v":{"v":0,"d":"0.00"}},null,"","",{"$f":"SUMIFS($J$25:$J$224,$C$25:$C$224,$C184,$G$25:$G$224,Lists!$A$16)","v":0},0,null,"",null,{"$f":"IF(C184=0,\"\",LEFT(INDEX(Lists!$H$5:$H$49,MATCH(C184,Lists!$G$5:$G$49,0),1),1))","v":""},null,{"$f":"'Month 10'!H184+'Month 10'!I184-'Month 10'!J184","v":0},"","",null,"0"]
[{"$f":"Planning!A169","v":"I161"},{"$f":"Planning!B169","v":0},{"$f":"Planning!C169","v":0},{"$f":"Planning!D169","v":0},{"$f":"Planning!E169","v":0},{"$f":"IF(Planning!G169<>0,Planning!G169,\"\")","v":""},{"$f":"Planning!H169","v":0},{"$f":"Planning!AM169","v":0},{"$f":"IF(OR(W185=\"1\",AND(W185<>\"1\",G185=Lists!$A$17)),Y185,0)","v":0},null,{"$f":"IF(AND(W185=\"2\",G185<>Lists!$A$17),AA185,Z185)","v":""},{"$f":"IF($U185=ExcluirDelPLogro,\"\",IF(AND(H185=0,I185=0,J185=0),\"\",K185))","v":""},{"$f":"Planning!AN169","v":{"v":0,"d":"0.00"}},{"$f":"'Month 10'!M185+'Month 10'!N185-'Month 10'!O185","v":{"v":0,"d":"0.00"}},null,"",{"$f":"IF($U185=ExcluirDelPLogro,\"\",IF(AND(M185=0,N185=0,O185=0),\"\",P185))","v":""},{"$f":"SUMIFS($J$25:$J$224,$C$25:$C$224,$C185,$G$25:$G$224,Lists!$A$16)","v":0},0,null,"",null,{"$f":"IF(C185=0,\"\",LEFT(INDEX(Lists!$H$5:$H$49,MATCH(C185,Lists!$G$5:$G$49,0),1),1))","v":""},null,{"$f":"'Month 10'!H185+'Month 10'!I185-'Month 10'!J185","v":0},"",{"$f":"IF(AND(H185=0,I185=0,J185=0),\"\",IF(J185>0,H185/J185,0))","v":""},null,"0"]
[{"$f":"Planning!A170","v":"I162"},{"$f":"Planning!B170","v":0},{"$f":"Planning!C170","v":0},{"$f":"Planning!D170","v":0},{"$f":"Planning!E170","v":0},{"$f":"IF(Planning!G170<>0,Planning!G170,\"\")","v":""},{"$f":"Planning!H170","v":0},{"$f":"Planning!AM170","v":0},{"$f":"IF(OR(W186=\"1\",AND(W186<>\"1\",G186=Lists!$A$17)),Y186,0)","v":0},null,{"$f":"IF(AND(W186=\"2\",G186<>Lists!$A$17),AA186,Z186)","v":""},"",{"$f":"Planning!AN170","v":{"v":0,"d":"0.00"}},{"$f":"'Month 10'!M186+'Month 10'!N186-'Month 10'!O186","v":{"v":0,"d":"0.00"}},null,"","",{"$f":"SUMIFS($J$25:$J$224,$C$25:$C$224,$C186,$G$25:$G$224,Lists!$A$16)","v":0},0,null,"",null,{"$f":"IF(C186=0,\"\",LEFT(INDEX(Lists!$H$5:$H$49,MATCH(C186,Lists!$G$5:$G$49,0),1),1))","v":""},null,{"$f":"'Month 10'!H186+'Month 10'!I186-'Month 10'!J186","v":0},"","",null,"0"]
[{"$f":"Planning!A171","v":"I163"},{"$f":"Planning!B171","v":0},{"$f":"Planning!C171","v":0},{"$f":"Planning!D171","v":0},{"$f":"Planning!E171","v":0},{"$f":"IF(Planning!G171<>0,Planning!G171,\"\")","v":""},{"$f":"Planning!H171","v":0},{"$f":"Planning!AM171","v":0},{"$f":"IF(OR(W187=\"1\",AND(W187<>\"1\",G187=Lists!$A$17)),Y187,0)","v":0},null,{"$f":"IF(AND(W187=\"2\",G187<>Lists!$A$17),AA187,Z187)","v":""},"",{"$f":"Planning!AN171","v":{"v":0,"d":"0.00"}},{"$f":"'Month 10'!M187+'Month 10'!N187-'Month 10'!O187","v":{"v":0,"d":"0.00"}},null,"","",{"$f":"SUMIFS($J$25:$J$224,$C$25:$C$224,$C187,$G$25:$G$224,Lists!$A$16)","v":0},0,null,"",null,{"$f":"IF(C187=0,\"\",LEFT(INDEX(Lists!$H$5:$H$49,MATCH(C187,Lists!$G$5:$G$49,0),1),1))","v":""},null,{"$f":"'Month 10'!H187+'Month 10'!I187-'Month 10'!J187","v":0},"","",null,"0"]
[{"$f":"Planning!A172","v":"I164"},{"$f":"Planning!B172","v":0},{"$f":"Planning!C172","v":0},{"$f":"Planning!D172","v":0},{"$f":"Planning!E172","v":0},{"$f":"IF(Planning!G172<>0,Planning!G172,\"\")","v":""},{"$f":"Planning!H172","v":0},{"$f":"Planning!AM172","v":0},{"$f":"IF(OR(W188=\"1\",AND(W188<>\"1\",G188=Lists!$A$17)),Y188,0)","v":0},null,{"$f":"IF(AND(W188=\"2\",G188<>Lists!$A$17),AA188,Z188)","v":""},"",{"$f":"Planning!AN172","v":{"v":0,"d":"0.00"}},{"$f":"'Month 10'!M188+'Month 10'!N188-'Month 10'!O188","v":{"v":0,"d":"0.00"}},null,"","",{"$f":"SUMIFS($J$25:$J$224,$C$25:$C$224,$C188,$G$25:$G$224,Lists!$A$16)","v":0},0,null,"",null,{"$f":"IF(C188=0,\"\",LEFT(INDEX(Lists!$H$5:$H$49,MATCH(C188,Lists!$G$5:$G$49,0),1),1))","v":""},null,{"$f":"'Month 10'!H188+'Month 10'!I188-'Month 10'!J188","v":0},"","",null,"0"]
[{"$f":"Planning!A173","v":"I165"},{"$f":"Planning!B173","v":0},{"$f":"Planning!C173","v":0},{"$f":"Planning!D173","v":0},{"$f":"Planning!E173","v":0},{"$f":"IF(Planning!G173<>0,Planning!G173,\"\")","v":""},{"$f":"Planning!H173","v":0},{"$f":"Planning!AM173","v":0},{"$f":"IF(OR(W189=\"1\",AND(W189<>\"1\",G189=Lists!$A$17)),Y189,0)","v":0},null,{"$f":"IF(AND(W189=\"2\",G189<>Lists!$A$17),AA189,Z189)","v":""},"",{"$f":"Planning!AN173","v":{"v":0,"d":"0.00"}},{"$f":"'Month 10'!M189+'Month 10'!N189-'Month 10'!O189","v":{"v":0,"d":"0.00"}},null,"","",{"$f":"SUMIFS($J$25:$J$224,$C$25:$C$224,$C189,$G$25:$G$224,Lists!$A$16)","v":0},0,null,"",null,{"$f":"IF(C189=0,\"\",LEFT(INDEX(Lists!$H$5:$H$49,MATCH(C189,Lists!$G$5:$G$49,0),1),1))","v":""},null,{"$f":"'Month 10'!H189+'Month 10'!I189-'Month 10'!J189","v":0},"","",null,"0"]
[{"$f":"Planning!A174","v":"I166"},{"$f":"Planning!B174","v":0},{"$f":"Planning!C174","v":0},{"$f":"Planning!D174","v":0},{"$f":"Planning!E174","v":0},{"$f":"IF(Planning!G174<>0,Planning!G174,\"\")","v":""},{"$f":"Planning!H174","v":0},{"$f":"Planning!AM174","v":0},{"$f":"IF(OR(W190=\"1\",AND(W190<>\"1\",G190=Lists!$A$17)),Y190,0)","v":0},null,{"$f":"IF(AND(W190=\"2\",G190<>Lists!$A$17),AA190,Z190)","v":""},"",{"$f":"Planning!AN174","v":{"v":0,"d":"0.00"}},{"$f":"'Month 10'!M190+'Month 10'!N190-'Month 10'!O190","v":{"v":0,"d":"0.00"}},null,"","",{"$f":"SUMIFS($J$25:$J$224,$C$25:$C$224,$C190,$G$25:$G$224,Lists!$A$16)","v":0},0,null,"",null,{"$f":"IF(C190=0,\"\",LEFT(INDEX(Lists!$H$5:$H$49,MATCH(C190,Lists!$G$5:$G$49,0),1),1))","v":""},null,{"$f":"'Month 10'!H190+'Month 10'!I190-'Month 10'!J190","v":0},"","",null,"0"]
[{"$f":"Planning!A175","v":"I167"},{"$f":"Planning!B175","v":0},{"$f":"Planning!C175","v":0},{"$f":"Planning!D175","v":0},{"$f":"Planning!E175","v":0},{"$f":"IF(Planning!G175<>0,Planning!G175,\"\")","v":""},{"$f":"Planning!H175","v":0},{"$f":"Planning!AM175","v":0},{"$f":"IF(OR(W191=\"1\",AND(W191<>\"1\",G191=Lists!$A$17)),Y191,0)","v":0},null,{"$f":"IF(AND(W191=\"2\",G191<>Lists!$A$17),AA191,Z191)","v":""},"",{"$f":"Planning!AN175","v":{"v":0,"d":"0.00"}},{"$f":"'Month 10'!M191+'Month 10'!N191-'Month 10'!O191","v":{"v":0,"d":"0.00"}},null,"","",{"$f":"SUMIFS($J$25:$J$224,$C$25:$C$224,$C191,$G$25:$G$224,Lists!$A$16)","v":0},0,null,"",null,{"$f":"IF(C191=0,\"\",LEFT(INDEX(Lists!$H$5:$H$49,MATCH(C191,Lists!$G$5:$G$49,0),1),1))","v":""},null,{"$f":"'Month 10'!H191+'Month 10'!I191-'Month 10'!J191","v":0},"","",null,"0"]
[{"$f":"Planning!A176","v":"I168"},{"$f":"Planning!B176","v":0},{"$f":"Planning!C176","v":0},{"$f":"Planning!D176","v":0},{"$f":"Planning!E176","v":0},{"$f":"IF(Planning!G176<>0,Planning!G176,\"\")","v":""},{"$f":"Planning!H176","v":0},{"$f":"Planning!AM176","v":0},{"$f":"IF(OR(W192=\"1\",AND(W192<>\"1\",G192=Lists!$A$17)),Y192,0)","v":0},null,{"$f":"IF(AND(W192=\"2\",G192<>Lists!$A$17),AA192,Z192)","v":""},"",{"$f":"Planning!AN176","v":{"v":0,"d":"0.00"}},{"$f":"'Month 10'!M192+'Month 10'!N192-'Month 10'!O192","v":{"v":0,"d":"0.00"}},null,"","",{"$f":"SUMIFS($J$25:$J$224,$C$25:$C$224,$C192,$G$25:$G$224,Lists!$A$16)","v":0},0,null,"",null,{"$f":"IF(C192=0,\"\",LEFT(INDEX(Lists!$H$5:$H$49,MATCH(C192,Lists!$G$5:$G$49,0),1),1))","v":""},null,{"$f":"'Month 10'!H192+'Month 10'!I192-'Month 10'!J192","v":0},"","",null,"0"]
[{"$f":"Planning!A177","v":"I169"},{"$f":"Planning!B177","v":0},{"$f":"Planning!C177","v":0},{"$f":"Planning!D177","v":0},{"$f":"Planning!E177","v":0},{"$f":"IF(Planning!G177<>0,Planning!G177,\"\")","v":""},{"$f":"Planning!H177","v":0},{"$f":"Planning!AM177","v":0},{"$f":"IF(OR(W193=\"1\",AND(W193<>\"1\",G193=Lists!$A$17)),Y193,0)","v":0},null,{"$f":"IF(AND(W193=\"2\",G193<>Lists!$A$17),AA193,Z193)","v":""},"",{"$f":"Planning!AN177","v":{"v":0,"d":"0.00"}},{"$f":"'Month 10'!M193+'Month 10'!N193-'Month 10'!O193","v":{"v":0,"d":"0.00"}},null,"","",{"$f":"SUMIFS($J$25:$J$224,$C$25:$C$224,$C193,$G$25:$G$224,Lists!$A$16)","v":0},0,null,"",null,{"$f":"IF(C193=0,\"\",LEFT(INDEX(Lists!$H$5:$H$49,MATCH(C193,Lists!$G$5:$G$49,0),1),1))","v":""},null,{"$f":"'Month 10'!H193+'Month 10'!I193-'Month 10'!J193","v":0},"","",null,"0"]
[{"$f":"Planning!A178","v":"I170"},{"$f":"Planning!B178","v":0},{"$f":"Planning!C178","v":0},{"$f":"Planning!D178","v":0},{"$f":"Planning!E178","v":0},{"$f":"IF(Planning!G178<>0,Planning!G178,\"\")","v":""},{"$f":"Planning!H178","v":0},{"$f":"Planning!AM178","v":0},{"$f":"IF(OR(W194=\"1\",AND(W194<>\"1\",G194=Lists!$A$17)),Y194,0)","v":0},null,{"$f":"IF(AND(W194=\"2\",G194<>Lists!$A$17),AA194,Z194)","v":""},"",{"$f":"Planning!AN178","v":{"v":0,"d":"0.00"}},{"$f":"'Month 10'!M194+'Month 10'!N194-'Month 10'!O194","v":{"v":0,"d":"0.00"}},null,"","",{"$f":"SUMIFS($J$25:$J$224,$C$25:$C$224,$C194,$G$25:$G$224,Lists!$A$16)","v":0},0,null,"",null,{"$f":"IF(C194=0,\"\",LEFT(INDEX(Lists!$H$5:$H$49,MATCH(C194,Lists!$G$5:$G$49,0),1),1))","v":""},null,{"$f":"'Month 10'!H194+'Month 10'!I194-'Month 10'!J194","v":0},"","",null,"0"]
[{"$f":"Planning!A179","v":"I171"},{"$f":"Planning!B179","v":0},{"$f":"Planning!C179","v":0},{"$f":"Planning!D179","v":0},{"$f":"Planning!E179","v":0},{"$f":"IF(Planning!G179<>0,Planning!G179,\"\")","v":""},{"$f":"Planning!H179","v":0},{"$f":"Planning!AM179","v":0},{"$f":"IF(OR(W195=\"1\",AND(W195<>\"1\",G195=Lists!$A$17)),Y195,0)","v":0},null,{"$f":"IF(AND(W195=\"2\",G195<>Lists!$A$17),AA195,Z195)","v":""},"",{"$f":"Planning!AN179","v":{"v":0,"d":"0.00"}},{"$f":"'Month 10'!M195+'Month 10'!N195-'Month 10'!O195","v":{"v":0,"d":"0.00"}},null,"","",{"$f":"SUMIFS($J$25:$J$224,$C$25:$C$224,$C195,$G$25:$G$224,Lists!$A$16)","v":0},0,null,"",null,{"$f":"IF(C195=0,\"\",LEFT(INDEX(Lists!$H$5:$H$49,MATCH(C195,Lists!$G$5:$G$49,0),1),1))","v":""},null,{"$f":"'Month 10'!H195+'Month 10'!I195-'Month 10'!J195","v":0},"","",null,"0"]
[{"$f":"Planning!A180","v":"I172"},{"$f":"Planning!B180","v":0},{"$f":"Planning!C180","v":0},{"$f":"Planning!D180","v":0},{"$f":"Planning!E180","v":0},{"$f":"IF(Planning!G180<>0,Planning!G180,\"\")","v":""},{"$f":"Planning!H180","v":0},{"$f":"Planning!AM180","v":0},{"$f":"IF(OR(W196=\"1\",AND(W196<>\"1\",G196=Lists!$A$17)),Y196,0)","v":0},null,{"$f":"IF(AND(W196=\"2\",G196<>Lists!$A$17),AA196,Z196)","v":""},"",{"$f":"Planning!AN180","v":{"v":0,"d":"0.00"}},{"$f":"'Month 10'!M196+'Month 10'!N196-'Month 10'!O196","v":{"v":0,"d":"0.00"}},null,"","",{"$f":"SUMIFS($J$25:$J$224,$C$25:$C$224,$C196,$G$25:$G$224,Lists!$A$16)","v":0},0,null,"",null,{"$f":"IF(C196=0,\"\",LEFT(INDEX(Lists!$H$5:$H$49,MATCH(C196,Lists!$G$5:$G$49,0),1),1))","v":""},null,{"$f":"'Month 10'!H196+'Month 10'!I196-'Month 10'!J196","v":0},"","",null,"0"]
[{"$f":"Planning!A181","v":"I173"},{"$f":"Planning!B181","v":0},{"$f":"Planning!C181","v":0},{"$f":"Planning!D181","v":0},{"$f":"Planning!E181","v":0},{"$f":"IF(Planning!G181<>0,Planning!G181,\"\")","v":""},{"$f":"Planning!H181","v":0},{"$f":"Planning!AM181","v":0},{"$f":"IF(OR(W197=\"1\",AND(W197<>\"1\",G197=Lists!$A$17)),Y197,0)","v":0},null,{"$f":"IF(AND(W197=\"2\",G197<>Lists!$A$17),AA197,Z197)","v":""},"",{"$f":"Planning!AN181","v":{"v":0,"d":"0.00"}},{"$f":"'Month 10'!M197+'Month 10'!N197-'Month 10'!O197","v":{"v":0,"d":"0.00"}},null,"","",{"$f":"SUMIFS($J$25:$J$224,$C$25:$C$224,$C197,$G$25:$G$224,Lists!$A$16)","v":0},0,null,"",null,{"$f":"IF(C197=0,\"\",LEFT(INDEX(Lists!$H$5:$H$49,MATCH(C197,Lists!$G$5:$G$49,0),1),1))","v":""},null,{"$f":"'Month 10'!H197+'Month 10'!I197-'Month 10'!J197","v":0},"","",null,"0"]
[{"$f":"Planning!A182","v":"I174"},{"$f":"Planning!B182","v":0},{"$f":"Planning!C182","v":0},{"$f":"Planning!D182","v":0},{"$f":"Planning!E182","v":0},{"$f":"IF(Planning!G182<>0,Planning!G182,\"\")","v":""},{"$f":"Planning!H182","v":0},{"$f":"Planning!AM182","v":0},{"$f":"IF(OR(W198=\"1\",AND(W198<>\"1\",G198=Lists!$A$17)),Y198,0)","v":0},null,{"$f":"IF(AND(W198=\"2\",G198<>Lists!$A$17),AA198,Z198)","v":""},"",{"$f":"Planning!AN182","v":{"v":0,"d":"0.00"}},{"$f":"'Month 10'!M198+'Month 10'!N198-'Month 10'!O198","v":{"v":0,"d":"0.00"}},null,"","",{"$f":"SUMIFS($J$25:$J$224,$C$25:$C$224,$C198,$G$25:$G$224,Lists!$A$16)","v":0},0,null,"",null,{"$f":"IF(C198=0,\"\",LEFT(INDEX(Lists!$H$5:$H$49,MATCH(C198,Lists!$G$5:$G$49,0),1),1))","v":""},null,{"$f":"'Month 10'!H198+'Month 10'!I198-'Month 10'!J198","v":0},"","",null,"0"]
[{"$f":"Planning!A183","v":"I175"},{"$f":"Planning!B183","v":0},{"$f":"Planning!C183","v":0},{"$f":"Planning!D183","v":0},{"$f":"Planning!E183","v":0},{"$f":"IF(Planning!G183<>0,Planning!G183,\"\")","v":""},{"$f":"Planning!H183","v":0},{"$f":"Planning!AM183","v":0},{"$f":"IF(OR(W199=\"1\",AND(W199<>\"1\",G199=Lists!$A$17)),Y199,0)","v":0},null,{"$f":"IF(AND(W199=\"2\",G199<>Lists!$A$17),AA199,Z199)","v":""},"",{"$f":"Planning!AN183","v":{"v":0,"d":"0.00"}},{"$f":"'Month 10'!M199+'Month 10'!N199-'Month 10'!O199","v":{"v":0,"d":"0.00"}},null,"","",{"$f":"SUMIFS($J$25:$J$224,$C$25:$C$224,$C199,$G$25:$G$224,Lists!$A$16)","v":0},0,null,"",null,{"$f":"IF(C199=0,\"\",LEFT(INDEX(Lists!$H$5:$H$49,MATCH(C199,Lists!$G$5:$G$49,0),1),1))","v":""},null,{"$f":"'Month 10'!H199+'Month 10'!I199-'Month 10'!J199","v":0},"","",null,"0"]
[{"$f":"Planning!A184","v":"I176"},{"$f":"Planning!B184","v":0},{"$f":"Planning!C184","v":0},{"$f":"Planning!D184","v":0},{"$f":"Planning!E184","v":0},{"$f":"IF(Planning!G184<>0,Planning!G184,\"\")","v":""},{"$f":"Planning!H184","v":0},{"$f":"Planning!AM184","v":0},{"$f":"IF(OR(W200=\"1\",AND(W200<>\"1\",G200=Lists!$A$17)),Y200,0)","v":0},null,{"$f":"IF(AND(W200=\"2\",G200<>Lists!$A$17),AA200,Z200)","v":""},"",{"$f":"Planning!AN184","v":{"v":0,"d":"0.00"}},{"$f":"'Month 10'!M200+'Month 10'!N200-'Month 10'!O200","v":{"v":0,"d":"0.00"}},null,"","",{"$f":"SUMIFS($J$25:$J$224,$C$25:$C$224,$C200,$G$25:$G$224,Lists!$A$16)","v":0},0,null,"",null,{"$f":"IF(C200=0,\"\",LEFT(INDEX(Lists!$H$5:$H$49,MATCH(C200,Lists!$G$5:$G$49,0),1),1))","v":""},null,{"$f":"'Month 10'!H200+'Month 10'!I200-'Month 10'!J200","v":0},"","",null,"0"]
[{"$f":"Planning!A185","v":"I177"},{"$f":"Planning!B185","v":0},{"$f":"Planning!C185","v":0},{"$f":"Planning!D185","v":0},{"$f":"Planning!E185","v":0},{"$f":"IF(Planning!G185<>0,Planning!G185,\"\")","v":""},{"$f":"Planning!H185","v":0},{"$f":"Planning!AM185","v":0},{"$f":"IF(OR(W201=\"1\",AND(W201<>\"1\",G201=Lists!$A$17)),Y201,0)","v":0},null,{"$f":"IF(AND(W201=\"2\",G201<>Lists!$A$17),AA201,Z201)","v":""},"",{"$f":"Planning!AN185","v":{"v":0,"d":"0.00"}},{"$f":"'Month 10'!M201+'Month 10'!N201-'Month 10'!O201","v":{"v":0,"d":"0.00"}},null,"","",{"$f":"SUMIFS($J$25:$J$224,$C$25:$C$224,$C201,$G$25:$G$224,Lists!$A$16)","v":0},0,null,"",null,{"$f":"IF(C201=0,\"\",LEFT(INDEX(Lists!$H$5:$H$49,MATCH(C201,Lists!$G$5:$G$49,0),1),1))","v":""},null,{"$f":"'Month 10'!H201+'Month 10'!I201-'Month 10'!J201","v":0},"","",null,"0"]
[{"$f":"Planning!A186","v":"I178"},{"$f":"Planning!B186","v":0},{"$f":"Planning!C186","v":0},{"$f":"Planning!D186","v":0},{"$f":"Planning!E186","v":0},{"$f":"IF(Planning!G186<>0,Planning!G186,\"\")","v":""},{"$f":"Planning!H186","v":0},{"$f":"Planning!AM186","v":0},{"$f":"IF(OR(W202=\"1\",AND(W202<>\"1\",G202=Lists!$A$17)),Y202,0)","v":0},null,{"$f":"IF(AND(W202=\"2\",G202<>Lists!$A$17),AA202,Z202)","v":""},"",{"$f":"Planning!AN186","v":{"v":0,"d":"0.00"}},{"$f":"'Month 10'!M202+'Month 10'!N202-'Month 10'!O202","v":{"v":0,"d":"0.00"}},null,"","",{"$f":"SUMIFS($J$25:$J$224,$C$25:$C$224,$C202,$G$25:$G$224,Lists!$A$16)","v":0},0,null,"",null,{"$f":"IF(C202=0,\"\",LEFT(INDEX(Lists!$H$5:$H$49,MATCH(C202,Lists!$G$5:$G$49,0),1),1))","v":""},null,{"$f":"'Month 10'!H202+'Month 10'!I202-'Month 10'!J202","v":0},"","",null,"0"]
[{"$f":"Planning!A187","v":"I179"},{"$f":"Planning!B187","v":0},{"$f":"Planning!C187","v":0},{"$f":"Planning!D187","v":0},{"$f":"Planning!E187","v":0},{"$f":"IF(Planning!G187<>0,Planning!G187,\"\")","v":""},{"$f":"Planning!H187","v":0},{"$f":"Planning!AM187","v":0},{"$f":"IF(OR(W203=\"1\",AND(W203<>\"1\",G203=Lists!$A$17)),Y203,0)","v":0},null,{"$f":"IF(AND(W203=\"2\",G203<>Lists!$A$17),AA203,Z203)","v":""},"",{"$f":"Planning!AN187","v":{"v":0,"d":"0.00"}},{"$f":"'Month 10'!M203+'Month 10'!N203-'Month 10'!O203","v":{"v":0,"d":"0.00"}},null,"","",{"$f":"SUMIFS($J$25:$J$224,$C$25:$C$224,$C203,$G$25:$G$224,Lists!$A$16)","v":0},0,null,"",null,{"$f":"IF(C203=0,\"\",LEFT(INDEX(Lists!$H$5:$H$49,MATCH(C203,Lists!$G$5:$G$49,0),1),1))","v":""},null,{"$f":"'Month 10'!H203+'Month 10'!I203-'Month 10'!J203","v":0},"","",null,"0"]
[{"$f":"Planning!A188","v":"I180"},{"$f":"Planning!B188","v":0},{"$f":"Planning!C188","v":0},{"$f":"Planning!D188","v":0},{"$f":"Planning!E188","v":0},{"$f":"IF(Planning!G188<>0,Planning!G188,\"\")","v":""},{"$f":"Planning!H188","v":0},{"$f":"Planning!AM188","v":0},{"$f":"IF(OR(W204=\"1\",AND(W204<>\"1\",G204=Lists!$A$17)),Y204,0)","v":0},null,{"$f":"IF(AND(W204=\"2\",G204<>Lists!$A$17),AA204,Z204)","v":""},"",{"$f":"Planning!AN188","v":{"v":0,"d":"0.00"}},{"$f":"'Month 10'!M204+'Month 10'!N204-'Month 10'!O204","v":{"v":0,"d":"0.00"}},null,"","",{"$f":"SUMIFS($J$25:$J$224,$C$25:$C$224,$C204,$G$25:$G$224,Lists!$A$16)","v":0},0,null,"",null,{"$f":"IF(C204=0,\"\",LEFT(INDEX(Lists!$H$5:$H$49,MATCH(C204,Lists!$G$5:$G$49,0),1),1))","v":""},null,{"$f":"'Month 10'!H204+'Month 10'!I204-'Month 10'!J204","v":0},"","",null,"0"]
[{"$f":"Planning!A189","v":"I181"},{"$f":"Planning!B189","v":0},{"$f":"Planning!C189","v":0},{"$f":"Planning!D189","v":0},{"$f":"Planning!E189","v":0},{"$f":"IF(Planning!G189<>0,Planning!G189,\"\")","v":""},{"$f":"Planning!H189","v":0},{"$f":"Planning!AM189","v":0},{"$f":"IF(OR(W205=\"1\",AND(W205<>\"1\",G205=Lists!$A$17)),Y205,0)","v":0},null,{"$f":"IF(AND(W205=\"2\",G205<>Lists!$A$17),AA205,Z205)","v":""},"",{"$f":"Planning!AN189","v":{"v":0,"d":"0.00"}},{"$f":"'Month 10'!M205+'Month 10'!N205-'Month 10'!O205","v":{"v":0,"d":"0.00"}},null,"","",{"$f":"SUMIFS($J$25:$J$224,$C$25:$C$224,$C205,$G$25:$G$224,Lists!$A$16)","v":0},0,null,"",null,{"$f":"IF(C205=0,\"\",LEFT(INDEX(Lists!$H$5:$H$49,MATCH(C205,Lists!$G$5:$G$49,0),1),1))","v":""},null,{"$f":"'Month 10'!H205+'Month 10'!I205-'Month 10'!J205","v":0},"","",null,"0"]
[{"$f":"Planning!A190","v":"I182"},{"$f":"Planning!B190","v":0},{"$f":"Planning!C190","v":0},{"$f":"Planning!D190","v":0},{"$f":"Planning!E190","v":0},{"$f":"IF(Planning!G190<>0,Planning!G190,\"\")","v":""},{"$f":"Planning!H190","v":0},{"$f":"Planning!AM190","v":0},{"$f":"IF(OR(W206=\"1\",AND(W206<>\"1\",G206=Lists!$A$17)),Y206,0)","v":0},null,{"$f":"IF(AND(W206=\"2\",G206<>Lists!$A$17),AA206,Z206)","v":""},"",{"$f":"Planning!AN190","v":{"v":0,"d":"0.00"}},{"$f":"'Month 10'!M206+'Month 10'!N206-'Month 10'!O206","v":{"v":0,"d":"0.00"}},null,"","",{"$f":"SUMIFS($J$25:$J$224,$C$25:$C$224,$C206,$G$25:$G$224,Lists!$A$16)","v":0},0,null,"",null,{"$f":"IF(C206=0,\"\",LEFT(INDEX(Lists!$H$5:$H$49,MATCH(C206,Lists!$G$5:$G$49,0),1),1))","v":""},null,{"$f":"'Month 10'!H206+'Month 10'!I206-'Month 10'!J206","v":0},"","",null,"0"]
[{"$f":"Planning!A191","v":"I183"},{"$f":"Planning!B191","v":0},{"$f":"Planning!C191","v":0},{"$f":"Planning!D191","v":0},{"$f":"Planning!E191","v":0},{"$f":"IF(Planning!G191<>0,Planning!G191,\"\")","v":""},{"$f":"Planning!H191","v":0},{"$f":"Planning!AM191","v":0},{"$f":"IF(OR(W207=\"1\",AND(W207<>\"1\",G207=Lists!$A$17)),Y207,0)","v":0},null,{"$f":"IF(AND(W207=\"2\",G207<>Lists!$A$17),AA207,Z207)","v":""},"",{"$f":"Planning!AN191","v":{"v":0,"d":"0.00"}},{"$f":"'Month 10'!M207+'Month 10'!N207-'Month 10'!O207","v":{"v":0,"d":"0.00"}},null,"","",{"$f":"SUMIFS($J$25:$J$224,$C$25:$C$224,$C207,$G$25:$G$224,Lists!$A$16)","v":0},0,null,"",null,{"$f":"IF(C207=0,\"\",LEFT(INDEX(Lists!$H$5:$H$49,MATCH(C207,Lists!$G$5:$G$49,0),1),1))","v":""},null,{"$f":"'Month 10'!H207+'Month 10'!I207-'Month 10'!J207","v":0},"","",null,"0"]
[{"$f":"Planning!A192","v":"I184"},{"$f":"Planning!B192","v":0},{"$f":"Planning!C192","v":0},{"$f":"Planning!D192","v":0},{"$f":"Planning!E192","v":0},{"$f":"IF(Planning!G192<>0,Planning!G192,\"\")","v":""},{"$f":"Planning!H192","v":0},{"$f":"Planning!AM192","v":0},{"$f":"IF(OR(W208=\"1\",AND(W208<>\"1\",G208=Lists!$A$17)),Y208,0)","v":0},null,{"$f":"IF(AND(W208=\"2\",G208<>Lists!$A$17),AA208,Z208)","v":""},"",{"$f":"Planning!AN192","v":{"v":0,"d":"0.00"}},{"$f":"'Month 10'!M208+'Month 10'!N208-'Month 10'!O208","v":{"v":0,"d":"0.00"}},null,"","",{"$f":"SUMIFS($J$25:$J$224,$C$25:$C$224,$C208,$G$25:$G$224,Lists!$A$16)","v":0},0,null,"",null,{"$f":"IF(C208=0,\"\",LEFT(INDEX(Lists!$H$5:$H$49,MATCH(C208,Lists!$G$5:$G$49,0),1),1))","v":""},null,{"$f":"'Month 10'!H208+'Month 10'!I208-'Month 10'!J208","v":0},"","",null,"0"]
[{"$f":"Planning!A193","v":"I185"},{"$f":"Planning!B193","v":0},{"$f":"Planning!C193","v":0},{"$f":"Planning!D193","v":0},{"$f":"Planning!E193","v":0},{"$f":"IF(Planning!G193<>0,Planning!G193,\"\")","v":""},{"$f":"Planning!H193","v":0},{"$f":"Planning!AM193","v":0},{"$f":"IF(OR(W209=\"1\",AND(W209<>\"1\",G209=Lists!$A$17)),Y209,0)","v":0},null,{"$f":"IF(AND(W209=\"2\",G209<>Lists!$A$17),AA209,Z209)","v":""},"",{"$f":"Planning!AN193","v":{"v":0,"d":"0.00"}},{"$f":"'Month 10'!M209+'Month 10'!N209-'Month 10'!O209","v":{"v":0,"d":"0.00"}},null,"","",{"$f":"SUMIFS($J$25:$J$224,$C$25:$C$224,$C209,$G$25:$G$224,Lists!$A$16)","v":0},0,null,"",null,{"$f":"IF(C209=0,\"\",LEFT(INDEX(Lists!$H$5:$H$49,MATCH(C209,Lists!$G$5:$G$49,0),1),1))","v":""},null,{"$f":"'Month 10'!H209+'Month 10'!I209-'Month 10'!J209","v":0},"","",null,"0"]
[{"$f":"Planning!A194","v":"I186"},{"$f":"Planning!B194","v":0},{"$f":"Planning!C194","v":0},{"$f":"Planning!D194","v":0},{"$f":"Planning!E194","v":0},{"$f":"IF(Planning!G194<>0,Planning!G194,\"\")","v":""},{"$f":"Planning!H194","v":0},{"$f":"Planning!AM194","v":0},{"$f":"IF(OR(W210=\"1\",AND(W210<>\"1\",G210=Lists!$A$17)),Y210,0)","v":0},null,{"$f":"IF(AND(W210=\"2\",G210<>Lists!$A$17),AA210,Z210)","v":""},"",{"$f":"Planning!AN194","v":{"v":0,"d":"0.00"}},{"$f":"'Month 10'!M210+'Month 10'!N210-'Month 10'!O210","v":{"v":0,"d":"0.00"}},null,"","",{"$f":"SUMIFS($J$25:$J$224,$C$25:$C$224,$C210,$G$25:$G$224,Lists!$A$16)","v":0},0,null,"",null,{"$f":"IF(C210=0,\"\",LEFT(INDEX(Lists!$H$5:$H$49,MATCH(C210,Lists!$G$5:$G$49,0),1),1))","v":""},null,{"$f":"'Month 10'!H210+'Month 10'!I210-'Month 10'!J210","v":0},"","",null,"0"]
[{"$f":"Planning!A195","v":"I187"},{"$f":"Planning!B195","v":0},{"$f":"Planning!C195","v":0},{"$f":"Planning!D195","v":0},{"$f":"Planning!E195","v":0},{"$f":"IF(Planning!G195<>0,Planning!G195,\"\")","v":""},{"$f":"Planning!H195","v":0},{"$f":"Planning!AM195","v":0},{"$f":"IF(OR(W211=\"1\",AND(W211<>\"1\",G211=Lists!$A$17)),Y211,0)","v":0},null,{"$f":"IF(AND(W211=\"2\",G211<>Lists!$A$17),AA211,Z211)","v":""},"",{"$f":"Planning!AN195","v":{"v":0,"d":"0.00"}},{"$f":"'Month 10'!M211+'Month 10'!N211-'Month 10'!O211","v":{"v":0,"d":"0.00"}},null,"","",{"$f":"SUMIFS($J$25:$J$224,$C$25:$C$224,$C211,$G$25:$G$224,Lists!$A$16)","v":0},0,null,"",null,{"$f":"IF(C211=0,\"\",LEFT(INDEX(Lists!$H$5:$H$49,MATCH(C211,Lists!$G$5:$G$49,0),1),1))","v":""},null,{"$f":"'Month 10'!H211+'Month 10'!I211-'Month 10'!J211","v":0},"","",null,"0"]
[{"$f":"Planning!A196","v":"I188"},{"$f":"Planning!B196","v":0},{"$f":"Planning!C196","v":0},{"$f":"Planning!D196","v":0},{"$f":"Planning!E196","v":0},{"$f":"IF(Planning!G196<>0,Planning!G196,\"\")","v":""},{"$f":"Planning!H196","v":0},{"$f":"Planning!AM196","v":0},{"$f":"IF(OR(W212=\"1\",AND(W212<>\"1\",G212=Lists!$A$17)),Y212,0)","v":0},null,{"$f":"IF(AND(W212=\"2\",G212<>Lists!$A$17),AA212,Z212)","v":""},"",{"$f":"Planning!AN196","v":{"v":0,"d":"0.00"}},{"$f":"'Month 10'!M212+'Month 10'!N212-'Month 10'!O212","v":{"v":0,"d":"0.00"}},null,"","",{"$f":"SUMIFS($J$25:$J$224,$C$25:$C$224,$C212,$G$25:$G$224,Lists!$A$16)","v":0},0,null,"",null,{"$f":"IF(C212=0,\"\",LEFT(INDEX(Lists!$H$5:$H$49,MATCH(C212,Lists!$G$5:$G$49,0),1),1))","v":""},null,{"$f":"'Month 10'!H212+'Month 10'!I212-'Month 10'!J212","v":0},"","",null,"0"]
[{"$f":"Planning!A197","v":"I189"},{"$f":"Planning!B197","v":0},{"$f":"Planning!C197","v":0},{"$f":"Planning!D197","v":0},{"$f":"Planning!E197","v":0},{"$f":"IF(Planning!G197<>0,Planning!G197,\"\")","v":""},{"$f":"Planning!H197","v":0},{"$f":"Planning!AM197","v":0},{"$f":"IF(OR(W213=\"1\",AND(W213<>\"1\",G213=Lists!$A$17)),Y213,0)","v":0},null,{"$f":"IF(AND(W213=\"2\",G213<>Lists!$A$17),AA213,Z213)","v":""},"",{"$f":"Planning!AN197","v":{"v":0,"d":"0.00"}},{"$f":"'Month 10'!M213+'Month 10'!N213-'Month 10'!O213","v":{"v":0,"d":"0.00"}},null,"","",{"$f":"SUMIFS($J$25:$J$224,$C$25:$C$224,$C213,$G$25:$G$224,Lists!$A$16)","v":0},0,null,"",null,{"$f":"IF(C213=0,\"\",LEFT(INDEX(Lists!$H$5:$H$49,MATCH(C213,Lists!$G$5:$G$49,0),1),1))","v":""},null,{"$f":"'Month 10'!H213+'Month 10'!I213-'Month 10'!J213","v":0},"","",null,"0"]
[{"$f":"Planning!A198","v":"I190"},{"$f":"Planning!B198","v":0},{"$f":"Planning!C198","v":0},{"$f":"Planning!D198","v":0},{"$f":"Planning!E198","v":0},{"$f":"IF(Planning!G198<>0,Planning!G198,\"\")","v":""},{"$f":"Planning!H198","v":0},{"$f":"Planning!AM198","v":0},{"$f":"IF(OR(W214=\"1\",AND(W214<>\"1\",G214=Lists!$A$17)),Y214,0)","v":0},null,{"$f":"IF(AND(W214=\"2\",G214<>Lists!$A$17),AA214,Z214)","v":""},"",{"$f":"Planning!AN198","v":{"v":0,"d":"0.00"}},{"$f":"'Month 10'!M214+'Month 10'!N214-'Month 10'!O214","v":{"v":0,"d":"0.00"}},null,"","",{"$f":"SUMIFS($J$25:$J$224,$C$25:$C$224,$C214,$G$25:$G$224,Lists!$A$16)","v":0},0,null,"",null,{"$f":"IF(C214=0,\"\",LEFT(INDEX(Lists!$H$5:$H$49,MATCH(C214,Lists!$G$5:$G$49,0),1),1))","v":""},null,{"$f":"'Month 10'!H214+'Month 10'!I214-'Month 10'!J214","v":0},"","",null,"0"]
[{"$f":"Planning!A199","v":"I191"},{"$f":"Planning!B199","v":0},{"$f":"Planning!C199","v":0},{"$f":"Planning!D199","v":0},{"$f":"Planning!E199","v":0},{"$f":"IF(Planning!G199<>0,Planning!G199,\"\")","v":""},{"$f":"Planning!H199","v":0},{"$f":"Planning!AM199","v":0},{"$f":"IF(OR(W215=\"1\",AND(W215<>\"1\",G215=Lists!$A$17)),Y215,0)","v":0},null,{"$f":"IF(AND(W215=\"2\",G215<>Lists!$A$17),AA215,Z215)","v":""},"",{"$f":"Planning!AN199","v":{"v":0,"d":"0.00"}},{"$f":"'Month 10'!M215+'Month 10'!N215-'Month 10'!O215","v":{"v":0,"d":"0.00"}},null,"","",{"$f":"SUMIFS($J$25:$J$224,$C$25:$C$224,$C215,$G$25:$G$224,Lists!$A$16)","v":0},0,null,"",null,{"$f":"IF(C215=0,\"\",LEFT(INDEX(Lists!$H$5:$H$49,MATCH(C215,Lists!$G$5:$G$49,0),1),1))","v":""},null,{"$f":"'Month 10'!H215+'Month 10'!I215-'Month 10'!J215","v":0},"","",null,"0"]
[{"$f":"Planning!A200","v":"I192"},{"$f":"Planning!B200","v":0},{"$f":"Planning!C200","v":0},{"$f":"Planning!D200","v":0},{"$f":"Planning!E200","v":0},{"$f":"IF(Planning!G200<>0,Planning!G200,\"\")","v":""},{"$f":"Planning!H200","v":0},{"$f":"Planning!AM200","v":0},{"$f":"IF(OR(W216=\"1\",AND(W216<>\"1\",G216=Lists!$A$17)),Y216,0)","v":0},null,{"$f":"IF(AND(W216=\"2\",G216<>Lists!$A$17),AA216,Z216)","v":""},"",{"$f":"Planning!AN200","v":{"v":0,"d":"0.00"}},{"$f":"'Month 10'!M216+'Month 10'!N216-'Month 10'!O216","v":{"v":0,"d":"0.00"}},null,"","",{"$f":"SUMIFS($J$25:$J$224,$C$25:$C$224,$C216,$G$25:$G$224,Lists!$A$16)","v":0},0,null,"",null,{"$f":"IF(C216=0,\"\",LEFT(INDEX(Lists!$H$5:$H$49,MATCH(C216,Lists!$G$5:$G$49,0),1),1))","v":""},null,{"$f":"'Month 10'!H216+'Month 10'!I216-'Month 10'!J216","v":0},"","",null,"0"]
[{"$f":"Planning!A201","v":"I193"},{"$f":"Planning!B201","v":0},{"$f":"Planning!C201","v":0},{"$f":"Planning!D201","v":0},{"$f":"Planning!E201","v":0},{"$f":"IF(Planning!G201<>0,Planning!G201,\"\")","v":""},{"$f":"Planning!H201","v":0},{"$f":"Planning!AM201","v":0},{"$f":"IF(OR(W217=\"1\",AND(W217<>\"1\",G217=Lists!$A$17)),Y217,0)","v":0},null,{"$f":"IF(AND(W217=\"2\",G217<>Lists!$A$17),AA217,Z217)","v":""},{"$f":"IF($U217=ExcluirDelPLogro,\"\",IF(AND(H217=0,I217=0,J217=0),\"\",K217))","v":""},{"$f":"Planning!AN201","v":{"v":0,"d":"0.00"}},{"$f":"'Month 10'!M217+'Month 10'!N217-'Month 10'!O217","v":{"v":0,"d":"0.00"}},null,"",{"$f":"IF($U217=ExcluirDelPLogro,\"\",IF(AND(M217=0,N217=0,O217=0),\"\",P217))","v":""},{"$f":"SUMIFS($J$25:$J$224,$C$25:$C$224,$C217,$G$25:$G$224,Lists!$A$16)","v":0},0,null,"",null,{"$f":"IF(C217=0,\"\",LEFT(INDEX(Lists!$H$5:$H$49,MATCH(C217,Lists!$G$5:$G$49,0),1),1))","v":""},null,{"$f":"'Month 10'!H217+'Month 10'!I217-'Month 10'!J217","v":0},"",{"$f":"IF(AND(H217=0,I217=0,J217=0),\"\",IF(J217>0,H217/J217,0))","v":""},null,"0"]
[{"$f":"Planning!A202","v":"I194"},{"$f":"Planning!B202","v":0},{"$f":"Planning!C202","v":0},{"$f":"Planning!D202","v":0},{"$f":"Planning!E202","v":0},{"$f":"IF(Planning!G202<>0,Planning!G202,\"\")","v":""},{"$f":"Planning!H202","v":0},{"$f":"Planning!AM202","v":0},{"$f":"IF(OR(W218=\"1\",AND(W218<>\"1\",G218=Lists!$A$17)),Y218,0)","v":0},null,{"$f":"IF(AND(W218=\"2\",G218<>Lists!$A$17),AA218,Z218)","v":""},"",{"$f":"Planning!AN202","v":{"v":0,"d":"0.00"}},{"$f":"'Month 10'!M218+'Month 10'!N218-'Month 10'!O218","v":{"v":0,"d":"0.00"}},null,{"$f":"IF(AND(M218=0,N218=0,O218=0),\"\",IF((M218+N218)>0,O218/(M218+N218),O218))","v":""},"",{"$f":"SUMIFS($J$25:$J$224,$C$25:$C$224,$C218,$G$25:$G$224,Lists!$A$16)","v":0},{"$f":"SUMIFS($O$25:$O$224,$C$25:$C$224,$C218,$G$25:$G$224,\"<>0\")","v":0},null,{"$f":"IF(B218=0,\"\",IF(LEFT(B218,1)=\"1\",\"1\",\"2\"))","v":""},null,{"$f":"IF(C218=0,\"\",LEFT(INDEX(Lists!$H$5:$H$49,MATCH(C218,Lists!$G$5:$G$49,0),1),1))","v":""},null,{"$f":"'Month 10'!H218+'Month 10'!I218-'Month 10'!J218","v":0},{"$f":"IF(AND(H218=0,I218=0,J218=0),\"\",IF((H218+I218)>0,J218/(H218+I218),J218))","v":""},"",null,{"$f":"U218&C218","v":"0"}]
[{"$f":"Planning!A203","v":"I195"},{"$f":"Planning!B203","v":0},{"$f":"Planning!C203","v":0},{"$f":"Planning!D203","v":0},{"$f":"Planning!E203","v":0},{"$f":"IF(Planning!G203<>0,Planning!G203,\"\")","v":""},{"$f":"Planning!H203","v":0},{"$f":"Planning!AM203","v":0},{"$f":"IF(OR(W219=\"1\",AND(W219<>\"1\",G219=Lists!$A$17)),Y219,0)","v":0},null,{"$f":"IF(AND(W219=\"2\",G219<>Lists!$A$17),AA219,Z219)","v":""},"",{"$f":"Planning!AN203","v":{"v":0,"d":"0.00"}},{"$f":"'Month 10'!M219+'Month 10'!N219-'Month 10'!O219","v":{"v":0,"d":"0.00"}},null,"","",{"$f":"SUMIFS($J$25:$J$224,$C$25:$C$224,$C219,$G$25:$G$224,Lists!$A$16)","v":0},0,null,"",null,{"$f":"IF(C219=0,\"\",LEFT(INDEX(Lists!$H$5:$H$49,MATCH(C219,Lists!$G$5:$G$49,0),1),1))","v":""},null,{"$f":"'Month 10'!H219+'Month 10'!I219-'Month 10'!J219","v":0},"","",null,"0"]
[{"$f":"Planning!A204","v":"I196"},{"$f":"Planning!B204","v":0},{"$f":"Planning!C204","v":0},{"$f":"Planning!D204","v":0},{"$f":"Planning!E204","v":0},{"$f":"IF(Planning!G204<>0,Planning!G204,\"\")","v":""},{"$f":"Planning!H204","v":0},{"$f":"Planning!AM204","v":0},{"$f":"IF(OR(W220=\"1\",AND(W220<>\"1\",G220=Lists!$A$17)),Y220,0)","v":0},null,{"$f":"IF(AND(W220=\"2\",G220<>Lists!$A$17),AA220,Z220)","v":""},"",{"$f":"Planning!AN204","v":{"v":0,"d":"0.00"}},{"$f":"'Month 10'!M220+'Month 10'!N220-'Month 10'!O220","v":{"v":0,"d":"0.00"}},null,"","",{"$f":"SUMIFS($J$25:$J$224,$C$25:$C$224,$C220,$G$25:$G$224,Lists!$A$16)","v":0},0,null,"",null,{"$f":"IF(C220=0,\"\",LEFT(INDEX(Lists!$H$5:$H$49,MATCH(C220,Lists!$G$5:$G$49,0),1),1))","v":""},null,{"$f":"'Month 10'!H220+'Month 10'!I220-'Month 10'!J220","v":0},"","",null,"0"]
[{"$f":"Planning!A205","v":"I197"},{"$f":"Planning!B205","v":0},{"$f":"Planning!C205","v":0},{"$f":"Planning!D205","v":0},{"$f":"Planning!E205","v":0},{"$f":"IF(Planning!G205<>0,Planning!G205,\"\")","v":""},{"$f":"Planning!H205","v":0},{"$f":"Planning!AM205","v":0},{"$f":"IF(OR(W221=\"1\",AND(W221<>\"1\",G221=Lists!$A$17)),Y221,0)","v":0},null,{"$f":"IF(AND(W221=\"2\",G221<>Lists!$A$17),AA221,Z221)","v":""},"",{"$f":"Planning!AN205","v":{"v":0,"d":"0.00"}},{"$f":"'Month 10'!M221+'Month 10'!N221-'Month 10'!O221","v":{"v":0,"d":"0.00"}},null,"","",{"$f":"SUMIFS($J$25:$J$224,$C$25:$C$224,$C221,$G$25:$G$224,Lists!$A$16)","v":0},0,null,"",null,{"$f":"IF(C221=0,\"\",LEFT(INDEX(Lists!$H$5:$H$49,MATCH(C221,Lists!$G$5:$G$49,0),1),1))","v":""},null,{"$f":"'Month 10'!H221+'Month 10'!I221-'Month 10'!J221","v":0},"","",null,"0"]
[{"$f":"Planning!A206","v":"I198"},{"$f":"Planning!B206","v":0},{"$f":"Planning!C206","v":0},{"$f":"Planning!D206","v":0},{"$f":"Planning!E206","v":0},{"$f":"IF(Planning!G206<>0,Planning!G206,\"\")","v":""},{"$f":"Planning!H206","v":0},{"$f":"Planning!AM206","v":0},{"$f":"IF(OR(W222=\"1\",AND(W222<>\"1\",G222=Lists!$A$17)),Y222,0)","v":0},null,{"$f":"IF(AND(W222=\"2\",G222<>Lists!$A$17),AA222,Z222)","v":""},"",{"$f":"Planning!AN206","v":{"v":0,"d":"0.00"}},{"$f":"'Month 10'!M222+'Month 10'!N222-'Month 10'!O222","v":{"v":0,"d":"0.00"}},null,"","",{"$f":"SUMIFS($J$25:$J$224,$C$25:$C$224,$C222,$G$25:$G$224,Lists!$A$16)","v":0},0,null,"",null,{"$f":"IF(C222=0,\"\",LEFT(INDEX(Lists!$H$5:$H$49,MATCH(C222,Lists!$G$5:$G$49,0),1),1))","v":""},null,{"$f":"'Month 10'!H222+'Month 10'!I222-'Month 10'!J222","v":0},"","",null,"0"]
[{"$f":"Planning!A207","v":"I199"},{"$f":"Planning!B207","v":0},{"$f":"Planning!C207","v":0},{"$f":"Planning!D207","v":0},{"$f":"Planning!E207","v":0},{"$f":"IF(Planning!G207<>0,Planning!G207,\"\")","v":""},{"$f":"Planning!H207","v":0},{"$f":"Planning!AM207","v":0},{"$f":"IF(OR(W223=\"1\",AND(W223<>\"1\",G223=Lists!$A$17)),Y223,0)","v":0},null,{"$f":"IF(AND(W223=\"2\",G223<>Lists!$A$17),AA223,Z223)","v":""},"",{"$f":"Planning!AN207","v":{"v":0,"d":"0.00"}},{"$f":"'Month 10'!M223+'Month 10'!N223-'Month 10'!O223","v":{"v":0,"d":"0.00"}},null,"","",{"$f":"SUMIFS($J$25:$J$224,$C$25:$C$224,$C223,$G$25:$G$224,Lists!$A$16)","v":0},0,null,"",null,{"$f":"IF(C223=0,\"\",LEFT(INDEX(Lists!$H$5:$H$49,MATCH(C223,Lists!$G$5:$G$49,0),1),1))","v":""},null,{"$f":"'Month 10'!H223+'Month 10'!I223-'Month 10'!J223","v":0},"","",null,"0"]
[{"$f":"Planning!A208","v":"I200"},{"$f":"Planning!B208","v":0},{"$f":"Planning!C208","v":0},{"$f":"Planning!D208","v":0},{"$f":"Planning!E208","v":0},{"$f":"IF(Planning!G208<>0,Planning!G208,\"\")","v":""},{"$f":"Planning!H208","v":0},{"$f":"Planning!AM208","v":0},{"$f":"IF(OR(W224=\"1\",AND(W224<>\"1\",G224=Lists!$A$17)),Y224,0)","v":0},null,{"$f":"IF(AND(W224=\"2\",G224<>Lists!$A$17),AA224,Z224)","v":""},"",{"$f":"Planning!AN208","v":{"v":0,"d":"0.00"}},{"$f":"'Month 10'!M224+'Month 10'!N224-'Month 10'!O224","v":{"v":0,"d":"0.00"}},null,"","",{"$f":"SUMIFS($J$25:$J$224,$C$25:$C$224,$C224,$G$25:$G$224,Lists!$A$16)","v":0},0,null,"",null,{"$f":"IF(C224=0,\"\",LEFT(INDEX(Lists!$H$5:$H$49,MATCH(C224,Lists!$G$5:$G$49,0),1),1))","v":""},null,{"$f":"'Month 10'!H224+'Month 10'!I224-'Month 10'!J224","v":0},"","",null,"0"]
[{"$nulls":20},".",null,".",null,".",".",".",null,"."]
[]
[{"$f":"Setup!AN6","v":"PR Dashboard indicators"}]
[{"$f":"Setup!AP8","v":"Financial reports planned"}]
[{"$f":"Setup!AP9","v":"Financial reports overdue"}]
[{"$f":"Setup!AP10","v":0}]
[{"$f":"Setup!AP11","v":0}]
[{"$f":"Setup!AP12","v":0}]
[{"$f":"Setup!AP13","v":0}]
[{"$f":"Setup!AP14","v":0}]
[{"$f":"Setup!AP15","v":"Supervision actions recommended"}]
[{"$f":"Setup!AP16","v":"Supervision recommendations past due"}]
[{"$f":"Setup!AP17","v":"Programmatic reports planned"}]
[{"$f":"Setup!AP18","v":"Programmatic reports past due"}]
[{"$f":"Setup!AP19","v":0}]
[{"$f":"Setup!AP20","v":0}]
[{"$f":"Setup!AP21","v":0}]
[{"$f":"Setup!AP22","v":0}]
[{"$f":"Setup!AP23","v":0}]
[{"$f":"Setup!AP24","v":0}]
[{"$f":"Setup!AP25","v":0}]
[{"$f":"Setup!AP26","v":0}]
[{"$f":"Setup!AP27","v":0}]
[{"$f":"Setup!AP28","v":0}]
[{"$f":"Setup!AP29","v":0}]
[{"$f":"Setup!AP30","v":0}]
[{"$f":"Setup!AP31","v":0}]
[{"$f":"Setup!AP32","v":0}]
[{"$f":"Setup!AP33","v":0}]
[{"$f":"Setup!AP34","v":0}]
[{"$f":"Setup!AP35","v":0}]
[{"$f":"Setup!AP36","v":0}]
[{"$f":"Setup!AP37","v":0}]
[{"$f":"Setup!AP38","v":0}]
[{"$f":"Setup!AP39","v":"Actual stock level - PS39 - Product 1: Efavirenz, 600 mg, 30 tablets"}]
[{"$f":"Setup!AP40","v":"Actual stock level - PS40 - Product 2: Efavirenz, 200 mg, 90 capsules"}]
[{"$f":"Setup!AP41","v":"Actual stock level - PS41 - Product 3: TDF/3TC, 300/300 mg, 30 tablets"}]
[{"$f":"Setup!AP42","v":"Actual stock level - PS42 - Product 4: 3TC, 10 mg/ml, oral solution 240 ml"}]
[{"$f":"Setup!AP43","v":0}]
[{"$f":"Setup!AP44","v":0}]
[{"$f":"Setup!AP45","v":0}]
[{"$f":"Setup!AP46","v":0}]
[{"$f":"Setup!AP47","v":0}]
[{"$f":"Setup!AP48","v":0}]
[{"$f":"Setup!AP49","v":0}]
[{"$f":"Setup!AP50","v":0}]
[{"$f":"Setup!AP51","v":0}]
[{"$f":"Setup!AP52","v":0}]
[{"$f":"Setup!AP53","v":0}]
[{"$f":"Setup!AP54","v":0}]
[{"$f":"Setup!AP55","v":0}]
[{"$f":"Setup!AP56","v":0}]
[{"$f":"Setup!AP57","v":0}]
[{"$f":"Setup!AP58","v":0}]
[{"$f":"Setup!AP59","v":0}]
[{"$f":"Setup!AP60","v":0}]
[{"$f":"Setup!AP61","v":0}]
[{"$f":"Setup!AP62","v":0}]
[{"$f":"Setup!AP63","v":0}]
[{"$f":"Setup!AP64","v":0}]
[{"$f":"Setup!AP65","v":0}]
[{"$f":"Setup!AP66","v":0}]
[{"$f":"Setup!AP67","v":0}]
[{"$f":"Setup!AP68","v":0}]
[{"$f":"Setup!AP69","v":0}]
[]
[]
[{"$f":"Translations!A138","v":"Narrative comments from results (to be filled by the Subrecipient)"}]
{"$rows_empty":43}
[{"$f":"Translations!A139","v":"This section is filled in exclusively by PR's programmatic and financial monitors."}]
[]
[{"$f":"Translations!A150","v":"PROGRAMMATIC"},null,null,{"$f":"Translations!A140","v":"Name of person conducting programmatic verification"}]
[]
[]
[{"$nulls":3},{"$f":"Translations!A141","v":"Contextual details"}]
[]
[]
[]
[]
[]
[]
[{"$nulls":3},{"$f":"Translations!A151","v":"Description of identified problem(s)"}]
[]
[]
[]
[]
[]
[]
[{"$nulls":3},{"$f":"Translations!A152","v":"Recommendations and actions to be taken"}]
[{"$nulls":3},"1)"]
[{"$nulls":3},"2)"]
[{"$nulls":3},"3)"]
[{"$nulls":3},"4)"]
[{"$nulls":3},"5)"]
[]
[]
[]
[{"$f":"Translations!A154","v":"FINANCIAL"},null,null,{"$f":"Translations!A153","v":"Name of person conducting financial verification"}]
[]
[]
[{"$nulls":3},{"$f":"Translations!A141","v":"Contextual details"}]
{"$rows_empty":7}
[{"$nulls":3},{"$f":"Translations!A151","v":"Description of identified problem(s)"}]
[]
[]
[]
[]
[]
[]
[{"$nulls":3},{"$f":"Translations!A152","v":"Recommendations and actions to be taken"}]
[{"$nulls":3},"1)"]
[{"$nulls":3},"2)"]
[{"$nulls":3},"3)"]
[{"$nulls":3},"4)"]
[{"$nulls":3},"5)"]
[]
[]
[]
[]
[]
[{"$f":"Translations!A321","v":"To be completed by the PR"},{"$nulls":6},{"$f":"Translations!A324","v":"To be completed by the SR"}]
[{"$f":"Translations!A322","v":"Position"},{"$nulls":3},{"$f":"Translations!A323","v":"Signature"},null,null,{"$f":"Translations!A322","v":"Position"},null,{"$f":"Translations!A323","v":"Signature"}]

{"sheet":"Month 12","index":23,"n_rows":394,"n_cols":29,"rows_kept":394,"hidden":true,"merged":[[1,4,1,13],[1,14,1,15],[2,4,2,13],[2,14,3,15],[3,4,3,13],[4,4,4,13],[4,22,16,26],[5,9,5,15],[6,0,15,7],[6,9,7,15],[9,9,9,10],[9,12,9,15],[10,9,11,10],[10,12,11,15],[13,9,15,13],[13,14,13,15],[14,14,15,15],[16,6,16,7],[17,3,17,4],[17,7,17,8],[17,9,17,10],[17,12,17,13],[17,14,17,15],[18,7,18,10],[18,12,18,15],[18,24,18,26],[19,0,20,0],[19,1,20,1],[19,2,20,2],[19,3,20,3],[19,4,20,4],[19,5,20,5],[19,7,20,7],[19,8,20,8],[19,9,20,9],[19,10,20,10],[19,12,20,12],[19,13,20,13],[19,14,20,14],[19,15,20,15],[19,17,19,18],[19,20,20,20],[19,22,20,22],[19,24,20,24],[19,25,20,25],[19,26,20,26],[19,28,20,28],[226,0,226,7],[227,0,227,6],[228,0,228,6],[229,0,229,6],[230,0,230,6],[231,0,231,6],[232,0,232,6],[233,0,233,6],[234,0,234,6],[235,0,235,6],[236,0,236,6],[237,0,237,6],[238,0,238,6],[239,0,239,6],[240,0,240,6],[241,0,241,6],[242,0,242,6],[243,0,243,6],[244,0,244,6],[245,0,245,6],[246,0,246,6],[247,0,247,6],[248,0,248,6],[249,0,249,6],[250,0,250,6],[251,0,251,6],[252,0,252,6],[253,0,253,6],[254,0,254,6],[255,0,255,6],[256,0,256,6],[257,0,257,6],[258,0,258,6],[259,0,259,6],[260,0,260,6],[261,0,261,6],[262,0,262,6],[263,0,263,6],[264,0,264,6],[265,0,265,6],[266,0,266,6],[267,0,267,6],[268,0,268,6],[269,0,269,6],[270,0,270,6],[271,0,271,6],[272,0,272,6],[273,0,273,6],[274,0,274,6],[275,0,275,6],[276,0,276,6],[277,0,277,6],[278,0,278,6],[279,0,279,6],[280,0,280,6],[281,0,281,6],[282,0,282,6],[283,0,283,6],[284,0,284,6],[285,0,285,6],[286,0,286,6],[287,0,287,6],[288,0,288,6],[291,0,291,15],[292,0,333,15],[335,0,335,15],[337,0,360,0],[337,14,337,15],[338,3,338,4],[338,14,338,15],[341,3,345,15],[348,3,352,15],[355,3,355,15],[356,3,356,15],[357,3,357,15],[358,3,358,15],[359,3,359,15],[363,0,387,0],[363,14,363,15],[364,3,364,4],[364,14,364,15],[367,3,371,15],[375,3,379,15],[382,3,382,15],[383,3,383,15],[384,3,384,15],[385,3,385,15],[386,3,386,15],[392,0,392,4],[392,7,392,12],[393,0,393,3],[393,7,393,8],[393,9,393,12],[394,0,394,3],[394,7,394,8],[394,9,394,12],[395,0,395,3],[395,7,395,8],[395,9,395,12],[396,0,396,3],[396,7,396,8],[396,9,396,12],[397,0,397,3],[397,7,397,8],[397,9,397,12]]}
[]
["Month 12",{"$nulls":3},{"$f":"Translations!A80","v":"SR Management Tool"},{"$nulls":9},{"$f":"Translations!A129","v":"SCORE"}]
[{"$nulls":4},{"$f":"Setup!H11","v":"Direct Gender Partnership (DGP)"},{"$nulls":9},{"$f":"K23","v":{"v":0,"d":"0.00%"}}]
[{"$nulls":4},{"$f":" Setup!H14 & \"  (\" & Setup!H13 & \")\" & \"  (\" & Setup!H15 & \")\"","v":"DMR-202-G01-H-00  (January  2016 - December 2016)  (HIV / AIDS)"}]
[{"$nulls":4},{"$f":"Setup!AB19 & \"  (\" & Setup!H16 & \")\"","v":"December  ($ - USD)"},{"$nulls":17},"A. Se colocará lo pendiente (Y) en (I) siempre que (W) sea 1. Estandar o que (W) sea diferente de 1. sin embargo la actividad (G) NO contribuya al indicador.\n\nB. En la columna % Logro (K) se colocará siempre el Logro 1. Estandar (Z). Solamente se colocará el Logro 2. Inverso (AA) cuando (W) sea 2 y (G) sea diferente de 2. NO... es decir, el valor inverso va para las actvividades que contribuyan al indicador G = 1. SI y para el Indicador en si G = 0... por eso se pregunta por G diferente de 2. NO.. para incluir los 1. SI y a los 0\n\n"]
[{"$f":"Setup!G19","v":"Details of programatic indicators"},{"$nulls":8},{"$f":"Setup!G17","v":"Key population"}]
[{"$f":"Setup!H19","v":"# PLHIV that initiated ARV with CD4 count <200\n# new HIV+ enrolled in care services \n# aged 10-24 yrs reached by HIV life skills ed. in school "},{"$nulls":8},{"$f":"Setup!H17","v":"Sex Workers - Migrants - Women"}]
[]
[]
[{"$nulls":9},{"$f":"Translations!A119","v":"Report date"},null,null,{"$f":"Translations!A130","v":"Reported by"}]
[]
[]
[]
[{"$nulls":9},{"$f":"Translations!A132","v":"Note: Enter disubursment ammount here if the PR made a disbursment this month. Leave blank if no disbursment was made."},{"$nulls":4},{"$f":"Translations!A131","v":"Disbursement"}]
[]
[]
[]
[{"$nulls":3},{"$f":"Translations!A233","v":"Input data in spaces with this color"},{"$nulls":3},{"$f":"Translations!A120","v":"Date of verification"},{"$nulls":4},{"$f":"Translations!A120","v":"Date of verification"}]
[{"$nulls":7},{"$f":"Translations!A133","v":"Programmatic aspects"},{"$nulls":4},{"$f":"Translations!A134","v":"Financial aspects"},{"$nulls":9},"COMPORTAMIENTO",null,"Sólo en el Aspecto Programático"]
[{"$f":"Translations!A88","v":"Item"},"Tipo de Ítem","ID Enlace",{"$f":"Translations!A91","v":"Activity code"},{"$f":"Translations!A92","v":"Indicator / Activity"},{"$f":"Translations!A79","v":"TGF costs groups"},null,{"$f":"Translations!A135","v":"Monthly target"},{"$f":"Translations!A136","v":"Balance from previous period"},{"$f":"Translations!A137","v":"Results "},{"$f":"Translations!A108","v":"Result %"},null,{"$f":"Translations!$A$360","v":"Monthly budget"},{"$f":"Translations!A136","v":"Balance from previous period"},{"$f":"Translations!$A$361","v":"Monthly expenditure"},{"$f":"Translations!A108","v":"Result %"},null,"Sumatorias Indicadores",null,null,"Indicador =1 Actividad = 2",null,"1. Estandar\n2. Inverso\n3. No Acumula",null,"Pendiente Mes Anterior\n SIN CONDICION","Logro\n1. Estandar","Logro\n2. Inverso",null,"TAG \nPerformance"]
[{"$nulls":17},"PROG","FIN"]
[]
[{"$f":"Translations!A109","v":"Totals"},{"$nulls":6},"-","-","-",{"$f":"IFERROR(AVERAGEIF(L25:L224,\"<> \"),\"\")","v":{"v":0,"d":"0.00%"}},null,{"$f":"SUMIFS(M25:M224,$G$25:$G$224,\"<>0\")","v":{"v":0,"d":"0.00"}},{"$f":"SUMIFS(N25:N224,$G$25:$G$224,\"<>0\")","v":{"v":7250,"d":"7,250.00"}},{"$f":"SUMIFS(O25:O224,$G$25:$G$224,\"<>0\")","v":{"v":0,"d":"0.00"}},{"$f":"IFERROR(AVERAGEIF(Q25:Q224,\"<> \"),\"\")","v":{"v":0,"d":"0.00%"}}]
[]
[{"$f":"Planning!A9","v":"I001"},{"$f":"Planning!B9","v":"1. Indicator"},{"$f":"Planning!C9","v":"Pr68"},{"$f":"Planning!D9","v":1},{"$f":"Planning!E9","v":"[Pr68] # PLHIV that initiated ARV with CD4 count <200 Target [2. Inverse]"},{"$f":"IF(Planning!G9<>0,Planning!G9,\"\")","v":""},{"$f":"Planning!H9","v":0},{"$f":"Planning!AP9","v":0},{"$f":"IF(OR(W25=\"1\",AND(W25<>\"1\",G25=Lists!$A$17)),Y25,0)","v":0},{"$f":"R25","v":0},{"$f":"IF(AND(W25=\"2\",G25<>Lists!$A$17),AA25,Z25)","v":""},{"$f":"IF($U25=ExcluirDelPLogro,\"\",IF(AND(H25=0,I25=0,J25=0),\"\",K25))","v":""},{"$f":"Planning!AQ9","v":{"v":0,"d":"0.00"}},{"$f":"'Month 11'!M25+'Month 11'!N25-'Month 11'!O25","v":{"v":0,"d":"0.00"}},{"$f":"S25","v":{"v":0,"d":"0.00"}},{"$f":"IF(AND(M25=0,N25=0,O25=0),\"\",IF((M25+N25)>0,O25/(M25+N25),O25))","v":""},{"$f":"IF($U25=ExcluirDelPLogro,\"\",IF(AND(M25=0,N25=0,O25=0),\"\",P25))","v":""},{"$f":"SUMIFS($J$25:$J$224,$C$25:$C$224,$C25,$G$25:$G$224,Lists!$A$16)","v":0},{"$f":"SUMIFS($O$25:$O$224,$C$25:$C$224,$C25,$G$25:$G$224,\"<>0\")","v":0},null,{"$f":"IF(B25=0,\"\",IF(LEFT(B25,1)=\"1\",\"1\",\"2\"))","v":"1"},null,{"$f":"IF(C25=0,\"\",LEFT(INDEX(Lists!$H$5:$H$49,MATCH(C25,Lists!$G$5:$G$49,0),1),1))","v":"2"},null,{"$f":"'Month 11'!H25+'Month 11'!I25-'Month 11'!J25","v":0},{"$f":"IF(AND(H25=0,I25=0,J25=0),\"\",IF((H25+I25)>0,J25/(H25+I25),J25))","v":""},{"$f":"IF(AND(H25=0,I25=0,J25=0),\"\",IF(J25>0,H25/J25,0))","v":""},null,{"$f":"U25&C25","v":"1Pr68"}]
[{"$f":"Planning!A10","v":"I002"},{"$f":"Planning!B10","v":"2. Activity: Contributing"},{"$f":"Planning!C10","v":"Pr68"},{"$f":"Planning!D10","v":1.2},{"$f":"Planning!E10","v":"PLHIV reimbursed for transportation costs to HIV testing and treatment centres\n"},{"$f":"IF(Planning!G10<>0,Planning!G10,\"\")","v":"12. Living support to client/ target population "},{"$f":"Planning!H10","v":"1. YES"},{"$f":"Planning!AP10","v":0},{"$f":"IF(OR(W26=\"1\",AND(W26<>\"1\",G26=Lists!$A$17)),Y26,0)","v":0},0,{"$f":"IF(AND(W26=\"2\",G26<>Lists!$A$17),AA26,Z26)","v":""},"",{"$f":"Planning!AQ10","v":{"v":0,"d":"0.00"}},{"$f":"'Month 11'!M26+'Month 11'!N26-'Month 11'!O26","v":{"v":0,"d":"0.00"}},{"v":0,"d":"0.00"},"","",{"$f":"SUMIFS($J$25:$J$224,$C$25:$C$224,$C26,$G$25:$G$224,Lists!$A$16)","v":0},{"$f":"SUMIFS($O$25:$O$224,$C$25:$C$224,$C26,$G$25:$G$224,\"<>0\")","v":0},null,{"$f":"IF(B26=0,\"\",IF(LEFT(B26,1)=\"1\",\"1\",\"2\"))","v":"2"},null,{"$f":"IF(C26=0,\"\",LEFT(INDEX(Lists!$H$5:$H$49,MATCH(C26,Lists!$G$5:$G$49,0),1),1))","v":"2"},null,{"$f":"'Month 11'!H26+'Month 11'!I26-'Month 11'!J26","v":0},{"$f":"IF(AND(H26=0,I26=0,J26=0),\"\",IF((H26+I26)>0,J26/(H26+I26),J26))","v":""},"",null,{"$f":"U26&C26","v":"2Pr68"}]
[{"$f":"Planning!A11","v":"I003"},{"$f":"Planning!B11","v":"3. Activity: Non-Contributing"},{"$f":"Planning!C11","v":"Pr68"},{"$f":"Planning!D11","v":1.3},{"$f":"Planning!E11","v":"Communication materials produced to educate HIV+ patients about HIV treatment (Migrants and Sexual Workers). \n\n"},{"$f":"IF(Planning!G11<>0,Planning!G11,\"\")","v":"10. Communication material and publications"},{"$f":"Planning!H11","v":"2. NO"},{"$f":"Planning!AP11","v":0},{"$f":"IF(OR(W27=\"1\",AND(W27<>\"1\",G27=Lists!$A$17)),Y27,0)","v":1},0,{"$f":"IF(AND(W27=\"2\",G27<>Lists!$A$17),AA27,Z27)","v":{"v":0,"d":"0.00%"}},"",{"$f":"Planning!AQ11","v":{"v":0,"d":"0.00"}},{"$f":"'Month 11'!M27+'Month 11'!N27-'Month 11'!O27","v":{"v":0,"d":"0.00"}},{"v":0,"d":"0.00"},"","",{"$f":"SUMIFS($J$25:$J$224,$C$25:$C$224,$C27,$G$25:$G$224,Lists!$A$16)","v":0},0,null,"2",null,{"$f":"IF(C27=0,\"\",LEFT(INDEX(Lists!$H$5:$H$49,MATCH(C27,Lists!$G$5:$G$49,0),1),1))","v":"2"},null,{"$f":"'Month 11'!H27+'Month 11'!I27-'Month 11'!J27","v":1},0,0,null,"2Pr68"]
[{"$f":"Planning!A12","v":"I004"},{"$f":"Planning!B12","v":"3. Activity: Non-Contributing"},{"$f":"Planning!C12","v":"Pr68"},{"$f":"Planning!D12","v":1.4},{"$f":"Planning!E12","v":"Supervisory visits to verify the appropriate application of testing and treatment protocols at centers. "},{"$f":"IF(Planning!G12<>0,Planning!G12,\"\")","v":"11. Programme administration costs"},{"$f":"Planning!H12","v":"2. NO"},{"$f":"Planning!AP12","v":0},{"$f":"IF(OR(W28=\"1\",AND(W28<>\"1\",G28=Lists!$A$17)),Y28,0)","v":0},0,{"$f":"IF(AND(W28=\"2\",G28<>Lists!$A$17),AA28,Z28)","v":""},"",{"$f":"Planning!AQ12","v":{"v":0,"d":"0.00"}},{"$f":"'Month 11'!M28+'Month 11'!N28-'Month 11'!O28","v":{"v":0,"d":"0.00"}},{"v":0,"d":"0.00"},"","",{"$f":"SUMIFS($J$25:$J$224,$C$25:$C$224,$C28,$G$25:$G$224,Lists!$A$16)","v":0},0,null,"2",null,{"$f":"IF(C28=0,\"\",LEFT(INDEX(Lists!$H$5:$H$49,MATCH(C28,Lists!$G$5:$G$49,0),1),1))","v":"2"},null,{"$f":"'Month 11'!H28+'Month 11'!I28-'Month 11'!J28","v":0},"","",null,"2Pr68"]
[{"$f":"Planning!A13","v":"I005"},{"$f":"Planning!B13","v":"1. Indicator"},{"$f":"Planning!C13","v":"Pr72"},{"$f":"Planning!D13","v":2},{"$f":"Planning!E13","v":"[Pr72] # new HIV+ enrolled in care services Target [3. Non-Cumulative]"},{"$f":"IF(Planning!G13<>0,Planning!G13,\"\")","v":""},{"$f":"Planning!H13","v":0},{"$f":"Planning!AP13","v":0},{"$f":"IF(OR(W29=\"1\",AND(W29<>\"1\",G29=Lists!$A$17)),Y29,0)","v":0},{"$f":"R29","v":0},{"$f":"IF(AND(W29=\"2\",G29<>Lists!$A$17),AA29,Z29)","v":""},"",{"$f":"Planning!AQ13","v":{"v":0,"d":"0.00"}},{"$f":"'Month 11'!M29+'Month 11'!N29-'Month 11'!O29","v":{"v":0,"d":"0.00"}},{"$f":"S29","v":{"v":0,"d":"0.00"}},"","",{"$f":"SUMIFS($J$25:$J$224,$C$25:$C$224,$C29,$G$25:$G$224,Lists!$A$16)","v":0},0,null,"1",null,{"$f":"IF(C29=0,\"\",LEFT(INDEX(Lists!$H$5:$H$49,MATCH(C29,Lists!$G$5:$G$49,0),1),1))","v":"3"},null,{"$f":"'Month 11'!H29+'Month 11'!I29-'Month 11'!J29","v":0},"","",null,"1Pr72"]
[{"$f":"Planning!A14","v":"I006"},{"$f":"Planning!B14","v":"2. Activity: Contributing"},{"$f":"Planning!C14","v":"Pr72"},{"$f":"Planning!D14","v":2.1},{"$f":"Planning!E14","v":"Enrollment of  newly diagnosed HIV+ patients for home visits to monitor use of ARV."},{"$f":"IF(Planning!G14<>0,Planning!G14,\"\")","v":"12. Living support to client/ target population "},{"$f":"Planning!H14","v":"1. YES"},{"$f":"Planning!AP14","v":0},{"$f":"IF(OR(W30=\"1\",AND(W30<>\"1\",G30=Lists!$A$17)),Y30,0)","v":0},0,{"$f":"IF(AND(W30=\"2\",G30<>Lists!$A$17),AA30,Z30)","v":""},"",{"$f":"Planning!AQ14","v":{"v":0,"d":"0.00"}},{"$f":"'Month 11'!M30+'Month 11'!N30-'Month 11'!O30","v":{"v":0,"d":"0.00"}},{"v":0,"d":"0.00"},"","",{"$f":"SUMIFS($J$25:$J$224,$C$25:$C$224,$C30,$G$25:$G$224,Lists!$A$16)","v":0},0,null,"2",null,{"$f":"IF(C30=0,\"\",LEFT(INDEX(Lists!$H$5:$H$49,MATCH(C30,Lists!$G$5:$G$49,0),1),1))","v":"3"},null,{"$f":"'Month 11'!H30+'Month 11'!I30-'Month 11'!J30","v":0},"","",null,"2Pr72"]
[{"$f":"Planning!A15","v":"I007"},{"$f":"Planning!B15","v":"1. Indicator"},{"$f":"Planning!C15","v":"Pr74"},{"$f":"Planning!D15","v":3},{"$f":"Planning!E15","v":"[Pr74] # aged 10-24 yrs reached by HIV life skills ed. in school  Target [1. Standard]"},{"$f":"IF(Planning!G15<>0,Planning!G15,\"\")","v":""},{"$f":"Planning!H15","v":0},{"$f":"Planning!AP15","v":0},{"$f":"IF(OR(W31=\"1\",AND(W31<>\"1\",G31=Lists!$A$17)),Y31,0)","v":30},{"$f":"R31","v":0},{"$f":"IF(AND(W31=\"2\",G31<>Lists!$A$17),AA31,Z31)","v":{"v":0,"d":"0.00%"}},0,{"$f":"Planning!AQ15","v":{"v":0,"d":"0.00"}},{"$f":"'Month 11'!M31+'Month 11'!N31-'Month 11'!O31","v":{"v":6250,"d":"6,250.00"}},{"$f":"S31","v":{"v":0,"d":"0.00"}},{"v":0,"d":"0.00%"},0,{"$f":"SUMIFS($J$25:$J$224,$C$25:$C$224,$C31,$G$25:$G$224,Lists!$A$16)","v":0},0,null,"1",null,{"$f":"IF(C31=0,\"\",LEFT(INDEX(Lists!$H$5:$H$49,MATCH(C31,Lists!$G$5:$G$49,0),1),1))","v":"1"},null,{"$f":"'Month 11'!H31+'Month 11'!I31-'Month 11'!J31","v":30},0,0,null,"1Pr74"]
[{"$f":"Planning!A16","v":"I008"},{"$f":"Planning!B16","v":"2. Activity: Contributing"},{"$f":"Planning!C16","v":"Pr74"},{"$f":"Planning!D16","v":3.1},{"$f":"Planning!E16","v":"Transportation of students to meetings and conferences for peer education activities"},{"$f":"IF(Planning!G16<>0,Planning!G16,\"\")","v":"2. Travel related costs"},{"$f":"Planning!H16","v":"1. YES"},{"$f":"Planning!AP16","v":0},{"$f":"IF(OR(W32=\"1\",AND(W32<>\"1\",G32=Lists!$A$17)),Y32,0)","v":30},0,{"$f":"IF(AND(W32=\"2\",G32<>Lists!$A$17),AA32,Z32)","v":{"v":0,"d":"0.00%"}},"",{"$f":"Planning!AQ16","v":{"v":0,"d":"0.00"}},{"$f":"'Month 11'!M32+'Month 11'!N32-'Month 11'!O32","v":{"v":6250,"d":"6,250.00"}},{"v":0,"d":"0.00"},{"v":0,"d":"0.00%"},"",{"$f":"SUMIFS($J$25:$J$224,$C$25:$C$224,$C32,$G$25:$G$224,Lists!$A$16)","v":0},0,null,"2",null,{"$f":"IF(C32=0,\"\",LEFT(INDEX(Lists!$H$5:$H$49,MATCH(C32,Lists!$G$5:$G$49,0),1),1))","v":"1"},null,{"$f":"'Month 11'!H32+'Month 11'!I32-'Month 11'!J32","v":30},0,0,null,"2Pr74"]
[{"$f":"Planning!A17","v":"I009"},{"$f":"Planning!B17","v":"1. Indicator"},{"$f":"Planning!C17","v":"OI01"},{"$f":"Planning!D17","v":4},{"$f":"Planning!E17","v":"[OI01] # of new orphans and vulnerable children (0 - 17 yrs) benefiting from  services provided at OVC centers [1. Standard]"},{"$f":"IF(Planning!G17<>0,Planning!G17,\"\")","v":""},{"$f":"Planning!H17","v":0},{"$f":"Planning!AP17","v":0},{"$f":"IF(OR(W33=\"1\",AND(W33<>\"1\",G33=Lists!$A$17)),Y33,0)","v":0},{"$f":"R33","v":0},{"$f":"IF(AND(W33=\"2\",G33<>Lists!$A$17),AA33,Z33)","v":""},"",{"$f":"Planning!AQ17","v":{"v":0,"d":"0.00"}},{"$f":"'Month 11'!M33+'Month 11'!N33-'Month 11'!O33","v":{"v":1000,"d":"1,000.00"}},{"$f":"S33","v":{"v":0,"d":"0.00"}},{"v":0,"d":"0.00%"},0,{"$f":"SUMIFS($J$25:$J$224,$C$25:$C$224,$C33,$G$25:$G$224,Lists!$A$16)","v":0},0,null,"1",null,{"$f":"IF(C33=0,\"\",LEFT(INDEX(Lists!$H$5:$H$49,MATCH(C33,Lists!$G$5:$G$49,0),1),1))","v":"1"},null,{"$f":"'Month 11'!H33+'Month 11'!I33-'Month 11'!J33","v":0},"","",null,"1OI01"]
[{"$f":"Planning!A18","v":"I010"},{"$f":"Planning!B18","v":"3. Activity: Non-Contributing"},{"$f":"Planning!C18","v":"OI01"},{"$f":"Planning!D18","v":4.1},{"$f":"Planning!E18","v":"# of OVC centers established and fully equipped  "},{"$f":"IF(Planning!G18<>0,Planning!G18,\"\")","v":"8. Infrastructure "},{"$f":"Planning!H18","v":"2. NO"},{"$f":"Planning!AP18","v":0},{"$f":"IF(OR(W34=\"1\",AND(W34<>\"1\",G34=Lists!$A$17)),Y34,0)","v":0},0,{"$f":"IF(AND(W34=\"2\",G34<>Lists!$A$17),AA34,Z34)","v":""},"",{"$f":"Planning!AQ18","v":{"v":0,"d":"0.00"}},{"$f":"'Month 11'!M34+'Month 11'!N34-'Month 11'!O34","v":{"v":0,"d":"0.00"}},{"v":0,"d":"0.00"},"","",{"$f":"SUMIFS($J$25:$J$224,$C$25:$C$224,$C34,$G$25:$G$224,Lists!$A$16)","v":0},0,null,"2",null,{"$f":"IF(C34=0,\"\",LEFT(INDEX(Lists!$H$5:$H$49,MATCH(C34,Lists!$G$5:$G$49,0),1),1))","v":"1"},null,{"$f":"'Month 11'!H34+'Month 11'!I34-'Month 11'!J34","v":0},"","",null,"2OI01"]
[{"$f":"Planning!A19","v":"I011"},{"$f":"Planning!B19","v":"2. Activity: Contributing"},{"$f":"Planning!C19","v":"OI01"},{"$f":"Planning!D19","v":4.2},{"$f":"Planning!E19","v":"# of OVC registered at centres"},{"$f":"IF(Planning!G19<>0,Planning!G19,\"\")","v":"12. Living support to client/ target population "},{"$f":"Planning!H19","v":"1. YES"},{"$f":"Planning!AP19","v":0},{"$f":"IF(OR(W35=\"1\",AND(W35<>\"1\",G35=Lists!$A$17)),Y35,0)","v":0},0,{"$f":"IF(AND(W35=\"2\",G35<>Lists!$A$17),AA35,Z35)","v":""},"",{"$f":"Planning!AQ19","v":{"v":0,"d":"0.00"}},{"$f":"'Month 11'!M35+'Month 11'!N35-'Month 11'!O35","v":{"v":0,"d":"0.00"}},{"v":0,"d":"0.00"},"","",{"$f":"SUMIFS($J$25:$J$224,$C$25:$C$224,$C35,$G$25:$G$224,Lists!$A$16)","v":0},0,null,"2",null,{"$f":"IF(C35=0,\"\",LEFT(INDEX(Lists!$H$5:$H$49,MATCH(C35,Lists!$G$5:$G$49,0),1),1))","v":"1"},null,{"$f":"'Month 11'!H35+'Month 11'!I35-'Month 11'!J35","v":0},"","",null,"2OI01"]
[{"$f":"Planning!A20","v":"I012"},{"$f":"Planning!B20","v":"3. Activity: Non-Contributing"},{"$f":"Planning!C20","v":"OI01"},{"$f":"Planning!D20","v":4.3},{"$f":"Planning!E20","v":"# of meals provided at the OVC centers "},{"$f":"IF(Planning!G20<>0,Planning!G20,\"\")","v":"12. Living support to client/ target population "},{"$f":"Planning!H20","v":"2. NO"},{"$f":"Planning!AP20","v":0},{"$f":"IF(OR(W36=\"1\",AND(W36<>\"1\",G36=Lists!$A$17)),Y36,0)","v":100},0,{"$f":"IF(AND(W36=\"2\",G36<>Lists!$A$17),AA36,Z36)","v":{"v":0,"d":"0.00%"}},"",{"$f":"Planning!AQ20","v":{"v":0,"d":"0.00"}},{"$f":"'Month 11'!M36+'Month 11'!N36-'Month 11'!O36","v":{"v":1000,"d":"1,000.00"}},{"v":0,"d":"0.00"},{"v":0,"d":"0.00%"},"",{"$f":"SUMIFS($J$25:$J$224,$C$25:$C$224,$C36,$G$25:$G$224,Lists!$A$16)","v":0},0,null,"2",null,{"$f":"IF(C36=0,\"\",LEFT(INDEX(Lists!$H$5:$H$49,MATCH(C36,Lists!$G$5:$G$49,0),1),1))","v":"1"},null,{"$f":"'Month 11'!H36+'Month 11'!I36-'Month 11'!J36","v":100},0,0,null,"2OI01"]
[{"$f":"Planning!A21","v":"I013"},{"$f":"Planning!B21","v":0},{"$f":"Planning!C21","v":0},{"$f":"Planning!D21","v":0},{"$f":"Planning!E21","v":0},{"$f":"IF(Planning!G21<>0,Planning!G21,\"\")","v":""},{"$f":"Planning!H21","v":0},{"$f":"Planning!AP21","v":0},{"$f":"IF(OR(W37=\"1\",AND(W37<>\"1\",G37=Lists!$A$17)),Y37,0)","v":0},null,{"$f":"IF(AND(W37=\"2\",G37<>Lists!$A$17),AA37,Z37)","v":""},"",{"$f":"Planning!AQ21","v":{"v":0,"d":"0.00"}},{"$f":"'Month 11'!M37+'Month 11'!N37-'Month 11'!O37","v":{"v":0,"d":"0.00"}},null,"","",{"$f":"SUMIFS($J$25:$J$224,$C$25:$C$224,$C37,$G$25:$G$224,Lists!$A$16)","v":0},0,null,"",null,{"$f":"IF(C37=0,\"\",LEFT(INDEX(Lists!$H$5:$H$49,MATCH(C37,Lists!$G$5:$G$49,0),1),1))","v":""},null,{"$f":"'Month 11'!H37+'Month 11'!I37-'Month 11'!J37","v":0},"","",null,"0"]
[{"$f":"Planning!A22","v":"I014"},{"$f":"Planning!B22","v":0},{"$f":"Planning!C22","v":0},{"$f":"Planning!D22","v":0},{"$f":"Planning!E22","v":0},{"$f":"IF(Planning!G22<>0,Planning!G22,\"\")","v":""},{"$f":"Planning!H22","v":0},{"$f":"Planning!AP22","v":0},{"$f":"IF(OR(W38=\"1\",AND(W38<>\"1\",G38=Lists!$A$17)),Y38,0)","v":0},null,{"$f":"IF(AND(W38=\"2\",G38<>Lists!$A$17),AA38,Z38)","v":""},"",{"$f":"Planning!AQ22","v":{"v":0,"d":"0.00"}},{"$f":"'Month 11'!M38+'Month 11'!N38-'Month 11'!O38","v":{"v":0,"d":"0.00"}},null,"","",{"$f":"SUMIFS($J$25:$J$224,$C$25:$C$224,$C38,$G$25:$G$224,Lists!$A$16)","v":0},0,null,"",null,{"$f":"IF(C38=0,\"\",LEFT(INDEX(Lists!$H$5:$H$49,MATCH(C38,Lists!$G$5:$G$49,0),1),1))","v":""},null,{"$f":"'Month 11'!H38+'Month 11'!I38-'Month 11'!J38","v":0},"","",null,"0"]
[{"$f":"Planning!A23","v":"I015"},{"$f":"Planning!B23","v":0},{"$f":"Planning!C23","v":0},{"$f":"Planning!D23","v":0},{"$f":"Planning!E23","v":0},{"$f":"IF(Planning!G23<>0,Planning!G23,\"\")","v":""},{"$f":"Planning!H23","v":0},{"$f":"Planning!AP23","v":0},{"$f":"IF(OR(W39=\"1\",AND(W39<>\"1\",G39=Lists!$A$17)),Y39,0)","v":0},null,{"$f":"IF(AND(W39=\"2\",G39<>Lists!$A$17),AA39,Z39)","v":""},"",{"$f":"Planning!AQ23","v":{"v":0,"d":"0.00"}},{"$f":"'Month 11'!M39+'Month 11'!N39-'Month 11'!O39","v":{"v":0,"d":"0.00"}},null,"","",{"$f":"SUMIFS($J$25:$J$224,$C$25:$C$224,$C39,$G$25:$G$224,Lists!$A$16)","v":0},0,null,"",null,{"$f":"IF(C39=0,\"\",LEFT(INDEX(Lists!$H$5:$H$49,MATCH(C39,Lists!$G$5:$G$49,0),1),1))","v":""},null,{"$f":"'Month 11'!H39+'Month 11'!I39-'Month 11'!J39","v":0},"","",null,"0"]
[{"$f":"Planning!A24","v":"I016"},{"$f":"Planning!B24","v":0},{"$f":"Planning!C24","v":0},{"$f":"Planning!D24","v":0},{"$f":"Planning!E24","v":0},{"$f":"IF(Planning!G24<>0,Planning!G24,\"\")","v":""},{"$f":"Planning!H24","v":0},{"$f":"Planning!AP24","v":0},{"$f":"IF(OR(W40=\"1\",AND(W40<>\"1\",G40=Lists!$A$17)),Y40,0)","v":0},null,{"$f":"IF(AND(W40=\"2\",G40<>Lists!$A$17),AA40,Z40)","v":""},"",{"$f":"Planning!AQ24","v":{"v":0,"d":"0.00"}},{"$f":"'Month 11'!M40+'Month 11'!N40-'Month 11'!O40","v":{"v":0,"d":"0.00"}},null,"","",{"$f":"SUMIFS($J$25:$J$224,$C$25:$C$224,$C40,$G$25:$G$224,Lists!$A$16)","v":0},0,null,"",null,{"$f":"IF(C40=0,\"\",LEFT(INDEX(Lists!$H$5:$H$49,MATCH(C40,Lists!$G$5:$G$49,0),1),1))","v":""},null,{"$f":"'Month 11'!H40+'Month 11'!I40-'Month 11'!J40","v":0},"","",null,"0"]
[{"$f":"Planning!A25","v":"I017"},{"$f":"Planning!B25","v":0},{"$f":"Planning!C25","v":0},{"$f":"Planning!D25","v":0},{"$f":"Planning!E25","v":0},{"$f":"IF(Planning!G25<>0,Planning!G25,\"\")","v":""},{"$f":"Planning!H25","v":0},{"$f":"Planning!AP25","v":0},{"$f":"IF(OR(W41=\"1\",AND(W41<>\"1\",G41=Lists!$A$17)),Y41,0)","v":0},null,{"$f":"IF(AND(W41=\"2\",G41<>Lists!$A$17),AA41,Z41)","v":""},"",{"$f":"Planning!AQ25","v":{"v":0,"d":"0.00"}},{"$f":"'Month 11'!M41+'Month 11'!N41-'Month 11'!O41","v":{"v":0,"d":"0.00"}},null,"","",{"$f":"SUMIFS($J$25:$J$224,$C$25:$C$224,$C41,$G$25:$G$224,Lists!$A$16)","v":0},0,null,"",null,{"$f":"IF(C41=0,\"\",LEFT(INDEX(Lists!$H$5:$H$49,MATCH(C41,Lists!$G$5:$G$49,0),1),1))","v":""},null,{"$f":"'Month 11'!H41+'Month 11'!I41-'Month 11'!J41","v":0},"","",null,"0"]
[{"$f":"Planning!A26","v":"I018"},{"$f":"Planning!B26","v":0},{"$f":"Planning!C26","v":0},{"$f":"Planning!D26","v":0},{"$f":"Planning!E26","v":0},{"$f":"IF(Planning!G26<>0,Planning!G26,\"\")","v":""},{"$f":"Planning!H26","v":0},{"$f":"Planning!AP26","v":0},{"$f":"IF(OR(W42=\"1\",AND(W42<>\"1\",G42=Lists!$A$17)),Y42,0)","v":0},null,{"$f":"IF(AND(W42=\"2\",G42<>Lists!$A$17),AA42,Z42)","v":""},"",{"$f":"Planning!AQ26","v":{"v":0,"d":"0.00"}},{"$f":"'Month 11'!M42+'Month 11'!N42-'Month 11'!O42","v":{"v":0,"d":"0.00"}},null,"","",{"$f":"SUMIFS($J$25:$J$224,$C$25:$C$224,$C42,$G$25:$G$224,Lists!$A$16)","v":0},0,null,"",null,{"$f":"IF(C42=0,\"\",LEFT(INDEX(Lists!$H$5:$H$49,MATCH(C42,Lists!$G$5:$G$49,0),1),1))","v":""},null,{"$f":"'Month 11'!H42+'Month 11'!I42-'Month 11'!J42","v":0},"","",null,"0"]
[{"$f":"Planning!A27","v":"I019"},{"$f":"Planning!B27","v":0},{"$f":"Planning!C27","v":0},{"$f":"Planning!D27","v":0},{"$f":"Planning!E27","v":0},{"$f":"IF(Planning!G27<>0,Planning!G27,\"\")","v":""},{"$f":"Planning!H27","v":0},{"$f":"Planning!AP27","v":0},{"$f":"IF(OR(W43=\"1\",AND(W43<>\"1\",G43=Lists!$A$17)),Y43,0)","v":0},null,{"$f":"IF(AND(W43=\"2\",G43<>Lists!$A$17),AA43,Z43)","v":""},"",{"$f":"Planning!AQ27","v":{"v":0,"d":"0.00"}},{"$f":"'Month 11'!M43+'Month 11'!N43-'Month 11'!O43","v":{"v":0,"d":"0.00"}},null,"","",{"$f":"SUMIFS($J$25:$J$224,$C$25:$C$224,$C43,$G$25:$G$224,Lists!$A$16)","v":0},0,null,"",null,{"$f":"IF(C43=0,\"\",LEFT(INDEX(Lists!$H$5:$H$49,MATCH(C43,Lists!$G$5:$G$49,0),1),1))","v":""},null,{"$f":"'Month 11'!H43+'Month 11'!I43-'Month 11'!J43","v":0},"","",null,"0"]
[{"$f":"Planning!A28","v":"I020"},{"$f":"Planning!B28","v":0},{"$f":"Planning!C28","v":0},{"$f":"Planning!D28","v":0},{"$f":"Planning!E28","v":0},{"$f":"IF(Planning!G28<>0,Planning!G28,\"\")","v":""},{"$f":"Planning!H28","v":0},{"$f":"Planning!AP28","v":0},{"$f":"IF(OR(W44=\"1\",AND(W44<>\"1\",G44=Lists!$A$17)),Y44,0)","v":0},null,{"$f":"IF(AND(W44=\"2\",G44<>Lists!$A$17),AA44,Z44)","v":""},"",{"$f":"Planning!AQ28","v":{"v":0,"d":"0.00"}},{"$f":"'Month 11'!M44+'Month 11'!N44-'Month 11'!O44","v":{"v":0,"d":"0.00"}},null,"","",{"$f":"SUMIFS($J$25:$J$224,$C$25:$C$224,$C44,$G$25:$G$224,Lists!$A$16)","v":0},0,null,"",null,{"$f":"IF(C44=0,\"\",LEFT(INDEX(Lists!$H$5:$H$49,MATCH(C44,Lists!$G$5:$G$49,0),1),1))","v":""},null,{"$f":"'Month 11'!H44+'Month 11'!I44-'Month 11'!J44","v":0},"","",null,"0"]
[{"$f":"Planning!A29","v":"I021"},{"$f":"Planning!B29","v":0},{"$f":"Planning!C29","v":0},{"$f":"Planning!D29","v":0},{"$f":"Planning!E29","v":0},{"$f":"IF(Planning!G29<>0,Planning!G29,\"\")","v":""},{"$f":"Planning!H29","v":0},{"$f":"Planning!AP29","v":0},{"$f":"IF(OR(W45=\"1\",AND(W45<>\"1\",G45=Lists!$A$17)),Y45,0)","v":0},null,{"$f":"IF(AND(W45=\"2\",G45<>Lists!$A$17),AA45,Z45)","v":""},"",{"$f":"Planning!AQ29","v":{"v":0,"d":"0.00"}},{"$f":"'Month 11'!M45+'Month 11'!N45-'Month 11'!O45","v":{"v":0,"d":"0.00"}},null,"","",{"$f":"SUMIFS($J$25:$J$224,$C$25:$C$224,$C45,$G$25:$G$224,Lists!$A$16)","v":0},0,null,"",null,{"$f":"IF(C45=0,\"\",LEFT(INDEX(Lists!$H$5:$H$49,MATCH(C45,Lists!$G$5:$G$49,0),1),1))","v":""},null,{"$f":"'Month 11'!H45+'Month 11'!I45-'Month 11'!J45","v":0},"","",null,"0"]
[{"$f":"Planning!A30","v":"I022"},{"$f":"Planning!B30","v":0},{"$f":"Planning!C30","v":0},{"$f":"Planning!D30","v":0},{"$f":"Planning!E30","v":0},{"$f":"IF(Planning!G30<>0,Planning!G30,\"\")","v":""},{"$f":"Planning!H30","v":0},{"$f":"Planning!AP30","v":0},{"$f":"IF(OR(W46=\"1\",AND(W46<>\"1\",G46=Lists!$A$17)),Y46,0)","v":0},null,{"$f":"IF(AND(W46=\"2\",G46<>Lists!$A$17),AA46,Z46)","v":""},"",{"$f":"Planning!AQ30","v":{"v":0,"d":"0.00"}},{"$f":"'Month 11'!M46+'Month 11'!N46-'Month 11'!O46","v":{"v":0,"d":"0.00"}},null,"","",{"$f":"SUMIFS($J$25:$J$224,$C$25:$C$224,$C46,$G$25:$G$224,Lists!$A$16)","v":0},0,null,"",null,{"$f":"IF(C46=0,\"\",LEFT(INDEX(Lists!$H$5:$H$49,MATCH(C46,Lists!$G$5:$G$49,0),1),1))","v":""},null,{"$f":"'Month 11'!H46+'Month 11'!I46-'Month 11'!J46","v":0},"","",null,"0"]
[{"$f":"Planning!A31","v":"I023"},{"$f":"Planning!B31","v":0},{"$f":"Planning!C31","v":0},{"$f":"Planning!D31","v":0},{"$f":"Planning!E31","v":0},{"$f":"IF(Planning!G31<>0,Planning!G31,\"\")","v":""},{"$f":"Planning!H31","v":0},{"$f":"Planning!AP31","v":0},{"$f":"IF(OR(W47=\"1\",AND(W47<>\"1\",G47=Lists!$A$17)),Y47,0)","v":0},null,{"$f":"IF(AND(W47=\"2\",G47<>Lists!$A$17),AA47,Z47)","v":""},"",{"$f":"Planning!AQ31","v":{"v":0,"d":"0.00"}},{"$f":"'Month 11'!M47+'Month 11'!N47-'Month 11'!O47","v":{"v":0,"d":"0.00"}},null,"","",{"$f":"SUMIFS($J$25:$J$224,$C$25:$C$224,$C47,$G$25:$G$224,Lists!$A$16)","v":0},0,null,"",null,{"$f":"IF(C47=0,\"\",LEFT(INDEX(Lists!$H$5:$H$49,MATCH(C47,Lists!$G$5:$G$49,0),1),1))","v":""},null,{"$f":"'Month 11'!H47+'Month 11'!I47-'Month 11'!J47","v":0},"","",null,"0"]
[{"$f":"Planning!A32","v":"I024"},{"$f":"Planning!B32","v":0},{"$f":"Planning!C32","v":0},{"$f":"Planning!D32","v":0},{"$f":"Planning!E32","v":0},{"$f":"IF(Planning!G32<>0,Planning!G32,\"\")","v":""},{"$f":"Planning!H32","v":0},{"$f":"Planning!AP32","v":0},{"$f":"IF(OR(W48=\"1\",AND(W48<>\"1\",G48=Lists!$A$17)),Y48,0)","v":0},null,{"$f":"IF(AND(W48=\"2\",G48<>Lists!$A$17),AA48,Z48)","v":""},"",{"$f":"Planning!AQ32","v":{"v":0,"d":"0.00"}},{"$f":"'Month 11'!M48+'Month 11'!N48-'Month 11'!O48","v":{"v":0,"d":"0.00"}},null,"","",{"$f":"SUMIFS($J$25:$J$224,$C$25:$C$224,$C48,$G$25:$G$224,Lists!$A$16)","v":0},0,null,"",null,{"$f":"IF(C48=0,\"\",LEFT(INDEX(Lists!$H$5:$H$49,MATCH(C48,Lists!$G$5:$G$49,0),1),1))","v":""},null,{"$f":"'Month 11'!H48+'Month 11'!I48-'Month 11'!J48","v":0},"","",null,"0"]
[{"$f":"Planning!A33","v":"I025"},{"$f":"Planning!B33","v":0},{"$f":"Planning!C33","v":0},{"$f":"Planning!D33","v":0},{"$f":"Planning!E33","v":0},{"$f":"IF(Planning!G33<>0,Planning!G33,\"\")","v":""},{"$f":"Planning!H33","v":0},{"$f":"Planning!AP33","v":0},{"$f":"IF(OR(W49=\"1\",AND(W49<>\"1\",G49=Lists!$A$17)),Y49,0)","v":0},null,{"$f":"IF(AND(W49=\"2\",G49<>Lists!$A$17),AA49,Z49)","v":""},"",{"$f":"Planning!AQ33","v":{"v":0,"d":"0.00"}},{"$f":"'Month 11'!M49+'Month 11'!N49-'Month 11'!O49","v":{"v":0,"d":"0.00"}},null,"","",{"$f":"SUMIFS($J$25:$J$224,$C$25:$C$224,$C49,$G$25:$G$224,Lists!$A$16)","v":0},0,null,"",null,{"$f":"IF(C49=0,\"\",LEFT(INDEX(Lists!$H$5:$H$49,MATCH(C49,Lists!$G$5:$G$49,0),1),1))","v":""},null,{"$f":"'Month 11'!H49+'Month 11'!I49-'Month 11'!J49","v":0},"","",null,"0"]
[{"$f":"Planning!A34","v":"I026"},{"$f":"Planning!B34","v":0},{"$f":"Planning!C34","v":0},{"$f":"Planning!D34","v":0},{"$f":"Planning!E34","v":0},{"$f":"IF(Planning!G34<>0,Planning!G34,\"\")","v":""},{"$f":"Planning!H34","v":0},{"$f":"Planning!AP34","v":0},{"$f":"IF(OR(W50=\"1\",AND(W50<>\"1\",G50=Lists!$A$17)),Y50,0)","v":0},null,{"$f":"IF(AND(W50=\"2\",G50<>Lists!$A$17),AA50,Z50)","v":""},"",{"$f":"Planning!AQ34","v":{"v":0,"d":"0.00"}},{"$f":"'Month 11'!M50+'Month 11'!N50-'Month 11'!O50","v":{"v":0,"d":"0.00"}},null,"","",{"$f":"SUMIFS($J$25:$J$224,$C$25:$C$224,$C50,$G$25:$G$224,Lists!$A$16)","v":0},0,null,"",null,{"$f":"IF(C50=0,\"\",LEFT(INDEX(Lists!$H$5:$H$49,MATCH(C50,Lists!$G$5:$G$49,0),1),1))","v":""},null,{"$f":"'Month 11'!H50+'Month 11'!I50-'Month 11'!J50","v":0},"","",null,"0"]
[{"$f":"Planning!A35","v":"I027"},{"$f":"Planning!B35","v":0},{"$f":"Planning!C35","v":0},{"$f":"Planning!D35","v":0},{"$f":"Planning!E35","v":0},{"$f":"IF(Planning!G35<>0,Planning!G35,\"\")","v":""},{"$f":"Planning!H35","v":0},{"$f":"Planning!AP35","v":0},{"$f":"IF(OR(W51=\"1\",AND(W51<>\"1\",G51=Lists!$A$17)),Y51,0)","v":0},null,{"$f":"IF(AND(W51=\"2\",G51<>Lists!$A$17),AA51,Z51)","v":""},"",{"$f":"Planning!AQ35","v":{"v":0,"d":"0.00"}},{"$f":"'Month 11'!M51+'Month 11'!N51-'Month 11'!O51","v":{"v":0,"d":"0.00"}},null,"","",{"$f":"SUMIFS($J$25:$J$224,$C$25:$C$224,$C51,$G$25:$G$224,Lists!$A$16)","v":0},0,null,"",null,{"$f":"IF(C51=0,\"\",LEFT(INDEX(Lists!$H$5:$H$49,MATCH(C51,Lists!$G$5:$G$49,0),1),1))","v":""},null,{"$f":"'Month 11'!H51+'Month 11'!I51-'Month 11'!J51","v":0},"","",null,"0"]
[{"$f":"Planning!A36","v":"I028"},{"$f":"Planning!B36","v":0},{"$f":"Planning!C36","v":0},{"$f":"Planning!D36","v":0},{"$f":"Planning!E36","v":0},{"$f":"IF(Planning!G36<>0,Planning!G36,\"\")","v":""},{"$f":"Planning!H36","v":0},{"$f":"Planning!AP36","v":0},{"$f":"IF(OR(W52=\"1\",AND(W52<>\"1\",G52=Lists!$A$17)),Y52,0)","v":0},null,{"$f":"IF(AND(W52=\"2\",G52<>Lists!$A$17),AA52,Z52)","v":""},"",{"$f":"Planning!AQ36","v":{"v":0,"d":"0.00"}},{"$f":"'Month 11'!M52+'Month 11'!N52-'Month 11'!O52","v":{"v":0,"d":"0.00"}},null,"","",{"$f":"SUMIFS($J$25:$J$224,$C$25:$C$224,$C52,$G$25:$G$224,Lists!$A$16)","v":0},0,null,"",null,{"$f":"IF(C52=0,\"\",LEFT(INDEX(Lists!$H$5:$H$49,MATCH(C52,Lists!$G$5:$G$49,0),1),1))","v":""},null,{"$f":"'Month 11'!H52+'Month 11'!I52-'Month 11'!J52","v":0},"","",null,"0"]
[{"$f":"Planning!A37","v":"I029"},{"$f":"Planning!B37","v":0},{"$f":"Planning!C37","v":0},{"$f":"Planning!D37","v":0},{"$f":"Planning!E37","v":0},{"$f":"IF(Planning!G37<>0,Planning!G37,\"\")","v":""},{"$f":"Planning!H37","v":0},{"$f":"Planning!AP37","v":0},{"$f":"IF(OR(W53=\"1\",AND(W53<>\"1\",G53=Lists!$A$17)),Y53,0)","v":0},null,{"$f":"IF(AND(W53=\"2\",G53<>Lists!$A$17),AA53,Z53)","v":""},"",{"$f":"Planning!AQ37","v":{"v":0,"d":"0.00"}},{"$f":"'Month 11'!M53+'Month 11'!N53-'Month 11'!O53","v":{"v":0,"d":"0.00"}},null,"","",{"$f":"SUMIFS($J$25:$J$224,$C$25:$C$224,$C53,$G$25:$G$224,Lists!$A$16)","v":0},0,null,"",null,{"$f":"IF(C53=0,\"\",LEFT(INDEX(Lists!$H$5:$H$49,MATCH(C53,Lists!$G$5:$G$49,0),1),1))","v":""},null,{"$f":"'Month 11'!H53+'Month 11'!I53-'Month 11'!J53","v":0},"","",null,"0"]
[{"$f":"Planning!A38","v":"I030"},{"$f":"Planning!B38","v":0},{"$f":"Planning!C38","v":0},{"$f":"Planning!D38","v":0},{"$f":"Planning!E38","v":0},{"$f":"IF(Planning!G38<>0,Planning!G38,\"\")","v":""},{"$f":"Planning!H38","v":0},{"$f":"Planning!AP38","v":0},{"$f":"IF(OR(W54=\"1\",AND(W54<>\"1\",G54=Lists!$A$17)),Y54,0)","v":0},null,{"$f":"IF(AND(W54=\"2\",G54<>Lists!$A$17),AA54,Z54)","v":""},"",{"$f":"Planning!AQ38","v":{"v":0,"d":"0.00"}},{"$f":"'Month 11'!M54+'Month 11'!N54-'Month 11'!O54","v":{"v":0,"d":"0.00"}},null,"","",{"$f":"SUMIFS($J$25:$J$224,$C$25:$C$224,$C54,$G$25:$G$224,Lists!$A$16)","v":0},0,null,"",null,{"$f":"IF(C54=0,\"\",LEFT(INDEX(Lists!$H$5:$H$49,MATCH(C54,Lists!$G$5:$G$49,0),1),1))","v":""},null,{"$f":"'Month 11'!H54+'Month 11'!I54-'Month 11'!J54","v":0},"","",null,"0"]
[{"$f":"Planning!A39","v":"I031"},{"$f":"Planning!B39","v":0},{"$f":"Planning!C39","v":0},{"$f":"Planning!D39","v":0},{"$f":"Planning!E39","v":0},{"$f":"IF(Planning!G39<>0,Planning!G39,\"\")","v":""},{"$f":"Planning!H39","v":0},{"$f":"Planning!AP39","v":0},{"$f":"IF(OR(W55=\"1\",AND(W55<>\"1\",G55=Lists!$A$17)),Y55,0)","v":0},null,{"$f":"IF(AND(W55=\"2\",G55<>Lists!$A$17),AA55,Z55)","v":""},"",{"$f":"Planning!AQ39","v":{"v":0,"d":"0.00"}},{"$f":"'Month 11'!M55+'Month 11'!N55-'Month 11'!O55","v":{"v":0,"d":"0.00"}},null,"","",{"$f":"SUMIFS($J$25:$J$224,$C$25:$C$224,$C55,$G$25:$G$224,Lists!$A$16)","v":0},0,null,"",null,{"$f":"IF(C55=0,\"\",LEFT(INDEX(Lists!$H$5:$H$49,MATCH(C55,Lists!$G$5:$G$49,0),1),1))","v":""},null,{"$f":"'Month 11'!H55+'Month 11'!I55-'Month 11'!J55","v":0},"","",null,"0"]
[{"$f":"Planning!A40","v":"I032"},{"$f":"Planning!B40","v":0},{"$f":"Planning!C40","v":0},{"$f":"Planning!D40","v":0},{"$f":"Planning!E40","v":0},{"$f":"IF(Planning!G40<>0,Planning!G40,\"\")","v":""},{"$f":"Planning!H40","v":0},{"$f":"Planning!AP40","v":0},{"$f":"IF(OR(W56=\"1\",AND(W56<>\"1\",G56=Lists!$A$17)),Y56,0)","v":0},null,{"$f":"IF(AND(W56=\"2\",G56<>Lists!$A$17),AA56,Z56)","v":""},"",{"$f":"Planning!AQ40","v":{"v":0,"d":"0.00"}},{"$f":"'Month 11'!M56+'Month 11'!N56-'Month 11'!O56","v":{"v":0,"d":"0.00"}},null,"","",{"$f":"SUMIFS($J$25:$J$224,$C$25:$C$224,$C56,$G$25:$G$224,Lists!$A$16)","v":0},0,null,"",null,{"$f":"IF(C56=0,\"\",LEFT(INDEX(Lists!$H$5:$H$49,MATCH(C56,Lists!$G$5:$G$49,0),1),1))","v":""},null,{"$f":"'Month 11'!H56+'Month 11'!I56-'Month 11'!J56","v":0},"","",null,"0"]
[{"$f":"Planning!A41","v":"I033"},{"$f":"Planning!B41","v":0},{"$f":"Planning!C41","v":0},{"$f":"Planning!D41","v":0},{"$f":"Planning!E41","v":0},{"$f":"IF(Planning!G41<>0,Planning!G41,\"\")","v":""},{"$f":"Planning!H41","v":0},{"$f":"Planning!AP41","v":0},{"$f":"IF(OR(W57=\"1\",AND(W57<>\"1\",G57=Lists!$A$17)),Y57,0)","v":0},null,{"$f":"IF(AND(W57=\"2\",G57<>Lists!$A$17),AA57,Z57)","v":""},{"$f":"IF($U57=ExcluirDelPLogro,\"\",IF(AND(H57=0,I57=0,J57=0),\"\",K57))","v":""},{"$f":"Planning!AQ41","v":{"v":0,"d":"0.00"}},{"$f":"'Month 11'!M57+'Month 11'!N57-'Month 11'!O57","v":{"v":0,"d":"0.00"}},null,"",{"$f":"IF($U57=ExcluirDelPLogro,\"\",IF(AND(M57=0,N57=0,O57=0),\"\",P57))","v":""},{"$f":"SUMIFS($J$25:$J$224,$C$25:$C$224,$C57,$G$25:$G$224,Lists!$A$16)","v":0},0,null,"",null,{"$f":"IF(C57=0,\"\",LEFT(INDEX(Lists!$H$5:$H$49,MATCH(C57,Lists!$G$5:$G$49,0),1),1))","v":""},null,{"$f":"'Month 11'!H57+'Month 11'!I57-'Month 11'!J57","v":0},"",{"$f":"IF(AND(H57=0,I57=0,J57=0),\"\",IF(J57>0,H57/J57,0))","v":""},null,"0"]
[{"$f":"Planning!A42","v":"I034"},{"$f":"Planning!B42","v":0},{"$f":"Planning!C42","v":0},{"$f":"Planning!D42","v":0},{"$f":"Planning!E42","v":0},{"$f":"IF(Planning!G42<>0,Planning!G42,\"\")","v":""},{"$f":"Planning!H42","v":0},{"$f":"Planning!AP42","v":0},{"$f":"IF(OR(W58=\"1\",AND(W58<>\"1\",G58=Lists!$A$17)),Y58,0)","v":0},null,{"$f":"IF(AND(W58=\"2\",G58<>Lists!$A$17),AA58,Z58)","v":""},"",{"$f":"Planning!AQ42","v":{"v":0,"d":"0.00"}},{"$f":"'Month 11'!M58+'Month 11'!N58-'Month 11'!O58","v":{"v":0,"d":"0.00"}},null,"","",{"$f":"SUMIFS($J$25:$J$224,$C$25:$C$224,$C58,$G$25:$G$224,Lists!$A$16)","v":0},0,null,"",null,{"$f":"IF(C58=0,\"\",LEFT(INDEX(Lists!$H$5:$H$49,MATCH(C58,Lists!$G$5:$G$49,0),1),1))","v":""},null,{"$f":"'Month 11'!H58+'Month 11'!I58-'Month 11'!J58","v":0},"","",null,"0"]
[{"$f":"Planning!A43","v":"I035"},{"$f":"Planning!B43","v":0},{"$f":"Planning!C43","v":0},{"$f":"Planning!D43","v":0},{"$f":"Planning!E43","v":0},{"$f":"IF(Planning!G43<>0,Planning!G43,\"\")","v":""},{"$f":"Planning!H43","v":0},{"$f":"Planning!AP43","v":0},{"$f":"IF(OR(W59=\"1\",AND(W59<>\"1\",G59=Lists!$A$17)),Y59,0)","v":0},null,{"$f":"IF(AND(W59=\"2\",G59<>Lists!$A$17),AA59,Z59)","v":""},"",{"$f":"Planning!AQ43","v":{"v":0,"d":"0.00"}},{"$f":"'Month 11'!M59+'Month 11'!N59-'Month 11'!O59","v":{"v":0,"d":"0.00"}},null,"","",{"$f":"SUMIFS($J$25:$J$224,$C$25:$C$224,$C59,$G$25:$G$224,Lists!$A$16)","v":0},0,null,"",null,{"$f":"IF(C59=0,\"\",LEFT(INDEX(Lists!$H$5:$H$49,MATCH(C59,Lists!$G$5:$G$49,0),1),1))","v":""},null,{"$f":"'Month 11'!H59+'Month 11'!I59-'Month 11'!J59","v":0},"","",null,"0"]
[{"$f":"Planning!A44","v":"I036"},{"$f":"Planning!B44","v":0},{"$f":"Planning!C44","v":0},{"$f":"Planning!D44","v":0},{"$f":"Planning!E44","v":0},{"$f":"IF(Planning!G44<>0,Planning!G44,\"\")","v":""},{"$f":"Planning!H44","v":0},{"$f":"Planning!AP44","v":0},{"$f":"IF(OR(W60=\"1\",AND(W60<>\"1\",G60=Lists!$A$17)),Y60,0)","v":0},null,{"$f":"IF(AND(W60=\"2\",G60<>Lists!$A$17),AA60,Z60)","v":""},"",{"$f":"Planning!AQ44","v":{"v":0,"d":"0.00"}},{"$f":"'Month 11'!M60+'Month 11'!N60-'Month 11'!O60","v":{"v":0,"d":"0.00"}},null,"","",{"$f":"SUMIFS($J$25:$J$224,$C$25:$C$224,$C60,$G$25:$G$224,Lists!$A$16)","v":0},0,null,"",null,{"$f":"IF(C60=0,\"\",LEFT(INDEX(Lists!$H$5:$H$49,MATCH(C60,Lists!$G$5:$G$49,0),1),1))","v":""},null,{"$f":"'Month 11'!H60+'Month 11'!I60-'Month 11'!J60","v":0},"","",null,"0"]
[{"$f":"Planning!A45","v":"I037"},{"$f":"Planning!B45","v":0},{"$f":"Planning!C45","v":0},{"$f":"Planning!D45","v":0},{"$f":"Planning!E45","v":0},{"$f":"IF(Planning!G45<>0,Planning!G45,\"\")","v":""},{"$f":"Planning!H45","v":0},{"$f":"Planning!AP45","v":0},{"$f":"IF(OR(W61=\"1\",AND(W61<>\"1\",G61=Lists!$A$17)),Y61,0)","v":0},null,{"$f":"IF(AND(W61=\"2\",G61<>Lists!$A$17),AA61,Z61)","v":""},"",{"$f":"Planning!AQ45","v":{"v":0,"d":"0.00"}},{"$f":"'Month 11'!M61+'Month 11'!N61-'Month 11'!O61","v":{"v":0,"d":"0.00"}},null,"","",{"$f":"SUMIFS($J$25:$J$224,$C$25:$C$224,$C61,$G$25:$G$224,Lists!$A$16)","v":0},0,null,"",null,{"$f":"IF(C61=0,\"\",LEFT(INDEX(Lists!$H$5:$H$49,MATCH(C61,Lists!$G$5:$G$49,0),1),1))","v":""},null,{"$f":"'Month 11'!H61+'Month 11'!I61-'Month 11'!J61","v":0},"","",null,"0"]
[{"$f":"Planning!A46","v":"I038"},{"$f":"Planning!B46","v":0},{"$f":"Planning!C46","v":0},{"$f":"Planning!D46","v":0},{"$f":"Planning!E46","v":0},{"$f":"IF(Planning!G46<>0,Planning!G46,\"\")","v":""},{"$f":"Planning!H46","v":0},{"$f":"Planning!AP46","v":0},{"$f":"IF(OR(W62=\"1\",AND(W62<>\"1\",G62=Lists!$A$17)),Y62,0)","v":0},null,{"$f":"IF(AND(W62=\"2\",G62<>Lists!$A$17),AA62,Z62)","v":""},"",{"$f":"Planning!AQ46","v":{"v":0,"d":"0.00"}},{"$f":"'Month 11'!M62+'Month 11'!N62-'Month 11'!O62","v":{"v":0,"d":"0.00"}},null,"","",{"$f":"SUMIFS($J$25:$J$224,$C$25:$C$224,$C62,$G$25:$G$224,Lists!$A$16)","v":0},0,null,"",null,{"$f":"IF(C62=0,\"\",LEFT(INDEX(Lists!$H$5:$H$49,MATCH(C62,Lists!$G$5:$G$49,0),1),1))","v":""},null,{"$f":"'Month 11'!H62+'Month 11'!I62-'Month 11'!J62","v":0},"","",null,"0"]
[{"$f":"Planning!A47","v":"I039"},{"$f":"Planning!B47","v":0},{"$f":"Planning!C47","v":0},{"$f":"Planning!D47","v":0},{"$f":"Planning!E47","v":0},{"$f":"IF(Planning!G47<>0,Planning!G47,\"\")","v":""},{"$f":"Planning!H47","v":0},{"$f":"Planning!AP47","v":0},{"$f":"IF(OR(W63=\"1\",AND(W63<>\"1\",G63=Lists!$A$17)),Y63,0)","v":0},null,{"$f":"IF(AND(W63=\"2\",G63<>Lists!$A$17),AA63,Z63)","v":""},"",{"$f":"Planning!AQ47","v":{"v":0,"d":"0.00"}},{"$f":"'Month 11'!M63+'Month 11'!N63-'Month 11'!O63","v":{"v":0,"d":"0.00"}},null,"","",{"$f":"SUMIFS($J$25:$J$224,$C$25:$C$224,$C63,$G$25:$G$224,Lists!$A$16)","v":0},0,null,"",null,{"$f":"IF(C63=0,\"\",LEFT(INDEX(Lists!$H$5:$H$49,MATCH(C63,Lists!$G$5:$G$49,0),1),1))","v":""},null,{"$f":"'Month 11'!H63+'Month 11'!I63-'Month 11'!J63","v":0},"","",null,"0"]
[{"$f":"Planning!A48","v":"I040"},{"$f":"Planning!B48","v":0},{"$f":"Planning!C48","v":0},{"$f":"Planning!D48","v":0},{"$f":"Planning!E48","v":0},{"$f":"IF(Planning!G48<>0,Planning!G48,\"\")","v":""},{"$f":"Planning!H48","v":0},{"$f":"Planning!AP48","v":0},{"$f":"IF(OR(W64=\"1\",AND(W64<>\"1\",G64=Lists!$A$17)),Y64,0)","v":0},null,{"$f":"IF(AND(W64=\"2\",G64<>Lists!$A$17),AA64,Z64)","v":""},"",{"$f":"Planning!AQ48","v":{"v":0,"d":"0.00"}},{"$f":"'Month 11'!M64+'Month 11'!N64-'Month 11'!O64","v":{"v":0,"d":"0.00"}},null,"","",{"$f":"SUMIFS($J$25:$J$224,$C$25:$C$224,$C64,$G$25:$G$224,Lists!$A$16)","v":0},0,null,"",null,{"$f":"IF(C64=0,\"\",LEFT(INDEX(Lists!$H$5:$H$49,MATCH(C64,Lists!$G$5:$G$49,0),1),1))","v":""},null,{"$f":"'Month 11'!H64+'Month 11'!I64-'Month 11'!J64","v":0},"","",null,"0"]
[{"$f":"Planning!A49","v":"I041"},{"$f":"Planning!B49","v":0},{"$f":"Planning!C49","v":0},{"$f":"Planning!D49","v":0},{"$f":"Planning!E49","v":0},{"$f":"IF(Planning!G49<>0,Planning!G49,\"\")","v":""},{"$f":"Planning!H49","v":0},{"$f":"Planning!AP49","v":0},{"$f":"IF(OR(W65=\"1\",AND(W65<>\"1\",G65=Lists!$A$17)),Y65,0)","v":0},null,{"$f":"IF(AND(W65=\"2\",G65<>Lists!$A$17),AA65,Z65)","v":""},"",{"$f":"Planning!AQ49","v":{"v":0,"d":"0.00"}},{"$f":"'Month 11'!M65+'Month 11'!N65-'Month 11'!O65","v":{"v":0,"d":"0.00"}},null,"","",{"$f":"SUMIFS($J$25:$J$224,$C$25:$C$224,$C65,$G$25:$G$224,Lists!$A$16)","v":0},0,null,"",null,{"$f":"IF(C65=0,\"\",LEFT(INDEX(Lists!$H$5:$H$49,MATCH(C65,Lists!$G$5:$G$49,0),1),1))","v":""},null,{"$f":"'Month 11'!H65+'Month 11'!I65-'Month 11'!J65","v":0},"","",null,"0"]
[{"$f":"Planning!A50","v":"I042"},{"$f":"Planning!B50","v":0},{"$f":"Planning!C50","v":0},{"$f":"Planning!D50","v":0},{"$f":"Planning!E50","v":0},{"$f":"IF(Planning!G50<>0,Planning!G50,\"\")","v":""},{"$f":"Planning!H50","v":0},{"$f":"Planning!AP50","v":0},{"$f":"IF(OR(W66=\"1\",AND(W66<>\"1\",G66=Lists!$A$17)),Y66,0)","v":0},null,{"$f":"IF(AND(W66=\"2\",G66<>Lists!$A$17),AA66,Z66)","v":""},"",{"$f":"Planning!AQ50","v":{"v":0,"d":"0.00"}},{"$f":"'Month 11'!M66+'Month 11'!N66-'Month 11'!O66","v":{"v":0,"d":"0.00"}},null,"","",{"$f":"SUMIFS($J$25:$J$224,$C$25:$C$224,$C66,$G$25:$G$224,Lists!$A$16)","v":0},0,null,"",null,{"$f":"IF(C66=0,\"\",LEFT(INDEX(Lists!$H$5:$H$49,MATCH(C66,Lists!$G$5:$G$49,0),1),1))","v":""},null,{"$f":"'Month 11'!H66+'Month 11'!I66-'Month 11'!J66","v":0},"","",null,"0"]
[{"$f":"Planning!A51","v":"I043"},{"$f":"Planning!B51","v":0},{"$f":"Planning!C51","v":0},{"$f":"Planning!D51","v":0},{"$f":"Planning!E51","v":0},{"$f":"IF(Planning!G51<>0,Planning!G51,\"\")","v":""},{"$f":"Planning!H51","v":0},{"$f":"Planning!AP51","v":0},{"$f":"IF(OR(W67=\"1\",AND(W67<>\"1\",G67=Lists!$A$17)),Y67,0)","v":0},null,{"$f":"IF(AND(W67=\"2\",G67<>Lists!$A$17),AA67,Z67)","v":""},"",{"$f":"Planning!AQ51","v":{"v":0,"d":"0.00"}},{"$f":"'Month 11'!M67+'Month 11'!N67-'Month 11'!O67","v":{"v":0,"d":"0.00"}},null,"","",{"$f":"SUMIFS($J$25:$J$224,$C$25:$C$224,$C67,$G$25:$G$224,Lists!$A$16)","v":0},0,null,"",null,{"$f":"IF(C67=0,\"\",LEFT(INDEX(Lists!$H$5:$H$49,MATCH(C67,Lists!$G$5:$G$49,0),1),1))","v":""},null,{"$f":"'Month 11'!H67+'Month 11'!I67-'Month 11'!J67","v":0},"","",null,"0"]
[{"$f":"Planning!A52","v":"I044"},{"$f":"Planning!B52","v":0},{"$f":"Planning!C52","v":0},{"$f":"Planning!D52","v":0},{"$f":"Planning!E52","v":0},{"$f":"IF(Planning!G52<>0,Planning!G52,\"\")","v":""},{"$f":"Planning!H52","v":0},{"$f":"Planning!AP52","v":0},{"$f":"IF(OR(W68=\"1\",AND(W68<>\"1\",G68=Lists!$A$17)),Y68,0)","v":0},null,{"$f":"IF(AND(W68=\"2\",G68<>Lists!$A$17),AA68,Z68)","v":""},"",{"$f":"Planning!AQ52","v":{"v":0,"d":"0.00"}},{"$f":"'Month 11'!M68+'Month 11'!N68-'Month 11'!O68","v":{"v":0,"d":"0.00"}},null,"","",{"$f":"SUMIFS($J$25:$J$224,$C$25:$C$224,$C68,$G$25:$G$224,Lists!$A$16)","v":0},0,null,"",null,{"$f":"IF(C68=0,\"\",LEFT(INDEX(Lists!$H$5:$H$49,MATCH(C68,Lists!$G$5:$G$49,0),1),1))","v":""},null,{"$f":"'Month 11'!H68+'Month 11'!I68-'Month 11'!J68","v":0},"","",null,"0"]
[{"$f":"Planning!A53","v":"I045"},{"$f":"Planning!B53","v":0},{"$f":"Planning!C53","v":0},{"$f":"Planning!D53","v":0},{"$f":"Planning!E53","v":0},{"$f":"IF(Planning!G53<>0,Planning!G53,\"\")","v":""},{"$f":"Planning!H53","v":0},{"$f":"Planning!AP53","v":0},{"$f":"IF(OR(W69=\"1\",AND(W69<>\"1\",G69=Lists!$A$17)),Y69,0)","v":0},null,{"$f":"IF(AND(W69=\"2\",G69<>Lists!$A$17),AA69,Z69)","v":""},"",{"$f":"Planning!AQ53","v":{"v":0,"d":"0.00"}},{"$f":"'Month 11'!M69+'Month 11'!N69-'Month 11'!O69","v":{"v":0,"d":"0.00"}},null,"","",{"$f":"SUMIFS($J$25:$J$224,$C$25:$C$224,$C69,$G$25:$G$224,Lists!$A$16)","v":0},0,null,"",null,{"$f":"IF(C69=0,\"\",LEFT(INDEX(Lists!$H$5:$H$49,MATCH(C69,Lists!$G$5:$G$49,0),1),1))","v":""},null,{"$f":"'Month 11'!H69+'Month 11'!I69-'Month 11'!J69","v":0},"","",null,"0"]
[{"$f":"Planning!A54","v":"I046"},{"$f":"Planning!B54","v":0},{"$f":"Planning!C54","v":0},{"$f":"Planning!D54","v":0},{"$f":"Planning!E54","v":0},{"$f":"IF(Planning!G54<>0,Planning!G54,\"\")","v":""},{"$f":"Planning!H54","v":0},{"$f":"Planning!AP54","v":0},{"$f":"IF(OR(W70=\"1\",AND(W70<>\"1\",G70=Lists!$A$17)),Y70,0)","v":0},null,{"$f":"IF(AND(W70=\"2\",G70<>Lists!$A$17),AA70,Z70)","v":""},"",{"$f":"Planning!AQ54","v":{"v":0,"d":"0.00"}},{"$f":"'Month 11'!M70+'Month 11'!N70-'Month 11'!O70","v":{"v":0,"d":"0.00"}},null,"","",{"$f":"SUMIFS($J$25:$J$224,$C$25:$C$224,$C70,$G$25:$G$224,Lists!$A$16)","v":0},0,null,"",null,{"$f":"IF(C70=0,\"\",LEFT(INDEX(Lists!$H$5:$H$49,MATCH(C70,Lists!$G$5:$G$49,0),1),1))","v":""},null,{"$f":"'Month 11'!H70+'Month 11'!I70-'Month 11'!J70","v":0},"","",null,"0"]
[{"$f":"Planning!A55","v":"I047"},{"$f":"Planning!B55","v":0},{"$f":"Planning!C55","v":0},{"$f":"Planning!D55","v":0},{"$f":"Planning!E55","v":0},{"$f":"IF(Planning!G55<>0,Planning!G55,\"\")","v":""},{"$f":"Planning!H55","v":0},{"$f":"Planning!AP55","v":0},{"$f":"IF(OR(W71=\"1\",AND(W71<>\"1\",G71=Lists!$A$17)),Y71,0)","v":0},null,{"$f":"IF(AND(W71=\"2\",G71<>Lists!$A$17),AA71,Z71)","v":""},"",{"$f":"Planning!AQ55","v":{"v":0,"d":"0.00"}},{"$f":"'Month 11'!M71+'Month 11'!N71-'Month 11'!O71","v":{"v":0,"d":"0.00"}},null,"","",{"$f":"SUMIFS($J$25:$J$224,$C$25:$C$224,$C71,$G$25:$G$224,Lists!$A$16)","v":0},0,null,"",null,{"$f":"IF(C71=0,\"\",LEFT(INDEX(Lists!$H$5:$H$49,MATCH(C71,Lists!$G$5:$G$49,0),1),1))","v":""},null,{"$f":"'Month 11'!H71+'Month 11'!I71-'Month 11'!J71","v":0},"","",null,"0"]
[{"$f":"Planning!A56","v":"I048"},{"$f":"Planning!B56","v":0},{"$f":"Planning!C56","v":0},{"$f":"Planning!D56","v":0},{"$f":"Planning!E56","v":0},{"$f":"IF(Planning!G56<>0,Planning!G56,\"\")","v":""},{"$f":"Planning!H56","v":0},{"$f":"Planning!AP56","v":0},{"$f":"IF(OR(W72=\"1\",AND(W72<>\"1\",G72=Lists!$A$17)),Y72,0)","v":0},null,{"$f":"IF(AND(W72=\"2\",G72<>Lists!$A$17),AA72,Z72)","v":""},"",{"$f":"Planning!AQ56","v":{"v":0,"d":"0.00"}},{"$f":"'Month 11'!M72+'Month 11'!N72-'Month 11'!O72","v":{"v":0,"d":"0.00"}},null,"","",{"$f":"SUMIFS($J$25:$J$224,$C$25:$C$224,$C72,$G$25:$G$224,Lists!$A$16)","v":0},0,null,"",null,{"$f":"IF(C72=0,\"\",LEFT(INDEX(Lists!$H$5:$H$49,MATCH(C72,Lists!$G$5:$G$49,0),1),1))","v":""},null,{"$f":"'Month 11'!H72+'Month 11'!I72-'Month 11'!J72","v":0},"","",null,"0"]
[{"$f":"Planning!A57","v":"I049"},{"$f":"Planning!B57","v":0},{"$f":"Planning!C57","v":0},{"$f":"Planning!D57","v":0},{"$f":"Planning!E57","v":0},{"$f":"IF(Planning!G57<>0,Planning!G57,\"\")","v":""},{"$f":"Planning!H57","v":0},{"$f":"Planning!AP57","v":0},{"$f":"IF(OR(W73=\"1\",AND(W73<>\"1\",G73=Lists!$A$17)),Y73,0)","v":0},null,{"$f":"IF(AND(W73=\"2\",G73<>Lists!$A$17),AA73,Z73)","v":""},"",{"$f":"Planning!AQ57","v":{"v":0,"d":"0.00"}},{"$f":"'Month 11'!M73+'Month 11'!N73-'Month 11'!O73","v":{"v":0,"d":"0.00"}},null,"","",{"$f":"SUMIFS($J$25:$J$224,$C$25:$C$224,$C73,$G$25:$G$224,Lists!$A$16)","v":0},0,null,"",null,{"$f":"IF(C73=0,\"\",LEFT(INDEX(Lists!$H$5:$H$49,MATCH(C73,Lists!$G$5:$G$49,0),1),1))","v":""},null,{"$f":"'Month 11'!H73+'Month 11'!I73-'Month 11'!J73","v":0},"","",null,"0"]
[{"$f":"Planning!A58","v":"I050"},{"$f":"Planning!B58","v":0},{"$f":"Planning!C58","v":0},{"$f":"Planning!D58","v":0},{"$f":"Planning!E58","v":0},{"$f":"IF(Planning!G58<>0,Planning!G58,\"\")","v":""},{"$f":"Planning!H58","v":0},{"$f":"Planning!AP58","v":0},{"$f":"IF(OR(W74=\"1\",AND(W74<>\"1\",G74=Lists!$A$17)),Y74,0)","v":0},null,{"$f":"IF(AND(W74=\"2\",G74<>Lists!$A$17),AA74,Z74)","v":""},"",{"$f":"Planning!AQ58","v":{"v":0,"d":"0.00"}},{"$f":"'Month 11'!M74+'Month 11'!N74-'Month 11'!O74","v":{"v":0,"d":"0.00"}},null,"","",{"$f":"SUMIFS($J$25:$J$224,$C$25:$C$224,$C74,$G$25:$G$224,Lists!$A$16)","v":0},0,null,"",null,{"$f":"IF(C74=0,\"\",LEFT(INDEX(Lists!$H$5:$H$49,MATCH(C74,Lists!$G$5:$G$49,0),1),1))","v":""},null,{"$f":"'Month 11'!H74+'Month 11'!I74-'Month 11'!J74","v":0},"","",null,"0"]
[{"$f":"Planning!A59","v":"I051"},{"$f":"Planning!B59","v":0},{"$f":"Planning!C59","v":0},{"$f":"Planning!D59","v":0},{"$f":"Planning!E59","v":0},{"$f":"IF(Planning!G59<>0,Planning!G59,\"\")","v":""},{"$f":"Planning!H59","v":0},{"$f":"Planning!AP59","v":0},{"$f":"IF(OR(W75=\"1\",AND(W75<>\"1\",G75=Lists!$A$17)),Y75,0)","v":0},null,{"$f":"IF(AND(W75=\"2\",G75<>Lists!$A$17),AA75,Z75)","v":""},"",{"$f":"Planning!AQ59","v":{"v":0,"d":"0.00"}},{"$f":"'Month 11'!M75+'Month 11'!N75-'Month 11'!O75","v":{"v":0,"d":"0.00"}},null,"","",{"$f":"SUMIFS($J$25:$J$224,$C$25:$C$224,$C75,$G$25:$G$224,Lists!$A$16)","v":0},0,null,"",null,{"$f":"IF(C75=0,\"\",LEFT(INDEX(Lists!$H$5:$H$49,MATCH(C75,Lists!$G$5:$G$49,0),1),1))","v":""},null,{"$f":"'Month 11'!H75+'Month 11'!I75-'Month 11'!J75","v":0},"","",null,"0"]
[{"$f":"Planning!A60","v":"I052"},{"$f":"Planning!B60","v":0},{"$f":"Planning!C60","v":0},{"$f":"Planning!D60","v":0},{"$f":"Planning!E60","v":0},{"$f":"IF(Planning!G60<>0,Planning!G60,\"\")","v":""},{"$f":"Planning!H60","v":0},{"$f":"Planning!AP60","v":0},{"$f":"IF(OR(W76=\"1\",AND(W76<>\"1\",G76=Lists!$A$17)),Y76,0)","v":0},null,{"$f":"IF(AND(W76=\"2\",G76<>Lists!$A$17),AA76,Z76)","v":""},"",{"$f":"Planning!AQ60","v":{"v":0,"d":"0.00"}},{"$f":"'Month 11'!M76+'Month 11'!N76-'Month 11'!O76","v":{"v":0,"d":"0.00"}},null,"","",{"$f":"SUMIFS($J$25:$J$224,$C$25:$C$224,$C76,$G$25:$G$224,Lists!$A$16)","v":0},0,null,"",null,{"$f":"IF(C76=0,\"\",LEFT(INDEX(Lists!$H$5:$H$49,MATCH(C76,Lists!$G$5:$G$49,0),1),1))","v":""},null,{"$f":"'Month 11'!H76+'Month 11'!I76-'Month 11'!J76","v":0},"","",null,"0"]
[{"$f":"Planning!A61","v":"I053"},{"$f":"Planning!B61","v":0},{"$f":"Planning!C61","v":0},{"$f":"Planning!D61","v":0},{"$f":"Planning!E61","v":0},{"$f":"IF(Planning!G61<>0,Planning!G61,\"\")","v":""},{"$f":"Planning!H61","v":0},{"$f":"Planning!AP61","v":0},{"$f":"IF(OR(W77=\"1\",AND(W77<>\"1\",G77=Lists!$A$17)),Y77,0)","v":0},null,{"$f":"IF(AND(W77=\"2\",G77<>Lists!$A$17),AA77,Z77)","v":""},"",{"$f":"Planning!AQ61","v":{"v":0,"d":"0.00"}},{"$f":"'Month 11'!M77+'Month 11'!N77-'Month 11'!O77","v":{"v":0,"d":"0.00"}},null,"","",{"$f":"SUMIFS($J$25:$J$224,$C$25:$C$224,$C77,$G$25:$G$224,Lists!$A$16)","v":0},0,null,"",null,{"$f":"IF(C77=0,\"\",LEFT(INDEX(Lists!$H$5:$H$49,MATCH(C77,Lists!$G$5:$G$49,0),1),1))","v":""},null,{"$f":"'Month 11'!H77+'Month 11'!I77-'Month 11'!J77","v":0},"","",null,"0"]
[{"$f":"Planning!A62","v":"I054"},{"$f":"Planning!B62","v":0},{"$f":"Planning!C62","v":0},{"$f":"Planning!D62","v":0},{"$f":"Planning!E62","v":0},{"$f":"IF(Planning!G62<>0,Planning!G62,\"\")","v":""},{"$f":"Planning!H62","v":0},{"$f":"Planning!AP62","v":0},{"$f":"IF(OR(W78=\"1\",AND(W78<>\"1\",G78=Lists!$A$17)),Y78,0)","v":0},null,{"$f":"IF(AND(W78=\"2\",G78<>Lists!$A$17),AA78,Z78)","v":""},"",{"$f":"Planning!AQ62","v":{"v":0,"d":"0.00"}},{"$f":"'Month 11'!M78+'Month 11'!N78-'Month 11'!O78","v":{"v":0,"d":"0.00"}},null,"","",{"$f":"SUMIFS($J$25:$J$224,$C$25:$C$224,$C78,$G$25:$G$224,Lists!$A$16)","v":0},0,null,"",null,{"$f":"IF(C78=0,\"\",LEFT(INDEX(Lists!$H$5:$H$49,MATCH(C78,Lists!$G$5:$G$49,0),1),1))","v":""},null,{"$f":"'Month 11'!H78+'Month 11'!I78-'Month 11'!J78","v":0},"","",null,"0"]
[{"$f":"Planning!A63","v":"I055"},{"$f":"Planning!B63","v":0},{"$f":"Planning!C63","v":0},{"$f":"Planning!D63","v":0},{"$f":"Planning!E63","v":0},{"$f":"IF(Planning!G63<>0,Planning!G63,\"\")","v":""},{"$f":"Planning!H63","v":0},{"$f":"Planning!AP63","v":0},{"$f":"IF(OR(W79=\"1\",AND(W79<>\"1\",G79=Lists!$A$17)),Y79,0)","v":0},null,{"$f":"IF(AND(W79=\"2\",G79<>Lists!$A$17),AA79,Z79)","v":""},"",{"$f":"Planning!AQ63","v":{"v":0,"d":"0.00"}},{"$f":"'Month 11'!M79+'Month 11'!N79-'Month 11'!O79","v":{"v":0,"d":"0.00"}},null,"","",{"$f":"SUMIFS($J$25:$J$224,$C$25:$C$224,$C79,$G$25:$G$224,Lists!$A$16)","v":0},0,null,"",null,{"$f":"IF(C79=0,\"\",LEFT(INDEX(Lists!$H$5:$H$49,MATCH(C79,Lists!$G$5:$G$49,0),1),1))","v":""},null,{"$f":"'Month 11'!H79+'Month 11'!I79-'Month 11'!J79","v":0},"","",null,"0"]
[{"$f":"Planning!A64","v":"I056"},{"$f":"Planning!B64","v":0},{"$f":"Planning!C64","v":0},{"$f":"Planning!D64","v":0},{"$f":"Planning!E64","v":0},{"$f":"IF(Planning!G64<>0,Planning!G64,\"\")","v":""},{"$f":"Planning!H64","v":0},{"$f":"Planning!AP64","v":0},{"$f":"IF(OR(W80=\"1\",AND(W80<>\"1\",G80=Lists!$A$17)),Y80,0)","v":0},null,{"$f":"IF(AND(W80=\"2\",G80<>Lists!$A$17),AA80,Z80)","v":""},"",{"$f":"Planning!AQ64","v":{"v":0,"d":"0.00"}},{"$f":"'Month 11'!M80+'Month 11'!N80-'Month 11'!O80","v":{"v":0,"d":"0.00"}},null,"","",{"$f":"SUMIFS($J$25:$J$224,$C$25:$C$224,$C80,$G$25:$G$224,Lists!$A$16)","v":0},0,null,"",null,{"$f":"IF(C80=0,\"\",LEFT(INDEX(Lists!$H$5:$H$49,MATCH(C80,Lists!$G$5:$G$49,0),1),1))","v":""},null,{"$f":"'Month 11'!H80+'Month 11'!I80-'Month 11'!J80","v":0},"","",null,"0"]
[{"$f":"Planning!A65","v":"I057"},{"$f":"Planning!B65","v":0},{"$f":"Planning!C65","v":0},{"$f":"Planning!D65","v":0},{"$f":"Planning!E65","v":0},{"$f":"IF(Planning!G65<>0,Planning!G65,\"\")","v":""},{"$f":"Planning!H65","v":0},{"$f":"Planning!AP65","v":0},{"$f":"IF(OR(W81=\"1\",AND(W81<>\"1\",G81=Lists!$A$17)),Y81,0)","v":0},null,{"$f":"IF(AND(W81=\"2\",G81<>Lists!$A$17),AA81,Z81)","v":""},"",{"$f":"Planning!AQ65","v":{"v":0,"d":"0.00"}},{"$f":"'Month 11'!M81+'Month 11'!N81-'Month 11'!O81","v":{"v":0,"d":"0.00"}},null,"","",{"$f":"SUMIFS($J$25:$J$224,$C$25:$C$224,$C81,$G$25:$G$224,Lists!$A$16)","v":0},0,null,"",null,{"$f":"IF(C81=0,\"\",LEFT(INDEX(Lists!$H$5:$H$49,MATCH(C81,Lists!$G$5:$G$49,0),1),1))","v":""},null,{"$f":"'Month 11'!H81+'Month 11'!I81-'Month 11'!J81","v":0},"","",null,"0"]
[{"$f":"Planning!A66","v":"I058"},{"$f":"Planning!B66","v":0},{"$f":"Planning!C66","v":0},{"$f":"Planning!D66","v":0},{"$f":"Planning!E66","v":0},{"$f":"IF(Planning!G66<>0,Planning!G66,\"\")","v":""},{"$f":"Planning!H66","v":0},{"$f":"Planning!AP66","v":0},{"$f":"IF(OR(W82=\"1\",AND(W82<>\"1\",G82=Lists!$A$17)),Y82,0)","v":0},null,{"$f":"IF(AND(W82=\"2\",G82<>Lists!$A$17),AA82,Z82)","v":""},"",{"$f":"Planning!AQ66","v":{"v":0,"d":"0.00"}},{"$f":"'Month 11'!M82+'Month 11'!N82-'Month 11'!O82","v":{"v":0,"d":"0.00"}},null,"","",{"$f":"SUMIFS($J$25:$J$224,$C$25:$C$224,$C82,$G$25:$G$224,Lists!$A$16)","v":0},0,null,"",null,{"$f":"IF(C82=0,\"\",LEFT(INDEX(Lists!$H$5:$H$49,MATCH(C82,Lists!$G$5:$G$49,0),1),1))","v":""},null,{"$f":"'Month 11'!H82+'Month 11'!I82-'Month 11'!J82","v":0},"","",null,"0"]
[{"$f":"Planning!A67","v":"I059"},{"$f":"Planning!B67","v":0},{"$f":"Planning!C67","v":0},{"$f":"Planning!D67","v":0},{"$f":"Planning!E67","v":0},{"$f":"IF(Planning!G67<>0,Planning!G67,\"\")","v":""},{"$f":"Planning!H67","v":0},{"$f":"Planning!AP67","v":0},{"$f":"IF(OR(W83=\"1\",AND(W83<>\"1\",G83=Lists!$A$17)),Y83,0)","v":0},null,{"$f":"IF(AND(W83=\"2\",G83<>Lists!$A$17),AA83,Z83)","v":""},"",{"$f":"Planning!AQ67","v":{"v":0,"d":"0.00"}},{"$f":"'Month 11'!M83+'Month 11'!N83-'Month 11'!O83","v":{"v":0,"d":"0.00"}},null,"","",{"$f":"SUMIFS($J$25:$J$224,$C$25:$C$224,$C83,$G$25:$G$224,Lists!$A$16)","v":0},0,null,"",null,{"$f":"IF(C83=0,\"\",LEFT(INDEX(Lists!$H$5:$H$49,MATCH(C83,Lists!$G$5:$G$49,0),1),1))","v":""},null,{"$f":"'Month 11'!H83+'Month 11'!I83-'Month 11'!J83","v":0},"","",null,"0"]
[{"$f":"Planning!A68","v":"I060"},{"$f":"Planning!B68","v":0},{"$f":"Planning!C68","v":0},{"$f":"Planning!D68","v":0},{"$f":"Planning!E68","v":0},{"$f":"IF(Planning!G68<>0,Planning!G68,\"\")","v":""},{"$f":"Planning!H68","v":0},{"$f":"Planning!AP68","v":0},{"$f":"IF(OR(W84=\"1\",AND(W84<>\"1\",G84=Lists!$A$17)),Y84,0)","v":0},null,{"$f":"IF(AND(W84=\"2\",G84<>Lists!$A$17),AA84,Z84)","v":""},"",{"$f":"Planning!AQ68","v":{"v":0,"d":"0.00"}},{"$f":"'Month 11'!M84+'Month 11'!N84-'Month 11'!O84","v":{"v":0,"d":"0.00"}},null,"","",{"$f":"SUMIFS($J$25:$J$224,$C$25:$C$224,$C84,$G$25:$G$224,Lists!$A$16)","v":0},0,null,"",null,{"$f":"IF(C84=0,\"\",LEFT(INDEX(Lists!$H$5:$H$49,MATCH(C84,Lists!$G$5:$G$49,0),1),1))","v":""},null,{"$f":"'Month 11'!H84+'Month 11'!I84-'Month 11'!J84","v":0},"","",null,"0"]
[{"$f":"Planning!A69","v":"I061"},{"$f":"Planning!B69","v":0},{"$f":"Planning!C69","v":0},{"$f":"Planning!D69","v":0},{"$f":"Planning!E69","v":0},{"$f":"IF(Planning!G69<>0,Planning!G69,\"\")","v":""},{"$f":"Planning!H69","v":0},{"$f":"Planning!AP69","v":0},{"$f":"IF(OR(W85=\"1\",AND(W85<>\"1\",G85=Lists!$A$17)),Y85,0)","v":0},null,{"$f":"IF(AND(W85=\"2\",G85<>Lists!$A$17),AA85,Z85)","v":""},"",{"$f":"Planning!AQ69","v":{"v":0,"d":"0.00"}},{"$f":"'Month 11'!M85+'Month 11'!N85-'Month 11'!O85","v":{"v":0,"d":"0.00"}},null,"","",{"$f":"SUMIFS($J$25:$J$224,$C$25:$C$224,$C85,$G$25:$G$224,Lists!$A$16)","v":0},0,null,"",null,{"$f":"IF(C85=0,\"\",LEFT(INDEX(Lists!$H$5:$H$49,MATCH(C85,Lists!$G$5:$G$49,0),1),1))","v":""},null,{"$f":"'Month 11'!H85+'Month 11'!I85-'Month 11'!J85","v":0},"","",null,"0"]
[{"$f":"Planning!A70","v":"I062"},{"$f":"Planning!B70","v":0},{"$f":"Planning!C70","v":0},{"$f":"Planning!D70","v":0},{"$f":"Planning!E70","v":0},{"$f":"IF(Planning!G70<>0,Planning!G70,\"\")","v":""},{"$f":"Planning!H70","v":0},{"$f":"Planning!AP70","v":0},{"$f":"IF(OR(W86=\"1\",AND(W86<>\"1\",G86=Lists!$A$17)),Y86,0)","v":0},null,{"$f":"IF(AND(W86=\"2\",G86<>Lists!$A$17),AA86,Z86)","v":""},"",{"$f":"Planning!AQ70","v":{"v":0,"d":"0.00"}},{"$f":"'Month 11'!M86+'Month 11'!N86-'Month 11'!O86","v":{"v":0,"d":"0.00"}},null,"","",{"$f":"SUMIFS($J$25:$J$224,$C$25:$C$224,$C86,$G$25:$G$224,Lists!$A$16)","v":0},0,null,"",null,{"$f":"IF(C86=0,\"\",LEFT(INDEX(Lists!$H$5:$H$49,MATCH(C86,Lists!$G$5:$G$49,0),1),1))","v":""},null,{"$f":"'Month 11'!H86+'Month 11'!I86-'Month 11'!J86","v":0},"","",null,"0"]
[{"$f":"Planning!A71","v":"I063"},{"$f":"Planning!B71","v":0},{"$f":"Planning!C71","v":0},{"$f":"Planning!D71","v":0},{"$f":"Planning!E71","v":0},{"$f":"IF(Planning!G71<>0,Planning!G71,\"\")","v":""},{"$f":"Planning!H71","v":0},{"$f":"Planning!AP71","v":0},{"$f":"IF(OR(W87=\"1\",AND(W87<>\"1\",G87=Lists!$A$17)),Y87,0)","v":0},null,{"$f":"IF(AND(W87=\"2\",G87<>Lists!$A$17),AA87,Z87)","v":""},"",{"$f":"Planning!AQ71","v":{"v":0,"d":"0.00"}},{"$f":"'Month 11'!M87+'Month 11'!N87-'Month 11'!O87","v":{"v":0,"d":"0.00"}},null,"","",{"$f":"SUMIFS($J$25:$J$224,$C$25:$C$224,$C87,$G$25:$G$224,Lists!$A$16)","v":0},0,null,"",null,{"$f":"IF(C87=0,\"\",LEFT(INDEX(Lists!$H$5:$H$49,MATCH(C87,Lists!$G$5:$G$49,0),1),1))","v":""},null,{"$f":"'Month 11'!H87+'Month 11'!I87-'Month 11'!J87","v":0},"","",null,"0"]
[{"$f":"Planning!A72","v":"I064"},{"$f":"Planning!B72","v":0},{"$f":"Planning!C72","v":0},{"$f":"Planning!D72","v":0},{"$f":"Planning!E72","v":0},{"$f":"IF(Planning!G72<>0,Planning!G72,\"\")","v":""},{"$f":"Planning!H72","v":0},{"$f":"Planning!AP72","v":0},{"$f":"IF(OR(W88=\"1\",AND(W88<>\"1\",G88=Lists!$A$17)),Y88,0)","v":0},null,{"$f":"IF(AND(W88=\"2\",G88<>Lists!$A$17),AA88,Z88)","v":""},"",{"$f":"Planning!AQ72","v":{"v":0,"d":"0.00"}},{"$f":"'Month 11'!M88+'Month 11'!N88-'Month 11'!O88","v":{"v":0,"d":"0.00"}},null,"","",{"$f":"SUMIFS($J$25:$J$224,$C$25:$C$224,$C88,$G$25:$G$224,Lists!$A$16)","v":0},0,null,"",null,{"$f":"IF(C88=0,\"\",LEFT(INDEX(Lists!$H$5:$H$49,MATCH(C88,Lists!$G$5:$G$49,0),1),1))","v":""},null,{"$f":"'Month 11'!H88+'Month 11'!I88-'Month 11'!J88","v":0},"","",null,"0"]
[{"$f":"Planning!A73","v":"I065"},{"$f":"Planning!B73","v":0},{"$f":"Planning!C73","v":0},{"$f":"Planning!D73","v":0},{"$f":"Planning!E73","v":0},{"$f":"IF(Planning!G73<>0,Planning!G73,\"\")","v":""},{"$f":"Planning!H73","v":0},{"$f":"Planning!AP73","v":0},{"$f":"IF(OR(W89=\"1\",AND(W89<>\"1\",G89=Lists!$A$17)),Y89,0)","v":0},null,{"$f":"IF(AND(W89=\"2\",G89<>Lists!$A$17),AA89,Z89)","v":""},{"$f":"IF($U89=ExcluirDelPLogro,\"\",IF(AND(H89=0,I89=0,J89=0),\"\",K89))","v":""},{"$f":"Planning!AQ73","v":{"v":0,"d":"0.00"}},{"$f":"'Month 11'!M89+'Month 11'!N89-'Month 11'!O89","v":{"v":0,"d":"0.00"}},null,"",{"$f":"IF($U89=ExcluirDelPLogro,\"\",IF(AND(M89=0,N89=0,O89=0),\"\",P89))","v":""},{"$f":"SUMIFS($J$25:$J$224,$C$25:$C$224,$C89,$G$25:$G$224,Lists!$A$16)","v":0},0,null,"",null,{"$f":"IF(C89=0,\"\",LEFT(INDEX(Lists!$H$5:$H$49,MATCH(C89,Lists!$G$5:$G$49,0),1),1))","v":""},null,{"$f":"'Month 11'!H89+'Month 11'!I89-'Month 11'!J89","v":0},"",{"$f":"IF(AND(H89=0,I89=0,J89=0),\"\",IF(J89>0,H89/J89,0))","v":""},null,"0"]
[{"$f":"Planning!A74","v":"I066"},{"$f":"Planning!B74","v":0},{"$f":"Planning!C74","v":0},{"$f":"Planning!D74","v":0},{"$f":"Planning!E74","v":0},{"$f":"IF(Planning!G74<>0,Planning!G74,\"\")","v":""},{"$f":"Planning!H74","v":0},{"$f":"Planning!AP74","v":0},{"$f":"IF(OR(W90=\"1\",AND(W90<>\"1\",G90=Lists!$A$17)),Y90,0)","v":0},null,{"$f":"IF(AND(W90=\"2\",G90<>Lists!$A$17),AA90,Z90)","v":""},"",{"$f":"Planning!AQ74","v":{"v":0,"d":"0.00"}},{"$f":"'Month 11'!M90+'Month 11'!N90-'Month 11'!O90","v":{"v":0,"d":"0.00"}},null,{"$f":"IF(AND(M90=0,N90=0,O90=0),\"\",IF((M90+N90)>0,O90/(M90+N90),O90))","v":""},"",{"$f":"SUMIFS($J$25:$J$224,$C$25:$C$224,$C90,$G$25:$G$224,Lists!$A$16)","v":0},{"$f":"SUMIFS($O$25:$O$224,$C$25:$C$224,$C90,$G$25:$G$224,\"<>0\")","v":0},null,{"$f":"IF(B90=0,\"\",IF(LEFT(B90,1)=\"1\",\"1\",\"2\"))","v":""},null,{"$f":"IF(C90=0,\"\",LEFT(INDEX(Lists!$H$5:$H$49,MATCH(C90,Lists!$G$5:$G$49,0),1),1))","v":""},null,{"$f":"'Month 11'!H90+'Month 11'!I90-'Month 11'!J90","v":0},{"$f":"IF(AND(H90=0,I90=0,J90=0),\"\",IF((H90+I90)>0,J90/(H90+I90),J90))","v":""},"",null,{"$f":"U90&C90","v":"0"}]
[{"$f":"Planning!A75","v":"I067"},{"$f":"Planning!B75","v":0},{"$f":"Planning!C75","v":0},{"$f":"Planning!D75","v":0},{"$f":"Planning!E75","v":0},{"$f":"IF(Planning!G75<>0,Planning!G75,\"\")","v":""},{"$f":"Planning!H75","v":0},{"$f":"Planning!AP75","v":0},{"$f":"IF(OR(W91=\"1\",AND(W91<>\"1\",G91=Lists!$A$17)),Y91,0)","v":0},null,{"$f":"IF(AND(W91=\"2\",G91<>Lists!$A$17),AA91,Z91)","v":""},"",{"$f":"Planning!AQ75","v":{"v":0,"d":"0.00"}},{"$f":"'Month 11'!M91+'Month 11'!N91-'Month 11'!O91","v":{"v":0,"d":"0.00"}},null,"","",{"$f":"SUMIFS($J$25:$J$224,$C$25:$C$224,$C91,$G$25:$G$224,Lists!$A$16)","v":0},0,null,"",null,{"$f":"IF(C91=0,\"\",LEFT(INDEX(Lists!$H$5:$H$49,MATCH(C91,Lists!$G$5:$G$49,0),1),1))","v":""},null,{"$f":"'Month 11'!H91+'Month 11'!I91-'Month 11'!J91","v":0},"","",null,"0"]
[{"$f":"Planning!A76","v":"I068"},{"$f":"Planning!B76","v":0},{"$f":"Planning!C76","v":0},{"$f":"Planning!D76","v":0},{"$f":"Planning!E76","v":0},{"$f":"IF(Planning!G76<>0,Planning!G76,\"\")","v":""},{"$f":"Planning!H76","v":0},{"$f":"Planning!AP76","v":0},{"$f":"IF(OR(W92=\"1\",AND(W92<>\"1\",G92=Lists!$A$17)),Y92,0)","v":0},null,{"$f":"IF(AND(W92=\"2\",G92<>Lists!$A$17),AA92,Z92)","v":""},"",{"$f":"Planning!AQ76","v":{"v":0,"d":"0.00"}},{"$f":"'Month 11'!M92+'Month 11'!N92-'Month 11'!O92","v":{"v":0,"d":"0.00"}},null,"","",{"$f":"SUMIFS($J$25:$J$224,$C$25:$C$224,$C92,$G$25:$G$224,Lists!$A$16)","v":0},0,null,"",null,{"$f":"IF(C92=0,\"\",LEFT(INDEX(Lists!$H$5:$H$49,MATCH(C92,Lists!$G$5:$G$49,0),1),1))","v":""},null,{"$f":"'Month 11'!H92+'Month 11'!I92-'Month 11'!J92","v":0},"","",null,"0"]
[{"$f":"Planning!A77","v":"I069"},{"$f":"Planning!B77","v":0},{"$f":"Planning!C77","v":0},{"$f":"Planning!D77","v":0},{"$f":"Planning!E77","v":0},{"$f":"IF(Planning!G77<>0,Planning!G77,\"\")","v":""},{"$f":"Planning!H77","v":0},{"$f":"Planning!AP77","v":0},{"$f":"IF(OR(W93=\"1\",AND(W93<>\"1\",G93=Lists!$A$17)),Y93,0)","v":0},null,{"$f":"IF(AND(W93=\"2\",G93<>Lists!$A$17),AA93,Z93)","v":""},"",{"$f":"Planning!AQ77","v":{"v":0,"d":"0.00"}},{"$f":"'Month 11'!M93+'Month 11'!N93-'Month 11'!O93","v":{"v":0,"d":"0.00"}},null,"","",{"$f":"SUMIFS($J$25:$J$224,$C$25:$C$224,$C93,$G$25:$G$224,Lists!$A$16)","v":0},0,null,"",null,{"$f":"IF(C93=0,\"\",LEFT(INDEX(Lists!$H$5:$H$49,MATCH(C93,Lists!$G$5:$G$49,0),1),1))","v":""},null,{"$f":"'Month 11'!H93+'Month 11'!I93-'Month 11'!J93","v":0},"","",null,"0"]
[{"$f":"Planning!A78","v":"I070"},{"$f":"Planning!B78","v":0},{"$f":"Planning!C78","v":0},{"$f":"Planning!D78","v":0},{"$f":"Planning!E78","v":0},{"$f":"IF(Planning!G78<>0,Planning!G78,\"\")","v":""},{"$f":"Planning!H78","v":0},{"$f":"Planning!AP78","v":0},{"$f":"IF(OR(W94=\"1\",AND(W94<>\"1\",G94=Lists!$A$17)),Y94,0)","v":0},null,{"$f":"IF(AND(W94=\"2\",G94<>Lists!$A$17),AA94,Z94)","v":""},"",{"$f":"Planning!AQ78","v":{"v":0,"d":"0.00"}},{"$f":"'Month 11'!M94+'Month 11'!N94-'Month 11'!O94","v":{"v":0,"d":"0.00"}},null,"","",{"$f":"SUMIFS($J$25:$J$224,$C$25:$C$224,$C94,$G$25:$G$224,Lists!$A$16)","v":0},0,null,"",null,{"$f":"IF(C94=0,\"\",LEFT(INDEX(Lists!$H$5:$H$49,MATCH(C94,Lists!$G$5:$G$49,0),1),1))","v":""},null,{"$f":"'Month 11'!H94+'Month 11'!I94-'Month 11'!J94","v":0},"","",null,"0"]
[{"$f":"Planning!A79","v":"I071"},{"$f":"Planning!B79","v":0},{"$f":"Planning!C79","v":0},{"$f":"Planning!D79","v":0},{"$f":"Planning!E79","v":0},{"$f":"IF(Planning!G79<>0,Planning!G79,\"\")","v":""},{"$f":"Planning!H79","v":0},{"$f":"Planning!AP79","v":0},{"$f":"IF(OR(W95=\"1\",AND(W95<>\"1\",G95=Lists!$A$17)),Y95,0)","v":0},null,{"$f":"IF(AND(W95=\"2\",G95<>Lists!$A$17),AA95,Z95)","v":""},"",{"$f":"Planning!AQ79","v":{"v":0,"d":"0.00"}},{"$f":"'Month 11'!M95+'Month 11'!N95-'Month 11'!O95","v":{"v":0,"d":"0.00"}},null,"","",{"$f":"SUMIFS($J$25:$J$224,$C$25:$C$224,$C95,$G$25:$G$224,Lists!$A$16)","v":0},0,null,"",null,{"$f":"IF(C95=0,\"\",LEFT(INDEX(Lists!$H$5:$H$49,MATCH(C95,Lists!$G$5:$G$49,0),1),1))","v":""},null,{"$f":"'Month 11'!H95+'Month 11'!I95-'Month 11'!J95","v":0},"","",null,"0"]
[{"$f":"Planning!A80","v":"I072"},{"$f":"Planning!B80","v":0},{"$f":"Planning!C80","v":0},{"$f":"Planning!D80","v":0},{"$f":"Planning!E80","v":0},{"$f":"IF(Planning!G80<>0,Planning!G80,\"\")","v":""},{"$f":"Planning!H80","v":0},{"$f":"Planning!AP80","v":0},{"$f":"IF(OR(W96=\"1\",AND(W96<>\"1\",G96=Lists!$A$17)),Y96,0)","v":0},null,{"$f":"IF(AND(W96=\"2\",G96<>Lists!$A$17),AA96,Z96)","v":""},"",{"$f":"Planning!AQ80","v":{"v":0,"d":"0.00"}},{"$f":"'Month 11'!M96+'Month 11'!N96-'Month 11'!O96","v":{"v":0,"d":"0.00"}},null,"","",{"$f":"SUMIFS($J$25:$J$224,$C$25:$C$224,$C96,$G$25:$G$224,Lists!$A$16)","v":0},0,null,"",null,{"$f":"IF(C96=0,\"\",LEFT(INDEX(Lists!$H$5:$H$49,MATCH(C96,Lists!$G$5:$G$49,0),1),1))","v":""},null,{"$f":"'Month 11'!H96+'Month 11'!I96-'Month 11'!J96","v":0},"","",null,"0"]
[{"$f":"Planning!A81","v":"I073"},{"$f":"Planning!B81","v":0},{"$f":"Planning!C81","v":0},{"$f":"Planning!D81","v":0},{"$f":"Planning!E81","v":0},{"$f":"IF(Planning!G81<>0,Planning!G81,\"\")","v":""},{"$f":"Planning!H81","v":0},{"$f":"Planning!AP81","v":0},{"$f":"IF(OR(W97=\"1\",AND(W97<>\"1\",G97=Lists!$A$17)),Y97,0)","v":0},null,{"$f":"IF(AND(W97=\"2\",G97<>Lists!$A$17),AA97,Z97)","v":""},"",{"$f":"Planning!AQ81","v":{"v":0,"d":"0.00"}},{"$f":"'Month 11'!M97+'Month 11'!N97-'Month 11'!O97","v":{"v":0,"d":"0.00"}},null,"","",{"$f":"SUMIFS($J$25:$J$224,$C$25:$C$224,$C97,$G$25:$G$224,Lists!$A$16)","v":0},0,null,"",null,{"$f":"IF(C97=0,\"\",LEFT(INDEX(Lists!$H$5:$H$49,MATCH(C97,Lists!$G$5:$G$49,0),1),1))","v":""},null,{"$f":"'Month 11'!H97+'Month 11'!I97-'Month 11'!J97","v":0},"","",null,"0"]
[{"$f":"Planning!A82","v":"I074"},{"$f":"Planning!B82","v":0},{"$f":"Planning!C82","v":0},{"$f":"Planning!D82","v":0},{"$f":"Planning!E82","v":0},{"$f":"IF(Planning!G82<>0,Planning!G82,\"\")","v":""},{"$f":"Planning!H82","v":0},{"$f":"Planning!AP82","v":0},{"$f":"IF(OR(W98=\"1\",AND(W98<>\"1\",G98=Lists!$A$17)),Y98,0)","v":0},null,{"$f":"IF(AND(W98=\"2\",G98<>Lists!$A$17),AA98,Z98)","v":""},"",{"$f":"Planning!AQ82","v":{"v":0,"d":"0.00"}},{"$f":"'Month 11'!M98+'Month 11'!N98-'Month 11'!O98","v":{"v":0,"d":"0.00"}},null,"","",{"$f":"SUMIFS($J$25:$J$224,$C$25:$C$224,$C98,$G$25:$G$224,Lists!$A$16)","v":0},0,null,"",null,{"$f":"IF(C98=0,\"\",LEFT(INDEX(Lists!$H$5:$H$49,MATCH(C98,Lists!$G$5:$G$49,0),1),1))","v":""},null,{"$f":"'Month 11'!H98+'Month 11'!I98-'Month 11'!J98","v":0},"","",null,"0"]
[{"$f":"Planning!A83","v":"I075"},{"$f":"Planning!B83","v":0},{"$f":"Planning!C83","v":0},{"$f":"Planning!D83","v":0},{"$f":"Planning!E83","v":0},{"$f":"IF(Planning!G83<>0,Planning!G83,\"\")","v":""},{"$f":"Planning!H83","v":0},{"$f":"Planning!AP83","v":0},{"$f":"IF(OR(W99=\"1\",AND(W99<>\"1\",G99=Lists!$A$17)),Y99,0)","v":0},null,{"$f":"IF(AND(W99=\"2\",G99<>Lists!$A$17),AA99,Z99)","v":""},"",{"$f":"Planning!AQ83","v":{"v":0,"d":"0.00"}},{"$f":"'Month 11'!M99+'Month 11'!N99-'Month 11'!O99","v":{"v":0,"d":"0.00"}},null,"","",{"$f":"SUMIFS($J$25:$J$224,$C$25:$C$224,$C99,$G$25:$G$224,Lists!$A$16)","v":0},0,null,"",null,{"$f":"IF(C99=0,\"\",LEFT(INDEX(Lists!$H$5:$H$49,MATCH(C99,Lists!$G$5:$G$49,0),1),1))","v":""},null,{"$f":"'Month 11'!H99+'Month 11'!I99-'Month 11'!J99","v":0},"","",null,"0"]
[{"$f":"Planning!A84","v":"I076"},{"$f":"Planning!B84","v":0},{"$f":"Planning!C84","v":0},{"$f":"Planning!D84","v":0},{"$f":"Planning!E84","v":0},{"$f":"IF(Planning!G84<>0,Planning!G84,\"\")","v":""},{"$f":"Planning!H84","v":0},{"$f":"Planning!AP84","v":0},{"$f":"IF(OR(W100=\"1\",AND(W100<>\"1\",G100=Lists!$A$17)),Y100,0)","v":0},null,{"$f":"IF(AND(W100=\"2\",G100<>Lists!$A$17),AA100,Z100)","v":""},"",{"$f":"Planning!AQ84","v":{"v":0,"d":"0.00"}},{"$f":"'Month 11'!M100+'Month 11'!N100-'Month 11'!O100","v":{"v":0,"d":"0.00"}},null,"","",{"$f":"SUMIFS($J$25:$J$224,$C$25:$C$224,$C100,$G$25:$G$224,Lists!$A$16)","v":0},0,null,"",null,{"$f":"IF(C100=0,\"\",LEFT(INDEX(Lists!$H$5:$H$49,MATCH(C100,Lists!$G$5:$G$49,0),1),1))","v":""},null,{"$f":"'Month 11'!H100+'Month 11'!I100-'Month 11'!J100","v":0},"","",null,"0"]
[{"$f":"Planning!A85","v":"I077"},{"$f":"Planning!B85","v":0},{"$f":"Planning!C85","v":0},{"$f":"Planning!D85","v":0},{"$f":"Planning!E85","v":0},{"$f":"IF(Planning!G85<>0,Planning!G85,\"\")","v":""},{"$f":"Planning!H85","v":0},{"$f":"Planning!AP85","v":0},{"$f":"IF(OR(W101=\"1\",AND(W101<>\"1\",G101=Lists!$A$17)),Y101,0)","v":0},null,{"$f":"IF(AND(W101=\"2\",G101<>Lists!$A$17),AA101,Z101)","v":""},"",{"$f":"Planning!AQ85","v":{"v":0,"d":"0.00"}},{"$f":"'Month 11'!M101+'Month 11'!N101-'Month 11'!O101","v":{"v":0,"d":"0.00"}},null,"","",{"$f":"SUMIFS($J$25:$J$224,$C$25:$C$224,$C101,$G$25:$G$224,Lists!$A$16)","v":0},0,null,"",null,{"$f":"IF(C101=0,\"\",LEFT(INDEX(Lists!$H$5:$H$49,MATCH(C101,Lists!$G$5:$G$49,0),1),1))","v":""},null,{"$f":"'Month 11'!H101+'Month 11'!I101-'Month 11'!J101","v":0},"","",null,"0"]
[{"$f":"Planning!A86","v":"I078"},{"$f":"Planning!B86","v":0},{"$f":"Planning!C86","v":0},{"$f":"Planning!D86","v":0},{"$f":"Planning!E86","v":0},{"$f":"IF(Planning!G86<>0,Planning!G86,\"\")","v":""},{"$f":"Planning!H86","v":0},{"$f":"Planning!AP86","v":0},{"$f":"IF(OR(W102=\"1\",AND(W102<>\"1\",G102=Lists!$A$17)),Y102,0)","v":0},null,{"$f":"IF(AND(W102=\"2\",G102<>Lists!$A$17),AA102,Z102)","v":""},"",{"$f":"Planning!AQ86","v":{"v":0,"d":"0.00"}},{"$f":"'Month 11'!M102+'Month 11'!N102-'Month 11'!O102","v":{"v":0,"d":"0.00"}},null,"","",{"$f":"SUMIFS($J$25:$J$224,$C$25:$C$224,$C102,$G$25:$G$224,Lists!$A$16)","v":0},0,null,"",null,{"$f":"IF(C102=0,\"\",LEFT(INDEX(Lists!$H$5:$H$49,MATCH(C102,Lists!$G$5:$G$49,0),1),1))","v":""},null,{"$f":"'Month 11'!H102+'Month 11'!I102-'Month 11'!J102","v":0},"","",null,"0"]
[{"$f":"Planning!A87","v":"I079"},{"$f":"Planning!B87","v":0},{"$f":"Planning!C87","v":0},{"$f":"Planning!D87","v":0},{"$f":"Planning!E87","v":0},{"$f":"IF(Planning!G87<>0,Planning!G87,\"\")","v":""},{"$f":"Planning!H87","v":0},{"$f":"Planning!AP87","v":0},{"$f":"IF(OR(W103=\"1\",AND(W103<>\"1\",G103=Lists!$A$17)),Y103,0)","v":0},null,{"$f":"IF(AND(W103=\"2\",G103<>Lists!$A$17),AA103,Z103)","v":""},"",{"$f":"Planning!AQ87","v":{"v":0,"d":"0.00"}},{"$f":"'Month 11'!M103+'Month 11'!N103-'Month 11'!O103","v":{"v":0,"d":"0.00"}},null,"","",{"$f":"SUMIFS($J$25:$J$224,$C$25:$C$224,$C103,$G$25:$G$224,Lists!$A$16)","v":0},0,null,"",null,{"$f":"IF(C103=0,\"\",LEFT(INDEX(Lists!$H$5:$H$49,MATCH(C103,Lists!$G$5:$G$49,0),1),1))","v":""},null,{"$f":"'Month 11'!H103+'Month 11'!I103-'Month 11'!J103","v":0},"","",null,"0"]
[{"$f":"Planning!A88","v":"I080"},{"$f":"Planning!B88","v":0},{"$f":"Planning!C88","v":0},{"$f":"Planning!D88","v":0},{"$f":"Planning!E88","v":0},{"$f":"IF(Planning!G88<>0,Planning!G88,\"\")","v":""},{"$f":"Planning!H88","v":0},{"$f":"Planning!AP88","v":0},{"$f":"IF(OR(W104=\"1\",AND(W104<>\"1\",G104=Lists!$A$17)),Y104,0)","v":0},null,{"$f":"IF(AND(W104=\"2\",G104<>Lists!$A$17),AA104,Z104)","v":""},"",{"$f":"Planning!AQ88","v":{"v":0,"d":"0.00"}},{"$f":"'Month 11'!M104+'Month 11'!N104-'Month 11'!O104","v":{"v":0,"d":"0.00"}},null,"","",{"$f":"SUMIFS($J$25:$J$224,$C$25:$C$224,$C104,$G$25:$G$224,Lists!$A$16)","v":0},0,null,"",null,{"$f":"IF(C104=0,\"\",LEFT(INDEX(Lists!$H$5:$H$49,MATCH(C104,Lists!$G$5:$G$49,0),1),1))","v":""},null,{"$f":"'Month 11'!H104+'Month 11'!I104-'Month 11'!J104","v":0},"","",null,"0"]
[{"$f":"Planning!A89","v":"I081"},{"$f":"Planning!B89","v":0},{"$f":"Planning!C89","v":0},{"$f":"Planning!D89","v":0},{"$f":"Planning!E89","v":0},{"$f":"IF(Planning!G89<>0,Planning!G89,\"\")","v":""},{"$f":"Planning!H89","v":0},{"$f":"Planning!AP89","v":0},{"$f":"IF(OR(W105=\"1\",AND(W105<>\"1\",G105=Lists!$A$17)),Y105,0)","v":0},null,{"$f":"IF(AND(W105=\"2\",G105<>Lists!$A$17),AA105,Z105)","v":""},"",{"$f":"Planning!AQ89","v":{"v":0,"d":"0.00"}},{"$f":"'Month 11'!M105+'Month 11'!N105-'Month 11'!O105","v":{"v":0,"d":"0.00"}},null,"","",{"$f":"SUMIFS($J$25:$J$224,$C$25:$C$224,$C105,$G$25:$G$224,Lists!$A$16)","v":0},0,null,"",null,{"$f":"IF(C105=0,\"\",LEFT(INDEX(Lists!$H$5:$H$49,MATCH(C105,Lists!$G$5:$G$49,0),1),1))","v":""},null,{"$f":"'Month 11'!H105+'Month 11'!I105-'Month 11'!J105","v":0},"","",null,"0"]
[{"$f":"Planning!A90","v":"I082"},{"$f":"Planning!B90","v":0},{"$f":"Planning!C90","v":0},{"$f":"Planning!D90","v":0},{"$f":"Planning!E90","v":0},{"$f":"IF(Planning!G90<>0,Planning!G90,\"\")","v":""},{"$f":"Planning!H90","v":0},{"$f":"Planning!AP90","v":0},{"$f":"IF(OR(W106=\"1\",AND(W106<>\"1\",G106=Lists!$A$17)),Y106,0)","v":0},null,{"$f":"IF(AND(W106=\"2\",G106<>Lists!$A$17),AA106,Z106)","v":""},"",{"$f":"Planning!AQ90","v":{"v":0,"d":"0.00"}},{"$f":"'Month 11'!M106+'Month 11'!N106-'Month 11'!O106","v":{"v":0,"d":"0.00"}},null,"","",{"$f":"SUMIFS($J$25:$J$224,$C$25:$C$224,$C106,$G$25:$G$224,Lists!$A$16)","v":0},0,null,"",null,{"$f":"IF(C106=0,\"\",LEFT(INDEX(Lists!$H$5:$H$49,MATCH(C106,Lists!$G$5:$G$49,0),1),1))","v":""},null,{"$f":"'Month 11'!H106+'Month 11'!I106-'Month 11'!J106","v":0},"","",null,"0"]
[{"$f":"Planning!A91","v":"I083"},{"$f":"Planning!B91","v":0},{"$f":"Planning!C91","v":0},{"$f":"Planning!D91","v":0},{"$f":"Planning!E91","v":0},{"$f":"IF(Planning!G91<>0,Planning!G91,\"\")","v":""},{"$f":"Planning!H91","v":0},{"$f":"Planning!AP91","v":0},{"$f":"IF(OR(W107=\"1\",AND(W107<>\"1\",G107=Lists!$A$17)),Y107,0)","v":0},null,{"$f":"IF(AND(W107=\"2\",G107<>Lists!$A$17),AA107,Z107)","v":""},"",{"$f":"Planning!AQ91","v":{"v":0,"d":"0.00"}},{"$f":"'Month 11'!M107+'Month 11'!N107-'Month 11'!O107","v":{"v":0,"d":"0.00"}},null,"","",{"$f":"SUMIFS($J$25:$J$224,$C$25:$C$224,$C107,$G$25:$G$224,Lists!$A$16)","v":0},0,null,"",null,{"$f":"IF(C107=0,\"\",LEFT(INDEX(Lists!$H$5:$H$49,MATCH(C107,Lists!$G$5:$G$49,0),1),1))","v":""},null,{"$f":"'Month 11'!H107+'Month 11'!I107-'Month 11'!J107","v":0},"","",null,"0"]
[{"$f":"Planning!A92","v":"I084"},{"$f":"Planning!B92","v":0},{"$f":"Planning!C92","v":0},{"$f":"Planning!D92","v":0},{"$f":"Planning!E92","v":0},{"$f":"IF(Planning!G92<>0,Planning!G92,\"\")","v":""},{"$f":"Planning!H92","v":0},{"$f":"Planning!AP92","v":0},{"$f":"IF(OR(W108=\"1\",AND(W108<>\"1\",G108=Lists!$A$17)),Y108,0)","v":0},null,{"$f":"IF(AND(W108=\"2\",G108<>Lists!$A$17),AA108,Z108)","v":""},"",{"$f":"Planning!AQ92","v":{"v":0,"d":"0.00"}},{"$f":"'Month 11'!M108+'Month 11'!N108-'Month 11'!O108","v":{"v":0,"d":"0.00"}},null,"","",{"$f":"SUMIFS($J$25:$J$224,$C$25:$C$224,$C108,$G$25:$G$224,Lists!$A$16)","v":0},0,null,"",null,{"$f":"IF(C108=0,\"\",LEFT(INDEX(Lists!$H$5:$H$49,MATCH(C108,Lists!$G$5:$G$49,0),1),1))","v":""},null,{"$f":"'Month 11'!H108+'Month 11'!I108-'Month 11'!J108","v":0},"","",null,"0"]
[{"$f":"Planning!A93","v":"I085"},{"$f":"Planning!B93","v":0},{"$f":"Planning!C93","v":0},{"$f":"Planning!D93","v":0},{"$f":"Planning!E93","v":0},{"$f":"IF(Planning!G93<>0,Planning!G93,\"\")","v":""},{"$f":"Planning!H93","v":0},{"$f":"Planning!AP93","v":0},{"$f":"IF(OR(W109=\"1\",AND(W109<>\"1\",G109=Lists!$A$17)),Y109,0)","v":0},null,{"$f":"IF(AND(W109=\"2\",G109<>Lists!$A$17),AA109,Z109)","v":""},"",{"$f":"Planning!AQ93","v":{"v":0,"d":"0.00"}},{"$f":"'Month 11'!M109+'Month 11'!N109-'Month 11'!O109","v":{"v":0,"d":"0.00"}},null,"","",{"$f":"SUMIFS($J$25:$J$224,$C$25:$C$224,$C109,$G$25:$G$224,Lists!$A$16)","v":0},0,null,"",null,{"$f":"IF(C109=0,\"\",LEFT(INDEX(Lists!$H$5:$H$49,MATCH(C109,Lists!$G$5:$G$49,0),1),1))","v":""},null,{"$f":"'Month 11'!H109+'Month 11'!I109-'Month 11'!J109","v":0},"","",null,"0"]
[{"$f":"Planning!A94","v":"I086"},{"$f":"Planning!B94","v":0},{"$f":"Planning!C94","v":0},{"$f":"Planning!D94","v":0},{"$f":"Planning!E94","v":0},{"$f":"IF(Planning!G94<>0,Planning!G94,\"\")","v":""},{"$f":"Planning!H94","v":0},{"$f":"Planning!AP94","v":0},{"$f":"IF(OR(W110=\"1\",AND(W110<>\"1\",G110=Lists!$A$17)),Y110,0)","v":0},null,{"$f":"IF(AND(W110=\"2\",G110<>Lists!$A$17),AA110,Z110)","v":""},"",{"$f":"Planning!AQ94","v":{"v":0,"d":"0.00"}},{"$f":"'Month 11'!M110+'Month 11'!N110-'Month 11'!O110","v":{"v":0,"d":"0.00"}},null,"","",{"$f":"SUMIFS($J$25:$J$224,$C$25:$C$224,$C110,$G$25:$G$224,Lists!$A$16)","v":0},0,null,"",null,{"$f":"IF(C110=0,\"\",LEFT(INDEX(Lists!$H$5:$H$49,MATCH(C110,Lists!$G$5:$G$49,0),1),1))","v":""},null,{"$f":"'Month 11'!H110+'Month 11'!I110-'Month 11'!J110","v":0},"","",null,"0"]
[{"$f":"Planning!A95","v":"I087"},{"$f":"Planning!B95","v":0},{"$f":"Planning!C95","v":0},{"$f":"Planning!D95","v":0},{"$f":"Planning!E95","v":0},{"$f":"IF(Planning!G95<>0,Planning!G95,\"\")","v":""},{"$f":"Planning!H95","v":0},{"$f":"Planning!AP95","v":0},{"$f":"IF(OR(W111=\"1\",AND(W111<>\"1\",G111=Lists!$A$17)),Y111,0)","v":0},null,{"$f":"IF(AND(W111=\"2\",G111<>Lists!$A$17),AA111,Z111)","v":""},"",{"$f":"Planning!AQ95","v":{"v":0,"d":"0.00"}},{"$f":"'Month 11'!M111+'Month 11'!N111-'Month 11'!O111","v":{"v":0,"d":"0.00"}},null,"","",{"$f":"SUMIFS($J$25:$J$224,$C$25:$C$224,$C111,$G$25:$G$224,Lists!$A$16)","v":0},0,null,"",null,{"$f":"IF(C111=0,\"\",LEFT(INDEX(Lists!$H$5:$H$49,MATCH(C111,Lists!$G$5:$G$49,0),1),1))","v":""},null,{"$f":"'Month 11'!H111+'Month 11'!I111-'Month 11'!J111","v":0},"","",null,"0"]
[{"$f":"Planning!A96","v":"I088"},{"$f":"Planning!B96","v":0},{"$f":"Planning!C96","v":0},{"$f":"Planning!D96","v":0},{"$f":"Planning!E96","v":0},{"$f":"IF(Planning!G96<>0,Planning!G96,\"\")","v":""},{"$f":"Planning!H96","v":0},{"$f":"Planning!AP96","v":0},{"$f":"IF(OR(W112=\"1\",AND(W112<>\"1\",G112=Lists!$A$17)),Y112,0)","v":0},null,{"$f":"IF(AND(W112=\"2\",G112<>Lists!$A$17),AA112,Z112)","v":""},"",{"$f":"Planning!AQ96","v":{"v":0,"d":"0.00"}},{"$f":"'Month 11'!M112+'Month 11'!N112-'Month 11'!O112","v":{"v":0,"d":"0.00"}},null,"","",{"$f":"SUMIFS($J$25:$J$224,$C$25:$C$224,$C112,$G$25:$G$224,Lists!$A$16)","v":0},0,null,"",null,{"$f":"IF(C112=0,\"\",LEFT(INDEX(Lists!$H$5:$H$49,MATCH(C112,Lists!$G$5:$G$49,0),1),1))","v":""},null,{"$f":"'Month 11'!H112+'Month 11'!I112-'Month 11'!J112","v":0},"","",null,"0"]
[{"$f":"Planning!A97","v":"I089"},{"$f":"Planning!B97","v":0},{"$f":"Planning!C97","v":0},{"$f":"Planning!D97","v":0},{"$f":"Planning!E97","v":0},{"$f":"IF(Planning!G97<>0,Planning!G97,\"\")","v":""},{"$f":"Planning!H97","v":0},{"$f":"Planning!AP97","v":0},{"$f":"IF(OR(W113=\"1\",AND(W113<>\"1\",G113=Lists!$A$17)),Y113,0)","v":0},null,{"$f":"IF(AND(W113=\"2\",G113<>Lists!$A$17),AA113,Z113)","v":""},"",{"$f":"Planning!AQ97","v":{"v":0,"d":"0.00"}},{"$f":"'Month 11'!M113+'Month 11'!N113-'Month 11'!O113","v":{"v":0,"d":"0.00"}},null,"","",{"$f":"SUMIFS($J$25:$J$224,$C$25:$C$224,$C113,$G$25:$G$224,Lists!$A$16)","v":0},0,null,"",null,{"$f":"IF(C113=0,\"\",LEFT(INDEX(Lists!$H$5:$H$49,MATCH(C113,Lists!$G$5:$G$49,0),1),1))","v":""},null,{"$f":"'Month 11'!H113+'Month 11'!I113-'Month 11'!J113","v":0},"","",null,"0"]
[{"$f":"Planning!A98","v":"I090"},{"$f":"Planning!B98","v":0},{"$f":"Planning!C98","v":0},{"$f":"Planning!D98","v":0},{"$f":"Planning!E98","v":0},{"$f":"IF(Planning!G98<>0,Planning!G98,\"\")","v":""},{"$f":"Planning!H98","v":0},{"$f":"Planning!AP98","v":0},{"$f":"IF(OR(W114=\"1\",AND(W114<>\"1\",G114=Lists!$A$17)),Y114,0)","v":0},null,{"$f":"IF(AND(W114=\"2\",G114<>Lists!$A$17),AA114,Z114)","v":""},"",{"$f":"Planning!AQ98","v":{"v":0,"d":"0.00"}},{"$f":"'Month 11'!M114+'Month 11'!N114-'Month 11'!O114","v":{"v":0,"d":"0.00"}},null,"","",{"$f":"SUMIFS($J$25:$J$224,$C$25:$C$224,$C114,$G$25:$G$224,Lists!$A$16)","v":0},0,null,"",null,{"$f":"IF(C114=0,\"\",LEFT(INDEX(Lists!$H$5:$H$49,MATCH(C114,Lists!$G$5:$G$49,0),1),1))","v":""},null,{"$f":"'Month 11'!H114+'Month 11'!I114-'Month 11'!J114","v":0},"","",null,"0"]
[{"$f":"Planning!A99","v":"I091"},{"$f":"Planning!B99","v":0},{"$f":"Planning!C99","v":0},{"$f":"Planning!D99","v":0},{"$f":"Planning!E99","v":0},{"$f":"IF(Planning!G99<>0,Planning!G99,\"\")","v":""},{"$f":"Planning!H99","v":0},{"$f":"Planning!AP99","v":0},{"$f":"IF(OR(W115=\"1\",AND(W115<>\"1\",G115=Lists!$A$17)),Y115,0)","v":0},null,{"$f":"IF(AND(W115=\"2\",G115<>Lists!$A$17),AA115,Z115)","v":""},"",{"$f":"Planning!AQ99","v":{"v":0,"d":"0.00"}},{"$f":"'Month 11'!M115+'Month 11'!N115-'Month 11'!O115","v":{"v":0,"d":"0.00"}},null,"","",{"$f":"SUMIFS($J$25:$J$224,$C$25:$C$224,$C115,$G$25:$G$224,Lists!$A$16)","v":0},0,null,"",null,{"$f":"IF(C115=0,\"\",LEFT(INDEX(Lists!$H$5:$H$49,MATCH(C115,Lists!$G$5:$G$49,0),1),1))","v":""},null,{"$f":"'Month 11'!H115+'Month 11'!I115-'Month 11'!J115","v":0},"","",null,"0"]
[{"$f":"Planning!A100","v":"I092"},{"$f":"Planning!B100","v":0},{"$f":"Planning!C100","v":0},{"$f":"Planning!D100","v":0},{"$f":"Planning!E100","v":0},{"$f":"IF(Planning!G100<>0,Planning!G100,\"\")","v":""},{"$f":"Planning!H100","v":0},{"$f":"Planning!AP100","v":0},{"$f":"IF(OR(W116=\"1\",AND(W116<>\"1\",G116=Lists!$A$17)),Y116,0)","v":0},null,{"$f":"IF(AND(W116=\"2\",G116<>Lists!$A$17),AA116,Z116)","v":""},"",{"$f":"Planning!AQ100","v":{"v":0,"d":"0.00"}},{"$f":"'Month 11'!M116+'Month 11'!N116-'Month 11'!O116","v":{"v":0,"d":"0.00"}},null,"","",{"$f":"SUMIFS($J$25:$J$224,$C$25:$C$224,$C116,$G$25:$G$224,Lists!$A$16)","v":0},0,null,"",null,{"$f":"IF(C116=0,\"\",LEFT(INDEX(Lists!$H$5:$H$49,MATCH(C116,Lists!$G$5:$G$49,0),1),1))","v":""},null,{"$f":"'Month 11'!H116+'Month 11'!I116-'Month 11'!J116","v":0},"","",null,"0"]
[{"$f":"Planning!A101","v":"I093"},{"$f":"Planning!B101","v":0},{"$f":"Planning!C101","v":0},{"$f":"Planning!D101","v":0},{"$f":"Planning!E101","v":0},{"$f":"IF(Planning!G101<>0,Planning!G101,\"\")","v":""},{"$f":"Planning!H101","v":0},{"$f":"Planning!AP101","v":0},{"$f":"IF(OR(W117=\"1\",AND(W117<>\"1\",G117=Lists!$A$17)),Y117,0)","v":0},null,{"$f":"IF(AND(W117=\"2\",G117<>Lists!$A$17),AA117,Z117)","v":""},"",{"$f":"Planning!AQ101","v":{"v":0,"d":"0.00"}},{"$f":"'Month 11'!M117+'Month 11'!N117-'Month 11'!O117","v":{"v":0,"d":"0.00"}},null,"","",{"$f":"SUMIFS($J$25:$J$224,$C$25:$C$224,$C117,$G$25:$G$224,Lists!$A$16)","v":0},0,null,"",null,{"$f":"IF(C117=0,\"\",LEFT(INDEX(Lists!$H$5:$H$49,MATCH(C117,Lists!$G$5:$G$49,0),1),1))","v":""},null,{"$f":"'Month 11'!H117+'Month 11'!I117-'Month 11'!J117","v":0},"","",null,"0"]
[{"$f":"Planning!A102","v":"I094"},{"$f":"Planning!B102","v":0},{"$f":"Planning!C102","v":0},{"$f":"Planning!D102","v":0},{"$f":"Planning!E102","v":0},{"$f":"IF(Planning!G102<>0,Planning!G102,\"\")","v":""},{"$f":"Planning!H102","v":0},{"$f":"Planning!AP102","v":0},{"$f":"IF(OR(W118=\"1\",AND(W118<>\"1\",G118=Lists!$A$17)),Y118,0)","v":0},null,{"$f":"IF(AND(W118=\"2\",G118<>Lists!$A$17),AA118,Z118)","v":""},"",{"$f":"Planning!AQ102","v":{"v":0,"d":"0.00"}},{"$f":"'Month 11'!M118+'Month 11'!N118-'Month 11'!O118","v":{"v":0,"d":"0.00"}},null,"","",{"$f":"SUMIFS($J$25:$J$224,$C$25:$C$224,$C118,$G$25:$G$224,Lists!$A$16)","v":0},0,null,"",null,{"$f":"IF(C118=0,\"\",LEFT(INDEX(Lists!$H$5:$H$49,MATCH(C118,Lists!$G$5:$G$49,0),1),1))","v":""},null,{"$f":"'Month 11'!H118+'Month 11'!I118-'Month 11'!J118","v":0},"","",null,"0"]
[{"$f":"Planning!A103","v":"I095"},{"$f":"Planning!B103","v":0},{"$f":"Planning!C103","v":0},{"$f":"Planning!D103","v":0},{"$f":"Planning!E103","v":0},{"$f":"IF(Planning!G103<>0,Planning!G103,\"\")","v":""},{"$f":"Planning!H103","v":0},{"$f":"Planning!AP103","v":0},{"$f":"IF(OR(W119=\"1\",AND(W119<>\"1\",G119=Lists!$A$17)),Y119,0)","v":0},null,{"$f":"IF(AND(W119=\"2\",G119<>Lists!$A$17),AA119,Z119)","v":""},"",{"$f":"Planning!AQ103","v":{"v":0,"d":"0.00"}},{"$f":"'Month 11'!M119+'Month 11'!N119-'Month 11'!O119","v":{"v":0,"d":"0.00"}},null,"","",{"$f":"SUMIFS($J$25:$J$224,$C$25:$C$224,$C119,$G$25:$G$224,Lists!$A$16)","v":0},0,null,"",null,{"$f":"IF(C119=0,\"\",LEFT(INDEX(Lists!$H$5:$H$49,MATCH(C119,Lists!$G$5:$G$49,0),1),1))","v":""},null,{"$f":"'Month 11'!H119+'Month 11'!I119-'Month 11'!J119","v":0},"","",null,"0"]
[{"$f":"Planning!A104","v":"I096"},{"$f":"Planning!B104","v":0},{"$f":"Planning!C104","v":0},{"$f":"Planning!D104","v":0},{"$f":"Planning!E104","v":0},{"$f":"IF(Planning!G104<>0,Planning!G104,\"\")","v":""},{"$f":"Planning!H104","v":0},{"$f":"Planning!AP104","v":0},{"$f":"IF(OR(W120=\"1\",AND(W120<>\"1\",G120=Lists!$A$17)),Y120,0)","v":0},null,{"$f":"IF(AND(W120=\"2\",G120<>Lists!$A$17),AA120,Z120)","v":""},"",{"$f":"Planning!AQ104","v":{"v":0,"d":"0.00"}},{"$f":"'Month 11'!M120+'Month 11'!N120-'Month 11'!O120","v":{"v":0,"d":"0.00"}},null,"","",{"$f":"SUMIFS($J$25:$J$224,$C$25:$C$224,$C120,$G$25:$G$224,Lists!$A$16)","v":0},0,null,"",null,{"$f":"IF(C120=0,\"\",LEFT(INDEX(Lists!$H$5:$H$49,MATCH(C120,Lists!$G$5:$G$49,0),1),1))","v":""},null,{"$f":"'Month 11'!H120+'Month 11'!I120-'Month 11'!J120","v":0},"","",null,"0"]
[{"$f":"Planning!A105","v":"I097"},{"$f":"Planning!B105","v":0},{"$f":"Planning!C105","v":0},{"$f":"Planning!D105","v":0},{"$f":"Planning!E105","v":0},{"$f":"IF(Planning!G105<>0,Planning!G105,\"\")","v":""},{"$f":"Planning!H105","v":0},{"$f":"Planning!AP105","v":0},{"$f":"IF(OR(W121=\"1\",AND(W121<>\"1\",G121=Lists!$A$17)),Y121,0)","v":0},null,{"$f":"IF(AND(W121=\"2\",G121<>Lists!$A$17),AA121,Z121)","v":""},{"$f":"IF($U121=ExcluirDelPLogro,\"\",IF(AND(H121=0,I121=0,J121=0),\"\",K121))","v":""},{"$f":"Planning!AQ105","v":{"v":0,"d":"0.00"}},{"$f":"'Month 11'!M121+'Month 11'!N121-'Month 11'!O121","v":{"v":0,"d":"0.00"}},null,"",{"$f":"IF($U121=ExcluirDelPLogro,\"\",IF(AND(M121=0,N121=0,O121=0),\"\",P121))","v":""},{"$f":"SUMIFS($J$25:$J$224,$C$25:$C$224,$C121,$G$25:$G$224,Lists!$A$16)","v":0},0,null,"",null,{"$f":"IF(C121=0,\"\",LEFT(INDEX(Lists!$H$5:$H$49,MATCH(C121,Lists!$G$5:$G$49,0),1),1))","v":""},null,{"$f":"'Month 11'!H121+'Month 11'!I121-'Month 11'!J121","v":0},"",{"$f":"IF(AND(H121=0,I121=0,J121=0),\"\",IF(J121>0,H121/J121,0))","v":""},null,"0"]
[{"$f":"Planning!A106","v":"I098"},{"$f":"Planning!B106","v":0},{"$f":"Planning!C106","v":0},{"$f":"Planning!D106","v":0},{"$f":"Planning!E106","v":0},{"$f":"IF(Planning!G106<>0,Planning!G106,\"\")","v":""},{"$f":"Planning!H106","v":0},{"$f":"Planning!AP106","v":0},{"$f":"IF(OR(W122=\"1\",AND(W122<>\"1\",G122=Lists!$A$17)),Y122,0)","v":0},null,{"$f":"IF(AND(W122=\"2\",G122<>Lists!$A$17),AA122,Z122)","v":""},"",{"$f":"Planning!AQ106","v":{"v":0,"d":"0.00"}},{"$f":"'Month 11'!M122+'Month 11'!N122-'Month 11'!O122","v":{"v":0,"d":"0.00"}},null,"","",{"$f":"SUMIFS($J$25:$J$224,$C$25:$C$224,$C122,$G$25:$G$224,Lists!$A$16)","v":0},0,null,"",null,{"$f":"IF(C122=0,\"\",LEFT(INDEX(Lists!$H$5:$H$49,MATCH(C122,Lists!$G$5:$G$49,0),1),1))","v":""},null,{"$f":"'Month 11'!H122+'Month 11'!I122-'Month 11'!J122","v":0},"","",null,"0"]
[{"$f":"Planning!A107","v":"I099"},{"$f":"Planning!B107","v":0},{"$f":"Planning!C107","v":0},{"$f":"Planning!D107","v":0},{"$f":"Planning!E107","v":0},{"$f":"IF(Planning!G107<>0,Planning!G107,\"\")","v":""},{"$f":"Planning!H107","v":0},{"$f":"Planning!AP107","v":0},{"$f":"IF(OR(W123=\"1\",AND(W123<>\"1\",G123=Lists!$A$17)),Y123,0)","v":0},null,{"$f":"IF(AND(W123=\"2\",G123<>Lists!$A$17),AA123,Z123)","v":""},"",{"$f":"Planning!AQ107","v":{"v":0,"d":"0.00"}},{"$f":"'Month 11'!M123+'Month 11'!N123-'Month 11'!O123","v":{"v":0,"d":"0.00"}},null,"","",{"$f":"SUMIFS($J$25:$J$224,$C$25:$C$224,$C123,$G$25:$G$224,Lists!$A$16)","v":0},0,null,"",null,{"$f":"IF(C123=0,\"\",LEFT(INDEX(Lists!$H$5:$H$49,MATCH(C123,Lists!$G$5:$G$49,0),1),1))","v":""},null,{"$f":"'Month 11'!H123+'Month 11'!I123-'Month 11'!J123","v":0},"","",null,"0"]
[{"$f":"Planning!A108","v":"I100"},{"$f":"Planning!B108","v":0},{"$f":"Planning!C108","v":0},{"$f":"Planning!D108","v":0},{"$f":"Planning!E108","v":0},{"$f":"IF(Planning!G108<>0,Planning!G108,\"\")","v":""},{"$f":"Planning!H108","v":0},{"$f":"Planning!AP108","v":0},{"$f":"IF(OR(W124=\"1\",AND(W124<>\"1\",G124=Lists!$A$17)),Y124,0)","v":0},null,{"$f":"IF(AND(W124=\"2\",G124<>Lists!$A$17),AA124,Z124)","v":""},"",{"$f":"Planning!AQ108","v":{"v":0,"d":"0.00"}},{"$f":"'Month 11'!M124+'Month 11'!N124-'Month 11'!O124","v":{"v":0,"d":"0.00"}},null,"","",{"$f":"SUMIFS($J$25:$J$224,$C$25:$C$224,$C124,$G$25:$G$224,Lists!$A$16)","v":0},0,null,"",null,{"$f":"IF(C124=0,\"\",LEFT(INDEX(Lists!$H$5:$H$49,MATCH(C124,Lists!$G$5:$G$49,0),1),1))","v":""},null,{"$f":"'Month 11'!H124+'Month 11'!I124-'Month 11'!J124","v":0},"","",null,"0"]
[{"$f":"Planning!A109","v":"I101"},{"$f":"Planning!B109","v":0},{"$f":"Planning!C109","v":0},{"$f":"Planning!D109","v":0},{"$f":"Planning!E109","v":0},{"$f":"IF(Planning!G109<>0,Planning!G109,\"\")","v":""},{"$f":"Planning!H109","v":0},{"$f":"Planning!AP109","v":0},{"$f":"IF(OR(W125=\"1\",AND(W125<>\"1\",G125=Lists!$A$17)),Y125,0)","v":0},null,{"$f":"IF(AND(W125=\"2\",G125<>Lists!$A$17),AA125,Z125)","v":""},"",{"$f":"Planning!AQ109","v":{"v":0,"d":"0.00"}},{"$f":"'Month 11'!M125+'Month 11'!N125-'Month 11'!O125","v":{"v":0,"d":"0.00"}},null,"","",{"$f":"SUMIFS($J$25:$J$224,$C$25:$C$224,$C125,$G$25:$G$224,Lists!$A$16)","v":0},0,null,"",null,{"$f":"IF(C125=0,\"\",LEFT(INDEX(Lists!$H$5:$H$49,MATCH(C125,Lists!$G$5:$G$49,0),1),1))","v":""},null,{"$f":"'Month 11'!H125+'Month 11'!I125-'Month 11'!J125","v":0},"","",null,"0"]
[{"$f":"Planning!A110","v":"I102"},{"$f":"Planning!B110","v":0},{"$f":"Planning!C110","v":0},{"$f":"Planning!D110","v":0},{"$f":"Planning!E110","v":0},{"$f":"IF(Planning!G110<>0,Planning!G110,\"\")","v":""},{"$f":"Planning!H110","v":0},{"$f":"Planning!AP110","v":0},{"$f":"IF(OR(W126=\"1\",AND(W126<>\"1\",G126=Lists!$A$17)),Y126,0)","v":0},null,{"$f":"IF(AND(W126=\"2\",G126<>Lists!$A$17),AA126,Z126)","v":""},"",{"$f":"Planning!AQ110","v":{"v":0,"d":"0.00"}},{"$f":"'Month 11'!M126+'Month 11'!N126-'Month 11'!O126","v":{"v":0,"d":"0.00"}},null,"","",{"$f":"SUMIFS($J$25:$J$224,$C$25:$C$224,$C126,$G$25:$G$224,Lists!$A$16)","v":0},0,null,"",null,{"$f":"IF(C126=0,\"\",LEFT(INDEX(Lists!$H$5:$H$49,MATCH(C126,Lists!$G$5:$G$49,0),1),1))","v":""},null,{"$f":"'Month 11'!H126+'Month 11'!I126-'Month 11'!J126","v":0},"","",null,"0"]
[{"$f":"Planning!A111","v":"I103"},{"$f":"Planning!B111","v":0},{"$f":"Planning!C111","v":0},{"$f":"Planning!D111","v":0},{"$f":"Planning!E111","v":0},{"$f":"IF(Planning!G111<>0,Planning!G111,\"\")","v":""},{"$f":"Planning!H111","v":0},{"$f":"Planning!AP111","v":0},{"$f":"IF(OR(W127=\"1\",AND(W127<>\"1\",G127=Lists!$A$17)),Y127,0)","v":0},null,{"$f":"IF(AND(W127=\"2\",G127<>Lists!$A$17),AA127,Z127)","v":""},"",{"$f":"Planning!AQ111","v":{"v":0,"d":"0.00"}},{"$f":"'Month 11'!M127+'Month 11'!N127-'Month 11'!O127","v":{"v":0,"d":"0.00"}},null,"","",{"$f":"SUMIFS($J$25:$J$224,$C$25:$C$224,$C127,$G$25:$G$224,Lists!$A$16)","v":0},0,null,"",null,{"$f":"IF(C127=0,\"\",LEFT(INDEX(Lists!$H$5:$H$49,MATCH(C127,Lists!$G$5:$G$49,0),1),1))","v":""},null,{"$f":"'Month 11'!H127+'Month 11'!I127-'Month 11'!J127","v":0},"","",null,"0"]
[{"$f":"Planning!A112","v":"I104"},{"$f":"Planning!B112","v":0},{"$f":"Planning!C112","v":0},{"$f":"Planning!D112","v":0},{"$f":"Planning!E112","v":0},{"$f":"IF(Planning!G112<>0,Planning!G112,\"\")","v":""},{"$f":"Planning!H112","v":0},{"$f":"Planning!AP112","v":0},{"$f":"IF(OR(W128=\"1\",AND(W128<>\"1\",G128=Lists!$A$17)),Y128,0)","v":0},null,{"$f":"IF(AND(W128=\"2\",G128<>Lists!$A$17),AA128,Z128)","v":""},"",{"$f":"Planning!AQ112","v":{"v":0,"d":"0.00"}},{"$f":"'Month 11'!M128+'Month 11'!N128-'Month 11'!O128","v":{"v":0,"d":"0.00"}},null,"","",{"$f":"SUMIFS($J$25:$J$224,$C$25:$C$224,$C128,$G$25:$G$224,Lists!$A$16)","v":0},0,null,"",null,{"$f":"IF(C128=0,\"\",LEFT(INDEX(Lists!$H$5:$H$49,MATCH(C128,Lists!$G$5:$G$49,0),1),1))","v":""},null,{"$f":"'Month 11'!H128+'Month 11'!I128-'Month 11'!J128","v":0},"","",null,"0"]
[{"$f":"Planning!A113","v":"I105"},{"$f":"Planning!B113","v":0},{"$f":"Planning!C113","v":0},{"$f":"Planning!D113","v":0},{"$f":"Planning!E113","v":0},{"$f":"IF(Planning!G113<>0,Planning!G113,\"\")","v":""},{"$f":"Planning!H113","v":0},{"$f":"Planning!AP113","v":0},{"$f":"IF(OR(W129=\"1\",AND(W129<>\"1\",G129=Lists!$A$17)),Y129,0)","v":0},null,{"$f":"IF(AND(W129=\"2\",G129<>Lists!$A$17),AA129,Z129)","v":""},"",{"$f":"Planning!AQ113","v":{"v":0,"d":"0.00"}},{"$f":"'Month 11'!M129+'Month 11'!N129-'Month 11'!O129","v":{"v":0,"d":"0.00"}},null,"","",{"$f":"SUMIFS($J$25:$J$224,$C$25:$C$224,$C129,$G$25:$G$224,Lists!$A$16)","v":0},0,null,"",null,{"$f":"IF(C129=0,\"\",LEFT(INDEX(Lists!$H$5:$H$49,MATCH(C129,Lists!$G$5:$G$49,0),1),1))","v":""},null,{"$f":"'Month 11'!H129+'Month 11'!I129-'Month 11'!J129","v":0},"","",null,"0"]
[{"$f":"Planning!A114","v":"I106"},{"$f":"Planning!B114","v":0},{"$f":"Planning!C114","v":0},{"$f":"Planning!D114","v":0},{"$f":"Planning!E114","v":0},{"$f":"IF(Planning!G114<>0,Planning!G114,\"\")","v":""},{"$f":"Planning!H114","v":0},{"$f":"Planning!AP114","v":0},{"$f":"IF(OR(W130=\"1\",AND(W130<>\"1\",G130=Lists!$A$17)),Y130,0)","v":0},null,{"$f":"IF(AND(W130=\"2\",G130<>Lists!$A$17),AA130,Z130)","v":""},"",{"$f":"Planning!AQ114","v":{"v":0,"d":"0.00"}},{"$f":"'Month 11'!M130+'Month 11'!N130-'Month 11'!O130","v":{"v":0,"d":"0.00"}},null,"","",{"$f":"SUMIFS($J$25:$J$224,$C$25:$C$224,$C130,$G$25:$G$224,Lists!$A$16)","v":0},0,null,"",null,{"$f":"IF(C130=0,\"\",LEFT(INDEX(Lists!$H$5:$H$49,MATCH(C130,Lists!$G$5:$G$49,0),1),1))","v":""},null,{"$f":"'Month 11'!H130+'Month 11'!I130-'Month 11'!J130","v":0},"","",null,"0"]
[{"$f":"Planning!A115","v":"I107"},{"$f":"Planning!B115","v":0},{"$f":"Planning!C115","v":0},{"$f":"Planning!D115","v":0},{"$f":"Planning!E115","v":0},{"$f":"IF(Planning!G115<>0,Planning!G115,\"\")","v":""},{"$f":"Planning!H115","v":0},{"$f":"Planning!AP115","v":0},{"$f":"IF(OR(W131=\"1\",AND(W131<>\"1\",G131=Lists!$A$17)),Y131,0)","v":0},null,{"$f":"IF(AND(W131=\"2\",G131<>Lists!$A$17),AA131,Z131)","v":""},"",{"$f":"Planning!AQ115","v":{"v":0,"d":"0.00"}},{"$f":"'Month 11'!M131+'Month 11'!N131-'Month 11'!O131","v":{"v":0,"d":"0.00"}},null,"","",{"$f":"SUMIFS($J$25:$J$224,$C$25:$C$224,$C131,$G$25:$G$224,Lists!$A$16)","v":0},0,null,"",null,{"$f":"IF(C131=0,\"\",LEFT(INDEX(Lists!$H$5:$H$49,MATCH(C131,Lists!$G$5:$G$49,0),1),1))","v":""},null,{"$f":"'Month 11'!H131+'Month 11'!I131-'Month 11'!J131","v":0},"","",null,"0"]
[{"$f":"Planning!A116","v":"I108"},{"$f":"Planning!B116","v":0},{"$f":"Planning!C116","v":0},{"$f":"Planning!D116","v":0},{"$f":"Planning!E116","v":0},{"$f":"IF(Planning!G116<>0,Planning!G116,\"\")","v":""},{"$f":"Planning!H116","v":0},{"$f":"Planning!AP116","v":0},{"$f":"IF(OR(W132=\"1\",AND(W132<>\"1\",G132=Lists!$A$17)),Y132,0)","v":0},null,{"$f":"IF(AND(W132=\"2\",G132<>Lists!$A$17),AA132,Z132)","v":""},"",{"$f":"Planning!AQ116","v":{"v":0,"d":"0.00"}},{"$f":"'Month 11'!M132+'Month 11'!N132-'Month 11'!O132","v":{"v":0,"d":"0.00"}},null,"","",{"$f":"SUMIFS($J$25:$J$224,$C$25:$C$224,$C132,$G$25:$G$224,Lists!$A$16)","v":0},0,null,"",null,{"$f":"IF(C132=0,\"\",LEFT(INDEX(Lists!$H$5:$H$49,MATCH(C132,Lists!$G$5:$G$49,0),1),1))","v":""},null,{"$f":"'Month 11'!H132+'Month 11'!I132-'Month 11'!J132","v":0},"","",null,"0"]
[{"$f":"Planning!A117","v":"I109"},{"$f":"Planning!B117","v":0},{"$f":"Planning!C117","v":0},{"$f":"Planning!D117","v":0},{"$f":"Planning!E117","v":0},{"$f":"IF(Planning!G117<>0,Planning!G117,\"\")","v":""},{"$f":"Planning!H117","v":0},{"$f":"Planning!AP117","v":0},{"$f":"IF(OR(W133=\"1\",AND(W133<>\"1\",G133=Lists!$A$17)),Y133,0)","v":0},null,{"$f":"IF(AND(W133=\"2\",G133<>Lists!$A$17),AA133,Z133)","v":""},"",{"$f":"Planning!AQ117","v":{"v":0,"d":"0.00"}},{"$f":"'Month 11'!M133+'Month 11'!N133-'Month 11'!O133","v":{"v":0,"d":"0.00"}},null,"","",{"$f":"SUMIFS($J$25:$J$224,$C$25:$C$224,$C133,$G$25:$G$224,Lists!$A$16)","v":0},0,null,"",null,{"$f":"IF(C133=0,\"\",LEFT(INDEX(Lists!$H$5:$H$49,MATCH(C133,Lists!$G$5:$G$49,0),1),1))","v":""},null,{"$f":"'Month 11'!H133+'Month 11'!I133-'Month 11'!J133","v":0},"","",null,"0"]
[{"$f":"Planning!A118","v":"I110"},{"$f":"Planning!B118","v":0},{"$f":"Planning!C118","v":0},{"$f":"Planning!D118","v":0},{"$f":"Planning!E118","v":0},{"$f":"IF(Planning!G118<>0,Planning!G118,\"\")","v":""},{"$f":"Planning!H118","v":0},{"$f":"Planning!AP118","v":0},{"$f":"IF(OR(W134=\"1\",AND(W134<>\"1\",G134=Lists!$A$17)),Y134,0)","v":0},null,{"$f":"IF(AND(W134=\"2\",G134<>Lists!$A$17),AA134,Z134)","v":""},"",{"$f":"Planning!AQ118","v":{"v":0,"d":"0.00"}},{"$f":"'Month 11'!M134+'Month 11'!N134-'Month 11'!O134","v":{"v":0,"d":"0.00"}},null,"","",{"$f":"SUMIFS($J$25:$J$224,$C$25:$C$224,$C134,$G$25:$G$224,Lists!$A$16)","v":0},0,null,"",null,{"$f":"IF(C134=0,\"\",LEFT(INDEX(Lists!$H$5:$H$49,MATCH(C134,Lists!$G$5:$G$49,0),1),1))","v":""},null,{"$f":"'Month 11'!H134+'Month 11'!I134-'Month 11'!J134","v":0},"","",null,"0"]
[{"$f":"Planning!A119","v":"I111"},{"$f":"Planning!B119","v":0},{"$f":"Planning!C119","v":0},{"$f":"Planning!D119","v":0},{"$f":"Planning!E119","v":0},{"$f":"IF(Planning!G119<>0,Planning!G119,\"\")","v":""},{"$f":"Planning!H119","v":0},{"$f":"Planning!AP119","v":0},{"$f":"IF(OR(W135=\"1\",AND(W135<>\"1\",G135=Lists!$A$17)),Y135,0)","v":0},null,{"$f":"IF(AND(W135=\"2\",G135<>Lists!$A$17),AA135,Z135)","v":""},"",{"$f":"Planning!AQ119","v":{"v":0,"d":"0.00"}},{"$f":"'Month 11'!M135+'Month 11'!N135-'Month 11'!O135","v":{"v":0,"d":"0.00"}},null,"","",{"$f":"SUMIFS($J$25:$J$224,$C$25:$C$224,$C135,$G$25:$G$224,Lists!$A$16)","v":0},0,null,"",null,{"$f":"IF(C135=0,\"\",LEFT(INDEX(Lists!$H$5:$H$49,MATCH(C135,Lists!$G$5:$G$49,0),1),1))","v":""},null,{"$f":"'Month 11'!H135+'Month 11'!I135-'Month 11'!J135","v":0},"","",null,"0"]
[{"$f":"Planning!A120","v":"I112"},{"$f":"Planning!B120","v":0},{"$f":"Planning!C120","v":0},{"$f":"Planning!D120","v":0},{"$f":"Planning!E120","v":0},{"$f":"IF(Planning!G120<>0,Planning!G120,\"\")","v":""},{"$f":"Planning!H120","v":0},{"$f":"Planning!AP120","v":0},{"$f":"IF(OR(W136=\"1\",AND(W136<>\"1\",G136=Lists!$A$17)),Y136,0)","v":0},null,{"$f":"IF(AND(W136=\"2\",G136<>Lists!$A$17),AA136,Z136)","v":""},"",{"$f":"Planning!AQ120","v":{"v":0,"d":"0.00"}},{"$f":"'Month 11'!M136+'Month 11'!N136-'Month 11'!O136","v":{"v":0,"d":"0.00"}},null,"","",{"$f":"SUMIFS($J$25:$J$224,$C$25:$C$224,$C136,$G$25:$G$224,Lists!$A$16)","v":0},0,null,"",null,{"$f":"IF(C136=0,\"\",LEFT(INDEX(Lists!$H$5:$H$49,MATCH(C136,Lists!$G$5:$G$49,0),1),1))","v":""},null,{"$f":"'Month 11'!H136+'Month 11'!I136-'Month 11'!J136","v":0},"","",null,"0"]
[{"$f":"Planning!A121","v":"I113"},{"$f":"Planning!B121","v":0},{"$f":"Planning!C121","v":0},{"$f":"Planning!D121","v":0},{"$f":"Planning!E121","v":0},{"$f":"IF(Planning!G121<>0,Planning!G121,\"\")","v":""},{"$f":"Planning!H121","v":0},{"$f":"Planning!AP121","v":0},{"$f":"IF(OR(W137=\"1\",AND(W137<>\"1\",G137=Lists!$A$17)),Y137,0)","v":0},null,{"$f":"IF(AND(W137=\"2\",G137<>Lists!$A$17),AA137,Z137)","v":""},"",{"$f":"Planning!AQ121","v":{"v":0,"d":"0.00"}},{"$f":"'Month 11'!M137+'Month 11'!N137-'Month 11'!O137","v":{"v":0,"d":"0.00"}},null,"","",{"$f":"SUMIFS($J$25:$J$224,$C$25:$C$224,$C137,$G$25:$G$224,Lists!$A$16)","v":0},0,null,"",null,{"$f":"IF(C137=0,\"\",LEFT(INDEX(Lists!$H$5:$H$49,MATCH(C137,Lists!$G$5:$G$49,0),1),1))","v":""},null,{"$f":"'Month 11'!H137+'Month 11'!I137-'Month 11'!J137","v":0},"","",null,"0"]
[{"$f":"Planning!A122","v":"I114"},{"$f":"Planning!B122","v":0},{"$f":"Planning!C122","v":0},{"$f":"Planning!D122","v":0},{"$f":"Planning!E122","v":0},{"$f":"IF(Planning!G122<>0,Planning!G122,\"\")","v":""},{"$f":"Planning!H122","v":0},{"$f":"Planning!AP122","v":0},{"$f":"IF(OR(W138=\"1\",AND(W138<>\"1\",G138=Lists!$A$17)),Y138,0)","v":0},null,{"$f":"IF(AND(W138=\"2\",G138<>Lists!$A$17),AA138,Z138)","v":""},"",{"$f":"Planning!AQ122","v":{"v":0,"d":"0.00"}},{"$f":"'Month 11'!M138+'Month 11'!N138-'Month 11'!O138","v":{"v":0,"d":"0.00"}},null,"","",{"$f":"SUMIFS($J$25:$J$224,$C$25:$C$224,$C138,$G$25:$G$224,Lists!$A$16)","v":0},0,null,"",null,{"$f":"IF(C138=0,\"\",LEFT(INDEX(Lists!$H$5:$H$49,MATCH(C138,Lists!$G$5:$G$49,0),1),1))","v":""},null,{"$f":"'Month 11'!H138+'Month 11'!I138-'Month 11'!J138","v":0},"","",null,"0"]
[{"$f":"Planning!A123","v":"I115"},{"$f":"Planning!B123","v":0},{"$f":"Planning!C123","v":0},{"$f":"Planning!D123","v":0},{"$f":"Planning!E123","v":0},{"$f":"IF(Planning!G123<>0,Planning!G123,\"\")","v":""},{"$f":"Planning!H123","v":0},{"$f":"Planning!AP123","v":0},{"$f":"IF(OR(W139=\"1\",AND(W139<>\"1\",G139=Lists!$A$17)),Y139,0)","v":0},null,{"$f":"IF(AND(W139=\"2\",G139<>Lists!$A$17),AA139,Z139)","v":""},"",{"$f":"Planning!AQ123","v":{"v":0,"d":"0.00"}},{"$f":"'Month 11'!M139+'Month 11'!N139-'Month 11'!O139","v":{"v":0,"d":"0.00"}},null,"","",{"$f":"SUMIFS($J$25:$J$224,$C$25:$C$224,$C139,$G$25:$G$224,Lists!$A$16)","v":0},0,null,"",null,{"$f":"IF(C139=0,\"\",LEFT(INDEX(Lists!$H$5:$H$49,MATCH(C139,Lists!$G$5:$G$49,0),1),1))","v":""},null,{"$f":"'Month 11'!H139+'Month 11'!I139-'Month 11'!J139","v":0},"","",null,"0"]
[{"$f":"Planning!A124","v":"I116"},{"$f":"Planning!B124","v":0},{"$f":"Planning!C124","v":0},{"$f":"Planning!D124","v":0},{"$f":"Planning!E124","v":0},{"$f":"IF(Planning!G124<>0,Planning!G124,\"\")","v":""},{"$f":"Planning!H124","v":0},{"$f":"Planning!AP124","v":0},{"$f":"IF(OR(W140=\"1\",AND(W140<>\"1\",G140=Lists!$A$17)),Y140,0)","v":0},null,{"$f":"IF(AND(W140=\"2\",G140<>Lists!$A$17),AA140,Z140)","v":""},"",{"$f":"Planning!AQ124","v":{"v":0,"d":"0.00"}},{"$f":"'Month 11'!M140+'Month 11'!N140-'Month 11'!O140","v":{"v":0,"d":"0.00"}},null,"","",{"$f":"SUMIFS($J$25:$J$224,$C$25:$C$224,$C140,$G$25:$G$224,Lists!$A$16)","v":0},0,null,"",null,{"$f":"IF(C140=0,\"\",LEFT(INDEX(Lists!$H$5:$H$49,MATCH(C140,Lists!$G$5:$G$49,0),1),1))","v":""},null,{"$f":"'Month 11'!H140+'Month 11'!I140-'Month 11'!J140","v":0},"","",null,"0"]
[{"$f":"Planning!A125","v":"I117"},{"$f":"Planning!B125","v":0},{"$f":"Planning!C125","v":0},{"$f":"Planning!D125","v":0},{"$f":"Planning!E125","v":0},{"$f":"IF(Planning!G125<>0,Planning!G125,\"\")","v":""},{"$f":"Planning!H125","v":0},{"$f":"Planning!AP125","v":0},{"$f":"IF(OR(W141=\"1\",AND(W141<>\"1\",G141=Lists!$A$17)),Y141,0)","v":0},null,{"$f":"IF(AND(W141=\"2\",G141<>Lists!$A$17),AA141,Z141)","v":""},"",{"$f":"Planning!AQ125","v":{"v":0,"d":"0.00"}},{"$f":"'Month 11'!M141+'Month 11'!N141-'Month 11'!O141","v":{"v":0,"d":"0.00"}},null,"","",{"$f":"SUMIFS($J$25:$J$224,$C$25:$C$224,$C141,$G$25:$G$224,Lists!$A$16)","v":0},0,null,"",null,{"$f":"IF(C141=0,\"\",LEFT(INDEX(Lists!$H$5:$H$49,MATCH(C141,Lists!$G$5:$G$49,0),1),1))","v":""},null,{"$f":"'Month 11'!H141+'Month 11'!I141-'Month 11'!J141","v":0},"","",null,"0"]
[{"$f":"Planning!A126","v":"I118"},{"$f":"Planning!B126","v":0},{"$f":"Planning!C126","v":0},{"$f":"Planning!D126","v":0},{"$f":"Planning!E126","v":0},{"$f":"IF(Planning!G126<>0,Planning!G126,\"\")","v":""},{"$f":"Planning!H126","v":0},{"$f":"Planning!AP126","v":0},{"$f":"IF(OR(W142=\"1\",AND(W142<>\"1\",G142=Lists!$A$17)),Y142,0)","v":0},null,{"$f":"IF(AND(W142=\"2\",G142<>Lists!$A$17),AA142,Z142)","v":""},"",{"$f":"Planning!AQ126","v":{"v":0,"d":"0.00"}},{"$f":"'Month 11'!M142+'Month 11'!N142-'Month 11'!O142","v":{"v":0,"d":"0.00"}},null,"","",{"$f":"SUMIFS($J$25:$J$224,$C$25:$C$224,$C142,$G$25:$G$224,Lists!$A$16)","v":0},0,null,"",null,{"$f":"IF(C142=0,\"\",LEFT(INDEX(Lists!$H$5:$H$49,MATCH(C142,Lists!$G$5:$G$49,0),1),1))","v":""},null,{"$f":"'Month 11'!H142+'Month 11'!I142-'Month 11'!J142","v":0},"","",null,"0"]
[{"$f":"Planning!A127","v":"I119"},{"$f":"Planning!B127","v":0},{"$f":"Planning!C127","v":0},{"$f":"Planning!D127","v":0},{"$f":"Planning!E127","v":0},{"$f":"IF(Planning!G127<>0,Planning!G127,\"\")","v":""},{"$f":"Planning!H127","v":0},{"$f":"Planning!AP127","v":0},{"$f":"IF(OR(W143=\"1\",AND(W143<>\"1\",G143=Lists!$A$17)),Y143,0)","v":0},null,{"$f":"IF(AND(W143=\"2\",G143<>Lists!$A$17),AA143,Z143)","v":""},"",{"$f":"Planning!AQ127","v":{"v":0,"d":"0.00"}},{"$f":"'Month 11'!M143+'Month 11'!N143-'Month 11'!O143","v":{"v":0,"d":"0.00"}},null,"","",{"$f":"SUMIFS($J$25:$J$224,$C$25:$C$224,$C143,$G$25:$G$224,Lists!$A$16)","v":0},0,null,"",null,{"$f":"IF(C143=0,\"\",LEFT(INDEX(Lists!$H$5:$H$49,MATCH(C143,Lists!$G$5:$G$49,0),1),1))","v":""},null,{"$f":"'Month 11'!H143+'Month 11'!I143-'Month 11'!J143","v":0},"","",null,"0"]
[{"$f":"Planning!A128","v":"I120"},{"$f":"Planning!B128","v":0},{"$f":"Planning!C128","v":0},{"$f":"Planning!D128","v":0},{"$f":"Planning!E128","v":0},{"$f":"IF(Planning!G128<>0,Planning!G128,\"\")","v":""},{"$f":"Planning!H128","v":0},{"$f":"Planning!AP128","v":0},{"$f":"IF(OR(W144=\"1\",AND(W144<>\"1\",G144=Lists!$A$17)),Y144,0)","v":0},null,{"$f":"IF(AND(W144=\"2\",G144<>Lists!$A$17),AA144,Z144)","v":""},"",{"$f":"Planning!AQ128","v":{"v":0,"d":"0.00"}},{"$f":"'Month 11'!M144+'Month 11'!N144-'Month 11'!O144","v":{"v":0,"d":"0.00"}},null,"","",{"$f":"SUMIFS($J$25:$J$224,$C$25:$C$224,$C144,$G$25:$G$224,Lists!$A$16)","v":0},0,null,"",null,{"$f":"IF(C144=0,\"\",LEFT(INDEX(Lists!$H$5:$H$49,MATCH(C144,Lists!$G$5:$G$49,0),1),1))","v":""},null,{"$f":"'Month 11'!H144+'Month 11'!I144-'Month 11'!J144","v":0},"","",null,"0"]
[{"$f":"Planning!A129","v":"I121"},{"$f":"Planning!B129","v":0},{"$f":"Planning!C129","v":0},{"$f":"Planning!D129","v":0},{"$f":"Planning!E129","v":0},{"$f":"IF(Planning!G129<>0,Planning!G129,\"\")","v":""},{"$f":"Planning!H129","v":0},{"$f":"Planning!AP129","v":0},{"$f":"IF(OR(W145=\"1\",AND(W145<>\"1\",G145=Lists!$A$17)),Y145,0)","v":0},null,{"$f":"IF(AND(W145=\"2\",G145<>Lists!$A$17),AA145,Z145)","v":""},"",{"$f":"Planning!AQ129","v":{"v":0,"d":"0.00"}},{"$f":"'Month 11'!M145+'Month 11'!N145-'Month 11'!O145","v":{"v":0,"d":"0.00"}},null,"","",{"$f":"SUMIFS($J$25:$J$224,$C$25:$C$224,$C145,$G$25:$G$224,Lists!$A$16)","v":0},0,null,"",null,{"$f":"IF(C145=0,\"\",LEFT(INDEX(Lists!$H$5:$H$49,MATCH(C145,Lists!$G$5:$G$49,0),1),1))","v":""},null,{"$f":"'Month 11'!H145+'Month 11'!I145-'Month 11'!J145","v":0},"","",null,"0"]
[{"$f":"Planning!A130","v":"I122"},{"$f":"Planning!B130","v":0},{"$f":"Planning!C130","v":0},{"$f":"Planning!D130","v":0},{"$f":"Planning!E130","v":0},{"$f":"IF(Planning!G130<>0,Planning!G130,\"\")","v":""},{"$f":"Planning!H130","v":0},{"$f":"Planning!AP130","v":0},{"$f":"IF(OR(W146=\"1\",AND(W146<>\"1\",G146=Lists!$A$17)),Y146,0)","v":0},null,{"$f":"IF(AND(W146=\"2\",G146<>Lists!$A$17),AA146,Z146)","v":""},"",{"$f":"Planning!AQ130","v":{"v":0,"d":"0.00"}},{"$f":"'Month 11'!M146+'Month 11'!N146-'Month 11'!O146","v":{"v":0,"d":"0.00"}},null,"","",{"$f":"SUMIFS($J$25:$J$224,$C$25:$C$224,$C146,$G$25:$G$224,Lists!$A$16)","v":0},0,null,"",null,{"$f":"IF(C146=0,\"\",LEFT(INDEX(Lists!$H$5:$H$49,MATCH(C146,Lists!$G$5:$G$49,0),1),1))","v":""},null,{"$f":"'Month 11'!H146+'Month 11'!I146-'Month 11'!J146","v":0},"","",null,"0"]
[{"$f":"Planning!A131","v":"I123"},{"$f":"Planning!B131","v":0},{"$f":"Planning!C131","v":0},{"$f":"Planning!D131","v":0},{"$f":"Planning!E131","v":0},{"$f":"IF(Planning!G131<>0,Planning!G131,\"\")","v":""},{"$f":"Planning!H131","v":0},{"$f":"Planning!AP131","v":0},{"$f":"IF(OR(W147=\"1\",AND(W147<>\"1\",G147=Lists!$A$17)),Y147,0)","v":0},null,{"$f":"IF(AND(W147=\"2\",G147<>Lists!$A$17),AA147,Z147)","v":""},"",{"$f":"Planning!AQ131","v":{"v":0,"d":"0.00"}},{"$f":"'Month 11'!M147+'Month 11'!N147-'Month 11'!O147","v":{"v":0,"d":"0.00"}},null,"","",{"$f":"SUMIFS($J$25:$J$224,$C$25:$C$224,$C147,$G$25:$G$224,Lists!$A$16)","v":0},0,null,"",null,{"$f":"IF(C147=0,\"\",LEFT(INDEX(Lists!$H$5:$H$49,MATCH(C147,Lists!$G$5:$G$49,0),1),1))","v":""},null,{"$f":"'Month 11'!H147+'Month 11'!I147-'Month 11'!J147","v":0},"","",null,"0"]
[{"$f":"Planning!A132","v":"I124"},{"$f":"Planning!B132","v":0},{"$f":"Planning!C132","v":0},{"$f":"Planning!D132","v":0},{"$f":"Planning!E132","v":0},{"$f":"IF(Planning!G132<>0,Planning!G132,\"\")","v":""},{"$f":"Planning!H132","v":0},{"$f":"Planning!AP132","v":0},{"$f":"IF(OR(W148=\"1\",AND(W148<>\"1\",G148=Lists!$A$17)),Y148,0)","v":0},null,{"$f":"IF(AND(W148=\"2\",G148<>Lists!$A$17),AA148,Z148)","v":""},"",{"$f":"Planning!AQ132","v":{"v":0,"d":"0.00"}},{"$f":"'Month 11'!M148+'Month 11'!N148-'Month 11'!O148","v":{"v":0,"d":"0.00"}},null,"","",{"$f":"SUMIFS($J$25:$J$224,$C$25:$C$224,$C148,$G$25:$G$224,Lists!$A$16)","v":0},0,null,"",null,{"$f":"IF(C148=0,\"\",LEFT(INDEX(Lists!$H$5:$H$49,MATCH(C148,Lists!$G$5:$G$49,0),1),1))","v":""},null,{"$f":"'Month 11'!H148+'Month 11'!I148-'Month 11'!J148","v":0},"","",null,"0"]
[{"$f":"Planning!A133","v":"I125"},{"$f":"Planning!B133","v":0},{"$f":"Planning!C133","v":0},{"$f":"Planning!D133","v":0},{"$f":"Planning!E133","v":0},{"$f":"IF(Planning!G133<>0,Planning!G133,\"\")","v":""},{"$f":"Planning!H133","v":0},{"$f":"Planning!AP133","v":0},{"$f":"IF(OR(W149=\"1\",AND(W149<>\"1\",G149=Lists!$A$17)),Y149,0)","v":0},null,{"$f":"IF(AND(W149=\"2\",G149<>Lists!$A$17),AA149,Z149)","v":""},"",{"$f":"Planning!AQ133","v":{"v":0,"d":"0.00"}},{"$f":"'Month 11'!M149+'Month 11'!N149-'Month 11'!O149","v":{"v":0,"d":"0.00"}},null,"","",{"$f":"SUMIFS($J$25:$J$224,$C$25:$C$224,$C149,$G$25:$G$224,Lists!$A$16)","v":0},0,null,"",null,{"$f":"IF(C149=0,\"\",LEFT(INDEX(Lists!$H$5:$H$49,MATCH(C149,Lists!$G$5:$G$49,0),1),1))","v":""},null,{"$f":"'Month 11'!H149+'Month 11'!I149-'Month 11'!J149","v":0},"","",null,"0"]
[{"$f":"Planning!A134","v":"I126"},{"$f":"Planning!B134","v":0},{"$f":"Planning!C134","v":0},{"$f":"Planning!D134","v":0},{"$f":"Planning!E134","v":0},{"$f":"IF(Planning!G134<>0,Planning!G134,\"\")","v":""},{"$f":"Planning!H134","v":0},{"$f":"Planning!AP134","v":0},{"$f":"IF(OR(W150=\"1\",AND(W150<>\"1\",G150=Lists!$A$17)),Y150,0)","v":0},null,{"$f":"IF(AND(W150=\"2\",G150<>Lists!$A$17),AA150,Z150)","v":""},"",{"$f":"Planning!AQ134","v":{"v":0,"d":"0.00"}},{"$f":"'Month 11'!M150+'Month 11'!N150-'Month 11'!O150","v":{"v":0,"d":"0.00"}},null,"","",{"$f":"SUMIFS($J$25:$J$224,$C$25:$C$224,$C150,$G$25:$G$224,Lists!$A$16)","v":0},0,null,"",null,{"$f":"IF(C150=0,\"\",LEFT(INDEX(Lists!$H$5:$H$49,MATCH(C150,Lists!$G$5:$G$49,0),1),1))","v":""},null,{"$f":"'Month 11'!H150+'Month 11'!I150-'Month 11'!J150","v":0},"","",null,"0"]
[{"$f":"Planning!A135","v":"I127"},{"$f":"Planning!B135","v":0},{"$f":"Planning!C135","v":0},{"$f":"Planning!D135","v":0},{"$f":"Planning!E135","v":0},{"$f":"IF(Planning!G135<>0,Planning!G135,\"\")","v":""},{"$f":"Planning!H135","v":0},{"$f":"Planning!AP135","v":0},{"$f":"IF(OR(W151=\"1\",AND(W151<>\"1\",G151=Lists!$A$17)),Y151,0)","v":0},null,{"$f":"IF(AND(W151=\"2\",G151<>Lists!$A$17),AA151,Z151)","v":""},"",{"$f":"Planning!AQ135","v":{"v":0,"d":"0.00"}},{"$f":"'Month 11'!M151+'Month 11'!N151-'Month 11'!O151","v":{"v":0,"d":"0.00"}},null,"","",{"$f":"SUMIFS($J$25:$J$224,$C$25:$C$224,$C151,$G$25:$G$224,Lists!$A$16)","v":0},0,null,"",null,{"$f":"IF(C151=0,\"\",LEFT(INDEX(Lists!$H$5:$H$49,MATCH(C151,Lists!$G$5:$G$49,0),1),1))","v":""},null,{"$f":"'Month 11'!H151+'Month 11'!I151-'Month 11'!J151","v":0},"","",null,"0"]
[{"$f":"Planning!A136","v":"I128"},{"$f":"Planning!B136","v":0},{"$f":"Planning!C136","v":0},{"$f":"Planning!D136","v":0},{"$f":"Planning!E136","v":0},{"$f":"IF(Planning!G136<>0,Planning!G136,\"\")","v":""},{"$f":"Planning!H136","v":0},{"$f":"Planning!AP136","v":0},{"$f":"IF(OR(W152=\"1\",AND(W152<>\"1\",G152=Lists!$A$17)),Y152,0)","v":0},null,{"$f":"IF(AND(W152=\"2\",G152<>Lists!$A$17),AA152,Z152)","v":""},"",{"$f":"Planning!AQ136","v":{"v":0,"d":"0.00"}},{"$f":"'Month 11'!M152+'Month 11'!N152-'Month 11'!O152","v":{"v":0,"d":"0.00"}},null,"","",{"$f":"SUMIFS($J$25:$J$224,$C$25:$C$224,$C152,$G$25:$G$224,Lists!$A$16)","v":0},0,null,"",null,{"$f":"IF(C152=0,\"\",LEFT(INDEX(Lists!$H$5:$H$49,MATCH(C152,Lists!$G$5:$G$49,0),1),1))","v":""},null,{"$f":"'Month 11'!H152+'Month 11'!I152-'Month 11'!J152","v":0},"","",null,"0"]
[{"$f":"Planning!A137","v":"I129"},{"$f":"Planning!B137","v":0},{"$f":"Planning!C137","v":0},{"$f":"Planning!D137","v":0},{"$f":"Planning!E137","v":0},{"$f":"IF(Planning!G137<>0,Planning!G137,\"\")","v":""},{"$f":"Planning!H137","v":0},{"$f":"Planning!AP137","v":0},{"$f":"IF(OR(W153=\"1\",AND(W153<>\"1\",G153=Lists!$A$17)),Y153,0)","v":0},null,{"$f":"IF(AND(W153=\"2\",G153<>Lists!$A$17),AA153,Z153)","v":""},{"$f":"IF($U153=ExcluirDelPLogro,\"\",IF(AND(H153=0,I153=0,J153=0),\"\",K153))","v":""},{"$f":"Planning!AQ137","v":{"v":0,"d":"0.00"}},{"$f":"'Month 11'!M153+'Month 11'!N153-'Month 11'!O153","v":{"v":0,"d":"0.00"}},null,"",{"$f":"IF($U153=ExcluirDelPLogro,\"\",IF(AND(M153=0,N153=0,O153=0),\"\",P153))","v":""},{"$f":"SUMIFS($J$25:$J$224,$C$25:$C$224,$C153,$G$25:$G$224,Lists!$A$16)","v":0},0,null,"",null,{"$f":"IF(C153=0,\"\",LEFT(INDEX(Lists!$H$5:$H$49,MATCH(C153,Lists!$G$5:$G$49,0),1),1))","v":""},null,{"$f":"'Month 11'!H153+'Month 11'!I153-'Month 11'!J153","v":0},"",{"$f":"IF(AND(H153=0,I153=0,J153=0),\"\",IF(J153>0,H153/J153,0))","v":""},null,"0"]
[{"$f":"Planning!A138","v":"I130"},{"$f":"Planning!B138","v":0},{"$f":"Planning!C138","v":0},{"$f":"Planning!D138","v":0},{"$f":"Planning!E138","v":0},{"$f":"IF(Planning!G138<>0,Planning!G138,\"\")","v":""},{"$f":"Planning!H138","v":0},{"$f":"Planning!AP138","v":0},{"$f":"IF(OR(W154=\"1\",AND(W154<>\"1\",G154=Lists!$A$17)),Y154,0)","v":0},null,{"$f":"IF(AND(W154=\"2\",G154<>Lists!$A$17),AA154,Z154)","v":""},"",{"$f":"Planning!AQ138","v":{"v":0,"d":"0.00"}},{"$f":"'Month 11'!M154+'Month 11'!N154-'Month 11'!O154","v":{"v":0,"d":"0.00"}},null,{"$f":"IF(AND(M154=0,N154=0,O154=0),\"\",IF((M154+N154)>0,O154/(M154+N154),O154))","v":""},"",{"$f":"SUMIFS($J$25:$J$224,$C$25:$C$224,$C154,$G$25:$G$224,Lists!$A$16)","v":0},{"$f":"SUMIFS($O$25:$O$224,$C$25:$C$224,$C154,$G$25:$G$224,\"<>0\")","v":0},null,{"$f":"IF(B154=0,\"\",IF(LEFT(B154,1)=\"1\",\"1\",\"2\"))","v":""},null,{"$f":"IF(C154=0,\"\",LEFT(INDEX(Lists!$H$5:$H$49,MATCH(C154,Lists!$G$5:$G$49,0),1),1))","v":""},null,{"$f":"'Month 11'!H154+'Month 11'!I154-'Month 11'!J154","v":0},{"$f":"IF(AND(H154=0,I154=0,J154=0),\"\",IF((H154+I154)>0,J154/(H154+I154),J154))","v":""},"",null,{"$f":"U154&C154","v":"0"}]
[{"$f":"Planning!A139","v":"I131"},{"$f":"Planning!B139","v":0},{"$f":"Planning!C139","v":0},{"$f":"Planning!D139","v":0},{"$f":"Planning!E139","v":0},{"$f":"IF(Planning!G139<>0,Planning!G139,\"\")","v":""},{"$f":"Planning!H139","v":0},{"$f":"Planning!AP139","v":0},{"$f":"IF(OR(W155=\"1\",AND(W155<>\"1\",G155=Lists!$A$17)),Y155,0)","v":0},null,{"$f":"IF(AND(W155=\"2\",G155<>Lists!$A$17),AA155,Z155)","v":""},"",{"$f":"Planning!AQ139","v":{"v":0,"d":"0.00"}},{"$f":"'Month 11'!M155+'Month 11'!N155-'Month 11'!O155","v":{"v":0,"d":"0.00"}},null,"","",{"$f":"SUMIFS($J$25:$J$224,$C$25:$C$224,$C155,$G$25:$G$224,Lists!$A$16)","v":0},0,null,"",null,{"$f":"IF(C155=0,\"\",LEFT(INDEX(Lists!$H$5:$H$49,MATCH(C155,Lists!$G$5:$G$49,0),1),1))","v":""},null,{"$f":"'Month 11'!H155+'Month 11'!I155-'Month 11'!J155","v":0},"","",null,"0"]
[{"$f":"Planning!A140","v":"I132"},{"$f":"Planning!B140","v":0},{"$f":"Planning!C140","v":0},{"$f":"Planning!D140","v":0},{"$f":"Planning!E140","v":0},{"$f":"IF(Planning!G140<>0,Planning!G140,\"\")","v":""},{"$f":"Planning!H140","v":0},{"$f":"Planning!AP140","v":0},{"$f":"IF(OR(W156=\"1\",AND(W156<>\"1\",G156=Lists!$A$17)),Y156,0)","v":0},null,{"$f":"IF(AND(W156=\"2\",G156<>Lists!$A$17),AA156,Z156)","v":""},"",{"$f":"Planning!AQ140","v":{"v":0,"d":"0.00"}},{"$f":"'Month 11'!M156+'Month 11'!N156-'Month 11'!O156","v":{"v":0,"d":"0.00"}},null,"","",{"$f":"SUMIFS($J$25:$J$224,$C$25:$C$224,$C156,$G$25:$G$224,Lists!$A$16)","v":0},0,null,"",null,{"$f":"IF(C156=0,\"\",LEFT(INDEX(Lists!$H$5:$H$49,MATCH(C156,Lists!$G$5:$G$49,0),1),1))","v":""},null,{"$f":"'Month 11'!H156+'Month 11'!I156-'Month 11'!J156","v":0},"","",null,"0"]
[{"$f":"Planning!A141","v":"I133"},{"$f":"Planning!B141","v":0},{"$f":"Planning!C141","v":0},{"$f":"Planning!D141","v":0},{"$f":"Planning!E141","v":0},{"$f":"IF(Planning!G141<>0,Planning!G141,\"\")","v":""},{"$f":"Planning!H141","v":0},{"$f":"Planning!AP141","v":0},{"$f":"IF(OR(W157=\"1\",AND(W157<>\"1\",G157=Lists!$A$17)),Y157,0)","v":0},null,{"$f":"IF(AND(W157=\"2\",G157<>Lists!$A$17),AA157,Z157)","v":""},"",{"$f":"Planning!AQ141","v":{"v":0,"d":"0.00"}},{"$f":"'Month 11'!M157+'Month 11'!N157-'Month 11'!O157","v":{"v":0,"d":"0.00"}},null,"","",{"$f":"SUMIFS($J$25:$J$224,$C$25:$C$224,$C157,$G$25:$G$224,Lists!$A$16)","v":0},0,null,"",null,{"$f":"IF(C157=0,\"\",LEFT(INDEX(Lists!$H$5:$H$49,MATCH(C157,Lists!$G$5:$G$49,0),1),1))","v":""},null,{"$f":"'Month 11'!H157+'Month 11'!I157-'Month 11'!J157","v":0},"","",null,"0"]
[{"$f":"Planning!A142","v":"I134"},{"$f":"Planning!B142","v":0},{"$f":"Planning!C142","v":0},{"$f":"Planning!D142","v":0},{"$f":"Planning!E142","v":0},{"$f":"IF(Planning!G142<>0,Planning!G142,\"\")","v":""},{"$f":"Planning!H142","v":0},{"$f":"Planning!AP142","v":0},{"$f":"IF(OR(W158=\"1\",AND(W158<>\"1\",G158=Lists!$A$17)),Y158,0)","v":0},null,{"$f":"IF(AND(W158=\"2\",G158<>Lists!$A$17),AA158,Z158)","v":""},"",{"$f":"Planning!AQ142","v":{"v":0,"d":"0.00"}},{"$f":"'Month 11'!M158+'Month 11'!N158-'Month 11'!O158","v":{"v":0,"d":"0.00"}},null,"","",{"$f":"SUMIFS($J$25:$J$224,$C$25:$C$224,$C158,$G$25:$G$224,Lists!$A$16)","v":0},0,null,"",null,{"$f":"IF(C158=0,\"\",LEFT(INDEX(Lists!$H$5:$H$49,MATCH(C158,Lists!$G$5:$G$49,0),1),1))","v":""},null,{"$f":"'Month 11'!H158+'Month 11'!I158-'Month 11'!J158","v":0},"","",null,"0"]
[{"$f":"Planning!A143","v":"I135"},{"$f":"Planning!B143","v":0},{"$f":"Planning!C143","v":0},{"$f":"Planning!D143","v":0},{"$f":"Planning!E143","v":0},{"$f":"IF(Planning!G143<>0,Planning!G143,\"\")","v":""},{"$f":"Planning!H143","v":0},{"$f":"Planning!AP143","v":0},{"$f":"IF(OR(W159=\"1\",AND(W159<>\"1\",G159=Lists!$A$17)),Y159,0)","v":0},null,{"$f":"IF(AND(W159=\"2\",G159<>Lists!$A$17),AA159,Z159)","v":""},"",{"$f":"Planning!AQ143","v":{"v":0,"d":"0.00"}},{"$f":"'Month 11'!M159+'Month 11'!N159-'Month 11'!O159","v":{"v":0,"d":"0.00"}},null,"","",{"$f":"SUMIFS($J$25:$J$224,$C$25:$C$224,$C159,$G$25:$G$224,Lists!$A$16)","v":0},0,null,"",null,{"$f":"IF(C159=0,\"\",LEFT(INDEX(Lists!$H$5:$H$49,MATCH(C159,Lists!$G$5:$G$49,0),1),1))","v":""},null,{"$f":"'Month 11'!H159+'Month 11'!I159-'Month 11'!J159","v":0},"","",null,"0"]
[{"$f":"Planning!A144","v":"I136"},{"$f":"Planning!B144","v":0},{"$f":"Planning!C144","v":0},{"$f":"Planning!D144","v":0},{"$f":"Planning!E144","v":0},{"$f":"IF(Planning!G144<>0,Planning!G144,\"\")","v":""},{"$f":"Planning!H144","v":0},{"$f":"Planning!AP144","v":0},{"$f":"IF(OR(W160=\"1\",AND(W160<>\"1\",G160=Lists!$A$17)),Y160,0)","v":0},null,{"$f":"IF(AND(W160=\"2\",G160<>Lists!$A$17),AA160,Z160)","v":""},"",{"$f":"Planning!AQ144","v":{"v":0,"d":"0.00"}},{"$f":"'Month 11'!M160+'Month 11'!N160-'Month 11'!O160","v":{"v":0,"d":"0.00"}},null,"","",{"$f":"SUMIFS($J$25:$J$224,$C$25:$C$224,$C160,$G$25:$G$224,Lists!$A$16)","v":0},0,null,"",null,{"$f":"IF(C160=0,\"\",LEFT(INDEX(Lists!$H$5:$H$49,MATCH(C160,Lists!$G$5:$G$49,0),1),1))","v":""},null,{"$f":"'Month 11'!H160+'Month 11'!I160-'Month 11'!J160","v":0},"","",null,"0"]
[{"$f":"Planning!A145","v":"I137"},{"$f":"Planning!B145","v":0},{"$f":"Planning!C145","v":0},{"$f":"Planning!D145","v":0},{"$f":"Planning!E145","v":0},{"$f":"IF(Planning!G145<>0,Planning!G145,\"\")","v":""},{"$f":"Planning!H145","v":0},{"$f":"Planning!AP145","v":0},{"$f":"IF(OR(W161=\"1\",AND(W161<>\"1\",G161=Lists!$A$17)),Y161,0)","v":0},null,{"$f":"IF(AND(W161=\"2\",G161<>Lists!$A$17),AA161,Z161)","v":""},"",{"$f":"Planning!AQ145","v":{"v":0,"d":"0.00"}},{"$f":"'Month 11'!M161+'Month 11'!N161-'Month 11'!O161","v":{"v":0,"d":"0.00"}},null,"","",{"$f":"SUMIFS($J$25:$J$224,$C$25:$C$224,$C161,$G$25:$G$224,Lists!$A$16)","v":0},0,null,"",null,{"$f":"IF(C161=0,\"\",LEFT(INDEX(Lists!$H$5:$H$49,MATCH(C161,Lists!$G$5:$G$49,0),1),1))","v":""},null,{"$f":"'Month 11'!H161+'Month 11'!I161-'Month 11'!J161","v":0},"","",null,"0"]
[{"$f":"Planning!A146","v":"I138"},{"$f":"Planning!B146","v":0},{"$f":"Planning!C146","v":0},{"$f":"Planning!D146","v":0},{"$f":"Planning!E146","v":0},{"$f":"IF(Planning!G146<>0,Planning!G146,\"\")","v":""},{"$f":"Planning!H146","v":0},{"$f":"Planning!AP146","v":0},{"$f":"IF(OR(W162=\"1\",AND(W162<>\"1\",G162=Lists!$A$17)),Y162,0)","v":0},null,{"$f":"IF(AND(W162=\"2\",G162<>Lists!$A$17),AA162,Z162)","v":""},"",{"$f":"Planning!AQ146","v":{"v":0,"d":"0.00"}},{"$f":"'Month 11'!M162+'Month 11'!N162-'Month 11'!O162","v":{"v":0,"d":"0.00"}},null,"","",{"$f":"SUMIFS($J$25:$J$224,$C$25:$C$224,$C162,$G$25:$G$224,Lists!$A$16)","v":0},0,null,"",null,{"$f":"IF(C162=0,\"\",LEFT(INDEX(Lists!$H$5:$H$49,MATCH(C162,Lists!$G$5:$G$49,0),1),1))","v":""},null,{"$f":"'Month 11'!H162+'Month 11'!I162-'Month 11'!J162","v":0},"","",null,"0"]
[{"$f":"Planning!A147","v":"I139"},{"$f":"Planning!B147","v":0},{"$f":"Planning!C147","v":0},{"$f":"Planning!D147","v":0},{"$f":"Planning!E147","v":0},{"$f":"IF(Planning!G147<>0,Planning!G147,\"\")","v":""},{"$f":"Planning!H147","v":0},{"$f":"Planning!AP147","v":0},{"$f":"IF(OR(W163=\"1\",AND(W163<>\"1\",G163=Lists!$A$17)),Y163,0)","v":0},null,{"$f":"IF(AND(W163=\"2\",G163<>Lists!$A$17),AA163,Z163)","v":""},"",{"$f":"Planning!AQ147","v":{"v":0,"d":"0.00"}},{"$f":"'Month 11'!M163+'Month 11'!N163-'Month 11'!O163","v":{"v":0,"d":"0.00"}},null,"","",{"$f":"SUMIFS($J$25:$J$224,$C$25:$C$224,$C163,$G$25:$G$224,Lists!$A$16)","v":0},0,null,"",null,{"$f":"IF(C163=0,\"\",LEFT(INDEX(Lists!$H$5:$H$49,MATCH(C163,Lists!$G$5:$G$49,0),1),1))","v":""},null,{"$f":"'Month 11'!H163+'Month 11'!I163-'Month 11'!J163","v":0},"","",null,"0"]
[{"$f":"Planning!A148","v":"I140"},{"$f":"Planning!B148","v":0},{"$f":"Planning!C148","v":0},{"$f":"Planning!D148","v":0},{"$f":"Planning!E148","v":0},{"$f":"IF(Planning!G148<>0,Planning!G148,\"\")","v":""},{"$f":"Planning!H148","v":0},{"$f":"Planning!AP148","v":0},{"$f":"IF(OR(W164=\"1\",AND(W164<>\"1\",G164=Lists!$A$17)),Y164,0)","v":0},null,{"$f":"IF(AND(W164=\"2\",G164<>Lists!$A$17),AA164,Z164)","v":""},"",{"$f":"Planning!AQ148","v":{"v":0,"d":"0.00"}},{"$f":"'Month 11'!M164+'Month 11'!N164-'Month 11'!O164","v":{"v":0,"d":"0.00"}},null,"","",{"$f":"SUMIFS($J$25:$J$224,$C$25:$C$224,$C164,$G$25:$G$224,Lists!$A$16)","v":0},0,null,"",null,{"$f":"IF(C164=0,\"\",LEFT(INDEX(Lists!$H$5:$H$49,MATCH(C164,Lists!$G$5:$G$49,0),1),1))","v":""},null,{"$f":"'Month 11'!H164+'Month 11'!I164-'Month 11'!J164","v":0},"","",null,"0"]
[{"$f":"Planning!A149","v":"I141"},{"$f":"Planning!B149","v":0},{"$f":"Planning!C149","v":0},{"$f":"Planning!D149","v":0},{"$f":"Planning!E149","v":0},{"$f":"IF(Planning!G149<>0,Planning!G149,\"\")","v":""},{"$f":"Planning!H149","v":0},{"$f":"Planning!AP149","v":0},{"$f":"IF(OR(W165=\"1\",AND(W165<>\"1\",G165=Lists!$A$17)),Y165,0)","v":0},null,{"$f":"IF(AND(W165=\"2\",G165<>Lists!$A$17),AA165,Z165)","v":""},"",{"$f":"Planning!AQ149","v":{"v":0,"d":"0.00"}},{"$f":"'Month 11'!M165+'Month 11'!N165-'Month 11'!O165","v":{"v":0,"d":"0.00"}},null,"","",{"$f":"SUMIFS($J$25:$J$224,$C$25:$C$224,$C165,$G$25:$G$224,Lists!$A$16)","v":0},0,null,"",null,{"$f":"IF(C165=0,\"\",LEFT(INDEX(Lists!$H$5:$H$49,MATCH(C165,Lists!$G$5:$G$49,0),1),1))","v":""},null,{"$f":"'Month 11'!H165+'Month 11'!I165-'Month 11'!J165","v":0},"","",null,"0"]
[{"$f":"Planning!A150","v":"I142"},{"$f":"Planning!B150","v":0},{"$f":"Planning!C150","v":0},{"$f":"Planning!D150","v":0},{"$f":"Planning!E150","v":0},{"$f":"IF(Planning!G150<>0,Planning!G150,\"\")","v":""},{"$f":"Planning!H150","v":0},{"$f":"Planning!AP150","v":0},{"$f":"IF(OR(W166=\"1\",AND(W166<>\"1\",G166=Lists!$A$17)),Y166,0)","v":0},null,{"$f":"IF(AND(W166=\"2\",G166<>Lists!$A$17),AA166,Z166)","v":""},"",{"$f":"Planning!AQ150","v":{"v":0,"d":"0.00"}},{"$f":"'Month 11'!M166+'Month 11'!N166-'Month 11'!O166","v":{"v":0,"d":"0.00"}},null,"","",{"$f":"SUMIFS($J$25:$J$224,$C$25:$C$224,$C166,$G$25:$G$224,Lists!$A$16)","v":0},0,null,"",null,{"$f":"IF(C166=0,\"\",LEFT(INDEX(Lists!$H$5:$H$49,MATCH(C166,Lists!$G$5:$G$49,0),1),1))","v":""},null,{"$f":"'Month 11'!H166+'Month 11'!I166-'Month 11'!J166","v":0},"","",null,"0"]
[{"$f":"Planning!A151","v":"I143"},{"$f":"Planning!B151","v":0},{"$f":"Planning!C151","v":0},{"$f":"Planning!D151","v":0},{"$f":"Planning!E151","v":0},{"$f":"IF(Planning!G151<>0,Planning!G151,\"\")","v":""},{"$f":"Planning!H151","v":0},{"$f":"Planning!AP151","v":0},{"$f":"IF(OR(W167=\"1\",AND(W167<>\"1\",G167=Lists!$A$17)),Y167,0)","v":0},null,{"$f":"IF(AND(W167=\"2\",G167<>Lists!$A$17),AA167,Z167)","v":""},"",{"$f":"Planning!AQ151","v":{"v":0,"d":"0.00"}},{"$f":"'Month 11'!M167+'Month 11'!N167-'Month 11'!O167","v":{"v":0,"d":"0.00"}},null,"","",{"$f":"SUMIFS($J$25:$J$224,$C$25:$C$224,$C167,$G$25:$G$224,Lists!$A$16)","v":0},0,null,"",null,{"$f":"IF(C167=0,\"\",LEFT(INDEX(Lists!$H$5:$H$49,MATCH(C167,Lists!$G$5:$G$49,0),1),1))","v":""},null,{"$f":"'Month 11'!H167+'Month 11'!I167-'Month 11'!J167","v":0},"","",null,"0"]
[{"$f":"Planning!A152","v":"I144"},{"$f":"Planning!B152","v":0},{"$f":"Planning!C152","v":0},{"$f":"Planning!D152","v":0},{"$f":"Planning!E152","v":0},{"$f":"IF(Planning!G152<>0,Planning!G152,\"\")","v":""},{"$f":"Planning!H152","v":0},{"$f":"Planning!AP152","v":0},{"$f":"IF(OR(W168=\"1\",AND(W168<>\"1\",G168=Lists!$A$17)),Y168,0)","v":0},null,{"$f":"IF(AND(W168=\"2\",G168<>Lists!$A$17),AA168,Z168)","v":""},"",{"$f":"Planning!AQ152","v":{"v":0,"d":"0.00"}},{"$f":"'Month 11'!M168+'Month 11'!N168-'Month 11'!O168","v":{"v":0,"d":"0.00"}},null,"","",{"$f":"SUMIFS($J$25:$J$224,$C$25:$C$224,$C168,$G$25:$G$224,Lists!$A$16)","v":0},0,null,"",null,{"$f":"IF(C168=0,\"\",LEFT(INDEX(Lists!$H$5:$H$49,MATCH(C168,Lists!$G$5:$G$49,0),1),1))","v":""},null,{"$f":"'Month 11'!H168+'Month 11'!I168-'Month 11'!J168","v":0},"","",null,"0"]
[{"$f":"Planning!A153","v":"I145"},{"$f":"Planning!B153","v":0},{"$f":"Planning!C153","v":0},{"$f":"Planning!D153","v":0},{"$f":"Planning!E153","v":0},{"$f":"IF(Planning!G153<>0,Planning!G153,\"\")","v":""},{"$f":"Planning!H153","v":0},{"$f":"Planning!AP153","v":0},{"$f":"IF(OR(W169=\"1\",AND(W169<>\"1\",G169=Lists!$A$17)),Y169,0)","v":0},null,{"$f":"IF(AND(W169=\"2\",G169<>Lists!$A$17),AA169,Z169)","v":""},"",{"$f":"Planning!AQ153","v":{"v":0,"d":"0.00"}},{"$f":"'Month 11'!M169+'Month 11'!N169-'Month 11'!O169","v":{"v":0,"d":"0.00"}},null,"","",{"$f":"SUMIFS($J$25:$J$224,$C$25:$C$224,$C169,$G$25:$G$224,Lists!$A$16)","v":0},0,null,"",null,{"$f":"IF(C169=0,\"\",LEFT(INDEX(Lists!$H$5:$H$49,MATCH(C169,Lists!$G$5:$G$49,0),1),1))","v":""},null,{"$f":"'Month 11'!H169+'Month 11'!I169-'Month 11'!J169","v":0},"","",null,"0"]
[{"$f":"Planning!A154","v":"I146"},{"$f":"Planning!B154","v":0},{"$f":"Planning!C154","v":0},{"$f":"Planning!D154","v":0},{"$f":"Planning!E154","v":0},{"$f":"IF(Planning!G154<>0,Planning!G154,\"\")","v":""},{"$f":"Planning!H154","v":0},{"$f":"Planning!AP154","v":0},{"$f":"IF(OR(W170=\"1\",AND(W170<>\"1\",G170=Lists!$A$17)),Y170,0)","v":0},null,{"$f":"IF(AND(W170=\"2\",G170<>Lists!$A$17),AA170,Z170)","v":""},"",{"$f":"Planning!AQ154","v":{"v":0,"d":"0.00"}},{"$f":"'Month 11'!M170+'Month 11'!N170-'Month 11'!O170","v":{"v":0,"d":"0.00"}},null,"","",{"$f":"SUMIFS($J$25:$J$224,$C$25:$C$224,$C170,$G$25:$G$224,Lists!$A$16)","v":0},0,null,"",null,{"$f":"IF(C170=0,\"\",LEFT(INDEX(Lists!$H$5:$H$49,MATCH(C170,Lists!$G$5:$G$49,0),1),1))","v":""},null,{"$f":"'Month 11'!H170+'Month 11'!I170-'Month 11'!J170","v":0},"","",null,"0"]
[{"$f":"Planning!A155","v":"I147"},{"$f":"Planning!B155","v":0},{"$f":"Planning!C155","v":0},{"$f":"Planning!D155","v":0},{"$f":"Planning!E155","v":0},{"$f":"IF(Planning!G155<>0,Planning!G155,\"\")","v":""},{"$f":"Planning!H155","v":0},{"$f":"Planning!AP155","v":0},{"$f":"IF(OR(W171=\"1\",AND(W171<>\"1\",G171=Lists!$A$17)),Y171,0)","v":0},null,{"$f":"IF(AND(W171=\"2\",G171<>Lists!$A$17),AA171,Z171)","v":""},"",{"$f":"Planning!AQ155","v":{"v":0,"d":"0.00"}},{"$f":"'Month 11'!M171+'Month 11'!N171-'Month 11'!O171","v":{"v":0,"d":"0.00"}},null,"","",{"$f":"SUMIFS($J$25:$J$224,$C$25:$C$224,$C171,$G$25:$G$224,Lists!$A$16)","v":0},0,null,"",null,{"$f":"IF(C171=0,\"\",LEFT(INDEX(Lists!$H$5:$H$49,MATCH(C171,Lists!$G$5:$G$49,0),1),1))","v":""},null,{"$f":"'Month 11'!H171+'Month 11'!I171-'Month 11'!J171","v":0},"","",null,"0"]
[{"$f":"Planning!A156","v":"I148"},{"$f":"Planning!B156","v":0},{"$f":"Planning!C156","v":0},{"$f":"Planning!D156","v":0},{"$f":"Planning!E156","v":0},{"$f":"IF(Planning!G156<>0,Planning!G156,\"\")","v":""},{"$f":"Planning!H156","v":0},{"$f":"Planning!AP156","v":0},{"$f":"IF(OR(W172=\"1\",AND(W172<>\"1\",G172=Lists!$A$17)),Y172,0)","v":0},null,{"$f":"IF(AND(W172=\"2\",G172<>Lists!$A$17),AA172,Z172)","v":""},"",{"$f":"Planning!AQ156","v":{"v":0,"d":"0.00"}},{"$f":"'Month 11'!M172+'Month 11'!N172-'Month 11'!O172","v":{"v":0,"d":"0.00"}},null,"","",{"$f":"SUMIFS($J$25:$J$224,$C$25:$C$224,$C172,$G$25:$G$224,Lists!$A$16)","v":0},0,null,"",null,{"$f":"IF(C172=0,\"\",LEFT(INDEX(Lists!$H$5:$H$49,MATCH(C172,Lists!$G$5:$G$49,0),1),1))","v":""},null,{"$f":"'Month 11'!H172+'Month 11'!I172-'Month 11'!J172","v":0},"","",null,"0"]
[{"$f":"Planning!A157","v":"I149"},{"$f":"Planning!B157","v":0},{"$f":"Planning!C157","v":0},{"$f":"Planning!D157","v":0},{"$f":"Planning!E157","v":0},{"$f":"IF(Planning!G157<>0,Planning!G157,\"\")","v":""},{"$f":"Planning!H157","v":0},{"$f":"Planning!AP157","v":0},{"$f":"IF(OR(W173=\"1\",AND(W173<>\"1\",G173=Lists!$A$17)),Y173,0)","v":0},null,{"$f":"IF(AND(W173=\"2\",G173<>Lists!$A$17),AA173,Z173)","v":""},"",{"$f":"Planning!AQ157","v":{"v":0,"d":"0.00"}},{"$f":"'Month 11'!M173+'Month 11'!N173-'Month 11'!O173","v":{"v":0,"d":"0.00"}},null,"","",{"$f":"SUMIFS($J$25:$J$224,$C$25:$C$224,$C173,$G$25:$G$224,Lists!$A$16)","v":0},0,null,"",null,{"$f":"IF(C173=0,\"\",LEFT(INDEX(Lists!$H$5:$H$49,MATCH(C173,Lists!$G$5:$G$49,0),1),1))","v":""},null,{"$f":"'Month 11'!H173+'Month 11'!I173-'Month 11'!J173","v":0},"","",null,"0"]
[{"$f":"Planning!A158","v":"I150"},{"$f":"Planning!B158","v":0},{"$f":"Planning!C158","v":0},{"$f":"Planning!D158","v":0},{"$f":"Planning!E158","v":0},{"$f":"IF(Planning!G158<>0,Planning!G158,\"\")","v":""},{"$f":"Planning!H158","v":0},{"$f":"Planning!AP158","v":0},{"$f":"IF(OR(W174=\"1\",AND(W174<>\"1\",G174=Lists!$A$17)),Y174,0)","v":0},null,{"$f":"IF(AND(W174=\"2\",G174<>Lists!$A$17),AA174,Z174)","v":""},"",{"$f":"Planning!AQ158","v":{"v":0,"d":"0.00"}},{"$f":"'Month 11'!M174+'Month 11'!N174-'Month 11'!O174","v":{"v":0,"d":"0.00"}},null,"","",{"$f":"SUMIFS($J$25:$J$224,$C$25:$C$224,$C174,$G$25:$G$224,Lists!$A$16)","v":0},0,null,"",null,{"$f":"IF(C174=0,\"\",LEFT(INDEX(Lists!$H$5:$H$49,MATCH(C174,Lists!$G$5:$G$49,0),1),1))","v":""},null,{"$f":"'Month 11'!H174+'Month 11'!I174-'Month 11'!J174","v":0},"","",null,"0"]
[{"$f":"Planning!A159","v":"I151"},{"$f":"Planning!B159","v":0},{"$f":"Planning!C159","v":0},{"$f":"Planning!D159","v":0},{"$f":"Planning!E159","v":0},{"$f":"IF(Planning!G159<>0,Planning!G159,\"\")","v":""},{"$f":"Planning!H159","v":0},{"$f":"Planning!AP159","v":0},{"$f":"IF(OR(W175=\"1\",AND(W175<>\"1\",G175=Lists!$A$17)),Y175,0)","v":0},null,{"$f":"IF(AND(W175=\"2\",G175<>Lists!$A$17),AA175,Z175)","v":""},"",{"$f":"Planning!AQ159","v":{"v":0,"d":"0.00"}},{"$f":"'Month 11'!M175+'Month 11'!N175-'Month 11'!O175","v":{"v":0,"d":"0.00"}},null,"","",{"$f":"SUMIFS($J$25:$J$224,$C$25:$C$224,$C175,$G$25:$G$224,Lists!$A$16)","v":0},0,null,"",null,{"$f":"IF(C175=0,\"\",LEFT(INDEX(Lists!$H$5:$H$49,MATCH(C175,Lists!$G$5:$G$49,0),1),1))","v":""},null,{"$f":"'Month 11'!H175+'Month 11'!I175-'Month 11'!J175","v":0},"","",null,"0"]
[{"$f":"Planning!A160","v":"I152"},{"$f":"Planning!B160","v":0},{"$f":"Planning!C160","v":0},{"$f":"Planning!D160","v":0},{"$f":"Planning!E160","v":0},{"$f":"IF(Planning!G160<>0,Planning!G160,\"\")","v":""},{"$f":"Planning!H160","v":0},{"$f":"Planning!AP160","v":0},{"$f":"IF(OR(W176=\"1\",AND(W176<>\"1\",G176=Lists!$A$17)),Y176,0)","v":0},null,{"$f":"IF(AND(W176=\"2\",G176<>Lists!$A$17),AA176,Z176)","v":""},"",{"$f":"Planning!AQ160","v":{"v":0,"d":"0.00"}},{"$f":"'Month 11'!M176+'Month 11'!N176-'Month 11'!O176","v":{"v":0,"d":"0.00"}},null,"","",{"$f":"SUMIFS($J$25:$J$224,$C$25:$C$224,$C176,$G$25:$G$224,Lists!$A$16)","v":0},0,null,"",null,{"$f":"IF(C176=0,\"\",LEFT(INDEX(Lists!$H$5:$H$49,MATCH(C176,Lists!$G$5:$G$49,0),1),1))","v":""},null,{"$f":"'Month 11'!H176+'Month 11'!I176-'Month 11'!J176","v":0},"","",null,"0"]
[{"$f":"Planning!A161","v":"I153"},{"$f":"Planning!B161","v":0},{"$f":"Planning!C161","v":0},{"$f":"Planning!D161","v":0},{"$f":"Planning!E161","v":0},{"$f":"IF(Planning!G161<>0,Planning!G161,\"\")","v":""},{"$f":"Planning!H161","v":0},{"$f":"Planning!AP161","v":0},{"$f":"IF(OR(W177=\"1\",AND(W177<>\"1\",G177=Lists!$A$17)),Y177,0)","v":0},null,{"$f":"IF(AND(W177=\"2\",G177<>Lists!$A$17),AA177,Z177)","v":""},"",{"$f":"Planning!AQ161","v":{"v":0,"d":"0.00"}},{"$f":"'Month 11'!M177+'Month 11'!N177-'Month 11'!O177","v":{"v":0,"d":"0.00"}},null,"","",{"$f":"SUMIFS($J$25:$J$224,$C$25:$C$224,$C177,$G$25:$G$224,Lists!$A$16)","v":0},0,null,"",null,{"$f":"IF(C177=0,\"\",LEFT(INDEX(Lists!$H$5:$H$49,MATCH(C177,Lists!$G$5:$G$49,0),1),1))","v":""},null,{"$f":"'Month 11'!H177+'Month 11'!I177-'Month 11'!J177","v":0},"","",null,"0"]
[{"$f":"Planning!A162","v":"I154"},{"$f":"Planning!B162","v":0},{"$f":"Planning!C162","v":0},{"$f":"Planning!D162","v":0},{"$f":"Planning!E162","v":0},{"$f":"IF(Planning!G162<>0,Planning!G162,\"\")","v":""},{"$f":"Planning!H162","v":0},{"$f":"Planning!AP162","v":0},{"$f":"IF(OR(W178=\"1\",AND(W178<>\"1\",G178=Lists!$A$17)),Y178,0)","v":0},null,{"$f":"IF(AND(W178=\"2\",G178<>Lists!$A$17),AA178,Z178)","v":""},"",{"$f":"Planning!AQ162","v":{"v":0,"d":"0.00"}},{"$f":"'Month 11'!M178+'Month 11'!N178-'Month 11'!O178","v":{"v":0,"d":"0.00"}},null,"","",{"$f":"SUMIFS($J$25:$J$224,$C$25:$C$224,$C178,$G$25:$G$224,Lists!$A$16)","v":0},0,null,"",null,{"$f":"IF(C178=0,\"\",LEFT(INDEX(Lists!$H$5:$H$49,MATCH(C178,Lists!$G$5:$G$49,0),1),1))","v":""},null,{"$f":"'Month 11'!H178+'Month 11'!I178-'Month 11'!J178","v":0},"","",null,"0"]
[{"$f":"Planning!A163","v":"I155"},{"$f":"Planning!B163","v":0},{"$f":"Planning!C163","v":0},{"$f":"Planning!D163","v":0},{"$f":"Planning!E163","v":0},{"$f":"IF(Planning!G163<>0,Planning!G163,\"\")","v":""},{"$f":"Planning!H163","v":0},{"$f":"Planning!AP163","v":0},{"$f":"IF(OR(W179=\"1\",AND(W179<>\"1\",G179=Lists!$A$17)),Y179,0)","v":0},null,{"$f":"IF(AND(W179=\"2\",G179<>Lists!$A$17),AA179,Z179)","v":""},"",{"$f":"Planning!AQ163","v":{"v":0,"d":"0.00"}},{"$f":"'Month 11'!M179+'Month 11'!N179-'Month 11'!O179","v":{"v":0,"d":"0.00"}},null,"","",{"$f":"SUMIFS($J$25:$J$224,$C$25:$C$224,$C179,$G$25:$G$224,Lists!$A$16)","v":0},0,null,"",null,{"$f":"IF(C179=0,\"\",LEFT(INDEX(Lists!$H$5:$H$49,MATCH(C179,Lists!$G$5:$G$49,0),1),1))","v":""},null,{"$f":"'Month 11'!H179+'Month 11'!I179-'Month 11'!J179","v":0},"","",null,"0"]
[{"$f":"Planning!A164","v":"I156"},{"$f":"Planning!B164","v":0},{"$f":"Planning!C164","v":0},{"$f":"Planning!D164","v":0},{"$f":"Planning!E164","v":0},{"$f":"IF(Planning!G164<>0,Planning!G164,\"\")","v":""},{"$f":"Planning!H164","v":0},{"$f":"Planning!AP164","v":0},{"$f":"IF(OR(W180=\"1\",AND(W180<>\"1\",G180=Lists!$A$17)),Y180,0)","v":0},null,{"$f":"IF(AND(W180=\"2\",G180<>Lists!$A$17),AA180,Z180)","v":""},"",{"$f":"Planning!AQ164","v":{"v":0,"d":"0.00"}},{"$f":"'Month 11'!M180+'Month 11'!N180-'Month 11'!O180","v":{"v":0,"d":"0.00"}},null,"","",{"$f":"SUMIFS($J$25:$J$224,$C$25:$C$224,$C180,$G$25:$G$224,Lists!$A$16)","v":0},0,null,"",null,{"$f":"IF(C180=0,\"\",LEFT(INDEX(Lists!$H$5:$H$49,MATCH(C180,Lists!$G$5:$G$49,0),1),1))","v":""},null,{"$f":"'Month 11'!H180+'Month 11'!I180-'Month 11'!J180","v":0},"","",null,"0"]
[{"$f":"Planning!A165","v":"I157"},{"$f":"Planning!B165","v":0},{"$f":"Planning!C165","v":0},{"$f":"Planning!D165","v":0},{"$f":"Planning!E165","v":0},{"$f":"IF(Planning!G165<>0,Planning!G165,\"\")","v":""},{"$f":"Planning!H165","v":0},{"$f":"Planning!AP165","v":0},{"$f":"IF(OR(W181=\"1\",AND(W181<>\"1\",G181=Lists!$A$17)),Y181,0)","v":0},null,{"$f":"IF(AND(W181=\"2\",G181<>Lists!$A$17),AA181,Z181)","v":""},"",{"$f":"Planning!AQ165","v":{"v":0,"d":"0.00"}},{"$f":"'Month 11'!M181+'Month 11'!N181-'Month 11'!O181","v":{"v":0,"d":"0.00"}},null,"","",{"$f":"SUMIFS($J$25:$J$224,$C$25:$C$224,$C181,$G$25:$G$224,Lists!$A$16)","v":0},0,null,"",null,{"$f":"IF(C181=0,\"\",LEFT(INDEX(Lists!$H$5:$H$49,MATCH(C181,Lists!$G$5:$G$49,0),1),1))","v":""},null,{"$f":"'Month 11'!H181+'Month 11'!I181-'Month 11'!J181","v":0},"","",null,"0"]
[{"$f":"Planning!A166","v":"I158"},{"$f":"Planning!B166","v":0},{"$f":"Planning!C166","v":0},{"$f":"Planning!D166","v":0},{"$f":"Planning!E166","v":0},{"$f":"IF(Planning!G166<>0,Planning!G166,\"\")","v":""},{"$f":"Planning!H166","v":0},{"$f":"Planning!AP166","v":0},{"$f":"IF(OR(W182=\"1\",AND(W182<>\"1\",G182=Lists!$A$17)),Y182,0)","v":0},null,{"$f":"IF(AND(W182=\"2\",G182<>Lists!$A$17),AA182,Z182)","v":""},"",{"$f":"Planning!AQ166","v":{"v":0,"d":"0.00"}},{"$f":"'Month 11'!M182+'Month 11'!N182-'Month 11'!O182","v":{"v":0,"d":"0.00"}},null,"","",{"$f":"SUMIFS($J$25:$J$224,$C$25:$C$224,$C182,$G$25:$G$224,Lists!$A$16)","v":0},0,null,"",null,{"$f":"IF(C182=0,\"\",LEFT(INDEX(Lists!$H$5:$H$49,MATCH(C182,Lists!$G$5:$G$49,0),1),1))","v":""},null,{"$f":"'Month 11'!H182+'Month 11'!I182-'Month 11'!J182","v":0},"","",null,"0"]
[{"$f":"Planning!A167","v":"I159"},{"$f":"Planning!B167","v":0},{"$f":"Planning!C167","v":0},{"$f":"Planning!D167","v":0},{"$f":"Planning!E167","v":0},{"$f":"IF(Planning!G167<>0,Planning!G167,\"\")","v":""},{"$f":"Planning!H167","v":0},{"$f":"Planning!AP167","v":0},{"$f":"IF(OR(W183=\"1\",AND(W183<>\"1\",G183=Lists!$A$17)),Y183,0)","v":0},null,{"$f":"IF(AND(W183=\"2\",G183<>Lists!$A$17),AA183,Z183)","v":""},"",{"$f":"Planning!AQ167","v":{"v":0,"d":"0.00"}},{"$f":"'Month 11'!M183+'Month 11'!N183-'Month 11'!O183","v":{"v":0,"d":"0.00"}},null,"","",{"$f":"SUMIFS($J$25:$J$224,$C$25:$C$224,$C183,$G$25:$G$224,Lists!$A$16)","v":0},0,null,"",null,{"$f":"IF(C183=0,\"\",LEFT(INDEX(Lists!$H$5:$H$49,MATCH(C183,Lists!$G$5:$G$49,0),1),1))","v":""},null,{"$f":"'Month 11'!H183+'Month 11'!I183-'Month 11'!J183","v":0},"","",null,"0"]
[{"$f":"Planning!A168","v":"I160"},{"$f":"Planning!B168","v":0},{"$f":"Planning!C168","v":0},{"$f":"Planning!D168","v":0},{"$f":"Planning!E168","v":0},{"$f":"IF(Planning!G168<>0,Planning!G168,\"\")","v":""},{"$f":"Planning!H168","v":0},{"$f":"Planning!AP168","v":0},{"$f":"IF(OR(W184=\"1\",AND(W184<>\"1\",G184=Lists!$A$17)),Y184,0)","v":0},null,{"$f":"IF(AND(W184=\"2\",G184<>Lists!$A$17),AA184,Z184)","v":""},"",{"$f":"Planning!AQ168","v":{"v":0,"d":"0.00"}},{"$f":"'Month 11'!M184+'Month 11'!N184-'Month 11'!O184","v":{"v":0,"d":"0.00"}},null,"","",{"$f":"SUMIFS($J$25:$J$224,$C$25:$C$224,$C184,$G$25:$G$224,Lists!$A$16)","v":0},0,null,"",null,{"$f":"IF(C184=0,\"\",LEFT(INDEX(Lists!$H$5:$H$49,MATCH(C184,Lists!$G$5:$G$49,0),1),1))","v":""},null,{"$f":"'Month 11'!H184+'Month 11'!I184-'Month 11'!J184","v":0},"","",null,"0"]
[{"$f":"Planning!A169","v":"I161"},{"$f":"Planning!B169","v":0},{"$f":"Planning!C169","v":0},{"$f":"Planning!D169","v":0},{"$f":"Planning!E169","v":0},{"$f":"IF(Planning!G169<>0,Planning!G169,\"\")","v":""},{"$f":"Planning!H169","v":0},{"$f":"Planning!AP169","v":0},{"$f":"IF(OR(W185=\"1\",AND(W185<>\"1\",G185=Lists!$A$17)),Y185,0)","v":0},null,{"$f":"IF(AND(W185=\"2\",G185<>Lists!$A$17),AA185,Z185)","v":""},{"$f":"IF($U185=ExcluirDelPLogro,\"\",IF(AND(H185=0,I185=0,J185=0),\"\",K185))","v":""},{"$f":"Planning!AQ169","v":{"v":0,"d":"0.00"}},{"$f":"'Month 11'!M185+'Month 11'!N185-'Month 11'!O185","v":{"v":0,"d":"0.00"}},null,"",{"$f":"IF($U185=ExcluirDelPLogro,\"\",IF(AND(M185=0,N185=0,O185=0),\"\",P185))","v":""},{"$f":"SUMIFS($J$25:$J$224,$C$25:$C$224,$C185,$G$25:$G$224,Lists!$A$16)","v":0},0,null,"",null,{"$f":"IF(C185=0,\"\",LEFT(INDEX(Lists!$H$5:$H$49,MATCH(C185,Lists!$G$5:$G$49,0),1),1))","v":""},null,{"$f":"'Month 11'!H185+'Month 11'!I185-'Month 11'!J185","v":0},"",{"$f":"IF(AND(H185=0,I185=0,J185=0),\"\",IF(J185>0,H185/J185,0))","v":""},null,"0"]
[{"$f":"Planning!A170","v":"I162"},{"$f":"Planning!B170","v":0},{"$f":"Planning!C170","v":0},{"$f":"Planning!D170","v":0},{"$f":"Planning!E170","v":0},{"$f":"IF(Planning!G170<>0,Planning!G170,\"\")","v":""},{"$f":"Planning!H170","v":0},{"$f":"Planning!AP170","v":0},{"$f":"IF(OR(W186=\"1\",AND(W186<>\"1\",G186=Lists!$A$17)),Y186,0)","v":0},null,{"$f":"IF(AND(W186=\"2\",G186<>Lists!$A$17),AA186,Z186)","v":""},"",{"$f":"Planning!AQ170","v":{"v":0,"d":"0.00"}},{"$f":"'Month 11'!M186+'Month 11'!N186-'Month 11'!O186","v":{"v":0,"d":"0.00"}},null,"","",{"$f":"SUMIFS($J$25:$J$224,$C$25:$C$224,$C186,$G$25:$G$224,Lists!$A$16)","v":0},0,null,"",null,{"$f":"IF(C186=0,\"\",LEFT(INDEX(Lists!$H$5:$H$49,MATCH(C186,Lists!$G$5:$G$49,0),1),1))","v":""},null,{"$f":"'Month 11'!H186+'Month 11'!I186-'Month 11'!J186","v":0},"","",null,"0"]
[{"$f":"Planning!A171","v":"I163"},{"$f":"Planning!B171","v":0},{"$f":"Planning!C171","v":0},{"$f":"Planning!D171","v":0},{"$f":"Planning!E171","v":0},{"$f":"IF(Planning!G171<>0,Planning!G171,\"\")","v":""},{"$f":"Planning!H171","v":0},{"$f":"Planning!AP171","v":0},{"$f":"IF(OR(W187=\"1\",AND(W187<>\"1\",G187=Lists!$A$17)),Y187,0)","v":0},null,{"$f":"IF(AND(W187=\"2\",G187<>Lists!$A$17),AA187,Z187)","v":""},"",{"$f":"Planning!AQ171","v":{"v":0,"d":"0.00"}},{"$f":"'Month 11'!M187+'Month 11'!N187-'Month 11'!O187","v":{"v":0,"d":"0.00"}},null,"","",{"$f":"SUMIFS($J$25:$J$224,$C$25:$C$224,$C187,$G$25:$G$224,Lists!$A$16)","v":0},0,null,"",null,{"$f":"IF(C187=0,\"\",LEFT(INDEX(Lists!$H$5:$H$49,MATCH(C187,Lists!$G$5:$G$49,0),1),1))","v":""},null,{"$f":"'Month 11'!H187+'Month 11'!I187-'Month 11'!J187","v":0},"","",null,"0"]
[{"$f":"Planning!A172","v":"I164"},{"$f":"Planning!B172","v":0},{"$f":"Planning!C172","v":0},{"$f":"Planning!D172","v":0},{"$f":"Planning!E172","v":0},{"$f":"IF(Planning!G172<>0,Planning!G172,\"\")","v":""},{"$f":"Planning!H172","v":0},{"$f":"Planning!AP172","v":0},{"$f":"IF(OR(W188=\"1\",AND(W188<>\"1\",G188=Lists!$A$17)),Y188,0)","v":0},null,{"$f":"IF(AND(W188=\"2\",G188<>Lists!$A$17),AA188,Z188)","v":""},"",{"$f":"Planning!AQ172","v":{"v":0,"d":"0.00"}},{"$f":"'Month 11'!M188+'Month 11'!N188-'Month 11'!O188","v":{"v":0,"d":"0.00"}},null,"","",{"$f":"SUMIFS($J$25:$J$224,$C$25:$C$224,$C188,$G$25:$G$224,Lists!$A$16)","v":0},0,null,"",null,{"$f":"IF(C188=0,\"\",LEFT(INDEX(Lists!$H$5:$H$49,MATCH(C188,Lists!$G$5:$G$49,0),1),1))","v":""},null,{"$f":"'Month 11'!H188+'Month 11'!I188-'Month 11'!J188","v":0},"","",null,"0"]
[{"$f":"Planning!A173","v":"I165"},{"$f":"Planning!B173","v":0},{"$f":"Planning!C173","v":0},{"$f":"Planning!D173","v":0},{"$f":"Planning!E173","v":0},{"$f":"IF(Planning!G173<>0,Planning!G173,\"\")","v":""},{"$f":"Planning!H173","v":0},{"$f":"Planning!AP173","v":0},{"$f":"IF(OR(W189=\"1\",AND(W189<>\"1\",G189=Lists!$A$17)),Y189,0)","v":0},null,{"$f":"IF(AND(W189=\"2\",G189<>Lists!$A$17),AA189,Z189)","v":""},"",{"$f":"Planning!AQ173","v":{"v":0,"d":"0.00"}},{"$f":"'Month 11'!M189+'Month 11'!N189-'Month 11'!O189","v":{"v":0,"d":"0.00"}},null,"","",{"$f":"SUMIFS($J$25:$J$224,$C$25:$C$224,$C189,$G$25:$G$224,Lists!$A$16)","v":0},0,null,"",null,{"$f":"IF(C189=0,\"\",LEFT(INDEX(Lists!$H$5:$H$49,MATCH(C189,Lists!$G$5:$G$49,0),1),1))","v":""},null,{"$f":"'Month 11'!H189+'Month 11'!I189-'Month 11'!J189","v":0},"","",null,"0"]
[{"$f":"Planning!A174","v":"I166"},{"$f":"Planning!B174","v":0},{"$f":"Planning!C174","v":0},{"$f":"Planning!D174","v":0},{"$f":"Planning!E174","v":0},{"$f":"IF(Planning!G174<>0,Planning!G174,\"\")","v":""},{"$f":"Planning!H174","v":0},{"$f":"Planning!AP174","v":0},{"$f":"IF(OR(W190=\"1\",AND(W190<>\"1\",G190=Lists!$A$17)),Y190,0)","v":0},null,{"$f":"IF(AND(W190=\"2\",G190<>Lists!$A$17),AA190,Z190)","v":""},"",{"$f":"Planning!AQ174","v":{"v":0,"d":"0.00"}},{"$f":"'Month 11'!M190+'Month 11'!N190-'Month 11'!O190","v":{"v":0,"d":"0.00"}},null,"","",{"$f":"SUMIFS($J$25:$J$224,$C$25:$C$224,$C190,$G$25:$G$224,Lists!$A$16)","v":0},0,null,"",null,{"$f":"IF(C190=0,\"\",LEFT(INDEX(Lists!$H$5:$H$49,MATCH(C190,Lists!$G$5:$G$49,0),1),1))","v":""},null,{"$f":"'Month 11'!H190+'Month 11'!I190-'Month 11'!J190","v":0},"","",null,"0"]
[{"$f":"Planning!A175","v":"I167"},{"$f":"Planning!B175","v":0},{"$f":"Planning!C175","v":0},{"$f":"Planning!D175","v":0},{"$f":"Planning!E175","v":0},{"$f":"IF(Planning!G175<>0,Planning!G175,\"\")","v":""},{"$f":"Planning!H175","v":0},{"$f":"Planning!AP175","v":0},{"$f":"IF(OR(W191=\"1\",AND(W191<>\"1\",G191=Lists!$A$17)),Y191,0)","v":0},null,{"$f":"IF(AND(W191=\"2\",G191<>Lists!$A$17),AA191,Z191)","v":""},"",{"$f":"Planning!AQ175","v":{"v":0,"d":"0.00"}},{"$f":"'Month 11'!M191+'Month 11'!N191-'Month 11'!O191","v":{"v":0,"d":"0.00"}},null,"","",{"$f":"SUMIFS($J$25:$J$224,$C$25:$C$224,$C191,$G$25:$G$224,Lists!$A$16)","v":0},0,null,"",null,{"$f":"IF(C191=0,\"\",LEFT(INDEX(Lists!$H$5:$H$49,MATCH(C191,Lists!$G$5:$G$49,0),1),1))","v":""},null,{"$f":"'Month 11'!H191+'Month 11'!I191-'Month 11'!J191","v":0},"","",null,"0"]
[{"$f":"Planning!A176","v":"I168"},{"$f":"Planning!B176","v":0},{"$f":"Planning!C176","v":0},{"$f":"Planning!D176","v":0},{"$f":"Planning!E176","v":0},{"$f":"IF(Planning!G176<>0,Planning!G176,\"\")","v":""},{"$f":"Planning!H176","v":0},{"$f":"Planning!AP176","v":0},{"$f":"IF(OR(W192=\"1\",AND(W192<>\"1\",G192=Lists!$A$17)),Y192,0)","v":0},null,{"$f":"IF(AND(W192=\"2\",G192<>Lists!$A$17),AA192,Z192)","v":""},"",{"$f":"Planning!AQ176","v":{"v":0,"d":"0.00"}},{"$f":"'Month 11'!M192+'Month 11'!N192-'Month 11'!O192","v":{"v":0,"d":"0.00"}},null,"","",{"$f":"SUMIFS($J$25:$J$224,$C$25:$C$224,$C192,$G$25:$G$224,Lists!$A$16)","v":0},0,null,"",null,{"$f":"IF(C192=0,\"\",LEFT(INDEX(Lists!$H$5:$H$49,MATCH(C192,Lists!$G$5:$G$49,0),1),1))","v":""},null,{"$f":"'Month 11'!H192+'Month 11'!I192-'Month 11'!J192","v":0},"","",null,"0"]
[{"$f":"Planning!A177","v":"I169"},{"$f":"Planning!B177","v":0},{"$f":"Planning!C177","v":0},{"$f":"Planning!D177","v":0},{"$f":"Planning!E177","v":0},{"$f":"IF(Planning!G177<>0,Planning!G177,\"\")","v":""},{"$f":"Planning!H177","v":0},{"$f":"Planning!AP177","v":0},{"$f":"IF(OR(W193=\"1\",AND(W193<>\"1\",G193=Lists!$A$17)),Y193,0)","v":0},null,{"$f":"IF(AND(W193=\"2\",G193<>Lists!$A$17),AA193,Z193)","v":""},"",{"$f":"Planning!AQ177","v":{"v":0,"d":"0.00"}},{"$f":"'Month 11'!M193+'Month 11'!N193-'Month 11'!O193","v":{"v":0,"d":"0.00"}},null,"","",{"$f":"SUMIFS($J$25:$J$224,$C$25:$C$224,$C193,$G$25:$G$224,Lists!$A$16)","v":0},0,null,"",null,{"$f":"IF(C193=0,\"\",LEFT(INDEX(Lists!$H$5:$H$49,MATCH(C193,Lists!$G$5:$G$49,0),1),1))","v":""},null,{"$f":"'Month 11'!H193+'Month 11'!I193-'Month 11'!J193","v":0},"","",null,"0"]
[{"$f":"Planning!A178","v":"I170"},{"$f":"Planning!B178","v":0},{"$f":"Planning!C178","v":0},{"$f":"Planning!D178","v":0},{"$f":"Planning!E178","v":0},{"$f":"IF(Planning!G178<>0,Planning!G178,\"\")","v":""},{"$f":"Planning!H178","v":0},{"$f":"Planning!AP178","v":0},{"$f":"IF(OR(W194=\"1\",AND(W194<>\"1\",G194=Lists!$A$17)),Y194,0)","v":0},null,{"$f":"IF(AND(W194=\"2\",G194<>Lists!$A$17),AA194,Z194)","v":""},"",{"$f":"Planning!AQ178","v":{"v":0,"d":"0.00"}},{"$f":"'Month 11'!M194+'Month 11'!N194-'Month 11'!O194","v":{"v":0,"d":"0.00"}},null,"","",{"$f":"SUMIFS($J$25:$J$224,$C$25:$C$224,$C194,$G$25:$G$224,Lists!$A$16)","v":0},0,null,"",null,{"$f":"IF(C194=0,\"\",LEFT(INDEX(Lists!$H$5:$H$49,MATCH(C194,Lists!$G$5:$G$49,0),1),1))","v":""},null,{"$f":"'Month 11'!H194+'Month 11'!I194-'Month 11'!J194","v":0},"","",null,"0"]
[{"$f":"Planning!A179","v":"I171"},{"$f":"Planning!B179","v":0},{"$f":"Planning!C179","v":0},{"$f":"Planning!D179","v":0},{"$f":"Planning!E179","v":0},{"$f":"IF(Planning!G179<>0,Planning!G179,\"\")","v":""},{"$f":"Planning!H179","v":0},{"$f":"Planning!AP179","v":0},{"$f":"IF(OR(W195=\"1\",AND(W195<>\"1\",G195=Lists!$A$17)),Y195,0)","v":0},null,{"$f":"IF(AND(W195=\"2\",G195<>Lists!$A$17),AA195,Z195)","v":""},"",{"$f":"Planning!AQ179","v":{"v":0,"d":"0.00"}},{"$f":"'Month 11'!M195+'Month 11'!N195-'Month 11'!O195","v":{"v":0,"d":"0.00"}},null,"","",{"$f":"SUMIFS($J$25:$J$224,$C$25:$C$224,$C195,$G$25:$G$224,Lists!$A$16)","v":0},0,null,"",null,{"$f":"IF(C195=0,\"\",LEFT(INDEX(Lists!$H$5:$H$49,MATCH(C195,Lists!$G$5:$G$49,0),1),1))","v":""},null,{"$f":"'Month 11'!H195+'Month 11'!I195-'Month 11'!J195","v":0},"","",null,"0"]
[{"$f":"Planning!A180","v":"I172"},{"$f":"Planning!B180","v":0},{"$f":"Planning!C180","v":0},{"$f":"Planning!D180","v":0},{"$f":"Planning!E180","v":0},{"$f":"IF(Planning!G180<>0,Planning!G180,\"\")","v":""},{"$f":"Planning!H180","v":0},{"$f":"Planning!AP180","v":0},{"$f":"IF(OR(W196=\"1\",AND(W196<>\"1\",G196=Lists!$A$17)),Y196,0)","v":0},null,{"$f":"IF(AND(W196=\"2\",G196<>Lists!$A$17),AA196,Z196)","v":""},"",{"$f":"Planning!AQ180","v":{"v":0,"d":"0.00"}},{"$f":"'Month 11'!M196+'Month 11'!N196-'Month 11'!O196","v":{"v":0,"d":"0.00"}},null,"","",{"$f":"SUMIFS($J$25:$J$224,$C$25:$C$224,$C196,$G$25:$G$224,Lists!$A$16)","v":0},0,null,"",null,{"$f":"IF(C196=0,\"\",LEFT(INDEX(Lists!$H$5:$H$49,MATCH(C196,Lists!$G$5:$G$49,0),1),1))","v":""},null,{"$f":"'Month 11'!H196+'Month 11'!I196-'Month 11'!J196","v":0},"","",null,"0"]
[{"$f":"Planning!A181","v":"I173"},{"$f":"Planning!B181","v":0},{"$f":"Planning!C181","v":0},{"$f":"Planning!D181","v":0},{"$f":"Planning!E181","v":0},{"$f":"IF(Planning!G181<>0,Planning!G181,\"\")","v":""},{"$f":"Planning!H181","v":0},{"$f":"Planning!AP181","v":0},{"$f":"IF(OR(W197=\"1\",AND(W197<>\"1\",G197=Lists!$A$17)),Y197,0)","v":0},null,{"$f":"IF(AND(W197=\"2\",G197<>Lists!$A$17),AA197,Z197)","v":""},"",{"$f":"Planning!AQ181","v":{"v":0,"d":"0.00"}},{"$f":"'Month 11'!M197+'Month 11'!N197-'Month 11'!O197","v":{"v":0,"d":"0.00"}},null,"","",{"$f":"SUMIFS($J$25:$J$224,$C$25:$C$224,$C197,$G$25:$G$224,Lists!$A$16)","v":0},0,null,"",null,{"$f":"IF(C197=0,\"\",LEFT(INDEX(Lists!$H$5:$H$49,MATCH(C197,Lists!$G$5:$G$49,0),1),1))","v":""},null,{"$f":"'Month 11'!H197+'Month 11'!I197-'Month 11'!J197","v":0},"","",null,"0"]
[{"$f":"Planning!A182","v":"I174"},{"$f":"Planning!B182","v":0},{"$f":"Planning!C182","v":0},{"$f":"Planning!D182","v":0},{"$f":"Planning!E182","v":0},{"$f":"IF(Planning!G182<>0,Planning!G182,\"\")","v":""},{"$f":"Planning!H182","v":0},{"$f":"Planning!AP182","v":0},{"$f":"IF(OR(W198=\"1\",AND(W198<>\"1\",G198=Lists!$A$17)),Y198,0)","v":0},null,{"$f":"IF(AND(W198=\"2\",G198<>Lists!$A$17),AA198,Z198)","v":""},"",{"$f":"Planning!AQ182","v":{"v":0,"d":"0.00"}},{"$f":"'Month 11'!M198+'Month 11'!N198-'Month 11'!O198","v":{"v":0,"d":"0.00"}},null,"","",{"$f":"SUMIFS($J$25:$J$224,$C$25:$C$224,$C198,$G$25:$G$224,Lists!$A$16)","v":0},0,null,"",null,{"$f":"IF(C198=0,\"\",LEFT(INDEX(Lists!$H$5:$H$49,MATCH(C198,Lists!$G$5:$G$49,0),1),1))","v":""},null,{"$f":"'Month 11'!H198+'Month 11'!I198-'Month 11'!J198","v":0},"","",null,"0"]
[{"$f":"Planning!A183","v":"I175"},{"$f":"Planning!B183","v":0},{"$f":"Planning!C183","v":0},{"$f":"Planning!D183","v":0},{"$f":"Planning!E183","v":0},{"$f":"IF(Planning!G183<>0,Planning!G183,\"\")","v":""},{"$f":"Planning!H183","v":0},{"$f":"Planning!AP183","v":0},{"$f":"IF(OR(W199=\"1\",AND(W199<>\"1\",G199=Lists!$A$17)),Y199,0)","v":0},null,{"$f":"IF(AND(W199=\"2\",G199<>Lists!$A$17),AA199,Z199)","v":""},"",{"$f":"Planning!AQ183","v":{"v":0,"d":"0.00"}},{"$f":"'Month 11'!M199+'Month 11'!N199-'Month 11'!O199","v":{"v":0,"d":"0.00"}},null,"","",{"$f":"SUMIFS($J$25:$J$224,$C$25:$C$224,$C199,$G$25:$G$224,Lists!$A$16)","v":0},0,null,"",null,{"$f":"IF(C199=0,\"\",LEFT(INDEX(Lists!$H$5:$H$49,MATCH(C199,Lists!$G$5:$G$49,0),1),1))","v":""},null,{"$f":"'Month 11'!H199+'Month 11'!I199-'Month 11'!J199","v":0},"","",null,"0"]
[{"$f":"Planning!A184","v":"I176"},{"$f":"Planning!B184","v":0},{"$f":"Planning!C184","v":0},{"$f":"Planning!D184","v":0},{"$f":"Planning!E184","v":0},{"$f":"IF(Planning!G184<>0,Planning!G184,\"\")","v":""},{"$f":"Planning!H184","v":0},{"$f":"Planning!AP184","v":0},{"$f":"IF(OR(W200=\"1\",AND(W200<>\"1\",G200=Lists!$A$17)),Y200,0)","v":0},null,{"$f":"IF(AND(W200=\"2\",G200<>Lists!$A$17),AA200,Z200)","v":""},"",{"$f":"Planning!AQ184","v":{"v":0,"d":"0.00"}},{"$f":"'Month 11'!M200+'Month 11'!N200-'Month 11'!O200","v":{"v":0,"d":"0.00"}},null,"","",{"$f":"SUMIFS($J$25:$J$224,$C$25:$C$224,$C200,$G$25:$G$224,Lists!$A$16)","v":0},0,null,"",null,{"$f":"IF(C200=0,\"\",LEFT(INDEX(Lists!$H$5:$H$49,MATCH(C200,Lists!$G$5:$G$49,0),1),1))","v":""},null,{"$f":"'Month 11'!H200+'Month 11'!I200-'Month 11'!J200","v":0},"","",null,"0"]
[{"$f":"Planning!A185","v":"I177"},{"$f":"Planning!B185","v":0},{"$f":"Planning!C185","v":0},{"$f":"Planning!D185","v":0},{"$f":"Planning!E185","v":0},{"$f":"IF(Planning!G185<>0,Planning!G185,\"\")","v":""},{"$f":"Planning!H185","v":0},{"$f":"Planning!AP185","v":0},{"$f":"IF(OR(W201=\"1\",AND(W201<>\"1\",G201=Lists!$A$17)),Y201,0)","v":0},null,{"$f":"IF(AND(W201=\"2\",G201<>Lists!$A$17),AA201,Z201)","v":""},"",{"$f":"Planning!AQ185","v":{"v":0,"d":"0.00"}},{"$f":"'Month 11'!M201+'Month 11'!N201-'Month 11'!O201","v":{"v":0,"d":"0.00"}},null,"","",{"$f":"SUMIFS($J$25:$J$224,$C$25:$C$224,$C201,$G$25:$G$224,Lists!$A$16)","v":0},0,null,"",null,{"$f":"IF(C201=0,\"\",LEFT(INDEX(Lists!$H$5:$H$49,MATCH(C201,Lists!$G$5:$G$49,0),1),1))","v":""},null,{"$f":"'Month 11'!H201+'Month 11'!I201-'Month 11'!J201","v":0},"","",null,"0"]
[{"$f":"Planning!A186","v":"I178"},{"$f":"Planning!B186","v":0},{"$f":"Planning!C186","v":0},{"$f":"Planning!D186","v":0},{"$f":"Planning!E186","v":0},{"$f":"IF(Planning!G186<>0,Planning!G186,\"\")","v":""},{"$f":"Planning!H186","v":0},{"$f":"Planning!AP186","v":0},{"$f":"IF(OR(W202=\"1\",AND(W202<>\"1\",G202=Lists!$A$17)),Y202,0)","v":0},null,{"$f":"IF(AND(W202=\"2\",G202<>Lists!$A$17),AA202,Z202)","v":""},"",{"$f":"Planning!AQ186","v":{"v":0,"d":"0.00"}},{"$f":"'Month 11'!M202+'Month 11'!N202-'Month 11'!O202","v":{"v":0,"d":"0.00"}},null,"","",{"$f":"SUMIFS($J$25:$J$224,$C$25:$C$224,$C202,$G$25:$G$224,Lists!$A$16)","v":0},0,null,"",null,{"$f":"IF(C202=0,\"\",LEFT(INDEX(Lists!$H$5:$H$49,MATCH(C202,Lists!$G$5:$G$49,0),1),1))","v":""},null,{"$f":"'Month 11'!H202+'Month 11'!I202-'Month 11'!J202","v":0},"","",null,"0"]
[{"$f":"Planning!A187","v":"I179"},{"$f":"Planning!B187","v":0},{"$f":"Planning!C187","v":0},{"$f":"Planning!D187","v":0},{"$f":"Planning!E187","v":0},{"$f":"IF(Planning!G187<>0,Planning!G187,\"\")","v":""},{"$f":"Planning!H187","v":0},{"$f":"Planning!AP187","v":0},{"$f":"IF(OR(W203=\"1\",AND(W203<>\"1\",G203=Lists!$A$17)),Y203,0)","v":0},null,{"$f":"IF(AND(W203=\"2\",G203<>Lists!$A$17),AA203,Z203)","v":""},"",{"$f":"Planning!AQ187","v":{"v":0,"d":"0.00"}},{"$f":"'Month 11'!M203+'Month 11'!N203-'Month 11'!O203","v":{"v":0,"d":"0.00"}},null,"","",{"$f":"SUMIFS($J$25:$J$224,$C$25:$C$224,$C203,$G$25:$G$224,Lists!$A$16)","v":0},0,null,"",null,{"$f":"IF(C203=0,\"\",LEFT(INDEX(Lists!$H$5:$H$49,MATCH(C203,Lists!$G$5:$G$49,0),1),1))","v":""},null,{"$f":"'Month 11'!H203+'Month 11'!I203-'Month 11'!J203","v":0},"","",null,"0"]
[{"$f":"Planning!A188","v":"I180"},{"$f":"Planning!B188","v":0},{"$f":"Planning!C188","v":0},{"$f":"Planning!D188","v":0},{"$f":"Planning!E188","v":0},{"$f":"IF(Planning!G188<>0,Planning!G188,\"\")","v":""},{"$f":"Planning!H188","v":0},{"$f":"Planning!AP188","v":0},{"$f":"IF(OR(W204=\"1\",AND(W204<>\"1\",G204=Lists!$A$17)),Y204,0)","v":0},null,{"$f":"IF(AND(W204=\"2\",G204<>Lists!$A$17),AA204,Z204)","v":""},"",{"$f":"Planning!AQ188","v":{"v":0,"d":"0.00"}},{"$f":"'Month 11'!M204+'Month 11'!N204-'Month 11'!O204","v":{"v":0,"d":"0.00"}},null,"","",{"$f":"SUMIFS($J$25:$J$224,$C$25:$C$224,$C204,$G$25:$G$224,Lists!$A$16)","v":0},0,null,"",null,{"$f":"IF(C204=0,\"\",LEFT(INDEX(Lists!$H$5:$H$49,MATCH(C204,Lists!$G$5:$G$49,0),1),1))","v":""},null,{"$f":"'Month 11'!H204+'Month 11'!I204-'Month 11'!J204","v":0},"","",null,"0"]
[{"$f":"Planning!A189","v":"I181"},{"$f":"Planning!B189","v":0},{"$f":"Planning!C189","v":0},{"$f":"Planning!D189","v":0},{"$f":"Planning!E189","v":0},{"$f":"IF(Planning!G189<>0,Planning!G189,\"\")","v":""},{"$f":"Planning!H189","v":0},{"$f":"Planning!AP189","v":0},{"$f":"IF(OR(W205=\"1\",AND(W205<>\"1\",G205=Lists!$A$17)),Y205,0)","v":0},null,{"$f":"IF(AND(W205=\"2\",G205<>Lists!$A$17),AA205,Z205)","v":""},"",{"$f":"Planning!AQ189","v":{"v":0,"d":"0.00"}},{"$f":"'Month 11'!M205+'Month 11'!N205-'Month 11'!O205","v":{"v":0,"d":"0.00"}},null,"","",{"$f":"SUMIFS($J$25:$J$224,$C$25:$C$224,$C205,$G$25:$G$224,Lists!$A$16)","v":0},0,null,"",null,{"$f":"IF(C205=0,\"\",LEFT(INDEX(Lists!$H$5:$H$49,MATCH(C205,Lists!$G$5:$G$49,0),1),1))","v":""},null,{"$f":"'Month 11'!H205+'Month 11'!I205-'Month 11'!J205","v":0},"","",null,"0"]
[{"$f":"Planning!A190","v":"I182"},{"$f":"Planning!B190","v":0},{"$f":"Planning!C190","v":0},{"$f":"Planning!D190","v":0},{"$f":"Planning!E190","v":0},{"$f":"IF(Planning!G190<>0,Planning!G190,\"\")","v":""},{"$f":"Planning!H190","v":0},{"$f":"Planning!AP190","v":0},{"$f":"IF(OR(W206=\"1\",AND(W206<>\"1\",G206=Lists!$A$17)),Y206,0)","v":0},null,{"$f":"IF(AND(W206=\"2\",G206<>Lists!$A$17),AA206,Z206)","v":""},"",{"$f":"Planning!AQ190","v":{"v":0,"d":"0.00"}},{"$f":"'Month 11'!M206+'Month 11'!N206-'Month 11'!O206","v":{"v":0,"d":"0.00"}},null,"","",{"$f":"SUMIFS($J$25:$J$224,$C$25:$C$224,$C206,$G$25:$G$224,Lists!$A$16)","v":0},0,null,"",null,{"$f":"IF(C206=0,\"\",LEFT(INDEX(Lists!$H$5:$H$49,MATCH(C206,Lists!$G$5:$G$49,0),1),1))","v":""},null,{"$f":"'Month 11'!H206+'Month 11'!I206-'Month 11'!J206","v":0},"","",null,"0"]
[{"$f":"Planning!A191","v":"I183"},{"$f":"Planning!B191","v":0},{"$f":"Planning!C191","v":0},{"$f":"Planning!D191","v":0},{"$f":"Planning!E191","v":0},{"$f":"IF(Planning!G191<>0,Planning!G191,\"\")","v":""},{"$f":"Planning!H191","v":0},{"$f":"Planning!AP191","v":0},{"$f":"IF(OR(W207=\"1\",AND(W207<>\"1\",G207=Lists!$A$17)),Y207,0)","v":0},null,{"$f":"IF(AND(W207=\"2\",G207<>Lists!$A$17),AA207,Z207)","v":""},"",{"$f":"Planning!AQ191","v":{"v":0,"d":"0.00"}},{"$f":"'Month 11'!M207+'Month 11'!N207-'Month 11'!O207","v":{"v":0,"d":"0.00"}},null,"","",{"$f":"SUMIFS($J$25:$J$224,$C$25:$C$224,$C207,$G$25:$G$224,Lists!$A$16)","v":0},0,null,"",null,{"$f":"IF(C207=0,\"\",LEFT(INDEX(Lists!$H$5:$H$49,MATCH(C207,Lists!$G$5:$G$49,0),1),1))","v":""},null,{"$f":"'Month 11'!H207+'Month 11'!I207-'Month 11'!J207","v":0},"","",null,"0"]
[{"$f":"Planning!A192","v":"I184"},{"$f":"Planning!B192","v":0},{"$f":"Planning!C192","v":0},{"$f":"Planning!D192","v":0},{"$f":"Planning!E192","v":0},{"$f":"IF(Planning!G192<>0,Planning!G192,\"\")","v":""},{"$f":"Planning!H192","v":0},{"$f":"Planning!AP192","v":0},{"$f":"IF(OR(W208=\"1\",AND(W208<>\"1\",G208=Lists!$A$17)),Y208,0)","v":0},null,{"$f":"IF(AND(W208=\"2\",G208<>Lists!$A$17),AA208,Z208)","v":""},"",{"$f":"Planning!AQ192","v":{"v":0,"d":"0.00"}},{"$f":"'Month 11'!M208+'Month 11'!N208-'Month 11'!O208","v":{"v":0,"d":"0.00"}},null,"","",{"$f":"SUMIFS($J$25:$J$224,$C$25:$C$224,$C208,$G$25:$G$224,Lists!$A$16)","v":0},0,null,"",null,{"$f":"IF(C208=0,\"\",LEFT(INDEX(Lists!$H$5:$H$49,MATCH(C208,Lists!$G$5:$G$49,0),1),1))","v":""},null,{"$f":"'Month 11'!H208+'Month 11'!I208-'Month 11'!J208","v":0},"","",null,"0"]
[{"$f":"Planning!A193","v":"I185"},{"$f":"Planning!B193","v":0},{"$f":"Planning!C193","v":0},{"$f":"Planning!D193","v":0},{"$f":"Planning!E193","v":0},{"$f":"IF(Planning!G193<>0,Planning!G193,\"\")","v":""},{"$f":"Planning!H193","v":0},{"$f":"Planning!AP193","v":0},{"$f":"IF(OR(W209=\"1\",AND(W209<>\"1\",G209=Lists!$A$17)),Y209,0)","v":0},null,{"$f":"IF(AND(W209=\"2\",G209<>Lists!$A$17),AA209,Z209)","v":""},"",{"$f":"Planning!AQ193","v":{"v":0,"d":"0.00"}},{"$f":"'Month 11'!M209+'Month 11'!N209-'Month 11'!O209","v":{"v":0,"d":"0.00"}},null,"","",{"$f":"SUMIFS($J$25:$J$224,$C$25:$C$224,$C209,$G$25:$G$224,Lists!$A$16)","v":0},0,null,"",null,{"$f":"IF(C209=0,\"\",LEFT(INDEX(Lists!$H$5:$H$49,MATCH(C209,Lists!$G$5:$G$49,0),1),1))","v":""},null,{"$f":"'Month 11'!H209+'Month 11'!I209-'Month 11'!J209","v":0},"","",null,"0"]
[{"$f":"Planning!A194","v":"I186"},{"$f":"Planning!B194","v":0},{"$f":"Planning!C194","v":0},{"$f":"Planning!D194","v":0},{"$f":"Planning!E194","v":0},{"$f":"IF(Planning!G194<>0,Planning!G194,\"\")","v":""},{"$f":"Planning!H194","v":0},{"$f":"Planning!AP194","v":0},{"$f":"IF(OR(W210=\"1\",AND(W210<>\"1\",G210=Lists!$A$17)),Y210,0)","v":0},null,{"$f":"IF(AND(W210=\"2\",G210<>Lists!$A$17),AA210,Z210)","v":""},"",{"$f":"Planning!AQ194","v":{"v":0,"d":"0.00"}},{"$f":"'Month 11'!M210+'Month 11'!N210-'Month 11'!O210","v":{"v":0,"d":"0.00"}},null,"","",{"$f":"SUMIFS($J$25:$J$224,$C$25:$C$224,$C210,$G$25:$G$224,Lists!$A$16)","v":0},0,null,"",null,{"$f":"IF(C210=0,\"\",LEFT(INDEX(Lists!$H$5:$H$49,MATCH(C210,Lists!$G$5:$G$49,0),1),1))","v":""},null,{"$f":"'Month 11'!H210+'Month 11'!I210-'Month 11'!J210","v":0},"","",null,"0"]
[{"$f":"Planning!A195","v":"I187"},{"$f":"Planning!B195","v":0},{"$f":"Planning!C195","v":0},{"$f":"Planning!D195","v":0},{"$f":"Planning!E195","v":0},{"$f":"IF(Planning!G195<>0,Planning!G195,\"\")","v":""},{"$f":"Planning!H195","v":0},{"$f":"Planning!AP195","v":0},{"$f":"IF(OR(W211=\"1\",AND(W211<>\"1\",G211=Lists!$A$17)),Y211,0)","v":0},null,{"$f":"IF(AND(W211=\"2\",G211<>Lists!$A$17),AA211,Z211)","v":""},"",{"$f":"Planning!AQ195","v":{"v":0,"d":"0.00"}},{"$f":"'Month 11'!M211+'Month 11'!N211-'Month 11'!O211","v":{"v":0,"d":"0.00"}},null,"","",{"$f":"SUMIFS($J$25:$J$224,$C$25:$C$224,$C211,$G$25:$G$224,Lists!$A$16)","v":0},0,null,"",null,{"$f":"IF(C211=0,\"\",LEFT(INDEX(Lists!$H$5:$H$49,MATCH(C211,Lists!$G$5:$G$49,0),1),1))","v":""},null,{"$f":"'Month 11'!H211+'Month 11'!I211-'Month 11'!J211","v":0},"","",null,"0"]
[{"$f":"Planning!A196","v":"I188"},{"$f":"Planning!B196","v":0},{"$f":"Planning!C196","v":0},{"$f":"Planning!D196","v":0},{"$f":"Planning!E196","v":0},{"$f":"IF(Planning!G196<>0,Planning!G196,\"\")","v":""},{"$f":"Planning!H196","v":0},{"$f":"Planning!AP196","v":0},{"$f":"IF(OR(W212=\"1\",AND(W212<>\"1\",G212=Lists!$A$17)),Y212,0)","v":0},null,{"$f":"IF(AND(W212=\"2\",G212<>Lists!$A$17),AA212,Z212)","v":""},"",{"$f":"Planning!AQ196","v":{"v":0,"d":"0.00"}},{"$f":"'Month 11'!M212+'Month 11'!N212-'Month 11'!O212","v":{"v":0,"d":"0.00"}},null,"","",{"$f":"SUMIFS($J$25:$J$224,$C$25:$C$224,$C212,$G$25:$G$224,Lists!$A$16)","v":0},0,null,"",null,{"$f":"IF(C212=0,\"\",LEFT(INDEX(Lists!$H$5:$H$49,MATCH(C212,Lists!$G$5:$G$49,0),1),1))","v":""},null,{"$f":"'Month 11'!H212+'Month 11'!I212-'Month 11'!J212","v":0},"","",null,"0"]
[{"$f":"Planning!A197","v":"I189"},{"$f":"Planning!B197","v":0},{"$f":"Planning!C197","v":0},{"$f":"Planning!D197","v":0},{"$f":"Planning!E197","v":0},{"$f":"IF(Planning!G197<>0,Planning!G197,\"\")","v":""},{"$f":"Planning!H197","v":0},{"$f":"Planning!AP197","v":0},{"$f":"IF(OR(W213=\"1\",AND(W213<>\"1\",G213=Lists!$A$17)),Y213,0)","v":0},null,{"$f":"IF(AND(W213=\"2\",G213<>Lists!$A$17),AA213,Z213)","v":""},"",{"$f":"Planning!AQ197","v":{"v":0,"d":"0.00"}},{"$f":"'Month 11'!M213+'Month 11'!N213-'Month 11'!O213","v":{"v":0,"d":"0.00"}},null,"","",{"$f":"SUMIFS($J$25:$J$224,$C$25:$C$224,$C213,$G$25:$G$224,Lists!$A$16)","v":0},0,null,"",null,{"$f":"IF(C213=0,\"\",LEFT(INDEX(Lists!$H$5:$H$49,MATCH(C213,Lists!$G$5:$G$49,0),1),1))","v":""},null,{"$f":"'Month 11'!H213+'Month 11'!I213-'Month 11'!J213","v":0},"","",null,"0"]
[{"$f":"Planning!A198","v":"I190"},{"$f":"Planning!B198","v":0},{"$f":"Planning!C198","v":0},{"$f":"Planning!D198","v":0},{"$f":"Planning!E198","v":0},{"$f":"IF(Planning!G198<>0,Planning!G198,\"\")","v":""},{"$f":"Planning!H198","v":0},{"$f":"Planning!AP198","v":0},{"$f":"IF(OR(W214=\"1\",AND(W214<>\"1\",G214=Lists!$A$17)),Y214,0)","v":0},null,{"$f":"IF(AND(W214=\"2\",G214<>Lists!$A$17),AA214,Z214)","v":""},"",{"$f":"Planning!AQ198","v":{"v":0,"d":"0.00"}},{"$f":"'Month 11'!M214+'Month 11'!N214-'Month 11'!O214","v":{"v":0,"d":"0.00"}},null,"","",{"$f":"SUMIFS($J$25:$J$224,$C$25:$C$224,$C214,$G$25:$G$224,Lists!$A$16)","v":0},0,null,"",null,{"$f":"IF(C214=0,\"\",LEFT(INDEX(Lists!$H$5:$H$49,MATCH(C214,Lists!$G$5:$G$49,0),1),1))","v":""},null,{"$f":"'Month 11'!H214+'Month 11'!I214-'Month 11'!J214","v":0},"","",null,"0"]
[{"$f":"Planning!A199","v":"I191"},{"$f":"Planning!B199","v":0},{"$f":"Planning!C199","v":0},{"$f":"Planning!D199","v":0},{"$f":"Planning!E199","v":0},{"$f":"IF(Planning!G199<>0,Planning!G199,\"\")","v":""},{"$f":"Planning!H199","v":0},{"$f":"Planning!AP199","v":0},{"$f":"IF(OR(W215=\"1\",AND(W215<>\"1\",G215=Lists!$A$17)),Y215,0)","v":0},null,{"$f":"IF(AND(W215=\"2\",G215<>Lists!$A$17),AA215,Z215)","v":""},"",{"$f":"Planning!AQ199","v":{"v":0,"d":"0.00"}},{"$f":"'Month 11'!M215+'Month 11'!N215-'Month 11'!O215","v":{"v":0,"d":"0.00"}},null,"","",{"$f":"SUMIFS($J$25:$J$224,$C$25:$C$224,$C215,$G$25:$G$224,Lists!$A$16)","v":0},0,null,"",null,{"$f":"IF(C215=0,\"\",LEFT(INDEX(Lists!$H$5:$H$49,MATCH(C215,Lists!$G$5:$G$49,0),1),1))","v":""},null,{"$f":"'Month 11'!H215+'Month 11'!I215-'Month 11'!J215","v":0},"","",null,"0"]
[{"$f":"Planning!A200","v":"I192"},{"$f":"Planning!B200","v":0},{"$f":"Planning!C200","v":0},{"$f":"Planning!D200","v":0},{"$f":"Planning!E200","v":0},{"$f":"IF(Planning!G200<>0,Planning!G200,\"\")","v":""},{"$f":"Planning!H200","v":0},{"$f":"Planning!AP200","v":0},{"$f":"IF(OR(W216=\"1\",AND(W216<>\"1\",G216=Lists!$A$17)),Y216,0)","v":0},null,{"$f":"IF(AND(W216=\"2\",G216<>Lists!$A$17),AA216,Z216)","v":""},"",{"$f":"Planning!AQ200","v":{"v":0,"d":"0.00"}},{"$f":"'Month 11'!M216+'Month 11'!N216-'Month 11'!O216","v":{"v":0,"d":"0.00"}},null,"","",{"$f":"SUMIFS($J$25:$J$224,$C$25:$C$224,$C216,$G$25:$G$224,Lists!$A$16)","v":0},0,null,"",null,{"$f":"IF(C216=0,\"\",LEFT(INDEX(Lists!$H$5:$H$49,MATCH(C216,Lists!$G$5:$G$49,0),1),1))","v":""},null,{"$f":"'Month 11'!H216+'Month 11'!I216-'Month 11'!J216","v":0},"","",null,"0"]
[{"$f":"Planning!A201","v":"I193"},{"$f":"Planning!B201","v":0},{"$f":"Planning!C201","v":0},{"$f":"Planning!D201","v":0},{"$f":"Planning!E201","v":0},{"$f":"IF(Planning!G201<>0,Planning!G201,\"\")","v":""},{"$f":"Planning!H201","v":0},{"$f":"Planning!AP201","v":0},{"$f":"IF(OR(W217=\"1\",AND(W217<>\"1\",G217=Lists!$A$17)),Y217,0)","v":0},null,{"$f":"IF(AND(W217=\"2\",G217<>Lists!$A$17),AA217,Z217)","v":""},{"$f":"IF($U217=ExcluirDelPLogro,\"\",IF(AND(H217=0,I217=0,J217=0),\"\",K217))","v":""},{"$f":"Planning!AQ201","v":{"v":0,"d":"0.00"}},{"$f":"'Month 11'!M217+'Month 11'!N217-'Month 11'!O217","v":{"v":0,"d":"0.00"}},null,"",{"$f":"IF($U217=ExcluirDelPLogro,\"\",IF(AND(M217=0,N217=0,O217=0),\"\",P217))","v":""},{"$f":"SUMIFS($J$25:$J$224,$C$25:$C$224,$C217,$G$25:$G$224,Lists!$A$16)","v":0},0,null,"",null,{"$f":"IF(C217=0,\"\",LEFT(INDEX(Lists!$H$5:$H$49,MATCH(C217,Lists!$G$5:$G$49,0),1),1))","v":""},null,{"$f":"'Month 11'!H217+'Month 11'!I217-'Month 11'!J217","v":0},"",{"$f":"IF(AND(H217=0,I217=0,J217=0),\"\",IF(J217>0,H217/J217,0))","v":""},null,"0"]
[{"$f":"Planning!A202","v":"I194"},{"$f":"Planning!B202","v":0},{"$f":"Planning!C202","v":0},{"$f":"Planning!D202","v":0},{"$f":"Planning!E202","v":0},{"$f":"IF(Planning!G202<>0,Planning!G202,\"\")","v":""},{"$f":"Planning!H202","v":0},{"$f":"Planning!AP202","v":0},{"$f":"IF(OR(W218=\"1\",AND(W218<>\"1\",G218=Lists!$A$17)),Y218,0)","v":0},null,{"$f":"IF(AND(W218=\"2\",G218<>Lists!$A$17),AA218,Z218)","v":""},"",{"$f":"Planning!AQ202","v":{"v":0,"d":"0.00"}},{"$f":"'Month 11'!M218+'Month 11'!N218-'Month 11'!O218","v":{"v":0,"d":"0.00"}},null,{"$f":"IF(AND(M218=0,N218=0,O218=0),\"\",IF((M218+N218)>0,O218/(M218+N218),O218))","v":""},"",{"$f":"SUMIFS($J$25:$J$224,$C$25:$C$224,$C218,$G$25:$G$224,Lists!$A$16)","v":0},{"$f":"SUMIFS($O$25:$O$224,$C$25:$C$224,$C218,$G$25:$G$224,\"<>0\")","v":0},null,{"$f":"IF(B218=0,\"\",IF(LEFT(B218,1)=\"1\",\"1\",\"2\"))","v":""},null,{"$f":"IF(C218=0,\"\",LEFT(INDEX(Lists!$H$5:$H$49,MATCH(C218,Lists!$G$5:$G$49,0),1),1))","v":""},null,{"$f":"'Month 11'!H218+'Month 11'!I218-'Month 11'!J218","v":0},{"$f":"IF(AND(H218=0,I218=0,J218=0),\"\",IF((H218+I218)>0,J218/(H218+I218),J218))","v":""},"",null,{"$f":"U218&C218","v":"0"}]
[{"$f":"Planning!A203","v":"I195"},{"$f":"Planning!B203","v":0},{"$f":"Planning!C203","v":0},{"$f":"Planning!D203","v":0},{"$f":"Planning!E203","v":0},{"$f":"IF(Planning!G203<>0,Planning!G203,\"\")","v":""},{"$f":"Planning!H203","v":0},{"$f":"Planning!AP203","v":0},{"$f":"IF(OR(W219=\"1\",AND(W219<>\"1\",G219=Lists!$A$17)),Y219,0)","v":0},null,{"$f":"IF(AND(W219=\"2\",G219<>Lists!$A$17),AA219,Z219)","v":""},"",{"$f":"Planning!AQ203","v":{"v":0,"d":"0.00"}},{"$f":"'Month 11'!M219+'Month 11'!N219-'Month 11'!O219","v":{"v":0,"d":"0.00"}},null,"","",{"$f":"SUMIFS($J$25:$J$224,$C$25:$C$224,$C219,$G$25:$G$224,Lists!$A$16)","v":0},0,null,"",null,{"$f":"IF(C219=0,\"\",LEFT(INDEX(Lists!$H$5:$H$49,MATCH(C219,Lists!$G$5:$G$49,0),1),1))","v":""},null,{"$f":"'Month 11'!H219+'Month 11'!I219-'Month 11'!J219","v":0},"","",null,"0"]
[{"$f":"Planning!A204","v":"I196"},{"$f":"Planning!B204","v":0},{"$f":"Planning!C204","v":0},{"$f":"Planning!D204","v":0},{"$f":"Planning!E204","v":0},{"$f":"IF(Planning!G204<>0,Planning!G204,\"\")","v":""},{"$f":"Planning!H204","v":0},{"$f":"Planning!AP204","v":0},{"$f":"IF(OR(W220=\"1\",AND(W220<>\"1\",G220=Lists!$A$17)),Y220,0)","v":0},null,{"$f":"IF(AND(W220=\"2\",G220<>Lists!$A$17),AA220,Z220)","v":""},"",{"$f":"Planning!AQ204","v":{"v":0,"d":"0.00"}},{"$f":"'Month 11'!M220+'Month 11'!N220-'Month 11'!O220","v":{"v":0,"d":"0.00"}},null,"","",{"$f":"SUMIFS($J$25:$J$224,$C$25:$C$224,$C220,$G$25:$G$224,Lists!$A$16)","v":0},0,null,"",null,{"$f":"IF(C220=0,\"\",LEFT(INDEX(Lists!$H$5:$H$49,MATCH(C220,Lists!$G$5:$G$49,0),1),1))","v":""},null,{"$f":"'Month 11'!H220+'Month 11'!I220-'Month 11'!J220","v":0},"","",null,"0"]
[{"$f":"Planning!A205","v":"I197"},{"$f":"Planning!B205","v":0},{"$f":"Planning!C205","v":0},{"$f":"Planning!D205","v":0},{"$f":"Planning!E205","v":0},{"$f":"IF(Planning!G205<>0,Planning!G205,\"\")","v":""},{"$f":"Planning!H205","v":0},{"$f":"Planning!AP205","v":0},{"$f":"IF(OR(W221=\"1\",AND(W221<>\"1\",G221=Lists!$A$17)),Y221,0)","v":0},null,{"$f":"IF(AND(W221=\"2\",G221<>Lists!$A$17),AA221,Z221)","v":""},"",{"$f":"Planning!AQ205","v":{"v":0,"d":"0.00"}},{"$f":"'Month 11'!M221+'Month 11'!N221-'Month 11'!O221","v":{"v":0,"d":"0.00"}},null,"","",{"$f":"SUMIFS($J$25:$J$224,$C$25:$C$224,$C221,$G$25:$G$224,Lists!$A$16)","v":0},0,null,"",null,{"$f":"IF(C221=0,\"\",LEFT(INDEX(Lists!$H$5:$H$49,MATCH(C221,Lists!$G$5:$G$49,0),1),1))","v":""},null,{"$f":"'Month 11'!H221+'Month 11'!I221-'Month 11'!J221","v":0},"","",null,"0"]
[{"$f":"Planning!A206","v":"I198"},{"$f":"Planning!B206","v":0},{"$f":"Planning!C206","v":0},{"$f":"Planning!D206","v":0},{"$f":"Planning!E206","v":0},{"$f":"IF(Planning!G206<>0,Planning!G206,\"\")","v":""},{"$f":"Planning!H206","v":0},{"$f":"Planning!AP206","v":0},{"$f":"IF(OR(W222=\"1\",AND(W222<>\"1\",G222=Lists!$A$17)),Y222,0)","v":0},null,{"$f":"IF(AND(W222=\"2\",G222<>Lists!$A$17),AA222,Z222)","v":""},"",{"$f":"Planning!AQ206","v":{"v":0,"d":"0.00"}},{"$f":"'Month 11'!M222+'Month 11'!N222-'Month 11'!O222","v":{"v":0,"d":"0.00"}},null,"","",{"$f":"SUMIFS($J$25:$J$224,$C$25:$C$224,$C222,$G$25:$G$224,Lists!$A$16)","v":0},0,null,"",null,{"$f":"IF(C222=0,\"\",LEFT(INDEX(Lists!$H$5:$H$49,MATCH(C222,Lists!$G$5:$G$49,0),1),1))","v":""},null,{"$f":"'Month 11'!H222+'Month 11'!I222-'Month 11'!J222","v":0},"","",null,"0"]
[{"$f":"Planning!A207","v":"I199"},{"$f":"Planning!B207","v":0},{"$f":"Planning!C207","v":0},{"$f":"Planning!D207","v":0},{"$f":"Planning!E207","v":0},{"$f":"IF(Planning!G207<>0,Planning!G207,\"\")","v":""},{"$f":"Planning!H207","v":0},{"$f":"Planning!AP207","v":0},{"$f":"IF(OR(W223=\"1\",AND(W223<>\"1\",G223=Lists!$A$17)),Y223,0)","v":0},null,{"$f":"IF(AND(W223=\"2\",G223<>Lists!$A$17),AA223,Z223)","v":""},"",{"$f":"Planning!AQ207","v":{"v":0,"d":"0.00"}},{"$f":"'Month 11'!M223+'Month 11'!N223-'Month 11'!O223","v":{"v":0,"d":"0.00"}},null,"","",{"$f":"SUMIFS($J$25:$J$224,$C$25:$C$224,$C223,$G$25:$G$224,Lists!$A$16)","v":0},0,null,"",null,{"$f":"IF(C223=0,\"\",LEFT(INDEX(Lists!$H$5:$H$49,MATCH(C223,Lists!$G$5:$G$49,0),1),1))","v":""},null,{"$f":"'Month 11'!H223+'Month 11'!I223-'Month 11'!J223","v":0},"","",null,"0"]
[{"$f":"Planning!A208","v":"I200"},{"$f":"Planning!B208","v":0},{"$f":"Planning!C208","v":0},{"$f":"Planning!D208","v":0},{"$f":"Planning!E208","v":0},{"$f":"IF(Planning!G208<>0,Planning!G208,\"\")","v":""},{"$f":"Planning!H208","v":0},{"$f":"Planning!AP208","v":0},{"$f":"IF(OR(W224=\"1\",AND(W224<>\"1\",G224=Lists!$A$17)),Y224,0)","v":0},null,{"$f":"IF(AND(W224=\"2\",G224<>Lists!$A$17),AA224,Z224)","v":""},"",{"$f":"Planning!AQ208","v":{"v":0,"d":"0.00"}},{"$f":"'Month 11'!M224+'Month 11'!N224-'Month 11'!O224","v":{"v":0,"d":"0.00"}},null,"","",{"$f":"SUMIFS($J$25:$J$224,$C$25:$C$224,$C224,$G$25:$G$224,Lists!$A$16)","v":0},0,null,"",null,{"$f":"IF(C224=0,\"\",LEFT(INDEX(Lists!$H$5:$H$49,MATCH(C224,Lists!$G$5:$G$49,0),1),1))","v":""},null,{"$f":"'Month 11'!H224+'Month 11'!I224-'Month 11'!J224","v":0},"","",null,"0"]
[{"$nulls":20},".",null,".",null,".",".",".",null,"."]
[]
[{"$f":"Setup!AN6","v":"PR Dashboard indicators"}]
[{"$f":"Setup!AP8","v":"Financial reports planned"}]
[{"$f":"Setup!AP9","v":"Financial reports overdue"}]
[{"$f":"Setup!AP10","v":0}]
[{"$f":"Setup!AP11","v":0}]
[{"$f":"Setup!AP12","v":0}]
[{"$f":"Setup!AP13","v":0}]
[{"$f":"Setup!AP14","v":0}]
[{"$f":"Setup!AP15","v":"Supervision actions recommended"}]
[{"$f":"Setup!AP16","v":"Supervision recommendations past due"}]
[{"$f":"Setup!AP17","v":"Programmatic reports planned"}]
[{"$f":"Setup!AP18","v":"Programmatic reports past due"}]
[{"$f":"Setup!AP19","v":0}]
[{"$f":"Setup!AP20","v":0}]
[{"$f":"Setup!AP21","v":0}]
[{"$f":"Setup!AP22","v":0}]
[{"$f":"Setup!AP23","v":0}]
[{"$f":"Setup!AP24","v":0}]
[{"$f":"Setup!AP25","v":0}]
[{"$f":"Setup!AP26","v":0}]
[{"$f":"Setup!AP27","v":0}]
[{"$f":"Setup!AP28","v":0}]
[{"$f":"Setup!AP29","v":0}]
[{"$f":"Setup!AP30","v":0}]
[{"$f":"Setup!AP31","v":0}]
[{"$f":"Setup!AP32","v":0}]
[{"$f":"Setup!AP33","v":0}]
[{"$f":"Setup!AP34","v":0}]
[{"$f":"Setup!AP35","v":0}]
[{"$f":"Setup!AP36","v":0}]
[{"$f":"Setup!AP37","v":0}]
[{"$f":"Setup!AP38","v":0}]
[{"$f":"Setup!AP39","v":"Actual stock level - PS39 - Product 1: Efavirenz, 600 mg, 30 tablets"}]
[{"$f":"Setup!AP40","v":"Actual stock level - PS40 - Product 2: Efavirenz, 200 mg, 90 capsules"}]
[{"$f":"Setup!AP41","v":"Actual stock level - PS41 - Product 3: TDF/3TC, 300/300 mg, 30 tablets"}]
[{"$f":"Setup!AP42","v":"Actual stock level - PS42 - Product 4: 3TC, 10 mg/ml, oral solution 240 ml"}]
[{"$f":"Setup!AP43","v":0}]
[{"$f":"Setup!AP44","v":0}]
[{"$f":"Setup!AP45","v":0}]
[{"$f":"Setup!AP46","v":0}]
[{"$f":"Setup!AP47","v":0}]
[{"$f":"Setup!AP48","v":0}]
[{"$f":"Setup!AP49","v":0}]
[{"$f":"Setup!AP50","v":0}]
[{"$f":"Setup!AP51","v":0}]
[{"$f":"Setup!AP52","v":0}]
[{"$f":"Setup!AP53","v":0}]
[{"$f":"Setup!AP54","v":0}]
[{"$f":"Setup!AP55","v":0}]
[{"$f":"Setup!AP56","v":0}]
[{"$f":"Setup!AP57","v":0}]
[{"$f":"Setup!AP58","v":0}]
[{"$f":"Setup!AP59","v":0}]
[{"$f":"Setup!AP60","v":0}]
[{"$f":"Setup!AP61","v":0}]
[{"$f":"Setup!AP62","v":0}]
[{"$f":"Setup!AP63","v":0}]
[{"$f":"Setup!AP64","v":0}]
[{"$f":"Setup!AP65","v":0}]
[{"$f":"Setup!AP66","v":0}]
[{"$f":"Setup!AP67","v":0}]
[{"$f":"Setup!AP68","v":0}]
[{"$f":"Setup!AP69","v":0}]
[]
[]
[{"$f":"Translations!A138","v":"Narrative comments from results (to be filled by the Subrecipient)"}]
{"$rows_empty":43}
[{"$f":"Translations!A139","v":"This section is filled in exclusively by PR's programmatic and financial monitors."}]
[]
[{"$f":"Translations!A150","v":"PROGRAMMATIC"},null,null,{"$f":"Translations!A140","v":"Name of person conducting programmatic verification"}]
[]
[]
[{"$nulls":3},{"$f":"Translations!A141","v":"Contextual details"}]
[]
[]
[]
[]
[]
[]
[{"$nulls":3},{"$f":"Translations!A151","v":"Description of identified problem(s)"}]
[]
[]
[]
[]
[]
[]
[{"$nulls":3},{"$f":"Translations!A152","v":"Recommendations and actions to be taken"}]
[{"$nulls":3},"1)"]
[{"$nulls":3},"2)"]
[{"$nulls":3},"3)"]
[{"$nulls":3},"4)"]
[{"$nulls":3},"5)"]
[]
[]
[]
[{"$f":"Translations!A154","v":"FINANCIAL"},null,null,{"$f":"Translations!A153","v":"Name of person conducting financial verification"}]
[]
[]
[{"$nulls":3},{"$f":"Translations!A141","v":"Contextual details"}]
{"$rows_empty":7}
[{"$nulls":3},{"$f":"Translations!A151","v":"Description of identified problem(s)"}]
[]
[]
[]
[]
[]
[]
[{"$nulls":3},{"$f":"Translations!A152","v":"Recommendations and actions to be taken"}]
[{"$nulls":3},"1)"]
[{"$nulls":3},"2)"]
[{"$nulls":3},"3)"]
[{"$nulls":3},"4)"]
[{"$nulls":3},"5)"]
[]
[]
[]
[]
[]
[{"$f":"Translations!A321","v":"To be completed by the PR"},{"$nulls":6},{"$f":"Translations!A324","v":"To be completed by the SR"}]
[{"$f":"Translations!A322","v":"Position"},{"$nulls":3},{"$f":"Translations!A323","v":"Signature"},null,null,{"$f":"Translations!A322","v":"Position"},null,{"$f":"Translations!A323","v":"Signature"}]

{"sheet":"Annex 1","index":24,"n_rows":120,"n_cols":67,"rows_kept":120,"hidden":true,"merged":[[1,3,1,9],[2,3,2,9],[3,3,3,9],[4,3,4,9],[7,0,7,3],[7,6,7,9],[8,0,15,3],[8,6,10,9],[17,2,17,9],[27,2,27,6],[27,7,27,11],[27,12,27,16],[27,17,27,21],[27,22,27,26],[27,27,27,31],[27,32,27,36],[27,37,27,41],[27,42,27,46],[27,47,27,51],[27,52,27,56],[27,57,27,61],[27,62,27,66]]}
[]
["Annex 1",null,null,{"$f":"Translations!$A$80","v":"SR Management Tool"}]
[{"$nulls":3},{"$f":"Setup!$H$11","v":"Direct Gender Partnership (DGP)"}]
[{"$nulls":3},{"$f":" Setup!$H$14 & \"  (\" & Setup!$H$13 & \")\"& \"  (\" & Setup!$H$15 & \")\"","v":"DMR-202-G01-H-00  (January  2016 - December 2016)  (HIV / AIDS)"}]
[{"$nulls":3},{"$f":"Setup!$AE$8 & \"  (\" & Setup!$H$16 & \")\"","v":"SSR advances liquidation  ($ - USD)"}]
[]
[]
[{"$f":"Setup!G19","v":"Details of programatic indicators"},{"$nulls":5},{"$f":"Setup!G17","v":"Key population"}]
[{"$f":"Setup!H19","v":"# PLHIV that initiated ARV with CD4 count <200\n# new HIV+ enrolled in care services \n# aged 10-24 yrs reached by HIV life skills ed. in school "},{"$nulls":5},{"$f":"Setup!H17","v":"Sex Workers - Migrants - Women"}]
{"$rows_empty":8}
[null,null,{"$f":"Translations!A396","v":"SSR advances liquidation summary"}]
[]
[{"$nulls":3},{"$f":"Setup!$AB8","v":"January"},{"$f":"Setup!$AB9","v":"February"},{"$f":"Setup!$AB10","v":"March"},{"$f":"Setup!$AB11","v":"April"},{"$f":"Setup!$AB12","v":"May"},{"$f":"Setup!$AB13","v":"June"},{"$f":"Setup!$AB14","v":"July"},{"$f":"Setup!$AB15","v":"August"},{"$f":"Setup!$AB16","v":"September"},{"$f":"Setup!$AB17","v":"October"},{"$f":"Setup!$AB18","v":"November"},{"$f":"Setup!$AB19","v":"December"},{"$f":"Translations!A109","v":"Totals"}]
[null,null,{"$f":"Translations!A131","v":"Disbursement"},{"$f":"+C120","v":0},{"$f":"+H120","v":0},{"$f":"+M120","v":0},{"$f":"+R120","v":0},{"$f":"+W120","v":0},{"$f":"+AB120","v":0},{"$f":"+AG120","v":0},{"$f":"+AL120","v":0},{"$f":"+AQ120","v":0},{"$f":"+AV120","v":0},{"$f":"+BA120","v":0},{"$f":"+BF120","v":0},{"$f":"+BK120","v":0}]
[null,null,{"$f":"Translations!A122","v":"Executed"},{"$f":"D120","v":0},{"$f":"+I120","v":0},{"$f":"N120","v":0},{"$f":"S120","v":0},{"$f":"X120","v":0},{"$f":"AC120","v":0},{"$f":"AH120","v":0},{"$f":"AM120","v":0},{"$f":"AR120","v":0},{"$f":"AW120","v":0},{"$f":"+BB120","v":0},{"$f":"+BG120","v":0},{"$f":"BL120","v":0}]
[null,null,{"$f":"Translations!A397","v":"Justified"},{"$f":"E120","v":0},{"$f":"J120","v":0},{"$f":"O120","v":0},{"$f":"T120","v":0},{"$f":"Y120","v":0},{"$f":"AD120","v":0},{"$f":"AI120","v":0},{"$f":"AN120","v":0},{"$f":"AS120","v":0},{"$f":"AX120","v":0},{"$f":"+BC120","v":0},{"$f":"+BH120","v":0},{"$f":"BM120","v":0}]
[null,null,{"$f":"Translations!A398","v":"Non Justified"},{"$f":"F120","v":0},{"$f":"K120","v":0},{"$f":"P120","v":0},{"$f":"U120","v":0},{"$f":"Z120","v":0},{"$f":"AE120","v":0},{"$f":"AJ120","v":0},{"$f":"AO120","v":0},{"$f":"AT120","v":0},{"$f":"AY120","v":0},{"$f":"+BD120","v":0},{"$f":"+BI120","v":0},{"$f":"BN120","v":0}]
[null,null,{"$f":"Translations!A374","v":"Balance"},{"$f":"G120","v":0},{"$f":"L120","v":0},{"$f":"Q120","v":0},{"$f":"V120","v":0},{"$f":"AA120","v":0},{"$f":"AF120","v":0},{"$f":"AK120","v":0},{"$f":"AP120","v":0},{"$f":"AU120","v":0},{"$f":"AZ120","v":0},{"$f":"BE120","v":0},{"$f":"BJ120","v":0},{"$f":"BO120","v":0}]
[]
[]
[null,null,{"$f":"D20","v":"January"},{"$nulls":4},{"$f":"E20","v":"February"},{"$nulls":4},{"$f":"F20","v":"March"},{"$nulls":4},{"$f":"G20","v":"April"},{"$nulls":4},{"$f":"H20","v":"May"},{"$nulls":4},{"$f":"I20","v":"June"},{"$nulls":4},{"$f":"J20","v":"July"},{"$nulls":4},{"$f":"K20","v":"August"},{"$nulls":4},{"$f":"L20","v":"September"},{"$nulls":4},{"$f":"M20","v":"October"},{"$nulls":4},{"$f":"N20","v":"November"},{"$nulls":4},{"$f":"O20","v":"December"},{"$nulls":4},{"$f":"Translations!A109","v":"Totals"}]
[null,null,{"$f":"$C$21","v":"Disbursement"},{"$f":"$C$22","v":"Executed"},{"$f":"$C$23","v":"Justified"},{"$f":"$C$24","v":"Non Justified"},{"$f":"$C$25","v":"Balance"},{"$f":"$C$21","v":"Disbursement"},{"$f":"$C$22","v":"Executed"},{"$f":"$C$23","v":"Justified"},{"$f":"$C$24","v":"Non Justified"},{"$f":"$C$25","v":"Balance"},{"$f":"$C$21","v":"Disbursement"},{"$f":"$C$22","v":"Executed"},{"$f":"$C$23","v":"Justified"},{"$f":"$C$24","v":"Non Justified"},{"$f":"$C$25","v":"Balance"},{"$f":"$C$21","v":"Disbursement"},{"$f":"$C$22","v":"Executed"},{"$f":"$C$23","v":"Justified"},{"$f":"$C$24","v":"Non Justified"},{"$f":"$C$25","v":"Balance"},{"$f":"$C$21","v":"Disbursement"},{"$f":"$C$22","v":"Executed"},{"$f":"$C$23","v":"Justified"},{"$f":"$C$24","v":"Non Justified"},{"$f":"$C$25","v":"Balance"},{"$f":"$C$21","v":"Disbursement"},{"$f":"$C$22","v":"Executed"},{"$f":"$C$23","v":"Justified"},{"$f":"$C$24","v":"Non Justified"},{"$f":"$C$25","v":"Balance"},{"$f":"$C$21","v":"Disbursement"},{"$f":"$C$22","v":"Executed"},{"$f":"$C$23","v":"Justified"},{"$f":"$C$24","v":"Non Justified"},{"$f":"$C$25","v":"Balance"},{"$f":"$C$21","v":"Disbursement"},{"$f":"$C$22","v":"Executed"},{"$f":"$C$23","v":"Justified"},{"$f":"$C$24","v":"Non Justified"},{"$f":"$C$25","v":"Balance"},{"$f":"$C$21","v":"Disbursement"},{"$f":"$C$22","v":"Executed"},{"$f":"$C$23","v":"Justified"},{"$f":"$C$24","v":"Non Justified"},{"$f":"$C$25","v":"Balance"},{"$f":"$C$21","v":"Disbursement"},{"$f":"$C$22","v":"Executed"},{"$f":"$C$23","v":"Justified"},{"$f":"$C$24","v":"Non Justified"},{"$f":"$C$25","v":"Balance"},{"$f":"$C$21","v":"Disbursement"},{"$f":"$C$22","v":"Executed"},{"$f":"$C$23","v":"Justified"},{"$f":"$C$24","v":"Non Justified"},{"$f":"$C$25","v":"Balance"},{"$f":"$C$21","v":"Disbursement"},{"$f":"$C$22","v":"Executed"},{"$f":"$C$23","v":"Justified"},{"$f":"$C$24","v":"Non Justified"},{"$f":"$C$25","v":"Balance"},{"$f":"$C$21","v":"Disbursement"},{"$f":"$C$22","v":"Executed"},{"$f":"$C$23","v":"Justified"},{"$f":"$C$24","v":"Non Justified"},{"$f":"$C$25","v":"Balance"}]
[{"$f":"Translations!$A$376","v":"SSR 1: (SSR name)"},null,{"$f":"SUM(C31:C35)","v":0},{"$f":"SUM(D31:D35)","v":0},0,0,0,{"$f":"SUM(H31:H35)","v":0},{"$f":"SUM(I31:I35)","v":0},0,0,0,{"$f":"SUM(M31:M35)","v":0},{"$f":"SUM(N31:N35)","v":0},0,0,0,{"$f":"SUM(R31:R35)","v":0},{"$f":"SUM(S31:S35)","v":0},0,0,0,{"$f":"SUM(W31:W35)","v":0},{"$f":"SUM(X31:X35)","v":0},0,0,0,{"$f":"SUM(AB31:AB35)","v":0},{"$f":"SUM(AC31:AC35)","v":0},0,0,0,{"$f":"SUM(AG31:AG35)","v":0},{"$f":"SUM(AH31:AH35)","v":0},0,0,0,{"$f":"SUM(AL31:AL35)","v":0},{"$f":"SUM(AM31:AM35)","v":0},0,0,0,{"$f":"SUM(AQ31:AQ35)","v":0},{"$f":"SUM(AR31:AR35)","v":0},0,0,0,{"$f":"SUM(AV31:AV35)","v":0},{"$f":"SUM(AW31:AW35)","v":0},0,0,0,{"$f":"SUM(BA31:BA35)","v":0},{"$f":"SUM(BB31:BB35)","v":0},0,0,0,{"$f":"SUM(BF31:BF35)","v":0},{"$f":"SUM(BG31:BG35)","v":0},0,0,0,{"$f":"SUM(BK31:BK35)","v":0},{"$f":"SUM(BL31:BL35)","v":0},0,0,0]
[{"$f":"Translations!$A$388","v":"Transfer 1 (MM/DD/YYYY)"},"x",{"$nulls":3},{"$f":"D31-E31","v":0},{"$f":"+C31-E31+F31","v":0},{"$nulls":3},{"$f":"I31-J31","v":0},{"$f":"G31+H31-J31+K31","v":0},{"$nulls":3},{"$f":"N31-O31","v":0},{"$f":"L31+M31-O31+P31","v":0},{"$nulls":3},{"$f":"S31-T31","v":0},{"$f":"Q31+R31-T31+U31","v":0},{"$nulls":3},{"$f":"X31-Y31","v":0},{"$f":"V31+W31-Y31+Z31","v":0},{"$nulls":3},{"$f":"AC31-AD31","v":0},{"$f":"AA31+AB31-AD31+AE31","v":0},{"$nulls":3},{"$f":"AH31-AI31","v":0},{"$f":"AF31+AG31-AI31+AJ31","v":0},{"$nulls":3},{"$f":"AM31-AN31","v":0},{"$f":"AK31+AL31-AN31+AO31","v":0},{"$nulls":3},{"$f":"AR31-AS31","v":0},{"$f":"AP31+AQ31-AS31+AT31","v":0},{"$nulls":3},{"$f":"AW31-AX31","v":0},{"$f":"AU31+AV31-AX31+AY31","v":0},{"$nulls":3},{"$f":"BB31-BC31","v":0},{"$f":"AZ31+BA31-BC31+BD31","v":0},{"$nulls":3},{"$f":"BG31-BH31","v":0},{"$f":"BE31+BF31-BH31+BI31","v":0},{"$f":"C31+H31+M31+R31+W31+AB31+AG31+AL31+AQ31+AV31+BA31+BF31","v":0},{"$f":"D31+I31+N31+S31+X31+AC31+AH31+AM31+AR31+AW31+BB31+BG31","v":0},{"$f":"E31+J31+O31+T31+Y31+AD31+AI31+AN31+AS31+AX31+BC31+BH31","v":0},{"$f":"F31+K31+P31+U31+Z31+AE31+AJ31+AO31+AT31+AY31+BD31+BI31","v":0},{"$f":"BK31-BM31+BN31","v":0}]
[{"$f":"Translations!$A$389","v":"Transfer 2 (MM/DD/YYYY)"},"x",{"$nulls":3},{"$f":"D32-E32","v":0},{"$f":"+C32-E32+F32","v":0},{"$nulls":3},{"$f":"I32-J32","v":0},{"$f":"G32+H32-J32+K32","v":0},{"$nulls":3},{"$f":"N32-O32","v":0},{"$f":"L32+M32-O32+P32","v":0},{"$nulls":3},{"$f":"S32-T32","v":0},{"$f":"Q32+R32-T32+U32","v":0},{"$nulls":3},{"$f":"X32-Y32","v":0},{"$f":"V32+W32-Y32+Z32","v":0},{"$nulls":3},{"$f":"AC32-AD32","v":0},{"$f":"AA32+AB32-AD32+AE32","v":0},{"$nulls":3},{"$f":"AH32-AI32","v":0},{"$f":"AF32+AG32-AI32+AJ32","v":0},{"$nulls":3},{"$f":"AM32-AN32","v":0},{"$f":"AK32+AL32-AN32+AO32","v":0},{"$nulls":3},{"$f":"AR32-AS32","v":0},{"$f":"AP32+AQ32-AS32+AT32","v":0},{"$nulls":3},{"$f":"AW32-AX32","v":0},{"$f":"AU32+AV32-AX32+AY32","v":0},{"$nulls":3},{"$f":"BB32-BC32","v":0},{"$f":"AZ32+BA32-BC32+BD32","v":0},{"$nulls":3},{"$f":"BG32-BH32","v":0},{"$f":"BE32+BF32-BH32+BI32","v":0},{"$f":"C32+H32+M32+R32+W32+AB32+AG32+AL32+AQ32+AV32+BA32+BF32","v":0},{"$f":"D32+I32+N32+S32+X32+AC32+AH32+AM32+AR32+AW32+BB32+BG32","v":0},{"$f":"E32+J32+O32+T32+Y32+AD32+AI32+AN32+AS32+AX32+BC32+BH32","v":0},{"$f":"F32+K32+P32+U32+Z32+AE32+AJ32+AO32+AT32+AY32+BD32+BI32","v":0},{"$f":"BK32-BM32+BN32","v":0}]
[{"$f":"Translations!$A$390","v":"Transfer 3 (MM/DD/YYYY)"},"x",{"$nulls":3},0,0,{"$nulls":3},0,0,{"$nulls":3},0,0,{"$nulls":3},0,0,{"$nulls":3},0,0,{"$nulls":3},0,0,{"$nulls":3},0,0,{"$nulls":3},0,0,{"$nulls":3},0,0,{"$nulls":3},0,0,{"$nulls":3},0,0,{"$nulls":3},0,0,0,0,0,0,0]
[{"$f":"Translations!$A$391","v":"Transfer 4 (MM/DD/YYYY)"},"x",{"$nulls":3},0,0,{"$nulls":3},0,0,{"$nulls":3},0,0,{"$nulls":3},0,0,{"$nulls":3},0,0,{"$nulls":3},0,0,{"$nulls":3},0,0,{"$nulls":3},0,0,{"$nulls":3},0,0,{"$nulls":3},0,0,{"$nulls":3},0,0,{"$nulls":3},0,0,0,0,0,0,0]
[{"$f":"Translations!$A$392","v":"Transfer 5 (MM/DD/YYYY)"},"x",{"$nulls":3},0,0,{"$nulls":3},0,0,{"$nulls":3},0,0,{"$nulls":3},0,0,{"$nulls":3},0,0,{"$nulls":3},0,0,{"$nulls":3},0,0,{"$nulls":3},0,0,{"$nulls":3},0,0,{"$nulls":3},0,0,{"$nulls":3},0,0,{"$nulls":3},0,0,0,0,0,0,0]
[{"$f":"Translations!$A$377","v":"SSR 2: (SSR name)"},null,{"$f":"SUM(C37:C41)","v":0},{"$f":"SUM(D37:D41)","v":0},0,0,0,{"$f":"SUM(H37:H41)","v":0},{"$f":"SUM(I37:I41)","v":0},0,0,0,{"$f":"SUM(M37:M41)","v":0},{"$f":"SUM(N37:N41)","v":0},0,0,0,{"$f":"SUM(R37:R41)","v":0},{"$f":"SUM(S37:S41)","v":0},0,0,0,{"$f":"SUM(W37:W41)","v":0},{"$f":"SUM(X37:X41)","v":0},0,0,0,{"$f":"SUM(AB37:AB41)","v":0},{"$f":"SUM(AC37:AC41)","v":0},0,0,0,{"$f":"SUM(AG37:AG41)","v":0},{"$f":"SUM(AH37:AH41)","v":0},0,0,0,{"$f":"SUM(AL37:AL41)","v":0},{"$f":"SUM(AM37:AM41)","v":0},0,0,0,{"$f":"SUM(AQ37:AQ41)","v":0},{"$f":"SUM(AR37:AR41)","v":0},0,0,0,{"$f":"SUM(AV37:AV41)","v":0},{"$f":"SUM(AW37:AW41)","v":0},0,0,0,{"$f":"SUM(BA37:BA41)","v":0},{"$f":"SUM(BB37:BB41)","v":0},0,0,0,{"$f":"SUM(BF37:BF41)","v":0},{"$f":"SUM(BG37:BG41)","v":0},0,0,0,{"$f":"SUM(BK37:BK41)","v":0},{"$f":"SUM(BL37:BL41)","v":0},0,0,0]
[{"$f":"Translations!$A$388","v":"Transfer 1 (MM/DD/YYYY)"},"x",{"$nulls":4},{"$f":"+C37-E37+F37","v":0},{"$nulls":3},{"$f":"I37-J37","v":0},{"$f":"G37+H37-J37+K37","v":0},{"$nulls":3},{"$f":"N37-O37","v":0},{"$f":"L37+M37-O37+P37","v":0},{"$nulls":3},{"$f":"S37-T37","v":0},{"$f":"Q37+R37-T37+U37","v":0},{"$nulls":3},{"$f":"X37-Y37","v":0},{"$f":"V37+W37-Y37+Z37","v":0},{"$nulls":3},{"$f":"AC37-AD37","v":0},{"$f":"AA37+AB37-AD37+AE37","v":0},{"$nulls":3},{"$f":"AH37-AI37","v":0},{"$f":"AF37+AG37-AI37+AJ37","v":0},{"$nulls":3},{"$f":"AM37-AN37","v":0},{"$f":"AK37+AL37-AN37+AO37","v":0},{"$nulls":3},{"$f":"AR37-AS37","v":0},{"$f":"AP37+AQ37-AS37+AT37","v":0},{"$nulls":3},{"$f":"AW37-AX37","v":0},{"$f":"AU37+AV37-AX37+AY37","v":0},{"$nulls":3},{"$f":"BB37-BC37","v":0},{"$f":"AZ37+BA37-BC37+BD37","v":0},{"$nulls":3},{"$f":"BG37-BH37","v":0},{"$f":"BE37+BF37-BH37+BI37","v":0},{"$f":"C37+H37+M37+R37+W37+AB37+AG37+AL37+AQ37+AV37+BA37+BF37","v":0},{"$f":"D37+I37+N37+S37+X37+AC37+AH37+AM37+AR37+AW37+BB37+BG37","v":0},{"$f":"E37+J37+O37+T37+Y37+AD37+AI37+AN37+AS37+AX37+BC37+BH37","v":0},{"$f":"F37+K37+P37+U37+Z37+AE37+AJ37+AO37+AT37+AY37+BD37+BI37","v":0},{"$f":"BK37-BM37+BN37","v":0}]
[{"$f":"Translations!$A$389","v":"Transfer 2 (MM/DD/YYYY)"},"x",{"$nulls":3},{"$f":"D38-E38","v":0},{"$f":"+C38-E38+F38","v":0},{"$nulls":3},{"$f":"I38-J38","v":0},{"$f":"G38+H38-J38+K38","v":0},{"$nulls":3},{"$f":"N38-O38","v":0},{"$f":"L38+M38-O38+P38","v":0},{"$nulls":3},{"$f":"S38-T38","v":0},{"$f":"Q38+R38-T38+U38","v":0},{"$nulls":3},{"$f":"X38-Y38","v":0},{"$f":"V38+W38-Y38+Z38","v":0},{"$nulls":3},{"$f":"AC38-AD38","v":0},{"$f":"AA38+AB38-AD38+AE38","v":0},{"$nulls":3},{"$f":"AH38-AI38","v":0},{"$f":"AF38+AG38-AI38+AJ38","v":0},{"$nulls":3},{"$f":"AM38-AN38","v":0},{"$f":"AK38+AL38-AN38+AO38","v":0},{"$nulls":3},{"$f":"AR38-AS38","v":0},{"$f":"AP38+AQ38-AS38+AT38","v":0},{"$nulls":3},{"$f":"AW38-AX38","v":0},{"$f":"AU38+AV38-AX38+AY38","v":0},{"$nulls":3},{"$f":"BB38-BC38","v":0},{"$f":"AZ38+BA38-BC38+BD38","v":0},{"$nulls":3},{"$f":"BG38-BH38","v":0},{"$f":"BE38+BF38-BH38+BI38","v":0},{"$f":"C38+H38+M38+R38+W38+AB38+AG38+AL38+AQ38+AV38+BA38+BF38","v":0},{"$f":"D38+I38+N38+S38+X38+AC38+AH38+AM38+AR38+AW38+BB38+BG38","v":0},{"$f":"E38+J38+O38+T38+Y38+AD38+AI38+AN38+AS38+AX38+BC38+BH38","v":0},{"$f":"F38+K38+P38+U38+Z38+AE38+AJ38+AO38+AT38+AY38+BD38+BI38","v":0},{"$f":"BK38-BM38+BN38","v":0}]
[{"$f":"Translations!$A$390","v":"Transfer 3 (MM/DD/YYYY)"},"x",{"$nulls":3},0,0,{"$nulls":3},0,0,{"$nulls":3},0,0,{"$nulls":3},0,0,{"$nulls":3},0,0,{"$nulls":3},0,0,{"$nulls":3},0,0,{"$nulls":3},0,0,{"$nulls":3},0,0,{"$nulls":3},0,0,{"$nulls":3},0,0,{"$nulls":3},0,0,0,0,0,0,0]
[{"$f":"Translations!$A$391","v":"Transfer 4 (MM/DD/YYYY)"},"x",{"$nulls":3},0,0,{"$nulls":3},0,0,{"$nulls":3},0,0,{"$nulls":3},0,0,{"$nulls":3},0,0,{"$nulls":3},0,0,{"$nulls":3},0,0,{"$nulls":3},0,0,{"$nulls":3},0,0,{"$nulls":3},0,0,{"$nulls":3},0,0,{"$nulls":3},0,0,0,0,0,0,0]
[{"$f":"Translations!$A$392","v":"Transfer 5 (MM/DD/YYYY)"},"x",{"$nulls":3},0,0,{"$nulls":3},0,0,{"$nulls":3},0,0,{"$nulls":3},0,0,{"$nulls":3},0,0,{"$nulls":3},0,0,{"$nulls":3},0,0,{"$nulls":3},0,0,{"$nulls":3},0,0,{"$nulls":3},0,0,{"$nulls":3},0,0,{"$nulls":3},0,0,0,0,0,0,0]
[{"$f":"Translations!$A$378","v":"SSR 3: (SSR name)"},null,{"$f":"SUM(C43:C47)","v":0},{"$f":"SUM(D43:D47)","v":0},0,0,0,{"$f":"SUM(H43:H47)","v":0},{"$f":"SUM(I43:I47)","v":0},0,0,0,{"$f":"SUM(M43:M47)","v":0},{"$f":"SUM(N43:N47)","v":0},0,0,0,{"$f":"SUM(R43:R47)","v":0},{"$f":"SUM(S43:S47)","v":0},0,0,0,{"$f":"SUM(W43:W47)","v":0},{"$f":"SUM(X43:X47)","v":0},0,0,0,{"$f":"SUM(AB43:AB47)","v":0},{"$f":"SUM(AC43:AC47)","v":0},0,0,0,{"$f":"SUM(AG43:AG47)","v":0},{"$f":"SUM(AH43:AH47)","v":0},0,0,0,{"$f":"SUM(AL43:AL47)","v":0},{"$f":"SUM(AM43:AM47)","v":0},0,0,0,{"$f":"SUM(AQ43:AQ47)","v":0},{"$f":"SUM(AR43:AR47)","v":0},0,0,0,{"$f":"SUM(AV43:AV47)","v":0},{"$f":"SUM(AW43:AW47)","v":0},0,0,0,{"$f":"SUM(BA43:BA47)","v":0},{"$f":"SUM(BB43:BB47)","v":0},0,0,0,{"$f":"SUM(BF43:BF47)","v":0},{"$f":"SUM(BG43:BG47)","v":0},0,0,0,{"$f":"SUM(BK43:BK47)","v":0},{"$f":"SUM(BL43:BL47)","v":0},0,0,0]
[{"$f":"Translations!$A$388","v":"Transfer 1 (MM/DD/YYYY)"},"x",{"$nulls":4},{"$f":"+C43-E43+F43","v":0},{"$nulls":3},{"$f":"I43-J43","v":0},{"$f":"G43+H43-J43+K43","v":0},{"$nulls":3},{"$f":"N43-O43","v":0},{"$f":"L43+M43-O43+P43","v":0},{"$nulls":3},{"$f":"S43-T43","v":0},{"$f":"Q43+R43-T43+U43","v":0},{"$nulls":3},{"$f":"X43-Y43","v":0},{"$f":"V43+W43-Y43+Z43","v":0},{"$nulls":3},{"$f":"AC43-AD43","v":0},{"$f":"AA43+AB43-AD43+AE43","v":0},{"$nulls":3},{"$f":"AH43-AI43","v":0},{"$f":"AF43+AG43-AI43+AJ43","v":0},{"$nulls":3},{"$f":"AM43-AN43","v":0},{"$f":"AK43+AL43-AN43+AO43","v":0},{"$nulls":3},{"$f":"AR43-AS43","v":0},{"$f":"AP43+AQ43-AS43+AT43","v":0},{"$nulls":3},{"$f":"AW43-AX43","v":0},{"$f":"AU43+AV43-AX43+AY43","v":0},{"$nulls":3},{"$f":"BB43-BC43","v":0},{"$f":"AZ43+BA43-BC43+BD43","v":0},{"$nulls":3},{"$f":"BG43-BH43","v":0},{"$f":"BE43+BF43-BH43+BI43","v":0},{"$f":"C43+H43+M43+R43+W43+AB43+AG43+AL43+AQ43+AV43+BA43+BF43","v":0},{"$f":"D43+I43+N43+S43+X43+AC43+AH43+AM43+AR43+AW43+BB43+BG43","v":0},{"$f":"E43+J43+O43+T43+Y43+AD43+AI43+AN43+AS43+AX43+BC43+BH43","v":0},{"$f":"F43+K43+P43+U43+Z43+AE43+AJ43+AO43+AT43+AY43+BD43+BI43","v":0},{"$f":"BK43-BM43+BN43","v":0}]
[{"$f":"Translations!$A$389","v":"Transfer 2 (MM/DD/YYYY)"},"x",{"$nulls":3},{"$f":"D44-E44","v":0},{"$f":"+C44-E44+F44","v":0},{"$nulls":3},{"$f":"I44-J44","v":0},{"$f":"G44+H44-J44+K44","v":0},{"$nulls":3},{"$f":"N44-O44","v":0},{"$f":"L44+M44-O44+P44","v":0},{"$nulls":3},{"$f":"S44-T44","v":0},{"$f":"Q44+R44-T44+U44","v":0},{"$nulls":3},{"$f":"X44-Y44","v":0},{"$f":"V44+W44-Y44+Z44","v":0},{"$nulls":3},{"$f":"AC44-AD44","v":0},{"$f":"AA44+AB44-AD44+AE44","v":0},{"$nulls":3},{"$f":"AH44-AI44","v":0},{"$f":"AF44+AG44-AI44+AJ44","v":0},{"$nulls":3},{"$f":"AM44-AN44","v":0},{"$f":"AK44+AL44-AN44+AO44","v":0},{"$nulls":3},{"$f":"AR44-AS44","v":0},{"$f":"AP44+AQ44-AS44+AT44","v":0},{"$nulls":3},{"$f":"AW44-AX44","v":0},{"$f":"AU44+AV44-AX44+AY44","v":0},{"$nulls":3},{"$f":"BB44-BC44","v":0},{"$f":"AZ44+BA44-BC44+BD44","v":0},{"$nulls":3},{"$f":"BG44-BH44","v":0},{"$f":"BE44+BF44-BH44+BI44","v":0},{"$f":"C44+H44+M44+R44+W44+AB44+AG44+AL44+AQ44+AV44+BA44+BF44","v":0},{"$f":"D44+I44+N44+S44+X44+AC44+AH44+AM44+AR44+AW44+BB44+BG44","v":0},{"$f":"E44+J44+O44+T44+Y44+AD44+AI44+AN44+AS44+AX44+BC44+BH44","v":0},{"$f":"F44+K44+P44+U44+Z44+AE44+AJ44+AO44+AT44+AY44+BD44+BI44","v":0},{"$f":"BK44-BM44+BN44","v":0}]
[{"$f":"Translations!$A$390","v":"Transfer 3 (MM/DD/YYYY)"},"x",{"$nulls":3},0,0,{"$nulls":3},0,0,{"$nulls":3},0,0,{"$nulls":3},0,0,{"$nulls":3},0,0,{"$nulls":3},0,0,{"$nulls":3},0,0,{"$nulls":3},0,0,{"$nulls":3},0,0,{"$nulls":3},0,0,{"$nulls":3},0,0,{"$nulls":3},0,0,0,0,0,0,0]
[{"$f":"Translations!$A$391","v":"Transfer 4 (MM/DD/YYYY)"},"x",{"$nulls":3},0,0,{"$nulls":3},0,0,{"$nulls":3},0,0,{"$nulls":3},0,0,{"$nulls":3},0,0,{"$nulls":3},0,0,{"$nulls":3},0,0,{"$nulls":3},0,0,{"$nulls":3},0,0,{"$nulls":3},0,0,{"$nulls":3},0,0,{"$nulls":3},0,0,0,0,0,0,0]
[{"$f":"Translations!$A$392","v":"Transfer 5 (MM/DD/YYYY)"},"x",{"$nulls":3},0,0,{"$nulls":3},0,0,{"$nulls":3},0,0,{"$nulls":3},0,0,{"$nulls":3},0,0,{"$nulls":3},0,0,{"$nulls":3},0,0,{"$nulls":3},0,0,{"$nulls":3},0,0,{"$nulls":3},0,0,{"$nulls":3},0,0,{"$nulls":3},0,0,0,0,0,0,0]
[{"$f":"Translations!$A$379","v":"SSR 4: (SSR name)"},null,{"$f":"SUM(C49:C53)","v":0},{"$f":"SUM(D49:D53)","v":0},0,0,0,{"$f":"SUM(H49:H53)","v":0},{"$f":"SUM(I49:I53)","v":0},0,0,0,{"$f":"SUM(M49:M53)","v":0},{"$f":"SUM(N49:N53)","v":0},0,0,0,{"$f":"SUM(R49:R53)","v":0},{"$f":"SUM(S49:S53)","v":0},0,0,0,{"$f":"SUM(W49:W53)","v":0},{"$f":"SUM(X49:X53)","v":0},0,0,0,{"$f":"SUM(AB49:AB53)","v":0},{"$f":"SUM(AC49:AC53)","v":0},0,0,0,{"$f":"SUM(AG49:AG53)","v":0},{"$f":"SUM(AH49:AH53)","v":0},0,0,0,{"$f":"SUM(AL49:AL53)","v":0},{"$f":"SUM(AM49:AM53)","v":0},0,0,0,{"$f":"SUM(AQ49:AQ53)","v":0},{"$f":"SUM(AR49:AR53)","v":0},0,0,0,{"$f":"SUM(AV49:AV53)","v":0},{"$f":"SUM(AW49:AW53)","v":0},0,0,0,{"$f":"SUM(BA49:BA53)","v":0},{"$f":"SUM(BB49:BB53)","v":0},0,0,0,{"$f":"SUM(BF49:BF53)","v":0},{"$f":"SUM(BG49:BG53)","v":0},0,0,0,{"$f":"SUM(BK49:BK53)","v":0},{"$f":"SUM(BL49:BL53)","v":0},0,0,0]
[{"$f":"Translations!$A$388","v":"Transfer 1 (MM/DD/YYYY)"},"x",{"$nulls":4},{"$f":"+C49-E49+F49","v":0},{"$nulls":3},{"$f":"I49-J49","v":0},{"$f":"G49+H49-J49+K49","v":0},{"$nulls":3},{"$f":"N49-O49","v":0},{"$f":"L49+M49-O49+P49","v":0},{"$nulls":3},{"$f":"S49-T49","v":0},{"$f":"Q49+R49-T49+U49","v":0},{"$nulls":3},{"$f":"X49-Y49","v":0},{"$f":"V49+W49-Y49+Z49","v":0},{"$nulls":3},{"$f":"AC49-AD49","v":0},{"$f":"AA49+AB49-AD49+AE49","v":0},{"$nulls":3},{"$f":"AH49-AI49","v":0},{"$f":"AF49+AG49-AI49+AJ49","v":0},{"$nulls":3},{"$f":"AM49-AN49","v":0},{"$f":"AK49+AL49-AN49+AO49","v":0},{"$nulls":3},{"$f":"AR49-AS49","v":0},{"$f":"AP49+AQ49-AS49+AT49","v":0},{"$nulls":3},{"$f":"AW49-AX49","v":0},{"$f":"AU49+AV49-AX49+AY49","v":0},{"$nulls":3},{"$f":"BB49-BC49","v":0},{"$f":"AZ49+BA49-BC49+BD49","v":0},{"$nulls":3},{"$f":"BG49-BH49","v":0},{"$f":"BE49+BF49-BH49+BI49","v":0},{"$f":"C49+H49+M49+R49+W49+AB49+AG49+AL49+AQ49+AV49+BA49+BF49","v":0},{"$f":"D49+I49+N49+S49+X49+AC49+AH49+AM49+AR49+AW49+BB49+BG49","v":0},{"$f":"E49+J49+O49+T49+Y49+AD49+AI49+AN49+AS49+AX49+BC49+BH49","v":0},{"$f":"F49+K49+P49+U49+Z49+AE49+AJ49+AO49+AT49+AY49+BD49+BI49","v":0},{"$f":"BK49-BM49+BN49","v":0}]
[{"$f":"Translations!$A$389","v":"Transfer 2 (MM/DD/YYYY)"},"x",{"$nulls":3},{"$f":"D50-E50","v":0},{"$f":"+C50-E50+F50","v":0},{"$nulls":3},{"$f":"I50-J50","v":0},{"$f":"G50+H50-J50+K50","v":0},{"$nulls":3},{"$f":"N50-O50","v":0},{"$f":"L50+M50-O50+P50","v":0},{"$nulls":3},{"$f":"S50-T50","v":0},{"$f":"Q50+R50-T50+U50","v":0},{"$nulls":3},{"$f":"X50-Y50","v":0},{"$f":"V50+W50-Y50+Z50","v":0},{"$nulls":3},{"$f":"AC50-AD50","v":0},{"$f":"AA50+AB50-AD50+AE50","v":0},{"$nulls":3},{"$f":"AH50-AI50","v":0},{"$f":"AF50+AG50-AI50+AJ50","v":0},{"$nulls":3},{"$f":"AM50-AN50","v":0},{"$f":"AK50+AL50-AN50+AO50","v":0},{"$nulls":3},{"$f":"AR50-AS50","v":0},{"$f":"AP50+AQ50-AS50+AT50","v":0},{"$nulls":3},{"$f":"AW50-AX50","v":0},{"$f":"AU50+AV50-AX50+AY50","v":0},{"$nulls":3},{"$f":"BB50-BC50","v":0},{"$f":"AZ50+BA50-BC50+BD50","v":0},{"$nulls":3},{"$f":"BG50-BH50","v":0},{"$f":"BE50+BF50-BH50+BI50","v":0},{"$f":"C50+H50+M50+R50+W50+AB50+AG50+AL50+AQ50+AV50+BA50+BF50","v":0},{"$f":"D50+I50+N50+S50+X50+AC50+AH50+AM50+AR50+AW50+BB50+BG50","v":0},{"$f":"E50+J50+O50+T50+Y50+AD50+AI50+AN50+AS50+AX50+BC50+BH50","v":0},{"$f":"F50+K50+P50+U50+Z50+AE50+AJ50+AO50+AT50+AY50+BD50+BI50","v":0},{"$f":"BK50-BM50+BN50","v":0}]
[{"$f":"Translations!$A$390","v":"Transfer 3 (MM/DD/YYYY)"},"x",{"$nulls":3},0,0,{"$nulls":3},0,0,{"$nulls":3},0,0,{"$nulls":3},0,0,{"$nulls":3},0,0,{"$nulls":3},0,0,{"$nulls":3},0,0,{"$nulls":3},0,0,{"$nulls":3},0,0,{"$nulls":3},0,0,{"$nulls":3},0,0,{"$nulls":3},0,0,0,0,0,0,0]
[{"$f":"Translations!$A$391","v":"Transfer 4 (MM/DD/YYYY)"},"x",{"$nulls":3},0,0,{"$nulls":3},0,0,{"$nulls":3},0,0,{"$nulls":3},0,0,{"$nulls":3},0,0,{"$nulls":3},0,0,{"$nulls":3},0,0,{"$nulls":3},0,0,{"$nulls":3},0,0,{"$nulls":3},0,0,{"$nulls":3},0,0,{"$nulls":3},0,0,0,0,0,0,0]
[{"$f":"Translations!$A$392","v":"Transfer 5 (MM/DD/YYYY)"},"x",{"$nulls":3},0,0,{"$nulls":3},0,0,{"$nulls":3},0,0,{"$nulls":3},0,0,{"$nulls":3},0,0,{"$nulls":3},0,0,{"$nulls":3},0,0,{"$nulls":3},0,0,{"$nulls":3},0,0,{"$nulls":3},0,0,{"$nulls":3},0,0,{"$nulls":3},0,0,0,0,0,0,0]
[{"$f":"Translations!$A$380","v":"SSR 5: (SSR name)"},null,{"$f":"SUM(C55:C59)","v":0},{"$f":"SUM(D55:D59)","v":0},0,0,0,{"$f":"SUM(H55:H59)","v":0},{"$f":"SUM(I55:I59)","v":0},0,0,0,{"$f":"SUM(M55:M59)","v":0},{"$f":"SUM(N55:N59)","v":0},0,0,0,{"$f":"SUM(R55:R59)","v":0},{"$f":"SUM(S55:S59)","v":0},0,0,0,{"$f":"SUM(W55:W59)","v":0},{"$f":"SUM(X55:X59)","v":0},0,0,0,{"$f":"SUM(AB55:AB59)","v":0},{"$f":"SUM(AC55:AC59)","v":0},0,0,0,{"$f":"SUM(AG55:AG59)","v":0},{"$f":"SUM(AH55:AH59)","v":0},0,0,0,{"$f":"SUM(AL55:AL59)","v":0},{"$f":"SUM(AM55:AM59)","v":0},0,0,0,{"$f":"SUM(AQ55:AQ59)","v":0},{"$f":"SUM(AR55:AR59)","v":0},0,0,0,{"$f":"SUM(AV55:AV59)","v":0},{"$f":"SUM(AW55:AW59)","v":0},0,0,0,{"$f":"SUM(BA55:BA59)","v":0},{"$f":"SUM(BB55:BB59)","v":0},0,0,0,{"$f":"SUM(BF55:BF59)","v":0},{"$f":"SUM(BG55:BG59)","v":0},0,0,0,{"$f":"SUM(BK55:BK59)","v":0},{"$f":"SUM(BL55:BL59)","v":0},0,0,0]
[{"$f":"Translations!$A$388","v":"Transfer 1 (MM/DD/YYYY)"},"x",{"$nulls":4},{"$f":"+C55-E55+F55","v":0},{"$nulls":3},{"$f":"I55-J55","v":0},{"$f":"G55+H55-J55+K55","v":0},{"$nulls":3},{"$f":"N55-O55","v":0},{"$f":"L55+M55-O55+P55","v":0},{"$nulls":3},{"$f":"S55-T55","v":0},{"$f":"Q55+R55-T55+U55","v":0},{"$nulls":3},{"$f":"X55-Y55","v":0},{"$f":"V55+W55-Y55+Z55","v":0},{"$nulls":3},{"$f":"AC55-AD55","v":0},{"$f":"AA55+AB55-AD55+AE55","v":0},{"$nulls":3},{"$f":"AH55-AI55","v":0},{"$f":"AF55+AG55-AI55+AJ55","v":0},{"$nulls":3},{"$f":"AM55-AN55","v":0},{"$f":"AK55+AL55-AN55+AO55","v":0},{"$nulls":3},{"$f":"AR55-AS55","v":0},{"$f":"AP55+AQ55-AS55+AT55","v":0},{"$nulls":3},{"$f":"AW55-AX55","v":0},{"$f":"AU55+AV55-AX55+AY55","v":0},{"$nulls":3},{"$f":"BB55-BC55","v":0},{"$f":"AZ55+BA55-BC55+BD55","v":0},{"$nulls":3},{"$f":"BG55-BH55","v":0},{"$f":"BE55+BF55-BH55+BI55","v":0},{"$f":"C55+H55+M55+R55+W55+AB55+AG55+AL55+AQ55+AV55+BA55+BF55","v":0},{"$f":"D55+I55+N55+S55+X55+AC55+AH55+AM55+AR55+AW55+BB55+BG55","v":0},{"$f":"E55+J55+O55+T55+Y55+AD55+AI55+AN55+AS55+AX55+BC55+BH55","v":0},{"$f":"F55+K55+P55+U55+Z55+AE55+AJ55+AO55+AT55+AY55+BD55+BI55","v":0},{"$f":"BK55-BM55+BN55","v":0}]
[{"$f":"Translations!$A$389","v":"Transfer 2 (MM/DD/YYYY)"},"x",{"$nulls":3},{"$f":"D56-E56","v":0},{"$f":"+C56-E56+F56","v":0},{"$nulls":3},{"$f":"I56-J56","v":0},{"$f":"G56+H56-J56+K56","v":0},{"$nulls":3},{"$f":"N56-O56","v":0},{"$f":"L56+M56-O56+P56","v":0},{"$nulls":3},{"$f":"S56-T56","v":0},{"$f":"Q56+R56-T56+U56","v":0},{"$nulls":3},{"$f":"X56-Y56","v":0},{"$f":"V56+W56-Y56+Z56","v":0},{"$nulls":3},{"$f":"AC56-AD56","v":0},{"$f":"AA56+AB56-AD56+AE56","v":0},{"$nulls":3},{"$f":"AH56-AI56","v":0},{"$f":"AF56+AG56-AI56+AJ56","v":0},{"$nulls":3},{"$f":"AM56-AN56","v":0},{"$f":"AK56+AL56-AN56+AO56","v":0},{"$nulls":3},{"$f":"AR56-AS56","v":0},{"$f":"AP56+AQ56-AS56+AT56","v":0},{"$nulls":3},{"$f":"AW56-AX56","v":0},{"$f":"AU56+AV56-AX56+AY56","v":0},{"$nulls":3},{"$f":"BB56-BC56","v":0},{"$f":"AZ56+BA56-BC56+BD56","v":0},{"$nulls":3},{"$f":"BG56-BH56","v":0},{"$f":"BE56+BF56-BH56+BI56","v":0},{"$f":"C56+H56+M56+R56+W56+AB56+AG56+AL56+AQ56+AV56+BA56+BF56","v":0},{"$f":"D56+I56+N56+S56+X56+AC56+AH56+AM56+AR56+AW56+BB56+BG56","v":0},{"$f":"E56+J56+O56+T56+Y56+AD56+AI56+AN56+AS56+AX56+BC56+BH56","v":0},{"$f":"F56+K56+P56+U56+Z56+AE56+AJ56+AO56+AT56+AY56+BD56+BI56","v":0},{"$f":"BK56-BM56+BN56","v":0}]
[{"$f":"Translations!$A$390","v":"Transfer 3 (MM/DD/YYYY)"},"x",{"$nulls":3},0,0,{"$nulls":3},0,0,{"$nulls":3},0,0,{"$nulls":3},0,0,{"$nulls":3},0,0,{"$nulls":3},0,0,{"$nulls":3},0,0,{"$nulls":3},0,0,{"$nulls":3},0,0,{"$nulls":3},0,0,{"$nulls":3},0,0,{"$nulls":3},0,0,0,0,0,0,0]
[{"$f":"Translations!$A$391","v":"Transfer 4 (MM/DD/YYYY)"},"x",{"$nulls":3},0,0,{"$nulls":3},0,0,{"$nulls":3},0,0,{"$nulls":3},0,0,{"$nulls":3},0,0,{"$nulls":3},0,0,{"$nulls":3},0,0,{"$nulls":3},0,0,{"$nulls":3},0,0,{"$nulls":3},0,0,{"$nulls":3},0,0,{"$nulls":3},0,0,0,0,0,0,0]
[{"$f":"Translations!$A$392","v":"Transfer 5 (MM/DD/YYYY)"},"x",{"$nulls":3},0,0,{"$nulls":3},0,0,{"$nulls":3},0,0,{"$nulls":3},0,0,{"$nulls":3},0,0,{"$nulls":3},0,0,{"$nulls":3},0,0,{"$nulls":3},0,0,{"$nulls":3},0,0,{"$nulls":3},0,0,{"$nulls":3},0,0,{"$nulls":3},0,0,0,0,0,0,0]
[{"$f":"Translations!$A$381","v":"SSR 6: (SSR name)"},null,{"$f":"SUM(C61:C65)","v":0},{"$f":"SUM(D61:D65)","v":0},0,0,0,{"$f":"SUM(H61:H65)","v":0},{"$f":"SUM(I61:I65)","v":0},0,0,0,{"$f":"SUM(M61:M65)","v":0},{"$f":"SUM(N61:N65)","v":0},0,0,0,{"$f":"SUM(R61:R65)","v":0},{"$f":"SUM(S61:S65)","v":0},0,0,0,{"$f":"SUM(W61:W65)","v":0},{"$f":"SUM(X61:X65)","v":0},0,0,0,{"$f":"SUM(AB61:AB65)","v":0},{"$f":"SUM(AC61:AC65)","v":0},0,0,0,{"$f":"SUM(AG61:AG65)","v":0},{"$f":"SUM(AH61:AH65)","v":0},0,0,0,{"$f":"SUM(AL61:AL65)","v":0},{"$f":"SUM(AM61:AM65)","v":0},0,0,0,{"$f":"SUM(AQ61:AQ65)","v":0},{"$f":"SUM(AR61:AR65)","v":0},0,0,0,{"$f":"SUM(AV61:AV65)","v":0},{"$f":"SUM(AW61:AW65)","v":0},0,0,0,{"$f":"SUM(BA61:BA65)","v":0},{"$f":"SUM(BB61:BB65)","v":0},0,0,0,{"$f":"SUM(BF61:BF65)","v":0},{"$f":"SUM(BG61:BG65)","v":0},0,0,0,{"$f":"SUM(BK61:BK65)","v":0},{"$f":"SUM(BL61:BL65)","v":0},0,0,0]
[{"$f":"Translations!$A$388","v":"Transfer 1 (MM/DD/YYYY)"},"x",{"$nulls":4},{"$f":"+C61-E61+F61","v":0},{"$nulls":3},{"$f":"I61-J61","v":0},{"$f":"G61+H61-J61+K61","v":0},{"$nulls":3},{"$f":"N61-O61","v":0},{"$f":"L61+M61-O61+P61","v":0},{"$nulls":3},{"$f":"S61-T61","v":0},{"$f":"Q61+R61-T61+U61","v":0},{"$nulls":3},{"$f":"X61-Y61","v":0},{"$f":"V61+W61-Y61+Z61","v":0},{"$nulls":3},{"$f":"AC61-AD61","v":0},{"$f":"AA61+AB61-AD61+AE61","v":0},{"$nulls":3},{"$f":"AH61-AI61","v":0},{"$f":"AF61+AG61-AI61+AJ61","v":0},{"$nulls":3},{"$f":"AM61-AN61","v":0},{"$f":"AK61+AL61-AN61+AO61","v":0},{"$nulls":3},{"$f":"AR61-AS61","v":0},{"$f":"AP61+AQ61-AS61+AT61","v":0},{"$nulls":3},{"$f":"AW61-AX61","v":0},{"$f":"AU61+AV61-AX61+AY61","v":0},{"$nulls":3},{"$f":"BB61-BC61","v":0},{"$f":"AZ61+BA61-BC61+BD61","v":0},{"$nulls":3},{"$f":"BG61-BH61","v":0},{"$f":"BE61+BF61-BH61+BI61","v":0},{"$f":"C61+H61+M61+R61+W61+AB61+AG61+AL61+AQ61+AV61+BA61+BF61","v":0},{"$f":"D61+I61+N61+S61+X61+AC61+AH61+AM61+AR61+AW61+BB61+BG61","v":0},{"$f":"E61+J61+O61+T61+Y61+AD61+AI61+AN61+AS61+AX61+BC61+BH61","v":0},{"$f":"F61+K61+P61+U61+Z61+AE61+AJ61+AO61+AT61+AY61+BD61+BI61","v":0},{"$f":"BK61-BM61+BN61","v":0}]
[{"$f":"Translations!$A$389","v":"Transfer 2 (MM/DD/YYYY)"},"x",{"$nulls":3},{"$f":"D62-E62","v":0},{"$f":"+C62-E62+F62","v":0},{"$nulls":3},{"$f":"I62-J62","v":0},{"$f":"G62+H62-J62+K62","v":0},{"$nulls":3},{"$f":"N62-O62","v":0},{"$f":"L62+M62-O62+P62","v":0},{"$nulls":3},{"$f":"S62-T62","v":0},{"$f":"Q62+R62-T62+U62","v":0},{"$nulls":3},{"$f":"X62-Y62","v":0},{"$f":"V62+W62-Y62+Z62","v":0},{"$nulls":3},{"$f":"AC62-AD62","v":0},{"$f":"AA62+AB62-AD62+AE62","v":0},{"$nulls":3},{"$f":"AH62-AI62","v":0},{"$f":"AF62+AG62-AI62+AJ62","v":0},{"$nulls":3},{"$f":"AM62-AN62","v":0},{"$f":"AK62+AL62-AN62+AO62","v":0},{"$nulls":3},{"$f":"AR62-AS62","v":0},{"$f":"AP62+AQ62-AS62+AT62","v":0},{"$nulls":3},{"$f":"AW62-AX62","v":0},{"$f":"AU62+AV62-AX62+AY62","v":0},{"$nulls":3},{"$f":"BB62-BC62","v":0},{"$f":"AZ62+BA62-BC62+BD62","v":0},{"$nulls":3},{"$f":"BG62-BH62","v":0},{"$f":"BE62+BF62-BH62+BI62","v":0},{"$f":"C62+H62+M62+R62+W62+AB62+AG62+AL62+AQ62+AV62+BA62+BF62","v":0},{"$f":"D62+I62+N62+S62+X62+AC62+AH62+AM62+AR62+AW62+BB62+BG62","v":0},{"$f":"E62+J62+O62+T62+Y62+AD62+AI62+AN62+AS62+AX62+BC62+BH62","v":0},{"$f":"F62+K62+P62+U62+Z62+AE62+AJ62+AO62+AT62+AY62+BD62+BI62","v":0},{"$f":"BK62-BM62+BN62","v":0}]
[{"$f":"Translations!$A$390","v":"Transfer 3 (MM/DD/YYYY)"},"x",{"$nulls":3},0,0,{"$nulls":3},0,0,{"$nulls":3},0,0,{"$nulls":3},0,0,{"$nulls":3},0,0,{"$nulls":3},0,0,{"$nulls":3},0,0,{"$nulls":3},0,0,{"$nulls":3},0,0,{"$nulls":3},0,0,{"$nulls":3},0,0,{"$nulls":3},0,0,0,0,0,0,0]
[{"$f":"Translations!$A$391","v":"Transfer 4 (MM/DD/YYYY)"},"x",{"$nulls":3},0,0,{"$nulls":3},0,0,{"$nulls":3},0,0,{"$nulls":3},0,0,{"$nulls":3},0,0,{"$nulls":3},0,0,{"$nulls":3},0,0,{"$nulls":3},0,0,{"$nulls":3},0,0,{"$nulls":3},0,0,{"$nulls":3},0,0,{"$nulls":3},0,0,0,0,0,0,0]
[{"$f":"Translations!$A$392","v":"Transfer 5 (MM/DD/YYYY)"},"x",{"$nulls":3},0,0,{"$nulls":3},0,0,{"$nulls":3},0,0,{"$nulls":3},0,0,{"$nulls":3},0,0,{"$nulls":3},0,0,{"$nulls":3},0,0,{"$nulls":3},0,0,{"$nulls":3},0,0,{"$nulls":3},0,0,{"$nulls":3},0,0,{"$nulls":3},0,0,0,0,0,0,0]
[{"$f":"Translations!$A$382","v":"SSR 7: (SSR name)"},null,{"$f":"SUM(C67:C71)","v":0},{"$f":"SUM(D67:D71)","v":0},0,0,0,{"$f":"SUM(H67:H71)","v":0},{"$f":"SUM(I67:I71)","v":0},0,0,0,{"$f":"SUM(M67:M71)","v":0},{"$f":"SUM(N67:N71)","v":0},0,0,0,{"$f":"SUM(R67:R71)","v":0},{"$f":"SUM(S67:S71)","v":0},0,0,0,{"$f":"SUM(W67:W71)","v":0},{"$f":"SUM(X67:X71)","v":0},0,0,0,{"$f":"SUM(AB67:AB71)","v":0},{"$f":"SUM(AC67:AC71)","v":0},0,0,0,{"$f":"SUM(AG67:AG71)","v":0},{"$f":"SUM(AH67:AH71)","v":0},0,0,0,{"$f":"SUM(AL67:AL71)","v":0},{"$f":"SUM(AM67:AM71)","v":0},0,0,0,{"$f":"SUM(AQ67:AQ71)","v":0},{"$f":"SUM(AR67:AR71)","v":0},0,0,0,{"$f":"SUM(AV67:AV71)","v":0},{"$f":"SUM(AW67:AW71)","v":0},0,0,0,{"$f":"SUM(BA67:BA71)","v":0},{"$f":"SUM(BB67:BB71)","v":0},0,0,0,{"$f":"SUM(BF67:BF71)","v":0},{"$f":"SUM(BG67:BG71)","v":0},0,0,0,{"$f":"SUM(BK67:BK71)","v":0},{"$f":"SUM(BL67:BL71)","v":0},0,0,0]
[{"$f":"Translations!$A$388","v":"Transfer 1 (MM/DD/YYYY)"},"x",{"$nulls":4},{"$f":"+C67-E67+F67","v":0},{"$nulls":3},{"$f":"I67-J67","v":0},{"$f":"G67+H67-J67+K67","v":0},{"$nulls":3},{"$f":"N67-O67","v":0},{"$f":"L67+M67-O67+P67","v":0},{"$nulls":3},{"$f":"S67-T67","v":0},{"$f":"Q67+R67-T67+U67","v":0},{"$nulls":3},{"$f":"X67-Y67","v":0},{"$f":"V67+W67-Y67+Z67","v":0},{"$nulls":3},{"$f":"AC67-AD67","v":0},{"$f":"AA67+AB67-AD67+AE67","v":0},{"$nulls":3},{"$f":"AH67-AI67","v":0},{"$f":"AF67+AG67-AI67+AJ67","v":0},{"$nulls":3},{"$f":"AM67-AN67","v":0},{"$f":"AK67+AL67-AN67+AO67","v":0},{"$nulls":3},{"$f":"AR67-AS67","v":0},{"$f":"AP67+AQ67-AS67+AT67","v":0},{"$nulls":3},{"$f":"AW67-AX67","v":0},{"$f":"AU67+AV67-AX67+AY67","v":0},{"$nulls":3},{"$f":"BB67-BC67","v":0},{"$f":"AZ67+BA67-BC67+BD67","v":0},{"$nulls":3},{"$f":"BG67-BH67","v":0},{"$f":"BE67+BF67-BH67+BI67","v":0},{"$f":"C67+H67+M67+R67+W67+AB67+AG67+AL67+AQ67+AV67+BA67+BF67","v":0},{"$f":"D67+I67+N67+S67+X67+AC67+AH67+AM67+AR67+AW67+BB67+BG67","v":0},{"$f":"E67+J67+O67+T67+Y67+AD67+AI67+AN67+AS67+AX67+BC67+BH67","v":0},{"$f":"F67+K67+P67+U67+Z67+AE67+AJ67+AO67+AT67+AY67+BD67+BI67","v":0},{"$f":"BK67-BM67+BN67","v":0}]
[{"$f":"Translations!$A$389","v":"Transfer 2 (MM/DD/YYYY)"},"x",{"$nulls":3},{"$f":"D68-E68","v":0},{"$f":"+C68-E68+F68","v":0},{"$nulls":3},{"$f":"I68-J68","v":0},{"$f":"G68+H68-J68+K68","v":0},{"$nulls":3},{"$f":"N68-O68","v":0},{"$f":"L68+M68-O68+P68","v":0},{"$nulls":3},{"$f":"S68-T68","v":0},{"$f":"Q68+R68-T68+U68","v":0},{"$nulls":3},{"$f":"X68-Y68","v":0},{"$f":"V68+W68-Y68+Z68","v":0},{"$nulls":3},{"$f":"AC68-AD68","v":0},{"$f":"AA68+AB68-AD68+AE68","v":0},{"$nulls":3},{"$f":"AH68-AI68","v":0},{"$f":"AF68+AG68-AI68+AJ68","v":0},{"$nulls":3},{"$f":"AM68-AN68","v":0},{"$f":"AK68+AL68-AN68+AO68","v":0},{"$nulls":3},{"$f":"AR68-AS68","v":0},{"$f":"AP68+AQ68-AS68+AT68","v":0},{"$nulls":3},{"$f":"AW68-AX68","v":0},{"$f":"AU68+AV68-AX68+AY68","v":0},{"$nulls":3},{"$f":"BB68-BC68","v":0},{"$f":"AZ68+BA68-BC68+BD68","v":0},{"$nulls":3},{"$f":"BG68-BH68","v":0},{"$f":"BE68+BF68-BH68+BI68","v":0},{"$f":"C68+H68+M68+R68+W68+AB68+AG68+AL68+AQ68+AV68+BA68+BF68","v":0},{"$f":"D68+I68+N68+S68+X68+AC68+AH68+AM68+AR68+AW68+BB68+BG68","v":0},{"$f":"E68+J68+O68+T68+Y68+AD68+AI68+AN68+AS68+AX68+BC68+BH68","v":0},{"$f":"F68+K68+P68+U68+Z68+AE68+AJ68+AO68+AT68+AY68+BD68+BI68","v":0},{"$f":"BK68-BM68+BN68","v":0}]
[{"$f":"Translations!$A$390","v":"Transfer 3 (MM/DD/YYYY)"},"x",{"$nulls":3},0,0,{"$nulls":3},0,0,{"$nulls":3},0,0,{"$nulls":3},0,0,{"$nulls":3},0,0,{"$nulls":3},0,0,{"$nulls":3},0,0,{"$nulls":3},0,0,{"$nulls":3},0,0,{"$nulls":3},0,0,{"$nulls":3},0,0,{"$nulls":3},0,0,0,0,0,0,0]
[{"$f":"Translations!$A$391","v":"Transfer 4 (MM/DD/YYYY)"},"x",{"$nulls":3},0,0,{"$nulls":3},0,0,{"$nulls":3},0,0,{"$nulls":3},0,0,{"$nulls":3},0,0,{"$nulls":3},0,0,{"$nulls":3},0,0,{"$nulls":3},0,0,{"$nulls":3},0,0,{"$nulls":3},0,0,{"$nulls":3},0,0,{"$nulls":3},0,0,0,0,0,0,0]
[{"$f":"Translations!$A$392","v":"Transfer 5 (MM/DD/YYYY)"},"x",{"$nulls":3},0,0,{"$nulls":3},0,0,{"$nulls":3},0,0,{"$nulls":3},0,0,{"$nulls":3},0,0,{"$nulls":3},0,0,{"$nulls":3},0,0,{"$nulls":3},0,0,{"$nulls":3},0,0,{"$nulls":3},0,0,{"$nulls":3},0,0,{"$nulls":3},0,0,0,0,0,0,0]
[{"$f":"Translations!$A$383","v":"SSR 8: (SSR name)"},null,{"$f":"SUM(C73:C77)","v":0},{"$f":"SUM(D73:D77)","v":0},0,0,0,{"$f":"SUM(H73:H77)","v":0},{"$f":"SUM(I73:I77)","v":0},0,0,0,{"$f":"SUM(M73:M77)","v":0},{"$f":"SUM(N73:N77)","v":0},0,0,0,{"$f":"SUM(R73:R77)","v":0},{"$f":"SUM(S73:S77)","v":0},0,0,0,{"$f":"SUM(W73:W77)","v":0},{"$f":"SUM(X73:X77)","v":0},0,0,0,{"$f":"SUM(AB73:AB77)","v":0},{"$f":"SUM(AC73:AC77)","v":0},0,0,0,{"$f":"SUM(AG73:AG77)","v":0},{"$f":"SUM(AH73:AH77)","v":0},0,0,0,{"$f":"SUM(AL73:AL77)","v":0},{"$f":"SUM(AM73:AM77)","v":0},0,0,0,{"$f":"SUM(AQ73:AQ77)","v":0},{"$f":"SUM(AR73:AR77)","v":0},0,0,0,{"$f":"SUM(AV73:AV77)","v":0},{"$f":"SUM(AW73:AW77)","v":0},0,0,0,{"$f":"SUM(BA73:BA77)","v":0},{"$f":"SUM(BB73:BB77)","v":0},0,0,0,{"$f":"SUM(BF73:BF77)","v":0},{"$f":"SUM(BG73:BG77)","v":0},0,0,0,{"$f":"SUM(BK73:BK77)","v":0},{"$f":"SUM(BL73:BL77)","v":0},0,0,0]
[{"$f":"Translations!$A$388","v":"Transfer 1 (MM/DD/YYYY)"},"x",{"$nulls":4},{"$f":"+C73-E73+F73","v":0},{"$nulls":3},{"$f":"I73-J73","v":0},{"$f":"G73+H73-J73+K73","v":0},{"$nulls":3},{"$f":"N73-O73","v":0},{"$f":"L73+M73-O73+P73","v":0},{"$nulls":3},{"$f":"S73-T73","v":0},{"$f":"Q73+R73-T73+U73","v":0},{"$nulls":3},{"$f":"X73-Y73","v":0},{"$f":"V73+W73-Y73+Z73","v":0},{"$nulls":3},{"$f":"AC73-AD73","v":0},{"$f":"AA73+AB73-AD73+AE73","v":0},{"$nulls":3},{"$f":"AH73-AI73","v":0},{"$f":"AF73+AG73-AI73+AJ73","v":0},{"$nulls":3},{"$f":"AM73-AN73","v":0},{"$f":"AK73+AL73-AN73+AO73","v":0},{"$nulls":3},{"$f":"AR73-AS73","v":0},{"$f":"AP73+AQ73-AS73+AT73","v":0},{"$nulls":3},{"$f":"AW73-AX73","v":0},{"$f":"AU73+AV73-AX73+AY73","v":0},{"$nulls":3},{"$f":"BB73-BC73","v":0},{"$f":"AZ73+BA73-BC73+BD73","v":0},{"$nulls":3},{"$f":"BG73-BH73","v":0},{"$f":"BE73+BF73-BH73+BI73","v":0},{"$f":"C73+H73+M73+R73+W73+AB73+AG73+AL73+AQ73+AV73+BA73+BF73","v":0},{"$f":"D73+I73+N73+S73+X73+AC73+AH73+AM73+AR73+AW73+BB73+BG73","v":0},{"$f":"E73+J73+O73+T73+Y73+AD73+AI73+AN73+AS73+AX73+BC73+BH73","v":0},{"$f":"F73+K73+P73+U73+Z73+AE73+AJ73+AO73+AT73+AY73+BD73+BI73","v":0},{"$f":"BK73-BM73+BN73","v":0}]
[{"$f":"Translations!$A$389","v":"Transfer 2 (MM/DD/YYYY)"},"x",{"$nulls":3},{"$f":"D74-E74","v":0},{"$f":"+C74-E74+F74","v":0},{"$nulls":3},{"$f":"I74-J74","v":0},{"$f":"G74+H74-J74+K74","v":0},{"$nulls":3},{"$f":"N74-O74","v":0},{"$f":"L74+M74-O74+P74","v":0},{"$nulls":3},{"$f":"S74-T74","v":0},{"$f":"Q74+R74-T74+U74","v":0},{"$nulls":3},{"$f":"X74-Y74","v":0},{"$f":"V74+W74-Y74+Z74","v":0},{"$nulls":3},{"$f":"AC74-AD74","v":0},{"$f":"AA74+AB74-AD74+AE74","v":0},{"$nulls":3},{"$f":"AH74-AI74","v":0},{"$f":"AF74+AG74-AI74+AJ74","v":0},{"$nulls":3},{"$f":"AM74-AN74","v":0},{"$f":"AK74+AL74-AN74+AO74","v":0},{"$nulls":3},{"$f":"AR74-AS74","v":0},{"$f":"AP74+AQ74-AS74+AT74","v":0},{"$nulls":3},{"$f":"AW74-AX74","v":0},{"$f":"AU74+AV74-AX74+AY74","v":0},{"$nulls":3},{"$f":"BB74-BC74","v":0},{"$f":"AZ74+BA74-BC74+BD74","v":0},{"$nulls":3},{"$f":"BG74-BH74","v":0},{"$f":"BE74+BF74-BH74+BI74","v":0},{"$f":"C74+H74+M74+R74+W74+AB74+AG74+AL74+AQ74+AV74+BA74+BF74","v":0},{"$f":"D74+I74+N74+S74+X74+AC74+AH74+AM74+AR74+AW74+BB74+BG74","v":0},{"$f":"E74+J74+O74+T74+Y74+AD74+AI74+AN74+AS74+AX74+BC74+BH74","v":0},{"$f":"F74+K74+P74+U74+Z74+AE74+AJ74+AO74+AT74+AY74+BD74+BI74","v":0},{"$f":"BK74-BM74+BN74","v":0}]
[{"$f":"Translations!$A$390","v":"Transfer 3 (MM/DD/YYYY)"},"x",{"$nulls":3},0,0,{"$nulls":3},0,0,{"$nulls":3},0,0,{"$nulls":3},0,0,{"$nulls":3},0,0,{"$nulls":3},0,0,{"$nulls":3},0,0,{"$nulls":3},0,0,{"$nulls":3},0,0,{"$nulls":3},0,0,{"$nulls":3},0,0,{"$nulls":3},0,0,0,0,0,0,0]
[{"$f":"Translations!$A$391","v":"Transfer 4 (MM/DD/YYYY)"},"x",{"$nulls":3},0,0,{"$nulls":3},0,0,{"$nulls":3},0,0,{"$nulls":3},0,0,{"$nulls":3},0,0,{"$nulls":3},0,0,{"$nulls":3},0,0,{"$nulls":3},0,0,{"$nulls":3},0,0,{"$nulls":3},0,0,{"$nulls":3},0,0,{"$nulls":3},0,0,0,0,0,0,0]
[{"$f":"Translations!$A$392","v":"Transfer 5 (MM/DD/YYYY)"},"x",{"$nulls":3},0,0,{"$nulls":3},0,0,{"$nulls":3},0,0,{"$nulls":3},0,0,{"$nulls":3},0,0,{"$nulls":3},0,0,{"$nulls":3},0,0,{"$nulls":3},0,0,{"$nulls":3},0,0,{"$nulls":3},0,0,{"$nulls":3},0,0,{"$nulls":3},0,0,0,0,0,0,0]
[{"$f":"Translations!$A$384","v":"SSR 9: (SSR name)"},null,{"$f":"SUM(C79:C83)","v":0},{"$f":"SUM(D79:D83)","v":0},0,0,0,{"$f":"SUM(H79:H83)","v":0},{"$f":"SUM(I79:I83)","v":0},0,0,0,{"$f":"SUM(M79:M83)","v":0},{"$f":"SUM(N79:N83)","v":0},0,0,0,{"$f":"SUM(R79:R83)","v":0},{"$f":"SUM(S79:S83)","v":0},0,0,0,{"$f":"SUM(W79:W83)","v":0},{"$f":"SUM(X79:X83)","v":0},0,0,0,{"$f":"SUM(AB79:AB83)","v":0},{"$f":"SUM(AC79:AC83)","v":0},0,0,0,{"$f":"SUM(AG79:AG83)","v":0},{"$f":"SUM(AH79:AH83)","v":0},0,0,0,{"$f":"SUM(AL79:AL83)","v":0},{"$f":"SUM(AM79:AM83)","v":0},0,0,0,{"$f":"SUM(AQ79:AQ83)","v":0},{"$f":"SUM(AR79:AR83)","v":0},0,0,0,{"$f":"SUM(AV79:AV83)","v":0},{"$f":"SUM(AW79:AW83)","v":0},0,0,0,{"$f":"SUM(BA79:BA83)","v":0},{"$f":"SUM(BB79:BB83)","v":0},0,0,0,{"$f":"SUM(BF79:BF83)","v":0},{"$f":"SUM(BG79:BG83)","v":0},0,0,0,{"$f":"SUM(BK79:BK83)","v":0},{"$f":"SUM(BL79:BL83)","v":0},0,0,0]
[{"$f":"Translations!$A$388","v":"Transfer 1 (MM/DD/YYYY)"},"x",{"$nulls":4},{"$f":"+C79-E79+F79","v":0},{"$nulls":3},{"$f":"I79-J79","v":0},{"$f":"G79+H79-J79+K79","v":0},{"$nulls":3},{"$f":"N79-O79","v":0},{"$f":"L79+M79-O79+P79","v":0},{"$nulls":3},{"$f":"S79-T79","v":0},{"$f":"Q79+R79-T79+U79","v":0},{"$nulls":3},{"$f":"X79-Y79","v":0},{"$f":"V79+W79-Y79+Z79","v":0},{"$nulls":3},{"$f":"AC79-AD79","v":0},{"$f":"AA79+AB79-AD79+AE79","v":0},{"$nulls":3},{"$f":"AH79-AI79","v":0},{"$f":"AF79+AG79-AI79+AJ79","v":0},{"$nulls":3},{"$f":"AM79-AN79","v":0},{"$f":"AK79+AL79-AN79+AO79","v":0},{"$nulls":3},{"$f":"AR79-AS79","v":0},{"$f":"AP79+AQ79-AS79+AT79","v":0},{"$nulls":3},{"$f":"AW79-AX79","v":0},{"$f":"AU79+AV79-AX79+AY79","v":0},{"$nulls":3},{"$f":"BB79-BC79","v":0},{"$f":"AZ79+BA79-BC79+BD79","v":0},{"$nulls":3},{"$f":"BG79-BH79","v":0},{"$f":"BE79+BF79-BH79+BI79","v":0},{"$f":"C79+H79+M79+R79+W79+AB79+AG79+AL79+AQ79+AV79+BA79+BF79","v":0},{"$f":"D79+I79+N79+S79+X79+AC79+AH79+AM79+AR79+AW79+BB79+BG79","v":0},{"$f":"E79+J79+O79+T79+Y79+AD79+AI79+AN79+AS79+AX79+BC79+BH79","v":0},{"$f":"F79+K79+P79+U79+Z79+AE79+AJ79+AO79+AT79+AY79+BD79+BI79","v":0},{"$f":"BK79-BM79+BN79","v":0}]
[{"$f":"Translations!$A$389","v":"Transfer 2 (MM/DD/YYYY)"},"x",{"$nulls":3},{"$f":"D80-E80","v":0},{"$f":"+C80-E80+F80","v":0},{"$nulls":3},{"$f":"I80-J80","v":0},{"$f":"G80+H80-J80+K80","v":0},{"$nulls":3},{"$f":"N80-O80","v":0},{"$f":"L80+M80-O80+P80","v":0},{"$nulls":3},{"$f":"S80-T80","v":0},{"$f":"Q80+R80-T80+U80","v":0},{"$nulls":3},{"$f":"X80-Y80","v":0},{"$f":"V80+W80-Y80+Z80","v":0},{"$nulls":3},{"$f":"AC80-AD80","v":0},{"$f":"AA80+AB80-AD80+AE80","v":0},{"$nulls":3},{"$f":"AH80-AI80","v":0},{"$f":"AF80+AG80-AI80+AJ80","v":0},{"$nulls":3},{"$f":"AM80-AN80","v":0},{"$f":"AK80+AL80-AN80+AO80","v":0},{"$nulls":3},{"$f":"AR80-AS80","v":0},{"$f":"AP80+AQ80-AS80+AT80","v":0},{"$nulls":3},{"$f":"AW80-AX80","v":0},{"$f":"AU80+AV80-AX80+AY80","v":0},{"$nulls":3},{"$f":"BB80-BC80","v":0},{"$f":"AZ80+BA80-BC80+BD80","v":0},{"$nulls":3},{"$f":"BG80-BH80","v":0},{"$f":"BE80+BF80-BH80+BI80","v":0},{"$f":"C80+H80+M80+R80+W80+AB80+AG80+AL80+AQ80+AV80+BA80+BF80","v":0},{"$f":"D80+I80+N80+S80+X80+AC80+AH80+AM80+AR80+AW80+BB80+BG80","v":0},{"$f":"E80+J80+O80+T80+Y80+AD80+AI80+AN80+AS80+AX80+BC80+BH80","v":0},{"$f":"F80+K80+P80+U80+Z80+AE80+AJ80+AO80+AT80+AY80+BD80+BI80","v":0},{"$f":"BK80-BM80+BN80","v":0}]
[{"$f":"Translations!$A$390","v":"Transfer 3 (MM/DD/YYYY)"},"x",{"$nulls":3},0,0,{"$nulls":3},0,0,{"$nulls":3},0,0,{"$nulls":3},0,0,{"$nulls":3},0,0,{"$nulls":3},0,0,{"$nulls":3},0,0,{"$nulls":3},0,0,{"$nulls":3},0,0,{"$nulls":3},0,0,{"$nulls":3},0,0,{"$nulls":3},0,0,0,0,0,0,0]
[{"$f":"Translations!$A$391","v":"Transfer 4 (MM/DD/YYYY)"},"x",{"$nulls":3},0,0,{"$nulls":3},0,0,{"$nulls":3},0,0,{"$nulls":3},0,0,{"$nulls":3},0,0,{"$nulls":3},0,0,{"$nulls":3},0,0,{"$nulls":3},0,0,{"$nulls":3},0,0,{"$nulls":3},0,0,{"$nulls":3},0,0,{"$nulls":3},0,0,0,0,0,0,0]
[{"$f":"Translations!$A$392","v":"Transfer 5 (MM/DD/YYYY)"},"x",{"$nulls":3},0,0,{"$nulls":3},0,0,{"$nulls":3},0,0,{"$nulls":3},0,0,{"$nulls":3},0,0,{"$nulls":3},0,0,{"$nulls":3},0,0,{"$nulls":3},0,0,{"$nulls":3},0,0,{"$nulls":3},0,0,{"$nulls":3},0,0,{"$nulls":3},0,0,0,0,0,0,0]
[{"$f":"Translations!$A$385","v":"SSR 10: (SSR name)"},null,{"$f":"SUM(C85:C89)","v":0},{"$f":"SUM(D85:D89)","v":0},0,0,0,{"$f":"SUM(H85:H89)","v":0},{"$f":"SUM(I85:I89)","v":0},0,0,0,{"$f":"SUM(M85:M89)","v":0},{"$f":"SUM(N85:N89)","v":0},0,0,0,{"$f":"SUM(R85:R89)","v":0},{"$f":"SUM(S85:S89)","v":0},0,0,0,{"$f":"SUM(W85:W89)","v":0},{"$f":"SUM(X85:X89)","v":0},0,0,0,{"$f":"SUM(AB85:AB89)","v":0},{"$f":"SUM(AC85:AC89)","v":0},0,0,0,{"$f":"SUM(AG85:AG89)","v":0},{"$f":"SUM(AH85:AH89)","v":0},0,0,0,{"$f":"SUM(AL85:AL89)","v":0},{"$f":"SUM(AM85:AM89)","v":0},0,0,0,{"$f":"SUM(AQ85:AQ89)","v":0},{"$f":"SUM(AR85:AR89)","v":0},0,0,0,{"$f":"SUM(AV85:AV89)","v":0},{"$f":"SUM(AW85:AW89)","v":0},0,0,0,{"$f":"SUM(BA85:BA89)","v":0},{"$f":"SUM(BB85:BB89)","v":0},0,0,0,{"$f":"SUM(BF85:BF89)","v":0},{"$f":"SUM(BG85:BG89)","v":0},0,0,0,{"$f":"SUM(BK85:BK89)","v":0},{"$f":"SUM(BL85:BL89)","v":0},0,0,0]
[{"$f":"Translations!$A$388","v":"Transfer 1 (MM/DD/YYYY)"},"x",{"$nulls":4},{"$f":"+C85-E85+F85","v":0},{"$nulls":3},{"$f":"I85-J85","v":0},{"$f":"G85+H85-J85+K85","v":0},{"$nulls":3},{"$f":"N85-O85","v":0},{"$f":"L85+M85-O85+P85","v":0},{"$nulls":3},{"$f":"S85-T85","v":0},{"$f":"Q85+R85-T85+U85","v":0},{"$nulls":3},{"$f":"X85-Y85","v":0},{"$f":"V85+W85-Y85+Z85","v":0},{"$nulls":3},{"$f":"AC85-AD85","v":0},{"$f":"AA85+AB85-AD85+AE85","v":0},{"$nulls":3},{"$f":"AH85-AI85","v":0},{"$f":"AF85+AG85-AI85+AJ85","v":0},{"$nulls":3},{"$f":"AM85-AN85","v":0},{"$f":"AK85+AL85-AN85+AO85","v":0},{"$nulls":3},{"$f":"AR85-AS85","v":0},{"$f":"AP85+AQ85-AS85+AT85","v":0},{"$nulls":3},{"$f":"AW85-AX85","v":0},{"$f":"AU85+AV85-AX85+AY85","v":0},{"$nulls":3},{"$f":"BB85-BC85","v":0},{"$f":"AZ85+BA85-BC85+BD85","v":0},{"$nulls":3},{"$f":"BG85-BH85","v":0},{"$f":"BE85+BF85-BH85+BI85","v":0},{"$f":"C85+H85+M85+R85+W85+AB85+AG85+AL85+AQ85+AV85+BA85+BF85","v":0},{"$f":"D85+I85+N85+S85+X85+AC85+AH85+AM85+AR85+AW85+BB85+BG85","v":0},{"$f":"E85+J85+O85+T85+Y85+AD85+AI85+AN85+AS85+AX85+BC85+BH85","v":0},{"$f":"F85+K85+P85+U85+Z85+AE85+AJ85+AO85+AT85+AY85+BD85+BI85","v":0},{"$f":"BK85-BM85+BN85","v":0}]
[{"$f":"Translations!$A$389","v":"Transfer 2 (MM/DD/YYYY)"},"x",{"$nulls":3},{"$f":"D86-E86","v":0},{"$f":"+C86-E86+F86","v":0},{"$nulls":3},{"$f":"I86-J86","v":0},{"$f":"G86+H86-J86+K86","v":0},{"$nulls":3},{"$f":"N86-O86","v":0},{"$f":"L86+M86-O86+P86","v":0},{"$nulls":3},{"$f":"S86-T86","v":0},{"$f":"Q86+R86-T86+U86","v":0},{"$nulls":3},{"$f":"X86-Y86","v":0},{"$f":"V86+W86-Y86+Z86","v":0},{"$nulls":3},{"$f":"AC86-AD86","v":0},{"$f":"AA86+AB86-AD86+AE86","v":0},{"$nulls":3},{"$f":"AH86-AI86","v":0},{"$f":"AF86+AG86-AI86+AJ86","v":0},{"$nulls":3},{"$f":"AM86-AN86","v":0},{"$f":"AK86+AL86-AN86+AO86","v":0},{"$nulls":3},{"$f":"AR86-AS86","v":0},{"$f":"AP86+AQ86-AS86+AT86","v":0},{"$nulls":3},{"$f":"AW86-AX86","v":0},{"$f":"AU86+AV86-AX86+AY86","v":0},{"$nulls":3},{"$f":"BB86-BC86","v":0},{"$f":"AZ86+BA86-BC86+BD86","v":0},{"$nulls":3},{"$f":"BG86-BH86","v":0},{"$f":"BE86+BF86-BH86+BI86","v":0},{"$f":"C86+H86+M86+R86+W86+AB86+AG86+AL86+AQ86+AV86+BA86+BF86","v":0},{"$f":"D86+I86+N86+S86+X86+AC86+AH86+AM86+AR86+AW86+BB86+BG86","v":0},{"$f":"E86+J86+O86+T86+Y86+AD86+AI86+AN86+AS86+AX86+BC86+BH86","v":0},{"$f":"F86+K86+P86+U86+Z86+AE86+AJ86+AO86+AT86+AY86+BD86+BI86","v":0},{"$f":"BK86-BM86+BN86","v":0}]
[{"$f":"Translations!$A$390","v":"Transfer 3 (MM/DD/YYYY)"},"x",{"$nulls":3},0,0,{"$nulls":3},0,0,{"$nulls":3},0,0,{"$nulls":3},0,0,{"$nulls":3},0,0,{"$nulls":3},0,0,{"$nulls":3},0,0,{"$nulls":3},0,0,{"$nulls":3},0,0,{"$nulls":3},0,0,{"$nulls":3},0,0,{"$nulls":3},0,0,0,0,0,0,0]
[{"$f":"Translations!$A$391","v":"Transfer 4 (MM/DD/YYYY)"},"x",{"$nulls":3},0,0,{"$nulls":3},0,0,{"$nulls":3},0,0,{"$nulls":3},0,0,{"$nulls":3},0,0,{"$nulls":3},0,0,{"$nulls":3},0,0,{"$nulls":3},0,0,{"$nulls":3},0,0,{"$nulls":3},0,0,{"$nulls":3},0,0,{"$nulls":3},0,0,0,0,0,0,0]
[{"$f":"Translations!$A$392","v":"Transfer 5 (MM/DD/YYYY)"},"x",{"$nulls":3},0,0,{"$nulls":3},0,0,{"$nulls":3},0,0,{"$nulls":3},0,0,{"$nulls":3},0,0,{"$nulls":3},0,0,{"$nulls":3},0,0,{"$nulls":3},0,0,{"$nulls":3},0,0,{"$nulls":3},0,0,{"$nulls":3},0,0,{"$nulls":3},0,0,0,0,0,0,0]
[{"$f":"Translations!$A$386","v":"SSR 11: (SSR name)"},null,{"$f":"SUM(C91:C95)","v":0},{"$f":"SUM(D91:D95)","v":0},0,0,0,{"$f":"SUM(H91:H95)","v":0},{"$f":"SUM(I91:I95)","v":0},0,0,0,{"$f":"SUM(M91:M95)","v":0},{"$f":"SUM(N91:N95)","v":0},0,0,0,{"$f":"SUM(R91:R95)","v":0},{"$f":"SUM(S91:S95)","v":0},0,0,0,{"$f":"SUM(W91:W95)","v":0},{"$f":"SUM(X91:X95)","v":0},0,0,0,{"$f":"SUM(AB91:AB95)","v":0},{"$f":"SUM(AC91:AC95)","v":0},0,0,0,{"$f":"SUM(AG91:AG95)","v":0},{"$f":"SUM(AH91:AH95)","v":0},0,0,0,{"$f":"SUM(AL91:AL95)","v":0},{"$f":"SUM(AM91:AM95)","v":0},0,0,0,{"$f":"SUM(AQ91:AQ95)","v":0},{"$f":"SUM(AR91:AR95)","v":0},0,0,0,{"$f":"SUM(AV91:AV95)","v":0},{"$f":"SUM(AW91:AW95)","v":0},0,0,0,{"$f":"SUM(BA91:BA95)","v":0},{"$f":"SUM(BB91:BB95)","v":0},0,0,0,{"$f":"SUM(BF91:BF95)","v":0},{"$f":"SUM(BG91:BG95)","v":0},0,0,0,{"$f":"SUM(BK91:BK95)","v":0},{"$f":"SUM(BL91:BL95)","v":0},0,0,0]
[{"$f":"Translations!$A$388","v":"Transfer 1 (MM/DD/YYYY)"},"x",{"$nulls":4},{"$f":"+C91-E91+F91","v":0},{"$nulls":3},{"$f":"I91-J91","v":0},{"$f":"G91+H91-J91+K91","v":0},{"$nulls":3},{"$f":"N91-O91","v":0},{"$f":"L91+M91-O91+P91","v":0},{"$nulls":3},{"$f":"S91-T91","v":0},{"$f":"Q91+R91-T91+U91","v":0},{"$nulls":3},{"$f":"X91-Y91","v":0},{"$f":"V91+W91-Y91+Z91","v":0},{"$nulls":3},{"$f":"AC91-AD91","v":0},{"$f":"AA91+AB91-AD91+AE91","v":0},{"$nulls":3},{"$f":"AH91-AI91","v":0},{"$f":"AF91+AG91-AI91+AJ91","v":0},{"$nulls":3},{"$f":"AM91-AN91","v":0},{"$f":"AK91+AL91-AN91+AO91","v":0},{"$nulls":3},{"$f":"AR91-AS91","v":0},{"$f":"AP91+AQ91-AS91+AT91","v":0},{"$nulls":3},{"$f":"AW91-AX91","v":0},{"$f":"AU91+AV91-AX91+AY91","v":0},{"$nulls":3},{"$f":"BB91-BC91","v":0},{"$f":"AZ91+BA91-BC91+BD91","v":0},{"$nulls":3},{"$f":"BG91-BH91","v":0},{"$f":"BE91+BF91-BH91+BI91","v":0},{"$f":"C91+H91+M91+R91+W91+AB91+AG91+AL91+AQ91+AV91+BA91+BF91","v":0},{"$f":"D91+I91+N91+S91+X91+AC91+AH91+AM91+AR91+AW91+BB91+BG91","v":0},{"$f":"E91+J91+O91+T91+Y91+AD91+AI91+AN91+AS91+AX91+BC91+BH91","v":0},{"$f":"F91+K91+P91+U91+Z91+AE91+AJ91+AO91+AT91+AY91+BD91+BI91","v":0},{"$f":"BK91-BM91+BN91","v":0}]
[{"$f":"Translations!$A$389","v":"Transfer 2 (MM/DD/YYYY)"},"x",{"$nulls":3},{"$f":"D92-E92","v":0},{"$f":"+C92-E92+F92","v":0},{"$nulls":3},{"$f":"I92-J92","v":0},{"$f":"G92+H92-J92+K92","v":0},{"$nulls":3},{"$f":"N92-O92","v":0},{"$f":"L92+M92-O92+P92","v":0},{"$nulls":3},{"$f":"S92-T92","v":0},{"$f":"Q92+R92-T92+U92","v":0},{"$nulls":3},{"$f":"X92-Y92","v":0},{"$f":"V92+W92-Y92+Z92","v":0},{"$nulls":3},{"$f":"AC92-AD92","v":0},{"$f":"AA92+AB92-AD92+AE92","v":0},{"$nulls":3},{"$f":"AH92-AI92","v":0},{"$f":"AF92+AG92-AI92+AJ92","v":0},{"$nulls":3},{"$f":"AM92-AN92","v":0},{"$f":"AK92+AL92-AN92+AO92","v":0},{"$nulls":3},{"$f":"AR92-AS92","v":0},{"$f":"AP92+AQ92-AS92+AT92","v":0},{"$nulls":3},{"$f":"AW92-AX92","v":0},{"$f":"AU92+AV92-AX92+AY92","v":0},{"$nulls":3},{"$f":"BB92-BC92","v":0},{"$f":"AZ92+BA92-BC92+BD92","v":0},{"$nulls":3},{"$f":"BG92-BH92","v":0},{"$f":"BE92+BF92-BH92+BI92","v":0},{"$f":"C92+H92+M92+R92+W92+AB92+AG92+AL92+AQ92+AV92+BA92+BF92","v":0},{"$f":"D92+I92+N92+S92+X92+AC92+AH92+AM92+AR92+AW92+BB92+BG92","v":0},{"$f":"E92+J92+O92+T92+Y92+AD92+AI92+AN92+AS92+AX92+BC92+BH92","v":0},{"$f":"F92+K92+P92+U92+Z92+AE92+AJ92+AO92+AT92+AY92+BD92+BI92","v":0},{"$f":"BK92-BM92+BN92","v":0}]
[{"$f":"Translations!$A$390","v":"Transfer 3 (MM/DD/YYYY)"},"x",{"$nulls":3},0,0,{"$nulls":3},0,0,{"$nulls":3},0,0,{"$nulls":3},0,0,{"$nulls":3},0,0,{"$nulls":3},0,0,{"$nulls":3},0,0,{"$nulls":3},0,0,{"$nulls":3},0,0,{"$nulls":3},0,0,{"$nulls":3},0,0,{"$nulls":3},0,0,0,0,0,0,0]
[{"$f":"Translations!$A$391","v":"Transfer 4 (MM/DD/YYYY)"},"x",{"$nulls":3},0,0,{"$nulls":3},0,0,{"$nulls":3},0,0,{"$nulls":3},0,0,{"$nulls":3},0,0,{"$nulls":3},0,0,{"$nulls":3},0,0,{"$nulls":3},0,0,{"$nulls":3},0,0,{"$nulls":3},0,0,{"$nulls":3},0,0,{"$nulls":3},0,0,0,0,0,0,0]
[{"$f":"Translations!$A$392","v":"Transfer 5 (MM/DD/YYYY)"},"x",{"$nulls":3},0,0,{"$nulls":3},0,0,{"$nulls":3},0,0,{"$nulls":3},0,0,{"$nulls":3},0,0,{"$nulls":3},0,0,{"$nulls":3},0,0,{"$nulls":3},0,0,{"$nulls":3},0,0,{"$nulls":3},0,0,{"$nulls":3},0,0,{"$nulls":3},0,0,0,0,0,0,0]
[{"$f":"Translations!$A$387","v":"SSR 12: (SSR name)"},null,{"$f":"SUM(C97:C101)","v":0},{"$f":"SUM(D97:D101)","v":0},0,0,0,{"$f":"SUM(H97:H101)","v":0},{"$f":"SUM(I97:I101)","v":0},0,0,0,{"$f":"SUM(M97:M101)","v":0},{"$f":"SUM(N97:N101)","v":0},0,0,0,{"$f":"SUM(R97:R101)","v":0},{"$f":"SUM(S97:S101)","v":0},0,0,0,{"$f":"SUM(W97:W101)","v":0},{"$f":"SUM(X97:X101)","v":0},0,0,0,{"$f":"SUM(AB97:AB101)","v":0},{"$f":"SUM(AC97:AC101)","v":0},0,0,0,{"$f":"SUM(AG97:AG101)","v":0},{"$f":"SUM(AH97:AH101)","v":0},0,0,0,{"$f":"SUM(AL97:AL101)","v":0},{"$f":"SUM(AM97:AM101)","v":0},0,0,0,{"$f":"SUM(AQ97:AQ101)","v":0},{"$f":"SUM(AR97:AR101)","v":0},0,0,0,{"$f":"SUM(AV97:AV101)","v":0},{"$f":"SUM(AW97:AW101)","v":0},0,0,0,{"$f":"SUM(BA97:BA101)","v":0},{"$f":"SUM(BB97:BB101)","v":0},0,0,0,{"$f":"SUM(BF97:BF101)","v":0},{"$f":"SUM(BG97:BG101)","v":0},0,0,0,{"$f":"SUM(BK97:BK101)","v":0},{"$f":"SUM(BL97:BL101)","v":0},0,0,0]
[{"$f":"Translations!$A$388","v":"Transfer 1 (MM/DD/YYYY)"},"x",{"$nulls":4},{"$f":"+C97-E97+F97","v":0},{"$nulls":3},{"$f":"I97-J97","v":0},{"$f":"G97+H97-J97+K97","v":0},{"$nulls":3},{"$f":"N97-O97","v":0},{"$f":"L97+M97-O97+P97","v":0},{"$nulls":3},{"$f":"S97-T97","v":0},{"$f":"Q97+R97-T97+U97","v":0},{"$nulls":3},{"$f":"X97-Y97","v":0},{"$f":"V97+W97-Y97+Z97","v":0},{"$nulls":3},{"$f":"AC97-AD97","v":0},{"$f":"AA97+AB97-AD97+AE97","v":0},{"$nulls":3},{"$f":"AH97-AI97","v":0},{"$f":"AF97+AG97-AI97+AJ97","v":0},{"$nulls":3},{"$f":"AM97-AN97","v":0},{"$f":"AK97+AL97-AN97+AO97","v":0},{"$nulls":3},{"$f":"AR97-AS97","v":0},{"$f":"AP97+AQ97-AS97+AT97","v":0},{"$nulls":3},{"$f":"AW97-AX97","v":0},{"$f":"AU97+AV97-AX97+AY97","v":0},{"$nulls":3},{"$f":"BB97-BC97","v":0},{"$f":"AZ97+BA97-BC97+BD97","v":0},{"$nulls":3},{"$f":"BG97-BH97","v":0},{"$f":"BE97+BF97-BH97+BI97","v":0},{"$f":"C97+H97+M97+R97+W97+AB97+AG97+AL97+AQ97+AV97+BA97+BF97","v":0},{"$f":"D97+I97+N97+S97+X97+AC97+AH97+AM97+AR97+AW97+BB97+BG97","v":0},{"$f":"E97+J97+O97+T97+Y97+AD97+AI97+AN97+AS97+AX97+BC97+BH97","v":0},{"$f":"F97+K97+P97+U97+Z97+AE97+AJ97+AO97+AT97+AY97+BD97+BI97","v":0},{"$f":"BK97-BM97+BN97","v":0}]
[{"$f":"Translations!$A$389","v":"Transfer 2 (MM/DD/YYYY)"},"x",{"$nulls":3},{"$f":"D98-E98","v":0},{"$f":"+C98-E98+F98","v":0},{"$nulls":3},{"$f":"I98-J98","v":0},{"$f":"G98+H98-J98+K98","v":0},{"$nulls":3},{"$f":"N98-O98","v":0},{"$f":"L98+M98-O98+P98","v":0},{"$nulls":3},{"$f":"S98-T98","v":0},{"$f":"Q98+R98-T98+U98","v":0},{"$nulls":3},{"$f":"X98-Y98","v":0},{"$f":"V98+W98-Y98+Z98","v":0},{"$nulls":3},{"$f":"AC98-AD98","v":0},{"$f":"AA98+AB98-AD98+AE98","v":0},{"$nulls":3},{"$f":"AH98-AI98","v":0},{"$f":"AF98+AG98-AI98+AJ98","v":0},{"$nulls":3},{"$f":"AM98-AN98","v":0},{"$f":"AK98+AL98-AN98+AO98","v":0},{"$nulls":3},{"$f":"AR98-AS98","v":0},{"$f":"AP98+AQ98-AS98+AT98","v":0},{"$nulls":3},{"$f":"AW98-AX98","v":0},{"$f":"AU98+AV98-AX98+AY98","v":0},{"$nulls":3},{"$f":"BB98-BC98","v":0},{"$f":"AZ98+BA98-BC98+BD98","v":0},{"$nulls":3},{"$f":"BG98-BH98","v":0},{"$f":"BE98+BF98-BH98+BI98","v":0},{"$f":"C98+H98+M98+R98+W98+AB98+AG98+AL98+AQ98+AV98+BA98+BF98","v":0},{"$f":"D98+I98+N98+S98+X98+AC98+AH98+AM98+AR98+AW98+BB98+BG98","v":0},{"$f":"E98+J98+O98+T98+Y98+AD98+AI98+AN98+AS98+AX98+BC98+BH98","v":0},{"$f":"F98+K98+P98+U98+Z98+AE98+AJ98+AO98+AT98+AY98+BD98+BI98","v":0},{"$f":"BK98-BM98+BN98","v":0}]
[{"$f":"Translations!$A$390","v":"Transfer 3 (MM/DD/YYYY)"},"x",{"$nulls":3},0,0,{"$nulls":3},0,0,{"$nulls":3},0,0,{"$nulls":3},0,0,{"$nulls":3},0,0,{"$nulls":3},0,0,{"$nulls":3},0,0,{"$nulls":3},0,0,{"$nulls":3},0,0,{"$nulls":3},0,0,{"$nulls":3},0,0,{"$nulls":3},0,0,0,0,0,0,0]
[{"$f":"Translations!$A$391","v":"Transfer 4 (MM/DD/YYYY)"},"x",{"$nulls":3},0,0,{"$nulls":3},0,0,{"$nulls":3},0,0,{"$nulls":3},0,0,{"$nulls":3},0,0,{"$nulls":3},0,0,{"$nulls":3},0,0,{"$nulls":3},0,0,{"$nulls":3},0,0,{"$nulls":3},0,0,{"$nulls":3},0,0,{"$nulls":3},0,0,0,0,0,0,0]
[{"$f":"Translations!$A$392","v":"Transfer 5 (MM/DD/YYYY)"},"x",{"$nulls":3},0,0,{"$nulls":3},0,0,{"$nulls":3},0,0,{"$nulls":3},0,0,{"$nulls":3},0,0,{"$nulls":3},0,0,{"$nulls":3},0,0,{"$nulls":3},0,0,{"$nulls":3},0,0,{"$nulls":3},0,0,{"$nulls":3},0,0,{"$nulls":3},0,0,0,0,0,0,0]
[{"$f":"Translations!$A$393","v":"SSR 13: (SSR name)"},null,{"$f":"SUM(C103:C107)","v":0},{"$f":"SUM(D103:D107)","v":0},0,0,0,{"$f":"SUM(H103:H107)","v":0},{"$f":"SUM(I103:I107)","v":0},0,0,0,{"$f":"SUM(M103:M107)","v":0},{"$f":"SUM(N103:N107)","v":0},0,0,0,{"$f":"SUM(R103:R107)","v":0},{"$f":"SUM(S103:S107)","v":0},0,0,0,{"$f":"SUM(W103:W107)","v":0},{"$f":"SUM(X103:X107)","v":0},0,0,0,{"$f":"SUM(AB103:AB107)","v":0},{"$f":"SUM(AC103:AC107)","v":0},0,0,0,{"$f":"SUM(AG103:AG107)","v":0},{"$f":"SUM(AH103:AH107)","v":0},0,0,0,{"$f":"SUM(AL103:AL107)","v":0},{"$f":"SUM(AM103:AM107)","v":0},0,0,0,{"$f":"SUM(AQ103:AQ107)","v":0},{"$f":"SUM(AR103:AR107)","v":0},0,0,0,{"$f":"SUM(AV103:AV107)","v":0},{"$f":"SUM(AW103:AW107)","v":0},0,0,0,{"$f":"SUM(BA103:BA107)","v":0},{"$f":"SUM(BB103:BB107)","v":0},0,0,0,{"$f":"SUM(BF103:BF107)","v":0},{"$f":"SUM(BG103:BG107)","v":0},0,0,0,{"$f":"SUM(BK103:BK107)","v":0},{"$f":"SUM(BL103:BL107)","v":0},0,0,0]
[{"$f":"Translations!$A$388","v":"Transfer 1 (MM/DD/YYYY)"},"x",{"$nulls":4},{"$f":"+C103-E103+F103","v":0},{"$nulls":3},{"$f":"I103-J103","v":0},{"$f":"G103+H103-J103+K103","v":0},{"$nulls":3},{"$f":"N103-O103","v":0},{"$f":"L103+M103-O103+P103","v":0},{"$nulls":3},{"$f":"S103-T103","v":0},{"$f":"Q103+R103-T103+U103","v":0},{"$nulls":3},{"$f":"X103-Y103","v":0},{"$f":"V103+W103-Y103+Z103","v":0},{"$nulls":3},{"$f":"AC103-AD103","v":0},{"$f":"AA103+AB103-AD103+AE103","v":0},{"$nulls":3},{"$f":"AH103-AI103","v":0},{"$f":"AF103+AG103-AI103+AJ103","v":0},{"$nulls":3},{"$f":"AM103-AN103","v":0},{"$f":"AK103+AL103-AN103+AO103","v":0},{"$nulls":3},{"$f":"AR103-AS103","v":0},{"$f":"AP103+AQ103-AS103+AT103","v":0},{"$nulls":3},{"$f":"AW103-AX103","v":0},{"$f":"AU103+AV103-AX103+AY103","v":0},{"$nulls":3},{"$f":"BB103-BC103","v":0},{"$f":"AZ103+BA103-BC103+BD103","v":0},{"$nulls":3},{"$f":"BG103-BH103","v":0},{"$f":"BE103+BF103-BH103+BI103","v":0},{"$f":"C103+H103+M103+R103+W103+AB103+AG103+AL103+AQ103+AV103+BA103+BF103","v":0},{"$f":"D103+I103+N103+S103+X103+AC103+AH103+AM103+AR103+AW103+BB103+BG103","v":0},{"$f":"E103+J103+O103+T103+Y103+AD103+AI103+AN103+AS103+AX103+BC103+BH103","v":0},{"$f":"F103+K103+P103+U103+Z103+AE103+AJ103+AO103+AT103+AY103+BD103+BI103","v":0},{"$f":"BK103-BM103+BN103","v":0}]
[{"$f":"Translations!$A$389","v":"Transfer 2 (MM/DD/YYYY)"},"x",{"$nulls":3},{"$f":"D104-E104","v":0},{"$f":"+C104-E104+F104","v":0},{"$nulls":3},{"$f":"I104-J104","v":0},{"$f":"G104+H104-J104+K104","v":0},{"$nulls":3},{"$f":"N104-O104","v":0},{"$f":"L104+M104-O104+P104","v":0},{"$nulls":3},{"$f":"S104-T104","v":0},{"$f":"Q104+R104-T104+U104","v":0},{"$nulls":3},{"$f":"X104-Y104","v":0},{"$f":"V104+W104-Y104+Z104","v":0},{"$nulls":3},{"$f":"AC104-AD104","v":0},{"$f":"AA104+AB104-AD104+AE104","v":0},{"$nulls":3},{"$f":"AH104-AI104","v":0},{"$f":"AF104+AG104-AI104+AJ104","v":0},{"$nulls":3},{"$f":"AM104-AN104","v":0},{"$f":"AK104+AL104-AN104+AO104","v":0},{"$nulls":3},{"$f":"AR104-AS104","v":0},{"$f":"AP104+AQ104-AS104+AT104","v":0},{"$nulls":3},{"$f":"AW104-AX104","v":0},{"$f":"AU104+AV104-AX104+AY104","v":0},{"$nulls":3},{"$f":"BB104-BC104","v":0},{"$f":"AZ104+BA104-BC104+BD104","v":0},{"$nulls":3},{"$f":"BG104-BH104","v":0},{"$f":"BE104+BF104-BH104+BI104","v":0},{"$f":"C104+H104+M104+R104+W104+AB104+AG104+AL104+AQ104+AV104+BA104+BF104","v":0},{"$f":"D104+I104+N104+S104+X104+AC104+AH104+AM104+AR104+AW104+BB104+BG104","v":0},{"$f":"E104+J104+O104+T104+Y104+AD104+AI104+AN104+AS104+AX104+BC104+BH104","v":0},{"$f":"F104+K104+P104+U104+Z104+AE104+AJ104+AO104+AT104+AY104+BD104+BI104","v":0},{"$f":"BK104-BM104+BN104","v":0}]
[{"$f":"Translations!$A$390","v":"Transfer 3 (MM/DD/YYYY)"},"x",{"$nulls":3},0,0,{"$nulls":3},0,0,{"$nulls":3},0,0,{"$nulls":3},0,0,{"$nulls":3},0,0,{"$nulls":3},0,0,{"$nulls":3},0,0,{"$nulls":3},0,0,{"$nulls":3},0,0,{"$nulls":3},0,0,{"$nulls":3},0,0,{"$nulls":3},0,0,0,0,0,0,0]
[{"$f":"Translations!$A$391","v":"Transfer 4 (MM/DD/YYYY)"},"x",{"$nulls":3},0,0,{"$nulls":3},0,0,{"$nulls":3},0,0,{"$nulls":3},0,0,{"$nulls":3},0,0,{"$nulls":3},0,0,{"$nulls":3},0,0,{"$nulls":3},0,0,{"$nulls":3},0,0,{"$nulls":3},0,0,{"$nulls":3},0,0,{"$nulls":3},0,0,0,0,0,0,0]
[{"$f":"Translations!$A$392","v":"Transfer 5 (MM/DD/YYYY)"},"x",{"$nulls":3},0,0,{"$nulls":3},0,0,{"$nulls":3},0,0,{"$nulls":3},0,0,{"$nulls":3},0,0,{"$nulls":3},0,0,{"$nulls":3},0,0,{"$nulls":3},0,0,{"$nulls":3},0,0,{"$nulls":3},0,0,{"$nulls":3},0,0,{"$nulls":3},0,0,0,0,0,0,0]
[{"$f":"Translations!$A$394","v":"SSR 14: (SSR name)"},null,{"$f":"SUM(C109:C113)","v":0},{"$f":"SUM(D109:D113)","v":0},0,0,0,{"$f":"SUM(H109:H113)","v":0},{"$f":"SUM(I109:I113)","v":0},0,0,0,{"$f":"SUM(M109:M113)","v":0},{"$f":"SUM(N109:N113)","v":0},0,0,0,{"$f":"SUM(R109:R113)","v":0},{"$f":"SUM(S109:S113)","v":0},0,0,0,{"$f":"SUM(W109:W113)","v":0},{"$f":"SUM(X109:X113)","v":0},0,0,0,{"$f":"SUM(AB109:AB113)","v":0},{"$f":"SUM(AC109:AC113)","v":0},0,0,0,{"$f":"SUM(AG109:AG113)","v":0},{"$f":"SUM(AH109:AH113)","v":0},0,0,0,{"$f":"SUM(AL109:AL113)","v":0},{"$f":"SUM(AM109:AM113)","v":0},0,0,0,{"$f":"SUM(AQ109:AQ113)","v":0},{"$f":"SUM(AR109:AR113)","v":0},0,0,0,{"$f":"SUM(AV109:AV113)","v":0},{"$f":"SUM(AW109:AW113)","v":0},0,0,0,{"$f":"SUM(BA109:BA113)","v":0},{"$f":"SUM(BB109:BB113)","v":0},0,0,0,{"$f":"SUM(BF109:BF113)","v":0},{"$f":"SUM(BG109:BG113)","v":0},0,0,0,{"$f":"SUM(BK109:BK113)","v":0},{"$f":"SUM(BL109:BL113)","v":0},0,0,0]
[{"$f":"Translations!$A$388","v":"Transfer 1 (MM/DD/YYYY)"},"x",{"$nulls":4},{"$f":"+C109-E109+F109","v":0},{"$nulls":3},{"$f":"I109-J109","v":0},{"$f":"G109+H109-J109+K109","v":0},{"$nulls":3},{"$f":"N109-O109","v":0},{"$f":"L109+M109-O109+P109","v":0},{"$nulls":3},{"$f":"S109-T109","v":0},{"$f":"Q109+R109-T109+U109","v":0},{"$nulls":3},{"$f":"X109-Y109","v":0},{"$f":"V109+W109-Y109+Z109","v":0},{"$nulls":3},{"$f":"AC109-AD109","v":0},{"$f":"AA109+AB109-AD109+AE109","v":0},{"$nulls":3},{"$f":"AH109-AI109","v":0},{"$f":"AF109+AG109-AI109+AJ109","v":0},{"$nulls":3},{"$f":"AM109-AN109","v":0},{"$f":"AK109+AL109-AN109+AO109","v":0},{"$nulls":3},{"$f":"AR109-AS109","v":0},{"$f":"AP109+AQ109-AS109+AT109","v":0},{"$nulls":3},{"$f":"AW109-AX109","v":0},{"$f":"AU109+AV109-AX109+AY109","v":0},{"$nulls":3},{"$f":"BB109-BC109","v":0},{"$f":"AZ109+BA109-BC109+BD109","v":0},{"$nulls":3},{"$f":"BG109-BH109","v":0},{"$f":"BE109+BF109-BH109+BI109","v":0},{"$f":"C109+H109+M109+R109+W109+AB109+AG109+AL109+AQ109+AV109+BA109+BF109","v":0},{"$f":"D109+I109+N109+S109+X109+AC109+AH109+AM109+AR109+AW109+BB109+BG109","v":0},{"$f":"E109+J109+O109+T109+Y109+AD109+AI109+AN109+AS109+AX109+BC109+BH109","v":0},{"$f":"F109+K109+P109+U109+Z109+AE109+AJ109+AO109+AT109+AY109+BD109+BI109","v":0},{"$f":"BK109-BM109+BN109","v":0}]
[{"$f":"Translations!$A$389","v":"Transfer 2 (MM/DD/YYYY)"},"x",{"$nulls":3},{"$f":"D110-E110","v":0},{"$f":"+C110-E110+F110","v":0},{"$nulls":3},{"$f":"I110-J110","v":0},{"$f":"G110+H110-J110+K110","v":0},{"$nulls":3},{"$f":"N110-O110","v":0},{"$f":"L110+M110-O110+P110","v":0},{"$nulls":3},{"$f":"S110-T110","v":0},{"$f":"Q110+R110-T110+U110","v":0},{"$nulls":3},{"$f":"X110-Y110","v":0},{"$f":"V110+W110-Y110+Z110","v":0},{"$nulls":3},{"$f":"AC110-AD110","v":0},{"$f":"AA110+AB110-AD110+AE110","v":0},{"$nulls":3},{"$f":"AH110-AI110","v":0},{"$f":"AF110+AG110-AI110+AJ110","v":0},{"$nulls":3},{"$f":"AM110-AN110","v":0},{"$f":"AK110+AL110-AN110+AO110","v":0},{"$nulls":3},{"$f":"AR110-AS110","v":0},{"$f":"AP110+AQ110-AS110+AT110","v":0},{"$nulls":3},{"$f":"AW110-AX110","v":0},{"$f":"AU110+AV110-AX110+AY110","v":0},{"$nulls":3},{"$f":"BB110-BC110","v":0},{"$f":"AZ110+BA110-BC110+BD110","v":0},{"$nulls":3},{"$f":"BG110-BH110","v":0},{"$f":"BE110+BF110-BH110+BI110","v":0},{"$f":"C110+H110+M110+R110+W110+AB110+AG110+AL110+AQ110+AV110+BA110+BF110","v":0},{"$f":"D110+I110+N110+S110+X110+AC110+AH110+AM110+AR110+AW110+BB110+BG110","v":0},{"$f":"E110+J110+O110+T110+Y110+AD110+AI110+AN110+AS110+AX110+BC110+BH110","v":0},{"$f":"F110+K110+P110+U110+Z110+AE110+AJ110+AO110+AT110+AY110+BD110+BI110","v":0},{"$f":"BK110-BM110+BN110","v":0}]
[{"$f":"Translations!$A$390","v":"Transfer 3 (MM/DD/YYYY)"},"x",{"$nulls":3},0,0,{"$nulls":3},0,0,{"$nulls":3},0,0,{"$nulls":3},0,0,{"$nulls":3},0,0,{"$nulls":3},0,0,{"$nulls":3},0,0,{"$nulls":3},0,0,{"$nulls":3},0,0,{"$nulls":3},0,0,{"$nulls":3},0,0,{"$nulls":3},0,0,0,0,0,0,0]
[{"$f":"Translations!$A$391","v":"Transfer 4 (MM/DD/YYYY)"},"x",{"$nulls":3},0,0,{"$nulls":3},0,0,{"$nulls":3},0,0,{"$nulls":3},0,0,{"$nulls":3},0,0,{"$nulls":3},0,0,{"$nulls":3},0,0,{"$nulls":3},0,0,{"$nulls":3},0,0,{"$nulls":3},0,0,{"$nulls":3},0,0,{"$nulls":3},0,0,0,0,0,0,0]
[{"$f":"Translations!$A$392","v":"Transfer 5 (MM/DD/YYYY)"},"x",{"$nulls":3},0,0,{"$nulls":3},0,0,{"$nulls":3},0,0,{"$nulls":3},0,0,{"$nulls":3},0,0,{"$nulls":3},0,0,{"$nulls":3},0,0,{"$nulls":3},0,0,{"$nulls":3},0,0,{"$nulls":3},0,0,{"$nulls":3},0,0,{"$nulls":3},0,0,0,0,0,0,0]
[{"$f":"Translations!$A$395","v":"SSR 15: (SSR name)"},null,{"$f":"SUM(C115:C119)","v":0},{"$f":"SUM(D115:D119)","v":0},0,0,0,{"$f":"SUM(H115:H119)","v":0},{"$f":"SUM(I115:I119)","v":0},0,0,0,{"$f":"SUM(M115:M119)","v":0},{"$f":"SUM(N115:N119)","v":0},0,0,0,{"$f":"SUM(R115:R119)","v":0},{"$f":"SUM(S115:S119)","v":0},0,0,0,{"$f":"SUM(W115:W119)","v":0},{"$f":"SUM(X115:X119)","v":0},0,0,0,{"$f":"SUM(AB115:AB119)","v":0},{"$f":"SUM(AC115:AC119)","v":0},0,0,0,{"$f":"SUM(AG115:AG119)","v":0},{"$f":"SUM(AH115:AH119)","v":0},0,0,0,{"$f":"SUM(AL115:AL119)","v":0},{"$f":"SUM(AM115:AM119)","v":0},0,0,0,{"$f":"SUM(AQ115:AQ119)","v":0},{"$f":"SUM(AR115:AR119)","v":0},0,0,0,{"$f":"SUM(AV115:AV119)","v":0},{"$f":"SUM(AW115:AW119)","v":0},0,0,0,{"$f":"SUM(BA115:BA119)","v":0},{"$f":"SUM(BB115:BB119)","v":0},0,0,0,{"$f":"SUM(BF115:BF119)","v":0},{"$f":"SUM(BG115:BG119)","v":0},0,0,0,{"$f":"SUM(BK115:BK119)","v":0},{"$f":"SUM(BL115:BL119)","v":0},0,0,0]
[{"$f":"Translations!$A$388","v":"Transfer 1 (MM/DD/YYYY)"},"x",{"$nulls":4},{"$f":"+C115-E115+F115","v":0},{"$nulls":3},{"$f":"I115-J115","v":0},{"$f":"G115+H115-J115+K115","v":0},{"$nulls":3},{"$f":"N115-O115","v":0},{"$f":"L115+M115-O115+P115","v":0},{"$nulls":3},{"$f":"S115-T115","v":0},{"$f":"Q115+R115-T115+U115","v":0},{"$nulls":3},{"$f":"X115-Y115","v":0},{"$f":"V115+W115-Y115+Z115","v":0},{"$nulls":3},{"$f":"AC115-AD115","v":0},{"$f":"AA115+AB115-AD115+AE115","v":0},{"$nulls":3},{"$f":"AH115-AI115","v":0},{"$f":"AF115+AG115-AI115+AJ115","v":0},{"$nulls":3},{"$f":"AM115-AN115","v":0},{"$f":"AK115+AL115-AN115+AO115","v":0},{"$nulls":3},{"$f":"AR115-AS115","v":0},{"$f":"AP115+AQ115-AS115+AT115","v":0},{"$nulls":3},{"$f":"AW115-AX115","v":0},{"$f":"AU115+AV115-AX115+AY115","v":0},{"$nulls":3},{"$f":"BB115-BC115","v":0},{"$f":"AZ115+BA115-BC115+BD115","v":0},{"$nulls":3},{"$f":"BG115-BH115","v":0},{"$f":"BE115+BF115-BH115+BI115","v":0},{"$f":"C115+H115+M115+R115+W115+AB115+AG115+AL115+AQ115+AV115+BA115+BF115","v":0},{"$f":"D115+I115+N115+S115+X115+AC115+AH115+AM115+AR115+AW115+BB115+BG115","v":0},{"$f":"E115+J115+O115+T115+Y115+AD115+AI115+AN115+AS115+AX115+BC115+BH115","v":0},{"$f":"F115+K115+P115+U115+Z115+AE115+AJ115+AO115+AT115+AY115+BD115+BI115","v":0},{"$f":"BK115-BM115+BN115","v":0}]
[{"$f":"Translations!$A$389","v":"Transfer 2 (MM/DD/YYYY)"},"x",{"$nulls":3},{"$f":"D116-E116","v":0},{"$f":"+C116-E116+F116","v":0},{"$nulls":3},{"$f":"I116-J116","v":0},{"$f":"G116+H116-J116+K116","v":0},{"$nulls":3},{"$f":"N116-O116","v":0},{"$f":"L116+M116-O116+P116","v":0},{"$nulls":3},{"$f":"S116-T116","v":0},{"$f":"Q116+R116-T116+U116","v":0},{"$nulls":3},{"$f":"X116-Y116","v":0},{"$f":"V116+W116-Y116+Z116","v":0},{"$nulls":3},{"$f":"AC116-AD116","v":0},{"$f":"AA116+AB116-AD116+AE116","v":0},{"$nulls":3},{"$f":"AH116-AI116","v":0},{"$f":"AF116+AG116-AI116+AJ116","v":0},{"$nulls":3},{"$f":"AM116-AN116","v":0},{"$f":"AK116+AL116-AN116+AO116","v":0},{"$nulls":3},{"$f":"AR116-AS116","v":0},{"$f":"AP116+AQ116-AS116+AT116","v":0},{"$nulls":3},{"$f":"AW116-AX116","v":0},{"$f":"AU116+AV116-AX116+AY116","v":0},{"$nulls":3},{"$f":"BB116-BC116","v":0},{"$f":"AZ116+BA116-BC116+BD116","v":0},{"$nulls":3},{"$f":"BG116-BH116","v":0},{"$f":"BE116+BF116-BH116+BI116","v":0},{"$f":"C116+H116+M116+R116+W116+AB116+AG116+AL116+AQ116+AV116+BA116+BF116","v":0},{"$f":"D116+I116+N116+S116+X116+AC116+AH116+AM116+AR116+AW116+BB116+BG116","v":0},{"$f":"E116+J116+O116+T116+Y116+AD116+AI116+AN116+AS116+AX116+BC116+BH116","v":0},{"$f":"F116+K116+P116+U116+Z116+AE116+AJ116+AO116+AT116+AY116+BD116+BI116","v":0},{"$f":"BK116-BM116+BN116","v":0}]
[{"$f":"Translations!$A$390","v":"Transfer 3 (MM/DD/YYYY)"},"x",{"$nulls":3},0,0,{"$nulls":3},0,0,{"$nulls":3},0,0,{"$nulls":3},0,0,{"$nulls":3},0,0,{"$nulls":3},0,0,{"$nulls":3},0,0,{"$nulls":3},0,0,{"$nulls":3},0,0,{"$nulls":3},0,0,{"$nulls":3},0,0,{"$nulls":3},0,0,0,0,0,0,0]
[{"$f":"Translations!$A$391","v":"Transfer 4 (MM/DD/YYYY)"},"x",{"$nulls":3},0,0,{"$nulls":3},0,0,{"$nulls":3},0,0,{"$nulls":3},0,0,{"$nulls":3},0,0,{"$nulls":3},0,0,{"$nulls":3},0,0,{"$nulls":3},0,0,{"$nulls":3},0,0,{"$nulls":3},0,0,{"$nulls":3},0,0,{"$nulls":3},0,0,0,0,0,0,0]
[{"$f":"Translations!$A$392","v":"Transfer 5 (MM/DD/YYYY)"},"x",{"$nulls":3},0,0,{"$nulls":3},0,0,{"$nulls":3},0,0,{"$nulls":3},0,0,{"$nulls":3},0,0,{"$nulls":3},0,0,{"$nulls":3},0,0,{"$nulls":3},0,0,{"$nulls":3},0,0,{"$nulls":3},0,0,{"$nulls":3},0,0,{"$nulls":3},0,0,0,0,0,0,0]
[{"$f":"BK28","v":"Totals"},null,{"$f":"SUMIFS(C30:C119,$B$30:$B$119,\"x\")","v":0},{"$f":"SUMIFS(D30:D119,$B$30:$B$119,\"x\")","v":0},0,0,0,0,0,0,0,0,0,0,0,0,0,0,0,0,0,0,0,0,0,0,0,0,0,0,0,0,0,0,0,0,0,0,0,0,0,0,0,0,0,0,0,0,0,0,0,0,0,0,0,0,0,0,0,0,0,0,{"$f":"SUMIFS(BK30:BK119,$B$30:$B$119,\"x\")","v":0},{"$f":"SUMIFS(BL30:BL119,$B$30:$B$119,\"x\")","v":0},{"$f":"SUMIFS(BM30:BM119,$B$30:$B$119,\"x\")","v":0},{"$f":"SUMIFS(BN30:BN119,$B$30:$B$119,\"x\")","v":0},{"$f":"SUMIFS(BO30:BO119,$B$30:$B$119,\"x\")","v":0}]

{"sheet":"Annex 2","index":25,"n_rows":40,"n_cols":37,"rows_kept":40,"hidden":true,"merged":[[1,7,1,20],[2,7,2,20],[3,7,3,20],[4,7,4,20],[6,13,6,21],[7,0,16,11],[7,13,8,21],[11,13,12,14],[11,16,12,21],[14,12,16,15],[14,16,14,19],[15,16,16,19],[19,3,20,3],[19,4,19,10],[19,11,19,12],[19,13,19,14],[19,15,19,16],[19,17,19,18],[19,19,19,20],[19,21,19,22],[19,23,19,24],[19,25,19,26],[19,27,19,28],[19,29,19,30],[19,31,19,32],[19,33,19,34],[19,35,19,36],[20,4,20,10],[22,4,22,10],[23,4,23,10],[24,4,24,10],[25,4,25,10],[26,4,26,10],[27,4,27,10],[28,4,28,10],[29,4,29,10],[30,4,30,10],[31,4,31,10],[32,4,32,10],[33,4,33,10],[34,4,34,10],[35,4,35,10],[36,4,36,10],[37,4,37,10],[39,3,39,10]]}
[]
["Annex 2",{"$nulls":6},{"$f":"Translations!A80","v":"SR Management Tool"}]
[{"$nulls":7},{"$f":"Setup!H11","v":"Direct Gender Partnership (DGP)"}]
[{"$nulls":7},{"$f":" Setup!H14 & \"  (\" & Setup!H13 & \")\"& \"  (\" & Setup!H15 & \")\"","v":"DMR-202-G01-H-00  (January  2016 - December 2016)  (HIV / AIDS)"}]
[{"$nulls":7},{"$f":"Setup!AE9& \"  (\" & Setup!H16 & \")\"","v":"SR data consolidation template  ($ - USD)"}]
[]
[{"$f":"Setup!G19","v":"Details of programatic indicators"},{"$nulls":12},{"$f":"Setup!G17","v":"Key population"}]
[{"$f":"Setup!H19","v":"# PLHIV that initiated ARV with CD4 count <200\n# new HIV+ enrolled in care services \n# aged 10-24 yrs reached by HIV life skills ed. in school "},{"$nulls":12},{"$f":"Setup!H17","v":"Sex Workers - Migrants - Women"}]
{"$rows_empty":11}
[{"$nulls":3},"#",{"$f":"Translations!A160","v":"Programmatic indicators…"},{"$nulls":6},{"$f":"Translations!$A$411","v":"Quarter 1"},null,{"$f":"Translations!$A$412","v":"Quarter 2"},null,{"$f":"Translations!$A$413","v":"Quarter 3"},null,{"$f":"Translations!$A$414","v":"Quarter 4"},null,{"$f":"Translations!$A$415","v":"Quarter 5"},null,{"$f":"Translations!$A$416","v":"Quarter 6"},null,{"$f":"Translations!$A$417","v":"Quarter 7"},null,{"$f":"Translations!$A$418","v":"Quarter 8"},null,{"$f":"Translations!$A$419","v":"Quarter 9"},null,{"$f":"Translations!$A$420","v":"Quarter 10"},null,{"$f":"Translations!$A$421","v":"Quarter 11"},null,{"$f":"Translations!$A$422","v":"Quarter 12"},null,{"$f":"Translations!A109","v":"Totals"}]
[{"$nulls":4},{"$f":"Translations!A410","v":"Activities"},{"$nulls":6},{"$f":"Translations!$A$94","v":"Target"},{"$f":"Translations!$A$95","v":"Budget"},{"$f":"Translations!$A$94","v":"Target"},{"$f":"Translations!$A$95","v":"Budget"},{"$f":"Translations!$A$94","v":"Target"},{"$f":"Translations!$A$95","v":"Budget"},{"$f":"Translations!$A$94","v":"Target"},{"$f":"Translations!$A$95","v":"Budget"},{"$f":"Translations!$A$94","v":"Target"},{"$f":"Translations!$A$95","v":"Budget"},{"$f":"Translations!$A$94","v":"Target"},{"$f":"Translations!$A$95","v":"Budget"},{"$f":"Translations!$A$94","v":"Target"},{"$f":"Translations!$A$95","v":"Budget"},{"$f":"Translations!$A$94","v":"Target"},{"$f":"Translations!$A$95","v":"Budget"},{"$f":"Translations!$A$94","v":"Target"},{"$f":"Translations!$A$95","v":"Budget"},{"$f":"Translations!$A$94","v":"Target"},{"$f":"Translations!$A$95","v":"Budget"},{"$f":"Translations!$A$94","v":"Target"},{"$f":"Translations!$A$95","v":"Budget"},{"$f":"Translations!$A$94","v":"Target"},{"$f":"Translations!$A$95","v":"Budget"},{"$f":"Translations!$A$94","v":"Target"},{"$f":"Translations!$A$95","v":"Budget"}]
[]
[{"$nulls":35},{"$f":"L23+N23+P23+R23+T23+V23+X23+Z23+AB23+AD23+AF23+AH23","v":0},{"$f":"M23+O23+Q23+S23+U23+W23+Y23+AA23+AC23+AE23+AG23+AI23","v":0}]
[{"$nulls":35},0,0]
[{"$nulls":35},0,0]
[{"$nulls":35},0,0]
[{"$nulls":35},0,0]
[{"$nulls":35},0,0]
[{"$nulls":35},0,0]
[{"$nulls":35},0,0]
[{"$nulls":35},0,0]
[{"$nulls":35},0,0]
[{"$nulls":35},0,0]
[{"$nulls":35},0,0]
[{"$nulls":35},0,0]
[{"$nulls":35},0,0]
[{"$nulls":35},0,0]
[{"$nulls":35},0,0]
[]
[{"$nulls":3},{"$f":"Translations!A109","v":"Totals"},{"$nulls":7},"-",{"$f":"M23+M27+M31","v":{"v":0,"d":"0.00"}},"-",{"$f":"O23+O27+O31","v":{"v":0,"d":"0.00"}},"-",{"$f":"Q23+Q27+Q31","v":{"v":0,"d":"0.00"}},"-",{"$f":"S23+S27+S31","v":{"v":0,"d":"0.00"}},"-",{"$f":"U23+U27+U31","v":{"v":0,"d":"0.00"}},"-",{"$f":"W23+W27+W31","v":{"v":0,"d":"0.00"}},"-",{"$f":"Y23+Y27+Y31","v":{"v":0,"d":"0.00"}},"-",{"$f":"AA23+AA27+AA31","v":{"v":0,"d":"0.00"}},"-",{"$f":"AC23+AC27+AC31","v":{"v":0,"d":"0.00"}},"-",{"$f":"AE23+AE27+AE31","v":{"v":0,"d":"0.00"}},"-",{"$f":"AG23+AG27+AG31","v":{"v":0,"d":"0.00"}},"-",{"$f":"AI23+AI27+AI31","v":{"v":0,"d":"0.00"}},"-",{"$f":"AK23+AK27+AK31","v":{"v":0,"d":"0.00"}}]

{"sheet":"Annex 3","index":26,"n_rows":40,"n_cols":39,"rows_kept":40,"hidden":true,"merged":[[1,7,1,22],[2,7,2,22],[3,7,3,22],[4,7,4,22],[6,15,6,23],[7,0,16,10],[7,15,8,23],[11,15,12,16],[11,18,12,23],[14,14,16,17],[14,18,14,21],[15,18,16,21],[19,3,20,3],[19,4,19,10],[19,11,20,11],[19,12,20,12],[19,13,19,14],[19,15,19,16],[19,17,19,18],[19,19,19,20],[19,21,19,22],[19,23,19,24],[19,25,19,26],[19,27,19,28],[19,29,19,30],[19,31,19,32],[19,33,19,34],[19,35,19,36],[19,37,19,38],[20,4,20,10],[22,4,22,10],[23,4,23,10],[24,4,24,10],[25,4,25,10],[26,4,26,10],[27,4,27,10],[28,4,28,10],[29,4,29,10],[30,4,30,10],[31,4,31,10],[32,4,32,10],[33,4,33,10],[34,4,34,10],[35,4,35,10],[36,4,36,10],[37,4,37,10],[39,3,39,12]]}
[]
["Annex 3",{"$nulls":6},{"$f":"Translations!A80","v":"SR Management Tool"}]
[{"$nulls":7},{"$f":"Setup!H11","v":"Direct Gender Partnership (DGP)"}]
[{"$nulls":7},{"$f":" Setup!H14 & \"  (\" & Setup!H13 & \")\"& \"  (\" & Setup!H15 & \")\"","v":"DMR-202-G01-H-00  (January  2016 - December 2016)  (HIV / AIDS)"}]
[{"$nulls":7},{"$f":"Setup!AE10& \"  (\" & Setup!H16 & \")\"","v":"SR annual plan  ($ - USD)"}]
[]
[{"$f":"Setup!G19","v":"Details of programatic indicators"},{"$nulls":14},{"$f":"Setup!G17","v":"Key population"}]
[{"$f":"Setup!H19","v":"# PLHIV that initiated ARV with CD4 count <200\n# new HIV+ enrolled in care services \n# aged 10-24 yrs reached by HIV life skills ed. in school "},{"$nulls":14},{"$f":"Setup!H17","v":"Sex Workers - Migrants - Women"}]
{"$rows_empty":11}
[{"$nulls":3},"#",{"$f":"Translations!A160","v":"Programmatic indicators…"},{"$nulls":6},{"$f":"Translations!A425","v":"Execution date"},{"$f":"Translations!A145","v":"Location"},{"$f":"Setup!$AB$8","v":"January"},null,{"$f":"Setup!$AB$9","v":"February"},null,{"$f":"Setup!$AB$10","v":"March"},null,{"$f":"Setup!$AB$11","v":"April"},null,{"$f":"Setup!$AB$12","v":"May"},null,{"$f":"Setup!$AB$13","v":"June"},null,{"$f":"Setup!$AB$14","v":"July"},null,{"$f":"Setup!$AB$15","v":"August"},null,{"$f":"Setup!$AB$16","v":"September"},null,{"$f":"Setup!$AB$17","v":"October"},null,{"$f":"Setup!$AB$18","v":"November"},null,{"$f":"Setup!$AB$19","v":"December"},null,{"$f":"Translations!A109","v":"Totals"}]
[{"$nulls":4},{"$f":"Translations!A410","v":"Activities"},{"$nulls":8},{"$f":"Translations!$A$94","v":"Target"},{"$f":"Translations!$A$95","v":"Budget"},{"$f":"Translations!$A$94","v":"Target"},{"$f":"Translations!$A$95","v":"Budget"},{"$f":"Translations!$A$94","v":"Target"},{"$f":"Translations!$A$95","v":"Budget"},{"$f":"Translations!$A$94","v":"Target"},{"$f":"Translations!$A$95","v":"Budget"},{"$f":"Translations!$A$94","v":"Target"},{"$f":"Translations!$A$95","v":"Budget"},{"$f":"Translations!$A$94","v":"Target"},{"$f":"Translations!$A$95","v":"Budget"},{"$f":"Translations!$A$94","v":"Target"},{"$f":"Translations!$A$95","v":"Budget"},{"$f":"Translations!$A$94","v":"Target"},{"$f":"Translations!$A$95","v":"Budget"},{"$f":"Translations!$A$94","v":"Target"},{"$f":"Translations!$A$95","v":"Budget"},{"$f":"Translations!$A$94","v":"Target"},{"$f":"Translations!$A$95","v":"Budget"},{"$f":"Translations!$A$94","v":"Target"},{"$f":"Translations!$A$95","v":"Budget"},{"$f":"Translations!$A$94","v":"Target"},{"$f":"Translations!$A$95","v":"Budget"},{"$f":"Translations!$A$94","v":"Target"},{"$f":"Translations!$A$95","v":"Budget"}]
[]
[{"$nulls":37},{"$f":"N23+P23+R23+T23+V23+X23+Z23+AB23+AD23+AF23+AH23+AJ23","v":0},{"$f":"O23+Q23+S23+U23+W23+Y23+AA23+AC23+AE23+AG23+AI23+AK23","v":0}]
[{"$nulls":37},0,0]
[{"$nulls":37},0,0]
[{"$nulls":37},0,0]
[{"$nulls":37},0,0]
[{"$nulls":37},0,0]
[{"$nulls":37},0,0]
[{"$nulls":37},0,0]
[{"$nulls":37},0,0]
[{"$nulls":37},0,0]
[{"$nulls":37},0,0]
[{"$nulls":37},0,0]
[{"$nulls":37},0,0]
[{"$nulls":37},0,0]
[{"$nulls":37},0,0]
[{"$nulls":37},0,0]
[]
[{"$nulls":3},{"$f":"Translations!A109","v":"Totals"},{"$nulls":9},"-",{"$f":"O23+O27+O31","v":{"v":0,"d":"0.00"}},"-",{"$f":"Q23+Q27+Q31","v":{"v":0,"d":"0.00"}},"-",{"$f":"S23+S27+S31","v":{"v":0,"d":"0.00"}},"-",{"$f":"U23+U27+U31","v":{"v":0,"d":"0.00"}},"-",{"$f":"W23+W27+W31","v":{"v":0,"d":"0.00"}},"-",{"$f":"Y23+Y27+Y31","v":{"v":0,"d":"0.00"}},"-",{"$f":"AA23+AA27+AA31","v":{"v":0,"d":"0.00"}},"-",{"$f":"AC23+AC27+AC31","v":{"v":0,"d":"0.00"}},"-",{"$f":"AE23+AE27+AE31","v":{"v":0,"d":"0.00"}},"-",{"$f":"AG23+AG27+AG31","v":{"v":0,"d":"0.00"}},"-",{"$f":"AI23+AI27+AI31","v":{"v":0,"d":"0.00"}},"-",{"$f":"AK23+AK27+AK31","v":{"v":0,"d":"0.00"}},"-",{"$f":"AM23+AM27+AM31","v":{"v":0,"d":"0.00"}}]

{"sheet":"Annex 4","index":27,"n_rows":8,"n_cols":13,"rows_kept":8,"hidden":true,"merged":[[1,7,1,17],[2,7,2,17],[3,7,3,17],[4,7,4,17],[6,12,6,18],[7,0,16,10],[7,12,8,18],[11,12,12,13],[11,15,12,18],[14,11,16,14],[14,15,14,16],[15,15,16,16]]}
[]
["Annex 4",{"$nulls":6},{"$f":"Translations!A80","v":"SR Management Tool"}]
[{"$nulls":7},{"$f":"Setup!H11","v":"Direct Gender Partnership (DGP)"}]
[{"$nulls":7},{"$f":" Setup!H14 & \"  (\" & Setup!H13 & \")\"& \"  (\" & Setup!H15 & \")\"","v":"DMR-202-G01-H-00  (January  2016 - December 2016)  (HIV / AIDS)"}]
[{"$nulls":7},{"$f":"Setup!AE11 & \"  (\" & Setup!H16 & \")\"","v":"  ($ - USD)"}]
[]
[{"$f":"Setup!G19","v":"Details of programatic indicators"},{"$nulls":11},{"$f":"Setup!G17","v":"Key population"}]
[{"$f":"Setup!H19","v":"# PLHIV that initiated ARV with CD4 count <200\n# new HIV+ enrolled in care services \n# aged 10-24 yrs reached by HIV life skills ed. in school "},{"$nulls":11},{"$f":"Setup!H17","v":"Sex Workers - Migrants - Women"}]

{"sheet":"Annex 5","index":28,"n_rows":8,"n_cols":13,"rows_kept":8,"hidden":true,"merged":[[1,7,1,17],[2,7,2,17],[3,7,3,17],[4,7,4,17],[6,12,6,18],[7,0,16,10],[7,12,8,18],[11,12,12,13],[11,15,12,18],[14,11,16,14],[14,15,14,16],[15,15,16,16]]}
[]
["Annex 5",{"$nulls":6},{"$f":"Translations!A80","v":"SR Management Tool"}]
[{"$nulls":7},{"$f":"Setup!H11","v":"Direct Gender Partnership (DGP)"}]
[{"$nulls":7},{"$f":" Setup!H14 & \"  (\" & Setup!H13 & \")\"& \"  (\" & Setup!H15 & \")\"","v":"DMR-202-G01-H-00  (January  2016 - December 2016)  (HIV / AIDS)"}]
[{"$nulls":7},{"$f":"Setup!AE12 & \"  (\" & Setup!H16 & \")\"","v":"  ($ - USD)"}]
[]
[{"$f":"Setup!G19","v":"Details of programatic indicators"},{"$nulls":11},{"$f":"Setup!G17","v":"Key population"}]
[{"$f":"Setup!H19","v":"# PLHIV that initiated ARV with CD4 count <200\n# new HIV+ enrolled in care services \n# aged 10-24 yrs reached by HIV life skills ed. in school "},{"$nulls":11},{"$f":"Setup!H17","v":"Sex Workers - Migrants - Women"}]

{"sheet":"Annex 6","index":29,"n_rows":8,"n_cols":13,"rows_kept":8,"hidden":true,"merged":[[1,7,1,17],[2,7,2,17],[3,7,3,17],[4,7,4,17],[6,12,6,18],[7,0,16,10],[7,12,8,18],[11,12,12,13],[11,15,12,18],[14,11,16,14],[14,15,14,16],[15,15,16,16]]}
[]
["Annex 6",{"$nulls":6},{"$f":"Translations!A80","v":"SR Management Tool"}]
[{"$nulls":7},{"$f":"Setup!H11","v":"Direct Gender Partnership (DGP)"}]
[{"$nulls":7},{"$f":" Setup!H14 & \"  (\" & Setup!H13 & \")\"& \"  (\" & Setup!H15 & \")\"","v":"DMR-202-G01-H-00  (January  2016 - December 2016)  (HIV / AIDS)"}]
[{"$nulls":7},{"$f":"Setup!AE13 & \"  (\" & Setup!H16 & \")\"","v":"  ($ - USD)"}]
[]
[{"$f":"Setup!G19","v":"Details of programatic indicators"},{"$nulls":11},{"$f":"Setup!G17","v":"Key population"}]
[{"$f":"Setup!H19","v":"# PLHIV that initiated ARV with CD4 count <200\n# new HIV+ enrolled in care services \n# aged 10-24 yrs reached by HIV life skills ed. in school "},{"$nulls":11},{"$f":"Setup!H17","v":"Sex Workers - Migrants - Women"}]